{"text_format":"1","workbook":"xlsx","n_sheets":21,"sheets":["Premisas","Contenido","Lists","Periodos","Resumen de Validaciones","110000 - Carátula","110010 - Administradores","110010 GeneraXBRL","800101 - Nota. Efect. y Equiv.","800111 - Nota. Cuentas x cobrar","800111a - Nota. Detalle de CxC.","800111A GeneraXBRL","822100 - Nota. Prop, plan y eq.","823180 - Nota. Activos Intang.","828000 - Nota. Cuentas x pagar","210000 - Est. Situa. Financiera","310000 - Est. Resultados","410000 - Est. Resultados ORI","520000 - Est. Flujos de Efec.","610000 - Est. Camb. Patrimonio","Data"],"not_rendered":{"charts":0,"images":5,"macros":1,"external_links":1,"defined_names":62,"comments":11,"pivot_tables":0},"unopened":[],"bounds":{"document_bytes":16777216,"sheet_cells":100000,"rows_first":2000,"rows_last":500,"rows_between":2000,"halvings":0,"cell_chars":16384,"cell_head_chars":4096},"cells_cut":0,"cells_raw":0,"read":"whole","date_system":"1900"}

{"sheet":"Premisas","index":0,"n_rows":37,"n_cols":13,"rows_kept":37,"cut":false,"hidden":true,"merged":[]}
[]
["Formulas",null,null,"Trama Omitir","Trama Ignorar",null,"FileName:",null,null,"Valida:",null,null,"Check:"]
[{"$f":"IF(G3=\"\",\"/*\",\"\")","v":""},null,null,null,null,null,{"$f":"\"N\"&'110000 - Carátula'!E11&\"A\"&MID(YEAR('110000 - Carátula'!E13),3,2)&\"G1\"&\".xbrl\"","v":"NA17G1.xbrl"},null,null,"Si",null,null,{"$f":"'Resumen de Validaciones'!G26","v":42}]
[null,null,null,null,null,null," "]
["OutPutRange"]
["OutputHeader:",{"$f":"Data!$B$5:$B$13","v":"xmlns:link = 'http://www.xbrl.org/2003/linkbase'"}]
["Schema ref:",{"$f":"Data!$B$14","v":"link:schemaRef xlink:type='simple' xlink:href='http://www.juancarlosrodriguezrivera.com/Taxonomy/SVSP/Taxonomias/2017-12-31/Grupo1_2017-12-31.xsd'"}]
["OutputMiddle:",{"$f":"Data!B15:B20","v":{"$error":"#VALUE!"}}]
["hwOutputTail:",{"$f":"Data!B23","v":"</xbrli:xbrl>"}]
["FootnoteLang:",{"$f":"Data!B22","v":"\"en\""}]
[]
[{"$f":"Contenido!B6","v":"Versión 1.0"}]
[]
[]
[]
[]
[]
["Local address"]
[{"$f":"'110000 - Carátula'!D9","v":0}]
[{"$f":"'110010 GeneraXBRL'!D10","v":"co-svsp-core_2017-12-31:AdministradoresEje"}]
[{"$f":"'210000 - Est. Situa. Financiera'!D10","v":0}]
[{"$f":"'310000 - Est. Resultados'!D10","v":0}]
[{"$f":"'410000 - Est. Resultados ORI'!D10","v":0}]
[{"$f":"'520000 - Est. Flujos de Efec.'!D10","v":0}]
[{"$f":"'610000 - Est. Camb. Patrimonio'!D12","v":"ifrs-full:ComponentsOfEquityAxis"}]
[{"$f":"'610000 - Est. Camb. Patrimonio'!D39","v":"ifrs-full:ComponentsOfEquityAxis"}]
[{"$f":"'800101 - Nota. Efect. y Equiv.'!D10","v":0}]
[{"$f":"'800111 - Nota. Cuentas x cobrar'!D11","v":"co-svsp-core_2017-12-31:CuentasPorCobrar_Eje"}]
[{"$f":"'800111 - Nota. Cuentas x cobrar'!D35","v":"co-svsp-core_2017-12-31:CuentasPorCobrar_Eje"}]
[{"$f":"'800111A GeneraXBRL'!D10","v":"co-svsp-core_2017-12-31:DetalleCuentasXCobrar_Eje"}]
[{"$f":"'800111A GeneraXBRL'!D181","v":"co-svsp-core_2017-12-31:DetalleCuentasXCobrar_Eje"}]
[{"$f":"'822100 - Nota. Prop, plan y eq.'!D11","v":"co-svsp-core_2017-12-31:PropiedadesPlantaYEquipoEje_G1"}]
[{"$f":"'822100 - Nota. Prop, plan y eq.'!D50","v":"co-svsp-core_2017-12-31:PropiedadesPlantaYEquipoEje_G1"}]
[{"$f":"'823180 - Nota. Activos Intang.'!D12","v":"co-svsp-core_2017-12-31:ActivosIntangibles_Eje_G1"}]
[{"$f":"'823180 - Nota. Activos Intang.'!D42","v":"co-svsp-core_2017-12-31:ActivosIntangibles_Eje_G1"}]
[{"$f":"'828000 - Nota. Cuentas x pagar'!D11","v":"co-svsp-core_2017-12-31:CuentasXPagar_Eje"}]
[{"$f":"'828000 - Nota. Cuentas x pagar'!D24","v":"co-svsp-core_2017-12-31:CuentasXPagar_Eje"}]

{"sheet":"Contenido","index":1,"n_rows":31,"n_cols":8,"rows_kept":31,"cut":false,"hidden":false,"merged":[[26,1,26,11],[28,1,28,11],[30,1,30,11],[3,1,3,11],[4,1,4,11],[5,1,5,11],[7,5,7,8],[23,5,23,8],[25,1,25,11]]}
[]
[]
[]
[null,"Plantilla para generación de instancias XBRL "]
[null,"Taxonomía Grupo 1 - Corte Diciembre 31 de 2017"]
[null,"Versión 1.0"]
[]
[null,null,null,null,null,"Formularios"]
[]
[null,null,null,null,null,110000,null,"Carátula"]
[null,null,null,null,null,110010,null,"Administradores"]
[null,null,null,null,null,210000,null,"Estado de situación financiera"]
[null,null,null,null,null,310000,null,"Estado de Resultados"]
[null,null,null,null,null,410000,null,"Estado de Resultados - Otro Resultado Integral"]
[null,null,null,null,null,520000,null,"Estado de Flujos de Efectivo"]
[null,null,null,null,null,610000,null,"Estado de Cambios en el Patrimonio"]
[null,null,null,null,null,800101,null,"Nota de Efectivo y equivalentes al efectivo"]
[null,null,null,null,null,800111,null,"Nota de Cuentas por cobrar"]
[null,null,null,null,null,"800111a",null,"Nota de Detalle de Cuentas por cobrar"]
[null,null,null,null,null,822100,null,"Nota de Propiedades, planta y equipo"]
[null,null,null,null,null,823180,null,"Nota de Activos intangibles"]
[null,null,null,null,null,828000,null,"Nota de cuentas por pagar"]
[]
[null,null,null,null,null,"Resumen de validaciones"]
[]
[]
[null,"Esta herramienta es una opción que facilita a los vigilados pertenecientes al Grupo 1 de aplicación de normatividad financiera de la Superintendencia de Vigilancia y Seguridad Privada, la generación de los archivos (instancias) XBRL que la entidad requiere como parte de la presentación de la información financiera para el corte a diciembre 31 de 2017."]
[]
[null,"El uso de esta herramienta no es obligatorio, ni su comportamiento puede ser motivo para sustentar el no cumplimiento del requerimiento en los términos indicados en él."]
[]
[null,"Para consultar detalles sobre el uso de esta herramienta se puede acceder al botón de ayuda ubicado en la barra de menú o consultar el portal web de la entidad."]

{"sheet":"Lists","index":2,"n_rows":1134,"n_cols":97,"rows_kept":1134,"cut":false,"hidden":true,"merged":[]}
[]
[null,null,null,null,null,null,null,null,null,null,null,null,null,null,null,null,null,null,null,null,null,null,null,null,null,null,null,null,"AMAZONAS",null,"ANTIOQUIA",null,"ARAUCA",null,"ATLANTICO",null,"BOGOTA",null,"BOLIVAR",null,"BOYACA",null,"CALDAS",null,"CAQUETA",null,"CASANARE",null,"CAUCA",null,"CESAR",null,"CHOCO",null,"CORDOBA",null,"CUNDINAMARCA",null,"GUAINIA",null,"GUAVIARE",null,"HUILA",null,"LA_GUAJIRA",null,"MAGDALENA",null,"META",null,"NARINO",null,"NORTE_DE_SANTANDER",null,"PUTUMAYO",null,"QUINDIO",null,"RISARALDA",null,"SAN_ANDRES_Y_PROVIDENCIA",null,"SANTANDER",null,"SUCRE",null,"TOLIMA",null,"VALLE",null,"VAUPES",null,"VICHADA"]
[null,"NO","1","NA",null,"A0111 - Cultivo de cereales (excepto arroz), legumbres y semillas oleaginosas",null,"GRUPO 1",null,"PERSONA JURIDICA",null,"COOPERATIVA DE TRABAJO ASOCIADO - CTA",null,"ACTIVA",null,"AMAZONAS",null,"ABEJORRAL-ANTIOQUIA",null,"EN RECURSO",null,"01 EMPRESA DE VIGILANCIA Y SEGURIDAD PRIVADAS CON ARMAS",null,"NO",null,"CEDULA DE CIUDADANIA",null,null,"EL-ENCANTO-AMAZONAS",null,"ABEJORRAL-ANTIOQUIA",null,"ARAUCA-ARAUCA",null,"BARANOA-ATLANTICO",null,"BOGOTA-BOGOTA D.C.",null,"ACHI-BOLIVAR",null,"ALMEIDA-BOYACA",null,"AGUADAS-CALDAS",null,"ALBANIA-CAQUETA",null,"AGUAZUL-CASANARE",null,"ALMAGUER-CAUCA",null,"AGUACHICA-CESAR",null,"ACANDI-CHOCO",null,"AYAPEL-CORDOBA",null,"AGUA-DE-DIOS-CUNDINAMARCA",null,"CACAHUAL-GUAINIA",null,"CALAMAR-GUAVIARE",null,"ACEVEDO-HUILA",null,"ALBANIA-LA GUAJIRA",null,"ALGARROBO-MAGDALENA",null,"ACACIAS-META",null,"ALBAN-NARINO",null,"ABREGO-NORTE DE SANTANDER",null,"COLON-PUTUMAYO",null,"ARMENIA-QUINDIO",null,"APIA-RISARALDA",null,"PROVIDENCIA-SAN ANDRES Y PROVIDENCIA",null,"AGUADA-SANTANDER",null,"BUENAVISTA-SUCRE",null,"ALPUJARRA-TOLIMA",null,"ALCALA-VALLE",null,"CARURU-VAUPES",null,"CURIMBAO-VICHADA",null,"CÉDULA DE CIUDADANÍA",null,"013 - AFGANISTAN"]
[null,"SI","2","NO",null,"A0112 - Cultivo de arroz",null,"GRUPO 2",null,"PERSONA NATURAL",null,"EMPRESA UNIPERSONAL",null,"ACUERDO DE REESTRUCTURACIÓN",null,"ANTIOQUIA",null,"ABREGO-NORTE DE SANTANDER",null,"EN TRÁMITE",null,"02 EMPRESA DE VIGILANCIA Y SEGURIDAD PRIVADAS SIN ARMAS",null,"SI",null,"CEDULA DE EXTRANJERIA",null,null,"LA-CHORRERA-AMAZONAS",null,"ABRIAQUI-ANTIOQUIA",null,"ARAUQUITA-ARAUCA",null,"BARRANQUILLA-ATLANTICO",null,"BOSA-BOGOTA D.C.",null,"ALTOS-DEL-ROSARIO-BOLIVAR",null,"AQUITANIA-BOYACA",null,"ANSERMA-CALDAS",null,"BELEN-DE-LOS-ANDAQUIES-CAQUETA",null,"CHAMEZA-CASANARE",null,"ARGELIA-CAUCA",null,"AGUSTIN-CODAZZI-CESAR",null,"ALTO-BAUDO-CHOCO",null,"BUENAVISTA-CORDOBA",null,"ALBAN-CUNDINAMARCA",null,"GUAVIARE-GUAINIA",null,"EL-RETORNO-GUAVIARE",null,"AGRADO-HUILA",null,"BARRANCAS-LA GUAJIRA",null,"ARACATACA-MAGDALENA",null,"BARRANCA-DE-UPÍA-META",null,"ALDANA-NARINO",null,"ARBOLEDAS-NORTE DE SANTANDER",null,"MOCOA-PUTUMAYO",null,"BUENAVISTA-QUINDIO",null,"BALBOA-RISARALDA",null,"SAN-ANDRES-SAN ANDRES Y PROVIDENCIA",null,"ALBANIA-SANTANDER",null,"CAIMITO-SUCRE",null,"ALVARADO-TOLIMA",null,"ANDALUCIA-VALLE",null,"MITU-VAUPES",null,"LA-PRIMAVERA-VICHADA",null,"NIT",null,"017 - ALBANIA"]
[null,null,"3","SI",null,"A0113 - Cultivo de hortalizas, raíces y tubérculos",null,"GRUPO 3",null,null,null,"ENTIDAD GUBERNAMENTAL",null,"ACUERDO DE REORGANIZACION",null,"ARAUCA",null,"ABRIAQUI-ANTIOQUIA",null,"VIGENTE",null,"03 COOPERATIVA DE VIGILANCIA Y SEGURIDAD PRIVADA",null,null,null,"PASAPORTE",null,null,"LA-PEDRERA-AMAZONAS",null,"ALEJANDRIA-ANTIOQUIA",null,"CRAVO-NORTE-ARAUCA",null,"CAMPO-DE-LA-CRUZ-ATLANTICO",null,"ENGATIVA-BOGOTA D.C.",null,"ARENAL-BOLIVAR",null,"ARCABUCO-BOYACA",null,"ARANZAZU-CALDAS",null,"CARTAGENA-DEL-CHAIRA-CAQUETA",null,"HATO-COROZAL-CASANARE",null,"BALBOA-CAUCA",null,"ASTREA-CESAR",null,"ATRATO-CHOCO",null,"CANALETE-CORDOBA",null,"ANAPOIMA-CUNDINAMARCA",null,"INIRIDA-GUAINIA",null,"GUAVIARE-GUAINIA",null,"AIPE-HUILA",null,"DIBULLA-LA GUAJIRA",null,"ARIGUANI-MAGDALENA",null,"CABUYARO-META",null,"ANCUYA-NARINO",null,"BOCHALEMA-NORTE DE SANTANDER",null,"ORITO-PUTUMAYO",null,"CALARCA-QUINDIO",null,"BELEN-DE-UMBRIA-RISARALDA",null,null,null,"ARATOCA-SANTANDER",null,"CHALAN-SUCRE",null,"AMBALEMA-TOLIMA",null,"ANSERMANUEVO-VALLE",null,"PACOA-VAUPES",null,"NUEVA-ANTIOQUIA-VICHADA",null,"CEDULA EXTRANJERÍA",null,"023 - ALEMANIA"]
[null,null,"4",null,null,"A0114 - Cultivo de tabaco",null,null,null,null,null,"ENTIDAD SIN ANIMO DE LUCRO",null,"CONCORDATO EN EJECUCIÓN",null,"ATLANTICO",null,"ACACIAS-META",null,null,null,"04 EMPRESA DE TRANSPORTE DE VALORES",null,null,null,null,null,null,"LA-VICTORIA-AMAZONAS",null,"AMAGA-ANTIOQUIA",null,"FORTUL-ARAUCA",null,"CANDELARIA-ATLANTICO",null,"FONTIBON-BOGOTA D.C.",null,"ARJONA-BOLIVAR",null,"BELEN-BOYACA",null,"BELALCAZAR-CALDAS",null,"CURILLO-CAQUETA",null,"LA-SALINA-CASANARE",null,"BOLIVAR-CAUCA",null,"BECERRIL-CESAR",null,"BAGADO-CHOCO",null,"CERETE-CORDOBA",null,"ANOLAIMA-CUNDINAMARCA",null,"LA-GUADALUPE-GUAINIA",null,"MIRAFLORES-GUAVIARE",null,"ALGECIRAS-HUILA",null,"DISTRACCION-LA GUAJIRA",null,"CERRO-DE-SAN-ANTONIO-MAGDALENA",null,"CASTILLA-LA-NUEVA-META",null,"ARBOLEDA-NARINO",null,"BUCARASICA-NORTE DE SANTANDER",null,"PUERTO-ASIS-PUTUMAYO",null,"CIRCASIA-QUINDIO",null,"DOS-QUEBRADAS-RISARALDA",null,null,null,"BARBOSA-SANTANDER",null,"COLOSO-SUCRE",null,"ANZOATEGUI-TOLIMA",null,"ARGELIA-VALLE",null,"PAPUNAUA-VAUPES",null,"PUERTO-CARRENO-VICHADA",null,"PASAPORTE",null,"026 - ARMENIA"]
[null,null,"5",null,null,"A0115 - Cultivo de plantas textiles",null,null,null,null,null,"SOCIEDAD ANONIMA - SA",null,"CONCORDATO EN TRÁMITE",null,"BOGOTA",null,"ACANDI-CHOCO",null,null,null,"05 EMPRESA BLINDADORA",null,null,null,null,null,null,"LETICIA-AMAZONAS",null,"AMALFI-ANTIOQUIA",null,"PUERTO-RONDON-ARAUCA",null,"GALAPA-ATLANTICO",null,"SUBA-BOGOTA D.C.",null,"ARROYOHONDO-BOLIVAR",null,"BERBEO-BOYACA",null,"CHINCHINA-CALDAS",null,"EL-DONCELLO-CAQUETA",null,"MANI-CASANARE",null,"BUENOS-AIRES-CAUCA",null,"BOSCONIA-CESAR",null,"BAHIA-SOLANO-CHOCO",null,"CHIMA-CORDOBA",null,"APULO-CUNDINAMARCA",null,"MAPIRIPANA-GUAINIA",null,"MORICHAL-GUAVIARE",null,"ALTAMIRA-HUILA",null,"EL-MOLINO-LA GUAJIRA",null,"CHIVOLO-MAGDALENA",null,"CUBARRAL-META",null,"BARBACOAS-NARINO",null,"CACHIRA-NORTE DE SANTANDER",null,"PUERTO-CAICEDO-PUTUMAYO",null,"CORDOBA-QUINDIO",null,"GUATICA-RISARALDA",null,null,null,"BARICHARA-SANTANDER",null,"COROZAL-SUCRE",null,"ARMERO-TOLIMA",null,"BOLIVAR-VALLE",null,"TARAIRA-VAUPES",null,"SAN-JOSE-DE-OCUNE-VICHADA",null,"TARJETA DE IDENTIDAD",null,"027 - ARUBA"]
[null,null,"6",null,null,"A0119 - Otros cultivos transitorios n.c.p.",null,null,null,null,null,"SOCIEDAD DE RESPONSABILIDAD LIMITADA - LTDA",null,"EN ETAPA PREOPERATIVA",null,"BOLIVAR",null,"ACEVEDO-HUILA",null,null,null,"06 EMPRESA ARRENDADORA DE VEHÍCULOS BLINDADOS",null,null,null,null,null,null,"MIRITI-PARANA-AMAZONAS",null,"ANDES-ANTIOQUIA",null,"SARAVENA-ARAUCA",null,"JUAN-DE-ACOSTA-ATLANTICO",null,"USAQUEN-BOGOTA D.C.",null,"BARRANCO-DE-LOBA-BOLIVAR",null,"BETEITIVA-BOYACA",null,"FILADELFIA-CALDAS",null,"EL-PAUJIL-CAQUETA",null,"MONTERREY-CASANARE",null,"CAJIBIO-CAUCA",null,"CHIMICHAGUA-CESAR",null,"BAJO-BAUDO-CHOCO",null,"CHINU-CORDOBA",null,"ARBELAEZ-CUNDINAMARCA",null,"MORICHAL-GUAINIA",null,"SAN-JOSE-DEL-GUAVIARE-GUAVIARE",null,"BARAYA-HUILA",null,"FONSECA-LA GUAJIRA",null,"CIENAGA-MAGDALENA",null,"CUMARAL-META",null,"BELEN-NARINO",null,"CACOTA-NORTE DE SANTANDER",null,"PUERTO-GUZMÁN-PUTUMAYO",null,"FILANDIA-QUINDIO",null,"LA-CELIA-RISARALDA",null,null,null,"BARRANCABERMEJA-SANTANDER",null,"COVEÑAS-SUCRE",null,"ATACO-TOLIMA",null,"BUENAVENTURA-VALLE",null,"YAVARATE-VAUPES",null,"SANTA-RITA-VICHADA",null,"SOCIEDAD EXTRANJERA SIN NIT EN COLOMBIA",null,"029 - BOSNIA"]
[null,null,"7",null,null,"A0121 - Cultivo de frutas tropicales y subtropicales",null,null,null,null,null,"SOCIEDAD EN COMANDITA POR ACCIONES",null,"EN LIQUIDACIÓN",null,"BOYACA",null,"ACHI-BOLIVAR",null,null,null,"07 EMPRESA ASESORA, CONSULTORA E INVESTIGADORA EN VIGILANCIA Y SEGURIDAD PRIVADA",null,null,null,null,null,null,"PUERTO-ALEGRIA-AMAZONAS",null,"ANGELOPOLIS-ANTIOQUIA",null,"TAME-ARAUCA",null,"LURUACO-ATLANTICO",null,"USME-BOGOTA D.C.",null,"CALAMAR-BOLIVAR",null,"BOAVITA-BOYACA",null,"LA-DORADA-CALDAS",null,"FLORENCIA-CAQUETA",null,"NUNCHIA-CASANARE",null,"CALDONO-CAUCA",null,"CHIRIGUANA-CESAR",null,"BELÉN-DE-BAJIRÁ-CHOCO",null,"CIENAGA-DE-ORO-CORDOBA",null,"BELTRAN-CUNDINAMARCA",null,"PANA-PANA-GUAINIA",null,null,null,"CAMPOALEGRE-HUILA",null,"HATONUEVO-LA GUAJIRA",null,"CONCORDIA-MAGDALENA",null,"EL-CALVARIO-META",null,"BUESACO-NARINO",null,"CHINACOTA-NORTE DE SANTANDER",null,"SAN-FRANCISCO-PUTUMAYO",null,"GENOVA-QUINDIO",null,"LA-VIRGINIA-RISARALDA",null,null,null,"BETULIA-SANTANDER",null,"EL-ROBLE-SUCRE",null,"CAJAMARCA-TOLIMA",null,"BUGA-VALLE",null,null,null,"SANTA-ROSALIA-VICHADA",null,"PERSONA NATURAL EXTRANJERA SIN IDENTIFICACIÓN",null,"031 -BURKINA FASSO"]
[null,null,"8",null,null,"A0122 - Cultivo de plátano y banano",null,null,null,null,null,"SOCIEDAD EN COMANDITA SIMPLE",null,null,null,"CALDAS",null,"AGRADO-HUILA",null,null,null,"08 ESCUELA DE CAPACITACIÓN Y ENTRENAMIENTO EN VIGILANCIA Y SEGURIDAD PRIVADA",null,null,null,null,null,null,"PUERTO-ARICA-AMAZONAS",null,"ANGOSTURA-ANTIOQUIA",null,null,null,"MALAMBO-ATLANTICO",null,null,null,"CANTAGALLO-BOLIVAR",null,"BOYACA-BOYACA",null,"LA-MERCED-CALDAS",null,"LA-MONTANITA-CAQUETA",null,"OROCUE-CASANARE",null,"CALOTO-CAUCA",null,"CURUMANI-CESAR",null,"BOJAYA-CHOCO",null,"COTORRA-CORDOBA",null,"BITUIMA-CUNDINAMARCA",null,"PUERTO-COLOMBIA-GUAINIA",null,null,null,"COLOMBIA-HUILA",null,"LA-JAGUA-DEL-PILAR-LA GUAJIRA",null,"EL-BANCO-MAGDALENA",null,"EL-CASTILLO-META",null,"CHACHAGÜÍ-NARINO",null,"CHITAGA-NORTE DE SANTANDER",null,"SAN-MIGUEL-PUTUMAYO",null,"LA-TEBAIDA-QUINDIO",null,"MARSELLA-RISARALDA",null,null,null,"BOLIVAR-SANTANDER",null,"GALERAS-SUCRE",null,"CARMEN-DE-APICALA-TOLIMA",null,"BUGALAGRANDE-VALLE",null,null,null,null,null,"REGISTRO CIVIL DE NACIMIENTO",null,"037 - ANDORRA"]
[null,null,"9",null,null,"A0123 - Cultivo de café",null,null,null,null,null,"SOCIEDAD POR ACCIONES SIMPLIFICADA - SAS",null,null,null,"CAQUETA",null,"AGUA-DE-DIOS-CUNDINAMARCA",null,null,null,null,null,null,null,null,null,null,"PUERTO-NARINO-AMAZONAS",null,"ANORI-ANTIOQUIA",null,null,null,"MANATI-ATLANTICO",null,null,null,"CARMEN-DE-BOLIVAR-BOLIVAR",null,"BRICENO-BOYACA",null,"MANIZALES-CALDAS",null,"MILAN-CAQUETA",null,"PAZ-DE-ARIPORO-CASANARE",null,"CORINTO-CAUCA",null,"EL-COPEY-CESAR",null,"CARMEN-DEL-DARIEN-CHOCO",null,"LA-APARTADA-CORDOBA",null,"BOJACA-CUNDINAMARCA",null,"SAN-FELIPE-GUAINIA",null,null,null,"ELIAS-HUILA",null,"MAICAO-LA GUAJIRA",null,"EL-PINON-MAGDALENA",null,"EL-DORADO-META",null,"COLON-NARINO",null,"CONVENCION-NORTE DE SANTANDER",null,"SANTIAGO-PUTUMAYO",null,"MONTENEGRO-QUINDIO",null,"MISTRATO-RISARALDA",null,null,null,"BUCARAMANGA-SANTANDER",null,"GUARANOA-SUCRE",null,"CASABIANCA-TOLIMA",null,"CAICEDONIA-VALLE",null,null,null,null,null,"SIN IDENTIFICACIÓN - PARA USO DEFINIDO POR SUPERVIGILANCIA",null,"040 - ANGOLA"]
[null,null,"0",null,null,"A0124 - Cultivo de caña de azúcar",null,null,null,null,null,null,null,null,null,"CASANARE",null,"AGUACHICA-CESAR",null,null,null,null,null,null,null,null,null,null,"PUERTO-SANTANDER-AMAZONAS",null,"ANTIOQUIA-ANTIOQUIA",null,null,null,"PALMAR-DE-VARELA-ATLANTICO",null,null,null,"CARTAGENA-BOLIVAR",null,"BUENAVISTA-BOYACA",null,"MANZANARES-CALDAS",null,"MORELIA-CAQUETA",null,"PORE-CASANARE",null,"EL-TAMBO-CAUCA",null,"EL-PASO-CESAR",null,"CONDOTO-CHOCO",null,"LORICA-CORDOBA",null,"CABRERA-CUNDINAMARCA",null,null,null,null,null,"GARZON-HUILA",null,"MANAURE-LA GUAJIRA",null,"EL-RETÉN-MAGDALENA",null,"FUENTE-DE-ORO-META",null,"CONSACA-NARINO",null,"CUCUTA-NORTE DE SANTANDER",null,"SIBUNDOY-PUTUMAYO",null,"PIJAO-QUINDIO",null,"PEREIRA-RISARALDA",null,null,null,"CABRERA-SANTANDER",null,"LA-UNION-SUCRE",null,"CHAPARRAL-TOLIMA",null,"CALI-VALLE",null,null,null,null,null,null,null,"041 - ANGUILLA"]
[null,null,null,null,null,"A0125 - Cultivo de flor de corte",null,null,null,null,null,null,null,null,null,"CAUCA",null,"AGUADA-SANTANDER",null,null,null,null,null,null,null,null,null,null,"TARAPACA-AMAZONAS",null,"ANZA-ANTIOQUIA",null,null,null,"PIOJO-ATLANTICO",null,null,null,"CICUCO-BOLIVAR",null,"BUSBANZA-BOYACA",null,"MARMATO-CALDAS",null,"PUERTO-RICO-CAQUETA",null,"RECETOR-CASANARE",null,"FLORENCIA-CAUCA",null,"GAMARRA-CESAR",null,"CÉRTEGUI-CHOCO",null,"LOS-CORDOBAS-CORDOBA",null,"CACHIPAY-CUNDINAMARCA",null,null,null,null,null,"GIGANTE-HUILA",null,"RIOHACHA-LA GUAJIRA",null,"FUNDACION-MAGDALENA",null,"GRANADA-META",null,"CONTADERO-NARINO",null,"CUCUTILLA-NORTE DE SANTANDER",null,"VALLE-GUAMUEZ-PUTUMAYO",null,"QUIMBAYA-QUINDIO",null,"PUEBLO-RICO-RISARALDA",null,null,null,"CALIFORNIA-SANTANDER",null,"LOS-PALMITOS-SUCRE",null,"COELLO-TOLIMA",null,"CALIMA-VALLE",null,null,null,null,null,null,null,"043 - ANTIGUA Y BARBUDA"]
[null,null,null,null,null,"A0126 - Cultivo de palma para aceite (palma africana) y otros frutos oleaginosos",null,null,null,null,null,null,null,null,null,"CESAR",null,"AGUADAS-CALDAS",null,null,null,null,null,null,null,null,null,null,null,null,"APARTADO-ANTIOQUIA",null,null,null,"POLONUEVO-ATLANTICO",null,null,null,"CLEMENCIA-BOLIVAR",null,"CALDAS-BOYACA",null,"MARQUETALIA-CALDAS",null,"SAN-JOSE-DE-FRAGUA-CAQUETA",null,"SABANALARGA-CASANARE",null,"GUACHENE-CAUCA",null,"GONZALEZ-CESAR",null,"EL-CANTÓN-DEL-SAN-PABLO-CHOCO",null,"MOMIL-CORDOBA",null,"CAJICA-CUNDINAMARCA",null,null,null,null,null,"GUADALUPE-HUILA",null,"SAN-JUAN-DEL-CESAR-LA GUAJIRA",null,"GUAMAL-MAGDALENA",null,"GUAMAL-META",null,"CORDOBA-NARINO",null,"DURANIA-NORTE DE SANTANDER",null,"VILLAGARZON-PUTUMAYO",null,"SALENTO-QUINDIO",null,"QUINCHIA-RISARALDA",null,null,null,"CAPITANEJO-SANTANDER",null,"MAJAGUAL-SUCRE",null,"COYAIMA-TOLIMA",null,"CANDELARIA-VALLE",null,null,null,null,null,null,null,"047 - ANTILLAS HOLANDESAS"]
[null,null,null,null,null,"A0127 - Cultivo de plantas con las que se preparan bebidas",null,null,null,null,null,null,null,null,null,"CHOCO",null,"AGUAZUL-CASANARE",null,null,null,null,null,null,null,null,null,null,null,null,"ARBOLETES-ANTIOQUIA",null,null,null,"PONEDERA-ATLANTICO",null,null,null,"CORDOBA-BOLIVAR",null,"CAMPOHERMOSO-BOYACA",null,"MARULANDA-CALDAS",null,"SAN-VICENTE-DEL-CAGUAN-CAQUETA",null,"SACAMA-CASANARE",null,"GUAPI-CAUCA",null,"LA-GLORIA-CESAR",null,"EL-CARMEN-CHOCO",null,"MONITOS-CORDOBA",null,"CAPARRAPI-CUNDINAMARCA",null,null,null,null,null,"HOBO-HUILA",null,"URIBIA-LA GUAJIRA",null,"NUEVA-GRANADA-MAGDALENA",null,"LA-MACARENA-META",null,"CUASPUD-NARINO",null,"EL-CARMEN-NORTE DE SANTANDER",null,null,null,null,null,"SANTA-ROSA-DE-CABAL-RISARALDA",null,null,null,"CARCASI-SANTANDER",null,"MORROA-SUCRE",null,"CUNDAY-TOLIMA",null,"CARTAGO-VALLE",null,null,null,null,null,null,null,"053 - ARABIA SAUDITA"]
[null,null,null,null,null,"A0128 - Cultivo de especias y de plantas aromáticas y medicinales",null,null,null,null,null,null,null,null,null,"CORDOBA",null,"AGUSTIN-CODAZZI-CESAR",null,null,null,null,null,null,null,null,null,null,null,null,"ARGELIA-ANTIOQUIA",null,null,null,"PUERTO-COLOMBIA-ATLANTICO",null,null,null,"EL-GUAMO-BOLIVAR",null,"CERINZA-BOYACA",null,"NEIRA-CALDAS",null,"SOLANO-CAQUETA",null,"SAN-LUIS-DE-PALENQUE-CASANARE",null,"INZA-CAUCA",null,"LA-JAGUA-DE-IBIRICO-CESAR",null,"EL-LITORAL-DEL-SAN-JUAN-CHOCO",null,"MONTELIBANO-CORDOBA",null,"CAQUEZA-CUNDINAMARCA",null,null,null,null,null,"IQUIRA-HUILA",null,"URUMITA-LA GUAJIRA",null,"PEDRAZA-MAGDALENA",null,"LEJANIAS-META",null,"CUMBAL-NARINO",null,"EL-TARRA-NORTE-NORTE DE SANTANDER",null,null,null,null,null,"SATUARIO-RISARALDA",null,null,null,"CEPITA-SANTANDER",null,"OVEJAS-SUCRE",null,"DOLORES-TOLIMA",null,"DAGUA-VALLE",null,null,null,null,null,null,null,"059 - ARGELIA"]
[null,null,null,null,null,"A0129 - Otros cultivos permanentes n.c.p.",null,null,null,null,null,null,null,null,null,"CUNDINAMARCA",null,"AIPE-HUILA",null,null,null,null,null,null,null,null,null,null,null,null,"ARMENIA-ANTIOQUIA",null,null,null,"REPELON-ATLANTICO",null,null,null,"EL-PEÑÓN-BOLIVAR",null,"CHINAVITA-BOYACA",null,"NORCASIA-CALDAS",null,"SOLITA-CAQUETA",null,"TAMARA-CASANARE",null,"JAMBALO-CAUCA",null,"LA-PAZ-(ROBLES)-CESAR",null,"ITSMINA-CHOCO",null,"MONTERIA-CORDOBA",null,"CARMEN-DE-CARUPA-CUNDINAMARCA",null,null,null,null,null,"ISNOS-HUILA",null,"VILLANUEVA-LA GUAJIRA",null,"PIJIÑO-DEL-CARMEN-MAGDALENA",null,"MAPIRIPÁN-META",null,"CUMBITARA-NARINO",null,"EL-ZULIA-NORTE DE SANTANDER",null,null,null,null,null,null,null,null,null,"CERRITO-SANTANDER",null,"PALMITO-SUCRE",null,"ESPINAL-TOLIMA",null,"EL-AGUILA-VALLE",null,null,null,null,null,null,null,"063 - ARGENTINA"]
[null,null,null,null,null,"A0130 - Propagación de plantas (actividades de los viveros, excepto viveros forestales)",null,null,null,null,null,null,null,null,null,"GUAINIA",null,"ALBAN-CUNDINAMARCA",null,null,null,null,null,null,null,null,null,null,null,null,"BARBOSA-ANTIOQUIA",null,null,null,"SABANAGRANDE-ATLANTICO",null,null,null,"HATILLO-DE-LOBA-BOLIVAR",null,"CHIQUINQUIRA-BOYACA",null,"PACORA-CALDAS",null,"VALPARAISO-CAQUETA",null,"TAURAMENA-CASANARE",null,"LA-SIERRA-CAUCA",null,"MANAURE-BALCON-DEL-CESAR-CESAR",null,"JURADO-CHOCO",null,"PLANETA-RICA-CORDOBA",null,"CHAGUANI-CUNDINAMARCA",null,null,null,null,null,"LA-ARGENTINA-HUILA",null,null,null,"PIVIJAY-MAGDALENA",null,"MESETAS-META",null,"EL-CHARCO-NARINO",null,"GRAMALOTE-NORTE DE SANTANDER",null,null,null,null,null,null,null,null,null,"CHARALA-SANTANDER",null,"SAMPUES-SUCRE",null,"FALAN-TOLIMA",null,"EL-CAIRO-VALLE",null,null,null,null,null,null,null,"069 - AUSTRALIA"]
[null,null,null,null,null,"A0141 - Cría de ganado bovino y bufalino",null,null,null,null,null,null,null,null,null,"GUAVIARE",null,"ALBAN-NARINO",null,null,null,null,null,null,null,null,null,null,null,null,"BELLO-ANTIOQUIA",null,null,null,"SABANALARGA-ATLANTICO",null,null,null,"MAGANGUE-BOLIVAR",null,"CHIQUIZA-BOYACA",null,"PALESTINA-CALDAS",null,null,null,"TRINIDAD-CASANARE",null,"LA-VEGA-CAUCA",null,"PAILITAS-CESAR",null,"LLORO-CHOCO",null,"PUEBLO-NUEVO-CORDOBA",null,"CHIA-CUNDINAMARCA",null,null,null,null,null,"LA-PLATA-HUILA",null,null,null,"PLATO-MAGDALENA",null,"PUERTO-CONCORDIA-META",null,"EL-PEÑOL-NARINO",null,"HACARI-NORTE DE SANTANDER",null,null,null,null,null,null,null,null,null,"CHARTA-SANTANDER",null,"SAN-BENITO-ABAD-SUCRE",null,"FLANDES-TOLIMA",null,"EL-CERRITO-VALLE",null,null,null,null,null,null,null,"072 - AUSTRIA"]
[null,null,null,null,null,"A0142 - Cría de caballos y otros equinos",null,null,null,null,null,null,null,null,null,"HUILA",null,"ALBANIA-CAQUETA",null,null,null,null,null,null,null,null,null,null,null,null,"BELMIRA-ANTIOQUIA",null,null,null,"SANTA-LUCIA-ATLANTICO",null,null,null,"MAHATES-BOLIVAR",null,"CHISCAS-BOYACA",null,"PENSILVANIA-CALDAS",null,null,null,"VILLANUEVA-CASANARE",null,"LOPEZ-(MICAY)-CAUCA",null,"PELAYA-CESAR",null,"MEDIO-ATRATO-CHOCO",null,"PUERTO-ESCONDIDO-CORDOBA",null,"CHIPAQUE-CUNDINAMARCA",null,null,null,null,null,"NATAGA-HUILA",null,null,null,"PUEBLOVIEJO-MAGDALENA",null,"PUERTO-GAITAN-META",null,"EL-ROSARIO-NARINO",null,"HERRAN-NORTE DE SANTANDER",null,null,null,null,null,null,null,null,null,"CHIMA-SANTANDER",null,"SAN-JUAN-DE-BETULIA-SUCRE",null,"FRESNO-TOLIMA",null,"EL-DOVIO-VALLE",null,null,null,null,null,null,null,"074 - AZERBAIJAN"]
[null,null,null,null,null,"A0143 - Cría de ovejas y cabras",null,null,null,null,null,null,null,null,null,"LA_GUAJIRA",null,"ALBANIA-LA GUAJIRA",null,null,null,null,null,null,null,null,null,null,null,null,"BETANIA-ANTIOQUIA",null,null,null,"SANTO-TOMAS-ATLANTICO",null,null,null,"MARGARITA-BOLIVAR",null,"CHITA-BOYACA",null,"RIOSUCIO-CALDAS",null,null,null,"YOPAL-CASANARE",null,"MERCADERES-CAUCA",null,"PUEBLO-BELLO-CESAR",null,"MEDIO-BAUDÓ-CHOCO",null,"PUERTO-LIBERTADOR-CORDOBA",null,"CHOACHI-CUNDINAMARCA",null,null,null,null,null,"NEIVA-HUILA",null,null,null,"REMOLINO-MAGDALENA",null,"PUERTO-LLERAS-META",null,"EL-TABLON-NARINO",null,"LA-ESPERANZA-NORTE DE SANTANDER",null,null,null,null,null,null,null,null,null,"CHIPATA-SANTANDER",null,"SAN-MARCOS-SUCRE",null,"GUAMO-TOLIMA",null,"FLORIDA-VALLE",null,null,null,null,null,null,null,"077 - BAHAMAS"]
[null,null,null,null,null,"A0144 - Cría de ganado porcino",null,null,null,null,null,null,null,null,null,"MAGDALENA",null,"ALBANIA-SANTANDER",null,null,null,null,null,null,null,null,null,null,null,null,"BETULIA-ANTIOQUIA",null,null,null,"SOLEDAD-ATLANTICO",null,null,null,"MARIA-LA-BAJA-BOLIVAR",null,"CHITARAQUE-BOYACA",null,"RISARALDA-CALDAS",null,null,null,null,null,"MIRANDA-CAUCA",null,"RIO-DE-ORO-CESAR",null,"MEDIO-SAN-JUAN-CHOCO",null,"PURISIMA-CORDOBA",null,"CHOCONTA-CUNDINAMARCA",null,null,null,null,null,"OPORAPA-HUILA",null,null,null,"SABANAS-DE-SAN-ANGEL-MAGDALENA",null,"PUERTO-LOPEZ-META",null,"EL-TAMBO-NARINO",null,"LA-PLAYA-NORTE DE SANTANDER",null,null,null,null,null,null,null,null,null,"CIMITARRA-SANTANDER",null,"SAN-ONOFRE-SUCRE",null,"HERVEO-TOLIMA",null,"GINEBRA-VALLE",null,null,null,null,null,null,null,"080 - BAHREIN"]
[null,null,null,null,null,"A0145 - Cría de aves de corral",null,null,null,null,null,null,null,null,null,"META",null,"ALCALA-VALLE",null,null,null,null,null,null,null,null,null,null,null,null,"BOLIVAR-ANTIOQUIA",null,null,null,"SUAN-ATLANTICO",null,null,null,"MOMPOS-BOLIVAR",null,"CHIVATA-BOYACA",null,"SALAMINA-CALDAS",null,null,null,null,null,"MORALES-CAUCA",null,"SAN-ALBERTO-CESAR",null,"NOVITA-CHOCO",null,"SAHAGUN-CORDOBA",null,"COGUA-CUNDINAMARCA",null,null,null,null,null,"PAICOL-HUILA",null,null,null,"SALAMINA-MAGDALENA",null,"PUERTO-RICO-META",null,"FRANCISCO-PIZARRO-NARINO",null,"LABATECA-NORTE DE SANTANDER",null,null,null,null,null,null,null,null,null,"CONCEPCION-SANTANDER",null,"SAN-PEDRO-SUCRE",null,"HONDA-TOLIMA",null,"GUACARI-VALLE",null,null,null,null,null,null,null,"081 - BANGLADESH"]
[null,null,null,null,null,"A0149 - Cría de otros animales n.c.p.",null,null,null,null,null,null,null,null,null,"NARINO",null,"ALDANA-NARINO",null,null,null,null,null,null,null,null,null,null,null,null,"BRICENO-ANTIOQUIA",null,null,null,"TUBARA-ATLANTICO",null,null,null,"MONTECRISTO-BOLIVAR",null,"CHIVOR-BOYACA",null,"SAMANA-CALDAS",null,null,null,null,null,"PADILLA-CAUCA",null,"SAN-DIEGO-CESAR",null,"NUQUI-CHOCO",null,"SAN-ANDRES-DE-SOTAVENTO-CORDOBA",null,"COTA-CUNDINAMARCA",null,null,null,null,null,"PALERMO-HUILA",null,null,null,"SAN-SEBASTIAN-DE-BUENAVISMAGDALENA",null,"RESTREPO-META",null,"FUNES-NARINO",null,"LOS-PATIOS-NORTE DE SANTANDER",null,null,null,null,null,null,null,null,null,"CONFINES-SANTANDER",null,"SINCE-SUCRE",null,"IBAGUE-TOLIMA",null,"JAMUNDI-VALLE",null,null,null,null,null,null,null,"083 - BARBADOS"]
[null,null,null,null,null,"A0150 - Explotación mixta (agrícola y pecuaria)",null,null,null,null,null,null,null,null,null,"NORTE_DE_SANTANDER",null,"ALEJANDRIA-ANTIOQUIA",null,null,null,null,null,null,null,null,null,null,null,null,"BURITICA-ANTIOQUIA",null,null,null,"USIACURI-ATLANTICO",null,null,null,"MORALES-BOLIVAR",null,"CIENAGA-BOYACA",null,"SAN-JOSÉ-CALDAS",null,null,null,null,null,"PAEZ-CAUCA",null,"SAN-MARTIN-CESAR",null,"QUIBDO-CHOCO",null,"SAN-ANTERO-CORDOBA",null,"CUCUNUBA-CUNDINAMARCA",null,null,null,null,null,"PALESTINA-HUILA",null,null,null,"SAN-ZENON-MAGDALENA",null,"SAN-CARLOS-DE-GUAR0A-META",null,"GUACHUCAL-NARINO",null,"LOURDES-NORTE DE SANTANDER",null,null,null,null,null,null,null,null,null,"CONTRATACION-SANTANDER",null,"SINCELEJO-SUCRE",null,"ICONONZO-TOLIMA",null,"LA-CUMBRE-VALLE",null,null,null,null,null,null,null,"087 - BELGICA"]
[null,null,null,null,null,"A0161 - Actividades de apoyo a la agricultura",null,null,null,null,null,null,null,null,null,"PUTUMAYO",null,"ALGARROBO-MAGDALENA",null,null,null,null,null,null,null,null,null,null,null,null,"CACERES-ANTIOQUIA",null,null,null,null,null,null,null,"NOROSI-BOLIVAR",null,"COMBITA-BOYACA",null,"SUPIA-CALDAS",null,null,null,null,null,"PATIA(EL-BORDO)-CAUCA",null,"TAMALAMEQUE-CESAR",null,"RIOSUCIO-CHOCO",null,"SAN-BERNARDO-DEL-VIENTO-CORDOBA",null,"EL-COLEGIO-CUNDINAMARCA",null,null,null,null,null,"PITAL-HUILA",null,null,null,"SANTA-ANA-MAGDALENA",null,"SAN-JUAN-DE-ARAMA-META",null,"GUAITARILLA-NARINO",null,"MUTISCUA-NORTE DE SANTANDER",null,null,null,null,null,null,null,null,null,"COROMORO-SANTANDER",null,"SUCRE-SUCRE",null,"LERIDA-TOLIMA",null,"LA-UNION-VALLE",null,null,null,null,null,null,null,"088 - BELICE"]
[null,null,null,null,null,"A0162 - Actividades de apoyo a la ganadería",null,null,null,null,null,null,null,null,null,"QUINDIO",null,"ALGECIRAS-HUILA",null,null,null,null,null,null,null,null,null,null,null,null,"CAICEDO-ANTIOQUIA",null,null,null,null,null,null,null,"PINILLOS-BOLIVAR",null,"COPER-BOYACA",null,"VICTORIA-CALDAS",null,null,null,null,null,"PIAMONTE-CAUCA",null,"VALLEDUPAR-CESAR",null,"RÍO-IRO-CHOCO",null,"SAN-CARLOS-CORDOBA",null,"EL-PENON-CUNDINAMARCA",null,null,null,null,null,"PITALITO-HUILA",null,null,null,"SANTA-BÁRBARA-DE-PINTO-MAGDALENA",null,"SAN-JUANITO-META",null,"GUALMATAN-NARINO",null,"OCANA-NORTE DE SANTANDER",null,null,null,null,null,null,null,null,null,"CURITI-SANTANDER",null,"TOLU-SUCRE",null,"LIBANO-TOLIMA",null,"LA-VICTORIA-VALLE",null,null,null,null,null,null,null,"090 - BERMUDAS"]
[null,null,null,null,null,"A0163 - Actividades posteriores a la cosecha",null,null,null,null,null,null,null,null,null,"RISARALDA",null,"ALMAGUER-CAUCA",null,null,null,null,null,null,null,null,null,null,null,null,"CALDAS-ANTIOQUIA",null,null,null,null,null,null,null,"REGIDOR-BOLIVAR",null,"CORRALES-BOYACA",null,"VILLAMARIA-CALDAS",null,null,null,null,null,"PIENDAMO-CAUCA",null,null,null,"RÍO-QUITO-CHOCO",null,"SAN-JOSE-DE-URE-CORDOBA",null,"EL-ROSAL-CUNDINAMARCA",null,null,null,null,null,"RIVERA-HUILA",null,null,null,"SANTA-MARTA-MAGDALENA",null,"SAN-MARTIN-META",null,"ILES-NARINO",null,"PAMPLONA-NORTE DE SANTANDER",null,null,null,null,null,null,null,null,null,"EL-CARMEN-SANTANDER",null,"TOLUVIEJO-SUCRE",null,"MARIQUITA-TOLIMA",null,"OBANDO-VALLE",null,null,null,null,null,null,null,"091 - BELARUS"]
[null,null,null,null,null,"A0164 - Tratamiento de semillas para propagación",null,null,null,null,null,null,null,null,null,"SAN_ANDRES_Y_PROVIDENCIA",null,"ALMEIDA-BOYACA",null,null,null,null,null,null,null,null,null,null,null,null,"CAMPAMENTO-ANTIOQUIA",null,null,null,null,null,null,null,"RIO-VIEJO-BOLIVAR",null,"COVARACHIA-BOYACA",null,"VITERBO-CALDAS",null,null,null,null,null,"POPAYAN-CAUCA",null,null,null,"SAN-JOSE-DEL-PALMAR-CHOCO",null,"SAN-PELAYO-CORDOBA",null,"FACATATIVA-CUNDINAMARCA",null,null,null,null,null,"SALADOBLANCO-HUILA",null,null,null,"SITIONUEVO-MAGDALENA",null,"URIBE-META",null,"IMUES-NARINO",null,"PAMPLONITA-NORTE DE SANTANDER",null,null,null,null,null,null,null,null,null,"EL-GUACAMAYO-SANTANDER",null,null,null,"MELGAR-TOLIMA",null,"PALMIRA-VALLE",null,null,null,null,null,null,null,"093 - BIRMANIA (MYANMAR)"]
[null,null,null,null,null,"A0170 - Caza ordinaria y mediante trampas y actividades de servicios conexas",null,null,null,null,null,null,null,null,null,"SANTANDER",null,"ALPUJARRA-TOLIMA",null,null,null,null,null,null,null,null,null,null,null,null,"CANASGORDAS-ANTIOQUIA",null,null,null,null,null,null,null,"SAN-CRISTÓBAL-BOLIVAR",null,"CUBARA-BOYACA",null,null,null,null,null,null,null,"PUERTO-TEJADA-CAUCA",null,null,null,"SIPI-CHOCO",null,"TIERRALTA-CORDOBA",null,"FOMEQUE-CUNDINAMARCA",null,null,null,null,null,"SAN-AGUSTIN-HUILA",null,null,null,"TENERIFE-MAGDALENA",null,"VILLAVICENCIO-META",null,"IPIALES-NARINO",null,"PUERTO-SANTANDER-NORTE DE SANTANDER",null,null,null,null,null,null,null,null,null,"EL-PEÑON-SANTANDER",null,null,null,"MURILLO-TOLIMA",null,"PRADERA-VALLE",null,null,null,null,null,null,null,"097 - BOLIVIA"]
[null,null,null,null,null,"A0210 - Silvicultura y otras actividades forestales",null,null,null,null,null,null,null,null,null,"SUCRE",null,"ALTAMIRA-HUILA",null,null,null,null,null,null,null,null,null,null,null,null,"CARACOLI-ANTIOQUIA",null,null,null,null,null,null,null,"SAN-ESTANISLAO-BOLIVAR",null,"CUCAITA-BOYACA",null,null,null,null,null,null,null,"PURACE-CAUCA",null,null,null,"TADO-CHOCO",null,"TUCHIN-CORDOBA",null,"FOSCA-CUNDINAMARCA",null,null,null,null,null,"SANTAMARIA-HUILA",null,null,null,"ZAPAYÁN-MAGDALENA",null,"VISTA-HERMOSA-META",null,"LA-CRUZ-NARINO",null,"RAGONVALIA-NORTE DE SANTANDER",null,null,null,null,null,null,null,null,null,"EL-PLAYON-SANTANDER",null,null,null,"NATAGAIMA-TOLIMA",null,"RESTREPO-VALLE",null,null,null,null,null,null,null,"101 - BOTSWANA"]
[null,null,null,null,null,"A0220 - Extracción de madera",null,null,null,null,null,null,null,null,null,"TOLIMA",null,"ALTO-BAUDO-CHOCO",null,null,null,null,null,null,null,null,null,null,null,null,"CARAMANTA-ANTIOQUIA",null,null,null,null,null,null,null,"SAN-FERNANDO-BOLIVAR",null,"CUITIVA-BOYACA",null,null,null,null,null,null,null,"ROSAS-CAUCA",null,null,null,"UNGUIA-CHOCO",null,"VALENCIA-CORDOBA",null,"FUNZA-CUNDINAMARCA",null,null,null,null,null,"SUAZA-HUILA",null,null,null,"ZONA-BANANERA-MAGDALENA",null,null,null,"LA-FLORIDA-NARINO",null,"SALAZAR-NORTE DE SANTANDER",null,null,null,null,null,null,null,null,null,"ENCINO-SANTANDER",null,null,null,"ORTEGA-TOLIMA",null,"RIOFRIO-VALLE",null,null,null,null,null,null,null,"105 - BRASIL"]
[null,null,null,null,null,"A0230 - Recolección de productos forestales diferentes a la madera",null,null,null,null,null,null,null,null,null,"VALLE",null,"ALTOS-DEL-ROSARIO-BOLIVAR",null,null,null,null,null,null,null,null,null,null,null,null,"CAREPA-ANTIOQUIA",null,null,null,null,null,null,null,"SAN-JACINTO-BOLIVAR",null,"DUITAMA-BOYACA",null,null,null,null,null,null,null,"SAN-SEBASTIAN-CAUCA",null,null,null,"UNIÓN-PANAMERICANA-CHOCO",null,null,null,"FUQUENE-CUNDINAMARCA",null,null,null,null,null,"TARQUI-HUILA",null,null,null,null,null,null,null,"LA-LLANADA-NARINO",null,"SAN-CALIXTO-NORTE DE SANTANDER",null,null,null,null,null,null,null,null,null,"ENCISO-SANTANDER",null,null,null,"PALOCABILDO-TOLIMA",null,"ROLDANILLO-VALLE",null,null,null,null,null,null,null,"108 - BRUNEI DARUSSALAM"]
[null,null,null,null,null,"A0240 - Servicios de apoyo a la silvicultura",null,null,null,null,null,null,null,null,null,"VAUPES",null,"ALVARADO-TOLIMA",null,null,null,null,null,null,null,null,null,null,null,null,"CARMEN-DE-VIBORAL-ANTIOQUIA",null,null,null,null,null,null,null,"SAN-JACINTO-DEL-CAUCA-BOLIVAR",null,"EL-COCUY-BOYACA",null,null,null,null,null,null,null,"SANTA-ROSA-CAUCA",null,null,null,null,null,null,null,"FUSAGASUGA-CUNDINAMARCA",null,null,null,null,null,"TELLO-HUILA",null,null,null,null,null,null,null,"LA-TOLA-NARINO",null,"SAN-CAYETANO-NORTE DE SANTANDER",null,null,null,null,null,null,null,null,null,"FLORIAN-SANTANDER",null,null,null,"PIEDRAS-TOLIMA",null,"SAN-PEDRO-VALLE",null,null,null,null,null,null,null,"111 - BULGARIA"]
[null,null,null,null,null,"A0311 - Pesca marítima",null,null,null,null,null,null,null,null,null,"VICHADA",null,"AMAGA-ANTIOQUIA",null,null,null,null,null,null,null,null,null,null,null,null,"CAROLINA-ANTIOQUIA",null,null,null,null,null,null,null,"SAN-JUAN-NEPOMUCENO-BOLIVAR",null,"EL-ESPINO-BOYACA",null,null,null,null,null,null,null,"SANTANDER-DE-QUILICHAO-CAUCA",null,null,null,null,null,null,null,"GACHALA-CUNDINAMARCA",null,null,null,null,null,"TERUEL-HUILA",null,null,null,null,null,null,null,"LA-UNION-NARINO",null,"SANTIAGO-NORTE DE SANTANDER",null,null,null,null,null,null,null,null,null,"FLORIDABLANCA-SANTANDER",null,null,null,"PLANADAS-TOLIMA",null,"SEVILLA-VALLE",null,null,null,null,null,null,null,"115 - BURUNDI"]
[null,null,null,null,null,"A0312 - Pesca de agua dulce",null,null,null,null,null,null,null,null,null,null,null,"AMALFI-ANTIOQUIA",null,null,null,null,null,null,null,null,null,null,null,null,"CAUCASIA-ANTIOQUIA",null,null,null,null,null,null,null,"SAN-MARTIN-DE-LOBA-BOLIVAR",null,"FIRAVITOBA-BOYACA",null,null,null,null,null,null,null,"SILVIA-CAUCA",null,null,null,null,null,null,null,"GACHANCIPA-CUNDINAMARCA",null,null,null,null,null,"TESALIA-HUILA",null,null,null,null,null,null,null,"LEIVA-NARINO",null,"SARDINATA-NORTE DE SANTANDER",null,null,null,null,null,null,null,null,null,"GALAN-SANTANDER",null,null,null,"PRADO-TOLIMA",null,"TORO-VALLE",null,null,null,null,null,null,null,"119 - BUTAN"]
[null,null,null,null,null,"A0321 - Acuicultura marítima",null,null,null,null,null,null,null,null,null,null,null,"AMBALEMA-TOLIMA",null,null,null,null,null,null,null,null,null,null,null,null,"CHIGORODO-ANTIOQUIA",null,null,null,null,null,null,null,"SAN-PABLO-BOLIVAR",null,"FLORESTA-BOYACA",null,null,null,null,null,null,null,"SOTARA-CAUCA",null,null,null,null,null,null,null,"GACHETA-CUNDINAMARCA",null,null,null,null,null,"TIMANA-HUILA",null,null,null,null,null,null,null,"LINARES-NARINO",null,"SILOS-NORTE DE SANTANDER",null,null,null,null,null,null,null,null,null,"GAMBITA-SANTANDER",null,null,null,"PURIFICACION-TOLIMA",null,"TRUJILLO-VALLE",null,null,null,null,null,null,null,"127 - CABO VERDE"]
[null,null,null,null,null,"A0322 - Acuicultura de agua dulce",null,null,null,null,null,null,null,null,null,null,null,"ANAPOIMA-CUNDINAMARCA",null,null,null,null,null,null,null,null,null,null,null,null,"CISNEROS-ANTIOQUIA",null,null,null,null,null,null,null,"SANTA-CATALINA-BOLIVAR",null,"GACHANTIVA-BOYACA",null,null,null,null,null,null,null,"SUCRE-CAUCA",null,null,null,null,null,null,null,"GAMA-CUNDINAMARCA",null,null,null,null,null,"VILLAVIEJA-HUILA",null,null,null,null,null,null,null,"LOS-ANDES-NARINO",null,"TEORAMA-NORTE DE SANTANDER",null,null,null,null,null,null,null,null,null,"GIRON-SANTANDER",null,null,null,"RIOBLANCO-TOLIMA",null,"TULUA-VALLE",null,null,null,null,null,null,null,"137 - CAIMAN - ISLAS"]
[null,null,null,null,null,"B0510 - Extracción de hulla (carbón de piedra)",null,null,null,null,null,null,null,null,null,null,null,"ANCUYA-NARINO",null,null,null,null,null,null,null,null,null,null,null,null,"COCORNA-ANTIOQUIA",null,null,null,null,null,null,null,"SANTA-ROSA-BOLIVAR",null,"GAMEZA-BOYACA",null,null,null,null,null,null,null,"SUÁREZ-CAUCA",null,null,null,null,null,null,null,"GIRARDOT-CUNDINAMARCA",null,null,null,null,null,"YAGUARA-HUILA",null,null,null,null,null,null,null,"MAGUI-NARINO",null,"TIBU-NORTE DE SANTANDER",null,null,null,null,null,null,null,null,null,"GUACA-SANTANDER",null,null,null,"RONCESVALLES-TOLIMA",null,"ULLOA-VALLE",null,null,null,null,null,null,null,"141 - CAMBOYA (KAMPUCHEA)"]
[null,null,null,null,null,"B0520 - Extracción de carbón lignito",null,null,null,null,null,null,null,null,null,null,null,"ANDALUCIA-VALLE",null,null,null,null,null,null,null,null,null,null,null,null,"CONCEPCION-ANTIOQUIA",null,null,null,null,null,null,null,"SANTA-ROSA-DEL-SUR-BOLIVAR",null,"GARAGOA-BOYACA",null,null,null,null,null,null,null,"TIMBIO-CAUCA",null,null,null,null,null,null,null,"GRANADA-CUNDINAMARCA",null,null,null,null,null,null,null,null,null,null,null,null,null,"MALLAMA-NARINO",null,"TOLEDO-NORTE DE SANTANDER",null,null,null,null,null,null,null,null,null,"GUADALUPE-SANTANDER",null,null,null,"ROVIRA-TOLIMA",null,"VERSALLES-VALLE",null,null,null,null,null,null,null,"145 - CAMERUN - REPUBLICA UNIDA DEL"]
[null,null,null,null,null,"B0610 - Extracción de petróleo crudo",null,null,null,null,null,null,null,null,null,null,null,"ANDES-ANTIOQUIA",null,null,null,null,null,null,null,null,null,null,null,null,"CONCORDIA-ANTIOQUIA",null,null,null,null,null,null,null,"SIMITI-BOLIVAR",null,"GUACAMAYAS-BOYACA",null,null,null,null,null,null,null,"TIMBIQUI-CAUCA",null,null,null,null,null,null,null,"GUACHETA-CUNDINAMARCA",null,null,null,null,null,null,null,null,null,null,null,null,null,"MOSQUERA-NARINO",null,"VILLA-CARO-NORTE DE SANTANDER",null,null,null,null,null,null,null,null,null,"GUAPOTA-SANTANDER",null,null,null,"SALDANA-TOLIMA",null,"VIJES-VALLE",null,null,null,null,null,null,null,"149 - CANADA"]
[null,null,null,null,null,"B0620 - Extracción de gas natural",null,null,null,null,null,null,null,null,null,null,null,"ANGELOPOLIS-ANTIOQUIA",null,null,null,null,null,null,null,null,null,null,null,null,"COPACABANA-ANTIOQUIA",null,null,null,null,null,null,null,"SOPLAVIENTO-BOLIVAR",null,"GUATEQUE-BOYACA",null,null,null,null,null,null,null,"TORIBIO-CAUCA",null,null,null,null,null,null,null,"GUADUAS-CUNDINAMARCA",null,null,null,null,null,null,null,null,null,null,null,null,null,"NARIÑO-NARINO",null,"VILLA-ROSARIO-NORTE DE SANTANDER",null,null,null,null,null,null,null,null,null,"GUAVATA-SANTANDER",null,null,null,"SAN-ANTONIO-TOLIMA",null,"YOTOCO-VALLE",null,null,null,null,null,null,null,"159 - SANTA SEDE"]
[null,null,null,null,null,"B0710 - Extracción de minerales de hierro",null,null,null,null,null,null,null,null,null,null,null,"ANGOSTURA-ANTIOQUIA",null,null,null,null,null,null,null,null,null,null,null,null,"DABEIBA-ANTIOQUIA",null,null,null,null,null,null,null,"TALAIGUA-NUEVO-BOLIVAR",null,"GUAYATA-BOYACA",null,null,null,null,null,null,null,"TOTORO-CAUCA",null,null,null,null,null,null,null,"GUASCA-CUNDINAMARCA",null,null,null,null,null,null,null,null,null,null,null,null,null,"OLAYA-HERRERA-NARINO",null,null,null,null,null,null,null,null,null,null,null,"GUEPSA-SANTANDER",null,null,null,"SAN-LUIS-TOLIMA",null,"YUMBO-VALLE",null,null,null,null,null,null,null,"165 - COCOS (KEELING) - ISLAS"]
[null,null,null,null,null,"B0721 - Extracción de minerales de uranio y de torio",null,null,null,null,null,null,null,null,null,null,null,"ANOLAIMA-CUNDINAMARCA",null,null,null,null,null,null,null,null,null,null,null,null,"DON-MATIAS-ANTIOQUIA",null,null,null,null,null,null,null,"TIQUISIO-BOLIVAR",null,"GUICAN-BOYACA",null,null,null,null,null,null,null,"VILLA-RICA-CAUCA",null,null,null,null,null,null,null,"GUATAQUI-CUNDINAMARCA",null,null,null,null,null,null,null,null,null,null,null,null,null,"OSPINA-NARINO",null,null,null,null,null,null,null,null,null,null,null,"HATO-SANTANDER",null,null,null,"SANTA-ISABEL-TOLIMA",null,"ZARZAL-VALLE",null,null,null,null,null,null,null,"169 - COLOMBIA"]
[null,null,null,null,null,"B0722 - Extracción de oro y otros metales preciosos",null,null,null,null,null,null,null,null,null,null,null,"ANORI-ANTIOQUIA",null,null,null,null,null,null,null,null,null,null,null,null,"EBEJICO-ANTIOQUIA",null,null,null,null,null,null,null,"TURBACO-BOLIVAR",null,"IZA-BOYACA",null,null,null,null,null,null,null,null,null,null,null,null,null,null,null,"GUATAVITA-CUNDINAMARCA",null,null,null,null,null,null,null,null,null,null,null,null,null,"PASTO-NARINO",null,null,null,null,null,null,null,null,null,null,null,"JESUS-MARIA-SANTANDER",null,null,null,"SUAREZ-TOLIMA",null,null,null,null,null,null,null,null,null,"173 - COMORAS"]
[null,null,null,null,null,"B0723 - Extracción de minerales de níquel",null,null,null,null,null,null,null,null,null,null,null,"ANSERMA-CALDAS",null,null,null,null,null,null,null,null,null,null,null,null,"EL-BAGRE-ANTIOQUIA",null,null,null,null,null,null,null,"TURBANA-BOLIVAR",null,"JENESANO-BOYACA",null,null,null,null,null,null,null,null,null,null,null,null,null,null,null,"GUAYABAL-DE-SIQUIMA-CUNDINAMARCA",null,null,null,null,null,null,null,null,null,null,null,null,null,"POLICARPA-NARINO",null,null,null,null,null,null,null,null,null,null,null,"JORDAN-SANTANDER",null,null,null,"VALLE-SAN-JUAN-TOLIMA",null,null,null,null,null,null,null,null,null,"177 - CONGO"]
[null,null,null,null,null,"B0729 - Extracción de otros minerales metalíferos no ferrosos n.c.p.",null,null,null,null,null,null,null,null,null,null,null,"ANSERMANUEVO-VALLE",null,null,null,null,null,null,null,null,null,null,null,null,"ENTRERRIOS-ANTIOQUIA",null,null,null,null,null,null,null,"VILLANUEVA-BOLIVAR",null,"JERICO-BOYACA",null,null,null,null,null,null,null,null,null,null,null,null,null,null,null,"GUAYABETAL-CUNDINAMARCA",null,null,null,null,null,null,null,null,null,null,null,null,null,"POTOSI-NARINO",null,null,null,null,null,null,null,null,null,null,null,"LA-BELLEZA-SANTANDER",null,null,null,"VENADILLO-TOLIMA",null,null,null,null,null,null,null,null,null,"183 - COOK - ISLAS"]
[null,null,null,null,null,"B0811 - Extracción de piedra, arena, arcillas comunes, yeso y anhidrita",null,null,null,null,null,null,null,null,null,null,null,"ANTIOQUIA-ANTIOQUIA",null,null,null,null,null,null,null,null,null,null,null,null,"ENVIGADO-ANTIOQUIA",null,null,null,null,null,null,null,"ZAMBRANO-BOLIVAR",null,"LA-CAPILLA-BOYACA",null,null,null,null,null,null,null,null,null,null,null,null,null,null,null,"GUTIERREZ-CUNDINAMARCA",null,null,null,null,null,null,null,null,null,null,null,null,null,"PROVIDENCIA-NARINO",null,null,null,null,null,null,null,null,null,null,null,"LA-PAZ-SANTANDER",null,null,null,"VILLAHERMOSA-TOLIMA",null,null,null,null,null,null,null,null,null,"187 - COREA (NORTE) - REPUBLICA POPULAR DEMOCRATICA DE"]
[null,null,null,null,null,"B0812 - Extracción de arcillas de uso industrial, caliza, caolín y bentonitas",null,null,null,null,null,null,null,null,null,null,null,"ANZA-ANTIOQUIA",null,null,null,null,null,null,null,null,null,null,null,null,"FREDONIA-ANTIOQUIA",null,null,null,null,null,null,null,null,null,"LA-UVITA-BOYACA",null,null,null,null,null,null,null,null,null,null,null,null,null,null,null,"JERUSALEN-CUNDINAMARCA",null,null,null,null,null,null,null,null,null,null,null,null,null,"PUERRES-NARINO",null,null,null,null,null,null,null,null,null,null,null,"LANDAZURI-SANTANDER",null,null,null,"VILLARRICA-TOLIMA",null,null,null,null,null,null,null,null,null,"190 - COREA (SUR) - REPUBLICA DE"]
[null,null,null,null,null,"B0820 - Extracción de esmeraldas, piedras preciosas y semipreciosas",null,null,null,null,null,null,null,null,null,null,null,"ANZOATEGUI-TOLIMA",null,null,null,null,null,null,null,null,null,null,null,null,"FRONTINO-ANTIOQUIA",null,null,null,null,null,null,null,null,null,"LA-VICTORIA-BOYACA",null,null,null,null,null,null,null,null,null,null,null,null,null,null,null,"JUNIN-CUNDINAMARCA",null,null,null,null,null,null,null,null,null,null,null,null,null,"PUPIALES-NARINO",null,null,null,null,null,null,null,null,null,null,null,"LEBRIJA-SANTANDER",null,null,null,null,null,null,null,null,null,null,null,null,null,"193 - COSTA DE MARFIL"]
[null,null,null,null,null,"B0891 - Extracción de minerales para la fabricación de abonos y productos químicos",null,null,null,null,null,null,null,null,null,null,null,"APARTADO-ANTIOQUIA",null,null,null,null,null,null,null,null,null,null,null,null,"GIRALDO-ANTIOQUIA",null,null,null,null,null,null,null,null,null,"LABRANZAGRANDE-BOYACA",null,null,null,null,null,null,null,null,null,null,null,null,null,null,null,"LA-CALERA-CUNDINAMARCA",null,null,null,null,null,null,null,null,null,null,null,null,null,"RICAURTE-NARINO",null,null,null,null,null,null,null,null,null,null,null,"LOS-SANTOS-SANTANDER",null,null,null,null,null,null,null,null,null,null,null,null,null,"196 - COSTA RICA"]
[null,null,null,null,null,"B0892 - Extracción de halita (sal)",null,null,null,null,null,null,null,null,null,null,null,"APIA-RISARALDA",null,null,null,null,null,null,null,null,null,null,null,null,"GIRARDOTA-ANTIOQUIA",null,null,null,null,null,null,null,null,null,"MACANAL-BOYACA",null,null,null,null,null,null,null,null,null,null,null,null,null,null,null,"LA-MESA-CUNDINAMARCA",null,null,null,null,null,null,null,null,null,null,null,null,null,"ROBERTO-PAYAN-NARINO",null,null,null,null,null,null,null,null,null,null,null,"MACARAVITA-SANTANDER",null,null,null,null,null,null,null,null,null,null,null,null,null,"198 - CROACIA"]
[null,null,null,null,null,"B0899 - Extracción de otros minerales no metálicos n.c.p.",null,null,null,null,null,null,null,null,null,null,null,"APULO-CUNDINAMARCA",null,null,null,null,null,null,null,null,null,null,null,null,"GOMEZ-PLATA-ANTIOQUIA",null,null,null,null,null,null,null,null,null,"MARIPI-BOYACA",null,null,null,null,null,null,null,null,null,null,null,null,null,null,null,"LA-PALMA-CUNDINAMARCA",null,null,null,null,null,null,null,null,null,null,null,null,null,"SAMANIEGO-NARINO",null,null,null,null,null,null,null,null,null,null,null,"MALAGA-SANTANDER",null,null,null,null,null,null,null,null,null,null,null,null,null,"199 - CUBA"]
[null,null,null,null,null,"B0910 - Actividades de apoyo para la extracción de petróleo y de gas natural",null,null,null,null,null,null,null,null,null,null,null,"AQUITANIA-BOYACA",null,null,null,null,null,null,null,null,null,null,null,null,"GRANADA-ANTIOQUIA",null,null,null,null,null,null,null,null,null,"MIRAFLORES-BOYACA",null,null,null,null,null,null,null,null,null,null,null,null,null,null,null,"LA-PENA-CUNDINAMARCA",null,null,null,null,null,null,null,null,null,null,null,null,null,"SAN-BERNARDO-NARINO",null,null,null,null,null,null,null,null,null,null,null,"MATANZA-SANTANDER",null,null,null,null,null,null,null,null,null,null,null,null,null,"203 - CHAD"]
[null,null,null,null,null,"B0990 - Actividades de apoyo para otras actividades de explotación de minas y canteras",null,null,null,null,null,null,null,null,null,null,null,"ARACATACA-MAGDALENA",null,null,null,null,null,null,null,null,null,null,null,null,"GUADALUPE-ANTIOQUIA",null,null,null,null,null,null,null,null,null,"MONGUA-BOYACA",null,null,null,null,null,null,null,null,null,null,null,null,null,null,null,"LA-VEGA-CUNDINAMARCA",null,null,null,null,null,null,null,null,null,null,null,null,null,"SAN-LORENZO-NARINO",null,null,null,null,null,null,null,null,null,null,null,"MOGOTES-SANTANDER",null,null,null,null,null,null,null,null,null,null,null,null,null,"211 - CHILE"]
[null,null,null,null,null,"C1011 - Procesamiento y conservación de carne y productos cárnicos",null,null,null,null,null,null,null,null,null,null,null,"ARANZAZU-CALDAS",null,null,null,null,null,null,null,null,null,null,null,null,"GUARNE-ANTIOQUIA",null,null,null,null,null,null,null,null,null,"MONGUI-BOYACA",null,null,null,null,null,null,null,null,null,null,null,null,null,null,null,"LENGUAZAQUE-CUNDINAMARCA",null,null,null,null,null,null,null,null,null,null,null,null,null,"SAN-PABLO-NARINO",null,null,null,null,null,null,null,null,null,null,null,"MOLAGAVITA-SANTANDER",null,null,null,null,null,null,null,null,null,null,null,null,null,"215 - CHINA"]
[null,null,null,null,null,"C1012 - Procesamiento y conservación de pescados, crustáceos y moluscos",null,null,null,null,null,null,null,null,null,null,null,"ARATOCA-SANTANDER",null,null,null,null,null,null,null,null,null,null,null,null,"GUATAPE-ANTIOQUIA",null,null,null,null,null,null,null,null,null,"MONIQUIRA-BOYACA",null,null,null,null,null,null,null,null,null,null,null,null,null,null,null,"MACHETA-CUNDINAMARCA",null,null,null,null,null,null,null,null,null,null,null,null,null,"SAN-PEDRO-DE-CARTAGO-NARINO",null,null,null,null,null,null,null,null,null,null,null,"OCAMONTE-SANTANDER",null,null,null,null,null,null,null,null,null,null,null,null,null,"218 - TAIWAN (FORMOSA)"]
[null,null,null,null,null,"C1020 - Procesamiento y conservación de frutas, legumbres, hortalizas y tubérculos",null,null,null,null,null,null,null,null,null,null,null,"ARAUCA-ARAUCA",null,null,null,null,null,null,null,null,null,null,null,null,"HELICONIA-ANTIOQUIA",null,null,null,null,null,null,null,null,null,"MOTAVITA-BOYACA",null,null,null,null,null,null,null,null,null,null,null,null,null,null,null,"MADRID-CUNDINAMARCA",null,null,null,null,null,null,null,null,null,null,null,null,null,"SANDONA-NARINO",null,null,null,null,null,null,null,null,null,null,null,"OIBA-SANTANDER",null,null,null,null,null,null,null,null,null,null,null,null,null,"221 - CHIPRE"]
[null,null,null,null,null,"C1030 - Elaboración de aceites y grasas de origen vegetal y animal",null,null,null,null,null,null,null,null,null,null,null,"ARAUQUITA-ARAUCA",null,null,null,null,null,null,null,null,null,null,null,null,"HISPANIA-ANTIOQUIA",null,null,null,null,null,null,null,null,null,"MUZO-BOYACA",null,null,null,null,null,null,null,null,null,null,null,null,null,null,null,"MANTA-CUNDINAMARCA",null,null,null,null,null,null,null,null,null,null,null,null,null,"SANTA-BARBARA-NARINO",null,null,null,null,null,null,null,null,null,null,null,"ONZAGA-SANTANDER",null,null,null,null,null,null,null,null,null,null,null,null,null,"229 - BENIN"]
[null,null,null,null,null,"C1040 - Elaboración de productos lácteos",null,null,null,null,null,null,null,null,null,null,null,"ARBELAEZ-CUNDINAMARCA",null,null,null,null,null,null,null,null,null,null,null,null,"ITAGUI-ANTIOQUIA",null,null,null,null,null,null,null,null,null,"NOBSA-BOYACA",null,null,null,null,null,null,null,null,null,null,null,null,null,null,null,"MEDINA-CUNDINAMARCA",null,null,null,null,null,null,null,null,null,null,null,null,null,"SANTACRUZ-NARINO",null,null,null,null,null,null,null,null,null,null,null,"PALMAR-SANTANDER",null,null,null,null,null,null,null,null,null,null,null,null,null,"232 - DINAMARCA"]
[null,null,null,null,null,"C1051 - Elaboración de productos de molinería",null,null,null,null,null,null,null,null,null,null,null,"ARBOLEDA-NARINO",null,null,null,null,null,null,null,null,null,null,null,null,"ITUANGO-ANTIOQUIA",null,null,null,null,null,null,null,null,null,"NUEVO-COLON-BOYACA",null,null,null,null,null,null,null,null,null,null,null,null,null,null,null,"MOSQUERA-CUNDINAMARCA",null,null,null,null,null,null,null,null,null,null,null,null,null,"SAPUYES-NARINO",null,null,null,null,null,null,null,null,null,null,null,"PALMAS-DEL-SOCORRO-SANTANDER",null,null,null,null,null,null,null,null,null,null,null,null,null,"235 - DOMINICA"]
[null,null,null,null,null,"C1052 - Elaboración de almidones y productos derivados del almidón",null,null,null,null,null,null,null,null,null,null,null,"ARBOLEDAS-NORTE DE SANTANDER",null,null,null,null,null,null,null,null,null,null,null,null,"JARDIN-ANTIOQUIA",null,null,null,null,null,null,null,null,null,"OICATA-BOYACA",null,null,null,null,null,null,null,null,null,null,null,null,null,null,null,"NARINO-CUNDINAMARCA",null,null,null,null,null,null,null,null,null,null,null,null,null,"TAMINANGO-NARINO",null,null,null,null,null,null,null,null,null,null,null,"PARAMO-SANTANDER",null,null,null,null,null,null,null,null,null,null,null,null,null,"239 - ECUADOR"]
[null,null,null,null,null,"C1061 - Trilla de café",null,null,null,null,null,null,null,null,null,null,null,"ARBOLETES-ANTIOQUIA",null,null,null,null,null,null,null,null,null,null,null,null,"JERICO-ANTIOQUIA",null,null,null,null,null,null,null,null,null,"OTANCHE-BOYACA",null,null,null,null,null,null,null,null,null,null,null,null,null,null,null,"NEMOCON-CUNDINAMARCA",null,null,null,null,null,null,null,null,null,null,null,null,null,"TANGUA-NARINO",null,null,null,null,null,null,null,null,null,null,null,"PIEDECUESTA-SANTANDER",null,null,null,null,null,null,null,null,null,null,null,null,null,"240 - EGIPTO"]
[null,null,null,null,null,"C1062 - Descafeinado, tostión y molienda del café",null,null,null,null,null,null,null,null,null,null,null,"ARCABUCO-BOYACA",null,null,null,null,null,null,null,null,null,null,null,null,"LA-CEJA-ANTIOQUIA",null,null,null,null,null,null,null,null,null,"PACHAVITA-BOYACA",null,null,null,null,null,null,null,null,null,null,null,null,null,null,null,"NILO-CUNDINAMARCA",null,null,null,null,null,null,null,null,null,null,null,null,null,"TUMACO-NARINO",null,null,null,null,null,null,null,null,null,null,null,"PINCHOTE-SANTANDER",null,null,null,null,null,null,null,null,null,null,null,null,null,"242 - EL SALVADOR"]
[null,null,null,null,null,"C1063 - Otros derivados del café",null,null,null,null,null,null,null,null,null,null,null,"ARENAL-BOLIVAR",null,null,null,null,null,null,null,null,null,null,null,null,"LA-ESTRELLA-ANTIOQUIA",null,null,null,null,null,null,null,null,null,"PAEZ-BOYACA",null,null,null,null,null,null,null,null,null,null,null,null,null,null,null,"NIMAIMA-CUNDINAMARCA",null,null,null,null,null,null,null,null,null,null,null,null,null,"TUQUERRES-NARINO",null,null,null,null,null,null,null,null,null,null,null,"PUENTE-NACIONAL-SANTANDER",null,null,null,null,null,null,null,null,null,null,null,null,null,"243 - ERITREA"]
[null,null,null,null,null,"C1071 - Elaboración y refinación de azúcar",null,null,null,null,null,null,null,null,null,null,null,"ARGELIA-ANTIOQUIA",null,null,null,null,null,null,null,null,null,null,null,null,"LA-PINTADA-ANTIOQUIA",null,null,null,null,null,null,null,null,null,"PAIPA-BOYACA",null,null,null,null,null,null,null,null,null,null,null,null,null,null,null,"NOCAIMA-CUNDINAMARCA",null,null,null,null,null,null,null,null,null,null,null,null,null,"YACUANQUER-NARINO",null,null,null,null,null,null,null,null,null,null,null,"PUERTO-PARRA-SANTANDER",null,null,null,null,null,null,null,null,null,null,null,null,null,"244 - EMIRATOS ARABES UNIDOS"]
[null,null,null,null,null,"C1072 - Elaboración de panela",null,null,null,null,null,null,null,null,null,null,null,"ARGELIA-CAUCA",null,null,null,null,null,null,null,null,null,null,null,null,"LA-UNION-ANTIOQUIA",null,null,null,null,null,null,null,null,null,"PAJARITO-BOYACA",null,null,null,null,null,null,null,null,null,null,null,null,null,null,null,"PACHO-CUNDINAMARCA",null,null,null,null,null,null,null,null,null,null,null,null,null,null,null,null,null,null,null,null,null,null,null,null,null,"PUERTO-WILCHES-SANTANDER",null,null,null,null,null,null,null,null,null,null,null,null,null,"245 - ESPAÑA"]
[null,null,null,null,null,"C1081 - Elaboración de productos de panadería",null,null,null,null,null,null,null,null,null,null,null,"ARGELIA-VALLE",null,null,null,null,null,null,null,null,null,null,null,null,"LIBORINA-ANTIOQUIA",null,null,null,null,null,null,null,null,null,"PANQUEBA-BOYACA",null,null,null,null,null,null,null,null,null,null,null,null,null,null,null,"PAIME-CUNDINAMARCA",null,null,null,null,null,null,null,null,null,null,null,null,null,null,null,null,null,null,null,null,null,null,null,null,null,"RIONEGRO-SANTANDER",null,null,null,null,null,null,null,null,null,null,null,null,null,"246 - ESLOVAQUIA"]
[null,null,null,null,null,"C1082 - Elaboración de cacao, chocolate y productos de confitería",null,null,null,null,null,null,null,null,null,null,null,"ARIGUANI-MAGDALENA",null,null,null,null,null,null,null,null,null,null,null,null,"MACEO-ANTIOQUIA",null,null,null,null,null,null,null,null,null,"PAUNA-BOYACA",null,null,null,null,null,null,null,null,null,null,null,null,null,null,null,"PANDI-CUNDINAMARCA",null,null,null,null,null,null,null,null,null,null,null,null,null,null,null,null,null,null,null,null,null,null,null,null,null,"SABANA-DE-TORRES-SANTANDER",null,null,null,null,null,null,null,null,null,null,null,null,null,"247 - ESLOVENIA"]
[null,null,null,null,null,"C1083 - Elaboración de macarrones, fideos, alcuzcuz y productos farináceos similares",null,null,null,null,null,null,null,null,null,null,null,"ARJONA-BOLIVAR",null,null,null,null,null,null,null,null,null,null,null,null,"MARINILLA-ANTIOQUIA",null,null,null,null,null,null,null,null,null,"PAYA-BOYACA",null,null,null,null,null,null,null,null,null,null,null,null,null,null,null,"PARATEBUENO-CUNDINAMARCA",null,null,null,null,null,null,null,null,null,null,null,null,null,null,null,null,null,null,null,null,null,null,null,null,null,"SAN-ANDRES-SANTANDER",null,null,null,null,null,null,null,null,null,null,null,null,null,"249 - ESTADOS UNIDOS"]
[null,null,null,null,null,"C1084 - Elaboración de comidas y platos preparados",null,null,null,null,null,null,null,null,null,null,null,"ARMENIA-ANTIOQUIA",null,null,null,null,null,null,null,null,null,null,null,null,"MEDELLIN-ANTIOQUIA",null,null,null,null,null,null,null,null,null,"PAZ-DE-RIO-BOYACA",null,null,null,null,null,null,null,null,null,null,null,null,null,null,null,"PASCA-CUNDINAMARCA",null,null,null,null,null,null,null,null,null,null,null,null,null,null,null,null,null,null,null,null,null,null,null,null,null,"SAN-BENITO-SANTANDER",null,null,null,null,null,null,null,null,null,null,null,null,null,"251- ESTONIA"]
[null,null,null,null,null,"C1089 - Elaboración de otros productos alimenticios n.c.p.",null,null,null,null,null,null,null,null,null,null,null,"ARMENIA-QUINDIO",null,null,null,null,null,null,null,null,null,null,null,null,"MONTEBELLO-ANTIOQUIA",null,null,null,null,null,null,null,null,null,"PESCA-BOYACA",null,null,null,null,null,null,null,null,null,null,null,null,null,null,null,"PUERTO-SALGAR-CUNDINAMARCA",null,null,null,null,null,null,null,null,null,null,null,null,null,null,null,null,null,null,null,null,null,null,null,null,null,"SAN-GIL-SANTANDER",null,null,null,null,null,null,null,null,null,null,null,null,null,"253 - ETIOPIA"]
[null,null,null,null,null,"C1090 - Elaboración de alimentos preparados para animales",null,null,null,null,null,null,null,null,null,null,null,"ARMERO-TOLIMA",null,null,null,null,null,null,null,null,null,null,null,null,"MURINDO-ANTIOQUIA",null,null,null,null,null,null,null,null,null,"PISVA-BOYACA",null,null,null,null,null,null,null,null,null,null,null,null,null,null,null,"PULI-CUNDINAMARCA",null,null,null,null,null,null,null,null,null,null,null,null,null,null,null,null,null,null,null,null,null,null,null,null,null,"SAN-JOAQUIN-SANTANDER",null,null,null,null,null,null,null,null,null,null,null,null,null,"259 - FEROE - ISLAS"]
[null,null,null,null,null,"C1101 - Destilación, rectificación y mezcla de bebidas alcohólicas",null,null,null,null,null,null,null,null,null,null,null,"ARROYOHONDO-BOLIVAR",null,null,null,null,null,null,null,null,null,null,null,null,"MUTATA-ANTIOQUIA",null,null,null,null,null,null,null,null,null,"PUERTO-BOYACA-BOYACA",null,null,null,null,null,null,null,null,null,null,null,null,null,null,null,"QUEBRADANEGRA-CUNDINAMARCA",null,null,null,null,null,null,null,null,null,null,null,null,null,null,null,null,null,null,null,null,null,null,null,null,null,"SAN-JOSE-DE-MIRANDA-SANTANDER",null,null,null,null,null,null,null,null,null,null,null,null,null,"267 - FILIPINAS"]
[null,null,null,null,null,"C1102 - Elaboración de bebidas fermentadas no destiladas",null,null,null,null,null,null,null,null,null,null,null,"ASTREA-CESAR",null,null,null,null,null,null,null,null,null,null,null,null,"NARINO-ANTIOQUIA",null,null,null,null,null,null,null,null,null,"QUIPAMA-BOYACA",null,null,null,null,null,null,null,null,null,null,null,null,null,null,null,"QUETAME-CUNDINAMARCA",null,null,null,null,null,null,null,null,null,null,null,null,null,null,null,null,null,null,null,null,null,null,null,null,null,"SAN-MIGUEL-SANTANDER",null,null,null,null,null,null,null,null,null,null,null,null,null,"271 - FINLANDIA"]
[null,null,null,null,null,"C1103 - Producción de malta, elaboración de cervezas y otras bebidas malteadas",null,null,null,null,null,null,null,null,null,null,null,"ATACO-TOLIMA",null,null,null,null,null,null,null,null,null,null,null,null,"NECHI-ANTIOQUIA",null,null,null,null,null,null,null,null,null,"RAMIRIQUI-BOYACA",null,null,null,null,null,null,null,null,null,null,null,null,null,null,null,"QUIPILE-CUNDINAMARCA",null,null,null,null,null,null,null,null,null,null,null,null,null,null,null,null,null,null,null,null,null,null,null,null,null,"SAN-VICENTE-DE-CHUCURI-SANTANDER",null,null,null,null,null,null,null,null,null,null,null,null,null,"275 - FRANCIA"]
[null,null,null,null,null,"C1104 - Elaboración de bebidas no alcohólicas, producción de aguas minerales y de otras aguas embotelladas",null,null,null,null,null,null,null,null,null,null,null,"ATRATO-CHOCO",null,null,null,null,null,null,null,null,null,null,null,null,"NECOCLI-ANTIOQUIA",null,null,null,null,null,null,null,null,null,"RAQUIRA-BOYACA",null,null,null,null,null,null,null,null,null,null,null,null,null,null,null,"RICAURTE-CUNDINAMARCA",null,null,null,null,null,null,null,null,null,null,null,null,null,null,null,null,null,null,null,null,null,null,null,null,null,"SANTA-BARBARA-SANTANDER",null,null,null,null,null,null,null,null,null,null,null,null,null,"281 - GABON"]
[null,null,null,null,null,"C1200 - Elaboración de productos de tabaco",null,null,null,null,null,null,null,null,null,null,null,"AYAPEL-CORDOBA",null,null,null,null,null,null,null,null,null,null,null,null,"OLAYA-ANTIOQUIA",null,null,null,null,null,null,null,null,null,"RONDON-BOYACA",null,null,null,null,null,null,null,null,null,null,null,null,null,null,null,"SAN-ANTONIO-DEL-TEQUENDAMA-CUNDINAMARCA",null,null,null,null,null,null,null,null,null,null,null,null,null,null,null,null,null,null,null,null,null,null,null,null,null,"SANTA-HELENA-DEL-OPON-SANTANDER",null,null,null,null,null,null,null,null,null,null,null,null,null,"285 - GAMBIA"]
[null,null,null,null,null,"C1311 - Preparación e hilatura de fibras textiles",null,null,null,null,null,null,null,null,null,null,null,"BAGADO-CHOCO",null,null,null,null,null,null,null,null,null,null,null,null,"PENOL-ANTIOQUIA",null,null,null,null,null,null,null,null,null,"SABOYA-BOYACA",null,null,null,null,null,null,null,null,null,null,null,null,null,null,null,"SAN-BERNARDO-CUNDINAMARCA",null,null,null,null,null,null,null,null,null,null,null,null,null,null,null,null,null,null,null,null,null,null,null,null,null,"SIMACOTA-SANTANDER",null,null,null,null,null,null,null,null,null,null,null,null,null,"287 - GEORGIA"]
[null,null,null,null,null,"C1312 - Tejeduría de productos textiles",null,null,null,null,null,null,null,null,null,null,null,"BAHIA-SOLANO-CHOCO",null,null,null,null,null,null,null,null,null,null,null,null,"PEQUE-ANTIOQUIA",null,null,null,null,null,null,null,null,null,"SACHICA-BOYACA",null,null,null,null,null,null,null,null,null,null,null,null,null,null,null,"SAN-CAYETANO-CUNDINAMARCA",null,null,null,null,null,null,null,null,null,null,null,null,null,null,null,null,null,null,null,null,null,null,null,null,null,"SOCORRO-SANTANDER",null,null,null,null,null,null,null,null,null,null,null,null,null,"289 - GHANA"]
[null,null,null,null,null,"C1313 - Acabado de productos textiles",null,null,null,null,null,null,null,null,null,null,null,"BAJO-BAUDO-CHOCO",null,null,null,null,null,null,null,null,null,null,null,null,"PUEBLORRICO-ANTIOQUIA",null,null,null,null,null,null,null,null,null,"SAMACA-BOYACA",null,null,null,null,null,null,null,null,null,null,null,null,null,null,null,"SAN-FRANCISCO-CUNDINAMARCA",null,null,null,null,null,null,null,null,null,null,null,null,null,null,null,null,null,null,null,null,null,null,null,null,null,"SUAITA-SANTANDER",null,null,null,null,null,null,null,null,null,null,null,null,null,"293 - GIBRALTAR"]
[null,null,null,null,null,"C1391 - Fabricación de tejidos de punto y ganchillo",null,null,null,null,null,null,null,null,null,null,null,"BALBOA-CAUCA",null,null,null,null,null,null,null,null,null,null,null,null,"PUERTO-BERRIO-ANTIOQUIA",null,null,null,null,null,null,null,null,null,"SAN-EDUARDO-BOYACA",null,null,null,null,null,null,null,null,null,null,null,null,null,null,null,"SAN-JUAN-DE-RIOSECO-CUNDINAMARCA",null,null,null,null,null,null,null,null,null,null,null,null,null,null,null,null,null,null,null,null,null,null,null,null,null,"SUCRE-SANTANDER",null,null,null,null,null,null,null,null,null,null,null,null,null,"297 - GRANADA"]
[null,null,null,null,null,"C1392 - Confección de artículos con materiales textiles, excepto prendas de vestir",null,null,null,null,null,null,null,null,null,null,null,"BALBOA-RISARALDA",null,null,null,null,null,null,null,null,null,null,null,null,"PUERTO-NARE-ANTIOQUIA",null,null,null,null,null,null,null,null,null,"SAN-JOSE-DE-PARE-BOYACA",null,null,null,null,null,null,null,null,null,null,null,null,null,null,null,"SASAIMA-CUNDINAMARCA",null,null,null,null,null,null,null,null,null,null,null,null,null,null,null,null,null,null,null,null,null,null,null,null,null,"SURATA-SANTANDER",null,null,null,null,null,null,null,null,null,null,null,null,null,"301 - GRECIA"]
[null,null,null,null,null,"C1393 - Fabricación de tapetes y alfombras para pisos",null,null,null,null,null,null,null,null,null,null,null,"BARANOA-ATLANTICO",null,null,null,null,null,null,null,null,null,null,null,null,"PUERTO-TRIUNFO-ANTIOQUIA",null,null,null,null,null,null,null,null,null,"SAN-LUIS-DE-GACENO-BOYACA",null,null,null,null,null,null,null,null,null,null,null,null,null,null,null,"SESQUILE-CUNDINAMARCA",null,null,null,null,null,null,null,null,null,null,null,null,null,null,null,null,null,null,null,null,null,null,null,null,null,"TONA-SANTANDER",null,null,null,null,null,null,null,null,null,null,null,null,null,"305 - GROENLANDIA"]
[null,null,null,null,null,"C1394 - Fabricación de cuerdas, cordeles, cables, bramantes y redes",null,null,null,null,null,null,null,null,null,null,null,"BARAYA-HUILA",null,null,null,null,null,null,null,null,null,null,null,null,"REMEDIOS-ANTIOQUIA",null,null,null,null,null,null,null,null,null,"SAN-MATEO-BOYACA",null,null,null,null,null,null,null,null,null,null,null,null,null,null,null,"SIBATE-CUNDINAMARCA",null,null,null,null,null,null,null,null,null,null,null,null,null,null,null,null,null,null,null,null,null,null,null,null,null,"VALLE-SAN-JOSE-SANTANDER",null,null,null,null,null,null,null,null,null,null,null,null,null,"309 - GUADALUPE"]
[null,null,null,null,null,"C1399 - Fabricación de otros artículos textiles n.c.p.",null,null,null,null,null,null,null,null,null,null,null,"BARBACOAS-NARINO",null,null,null,null,null,null,null,null,null,null,null,null,"RETIRO-ANTIOQUIA",null,null,null,null,null,null,null,null,null,"SAN-MIGUEL-DE-SEMA-BOYACA",null,null,null,null,null,null,null,null,null,null,null,null,null,null,null,"SILVANIA-CUNDINAMARCA",null,null,null,null,null,null,null,null,null,null,null,null,null,null,null,null,null,null,null,null,null,null,null,null,null,"VELEZ-SANTANDER",null,null,null,null,null,null,null,null,null,null,null,null,null,"313 - GUAM"]
[null,null,null,null,null,"C1410 - Confección de prendas de vestir, excepto prendas de piel",null,null,null,null,null,null,null,null,null,null,null,"BARBOSA-ANTIOQUIA",null,null,null,null,null,null,null,null,null,null,null,null,"RIONEGRO-ANTIOQUIA",null,null,null,null,null,null,null,null,null,"SAN-PABLO-DE-BORBUR-BOYACA",null,null,null,null,null,null,null,null,null,null,null,null,null,null,null,"SIMIJACA-CUNDINAMARCA",null,null,null,null,null,null,null,null,null,null,null,null,null,null,null,null,null,null,null,null,null,null,null,null,null,"VETAS-SANTANDER",null,null,null,null,null,null,null,null,null,null,null,null,null,"317 - GUATEMALA"]
[null,null,null,null,null,"C1420 - Fabricación de artículos de piel",null,null,null,null,null,null,null,null,null,null,null,"BARBOSA-SANTANDER",null,null,null,null,null,null,null,null,null,null,null,null,"SABANALARGA-ANTIOQUIA",null,null,null,null,null,null,null,null,null,"SANTA-MARIA-BOYACA",null,null,null,null,null,null,null,null,null,null,null,null,null,null,null,"SOACHA-CUNDINAMARCA",null,null,null,null,null,null,null,null,null,null,null,null,null,null,null,null,null,null,null,null,null,null,null,null,null,"VILLANUEVA-SANTANDER",null,null,null,null,null,null,null,null,null,null,null,null,null,"325 - GUAYANA FRANCESA"]
[null,null,null,null,null,"C1430 - Fabricación de artículos de punto y ganchillo",null,null,null,null,null,null,null,null,null,null,null,"BARICHARA-SANTANDER",null,null,null,null,null,null,null,null,null,null,null,null,"SABANETA-ANTIOQUIA",null,null,null,null,null,null,null,null,null,"SANTA-ROSA-DE-VITERBO-BOYACA",null,null,null,null,null,null,null,null,null,null,null,null,null,null,null,"SOPO-CUNDINAMARCA",null,null,null,null,null,null,null,null,null,null,null,null,null,null,null,null,null,null,null,null,null,null,null,null,null,"ZAPATOCA-SANTANDER",null,null,null,null,null,null,null,null,null,null,null,null,null,"329 - GUINEA"]
[null,null,null,null,null,"C1511 - Curtido y recurtido de cueros; recurtido y teñido de pieles",null,null,null,null,null,null,null,null,null,null,null,"BARRANCA-DE-UPÍA-META",null,null,null,null,null,null,null,null,null,null,null,null,"SALGAR-ANTIOQUIA",null,null,null,null,null,null,null,null,null,"SANTA-SOFIA-BOYACA",null,null,null,null,null,null,null,null,null,null,null,null,null,null,null,"SUBACHOQUE-CUNDINAMARCA",null,null,null,null,null,null,null,null,null,null,null,null,null,null,null,null,null,null,null,null,null,null,null,null,null,null,null,null,null,null,null,null,null,null,null,null,null,null,null,"331- GUINEA ECUATORIAL"]
[null,null,null,null,null,"C1512 - Fabricación de artículos de viaje, bolsos de mano y artículos similares elaborados en cuero, y fabricación de artículos de talabartería y guarnicionería",null,null,null,null,null,null,null,null,null,null,null,"BARRANCABERMEJA-SANTANDER",null,null,null,null,null,null,null,null,null,null,null,null,"SAN-ANDRES-ANTIOQUIA",null,null,null,null,null,null,null,null,null,"SANTANA-BOYACA",null,null,null,null,null,null,null,null,null,null,null,null,null,null,null,"SUESCA-CUNDINAMARCA",null,null,null,null,null,null,null,null,null,null,null,null,null,null,null,null,null,null,null,null,null,null,null,null,null,null,null,null,null,null,null,null,null,null,null,null,null,null,null,"334 - GUINEA"]
[null,null,null,null,null,"C1513 - Fabricación de artículos de viaje, bolsos de mano y artículos similares; artículos de talabartería y guarnicionería elaborados en otros materiales",null,null,null,null,null,null,null,null,null,null,null,"BARRANCAS-LA GUAJIRA",null,null,null,null,null,null,null,null,null,null,null,null,"SAN-CARLOS-ANTIOQUIA",null,null,null,null,null,null,null,null,null,"SANTIVANORTE-BOYACA",null,null,null,null,null,null,null,null,null,null,null,null,null,null,null,"SUPATA-CUNDINAMARCA",null,null,null,null,null,null,null,null,null,null,null,null,null,null,null,null,null,null,null,null,null,null,null,null,null,null,null,null,null,null,null,null,null,null,null,null,null,null,null,"337 - GUYANA"]
[null,null,null,null,null,"C1521 - Fabricación de calzado de cuero y piel, con cualquier tipo de suela",null,null,null,null,null,null,null,null,null,null,null,"BARRANCO-DE-LOBA-BOLIVAR",null,null,null,null,null,null,null,null,null,null,null,null,"SAN-FRANCISCO-ANTIOQUIA",null,null,null,null,null,null,null,null,null,"SANTIVASUR-BOYACA",null,null,null,null,null,null,null,null,null,null,null,null,null,null,null,"SUSA-CUNDINAMARCA",null,null,null,null,null,null,null,null,null,null,null,null,null,null,null,null,null,null,null,null,null,null,null,null,null,null,null,null,null,null,null,null,null,null,null,null,null,null,null,"341 - HAITI"]
[null,null,null,null,null,"C1522 - Fabricación de otros tipos de calzado, excepto calzado de cuero y piel",null,null,null,null,null,null,null,null,null,null,null,"BARRANQUILLA-ATLANTICO",null,null,null,null,null,null,null,null,null,null,null,null,"SAN-JERONIMO-ANTIOQUIA",null,null,null,null,null,null,null,null,null,"SIACHOQUE-BOYACA",null,null,null,null,null,null,null,null,null,null,null,null,null,null,null,"SUTATAUSA-CUNDINAMARCA",null,null,null,null,null,null,null,null,null,null,null,null,null,null,null,null,null,null,null,null,null,null,null,null,null,null,null,null,null,null,null,null,null,null,null,null,null,null,null,"345 - HONDURAS"]
[null,null,null,null,null,"C1523 - Fabricación de partes del calzado",null,null,null,null,null,null,null,null,null,null,null,"BECERRIL-CESAR",null,null,null,null,null,null,null,null,null,null,null,null,"SAN-JOSE-DE-LA-MONTANA-ANTIOQUIA",null,null,null,null,null,null,null,null,null,"SOATA-BOYACA",null,null,null,null,null,null,null,null,null,null,null,null,null,null,null,"TABIO-CUNDINAMARCA",null,null,null,null,null,null,null,null,null,null,null,null,null,null,null,null,null,null,null,null,null,null,null,null,null,null,null,null,null,null,null,null,null,null,null,null,null,null,null,"351 - HONG KONG"]
[null,null,null,null,null,"C1610 - Aserrado, acepillado e impregnación de la madera",null,null,null,null,null,null,null,null,null,null,null,"BELALCAZAR-CALDAS",null,null,null,null,null,null,null,null,null,null,null,null,"SAN-JUAN-DE-URABA-ANTIOQUIA",null,null,null,null,null,null,null,null,null,"SOCHA-BOYACA",null,null,null,null,null,null,null,null,null,null,null,null,null,null,null,"TAUSA-CUNDINAMARCA",null,null,null,null,null,null,null,null,null,null,null,null,null,null,null,null,null,null,null,null,null,null,null,null,null,null,null,null,null,null,null,null,null,null,null,null,null,null,null,"355 - HUNGRIA"]
[null,null,null,null,null,"C1620 - Fabricación de hojas de madera para enchapado; fabricación de tableros contrachapados, tableros laminados, tableros de partículas y otros tableros y paneles",null,null,null,null,null,null,null,null,null,null,null,"BELEN-BOYACA",null,null,null,null,null,null,null,null,null,null,null,null,"SAN-LUIS-ANTIOQUIA",null,null,null,null,null,null,null,null,null,"SOCOTA-BOYACA",null,null,null,null,null,null,null,null,null,null,null,null,null,null,null,"TENA-CUNDINAMARCA",null,null,null,null,null,null,null,null,null,null,null,null,null,null,null,null,null,null,null,null,null,null,null,null,null,null,null,null,null,null,null,null,null,null,null,null,null,null,null,"361 - INDIA"]
[null,null,null,null,null,"C1630 - Fabricación de partes y piezas de madera, de carpintería y ebanistería para la construcción",null,null,null,null,null,null,null,null,null,null,null,"BELEN-DE-LOS-ANDAQUIES-CAQUETA",null,null,null,null,null,null,null,null,null,null,null,null,"SAN-PEDRO-ANTIOQUIA",null,null,null,null,null,null,null,null,null,"SOGAMOSO-BOYACA",null,null,null,null,null,null,null,null,null,null,null,null,null,null,null,"TENJO-CUNDINAMARCA",null,null,null,null,null,null,null,null,null,null,null,null,null,null,null,null,null,null,null,null,null,null,null,null,null,null,null,null,null,null,null,null,null,null,null,null,null,null,null,"365 - INDONESIA"]
[null,null,null,null,null,"C1640 - Fabricación de recipientes de madera",null,null,null,null,null,null,null,null,null,null,null,"BELEN-DE-UMBRIA-RISARALDA",null,null,null,null,null,null,null,null,null,null,null,null,"SAN-PEDRO-DE-URABA-ANTIOQUIA",null,null,null,null,null,null,null,null,null,"SOMONDOCO-BOYACA",null,null,null,null,null,null,null,null,null,null,null,null,null,null,null,"TIBACUY-CUNDINAMARCA",null,null,null,null,null,null,null,null,null,null,null,null,null,null,null,null,null,null,null,null,null,null,null,null,null,null,null,null,null,null,null,null,null,null,null,null,null,null,null,"369 - IRAK"]
[null,null,null,null,null,"C1690 - Fabricación de otros productos de madera; fabricación de artículos de corcho, cestería y espartería",null,null,null,null,null,null,null,null,null,null,null,"BELEN-NARINO",null,null,null,null,null,null,null,null,null,null,null,null,"SAN-RAFAEL-ANTIOQUIA",null,null,null,null,null,null,null,null,null,"SORA-BOYACA",null,null,null,null,null,null,null,null,null,null,null,null,null,null,null,"TIBIRITA-CUNDINAMARCA",null,null,null,null,null,null,null,null,null,null,null,null,null,null,null,null,null,null,null,null,null,null,null,null,null,null,null,null,null,null,null,null,null,null,null,null,null,null,null,"372 - IRAN - REPUBLICA ISLAMICA DEL"]
[null,null,null,null,null,"C1701 - Fabricación de pulpas (pastas) celulósicas; papel y cartón",null,null,null,null,null,null,null,null,null,null,null,"BELLO-ANTIOQUIA",null,null,null,null,null,null,null,null,null,null,null,null,"SAN-ROQUE-ANTIOQUIA",null,null,null,null,null,null,null,null,null,"SORACA-BOYACA",null,null,null,null,null,null,null,null,null,null,null,null,null,null,null,"TOCAIMA-CUNDINAMARCA",null,null,null,null,null,null,null,null,null,null,null,null,null,null,null,null,null,null,null,null,null,null,null,null,null,null,null,null,null,null,null,null,null,null,null,null,null,null,null,"375 - IRLANDA (EIRE)"]
[null,null,null,null,null,"C1702 - Fabricación de papel y cartón ondulado (corrugado); fabricación de envases, empaques y de embalajes de papel y cartón",null,null,null,null,null,null,null,null,null,null,null,"BELMIRA-ANTIOQUIA",null,null,null,null,null,null,null,null,null,null,null,null,"SAN-VICENTE-ANTIOQUIA",null,null,null,null,null,null,null,null,null,"SOTAQUIRA-BOYACA",null,null,null,null,null,null,null,null,null,null,null,null,null,null,null,"TOCANCIPA-CUNDINAMARCA",null,null,null,null,null,null,null,null,null,null,null,null,null,null,null,null,null,null,null,null,null,null,null,null,null,null,null,null,null,null,null,null,null,null,null,null,null,null,null,"379 - ISLANDIA"]
[null,null,null,null,null,"C1709 - Fabricación de otros artículos de papel y cartón",null,null,null,null,null,null,null,null,null,null,null,"BELTRAN-CUNDINAMARCA",null,null,null,null,null,null,null,null,null,null,null,null,"SANTA-BARBARA-ANTIOQUIA",null,null,null,null,null,null,null,null,null,"SUSACON-BOYACA",null,null,null,null,null,null,null,null,null,null,null,null,null,null,null,"TOPAIPI-CUNDINAMARCA",null,null,null,null,null,null,null,null,null,null,null,null,null,null,null,null,null,null,null,null,null,null,null,null,null,null,null,null,null,null,null,null,null,null,null,null,null,null,null,"383 - ISRAEL"]
[null,null,null,null,null,"C1811 - Actividades de impresión",null,null,null,null,null,null,null,null,null,null,null,"BELÉN-DE-BAJIRÁ-CHOCO",null,null,null,null,null,null,null,null,null,null,null,null,"SANTA-ROSA-DE-OSOS-ANTIOQUIA",null,null,null,null,null,null,null,null,null,"SUTAMARCHAN-BOYACA",null,null,null,null,null,null,null,null,null,null,null,null,null,null,null,"UBALA-CUNDINAMARCA",null,null,null,null,null,null,null,null,null,null,null,null,null,null,null,null,null,null,null,null,null,null,null,null,null,null,null,null,null,null,null,null,null,null,null,null,null,null,null,"386 - ITALIA"]
[null,null,null,null,null,"C1812 - Actividades de servicios relacionados con la impresión",null,null,null,null,null,null,null,null,null,null,null,"BERBEO-BOYACA",null,null,null,null,null,null,null,null,null,null,null,null,"SANTO-DOMINGO-ANTIOQUIA",null,null,null,null,null,null,null,null,null,"SUTATENZA-BOYACA",null,null,null,null,null,null,null,null,null,null,null,null,null,null,null,"UBAQUE-CUNDINAMARCA",null,null,null,null,null,null,null,null,null,null,null,null,null,null,null,null,null,null,null,null,null,null,null,null,null,null,null,null,null,null,null,null,null,null,null,null,null,null,null,"391 - JAMAICA"]
[null,null,null,null,null,"C1820 - Producción de copias a partir de grabaciones originales",null,null,null,null,null,null,null,null,null,null,null,"BETANIA-ANTIOQUIA",null,null,null,null,null,null,null,null,null,null,null,null,"SANTUARIO-ANTIOQUIA",null,null,null,null,null,null,null,null,null,"TASCO-BOYACA",null,null,null,null,null,null,null,null,null,null,null,null,null,null,null,"UBATE-CUNDINAMARCA",null,null,null,null,null,null,null,null,null,null,null,null,null,null,null,null,null,null,null,null,null,null,null,null,null,null,null,null,null,null,null,null,null,null,null,null,null,null,null,"399 - JAPON"]
[null,null,null,null,null,"C1910 - Fabricación de productos de hornos de coque",null,null,null,null,null,null,null,null,null,null,null,"BETEITIVA-BOYACA",null,null,null,null,null,null,null,null,null,null,null,null,"SEGOVIA-ANTIOQUIA",null,null,null,null,null,null,null,null,null,"TENZA-BOYACA",null,null,null,null,null,null,null,null,null,null,null,null,null,null,null,"UNE-CUNDINAMARCA",null,null,null,null,null,null,null,null,null,null,null,null,null,null,null,null,null,null,null,null,null,null,null,null,null,null,null,null,null,null,null,null,null,null,null,null,null,null,null,"403 - JORDANIA"]
[null,null,null,null,null,"C1921 - Fabricación de productos de la refinación del petróleo",null,null,null,null,null,null,null,null,null,null,null,"BETULIA-ANTIOQUIA",null,null,null,null,null,null,null,null,null,null,null,null,"SONSON-ANTIOQUIA",null,null,null,null,null,null,null,null,null,"TIBANA-BOYACA",null,null,null,null,null,null,null,null,null,null,null,null,null,null,null,"UTICA-CUNDINAMARCA",null,null,null,null,null,null,null,null,null,null,null,null,null,null,null,null,null,null,null,null,null,null,null,null,null,null,null,null,null,null,null,null,null,null,null,null,null,null,null,"406 - KAZAJSTAN"]
[null,null,null,null,null,"C1922 - Actividad de mezcla de combustibles",null,null,null,null,null,null,null,null,null,null,null,"BETULIA-SANTANDER",null,null,null,null,null,null,null,null,null,null,null,null,"SOPETRAN-ANTIOQUIA",null,null,null,null,null,null,null,null,null,"TIBASOSA-BOYACA",null,null,null,null,null,null,null,null,null,null,null,null,null,null,null,"VENECIA-OSPINA-PEREZ-CUNDINAMARCA",null,null,null,null,null,null,null,null,null,null,null,null,null,null,null,null,null,null,null,null,null,null,null,null,null,null,null,null,null,null,null,null,null,null,null,null,null,null,null,"410 - KENIA"]
[null,null,null,null,null,"C2011 - Fabricación de sustancias y productos químicos básicos",null,null,null,null,null,null,null,null,null,null,null,"BITUIMA-CUNDINAMARCA",null,null,null,null,null,null,null,null,null,null,null,null,"TAMESIS-ANTIOQUIA",null,null,null,null,null,null,null,null,null,"TINJACA-BOYACA",null,null,null,null,null,null,null,null,null,null,null,null,null,null,null,"VERGARA-CUNDINAMARCA",null,null,null,null,null,null,null,null,null,null,null,null,null,null,null,null,null,null,null,null,null,null,null,null,null,null,null,null,null,null,null,null,null,null,null,null,null,null,null,"411 - KIRIBATI"]
[null,null,null,null,null,"C2012 - Fabricación de abonos y compuestos inorgánicos nitrogenados",null,null,null,null,null,null,null,null,null,null,null,"BOAVITA-BOYACA",null,null,null,null,null,null,null,null,null,null,null,null,"TARAZA-ANTIOQUIA",null,null,null,null,null,null,null,null,null,"TIPACOQUE-BOYACA",null,null,null,null,null,null,null,null,null,null,null,null,null,null,null,"VIANI-CUNDINAMARCA",null,null,null,null,null,null,null,null,null,null,null,null,null,null,null,null,null,null,null,null,null,null,null,null,null,null,null,null,null,null,null,null,null,null,null,null,null,null,null,"412 - KIRGUIZISTAN"]
[null,null,null,null,null,"C2013 - Fabricación de plásticos en formas primarias",null,null,null,null,null,null,null,null,null,null,null,"BOCHALEMA-NORTE DE SANTANDER",null,null,null,null,null,null,null,null,null,null,null,null,"TARSO-ANTIOQUIA",null,null,null,null,null,null,null,null,null,"TOCA-BOYACA",null,null,null,null,null,null,null,null,null,null,null,null,null,null,null,"VILLAGOMEZ-CUNDINAMARCA",null,null,null,null,null,null,null,null,null,null,null,null,null,null,null,null,null,null,null,null,null,null,null,null,null,null,null,null,null,null,null,null,null,null,null,null,null,null,null,"413 - KUWAIT"]
[null,null,null,null,null,"C2014 - Fabricación de caucho sintético en formas primarias",null,null,null,null,null,null,null,null,null,null,null,"BOGOTA-BOGOTA D.C.",null,null,null,null,null,null,null,null,null,null,null,null,"TITIRIBI-ANTIOQUIA",null,null,null,null,null,null,null,null,null,"TOGUI-BOYACA",null,null,null,null,null,null,null,null,null,null,null,null,null,null,null,"VILLAPINZON-CUNDINAMARCA",null,null,null,null,null,null,null,null,null,null,null,null,null,null,null,null,null,null,null,null,null,null,null,null,null,null,null,null,null,null,null,null,null,null,null,null,null,null,null,"420 - LAOS - REPUBLICA POPULAR DEMOCRATICA DE"]
[null,null,null,null,null,"C2021 - Fabricación de plaguicidas y otros productos químicos de uso agropecuario",null,null,null,null,null,null,null,null,null,null,null,"BOJACA-CUNDINAMARCA",null,null,null,null,null,null,null,null,null,null,null,null,"TOLEDO-ANTIOQUIA",null,null,null,null,null,null,null,null,null,"TOPAGA-BOYACA",null,null,null,null,null,null,null,null,null,null,null,null,null,null,null,"VILLETA-CUNDINAMARCA",null,null,null,null,null,null,null,null,null,null,null,null,null,null,null,null,null,null,null,null,null,null,null,null,null,null,null,null,null,null,null,null,null,null,null,null,null,null,null,"426 - LESOTHO"]
[null,null,null,null,null,"C2022 - Fabricación de pinturas, barnices y revestimientos similares, tintas para impresión y masillas",null,null,null,null,null,null,null,null,null,null,null,"BOJAYA-CHOCO",null,null,null,null,null,null,null,null,null,null,null,null,"TURBO-ANTIOQUIA",null,null,null,null,null,null,null,null,null,"TOTA-BOYACA",null,null,null,null,null,null,null,null,null,null,null,null,null,null,null,"VIOTA-CUNDINAMARCA",null,null,null,null,null,null,null,null,null,null,null,null,null,null,null,null,null,null,null,null,null,null,null,null,null,null,null,null,null,null,null,null,null,null,null,null,null,null,null,"429 - LETONIA"]
[null,null,null,null,null,"C2023 - Fabricación de jabones y detergentes, preparados para limpiar y pulir; perfumes y preparados de tocador",null,null,null,null,null,null,null,null,null,null,null,"BOLIVAR-ANTIOQUIA",null,null,null,null,null,null,null,null,null,null,null,null,"URAMITA-ANTIOQUIA",null,null,null,null,null,null,null,null,null,"TUNJA-BOYACA",null,null,null,null,null,null,null,null,null,null,null,null,null,null,null,"YACOPI-CUNDINAMARCA",null,null,null,null,null,null,null,null,null,null,null,null,null,null,null,null,null,null,null,null,null,null,null,null,null,null,null,null,null,null,null,null,null,null,null,null,null,null,null,"431 - LIBANO"]
[null,null,null,null,null,"C2029 - Fabricación de otros productos químicos n.c.p.",null,null,null,null,null,null,null,null,null,null,null,"BOLIVAR-CAUCA",null,null,null,null,null,null,null,null,null,null,null,null,"URRAO-ANTIOQUIA",null,null,null,null,null,null,null,null,null,"TUNUNGUA-BOYACA",null,null,null,null,null,null,null,null,null,null,null,null,null,null,null,"ZIPACON-CUNDINAMARCA",null,null,null,null,null,null,null,null,null,null,null,null,null,null,null,null,null,null,null,null,null,null,null,null,null,null,null,null,null,null,null,null,null,null,null,null,null,null,null,"434 - LIBERIA"]
[null,null,null,null,null,"C2030 - Fabricación de fibras sintéticas y artificiales",null,null,null,null,null,null,null,null,null,null,null,"BOLIVAR-SANTANDER",null,null,null,null,null,null,null,null,null,null,null,null,"VALDIVIA-ANTIOQUIA",null,null,null,null,null,null,null,null,null,"TURMEQUE-BOYACA",null,null,null,null,null,null,null,null,null,null,null,null,null,null,null,"ZIPAQUIRA-CUNDINAMARCA",null,null,null,null,null,null,null,null,null,null,null,null,null,null,null,null,null,null,null,null,null,null,null,null,null,null,null,null,null,null,null,null,null,null,null,null,null,null,null,"438 - LIBIA (INCLUYE FEZZAN)"]
[null,null,null,null,null,"C2100 - Fabricación de productos farmacéuticos, sustancias químicas medicinales y productos botánicos de uso farmacéutico",null,null,null,null,null,null,null,null,null,null,null,"BOLIVAR-VALLE",null,null,null,null,null,null,null,null,null,null,null,null,"VALPARAISO-ANTIOQUIA",null,null,null,null,null,null,null,null,null,"TUTA-BOYACA",null,null,null,null,null,null,null,null,null,null,null,null,null,null,null,null,null,null,null,null,null,null,null,null,null,null,null,null,null,null,null,null,null,null,null,null,null,null,null,null,null,null,null,null,null,null,null,null,null,null,null,null,null,null,null,"440 - LIECHTENSTEIN"]
[null,null,null,null,null,"C2211 - Fabricación de llantas y neumáticos de caucho",null,null,null,null,null,null,null,null,null,null,null,"BOSA-BOGOTA D.C.",null,null,null,null,null,null,null,null,null,null,null,null,"VEGACHI-ANTIOQUIA",null,null,null,null,null,null,null,null,null,"TUTASA-BOYACA",null,null,null,null,null,null,null,null,null,null,null,null,null,null,null,null,null,null,null,null,null,null,null,null,null,null,null,null,null,null,null,null,null,null,null,null,null,null,null,null,null,null,null,null,null,null,null,null,null,null,null,null,null,null,null,"443 - LITUANIA"]
[null,null,null,null,null,"C2212 - Reencauche de llantas usadas",null,null,null,null,null,null,null,null,null,null,null,"BOSCONIA-CESAR",null,null,null,null,null,null,null,null,null,null,null,null,"VENECIA-ANTIOQUIA",null,null,null,null,null,null,null,null,null,"UMBITA-BOYACA",null,null,null,null,null,null,null,null,null,null,null,null,null,null,null,null,null,null,null,null,null,null,null,null,null,null,null,null,null,null,null,null,null,null,null,null,null,null,null,null,null,null,null,null,null,null,null,null,null,null,null,null,null,null,null,"445 - LUXEMBURGO"]
[null,null,null,null,null,"C2219 - Fabricación de formas básicas de caucho y otros productos de caucho n.c.p.",null,null,null,null,null,null,null,null,null,null,null,"BOYACA-BOYACA",null,null,null,null,null,null,null,null,null,null,null,null,"VIGIA-DEL-FUERTE-ANTIOQUIA",null,null,null,null,null,null,null,null,null,"VENTAQUEMADA-BOYACA",null,null,null,null,null,null,null,null,null,null,null,null,null,null,null,null,null,null,null,null,null,null,null,null,null,null,null,null,null,null,null,null,null,null,null,null,null,null,null,null,null,null,null,null,null,null,null,null,null,null,null,null,null,null,null,"447 - MACAO"]
[null,null,null,null,null,"C2221 - Fabricación de formas básicas de plástico",null,null,null,null,null,null,null,null,null,null,null,"BRICENO-ANTIOQUIA",null,null,null,null,null,null,null,null,null,null,null,null,"YALI-ANTIOQUIA",null,null,null,null,null,null,null,null,null,"VILLA-DE-LEYVA-BOYACA",null,null,null,null,null,null,null,null,null,null,null,null,null,null,null,null,null,null,null,null,null,null,null,null,null,null,null,null,null,null,null,null,null,null,null,null,null,null,null,null,null,null,null,null,null,null,null,null,null,null,null,null,null,null,null,"448 - MACEDONIA"]
[null,null,null,null,null,"C2229 - Fabricación de artículos de plástico n.c.p.",null,null,null,null,null,null,null,null,null,null,null,"BRICENO-BOYACA",null,null,null,null,null,null,null,null,null,null,null,null,"YARUMAL-ANTIOQUIA",null,null,null,null,null,null,null,null,null,"VIRACACHA-BOYACA",null,null,null,null,null,null,null,null,null,null,null,null,null,null,null,null,null,null,null,null,null,null,null,null,null,null,null,null,null,null,null,null,null,null,null,null,null,null,null,null,null,null,null,null,null,null,null,null,null,null,null,null,null,null,null,"450 - MADAGASCAR"]
[null,null,null,null,null,"C2310 - Fabricación de vidrio y productos de vidrio",null,null,null,null,null,null,null,null,null,null,null,"BUCARAMANGA-SANTANDER",null,null,null,null,null,null,null,null,null,null,null,null,"YOLOMBO-ANTIOQUIA",null,null,null,null,null,null,null,null,null,"ZETAQUIRA-BOYACA",null,null,null,null,null,null,null,null,null,null,null,null,null,null,null,null,null,null,null,null,null,null,null,null,null,null,null,null,null,null,null,null,null,null,null,null,null,null,null,null,null,null,null,null,null,null,null,null,null,null,null,null,null,null,null,"455 - MALAYSIA"]
[null,null,null,null,null,"C2391 - Fabricación de productos refractarios",null,null,null,null,null,null,null,null,null,null,null,"BUCARASICA-NORTE DE SANTANDER",null,null,null,null,null,null,null,null,null,null,null,null,"YONDO-ANTIOQUIA",null,null,null,null,null,null,null,null,null,null,null,null,null,null,null,null,null,null,null,null,null,null,null,null,null,null,null,null,null,null,null,null,null,null,null,null,null,null,null,null,null,null,null,null,null,null,null,null,null,null,null,null,null,null,null,null,null,null,null,null,null,null,null,null,null,"458 - MALAWI"]
[null,null,null,null,null,"C2392 - Fabricación de materiales de arcilla para la construcción",null,null,null,null,null,null,null,null,null,null,null,"BUENAVENTURA-VALLE",null,null,null,null,null,null,null,null,null,null,null,null,"ZARAGOZA-ANTIOQUIA",null,null,null,null,null,null,null,null,null,null,null,null,null,null,null,null,null,null,null,null,null,null,null,null,null,null,null,null,null,null,null,null,null,null,null,null,null,null,null,null,null,null,null,null,null,null,null,null,null,null,null,null,null,null,null,null,null,null,null,null,null,null,null,null,null,"461 - MALDIVAS"]
[null,null,null,null,null,"C2393 - Fabricación de otros productos de cerámica y porcelana",null,null,null,null,null,null,null,null,null,null,null,"BUENAVISTA-BOYACA",null,null,null,null,null,null,null,null,null,null,null,null,null,null,null,null,null,null,null,null,null,null,null,null,null,null,null,null,null,null,null,null,null,null,null,null,null,null,null,null,null,null,null,null,null,null,null,null,null,null,null,null,null,null,null,null,null,null,null,null,null,null,null,null,null,null,null,null,null,null,null,null,null,null,null,null,null,null,"464 - MALI"]
[null,null,null,null,null,"C2394 - Fabricación de cemento, cal y yeso",null,null,null,null,null,null,null,null,null,null,null,"BUENAVISTA-CORDOBA",null,null,null,null,null,null,null,null,null,null,null,null,null,null,null,null,null,null,null,null,null,null,null,null,null,null,null,null,null,null,null,null,null,null,null,null,null,null,null,null,null,null,null,null,null,null,null,null,null,null,null,null,null,null,null,null,null,null,null,null,null,null,null,null,null,null,null,null,null,null,null,null,null,null,null,null,null,null,"467 - MALTA"]
[null,null,null,null,null,"C2395 - Fabricación de artículos de hormigón, cemento y yeso",null,null,null,null,null,null,null,null,null,null,null,"BUENAVISTA-QUINDIO",null,null,null,null,null,null,null,null,null,null,null,null,null,null,null,null,null,null,null,null,null,null,null,null,null,null,null,null,null,null,null,null,null,null,null,null,null,null,null,null,null,null,null,null,null,null,null,null,null,null,null,null,null,null,null,null,null,null,null,null,null,null,null,null,null,null,null,null,null,null,null,null,null,null,null,null,null,null,"469 - MARIANAS DEL NORTE - ISLAS"]
[null,null,null,null,null,"C2396 - Corte, tallado y acabado de la piedra",null,null,null,null,null,null,null,null,null,null,null,"BUENAVISTA-SUCRE",null,null,null,null,null,null,null,null,null,null,null,null,null,null,null,null,null,null,null,null,null,null,null,null,null,null,null,null,null,null,null,null,null,null,null,null,null,null,null,null,null,null,null,null,null,null,null,null,null,null,null,null,null,null,null,null,null,null,null,null,null,null,null,null,null,null,null,null,null,null,null,null,null,null,null,null,null,null,"472 - MARSHALL - ISLAS"]
[null,null,null,null,null,"C2399 - Fabricación de otros productos minerales no metálicos n.c.p.",null,null,null,null,null,null,null,null,null,null,null,"BUENOS-AIRES-CAUCA",null,null,null,null,null,null,null,null,null,null,null,null,null,null,null,null,null,null,null,null,null,null,null,null,null,null,null,null,null,null,null,null,null,null,null,null,null,null,null,null,null,null,null,null,null,null,null,null,null,null,null,null,null,null,null,null,null,null,null,null,null,null,null,null,null,null,null,null,null,null,null,null,null,null,null,null,null,null,"474 - MARRUECOS"]
[null,null,null,null,null,"C2410 - Industrias básicas de hierro y de acero",null,null,null,null,null,null,null,null,null,null,null,"BUESACO-NARINO",null,null,null,null,null,null,null,null,null,null,null,null,null,null,null,null,null,null,null,null,null,null,null,null,null,null,null,null,null,null,null,null,null,null,null,null,null,null,null,null,null,null,null,null,null,null,null,null,null,null,null,null,null,null,null,null,null,null,null,null,null,null,null,null,null,null,null,null,null,null,null,null,null,null,null,null,null,null,"477 - MARTINICA"]
[null,null,null,null,null,"C2421 - Industrias básicas de metales preciosos",null,null,null,null,null,null,null,null,null,null,null,"BUGA-VALLE",null,null,null,null,null,null,null,null,null,null,null,null,null,null,null,null,null,null,null,null,null,null,null,null,null,null,null,null,null,null,null,null,null,null,null,null,null,null,null,null,null,null,null,null,null,null,null,null,null,null,null,null,null,null,null,null,null,null,null,null,null,null,null,null,null,null,null,null,null,null,null,null,null,null,null,null,null,null,"485 - MAURICIO"]
[null,null,null,null,null,"C2429 - Industrias básicas de otros metales no ferrosos",null,null,null,null,null,null,null,null,null,null,null,"BUGALAGRANDE-VALLE",null,null,null,null,null,null,null,null,null,null,null,null,null,null,null,null,null,null,null,null,null,null,null,null,null,null,null,null,null,null,null,null,null,null,null,null,null,null,null,null,null,null,null,null,null,null,null,null,null,null,null,null,null,null,null,null,null,null,null,null,null,null,null,null,null,null,null,null,null,null,null,null,null,null,null,null,null,null,"488 - MAURITANIA"]
[null,null,null,null,null,"C2431 - Fundición de hierro y de acero",null,null,null,null,null,null,null,null,null,null,null,"BURITICA-ANTIOQUIA",null,null,null,null,null,null,null,null,null,null,null,null,null,null,null,null,null,null,null,null,null,null,null,null,null,null,null,null,null,null,null,null,null,null,null,null,null,null,null,null,null,null,null,null,null,null,null,null,null,null,null,null,null,null,null,null,null,null,null,null,null,null,null,null,null,null,null,null,null,null,null,null,null,null,null,null,null,null,"493 - MEXICO"]
[null,null,null,null,null,"C2432 - Fundición de metales no ferrosos",null,null,null,null,null,null,null,null,null,null,null,"BUSBANZA-BOYACA",null,null,null,null,null,null,null,null,null,null,null,null,null,null,null,null,null,null,null,null,null,null,null,null,null,null,null,null,null,null,null,null,null,null,null,null,null,null,null,null,null,null,null,null,null,null,null,null,null,null,null,null,null,null,null,null,null,null,null,null,null,null,null,null,null,null,null,null,null,null,null,null,null,null,null,null,null,null,"494 - MICRONESIA - ESTADOS FEDERADOS DE"]
[null,null,null,null,null,"C2511 - Fabricación de productos metálicos para uso estructural",null,null,null,null,null,null,null,null,null,null,null,"CABRERA-CUNDINAMARCA",null,null,null,null,null,null,null,null,null,null,null,null,null,null,null,null,null,null,null,null,null,null,null,null,null,null,null,null,null,null,null,null,null,null,null,null,null,null,null,null,null,null,null,null,null,null,null,null,null,null,null,null,null,null,null,null,null,null,null,null,null,null,null,null,null,null,null,null,null,null,null,null,null,null,null,null,null,null,"496 - MOLDAVIA"]
[null,null,null,null,null,"C2512 - Fabricación de tanques, depósitos y recipientes de metal, excepto los utilizados para el envase o transporte de mercancías",null,null,null,null,null,null,null,null,null,null,null,"CABRERA-SANTANDER",null,null,null,null,null,null,null,null,null,null,null,null,null,null,null,null,null,null,null,null,null,null,null,null,null,null,null,null,null,null,null,null,null,null,null,null,null,null,null,null,null,null,null,null,null,null,null,null,null,null,null,null,null,null,null,null,null,null,null,null,null,null,null,null,null,null,null,null,null,null,null,null,null,null,null,null,null,null,"497 - MONGOLIA"]
[null,null,null,null,null,"C2513 - Fabricación de generadores de vapor, excepto calderas de agua caliente para calefacción central",null,null,null,null,null,null,null,null,null,null,null,"CABUYARO-META",null,null,null,null,null,null,null,null,null,null,null,null,null,null,null,null,null,null,null,null,null,null,null,null,null,null,null,null,null,null,null,null,null,null,null,null,null,null,null,null,null,null,null,null,null,null,null,null,null,null,null,null,null,null,null,null,null,null,null,null,null,null,null,null,null,null,null,null,null,null,null,null,null,null,null,null,null,null,"498 -MONACO"]
[null,null,null,null,null,"C2520 - Fabricación de armas y municiones",null,null,null,null,null,null,null,null,null,null,null,"CACAHUAL-GUAINIA",null,null,null,null,null,null,null,null,null,null,null,null,null,null,null,null,null,null,null,null,null,null,null,null,null,null,null,null,null,null,null,null,null,null,null,null,null,null,null,null,null,null,null,null,null,null,null,null,null,null,null,null,null,null,null,null,null,null,null,null,null,null,null,null,null,null,null,null,null,null,null,null,null,null,null,null,null,null,"501 - MONSERRAT - ISLA"]
[null,null,null,null,null,"C2591 - Forja, prensado, estampado y laminado de metal; pulvimetalurgia",null,null,null,null,null,null,null,null,null,null,null,"CACERES-ANTIOQUIA",null,null,null,null,null,null,null,null,null,null,null,null,null,null,null,null,null,null,null,null,null,null,null,null,null,null,null,null,null,null,null,null,null,null,null,null,null,null,null,null,null,null,null,null,null,null,null,null,null,null,null,null,null,null,null,null,null,null,null,null,null,null,null,null,null,null,null,null,null,null,null,null,null,null,null,null,null,null,"505 - MOZAMBIQUE"]
[null,null,null,null,null,"C2592 - Tratamiento y revestimiento de metales; mecanizado",null,null,null,null,null,null,null,null,null,null,null,"CACHIPAY-CUNDINAMARCA",null,null,null,null,null,null,null,null,null,null,null,null,null,null,null,null,null,null,null,null,null,null,null,null,null,null,null,null,null,null,null,null,null,null,null,null,null,null,null,null,null,null,null,null,null,null,null,null,null,null,null,null,null,null,null,null,null,null,null,null,null,null,null,null,null,null,null,null,null,null,null,null,null,null,null,null,null,null,"507- NAMIBIA"]
[null,null,null,null,null,"C2593 - Fabricación de artículos de cuchillería, herramientas de mano y artículos de ferretería",null,null,null,null,null,null,null,null,null,null,null,"CACHIRA-NORTE DE SANTANDER",null,null,null,null,null,null,null,null,null,null,null,null,null,null,null,null,null,null,null,null,null,null,null,null,null,null,null,null,null,null,null,null,null,null,null,null,null,null,null,null,null,null,null,null,null,null,null,null,null,null,null,null,null,null,null,null,null,null,null,null,null,null,null,null,null,null,null,null,null,null,null,null,null,null,null,null,null,null,"508 - NAURU"]
[null,null,null,null,null,"C2599 - Fabricación de otros productos elaborados de metal n.c.p.",null,null,null,null,null,null,null,null,null,null,null,"CACOTA-NORTE DE SANTANDER",null,null,null,null,null,null,null,null,null,null,null,null,null,null,null,null,null,null,null,null,null,null,null,null,null,null,null,null,null,null,null,null,null,null,null,null,null,null,null,null,null,null,null,null,null,null,null,null,null,null,null,null,null,null,null,null,null,null,null,null,null,null,null,null,null,null,null,null,null,null,null,null,null,null,null,null,null,null,"511 - NAVIDAD (CHRISTMAS) - ISLAS"]
[null,null,null,null,null,"C2610 - Fabricación de componentes y tableros electrónicos",null,null,null,null,null,null,null,null,null,null,null,"CAICEDO-ANTIOQUIA",null,null,null,null,null,null,null,null,null,null,null,null,null,null,null,null,null,null,null,null,null,null,null,null,null,null,null,null,null,null,null,null,null,null,null,null,null,null,null,null,null,null,null,null,null,null,null,null,null,null,null,null,null,null,null,null,null,null,null,null,null,null,null,null,null,null,null,null,null,null,null,null,null,null,null,null,null,null,"517 - NEPAL"]
[null,null,null,null,null,"C2620 - Fabricación de computadoras y de equipo periférico",null,null,null,null,null,null,null,null,null,null,null,"CAICEDONIA-VALLE",null,null,null,null,null,null,null,null,null,null,null,null,null,null,null,null,null,null,null,null,null,null,null,null,null,null,null,null,null,null,null,null,null,null,null,null,null,null,null,null,null,null,null,null,null,null,null,null,null,null,null,null,null,null,null,null,null,null,null,null,null,null,null,null,null,null,null,null,null,null,null,null,null,null,null,null,null,null,"521 - NICARAGUA"]
[null,null,null,null,null,"C2630 - Fabricación de equipos de comunicación",null,null,null,null,null,null,null,null,null,null,null,"CAIMITO-SUCRE",null,null,null,null,null,null,null,null,null,null,null,null,null,null,null,null,null,null,null,null,null,null,null,null,null,null,null,null,null,null,null,null,null,null,null,null,null,null,null,null,null,null,null,null,null,null,null,null,null,null,null,null,null,null,null,null,null,null,null,null,null,null,null,null,null,null,null,null,null,null,null,null,null,null,null,null,null,null,"525 - NIGER"]
[null,null,null,null,null,"C2640 - Fabricación de aparatos electrónicos de consumo",null,null,null,null,null,null,null,null,null,null,null,"CAJAMARCA-TOLIMA",null,null,null,null,null,null,null,null,null,null,null,null,null,null,null,null,null,null,null,null,null,null,null,null,null,null,null,null,null,null,null,null,null,null,null,null,null,null,null,null,null,null,null,null,null,null,null,null,null,null,null,null,null,null,null,null,null,null,null,null,null,null,null,null,null,null,null,null,null,null,null,null,null,null,null,null,null,null,"528 - NIGERIA"]
[null,null,null,null,null,"C2651 - Fabricación de equipo de medición, prueba, navegación y control",null,null,null,null,null,null,null,null,null,null,null,"CAJIBIO-CAUCA",null,null,null,null,null,null,null,null,null,null,null,null,null,null,null,null,null,null,null,null,null,null,null,null,null,null,null,null,null,null,null,null,null,null,null,null,null,null,null,null,null,null,null,null,null,null,null,null,null,null,null,null,null,null,null,null,null,null,null,null,null,null,null,null,null,null,null,null,null,null,null,null,null,null,null,null,null,null,"531 - NIUE - ISLA"]
[null,null,null,null,null,"C2652 - Fabricación de relojes",null,null,null,null,null,null,null,null,null,null,null,"CAJICA-CUNDINAMARCA",null,null,null,null,null,null,null,null,null,null,null,null,null,null,null,null,null,null,null,null,null,null,null,null,null,null,null,null,null,null,null,null,null,null,null,null,null,null,null,null,null,null,null,null,null,null,null,null,null,null,null,null,null,null,null,null,null,null,null,null,null,null,null,null,null,null,null,null,null,null,null,null,null,null,null,null,null,null,"535 - NORFOLK - ISLA"]
[null,null,null,null,null,"C2660 - Fabricación de equipo de irradiación y equipo electrónico de uso médico y terapéutico",null,null,null,null,null,null,null,null,null,null,null,"CALAMAR-BOLIVAR",null,null,null,null,null,null,null,null,null,null,null,null,null,null,null,null,null,null,null,null,null,null,null,null,null,null,null,null,null,null,null,null,null,null,null,null,null,null,null,null,null,null,null,null,null,null,null,null,null,null,null,null,null,null,null,null,null,null,null,null,null,null,null,null,null,null,null,null,null,null,null,null,null,null,null,null,null,null,"538 - NORUEGA"]
[null,null,null,null,null,"C2670 - Fabricación de instrumentos ópticos y equipo fotográfico",null,null,null,null,null,null,null,null,null,null,null,"CALAMAR-GUAVIARE",null,null,null,null,null,null,null,null,null,null,null,null,null,null,null,null,null,null,null,null,null,null,null,null,null,null,null,null,null,null,null,null,null,null,null,null,null,null,null,null,null,null,null,null,null,null,null,null,null,null,null,null,null,null,null,null,null,null,null,null,null,null,null,null,null,null,null,null,null,null,null,null,null,null,null,null,null,null,"542 - NUEVA CALEDONIA"]
[null,null,null,null,null,"C2680 - Fabricación de medios magnéticos y ópticos para almacenamiento de datos",null,null,null,null,null,null,null,null,null,null,null,"CALARCA-QUINDIO",null,null,null,null,null,null,null,null,null,null,null,null,null,null,null,null,null,null,null,null,null,null,null,null,null,null,null,null,null,null,null,null,null,null,null,null,null,null,null,null,null,null,null,null,null,null,null,null,null,null,null,null,null,null,null,null,null,null,null,null,null,null,null,null,null,null,null,null,null,null,null,null,null,null,null,null,null,null,"545 - PAPUASIA NUEVA GUINEA"]
[null,null,null,null,null,"C2711 - Fabricación de motores, generadores y transformadores eléctricos",null,null,null,null,null,null,null,null,null,null,null,"CALDAS-ANTIOQUIA",null,null,null,null,null,null,null,null,null,null,null,null,null,null,null,null,null,null,null,null,null,null,null,null,null,null,null,null,null,null,null,null,null,null,null,null,null,null,null,null,null,null,null,null,null,null,null,null,null,null,null,null,null,null,null,null,null,null,null,null,null,null,null,null,null,null,null,null,null,null,null,null,null,null,null,null,null,null,"548 - NUEVA ZELANDIA"]
[null,null,null,null,null,"C2712 - Fabricación de aparatos de distribución y control de la energía eléctrica",null,null,null,null,null,null,null,null,null,null,null,"CALDAS-BOYACA",null,null,null,null,null,null,null,null,null,null,null,null,null,null,null,null,null,null,null,null,null,null,null,null,null,null,null,null,null,null,null,null,null,null,null,null,null,null,null,null,null,null,null,null,null,null,null,null,null,null,null,null,null,null,null,null,null,null,null,null,null,null,null,null,null,null,null,null,null,null,null,null,null,null,null,null,null,null,"551 - VANUATU"]
[null,null,null,null,null,"C2720 - Fabricación de pilas, baterías y acumuladores eléctricos",null,null,null,null,null,null,null,null,null,null,null,"CALDONO-CAUCA",null,null,null,null,null,null,null,null,null,null,null,null,null,null,null,null,null,null,null,null,null,null,null,null,null,null,null,null,null,null,null,null,null,null,null,null,null,null,null,null,null,null,null,null,null,null,null,null,null,null,null,null,null,null,null,null,null,null,null,null,null,null,null,null,null,null,null,null,null,null,null,null,null,null,null,null,null,null,"556 - OMAN"]
[null,null,null,null,null,"C2731 - Fabricación de hilos y cables eléctricos y de fibra óptica",null,null,null,null,null,null,null,null,null,null,null,"CALI-VALLE",null,null,null,null,null,null,null,null,null,null,null,null,null,null,null,null,null,null,null,null,null,null,null,null,null,null,null,null,null,null,null,null,null,null,null,null,null,null,null,null,null,null,null,null,null,null,null,null,null,null,null,null,null,null,null,null,null,null,null,null,null,null,null,null,null,null,null,null,null,null,null,null,null,null,null,null,null,null,"566 - PACIFICO - ISLAS (USA)"]
[null,null,null,null,null,"C2732 - Fabricación de dispositivos de cableado",null,null,null,null,null,null,null,null,null,null,null,"CALIFORNIA-SANTANDER",null,null,null,null,null,null,null,null,null,null,null,null,null,null,null,null,null,null,null,null,null,null,null,null,null,null,null,null,null,null,null,null,null,null,null,null,null,null,null,null,null,null,null,null,null,null,null,null,null,null,null,null,null,null,null,null,null,null,null,null,null,null,null,null,null,null,null,null,null,null,null,null,null,null,null,null,null,null,"573 - PAISES BAJOS (HOLANDA)"]
[null,null,null,null,null,"C2740 - Fabricación de equipos eléctricos de iluminación",null,null,null,null,null,null,null,null,null,null,null,"CALIMA-VALLE",null,null,null,null,null,null,null,null,null,null,null,null,null,null,null,null,null,null,null,null,null,null,null,null,null,null,null,null,null,null,null,null,null,null,null,null,null,null,null,null,null,null,null,null,null,null,null,null,null,null,null,null,null,null,null,null,null,null,null,null,null,null,null,null,null,null,null,null,null,null,null,null,null,null,null,null,null,null,"576 - PAKISTAN"]
[null,null,null,null,null,"C2750 - Fabricación de aparatos de uso doméstico",null,null,null,null,null,null,null,null,null,null,null,"CALOTO-CAUCA",null,null,null,null,null,null,null,null,null,null,null,null,null,null,null,null,null,null,null,null,null,null,null,null,null,null,null,null,null,null,null,null,null,null,null,null,null,null,null,null,null,null,null,null,null,null,null,null,null,null,null,null,null,null,null,null,null,null,null,null,null,null,null,null,null,null,null,null,null,null,null,null,null,null,null,null,null,null,"578 - PALAU - ISLAS"]
[null,null,null,null,null,"C2790 - Fabricación de otros tipos de equipo eléctrico n.c.p.",null,null,null,null,null,null,null,null,null,null,null,"CAMPAMENTO-ANTIOQUIA",null,null,null,null,null,null,null,null,null,null,null,null,null,null,null,null,null,null,null,null,null,null,null,null,null,null,null,null,null,null,null,null,null,null,null,null,null,null,null,null,null,null,null,null,null,null,null,null,null,null,null,null,null,null,null,null,null,null,null,null,null,null,null,null,null,null,null,null,null,null,null,null,null,null,null,null,null,null,"580 - PANAMA"]
[null,null,null,null,null,"C2811 - Fabricación de motores, turbinas, y partes para motores de combustión interna",null,null,null,null,null,null,null,null,null,null,null,"CAMPO-DE-LA-CRUZ-ATLANTICO",null,null,null,null,null,null,null,null,null,null,null,null,null,null,null,null,null,null,null,null,null,null,null,null,null,null,null,null,null,null,null,null,null,null,null,null,null,null,null,null,null,null,null,null,null,null,null,null,null,null,null,null,null,null,null,null,null,null,null,null,null,null,null,null,null,null,null,null,null,null,null,null,null,null,null,null,null,null,"586 - PARAGUAY"]
[null,null,null,null,null,"C2812 - Fabricación de equipos de potencia hidráulica y neumática",null,null,null,null,null,null,null,null,null,null,null,"CAMPOALEGRE-HUILA",null,null,null,null,null,null,null,null,null,null,null,null,null,null,null,null,null,null,null,null,null,null,null,null,null,null,null,null,null,null,null,null,null,null,null,null,null,null,null,null,null,null,null,null,null,null,null,null,null,null,null,null,null,null,null,null,null,null,null,null,null,null,null,null,null,null,null,null,null,null,null,null,null,null,null,null,null,null,"589 - PERU"]
[null,null,null,null,null,"C2813 - Fabricación de otras bombas, compresores, grifos y válvulas",null,null,null,null,null,null,null,null,null,null,null,"CAMPOHERMOSO-BOYACA",null,null,null,null,null,null,null,null,null,null,null,null,null,null,null,null,null,null,null,null,null,null,null,null,null,null,null,null,null,null,null,null,null,null,null,null,null,null,null,null,null,null,null,null,null,null,null,null,null,null,null,null,null,null,null,null,null,null,null,null,null,null,null,null,null,null,null,null,null,null,null,null,null,null,null,null,null,null,"593 - PITCAIRN - ISLA"]
[null,null,null,null,null,"C2814 - Fabricación de cojinetes, engranajes, trenes de engranajes y piezas de transmisión",null,null,null,null,null,null,null,null,null,null,null,"CANALETE-CORDOBA",null,null,null,null,null,null,null,null,null,null,null,null,null,null,null,null,null,null,null,null,null,null,null,null,null,null,null,null,null,null,null,null,null,null,null,null,null,null,null,null,null,null,null,null,null,null,null,null,null,null,null,null,null,null,null,null,null,null,null,null,null,null,null,null,null,null,null,null,null,null,null,null,null,null,null,null,null,null,"599 - POLINESIA FRANCESA"]
[null,null,null,null,null,"C2815 - Fabricación de hornos, hogares y quemadores industriales",null,null,null,null,null,null,null,null,null,null,null,"CANASGORDAS-ANTIOQUIA",null,null,null,null,null,null,null,null,null,null,null,null,null,null,null,null,null,null,null,null,null,null,null,null,null,null,null,null,null,null,null,null,null,null,null,null,null,null,null,null,null,null,null,null,null,null,null,null,null,null,null,null,null,null,null,null,null,null,null,null,null,null,null,null,null,null,null,null,null,null,null,null,null,null,null,null,null,null,"603 - POLONIA"]
[null,null,null,null,null,"C2816 - Fabricación de equipo de elevación y manipulación",null,null,null,null,null,null,null,null,null,null,null,"CANDELARIA-ATLANTICO",null,null,null,null,null,null,null,null,null,null,null,null,null,null,null,null,null,null,null,null,null,null,null,null,null,null,null,null,null,null,null,null,null,null,null,null,null,null,null,null,null,null,null,null,null,null,null,null,null,null,null,null,null,null,null,null,null,null,null,null,null,null,null,null,null,null,null,null,null,null,null,null,null,null,null,null,null,null,"607 - PORTUGAL"]
[null,null,null,null,null,"C2817 - Fabricación de maquinaria y equipo de oficina (excepto computadoras y equipo periférico)",null,null,null,null,null,null,null,null,null,null,null,"CANDELARIA-VALLE",null,null,null,null,null,null,null,null,null,null,null,null,null,null,null,null,null,null,null,null,null,null,null,null,null,null,null,null,null,null,null,null,null,null,null,null,null,null,null,null,null,null,null,null,null,null,null,null,null,null,null,null,null,null,null,null,null,null,null,null,null,null,null,null,null,null,null,null,null,null,null,null,null,null,null,null,null,null,"611 - PUERTO RICO"]
[null,null,null,null,null,"C2818 - Fabricación de herramientas manuales con motor",null,null,null,null,null,null,null,null,null,null,null,"CANTAGALLO-BOLIVAR",null,null,null,null,null,null,null,null,null,null,null,null,null,null,null,null,null,null,null,null,null,null,null,null,null,null,null,null,null,null,null,null,null,null,null,null,null,null,null,null,null,null,null,null,null,null,null,null,null,null,null,null,null,null,null,null,null,null,null,null,null,null,null,null,null,null,null,null,null,null,null,null,null,null,null,null,null,null,"618 - QATAR"]
[null,null,null,null,null,"C2819 - Fabricación de otros tipos de maquinaria y equipo de uso general n.c.p.",null,null,null,null,null,null,null,null,null,null,null,"CAPARRAPI-CUNDINAMARCA",null,null,null,null,null,null,null,null,null,null,null,null,null,null,null,null,null,null,null,null,null,null,null,null,null,null,null,null,null,null,null,null,null,null,null,null,null,null,null,null,null,null,null,null,null,null,null,null,null,null,null,null,null,null,null,null,null,null,null,null,null,null,null,null,null,null,null,null,null,null,null,null,null,null,null,null,null,null,"628 - REINO UNIDO"]
[null,null,null,null,null,"C2821 - Fabricación de maquinaria agropecuaria y forestal",null,null,null,null,null,null,null,null,null,null,null,"CAPITANEJO-SANTANDER",null,null,null,null,null,null,null,null,null,null,null,null,null,null,null,null,null,null,null,null,null,null,null,null,null,null,null,null,null,null,null,null,null,null,null,null,null,null,null,null,null,null,null,null,null,null,null,null,null,null,null,null,null,null,null,null,null,null,null,null,null,null,null,null,null,null,null,null,null,null,null,null,null,null,null,null,null,null,"640 - REPUBLICA CENTROAFRICANA"]
[null,null,null,null,null,"C2822 - Fabricación de máquinas formadoras de metal y de máquinas herramienta",null,null,null,null,null,null,null,null,null,null,null,"CAQUEZA-CUNDINAMARCA",null,null,null,null,null,null,null,null,null,null,null,null,null,null,null,null,null,null,null,null,null,null,null,null,null,null,null,null,null,null,null,null,null,null,null,null,null,null,null,null,null,null,null,null,null,null,null,null,null,null,null,null,null,null,null,null,null,null,null,null,null,null,null,null,null,null,null,null,null,null,null,null,null,null,null,null,null,null,"644 - REPUBLICA CHECA"]
[null,null,null,null,null,"C2823 - Fabricación de maquinaria para la metalurgia",null,null,null,null,null,null,null,null,null,null,null,"CARACOLI-ANTIOQUIA",null,null,null,null,null,null,null,null,null,null,null,null,null,null,null,null,null,null,null,null,null,null,null,null,null,null,null,null,null,null,null,null,null,null,null,null,null,null,null,null,null,null,null,null,null,null,null,null,null,null,null,null,null,null,null,null,null,null,null,null,null,null,null,null,null,null,null,null,null,null,null,null,null,null,null,null,null,null,"647 - REPUBLICA DOMINICANA"]
[null,null,null,null,null,"C2824 - Fabricación de maquinaria para explotación de minas y canteras y para obras de construcción",null,null,null,null,null,null,null,null,null,null,null,"CARAMANTA-ANTIOQUIA",null,null,null,null,null,null,null,null,null,null,null,null,null,null,null,null,null,null,null,null,null,null,null,null,null,null,null,null,null,null,null,null,null,null,null,null,null,null,null,null,null,null,null,null,null,null,null,null,null,null,null,null,null,null,null,null,null,null,null,null,null,null,null,null,null,null,null,null,null,null,null,null,null,null,null,null,null,null,"660 - REUNION"]
[null,null,null,null,null,"C2825 - Fabricación de maquinaria para la elaboración de alimentos, bebidas y tabaco",null,null,null,null,null,null,null,null,null,null,null,"CARCASI-SANTANDER",null,null,null,null,null,null,null,null,null,null,null,null,null,null,null,null,null,null,null,null,null,null,null,null,null,null,null,null,null,null,null,null,null,null,null,null,null,null,null,null,null,null,null,null,null,null,null,null,null,null,null,null,null,null,null,null,null,null,null,null,null,null,null,null,null,null,null,null,null,null,null,null,null,null,null,null,null,null,"665 - ZIMBABWE"]
[null,null,null,null,null,"C2826 - Fabricación de maquinaria para la elaboración de productos textiles, prendas de vestir y cueros",null,null,null,null,null,null,null,null,null,null,null,"CAREPA-ANTIOQUIA",null,null,null,null,null,null,null,null,null,null,null,null,null,null,null,null,null,null,null,null,null,null,null,null,null,null,null,null,null,null,null,null,null,null,null,null,null,null,null,null,null,null,null,null,null,null,null,null,null,null,null,null,null,null,null,null,null,null,null,null,null,null,null,null,null,null,null,null,null,null,null,null,null,null,null,null,null,null,"670 - RUMANIA"]
[null,null,null,null,null,"C2829 - Fabricación de otros tipos de maquinaria y equipo de uso especial n.c.p.",null,null,null,null,null,null,null,null,null,null,null,"CARMEN-DE-APICALA-TOLIMA",null,null,null,null,null,null,null,null,null,null,null,null,null,null,null,null,null,null,null,null,null,null,null,null,null,null,null,null,null,null,null,null,null,null,null,null,null,null,null,null,null,null,null,null,null,null,null,null,null,null,null,null,null,null,null,null,null,null,null,null,null,null,null,null,null,null,null,null,null,null,null,null,null,null,null,null,null,null,"675 - RUANDA"]
[null,null,null,null,null,"C2910 - Fabricación de vehículos automotores y sus motores",null,null,null,null,null,null,null,null,null,null,null,"CARMEN-DE-BOLIVAR-BOLIVAR",null,null,null,null,null,null,null,null,null,null,null,null,null,null,null,null,null,null,null,null,null,null,null,null,null,null,null,null,null,null,null,null,null,null,null,null,null,null,null,null,null,null,null,null,null,null,null,null,null,null,null,null,null,null,null,null,null,null,null,null,null,null,null,null,null,null,null,null,null,null,null,null,null,null,null,null,null,null,"676 - RUSIA"]
[null,null,null,null,null,"C2920 - Fabricación de carrocerías para vehículos automotores; fabricación de remolques y semirremolques",null,null,null,null,null,null,null,null,null,null,null,"CARMEN-DE-CARUPA-CUNDINAMARCA",null,null,null,null,null,null,null,null,null,null,null,null,null,null,null,null,null,null,null,null,null,null,null,null,null,null,null,null,null,null,null,null,null,null,null,null,null,null,null,null,null,null,null,null,null,null,null,null,null,null,null,null,null,null,null,null,null,null,null,null,null,null,null,null,null,null,null,null,null,null,null,null,null,null,null,null,null,null,"677 - SALOMON - ISLAS"]
[null,null,null,null,null,"C2930 - Fabricación de partes, piezas (autopartes) y accesorios (lujos) para vehículos automotores",null,null,null,null,null,null,null,null,null,null,null,"CARMEN-DE-VIBORAL-ANTIOQUIA",null,null,null,null,null,null,null,null,null,null,null,null,null,null,null,null,null,null,null,null,null,null,null,null,null,null,null,null,null,null,null,null,null,null,null,null,null,null,null,null,null,null,null,null,null,null,null,null,null,null,null,null,null,null,null,null,null,null,null,null,null,null,null,null,null,null,null,null,null,null,null,null,null,null,null,null,null,null,"685 - SAHARA OCCIDENTAL"]
[null,null,null,null,null,"C3011 - Construcción de barcos y de estructuras flotantes",null,null,null,null,null,null,null,null,null,null,null,"CARMEN-DEL-DARIEN-CHOCO",null,null,null,null,null,null,null,null,null,null,null,null,null,null,null,null,null,null,null,null,null,null,null,null,null,null,null,null,null,null,null,null,null,null,null,null,null,null,null,null,null,null,null,null,null,null,null,null,null,null,null,null,null,null,null,null,null,null,null,null,null,null,null,null,null,null,null,null,null,null,null,null,null,null,null,null,null,null,"687 - SAMOA"]
[null,null,null,null,null,"C3012 - Construcción de embarcaciones de recreo y deporte",null,null,null,null,null,null,null,null,null,null,null,"CAROLINA-ANTIOQUIA",null,null,null,null,null,null,null,null,null,null,null,null,null,null,null,null,null,null,null,null,null,null,null,null,null,null,null,null,null,null,null,null,null,null,null,null,null,null,null,null,null,null,null,null,null,null,null,null,null,null,null,null,null,null,null,null,null,null,null,null,null,null,null,null,null,null,null,null,null,null,null,null,null,null,null,null,null,null,"690 - SAMOA NORTEAMERICANA"]
[null,null,null,null,null,"C3020 - Fabricación de locomotoras y de material rodante para ferrocarriles",null,null,null,null,null,null,null,null,null,null,null,"CARTAGENA-BOLIVAR",null,null,null,null,null,null,null,null,null,null,null,null,null,null,null,null,null,null,null,null,null,null,null,null,null,null,null,null,null,null,null,null,null,null,null,null,null,null,null,null,null,null,null,null,null,null,null,null,null,null,null,null,null,null,null,null,null,null,null,null,null,null,null,null,null,null,null,null,null,null,null,null,null,null,null,null,null,null,"695 - SAN CRISTOBAL Y NIEVES"]
[null,null,null,null,null,"C3030 - Fabricación de aeronaves, naves espaciales y de maquinaria conexa",null,null,null,null,null,null,null,null,null,null,null,"CARTAGENA-DEL-CHAIRA-CAQUETA",null,null,null,null,null,null,null,null,null,null,null,null,null,null,null,null,null,null,null,null,null,null,null,null,null,null,null,null,null,null,null,null,null,null,null,null,null,null,null,null,null,null,null,null,null,null,null,null,null,null,null,null,null,null,null,null,null,null,null,null,null,null,null,null,null,null,null,null,null,null,null,null,null,null,null,null,null,null,"697 - SAN MARINO"]
[null,null,null,null,null,"C3040 - Fabricación de vehículos militares de combate",null,null,null,null,null,null,null,null,null,null,null,"CARTAGO-VALLE",null,null,null,null,null,null,null,null,null,null,null,null,null,null,null,null,null,null,null,null,null,null,null,null,null,null,null,null,null,null,null,null,null,null,null,null,null,null,null,null,null,null,null,null,null,null,null,null,null,null,null,null,null,null,null,null,null,null,null,null,null,null,null,null,null,null,null,null,null,null,null,null,null,null,null,null,null,null,"700 - SAN PEDRO Y MIGUELON"]
[null,null,null,null,null,"C3091 - Fabricación de motocicletas",null,null,null,null,null,null,null,null,null,null,null,"CARURU-VAUPES",null,null,null,null,null,null,null,null,null,null,null,null,null,null,null,null,null,null,null,null,null,null,null,null,null,null,null,null,null,null,null,null,null,null,null,null,null,null,null,null,null,null,null,null,null,null,null,null,null,null,null,null,null,null,null,null,null,null,null,null,null,null,null,null,null,null,null,null,null,null,null,null,null,null,null,null,null,null,"705 - SAN VICENTE Y LAS GRANADINAS"]
[null,null,null,null,null,"C3092 - Fabricación de bicicletas y de sillas de ruedas para personas con discapacidad",null,null,null,null,null,null,null,null,null,null,null,"CASABIANCA-TOLIMA",null,null,null,null,null,null,null,null,null,null,null,null,null,null,null,null,null,null,null,null,null,null,null,null,null,null,null,null,null,null,null,null,null,null,null,null,null,null,null,null,null,null,null,null,null,null,null,null,null,null,null,null,null,null,null,null,null,null,null,null,null,null,null,null,null,null,null,null,null,null,null,null,null,null,null,null,null,null,"710 - SANTA ELENA"]
[null,null,null,null,null,"C3099 - Fabricación de otros tipos de equipo de transporte n.c.p.",null,null,null,null,null,null,null,null,null,null,null,"CASTILLA-LA-NUEVA-META",null,null,null,null,null,null,null,null,null,null,null,null,null,null,null,null,null,null,null,null,null,null,null,null,null,null,null,null,null,null,null,null,null,null,null,null,null,null,null,null,null,null,null,null,null,null,null,null,null,null,null,null,null,null,null,null,null,null,null,null,null,null,null,null,null,null,null,null,null,null,null,null,null,null,null,null,null,null,"715 - SANTA LUCIA"]
[null,null,null,null,null,"C3110 - Fabricación de muebles",null,null,null,null,null,null,null,null,null,null,null,"CAUCASIA-ANTIOQUIA",null,null,null,null,null,null,null,null,null,null,null,null,null,null,null,null,null,null,null,null,null,null,null,null,null,null,null,null,null,null,null,null,null,null,null,null,null,null,null,null,null,null,null,null,null,null,null,null,null,null,null,null,null,null,null,null,null,null,null,null,null,null,null,null,null,null,null,null,null,null,null,null,null,null,null,null,null,null,"720 - SANTO TOME Y PRINCIPE"]
[null,null,null,null,null,"C3120 - Fabricación de colchones y somieres",null,null,null,null,null,null,null,null,null,null,null,"CEPITA-SANTANDER",null,null,null,null,null,null,null,null,null,null,null,null,null,null,null,null,null,null,null,null,null,null,null,null,null,null,null,null,null,null,null,null,null,null,null,null,null,null,null,null,null,null,null,null,null,null,null,null,null,null,null,null,null,null,null,null,null,null,null,null,null,null,null,null,null,null,null,null,null,null,null,null,null,null,null,null,null,null,"728 - SENEGAL"]
[null,null,null,null,null,"C3210 - Fabricación de joyas, bisutería y artículos conexos",null,null,null,null,null,null,null,null,null,null,null,"CERETE-CORDOBA",null,null,null,null,null,null,null,null,null,null,null,null,null,null,null,null,null,null,null,null,null,null,null,null,null,null,null,null,null,null,null,null,null,null,null,null,null,null,null,null,null,null,null,null,null,null,null,null,null,null,null,null,null,null,null,null,null,null,null,null,null,null,null,null,null,null,null,null,null,null,null,null,null,null,null,null,null,null,"731 - SEYCHELLES"]
[null,null,null,null,null,"C3220 - Fabricación de instrumentos musicales",null,null,null,null,null,null,null,null,null,null,null,"CERINZA-BOYACA",null,null,null,null,null,null,null,null,null,null,null,null,null,null,null,null,null,null,null,null,null,null,null,null,null,null,null,null,null,null,null,null,null,null,null,null,null,null,null,null,null,null,null,null,null,null,null,null,null,null,null,null,null,null,null,null,null,null,null,null,null,null,null,null,null,null,null,null,null,null,null,null,null,null,null,null,null,null,"735 - SIERRA LEONA"]
[null,null,null,null,null,"C3230 - Fabricación de artículos y equipo para la práctica del deporte",null,null,null,null,null,null,null,null,null,null,null,"CERRITO-SANTANDER",null,null,null,null,null,null,null,null,null,null,null,null,null,null,null,null,null,null,null,null,null,null,null,null,null,null,null,null,null,null,null,null,null,null,null,null,null,null,null,null,null,null,null,null,null,null,null,null,null,null,null,null,null,null,null,null,null,null,null,null,null,null,null,null,null,null,null,null,null,null,null,null,null,null,null,null,null,null,"741- SINGAPUR"]
[null,null,null,null,null,"C3240 - Fabricación de juegos, juguetes y rompecabezas",null,null,null,null,null,null,null,null,null,null,null,"CERRO-DE-SAN-ANTONIO-MAGDALENA",null,null,null,null,null,null,null,null,null,null,null,null,null,null,null,null,null,null,null,null,null,null,null,null,null,null,null,null,null,null,null,null,null,null,null,null,null,null,null,null,null,null,null,null,null,null,null,null,null,null,null,null,null,null,null,null,null,null,null,null,null,null,null,null,null,null,null,null,null,null,null,null,null,null,null,null,null,null,"744 - SIRIA - REPUBLICA ARABE DE"]
[null,null,null,null,null,"C3250 - Fabricación de instrumentos, aparatos y materiales médicos y odontológicos (incluido mobiliario)",null,null,null,null,null,null,null,null,null,null,null,"CHACHAGÜÍ-NARINO",null,null,null,null,null,null,null,null,null,null,null,null,null,null,null,null,null,null,null,null,null,null,null,null,null,null,null,null,null,null,null,null,null,null,null,null,null,null,null,null,null,null,null,null,null,null,null,null,null,null,null,null,null,null,null,null,null,null,null,null,null,null,null,null,null,null,null,null,null,null,null,null,null,null,null,null,null,null,"748 - SOMALIA"]
[null,null,null,null,null,"C3290 - Otras industrias manufactureras n.c.p.",null,null,null,null,null,null,null,null,null,null,null,"CHAGUANI-CUNDINAMARCA",null,null,null,null,null,null,null,null,null,null,null,null,null,null,null,null,null,null,null,null,null,null,null,null,null,null,null,null,null,null,null,null,null,null,null,null,null,null,null,null,null,null,null,null,null,null,null,null,null,null,null,null,null,null,null,null,null,null,null,null,null,null,null,null,null,null,null,null,null,null,null,null,null,null,null,null,null,null,"750 - SRI LANKA"]
[null,null,null,null,null,"C3311 - Mantenimiento y reparación especializado de productos elaborados en metal",null,null,null,null,null,null,null,null,null,null,null,"CHALAN-SUCRE",null,null,null,null,null,null,null,null,null,null,null,null,null,null,null,null,null,null,null,null,null,null,null,null,null,null,null,null,null,null,null,null,null,null,null,null,null,null,null,null,null,null,null,null,null,null,null,null,null,null,null,null,null,null,null,null,null,null,null,null,null,null,null,null,null,null,null,null,null,null,null,null,null,null,null,null,null,null,"756 - SUDAFRICA - REPUBLICA DE"]
[null,null,null,null,null,"C3312 - Mantenimiento y reparación especializado de maquinaria y equipo",null,null,null,null,null,null,null,null,null,null,null,"CHAMEZA-CASANARE",null,null,null,null,null,null,null,null,null,null,null,null,null,null,null,null,null,null,null,null,null,null,null,null,null,null,null,null,null,null,null,null,null,null,null,null,null,null,null,null,null,null,null,null,null,null,null,null,null,null,null,null,null,null,null,null,null,null,null,null,null,null,null,null,null,null,null,null,null,null,null,null,null,null,null,null,null,null,"759 - SUDAN"]
[null,null,null,null,null,"C3313 - Mantenimiento y reparación especializado de equipo electrónico y óptico",null,null,null,null,null,null,null,null,null,null,null,"CHAPARRAL-TOLIMA",null,null,null,null,null,null,null,null,null,null,null,null,null,null,null,null,null,null,null,null,null,null,null,null,null,null,null,null,null,null,null,null,null,null,null,null,null,null,null,null,null,null,null,null,null,null,null,null,null,null,null,null,null,null,null,null,null,null,null,null,null,null,null,null,null,null,null,null,null,null,null,null,null,null,null,null,null,null,"764 - SUECIA"]
[null,null,null,null,null,"C3314 - Mantenimiento y reparación especializado de equipo eléctrico",null,null,null,null,null,null,null,null,null,null,null,"CHARALA-SANTANDER",null,null,null,null,null,null,null,null,null,null,null,null,null,null,null,null,null,null,null,null,null,null,null,null,null,null,null,null,null,null,null,null,null,null,null,null,null,null,null,null,null,null,null,null,null,null,null,null,null,null,null,null,null,null,null,null,null,null,null,null,null,null,null,null,null,null,null,null,null,null,null,null,null,null,null,null,null,null,"767 - SUIZA"]
[null,null,null,null,null,"C3315 - Mantenimiento y reparación especializado de equipo de transporte, excepto los vehículos automotores, motocicletas y bicicletas",null,null,null,null,null,null,null,null,null,null,null,"CHARTA-SANTANDER",null,null,null,null,null,null,null,null,null,null,null,null,null,null,null,null,null,null,null,null,null,null,null,null,null,null,null,null,null,null,null,null,null,null,null,null,null,null,null,null,null,null,null,null,null,null,null,null,null,null,null,null,null,null,null,null,null,null,null,null,null,null,null,null,null,null,null,null,null,null,null,null,null,null,null,null,null,null,"770 - SURINAM"]
[null,null,null,null,null,"C3319 - Mantenimiento y reparación de otros tipos de equipos y sus componentes n.c.p.",null,null,null,null,null,null,null,null,null,null,null,"CHIA-CUNDINAMARCA",null,null,null,null,null,null,null,null,null,null,null,null,null,null,null,null,null,null,null,null,null,null,null,null,null,null,null,null,null,null,null,null,null,null,null,null,null,null,null,null,null,null,null,null,null,null,null,null,null,null,null,null,null,null,null,null,null,null,null,null,null,null,null,null,null,null,null,null,null,null,null,null,null,null,null,null,null,null,"773 - SWAZILANDIA"]
[null,null,null,null,null,"C3320 - Instalación especializada de maquinaria y equipo industrial",null,null,null,null,null,null,null,null,null,null,null,"CHIGORODO-ANTIOQUIA",null,null,null,null,null,null,null,null,null,null,null,null,null,null,null,null,null,null,null,null,null,null,null,null,null,null,null,null,null,null,null,null,null,null,null,null,null,null,null,null,null,null,null,null,null,null,null,null,null,null,null,null,null,null,null,null,null,null,null,null,null,null,null,null,null,null,null,null,null,null,null,null,null,null,null,null,null,null,"774 - TADJIKISTAN"]
[null,null,null,null,null,"D3511 - Generación de energía eléctrica",null,null,null,null,null,null,null,null,null,null,null,"CHIMA-CORDOBA",null,null,null,null,null,null,null,null,null,null,null,null,null,null,null,null,null,null,null,null,null,null,null,null,null,null,null,null,null,null,null,null,null,null,null,null,null,null,null,null,null,null,null,null,null,null,null,null,null,null,null,null,null,null,null,null,null,null,null,null,null,null,null,null,null,null,null,null,null,null,null,null,null,null,null,null,null,null,"776 - TAILANDIA"]
[null,null,null,null,null,"D3512 - Transmisión de energía eléctrica",null,null,null,null,null,null,null,null,null,null,null,"CHIMA-SANTANDER",null,null,null,null,null,null,null,null,null,null,null,null,null,null,null,null,null,null,null,null,null,null,null,null,null,null,null,null,null,null,null,null,null,null,null,null,null,null,null,null,null,null,null,null,null,null,null,null,null,null,null,null,null,null,null,null,null,null,null,null,null,null,null,null,null,null,null,null,null,null,null,null,null,null,null,null,null,null,"780 - TANZANIA - REPUBLICA UNIDA DE"]
[null,null,null,null,null,"D3513 - Distribución de energía eléctrica",null,null,null,null,null,null,null,null,null,null,null,"CHIMICHAGUA-CESAR",null,null,null,null,null,null,null,null,null,null,null,null,null,null,null,null,null,null,null,null,null,null,null,null,null,null,null,null,null,null,null,null,null,null,null,null,null,null,null,null,null,null,null,null,null,null,null,null,null,null,null,null,null,null,null,null,null,null,null,null,null,null,null,null,null,null,null,null,null,null,null,null,null,null,null,null,null,null,"783- DJIBOUTI"]
[null,null,null,null,null,"D3514 - Comercialización de energía eléctrica",null,null,null,null,null,null,null,null,null,null,null,"CHINACOTA-NORTE DE SANTANDER",null,null,null,null,null,null,null,null,null,null,null,null,null,null,null,null,null,null,null,null,null,null,null,null,null,null,null,null,null,null,null,null,null,null,null,null,null,null,null,null,null,null,null,null,null,null,null,null,null,null,null,null,null,null,null,null,null,null,null,null,null,null,null,null,null,null,null,null,null,null,null,null,null,null,null,null,null,null,"787 - TERRITORIO BRITANICO DEL OCEANO INDICO"]
[null,null,null,null,null,"D3520 - Producción de gas; distribución de combustibles gaseosos por tuberías",null,null,null,null,null,null,null,null,null,null,null,"CHINAVITA-BOYACA",null,null,null,null,null,null,null,null,null,null,null,null,null,null,null,null,null,null,null,null,null,null,null,null,null,null,null,null,null,null,null,null,null,null,null,null,null,null,null,null,null,null,null,null,null,null,null,null,null,null,null,null,null,null,null,null,null,null,null,null,null,null,null,null,null,null,null,null,null,null,null,null,null,null,null,null,null,null,"788 - TIMOR DEL ESTE"]
[null,null,null,null,null,"D3530 - Suministro de vapor y aire acondicionado",null,null,null,null,null,null,null,null,null,null,null,"CHINCHINA-CALDAS",null,null,null,null,null,null,null,null,null,null,null,null,null,null,null,null,null,null,null,null,null,null,null,null,null,null,null,null,null,null,null,null,null,null,null,null,null,null,null,null,null,null,null,null,null,null,null,null,null,null,null,null,null,null,null,null,null,null,null,null,null,null,null,null,null,null,null,null,null,null,null,null,null,null,null,null,null,null,"800 - TOGO"]
[null,null,null,null,null,"E3600 - Captación, tratamiento y distribución de agua",null,null,null,null,null,null,null,null,null,null,null,"CHINU-CORDOBA",null,null,null,null,null,null,null,null,null,null,null,null,null,null,null,null,null,null,null,null,null,null,null,null,null,null,null,null,null,null,null,null,null,null,null,null,null,null,null,null,null,null,null,null,null,null,null,null,null,null,null,null,null,null,null,null,null,null,null,null,null,null,null,null,null,null,null,null,null,null,null,null,null,null,null,null,null,null,"805 - TOKELAU"]
[null,null,null,null,null,"E3700 - Evacuación y tratamiento de aguas residuales",null,null,null,null,null,null,null,null,null,null,null,"CHIPAQUE-CUNDINAMARCA",null,null,null,null,null,null,null,null,null,null,null,null,null,null,null,null,null,null,null,null,null,null,null,null,null,null,null,null,null,null,null,null,null,null,null,null,null,null,null,null,null,null,null,null,null,null,null,null,null,null,null,null,null,null,null,null,null,null,null,null,null,null,null,null,null,null,null,null,null,null,null,null,null,null,null,null,null,null,"810 - TONGA"]
[null,null,null,null,null,"E3811 - Recolección de desechos no peligrosos",null,null,null,null,null,null,null,null,null,null,null,"CHIPATA-SANTANDER",null,null,null,null,null,null,null,null,null,null,null,null,null,null,null,null,null,null,null,null,null,null,null,null,null,null,null,null,null,null,null,null,null,null,null,null,null,null,null,null,null,null,null,null,null,null,null,null,null,null,null,null,null,null,null,null,null,null,null,null,null,null,null,null,null,null,null,null,null,null,null,null,null,null,null,null,null,null,"815 - TRINIDAD Y TOBAGO"]
[null,null,null,null,null,"E3812 - Recolección de desechos peligrosos",null,null,null,null,null,null,null,null,null,null,null,"CHIQUINQUIRA-BOYACA",null,null,null,null,null,null,null,null,null,null,null,null,null,null,null,null,null,null,null,null,null,null,null,null,null,null,null,null,null,null,null,null,null,null,null,null,null,null,null,null,null,null,null,null,null,null,null,null,null,null,null,null,null,null,null,null,null,null,null,null,null,null,null,null,null,null,null,null,null,null,null,null,null,null,null,null,null,null,"820 - TUNICIA"]
[null,null,null,null,null,"E3821 - Tratamiento y disposición de desechos no peligrosos",null,null,null,null,null,null,null,null,null,null,null,"CHIQUIZA-BOYACA",null,null,null,null,null,null,null,null,null,null,null,null,null,null,null,null,null,null,null,null,null,null,null,null,null,null,null,null,null,null,null,null,null,null,null,null,null,null,null,null,null,null,null,null,null,null,null,null,null,null,null,null,null,null,null,null,null,null,null,null,null,null,null,null,null,null,null,null,null,null,null,null,null,null,null,null,null,null,"823 - TURCAS Y CAICOS - ISLAS"]
[null,null,null,null,null,"E3822 - Tratamiento y disposición de desechos peligrosos",null,null,null,null,null,null,null,null,null,null,null,"CHIRIGUANA-CESAR",null,null,null,null,null,null,null,null,null,null,null,null,null,null,null,null,null,null,null,null,null,null,null,null,null,null,null,null,null,null,null,null,null,null,null,null,null,null,null,null,null,null,null,null,null,null,null,null,null,null,null,null,null,null,null,null,null,null,null,null,null,null,null,null,null,null,null,null,null,null,null,null,null,null,null,null,null,null,"825 - TURKMENISTAN"]
[null,null,null,null,null,"E3830 - Recuperación de materiales",null,null,null,null,null,null,null,null,null,null,null,"CHISCAS-BOYACA",null,null,null,null,null,null,null,null,null,null,null,null,null,null,null,null,null,null,null,null,null,null,null,null,null,null,null,null,null,null,null,null,null,null,null,null,null,null,null,null,null,null,null,null,null,null,null,null,null,null,null,null,null,null,null,null,null,null,null,null,null,null,null,null,null,null,null,null,null,null,null,null,null,null,null,null,null,null,"827 - TURQUIA"]
[null,null,null,null,null,"E3900 - Actividades de saneamiento ambiental y otros servicios de gestión de desechos",null,null,null,null,null,null,null,null,null,null,null,"CHITA-BOYACA",null,null,null,null,null,null,null,null,null,null,null,null,null,null,null,null,null,null,null,null,null,null,null,null,null,null,null,null,null,null,null,null,null,null,null,null,null,null,null,null,null,null,null,null,null,null,null,null,null,null,null,null,null,null,null,null,null,null,null,null,null,null,null,null,null,null,null,null,null,null,null,null,null,null,null,null,null,null,"828 - TUVALU"]
[null,null,null,null,null,"F4111 - Construcción de edificios residenciales",null,null,null,null,null,null,null,null,null,null,null,"CHITAGA-NORTE DE SANTANDER",null,null,null,null,null,null,null,null,null,null,null,null,null,null,null,null,null,null,null,null,null,null,null,null,null,null,null,null,null,null,null,null,null,null,null,null,null,null,null,null,null,null,null,null,null,null,null,null,null,null,null,null,null,null,null,null,null,null,null,null,null,null,null,null,null,null,null,null,null,null,null,null,null,null,null,null,null,null,"830 - UCRANIA"]
[null,null,null,null,null,"F4112 - Construcción de edificios no residenciales",null,null,null,null,null,null,null,null,null,null,null,"CHITARAQUE-BOYACA",null,null,null,null,null,null,null,null,null,null,null,null,null,null,null,null,null,null,null,null,null,null,null,null,null,null,null,null,null,null,null,null,null,null,null,null,null,null,null,null,null,null,null,null,null,null,null,null,null,null,null,null,null,null,null,null,null,null,null,null,null,null,null,null,null,null,null,null,null,null,null,null,null,null,null,null,null,null,"833 - UGANDA"]
[null,null,null,null,null,"F4210 - Construcción de carreteras y vías de ferrocarril",null,null,null,null,null,null,null,null,null,null,null,"CHIVATA-BOYACA",null,null,null,null,null,null,null,null,null,null,null,null,null,null,null,null,null,null,null,null,null,null,null,null,null,null,null,null,null,null,null,null,null,null,null,null,null,null,null,null,null,null,null,null,null,null,null,null,null,null,null,null,null,null,null,null,null,null,null,null,null,null,null,null,null,null,null,null,null,null,null,null,null,null,null,null,null,null,"845 - URUGUAY"]
[null,null,null,null,null,"F4220 - Construcción de proyectos de servicio público",null,null,null,null,null,null,null,null,null,null,null,"CHIVOLO-MAGDALENA",null,null,null,null,null,null,null,null,null,null,null,null,null,null,null,null,null,null,null,null,null,null,null,null,null,null,null,null,null,null,null,null,null,null,null,null,null,null,null,null,null,null,null,null,null,null,null,null,null,null,null,null,null,null,null,null,null,null,null,null,null,null,null,null,null,null,null,null,null,null,null,null,null,null,null,null,null,null,"847 - UZBEKISTAN"]
[null,null,null,null,null,"F4290 - Construcción de otras obras de ingeniería civil",null,null,null,null,null,null,null,null,null,null,null,"CHIVOR-BOYACA",null,null,null,null,null,null,null,null,null,null,null,null,null,null,null,null,null,null,null,null,null,null,null,null,null,null,null,null,null,null,null,null,null,null,null,null,null,null,null,null,null,null,null,null,null,null,null,null,null,null,null,null,null,null,null,null,null,null,null,null,null,null,null,null,null,null,null,null,null,null,null,null,null,null,null,null,null,null,"850 - VENEZUELA"]
[null,null,null,null,null,"F4311 - Demolición",null,null,null,null,null,null,null,null,null,null,null,"CHOACHI-CUNDINAMARCA",null,null,null,null,null,null,null,null,null,null,null,null,null,null,null,null,null,null,null,null,null,null,null,null,null,null,null,null,null,null,null,null,null,null,null,null,null,null,null,null,null,null,null,null,null,null,null,null,null,null,null,null,null,null,null,null,null,null,null,null,null,null,null,null,null,null,null,null,null,null,null,null,null,null,null,null,null,null,"855 - VIET NAM"]
[null,null,null,null,null,"F4312 - Preparación del terreno",null,null,null,null,null,null,null,null,null,null,null,"CHOCONTA-CUNDINAMARCA",null,null,null,null,null,null,null,null,null,null,null,null,null,null,null,null,null,null,null,null,null,null,null,null,null,null,null,null,null,null,null,null,null,null,null,null,null,null,null,null,null,null,null,null,null,null,null,null,null,null,null,null,null,null,null,null,null,null,null,null,null,null,null,null,null,null,null,null,null,null,null,null,null,null,null,null,null,null,"863 - VIRGENES - ISLAS (BRITANICAS)"]
[null,null,null,null,null,"F4321 - Instalaciones eléctricas",null,null,null,null,null,null,null,null,null,null,null,"CICUCO-BOLIVAR",null,null,null,null,null,null,null,null,null,null,null,null,null,null,null,null,null,null,null,null,null,null,null,null,null,null,null,null,null,null,null,null,null,null,null,null,null,null,null,null,null,null,null,null,null,null,null,null,null,null,null,null,null,null,null,null,null,null,null,null,null,null,null,null,null,null,null,null,null,null,null,null,null,null,null,null,null,null,"866 - VIRGENES - ISLAS (NORTEAMERICANAS)"]
[null,null,null,null,null,"F4322 - Instalaciones de fontanería, calefacción y aire acondicionado",null,null,null,null,null,null,null,null,null,null,null,"CIENAGA-BOYACA",null,null,null,null,null,null,null,null,null,null,null,null,null,null,null,null,null,null,null,null,null,null,null,null,null,null,null,null,null,null,null,null,null,null,null,null,null,null,null,null,null,null,null,null,null,null,null,null,null,null,null,null,null,null,null,null,null,null,null,null,null,null,null,null,null,null,null,null,null,null,null,null,null,null,null,null,null,null,"870 - FIJI"]
[null,null,null,null,null,"F4329 - Otras instalaciones especializadas",null,null,null,null,null,null,null,null,null,null,null,"CIENAGA-DE-ORO-CORDOBA",null,null,null,null,null,null,null,null,null,null,null,null,null,null,null,null,null,null,null,null,null,null,null,null,null,null,null,null,null,null,null,null,null,null,null,null,null,null,null,null,null,null,null,null,null,null,null,null,null,null,null,null,null,null,null,null,null,null,null,null,null,null,null,null,null,null,null,null,null,null,null,null,null,null,null,null,null,null,"875 - WALLIS Y FORTUNA - ISLAS"]
[null,null,null,null,null,"F4330 - Terminación y acabado de edificios y obras de ingeniería civil",null,null,null,null,null,null,null,null,null,null,null,"CIENAGA-MAGDALENA",null,null,null,null,null,null,null,null,null,null,null,null,null,null,null,null,null,null,null,null,null,null,null,null,null,null,null,null,null,null,null,null,null,null,null,null,null,null,null,null,null,null,null,null,null,null,null,null,null,null,null,null,null,null,null,null,null,null,null,null,null,null,null,null,null,null,null,null,null,null,null,null,null,null,null,null,null,null,"880 - YEMEN"]
[null,null,null,null,null,"F4390 - Otras actividades especializadas para la construcción de edificios y obras de ingeniería civil",null,null,null,null,null,null,null,null,null,null,null,"CIMITARRA-SANTANDER",null,null,null,null,null,null,null,null,null,null,null,null,null,null,null,null,null,null,null,null,null,null,null,null,null,null,null,null,null,null,null,null,null,null,null,null,null,null,null,null,null,null,null,null,null,null,null,null,null,null,null,null,null,null,null,null,null,null,null,null,null,null,null,null,null,null,null,null,null,null,null,null,null,null,null,null,null,null,"885 - YUGOSLAVIA"]
[null,null,null,null,null,"G4511 - Comercio de vehículos automotores nuevos",null,null,null,null,null,null,null,null,null,null,null,"CIRCASIA-QUINDIO",null,null,null,null,null,null,null,null,null,null,null,null,null,null,null,null,null,null,null,null,null,null,null,null,null,null,null,null,null,null,null,null,null,null,null,null,null,null,null,null,null,null,null,null,null,null,null,null,null,null,null,null,null,null,null,null,null,null,null,null,null,null,null,null,null,null,null,null,null,null,null,null,null,null,null,null,null,null,"888 - ZAIRE"]
[null,null,null,null,null,"G4512 - Comercio de vehículos automotores usados",null,null,null,null,null,null,null,null,null,null,null,"CISNEROS-ANTIOQUIA",null,null,null,null,null,null,null,null,null,null,null,null,null,null,null,null,null,null,null,null,null,null,null,null,null,null,null,null,null,null,null,null,null,null,null,null,null,null,null,null,null,null,null,null,null,null,null,null,null,null,null,null,null,null,null,null,null,null,null,null,null,null,null,null,null,null,null,null,null,null,null,null,null,null,null,null,null,null,"890 - ZAMBIA"]
[null,null,null,null,null,"G4520 - Mantenimiento y reparación de vehículos automotores",null,null,null,null,null,null,null,null,null,null,null,"CLEMENCIA-BOLIVAR",null,null,null,null,null,null,null,null,null,null,null,null,null,null,null,null,null,null,null,null,null,null,null,null,null,null,null,null,null,null,null,null,null,null,null,null,null,null,null,null,null,null,null,null,null,null,null,null,null,null,null,null,null,null,null,null,null,null,null,null,null,null,null,null,null,null,null,null,null,null,null,null,null,null,null,null,null,null,"897 - ZONA NEUTRAL PALESTINA"]
[null,null,null,null,null,"G4530 - Comercio de partes, piezas (autopartes) y accesorios (lujos) para vehículos automotores",null,null,null,null,null,null,null,null,null,null,null,"COCORNA-ANTIOQUIA"]
[null,null,null,null,null,"G4541 - Comercio de motocicletas y de sus partes, piezas y accesorios",null,null,null,null,null,null,null,null,null,null,null,"COELLO-TOLIMA"]
[null,null,null,null,null,"G4542 - Mantenimiento y reparación de motocicletas y de sus partes y piezas",null,null,null,null,null,null,null,null,null,null,null,"COGUA-CUNDINAMARCA"]
[null,null,null,null,null,"G4610 - Comercio al por mayor a cambio de una retribución o por contrata",null,null,null,null,null,null,null,null,null,null,null,"COLOMBIA-HUILA"]
[null,null,null,null,null,"G4620 - Comercio al por mayor de materias primas agropecuarias; animales vivos",null,null,null,null,null,null,null,null,null,null,null,"COLON-NARINO"]
[null,null,null,null,null,"G4631 - Comercio al por mayor de productos alimenticios",null,null,null,null,null,null,null,null,null,null,null,"COLON-PUTUMAYO"]
[null,null,null,null,null,"G4632 - Comercio al por mayor de bebidas y tabaco",null,null,null,null,null,null,null,null,null,null,null,"COLOSO-SUCRE"]
[null,null,null,null,null,"G4641 - Comercio al por mayor de productos textiles, productos confeccionados para uso doméstico",null,null,null,null,null,null,null,null,null,null,null,"COMBITA-BOYACA"]
[null,null,null,null,null,"G4642 - Comercio al por mayor de prendas de vestir",null,null,null,null,null,null,null,null,null,null,null,"CONCEPCION-ANTIOQUIA"]
[null,null,null,null,null,"G4643 - Comercio al por mayor de calzado",null,null,null,null,null,null,null,null,null,null,null,"CONCEPCION-SANTANDER"]
[null,null,null,null,null,"G4644 - Comercio al por mayor de aparatos y equipo de uso doméstico",null,null,null,null,null,null,null,null,null,null,null,"CONCORDIA-ANTIOQUIA"]
[null,null,null,null,null,"G4645 - Comercio al por mayor de productos farmacéuticos, medicinales, cosméticos y de tocador",null,null,null,null,null,null,null,null,null,null,null,"CONCORDIA-MAGDALENA"]
[null,null,null,null,null,"G4649 - Comercio al por mayor de otros utensilios domésticos n.c.p.",null,null,null,null,null,null,null,null,null,null,null,"CONDOTO-CHOCO"]
[null,null,null,null,null,"G4651 - Comercio al por mayor de computadores, equipo periférico y programas de informática",null,null,null,null,null,null,null,null,null,null,null,"CONFINES-SANTANDER"]
[null,null,null,null,null,"G4652 - Comercio al por mayor de equipo, partes y piezas electrónicos y de telecomunicaciones",null,null,null,null,null,null,null,null,null,null,null,"CONSACA-NARINO"]
[null,null,null,null,null,"G4653 - Comercio al por mayor de maquinaria y equipo agropecuarios",null,null,null,null,null,null,null,null,null,null,null,"CONTADERO-NARINO"]
[null,null,null,null,null,"G4659 - Comercio al por mayor de otros tipos de maquinaria y equipo n.c.p.",null,null,null,null,null,null,null,null,null,null,null,"CONTRATACION-SANTANDER"]
[null,null,null,null,null,"G4661 - Comercio al por mayor de combustibles sólidos, líquidos, gaseosos y productos conexos",null,null,null,null,null,null,null,null,null,null,null,"CONVENCION-NORTE DE SANTANDER"]
[null,null,null,null,null,"G4662 - Comercio al por mayor de metales y productos metalíferos",null,null,null,null,null,null,null,null,null,null,null,"COPACABANA-ANTIOQUIA"]
[null,null,null,null,null,"G4663 - Comercio al por mayor de materiales de construcción, artículos de ferretería, pinturas, productos de vidrio, equipo y materiales de fontanería y calefacción",null,null,null,null,null,null,null,null,null,null,null,"COPER-BOYACA"]
[null,null,null,null,null,"G4664 - Comercio al por mayor de productos químicos básicos, cauchos y plásticos en formas primarias y productos químicos de uso agropecuario",null,null,null,null,null,null,null,null,null,null,null,"CORDOBA-BOLIVAR"]
[null,null,null,null,null,"G4665 - Comercio al por mayor de desperdicios, desechos y chatarra",null,null,null,null,null,null,null,null,null,null,null,"CORDOBA-NARINO"]
[null,null,null,null,null,"G4669 - Comercio al por mayor de otros productos n.c.p.",null,null,null,null,null,null,null,null,null,null,null,"CORDOBA-QUINDIO"]
[null,null,null,null,null,"G4690 - Comercio al por mayor no especializado",null,null,null,null,null,null,null,null,null,null,null,"CORINTO-CAUCA"]
[null,null,null,null,null,"G4711 - Comercio al por menor en establecimientos no especializados con surtido compuesto principalmente por alimentos, bebidas o tabaco",null,null,null,null,null,null,null,null,null,null,null,"COROMORO-SANTANDER"]
[null,null,null,null,null,"G4719 - Comercio al por menor en establecimientos no especializados, con surtido compuesto principalmente por productos diferentes de alimentos (víveres en general), bebidas y tabaco",null,null,null,null,null,null,null,null,null,null,null,"COROZAL-SUCRE"]
[null,null,null,null,null,"G4721 - Comercio al por menor de productos agrícolas para el consumo en establecimientos especializados",null,null,null,null,null,null,null,null,null,null,null,"CORRALES-BOYACA"]
[null,null,null,null,null,"G4722 - Comercio al por menor de leche, productos lácteos y huevos, en establecimientos especializados",null,null,null,null,null,null,null,null,null,null,null,"COTA-CUNDINAMARCA"]
[null,null,null,null,null,"G4723 - Comercio al por menor de carnes (incluye aves de corral), productos cárnicos, pescados y productos de mar, en establecimientos especializados",null,null,null,null,null,null,null,null,null,null,null,"COTORRA-CORDOBA"]
[null,null,null,null,null,"G4724 - Comercio al por menor de bebidas y productos del tabaco, en establecimientos especializados",null,null,null,null,null,null,null,null,null,null,null,"COVARACHIA-BOYACA"]
[null,null,null,null,null,"G4729 - Comercio al por menor de otros productos alimenticios n.c.p., en establecimientos especializados",null,null,null,null,null,null,null,null,null,null,null,"COVEÑAS-SUCRE"]
[null,null,null,null,null,"G4731 - Comercio al por menor de combustible para automotores",null,null,null,null,null,null,null,null,null,null,null,"COYAIMA-TOLIMA"]
[null,null,null,null,null,"G4732 - Comercio al por menor de lubricantes (aceites, grasas), aditivos y productos de limpieza para vehículos automotores",null,null,null,null,null,null,null,null,null,null,null,"CRAVO-NORTE-ARAUCA"]
[null,null,null,null,null,"G4741 - Comercio al por menor de computadores, equipos periféricos, programas de informática y equipos de telecomunicaciones en establecimientos especializados",null,null,null,null,null,null,null,null,null,null,null,"CUASPUD-NARINO"]
[null,null,null,null,null,"G4742 - Comercio al por menor de equipos y aparatos de sonido y de video, en establecimientos especializados",null,null,null,null,null,null,null,null,null,null,null,"CUBARA-BOYACA"]
[null,null,null,null,null,"G4751 - Comercio al por menor de productos textiles en establecimientos especializados",null,null,null,null,null,null,null,null,null,null,null,"CUBARRAL-META"]
[null,null,null,null,null,"G4752 - Comercio al por menor de artículos de ferretería, pinturas y productos de vidrio en establecimientos especializados",null,null,null,null,null,null,null,null,null,null,null,"CUCAITA-BOYACA"]
[null,null,null,null,null,"G4753 - Comercio al por menor de tapices, alfombras y cubrimientos para paredes y pisos en establecimientos especializados",null,null,null,null,null,null,null,null,null,null,null,"CUCUNUBA-CUNDINAMARCA"]
[null,null,null,null,null,"G4754 - Comercio al por menor de electrodomésticos y gasodomésticos de uso doméstico, muebles y equipos de iluminación",null,null,null,null,null,null,null,null,null,null,null,"CUCUTA-NORTE DE SANTANDER"]
[null,null,null,null,null,"G4755 - Comercio al por menor de artículos y utensilios de uso doméstico",null,null,null,null,null,null,null,null,null,null,null,"CUCUTILLA-NORTE DE SANTANDER"]
[null,null,null,null,null,"G4759 - Comercio al por menor de otros artículos domésticos en establecimientos especializados",null,null,null,null,null,null,null,null,null,null,null,"CUITIVA-BOYACA"]
[null,null,null,null,null,"G4761 - Comercio al por menor de libros, periódicos, materiales y artículos de papelería y escritorio, en establecimientos especializados",null,null,null,null,null,null,null,null,null,null,null,"CUMARAL-META"]
[null,null,null,null,null,"G4762 - Comercio al por menor de artículos deportivos, en establecimientos especializados",null,null,null,null,null,null,null,null,null,null,null,"CUMBAL-NARINO"]
[null,null,null,null,null,"G4769 - Comercio al por menor de otros artículos culturales y de entretenimiento n.c.p. en establecimientos especializados",null,null,null,null,null,null,null,null,null,null,null,"CUMBITARA-NARINO"]
[null,null,null,null,null,"G4771 - Comercio al por menor de prendas de vestir y sus accesorios (incluye artículos de piel) en establecimientos especializados",null,null,null,null,null,null,null,null,null,null,null,"CUNDAY-TOLIMA"]
[null,null,null,null,null,"G4772 - Comercio al por menor de todo tipo de calzado y artículos de cuero y sucedáneos del cuero en establecimientos especializados",null,null,null,null,null,null,null,null,null,null,null,"CURILLO-CAQUETA"]
[null,null,null,null,null,"G4773 - Comercio al por menor de productos farmacéuticos y medicinales, cosméticos y artículos de tocador en establecimientos especializados",null,null,null,null,null,null,null,null,null,null,null,"CURIMBAO-VICHADA"]
[null,null,null,null,null,"G4774 - Comercio al por menor de otros productos nuevos en establecimientos especializados",null,null,null,null,null,null,null,null,null,null,null,"CURITI-SANTANDER"]
[null,null,null,null,null,"G4775 - Comercio al por menor de artículos de segunda mano",null,null,null,null,null,null,null,null,null,null,null,"CURUMANI-CESAR"]
[null,null,null,null,null,"G4781 - Comercio al por menor de alimentos, bebidas y tabaco, en puestos de venta móviles",null,null,null,null,null,null,null,null,null,null,null,"CÉRTEGUI-CHOCO"]
[null,null,null,null,null,"G4782 - Comercio al por menor de productos textiles, prendas de vestir y calzado, en puestos de venta móviles",null,null,null,null,null,null,null,null,null,null,null,"DABEIBA-ANTIOQUIA"]
[null,null,null,null,null,"G4789 - Comercio al por menor de otros productos en puestos de venta móviles",null,null,null,null,null,null,null,null,null,null,null,"DAGUA-VALLE"]
[null,null,null,null,null,"G4791 - Comercio al por menor realizado a través de internet",null,null,null,null,null,null,null,null,null,null,null,"DIBULLA-LA GUAJIRA"]
[null,null,null,null,null,"G4792 - Comercio al por menor realizado a través de casas de venta o por correo",null,null,null,null,null,null,null,null,null,null,null,"DISTRACCION-LA GUAJIRA"]
[null,null,null,null,null,"G4799 - Otros tipos de comercio al por menor no realizado en establecimientos, puestos de venta o mercados",null,null,null,null,null,null,null,null,null,null,null,"DOLORES-TOLIMA"]
[null,null,null,null,null,"H4911 - Transporte férreo de pasajeros",null,null,null,null,null,null,null,null,null,null,null,"DON-MATIAS-ANTIOQUIA"]
[null,null,null,null,null,"H4912 - Transporte férreo de carga",null,null,null,null,null,null,null,null,null,null,null,"DOS-QUEBRADAS-RISARALDA"]
[null,null,null,null,null,"H4921 - Transporte de pasajeros",null,null,null,null,null,null,null,null,null,null,null,"DUITAMA-BOYACA"]
[null,null,null,null,null,"H4922 - Transporte mixto",null,null,null,null,null,null,null,null,null,null,null,"DURANIA-NORTE DE SANTANDER"]
[null,null,null,null,null,"H4923 - Transporte de carga por carretera",null,null,null,null,null,null,null,null,null,null,null,"EBEJICO-ANTIOQUIA"]
[null,null,null,null,null,"H4930 - Transporte por tuberías",null,null,null,null,null,null,null,null,null,null,null,"EL-AGUILA-VALLE"]
[null,null,null,null,null,"H5011 - Transporte de pasajeros marítimo y de cabotaje",null,null,null,null,null,null,null,null,null,null,null,"EL-BAGRE-ANTIOQUIA"]
[null,null,null,null,null,"H5012 - Transporte de carga marítimo y de cabotaje",null,null,null,null,null,null,null,null,null,null,null,"EL-BANCO-MAGDALENA"]
[null,null,null,null,null,"H5021 - Transporte fluvial de pasajeros",null,null,null,null,null,null,null,null,null,null,null,"EL-CAIRO-VALLE"]
[null,null,null,null,null,"H5022 - Transporte fluvial de carga",null,null,null,null,null,null,null,null,null,null,null,"EL-CALVARIO-META"]
[null,null,null,null,null,"H5111 - Transporte aéreo nacional de pasajeros",null,null,null,null,null,null,null,null,null,null,null,"EL-CANTÓN-DEL-SAN-PABLO-CHOCO"]
[null,null,null,null,null,"H5112 - Transporte aéreo internacional de pasajeros",null,null,null,null,null,null,null,null,null,null,null,"EL-CARMEN-CHOCO"]
[null,null,null,null,null,"H5121 - Transporte aéreo nacional de carga",null,null,null,null,null,null,null,null,null,null,null,"EL-CARMEN-NORTE DE SANTANDER"]
[null,null,null,null,null,"H5122 - Transporte aéreo internacional de carga",null,null,null,null,null,null,null,null,null,null,null,"EL-CARMEN-SANTANDER"]
[null,null,null,null,null,"H5210 - Almacenamiento y depósito",null,null,null,null,null,null,null,null,null,null,null,"EL-CASTILLO-META"]
[null,null,null,null,null,"H5221 - Actividades de estaciones, vías y servicios complementarios para el transporte terrestre",null,null,null,null,null,null,null,null,null,null,null,"EL-CERRITO-VALLE"]
[null,null,null,null,null,"H5222 - Actividades de puertos y servicios complementarios para el transporte acuático",null,null,null,null,null,null,null,null,null,null,null,"EL-CHARCO-NARINO"]
[null,null,null,null,null,"H5223 - Actividades de aeropuertos, servicios de navegación aérea y demás actividades conexas al transporte aéreo",null,null,null,null,null,null,null,null,null,null,null,"EL-COCUY-BOYACA"]
[null,null,null,null,null,"H5224 - Manipulación de carga",null,null,null,null,null,null,null,null,null,null,null,"EL-COLEGIO-CUNDINAMARCA"]
[null,null,null,null,null,"H5229 - Otras actividades complementarias al transporte",null,null,null,null,null,null,null,null,null,null,null,"EL-COPEY-CESAR"]
[null,null,null,null,null,"H5310 - Actividades postales nacionales",null,null,null,null,null,null,null,null,null,null,null,"EL-DONCELLO-CAQUETA"]
[null,null,null,null,null,"H5320 - Actividades de mensajería",null,null,null,null,null,null,null,null,null,null,null,"EL-DORADO-META"]
[null,null,null,null,null,"I5511 - Alojamiento en hoteles",null,null,null,null,null,null,null,null,null,null,null,"EL-DOVIO-VALLE"]
[null,null,null,null,null,"I5512 - Alojamiento en apartahoteles",null,null,null,null,null,null,null,null,null,null,null,"EL-ENCANTO-AMAZONAS"]
[null,null,null,null,null,"I5513 - Alojamiento en centros vacacionales",null,null,null,null,null,null,null,null,null,null,null,"EL-ESPINO-BOYACA"]
[null,null,null,null,null,"I5514 - Alojamiento rural",null,null,null,null,null,null,null,null,null,null,null,"EL-GUACAMAYO-SANTANDER"]
[null,null,null,null,null,"I5519 - Otros tipos de alojamientos para visitantes",null,null,null,null,null,null,null,null,null,null,null,"EL-GUAMO-BOLIVAR"]
[null,null,null,null,null,"I5520 - Actividades de zonas de camping y parques para vehículos recreacionales",null,null,null,null,null,null,null,null,null,null,null,"EL-LITORAL-DEL-SAN-JUAN-CHOCO"]
[null,null,null,null,null,"I5530 - Servicio por horas",null,null,null,null,null,null,null,null,null,null,null,"EL-MOLINO-LA GUAJIRA"]
[null,null,null,null,null,"I5590 - Otros tipos de alojamiento n.c.p.",null,null,null,null,null,null,null,null,null,null,null,"EL-PASO-CESAR"]
[null,null,null,null,null,"I5611 - Expendio a la mesa de comidas preparadas",null,null,null,null,null,null,null,null,null,null,null,"EL-PAUJIL-CAQUETA"]
[null,null,null,null,null,"I5612 - Expendio por autoservicio de comidas preparadas",null,null,null,null,null,null,null,null,null,null,null,"EL-PENON-CUNDINAMARCA"]
[null,null,null,null,null,"I5613 - Expendio de comidas preparadas en cafeterías",null,null,null,null,null,null,null,null,null,null,null,"EL-PEÑOL-NARINO"]
[null,null,null,null,null,"I5619 - Otros tipos de expendio de comidas preparadas n.c.p.",null,null,null,null,null,null,null,null,null,null,null,"EL-PEÑON-SANTANDER"]
[null,null,null,null,null,"I5621 - Catering para eventos",null,null,null,null,null,null,null,null,null,null,null,"EL-PEÑÓN-BOLIVAR"]
[null,null,null,null,null,"I5629 - Actividades de otros servicios de comidas",null,null,null,null,null,null,null,null,null,null,null,"EL-PINON-MAGDALENA"]
[null,null,null,null,null,"I5630 - Expendio de bebidas alcohólicas para el consumo dentro del establecimiento",null,null,null,null,null,null,null,null,null,null,null,"EL-PLAYON-SANTANDER"]
[null,null,null,null,null,"J5811 - Edición de libros",null,null,null,null,null,null,null,null,null,null,null,"EL-RETORNO-GUAVIARE"]
[null,null,null,null,null,"J5812 - Edición de directorios y listas de correo",null,null,null,null,null,null,null,null,null,null,null,"EL-RETÉN-MAGDALENA"]
[null,null,null,null,null,"J5813 - Edición de periódicos, revistas y otras publicaciones periódicas",null,null,null,null,null,null,null,null,null,null,null,"EL-ROBLE-SUCRE"]
[null,null,null,null,null,"J5819 - Otros trabajos de edición",null,null,null,null,null,null,null,null,null,null,null,"EL-ROSAL-CUNDINAMARCA"]
[null,null,null,null,null,"J5820 - Edición de programas de informática (software)",null,null,null,null,null,null,null,null,null,null,null,"EL-ROSARIO-NARINO"]
[null,null,null,null,null,"J5911 - Actividades de producción de películas cinematográficas, videos, programas, anuncios y comerciales de televisión",null,null,null,null,null,null,null,null,null,null,null,"EL-TABLON-NARINO"]
[null,null,null,null,null,"J5912 - Actividades de posproducción de películas cinematográficas, videos, programas, anuncios y comerciales de televisión",null,null,null,null,null,null,null,null,null,null,null,"EL-TAMBO-CAUCA"]
[null,null,null,null,null,"J5913 - Actividades de distribución de películas cinematográficas, videos, programas, anuncios y comerciales de televisión",null,null,null,null,null,null,null,null,null,null,null,"EL-TAMBO-NARINO"]
[null,null,null,null,null,"J5914 - Actividades de exhibición de películas cinematográficas y videos",null,null,null,null,null,null,null,null,null,null,null,"EL-TARRA-NORTE-NORTE DE SANTANDER"]
[null,null,null,null,null,"J5920 - Actividades de grabación de sonido y edición de música",null,null,null,null,null,null,null,null,null,null,null,"EL-ZULIA-NORTE DE SANTANDER"]
[null,null,null,null,null,"J6010 - Actividades de programación y transmisión en el servicio de radiodifusión sonora",null,null,null,null,null,null,null,null,null,null,null,"ELIAS-HUILA"]
[null,null,null,null,null,"J6020 - Actividades de programación y transmisión de televisión",null,null,null,null,null,null,null,null,null,null,null,"ENCINO-SANTANDER"]
[null,null,null,null,null,"J6110 - Actividades de telecomunicaciones alámbricas",null,null,null,null,null,null,null,null,null,null,null,"ENCISO-SANTANDER"]
[null,null,null,null,null,"J6120 - Actividades de telecomunicaciones inalámbricas",null,null,null,null,null,null,null,null,null,null,null,"ENGATIVA-BOGOTA D.C."]
[null,null,null,null,null,"J6130 - Actividades de telecomunicación satelital",null,null,null,null,null,null,null,null,null,null,null,"ENTRERRIOS-ANTIOQUIA"]
[null,null,null,null,null,"J6190 - Otras actividades de telecomunicaciones",null,null,null,null,null,null,null,null,null,null,null,"ENVIGADO-ANTIOQUIA"]
[null,null,null,null,null,"J6201 - Actividades de desarrollo de sistemas informáticos (planificación, análisis, diseño, programación, pruebas)",null,null,null,null,null,null,null,null,null,null,null,"ESPINAL-TOLIMA"]
[null,null,null,null,null,"J6202 - Actividades de consultoría informática y actividades de administración de instalaciones informáticas",null,null,null,null,null,null,null,null,null,null,null,"FACATATIVA-CUNDINAMARCA"]
[null,null,null,null,null,"J6209 - Otras actividades de tecnologías de información y actividades de servicios informáticos",null,null,null,null,null,null,null,null,null,null,null,"FALAN-TOLIMA"]
[null,null,null,null,null,"J6311 - Procesamiento de datos, alojamiento (hosting) y actividades relacionadas",null,null,null,null,null,null,null,null,null,null,null,"FILADELFIA-CALDAS"]
[null,null,null,null,null,"J6312 - Portales web",null,null,null,null,null,null,null,null,null,null,null,"FILANDIA-QUINDIO"]
[null,null,null,null,null,"J6391 - Actividades de agencias de noticias",null,null,null,null,null,null,null,null,null,null,null,"FIRAVITOBA-BOYACA"]
[null,null,null,null,null,"J6399 - Otras actividades de servicio de información n.c.p.",null,null,null,null,null,null,null,null,null,null,null,"FLANDES-TOLIMA"]
[null,null,null,null,null,"K6411 - Banco Central",null,null,null,null,null,null,null,null,null,null,null,"FLORENCIA-CAQUETA"]
[null,null,null,null,null,"K6412 - Bancos comerciales",null,null,null,null,null,null,null,null,null,null,null,"FLORENCIA-CAUCA"]
[null,null,null,null,null,"K6421 - Actividades de las corporaciones financieras",null,null,null,null,null,null,null,null,null,null,null,"FLORESTA-BOYACA"]
[null,null,null,null,null,"K6422 - Actividades de las compañías de financiamiento",null,null,null,null,null,null,null,null,null,null,null,"FLORIAN-SANTANDER"]
[null,null,null,null,null,"K6423 - Banca de segundo piso",null,null,null,null,null,null,null,null,null,null,null,"FLORIDA-VALLE"]
[null,null,null,null,null,"K6424 - Actividades de las cooperativas financieras",null,null,null,null,null,null,null,null,null,null,null,"FLORIDABLANCA-SANTANDER"]
[null,null,null,null,null,"K6431 - Fideicomisos, fondos y entidades financieras similares",null,null,null,null,null,null,null,null,null,null,null,"FOMEQUE-CUNDINAMARCA"]
[null,null,null,null,null,"K6432 - Fondos de cesantías",null,null,null,null,null,null,null,null,null,null,null,"FONSECA-LA GUAJIRA"]
[null,null,null,null,null,"K6491 - Leasing financiero (arrendamiento financiero)",null,null,null,null,null,null,null,null,null,null,null,"FONTIBON-BOGOTA D.C."]
[null,null,null,null,null,"K6492 - Actividades financieras de fondos de empleados y otras formas asociativas del sector solidario",null,null,null,null,null,null,null,null,null,null,null,"FORTUL-ARAUCA"]
[null,null,null,null,null,"K6493 - Actividades de compra de cartera o factoring",null,null,null,null,null,null,null,null,null,null,null,"FOSCA-CUNDINAMARCA"]
[null,null,null,null,null,"K6494 - Otras actividades de distribución de fondos",null,null,null,null,null,null,null,null,null,null,null,"FRANCISCO-PIZARRO-NARINO"]
[null,null,null,null,null,"K6495 - Instituciones especiales oficiales",null,null,null,null,null,null,null,null,null,null,null,"FREDONIA-ANTIOQUIA"]
[null,null,null,null,null,"K6499 - Otras actividades de servicio financiero, excepto las de seguros y pensiones n.c.p.",null,null,null,null,null,null,null,null,null,null,null,"FRESNO-TOLIMA"]
[null,null,null,null,null,"K6511 - Seguros generales",null,null,null,null,null,null,null,null,null,null,null,"FRONTINO-ANTIOQUIA"]
[null,null,null,null,null,"K6512 - Seguros de vida",null,null,null,null,null,null,null,null,null,null,null,"FUENTE-DE-ORO-META"]
[null,null,null,null,null,"K6513 - Reaseguros",null,null,null,null,null,null,null,null,null,null,null,"FUNDACION-MAGDALENA"]
[null,null,null,null,null,"K6514 - Capitalización",null,null,null,null,null,null,null,null,null,null,null,"FUNES-NARINO"]
[null,null,null,null,null,"K6521 - Servicios de seguros sociales de salud",null,null,null,null,null,null,null,null,null,null,null,"FUNZA-CUNDINAMARCA"]
[null,null,null,null,null,"K6522 - Servicios de seguros sociales de riesgos profesionales",null,null,null,null,null,null,null,null,null,null,null,"FUQUENE-CUNDINAMARCA"]
[null,null,null,null,null,"K6531 - Régimen de prima media con prestación definida (RPM)",null,null,null,null,null,null,null,null,null,null,null,"FUSAGASUGA-CUNDINAMARCA"]
[null,null,null,null,null,"K6532 - Régimen de ahorro individual (RAI)",null,null,null,null,null,null,null,null,null,null,null,"GACHALA-CUNDINAMARCA"]
[null,null,null,null,null,"K6611 - Administración de mercados financieros",null,null,null,null,null,null,null,null,null,null,null,"GACHANCIPA-CUNDINAMARCA"]
[null,null,null,null,null,"K6612 - Corretaje de valores y de contratos de productos básicos",null,null,null,null,null,null,null,null,null,null,null,"GACHANTIVA-BOYACA"]
[null,null,null,null,null,"K6613 - Otras actividades relacionadas con el mercado de valores",null,null,null,null,null,null,null,null,null,null,null,"GACHETA-CUNDINAMARCA"]
[null,null,null,null,null,"K6614 - Actividades de las casas de cambio",null,null,null,null,null,null,null,null,null,null,null,"GALAN-SANTANDER"]
[null,null,null,null,null,"K6615 - Actividades de los profesionales de compra y venta de divisas",null,null,null,null,null,null,null,null,null,null,null,"GALAPA-ATLANTICO"]
[null,null,null,null,null,"K6619 - Otras actividades auxiliares de las actividades de servicios financieros n.c.p.",null,null,null,null,null,null,null,null,null,null,null,"GALERAS-SUCRE"]
[null,null,null,null,null,"K6621 - Actividades de agentes y corredores de seguros",null,null,null,null,null,null,null,null,null,null,null,"GAMA-CUNDINAMARCA"]
[null,null,null,null,null,"K6629 - Evaluación de riesgos y daños, y otras actividades de servicios auxiliares",null,null,null,null,null,null,null,null,null,null,null,"GAMARRA-CESAR"]
[null,null,null,null,null,"K6630 - Actividades de administración de fondos",null,null,null,null,null,null,null,null,null,null,null,"GAMBITA-SANTANDER"]
[null,null,null,null,null,"L6810 - Actividades inmobiliarias realizadas con bienes propios o arrendados",null,null,null,null,null,null,null,null,null,null,null,"GAMEZA-BOYACA"]
[null,null,null,null,null,"L6820 - Actividades inmobiliarias realizadas a cambio de una retribución o por contrata",null,null,null,null,null,null,null,null,null,null,null,"GARAGOA-BOYACA"]
[null,null,null,null,null,"M6910 - Actividades jurídicas",null,null,null,null,null,null,null,null,null,null,null,"GARZON-HUILA"]
[null,null,null,null,null,"M6920 - Actividades de contabilidad, teneduría de libros, auditoría financiera y asesoría tributaria",null,null,null,null,null,null,null,null,null,null,null,"GENOVA-QUINDIO"]
[null,null,null,null,null,"M7010 - Actividades de administración empresarial",null,null,null,null,null,null,null,null,null,null,null,"GIGANTE-HUILA"]
[null,null,null,null,null,"M7020 - Actividades de consultaría de gestión",null,null,null,null,null,null,null,null,null,null,null,"GINEBRA-VALLE"]
[null,null,null,null,null,"M7110 - Actividades de arquitectura e ingeniería y otras actividades conexas de consultoría técnica",null,null,null,null,null,null,null,null,null,null,null,"GIRALDO-ANTIOQUIA"]
[null,null,null,null,null,"M7120 - Ensayos y análisis técnicos",null,null,null,null,null,null,null,null,null,null,null,"GIRARDOT-CUNDINAMARCA"]
[null,null,null,null,null,"M7210 - Investigaciones y desarrollo experimental en el campo de las ciencias naturales y la ingeniería",null,null,null,null,null,null,null,null,null,null,null,"GIRARDOTA-ANTIOQUIA"]
[null,null,null,null,null,"M7220 - Investigaciones y desarrollo experimental en el campo de las ciencias sociales y las humanidades",null,null,null,null,null,null,null,null,null,null,null,"GIRON-SANTANDER"]
[null,null,null,null,null,"M7310 - Publicidad",null,null,null,null,null,null,null,null,null,null,null,"GOMEZ-PLATA-ANTIOQUIA"]
[null,null,null,null,null,"M7320 - Estudios de mercado y realización de encuestas de opinión pública",null,null,null,null,null,null,null,null,null,null,null,"GONZALEZ-CESAR"]
[null,null,null,null,null,"M7410 - Actividades especializadas de diseño",null,null,null,null,null,null,null,null,null,null,null,"GRAMALOTE-NORTE DE SANTANDER"]
[null,null,null,null,null,"M7420 - Actividades de fotografía",null,null,null,null,null,null,null,null,null,null,null,"GRANADA-ANTIOQUIA"]
[null,null,null,null,null,"M7490 - Otras actividades profesionales, científicas y técnicas n.c.p.",null,null,null,null,null,null,null,null,null,null,null,"GRANADA-CUNDINAMARCA"]
[null,null,null,null,null,"M7500 - Actividades veterinarias",null,null,null,null,null,null,null,null,null,null,null,"GRANADA-META"]
[null,null,null,null,null,"N7710 - Alquiler y arrendamiento de vehículos automotores",null,null,null,null,null,null,null,null,null,null,null,"GUACA-SANTANDER"]
[null,null,null,null,null,"N7721 - Alquiler y arrendamiento de equipo recreativo y deportivo",null,null,null,null,null,null,null,null,null,null,null,"GUACAMAYAS-BOYACA"]
[null,null,null,null,null,"N7722 - Alquiler de videos y discos",null,null,null,null,null,null,null,null,null,null,null,"GUACARI-VALLE"]
[null,null,null,null,null,"N7729 - Alquiler y arrendamiento de otros efectos personales y enseres domésticos n.c.p.",null,null,null,null,null,null,null,null,null,null,null,"GUACHENE-CAUCA"]
[null,null,null,null,null,"N7730 - Alquiler y arrendamiento de otros tipos de maquinaria, equipo y bienes tangibles n.c.p.",null,null,null,null,null,null,null,null,null,null,null,"GUACHETA-CUNDINAMARCA"]
[null,null,null,null,null,"N7740 - Arrendamiento de propiedad intelectual y productos similares, excepto obras protegidas por derechos de autor",null,null,null,null,null,null,null,null,null,null,null,"GUACHUCAL-NARINO"]
[null,null,null,null,null,"N7810 - Actividades de agencias de empleo",null,null,null,null,null,null,null,null,null,null,null,"GUADALUPE-ANTIOQUIA"]
[null,null,null,null,null,"N7820 - Actividades de agencias de empleo temporal",null,null,null,null,null,null,null,null,null,null,null,"GUADALUPE-HUILA"]
[null,null,null,null,null,"N7830 - Otras actividades de suministro de recurso humano",null,null,null,null,null,null,null,null,null,null,null,"GUADALUPE-SANTANDER"]
[null,null,null,null,null,"N7911 - Actividades de las agencias de viaje",null,null,null,null,null,null,null,null,null,null,null,"GUADUAS-CUNDINAMARCA"]
[null,null,null,null,null,"N7912 - Actividades de operadores turísticos",null,null,null,null,null,null,null,null,null,null,null,"GUAITARILLA-NARINO"]
[null,null,null,null,null,"N7990 - Otros servicios de reserva y actividades relacionadas",null,null,null,null,null,null,null,null,null,null,null,"GUALMATAN-NARINO"]
[null,null,null,null,null,"N8010 - Actividades de seguridad privada",null,null,null,null,null,null,null,null,null,null,null,"GUAMAL-MAGDALENA"]
[null,null,null,null,null,"N8020 - Actividades de servicios de sistemas de seguridad",null,null,null,null,null,null,null,null,null,null,null,"GUAMAL-META"]
[null,null,null,null,null,"N8030 - Actividades de detectives e investigadores privados",null,null,null,null,null,null,null,null,null,null,null,"GUAMO-TOLIMA"]
[null,null,null,null,null,"N8110 - Actividades combinadas de apoyo a instalaciones",null,null,null,null,null,null,null,null,null,null,null,"GUAPI-CAUCA"]
[null,null,null,null,null,"N8121 - Limpieza general interior de edificios",null,null,null,null,null,null,null,null,null,null,null,"GUAPOTA-SANTANDER"]
[null,null,null,null,null,"N8129 - Otras actividades de limpieza de edificios e instalaciones industriales",null,null,null,null,null,null,null,null,null,null,null,"GUARANOA-SUCRE"]
[null,null,null,null,null,"N8130 - Actividades de paisajismo y servicios de mantenimiento conexos",null,null,null,null,null,null,null,null,null,null,null,"GUARNE-ANTIOQUIA"]
[null,null,null,null,null,"N8211 - Actividades combinadas de servicios administrativos de oficina",null,null,null,null,null,null,null,null,null,null,null,"GUASCA-CUNDINAMARCA"]
[null,null,null,null,null,"N8219 - Fotocopiado, preparación de documentos y otras actividades especializadas de apoyo a oficina",null,null,null,null,null,null,null,null,null,null,null,"GUATAPE-ANTIOQUIA"]
[null,null,null,null,null,"N8220 - Actividades de centros de llamadas (Call center)",null,null,null,null,null,null,null,null,null,null,null,"GUATAQUI-CUNDINAMARCA"]
[null,null,null,null,null,"N8230 - Organización de convenciones y eventos comerciales",null,null,null,null,null,null,null,null,null,null,null,"GUATAVITA-CUNDINAMARCA"]
[null,null,null,null,null,"N8291 - Actividades de agencias de cobranza y oficinas de calificación crediticia",null,null,null,null,null,null,null,null,null,null,null,"GUATEQUE-BOYACA"]
[null,null,null,null,null,"N8292 - Actividades de envase y empaque",null,null,null,null,null,null,null,null,null,null,null,"GUATICA-RISARALDA"]
[null,null,null,null,null,"N8299 - Otras actividades de servicio de apoyo a las empresas n.c.p.",null,null,null,null,null,null,null,null,null,null,null,"GUAVATA-SANTANDER"]
[null,null,null,null,null,"O8411 - Actividades legislativas de la administración pública",null,null,null,null,null,null,null,null,null,null,null,"GUAVIARE-GUAINIA"]
[null,null,null,null,null,"O8412 - Actividades ejecutivas de la administración pública",null,null,null,null,null,null,null,null,null,null,null,"GUAYABAL-DE-SIQUIMA-CUNDINAMARCA"]
[null,null,null,null,null,"O8413 - Regulación de las actividades de organismos que prestan servicios de salud, educativos, culturales y otros servicios sociales, excepto servicios de seguridad social",null,null,null,null,null,null,null,null,null,null,null,"GUAYABETAL-CUNDINAMARCA"]
[null,null,null,null,null,"O8414 - Actividades reguladoras y facilitadoras de la actividad económica",null,null,null,null,null,null,null,null,null,null,null,"GUAYATA-BOYACA"]
[null,null,null,null,null,"O8415 - Actividades de los otros órganos de control",null,null,null,null,null,null,null,null,null,null,null,"GUEPSA-SANTANDER"]
[null,null,null,null,null,"O8421 - Relaciones exteriores",null,null,null,null,null,null,null,null,null,null,null,"GUICAN-BOYACA"]
[null,null,null,null,null,"O8422 - Actividades de defensa",null,null,null,null,null,null,null,null,null,null,null,"GUTIERREZ-CUNDINAMARCA"]
[null,null,null,null,null,"O8423 - Orden público y actividades de seguridad",null,null,null,null,null,null,null,null,null,null,null,"HACARI-NORTE DE SANTANDER"]
[null,null,null,null,null,"O8424 - Administración de justicia",null,null,null,null,null,null,null,null,null,null,null,"HATILLO-DE-LOBA-BOLIVAR"]
[null,null,null,null,null,"O8430 - Actividades de planes de seguridad social de afiliación obligatoria",null,null,null,null,null,null,null,null,null,null,null,"HATO-COROZAL-CASANARE"]
[null,null,null,null,null,"P8511 - Educación de la primera infancia",null,null,null,null,null,null,null,null,null,null,null,"HATO-SANTANDER"]
[null,null,null,null,null,"P8512 - Educación preescolar",null,null,null,null,null,null,null,null,null,null,null,"HATONUEVO-LA GUAJIRA"]
[null,null,null,null,null,"P8513 - Educación básica primaria",null,null,null,null,null,null,null,null,null,null,null,"HELICONIA-ANTIOQUIA"]
[null,null,null,null,null,"P8521 - Educación básica secundaria",null,null,null,null,null,null,null,null,null,null,null,"HERRAN-NORTE DE SANTANDER"]
[null,null,null,null,null,"P8522 - Educación media académica",null,null,null,null,null,null,null,null,null,null,null,"HERVEO-TOLIMA"]
[null,null,null,null,null,"P8523 - Educación media técnica y de formación laboral",null,null,null,null,null,null,null,null,null,null,null,"HISPANIA-ANTIOQUIA"]
[null,null,null,null,null,"P8530 - Establecimientos que combinan diferentes niveles de educación",null,null,null,null,null,null,null,null,null,null,null,"HOBO-HUILA"]
[null,null,null,null,null,"P8541 - Educación técnica profesional",null,null,null,null,null,null,null,null,null,null,null,"HONDA-TOLIMA"]
[null,null,null,null,null,"P8542 - Educación tecnológica",null,null,null,null,null,null,null,null,null,null,null,"IBAGUE-TOLIMA"]
[null,null,null,null,null,"P8543 - Educación de instituciones universitarias o de escuelas tecnológicas",null,null,null,null,null,null,null,null,null,null,null,"ICONONZO-TOLIMA"]
[null,null,null,null,null,"P8544 - Educación de universidades",null,null,null,null,null,null,null,null,null,null,null,"ILES-NARINO"]
[null,null,null,null,null,"P8551 - Formación académica no formal",null,null,null,null,null,null,null,null,null,null,null,"IMUES-NARINO"]
[null,null,null,null,null,"P8552 - Enseñanza deportiva y recreativa",null,null,null,null,null,null,null,null,null,null,null,"INIRIDA-GUAINIA"]
[null,null,null,null,null,"P8553 - Enseñanza cultural",null,null,null,null,null,null,null,null,null,null,null,"INZA-CAUCA"]
[null,null,null,null,null,"P8559 - Otros tipos de educación n.c.p.",null,null,null,null,null,null,null,null,null,null,null,"IPIALES-NARINO"]
[null,null,null,null,null,"P8560 - Actividades de apoyo a la educación",null,null,null,null,null,null,null,null,null,null,null,"IQUIRA-HUILA"]
[null,null,null,null,null,"Q8610 - Actividades de hospitales y clínicas, con internación",null,null,null,null,null,null,null,null,null,null,null,"ISNOS-HUILA"]
[null,null,null,null,null,"Q8621 - Actividades de la práctica médica, sin internación",null,null,null,null,null,null,null,null,null,null,null,"ITAGUI-ANTIOQUIA"]
[null,null,null,null,null,"Q8622 - Actividades de la práctica odontológica",null,null,null,null,null,null,null,null,null,null,null,"ITSMINA-CHOCO"]
[null,null,null,null,null,"Q8691 - Actividades de apoyo diagnóstico",null,null,null,null,null,null,null,null,null,null,null,"ITUANGO-ANTIOQUIA"]
[null,null,null,null,null,"Q8692 - Actividades de apoyo terapéutico",null,null,null,null,null,null,null,null,null,null,null,"IZA-BOYACA"]
[null,null,null,null,null,"Q8699 - Otras actividades de atención de la salud humana",null,null,null,null,null,null,null,null,null,null,null,"JAMBALO-CAUCA"]
[null,null,null,null,null,"Q8710 - Actividades de atención residencial medicalizada de tipo general",null,null,null,null,null,null,null,null,null,null,null,"JAMUNDI-VALLE"]
[null,null,null,null,null,"Q8720 - Actividades de atención residencial, para el cuidado de pacientes con retardo mental, enfermedad mental y consumo de sustancias psicoactivas",null,null,null,null,null,null,null,null,null,null,null,"JARDIN-ANTIOQUIA"]
[null,null,null,null,null,"Q8730 - Actividades de atención en instituciones para el cuidado de personas mayores y/o discapacitadas",null,null,null,null,null,null,null,null,null,null,null,"JENESANO-BOYACA"]
[null,null,null,null,null,"Q8790 - Otras actividades de atención en instituciones con alojamiento",null,null,null,null,null,null,null,null,null,null,null,"JERICO-ANTIOQUIA"]
[null,null,null,null,null,"Q8810 - Actividades de asistencia social sin alojamiento para personas mayores y discapacitadas",null,null,null,null,null,null,null,null,null,null,null,"JERICO-BOYACA"]
[null,null,null,null,null,"Q8890 - Otras actividades de asistencia social sin alojamiento",null,null,null,null,null,null,null,null,null,null,null,"JERUSALEN-CUNDINAMARCA"]
[null,null,null,null,null,"R9001 - Creación literaria",null,null,null,null,null,null,null,null,null,null,null,"JESUS-MARIA-SANTANDER"]
[null,null,null,null,null,"R9002 - Creación musical",null,null,null,null,null,null,null,null,null,null,null,"JORDAN-SANTANDER"]
[null,null,null,null,null,"R9003 - Creación teatral",null,null,null,null,null,null,null,null,null,null,null,"JUAN-DE-ACOSTA-ATLANTICO"]
[null,null,null,null,null,"R9004 - Creación audiovisual",null,null,null,null,null,null,null,null,null,null,null,"JUNIN-CUNDINAMARCA"]
[null,null,null,null,null,"R9005 - Artes plásticas y visuales",null,null,null,null,null,null,null,null,null,null,null,"JURADO-CHOCO"]
[null,null,null,null,null,"R9006 - Actividades teatrales",null,null,null,null,null,null,null,null,null,null,null,"LA-APARTADA-CORDOBA"]
[null,null,null,null,null,"R9007 - Actividades de espectáculos musicales en vivo",null,null,null,null,null,null,null,null,null,null,null,"LA-ARGENTINA-HUILA"]
[null,null,null,null,null,"R9008 - Otras actividades de espectáculos en vivo",null,null,null,null,null,null,null,null,null,null,null,"LA-BELLEZA-SANTANDER"]
[null,null,null,null,null,"R9101 - Actividades de bibliotecas y archivos",null,null,null,null,null,null,null,null,null,null,null,"LA-CALERA-CUNDINAMARCA"]
[null,null,null,null,null,"R9102 - Actividades y funcionamiento de museos, conservación de edificios y sitios históricos",null,null,null,null,null,null,null,null,null,null,null,"LA-CAPILLA-BOYACA"]
[null,null,null,null,null,"R9103 - Actividades de jardines botánicos, zoológicos y reservas naturales",null,null,null,null,null,null,null,null,null,null,null,"LA-CEJA-ANTIOQUIA"]
[null,null,null,null,null,"R9200 - Actividades de juegos de azar y apuestas",null,null,null,null,null,null,null,null,null,null,null,"LA-CELIA-RISARALDA"]
[null,null,null,null,null,"R9311 - Gestión de instalaciones deportivas",null,null,null,null,null,null,null,null,null,null,null,"LA-CHORRERA-AMAZONAS"]
[null,null,null,null,null,"R9312 - Actividades de clubes deportivos",null,null,null,null,null,null,null,null,null,null,null,"LA-CRUZ-NARINO"]
[null,null,null,null,null,"R9319 - Otras actividades deportivas",null,null,null,null,null,null,null,null,null,null,null,"LA-CUMBRE-VALLE"]
[null,null,null,null,null,"R9321 - Actividades de parques de atracciones y parques temáticos",null,null,null,null,null,null,null,null,null,null,null,"LA-DORADA-CALDAS"]
[null,null,null,null,null,"R9329 - Otras actividades recreativas y de esparcimiento n.c.p.",null,null,null,null,null,null,null,null,null,null,null,"LA-ESPERANZA-NORTE DE SANTANDER"]
[null,null,null,null,null,"S9411 - Actividades de asociaciones empresariales y de empleadores",null,null,null,null,null,null,null,null,null,null,null,"LA-ESTRELLA-ANTIOQUIA"]
[null,null,null,null,null,"S9412 - Actividades de asociaciones profesionales",null,null,null,null,null,null,null,null,null,null,null,"LA-FLORIDA-NARINO"]
[null,null,null,null,null,"S9420 - Actividades de sindicatos de empleados",null,null,null,null,null,null,null,null,null,null,null,"LA-GLORIA-CESAR"]
[null,null,null,null,null,"S9491 - Actividades de asociaciones religiosas",null,null,null,null,null,null,null,null,null,null,null,"LA-GUADALUPE-GUAINIA"]
[null,null,null,null,null,"S9492 - Actividades de asociaciones políticas",null,null,null,null,null,null,null,null,null,null,null,"LA-JAGUA-DE-IBIRICO-CESAR"]
[null,null,null,null,null,"S9499 - Actividades de otras asociaciones n.c.p.",null,null,null,null,null,null,null,null,null,null,null,"LA-JAGUA-DEL-PILAR-LA GUAJIRA"]
[null,null,null,null,null,"S9511 - Mantenimiento y reparación de computadores y de equipo periférico",null,null,null,null,null,null,null,null,null,null,null,"LA-LLANADA-NARINO"]
[null,null,null,null,null,"S9512 - Mantenimiento y reparación de equipos de comunicación",null,null,null,null,null,null,null,null,null,null,null,"LA-MACARENA-META"]
[null,null,null,null,null,"S9521 - Mantenimiento y reparación de aparatos electrónicos de consumo",null,null,null,null,null,null,null,null,null,null,null,"LA-MERCED-CALDAS"]
[null,null,null,null,null,"S9522 - Mantenimiento y reparación de aparatos y equipos domésticos y de jardinería",null,null,null,null,null,null,null,null,null,null,null,"LA-MESA-CUNDINAMARCA"]
[null,null,null,null,null,"S9523 - Reparación de calzado y artículos de cuero",null,null,null,null,null,null,null,null,null,null,null,"LA-MONTANITA-CAQUETA"]
[null,null,null,null,null,"S9524 - Reparación de muebles y accesorios para el hogar",null,null,null,null,null,null,null,null,null,null,null,"LA-PALMA-CUNDINAMARCA"]
[null,null,null,null,null,"S9529 - Mantenimiento y reparación de otros efectos personales y enseres domésticos",null,null,null,null,null,null,null,null,null,null,null,"LA-PAZ-(ROBLES)-CESAR"]
[null,null,null,null,null,"S9601 - Lavado y limpieza, incluso la limpieza en seco, de productos textiles y de piel",null,null,null,null,null,null,null,null,null,null,null,"LA-PAZ-SANTANDER"]
[null,null,null,null,null,"S9602 - Peluquería y otros tratamientos de belleza",null,null,null,null,null,null,null,null,null,null,null,"LA-PEDRERA-AMAZONAS"]
[null,null,null,null,null,"S9603 - Pompas fúnebres y actividades relacionadas",null,null,null,null,null,null,null,null,null,null,null,"LA-PENA-CUNDINAMARCA"]
[null,null,null,null,null,"S9609 - Otras actividades de servicios personales n.c.p.",null,null,null,null,null,null,null,null,null,null,null,"LA-PINTADA-ANTIOQUIA"]
[null,null,null,null,null,"T9700 - Actividades de los hogares individuales como empleadores de personal doméstico",null,null,null,null,null,null,null,null,null,null,null,"LA-PLATA-HUILA"]
[null,null,null,null,null,"T9810 - Actividades no diferenciadas de los hogares individuales como productores de bienes para uso propio",null,null,null,null,null,null,null,null,null,null,null,"LA-PLAYA-NORTE DE SANTANDER"]
[null,null,null,null,null,"T9820 - Actividades no diferenciadas de los hogares individuales como productores de servicios para uso propio",null,null,null,null,null,null,null,null,null,null,null,"LA-PRIMAVERA-VICHADA"]
[null,null,null,null,null,"U9900 - Actividades de organizaciones y entidades extraterritoriales",null,null,null,null,null,null,null,null,null,null,null,"LA-SALINA-CASANARE"]
[null,null,null,null,null,null,null,null,null,null,null,null,null,null,null,null,null,"LA-SIERRA-CAUCA"]
[null,null,null,null,null,null,null,null,null,null,null,null,null,null,null,null,null,"LA-TEBAIDA-QUINDIO"]
[null,null,null,null,null,null,null,null,null,null,null,null,null,null,null,null,null,"LA-TOLA-NARINO"]
[null,null,null,null,null,null,null,null,null,null,null,null,null,null,null,null,null,"LA-UNION-ANTIOQUIA"]
[null,null,null,null,null,null,null,null,null,null,null,null,null,null,null,null,null,"LA-UNION-NARINO"]
[null,null,null,null,null,null,null,null,null,null,null,null,null,null,null,null,null,"LA-UNION-SUCRE"]
[null,null,null,null,null,null,null,null,null,null,null,null,null,null,null,null,null,"LA-UNION-VALLE"]
[null,null,null,null,null,null,null,null,null,null,null,null,null,null,null,null,null,"LA-UVITA-BOYACA"]
[null,null,null,null,null,null,null,null,null,null,null,null,null,null,null,null,null,"LA-VEGA-CAUCA"]
[null,null,null,null,null,null,null,null,null,null,null,null,null,null,null,null,null,"LA-VEGA-CUNDINAMARCA"]
[null,null,null,null,null,null,null,null,null,null,null,null,null,null,null,null,null,"LA-VICTORIA-AMAZONAS"]
[null,null,null,null,null,null,null,null,null,null,null,null,null,null,null,null,null,"LA-VICTORIA-BOYACA"]
[null,null,null,null,null,null,null,null,null,null,null,null,null,null,null,null,null,"LA-VICTORIA-VALLE"]
[null,null,null,null,null,null,null,null,null,null,null,null,null,null,null,null,null,"LA-VIRGINIA-RISARALDA"]
[null,null,null,null,null,null,null,null,null,null,null,null,null,null,null,null,null,"LABATECA-NORTE DE SANTANDER"]
[null,null,null,null,null,null,null,null,null,null,null,null,null,null,null,null,null,"LABRANZAGRANDE-BOYACA"]
[null,null,null,null,null,null,null,null,null,null,null,null,null,null,null,null,null,"LANDAZURI-SANTANDER"]
[null,null,null,null,null,null,null,null,null,null,null,null,null,null,null,null,null,"LEBRIJA-SANTANDER"]
[null,null,null,null,null,null,null,null,null,null,null,null,null,null,null,null,null,"LEIVA-NARINO"]
[null,null,null,null,null,null,null,null,null,null,null,null,null,null,null,null,null,"LEJANIAS-META"]
[null,null,null,null,null,null,null,null,null,null,null,null,null,null,null,null,null,"LENGUAZAQUE-CUNDINAMARCA"]
[null,null,null,null,null,null,null,null,null,null,null,null,null,null,null,null,null,"LERIDA-TOLIMA"]
[null,null,null,null,null,null,null,null,null,null,null,null,null,null,null,null,null,"LETICIA-AMAZONAS"]
[null,null,null,null,null,null,null,null,null,null,null,null,null,null,null,null,null,"LIBANO-TOLIMA"]
[null,null,null,null,null,null,null,null,null,null,null,null,null,null,null,null,null,"LIBORINA-ANTIOQUIA"]
[null,null,null,null,null,null,null,null,null,null,null,null,null,null,null,null,null,"LINARES-NARINO"]
[null,null,null,null,null,null,null,null,null,null,null,null,null,null,null,null,null,"LLORO-CHOCO"]
[null,null,null,null,null,null,null,null,null,null,null,null,null,null,null,null,null,"LOPEZ-(MICAY)-CAUCA"]
[null,null,null,null,null,null,null,null,null,null,null,null,null,null,null,null,null,"LORICA-CORDOBA"]
[null,null,null,null,null,null,null,null,null,null,null,null,null,null,null,null,null,"LOS-ANDES-NARINO"]
[null,null,null,null,null,null,null,null,null,null,null,null,null,null,null,null,null,"LOS-CORDOBAS-CORDOBA"]
[null,null,null,null,null,null,null,null,null,null,null,null,null,null,null,null,null,"LOS-PALMITOS-SUCRE"]
[null,null,null,null,null,null,null,null,null,null,null,null,null,null,null,null,null,"LOS-PATIOS-NORTE DE SANTANDER"]
[null,null,null,null,null,null,null,null,null,null,null,null,null,null,null,null,null,"LOS-SANTOS-SANTANDER"]
[null,null,null,null,null,null,null,null,null,null,null,null,null,null,null,null,null,"LOURDES-NORTE DE SANTANDER"]
[null,null,null,null,null,null,null,null,null,null,null,null,null,null,null,null,null,"LURUACO-ATLANTICO"]
[null,null,null,null,null,null,null,null,null,null,null,null,null,null,null,null,null,"MACANAL-BOYACA"]
[null,null,null,null,null,null,null,null,null,null,null,null,null,null,null,null,null,"MACARAVITA-SANTANDER"]
[null,null,null,null,null,null,null,null,null,null,null,null,null,null,null,null,null,"MACEO-ANTIOQUIA"]
[null,null,null,null,null,null,null,null,null,null,null,null,null,null,null,null,null,"MACHETA-CUNDINAMARCA"]
[null,null,null,null,null,null,null,null,null,null,null,null,null,null,null,null,null,"MADRID-CUNDINAMARCA"]
[null,null,null,null,null,null,null,null,null,null,null,null,null,null,null,null,null,"MAGANGUE-BOLIVAR"]
[null,null,null,null,null,null,null,null,null,null,null,null,null,null,null,null,null,"MAGUI-NARINO"]
[null,null,null,null,null,null,null,null,null,null,null,null,null,null,null,null,null,"MAHATES-BOLIVAR"]
[null,null,null,null,null,null,null,null,null,null,null,null,null,null,null,null,null,"MAICAO-LA GUAJIRA"]
[null,null,null,null,null,null,null,null,null,null,null,null,null,null,null,null,null,"MAJAGUAL-SUCRE"]
[null,null,null,null,null,null,null,null,null,null,null,null,null,null,null,null,null,"MALAGA-SANTANDER"]
[null,null,null,null,null,null,null,null,null,null,null,null,null,null,null,null,null,"MALAMBO-ATLANTICO"]
[null,null,null,null,null,null,null,null,null,null,null,null,null,null,null,null,null,"MALLAMA-NARINO"]
[null,null,null,null,null,null,null,null,null,null,null,null,null,null,null,null,null,"MANATI-ATLANTICO"]
[null,null,null,null,null,null,null,null,null,null,null,null,null,null,null,null,null,"MANAURE-BALCON-DEL-CESAR-CESAR"]
[null,null,null,null,null,null,null,null,null,null,null,null,null,null,null,null,null,"MANAURE-LA GUAJIRA"]
[null,null,null,null,null,null,null,null,null,null,null,null,null,null,null,null,null,"MANI-CASANARE"]
[null,null,null,null,null,null,null,null,null,null,null,null,null,null,null,null,null,"MANIZALES-CALDAS"]
[null,null,null,null,null,null,null,null,null,null,null,null,null,null,null,null,null,"MANTA-CUNDINAMARCA"]
[null,null,null,null,null,null,null,null,null,null,null,null,null,null,null,null,null,"MANZANARES-CALDAS"]
[null,null,null,null,null,null,null,null,null,null,null,null,null,null,null,null,null,"MAPIRIPANA-GUAINIA"]
[null,null,null,null,null,null,null,null,null,null,null,null,null,null,null,null,null,"MAPIRIPÁN-META"]
[null,null,null,null,null,null,null,null,null,null,null,null,null,null,null,null,null,"MARGARITA-BOLIVAR"]
[null,null,null,null,null,null,null,null,null,null,null,null,null,null,null,null,null,"MARIA-LA-BAJA-BOLIVAR"]
[null,null,null,null,null,null,null,null,null,null,null,null,null,null,null,null,null,"MARINILLA-ANTIOQUIA"]
[null,null,null,null,null,null,null,null,null,null,null,null,null,null,null,null,null,"MARIPI-BOYACA"]
[null,null,null,null,null,null,null,null,null,null,null,null,null,null,null,null,null,"MARIQUITA-TOLIMA"]
[null,null,null,null,null,null,null,null,null,null,null,null,null,null,null,null,null,"MARMATO-CALDAS"]
[null,null,null,null,null,null,null,null,null,null,null,null,null,null,null,null,null,"MARQUETALIA-CALDAS"]
[null,null,null,null,null,null,null,null,null,null,null,null,null,null,null,null,null,"MARSELLA-RISARALDA"]
[null,null,null,null,null,null,null,null,null,null,null,null,null,null,null,null,null,"MARULANDA-CALDAS"]
[null,null,null,null,null,null,null,null,null,null,null,null,null,null,null,null,null,"MATANZA-SANTANDER"]
[null,null,null,null,null,null,null,null,null,null,null,null,null,null,null,null,null,"MEDELLIN-ANTIOQUIA"]
[null,null,null,null,null,null,null,null,null,null,null,null,null,null,null,null,null,"MEDINA-CUNDINAMARCA"]
[null,null,null,null,null,null,null,null,null,null,null,null,null,null,null,null,null,"MEDIO-ATRATO-CHOCO"]
[null,null,null,null,null,null,null,null,null,null,null,null,null,null,null,null,null,"MEDIO-BAUDÓ-CHOCO"]
[null,null,null,null,null,null,null,null,null,null,null,null,null,null,null,null,null,"MEDIO-SAN-JUAN-CHOCO"]
[null,null,null,null,null,null,null,null,null,null,null,null,null,null,null,null,null,"MELGAR-TOLIMA"]
[null,null,null,null,null,null,null,null,null,null,null,null,null,null,null,null,null,"MERCADERES-CAUCA"]
[null,null,null,null,null,null,null,null,null,null,null,null,null,null,null,null,null,"MESETAS-META"]
[null,null,null,null,null,null,null,null,null,null,null,null,null,null,null,null,null,"MILAN-CAQUETA"]
[null,null,null,null,null,null,null,null,null,null,null,null,null,null,null,null,null,"MIRAFLORES-BOYACA"]
[null,null,null,null,null,null,null,null,null,null,null,null,null,null,null,null,null,"MIRAFLORES-GUAVIARE"]
[null,null,null,null,null,null,null,null,null,null,null,null,null,null,null,null,null,"MIRANDA-CAUCA"]
[null,null,null,null,null,null,null,null,null,null,null,null,null,null,null,null,null,"MIRITI-PARANA-AMAZONAS"]
[null,null,null,null,null,null,null,null,null,null,null,null,null,null,null,null,null,"MISTRATO-RISARALDA"]
[null,null,null,null,null,null,null,null,null,null,null,null,null,null,null,null,null,"MITU-VAUPES"]
[null,null,null,null,null,null,null,null,null,null,null,null,null,null,null,null,null,"MOCOA-PUTUMAYO"]
[null,null,null,null,null,null,null,null,null,null,null,null,null,null,null,null,null,"MOGOTES-SANTANDER"]
[null,null,null,null,null,null,null,null,null,null,null,null,null,null,null,null,null,"MOLAGAVITA-SANTANDER"]
[null,null,null,null,null,null,null,null,null,null,null,null,null,null,null,null,null,"MOMIL-CORDOBA"]
[null,null,null,null,null,null,null,null,null,null,null,null,null,null,null,null,null,"MOMPOS-BOLIVAR"]
[null,null,null,null,null,null,null,null,null,null,null,null,null,null,null,null,null,"MONGUA-BOYACA"]
[null,null,null,null,null,null,null,null,null,null,null,null,null,null,null,null,null,"MONGUI-BOYACA"]
[null,null,null,null,null,null,null,null,null,null,null,null,null,null,null,null,null,"MONIQUIRA-BOYACA"]
[null,null,null,null,null,null,null,null,null,null,null,null,null,null,null,null,null,"MONITOS-CORDOBA"]
[null,null,null,null,null,null,null,null,null,null,null,null,null,null,null,null,null,"MONTEBELLO-ANTIOQUIA"]
[null,null,null,null,null,null,null,null,null,null,null,null,null,null,null,null,null,"MONTECRISTO-BOLIVAR"]
[null,null,null,null,null,null,null,null,null,null,null,null,null,null,null,null,null,"MONTELIBANO-CORDOBA"]
[null,null,null,null,null,null,null,null,null,null,null,null,null,null,null,null,null,"MONTENEGRO-QUINDIO"]
[null,null,null,null,null,null,null,null,null,null,null,null,null,null,null,null,null,"MONTERIA-CORDOBA"]
[null,null,null,null,null,null,null,null,null,null,null,null,null,null,null,null,null,"MONTERREY-CASANARE"]
[null,null,null,null,null,null,null,null,null,null,null,null,null,null,null,null,null,"MORALES-BOLIVAR"]
[null,null,null,null,null,null,null,null,null,null,null,null,null,null,null,null,null,"MORALES-CAUCA"]
[null,null,null,null,null,null,null,null,null,null,null,null,null,null,null,null,null,"MORELIA-CAQUETA"]
[null,null,null,null,null,null,null,null,null,null,null,null,null,null,null,null,null,"MORICHAL-GUAINIA"]
[null,null,null,null,null,null,null,null,null,null,null,null,null,null,null,null,null,"MORICHAL-GUAVIARE"]
[null,null,null,null,null,null,null,null,null,null,null,null,null,null,null,null,null,"MORROA-SUCRE"]
[null,null,null,null,null,null,null,null,null,null,null,null,null,null,null,null,null,"MOSQUERA-CUNDINAMARCA"]
[null,null,null,null,null,null,null,null,null,null,null,null,null,null,null,null,null,"MOSQUERA-NARINO"]
[null,null,null,null,null,null,null,null,null,null,null,null,null,null,null,null,null,"MOTAVITA-BOYACA"]
[null,null,null,null,null,null,null,null,null,null,null,null,null,null,null,null,null,"MURILLO-TOLIMA"]
[null,null,null,null,null,null,null,null,null,null,null,null,null,null,null,null,null,"MURINDO-ANTIOQUIA"]
[null,null,null,null,null,null,null,null,null,null,null,null,null,null,null,null,null,"MUTATA-ANTIOQUIA"]
[null,null,null,null,null,null,null,null,null,null,null,null,null,null,null,null,null,"MUTISCUA-NORTE DE SANTANDER"]
[null,null,null,null,null,null,null,null,null,null,null,null,null,null,null,null,null,"MUZO-BOYACA"]
[null,null,null,null,null,null,null,null,null,null,null,null,null,null,null,null,null,"NARINO-ANTIOQUIA"]
[null,null,null,null,null,null,null,null,null,null,null,null,null,null,null,null,null,"NARINO-CUNDINAMARCA"]
[null,null,null,null,null,null,null,null,null,null,null,null,null,null,null,null,null,"NARIÑO-NARINO"]
[null,null,null,null,null,null,null,null,null,null,null,null,null,null,null,null,null,"NATAGA-HUILA"]
[null,null,null,null,null,null,null,null,null,null,null,null,null,null,null,null,null,"NATAGAIMA-TOLIMA"]
[null,null,null,null,null,null,null,null,null,null,null,null,null,null,null,null,null,"NECHI-ANTIOQUIA"]
[null,null,null,null,null,null,null,null,null,null,null,null,null,null,null,null,null,"NECOCLI-ANTIOQUIA"]
[null,null,null,null,null,null,null,null,null,null,null,null,null,null,null,null,null,"NEIRA-CALDAS"]
[null,null,null,null,null,null,null,null,null,null,null,null,null,null,null,null,null,"NEIVA-HUILA"]
[null,null,null,null,null,null,null,null,null,null,null,null,null,null,null,null,null,"NEMOCON-CUNDINAMARCA"]
[null,null,null,null,null,null,null,null,null,null,null,null,null,null,null,null,null,"NILO-CUNDINAMARCA"]
[null,null,null,null,null,null,null,null,null,null,null,null,null,null,null,null,null,"NIMAIMA-CUNDINAMARCA"]
[null,null,null,null,null,null,null,null,null,null,null,null,null,null,null,null,null,"NOBSA-BOYACA"]
[null,null,null,null,null,null,null,null,null,null,null,null,null,null,null,null,null,"NOCAIMA-CUNDINAMARCA"]
[null,null,null,null,null,null,null,null,null,null,null,null,null,null,null,null,null,"NORCASIA-CALDAS"]
[null,null,null,null,null,null,null,null,null,null,null,null,null,null,null,null,null,"NOROSI-BOLIVAR"]
[null,null,null,null,null,null,null,null,null,null,null,null,null,null,null,null,null,"NOVITA-CHOCO"]
[null,null,null,null,null,null,null,null,null,null,null,null,null,null,null,null,null,"NUEVA-ANTIOQUIA-VICHADA"]
[null,null,null,null,null,null,null,null,null,null,null,null,null,null,null,null,null,"NUEVA-GRANADA-MAGDALENA"]
[null,null,null,null,null,null,null,null,null,null,null,null,null,null,null,null,null,"NUEVO-COLON-BOYACA"]
[null,null,null,null,null,null,null,null,null,null,null,null,null,null,null,null,null,"NUNCHIA-CASANARE"]
[null,null,null,null,null,null,null,null,null,null,null,null,null,null,null,null,null,"NUQUI-CHOCO"]
[null,null,null,null,null,null,null,null,null,null,null,null,null,null,null,null,null,"OBANDO-VALLE"]
[null,null,null,null,null,null,null,null,null,null,null,null,null,null,null,null,null,"OCAMONTE-SANTANDER"]
[null,null,null,null,null,null,null,null,null,null,null,null,null,null,null,null,null,"OCANA-NORTE DE SANTANDER"]
[null,null,null,null,null,null,null,null,null,null,null,null,null,null,null,null,null,"OIBA-SANTANDER"]
[null,null,null,null,null,null,null,null,null,null,null,null,null,null,null,null,null,"OICATA-BOYACA"]
[null,null,null,null,null,null,null,null,null,null,null,null,null,null,null,null,null,"OLAYA-ANTIOQUIA"]
[null,null,null,null,null,null,null,null,null,null,null,null,null,null,null,null,null,"OLAYA-HERRERA-NARINO"]
[null,null,null,null,null,null,null,null,null,null,null,null,null,null,null,null,null,"ONZAGA-SANTANDER"]
[null,null,null,null,null,null,null,null,null,null,null,null,null,null,null,null,null,"OPORAPA-HUILA"]
[null,null,null,null,null,null,null,null,null,null,null,null,null,null,null,null,null,"ORITO-PUTUMAYO"]
[null,null,null,null,null,null,null,null,null,null,null,null,null,null,null,null,null,"OROCUE-CASANARE"]
[null,null,null,null,null,null,null,null,null,null,null,null,null,null,null,null,null,"ORTEGA-TOLIMA"]
[null,null,null,null,null,null,null,null,null,null,null,null,null,null,null,null,null,"OSPINA-NARINO"]
[null,null,null,null,null,null,null,null,null,null,null,null,null,null,null,null,null,"OTANCHE-BOYACA"]
[null,null,null,null,null,null,null,null,null,null,null,null,null,null,null,null,null,"OVEJAS-SUCRE"]
[null,null,null,null,null,null,null,null,null,null,null,null,null,null,null,null,null,"PACHAVITA-BOYACA"]
[null,null,null,null,null,null,null,null,null,null,null,null,null,null,null,null,null,"PACHO-CUNDINAMARCA"]
[null,null,null,null,null,null,null,null,null,null,null,null,null,null,null,null,null,"PACOA-VAUPES"]
[null,null,null,null,null,null,null,null,null,null,null,null,null,null,null,null,null,"PACORA-CALDAS"]
[null,null,null,null,null,null,null,null,null,null,null,null,null,null,null,null,null,"PADILLA-CAUCA"]
[null,null,null,null,null,null,null,null,null,null,null,null,null,null,null,null,null,"PAEZ-BOYACA"]
[null,null,null,null,null,null,null,null,null,null,null,null,null,null,null,null,null,"PAEZ-CAUCA"]
[null,null,null,null,null,null,null,null,null,null,null,null,null,null,null,null,null,"PAICOL-HUILA"]
[null,null,null,null,null,null,null,null,null,null,null,null,null,null,null,null,null,"PAILITAS-CESAR"]
[null,null,null,null,null,null,null,null,null,null,null,null,null,null,null,null,null,"PAIME-CUNDINAMARCA"]
[null,null,null,null,null,null,null,null,null,null,null,null,null,null,null,null,null,"PAIPA-BOYACA"]
[null,null,null,null,null,null,null,null,null,null,null,null,null,null,null,null,null,"PAJARITO-BOYACA"]
[null,null,null,null,null,null,null,null,null,null,null,null,null,null,null,null,null,"PALERMO-HUILA"]
[null,null,null,null,null,null,null,null,null,null,null,null,null,null,null,null,null,"PALESTINA-CALDAS"]
[null,null,null,null,null,null,null,null,null,null,null,null,null,null,null,null,null,"PALESTINA-HUILA"]
[null,null,null,null,null,null,null,null,null,null,null,null,null,null,null,null,null,"PALMAR-DE-VARELA-ATLANTICO"]
[null,null,null,null,null,null,null,null,null,null,null,null,null,null,null,null,null,"PALMAR-SANTANDER"]
[null,null,null,null,null,null,null,null,null,null,null,null,null,null,null,null,null,"PALMAS-DEL-SOCORRO-SANTANDER"]
[null,null,null,null,null,null,null,null,null,null,null,null,null,null,null,null,null,"PALMIRA-VALLE"]
[null,null,null,null,null,null,null,null,null,null,null,null,null,null,null,null,null,"PALMITO-SUCRE"]
[null,null,null,null,null,null,null,null,null,null,null,null,null,null,null,null,null,"PALOCABILDO-TOLIMA"]
[null,null,null,null,null,null,null,null,null,null,null,null,null,null,null,null,null,"PAMPLONA-NORTE DE SANTANDER"]
[null,null,null,null,null,null,null,null,null,null,null,null,null,null,null,null,null,"PAMPLONITA-NORTE DE SANTANDER"]
[null,null,null,null,null,null,null,null,null,null,null,null,null,null,null,null,null,"PANA-PANA-GUAINIA"]
[null,null,null,null,null,null,null,null,null,null,null,null,null,null,null,null,null,"PANDI-CUNDINAMARCA"]
[null,null,null,null,null,null,null,null,null,null,null,null,null,null,null,null,null,"PANQUEBA-BOYACA"]
[null,null,null,null,null,null,null,null,null,null,null,null,null,null,null,null,null,"PAPUNAUA-VAUPES"]
[null,null,null,null,null,null,null,null,null,null,null,null,null,null,null,null,null,"PARAMO-SANTANDER"]
[null,null,null,null,null,null,null,null,null,null,null,null,null,null,null,null,null,"PARATEBUENO-CUNDINAMARCA"]
[null,null,null,null,null,null,null,null,null,null,null,null,null,null,null,null,null,"PASCA-CUNDINAMARCA"]
[null,null,null,null,null,null,null,null,null,null,null,null,null,null,null,null,null,"PASTO-NARINO"]
[null,null,null,null,null,null,null,null,null,null,null,null,null,null,null,null,null,"PATIA(EL-BORDO)-CAUCA"]
[null,null,null,null,null,null,null,null,null,null,null,null,null,null,null,null,null,"PAUNA-BOYACA"]
[null,null,null,null,null,null,null,null,null,null,null,null,null,null,null,null,null,"PAYA-BOYACA"]
[null,null,null,null,null,null,null,null,null,null,null,null,null,null,null,null,null,"PAZ-DE-ARIPORO-CASANARE"]
[null,null,null,null,null,null,null,null,null,null,null,null,null,null,null,null,null,"PAZ-DE-RIO-BOYACA"]
[null,null,null,null,null,null,null,null,null,null,null,null,null,null,null,null,null,"PEDRAZA-MAGDALENA"]
[null,null,null,null,null,null,null,null,null,null,null,null,null,null,null,null,null,"PELAYA-CESAR"]
[null,null,null,null,null,null,null,null,null,null,null,null,null,null,null,null,null,"PENOL-ANTIOQUIA"]
[null,null,null,null,null,null,null,null,null,null,null,null,null,null,null,null,null,"PENSILVANIA-CALDAS"]
[null,null,null,null,null,null,null,null,null,null,null,null,null,null,null,null,null,"PEQUE-ANTIOQUIA"]
[null,null,null,null,null,null,null,null,null,null,null,null,null,null,null,null,null,"PEREIRA-RISARALDA"]
[null,null,null,null,null,null,null,null,null,null,null,null,null,null,null,null,null,"PESCA-BOYACA"]
[null,null,null,null,null,null,null,null,null,null,null,null,null,null,null,null,null,"PIAMONTE-CAUCA"]
[null,null,null,null,null,null,null,null,null,null,null,null,null,null,null,null,null,"PIEDECUESTA-SANTANDER"]
[null,null,null,null,null,null,null,null,null,null,null,null,null,null,null,null,null,"PIEDRAS-TOLIMA"]
[null,null,null,null,null,null,null,null,null,null,null,null,null,null,null,null,null,"PIENDAMO-CAUCA"]
[null,null,null,null,null,null,null,null,null,null,null,null,null,null,null,null,null,"PIJAO-QUINDIO"]
[null,null,null,null,null,null,null,null,null,null,null,null,null,null,null,null,null,"PIJIÑO-DEL-CARMEN-MAGDALENA"]
[null,null,null,null,null,null,null,null,null,null,null,null,null,null,null,null,null,"PINCHOTE-SANTANDER"]
[null,null,null,null,null,null,null,null,null,null,null,null,null,null,null,null,null,"PINILLOS-BOLIVAR"]
[null,null,null,null,null,null,null,null,null,null,null,null,null,null,null,null,null,"PIOJO-ATLANTICO"]
[null,null,null,null,null,null,null,null,null,null,null,null,null,null,null,null,null,"PISVA-BOYACA"]
[null,null,null,null,null,null,null,null,null,null,null,null,null,null,null,null,null,"PITAL-HUILA"]
[null,null,null,null,null,null,null,null,null,null,null,null,null,null,null,null,null,"PITALITO-HUILA"]
[null,null,null,null,null,null,null,null,null,null,null,null,null,null,null,null,null,"PIVIJAY-MAGDALENA"]
[null,null,null,null,null,null,null,null,null,null,null,null,null,null,null,null,null,"PLANADAS-TOLIMA"]
[null,null,null,null,null,null,null,null,null,null,null,null,null,null,null,null,null,"PLANETA-RICA-CORDOBA"]
[null,null,null,null,null,null,null,null,null,null,null,null,null,null,null,null,null,"PLATO-MAGDALENA"]
[null,null,null,null,null,null,null,null,null,null,null,null,null,null,null,null,null,"POLICARPA-NARINO"]
[null,null,null,null,null,null,null,null,null,null,null,null,null,null,null,null,null,"POLONUEVO-ATLANTICO"]
[null,null,null,null,null,null,null,null,null,null,null,null,null,null,null,null,null,"PONEDERA-ATLANTICO"]
[null,null,null,null,null,null,null,null,null,null,null,null,null,null,null,null,null,"POPAYAN-CAUCA"]
[null,null,null,null,null,null,null,null,null,null,null,null,null,null,null,null,null,"PORE-CASANARE"]
[null,null,null,null,null,null,null,null,null,null,null,null,null,null,null,null,null,"POTOSI-NARINO"]
[null,null,null,null,null,null,null,null,null,null,null,null,null,null,null,null,null,"PRADERA-VALLE"]
[null,null,null,null,null,null,null,null,null,null,null,null,null,null,null,null,null,"PRADO-TOLIMA"]
[null,null,null,null,null,null,null,null,null,null,null,null,null,null,null,null,null,"PROVIDENCIA-NARINO"]
[null,null,null,null,null,null,null,null,null,null,null,null,null,null,null,null,null,"PROVIDENCIA-SAN ANDRES Y PROVIDENCIA"]
[null,null,null,null,null,null,null,null,null,null,null,null,null,null,null,null,null,"PUEBLO-BELLO-CESAR"]
[null,null,null,null,null,null,null,null,null,null,null,null,null,null,null,null,null,"PUEBLO-NUEVO-CORDOBA"]
[null,null,null,null,null,null,null,null,null,null,null,null,null,null,null,null,null,"PUEBLO-RICO-RISARALDA"]
[null,null,null,null,null,null,null,null,null,null,null,null,null,null,null,null,null,"PUEBLORRICO-ANTIOQUIA"]
[null,null,null,null,null,null,null,null,null,null,null,null,null,null,null,null,null,"PUEBLOVIEJO-MAGDALENA"]
[null,null,null,null,null,null,null,null,null,null,null,null,null,null,null,null,null,"PUENTE-NACIONAL-SANTANDER"]
[null,null,null,null,null,null,null,null,null,null,null,null,null,null,null,null,null,"PUERRES-NARINO"]
[null,null,null,null,null,null,null,null,null,null,null,null,null,null,null,null,null,"PUERTO-ALEGRIA-AMAZONAS"]
[null,null,null,null,null,null,null,null,null,null,null,null,null,null,null,null,null,"PUERTO-ARICA-AMAZONAS"]
[null,null,null,null,null,null,null,null,null,null,null,null,null,null,null,null,null,"PUERTO-ASIS-PUTUMAYO"]
[null,null,null,null,null,null,null,null,null,null,null,null,null,null,null,null,null,"PUERTO-BERRIO-ANTIOQUIA"]
[null,null,null,null,null,null,null,null,null,null,null,null,null,null,null,null,null,"PUERTO-BOYACA-BOYACA"]
[null,null,null,null,null,null,null,null,null,null,null,null,null,null,null,null,null,"PUERTO-CAICEDO-PUTUMAYO"]
[null,null,null,null,null,null,null,null,null,null,null,null,null,null,null,null,null,"PUERTO-CARRENO-VICHADA"]
[null,null,null,null,null,null,null,null,null,null,null,null,null,null,null,null,null,"PUERTO-COLOMBIA-ATLANTICO"]
[null,null,null,null,null,null,null,null,null,null,null,null,null,null,null,null,null,"PUERTO-COLOMBIA-GUAINIA"]
[null,null,null,null,null,null,null,null,null,null,null,null,null,null,null,null,null,"PUERTO-CONCORDIA-META"]
[null,null,null,null,null,null,null,null,null,null,null,null,null,null,null,null,null,"PUERTO-ESCONDIDO-CORDOBA"]
[null,null,null,null,null,null,null,null,null,null,null,null,null,null,null,null,null,"PUERTO-GAITAN-META"]
[null,null,null,null,null,null,null,null,null,null,null,null,null,null,null,null,null,"PUERTO-GUZMÁN-PUTUMAYO"]
[null,null,null,null,null,null,null,null,null,null,null,null,null,null,null,null,null,"PUERTO-LIBERTADOR-CORDOBA"]
[null,null,null,null,null,null,null,null,null,null,null,null,null,null,null,null,null,"PUERTO-LLERAS-META"]
[null,null,null,null,null,null,null,null,null,null,null,null,null,null,null,null,null,"PUERTO-LOPEZ-META"]
[null,null,null,null,null,null,null,null,null,null,null,null,null,null,null,null,null,"PUERTO-NARE-ANTIOQUIA"]
[null,null,null,null,null,null,null,null,null,null,null,null,null,null,null,null,null,"PUERTO-NARINO-AMAZONAS"]
[null,null,null,null,null,null,null,null,null,null,null,null,null,null,null,null,null,"PUERTO-PARRA-SANTANDER"]
[null,null,null,null,null,null,null,null,null,null,null,null,null,null,null,null,null,"PUERTO-RICO-CAQUETA"]
[null,null,null,null,null,null,null,null,null,null,null,null,null,null,null,null,null,"PUERTO-RICO-META"]
[null,null,null,null,null,null,null,null,null,null,null,null,null,null,null,null,null,"PUERTO-RONDON-ARAUCA"]
[null,null,null,null,null,null,null,null,null,null,null,null,null,null,null,null,null,"PUERTO-SALGAR-CUNDINAMARCA"]
[null,null,null,null,null,null,null,null,null,null,null,null,null,null,null,null,null,"PUERTO-SANTANDER-AMAZONAS"]
[null,null,null,null,null,null,null,null,null,null,null,null,null,null,null,null,null,"PUERTO-SANTANDER-NORTE DE SANTANDER"]
[null,null,null,null,null,null,null,null,null,null,null,null,null,null,null,null,null,"PUERTO-TEJADA-CAUCA"]
[null,null,null,null,null,null,null,null,null,null,null,null,null,null,null,null,null,"PUERTO-TRIUNFO-ANTIOQUIA"]
[null,null,null,null,null,null,null,null,null,null,null,null,null,null,null,null,null,"PUERTO-WILCHES-SANTANDER"]
[null,null,null,null,null,null,null,null,null,null,null,null,null,null,null,null,null,"PULI-CUNDINAMARCA"]
[null,null,null,null,null,null,null,null,null,null,null,null,null,null,null,null,null,"PUPIALES-NARINO"]
[null,null,null,null,null,null,null,null,null,null,null,null,null,null,null,null,null,"PURACE-CAUCA"]
[null,null,null,null,null,null,null,null,null,null,null,null,null,null,null,null,null,"PURIFICACION-TOLIMA"]
[null,null,null,null,null,null,null,null,null,null,null,null,null,null,null,null,null,"PURISIMA-CORDOBA"]
[null,null,null,null,null,null,null,null,null,null,null,null,null,null,null,null,null,"QUEBRADANEGRA-CUNDINAMARCA"]
[null,null,null,null,null,null,null,null,null,null,null,null,null,null,null,null,null,"QUETAME-CUNDINAMARCA"]
[null,null,null,null,null,null,null,null,null,null,null,null,null,null,null,null,null,"QUIBDO-CHOCO"]
[null,null,null,null,null,null,null,null,null,null,null,null,null,null,null,null,null,"QUIMBAYA-QUINDIO"]
[null,null,null,null,null,null,null,null,null,null,null,null,null,null,null,null,null,"QUINCHIA-RISARALDA"]
[null,null,null,null,null,null,null,null,null,null,null,null,null,null,null,null,null,"QUIPAMA-BOYACA"]
[null,null,null,null,null,null,null,null,null,null,null,null,null,null,null,null,null,"QUIPILE-CUNDINAMARCA"]
[null,null,null,null,null,null,null,null,null,null,null,null,null,null,null,null,null,"RAGONVALIA-NORTE DE SANTANDER"]
[null,null,null,null,null,null,null,null,null,null,null,null,null,null,null,null,null,"RAMIRIQUI-BOYACA"]
[null,null,null,null,null,null,null,null,null,null,null,null,null,null,null,null,null,"RAQUIRA-BOYACA"]
[null,null,null,null,null,null,null,null,null,null,null,null,null,null,null,null,null,"RECETOR-CASANARE"]
[null,null,null,null,null,null,null,null,null,null,null,null,null,null,null,null,null,"REGIDOR-BOLIVAR"]
[null,null,null,null,null,null,null,null,null,null,null,null,null,null,null,null,null,"REMEDIOS-ANTIOQUIA"]
[null,null,null,null,null,null,null,null,null,null,null,null,null,null,null,null,null,"REMOLINO-MAGDALENA"]
[null,null,null,null,null,null,null,null,null,null,null,null,null,null,null,null,null,"REPELON-ATLANTICO"]
[null,null,null,null,null,null,null,null,null,null,null,null,null,null,null,null,null,"RESTREPO-META"]
[null,null,null,null,null,null,null,null,null,null,null,null,null,null,null,null,null,"RESTREPO-VALLE"]
[null,null,null,null,null,null,null,null,null,null,null,null,null,null,null,null,null,"RETIRO-ANTIOQUIA"]
[null,null,null,null,null,null,null,null,null,null,null,null,null,null,null,null,null,"RICAURTE-CUNDINAMARCA"]
[null,null,null,null,null,null,null,null,null,null,null,null,null,null,null,null,null,"RICAURTE-NARINO"]
[null,null,null,null,null,null,null,null,null,null,null,null,null,null,null,null,null,"RIO-DE-ORO-CESAR"]
[null,null,null,null,null,null,null,null,null,null,null,null,null,null,null,null,null,"RIO-VIEJO-BOLIVAR"]
[null,null,null,null,null,null,null,null,null,null,null,null,null,null,null,null,null,"RIOBLANCO-TOLIMA"]
[null,null,null,null,null,null,null,null,null,null,null,null,null,null,null,null,null,"RIOFRIO-VALLE"]
[null,null,null,null,null,null,null,null,null,null,null,null,null,null,null,null,null,"RIOHACHA-LA GUAJIRA"]
[null,null,null,null,null,null,null,null,null,null,null,null,null,null,null,null,null,"RIONEGRO-ANTIOQUIA"]
[null,null,null,null,null,null,null,null,null,null,null,null,null,null,null,null,null,"RIONEGRO-SANTANDER"]
[null,null,null,null,null,null,null,null,null,null,null,null,null,null,null,null,null,"RIOSUCIO-CALDAS"]
[null,null,null,null,null,null,null,null,null,null,null,null,null,null,null,null,null,"RIOSUCIO-CHOCO"]
[null,null,null,null,null,null,null,null,null,null,null,null,null,null,null,null,null,"RISARALDA-CALDAS"]
[null,null,null,null,null,null,null,null,null,null,null,null,null,null,null,null,null,"RIVERA-HUILA"]
[null,null,null,null,null,null,null,null,null,null,null,null,null,null,null,null,null,"ROBERTO-PAYAN-NARINO"]
[null,null,null,null,null,null,null,null,null,null,null,null,null,null,null,null,null,"ROLDANILLO-VALLE"]
[null,null,null,null,null,null,null,null,null,null,null,null,null,null,null,null,null,"RONCESVALLES-TOLIMA"]
[null,null,null,null,null,null,null,null,null,null,null,null,null,null,null,null,null,"RONDON-BOYACA"]
[null,null,null,null,null,null,null,null,null,null,null,null,null,null,null,null,null,"ROSAS-CAUCA"]
[null,null,null,null,null,null,null,null,null,null,null,null,null,null,null,null,null,"ROVIRA-TOLIMA"]
[null,null,null,null,null,null,null,null,null,null,null,null,null,null,null,null,null,"RÍO-IRO-CHOCO"]
[null,null,null,null,null,null,null,null,null,null,null,null,null,null,null,null,null,"RÍO-QUITO-CHOCO"]
[null,null,null,null,null,null,null,null,null,null,null,null,null,null,null,null,null,"SABANA-DE-TORRES-SANTANDER"]
[null,null,null,null,null,null,null,null,null,null,null,null,null,null,null,null,null,"SABANAGRANDE-ATLANTICO"]
[null,null,null,null,null,null,null,null,null,null,null,null,null,null,null,null,null,"SABANALARGA-ANTIOQUIA"]
[null,null,null,null,null,null,null,null,null,null,null,null,null,null,null,null,null,"SABANALARGA-ATLANTICO"]
[null,null,null,null,null,null,null,null,null,null,null,null,null,null,null,null,null,"SABANALARGA-CASANARE"]
[null,null,null,null,null,null,null,null,null,null,null,null,null,null,null,null,null,"SABANAS-DE-SAN-ANGEL-MAGDALENA"]
[null,null,null,null,null,null,null,null,null,null,null,null,null,null,null,null,null,"SABANETA-ANTIOQUIA"]
[null,null,null,null,null,null,null,null,null,null,null,null,null,null,null,null,null,"SABOYA-BOYACA"]
[null,null,null,null,null,null,null,null,null,null,null,null,null,null,null,null,null,"SACAMA-CASANARE"]
[null,null,null,null,null,null,null,null,null,null,null,null,null,null,null,null,null,"SACHICA-BOYACA"]
[null,null,null,null,null,null,null,null,null,null,null,null,null,null,null,null,null,"SAHAGUN-CORDOBA"]
[null,null,null,null,null,null,null,null,null,null,null,null,null,null,null,null,null,"SALADOBLANCO-HUILA"]
[null,null,null,null,null,null,null,null,null,null,null,null,null,null,null,null,null,"SALAMINA-CALDAS"]
[null,null,null,null,null,null,null,null,null,null,null,null,null,null,null,null,null,"SALAMINA-MAGDALENA"]
[null,null,null,null,null,null,null,null,null,null,null,null,null,null,null,null,null,"SALAZAR-NORTE DE SANTANDER"]
[null,null,null,null,null,null,null,null,null,null,null,null,null,null,null,null,null,"SALDANA-TOLIMA"]
[null,null,null,null,null,null,null,null,null,null,null,null,null,null,null,null,null,"SALENTO-QUINDIO"]
[null,null,null,null,null,null,null,null,null,null,null,null,null,null,null,null,null,"SALGAR-ANTIOQUIA"]
[null,null,null,null,null,null,null,null,null,null,null,null,null,null,null,null,null,"SAMACA-BOYACA"]
[null,null,null,null,null,null,null,null,null,null,null,null,null,null,null,null,null,"SAMANA-CALDAS"]
[null,null,null,null,null,null,null,null,null,null,null,null,null,null,null,null,null,"SAMANIEGO-NARINO"]
[null,null,null,null,null,null,null,null,null,null,null,null,null,null,null,null,null,"SAMPUES-SUCRE"]
[null,null,null,null,null,null,null,null,null,null,null,null,null,null,null,null,null,"SAN-AGUSTIN-HUILA"]
[null,null,null,null,null,null,null,null,null,null,null,null,null,null,null,null,null,"SAN-ALBERTO-CESAR"]
[null,null,null,null,null,null,null,null,null,null,null,null,null,null,null,null,null,"SAN-ANDRES-ANTIOQUIA"]
[null,null,null,null,null,null,null,null,null,null,null,null,null,null,null,null,null,"SAN-ANDRES-DE-SOTAVENTO-CORDOBA"]
[null,null,null,null,null,null,null,null,null,null,null,null,null,null,null,null,null,"SAN-ANDRES-SAN ANDRES Y PROVIDENCIA"]
[null,null,null,null,null,null,null,null,null,null,null,null,null,null,null,null,null,"SAN-ANDRES-SANTANDER"]
[null,null,null,null,null,null,null,null,null,null,null,null,null,null,null,null,null,"SAN-ANTERO-CORDOBA"]
[null,null,null,null,null,null,null,null,null,null,null,null,null,null,null,null,null,"SAN-ANTONIO-DEL-TEQUENDAMA-CUNDINAMARCA"]
[null,null,null,null,null,null,null,null,null,null,null,null,null,null,null,null,null,"SAN-ANTONIO-TOLIMA"]
[null,null,null,null,null,null,null,null,null,null,null,null,null,null,null,null,null,"SAN-BENITO-ABAD-SUCRE"]
[null,null,null,null,null,null,null,null,null,null,null,null,null,null,null,null,null,"SAN-BENITO-SANTANDER"]
[null,null,null,null,null,null,null,null,null,null,null,null,null,null,null,null,null,"SAN-BERNARDO-CUNDINAMARCA"]
[null,null,null,null,null,null,null,null,null,null,null,null,null,null,null,null,null,"SAN-BERNARDO-DEL-VIENTO-CORDOBA"]
[null,null,null,null,null,null,null,null,null,null,null,null,null,null,null,null,null,"SAN-BERNARDO-NARINO"]
[null,null,null,null,null,null,null,null,null,null,null,null,null,null,null,null,null,"SAN-CALIXTO-NORTE DE SANTANDER"]
[null,null,null,null,null,null,null,null,null,null,null,null,null,null,null,null,null,"SAN-CARLOS-ANTIOQUIA"]
[null,null,null,null,null,null,null,null,null,null,null,null,null,null,null,null,null,"SAN-CARLOS-CORDOBA"]
[null,null,null,null,null,null,null,null,null,null,null,null,null,null,null,null,null,"SAN-CARLOS-DE-GUAR0A-META"]
[null,null,null,null,null,null,null,null,null,null,null,null,null,null,null,null,null,"SAN-CAYETANO-CUNDINAMARCA"]
[null,null,null,null,null,null,null,null,null,null,null,null,null,null,null,null,null,"SAN-CAYETANO-NORTE DE SANTANDER"]
[null,null,null,null,null,null,null,null,null,null,null,null,null,null,null,null,null,"SAN-CRISTÓBAL-BOLIVAR"]
[null,null,null,null,null,null,null,null,null,null,null,null,null,null,null,null,null,"SAN-DIEGO-CESAR"]
[null,null,null,null,null,null,null,null,null,null,null,null,null,null,null,null,null,"SAN-EDUARDO-BOYACA"]
[null,null,null,null,null,null,null,null,null,null,null,null,null,null,null,null,null,"SAN-ESTANISLAO-BOLIVAR"]
[null,null,null,null,null,null,null,null,null,null,null,null,null,null,null,null,null,"SAN-FELIPE-GUAINIA"]
[null,null,null,null,null,null,null,null,null,null,null,null,null,null,null,null,null,"SAN-FERNANDO-BOLIVAR"]
[null,null,null,null,null,null,null,null,null,null,null,null,null,null,null,null,null,"SAN-FRANCISCO-ANTIOQUIA"]
[null,null,null,null,null,null,null,null,null,null,null,null,null,null,null,null,null,"SAN-FRANCISCO-CUNDINAMARCA"]
[null,null,null,null,null,null,null,null,null,null,null,null,null,null,null,null,null,"SAN-FRANCISCO-PUTUMAYO"]
[null,null,null,null,null,null,null,null,null,null,null,null,null,null,null,null,null,"SAN-GIL-SANTANDER"]
[null,null,null,null,null,null,null,null,null,null,null,null,null,null,null,null,null,"SAN-JACINTO-BOLIVAR"]
[null,null,null,null,null,null,null,null,null,null,null,null,null,null,null,null,null,"SAN-JACINTO-DEL-CAUCA-BOLIVAR"]
[null,null,null,null,null,null,null,null,null,null,null,null,null,null,null,null,null,"SAN-JERONIMO-ANTIOQUIA"]
[null,null,null,null,null,null,null,null,null,null,null,null,null,null,null,null,null,"SAN-JOAQUIN-SANTANDER"]
[null,null,null,null,null,null,null,null,null,null,null,null,null,null,null,null,null,"SAN-JOSE-DE-FRAGUA-CAQUETA"]
[null,null,null,null,null,null,null,null,null,null,null,null,null,null,null,null,null,"SAN-JOSE-DE-LA-MONTANA-ANTIOQUIA"]
[null,null,null,null,null,null,null,null,null,null,null,null,null,null,null,null,null,"SAN-JOSE-DE-MIRANDA-SANTANDER"]
[null,null,null,null,null,null,null,null,null,null,null,null,null,null,null,null,null,"SAN-JOSE-DE-OCUNE-VICHADA"]
[null,null,null,null,null,null,null,null,null,null,null,null,null,null,null,null,null,"SAN-JOSE-DE-PARE-BOYACA"]
[null,null,null,null,null,null,null,null,null,null,null,null,null,null,null,null,null,"SAN-JOSE-DE-URE-CORDOBA"]
[null,null,null,null,null,null,null,null,null,null,null,null,null,null,null,null,null,"SAN-JOSE-DEL-GUAVIARE-GUAVIARE"]
[null,null,null,null,null,null,null,null,null,null,null,null,null,null,null,null,null,"SAN-JOSE-DEL-PALMAR-CHOCO"]
[null,null,null,null,null,null,null,null,null,null,null,null,null,null,null,null,null,"SAN-JOSÉ-CALDAS"]
[null,null,null,null,null,null,null,null,null,null,null,null,null,null,null,null,null,"SAN-JUAN-DE-ARAMA-META"]
[null,null,null,null,null,null,null,null,null,null,null,null,null,null,null,null,null,"SAN-JUAN-DE-BETULIA-SUCRE"]
[null,null,null,null,null,null,null,null,null,null,null,null,null,null,null,null,null,"SAN-JUAN-DE-RIOSECO-CUNDINAMARCA"]
[null,null,null,null,null,null,null,null,null,null,null,null,null,null,null,null,null,"SAN-JUAN-DE-URABA-ANTIOQUIA"]
[null,null,null,null,null,null,null,null,null,null,null,null,null,null,null,null,null,"SAN-JUAN-DEL-CESAR-LA GUAJIRA"]
[null,null,null,null,null,null,null,null,null,null,null,null,null,null,null,null,null,"SAN-JUAN-NEPOMUCENO-BOLIVAR"]
[null,null,null,null,null,null,null,null,null,null,null,null,null,null,null,null,null,"SAN-JUANITO-META"]
[null,null,null,null,null,null,null,null,null,null,null,null,null,null,null,null,null,"SAN-LORENZO-NARINO"]
[null,null,null,null,null,null,null,null,null,null,null,null,null,null,null,null,null,"SAN-LUIS-ANTIOQUIA"]
[null,null,null,null,null,null,null,null,null,null,null,null,null,null,null,null,null,"SAN-LUIS-DE-GACENO-BOYACA"]
[null,null,null,null,null,null,null,null,null,null,null,null,null,null,null,null,null,"SAN-LUIS-DE-PALENQUE-CASANARE"]
[null,null,null,null,null,null,null,null,null,null,null,null,null,null,null,null,null,"SAN-LUIS-TOLIMA"]
[null,null,null,null,null,null,null,null,null,null,null,null,null,null,null,null,null,"SAN-MARCOS-SUCRE"]
[null,null,null,null,null,null,null,null,null,null,null,null,null,null,null,null,null,"SAN-MARTIN-CESAR"]
[null,null,null,null,null,null,null,null,null,null,null,null,null,null,null,null,null,"SAN-MARTIN-DE-LOBA-BOLIVAR"]
[null,null,null,null,null,null,null,null,null,null,null,null,null,null,null,null,null,"SAN-MARTIN-META"]
[null,null,null,null,null,null,null,null,null,null,null,null,null,null,null,null,null,"SAN-MATEO-BOYACA"]
[null,null,null,null,null,null,null,null,null,null,null,null,null,null,null,null,null,"SAN-MIGUEL-DE-SEMA-BOYACA"]
[null,null,null,null,null,null,null,null,null,null,null,null,null,null,null,null,null,"SAN-MIGUEL-PUTUMAYO"]
[null,null,null,null,null,null,null,null,null,null,null,null,null,null,null,null,null,"SAN-MIGUEL-SANTANDER"]
[null,null,null,null,null,null,null,null,null,null,null,null,null,null,null,null,null,"SAN-ONOFRE-SUCRE"]
[null,null,null,null,null,null,null,null,null,null,null,null,null,null,null,null,null,"SAN-PABLO-BOLIVAR"]
[null,null,null,null,null,null,null,null,null,null,null,null,null,null,null,null,null,"SAN-PABLO-DE-BORBUR-BOYACA"]
[null,null,null,null,null,null,null,null,null,null,null,null,null,null,null,null,null,"SAN-PABLO-NARINO"]
[null,null,null,null,null,null,null,null,null,null,null,null,null,null,null,null,null,"SAN-PEDRO-ANTIOQUIA"]
[null,null,null,null,null,null,null,null,null,null,null,null,null,null,null,null,null,"SAN-PEDRO-DE-CARTAGO-NARINO"]
[null,null,null,null,null,null,null,null,null,null,null,null,null,null,null,null,null,"SAN-PEDRO-DE-URABA-ANTIOQUIA"]
[null,null,null,null,null,null,null,null,null,null,null,null,null,null,null,null,null,"SAN-PEDRO-SUCRE"]
[null,null,null,null,null,null,null,null,null,null,null,null,null,null,null,null,null,"SAN-PEDRO-VALLE"]
[null,null,null,null,null,null,null,null,null,null,null,null,null,null,null,null,null,"SAN-PELAYO-CORDOBA"]
[null,null,null,null,null,null,null,null,null,null,null,null,null,null,null,null,null,"SAN-RAFAEL-ANTIOQUIA"]
[null,null,null,null,null,null,null,null,null,null,null,null,null,null,null,null,null,"SAN-ROQUE-ANTIOQUIA"]
[null,null,null,null,null,null,null,null,null,null,null,null,null,null,null,null,null,"SAN-SEBASTIAN-CAUCA"]
[null,null,null,null,null,null,null,null,null,null,null,null,null,null,null,null,null,"SAN-SEBASTIAN-DE-BUENAVISMAGDALENA"]
[null,null,null,null,null,null,null,null,null,null,null,null,null,null,null,null,null,"SAN-VICENTE-ANTIOQUIA"]
[null,null,null,null,null,null,null,null,null,null,null,null,null,null,null,null,null,"SAN-VICENTE-DE-CHUCURI-SANTANDER"]
[null,null,null,null,null,null,null,null,null,null,null,null,null,null,null,null,null,"SAN-VICENTE-DEL-CAGUAN-CAQUETA"]
[null,null,null,null,null,null,null,null,null,null,null,null,null,null,null,null,null,"SAN-ZENON-MAGDALENA"]
[null,null,null,null,null,null,null,null,null,null,null,null,null,null,null,null,null,"SANDONA-NARINO"]
[null,null,null,null,null,null,null,null,null,null,null,null,null,null,null,null,null,"SANTA-ANA-MAGDALENA"]
[null,null,null,null,null,null,null,null,null,null,null,null,null,null,null,null,null,"SANTA-BARBARA-ANTIOQUIA"]
[null,null,null,null,null,null,null,null,null,null,null,null,null,null,null,null,null,"SANTA-BARBARA-NARINO"]
[null,null,null,null,null,null,null,null,null,null,null,null,null,null,null,null,null,"SANTA-BARBARA-SANTANDER"]
[null,null,null,null,null,null,null,null,null,null,null,null,null,null,null,null,null,"SANTA-BÁRBARA-DE-PINTO-MAGDALENA"]
[null,null,null,null,null,null,null,null,null,null,null,null,null,null,null,null,null,"SANTA-CATALINA-BOLIVAR"]
[null,null,null,null,null,null,null,null,null,null,null,null,null,null,null,null,null,"SANTA-HELENA-DEL-OPON-SANTANDER"]
[null,null,null,null,null,null,null,null,null,null,null,null,null,null,null,null,null,"SANTA-ISABEL-TOLIMA"]
[null,null,null,null,null,null,null,null,null,null,null,null,null,null,null,null,null,"SANTA-LUCIA-ATLANTICO"]
[null,null,null,null,null,null,null,null,null,null,null,null,null,null,null,null,null,"SANTA-MARIA-BOYACA"]
[null,null,null,null,null,null,null,null,null,null,null,null,null,null,null,null,null,"SANTA-MARTA-MAGDALENA"]
[null,null,null,null,null,null,null,null,null,null,null,null,null,null,null,null,null,"SANTA-RITA-VICHADA"]
[null,null,null,null,null,null,null,null,null,null,null,null,null,null,null,null,null,"SANTA-ROSA-BOLIVAR"]
[null,null,null,null,null,null,null,null,null,null,null,null,null,null,null,null,null,"SANTA-ROSA-CAUCA"]
[null,null,null,null,null,null,null,null,null,null,null,null,null,null,null,null,null,"SANTA-ROSA-DE-CABAL-RISARALDA"]
[null,null,null,null,null,null,null,null,null,null,null,null,null,null,null,null,null,"SANTA-ROSA-DE-OSOS-ANTIOQUIA"]
[null,null,null,null,null,null,null,null,null,null,null,null,null,null,null,null,null,"SANTA-ROSA-DE-VITERBO-BOYACA"]
[null,null,null,null,null,null,null,null,null,null,null,null,null,null,null,null,null,"SANTA-ROSA-DEL-SUR-BOLIVAR"]
[null,null,null,null,null,null,null,null,null,null,null,null,null,null,null,null,null,"SANTA-ROSALIA-VICHADA"]
[null,null,null,null,null,null,null,null,null,null,null,null,null,null,null,null,null,"SANTA-SOFIA-BOYACA"]
[null,null,null,null,null,null,null,null,null,null,null,null,null,null,null,null,null,"SANTACRUZ-NARINO"]
[null,null,null,null,null,null,null,null,null,null,null,null,null,null,null,null,null,"SANTAMARIA-HUILA"]
[null,null,null,null,null,null,null,null,null,null,null,null,null,null,null,null,null,"SANTANA-BOYACA"]
[null,null,null,null,null,null,null,null,null,null,null,null,null,null,null,null,null,"SANTANDER-DE-QUILICHAO-CAUCA"]
[null,null,null,null,null,null,null,null,null,null,null,null,null,null,null,null,null,"SANTIAGO-NORTE DE SANTANDER"]
[null,null,null,null,null,null,null,null,null,null,null,null,null,null,null,null,null,"SANTIAGO-PUTUMAYO"]
[null,null,null,null,null,null,null,null,null,null,null,null,null,null,null,null,null,"SANTIVANORTE-BOYACA"]
[null,null,null,null,null,null,null,null,null,null,null,null,null,null,null,null,null,"SANTIVASUR-BOYACA"]
[null,null,null,null,null,null,null,null,null,null,null,null,null,null,null,null,null,"SANTO-DOMINGO-ANTIOQUIA"]
[null,null,null,null,null,null,null,null,null,null,null,null,null,null,null,null,null,"SANTO-TOMAS-ATLANTICO"]
[null,null,null,null,null,null,null,null,null,null,null,null,null,null,null,null,null,"SANTUARIO-ANTIOQUIA"]
[null,null,null,null,null,null,null,null,null,null,null,null,null,null,null,null,null,"SAPUYES-NARINO"]
[null,null,null,null,null,null,null,null,null,null,null,null,null,null,null,null,null,"SARAVENA-ARAUCA"]
[null,null,null,null,null,null,null,null,null,null,null,null,null,null,null,null,null,"SARDINATA-NORTE DE SANTANDER"]
[null,null,null,null,null,null,null,null,null,null,null,null,null,null,null,null,null,"SASAIMA-CUNDINAMARCA"]
[null,null,null,null,null,null,null,null,null,null,null,null,null,null,null,null,null,"SATUARIO-RISARALDA"]
[null,null,null,null,null,null,null,null,null,null,null,null,null,null,null,null,null,"SEGOVIA-ANTIOQUIA"]
[null,null,null,null,null,null,null,null,null,null,null,null,null,null,null,null,null,"SESQUILE-CUNDINAMARCA"]
[null,null,null,null,null,null,null,null,null,null,null,null,null,null,null,null,null,"SEVILLA-VALLE"]
[null,null,null,null,null,null,null,null,null,null,null,null,null,null,null,null,null,"SIACHOQUE-BOYACA"]
[null,null,null,null,null,null,null,null,null,null,null,null,null,null,null,null,null,"SIBATE-CUNDINAMARCA"]
[null,null,null,null,null,null,null,null,null,null,null,null,null,null,null,null,null,"SIBUNDOY-PUTUMAYO"]
[null,null,null,null,null,null,null,null,null,null,null,null,null,null,null,null,null,"SILOS-NORTE DE SANTANDER"]
[null,null,null,null,null,null,null,null,null,null,null,null,null,null,null,null,null,"SILVANIA-CUNDINAMARCA"]
[null,null,null,null,null,null,null,null,null,null,null,null,null,null,null,null,null,"SILVIA-CAUCA"]
[null,null,null,null,null,null,null,null,null,null,null,null,null,null,null,null,null,"SIMACOTA-SANTANDER"]
[null,null,null,null,null,null,null,null,null,null,null,null,null,null,null,null,null,"SIMIJACA-CUNDINAMARCA"]
[null,null,null,null,null,null,null,null,null,null,null,null,null,null,null,null,null,"SIMITI-BOLIVAR"]
[null,null,null,null,null,null,null,null,null,null,null,null,null,null,null,null,null,"SINCE-SUCRE"]
[null,null,null,null,null,null,null,null,null,null,null,null,null,null,null,null,null,"SINCELEJO-SUCRE"]
[null,null,null,null,null,null,null,null,null,null,null,null,null,null,null,null,null,"SIPI-CHOCO"]
[null,null,null,null,null,null,null,null,null,null,null,null,null,null,null,null,null,"SITIONUEVO-MAGDALENA"]
[null,null,null,null,null,null,null,null,null,null,null,null,null,null,null,null,null,"SOACHA-CUNDINAMARCA"]
[null,null,null,null,null,null,null,null,null,null,null,null,null,null,null,null,null,"SOATA-BOYACA"]
[null,null,null,null,null,null,null,null,null,null,null,null,null,null,null,null,null,"SOCHA-BOYACA"]
[null,null,null,null,null,null,null,null,null,null,null,null,null,null,null,null,null,"SOCORRO-SANTANDER"]
[null,null,null,null,null,null,null,null,null,null,null,null,null,null,null,null,null,"SOCOTA-BOYACA"]
[null,null,null,null,null,null,null,null,null,null,null,null,null,null,null,null,null,"SOGAMOSO-BOYACA"]
[null,null,null,null,null,null,null,null,null,null,null,null,null,null,null,null,null,"SOLANO-CAQUETA"]
[null,null,null,null,null,null,null,null,null,null,null,null,null,null,null,null,null,"SOLEDAD-ATLANTICO"]
[null,null,null,null,null,null,null,null,null,null,null,null,null,null,null,null,null,"SOLITA-CAQUETA"]
[null,null,null,null,null,null,null,null,null,null,null,null,null,null,null,null,null,"SOMONDOCO-BOYACA"]
[null,null,null,null,null,null,null,null,null,null,null,null,null,null,null,null,null,"SONSON-ANTIOQUIA"]
[null,null,null,null,null,null,null,null,null,null,null,null,null,null,null,null,null,"SOPETRAN-ANTIOQUIA"]
[null,null,null,null,null,null,null,null,null,null,null,null,null,null,null,null,null,"SOPLAVIENTO-BOLIVAR"]
[null,null,null,null,null,null,null,null,null,null,null,null,null,null,null,null,null,"SOPO-CUNDINAMARCA"]
[null,null,null,null,null,null,null,null,null,null,null,null,null,null,null,null,null,"SORA-BOYACA"]
[null,null,null,null,null,null,null,null,null,null,null,null,null,null,null,null,null,"SORACA-BOYACA"]
[null,null,null,null,null,null,null,null,null,null,null,null,null,null,null,null,null,"SOTAQUIRA-BOYACA"]
[null,null,null,null,null,null,null,null,null,null,null,null,null,null,null,null,null,"SOTARA-CAUCA"]
[null,null,null,null,null,null,null,null,null,null,null,null,null,null,null,null,null,"SUAITA-SANTANDER"]
[null,null,null,null,null,null,null,null,null,null,null,null,null,null,null,null,null,"SUAN-ATLANTICO"]
[null,null,null,null,null,null,null,null,null,null,null,null,null,null,null,null,null,"SUAREZ-TOLIMA"]
[null,null,null,null,null,null,null,null,null,null,null,null,null,null,null,null,null,"SUAZA-HUILA"]
[null,null,null,null,null,null,null,null,null,null,null,null,null,null,null,null,null,"SUBA-BOGOTA D.C."]
[null,null,null,null,null,null,null,null,null,null,null,null,null,null,null,null,null,"SUBACHOQUE-CUNDINAMARCA"]
[null,null,null,null,null,null,null,null,null,null,null,null,null,null,null,null,null,"SUCRE-CAUCA"]
[null,null,null,null,null,null,null,null,null,null,null,null,null,null,null,null,null,"SUCRE-SANTANDER"]
[null,null,null,null,null,null,null,null,null,null,null,null,null,null,null,null,null,"SUCRE-SUCRE"]
[null,null,null,null,null,null,null,null,null,null,null,null,null,null,null,null,null,"SUESCA-CUNDINAMARCA"]
[null,null,null,null,null,null,null,null,null,null,null,null,null,null,null,null,null,"SUPATA-CUNDINAMARCA"]
[null,null,null,null,null,null,null,null,null,null,null,null,null,null,null,null,null,"SUPIA-CALDAS"]
[null,null,null,null,null,null,null,null,null,null,null,null,null,null,null,null,null,"SURATA-SANTANDER"]
[null,null,null,null,null,null,null,null,null,null,null,null,null,null,null,null,null,"SUSA-CUNDINAMARCA"]
[null,null,null,null,null,null,null,null,null,null,null,null,null,null,null,null,null,"SUSACON-BOYACA"]
[null,null,null,null,null,null,null,null,null,null,null,null,null,null,null,null,null,"SUTAMARCHAN-BOYACA"]
[null,null,null,null,null,null,null,null,null,null,null,null,null,null,null,null,null,"SUTATAUSA-CUNDINAMARCA"]
[null,null,null,null,null,null,null,null,null,null,null,null,null,null,null,null,null,"SUTATENZA-BOYACA"]
[null,null,null,null,null,null,null,null,null,null,null,null,null,null,null,null,null,"SUÁREZ-CAUCA"]
[null,null,null,null,null,null,null,null,null,null,null,null,null,null,null,null,null,"TABIO-CUNDINAMARCA"]
[null,null,null,null,null,null,null,null,null,null,null,null,null,null,null,null,null,"TADO-CHOCO"]
[null,null,null,null,null,null,null,null,null,null,null,null,null,null,null,null,null,"TALAIGUA-NUEVO-BOLIVAR"]
[null,null,null,null,null,null,null,null,null,null,null,null,null,null,null,null,null,"TAMALAMEQUE-CESAR"]
[null,null,null,null,null,null,null,null,null,null,null,null,null,null,null,null,null,"TAMARA-CASANARE"]
[null,null,null,null,null,null,null,null,null,null,null,null,null,null,null,null,null,"TAME-ARAUCA"]
[null,null,null,null,null,null,null,null,null,null,null,null,null,null,null,null,null,"TAMESIS-ANTIOQUIA"]
[null,null,null,null,null,null,null,null,null,null,null,null,null,null,null,null,null,"TAMINANGO-NARINO"]
[null,null,null,null,null,null,null,null,null,null,null,null,null,null,null,null,null,"TANGUA-NARINO"]
[null,null,null,null,null,null,null,null,null,null,null,null,null,null,null,null,null,"TARAIRA-VAUPES"]
[null,null,null,null,null,null,null,null,null,null,null,null,null,null,null,null,null,"TARAPACA-AMAZONAS"]
[null,null,null,null,null,null,null,null,null,null,null,null,null,null,null,null,null,"TARAZA-ANTIOQUIA"]
[null,null,null,null,null,null,null,null,null,null,null,null,null,null,null,null,null,"TARQUI-HUILA"]
[null,null,null,null,null,null,null,null,null,null,null,null,null,null,null,null,null,"TARSO-ANTIOQUIA"]
[null,null,null,null,null,null,null,null,null,null,null,null,null,null,null,null,null,"TASCO-BOYACA"]
[null,null,null,null,null,null,null,null,null,null,null,null,null,null,null,null,null,"TAURAMENA-CASANARE"]
[null,null,null,null,null,null,null,null,null,null,null,null,null,null,null,null,null,"TAUSA-CUNDINAMARCA"]
[null,null,null,null,null,null,null,null,null,null,null,null,null,null,null,null,null,"TELLO-HUILA"]
[null,null,null,null,null,null,null,null,null,null,null,null,null,null,null,null,null,"TENA-CUNDINAMARCA"]
[null,null,null,null,null,null,null,null,null,null,null,null,null,null,null,null,null,"TENERIFE-MAGDALENA"]
[null,null,null,null,null,null,null,null,null,null,null,null,null,null,null,null,null,"TENJO-CUNDINAMARCA"]
[null,null,null,null,null,null,null,null,null,null,null,null,null,null,null,null,null,"TENZA-BOYACA"]
[null,null,null,null,null,null,null,null,null,null,null,null,null,null,null,null,null,"TEORAMA-NORTE DE SANTANDER"]
[null,null,null,null,null,null,null,null,null,null,null,null,null,null,null,null,null,"TERUEL-HUILA"]
[null,null,null,null,null,null,null,null,null,null,null,null,null,null,null,null,null,"TESALIA-HUILA"]
[null,null,null,null,null,null,null,null,null,null,null,null,null,null,null,null,null,"TIBACUY-CUNDINAMARCA"]
[null,null,null,null,null,null,null,null,null,null,null,null,null,null,null,null,null,"TIBANA-BOYACA"]
[null,null,null,null,null,null,null,null,null,null,null,null,null,null,null,null,null,"TIBASOSA-BOYACA"]
[null,null,null,null,null,null,null,null,null,null,null,null,null,null,null,null,null,"TIBIRITA-CUNDINAMARCA"]
[null,null,null,null,null,null,null,null,null,null,null,null,null,null,null,null,null,"TIBU-NORTE DE SANTANDER"]
[null,null,null,null,null,null,null,null,null,null,null,null,null,null,null,null,null,"TIERRALTA-CORDOBA"]
[null,null,null,null,null,null,null,null,null,null,null,null,null,null,null,null,null,"TIMANA-HUILA"]
[null,null,null,null,null,null,null,null,null,null,null,null,null,null,null,null,null,"TIMBIO-CAUCA"]
[null,null,null,null,null,null,null,null,null,null,null,null,null,null,null,null,null,"TIMBIQUI-CAUCA"]
[null,null,null,null,null,null,null,null,null,null,null,null,null,null,null,null,null,"TINJACA-BOYACA"]
[null,null,null,null,null,null,null,null,null,null,null,null,null,null,null,null,null,"TIPACOQUE-BOYACA"]
[null,null,null,null,null,null,null,null,null,null,null,null,null,null,null,null,null,"TIQUISIO-BOLIVAR"]
[null,null,null,null,null,null,null,null,null,null,null,null,null,null,null,null,null,"TITIRIBI-ANTIOQUIA"]
[null,null,null,null,null,null,null,null,null,null,null,null,null,null,null,null,null,"TOCA-BOYACA"]
[null,null,null,null,null,null,null,null,null,null,null,null,null,null,null,null,null,"TOCAIMA-CUNDINAMARCA"]
[null,null,null,null,null,null,null,null,null,null,null,null,null,null,null,null,null,"TOCANCIPA-CUNDINAMARCA"]
[null,null,null,null,null,null,null,null,null,null,null,null,null,null,null,null,null,"TOGUI-BOYACA"]
[null,null,null,null,null,null,null,null,null,null,null,null,null,null,null,null,null,"TOLEDO-ANTIOQUIA"]
[null,null,null,null,null,null,null,null,null,null,null,null,null,null,null,null,null,"TOLEDO-NORTE DE SANTANDER"]
[null,null,null,null,null,null,null,null,null,null,null,null,null,null,null,null,null,"TOLU-SUCRE"]
[null,null,null,null,null,null,null,null,null,null,null,null,null,null,null,null,null,"TOLUVIEJO-SUCRE"]
[null,null,null,null,null,null,null,null,null,null,null,null,null,null,null,null,null,"TONA-SANTANDER"]
[null,null,null,null,null,null,null,null,null,null,null,null,null,null,null,null,null,"TOPAGA-BOYACA"]
[null,null,null,null,null,null,null,null,null,null,null,null,null,null,null,null,null,"TOPAIPI-CUNDINAMARCA"]
[null,null,null,null,null,null,null,null,null,null,null,null,null,null,null,null,null,"TORIBIO-CAUCA"]
[null,null,null,null,null,null,null,null,null,null,null,null,null,null,null,null,null,"TORO-VALLE"]
[null,null,null,null,null,null,null,null,null,null,null,null,null,null,null,null,null,"TOTA-BOYACA"]
[null,null,null,null,null,null,null,null,null,null,null,null,null,null,null,null,null,"TOTORO-CAUCA"]
[null,null,null,null,null,null,null,null,null,null,null,null,null,null,null,null,null,"TRINIDAD-CASANARE"]
[null,null,null,null,null,null,null,null,null,null,null,null,null,null,null,null,null,"TRUJILLO-VALLE"]
[null,null,null,null,null,null,null,null,null,null,null,null,null,null,null,null,null,"TUBARA-ATLANTICO"]
[null,null,null,null,null,null,null,null,null,null,null,null,null,null,null,null,null,"TUCHIN-CORDOBA"]
[null,null,null,null,null,null,null,null,null,null,null,null,null,null,null,null,null,"TULUA-VALLE"]
[null,null,null,null,null,null,null,null,null,null,null,null,null,null,null,null,null,"TUMACO-NARINO"]
[null,null,null,null,null,null,null,null,null,null,null,null,null,null,null,null,null,"TUNJA-BOYACA"]
[null,null,null,null,null,null,null,null,null,null,null,null,null,null,null,null,null,"TUNUNGUA-BOYACA"]
[null,null,null,null,null,null,null,null,null,null,null,null,null,null,null,null,null,"TUQUERRES-NARINO"]
[null,null,null,null,null,null,null,null,null,null,null,null,null,null,null,null,null,"TURBACO-BOLIVAR"]
[null,null,null,null,null,null,null,null,null,null,null,null,null,null,null,null,null,"TURBANA-BOLIVAR"]
[null,null,null,null,null,null,null,null,null,null,null,null,null,null,null,null,null,"TURBO-ANTIOQUIA"]
[null,null,null,null,null,null,null,null,null,null,null,null,null,null,null,null,null,"TURMEQUE-BOYACA"]
[null,null,null,null,null,null,null,null,null,null,null,null,null,null,null,null,null,"TUTA-BOYACA"]
[null,null,null,null,null,null,null,null,null,null,null,null,null,null,null,null,null,"TUTASA-BOYACA"]
[null,null,null,null,null,null,null,null,null,null,null,null,null,null,null,null,null,"UBALA-CUNDINAMARCA"]
[null,null,null,null,null,null,null,null,null,null,null,null,null,null,null,null,null,"UBAQUE-CUNDINAMARCA"]
[null,null,null,null,null,null,null,null,null,null,null,null,null,null,null,null,null,"UBATE-CUNDINAMARCA"]
[null,null,null,null,null,null,null,null,null,null,null,null,null,null,null,null,null,"ULLOA-VALLE"]
[null,null,null,null,null,null,null,null,null,null,null,null,null,null,null,null,null,"UMBITA-BOYACA"]
[null,null,null,null,null,null,null,null,null,null,null,null,null,null,null,null,null,"UNE-CUNDINAMARCA"]
[null,null,null,null,null,null,null,null,null,null,null,null,null,null,null,null,null,"UNGUIA-CHOCO"]
[null,null,null,null,null,null,null,null,null,null,null,null,null,null,null,null,null,"UNIÓN-PANAMERICANA-CHOCO"]
[null,null,null,null,null,null,null,null,null,null,null,null,null,null,null,null,null,"URAMITA-ANTIOQUIA"]
[null,null,null,null,null,null,null,null,null,null,null,null,null,null,null,null,null,"URIBE-META"]
[null,null,null,null,null,null,null,null,null,null,null,null,null,null,null,null,null,"URIBIA-LA GUAJIRA"]
[null,null,null,null,null,null,null,null,null,null,null,null,null,null,null,null,null,"URRAO-ANTIOQUIA"]
[null,null,null,null,null,null,null,null,null,null,null,null,null,null,null,null,null,"URUMITA-LA GUAJIRA"]
[null,null,null,null,null,null,null,null,null,null,null,null,null,null,null,null,null,"USAQUEN-BOGOTA D.C."]
[null,null,null,null,null,null,null,null,null,null,null,null,null,null,null,null,null,"USIACURI-ATLANTICO"]
[null,null,null,null,null,null,null,null,null,null,null,null,null,null,null,null,null,"USME-BOGOTA D.C."]
[null,null,null,null,null,null,null,null,null,null,null,null,null,null,null,null,null,"UTICA-CUNDINAMARCA"]
[null,null,null,null,null,null,null,null,null,null,null,null,null,null,null,null,null,"VALDIVIA-ANTIOQUIA"]
[null,null,null,null,null,null,null,null,null,null,null,null,null,null,null,null,null,"VALENCIA-CORDOBA"]
[null,null,null,null,null,null,null,null,null,null,null,null,null,null,null,null,null,"VALLE-GUAMUEZ-PUTUMAYO"]
[null,null,null,null,null,null,null,null,null,null,null,null,null,null,null,null,null,"VALLE-SAN-JOSE-SANTANDER"]
[null,null,null,null,null,null,null,null,null,null,null,null,null,null,null,null,null,"VALLE-SAN-JUAN-TOLIMA"]
[null,null,null,null,null,null,null,null,null,null,null,null,null,null,null,null,null,"VALLEDUPAR-CESAR"]
[null,null,null,null,null,null,null,null,null,null,null,null,null,null,null,null,null,"VALPARAISO-ANTIOQUIA"]
[null,null,null,null,null,null,null,null,null,null,null,null,null,null,null,null,null,"VALPARAISO-CAQUETA"]
[null,null,null,null,null,null,null,null,null,null,null,null,null,null,null,null,null,"VEGACHI-ANTIOQUIA"]
[null,null,null,null,null,null,null,null,null,null,null,null,null,null,null,null,null,"VELEZ-SANTANDER"]
[null,null,null,null,null,null,null,null,null,null,null,null,null,null,null,null,null,"VENADILLO-TOLIMA"]
[null,null,null,null,null,null,null,null,null,null,null,null,null,null,null,null,null,"VENECIA-ANTIOQUIA"]
[null,null,null,null,null,null,null,null,null,null,null,null,null,null,null,null,null,"VENECIA-OSPINA-PEREZ-CUNDINAMARCA"]
[null,null,null,null,null,null,null,null,null,null,null,null,null,null,null,null,null,"VENTAQUEMADA-BOYACA"]
[null,null,null,null,null,null,null,null,null,null,null,null,null,null,null,null,null,"VERGARA-CUNDINAMARCA"]
[null,null,null,null,null,null,null,null,null,null,null,null,null,null,null,null,null,"VERSALLES-VALLE"]
[null,null,null,null,null,null,null,null,null,null,null,null,null,null,null,null,null,"VETAS-SANTANDER"]
[null,null,null,null,null,null,null,null,null,null,null,null,null,null,null,null,null,"VIANI-CUNDINAMARCA"]
[null,null,null,null,null,null,null,null,null,null,null,null,null,null,null,null,null,"VICTORIA-CALDAS"]
[null,null,null,null,null,null,null,null,null,null,null,null,null,null,null,null,null,"VIGIA-DEL-FUERTE-ANTIOQUIA"]
[null,null,null,null,null,null,null,null,null,null,null,null,null,null,null,null,null,"VIJES-VALLE"]
[null,null,null,null,null,null,null,null,null,null,null,null,null,null,null,null,null,"VILLA-CARO-NORTE DE SANTANDER"]
[null,null,null,null,null,null,null,null,null,null,null,null,null,null,null,null,null,"VILLA-DE-LEYVA-BOYACA"]
[null,null,null,null,null,null,null,null,null,null,null,null,null,null,null,null,null,"VILLA-RICA-CAUCA"]
[null,null,null,null,null,null,null,null,null,null,null,null,null,null,null,null,null,"VILLA-ROSARIO-NORTE DE SANTANDER"]
[null,null,null,null,null,null,null,null,null,null,null,null,null,null,null,null,null,"VILLAGARZON-PUTUMAYO"]
[null,null,null,null,null,null,null,null,null,null,null,null,null,null,null,null,null,"VILLAGOMEZ-CUNDINAMARCA"]
[null,null,null,null,null,null,null,null,null,null,null,null,null,null,null,null,null,"VILLAHERMOSA-TOLIMA"]
[null,null,null,null,null,null,null,null,null,null,null,null,null,null,null,null,null,"VILLAMARIA-CALDAS"]
[null,null,null,null,null,null,null,null,null,null,null,null,null,null,null,null,null,"VILLANUEVA-BOLIVAR"]
[null,null,null,null,null,null,null,null,null,null,null,null,null,null,null,null,null,"VILLANUEVA-CASANARE"]
[null,null,null,null,null,null,null,null,null,null,null,null,null,null,null,null,null,"VILLANUEVA-LA GUAJIRA"]
[null,null,null,null,null,null,null,null,null,null,null,null,null,null,null,null,null,"VILLANUEVA-SANTANDER"]
[null,null,null,null,null,null,null,null,null,null,null,null,null,null,null,null,null,"VILLAPINZON-CUNDINAMARCA"]
[null,null,null,null,null,null,null,null,null,null,null,null,null,null,null,null,null,"VILLARRICA-TOLIMA"]
[null,null,null,null,null,null,null,null,null,null,null,null,null,null,null,null,null,"VILLAVICENCIO-META"]
[null,null,null,null,null,null,null,null,null,null,null,null,null,null,null,null,null,"VILLAVIEJA-HUILA"]
[null,null,null,null,null,null,null,null,null,null,null,null,null,null,null,null,null,"VILLETA-CUNDINAMARCA"]
[null,null,null,null,null,null,null,null,null,null,null,null,null,null,null,null,null,"VIOTA-CUNDINAMARCA"]
[null,null,null,null,null,null,null,null,null,null,null,null,null,null,null,null,null,"VIRACACHA-BOYACA"]
[null,null,null,null,null,null,null,null,null,null,null,null,null,null,null,null,null,"VISTA-HERMOSA-META"]
[null,null,null,null,null,null,null,null,null,null,null,null,null,null,null,null,null,"VITERBO-CALDAS"]
[null,null,null,null,null,null,null,null,null,null,null,null,null,null,null,null,null,"YACOPI-CUNDINAMARCA"]
[null,null,null,null,null,null,null,null,null,null,null,null,null,null,null,null,null,"YACUANQUER-NARINO"]
[null,null,null,null,null,null,null,null,null,null,null,null,null,null,null,null,null,"YAGUARA-HUILA"]
[null,null,null,null,null,null,null,null,null,null,null,null,null,null,null,null,null,"YALI-ANTIOQUIA"]
[null,null,null,null,null,null,null,null,null,null,null,null,null,null,null,null,null,"YARUMAL-ANTIOQUIA"]
[null,null,null,null,null,null,null,null,null,null,null,null,null,null,null,null,null,"YAVARATE-VAUPES"]
[null,null,null,null,null,null,null,null,null,null,null,null,null,null,null,null,null,"YOLOMBO-ANTIOQUIA"]
[null,null,null,null,null,null,null,null,null,null,null,null,null,null,null,null,null,"YONDO-ANTIOQUIA"]
[null,null,null,null,null,null,null,null,null,null,null,null,null,null,null,null,null,"YOPAL-CASANARE"]
[null,null,null,null,null,null,null,null,null,null,null,null,null,null,null,null,null,"YOTOCO-VALLE"]
[null,null,null,null,null,null,null,null,null,null,null,null,null,null,null,null,null,"YUMBO-VALLE"]
[null,null,null,null,null,null,null,null,null,null,null,null,null,null,null,null,null,"ZAMBRANO-BOLIVAR"]
[null,null,null,null,null,null,null,null,null,null,null,null,null,null,null,null,null,"ZAPATOCA-SANTANDER"]
[null,null,null,null,null,null,null,null,null,null,null,null,null,null,null,null,null,"ZAPAYÁN-MAGDALENA"]
[null,null,null,null,null,null,null,null,null,null,null,null,null,null,null,null,null,"ZARAGOZA-ANTIOQUIA"]
[null,null,null,null,null,null,null,null,null,null,null,null,null,null,null,null,null,"ZARZAL-VALLE"]
[null,null,null,null,null,null,null,null,null,null,null,null,null,null,null,null,null,"ZETAQUIRA-BOYACA"]
[null,null,null,null,null,null,null,null,null,null,null,null,null,null,null,null,null,"ZIPACON-CUNDINAMARCA"]
[null,null,null,null,null,null,null,null,null,null,null,null,null,null,null,null,null,"ZIPAQUIRA-CUNDINAMARCA"]
[null,null,null,null,null,null,null,null,null,null,null,null,null,null,null,null,null,"ZONA-BANANERA-MAGDALENA"]

{"sheet":"Periodos","index":3,"n_rows":11,"n_cols":5,"rows_kept":11,"cut":false,"hidden":true,"merged":[]}
[]
[null,"Time map","Periodo 1","Periodo 2","Periodo 3"]
[null,"Fecha inicio periodo:","2017-01-01","2016-01-01","2015-01-01"]
[null,"Fecha final periodo:","2017-12-31","2016-12-31","2015-12-31"]
[]
[]
[null,"Validaciones"]
[null,"CARÁTULA",{"$f":"'110000 - Carátula'!I9","v":26}]
[null,"ADMINISTRADORES",{"$f":"+'110010 - Administradores'!N9","v":2}]
[null,"ESTADO DE SITUACIÓN FINANCIERA",{"$f":"'210000 - Est. Situa. Financiera'!J10","v":2}]
[null,"ESTADO DE RESULTADOS",{"$f":"'310000 - Est. Resultados'!K10","v":8}]

{"sheet":"Resumen de Validaciones","index":4,"n_rows":26,"n_cols":8,"rows_kept":26,"cut":false,"hidden":false,"merged":[[25,1,25,5],[1,1,1,2],[2,1,2,2],[3,1,3,2],[5,2,7,5],[9,2,10,3],[9,4,10,5]]}
[]
[]
[]
[]
[]
[null,null,"Resumen de validaciones"]
[]
[]
[null,{"$f":"MID(A9,27,2)","v":""}]
[null,{"$f":"MID(A10,34,2)","v":""},"Formulario",null,"Estado de validaciones por formulario"]
[null,{"$f":"MID(A11,48,2)","v":""}]
[null,null,110000,"Carátula",{"$f":"IF('110000 - Carátula'!I9=0,\"El formulario NO tiene validaciones pendientes\",\"El Formulario tiene validaciones pendientes\")","v":"El Formulario tiene validaciones pendientes"},{"$f":"'110000 - Carátula'!G9","v":"Formulario 'Carátula' con 26 Celdas por diligenciar"},{"$f":"MID(F12,27,2)","v":"26"},{"$f":"IF(F12=\"Formulario 'Carátula' Completo\",0,ABS(G12))","v":26}]
[null,null,110010,"Administradores",{"$f":"IF('110010 - Administradores'!N9=0,\"El formulario NO tiene validaciones pendientes\",\"El Formulario tiene validaciones pendientes\")","v":"El Formulario tiene validaciones pendientes"},{"$f":"'110010 - Administradores'!L9","v":"Formulario 'Administradores' con 2 filas por diligenciar"},{"$f":"MID(F13,34,2)","v":"2 "},{"$f":"IF(F13=\"Formulario 'Administradores' Completo\",0,ABS(G13))","v":2}]
[null,null,210000,"Estado de situación financiera",{"$f":"IF('210000 - Est. Situa. Financiera'!J10=0,\"El formulario NO tiene validaciones pendientes\",\"El Formulario tiene validaciones pendientes\")","v":"El Formulario tiene validaciones pendientes"},{"$f":"'210000 - Est. Situa. Financiera'!H10","v":"Formulario 'Estado de Situación Financiera' con 2 inconsistencias"},{"$f":"MID(F14,48,2)","v":" 2"},{"$f":"IF(F14=\"Formulario 'Estado de Situación Financiera' Válido\",0,ABS(G14))","v":2}]
[null,null,310000,"Estado de Resultados",{"$f":"IF('310000 - Est. Resultados'!K10=0,\"El formulario NO tiene validaciones pendientes\",\"El Formulario tiene validaciones pendientes\")","v":"El Formulario tiene validaciones pendientes"},{"$f":"'310000 - Est. Resultados'!H10","v":"Formulario 'Estado de Resultados' con 8 inconsistencias"},{"$f":"MID(F15,39,2)","v":"8 "},{"$f":"IF(F15=\"Formulario 'Estado de Resultados' Válido\",0,ABS(G15))","v":8}]
[null,null,410000,"Estado de Resultados - Otro Resultado Integral",{"$f":"IF('410000 - Est. Resultados ORI'!K10=0,\"El formulario NO tiene validaciones pendientes\",\"El Formulario tiene validaciones pendientes\")","v":"El formulario NO tiene validaciones pendientes"},{"$f":"'410000 - Est. Resultados ORI'!H10","v":"Formulario 'Estado de Resultados - ORI' Válido"},{"$f":"MID(F16,45,2)","v":"do"},{"$f":"IF(F16=\"Formulario 'Estado de Resultados - ORI' Válido\",0,ABS(G16))","v":0}]
[null,null,520000,"Estado de Flujos de Efectivo",{"$f":"IF('520000 - Est. Flujos de Efec.'!L10=0,\"El formulario NO tiene validaciones pendientes\",\"El Formulario tiene validaciones pendientes\")","v":"El formulario NO tiene validaciones pendientes"},{"$f":"'520000 - Est. Flujos de Efec.'!H10","v":"Formulario 'Estado de Flujos de Efectivo' Válido"},{"$f":"MID(F17,47,2)","v":"do"},{"$f":"IF(F17=\"Formulario 'Estado de Flujos de Efectivo' Válido\",0,ABS(G17))","v":0}]
[null,null,610000,"Estado de Cambios en el Patrimonio",{"$f":"IF('610000 - Est. Camb. Patrimonio'!AC10=0,\"El formulario NO tiene validaciones pendientes\",\"El Formulario tiene validaciones pendientes\")","v":"El Formulario tiene validaciones pendientes"},{"$f":"'610000 - Est. Camb. Patrimonio'!AA10","v":"Formulario 'Estado de Cambios en el Patrimonio' con 4 inconsistencias"},{"$f":"MID(F18,53,2)","v":"4 "},{"$f":"IF(F18=\"Formulario 'Estado de Cambios en el Patrimonio' Válido\",0,ABS(G18))","v":4}]
[null,null,800101,"Nota de Efectivo y equivalentes al efectivo",{"$f":"IF('800101 - Nota. Efect. y Equiv.'!M10=0,\"El formulario NO tiene validaciones pendientes\",\"El Formulario tiene validaciones pendientes\")","v":"El formulario NO tiene validaciones pendientes"},{"$f":"'800101 - Nota. Efect. y Equiv.'!I10","v":"Formulario 'Nota de Efectivo...' Válido"},{"$f":"MID(F19,37,2)","v":"id"},{"$f":"IF(F19=\"Formulario 'Nota de Efectivo...' Válido\",0,ABS(G19))","v":0}]
[null,null,800111,"Nota de Cuentas por cobrar",{"$f":"IF('800111 - Nota. Cuentas x cobrar'!T9=0,\"El formulario NO tiene validaciones pendientes\",\"El Formulario tiene validaciones pendientes\")","v":"El formulario NO tiene validaciones pendientes"},{"$f":"'800111 - Nota. Cuentas x cobrar'!P9","v":"Formulario 'Nota de Cuentas por cobrar' Válido"},{"$f":"MID(F20,44,2)","v":"id"},{"$f":"IF(F20=\"Formulario 'Nota de Cuentas por cobrar' Válido\",0,ABS(G20))","v":0}]
[null,null,"800111a","Nota de Detalle de Cuentas por cobrar",{"$f":"IF('800111a - Nota. Detalle de CxC.'!T9=0,\"El formulario NO tiene validaciones pendientes\",\"El Formulario tiene validaciones pendientes\")","v":"El formulario NO tiene validaciones pendientes"},{"$f":"'800111a - Nota. Detalle de CxC.'!R9","v":"Formulario 'Nota de Detalle de cuentas por cobrar' Válido"},{"$f":"MID(F21,55,2)","v":"id"},{"$f":"IF(F21=\"Formulario 'Nota de Detalle de cuentas por cobrar' Válido\",0,ABS(G21))","v":0}]
[null,null,822100,"Nota de Propiedades, planta y equipo",{"$f":"IF('310000 - Est. Resultados'!K11=0,\"El formulario NO tiene validaciones pendientes\",\"El Formulario tiene validaciones pendientes\")","v":"El formulario NO tiene validaciones pendientes"},{"$f":"'822100 - Nota. Prop, plan y eq.'!AD9","v":"Formulario 'Nota de Propiedades, planta y equipo' Válido"},{"$f":"MID(F22,70,2)","v":""},0]
[null,null,823180,"Nota de Activos intangibles",{"$f":"IF('310000 - Est. Resultados'!K11=0,\"El formulario NO tiene validaciones pendientes\",\"El Formulario tiene validaciones pendientes\")","v":"El formulario NO tiene validaciones pendientes"},"Formulario 'Activos Intangibles' Válido",{"$f":"MID(F23,70,2)","v":""},0]
[null,null,828000,"Nota de cuentas por pagar",{"$f":"IF('828000 - Nota. Cuentas x pagar'!U9=0,\"El formulario NO tiene validaciones pendientes\",\"El Formulario tiene validaciones pendientes\")","v":"El formulario NO tiene validaciones pendientes"},{"$f":"'828000 - Nota. Cuentas x pagar'!R9","v":"Formulario 'Nota de Cuentas por pagar' Válido"},{"$f":"MID(F24,43,2)","v":"id"},{"$f":"IF(F24=\"Formulario 'Nota de Cuentas por pagar' Válido\",0,ABS(G24))","v":0}]
[]
[null,{"$f":"IF(G26=0,\"El archivo NO tiene validaciones pendientes\",\"El archivo tiene validaciones pendientes:\")","v":"El archivo tiene validaciones pendientes:"},null,null,null,null,{"$f":"H26","v":42},{"$f":"IFERROR(SUM(H12:H24),Check)","v":42}]

{"sheet":"110000 - Carátula","index":5,"n_rows":46,"n_cols":13,"rows_kept":46,"cut":false,"hidden":false,"merged":[[3,3,5,4]]}
[]
[]
[]
[null,null,null,"110000 - CARÁTULA"]
[]
[]
[]
[null,null,null,null,1]
[null,"Periodo",null,null,"INFORMACIÓN A REVELAR 2017-21-31",null,{"$f":"IF(I9=0,\"Formulario 'Carátula' Completo\",\"Formulario 'Carátula' con \"&I9&\" Celdas por diligenciar\")","v":"Formulario 'Carátula' con 26 Celdas por diligenciar"},null,{"$f":"SUM(I11:I46)","v":26}]
[null,1,"co-svsp-core_2017-12-31:DatosBasicos","Datos Básicos"]
[null,1,"co-svsp-core_2017-12-31:NIT","NIT",null,null,{"$f":"IF(E11<>\"\",\"CORRECTO\",\"Debe registrar información para '\"&D11&\"'\")","v":"Debe registrar información para 'NIT'"},null,{"$f":"IF(G11=\"CORRECTO\",0,1)","v":1}]
[null,1,"co-svsp-core_2017-12-31:DV","DV",null,null,{"$f":"IF(E12<>\"\",\"CORRECTO\",\"Debe registrar información para '\"&D12&\"'\")","v":"Debe registrar información para 'DV'"},null,{"$f":"IF(G12=\"CORRECTO\",0,1)","v":1}]
[null,1,"co-svsp-core_2017-12-31:FechadeCorte","Fecha de Corte","2017-12-31",null,{"$f":"IF(E13<>\"\",\"CORRECTO\",\"Debe registrar información para '\"&D13&\"'\")","v":"CORRECTO"},null,0]
[null,1,"co-svsp-core_2017-12-31:SereunioelmaximoOrganoSocialparaconsiderarlosEstadosFinancieros","Se reunió el máximo Órgano Social para considerar los Estados Financieros",null,null,"Debe registrar información para 'Se reunió el máximo Órgano Social para considerar los Estados Financieros'",null,1,null,{"$f":"IF(OR(E14=\"\",E14=\"NO\"),0,1)","v":0}]
[null,1,"co-svsp-core_2017-12-31:ActaNumero","Acta Número","fsad",null,{"$f":"IF(M15=\"CORRECTO\",\"CORRECTO\",\"Debe registrar información para '\"&D15&\"' cuando responde afirmativamente a '\"&D14&\"'. '\"&D15&\"' debe estar vacio cuando responde negativamente a '\"&D14&\"'\")","v":"Debe registrar información para 'Acta Número' cuando responde afirmativamente a 'Se reunió el máximo Órgano Social para considerar los Estados Financieros'. 'Acta Número' debe estar vacio cuando responde negativamente a 'Se reunió el máximo Órgano Social para considerar los Estados Financieros'"},null,1,null,{"$f":"IF(OR(E15=\"\",E15=\"NO\"),0,1)","v":1},{"$f":"IF(E15=\"\",0,1)","v":1},{"$f":"IF(AND(K14=0,L15=0),\"CORRECTO\",IF(AND(K14<>0,L15<>0),\"CORRECTO\",\"INCORRECTO\"))","v":"INCORRECTO"}]
[null,1,"co-svsp-core_2017-12-31:FechadelActa","Fecha del Acta",null,null,"CORRECTO",null,0,null,null,{"$f":"IF(E16=\"\",0,1)","v":0},{"$f":"IF(AND(K14=0,L16=0),\"CORRECTO\",IF(AND(K14<>0,L16<>0),\"CORRECTO\",\"INCORRECTO\"))","v":"CORRECTO"}]
[null,1,"co-svsp-core_2017-12-31:FueronaprobadosenAsambleaGeneraldeAccionistasolaJuntadeSocios","Fueron aprobados en Asamblea General de Accionistas o la Junta de Socios","NO",null,"Debe registrar información para 'Fueron aprobados en Asamblea General de Accionistas o la Junta de Socios' cuando responde afirmativamente a 'Fecha del Acta'. 'Fueron aprobados en Asamblea General de Accionistas o la Junta de Socios' debe estar vacio cuando responde negativamente a 'Fecha del Acta'",null,1,null,null,{"$f":"IF(E17=\"\",0,1)","v":1},{"$f":"IF(AND(K14=0,L17=0),\"CORRECTO\",IF(AND(K14<>0,L17<>0),\"CORRECTO\",\"INCORRECTO\"))","v":"INCORRECTO"}]
[null,1,"co-svsp-core_2017-12-31:InformacionGeneral","Información General"]
[null,1,"co-svsp-core_2017-12-31:RazonSocial","Razón Social",null,null,{"$f":"IF(E19<>\"\",\"CORRECTO\",\"Debe registrar información para '\"&D19&\"'\")","v":"Debe registrar información para 'Razón Social'"},null,{"$f":"IF(G19=\"CORRECTO\",0,1)","v":1}]
[null,1,"co-svsp-core_2017-12-31:ObjetoSocialPrincipal","Objeto Social Principal",null,null,"Debe registrar información para 'Objeto Social Principal'",null,1]
[null,1,"co-svsp-core_2017-12-31:ClasificacionIndustrialInternacionalUniformeVersion4AC","Clasificación Industrial Internacional Uniforme Versión 4 A.C",null,null,"Debe registrar información para 'Clasificación Industrial Internacional Uniforme Versión 4 A.C'",null,1]
[null,1,"co-svsp-core_2017-12-31:GrupodePreparadoresdeInformacionFinanciera","Grupo de Preparadores de Información Financiera",null,null,"Debe registrar información para 'Grupo de Preparadores de Información Financiera'",null,1]
[null,1,"co-svsp-core_2017-12-31:NaturalezadelaEmpresa","Naturaleza de la Empresa",null,null,"Debe registrar información para 'Naturaleza de la Empresa'",null,1]
[null,1,"co-svsp-core_2017-12-31:TipoSocietario","Tipo Societario",null,null,"Debe registrar información para 'Tipo Societario'",null,1]
[null,1,"co-svsp-core_2017-12-31:EstadoDeLaEmpresa","Estado de la Empresa",null,null,"Debe registrar información para 'Estado de la Empresa'",null,1]
[null,1,"co-svsp-core_2017-12-31:DirecciondeNotificacionJudicial","Dirección de Notificación Judicial",null,null,"Debe registrar información para 'Dirección de Notificación Judicial'",null,1]
[null,1,"co-svsp-core_2017-12-31:DepartamentodeNotificacionJudicial","Departamento de Notificación Judicial",null,null,"Debe registrar información para 'Departamento de Notificación Judicial'",null,1]
[null,1,"co-svsp-core_2017-12-31:CiudaddeNotificacionJudicial","Ciudad de Notificación Judicial",null,null,"Debe registrar información para 'Ciudad de Notificación Judicial'",null,1]
[null,1,"co-svsp-core_2017-12-31:EmailEmpresarialdeNotificacionJudicial","E-mail Empresarial de Notificación Judicial",null,null,{"$f":"IF(AND(H29=FALSE,E29<>\"\"),\"CORRECTO\",\"Debe registrar información para '\"&D29&\"'\")","v":"Debe registrar información para 'E-mail Empresarial de Notificación Judicial'"},{"$f":"ISERROR(AND(SEARCH(\"@\",E29),SEARCH(\".\",E29)))","v":true},1]
[null,1,"co-svsp-core_2017-12-31:Celular","Celular",null,null,"Debe registrar información para 'Celular'",null,1]
[null,1,"co-svsp-core_2017-12-31:TelefonoFijo","Teléfono Fijo",null,null,"Debe registrar información para 'Teléfono Fijo'",null,1]
[null,1,"co-svsp-core_2017-12-31:InformacionAnteSupervigilancia","Información ante Supervigilancia"]
[null,1,"co-svsp-core_2017-12-31:EstadoDeLicenciaDeFuncionamiento","Estado de Licencia de Funcionamiento",null,null,{"$f":"IF(E33<>\"\",\"CORRECTO\",\"Debe registrar información para '\"&D33&\"'\")","v":"Debe registrar información para 'Estado de Licencia de Funcionamiento'"},null,{"$f":"IF(G33=\"CORRECTO\",0,1)","v":1}]
[null,1,"co-svsp-core_2017-12-31:TipoDeServicio","Tipo de Servicio",null,null,"Debe registrar información para 'Tipo de Servicio'",null,1]
[null,1,"co-svsp-core_2017-12-31:InformacionSobreLaRevisoriaFiscal","Información sobre la Revisoría Fiscal"]
[null,1,"co-svsp-core_2017-12-31:LaCompaniaEstaObligadaARevisorFiscal","¿La compañía esta obligada a tener revisor fiscal?",null,null,{"$f":"IF(E36<>\"\",\"CORRECTO\",\"Debe registrar información para '\"&D36&\"'\")","v":"Debe registrar información para '¿La compañía esta obligada a tener revisor fiscal?'"},null,{"$f":"IF(G36=\"CORRECTO\",0,1)","v":1},null,{"$f":"IF(OR(E36=\"\",E36=\"NO\"),0,1)","v":0}]
[null,1,"co-svsp-core_2017-12-31:RevisorFiscalPerteneceAFirma","¿El revisor fiscal pertenece a una firma?",null,null,{"$f":"IF(M37=\"CORRECTO\",\"CORRECTO\",\"Debe registrar información para '\"&D37&\"' cuando responde afirmativamente a '\"&D36&\"'. '\"&D37&\"' debe estar vacio cuando responde negativamente a '\"&D36&\"'\")","v":"CORRECTO"},null,0,null,{"$f":"IF(OR(E37=\"\",E37=\"NO\"),0,1)","v":0},{"$f":"IF(E37=\"\",0,1)","v":0},{"$f":"IF(AND(K36=0,L37=0),\"CORRECTO\",IF(AND(K36<>0,L37<>0),\"CORRECTO\",\"INCORRECTO\"))","v":"CORRECTO"}]
[null,1,"co-svsp-core_2017-12-31:RazonSocialRevisorFiscalPersonaJurídica","¿A que firma pertenece el revisor fiscal?",null,null,{"$f":"IF(M38=\"CORRECTO\",\"CORRECTO\",\"Debe registrar información para '\"&D38&\"' cuando responde afirmativamente a '\"&D37&\"'. '\"&D38&\"' debe estar vacio cuando responde negativamente a '\"&D37&\"'\")","v":"CORRECTO"},null,0,null,null,{"$f":"IF(E38=\"\",0,1)","v":0},{"$f":"IF(AND(K37=0,L38=0),\"CORRECTO\",IF(AND(K37<>0,L38<>0),\"CORRECTO\",\"INCORRECTO\"))","v":"CORRECTO"}]
[null,1,"co-svsp-core_2017-12-31:DirecciondeDomicilioRevisorFiscalPersonaJurídica","Dirección de Domicilio de la firma a la cual pertenece el revisor fiscal",null,null,{"$f":"IF(M39=\"CORRECTO\",\"CORRECTO\",\"Debe registrar información para '\"&D39&\"' cuando responde afirmativamente a '\"&D37&\"'. '\"&D39&\"' debe estar vacio cuando responde negativamente a '\"&D37&\"'\")","v":"CORRECTO"},null,0,null,null,{"$f":"IF(E39=\"\",0,1)","v":0},{"$f":"IF(AND(K37=0,L39=0),\"CORRECTO\",IF(AND(K37<>0,L39<>0),\"CORRECTO\",\"INCORRECTO\"))","v":"CORRECTO"}]
[null,1,"co-svsp-core_2017-12-31:RegistroJCCRevisorFiscalPersonaJurídica","Registro en la Junta Central de Contadores del Revisor fiscal",null,null,{"$f":"IF(M40=\"CORRECTO\",\"CORRECTO\",\"Debe registrar información para '\"&D40&\"' cuando responde afirmativamente a '\"&D36&\"'. '\"&D40&\"' debe estar vacio cuando responde negativamente a '\"&D36&\"'\")","v":"CORRECTO"},null,0,null,null,{"$f":"IF(E40=\"\",0,1)","v":0},{"$f":"IF(AND(K36=0,L40=0),\"CORRECTO\",IF(AND(K36<>0,L40<>0),\"CORRECTO\",\"INCORRECTO\"))","v":"CORRECTO"}]
[null,1,"co-svsp-core_2017-12-31:InformacionSobreConsolidacionDeEstadosFinancieros","Información sobre consolidación de Estados Financieros"]
[null,1,"co-svsp-core_2017-12-31:LaCompaniaEsResponsableDeConsolidarInformacionParaEstePeriodo","¿La compañía es responsable de consolidar información para este periodo?",null,null,{"$f":"IF(E42<>\"\",\"CORRECTO\",\"Debe registrar información para '\"&D42&\"'\")","v":"Debe registrar información para '¿La compañía es responsable de consolidar información para este periodo?'"},null,1]
[null,1,"co-svsp-core_2017-12-31:LaCompaniaEsSubordinadaOAsociadaDeOtraCompania","¿La compañía es subordinada o asociada de otra compañía?",null,null,"Debe registrar información para '¿La compañía es subordinada o asociada de otra compañía?'",null,1]
[null,1,"co-svsp-core_2017-12-31:LaCompaniaTieneSubordinadas","¿La compañía tiene subordinadas?",null,null,"Debe registrar información para '¿La compañía tiene subordinadas?'",null,1]
[null,1,"co-svsp-core_2017-12-31:LaCompaniaTieneAsociadas","¿La compañía tiene asociadas?",null,null,"Debe registrar información para '¿La compañía tiene asociadas?'",null,1]
[null,1,"co-svsp-core_2017-12-31:LaCompaniaTieneNegociosConjuntos","¿La compañía tiene negocios conjuntos?",null,null,"Debe registrar información para '¿La compañía tiene negocios conjuntos?'",null,1]

{"sheet":"110010 - Administradores","index":6,"n_rows":13,"n_cols":14,"rows_kept":13,"cut":false,"hidden":false,"merged":[[3,3,5,9],[8,4,8,9]]}
[]
[]
[]
[null,null,null,"110010 - Información a revelar sobre administradores"]
[]
[]
[]
[]
[null,null,null,null,"Detalles de Administradores ",null,null,null,null,null,null,{"$f":"IF(N9=0,\"Formulario 'Administradores' Completo\",\"Formulario 'Administradores' con \"&N9&\" filas por diligenciar\")","v":"Formulario 'Administradores' con 2 filas por diligenciar"},null,{"$f":"SUM(N11:N13)","v":2}]
[null,null,null,"co-svsp-core_2017-12-31:AdministradoresEje","Tipo de documento","Numero de documento","Nombres","Apellidos","Email","Tarjeta profesional"]
[null,null,null,"Representante legal [miembro]",null,null,null,null,null,null,null,{"$f":"IF(AND(E11<>\"\",F11<>\"\",G11<>\"\",H11<>\"\",I11<>\"\",M11=FALSE),\"CORRECTO\",\"Registre de forma completa y adecuada la información de \"&D11&\"'\")","v":"Registre de forma completa y adecuada la información de Representante legal [miembro]'"},{"$f":"ISERROR(AND(SEARCH(\"@\",I11),SEARCH(\".\",I11)))","v":true},{"$f":"IF(L11=\"CORRECTO\",0,1)","v":1}]
[null,null,null,"Contador [miembro]",null,null,null,null,null,null,null,{"$f":"IF(AND(D12<>\"\",E12<>\"\",F12<>\"\",G12<>\"\",H12<>\"\",I12<>\"\",J12<>\"\",M12=FALSE),\"CORRECTO\",\"Registre de forma completa y adecuada la información de \"&D12&\"'\")","v":"Registre de forma completa y adecuada la información de Contador [miembro]'"},{"$f":"ISERROR(AND(SEARCH(\"@\",I12),SEARCH(\".\",I12)))","v":true},1]
[null,null,null,"Revisor fiscal [miembro]",null,null,null,null,null,null,null,{"$f":"IF(OR('110000 - Carátula'!E36=\"\",'110000 - Carátula'!E36=\"NO\"),\"CORRECTO\",IF(AND('110000 - Carátula'!E36=\"SI\",D13<>\"\",E13<>\"\",F13<>\"\",G13<>\"\",H13<>\"\",I13<>\"\",J13<>\"\",M13=FALSE),\"CORRECTO\",\"Se indíca en 'Carátula' la obligatoriedad de tener revisor fiscal, de forma completa y adecuada la información de \"&D13&\"'\"))","v":"CORRECTO"},{"$f":"ISERROR(AND(SEARCH(\"@\",I13),SEARCH(\".\",I13)))","v":true},0]

{"sheet":"110010 GeneraXBRL","index":7,"n_rows":16,"n_cols":7,"rows_kept":16,"cut":false,"hidden":true,"merged":[[3,3,5,9],[7,3,7,6]]}
[]
[]
[]
[null,null,null,"110010 - Información a revelar sobre administradores"]
[]
[]
[]
[]
[null,null,null,null,"co-svsp-core_2017-12-31:RepresentantePrincipalMiembro","co-svsp-core_2017-12-31:ContadorMiembro","co-svsp-core_2017-12-31:RevisorFiscalMiembro"]
[null,"Periodo",null,"co-svsp-core_2017-12-31:AdministradoresEje","Representante legal [miembro]","Contador [miembro]","Revisor fiscal [miembro]"]
[null,"1;1","co-svsp-core_2017-12-31:TipoDeDocumento","Tipo de documento",{"$f":"IF('110010 - Administradores'!E11=\"\",\"\",'110010 - Administradores'!E11)","v":""},{"$f":"IF('110010 - Administradores'!E12=\"\",\"\",'110010 - Administradores'!E12)","v":""},{"$f":"IF('110010 - Administradores'!E13=\"\",\"\",'110010 - Administradores'!E13)","v":""}]
[null,"1;1","co-svsp-core_2017-12-31:NumeroDeDocumento","Numero de documento",{"$f":"IF('110010 - Administradores'!F11=\"\",\"\",'110010 - Administradores'!F11)","v":""},{"$f":"IF('110010 - Administradores'!F12=\"\",\"\",'110010 - Administradores'!F12)","v":""},{"$f":"IF('110010 - Administradores'!F13=\"\",\"\",'110010 - Administradores'!F13)","v":""}]
[null,"1;1","co-svsp-core_2017-12-31:Nombres","Nombres",{"$f":"IF('110010 - Administradores'!G11=\"\",\"\",'110010 - Administradores'!G11)","v":""},{"$f":"IF('110010 - Administradores'!G12=\"\",\"\",'110010 - Administradores'!G12)","v":""},{"$f":"IF('110010 - Administradores'!G13=\"\",\"\",'110010 - Administradores'!G13)","v":""}]
[null,"1;1","co-svsp-core_2017-12-31:Apellidos","Apellidos",{"$f":"IF('110010 - Administradores'!H11=\"\",\"\",'110010 - Administradores'!H11)","v":""},{"$f":"IF('110010 - Administradores'!H12=\"\",\"\",'110010 - Administradores'!H12)","v":""},{"$f":"IF('110010 - Administradores'!H13=\"\",\"\",'110010 - Administradores'!H13)","v":""}]
[null,"1;1","co-svsp-core_2017-12-31:Email","Email",{"$f":"IF('110010 - Administradores'!I11=\"\",\"\",'110010 - Administradores'!I11)","v":""},{"$f":"IF('110010 - Administradores'!I12=\"\",\"\",'110010 - Administradores'!I12)","v":""},{"$f":"IF('110010 - Administradores'!I13=\"\",\"\",'110010 - Administradores'!I13)","v":""}]
[null,"1;1","co-svsp-core_2017-12-31:TarjetaProfesional","Tarjeta profesional",{"$f":"IF('110010 - Administradores'!J11=\"\",\"\",'110010 - Administradores'!J11)","v":""},{"$f":"IF('110010 - Administradores'!J12=\"\",\"\",'110010 - Administradores'!J12)","v":""},{"$f":"IF('110010 - Administradores'!J13=\"\",\"\",'110010 - Administradores'!J13)","v":""}]

{"sheet":"800101 - Nota. Efect. y Equiv.","index":8,"n_rows":22,"n_cols":14,"rows_kept":22,"cut":false,"hidden":false,"merged":[[4,2,4,5],[9,8,9,9]]}
[]
[]
[]
[]
[null,null,"800101 - Nota de Efectivo y equivalentes al efectivo"]
[]
[]
[]
[null,null,null,null,1,2,3]
[null,null,null,null,"2017-12-31","2016-12-31","2015-12-31",null,{"$f":"IF(M10=0,\"Formulario 'Nota de Efectivo...' Válido\",\"Formulario 'Nota de Efectivo...' con \"&M10&\" inconsistencias\")","v":"Formulario 'Nota de Efectivo...' Válido"},null,null,null,{"$f":"SUM(L15:M22)","v":0}]
[null,1,"ifrs-full:CashAndCashEquivalentsAbstract","Efectivo y equivalentes al efectivo [resumen]"]
[null,1,"ifrs-full:CashAbstract","Efectivo [resumen]"]
[null,1,"ifrs-full:CashOnHand","Efectivo en caja"]
[null,1,"ifrs-full:BalancesWithBanks","Saldos en bancos"]
[null,1,"ifrs-full:Cash","Total efectivo",{"$f":"E13+E14","v":0},{"$f":"F13+F14","v":0},null,null,{"$f":"IF(E15<>\"\",\"CORRECTO\",\"Debe registrar información para '\"&D15&\"' en la columna correspondiente al periodo actual.\")","v":"CORRECTO"},{"$f":"IF(F15<>\"\",\"CORRECTO\",\"Debe registrar información para '\"&D15&\"' en la columna correspondiente al periodo actual.\")","v":"CORRECTO"},null,{"$f":"IF(I15=\"CORRECTO\",0,1)","v":0},0]
[null,1,"ifrs-full:CashEquivalentsAbstract","Equivalentes al efectivo [resumen]"]
[null,1,"ifrs-full:ShorttermDepositsClassifiedAsCashEquivalents","Depósitos a corto plazo, clasificados como equivalentes al efectivo"]
[null,1,"ifrs-full:ShorttermInvestmentsClassifiedAsCashEquivalents","Inversiones a corto plazo, clasificados como equivalentes al efectivo"]
[null,1,"ifrs-full:BankingArrangementsClassifiedAsCashEquivalents","Otros acuerdos bancarios, clasificados como equivalentes al efectivo"]
[null,1,"ifrs-full:CashEquivalents","Total equivalentes al efectivo",{"$f":"E17+E18+E19","v":0},{"$f":"F17+F18+F19","v":0}]
[null,1,"ifrs-full:OtherCashAndCashEquivalents","Otro efectivo y equivalentes al efectivo"]
[null,1,"ifrs-full:CashAndCashEquivalents","Total de efectivo y equivalentes al efectivo",{"$f":"E13+E14+E17+E18+E19+E21","v":0},{"$f":"F13+F14+F17+F18+F19+F21","v":0},null,null,{"$f":"IF(E22<>\"\",\"CORRECTO\",\"Debe registrar información para '\"&D22&\"' en la columna correspondiente al periodo actual.\")","v":"CORRECTO"},{"$f":"IF(F22<>\"\",\"CORRECTO\",\"Debe registrar información para '\"&D22&\"'  en la columna correspondiente al periodo anterior.\")","v":"CORRECTO"},{"$f":"IF(G22<>\"\",\"CORRECTO\",\"Debe registrar información para '\"&D22&\"'  en la columna correspondiente al periodo 2015.\")","v":"Debe registrar información para 'Total de efectivo y equivalentes al efectivo'  en la columna correspondiente al periodo 2015."},{"$f":"IF(I22=\"CORRECTO\",0,1)","v":0},0,1]

{"sheet":"800111 - Nota. Cuentas x cobrar","index":9,"n_rows":51,"n_cols":28,"rows_kept":51,"cut":false,"hidden":false,"merged":[[32,4,32,7],[32,8,32,13],[3,3,5,12],[7,4,7,13],[8,4,8,7],[8,8,8,13],[31,4,31,13]]}
[]
[]
[]
[null,null,null,"800111 - Nota. Cuentas por cobrar (Para 2017 y 2016)"]
[]
[]
[]
[null,null,null,null,"2017-12-31"]
[null,null,null,null,"Nacional o del exterior [miembro]",null,null,null,"Bandas de tiempo acumuladas [miembro]",null,null,null,null,null,null,{"$f":"IF(T9=0,\"Formulario 'Nota de Cuentas por cobrar' Válido\",\"Formulario 'Nota de Cuentas por cobrar' con \"&T9&\" inconsistencias\")","v":"Formulario 'Nota de Cuentas por cobrar' Válido"},null,null,null,{"$f":"SUM(T14:T49)","v":0},{"$f":"SUM(T15:U22)","v":0}]
[null,null,null,null,"co-svsp-core_2017-12-31:Nacionales_corrientes_CxC_Miembro","co-svsp-core_2017-12-31:En_el_exterior_corrientes_CxC_Miembro","co-svsp-core_2017-12-31:Nacionales_no_corrientes_CxC_Miembro","co-svsp-core_2017-12-31:En_el_exterior_no_corrientes_CxC_Miembro","co-svsp-core_2017-12-31:CxC_No_vencida_Miembro","co-svsp-core_2017-12-31:CxC_Vencidas_1_a_90_dias_Miembro","co-svsp-core_2017-12-31:CxC_Vencidas_91_a_180_dias_Miembro","co-svsp-core_2017-12-31:CxC_Vencidas_181_a_360_dias_Miembro","co-svsp-core_2017-12-31:CxC_Vencidas_mas_de_360_dias_Miembro","co-svsp-core_2017-12-31:CxC_Total_Vencidas_Miembro"]
[null,null,null,"co-svsp-core_2017-12-31:CuentasPorCobrar_Eje","Nacionales corrientes [miembro]","En el exterior corrientes [miembro]","Nacionales no corrientes [miembro]","En el exterior no corrientes [miembro]","Número de vencidas [miembro]","Valor vencidas de 1 a 90 días [miembro]","Valor vencidas de 91 a 180 días [miembro]","Valor vencidas de 181 a 360 días  [miembro]","Valor vencidas de mas de 360 días [miembro]","Total cuentas por cobrar vencidas [miembro]"]
[null,"1;1","co-svsp-core_2017-12-31:CxC_Cuentas_comerciales_por_cobrar_y_otras_cuentas_por_cobrar","Cuentas comerciales por cobrar y otras cuentas por cobrar"]
[null,"1;1","co-svsp-core_2017-12-31:CxC_Cuentas_comerciales_por_cobrar","Cuentas comerciales por cobrar"]
[null,"1;1","co-svsp-core_2017-12-31:CxC_Cuentas_comerciales_por_cobrar_no_están_en_mora_ni_deterioradas_de_valor","Cuentas comerciales por cobrar que no están en mora ni deterioradas de valor",null,null,null,null,null,null,null,null,null,{"$f":"J14+K14+L14+M14","v":0},null,{"$f":"IF(AB14=\"CORRECTO\",\"CORRECTO\",\"Al indicar que se tienen cuentas vencidas para '\"&D14&\"', debe indicarse el monto en la columna correspondiente y viceversa.\")","v":"CORRECTO"},null,null,null,{"$f":"IF(P14=\"CORRECTO\",0,1)","v":0},null,null,null,null,{"$f":"IF(OR(I14=\"\",I14=0),0,1)","v":0},{"$f":"J14+K14+L14+M14","v":0},null,{"$f":"IF(AND(Y14=0,Z14=0),\"CORRECTO\",IF(AND(Y14<>0,Z14<>0),\"CORRECTO\",\"INCORRECTO\"))","v":"CORRECTO"}]
[null,"1;1","co-svsp-core_2017-12-31:CxC_Cuentas_comerciales_por_cobrar_en_mora_pero_no_deterioradas_de_valor","Cuentas comerciales por cobrar en mora pero no deterioradas de valor",null,null,null,null,null,null,null,null,null,{"$f":"J15+K15+L15+M15","v":0},null,{"$f":"IF(AB15=\"CORRECTO\",\"CORRECTO\",\"Al indicar que se tienen cuentas vencidas para '\"&D15&\"', debe indicarse el monto en la columna correspondiente y viceversa.\")","v":"CORRECTO"},null,null,null,{"$f":"IF(P15=\"CORRECTO\",0,1)","v":0},null,null,null,null,{"$f":"IF(OR(I15=\"\",I15=0),0,1)","v":0},{"$f":"J15+K15+L15+M15","v":0},null,{"$f":"IF(AND(Y15=0,Z15=0),\"CORRECTO\",IF(AND(Y15<>0,Z15<>0),\"CORRECTO\",\"INCORRECTO\"))","v":"CORRECTO"}]
[null,"1;1","co-svsp-core_2017-12-31:CxC_Cuentas_comerciales_por_cobrar_deterioradas_de_valor","Cuentas comerciales por cobrar deterioradas de valor",null,null,null,null,null,null,null,null,null,{"$f":"J16+K16+L16+M16","v":0},null,{"$f":"IF(AB16=\"CORRECTO\",\"CORRECTO\",\"Al indicar que se tienen cuentas vencidas para '\"&D16&\"', debe indicarse el monto en la columna correspondiente y viceversa.\")","v":"CORRECTO"},null,null,null,{"$f":"IF(P16=\"CORRECTO\",0,1)","v":0},null,null,null,null,{"$f":"IF(OR(I16=\"\",I16=0),0,1)","v":0},{"$f":"J16+K16+L16+M16","v":0},null,"CORRECTO"]
[null,"1;1","co-svsp-core_2017-12-31:CxC_Deterioro_menor_valor","Deterioro (menor valor)",null,null,null,null,null,null,null,null,null,{"$f":"J17+K17+L17+M17","v":0},null,{"$f":"IF(AB17=\"CORRECTO\",\"CORRECTO\",\"Al indicar que se tienen cuentas vencidas para '\"&D17&\"', debe indicarse el monto en la columna correspondiente y viceversa.\")","v":"CORRECTO"},null,null,null,{"$f":"IF(P17=\"CORRECTO\",0,1)","v":0},null,null,null,null,{"$f":"IF(OR(I17=\"\",I17=0),0,1)","v":0},{"$f":"J17+K17+L17+M17","v":0},null,"CORRECTO"]
[null,"1;1","co-svsp-core_2017-12-31:CxC_Total_cuentas_comerciales_por_cobrar","Total cuentas comerciales por cobrar",{"$f":"E14+E15+E16-E17","v":0},{"$f":"F14+F15+F16-F17","v":0},{"$f":"G14+G15+G16-G17","v":0},{"$f":"H14+H15+H16-H17","v":0},{"$f":"I14+I15+I16-I17","v":0},{"$f":"J14+J15+J16-J17","v":0},0,0,0,{"$f":"N14+N15+N16-N17","v":0}]
[null,"1;1","co-svsp-core_2017-12-31:CxC_Otras_cuentas_por_cobrar","Otras cuentas por cobrar",null,null,null,null,null,null,null,null,null,null,null,{"$f":"IF(AB19=\"CORRECTO\",\"CORRECTO\",\"Al indicar que se tienen cuentas vencidas para '\"&D19&\"', debe indicarse el monto en la columna correspondiente y viceversa.\")","v":"CORRECTO"},null,null,null,{"$f":"IF(P19=\"CORRECTO\",0,1)","v":0},null,null,null,null,{"$f":"IF(OR(I19=\"\",I19=0),0,1)","v":0},{"$f":"J19+K19+L19+M19","v":0},null,"CORRECTO"]
[null,"1;1","co-svsp-core_2017-12-31:CxC_Cuentas_comerciales_por_cobrar_no_están_en_mora_ni_deterioradas_de_valor_OCxC","Otras cuentas por cobrar que no están en mora ni deterioradas de valor",null,null,null,null,null,null,null,null,null,{"$f":"J20+K20+L20+M20","v":0},null,{"$f":"IF(AB20=\"CORRECTO\",\"CORRECTO\",\"Al indicar que se tienen cuentas vencidas para '\"&D20&\"', debe indicarse el monto en la columna correspondiente y viceversa.\")","v":"CORRECTO"},null,null,null,{"$f":"IF(P20=\"CORRECTO\",0,1)","v":0},null,null,null,null,{"$f":"IF(OR(I20=\"\",I20=0),0,1)","v":0},{"$f":"J20+K20+L20+M20","v":0},null,"CORRECTO"]
[null,"1;1","co-svsp-core_2017-12-31:CxC_Cuentas_comerciales_por_cobrar_en_mora_pero_no_deterioradas_de_valor_OCxC","Otras cuentas por cobrar en mora pero no deterioradas de valor",null,null,null,null,null,null,null,null,null,0,null,{"$f":"IF(AB21=\"CORRECTO\",\"CORRECTO\",\"Al indicar que se tienen cuentas vencidas para '\"&D21&\"', debe indicarse el monto en la columna correspondiente y viceversa.\")","v":"CORRECTO"},null,null,null,{"$f":"IF(P21=\"CORRECTO\",0,1)","v":0},null,null,null,null,{"$f":"IF(OR(I21=\"\",I21=0),0,1)","v":0},{"$f":"J21+K21+L21+M21","v":0},null,"CORRECTO"]
[null,"1;1","co-svsp-core_2017-12-31:CxC_Cuentas_comerciales_por_cobrar_deterioradas_de_valor_OCxC","Otras cuentas por cobrar deterioradas de valor",null,null,null,null,null,null,null,null,null,0,null,{"$f":"IF(AB22=\"CORRECTO\",\"CORRECTO\",\"Al indicar que se tienen cuentas vencidas para '\"&D22&\"', debe indicarse el monto en la columna correspondiente y viceversa.\")","v":"CORRECTO"},null,null,null,{"$f":"IF(P22=\"CORRECTO\",0,1)","v":0},null,null,null,null,{"$f":"IF(OR(I22=\"\",I22=0),0,1)","v":0},{"$f":"J22+K22+L22+M22","v":0},null,"CORRECTO"]
[null,"1;1","co-svsp-core_2017-12-31:CxC_Deterioro_menor_valor_OCxC","Deterioro (menor valor)",null,null,null,null,null,null,null,null,null,{"$f":"J23+K23+L23+M23","v":0},null,{"$f":"IF(AB23=\"CORRECTO\",\"CORRECTO\",\"Al indicar que se tienen cuentas vencidas para '\"&D23&\"', debe indicarse el monto en la columna correspondiente y viceversa.\")","v":"CORRECTO"},null,null,null,{"$f":"IF(P23=\"CORRECTO\",0,1)","v":0},null,null,null,null,{"$f":"IF(OR(I23=\"\",I23=0),0,1)","v":0},{"$f":"J23+K23+L23+M23","v":0},null,"CORRECTO"]
[null,"1;1","co-svsp-core_2017-12-31:CxC_Total_cuentas_comerciales_por_cobrar_OCxC","Total otras cuentas por cobrar",{"$f":"E20+E21+E22-E23","v":0},{"$f":"F20+F21+F22-F23","v":0},0,{"$f":"H20+H21+H22-H23","v":0},{"$f":"I20+I21+I22-I23","v":0},{"$f":"J20+J21+J22-J23","v":0},0,0,{"$f":"M20+M21+M22-M23","v":0},{"$f":"N20+N21+N22-N23","v":0}]
[null,"1;1","co-svsp-core_2017-12-31:CxC_Total_cuentas_por_cobrar_y_otras_cuentas_por_cobrar","Total cuentas por cobrar y otras cuentas por cobrar",{"$f":"E14+E15+E16-E17+E20+E21+E22-E23","v":0},0,0,0,0,0,0,0,0,{"$f":"+N18+N24","v":0},null,{"$f":"IF(AB25=\"CORRECTO\",\"CORRECTO\",\"Debe registrar valor para '\"&D25&\"' en las columnas correspondientes a 'Corriente' y 'No Corriente'.\")","v":"CORRECTO"},null,null,null,{"$f":"IF(P25=\"CORRECTO\",0,1)","v":0},null,null,null,null,null,null,null,{"$f":"IF(AND(E25=\"\",F25=\"\",G25=\"\",H25=\"\"),\"INCORRECTO\",\"CORRECTO\")","v":"CORRECTO"}]
[]
[null,null,null,null,{"$f":"E14+E15+E16-E17+E20+E21+E22-E23","v":0},{"$f":"F14+F15+F16-F17+F20+F21+F22-F23","v":0},0,0]
[]
[]
[]
[]
[null,null,null,null,"2016-12-31"]
[null,null,null,null,"Nacional o del exterior [miembro]",null,null,null,"Bandas de tiempo acumuladas [miembro]"]
[null,null,null,null,"co-svsp-core_2017-12-31:Nacionales_corrientes_CxC_Miembro","co-svsp-core_2017-12-31:En_el_exterior_corrientes_CxC_Miembro","co-svsp-core_2017-12-31:Nacionales_no_corrientes_CxC_Miembro","co-svsp-core_2017-12-31:En_el_exterior_no_corrientes_CxC_Miembro","co-svsp-core_2017-12-31:CxC_No_vencida_Miembro","co-svsp-core_2017-12-31:CxC_Vencidas_1_a_90_dias_Miembro","co-svsp-core_2017-12-31:CxC_Vencidas_91_a_180_dias_Miembro","co-svsp-core_2017-12-31:CxC_Vencidas_181_a_360_dias_Miembro","co-svsp-core_2017-12-31:CxC_Vencidas_mas_de_360_dias_Miembro","co-svsp-core_2017-12-31:CxC_Total_Vencidas_Miembro"]
[null,null,null,"co-svsp-core_2017-12-31:CuentasPorCobrar_Eje","Nacionales corrientes [miembro]","En el exterior corrientes [miembro]","Nacionales no corrientes [miembro]","En el exterior no corrientes [miembro]","Número de vencidas [miembro]","Valor vencidas de 1 a 90 días [miembro]","Valor vencidas de 91 a 180 días [miembro]","Valor vencidas de 181 a 360 días  [miembro]","Valor vencidas de mas de 360 días [miembro]","Total cuentas por cobrar vencidas [miembro]"]
[null,"1;2","co-svsp-core_2017-12-31:CxC_Cuentas_comerciales_por_cobrar_y_otras_cuentas_por_cobrar","Cuentas comerciales por cobrar y otras cuentas por cobrar"]
[null,"1;2","co-svsp-core_2017-12-31:CxC_Cuentas_comerciales_por_cobrar","Cuentas comerciales por cobrar"]
[null,"1;2","co-svsp-core_2017-12-31:CxC_Cuentas_comerciales_por_cobrar_no_están_en_mora_ni_deterioradas_de_valor","Cuentas comerciales por cobrar que no están en mora ni deterioradas de valor",null,null,null,null,null,null,null,null,null,{"$f":"J38+K38+L38+M38","v":0},null,{"$f":"IF(AB38=\"CORRECTO\",\"CORRECTO\",\"Al indicar que se tienen cuentas vencidas para '\"&D38&\"', debe indicarse el monto en la columna correspondiente y viceversa.\")","v":"CORRECTO"},null,null,null,{"$f":"IF(P38=\"CORRECTO\",0,1)","v":0},null,null,null,null,{"$f":"IF(OR(I38=\"\",I38=0),0,1)","v":0},{"$f":"J38+K38+L38+M38","v":0},null,{"$f":"IF(AND(Y38=0,Z38=0),\"CORRECTO\",IF(AND(Y38<>0,Z38<>0),\"CORRECTO\",\"INCORRECTO\"))","v":"CORRECTO"}]
[null,"1;2","co-svsp-core_2017-12-31:CxC_Cuentas_comerciales_por_cobrar_en_mora_pero_no_deterioradas_de_valor","Cuentas comerciales por cobrar en mora pero no deterioradas de valor",null,null,null,null,null,null,null,null,null,{"$f":"J39+K39+L39+M39","v":0},null,{"$f":"IF(AB39=\"CORRECTO\",\"CORRECTO\",\"Al indicar que se tienen cuentas vencidas para '\"&D39&\"', debe indicarse el monto en la columna correspondiente y viceversa.\")","v":"CORRECTO"},null,null,null,{"$f":"IF(P39=\"CORRECTO\",0,1)","v":0},null,null,null,null,{"$f":"IF(OR(I39=\"\",I39=0),0,1)","v":0},{"$f":"J39+K39+L39+M39","v":0},null,{"$f":"IF(AND(Y39=0,Z39=0),\"CORRECTO\",IF(AND(Y39<>0,Z39<>0),\"CORRECTO\",\"INCORRECTO\"))","v":"CORRECTO"}]
[null,"1;2","co-svsp-core_2017-12-31:CxC_Cuentas_comerciales_por_cobrar_deterioradas_de_valor","Cuentas comerciales por cobrar deterioradas de valor",null,null,null,null,null,null,null,null,null,{"$f":"J40+K40+L40+M40","v":0},null,{"$f":"IF(AB40=\"CORRECTO\",\"CORRECTO\",\"Al indicar que se tienen cuentas vencidas para '\"&D40&\"', debe indicarse el monto en la columna correspondiente y viceversa.\")","v":"CORRECTO"},null,null,null,{"$f":"IF(P40=\"CORRECTO\",0,1)","v":0},null,null,null,null,{"$f":"IF(OR(I40=\"\",I40=0),0,1)","v":0},{"$f":"J40+K40+L40+M40","v":0},null,"CORRECTO"]
[null,"1;2","co-svsp-core_2017-12-31:CxC_Deterioro_menor_valor","Deterioro (menor valor)",null,null,null,null,null,null,null,null,null,{"$f":"J41+K41+L41+M41","v":0},null,{"$f":"IF(AB41=\"CORRECTO\",\"CORRECTO\",\"Al indicar que se tienen cuentas vencidas para '\"&D41&\"', debe indicarse el monto en la columna correspondiente y viceversa.\")","v":"CORRECTO"},null,null,null,{"$f":"IF(P41=\"CORRECTO\",0,1)","v":0},null,null,null,null,{"$f":"IF(OR(I41=\"\",I41=0),0,1)","v":0},{"$f":"J41+K41+L41+M41","v":0},null,"CORRECTO"]
[null,"1;2","co-svsp-core_2017-12-31:CxC_Total_cuentas_comerciales_por_cobrar","Total cuentas comerciales por cobrar",{"$f":"E38+E39+E40-E41","v":0},{"$f":"F38+F39+F40-F41","v":0},{"$f":"G38+G39+G40-G41","v":0},{"$f":"H38+H39+H40-H41","v":0},{"$f":"I38+I39+I40-I41","v":0},{"$f":"J38+J39+J40-J41","v":0},0,0,0,{"$f":"J38+J39+J40+J41+K38+K39+K40+K41+L38+L39+L40+L41+M38+M39+M40+M41","v":0}]
[null,"1;2","co-svsp-core_2017-12-31:CxC_Otras_cuentas_por_cobrar","Otras cuentas por cobrar",null,null,null,null,null,null,null,null,null,null,null,{"$f":"IF(AB43=\"CORRECTO\",\"CORRECTO\",\"Al indicar que se tienen cuentas vencidas para '\"&D43&\"', debe indicarse el monto en la columna correspondiente y viceversa.\")","v":"CORRECTO"},null,null,null,{"$f":"IF(P43=\"CORRECTO\",0,1)","v":0},null,null,null,null,{"$f":"IF(OR(I43=\"\",I43=0),0,1)","v":0},{"$f":"J43+K43+L43+M43","v":0},null,"CORRECTO"]
[null,"1;2","co-svsp-core_2017-12-31:CxC_Cuentas_comerciales_por_cobrar_no_están_en_mora_ni_deterioradas_de_valor_OCxC","Otras cuentas por cobrar que no están en mora ni deterioradas de valor",null,null,null,null,null,null,null,null,null,{"$f":"J44+K44+L44+M44","v":0},null,{"$f":"IF(AB44=\"CORRECTO\",\"CORRECTO\",\"Al indicar que se tienen cuentas vencidas para '\"&D44&\"', debe indicarse el monto en la columna correspondiente y viceversa.\")","v":"CORRECTO"},null,null,null,0,null,null,null,null,{"$f":"IF(OR(I44=\"\",I44=0),0,1)","v":0},{"$f":"J44+K44+L44+M44","v":0},null,"CORRECTO"]
[null,"1;2","co-svsp-core_2017-12-31:CxC_Cuentas_comerciales_por_cobrar_en_mora_pero_no_deterioradas_de_valor_OCxC","Otras cuentas por cobrar en mora pero no deterioradas de valor",null,null,null,null,null,null,null,null,null,0,null,{"$f":"IF(AB45=\"CORRECTO\",\"CORRECTO\",\"Al indicar que se tienen cuentas vencidas para '\"&D45&\"', debe indicarse el monto en la columna correspondiente y viceversa.\")","v":"CORRECTO"},null,null,null,0,null,null,null,null,{"$f":"IF(OR(I45=\"\",I45=0),0,1)","v":0},{"$f":"J45+K45+L45+M45","v":0},null,"CORRECTO"]
[null,"1;2","co-svsp-core_2017-12-31:CxC_Cuentas_comerciales_por_cobrar_deterioradas_de_valor_OCxC","Otras cuentas por cobrar deterioradas de valor",null,null,null,null,null,null,null,null,null,0,null,{"$f":"IF(AB46=\"CORRECTO\",\"CORRECTO\",\"Al indicar que se tienen cuentas vencidas para '\"&D46&\"', debe indicarse el monto en la columna correspondiente y viceversa.\")","v":"CORRECTO"},null,null,null,0,null,null,null,null,{"$f":"IF(OR(I46=\"\",I46=0),0,1)","v":0},{"$f":"J46+K46+L46+M46","v":0},null,"CORRECTO"]
[null,"1;2","co-svsp-core_2017-12-31:CxC_Deterioro_menor_valor_OCxC","Deterioro (menor valor)",null,null,null,null,null,null,null,null,null,{"$f":"J47+K47+L47+M47","v":0},null,{"$f":"IF(AB47=\"CORRECTO\",\"CORRECTO\",\"Al indicar que se tienen cuentas vencidas para '\"&D47&\"', debe indicarse el monto en la columna correspondiente y viceversa.\")","v":"CORRECTO"},null,null,null,0,null,null,null,null,{"$f":"IF(OR(I47=\"\",I47=0),0,1)","v":0},{"$f":"J47+K47+L47+M47","v":0},null,"CORRECTO"]
[null,"1;2","co-svsp-core_2017-12-31:CxC_Total_cuentas_comerciales_por_cobrar_OCxC","Total otras cuentas por cobrar",{"$f":"E44+E45+E46-E47","v":0},{"$f":"F44+F45+F46-F47","v":0},0,{"$f":"H44+H45+H46-H47","v":0},{"$f":"I44+I45+I46-I47","v":0},{"$f":"J44+J45+J46-J47","v":0},0,0,{"$f":"M44+M45+M46-M47","v":0},{"$f":"J44+J45+J46+J47+K44+K45+K46+K47+L44+L45+L46+L47+M44+M45+M46+M47","v":0}]
[null,"1;2","co-svsp-core_2017-12-31:CxC_Total_cuentas_por_cobrar_y_otras_cuentas_por_cobrar","Total cuentas por cobrar y otras cuentas por cobrar",{"$f":"E38+E39+E40-E41+E44+E45+E46-E47","v":0},0,0,0,0,0,0,0,0,{"$f":"J38+J39+J40+J41+K38+K39+K40+K41+L38+L39+L40+L41+M38+M39+M40+M41+J44+J45+J46+J47+K44+K45+K46+K47+L44+L45+L46+L47+M44+M45+M46+M47","v":0},null,{"$f":"IF(AB49=\"CORRECTO\",\"CORRECTO\",\"Debe registrar valor para '\"&D49&\"' en las columnas correspondientes a 'Corriente' y 'No Corriente'.\")","v":"CORRECTO"},null,null,null,{"$f":"IF(P49=\"CORRECTO\",0,1)","v":0},null,null,null,null,null,null,null,{"$f":"IF(AND(E49=\"\",F49=\"\",G49=\"\",H49=\"\"),\"INCORRECTO\",\"CORRECTO\")","v":"CORRECTO"}]
[]
[null,null,null,null,{"$f":"E38+E39+E40-E41+E44+E45+E46-E47","v":0},{"$f":"F38+F39+F40-F41+F44+F45+F46-F47","v":0},0,0]

{"sheet":"800111a - Nota. Detalle de CxC.","index":10,"n_rows":343,"n_cols":20,"rows_kept":343,"cut":false,"hidden":false,"merged":[[3,3,5,12],[7,4,7,15],[8,4,8,15],[178,4,178,15],[179,4,179,15]]}
[]
[]
[]
[null,null,null,"800111a - Nota. Detalle de cuentas por cobrar (Para 2017 y 2016)"]
[]
[]
[]
[null,null,null,null,"2017-12-31"]
[null,null,null,null,"Detalle de Cuentas por cobrar",null,null,null,null,null,null,null,null,null,null,null,null,{"$f":"IF(T9=0,\"Formulario 'Nota de Detalle de cuentas por cobrar' Válido\",\"Formulario 'Nota de Detalle de cuentas por cobrar' con \"&T9&\" inconsistencias\")","v":"Formulario 'Nota de Detalle de cuentas por cobrar' Válido"},null,{"$f":"SUM(T14:T343)","v":0}]
[null,null,null,null,"co-svsp-core_2017-12-31:TipoDeDocumentoDeudorCxC","co-svsp-core_2017-12-31:NumeroIdentificacionDeudorCxC","co-svsp-core_2017-12-31:PrimerApellidoDeudorCxC","co-svsp-core_2017-12-31:SegundoApellidoDeudorCxC","co-svsp-core_2017-12-31:PrimerNombreDeudorCxC","co-svsp-core_2017-12-31:OtrosNombresDeudorCxC","co-svsp-core_2017-12-31:RazonSocialDeudorCxC","co-svsp-core_2017-12-31:DireccionDeudorCxC","co-svsp-core_2017-12-31:DepartamentoDeudorCxC","co-svsp-core_2017-12-31:MunicipioDeudorCxC","co-svsp-core_2017-12-31:PaisDeudorCxC","co-svsp-core_2017-12-31:SaldoCuentasPorCobrarCxC"]
[null,null,null,"co-svsp-core_2017-12-31:DetalleCuentasXCobrar_Eje","Tipo de documento del deudor","Número de identificación del deudor","Primer apellido deudor","Segundo apellido deudor","Primer nombre deudor","Otros nombres deudor","Razón Social deudor","Dirección deudor","Departamento deudor","Municipio deudor","País deudor","Saldo cuentas por cobrar"]
[null,"1;1","co-svsp-core_2017-12-31:RelacionCuentasXCobrarMiembro","Relación de cuentas por cobrar [miembro]"]
[null,"1;1","co-svsp-core_2017-12-31:RelacionCuentasXCobrarClientesMiembro","Relación de cuentas por cobrar clientes [miembro]"]
[null,"1;1","co-svsp-core_2017-12-31:DetalleCuentasXCobrarClientes1Miembro","Detalle de cuentas por cobrar clientes 1 [miembro]"]
[null,"1;1","co-svsp-core_2017-12-31:DetalleCuentasXCobrarClientes2Miembro","Detalle de cuentas por cobrar clientes 2 [miembro]"]
[null,"1;1","co-svsp-core_2017-12-31:DetalleCuentasXCobrarClientes3Miembro","Detalle de cuentas por cobrar clientes 3 [miembro]"]
[null,"1;1","co-svsp-core_2017-12-31:DetalleCuentasXCobrarClientes4Miembro","Detalle de cuentas por cobrar clientes 4 [miembro]"]
[null,"1;1","co-svsp-core_2017-12-31:DetalleCuentasXCobrarClientes5Miembro","Detalle de cuentas por cobrar clientes 5 [miembro]"]
[null,"1;1","co-svsp-core_2017-12-31:DetalleCuentasXCobrarClientes6Miembro","Detalle de cuentas por cobrar clientes 6 [miembro]"]
[null,"1;1","co-svsp-core_2017-12-31:DetalleCuentasXCobrarClientes7Miembro","Detalle de cuentas por cobrar clientes 7 [miembro]"]
[null,"1;1","co-svsp-core_2017-12-31:DetalleCuentasXCobrarClientes8Miembro","Detalle de cuentas por cobrar clientes 8 [miembro]"]
[null,"1;1","co-svsp-core_2017-12-31:DetalleCuentasXCobrarClientes9Miembro","Detalle de cuentas por cobrar clientes 9 [miembro]"]
[null,"1;1","co-svsp-core_2017-12-31:DetalleCuentasXCobrarClientes10Miembro","Detalle de cuentas por cobrar clientes 10 [miembro]"]
[null,"1;1","co-svsp-core_2017-12-31:DetalleCuentasXCobrarClientes11Miembro","Detalle de cuentas por cobrar clientes 11 [miembro]"]
[null,"1;1","co-svsp-core_2017-12-31:DetalleCuentasXCobrarClientes12Miembro","Detalle de cuentas por cobrar clientes 12 [miembro]"]
[null,"1;1","co-svsp-core_2017-12-31:DetalleCuentasXCobrarClientes13Miembro","Detalle de cuentas por cobrar clientes 13 [miembro]"]
[null,"1;1","co-svsp-core_2017-12-31:DetalleCuentasXCobrarClientes14Miembro","Detalle de cuentas por cobrar clientes 14 [miembro]"]
[null,"1;1","co-svsp-core_2017-12-31:DetalleCuentasXCobrarClientes15Miembro","Detalle de cuentas por cobrar clientes 15 [miembro]"]
[null,"1;1","co-svsp-core_2017-12-31:DetalleCuentasXCobrarClientes16Miembro","Detalle de cuentas por cobrar clientes 16 [miembro]"]
[null,"1;1","co-svsp-core_2017-12-31:DetalleCuentasXCobrarClientes17Miembro","Detalle de cuentas por cobrar clientes 17 [miembro]"]
[null,"1;1","co-svsp-core_2017-12-31:DetalleCuentasXCobrarClientes18Miembro","Detalle de cuentas por cobrar clientes 18 [miembro]"]
[null,"1;1","co-svsp-core_2017-12-31:DetalleCuentasXCobrarClientes19Miembro","Detalle de cuentas por cobrar clientes 19 [miembro]"]
[null,"1;1","co-svsp-core_2017-12-31:DetalleCuentasXCobrarClientes20Miembro","Detalle de cuentas por cobrar clientes 20 [miembro]"]
[null,"1;1","co-svsp-core_2017-12-31:DetalleCuentasXCobrarClientes21Miembro","Detalle de cuentas por cobrar clientes 21 [miembro]"]
[null,"1;1","co-svsp-core_2017-12-31:DetalleCuentasXCobrarClientes22Miembro","Detalle de cuentas por cobrar clientes 22 [miembro]"]
[null,"1;1","co-svsp-core_2017-12-31:DetalleCuentasXCobrarClientes23Miembro","Detalle de cuentas por cobrar clientes 23 [miembro]"]
[null,"1;1","co-svsp-core_2017-12-31:DetalleCuentasXCobrarClientes24Miembro","Detalle de cuentas por cobrar clientes 24 [miembro]"]
[null,"1;1","co-svsp-core_2017-12-31:DetalleCuentasXCobrarClientes25Miembro","Detalle de cuentas por cobrar clientes 25 [miembro]"]
[null,"1;1","co-svsp-core_2017-12-31:DetalleCuentasXCobrarClientes26Miembro","Detalle de cuentas por cobrar clientes 26 [miembro]"]
[null,"1;1","co-svsp-core_2017-12-31:DetalleCuentasXCobrarClientes27Miembro","Detalle de cuentas por cobrar clientes 27 [miembro]"]
[null,"1;1","co-svsp-core_2017-12-31:DetalleCuentasXCobrarClientes28Miembro","Detalle de cuentas por cobrar clientes 28 [miembro]"]
[null,"1;1","co-svsp-core_2017-12-31:DetalleCuentasXCobrarClientes29Miembro","Detalle de cuentas por cobrar clientes 29 [miembro]"]
[null,"1;1","co-svsp-core_2017-12-31:DetalleCuentasXCobrarClientes30Miembro","Detalle de cuentas por cobrar clientes 30 [miembro]"]
[null,"1;1","co-svsp-core_2017-12-31:DetalleCuentasXCobrarClientes31Miembro","Detalle de cuentas por cobrar clientes 31 [miembro]"]
[null,"1;1","co-svsp-core_2017-12-31:DetalleCuentasXCobrarClientes32Miembro","Detalle de cuentas por cobrar clientes 32 [miembro]"]
[null,"1;1","co-svsp-core_2017-12-31:DetalleCuentasXCobrarClientes33Miembro","Detalle de cuentas por cobrar clientes 33 [miembro]"]
[null,"1;1","co-svsp-core_2017-12-31:DetalleCuentasXCobrarClientes34Miembro","Detalle de cuentas por cobrar clientes 34 [miembro]"]
[null,"1;1","co-svsp-core_2017-12-31:DetalleCuentasXCobrarClientes35Miembro","Detalle de cuentas por cobrar clientes 35 [miembro]"]
[null,"1;1","co-svsp-core_2017-12-31:DetalleCuentasXCobrarClientes36Miembro","Detalle de cuentas por cobrar clientes 36 [miembro]"]
[null,"1;1","co-svsp-core_2017-12-31:DetalleCuentasXCobrarClientes37Miembro","Detalle de cuentas por cobrar clientes 37 [miembro]"]
[null,"1;1","co-svsp-core_2017-12-31:DetalleCuentasXCobrarClientes38Miembro","Detalle de cuentas por cobrar clientes 38 [miembro]"]
[null,"1;1","co-svsp-core_2017-12-31:DetalleCuentasXCobrarClientes39Miembro","Detalle de cuentas por cobrar clientes 39 [miembro]"]
[null,"1;1","co-svsp-core_2017-12-31:DetalleCuentasXCobrarClientes40Miembro","Detalle de cuentas por cobrar clientes 40 [miembro]"]
[null,"1;1","co-svsp-core_2017-12-31:DetalleCuentasXCobrarClientes41Miembro","Detalle de cuentas por cobrar clientes 41 [miembro]"]
[null,"1;1","co-svsp-core_2017-12-31:DetalleCuentasXCobrarClientes42Miembro","Detalle de cuentas por cobrar clientes 42 [miembro]"]
[null,"1;1","co-svsp-core_2017-12-31:DetalleCuentasXCobrarClientes43Miembro","Detalle de cuentas por cobrar clientes 43 [miembro]"]
[null,"1;1","co-svsp-core_2017-12-31:DetalleCuentasXCobrarClientes44Miembro","Detalle de cuentas por cobrar clientes 44 [miembro]"]
[null,"1;1","co-svsp-core_2017-12-31:DetalleCuentasXCobrarClientes45Miembro","Detalle de cuentas por cobrar clientes 45 [miembro]"]
[null,"1;1","co-svsp-core_2017-12-31:DetalleCuentasXCobrarClientes46Miembro","Detalle de cuentas por cobrar clientes 46 [miembro]"]
[null,"1;1","co-svsp-core_2017-12-31:DetalleCuentasXCobrarClientes47Miembro","Detalle de cuentas por cobrar clientes 47 [miembro]"]
[null,"1;1","co-svsp-core_2017-12-31:DetalleCuentasXCobrarClientes48Miembro","Detalle de cuentas por cobrar clientes 48 [miembro]"]
[null,"1;1","co-svsp-core_2017-12-31:DetalleCuentasXCobrarClientes49Miembro","Detalle de cuentas por cobrar clientes 49 [miembro]"]
[null,"1;1","co-svsp-core_2017-12-31:DetalleCuentasXCobrarClientes50Miembro","Detalle de cuentas por cobrar clientes 50 [miembro]"]
[null,"1;1","co-svsp-core_2017-12-31:DetalleCuentasXCobrarClientes51EnAdelante","Detalle de cuentas por cobrar clientes 51 en adelante [miembro]"]
[null,"1;1","co-svsp-core_2017-12-31:TotalDetalleCuentasXCobrarClientesMiembro","Total Detalle de cuentas por cobrar clientes [miembro]",null,null,null,null,null,null,null,null,null,null,null,{"$f":"SUM(P14:P64)","v":0}]
[null,"1;1","co-svsp-core_2017-12-31:RelacionCuentasXCobrarAccionistasSociosVinculadasMiembro","Relación de cuentas por cobrar, compañías accionostas, socios y compañías vinculadas [miembro]"]
[null,"1;1","co-svsp-core_2017-12-31:DetalleCuentasXCobrarAccionistasSociosVinculadas1Miembro","Detalle de cuentas por cobrar a accionistas, socios o vinculadas 1 [miembro]"]
[null,"1;1","co-svsp-core_2017-12-31:DetalleCuentasXCobrarAccionistasSociosVinculadas2Miembro","Detalle de cuentas por cobrar a accionistas, socios o vinculadas 2 [miembro]"]
[null,"1;1","co-svsp-core_2017-12-31:DetalleCuentasXCobrarAccionistasSociosVinculadas3Miembro","Detalle de cuentas por cobrar a accionistas, socios o vinculadas 3 [miembro]"]
[null,"1;1","co-svsp-core_2017-12-31:DetalleCuentasXCobrarAccionistasSociosVinculadas4Miembro","Detalle de cuentas por cobrar a accionistas, socios o vinculadas 4 [miembro]"]
[null,"1;1","co-svsp-core_2017-12-31:DetalleCuentasXCobrarAccionistasSociosVinculadas5Miembro","Detalle de cuentas por cobrar a accionistas, socios o vinculadas 5 [miembro]"]
[null,"1;1","co-svsp-core_2017-12-31:DetalleCuentasXCobrarAccionistasSociosVinculadas6Miembro","Detalle de cuentas por cobrar a accionistas, socios o vinculadas 6 [miembro]"]
[null,"1;1","co-svsp-core_2017-12-31:DetalleCuentasXCobrarAccionistasSociosVinculadas7Miembro","Detalle de cuentas por cobrar a accionistas, socios o vinculadas 7 [miembro]"]
[null,"1;1","co-svsp-core_2017-12-31:DetalleCuentasXCobrarAccionistasSociosVinculadas8Miembro","Detalle de cuentas por cobrar a accionistas, socios o vinculadas 8 [miembro]"]
[null,"1;1","co-svsp-core_2017-12-31:DetalleCuentasXCobrarAccionistasSociosVinculadas9Miembro","Detalle de cuentas por cobrar a accionistas, socios o vinculadas 9 [miembro]"]
[null,"1;1","co-svsp-core_2017-12-31:DetalleCuentasXCobrarAccionistasSociosVinculadas10Miembro","Detalle de cuentas por cobrar a accionistas, socios o vinculadas 10 [miembro]"]
[null,"1;1","co-svsp-core_2017-12-31:DetalleCuentasXCobrarAccionistasSociosVinculadas11Miembro","Detalle de cuentas por cobrar a accionistas, socios o vinculadas 11 [miembro]"]
[null,"1;1","co-svsp-core_2017-12-31:DetalleCuentasXCobrarAccionistasSociosVinculadas12Miembro","Detalle de cuentas por cobrar a accionistas, socios o vinculadas 12 [miembro]"]
[null,"1;1","co-svsp-core_2017-12-31:DetalleCuentasXCobrarAccionistasSociosVinculadas13Miembro","Detalle de cuentas por cobrar a accionistas, socios o vinculadas 13 [miembro]"]
[null,"1;1","co-svsp-core_2017-12-31:DetalleCuentasXCobrarAccionistasSociosVinculadas14Miembro","Detalle de cuentas por cobrar a accionistas, socios o vinculadas 14 [miembro]"]
[null,"1;1","co-svsp-core_2017-12-31:DetalleCuentasXCobrarAccionistasSociosVinculadas15Miembro","Detalle de cuentas por cobrar a accionistas, socios o vinculadas 15 [miembro]"]
[null,"1;1","co-svsp-core_2017-12-31:DetalleCuentasXCobrarAccionistasSociosVinculadas16Miembro","Detalle de cuentas por cobrar a accionistas, socios o vinculadas 16 [miembro]"]
[null,"1;1","co-svsp-core_2017-12-31:DetalleCuentasXCobrarAccionistasSociosVinculadas17Miembro","Detalle de cuentas por cobrar a accionistas, socios o vinculadas 17 [miembro]"]
[null,"1;1","co-svsp-core_2017-12-31:DetalleCuentasXCobrarAccionistasSociosVinculadas18Miembro","Detalle de cuentas por cobrar a accionistas, socios o vinculadas 18 [miembro]"]
[null,"1;1","co-svsp-core_2017-12-31:DetalleCuentasXCobrarAccionistasSociosVinculadas19Miembro","Detalle de cuentas por cobrar a accionistas, socios o vinculadas 19 [miembro]"]
[null,"1;1","co-svsp-core_2017-12-31:DetalleCuentasXCobrarAccionistasSociosVinculadas20Miembro","Detalle de cuentas por cobrar a accionistas, socios o vinculadas 20 [miembro]"]
[null,"1;1","co-svsp-core_2017-12-31:DetalleCuentasXCobrarAccionistasSociosVinculadas21Miembro","Detalle de cuentas por cobrar a accionistas, socios o vinculadas 21 [miembro]"]
[null,"1;1","co-svsp-core_2017-12-31:DetalleCuentasXCobrarAccionistasSociosVinculadas22Miembro","Detalle de cuentas por cobrar a accionistas, socios o vinculadas 22 [miembro]"]
[null,"1;1","co-svsp-core_2017-12-31:DetalleCuentasXCobrarAccionistasSociosVinculadas23Miembro","Detalle de cuentas por cobrar a accionistas, socios o vinculadas 23 [miembro]"]
[null,"1;1","co-svsp-core_2017-12-31:DetalleCuentasXCobrarAccionistasSociosVinculadas24Miembro","Detalle de cuentas por cobrar a accionistas, socios o vinculadas 24 [miembro]"]
[null,"1;1","co-svsp-core_2017-12-31:DetalleCuentasXCobrarAccionistasSociosVinculadas25Miembro","Detalle de cuentas por cobrar a accionistas, socios o vinculadas 25 [miembro]"]
[null,"1;1","co-svsp-core_2017-12-31:DetalleCuentasXCobrarAccionistasSociosVinculadas26Miembro","Detalle de cuentas por cobrar a accionistas, socios o vinculadas 26 [miembro]"]
[null,"1;1","co-svsp-core_2017-12-31:DetalleCuentasXCobrarAccionistasSociosVinculadas27Miembro","Detalle de cuentas por cobrar a accionistas, socios o vinculadas 27 [miembro]"]
[null,"1;1","co-svsp-core_2017-12-31:DetalleCuentasXCobrarAccionistasSociosVinculadas28Miembro","Detalle de cuentas por cobrar a accionistas, socios o vinculadas 28 [miembro]"]
[null,"1;1","co-svsp-core_2017-12-31:DetalleCuentasXCobrarAccionistasSociosVinculadas29Miembro","Detalle de cuentas por cobrar a accionistas, socios o vinculadas 29 [miembro]"]
[null,"1;1","co-svsp-core_2017-12-31:DetalleCuentasXCobrarAccionistasSociosVinculadas30Miembro","Detalle de cuentas por cobrar a accionistas, socios o vinculadas 30 [miembro]"]
[null,"1;1","co-svsp-core_2017-12-31:DetalleCuentasXCobrarAccionistasSociosVinculadas31Miembro","Detalle de cuentas por cobrar a accionistas, socios o vinculadas 31 [miembro]"]
[null,"1;1","co-svsp-core_2017-12-31:DetalleCuentasXCobrarAccionistasSociosVinculadas32Miembro","Detalle de cuentas por cobrar a accionistas, socios o vinculadas 32 [miembro]"]
[null,"1;1","co-svsp-core_2017-12-31:DetalleCuentasXCobrarAccionistasSociosVinculadas33Miembro","Detalle de cuentas por cobrar a accionistas, socios o vinculadas 33 [miembro]"]
[null,"1;1","co-svsp-core_2017-12-31:DetalleCuentasXCobrarAccionistasSociosVinculadas34Miembro","Detalle de cuentas por cobrar a accionistas, socios o vinculadas 34 [miembro]"]
[null,"1;1","co-svsp-core_2017-12-31:DetalleCuentasXCobrarAccionistasSociosVinculadas35Miembro","Detalle de cuentas por cobrar a accionistas, socios o vinculadas 35 [miembro]"]
[null,"1;1","co-svsp-core_2017-12-31:DetalleCuentasXCobrarAccionistasSociosVinculadas36Miembro","Detalle de cuentas por cobrar a accionistas, socios o vinculadas 36 [miembro]"]
[null,"1;1","co-svsp-core_2017-12-31:DetalleCuentasXCobrarAccionistasSociosVinculadas37Miembro","Detalle de cuentas por cobrar a accionistas, socios o vinculadas 37 [miembro]"]
[null,"1;1","co-svsp-core_2017-12-31:DetalleCuentasXCobrarAccionistasSociosVinculadas38Miembro","Detalle de cuentas por cobrar a accionistas, socios o vinculadas 38 [miembro]"]
[null,"1;1","co-svsp-core_2017-12-31:DetalleCuentasXCobrarAccionistasSociosVinculadas39Miembro","Detalle de cuentas por cobrar a accionistas, socios o vinculadas 39 [miembro]"]
[null,"1;1","co-svsp-core_2017-12-31:DetalleCuentasXCobrarAccionistasSociosVinculadas40Miembro","Detalle de cuentas por cobrar a accionistas, socios o vinculadas 40 [miembro]"]
[null,"1;1","co-svsp-core_2017-12-31:DetalleCuentasXCobrarAccionistasSociosVinculadas41Miembro","Detalle de cuentas por cobrar a accionistas, socios o vinculadas 41 [miembro]"]
[null,"1;1","co-svsp-core_2017-12-31:DetalleCuentasXCobrarAccionistasSociosVinculadas42Miembro","Detalle de cuentas por cobrar a accionistas, socios o vinculadas 42 [miembro]"]
[null,"1;1","co-svsp-core_2017-12-31:DetalleCuentasXCobrarAccionistasSociosVinculadas43Miembro","Detalle de cuentas por cobrar a accionistas, socios o vinculadas 43 [miembro]"]
[null,"1;1","co-svsp-core_2017-12-31:DetalleCuentasXCobrarAccionistasSociosVinculadas44Miembro","Detalle de cuentas por cobrar a accionistas, socios o vinculadas 44 [miembro]"]
[null,"1;1","co-svsp-core_2017-12-31:DetalleCuentasXCobrarAccionistasSociosVinculadas45Miembro","Detalle de cuentas por cobrar a accionistas, socios o vinculadas 45 [miembro]"]
[null,"1;1","co-svsp-core_2017-12-31:DetalleCuentasXCobrarAccionistasSociosVinculadas46Miembro","Detalle de cuentas por cobrar a accionistas, socios o vinculadas 46 [miembro]"]
[null,"1;1","co-svsp-core_2017-12-31:DetalleCuentasXCobrarAccionistasSociosVinculadas47Miembro","Detalle de cuentas por cobrar a accionistas, socios o vinculadas 47 [miembro]"]
[null,"1;1","co-svsp-core_2017-12-31:DetalleCuentasXCobrarAccionistasSociosVinculadas48Miembro","Detalle de cuentas por cobrar a accionistas, socios o vinculadas 48 [miembro]"]
[null,"1;1","co-svsp-core_2017-12-31:DetalleCuentasXCobrarAccionistasSociosVinculadas49Miembro","Detalle de cuentas por cobrar a accionistas, socios o vinculadas 49 [miembro]"]
[null,"1;1","co-svsp-core_2017-12-31:DetalleCuentasXCobrarAccionistasSociosVinculadas50Miembro","Detalle de cuentas por cobrar a accionistas, socios o vinculadas 50 [miembro]"]
[null,"1;1","co-svsp-core_2017-12-31:DetalleCuentasXCobrarAccionistasSociosVinculadas51EnAdelante","Detalle de cuentas por cobrar a accionistas, socios o vinculadas 51 en adelante [miembro]"]
[null,"1;1","co-svsp-core_2017-12-31:TotalDetalleCuentasXCobrarAccionistasSociosVinculadasMiembro","Total Detalle de cuentas por cobrar a accionistas, socios o vinculadas [miembro]",null,null,null,null,null,null,null,null,null,null,null,{"$f":"SUM(P67:P117)","v":0}]
[null,"1;1","co-svsp-core_2017-12-31:RelacionCuentasXCobrarOtrasCuentasXCobrarMiembro","Relación de otras cuentas por cobrar [miembro]"]
[null,"1;1","co-svsp-core_2017-12-31:DetalleCuentasXCobrarOtrasCuentasXCobrar1Miembro","Detalle de cuentas por cobrar Otras cuentas por cobrar  1 [miembro]"]
[null,"1;1","co-svsp-core_2017-12-31:DetalleCuentasXCobrarOtrasCuentasXCobrar2Miembro","Detalle de cuentas por cobrar Otras cuentas por cobrar  2 [miembro]"]
[null,"1;1","co-svsp-core_2017-12-31:DetalleCuentasXCobrarOtrasCuentasXCobrar3Miembro","Detalle de cuentas por cobrar Otras cuentas por cobrar  3 [miembro]"]
[null,"1;1","co-svsp-core_2017-12-31:DetalleCuentasXCobrarOtrasCuentasXCobrar4Miembro","Detalle de cuentas por cobrar Otras cuentas por cobrar  4 [miembro]"]
[null,"1;1","co-svsp-core_2017-12-31:DetalleCuentasXCobrarOtrasCuentasXCobrar5Miembro","Detalle de cuentas por cobrar Otras cuentas por cobrar  5 [miembro]"]
[null,"1;1","co-svsp-core_2017-12-31:DetalleCuentasXCobrarOtrasCuentasXCobrar6Miembro","Detalle de cuentas por cobrar Otras cuentas por cobrar  6 [miembro]"]
[null,"1;1","co-svsp-core_2017-12-31:DetalleCuentasXCobrarOtrasCuentasXCobrar7Miembro","Detalle de cuentas por cobrar Otras cuentas por cobrar  7 [miembro]"]
[null,"1;1","co-svsp-core_2017-12-31:DetalleCuentasXCobrarOtrasCuentasXCobrar8Miembro","Detalle de cuentas por cobrar Otras cuentas por cobrar  8 [miembro]"]
[null,"1;1","co-svsp-core_2017-12-31:DetalleCuentasXCobrarOtrasCuentasXCobrar9Miembro","Detalle de cuentas por cobrar Otras cuentas por cobrar  9 [miembro]"]
[null,"1;1","co-svsp-core_2017-12-31:DetalleCuentasXCobrarOtrasCuentasXCobrar10Miembro","Detalle de cuentas por cobrar Otras cuentas por cobrar  10 [miembro]"]
[null,"1;1","co-svsp-core_2017-12-31:DetalleCuentasXCobrarOtrasCuentasXCobrar11Miembro","Detalle de cuentas por cobrar Otras cuentas por cobrar  11 [miembro]"]
[null,"1;1","co-svsp-core_2017-12-31:DetalleCuentasXCobrarOtrasCuentasXCobrar12Miembro","Detalle de cuentas por cobrar Otras cuentas por cobrar  12 [miembro]"]
[null,"1;1","co-svsp-core_2017-12-31:DetalleCuentasXCobrarOtrasCuentasXCobrar13Miembro","Detalle de cuentas por cobrar Otras cuentas por cobrar  13 [miembro]"]
[null,"1;1","co-svsp-core_2017-12-31:DetalleCuentasXCobrarOtrasCuentasXCobrar14Miembro","Detalle de cuentas por cobrar Otras cuentas por cobrar  14 [miembro]"]
[null,"1;1","co-svsp-core_2017-12-31:DetalleCuentasXCobrarOtrasCuentasXCobrar15Miembro","Detalle de cuentas por cobrar Otras cuentas por cobrar  15 [miembro]"]
[null,"1;1","co-svsp-core_2017-12-31:DetalleCuentasXCobrarOtrasCuentasXCobrar16Miembro","Detalle de cuentas por cobrar Otras cuentas por cobrar  16 [miembro]"]
[null,"1;1","co-svsp-core_2017-12-31:DetalleCuentasXCobrarOtrasCuentasXCobrar17Miembro","Detalle de cuentas por cobrar Otras cuentas por cobrar  17 [miembro]"]
[null,"1;1","co-svsp-core_2017-12-31:DetalleCuentasXCobrarOtrasCuentasXCobrar18Miembro","Detalle de cuentas por cobrar Otras cuentas por cobrar  18 [miembro]"]
[null,"1;1","co-svsp-core_2017-12-31:DetalleCuentasXCobrarOtrasCuentasXCobrar19Miembro","Detalle de cuentas por cobrar Otras cuentas por cobrar  19 [miembro]"]
[null,"1;1","co-svsp-core_2017-12-31:DetalleCuentasXCobrarOtrasCuentasXCobrar20Miembro","Detalle de cuentas por cobrar Otras cuentas por cobrar  20 [miembro]"]
[null,"1;1","co-svsp-core_2017-12-31:DetalleCuentasXCobrarOtrasCuentasXCobrar21Miembro","Detalle de cuentas por cobrar Otras cuentas por cobrar  21 [miembro]"]
[null,"1;1","co-svsp-core_2017-12-31:DetalleCuentasXCobrarOtrasCuentasXCobrar22Miembro","Detalle de cuentas por cobrar Otras cuentas por cobrar  22 [miembro]"]
[null,"1;1","co-svsp-core_2017-12-31:DetalleCuentasXCobrarOtrasCuentasXCobrar23Miembro","Detalle de cuentas por cobrar Otras cuentas por cobrar  23 [miembro]"]
[null,"1;1","co-svsp-core_2017-12-31:DetalleCuentasXCobrarOtrasCuentasXCobrar24Miembro","Detalle de cuentas por cobrar Otras cuentas por cobrar  24 [miembro]"]
[null,"1;1","co-svsp-core_2017-12-31:DetalleCuentasXCobrarOtrasCuentasXCobrar25Miembro","Detalle de cuentas por cobrar Otras cuentas por cobrar  25 [miembro]"]
[null,"1;1","co-svsp-core_2017-12-31:DetalleCuentasXCobrarOtrasCuentasXCobrar26Miembro","Detalle de cuentas por cobrar Otras cuentas por cobrar  26 [miembro]"]
[null,"1;1","co-svsp-core_2017-12-31:DetalleCuentasXCobrarOtrasCuentasXCobrar27Miembro","Detalle de cuentas por cobrar Otras cuentas por cobrar  27 [miembro]"]
[null,"1;1","co-svsp-core_2017-12-31:DetalleCuentasXCobrarOtrasCuentasXCobrar28Miembro","Detalle de cuentas por cobrar Otras cuentas por cobrar  28 [miembro]"]
[null,"1;1","co-svsp-core_2017-12-31:DetalleCuentasXCobrarOtrasCuentasXCobrar29Miembro","Detalle de cuentas por cobrar Otras cuentas por cobrar  29 [miembro]"]
[null,"1;1","co-svsp-core_2017-12-31:DetalleCuentasXCobrarOtrasCuentasXCobrar30Miembro","Detalle de cuentas por cobrar Otras cuentas por cobrar  30 [miembro]"]
[null,"1;1","co-svsp-core_2017-12-31:DetalleCuentasXCobrarOtrasCuentasXCobrar31Miembro","Detalle de cuentas por cobrar Otras cuentas por cobrar  31 [miembro]"]
[null,"1;1","co-svsp-core_2017-12-31:DetalleCuentasXCobrarOtrasCuentasXCobrar32Miembro","Detalle de cuentas por cobrar Otras cuentas por cobrar  32 [miembro]"]
[null,"1;1","co-svsp-core_2017-12-31:DetalleCuentasXCobrarOtrasCuentasXCobrar33Miembro","Detalle de cuentas por cobrar Otras cuentas por cobrar  33 [miembro]"]
[null,"1;1","co-svsp-core_2017-12-31:DetalleCuentasXCobrarOtrasCuentasXCobrar34Miembro","Detalle de cuentas por cobrar Otras cuentas por cobrar  34 [miembro]"]
[null,"1;1","co-svsp-core_2017-12-31:DetalleCuentasXCobrarOtrasCuentasXCobrar35Miembro","Detalle de cuentas por cobrar Otras cuentas por cobrar  35 [miembro]"]
[null,"1;1","co-svsp-core_2017-12-31:DetalleCuentasXCobrarOtrasCuentasXCobrar36Miembro","Detalle de cuentas por cobrar Otras cuentas por cobrar  36 [miembro]"]
[null,"1;1","co-svsp-core_2017-12-31:DetalleCuentasXCobrarOtrasCuentasXCobrar37Miembro","Detalle de cuentas por cobrar Otras cuentas por cobrar  37 [miembro]"]
[null,"1;1","co-svsp-core_2017-12-31:DetalleCuentasXCobrarOtrasCuentasXCobrar38Miembro","Detalle de cuentas por cobrar Otras cuentas por cobrar  38 [miembro]"]
[null,"1;1","co-svsp-core_2017-12-31:DetalleCuentasXCobrarOtrasCuentasXCobrar39Miembro","Detalle de cuentas por cobrar Otras cuentas por cobrar  39 [miembro]"]
[null,"1;1","co-svsp-core_2017-12-31:DetalleCuentasXCobrarOtrasCuentasXCobrar40Miembro","Detalle de cuentas por cobrar Otras cuentas por cobrar  40 [miembro]"]
[null,"1;1","co-svsp-core_2017-12-31:DetalleCuentasXCobrarOtrasCuentasXCobrar41Miembro","Detalle de cuentas por cobrar Otras cuentas por cobrar  41 [miembro]"]
[null,"1;1","co-svsp-core_2017-12-31:DetalleCuentasXCobrarOtrasCuentasXCobrar42Miembro","Detalle de cuentas por cobrar Otras cuentas por cobrar  42 [miembro]"]
[null,"1;1","co-svsp-core_2017-12-31:DetalleCuentasXCobrarOtrasCuentasXCobrar43Miembro","Detalle de cuentas por cobrar Otras cuentas por cobrar  43 [miembro]"]
[null,"1;1","co-svsp-core_2017-12-31:DetalleCuentasXCobrarOtrasCuentasXCobrar44Miembro","Detalle de cuentas por cobrar Otras cuentas por cobrar  44 [miembro]"]
[null,"1;1","co-svsp-core_2017-12-31:DetalleCuentasXCobrarOtrasCuentasXCobrar45Miembro","Detalle de cuentas por cobrar Otras cuentas por cobrar  45 [miembro]"]
[null,"1;1","co-svsp-core_2017-12-31:DetalleCuentasXCobrarOtrasCuentasXCobrar46Miembro","Detalle de cuentas por cobrar Otras cuentas por cobrar  46 [miembro]"]
[null,"1;1","co-svsp-core_2017-12-31:DetalleCuentasXCobrarOtrasCuentasXCobrar47Miembro","Detalle de cuentas por cobrar Otras cuentas por cobrar  47 [miembro]"]
[null,"1;1","co-svsp-core_2017-12-31:DetalleCuentasXCobrarOtrasCuentasXCobrar48Miembro","Detalle de cuentas por cobrar Otras cuentas por cobrar  48 [miembro]"]
[null,"1;1","co-svsp-core_2017-12-31:DetalleCuentasXCobrarOtrasCuentasXCobrar49Miembro","Detalle de cuentas por cobrar Otras cuentas por cobrar  49 [miembro]"]
[null,"1;1","co-svsp-core_2017-12-31:DetalleCuentasXCobrarOtrasCuentasXCobrar50Miembro","Detalle de cuentas por cobrar Otras cuentas por cobrar  50 [miembro]"]
[null,"1;1","co-svsp-core_2017-12-31:DetalleCuentasXCobrarOtrasCuentasXCobrar51EnAdelante","Detalle de cuentas por cobrar Otras cuentas por cobrar  51 en adelante [miembro]"]
[null,"1;1","co-svsp-core_2017-12-31:TotalDetalleCuentasXCobrarOtrasCuentasXCobrarMiembro","Total Detalle de cuentas por cobrar, otras cuentas por cobrar [miembro]",null,null,null,null,null,null,null,null,null,null,null,{"$f":"SUM(P120:P170)","v":0}]
[null,"1;1","co-svsp-core_2017-12-31:TotalDetalleCuentasXCobrarMiembro","Total Detalle de cuentas por cobrar [miembro]",null,null,null,null,null,null,null,null,null,null,null,{"$f":"+P171+P118+P65","v":0},null,{"$f":"IF(P172='210000 - Est. Situa. Financiera'!E17+'210000 - Est. Situa. Financiera'!E33,\"CORRECTO\",\"La información registrada en este formulario para '\"&D172&\"' en la columna '\"&$P$11&\"' para del periodo actual, debe ser igual al reportado en el Estado de Situación Financiera\")","v":"CORRECTO"},null,{"$f":"IF(R172=\"CORRECTO\",0,1)","v":0}]
[]
[]
[]
[]
[]
[]
[null,null,null,null,"2016-12-31"]
[null,null,null,null,"Detalle de Cuentas por cobrar"]
[null,null,null,null,"co-svsp-core_2017-12-31:TipoDeDocumentoDeudorCxC","co-svsp-core_2017-12-31:NumeroIdentificacionDeudorCxC","co-svsp-core_2017-12-31:PrimerApellidoDeudorCxC","co-svsp-core_2017-12-31:SegundoApellidoDeudorCxC","co-svsp-core_2017-12-31:PrimerNombreDeudorCxC","co-svsp-core_2017-12-31:OtrosNombresDeudorCxC","co-svsp-core_2017-12-31:RazonSocialDeudorCxC","co-svsp-core_2017-12-31:DireccionDeudorCxC","co-svsp-core_2017-12-31:DepartamentoDeudorCxC","co-svsp-core_2017-12-31:MunicipioDeudorCxC","co-svsp-core_2017-12-31:PaisDeudorCxC","co-svsp-core_2017-12-31:SaldoCuentasPorCobrarCxC"]
[null,null,null,"co-svsp-core_2017-12-31:DetalleCuentasXCobrar_Eje","Tipo de documento del deudor","Número de identificación del deudor","Primer apellido deudor","Segundo apellido deudor","Primer nombre deudor","Otros nombres deudor","Razón Social deudor","Dirección deudor","Departamento deudor","Municipio deudor","País deudor","Saldo cuentas por cobrar"]
[null,"1;2","co-svsp-core_2017-12-31:RelacionCuentasXCobrarMiembro","Relación de cuentas por cobrar [miembro]"]
[null,"1;2","co-svsp-core_2017-12-31:RelacionCuentasXCobrarClientesMiembro","Relación de cuentas por cobrar clientes [miembro]"]
[null,"1;2","co-svsp-core_2017-12-31:DetalleCuentasXCobrarClientes1Miembro","Detalle de cuentas por cobrar clientes 1 [miembro]"]
[null,"1;2","co-svsp-core_2017-12-31:DetalleCuentasXCobrarClientes2Miembro","Detalle de cuentas por cobrar clientes 2 [miembro]"]
[null,"1;2","co-svsp-core_2017-12-31:DetalleCuentasXCobrarClientes3Miembro","Detalle de cuentas por cobrar clientes 3 [miembro]"]
[null,"1;2","co-svsp-core_2017-12-31:DetalleCuentasXCobrarClientes4Miembro","Detalle de cuentas por cobrar clientes 4 [miembro]"]
[null,"1;2","co-svsp-core_2017-12-31:DetalleCuentasXCobrarClientes5Miembro","Detalle de cuentas por cobrar clientes 5 [miembro]"]
[null,"1;2","co-svsp-core_2017-12-31:DetalleCuentasXCobrarClientes6Miembro","Detalle de cuentas por cobrar clientes 6 [miembro]"]
[null,"1;2","co-svsp-core_2017-12-31:DetalleCuentasXCobrarClientes7Miembro","Detalle de cuentas por cobrar clientes 7 [miembro]"]
[null,"1;2","co-svsp-core_2017-12-31:DetalleCuentasXCobrarClientes8Miembro","Detalle de cuentas por cobrar clientes 8 [miembro]"]
[null,"1;2","co-svsp-core_2017-12-31:DetalleCuentasXCobrarClientes9Miembro","Detalle de cuentas por cobrar clientes 9 [miembro]"]
[null,"1;2","co-svsp-core_2017-12-31:DetalleCuentasXCobrarClientes10Miembro","Detalle de cuentas por cobrar clientes 10 [miembro]"]
[null,"1;2","co-svsp-core_2017-12-31:DetalleCuentasXCobrarClientes11Miembro","Detalle de cuentas por cobrar clientes 11 [miembro]"]
[null,"1;2","co-svsp-core_2017-12-31:DetalleCuentasXCobrarClientes12Miembro","Detalle de cuentas por cobrar clientes 12 [miembro]"]
[null,"1;2","co-svsp-core_2017-12-31:DetalleCuentasXCobrarClientes13Miembro","Detalle de cuentas por cobrar clientes 13 [miembro]"]
[null,"1;2","co-svsp-core_2017-12-31:DetalleCuentasXCobrarClientes14Miembro","Detalle de cuentas por cobrar clientes 14 [miembro]"]
[null,"1;2","co-svsp-core_2017-12-31:DetalleCuentasXCobrarClientes15Miembro","Detalle de cuentas por cobrar clientes 15 [miembro]"]
[null,"1;2","co-svsp-core_2017-12-31:DetalleCuentasXCobrarClientes16Miembro","Detalle de cuentas por cobrar clientes 16 [miembro]"]
[null,"1;2","co-svsp-core_2017-12-31:DetalleCuentasXCobrarClientes17Miembro","Detalle de cuentas por cobrar clientes 17 [miembro]"]
[null,"1;2","co-svsp-core_2017-12-31:DetalleCuentasXCobrarClientes18Miembro","Detalle de cuentas por cobrar clientes 18 [miembro]"]
[null,"1;2","co-svsp-core_2017-12-31:DetalleCuentasXCobrarClientes19Miembro","Detalle de cuentas por cobrar clientes 19 [miembro]"]
[null,"1;2","co-svsp-core_2017-12-31:DetalleCuentasXCobrarClientes20Miembro","Detalle de cuentas por cobrar clientes 20 [miembro]"]
[null,"1;2","co-svsp-core_2017-12-31:DetalleCuentasXCobrarClientes21Miembro","Detalle de cuentas por cobrar clientes 21 [miembro]"]
[null,"1;2","co-svsp-core_2017-12-31:DetalleCuentasXCobrarClientes22Miembro","Detalle de cuentas por cobrar clientes 22 [miembro]"]
[null,"1;2","co-svsp-core_2017-12-31:DetalleCuentasXCobrarClientes23Miembro","Detalle de cuentas por cobrar clientes 23 [miembro]"]
[null,"1;2","co-svsp-core_2017-12-31:DetalleCuentasXCobrarClientes24Miembro","Detalle de cuentas por cobrar clientes 24 [miembro]"]
[null,"1;2","co-svsp-core_2017-12-31:DetalleCuentasXCobrarClientes25Miembro","Detalle de cuentas por cobrar clientes 25 [miembro]"]
[null,"1;2","co-svsp-core_2017-12-31:DetalleCuentasXCobrarClientes26Miembro","Detalle de cuentas por cobrar clientes 26 [miembro]"]
[null,"1;2","co-svsp-core_2017-12-31:DetalleCuentasXCobrarClientes27Miembro","Detalle de cuentas por cobrar clientes 27 [miembro]"]
[null,"1;2","co-svsp-core_2017-12-31:DetalleCuentasXCobrarClientes28Miembro","Detalle de cuentas por cobrar clientes 28 [miembro]"]
[null,"1;2","co-svsp-core_2017-12-31:DetalleCuentasXCobrarClientes29Miembro","Detalle de cuentas por cobrar clientes 29 [miembro]"]
[null,"1;2","co-svsp-core_2017-12-31:DetalleCuentasXCobrarClientes30Miembro","Detalle de cuentas por cobrar clientes 30 [miembro]"]
[null,"1;2","co-svsp-core_2017-12-31:DetalleCuentasXCobrarClientes31Miembro","Detalle de cuentas por cobrar clientes 31 [miembro]"]
[null,"1;2","co-svsp-core_2017-12-31:DetalleCuentasXCobrarClientes32Miembro","Detalle de cuentas por cobrar clientes 32 [miembro]"]
[null,"1;2","co-svsp-core_2017-12-31:DetalleCuentasXCobrarClientes33Miembro","Detalle de cuentas por cobrar clientes 33 [miembro]"]
[null,"1;2","co-svsp-core_2017-12-31:DetalleCuentasXCobrarClientes34Miembro","Detalle de cuentas por cobrar clientes 34 [miembro]"]
[null,"1;2","co-svsp-core_2017-12-31:DetalleCuentasXCobrarClientes35Miembro","Detalle de cuentas por cobrar clientes 35 [miembro]"]
[null,"1;2","co-svsp-core_2017-12-31:DetalleCuentasXCobrarClientes36Miembro","Detalle de cuentas por cobrar clientes 36 [miembro]"]
[null,"1;2","co-svsp-core_2017-12-31:DetalleCuentasXCobrarClientes37Miembro","Detalle de cuentas por cobrar clientes 37 [miembro]"]
[null,"1;2","co-svsp-core_2017-12-31:DetalleCuentasXCobrarClientes38Miembro","Detalle de cuentas por cobrar clientes 38 [miembro]"]
[null,"1;2","co-svsp-core_2017-12-31:DetalleCuentasXCobrarClientes39Miembro","Detalle de cuentas por cobrar clientes 39 [miembro]"]
[null,"1;2","co-svsp-core_2017-12-31:DetalleCuentasXCobrarClientes40Miembro","Detalle de cuentas por cobrar clientes 40 [miembro]"]
[null,"1;2","co-svsp-core_2017-12-31:DetalleCuentasXCobrarClientes41Miembro","Detalle de cuentas por cobrar clientes 41 [miembro]"]
[null,"1;2","co-svsp-core_2017-12-31:DetalleCuentasXCobrarClientes42Miembro","Detalle de cuentas por cobrar clientes 42 [miembro]"]
[null,"1;2","co-svsp-core_2017-12-31:DetalleCuentasXCobrarClientes43Miembro","Detalle de cuentas por cobrar clientes 43 [miembro]"]
[null,"1;2","co-svsp-core_2017-12-31:DetalleCuentasXCobrarClientes44Miembro","Detalle de cuentas por cobrar clientes 44 [miembro]"]
[null,"1;2","co-svsp-core_2017-12-31:DetalleCuentasXCobrarClientes45Miembro","Detalle de cuentas por cobrar clientes 45 [miembro]"]
[null,"1;2","co-svsp-core_2017-12-31:DetalleCuentasXCobrarClientes46Miembro","Detalle de cuentas por cobrar clientes 46 [miembro]"]
[null,"1;2","co-svsp-core_2017-12-31:DetalleCuentasXCobrarClientes47Miembro","Detalle de cuentas por cobrar clientes 47 [miembro]"]
[null,"1;2","co-svsp-core_2017-12-31:DetalleCuentasXCobrarClientes48Miembro","Detalle de cuentas por cobrar clientes 48 [miembro]"]
[null,"1;2","co-svsp-core_2017-12-31:DetalleCuentasXCobrarClientes49Miembro","Detalle de cuentas por cobrar clientes 49 [miembro]"]
[null,"1;2","co-svsp-core_2017-12-31:DetalleCuentasXCobrarClientes50Miembro","Detalle de cuentas por cobrar clientes 50 [miembro]"]
[null,"1;2","co-svsp-core_2017-12-31:DetalleCuentasXCobrarClientes51EnAdelante","Detalle de cuentas por cobrar clientes 51 en adelante [miembro]"]
[null,"1;2","co-svsp-core_2017-12-31:TotalDetalleCuentasXCobrarClientesMiembro","Total Detalle de cuentas por cobrar clientes [miembro]",null,null,null,null,null,null,null,null,null,null,null,{"$f":"SUM(P185:P235)","v":0}]
[null,"1;2","co-svsp-core_2017-12-31:RelacionCuentasXCobrarAccionistasSociosVinculadasMiembro","Relación de cuentas por cobrar, compañías accionostas, socios y compañías vinculadas [miembro]"]
[null,"1;2","co-svsp-core_2017-12-31:DetalleCuentasXCobrarAccionistasSociosVinculadas1Miembro","Detalle de cuentas por cobrar a accionistas, socios o vinculadas 1 [miembro]"]
[null,"1;2","co-svsp-core_2017-12-31:DetalleCuentasXCobrarAccionistasSociosVinculadas2Miembro","Detalle de cuentas por cobrar a accionistas, socios o vinculadas 2 [miembro]"]
[null,"1;2","co-svsp-core_2017-12-31:DetalleCuentasXCobrarAccionistasSociosVinculadas3Miembro","Detalle de cuentas por cobrar a accionistas, socios o vinculadas 3 [miembro]"]
[null,"1;2","co-svsp-core_2017-12-31:DetalleCuentasXCobrarAccionistasSociosVinculadas4Miembro","Detalle de cuentas por cobrar a accionistas, socios o vinculadas 4 [miembro]"]
[null,"1;2","co-svsp-core_2017-12-31:DetalleCuentasXCobrarAccionistasSociosVinculadas5Miembro","Detalle de cuentas por cobrar a accionistas, socios o vinculadas 5 [miembro]"]
[null,"1;2","co-svsp-core_2017-12-31:DetalleCuentasXCobrarAccionistasSociosVinculadas6Miembro","Detalle de cuentas por cobrar a accionistas, socios o vinculadas 6 [miembro]"]
[null,"1;2","co-svsp-core_2017-12-31:DetalleCuentasXCobrarAccionistasSociosVinculadas7Miembro","Detalle de cuentas por cobrar a accionistas, socios o vinculadas 7 [miembro]"]
[null,"1;2","co-svsp-core_2017-12-31:DetalleCuentasXCobrarAccionistasSociosVinculadas8Miembro","Detalle de cuentas por cobrar a accionistas, socios o vinculadas 8 [miembro]"]
[null,"1;2","co-svsp-core_2017-12-31:DetalleCuentasXCobrarAccionistasSociosVinculadas9Miembro","Detalle de cuentas por cobrar a accionistas, socios o vinculadas 9 [miembro]"]
[null,"1;2","co-svsp-core_2017-12-31:DetalleCuentasXCobrarAccionistasSociosVinculadas10Miembro","Detalle de cuentas por cobrar a accionistas, socios o vinculadas 10 [miembro]"]
[null,"1;2","co-svsp-core_2017-12-31:DetalleCuentasXCobrarAccionistasSociosVinculadas11Miembro","Detalle de cuentas por cobrar a accionistas, socios o vinculadas 11 [miembro]"]
[null,"1;2","co-svsp-core_2017-12-31:DetalleCuentasXCobrarAccionistasSociosVinculadas12Miembro","Detalle de cuentas por cobrar a accionistas, socios o vinculadas 12 [miembro]"]
[null,"1;2","co-svsp-core_2017-12-31:DetalleCuentasXCobrarAccionistasSociosVinculadas13Miembro","Detalle de cuentas por cobrar a accionistas, socios o vinculadas 13 [miembro]"]
[null,"1;2","co-svsp-core_2017-12-31:DetalleCuentasXCobrarAccionistasSociosVinculadas14Miembro","Detalle de cuentas por cobrar a accionistas, socios o vinculadas 14 [miembro]"]
[null,"1;2","co-svsp-core_2017-12-31:DetalleCuentasXCobrarAccionistasSociosVinculadas15Miembro","Detalle de cuentas por cobrar a accionistas, socios o vinculadas 15 [miembro]"]
[null,"1;2","co-svsp-core_2017-12-31:DetalleCuentasXCobrarAccionistasSociosVinculadas16Miembro","Detalle de cuentas por cobrar a accionistas, socios o vinculadas 16 [miembro]"]
[null,"1;2","co-svsp-core_2017-12-31:DetalleCuentasXCobrarAccionistasSociosVinculadas17Miembro","Detalle de cuentas por cobrar a accionistas, socios o vinculadas 17 [miembro]"]
[null,"1;2","co-svsp-core_2017-12-31:DetalleCuentasXCobrarAccionistasSociosVinculadas18Miembro","Detalle de cuentas por cobrar a accionistas, socios o vinculadas 18 [miembro]"]
[null,"1;2","co-svsp-core_2017-12-31:DetalleCuentasXCobrarAccionistasSociosVinculadas19Miembro","Detalle de cuentas por cobrar a accionistas, socios o vinculadas 19 [miembro]"]
[null,"1;2","co-svsp-core_2017-12-31:DetalleCuentasXCobrarAccionistasSociosVinculadas20Miembro","Detalle de cuentas por cobrar a accionistas, socios o vinculadas 20 [miembro]"]
[null,"1;2","co-svsp-core_2017-12-31:DetalleCuentasXCobrarAccionistasSociosVinculadas21Miembro","Detalle de cuentas por cobrar a accionistas, socios o vinculadas 21 [miembro]"]
[null,"1;2","co-svsp-core_2017-12-31:DetalleCuentasXCobrarAccionistasSociosVinculadas22Miembro","Detalle de cuentas por cobrar a accionistas, socios o vinculadas 22 [miembro]"]
[null,"1;2","co-svsp-core_2017-12-31:DetalleCuentasXCobrarAccionistasSociosVinculadas23Miembro","Detalle de cuentas por cobrar a accionistas, socios o vinculadas 23 [miembro]"]
[null,"1;2","co-svsp-core_2017-12-31:DetalleCuentasXCobrarAccionistasSociosVinculadas24Miembro","Detalle de cuentas por cobrar a accionistas, socios o vinculadas 24 [miembro]"]
[null,"1;2","co-svsp-core_2017-12-31:DetalleCuentasXCobrarAccionistasSociosVinculadas25Miembro","Detalle de cuentas por cobrar a accionistas, socios o vinculadas 25 [miembro]"]
[null,"1;2","co-svsp-core_2017-12-31:DetalleCuentasXCobrarAccionistasSociosVinculadas26Miembro","Detalle de cuentas por cobrar a accionistas, socios o vinculadas 26 [miembro]"]
[null,"1;2","co-svsp-core_2017-12-31:DetalleCuentasXCobrarAccionistasSociosVinculadas27Miembro","Detalle de cuentas por cobrar a accionistas, socios o vinculadas 27 [miembro]"]
[null,"1;2","co-svsp-core_2017-12-31:DetalleCuentasXCobrarAccionistasSociosVinculadas28Miembro","Detalle de cuentas por cobrar a accionistas, socios o vinculadas 28 [miembro]"]
[null,"1;2","co-svsp-core_2017-12-31:DetalleCuentasXCobrarAccionistasSociosVinculadas29Miembro","Detalle de cuentas por cobrar a accionistas, socios o vinculadas 29 [miembro]"]
[null,"1;2","co-svsp-core_2017-12-31:DetalleCuentasXCobrarAccionistasSociosVinculadas30Miembro","Detalle de cuentas por cobrar a accionistas, socios o vinculadas 30 [miembro]"]
[null,"1;2","co-svsp-core_2017-12-31:DetalleCuentasXCobrarAccionistasSociosVinculadas31Miembro","Detalle de cuentas por cobrar a accionistas, socios o vinculadas 31 [miembro]"]
[null,"1;2","co-svsp-core_2017-12-31:DetalleCuentasXCobrarAccionistasSociosVinculadas32Miembro","Detalle de cuentas por cobrar a accionistas, socios o vinculadas 32 [miembro]"]
[null,"1;2","co-svsp-core_2017-12-31:DetalleCuentasXCobrarAccionistasSociosVinculadas33Miembro","Detalle de cuentas por cobrar a accionistas, socios o vinculadas 33 [miembro]"]
[null,"1;2","co-svsp-core_2017-12-31:DetalleCuentasXCobrarAccionistasSociosVinculadas34Miembro","Detalle de cuentas por cobrar a accionistas, socios o vinculadas 34 [miembro]"]
[null,"1;2","co-svsp-core_2017-12-31:DetalleCuentasXCobrarAccionistasSociosVinculadas35Miembro","Detalle de cuentas por cobrar a accionistas, socios o vinculadas 35 [miembro]"]
[null,"1;2","co-svsp-core_2017-12-31:DetalleCuentasXCobrarAccionistasSociosVinculadas36Miembro","Detalle de cuentas por cobrar a accionistas, socios o vinculadas 36 [miembro]"]
[null,"1;2","co-svsp-core_2017-12-31:DetalleCuentasXCobrarAccionistasSociosVinculadas37Miembro","Detalle de cuentas por cobrar a accionistas, socios o vinculadas 37 [miembro]"]
[null,"1;2","co-svsp-core_2017-12-31:DetalleCuentasXCobrarAccionistasSociosVinculadas38Miembro","Detalle de cuentas por cobrar a accionistas, socios o vinculadas 38 [miembro]"]
[null,"1;2","co-svsp-core_2017-12-31:DetalleCuentasXCobrarAccionistasSociosVinculadas39Miembro","Detalle de cuentas por cobrar a accionistas, socios o vinculadas 39 [miembro]"]
[null,"1;2","co-svsp-core_2017-12-31:DetalleCuentasXCobrarAccionistasSociosVinculadas40Miembro","Detalle de cuentas por cobrar a accionistas, socios o vinculadas 40 [miembro]"]
[null,"1;2","co-svsp-core_2017-12-31:DetalleCuentasXCobrarAccionistasSociosVinculadas41Miembro","Detalle de cuentas por cobrar a accionistas, socios o vinculadas 41 [miembro]"]
[null,"1;2","co-svsp-core_2017-12-31:DetalleCuentasXCobrarAccionistasSociosVinculadas42Miembro","Detalle de cuentas por cobrar a accionistas, socios o vinculadas 42 [miembro]"]
[null,"1;2","co-svsp-core_2017-12-31:DetalleCuentasXCobrarAccionistasSociosVinculadas43Miembro","Detalle de cuentas por cobrar a accionistas, socios o vinculadas 43 [miembro]"]
[null,"1;2","co-svsp-core_2017-12-31:DetalleCuentasXCobrarAccionistasSociosVinculadas44Miembro","Detalle de cuentas por cobrar a accionistas, socios o vinculadas 44 [miembro]"]
[null,"1;2","co-svsp-core_2017-12-31:DetalleCuentasXCobrarAccionistasSociosVinculadas45Miembro","Detalle de cuentas por cobrar a accionistas, socios o vinculadas 45 [miembro]"]
[null,"1;2","co-svsp-core_2017-12-31:DetalleCuentasXCobrarAccionistasSociosVinculadas46Miembro","Detalle de cuentas por cobrar a accionistas, socios o vinculadas 46 [miembro]"]
[null,"1;2","co-svsp-core_2017-12-31:DetalleCuentasXCobrarAccionistasSociosVinculadas47Miembro","Detalle de cuentas por cobrar a accionistas, socios o vinculadas 47 [miembro]"]
[null,"1;2","co-svsp-core_2017-12-31:DetalleCuentasXCobrarAccionistasSociosVinculadas48Miembro","Detalle de cuentas por cobrar a accionistas, socios o vinculadas 48 [miembro]"]
[null,"1;2","co-svsp-core_2017-12-31:DetalleCuentasXCobrarAccionistasSociosVinculadas49Miembro","Detalle de cuentas por cobrar a accionistas, socios o vinculadas 49 [miembro]"]
[null,"1;2","co-svsp-core_2017-12-31:DetalleCuentasXCobrarAccionistasSociosVinculadas50Miembro","Detalle de cuentas por cobrar a accionistas, socios o vinculadas 50 [miembro]"]
[null,"1;2","co-svsp-core_2017-12-31:DetalleCuentasXCobrarAccionistasSociosVinculadas51EnAdelante","Detalle de cuentas por cobrar a accionistas, socios o vinculadas 51 en adelante [miembro]"]
[null,"1;2","co-svsp-core_2017-12-31:TotalDetalleCuentasXCobrarAccionistasSociosVinculadasMiembro","Total Detalle de cuentas por cobrar a accionistas, socios o vinculadas [miembro]",null,null,null,null,null,null,null,null,null,null,null,{"$f":"SUM(P238:P288)","v":0}]
[null,"1;2","co-svsp-core_2017-12-31:RelacionCuentasXCobrarOtrasCuentasXCobrarMiembro","Relación de otras cuentas por cobrar [miembro]"]
[null,"1;2","co-svsp-core_2017-12-31:DetalleCuentasXCobrarOtrasCuentasXCobrar1Miembro","Detalle de cuentas por cobrar Otras cuentas por cobrar  1 [miembro]"]
[null,"1;2","co-svsp-core_2017-12-31:DetalleCuentasXCobrarOtrasCuentasXCobrar2Miembro","Detalle de cuentas por cobrar Otras cuentas por cobrar  2 [miembro]"]
[null,"1;2","co-svsp-core_2017-12-31:DetalleCuentasXCobrarOtrasCuentasXCobrar3Miembro","Detalle de cuentas por cobrar Otras cuentas por cobrar  3 [miembro]"]
[null,"1;2","co-svsp-core_2017-12-31:DetalleCuentasXCobrarOtrasCuentasXCobrar4Miembro","Detalle de cuentas por cobrar Otras cuentas por cobrar  4 [miembro]"]
[null,"1;2","co-svsp-core_2017-12-31:DetalleCuentasXCobrarOtrasCuentasXCobrar5Miembro","Detalle de cuentas por cobrar Otras cuentas por cobrar  5 [miembro]"]
[null,"1;2","co-svsp-core_2017-12-31:DetalleCuentasXCobrarOtrasCuentasXCobrar6Miembro","Detalle de cuentas por cobrar Otras cuentas por cobrar  6 [miembro]"]
[null,"1;2","co-svsp-core_2017-12-31:DetalleCuentasXCobrarOtrasCuentasXCobrar7Miembro","Detalle de cuentas por cobrar Otras cuentas por cobrar  7 [miembro]"]
[null,"1;2","co-svsp-core_2017-12-31:DetalleCuentasXCobrarOtrasCuentasXCobrar8Miembro","Detalle de cuentas por cobrar Otras cuentas por cobrar  8 [miembro]"]
[null,"1;2","co-svsp-core_2017-12-31:DetalleCuentasXCobrarOtrasCuentasXCobrar9Miembro","Detalle de cuentas por cobrar Otras cuentas por cobrar  9 [miembro]"]
[null,"1;2","co-svsp-core_2017-12-31:DetalleCuentasXCobrarOtrasCuentasXCobrar10Miembro","Detalle de cuentas por cobrar Otras cuentas por cobrar  10 [miembro]"]
[null,"1;2","co-svsp-core_2017-12-31:DetalleCuentasXCobrarOtrasCuentasXCobrar11Miembro","Detalle de cuentas por cobrar Otras cuentas por cobrar  11 [miembro]"]
[null,"1;2","co-svsp-core_2017-12-31:DetalleCuentasXCobrarOtrasCuentasXCobrar12Miembro","Detalle de cuentas por cobrar Otras cuentas por cobrar  12 [miembro]"]
[null,"1;2","co-svsp-core_2017-12-31:DetalleCuentasXCobrarOtrasCuentasXCobrar13Miembro","Detalle de cuentas por cobrar Otras cuentas por cobrar  13 [miembro]"]
[null,"1;2","co-svsp-core_2017-12-31:DetalleCuentasXCobrarOtrasCuentasXCobrar14Miembro","Detalle de cuentas por cobrar Otras cuentas por cobrar  14 [miembro]"]
[null,"1;2","co-svsp-core_2017-12-31:DetalleCuentasXCobrarOtrasCuentasXCobrar15Miembro","Detalle de cuentas por cobrar Otras cuentas por cobrar  15 [miembro]"]
[null,"1;2","co-svsp-core_2017-12-31:DetalleCuentasXCobrarOtrasCuentasXCobrar16Miembro","Detalle de cuentas por cobrar Otras cuentas por cobrar  16 [miembro]"]
[null,"1;2","co-svsp-core_2017-12-31:DetalleCuentasXCobrarOtrasCuentasXCobrar17Miembro","Detalle de cuentas por cobrar Otras cuentas por cobrar  17 [miembro]"]
[null,"1;2","co-svsp-core_2017-12-31:DetalleCuentasXCobrarOtrasCuentasXCobrar18Miembro","Detalle de cuentas por cobrar Otras cuentas por cobrar  18 [miembro]"]
[null,"1;2","co-svsp-core_2017-12-31:DetalleCuentasXCobrarOtrasCuentasXCobrar19Miembro","Detalle de cuentas por cobrar Otras cuentas por cobrar  19 [miembro]"]
[null,"1;2","co-svsp-core_2017-12-31:DetalleCuentasXCobrarOtrasCuentasXCobrar20Miembro","Detalle de cuentas por cobrar Otras cuentas por cobrar  20 [miembro]"]
[null,"1;2","co-svsp-core_2017-12-31:DetalleCuentasXCobrarOtrasCuentasXCobrar21Miembro","Detalle de cuentas por cobrar Otras cuentas por cobrar  21 [miembro]"]
[null,"1;2","co-svsp-core_2017-12-31:DetalleCuentasXCobrarOtrasCuentasXCobrar22Miembro","Detalle de cuentas por cobrar Otras cuentas por cobrar  22 [miembro]"]
[null,"1;2","co-svsp-core_2017-12-31:DetalleCuentasXCobrarOtrasCuentasXCobrar23Miembro","Detalle de cuentas por cobrar Otras cuentas por cobrar  23 [miembro]"]
[null,"1;2","co-svsp-core_2017-12-31:DetalleCuentasXCobrarOtrasCuentasXCobrar24Miembro","Detalle de cuentas por cobrar Otras cuentas por cobrar  24 [miembro]"]
[null,"1;2","co-svsp-core_2017-12-31:DetalleCuentasXCobrarOtrasCuentasXCobrar25Miembro","Detalle de cuentas por cobrar Otras cuentas por cobrar  25 [miembro]"]
[null,"1;2","co-svsp-core_2017-12-31:DetalleCuentasXCobrarOtrasCuentasXCobrar26Miembro","Detalle de cuentas por cobrar Otras cuentas por cobrar  26 [miembro]"]
[null,"1;2","co-svsp-core_2017-12-31:DetalleCuentasXCobrarOtrasCuentasXCobrar27Miembro","Detalle de cuentas por cobrar Otras cuentas por cobrar  27 [miembro]"]
[null,"1;2","co-svsp-core_2017-12-31:DetalleCuentasXCobrarOtrasCuentasXCobrar28Miembro","Detalle de cuentas por cobrar Otras cuentas por cobrar  28 [miembro]"]
[null,"1;2","co-svsp-core_2017-12-31:DetalleCuentasXCobrarOtrasCuentasXCobrar29Miembro","Detalle de cuentas por cobrar Otras cuentas por cobrar  29 [miembro]"]
[null,"1;2","co-svsp-core_2017-12-31:DetalleCuentasXCobrarOtrasCuentasXCobrar30Miembro","Detalle de cuentas por cobrar Otras cuentas por cobrar  30 [miembro]"]
[null,"1;2","co-svsp-core_2017-12-31:DetalleCuentasXCobrarOtrasCuentasXCobrar31Miembro","Detalle de cuentas por cobrar Otras cuentas por cobrar  31 [miembro]"]
[null,"1;2","co-svsp-core_2017-12-31:DetalleCuentasXCobrarOtrasCuentasXCobrar32Miembro","Detalle de cuentas por cobrar Otras cuentas por cobrar  32 [miembro]"]
[null,"1;2","co-svsp-core_2017-12-31:DetalleCuentasXCobrarOtrasCuentasXCobrar33Miembro","Detalle de cuentas por cobrar Otras cuentas por cobrar  33 [miembro]"]
[null,"1;2","co-svsp-core_2017-12-31:DetalleCuentasXCobrarOtrasCuentasXCobrar34Miembro","Detalle de cuentas por cobrar Otras cuentas por cobrar  34 [miembro]"]
[null,"1;2","co-svsp-core_2017-12-31:DetalleCuentasXCobrarOtrasCuentasXCobrar35Miembro","Detalle de cuentas por cobrar Otras cuentas por cobrar  35 [miembro]"]
[null,"1;2","co-svsp-core_2017-12-31:DetalleCuentasXCobrarOtrasCuentasXCobrar36Miembro","Detalle de cuentas por cobrar Otras cuentas por cobrar  36 [miembro]"]
[null,"1;2","co-svsp-core_2017-12-31:DetalleCuentasXCobrarOtrasCuentasXCobrar37Miembro","Detalle de cuentas por cobrar Otras cuentas por cobrar  37 [miembro]"]
[null,"1;2","co-svsp-core_2017-12-31:DetalleCuentasXCobrarOtrasCuentasXCobrar38Miembro","Detalle de cuentas por cobrar Otras cuentas por cobrar  38 [miembro]"]
[null,"1;2","co-svsp-core_2017-12-31:DetalleCuentasXCobrarOtrasCuentasXCobrar39Miembro","Detalle de cuentas por cobrar Otras cuentas por cobrar  39 [miembro]"]
[null,"1;2","co-svsp-core_2017-12-31:DetalleCuentasXCobrarOtrasCuentasXCobrar40Miembro","Detalle de cuentas por cobrar Otras cuentas por cobrar  40 [miembro]"]
[null,"1;2","co-svsp-core_2017-12-31:DetalleCuentasXCobrarOtrasCuentasXCobrar41Miembro","Detalle de cuentas por cobrar Otras cuentas por cobrar  41 [miembro]"]
[null,"1;2","co-svsp-core_2017-12-31:DetalleCuentasXCobrarOtrasCuentasXCobrar42Miembro","Detalle de cuentas por cobrar Otras cuentas por cobrar  42 [miembro]"]
[null,"1;2","co-svsp-core_2017-12-31:DetalleCuentasXCobrarOtrasCuentasXCobrar43Miembro","Detalle de cuentas por cobrar Otras cuentas por cobrar  43 [miembro]"]
[null,"1;2","co-svsp-core_2017-12-31:DetalleCuentasXCobrarOtrasCuentasXCobrar44Miembro","Detalle de cuentas por cobrar Otras cuentas por cobrar  44 [miembro]"]
[null,"1;2","co-svsp-core_2017-12-31:DetalleCuentasXCobrarOtrasCuentasXCobrar45Miembro","Detalle de cuentas por cobrar Otras cuentas por cobrar  45 [miembro]"]
[null,"1;2","co-svsp-core_2017-12-31:DetalleCuentasXCobrarOtrasCuentasXCobrar46Miembro","Detalle de cuentas por cobrar Otras cuentas por cobrar  46 [miembro]"]
[null,"1;2","co-svsp-core_2017-12-31:DetalleCuentasXCobrarOtrasCuentasXCobrar47Miembro","Detalle de cuentas por cobrar Otras cuentas por cobrar  47 [miembro]"]
[null,"1;2","co-svsp-core_2017-12-31:DetalleCuentasXCobrarOtrasCuentasXCobrar48Miembro","Detalle de cuentas por cobrar Otras cuentas por cobrar  48 [miembro]"]
[null,"1;2","co-svsp-core_2017-12-31:DetalleCuentasXCobrarOtrasCuentasXCobrar49Miembro","Detalle de cuentas por cobrar Otras cuentas por cobrar  49 [miembro]"]
[null,"1;2","co-svsp-core_2017-12-31:DetalleCuentasXCobrarOtrasCuentasXCobrar50Miembro","Detalle de cuentas por cobrar Otras cuentas por cobrar  50 [miembro]"]
[null,"1;2","co-svsp-core_2017-12-31:DetalleCuentasXCobrarOtrasCuentasXCobrar51EnAdelante","Detalle de cuentas por cobrar Otras cuentas por cobrar  51 en adelante [miembro]"]
[null,"1;2","co-svsp-core_2017-12-31:TotalDetalleCuentasXCobrarOtrasCuentasXCobrarMiembro","Total Detalle de cuentas por cobrar, otras cuentas por cobrar [miembro]",null,null,null,null,null,null,null,null,null,null,null,{"$f":"SUM(P291:P341)","v":0}]
[null,"1;2","co-svsp-core_2017-12-31:TotalDetalleCuentasXCobrarMiembro","Total Detalle de cuentas por cobrar [miembro]",null,null,null,null,null,null,null,null,null,null,null,{"$f":"+P342+P289+P236","v":0},null,{"$f":"IF(P343='210000 - Est. Situa. Financiera'!F17+'210000 - Est. Situa. Financiera'!F33,\"CORRECTO\",\"La información registrada en este formulario para '\"&D343&\"' en la columna '\"&$P$11&\"' para del periodo actual, debe ser igual al reportado en el Estado de Situación Financiera\")","v":"CORRECTO"},null,{"$f":"IF(R343=\"CORRECTO\",0,1)","v":0}]

{"sheet":"800111A GeneraXBRL","index":11,"n_rows":193,"n_cols":165,"rows_kept":193,"cut":false,"hidden":true,"merged":[[3,3,5,9],[7,3,7,6]]}
[]
[]
[]
[null,null,null,"110010 - Información a revelar sobre administradores"]
[]
[]
[]
[]
[null,null,null,null,"co-svsp-core_2017-12-31:RelacionCuentasXCobrarMiembro","co-svsp-core_2017-12-31:RelacionCuentasXCobrarClientesMiembro","co-svsp-core_2017-12-31:DetalleCuentasXCobrarClientes1Miembro","co-svsp-core_2017-12-31:DetalleCuentasXCobrarClientes2Miembro","co-svsp-core_2017-12-31:DetalleCuentasXCobrarClientes3Miembro","co-svsp-core_2017-12-31:DetalleCuentasXCobrarClientes4Miembro","co-svsp-core_2017-12-31:DetalleCuentasXCobrarClientes5Miembro","co-svsp-core_2017-12-31:DetalleCuentasXCobrarClientes6Miembro","co-svsp-core_2017-12-31:DetalleCuentasXCobrarClientes7Miembro","co-svsp-core_2017-12-31:DetalleCuentasXCobrarClientes8Miembro","co-svsp-core_2017-12-31:DetalleCuentasXCobrarClientes9Miembro","co-svsp-core_2017-12-31:DetalleCuentasXCobrarClientes10Miembro","co-svsp-core_2017-12-31:DetalleCuentasXCobrarClientes11Miembro","co-svsp-core_2017-12-31:DetalleCuentasXCobrarClientes12Miembro","co-svsp-core_2017-12-31:DetalleCuentasXCobrarClientes13Miembro","co-svsp-core_2017-12-31:DetalleCuentasXCobrarClientes14Miembro","co-svsp-core_2017-12-31:DetalleCuentasXCobrarClientes15Miembro","co-svsp-core_2017-12-31:DetalleCuentasXCobrarClientes16Miembro","co-svsp-core_2017-12-31:DetalleCuentasXCobrarClientes17Miembro","co-svsp-core_2017-12-31:DetalleCuentasXCobrarClientes18Miembro","co-svsp-core_2017-12-31:DetalleCuentasXCobrarClientes19Miembro","co-svsp-core_2017-12-31:DetalleCuentasXCobrarClientes20Miembro","co-svsp-core_2017-12-31:DetalleCuentasXCobrarClientes21Miembro","co-svsp-core_2017-12-31:DetalleCuentasXCobrarClientes22Miembro","co-svsp-core_2017-12-31:DetalleCuentasXCobrarClientes23Miembro","co-svsp-core_2017-12-31:DetalleCuentasXCobrarClientes24Miembro","co-svsp-core_2017-12-31:DetalleCuentasXCobrarClientes25Miembro","co-svsp-core_2017-12-31:DetalleCuentasXCobrarClientes26Miembro","co-svsp-core_2017-12-31:DetalleCuentasXCobrarClientes27Miembro","co-svsp-core_2017-12-31:DetalleCuentasXCobrarClientes28Miembro","co-svsp-core_2017-12-31:DetalleCuentasXCobrarClientes29Miembro","co-svsp-core_2017-12-31:DetalleCuentasXCobrarClientes30Miembro","co-svsp-core_2017-12-31:DetalleCuentasXCobrarClientes31Miembro","co-svsp-core_2017-12-31:DetalleCuentasXCobrarClientes32Miembro","co-svsp-core_2017-12-31:DetalleCuentasXCobrarClientes33Miembro","co-svsp-core_2017-12-31:DetalleCuentasXCobrarClientes34Miembro","co-svsp-core_2017-12-31:DetalleCuentasXCobrarClientes35Miembro","co-svsp-core_2017-12-31:DetalleCuentasXCobrarClientes36Miembro","co-svsp-core_2017-12-31:DetalleCuentasXCobrarClientes37Miembro","co-svsp-core_2017-12-31:DetalleCuentasXCobrarClientes38Miembro","co-svsp-core_2017-12-31:DetalleCuentasXCobrarClientes39Miembro","co-svsp-core_2017-12-31:DetalleCuentasXCobrarClientes40Miembro","co-svsp-core_2017-12-31:DetalleCuentasXCobrarClientes41Miembro","co-svsp-core_2017-12-31:DetalleCuentasXCobrarClientes42Miembro","co-svsp-core_2017-12-31:DetalleCuentasXCobrarClientes43Miembro","co-svsp-core_2017-12-31:DetalleCuentasXCobrarClientes44Miembro","co-svsp-core_2017-12-31:DetalleCuentasXCobrarClientes45Miembro","co-svsp-core_2017-12-31:DetalleCuentasXCobrarClientes46Miembro","co-svsp-core_2017-12-31:DetalleCuentasXCobrarClientes47Miembro","co-svsp-core_2017-12-31:DetalleCuentasXCobrarClientes48Miembro","co-svsp-core_2017-12-31:DetalleCuentasXCobrarClientes49Miembro","co-svsp-core_2017-12-31:DetalleCuentasXCobrarClientes50Miembro","co-svsp-core_2017-12-31:DetalleCuentasXCobrarClientes51EnAdelante","co-svsp-core_2017-12-31:TotalDetalleCuentasXCobrarClientesMiembro","co-svsp-core_2017-12-31:RelacionCuentasXCobrarAccionistasSociosVinculadasMiembro","co-svsp-core_2017-12-31:DetalleCuentasXCobrarAccionistasSociosVinculadas1Miembro","co-svsp-core_2017-12-31:DetalleCuentasXCobrarAccionistasSociosVinculadas2Miembro","co-svsp-core_2017-12-31:DetalleCuentasXCobrarAccionistasSociosVinculadas3Miembro","co-svsp-core_2017-12-31:DetalleCuentasXCobrarAccionistasSociosVinculadas4Miembro","co-svsp-core_2017-12-31:DetalleCuentasXCobrarAccionistasSociosVinculadas5Miembro","co-svsp-core_2017-12-31:DetalleCuentasXCobrarAccionistasSociosVinculadas6Miembro","co-svsp-core_2017-12-31:DetalleCuentasXCobrarAccionistasSociosVinculadas7Miembro","co-svsp-core_2017-12-31:DetalleCuentasXCobrarAccionistasSociosVinculadas8Miembro","co-svsp-core_2017-12-31:DetalleCuentasXCobrarAccionistasSociosVinculadas9Miembro","co-svsp-core_2017-12-31:DetalleCuentasXCobrarAccionistasSociosVinculadas10Miembro","co-svsp-core_2017-12-31:DetalleCuentasXCobrarAccionistasSociosVinculadas11Miembro","co-svsp-core_2017-12-31:DetalleCuentasXCobrarAccionistasSociosVinculadas12Miembro","co-svsp-core_2017-12-31:DetalleCuentasXCobrarAccionistasSociosVinculadas13Miembro","co-svsp-core_2017-12-31:DetalleCuentasXCobrarAccionistasSociosVinculadas14Miembro","co-svsp-core_2017-12-31:DetalleCuentasXCobrarAccionistasSociosVinculadas15Miembro","co-svsp-core_2017-12-31:DetalleCuentasXCobrarAccionistasSociosVinculadas16Miembro","co-svsp-core_2017-12-31:DetalleCuentasXCobrarAccionistasSociosVinculadas17Miembro","co-svsp-core_2017-12-31:DetalleCuentasXCobrarAccionistasSociosVinculadas18Miembro","co-svsp-core_2017-12-31:DetalleCuentasXCobrarAccionistasSociosVinculadas19Miembro","co-svsp-core_2017-12-31:DetalleCuentasXCobrarAccionistasSociosVinculadas20Miembro","co-svsp-core_2017-12-31:DetalleCuentasXCobrarAccionistasSociosVinculadas21Miembro","co-svsp-core_2017-12-31:DetalleCuentasXCobrarAccionistasSociosVinculadas22Miembro","co-svsp-core_2017-12-31:DetalleCuentasXCobrarAccionistasSociosVinculadas23Miembro","co-svsp-core_2017-12-31:DetalleCuentasXCobrarAccionistasSociosVinculadas24Miembro","co-svsp-core_2017-12-31:DetalleCuentasXCobrarAccionistasSociosVinculadas25Miembro","co-svsp-core_2017-12-31:DetalleCuentasXCobrarAccionistasSociosVinculadas26Miembro","co-svsp-core_2017-12-31:DetalleCuentasXCobrarAccionistasSociosVinculadas27Miembro","co-svsp-core_2017-12-31:DetalleCuentasXCobrarAccionistasSociosVinculadas28Miembro","co-svsp-core_2017-12-31:DetalleCuentasXCobrarAccionistasSociosVinculadas29Miembro","co-svsp-core_2017-12-31:DetalleCuentasXCobrarAccionistasSociosVinculadas30Miembro","co-svsp-core_2017-12-31:DetalleCuentasXCobrarAccionistasSociosVinculadas31Miembro","co-svsp-core_2017-12-31:DetalleCuentasXCobrarAccionistasSociosVinculadas32Miembro","co-svsp-core_2017-12-31:DetalleCuentasXCobrarAccionistasSociosVinculadas33Miembro","co-svsp-core_2017-12-31:DetalleCuentasXCobrarAccionistasSociosVinculadas34Miembro","co-svsp-core_2017-12-31:DetalleCuentasXCobrarAccionistasSociosVinculadas35Miembro","co-svsp-core_2017-12-31:DetalleCuentasXCobrarAccionistasSociosVinculadas36Miembro","co-svsp-core_2017-12-31:DetalleCuentasXCobrarAccionistasSociosVinculadas37Miembro","co-svsp-core_2017-12-31:DetalleCuentasXCobrarAccionistasSociosVinculadas38Miembro","co-svsp-core_2017-12-31:DetalleCuentasXCobrarAccionistasSociosVinculadas39Miembro","co-svsp-core_2017-12-31:DetalleCuentasXCobrarAccionistasSociosVinculadas40Miembro","co-svsp-core_2017-12-31:DetalleCuentasXCobrarAccionistasSociosVinculadas41Miembro","co-svsp-core_2017-12-31:DetalleCuentasXCobrarAccionistasSociosVinculadas42Miembro","co-svsp-core_2017-12-31:DetalleCuentasXCobrarAccionistasSociosVinculadas43Miembro","co-svsp-core_2017-12-31:DetalleCuentasXCobrarAccionistasSociosVinculadas44Miembro","co-svsp-core_2017-12-31:DetalleCuentasXCobrarAccionistasSociosVinculadas45Miembro","co-svsp-core_2017-12-31:DetalleCuentasXCobrarAccionistasSociosVinculadas46Miembro","co-svsp-core_2017-12-31:DetalleCuentasXCobrarAccionistasSociosVinculadas47Miembro","co-svsp-core_2017-12-31:DetalleCuentasXCobrarAccionistasSociosVinculadas48Miembro","co-svsp-core_2017-12-31:DetalleCuentasXCobrarAccionistasSociosVinculadas49Miembro","co-svsp-core_2017-12-31:DetalleCuentasXCobrarAccionistasSociosVinculadas50Miembro","co-svsp-core_2017-12-31:DetalleCuentasXCobrarAccionistasSociosVinculadas51EnAdelante","co-svsp-core_2017-12-31:TotalDetalleCuentasXCobrarAccionistasSociosVinculadasMiembro","co-svsp-core_2017-12-31:RelacionCuentasXCobrarOtrasCuentasXCobrarMiembro","co-svsp-core_2017-12-31:DetalleCuentasXCobrarOtrasCuentasXCobrar1Miembro","co-svsp-core_2017-12-31:DetalleCuentasXCobrarOtrasCuentasXCobrar2Miembro","co-svsp-core_2017-12-31:DetalleCuentasXCobrarOtrasCuentasXCobrar3Miembro","co-svsp-core_2017-12-31:DetalleCuentasXCobrarOtrasCuentasXCobrar4Miembro","co-svsp-core_2017-12-31:DetalleCuentasXCobrarOtrasCuentasXCobrar5Miembro","co-svsp-core_2017-12-31:DetalleCuentasXCobrarOtrasCuentasXCobrar6Miembro","co-svsp-core_2017-12-31:DetalleCuentasXCobrarOtrasCuentasXCobrar7Miembro","co-svsp-core_2017-12-31:DetalleCuentasXCobrarOtrasCuentasXCobrar8Miembro","co-svsp-core_2017-12-31:DetalleCuentasXCobrarOtrasCuentasXCobrar9Miembro","co-svsp-core_2017-12-31:DetalleCuentasXCobrarOtrasCuentasXCobrar10Miembro","co-svsp-core_2017-12-31:DetalleCuentasXCobrarOtrasCuentasXCobrar11Miembro","co-svsp-core_2017-12-31:DetalleCuentasXCobrarOtrasCuentasXCobrar12Miembro","co-svsp-core_2017-12-31:DetalleCuentasXCobrarOtrasCuentasXCobrar13Miembro","co-svsp-core_2017-12-31:DetalleCuentasXCobrarOtrasCuentasXCobrar14Miembro","co-svsp-core_2017-12-31:DetalleCuentasXCobrarOtrasCuentasXCobrar15Miembro","co-svsp-core_2017-12-31:DetalleCuentasXCobrarOtrasCuentasXCobrar16Miembro","co-svsp-core_2017-12-31:DetalleCuentasXCobrarOtrasCuentasXCobrar17Miembro","co-svsp-core_2017-12-31:DetalleCuentasXCobrarOtrasCuentasXCobrar18Miembro","co-svsp-core_2017-12-31:DetalleCuentasXCobrarOtrasCuentasXCobrar19Miembro","co-svsp-core_2017-12-31:DetalleCuentasXCobrarOtrasCuentasXCobrar20Miembro","co-svsp-core_2017-12-31:DetalleCuentasXCobrarOtrasCuentasXCobrar21Miembro","co-svsp-core_2017-12-31:DetalleCuentasXCobrarOtrasCuentasXCobrar22Miembro","co-svsp-core_2017-12-31:DetalleCuentasXCobrarOtrasCuentasXCobrar23Miembro","co-svsp-core_2017-12-31:DetalleCuentasXCobrarOtrasCuentasXCobrar24Miembro","co-svsp-core_2017-12-31:DetalleCuentasXCobrarOtrasCuentasXCobrar25Miembro","co-svsp-core_2017-12-31:DetalleCuentasXCobrarOtrasCuentasXCobrar26Miembro","co-svsp-core_2017-12-31:DetalleCuentasXCobrarOtrasCuentasXCobrar27Miembro","co-svsp-core_2017-12-31:DetalleCuentasXCobrarOtrasCuentasXCobrar28Miembro","co-svsp-core_2017-12-31:DetalleCuentasXCobrarOtrasCuentasXCobrar29Miembro","co-svsp-core_2017-12-31:DetalleCuentasXCobrarOtrasCuentasXCobrar30Miembro","co-svsp-core_2017-12-31:DetalleCuentasXCobrarOtrasCuentasXCobrar31Miembro","co-svsp-core_2017-12-31:DetalleCuentasXCobrarOtrasCuentasXCobrar32Miembro","co-svsp-core_2017-12-31:DetalleCuentasXCobrarOtrasCuentasXCobrar33Miembro","co-svsp-core_2017-12-31:DetalleCuentasXCobrarOtrasCuentasXCobrar34Miembro","co-svsp-core_2017-12-31:DetalleCuentasXCobrarOtrasCuentasXCobrar35Miembro","co-svsp-core_2017-12-31:DetalleCuentasXCobrarOtrasCuentasXCobrar36Miembro","co-svsp-core_2017-12-31:DetalleCuentasXCobrarOtrasCuentasXCobrar37Miembro","co-svsp-core_2017-12-31:DetalleCuentasXCobrarOtrasCuentasXCobrar38Miembro","co-svsp-core_2017-12-31:DetalleCuentasXCobrarOtrasCuentasXCobrar39Miembro","co-svsp-core_2017-12-31:DetalleCuentasXCobrarOtrasCuentasXCobrar40Miembro","co-svsp-core_2017-12-31:DetalleCuentasXCobrarOtrasCuentasXCobrar41Miembro","co-svsp-core_2017-12-31:DetalleCuentasXCobrarOtrasCuentasXCobrar42Miembro","co-svsp-core_2017-12-31:DetalleCuentasXCobrarOtrasCuentasXCobrar43Miembro","co-svsp-core_2017-12-31:DetalleCuentasXCobrarOtrasCuentasXCobrar44Miembro","co-svsp-core_2017-12-31:DetalleCuentasXCobrarOtrasCuentasXCobrar45Miembro","co-svsp-core_2017-12-31:DetalleCuentasXCobrarOtrasCuentasXCobrar46Miembro","co-svsp-core_2017-12-31:DetalleCuentasXCobrarOtrasCuentasXCobrar47Miembro","co-svsp-core_2017-12-31:DetalleCuentasXCobrarOtrasCuentasXCobrar48Miembro","co-svsp-core_2017-12-31:DetalleCuentasXCobrarOtrasCuentasXCobrar49Miembro","co-svsp-core_2017-12-31:DetalleCuentasXCobrarOtrasCuentasXCobrar50Miembro","co-svsp-core_2017-12-31:DetalleCuentasXCobrarOtrasCuentasXCobrar51EnAdelante","co-svsp-core_2017-12-31:TotalDetalleCuentasXCobrarOtrasCuentasXCobrarMiembro","co-svsp-core_2017-12-31:TotalDetalleCuentasXCobrarMiembro"]
[null,"Periodo",null,"co-svsp-core_2017-12-31:DetalleCuentasXCobrar_Eje","Relación de cuentas por cobrar [miembro]","Relación de cuentas por cobrar clientes [miembro]","Detalle de cuentas por cobrar clientes 1 [miembro]","Detalle de cuentas por cobrar clientes 2 [miembro]","Detalle de cuentas por cobrar clientes 3 [miembro]","Detalle de cuentas por cobrar clientes 4 [miembro]","Detalle de cuentas por cobrar clientes 5 [miembro]","Detalle de cuentas por cobrar clientes 6 [miembro]","Detalle de cuentas por cobrar clientes 7 [miembro]","Detalle de cuentas por cobrar clientes 8 [miembro]","Detalle de cuentas por cobrar clientes 9 [miembro]","Detalle de cuentas por cobrar clientes 10 [miembro]","Detalle de cuentas por cobrar clientes 11 [miembro]","Detalle de cuentas por cobrar clientes 12 [miembro]","Detalle de cuentas por cobrar clientes 13 [miembro]","Detalle de cuentas por cobrar clientes 14 [miembro]","Detalle de cuentas por cobrar clientes 15 [miembro]","Detalle de cuentas por cobrar clientes 16 [miembro]","Detalle de cuentas por cobrar clientes 17 [miembro]","Detalle de cuentas por cobrar clientes 18 [miembro]","Detalle de cuentas por cobrar clientes 19 [miembro]","Detalle de cuentas por cobrar clientes 20 [miembro]","Detalle de cuentas por cobrar clientes 21 [miembro]","Detalle de cuentas por cobrar clientes 22 [miembro]","Detalle de cuentas por cobrar clientes 23 [miembro]","Detalle de cuentas por cobrar clientes 24 [miembro]","Detalle de cuentas por cobrar clientes 25 [miembro]","Detalle de cuentas por cobrar clientes 26 [miembro]","Detalle de cuentas por cobrar clientes 27 [miembro]","Detalle de cuentas por cobrar clientes 28 [miembro]","Detalle de cuentas por cobrar clientes 29 [miembro]","Detalle de cuentas por cobrar clientes 30 [miembro]","Detalle de cuentas por cobrar clientes 31 [miembro]","Detalle de cuentas por cobrar clientes 32 [miembro]","Detalle de cuentas por cobrar clientes 33 [miembro]","Detalle de cuentas por cobrar clientes 34 [miembro]","Detalle de cuentas por cobrar clientes 35 [miembro]","Detalle de cuentas por cobrar clientes 36 [miembro]","Detalle de cuentas por cobrar clientes 37 [miembro]","Detalle de cuentas por cobrar clientes 38 [miembro]","Detalle de cuentas por cobrar clientes 39 [miembro]","Detalle de cuentas por cobrar clientes 40 [miembro]","Detalle de cuentas por cobrar clientes 41 [miembro]","Detalle de cuentas por cobrar clientes 42 [miembro]","Detalle de cuentas por cobrar clientes 43 [miembro]","Detalle de cuentas por cobrar clientes 44 [miembro]","Detalle de cuentas por cobrar clientes 45 [miembro]","Detalle de cuentas por cobrar clientes 46 [miembro]","Detalle de cuentas por cobrar clientes 47 [miembro]","Detalle de cuentas por cobrar clientes 48 [miembro]","Detalle de cuentas por cobrar clientes 49 [miembro]","Detalle de cuentas por cobrar clientes 50 [miembro]","Detalle de cuentas por cobrar clientes 51 en adelante [miembro]","Total Detalle de cuentas por cobrar clientes [miembro]","Relación de cuentas por cobrar, compañías accionostas, socios y compañías vinculadas [miembro]","Detalle de cuentas por cobrar a accionistas, socios o vinculadas 1 [miembro]","Detalle de cuentas por cobrar a accionistas, socios o vinculadas 2 [miembro]","Detalle de cuentas por cobrar a accionistas, socios o vinculadas 3 [miembro]","Detalle de cuentas por cobrar a accionistas, socios o vinculadas 4 [miembro]","Detalle de cuentas por cobrar a accionistas, socios o vinculadas 5 [miembro]","Detalle de cuentas por cobrar a accionistas, socios o vinculadas 6 [miembro]","Detalle de cuentas por cobrar a accionistas, socios o vinculadas 7 [miembro]","Detalle de cuentas por cobrar a accionistas, socios o vinculadas 8 [miembro]","Detalle de cuentas por cobrar a accionistas, socios o vinculadas 9 [miembro]","Detalle de cuentas por cobrar a accionistas, socios o vinculadas 10 [miembro]","Detalle de cuentas por cobrar a accionistas, socios o vinculadas 11 [miembro]","Detalle de cuentas por cobrar a accionistas, socios o vinculadas 12 [miembro]","Detalle de cuentas por cobrar a accionistas, socios o vinculadas 13 [miembro]","Detalle de cuentas por cobrar a accionistas, socios o vinculadas 14 [miembro]","Detalle de cuentas por cobrar a accionistas, socios o vinculadas 15 [miembro]","Detalle de cuentas por cobrar a accionistas, socios o vinculadas 16 [miembro]","Detalle de cuentas por cobrar a accionistas, socios o vinculadas 17 [miembro]","Detalle de cuentas por cobrar a accionistas, socios o vinculadas 18 [miembro]","Detalle de cuentas por cobrar a accionistas, socios o vinculadas 19 [miembro]","Detalle de cuentas por cobrar a accionistas, socios o vinculadas 20 [miembro]","Detalle de cuentas por cobrar a accionistas, socios o vinculadas 21 [miembro]","Detalle de cuentas por cobrar a accionistas, socios o vinculadas 22 [miembro]","Detalle de cuentas por cobrar a accionistas, socios o vinculadas 23 [miembro]","Detalle de cuentas por cobrar a accionistas, socios o vinculadas 24 [miembro]","Detalle de cuentas por cobrar a accionistas, socios o vinculadas 25 [miembro]","Detalle de cuentas por cobrar a accionistas, socios o vinculadas 26 [miembro]","Detalle de cuentas por cobrar a accionistas, socios o vinculadas 27 [miembro]","Detalle de cuentas por cobrar a accionistas, socios o vinculadas 28 [miembro]","Detalle de cuentas por cobrar a accionistas, socios o vinculadas 29 [miembro]","Detalle de cuentas por cobrar a accionistas, socios o vinculadas 30 [miembro]","Detalle de cuentas por cobrar a accionistas, socios o vinculadas 31 [miembro]","Detalle de cuentas por cobrar a accionistas, socios o vinculadas 32 [miembro]","Detalle de cuentas por cobrar a accionistas, socios o vinculadas 33 [miembro]","Detalle de cuentas por cobrar a accionistas, socios o vinculadas 34 [miembro]","Detalle de cuentas por cobrar a accionistas, socios o vinculadas 35 [miembro]","Detalle de cuentas por cobrar a accionistas, socios o vinculadas 36 [miembro]","Detalle de cuentas por cobrar a accionistas, socios o vinculadas 37 [miembro]","Detalle de cuentas por cobrar a accionistas, socios o vinculadas 38 [miembro]","Detalle de cuentas por cobrar a accionistas, socios o vinculadas 39 [miembro]","Detalle de cuentas por cobrar a accionistas, socios o vinculadas 40 [miembro]","Detalle de cuentas por cobrar a accionistas, socios o vinculadas 41 [miembro]","Detalle de cuentas por cobrar a accionistas, socios o vinculadas 42 [miembro]","Detalle de cuentas por cobrar a accionistas, socios o vinculadas 43 [miembro]","Detalle de cuentas por cobrar a accionistas, socios o vinculadas 44 [miembro]","Detalle de cuentas por cobrar a accionistas, socios o vinculadas 45 [miembro]","Detalle de cuentas por cobrar a accionistas, socios o vinculadas 46 [miembro]","Detalle de cuentas por cobrar a accionistas, socios o vinculadas 47 [miembro]","Detalle de cuentas por cobrar a accionistas, socios o vinculadas 48 [miembro]","Detalle de cuentas por cobrar a accionistas, socios o vinculadas 49 [miembro]","Detalle de cuentas por cobrar a accionistas, socios o vinculadas 50 [miembro]","Detalle de cuentas por cobrar a accionistas, socios o vinculadas 51 en adelante [miembro]","Total Detalle de cuentas por cobrar a accionistas, socios o vinculadas [miembro]","Relación de otras cuentas por cobrar [miembro]","Detalle de cuentas por cobrar Otras cuentas por cobrar  1 [miembro]","Detalle de cuentas por cobrar Otras cuentas por cobrar  2 [miembro]","Detalle de cuentas por cobrar Otras cuentas por cobrar  3 [miembro]","Detalle de cuentas por cobrar Otras cuentas por cobrar  4 [miembro]","Detalle de cuentas por cobrar Otras cuentas por cobrar  5 [miembro]","Detalle de cuentas por cobrar Otras cuentas por cobrar  6 [miembro]","Detalle de cuentas por cobrar Otras cuentas por cobrar  7 [miembro]","Detalle de cuentas por cobrar Otras cuentas por cobrar  8 [miembro]","Detalle de cuentas por cobrar Otras cuentas por cobrar  9 [miembro]","Detalle de cuentas por cobrar Otras cuentas por cobrar  10 [miembro]","Detalle de cuentas por cobrar Otras cuentas por cobrar  11 [miembro]","Detalle de cuentas por cobrar Otras cuentas por cobrar  12 [miembro]","Detalle de cuentas por cobrar Otras cuentas por cobrar  13 [miembro]","Detalle de cuentas por cobrar Otras cuentas por cobrar  14 [miembro]","Detalle de cuentas por cobrar Otras cuentas por cobrar  15 [miembro]","Detalle de cuentas por cobrar Otras cuentas por cobrar  16 [miembro]","Detalle de cuentas por cobrar Otras cuentas por cobrar  17 [miembro]","Detalle de cuentas por cobrar Otras cuentas por cobrar  18 [miembro]","Detalle de cuentas por cobrar Otras cuentas por cobrar  19 [miembro]","Detalle de cuentas por cobrar Otras cuentas por cobrar  20 [miembro]","Detalle de cuentas por cobrar Otras cuentas por cobrar  21 [miembro]","Detalle de cuentas por cobrar Otras cuentas por cobrar  22 [miembro]","Detalle de cuentas por cobrar Otras cuentas por cobrar  23 [miembro]","Detalle de cuentas por cobrar Otras cuentas por cobrar  24 [miembro]","Detalle de cuentas por cobrar Otras cuentas por cobrar  25 [miembro]","Detalle de cuentas por cobrar Otras cuentas por cobrar  26 [miembro]","Detalle de cuentas por cobrar Otras cuentas por cobrar  27 [miembro]","Detalle de cuentas por cobrar Otras cuentas por cobrar  28 [miembro]","Detalle de cuentas por cobrar Otras cuentas por cobrar  29 [miembro]","Detalle de cuentas por cobrar Otras cuentas por cobrar  30 [miembro]","Detalle de cuentas por cobrar Otras cuentas por cobrar  31 [miembro]","Detalle de cuentas por cobrar Otras cuentas por cobrar  32 [miembro]","Detalle de cuentas por cobrar Otras cuentas por cobrar  33 [miembro]","Detalle de cuentas por cobrar Otras cuentas por cobrar  34 [miembro]","Detalle de cuentas por cobrar Otras cuentas por cobrar  35 [miembro]","Detalle de cuentas por cobrar Otras cuentas por cobrar  36 [miembro]","Detalle de cuentas por cobrar Otras cuentas por cobrar  37 [miembro]","Detalle de cuentas por cobrar Otras cuentas por cobrar  38 [miembro]","Detalle de cuentas por cobrar Otras cuentas por cobrar  39 [miembro]","Detalle de cuentas por cobrar Otras cuentas por cobrar  40 [miembro]","Detalle de cuentas por cobrar Otras cuentas por cobrar  41 [miembro]","Detalle de cuentas por cobrar Otras cuentas por cobrar  42 [miembro]","Detalle de cuentas por cobrar Otras cuentas por cobrar  43 [miembro]","Detalle de cuentas por cobrar Otras cuentas por cobrar  44 [miembro]","Detalle de cuentas por cobrar Otras cuentas por cobrar  45 [miembro]","Detalle de cuentas por cobrar Otras cuentas por cobrar  46 [miembro]","Detalle de cuentas por cobrar Otras cuentas por cobrar  47 [miembro]","Detalle de cuentas por cobrar Otras cuentas por cobrar  48 [miembro]","Detalle de cuentas por cobrar Otras cuentas por cobrar  49 [miembro]","Detalle de cuentas por cobrar Otras cuentas por cobrar  50 [miembro]","Detalle de cuentas por cobrar Otras cuentas por cobrar  51 en adelante [miembro]","Total Detalle de cuentas por cobrar, otras cuentas por cobrar [miembro]","Total Detalle de cuentas por cobrar [miembro]"]
[null,"1;1","co-svsp-core_2017-12-31:TipoDeDocumentoDeudorCxC","Tipo de documento del deudor",null,null,{"$f":"IF('800111a - Nota. Detalle de CxC.'!E14=\"\",\"\",'800111a - Nota. Detalle de CxC.'!E14)","v":""},{"$f":"IF('800111a - Nota. Detalle de CxC.'!E15=\"\",\"\",'800111a - Nota. Detalle de CxC.'!E15)","v":""},{"$f":"IF('800111a - Nota. Detalle de CxC.'!E16=\"\",\"\",'800111a - Nota. Detalle de CxC.'!E16)","v":""},{"$f":"IF('800111a - Nota. Detalle de CxC.'!E17=\"\",\"\",'800111a - Nota. Detalle de CxC.'!E17)","v":""},{"$f":"IF('800111a - Nota. Detalle de CxC.'!E18=\"\",\"\",'800111a - Nota. Detalle de CxC.'!E18)","v":""},{"$f":"IF('800111a - Nota. Detalle de CxC.'!E19=\"\",\"\",'800111a - Nota. Detalle de CxC.'!E19)","v":""},{"$f":"IF('800111a - Nota. Detalle de CxC.'!E20=\"\",\"\",'800111a - Nota. Detalle de CxC.'!E20)","v":""},{"$f":"IF('800111a - Nota. Detalle de CxC.'!E21=\"\",\"\",'800111a - Nota. Detalle de CxC.'!E21)","v":""},{"$f":"IF('800111a - Nota. Detalle de CxC.'!E22=\"\",\"\",'800111a - Nota. Detalle de CxC.'!E22)","v":""},{"$f":"IF('800111a - Nota. Detalle de CxC.'!E23=\"\",\"\",'800111a - Nota. Detalle de CxC.'!E23)","v":""},{"$f":"IF('800111a - Nota. Detalle de CxC.'!E24=\"\",\"\",'800111a - Nota. Detalle de CxC.'!E24)","v":""},{"$f":"IF('800111a - Nota. Detalle de CxC.'!E25=\"\",\"\",'800111a - Nota. Detalle de CxC.'!E25)","v":""},{"$f":"IF('800111a - Nota. Detalle de CxC.'!E26=\"\",\"\",'800111a - Nota. Detalle de CxC.'!E26)","v":""},{"$f":"IF('800111a - Nota. Detalle de CxC.'!E27=\"\",\"\",'800111a - Nota. Detalle de CxC.'!E27)","v":""},{"$f":"IF('800111a - Nota. Detalle de CxC.'!E28=\"\",\"\",'800111a - Nota. Detalle de CxC.'!E28)","v":""},{"$f":"IF('800111a - Nota. Detalle de CxC.'!E29=\"\",\"\",'800111a - Nota. Detalle de CxC.'!E29)","v":""},{"$f":"IF('800111a - Nota. Detalle de CxC.'!E30=\"\",\"\",'800111a - Nota. Detalle de CxC.'!E30)","v":""},{"$f":"IF('800111a - Nota. Detalle de CxC.'!E31=\"\",\"\",'800111a - Nota. Detalle de CxC.'!E31)","v":""},{"$f":"IF('800111a - Nota. Detalle de CxC.'!E32=\"\",\"\",'800111a - Nota. Detalle de CxC.'!E32)","v":""},{"$f":"IF('800111a - Nota. Detalle de CxC.'!E33=\"\",\"\",'800111a - Nota. Detalle de CxC.'!E33)","v":""},{"$f":"IF('800111a - Nota. Detalle de CxC.'!E34=\"\",\"\",'800111a - Nota. Detalle de CxC.'!E34)","v":""},{"$f":"IF('800111a - Nota. Detalle de CxC.'!E35=\"\",\"\",'800111a - Nota. Detalle de CxC.'!E35)","v":""},{"$f":"IF('800111a - Nota. Detalle de CxC.'!E36=\"\",\"\",'800111a - Nota. Detalle de CxC.'!E36)","v":""},{"$f":"IF('800111a - Nota. Detalle de CxC.'!E37=\"\",\"\",'800111a - Nota. Detalle de CxC.'!E37)","v":""},{"$f":"IF('800111a - Nota. Detalle de CxC.'!E38=\"\",\"\",'800111a - Nota. Detalle de CxC.'!E38)","v":""},{"$f":"IF('800111a - Nota. Detalle de CxC.'!E39=\"\",\"\",'800111a - Nota. Detalle de CxC.'!E39)","v":""},{"$f":"IF('800111a - Nota. Detalle de CxC.'!E40=\"\",\"\",'800111a - Nota. Detalle de CxC.'!E40)","v":""},{"$f":"IF('800111a - Nota. Detalle de CxC.'!E41=\"\",\"\",'800111a - Nota. Detalle de CxC.'!E41)","v":""},{"$f":"IF('800111a - Nota. Detalle de CxC.'!E42=\"\",\"\",'800111a - Nota. Detalle de CxC.'!E42)","v":""},{"$f":"IF('800111a - Nota. Detalle de CxC.'!E43=\"\",\"\",'800111a - Nota. Detalle de CxC.'!E43)","v":""},{"$f":"IF('800111a - Nota. Detalle de CxC.'!E44=\"\",\"\",'800111a - Nota. Detalle de CxC.'!E44)","v":""},{"$f":"IF('800111a - Nota. Detalle de CxC.'!E45=\"\",\"\",'800111a - Nota. Detalle de CxC.'!E45)","v":""},{"$f":"IF('800111a - Nota. Detalle de CxC.'!E46=\"\",\"\",'800111a - Nota. Detalle de CxC.'!E46)","v":""},{"$f":"IF('800111a - Nota. Detalle de CxC.'!E47=\"\",\"\",'800111a - Nota. Detalle de CxC.'!E47)","v":""},{"$f":"IF('800111a - Nota. Detalle de CxC.'!E48=\"\",\"\",'800111a - Nota. Detalle de CxC.'!E48)","v":""},{"$f":"IF('800111a - Nota. Detalle de CxC.'!E49=\"\",\"\",'800111a - Nota. Detalle de CxC.'!E49)","v":""},{"$f":"IF('800111a - Nota. Detalle de CxC.'!E50=\"\",\"\",'800111a - Nota. Detalle de CxC.'!E50)","v":""},{"$f":"IF('800111a - Nota. Detalle de CxC.'!E51=\"\",\"\",'800111a - Nota. Detalle de CxC.'!E51)","v":""},{"$f":"IF('800111a - Nota. Detalle de CxC.'!E52=\"\",\"\",'800111a - Nota. Detalle de CxC.'!E52)","v":""},{"$f":"IF('800111a - Nota. Detalle de CxC.'!E53=\"\",\"\",'800111a - Nota. Detalle de CxC.'!E53)","v":""},{"$f":"IF('800111a - Nota. Detalle de CxC.'!E54=\"\",\"\",'800111a - Nota. Detalle de CxC.'!E54)","v":""},{"$f":"IF('800111a - Nota. Detalle de CxC.'!E55=\"\",\"\",'800111a - Nota. Detalle de CxC.'!E55)","v":""},{"$f":"IF('800111a - Nota. Detalle de CxC.'!E56=\"\",\"\",'800111a - Nota. Detalle de CxC.'!E56)","v":""},{"$f":"IF('800111a - Nota. Detalle de CxC.'!E57=\"\",\"\",'800111a - Nota. Detalle de CxC.'!E57)","v":""},{"$f":"IF('800111a - Nota. Detalle de CxC.'!E58=\"\",\"\",'800111a - Nota. Detalle de CxC.'!E58)","v":""},{"$f":"IF('800111a - Nota. Detalle de CxC.'!E59=\"\",\"\",'800111a - Nota. Detalle de CxC.'!E59)","v":""},{"$f":"IF('800111a - Nota. Detalle de CxC.'!E60=\"\",\"\",'800111a - Nota. Detalle de CxC.'!E60)","v":""},{"$f":"IF('800111a - Nota. Detalle de CxC.'!E61=\"\",\"\",'800111a - Nota. Detalle de CxC.'!E61)","v":""},{"$f":"IF('800111a - Nota. Detalle de CxC.'!E62=\"\",\"\",'800111a - Nota. Detalle de CxC.'!E62)","v":""},{"$f":"IF('800111a - Nota. Detalle de CxC.'!E63=\"\",\"\",'800111a - Nota. Detalle de CxC.'!E63)","v":""},null,null,null,{"$f":"IF('800111a - Nota. Detalle de CxC.'!E67=\"\",\"\",'800111a - Nota. Detalle de CxC.'!E67)","v":""},{"$f":"IF('800111a - Nota. Detalle de CxC.'!E68=\"\",\"\",'800111a - Nota. Detalle de CxC.'!E68)","v":""},{"$f":"IF('800111a - Nota. Detalle de CxC.'!E69=\"\",\"\",'800111a - Nota. Detalle de CxC.'!E69)","v":""},{"$f":"IF('800111a - Nota. Detalle de CxC.'!E70=\"\",\"\",'800111a - Nota. Detalle de CxC.'!E70)","v":""},{"$f":"IF('800111a - Nota. Detalle de CxC.'!E71=\"\",\"\",'800111a - Nota. Detalle de CxC.'!E71)","v":""},{"$f":"IF('800111a - Nota. Detalle de CxC.'!E72=\"\",\"\",'800111a - Nota. Detalle de CxC.'!E72)","v":""},{"$f":"IF('800111a - Nota. Detalle de CxC.'!E73=\"\",\"\",'800111a - Nota. Detalle de CxC.'!E73)","v":""},{"$f":"IF('800111a - Nota. Detalle de CxC.'!E74=\"\",\"\",'800111a - Nota. Detalle de CxC.'!E74)","v":""},{"$f":"IF('800111a - Nota. Detalle de CxC.'!E75=\"\",\"\",'800111a - Nota. Detalle de CxC.'!E75)","v":""},{"$f":"IF('800111a - Nota. Detalle de CxC.'!E76=\"\",\"\",'800111a - Nota. Detalle de CxC.'!E76)","v":""},{"$f":"IF('800111a - Nota. Detalle de CxC.'!E77=\"\",\"\",'800111a - Nota. Detalle de CxC.'!E77)","v":""},{"$f":"IF('800111a - Nota. Detalle de CxC.'!E78=\"\",\"\",'800111a - Nota. Detalle de CxC.'!E78)","v":""},{"$f":"IF('800111a - Nota. Detalle de CxC.'!E79=\"\",\"\",'800111a - Nota. Detalle de CxC.'!E79)","v":""},{"$f":"IF('800111a - Nota. Detalle de CxC.'!E80=\"\",\"\",'800111a - Nota. Detalle de CxC.'!E80)","v":""},{"$f":"IF('800111a - Nota. Detalle de CxC.'!E81=\"\",\"\",'800111a - Nota. Detalle de CxC.'!E81)","v":""},{"$f":"IF('800111a - Nota. Detalle de CxC.'!E82=\"\",\"\",'800111a - Nota. Detalle de CxC.'!E82)","v":""},{"$f":"IF('800111a - Nota. Detalle de CxC.'!E83=\"\",\"\",'800111a - Nota. Detalle de CxC.'!E83)","v":""},{"$f":"IF('800111a - Nota. Detalle de CxC.'!E84=\"\",\"\",'800111a - Nota. Detalle de CxC.'!E84)","v":""},{"$f":"IF('800111a - Nota. Detalle de CxC.'!E85=\"\",\"\",'800111a - Nota. Detalle de CxC.'!E85)","v":""},{"$f":"IF('800111a - Nota. Detalle de CxC.'!E86=\"\",\"\",'800111a - Nota. Detalle de CxC.'!E86)","v":""},{"$f":"IF('800111a - Nota. Detalle de CxC.'!E87=\"\",\"\",'800111a - Nota. Detalle de CxC.'!E87)","v":""},{"$f":"IF('800111a - Nota. Detalle de CxC.'!E88=\"\",\"\",'800111a - Nota. Detalle de CxC.'!E88)","v":""},{"$f":"IF('800111a - Nota. Detalle de CxC.'!E89=\"\",\"\",'800111a - Nota. Detalle de CxC.'!E89)","v":""},{"$f":"IF('800111a - Nota. Detalle de CxC.'!E90=\"\",\"\",'800111a - Nota. Detalle de CxC.'!E90)","v":""},{"$f":"IF('800111a - Nota. Detalle de CxC.'!E91=\"\",\"\",'800111a - Nota. Detalle de CxC.'!E91)","v":""},{"$f":"IF('800111a - Nota. Detalle de CxC.'!E92=\"\",\"\",'800111a - Nota. Detalle de CxC.'!E92)","v":""},{"$f":"IF('800111a - Nota. Detalle de CxC.'!E93=\"\",\"\",'800111a - Nota. Detalle de CxC.'!E93)","v":""},{"$f":"IF('800111a - Nota. Detalle de CxC.'!E94=\"\",\"\",'800111a - Nota. Detalle de CxC.'!E94)","v":""},{"$f":"IF('800111a - Nota. Detalle de CxC.'!E95=\"\",\"\",'800111a - Nota. Detalle de CxC.'!E95)","v":""},{"$f":"IF('800111a - Nota. Detalle de CxC.'!E96=\"\",\"\",'800111a - Nota. Detalle de CxC.'!E96)","v":""},{"$f":"IF('800111a - Nota. Detalle de CxC.'!E97=\"\",\"\",'800111a - Nota. Detalle de CxC.'!E97)","v":""},{"$f":"IF('800111a - Nota. Detalle de CxC.'!E98=\"\",\"\",'800111a - Nota. Detalle de CxC.'!E98)","v":""},{"$f":"IF('800111a - Nota. Detalle de CxC.'!E99=\"\",\"\",'800111a - Nota. Detalle de CxC.'!E99)","v":""},{"$f":"IF('800111a - Nota. Detalle de CxC.'!E100=\"\",\"\",'800111a - Nota. Detalle de CxC.'!E100)","v":""},{"$f":"IF('800111a - Nota. Detalle de CxC.'!E101=\"\",\"\",'800111a - Nota. Detalle de CxC.'!E101)","v":""},{"$f":"IF('800111a - Nota. Detalle de CxC.'!E102=\"\",\"\",'800111a - Nota. Detalle de CxC.'!E102)","v":""},{"$f":"IF('800111a - Nota. Detalle de CxC.'!E103=\"\",\"\",'800111a - Nota. Detalle de CxC.'!E103)","v":""},{"$f":"IF('800111a - Nota. Detalle de CxC.'!E104=\"\",\"\",'800111a - Nota. Detalle de CxC.'!E104)","v":""},{"$f":"IF('800111a - Nota. Detalle de CxC.'!E105=\"\",\"\",'800111a - Nota. Detalle de CxC.'!E105)","v":""},{"$f":"IF('800111a - Nota. Detalle de CxC.'!E106=\"\",\"\",'800111a - Nota. Detalle de CxC.'!E106)","v":""},{"$f":"IF('800111a - Nota. Detalle de CxC.'!E107=\"\",\"\",'800111a - Nota. Detalle de CxC.'!E107)","v":""},{"$f":"IF('800111a - Nota. Detalle de CxC.'!E108=\"\",\"\",'800111a - Nota. Detalle de CxC.'!E108)","v":""},{"$f":"IF('800111a - Nota. Detalle de CxC.'!E109=\"\",\"\",'800111a - Nota. Detalle de CxC.'!E109)","v":""},{"$f":"IF('800111a - Nota. Detalle de CxC.'!E110=\"\",\"\",'800111a - Nota. Detalle de CxC.'!E110)","v":""},{"$f":"IF('800111a - Nota. Detalle de CxC.'!E111=\"\",\"\",'800111a - Nota. Detalle de CxC.'!E111)","v":""},{"$f":"IF('800111a - Nota. Detalle de CxC.'!E112=\"\",\"\",'800111a - Nota. Detalle de CxC.'!E112)","v":""},{"$f":"IF('800111a - Nota. Detalle de CxC.'!E113=\"\",\"\",'800111a - Nota. Detalle de CxC.'!E113)","v":""},{"$f":"IF('800111a - Nota. Detalle de CxC.'!E114=\"\",\"\",'800111a - Nota. Detalle de CxC.'!E114)","v":""},{"$f":"IF('800111a - Nota. Detalle de CxC.'!E115=\"\",\"\",'800111a - Nota. Detalle de CxC.'!E115)","v":""},{"$f":"IF('800111a - Nota. Detalle de CxC.'!E116=\"\",\"\",'800111a - Nota. Detalle de CxC.'!E116)","v":""},null,null,null,{"$f":"IF('800111a - Nota. Detalle de CxC.'!E120=\"\",\"\",'800111a - Nota. Detalle de CxC.'!E120)","v":""},{"$f":"IF('800111a - Nota. Detalle de CxC.'!E121=\"\",\"\",'800111a - Nota. Detalle de CxC.'!E121)","v":""},{"$f":"IF('800111a - Nota. Detalle de CxC.'!E122=\"\",\"\",'800111a - Nota. Detalle de CxC.'!E122)","v":""},{"$f":"IF('800111a - Nota. Detalle de CxC.'!E123=\"\",\"\",'800111a - Nota. Detalle de CxC.'!E123)","v":""},{"$f":"IF('800111a - Nota. Detalle de CxC.'!E124=\"\",\"\",'800111a - Nota. Detalle de CxC.'!E124)","v":""},{"$f":"IF('800111a - Nota. Detalle de CxC.'!E125=\"\",\"\",'800111a - Nota. Detalle de CxC.'!E125)","v":""},{"$f":"IF('800111a - Nota. Detalle de CxC.'!E126=\"\",\"\",'800111a - Nota. Detalle de CxC.'!E126)","v":""},{"$f":"IF('800111a - Nota. Detalle de CxC.'!E127=\"\",\"\",'800111a - Nota. Detalle de CxC.'!E127)","v":""},{"$f":"IF('800111a - Nota. Detalle de CxC.'!E128=\"\",\"\",'800111a - Nota. Detalle de CxC.'!E128)","v":""},{"$f":"IF('800111a - Nota. Detalle de CxC.'!E129=\"\",\"\",'800111a - Nota. Detalle de CxC.'!E129)","v":""},{"$f":"IF('800111a - Nota. Detalle de CxC.'!E130=\"\",\"\",'800111a - Nota. Detalle de CxC.'!E130)","v":""},{"$f":"IF('800111a - Nota. Detalle de CxC.'!E131=\"\",\"\",'800111a - Nota. Detalle de CxC.'!E131)","v":""},{"$f":"IF('800111a - Nota. Detalle de CxC.'!E132=\"\",\"\",'800111a - Nota. Detalle de CxC.'!E132)","v":""},{"$f":"IF('800111a - Nota. Detalle de CxC.'!E133=\"\",\"\",'800111a - Nota. Detalle de CxC.'!E133)","v":""},{"$f":"IF('800111a - Nota. Detalle de CxC.'!E134=\"\",\"\",'800111a - Nota. Detalle de CxC.'!E134)","v":""},{"$f":"IF('800111a - Nota. Detalle de CxC.'!E135=\"\",\"\",'800111a - Nota. Detalle de CxC.'!E135)","v":""},{"$f":"IF('800111a - Nota. Detalle de CxC.'!E136=\"\",\"\",'800111a - Nota. Detalle de CxC.'!E136)","v":""},{"$f":"IF('800111a - Nota. Detalle de CxC.'!E137=\"\",\"\",'800111a - Nota. Detalle de CxC.'!E137)","v":""},{"$f":"IF('800111a - Nota. Detalle de CxC.'!E138=\"\",\"\",'800111a - Nota. Detalle de CxC.'!E138)","v":""},{"$f":"IF('800111a - Nota. Detalle de CxC.'!E139=\"\",\"\",'800111a - Nota. Detalle de CxC.'!E139)","v":""},{"$f":"IF('800111a - Nota. Detalle de CxC.'!E140=\"\",\"\",'800111a - Nota. Detalle de CxC.'!E140)","v":""},{"$f":"IF('800111a - Nota. Detalle de CxC.'!E141=\"\",\"\",'800111a - Nota. Detalle de CxC.'!E141)","v":""},{"$f":"IF('800111a - Nota. Detalle de CxC.'!E142=\"\",\"\",'800111a - Nota. Detalle de CxC.'!E142)","v":""},{"$f":"IF('800111a - Nota. Detalle de CxC.'!E143=\"\",\"\",'800111a - Nota. Detalle de CxC.'!E143)","v":""},{"$f":"IF('800111a - Nota. Detalle de CxC.'!E144=\"\",\"\",'800111a - Nota. Detalle de CxC.'!E144)","v":""},{"$f":"IF('800111a - Nota. Detalle de CxC.'!E145=\"\",\"\",'800111a - Nota. Detalle de CxC.'!E145)","v":""},{"$f":"IF('800111a - Nota. Detalle de CxC.'!E146=\"\",\"\",'800111a - Nota. Detalle de CxC.'!E146)","v":""},{"$f":"IF('800111a - Nota. Detalle de CxC.'!E147=\"\",\"\",'800111a - Nota. Detalle de CxC.'!E147)","v":""},{"$f":"IF('800111a - Nota. Detalle de CxC.'!E148=\"\",\"\",'800111a - Nota. Detalle de CxC.'!E148)","v":""},{"$f":"IF('800111a - Nota. Detalle de CxC.'!E149=\"\",\"\",'800111a - Nota. Detalle de CxC.'!E149)","v":""},{"$f":"IF('800111a - Nota. Detalle de CxC.'!E150=\"\",\"\",'800111a - Nota. Detalle de CxC.'!E150)","v":""},{"$f":"IF('800111a - Nota. Detalle de CxC.'!E151=\"\",\"\",'800111a - Nota. Detalle de CxC.'!E151)","v":""},{"$f":"IF('800111a - Nota. Detalle de CxC.'!E152=\"\",\"\",'800111a - Nota. Detalle de CxC.'!E152)","v":""},{"$f":"IF('800111a - Nota. Detalle de CxC.'!E153=\"\",\"\",'800111a - Nota. Detalle de CxC.'!E153)","v":""},{"$f":"IF('800111a - Nota. Detalle de CxC.'!E154=\"\",\"\",'800111a - Nota. Detalle de CxC.'!E154)","v":""},{"$f":"IF('800111a - Nota. Detalle de CxC.'!E155=\"\",\"\",'800111a - Nota. Detalle de CxC.'!E155)","v":""},{"$f":"IF('800111a - Nota. Detalle de CxC.'!E156=\"\",\"\",'800111a - Nota. Detalle de CxC.'!E156)","v":""},{"$f":"IF('800111a - Nota. Detalle de CxC.'!E157=\"\",\"\",'800111a - Nota. Detalle de CxC.'!E157)","v":""},{"$f":"IF('800111a - Nota. Detalle de CxC.'!E158=\"\",\"\",'800111a - Nota. Detalle de CxC.'!E158)","v":""},{"$f":"IF('800111a - Nota. Detalle de CxC.'!E159=\"\",\"\",'800111a - Nota. Detalle de CxC.'!E159)","v":""},{"$f":"IF('800111a - Nota. Detalle de CxC.'!E160=\"\",\"\",'800111a - Nota. Detalle de CxC.'!E160)","v":""},{"$f":"IF('800111a - Nota. Detalle de CxC.'!E161=\"\",\"\",'800111a - Nota. Detalle de CxC.'!E161)","v":""},{"$f":"IF('800111a - Nota. Detalle de CxC.'!E162=\"\",\"\",'800111a - Nota. Detalle de CxC.'!E162)","v":""},{"$f":"IF('800111a - Nota. Detalle de CxC.'!E163=\"\",\"\",'800111a - Nota. Detalle de CxC.'!E163)","v":""},{"$f":"IF('800111a - Nota. Detalle de CxC.'!E164=\"\",\"\",'800111a - Nota. Detalle de CxC.'!E164)","v":""},{"$f":"IF('800111a - Nota. Detalle de CxC.'!E165=\"\",\"\",'800111a - Nota. Detalle de CxC.'!E165)","v":""},{"$f":"IF('800111a - Nota. Detalle de CxC.'!E166=\"\",\"\",'800111a - Nota. Detalle de CxC.'!E166)","v":""},{"$f":"IF('800111a - Nota. Detalle de CxC.'!E167=\"\",\"\",'800111a - Nota. Detalle de CxC.'!E167)","v":""},{"$f":"IF('800111a - Nota. Detalle de CxC.'!E168=\"\",\"\",'800111a - Nota. Detalle de CxC.'!E168)","v":""},{"$f":"IF('800111a - Nota. Detalle de CxC.'!E169=\"\",\"\",'800111a - Nota. Detalle de CxC.'!E169)","v":""}]
[null,"1;1","co-svsp-core_2017-12-31:NumeroIdentificacionDeudorCxC","Número de identificación del deudor",null,null,{"$f":"IF('800111a - Nota. Detalle de CxC.'!F14=\"\",\"\",'800111a - Nota. Detalle de CxC.'!F14)","v":""},{"$f":"IF('800111a - Nota. Detalle de CxC.'!F15=\"\",\"\",'800111a - Nota. Detalle de CxC.'!F15)","v":""},{"$f":"IF('800111a - Nota. Detalle de CxC.'!F16=\"\",\"\",'800111a - Nota. Detalle de CxC.'!F16)","v":""},{"$f":"IF('800111a - Nota. Detalle de CxC.'!F17=\"\",\"\",'800111a - Nota. Detalle de CxC.'!F17)","v":""},{"$f":"IF('800111a - Nota. Detalle de CxC.'!F18=\"\",\"\",'800111a - Nota. Detalle de CxC.'!F18)","v":""},{"$f":"IF('800111a - Nota. Detalle de CxC.'!F19=\"\",\"\",'800111a - Nota. Detalle de CxC.'!F19)","v":""},{"$f":"IF('800111a - Nota. Detalle de CxC.'!F20=\"\",\"\",'800111a - Nota. Detalle de CxC.'!F20)","v":""},{"$f":"IF('800111a - Nota. Detalle de CxC.'!F21=\"\",\"\",'800111a - Nota. Detalle de CxC.'!F21)","v":""},{"$f":"IF('800111a - Nota. Detalle de CxC.'!F22=\"\",\"\",'800111a - Nota. Detalle de CxC.'!F22)","v":""},{"$f":"IF('800111a - Nota. Detalle de CxC.'!F23=\"\",\"\",'800111a - Nota. Detalle de CxC.'!F23)","v":""},{"$f":"IF('800111a - Nota. Detalle de CxC.'!F24=\"\",\"\",'800111a - Nota. Detalle de CxC.'!F24)","v":""},{"$f":"IF('800111a - Nota. Detalle de CxC.'!F25=\"\",\"\",'800111a - Nota. Detalle de CxC.'!F25)","v":""},{"$f":"IF('800111a - Nota. Detalle de CxC.'!F26=\"\",\"\",'800111a - Nota. Detalle de CxC.'!F26)","v":""},{"$f":"IF('800111a - Nota. Detalle de CxC.'!F27=\"\",\"\",'800111a - Nota. Detalle de CxC.'!F27)","v":""},{"$f":"IF('800111a - Nota. Detalle de CxC.'!F28=\"\",\"\",'800111a - Nota. Detalle de CxC.'!F28)","v":""},{"$f":"IF('800111a - Nota. Detalle de CxC.'!F29=\"\",\"\",'800111a - Nota. Detalle de CxC.'!F29)","v":""},{"$f":"IF('800111a - Nota. Detalle de CxC.'!F30=\"\",\"\",'800111a - Nota. Detalle de CxC.'!F30)","v":""},{"$f":"IF('800111a - Nota. Detalle de CxC.'!F31=\"\",\"\",'800111a - Nota. Detalle de CxC.'!F31)","v":""},{"$f":"IF('800111a - Nota. Detalle de CxC.'!F32=\"\",\"\",'800111a - Nota. Detalle de CxC.'!F32)","v":""},{"$f":"IF('800111a - Nota. Detalle de CxC.'!F33=\"\",\"\",'800111a - Nota. Detalle de CxC.'!F33)","v":""},{"$f":"IF('800111a - Nota. Detalle de CxC.'!F34=\"\",\"\",'800111a - Nota. Detalle de CxC.'!F34)","v":""},{"$f":"IF('800111a - Nota. Detalle de CxC.'!F35=\"\",\"\",'800111a - Nota. Detalle de CxC.'!F35)","v":""},{"$f":"IF('800111a - Nota. Detalle de CxC.'!F36=\"\",\"\",'800111a - Nota. Detalle de CxC.'!F36)","v":""},{"$f":"IF('800111a - Nota. Detalle de CxC.'!F37=\"\",\"\",'800111a - Nota. Detalle de CxC.'!F37)","v":""},{"$f":"IF('800111a - Nota. Detalle de CxC.'!F38=\"\",\"\",'800111a - Nota. Detalle de CxC.'!F38)","v":""},{"$f":"IF('800111a - Nota. Detalle de CxC.'!F39=\"\",\"\",'800111a - Nota. Detalle de CxC.'!F39)","v":""},{"$f":"IF('800111a - Nota. Detalle de CxC.'!F40=\"\",\"\",'800111a - Nota. Detalle de CxC.'!F40)","v":""},{"$f":"IF('800111a - Nota. Detalle de CxC.'!F41=\"\",\"\",'800111a - Nota. Detalle de CxC.'!F41)","v":""},{"$f":"IF('800111a - Nota. Detalle de CxC.'!F42=\"\",\"\",'800111a - Nota. Detalle de CxC.'!F42)","v":""},{"$f":"IF('800111a - Nota. Detalle de CxC.'!F43=\"\",\"\",'800111a - Nota. Detalle de CxC.'!F43)","v":""},{"$f":"IF('800111a - Nota. Detalle de CxC.'!F44=\"\",\"\",'800111a - Nota. Detalle de CxC.'!F44)","v":""},{"$f":"IF('800111a - Nota. Detalle de CxC.'!F45=\"\",\"\",'800111a - Nota. Detalle de CxC.'!F45)","v":""},{"$f":"IF('800111a - Nota. Detalle de CxC.'!F46=\"\",\"\",'800111a - Nota. Detalle de CxC.'!F46)","v":""},{"$f":"IF('800111a - Nota. Detalle de CxC.'!F47=\"\",\"\",'800111a - Nota. Detalle de CxC.'!F47)","v":""},{"$f":"IF('800111a - Nota. Detalle de CxC.'!F48=\"\",\"\",'800111a - Nota. Detalle de CxC.'!F48)","v":""},{"$f":"IF('800111a - Nota. Detalle de CxC.'!F49=\"\",\"\",'800111a - Nota. Detalle de CxC.'!F49)","v":""},{"$f":"IF('800111a - Nota. Detalle de CxC.'!F50=\"\",\"\",'800111a - Nota. Detalle de CxC.'!F50)","v":""},{"$f":"IF('800111a - Nota. Detalle de CxC.'!F51=\"\",\"\",'800111a - Nota. Detalle de CxC.'!F51)","v":""},{"$f":"IF('800111a - Nota. Detalle de CxC.'!F52=\"\",\"\",'800111a - Nota. Detalle de CxC.'!F52)","v":""},{"$f":"IF('800111a - Nota. Detalle de CxC.'!F53=\"\",\"\",'800111a - Nota. Detalle de CxC.'!F53)","v":""},{"$f":"IF('800111a - Nota. Detalle de CxC.'!F54=\"\",\"\",'800111a - Nota. Detalle de CxC.'!F54)","v":""},{"$f":"IF('800111a - Nota. Detalle de CxC.'!F55=\"\",\"\",'800111a - Nota. Detalle de CxC.'!F55)","v":""},{"$f":"IF('800111a - Nota. Detalle de CxC.'!F56=\"\",\"\",'800111a - Nota. Detalle de CxC.'!F56)","v":""},{"$f":"IF('800111a - Nota. Detalle de CxC.'!F57=\"\",\"\",'800111a - Nota. Detalle de CxC.'!F57)","v":""},{"$f":"IF('800111a - Nota. Detalle de CxC.'!F58=\"\",\"\",'800111a - Nota. Detalle de CxC.'!F58)","v":""},{"$f":"IF('800111a - Nota. Detalle de CxC.'!F59=\"\",\"\",'800111a - Nota. Detalle de CxC.'!F59)","v":""},{"$f":"IF('800111a - Nota. Detalle de CxC.'!F60=\"\",\"\",'800111a - Nota. Detalle de CxC.'!F60)","v":""},{"$f":"IF('800111a - Nota. Detalle de CxC.'!F61=\"\",\"\",'800111a - Nota. Detalle de CxC.'!F61)","v":""},{"$f":"IF('800111a - Nota. Detalle de CxC.'!F62=\"\",\"\",'800111a - Nota. Detalle de CxC.'!F62)","v":""},{"$f":"IF('800111a - Nota. Detalle de CxC.'!F63=\"\",\"\",'800111a - Nota. Detalle de CxC.'!F63)","v":""},null,null,null,{"$f":"IF('800111a - Nota. Detalle de CxC.'!F67=\"\",\"\",'800111a - Nota. Detalle de CxC.'!F67)","v":""},{"$f":"IF('800111a - Nota. Detalle de CxC.'!F68=\"\",\"\",'800111a - Nota. Detalle de CxC.'!F68)","v":""},{"$f":"IF('800111a - Nota. Detalle de CxC.'!F69=\"\",\"\",'800111a - Nota. Detalle de CxC.'!F69)","v":""},{"$f":"IF('800111a - Nota. Detalle de CxC.'!F70=\"\",\"\",'800111a - Nota. Detalle de CxC.'!F70)","v":""},{"$f":"IF('800111a - Nota. Detalle de CxC.'!F71=\"\",\"\",'800111a - Nota. Detalle de CxC.'!F71)","v":""},{"$f":"IF('800111a - Nota. Detalle de CxC.'!F72=\"\",\"\",'800111a - Nota. Detalle de CxC.'!F72)","v":""},{"$f":"IF('800111a - Nota. Detalle de CxC.'!F73=\"\",\"\",'800111a - Nota. Detalle de CxC.'!F73)","v":""},{"$f":"IF('800111a - Nota. Detalle de CxC.'!F74=\"\",\"\",'800111a - Nota. Detalle de CxC.'!F74)","v":""},{"$f":"IF('800111a - Nota. Detalle de CxC.'!F75=\"\",\"\",'800111a - Nota. Detalle de CxC.'!F75)","v":""},{"$f":"IF('800111a - Nota. Detalle de CxC.'!F76=\"\",\"\",'800111a - Nota. Detalle de CxC.'!F76)","v":""},{"$f":"IF('800111a - Nota. Detalle de CxC.'!F77=\"\",\"\",'800111a - Nota. Detalle de CxC.'!F77)","v":""},{"$f":"IF('800111a - Nota. Detalle de CxC.'!F78=\"\",\"\",'800111a - Nota. Detalle de CxC.'!F78)","v":""},{"$f":"IF('800111a - Nota. Detalle de CxC.'!F79=\"\",\"\",'800111a - Nota. Detalle de CxC.'!F79)","v":""},{"$f":"IF('800111a - Nota. Detalle de CxC.'!F80=\"\",\"\",'800111a - Nota. Detalle de CxC.'!F80)","v":""},{"$f":"IF('800111a - Nota. Detalle de CxC.'!F81=\"\",\"\",'800111a - Nota. Detalle de CxC.'!F81)","v":""},{"$f":"IF('800111a - Nota. Detalle de CxC.'!F82=\"\",\"\",'800111a - Nota. Detalle de CxC.'!F82)","v":""},{"$f":"IF('800111a - Nota. Detalle de CxC.'!F83=\"\",\"\",'800111a - Nota. Detalle de CxC.'!F83)","v":""},{"$f":"IF('800111a - Nota. Detalle de CxC.'!F84=\"\",\"\",'800111a - Nota. Detalle de CxC.'!F84)","v":""},{"$f":"IF('800111a - Nota. Detalle de CxC.'!F85=\"\",\"\",'800111a - Nota. Detalle de CxC.'!F85)","v":""},{"$f":"IF('800111a - Nota. Detalle de CxC.'!F86=\"\",\"\",'800111a - Nota. Detalle de CxC.'!F86)","v":""},{"$f":"IF('800111a - Nota. Detalle de CxC.'!F87=\"\",\"\",'800111a - Nota. Detalle de CxC.'!F87)","v":""},{"$f":"IF('800111a - Nota. Detalle de CxC.'!F88=\"\",\"\",'800111a - Nota. Detalle de CxC.'!F88)","v":""},{"$f":"IF('800111a - Nota. Detalle de CxC.'!F89=\"\",\"\",'800111a - Nota. Detalle de CxC.'!F89)","v":""},{"$f":"IF('800111a - Nota. Detalle de CxC.'!F90=\"\",\"\",'800111a - Nota. Detalle de CxC.'!F90)","v":""},{"$f":"IF('800111a - Nota. Detalle de CxC.'!F91=\"\",\"\",'800111a - Nota. Detalle de CxC.'!F91)","v":""},{"$f":"IF('800111a - Nota. Detalle de CxC.'!F92=\"\",\"\",'800111a - Nota. Detalle de CxC.'!F92)","v":""},{"$f":"IF('800111a - Nota. Detalle de CxC.'!F93=\"\",\"\",'800111a - Nota. Detalle de CxC.'!F93)","v":""},{"$f":"IF('800111a - Nota. Detalle de CxC.'!F94=\"\",\"\",'800111a - Nota. Detalle de CxC.'!F94)","v":""},{"$f":"IF('800111a - Nota. Detalle de CxC.'!F95=\"\",\"\",'800111a - Nota. Detalle de CxC.'!F95)","v":""},{"$f":"IF('800111a - Nota. Detalle de CxC.'!F96=\"\",\"\",'800111a - Nota. Detalle de CxC.'!F96)","v":""},{"$f":"IF('800111a - Nota. Detalle de CxC.'!F97=\"\",\"\",'800111a - Nota. Detalle de CxC.'!F97)","v":""},{"$f":"IF('800111a - Nota. Detalle de CxC.'!F98=\"\",\"\",'800111a - Nota. Detalle de CxC.'!F98)","v":""},{"$f":"IF('800111a - Nota. Detalle de CxC.'!F99=\"\",\"\",'800111a - Nota. Detalle de CxC.'!F99)","v":""},{"$f":"IF('800111a - Nota. Detalle de CxC.'!F100=\"\",\"\",'800111a - Nota. Detalle de CxC.'!F100)","v":""},{"$f":"IF('800111a - Nota. Detalle de CxC.'!F101=\"\",\"\",'800111a - Nota. Detalle de CxC.'!F101)","v":""},{"$f":"IF('800111a - Nota. Detalle de CxC.'!F102=\"\",\"\",'800111a - Nota. Detalle de CxC.'!F102)","v":""},{"$f":"IF('800111a - Nota. Detalle de CxC.'!F103=\"\",\"\",'800111a - Nota. Detalle de CxC.'!F103)","v":""},{"$f":"IF('800111a - Nota. Detalle de CxC.'!F104=\"\",\"\",'800111a - Nota. Detalle de CxC.'!F104)","v":""},{"$f":"IF('800111a - Nota. Detalle de CxC.'!F105=\"\",\"\",'800111a - Nota. Detalle de CxC.'!F105)","v":""},{"$f":"IF('800111a - Nota. Detalle de CxC.'!F106=\"\",\"\",'800111a - Nota. Detalle de CxC.'!F106)","v":""},{"$f":"IF('800111a - Nota. Detalle de CxC.'!F107=\"\",\"\",'800111a - Nota. Detalle de CxC.'!F107)","v":""},{"$f":"IF('800111a - Nota. Detalle de CxC.'!F108=\"\",\"\",'800111a - Nota. Detalle de CxC.'!F108)","v":""},{"$f":"IF('800111a - Nota. Detalle de CxC.'!F109=\"\",\"\",'800111a - Nota. Detalle de CxC.'!F109)","v":""},{"$f":"IF('800111a - Nota. Detalle de CxC.'!F110=\"\",\"\",'800111a - Nota. Detalle de CxC.'!F110)","v":""},{"$f":"IF('800111a - Nota. Detalle de CxC.'!F111=\"\",\"\",'800111a - Nota. Detalle de CxC.'!F111)","v":""},{"$f":"IF('800111a - Nota. Detalle de CxC.'!F112=\"\",\"\",'800111a - Nota. Detalle de CxC.'!F112)","v":""},{"$f":"IF('800111a - Nota. Detalle de CxC.'!F113=\"\",\"\",'800111a - Nota. Detalle de CxC.'!F113)","v":""},{"$f":"IF('800111a - Nota. Detalle de CxC.'!F114=\"\",\"\",'800111a - Nota. Detalle de CxC.'!F114)","v":""},{"$f":"IF('800111a - Nota. Detalle de CxC.'!F115=\"\",\"\",'800111a - Nota. Detalle de CxC.'!F115)","v":""},{"$f":"IF('800111a - Nota. Detalle de CxC.'!F116=\"\",\"\",'800111a - Nota. Detalle de CxC.'!F116)","v":""},null,null,null,{"$f":"IF('800111a - Nota. Detalle de CxC.'!F120=\"\",\"\",'800111a - Nota. Detalle de CxC.'!F120)","v":""},{"$f":"IF('800111a - Nota. Detalle de CxC.'!F121=\"\",\"\",'800111a - Nota. Detalle de CxC.'!F121)","v":""},{"$f":"IF('800111a - Nota. Detalle de CxC.'!F122=\"\",\"\",'800111a - Nota. Detalle de CxC.'!F122)","v":""},{"$f":"IF('800111a - Nota. Detalle de CxC.'!F123=\"\",\"\",'800111a - Nota. Detalle de CxC.'!F123)","v":""},{"$f":"IF('800111a - Nota. Detalle de CxC.'!F124=\"\",\"\",'800111a - Nota. Detalle de CxC.'!F124)","v":""},{"$f":"IF('800111a - Nota. Detalle de CxC.'!F125=\"\",\"\",'800111a - Nota. Detalle de CxC.'!F125)","v":""},{"$f":"IF('800111a - Nota. Detalle de CxC.'!F126=\"\",\"\",'800111a - Nota. Detalle de CxC.'!F126)","v":""},{"$f":"IF('800111a - Nota. Detalle de CxC.'!F127=\"\",\"\",'800111a - Nota. Detalle de CxC.'!F127)","v":""},{"$f":"IF('800111a - Nota. Detalle de CxC.'!F128=\"\",\"\",'800111a - Nota. Detalle de CxC.'!F128)","v":""},{"$f":"IF('800111a - Nota. Detalle de CxC.'!F129=\"\",\"\",'800111a - Nota. Detalle de CxC.'!F129)","v":""},{"$f":"IF('800111a - Nota. Detalle de CxC.'!F130=\"\",\"\",'800111a - Nota. Detalle de CxC.'!F130)","v":""},{"$f":"IF('800111a - Nota. Detalle de CxC.'!F131=\"\",\"\",'800111a - Nota. Detalle de CxC.'!F131)","v":""},{"$f":"IF('800111a - Nota. Detalle de CxC.'!F132=\"\",\"\",'800111a - Nota. Detalle de CxC.'!F132)","v":""},{"$f":"IF('800111a - Nota. Detalle de CxC.'!F133=\"\",\"\",'800111a - Nota. Detalle de CxC.'!F133)","v":""},{"$f":"IF('800111a - Nota. Detalle de CxC.'!F134=\"\",\"\",'800111a - Nota. Detalle de CxC.'!F134)","v":""},{"$f":"IF('800111a - Nota. Detalle de CxC.'!F135=\"\",\"\",'800111a - Nota. Detalle de CxC.'!F135)","v":""},{"$f":"IF('800111a - Nota. Detalle de CxC.'!F136=\"\",\"\",'800111a - Nota. Detalle de CxC.'!F136)","v":""},{"$f":"IF('800111a - Nota. Detalle de CxC.'!F137=\"\",\"\",'800111a - Nota. Detalle de CxC.'!F137)","v":""},{"$f":"IF('800111a - Nota. Detalle de CxC.'!F138=\"\",\"\",'800111a - Nota. Detalle de CxC.'!F138)","v":""},{"$f":"IF('800111a - Nota. Detalle de CxC.'!F139=\"\",\"\",'800111a - Nota. Detalle de CxC.'!F139)","v":""},{"$f":"IF('800111a - Nota. Detalle de CxC.'!F140=\"\",\"\",'800111a - Nota. Detalle de CxC.'!F140)","v":""},{"$f":"IF('800111a - Nota. Detalle de CxC.'!F141=\"\",\"\",'800111a - Nota. Detalle de CxC.'!F141)","v":""},{"$f":"IF('800111a - Nota. Detalle de CxC.'!F142=\"\",\"\",'800111a - Nota. Detalle de CxC.'!F142)","v":""},{"$f":"IF('800111a - Nota. Detalle de CxC.'!F143=\"\",\"\",'800111a - Nota. Detalle de CxC.'!F143)","v":""},{"$f":"IF('800111a - Nota. Detalle de CxC.'!F144=\"\",\"\",'800111a - Nota. Detalle de CxC.'!F144)","v":""},{"$f":"IF('800111a - Nota. Detalle de CxC.'!F145=\"\",\"\",'800111a - Nota. Detalle de CxC.'!F145)","v":""},{"$f":"IF('800111a - Nota. Detalle de CxC.'!F146=\"\",\"\",'800111a - Nota. Detalle de CxC.'!F146)","v":""},{"$f":"IF('800111a - Nota. Detalle de CxC.'!F147=\"\",\"\",'800111a - Nota. Detalle de CxC.'!F147)","v":""},{"$f":"IF('800111a - Nota. Detalle de CxC.'!F148=\"\",\"\",'800111a - Nota. Detalle de CxC.'!F148)","v":""},{"$f":"IF('800111a - Nota. Detalle de CxC.'!F149=\"\",\"\",'800111a - Nota. Detalle de CxC.'!F149)","v":""},{"$f":"IF('800111a - Nota. Detalle de CxC.'!F150=\"\",\"\",'800111a - Nota. Detalle de CxC.'!F150)","v":""},{"$f":"IF('800111a - Nota. Detalle de CxC.'!F151=\"\",\"\",'800111a - Nota. Detalle de CxC.'!F151)","v":""},{"$f":"IF('800111a - Nota. Detalle de CxC.'!F152=\"\",\"\",'800111a - Nota. Detalle de CxC.'!F152)","v":""},{"$f":"IF('800111a - Nota. Detalle de CxC.'!F153=\"\",\"\",'800111a - Nota. Detalle de CxC.'!F153)","v":""},{"$f":"IF('800111a - Nota. Detalle de CxC.'!F154=\"\",\"\",'800111a - Nota. Detalle de CxC.'!F154)","v":""},{"$f":"IF('800111a - Nota. Detalle de CxC.'!F155=\"\",\"\",'800111a - Nota. Detalle de CxC.'!F155)","v":""},{"$f":"IF('800111a - Nota. Detalle de CxC.'!F156=\"\",\"\",'800111a - Nota. Detalle de CxC.'!F156)","v":""},{"$f":"IF('800111a - Nota. Detalle de CxC.'!F157=\"\",\"\",'800111a - Nota. Detalle de CxC.'!F157)","v":""},{"$f":"IF('800111a - Nota. Detalle de CxC.'!F158=\"\",\"\",'800111a - Nota. Detalle de CxC.'!F158)","v":""},{"$f":"IF('800111a - Nota. Detalle de CxC.'!F159=\"\",\"\",'800111a - Nota. Detalle de CxC.'!F159)","v":""},{"$f":"IF('800111a - Nota. Detalle de CxC.'!F160=\"\",\"\",'800111a - Nota. Detalle de CxC.'!F160)","v":""},{"$f":"IF('800111a - Nota. Detalle de CxC.'!F161=\"\",\"\",'800111a - Nota. Detalle de CxC.'!F161)","v":""},{"$f":"IF('800111a - Nota. Detalle de CxC.'!F162=\"\",\"\",'800111a - Nota. Detalle de CxC.'!F162)","v":""},{"$f":"IF('800111a - Nota. Detalle de CxC.'!F163=\"\",\"\",'800111a - Nota. Detalle de CxC.'!F163)","v":""},{"$f":"IF('800111a - Nota. Detalle de CxC.'!F164=\"\",\"\",'800111a - Nota. Detalle de CxC.'!F164)","v":""},{"$f":"IF('800111a - Nota. Detalle de CxC.'!F165=\"\",\"\",'800111a - Nota. Detalle de CxC.'!F165)","v":""},{"$f":"IF('800111a - Nota. Detalle de CxC.'!F166=\"\",\"\",'800111a - Nota. Detalle de CxC.'!F166)","v":""},{"$f":"IF('800111a - Nota. Detalle de CxC.'!F167=\"\",\"\",'800111a - Nota. Detalle de CxC.'!F167)","v":""},{"$f":"IF('800111a - Nota. Detalle de CxC.'!F168=\"\",\"\",'800111a - Nota. Detalle de CxC.'!F168)","v":""},{"$f":"IF('800111a - Nota. Detalle de CxC.'!F169=\"\",\"\",'800111a - Nota. Detalle de CxC.'!F169)","v":""}]
[null,"1;1","co-svsp-core_2017-12-31:PrimerApellidoDeudorCxC","Primer apellido deudor",null,null,{"$f":"IF('800111a - Nota. Detalle de CxC.'!G14=\"\",\"\",'800111a - Nota. Detalle de CxC.'!G14)","v":""},{"$f":"IF('800111a - Nota. Detalle de CxC.'!G15=\"\",\"\",'800111a - Nota. Detalle de CxC.'!G15)","v":""},{"$f":"IF('800111a - Nota. Detalle de CxC.'!G16=\"\",\"\",'800111a - Nota. Detalle de CxC.'!G16)","v":""},{"$f":"IF('800111a - Nota. Detalle de CxC.'!G17=\"\",\"\",'800111a - Nota. Detalle de CxC.'!G17)","v":""},{"$f":"IF('800111a - Nota. Detalle de CxC.'!G18=\"\",\"\",'800111a - Nota. Detalle de CxC.'!G18)","v":""},{"$f":"IF('800111a - Nota. Detalle de CxC.'!G19=\"\",\"\",'800111a - Nota. Detalle de CxC.'!G19)","v":""},{"$f":"IF('800111a - Nota. Detalle de CxC.'!G20=\"\",\"\",'800111a - Nota. Detalle de CxC.'!G20)","v":""},{"$f":"IF('800111a - Nota. Detalle de CxC.'!G21=\"\",\"\",'800111a - Nota. Detalle de CxC.'!G21)","v":""},{"$f":"IF('800111a - Nota. Detalle de CxC.'!G22=\"\",\"\",'800111a - Nota. Detalle de CxC.'!G22)","v":""},{"$f":"IF('800111a - Nota. Detalle de CxC.'!G23=\"\",\"\",'800111a - Nota. Detalle de CxC.'!G23)","v":""},{"$f":"IF('800111a - Nota. Detalle de CxC.'!G24=\"\",\"\",'800111a - Nota. Detalle de CxC.'!G24)","v":""},{"$f":"IF('800111a - Nota. Detalle de CxC.'!G25=\"\",\"\",'800111a - Nota. Detalle de CxC.'!G25)","v":""},{"$f":"IF('800111a - Nota. Detalle de CxC.'!G26=\"\",\"\",'800111a - Nota. Detalle de CxC.'!G26)","v":""},{"$f":"IF('800111a - Nota. Detalle de CxC.'!G27=\"\",\"\",'800111a - Nota. Detalle de CxC.'!G27)","v":""},{"$f":"IF('800111a - Nota. Detalle de CxC.'!G28=\"\",\"\",'800111a - Nota. Detalle de CxC.'!G28)","v":""},{"$f":"IF('800111a - Nota. Detalle de CxC.'!G29=\"\",\"\",'800111a - Nota. Detalle de CxC.'!G29)","v":""},{"$f":"IF('800111a - Nota. Detalle de CxC.'!G30=\"\",\"\",'800111a - Nota. Detalle de CxC.'!G30)","v":""},{"$f":"IF('800111a - Nota. Detalle de CxC.'!G31=\"\",\"\",'800111a - Nota. Detalle de CxC.'!G31)","v":""},{"$f":"IF('800111a - Nota. Detalle de CxC.'!G32=\"\",\"\",'800111a - Nota. Detalle de CxC.'!G32)","v":""},{"$f":"IF('800111a - Nota. Detalle de CxC.'!G33=\"\",\"\",'800111a - Nota. Detalle de CxC.'!G33)","v":""},{"$f":"IF('800111a - Nota. Detalle de CxC.'!G34=\"\",\"\",'800111a - Nota. Detalle de CxC.'!G34)","v":""},{"$f":"IF('800111a - Nota. Detalle de CxC.'!G35=\"\",\"\",'800111a - Nota. Detalle de CxC.'!G35)","v":""},{"$f":"IF('800111a - Nota. Detalle de CxC.'!G36=\"\",\"\",'800111a - Nota. Detalle de CxC.'!G36)","v":""},{"$f":"IF('800111a - Nota. Detalle de CxC.'!G37=\"\",\"\",'800111a - Nota. Detalle de CxC.'!G37)","v":""},{"$f":"IF('800111a - Nota. Detalle de CxC.'!G38=\"\",\"\",'800111a - Nota. Detalle de CxC.'!G38)","v":""},{"$f":"IF('800111a - Nota. Detalle de CxC.'!G39=\"\",\"\",'800111a - Nota. Detalle de CxC.'!G39)","v":""},{"$f":"IF('800111a - Nota. Detalle de CxC.'!G40=\"\",\"\",'800111a - Nota. Detalle de CxC.'!G40)","v":""},{"$f":"IF('800111a - Nota. Detalle de CxC.'!G41=\"\",\"\",'800111a - Nota. Detalle de CxC.'!G41)","v":""},{"$f":"IF('800111a - Nota. Detalle de CxC.'!G42=\"\",\"\",'800111a - Nota. Detalle de CxC.'!G42)","v":""},{"$f":"IF('800111a - Nota. Detalle de CxC.'!G43=\"\",\"\",'800111a - Nota. Detalle de CxC.'!G43)","v":""},{"$f":"IF('800111a - Nota. Detalle de CxC.'!G44=\"\",\"\",'800111a - Nota. Detalle de CxC.'!G44)","v":""},{"$f":"IF('800111a - Nota. Detalle de CxC.'!G45=\"\",\"\",'800111a - Nota. Detalle de CxC.'!G45)","v":""},{"$f":"IF('800111a - Nota. Detalle de CxC.'!G46=\"\",\"\",'800111a - Nota. Detalle de CxC.'!G46)","v":""},{"$f":"IF('800111a - Nota. Detalle de CxC.'!G47=\"\",\"\",'800111a - Nota. Detalle de CxC.'!G47)","v":""},{"$f":"IF('800111a - Nota. Detalle de CxC.'!G48=\"\",\"\",'800111a - Nota. Detalle de CxC.'!G48)","v":""},{"$f":"IF('800111a - Nota. Detalle de CxC.'!G49=\"\",\"\",'800111a - Nota. Detalle de CxC.'!G49)","v":""},{"$f":"IF('800111a - Nota. Detalle de CxC.'!G50=\"\",\"\",'800111a - Nota. Detalle de CxC.'!G50)","v":""},{"$f":"IF('800111a - Nota. Detalle de CxC.'!G51=\"\",\"\",'800111a - Nota. Detalle de CxC.'!G51)","v":""},{"$f":"IF('800111a - Nota. Detalle de CxC.'!G52=\"\",\"\",'800111a - Nota. Detalle de CxC.'!G52)","v":""},{"$f":"IF('800111a - Nota. Detalle de CxC.'!G53=\"\",\"\",'800111a - Nota. Detalle de CxC.'!G53)","v":""},{"$f":"IF('800111a - Nota. Detalle de CxC.'!G54=\"\",\"\",'800111a - Nota. Detalle de CxC.'!G54)","v":""},{"$f":"IF('800111a - Nota. Detalle de CxC.'!G55=\"\",\"\",'800111a - Nota. Detalle de CxC.'!G55)","v":""},{"$f":"IF('800111a - Nota. Detalle de CxC.'!G56=\"\",\"\",'800111a - Nota. Detalle de CxC.'!G56)","v":""},{"$f":"IF('800111a - Nota. Detalle de CxC.'!G57=\"\",\"\",'800111a - Nota. Detalle de CxC.'!G57)","v":""},{"$f":"IF('800111a - Nota. Detalle de CxC.'!G58=\"\",\"\",'800111a - Nota. Detalle de CxC.'!G58)","v":""},{"$f":"IF('800111a - Nota. Detalle de CxC.'!G59=\"\",\"\",'800111a - Nota. Detalle de CxC.'!G59)","v":""},{"$f":"IF('800111a - Nota. Detalle de CxC.'!G60=\"\",\"\",'800111a - Nota. Detalle de CxC.'!G60)","v":""},{"$f":"IF('800111a - Nota. Detalle de CxC.'!G61=\"\",\"\",'800111a - Nota. Detalle de CxC.'!G61)","v":""},{"$f":"IF('800111a - Nota. Detalle de CxC.'!G62=\"\",\"\",'800111a - Nota. Detalle de CxC.'!G62)","v":""},{"$f":"IF('800111a - Nota. Detalle de CxC.'!G63=\"\",\"\",'800111a - Nota. Detalle de CxC.'!G63)","v":""},null,null,null,{"$f":"IF('800111a - Nota. Detalle de CxC.'!G67=\"\",\"\",'800111a - Nota. Detalle de CxC.'!G67)","v":""},{"$f":"IF('800111a - Nota. Detalle de CxC.'!G68=\"\",\"\",'800111a - Nota. Detalle de CxC.'!G68)","v":""},{"$f":"IF('800111a - Nota. Detalle de CxC.'!G69=\"\",\"\",'800111a - Nota. Detalle de CxC.'!G69)","v":""},{"$f":"IF('800111a - Nota. Detalle de CxC.'!G70=\"\",\"\",'800111a - Nota. Detalle de CxC.'!G70)","v":""},{"$f":"IF('800111a - Nota. Detalle de CxC.'!G71=\"\",\"\",'800111a - Nota. Detalle de CxC.'!G71)","v":""},{"$f":"IF('800111a - Nota. Detalle de CxC.'!G72=\"\",\"\",'800111a - Nota. Detalle de CxC.'!G72)","v":""},{"$f":"IF('800111a - Nota. Detalle de CxC.'!G73=\"\",\"\",'800111a - Nota. Detalle de CxC.'!G73)","v":""},{"$f":"IF('800111a - Nota. Detalle de CxC.'!G74=\"\",\"\",'800111a - Nota. Detalle de CxC.'!G74)","v":""},{"$f":"IF('800111a - Nota. Detalle de CxC.'!G75=\"\",\"\",'800111a - Nota. Detalle de CxC.'!G75)","v":""},{"$f":"IF('800111a - Nota. Detalle de CxC.'!G76=\"\",\"\",'800111a - Nota. Detalle de CxC.'!G76)","v":""},{"$f":"IF('800111a - Nota. Detalle de CxC.'!G77=\"\",\"\",'800111a - Nota. Detalle de CxC.'!G77)","v":""},{"$f":"IF('800111a - Nota. Detalle de CxC.'!G78=\"\",\"\",'800111a - Nota. Detalle de CxC.'!G78)","v":""},{"$f":"IF('800111a - Nota. Detalle de CxC.'!G79=\"\",\"\",'800111a - Nota. Detalle de CxC.'!G79)","v":""},{"$f":"IF('800111a - Nota. Detalle de CxC.'!G80=\"\",\"\",'800111a - Nota. Detalle de CxC.'!G80)","v":""},{"$f":"IF('800111a - Nota. Detalle de CxC.'!G81=\"\",\"\",'800111a - Nota. Detalle de CxC.'!G81)","v":""},{"$f":"IF('800111a - Nota. Detalle de CxC.'!G82=\"\",\"\",'800111a - Nota. Detalle de CxC.'!G82)","v":""},{"$f":"IF('800111a - Nota. Detalle de CxC.'!G83=\"\",\"\",'800111a - Nota. Detalle de CxC.'!G83)","v":""},{"$f":"IF('800111a - Nota. Detalle de CxC.'!G84=\"\",\"\",'800111a - Nota. Detalle de CxC.'!G84)","v":""},{"$f":"IF('800111a - Nota. Detalle de CxC.'!G85=\"\",\"\",'800111a - Nota. Detalle de CxC.'!G85)","v":""},{"$f":"IF('800111a - Nota. Detalle de CxC.'!G86=\"\",\"\",'800111a - Nota. Detalle de CxC.'!G86)","v":""},{"$f":"IF('800111a - Nota. Detalle de CxC.'!G87=\"\",\"\",'800111a - Nota. Detalle de CxC.'!G87)","v":""},{"$f":"IF('800111a - Nota. Detalle de CxC.'!G88=\"\",\"\",'800111a - Nota. Detalle de CxC.'!G88)","v":""},{"$f":"IF('800111a - Nota. Detalle de CxC.'!G89=\"\",\"\",'800111a - Nota. Detalle de CxC.'!G89)","v":""},{"$f":"IF('800111a - Nota. Detalle de CxC.'!G90=\"\",\"\",'800111a - Nota. Detalle de CxC.'!G90)","v":""},{"$f":"IF('800111a - Nota. Detalle de CxC.'!G91=\"\",\"\",'800111a - Nota. Detalle de CxC.'!G91)","v":""},{"$f":"IF('800111a - Nota. Detalle de CxC.'!G92=\"\",\"\",'800111a - Nota. Detalle de CxC.'!G92)","v":""},{"$f":"IF('800111a - Nota. Detalle de CxC.'!G93=\"\",\"\",'800111a - Nota. Detalle de CxC.'!G93)","v":""},{"$f":"IF('800111a - Nota. Detalle de CxC.'!G94=\"\",\"\",'800111a - Nota. Detalle de CxC.'!G94)","v":""},{"$f":"IF('800111a - Nota. Detalle de CxC.'!G95=\"\",\"\",'800111a - Nota. Detalle de CxC.'!G95)","v":""},{"$f":"IF('800111a - Nota. Detalle de CxC.'!G96=\"\",\"\",'800111a - Nota. Detalle de CxC.'!G96)","v":""},{"$f":"IF('800111a - Nota. Detalle de CxC.'!G97=\"\",\"\",'800111a - Nota. Detalle de CxC.'!G97)","v":""},{"$f":"IF('800111a - Nota. Detalle de CxC.'!G98=\"\",\"\",'800111a - Nota. Detalle de CxC.'!G98)","v":""},{"$f":"IF('800111a - Nota. Detalle de CxC.'!G99=\"\",\"\",'800111a - Nota. Detalle de CxC.'!G99)","v":""},{"$f":"IF('800111a - Nota. Detalle de CxC.'!G100=\"\",\"\",'800111a - Nota. Detalle de CxC.'!G100)","v":""},{"$f":"IF('800111a - Nota. Detalle de CxC.'!G101=\"\",\"\",'800111a - Nota. Detalle de CxC.'!G101)","v":""},{"$f":"IF('800111a - Nota. Detalle de CxC.'!G102=\"\",\"\",'800111a - Nota. Detalle de CxC.'!G102)","v":""},{"$f":"IF('800111a - Nota. Detalle de CxC.'!G103=\"\",\"\",'800111a - Nota. Detalle de CxC.'!G103)","v":""},{"$f":"IF('800111a - Nota. Detalle de CxC.'!G104=\"\",\"\",'800111a - Nota. Detalle de CxC.'!G104)","v":""},{"$f":"IF('800111a - Nota. Detalle de CxC.'!G105=\"\",\"\",'800111a - Nota. Detalle de CxC.'!G105)","v":""},{"$f":"IF('800111a - Nota. Detalle de CxC.'!G106=\"\",\"\",'800111a - Nota. Detalle de CxC.'!G106)","v":""},{"$f":"IF('800111a - Nota. Detalle de CxC.'!G107=\"\",\"\",'800111a - Nota. Detalle de CxC.'!G107)","v":""},{"$f":"IF('800111a - Nota. Detalle de CxC.'!G108=\"\",\"\",'800111a - Nota. Detalle de CxC.'!G108)","v":""},{"$f":"IF('800111a - Nota. Detalle de CxC.'!G109=\"\",\"\",'800111a - Nota. Detalle de CxC.'!G109)","v":""},{"$f":"IF('800111a - Nota. Detalle de CxC.'!G110=\"\",\"\",'800111a - Nota. Detalle de CxC.'!G110)","v":""},{"$f":"IF('800111a - Nota. Detalle de CxC.'!G111=\"\",\"\",'800111a - Nota. Detalle de CxC.'!G111)","v":""},{"$f":"IF('800111a - Nota. Detalle de CxC.'!G112=\"\",\"\",'800111a - Nota. Detalle de CxC.'!G112)","v":""},{"$f":"IF('800111a - Nota. Detalle de CxC.'!G113=\"\",\"\",'800111a - Nota. Detalle de CxC.'!G113)","v":""},{"$f":"IF('800111a - Nota. Detalle de CxC.'!G114=\"\",\"\",'800111a - Nota. Detalle de CxC.'!G114)","v":""},{"$f":"IF('800111a - Nota. Detalle de CxC.'!G115=\"\",\"\",'800111a - Nota. Detalle de CxC.'!G115)","v":""},{"$f":"IF('800111a - Nota. Detalle de CxC.'!G116=\"\",\"\",'800111a - Nota. Detalle de CxC.'!G116)","v":""},null,null,null,{"$f":"IF('800111a - Nota. Detalle de CxC.'!G120=\"\",\"\",'800111a - Nota. Detalle de CxC.'!G120)","v":""},{"$f":"IF('800111a - Nota. Detalle de CxC.'!G121=\"\",\"\",'800111a - Nota. Detalle de CxC.'!G121)","v":""},{"$f":"IF('800111a - Nota. Detalle de CxC.'!G122=\"\",\"\",'800111a - Nota. Detalle de CxC.'!G122)","v":""},{"$f":"IF('800111a - Nota. Detalle de CxC.'!G123=\"\",\"\",'800111a - Nota. Detalle de CxC.'!G123)","v":""},{"$f":"IF('800111a - Nota. Detalle de CxC.'!G124=\"\",\"\",'800111a - Nota. Detalle de CxC.'!G124)","v":""},{"$f":"IF('800111a - Nota. Detalle de CxC.'!G125=\"\",\"\",'800111a - Nota. Detalle de CxC.'!G125)","v":""},{"$f":"IF('800111a - Nota. Detalle de CxC.'!G126=\"\",\"\",'800111a - Nota. Detalle de CxC.'!G126)","v":""},{"$f":"IF('800111a - Nota. Detalle de CxC.'!G127=\"\",\"\",'800111a - Nota. Detalle de CxC.'!G127)","v":""},{"$f":"IF('800111a - Nota. Detalle de CxC.'!G128=\"\",\"\",'800111a - Nota. Detalle de CxC.'!G128)","v":""},{"$f":"IF('800111a - Nota. Detalle de CxC.'!G129=\"\",\"\",'800111a - Nota. Detalle de CxC.'!G129)","v":""},{"$f":"IF('800111a - Nota. Detalle de CxC.'!G130=\"\",\"\",'800111a - Nota. Detalle de CxC.'!G130)","v":""},{"$f":"IF('800111a - Nota. Detalle de CxC.'!G131=\"\",\"\",'800111a - Nota. Detalle de CxC.'!G131)","v":""},{"$f":"IF('800111a - Nota. Detalle de CxC.'!G132=\"\",\"\",'800111a - Nota. Detalle de CxC.'!G132)","v":""},{"$f":"IF('800111a - Nota. Detalle de CxC.'!G133=\"\",\"\",'800111a - Nota. Detalle de CxC.'!G133)","v":""},{"$f":"IF('800111a - Nota. Detalle de CxC.'!G134=\"\",\"\",'800111a - Nota. Detalle de CxC.'!G134)","v":""},{"$f":"IF('800111a - Nota. Detalle de CxC.'!G135=\"\",\"\",'800111a - Nota. Detalle de CxC.'!G135)","v":""},{"$f":"IF('800111a - Nota. Detalle de CxC.'!G136=\"\",\"\",'800111a - Nota. Detalle de CxC.'!G136)","v":""},{"$f":"IF('800111a - Nota. Detalle de CxC.'!G137=\"\",\"\",'800111a - Nota. Detalle de CxC.'!G137)","v":""},{"$f":"IF('800111a - Nota. Detalle de CxC.'!G138=\"\",\"\",'800111a - Nota. Detalle de CxC.'!G138)","v":""},{"$f":"IF('800111a - Nota. Detalle de CxC.'!G139=\"\",\"\",'800111a - Nota. Detalle de CxC.'!G139)","v":""},{"$f":"IF('800111a - Nota. Detalle de CxC.'!G140=\"\",\"\",'800111a - Nota. Detalle de CxC.'!G140)","v":""},{"$f":"IF('800111a - Nota. Detalle de CxC.'!G141=\"\",\"\",'800111a - Nota. Detalle de CxC.'!G141)","v":""},{"$f":"IF('800111a - Nota. Detalle de CxC.'!G142=\"\",\"\",'800111a - Nota. Detalle de CxC.'!G142)","v":""},{"$f":"IF('800111a - Nota. Detalle de CxC.'!G143=\"\",\"\",'800111a - Nota. Detalle de CxC.'!G143)","v":""},{"$f":"IF('800111a - Nota. Detalle de CxC.'!G144=\"\",\"\",'800111a - Nota. Detalle de CxC.'!G144)","v":""},{"$f":"IF('800111a - Nota. Detalle de CxC.'!G145=\"\",\"\",'800111a - Nota. Detalle de CxC.'!G145)","v":""},{"$f":"IF('800111a - Nota. Detalle de CxC.'!G146=\"\",\"\",'800111a - Nota. Detalle de CxC.'!G146)","v":""},{"$f":"IF('800111a - Nota. Detalle de CxC.'!G147=\"\",\"\",'800111a - Nota. Detalle de CxC.'!G147)","v":""},{"$f":"IF('800111a - Nota. Detalle de CxC.'!G148=\"\",\"\",'800111a - Nota. Detalle de CxC.'!G148)","v":""},{"$f":"IF('800111a - Nota. Detalle de CxC.'!G149=\"\",\"\",'800111a - Nota. Detalle de CxC.'!G149)","v":""},{"$f":"IF('800111a - Nota. Detalle de CxC.'!G150=\"\",\"\",'800111a - Nota. Detalle de CxC.'!G150)","v":""},{"$f":"IF('800111a - Nota. Detalle de CxC.'!G151=\"\",\"\",'800111a - Nota. Detalle de CxC.'!G151)","v":""},{"$f":"IF('800111a - Nota. Detalle de CxC.'!G152=\"\",\"\",'800111a - Nota. Detalle de CxC.'!G152)","v":""},{"$f":"IF('800111a - Nota. Detalle de CxC.'!G153=\"\",\"\",'800111a - Nota. Detalle de CxC.'!G153)","v":""},{"$f":"IF('800111a - Nota. Detalle de CxC.'!G154=\"\",\"\",'800111a - Nota. Detalle de CxC.'!G154)","v":""},{"$f":"IF('800111a - Nota. Detalle de CxC.'!G155=\"\",\"\",'800111a - Nota. Detalle de CxC.'!G155)","v":""},{"$f":"IF('800111a - Nota. Detalle de CxC.'!G156=\"\",\"\",'800111a - Nota. Detalle de CxC.'!G156)","v":""},{"$f":"IF('800111a - Nota. Detalle de CxC.'!G157=\"\",\"\",'800111a - Nota. Detalle de CxC.'!G157)","v":""},{"$f":"IF('800111a - Nota. Detalle de CxC.'!G158=\"\",\"\",'800111a - Nota. Detalle de CxC.'!G158)","v":""},{"$f":"IF('800111a - Nota. Detalle de CxC.'!G159=\"\",\"\",'800111a - Nota. Detalle de CxC.'!G159)","v":""},{"$f":"IF('800111a - Nota. Detalle de CxC.'!G160=\"\",\"\",'800111a - Nota. Detalle de CxC.'!G160)","v":""},{"$f":"IF('800111a - Nota. Detalle de CxC.'!G161=\"\",\"\",'800111a - Nota. Detalle de CxC.'!G161)","v":""},{"$f":"IF('800111a - Nota. Detalle de CxC.'!G162=\"\",\"\",'800111a - Nota. Detalle de CxC.'!G162)","v":""},{"$f":"IF('800111a - Nota. Detalle de CxC.'!G163=\"\",\"\",'800111a - Nota. Detalle de CxC.'!G163)","v":""},{"$f":"IF('800111a - Nota. Detalle de CxC.'!G164=\"\",\"\",'800111a - Nota. Detalle de CxC.'!G164)","v":""},{"$f":"IF('800111a - Nota. Detalle de CxC.'!G165=\"\",\"\",'800111a - Nota. Detalle de CxC.'!G165)","v":""},{"$f":"IF('800111a - Nota. Detalle de CxC.'!G166=\"\",\"\",'800111a - Nota. Detalle de CxC.'!G166)","v":""},{"$f":"IF('800111a - Nota. Detalle de CxC.'!G167=\"\",\"\",'800111a - Nota. Detalle de CxC.'!G167)","v":""},{"$f":"IF('800111a - Nota. Detalle de CxC.'!G168=\"\",\"\",'800111a - Nota. Detalle de CxC.'!G168)","v":""},{"$f":"IF('800111a - Nota. Detalle de CxC.'!G169=\"\",\"\",'800111a - Nota. Detalle de CxC.'!G169)","v":""}]
[null,"1;1","co-svsp-core_2017-12-31:SegundoApellidoDeudorCxC","Segundo apellido deudor",null,null,{"$f":"IF('800111a - Nota. Detalle de CxC.'!H14=\"\",\"\",'800111a - Nota. Detalle de CxC.'!H14)","v":""},{"$f":"IF('800111a - Nota. Detalle de CxC.'!H15=\"\",\"\",'800111a - Nota. Detalle de CxC.'!H15)","v":""},{"$f":"IF('800111a - Nota. Detalle de CxC.'!H16=\"\",\"\",'800111a - Nota. Detalle de CxC.'!H16)","v":""},{"$f":"IF('800111a - Nota. Detalle de CxC.'!H17=\"\",\"\",'800111a - Nota. Detalle de CxC.'!H17)","v":""},{"$f":"IF('800111a - Nota. Detalle de CxC.'!H18=\"\",\"\",'800111a - Nota. Detalle de CxC.'!H18)","v":""},{"$f":"IF('800111a - Nota. Detalle de CxC.'!H19=\"\",\"\",'800111a - Nota. Detalle de CxC.'!H19)","v":""},{"$f":"IF('800111a - Nota. Detalle de CxC.'!H20=\"\",\"\",'800111a - Nota. Detalle de CxC.'!H20)","v":""},{"$f":"IF('800111a - Nota. Detalle de CxC.'!H21=\"\",\"\",'800111a - Nota. Detalle de CxC.'!H21)","v":""},{"$f":"IF('800111a - Nota. Detalle de CxC.'!H22=\"\",\"\",'800111a - Nota. Detalle de CxC.'!H22)","v":""},{"$f":"IF('800111a - Nota. Detalle de CxC.'!H23=\"\",\"\",'800111a - Nota. Detalle de CxC.'!H23)","v":""},{"$f":"IF('800111a - Nota. Detalle de CxC.'!H24=\"\",\"\",'800111a - Nota. Detalle de CxC.'!H24)","v":""},{"$f":"IF('800111a - Nota. Detalle de CxC.'!H25=\"\",\"\",'800111a - Nota. Detalle de CxC.'!H25)","v":""},{"$f":"IF('800111a - Nota. Detalle de CxC.'!H26=\"\",\"\",'800111a - Nota. Detalle de CxC.'!H26)","v":""},{"$f":"IF('800111a - Nota. Detalle de CxC.'!H27=\"\",\"\",'800111a - Nota. Detalle de CxC.'!H27)","v":""},{"$f":"IF('800111a - Nota. Detalle de CxC.'!H28=\"\",\"\",'800111a - Nota. Detalle de CxC.'!H28)","v":""},{"$f":"IF('800111a - Nota. Detalle de CxC.'!H29=\"\",\"\",'800111a - Nota. Detalle de CxC.'!H29)","v":""},{"$f":"IF('800111a - Nota. Detalle de CxC.'!H30=\"\",\"\",'800111a - Nota. Detalle de CxC.'!H30)","v":""},{"$f":"IF('800111a - Nota. Detalle de CxC.'!H31=\"\",\"\",'800111a - Nota. Detalle de CxC.'!H31)","v":""},{"$f":"IF('800111a - Nota. Detalle de CxC.'!H32=\"\",\"\",'800111a - Nota. Detalle de CxC.'!H32)","v":""},{"$f":"IF('800111a - Nota. Detalle de CxC.'!H33=\"\",\"\",'800111a - Nota. Detalle de CxC.'!H33)","v":""},{"$f":"IF('800111a - Nota. Detalle de CxC.'!H34=\"\",\"\",'800111a - Nota. Detalle de CxC.'!H34)","v":""},{"$f":"IF('800111a - Nota. Detalle de CxC.'!H35=\"\",\"\",'800111a - Nota. Detalle de CxC.'!H35)","v":""},{"$f":"IF('800111a - Nota. Detalle de CxC.'!H36=\"\",\"\",'800111a - Nota. Detalle de CxC.'!H36)","v":""},{"$f":"IF('800111a - Nota. Detalle de CxC.'!H37=\"\",\"\",'800111a - Nota. Detalle de CxC.'!H37)","v":""},{"$f":"IF('800111a - Nota. Detalle de CxC.'!H38=\"\",\"\",'800111a - Nota. Detalle de CxC.'!H38)","v":""},{"$f":"IF('800111a - Nota. Detalle de CxC.'!H39=\"\",\"\",'800111a - Nota. Detalle de CxC.'!H39)","v":""},{"$f":"IF('800111a - Nota. Detalle de CxC.'!H40=\"\",\"\",'800111a - Nota. Detalle de CxC.'!H40)","v":""},{"$f":"IF('800111a - Nota. Detalle de CxC.'!H41=\"\",\"\",'800111a - Nota. Detalle de CxC.'!H41)","v":""},{"$f":"IF('800111a - Nota. Detalle de CxC.'!H42=\"\",\"\",'800111a - Nota. Detalle de CxC.'!H42)","v":""},{"$f":"IF('800111a - Nota. Detalle de CxC.'!H43=\"\",\"\",'800111a - Nota. Detalle de CxC.'!H43)","v":""},{"$f":"IF('800111a - Nota. Detalle de CxC.'!H44=\"\",\"\",'800111a - Nota. Detalle de CxC.'!H44)","v":""},{"$f":"IF('800111a - Nota. Detalle de CxC.'!H45=\"\",\"\",'800111a - Nota. Detalle de CxC.'!H45)","v":""},{"$f":"IF('800111a - Nota. Detalle de CxC.'!H46=\"\",\"\",'800111a - Nota. Detalle de CxC.'!H46)","v":""},{"$f":"IF('800111a - Nota. Detalle de CxC.'!H47=\"\",\"\",'800111a - Nota. Detalle de CxC.'!H47)","v":""},{"$f":"IF('800111a - Nota. Detalle de CxC.'!H48=\"\",\"\",'800111a - Nota. Detalle de CxC.'!H48)","v":""},{"$f":"IF('800111a - Nota. Detalle de CxC.'!H49=\"\",\"\",'800111a - Nota. Detalle de CxC.'!H49)","v":""},{"$f":"IF('800111a - Nota. Detalle de CxC.'!H50=\"\",\"\",'800111a - Nota. Detalle de CxC.'!H50)","v":""},{"$f":"IF('800111a - Nota. Detalle de CxC.'!H51=\"\",\"\",'800111a - Nota. Detalle de CxC.'!H51)","v":""},{"$f":"IF('800111a - Nota. Detalle de CxC.'!H52=\"\",\"\",'800111a - Nota. Detalle de CxC.'!H52)","v":""},{"$f":"IF('800111a - Nota. Detalle de CxC.'!H53=\"\",\"\",'800111a - Nota. Detalle de CxC.'!H53)","v":""},{"$f":"IF('800111a - Nota. Detalle de CxC.'!H54=\"\",\"\",'800111a - Nota. Detalle de CxC.'!H54)","v":""},{"$f":"IF('800111a - Nota. Detalle de CxC.'!H55=\"\",\"\",'800111a - Nota. Detalle de CxC.'!H55)","v":""},{"$f":"IF('800111a - Nota. Detalle de CxC.'!H56=\"\",\"\",'800111a - Nota. Detalle de CxC.'!H56)","v":""},{"$f":"IF('800111a - Nota. Detalle de CxC.'!H57=\"\",\"\",'800111a - Nota. Detalle de CxC.'!H57)","v":""},{"$f":"IF('800111a - Nota. Detalle de CxC.'!H58=\"\",\"\",'800111a - Nota. Detalle de CxC.'!H58)","v":""},{"$f":"IF('800111a - Nota. Detalle de CxC.'!H59=\"\",\"\",'800111a - Nota. Detalle de CxC.'!H59)","v":""},{"$f":"IF('800111a - Nota. Detalle de CxC.'!H60=\"\",\"\",'800111a - Nota. Detalle de CxC.'!H60)","v":""},{"$f":"IF('800111a - Nota. Detalle de CxC.'!H61=\"\",\"\",'800111a - Nota. Detalle de CxC.'!H61)","v":""},{"$f":"IF('800111a - Nota. Detalle de CxC.'!H62=\"\",\"\",'800111a - Nota. Detalle de CxC.'!H62)","v":""},{"$f":"IF('800111a - Nota. Detalle de CxC.'!H63=\"\",\"\",'800111a - Nota. Detalle de CxC.'!H63)","v":""},null,null,null,{"$f":"IF('800111a - Nota. Detalle de CxC.'!H67=\"\",\"\",'800111a - Nota. Detalle de CxC.'!H67)","v":""},{"$f":"IF('800111a - Nota. Detalle de CxC.'!H68=\"\",\"\",'800111a - Nota. Detalle de CxC.'!H68)","v":""},{"$f":"IF('800111a - Nota. Detalle de CxC.'!H69=\"\",\"\",'800111a - Nota. Detalle de CxC.'!H69)","v":""},{"$f":"IF('800111a - Nota. Detalle de CxC.'!H70=\"\",\"\",'800111a - Nota. Detalle de CxC.'!H70)","v":""},{"$f":"IF('800111a - Nota. Detalle de CxC.'!H71=\"\",\"\",'800111a - Nota. Detalle de CxC.'!H71)","v":""},{"$f":"IF('800111a - Nota. Detalle de CxC.'!H72=\"\",\"\",'800111a - Nota. Detalle de CxC.'!H72)","v":""},{"$f":"IF('800111a - Nota. Detalle de CxC.'!H73=\"\",\"\",'800111a - Nota. Detalle de CxC.'!H73)","v":""},{"$f":"IF('800111a - Nota. Detalle de CxC.'!H74=\"\",\"\",'800111a - Nota. Detalle de CxC.'!H74)","v":""},{"$f":"IF('800111a - Nota. Detalle de CxC.'!H75=\"\",\"\",'800111a - Nota. Detalle de CxC.'!H75)","v":""},{"$f":"IF('800111a - Nota. Detalle de CxC.'!H76=\"\",\"\",'800111a - Nota. Detalle de CxC.'!H76)","v":""},{"$f":"IF('800111a - Nota. Detalle de CxC.'!H77=\"\",\"\",'800111a - Nota. Detalle de CxC.'!H77)","v":""},{"$f":"IF('800111a - Nota. Detalle de CxC.'!H78=\"\",\"\",'800111a - Nota. Detalle de CxC.'!H78)","v":""},{"$f":"IF('800111a - Nota. Detalle de CxC.'!H79=\"\",\"\",'800111a - Nota. Detalle de CxC.'!H79)","v":""},{"$f":"IF('800111a - Nota. Detalle de CxC.'!H80=\"\",\"\",'800111a - Nota. Detalle de CxC.'!H80)","v":""},{"$f":"IF('800111a - Nota. Detalle de CxC.'!H81=\"\",\"\",'800111a - Nota. Detalle de CxC.'!H81)","v":""},{"$f":"IF('800111a - Nota. Detalle de CxC.'!H82=\"\",\"\",'800111a - Nota. Detalle de CxC.'!H82)","v":""},{"$f":"IF('800111a - Nota. Detalle de CxC.'!H83=\"\",\"\",'800111a - Nota. Detalle de CxC.'!H83)","v":""},{"$f":"IF('800111a - Nota. Detalle de CxC.'!H84=\"\",\"\",'800111a - Nota. Detalle de CxC.'!H84)","v":""},{"$f":"IF('800111a - Nota. Detalle de CxC.'!H85=\"\",\"\",'800111a - Nota. Detalle de CxC.'!H85)","v":""},{"$f":"IF('800111a - Nota. Detalle de CxC.'!H86=\"\",\"\",'800111a - Nota. Detalle de CxC.'!H86)","v":""},{"$f":"IF('800111a - Nota. Detalle de CxC.'!H87=\"\",\"\",'800111a - Nota. Detalle de CxC.'!H87)","v":""},{"$f":"IF('800111a - Nota. Detalle de CxC.'!H88=\"\",\"\",'800111a - Nota. Detalle de CxC.'!H88)","v":""},{"$f":"IF('800111a - Nota. Detalle de CxC.'!H89=\"\",\"\",'800111a - Nota. Detalle de CxC.'!H89)","v":""},{"$f":"IF('800111a - Nota. Detalle de CxC.'!H90=\"\",\"\",'800111a - Nota. Detalle de CxC.'!H90)","v":""},{"$f":"IF('800111a - Nota. Detalle de CxC.'!H91=\"\",\"\",'800111a - Nota. Detalle de CxC.'!H91)","v":""},{"$f":"IF('800111a - Nota. Detalle de CxC.'!H92=\"\",\"\",'800111a - Nota. Detalle de CxC.'!H92)","v":""},{"$f":"IF('800111a - Nota. Detalle de CxC.'!H93=\"\",\"\",'800111a - Nota. Detalle de CxC.'!H93)","v":""},{"$f":"IF('800111a - Nota. Detalle de CxC.'!H94=\"\",\"\",'800111a - Nota. Detalle de CxC.'!H94)","v":""},{"$f":"IF('800111a - Nota. Detalle de CxC.'!H95=\"\",\"\",'800111a - Nota. Detalle de CxC.'!H95)","v":""},{"$f":"IF('800111a - Nota. Detalle de CxC.'!H96=\"\",\"\",'800111a - Nota. Detalle de CxC.'!H96)","v":""},{"$f":"IF('800111a - Nota. Detalle de CxC.'!H97=\"\",\"\",'800111a - Nota. Detalle de CxC.'!H97)","v":""},{"$f":"IF('800111a - Nota. Detalle de CxC.'!H98=\"\",\"\",'800111a - Nota. Detalle de CxC.'!H98)","v":""},{"$f":"IF('800111a - Nota. Detalle de CxC.'!H99=\"\",\"\",'800111a - Nota. Detalle de CxC.'!H99)","v":""},{"$f":"IF('800111a - Nota. Detalle de CxC.'!H100=\"\",\"\",'800111a - Nota. Detalle de CxC.'!H100)","v":""},{"$f":"IF('800111a - Nota. Detalle de CxC.'!H101=\"\",\"\",'800111a - Nota. Detalle de CxC.'!H101)","v":""},{"$f":"IF('800111a - Nota. Detalle de CxC.'!H102=\"\",\"\",'800111a - Nota. Detalle de CxC.'!H102)","v":""},{"$f":"IF('800111a - Nota. Detalle de CxC.'!H103=\"\",\"\",'800111a - Nota. Detalle de CxC.'!H103)","v":""},{"$f":"IF('800111a - Nota. Detalle de CxC.'!H104=\"\",\"\",'800111a - Nota. Detalle de CxC.'!H104)","v":""},{"$f":"IF('800111a - Nota. Detalle de CxC.'!H105=\"\",\"\",'800111a - Nota. Detalle de CxC.'!H105)","v":""},{"$f":"IF('800111a - Nota. Detalle de CxC.'!H106=\"\",\"\",'800111a - Nota. Detalle de CxC.'!H106)","v":""},{"$f":"IF('800111a - Nota. Detalle de CxC.'!H107=\"\",\"\",'800111a - Nota. Detalle de CxC.'!H107)","v":""},{"$f":"IF('800111a - Nota. Detalle de CxC.'!H108=\"\",\"\",'800111a - Nota. Detalle de CxC.'!H108)","v":""},{"$f":"IF('800111a - Nota. Detalle de CxC.'!H109=\"\",\"\",'800111a - Nota. Detalle de CxC.'!H109)","v":""},{"$f":"IF('800111a - Nota. Detalle de CxC.'!H110=\"\",\"\",'800111a - Nota. Detalle de CxC.'!H110)","v":""},{"$f":"IF('800111a - Nota. Detalle de CxC.'!H111=\"\",\"\",'800111a - Nota. Detalle de CxC.'!H111)","v":""},{"$f":"IF('800111a - Nota. Detalle de CxC.'!H112=\"\",\"\",'800111a - Nota. Detalle de CxC.'!H112)","v":""},{"$f":"IF('800111a - Nota. Detalle de CxC.'!H113=\"\",\"\",'800111a - Nota. Detalle de CxC.'!H113)","v":""},{"$f":"IF('800111a - Nota. Detalle de CxC.'!H114=\"\",\"\",'800111a - Nota. Detalle de CxC.'!H114)","v":""},{"$f":"IF('800111a - Nota. Detalle de CxC.'!H115=\"\",\"\",'800111a - Nota. Detalle de CxC.'!H115)","v":""},{"$f":"IF('800111a - Nota. Detalle de CxC.'!H116=\"\",\"\",'800111a - Nota. Detalle de CxC.'!H116)","v":""},null,null,null,{"$f":"IF('800111a - Nota. Detalle de CxC.'!H120=\"\",\"\",'800111a - Nota. Detalle de CxC.'!H120)","v":""},{"$f":"IF('800111a - Nota. Detalle de CxC.'!H121=\"\",\"\",'800111a - Nota. Detalle de CxC.'!H121)","v":""},{"$f":"IF('800111a - Nota. Detalle de CxC.'!H122=\"\",\"\",'800111a - Nota. Detalle de CxC.'!H122)","v":""},{"$f":"IF('800111a - Nota. Detalle de CxC.'!H123=\"\",\"\",'800111a - Nota. Detalle de CxC.'!H123)","v":""},{"$f":"IF('800111a - Nota. Detalle de CxC.'!H124=\"\",\"\",'800111a - Nota. Detalle de CxC.'!H124)","v":""},{"$f":"IF('800111a - Nota. Detalle de CxC.'!H125=\"\",\"\",'800111a - Nota. Detalle de CxC.'!H125)","v":""},{"$f":"IF('800111a - Nota. Detalle de CxC.'!H126=\"\",\"\",'800111a - Nota. Detalle de CxC.'!H126)","v":""},{"$f":"IF('800111a - Nota. Detalle de CxC.'!H127=\"\",\"\",'800111a - Nota. Detalle de CxC.'!H127)","v":""},{"$f":"IF('800111a - Nota. Detalle de CxC.'!H128=\"\",\"\",'800111a - Nota. Detalle de CxC.'!H128)","v":""},{"$f":"IF('800111a - Nota. Detalle de CxC.'!H129=\"\",\"\",'800111a - Nota. Detalle de CxC.'!H129)","v":""},{"$f":"IF('800111a - Nota. Detalle de CxC.'!H130=\"\",\"\",'800111a - Nota. Detalle de CxC.'!H130)","v":""},{"$f":"IF('800111a - Nota. Detalle de CxC.'!H131=\"\",\"\",'800111a - Nota. Detalle de CxC.'!H131)","v":""},{"$f":"IF('800111a - Nota. Detalle de CxC.'!H132=\"\",\"\",'800111a - Nota. Detalle de CxC.'!H132)","v":""},{"$f":"IF('800111a - Nota. Detalle de CxC.'!H133=\"\",\"\",'800111a - Nota. Detalle de CxC.'!H133)","v":""},{"$f":"IF('800111a - Nota. Detalle de CxC.'!H134=\"\",\"\",'800111a - Nota. Detalle de CxC.'!H134)","v":""},{"$f":"IF('800111a - Nota. Detalle de CxC.'!H135=\"\",\"\",'800111a - Nota. Detalle de CxC.'!H135)","v":""},{"$f":"IF('800111a - Nota. Detalle de CxC.'!H136=\"\",\"\",'800111a - Nota. Detalle de CxC.'!H136)","v":""},{"$f":"IF('800111a - Nota. Detalle de CxC.'!H137=\"\",\"\",'800111a - Nota. Detalle de CxC.'!H137)","v":""},{"$f":"IF('800111a - Nota. Detalle de CxC.'!H138=\"\",\"\",'800111a - Nota. Detalle de CxC.'!H138)","v":""},{"$f":"IF('800111a - Nota. Detalle de CxC.'!H139=\"\",\"\",'800111a - Nota. Detalle de CxC.'!H139)","v":""},{"$f":"IF('800111a - Nota. Detalle de CxC.'!H140=\"\",\"\",'800111a - Nota. Detalle de CxC.'!H140)","v":""},{"$f":"IF('800111a - Nota. Detalle de CxC.'!H141=\"\",\"\",'800111a - Nota. Detalle de CxC.'!H141)","v":""},{"$f":"IF('800111a - Nota. Detalle de CxC.'!H142=\"\",\"\",'800111a - Nota. Detalle de CxC.'!H142)","v":""},{"$f":"IF('800111a - Nota. Detalle de CxC.'!H143=\"\",\"\",'800111a - Nota. Detalle de CxC.'!H143)","v":""},{"$f":"IF('800111a - Nota. Detalle de CxC.'!H144=\"\",\"\",'800111a - Nota. Detalle de CxC.'!H144)","v":""},{"$f":"IF('800111a - Nota. Detalle de CxC.'!H145=\"\",\"\",'800111a - Nota. Detalle de CxC.'!H145)","v":""},{"$f":"IF('800111a - Nota. Detalle de CxC.'!H146=\"\",\"\",'800111a - Nota. Detalle de CxC.'!H146)","v":""},{"$f":"IF('800111a - Nota. Detalle de CxC.'!H147=\"\",\"\",'800111a - Nota. Detalle de CxC.'!H147)","v":""},{"$f":"IF('800111a - Nota. Detalle de CxC.'!H148=\"\",\"\",'800111a - Nota. Detalle de CxC.'!H148)","v":""},{"$f":"IF('800111a - Nota. Detalle de CxC.'!H149=\"\",\"\",'800111a - Nota. Detalle de CxC.'!H149)","v":""},{"$f":"IF('800111a - Nota. Detalle de CxC.'!H150=\"\",\"\",'800111a - Nota. Detalle de CxC.'!H150)","v":""},{"$f":"IF('800111a - Nota. Detalle de CxC.'!H151=\"\",\"\",'800111a - Nota. Detalle de CxC.'!H151)","v":""},{"$f":"IF('800111a - Nota. Detalle de CxC.'!H152=\"\",\"\",'800111a - Nota. Detalle de CxC.'!H152)","v":""},{"$f":"IF('800111a - Nota. Detalle de CxC.'!H153=\"\",\"\",'800111a - Nota. Detalle de CxC.'!H153)","v":""},{"$f":"IF('800111a - Nota. Detalle de CxC.'!H154=\"\",\"\",'800111a - Nota. Detalle de CxC.'!H154)","v":""},{"$f":"IF('800111a - Nota. Detalle de CxC.'!H155=\"\",\"\",'800111a - Nota. Detalle de CxC.'!H155)","v":""},{"$f":"IF('800111a - Nota. Detalle de CxC.'!H156=\"\",\"\",'800111a - Nota. Detalle de CxC.'!H156)","v":""},{"$f":"IF('800111a - Nota. Detalle de CxC.'!H157=\"\",\"\",'800111a - Nota. Detalle de CxC.'!H157)","v":""},{"$f":"IF('800111a - Nota. Detalle de CxC.'!H158=\"\",\"\",'800111a - Nota. Detalle de CxC.'!H158)","v":""},{"$f":"IF('800111a - Nota. Detalle de CxC.'!H159=\"\",\"\",'800111a - Nota. Detalle de CxC.'!H159)","v":""},{"$f":"IF('800111a - Nota. Detalle de CxC.'!H160=\"\",\"\",'800111a - Nota. Detalle de CxC.'!H160)","v":""},{"$f":"IF('800111a - Nota. Detalle de CxC.'!H161=\"\",\"\",'800111a - Nota. Detalle de CxC.'!H161)","v":""},{"$f":"IF('800111a - Nota. Detalle de CxC.'!H162=\"\",\"\",'800111a - Nota. Detalle de CxC.'!H162)","v":""},{"$f":"IF('800111a - Nota. Detalle de CxC.'!H163=\"\",\"\",'800111a - Nota. Detalle de CxC.'!H163)","v":""},{"$f":"IF('800111a - Nota. Detalle de CxC.'!H164=\"\",\"\",'800111a - Nota. Detalle de CxC.'!H164)","v":""},{"$f":"IF('800111a - Nota. Detalle de CxC.'!H165=\"\",\"\",'800111a - Nota. Detalle de CxC.'!H165)","v":""},{"$f":"IF('800111a - Nota. Detalle de CxC.'!H166=\"\",\"\",'800111a - Nota. Detalle de CxC.'!H166)","v":""},{"$f":"IF('800111a - Nota. Detalle de CxC.'!H167=\"\",\"\",'800111a - Nota. Detalle de CxC.'!H167)","v":""},{"$f":"IF('800111a - Nota. Detalle de CxC.'!H168=\"\",\"\",'800111a - Nota. Detalle de CxC.'!H168)","v":""},{"$f":"IF('800111a - Nota. Detalle de CxC.'!H169=\"\",\"\",'800111a - Nota. Detalle de CxC.'!H169)","v":""}]
[null,"1;1","co-svsp-core_2017-12-31:PrimerNombreDeudorCxC","Primer nombre deudor",null,null,{"$f":"IF('800111a - Nota. Detalle de CxC.'!I14=\"\",\"\",'800111a - Nota. Detalle de CxC.'!I14)","v":""},{"$f":"IF('800111a - Nota. Detalle de CxC.'!I15=\"\",\"\",'800111a - Nota. Detalle de CxC.'!I15)","v":""},{"$f":"IF('800111a - Nota. Detalle de CxC.'!I16=\"\",\"\",'800111a - Nota. Detalle de CxC.'!I16)","v":""},{"$f":"IF('800111a - Nota. Detalle de CxC.'!I17=\"\",\"\",'800111a - Nota. Detalle de CxC.'!I17)","v":""},{"$f":"IF('800111a - Nota. Detalle de CxC.'!I18=\"\",\"\",'800111a - Nota. Detalle de CxC.'!I18)","v":""},{"$f":"IF('800111a - Nota. Detalle de CxC.'!I19=\"\",\"\",'800111a - Nota. Detalle de CxC.'!I19)","v":""},{"$f":"IF('800111a - Nota. Detalle de CxC.'!I20=\"\",\"\",'800111a - Nota. Detalle de CxC.'!I20)","v":""},{"$f":"IF('800111a - Nota. Detalle de CxC.'!I21=\"\",\"\",'800111a - Nota. Detalle de CxC.'!I21)","v":""},{"$f":"IF('800111a - Nota. Detalle de CxC.'!I22=\"\",\"\",'800111a - Nota. Detalle de CxC.'!I22)","v":""},{"$f":"IF('800111a - Nota. Detalle de CxC.'!I23=\"\",\"\",'800111a - Nota. Detalle de CxC.'!I23)","v":""},{"$f":"IF('800111a - Nota. Detalle de CxC.'!I24=\"\",\"\",'800111a - Nota. Detalle de CxC.'!I24)","v":""},{"$f":"IF('800111a - Nota. Detalle de CxC.'!I25=\"\",\"\",'800111a - Nota. Detalle de CxC.'!I25)","v":""},{"$f":"IF('800111a - Nota. Detalle de CxC.'!I26=\"\",\"\",'800111a - Nota. Detalle de CxC.'!I26)","v":""},{"$f":"IF('800111a - Nota. Detalle de CxC.'!I27=\"\",\"\",'800111a - Nota. Detalle de CxC.'!I27)","v":""},{"$f":"IF('800111a - Nota. Detalle de CxC.'!I28=\"\",\"\",'800111a - Nota. Detalle de CxC.'!I28)","v":""},{"$f":"IF('800111a - Nota. Detalle de CxC.'!I29=\"\",\"\",'800111a - Nota. Detalle de CxC.'!I29)","v":""},{"$f":"IF('800111a - Nota. Detalle de CxC.'!I30=\"\",\"\",'800111a - Nota. Detalle de CxC.'!I30)","v":""},{"$f":"IF('800111a - Nota. Detalle de CxC.'!I31=\"\",\"\",'800111a - Nota. Detalle de CxC.'!I31)","v":""},{"$f":"IF('800111a - Nota. Detalle de CxC.'!I32=\"\",\"\",'800111a - Nota. Detalle de CxC.'!I32)","v":""},{"$f":"IF('800111a - Nota. Detalle de CxC.'!I33=\"\",\"\",'800111a - Nota. Detalle de CxC.'!I33)","v":""},{"$f":"IF('800111a - Nota. Detalle de CxC.'!I34=\"\",\"\",'800111a - Nota. Detalle de CxC.'!I34)","v":""},{"$f":"IF('800111a - Nota. Detalle de CxC.'!I35=\"\",\"\",'800111a - Nota. Detalle de CxC.'!I35)","v":""},{"$f":"IF('800111a - Nota. Detalle de CxC.'!I36=\"\",\"\",'800111a - Nota. Detalle de CxC.'!I36)","v":""},{"$f":"IF('800111a - Nota. Detalle de CxC.'!I37=\"\",\"\",'800111a - Nota. Detalle de CxC.'!I37)","v":""},{"$f":"IF('800111a - Nota. Detalle de CxC.'!I38=\"\",\"\",'800111a - Nota. Detalle de CxC.'!I38)","v":""},{"$f":"IF('800111a - Nota. Detalle de CxC.'!I39=\"\",\"\",'800111a - Nota. Detalle de CxC.'!I39)","v":""},{"$f":"IF('800111a - Nota. Detalle de CxC.'!I40=\"\",\"\",'800111a - Nota. Detalle de CxC.'!I40)","v":""},{"$f":"IF('800111a - Nota. Detalle de CxC.'!I41=\"\",\"\",'800111a - Nota. Detalle de CxC.'!I41)","v":""},{"$f":"IF('800111a - Nota. Detalle de CxC.'!I42=\"\",\"\",'800111a - Nota. Detalle de CxC.'!I42)","v":""},{"$f":"IF('800111a - Nota. Detalle de CxC.'!I43=\"\",\"\",'800111a - Nota. Detalle de CxC.'!I43)","v":""},{"$f":"IF('800111a - Nota. Detalle de CxC.'!I44=\"\",\"\",'800111a - Nota. Detalle de CxC.'!I44)","v":""},{"$f":"IF('800111a - Nota. Detalle de CxC.'!I45=\"\",\"\",'800111a - Nota. Detalle de CxC.'!I45)","v":""},{"$f":"IF('800111a - Nota. Detalle de CxC.'!I46=\"\",\"\",'800111a - Nota. Detalle de CxC.'!I46)","v":""},{"$f":"IF('800111a - Nota. Detalle de CxC.'!I47=\"\",\"\",'800111a - Nota. Detalle de CxC.'!I47)","v":""},{"$f":"IF('800111a - Nota. Detalle de CxC.'!I48=\"\",\"\",'800111a - Nota. Detalle de CxC.'!I48)","v":""},{"$f":"IF('800111a - Nota. Detalle de CxC.'!I49=\"\",\"\",'800111a - Nota. Detalle de CxC.'!I49)","v":""},{"$f":"IF('800111a - Nota. Detalle de CxC.'!I50=\"\",\"\",'800111a - Nota. Detalle de CxC.'!I50)","v":""},{"$f":"IF('800111a - Nota. Detalle de CxC.'!I51=\"\",\"\",'800111a - Nota. Detalle de CxC.'!I51)","v":""},{"$f":"IF('800111a - Nota. Detalle de CxC.'!I52=\"\",\"\",'800111a - Nota. Detalle de CxC.'!I52)","v":""},{"$f":"IF('800111a - Nota. Detalle de CxC.'!I53=\"\",\"\",'800111a - Nota. Detalle de CxC.'!I53)","v":""},{"$f":"IF('800111a - Nota. Detalle de CxC.'!I54=\"\",\"\",'800111a - Nota. Detalle de CxC.'!I54)","v":""},{"$f":"IF('800111a - Nota. Detalle de CxC.'!I55=\"\",\"\",'800111a - Nota. Detalle de CxC.'!I55)","v":""},{"$f":"IF('800111a - Nota. Detalle de CxC.'!I56=\"\",\"\",'800111a - Nota. Detalle de CxC.'!I56)","v":""},{"$f":"IF('800111a - Nota. Detalle de CxC.'!I57=\"\",\"\",'800111a - Nota. Detalle de CxC.'!I57)","v":""},{"$f":"IF('800111a - Nota. Detalle de CxC.'!I58=\"\",\"\",'800111a - Nota. Detalle de CxC.'!I58)","v":""},{"$f":"IF('800111a - Nota. Detalle de CxC.'!I59=\"\",\"\",'800111a - Nota. Detalle de CxC.'!I59)","v":""},{"$f":"IF('800111a - Nota. Detalle de CxC.'!I60=\"\",\"\",'800111a - Nota. Detalle de CxC.'!I60)","v":""},{"$f":"IF('800111a - Nota. Detalle de CxC.'!I61=\"\",\"\",'800111a - Nota. Detalle de CxC.'!I61)","v":""},{"$f":"IF('800111a - Nota. Detalle de CxC.'!I62=\"\",\"\",'800111a - Nota. Detalle de CxC.'!I62)","v":""},{"$f":"IF('800111a - Nota. Detalle de CxC.'!I63=\"\",\"\",'800111a - Nota. Detalle de CxC.'!I63)","v":""},null,null,null,{"$f":"IF('800111a - Nota. Detalle de CxC.'!I67=\"\",\"\",'800111a - Nota. Detalle de CxC.'!I67)","v":""},{"$f":"IF('800111a - Nota. Detalle de CxC.'!I68=\"\",\"\",'800111a - Nota. Detalle de CxC.'!I68)","v":""},{"$f":"IF('800111a - Nota. Detalle de CxC.'!I69=\"\",\"\",'800111a - Nota. Detalle de CxC.'!I69)","v":""},{"$f":"IF('800111a - Nota. Detalle de CxC.'!I70=\"\",\"\",'800111a - Nota. Detalle de CxC.'!I70)","v":""},{"$f":"IF('800111a - Nota. Detalle de CxC.'!I71=\"\",\"\",'800111a - Nota. Detalle de CxC.'!I71)","v":""},{"$f":"IF('800111a - Nota. Detalle de CxC.'!I72=\"\",\"\",'800111a - Nota. Detalle de CxC.'!I72)","v":""},{"$f":"IF('800111a - Nota. Detalle de CxC.'!I73=\"\",\"\",'800111a - Nota. Detalle de CxC.'!I73)","v":""},{"$f":"IF('800111a - Nota. Detalle de CxC.'!I74=\"\",\"\",'800111a - Nota. Detalle de CxC.'!I74)","v":""},{"$f":"IF('800111a - Nota. Detalle de CxC.'!I75=\"\",\"\",'800111a - Nota. Detalle de CxC.'!I75)","v":""},{"$f":"IF('800111a - Nota. Detalle de CxC.'!I76=\"\",\"\",'800111a - Nota. Detalle de CxC.'!I76)","v":""},{"$f":"IF('800111a - Nota. Detalle de CxC.'!I77=\"\",\"\",'800111a - Nota. Detalle de CxC.'!I77)","v":""},{"$f":"IF('800111a - Nota. Detalle de CxC.'!I78=\"\",\"\",'800111a - Nota. Detalle de CxC.'!I78)","v":""},{"$f":"IF('800111a - Nota. Detalle de CxC.'!I79=\"\",\"\",'800111a - Nota. Detalle de CxC.'!I79)","v":""},{"$f":"IF('800111a - Nota. Detalle de CxC.'!I80=\"\",\"\",'800111a - Nota. Detalle de CxC.'!I80)","v":""},{"$f":"IF('800111a - Nota. Detalle de CxC.'!I81=\"\",\"\",'800111a - Nota. Detalle de CxC.'!I81)","v":""},{"$f":"IF('800111a - Nota. Detalle de CxC.'!I82=\"\",\"\",'800111a - Nota. Detalle de CxC.'!I82)","v":""},{"$f":"IF('800111a - Nota. Detalle de CxC.'!I83=\"\",\"\",'800111a - Nota. Detalle de CxC.'!I83)","v":""},{"$f":"IF('800111a - Nota. Detalle de CxC.'!I84=\"\",\"\",'800111a - Nota. Detalle de CxC.'!I84)","v":""},{"$f":"IF('800111a - Nota. Detalle de CxC.'!I85=\"\",\"\",'800111a - Nota. Detalle de CxC.'!I85)","v":""},{"$f":"IF('800111a - Nota. Detalle de CxC.'!I86=\"\",\"\",'800111a - Nota. Detalle de CxC.'!I86)","v":""},{"$f":"IF('800111a - Nota. Detalle de CxC.'!I87=\"\",\"\",'800111a - Nota. Detalle de CxC.'!I87)","v":""},{"$f":"IF('800111a - Nota. Detalle de CxC.'!I88=\"\",\"\",'800111a - Nota. Detalle de CxC.'!I88)","v":""},{"$f":"IF('800111a - Nota. Detalle de CxC.'!I89=\"\",\"\",'800111a - Nota. Detalle de CxC.'!I89)","v":""},{"$f":"IF('800111a - Nota. Detalle de CxC.'!I90=\"\",\"\",'800111a - Nota. Detalle de CxC.'!I90)","v":""},{"$f":"IF('800111a - Nota. Detalle de CxC.'!I91=\"\",\"\",'800111a - Nota. Detalle de CxC.'!I91)","v":""},{"$f":"IF('800111a - Nota. Detalle de CxC.'!I92=\"\",\"\",'800111a - Nota. Detalle de CxC.'!I92)","v":""},{"$f":"IF('800111a - Nota. Detalle de CxC.'!I93=\"\",\"\",'800111a - Nota. Detalle de CxC.'!I93)","v":""},{"$f":"IF('800111a - Nota. Detalle de CxC.'!I94=\"\",\"\",'800111a - Nota. Detalle de CxC.'!I94)","v":""},{"$f":"IF('800111a - Nota. Detalle de CxC.'!I95=\"\",\"\",'800111a - Nota. Detalle de CxC.'!I95)","v":""},{"$f":"IF('800111a - Nota. Detalle de CxC.'!I96=\"\",\"\",'800111a - Nota. Detalle de CxC.'!I96)","v":""},{"$f":"IF('800111a - Nota. Detalle de CxC.'!I97=\"\",\"\",'800111a - Nota. Detalle de CxC.'!I97)","v":""},{"$f":"IF('800111a - Nota. Detalle de CxC.'!I98=\"\",\"\",'800111a - Nota. Detalle de CxC.'!I98)","v":""},{"$f":"IF('800111a - Nota. Detalle de CxC.'!I99=\"\",\"\",'800111a - Nota. Detalle de CxC.'!I99)","v":""},{"$f":"IF('800111a - Nota. Detalle de CxC.'!I100=\"\",\"\",'800111a - Nota. Detalle de CxC.'!I100)","v":""},{"$f":"IF('800111a - Nota. Detalle de CxC.'!I101=\"\",\"\",'800111a - Nota. Detalle de CxC.'!I101)","v":""},{"$f":"IF('800111a - Nota. Detalle de CxC.'!I102=\"\",\"\",'800111a - Nota. Detalle de CxC.'!I102)","v":""},{"$f":"IF('800111a - Nota. Detalle de CxC.'!I103=\"\",\"\",'800111a - Nota. Detalle de CxC.'!I103)","v":""},{"$f":"IF('800111a - Nota. Detalle de CxC.'!I104=\"\",\"\",'800111a - Nota. Detalle de CxC.'!I104)","v":""},{"$f":"IF('800111a - Nota. Detalle de CxC.'!I105=\"\",\"\",'800111a - Nota. Detalle de CxC.'!I105)","v":""},{"$f":"IF('800111a - Nota. Detalle de CxC.'!I106=\"\",\"\",'800111a - Nota. Detalle de CxC.'!I106)","v":""},{"$f":"IF('800111a - Nota. Detalle de CxC.'!I107=\"\",\"\",'800111a - Nota. Detalle de CxC.'!I107)","v":""},{"$f":"IF('800111a - Nota. Detalle de CxC.'!I108=\"\",\"\",'800111a - Nota. Detalle de CxC.'!I108)","v":""},{"$f":"IF('800111a - Nota. Detalle de CxC.'!I109=\"\",\"\",'800111a - Nota. Detalle de CxC.'!I109)","v":""},{"$f":"IF('800111a - Nota. Detalle de CxC.'!I110=\"\",\"\",'800111a - Nota. Detalle de CxC.'!I110)","v":""},{"$f":"IF('800111a - Nota. Detalle de CxC.'!I111=\"\",\"\",'800111a - Nota. Detalle de CxC.'!I111)","v":""},{"$f":"IF('800111a - Nota. Detalle de CxC.'!I112=\"\",\"\",'800111a - Nota. Detalle de CxC.'!I112)","v":""},{"$f":"IF('800111a - Nota. Detalle de CxC.'!I113=\"\",\"\",'800111a - Nota. Detalle de CxC.'!I113)","v":""},{"$f":"IF('800111a - Nota. Detalle de CxC.'!I114=\"\",\"\",'800111a - Nota. Detalle de CxC.'!I114)","v":""},{"$f":"IF('800111a - Nota. Detalle de CxC.'!I115=\"\",\"\",'800111a - Nota. Detalle de CxC.'!I115)","v":""},{"$f":"IF('800111a - Nota. Detalle de CxC.'!I116=\"\",\"\",'800111a - Nota. Detalle de CxC.'!I116)","v":""},null,null,null,{"$f":"IF('800111a - Nota. Detalle de CxC.'!I120=\"\",\"\",'800111a - Nota. Detalle de CxC.'!I120)","v":""},{"$f":"IF('800111a - Nota. Detalle de CxC.'!I121=\"\",\"\",'800111a - Nota. Detalle de CxC.'!I121)","v":""},{"$f":"IF('800111a - Nota. Detalle de CxC.'!I122=\"\",\"\",'800111a - Nota. Detalle de CxC.'!I122)","v":""},{"$f":"IF('800111a - Nota. Detalle de CxC.'!I123=\"\",\"\",'800111a - Nota. Detalle de CxC.'!I123)","v":""},{"$f":"IF('800111a - Nota. Detalle de CxC.'!I124=\"\",\"\",'800111a - Nota. Detalle de CxC.'!I124)","v":""},{"$f":"IF('800111a - Nota. Detalle de CxC.'!I125=\"\",\"\",'800111a - Nota. Detalle de CxC.'!I125)","v":""},{"$f":"IF('800111a - Nota. Detalle de CxC.'!I126=\"\",\"\",'800111a - Nota. Detalle de CxC.'!I126)","v":""},{"$f":"IF('800111a - Nota. Detalle de CxC.'!I127=\"\",\"\",'800111a - Nota. Detalle de CxC.'!I127)","v":""},{"$f":"IF('800111a - Nota. Detalle de CxC.'!I128=\"\",\"\",'800111a - Nota. Detalle de CxC.'!I128)","v":""},{"$f":"IF('800111a - Nota. Detalle de CxC.'!I129=\"\",\"\",'800111a - Nota. Detalle de CxC.'!I129)","v":""},{"$f":"IF('800111a - Nota. Detalle de CxC.'!I130=\"\",\"\",'800111a - Nota. Detalle de CxC.'!I130)","v":""},{"$f":"IF('800111a - Nota. Detalle de CxC.'!I131=\"\",\"\",'800111a - Nota. Detalle de CxC.'!I131)","v":""},{"$f":"IF('800111a - Nota. Detalle de CxC.'!I132=\"\",\"\",'800111a - Nota. Detalle de CxC.'!I132)","v":""},{"$f":"IF('800111a - Nota. Detalle de CxC.'!I133=\"\",\"\",'800111a - Nota. Detalle de CxC.'!I133)","v":""},{"$f":"IF('800111a - Nota. Detalle de CxC.'!I134=\"\",\"\",'800111a - Nota. Detalle de CxC.'!I134)","v":""},{"$f":"IF('800111a - Nota. Detalle de CxC.'!I135=\"\",\"\",'800111a - Nota. Detalle de CxC.'!I135)","v":""},{"$f":"IF('800111a - Nota. Detalle de CxC.'!I136=\"\",\"\",'800111a - Nota. Detalle de CxC.'!I136)","v":""},{"$f":"IF('800111a - Nota. Detalle de CxC.'!I137=\"\",\"\",'800111a - Nota. Detalle de CxC.'!I137)","v":""},{"$f":"IF('800111a - Nota. Detalle de CxC.'!I138=\"\",\"\",'800111a - Nota. Detalle de CxC.'!I138)","v":""},{"$f":"IF('800111a - Nota. Detalle de CxC.'!I139=\"\",\"\",'800111a - Nota. Detalle de CxC.'!I139)","v":""},{"$f":"IF('800111a - Nota. Detalle de CxC.'!I140=\"\",\"\",'800111a - Nota. Detalle de CxC.'!I140)","v":""},{"$f":"IF('800111a - Nota. Detalle de CxC.'!I141=\"\",\"\",'800111a - Nota. Detalle de CxC.'!I141)","v":""},{"$f":"IF('800111a - Nota. Detalle de CxC.'!I142=\"\",\"\",'800111a - Nota. Detalle de CxC.'!I142)","v":""},{"$f":"IF('800111a - Nota. Detalle de CxC.'!I143=\"\",\"\",'800111a - Nota. Detalle de CxC.'!I143)","v":""},{"$f":"IF('800111a - Nota. Detalle de CxC.'!I144=\"\",\"\",'800111a - Nota. Detalle de CxC.'!I144)","v":""},{"$f":"IF('800111a - Nota. Detalle de CxC.'!I145=\"\",\"\",'800111a - Nota. Detalle de CxC.'!I145)","v":""},{"$f":"IF('800111a - Nota. Detalle de CxC.'!I146=\"\",\"\",'800111a - Nota. Detalle de CxC.'!I146)","v":""},{"$f":"IF('800111a - Nota. Detalle de CxC.'!I147=\"\",\"\",'800111a - Nota. Detalle de CxC.'!I147)","v":""},{"$f":"IF('800111a - Nota. Detalle de CxC.'!I148=\"\",\"\",'800111a - Nota. Detalle de CxC.'!I148)","v":""},{"$f":"IF('800111a - Nota. Detalle de CxC.'!I149=\"\",\"\",'800111a - Nota. Detalle de CxC.'!I149)","v":""},{"$f":"IF('800111a - Nota. Detalle de CxC.'!I150=\"\",\"\",'800111a - Nota. Detalle de CxC.'!I150)","v":""},{"$f":"IF('800111a - Nota. Detalle de CxC.'!I151=\"\",\"\",'800111a - Nota. Detalle de CxC.'!I151)","v":""},{"$f":"IF('800111a - Nota. Detalle de CxC.'!I152=\"\",\"\",'800111a - Nota. Detalle de CxC.'!I152)","v":""},{"$f":"IF('800111a - Nota. Detalle de CxC.'!I153=\"\",\"\",'800111a - Nota. Detalle de CxC.'!I153)","v":""},{"$f":"IF('800111a - Nota. Detalle de CxC.'!I154=\"\",\"\",'800111a - Nota. Detalle de CxC.'!I154)","v":""},{"$f":"IF('800111a - Nota. Detalle de CxC.'!I155=\"\",\"\",'800111a - Nota. Detalle de CxC.'!I155)","v":""},{"$f":"IF('800111a - Nota. Detalle de CxC.'!I156=\"\",\"\",'800111a - Nota. Detalle de CxC.'!I156)","v":""},{"$f":"IF('800111a - Nota. Detalle de CxC.'!I157=\"\",\"\",'800111a - Nota. Detalle de CxC.'!I157)","v":""},{"$f":"IF('800111a - Nota. Detalle de CxC.'!I158=\"\",\"\",'800111a - Nota. Detalle de CxC.'!I158)","v":""},{"$f":"IF('800111a - Nota. Detalle de CxC.'!I159=\"\",\"\",'800111a - Nota. Detalle de CxC.'!I159)","v":""},{"$f":"IF('800111a - Nota. Detalle de CxC.'!I160=\"\",\"\",'800111a - Nota. Detalle de CxC.'!I160)","v":""},{"$f":"IF('800111a - Nota. Detalle de CxC.'!I161=\"\",\"\",'800111a - Nota. Detalle de CxC.'!I161)","v":""},{"$f":"IF('800111a - Nota. Detalle de CxC.'!I162=\"\",\"\",'800111a - Nota. Detalle de CxC.'!I162)","v":""},{"$f":"IF('800111a - Nota. Detalle de CxC.'!I163=\"\",\"\",'800111a - Nota. Detalle de CxC.'!I163)","v":""},{"$f":"IF('800111a - Nota. Detalle de CxC.'!I164=\"\",\"\",'800111a - Nota. Detalle de CxC.'!I164)","v":""},{"$f":"IF('800111a - Nota. Detalle de CxC.'!I165=\"\",\"\",'800111a - Nota. Detalle de CxC.'!I165)","v":""},{"$f":"IF('800111a - Nota. Detalle de CxC.'!I166=\"\",\"\",'800111a - Nota. Detalle de CxC.'!I166)","v":""},{"$f":"IF('800111a - Nota. Detalle de CxC.'!I167=\"\",\"\",'800111a - Nota. Detalle de CxC.'!I167)","v":""},{"$f":"IF('800111a - Nota. Detalle de CxC.'!I168=\"\",\"\",'800111a - Nota. Detalle de CxC.'!I168)","v":""},{"$f":"IF('800111a - Nota. Detalle de CxC.'!I169=\"\",\"\",'800111a - Nota. Detalle de CxC.'!I169)","v":""}]
[null,"1;1","co-svsp-core_2017-12-31:OtrosNombresDeudorCxC","Otros nombres deudor",null,null,{"$f":"IF('800111a - Nota. Detalle de CxC.'!J14=\"\",\"\",'800111a - Nota. Detalle de CxC.'!J14)","v":""},{"$f":"IF('800111a - Nota. Detalle de CxC.'!J15=\"\",\"\",'800111a - Nota. Detalle de CxC.'!J15)","v":""},{"$f":"IF('800111a - Nota. Detalle de CxC.'!J16=\"\",\"\",'800111a - Nota. Detalle de CxC.'!J16)","v":""},{"$f":"IF('800111a - Nota. Detalle de CxC.'!J17=\"\",\"\",'800111a - Nota. Detalle de CxC.'!J17)","v":""},{"$f":"IF('800111a - Nota. Detalle de CxC.'!J18=\"\",\"\",'800111a - Nota. Detalle de CxC.'!J18)","v":""},{"$f":"IF('800111a - Nota. Detalle de CxC.'!J19=\"\",\"\",'800111a - Nota. Detalle de CxC.'!J19)","v":""},{"$f":"IF('800111a - Nota. Detalle de CxC.'!J20=\"\",\"\",'800111a - Nota. Detalle de CxC.'!J20)","v":""},{"$f":"IF('800111a - Nota. Detalle de CxC.'!J21=\"\",\"\",'800111a - Nota. Detalle de CxC.'!J21)","v":""},{"$f":"IF('800111a - Nota. Detalle de CxC.'!J22=\"\",\"\",'800111a - Nota. Detalle de CxC.'!J22)","v":""},{"$f":"IF('800111a - Nota. Detalle de CxC.'!J23=\"\",\"\",'800111a - Nota. Detalle de CxC.'!J23)","v":""},{"$f":"IF('800111a - Nota. Detalle de CxC.'!J24=\"\",\"\",'800111a - Nota. Detalle de CxC.'!J24)","v":""},{"$f":"IF('800111a - Nota. Detalle de CxC.'!J25=\"\",\"\",'800111a - Nota. Detalle de CxC.'!J25)","v":""},{"$f":"IF('800111a - Nota. Detalle de CxC.'!J26=\"\",\"\",'800111a - Nota. Detalle de CxC.'!J26)","v":""},{"$f":"IF('800111a - Nota. Detalle de CxC.'!J27=\"\",\"\",'800111a - Nota. Detalle de CxC.'!J27)","v":""},{"$f":"IF('800111a - Nota. Detalle de CxC.'!J28=\"\",\"\",'800111a - Nota. Detalle de CxC.'!J28)","v":""},{"$f":"IF('800111a - Nota. Detalle de CxC.'!J29=\"\",\"\",'800111a - Nota. Detalle de CxC.'!J29)","v":""},{"$f":"IF('800111a - Nota. Detalle de CxC.'!J30=\"\",\"\",'800111a - Nota. Detalle de CxC.'!J30)","v":""},{"$f":"IF('800111a - Nota. Detalle de CxC.'!J31=\"\",\"\",'800111a - Nota. Detalle de CxC.'!J31)","v":""},{"$f":"IF('800111a - Nota. Detalle de CxC.'!J32=\"\",\"\",'800111a - Nota. Detalle de CxC.'!J32)","v":""},{"$f":"IF('800111a - Nota. Detalle de CxC.'!J33=\"\",\"\",'800111a - Nota. Detalle de CxC.'!J33)","v":""},{"$f":"IF('800111a - Nota. Detalle de CxC.'!J34=\"\",\"\",'800111a - Nota. Detalle de CxC.'!J34)","v":""},{"$f":"IF('800111a - Nota. Detalle de CxC.'!J35=\"\",\"\",'800111a - Nota. Detalle de CxC.'!J35)","v":""},{"$f":"IF('800111a - Nota. Detalle de CxC.'!J36=\"\",\"\",'800111a - Nota. Detalle de CxC.'!J36)","v":""},{"$f":"IF('800111a - Nota. Detalle de CxC.'!J37=\"\",\"\",'800111a - Nota. Detalle de CxC.'!J37)","v":""},{"$f":"IF('800111a - Nota. Detalle de CxC.'!J38=\"\",\"\",'800111a - Nota. Detalle de CxC.'!J38)","v":""},{"$f":"IF('800111a - Nota. Detalle de CxC.'!J39=\"\",\"\",'800111a - Nota. Detalle de CxC.'!J39)","v":""},{"$f":"IF('800111a - Nota. Detalle de CxC.'!J40=\"\",\"\",'800111a - Nota. Detalle de CxC.'!J40)","v":""},{"$f":"IF('800111a - Nota. Detalle de CxC.'!J41=\"\",\"\",'800111a - Nota. Detalle de CxC.'!J41)","v":""},{"$f":"IF('800111a - Nota. Detalle de CxC.'!J42=\"\",\"\",'800111a - Nota. Detalle de CxC.'!J42)","v":""},{"$f":"IF('800111a - Nota. Detalle de CxC.'!J43=\"\",\"\",'800111a - Nota. Detalle de CxC.'!J43)","v":""},{"$f":"IF('800111a - Nota. Detalle de CxC.'!J44=\"\",\"\",'800111a - Nota. Detalle de CxC.'!J44)","v":""},{"$f":"IF('800111a - Nota. Detalle de CxC.'!J45=\"\",\"\",'800111a - Nota. Detalle de CxC.'!J45)","v":""},{"$f":"IF('800111a - Nota. Detalle de CxC.'!J46=\"\",\"\",'800111a - Nota. Detalle de CxC.'!J46)","v":""},{"$f":"IF('800111a - Nota. Detalle de CxC.'!J47=\"\",\"\",'800111a - Nota. Detalle de CxC.'!J47)","v":""},{"$f":"IF('800111a - Nota. Detalle de CxC.'!J48=\"\",\"\",'800111a - Nota. Detalle de CxC.'!J48)","v":""},{"$f":"IF('800111a - Nota. Detalle de CxC.'!J49=\"\",\"\",'800111a - Nota. Detalle de CxC.'!J49)","v":""},{"$f":"IF('800111a - Nota. Detalle de CxC.'!J50=\"\",\"\",'800111a - Nota. Detalle de CxC.'!J50)","v":""},{"$f":"IF('800111a - Nota. Detalle de CxC.'!J51=\"\",\"\",'800111a - Nota. Detalle de CxC.'!J51)","v":""},{"$f":"IF('800111a - Nota. Detalle de CxC.'!J52=\"\",\"\",'800111a - Nota. Detalle de CxC.'!J52)","v":""},{"$f":"IF('800111a - Nota. Detalle de CxC.'!J53=\"\",\"\",'800111a - Nota. Detalle de CxC.'!J53)","v":""},{"$f":"IF('800111a - Nota. Detalle de CxC.'!J54=\"\",\"\",'800111a - Nota. Detalle de CxC.'!J54)","v":""},{"$f":"IF('800111a - Nota. Detalle de CxC.'!J55=\"\",\"\",'800111a - Nota. Detalle de CxC.'!J55)","v":""},{"$f":"IF('800111a - Nota. Detalle de CxC.'!J56=\"\",\"\",'800111a - Nota. Detalle de CxC.'!J56)","v":""},{"$f":"IF('800111a - Nota. Detalle de CxC.'!J57=\"\",\"\",'800111a - Nota. Detalle de CxC.'!J57)","v":""},{"$f":"IF('800111a - Nota. Detalle de CxC.'!J58=\"\",\"\",'800111a - Nota. Detalle de CxC.'!J58)","v":""},{"$f":"IF('800111a - Nota. Detalle de CxC.'!J59=\"\",\"\",'800111a - Nota. Detalle de CxC.'!J59)","v":""},{"$f":"IF('800111a - Nota. Detalle de CxC.'!J60=\"\",\"\",'800111a - Nota. Detalle de CxC.'!J60)","v":""},{"$f":"IF('800111a - Nota. Detalle de CxC.'!J61=\"\",\"\",'800111a - Nota. Detalle de CxC.'!J61)","v":""},{"$f":"IF('800111a - Nota. Detalle de CxC.'!J62=\"\",\"\",'800111a - Nota. Detalle de CxC.'!J62)","v":""},{"$f":"IF('800111a - Nota. Detalle de CxC.'!J63=\"\",\"\",'800111a - Nota. Detalle de CxC.'!J63)","v":""},null,null,null,{"$f":"IF('800111a - Nota. Detalle de CxC.'!J67=\"\",\"\",'800111a - Nota. Detalle de CxC.'!J67)","v":""},{"$f":"IF('800111a - Nota. Detalle de CxC.'!J68=\"\",\"\",'800111a - Nota. Detalle de CxC.'!J68)","v":""},{"$f":"IF('800111a - Nota. Detalle de CxC.'!J69=\"\",\"\",'800111a - Nota. Detalle de CxC.'!J69)","v":""},{"$f":"IF('800111a - Nota. Detalle de CxC.'!J70=\"\",\"\",'800111a - Nota. Detalle de CxC.'!J70)","v":""},{"$f":"IF('800111a - Nota. Detalle de CxC.'!J71=\"\",\"\",'800111a - Nota. Detalle de CxC.'!J71)","v":""},{"$f":"IF('800111a - Nota. Detalle de CxC.'!J72=\"\",\"\",'800111a - Nota. Detalle de CxC.'!J72)","v":""},{"$f":"IF('800111a - Nota. Detalle de CxC.'!J73=\"\",\"\",'800111a - Nota. Detalle de CxC.'!J73)","v":""},{"$f":"IF('800111a - Nota. Detalle de CxC.'!J74=\"\",\"\",'800111a - Nota. Detalle de CxC.'!J74)","v":""},{"$f":"IF('800111a - Nota. Detalle de CxC.'!J75=\"\",\"\",'800111a - Nota. Detalle de CxC.'!J75)","v":""},{"$f":"IF('800111a - Nota. Detalle de CxC.'!J76=\"\",\"\",'800111a - Nota. Detalle de CxC.'!J76)","v":""},{"$f":"IF('800111a - Nota. Detalle de CxC.'!J77=\"\",\"\",'800111a - Nota. Detalle de CxC.'!J77)","v":""},{"$f":"IF('800111a - Nota. Detalle de CxC.'!J78=\"\",\"\",'800111a - Nota. Detalle de CxC.'!J78)","v":""},{"$f":"IF('800111a - Nota. Detalle de CxC.'!J79=\"\",\"\",'800111a - Nota. Detalle de CxC.'!J79)","v":""},{"$f":"IF('800111a - Nota. Detalle de CxC.'!J80=\"\",\"\",'800111a - Nota. Detalle de CxC.'!J80)","v":""},{"$f":"IF('800111a - Nota. Detalle de CxC.'!J81=\"\",\"\",'800111a - Nota. Detalle de CxC.'!J81)","v":""},{"$f":"IF('800111a - Nota. Detalle de CxC.'!J82=\"\",\"\",'800111a - Nota. Detalle de CxC.'!J82)","v":""},{"$f":"IF('800111a - Nota. Detalle de CxC.'!J83=\"\",\"\",'800111a - Nota. Detalle de CxC.'!J83)","v":""},{"$f":"IF('800111a - Nota. Detalle de CxC.'!J84=\"\",\"\",'800111a - Nota. Detalle de CxC.'!J84)","v":""},{"$f":"IF('800111a - Nota. Detalle de CxC.'!J85=\"\",\"\",'800111a - Nota. Detalle de CxC.'!J85)","v":""},{"$f":"IF('800111a - Nota. Detalle de CxC.'!J86=\"\",\"\",'800111a - Nota. Detalle de CxC.'!J86)","v":""},{"$f":"IF('800111a - Nota. Detalle de CxC.'!J87=\"\",\"\",'800111a - Nota. Detalle de CxC.'!J87)","v":""},{"$f":"IF('800111a - Nota. Detalle de CxC.'!J88=\"\",\"\",'800111a - Nota. Detalle de CxC.'!J88)","v":""},{"$f":"IF('800111a - Nota. Detalle de CxC.'!J89=\"\",\"\",'800111a - Nota. Detalle de CxC.'!J89)","v":""},{"$f":"IF('800111a - Nota. Detalle de CxC.'!J90=\"\",\"\",'800111a - Nota. Detalle de CxC.'!J90)","v":""},{"$f":"IF('800111a - Nota. Detalle de CxC.'!J91=\"\",\"\",'800111a - Nota. Detalle de CxC.'!J91)","v":""},{"$f":"IF('800111a - Nota. Detalle de CxC.'!J92=\"\",\"\",'800111a - Nota. Detalle de CxC.'!J92)","v":""},{"$f":"IF('800111a - Nota. Detalle de CxC.'!J93=\"\",\"\",'800111a - Nota. Detalle de CxC.'!J93)","v":""},{"$f":"IF('800111a - Nota. Detalle de CxC.'!J94=\"\",\"\",'800111a - Nota. Detalle de CxC.'!J94)","v":""},{"$f":"IF('800111a - Nota. Detalle de CxC.'!J95=\"\",\"\",'800111a - Nota. Detalle de CxC.'!J95)","v":""},{"$f":"IF('800111a - Nota. Detalle de CxC.'!J96=\"\",\"\",'800111a - Nota. Detalle de CxC.'!J96)","v":""},{"$f":"IF('800111a - Nota. Detalle de CxC.'!J97=\"\",\"\",'800111a - Nota. Detalle de CxC.'!J97)","v":""},{"$f":"IF('800111a - Nota. Detalle de CxC.'!J98=\"\",\"\",'800111a - Nota. Detalle de CxC.'!J98)","v":""},{"$f":"IF('800111a - Nota. Detalle de CxC.'!J99=\"\",\"\",'800111a - Nota. Detalle de CxC.'!J99)","v":""},{"$f":"IF('800111a - Nota. Detalle de CxC.'!J100=\"\",\"\",'800111a - Nota. Detalle de CxC.'!J100)","v":""},{"$f":"IF('800111a - Nota. Detalle de CxC.'!J101=\"\",\"\",'800111a - Nota. Detalle de CxC.'!J101)","v":""},{"$f":"IF('800111a - Nota. Detalle de CxC.'!J102=\"\",\"\",'800111a - Nota. Detalle de CxC.'!J102)","v":""},{"$f":"IF('800111a - Nota. Detalle de CxC.'!J103=\"\",\"\",'800111a - Nota. Detalle de CxC.'!J103)","v":""},{"$f":"IF('800111a - Nota. Detalle de CxC.'!J104=\"\",\"\",'800111a - Nota. Detalle de CxC.'!J104)","v":""},{"$f":"IF('800111a - Nota. Detalle de CxC.'!J105=\"\",\"\",'800111a - Nota. Detalle de CxC.'!J105)","v":""},{"$f":"IF('800111a - Nota. Detalle de CxC.'!J106=\"\",\"\",'800111a - Nota. Detalle de CxC.'!J106)","v":""},{"$f":"IF('800111a - Nota. Detalle de CxC.'!J107=\"\",\"\",'800111a - Nota. Detalle de CxC.'!J107)","v":""},{"$f":"IF('800111a - Nota. Detalle de CxC.'!J108=\"\",\"\",'800111a - Nota. Detalle de CxC.'!J108)","v":""},{"$f":"IF('800111a - Nota. Detalle de CxC.'!J109=\"\",\"\",'800111a - Nota. Detalle de CxC.'!J109)","v":""},{"$f":"IF('800111a - Nota. Detalle de CxC.'!J110=\"\",\"\",'800111a - Nota. Detalle de CxC.'!J110)","v":""},{"$f":"IF('800111a - Nota. Detalle de CxC.'!J111=\"\",\"\",'800111a - Nota. Detalle de CxC.'!J111)","v":""},{"$f":"IF('800111a - Nota. Detalle de CxC.'!J112=\"\",\"\",'800111a - Nota. Detalle de CxC.'!J112)","v":""},{"$f":"IF('800111a - Nota. Detalle de CxC.'!J113=\"\",\"\",'800111a - Nota. Detalle de CxC.'!J113)","v":""},{"$f":"IF('800111a - Nota. Detalle de CxC.'!J114=\"\",\"\",'800111a - Nota. Detalle de CxC.'!J114)","v":""},{"$f":"IF('800111a - Nota. Detalle de CxC.'!J115=\"\",\"\",'800111a - Nota. Detalle de CxC.'!J115)","v":""},{"$f":"IF('800111a - Nota. Detalle de CxC.'!J116=\"\",\"\",'800111a - Nota. Detalle de CxC.'!J116)","v":""},null,null,null,{"$f":"IF('800111a - Nota. Detalle de CxC.'!J120=\"\",\"\",'800111a - Nota. Detalle de CxC.'!J120)","v":""},{"$f":"IF('800111a - Nota. Detalle de CxC.'!J121=\"\",\"\",'800111a - Nota. Detalle de CxC.'!J121)","v":""},{"$f":"IF('800111a - Nota. Detalle de CxC.'!J122=\"\",\"\",'800111a - Nota. Detalle de CxC.'!J122)","v":""},{"$f":"IF('800111a - Nota. Detalle de CxC.'!J123=\"\",\"\",'800111a - Nota. Detalle de CxC.'!J123)","v":""},{"$f":"IF('800111a - Nota. Detalle de CxC.'!J124=\"\",\"\",'800111a - Nota. Detalle de CxC.'!J124)","v":""},{"$f":"IF('800111a - Nota. Detalle de CxC.'!J125=\"\",\"\",'800111a - Nota. Detalle de CxC.'!J125)","v":""},{"$f":"IF('800111a - Nota. Detalle de CxC.'!J126=\"\",\"\",'800111a - Nota. Detalle de CxC.'!J126)","v":""},{"$f":"IF('800111a - Nota. Detalle de CxC.'!J127=\"\",\"\",'800111a - Nota. Detalle de CxC.'!J127)","v":""},{"$f":"IF('800111a - Nota. Detalle de CxC.'!J128=\"\",\"\",'800111a - Nota. Detalle de CxC.'!J128)","v":""},{"$f":"IF('800111a - Nota. Detalle de CxC.'!J129=\"\",\"\",'800111a - Nota. Detalle de CxC.'!J129)","v":""},{"$f":"IF('800111a - Nota. Detalle de CxC.'!J130=\"\",\"\",'800111a - Nota. Detalle de CxC.'!J130)","v":""},{"$f":"IF('800111a - Nota. Detalle de CxC.'!J131=\"\",\"\",'800111a - Nota. Detalle de CxC.'!J131)","v":""},{"$f":"IF('800111a - Nota. Detalle de CxC.'!J132=\"\",\"\",'800111a - Nota. Detalle de CxC.'!J132)","v":""},{"$f":"IF('800111a - Nota. Detalle de CxC.'!J133=\"\",\"\",'800111a - Nota. Detalle de CxC.'!J133)","v":""},{"$f":"IF('800111a - Nota. Detalle de CxC.'!J134=\"\",\"\",'800111a - Nota. Detalle de CxC.'!J134)","v":""},{"$f":"IF('800111a - Nota. Detalle de CxC.'!J135=\"\",\"\",'800111a - Nota. Detalle de CxC.'!J135)","v":""},{"$f":"IF('800111a - Nota. Detalle de CxC.'!J136=\"\",\"\",'800111a - Nota. Detalle de CxC.'!J136)","v":""},{"$f":"IF('800111a - Nota. Detalle de CxC.'!J137=\"\",\"\",'800111a - Nota. Detalle de CxC.'!J137)","v":""},{"$f":"IF('800111a - Nota. Detalle de CxC.'!J138=\"\",\"\",'800111a - Nota. Detalle de CxC.'!J138)","v":""},{"$f":"IF('800111a - Nota. Detalle de CxC.'!J139=\"\",\"\",'800111a - Nota. Detalle de CxC.'!J139)","v":""},{"$f":"IF('800111a - Nota. Detalle de CxC.'!J140=\"\",\"\",'800111a - Nota. Detalle de CxC.'!J140)","v":""},{"$f":"IF('800111a - Nota. Detalle de CxC.'!J141=\"\",\"\",'800111a - Nota. Detalle de CxC.'!J141)","v":""},{"$f":"IF('800111a - Nota. Detalle de CxC.'!J142=\"\",\"\",'800111a - Nota. Detalle de CxC.'!J142)","v":""},{"$f":"IF('800111a - Nota. Detalle de CxC.'!J143=\"\",\"\",'800111a - Nota. Detalle de CxC.'!J143)","v":""},{"$f":"IF('800111a - Nota. Detalle de CxC.'!J144=\"\",\"\",'800111a - Nota. Detalle de CxC.'!J144)","v":""},{"$f":"IF('800111a - Nota. Detalle de CxC.'!J145=\"\",\"\",'800111a - Nota. Detalle de CxC.'!J145)","v":""},{"$f":"IF('800111a - Nota. Detalle de CxC.'!J146=\"\",\"\",'800111a - Nota. Detalle de CxC.'!J146)","v":""},{"$f":"IF('800111a - Nota. Detalle de CxC.'!J147=\"\",\"\",'800111a - Nota. Detalle de CxC.'!J147)","v":""},{"$f":"IF('800111a - Nota. Detalle de CxC.'!J148=\"\",\"\",'800111a - Nota. Detalle de CxC.'!J148)","v":""},{"$f":"IF('800111a - Nota. Detalle de CxC.'!J149=\"\",\"\",'800111a - Nota. Detalle de CxC.'!J149)","v":""},{"$f":"IF('800111a - Nota. Detalle de CxC.'!J150=\"\",\"\",'800111a - Nota. Detalle de CxC.'!J150)","v":""},{"$f":"IF('800111a - Nota. Detalle de CxC.'!J151=\"\",\"\",'800111a - Nota. Detalle de CxC.'!J151)","v":""},{"$f":"IF('800111a - Nota. Detalle de CxC.'!J152=\"\",\"\",'800111a - Nota. Detalle de CxC.'!J152)","v":""},{"$f":"IF('800111a - Nota. Detalle de CxC.'!J153=\"\",\"\",'800111a - Nota. Detalle de CxC.'!J153)","v":""},{"$f":"IF('800111a - Nota. Detalle de CxC.'!J154=\"\",\"\",'800111a - Nota. Detalle de CxC.'!J154)","v":""},{"$f":"IF('800111a - Nota. Detalle de CxC.'!J155=\"\",\"\",'800111a - Nota. Detalle de CxC.'!J155)","v":""},{"$f":"IF('800111a - Nota. Detalle de CxC.'!J156=\"\",\"\",'800111a - Nota. Detalle de CxC.'!J156)","v":""},{"$f":"IF('800111a - Nota. Detalle de CxC.'!J157=\"\",\"\",'800111a - Nota. Detalle de CxC.'!J157)","v":""},{"$f":"IF('800111a - Nota. Detalle de CxC.'!J158=\"\",\"\",'800111a - Nota. Detalle de CxC.'!J158)","v":""},{"$f":"IF('800111a - Nota. Detalle de CxC.'!J159=\"\",\"\",'800111a - Nota. Detalle de CxC.'!J159)","v":""},{"$f":"IF('800111a - Nota. Detalle de CxC.'!J160=\"\",\"\",'800111a - Nota. Detalle de CxC.'!J160)","v":""},{"$f":"IF('800111a - Nota. Detalle de CxC.'!J161=\"\",\"\",'800111a - Nota. Detalle de CxC.'!J161)","v":""},{"$f":"IF('800111a - Nota. Detalle de CxC.'!J162=\"\",\"\",'800111a - Nota. Detalle de CxC.'!J162)","v":""},{"$f":"IF('800111a - Nota. Detalle de CxC.'!J163=\"\",\"\",'800111a - Nota. Detalle de CxC.'!J163)","v":""},{"$f":"IF('800111a - Nota. Detalle de CxC.'!J164=\"\",\"\",'800111a - Nota. Detalle de CxC.'!J164)","v":""},{"$f":"IF('800111a - Nota. Detalle de CxC.'!J165=\"\",\"\",'800111a - Nota. Detalle de CxC.'!J165)","v":""},{"$f":"IF('800111a - Nota. Detalle de CxC.'!J166=\"\",\"\",'800111a - Nota. Detalle de CxC.'!J166)","v":""},{"$f":"IF('800111a - Nota. Detalle de CxC.'!J167=\"\",\"\",'800111a - Nota. Detalle de CxC.'!J167)","v":""},{"$f":"IF('800111a - Nota. Detalle de CxC.'!J168=\"\",\"\",'800111a - Nota. Detalle de CxC.'!J168)","v":""},{"$f":"IF('800111a - Nota. Detalle de CxC.'!J169=\"\",\"\",'800111a - Nota. Detalle de CxC.'!J169)","v":""}]
[null,"1;1","co-svsp-core_2017-12-31:RazonSocialDeudorCxC","Razón Social deudor",null,null,{"$f":"IF('800111a - Nota. Detalle de CxC.'!K14=\"\",\"\",'800111a - Nota. Detalle de CxC.'!K14)","v":""},{"$f":"IF('800111a - Nota. Detalle de CxC.'!K15=\"\",\"\",'800111a - Nota. Detalle de CxC.'!K15)","v":""},{"$f":"IF('800111a - Nota. Detalle de CxC.'!K16=\"\",\"\",'800111a - Nota. Detalle de CxC.'!K16)","v":""},{"$f":"IF('800111a - Nota. Detalle de CxC.'!K17=\"\",\"\",'800111a - Nota. Detalle de CxC.'!K17)","v":""},{"$f":"IF('800111a - Nota. Detalle de CxC.'!K18=\"\",\"\",'800111a - Nota. Detalle de CxC.'!K18)","v":""},{"$f":"IF('800111a - Nota. Detalle de CxC.'!K19=\"\",\"\",'800111a - Nota. Detalle de CxC.'!K19)","v":""},{"$f":"IF('800111a - Nota. Detalle de CxC.'!K20=\"\",\"\",'800111a - Nota. Detalle de CxC.'!K20)","v":""},{"$f":"IF('800111a - Nota. Detalle de CxC.'!K21=\"\",\"\",'800111a - Nota. Detalle de CxC.'!K21)","v":""},{"$f":"IF('800111a - Nota. Detalle de CxC.'!K22=\"\",\"\",'800111a - Nota. Detalle de CxC.'!K22)","v":""},{"$f":"IF('800111a - Nota. Detalle de CxC.'!K23=\"\",\"\",'800111a - Nota. Detalle de CxC.'!K23)","v":""},{"$f":"IF('800111a - Nota. Detalle de CxC.'!K24=\"\",\"\",'800111a - Nota. Detalle de CxC.'!K24)","v":""},{"$f":"IF('800111a - Nota. Detalle de CxC.'!K25=\"\",\"\",'800111a - Nota. Detalle de CxC.'!K25)","v":""},{"$f":"IF('800111a - Nota. Detalle de CxC.'!K26=\"\",\"\",'800111a - Nota. Detalle de CxC.'!K26)","v":""},{"$f":"IF('800111a - Nota. Detalle de CxC.'!K27=\"\",\"\",'800111a - Nota. Detalle de CxC.'!K27)","v":""},{"$f":"IF('800111a - Nota. Detalle de CxC.'!K28=\"\",\"\",'800111a - Nota. Detalle de CxC.'!K28)","v":""},{"$f":"IF('800111a - Nota. Detalle de CxC.'!K29=\"\",\"\",'800111a - Nota. Detalle de CxC.'!K29)","v":""},{"$f":"IF('800111a - Nota. Detalle de CxC.'!K30=\"\",\"\",'800111a - Nota. Detalle de CxC.'!K30)","v":""},{"$f":"IF('800111a - Nota. Detalle de CxC.'!K31=\"\",\"\",'800111a - Nota. Detalle de CxC.'!K31)","v":""},{"$f":"IF('800111a - Nota. Detalle de CxC.'!K32=\"\",\"\",'800111a - Nota. Detalle de CxC.'!K32)","v":""},{"$f":"IF('800111a - Nota. Detalle de CxC.'!K33=\"\",\"\",'800111a - Nota. Detalle de CxC.'!K33)","v":""},{"$f":"IF('800111a - Nota. Detalle de CxC.'!K34=\"\",\"\",'800111a - Nota. Detalle de CxC.'!K34)","v":""},{"$f":"IF('800111a - Nota. Detalle de CxC.'!K35=\"\",\"\",'800111a - Nota. Detalle de CxC.'!K35)","v":""},{"$f":"IF('800111a - Nota. Detalle de CxC.'!K36=\"\",\"\",'800111a - Nota. Detalle de CxC.'!K36)","v":""},{"$f":"IF('800111a - Nota. Detalle de CxC.'!K37=\"\",\"\",'800111a - Nota. Detalle de CxC.'!K37)","v":""},{"$f":"IF('800111a - Nota. Detalle de CxC.'!K38=\"\",\"\",'800111a - Nota. Detalle de CxC.'!K38)","v":""},{"$f":"IF('800111a - Nota. Detalle de CxC.'!K39=\"\",\"\",'800111a - Nota. Detalle de CxC.'!K39)","v":""},{"$f":"IF('800111a - Nota. Detalle de CxC.'!K40=\"\",\"\",'800111a - Nota. Detalle de CxC.'!K40)","v":""},{"$f":"IF('800111a - Nota. Detalle de CxC.'!K41=\"\",\"\",'800111a - Nota. Detalle de CxC.'!K41)","v":""},{"$f":"IF('800111a - Nota. Detalle de CxC.'!K42=\"\",\"\",'800111a - Nota. Detalle de CxC.'!K42)","v":""},{"$f":"IF('800111a - Nota. Detalle de CxC.'!K43=\"\",\"\",'800111a - Nota. Detalle de CxC.'!K43)","v":""},{"$f":"IF('800111a - Nota. Detalle de CxC.'!K44=\"\",\"\",'800111a - Nota. Detalle de CxC.'!K44)","v":""},{"$f":"IF('800111a - Nota. Detalle de CxC.'!K45=\"\",\"\",'800111a - Nota. Detalle de CxC.'!K45)","v":""},{"$f":"IF('800111a - Nota. Detalle de CxC.'!K46=\"\",\"\",'800111a - Nota. Detalle de CxC.'!K46)","v":""},{"$f":"IF('800111a - Nota. Detalle de CxC.'!K47=\"\",\"\",'800111a - Nota. Detalle de CxC.'!K47)","v":""},{"$f":"IF('800111a - Nota. Detalle de CxC.'!K48=\"\",\"\",'800111a - Nota. Detalle de CxC.'!K48)","v":""},{"$f":"IF('800111a - Nota. Detalle de CxC.'!K49=\"\",\"\",'800111a - Nota. Detalle de CxC.'!K49)","v":""},{"$f":"IF('800111a - Nota. Detalle de CxC.'!K50=\"\",\"\",'800111a - Nota. Detalle de CxC.'!K50)","v":""},{"$f":"IF('800111a - Nota. Detalle de CxC.'!K51=\"\",\"\",'800111a - Nota. Detalle de CxC.'!K51)","v":""},{"$f":"IF('800111a - Nota. Detalle de CxC.'!K52=\"\",\"\",'800111a - Nota. Detalle de CxC.'!K52)","v":""},{"$f":"IF('800111a - Nota. Detalle de CxC.'!K53=\"\",\"\",'800111a - Nota. Detalle de CxC.'!K53)","v":""},{"$f":"IF('800111a - Nota. Detalle de CxC.'!K54=\"\",\"\",'800111a - Nota. Detalle de CxC.'!K54)","v":""},{"$f":"IF('800111a - Nota. Detalle de CxC.'!K55=\"\",\"\",'800111a - Nota. Detalle de CxC.'!K55)","v":""},{"$f":"IF('800111a - Nota. Detalle de CxC.'!K56=\"\",\"\",'800111a - Nota. Detalle de CxC.'!K56)","v":""},{"$f":"IF('800111a - Nota. Detalle de CxC.'!K57=\"\",\"\",'800111a - Nota. Detalle de CxC.'!K57)","v":""},{"$f":"IF('800111a - Nota. Detalle de CxC.'!K58=\"\",\"\",'800111a - Nota. Detalle de CxC.'!K58)","v":""},{"$f":"IF('800111a - Nota. Detalle de CxC.'!K59=\"\",\"\",'800111a - Nota. Detalle de CxC.'!K59)","v":""},{"$f":"IF('800111a - Nota. Detalle de CxC.'!K60=\"\",\"\",'800111a - Nota. Detalle de CxC.'!K60)","v":""},{"$f":"IF('800111a - Nota. Detalle de CxC.'!K61=\"\",\"\",'800111a - Nota. Detalle de CxC.'!K61)","v":""},{"$f":"IF('800111a - Nota. Detalle de CxC.'!K62=\"\",\"\",'800111a - Nota. Detalle de CxC.'!K62)","v":""},{"$f":"IF('800111a - Nota. Detalle de CxC.'!K63=\"\",\"\",'800111a - Nota. Detalle de CxC.'!K63)","v":""},null,null,null,{"$f":"IF('800111a - Nota. Detalle de CxC.'!K67=\"\",\"\",'800111a - Nota. Detalle de CxC.'!K67)","v":""},{"$f":"IF('800111a - Nota. Detalle de CxC.'!K68=\"\",\"\",'800111a - Nota. Detalle de CxC.'!K68)","v":""},{"$f":"IF('800111a - Nota. Detalle de CxC.'!K69=\"\",\"\",'800111a - Nota. Detalle de CxC.'!K69)","v":""},{"$f":"IF('800111a - Nota. Detalle de CxC.'!K70=\"\",\"\",'800111a - Nota. Detalle de CxC.'!K70)","v":""},{"$f":"IF('800111a - Nota. Detalle de CxC.'!K71=\"\",\"\",'800111a - Nota. Detalle de CxC.'!K71)","v":""},{"$f":"IF('800111a - Nota. Detalle de CxC.'!K72=\"\",\"\",'800111a - Nota. Detalle de CxC.'!K72)","v":""},{"$f":"IF('800111a - Nota. Detalle de CxC.'!K73=\"\",\"\",'800111a - Nota. Detalle de CxC.'!K73)","v":""},{"$f":"IF('800111a - Nota. Detalle de CxC.'!K74=\"\",\"\",'800111a - Nota. Detalle de CxC.'!K74)","v":""},{"$f":"IF('800111a - Nota. Detalle de CxC.'!K75=\"\",\"\",'800111a - Nota. Detalle de CxC.'!K75)","v":""},{"$f":"IF('800111a - Nota. Detalle de CxC.'!K76=\"\",\"\",'800111a - Nota. Detalle de CxC.'!K76)","v":""},{"$f":"IF('800111a - Nota. Detalle de CxC.'!K77=\"\",\"\",'800111a - Nota. Detalle de CxC.'!K77)","v":""},{"$f":"IF('800111a - Nota. Detalle de CxC.'!K78=\"\",\"\",'800111a - Nota. Detalle de CxC.'!K78)","v":""},{"$f":"IF('800111a - Nota. Detalle de CxC.'!K79=\"\",\"\",'800111a - Nota. Detalle de CxC.'!K79)","v":""},{"$f":"IF('800111a - Nota. Detalle de CxC.'!K80=\"\",\"\",'800111a - Nota. Detalle de CxC.'!K80)","v":""},{"$f":"IF('800111a - Nota. Detalle de CxC.'!K81=\"\",\"\",'800111a - Nota. Detalle de CxC.'!K81)","v":""},{"$f":"IF('800111a - Nota. Detalle de CxC.'!K82=\"\",\"\",'800111a - Nota. Detalle de CxC.'!K82)","v":""},{"$f":"IF('800111a - Nota. Detalle de CxC.'!K83=\"\",\"\",'800111a - Nota. Detalle de CxC.'!K83)","v":""},{"$f":"IF('800111a - Nota. Detalle de CxC.'!K84=\"\",\"\",'800111a - Nota. Detalle de CxC.'!K84)","v":""},{"$f":"IF('800111a - Nota. Detalle de CxC.'!K85=\"\",\"\",'800111a - Nota. Detalle de CxC.'!K85)","v":""},{"$f":"IF('800111a - Nota. Detalle de CxC.'!K86=\"\",\"\",'800111a - Nota. Detalle de CxC.'!K86)","v":""},{"$f":"IF('800111a - Nota. Detalle de CxC.'!K87=\"\",\"\",'800111a - Nota. Detalle de CxC.'!K87)","v":""},{"$f":"IF('800111a - Nota. Detalle de CxC.'!K88=\"\",\"\",'800111a - Nota. Detalle de CxC.'!K88)","v":""},{"$f":"IF('800111a - Nota. Detalle de CxC.'!K89=\"\",\"\",'800111a - Nota. Detalle de CxC.'!K89)","v":""},{"$f":"IF('800111a - Nota. Detalle de CxC.'!K90=\"\",\"\",'800111a - Nota. Detalle de CxC.'!K90)","v":""},{"$f":"IF('800111a - Nota. Detalle de CxC.'!K91=\"\",\"\",'800111a - Nota. Detalle de CxC.'!K91)","v":""},{"$f":"IF('800111a - Nota. Detalle de CxC.'!K92=\"\",\"\",'800111a - Nota. Detalle de CxC.'!K92)","v":""},{"$f":"IF('800111a - Nota. Detalle de CxC.'!K93=\"\",\"\",'800111a - Nota. Detalle de CxC.'!K93)","v":""},{"$f":"IF('800111a - Nota. Detalle de CxC.'!K94=\"\",\"\",'800111a - Nota. Detalle de CxC.'!K94)","v":""},{"$f":"IF('800111a - Nota. Detalle de CxC.'!K95=\"\",\"\",'800111a - Nota. Detalle de CxC.'!K95)","v":""},{"$f":"IF('800111a - Nota. Detalle de CxC.'!K96=\"\",\"\",'800111a - Nota. Detalle de CxC.'!K96)","v":""},{"$f":"IF('800111a - Nota. Detalle de CxC.'!K97=\"\",\"\",'800111a - Nota. Detalle de CxC.'!K97)","v":""},{"$f":"IF('800111a - Nota. Detalle de CxC.'!K98=\"\",\"\",'800111a - Nota. Detalle de CxC.'!K98)","v":""},{"$f":"IF('800111a - Nota. Detalle de CxC.'!K99=\"\",\"\",'800111a - Nota. Detalle de CxC.'!K99)","v":""},{"$f":"IF('800111a - Nota. Detalle de CxC.'!K100=\"\",\"\",'800111a - Nota. Detalle de CxC.'!K100)","v":""},{"$f":"IF('800111a - Nota. Detalle de CxC.'!K101=\"\",\"\",'800111a - Nota. Detalle de CxC.'!K101)","v":""},{"$f":"IF('800111a - Nota. Detalle de CxC.'!K102=\"\",\"\",'800111a - Nota. Detalle de CxC.'!K102)","v":""},{"$f":"IF('800111a - Nota. Detalle de CxC.'!K103=\"\",\"\",'800111a - Nota. Detalle de CxC.'!K103)","v":""},{"$f":"IF('800111a - Nota. Detalle de CxC.'!K104=\"\",\"\",'800111a - Nota. Detalle de CxC.'!K104)","v":""},{"$f":"IF('800111a - Nota. Detalle de CxC.'!K105=\"\",\"\",'800111a - Nota. Detalle de CxC.'!K105)","v":""},{"$f":"IF('800111a - Nota. Detalle de CxC.'!K106=\"\",\"\",'800111a - Nota. Detalle de CxC.'!K106)","v":""},{"$f":"IF('800111a - Nota. Detalle de CxC.'!K107=\"\",\"\",'800111a - Nota. Detalle de CxC.'!K107)","v":""},{"$f":"IF('800111a - Nota. Detalle de CxC.'!K108=\"\",\"\",'800111a - Nota. Detalle de CxC.'!K108)","v":""},{"$f":"IF('800111a - Nota. Detalle de CxC.'!K109=\"\",\"\",'800111a - Nota. Detalle de CxC.'!K109)","v":""},{"$f":"IF('800111a - Nota. Detalle de CxC.'!K110=\"\",\"\",'800111a - Nota. Detalle de CxC.'!K110)","v":""},{"$f":"IF('800111a - Nota. Detalle de CxC.'!K111=\"\",\"\",'800111a - Nota. Detalle de CxC.'!K111)","v":""},{"$f":"IF('800111a - Nota. Detalle de CxC.'!K112=\"\",\"\",'800111a - Nota. Detalle de CxC.'!K112)","v":""},{"$f":"IF('800111a - Nota. Detalle de CxC.'!K113=\"\",\"\",'800111a - Nota. Detalle de CxC.'!K113)","v":""},{"$f":"IF('800111a - Nota. Detalle de CxC.'!K114=\"\",\"\",'800111a - Nota. Detalle de CxC.'!K114)","v":""},{"$f":"IF('800111a - Nota. Detalle de CxC.'!K115=\"\",\"\",'800111a - Nota. Detalle de CxC.'!K115)","v":""},{"$f":"IF('800111a - Nota. Detalle de CxC.'!K116=\"\",\"\",'800111a - Nota. Detalle de CxC.'!K116)","v":""},null,null,null,{"$f":"IF('800111a - Nota. Detalle de CxC.'!K120=\"\",\"\",'800111a - Nota. Detalle de CxC.'!K120)","v":""},{"$f":"IF('800111a - Nota. Detalle de CxC.'!K121=\"\",\"\",'800111a - Nota. Detalle de CxC.'!K121)","v":""},{"$f":"IF('800111a - Nota. Detalle de CxC.'!K122=\"\",\"\",'800111a - Nota. Detalle de CxC.'!K122)","v":""},{"$f":"IF('800111a - Nota. Detalle de CxC.'!K123=\"\",\"\",'800111a - Nota. Detalle de CxC.'!K123)","v":""},{"$f":"IF('800111a - Nota. Detalle de CxC.'!K124=\"\",\"\",'800111a - Nota. Detalle de CxC.'!K124)","v":""},{"$f":"IF('800111a - Nota. Detalle de CxC.'!K125=\"\",\"\",'800111a - Nota. Detalle de CxC.'!K125)","v":""},{"$f":"IF('800111a - Nota. Detalle de CxC.'!K126=\"\",\"\",'800111a - Nota. Detalle de CxC.'!K126)","v":""},{"$f":"IF('800111a - Nota. Detalle de CxC.'!K127=\"\",\"\",'800111a - Nota. Detalle de CxC.'!K127)","v":""},{"$f":"IF('800111a - Nota. Detalle de CxC.'!K128=\"\",\"\",'800111a - Nota. Detalle de CxC.'!K128)","v":""},{"$f":"IF('800111a - Nota. Detalle de CxC.'!K129=\"\",\"\",'800111a - Nota. Detalle de CxC.'!K129)","v":""},{"$f":"IF('800111a - Nota. Detalle de CxC.'!K130=\"\",\"\",'800111a - Nota. Detalle de CxC.'!K130)","v":""},{"$f":"IF('800111a - Nota. Detalle de CxC.'!K131=\"\",\"\",'800111a - Nota. Detalle de CxC.'!K131)","v":""},{"$f":"IF('800111a - Nota. Detalle de CxC.'!K132=\"\",\"\",'800111a - Nota. Detalle de CxC.'!K132)","v":""},{"$f":"IF('800111a - Nota. Detalle de CxC.'!K133=\"\",\"\",'800111a - Nota. Detalle de CxC.'!K133)","v":""},{"$f":"IF('800111a - Nota. Detalle de CxC.'!K134=\"\",\"\",'800111a - Nota. Detalle de CxC.'!K134)","v":""},{"$f":"IF('800111a - Nota. Detalle de CxC.'!K135=\"\",\"\",'800111a - Nota. Detalle de CxC.'!K135)","v":""},{"$f":"IF('800111a - Nota. Detalle de CxC.'!K136=\"\",\"\",'800111a - Nota. Detalle de CxC.'!K136)","v":""},{"$f":"IF('800111a - Nota. Detalle de CxC.'!K137=\"\",\"\",'800111a - Nota. Detalle de CxC.'!K137)","v":""},{"$f":"IF('800111a - Nota. Detalle de CxC.'!K138=\"\",\"\",'800111a - Nota. Detalle de CxC.'!K138)","v":""},{"$f":"IF('800111a - Nota. Detalle de CxC.'!K139=\"\",\"\",'800111a - Nota. Detalle de CxC.'!K139)","v":""},{"$f":"IF('800111a - Nota. Detalle de CxC.'!K140=\"\",\"\",'800111a - Nota. Detalle de CxC.'!K140)","v":""},{"$f":"IF('800111a - Nota. Detalle de CxC.'!K141=\"\",\"\",'800111a - Nota. Detalle de CxC.'!K141)","v":""},{"$f":"IF('800111a - Nota. Detalle de CxC.'!K142=\"\",\"\",'800111a - Nota. Detalle de CxC.'!K142)","v":""},{"$f":"IF('800111a - Nota. Detalle de CxC.'!K143=\"\",\"\",'800111a - Nota. Detalle de CxC.'!K143)","v":""},{"$f":"IF('800111a - Nota. Detalle de CxC.'!K144=\"\",\"\",'800111a - Nota. Detalle de CxC.'!K144)","v":""},{"$f":"IF('800111a - Nota. Detalle de CxC.'!K145=\"\",\"\",'800111a - Nota. Detalle de CxC.'!K145)","v":""},{"$f":"IF('800111a - Nota. Detalle de CxC.'!K146=\"\",\"\",'800111a - Nota. Detalle de CxC.'!K146)","v":""},{"$f":"IF('800111a - Nota. Detalle de CxC.'!K147=\"\",\"\",'800111a - Nota. Detalle de CxC.'!K147)","v":""},{"$f":"IF('800111a - Nota. Detalle de CxC.'!K148=\"\",\"\",'800111a - Nota. Detalle de CxC.'!K148)","v":""},{"$f":"IF('800111a - Nota. Detalle de CxC.'!K149=\"\",\"\",'800111a - Nota. Detalle de CxC.'!K149)","v":""},{"$f":"IF('800111a - Nota. Detalle de CxC.'!K150=\"\",\"\",'800111a - Nota. Detalle de CxC.'!K150)","v":""},{"$f":"IF('800111a - Nota. Detalle de CxC.'!K151=\"\",\"\",'800111a - Nota. Detalle de CxC.'!K151)","v":""},{"$f":"IF('800111a - Nota. Detalle de CxC.'!K152=\"\",\"\",'800111a - Nota. Detalle de CxC.'!K152)","v":""},{"$f":"IF('800111a - Nota. Detalle de CxC.'!K153=\"\",\"\",'800111a - Nota. Detalle de CxC.'!K153)","v":""},{"$f":"IF('800111a - Nota. Detalle de CxC.'!K154=\"\",\"\",'800111a - Nota. Detalle de CxC.'!K154)","v":""},{"$f":"IF('800111a - Nota. Detalle de CxC.'!K155=\"\",\"\",'800111a - Nota. Detalle de CxC.'!K155)","v":""},{"$f":"IF('800111a - Nota. Detalle de CxC.'!K156=\"\",\"\",'800111a - Nota. Detalle de CxC.'!K156)","v":""},{"$f":"IF('800111a - Nota. Detalle de CxC.'!K157=\"\",\"\",'800111a - Nota. Detalle de CxC.'!K157)","v":""},{"$f":"IF('800111a - Nota. Detalle de CxC.'!K158=\"\",\"\",'800111a - Nota. Detalle de CxC.'!K158)","v":""},{"$f":"IF('800111a - Nota. Detalle de CxC.'!K159=\"\",\"\",'800111a - Nota. Detalle de CxC.'!K159)","v":""},{"$f":"IF('800111a - Nota. Detalle de CxC.'!K160=\"\",\"\",'800111a - Nota. Detalle de CxC.'!K160)","v":""},{"$f":"IF('800111a - Nota. Detalle de CxC.'!K161=\"\",\"\",'800111a - Nota. Detalle de CxC.'!K161)","v":""},{"$f":"IF('800111a - Nota. Detalle de CxC.'!K162=\"\",\"\",'800111a - Nota. Detalle de CxC.'!K162)","v":""},{"$f":"IF('800111a - Nota. Detalle de CxC.'!K163=\"\",\"\",'800111a - Nota. Detalle de CxC.'!K163)","v":""},{"$f":"IF('800111a - Nota. Detalle de CxC.'!K164=\"\",\"\",'800111a - Nota. Detalle de CxC.'!K164)","v":""},{"$f":"IF('800111a - Nota. Detalle de CxC.'!K165=\"\",\"\",'800111a - Nota. Detalle de CxC.'!K165)","v":""},{"$f":"IF('800111a - Nota. Detalle de CxC.'!K166=\"\",\"\",'800111a - Nota. Detalle de CxC.'!K166)","v":""},{"$f":"IF('800111a - Nota. Detalle de CxC.'!K167=\"\",\"\",'800111a - Nota. Detalle de CxC.'!K167)","v":""},{"$f":"IF('800111a - Nota. Detalle de CxC.'!K168=\"\",\"\",'800111a - Nota. Detalle de CxC.'!K168)","v":""},{"$f":"IF('800111a - Nota. Detalle de CxC.'!K169=\"\",\"\",'800111a - Nota. Detalle de CxC.'!K169)","v":""}]
[null,"1;1","co-svsp-core_2017-12-31:DireccionDeudorCxC","Dirección deudor",null,null,{"$f":"IF('800111a - Nota. Detalle de CxC.'!L14=\"\",\"\",'800111a - Nota. Detalle de CxC.'!L14)","v":""},{"$f":"IF('800111a - Nota. Detalle de CxC.'!L15=\"\",\"\",'800111a - Nota. Detalle de CxC.'!L15)","v":""},{"$f":"IF('800111a - Nota. Detalle de CxC.'!L16=\"\",\"\",'800111a - Nota. Detalle de CxC.'!L16)","v":""},{"$f":"IF('800111a - Nota. Detalle de CxC.'!L17=\"\",\"\",'800111a - Nota. Detalle de CxC.'!L17)","v":""},{"$f":"IF('800111a - Nota. Detalle de CxC.'!L18=\"\",\"\",'800111a - Nota. Detalle de CxC.'!L18)","v":""},{"$f":"IF('800111a - Nota. Detalle de CxC.'!L19=\"\",\"\",'800111a - Nota. Detalle de CxC.'!L19)","v":""},{"$f":"IF('800111a - Nota. Detalle de CxC.'!L20=\"\",\"\",'800111a - Nota. Detalle de CxC.'!L20)","v":""},{"$f":"IF('800111a - Nota. Detalle de CxC.'!L21=\"\",\"\",'800111a - Nota. Detalle de CxC.'!L21)","v":""},{"$f":"IF('800111a - Nota. Detalle de CxC.'!L22=\"\",\"\",'800111a - Nota. Detalle de CxC.'!L22)","v":""},{"$f":"IF('800111a - Nota. Detalle de CxC.'!L23=\"\",\"\",'800111a - Nota. Detalle de CxC.'!L23)","v":""},{"$f":"IF('800111a - Nota. Detalle de CxC.'!L24=\"\",\"\",'800111a - Nota. Detalle de CxC.'!L24)","v":""},{"$f":"IF('800111a - Nota. Detalle de CxC.'!L25=\"\",\"\",'800111a - Nota. Detalle de CxC.'!L25)","v":""},{"$f":"IF('800111a - Nota. Detalle de CxC.'!L26=\"\",\"\",'800111a - Nota. Detalle de CxC.'!L26)","v":""},{"$f":"IF('800111a - Nota. Detalle de CxC.'!L27=\"\",\"\",'800111a - Nota. Detalle de CxC.'!L27)","v":""},{"$f":"IF('800111a - Nota. Detalle de CxC.'!L28=\"\",\"\",'800111a - Nota. Detalle de CxC.'!L28)","v":""},{"$f":"IF('800111a - Nota. Detalle de CxC.'!L29=\"\",\"\",'800111a - Nota. Detalle de CxC.'!L29)","v":""},{"$f":"IF('800111a - Nota. Detalle de CxC.'!L30=\"\",\"\",'800111a - Nota. Detalle de CxC.'!L30)","v":""},{"$f":"IF('800111a - Nota. Detalle de CxC.'!L31=\"\",\"\",'800111a - Nota. Detalle de CxC.'!L31)","v":""},{"$f":"IF('800111a - Nota. Detalle de CxC.'!L32=\"\",\"\",'800111a - Nota. Detalle de CxC.'!L32)","v":""},{"$f":"IF('800111a - Nota. Detalle de CxC.'!L33=\"\",\"\",'800111a - Nota. Detalle de CxC.'!L33)","v":""},{"$f":"IF('800111a - Nota. Detalle de CxC.'!L34=\"\",\"\",'800111a - Nota. Detalle de CxC.'!L34)","v":""},{"$f":"IF('800111a - Nota. Detalle de CxC.'!L35=\"\",\"\",'800111a - Nota. Detalle de CxC.'!L35)","v":""},{"$f":"IF('800111a - Nota. Detalle de CxC.'!L36=\"\",\"\",'800111a - Nota. Detalle de CxC.'!L36)","v":""},{"$f":"IF('800111a - Nota. Detalle de CxC.'!L37=\"\",\"\",'800111a - Nota. Detalle de CxC.'!L37)","v":""},{"$f":"IF('800111a - Nota. Detalle de CxC.'!L38=\"\",\"\",'800111a - Nota. Detalle de CxC.'!L38)","v":""},{"$f":"IF('800111a - Nota. Detalle de CxC.'!L39=\"\",\"\",'800111a - Nota. Detalle de CxC.'!L39)","v":""},{"$f":"IF('800111a - Nota. Detalle de CxC.'!L40=\"\",\"\",'800111a - Nota. Detalle de CxC.'!L40)","v":""},{"$f":"IF('800111a - Nota. Detalle de CxC.'!L41=\"\",\"\",'800111a - Nota. Detalle de CxC.'!L41)","v":""},{"$f":"IF('800111a - Nota. Detalle de CxC.'!L42=\"\",\"\",'800111a - Nota. Detalle de CxC.'!L42)","v":""},{"$f":"IF('800111a - Nota. Detalle de CxC.'!L43=\"\",\"\",'800111a - Nota. Detalle de CxC.'!L43)","v":""},{"$f":"IF('800111a - Nota. Detalle de CxC.'!L44=\"\",\"\",'800111a - Nota. Detalle de CxC.'!L44)","v":""},{"$f":"IF('800111a - Nota. Detalle de CxC.'!L45=\"\",\"\",'800111a - Nota. Detalle de CxC.'!L45)","v":""},{"$f":"IF('800111a - Nota. Detalle de CxC.'!L46=\"\",\"\",'800111a - Nota. Detalle de CxC.'!L46)","v":""},{"$f":"IF('800111a - Nota. Detalle de CxC.'!L47=\"\",\"\",'800111a - Nota. Detalle de CxC.'!L47)","v":""},{"$f":"IF('800111a - Nota. Detalle de CxC.'!L48=\"\",\"\",'800111a - Nota. Detalle de CxC.'!L48)","v":""},{"$f":"IF('800111a - Nota. Detalle de CxC.'!L49=\"\",\"\",'800111a - Nota. Detalle de CxC.'!L49)","v":""},{"$f":"IF('800111a - Nota. Detalle de CxC.'!L50=\"\",\"\",'800111a - Nota. Detalle de CxC.'!L50)","v":""},{"$f":"IF('800111a - Nota. Detalle de CxC.'!L51=\"\",\"\",'800111a - Nota. Detalle de CxC.'!L51)","v":""},{"$f":"IF('800111a - Nota. Detalle de CxC.'!L52=\"\",\"\",'800111a - Nota. Detalle de CxC.'!L52)","v":""},{"$f":"IF('800111a - Nota. Detalle de CxC.'!L53=\"\",\"\",'800111a - Nota. Detalle de CxC.'!L53)","v":""},{"$f":"IF('800111a - Nota. Detalle de CxC.'!L54=\"\",\"\",'800111a - Nota. Detalle de CxC.'!L54)","v":""},{"$f":"IF('800111a - Nota. Detalle de CxC.'!L55=\"\",\"\",'800111a - Nota. Detalle de CxC.'!L55)","v":""},{"$f":"IF('800111a - Nota. Detalle de CxC.'!L56=\"\",\"\",'800111a - Nota. Detalle de CxC.'!L56)","v":""},{"$f":"IF('800111a - Nota. Detalle de CxC.'!L57=\"\",\"\",'800111a - Nota. Detalle de CxC.'!L57)","v":""},{"$f":"IF('800111a - Nota. Detalle de CxC.'!L58=\"\",\"\",'800111a - Nota. Detalle de CxC.'!L58)","v":""},{"$f":"IF('800111a - Nota. Detalle de CxC.'!L59=\"\",\"\",'800111a - Nota. Detalle de CxC.'!L59)","v":""},{"$f":"IF('800111a - Nota. Detalle de CxC.'!L60=\"\",\"\",'800111a - Nota. Detalle de CxC.'!L60)","v":""},{"$f":"IF('800111a - Nota. Detalle de CxC.'!L61=\"\",\"\",'800111a - Nota. Detalle de CxC.'!L61)","v":""},{"$f":"IF('800111a - Nota. Detalle de CxC.'!L62=\"\",\"\",'800111a - Nota. Detalle de CxC.'!L62)","v":""},{"$f":"IF('800111a - Nota. Detalle de CxC.'!L63=\"\",\"\",'800111a - Nota. Detalle de CxC.'!L63)","v":""},null,null,null,{"$f":"IF('800111a - Nota. Detalle de CxC.'!L67=\"\",\"\",'800111a - Nota. Detalle de CxC.'!L67)","v":""},{"$f":"IF('800111a - Nota. Detalle de CxC.'!L68=\"\",\"\",'800111a - Nota. Detalle de CxC.'!L68)","v":""},{"$f":"IF('800111a - Nota. Detalle de CxC.'!L69=\"\",\"\",'800111a - Nota. Detalle de CxC.'!L69)","v":""},{"$f":"IF('800111a - Nota. Detalle de CxC.'!L70=\"\",\"\",'800111a - Nota. Detalle de CxC.'!L70)","v":""},{"$f":"IF('800111a - Nota. Detalle de CxC.'!L71=\"\",\"\",'800111a - Nota. Detalle de CxC.'!L71)","v":""},{"$f":"IF('800111a - Nota. Detalle de CxC.'!L72=\"\",\"\",'800111a - Nota. Detalle de CxC.'!L72)","v":""},{"$f":"IF('800111a - Nota. Detalle de CxC.'!L73=\"\",\"\",'800111a - Nota. Detalle de CxC.'!L73)","v":""},{"$f":"IF('800111a - Nota. Detalle de CxC.'!L74=\"\",\"\",'800111a - Nota. Detalle de CxC.'!L74)","v":""},{"$f":"IF('800111a - Nota. Detalle de CxC.'!L75=\"\",\"\",'800111a - Nota. Detalle de CxC.'!L75)","v":""},{"$f":"IF('800111a - Nota. Detalle de CxC.'!L76=\"\",\"\",'800111a - Nota. Detalle de CxC.'!L76)","v":""},{"$f":"IF('800111a - Nota. Detalle de CxC.'!L77=\"\",\"\",'800111a - Nota. Detalle de CxC.'!L77)","v":""},{"$f":"IF('800111a - Nota. Detalle de CxC.'!L78=\"\",\"\",'800111a - Nota. Detalle de CxC.'!L78)","v":""},{"$f":"IF('800111a - Nota. Detalle de CxC.'!L79=\"\",\"\",'800111a - Nota. Detalle de CxC.'!L79)","v":""},{"$f":"IF('800111a - Nota. Detalle de CxC.'!L80=\"\",\"\",'800111a - Nota. Detalle de CxC.'!L80)","v":""},{"$f":"IF('800111a - Nota. Detalle de CxC.'!L81=\"\",\"\",'800111a - Nota. Detalle de CxC.'!L81)","v":""},{"$f":"IF('800111a - Nota. Detalle de CxC.'!L82=\"\",\"\",'800111a - Nota. Detalle de CxC.'!L82)","v":""},{"$f":"IF('800111a - Nota. Detalle de CxC.'!L83=\"\",\"\",'800111a - Nota. Detalle de CxC.'!L83)","v":""},{"$f":"IF('800111a - Nota. Detalle de CxC.'!L84=\"\",\"\",'800111a - Nota. Detalle de CxC.'!L84)","v":""},{"$f":"IF('800111a - Nota. Detalle de CxC.'!L85=\"\",\"\",'800111a - Nota. Detalle de CxC.'!L85)","v":""},{"$f":"IF('800111a - Nota. Detalle de CxC.'!L86=\"\",\"\",'800111a - Nota. Detalle de CxC.'!L86)","v":""},{"$f":"IF('800111a - Nota. Detalle de CxC.'!L87=\"\",\"\",'800111a - Nota. Detalle de CxC.'!L87)","v":""},{"$f":"IF('800111a - Nota. Detalle de CxC.'!L88=\"\",\"\",'800111a - Nota. Detalle de CxC.'!L88)","v":""},{"$f":"IF('800111a - Nota. Detalle de CxC.'!L89=\"\",\"\",'800111a - Nota. Detalle de CxC.'!L89)","v":""},{"$f":"IF('800111a - Nota. Detalle de CxC.'!L90=\"\",\"\",'800111a - Nota. Detalle de CxC.'!L90)","v":""},{"$f":"IF('800111a - Nota. Detalle de CxC.'!L91=\"\",\"\",'800111a - Nota. Detalle de CxC.'!L91)","v":""},{"$f":"IF('800111a - Nota. Detalle de CxC.'!L92=\"\",\"\",'800111a - Nota. Detalle de CxC.'!L92)","v":""},{"$f":"IF('800111a - Nota. Detalle de CxC.'!L93=\"\",\"\",'800111a - Nota. Detalle de CxC.'!L93)","v":""},{"$f":"IF('800111a - Nota. Detalle de CxC.'!L94=\"\",\"\",'800111a - Nota. Detalle de CxC.'!L94)","v":""},{"$f":"IF('800111a - Nota. Detalle de CxC.'!L95=\"\",\"\",'800111a - Nota. Detalle de CxC.'!L95)","v":""},{"$f":"IF('800111a - Nota. Detalle de CxC.'!L96=\"\",\"\",'800111a - Nota. Detalle de CxC.'!L96)","v":""},{"$f":"IF('800111a - Nota. Detalle de CxC.'!L97=\"\",\"\",'800111a - Nota. Detalle de CxC.'!L97)","v":""},{"$f":"IF('800111a - Nota. Detalle de CxC.'!L98=\"\",\"\",'800111a - Nota. Detalle de CxC.'!L98)","v":""},{"$f":"IF('800111a - Nota. Detalle de CxC.'!L99=\"\",\"\",'800111a - Nota. Detalle de CxC.'!L99)","v":""},{"$f":"IF('800111a - Nota. Detalle de CxC.'!L100=\"\",\"\",'800111a - Nota. Detalle de CxC.'!L100)","v":""},{"$f":"IF('800111a - Nota. Detalle de CxC.'!L101=\"\",\"\",'800111a - Nota. Detalle de CxC.'!L101)","v":""},{"$f":"IF('800111a - Nota. Detalle de CxC.'!L102=\"\",\"\",'800111a - Nota. Detalle de CxC.'!L102)","v":""},{"$f":"IF('800111a - Nota. Detalle de CxC.'!L103=\"\",\"\",'800111a - Nota. Detalle de CxC.'!L103)","v":""},{"$f":"IF('800111a - Nota. Detalle de CxC.'!L104=\"\",\"\",'800111a - Nota. Detalle de CxC.'!L104)","v":""},{"$f":"IF('800111a - Nota. Detalle de CxC.'!L105=\"\",\"\",'800111a - Nota. Detalle de CxC.'!L105)","v":""},{"$f":"IF('800111a - Nota. Detalle de CxC.'!L106=\"\",\"\",'800111a - Nota. Detalle de CxC.'!L106)","v":""},{"$f":"IF('800111a - Nota. Detalle de CxC.'!L107=\"\",\"\",'800111a - Nota. Detalle de CxC.'!L107)","v":""},{"$f":"IF('800111a - Nota. Detalle de CxC.'!L108=\"\",\"\",'800111a - Nota. Detalle de CxC.'!L108)","v":""},{"$f":"IF('800111a - Nota. Detalle de CxC.'!L109=\"\",\"\",'800111a - Nota. Detalle de CxC.'!L109)","v":""},{"$f":"IF('800111a - Nota. Detalle de CxC.'!L110=\"\",\"\",'800111a - Nota. Detalle de CxC.'!L110)","v":""},{"$f":"IF('800111a - Nota. Detalle de CxC.'!L111=\"\",\"\",'800111a - Nota. Detalle de CxC.'!L111)","v":""},{"$f":"IF('800111a - Nota. Detalle de CxC.'!L112=\"\",\"\",'800111a - Nota. Detalle de CxC.'!L112)","v":""},{"$f":"IF('800111a - Nota. Detalle de CxC.'!L113=\"\",\"\",'800111a - Nota. Detalle de CxC.'!L113)","v":""},{"$f":"IF('800111a - Nota. Detalle de CxC.'!L114=\"\",\"\",'800111a - Nota. Detalle de CxC.'!L114)","v":""},{"$f":"IF('800111a - Nota. Detalle de CxC.'!L115=\"\",\"\",'800111a - Nota. Detalle de CxC.'!L115)","v":""},{"$f":"IF('800111a - Nota. Detalle de CxC.'!L116=\"\",\"\",'800111a - Nota. Detalle de CxC.'!L116)","v":""},null,null,null,{"$f":"IF('800111a - Nota. Detalle de CxC.'!L120=\"\",\"\",'800111a - Nota. Detalle de CxC.'!L120)","v":""},{"$f":"IF('800111a - Nota. Detalle de CxC.'!L121=\"\",\"\",'800111a - Nota. Detalle de CxC.'!L121)","v":""},{"$f":"IF('800111a - Nota. Detalle de CxC.'!L122=\"\",\"\",'800111a - Nota. Detalle de CxC.'!L122)","v":""},{"$f":"IF('800111a - Nota. Detalle de CxC.'!L123=\"\",\"\",'800111a - Nota. Detalle de CxC.'!L123)","v":""},{"$f":"IF('800111a - Nota. Detalle de CxC.'!L124=\"\",\"\",'800111a - Nota. Detalle de CxC.'!L124)","v":""},{"$f":"IF('800111a - Nota. Detalle de CxC.'!L125=\"\",\"\",'800111a - Nota. Detalle de CxC.'!L125)","v":""},{"$f":"IF('800111a - Nota. Detalle de CxC.'!L126=\"\",\"\",'800111a - Nota. Detalle de CxC.'!L126)","v":""},{"$f":"IF('800111a - Nota. Detalle de CxC.'!L127=\"\",\"\",'800111a - Nota. Detalle de CxC.'!L127)","v":""},{"$f":"IF('800111a - Nota. Detalle de CxC.'!L128=\"\",\"\",'800111a - Nota. Detalle de CxC.'!L128)","v":""},{"$f":"IF('800111a - Nota. Detalle de CxC.'!L129=\"\",\"\",'800111a - Nota. Detalle de CxC.'!L129)","v":""},{"$f":"IF('800111a - Nota. Detalle de CxC.'!L130=\"\",\"\",'800111a - Nota. Detalle de CxC.'!L130)","v":""},{"$f":"IF('800111a - Nota. Detalle de CxC.'!L131=\"\",\"\",'800111a - Nota. Detalle de CxC.'!L131)","v":""},{"$f":"IF('800111a - Nota. Detalle de CxC.'!L132=\"\",\"\",'800111a - Nota. Detalle de CxC.'!L132)","v":""},{"$f":"IF('800111a - Nota. Detalle de CxC.'!L133=\"\",\"\",'800111a - Nota. Detalle de CxC.'!L133)","v":""},{"$f":"IF('800111a - Nota. Detalle de CxC.'!L134=\"\",\"\",'800111a - Nota. Detalle de CxC.'!L134)","v":""},{"$f":"IF('800111a - Nota. Detalle de CxC.'!L135=\"\",\"\",'800111a - Nota. Detalle de CxC.'!L135)","v":""},{"$f":"IF('800111a - Nota. Detalle de CxC.'!L136=\"\",\"\",'800111a - Nota. Detalle de CxC.'!L136)","v":""},{"$f":"IF('800111a - Nota. Detalle de CxC.'!L137=\"\",\"\",'800111a - Nota. Detalle de CxC.'!L137)","v":""},{"$f":"IF('800111a - Nota. Detalle de CxC.'!L138=\"\",\"\",'800111a - Nota. Detalle de CxC.'!L138)","v":""},{"$f":"IF('800111a - Nota. Detalle de CxC.'!L139=\"\",\"\",'800111a - Nota. Detalle de CxC.'!L139)","v":""},{"$f":"IF('800111a - Nota. Detalle de CxC.'!L140=\"\",\"\",'800111a - Nota. Detalle de CxC.'!L140)","v":""},{"$f":"IF('800111a - Nota. Detalle de CxC.'!L141=\"\",\"\",'800111a - Nota. Detalle de CxC.'!L141)","v":""},{"$f":"IF('800111a - Nota. Detalle de CxC.'!L142=\"\",\"\",'800111a - Nota. Detalle de CxC.'!L142)","v":""},{"$f":"IF('800111a - Nota. Detalle de CxC.'!L143=\"\",\"\",'800111a - Nota. Detalle de CxC.'!L143)","v":""},{"$f":"IF('800111a - Nota. Detalle de CxC.'!L144=\"\",\"\",'800111a - Nota. Detalle de CxC.'!L144)","v":""},{"$f":"IF('800111a - Nota. Detalle de CxC.'!L145=\"\",\"\",'800111a - Nota. Detalle de CxC.'!L145)","v":""},{"$f":"IF('800111a - Nota. Detalle de CxC.'!L146=\"\",\"\",'800111a - Nota. Detalle de CxC.'!L146)","v":""},{"$f":"IF('800111a - Nota. Detalle de CxC.'!L147=\"\",\"\",'800111a - Nota. Detalle de CxC.'!L147)","v":""},{"$f":"IF('800111a - Nota. Detalle de CxC.'!L148=\"\",\"\",'800111a - Nota. Detalle de CxC.'!L148)","v":""},{"$f":"IF('800111a - Nota. Detalle de CxC.'!L149=\"\",\"\",'800111a - Nota. Detalle de CxC.'!L149)","v":""},{"$f":"IF('800111a - Nota. Detalle de CxC.'!L150=\"\",\"\",'800111a - Nota. Detalle de CxC.'!L150)","v":""},{"$f":"IF('800111a - Nota. Detalle de CxC.'!L151=\"\",\"\",'800111a - Nota. Detalle de CxC.'!L151)","v":""},{"$f":"IF('800111a - Nota. Detalle de CxC.'!L152=\"\",\"\",'800111a - Nota. Detalle de CxC.'!L152)","v":""},{"$f":"IF('800111a - Nota. Detalle de CxC.'!L153=\"\",\"\",'800111a - Nota. Detalle de CxC.'!L153)","v":""},{"$f":"IF('800111a - Nota. Detalle de CxC.'!L154=\"\",\"\",'800111a - Nota. Detalle de CxC.'!L154)","v":""},{"$f":"IF('800111a - Nota. Detalle de CxC.'!L155=\"\",\"\",'800111a - Nota. Detalle de CxC.'!L155)","v":""},{"$f":"IF('800111a - Nota. Detalle de CxC.'!L156=\"\",\"\",'800111a - Nota. Detalle de CxC.'!L156)","v":""},{"$f":"IF('800111a - Nota. Detalle de CxC.'!L157=\"\",\"\",'800111a - Nota. Detalle de CxC.'!L157)","v":""},{"$f":"IF('800111a - Nota. Detalle de CxC.'!L158=\"\",\"\",'800111a - Nota. Detalle de CxC.'!L158)","v":""},{"$f":"IF('800111a - Nota. Detalle de CxC.'!L159=\"\",\"\",'800111a - Nota. Detalle de CxC.'!L159)","v":""},{"$f":"IF('800111a - Nota. Detalle de CxC.'!L160=\"\",\"\",'800111a - Nota. Detalle de CxC.'!L160)","v":""},{"$f":"IF('800111a - Nota. Detalle de CxC.'!L161=\"\",\"\",'800111a - Nota. Detalle de CxC.'!L161)","v":""},{"$f":"IF('800111a - Nota. Detalle de CxC.'!L162=\"\",\"\",'800111a - Nota. Detalle de CxC.'!L162)","v":""},{"$f":"IF('800111a - Nota. Detalle de CxC.'!L163=\"\",\"\",'800111a - Nota. Detalle de CxC.'!L163)","v":""},{"$f":"IF('800111a - Nota. Detalle de CxC.'!L164=\"\",\"\",'800111a - Nota. Detalle de CxC.'!L164)","v":""},{"$f":"IF('800111a - Nota. Detalle de CxC.'!L165=\"\",\"\",'800111a - Nota. Detalle de CxC.'!L165)","v":""},{"$f":"IF('800111a - Nota. Detalle de CxC.'!L166=\"\",\"\",'800111a - Nota. Detalle de CxC.'!L166)","v":""},{"$f":"IF('800111a - Nota. Detalle de CxC.'!L167=\"\",\"\",'800111a - Nota. Detalle de CxC.'!L167)","v":""},{"$f":"IF('800111a - Nota. Detalle de CxC.'!L168=\"\",\"\",'800111a - Nota. Detalle de CxC.'!L168)","v":""},{"$f":"IF('800111a - Nota. Detalle de CxC.'!L169=\"\",\"\",'800111a - Nota. Detalle de CxC.'!L169)","v":""}]
[null,"1;1","co-svsp-core_2017-12-31:DepartamentoDeudorCxC","Departamento deudor",null,null,{"$f":"IF('800111a - Nota. Detalle de CxC.'!M14=\"\",\"\",'800111a - Nota. Detalle de CxC.'!M14)","v":""},{"$f":"IF('800111a - Nota. Detalle de CxC.'!M15=\"\",\"\",'800111a - Nota. Detalle de CxC.'!M15)","v":""},{"$f":"IF('800111a - Nota. Detalle de CxC.'!M16=\"\",\"\",'800111a - Nota. Detalle de CxC.'!M16)","v":""},{"$f":"IF('800111a - Nota. Detalle de CxC.'!M17=\"\",\"\",'800111a - Nota. Detalle de CxC.'!M17)","v":""},{"$f":"IF('800111a - Nota. Detalle de CxC.'!M18=\"\",\"\",'800111a - Nota. Detalle de CxC.'!M18)","v":""},{"$f":"IF('800111a - Nota. Detalle de CxC.'!M19=\"\",\"\",'800111a - Nota. Detalle de CxC.'!M19)","v":""},{"$f":"IF('800111a - Nota. Detalle de CxC.'!M20=\"\",\"\",'800111a - Nota. Detalle de CxC.'!M20)","v":""},{"$f":"IF('800111a - Nota. Detalle de CxC.'!M21=\"\",\"\",'800111a - Nota. Detalle de CxC.'!M21)","v":""},{"$f":"IF('800111a - Nota. Detalle de CxC.'!M22=\"\",\"\",'800111a - Nota. Detalle de CxC.'!M22)","v":""},{"$f":"IF('800111a - Nota. Detalle de CxC.'!M23=\"\",\"\",'800111a - Nota. Detalle de CxC.'!M23)","v":""},{"$f":"IF('800111a - Nota. Detalle de CxC.'!M24=\"\",\"\",'800111a - Nota. Detalle de CxC.'!M24)","v":""},{"$f":"IF('800111a - Nota. Detalle de CxC.'!M25=\"\",\"\",'800111a - Nota. Detalle de CxC.'!M25)","v":""},{"$f":"IF('800111a - Nota. Detalle de CxC.'!M26=\"\",\"\",'800111a - Nota. Detalle de CxC.'!M26)","v":""},{"$f":"IF('800111a - Nota. Detalle de CxC.'!M27=\"\",\"\",'800111a - Nota. Detalle de CxC.'!M27)","v":""},{"$f":"IF('800111a - Nota. Detalle de CxC.'!M28=\"\",\"\",'800111a - Nota. Detalle de CxC.'!M28)","v":""},{"$f":"IF('800111a - Nota. Detalle de CxC.'!M29=\"\",\"\",'800111a - Nota. Detalle de CxC.'!M29)","v":""},{"$f":"IF('800111a - Nota. Detalle de CxC.'!M30=\"\",\"\",'800111a - Nota. Detalle de CxC.'!M30)","v":""},{"$f":"IF('800111a - Nota. Detalle de CxC.'!M31=\"\",\"\",'800111a - Nota. Detalle de CxC.'!M31)","v":""},{"$f":"IF('800111a - Nota. Detalle de CxC.'!M32=\"\",\"\",'800111a - Nota. Detalle de CxC.'!M32)","v":""},{"$f":"IF('800111a - Nota. Detalle de CxC.'!M33=\"\",\"\",'800111a - Nota. Detalle de CxC.'!M33)","v":""},{"$f":"IF('800111a - Nota. Detalle de CxC.'!M34=\"\",\"\",'800111a - Nota. Detalle de CxC.'!M34)","v":""},{"$f":"IF('800111a - Nota. Detalle de CxC.'!M35=\"\",\"\",'800111a - Nota. Detalle de CxC.'!M35)","v":""},{"$f":"IF('800111a - Nota. Detalle de CxC.'!M36=\"\",\"\",'800111a - Nota. Detalle de CxC.'!M36)","v":""},{"$f":"IF('800111a - Nota. Detalle de CxC.'!M37=\"\",\"\",'800111a - Nota. Detalle de CxC.'!M37)","v":""},{"$f":"IF('800111a - Nota. Detalle de CxC.'!M38=\"\",\"\",'800111a - Nota. Detalle de CxC.'!M38)","v":""},{"$f":"IF('800111a - Nota. Detalle de CxC.'!M39=\"\",\"\",'800111a - Nota. Detalle de CxC.'!M39)","v":""},{"$f":"IF('800111a - Nota. Detalle de CxC.'!M40=\"\",\"\",'800111a - Nota. Detalle de CxC.'!M40)","v":""},{"$f":"IF('800111a - Nota. Detalle de CxC.'!M41=\"\",\"\",'800111a - Nota. Detalle de CxC.'!M41)","v":""},{"$f":"IF('800111a - Nota. Detalle de CxC.'!M42=\"\",\"\",'800111a - Nota. Detalle de CxC.'!M42)","v":""},{"$f":"IF('800111a - Nota. Detalle de CxC.'!M43=\"\",\"\",'800111a - Nota. Detalle de CxC.'!M43)","v":""},{"$f":"IF('800111a - Nota. Detalle de CxC.'!M44=\"\",\"\",'800111a - Nota. Detalle de CxC.'!M44)","v":""},{"$f":"IF('800111a - Nota. Detalle de CxC.'!M45=\"\",\"\",'800111a - Nota. Detalle de CxC.'!M45)","v":""},{"$f":"IF('800111a - Nota. Detalle de CxC.'!M46=\"\",\"\",'800111a - Nota. Detalle de CxC.'!M46)","v":""},{"$f":"IF('800111a - Nota. Detalle de CxC.'!M47=\"\",\"\",'800111a - Nota. Detalle de CxC.'!M47)","v":""},{"$f":"IF('800111a - Nota. Detalle de CxC.'!M48=\"\",\"\",'800111a - Nota. Detalle de CxC.'!M48)","v":""},{"$f":"IF('800111a - Nota. Detalle de CxC.'!M49=\"\",\"\",'800111a - Nota. Detalle de CxC.'!M49)","v":""},{"$f":"IF('800111a - Nota. Detalle de CxC.'!M50=\"\",\"\",'800111a - Nota. Detalle de CxC.'!M50)","v":""},{"$f":"IF('800111a - Nota. Detalle de CxC.'!M51=\"\",\"\",'800111a - Nota. Detalle de CxC.'!M51)","v":""},{"$f":"IF('800111a - Nota. Detalle de CxC.'!M52=\"\",\"\",'800111a - Nota. Detalle de CxC.'!M52)","v":""},{"$f":"IF('800111a - Nota. Detalle de CxC.'!M53=\"\",\"\",'800111a - Nota. Detalle de CxC.'!M53)","v":""},{"$f":"IF('800111a - Nota. Detalle de CxC.'!M54=\"\",\"\",'800111a - Nota. Detalle de CxC.'!M54)","v":""},{"$f":"IF('800111a - Nota. Detalle de CxC.'!M55=\"\",\"\",'800111a - Nota. Detalle de CxC.'!M55)","v":""},{"$f":"IF('800111a - Nota. Detalle de CxC.'!M56=\"\",\"\",'800111a - Nota. Detalle de CxC.'!M56)","v":""},{"$f":"IF('800111a - Nota. Detalle de CxC.'!M57=\"\",\"\",'800111a - Nota. Detalle de CxC.'!M57)","v":""},{"$f":"IF('800111a - Nota. Detalle de CxC.'!M58=\"\",\"\",'800111a - Nota. Detalle de CxC.'!M58)","v":""},{"$f":"IF('800111a - Nota. Detalle de CxC.'!M59=\"\",\"\",'800111a - Nota. Detalle de CxC.'!M59)","v":""},{"$f":"IF('800111a - Nota. Detalle de CxC.'!M60=\"\",\"\",'800111a - Nota. Detalle de CxC.'!M60)","v":""},{"$f":"IF('800111a - Nota. Detalle de CxC.'!M61=\"\",\"\",'800111a - Nota. Detalle de CxC.'!M61)","v":""},{"$f":"IF('800111a - Nota. Detalle de CxC.'!M62=\"\",\"\",'800111a - Nota. Detalle de CxC.'!M62)","v":""},{"$f":"IF('800111a - Nota. Detalle de CxC.'!M63=\"\",\"\",'800111a - Nota. Detalle de CxC.'!M63)","v":""},null,null,null,{"$f":"IF('800111a - Nota. Detalle de CxC.'!M67=\"\",\"\",'800111a - Nota. Detalle de CxC.'!M67)","v":""},{"$f":"IF('800111a - Nota. Detalle de CxC.'!M68=\"\",\"\",'800111a - Nota. Detalle de CxC.'!M68)","v":""},{"$f":"IF('800111a - Nota. Detalle de CxC.'!M69=\"\",\"\",'800111a - Nota. Detalle de CxC.'!M69)","v":""},{"$f":"IF('800111a - Nota. Detalle de CxC.'!M70=\"\",\"\",'800111a - Nota. Detalle de CxC.'!M70)","v":""},{"$f":"IF('800111a - Nota. Detalle de CxC.'!M71=\"\",\"\",'800111a - Nota. Detalle de CxC.'!M71)","v":""},{"$f":"IF('800111a - Nota. Detalle de CxC.'!M72=\"\",\"\",'800111a - Nota. Detalle de CxC.'!M72)","v":""},{"$f":"IF('800111a - Nota. Detalle de CxC.'!M73=\"\",\"\",'800111a - Nota. Detalle de CxC.'!M73)","v":""},{"$f":"IF('800111a - Nota. Detalle de CxC.'!M74=\"\",\"\",'800111a - Nota. Detalle de CxC.'!M74)","v":""},{"$f":"IF('800111a - Nota. Detalle de CxC.'!M75=\"\",\"\",'800111a - Nota. Detalle de CxC.'!M75)","v":""},{"$f":"IF('800111a - Nota. Detalle de CxC.'!M76=\"\",\"\",'800111a - Nota. Detalle de CxC.'!M76)","v":""},{"$f":"IF('800111a - Nota. Detalle de CxC.'!M77=\"\",\"\",'800111a - Nota. Detalle de CxC.'!M77)","v":""},{"$f":"IF('800111a - Nota. Detalle de CxC.'!M78=\"\",\"\",'800111a - Nota. Detalle de CxC.'!M78)","v":""},{"$f":"IF('800111a - Nota. Detalle de CxC.'!M79=\"\",\"\",'800111a - Nota. Detalle de CxC.'!M79)","v":""},{"$f":"IF('800111a - Nota. Detalle de CxC.'!M80=\"\",\"\",'800111a - Nota. Detalle de CxC.'!M80)","v":""},{"$f":"IF('800111a - Nota. Detalle de CxC.'!M81=\"\",\"\",'800111a - Nota. Detalle de CxC.'!M81)","v":""},{"$f":"IF('800111a - Nota. Detalle de CxC.'!M82=\"\",\"\",'800111a - Nota. Detalle de CxC.'!M82)","v":""},{"$f":"IF('800111a - Nota. Detalle de CxC.'!M83=\"\",\"\",'800111a - Nota. Detalle de CxC.'!M83)","v":""},{"$f":"IF('800111a - Nota. Detalle de CxC.'!M84=\"\",\"\",'800111a - Nota. Detalle de CxC.'!M84)","v":""},{"$f":"IF('800111a - Nota. Detalle de CxC.'!M85=\"\",\"\",'800111a - Nota. Detalle de CxC.'!M85)","v":""},{"$f":"IF('800111a - Nota. Detalle de CxC.'!M86=\"\",\"\",'800111a - Nota. Detalle de CxC.'!M86)","v":""},{"$f":"IF('800111a - Nota. Detalle de CxC.'!M87=\"\",\"\",'800111a - Nota. Detalle de CxC.'!M87)","v":""},{"$f":"IF('800111a - Nota. Detalle de CxC.'!M88=\"\",\"\",'800111a - Nota. Detalle de CxC.'!M88)","v":""},{"$f":"IF('800111a - Nota. Detalle de CxC.'!M89=\"\",\"\",'800111a - Nota. Detalle de CxC.'!M89)","v":""},{"$f":"IF('800111a - Nota. Detalle de CxC.'!M90=\"\",\"\",'800111a - Nota. Detalle de CxC.'!M90)","v":""},{"$f":"IF('800111a - Nota. Detalle de CxC.'!M91=\"\",\"\",'800111a - Nota. Detalle de CxC.'!M91)","v":""},{"$f":"IF('800111a - Nota. Detalle de CxC.'!M92=\"\",\"\",'800111a - Nota. Detalle de CxC.'!M92)","v":""},{"$f":"IF('800111a - Nota. Detalle de CxC.'!M93=\"\",\"\",'800111a - Nota. Detalle de CxC.'!M93)","v":""},{"$f":"IF('800111a - Nota. Detalle de CxC.'!M94=\"\",\"\",'800111a - Nota. Detalle de CxC.'!M94)","v":""},{"$f":"IF('800111a - Nota. Detalle de CxC.'!M95=\"\",\"\",'800111a - Nota. Detalle de CxC.'!M95)","v":""},{"$f":"IF('800111a - Nota. Detalle de CxC.'!M96=\"\",\"\",'800111a - Nota. Detalle de CxC.'!M96)","v":""},{"$f":"IF('800111a - Nota. Detalle de CxC.'!M97=\"\",\"\",'800111a - Nota. Detalle de CxC.'!M97)","v":""},{"$f":"IF('800111a - Nota. Detalle de CxC.'!M98=\"\",\"\",'800111a - Nota. Detalle de CxC.'!M98)","v":""},{"$f":"IF('800111a - Nota. Detalle de CxC.'!M99=\"\",\"\",'800111a - Nota. Detalle de CxC.'!M99)","v":""},{"$f":"IF('800111a - Nota. Detalle de CxC.'!M100=\"\",\"\",'800111a - Nota. Detalle de CxC.'!M100)","v":""},{"$f":"IF('800111a - Nota. Detalle de CxC.'!M101=\"\",\"\",'800111a - Nota. Detalle de CxC.'!M101)","v":""},{"$f":"IF('800111a - Nota. Detalle de CxC.'!M102=\"\",\"\",'800111a - Nota. Detalle de CxC.'!M102)","v":""},{"$f":"IF('800111a - Nota. Detalle de CxC.'!M103=\"\",\"\",'800111a - Nota. Detalle de CxC.'!M103)","v":""},{"$f":"IF('800111a - Nota. Detalle de CxC.'!M104=\"\",\"\",'800111a - Nota. Detalle de CxC.'!M104)","v":""},{"$f":"IF('800111a - Nota. Detalle de CxC.'!M105=\"\",\"\",'800111a - Nota. Detalle de CxC.'!M105)","v":""},{"$f":"IF('800111a - Nota. Detalle de CxC.'!M106=\"\",\"\",'800111a - Nota. Detalle de CxC.'!M106)","v":""},{"$f":"IF('800111a - Nota. Detalle de CxC.'!M107=\"\",\"\",'800111a - Nota. Detalle de CxC.'!M107)","v":""},{"$f":"IF('800111a - Nota. Detalle de CxC.'!M108=\"\",\"\",'800111a - Nota. Detalle de CxC.'!M108)","v":""},{"$f":"IF('800111a - Nota. Detalle de CxC.'!M109=\"\",\"\",'800111a - Nota. Detalle de CxC.'!M109)","v":""},{"$f":"IF('800111a - Nota. Detalle de CxC.'!M110=\"\",\"\",'800111a - Nota. Detalle de CxC.'!M110)","v":""},{"$f":"IF('800111a - Nota. Detalle de CxC.'!M111=\"\",\"\",'800111a - Nota. Detalle de CxC.'!M111)","v":""},{"$f":"IF('800111a - Nota. Detalle de CxC.'!M112=\"\",\"\",'800111a - Nota. Detalle de CxC.'!M112)","v":""},{"$f":"IF('800111a - Nota. Detalle de CxC.'!M113=\"\",\"\",'800111a - Nota. Detalle de CxC.'!M113)","v":""},{"$f":"IF('800111a - Nota. Detalle de CxC.'!M114=\"\",\"\",'800111a - Nota. Detalle de CxC.'!M114)","v":""},{"$f":"IF('800111a - Nota. Detalle de CxC.'!M115=\"\",\"\",'800111a - Nota. Detalle de CxC.'!M115)","v":""},{"$f":"IF('800111a - Nota. Detalle de CxC.'!M116=\"\",\"\",'800111a - Nota. Detalle de CxC.'!M116)","v":""},null,null,null,{"$f":"IF('800111a - Nota. Detalle de CxC.'!M120=\"\",\"\",'800111a - Nota. Detalle de CxC.'!M120)","v":""},{"$f":"IF('800111a - Nota. Detalle de CxC.'!M121=\"\",\"\",'800111a - Nota. Detalle de CxC.'!M121)","v":""},{"$f":"IF('800111a - Nota. Detalle de CxC.'!M122=\"\",\"\",'800111a - Nota. Detalle de CxC.'!M122)","v":""},{"$f":"IF('800111a - Nota. Detalle de CxC.'!M123=\"\",\"\",'800111a - Nota. Detalle de CxC.'!M123)","v":""},{"$f":"IF('800111a - Nota. Detalle de CxC.'!M124=\"\",\"\",'800111a - Nota. Detalle de CxC.'!M124)","v":""},{"$f":"IF('800111a - Nota. Detalle de CxC.'!M125=\"\",\"\",'800111a - Nota. Detalle de CxC.'!M125)","v":""},{"$f":"IF('800111a - Nota. Detalle de CxC.'!M126=\"\",\"\",'800111a - Nota. Detalle de CxC.'!M126)","v":""},{"$f":"IF('800111a - Nota. Detalle de CxC.'!M127=\"\",\"\",'800111a - Nota. Detalle de CxC.'!M127)","v":""},{"$f":"IF('800111a - Nota. Detalle de CxC.'!M128=\"\",\"\",'800111a - Nota. Detalle de CxC.'!M128)","v":""},{"$f":"IF('800111a - Nota. Detalle de CxC.'!M129=\"\",\"\",'800111a - Nota. Detalle de CxC.'!M129)","v":""},{"$f":"IF('800111a - Nota. Detalle de CxC.'!M130=\"\",\"\",'800111a - Nota. Detalle de CxC.'!M130)","v":""},{"$f":"IF('800111a - Nota. Detalle de CxC.'!M131=\"\",\"\",'800111a - Nota. Detalle de CxC.'!M131)","v":""},{"$f":"IF('800111a - Nota. Detalle de CxC.'!M132=\"\",\"\",'800111a - Nota. Detalle de CxC.'!M132)","v":""},{"$f":"IF('800111a - Nota. Detalle de CxC.'!M133=\"\",\"\",'800111a - Nota. Detalle de CxC.'!M133)","v":""},{"$f":"IF('800111a - Nota. Detalle de CxC.'!M134=\"\",\"\",'800111a - Nota. Detalle de CxC.'!M134)","v":""},{"$f":"IF('800111a - Nota. Detalle de CxC.'!M135=\"\",\"\",'800111a - Nota. Detalle de CxC.'!M135)","v":""},{"$f":"IF('800111a - Nota. Detalle de CxC.'!M136=\"\",\"\",'800111a - Nota. Detalle de CxC.'!M136)","v":""},{"$f":"IF('800111a - Nota. Detalle de CxC.'!M137=\"\",\"\",'800111a - Nota. Detalle de CxC.'!M137)","v":""},{"$f":"IF('800111a - Nota. Detalle de CxC.'!M138=\"\",\"\",'800111a - Nota. Detalle de CxC.'!M138)","v":""},{"$f":"IF('800111a - Nota. Detalle de CxC.'!M139=\"\",\"\",'800111a - Nota. Detalle de CxC.'!M139)","v":""},{"$f":"IF('800111a - Nota. Detalle de CxC.'!M140=\"\",\"\",'800111a - Nota. Detalle de CxC.'!M140)","v":""},{"$f":"IF('800111a - Nota. Detalle de CxC.'!M141=\"\",\"\",'800111a - Nota. Detalle de CxC.'!M141)","v":""},{"$f":"IF('800111a - Nota. Detalle de CxC.'!M142=\"\",\"\",'800111a - Nota. Detalle de CxC.'!M142)","v":""},{"$f":"IF('800111a - Nota. Detalle de CxC.'!M143=\"\",\"\",'800111a - Nota. Detalle de CxC.'!M143)","v":""},{"$f":"IF('800111a - Nota. Detalle de CxC.'!M144=\"\",\"\",'800111a - Nota. Detalle de CxC.'!M144)","v":""},{"$f":"IF('800111a - Nota. Detalle de CxC.'!M145=\"\",\"\",'800111a - Nota. Detalle de CxC.'!M145)","v":""},{"$f":"IF('800111a - Nota. Detalle de CxC.'!M146=\"\",\"\",'800111a - Nota. Detalle de CxC.'!M146)","v":""},{"$f":"IF('800111a - Nota. Detalle de CxC.'!M147=\"\",\"\",'800111a - Nota. Detalle de CxC.'!M147)","v":""},{"$f":"IF('800111a - Nota. Detalle de CxC.'!M148=\"\",\"\",'800111a - Nota. Detalle de CxC.'!M148)","v":""},{"$f":"IF('800111a - Nota. Detalle de CxC.'!M149=\"\",\"\",'800111a - Nota. Detalle de CxC.'!M149)","v":""},{"$f":"IF('800111a - Nota. Detalle de CxC.'!M150=\"\",\"\",'800111a - Nota. Detalle de CxC.'!M150)","v":""},{"$f":"IF('800111a - Nota. Detalle de CxC.'!M151=\"\",\"\",'800111a - Nota. Detalle de CxC.'!M151)","v":""},{"$f":"IF('800111a - Nota. Detalle de CxC.'!M152=\"\",\"\",'800111a - Nota. Detalle de CxC.'!M152)","v":""},{"$f":"IF('800111a - Nota. Detalle de CxC.'!M153=\"\",\"\",'800111a - Nota. Detalle de CxC.'!M153)","v":""},{"$f":"IF('800111a - Nota. Detalle de CxC.'!M154=\"\",\"\",'800111a - Nota. Detalle de CxC.'!M154)","v":""},{"$f":"IF('800111a - Nota. Detalle de CxC.'!M155=\"\",\"\",'800111a - Nota. Detalle de CxC.'!M155)","v":""},{"$f":"IF('800111a - Nota. Detalle de CxC.'!M156=\"\",\"\",'800111a - Nota. Detalle de CxC.'!M156)","v":""},{"$f":"IF('800111a - Nota. Detalle de CxC.'!M157=\"\",\"\",'800111a - Nota. Detalle de CxC.'!M157)","v":""},{"$f":"IF('800111a - Nota. Detalle de CxC.'!M158=\"\",\"\",'800111a - Nota. Detalle de CxC.'!M158)","v":""},{"$f":"IF('800111a - Nota. Detalle de CxC.'!M159=\"\",\"\",'800111a - Nota. Detalle de CxC.'!M159)","v":""},{"$f":"IF('800111a - Nota. Detalle de CxC.'!M160=\"\",\"\",'800111a - Nota. Detalle de CxC.'!M160)","v":""},{"$f":"IF('800111a - Nota. Detalle de CxC.'!M161=\"\",\"\",'800111a - Nota. Detalle de CxC.'!M161)","v":""},{"$f":"IF('800111a - Nota. Detalle de CxC.'!M162=\"\",\"\",'800111a - Nota. Detalle de CxC.'!M162)","v":""},{"$f":"IF('800111a - Nota. Detalle de CxC.'!M163=\"\",\"\",'800111a - Nota. Detalle de CxC.'!M163)","v":""},{"$f":"IF('800111a - Nota. Detalle de CxC.'!M164=\"\",\"\",'800111a - Nota. Detalle de CxC.'!M164)","v":""},{"$f":"IF('800111a - Nota. Detalle de CxC.'!M165=\"\",\"\",'800111a - Nota. Detalle de CxC.'!M165)","v":""},{"$f":"IF('800111a - Nota. Detalle de CxC.'!M166=\"\",\"\",'800111a - Nota. Detalle de CxC.'!M166)","v":""},{"$f":"IF('800111a - Nota. Detalle de CxC.'!M167=\"\",\"\",'800111a - Nota. Detalle de CxC.'!M167)","v":""},{"$f":"IF('800111a - Nota. Detalle de CxC.'!M168=\"\",\"\",'800111a - Nota. Detalle de CxC.'!M168)","v":""},{"$f":"IF('800111a - Nota. Detalle de CxC.'!M169=\"\",\"\",'800111a - Nota. Detalle de CxC.'!M169)","v":""}]
[null,"1;1","co-svsp-core_2017-12-31:MunicipioDeudorCxC","Municipio deudor",null,null,{"$f":"IF('800111a - Nota. Detalle de CxC.'!N14=\"\",\"\",'800111a - Nota. Detalle de CxC.'!N14)","v":""},{"$f":"IF('800111a - Nota. Detalle de CxC.'!N15=\"\",\"\",'800111a - Nota. Detalle de CxC.'!N15)","v":""},{"$f":"IF('800111a - Nota. Detalle de CxC.'!N16=\"\",\"\",'800111a - Nota. Detalle de CxC.'!N16)","v":""},{"$f":"IF('800111a - Nota. Detalle de CxC.'!N17=\"\",\"\",'800111a - Nota. Detalle de CxC.'!N17)","v":""},{"$f":"IF('800111a - Nota. Detalle de CxC.'!N18=\"\",\"\",'800111a - Nota. Detalle de CxC.'!N18)","v":""},{"$f":"IF('800111a - Nota. Detalle de CxC.'!N19=\"\",\"\",'800111a - Nota. Detalle de CxC.'!N19)","v":""},{"$f":"IF('800111a - Nota. Detalle de CxC.'!N20=\"\",\"\",'800111a - Nota. Detalle de CxC.'!N20)","v":""},{"$f":"IF('800111a - Nota. Detalle de CxC.'!N21=\"\",\"\",'800111a - Nota. Detalle de CxC.'!N21)","v":""},{"$f":"IF('800111a - Nota. Detalle de CxC.'!N22=\"\",\"\",'800111a - Nota. Detalle de CxC.'!N22)","v":""},{"$f":"IF('800111a - Nota. Detalle de CxC.'!N23=\"\",\"\",'800111a - Nota. Detalle de CxC.'!N23)","v":""},{"$f":"IF('800111a - Nota. Detalle de CxC.'!N24=\"\",\"\",'800111a - Nota. Detalle de CxC.'!N24)","v":""},{"$f":"IF('800111a - Nota. Detalle de CxC.'!N25=\"\",\"\",'800111a - Nota. Detalle de CxC.'!N25)","v":""},{"$f":"IF('800111a - Nota. Detalle de CxC.'!N26=\"\",\"\",'800111a - Nota. Detalle de CxC.'!N26)","v":""},{"$f":"IF('800111a - Nota. Detalle de CxC.'!N27=\"\",\"\",'800111a - Nota. Detalle de CxC.'!N27)","v":""},{"$f":"IF('800111a - Nota. Detalle de CxC.'!N28=\"\",\"\",'800111a - Nota. Detalle de CxC.'!N28)","v":""},{"$f":"IF('800111a - Nota. Detalle de CxC.'!N29=\"\",\"\",'800111a - Nota. Detalle de CxC.'!N29)","v":""},{"$f":"IF('800111a - Nota. Detalle de CxC.'!N30=\"\",\"\",'800111a - Nota. Detalle de CxC.'!N30)","v":""},{"$f":"IF('800111a - Nota. Detalle de CxC.'!N31=\"\",\"\",'800111a - Nota. Detalle de CxC.'!N31)","v":""},{"$f":"IF('800111a - Nota. Detalle de CxC.'!N32=\"\",\"\",'800111a - Nota. Detalle de CxC.'!N32)","v":""},{"$f":"IF('800111a - Nota. Detalle de CxC.'!N33=\"\",\"\",'800111a - Nota. Detalle de CxC.'!N33)","v":""},{"$f":"IF('800111a - Nota. Detalle de CxC.'!N34=\"\",\"\",'800111a - Nota. Detalle de CxC.'!N34)","v":""},{"$f":"IF('800111a - Nota. Detalle de CxC.'!N35=\"\",\"\",'800111a - Nota. Detalle de CxC.'!N35)","v":""},{"$f":"IF('800111a - Nota. Detalle de CxC.'!N36=\"\",\"\",'800111a - Nota. Detalle de CxC.'!N36)","v":""},{"$f":"IF('800111a - Nota. Detalle de CxC.'!N37=\"\",\"\",'800111a - Nota. Detalle de CxC.'!N37)","v":""},{"$f":"IF('800111a - Nota. Detalle de CxC.'!N38=\"\",\"\",'800111a - Nota. Detalle de CxC.'!N38)","v":""},{"$f":"IF('800111a - Nota. Detalle de CxC.'!N39=\"\",\"\",'800111a - Nota. Detalle de CxC.'!N39)","v":""},{"$f":"IF('800111a - Nota. Detalle de CxC.'!N40=\"\",\"\",'800111a - Nota. Detalle de CxC.'!N40)","v":""},{"$f":"IF('800111a - Nota. Detalle de CxC.'!N41=\"\",\"\",'800111a - Nota. Detalle de CxC.'!N41)","v":""},{"$f":"IF('800111a - Nota. Detalle de CxC.'!N42=\"\",\"\",'800111a - Nota. Detalle de CxC.'!N42)","v":""},{"$f":"IF('800111a - Nota. Detalle de CxC.'!N43=\"\",\"\",'800111a - Nota. Detalle de CxC.'!N43)","v":""},{"$f":"IF('800111a - Nota. Detalle de CxC.'!N44=\"\",\"\",'800111a - Nota. Detalle de CxC.'!N44)","v":""},{"$f":"IF('800111a - Nota. Detalle de CxC.'!N45=\"\",\"\",'800111a - Nota. Detalle de CxC.'!N45)","v":""},{"$f":"IF('800111a - Nota. Detalle de CxC.'!N46=\"\",\"\",'800111a - Nota. Detalle de CxC.'!N46)","v":""},{"$f":"IF('800111a - Nota. Detalle de CxC.'!N47=\"\",\"\",'800111a - Nota. Detalle de CxC.'!N47)","v":""},{"$f":"IF('800111a - Nota. Detalle de CxC.'!N48=\"\",\"\",'800111a - Nota. Detalle de CxC.'!N48)","v":""},{"$f":"IF('800111a - Nota. Detalle de CxC.'!N49=\"\",\"\",'800111a - Nota. Detalle de CxC.'!N49)","v":""},{"$f":"IF('800111a - Nota. Detalle de CxC.'!N50=\"\",\"\",'800111a - Nota. Detalle de CxC.'!N50)","v":""},{"$f":"IF('800111a - Nota. Detalle de CxC.'!N51=\"\",\"\",'800111a - Nota. Detalle de CxC.'!N51)","v":""},{"$f":"IF('800111a - Nota. Detalle de CxC.'!N52=\"\",\"\",'800111a - Nota. Detalle de CxC.'!N52)","v":""},{"$f":"IF('800111a - Nota. Detalle de CxC.'!N53=\"\",\"\",'800111a - Nota. Detalle de CxC.'!N53)","v":""},{"$f":"IF('800111a - Nota. Detalle de CxC.'!N54=\"\",\"\",'800111a - Nota. Detalle de CxC.'!N54)","v":""},{"$f":"IF('800111a - Nota. Detalle de CxC.'!N55=\"\",\"\",'800111a - Nota. Detalle de CxC.'!N55)","v":""},{"$f":"IF('800111a - Nota. Detalle de CxC.'!N56=\"\",\"\",'800111a - Nota. Detalle de CxC.'!N56)","v":""},{"$f":"IF('800111a - Nota. Detalle de CxC.'!N57=\"\",\"\",'800111a - Nota. Detalle de CxC.'!N57)","v":""},{"$f":"IF('800111a - Nota. Detalle de CxC.'!N58=\"\",\"\",'800111a - Nota. Detalle de CxC.'!N58)","v":""},{"$f":"IF('800111a - Nota. Detalle de CxC.'!N59=\"\",\"\",'800111a - Nota. Detalle de CxC.'!N59)","v":""},{"$f":"IF('800111a - Nota. Detalle de CxC.'!N60=\"\",\"\",'800111a - Nota. Detalle de CxC.'!N60)","v":""},{"$f":"IF('800111a - Nota. Detalle de CxC.'!N61=\"\",\"\",'800111a - Nota. Detalle de CxC.'!N61)","v":""},{"$f":"IF('800111a - Nota. Detalle de CxC.'!N62=\"\",\"\",'800111a - Nota. Detalle de CxC.'!N62)","v":""},{"$f":"IF('800111a - Nota. Detalle de CxC.'!N63=\"\",\"\",'800111a - Nota. Detalle de CxC.'!N63)","v":""},null,null,null,{"$f":"IF('800111a - Nota. Detalle de CxC.'!N67=\"\",\"\",'800111a - Nota. Detalle de CxC.'!N67)","v":""},{"$f":"IF('800111a - Nota. Detalle de CxC.'!N68=\"\",\"\",'800111a - Nota. Detalle de CxC.'!N68)","v":""},{"$f":"IF('800111a - Nota. Detalle de CxC.'!N69=\"\",\"\",'800111a - Nota. Detalle de CxC.'!N69)","v":""},{"$f":"IF('800111a - Nota. Detalle de CxC.'!N70=\"\",\"\",'800111a - Nota. Detalle de CxC.'!N70)","v":""},{"$f":"IF('800111a - Nota. Detalle de CxC.'!N71=\"\",\"\",'800111a - Nota. Detalle de CxC.'!N71)","v":""},{"$f":"IF('800111a - Nota. Detalle de CxC.'!N72=\"\",\"\",'800111a - Nota. Detalle de CxC.'!N72)","v":""},{"$f":"IF('800111a - Nota. Detalle de CxC.'!N73=\"\",\"\",'800111a - Nota. Detalle de CxC.'!N73)","v":""},{"$f":"IF('800111a - Nota. Detalle de CxC.'!N74=\"\",\"\",'800111a - Nota. Detalle de CxC.'!N74)","v":""},{"$f":"IF('800111a - Nota. Detalle de CxC.'!N75=\"\",\"\",'800111a - Nota. Detalle de CxC.'!N75)","v":""},{"$f":"IF('800111a - Nota. Detalle de CxC.'!N76=\"\",\"\",'800111a - Nota. Detalle de CxC.'!N76)","v":""},{"$f":"IF('800111a - Nota. Detalle de CxC.'!N77=\"\",\"\",'800111a - Nota. Detalle de CxC.'!N77)","v":""},{"$f":"IF('800111a - Nota. Detalle de CxC.'!N78=\"\",\"\",'800111a - Nota. Detalle de CxC.'!N78)","v":""},{"$f":"IF('800111a - Nota. Detalle de CxC.'!N79=\"\",\"\",'800111a - Nota. Detalle de CxC.'!N79)","v":""},{"$f":"IF('800111a - Nota. Detalle de CxC.'!N80=\"\",\"\",'800111a - Nota. Detalle de CxC.'!N80)","v":""},{"$f":"IF('800111a - Nota. Detalle de CxC.'!N81=\"\",\"\",'800111a - Nota. Detalle de CxC.'!N81)","v":""},{"$f":"IF('800111a - Nota. Detalle de CxC.'!N82=\"\",\"\",'800111a - Nota. Detalle de CxC.'!N82)","v":""},{"$f":"IF('800111a - Nota. Detalle de CxC.'!N83=\"\",\"\",'800111a - Nota. Detalle de CxC.'!N83)","v":""},{"$f":"IF('800111a - Nota. Detalle de CxC.'!N84=\"\",\"\",'800111a - Nota. Detalle de CxC.'!N84)","v":""},{"$f":"IF('800111a - Nota. Detalle de CxC.'!N85=\"\",\"\",'800111a - Nota. Detalle de CxC.'!N85)","v":""},{"$f":"IF('800111a - Nota. Detalle de CxC.'!N86=\"\",\"\",'800111a - Nota. Detalle de CxC.'!N86)","v":""},{"$f":"IF('800111a - Nota. Detalle de CxC.'!N87=\"\",\"\",'800111a - Nota. Detalle de CxC.'!N87)","v":""},{"$f":"IF('800111a - Nota. Detalle de CxC.'!N88=\"\",\"\",'800111a - Nota. Detalle de CxC.'!N88)","v":""},{"$f":"IF('800111a - Nota. Detalle de CxC.'!N89=\"\",\"\",'800111a - Nota. Detalle de CxC.'!N89)","v":""},{"$f":"IF('800111a - Nota. Detalle de CxC.'!N90=\"\",\"\",'800111a - Nota. Detalle de CxC.'!N90)","v":""},{"$f":"IF('800111a - Nota. Detalle de CxC.'!N91=\"\",\"\",'800111a - Nota. Detalle de CxC.'!N91)","v":""},{"$f":"IF('800111a - Nota. Detalle de CxC.'!N92=\"\",\"\",'800111a - Nota. Detalle de CxC.'!N92)","v":""},{"$f":"IF('800111a - Nota. Detalle de CxC.'!N93=\"\",\"\",'800111a - Nota. Detalle de CxC.'!N93)","v":""},{"$f":"IF('800111a - Nota. Detalle de CxC.'!N94=\"\",\"\",'800111a - Nota. Detalle de CxC.'!N94)","v":""},{"$f":"IF('800111a - Nota. Detalle de CxC.'!N95=\"\",\"\",'800111a - Nota. Detalle de CxC.'!N95)","v":""},{"$f":"IF('800111a - Nota. Detalle de CxC.'!N96=\"\",\"\",'800111a - Nota. Detalle de CxC.'!N96)","v":""},{"$f":"IF('800111a - Nota. Detalle de CxC.'!N97=\"\",\"\",'800111a - Nota. Detalle de CxC.'!N97)","v":""},{"$f":"IF('800111a - Nota. Detalle de CxC.'!N98=\"\",\"\",'800111a - Nota. Detalle de CxC.'!N98)","v":""},{"$f":"IF('800111a - Nota. Detalle de CxC.'!N99=\"\",\"\",'800111a - Nota. Detalle de CxC.'!N99)","v":""},{"$f":"IF('800111a - Nota. Detalle de CxC.'!N100=\"\",\"\",'800111a - Nota. Detalle de CxC.'!N100)","v":""},{"$f":"IF('800111a - Nota. Detalle de CxC.'!N101=\"\",\"\",'800111a - Nota. Detalle de CxC.'!N101)","v":""},{"$f":"IF('800111a - Nota. Detalle de CxC.'!N102=\"\",\"\",'800111a - Nota. Detalle de CxC.'!N102)","v":""},{"$f":"IF('800111a - Nota. Detalle de CxC.'!N103=\"\",\"\",'800111a - Nota. Detalle de CxC.'!N103)","v":""},{"$f":"IF('800111a - Nota. Detalle de CxC.'!N104=\"\",\"\",'800111a - Nota. Detalle de CxC.'!N104)","v":""},{"$f":"IF('800111a - Nota. Detalle de CxC.'!N105=\"\",\"\",'800111a - Nota. Detalle de CxC.'!N105)","v":""},{"$f":"IF('800111a - Nota. Detalle de CxC.'!N106=\"\",\"\",'800111a - Nota. Detalle de CxC.'!N106)","v":""},{"$f":"IF('800111a - Nota. Detalle de CxC.'!N107=\"\",\"\",'800111a - Nota. Detalle de CxC.'!N107)","v":""},{"$f":"IF('800111a - Nota. Detalle de CxC.'!N108=\"\",\"\",'800111a - Nota. Detalle de CxC.'!N108)","v":""},{"$f":"IF('800111a - Nota. Detalle de CxC.'!N109=\"\",\"\",'800111a - Nota. Detalle de CxC.'!N109)","v":""},{"$f":"IF('800111a - Nota. Detalle de CxC.'!N110=\"\",\"\",'800111a - Nota. Detalle de CxC.'!N110)","v":""},{"$f":"IF('800111a - Nota. Detalle de CxC.'!N111=\"\",\"\",'800111a - Nota. Detalle de CxC.'!N111)","v":""},{"$f":"IF('800111a - Nota. Detalle de CxC.'!N112=\"\",\"\",'800111a - Nota. Detalle de CxC.'!N112)","v":""},{"$f":"IF('800111a - Nota. Detalle de CxC.'!N113=\"\",\"\",'800111a - Nota. Detalle de CxC.'!N113)","v":""},{"$f":"IF('800111a - Nota. Detalle de CxC.'!N114=\"\",\"\",'800111a - Nota. Detalle de CxC.'!N114)","v":""},{"$f":"IF('800111a - Nota. Detalle de CxC.'!N115=\"\",\"\",'800111a - Nota. Detalle de CxC.'!N115)","v":""},{"$f":"IF('800111a - Nota. Detalle de CxC.'!N116=\"\",\"\",'800111a - Nota. Detalle de CxC.'!N116)","v":""},null,null,null,{"$f":"IF('800111a - Nota. Detalle de CxC.'!N120=\"\",\"\",'800111a - Nota. Detalle de CxC.'!N120)","v":""},{"$f":"IF('800111a - Nota. Detalle de CxC.'!N121=\"\",\"\",'800111a - Nota. Detalle de CxC.'!N121)","v":""},{"$f":"IF('800111a - Nota. Detalle de CxC.'!N122=\"\",\"\",'800111a - Nota. Detalle de CxC.'!N122)","v":""},{"$f":"IF('800111a - Nota. Detalle de CxC.'!N123=\"\",\"\",'800111a - Nota. Detalle de CxC.'!N123)","v":""},{"$f":"IF('800111a - Nota. Detalle de CxC.'!N124=\"\",\"\",'800111a - Nota. Detalle de CxC.'!N124)","v":""},{"$f":"IF('800111a - Nota. Detalle de CxC.'!N125=\"\",\"\",'800111a - Nota. Detalle de CxC.'!N125)","v":""},{"$f":"IF('800111a - Nota. Detalle de CxC.'!N126=\"\",\"\",'800111a - Nota. Detalle de CxC.'!N126)","v":""},{"$f":"IF('800111a - Nota. Detalle de CxC.'!N127=\"\",\"\",'800111a - Nota. Detalle de CxC.'!N127)","v":""},{"$f":"IF('800111a - Nota. Detalle de CxC.'!N128=\"\",\"\",'800111a - Nota. Detalle de CxC.'!N128)","v":""},{"$f":"IF('800111a - Nota. Detalle de CxC.'!N129=\"\",\"\",'800111a - Nota. Detalle de CxC.'!N129)","v":""},{"$f":"IF('800111a - Nota. Detalle de CxC.'!N130=\"\",\"\",'800111a - Nota. Detalle de CxC.'!N130)","v":""},{"$f":"IF('800111a - Nota. Detalle de CxC.'!N131=\"\",\"\",'800111a - Nota. Detalle de CxC.'!N131)","v":""},{"$f":"IF('800111a - Nota. Detalle de CxC.'!N132=\"\",\"\",'800111a - Nota. Detalle de CxC.'!N132)","v":""},{"$f":"IF('800111a - Nota. Detalle de CxC.'!N133=\"\",\"\",'800111a - Nota. Detalle de CxC.'!N133)","v":""},{"$f":"IF('800111a - Nota. Detalle de CxC.'!N134=\"\",\"\",'800111a - Nota. Detalle de CxC.'!N134)","v":""},{"$f":"IF('800111a - Nota. Detalle de CxC.'!N135=\"\",\"\",'800111a - Nota. Detalle de CxC.'!N135)","v":""},{"$f":"IF('800111a - Nota. Detalle de CxC.'!N136=\"\",\"\",'800111a - Nota. Detalle de CxC.'!N136)","v":""},{"$f":"IF('800111a - Nota. Detalle de CxC.'!N137=\"\",\"\",'800111a - Nota. Detalle de CxC.'!N137)","v":""},{"$f":"IF('800111a - Nota. Detalle de CxC.'!N138=\"\",\"\",'800111a - Nota. Detalle de CxC.'!N138)","v":""},{"$f":"IF('800111a - Nota. Detalle de CxC.'!N139=\"\",\"\",'800111a - Nota. Detalle de CxC.'!N139)","v":""},{"$f":"IF('800111a - Nota. Detalle de CxC.'!N140=\"\",\"\",'800111a - Nota. Detalle de CxC.'!N140)","v":""},{"$f":"IF('800111a - Nota. Detalle de CxC.'!N141=\"\",\"\",'800111a - Nota. Detalle de CxC.'!N141)","v":""},{"$f":"IF('800111a - Nota. Detalle de CxC.'!N142=\"\",\"\",'800111a - Nota. Detalle de CxC.'!N142)","v":""},{"$f":"IF('800111a - Nota. Detalle de CxC.'!N143=\"\",\"\",'800111a - Nota. Detalle de CxC.'!N143)","v":""},{"$f":"IF('800111a - Nota. Detalle de CxC.'!N144=\"\",\"\",'800111a - Nota. Detalle de CxC.'!N144)","v":""},{"$f":"IF('800111a - Nota. Detalle de CxC.'!N145=\"\",\"\",'800111a - Nota. Detalle de CxC.'!N145)","v":""},{"$f":"IF('800111a - Nota. Detalle de CxC.'!N146=\"\",\"\",'800111a - Nota. Detalle de CxC.'!N146)","v":""},{"$f":"IF('800111a - Nota. Detalle de CxC.'!N147=\"\",\"\",'800111a - Nota. Detalle de CxC.'!N147)","v":""},{"$f":"IF('800111a - Nota. Detalle de CxC.'!N148=\"\",\"\",'800111a - Nota. Detalle de CxC.'!N148)","v":""},{"$f":"IF('800111a - Nota. Detalle de CxC.'!N149=\"\",\"\",'800111a - Nota. Detalle de CxC.'!N149)","v":""},{"$f":"IF('800111a - Nota. Detalle de CxC.'!N150=\"\",\"\",'800111a - Nota. Detalle de CxC.'!N150)","v":""},{"$f":"IF('800111a - Nota. Detalle de CxC.'!N151=\"\",\"\",'800111a - Nota. Detalle de CxC.'!N151)","v":""},{"$f":"IF('800111a - Nota. Detalle de CxC.'!N152=\"\",\"\",'800111a - Nota. Detalle de CxC.'!N152)","v":""},{"$f":"IF('800111a - Nota. Detalle de CxC.'!N153=\"\",\"\",'800111a - Nota. Detalle de CxC.'!N153)","v":""},{"$f":"IF('800111a - Nota. Detalle de CxC.'!N154=\"\",\"\",'800111a - Nota. Detalle de CxC.'!N154)","v":""},{"$f":"IF('800111a - Nota. Detalle de CxC.'!N155=\"\",\"\",'800111a - Nota. Detalle de CxC.'!N155)","v":""},{"$f":"IF('800111a - Nota. Detalle de CxC.'!N156=\"\",\"\",'800111a - Nota. Detalle de CxC.'!N156)","v":""},{"$f":"IF('800111a - Nota. Detalle de CxC.'!N157=\"\",\"\",'800111a - Nota. Detalle de CxC.'!N157)","v":""},{"$f":"IF('800111a - Nota. Detalle de CxC.'!N158=\"\",\"\",'800111a - Nota. Detalle de CxC.'!N158)","v":""},{"$f":"IF('800111a - Nota. Detalle de CxC.'!N159=\"\",\"\",'800111a - Nota. Detalle de CxC.'!N159)","v":""},{"$f":"IF('800111a - Nota. Detalle de CxC.'!N160=\"\",\"\",'800111a - Nota. Detalle de CxC.'!N160)","v":""},{"$f":"IF('800111a - Nota. Detalle de CxC.'!N161=\"\",\"\",'800111a - Nota. Detalle de CxC.'!N161)","v":""},{"$f":"IF('800111a - Nota. Detalle de CxC.'!N162=\"\",\"\",'800111a - Nota. Detalle de CxC.'!N162)","v":""},{"$f":"IF('800111a - Nota. Detalle de CxC.'!N163=\"\",\"\",'800111a - Nota. Detalle de CxC.'!N163)","v":""},{"$f":"IF('800111a - Nota. Detalle de CxC.'!N164=\"\",\"\",'800111a - Nota. Detalle de CxC.'!N164)","v":""},{"$f":"IF('800111a - Nota. Detalle de CxC.'!N165=\"\",\"\",'800111a - Nota. Detalle de CxC.'!N165)","v":""},{"$f":"IF('800111a - Nota. Detalle de CxC.'!N166=\"\",\"\",'800111a - Nota. Detalle de CxC.'!N166)","v":""},{"$f":"IF('800111a - Nota. Detalle de CxC.'!N167=\"\",\"\",'800111a - Nota. Detalle de CxC.'!N167)","v":""},{"$f":"IF('800111a - Nota. Detalle de CxC.'!N168=\"\",\"\",'800111a - Nota. Detalle de CxC.'!N168)","v":""},{"$f":"IF('800111a - Nota. Detalle de CxC.'!N169=\"\",\"\",'800111a - Nota. Detalle de CxC.'!N169)","v":""}]
[null,"1;1","co-svsp-core_2017-12-31:PaisDeudorCxC","País deudor",null,null,{"$f":"IF('800111a - Nota. Detalle de CxC.'!O14=\"\",\"\",'800111a - Nota. Detalle de CxC.'!O14)","v":""},{"$f":"IF('800111a - Nota. Detalle de CxC.'!O15=\"\",\"\",'800111a - Nota. Detalle de CxC.'!O15)","v":""},{"$f":"IF('800111a - Nota. Detalle de CxC.'!O16=\"\",\"\",'800111a - Nota. Detalle de CxC.'!O16)","v":""},{"$f":"IF('800111a - Nota. Detalle de CxC.'!O17=\"\",\"\",'800111a - Nota. Detalle de CxC.'!O17)","v":""},{"$f":"IF('800111a - Nota. Detalle de CxC.'!O18=\"\",\"\",'800111a - Nota. Detalle de CxC.'!O18)","v":""},{"$f":"IF('800111a - Nota. Detalle de CxC.'!O19=\"\",\"\",'800111a - Nota. Detalle de CxC.'!O19)","v":""},{"$f":"IF('800111a - Nota. Detalle de CxC.'!O20=\"\",\"\",'800111a - Nota. Detalle de CxC.'!O20)","v":""},{"$f":"IF('800111a - Nota. Detalle de CxC.'!O21=\"\",\"\",'800111a - Nota. Detalle de CxC.'!O21)","v":""},{"$f":"IF('800111a - Nota. Detalle de CxC.'!O22=\"\",\"\",'800111a - Nota. Detalle de CxC.'!O22)","v":""},{"$f":"IF('800111a - Nota. Detalle de CxC.'!O23=\"\",\"\",'800111a - Nota. Detalle de CxC.'!O23)","v":""},{"$f":"IF('800111a - Nota. Detalle de CxC.'!O24=\"\",\"\",'800111a - Nota. Detalle de CxC.'!O24)","v":""},{"$f":"IF('800111a - Nota. Detalle de CxC.'!O25=\"\",\"\",'800111a - Nota. Detalle de CxC.'!O25)","v":""},{"$f":"IF('800111a - Nota. Detalle de CxC.'!O26=\"\",\"\",'800111a - Nota. Detalle de CxC.'!O26)","v":""},{"$f":"IF('800111a - Nota. Detalle de CxC.'!O27=\"\",\"\",'800111a - Nota. Detalle de CxC.'!O27)","v":""},{"$f":"IF('800111a - Nota. Detalle de CxC.'!O28=\"\",\"\",'800111a - Nota. Detalle de CxC.'!O28)","v":""},{"$f":"IF('800111a - Nota. Detalle de CxC.'!O29=\"\",\"\",'800111a - Nota. Detalle de CxC.'!O29)","v":""},{"$f":"IF('800111a - Nota. Detalle de CxC.'!O30=\"\",\"\",'800111a - Nota. Detalle de CxC.'!O30)","v":""},{"$f":"IF('800111a - Nota. Detalle de CxC.'!O31=\"\",\"\",'800111a - Nota. Detalle de CxC.'!O31)","v":""},{"$f":"IF('800111a - Nota. Detalle de CxC.'!O32=\"\",\"\",'800111a - Nota. Detalle de CxC.'!O32)","v":""},{"$f":"IF('800111a - Nota. Detalle de CxC.'!O33=\"\",\"\",'800111a - Nota. Detalle de CxC.'!O33)","v":""},{"$f":"IF('800111a - Nota. Detalle de CxC.'!O34=\"\",\"\",'800111a - Nota. Detalle de CxC.'!O34)","v":""},{"$f":"IF('800111a - Nota. Detalle de CxC.'!O35=\"\",\"\",'800111a - Nota. Detalle de CxC.'!O35)","v":""},{"$f":"IF('800111a - Nota. Detalle de CxC.'!O36=\"\",\"\",'800111a - Nota. Detalle de CxC.'!O36)","v":""},{"$f":"IF('800111a - Nota. Detalle de CxC.'!O37=\"\",\"\",'800111a - Nota. Detalle de CxC.'!O37)","v":""},{"$f":"IF('800111a - Nota. Detalle de CxC.'!O38=\"\",\"\",'800111a - Nota. Detalle de CxC.'!O38)","v":""},{"$f":"IF('800111a - Nota. Detalle de CxC.'!O39=\"\",\"\",'800111a - Nota. Detalle de CxC.'!O39)","v":""},{"$f":"IF('800111a - Nota. Detalle de CxC.'!O40=\"\",\"\",'800111a - Nota. Detalle de CxC.'!O40)","v":""},{"$f":"IF('800111a - Nota. Detalle de CxC.'!O41=\"\",\"\",'800111a - Nota. Detalle de CxC.'!O41)","v":""},{"$f":"IF('800111a - Nota. Detalle de CxC.'!O42=\"\",\"\",'800111a - Nota. Detalle de CxC.'!O42)","v":""},{"$f":"IF('800111a - Nota. Detalle de CxC.'!O43=\"\",\"\",'800111a - Nota. Detalle de CxC.'!O43)","v":""},{"$f":"IF('800111a - Nota. Detalle de CxC.'!O44=\"\",\"\",'800111a - Nota. Detalle de CxC.'!O44)","v":""},{"$f":"IF('800111a - Nota. Detalle de CxC.'!O45=\"\",\"\",'800111a - Nota. Detalle de CxC.'!O45)","v":""},{"$f":"IF('800111a - Nota. Detalle de CxC.'!O46=\"\",\"\",'800111a - Nota. Detalle de CxC.'!O46)","v":""},{"$f":"IF('800111a - Nota. Detalle de CxC.'!O47=\"\",\"\",'800111a - Nota. Detalle de CxC.'!O47)","v":""},{"$f":"IF('800111a - Nota. Detalle de CxC.'!O48=\"\",\"\",'800111a - Nota. Detalle de CxC.'!O48)","v":""},{"$f":"IF('800111a - Nota. Detalle de CxC.'!O49=\"\",\"\",'800111a - Nota. Detalle de CxC.'!O49)","v":""},{"$f":"IF('800111a - Nota. Detalle de CxC.'!O50=\"\",\"\",'800111a - Nota. Detalle de CxC.'!O50)","v":""},{"$f":"IF('800111a - Nota. Detalle de CxC.'!O51=\"\",\"\",'800111a - Nota. Detalle de CxC.'!O51)","v":""},{"$f":"IF('800111a - Nota. Detalle de CxC.'!O52=\"\",\"\",'800111a - Nota. Detalle de CxC.'!O52)","v":""},{"$f":"IF('800111a - Nota. Detalle de CxC.'!O53=\"\",\"\",'800111a - Nota. Detalle de CxC.'!O53)","v":""},{"$f":"IF('800111a - Nota. Detalle de CxC.'!O54=\"\",\"\",'800111a - Nota. Detalle de CxC.'!O54)","v":""},{"$f":"IF('800111a - Nota. Detalle de CxC.'!O55=\"\",\"\",'800111a - Nota. Detalle de CxC.'!O55)","v":""},{"$f":"IF('800111a - Nota. Detalle de CxC.'!O56=\"\",\"\",'800111a - Nota. Detalle de CxC.'!O56)","v":""},{"$f":"IF('800111a - Nota. Detalle de CxC.'!O57=\"\",\"\",'800111a - Nota. Detalle de CxC.'!O57)","v":""},{"$f":"IF('800111a - Nota. Detalle de CxC.'!O58=\"\",\"\",'800111a - Nota. Detalle de CxC.'!O58)","v":""},{"$f":"IF('800111a - Nota. Detalle de CxC.'!O59=\"\",\"\",'800111a - Nota. Detalle de CxC.'!O59)","v":""},{"$f":"IF('800111a - Nota. Detalle de CxC.'!O60=\"\",\"\",'800111a - Nota. Detalle de CxC.'!O60)","v":""},{"$f":"IF('800111a - Nota. Detalle de CxC.'!O61=\"\",\"\",'800111a - Nota. Detalle de CxC.'!O61)","v":""},{"$f":"IF('800111a - Nota. Detalle de CxC.'!O62=\"\",\"\",'800111a - Nota. Detalle de CxC.'!O62)","v":""},{"$f":"IF('800111a - Nota. Detalle de CxC.'!O63=\"\",\"\",'800111a - Nota. Detalle de CxC.'!O63)","v":""},null,null,null,{"$f":"IF('800111a - Nota. Detalle de CxC.'!O67=\"\",\"\",'800111a - Nota. Detalle de CxC.'!O67)","v":""},{"$f":"IF('800111a - Nota. Detalle de CxC.'!O68=\"\",\"\",'800111a - Nota. Detalle de CxC.'!O68)","v":""},{"$f":"IF('800111a - Nota. Detalle de CxC.'!O69=\"\",\"\",'800111a - Nota. Detalle de CxC.'!O69)","v":""},{"$f":"IF('800111a - Nota. Detalle de CxC.'!O70=\"\",\"\",'800111a - Nota. Detalle de CxC.'!O70)","v":""},{"$f":"IF('800111a - Nota. Detalle de CxC.'!O71=\"\",\"\",'800111a - Nota. Detalle de CxC.'!O71)","v":""},{"$f":"IF('800111a - Nota. Detalle de CxC.'!O72=\"\",\"\",'800111a - Nota. Detalle de CxC.'!O72)","v":""},{"$f":"IF('800111a - Nota. Detalle de CxC.'!O73=\"\",\"\",'800111a - Nota. Detalle de CxC.'!O73)","v":""},{"$f":"IF('800111a - Nota. Detalle de CxC.'!O74=\"\",\"\",'800111a - Nota. Detalle de CxC.'!O74)","v":""},{"$f":"IF('800111a - Nota. Detalle de CxC.'!O75=\"\",\"\",'800111a - Nota. Detalle de CxC.'!O75)","v":""},{"$f":"IF('800111a - Nota. Detalle de CxC.'!O76=\"\",\"\",'800111a - Nota. Detalle de CxC.'!O76)","v":""},{"$f":"IF('800111a - Nota. Detalle de CxC.'!O77=\"\",\"\",'800111a - Nota. Detalle de CxC.'!O77)","v":""},{"$f":"IF('800111a - Nota. Detalle de CxC.'!O78=\"\",\"\",'800111a - Nota. Detalle de CxC.'!O78)","v":""},{"$f":"IF('800111a - Nota. Detalle de CxC.'!O79=\"\",\"\",'800111a - Nota. Detalle de CxC.'!O79)","v":""},{"$f":"IF('800111a - Nota. Detalle de CxC.'!O80=\"\",\"\",'800111a - Nota. Detalle de CxC.'!O80)","v":""},{"$f":"IF('800111a - Nota. Detalle de CxC.'!O81=\"\",\"\",'800111a - Nota. Detalle de CxC.'!O81)","v":""},{"$f":"IF('800111a - Nota. Detalle de CxC.'!O82=\"\",\"\",'800111a - Nota. Detalle de CxC.'!O82)","v":""},{"$f":"IF('800111a - Nota. Detalle de CxC.'!O83=\"\",\"\",'800111a - Nota. Detalle de CxC.'!O83)","v":""},{"$f":"IF('800111a - Nota. Detalle de CxC.'!O84=\"\",\"\",'800111a - Nota. Detalle de CxC.'!O84)","v":""},{"$f":"IF('800111a - Nota. Detalle de CxC.'!O85=\"\",\"\",'800111a - Nota. Detalle de CxC.'!O85)","v":""},{"$f":"IF('800111a - Nota. Detalle de CxC.'!O86=\"\",\"\",'800111a - Nota. Detalle de CxC.'!O86)","v":""},{"$f":"IF('800111a - Nota. Detalle de CxC.'!O87=\"\",\"\",'800111a - Nota. Detalle de CxC.'!O87)","v":""},{"$f":"IF('800111a - Nota. Detalle de CxC.'!O88=\"\",\"\",'800111a - Nota. Detalle de CxC.'!O88)","v":""},{"$f":"IF('800111a - Nota. Detalle de CxC.'!O89=\"\",\"\",'800111a - Nota. Detalle de CxC.'!O89)","v":""},{"$f":"IF('800111a - Nota. Detalle de CxC.'!O90=\"\",\"\",'800111a - Nota. Detalle de CxC.'!O90)","v":""},{"$f":"IF('800111a - Nota. Detalle de CxC.'!O91=\"\",\"\",'800111a - Nota. Detalle de CxC.'!O91)","v":""},{"$f":"IF('800111a - Nota. Detalle de CxC.'!O92=\"\",\"\",'800111a - Nota. Detalle de CxC.'!O92)","v":""},{"$f":"IF('800111a - Nota. Detalle de CxC.'!O93=\"\",\"\",'800111a - Nota. Detalle de CxC.'!O93)","v":""},{"$f":"IF('800111a - Nota. Detalle de CxC.'!O94=\"\",\"\",'800111a - Nota. Detalle de CxC.'!O94)","v":""},{"$f":"IF('800111a - Nota. Detalle de CxC.'!O95=\"\",\"\",'800111a - Nota. Detalle de CxC.'!O95)","v":""},{"$f":"IF('800111a - Nota. Detalle de CxC.'!O96=\"\",\"\",'800111a - Nota. Detalle de CxC.'!O96)","v":""},{"$f":"IF('800111a - Nota. Detalle de CxC.'!O97=\"\",\"\",'800111a - Nota. Detalle de CxC.'!O97)","v":""},{"$f":"IF('800111a - Nota. Detalle de CxC.'!O98=\"\",\"\",'800111a - Nota. Detalle de CxC.'!O98)","v":""},{"$f":"IF('800111a - Nota. Detalle de CxC.'!O99=\"\",\"\",'800111a - Nota. Detalle de CxC.'!O99)","v":""},{"$f":"IF('800111a - Nota. Detalle de CxC.'!O100=\"\",\"\",'800111a - Nota. Detalle de CxC.'!O100)","v":""},{"$f":"IF('800111a - Nota. Detalle de CxC.'!O101=\"\",\"\",'800111a - Nota. Detalle de CxC.'!O101)","v":""},{"$f":"IF('800111a - Nota. Detalle de CxC.'!O102=\"\",\"\",'800111a - Nota. Detalle de CxC.'!O102)","v":""},{"$f":"IF('800111a - Nota. Detalle de CxC.'!O103=\"\",\"\",'800111a - Nota. Detalle de CxC.'!O103)","v":""},{"$f":"IF('800111a - Nota. Detalle de CxC.'!O104=\"\",\"\",'800111a - Nota. Detalle de CxC.'!O104)","v":""},{"$f":"IF('800111a - Nota. Detalle de CxC.'!O105=\"\",\"\",'800111a - Nota. Detalle de CxC.'!O105)","v":""},{"$f":"IF('800111a - Nota. Detalle de CxC.'!O106=\"\",\"\",'800111a - Nota. Detalle de CxC.'!O106)","v":""},{"$f":"IF('800111a - Nota. Detalle de CxC.'!O107=\"\",\"\",'800111a - Nota. Detalle de CxC.'!O107)","v":""},{"$f":"IF('800111a - Nota. Detalle de CxC.'!O108=\"\",\"\",'800111a - Nota. Detalle de CxC.'!O108)","v":""},{"$f":"IF('800111a - Nota. Detalle de CxC.'!O109=\"\",\"\",'800111a - Nota. Detalle de CxC.'!O109)","v":""},{"$f":"IF('800111a - Nota. Detalle de CxC.'!O110=\"\",\"\",'800111a - Nota. Detalle de CxC.'!O110)","v":""},{"$f":"IF('800111a - Nota. Detalle de CxC.'!O111=\"\",\"\",'800111a - Nota. Detalle de CxC.'!O111)","v":""},{"$f":"IF('800111a - Nota. Detalle de CxC.'!O112=\"\",\"\",'800111a - Nota. Detalle de CxC.'!O112)","v":""},{"$f":"IF('800111a - Nota. Detalle de CxC.'!O113=\"\",\"\",'800111a - Nota. Detalle de CxC.'!O113)","v":""},{"$f":"IF('800111a - Nota. Detalle de CxC.'!O114=\"\",\"\",'800111a - Nota. Detalle de CxC.'!O114)","v":""},{"$f":"IF('800111a - Nota. Detalle de CxC.'!O115=\"\",\"\",'800111a - Nota. Detalle de CxC.'!O115)","v":""},{"$f":"IF('800111a - Nota. Detalle de CxC.'!O116=\"\",\"\",'800111a - Nota. Detalle de CxC.'!O116)","v":""},null,null,null,{"$f":"IF('800111a - Nota. Detalle de CxC.'!O120=\"\",\"\",'800111a - Nota. Detalle de CxC.'!O120)","v":""},{"$f":"IF('800111a - Nota. Detalle de CxC.'!O121=\"\",\"\",'800111a - Nota. Detalle de CxC.'!O121)","v":""},{"$f":"IF('800111a - Nota. Detalle de CxC.'!O122=\"\",\"\",'800111a - Nota. Detalle de CxC.'!O122)","v":""},{"$f":"IF('800111a - Nota. Detalle de CxC.'!O123=\"\",\"\",'800111a - Nota. Detalle de CxC.'!O123)","v":""},{"$f":"IF('800111a - Nota. Detalle de CxC.'!O124=\"\",\"\",'800111a - Nota. Detalle de CxC.'!O124)","v":""},{"$f":"IF('800111a - Nota. Detalle de CxC.'!O125=\"\",\"\",'800111a - Nota. Detalle de CxC.'!O125)","v":""},{"$f":"IF('800111a - Nota. Detalle de CxC.'!O126=\"\",\"\",'800111a - Nota. Detalle de CxC.'!O126)","v":""},{"$f":"IF('800111a - Nota. Detalle de CxC.'!O127=\"\",\"\",'800111a - Nota. Detalle de CxC.'!O127)","v":""},{"$f":"IF('800111a - Nota. Detalle de CxC.'!O128=\"\",\"\",'800111a - Nota. Detalle de CxC.'!O128)","v":""},{"$f":"IF('800111a - Nota. Detalle de CxC.'!O129=\"\",\"\",'800111a - Nota. Detalle de CxC.'!O129)","v":""},{"$f":"IF('800111a - Nota. Detalle de CxC.'!O130=\"\",\"\",'800111a - Nota. Detalle de CxC.'!O130)","v":""},{"$f":"IF('800111a - Nota. Detalle de CxC.'!O131=\"\",\"\",'800111a - Nota. Detalle de CxC.'!O131)","v":""},{"$f":"IF('800111a - Nota. Detalle de CxC.'!O132=\"\",\"\",'800111a - Nota. Detalle de CxC.'!O132)","v":""},{"$f":"IF('800111a - Nota. Detalle de CxC.'!O133=\"\",\"\",'800111a - Nota. Detalle de CxC.'!O133)","v":""},{"$f":"IF('800111a - Nota. Detalle de CxC.'!O134=\"\",\"\",'800111a - Nota. Detalle de CxC.'!O134)","v":""},{"$f":"IF('800111a - Nota. Detalle de CxC.'!O135=\"\",\"\",'800111a - Nota. Detalle de CxC.'!O135)","v":""},{"$f":"IF('800111a - Nota. Detalle de CxC.'!O136=\"\",\"\",'800111a - Nota. Detalle de CxC.'!O136)","v":""},{"$f":"IF('800111a - Nota. Detalle de CxC.'!O137=\"\",\"\",'800111a - Nota. Detalle de CxC.'!O137)","v":""},{"$f":"IF('800111a - Nota. Detalle de CxC.'!O138=\"\",\"\",'800111a - Nota. Detalle de CxC.'!O138)","v":""},{"$f":"IF('800111a - Nota. Detalle de CxC.'!O139=\"\",\"\",'800111a - Nota. Detalle de CxC.'!O139)","v":""},{"$f":"IF('800111a - Nota. Detalle de CxC.'!O140=\"\",\"\",'800111a - Nota. Detalle de CxC.'!O140)","v":""},{"$f":"IF('800111a - Nota. Detalle de CxC.'!O141=\"\",\"\",'800111a - Nota. Detalle de CxC.'!O141)","v":""},{"$f":"IF('800111a - Nota. Detalle de CxC.'!O142=\"\",\"\",'800111a - Nota. Detalle de CxC.'!O142)","v":""},{"$f":"IF('800111a - Nota. Detalle de CxC.'!O143=\"\",\"\",'800111a - Nota. Detalle de CxC.'!O143)","v":""},{"$f":"IF('800111a - Nota. Detalle de CxC.'!O144=\"\",\"\",'800111a - Nota. Detalle de CxC.'!O144)","v":""},{"$f":"IF('800111a - Nota. Detalle de CxC.'!O145=\"\",\"\",'800111a - Nota. Detalle de CxC.'!O145)","v":""},{"$f":"IF('800111a - Nota. Detalle de CxC.'!O146=\"\",\"\",'800111a - Nota. Detalle de CxC.'!O146)","v":""},{"$f":"IF('800111a - Nota. Detalle de CxC.'!O147=\"\",\"\",'800111a - Nota. Detalle de CxC.'!O147)","v":""},{"$f":"IF('800111a - Nota. Detalle de CxC.'!O148=\"\",\"\",'800111a - Nota. Detalle de CxC.'!O148)","v":""},{"$f":"IF('800111a - Nota. Detalle de CxC.'!O149=\"\",\"\",'800111a - Nota. Detalle de CxC.'!O149)","v":""},{"$f":"IF('800111a - Nota. Detalle de CxC.'!O150=\"\",\"\",'800111a - Nota. Detalle de CxC.'!O150)","v":""},{"$f":"IF('800111a - Nota. Detalle de CxC.'!O151=\"\",\"\",'800111a - Nota. Detalle de CxC.'!O151)","v":""},{"$f":"IF('800111a - Nota. Detalle de CxC.'!O152=\"\",\"\",'800111a - Nota. Detalle de CxC.'!O152)","v":""},{"$f":"IF('800111a - Nota. Detalle de CxC.'!O153=\"\",\"\",'800111a - Nota. Detalle de CxC.'!O153)","v":""},{"$f":"IF('800111a - Nota. Detalle de CxC.'!O154=\"\",\"\",'800111a - Nota. Detalle de CxC.'!O154)","v":""},{"$f":"IF('800111a - Nota. Detalle de CxC.'!O155=\"\",\"\",'800111a - Nota. Detalle de CxC.'!O155)","v":""},{"$f":"IF('800111a - Nota. Detalle de CxC.'!O156=\"\",\"\",'800111a - Nota. Detalle de CxC.'!O156)","v":""},{"$f":"IF('800111a - Nota. Detalle de CxC.'!O157=\"\",\"\",'800111a - Nota. Detalle de CxC.'!O157)","v":""},{"$f":"IF('800111a - Nota. Detalle de CxC.'!O158=\"\",\"\",'800111a - Nota. Detalle de CxC.'!O158)","v":""},{"$f":"IF('800111a - Nota. Detalle de CxC.'!O159=\"\",\"\",'800111a - Nota. Detalle de CxC.'!O159)","v":""},{"$f":"IF('800111a - Nota. Detalle de CxC.'!O160=\"\",\"\",'800111a - Nota. Detalle de CxC.'!O160)","v":""},{"$f":"IF('800111a - Nota. Detalle de CxC.'!O161=\"\",\"\",'800111a - Nota. Detalle de CxC.'!O161)","v":""},{"$f":"IF('800111a - Nota. Detalle de CxC.'!O162=\"\",\"\",'800111a - Nota. Detalle de CxC.'!O162)","v":""},{"$f":"IF('800111a - Nota. Detalle de CxC.'!O163=\"\",\"\",'800111a - Nota. Detalle de CxC.'!O163)","v":""},{"$f":"IF('800111a - Nota. Detalle de CxC.'!O164=\"\",\"\",'800111a - Nota. Detalle de CxC.'!O164)","v":""},{"$f":"IF('800111a - Nota. Detalle de CxC.'!O165=\"\",\"\",'800111a - Nota. Detalle de CxC.'!O165)","v":""},{"$f":"IF('800111a - Nota. Detalle de CxC.'!O166=\"\",\"\",'800111a - Nota. Detalle de CxC.'!O166)","v":""},{"$f":"IF('800111a - Nota. Detalle de CxC.'!O167=\"\",\"\",'800111a - Nota. Detalle de CxC.'!O167)","v":""},{"$f":"IF('800111a - Nota. Detalle de CxC.'!O168=\"\",\"\",'800111a - Nota. Detalle de CxC.'!O168)","v":""},{"$f":"IF('800111a - Nota. Detalle de CxC.'!O169=\"\",\"\",'800111a - Nota. Detalle de CxC.'!O169)","v":""}]
[null,"1;1","co-svsp-core_2017-12-31:SaldoCuentasPorCobrarCxC","Saldo cuentas por cobrar",null,null,{"$f":"IF('800111a - Nota. Detalle de CxC.'!P14=\"\",\"\",'800111a - Nota. Detalle de CxC.'!P14)","v":""},{"$f":"IF('800111a - Nota. Detalle de CxC.'!P15=\"\",\"\",'800111a - Nota. Detalle de CxC.'!P15)","v":""},{"$f":"IF('800111a - Nota. Detalle de CxC.'!P16=\"\",\"\",'800111a - Nota. Detalle de CxC.'!P16)","v":""},{"$f":"IF('800111a - Nota. Detalle de CxC.'!P17=\"\",\"\",'800111a - Nota. Detalle de CxC.'!P17)","v":""},{"$f":"IF('800111a - Nota. Detalle de CxC.'!P18=\"\",\"\",'800111a - Nota. Detalle de CxC.'!P18)","v":""},{"$f":"IF('800111a - Nota. Detalle de CxC.'!P19=\"\",\"\",'800111a - Nota. Detalle de CxC.'!P19)","v":""},{"$f":"IF('800111a - Nota. Detalle de CxC.'!P20=\"\",\"\",'800111a - Nota. Detalle de CxC.'!P20)","v":""},{"$f":"IF('800111a - Nota. Detalle de CxC.'!P21=\"\",\"\",'800111a - Nota. Detalle de CxC.'!P21)","v":""},{"$f":"IF('800111a - Nota. Detalle de CxC.'!P22=\"\",\"\",'800111a - Nota. Detalle de CxC.'!P22)","v":""},{"$f":"IF('800111a - Nota. Detalle de CxC.'!P23=\"\",\"\",'800111a - Nota. Detalle de CxC.'!P23)","v":""},{"$f":"IF('800111a - Nota. Detalle de CxC.'!P24=\"\",\"\",'800111a - Nota. Detalle de CxC.'!P24)","v":""},{"$f":"IF('800111a - Nota. Detalle de CxC.'!P25=\"\",\"\",'800111a - Nota. Detalle de CxC.'!P25)","v":""},{"$f":"IF('800111a - Nota. Detalle de CxC.'!P26=\"\",\"\",'800111a - Nota. Detalle de CxC.'!P26)","v":""},{"$f":"IF('800111a - Nota. Detalle de CxC.'!P27=\"\",\"\",'800111a - Nota. Detalle de CxC.'!P27)","v":""},{"$f":"IF('800111a - Nota. Detalle de CxC.'!P28=\"\",\"\",'800111a - Nota. Detalle de CxC.'!P28)","v":""},{"$f":"IF('800111a - Nota. Detalle de CxC.'!P29=\"\",\"\",'800111a - Nota. Detalle de CxC.'!P29)","v":""},{"$f":"IF('800111a - Nota. Detalle de CxC.'!P30=\"\",\"\",'800111a - Nota. Detalle de CxC.'!P30)","v":""},{"$f":"IF('800111a - Nota. Detalle de CxC.'!P31=\"\",\"\",'800111a - Nota. Detalle de CxC.'!P31)","v":""},{"$f":"IF('800111a - Nota. Detalle de CxC.'!P32=\"\",\"\",'800111a - Nota. Detalle de CxC.'!P32)","v":""},{"$f":"IF('800111a - Nota. Detalle de CxC.'!P33=\"\",\"\",'800111a - Nota. Detalle de CxC.'!P33)","v":""},{"$f":"IF('800111a - Nota. Detalle de CxC.'!P34=\"\",\"\",'800111a - Nota. Detalle de CxC.'!P34)","v":""},{"$f":"IF('800111a - Nota. Detalle de CxC.'!P35=\"\",\"\",'800111a - Nota. Detalle de CxC.'!P35)","v":""},{"$f":"IF('800111a - Nota. Detalle de CxC.'!P36=\"\",\"\",'800111a - Nota. Detalle de CxC.'!P36)","v":""},{"$f":"IF('800111a - Nota. Detalle de CxC.'!P37=\"\",\"\",'800111a - Nota. Detalle de CxC.'!P37)","v":""},{"$f":"IF('800111a - Nota. Detalle de CxC.'!P38=\"\",\"\",'800111a - Nota. Detalle de CxC.'!P38)","v":""},{"$f":"IF('800111a - Nota. Detalle de CxC.'!P39=\"\",\"\",'800111a - Nota. Detalle de CxC.'!P39)","v":""},{"$f":"IF('800111a - Nota. Detalle de CxC.'!P40=\"\",\"\",'800111a - Nota. Detalle de CxC.'!P40)","v":""},{"$f":"IF('800111a - Nota. Detalle de CxC.'!P41=\"\",\"\",'800111a - Nota. Detalle de CxC.'!P41)","v":""},{"$f":"IF('800111a - Nota. Detalle de CxC.'!P42=\"\",\"\",'800111a - Nota. Detalle de CxC.'!P42)","v":""},{"$f":"IF('800111a - Nota. Detalle de CxC.'!P43=\"\",\"\",'800111a - Nota. Detalle de CxC.'!P43)","v":""},{"$f":"IF('800111a - Nota. Detalle de CxC.'!P44=\"\",\"\",'800111a - Nota. Detalle de CxC.'!P44)","v":""},{"$f":"IF('800111a - Nota. Detalle de CxC.'!P45=\"\",\"\",'800111a - Nota. Detalle de CxC.'!P45)","v":""},{"$f":"IF('800111a - Nota. Detalle de CxC.'!P46=\"\",\"\",'800111a - Nota. Detalle de CxC.'!P46)","v":""},{"$f":"IF('800111a - Nota. Detalle de CxC.'!P47=\"\",\"\",'800111a - Nota. Detalle de CxC.'!P47)","v":""},{"$f":"IF('800111a - Nota. Detalle de CxC.'!P48=\"\",\"\",'800111a - Nota. Detalle de CxC.'!P48)","v":""},{"$f":"IF('800111a - Nota. Detalle de CxC.'!P49=\"\",\"\",'800111a - Nota. Detalle de CxC.'!P49)","v":""},{"$f":"IF('800111a - Nota. Detalle de CxC.'!P50=\"\",\"\",'800111a - Nota. Detalle de CxC.'!P50)","v":""},{"$f":"IF('800111a - Nota. Detalle de CxC.'!P51=\"\",\"\",'800111a - Nota. Detalle de CxC.'!P51)","v":""},{"$f":"IF('800111a - Nota. Detalle de CxC.'!P52=\"\",\"\",'800111a - Nota. Detalle de CxC.'!P52)","v":""},{"$f":"IF('800111a - Nota. Detalle de CxC.'!P53=\"\",\"\",'800111a - Nota. Detalle de CxC.'!P53)","v":""},{"$f":"IF('800111a - Nota. Detalle de CxC.'!P54=\"\",\"\",'800111a - Nota. Detalle de CxC.'!P54)","v":""},{"$f":"IF('800111a - Nota. Detalle de CxC.'!P55=\"\",\"\",'800111a - Nota. Detalle de CxC.'!P55)","v":""},{"$f":"IF('800111a - Nota. Detalle de CxC.'!P56=\"\",\"\",'800111a - Nota. Detalle de CxC.'!P56)","v":""},{"$f":"IF('800111a - Nota. Detalle de CxC.'!P57=\"\",\"\",'800111a - Nota. Detalle de CxC.'!P57)","v":""},{"$f":"IF('800111a - Nota. Detalle de CxC.'!P58=\"\",\"\",'800111a - Nota. Detalle de CxC.'!P58)","v":""},{"$f":"IF('800111a - Nota. Detalle de CxC.'!P59=\"\",\"\",'800111a - Nota. Detalle de CxC.'!P59)","v":""},{"$f":"IF('800111a - Nota. Detalle de CxC.'!P60=\"\",\"\",'800111a - Nota. Detalle de CxC.'!P60)","v":""},{"$f":"IF('800111a - Nota. Detalle de CxC.'!P61=\"\",\"\",'800111a - Nota. Detalle de CxC.'!P61)","v":""},{"$f":"IF('800111a - Nota. Detalle de CxC.'!P62=\"\",\"\",'800111a - Nota. Detalle de CxC.'!P62)","v":""},{"$f":"IF('800111a - Nota. Detalle de CxC.'!P63=\"\",\"\",'800111a - Nota. Detalle de CxC.'!P63)","v":""},{"$f":"IF('800111a - Nota. Detalle de CxC.'!P64=\"\",\"\",'800111a - Nota. Detalle de CxC.'!P64)","v":""},{"$f":"IF('800111a - Nota. Detalle de CxC.'!P65=\"\",\"\",'800111a - Nota. Detalle de CxC.'!P65)","v":0},null,{"$f":"IF('800111a - Nota. Detalle de CxC.'!P67=\"\",\"\",'800111a - Nota. Detalle de CxC.'!P67)","v":""},{"$f":"IF('800111a - Nota. Detalle de CxC.'!P68=\"\",\"\",'800111a - Nota. Detalle de CxC.'!P68)","v":""},{"$f":"IF('800111a - Nota. Detalle de CxC.'!P69=\"\",\"\",'800111a - Nota. Detalle de CxC.'!P69)","v":""},{"$f":"IF('800111a - Nota. Detalle de CxC.'!P70=\"\",\"\",'800111a - Nota. Detalle de CxC.'!P70)","v":""},{"$f":"IF('800111a - Nota. Detalle de CxC.'!P71=\"\",\"\",'800111a - Nota. Detalle de CxC.'!P71)","v":""},{"$f":"IF('800111a - Nota. Detalle de CxC.'!P72=\"\",\"\",'800111a - Nota. Detalle de CxC.'!P72)","v":""},{"$f":"IF('800111a - Nota. Detalle de CxC.'!P73=\"\",\"\",'800111a - Nota. Detalle de CxC.'!P73)","v":""},{"$f":"IF('800111a - Nota. Detalle de CxC.'!P74=\"\",\"\",'800111a - Nota. Detalle de CxC.'!P74)","v":""},{"$f":"IF('800111a - Nota. Detalle de CxC.'!P75=\"\",\"\",'800111a - Nota. Detalle de CxC.'!P75)","v":""},{"$f":"IF('800111a - Nota. Detalle de CxC.'!P76=\"\",\"\",'800111a - Nota. Detalle de CxC.'!P76)","v":""},{"$f":"IF('800111a - Nota. Detalle de CxC.'!P77=\"\",\"\",'800111a - Nota. Detalle de CxC.'!P77)","v":""},{"$f":"IF('800111a - Nota. Detalle de CxC.'!P78=\"\",\"\",'800111a - Nota. Detalle de CxC.'!P78)","v":""},{"$f":"IF('800111a - Nota. Detalle de CxC.'!P79=\"\",\"\",'800111a - Nota. Detalle de CxC.'!P79)","v":""},{"$f":"IF('800111a - Nota. Detalle de CxC.'!P80=\"\",\"\",'800111a - Nota. Detalle de CxC.'!P80)","v":""},{"$f":"IF('800111a - Nota. Detalle de CxC.'!P81=\"\",\"\",'800111a - Nota. Detalle de CxC.'!P81)","v":""},{"$f":"IF('800111a - Nota. Detalle de CxC.'!P82=\"\",\"\",'800111a - Nota. Detalle de CxC.'!P82)","v":""},{"$f":"IF('800111a - Nota. Detalle de CxC.'!P83=\"\",\"\",'800111a - Nota. Detalle de CxC.'!P83)","v":""},{"$f":"IF('800111a - Nota. Detalle de CxC.'!P84=\"\",\"\",'800111a - Nota. Detalle de CxC.'!P84)","v":""},{"$f":"IF('800111a - Nota. Detalle de CxC.'!P85=\"\",\"\",'800111a - Nota. Detalle de CxC.'!P85)","v":""},{"$f":"IF('800111a - Nota. Detalle de CxC.'!P86=\"\",\"\",'800111a - Nota. Detalle de CxC.'!P86)","v":""},{"$f":"IF('800111a - Nota. Detalle de CxC.'!P87=\"\",\"\",'800111a - Nota. Detalle de CxC.'!P87)","v":""},{"$f":"IF('800111a - Nota. Detalle de CxC.'!P88=\"\",\"\",'800111a - Nota. Detalle de CxC.'!P88)","v":""},{"$f":"IF('800111a - Nota. Detalle de CxC.'!P89=\"\",\"\",'800111a - Nota. Detalle de CxC.'!P89)","v":""},{"$f":"IF('800111a - Nota. Detalle de CxC.'!P90=\"\",\"\",'800111a - Nota. Detalle de CxC.'!P90)","v":""},{"$f":"IF('800111a - Nota. Detalle de CxC.'!P91=\"\",\"\",'800111a - Nota. Detalle de CxC.'!P91)","v":""},{"$f":"IF('800111a - Nota. Detalle de CxC.'!P92=\"\",\"\",'800111a - Nota. Detalle de CxC.'!P92)","v":""},{"$f":"IF('800111a - Nota. Detalle de CxC.'!P93=\"\",\"\",'800111a - Nota. Detalle de CxC.'!P93)","v":""},{"$f":"IF('800111a - Nota. Detalle de CxC.'!P94=\"\",\"\",'800111a - Nota. Detalle de CxC.'!P94)","v":""},{"$f":"IF('800111a - Nota. Detalle de CxC.'!P95=\"\",\"\",'800111a - Nota. Detalle de CxC.'!P95)","v":""},{"$f":"IF('800111a - Nota. Detalle de CxC.'!P96=\"\",\"\",'800111a - Nota. Detalle de CxC.'!P96)","v":""},{"$f":"IF('800111a - Nota. Detalle de CxC.'!P97=\"\",\"\",'800111a - Nota. Detalle de CxC.'!P97)","v":""},{"$f":"IF('800111a - Nota. Detalle de CxC.'!P98=\"\",\"\",'800111a - Nota. Detalle de CxC.'!P98)","v":""},{"$f":"IF('800111a - Nota. Detalle de CxC.'!P99=\"\",\"\",'800111a - Nota. Detalle de CxC.'!P99)","v":""},{"$f":"IF('800111a - Nota. Detalle de CxC.'!P100=\"\",\"\",'800111a - Nota. Detalle de CxC.'!P100)","v":""},{"$f":"IF('800111a - Nota. Detalle de CxC.'!P101=\"\",\"\",'800111a - Nota. Detalle de CxC.'!P101)","v":""},{"$f":"IF('800111a - Nota. Detalle de CxC.'!P102=\"\",\"\",'800111a - Nota. Detalle de CxC.'!P102)","v":""},{"$f":"IF('800111a - Nota. Detalle de CxC.'!P103=\"\",\"\",'800111a - Nota. Detalle de CxC.'!P103)","v":""},{"$f":"IF('800111a - Nota. Detalle de CxC.'!P104=\"\",\"\",'800111a - Nota. Detalle de CxC.'!P104)","v":""},{"$f":"IF('800111a - Nota. Detalle de CxC.'!P105=\"\",\"\",'800111a - Nota. Detalle de CxC.'!P105)","v":""},{"$f":"IF('800111a - Nota. Detalle de CxC.'!P106=\"\",\"\",'800111a - Nota. Detalle de CxC.'!P106)","v":""},{"$f":"IF('800111a - Nota. Detalle de CxC.'!P107=\"\",\"\",'800111a - Nota. Detalle de CxC.'!P107)","v":""},{"$f":"IF('800111a - Nota. Detalle de CxC.'!P108=\"\",\"\",'800111a - Nota. Detalle de CxC.'!P108)","v":""},{"$f":"IF('800111a - Nota. Detalle de CxC.'!P109=\"\",\"\",'800111a - Nota. Detalle de CxC.'!P109)","v":""},{"$f":"IF('800111a - Nota. Detalle de CxC.'!P110=\"\",\"\",'800111a - Nota. Detalle de CxC.'!P110)","v":""},{"$f":"IF('800111a - Nota. Detalle de CxC.'!P111=\"\",\"\",'800111a - Nota. Detalle de CxC.'!P111)","v":""},{"$f":"IF('800111a - Nota. Detalle de CxC.'!P112=\"\",\"\",'800111a - Nota. Detalle de CxC.'!P112)","v":""},{"$f":"IF('800111a - Nota. Detalle de CxC.'!P113=\"\",\"\",'800111a - Nota. Detalle de CxC.'!P113)","v":""},{"$f":"IF('800111a - Nota. Detalle de CxC.'!P114=\"\",\"\",'800111a - Nota. Detalle de CxC.'!P114)","v":""},{"$f":"IF('800111a - Nota. Detalle de CxC.'!P115=\"\",\"\",'800111a - Nota. Detalle de CxC.'!P115)","v":""},{"$f":"IF('800111a - Nota. Detalle de CxC.'!P116=\"\",\"\",'800111a - Nota. Detalle de CxC.'!P116)","v":""},{"$f":"IF('800111a - Nota. Detalle de CxC.'!P117=\"\",\"\",'800111a - Nota. Detalle de CxC.'!P117)","v":""},{"$f":"IF('800111a - Nota. Detalle de CxC.'!P118=\"\",\"\",'800111a - Nota. Detalle de CxC.'!P118)","v":0},null,{"$f":"IF('800111a - Nota. Detalle de CxC.'!P120=\"\",\"\",'800111a - Nota. Detalle de CxC.'!P120)","v":""},{"$f":"IF('800111a - Nota. Detalle de CxC.'!P121=\"\",\"\",'800111a - Nota. Detalle de CxC.'!P121)","v":""},{"$f":"IF('800111a - Nota. Detalle de CxC.'!P122=\"\",\"\",'800111a - Nota. Detalle de CxC.'!P122)","v":""},{"$f":"IF('800111a - Nota. Detalle de CxC.'!P123=\"\",\"\",'800111a - Nota. Detalle de CxC.'!P123)","v":""},{"$f":"IF('800111a - Nota. Detalle de CxC.'!P124=\"\",\"\",'800111a - Nota. Detalle de CxC.'!P124)","v":""},{"$f":"IF('800111a - Nota. Detalle de CxC.'!P125=\"\",\"\",'800111a - Nota. Detalle de CxC.'!P125)","v":""},{"$f":"IF('800111a - Nota. Detalle de CxC.'!P126=\"\",\"\",'800111a - Nota. Detalle de CxC.'!P126)","v":""},{"$f":"IF('800111a - Nota. Detalle de CxC.'!P127=\"\",\"\",'800111a - Nota. Detalle de CxC.'!P127)","v":""},{"$f":"IF('800111a - Nota. Detalle de CxC.'!P128=\"\",\"\",'800111a - Nota. Detalle de CxC.'!P128)","v":""},{"$f":"IF('800111a - Nota. Detalle de CxC.'!P129=\"\",\"\",'800111a - Nota. Detalle de CxC.'!P129)","v":""},{"$f":"IF('800111a - Nota. Detalle de CxC.'!P130=\"\",\"\",'800111a - Nota. Detalle de CxC.'!P130)","v":""},{"$f":"IF('800111a - Nota. Detalle de CxC.'!P131=\"\",\"\",'800111a - Nota. Detalle de CxC.'!P131)","v":""},{"$f":"IF('800111a - Nota. Detalle de CxC.'!P132=\"\",\"\",'800111a - Nota. Detalle de CxC.'!P132)","v":""},{"$f":"IF('800111a - Nota. Detalle de CxC.'!P133=\"\",\"\",'800111a - Nota. Detalle de CxC.'!P133)","v":""},{"$f":"IF('800111a - Nota. Detalle de CxC.'!P134=\"\",\"\",'800111a - Nota. Detalle de CxC.'!P134)","v":""},{"$f":"IF('800111a - Nota. Detalle de CxC.'!P135=\"\",\"\",'800111a - Nota. Detalle de CxC.'!P135)","v":""},{"$f":"IF('800111a - Nota. Detalle de CxC.'!P136=\"\",\"\",'800111a - Nota. Detalle de CxC.'!P136)","v":""},{"$f":"IF('800111a - Nota. Detalle de CxC.'!P137=\"\",\"\",'800111a - Nota. Detalle de CxC.'!P137)","v":""},{"$f":"IF('800111a - Nota. Detalle de CxC.'!P138=\"\",\"\",'800111a - Nota. Detalle de CxC.'!P138)","v":""},{"$f":"IF('800111a - Nota. Detalle de CxC.'!P139=\"\",\"\",'800111a - Nota. Detalle de CxC.'!P139)","v":""},{"$f":"IF('800111a - Nota. Detalle de CxC.'!P140=\"\",\"\",'800111a - Nota. Detalle de CxC.'!P140)","v":""},{"$f":"IF('800111a - Nota. Detalle de CxC.'!P141=\"\",\"\",'800111a - Nota. Detalle de CxC.'!P141)","v":""},{"$f":"IF('800111a - Nota. Detalle de CxC.'!P142=\"\",\"\",'800111a - Nota. Detalle de CxC.'!P142)","v":""},{"$f":"IF('800111a - Nota. Detalle de CxC.'!P143=\"\",\"\",'800111a - Nota. Detalle de CxC.'!P143)","v":""},{"$f":"IF('800111a - Nota. Detalle de CxC.'!P144=\"\",\"\",'800111a - Nota. Detalle de CxC.'!P144)","v":""},{"$f":"IF('800111a - Nota. Detalle de CxC.'!P145=\"\",\"\",'800111a - Nota. Detalle de CxC.'!P145)","v":""},{"$f":"IF('800111a - Nota. Detalle de CxC.'!P146=\"\",\"\",'800111a - Nota. Detalle de CxC.'!P146)","v":""},{"$f":"IF('800111a - Nota. Detalle de CxC.'!P147=\"\",\"\",'800111a - Nota. Detalle de CxC.'!P147)","v":""},{"$f":"IF('800111a - Nota. Detalle de CxC.'!P148=\"\",\"\",'800111a - Nota. Detalle de CxC.'!P148)","v":""},{"$f":"IF('800111a - Nota. Detalle de CxC.'!P149=\"\",\"\",'800111a - Nota. Detalle de CxC.'!P149)","v":""},{"$f":"IF('800111a - Nota. Detalle de CxC.'!P150=\"\",\"\",'800111a - Nota. Detalle de CxC.'!P150)","v":""},{"$f":"IF('800111a - Nota. Detalle de CxC.'!P151=\"\",\"\",'800111a - Nota. Detalle de CxC.'!P151)","v":""},{"$f":"IF('800111a - Nota. Detalle de CxC.'!P152=\"\",\"\",'800111a - Nota. Detalle de CxC.'!P152)","v":""},{"$f":"IF('800111a - Nota. Detalle de CxC.'!P153=\"\",\"\",'800111a - Nota. Detalle de CxC.'!P153)","v":""},{"$f":"IF('800111a - Nota. Detalle de CxC.'!P154=\"\",\"\",'800111a - Nota. Detalle de CxC.'!P154)","v":""},{"$f":"IF('800111a - Nota. Detalle de CxC.'!P155=\"\",\"\",'800111a - Nota. Detalle de CxC.'!P155)","v":""},{"$f":"IF('800111a - Nota. Detalle de CxC.'!P156=\"\",\"\",'800111a - Nota. Detalle de CxC.'!P156)","v":""},{"$f":"IF('800111a - Nota. Detalle de CxC.'!P157=\"\",\"\",'800111a - Nota. Detalle de CxC.'!P157)","v":""},{"$f":"IF('800111a - Nota. Detalle de CxC.'!P158=\"\",\"\",'800111a - Nota. Detalle de CxC.'!P158)","v":""},{"$f":"IF('800111a - Nota. Detalle de CxC.'!P159=\"\",\"\",'800111a - Nota. Detalle de CxC.'!P159)","v":""},{"$f":"IF('800111a - Nota. Detalle de CxC.'!P160=\"\",\"\",'800111a - Nota. Detalle de CxC.'!P160)","v":""},{"$f":"IF('800111a - Nota. Detalle de CxC.'!P161=\"\",\"\",'800111a - Nota. Detalle de CxC.'!P161)","v":""},{"$f":"IF('800111a - Nota. Detalle de CxC.'!P162=\"\",\"\",'800111a - Nota. Detalle de CxC.'!P162)","v":""},{"$f":"IF('800111a - Nota. Detalle de CxC.'!P163=\"\",\"\",'800111a - Nota. Detalle de CxC.'!P163)","v":""},{"$f":"IF('800111a - Nota. Detalle de CxC.'!P164=\"\",\"\",'800111a - Nota. Detalle de CxC.'!P164)","v":""},{"$f":"IF('800111a - Nota. Detalle de CxC.'!P165=\"\",\"\",'800111a - Nota. Detalle de CxC.'!P165)","v":""},{"$f":"IF('800111a - Nota. Detalle de CxC.'!P166=\"\",\"\",'800111a - Nota. Detalle de CxC.'!P166)","v":""},{"$f":"IF('800111a - Nota. Detalle de CxC.'!P167=\"\",\"\",'800111a - Nota. Detalle de CxC.'!P167)","v":""},{"$f":"IF('800111a - Nota. Detalle de CxC.'!P168=\"\",\"\",'800111a - Nota. Detalle de CxC.'!P168)","v":""},{"$f":"IF('800111a - Nota. Detalle de CxC.'!P169=\"\",\"\",'800111a - Nota. Detalle de CxC.'!P169)","v":""},{"$f":"IF('800111a - Nota. Detalle de CxC.'!P170=\"\",\"\",'800111a - Nota. Detalle de CxC.'!P170)","v":""},{"$f":"IF('800111a - Nota. Detalle de CxC.'!P171=\"\",\"\",'800111a - Nota. Detalle de CxC.'!P171)","v":0},{"$f":"IF('800111a - Nota. Detalle de CxC.'!P172=\"\",\"\",'800111a - Nota. Detalle de CxC.'!P172)","v":0}]
[]
[]
[]
[]
[]
[]
[]
[]
[]
[]
[]
[]
[]
[]
[]
[]
[]
[]
[]
[]
[]
[]
[]
[]
[]
[]
[]
[]
[]
[]
[]
[]
[]
[]
[]
[]
[]
[]
[]
[]
[]
[]
[]
[]
[]
[]
[]
[]
[]
[]
[]
[]
[]
[]
[]
[]
[]
[]
[]
[]
[]
[]
[]
[]
[]
[]
[]
[]
[]
[]
[]
[]
[]
[]
[]
[]
[]
[]
[]
[]
[]
[]
[]
[]
[]
[]
[]
[]
[]
[]
[]
[]
[]
[]
[]
[]
[]
[]
[]
[]
[]
[]
[]
[]
[]
[]
[]
[]
[]
[]
[]
[]
[]
[]
[]
[]
[]
[]
[]
[]
[]
[]
[]
[]
[]
[]
[]
[]
[]
[]
[]
[]
[]
[]
[]
[]
[]
[]
[]
[]
[]
[]
[]
[]
[]
[]
[]
[]
[]
[]
[]
[]
[]
[]
[]
[]
[]
[null,null,null,null,"co-svsp-core_2017-12-31:RelacionCuentasXCobrarMiembro","co-svsp-core_2017-12-31:RelacionCuentasXCobrarClientesMiembro","co-svsp-core_2017-12-31:DetalleCuentasXCobrarClientes1Miembro","co-svsp-core_2017-12-31:DetalleCuentasXCobrarClientes2Miembro","co-svsp-core_2017-12-31:DetalleCuentasXCobrarClientes3Miembro","co-svsp-core_2017-12-31:DetalleCuentasXCobrarClientes4Miembro","co-svsp-core_2017-12-31:DetalleCuentasXCobrarClientes5Miembro","co-svsp-core_2017-12-31:DetalleCuentasXCobrarClientes6Miembro","co-svsp-core_2017-12-31:DetalleCuentasXCobrarClientes7Miembro","co-svsp-core_2017-12-31:DetalleCuentasXCobrarClientes8Miembro","co-svsp-core_2017-12-31:DetalleCuentasXCobrarClientes9Miembro","co-svsp-core_2017-12-31:DetalleCuentasXCobrarClientes10Miembro","co-svsp-core_2017-12-31:DetalleCuentasXCobrarClientes11Miembro","co-svsp-core_2017-12-31:DetalleCuentasXCobrarClientes12Miembro","co-svsp-core_2017-12-31:DetalleCuentasXCobrarClientes13Miembro","co-svsp-core_2017-12-31:DetalleCuentasXCobrarClientes14Miembro","co-svsp-core_2017-12-31:DetalleCuentasXCobrarClientes15Miembro","co-svsp-core_2017-12-31:DetalleCuentasXCobrarClientes16Miembro","co-svsp-core_2017-12-31:DetalleCuentasXCobrarClientes17Miembro","co-svsp-core_2017-12-31:DetalleCuentasXCobrarClientes18Miembro","co-svsp-core_2017-12-31:DetalleCuentasXCobrarClientes19Miembro","co-svsp-core_2017-12-31:DetalleCuentasXCobrarClientes20Miembro","co-svsp-core_2017-12-31:DetalleCuentasXCobrarClientes21Miembro","co-svsp-core_2017-12-31:DetalleCuentasXCobrarClientes22Miembro","co-svsp-core_2017-12-31:DetalleCuentasXCobrarClientes23Miembro","co-svsp-core_2017-12-31:DetalleCuentasXCobrarClientes24Miembro","co-svsp-core_2017-12-31:DetalleCuentasXCobrarClientes25Miembro","co-svsp-core_2017-12-31:DetalleCuentasXCobrarClientes26Miembro","co-svsp-core_2017-12-31:DetalleCuentasXCobrarClientes27Miembro","co-svsp-core_2017-12-31:DetalleCuentasXCobrarClientes28Miembro","co-svsp-core_2017-12-31:DetalleCuentasXCobrarClientes29Miembro","co-svsp-core_2017-12-31:DetalleCuentasXCobrarClientes30Miembro","co-svsp-core_2017-12-31:DetalleCuentasXCobrarClientes31Miembro","co-svsp-core_2017-12-31:DetalleCuentasXCobrarClientes32Miembro","co-svsp-core_2017-12-31:DetalleCuentasXCobrarClientes33Miembro","co-svsp-core_2017-12-31:DetalleCuentasXCobrarClientes34Miembro","co-svsp-core_2017-12-31:DetalleCuentasXCobrarClientes35Miembro","co-svsp-core_2017-12-31:DetalleCuentasXCobrarClientes36Miembro","co-svsp-core_2017-12-31:DetalleCuentasXCobrarClientes37Miembro","co-svsp-core_2017-12-31:DetalleCuentasXCobrarClientes38Miembro","co-svsp-core_2017-12-31:DetalleCuentasXCobrarClientes39Miembro","co-svsp-core_2017-12-31:DetalleCuentasXCobrarClientes40Miembro","co-svsp-core_2017-12-31:DetalleCuentasXCobrarClientes41Miembro","co-svsp-core_2017-12-31:DetalleCuentasXCobrarClientes42Miembro","co-svsp-core_2017-12-31:DetalleCuentasXCobrarClientes43Miembro","co-svsp-core_2017-12-31:DetalleCuentasXCobrarClientes44Miembro","co-svsp-core_2017-12-31:DetalleCuentasXCobrarClientes45Miembro","co-svsp-core_2017-12-31:DetalleCuentasXCobrarClientes46Miembro","co-svsp-core_2017-12-31:DetalleCuentasXCobrarClientes47Miembro","co-svsp-core_2017-12-31:DetalleCuentasXCobrarClientes48Miembro","co-svsp-core_2017-12-31:DetalleCuentasXCobrarClientes49Miembro","co-svsp-core_2017-12-31:DetalleCuentasXCobrarClientes50Miembro","co-svsp-core_2017-12-31:DetalleCuentasXCobrarClientes51EnAdelante","co-svsp-core_2017-12-31:TotalDetalleCuentasXCobrarClientesMiembro","co-svsp-core_2017-12-31:RelacionCuentasXCobrarAccionistasSociosVinculadasMiembro","co-svsp-core_2017-12-31:DetalleCuentasXCobrarAccionistasSociosVinculadas1Miembro","co-svsp-core_2017-12-31:DetalleCuentasXCobrarAccionistasSociosVinculadas2Miembro","co-svsp-core_2017-12-31:DetalleCuentasXCobrarAccionistasSociosVinculadas3Miembro","co-svsp-core_2017-12-31:DetalleCuentasXCobrarAccionistasSociosVinculadas4Miembro","co-svsp-core_2017-12-31:DetalleCuentasXCobrarAccionistasSociosVinculadas5Miembro","co-svsp-core_2017-12-31:DetalleCuentasXCobrarAccionistasSociosVinculadas6Miembro","co-svsp-core_2017-12-31:DetalleCuentasXCobrarAccionistasSociosVinculadas7Miembro","co-svsp-core_2017-12-31:DetalleCuentasXCobrarAccionistasSociosVinculadas8Miembro","co-svsp-core_2017-12-31:DetalleCuentasXCobrarAccionistasSociosVinculadas9Miembro","co-svsp-core_2017-12-31:DetalleCuentasXCobrarAccionistasSociosVinculadas10Miembro","co-svsp-core_2017-12-31:DetalleCuentasXCobrarAccionistasSociosVinculadas11Miembro","co-svsp-core_2017-12-31:DetalleCuentasXCobrarAccionistasSociosVinculadas12Miembro","co-svsp-core_2017-12-31:DetalleCuentasXCobrarAccionistasSociosVinculadas13Miembro","co-svsp-core_2017-12-31:DetalleCuentasXCobrarAccionistasSociosVinculadas14Miembro","co-svsp-core_2017-12-31:DetalleCuentasXCobrarAccionistasSociosVinculadas15Miembro","co-svsp-core_2017-12-31:DetalleCuentasXCobrarAccionistasSociosVinculadas16Miembro","co-svsp-core_2017-12-31:DetalleCuentasXCobrarAccionistasSociosVinculadas17Miembro","co-svsp-core_2017-12-31:DetalleCuentasXCobrarAccionistasSociosVinculadas18Miembro","co-svsp-core_2017-12-31:DetalleCuentasXCobrarAccionistasSociosVinculadas19Miembro","co-svsp-core_2017-12-31:DetalleCuentasXCobrarAccionistasSociosVinculadas20Miembro","co-svsp-core_2017-12-31:DetalleCuentasXCobrarAccionistasSociosVinculadas21Miembro","co-svsp-core_2017-12-31:DetalleCuentasXCobrarAccionistasSociosVinculadas22Miembro","co-svsp-core_2017-12-31:DetalleCuentasXCobrarAccionistasSociosVinculadas23Miembro","co-svsp-core_2017-12-31:DetalleCuentasXCobrarAccionistasSociosVinculadas24Miembro","co-svsp-core_2017-12-31:DetalleCuentasXCobrarAccionistasSociosVinculadas25Miembro","co-svsp-core_2017-12-31:DetalleCuentasXCobrarAccionistasSociosVinculadas26Miembro","co-svsp-core_2017-12-31:DetalleCuentasXCobrarAccionistasSociosVinculadas27Miembro","co-svsp-core_2017-12-31:DetalleCuentasXCobrarAccionistasSociosVinculadas28Miembro","co-svsp-core_2017-12-31:DetalleCuentasXCobrarAccionistasSociosVinculadas29Miembro","co-svsp-core_2017-12-31:DetalleCuentasXCobrarAccionistasSociosVinculadas30Miembro","co-svsp-core_2017-12-31:DetalleCuentasXCobrarAccionistasSociosVinculadas31Miembro","co-svsp-core_2017-12-31:DetalleCuentasXCobrarAccionistasSociosVinculadas32Miembro","co-svsp-core_2017-12-31:DetalleCuentasXCobrarAccionistasSociosVinculadas33Miembro","co-svsp-core_2017-12-31:DetalleCuentasXCobrarAccionistasSociosVinculadas34Miembro","co-svsp-core_2017-12-31:DetalleCuentasXCobrarAccionistasSociosVinculadas35Miembro","co-svsp-core_2017-12-31:DetalleCuentasXCobrarAccionistasSociosVinculadas36Miembro","co-svsp-core_2017-12-31:DetalleCuentasXCobrarAccionistasSociosVinculadas37Miembro","co-svsp-core_2017-12-31:DetalleCuentasXCobrarAccionistasSociosVinculadas38Miembro","co-svsp-core_2017-12-31:DetalleCuentasXCobrarAccionistasSociosVinculadas39Miembro","co-svsp-core_2017-12-31:DetalleCuentasXCobrarAccionistasSociosVinculadas40Miembro","co-svsp-core_2017-12-31:DetalleCuentasXCobrarAccionistasSociosVinculadas41Miembro","co-svsp-core_2017-12-31:DetalleCuentasXCobrarAccionistasSociosVinculadas42Miembro","co-svsp-core_2017-12-31:DetalleCuentasXCobrarAccionistasSociosVinculadas43Miembro","co-svsp-core_2017-12-31:DetalleCuentasXCobrarAccionistasSociosVinculadas44Miembro","co-svsp-core_2017-12-31:DetalleCuentasXCobrarAccionistasSociosVinculadas45Miembro","co-svsp-core_2017-12-31:DetalleCuentasXCobrarAccionistasSociosVinculadas46Miembro","co-svsp-core_2017-12-31:DetalleCuentasXCobrarAccionistasSociosVinculadas47Miembro","co-svsp-core_2017-12-31:DetalleCuentasXCobrarAccionistasSociosVinculadas48Miembro","co-svsp-core_2017-12-31:DetalleCuentasXCobrarAccionistasSociosVinculadas49Miembro","co-svsp-core_2017-12-31:DetalleCuentasXCobrarAccionistasSociosVinculadas50Miembro","co-svsp-core_2017-12-31:DetalleCuentasXCobrarAccionistasSociosVinculadas51EnAdelante","co-svsp-core_2017-12-31:TotalDetalleCuentasXCobrarAccionistasSociosVinculadasMiembro","co-svsp-core_2017-12-31:RelacionCuentasXCobrarOtrasCuentasXCobrarMiembro","co-svsp-core_2017-12-31:DetalleCuentasXCobrarOtrasCuentasXCobrar1Miembro","co-svsp-core_2017-12-31:DetalleCuentasXCobrarOtrasCuentasXCobrar2Miembro","co-svsp-core_2017-12-31:DetalleCuentasXCobrarOtrasCuentasXCobrar3Miembro","co-svsp-core_2017-12-31:DetalleCuentasXCobrarOtrasCuentasXCobrar4Miembro","co-svsp-core_2017-12-31:DetalleCuentasXCobrarOtrasCuentasXCobrar5Miembro","co-svsp-core_2017-12-31:DetalleCuentasXCobrarOtrasCuentasXCobrar6Miembro","co-svsp-core_2017-12-31:DetalleCuentasXCobrarOtrasCuentasXCobrar7Miembro","co-svsp-core_2017-12-31:DetalleCuentasXCobrarOtrasCuentasXCobrar8Miembro","co-svsp-core_2017-12-31:DetalleCuentasXCobrarOtrasCuentasXCobrar9Miembro","co-svsp-core_2017-12-31:DetalleCuentasXCobrarOtrasCuentasXCobrar10Miembro","co-svsp-core_2017-12-31:DetalleCuentasXCobrarOtrasCuentasXCobrar11Miembro","co-svsp-core_2017-12-31:DetalleCuentasXCobrarOtrasCuentasXCobrar12Miembro","co-svsp-core_2017-12-31:DetalleCuentasXCobrarOtrasCuentasXCobrar13Miembro","co-svsp-core_2017-12-31:DetalleCuentasXCobrarOtrasCuentasXCobrar14Miembro","co-svsp-core_2017-12-31:DetalleCuentasXCobrarOtrasCuentasXCobrar15Miembro","co-svsp-core_2017-12-31:DetalleCuentasXCobrarOtrasCuentasXCobrar16Miembro","co-svsp-core_2017-12-31:DetalleCuentasXCobrarOtrasCuentasXCobrar17Miembro","co-svsp-core_2017-12-31:DetalleCuentasXCobrarOtrasCuentasXCobrar18Miembro","co-svsp-core_2017-12-31:DetalleCuentasXCobrarOtrasCuentasXCobrar19Miembro","co-svsp-core_2017-12-31:DetalleCuentasXCobrarOtrasCuentasXCobrar20Miembro","co-svsp-core_2017-12-31:DetalleCuentasXCobrarOtrasCuentasXCobrar21Miembro","co-svsp-core_2017-12-31:DetalleCuentasXCobrarOtrasCuentasXCobrar22Miembro","co-svsp-core_2017-12-31:DetalleCuentasXCobrarOtrasCuentasXCobrar23Miembro","co-svsp-core_2017-12-31:DetalleCuentasXCobrarOtrasCuentasXCobrar24Miembro","co-svsp-core_2017-12-31:DetalleCuentasXCobrarOtrasCuentasXCobrar25Miembro","co-svsp-core_2017-12-31:DetalleCuentasXCobrarOtrasCuentasXCobrar26Miembro","co-svsp-core_2017-12-31:DetalleCuentasXCobrarOtrasCuentasXCobrar27Miembro","co-svsp-core_2017-12-31:DetalleCuentasXCobrarOtrasCuentasXCobrar28Miembro","co-svsp-core_2017-12-31:DetalleCuentasXCobrarOtrasCuentasXCobrar29Miembro","co-svsp-core_2017-12-31:DetalleCuentasXCobrarOtrasCuentasXCobrar30Miembro","co-svsp-core_2017-12-31:DetalleCuentasXCobrarOtrasCuentasXCobrar31Miembro","co-svsp-core_2017-12-31:DetalleCuentasXCobrarOtrasCuentasXCobrar32Miembro","co-svsp-core_2017-12-31:DetalleCuentasXCobrarOtrasCuentasXCobrar33Miembro","co-svsp-core_2017-12-31:DetalleCuentasXCobrarOtrasCuentasXCobrar34Miembro","co-svsp-core_2017-12-31:DetalleCuentasXCobrarOtrasCuentasXCobrar35Miembro","co-svsp-core_2017-12-31:DetalleCuentasXCobrarOtrasCuentasXCobrar36Miembro","co-svsp-core_2017-12-31:DetalleCuentasXCobrarOtrasCuentasXCobrar37Miembro","co-svsp-core_2017-12-31:DetalleCuentasXCobrarOtrasCuentasXCobrar38Miembro","co-svsp-core_2017-12-31:DetalleCuentasXCobrarOtrasCuentasXCobrar39Miembro","co-svsp-core_2017-12-31:DetalleCuentasXCobrarOtrasCuentasXCobrar40Miembro","co-svsp-core_2017-12-31:DetalleCuentasXCobrarOtrasCuentasXCobrar41Miembro","co-svsp-core_2017-12-31:DetalleCuentasXCobrarOtrasCuentasXCobrar42Miembro","co-svsp-core_2017-12-31:DetalleCuentasXCobrarOtrasCuentasXCobrar43Miembro","co-svsp-core_2017-12-31:DetalleCuentasXCobrarOtrasCuentasXCobrar44Miembro","co-svsp-core_2017-12-31:DetalleCuentasXCobrarOtrasCuentasXCobrar45Miembro","co-svsp-core_2017-12-31:DetalleCuentasXCobrarOtrasCuentasXCobrar46Miembro","co-svsp-core_2017-12-31:DetalleCuentasXCobrarOtrasCuentasXCobrar47Miembro","co-svsp-core_2017-12-31:DetalleCuentasXCobrarOtrasCuentasXCobrar48Miembro","co-svsp-core_2017-12-31:DetalleCuentasXCobrarOtrasCuentasXCobrar49Miembro","co-svsp-core_2017-12-31:DetalleCuentasXCobrarOtrasCuentasXCobrar50Miembro","co-svsp-core_2017-12-31:DetalleCuentasXCobrarOtrasCuentasXCobrar51EnAdelante","co-svsp-core_2017-12-31:TotalDetalleCuentasXCobrarOtrasCuentasXCobrarMiembro","co-svsp-core_2017-12-31:TotalDetalleCuentasXCobrarMiembro"]
[null,"Periodo",null,"co-svsp-core_2017-12-31:DetalleCuentasXCobrar_Eje","Relación de cuentas por cobrar [miembro]","Relación de cuentas por cobrar clientes [miembro]","Detalle de cuentas por cobrar clientes 1 [miembro]","Detalle de cuentas por cobrar clientes 2 [miembro]","Detalle de cuentas por cobrar clientes 3 [miembro]","Detalle de cuentas por cobrar clientes 4 [miembro]","Detalle de cuentas por cobrar clientes 5 [miembro]","Detalle de cuentas por cobrar clientes 6 [miembro]","Detalle de cuentas por cobrar clientes 7 [miembro]","Detalle de cuentas por cobrar clientes 8 [miembro]","Detalle de cuentas por cobrar clientes 9 [miembro]","Detalle de cuentas por cobrar clientes 10 [miembro]","Detalle de cuentas por cobrar clientes 11 [miembro]","Detalle de cuentas por cobrar clientes 12 [miembro]","Detalle de cuentas por cobrar clientes 13 [miembro]","Detalle de cuentas por cobrar clientes 14 [miembro]","Detalle de cuentas por cobrar clientes 15 [miembro]","Detalle de cuentas por cobrar clientes 16 [miembro]","Detalle de cuentas por cobrar clientes 17 [miembro]","Detalle de cuentas por cobrar clientes 18 [miembro]","Detalle de cuentas por cobrar clientes 19 [miembro]","Detalle de cuentas por cobrar clientes 20 [miembro]","Detalle de cuentas por cobrar clientes 21 [miembro]","Detalle de cuentas por cobrar clientes 22 [miembro]","Detalle de cuentas por cobrar clientes 23 [miembro]","Detalle de cuentas por cobrar clientes 24 [miembro]","Detalle de cuentas por cobrar clientes 25 [miembro]","Detalle de cuentas por cobrar clientes 26 [miembro]","Detalle de cuentas por cobrar clientes 27 [miembro]","Detalle de cuentas por cobrar clientes 28 [miembro]","Detalle de cuentas por cobrar clientes 29 [miembro]","Detalle de cuentas por cobrar clientes 30 [miembro]","Detalle de cuentas por cobrar clientes 31 [miembro]","Detalle de cuentas por cobrar clientes 32 [miembro]","Detalle de cuentas por cobrar clientes 33 [miembro]","Detalle de cuentas por cobrar clientes 34 [miembro]","Detalle de cuentas por cobrar clientes 35 [miembro]","Detalle de cuentas por cobrar clientes 36 [miembro]","Detalle de cuentas por cobrar clientes 37 [miembro]","Detalle de cuentas por cobrar clientes 38 [miembro]","Detalle de cuentas por cobrar clientes 39 [miembro]","Detalle de cuentas por cobrar clientes 40 [miembro]","Detalle de cuentas por cobrar clientes 41 [miembro]","Detalle de cuentas por cobrar clientes 42 [miembro]","Detalle de cuentas por cobrar clientes 43 [miembro]","Detalle de cuentas por cobrar clientes 44 [miembro]","Detalle de cuentas por cobrar clientes 45 [miembro]","Detalle de cuentas por cobrar clientes 46 [miembro]","Detalle de cuentas por cobrar clientes 47 [miembro]","Detalle de cuentas por cobrar clientes 48 [miembro]","Detalle de cuentas por cobrar clientes 49 [miembro]","Detalle de cuentas por cobrar clientes 50 [miembro]","Detalle de cuentas por cobrar clientes 51 en adelante [miembro]","Total Detalle de cuentas por cobrar clientes [miembro]","Relación de cuentas por cobrar, compañías accionostas, socios y compañías vinculadas [miembro]","Detalle de cuentas por cobrar a accionistas, socios o vinculadas 1 [miembro]","Detalle de cuentas por cobrar a accionistas, socios o vinculadas 2 [miembro]","Detalle de cuentas por cobrar a accionistas, socios o vinculadas 3 [miembro]","Detalle de cuentas por cobrar a accionistas, socios o vinculadas 4 [miembro]","Detalle de cuentas por cobrar a accionistas, socios o vinculadas 5 [miembro]","Detalle de cuentas por cobrar a accionistas, socios o vinculadas 6 [miembro]","Detalle de cuentas por cobrar a accionistas, socios o vinculadas 7 [miembro]","Detalle de cuentas por cobrar a accionistas, socios o vinculadas 8 [miembro]","Detalle de cuentas por cobrar a accionistas, socios o vinculadas 9 [miembro]","Detalle de cuentas por cobrar a accionistas, socios o vinculadas 10 [miembro]","Detalle de cuentas por cobrar a accionistas, socios o vinculadas 11 [miembro]","Detalle de cuentas por cobrar a accionistas, socios o vinculadas 12 [miembro]","Detalle de cuentas por cobrar a accionistas, socios o vinculadas 13 [miembro]","Detalle de cuentas por cobrar a accionistas, socios o vinculadas 14 [miembro]","Detalle de cuentas por cobrar a accionistas, socios o vinculadas 15 [miembro]","Detalle de cuentas por cobrar a accionistas, socios o vinculadas 16 [miembro]","Detalle de cuentas por cobrar a accionistas, socios o vinculadas 17 [miembro]","Detalle de cuentas por cobrar a accionistas, socios o vinculadas 18 [miembro]","Detalle de cuentas por cobrar a accionistas, socios o vinculadas 19 [miembro]","Detalle de cuentas por cobrar a accionistas, socios o vinculadas 20 [miembro]","Detalle de cuentas por cobrar a accionistas, socios o vinculadas 21 [miembro]","Detalle de cuentas por cobrar a accionistas, socios o vinculadas 22 [miembro]","Detalle de cuentas por cobrar a accionistas, socios o vinculadas 23 [miembro]","Detalle de cuentas por cobrar a accionistas, socios o vinculadas 24 [miembro]","Detalle de cuentas por cobrar a accionistas, socios o vinculadas 25 [miembro]","Detalle de cuentas por cobrar a accionistas, socios o vinculadas 26 [miembro]","Detalle de cuentas por cobrar a accionistas, socios o vinculadas 27 [miembro]","Detalle de cuentas por cobrar a accionistas, socios o vinculadas 28 [miembro]","Detalle de cuentas por cobrar a accionistas, socios o vinculadas 29 [miembro]","Detalle de cuentas por cobrar a accionistas, socios o vinculadas 30 [miembro]","Detalle de cuentas por cobrar a accionistas, socios o vinculadas 31 [miembro]","Detalle de cuentas por cobrar a accionistas, socios o vinculadas 32 [miembro]","Detalle de cuentas por cobrar a accionistas, socios o vinculadas 33 [miembro]","Detalle de cuentas por cobrar a accionistas, socios o vinculadas 34 [miembro]","Detalle de cuentas por cobrar a accionistas, socios o vinculadas 35 [miembro]","Detalle de cuentas por cobrar a accionistas, socios o vinculadas 36 [miembro]","Detalle de cuentas por cobrar a accionistas, socios o vinculadas 37 [miembro]","Detalle de cuentas por cobrar a accionistas, socios o vinculadas 38 [miembro]","Detalle de cuentas por cobrar a accionistas, socios o vinculadas 39 [miembro]","Detalle de cuentas por cobrar a accionistas, socios o vinculadas 40 [miembro]","Detalle de cuentas por cobrar a accionistas, socios o vinculadas 41 [miembro]","Detalle de cuentas por cobrar a accionistas, socios o vinculadas 42 [miembro]","Detalle de cuentas por cobrar a accionistas, socios o vinculadas 43 [miembro]","Detalle de cuentas por cobrar a accionistas, socios o vinculadas 44 [miembro]","Detalle de cuentas por cobrar a accionistas, socios o vinculadas 45 [miembro]","Detalle de cuentas por cobrar a accionistas, socios o vinculadas 46 [miembro]","Detalle de cuentas por cobrar a accionistas, socios o vinculadas 47 [miembro]","Detalle de cuentas por cobrar a accionistas, socios o vinculadas 48 [miembro]","Detalle de cuentas por cobrar a accionistas, socios o vinculadas 49 [miembro]","Detalle de cuentas por cobrar a accionistas, socios o vinculadas 50 [miembro]","Detalle de cuentas por cobrar a accionistas, socios o vinculadas 51 en adelante [miembro]","Total Detalle de cuentas por cobrar a accionistas, socios o vinculadas [miembro]","Relación de otras cuentas por cobrar [miembro]","Detalle de cuentas por cobrar Otras cuentas por cobrar  1 [miembro]","Detalle de cuentas por cobrar Otras cuentas por cobrar  2 [miembro]","Detalle de cuentas por cobrar Otras cuentas por cobrar  3 [miembro]","Detalle de cuentas por cobrar Otras cuentas por cobrar  4 [miembro]","Detalle de cuentas por cobrar Otras cuentas por cobrar  5 [miembro]","Detalle de cuentas por cobrar Otras cuentas por cobrar  6 [miembro]","Detalle de cuentas por cobrar Otras cuentas por cobrar  7 [miembro]","Detalle de cuentas por cobrar Otras cuentas por cobrar  8 [miembro]","Detalle de cuentas por cobrar Otras cuentas por cobrar  9 [miembro]","Detalle de cuentas por cobrar Otras cuentas por cobrar  10 [miembro]","Detalle de cuentas por cobrar Otras cuentas por cobrar  11 [miembro]","Detalle de cuentas por cobrar Otras cuentas por cobrar  12 [miembro]","Detalle de cuentas por cobrar Otras cuentas por cobrar  13 [miembro]","Detalle de cuentas por cobrar Otras cuentas por cobrar  14 [miembro]","Detalle de cuentas por cobrar Otras cuentas por cobrar  15 [miembro]","Detalle de cuentas por cobrar Otras cuentas por cobrar  16 [miembro]","Detalle de cuentas por cobrar Otras cuentas por cobrar  17 [miembro]","Detalle de cuentas por cobrar Otras cuentas por cobrar  18 [miembro]","Detalle de cuentas por cobrar Otras cuentas por cobrar  19 [miembro]","Detalle de cuentas por cobrar Otras cuentas por cobrar  20 [miembro]","Detalle de cuentas por cobrar Otras cuentas por cobrar  21 [miembro]","Detalle de cuentas por cobrar Otras cuentas por cobrar  22 [miembro]","Detalle de cuentas por cobrar Otras cuentas por cobrar  23 [miembro]","Detalle de cuentas por cobrar Otras cuentas por cobrar  24 [miembro]","Detalle de cuentas por cobrar Otras cuentas por cobrar  25 [miembro]","Detalle de cuentas por cobrar Otras cuentas por cobrar  26 [miembro]","Detalle de cuentas por cobrar Otras cuentas por cobrar  27 [miembro]","Detalle de cuentas por cobrar Otras cuentas por cobrar  28 [miembro]","Detalle de cuentas por cobrar Otras cuentas por cobrar  29 [miembro]","Detalle de cuentas por cobrar Otras cuentas por cobrar  30 [miembro]","Detalle de cuentas por cobrar Otras cuentas por cobrar  31 [miembro]","Detalle de cuentas por cobrar Otras cuentas por cobrar  32 [miembro]","Detalle de cuentas por cobrar Otras cuentas por cobrar  33 [miembro]","Detalle de cuentas por cobrar Otras cuentas por cobrar  34 [miembro]","Detalle de cuentas por cobrar Otras cuentas por cobrar  35 [miembro]","Detalle de cuentas por cobrar Otras cuentas por cobrar  36 [miembro]","Detalle de cuentas por cobrar Otras cuentas por cobrar  37 [miembro]","Detalle de cuentas por cobrar Otras cuentas por cobrar  38 [miembro]","Detalle de cuentas por cobrar Otras cuentas por cobrar  39 [miembro]","Detalle de cuentas por cobrar Otras cuentas por cobrar  40 [miembro]","Detalle de cuentas por cobrar Otras cuentas por cobrar  41 [miembro]","Detalle de cuentas por cobrar Otras cuentas por cobrar  42 [miembro]","Detalle de cuentas por cobrar Otras cuentas por cobrar  43 [miembro]","Detalle de cuentas por cobrar Otras cuentas por cobrar  44 [miembro]","Detalle de cuentas por cobrar Otras cuentas por cobrar  45 [miembro]","Detalle de cuentas por cobrar Otras cuentas por cobrar  46 [miembro]","Detalle de cuentas por cobrar Otras cuentas por cobrar  47 [miembro]","Detalle de cuentas por cobrar Otras cuentas por cobrar  48 [miembro]","Detalle de cuentas por cobrar Otras cuentas por cobrar  49 [miembro]","Detalle de cuentas por cobrar Otras cuentas por cobrar  50 [miembro]","Detalle de cuentas por cobrar Otras cuentas por cobrar  51 en adelante [miembro]","Total Detalle de cuentas por cobrar, otras cuentas por cobrar [miembro]","Total Detalle de cuentas por cobrar [miembro]"]
[null,"1;2","co-svsp-core_2017-12-31:TipoDeDocumentoDeudorCxC","Tipo de documento del deudor",null,null,{"$f":"IF('800111a - Nota. Detalle de CxC.'!E185=\"\",\"\",'800111a - Nota. Detalle de CxC.'!E185)","v":""},{"$f":"IF('800111a - Nota. Detalle de CxC.'!E186=\"\",\"\",'800111a - Nota. Detalle de CxC.'!E186)","v":""},{"$f":"IF('800111a - Nota. Detalle de CxC.'!E187=\"\",\"\",'800111a - Nota. Detalle de CxC.'!E187)","v":""},{"$f":"IF('800111a - Nota. Detalle de CxC.'!E188=\"\",\"\",'800111a - Nota. Detalle de CxC.'!E188)","v":""},{"$f":"IF('800111a - Nota. Detalle de CxC.'!E189=\"\",\"\",'800111a - Nota. Detalle de CxC.'!E189)","v":""},{"$f":"IF('800111a - Nota. Detalle de CxC.'!E190=\"\",\"\",'800111a - Nota. Detalle de CxC.'!E190)","v":""},{"$f":"IF('800111a - Nota. Detalle de CxC.'!E191=\"\",\"\",'800111a - Nota. Detalle de CxC.'!E191)","v":""},{"$f":"IF('800111a - Nota. Detalle de CxC.'!E192=\"\",\"\",'800111a - Nota. Detalle de CxC.'!E192)","v":""},{"$f":"IF('800111a - Nota. Detalle de CxC.'!E193=\"\",\"\",'800111a - Nota. Detalle de CxC.'!E193)","v":""},{"$f":"IF('800111a - Nota. Detalle de CxC.'!E194=\"\",\"\",'800111a - Nota. Detalle de CxC.'!E194)","v":""},{"$f":"IF('800111a - Nota. Detalle de CxC.'!E195=\"\",\"\",'800111a - Nota. Detalle de CxC.'!E195)","v":""},{"$f":"IF('800111a - Nota. Detalle de CxC.'!E196=\"\",\"\",'800111a - Nota. Detalle de CxC.'!E196)","v":""},{"$f":"IF('800111a - Nota. Detalle de CxC.'!E197=\"\",\"\",'800111a - Nota. Detalle de CxC.'!E197)","v":""},{"$f":"IF('800111a - Nota. Detalle de CxC.'!E198=\"\",\"\",'800111a - Nota. Detalle de CxC.'!E198)","v":""},{"$f":"IF('800111a - Nota. Detalle de CxC.'!E199=\"\",\"\",'800111a - Nota. Detalle de CxC.'!E199)","v":""},{"$f":"IF('800111a - Nota. Detalle de CxC.'!E200=\"\",\"\",'800111a - Nota. Detalle de CxC.'!E200)","v":""},{"$f":"IF('800111a - Nota. Detalle de CxC.'!E201=\"\",\"\",'800111a - Nota. Detalle de CxC.'!E201)","v":""},{"$f":"IF('800111a - Nota. Detalle de CxC.'!E202=\"\",\"\",'800111a - Nota. Detalle de CxC.'!E202)","v":""},{"$f":"IF('800111a - Nota. Detalle de CxC.'!E203=\"\",\"\",'800111a - Nota. Detalle de CxC.'!E203)","v":""},{"$f":"IF('800111a - Nota. Detalle de CxC.'!E204=\"\",\"\",'800111a - Nota. Detalle de CxC.'!E204)","v":""},{"$f":"IF('800111a - Nota. Detalle de CxC.'!E205=\"\",\"\",'800111a - Nota. Detalle de CxC.'!E205)","v":""},{"$f":"IF('800111a - Nota. Detalle de CxC.'!E206=\"\",\"\",'800111a - Nota. Detalle de CxC.'!E206)","v":""},{"$f":"IF('800111a - Nota. Detalle de CxC.'!E207=\"\",\"\",'800111a - Nota. Detalle de CxC.'!E207)","v":""},{"$f":"IF('800111a - Nota. Detalle de CxC.'!E208=\"\",\"\",'800111a - Nota. Detalle de CxC.'!E208)","v":""},{"$f":"IF('800111a - Nota. Detalle de CxC.'!E209=\"\",\"\",'800111a - Nota. Detalle de CxC.'!E209)","v":""},{"$f":"IF('800111a - Nota. Detalle de CxC.'!E210=\"\",\"\",'800111a - Nota. Detalle de CxC.'!E210)","v":""},{"$f":"IF('800111a - Nota. Detalle de CxC.'!E211=\"\",\"\",'800111a - Nota. Detalle de CxC.'!E211)","v":""},{"$f":"IF('800111a - Nota. Detalle de CxC.'!E212=\"\",\"\",'800111a - Nota. Detalle de CxC.'!E212)","v":""},{"$f":"IF('800111a - Nota. Detalle de CxC.'!E213=\"\",\"\",'800111a - Nota. Detalle de CxC.'!E213)","v":""},{"$f":"IF('800111a - Nota. Detalle de CxC.'!E214=\"\",\"\",'800111a - Nota. Detalle de CxC.'!E214)","v":""},{"$f":"IF('800111a - Nota. Detalle de CxC.'!E215=\"\",\"\",'800111a - Nota. Detalle de CxC.'!E215)","v":""},{"$f":"IF('800111a - Nota. Detalle de CxC.'!E216=\"\",\"\",'800111a - Nota. Detalle de CxC.'!E216)","v":""},{"$f":"IF('800111a - Nota. Detalle de CxC.'!E217=\"\",\"\",'800111a - Nota. Detalle de CxC.'!E217)","v":""},{"$f":"IF('800111a - Nota. Detalle de CxC.'!E218=\"\",\"\",'800111a - Nota. Detalle de CxC.'!E218)","v":""},{"$f":"IF('800111a - Nota. Detalle de CxC.'!E219=\"\",\"\",'800111a - Nota. Detalle de CxC.'!E219)","v":""},{"$f":"IF('800111a - Nota. Detalle de CxC.'!E220=\"\",\"\",'800111a - Nota. Detalle de CxC.'!E220)","v":""},{"$f":"IF('800111a - Nota. Detalle de CxC.'!E221=\"\",\"\",'800111a - Nota. Detalle de CxC.'!E221)","v":""},{"$f":"IF('800111a - Nota. Detalle de CxC.'!E222=\"\",\"\",'800111a - Nota. Detalle de CxC.'!E222)","v":""},{"$f":"IF('800111a - Nota. Detalle de CxC.'!E223=\"\",\"\",'800111a - Nota. Detalle de CxC.'!E223)","v":""},{"$f":"IF('800111a - Nota. Detalle de CxC.'!E224=\"\",\"\",'800111a - Nota. Detalle de CxC.'!E224)","v":""},{"$f":"IF('800111a - Nota. Detalle de CxC.'!E225=\"\",\"\",'800111a - Nota. Detalle de CxC.'!E225)","v":""},{"$f":"IF('800111a - Nota. Detalle de CxC.'!E226=\"\",\"\",'800111a - Nota. Detalle de CxC.'!E226)","v":""},{"$f":"IF('800111a - Nota. Detalle de CxC.'!E227=\"\",\"\",'800111a - Nota. Detalle de CxC.'!E227)","v":""},{"$f":"IF('800111a - Nota. Detalle de CxC.'!E228=\"\",\"\",'800111a - Nota. Detalle de CxC.'!E228)","v":""},{"$f":"IF('800111a - Nota. Detalle de CxC.'!E229=\"\",\"\",'800111a - Nota. Detalle de CxC.'!E229)","v":""},{"$f":"IF('800111a - Nota. Detalle de CxC.'!E230=\"\",\"\",'800111a - Nota. Detalle de CxC.'!E230)","v":""},{"$f":"IF('800111a - Nota. Detalle de CxC.'!E231=\"\",\"\",'800111a - Nota. Detalle de CxC.'!E231)","v":""},{"$f":"IF('800111a - Nota. Detalle de CxC.'!E232=\"\",\"\",'800111a - Nota. Detalle de CxC.'!E232)","v":""},{"$f":"IF('800111a - Nota. Detalle de CxC.'!E233=\"\",\"\",'800111a - Nota. Detalle de CxC.'!E233)","v":""},{"$f":"IF('800111a - Nota. Detalle de CxC.'!E234=\"\",\"\",'800111a - Nota. Detalle de CxC.'!E234)","v":""},null,null,null,{"$f":"IF('800111a - Nota. Detalle de CxC.'!E238=\"\",\"\",'800111a - Nota. Detalle de CxC.'!E238)","v":""},{"$f":"IF('800111a - Nota. Detalle de CxC.'!E239=\"\",\"\",'800111a - Nota. Detalle de CxC.'!E239)","v":""},{"$f":"IF('800111a - Nota. Detalle de CxC.'!E240=\"\",\"\",'800111a - Nota. Detalle de CxC.'!E240)","v":""},{"$f":"IF('800111a - Nota. Detalle de CxC.'!E241=\"\",\"\",'800111a - Nota. Detalle de CxC.'!E241)","v":""},{"$f":"IF('800111a - Nota. Detalle de CxC.'!E242=\"\",\"\",'800111a - Nota. Detalle de CxC.'!E242)","v":""},{"$f":"IF('800111a - Nota. Detalle de CxC.'!E243=\"\",\"\",'800111a - Nota. Detalle de CxC.'!E243)","v":""},{"$f":"IF('800111a - Nota. Detalle de CxC.'!E244=\"\",\"\",'800111a - Nota. Detalle de CxC.'!E244)","v":""},{"$f":"IF('800111a - Nota. Detalle de CxC.'!E245=\"\",\"\",'800111a - Nota. Detalle de CxC.'!E245)","v":""},{"$f":"IF('800111a - Nota. Detalle de CxC.'!E246=\"\",\"\",'800111a - Nota. Detalle de CxC.'!E246)","v":""},{"$f":"IF('800111a - Nota. Detalle de CxC.'!E247=\"\",\"\",'800111a - Nota. Detalle de CxC.'!E247)","v":""},{"$f":"IF('800111a - Nota. Detalle de CxC.'!E248=\"\",\"\",'800111a - Nota. Detalle de CxC.'!E248)","v":""},{"$f":"IF('800111a - Nota. Detalle de CxC.'!E249=\"\",\"\",'800111a - Nota. Detalle de CxC.'!E249)","v":""},{"$f":"IF('800111a - Nota. Detalle de CxC.'!E250=\"\",\"\",'800111a - Nota. Detalle de CxC.'!E250)","v":""},{"$f":"IF('800111a - Nota. Detalle de CxC.'!E251=\"\",\"\",'800111a - Nota. Detalle de CxC.'!E251)","v":""},{"$f":"IF('800111a - Nota. Detalle de CxC.'!E252=\"\",\"\",'800111a - Nota. Detalle de CxC.'!E252)","v":""},{"$f":"IF('800111a - Nota. Detalle de CxC.'!E253=\"\",\"\",'800111a - Nota. Detalle de CxC.'!E253)","v":""},{"$f":"IF('800111a - Nota. Detalle de CxC.'!E254=\"\",\"\",'800111a - Nota. Detalle de CxC.'!E254)","v":""},{"$f":"IF('800111a - Nota. Detalle de CxC.'!E255=\"\",\"\",'800111a - Nota. Detalle de CxC.'!E255)","v":""},{"$f":"IF('800111a - Nota. Detalle de CxC.'!E256=\"\",\"\",'800111a - Nota. Detalle de CxC.'!E256)","v":""},{"$f":"IF('800111a - Nota. Detalle de CxC.'!E257=\"\",\"\",'800111a - Nota. Detalle de CxC.'!E257)","v":""},{"$f":"IF('800111a - Nota. Detalle de CxC.'!E258=\"\",\"\",'800111a - Nota. Detalle de CxC.'!E258)","v":""},{"$f":"IF('800111a - Nota. Detalle de CxC.'!E259=\"\",\"\",'800111a - Nota. Detalle de CxC.'!E259)","v":""},{"$f":"IF('800111a - Nota. Detalle de CxC.'!E260=\"\",\"\",'800111a - Nota. Detalle de CxC.'!E260)","v":""},{"$f":"IF('800111a - Nota. Detalle de CxC.'!E261=\"\",\"\",'800111a - Nota. Detalle de CxC.'!E261)","v":""},{"$f":"IF('800111a - Nota. Detalle de CxC.'!E262=\"\",\"\",'800111a - Nota. Detalle de CxC.'!E262)","v":""},{"$f":"IF('800111a - Nota. Detalle de CxC.'!E263=\"\",\"\",'800111a - Nota. Detalle de CxC.'!E263)","v":""},{"$f":"IF('800111a - Nota. Detalle de CxC.'!E264=\"\",\"\",'800111a - Nota. Detalle de CxC.'!E264)","v":""},{"$f":"IF('800111a - Nota. Detalle de CxC.'!E265=\"\",\"\",'800111a - Nota. Detalle de CxC.'!E265)","v":""},{"$f":"IF('800111a - Nota. Detalle de CxC.'!E266=\"\",\"\",'800111a - Nota. Detalle de CxC.'!E266)","v":""},{"$f":"IF('800111a - Nota. Detalle de CxC.'!E267=\"\",\"\",'800111a - Nota. Detalle de CxC.'!E267)","v":""},{"$f":"IF('800111a - Nota. Detalle de CxC.'!E268=\"\",\"\",'800111a - Nota. Detalle de CxC.'!E268)","v":""},{"$f":"IF('800111a - Nota. Detalle de CxC.'!E269=\"\",\"\",'800111a - Nota. Detalle de CxC.'!E269)","v":""},{"$f":"IF('800111a - Nota. Detalle de CxC.'!E270=\"\",\"\",'800111a - Nota. Detalle de CxC.'!E270)","v":""},{"$f":"IF('800111a - Nota. Detalle de CxC.'!E271=\"\",\"\",'800111a - Nota. Detalle de CxC.'!E271)","v":""},{"$f":"IF('800111a - Nota. Detalle de CxC.'!E272=\"\",\"\",'800111a - Nota. Detalle de CxC.'!E272)","v":""},{"$f":"IF('800111a - Nota. Detalle de CxC.'!E273=\"\",\"\",'800111a - Nota. Detalle de CxC.'!E273)","v":""},{"$f":"IF('800111a - Nota. Detalle de CxC.'!E274=\"\",\"\",'800111a - Nota. Detalle de CxC.'!E274)","v":""},{"$f":"IF('800111a - Nota. Detalle de CxC.'!E275=\"\",\"\",'800111a - Nota. Detalle de CxC.'!E275)","v":""},{"$f":"IF('800111a - Nota. Detalle de CxC.'!E276=\"\",\"\",'800111a - Nota. Detalle de CxC.'!E276)","v":""},{"$f":"IF('800111a - Nota. Detalle de CxC.'!E277=\"\",\"\",'800111a - Nota. Detalle de CxC.'!E277)","v":""},{"$f":"IF('800111a - Nota. Detalle de CxC.'!E278=\"\",\"\",'800111a - Nota. Detalle de CxC.'!E278)","v":""},{"$f":"IF('800111a - Nota. Detalle de CxC.'!E279=\"\",\"\",'800111a - Nota. Detalle de CxC.'!E279)","v":""},{"$f":"IF('800111a - Nota. Detalle de CxC.'!E280=\"\",\"\",'800111a - Nota. Detalle de CxC.'!E280)","v":""},{"$f":"IF('800111a - Nota. Detalle de CxC.'!E281=\"\",\"\",'800111a - Nota. Detalle de CxC.'!E281)","v":""},{"$f":"IF('800111a - Nota. Detalle de CxC.'!E282=\"\",\"\",'800111a - Nota. Detalle de CxC.'!E282)","v":""},{"$f":"IF('800111a - Nota. Detalle de CxC.'!E283=\"\",\"\",'800111a - Nota. Detalle de CxC.'!E283)","v":""},{"$f":"IF('800111a - Nota. Detalle de CxC.'!E284=\"\",\"\",'800111a - Nota. Detalle de CxC.'!E284)","v":""},{"$f":"IF('800111a - Nota. Detalle de CxC.'!E285=\"\",\"\",'800111a - Nota. Detalle de CxC.'!E285)","v":""},{"$f":"IF('800111a - Nota. Detalle de CxC.'!E286=\"\",\"\",'800111a - Nota. Detalle de CxC.'!E286)","v":""},{"$f":"IF('800111a - Nota. Detalle de CxC.'!E287=\"\",\"\",'800111a - Nota. Detalle de CxC.'!E287)","v":""},null,null,null,{"$f":"IF('800111a - Nota. Detalle de CxC.'!E291=\"\",\"\",'800111a - Nota. Detalle de CxC.'!E291)","v":""},{"$f":"IF('800111a - Nota. Detalle de CxC.'!E292=\"\",\"\",'800111a - Nota. Detalle de CxC.'!E292)","v":""},{"$f":"IF('800111a - Nota. Detalle de CxC.'!E293=\"\",\"\",'800111a - Nota. Detalle de CxC.'!E293)","v":""},{"$f":"IF('800111a - Nota. Detalle de CxC.'!E294=\"\",\"\",'800111a - Nota. Detalle de CxC.'!E294)","v":""},{"$f":"IF('800111a - Nota. Detalle de CxC.'!E295=\"\",\"\",'800111a - Nota. Detalle de CxC.'!E295)","v":""},{"$f":"IF('800111a - Nota. Detalle de CxC.'!E296=\"\",\"\",'800111a - Nota. Detalle de CxC.'!E296)","v":""},{"$f":"IF('800111a - Nota. Detalle de CxC.'!E297=\"\",\"\",'800111a - Nota. Detalle de CxC.'!E297)","v":""},{"$f":"IF('800111a - Nota. Detalle de CxC.'!E298=\"\",\"\",'800111a - Nota. Detalle de CxC.'!E298)","v":""},{"$f":"IF('800111a - Nota. Detalle de CxC.'!E299=\"\",\"\",'800111a - Nota. Detalle de CxC.'!E299)","v":""},{"$f":"IF('800111a - Nota. Detalle de CxC.'!E300=\"\",\"\",'800111a - Nota. Detalle de CxC.'!E300)","v":""},{"$f":"IF('800111a - Nota. Detalle de CxC.'!E301=\"\",\"\",'800111a - Nota. Detalle de CxC.'!E301)","v":""},{"$f":"IF('800111a - Nota. Detalle de CxC.'!E302=\"\",\"\",'800111a - Nota. Detalle de CxC.'!E302)","v":""},{"$f":"IF('800111a - Nota. Detalle de CxC.'!E303=\"\",\"\",'800111a - Nota. Detalle de CxC.'!E303)","v":""},{"$f":"IF('800111a - Nota. Detalle de CxC.'!E304=\"\",\"\",'800111a - Nota. Detalle de CxC.'!E304)","v":""},{"$f":"IF('800111a - Nota. Detalle de CxC.'!E305=\"\",\"\",'800111a - Nota. Detalle de CxC.'!E305)","v":""},{"$f":"IF('800111a - Nota. Detalle de CxC.'!E306=\"\",\"\",'800111a - Nota. Detalle de CxC.'!E306)","v":""},{"$f":"IF('800111a - Nota. Detalle de CxC.'!E307=\"\",\"\",'800111a - Nota. Detalle de CxC.'!E307)","v":""},{"$f":"IF('800111a - Nota. Detalle de CxC.'!E308=\"\",\"\",'800111a - Nota. Detalle de CxC.'!E308)","v":""},{"$f":"IF('800111a - Nota. Detalle de CxC.'!E309=\"\",\"\",'800111a - Nota. Detalle de CxC.'!E309)","v":""},{"$f":"IF('800111a - Nota. Detalle de CxC.'!E310=\"\",\"\",'800111a - Nota. Detalle de CxC.'!E310)","v":""},{"$f":"IF('800111a - Nota. Detalle de CxC.'!E311=\"\",\"\",'800111a - Nota. Detalle de CxC.'!E311)","v":""},{"$f":"IF('800111a - Nota. Detalle de CxC.'!E312=\"\",\"\",'800111a - Nota. Detalle de CxC.'!E312)","v":""},{"$f":"IF('800111a - Nota. Detalle de CxC.'!E313=\"\",\"\",'800111a - Nota. Detalle de CxC.'!E313)","v":""},{"$f":"IF('800111a - Nota. Detalle de CxC.'!E314=\"\",\"\",'800111a - Nota. Detalle de CxC.'!E314)","v":""},{"$f":"IF('800111a - Nota. Detalle de CxC.'!E315=\"\",\"\",'800111a - Nota. Detalle de CxC.'!E315)","v":""},{"$f":"IF('800111a - Nota. Detalle de CxC.'!E316=\"\",\"\",'800111a - Nota. Detalle de CxC.'!E316)","v":""},{"$f":"IF('800111a - Nota. Detalle de CxC.'!E317=\"\",\"\",'800111a - Nota. Detalle de CxC.'!E317)","v":""},{"$f":"IF('800111a - Nota. Detalle de CxC.'!E318=\"\",\"\",'800111a - Nota. Detalle de CxC.'!E318)","v":""},{"$f":"IF('800111a - Nota. Detalle de CxC.'!E319=\"\",\"\",'800111a - Nota. Detalle de CxC.'!E319)","v":""},{"$f":"IF('800111a - Nota. Detalle de CxC.'!E320=\"\",\"\",'800111a - Nota. Detalle de CxC.'!E320)","v":""},{"$f":"IF('800111a - Nota. Detalle de CxC.'!E321=\"\",\"\",'800111a - Nota. Detalle de CxC.'!E321)","v":""},{"$f":"IF('800111a - Nota. Detalle de CxC.'!E322=\"\",\"\",'800111a - Nota. Detalle de CxC.'!E322)","v":""},{"$f":"IF('800111a - Nota. Detalle de CxC.'!E323=\"\",\"\",'800111a - Nota. Detalle de CxC.'!E323)","v":""},{"$f":"IF('800111a - Nota. Detalle de CxC.'!E324=\"\",\"\",'800111a - Nota. Detalle de CxC.'!E324)","v":""},{"$f":"IF('800111a - Nota. Detalle de CxC.'!E325=\"\",\"\",'800111a - Nota. Detalle de CxC.'!E325)","v":""},{"$f":"IF('800111a - Nota. Detalle de CxC.'!E326=\"\",\"\",'800111a - Nota. Detalle de CxC.'!E326)","v":""},{"$f":"IF('800111a - Nota. Detalle de CxC.'!E327=\"\",\"\",'800111a - Nota. Detalle de CxC.'!E327)","v":""},{"$f":"IF('800111a - Nota. Detalle de CxC.'!E328=\"\",\"\",'800111a - Nota. Detalle de CxC.'!E328)","v":""},{"$f":"IF('800111a - Nota. Detalle de CxC.'!E329=\"\",\"\",'800111a - Nota. Detalle de CxC.'!E329)","v":""},{"$f":"IF('800111a - Nota. Detalle de CxC.'!E330=\"\",\"\",'800111a - Nota. Detalle de CxC.'!E330)","v":""},{"$f":"IF('800111a - Nota. Detalle de CxC.'!E331=\"\",\"\",'800111a - Nota. Detalle de CxC.'!E331)","v":""},{"$f":"IF('800111a - Nota. Detalle de CxC.'!E332=\"\",\"\",'800111a - Nota. Detalle de CxC.'!E332)","v":""},{"$f":"IF('800111a - Nota. Detalle de CxC.'!E333=\"\",\"\",'800111a - Nota. Detalle de CxC.'!E333)","v":""},{"$f":"IF('800111a - Nota. Detalle de CxC.'!E334=\"\",\"\",'800111a - Nota. Detalle de CxC.'!E334)","v":""},{"$f":"IF('800111a - Nota. Detalle de CxC.'!E335=\"\",\"\",'800111a - Nota. Detalle de CxC.'!E335)","v":""},{"$f":"IF('800111a - Nota. Detalle de CxC.'!E336=\"\",\"\",'800111a - Nota. Detalle de CxC.'!E336)","v":""},{"$f":"IF('800111a - Nota. Detalle de CxC.'!E337=\"\",\"\",'800111a - Nota. Detalle de CxC.'!E337)","v":""},{"$f":"IF('800111a - Nota. Detalle de CxC.'!E338=\"\",\"\",'800111a - Nota. Detalle de CxC.'!E338)","v":""},{"$f":"IF('800111a - Nota. Detalle de CxC.'!E339=\"\",\"\",'800111a - Nota. Detalle de CxC.'!E339)","v":""},{"$f":"IF('800111a - Nota. Detalle de CxC.'!E340=\"\",\"\",'800111a - Nota. Detalle de CxC.'!E340)","v":""}]
[null,"1;2","co-svsp-core_2017-12-31:NumeroIdentificacionDeudorCxC","Número de identificación del deudor",null,null,{"$f":"IF('800111a - Nota. Detalle de CxC.'!F185=\"\",\"\",'800111a - Nota. Detalle de CxC.'!F185)","v":""},{"$f":"IF('800111a - Nota. Detalle de CxC.'!F186=\"\",\"\",'800111a - Nota. Detalle de CxC.'!F186)","v":""},{"$f":"IF('800111a - Nota. Detalle de CxC.'!F187=\"\",\"\",'800111a - Nota. Detalle de CxC.'!F187)","v":""},{"$f":"IF('800111a - Nota. Detalle de CxC.'!F188=\"\",\"\",'800111a - Nota. Detalle de CxC.'!F188)","v":""},{"$f":"IF('800111a - Nota. Detalle de CxC.'!F189=\"\",\"\",'800111a - Nota. Detalle de CxC.'!F189)","v":""},{"$f":"IF('800111a - Nota. Detalle de CxC.'!F190=\"\",\"\",'800111a - Nota. Detalle de CxC.'!F190)","v":""},{"$f":"IF('800111a - Nota. Detalle de CxC.'!F191=\"\",\"\",'800111a - Nota. Detalle de CxC.'!F191)","v":""},{"$f":"IF('800111a - Nota. Detalle de CxC.'!F192=\"\",\"\",'800111a - Nota. Detalle de CxC.'!F192)","v":""},{"$f":"IF('800111a - Nota. Detalle de CxC.'!F193=\"\",\"\",'800111a - Nota. Detalle de CxC.'!F193)","v":""},{"$f":"IF('800111a - Nota. Detalle de CxC.'!F194=\"\",\"\",'800111a - Nota. Detalle de CxC.'!F194)","v":""},{"$f":"IF('800111a - Nota. Detalle de CxC.'!F195=\"\",\"\",'800111a - Nota. Detalle de CxC.'!F195)","v":""},{"$f":"IF('800111a - Nota. Detalle de CxC.'!F196=\"\",\"\",'800111a - Nota. Detalle de CxC.'!F196)","v":""},{"$f":"IF('800111a - Nota. Detalle de CxC.'!F197=\"\",\"\",'800111a - Nota. Detalle de CxC.'!F197)","v":""},{"$f":"IF('800111a - Nota. Detalle de CxC.'!F198=\"\",\"\",'800111a - Nota. Detalle de CxC.'!F198)","v":""},{"$f":"IF('800111a - Nota. Detalle de CxC.'!F199=\"\",\"\",'800111a - Nota. Detalle de CxC.'!F199)","v":""},{"$f":"IF('800111a - Nota. Detalle de CxC.'!F200=\"\",\"\",'800111a - Nota. Detalle de CxC.'!F200)","v":""},{"$f":"IF('800111a - Nota. Detalle de CxC.'!F201=\"\",\"\",'800111a - Nota. Detalle de CxC.'!F201)","v":""},{"$f":"IF('800111a - Nota. Detalle de CxC.'!F202=\"\",\"\",'800111a - Nota. Detalle de CxC.'!F202)","v":""},{"$f":"IF('800111a - Nota. Detalle de CxC.'!F203=\"\",\"\",'800111a - Nota. Detalle de CxC.'!F203)","v":""},{"$f":"IF('800111a - Nota. Detalle de CxC.'!F204=\"\",\"\",'800111a - Nota. Detalle de CxC.'!F204)","v":""},{"$f":"IF('800111a - Nota. Detalle de CxC.'!F205=\"\",\"\",'800111a - Nota. Detalle de CxC.'!F205)","v":""},{"$f":"IF('800111a - Nota. Detalle de CxC.'!F206=\"\",\"\",'800111a - Nota. Detalle de CxC.'!F206)","v":""},{"$f":"IF('800111a - Nota. Detalle de CxC.'!F207=\"\",\"\",'800111a - Nota. Detalle de CxC.'!F207)","v":""},{"$f":"IF('800111a - Nota. Detalle de CxC.'!F208=\"\",\"\",'800111a - Nota. Detalle de CxC.'!F208)","v":""},{"$f":"IF('800111a - Nota. Detalle de CxC.'!F209=\"\",\"\",'800111a - Nota. Detalle de CxC.'!F209)","v":""},{"$f":"IF('800111a - Nota. Detalle de CxC.'!F210=\"\",\"\",'800111a - Nota. Detalle de CxC.'!F210)","v":""},{"$f":"IF('800111a - Nota. Detalle de CxC.'!F211=\"\",\"\",'800111a - Nota. Detalle de CxC.'!F211)","v":""},{"$f":"IF('800111a - Nota. Detalle de CxC.'!F212=\"\",\"\",'800111a - Nota. Detalle de CxC.'!F212)","v":""},{"$f":"IF('800111a - Nota. Detalle de CxC.'!F213=\"\",\"\",'800111a - Nota. Detalle de CxC.'!F213)","v":""},{"$f":"IF('800111a - Nota. Detalle de CxC.'!F214=\"\",\"\",'800111a - Nota. Detalle de CxC.'!F214)","v":""},{"$f":"IF('800111a - Nota. Detalle de CxC.'!F215=\"\",\"\",'800111a - Nota. Detalle de CxC.'!F215)","v":""},{"$f":"IF('800111a - Nota. Detalle de CxC.'!F216=\"\",\"\",'800111a - Nota. Detalle de CxC.'!F216)","v":""},{"$f":"IF('800111a - Nota. Detalle de CxC.'!F217=\"\",\"\",'800111a - Nota. Detalle de CxC.'!F217)","v":""},{"$f":"IF('800111a - Nota. Detalle de CxC.'!F218=\"\",\"\",'800111a - Nota. Detalle de CxC.'!F218)","v":""},{"$f":"IF('800111a - Nota. Detalle de CxC.'!F219=\"\",\"\",'800111a - Nota. Detalle de CxC.'!F219)","v":""},{"$f":"IF('800111a - Nota. Detalle de CxC.'!F220=\"\",\"\",'800111a - Nota. Detalle de CxC.'!F220)","v":""},{"$f":"IF('800111a - Nota. Detalle de CxC.'!F221=\"\",\"\",'800111a - Nota. Detalle de CxC.'!F221)","v":""},{"$f":"IF('800111a - Nota. Detalle de CxC.'!F222=\"\",\"\",'800111a - Nota. Detalle de CxC.'!F222)","v":""},{"$f":"IF('800111a - Nota. Detalle de CxC.'!F223=\"\",\"\",'800111a - Nota. Detalle de CxC.'!F223)","v":""},{"$f":"IF('800111a - Nota. Detalle de CxC.'!F224=\"\",\"\",'800111a - Nota. Detalle de CxC.'!F224)","v":""},{"$f":"IF('800111a - Nota. Detalle de CxC.'!F225=\"\",\"\",'800111a - Nota. Detalle de CxC.'!F225)","v":""},{"$f":"IF('800111a - Nota. Detalle de CxC.'!F226=\"\",\"\",'800111a - Nota. Detalle de CxC.'!F226)","v":""},{"$f":"IF('800111a - Nota. Detalle de CxC.'!F227=\"\",\"\",'800111a - Nota. Detalle de CxC.'!F227)","v":""},{"$f":"IF('800111a - Nota. Detalle de CxC.'!F228=\"\",\"\",'800111a - Nota. Detalle de CxC.'!F228)","v":""},{"$f":"IF('800111a - Nota. Detalle de CxC.'!F229=\"\",\"\",'800111a - Nota. Detalle de CxC.'!F229)","v":""},{"$f":"IF('800111a - Nota. Detalle de CxC.'!F230=\"\",\"\",'800111a - Nota. Detalle de CxC.'!F230)","v":""},{"$f":"IF('800111a - Nota. Detalle de CxC.'!F231=\"\",\"\",'800111a - Nota. Detalle de CxC.'!F231)","v":""},{"$f":"IF('800111a - Nota. Detalle de CxC.'!F232=\"\",\"\",'800111a - Nota. Detalle de CxC.'!F232)","v":""},{"$f":"IF('800111a - Nota. Detalle de CxC.'!F233=\"\",\"\",'800111a - Nota. Detalle de CxC.'!F233)","v":""},{"$f":"IF('800111a - Nota. Detalle de CxC.'!F234=\"\",\"\",'800111a - Nota. Detalle de CxC.'!F234)","v":""},null,null,null,{"$f":"IF('800111a - Nota. Detalle de CxC.'!F238=\"\",\"\",'800111a - Nota. Detalle de CxC.'!F238)","v":""},{"$f":"IF('800111a - Nota. Detalle de CxC.'!F239=\"\",\"\",'800111a - Nota. Detalle de CxC.'!F239)","v":""},{"$f":"IF('800111a - Nota. Detalle de CxC.'!F240=\"\",\"\",'800111a - Nota. Detalle de CxC.'!F240)","v":""},{"$f":"IF('800111a - Nota. Detalle de CxC.'!F241=\"\",\"\",'800111a - Nota. Detalle de CxC.'!F241)","v":""},{"$f":"IF('800111a - Nota. Detalle de CxC.'!F242=\"\",\"\",'800111a - Nota. Detalle de CxC.'!F242)","v":""},{"$f":"IF('800111a - Nota. Detalle de CxC.'!F243=\"\",\"\",'800111a - Nota. Detalle de CxC.'!F243)","v":""},{"$f":"IF('800111a - Nota. Detalle de CxC.'!F244=\"\",\"\",'800111a - Nota. Detalle de CxC.'!F244)","v":""},{"$f":"IF('800111a - Nota. Detalle de CxC.'!F245=\"\",\"\",'800111a - Nota. Detalle de CxC.'!F245)","v":""},{"$f":"IF('800111a - Nota. Detalle de CxC.'!F246=\"\",\"\",'800111a - Nota. Detalle de CxC.'!F246)","v":""},{"$f":"IF('800111a - Nota. Detalle de CxC.'!F247=\"\",\"\",'800111a - Nota. Detalle de CxC.'!F247)","v":""},{"$f":"IF('800111a - Nota. Detalle de CxC.'!F248=\"\",\"\",'800111a - Nota. Detalle de CxC.'!F248)","v":""},{"$f":"IF('800111a - Nota. Detalle de CxC.'!F249=\"\",\"\",'800111a - Nota. Detalle de CxC.'!F249)","v":""},{"$f":"IF('800111a - Nota. Detalle de CxC.'!F250=\"\",\"\",'800111a - Nota. Detalle de CxC.'!F250)","v":""},{"$f":"IF('800111a - Nota. Detalle de CxC.'!F251=\"\",\"\",'800111a - Nota. Detalle de CxC.'!F251)","v":""},{"$f":"IF('800111a - Nota. Detalle de CxC.'!F252=\"\",\"\",'800111a - Nota. Detalle de CxC.'!F252)","v":""},{"$f":"IF('800111a - Nota. Detalle de CxC.'!F253=\"\",\"\",'800111a - Nota. Detalle de CxC.'!F253)","v":""},{"$f":"IF('800111a - Nota. Detalle de CxC.'!F254=\"\",\"\",'800111a - Nota. Detalle de CxC.'!F254)","v":""},{"$f":"IF('800111a - Nota. Detalle de CxC.'!F255=\"\",\"\",'800111a - Nota. Detalle de CxC.'!F255)","v":""},{"$f":"IF('800111a - Nota. Detalle de CxC.'!F256=\"\",\"\",'800111a - Nota. Detalle de CxC.'!F256)","v":""},{"$f":"IF('800111a - Nota. Detalle de CxC.'!F257=\"\",\"\",'800111a - Nota. Detalle de CxC.'!F257)","v":""},{"$f":"IF('800111a - Nota. Detalle de CxC.'!F258=\"\",\"\",'800111a - Nota. Detalle de CxC.'!F258)","v":""},{"$f":"IF('800111a - Nota. Detalle de CxC.'!F259=\"\",\"\",'800111a - Nota. Detalle de CxC.'!F259)","v":""},{"$f":"IF('800111a - Nota. Detalle de CxC.'!F260=\"\",\"\",'800111a - Nota. Detalle de CxC.'!F260)","v":""},{"$f":"IF('800111a - Nota. Detalle de CxC.'!F261=\"\",\"\",'800111a - Nota. Detalle de CxC.'!F261)","v":""},{"$f":"IF('800111a - Nota. Detalle de CxC.'!F262=\"\",\"\",'800111a - Nota. Detalle de CxC.'!F262)","v":""},{"$f":"IF('800111a - Nota. Detalle de CxC.'!F263=\"\",\"\",'800111a - Nota. Detalle de CxC.'!F263)","v":""},{"$f":"IF('800111a - Nota. Detalle de CxC.'!F264=\"\",\"\",'800111a - Nota. Detalle de CxC.'!F264)","v":""},{"$f":"IF('800111a - Nota. Detalle de CxC.'!F265=\"\",\"\",'800111a - Nota. Detalle de CxC.'!F265)","v":""},{"$f":"IF('800111a - Nota. Detalle de CxC.'!F266=\"\",\"\",'800111a - Nota. Detalle de CxC.'!F266)","v":""},{"$f":"IF('800111a - Nota. Detalle de CxC.'!F267=\"\",\"\",'800111a - Nota. Detalle de CxC.'!F267)","v":""},{"$f":"IF('800111a - Nota. Detalle de CxC.'!F268=\"\",\"\",'800111a - Nota. Detalle de CxC.'!F268)","v":""},{"$f":"IF('800111a - Nota. Detalle de CxC.'!F269=\"\",\"\",'800111a - Nota. Detalle de CxC.'!F269)","v":""},{"$f":"IF('800111a - Nota. Detalle de CxC.'!F270=\"\",\"\",'800111a - Nota. Detalle de CxC.'!F270)","v":""},{"$f":"IF('800111a - Nota. Detalle de CxC.'!F271=\"\",\"\",'800111a - Nota. Detalle de CxC.'!F271)","v":""},{"$f":"IF('800111a - Nota. Detalle de CxC.'!F272=\"\",\"\",'800111a - Nota. Detalle de CxC.'!F272)","v":""},{"$f":"IF('800111a - Nota. Detalle de CxC.'!F273=\"\",\"\",'800111a - Nota. Detalle de CxC.'!F273)","v":""},{"$f":"IF('800111a - Nota. Detalle de CxC.'!F274=\"\",\"\",'800111a - Nota. Detalle de CxC.'!F274)","v":""},{"$f":"IF('800111a - Nota. Detalle de CxC.'!F275=\"\",\"\",'800111a - Nota. Detalle de CxC.'!F275)","v":""},{"$f":"IF('800111a - Nota. Detalle de CxC.'!F276=\"\",\"\",'800111a - Nota. Detalle de CxC.'!F276)","v":""},{"$f":"IF('800111a - Nota. Detalle de CxC.'!F277=\"\",\"\",'800111a - Nota. Detalle de CxC.'!F277)","v":""},{"$f":"IF('800111a - Nota. Detalle de CxC.'!F278=\"\",\"\",'800111a - Nota. Detalle de CxC.'!F278)","v":""},{"$f":"IF('800111a - Nota. Detalle de CxC.'!F279=\"\",\"\",'800111a - Nota. Detalle de CxC.'!F279)","v":""},{"$f":"IF('800111a - Nota. Detalle de CxC.'!F280=\"\",\"\",'800111a - Nota. Detalle de CxC.'!F280)","v":""},{"$f":"IF('800111a - Nota. Detalle de CxC.'!F281=\"\",\"\",'800111a - Nota. Detalle de CxC.'!F281)","v":""},{"$f":"IF('800111a - Nota. Detalle de CxC.'!F282=\"\",\"\",'800111a - Nota. Detalle de CxC.'!F282)","v":""},{"$f":"IF('800111a - Nota. Detalle de CxC.'!F283=\"\",\"\",'800111a - Nota. Detalle de CxC.'!F283)","v":""},{"$f":"IF('800111a - Nota. Detalle de CxC.'!F284=\"\",\"\",'800111a - Nota. Detalle de CxC.'!F284)","v":""},{"$f":"IF('800111a - Nota. Detalle de CxC.'!F285=\"\",\"\",'800111a - Nota. Detalle de CxC.'!F285)","v":""},{"$f":"IF('800111a - Nota. Detalle de CxC.'!F286=\"\",\"\",'800111a - Nota. Detalle de CxC.'!F286)","v":""},{"$f":"IF('800111a - Nota. Detalle de CxC.'!F287=\"\",\"\",'800111a - Nota. Detalle de CxC.'!F287)","v":""},null,null,null,{"$f":"IF('800111a - Nota. Detalle de CxC.'!F291=\"\",\"\",'800111a - Nota. Detalle de CxC.'!F291)","v":""},{"$f":"IF('800111a - Nota. Detalle de CxC.'!F292=\"\",\"\",'800111a - Nota. Detalle de CxC.'!F292)","v":""},{"$f":"IF('800111a - Nota. Detalle de CxC.'!F293=\"\",\"\",'800111a - Nota. Detalle de CxC.'!F293)","v":""},{"$f":"IF('800111a - Nota. Detalle de CxC.'!F294=\"\",\"\",'800111a - Nota. Detalle de CxC.'!F294)","v":""},{"$f":"IF('800111a - Nota. Detalle de CxC.'!F295=\"\",\"\",'800111a - Nota. Detalle de CxC.'!F295)","v":""},{"$f":"IF('800111a - Nota. Detalle de CxC.'!F296=\"\",\"\",'800111a - Nota. Detalle de CxC.'!F296)","v":""},{"$f":"IF('800111a - Nota. Detalle de CxC.'!F297=\"\",\"\",'800111a - Nota. Detalle de CxC.'!F297)","v":""},{"$f":"IF('800111a - Nota. Detalle de CxC.'!F298=\"\",\"\",'800111a - Nota. Detalle de CxC.'!F298)","v":""},{"$f":"IF('800111a - Nota. Detalle de CxC.'!F299=\"\",\"\",'800111a - Nota. Detalle de CxC.'!F299)","v":""},{"$f":"IF('800111a - Nota. Detalle de CxC.'!F300=\"\",\"\",'800111a - Nota. Detalle de CxC.'!F300)","v":""},{"$f":"IF('800111a - Nota. Detalle de CxC.'!F301=\"\",\"\",'800111a - Nota. Detalle de CxC.'!F301)","v":""},{"$f":"IF('800111a - Nota. Detalle de CxC.'!F302=\"\",\"\",'800111a - Nota. Detalle de CxC.'!F302)","v":""},{"$f":"IF('800111a - Nota. Detalle de CxC.'!F303=\"\",\"\",'800111a - Nota. Detalle de CxC.'!F303)","v":""},{"$f":"IF('800111a - Nota. Detalle de CxC.'!F304=\"\",\"\",'800111a - Nota. Detalle de CxC.'!F304)","v":""},{"$f":"IF('800111a - Nota. Detalle de CxC.'!F305=\"\",\"\",'800111a - Nota. Detalle de CxC.'!F305)","v":""},{"$f":"IF('800111a - Nota. Detalle de CxC.'!F306=\"\",\"\",'800111a - Nota. Detalle de CxC.'!F306)","v":""},{"$f":"IF('800111a - Nota. Detalle de CxC.'!F307=\"\",\"\",'800111a - Nota. Detalle de CxC.'!F307)","v":""},{"$f":"IF('800111a - Nota. Detalle de CxC.'!F308=\"\",\"\",'800111a - Nota. Detalle de CxC.'!F308)","v":""},{"$f":"IF('800111a - Nota. Detalle de CxC.'!F309=\"\",\"\",'800111a - Nota. Detalle de CxC.'!F309)","v":""},{"$f":"IF('800111a - Nota. Detalle de CxC.'!F310=\"\",\"\",'800111a - Nota. Detalle de CxC.'!F310)","v":""},{"$f":"IF('800111a - Nota. Detalle de CxC.'!F311=\"\",\"\",'800111a - Nota. Detalle de CxC.'!F311)","v":""},{"$f":"IF('800111a - Nota. Detalle de CxC.'!F312=\"\",\"\",'800111a - Nota. Detalle de CxC.'!F312)","v":""},{"$f":"IF('800111a - Nota. Detalle de CxC.'!F313=\"\",\"\",'800111a - Nota. Detalle de CxC.'!F313)","v":""},{"$f":"IF('800111a - Nota. Detalle de CxC.'!F314=\"\",\"\",'800111a - Nota. Detalle de CxC.'!F314)","v":""},{"$f":"IF('800111a - Nota. Detalle de CxC.'!F315=\"\",\"\",'800111a - Nota. Detalle de CxC.'!F315)","v":""},{"$f":"IF('800111a - Nota. Detalle de CxC.'!F316=\"\",\"\",'800111a - Nota. Detalle de CxC.'!F316)","v":""},{"$f":"IF('800111a - Nota. Detalle de CxC.'!F317=\"\",\"\",'800111a - Nota. Detalle de CxC.'!F317)","v":""},{"$f":"IF('800111a - Nota. Detalle de CxC.'!F318=\"\",\"\",'800111a - Nota. Detalle de CxC.'!F318)","v":""},{"$f":"IF('800111a - Nota. Detalle de CxC.'!F319=\"\",\"\",'800111a - Nota. Detalle de CxC.'!F319)","v":""},{"$f":"IF('800111a - Nota. Detalle de CxC.'!F320=\"\",\"\",'800111a - Nota. Detalle de CxC.'!F320)","v":""},{"$f":"IF('800111a - Nota. Detalle de CxC.'!F321=\"\",\"\",'800111a - Nota. Detalle de CxC.'!F321)","v":""},{"$f":"IF('800111a - Nota. Detalle de CxC.'!F322=\"\",\"\",'800111a - Nota. Detalle de CxC.'!F322)","v":""},{"$f":"IF('800111a - Nota. Detalle de CxC.'!F323=\"\",\"\",'800111a - Nota. Detalle de CxC.'!F323)","v":""},{"$f":"IF('800111a - Nota. Detalle de CxC.'!F324=\"\",\"\",'800111a - Nota. Detalle de CxC.'!F324)","v":""},{"$f":"IF('800111a - Nota. Detalle de CxC.'!F325=\"\",\"\",'800111a - Nota. Detalle de CxC.'!F325)","v":""},{"$f":"IF('800111a - Nota. Detalle de CxC.'!F326=\"\",\"\",'800111a - Nota. Detalle de CxC.'!F326)","v":""},{"$f":"IF('800111a - Nota. Detalle de CxC.'!F327=\"\",\"\",'800111a - Nota. Detalle de CxC.'!F327)","v":""},{"$f":"IF('800111a - Nota. Detalle de CxC.'!F328=\"\",\"\",'800111a - Nota. Detalle de CxC.'!F328)","v":""},{"$f":"IF('800111a - Nota. Detalle de CxC.'!F329=\"\",\"\",'800111a - Nota. Detalle de CxC.'!F329)","v":""},{"$f":"IF('800111a - Nota. Detalle de CxC.'!F330=\"\",\"\",'800111a - Nota. Detalle de CxC.'!F330)","v":""},{"$f":"IF('800111a - Nota. Detalle de CxC.'!F331=\"\",\"\",'800111a - Nota. Detalle de CxC.'!F331)","v":""},{"$f":"IF('800111a - Nota. Detalle de CxC.'!F332=\"\",\"\",'800111a - Nota. Detalle de CxC.'!F332)","v":""},{"$f":"IF('800111a - Nota. Detalle de CxC.'!F333=\"\",\"\",'800111a - Nota. Detalle de CxC.'!F333)","v":""},{"$f":"IF('800111a - Nota. Detalle de CxC.'!F334=\"\",\"\",'800111a - Nota. Detalle de CxC.'!F334)","v":""},{"$f":"IF('800111a - Nota. Detalle de CxC.'!F335=\"\",\"\",'800111a - Nota. Detalle de CxC.'!F335)","v":""},{"$f":"IF('800111a - Nota. Detalle de CxC.'!F336=\"\",\"\",'800111a - Nota. Detalle de CxC.'!F336)","v":""},{"$f":"IF('800111a - Nota. Detalle de CxC.'!F337=\"\",\"\",'800111a - Nota. Detalle de CxC.'!F337)","v":""},{"$f":"IF('800111a - Nota. Detalle de CxC.'!F338=\"\",\"\",'800111a - Nota. Detalle de CxC.'!F338)","v":""},{"$f":"IF('800111a - Nota. Detalle de CxC.'!F339=\"\",\"\",'800111a - Nota. Detalle de CxC.'!F339)","v":""},{"$f":"IF('800111a - Nota. Detalle de CxC.'!F340=\"\",\"\",'800111a - Nota. Detalle de CxC.'!F340)","v":""}]
[null,"1;2","co-svsp-core_2017-12-31:PrimerApellidoDeudorCxC","Primer apellido deudor",null,null,{"$f":"IF('800111a - Nota. Detalle de CxC.'!G185=\"\",\"\",'800111a - Nota. Detalle de CxC.'!G185)","v":""},{"$f":"IF('800111a - Nota. Detalle de CxC.'!G186=\"\",\"\",'800111a - Nota. Detalle de CxC.'!G186)","v":""},{"$f":"IF('800111a - Nota. Detalle de CxC.'!G187=\"\",\"\",'800111a - Nota. Detalle de CxC.'!G187)","v":""},{"$f":"IF('800111a - Nota. Detalle de CxC.'!G188=\"\",\"\",'800111a - Nota. Detalle de CxC.'!G188)","v":""},{"$f":"IF('800111a - Nota. Detalle de CxC.'!G189=\"\",\"\",'800111a - Nota. Detalle de CxC.'!G189)","v":""},{"$f":"IF('800111a - Nota. Detalle de CxC.'!G190=\"\",\"\",'800111a - Nota. Detalle de CxC.'!G190)","v":""},{"$f":"IF('800111a - Nota. Detalle de CxC.'!G191=\"\",\"\",'800111a - Nota. Detalle de CxC.'!G191)","v":""},{"$f":"IF('800111a - Nota. Detalle de CxC.'!G192=\"\",\"\",'800111a - Nota. Detalle de CxC.'!G192)","v":""},{"$f":"IF('800111a - Nota. Detalle de CxC.'!G193=\"\",\"\",'800111a - Nota. Detalle de CxC.'!G193)","v":""},{"$f":"IF('800111a - Nota. Detalle de CxC.'!G194=\"\",\"\",'800111a - Nota. Detalle de CxC.'!G194)","v":""},{"$f":"IF('800111a - Nota. Detalle de CxC.'!G195=\"\",\"\",'800111a - Nota. Detalle de CxC.'!G195)","v":""},{"$f":"IF('800111a - Nota. Detalle de CxC.'!G196=\"\",\"\",'800111a - Nota. Detalle de CxC.'!G196)","v":""},{"$f":"IF('800111a - Nota. Detalle de CxC.'!G197=\"\",\"\",'800111a - Nota. Detalle de CxC.'!G197)","v":""},{"$f":"IF('800111a - Nota. Detalle de CxC.'!G198=\"\",\"\",'800111a - Nota. Detalle de CxC.'!G198)","v":""},{"$f":"IF('800111a - Nota. Detalle de CxC.'!G199=\"\",\"\",'800111a - Nota. Detalle de CxC.'!G199)","v":""},{"$f":"IF('800111a - Nota. Detalle de CxC.'!G200=\"\",\"\",'800111a - Nota. Detalle de CxC.'!G200)","v":""},{"$f":"IF('800111a - Nota. Detalle de CxC.'!G201=\"\",\"\",'800111a - Nota. Detalle de CxC.'!G201)","v":""},{"$f":"IF('800111a - Nota. Detalle de CxC.'!G202=\"\",\"\",'800111a - Nota. Detalle de CxC.'!G202)","v":""},{"$f":"IF('800111a - Nota. Detalle de CxC.'!G203=\"\",\"\",'800111a - Nota. Detalle de CxC.'!G203)","v":""},{"$f":"IF('800111a - Nota. Detalle de CxC.'!G204=\"\",\"\",'800111a - Nota. Detalle de CxC.'!G204)","v":""},{"$f":"IF('800111a - Nota. Detalle de CxC.'!G205=\"\",\"\",'800111a - Nota. Detalle de CxC.'!G205)","v":""},{"$f":"IF('800111a - Nota. Detalle de CxC.'!G206=\"\",\"\",'800111a - Nota. Detalle de CxC.'!G206)","v":""},{"$f":"IF('800111a - Nota. Detalle de CxC.'!G207=\"\",\"\",'800111a - Nota. Detalle de CxC.'!G207)","v":""},{"$f":"IF('800111a - Nota. Detalle de CxC.'!G208=\"\",\"\",'800111a - Nota. Detalle de CxC.'!G208)","v":""},{"$f":"IF('800111a - Nota. Detalle de CxC.'!G209=\"\",\"\",'800111a - Nota. Detalle de CxC.'!G209)","v":""},{"$f":"IF('800111a - Nota. Detalle de CxC.'!G210=\"\",\"\",'800111a - Nota. Detalle de CxC.'!G210)","v":""},{"$f":"IF('800111a - Nota. Detalle de CxC.'!G211=\"\",\"\",'800111a - Nota. Detalle de CxC.'!G211)","v":""},{"$f":"IF('800111a - Nota. Detalle de CxC.'!G212=\"\",\"\",'800111a - Nota. Detalle de CxC.'!G212)","v":""},{"$f":"IF('800111a - Nota. Detalle de CxC.'!G213=\"\",\"\",'800111a - Nota. Detalle de CxC.'!G213)","v":""},{"$f":"IF('800111a - Nota. Detalle de CxC.'!G214=\"\",\"\",'800111a - Nota. Detalle de CxC.'!G214)","v":""},{"$f":"IF('800111a - Nota. Detalle de CxC.'!G215=\"\",\"\",'800111a - Nota. Detalle de CxC.'!G215)","v":""},{"$f":"IF('800111a - Nota. Detalle de CxC.'!G216=\"\",\"\",'800111a - Nota. Detalle de CxC.'!G216)","v":""},{"$f":"IF('800111a - Nota. Detalle de CxC.'!G217=\"\",\"\",'800111a - Nota. Detalle de CxC.'!G217)","v":""},{"$f":"IF('800111a - Nota. Detalle de CxC.'!G218=\"\",\"\",'800111a - Nota. Detalle de CxC.'!G218)","v":""},{"$f":"IF('800111a - Nota. Detalle de CxC.'!G219=\"\",\"\",'800111a - Nota. Detalle de CxC.'!G219)","v":""},{"$f":"IF('800111a - Nota. Detalle de CxC.'!G220=\"\",\"\",'800111a - Nota. Detalle de CxC.'!G220)","v":""},{"$f":"IF('800111a - Nota. Detalle de CxC.'!G221=\"\",\"\",'800111a - Nota. Detalle de CxC.'!G221)","v":""},{"$f":"IF('800111a - Nota. Detalle de CxC.'!G222=\"\",\"\",'800111a - Nota. Detalle de CxC.'!G222)","v":""},{"$f":"IF('800111a - Nota. Detalle de CxC.'!G223=\"\",\"\",'800111a - Nota. Detalle de CxC.'!G223)","v":""},{"$f":"IF('800111a - Nota. Detalle de CxC.'!G224=\"\",\"\",'800111a - Nota. Detalle de CxC.'!G224)","v":""},{"$f":"IF('800111a - Nota. Detalle de CxC.'!G225=\"\",\"\",'800111a - Nota. Detalle de CxC.'!G225)","v":""},{"$f":"IF('800111a - Nota. Detalle de CxC.'!G226=\"\",\"\",'800111a - Nota. Detalle de CxC.'!G226)","v":""},{"$f":"IF('800111a - Nota. Detalle de CxC.'!G227=\"\",\"\",'800111a - Nota. Detalle de CxC.'!G227)","v":""},{"$f":"IF('800111a - Nota. Detalle de CxC.'!G228=\"\",\"\",'800111a - Nota. Detalle de CxC.'!G228)","v":""},{"$f":"IF('800111a - Nota. Detalle de CxC.'!G229=\"\",\"\",'800111a - Nota. Detalle de CxC.'!G229)","v":""},{"$f":"IF('800111a - Nota. Detalle de CxC.'!G230=\"\",\"\",'800111a - Nota. Detalle de CxC.'!G230)","v":""},{"$f":"IF('800111a - Nota. Detalle de CxC.'!G231=\"\",\"\",'800111a - Nota. Detalle de CxC.'!G231)","v":""},{"$f":"IF('800111a - Nota. Detalle de CxC.'!G232=\"\",\"\",'800111a - Nota. Detalle de CxC.'!G232)","v":""},{"$f":"IF('800111a - Nota. Detalle de CxC.'!G233=\"\",\"\",'800111a - Nota. Detalle de CxC.'!G233)","v":""},{"$f":"IF('800111a - Nota. Detalle de CxC.'!G234=\"\",\"\",'800111a - Nota. Detalle de CxC.'!G234)","v":""},null,null,null,{"$f":"IF('800111a - Nota. Detalle de CxC.'!G238=\"\",\"\",'800111a - Nota. Detalle de CxC.'!G238)","v":""},{"$f":"IF('800111a - Nota. Detalle de CxC.'!G239=\"\",\"\",'800111a - Nota. Detalle de CxC.'!G239)","v":""},{"$f":"IF('800111a - Nota. Detalle de CxC.'!G240=\"\",\"\",'800111a - Nota. Detalle de CxC.'!G240)","v":""},{"$f":"IF('800111a - Nota. Detalle de CxC.'!G241=\"\",\"\",'800111a - Nota. Detalle de CxC.'!G241)","v":""},{"$f":"IF('800111a - Nota. Detalle de CxC.'!G242=\"\",\"\",'800111a - Nota. Detalle de CxC.'!G242)","v":""},{"$f":"IF('800111a - Nota. Detalle de CxC.'!G243=\"\",\"\",'800111a - Nota. Detalle de CxC.'!G243)","v":""},{"$f":"IF('800111a - Nota. Detalle de CxC.'!G244=\"\",\"\",'800111a - Nota. Detalle de CxC.'!G244)","v":""},{"$f":"IF('800111a - Nota. Detalle de CxC.'!G245=\"\",\"\",'800111a - Nota. Detalle de CxC.'!G245)","v":""},{"$f":"IF('800111a - Nota. Detalle de CxC.'!G246=\"\",\"\",'800111a - Nota. Detalle de CxC.'!G246)","v":""},{"$f":"IF('800111a - Nota. Detalle de CxC.'!G247=\"\",\"\",'800111a - Nota. Detalle de CxC.'!G247)","v":""},{"$f":"IF('800111a - Nota. Detalle de CxC.'!G248=\"\",\"\",'800111a - Nota. Detalle de CxC.'!G248)","v":""},{"$f":"IF('800111a - Nota. Detalle de CxC.'!G249=\"\",\"\",'800111a - Nota. Detalle de CxC.'!G249)","v":""},{"$f":"IF('800111a - Nota. Detalle de CxC.'!G250=\"\",\"\",'800111a - Nota. Detalle de CxC.'!G250)","v":""},{"$f":"IF('800111a - Nota. Detalle de CxC.'!G251=\"\",\"\",'800111a - Nota. Detalle de CxC.'!G251)","v":""},{"$f":"IF('800111a - Nota. Detalle de CxC.'!G252=\"\",\"\",'800111a - Nota. Detalle de CxC.'!G252)","v":""},{"$f":"IF('800111a - Nota. Detalle de CxC.'!G253=\"\",\"\",'800111a - Nota. Detalle de CxC.'!G253)","v":""},{"$f":"IF('800111a - Nota. Detalle de CxC.'!G254=\"\",\"\",'800111a - Nota. Detalle de CxC.'!G254)","v":""},{"$f":"IF('800111a - Nota. Detalle de CxC.'!G255=\"\",\"\",'800111a - Nota. Detalle de CxC.'!G255)","v":""},{"$f":"IF('800111a - Nota. Detalle de CxC.'!G256=\"\",\"\",'800111a - Nota. Detalle de CxC.'!G256)","v":""},{"$f":"IF('800111a - Nota. Detalle de CxC.'!G257=\"\",\"\",'800111a - Nota. Detalle de CxC.'!G257)","v":""},{"$f":"IF('800111a - Nota. Detalle de CxC.'!G258=\"\",\"\",'800111a - Nota. Detalle de CxC.'!G258)","v":""},{"$f":"IF('800111a - Nota. Detalle de CxC.'!G259=\"\",\"\",'800111a - Nota. Detalle de CxC.'!G259)","v":""},{"$f":"IF('800111a - Nota. Detalle de CxC.'!G260=\"\",\"\",'800111a - Nota. Detalle de CxC.'!G260)","v":""},{"$f":"IF('800111a - Nota. Detalle de CxC.'!G261=\"\",\"\",'800111a - Nota. Detalle de CxC.'!G261)","v":""},{"$f":"IF('800111a - Nota. Detalle de CxC.'!G262=\"\",\"\",'800111a - Nota. Detalle de CxC.'!G262)","v":""},{"$f":"IF('800111a - Nota. Detalle de CxC.'!G263=\"\",\"\",'800111a - Nota. Detalle de CxC.'!G263)","v":""},{"$f":"IF('800111a - Nota. Detalle de CxC.'!G264=\"\",\"\",'800111a - Nota. Detalle de CxC.'!G264)","v":""},{"$f":"IF('800111a - Nota. Detalle de CxC.'!G265=\"\",\"\",'800111a - Nota. Detalle de CxC.'!G265)","v":""},{"$f":"IF('800111a - Nota. Detalle de CxC.'!G266=\"\",\"\",'800111a - Nota. Detalle de CxC.'!G266)","v":""},{"$f":"IF('800111a - Nota. Detalle de CxC.'!G267=\"\",\"\",'800111a - Nota. Detalle de CxC.'!G267)","v":""},{"$f":"IF('800111a - Nota. Detalle de CxC.'!G268=\"\",\"\",'800111a - Nota. Detalle de CxC.'!G268)","v":""},{"$f":"IF('800111a - Nota. Detalle de CxC.'!G269=\"\",\"\",'800111a - Nota. Detalle de CxC.'!G269)","v":""},{"$f":"IF('800111a - Nota. Detalle de CxC.'!G270=\"\",\"\",'800111a - Nota. Detalle de CxC.'!G270)","v":""},{"$f":"IF('800111a - Nota. Detalle de CxC.'!G271=\"\",\"\",'800111a - Nota. Detalle de CxC.'!G271)","v":""},{"$f":"IF('800111a - Nota. Detalle de CxC.'!G272=\"\",\"\",'800111a - Nota. Detalle de CxC.'!G272)","v":""},{"$f":"IF('800111a - Nota. Detalle de CxC.'!G273=\"\",\"\",'800111a - Nota. Detalle de CxC.'!G273)","v":""},{"$f":"IF('800111a - Nota. Detalle de CxC.'!G274=\"\",\"\",'800111a - Nota. Detalle de CxC.'!G274)","v":""},{"$f":"IF('800111a - Nota. Detalle de CxC.'!G275=\"\",\"\",'800111a - Nota. Detalle de CxC.'!G275)","v":""},{"$f":"IF('800111a - Nota. Detalle de CxC.'!G276=\"\",\"\",'800111a - Nota. Detalle de CxC.'!G276)","v":""},{"$f":"IF('800111a - Nota. Detalle de CxC.'!G277=\"\",\"\",'800111a - Nota. Detalle de CxC.'!G277)","v":""},{"$f":"IF('800111a - Nota. Detalle de CxC.'!G278=\"\",\"\",'800111a - Nota. Detalle de CxC.'!G278)","v":""},{"$f":"IF('800111a - Nota. Detalle de CxC.'!G279=\"\",\"\",'800111a - Nota. Detalle de CxC.'!G279)","v":""},{"$f":"IF('800111a - Nota. Detalle de CxC.'!G280=\"\",\"\",'800111a - Nota. Detalle de CxC.'!G280)","v":""},{"$f":"IF('800111a - Nota. Detalle de CxC.'!G281=\"\",\"\",'800111a - Nota. Detalle de CxC.'!G281)","v":""},{"$f":"IF('800111a - Nota. Detalle de CxC.'!G282=\"\",\"\",'800111a - Nota. Detalle de CxC.'!G282)","v":""},{"$f":"IF('800111a - Nota. Detalle de CxC.'!G283=\"\",\"\",'800111a - Nota. Detalle de CxC.'!G283)","v":""},{"$f":"IF('800111a - Nota. Detalle de CxC.'!G284=\"\",\"\",'800111a - Nota. Detalle de CxC.'!G284)","v":""},{"$f":"IF('800111a - Nota. Detalle de CxC.'!G285=\"\",\"\",'800111a - Nota. Detalle de CxC.'!G285)","v":""},{"$f":"IF('800111a - Nota. Detalle de CxC.'!G286=\"\",\"\",'800111a - Nota. Detalle de CxC.'!G286)","v":""},{"$f":"IF('800111a - Nota. Detalle de CxC.'!G287=\"\",\"\",'800111a - Nota. Detalle de CxC.'!G287)","v":""},null,null,null,{"$f":"IF('800111a - Nota. Detalle de CxC.'!G291=\"\",\"\",'800111a - Nota. Detalle de CxC.'!G291)","v":""},{"$f":"IF('800111a - Nota. Detalle de CxC.'!G292=\"\",\"\",'800111a - Nota. Detalle de CxC.'!G292)","v":""},{"$f":"IF('800111a - Nota. Detalle de CxC.'!G293=\"\",\"\",'800111a - Nota. Detalle de CxC.'!G293)","v":""},{"$f":"IF('800111a - Nota. Detalle de CxC.'!G294=\"\",\"\",'800111a - Nota. Detalle de CxC.'!G294)","v":""},{"$f":"IF('800111a - Nota. Detalle de CxC.'!G295=\"\",\"\",'800111a - Nota. Detalle de CxC.'!G295)","v":""},{"$f":"IF('800111a - Nota. Detalle de CxC.'!G296=\"\",\"\",'800111a - Nota. Detalle de CxC.'!G296)","v":""},{"$f":"IF('800111a - Nota. Detalle de CxC.'!G297=\"\",\"\",'800111a - Nota. Detalle de CxC.'!G297)","v":""},{"$f":"IF('800111a - Nota. Detalle de CxC.'!G298=\"\",\"\",'800111a - Nota. Detalle de CxC.'!G298)","v":""},{"$f":"IF('800111a - Nota. Detalle de CxC.'!G299=\"\",\"\",'800111a - Nota. Detalle de CxC.'!G299)","v":""},{"$f":"IF('800111a - Nota. Detalle de CxC.'!G300=\"\",\"\",'800111a - Nota. Detalle de CxC.'!G300)","v":""},{"$f":"IF('800111a - Nota. Detalle de CxC.'!G301=\"\",\"\",'800111a - Nota. Detalle de CxC.'!G301)","v":""},{"$f":"IF('800111a - Nota. Detalle de CxC.'!G302=\"\",\"\",'800111a - Nota. Detalle de CxC.'!G302)","v":""},{"$f":"IF('800111a - Nota. Detalle de CxC.'!G303=\"\",\"\",'800111a - Nota. Detalle de CxC.'!G303)","v":""},{"$f":"IF('800111a - Nota. Detalle de CxC.'!G304=\"\",\"\",'800111a - Nota. Detalle de CxC.'!G304)","v":""},{"$f":"IF('800111a - Nota. Detalle de CxC.'!G305=\"\",\"\",'800111a - Nota. Detalle de CxC.'!G305)","v":""},{"$f":"IF('800111a - Nota. Detalle de CxC.'!G306=\"\",\"\",'800111a - Nota. Detalle de CxC.'!G306)","v":""},{"$f":"IF('800111a - Nota. Detalle de CxC.'!G307=\"\",\"\",'800111a - Nota. Detalle de CxC.'!G307)","v":""},{"$f":"IF('800111a - Nota. Detalle de CxC.'!G308=\"\",\"\",'800111a - Nota. Detalle de CxC.'!G308)","v":""},{"$f":"IF('800111a - Nota. Detalle de CxC.'!G309=\"\",\"\",'800111a - Nota. Detalle de CxC.'!G309)","v":""},{"$f":"IF('800111a - Nota. Detalle de CxC.'!G310=\"\",\"\",'800111a - Nota. Detalle de CxC.'!G310)","v":""},{"$f":"IF('800111a - Nota. Detalle de CxC.'!G311=\"\",\"\",'800111a - Nota. Detalle de CxC.'!G311)","v":""},{"$f":"IF('800111a - Nota. Detalle de CxC.'!G312=\"\",\"\",'800111a - Nota. Detalle de CxC.'!G312)","v":""},{"$f":"IF('800111a - Nota. Detalle de CxC.'!G313=\"\",\"\",'800111a - Nota. Detalle de CxC.'!G313)","v":""},{"$f":"IF('800111a - Nota. Detalle de CxC.'!G314=\"\",\"\",'800111a - Nota. Detalle de CxC.'!G314)","v":""},{"$f":"IF('800111a - Nota. Detalle de CxC.'!G315=\"\",\"\",'800111a - Nota. Detalle de CxC.'!G315)","v":""},{"$f":"IF('800111a - Nota. Detalle de CxC.'!G316=\"\",\"\",'800111a - Nota. Detalle de CxC.'!G316)","v":""},{"$f":"IF('800111a - Nota. Detalle de CxC.'!G317=\"\",\"\",'800111a - Nota. Detalle de CxC.'!G317)","v":""},{"$f":"IF('800111a - Nota. Detalle de CxC.'!G318=\"\",\"\",'800111a - Nota. Detalle de CxC.'!G318)","v":""},{"$f":"IF('800111a - Nota. Detalle de CxC.'!G319=\"\",\"\",'800111a - Nota. Detalle de CxC.'!G319)","v":""},{"$f":"IF('800111a - Nota. Detalle de CxC.'!G320=\"\",\"\",'800111a - Nota. Detalle de CxC.'!G320)","v":""},{"$f":"IF('800111a - Nota. Detalle de CxC.'!G321=\"\",\"\",'800111a - Nota. Detalle de CxC.'!G321)","v":""},{"$f":"IF('800111a - Nota. Detalle de CxC.'!G322=\"\",\"\",'800111a - Nota. Detalle de CxC.'!G322)","v":""},{"$f":"IF('800111a - Nota. Detalle de CxC.'!G323=\"\",\"\",'800111a - Nota. Detalle de CxC.'!G323)","v":""},{"$f":"IF('800111a - Nota. Detalle de CxC.'!G324=\"\",\"\",'800111a - Nota. Detalle de CxC.'!G324)","v":""},{"$f":"IF('800111a - Nota. Detalle de CxC.'!G325=\"\",\"\",'800111a - Nota. Detalle de CxC.'!G325)","v":""},{"$f":"IF('800111a - Nota. Detalle de CxC.'!G326=\"\",\"\",'800111a - Nota. Detalle de CxC.'!G326)","v":""},{"$f":"IF('800111a - Nota. Detalle de CxC.'!G327=\"\",\"\",'800111a - Nota. Detalle de CxC.'!G327)","v":""},{"$f":"IF('800111a - Nota. Detalle de CxC.'!G328=\"\",\"\",'800111a - Nota. Detalle de CxC.'!G328)","v":""},{"$f":"IF('800111a - Nota. Detalle de CxC.'!G329=\"\",\"\",'800111a - Nota. Detalle de CxC.'!G329)","v":""},{"$f":"IF('800111a - Nota. Detalle de CxC.'!G330=\"\",\"\",'800111a - Nota. Detalle de CxC.'!G330)","v":""},{"$f":"IF('800111a - Nota. Detalle de CxC.'!G331=\"\",\"\",'800111a - Nota. Detalle de CxC.'!G331)","v":""},{"$f":"IF('800111a - Nota. Detalle de CxC.'!G332=\"\",\"\",'800111a - Nota. Detalle de CxC.'!G332)","v":""},{"$f":"IF('800111a - Nota. Detalle de CxC.'!G333=\"\",\"\",'800111a - Nota. Detalle de CxC.'!G333)","v":""},{"$f":"IF('800111a - Nota. Detalle de CxC.'!G334=\"\",\"\",'800111a - Nota. Detalle de CxC.'!G334)","v":""},{"$f":"IF('800111a - Nota. Detalle de CxC.'!G335=\"\",\"\",'800111a - Nota. Detalle de CxC.'!G335)","v":""},{"$f":"IF('800111a - Nota. Detalle de CxC.'!G336=\"\",\"\",'800111a - Nota. Detalle de CxC.'!G336)","v":""},{"$f":"IF('800111a - Nota. Detalle de CxC.'!G337=\"\",\"\",'800111a - Nota. Detalle de CxC.'!G337)","v":""},{"$f":"IF('800111a - Nota. Detalle de CxC.'!G338=\"\",\"\",'800111a - Nota. Detalle de CxC.'!G338)","v":""},{"$f":"IF('800111a - Nota. Detalle de CxC.'!G339=\"\",\"\",'800111a - Nota. Detalle de CxC.'!G339)","v":""},{"$f":"IF('800111a - Nota. Detalle de CxC.'!G340=\"\",\"\",'800111a - Nota. Detalle de CxC.'!G340)","v":""}]
[null,"1;2","co-svsp-core_2017-12-31:SegundoApellidoDeudorCxC","Segundo apellido deudor",null,null,{"$f":"IF('800111a - Nota. Detalle de CxC.'!H185=\"\",\"\",'800111a - Nota. Detalle de CxC.'!H185)","v":""},{"$f":"IF('800111a - Nota. Detalle de CxC.'!H186=\"\",\"\",'800111a - Nota. Detalle de CxC.'!H186)","v":""},{"$f":"IF('800111a - Nota. Detalle de CxC.'!H187=\"\",\"\",'800111a - Nota. Detalle de CxC.'!H187)","v":""},{"$f":"IF('800111a - Nota. Detalle de CxC.'!H188=\"\",\"\",'800111a - Nota. Detalle de CxC.'!H188)","v":""},{"$f":"IF('800111a - Nota. Detalle de CxC.'!H189=\"\",\"\",'800111a - Nota. Detalle de CxC.'!H189)","v":""},{"$f":"IF('800111a - Nota. Detalle de CxC.'!H190=\"\",\"\",'800111a - Nota. Detalle de CxC.'!H190)","v":""},{"$f":"IF('800111a - Nota. Detalle de CxC.'!H191=\"\",\"\",'800111a - Nota. Detalle de CxC.'!H191)","v":""},{"$f":"IF('800111a - Nota. Detalle de CxC.'!H192=\"\",\"\",'800111a - Nota. Detalle de CxC.'!H192)","v":""},{"$f":"IF('800111a - Nota. Detalle de CxC.'!H193=\"\",\"\",'800111a - Nota. Detalle de CxC.'!H193)","v":""},{"$f":"IF('800111a - Nota. Detalle de CxC.'!H194=\"\",\"\",'800111a - Nota. Detalle de CxC.'!H194)","v":""},{"$f":"IF('800111a - Nota. Detalle de CxC.'!H195=\"\",\"\",'800111a - Nota. Detalle de CxC.'!H195)","v":""},{"$f":"IF('800111a - Nota. Detalle de CxC.'!H196=\"\",\"\",'800111a - Nota. Detalle de CxC.'!H196)","v":""},{"$f":"IF('800111a - Nota. Detalle de CxC.'!H197=\"\",\"\",'800111a - Nota. Detalle de CxC.'!H197)","v":""},{"$f":"IF('800111a - Nota. Detalle de CxC.'!H198=\"\",\"\",'800111a - Nota. Detalle de CxC.'!H198)","v":""},{"$f":"IF('800111a - Nota. Detalle de CxC.'!H199=\"\",\"\",'800111a - Nota. Detalle de CxC.'!H199)","v":""},{"$f":"IF('800111a - Nota. Detalle de CxC.'!H200=\"\",\"\",'800111a - Nota. Detalle de CxC.'!H200)","v":""},{"$f":"IF('800111a - Nota. Detalle de CxC.'!H201=\"\",\"\",'800111a - Nota. Detalle de CxC.'!H201)","v":""},{"$f":"IF('800111a - Nota. Detalle de CxC.'!H202=\"\",\"\",'800111a - Nota. Detalle de CxC.'!H202)","v":""},{"$f":"IF('800111a - Nota. Detalle de CxC.'!H203=\"\",\"\",'800111a - Nota. Detalle de CxC.'!H203)","v":""},{"$f":"IF('800111a - Nota. Detalle de CxC.'!H204=\"\",\"\",'800111a - Nota. Detalle de CxC.'!H204)","v":""},{"$f":"IF('800111a - Nota. Detalle de CxC.'!H205=\"\",\"\",'800111a - Nota. Detalle de CxC.'!H205)","v":""},{"$f":"IF('800111a - Nota. Detalle de CxC.'!H206=\"\",\"\",'800111a - Nota. Detalle de CxC.'!H206)","v":""},{"$f":"IF('800111a - Nota. Detalle de CxC.'!H207=\"\",\"\",'800111a - Nota. Detalle de CxC.'!H207)","v":""},{"$f":"IF('800111a - Nota. Detalle de CxC.'!H208=\"\",\"\",'800111a - Nota. Detalle de CxC.'!H208)","v":""},{"$f":"IF('800111a - Nota. Detalle de CxC.'!H209=\"\",\"\",'800111a - Nota. Detalle de CxC.'!H209)","v":""},{"$f":"IF('800111a - Nota. Detalle de CxC.'!H210=\"\",\"\",'800111a - Nota. Detalle de CxC.'!H210)","v":""},{"$f":"IF('800111a - Nota. Detalle de CxC.'!H211=\"\",\"\",'800111a - Nota. Detalle de CxC.'!H211)","v":""},{"$f":"IF('800111a - Nota. Detalle de CxC.'!H212=\"\",\"\",'800111a - Nota. Detalle de CxC.'!H212)","v":""},{"$f":"IF('800111a - Nota. Detalle de CxC.'!H213=\"\",\"\",'800111a - Nota. Detalle de CxC.'!H213)","v":""},{"$f":"IF('800111a - Nota. Detalle de CxC.'!H214=\"\",\"\",'800111a - Nota. Detalle de CxC.'!H214)","v":""},{"$f":"IF('800111a - Nota. Detalle de CxC.'!H215=\"\",\"\",'800111a - Nota. Detalle de CxC.'!H215)","v":""},{"$f":"IF('800111a - Nota. Detalle de CxC.'!H216=\"\",\"\",'800111a - Nota. Detalle de CxC.'!H216)","v":""},{"$f":"IF('800111a - Nota. Detalle de CxC.'!H217=\"\",\"\",'800111a - Nota. Detalle de CxC.'!H217)","v":""},{"$f":"IF('800111a - Nota. Detalle de CxC.'!H218=\"\",\"\",'800111a - Nota. Detalle de CxC.'!H218)","v":""},{"$f":"IF('800111a - Nota. Detalle de CxC.'!H219=\"\",\"\",'800111a - Nota. Detalle de CxC.'!H219)","v":""},{"$f":"IF('800111a - Nota. Detalle de CxC.'!H220=\"\",\"\",'800111a - Nota. Detalle de CxC.'!H220)","v":""},{"$f":"IF('800111a - Nota. Detalle de CxC.'!H221=\"\",\"\",'800111a - Nota. Detalle de CxC.'!H221)","v":""},{"$f":"IF('800111a - Nota. Detalle de CxC.'!H222=\"\",\"\",'800111a - Nota. Detalle de CxC.'!H222)","v":""},{"$f":"IF('800111a - Nota. Detalle de CxC.'!H223=\"\",\"\",'800111a - Nota. Detalle de CxC.'!H223)","v":""},{"$f":"IF('800111a - Nota. Detalle de CxC.'!H224=\"\",\"\",'800111a - Nota. Detalle de CxC.'!H224)","v":""},{"$f":"IF('800111a - Nota. Detalle de CxC.'!H225=\"\",\"\",'800111a - Nota. Detalle de CxC.'!H225)","v":""},{"$f":"IF('800111a - Nota. Detalle de CxC.'!H226=\"\",\"\",'800111a - Nota. Detalle de CxC.'!H226)","v":""},{"$f":"IF('800111a - Nota. Detalle de CxC.'!H227=\"\",\"\",'800111a - Nota. Detalle de CxC.'!H227)","v":""},{"$f":"IF('800111a - Nota. Detalle de CxC.'!H228=\"\",\"\",'800111a - Nota. Detalle de CxC.'!H228)","v":""},{"$f":"IF('800111a - Nota. Detalle de CxC.'!H229=\"\",\"\",'800111a - Nota. Detalle de CxC.'!H229)","v":""},{"$f":"IF('800111a - Nota. Detalle de CxC.'!H230=\"\",\"\",'800111a - Nota. Detalle de CxC.'!H230)","v":""},{"$f":"IF('800111a - Nota. Detalle de CxC.'!H231=\"\",\"\",'800111a - Nota. Detalle de CxC.'!H231)","v":""},{"$f":"IF('800111a - Nota. Detalle de CxC.'!H232=\"\",\"\",'800111a - Nota. Detalle de CxC.'!H232)","v":""},{"$f":"IF('800111a - Nota. Detalle de CxC.'!H233=\"\",\"\",'800111a - Nota. Detalle de CxC.'!H233)","v":""},{"$f":"IF('800111a - Nota. Detalle de CxC.'!H234=\"\",\"\",'800111a - Nota. Detalle de CxC.'!H234)","v":""},null,null,null,{"$f":"IF('800111a - Nota. Detalle de CxC.'!H238=\"\",\"\",'800111a - Nota. Detalle de CxC.'!H238)","v":""},{"$f":"IF('800111a - Nota. Detalle de CxC.'!H239=\"\",\"\",'800111a - Nota. Detalle de CxC.'!H239)","v":""},{"$f":"IF('800111a - Nota. Detalle de CxC.'!H240=\"\",\"\",'800111a - Nota. Detalle de CxC.'!H240)","v":""},{"$f":"IF('800111a - Nota. Detalle de CxC.'!H241=\"\",\"\",'800111a - Nota. Detalle de CxC.'!H241)","v":""},{"$f":"IF('800111a - Nota. Detalle de CxC.'!H242=\"\",\"\",'800111a - Nota. Detalle de CxC.'!H242)","v":""},{"$f":"IF('800111a - Nota. Detalle de CxC.'!H243=\"\",\"\",'800111a - Nota. Detalle de CxC.'!H243)","v":""},{"$f":"IF('800111a - Nota. Detalle de CxC.'!H244=\"\",\"\",'800111a - Nota. Detalle de CxC.'!H244)","v":""},{"$f":"IF('800111a - Nota. Detalle de CxC.'!H245=\"\",\"\",'800111a - Nota. Detalle de CxC.'!H245)","v":""},{"$f":"IF('800111a - Nota. Detalle de CxC.'!H246=\"\",\"\",'800111a - Nota. Detalle de CxC.'!H246)","v":""},{"$f":"IF('800111a - Nota. Detalle de CxC.'!H247=\"\",\"\",'800111a - Nota. Detalle de CxC.'!H247)","v":""},{"$f":"IF('800111a - Nota. Detalle de CxC.'!H248=\"\",\"\",'800111a - Nota. Detalle de CxC.'!H248)","v":""},{"$f":"IF('800111a - Nota. Detalle de CxC.'!H249=\"\",\"\",'800111a - Nota. Detalle de CxC.'!H249)","v":""},{"$f":"IF('800111a - Nota. Detalle de CxC.'!H250=\"\",\"\",'800111a - Nota. Detalle de CxC.'!H250)","v":""},{"$f":"IF('800111a - Nota. Detalle de CxC.'!H251=\"\",\"\",'800111a - Nota. Detalle de CxC.'!H251)","v":""},{"$f":"IF('800111a - Nota. Detalle de CxC.'!H252=\"\",\"\",'800111a - Nota. Detalle de CxC.'!H252)","v":""},{"$f":"IF('800111a - Nota. Detalle de CxC.'!H253=\"\",\"\",'800111a - Nota. Detalle de CxC.'!H253)","v":""},{"$f":"IF('800111a - Nota. Detalle de CxC.'!H254=\"\",\"\",'800111a - Nota. Detalle de CxC.'!H254)","v":""},{"$f":"IF('800111a - Nota. Detalle de CxC.'!H255=\"\",\"\",'800111a - Nota. Detalle de CxC.'!H255)","v":""},{"$f":"IF('800111a - Nota. Detalle de CxC.'!H256=\"\",\"\",'800111a - Nota. Detalle de CxC.'!H256)","v":""},{"$f":"IF('800111a - Nota. Detalle de CxC.'!H257=\"\",\"\",'800111a - Nota. Detalle de CxC.'!H257)","v":""},{"$f":"IF('800111a - Nota. Detalle de CxC.'!H258=\"\",\"\",'800111a - Nota. Detalle de CxC.'!H258)","v":""},{"$f":"IF('800111a - Nota. Detalle de CxC.'!H259=\"\",\"\",'800111a - Nota. Detalle de CxC.'!H259)","v":""},{"$f":"IF('800111a - Nota. Detalle de CxC.'!H260=\"\",\"\",'800111a - Nota. Detalle de CxC.'!H260)","v":""},{"$f":"IF('800111a - Nota. Detalle de CxC.'!H261=\"\",\"\",'800111a - Nota. Detalle de CxC.'!H261)","v":""},{"$f":"IF('800111a - Nota. Detalle de CxC.'!H262=\"\",\"\",'800111a - Nota. Detalle de CxC.'!H262)","v":""},{"$f":"IF('800111a - Nota. Detalle de CxC.'!H263=\"\",\"\",'800111a - Nota. Detalle de CxC.'!H263)","v":""},{"$f":"IF('800111a - Nota. Detalle de CxC.'!H264=\"\",\"\",'800111a - Nota. Detalle de CxC.'!H264)","v":""},{"$f":"IF('800111a - Nota. Detalle de CxC.'!H265=\"\",\"\",'800111a - Nota. Detalle de CxC.'!H265)","v":""},{"$f":"IF('800111a - Nota. Detalle de CxC.'!H266=\"\",\"\",'800111a - Nota. Detalle de CxC.'!H266)","v":""},{"$f":"IF('800111a - Nota. Detalle de CxC.'!H267=\"\",\"\",'800111a - Nota. Detalle de CxC.'!H267)","v":""},{"$f":"IF('800111a - Nota. Detalle de CxC.'!H268=\"\",\"\",'800111a - Nota. Detalle de CxC.'!H268)","v":""},{"$f":"IF('800111a - Nota. Detalle de CxC.'!H269=\"\",\"\",'800111a - Nota. Detalle de CxC.'!H269)","v":""},{"$f":"IF('800111a - Nota. Detalle de CxC.'!H270=\"\",\"\",'800111a - Nota. Detalle de CxC.'!H270)","v":""},{"$f":"IF('800111a - Nota. Detalle de CxC.'!H271=\"\",\"\",'800111a - Nota. Detalle de CxC.'!H271)","v":""},{"$f":"IF('800111a - Nota. Detalle de CxC.'!H272=\"\",\"\",'800111a - Nota. Detalle de CxC.'!H272)","v":""},{"$f":"IF('800111a - Nota. Detalle de CxC.'!H273=\"\",\"\",'800111a - Nota. Detalle de CxC.'!H273)","v":""},{"$f":"IF('800111a - Nota. Detalle de CxC.'!H274=\"\",\"\",'800111a - Nota. Detalle de CxC.'!H274)","v":""},{"$f":"IF('800111a - Nota. Detalle de CxC.'!H275=\"\",\"\",'800111a - Nota. Detalle de CxC.'!H275)","v":""},{"$f":"IF('800111a - Nota. Detalle de CxC.'!H276=\"\",\"\",'800111a - Nota. Detalle de CxC.'!H276)","v":""},{"$f":"IF('800111a - Nota. Detalle de CxC.'!H277=\"\",\"\",'800111a - Nota. Detalle de CxC.'!H277)","v":""},{"$f":"IF('800111a - Nota. Detalle de CxC.'!H278=\"\",\"\",'800111a - Nota. Detalle de CxC.'!H278)","v":""},{"$f":"IF('800111a - Nota. Detalle de CxC.'!H279=\"\",\"\",'800111a - Nota. Detalle de CxC.'!H279)","v":""},{"$f":"IF('800111a - Nota. Detalle de CxC.'!H280=\"\",\"\",'800111a - Nota. Detalle de CxC.'!H280)","v":""},{"$f":"IF('800111a - Nota. Detalle de CxC.'!H281=\"\",\"\",'800111a - Nota. Detalle de CxC.'!H281)","v":""},{"$f":"IF('800111a - Nota. Detalle de CxC.'!H282=\"\",\"\",'800111a - Nota. Detalle de CxC.'!H282)","v":""},{"$f":"IF('800111a - Nota. Detalle de CxC.'!H283=\"\",\"\",'800111a - Nota. Detalle de CxC.'!H283)","v":""},{"$f":"IF('800111a - Nota. Detalle de CxC.'!H284=\"\",\"\",'800111a - Nota. Detalle de CxC.'!H284)","v":""},{"$f":"IF('800111a - Nota. Detalle de CxC.'!H285=\"\",\"\",'800111a - Nota. Detalle de CxC.'!H285)","v":""},{"$f":"IF('800111a - Nota. Detalle de CxC.'!H286=\"\",\"\",'800111a - Nota. Detalle de CxC.'!H286)","v":""},{"$f":"IF('800111a - Nota. Detalle de CxC.'!H287=\"\",\"\",'800111a - Nota. Detalle de CxC.'!H287)","v":""},null,null,null,{"$f":"IF('800111a - Nota. Detalle de CxC.'!H291=\"\",\"\",'800111a - Nota. Detalle de CxC.'!H291)","v":""},{"$f":"IF('800111a - Nota. Detalle de CxC.'!H292=\"\",\"\",'800111a - Nota. Detalle de CxC.'!H292)","v":""},{"$f":"IF('800111a - Nota. Detalle de CxC.'!H293=\"\",\"\",'800111a - Nota. Detalle de CxC.'!H293)","v":""},{"$f":"IF('800111a - Nota. Detalle de CxC.'!H294=\"\",\"\",'800111a - Nota. Detalle de CxC.'!H294)","v":""},{"$f":"IF('800111a - Nota. Detalle de CxC.'!H295=\"\",\"\",'800111a - Nota. Detalle de CxC.'!H295)","v":""},{"$f":"IF('800111a - Nota. Detalle de CxC.'!H296=\"\",\"\",'800111a - Nota. Detalle de CxC.'!H296)","v":""},{"$f":"IF('800111a - Nota. Detalle de CxC.'!H297=\"\",\"\",'800111a - Nota. Detalle de CxC.'!H297)","v":""},{"$f":"IF('800111a - Nota. Detalle de CxC.'!H298=\"\",\"\",'800111a - Nota. Detalle de CxC.'!H298)","v":""},{"$f":"IF('800111a - Nota. Detalle de CxC.'!H299=\"\",\"\",'800111a - Nota. Detalle de CxC.'!H299)","v":""},{"$f":"IF('800111a - Nota. Detalle de CxC.'!H300=\"\",\"\",'800111a - Nota. Detalle de CxC.'!H300)","v":""},{"$f":"IF('800111a - Nota. Detalle de CxC.'!H301=\"\",\"\",'800111a - Nota. Detalle de CxC.'!H301)","v":""},{"$f":"IF('800111a - Nota. Detalle de CxC.'!H302=\"\",\"\",'800111a - Nota. Detalle de CxC.'!H302)","v":""},{"$f":"IF('800111a - Nota. Detalle de CxC.'!H303=\"\",\"\",'800111a - Nota. Detalle de CxC.'!H303)","v":""},{"$f":"IF('800111a - Nota. Detalle de CxC.'!H304=\"\",\"\",'800111a - Nota. Detalle de CxC.'!H304)","v":""},{"$f":"IF('800111a - Nota. Detalle de CxC.'!H305=\"\",\"\",'800111a - Nota. Detalle de CxC.'!H305)","v":""},{"$f":"IF('800111a - Nota. Detalle de CxC.'!H306=\"\",\"\",'800111a - Nota. Detalle de CxC.'!H306)","v":""},{"$f":"IF('800111a - Nota. Detalle de CxC.'!H307=\"\",\"\",'800111a - Nota. Detalle de CxC.'!H307)","v":""},{"$f":"IF('800111a - Nota. Detalle de CxC.'!H308=\"\",\"\",'800111a - Nota. Detalle de CxC.'!H308)","v":""},{"$f":"IF('800111a - Nota. Detalle de CxC.'!H309=\"\",\"\",'800111a - Nota. Detalle de CxC.'!H309)","v":""},{"$f":"IF('800111a - Nota. Detalle de CxC.'!H310=\"\",\"\",'800111a - Nota. Detalle de CxC.'!H310)","v":""},{"$f":"IF('800111a - Nota. Detalle de CxC.'!H311=\"\",\"\",'800111a - Nota. Detalle de CxC.'!H311)","v":""},{"$f":"IF('800111a - Nota. Detalle de CxC.'!H312=\"\",\"\",'800111a - Nota. Detalle de CxC.'!H312)","v":""},{"$f":"IF('800111a - Nota. Detalle de CxC.'!H313=\"\",\"\",'800111a - Nota. Detalle de CxC.'!H313)","v":""},{"$f":"IF('800111a - Nota. Detalle de CxC.'!H314=\"\",\"\",'800111a - Nota. Detalle de CxC.'!H314)","v":""},{"$f":"IF('800111a - Nota. Detalle de CxC.'!H315=\"\",\"\",'800111a - Nota. Detalle de CxC.'!H315)","v":""},{"$f":"IF('800111a - Nota. Detalle de CxC.'!H316=\"\",\"\",'800111a - Nota. Detalle de CxC.'!H316)","v":""},{"$f":"IF('800111a - Nota. Detalle de CxC.'!H317=\"\",\"\",'800111a - Nota. Detalle de CxC.'!H317)","v":""},{"$f":"IF('800111a - Nota. Detalle de CxC.'!H318=\"\",\"\",'800111a - Nota. Detalle de CxC.'!H318)","v":""},{"$f":"IF('800111a - Nota. Detalle de CxC.'!H319=\"\",\"\",'800111a - Nota. Detalle de CxC.'!H319)","v":""},{"$f":"IF('800111a - Nota. Detalle de CxC.'!H320=\"\",\"\",'800111a - Nota. Detalle de CxC.'!H320)","v":""},{"$f":"IF('800111a - Nota. Detalle de CxC.'!H321=\"\",\"\",'800111a - Nota. Detalle de CxC.'!H321)","v":""},{"$f":"IF('800111a - Nota. Detalle de CxC.'!H322=\"\",\"\",'800111a - Nota. Detalle de CxC.'!H322)","v":""},{"$f":"IF('800111a - Nota. Detalle de CxC.'!H323=\"\",\"\",'800111a - Nota. Detalle de CxC.'!H323)","v":""},{"$f":"IF('800111a - Nota. Detalle de CxC.'!H324=\"\",\"\",'800111a - Nota. Detalle de CxC.'!H324)","v":""},{"$f":"IF('800111a - Nota. Detalle de CxC.'!H325=\"\",\"\",'800111a - Nota. Detalle de CxC.'!H325)","v":""},{"$f":"IF('800111a - Nota. Detalle de CxC.'!H326=\"\",\"\",'800111a - Nota. Detalle de CxC.'!H326)","v":""},{"$f":"IF('800111a - Nota. Detalle de CxC.'!H327=\"\",\"\",'800111a - Nota. Detalle de CxC.'!H327)","v":""},{"$f":"IF('800111a - Nota. Detalle de CxC.'!H328=\"\",\"\",'800111a - Nota. Detalle de CxC.'!H328)","v":""},{"$f":"IF('800111a - Nota. Detalle de CxC.'!H329=\"\",\"\",'800111a - Nota. Detalle de CxC.'!H329)","v":""},{"$f":"IF('800111a - Nota. Detalle de CxC.'!H330=\"\",\"\",'800111a - Nota. Detalle de CxC.'!H330)","v":""},{"$f":"IF('800111a - Nota. Detalle de CxC.'!H331=\"\",\"\",'800111a - Nota. Detalle de CxC.'!H331)","v":""},{"$f":"IF('800111a - Nota. Detalle de CxC.'!H332=\"\",\"\",'800111a - Nota. Detalle de CxC.'!H332)","v":""},{"$f":"IF('800111a - Nota. Detalle de CxC.'!H333=\"\",\"\",'800111a - Nota. Detalle de CxC.'!H333)","v":""},{"$f":"IF('800111a - Nota. Detalle de CxC.'!H334=\"\",\"\",'800111a - Nota. Detalle de CxC.'!H334)","v":""},{"$f":"IF('800111a - Nota. Detalle de CxC.'!H335=\"\",\"\",'800111a - Nota. Detalle de CxC.'!H335)","v":""},{"$f":"IF('800111a - Nota. Detalle de CxC.'!H336=\"\",\"\",'800111a - Nota. Detalle de CxC.'!H336)","v":""},{"$f":"IF('800111a - Nota. Detalle de CxC.'!H337=\"\",\"\",'800111a - Nota. Detalle de CxC.'!H337)","v":""},{"$f":"IF('800111a - Nota. Detalle de CxC.'!H338=\"\",\"\",'800111a - Nota. Detalle de CxC.'!H338)","v":""},{"$f":"IF('800111a - Nota. Detalle de CxC.'!H339=\"\",\"\",'800111a - Nota. Detalle de CxC.'!H339)","v":""},{"$f":"IF('800111a - Nota. Detalle de CxC.'!H340=\"\",\"\",'800111a - Nota. Detalle de CxC.'!H340)","v":""}]
[null,"1;2","co-svsp-core_2017-12-31:PrimerNombreDeudorCxC","Primer nombre deudor",null,null,{"$f":"IF('800111a - Nota. Detalle de CxC.'!I185=\"\",\"\",'800111a - Nota. Detalle de CxC.'!I185)","v":""},{"$f":"IF('800111a - Nota. Detalle de CxC.'!I186=\"\",\"\",'800111a - Nota. Detalle de CxC.'!I186)","v":""},{"$f":"IF('800111a - Nota. Detalle de CxC.'!I187=\"\",\"\",'800111a - Nota. Detalle de CxC.'!I187)","v":""},{"$f":"IF('800111a - Nota. Detalle de CxC.'!I188=\"\",\"\",'800111a - Nota. Detalle de CxC.'!I188)","v":""},{"$f":"IF('800111a - Nota. Detalle de CxC.'!I189=\"\",\"\",'800111a - Nota. Detalle de CxC.'!I189)","v":""},{"$f":"IF('800111a - Nota. Detalle de CxC.'!I190=\"\",\"\",'800111a - Nota. Detalle de CxC.'!I190)","v":""},{"$f":"IF('800111a - Nota. Detalle de CxC.'!I191=\"\",\"\",'800111a - Nota. Detalle de CxC.'!I191)","v":""},{"$f":"IF('800111a - Nota. Detalle de CxC.'!I192=\"\",\"\",'800111a - Nota. Detalle de CxC.'!I192)","v":""},{"$f":"IF('800111a - Nota. Detalle de CxC.'!I193=\"\",\"\",'800111a - Nota. Detalle de CxC.'!I193)","v":""},{"$f":"IF('800111a - Nota. Detalle de CxC.'!I194=\"\",\"\",'800111a - Nota. Detalle de CxC.'!I194)","v":""},{"$f":"IF('800111a - Nota. Detalle de CxC.'!I195=\"\",\"\",'800111a - Nota. Detalle de CxC.'!I195)","v":""},{"$f":"IF('800111a - Nota. Detalle de CxC.'!I196=\"\",\"\",'800111a - Nota. Detalle de CxC.'!I196)","v":""},{"$f":"IF('800111a - Nota. Detalle de CxC.'!I197=\"\",\"\",'800111a - Nota. Detalle de CxC.'!I197)","v":""},{"$f":"IF('800111a - Nota. Detalle de CxC.'!I198=\"\",\"\",'800111a - Nota. Detalle de CxC.'!I198)","v":""},{"$f":"IF('800111a - Nota. Detalle de CxC.'!I199=\"\",\"\",'800111a - Nota. Detalle de CxC.'!I199)","v":""},{"$f":"IF('800111a - Nota. Detalle de CxC.'!I200=\"\",\"\",'800111a - Nota. Detalle de CxC.'!I200)","v":""},{"$f":"IF('800111a - Nota. Detalle de CxC.'!I201=\"\",\"\",'800111a - Nota. Detalle de CxC.'!I201)","v":""},{"$f":"IF('800111a - Nota. Detalle de CxC.'!I202=\"\",\"\",'800111a - Nota. Detalle de CxC.'!I202)","v":""},{"$f":"IF('800111a - Nota. Detalle de CxC.'!I203=\"\",\"\",'800111a - Nota. Detalle de CxC.'!I203)","v":""},{"$f":"IF('800111a - Nota. Detalle de CxC.'!I204=\"\",\"\",'800111a - Nota. Detalle de CxC.'!I204)","v":""},{"$f":"IF('800111a - Nota. Detalle de CxC.'!I205=\"\",\"\",'800111a - Nota. Detalle de CxC.'!I205)","v":""},{"$f":"IF('800111a - Nota. Detalle de CxC.'!I206=\"\",\"\",'800111a - Nota. Detalle de CxC.'!I206)","v":""},{"$f":"IF('800111a - Nota. Detalle de CxC.'!I207=\"\",\"\",'800111a - Nota. Detalle de CxC.'!I207)","v":""},{"$f":"IF('800111a - Nota. Detalle de CxC.'!I208=\"\",\"\",'800111a - Nota. Detalle de CxC.'!I208)","v":""},{"$f":"IF('800111a - Nota. Detalle de CxC.'!I209=\"\",\"\",'800111a - Nota. Detalle de CxC.'!I209)","v":""},{"$f":"IF('800111a - Nota. Detalle de CxC.'!I210=\"\",\"\",'800111a - Nota. Detalle de CxC.'!I210)","v":""},{"$f":"IF('800111a - Nota. Detalle de CxC.'!I211=\"\",\"\",'800111a - Nota. Detalle de CxC.'!I211)","v":""},{"$f":"IF('800111a - Nota. Detalle de CxC.'!I212=\"\",\"\",'800111a - Nota. Detalle de CxC.'!I212)","v":""},{"$f":"IF('800111a - Nota. Detalle de CxC.'!I213=\"\",\"\",'800111a - Nota. Detalle de CxC.'!I213)","v":""},{"$f":"IF('800111a - Nota. Detalle de CxC.'!I214=\"\",\"\",'800111a - Nota. Detalle de CxC.'!I214)","v":""},{"$f":"IF('800111a - Nota. Detalle de CxC.'!I215=\"\",\"\",'800111a - Nota. Detalle de CxC.'!I215)","v":""},{"$f":"IF('800111a - Nota. Detalle de CxC.'!I216=\"\",\"\",'800111a - Nota. Detalle de CxC.'!I216)","v":""},{"$f":"IF('800111a - Nota. Detalle de CxC.'!I217=\"\",\"\",'800111a - Nota. Detalle de CxC.'!I217)","v":""},{"$f":"IF('800111a - Nota. Detalle de CxC.'!I218=\"\",\"\",'800111a - Nota. Detalle de CxC.'!I218)","v":""},{"$f":"IF('800111a - Nota. Detalle de CxC.'!I219=\"\",\"\",'800111a - Nota. Detalle de CxC.'!I219)","v":""},{"$f":"IF('800111a - Nota. Detalle de CxC.'!I220=\"\",\"\",'800111a - Nota. Detalle de CxC.'!I220)","v":""},{"$f":"IF('800111a - Nota. Detalle de CxC.'!I221=\"\",\"\",'800111a - Nota. Detalle de CxC.'!I221)","v":""},{"$f":"IF('800111a - Nota. Detalle de CxC.'!I222=\"\",\"\",'800111a - Nota. Detalle de CxC.'!I222)","v":""},{"$f":"IF('800111a - Nota. Detalle de CxC.'!I223=\"\",\"\",'800111a - Nota. Detalle de CxC.'!I223)","v":""},{"$f":"IF('800111a - Nota. Detalle de CxC.'!I224=\"\",\"\",'800111a - Nota. Detalle de CxC.'!I224)","v":""},{"$f":"IF('800111a - Nota. Detalle de CxC.'!I225=\"\",\"\",'800111a - Nota. Detalle de CxC.'!I225)","v":""},{"$f":"IF('800111a - Nota. Detalle de CxC.'!I226=\"\",\"\",'800111a - Nota. Detalle de CxC.'!I226)","v":""},{"$f":"IF('800111a - Nota. Detalle de CxC.'!I227=\"\",\"\",'800111a - Nota. Detalle de CxC.'!I227)","v":""},{"$f":"IF('800111a - Nota. Detalle de CxC.'!I228=\"\",\"\",'800111a - Nota. Detalle de CxC.'!I228)","v":""},{"$f":"IF('800111a - Nota. Detalle de CxC.'!I229=\"\",\"\",'800111a - Nota. Detalle de CxC.'!I229)","v":""},{"$f":"IF('800111a - Nota. Detalle de CxC.'!I230=\"\",\"\",'800111a - Nota. Detalle de CxC.'!I230)","v":""},{"$f":"IF('800111a - Nota. Detalle de CxC.'!I231=\"\",\"\",'800111a - Nota. Detalle de CxC.'!I231)","v":""},{"$f":"IF('800111a - Nota. Detalle de CxC.'!I232=\"\",\"\",'800111a - Nota. Detalle de CxC.'!I232)","v":""},{"$f":"IF('800111a - Nota. Detalle de CxC.'!I233=\"\",\"\",'800111a - Nota. Detalle de CxC.'!I233)","v":""},{"$f":"IF('800111a - Nota. Detalle de CxC.'!I234=\"\",\"\",'800111a - Nota. Detalle de CxC.'!I234)","v":""},null,null,null,{"$f":"IF('800111a - Nota. Detalle de CxC.'!I238=\"\",\"\",'800111a - Nota. Detalle de CxC.'!I238)","v":""},{"$f":"IF('800111a - Nota. Detalle de CxC.'!I239=\"\",\"\",'800111a - Nota. Detalle de CxC.'!I239)","v":""},{"$f":"IF('800111a - Nota. Detalle de CxC.'!I240=\"\",\"\",'800111a - Nota. Detalle de CxC.'!I240)","v":""},{"$f":"IF('800111a - Nota. Detalle de CxC.'!I241=\"\",\"\",'800111a - Nota. Detalle de CxC.'!I241)","v":""},{"$f":"IF('800111a - Nota. Detalle de CxC.'!I242=\"\",\"\",'800111a - Nota. Detalle de CxC.'!I242)","v":""},{"$f":"IF('800111a - Nota. Detalle de CxC.'!I243=\"\",\"\",'800111a - Nota. Detalle de CxC.'!I243)","v":""},{"$f":"IF('800111a - Nota. Detalle de CxC.'!I244=\"\",\"\",'800111a - Nota. Detalle de CxC.'!I244)","v":""},{"$f":"IF('800111a - Nota. Detalle de CxC.'!I245=\"\",\"\",'800111a - Nota. Detalle de CxC.'!I245)","v":""},{"$f":"IF('800111a - Nota. Detalle de CxC.'!I246=\"\",\"\",'800111a - Nota. Detalle de CxC.'!I246)","v":""},{"$f":"IF('800111a - Nota. Detalle de CxC.'!I247=\"\",\"\",'800111a - Nota. Detalle de CxC.'!I247)","v":""},{"$f":"IF('800111a - Nota. Detalle de CxC.'!I248=\"\",\"\",'800111a - Nota. Detalle de CxC.'!I248)","v":""},{"$f":"IF('800111a - Nota. Detalle de CxC.'!I249=\"\",\"\",'800111a - Nota. Detalle de CxC.'!I249)","v":""},{"$f":"IF('800111a - Nota. Detalle de CxC.'!I250=\"\",\"\",'800111a - Nota. Detalle de CxC.'!I250)","v":""},{"$f":"IF('800111a - Nota. Detalle de CxC.'!I251=\"\",\"\",'800111a - Nota. Detalle de CxC.'!I251)","v":""},{"$f":"IF('800111a - Nota. Detalle de CxC.'!I252=\"\",\"\",'800111a - Nota. Detalle de CxC.'!I252)","v":""},{"$f":"IF('800111a - Nota. Detalle de CxC.'!I253=\"\",\"\",'800111a - Nota. Detalle de CxC.'!I253)","v":""},{"$f":"IF('800111a - Nota. Detalle de CxC.'!I254=\"\",\"\",'800111a - Nota. Detalle de CxC.'!I254)","v":""},{"$f":"IF('800111a - Nota. Detalle de CxC.'!I255=\"\",\"\",'800111a - Nota. Detalle de CxC.'!I255)","v":""},{"$f":"IF('800111a - Nota. Detalle de CxC.'!I256=\"\",\"\",'800111a - Nota. Detalle de CxC.'!I256)","v":""},{"$f":"IF('800111a - Nota. Detalle de CxC.'!I257=\"\",\"\",'800111a - Nota. Detalle de CxC.'!I257)","v":""},{"$f":"IF('800111a - Nota. Detalle de CxC.'!I258=\"\",\"\",'800111a - Nota. Detalle de CxC.'!I258)","v":""},{"$f":"IF('800111a - Nota. Detalle de CxC.'!I259=\"\",\"\",'800111a - Nota. Detalle de CxC.'!I259)","v":""},{"$f":"IF('800111a - Nota. Detalle de CxC.'!I260=\"\",\"\",'800111a - Nota. Detalle de CxC.'!I260)","v":""},{"$f":"IF('800111a - Nota. Detalle de CxC.'!I261=\"\",\"\",'800111a - Nota. Detalle de CxC.'!I261)","v":""},{"$f":"IF('800111a - Nota. Detalle de CxC.'!I262=\"\",\"\",'800111a - Nota. Detalle de CxC.'!I262)","v":""},{"$f":"IF('800111a - Nota. Detalle de CxC.'!I263=\"\",\"\",'800111a - Nota. Detalle de CxC.'!I263)","v":""},{"$f":"IF('800111a - Nota. Detalle de CxC.'!I264=\"\",\"\",'800111a - Nota. Detalle de CxC.'!I264)","v":""},{"$f":"IF('800111a - Nota. Detalle de CxC.'!I265=\"\",\"\",'800111a - Nota. Detalle de CxC.'!I265)","v":""},{"$f":"IF('800111a - Nota. Detalle de CxC.'!I266=\"\",\"\",'800111a - Nota. Detalle de CxC.'!I266)","v":""},{"$f":"IF('800111a - Nota. Detalle de CxC.'!I267=\"\",\"\",'800111a - Nota. Detalle de CxC.'!I267)","v":""},{"$f":"IF('800111a - Nota. Detalle de CxC.'!I268=\"\",\"\",'800111a - Nota. Detalle de CxC.'!I268)","v":""},{"$f":"IF('800111a - Nota. Detalle de CxC.'!I269=\"\",\"\",'800111a - Nota. Detalle de CxC.'!I269)","v":""},{"$f":"IF('800111a - Nota. Detalle de CxC.'!I270=\"\",\"\",'800111a - Nota. Detalle de CxC.'!I270)","v":""},{"$f":"IF('800111a - Nota. Detalle de CxC.'!I271=\"\",\"\",'800111a - Nota. Detalle de CxC.'!I271)","v":""},{"$f":"IF('800111a - Nota. Detalle de CxC.'!I272=\"\",\"\",'800111a - Nota. Detalle de CxC.'!I272)","v":""},{"$f":"IF('800111a - Nota. Detalle de CxC.'!I273=\"\",\"\",'800111a - Nota. Detalle de CxC.'!I273)","v":""},{"$f":"IF('800111a - Nota. Detalle de CxC.'!I274=\"\",\"\",'800111a - Nota. Detalle de CxC.'!I274)","v":""},{"$f":"IF('800111a - Nota. Detalle de CxC.'!I275=\"\",\"\",'800111a - Nota. Detalle de CxC.'!I275)","v":""},{"$f":"IF('800111a - Nota. Detalle de CxC.'!I276=\"\",\"\",'800111a - Nota. Detalle de CxC.'!I276)","v":""},{"$f":"IF('800111a - Nota. Detalle de CxC.'!I277=\"\",\"\",'800111a - Nota. Detalle de CxC.'!I277)","v":""},{"$f":"IF('800111a - Nota. Detalle de CxC.'!I278=\"\",\"\",'800111a - Nota. Detalle de CxC.'!I278)","v":""},{"$f":"IF('800111a - Nota. Detalle de CxC.'!I279=\"\",\"\",'800111a - Nota. Detalle de CxC.'!I279)","v":""},{"$f":"IF('800111a - Nota. Detalle de CxC.'!I280=\"\",\"\",'800111a - Nota. Detalle de CxC.'!I280)","v":""},{"$f":"IF('800111a - Nota. Detalle de CxC.'!I281=\"\",\"\",'800111a - Nota. Detalle de CxC.'!I281)","v":""},{"$f":"IF('800111a - Nota. Detalle de CxC.'!I282=\"\",\"\",'800111a - Nota. Detalle de CxC.'!I282)","v":""},{"$f":"IF('800111a - Nota. Detalle de CxC.'!I283=\"\",\"\",'800111a - Nota. Detalle de CxC.'!I283)","v":""},{"$f":"IF('800111a - Nota. Detalle de CxC.'!I284=\"\",\"\",'800111a - Nota. Detalle de CxC.'!I284)","v":""},{"$f":"IF('800111a - Nota. Detalle de CxC.'!I285=\"\",\"\",'800111a - Nota. Detalle de CxC.'!I285)","v":""},{"$f":"IF('800111a - Nota. Detalle de CxC.'!I286=\"\",\"\",'800111a - Nota. Detalle de CxC.'!I286)","v":""},{"$f":"IF('800111a - Nota. Detalle de CxC.'!I287=\"\",\"\",'800111a - Nota. Detalle de CxC.'!I287)","v":""},null,null,null,{"$f":"IF('800111a - Nota. Detalle de CxC.'!I291=\"\",\"\",'800111a - Nota. Detalle de CxC.'!I291)","v":""},{"$f":"IF('800111a - Nota. Detalle de CxC.'!I292=\"\",\"\",'800111a - Nota. Detalle de CxC.'!I292)","v":""},{"$f":"IF('800111a - Nota. Detalle de CxC.'!I293=\"\",\"\",'800111a - Nota. Detalle de CxC.'!I293)","v":""},{"$f":"IF('800111a - Nota. Detalle de CxC.'!I294=\"\",\"\",'800111a - Nota. Detalle de CxC.'!I294)","v":""},{"$f":"IF('800111a - Nota. Detalle de CxC.'!I295=\"\",\"\",'800111a - Nota. Detalle de CxC.'!I295)","v":""},{"$f":"IF('800111a - Nota. Detalle de CxC.'!I296=\"\",\"\",'800111a - Nota. Detalle de CxC.'!I296)","v":""},{"$f":"IF('800111a - Nota. Detalle de CxC.'!I297=\"\",\"\",'800111a - Nota. Detalle de CxC.'!I297)","v":""},{"$f":"IF('800111a - Nota. Detalle de CxC.'!I298=\"\",\"\",'800111a - Nota. Detalle de CxC.'!I298)","v":""},{"$f":"IF('800111a - Nota. Detalle de CxC.'!I299=\"\",\"\",'800111a - Nota. Detalle de CxC.'!I299)","v":""},{"$f":"IF('800111a - Nota. Detalle de CxC.'!I300=\"\",\"\",'800111a - Nota. Detalle de CxC.'!I300)","v":""},{"$f":"IF('800111a - Nota. Detalle de CxC.'!I301=\"\",\"\",'800111a - Nota. Detalle de CxC.'!I301)","v":""},{"$f":"IF('800111a - Nota. Detalle de CxC.'!I302=\"\",\"\",'800111a - Nota. Detalle de CxC.'!I302)","v":""},{"$f":"IF('800111a - Nota. Detalle de CxC.'!I303=\"\",\"\",'800111a - Nota. Detalle de CxC.'!I303)","v":""},{"$f":"IF('800111a - Nota. Detalle de CxC.'!I304=\"\",\"\",'800111a - Nota. Detalle de CxC.'!I304)","v":""},{"$f":"IF('800111a - Nota. Detalle de CxC.'!I305=\"\",\"\",'800111a - Nota. Detalle de CxC.'!I305)","v":""},{"$f":"IF('800111a - Nota. Detalle de CxC.'!I306=\"\",\"\",'800111a - Nota. Detalle de CxC.'!I306)","v":""},{"$f":"IF('800111a - Nota. Detalle de CxC.'!I307=\"\",\"\",'800111a - Nota. Detalle de CxC.'!I307)","v":""},{"$f":"IF('800111a - Nota. Detalle de CxC.'!I308=\"\",\"\",'800111a - Nota. Detalle de CxC.'!I308)","v":""},{"$f":"IF('800111a - Nota. Detalle de CxC.'!I309=\"\",\"\",'800111a - Nota. Detalle de CxC.'!I309)","v":""},{"$f":"IF('800111a - Nota. Detalle de CxC.'!I310=\"\",\"\",'800111a - Nota. Detalle de CxC.'!I310)","v":""},{"$f":"IF('800111a - Nota. Detalle de CxC.'!I311=\"\",\"\",'800111a - Nota. Detalle de CxC.'!I311)","v":""},{"$f":"IF('800111a - Nota. Detalle de CxC.'!I312=\"\",\"\",'800111a - Nota. Detalle de CxC.'!I312)","v":""},{"$f":"IF('800111a - Nota. Detalle de CxC.'!I313=\"\",\"\",'800111a - Nota. Detalle de CxC.'!I313)","v":""},{"$f":"IF('800111a - Nota. Detalle de CxC.'!I314=\"\",\"\",'800111a - Nota. Detalle de CxC.'!I314)","v":""},{"$f":"IF('800111a - Nota. Detalle de CxC.'!I315=\"\",\"\",'800111a - Nota. Detalle de CxC.'!I315)","v":""},{"$f":"IF('800111a - Nota. Detalle de CxC.'!I316=\"\",\"\",'800111a - Nota. Detalle de CxC.'!I316)","v":""},{"$f":"IF('800111a - Nota. Detalle de CxC.'!I317=\"\",\"\",'800111a - Nota. Detalle de CxC.'!I317)","v":""},{"$f":"IF('800111a - Nota. Detalle de CxC.'!I318=\"\",\"\",'800111a - Nota. Detalle de CxC.'!I318)","v":""},{"$f":"IF('800111a - Nota. Detalle de CxC.'!I319=\"\",\"\",'800111a - Nota. Detalle de CxC.'!I319)","v":""},{"$f":"IF('800111a - Nota. Detalle de CxC.'!I320=\"\",\"\",'800111a - Nota. Detalle de CxC.'!I320)","v":""},{"$f":"IF('800111a - Nota. Detalle de CxC.'!I321=\"\",\"\",'800111a - Nota. Detalle de CxC.'!I321)","v":""},{"$f":"IF('800111a - Nota. Detalle de CxC.'!I322=\"\",\"\",'800111a - Nota. Detalle de CxC.'!I322)","v":""},{"$f":"IF('800111a - Nota. Detalle de CxC.'!I323=\"\",\"\",'800111a - Nota. Detalle de CxC.'!I323)","v":""},{"$f":"IF('800111a - Nota. Detalle de CxC.'!I324=\"\",\"\",'800111a - Nota. Detalle de CxC.'!I324)","v":""},{"$f":"IF('800111a - Nota. Detalle de CxC.'!I325=\"\",\"\",'800111a - Nota. Detalle de CxC.'!I325)","v":""},{"$f":"IF('800111a - Nota. Detalle de CxC.'!I326=\"\",\"\",'800111a - Nota. Detalle de CxC.'!I326)","v":""},{"$f":"IF('800111a - Nota. Detalle de CxC.'!I327=\"\",\"\",'800111a - Nota. Detalle de CxC.'!I327)","v":""},{"$f":"IF('800111a - Nota. Detalle de CxC.'!I328=\"\",\"\",'800111a - Nota. Detalle de CxC.'!I328)","v":""},{"$f":"IF('800111a - Nota. Detalle de CxC.'!I329=\"\",\"\",'800111a - Nota. Detalle de CxC.'!I329)","v":""},{"$f":"IF('800111a - Nota. Detalle de CxC.'!I330=\"\",\"\",'800111a - Nota. Detalle de CxC.'!I330)","v":""},{"$f":"IF('800111a - Nota. Detalle de CxC.'!I331=\"\",\"\",'800111a - Nota. Detalle de CxC.'!I331)","v":""},{"$f":"IF('800111a - Nota. Detalle de CxC.'!I332=\"\",\"\",'800111a - Nota. Detalle de CxC.'!I332)","v":""},{"$f":"IF('800111a - Nota. Detalle de CxC.'!I333=\"\",\"\",'800111a - Nota. Detalle de CxC.'!I333)","v":""},{"$f":"IF('800111a - Nota. Detalle de CxC.'!I334=\"\",\"\",'800111a - Nota. Detalle de CxC.'!I334)","v":""},{"$f":"IF('800111a - Nota. Detalle de CxC.'!I335=\"\",\"\",'800111a - Nota. Detalle de CxC.'!I335)","v":""},{"$f":"IF('800111a - Nota. Detalle de CxC.'!I336=\"\",\"\",'800111a - Nota. Detalle de CxC.'!I336)","v":""},{"$f":"IF('800111a - Nota. Detalle de CxC.'!I337=\"\",\"\",'800111a - Nota. Detalle de CxC.'!I337)","v":""},{"$f":"IF('800111a - Nota. Detalle de CxC.'!I338=\"\",\"\",'800111a - Nota. Detalle de CxC.'!I338)","v":""},{"$f":"IF('800111a - Nota. Detalle de CxC.'!I339=\"\",\"\",'800111a - Nota. Detalle de CxC.'!I339)","v":""},{"$f":"IF('800111a - Nota. Detalle de CxC.'!I340=\"\",\"\",'800111a - Nota. Detalle de CxC.'!I340)","v":""}]
[null,"1;2","co-svsp-core_2017-12-31:OtrosNombresDeudorCxC","Otros nombres deudor",null,null,{"$f":"IF('800111a - Nota. Detalle de CxC.'!J185=\"\",\"\",'800111a - Nota. Detalle de CxC.'!J185)","v":""},{"$f":"IF('800111a - Nota. Detalle de CxC.'!J186=\"\",\"\",'800111a - Nota. Detalle de CxC.'!J186)","v":""},{"$f":"IF('800111a - Nota. Detalle de CxC.'!J187=\"\",\"\",'800111a - Nota. Detalle de CxC.'!J187)","v":""},{"$f":"IF('800111a - Nota. Detalle de CxC.'!J188=\"\",\"\",'800111a - Nota. Detalle de CxC.'!J188)","v":""},{"$f":"IF('800111a - Nota. Detalle de CxC.'!J189=\"\",\"\",'800111a - Nota. Detalle de CxC.'!J189)","v":""},{"$f":"IF('800111a - Nota. Detalle de CxC.'!J190=\"\",\"\",'800111a - Nota. Detalle de CxC.'!J190)","v":""},{"$f":"IF('800111a - Nota. Detalle de CxC.'!J191=\"\",\"\",'800111a - Nota. Detalle de CxC.'!J191)","v":""},{"$f":"IF('800111a - Nota. Detalle de CxC.'!J192=\"\",\"\",'800111a - Nota. Detalle de CxC.'!J192)","v":""},{"$f":"IF('800111a - Nota. Detalle de CxC.'!J193=\"\",\"\",'800111a - Nota. Detalle de CxC.'!J193)","v":""},{"$f":"IF('800111a - Nota. Detalle de CxC.'!J194=\"\",\"\",'800111a - Nota. Detalle de CxC.'!J194)","v":""},{"$f":"IF('800111a - Nota. Detalle de CxC.'!J195=\"\",\"\",'800111a - Nota. Detalle de CxC.'!J195)","v":""},{"$f":"IF('800111a - Nota. Detalle de CxC.'!J196=\"\",\"\",'800111a - Nota. Detalle de CxC.'!J196)","v":""},{"$f":"IF('800111a - Nota. Detalle de CxC.'!J197=\"\",\"\",'800111a - Nota. Detalle de CxC.'!J197)","v":""},{"$f":"IF('800111a - Nota. Detalle de CxC.'!J198=\"\",\"\",'800111a - Nota. Detalle de CxC.'!J198)","v":""},{"$f":"IF('800111a - Nota. Detalle de CxC.'!J199=\"\",\"\",'800111a - Nota. Detalle de CxC.'!J199)","v":""},{"$f":"IF('800111a - Nota. Detalle de CxC.'!J200=\"\",\"\",'800111a - Nota. Detalle de CxC.'!J200)","v":""},{"$f":"IF('800111a - Nota. Detalle de CxC.'!J201=\"\",\"\",'800111a - Nota. Detalle de CxC.'!J201)","v":""},{"$f":"IF('800111a - Nota. Detalle de CxC.'!J202=\"\",\"\",'800111a - Nota. Detalle de CxC.'!J202)","v":""},{"$f":"IF('800111a - Nota. Detalle de CxC.'!J203=\"\",\"\",'800111a - Nota. Detalle de CxC.'!J203)","v":""},{"$f":"IF('800111a - Nota. Detalle de CxC.'!J204=\"\",\"\",'800111a - Nota. Detalle de CxC.'!J204)","v":""},{"$f":"IF('800111a - Nota. Detalle de CxC.'!J205=\"\",\"\",'800111a - Nota. Detalle de CxC.'!J205)","v":""},{"$f":"IF('800111a - Nota. Detalle de CxC.'!J206=\"\",\"\",'800111a - Nota. Detalle de CxC.'!J206)","v":""},{"$f":"IF('800111a - Nota. Detalle de CxC.'!J207=\"\",\"\",'800111a - Nota. Detalle de CxC.'!J207)","v":""},{"$f":"IF('800111a - Nota. Detalle de CxC.'!J208=\"\",\"\",'800111a - Nota. Detalle de CxC.'!J208)","v":""},{"$f":"IF('800111a - Nota. Detalle de CxC.'!J209=\"\",\"\",'800111a - Nota. Detalle de CxC.'!J209)","v":""},{"$f":"IF('800111a - Nota. Detalle de CxC.'!J210=\"\",\"\",'800111a - Nota. Detalle de CxC.'!J210)","v":""},{"$f":"IF('800111a - Nota. Detalle de CxC.'!J211=\"\",\"\",'800111a - Nota. Detalle de CxC.'!J211)","v":""},{"$f":"IF('800111a - Nota. Detalle de CxC.'!J212=\"\",\"\",'800111a - Nota. Detalle de CxC.'!J212)","v":""},{"$f":"IF('800111a - Nota. Detalle de CxC.'!J213=\"\",\"\",'800111a - Nota. Detalle de CxC.'!J213)","v":""},{"$f":"IF('800111a - Nota. Detalle de CxC.'!J214=\"\",\"\",'800111a - Nota. Detalle de CxC.'!J214)","v":""},{"$f":"IF('800111a - Nota. Detalle de CxC.'!J215=\"\",\"\",'800111a - Nota. Detalle de CxC.'!J215)","v":""},{"$f":"IF('800111a - Nota. Detalle de CxC.'!J216=\"\",\"\",'800111a - Nota. Detalle de CxC.'!J216)","v":""},{"$f":"IF('800111a - Nota. Detalle de CxC.'!J217=\"\",\"\",'800111a - Nota. Detalle de CxC.'!J217)","v":""},{"$f":"IF('800111a - Nota. Detalle de CxC.'!J218=\"\",\"\",'800111a - Nota. Detalle de CxC.'!J218)","v":""},{"$f":"IF('800111a - Nota. Detalle de CxC.'!J219=\"\",\"\",'800111a - Nota. Detalle de CxC.'!J219)","v":""},{"$f":"IF('800111a - Nota. Detalle de CxC.'!J220=\"\",\"\",'800111a - Nota. Detalle de CxC.'!J220)","v":""},{"$f":"IF('800111a - Nota. Detalle de CxC.'!J221=\"\",\"\",'800111a - Nota. Detalle de CxC.'!J221)","v":""},{"$f":"IF('800111a - Nota. Detalle de CxC.'!J222=\"\",\"\",'800111a - Nota. Detalle de CxC.'!J222)","v":""},{"$f":"IF('800111a - Nota. Detalle de CxC.'!J223=\"\",\"\",'800111a - Nota. Detalle de CxC.'!J223)","v":""},{"$f":"IF('800111a - Nota. Detalle de CxC.'!J224=\"\",\"\",'800111a - Nota. Detalle de CxC.'!J224)","v":""},{"$f":"IF('800111a - Nota. Detalle de CxC.'!J225=\"\",\"\",'800111a - Nota. Detalle de CxC.'!J225)","v":""},{"$f":"IF('800111a - Nota. Detalle de CxC.'!J226=\"\",\"\",'800111a - Nota. Detalle de CxC.'!J226)","v":""},{"$f":"IF('800111a - Nota. Detalle de CxC.'!J227=\"\",\"\",'800111a - Nota. Detalle de CxC.'!J227)","v":""},{"$f":"IF('800111a - Nota. Detalle de CxC.'!J228=\"\",\"\",'800111a - Nota. Detalle de CxC.'!J228)","v":""},{"$f":"IF('800111a - Nota. Detalle de CxC.'!J229=\"\",\"\",'800111a - Nota. Detalle de CxC.'!J229)","v":""},{"$f":"IF('800111a - Nota. Detalle de CxC.'!J230=\"\",\"\",'800111a - Nota. Detalle de CxC.'!J230)","v":""},{"$f":"IF('800111a - Nota. Detalle de CxC.'!J231=\"\",\"\",'800111a - Nota. Detalle de CxC.'!J231)","v":""},{"$f":"IF('800111a - Nota. Detalle de CxC.'!J232=\"\",\"\",'800111a - Nota. Detalle de CxC.'!J232)","v":""},{"$f":"IF('800111a - Nota. Detalle de CxC.'!J233=\"\",\"\",'800111a - Nota. Detalle de CxC.'!J233)","v":""},{"$f":"IF('800111a - Nota. Detalle de CxC.'!J234=\"\",\"\",'800111a - Nota. Detalle de CxC.'!J234)","v":""},null,null,null,{"$f":"IF('800111a - Nota. Detalle de CxC.'!J238=\"\",\"\",'800111a - Nota. Detalle de CxC.'!J238)","v":""},{"$f":"IF('800111a - Nota. Detalle de CxC.'!J239=\"\",\"\",'800111a - Nota. Detalle de CxC.'!J239)","v":""},{"$f":"IF('800111a - Nota. Detalle de CxC.'!J240=\"\",\"\",'800111a - Nota. Detalle de CxC.'!J240)","v":""},{"$f":"IF('800111a - Nota. Detalle de CxC.'!J241=\"\",\"\",'800111a - Nota. Detalle de CxC.'!J241)","v":""},{"$f":"IF('800111a - Nota. Detalle de CxC.'!J242=\"\",\"\",'800111a - Nota. Detalle de CxC.'!J242)","v":""},{"$f":"IF('800111a - Nota. Detalle de CxC.'!J243=\"\",\"\",'800111a - Nota. Detalle de CxC.'!J243)","v":""},{"$f":"IF('800111a - Nota. Detalle de CxC.'!J244=\"\",\"\",'800111a - Nota. Detalle de CxC.'!J244)","v":""},{"$f":"IF('800111a - Nota. Detalle de CxC.'!J245=\"\",\"\",'800111a - Nota. Detalle de CxC.'!J245)","v":""},{"$f":"IF('800111a - Nota. Detalle de CxC.'!J246=\"\",\"\",'800111a - Nota. Detalle de CxC.'!J246)","v":""},{"$f":"IF('800111a - Nota. Detalle de CxC.'!J247=\"\",\"\",'800111a - Nota. Detalle de CxC.'!J247)","v":""},{"$f":"IF('800111a - Nota. Detalle de CxC.'!J248=\"\",\"\",'800111a - Nota. Detalle de CxC.'!J248)","v":""},{"$f":"IF('800111a - Nota. Detalle de CxC.'!J249=\"\",\"\",'800111a - Nota. Detalle de CxC.'!J249)","v":""},{"$f":"IF('800111a - Nota. Detalle de CxC.'!J250=\"\",\"\",'800111a - Nota. Detalle de CxC.'!J250)","v":""},{"$f":"IF('800111a - Nota. Detalle de CxC.'!J251=\"\",\"\",'800111a - Nota. Detalle de CxC.'!J251)","v":""},{"$f":"IF('800111a - Nota. Detalle de CxC.'!J252=\"\",\"\",'800111a - Nota. Detalle de CxC.'!J252)","v":""},{"$f":"IF('800111a - Nota. Detalle de CxC.'!J253=\"\",\"\",'800111a - Nota. Detalle de CxC.'!J253)","v":""},{"$f":"IF('800111a - Nota. Detalle de CxC.'!J254=\"\",\"\",'800111a - Nota. Detalle de CxC.'!J254)","v":""},{"$f":"IF('800111a - Nota. Detalle de CxC.'!J255=\"\",\"\",'800111a - Nota. Detalle de CxC.'!J255)","v":""},{"$f":"IF('800111a - Nota. Detalle de CxC.'!J256=\"\",\"\",'800111a - Nota. Detalle de CxC.'!J256)","v":""},{"$f":"IF('800111a - Nota. Detalle de CxC.'!J257=\"\",\"\",'800111a - Nota. Detalle de CxC.'!J257)","v":""},{"$f":"IF('800111a - Nota. Detalle de CxC.'!J258=\"\",\"\",'800111a - Nota. Detalle de CxC.'!J258)","v":""},{"$f":"IF('800111a - Nota. Detalle de CxC.'!J259=\"\",\"\",'800111a - Nota. Detalle de CxC.'!J259)","v":""},{"$f":"IF('800111a - Nota. Detalle de CxC.'!J260=\"\",\"\",'800111a - Nota. Detalle de CxC.'!J260)","v":""},{"$f":"IF('800111a - Nota. Detalle de CxC.'!J261=\"\",\"\",'800111a - Nota. Detalle de CxC.'!J261)","v":""},{"$f":"IF('800111a - Nota. Detalle de CxC.'!J262=\"\",\"\",'800111a - Nota. Detalle de CxC.'!J262)","v":""},{"$f":"IF('800111a - Nota. Detalle de CxC.'!J263=\"\",\"\",'800111a - Nota. Detalle de CxC.'!J263)","v":""},{"$f":"IF('800111a - Nota. Detalle de CxC.'!J264=\"\",\"\",'800111a - Nota. Detalle de CxC.'!J264)","v":""},{"$f":"IF('800111a - Nota. Detalle de CxC.'!J265=\"\",\"\",'800111a - Nota. Detalle de CxC.'!J265)","v":""},{"$f":"IF('800111a - Nota. Detalle de CxC.'!J266=\"\",\"\",'800111a - Nota. Detalle de CxC.'!J266)","v":""},{"$f":"IF('800111a - Nota. Detalle de CxC.'!J267=\"\",\"\",'800111a - Nota. Detalle de CxC.'!J267)","v":""},{"$f":"IF('800111a - Nota. Detalle de CxC.'!J268=\"\",\"\",'800111a - Nota. Detalle de CxC.'!J268)","v":""},{"$f":"IF('800111a - Nota. Detalle de CxC.'!J269=\"\",\"\",'800111a - Nota. Detalle de CxC.'!J269)","v":""},{"$f":"IF('800111a - Nota. Detalle de CxC.'!J270=\"\",\"\",'800111a - Nota. Detalle de CxC.'!J270)","v":""},{"$f":"IF('800111a - Nota. Detalle de CxC.'!J271=\"\",\"\",'800111a - Nota. Detalle de CxC.'!J271)","v":""},{"$f":"IF('800111a - Nota. Detalle de CxC.'!J272=\"\",\"\",'800111a - Nota. Detalle de CxC.'!J272)","v":""},{"$f":"IF('800111a - Nota. Detalle de CxC.'!J273=\"\",\"\",'800111a - Nota. Detalle de CxC.'!J273)","v":""},{"$f":"IF('800111a - Nota. Detalle de CxC.'!J274=\"\",\"\",'800111a - Nota. Detalle de CxC.'!J274)","v":""},{"$f":"IF('800111a - Nota. Detalle de CxC.'!J275=\"\",\"\",'800111a - Nota. Detalle de CxC.'!J275)","v":""},{"$f":"IF('800111a - Nota. Detalle de CxC.'!J276=\"\",\"\",'800111a - Nota. Detalle de CxC.'!J276)","v":""},{"$f":"IF('800111a - Nota. Detalle de CxC.'!J277=\"\",\"\",'800111a - Nota. Detalle de CxC.'!J277)","v":""},{"$f":"IF('800111a - Nota. Detalle de CxC.'!J278=\"\",\"\",'800111a - Nota. Detalle de CxC.'!J278)","v":""},{"$f":"IF('800111a - Nota. Detalle de CxC.'!J279=\"\",\"\",'800111a - Nota. Detalle de CxC.'!J279)","v":""},{"$f":"IF('800111a - Nota. Detalle de CxC.'!J280=\"\",\"\",'800111a - Nota. Detalle de CxC.'!J280)","v":""},{"$f":"IF('800111a - Nota. Detalle de CxC.'!J281=\"\",\"\",'800111a - Nota. Detalle de CxC.'!J281)","v":""},{"$f":"IF('800111a - Nota. Detalle de CxC.'!J282=\"\",\"\",'800111a - Nota. Detalle de CxC.'!J282)","v":""},{"$f":"IF('800111a - Nota. Detalle de CxC.'!J283=\"\",\"\",'800111a - Nota. Detalle de CxC.'!J283)","v":""},{"$f":"IF('800111a - Nota. Detalle de CxC.'!J284=\"\",\"\",'800111a - Nota. Detalle de CxC.'!J284)","v":""},{"$f":"IF('800111a - Nota. Detalle de CxC.'!J285=\"\",\"\",'800111a - Nota. Detalle de CxC.'!J285)","v":""},{"$f":"IF('800111a - Nota. Detalle de CxC.'!J286=\"\",\"\",'800111a - Nota. Detalle de CxC.'!J286)","v":""},{"$f":"IF('800111a - Nota. Detalle de CxC.'!J287=\"\",\"\",'800111a - Nota. Detalle de CxC.'!J287)","v":""},null,null,null,{"$f":"IF('800111a - Nota. Detalle de CxC.'!J291=\"\",\"\",'800111a - Nota. Detalle de CxC.'!J291)","v":""},{"$f":"IF('800111a - Nota. Detalle de CxC.'!J292=\"\",\"\",'800111a - Nota. Detalle de CxC.'!J292)","v":""},{"$f":"IF('800111a - Nota. Detalle de CxC.'!J293=\"\",\"\",'800111a - Nota. Detalle de CxC.'!J293)","v":""},{"$f":"IF('800111a - Nota. Detalle de CxC.'!J294=\"\",\"\",'800111a - Nota. Detalle de CxC.'!J294)","v":""},{"$f":"IF('800111a - Nota. Detalle de CxC.'!J295=\"\",\"\",'800111a - Nota. Detalle de CxC.'!J295)","v":""},{"$f":"IF('800111a - Nota. Detalle de CxC.'!J296=\"\",\"\",'800111a - Nota. Detalle de CxC.'!J296)","v":""},{"$f":"IF('800111a - Nota. Detalle de CxC.'!J297=\"\",\"\",'800111a - Nota. Detalle de CxC.'!J297)","v":""},{"$f":"IF('800111a - Nota. Detalle de CxC.'!J298=\"\",\"\",'800111a - Nota. Detalle de CxC.'!J298)","v":""},{"$f":"IF('800111a - Nota. Detalle de CxC.'!J299=\"\",\"\",'800111a - Nota. Detalle de CxC.'!J299)","v":""},{"$f":"IF('800111a - Nota. Detalle de CxC.'!J300=\"\",\"\",'800111a - Nota. Detalle de CxC.'!J300)","v":""},{"$f":"IF('800111a - Nota. Detalle de CxC.'!J301=\"\",\"\",'800111a - Nota. Detalle de CxC.'!J301)","v":""},{"$f":"IF('800111a - Nota. Detalle de CxC.'!J302=\"\",\"\",'800111a - Nota. Detalle de CxC.'!J302)","v":""},{"$f":"IF('800111a - Nota. Detalle de CxC.'!J303=\"\",\"\",'800111a - Nota. Detalle de CxC.'!J303)","v":""},{"$f":"IF('800111a - Nota. Detalle de CxC.'!J304=\"\",\"\",'800111a - Nota. Detalle de CxC.'!J304)","v":""},{"$f":"IF('800111a - Nota. Detalle de CxC.'!J305=\"\",\"\",'800111a - Nota. Detalle de CxC.'!J305)","v":""},{"$f":"IF('800111a - Nota. Detalle de CxC.'!J306=\"\",\"\",'800111a - Nota. Detalle de CxC.'!J306)","v":""},{"$f":"IF('800111a - Nota. Detalle de CxC.'!J307=\"\",\"\",'800111a - Nota. Detalle de CxC.'!J307)","v":""},{"$f":"IF('800111a - Nota. Detalle de CxC.'!J308=\"\",\"\",'800111a - Nota. Detalle de CxC.'!J308)","v":""},{"$f":"IF('800111a - Nota. Detalle de CxC.'!J309=\"\",\"\",'800111a - Nota. Detalle de CxC.'!J309)","v":""},{"$f":"IF('800111a - Nota. Detalle de CxC.'!J310=\"\",\"\",'800111a - Nota. Detalle de CxC.'!J310)","v":""},{"$f":"IF('800111a - Nota. Detalle de CxC.'!J311=\"\",\"\",'800111a - Nota. Detalle de CxC.'!J311)","v":""},{"$f":"IF('800111a - Nota. Detalle de CxC.'!J312=\"\",\"\",'800111a - Nota. Detalle de CxC.'!J312)","v":""},{"$f":"IF('800111a - Nota. Detalle de CxC.'!J313=\"\",\"\",'800111a - Nota. Detalle de CxC.'!J313)","v":""},{"$f":"IF('800111a - Nota. Detalle de CxC.'!J314=\"\",\"\",'800111a - Nota. Detalle de CxC.'!J314)","v":""},{"$f":"IF('800111a - Nota. Detalle de CxC.'!J315=\"\",\"\",'800111a - Nota. Detalle de CxC.'!J315)","v":""},{"$f":"IF('800111a - Nota. Detalle de CxC.'!J316=\"\",\"\",'800111a - Nota. Detalle de CxC.'!J316)","v":""},{"$f":"IF('800111a - Nota. Detalle de CxC.'!J317=\"\",\"\",'800111a - Nota. Detalle de CxC.'!J317)","v":""},{"$f":"IF('800111a - Nota. Detalle de CxC.'!J318=\"\",\"\",'800111a - Nota. Detalle de CxC.'!J318)","v":""},{"$f":"IF('800111a - Nota. Detalle de CxC.'!J319=\"\",\"\",'800111a - Nota. Detalle de CxC.'!J319)","v":""},{"$f":"IF('800111a - Nota. Detalle de CxC.'!J320=\"\",\"\",'800111a - Nota. Detalle de CxC.'!J320)","v":""},{"$f":"IF('800111a - Nota. Detalle de CxC.'!J321=\"\",\"\",'800111a - Nota. Detalle de CxC.'!J321)","v":""},{"$f":"IF('800111a - Nota. Detalle de CxC.'!J322=\"\",\"\",'800111a - Nota. Detalle de CxC.'!J322)","v":""},{"$f":"IF('800111a - Nota. Detalle de CxC.'!J323=\"\",\"\",'800111a - Nota. Detalle de CxC.'!J323)","v":""},{"$f":"IF('800111a - Nota. Detalle de CxC.'!J324=\"\",\"\",'800111a - Nota. Detalle de CxC.'!J324)","v":""},{"$f":"IF('800111a - Nota. Detalle de CxC.'!J325=\"\",\"\",'800111a - Nota. Detalle de CxC.'!J325)","v":""},{"$f":"IF('800111a - Nota. Detalle de CxC.'!J326=\"\",\"\",'800111a - Nota. Detalle de CxC.'!J326)","v":""},{"$f":"IF('800111a - Nota. Detalle de CxC.'!J327=\"\",\"\",'800111a - Nota. Detalle de CxC.'!J327)","v":""},{"$f":"IF('800111a - Nota. Detalle de CxC.'!J328=\"\",\"\",'800111a - Nota. Detalle de CxC.'!J328)","v":""},{"$f":"IF('800111a - Nota. Detalle de CxC.'!J329=\"\",\"\",'800111a - Nota. Detalle de CxC.'!J329)","v":""},{"$f":"IF('800111a - Nota. Detalle de CxC.'!J330=\"\",\"\",'800111a - Nota. Detalle de CxC.'!J330)","v":""},{"$f":"IF('800111a - Nota. Detalle de CxC.'!J331=\"\",\"\",'800111a - Nota. Detalle de CxC.'!J331)","v":""},{"$f":"IF('800111a - Nota. Detalle de CxC.'!J332=\"\",\"\",'800111a - Nota. Detalle de CxC.'!J332)","v":""},{"$f":"IF('800111a - Nota. Detalle de CxC.'!J333=\"\",\"\",'800111a - Nota. Detalle de CxC.'!J333)","v":""},{"$f":"IF('800111a - Nota. Detalle de CxC.'!J334=\"\",\"\",'800111a - Nota. Detalle de CxC.'!J334)","v":""},{"$f":"IF('800111a - Nota. Detalle de CxC.'!J335=\"\",\"\",'800111a - Nota. Detalle de CxC.'!J335)","v":""},{"$f":"IF('800111a - Nota. Detalle de CxC.'!J336=\"\",\"\",'800111a - Nota. Detalle de CxC.'!J336)","v":""},{"$f":"IF('800111a - Nota. Detalle de CxC.'!J337=\"\",\"\",'800111a - Nota. Detalle de CxC.'!J337)","v":""},{"$f":"IF('800111a - Nota. Detalle de CxC.'!J338=\"\",\"\",'800111a - Nota. Detalle de CxC.'!J338)","v":""},{"$f":"IF('800111a - Nota. Detalle de CxC.'!J339=\"\",\"\",'800111a - Nota. Detalle de CxC.'!J339)","v":""},{"$f":"IF('800111a - Nota. Detalle de CxC.'!J340=\"\",\"\",'800111a - Nota. Detalle de CxC.'!J340)","v":""}]
[null,"1;2","co-svsp-core_2017-12-31:RazonSocialDeudorCxC","Razón Social deudor",null,null,{"$f":"IF('800111a - Nota. Detalle de CxC.'!K185=\"\",\"\",'800111a - Nota. Detalle de CxC.'!K185)","v":""},{"$f":"IF('800111a - Nota. Detalle de CxC.'!K186=\"\",\"\",'800111a - Nota. Detalle de CxC.'!K186)","v":""},{"$f":"IF('800111a - Nota. Detalle de CxC.'!K187=\"\",\"\",'800111a - Nota. Detalle de CxC.'!K187)","v":""},{"$f":"IF('800111a - Nota. Detalle de CxC.'!K188=\"\",\"\",'800111a - Nota. Detalle de CxC.'!K188)","v":""},{"$f":"IF('800111a - Nota. Detalle de CxC.'!K189=\"\",\"\",'800111a - Nota. Detalle de CxC.'!K189)","v":""},{"$f":"IF('800111a - Nota. Detalle de CxC.'!K190=\"\",\"\",'800111a - Nota. Detalle de CxC.'!K190)","v":""},{"$f":"IF('800111a - Nota. Detalle de CxC.'!K191=\"\",\"\",'800111a - Nota. Detalle de CxC.'!K191)","v":""},{"$f":"IF('800111a - Nota. Detalle de CxC.'!K192=\"\",\"\",'800111a - Nota. Detalle de CxC.'!K192)","v":""},{"$f":"IF('800111a - Nota. Detalle de CxC.'!K193=\"\",\"\",'800111a - Nota. Detalle de CxC.'!K193)","v":""},{"$f":"IF('800111a - Nota. Detalle de CxC.'!K194=\"\",\"\",'800111a - Nota. Detalle de CxC.'!K194)","v":""},{"$f":"IF('800111a - Nota. Detalle de CxC.'!K195=\"\",\"\",'800111a - Nota. Detalle de CxC.'!K195)","v":""},{"$f":"IF('800111a - Nota. Detalle de CxC.'!K196=\"\",\"\",'800111a - Nota. Detalle de CxC.'!K196)","v":""},{"$f":"IF('800111a - Nota. Detalle de CxC.'!K197=\"\",\"\",'800111a - Nota. Detalle de CxC.'!K197)","v":""},{"$f":"IF('800111a - Nota. Detalle de CxC.'!K198=\"\",\"\",'800111a - Nota. Detalle de CxC.'!K198)","v":""},{"$f":"IF('800111a - Nota. Detalle de CxC.'!K199=\"\",\"\",'800111a - Nota. Detalle de CxC.'!K199)","v":""},{"$f":"IF('800111a - Nota. Detalle de CxC.'!K200=\"\",\"\",'800111a - Nota. Detalle de CxC.'!K200)","v":""},{"$f":"IF('800111a - Nota. Detalle de CxC.'!K201=\"\",\"\",'800111a - Nota. Detalle de CxC.'!K201)","v":""},{"$f":"IF('800111a - Nota. Detalle de CxC.'!K202=\"\",\"\",'800111a - Nota. Detalle de CxC.'!K202)","v":""},{"$f":"IF('800111a - Nota. Detalle de CxC.'!K203=\"\",\"\",'800111a - Nota. Detalle de CxC.'!K203)","v":""},{"$f":"IF('800111a - Nota. Detalle de CxC.'!K204=\"\",\"\",'800111a - Nota. Detalle de CxC.'!K204)","v":""},{"$f":"IF('800111a - Nota. Detalle de CxC.'!K205=\"\",\"\",'800111a - Nota. Detalle de CxC.'!K205)","v":""},{"$f":"IF('800111a - Nota. Detalle de CxC.'!K206=\"\",\"\",'800111a - Nota. Detalle de CxC.'!K206)","v":""},{"$f":"IF('800111a - Nota. Detalle de CxC.'!K207=\"\",\"\",'800111a - Nota. Detalle de CxC.'!K207)","v":""},{"$f":"IF('800111a - Nota. Detalle de CxC.'!K208=\"\",\"\",'800111a - Nota. Detalle de CxC.'!K208)","v":""},{"$f":"IF('800111a - Nota. Detalle de CxC.'!K209=\"\",\"\",'800111a - Nota. Detalle de CxC.'!K209)","v":""},{"$f":"IF('800111a - Nota. Detalle de CxC.'!K210=\"\",\"\",'800111a - Nota. Detalle de CxC.'!K210)","v":""},{"$f":"IF('800111a - Nota. Detalle de CxC.'!K211=\"\",\"\",'800111a - Nota. Detalle de CxC.'!K211)","v":""},{"$f":"IF('800111a - Nota. Detalle de CxC.'!K212=\"\",\"\",'800111a - Nota. Detalle de CxC.'!K212)","v":""},{"$f":"IF('800111a - Nota. Detalle de CxC.'!K213=\"\",\"\",'800111a - Nota. Detalle de CxC.'!K213)","v":""},{"$f":"IF('800111a - Nota. Detalle de CxC.'!K214=\"\",\"\",'800111a - Nota. Detalle de CxC.'!K214)","v":""},{"$f":"IF('800111a - Nota. Detalle de CxC.'!K215=\"\",\"\",'800111a - Nota. Detalle de CxC.'!K215)","v":""},{"$f":"IF('800111a - Nota. Detalle de CxC.'!K216=\"\",\"\",'800111a - Nota. Detalle de CxC.'!K216)","v":""},{"$f":"IF('800111a - Nota. Detalle de CxC.'!K217=\"\",\"\",'800111a - Nota. Detalle de CxC.'!K217)","v":""},{"$f":"IF('800111a - Nota. Detalle de CxC.'!K218=\"\",\"\",'800111a - Nota. Detalle de CxC.'!K218)","v":""},{"$f":"IF('800111a - Nota. Detalle de CxC.'!K219=\"\",\"\",'800111a - Nota. Detalle de CxC.'!K219)","v":""},{"$f":"IF('800111a - Nota. Detalle de CxC.'!K220=\"\",\"\",'800111a - Nota. Detalle de CxC.'!K220)","v":""},{"$f":"IF('800111a - Nota. Detalle de CxC.'!K221=\"\",\"\",'800111a - Nota. Detalle de CxC.'!K221)","v":""},{"$f":"IF('800111a - Nota. Detalle de CxC.'!K222=\"\",\"\",'800111a - Nota. Detalle de CxC.'!K222)","v":""},{"$f":"IF('800111a - Nota. Detalle de CxC.'!K223=\"\",\"\",'800111a - Nota. Detalle de CxC.'!K223)","v":""},{"$f":"IF('800111a - Nota. Detalle de CxC.'!K224=\"\",\"\",'800111a - Nota. Detalle de CxC.'!K224)","v":""},{"$f":"IF('800111a - Nota. Detalle de CxC.'!K225=\"\",\"\",'800111a - Nota. Detalle de CxC.'!K225)","v":""},{"$f":"IF('800111a - Nota. Detalle de CxC.'!K226=\"\",\"\",'800111a - Nota. Detalle de CxC.'!K226)","v":""},{"$f":"IF('800111a - Nota. Detalle de CxC.'!K227=\"\",\"\",'800111a - Nota. Detalle de CxC.'!K227)","v":""},{"$f":"IF('800111a - Nota. Detalle de CxC.'!K228=\"\",\"\",'800111a - Nota. Detalle de CxC.'!K228)","v":""},{"$f":"IF('800111a - Nota. Detalle de CxC.'!K229=\"\",\"\",'800111a - Nota. Detalle de CxC.'!K229)","v":""},{"$f":"IF('800111a - Nota. Detalle de CxC.'!K230=\"\",\"\",'800111a - Nota. Detalle de CxC.'!K230)","v":""},{"$f":"IF('800111a - Nota. Detalle de CxC.'!K231=\"\",\"\",'800111a - Nota. Detalle de CxC.'!K231)","v":""},{"$f":"IF('800111a - Nota. Detalle de CxC.'!K232=\"\",\"\",'800111a - Nota. Detalle de CxC.'!K232)","v":""},{"$f":"IF('800111a - Nota. Detalle de CxC.'!K233=\"\",\"\",'800111a - Nota. Detalle de CxC.'!K233)","v":""},{"$f":"IF('800111a - Nota. Detalle de CxC.'!K234=\"\",\"\",'800111a - Nota. Detalle de CxC.'!K234)","v":""},null,null,null,{"$f":"IF('800111a - Nota. Detalle de CxC.'!K238=\"\",\"\",'800111a - Nota. Detalle de CxC.'!K238)","v":""},{"$f":"IF('800111a - Nota. Detalle de CxC.'!K239=\"\",\"\",'800111a - Nota. Detalle de CxC.'!K239)","v":""},{"$f":"IF('800111a - Nota. Detalle de CxC.'!K240=\"\",\"\",'800111a - Nota. Detalle de CxC.'!K240)","v":""},{"$f":"IF('800111a - Nota. Detalle de CxC.'!K241=\"\",\"\",'800111a - Nota. Detalle de CxC.'!K241)","v":""},{"$f":"IF('800111a - Nota. Detalle de CxC.'!K242=\"\",\"\",'800111a - Nota. Detalle de CxC.'!K242)","v":""},{"$f":"IF('800111a - Nota. Detalle de CxC.'!K243=\"\",\"\",'800111a - Nota. Detalle de CxC.'!K243)","v":""},{"$f":"IF('800111a - Nota. Detalle de CxC.'!K244=\"\",\"\",'800111a - Nota. Detalle de CxC.'!K244)","v":""},{"$f":"IF('800111a - Nota. Detalle de CxC.'!K245=\"\",\"\",'800111a - Nota. Detalle de CxC.'!K245)","v":""},{"$f":"IF('800111a - Nota. Detalle de CxC.'!K246=\"\",\"\",'800111a - Nota. Detalle de CxC.'!K246)","v":""},{"$f":"IF('800111a - Nota. Detalle de CxC.'!K247=\"\",\"\",'800111a - Nota. Detalle de CxC.'!K247)","v":""},{"$f":"IF('800111a - Nota. Detalle de CxC.'!K248=\"\",\"\",'800111a - Nota. Detalle de CxC.'!K248)","v":""},{"$f":"IF('800111a - Nota. Detalle de CxC.'!K249=\"\",\"\",'800111a - Nota. Detalle de CxC.'!K249)","v":""},{"$f":"IF('800111a - Nota. Detalle de CxC.'!K250=\"\",\"\",'800111a - Nota. Detalle de CxC.'!K250)","v":""},{"$f":"IF('800111a - Nota. Detalle de CxC.'!K251=\"\",\"\",'800111a - Nota. Detalle de CxC.'!K251)","v":""},{"$f":"IF('800111a - Nota. Detalle de CxC.'!K252=\"\",\"\",'800111a - Nota. Detalle de CxC.'!K252)","v":""},{"$f":"IF('800111a - Nota. Detalle de CxC.'!K253=\"\",\"\",'800111a - Nota. Detalle de CxC.'!K253)","v":""},{"$f":"IF('800111a - Nota. Detalle de CxC.'!K254=\"\",\"\",'800111a - Nota. Detalle de CxC.'!K254)","v":""},{"$f":"IF('800111a - Nota. Detalle de CxC.'!K255=\"\",\"\",'800111a - Nota. Detalle de CxC.'!K255)","v":""},{"$f":"IF('800111a - Nota. Detalle de CxC.'!K256=\"\",\"\",'800111a - Nota. Detalle de CxC.'!K256)","v":""},{"$f":"IF('800111a - Nota. Detalle de CxC.'!K257=\"\",\"\",'800111a - Nota. Detalle de CxC.'!K257)","v":""},{"$f":"IF('800111a - Nota. Detalle de CxC.'!K258=\"\",\"\",'800111a - Nota. Detalle de CxC.'!K258)","v":""},{"$f":"IF('800111a - Nota. Detalle de CxC.'!K259=\"\",\"\",'800111a - Nota. Detalle de CxC.'!K259)","v":""},{"$f":"IF('800111a - Nota. Detalle de CxC.'!K260=\"\",\"\",'800111a - Nota. Detalle de CxC.'!K260)","v":""},{"$f":"IF('800111a - Nota. Detalle de CxC.'!K261=\"\",\"\",'800111a - Nota. Detalle de CxC.'!K261)","v":""},{"$f":"IF('800111a - Nota. Detalle de CxC.'!K262=\"\",\"\",'800111a - Nota. Detalle de CxC.'!K262)","v":""},{"$f":"IF('800111a - Nota. Detalle de CxC.'!K263=\"\",\"\",'800111a - Nota. Detalle de CxC.'!K263)","v":""},{"$f":"IF('800111a - Nota. Detalle de CxC.'!K264=\"\",\"\",'800111a - Nota. Detalle de CxC.'!K264)","v":""},{"$f":"IF('800111a - Nota. Detalle de CxC.'!K265=\"\",\"\",'800111a - Nota. Detalle de CxC.'!K265)","v":""},{"$f":"IF('800111a - Nota. Detalle de CxC.'!K266=\"\",\"\",'800111a - Nota. Detalle de CxC.'!K266)","v":""},{"$f":"IF('800111a - Nota. Detalle de CxC.'!K267=\"\",\"\",'800111a - Nota. Detalle de CxC.'!K267)","v":""},{"$f":"IF('800111a - Nota. Detalle de CxC.'!K268=\"\",\"\",'800111a - Nota. Detalle de CxC.'!K268)","v":""},{"$f":"IF('800111a - Nota. Detalle de CxC.'!K269=\"\",\"\",'800111a - Nota. Detalle de CxC.'!K269)","v":""},{"$f":"IF('800111a - Nota. Detalle de CxC.'!K270=\"\",\"\",'800111a - Nota. Detalle de CxC.'!K270)","v":""},{"$f":"IF('800111a - Nota. Detalle de CxC.'!K271=\"\",\"\",'800111a - Nota. Detalle de CxC.'!K271)","v":""},{"$f":"IF('800111a - Nota. Detalle de CxC.'!K272=\"\",\"\",'800111a - Nota. Detalle de CxC.'!K272)","v":""},{"$f":"IF('800111a - Nota. Detalle de CxC.'!K273=\"\",\"\",'800111a - Nota. Detalle de CxC.'!K273)","v":""},{"$f":"IF('800111a - Nota. Detalle de CxC.'!K274=\"\",\"\",'800111a - Nota. Detalle de CxC.'!K274)","v":""},{"$f":"IF('800111a - Nota. Detalle de CxC.'!K275=\"\",\"\",'800111a - Nota. Detalle de CxC.'!K275)","v":""},{"$f":"IF('800111a - Nota. Detalle de CxC.'!K276=\"\",\"\",'800111a - Nota. Detalle de CxC.'!K276)","v":""},{"$f":"IF('800111a - Nota. Detalle de CxC.'!K277=\"\",\"\",'800111a - Nota. Detalle de CxC.'!K277)","v":""},{"$f":"IF('800111a - Nota. Detalle de CxC.'!K278=\"\",\"\",'800111a - Nota. Detalle de CxC.'!K278)","v":""},{"$f":"IF('800111a - Nota. Detalle de CxC.'!K279=\"\",\"\",'800111a - Nota. Detalle de CxC.'!K279)","v":""},{"$f":"IF('800111a - Nota. Detalle de CxC.'!K280=\"\",\"\",'800111a - Nota. Detalle de CxC.'!K280)","v":""},{"$f":"IF('800111a - Nota. Detalle de CxC.'!K281=\"\",\"\",'800111a - Nota. Detalle de CxC.'!K281)","v":""},{"$f":"IF('800111a - Nota. Detalle de CxC.'!K282=\"\",\"\",'800111a - Nota. Detalle de CxC.'!K282)","v":""},{"$f":"IF('800111a - Nota. Detalle de CxC.'!K283=\"\",\"\",'800111a - Nota. Detalle de CxC.'!K283)","v":""},{"$f":"IF('800111a - Nota. Detalle de CxC.'!K284=\"\",\"\",'800111a - Nota. Detalle de CxC.'!K284)","v":""},{"$f":"IF('800111a - Nota. Detalle de CxC.'!K285=\"\",\"\",'800111a - Nota. Detalle de CxC.'!K285)","v":""},{"$f":"IF('800111a - Nota. Detalle de CxC.'!K286=\"\",\"\",'800111a - Nota. Detalle de CxC.'!K286)","v":""},{"$f":"IF('800111a - Nota. Detalle de CxC.'!K287=\"\",\"\",'800111a - Nota. Detalle de CxC.'!K287)","v":""},null,null,null,{"$f":"IF('800111a - Nota. Detalle de CxC.'!K291=\"\",\"\",'800111a - Nota. Detalle de CxC.'!K291)","v":""},{"$f":"IF('800111a - Nota. Detalle de CxC.'!K292=\"\",\"\",'800111a - Nota. Detalle de CxC.'!K292)","v":""},{"$f":"IF('800111a - Nota. Detalle de CxC.'!K293=\"\",\"\",'800111a - Nota. Detalle de CxC.'!K293)","v":""},{"$f":"IF('800111a - Nota. Detalle de CxC.'!K294=\"\",\"\",'800111a - Nota. Detalle de CxC.'!K294)","v":""},{"$f":"IF('800111a - Nota. Detalle de CxC.'!K295=\"\",\"\",'800111a - Nota. Detalle de CxC.'!K295)","v":""},{"$f":"IF('800111a - Nota. Detalle de CxC.'!K296=\"\",\"\",'800111a - Nota. Detalle de CxC.'!K296)","v":""},{"$f":"IF('800111a - Nota. Detalle de CxC.'!K297=\"\",\"\",'800111a - Nota. Detalle de CxC.'!K297)","v":""},{"$f":"IF('800111a - Nota. Detalle de CxC.'!K298=\"\",\"\",'800111a - Nota. Detalle de CxC.'!K298)","v":""},{"$f":"IF('800111a - Nota. Detalle de CxC.'!K299=\"\",\"\",'800111a - Nota. Detalle de CxC.'!K299)","v":""},{"$f":"IF('800111a - Nota. Detalle de CxC.'!K300=\"\",\"\",'800111a - Nota. Detalle de CxC.'!K300)","v":""},{"$f":"IF('800111a - Nota. Detalle de CxC.'!K301=\"\",\"\",'800111a - Nota. Detalle de CxC.'!K301)","v":""},{"$f":"IF('800111a - Nota. Detalle de CxC.'!K302=\"\",\"\",'800111a - Nota. Detalle de CxC.'!K302)","v":""},{"$f":"IF('800111a - Nota. Detalle de CxC.'!K303=\"\",\"\",'800111a - Nota. Detalle de CxC.'!K303)","v":""},{"$f":"IF('800111a - Nota. Detalle de CxC.'!K304=\"\",\"\",'800111a - Nota. Detalle de CxC.'!K304)","v":""},{"$f":"IF('800111a - Nota. Detalle de CxC.'!K305=\"\",\"\",'800111a - Nota. Detalle de CxC.'!K305)","v":""},{"$f":"IF('800111a - Nota. Detalle de CxC.'!K306=\"\",\"\",'800111a - Nota. Detalle de CxC.'!K306)","v":""},{"$f":"IF('800111a - Nota. Detalle de CxC.'!K307=\"\",\"\",'800111a - Nota. Detalle de CxC.'!K307)","v":""},{"$f":"IF('800111a - Nota. Detalle de CxC.'!K308=\"\",\"\",'800111a - Nota. Detalle de CxC.'!K308)","v":""},{"$f":"IF('800111a - Nota. Detalle de CxC.'!K309=\"\",\"\",'800111a - Nota. Detalle de CxC.'!K309)","v":""},{"$f":"IF('800111a - Nota. Detalle de CxC.'!K310=\"\",\"\",'800111a - Nota. Detalle de CxC.'!K310)","v":""},{"$f":"IF('800111a - Nota. Detalle de CxC.'!K311=\"\",\"\",'800111a - Nota. Detalle de CxC.'!K311)","v":""},{"$f":"IF('800111a - Nota. Detalle de CxC.'!K312=\"\",\"\",'800111a - Nota. Detalle de CxC.'!K312)","v":""},{"$f":"IF('800111a - Nota. Detalle de CxC.'!K313=\"\",\"\",'800111a - Nota. Detalle de CxC.'!K313)","v":""},{"$f":"IF('800111a - Nota. Detalle de CxC.'!K314=\"\",\"\",'800111a - Nota. Detalle de CxC.'!K314)","v":""},{"$f":"IF('800111a - Nota. Detalle de CxC.'!K315=\"\",\"\",'800111a - Nota. Detalle de CxC.'!K315)","v":""},{"$f":"IF('800111a - Nota. Detalle de CxC.'!K316=\"\",\"\",'800111a - Nota. Detalle de CxC.'!K316)","v":""},{"$f":"IF('800111a - Nota. Detalle de CxC.'!K317=\"\",\"\",'800111a - Nota. Detalle de CxC.'!K317)","v":""},{"$f":"IF('800111a - Nota. Detalle de CxC.'!K318=\"\",\"\",'800111a - Nota. Detalle de CxC.'!K318)","v":""},{"$f":"IF('800111a - Nota. Detalle de CxC.'!K319=\"\",\"\",'800111a - Nota. Detalle de CxC.'!K319)","v":""},{"$f":"IF('800111a - Nota. Detalle de CxC.'!K320=\"\",\"\",'800111a - Nota. Detalle de CxC.'!K320)","v":""},{"$f":"IF('800111a - Nota. Detalle de CxC.'!K321=\"\",\"\",'800111a - Nota. Detalle de CxC.'!K321)","v":""},{"$f":"IF('800111a - Nota. Detalle de CxC.'!K322=\"\",\"\",'800111a - Nota. Detalle de CxC.'!K322)","v":""},{"$f":"IF('800111a - Nota. Detalle de CxC.'!K323=\"\",\"\",'800111a - Nota. Detalle de CxC.'!K323)","v":""},{"$f":"IF('800111a - Nota. Detalle de CxC.'!K324=\"\",\"\",'800111a - Nota. Detalle de CxC.'!K324)","v":""},{"$f":"IF('800111a - Nota. Detalle de CxC.'!K325=\"\",\"\",'800111a - Nota. Detalle de CxC.'!K325)","v":""},{"$f":"IF('800111a - Nota. Detalle de CxC.'!K326=\"\",\"\",'800111a - Nota. Detalle de CxC.'!K326)","v":""},{"$f":"IF('800111a - Nota. Detalle de CxC.'!K327=\"\",\"\",'800111a - Nota. Detalle de CxC.'!K327)","v":""},{"$f":"IF('800111a - Nota. Detalle de CxC.'!K328=\"\",\"\",'800111a - Nota. Detalle de CxC.'!K328)","v":""},{"$f":"IF('800111a - Nota. Detalle de CxC.'!K329=\"\",\"\",'800111a - Nota. Detalle de CxC.'!K329)","v":""},{"$f":"IF('800111a - Nota. Detalle de CxC.'!K330=\"\",\"\",'800111a - Nota. Detalle de CxC.'!K330)","v":""},{"$f":"IF('800111a - Nota. Detalle de CxC.'!K331=\"\",\"\",'800111a - Nota. Detalle de CxC.'!K331)","v":""},{"$f":"IF('800111a - Nota. Detalle de CxC.'!K332=\"\",\"\",'800111a - Nota. Detalle de CxC.'!K332)","v":""},{"$f":"IF('800111a - Nota. Detalle de CxC.'!K333=\"\",\"\",'800111a - Nota. Detalle de CxC.'!K333)","v":""},{"$f":"IF('800111a - Nota. Detalle de CxC.'!K334=\"\",\"\",'800111a - Nota. Detalle de CxC.'!K334)","v":""},{"$f":"IF('800111a - Nota. Detalle de CxC.'!K335=\"\",\"\",'800111a - Nota. Detalle de CxC.'!K335)","v":""},{"$f":"IF('800111a - Nota. Detalle de CxC.'!K336=\"\",\"\",'800111a - Nota. Detalle de CxC.'!K336)","v":""},{"$f":"IF('800111a - Nota. Detalle de CxC.'!K337=\"\",\"\",'800111a - Nota. Detalle de CxC.'!K337)","v":""},{"$f":"IF('800111a - Nota. Detalle de CxC.'!K338=\"\",\"\",'800111a - Nota. Detalle de CxC.'!K338)","v":""},{"$f":"IF('800111a - Nota. Detalle de CxC.'!K339=\"\",\"\",'800111a - Nota. Detalle de CxC.'!K339)","v":""},{"$f":"IF('800111a - Nota. Detalle de CxC.'!K340=\"\",\"\",'800111a - Nota. Detalle de CxC.'!K340)","v":""}]
[null,"1;2","co-svsp-core_2017-12-31:DireccionDeudorCxC","Dirección deudor",null,null,{"$f":"IF('800111a - Nota. Detalle de CxC.'!L185=\"\",\"\",'800111a - Nota. Detalle de CxC.'!L185)","v":""},{"$f":"IF('800111a - Nota. Detalle de CxC.'!L186=\"\",\"\",'800111a - Nota. Detalle de CxC.'!L186)","v":""},{"$f":"IF('800111a - Nota. Detalle de CxC.'!L187=\"\",\"\",'800111a - Nota. Detalle de CxC.'!L187)","v":""},{"$f":"IF('800111a - Nota. Detalle de CxC.'!L188=\"\",\"\",'800111a - Nota. Detalle de CxC.'!L188)","v":""},{"$f":"IF('800111a - Nota. Detalle de CxC.'!L189=\"\",\"\",'800111a - Nota. Detalle de CxC.'!L189)","v":""},{"$f":"IF('800111a - Nota. Detalle de CxC.'!L190=\"\",\"\",'800111a - Nota. Detalle de CxC.'!L190)","v":""},{"$f":"IF('800111a - Nota. Detalle de CxC.'!L191=\"\",\"\",'800111a - Nota. Detalle de CxC.'!L191)","v":""},{"$f":"IF('800111a - Nota. Detalle de CxC.'!L192=\"\",\"\",'800111a - Nota. Detalle de CxC.'!L192)","v":""},{"$f":"IF('800111a - Nota. Detalle de CxC.'!L193=\"\",\"\",'800111a - Nota. Detalle de CxC.'!L193)","v":""},{"$f":"IF('800111a - Nota. Detalle de CxC.'!L194=\"\",\"\",'800111a - Nota. Detalle de CxC.'!L194)","v":""},{"$f":"IF('800111a - Nota. Detalle de CxC.'!L195=\"\",\"\",'800111a - Nota. Detalle de CxC.'!L195)","v":""},{"$f":"IF('800111a - Nota. Detalle de CxC.'!L196=\"\",\"\",'800111a - Nota. Detalle de CxC.'!L196)","v":""},{"$f":"IF('800111a - Nota. Detalle de CxC.'!L197=\"\",\"\",'800111a - Nota. Detalle de CxC.'!L197)","v":""},{"$f":"IF('800111a - Nota. Detalle de CxC.'!L198=\"\",\"\",'800111a - Nota. Detalle de CxC.'!L198)","v":""},{"$f":"IF('800111a - Nota. Detalle de CxC.'!L199=\"\",\"\",'800111a - Nota. Detalle de CxC.'!L199)","v":""},{"$f":"IF('800111a - Nota. Detalle de CxC.'!L200=\"\",\"\",'800111a - Nota. Detalle de CxC.'!L200)","v":""},{"$f":"IF('800111a - Nota. Detalle de CxC.'!L201=\"\",\"\",'800111a - Nota. Detalle de CxC.'!L201)","v":""},{"$f":"IF('800111a - Nota. Detalle de CxC.'!L202=\"\",\"\",'800111a - Nota. Detalle de CxC.'!L202)","v":""},{"$f":"IF('800111a - Nota. Detalle de CxC.'!L203=\"\",\"\",'800111a - Nota. Detalle de CxC.'!L203)","v":""},{"$f":"IF('800111a - Nota. Detalle de CxC.'!L204=\"\",\"\",'800111a - Nota. Detalle de CxC.'!L204)","v":""},{"$f":"IF('800111a - Nota. Detalle de CxC.'!L205=\"\",\"\",'800111a - Nota. Detalle de CxC.'!L205)","v":""},{"$f":"IF('800111a - Nota. Detalle de CxC.'!L206=\"\",\"\",'800111a - Nota. Detalle de CxC.'!L206)","v":""},{"$f":"IF('800111a - Nota. Detalle de CxC.'!L207=\"\",\"\",'800111a - Nota. Detalle de CxC.'!L207)","v":""},{"$f":"IF('800111a - Nota. Detalle de CxC.'!L208=\"\",\"\",'800111a - Nota. Detalle de CxC.'!L208)","v":""},{"$f":"IF('800111a - Nota. Detalle de CxC.'!L209=\"\",\"\",'800111a - Nota. Detalle de CxC.'!L209)","v":""},{"$f":"IF('800111a - Nota. Detalle de CxC.'!L210=\"\",\"\",'800111a - Nota. Detalle de CxC.'!L210)","v":""},{"$f":"IF('800111a - Nota. Detalle de CxC.'!L211=\"\",\"\",'800111a - Nota. Detalle de CxC.'!L211)","v":""},{"$f":"IF('800111a - Nota. Detalle de CxC.'!L212=\"\",\"\",'800111a - Nota. Detalle de CxC.'!L212)","v":""},{"$f":"IF('800111a - Nota. Detalle de CxC.'!L213=\"\",\"\",'800111a - Nota. Detalle de CxC.'!L213)","v":""},{"$f":"IF('800111a - Nota. Detalle de CxC.'!L214=\"\",\"\",'800111a - Nota. Detalle de CxC.'!L214)","v":""},{"$f":"IF('800111a - Nota. Detalle de CxC.'!L215=\"\",\"\",'800111a - Nota. Detalle de CxC.'!L215)","v":""},{"$f":"IF('800111a - Nota. Detalle de CxC.'!L216=\"\",\"\",'800111a - Nota. Detalle de CxC.'!L216)","v":""},{"$f":"IF('800111a - Nota. Detalle de CxC.'!L217=\"\",\"\",'800111a - Nota. Detalle de CxC.'!L217)","v":""},{"$f":"IF('800111a - Nota. Detalle de CxC.'!L218=\"\",\"\",'800111a - Nota. Detalle de CxC.'!L218)","v":""},{"$f":"IF('800111a - Nota. Detalle de CxC.'!L219=\"\",\"\",'800111a - Nota. Detalle de CxC.'!L219)","v":""},{"$f":"IF('800111a - Nota. Detalle de CxC.'!L220=\"\",\"\",'800111a - Nota. Detalle de CxC.'!L220)","v":""},{"$f":"IF('800111a - Nota. Detalle de CxC.'!L221=\"\",\"\",'800111a - Nota. Detalle de CxC.'!L221)","v":""},{"$f":"IF('800111a - Nota. Detalle de CxC.'!L222=\"\",\"\",'800111a - Nota. Detalle de CxC.'!L222)","v":""},{"$f":"IF('800111a - Nota. Detalle de CxC.'!L223=\"\",\"\",'800111a - Nota. Detalle de CxC.'!L223)","v":""},{"$f":"IF('800111a - Nota. Detalle de CxC.'!L224=\"\",\"\",'800111a - Nota. Detalle de CxC.'!L224)","v":""},{"$f":"IF('800111a - Nota. Detalle de CxC.'!L225=\"\",\"\",'800111a - Nota. Detalle de CxC.'!L225)","v":""},{"$f":"IF('800111a - Nota. Detalle de CxC.'!L226=\"\",\"\",'800111a - Nota. Detalle de CxC.'!L226)","v":""},{"$f":"IF('800111a - Nota. Detalle de CxC.'!L227=\"\",\"\",'800111a - Nota. Detalle de CxC.'!L227)","v":""},{"$f":"IF('800111a - Nota. Detalle de CxC.'!L228=\"\",\"\",'800111a - Nota. Detalle de CxC.'!L228)","v":""},{"$f":"IF('800111a - Nota. Detalle de CxC.'!L229=\"\",\"\",'800111a - Nota. Detalle de CxC.'!L229)","v":""},{"$f":"IF('800111a - Nota. Detalle de CxC.'!L230=\"\",\"\",'800111a - Nota. Detalle de CxC.'!L230)","v":""},{"$f":"IF('800111a - Nota. Detalle de CxC.'!L231=\"\",\"\",'800111a - Nota. Detalle de CxC.'!L231)","v":""},{"$f":"IF('800111a - Nota. Detalle de CxC.'!L232=\"\",\"\",'800111a - Nota. Detalle de CxC.'!L232)","v":""},{"$f":"IF('800111a - Nota. Detalle de CxC.'!L233=\"\",\"\",'800111a - Nota. Detalle de CxC.'!L233)","v":""},{"$f":"IF('800111a - Nota. Detalle de CxC.'!L234=\"\",\"\",'800111a - Nota. Detalle de CxC.'!L234)","v":""},null,null,null,{"$f":"IF('800111a - Nota. Detalle de CxC.'!L238=\"\",\"\",'800111a - Nota. Detalle de CxC.'!L238)","v":""},{"$f":"IF('800111a - Nota. Detalle de CxC.'!L239=\"\",\"\",'800111a - Nota. Detalle de CxC.'!L239)","v":""},{"$f":"IF('800111a - Nota. Detalle de CxC.'!L240=\"\",\"\",'800111a - Nota. Detalle de CxC.'!L240)","v":""},{"$f":"IF('800111a - Nota. Detalle de CxC.'!L241=\"\",\"\",'800111a - Nota. Detalle de CxC.'!L241)","v":""},{"$f":"IF('800111a - Nota. Detalle de CxC.'!L242=\"\",\"\",'800111a - Nota. Detalle de CxC.'!L242)","v":""},{"$f":"IF('800111a - Nota. Detalle de CxC.'!L243=\"\",\"\",'800111a - Nota. Detalle de CxC.'!L243)","v":""},{"$f":"IF('800111a - Nota. Detalle de CxC.'!L244=\"\",\"\",'800111a - Nota. Detalle de CxC.'!L244)","v":""},{"$f":"IF('800111a - Nota. Detalle de CxC.'!L245=\"\",\"\",'800111a - Nota. Detalle de CxC.'!L245)","v":""},{"$f":"IF('800111a - Nota. Detalle de CxC.'!L246=\"\",\"\",'800111a - Nota. Detalle de CxC.'!L246)","v":""},{"$f":"IF('800111a - Nota. Detalle de CxC.'!L247=\"\",\"\",'800111a - Nota. Detalle de CxC.'!L247)","v":""},{"$f":"IF('800111a - Nota. Detalle de CxC.'!L248=\"\",\"\",'800111a - Nota. Detalle de CxC.'!L248)","v":""},{"$f":"IF('800111a - Nota. Detalle de CxC.'!L249=\"\",\"\",'800111a - Nota. Detalle de CxC.'!L249)","v":""},{"$f":"IF('800111a - Nota. Detalle de CxC.'!L250=\"\",\"\",'800111a - Nota. Detalle de CxC.'!L250)","v":""},{"$f":"IF('800111a - Nota. Detalle de CxC.'!L251=\"\",\"\",'800111a - Nota. Detalle de CxC.'!L251)","v":""},{"$f":"IF('800111a - Nota. Detalle de CxC.'!L252=\"\",\"\",'800111a - Nota. Detalle de CxC.'!L252)","v":""},{"$f":"IF('800111a - Nota. Detalle de CxC.'!L253=\"\",\"\",'800111a - Nota. Detalle de CxC.'!L253)","v":""},{"$f":"IF('800111a - Nota. Detalle de CxC.'!L254=\"\",\"\",'800111a - Nota. Detalle de CxC.'!L254)","v":""},{"$f":"IF('800111a - Nota. Detalle de CxC.'!L255=\"\",\"\",'800111a - Nota. Detalle de CxC.'!L255)","v":""},{"$f":"IF('800111a - Nota. Detalle de CxC.'!L256=\"\",\"\",'800111a - Nota. Detalle de CxC.'!L256)","v":""},{"$f":"IF('800111a - Nota. Detalle de CxC.'!L257=\"\",\"\",'800111a - Nota. Detalle de CxC.'!L257)","v":""},{"$f":"IF('800111a - Nota. Detalle de CxC.'!L258=\"\",\"\",'800111a - Nota. Detalle de CxC.'!L258)","v":""},{"$f":"IF('800111a - Nota. Detalle de CxC.'!L259=\"\",\"\",'800111a - Nota. Detalle de CxC.'!L259)","v":""},{"$f":"IF('800111a - Nota. Detalle de CxC.'!L260=\"\",\"\",'800111a - Nota. Detalle de CxC.'!L260)","v":""},{"$f":"IF('800111a - Nota. Detalle de CxC.'!L261=\"\",\"\",'800111a - Nota. Detalle de CxC.'!L261)","v":""},{"$f":"IF('800111a - Nota. Detalle de CxC.'!L262=\"\",\"\",'800111a - Nota. Detalle de CxC.'!L262)","v":""},{"$f":"IF('800111a - Nota. Detalle de CxC.'!L263=\"\",\"\",'800111a - Nota. Detalle de CxC.'!L263)","v":""},{"$f":"IF('800111a - Nota. Detalle de CxC.'!L264=\"\",\"\",'800111a - Nota. Detalle de CxC.'!L264)","v":""},{"$f":"IF('800111a - Nota. Detalle de CxC.'!L265=\"\",\"\",'800111a - Nota. Detalle de CxC.'!L265)","v":""},{"$f":"IF('800111a - Nota. Detalle de CxC.'!L266=\"\",\"\",'800111a - Nota. Detalle de CxC.'!L266)","v":""},{"$f":"IF('800111a - Nota. Detalle de CxC.'!L267=\"\",\"\",'800111a - Nota. Detalle de CxC.'!L267)","v":""},{"$f":"IF('800111a - Nota. Detalle de CxC.'!L268=\"\",\"\",'800111a - Nota. Detalle de CxC.'!L268)","v":""},{"$f":"IF('800111a - Nota. Detalle de CxC.'!L269=\"\",\"\",'800111a - Nota. Detalle de CxC.'!L269)","v":""},{"$f":"IF('800111a - Nota. Detalle de CxC.'!L270=\"\",\"\",'800111a - Nota. Detalle de CxC.'!L270)","v":""},{"$f":"IF('800111a - Nota. Detalle de CxC.'!L271=\"\",\"\",'800111a - Nota. Detalle de CxC.'!L271)","v":""},{"$f":"IF('800111a - Nota. Detalle de CxC.'!L272=\"\",\"\",'800111a - Nota. Detalle de CxC.'!L272)","v":""},{"$f":"IF('800111a - Nota. Detalle de CxC.'!L273=\"\",\"\",'800111a - Nota. Detalle de CxC.'!L273)","v":""},{"$f":"IF('800111a - Nota. Detalle de CxC.'!L274=\"\",\"\",'800111a - Nota. Detalle de CxC.'!L274)","v":""},{"$f":"IF('800111a - Nota. Detalle de CxC.'!L275=\"\",\"\",'800111a - Nota. Detalle de CxC.'!L275)","v":""},{"$f":"IF('800111a - Nota. Detalle de CxC.'!L276=\"\",\"\",'800111a - Nota. Detalle de CxC.'!L276)","v":""},{"$f":"IF('800111a - Nota. Detalle de CxC.'!L277=\"\",\"\",'800111a - Nota. Detalle de CxC.'!L277)","v":""},{"$f":"IF('800111a - Nota. Detalle de CxC.'!L278=\"\",\"\",'800111a - Nota. Detalle de CxC.'!L278)","v":""},{"$f":"IF('800111a - Nota. Detalle de CxC.'!L279=\"\",\"\",'800111a - Nota. Detalle de CxC.'!L279)","v":""},{"$f":"IF('800111a - Nota. Detalle de CxC.'!L280=\"\",\"\",'800111a - Nota. Detalle de CxC.'!L280)","v":""},{"$f":"IF('800111a - Nota. Detalle de CxC.'!L281=\"\",\"\",'800111a - Nota. Detalle de CxC.'!L281)","v":""},{"$f":"IF('800111a - Nota. Detalle de CxC.'!L282=\"\",\"\",'800111a - Nota. Detalle de CxC.'!L282)","v":""},{"$f":"IF('800111a - Nota. Detalle de CxC.'!L283=\"\",\"\",'800111a - Nota. Detalle de CxC.'!L283)","v":""},{"$f":"IF('800111a - Nota. Detalle de CxC.'!L284=\"\",\"\",'800111a - Nota. Detalle de CxC.'!L284)","v":""},{"$f":"IF('800111a - Nota. Detalle de CxC.'!L285=\"\",\"\",'800111a - Nota. Detalle de CxC.'!L285)","v":""},{"$f":"IF('800111a - Nota. Detalle de CxC.'!L286=\"\",\"\",'800111a - Nota. Detalle de CxC.'!L286)","v":""},{"$f":"IF('800111a - Nota. Detalle de CxC.'!L287=\"\",\"\",'800111a - Nota. Detalle de CxC.'!L287)","v":""},null,null,null,{"$f":"IF('800111a - Nota. Detalle de CxC.'!L291=\"\",\"\",'800111a - Nota. Detalle de CxC.'!L291)","v":""},{"$f":"IF('800111a - Nota. Detalle de CxC.'!L292=\"\",\"\",'800111a - Nota. Detalle de CxC.'!L292)","v":""},{"$f":"IF('800111a - Nota. Detalle de CxC.'!L293=\"\",\"\",'800111a - Nota. Detalle de CxC.'!L293)","v":""},{"$f":"IF('800111a - Nota. Detalle de CxC.'!L294=\"\",\"\",'800111a - Nota. Detalle de CxC.'!L294)","v":""},{"$f":"IF('800111a - Nota. Detalle de CxC.'!L295=\"\",\"\",'800111a - Nota. Detalle de CxC.'!L295)","v":""},{"$f":"IF('800111a - Nota. Detalle de CxC.'!L296=\"\",\"\",'800111a - Nota. Detalle de CxC.'!L296)","v":""},{"$f":"IF('800111a - Nota. Detalle de CxC.'!L297=\"\",\"\",'800111a - Nota. Detalle de CxC.'!L297)","v":""},{"$f":"IF('800111a - Nota. Detalle de CxC.'!L298=\"\",\"\",'800111a - Nota. Detalle de CxC.'!L298)","v":""},{"$f":"IF('800111a - Nota. Detalle de CxC.'!L299=\"\",\"\",'800111a - Nota. Detalle de CxC.'!L299)","v":""},{"$f":"IF('800111a - Nota. Detalle de CxC.'!L300=\"\",\"\",'800111a - Nota. Detalle de CxC.'!L300)","v":""},{"$f":"IF('800111a - Nota. Detalle de CxC.'!L301=\"\",\"\",'800111a - Nota. Detalle de CxC.'!L301)","v":""},{"$f":"IF('800111a - Nota. Detalle de CxC.'!L302=\"\",\"\",'800111a - Nota. Detalle de CxC.'!L302)","v":""},{"$f":"IF('800111a - Nota. Detalle de CxC.'!L303=\"\",\"\",'800111a - Nota. Detalle de CxC.'!L303)","v":""},{"$f":"IF('800111a - Nota. Detalle de CxC.'!L304=\"\",\"\",'800111a - Nota. Detalle de CxC.'!L304)","v":""},{"$f":"IF('800111a - Nota. Detalle de CxC.'!L305=\"\",\"\",'800111a - Nota. Detalle de CxC.'!L305)","v":""},{"$f":"IF('800111a - Nota. Detalle de CxC.'!L306=\"\",\"\",'800111a - Nota. Detalle de CxC.'!L306)","v":""},{"$f":"IF('800111a - Nota. Detalle de CxC.'!L307=\"\",\"\",'800111a - Nota. Detalle de CxC.'!L307)","v":""},{"$f":"IF('800111a - Nota. Detalle de CxC.'!L308=\"\",\"\",'800111a - Nota. Detalle de CxC.'!L308)","v":""},{"$f":"IF('800111a - Nota. Detalle de CxC.'!L309=\"\",\"\",'800111a - Nota. Detalle de CxC.'!L309)","v":""},{"$f":"IF('800111a - Nota. Detalle de CxC.'!L310=\"\",\"\",'800111a - Nota. Detalle de CxC.'!L310)","v":""},{"$f":"IF('800111a - Nota. Detalle de CxC.'!L311=\"\",\"\",'800111a - Nota. Detalle de CxC.'!L311)","v":""},{"$f":"IF('800111a - Nota. Detalle de CxC.'!L312=\"\",\"\",'800111a - Nota. Detalle de CxC.'!L312)","v":""},{"$f":"IF('800111a - Nota. Detalle de CxC.'!L313=\"\",\"\",'800111a - Nota. Detalle de CxC.'!L313)","v":""},{"$f":"IF('800111a - Nota. Detalle de CxC.'!L314=\"\",\"\",'800111a - Nota. Detalle de CxC.'!L314)","v":""},{"$f":"IF('800111a - Nota. Detalle de CxC.'!L315=\"\",\"\",'800111a - Nota. Detalle de CxC.'!L315)","v":""},{"$f":"IF('800111a - Nota. Detalle de CxC.'!L316=\"\",\"\",'800111a - Nota. Detalle de CxC.'!L316)","v":""},{"$f":"IF('800111a - Nota. Detalle de CxC.'!L317=\"\",\"\",'800111a - Nota. Detalle de CxC.'!L317)","v":""},{"$f":"IF('800111a - Nota. Detalle de CxC.'!L318=\"\",\"\",'800111a - Nota. Detalle de CxC.'!L318)","v":""},{"$f":"IF('800111a - Nota. Detalle de CxC.'!L319=\"\",\"\",'800111a - Nota. Detalle de CxC.'!L319)","v":""},{"$f":"IF('800111a - Nota. Detalle de CxC.'!L320=\"\",\"\",'800111a - Nota. Detalle de CxC.'!L320)","v":""},{"$f":"IF('800111a - Nota. Detalle de CxC.'!L321=\"\",\"\",'800111a - Nota. Detalle de CxC.'!L321)","v":""},{"$f":"IF('800111a - Nota. Detalle de CxC.'!L322=\"\",\"\",'800111a - Nota. Detalle de CxC.'!L322)","v":""},{"$f":"IF('800111a - Nota. Detalle de CxC.'!L323=\"\",\"\",'800111a - Nota. Detalle de CxC.'!L323)","v":""},{"$f":"IF('800111a - Nota. Detalle de CxC.'!L324=\"\",\"\",'800111a - Nota. Detalle de CxC.'!L324)","v":""},{"$f":"IF('800111a - Nota. Detalle de CxC.'!L325=\"\",\"\",'800111a - Nota. Detalle de CxC.'!L325)","v":""},{"$f":"IF('800111a - Nota. Detalle de CxC.'!L326=\"\",\"\",'800111a - Nota. Detalle de CxC.'!L326)","v":""},{"$f":"IF('800111a - Nota. Detalle de CxC.'!L327=\"\",\"\",'800111a - Nota. Detalle de CxC.'!L327)","v":""},{"$f":"IF('800111a - Nota. Detalle de CxC.'!L328=\"\",\"\",'800111a - Nota. Detalle de CxC.'!L328)","v":""},{"$f":"IF('800111a - Nota. Detalle de CxC.'!L329=\"\",\"\",'800111a - Nota. Detalle de CxC.'!L329)","v":""},{"$f":"IF('800111a - Nota. Detalle de CxC.'!L330=\"\",\"\",'800111a - Nota. Detalle de CxC.'!L330)","v":""},{"$f":"IF('800111a - Nota. Detalle de CxC.'!L331=\"\",\"\",'800111a - Nota. Detalle de CxC.'!L331)","v":""},{"$f":"IF('800111a - Nota. Detalle de CxC.'!L332=\"\",\"\",'800111a - Nota. Detalle de CxC.'!L332)","v":""},{"$f":"IF('800111a - Nota. Detalle de CxC.'!L333=\"\",\"\",'800111a - Nota. Detalle de CxC.'!L333)","v":""},{"$f":"IF('800111a - Nota. Detalle de CxC.'!L334=\"\",\"\",'800111a - Nota. Detalle de CxC.'!L334)","v":""},{"$f":"IF('800111a - Nota. Detalle de CxC.'!L335=\"\",\"\",'800111a - Nota. Detalle de CxC.'!L335)","v":""},{"$f":"IF('800111a - Nota. Detalle de CxC.'!L336=\"\",\"\",'800111a - Nota. Detalle de CxC.'!L336)","v":""},{"$f":"IF('800111a - Nota. Detalle de CxC.'!L337=\"\",\"\",'800111a - Nota. Detalle de CxC.'!L337)","v":""},{"$f":"IF('800111a - Nota. Detalle de CxC.'!L338=\"\",\"\",'800111a - Nota. Detalle de CxC.'!L338)","v":""},{"$f":"IF('800111a - Nota. Detalle de CxC.'!L339=\"\",\"\",'800111a - Nota. Detalle de CxC.'!L339)","v":""},{"$f":"IF('800111a - Nota. Detalle de CxC.'!L340=\"\",\"\",'800111a - Nota. Detalle de CxC.'!L340)","v":""}]
[null,"1;2","co-svsp-core_2017-12-31:DepartamentoDeudorCxC","Departamento deudor",null,null,{"$f":"IF('800111a - Nota. Detalle de CxC.'!M185=\"\",\"\",'800111a - Nota. Detalle de CxC.'!M185)","v":""},{"$f":"IF('800111a - Nota. Detalle de CxC.'!M186=\"\",\"\",'800111a - Nota. Detalle de CxC.'!M186)","v":""},{"$f":"IF('800111a - Nota. Detalle de CxC.'!M187=\"\",\"\",'800111a - Nota. Detalle de CxC.'!M187)","v":""},{"$f":"IF('800111a - Nota. Detalle de CxC.'!M188=\"\",\"\",'800111a - Nota. Detalle de CxC.'!M188)","v":""},{"$f":"IF('800111a - Nota. Detalle de CxC.'!M189=\"\",\"\",'800111a - Nota. Detalle de CxC.'!M189)","v":""},{"$f":"IF('800111a - Nota. Detalle de CxC.'!M190=\"\",\"\",'800111a - Nota. Detalle de CxC.'!M190)","v":""},{"$f":"IF('800111a - Nota. Detalle de CxC.'!M191=\"\",\"\",'800111a - Nota. Detalle de CxC.'!M191)","v":""},{"$f":"IF('800111a - Nota. Detalle de CxC.'!M192=\"\",\"\",'800111a - Nota. Detalle de CxC.'!M192)","v":""},{"$f":"IF('800111a - Nota. Detalle de CxC.'!M193=\"\",\"\",'800111a - Nota. Detalle de CxC.'!M193)","v":""},{"$f":"IF('800111a - Nota. Detalle de CxC.'!M194=\"\",\"\",'800111a - Nota. Detalle de CxC.'!M194)","v":""},{"$f":"IF('800111a - Nota. Detalle de CxC.'!M195=\"\",\"\",'800111a - Nota. Detalle de CxC.'!M195)","v":""},{"$f":"IF('800111a - Nota. Detalle de CxC.'!M196=\"\",\"\",'800111a - Nota. Detalle de CxC.'!M196)","v":""},{"$f":"IF('800111a - Nota. Detalle de CxC.'!M197=\"\",\"\",'800111a - Nota. Detalle de CxC.'!M197)","v":""},{"$f":"IF('800111a - Nota. Detalle de CxC.'!M198=\"\",\"\",'800111a - Nota. Detalle de CxC.'!M198)","v":""},{"$f":"IF('800111a - Nota. Detalle de CxC.'!M199=\"\",\"\",'800111a - Nota. Detalle de CxC.'!M199)","v":""},{"$f":"IF('800111a - Nota. Detalle de CxC.'!M200=\"\",\"\",'800111a - Nota. Detalle de CxC.'!M200)","v":""},{"$f":"IF('800111a - Nota. Detalle de CxC.'!M201=\"\",\"\",'800111a - Nota. Detalle de CxC.'!M201)","v":""},{"$f":"IF('800111a - Nota. Detalle de CxC.'!M202=\"\",\"\",'800111a - Nota. Detalle de CxC.'!M202)","v":""},{"$f":"IF('800111a - Nota. Detalle de CxC.'!M203=\"\",\"\",'800111a - Nota. Detalle de CxC.'!M203)","v":""},{"$f":"IF('800111a - Nota. Detalle de CxC.'!M204=\"\",\"\",'800111a - Nota. Detalle de CxC.'!M204)","v":""},{"$f":"IF('800111a - Nota. Detalle de CxC.'!M205=\"\",\"\",'800111a - Nota. Detalle de CxC.'!M205)","v":""},{"$f":"IF('800111a - Nota. Detalle de CxC.'!M206=\"\",\"\",'800111a - Nota. Detalle de CxC.'!M206)","v":""},{"$f":"IF('800111a - Nota. Detalle de CxC.'!M207=\"\",\"\",'800111a - Nota. Detalle de CxC.'!M207)","v":""},{"$f":"IF('800111a - Nota. Detalle de CxC.'!M208=\"\",\"\",'800111a - Nota. Detalle de CxC.'!M208)","v":""},{"$f":"IF('800111a - Nota. Detalle de CxC.'!M209=\"\",\"\",'800111a - Nota. Detalle de CxC.'!M209)","v":""},{"$f":"IF('800111a - Nota. Detalle de CxC.'!M210=\"\",\"\",'800111a - Nota. Detalle de CxC.'!M210)","v":""},{"$f":"IF('800111a - Nota. Detalle de CxC.'!M211=\"\",\"\",'800111a - Nota. Detalle de CxC.'!M211)","v":""},{"$f":"IF('800111a - Nota. Detalle de CxC.'!M212=\"\",\"\",'800111a - Nota. Detalle de CxC.'!M212)","v":""},{"$f":"IF('800111a - Nota. Detalle de CxC.'!M213=\"\",\"\",'800111a - Nota. Detalle de CxC.'!M213)","v":""},{"$f":"IF('800111a - Nota. Detalle de CxC.'!M214=\"\",\"\",'800111a - Nota. Detalle de CxC.'!M214)","v":""},{"$f":"IF('800111a - Nota. Detalle de CxC.'!M215=\"\",\"\",'800111a - Nota. Detalle de CxC.'!M215)","v":""},{"$f":"IF('800111a - Nota. Detalle de CxC.'!M216=\"\",\"\",'800111a - Nota. Detalle de CxC.'!M216)","v":""},{"$f":"IF('800111a - Nota. Detalle de CxC.'!M217=\"\",\"\",'800111a - Nota. Detalle de CxC.'!M217)","v":""},{"$f":"IF('800111a - Nota. Detalle de CxC.'!M218=\"\",\"\",'800111a - Nota. Detalle de CxC.'!M218)","v":""},{"$f":"IF('800111a - Nota. Detalle de CxC.'!M219=\"\",\"\",'800111a - Nota. Detalle de CxC.'!M219)","v":""},{"$f":"IF('800111a - Nota. Detalle de CxC.'!M220=\"\",\"\",'800111a - Nota. Detalle de CxC.'!M220)","v":""},{"$f":"IF('800111a - Nota. Detalle de CxC.'!M221=\"\",\"\",'800111a - Nota. Detalle de CxC.'!M221)","v":""},{"$f":"IF('800111a - Nota. Detalle de CxC.'!M222=\"\",\"\",'800111a - Nota. Detalle de CxC.'!M222)","v":""},{"$f":"IF('800111a - Nota. Detalle de CxC.'!M223=\"\",\"\",'800111a - Nota. Detalle de CxC.'!M223)","v":""},{"$f":"IF('800111a - Nota. Detalle de CxC.'!M224=\"\",\"\",'800111a - Nota. Detalle de CxC.'!M224)","v":""},{"$f":"IF('800111a - Nota. Detalle de CxC.'!M225=\"\",\"\",'800111a - Nota. Detalle de CxC.'!M225)","v":""},{"$f":"IF('800111a - Nota. Detalle de CxC.'!M226=\"\",\"\",'800111a - Nota. Detalle de CxC.'!M226)","v":""},{"$f":"IF('800111a - Nota. Detalle de CxC.'!M227=\"\",\"\",'800111a - Nota. Detalle de CxC.'!M227)","v":""},{"$f":"IF('800111a - Nota. Detalle de CxC.'!M228=\"\",\"\",'800111a - Nota. Detalle de CxC.'!M228)","v":""},{"$f":"IF('800111a - Nota. Detalle de CxC.'!M229=\"\",\"\",'800111a - Nota. Detalle de CxC.'!M229)","v":""},{"$f":"IF('800111a - Nota. Detalle de CxC.'!M230=\"\",\"\",'800111a - Nota. Detalle de CxC.'!M230)","v":""},{"$f":"IF('800111a - Nota. Detalle de CxC.'!M231=\"\",\"\",'800111a - Nota. Detalle de CxC.'!M231)","v":""},{"$f":"IF('800111a - Nota. Detalle de CxC.'!M232=\"\",\"\",'800111a - Nota. Detalle de CxC.'!M232)","v":""},{"$f":"IF('800111a - Nota. Detalle de CxC.'!M233=\"\",\"\",'800111a - Nota. Detalle de CxC.'!M233)","v":""},{"$f":"IF('800111a - Nota. Detalle de CxC.'!M234=\"\",\"\",'800111a - Nota. Detalle de CxC.'!M234)","v":""},null,null,null,{"$f":"IF('800111a - Nota. Detalle de CxC.'!M238=\"\",\"\",'800111a - Nota. Detalle de CxC.'!M238)","v":""},{"$f":"IF('800111a - Nota. Detalle de CxC.'!M239=\"\",\"\",'800111a - Nota. Detalle de CxC.'!M239)","v":""},{"$f":"IF('800111a - Nota. Detalle de CxC.'!M240=\"\",\"\",'800111a - Nota. Detalle de CxC.'!M240)","v":""},{"$f":"IF('800111a - Nota. Detalle de CxC.'!M241=\"\",\"\",'800111a - Nota. Detalle de CxC.'!M241)","v":""},{"$f":"IF('800111a - Nota. Detalle de CxC.'!M242=\"\",\"\",'800111a - Nota. Detalle de CxC.'!M242)","v":""},{"$f":"IF('800111a - Nota. Detalle de CxC.'!M243=\"\",\"\",'800111a - Nota. Detalle de CxC.'!M243)","v":""},{"$f":"IF('800111a - Nota. Detalle de CxC.'!M244=\"\",\"\",'800111a - Nota. Detalle de CxC.'!M244)","v":""},{"$f":"IF('800111a - Nota. Detalle de CxC.'!M245=\"\",\"\",'800111a - Nota. Detalle de CxC.'!M245)","v":""},{"$f":"IF('800111a - Nota. Detalle de CxC.'!M246=\"\",\"\",'800111a - Nota. Detalle de CxC.'!M246)","v":""},{"$f":"IF('800111a - Nota. Detalle de CxC.'!M247=\"\",\"\",'800111a - Nota. Detalle de CxC.'!M247)","v":""},{"$f":"IF('800111a - Nota. Detalle de CxC.'!M248=\"\",\"\",'800111a - Nota. Detalle de CxC.'!M248)","v":""},{"$f":"IF('800111a - Nota. Detalle de CxC.'!M249=\"\",\"\",'800111a - Nota. Detalle de CxC.'!M249)","v":""},{"$f":"IF('800111a - Nota. Detalle de CxC.'!M250=\"\",\"\",'800111a - Nota. Detalle de CxC.'!M250)","v":""},{"$f":"IF('800111a - Nota. Detalle de CxC.'!M251=\"\",\"\",'800111a - Nota. Detalle de CxC.'!M251)","v":""},{"$f":"IF('800111a - Nota. Detalle de CxC.'!M252=\"\",\"\",'800111a - Nota. Detalle de CxC.'!M252)","v":""},{"$f":"IF('800111a - Nota. Detalle de CxC.'!M253=\"\",\"\",'800111a - Nota. Detalle de CxC.'!M253)","v":""},{"$f":"IF('800111a - Nota. Detalle de CxC.'!M254=\"\",\"\",'800111a - Nota. Detalle de CxC.'!M254)","v":""},{"$f":"IF('800111a - Nota. Detalle de CxC.'!M255=\"\",\"\",'800111a - Nota. Detalle de CxC.'!M255)","v":""},{"$f":"IF('800111a - Nota. Detalle de CxC.'!M256=\"\",\"\",'800111a - Nota. Detalle de CxC.'!M256)","v":""},{"$f":"IF('800111a - Nota. Detalle de CxC.'!M257=\"\",\"\",'800111a - Nota. Detalle de CxC.'!M257)","v":""},{"$f":"IF('800111a - Nota. Detalle de CxC.'!M258=\"\",\"\",'800111a - Nota. Detalle de CxC.'!M258)","v":""},{"$f":"IF('800111a - Nota. Detalle de CxC.'!M259=\"\",\"\",'800111a - Nota. Detalle de CxC.'!M259)","v":""},{"$f":"IF('800111a - Nota. Detalle de CxC.'!M260=\"\",\"\",'800111a - Nota. Detalle de CxC.'!M260)","v":""},{"$f":"IF('800111a - Nota. Detalle de CxC.'!M261=\"\",\"\",'800111a - Nota. Detalle de CxC.'!M261)","v":""},{"$f":"IF('800111a - Nota. Detalle de CxC.'!M262=\"\",\"\",'800111a - Nota. Detalle de CxC.'!M262)","v":""},{"$f":"IF('800111a - Nota. Detalle de CxC.'!M263=\"\",\"\",'800111a - Nota. Detalle de CxC.'!M263)","v":""},{"$f":"IF('800111a - Nota. Detalle de CxC.'!M264=\"\",\"\",'800111a - Nota. Detalle de CxC.'!M264)","v":""},{"$f":"IF('800111a - Nota. Detalle de CxC.'!M265=\"\",\"\",'800111a - Nota. Detalle de CxC.'!M265)","v":""},{"$f":"IF('800111a - Nota. Detalle de CxC.'!M266=\"\",\"\",'800111a - Nota. Detalle de CxC.'!M266)","v":""},{"$f":"IF('800111a - Nota. Detalle de CxC.'!M267=\"\",\"\",'800111a - Nota. Detalle de CxC.'!M267)","v":""},{"$f":"IF('800111a - Nota. Detalle de CxC.'!M268=\"\",\"\",'800111a - Nota. Detalle de CxC.'!M268)","v":""},{"$f":"IF('800111a - Nota. Detalle de CxC.'!M269=\"\",\"\",'800111a - Nota. Detalle de CxC.'!M269)","v":""},{"$f":"IF('800111a - Nota. Detalle de CxC.'!M270=\"\",\"\",'800111a - Nota. Detalle de CxC.'!M270)","v":""},{"$f":"IF('800111a - Nota. Detalle de CxC.'!M271=\"\",\"\",'800111a - Nota. Detalle de CxC.'!M271)","v":""},{"$f":"IF('800111a - Nota. Detalle de CxC.'!M272=\"\",\"\",'800111a - Nota. Detalle de CxC.'!M272)","v":""},{"$f":"IF('800111a - Nota. Detalle de CxC.'!M273=\"\",\"\",'800111a - Nota. Detalle de CxC.'!M273)","v":""},{"$f":"IF('800111a - Nota. Detalle de CxC.'!M274=\"\",\"\",'800111a - Nota. Detalle de CxC.'!M274)","v":""},{"$f":"IF('800111a - Nota. Detalle de CxC.'!M275=\"\",\"\",'800111a - Nota. Detalle de CxC.'!M275)","v":""},{"$f":"IF('800111a - Nota. Detalle de CxC.'!M276=\"\",\"\",'800111a - Nota. Detalle de CxC.'!M276)","v":""},{"$f":"IF('800111a - Nota. Detalle de CxC.'!M277=\"\",\"\",'800111a - Nota. Detalle de CxC.'!M277)","v":""},{"$f":"IF('800111a - Nota. Detalle de CxC.'!M278=\"\",\"\",'800111a - Nota. Detalle de CxC.'!M278)","v":""},{"$f":"IF('800111a - Nota. Detalle de CxC.'!M279=\"\",\"\",'800111a - Nota. Detalle de CxC.'!M279)","v":""},{"$f":"IF('800111a - Nota. Detalle de CxC.'!M280=\"\",\"\",'800111a - Nota. Detalle de CxC.'!M280)","v":""},{"$f":"IF('800111a - Nota. Detalle de CxC.'!M281=\"\",\"\",'800111a - Nota. Detalle de CxC.'!M281)","v":""},{"$f":"IF('800111a - Nota. Detalle de CxC.'!M282=\"\",\"\",'800111a - Nota. Detalle de CxC.'!M282)","v":""},{"$f":"IF('800111a - Nota. Detalle de CxC.'!M283=\"\",\"\",'800111a - Nota. Detalle de CxC.'!M283)","v":""},{"$f":"IF('800111a - Nota. Detalle de CxC.'!M284=\"\",\"\",'800111a - Nota. Detalle de CxC.'!M284)","v":""},{"$f":"IF('800111a - Nota. Detalle de CxC.'!M285=\"\",\"\",'800111a - Nota. Detalle de CxC.'!M285)","v":""},{"$f":"IF('800111a - Nota. Detalle de CxC.'!M286=\"\",\"\",'800111a - Nota. Detalle de CxC.'!M286)","v":""},{"$f":"IF('800111a - Nota. Detalle de CxC.'!M287=\"\",\"\",'800111a - Nota. Detalle de CxC.'!M287)","v":""},null,null,null,{"$f":"IF('800111a - Nota. Detalle de CxC.'!M291=\"\",\"\",'800111a - Nota. Detalle de CxC.'!M291)","v":""},{"$f":"IF('800111a - Nota. Detalle de CxC.'!M292=\"\",\"\",'800111a - Nota. Detalle de CxC.'!M292)","v":""},{"$f":"IF('800111a - Nota. Detalle de CxC.'!M293=\"\",\"\",'800111a - Nota. Detalle de CxC.'!M293)","v":""},{"$f":"IF('800111a - Nota. Detalle de CxC.'!M294=\"\",\"\",'800111a - Nota. Detalle de CxC.'!M294)","v":""},{"$f":"IF('800111a - Nota. Detalle de CxC.'!M295=\"\",\"\",'800111a - Nota. Detalle de CxC.'!M295)","v":""},{"$f":"IF('800111a - Nota. Detalle de CxC.'!M296=\"\",\"\",'800111a - Nota. Detalle de CxC.'!M296)","v":""},{"$f":"IF('800111a - Nota. Detalle de CxC.'!M297=\"\",\"\",'800111a - Nota. Detalle de CxC.'!M297)","v":""},{"$f":"IF('800111a - Nota. Detalle de CxC.'!M298=\"\",\"\",'800111a - Nota. Detalle de CxC.'!M298)","v":""},{"$f":"IF('800111a - Nota. Detalle de CxC.'!M299=\"\",\"\",'800111a - Nota. Detalle de CxC.'!M299)","v":""},{"$f":"IF('800111a - Nota. Detalle de CxC.'!M300=\"\",\"\",'800111a - Nota. Detalle de CxC.'!M300)","v":""},{"$f":"IF('800111a - Nota. Detalle de CxC.'!M301=\"\",\"\",'800111a - Nota. Detalle de CxC.'!M301)","v":""},{"$f":"IF('800111a - Nota. Detalle de CxC.'!M302=\"\",\"\",'800111a - Nota. Detalle de CxC.'!M302)","v":""},{"$f":"IF('800111a - Nota. Detalle de CxC.'!M303=\"\",\"\",'800111a - Nota. Detalle de CxC.'!M303)","v":""},{"$f":"IF('800111a - Nota. Detalle de CxC.'!M304=\"\",\"\",'800111a - Nota. Detalle de CxC.'!M304)","v":""},{"$f":"IF('800111a - Nota. Detalle de CxC.'!M305=\"\",\"\",'800111a - Nota. Detalle de CxC.'!M305)","v":""},{"$f":"IF('800111a - Nota. Detalle de CxC.'!M306=\"\",\"\",'800111a - Nota. Detalle de CxC.'!M306)","v":""},{"$f":"IF('800111a - Nota. Detalle de CxC.'!M307=\"\",\"\",'800111a - Nota. Detalle de CxC.'!M307)","v":""},{"$f":"IF('800111a - Nota. Detalle de CxC.'!M308=\"\",\"\",'800111a - Nota. Detalle de CxC.'!M308)","v":""},{"$f":"IF('800111a - Nota. Detalle de CxC.'!M309=\"\",\"\",'800111a - Nota. Detalle de CxC.'!M309)","v":""},{"$f":"IF('800111a - Nota. Detalle de CxC.'!M310=\"\",\"\",'800111a - Nota. Detalle de CxC.'!M310)","v":""},{"$f":"IF('800111a - Nota. Detalle de CxC.'!M311=\"\",\"\",'800111a - Nota. Detalle de CxC.'!M311)","v":""},{"$f":"IF('800111a - Nota. Detalle de CxC.'!M312=\"\",\"\",'800111a - Nota. Detalle de CxC.'!M312)","v":""},{"$f":"IF('800111a - Nota. Detalle de CxC.'!M313=\"\",\"\",'800111a - Nota. Detalle de CxC.'!M313)","v":""},{"$f":"IF('800111a - Nota. Detalle de CxC.'!M314=\"\",\"\",'800111a - Nota. Detalle de CxC.'!M314)","v":""},{"$f":"IF('800111a - Nota. Detalle de CxC.'!M315=\"\",\"\",'800111a - Nota. Detalle de CxC.'!M315)","v":""},{"$f":"IF('800111a - Nota. Detalle de CxC.'!M316=\"\",\"\",'800111a - Nota. Detalle de CxC.'!M316)","v":""},{"$f":"IF('800111a - Nota. Detalle de CxC.'!M317=\"\",\"\",'800111a - Nota. Detalle de CxC.'!M317)","v":""},{"$f":"IF('800111a - Nota. Detalle de CxC.'!M318=\"\",\"\",'800111a - Nota. Detalle de CxC.'!M318)","v":""},{"$f":"IF('800111a - Nota. Detalle de CxC.'!M319=\"\",\"\",'800111a - Nota. Detalle de CxC.'!M319)","v":""},{"$f":"IF('800111a - Nota. Detalle de CxC.'!M320=\"\",\"\",'800111a - Nota. Detalle de CxC.'!M320)","v":""},{"$f":"IF('800111a - Nota. Detalle de CxC.'!M321=\"\",\"\",'800111a - Nota. Detalle de CxC.'!M321)","v":""},{"$f":"IF('800111a - Nota. Detalle de CxC.'!M322=\"\",\"\",'800111a - Nota. Detalle de CxC.'!M322)","v":""},{"$f":"IF('800111a - Nota. Detalle de CxC.'!M323=\"\",\"\",'800111a - Nota. Detalle de CxC.'!M323)","v":""},{"$f":"IF('800111a - Nota. Detalle de CxC.'!M324=\"\",\"\",'800111a - Nota. Detalle de CxC.'!M324)","v":""},{"$f":"IF('800111a - Nota. Detalle de CxC.'!M325=\"\",\"\",'800111a - Nota. Detalle de CxC.'!M325)","v":""},{"$f":"IF('800111a - Nota. Detalle de CxC.'!M326=\"\",\"\",'800111a - Nota. Detalle de CxC.'!M326)","v":""},{"$f":"IF('800111a - Nota. Detalle de CxC.'!M327=\"\",\"\",'800111a - Nota. Detalle de CxC.'!M327)","v":""},{"$f":"IF('800111a - Nota. Detalle de CxC.'!M328=\"\",\"\",'800111a - Nota. Detalle de CxC.'!M328)","v":""},{"$f":"IF('800111a - Nota. Detalle de CxC.'!M329=\"\",\"\",'800111a - Nota. Detalle de CxC.'!M329)","v":""},{"$f":"IF('800111a - Nota. Detalle de CxC.'!M330=\"\",\"\",'800111a - Nota. Detalle de CxC.'!M330)","v":""},{"$f":"IF('800111a - Nota. Detalle de CxC.'!M331=\"\",\"\",'800111a - Nota. Detalle de CxC.'!M331)","v":""},{"$f":"IF('800111a - Nota. Detalle de CxC.'!M332=\"\",\"\",'800111a - Nota. Detalle de CxC.'!M332)","v":""},{"$f":"IF('800111a - Nota. Detalle de CxC.'!M333=\"\",\"\",'800111a - Nota. Detalle de CxC.'!M333)","v":""},{"$f":"IF('800111a - Nota. Detalle de CxC.'!M334=\"\",\"\",'800111a - Nota. Detalle de CxC.'!M334)","v":""},{"$f":"IF('800111a - Nota. Detalle de CxC.'!M335=\"\",\"\",'800111a - Nota. Detalle de CxC.'!M335)","v":""},{"$f":"IF('800111a - Nota. Detalle de CxC.'!M336=\"\",\"\",'800111a - Nota. Detalle de CxC.'!M336)","v":""},{"$f":"IF('800111a - Nota. Detalle de CxC.'!M337=\"\",\"\",'800111a - Nota. Detalle de CxC.'!M337)","v":""},{"$f":"IF('800111a - Nota. Detalle de CxC.'!M338=\"\",\"\",'800111a - Nota. Detalle de CxC.'!M338)","v":""},{"$f":"IF('800111a - Nota. Detalle de CxC.'!M339=\"\",\"\",'800111a - Nota. Detalle de CxC.'!M339)","v":""},{"$f":"IF('800111a - Nota. Detalle de CxC.'!M340=\"\",\"\",'800111a - Nota. Detalle de CxC.'!M340)","v":""}]
[null,"1;2","co-svsp-core_2017-12-31:MunicipioDeudorCxC","Municipio deudor",null,null,{"$f":"IF('800111a - Nota. Detalle de CxC.'!N185=\"\",\"\",'800111a - Nota. Detalle de CxC.'!N185)","v":""},{"$f":"IF('800111a - Nota. Detalle de CxC.'!N186=\"\",\"\",'800111a - Nota. Detalle de CxC.'!N186)","v":""},{"$f":"IF('800111a - Nota. Detalle de CxC.'!N187=\"\",\"\",'800111a - Nota. Detalle de CxC.'!N187)","v":""},{"$f":"IF('800111a - Nota. Detalle de CxC.'!N188=\"\",\"\",'800111a - Nota. Detalle de CxC.'!N188)","v":""},{"$f":"IF('800111a - Nota. Detalle de CxC.'!N189=\"\",\"\",'800111a - Nota. Detalle de CxC.'!N189)","v":""},{"$f":"IF('800111a - Nota. Detalle de CxC.'!N190=\"\",\"\",'800111a - Nota. Detalle de CxC.'!N190)","v":""},{"$f":"IF('800111a - Nota. Detalle de CxC.'!N191=\"\",\"\",'800111a - Nota. Detalle de CxC.'!N191)","v":""},{"$f":"IF('800111a - Nota. Detalle de CxC.'!N192=\"\",\"\",'800111a - Nota. Detalle de CxC.'!N192)","v":""},{"$f":"IF('800111a - Nota. Detalle de CxC.'!N193=\"\",\"\",'800111a - Nota. Detalle de CxC.'!N193)","v":""},{"$f":"IF('800111a - Nota. Detalle de CxC.'!N194=\"\",\"\",'800111a - Nota. Detalle de CxC.'!N194)","v":""},{"$f":"IF('800111a - Nota. Detalle de CxC.'!N195=\"\",\"\",'800111a - Nota. Detalle de CxC.'!N195)","v":""},{"$f":"IF('800111a - Nota. Detalle de CxC.'!N196=\"\",\"\",'800111a - Nota. Detalle de CxC.'!N196)","v":""},{"$f":"IF('800111a - Nota. Detalle de CxC.'!N197=\"\",\"\",'800111a - Nota. Detalle de CxC.'!N197)","v":""},{"$f":"IF('800111a - Nota. Detalle de CxC.'!N198=\"\",\"\",'800111a - Nota. Detalle de CxC.'!N198)","v":""},{"$f":"IF('800111a - Nota. Detalle de CxC.'!N199=\"\",\"\",'800111a - Nota. Detalle de CxC.'!N199)","v":""},{"$f":"IF('800111a - Nota. Detalle de CxC.'!N200=\"\",\"\",'800111a - Nota. Detalle de CxC.'!N200)","v":""},{"$f":"IF('800111a - Nota. Detalle de CxC.'!N201=\"\",\"\",'800111a - Nota. Detalle de CxC.'!N201)","v":""},{"$f":"IF('800111a - Nota. Detalle de CxC.'!N202=\"\",\"\",'800111a - Nota. Detalle de CxC.'!N202)","v":""},{"$f":"IF('800111a - Nota. Detalle de CxC.'!N203=\"\",\"\",'800111a - Nota. Detalle de CxC.'!N203)","v":""},{"$f":"IF('800111a - Nota. Detalle de CxC.'!N204=\"\",\"\",'800111a - Nota. Detalle de CxC.'!N204)","v":""},{"$f":"IF('800111a - Nota. Detalle de CxC.'!N205=\"\",\"\",'800111a - Nota. Detalle de CxC.'!N205)","v":""},{"$f":"IF('800111a - Nota. Detalle de CxC.'!N206=\"\",\"\",'800111a - Nota. Detalle de CxC.'!N206)","v":""},{"$f":"IF('800111a - Nota. Detalle de CxC.'!N207=\"\",\"\",'800111a - Nota. Detalle de CxC.'!N207)","v":""},{"$f":"IF('800111a - Nota. Detalle de CxC.'!N208=\"\",\"\",'800111a - Nota. Detalle de CxC.'!N208)","v":""},{"$f":"IF('800111a - Nota. Detalle de CxC.'!N209=\"\",\"\",'800111a - Nota. Detalle de CxC.'!N209)","v":""},{"$f":"IF('800111a - Nota. Detalle de CxC.'!N210=\"\",\"\",'800111a - Nota. Detalle de CxC.'!N210)","v":""},{"$f":"IF('800111a - Nota. Detalle de CxC.'!N211=\"\",\"\",'800111a - Nota. Detalle de CxC.'!N211)","v":""},{"$f":"IF('800111a - Nota. Detalle de CxC.'!N212=\"\",\"\",'800111a - Nota. Detalle de CxC.'!N212)","v":""},{"$f":"IF('800111a - Nota. Detalle de CxC.'!N213=\"\",\"\",'800111a - Nota. Detalle de CxC.'!N213)","v":""},{"$f":"IF('800111a - Nota. Detalle de CxC.'!N214=\"\",\"\",'800111a - Nota. Detalle de CxC.'!N214)","v":""},{"$f":"IF('800111a - Nota. Detalle de CxC.'!N215=\"\",\"\",'800111a - Nota. Detalle de CxC.'!N215)","v":""},{"$f":"IF('800111a - Nota. Detalle de CxC.'!N216=\"\",\"\",'800111a - Nota. Detalle de CxC.'!N216)","v":""},{"$f":"IF('800111a - Nota. Detalle de CxC.'!N217=\"\",\"\",'800111a - Nota. Detalle de CxC.'!N217)","v":""},{"$f":"IF('800111a - Nota. Detalle de CxC.'!N218=\"\",\"\",'800111a - Nota. Detalle de CxC.'!N218)","v":""},{"$f":"IF('800111a - Nota. Detalle de CxC.'!N219=\"\",\"\",'800111a - Nota. Detalle de CxC.'!N219)","v":""},{"$f":"IF('800111a - Nota. Detalle de CxC.'!N220=\"\",\"\",'800111a - Nota. Detalle de CxC.'!N220)","v":""},{"$f":"IF('800111a - Nota. Detalle de CxC.'!N221=\"\",\"\",'800111a - Nota. Detalle de CxC.'!N221)","v":""},{"$f":"IF('800111a - Nota. Detalle de CxC.'!N222=\"\",\"\",'800111a - Nota. Detalle de CxC.'!N222)","v":""},{"$f":"IF('800111a - Nota. Detalle de CxC.'!N223=\"\",\"\",'800111a - Nota. Detalle de CxC.'!N223)","v":""},{"$f":"IF('800111a - Nota. Detalle de CxC.'!N224=\"\",\"\",'800111a - Nota. Detalle de CxC.'!N224)","v":""},{"$f":"IF('800111a - Nota. Detalle de CxC.'!N225=\"\",\"\",'800111a - Nota. Detalle de CxC.'!N225)","v":""},{"$f":"IF('800111a - Nota. Detalle de CxC.'!N226=\"\",\"\",'800111a - Nota. Detalle de CxC.'!N226)","v":""},{"$f":"IF('800111a - Nota. Detalle de CxC.'!N227=\"\",\"\",'800111a - Nota. Detalle de CxC.'!N227)","v":""},{"$f":"IF('800111a - Nota. Detalle de CxC.'!N228=\"\",\"\",'800111a - Nota. Detalle de CxC.'!N228)","v":""},{"$f":"IF('800111a - Nota. Detalle de CxC.'!N229=\"\",\"\",'800111a - Nota. Detalle de CxC.'!N229)","v":""},{"$f":"IF('800111a - Nota. Detalle de CxC.'!N230=\"\",\"\",'800111a - Nota. Detalle de CxC.'!N230)","v":""},{"$f":"IF('800111a - Nota. Detalle de CxC.'!N231=\"\",\"\",'800111a - Nota. Detalle de CxC.'!N231)","v":""},{"$f":"IF('800111a - Nota. Detalle de CxC.'!N232=\"\",\"\",'800111a - Nota. Detalle de CxC.'!N232)","v":""},{"$f":"IF('800111a - Nota. Detalle de CxC.'!N233=\"\",\"\",'800111a - Nota. Detalle de CxC.'!N233)","v":""},{"$f":"IF('800111a - Nota. Detalle de CxC.'!N234=\"\",\"\",'800111a - Nota. Detalle de CxC.'!N234)","v":""},null,null,null,{"$f":"IF('800111a - Nota. Detalle de CxC.'!N238=\"\",\"\",'800111a - Nota. Detalle de CxC.'!N238)","v":""},{"$f":"IF('800111a - Nota. Detalle de CxC.'!N239=\"\",\"\",'800111a - Nota. Detalle de CxC.'!N239)","v":""},{"$f":"IF('800111a - Nota. Detalle de CxC.'!N240=\"\",\"\",'800111a - Nota. Detalle de CxC.'!N240)","v":""},{"$f":"IF('800111a - Nota. Detalle de CxC.'!N241=\"\",\"\",'800111a - Nota. Detalle de CxC.'!N241)","v":""},{"$f":"IF('800111a - Nota. Detalle de CxC.'!N242=\"\",\"\",'800111a - Nota. Detalle de CxC.'!N242)","v":""},{"$f":"IF('800111a - Nota. Detalle de CxC.'!N243=\"\",\"\",'800111a - Nota. Detalle de CxC.'!N243)","v":""},{"$f":"IF('800111a - Nota. Detalle de CxC.'!N244=\"\",\"\",'800111a - Nota. Detalle de CxC.'!N244)","v":""},{"$f":"IF('800111a - Nota. Detalle de CxC.'!N245=\"\",\"\",'800111a - Nota. Detalle de CxC.'!N245)","v":""},{"$f":"IF('800111a - Nota. Detalle de CxC.'!N246=\"\",\"\",'800111a - Nota. Detalle de CxC.'!N246)","v":""},{"$f":"IF('800111a - Nota. Detalle de CxC.'!N247=\"\",\"\",'800111a - Nota. Detalle de CxC.'!N247)","v":""},{"$f":"IF('800111a - Nota. Detalle de CxC.'!N248=\"\",\"\",'800111a - Nota. Detalle de CxC.'!N248)","v":""},{"$f":"IF('800111a - Nota. Detalle de CxC.'!N249=\"\",\"\",'800111a - Nota. Detalle de CxC.'!N249)","v":""},{"$f":"IF('800111a - Nota. Detalle de CxC.'!N250=\"\",\"\",'800111a - Nota. Detalle de CxC.'!N250)","v":""},{"$f":"IF('800111a - Nota. Detalle de CxC.'!N251=\"\",\"\",'800111a - Nota. Detalle de CxC.'!N251)","v":""},{"$f":"IF('800111a - Nota. Detalle de CxC.'!N252=\"\",\"\",'800111a - Nota. Detalle de CxC.'!N252)","v":""},{"$f":"IF('800111a - Nota. Detalle de CxC.'!N253=\"\",\"\",'800111a - Nota. Detalle de CxC.'!N253)","v":""},{"$f":"IF('800111a - Nota. Detalle de CxC.'!N254=\"\",\"\",'800111a - Nota. Detalle de CxC.'!N254)","v":""},{"$f":"IF('800111a - Nota. Detalle de CxC.'!N255=\"\",\"\",'800111a - Nota. Detalle de CxC.'!N255)","v":""},{"$f":"IF('800111a - Nota. Detalle de CxC.'!N256=\"\",\"\",'800111a - Nota. Detalle de CxC.'!N256)","v":""},{"$f":"IF('800111a - Nota. Detalle de CxC.'!N257=\"\",\"\",'800111a - Nota. Detalle de CxC.'!N257)","v":""},{"$f":"IF('800111a - Nota. Detalle de CxC.'!N258=\"\",\"\",'800111a - Nota. Detalle de CxC.'!N258)","v":""},{"$f":"IF('800111a - Nota. Detalle de CxC.'!N259=\"\",\"\",'800111a - Nota. Detalle de CxC.'!N259)","v":""},{"$f":"IF('800111a - Nota. Detalle de CxC.'!N260=\"\",\"\",'800111a - Nota. Detalle de CxC.'!N260)","v":""},{"$f":"IF('800111a - Nota. Detalle de CxC.'!N261=\"\",\"\",'800111a - Nota. Detalle de CxC.'!N261)","v":""},{"$f":"IF('800111a - Nota. Detalle de CxC.'!N262=\"\",\"\",'800111a - Nota. Detalle de CxC.'!N262)","v":""},{"$f":"IF('800111a - Nota. Detalle de CxC.'!N263=\"\",\"\",'800111a - Nota. Detalle de CxC.'!N263)","v":""},{"$f":"IF('800111a - Nota. Detalle de CxC.'!N264=\"\",\"\",'800111a - Nota. Detalle de CxC.'!N264)","v":""},{"$f":"IF('800111a - Nota. Detalle de CxC.'!N265=\"\",\"\",'800111a - Nota. Detalle de CxC.'!N265)","v":""},{"$f":"IF('800111a - Nota. Detalle de CxC.'!N266=\"\",\"\",'800111a - Nota. Detalle de CxC.'!N266)","v":""},{"$f":"IF('800111a - Nota. Detalle de CxC.'!N267=\"\",\"\",'800111a - Nota. Detalle de CxC.'!N267)","v":""},{"$f":"IF('800111a - Nota. Detalle de CxC.'!N268=\"\",\"\",'800111a - Nota. Detalle de CxC.'!N268)","v":""},{"$f":"IF('800111a - Nota. Detalle de CxC.'!N269=\"\",\"\",'800111a - Nota. Detalle de CxC.'!N269)","v":""},{"$f":"IF('800111a - Nota. Detalle de CxC.'!N270=\"\",\"\",'800111a - Nota. Detalle de CxC.'!N270)","v":""},{"$f":"IF('800111a - Nota. Detalle de CxC.'!N271=\"\",\"\",'800111a - Nota. Detalle de CxC.'!N271)","v":""},{"$f":"IF('800111a - Nota. Detalle de CxC.'!N272=\"\",\"\",'800111a - Nota. Detalle de CxC.'!N272)","v":""},{"$f":"IF('800111a - Nota. Detalle de CxC.'!N273=\"\",\"\",'800111a - Nota. Detalle de CxC.'!N273)","v":""},{"$f":"IF('800111a - Nota. Detalle de CxC.'!N274=\"\",\"\",'800111a - Nota. Detalle de CxC.'!N274)","v":""},{"$f":"IF('800111a - Nota. Detalle de CxC.'!N275=\"\",\"\",'800111a - Nota. Detalle de CxC.'!N275)","v":""},{"$f":"IF('800111a - Nota. Detalle de CxC.'!N276=\"\",\"\",'800111a - Nota. Detalle de CxC.'!N276)","v":""},{"$f":"IF('800111a - Nota. Detalle de CxC.'!N277=\"\",\"\",'800111a - Nota. Detalle de CxC.'!N277)","v":""},{"$f":"IF('800111a - Nota. Detalle de CxC.'!N278=\"\",\"\",'800111a - Nota. Detalle de CxC.'!N278)","v":""},{"$f":"IF('800111a - Nota. Detalle de CxC.'!N279=\"\",\"\",'800111a - Nota. Detalle de CxC.'!N279)","v":""},{"$f":"IF('800111a - Nota. Detalle de CxC.'!N280=\"\",\"\",'800111a - Nota. Detalle de CxC.'!N280)","v":""},{"$f":"IF('800111a - Nota. Detalle de CxC.'!N281=\"\",\"\",'800111a - Nota. Detalle de CxC.'!N281)","v":""},{"$f":"IF('800111a - Nota. Detalle de CxC.'!N282=\"\",\"\",'800111a - Nota. Detalle de CxC.'!N282)","v":""},{"$f":"IF('800111a - Nota. Detalle de CxC.'!N283=\"\",\"\",'800111a - Nota. Detalle de CxC.'!N283)","v":""},{"$f":"IF('800111a - Nota. Detalle de CxC.'!N284=\"\",\"\",'800111a - Nota. Detalle de CxC.'!N284)","v":""},{"$f":"IF('800111a - Nota. Detalle de CxC.'!N285=\"\",\"\",'800111a - Nota. Detalle de CxC.'!N285)","v":""},{"$f":"IF('800111a - Nota. Detalle de CxC.'!N286=\"\",\"\",'800111a - Nota. Detalle de CxC.'!N286)","v":""},{"$f":"IF('800111a - Nota. Detalle de CxC.'!N287=\"\",\"\",'800111a - Nota. Detalle de CxC.'!N287)","v":""},null,null,null,{"$f":"IF('800111a - Nota. Detalle de CxC.'!N291=\"\",\"\",'800111a - Nota. Detalle de CxC.'!N291)","v":""},{"$f":"IF('800111a - Nota. Detalle de CxC.'!N292=\"\",\"\",'800111a - Nota. Detalle de CxC.'!N292)","v":""},{"$f":"IF('800111a - Nota. Detalle de CxC.'!N293=\"\",\"\",'800111a - Nota. Detalle de CxC.'!N293)","v":""},{"$f":"IF('800111a - Nota. Detalle de CxC.'!N294=\"\",\"\",'800111a - Nota. Detalle de CxC.'!N294)","v":""},{"$f":"IF('800111a - Nota. Detalle de CxC.'!N295=\"\",\"\",'800111a - Nota. Detalle de CxC.'!N295)","v":""},{"$f":"IF('800111a - Nota. Detalle de CxC.'!N296=\"\",\"\",'800111a - Nota. Detalle de CxC.'!N296)","v":""},{"$f":"IF('800111a - Nota. Detalle de CxC.'!N297=\"\",\"\",'800111a - Nota. Detalle de CxC.'!N297)","v":""},{"$f":"IF('800111a - Nota. Detalle de CxC.'!N298=\"\",\"\",'800111a - Nota. Detalle de CxC.'!N298)","v":""},{"$f":"IF('800111a - Nota. Detalle de CxC.'!N299=\"\",\"\",'800111a - Nota. Detalle de CxC.'!N299)","v":""},{"$f":"IF('800111a - Nota. Detalle de CxC.'!N300=\"\",\"\",'800111a - Nota. Detalle de CxC.'!N300)","v":""},{"$f":"IF('800111a - Nota. Detalle de CxC.'!N301=\"\",\"\",'800111a - Nota. Detalle de CxC.'!N301)","v":""},{"$f":"IF('800111a - Nota. Detalle de CxC.'!N302=\"\",\"\",'800111a - Nota. Detalle de CxC.'!N302)","v":""},{"$f":"IF('800111a - Nota. Detalle de CxC.'!N303=\"\",\"\",'800111a - Nota. Detalle de CxC.'!N303)","v":""},{"$f":"IF('800111a - Nota. Detalle de CxC.'!N304=\"\",\"\",'800111a - Nota. Detalle de CxC.'!N304)","v":""},{"$f":"IF('800111a - Nota. Detalle de CxC.'!N305=\"\",\"\",'800111a - Nota. Detalle de CxC.'!N305)","v":""},{"$f":"IF('800111a - Nota. Detalle de CxC.'!N306=\"\",\"\",'800111a - Nota. Detalle de CxC.'!N306)","v":""},{"$f":"IF('800111a - Nota. Detalle de CxC.'!N307=\"\",\"\",'800111a - Nota. Detalle de CxC.'!N307)","v":""},{"$f":"IF('800111a - Nota. Detalle de CxC.'!N308=\"\",\"\",'800111a - Nota. Detalle de CxC.'!N308)","v":""},{"$f":"IF('800111a - Nota. Detalle de CxC.'!N309=\"\",\"\",'800111a - Nota. Detalle de CxC.'!N309)","v":""},{"$f":"IF('800111a - Nota. Detalle de CxC.'!N310=\"\",\"\",'800111a - Nota. Detalle de CxC.'!N310)","v":""},{"$f":"IF('800111a - Nota. Detalle de CxC.'!N311=\"\",\"\",'800111a - Nota. Detalle de CxC.'!N311)","v":""},{"$f":"IF('800111a - Nota. Detalle de CxC.'!N312=\"\",\"\",'800111a - Nota. Detalle de CxC.'!N312)","v":""},{"$f":"IF('800111a - Nota. Detalle de CxC.'!N313=\"\",\"\",'800111a - Nota. Detalle de CxC.'!N313)","v":""},{"$f":"IF('800111a - Nota. Detalle de CxC.'!N314=\"\",\"\",'800111a - Nota. Detalle de CxC.'!N314)","v":""},{"$f":"IF('800111a - Nota. Detalle de CxC.'!N315=\"\",\"\",'800111a - Nota. Detalle de CxC.'!N315)","v":""},{"$f":"IF('800111a - Nota. Detalle de CxC.'!N316=\"\",\"\",'800111a - Nota. Detalle de CxC.'!N316)","v":""},{"$f":"IF('800111a - Nota. Detalle de CxC.'!N317=\"\",\"\",'800111a - Nota. Detalle de CxC.'!N317)","v":""},{"$f":"IF('800111a - Nota. Detalle de CxC.'!N318=\"\",\"\",'800111a - Nota. Detalle de CxC.'!N318)","v":""},{"$f":"IF('800111a - Nota. Detalle de CxC.'!N319=\"\",\"\",'800111a - Nota. Detalle de CxC.'!N319)","v":""},{"$f":"IF('800111a - Nota. Detalle de CxC.'!N320=\"\",\"\",'800111a - Nota. Detalle de CxC.'!N320)","v":""},{"$f":"IF('800111a - Nota. Detalle de CxC.'!N321=\"\",\"\",'800111a - Nota. Detalle de CxC.'!N321)","v":""},{"$f":"IF('800111a - Nota. Detalle de CxC.'!N322=\"\",\"\",'800111a - Nota. Detalle de CxC.'!N322)","v":""},{"$f":"IF('800111a - Nota. Detalle de CxC.'!N323=\"\",\"\",'800111a - Nota. Detalle de CxC.'!N323)","v":""},{"$f":"IF('800111a - Nota. Detalle de CxC.'!N324=\"\",\"\",'800111a - Nota. Detalle de CxC.'!N324)","v":""},{"$f":"IF('800111a - Nota. Detalle de CxC.'!N325=\"\",\"\",'800111a - Nota. Detalle de CxC.'!N325)","v":""},{"$f":"IF('800111a - Nota. Detalle de CxC.'!N326=\"\",\"\",'800111a - Nota. Detalle de CxC.'!N326)","v":""},{"$f":"IF('800111a - Nota. Detalle de CxC.'!N327=\"\",\"\",'800111a - Nota. Detalle de CxC.'!N327)","v":""},{"$f":"IF('800111a - Nota. Detalle de CxC.'!N328=\"\",\"\",'800111a - Nota. Detalle de CxC.'!N328)","v":""},{"$f":"IF('800111a - Nota. Detalle de CxC.'!N329=\"\",\"\",'800111a - Nota. Detalle de CxC.'!N329)","v":""},{"$f":"IF('800111a - Nota. Detalle de CxC.'!N330=\"\",\"\",'800111a - Nota. Detalle de CxC.'!N330)","v":""},{"$f":"IF('800111a - Nota. Detalle de CxC.'!N331=\"\",\"\",'800111a - Nota. Detalle de CxC.'!N331)","v":""},{"$f":"IF('800111a - Nota. Detalle de CxC.'!N332=\"\",\"\",'800111a - Nota. Detalle de CxC.'!N332)","v":""},{"$f":"IF('800111a - Nota. Detalle de CxC.'!N333=\"\",\"\",'800111a - Nota. Detalle de CxC.'!N333)","v":""},{"$f":"IF('800111a - Nota. Detalle de CxC.'!N334=\"\",\"\",'800111a - Nota. Detalle de CxC.'!N334)","v":""},{"$f":"IF('800111a - Nota. Detalle de CxC.'!N335=\"\",\"\",'800111a - Nota. Detalle de CxC.'!N335)","v":""},{"$f":"IF('800111a - Nota. Detalle de CxC.'!N336=\"\",\"\",'800111a - Nota. Detalle de CxC.'!N336)","v":""},{"$f":"IF('800111a - Nota. Detalle de CxC.'!N337=\"\",\"\",'800111a - Nota. Detalle de CxC.'!N337)","v":""},{"$f":"IF('800111a - Nota. Detalle de CxC.'!N338=\"\",\"\",'800111a - Nota. Detalle de CxC.'!N338)","v":""},{"$f":"IF('800111a - Nota. Detalle de CxC.'!N339=\"\",\"\",'800111a - Nota. Detalle de CxC.'!N339)","v":""},{"$f":"IF('800111a - Nota. Detalle de CxC.'!N340=\"\",\"\",'800111a - Nota. Detalle de CxC.'!N340)","v":""}]
[null,"1;2","co-svsp-core_2017-12-31:PaisDeudorCxC","País deudor",null,null,{"$f":"IF('800111a - Nota. Detalle de CxC.'!O185=\"\",\"\",'800111a - Nota. Detalle de CxC.'!O185)","v":""},{"$f":"IF('800111a - Nota. Detalle de CxC.'!O186=\"\",\"\",'800111a - Nota. Detalle de CxC.'!O186)","v":""},{"$f":"IF('800111a - Nota. Detalle de CxC.'!O187=\"\",\"\",'800111a - Nota. Detalle de CxC.'!O187)","v":""},{"$f":"IF('800111a - Nota. Detalle de CxC.'!O188=\"\",\"\",'800111a - Nota. Detalle de CxC.'!O188)","v":""},{"$f":"IF('800111a - Nota. Detalle de CxC.'!O189=\"\",\"\",'800111a - Nota. Detalle de CxC.'!O189)","v":""},{"$f":"IF('800111a - Nota. Detalle de CxC.'!O190=\"\",\"\",'800111a - Nota. Detalle de CxC.'!O190)","v":""},{"$f":"IF('800111a - Nota. Detalle de CxC.'!O191=\"\",\"\",'800111a - Nota. Detalle de CxC.'!O191)","v":""},{"$f":"IF('800111a - Nota. Detalle de CxC.'!O192=\"\",\"\",'800111a - Nota. Detalle de CxC.'!O192)","v":""},{"$f":"IF('800111a - Nota. Detalle de CxC.'!O193=\"\",\"\",'800111a - Nota. Detalle de CxC.'!O193)","v":""},{"$f":"IF('800111a - Nota. Detalle de CxC.'!O194=\"\",\"\",'800111a - Nota. Detalle de CxC.'!O194)","v":""},{"$f":"IF('800111a - Nota. Detalle de CxC.'!O195=\"\",\"\",'800111a - Nota. Detalle de CxC.'!O195)","v":""},{"$f":"IF('800111a - Nota. Detalle de CxC.'!O196=\"\",\"\",'800111a - Nota. Detalle de CxC.'!O196)","v":""},{"$f":"IF('800111a - Nota. Detalle de CxC.'!O197=\"\",\"\",'800111a - Nota. Detalle de CxC.'!O197)","v":""},{"$f":"IF('800111a - Nota. Detalle de CxC.'!O198=\"\",\"\",'800111a - Nota. Detalle de CxC.'!O198)","v":""},{"$f":"IF('800111a - Nota. Detalle de CxC.'!O199=\"\",\"\",'800111a - Nota. Detalle de CxC.'!O199)","v":""},{"$f":"IF('800111a - Nota. Detalle de CxC.'!O200=\"\",\"\",'800111a - Nota. Detalle de CxC.'!O200)","v":""},{"$f":"IF('800111a - Nota. Detalle de CxC.'!O201=\"\",\"\",'800111a - Nota. Detalle de CxC.'!O201)","v":""},{"$f":"IF('800111a - Nota. Detalle de CxC.'!O202=\"\",\"\",'800111a - Nota. Detalle de CxC.'!O202)","v":""},{"$f":"IF('800111a - Nota. Detalle de CxC.'!O203=\"\",\"\",'800111a - Nota. Detalle de CxC.'!O203)","v":""},{"$f":"IF('800111a - Nota. Detalle de CxC.'!O204=\"\",\"\",'800111a - Nota. Detalle de CxC.'!O204)","v":""},{"$f":"IF('800111a - Nota. Detalle de CxC.'!O205=\"\",\"\",'800111a - Nota. Detalle de CxC.'!O205)","v":""},{"$f":"IF('800111a - Nota. Detalle de CxC.'!O206=\"\",\"\",'800111a - Nota. Detalle de CxC.'!O206)","v":""},{"$f":"IF('800111a - Nota. Detalle de CxC.'!O207=\"\",\"\",'800111a - Nota. Detalle de CxC.'!O207)","v":""},{"$f":"IF('800111a - Nota. Detalle de CxC.'!O208=\"\",\"\",'800111a - Nota. Detalle de CxC.'!O208)","v":""},{"$f":"IF('800111a - Nota. Detalle de CxC.'!O209=\"\",\"\",'800111a - Nota. Detalle de CxC.'!O209)","v":""},{"$f":"IF('800111a - Nota. Detalle de CxC.'!O210=\"\",\"\",'800111a - Nota. Detalle de CxC.'!O210)","v":""},{"$f":"IF('800111a - Nota. Detalle de CxC.'!O211=\"\",\"\",'800111a - Nota. Detalle de CxC.'!O211)","v":""},{"$f":"IF('800111a - Nota. Detalle de CxC.'!O212=\"\",\"\",'800111a - Nota. Detalle de CxC.'!O212)","v":""},{"$f":"IF('800111a - Nota. Detalle de CxC.'!O213=\"\",\"\",'800111a - Nota. Detalle de CxC.'!O213)","v":""},{"$f":"IF('800111a - Nota. Detalle de CxC.'!O214=\"\",\"\",'800111a - Nota. Detalle de CxC.'!O214)","v":""},{"$f":"IF('800111a - Nota. Detalle de CxC.'!O215=\"\",\"\",'800111a - Nota. Detalle de CxC.'!O215)","v":""},{"$f":"IF('800111a - Nota. Detalle de CxC.'!O216=\"\",\"\",'800111a - Nota. Detalle de CxC.'!O216)","v":""},{"$f":"IF('800111a - Nota. Detalle de CxC.'!O217=\"\",\"\",'800111a - Nota. Detalle de CxC.'!O217)","v":""},{"$f":"IF('800111a - Nota. Detalle de CxC.'!O218=\"\",\"\",'800111a - Nota. Detalle de CxC.'!O218)","v":""},{"$f":"IF('800111a - Nota. Detalle de CxC.'!O219=\"\",\"\",'800111a - Nota. Detalle de CxC.'!O219)","v":""},{"$f":"IF('800111a - Nota. Detalle de CxC.'!O220=\"\",\"\",'800111a - Nota. Detalle de CxC.'!O220)","v":""},{"$f":"IF('800111a - Nota. Detalle de CxC.'!O221=\"\",\"\",'800111a - Nota. Detalle de CxC.'!O221)","v":""},{"$f":"IF('800111a - Nota. Detalle de CxC.'!O222=\"\",\"\",'800111a - Nota. Detalle de CxC.'!O222)","v":""},{"$f":"IF('800111a - Nota. Detalle de CxC.'!O223=\"\",\"\",'800111a - Nota. Detalle de CxC.'!O223)","v":""},{"$f":"IF('800111a - Nota. Detalle de CxC.'!O224=\"\",\"\",'800111a - Nota. Detalle de CxC.'!O224)","v":""},{"$f":"IF('800111a - Nota. Detalle de CxC.'!O225=\"\",\"\",'800111a - Nota. Detalle de CxC.'!O225)","v":""},{"$f":"IF('800111a - Nota. Detalle de CxC.'!O226=\"\",\"\",'800111a - Nota. Detalle de CxC.'!O226)","v":""},{"$f":"IF('800111a - Nota. Detalle de CxC.'!O227=\"\",\"\",'800111a - Nota. Detalle de CxC.'!O227)","v":""},{"$f":"IF('800111a - Nota. Detalle de CxC.'!O228=\"\",\"\",'800111a - Nota. Detalle de CxC.'!O228)","v":""},{"$f":"IF('800111a - Nota. Detalle de CxC.'!O229=\"\",\"\",'800111a - Nota. Detalle de CxC.'!O229)","v":""},{"$f":"IF('800111a - Nota. Detalle de CxC.'!O230=\"\",\"\",'800111a - Nota. Detalle de CxC.'!O230)","v":""},{"$f":"IF('800111a - Nota. Detalle de CxC.'!O231=\"\",\"\",'800111a - Nota. Detalle de CxC.'!O231)","v":""},{"$f":"IF('800111a - Nota. Detalle de CxC.'!O232=\"\",\"\",'800111a - Nota. Detalle de CxC.'!O232)","v":""},{"$f":"IF('800111a - Nota. Detalle de CxC.'!O233=\"\",\"\",'800111a - Nota. Detalle de CxC.'!O233)","v":""},{"$f":"IF('800111a - Nota. Detalle de CxC.'!O234=\"\",\"\",'800111a - Nota. Detalle de CxC.'!O234)","v":""},null,null,null,{"$f":"IF('800111a - Nota. Detalle de CxC.'!O238=\"\",\"\",'800111a - Nota. Detalle de CxC.'!O238)","v":""},{"$f":"IF('800111a - Nota. Detalle de CxC.'!O239=\"\",\"\",'800111a - Nota. Detalle de CxC.'!O239)","v":""},{"$f":"IF('800111a - Nota. Detalle de CxC.'!O240=\"\",\"\",'800111a - Nota. Detalle de CxC.'!O240)","v":""},{"$f":"IF('800111a - Nota. Detalle de CxC.'!O241=\"\",\"\",'800111a - Nota. Detalle de CxC.'!O241)","v":""},{"$f":"IF('800111a - Nota. Detalle de CxC.'!O242=\"\",\"\",'800111a - Nota. Detalle de CxC.'!O242)","v":""},{"$f":"IF('800111a - Nota. Detalle de CxC.'!O243=\"\",\"\",'800111a - Nota. Detalle de CxC.'!O243)","v":""},{"$f":"IF('800111a - Nota. Detalle de CxC.'!O244=\"\",\"\",'800111a - Nota. Detalle de CxC.'!O244)","v":""},{"$f":"IF('800111a - Nota. Detalle de CxC.'!O245=\"\",\"\",'800111a - Nota. Detalle de CxC.'!O245)","v":""},{"$f":"IF('800111a - Nota. Detalle de CxC.'!O246=\"\",\"\",'800111a - Nota. Detalle de CxC.'!O246)","v":""},{"$f":"IF('800111a - Nota. Detalle de CxC.'!O247=\"\",\"\",'800111a - Nota. Detalle de CxC.'!O247)","v":""},{"$f":"IF('800111a - Nota. Detalle de CxC.'!O248=\"\",\"\",'800111a - Nota. Detalle de CxC.'!O248)","v":""},{"$f":"IF('800111a - Nota. Detalle de CxC.'!O249=\"\",\"\",'800111a - Nota. Detalle de CxC.'!O249)","v":""},{"$f":"IF('800111a - Nota. Detalle de CxC.'!O250=\"\",\"\",'800111a - Nota. Detalle de CxC.'!O250)","v":""},{"$f":"IF('800111a - Nota. Detalle de CxC.'!O251=\"\",\"\",'800111a - Nota. Detalle de CxC.'!O251)","v":""},{"$f":"IF('800111a - Nota. Detalle de CxC.'!O252=\"\",\"\",'800111a - Nota. Detalle de CxC.'!O252)","v":""},{"$f":"IF('800111a - Nota. Detalle de CxC.'!O253=\"\",\"\",'800111a - Nota. Detalle de CxC.'!O253)","v":""},{"$f":"IF('800111a - Nota. Detalle de CxC.'!O254=\"\",\"\",'800111a - Nota. Detalle de CxC.'!O254)","v":""},{"$f":"IF('800111a - Nota. Detalle de CxC.'!O255=\"\",\"\",'800111a - Nota. Detalle de CxC.'!O255)","v":""},{"$f":"IF('800111a - Nota. Detalle de CxC.'!O256=\"\",\"\",'800111a - Nota. Detalle de CxC.'!O256)","v":""},{"$f":"IF('800111a - Nota. Detalle de CxC.'!O257=\"\",\"\",'800111a - Nota. Detalle de CxC.'!O257)","v":""},{"$f":"IF('800111a - Nota. Detalle de CxC.'!O258=\"\",\"\",'800111a - Nota. Detalle de CxC.'!O258)","v":""},{"$f":"IF('800111a - Nota. Detalle de CxC.'!O259=\"\",\"\",'800111a - Nota. Detalle de CxC.'!O259)","v":""},{"$f":"IF('800111a - Nota. Detalle de CxC.'!O260=\"\",\"\",'800111a - Nota. Detalle de CxC.'!O260)","v":""},{"$f":"IF('800111a - Nota. Detalle de CxC.'!O261=\"\",\"\",'800111a - Nota. Detalle de CxC.'!O261)","v":""},{"$f":"IF('800111a - Nota. Detalle de CxC.'!O262=\"\",\"\",'800111a - Nota. Detalle de CxC.'!O262)","v":""},{"$f":"IF('800111a - Nota. Detalle de CxC.'!O263=\"\",\"\",'800111a - Nota. Detalle de CxC.'!O263)","v":""},{"$f":"IF('800111a - Nota. Detalle de CxC.'!O264=\"\",\"\",'800111a - Nota. Detalle de CxC.'!O264)","v":""},{"$f":"IF('800111a - Nota. Detalle de CxC.'!O265=\"\",\"\",'800111a - Nota. Detalle de CxC.'!O265)","v":""},{"$f":"IF('800111a - Nota. Detalle de CxC.'!O266=\"\",\"\",'800111a - Nota. Detalle de CxC.'!O266)","v":""},{"$f":"IF('800111a - Nota. Detalle de CxC.'!O267=\"\",\"\",'800111a - Nota. Detalle de CxC.'!O267)","v":""},{"$f":"IF('800111a - Nota. Detalle de CxC.'!O268=\"\",\"\",'800111a - Nota. Detalle de CxC.'!O268)","v":""},{"$f":"IF('800111a - Nota. Detalle de CxC.'!O269=\"\",\"\",'800111a - Nota. Detalle de CxC.'!O269)","v":""},{"$f":"IF('800111a - Nota. Detalle de CxC.'!O270=\"\",\"\",'800111a - Nota. Detalle de CxC.'!O270)","v":""},{"$f":"IF('800111a - Nota. Detalle de CxC.'!O271=\"\",\"\",'800111a - Nota. Detalle de CxC.'!O271)","v":""},{"$f":"IF('800111a - Nota. Detalle de CxC.'!O272=\"\",\"\",'800111a - Nota. Detalle de CxC.'!O272)","v":""},{"$f":"IF('800111a - Nota. Detalle de CxC.'!O273=\"\",\"\",'800111a - Nota. Detalle de CxC.'!O273)","v":""},{"$f":"IF('800111a - Nota. Detalle de CxC.'!O274=\"\",\"\",'800111a - Nota. Detalle de CxC.'!O274)","v":""},{"$f":"IF('800111a - Nota. Detalle de CxC.'!O275=\"\",\"\",'800111a - Nota. Detalle de CxC.'!O275)","v":""},{"$f":"IF('800111a - Nota. Detalle de CxC.'!O276=\"\",\"\",'800111a - Nota. Detalle de CxC.'!O276)","v":""},{"$f":"IF('800111a - Nota. Detalle de CxC.'!O277=\"\",\"\",'800111a - Nota. Detalle de CxC.'!O277)","v":""},{"$f":"IF('800111a - Nota. Detalle de CxC.'!O278=\"\",\"\",'800111a - Nota. Detalle de CxC.'!O278)","v":""},{"$f":"IF('800111a - Nota. Detalle de CxC.'!O279=\"\",\"\",'800111a - Nota. Detalle de CxC.'!O279)","v":""},{"$f":"IF('800111a - Nota. Detalle de CxC.'!O280=\"\",\"\",'800111a - Nota. Detalle de CxC.'!O280)","v":""},{"$f":"IF('800111a - Nota. Detalle de CxC.'!O281=\"\",\"\",'800111a - Nota. Detalle de CxC.'!O281)","v":""},{"$f":"IF('800111a - Nota. Detalle de CxC.'!O282=\"\",\"\",'800111a - Nota. Detalle de CxC.'!O282)","v":""},{"$f":"IF('800111a - Nota. Detalle de CxC.'!O283=\"\",\"\",'800111a - Nota. Detalle de CxC.'!O283)","v":""},{"$f":"IF('800111a - Nota. Detalle de CxC.'!O284=\"\",\"\",'800111a - Nota. Detalle de CxC.'!O284)","v":""},{"$f":"IF('800111a - Nota. Detalle de CxC.'!O285=\"\",\"\",'800111a - Nota. Detalle de CxC.'!O285)","v":""},{"$f":"IF('800111a - Nota. Detalle de CxC.'!O286=\"\",\"\",'800111a - Nota. Detalle de CxC.'!O286)","v":""},{"$f":"IF('800111a - Nota. Detalle de CxC.'!O287=\"\",\"\",'800111a - Nota. Detalle de CxC.'!O287)","v":""},null,null,null,{"$f":"IF('800111a - Nota. Detalle de CxC.'!O291=\"\",\"\",'800111a - Nota. Detalle de CxC.'!O291)","v":""},{"$f":"IF('800111a - Nota. Detalle de CxC.'!O292=\"\",\"\",'800111a - Nota. Detalle de CxC.'!O292)","v":""},{"$f":"IF('800111a - Nota. Detalle de CxC.'!O293=\"\",\"\",'800111a - Nota. Detalle de CxC.'!O293)","v":""},{"$f":"IF('800111a - Nota. Detalle de CxC.'!O294=\"\",\"\",'800111a - Nota. Detalle de CxC.'!O294)","v":""},{"$f":"IF('800111a - Nota. Detalle de CxC.'!O295=\"\",\"\",'800111a - Nota. Detalle de CxC.'!O295)","v":""},{"$f":"IF('800111a - Nota. Detalle de CxC.'!O296=\"\",\"\",'800111a - Nota. Detalle de CxC.'!O296)","v":""},{"$f":"IF('800111a - Nota. Detalle de CxC.'!O297=\"\",\"\",'800111a - Nota. Detalle de CxC.'!O297)","v":""},{"$f":"IF('800111a - Nota. Detalle de CxC.'!O298=\"\",\"\",'800111a - Nota. Detalle de CxC.'!O298)","v":""},{"$f":"IF('800111a - Nota. Detalle de CxC.'!O299=\"\",\"\",'800111a - Nota. Detalle de CxC.'!O299)","v":""},{"$f":"IF('800111a - Nota. Detalle de CxC.'!O300=\"\",\"\",'800111a - Nota. Detalle de CxC.'!O300)","v":""},{"$f":"IF('800111a - Nota. Detalle de CxC.'!O301=\"\",\"\",'800111a - Nota. Detalle de CxC.'!O301)","v":""},{"$f":"IF('800111a - Nota. Detalle de CxC.'!O302=\"\",\"\",'800111a - Nota. Detalle de CxC.'!O302)","v":""},{"$f":"IF('800111a - Nota. Detalle de CxC.'!O303=\"\",\"\",'800111a - Nota. Detalle de CxC.'!O303)","v":""},{"$f":"IF('800111a - Nota. Detalle de CxC.'!O304=\"\",\"\",'800111a - Nota. Detalle de CxC.'!O304)","v":""},{"$f":"IF('800111a - Nota. Detalle de CxC.'!O305=\"\",\"\",'800111a - Nota. Detalle de CxC.'!O305)","v":""},{"$f":"IF('800111a - Nota. Detalle de CxC.'!O306=\"\",\"\",'800111a - Nota. Detalle de CxC.'!O306)","v":""},{"$f":"IF('800111a - Nota. Detalle de CxC.'!O307=\"\",\"\",'800111a - Nota. Detalle de CxC.'!O307)","v":""},{"$f":"IF('800111a - Nota. Detalle de CxC.'!O308=\"\",\"\",'800111a - Nota. Detalle de CxC.'!O308)","v":""},{"$f":"IF('800111a - Nota. Detalle de CxC.'!O309=\"\",\"\",'800111a - Nota. Detalle de CxC.'!O309)","v":""},{"$f":"IF('800111a - Nota. Detalle de CxC.'!O310=\"\",\"\",'800111a - Nota. Detalle de CxC.'!O310)","v":""},{"$f":"IF('800111a - Nota. Detalle de CxC.'!O311=\"\",\"\",'800111a - Nota. Detalle de CxC.'!O311)","v":""},{"$f":"IF('800111a - Nota. Detalle de CxC.'!O312=\"\",\"\",'800111a - Nota. Detalle de CxC.'!O312)","v":""},{"$f":"IF('800111a - Nota. Detalle de CxC.'!O313=\"\",\"\",'800111a - Nota. Detalle de CxC.'!O313)","v":""},{"$f":"IF('800111a - Nota. Detalle de CxC.'!O314=\"\",\"\",'800111a - Nota. Detalle de CxC.'!O314)","v":""},{"$f":"IF('800111a - Nota. Detalle de CxC.'!O315=\"\",\"\",'800111a - Nota. Detalle de CxC.'!O315)","v":""},{"$f":"IF('800111a - Nota. Detalle de CxC.'!O316=\"\",\"\",'800111a - Nota. Detalle de CxC.'!O316)","v":""},{"$f":"IF('800111a - Nota. Detalle de CxC.'!O317=\"\",\"\",'800111a - Nota. Detalle de CxC.'!O317)","v":""},{"$f":"IF('800111a - Nota. Detalle de CxC.'!O318=\"\",\"\",'800111a - Nota. Detalle de CxC.'!O318)","v":""},{"$f":"IF('800111a - Nota. Detalle de CxC.'!O319=\"\",\"\",'800111a - Nota. Detalle de CxC.'!O319)","v":""},{"$f":"IF('800111a - Nota. Detalle de CxC.'!O320=\"\",\"\",'800111a - Nota. Detalle de CxC.'!O320)","v":""},{"$f":"IF('800111a - Nota. Detalle de CxC.'!O321=\"\",\"\",'800111a - Nota. Detalle de CxC.'!O321)","v":""},{"$f":"IF('800111a - Nota. Detalle de CxC.'!O322=\"\",\"\",'800111a - Nota. Detalle de CxC.'!O322)","v":""},{"$f":"IF('800111a - Nota. Detalle de CxC.'!O323=\"\",\"\",'800111a - Nota. Detalle de CxC.'!O323)","v":""},{"$f":"IF('800111a - Nota. Detalle de CxC.'!O324=\"\",\"\",'800111a - Nota. Detalle de CxC.'!O324)","v":""},{"$f":"IF('800111a - Nota. Detalle de CxC.'!O325=\"\",\"\",'800111a - Nota. Detalle de CxC.'!O325)","v":""},{"$f":"IF('800111a - Nota. Detalle de CxC.'!O326=\"\",\"\",'800111a - Nota. Detalle de CxC.'!O326)","v":""},{"$f":"IF('800111a - Nota. Detalle de CxC.'!O327=\"\",\"\",'800111a - Nota. Detalle de CxC.'!O327)","v":""},{"$f":"IF('800111a - Nota. Detalle de CxC.'!O328=\"\",\"\",'800111a - Nota. Detalle de CxC.'!O328)","v":""},{"$f":"IF('800111a - Nota. Detalle de CxC.'!O329=\"\",\"\",'800111a - Nota. Detalle de CxC.'!O329)","v":""},{"$f":"IF('800111a - Nota. Detalle de CxC.'!O330=\"\",\"\",'800111a - Nota. Detalle de CxC.'!O330)","v":""},{"$f":"IF('800111a - Nota. Detalle de CxC.'!O331=\"\",\"\",'800111a - Nota. Detalle de CxC.'!O331)","v":""},{"$f":"IF('800111a - Nota. Detalle de CxC.'!O332=\"\",\"\",'800111a - Nota. Detalle de CxC.'!O332)","v":""},{"$f":"IF('800111a - Nota. Detalle de CxC.'!O333=\"\",\"\",'800111a - Nota. Detalle de CxC.'!O333)","v":""},{"$f":"IF('800111a - Nota. Detalle de CxC.'!O334=\"\",\"\",'800111a - Nota. Detalle de CxC.'!O334)","v":""},{"$f":"IF('800111a - Nota. Detalle de CxC.'!O335=\"\",\"\",'800111a - Nota. Detalle de CxC.'!O335)","v":""},{"$f":"IF('800111a - Nota. Detalle de CxC.'!O336=\"\",\"\",'800111a - Nota. Detalle de CxC.'!O336)","v":""},{"$f":"IF('800111a - Nota. Detalle de CxC.'!O337=\"\",\"\",'800111a - Nota. Detalle de CxC.'!O337)","v":""},{"$f":"IF('800111a - Nota. Detalle de CxC.'!O338=\"\",\"\",'800111a - Nota. Detalle de CxC.'!O338)","v":""},{"$f":"IF('800111a - Nota. Detalle de CxC.'!O339=\"\",\"\",'800111a - Nota. Detalle de CxC.'!O339)","v":""},{"$f":"IF('800111a - Nota. Detalle de CxC.'!O340=\"\",\"\",'800111a - Nota. Detalle de CxC.'!O340)","v":""}]
[null,"1;2","co-svsp-core_2017-12-31:SaldoCuentasPorCobrarCxC","Saldo cuentas por cobrar",null,null,{"$f":"IF('800111a - Nota. Detalle de CxC.'!P185=\"\",\"\",'800111a - Nota. Detalle de CxC.'!P185)","v":""},{"$f":"IF('800111a - Nota. Detalle de CxC.'!P186=\"\",\"\",'800111a - Nota. Detalle de CxC.'!P186)","v":""},{"$f":"IF('800111a - Nota. Detalle de CxC.'!P187=\"\",\"\",'800111a - Nota. Detalle de CxC.'!P187)","v":""},{"$f":"IF('800111a - Nota. Detalle de CxC.'!P188=\"\",\"\",'800111a - Nota. Detalle de CxC.'!P188)","v":""},{"$f":"IF('800111a - Nota. Detalle de CxC.'!P189=\"\",\"\",'800111a - Nota. Detalle de CxC.'!P189)","v":""},{"$f":"IF('800111a - Nota. Detalle de CxC.'!P190=\"\",\"\",'800111a - Nota. Detalle de CxC.'!P190)","v":""},{"$f":"IF('800111a - Nota. Detalle de CxC.'!P191=\"\",\"\",'800111a - Nota. Detalle de CxC.'!P191)","v":""},{"$f":"IF('800111a - Nota. Detalle de CxC.'!P192=\"\",\"\",'800111a - Nota. Detalle de CxC.'!P192)","v":""},{"$f":"IF('800111a - Nota. Detalle de CxC.'!P193=\"\",\"\",'800111a - Nota. Detalle de CxC.'!P193)","v":""},{"$f":"IF('800111a - Nota. Detalle de CxC.'!P194=\"\",\"\",'800111a - Nota. Detalle de CxC.'!P194)","v":""},{"$f":"IF('800111a - Nota. Detalle de CxC.'!P195=\"\",\"\",'800111a - Nota. Detalle de CxC.'!P195)","v":""},{"$f":"IF('800111a - Nota. Detalle de CxC.'!P196=\"\",\"\",'800111a - Nota. Detalle de CxC.'!P196)","v":""},{"$f":"IF('800111a - Nota. Detalle de CxC.'!P197=\"\",\"\",'800111a - Nota. Detalle de CxC.'!P197)","v":""},{"$f":"IF('800111a - Nota. Detalle de CxC.'!P198=\"\",\"\",'800111a - Nota. Detalle de CxC.'!P198)","v":""},{"$f":"IF('800111a - Nota. Detalle de CxC.'!P199=\"\",\"\",'800111a - Nota. Detalle de CxC.'!P199)","v":""},{"$f":"IF('800111a - Nota. Detalle de CxC.'!P200=\"\",\"\",'800111a - Nota. Detalle de CxC.'!P200)","v":""},{"$f":"IF('800111a - Nota. Detalle de CxC.'!P201=\"\",\"\",'800111a - Nota. Detalle de CxC.'!P201)","v":""},{"$f":"IF('800111a - Nota. Detalle de CxC.'!P202=\"\",\"\",'800111a - Nota. Detalle de CxC.'!P202)","v":""},{"$f":"IF('800111a - Nota. Detalle de CxC.'!P203=\"\",\"\",'800111a - Nota. Detalle de CxC.'!P203)","v":""},{"$f":"IF('800111a - Nota. Detalle de CxC.'!P204=\"\",\"\",'800111a - Nota. Detalle de CxC.'!P204)","v":""},{"$f":"IF('800111a - Nota. Detalle de CxC.'!P205=\"\",\"\",'800111a - Nota. Detalle de CxC.'!P205)","v":""},{"$f":"IF('800111a - Nota. Detalle de CxC.'!P206=\"\",\"\",'800111a - Nota. Detalle de CxC.'!P206)","v":""},{"$f":"IF('800111a - Nota. Detalle de CxC.'!P207=\"\",\"\",'800111a - Nota. Detalle de CxC.'!P207)","v":""},{"$f":"IF('800111a - Nota. Detalle de CxC.'!P208=\"\",\"\",'800111a - Nota. Detalle de CxC.'!P208)","v":""},{"$f":"IF('800111a - Nota. Detalle de CxC.'!P209=\"\",\"\",'800111a - Nota. Detalle de CxC.'!P209)","v":""},{"$f":"IF('800111a - Nota. Detalle de CxC.'!P210=\"\",\"\",'800111a - Nota. Detalle de CxC.'!P210)","v":""},{"$f":"IF('800111a - Nota. Detalle de CxC.'!P211=\"\",\"\",'800111a - Nota. Detalle de CxC.'!P211)","v":""},{"$f":"IF('800111a - Nota. Detalle de CxC.'!P212=\"\",\"\",'800111a - Nota. Detalle de CxC.'!P212)","v":""},{"$f":"IF('800111a - Nota. Detalle de CxC.'!P213=\"\",\"\",'800111a - Nota. Detalle de CxC.'!P213)","v":""},{"$f":"IF('800111a - Nota. Detalle de CxC.'!P214=\"\",\"\",'800111a - Nota. Detalle de CxC.'!P214)","v":""},{"$f":"IF('800111a - Nota. Detalle de CxC.'!P215=\"\",\"\",'800111a - Nota. Detalle de CxC.'!P215)","v":""},{"$f":"IF('800111a - Nota. Detalle de CxC.'!P216=\"\",\"\",'800111a - Nota. Detalle de CxC.'!P216)","v":""},{"$f":"IF('800111a - Nota. Detalle de CxC.'!P217=\"\",\"\",'800111a - Nota. Detalle de CxC.'!P217)","v":""},{"$f":"IF('800111a - Nota. Detalle de CxC.'!P218=\"\",\"\",'800111a - Nota. Detalle de CxC.'!P218)","v":""},{"$f":"IF('800111a - Nota. Detalle de CxC.'!P219=\"\",\"\",'800111a - Nota. Detalle de CxC.'!P219)","v":""},{"$f":"IF('800111a - Nota. Detalle de CxC.'!P220=\"\",\"\",'800111a - Nota. Detalle de CxC.'!P220)","v":""},{"$f":"IF('800111a - Nota. Detalle de CxC.'!P221=\"\",\"\",'800111a - Nota. Detalle de CxC.'!P221)","v":""},{"$f":"IF('800111a - Nota. Detalle de CxC.'!P222=\"\",\"\",'800111a - Nota. Detalle de CxC.'!P222)","v":""},{"$f":"IF('800111a - Nota. Detalle de CxC.'!P223=\"\",\"\",'800111a - Nota. Detalle de CxC.'!P223)","v":""},{"$f":"IF('800111a - Nota. Detalle de CxC.'!P224=\"\",\"\",'800111a - Nota. Detalle de CxC.'!P224)","v":""},{"$f":"IF('800111a - Nota. Detalle de CxC.'!P225=\"\",\"\",'800111a - Nota. Detalle de CxC.'!P225)","v":""},{"$f":"IF('800111a - Nota. Detalle de CxC.'!P226=\"\",\"\",'800111a - Nota. Detalle de CxC.'!P226)","v":""},{"$f":"IF('800111a - Nota. Detalle de CxC.'!P227=\"\",\"\",'800111a - Nota. Detalle de CxC.'!P227)","v":""},{"$f":"IF('800111a - Nota. Detalle de CxC.'!P228=\"\",\"\",'800111a - Nota. Detalle de CxC.'!P228)","v":""},{"$f":"IF('800111a - Nota. Detalle de CxC.'!P229=\"\",\"\",'800111a - Nota. Detalle de CxC.'!P229)","v":""},{"$f":"IF('800111a - Nota. Detalle de CxC.'!P230=\"\",\"\",'800111a - Nota. Detalle de CxC.'!P230)","v":""},{"$f":"IF('800111a - Nota. Detalle de CxC.'!P231=\"\",\"\",'800111a - Nota. Detalle de CxC.'!P231)","v":""},{"$f":"IF('800111a - Nota. Detalle de CxC.'!P232=\"\",\"\",'800111a - Nota. Detalle de CxC.'!P232)","v":""},{"$f":"IF('800111a - Nota. Detalle de CxC.'!P233=\"\",\"\",'800111a - Nota. Detalle de CxC.'!P233)","v":""},{"$f":"IF('800111a - Nota. Detalle de CxC.'!P234=\"\",\"\",'800111a - Nota. Detalle de CxC.'!P234)","v":""},{"$f":"IF('800111a - Nota. Detalle de CxC.'!P235=\"\",\"\",'800111a - Nota. Detalle de CxC.'!P235)","v":""},{"$f":"IF('800111a - Nota. Detalle de CxC.'!P236=\"\",\"\",'800111a - Nota. Detalle de CxC.'!P236)","v":0},null,{"$f":"IF('800111a - Nota. Detalle de CxC.'!P238=\"\",\"\",'800111a - Nota. Detalle de CxC.'!P238)","v":""},{"$f":"IF('800111a - Nota. Detalle de CxC.'!P239=\"\",\"\",'800111a - Nota. Detalle de CxC.'!P239)","v":""},{"$f":"IF('800111a - Nota. Detalle de CxC.'!P240=\"\",\"\",'800111a - Nota. Detalle de CxC.'!P240)","v":""},{"$f":"IF('800111a - Nota. Detalle de CxC.'!P241=\"\",\"\",'800111a - Nota. Detalle de CxC.'!P241)","v":""},{"$f":"IF('800111a - Nota. Detalle de CxC.'!P242=\"\",\"\",'800111a - Nota. Detalle de CxC.'!P242)","v":""},{"$f":"IF('800111a - Nota. Detalle de CxC.'!P243=\"\",\"\",'800111a - Nota. Detalle de CxC.'!P243)","v":""},{"$f":"IF('800111a - Nota. Detalle de CxC.'!P244=\"\",\"\",'800111a - Nota. Detalle de CxC.'!P244)","v":""},{"$f":"IF('800111a - Nota. Detalle de CxC.'!P245=\"\",\"\",'800111a - Nota. Detalle de CxC.'!P245)","v":""},{"$f":"IF('800111a - Nota. Detalle de CxC.'!P246=\"\",\"\",'800111a - Nota. Detalle de CxC.'!P246)","v":""},{"$f":"IF('800111a - Nota. Detalle de CxC.'!P247=\"\",\"\",'800111a - Nota. Detalle de CxC.'!P247)","v":""},{"$f":"IF('800111a - Nota. Detalle de CxC.'!P248=\"\",\"\",'800111a - Nota. Detalle de CxC.'!P248)","v":""},{"$f":"IF('800111a - Nota. Detalle de CxC.'!P249=\"\",\"\",'800111a - Nota. Detalle de CxC.'!P249)","v":""},{"$f":"IF('800111a - Nota. Detalle de CxC.'!P250=\"\",\"\",'800111a - Nota. Detalle de CxC.'!P250)","v":""},{"$f":"IF('800111a - Nota. Detalle de CxC.'!P251=\"\",\"\",'800111a - Nota. Detalle de CxC.'!P251)","v":""},{"$f":"IF('800111a - Nota. Detalle de CxC.'!P252=\"\",\"\",'800111a - Nota. Detalle de CxC.'!P252)","v":""},{"$f":"IF('800111a - Nota. Detalle de CxC.'!P253=\"\",\"\",'800111a - Nota. Detalle de CxC.'!P253)","v":""},{"$f":"IF('800111a - Nota. Detalle de CxC.'!P254=\"\",\"\",'800111a - Nota. Detalle de CxC.'!P254)","v":""},{"$f":"IF('800111a - Nota. Detalle de CxC.'!P255=\"\",\"\",'800111a - Nota. Detalle de CxC.'!P255)","v":""},{"$f":"IF('800111a - Nota. Detalle de CxC.'!P256=\"\",\"\",'800111a - Nota. Detalle de CxC.'!P256)","v":""},{"$f":"IF('800111a - Nota. Detalle de CxC.'!P257=\"\",\"\",'800111a - Nota. Detalle de CxC.'!P257)","v":""},{"$f":"IF('800111a - Nota. Detalle de CxC.'!P258=\"\",\"\",'800111a - Nota. Detalle de CxC.'!P258)","v":""},{"$f":"IF('800111a - Nota. Detalle de CxC.'!P259=\"\",\"\",'800111a - Nota. Detalle de CxC.'!P259)","v":""},{"$f":"IF('800111a - Nota. Detalle de CxC.'!P260=\"\",\"\",'800111a - Nota. Detalle de CxC.'!P260)","v":""},{"$f":"IF('800111a - Nota. Detalle de CxC.'!P261=\"\",\"\",'800111a - Nota. Detalle de CxC.'!P261)","v":""},{"$f":"IF('800111a - Nota. Detalle de CxC.'!P262=\"\",\"\",'800111a - Nota. Detalle de CxC.'!P262)","v":""},{"$f":"IF('800111a - Nota. Detalle de CxC.'!P263=\"\",\"\",'800111a - Nota. Detalle de CxC.'!P263)","v":""},{"$f":"IF('800111a - Nota. Detalle de CxC.'!P264=\"\",\"\",'800111a - Nota. Detalle de CxC.'!P264)","v":""},{"$f":"IF('800111a - Nota. Detalle de CxC.'!P265=\"\",\"\",'800111a - Nota. Detalle de CxC.'!P265)","v":""},{"$f":"IF('800111a - Nota. Detalle de CxC.'!P266=\"\",\"\",'800111a - Nota. Detalle de CxC.'!P266)","v":""},{"$f":"IF('800111a - Nota. Detalle de CxC.'!P267=\"\",\"\",'800111a - Nota. Detalle de CxC.'!P267)","v":""},{"$f":"IF('800111a - Nota. Detalle de CxC.'!P268=\"\",\"\",'800111a - Nota. Detalle de CxC.'!P268)","v":""},{"$f":"IF('800111a - Nota. Detalle de CxC.'!P269=\"\",\"\",'800111a - Nota. Detalle de CxC.'!P269)","v":""},{"$f":"IF('800111a - Nota. Detalle de CxC.'!P270=\"\",\"\",'800111a - Nota. Detalle de CxC.'!P270)","v":""},{"$f":"IF('800111a - Nota. Detalle de CxC.'!P271=\"\",\"\",'800111a - Nota. Detalle de CxC.'!P271)","v":""},{"$f":"IF('800111a - Nota. Detalle de CxC.'!P272=\"\",\"\",'800111a - Nota. Detalle de CxC.'!P272)","v":""},{"$f":"IF('800111a - Nota. Detalle de CxC.'!P273=\"\",\"\",'800111a - Nota. Detalle de CxC.'!P273)","v":""},{"$f":"IF('800111a - Nota. Detalle de CxC.'!P274=\"\",\"\",'800111a - Nota. Detalle de CxC.'!P274)","v":""},{"$f":"IF('800111a - Nota. Detalle de CxC.'!P275=\"\",\"\",'800111a - Nota. Detalle de CxC.'!P275)","v":""},{"$f":"IF('800111a - Nota. Detalle de CxC.'!P276=\"\",\"\",'800111a - Nota. Detalle de CxC.'!P276)","v":""},{"$f":"IF('800111a - Nota. Detalle de CxC.'!P277=\"\",\"\",'800111a - Nota. Detalle de CxC.'!P277)","v":""},{"$f":"IF('800111a - Nota. Detalle de CxC.'!P278=\"\",\"\",'800111a - Nota. Detalle de CxC.'!P278)","v":""},{"$f":"IF('800111a - Nota. Detalle de CxC.'!P279=\"\",\"\",'800111a - Nota. Detalle de CxC.'!P279)","v":""},{"$f":"IF('800111a - Nota. Detalle de CxC.'!P280=\"\",\"\",'800111a - Nota. Detalle de CxC.'!P280)","v":""},{"$f":"IF('800111a - Nota. Detalle de CxC.'!P281=\"\",\"\",'800111a - Nota. Detalle de CxC.'!P281)","v":""},{"$f":"IF('800111a - Nota. Detalle de CxC.'!P282=\"\",\"\",'800111a - Nota. Detalle de CxC.'!P282)","v":""},{"$f":"IF('800111a - Nota. Detalle de CxC.'!P283=\"\",\"\",'800111a - Nota. Detalle de CxC.'!P283)","v":""},{"$f":"IF('800111a - Nota. Detalle de CxC.'!P284=\"\",\"\",'800111a - Nota. Detalle de CxC.'!P284)","v":""},{"$f":"IF('800111a - Nota. Detalle de CxC.'!P285=\"\",\"\",'800111a - Nota. Detalle de CxC.'!P285)","v":""},{"$f":"IF('800111a - Nota. Detalle de CxC.'!P286=\"\",\"\",'800111a - Nota. Detalle de CxC.'!P286)","v":""},{"$f":"IF('800111a - Nota. Detalle de CxC.'!P287=\"\",\"\",'800111a - Nota. Detalle de CxC.'!P287)","v":""},{"$f":"IF('800111a - Nota. Detalle de CxC.'!P288=\"\",\"\",'800111a - Nota. Detalle de CxC.'!P288)","v":""},{"$f":"IF('800111a - Nota. Detalle de CxC.'!P289=\"\",\"\",'800111a - Nota. Detalle de CxC.'!P289)","v":0},null,{"$f":"IF('800111a - Nota. Detalle de CxC.'!P291=\"\",\"\",'800111a - Nota. Detalle de CxC.'!P291)","v":""},{"$f":"IF('800111a - Nota. Detalle de CxC.'!P292=\"\",\"\",'800111a - Nota. Detalle de CxC.'!P292)","v":""},{"$f":"IF('800111a - Nota. Detalle de CxC.'!P293=\"\",\"\",'800111a - Nota. Detalle de CxC.'!P293)","v":""},{"$f":"IF('800111a - Nota. Detalle de CxC.'!P294=\"\",\"\",'800111a - Nota. Detalle de CxC.'!P294)","v":""},{"$f":"IF('800111a - Nota. Detalle de CxC.'!P295=\"\",\"\",'800111a - Nota. Detalle de CxC.'!P295)","v":""},{"$f":"IF('800111a - Nota. Detalle de CxC.'!P296=\"\",\"\",'800111a - Nota. Detalle de CxC.'!P296)","v":""},{"$f":"IF('800111a - Nota. Detalle de CxC.'!P297=\"\",\"\",'800111a - Nota. Detalle de CxC.'!P297)","v":""},{"$f":"IF('800111a - Nota. Detalle de CxC.'!P298=\"\",\"\",'800111a - Nota. Detalle de CxC.'!P298)","v":""},{"$f":"IF('800111a - Nota. Detalle de CxC.'!P299=\"\",\"\",'800111a - Nota. Detalle de CxC.'!P299)","v":""},{"$f":"IF('800111a - Nota. Detalle de CxC.'!P300=\"\",\"\",'800111a - Nota. Detalle de CxC.'!P300)","v":""},{"$f":"IF('800111a - Nota. Detalle de CxC.'!P301=\"\",\"\",'800111a - Nota. Detalle de CxC.'!P301)","v":""},{"$f":"IF('800111a - Nota. Detalle de CxC.'!P302=\"\",\"\",'800111a - Nota. Detalle de CxC.'!P302)","v":""},{"$f":"IF('800111a - Nota. Detalle de CxC.'!P303=\"\",\"\",'800111a - Nota. Detalle de CxC.'!P303)","v":""},{"$f":"IF('800111a - Nota. Detalle de CxC.'!P304=\"\",\"\",'800111a - Nota. Detalle de CxC.'!P304)","v":""},{"$f":"IF('800111a - Nota. Detalle de CxC.'!P305=\"\",\"\",'800111a - Nota. Detalle de CxC.'!P305)","v":""},{"$f":"IF('800111a - Nota. Detalle de CxC.'!P306=\"\",\"\",'800111a - Nota. Detalle de CxC.'!P306)","v":""},{"$f":"IF('800111a - Nota. Detalle de CxC.'!P307=\"\",\"\",'800111a - Nota. Detalle de CxC.'!P307)","v":""},{"$f":"IF('800111a - Nota. Detalle de CxC.'!P308=\"\",\"\",'800111a - Nota. Detalle de CxC.'!P308)","v":""},{"$f":"IF('800111a - Nota. Detalle de CxC.'!P309=\"\",\"\",'800111a - Nota. Detalle de CxC.'!P309)","v":""},{"$f":"IF('800111a - Nota. Detalle de CxC.'!P310=\"\",\"\",'800111a - Nota. Detalle de CxC.'!P310)","v":""},{"$f":"IF('800111a - Nota. Detalle de CxC.'!P311=\"\",\"\",'800111a - Nota. Detalle de CxC.'!P311)","v":""},{"$f":"IF('800111a - Nota. Detalle de CxC.'!P312=\"\",\"\",'800111a - Nota. Detalle de CxC.'!P312)","v":""},{"$f":"IF('800111a - Nota. Detalle de CxC.'!P313=\"\",\"\",'800111a - Nota. Detalle de CxC.'!P313)","v":""},{"$f":"IF('800111a - Nota. Detalle de CxC.'!P314=\"\",\"\",'800111a - Nota. Detalle de CxC.'!P314)","v":""},{"$f":"IF('800111a - Nota. Detalle de CxC.'!P315=\"\",\"\",'800111a - Nota. Detalle de CxC.'!P315)","v":""},{"$f":"IF('800111a - Nota. Detalle de CxC.'!P316=\"\",\"\",'800111a - Nota. Detalle de CxC.'!P316)","v":""},{"$f":"IF('800111a - Nota. Detalle de CxC.'!P317=\"\",\"\",'800111a - Nota. Detalle de CxC.'!P317)","v":""},{"$f":"IF('800111a - Nota. Detalle de CxC.'!P318=\"\",\"\",'800111a - Nota. Detalle de CxC.'!P318)","v":""},{"$f":"IF('800111a - Nota. Detalle de CxC.'!P319=\"\",\"\",'800111a - Nota. Detalle de CxC.'!P319)","v":""},{"$f":"IF('800111a - Nota. Detalle de CxC.'!P320=\"\",\"\",'800111a - Nota. Detalle de CxC.'!P320)","v":""},{"$f":"IF('800111a - Nota. Detalle de CxC.'!P321=\"\",\"\",'800111a - Nota. Detalle de CxC.'!P321)","v":""},{"$f":"IF('800111a - Nota. Detalle de CxC.'!P322=\"\",\"\",'800111a - Nota. Detalle de CxC.'!P322)","v":""},{"$f":"IF('800111a - Nota. Detalle de CxC.'!P323=\"\",\"\",'800111a - Nota. Detalle de CxC.'!P323)","v":""},{"$f":"IF('800111a - Nota. Detalle de CxC.'!P324=\"\",\"\",'800111a - Nota. Detalle de CxC.'!P324)","v":""},{"$f":"IF('800111a - Nota. Detalle de CxC.'!P325=\"\",\"\",'800111a - Nota. Detalle de CxC.'!P325)","v":""},{"$f":"IF('800111a - Nota. Detalle de CxC.'!P326=\"\",\"\",'800111a - Nota. Detalle de CxC.'!P326)","v":""},{"$f":"IF('800111a - Nota. Detalle de CxC.'!P327=\"\",\"\",'800111a - Nota. Detalle de CxC.'!P327)","v":""},{"$f":"IF('800111a - Nota. Detalle de CxC.'!P328=\"\",\"\",'800111a - Nota. Detalle de CxC.'!P328)","v":""},{"$f":"IF('800111a - Nota. Detalle de CxC.'!P329=\"\",\"\",'800111a - Nota. Detalle de CxC.'!P329)","v":""},{"$f":"IF('800111a - Nota. Detalle de CxC.'!P330=\"\",\"\",'800111a - Nota. Detalle de CxC.'!P330)","v":""},{"$f":"IF('800111a - Nota. Detalle de CxC.'!P331=\"\",\"\",'800111a - Nota. Detalle de CxC.'!P331)","v":""},{"$f":"IF('800111a - Nota. Detalle de CxC.'!P332=\"\",\"\",'800111a - Nota. Detalle de CxC.'!P332)","v":""},{"$f":"IF('800111a - Nota. Detalle de CxC.'!P333=\"\",\"\",'800111a - Nota. Detalle de CxC.'!P333)","v":""},{"$f":"IF('800111a - Nota. Detalle de CxC.'!P334=\"\",\"\",'800111a - Nota. Detalle de CxC.'!P334)","v":""},{"$f":"IF('800111a - Nota. Detalle de CxC.'!P335=\"\",\"\",'800111a - Nota. Detalle de CxC.'!P335)","v":""},{"$f":"IF('800111a - Nota. Detalle de CxC.'!P336=\"\",\"\",'800111a - Nota. Detalle de CxC.'!P336)","v":""},{"$f":"IF('800111a - Nota. Detalle de CxC.'!P337=\"\",\"\",'800111a - Nota. Detalle de CxC.'!P337)","v":""},{"$f":"IF('800111a - Nota. Detalle de CxC.'!P338=\"\",\"\",'800111a - Nota. Detalle de CxC.'!P338)","v":""},{"$f":"IF('800111a - Nota. Detalle de CxC.'!P339=\"\",\"\",'800111a - Nota. Detalle de CxC.'!P339)","v":""},{"$f":"IF('800111a - Nota. Detalle de CxC.'!P340=\"\",\"\",'800111a - Nota. Detalle de CxC.'!P340)","v":""},{"$f":"IF('800111a - Nota. Detalle de CxC.'!P341=\"\",\"\",'800111a - Nota. Detalle de CxC.'!P341)","v":""},{"$f":"IF('800111a - Nota. Detalle de CxC.'!P342=\"\",\"\",'800111a - Nota. Detalle de CxC.'!P342)","v":0},{"$f":"IF('800111a - Nota. Detalle de CxC.'!P343=\"\",\"\",'800111a - Nota. Detalle de CxC.'!P343)","v":0}]

{"sheet":"822100 - Nota. Prop, plan y eq.","index":12,"n_rows":80,"n_cols":30,"rows_kept":80,"cut":false,"hidden":false,"merged":[[3,3,5,27],[7,4,7,27],[8,4,8,27],[46,4,46,27],[47,4,47,27]]}
[]
[]
[]
[null,null,null,"822100 - Nota. Propiedades, planta y equipo (Para 2017 y 2016)"]
[]
[]
[]
[null,null,null,null,"2017-12-31"]
[null,null,null,null,"Propiedades, planta y equipo",null,null,null,null,null,null,null,null,null,null,null,null,null,null,null,null,null,null,null,null,null,null,null,null,{"$f":"IF(AH9=0,\"Formulario 'Nota de Propiedades, planta y equipo' Válido\",\"Formulario 'Nota de Propiedades, planta y equipo' con \"&AH9&\" inconsistencias\")","v":"Formulario 'Nota de Propiedades, planta y equipo' Válido"}]
[null,null,null,null,"ifrs-full:LandMember","ifrs-full:BuildingsMember","ifrs-full:LandAndBuildingsMember","ifrs-full:MachineryMember","ifrs-full:ShipsMember","ifrs-full:AircraftMember","co-svsp-core_2017-12-31:AutomovilesBlindandosMiembro","co-svsp-core_2017-12-31:OtrosVehiculosMiembro","ifrs-full:MotorVehiclesMember","ifrs-full:VehiclesMember","ifrs-full:FixturesAndFittingsMember","ifrs-full:ComputerEquipmentMember","ifrs-full:CommunicationAndNetworkEquipmentMember","ifrs-full:NetworkInfrastructureMember","ifrs-full:BearerPlantsMember","ifrs-full:TangibleExplorationAndEvaluationAssetsMember","ifrs-full:LeaseholdImprovementsMember","ifrs-full:PropertyPlantAndEquipmentUnderOperatingLeasesMember","ifrs-full:ConstructionInProgressMember","co-svsp-core_2017-12-31:CaninosMiembro","co-svsp-core_2017-12-31:EquinosMiembro","co-svsp-core_2017-12-31:AnimalesMiembro","co-svsp-core_2017-12-31:Otras_PPE","ifrs-full:OtherPropertyPlantAndEquipmentMember"]
[null,null,null,"co-svsp-core_2017-12-31:PropiedadesPlantaYEquipoEje_G1","Terrenos [miembro]","Edificios [miembro]","Terrenos y construcciones [miembro]","Maquinaria [miembro]","Buques [miembro]","Aeronaves [miembro]","Automóviles Blindados [miembro]","Otros vehículos [miembro]","Equipos de Transporte [miembro]","Vehículos [miembro]","Enseres y accesorios [miembro]","Equipos informáticos [miembro]","Equipos de redes y comunicación [miembro]","Infraestructura de red [miembro]","Plantas productoras [miembro]","Activos tangibles de exploración y evaluación [miembro]","Mejoras de derechos de arrendamiento [miembro]","Propiedades, planta y equipo en arrendamiento operativo [miembro]","Construcciones en proceso [miembro]","Caninos [miembro]","Equinos [miembro]","Animales [miembro]","Otras [miembro]","Total propiedades, planta y equipo [miembro]"]
[null,"1;1","ifrs-full:DisclosureOfPropertyPlantAndEquipmentLineItems","Información a revelar detallada sobre propiedades, planta y equipo [partidas de los estados financieros]"]
[null,"1;1","ifrs-full:MeasurementBasesPropertyPlantAndEquipment","Bases de medición, propiedades, planta y equipo"]
[null,"0;1","ifrs-full:DepreciationMethodPropertyPlantAndEquipment","Método de depreciación, propiedades, planta y equipo"]
[null,"1;1","ifrs-full:UsefulLivesOrDepreciationRatesPropertyPlantAndEquipment","Vidas útiles o tasas de depreciación, propiedades, planta y equipo"]
[null,"0;1","ifrs-full:EffectiveDatesOfRevaluationPropertyPlantAndEquipment","Fechas de vigencia de revaluación, propiedades, planta y equipo"]
[null,"1;1","ifrs-full:ExplanationOfIndependentValuerUsedForRevaluationPropertyPlantAndEquipment","Explicación de la implicación del tasador independiente en la revaluación, propiedades, planta y equipo"]
[null,"0;1","co-svsp-core_2017-12-31:ExplanationOfRevaluationMethodsAndSignificantAssumptionsPropertyPlantAndEquipment","Explicación del método de revaluación y supuestos significativos, propiedad, planta y equipo"]
[null,"1;1","ifrs-full:ReconciliationOfChangesInPropertyPlantAndEquipmentAbstract","Conciliación de cambios en propiedades, planta y equipo [resumen]"]
[null,"0;1","co-svsp-core_2017-12-31:PropertyPlantAndEquipmentBeginningOfPeriod","Propiedades, planta y equipo al comienzo del periodo",{"$f":"+E80","v":0},{"$f":"+F80","v":0},{"$f":"IF(AND(E20=\"\",F20=\"\"),\"\",E20+F20)","v":0},{"$f":"+H80","v":0},{"$f":"+I80","v":0},{"$f":"+J80","v":0},{"$f":"+K80","v":0},{"$f":"+L80","v":0},{"$f":"IF(AND(K20=\"\",L20=\"\"),\"\",K20+L20)","v":0},{"$f":"IF(AND(I20=\"\",J20=\"\",K20=\"\",L20=\"\"),\"\",I20+J20+K20+L20)","v":0},{"$f":"+O80","v":0},0,0,0,0,0,0,0,0,0,0,{"$f":"IF(AND(X20=\"\",Y20=\"\"),\"\",X20+Y20)","v":0},{"$f":"+AA80","v":0},{"$f":"IF(AND(E20=\"\",F20=\"\",H20=\"\",I20=\"\",J20=\"\",K20=\"\",L20=\"\",O20=\"\",P20=\"\",Q20=\"\",R20=\"\",S20=\"\",T20=\"\",U20=\"\",V20=\"\",W20=\"\",X20=\"\",Y20=\"\",AA20=\"\"),\"\",E20+F20+H20+I20+J20+K20+L20+O20+P20+Q20+R20+S20+T20+U20+V20+W20+X20+Y20+AA20)","v":0}]
[null,"0;1","ifrs-full:ChangesInPropertyPlantAndEquipmentAbstract","Cambios en propiedades, planta y equipo [resumen]"]
[null,"0;1","ifrs-full:AdditionsOtherThanThroughBusinessCombinationsPropertyPlantAndEquipment","Incrementos distintos de los procedentes de combinaciones de negocios, propiedades, planta y equipo",null,null,{"$f":"IF(AND(E22=\"\",F22=\"\"),\"\",E22+F22)","v":""},null,null,null,null,null,{"$f":"IF(AND(K22=\"\",L22=\"\"),\"\",K22+L22)","v":""},{"$f":"IF(AND(I22=\"\",J22=\"\",K22=\"\",L22=\"\"),\"\",I22+J22+K22+L22)","v":""},null,null,null,null,null,null,null,null,null,null,null,{"$f":"IF(AND(X22=\"\",Y22=\"\"),\"\",X22+Y22)","v":""},null,{"$f":"IF(AND(E22=\"\",F22=\"\",H22=\"\",I22=\"\",J22=\"\",K22=\"\",L22=\"\",O22=\"\",P22=\"\",Q22=\"\",R22=\"\",S22=\"\",T22=\"\",U22=\"\",V22=\"\",W22=\"\",X22=\"\",Y22=\"\",AA22=\"\"),\"\",E22+F22+H22+I22+J22+K22+L22+O22+P22+Q22+R22+S22+T22+U22+V22+W22+X22+Y22+AA22)","v":""}]
[null,"0;1","ifrs-full:AcquisitionsThroughBusinessCombinationsPropertyPlantAndEquipment","Adquisiciones realizadas mediante combinaciones de negocios, propiedades, planta y equipo",null,null,"",null,null,null,null,null,"","",null,null,null,null,null,null,null,null,null,null,null,"",null,{"$f":"IF(AND(E23=\"\",F23=\"\",H23=\"\",I23=\"\",J23=\"\",K23=\"\",L23=\"\",O23=\"\",P23=\"\",Q23=\"\",R23=\"\",S23=\"\",T23=\"\",U23=\"\",V23=\"\",W23=\"\",X23=\"\",Y23=\"\",AA23=\"\"),\"\",E23+F23+H23+I23+J23+K23+L23+O23+P23+Q23+R23+S23+T23+U23+V23+W23+X23+Y23+AA23)","v":""}]
[null,"0;1","ifrs-full:DepreciationPropertyPlantAndEquipment","Depreciación, propiedades, planta y equipo",null,null,"",null,null,null,null,null,"","",null,null,null,null,null,null,null,null,null,null,null,"",null,""]
[null,"0;1","ifrs-full:ImpairmentLossRecognisedInProfitOrLossPropertyPlantAndEquipment","Pérdidas por deterioro de valor reconocidas en el resultado del periodo, propiedades, planta y equipo",null,null,"",null,null,null,null,null,"","",null,null,null,null,null,null,null,null,null,null,null,"",null,""]
[null,"0;1","ifrs-full:ReversalOfImpairmentLossRecognisedInProfitOrLossPropertyPlantAndEquipment","Reversión de pérdidas por deterioro de valor reconocidas en el resultado del periodo, propiedades, planta y equipo",null,null,"",null,null,null,null,null,"","",null,null,null,null,null,null,null,null,null,null,null,"",null,""]
[null,"0;1","ifrs-full:RevaluationIncreaseDecreasePropertyPlantAndEquipment","Incrementos (disminuciones) de revaluaciones, propiedades, planta y equipo",null,null,"",null,null,null,null,null,"","",null,null,null,null,null,null,null,null,null,null,null,"",null,""]
[null,"0;1","ifrs-full:ImpairmentLossRecognisedInOtherComprehensiveIncomePropertyPlantAndEquipment","Pérdidas por deterioro de valor reconocidas en otro resultado integral, propiedades, planta y equipo",null,null,"",null,null,null,null,null,"","",null,null,null,null,null,null,null,null,null,null,null,"",null,""]
[null,"0;1","ifrs-full:ReversalOfImpairmentLossRecognisedInOtherComprehensiveIncomePropertyPlantAndEquipment","Reversión de pérdidas por deterioro de valor reconocidas en otro resultado integral, propiedades, planta y equipo",null,null,"",null,null,null,null,null,"","",null,null,null,null,null,null,null,null,null,null,null,"",null,""]
[null,"1;1","ifrs-full:IncreaseDecreaseThroughTransfersAndOtherChangesPropertyPlantAndEquipmentAbstract","Incrementos (disminuciones) por transferencias y otros cambios, propiedades, planta y equipo [resumen]"]
[null,"0;1","ifrs-full:IncreaseDecreaseThroughTransfersFromToInvestmentPropertyPropertyPlantAndEquipment","Incrementos (disminuciones) por transferencias desde (hacia) propiedades de inversión, propiedades, planta y equipo",null,null,{"$f":"IF(AND(E31=\"\",F31=\"\"),\"\",E31+F31)","v":""},null,null,null,null,null,{"$f":"IF(AND(K31=\"\",L31=\"\"),\"\",K31+L31)","v":""},{"$f":"IF(AND(I31=\"\",J31=\"\",K31=\"\",L31=\"\"),\"\",I31+J31+K31+L31)","v":""},null,null,null,null,null,null,null,null,null,null,null,{"$f":"IF(AND(X31=\"\",Y31=\"\"),\"\",X31+Y31)","v":""},null,{"$f":"IF(AND(E31=\"\",F31=\"\",H31=\"\",I31=\"\",J31=\"\",K31=\"\",L31=\"\",O31=\"\",P31=\"\",Q31=\"\",R31=\"\",S31=\"\",T31=\"\",U31=\"\",V31=\"\",W31=\"\",X31=\"\",Y31=\"\",AA31=\"\"),\"\",E31+F31+H31+I31+J31+K31+L31+O31+P31+Q31+R31+S31+T31+U31+V31+W31+X31+Y31+AA31)","v":""}]
[null,"0;1","ifrs-full:IncreaseDecreaseThroughTransfersFromConstructionInProgressPropertyPlantAndEquipment","Incrementos (disminuciones) por transferencias desde construcciones en proceso , propiedades, planta y equipo",null,null,"",null,null,null,null,null,"","",null,null,null,null,null,null,null,null,null,null,null,"",null,""]
[null,"0;1","ifrs-full:IncreaseDecreaseThroughOtherChangesPropertyPlantAndEquipment","Incrementos (disminuciones) por otros cambios, propiedades, planta y equipo",null,null,"",null,null,null,null,null,"","",null,null,null,null,null,null,null,null,null,null,null,"",null,""]
[null,"0;1","ifrs-full:IncreaseDecreaseThroughTransfersAndOtherChangesPropertyPlantAndEquipment","Total incrementos (disminuciones) por transferencias y otros cambios, propiedades, planta y equipo",{"$f":"+E31+E32+E33","v":0},{"$f":"+F31+F32+F33","v":0},0,{"$f":"+H31+H32+H33","v":0},{"$f":"+I31+I32+I33","v":0},{"$f":"+J31+J32+J33","v":0},{"$f":"+K31+K32+K33","v":0},{"$f":"+L31+L32+L33","v":0},0,0,{"$f":"+O31+O32+O33","v":0},0,0,0,0,0,0,0,0,0,0,0,{"$f":"+AA31+AA32+AA33","v":0},{"$f":"IF(AND(E34=\"\",F34=\"\",H34=\"\",I34=\"\",J34=\"\",K34=\"\",L34=\"\",O34=\"\",P34=\"\",Q34=\"\",R34=\"\",S34=\"\",T34=\"\",U34=\"\",V34=\"\",W34=\"\",X34=\"\",Y34=\"\",AA34=\"\"),\"\",E34+F34+H34+I34+J34+K34+L34+O34+P34+Q34+R34+S34+T34+U34+V34+W34+X34+Y34+AA34)","v":0}]
[null,"0;1","ifrs-full:DisposalsAndRetirementsPropertyPlantAndEquipmentAbstract","Disposiciones y retiros de servicio, propiedades, planta y equipo [resumen]"]
[null,"0;1","ifrs-full:DisposalsPropertyPlantAndEquipment","Disposiciones, propiedades, planta y equipo",null,null,{"$f":"IF(AND(E36=\"\",F36=\"\"),\"\",E36+F36)","v":""},null,null,null,null,null,{"$f":"IF(AND(K36=\"\",L36=\"\"),\"\",K36+L36)","v":""},{"$f":"IF(AND(I36=\"\",J36=\"\",K36=\"\",L36=\"\"),\"\",I36+J36+K36+L36)","v":""},null,null,null,null,null,null,null,null,null,null,null,{"$f":"IF(AND(X36=\"\",Y36=\"\"),\"\",X36+Y36)","v":""},null,{"$f":"IF(AND(E36=\"\",F36=\"\",H36=\"\",I36=\"\",J36=\"\",K36=\"\",L36=\"\",O36=\"\",P36=\"\",Q36=\"\",R36=\"\",S36=\"\",T36=\"\",U36=\"\",V36=\"\",W36=\"\",X36=\"\",Y36=\"\",AA36=\"\"),\"\",E36+F36+H36+I36+J36+K36+L36+O36+P36+Q36+R36+S36+T36+U36+V36+W36+X36+Y36+AA36)","v":""}]
[null,"0;1","ifrs-full:RetirementsPropertyPlantAndEquipment","Retiros, propiedades, planta y equipo",null,null,"",null,null,null,null,null,"","",null,null,null,null,null,null,null,null,null,null,null,"",null,""]
[null,"0;1","ifrs-full:DisposalsAndRetirementsPropertyPlantAndEquipment","Total de disposiciones y retiros de servicio, propiedades, planta y equipo",{"$f":"+E36+E37","v":0},{"$f":"+F36+F37","v":0},0,{"$f":"+H36+H37","v":0},{"$f":"+I36+I37","v":0},{"$f":"+J36+J37","v":0},{"$f":"+K36+K37","v":0},{"$f":"+L36+L37","v":0},0,0,{"$f":"+O36+O37","v":0},0,0,0,0,0,0,0,0,0,0,0,{"$f":"+AA36+AA37","v":0},{"$f":"IF(AND(E38=\"\",F38=\"\",H38=\"\",I38=\"\",J38=\"\",K38=\"\",L38=\"\",O38=\"\",P38=\"\",Q38=\"\",R38=\"\",S38=\"\",T38=\"\",U38=\"\",V38=\"\",W38=\"\",X38=\"\",Y38=\"\",AA38=\"\"),\"\",E38+F38+H38+I38+J38+K38+L38+O38+P38+Q38+R38+S38+T38+U38+V38+W38+X38+Y38+AA38)","v":0}]
[null,"0;1","ifrs-full:DecreaseThroughClassifiedAsHeldForSalePropertyPlantAndEquipment","Disminuciones por clasificar como mantenidos para la venta, propiedades, planta y equipo",null,null,"",null,null,null,null,null,"","",null,null,null,null,null,null,null,null,null,null,null,"",null,{"$f":"IF(AND(E39=\"\",F39=\"\",H39=\"\",I39=\"\",J39=\"\",K39=\"\",L39=\"\",O39=\"\",P39=\"\",Q39=\"\",R39=\"\",S39=\"\",T39=\"\",U39=\"\",V39=\"\",W39=\"\",X39=\"\",Y39=\"\",AA39=\"\"),\"\",E39+F39+H39+I39+J39+K39+L39+O39+P39+Q39+R39+S39+T39+U39+V39+W39+X39+Y39+AA39)","v":""}]
[null,"0;1","ifrs-full:ChangesInPropertyPlantAndEquipment","Total incremento (disminución) en propiedades, planta y equipo",{"$f":"E22+E23-E24-E25+E26+E27-E28+E29+E34-E38-E39","v":0},{"$f":"F22+F23-F24-F25+F26+F27-F28+F29+F34-F38-F39","v":0},0,{"$f":"H22+H23-H24-H25+H26+H27-H28+H29+H34-H38-H39","v":0},0,0,0,0,0,0,{"$f":"O22+O23-O24-O25+O26+O27-O28+O29+O34-O38-O39","v":0},0,0,0,0,0,0,0,0,0,0,0,{"$f":"AA22+AA23-AA24-AA25+AA26+AA27-AA28+AA29+AA34-AA38-AA39","v":0},{"$f":"IF(AND(E40=\"\",F40=\"\",H40=\"\",I40=\"\",J40=\"\",K40=\"\",L40=\"\",O40=\"\",P40=\"\",Q40=\"\",R40=\"\",S40=\"\",T40=\"\",U40=\"\",V40=\"\",W40=\"\",X40=\"\",Y40=\"\",AA40=\"\"),\"\",E40+F40+H40+I40+J40+K40+L40+O40+P40+Q40+R40+S40+T40+U40+V40+W40+X40+Y40+AA40)","v":0}]
[null,"0;1","co-svsp-core_2017-12-31:PropertyPlantAndEquipmentEndOfPeriod","Propiedades, planta y equipo al final del periodo",{"$f":"+E20+E40","v":0},{"$f":"+F20+F40","v":0},0,{"$f":"+H20+H40","v":0},0,0,0,0,0,0,{"$f":"+O20+O40","v":0},0,0,0,0,0,0,0,0,0,0,0,{"$f":"+AA20+AA40","v":0},{"$f":"IF(AND(E41=\"\",F41=\"\",H41=\"\",I41=\"\",J41=\"\",K41=\"\",L41=\"\",O41=\"\",P41=\"\",Q41=\"\",R41=\"\",S41=\"\",T41=\"\",U41=\"\",V41=\"\",W41=\"\",X41=\"\",Y41=\"\",AA41=\"\"),\"\",E41+F41+H41+I41+J41+K41+L41+O41+P41+Q41+R41+S41+T41+U41+V41+W41+X41+Y41+AA41)","v":0}]
[]
[]
[]
[]
[]
[null,null,null,null,"2016-12-31"]
[null,null,null,null,"Propiedades, planta y equipo"]
[null,null,null,null,"ifrs-full:LandMember","ifrs-full:BuildingsMember","ifrs-full:LandAndBuildingsMember","ifrs-full:MachineryMember","ifrs-full:ShipsMember","ifrs-full:AircraftMember","co-svsp-core_2017-12-31:AutomovilesBlindandosMiembro","co-svsp-core_2017-12-31:OtrosVehiculosMiembro","ifrs-full:MotorVehiclesMember","ifrs-full:VehiclesMember","ifrs-full:FixturesAndFittingsMember","ifrs-full:ComputerEquipmentMember","ifrs-full:CommunicationAndNetworkEquipmentMember","ifrs-full:NetworkInfrastructureMember","ifrs-full:BearerPlantsMember","ifrs-full:TangibleExplorationAndEvaluationAssetsMember","ifrs-full:LeaseholdImprovementsMember","ifrs-full:PropertyPlantAndEquipmentUnderOperatingLeasesMember","ifrs-full:ConstructionInProgressMember","co-svsp-core_2017-12-31:CaninosMiembro","co-svsp-core_2017-12-31:EquinosMiembro","co-svsp-core_2017-12-31:AnimalesMiembro","co-svsp-core_2017-12-31:Otras_PPE","ifrs-full:OtherPropertyPlantAndEquipmentMember"]
[null,null,null,"co-svsp-core_2017-12-31:PropiedadesPlantaYEquipoEje_G1","Terrenos [miembro]","Edificios [miembro]","Terrenos y construcciones [miembro]","Maquinaria [miembro]","Buques [miembro]","Aeronaves [miembro]","Automóviles Blindados [miembro]","Otros vehículos [miembro]","Equipos de Transporte [miembro]","Vehículos [miembro]","Enseres y accesorios [miembro]","Equipos informáticos [miembro]","Equipos de redes y comunicación [miembro]","Infraestructura de red [miembro]","Plantas productoras [miembro]","Activos tangibles de exploración y evaluación [miembro]","Mejoras de derechos de arrendamiento [miembro]","Propiedades, planta y equipo en arrendamiento operativo [miembro]","Construcciones en proceso [miembro]","Caninos [miembro]","Equinos [miembro]","Animales [miembro]","Otras [miembro]","Total propiedades, planta y equipo [miembro]"]
[null,"1;2","ifrs-full:DisclosureOfPropertyPlantAndEquipmentLineItems","Información a revelar detallada sobre propiedades, planta y equipo [partidas de los estados financieros]"]
[null,"1;2","ifrs-full:MeasurementBasesPropertyPlantAndEquipment","Bases de medición, propiedades, planta y equipo"]
[null,"0;2","ifrs-full:DepreciationMethodPropertyPlantAndEquipment","Método de depreciación, propiedades, planta y equipo"]
[null,"1;2","ifrs-full:UsefulLivesOrDepreciationRatesPropertyPlantAndEquipment","Vidas útiles o tasas de depreciación, propiedades, planta y equipo"]
[null,"0;2","ifrs-full:EffectiveDatesOfRevaluationPropertyPlantAndEquipment","Fechas de vigencia de revaluación, propiedades, planta y equipo"]
[null,"1;2","ifrs-full:ExplanationOfIndependentValuerUsedForRevaluationPropertyPlantAndEquipment","Explicación de la implicación del tasador independiente en la revaluación, propiedades, planta y equipo"]
[null,"0;2","co-svsp-core_2017-12-31:ExplanationOfRevaluationMethodsAndSignificantAssumptionsPropertyPlantAndEquipment","Explicación del método de revaluación y supuestos significativos, propiedad, planta y equipo"]
[null,"1;2","ifrs-full:ReconciliationOfChangesInPropertyPlantAndEquipmentAbstract","Conciliación de cambios en propiedades, planta y equipo [resumen]"]
[null,"0;2","co-svsp-core_2017-12-31:PropertyPlantAndEquipmentBeginningOfPeriod","Propiedades, planta y equipo al comienzo del periodo",null,null,{"$f":"IF(AND(E59=\"\",F59=\"\"),\"\",E59+F59)","v":""},null,null,null,null,null,{"$f":"IF(AND(K59=\"\",L59=\"\"),\"\",K59+L59)","v":""},{"$f":"IF(AND(I59=\"\",J59=\"\",K59=\"\",L59=\"\"),\"\",I59+J59+K59+L59)","v":""},null,null,null,null,null,null,null,null,null,null,null,{"$f":"IF(AND(X59=\"\",Y59=\"\"),\"\",X59+Y59)","v":""},null,{"$f":"IF(AND(E59=\"\",F59=\"\",H59=\"\",I59=\"\",J59=\"\",K59=\"\",L59=\"\",O59=\"\",P59=\"\",Q59=\"\",R59=\"\",S59=\"\",T59=\"\",U59=\"\",V59=\"\",W59=\"\",X59=\"\",Y59=\"\",AA59=\"\"),\"\",E59+F59+H59+I59+J59+K59+L59+O59+P59+Q59+R59+S59+T59+U59+V59+W59+X59+Y59+AA59)","v":""}]
[null,"0;2","ifrs-full:ChangesInPropertyPlantAndEquipmentAbstract","Cambios en propiedades, planta y equipo [resumen]"]
[null,"0;2","ifrs-full:AdditionsOtherThanThroughBusinessCombinationsPropertyPlantAndEquipment","Incrementos distintos de los procedentes de combinaciones de negocios, propiedades, planta y equipo",null,null,{"$f":"IF(AND(E61=\"\",F61=\"\"),\"\",E61+F61)","v":""},null,null,null,null,null,{"$f":"IF(AND(K61=\"\",L61=\"\"),\"\",K61+L61)","v":""},{"$f":"IF(AND(I61=\"\",J61=\"\",K61=\"\",L61=\"\"),\"\",I61+J61+K61+L61)","v":""},null,null,null,null,null,null,null,null,null,null,null,{"$f":"IF(AND(X61=\"\",Y61=\"\"),\"\",X61+Y61)","v":""},null,{"$f":"IF(AND(E61=\"\",F61=\"\",H61=\"\",I61=\"\",J61=\"\",K61=\"\",L61=\"\",O61=\"\",P61=\"\",Q61=\"\",R61=\"\",S61=\"\",T61=\"\",U61=\"\",V61=\"\",W61=\"\",X61=\"\",Y61=\"\",AA61=\"\"),\"\",E61+F61+H61+I61+J61+K61+L61+O61+P61+Q61+R61+S61+T61+U61+V61+W61+X61+Y61+AA61)","v":""}]
[null,"0;2","ifrs-full:AcquisitionsThroughBusinessCombinationsPropertyPlantAndEquipment","Adquisiciones realizadas mediante combinaciones de negocios, propiedades, planta y equipo",null,null,"",null,null,null,null,null,"","",null,null,null,null,null,null,null,null,null,null,null,"",null,""]
[null,"0;2","ifrs-full:DepreciationPropertyPlantAndEquipment","Depreciación, propiedades, planta y equipo",null,null,"",null,null,null,null,null,"","",null,null,null,null,null,null,null,null,null,null,null,"",null,""]
[null,"0;2","ifrs-full:ImpairmentLossRecognisedInProfitOrLossPropertyPlantAndEquipment","Pérdidas por deterioro de valor reconocidas en el resultado del periodo, propiedades, planta y equipo",null,null,"",null,null,null,null,null,"","",null,null,null,null,null,null,null,null,null,null,null,"",null,""]
[null,"0;2","ifrs-full:ReversalOfImpairmentLossRecognisedInProfitOrLossPropertyPlantAndEquipment","Reversión de pérdidas por deterioro de valor reconocidas en el resultado del periodo, propiedades, planta y equipo",null,null,"",null,null,null,null,null,"","",null,null,null,null,null,null,null,null,null,null,null,"",null,""]
[null,"0;2","ifrs-full:RevaluationIncreaseDecreasePropertyPlantAndEquipment","Incrementos (disminuciones) de revaluaciones, propiedades, planta y equipo",null,null,"",null,null,null,null,null,"","",null,null,null,null,null,null,null,null,null,null,null,"",null,""]
[null,"0;2","ifrs-full:ImpairmentLossRecognisedInOtherComprehensiveIncomePropertyPlantAndEquipment","Pérdidas por deterioro de valor reconocidas en otro resultado integral, propiedades, planta y equipo",null,null,"",null,null,null,null,null,"","",null,null,null,null,null,null,null,null,null,null,null,"",null,""]
[null,"0;2","ifrs-full:ReversalOfImpairmentLossRecognisedInOtherComprehensiveIncomePropertyPlantAndEquipment","Reversión de pérdidas por deterioro de valor reconocidas en otro resultado integral, propiedades, planta y equipo",null,null,"",null,null,null,null,null,"","",null,null,null,null,null,null,null,null,null,null,null,"",null,""]
[null,"1;2","ifrs-full:IncreaseDecreaseThroughTransfersAndOtherChangesPropertyPlantAndEquipmentAbstract","Incrementos (disminuciones) por transferencias y otros cambios, propiedades, planta y equipo [resumen]"]
[null,"0;2","ifrs-full:IncreaseDecreaseThroughTransfersFromToInvestmentPropertyPropertyPlantAndEquipment","Incrementos (disminuciones) por transferencias desde (hacia) propiedades de inversión, propiedades, planta y equipo",null,null,{"$f":"IF(AND(E70=\"\",F70=\"\"),\"\",E70+F70)","v":""},null,null,null,null,null,{"$f":"IF(AND(K70=\"\",L70=\"\"),\"\",K70+L70)","v":""},{"$f":"IF(AND(I70=\"\",J70=\"\",K70=\"\",L70=\"\"),\"\",I70+J70+K70+L70)","v":""},null,null,null,null,null,null,null,null,null,null,null,{"$f":"IF(AND(X70=\"\",Y70=\"\"),\"\",X70+Y70)","v":""},null,{"$f":"IF(AND(E70=\"\",F70=\"\",H70=\"\",I70=\"\",J70=\"\",K70=\"\",L70=\"\",O70=\"\",P70=\"\",Q70=\"\",R70=\"\",S70=\"\",T70=\"\",U70=\"\",V70=\"\",W70=\"\",X70=\"\",Y70=\"\",AA70=\"\"),\"\",E70+F70+H70+I70+J70+K70+L70+O70+P70+Q70+R70+S70+T70+U70+V70+W70+X70+Y70+AA70)","v":""}]
[null,"0;2","ifrs-full:IncreaseDecreaseThroughTransfersFromConstructionInProgressPropertyPlantAndEquipment","Incrementos (disminuciones) por transferencias desde construcciones en proceso , propiedades, planta y equipo",null,null,"",null,null,null,null,null,"","",null,null,null,null,null,null,null,null,null,null,null,"",null,""]
[null,"0;2","ifrs-full:IncreaseDecreaseThroughOtherChangesPropertyPlantAndEquipment","Incrementos (disminuciones) por otros cambios, propiedades, planta y equipo",null,null,"",null,null,null,null,null,"","",null,null,null,null,null,null,null,null,null,null,null,"",null,""]
[null,"0;2","ifrs-full:IncreaseDecreaseThroughTransfersAndOtherChangesPropertyPlantAndEquipment","Total incrementos (disminuciones) por transferencias y otros cambios, propiedades, planta y equipo",{"$f":"+E70+E71+E72","v":0},{"$f":"+F70+F71+F72","v":0},0,{"$f":"+H70+H71+H72","v":0},{"$f":"+I70+I71+I72","v":0},{"$f":"+J70+J71+J72","v":0},{"$f":"+K70+K71+K72","v":0},{"$f":"+L70+L71+L72","v":0},0,0,{"$f":"+O70+O71+O72","v":0},0,0,0,0,0,0,0,0,0,0,0,{"$f":"+AA70+AA71+AA72","v":0},{"$f":"IF(AND(E73=\"\",F73=\"\",H73=\"\",I73=\"\",J73=\"\",K73=\"\",L73=\"\",O73=\"\",P73=\"\",Q73=\"\",R73=\"\",S73=\"\",T73=\"\",U73=\"\",V73=\"\",W73=\"\",X73=\"\",Y73=\"\",AA73=\"\"),\"\",E73+F73+H73+I73+J73+K73+L73+O73+P73+Q73+R73+S73+T73+U73+V73+W73+X73+Y73+AA73)","v":0}]
[null,"0;2","ifrs-full:DisposalsAndRetirementsPropertyPlantAndEquipmentAbstract","Disposiciones y retiros de servicio, propiedades, planta y equipo [resumen]"]
[null,"0;2","ifrs-full:DisposalsPropertyPlantAndEquipment","Disposiciones, propiedades, planta y equipo",null,null,{"$f":"IF(AND(E75=\"\",F75=\"\"),\"\",E75+F75)","v":""},null,null,null,null,null,{"$f":"IF(AND(K75=\"\",L75=\"\"),\"\",K75+L75)","v":""},{"$f":"IF(AND(I75=\"\",J75=\"\",K75=\"\",L75=\"\"),\"\",I75+J75+K75+L75)","v":""},null,null,null,null,null,null,null,null,null,null,null,{"$f":"IF(AND(X75=\"\",Y75=\"\"),\"\",X75+Y75)","v":""},null,{"$f":"IF(AND(E75=\"\",F75=\"\",H75=\"\",I75=\"\",J75=\"\",K75=\"\",L75=\"\",O75=\"\",P75=\"\",Q75=\"\",R75=\"\",S75=\"\",T75=\"\",U75=\"\",V75=\"\",W75=\"\",X75=\"\",Y75=\"\",AA75=\"\"),\"\",E75+F75+H75+I75+J75+K75+L75+O75+P75+Q75+R75+S75+T75+U75+V75+W75+X75+Y75+AA75)","v":""}]
[null,"0;2","ifrs-full:RetirementsPropertyPlantAndEquipment","Retiros, propiedades, planta y equipo",null,null,"",null,null,null,null,null,"","",null,null,null,null,null,null,null,null,null,null,null,"",null,""]
[null,"0;2","ifrs-full:DisposalsAndRetirementsPropertyPlantAndEquipment","Total de disposiciones y retiros de servicio, propiedades, planta y equipo",{"$f":"+E75+E76","v":0},{"$f":"+F75+F76","v":0},0,{"$f":"+H75+H76","v":0},{"$f":"+I75+I76","v":0},{"$f":"+J75+J76","v":0},{"$f":"+K75+K76","v":0},{"$f":"+L75+L76","v":0},0,0,{"$f":"+O75+O76","v":0},0,0,0,0,0,0,0,0,0,0,0,{"$f":"+AA75+AA76","v":0},0]
[null,"0;2","ifrs-full:DecreaseThroughClassifiedAsHeldForSalePropertyPlantAndEquipment","Disminuciones por clasificar como mantenidos para la venta, propiedades, planta y equipo",null,null,"",null,null,null,null,null,"","",null,null,null,null,null,null,null,null,null,null,null,"",null,""]
[null,"0;2","ifrs-full:ChangesInPropertyPlantAndEquipment","Total incremento (disminución) en propiedades, planta y equipo",{"$f":"E61+E62-E63-E64+E65+E66-E67+E68+E73-E77-E78","v":0},{"$f":"F61+F62-F63-F64+F65+F66-F67+F68+F73-F77-F78","v":0},0,{"$f":"H61+H62-H63-H64+H65+H66-H67+H68+H73-H77-H78","v":0},0,0,0,0,0,0,{"$f":"O61+O62-O63-O64+O65+O66-O67+O68+O73-O77-O78","v":0},0,0,0,0,0,0,0,0,0,0,0,{"$f":"AA61+AA62-AA63-AA64+AA65+AA66-AA67+AA68+AA73-AA77-AA78","v":0},0]
[null,"0;2","co-svsp-core_2017-12-31:PropertyPlantAndEquipmentEndOfPeriod","Propiedades, planta y equipo al final del periodo",{"$f":"+E59+E79","v":0},{"$f":"+F59+F79","v":0},0,{"$f":"+H59+H79","v":0},0,0,0,0,0,0,{"$f":"+O59+O79","v":0},0,0,0,0,0,0,0,0,0,0,0,{"$f":"+AA59+AA79","v":0},{"$f":"IF(AND(E80=\"\",F80=\"\",H80=\"\",I80=\"\",J80=\"\",K80=\"\",L80=\"\",O80=\"\",P80=\"\",Q80=\"\",R80=\"\",S80=\"\",T80=\"\",U80=\"\",V80=\"\",W80=\"\",X80=\"\",Y80=\"\",AA80=\"\"),\"\",E80+F80+H80+I80+J80+K80+L80+O80+P80+Q80+R80+S80+T80+U80+V80+W80+X80+Y80+AA80)","v":0}]

{"sheet":"823180 - Nota. Activos Intang.","index":13,"n_rows":66,"n_cols":22,"rows_kept":66,"cut":false,"hidden":false,"merged":[[3,3,5,13],[9,4,9,13],[39,4,39,13]]}
[]
[]
[]
[null,null,null,"828000 - Activos intangibles (Para 2017 y 2016)"]
[]
[]
[]
[]
[]
[null,null,null,null,"2017-12-31"]
[null,null,null,null,"ifrs-full:BrandNamesMember","co-svsp-core_2017-12-31:PatentesMiembro","ifrs-full:ComputerSoftwareMember","ifrs-full:LicencesAndFranchisesMember","co-svsp-core_2017-12-31:DerechosMiembro","co-svsp-core_2017-12-31:KnowhowMiembro","ifrs-full:IntangibleExplorationAndEvaluationAssetsMember","co-svsp-core_2017-12-31:ServiceConcessionArrangementsClassifiedAsIntangibleAssetsMember","ifrs-full:OtherIntangibleAssetsMember","ifrs-full:IntangibleAssetsOtherThanGoodwillMember",null,null,null,null,null,{"$f":"IF(V11=0,\"Formulario 'Administradores' Completo\",\"Formulario 'Administradores' con \"&V11&\" filas por diligenciar\")","v":"Formulario 'Administradores' con 3 filas por diligenciar"},null,{"$f":"SUM(V13:V15)","v":3}]
[null,null,null,"co-svsp-core_2017-12-31:ActivosIntangibles_Eje_G1","Marcas comerciales [miembro]","Patentes [Miembro]","Programas de computador [miembro]","Licencias y franquicias [miembro]","Derechos [Miembro]","Knowhow [Miembro]","Activos intangibles de exploración y evaluación [miembro]","Acuerdos de concesión de servicios clasficados como intangibles [Miembro]","Otros activos intangibles [miembro] ","Total Activos intangibles distintos de la plusvalía [miembro]"]
[null,"0;1","ifrs-full:DisclosureOfIntangibleAssetsLineItems","Información a revelar detallada sobre activos intangibles [partidas de los estados financieros]",null,null,null,null,null,null,null,null,null,null,null,null,null,null,null,null,{"$f":"ISERROR(AND(SEARCH(\"@\",I13),SEARCH(\".\",I13)))","v":true},{"$f":"IF(T13=\"CORRECTO\",0,1)","v":1}]
[null,"0;1","ifrs-full:AmortisationMethodIntangibleAssetsOtherThanGoodwill","Método de amortización, activos intangibles distintos de la plusvalía",null,null,null,null,null,null,null,null,null,null,null,null,null,null,null,null,{"$f":"ISERROR(AND(SEARCH(\"@\",I14),SEARCH(\".\",I14)))","v":true},1]
[null,"0;1","ifrs-full:UsefulLivesOrAmortisationRatesIntangibleAssetsOtherThanGoodwill","Vidas útiles o tasas de amortización, activos intangibles distintos de la plusvalía",null,null,null,null,null,null,null,null,null,null,null,null,null,null,null,null,{"$f":"ISERROR(AND(SEARCH(\"@\",I15),SEARCH(\".\",I15)))","v":true},1]
[null,"0;1","co-svsp-core_2017-12-31:GrossCarryingAmount","Importe en libros en términos brutos",null,null,null,null,null,null,null,null,null,{"$f":"SUM(E16:M16)","v":0}]
[null,"0;1","co-svsp-core_2017-12-31:AccumulatedDepreciationAndAmortisation","Depreciación y amortización acumuladas",null,null,null,null,null,null,null,null,null,{"$f":"SUM(E17:M17)","v":0}]
[null,"0;1","co-svsp-core_2017-12-31:AccumulatedImpairment","Deterioro de valor acumulado",null,null,null,null,null,null,null,null,null,{"$f":"SUM(E18:M18)","v":0}]
[null,"0;1","ifrs-full:ReconciliationOfChangesInIntangibleAssetsOtherThanGoodwillAbstract","Conciliación de cambios en activos intangibles distintos de la plusvalía [resumen]"]
[null,"0;1","co-svsp-core_2017-12-31:IntangibleAssetsOtherThanGoodwillBeginningOfPeriod","Activos intangibles distintos de la plusvalía",null,null,null,null,null,null,null,null,null,{"$f":"SUM(E20:M20)","v":0}]
[null,"0;1","ifrs-full:AdditionsOtherThanThroughBusinessCombinationsIntangibleAssetsOtherThanGoodwill","Incrementos distintos de los procedentes de combinaciones de negocios, activos intangibles distintos de la plusvalía",null,null,null,null,null,null,null,null,null,0]
[null,"0;1","ifrs-full:AcquisitionsThroughBusinessCombinationsIntangibleAssetsOtherThanGoodwill","Adquisiciones realizadas mediante combinaciones de negocios, activos intangibles distintos a la plusvalía",null,null,null,null,null,null,null,null,null,0]
[null,"0;1","ifrs-full:AmortisationIntangibleAssetsOtherThanGoodwill","Amortización, activos intangibles distintos de la plusvalía",null,null,null,null,null,null,null,null,null,0]
[null,"0;1","ifrs-full:ImpairmentLossRecognisedInProfitOrLossIntangibleAssetsOtherThanGoodwill","Pérdidas por deterioro de valor reconocidas en el resultado del periodo, activos intangibles distintos de la plusvalía",null,null,null,null,null,null,null,null,null,0]
[null,"0;1","ifrs-full:ReversalOfImpairmentLossRecognisedInProfitOrLossIntangibleAssetsOtherThanGoodwill","Reversión de pérdidas por deterioro de valor reconocidas en el resultado del periodo, activos intangibles distintos de la plusvalía",null,null,null,null,null,null,null,null,null,0]
[null,"0;1","ifrs-full:IncreaseDecreaseThroughTransfersAndOtherChangesIntangibleAssetsOtherThanGoodwillAbstract","Incrementos (disminuciones) por transferencias y otros cambios, activos intangibles distintos de la plusvalía [resumen]"]
[null,"0;1","ifrs-full:IncreaseDecreaseThroughTransfersIntangibleAssetsOtherThanGoodwill","Incrementos (disminuciones) por transferencias, activos intangibles distintas de la plusvalía",null,null,null,null,null,null,null,null,null,0]
[null,"0;1","ifrs-full:IncreaseDecreaseThroughOtherChangesIntangibleAssetsOtherThanGoodwill","Incrementos (disminuciones) por otros cambios, activos intangibles distintos de la plusvalía",null,null,null,null,null,null,null,null,null,0]
[null,"0;1","ifrs-full:IncreaseDecreaseThroughTransfersAndOtherChangesIntangibleAssetsOtherThanGoodwill","Incremento (disminución) por transferencias y otros cambios, activos intangibles distintos de la plusvalía",{"$f":"+E27+E28","v":0},{"$f":"+F27+F28","v":0},0,0,0,0,0,0,0,0]
[null,"0;1","ifrs-full:DisposalsAndRetirementsIntangibleAssetsOtherThanGoodwillAbstract","Disposiciones y retiros de servicio, activos intangibles distintos de la plusvalía [resumen]"]
[null,"0;1","ifrs-full:DisposalsIntangibleAssetsOtherThanGoodwill","Disposiciones, activos intangibles distintos de la plusvalía",null,null,null,null,null,null,null,null,null,{"$f":"SUM(E31:M31)","v":0}]
[null,"0;1","ifrs-full:RetirementsIntangibleAssetsOtherThanGoodwill","Retiros de servicio, activos intangibles distintos de la plusvalía",null,null,null,null,null,null,null,null,null,0]
[null,"0;1","ifrs-full:DisposalsAndRetirementsIntangibleAssetsOtherThanGoodwill","Disposiciones y retiros de servicio, activos intangibles distintos de la plusvalía",{"$f":"+E31+E32","v":0},{"$f":"+F31+F32","v":0},0,0,0,0,0,0,0,0]
[null,"0;1","ifrs-full:DecreaseThroughClassifiedAsHeldForSaleIntangibleAssetsOtherThanGoodwill","Disminuciones por clasificar como mantenidos para la venta, activos intangibles distintos de la plusvalía",null,null,null,null,null,null,null,null,null,{"$f":"SUM(E34:M34)","v":0}]
[null,"0;1","ifrs-full:ChangesInIntangibleAssetsOtherThanGoodwill","Incremento (disminución) en activos intangibles distintos de la plusvalía",{"$f":"+E21+E22+E23-E24+E25+E29-E33-E34","v":0},{"$f":"+F21+F22+F23-F24+F25+F29-F33-F34","v":0},0,0,0,0,0,0,0,0]
[null,"0;1","co-svsp-core_2017-12-31:IntangibleAssetsOtherThanGoodwillEndOfPeriod","Activos intangibles distintos de la plusvalía",{"$f":"+E20+E35","v":0},{"$f":"+F20+F35","v":0},0,0,0,0,0,0,0,0]
[]
[]
[]
[null,null,null,null,"2016-12-31"]
[null,null,null,null,"ifrs-full:BrandNamesMember","co-svsp-core_2017-12-31:PatentesMiembro","ifrs-full:ComputerSoftwareMember","ifrs-full:LicencesAndFranchisesMember","co-svsp-core_2017-12-31:DerechosMiembro","co-svsp-core_2017-12-31:KnowhowMiembro","ifrs-full:IntangibleExplorationAndEvaluationAssetsMember","co-svsp-core_2017-12-31:ServiceConcessionArrangementsClassifiedAsIntangibleAssetsMember","ifrs-full:OtherIntangibleAssetsMember","ifrs-full:IntangibleAssetsOtherThanGoodwillMember",null,null,null,null,null,{"$f":"IF(V41=0,\"Formulario 'Administradores' Completo\",\"Formulario 'Administradores' con \"&V41&\" filas por diligenciar\")","v":"Formulario 'Administradores' con 3 filas por diligenciar"},null,{"$f":"SUM(V43:V45)","v":3}]
[null,null,null,"co-svsp-core_2017-12-31:ActivosIntangibles_Eje_G1","Marcas comerciales [miembro]","Patentes [Miembro]","Programas de computador [miembro]","Licencias y franquicias [miembro]","Derechos [Miembro]","Knowhow [Miembro]","Activos intangibles de exploración y evaluación [miembro]","Acuerdos de concesión de servicios clasficados como intangibles [Miembro]","Otros activos intangibles [miembro] ","Total Activos intangibles distintos de la plusvalía [miembro]"]
[null,"0;2","ifrs-full:DisclosureOfIntangibleAssetsLineItems","Información a revelar detallada sobre activos intangibles [partidas de los estados financieros]",null,null,null,null,null,null,null,null,null,null,null,null,null,null,null,null,{"$f":"ISERROR(AND(SEARCH(\"@\",I43),SEARCH(\".\",I43)))","v":true},{"$f":"IF(T43=\"CORRECTO\",0,1)","v":1}]
[null,"0;2","ifrs-full:AmortisationMethodIntangibleAssetsOtherThanGoodwill","Método de amortización, activos intangibles distintos de la plusvalía",null,null,null,null,null,null,null,null,null,null,null,null,null,null,null,null,{"$f":"ISERROR(AND(SEARCH(\"@\",I44),SEARCH(\".\",I44)))","v":true},1]
[null,"0;2","ifrs-full:UsefulLivesOrAmortisationRatesIntangibleAssetsOtherThanGoodwill","Vidas útiles o tasas de amortización, activos intangibles distintos de la plusvalía",null,null,null,null,null,null,null,null,null,null,null,null,null,null,null,null,{"$f":"ISERROR(AND(SEARCH(\"@\",I45),SEARCH(\".\",I45)))","v":true},1]
[null,"0;2","co-svsp-core_2017-12-31:GrossCarryingAmount","Importe en libros en términos brutos",null,null,null,null,null,null,null,null,null,{"$f":"SUM(E46:M46)","v":0}]
[null,"0;2","co-svsp-core_2017-12-31:AccumulatedDepreciationAndAmortisation","Depreciación y amortización acumuladas",null,null,null,null,null,null,null,null,null,{"$f":"SUM(E47:M47)","v":0}]
[null,"0;2","co-svsp-core_2017-12-31:AccumulatedImpairment","Deterioro de valor acumulado",null,null,null,null,null,null,null,null,null,{"$f":"SUM(E48:M48)","v":0}]
[null,"0;2","ifrs-full:ReconciliationOfChangesInIntangibleAssetsOtherThanGoodwillAbstract","Conciliación de cambios en activos intangibles distintos de la plusvalía [resumen]"]
[null,"0;2","co-svsp-core_2017-12-31:IntangibleAssetsOtherThanGoodwillBeginningOfPeriod","Activos intangibles distintos de la plusvalía",null,null,null,null,null,null,null,null,null,{"$f":"SUM(E50:M50)","v":0}]
[null,"0;2","ifrs-full:AdditionsOtherThanThroughBusinessCombinationsIntangibleAssetsOtherThanGoodwill","Incrementos distintos de los procedentes de combinaciones de negocios, activos intangibles distintos de la plusvalía",null,null,null,null,null,null,null,null,null,0]
[null,"0;2","ifrs-full:AcquisitionsThroughBusinessCombinationsIntangibleAssetsOtherThanGoodwill","Adquisiciones realizadas mediante combinaciones de negocios, activos intangibles distintos a la plusvalía",null,null,null,null,null,null,null,null,null,0]
[null,"0;2","ifrs-full:AmortisationIntangibleAssetsOtherThanGoodwill","Amortización, activos intangibles distintos de la plusvalía",null,null,null,null,null,null,null,null,null,0]
[null,"0;2","ifrs-full:ImpairmentLossRecognisedInProfitOrLossIntangibleAssetsOtherThanGoodwill","Pérdidas por deterioro de valor reconocidas en el resultado del periodo, activos intangibles distintos de la plusvalía",null,null,null,null,null,null,null,null,null,0]
[null,"0;2","ifrs-full:ReversalOfImpairmentLossRecognisedInProfitOrLossIntangibleAssetsOtherThanGoodwill","Reversión de pérdidas por deterioro de valor reconocidas en el resultado del periodo, activos intangibles distintos de la plusvalía",null,null,null,null,null,null,null,null,null,0]
[null,"0;2","ifrs-full:IncreaseDecreaseThroughTransfersAndOtherChangesIntangibleAssetsOtherThanGoodwillAbstract","Incrementos (disminuciones) por transferencias y otros cambios, activos intangibles distintos de la plusvalía [resumen]"]
[null,"0;2","ifrs-full:IncreaseDecreaseThroughTransfersIntangibleAssetsOtherThanGoodwill","Incrementos (disminuciones) por transferencias, activos intangibles distintas de la plusvalía",null,null,null,null,null,null,null,null,null,{"$f":"SUM(E57:M57)","v":0}]
[null,"0;2","ifrs-full:IncreaseDecreaseThroughOtherChangesIntangibleAssetsOtherThanGoodwill","Incrementos (disminuciones) por otros cambios, activos intangibles distintos de la plusvalía",null,null,null,null,null,null,null,null,null,0]
[null,"0;2","ifrs-full:IncreaseDecreaseThroughTransfersAndOtherChangesIntangibleAssetsOtherThanGoodwill","Incremento (disminución) por transferencias y otros cambios, activos intangibles distintos de la plusvalía",{"$f":"+E57+E58","v":0},{"$f":"+F57+F58","v":0},0,0,0,0,0,0,0,0]
[null,"0;2","ifrs-full:DisposalsAndRetirementsIntangibleAssetsOtherThanGoodwillAbstract","Disposiciones y retiros de servicio, activos intangibles distintos de la plusvalía [resumen]"]
[null,"0;2","ifrs-full:DisposalsIntangibleAssetsOtherThanGoodwill","Disposiciones, activos intangibles distintos de la plusvalía",null,null,null,null,null,null,null,null,null,{"$f":"SUM(E61:M61)","v":0}]
[null,"0;2","ifrs-full:RetirementsIntangibleAssetsOtherThanGoodwill","Retiros de servicio, activos intangibles distintos de la plusvalía",null,null,null,null,null,null,null,null,null,0]
[null,"0;2","ifrs-full:DisposalsAndRetirementsIntangibleAssetsOtherThanGoodwill","Disposiciones y retiros de servicio, activos intangibles distintos de la plusvalía",{"$f":"+E61+E62","v":0},{"$f":"+F61+F62","v":0},0,0,0,0,0,0,0,0]
[null,"0;2","ifrs-full:DecreaseThroughClassifiedAsHeldForSaleIntangibleAssetsOtherThanGoodwill","Disminuciones por clasificar como mantenidos para la venta, activos intangibles distintos de la plusvalía",null,null,null,null,null,null,null,null,null,{"$f":"SUM(E64:M64)","v":0}]
[null,"0;2","ifrs-full:ChangesInIntangibleAssetsOtherThanGoodwill","Incremento (disminución) en activos intangibles distintos de la plusvalía",{"$f":"+E51+E52+E53-E54+E55+E59-E63-E64","v":0},{"$f":"+F51+F52+F53-F54+F55+F59-F63-F64","v":0},0,0,0,0,0,0,0,0]
[null,"0;2","co-svsp-core_2017-12-31:IntangibleAssetsOtherThanGoodwillEndOfPeriod","Activos intangibles distintos de la plusvalía",{"$f":"+E50+E65","v":0},{"$f":"+F50+F65","v":0},0,0,0,0,0,0,0,0]

{"sheet":"828000 - Nota. Cuentas x pagar","index":14,"n_rows":30,"n_cols":26,"rows_kept":30,"cut":false,"hidden":false,"merged":[[21,4,21,8],[21,9,21,14],[3,3,5,12],[7,4,7,14],[8,4,8,8],[8,9,8,14],[20,4,20,14]]}
[]
[]
[]
[null,null,null,"828000 - Nota. Cuentas por pagar (Para 2017 y 2016)"]
[]
[]
[]
[null,null,null,null,"2017-12-31"]
[null,null,null,null,"Nacional o del exterior [miembro]",null,null,null,null,"Bandas de tiempo acumuladas [miembro]",null,null,null,null,null,null,null,{"$f":"IF(U9=0,\"Formulario 'Nota de Cuentas por pagar' Válido\",\"Formulario 'Nota de Cuentas por pagar' con \"&U9&\" inconsistencias\")","v":"Formulario 'Nota de Cuentas por pagar' Válido"},null,null,{"$f":"SUM(U13:U29)","v":0},{"$f":"SUM(U15:V17)","v":0}]
[null,null,null,null,"co-svsp-core_2017-12-31:Nacionales_corrientes_CxP_Miembro","co-svsp-core_2017-12-31:En_el_exterior_corrientes_CxP_Miembro","co-svsp-core_2017-12-31:Nacionales_no_corrientes_CxP_Miembro","co-svsp-core_2017-12-31:En_el_exterior_no_corrientes_CxP_Miembro","co-svsp-core_2017-12-31:Total_Saldo_del_ejercicio_CxP_Miembro","co-svsp-core_2017-12-31:Numero_de_obligaciones_vencidas_CxP_Miembro","co-svsp-core_2017-12-31:CxP_Vencidas_1_a_90_dias_Miembro","co-svsp-core_2017-12-31:CxP_Vencidas_91_a_180_dias_Miembro","co-svsp-core_2017-12-31:CxP_Vencidas_181_a_360_dias_Miembro","co-svsp-core_2017-12-31:CxP_Vencidas_mas_de_360_dias_Miembro","co-svsp-core_2017-12-31:Obligaciones_vencidas_CxP_Miembro"]
[null,null,null,"co-svsp-core_2017-12-31:CuentasXPagar_Eje","Nacionales corrientes [miembro]","En el exterior corrientes [miembro]","Nacionales no corrientes [miembro]","En el exterior no corrientes [miembro]","Total Saldo del ejercicio [miembro]","Número de obligaciones vencidas  [miembro]","Valor obligaciones vencidas de 1 a 90 días [miembro]","Valor obligaciones vencidas de 91 a 180 días [miembro]","Valor obligaciones vencidas de 181 a 360 días  [miembro]","Valor obligaciones vencidas de mas de 360 días [miembro]","Total obligaciones vencidas [miembro]"]
[null,"1;1","co-svsp-core_2017-12-31:CxP_Cuentas_comerciales_por_pagar_otras_cuentas_por_pagar_y_otros_pasivos_financieros_items","Cuentas comerciales por pagar, otras cuentas por pagar y otros pasivos financieros items"]
[null,"1;1","co-svsp-core_2017-12-31:CxP_Cuentas_por_pagar_comerciales","Cuentas comerciales por pagar",null,null,null,null,{"$f":"+E13+F13+G13+H13","v":0},null,null,null,null,null,{"$f":"K13+L13+M13+N13","v":0},null,null,{"$f":"IF(Z13=\"CORRECTO\",\"CORRECTO\",\"Al indicar que se tienen cuentas vencidas para '\"&D13&\"', debe indicarse el monto en la columna correspondiente y viceversa.\")","v":"CORRECTO"},null,null,{"$f":"IF(R13=\"CORRECTO\",0,1)","v":0},null,{"$f":"IF(OR(J13=\"\",J13=0),0,1)","v":0},{"$f":"K13+L13+M13+N13","v":0},null,{"$f":"IF(AND(W13=0,X13=0),\"CORRECTO\",IF(AND(W13<>0,X13<>0),\"CORRECTO\",\"INCORRECTO\"))","v":"CORRECTO"}]
[null,"1;1","co-svsp-core_2017-12-31:CxP_Otras_cuentas_por_pagar","Otras cuentas por pagar",null,null,null,null,{"$f":"+E14+F14+G14+H14","v":0},null,null,null,null,null,{"$f":"K14+L14+M14+N14","v":0},null,null,{"$f":"IF(Z14=\"CORRECTO\",\"CORRECTO\",\"Al indicar que se tienen cuentas vencidas para '\"&D14&\"', debe indicarse el monto en la columna correspondiente y viceversa.\")","v":"CORRECTO"},null,null,0,null,{"$f":"IF(OR(J14=\"\",J14=0),0,1)","v":0},{"$f":"K14+L14+M14+N14","v":0},null,{"$f":"IF(AND(W14=0,X14=0),\"CORRECTO\",IF(AND(W14<>0,X14<>0),\"CORRECTO\",\"INCORRECTO\"))","v":"CORRECTO"}]
[null,"1;1","co-svsp-core_2017-12-31:CxP_Total_cuentas_comerciales_por_pagar_y_otras_cuentas_por_pagar","Total cuentas comerciales por pagar y otras cuentas por pagar",{"$f":"+E13+E14","v":0},{"$f":"+F13+F14","v":0},0,0,0,0,0,0,0,0,0]
[null,"1;1","co-svsp-core_2017-12-31:CxP_Otros_Pasivos_financieros","Otros Pasivos financieros",null,null,null,null,{"$f":"+E16+F16+G16+H16","v":0},null,null,null,null,null,{"$f":"K16+L16+M16+N16","v":0},null,null,{"$f":"IF(Z16=\"CORRECTO\",\"CORRECTO\",\"Al indicar que se tienen cuentas vencidas para '\"&D16&\"', debe indicarse el monto en la columna correspondiente y viceversa.\")","v":"CORRECTO"},null,null,0,null,{"$f":"IF(OR(J16=\"\",J16=0),0,1)","v":0},{"$f":"K16+L16+M16+N16","v":0},null,{"$f":"IF(AND(W16=0,X16=0),\"CORRECTO\",IF(AND(W16<>0,X16<>0),\"CORRECTO\",\"INCORRECTO\"))","v":"CORRECTO"}]
[null,"1;1","co-svsp-core_2017-12-31:CxP_Total_cuentas_comerciales_por_pagar_otras_cuentas_por_pagar_y_otros_pasivos_financieros","Total cuentas comerciales por pagar, otras cuentas por pagar y otros pasivos financieros",{"$f":"+E15+E16","v":0},{"$f":"+F15+F16","v":0},0,0,{"$f":"+E17+F17+G17+H17","v":0},{"$f":"+J15+J16","v":0},0,0,0,0,0]
[]
[]
[]
[null,null,null,null,"2016-12-31"]
[null,null,null,null,"Nacional o del exterior [miembro]",null,null,null,null,"Bandas de tiempo acumuladas [miembro]",null,null,null,null,null,null,null,null,null,null,null,{"$f":"SUM(U28:V30)","v":0}]
[null,null,null,null,"co-svsp-core_2017-12-31:Nacionales_corrientes_CxP_Miembro","co-svsp-core_2017-12-31:En_el_exterior_corrientes_CxP_Miembro","co-svsp-core_2017-12-31:Nacionales_no_corrientes_CxP_Miembro","co-svsp-core_2017-12-31:En_el_exterior_no_corrientes_CxP_Miembro","co-svsp-core_2017-12-31:Total_Saldo_del_ejercicio_CxP_Miembro","co-svsp-core_2017-12-31:Numero_de_obligaciones_vencidas_CxP_Miembro","co-svsp-core_2017-12-31:CxP_Vencidas_1_a_90_dias_Miembro","co-svsp-core_2017-12-31:CxP_Vencidas_91_a_180_dias_Miembro","co-svsp-core_2017-12-31:CxP_Vencidas_181_a_360_dias_Miembro","co-svsp-core_2017-12-31:CxP_Vencidas_mas_de_360_dias_Miembro","co-svsp-core_2017-12-31:Obligaciones_vencidas_CxP_Miembro"]
[null,null,null,"co-svsp-core_2017-12-31:CuentasXPagar_Eje","Nacionales corrientes [miembro]","En el exterior corrientes [miembro]","Nacionales no corrientes [miembro]","En el exterior no corrientes [miembro]","Total Saldo del ejercicio [miembro]","Número de obligaciones vencidas  [miembro]","Valor obligaciones vencidas de 1 a 90 días [miembro]","Valor obligaciones vencidas de 91 a 180 días [miembro]","Valor obligaciones vencidas de 181 a 360 días  [miembro]","Valor obligaciones vencidas de mas de 360 días [miembro]","Total obligaciones vencidas [miembro]"]
[null,"1;2","co-svsp-core_2017-12-31:CxP_Cuentas_comerciales_por_pagar_otras_cuentas_por_pagar_y_otros_pasivos_financieros_items","Cuentas comerciales por pagar, otras cuentas por pagar y otros pasivos financieros items"]
[null,"1;2","co-svsp-core_2017-12-31:CxP_Cuentas_por_pagar_comerciales","Cuentas comerciales por pagar",null,null,null,null,{"$f":"+E26+F26+G26+H26","v":0},null,null,null,null,null,{"$f":"K26+L26+M26+N26","v":0},null,null,{"$f":"IF(Z26=\"CORRECTO\",\"CORRECTO\",\"Al indicar que se tienen cuentas vencidas para '\"&D26&\"', debe indicarse el monto en la columna correspondiente y viceversa.\")","v":"CORRECTO"},null,null,{"$f":"IF(R26=\"CORRECTO\",0,1)","v":0},null,{"$f":"IF(OR(J26=\"\",J26=0),0,1)","v":0},{"$f":"K26+L26+M26+N26","v":0},null,{"$f":"IF(AND(W26=0,X26=0),\"CORRECTO\",IF(AND(W26<>0,X26<>0),\"CORRECTO\",\"INCORRECTO\"))","v":"CORRECTO"}]
[null,"1;2","co-svsp-core_2017-12-31:CxP_Otras_cuentas_por_pagar","Otras cuentas por pagar",null,null,null,null,{"$f":"+E27+F27+G27+H27","v":0},null,null,null,null,null,{"$f":"K27+L27+M27+N27","v":0},null,null,{"$f":"IF(Z27=\"CORRECTO\",\"CORRECTO\",\"Al indicar que se tienen cuentas vencidas para '\"&D27&\"', debe indicarse el monto en la columna correspondiente y viceversa.\")","v":"CORRECTO"},null,null,0,null,{"$f":"IF(OR(J27=\"\",J27=0),0,1)","v":0},{"$f":"K27+L27+M27+N27","v":0},null,{"$f":"IF(AND(W27=0,X27=0),\"CORRECTO\",IF(AND(W27<>0,X27<>0),\"CORRECTO\",\"INCORRECTO\"))","v":"CORRECTO"}]
[null,"1;2","co-svsp-core_2017-12-31:CxP_Total_cuentas_comerciales_por_pagar_y_otras_cuentas_por_pagar","Total cuentas comerciales por pagar y otras cuentas por pagar",{"$f":"+E26+E27","v":0},{"$f":"+F26+F27","v":0},0,0,0,0,0,0,0,0,0]
[null,"1;2","co-svsp-core_2017-12-31:CxP_Otros_Pasivos_financieros","Otros Pasivos financieros",null,null,null,null,{"$f":"+E29+F29+G29+H29","v":0},null,null,null,null,null,{"$f":"K29+L29+M29+N29","v":0},null,null,{"$f":"IF(Z29=\"CORRECTO\",\"CORRECTO\",\"Al indicar que se tienen cuentas vencidas para '\"&D29&\"', debe indicarse el monto en la columna correspondiente y viceversa.\")","v":"CORRECTO"},null,null,0,null,{"$f":"IF(OR(J29=\"\",J29=0),0,1)","v":0},{"$f":"K29+L29+M29+N29","v":0},null,{"$f":"IF(AND(W29=0,X29=0),\"CORRECTO\",IF(AND(W29<>0,X29<>0),\"CORRECTO\",\"INCORRECTO\"))","v":"CORRECTO"}]
[null,"1;2","co-svsp-core_2017-12-31:CxP_Total_cuentas_comerciales_por_pagar_otras_cuentas_por_pagar_y_otros_pasivos_financieros","Total cuentas comerciales por pagar, otras cuentas por pagar y otros pasivos financieros",{"$f":"+E28+E29","v":0},{"$f":"+F28+F29","v":0},0,0,{"$f":"+E30+F30+G30+H30","v":0},{"$f":"+J28+J29","v":0},0,0,0,0,0]

{"sheet":"210000 - Est. Situa. Financiera","index":15,"n_rows":82,"n_cols":10,"rows_kept":82,"cut":false,"hidden":false,"merged":[[4,2,4,5]]}
[]
[]
[]
[]
[null,null,"210000 - ESTADO DE SITUACIÓN FINANCIERA"]
[]
[]
[]
[null,null,null,null,1,2]
[null,null,null,null,"2017-12-31","2016-12-31",null,{"$f":"IF(J10=0,\"Formulario 'Estado de Situación Financiera' Válido\",\"Formulario 'Estado de Situación Financiera' con \"&J10&\" inconsistencias\")","v":"Formulario 'Estado de Situación Financiera' con 2 inconsistencias"},null,{"$f":"SUM(J11:J12)","v":2}]
[null,1,"ifrs-full:StatementOfFinancialPositionAbstract","Estado de situación financiera [resumen]",null,null,null,null,null,{"$f":"IF(E81=\"CORRECTO\",0,1)","v":1}]
[null,1,"ifrs-full:AssetsAbstract","Activos [resumen]",null,null,null,null,null,{"$f":"IF(F81=\"CORRECTO\",0,1)","v":1}]
[null,1,"ifrs-full:CurrentAssetsAbstract","Activos corrientes [resumen]"]
[null,1,"ifrs-full:CashAndCashEquivalents","Efectivo y equivalentes al efectivo",{"$f":"+'800101 - Nota. Efect. y Equiv.'!E22","v":0},{"$f":"+'800101 - Nota. Efect. y Equiv.'!F22","v":0}]
[null,1,"ifrs-full:Inventories","Inventarios corrientes"]
[null,1,"ifrs-full:CurrentTaxAssetsCurrent","Activos por impuestos corrientes, corriente"]
[null,1,"ifrs-full:TradeAndOtherCurrentReceivables","Cuentas comerciales por cobrar y otras cuentas por cobrar corrientes",{"$f":"'800111 - Nota. Cuentas x cobrar'!E27+'800111 - Nota. Cuentas x cobrar'!F27","v":0},{"$f":"'800111 - Nota. Cuentas x cobrar'!E51+'800111 - Nota. Cuentas x cobrar'!F51","v":0}]
[null,1,"ifrs-full:CurrentBiologicalAssets","Activos biológicos corrientes"]
[null,1,"ifrs-full:OtherCurrentFinancialAssets","Otros activos financieros corrientes"]
[null,1,"ifrs-full:OtherCurrentNonfinancialAssets","Otros activos no financieros corrientes"]
[null,1,"ifrs-full:CurrentNoncashAssetsPledgedAsCollateralForWhichTransfereeHasRightByContractOrCustomToSellOrRepledgeCollateral","Activos corrientes distintos al efectivo pignorados como garantía colateral para las que el receptor de transferencias tiene derecho por contrato o costumbre a vender o pignorar de nuevo dicha garantía colateral"]
[null,1,"ifrs-full:CurrentAssetsOtherThanAssetsOrDisposalGroupsClassifiedAsHeldForSaleOrAsHeldForDistributionToOwners","Total activos corrientes distintos de los activos no corrientes o grupo de activos para su disposición clasificados como mantenidos para la venta o como mantenidos para distribuir a los propietarios",{"$f":"IF(SUM(E14:E21)=0,\"\",SUM(E14:E21))","v":""},{"$f":"IF(SUM(F14:F21)=0,\"\",SUM(F14:F21))","v":""}]
[null,1,"ifrs-full:NoncurrentAssetsOrDisposalGroupsClassifiedAsHeldForSaleOrAsHeldForDistributionToOwners","Activos no corrientes o grupos de activos para su disposición clasificados como mantenidos para la venta o como mantenidos para distribuir a los propietarios"]
[null,1,"ifrs-full:CurrentAssets","Activos corrientes totales",{"$f":"IF(SUM(E14:E21)+E23=0,\"\",SUM(E14:E21)+E23)","v":""},{"$f":"IF(SUM(F14:F21)+F23=0,\"\",SUM(F14:F21)+F23)","v":""}]
[null,1,"ifrs-full:NoncurrentAssetsAbstract","Activos no corrientes [resumen]"]
[null,1,"ifrs-full:InvestmentProperty","Propiedad de inversión"]
[null,1,"ifrs-full:PropertyPlantAndEquipment","Propiedades, planta y equipo",{"$f":"+'822100 - Nota. Prop, plan y eq.'!AB41","v":0},{"$f":"+'822100 - Nota. Prop, plan y eq.'!AB20","v":0}]
[null,1,"ifrs-full:Goodwill","Plusvalía"]
[null,1,"ifrs-full:IntangibleAssetsOtherThanGoodwill","Activos intangibles distintos de la plusvalía"]
[null,1,"ifrs-full:InvestmentAccountedForUsingEquityMethod","Inversiones contabilizadas utilizando el método de la participación"]
[null,1,"ifrs-full:InvestmentsInSubsidiariesJointVenturesAndAssociates","Inversiones en subsidiarias, negocios conjuntos y asociadas"]
[null,1,"ifrs-full:NoncurrentBiologicalAssets","Activos biológicos no corrientes"]
[null,1,"ifrs-full:NoncurrentReceivables","Cuentas comerciales por cobrar y otras cuentas por cobrar no corrientes",{"$f":"'800111 - Nota. Cuentas x cobrar'!G27+'800111 - Nota. Cuentas x cobrar'!H27","v":0},{"$f":"'800111 - Nota. Cuentas x cobrar'!G51+'800111 - Nota. Cuentas x cobrar'!H51","v":0}]
[null,1,"ifrs-full:NoncurrentInventories","Inventarios no corrientes"]
[null,1,"ifrs-full:DeferredTaxAssets","Activos por impuestos diferidos"]
[null,1,"ifrs-full:CurrentTaxAssetsNoncurrent","Activos por impuestos corrientes, no corriente"]
[null,1,"ifrs-full:OtherNoncurrentFinancialAssets","Otros activos financieros no corrientes"]
[null,1,"ifrs-full:OtherNoncurrentNonfinancialAssets","Otros activos no financieros no corrientes"]
[null,1,"ifrs-full:NoncurrentNoncashAssetsPledgedAsCollateralForWhichTransfereeHasRightByContractOrCustomToSellOrRepledgeCollateral","Activos no corrientes distintos al efectivo pignorados como garantía colateral para las que el receptor de transferencias tiene derecho por contrato o costumbre a vender o pignorar de nuevo la garantía colateral"]
[null,1,"ifrs-full:NoncurrentAssets","Total de activos no corrientes",{"$f":"IF(SUM(E26:E39)=0,\"\",SUM(E26:E39))","v":""},{"$f":"IF(SUM(F26:F39)=0,\"\",SUM(F26:F39))","v":""}]
[null,1,"ifrs-full:Assets","Total de activos",{"$f":"IF(SUM(E14:E21)+E23+SUM(E26:E39)=0,\"\",SUM(E14:E21)+E23+SUM(E26:E39))","v":""},{"$f":"IF(SUM(F14:F21)+F23+SUM(F26:F39)=0,\"\",SUM(F14:F21)+F23+SUM(F26:F39))","v":""}]
[null,1,"ifrs-full:EquityAndLiabilitiesAbstract","Patrimonio y pasivos [resumen]"]
[null,1,"ifrs-full:LiabilitiesAbstract","Pasivos [resumen]"]
[null,1,"ifrs-full:CurrentLiabilitiesAbstract","Pasivos corrientes [resumen]"]
[null,1,"ifrs-full:CurrentProvisionsAbstract","Disposiciones actuales [resumen]"]
[null,1,"ifrs-full:CurrentProvisionsForEmployeeBenefits","Provisiones corrientes por beneficios a los empleados"]
[null,1,"ifrs-full:OtherShorttermProvisions","Otras provisiones corrientes"]
[null,1,"ifrs-full:CurrentProvisions","Total provisiones corrientes",{"$f":"IF(SUM(E46:E47)=0,\"\",SUM(E46:E47))","v":""},{"$f":"IF(SUM(F46:F47)=0,\"\",SUM(F46:F47))","v":""}]
[null,1,"ifrs-full:TradeAndOtherCurrentPayables","Cuentas por pagar comerciales y otras cuentas por pagar",{"$f":"+'828000 - Nota. Cuentas x pagar'!E15+'828000 - Nota. Cuentas x pagar'!F15","v":0},{"$f":"'828000 - Nota. Cuentas x pagar'!E28+'828000 - Nota. Cuentas x pagar'!F28","v":0}]
[null,1,"ifrs-full:CurrentTaxLiabilitiesCurrent","Pasivos por impuestos corrientes, corriente"]
[null,1,"ifrs-full:OtherCurrentFinancialLiabilities","Otros pasivos financieros corrientes",{"$f":"+'828000 - Nota. Cuentas x pagar'!E16+'828000 - Nota. Cuentas x pagar'!F16","v":0},{"$f":"+'828000 - Nota. Cuentas x pagar'!E29+'828000 - Nota. Cuentas x pagar'!F29","v":0}]
[null,1,"ifrs-full:OtherCurrentNonfinancialLiabilities","Otros pasivos no financieros corrientes"]
[null,1,"ifrs-full:CurrentLiabilitiesOtherThanLiabilitiesIncludedInDisposalGroupsClassifiedAsHeldForSale","Total de pasivos corrientes distintos de los pasivos incluidos en grupos de activos para su disposición clasificados como mantenidos para la venta",{"$f":"IF(SUM(E46:E47)+SUM(E49:E52)=0,\"\",SUM(E46:E47)+SUM(E49:E52))","v":""},{"$f":"IF(SUM(F46:F47)+SUM(F49:F52)=0,\"\",SUM(F46:F47)+SUM(F49:F52))","v":""}]
[null,1,"ifrs-full:LiabilitiesIncludedInDisposalGroupsClassifiedAsHeldForSale","Pasivos incluidos en grupos de activos para su disposición clasificados como mantenidos para la venta"]
[null,1,"ifrs-full:CurrentLiabilities","Pasivos corrientes totales",{"$f":"IF(SUM(E46:E47)+SUM(E49:E52)+E54=0,\"\",SUM(E46:E47)+SUM(E49:E52)+E54)","v":""},{"$f":"IF(SUM(F46:F47)+SUM(F49:F52)+F54=0,\"\",SUM(F46:F47)+SUM(F49:F52)+F54)","v":""}]
[null,1,"ifrs-full:NoncurrentLiabilitiesAbstract","Pasivos no corrientes [resumen]"]
[null,1,"ifrs-full:NoncurrentProvisionsAbstract","Provisiones no corrientes [resumen]"]
[null,1,"ifrs-full:NoncurrentProvisionsForEmployeeBenefits","Provisiones no corrientes por beneficios a los empleados"]
[null,1,"ifrs-full:OtherLongtermProvisions","Otras provisiones no corrientes"]
[null,1,"ifrs-full:NoncurrentProvisions","Total provisiones no corrientes",{"$f":"IF(SUM(E58:E59)=0,\"\",SUM(E58:E59))","v":""},{"$f":"IF(SUM(F58:F59)=0,\"\",SUM(F58:F59))","v":""}]
[null,1,"ifrs-full:NoncurrentPayables","Cuentas comerciales por pagar y otras cuentas por pagar no corrientes",{"$f":"+'828000 - Nota. Cuentas x pagar'!G15+'828000 - Nota. Cuentas x pagar'!H15","v":0},{"$f":"+'828000 - Nota. Cuentas x pagar'!G28+'828000 - Nota. Cuentas x pagar'!H28","v":0}]
[null,1,"ifrs-full:DeferredTaxLiabilities","Pasivo por impuestos diferidos"]
[null,1,"ifrs-full:CurrentTaxLiabilitiesNoncurrent","Pasivos por impuestos corrientes, no corriente"]
[null,1,"ifrs-full:OtherNoncurrentFinancialLiabilities","Otros pasivos financieros no corrientes",{"$f":"+'828000 - Nota. Cuentas x pagar'!G16+'828000 - Nota. Cuentas x pagar'!H16","v":0},{"$f":"+'828000 - Nota. Cuentas x pagar'!G29+'828000 - Nota. Cuentas x pagar'!H29","v":0}]
[null,1,"ifrs-full:OtherNoncurrentNonfinancialLiabilities","Otros pasivos no financieros no corrientes"]
[null,1,"ifrs-full:NoncurrentLiabilities","Total de pasivos no corrientes",{"$f":"IF(SUM(E58:E59)+SUM(E61:E65)=0,\"\",SUM(E58:E59)+SUM(E61:E65))","v":""},{"$f":"IF(SUM(F58:F59)+SUM(F61:F65)=0,\"\",SUM(F58:F59)+SUM(F61:F65))","v":""}]
[null,1,"ifrs-full:Liabilities","Total pasivos",{"$f":"IF(SUM(E46:E47)+SUM(E49:E52)+E54+SUM(E58:E59)+SUM(E61:E65)=0,\"\",SUM(E46:E47)+SUM(E49:E52)+E54+SUM(E58:E59)+SUM(E61:E65))","v":""},{"$f":"IF(SUM(F46:F47)+SUM(F49:F52)+F54+SUM(F58:F59)+SUM(F61:F65)=0,\"\",SUM(F46:F47)+SUM(F49:F52)+F54+SUM(F58:F59)+SUM(F61:F65))","v":""}]
[null,1,"ifrs-full:EquityAbstract","Patrimonio [resumen]"]
[null,1,"ifrs-full:IssuedCapital","Capital emitido: Capital social, Capital suscrito o Aportes sociales"]
[null,1,"ifrs-full:RetainedEarnings","Ganancias acumuladas"]
[null,1,"ifrs-full:SharePremium","Prima de emisión"]
[null,1,"ifrs-full:TreasuryShares","Acciones propias en cartera"]
[null,1,"co-svsp-core_2017-12-31:InversionSuplementariaAlCapitalAsignado","Inversión suplementaria al capital asignado"]
[null,1,"ifrs-full:OtherEquityInterest","Otras participaciones en el patrimonio"]
[null,1,"ifrs-full:OtherReserves","Otras reservas"]
[null,1,"ifrs-full:Equity","Patrimonio total",{"$f":"IF(SUM(E69:E75)=0,\"\",E69+E70+E71-E72+E73+E74+E75)","v":""},{"$f":"IF(SUM(F69:F75)=0,\"\",F69+F70+F71-F72+F73+F74+F75)","v":""}]
[null,1,"ifrs-full:EquityAndLiabilities","Total de patrimonio y pasivos",{"$f":"IF(SUM(E46:E47)+SUM(E49:E52)+E54+SUM(E58:E59)+SUM(E61:E65)+SUM(E69:E75)=0,\"\",SUM(E46:E47)+SUM(E49:E52)+E54+SUM(E58:E59)+SUM(E61:E65)+E69+E70+E71-E72+E73+E74+E75)","v":""},{"$f":"IF(SUM(F46:F47)+SUM(F49:F52)+F54+SUM(F58:F59)+SUM(F61:F65)+SUM(F69:F75)=0,\"\",SUM(F46:F47)+SUM(F49:F52)+F54+SUM(F58:F59)+SUM(F61:F65)+F69+F70+F71-F72+F73+F74+F75)","v":""}]
[]
[]
[]
[null,null,null,"Cumplimiento de la Ecuación contable",{"$f":"IF(E82=0,\"CORRECTO\",\"INCORRECTO\")","v":"INCORRECTO"},{"$f":"IF(F82=0,\"CORRECTO\",\"INCORRECTO\")","v":"INCORRECTO"}]
[null,null,null,"Diferencia entre Activo y Pasivo + Patrimonio",{"$f":"IFERROR(+E41-E77,\"Registre valor en Total Activos y en Total Patrimonio y pasivos\")","v":"Registre valor en Total Activos y en Total Patrimonio y pasivos"},{"$f":"IFERROR(+F41-F77,\"Registre valor en Total Activos y en Total Patrimonio y pasivos\")","v":"Registre valor en Total Activos y en Total Patrimonio y pasivos"}]

{"sheet":"310000 - Est. Resultados","index":16,"n_rows":45,"n_cols":11,"rows_kept":45,"cut":false,"hidden":false,"merged":[[4,2,4,5],[9,7,9,8]]}
[]
[]
[]
[]
[null,null,"310000 - ESTADO DE RESULTADOS"]
[]
[]
[]
[null,null,null,null,1,2]
[null,null,null,null,"2017-12-31","2016-12-31",null,{"$f":"IF(K10=0,\"Formulario 'Estado de Resultados' Válido\",\"Formulario 'Estado de Resultados' con \"&K10&\" inconsistencias\")","v":"Formulario 'Estado de Resultados' con 8 inconsistencias"},null,null,{"$f":"SUM(J13:K36)","v":8}]
[null,0,"ifrs-full:IncomeStatementAbstract","Resultado de periodo [resumen]"]
[null,0,"ifrs-full:ProfitLossAbstract","Ganancia (pérdida) [resumen]"]
[null,0,"ifrs-full:Revenue","Ingresos de actividades ordinarias",null,null,null,{"$f":"IF(E13<>\"\",\"CORRECTO\",\"Debe registrar información para '\"&D13&\"' en la columna correspondiente al periodo actual.\")","v":"Debe registrar información para 'Ingresos de actividades ordinarias' en la columna correspondiente al periodo actual."},{"$f":"IF(F13<>\"\",\"CORRECTO\",\"Debe registrar información para '\"&D13&\"'  en la columna correspondiente al periodo anterior.\")","v":"Debe registrar información para 'Ingresos de actividades ordinarias'  en la columna correspondiente al periodo anterior."},{"$f":"IF(H13=\"CORRECTO\",0,1)","v":1},1]
[null,0,"ifrs-full:CostOfSales","Costo de ventas",null,null,null,{"$f":"IF(E14<>\"\",\"CORRECTO\",\"Debe registrar información para '\"&D14&\"' en la columna correspondiente al periodo actual.\")","v":"Debe registrar información para 'Costo de ventas' en la columna correspondiente al periodo actual."},{"$f":"IF(F14<>\"\",\"CORRECTO\",\"Debe registrar información para '\"&D14&\"'  en la columna correspondiente al periodo anterior.\")","v":"Debe registrar información para 'Costo de ventas'  en la columna correspondiente al periodo anterior."},1,1]
[null,0,"ifrs-full:GrossProfit","Ganancia bruta",{"$f":"E13-E14","v":0},{"$f":"F13-F14","v":0},null,{"$f":"IF(E15<>\"\",\"CORRECTO\",\"Debe registrar información para '\"&D15&\"' en la columna correspondiente al periodo actual.\")","v":"CORRECTO"},{"$f":"IF(F15<>\"\",\"CORRECTO\",\"Debe registrar información para '\"&D15&\"'  en la columna correspondiente al periodo anterior.\")","v":"CORRECTO"},0,0]
[null,0,"ifrs-full:OtherIncome","Otros ingresos"]
[null,0,"ifrs-full:DistributionCosts","Costos de distribución"]
[null,0,"ifrs-full:AdministrativeExpense","Gastos de administración"]
[null,0,"ifrs-full:OtherExpenseByFunction","Otros gastos"]
[null,0,"ifrs-full:OtherGainsLosses","Otras ganancias (pérdidas)"]
[null,0,"ifrs-full:ProfitLossFromOperatingActivities","Ganancia (pérdida) por actividades de operación",{"$f":"E15+E16-E17-E18-E19+E20","v":0},{"$f":"F15+F16-F17-F18-F19+F20","v":0}]
[null,0,"ifrs-full:DifferenceBetweenCarryingAmountOfDividendsPayableAndCarryingAmountOfNoncashAssetsDistributed","Diferencia entre el importe en libros de dividendos pagaderos e importe en libros de activos distribuidos distintos al efectivo"]
[null,0,"ifrs-full:GainLossArisingFromDerecognitionOfFinancialAssetsMeasuredAtAmortisedCost","Ganancias (pérdidas) que surgen de la baja en cuentas de activos financieros medidos al costo amortizado"]
[null,0,"ifrs-full:FinanceIncome","Ingresos financieros",null,null,null,{"$f":"IF(E24<>\"\",\"CORRECTO\",\"Debe registrar información para '\"&D24&\"' en la columna correspondiente al periodo actual.\")","v":"Debe registrar información para 'Ingresos financieros' en la columna correspondiente al periodo actual."},{"$f":"IF(F24<>\"\",\"CORRECTO\",\"Debe registrar información para '\"&D24&\"'  en la columna correspondiente al periodo anterior.\")","v":"Debe registrar información para 'Ingresos financieros'  en la columna correspondiente al periodo anterior."},{"$f":"IF(H24=\"CORRECTO\",0,1)","v":1},{"$f":"IF(I24=\"CORRECTO\",0,1)","v":1}]
[null,0,"ifrs-full:FinanceCosts","Costos financieros"]
[null,0,"ifrs-full:ImpairmentLossImpairmentGainAndReversalOfImpairmentLossDeterminedInAccordanceWithIFRS9","Deterioro de valor de ganancias y reversión de pérdidas por deterioro de valor (pérdidas por deterioro de valor) determinado de acuerdo con la NIIF 9",null,null,null,{"$f":"IF(E26<>\"\",\"CORRECTO\",\"Debe registrar información para '\"&D26&\"' en la columna correspondiente al periodo actual.\")","v":"Debe registrar información para 'Deterioro de valor de ganancias y reversión de pérdidas por deterioro de valor (pérdidas por deterioro de valor) determinado de acuerdo con la NIIF 9' en la columna correspondiente al periodo actual."},{"$f":"IF(F26<>\"\",\"CORRECTO\",\"Debe registrar información para '\"&D26&\"'  en la columna correspondiente al periodo anterior.\")","v":"Debe registrar información para 'Deterioro de valor de ganancias y reversión de pérdidas por deterioro de valor (pérdidas por deterioro de valor) determinado de acuerdo con la NIIF 9'  en la columna correspondiente al periodo anterior."},{"$f":"IF(H26=\"CORRECTO\",0,1)","v":1},{"$f":"IF(I26=\"CORRECTO\",0,1)","v":1}]
[null,0,"ifrs-full:ShareOfProfitLossOfAssociatesAndJointVenturesAccountedForUsingEquityMethod","Participación en las ganancias (pérdidas) de asociadas y negocios conjuntos que se contabilicen utilizando el método de la participación"]
[null,0,"ifrs-full:OtherIncomeExpenseFromSubsidiariesJointlyControlledEntitiesAndAssociates","Otros ingresos (gastos) procedentes de subsidiarias, entidades controladas de forma conjunta y asociadas"]
[null,0,"ifrs-full:GainsLossesArisingFromDifferenceBetweenPreviousCarryingAmountAndFairValueOfFinancialAssetsReclassifiedAsMeasuredAtFairValue","Ganancias (pérdidas) que surgen de diferencias entre el costo amortizado anterior y el valor razonable de activos financieros reclasificados de la categoría de medición costo amortizado a la categoría de medición de valor razonable con cambios en resultados"]
[null,0,"ifrs-full:CumulativeGainLossPreviouslyRecognisedInOtherComprehensiveIncomeArisingFromReclassificationOfFinancialAssetsOutOfFairValueThroughOtherComprehensiveIncomeIntoFairValueThroughProfitOrLossMeasurementCategory","Ganancia (pérdida) acumulada anteriormente reconocida en otro resultado integral que surge de la reclasificación de activos financieros de la categoría de medición de valor razonable con cambios en otro resultado integral a la de valor razonable con cambios en resultados"]
[null,0,"ifrs-full:HedgingGainsLossesForHedgeOfGroupOfItemsWithOffsettingRiskPositions","Ganancias (pérdidas) de cobertura por cobertura de un grupo de partidas con posiciones de riesgo compensadoras"]
[null,0,"ifrs-full:ProfitLossBeforeTax","Ganancia (pérdida), antes de impuestos",{"$f":"E21+E22+E23+E24-E25-E26+E27+E28+E29+E30+E31","v":0},{"$f":"F21+F22+F23+F24-F25-F26+F27+F28+F29+F30+F31","v":0},null,{"$f":"IF(E32<>\"\",\"CORRECTO\",\"Debe registrar información para '\"&D32&\"' en la columna correspondiente al periodo actual.\")","v":"CORRECTO"},{"$f":"IF(F32<>\"\",\"CORRECTO\",\"Debe registrar información para '\"&D32&\"'  en la columna correspondiente al periodo anterior.\")","v":"CORRECTO"},{"$f":"IF(H32=\"CORRECTO\",0,1)","v":0},{"$f":"IF(I32=\"CORRECTO\",0,1)","v":0}]
[null,0,"ifrs-full:IncomeTaxExpenseContinuingOperations","Ingreso (gasto) por impuestos"]
[null,0,"ifrs-full:ProfitLossFromContinuingOperations","Ganancia (pérdida) procedente de operaciones continuadas",{"$f":"E32-E33","v":0},{"$f":"IF(F32=\"\",\"\",F32-F33)","v":0}]
[null,0,"ifrs-full:ProfitLossFromDiscontinuedOperations","Ganancia (pérdida) procedente de operaciones discontinuadas"]
[null,0,"ifrs-full:ProfitLoss","Ganancia (pérdida)",{"$f":"E34+E35","v":0},{"$f":"F34+F35","v":0},null,{"$f":"IF(E36<>\"\",\"CORRECTO\",\"Debe registrar información para '\"&D36&\"' en la columna correspondiente al periodo actual.\")","v":"CORRECTO"},{"$f":"IF(F36<>\"\",\"CORRECTO\",\"Debe registrar información para '\"&D36&\"'  en la columna correspondiente al periodo anterior.\")","v":"CORRECTO"},{"$f":"IF(H36=\"CORRECTO\",0,1)","v":0},{"$f":"IF(I36=\"CORRECTO\",0,1)","v":0}]
[null,0,"ifrs-full:EarningsPerShareAbstract","Ganancias por acción [resumen]"]
[null,0,"ifrs-full:BasicEarningsPerShareAbstract","Ganancia por acción básica [resumen]"]
[null,0,"ifrs-full:BasicEarningsLossPerShareFromContinuingOperations","Ganancia (pérdida) por acción básica en operaciones continuadas"]
[null,0,"ifrs-full:BasicEarningsLossPerShareFromDiscontinuedOperations","Ganancia (pérdida) por acción básica en operaciones discontinuadas"]
[null,0,"ifrs-full:BasicEarningsLossPerShare","Total ganancias (pérdidas) básicas por acción",{"$f":"E39+E40","v":0},{"$f":"F39+F40","v":0}]
[null,0,"ifrs-full:DilutedEarningsPerShareAbstract","Ganancias por acción diluidas [resumen]"]
[null,0,"ifrs-full:DilutedEarningsLossPerShareFromContinuingOperations","Ganancias (pérdida) diluida por acción procedente de operaciones continuadas"]
[null,0,"ifrs-full:DilutedEarningsLossPerShareFromDiscontinuedOperations","Ganancias (pérdida) diluida por acción procedentes de operaciones discontinuadas"]
[null,0,"ifrs-full:DilutedEarningsLossPerShare","Total ganancias (pérdidas) por acción diluidas",{"$f":"E43+E44","v":0},{"$f":"F43+F44","v":0}]

{"sheet":"410000 - Est. Resultados ORI","index":17,"n_rows":53,"n_cols":11,"rows_kept":53,"cut":false,"hidden":false,"merged":[[4,2,4,5],[9,7,9,8]]}
[]
[]
[]
[]
[null,null,"410000 - ESTADO DE RESULTADOS - COMPONENTES ORI"]
[]
[]
[]
[null,null,null,null,1,2]
[null,null,null,null,"2017-12-31","2016-12-31",null,{"$f":"IF(K10=0,\"Formulario 'Estado de Resultados - ORI' Válido\",\"Formulario 'Estado de Resultados - ORI' con \"&K10&\" inconsistencias\")","v":"Formulario 'Estado de Resultados - ORI' Válido"},null,null,{"$f":"SUM(J12:K53)","v":0}]
[null,0,"ifrs-full:StatementOfComprehensiveIncomeAbstract","Estado del resultado integral [resumen]"]
[null,0,"ifrs-full:ProfitLoss","Ganancia (pérdida)",{"$f":"IF('310000 - Est. Resultados'!E36=\"\",\"\",'310000 - Est. Resultados'!E36)","v":0},{"$f":"IF('310000 - Est. Resultados'!F36=\"\",\"\",'310000 - Est. Resultados'!F36)","v":0},null,{"$f":"IF(E12<>\"\",\"CORRECTO\",\"Debe registrar información para '\"&D12&\"' en la columna correspondiente al periodo actual.\")","v":"CORRECTO"},{"$f":"IF(F12<>\"\",\"CORRECTO\",\"Debe registrar información para '\"&D12&\"'  en la columna correspondiente al periodo anterior.\")","v":"CORRECTO"},{"$f":"IF(H12=\"CORRECTO\",0,1)","v":0},{"$f":"IF(I12=\"CORRECTO\",0,1)","v":0}]
[null,0,"ifrs-full:OtherComprehensiveIncomeAbstract","Otro resultado integral [resumen]"]
[null,0,"ifrs-full:ComponentsOfOtherComprehensiveIncomeThatWillNotBeReclassifiedToProfitOrLossNetOfTaxAbstract","Componentes de otro resultado integral que no se reclasificarán al resultado del periodo, netos de impuestos [resumen]"]
[null,0,"ifrs-full:OtherComprehensiveIncomeNetOfTaxGainsLossesFromInvestmentsInEquityInstruments","Otro resultado integral, neto de impuestos, ganancias (pérdidas) de inversiones en instrumentos de patrimonio"]
[null,0,"ifrs-full:OtherComprehensiveIncomeNetOfTaxGainsLossesOnRevaluation","Otro resultado integral, neto de impuestos, ganancias (pérdidas) por revaluación"]
[null,0,"ifrs-full:OtherComprehensiveIncomeNetOfTaxGainsLossesOnRemeasurementsOfDefinedBenefitPlans","Otro resultado integral, neto de impuestos, ganancias (pérdidas) por nuevas mediciones de planes de beneficios definidos"]
[null,0,"ifrs-full:OtherComprehensiveIncomeNetOfTaxChangeInFairValueOfFinancialLiabilityAttributableToChangeInCreditRiskOfLiability","Otro resultado integral, neto de impuestos, cambio en el valor razonable de pasivos financieros atribuible a cambios en el riesgo crediticio del pasivo"]
[null,0,"ifrs-full:OtherComprehensiveIncomeThatWillNotBeReclassifiedToProfitOrLossNetOfTax","Total otro resultado integral que no se reclasificará al resultado del periodo, neto de impuestos",{"$f":"E15+E16+E17+E18","v":0},{"$f":"F15+F16+F17+F18","v":0}]
[null,0,"ifrs-full:ComponentsOfOtherComprehensiveIncomeThatWillBeReclassifiedToProfitOrLossNetOfTaxAbstract","Componentes de otro resultado integral que se reclasificarán al resultado del periodo, netos de impuestos [resumen]"]
[null,0,"ifrs-full:ExchangeDifferencesOnTranslationAbstract","Diferencias de cambio por conversión [resumen]"]
[null,0,"ifrs-full:GainsLossesOnExchangeDifferencesOnTranslationNetOfTax","Ganancias (pérdidas) por diferencias de cambio de conversión, netas de impuestos"]
[null,0,"ifrs-full:ReclassificationAdjustmentsOnExchangeDifferencesOnTranslationNetOfTax","Ajustes de reclasificación en diferencias de cambio de conversión, netos de impuestos"]
[null,0,"ifrs-full:OtherComprehensiveIncomeNetOfTaxExchangeDifferencesOnTranslation","Otro resultado integral, neto de impuestos, diferencias de cambio por conversión",{"$f":"E22-E23","v":0},{"$f":"F22-F23","v":0}]
[null,0,"ifrs-full:AvailableforsaleFinancialAssetsAbstract","Activos financieros disponibles para la venta [resumen]"]
[null,0,"ifrs-full:GainsLossesOnRemeasuringAvailableforsaleFinancialAssetsNetOfTax","Ganancias (pérdidas) por nuevas mediciones de activos financieros disponibles para la venta, netas de impuestos"]
[null,0,"ifrs-full:ReclassificationAdjustmentsOnAvailableforsaleFinancialAssetsNetOfTax","Ajustes de reclasificación, activos financieros disponibles para la venta, netos de impuestos"]
[null,0,"ifrs-full:OtherComprehensiveIncomeNetOfTaxAvailableforsaleFinancialAssets","Otro resultado integral, neto de impuestos, activos financieros disponibles para la venta",{"$f":"E26-E27","v":0},{"$f":"F26-F27","v":0}]
[null,0,"ifrs-full:CashFlowHedgesAbstract","Coberturas del flujo de efectivo [resumen]"]
[null,0,"ifrs-full:GainsLossesOnCashFlowHedgesNetOfTax","Ganancias (pérdidas) por coberturas de flujos de efectivo, neto de impuestos"]
[null,0,"ifrs-full:ReclassificationAdjustmentsOnCashFlowHedgesNetOfTax","Ajustes de reclasificación en coberturas de flujos de efectivo, netos de impuestos"]
[null,0,"ifrs-full:AdjustmentsForAmountsTransferredToInitialCarryingAmountOfHedgedItems","Importes eliminados del patrimonio e incluidos en el importe en libros de activos (pasivos) no financieros que se hayan adquirido o incurrido mediante una transacción prevista altamente probable cubierta, neto de impuestos"]
[null,0,"ifrs-full:OtherComprehensiveIncomeNetOfTaxCashFlowHedges","Otro resultado integral, neto de impuestos, coberturas del flujo de efectivo",{"$f":"E30-E31-E32","v":0},{"$f":"F30-F31-F32","v":0}]
[null,0,"ifrs-full:HedgesOfNetInvestmentsInForeignOperationsAbstract","Coberturas de inversiones netas en negocios en el extranjero [resumen]"]
[null,0,"ifrs-full:GainsLossesOnHedgesOfNetInvestmentsInForeignOperationsNetOfTax","Ganancias (pérdidas) por coberturas de inversiones netas en negocios en el extranjero, neto de impuestos"]
[null,0,"ifrs-full:ReclassificationAdjustmentsOnHedgesOfNetInvestmentsInForeignOperationsNetOfTax","Ajustes de reclasificación por coberturas de inversiones netas en negocios en el extranjero, netos de impuestos"]
[null,0,"ifrs-full:OtherComprehensiveIncomeNetOfTaxHedgesOfNetInvestmentsInForeignOperations","Otro resultado integral, neto de impuestos, coberturas de inversiones netas en negocios en el extranjero",{"$f":"E35-E36","v":0},{"$f":"F35-F36","v":0}]
[null,0,"ifrs-full:ChangeInValueOfTimeValueOfOptionsAbstract","Cambio en el valor temporal del dinero de opciones [resumen]"]
[null,0,"ifrs-full:GainsLossesOnChangeInValueOfTimeValueOfOptionsNetOfTax","Ganancia (pérdida) por cambios en el valor temporal del dinero de opciones, neta de impuestos"]
[null,0,"ifrs-full:ReclassificationAdjustmentsOnChangeInValueOfTimeValueOfOptionsNetOfTax","Ajustes de reclasificación por cambios en el valor temporal del dinero de opciones, netos de impuestos"]
[null,0,"ifrs-full:OtherComprehensiveIncomeNetOfTaxChangeInValueOfTimeValueOfOptions","Otro resultado integral, neto de impuestos, cambios en el valor del valor temporal del dinero de opciones",{"$f":"E39-E40","v":0},{"$f":"F39-F40","v":0}]
[null,0,"ifrs-full:ChangeInValueOfForwardElementsOfForwardContractsAbstract","Cambios en el valor de los elementos a término de contratos a término [resumen]"]
[null,0,"ifrs-full:GainsLossesOnChangeInValueOfForwardElementsOfForwardContractsNetOfTax","Ganancia (pérdida) por cambios en el valor de los elementos a término de contratos a término, neta de impuestos"]
[null,0,"ifrs-full:ReclassificationAdjustmentsOnChangeInValueOfForwardElementsOfForwardContractsNetOfTax","Ajustes de reclasificación por cambios en el valor de los elementos a término de contratos a término, netos de impuestos"]
[null,0,"ifrs-full:OtherComprehensiveIncomeNetOfTaxChangeInValueOfForwardElementsOfForwardContracts","Otro resultado integral, neto de impuestos, cambios en el valor de los elementos a término de contratos a término",{"$f":"E43-E44","v":0},{"$f":"F43-F44","v":0}]
[null,0,"ifrs-full:ChangeInValueOfForeignCurrencyBasisSpreadsAbstract","Cambio en el valor de los diferenciales de tasa cambio de moneda extranjera [resumen]"]
[null,0,"ifrs-full:GainsLossesOnChangeInValueOfForeignCurrencyBasisSpreadsNetOfTax","Ganancia (pérdida) por cambios en el valor de los diferenciales de la tasa de cambio de la moneda extranjera, neta de impuestos"]
[null,0,"ifrs-full:ReclassificationAdjustmentsOnChangeInValueOfForeignCurrencyBasisSpreadsNetOfTax","Ajustes de reclasificación por cambios en el valor de los diferenciales de la tasa de cambio de la moneda extranjera, netos de impuestos"]
[null,0,"ifrs-full:OtherComprehensiveIncomeNetOfTaxChangeInValueOfForeignCurrencyBasisSpreads","Otro resultado integral, neto de impuestos, cambios en el valor de los diferenciales de tasa de cambio de la moneda extranjera",{"$f":"E47-E48","v":0},{"$f":"F47-F48","v":0}]
[null,0,"ifrs-full:ShareOfOtherComprehensiveIncomeOfAssociatesAndJointVenturesAccountedForUsingEquityMethodThatWillBeReclassifiedToProfitOrLossNetOfTax","Participación de otro resultado integral de asociadas y negocios conjuntos contabilizados utilizando el método de la participación que se reclasificará al resultado del periodo, neto de impuestos"]
[null,0,"ifrs-full:OtherComprehensiveIncomeThatWillBeReclassifiedToProfitOrLossNetOfTax","Total otro resultado integral que se reclasificará al resultado del periodo, neto de impuestos",{"$f":"E22-E23+E26-E27+E30-E31-E32+E35-E36+E39-E40+E43-E44+E47-E48","v":0},{"$f":"F22-F23+F26-F27+F30-F31-F32+F35-F36+F39-F40+F43-F44+F47-F48","v":0}]
[null,0,"ifrs-full:OtherComprehensiveIncome","Total otro resultado integral",{"$f":"IF(AND(E15=\"\",E16=\"\",E17=\"\",E18=\"\",E22=\"\",E23=\"\",E26=\"\",E27=\"\",E30=\"\",E31=\"\",E32=\"\",E35=\"\",E36=\"\",E39=\"\",E40=\"\",E43=\"\",E44=\"\",E47=\"\",E48=\"\"),\"\",E15+E16+E17+E18+E22-E23+E26-E27+E30-E31-E32+E35-E36+E39-E40+E43-E44+E47-E48)","v":""},{"$f":"IF(AND(F15=\"\",F16=\"\",F17=\"\",F18=\"\",F22=\"\",F23=\"\",F26=\"\",F27=\"\",F30=\"\",F31=\"\",F32=\"\",F35=\"\",F36=\"\",F39=\"\",F40=\"\",F43=\"\",F44=\"\",F47=\"\",F48=\"\"),\"\",F15+F16+F17+F18+F22-F23+F26-F27+F30-F31-F32+F35-F36+F39-F40+F43-F44+F47-F48)","v":""}]
[null,0,"ifrs-full:ComprehensiveIncome","Resultado integral total",{"$f":"IFERROR(IF(AND(E12=\"\",E15=\"\",E16=\"\",E17=\"\",E18=\"\",E22=\"\",E23=\"\",E26=\"\",E27=\"\",E30=\"\",E31=\"\",E32=\"\",E35=\"\",E36=\"\",E39=\"\",E40=\"\",E43=\"\",E44=\"\",E47=\"\",E48=\"\"),\"\",E12+E15+E16+E17+E18+E22-E23+E26-E27+E30-E31-E32+E35-E36+E39-E40+E43-E44+E47-E48),\"\")","v":0},{"$f":"IFERROR(IF(AND(F12=\"\",F15=\"\",F16=\"\",F17=\"\",F18=\"\",F22=\"\",F23=\"\",F26=\"\",F27=\"\",F30=\"\",F31=\"\",F32=\"\",F35=\"\",F36=\"\",F39=\"\",F40=\"\",F43=\"\",F44=\"\",F47=\"\",F48=\"\"),\"\",F12+F15+F16+F17+F18+F22-F23+F26-F27+F30-F31-F32+F35-F36+F39-F40+F43-F44+F47-F48),\"\")","v":0},null,{"$f":"IFERROR(IF(E53<>\"\",\"CORRECTO\",\"Debe registrar información para '\"&D53&\"' en la columna correspondiente al periodo actual.\"),\"Debe registrar información para '\"&D53&\"' en la columna correspondiente al periodo actual.\")","v":"CORRECTO"},{"$f":"IFERROR(IF(F53<>\"\",\"CORRECTO\",\"Debe registrar información para '\"&F53&\"' en la columna correspondiente al periodo actual.\"),\"Debe registrar información para '\"&F53&\"' en la columna correspondiente al periodo actual.\")","v":"CORRECTO"},{"$f":"IF(H53=\"CORRECTO\",0,1)","v":0},{"$f":"IF(I53=\"CORRECTO\",0,1)","v":0}]

{"sheet":"520000 - Est. Flujos de Efec.","index":18,"n_rows":91,"n_cols":12,"rows_kept":91,"cut":false,"hidden":false,"merged":[[4,2,4,5],[9,7,9,8]]}
[]
[]
[]
[]
[null,null,"520000 - ESTADO DE FLUJOS DE EFECTIVO MÉTODO INDIRECTO"]
[]
[]
[]
[null,null,null,null,1,2]
[null,null,null,null,"2017-12-31","2016-12-31",null,{"$f":"IF(L10=0,\"Formulario 'Estado de Flujos de Efectivo' Válido\",\"Formulario 'Estado de Flujos de Efectivo' con \"&L10&\" inconsistencias\")","v":"Formulario 'Estado de Flujos de Efectivo' Válido"},null,null,null,{"$f":"SUM(K13:L88)","v":0}]
[null,0,"ifrs-full:StatementOfCashFlowsAbstract","Estado de flujos de efectivo [resumen]"]
[null,0,"ifrs-full:CashFlowsFromUsedInOperatingActivitiesAbstract","Flujos de efectivo procedentes de (utilizados en) actividades de operación [resumen]"]
[null,0,"ifrs-full:ProfitLoss","Ganancia (pérdida)",{"$f":"IF('310000 - Est. Resultados'!E36=\"\",\"\",'310000 - Est. Resultados'!E36)","v":0},{"$f":"IF('310000 - Est. Resultados'!F36=\"\",\"\",'310000 - Est. Resultados'!F36)","v":0},null,{"$f":"IF(E13<>\"\",\"CORRECTO\",\"Debe registrar información para '\"&D13&\"' en la columna correspondiente al periodo actual.\")","v":"CORRECTO"},{"$f":"IF(F13<>\"\",\"CORRECTO\",\"Debe registrar información para '\"&D13&\"'  en la columna correspondiente al periodo anterior.\")","v":"CORRECTO"},null,{"$f":"IF(H13=\"CORRECTO\",0,1)","v":0},{"$f":"IF(I13=\"CORRECTO\",0,1)","v":0}]
[null,0,"ifrs-full:AdjustmentsForReconcileProfitLossAbstract","Ajustes para conciliar la ganancia (pérdida) [resumen]"]
[null,0,"ifrs-full:AdjustmentsForIncomeTaxExpense","Ajustes por gasto por impuestos a las ganancias"]
[null,0,"ifrs-full:AdjustmentsForFinanceCosts","Ajustes por costos financieros"]
[null,0,"ifrs-full:AdjustmentsForDecreaseIncreaseInInventories","Ajustes por disminuciones (incrementos) en los inventarios"]
[null,0,"ifrs-full:AdjustmentsForDecreaseIncreaseInTradeAccountReceivable","Ajustes por la disminución (incremento) de cuentas por cobrar de origen comercial"]
[null,0,"ifrs-full:AdjustmentsForDecreaseIncreaseInOtherOperatingReceivables","Ajustes por disminuciones (incrementos) en otras cuentas por cobrar derivadas de las actividades de operación"]
[null,0,"ifrs-full:AdjustmentsForIncreaseDecreaseInTradeAccountPayable","Ajustes por el incremento (disminución) de cuentas por pagar de origen comercial"]
[null,0,"ifrs-full:AdjustmentsForIncreaseDecreaseInOtherOperatingPayables","Ajustes por incrementos (disminuciones) en otras cuentas por pagar derivadas de las actividades de operación"]
[null,0,"ifrs-full:AdjustmentsForDepreciationAndAmortisationExpense","Ajustes por gastos de depreciación y amortización"]
[null,0,"ifrs-full:AdjustmentsForImpairmentLossReversalOfImpairmentLossRecognisedInProfitOrLoss","Ajustes por deterioro de valor (reversiones de pérdidas por deterioro de valor) reconocidas en el resultado del periodo"]
[null,0,"ifrs-full:AdjustmentsForProvisions","Ajustes por provisiones"]
[null,0,"ifrs-full:AdjustmentsForUnrealisedForeignExchangeLossesGains","Ajustes por pérdidas (ganancias) de moneda extranjera no realizadas"]
[null,0,"ifrs-full:AdjustmentsForSharebasedPayments","Ajustes por pagos basados en acciones"]
[null,0,"ifrs-full:AdjustmentsForFairValueGainsLosses","Ajustes por pérdidas (ganancias) del valor razonable"]
[null,0,"ifrs-full:AdjustmentsForUndistributedProfitsOfAssociates","Ajustes por ganancias no distribuidas de asociadas"]
[null,0,"ifrs-full:OtherAdjustmentsForNoncashItems","Otros ajustes por partidas distintas al efectivo"]
[null,0,"ifrs-full:AdjustmentsForLossesGainsOnDisposalOfNoncurrentAssets","Ajustes por pérdidas (ganancias) por la disposición de activos no corrientes"]
[null,0,"ifrs-full:OtherAdjustmentsForWhichCashEffectsAreInvestingOrFinancingCashFlow","Otros ajustes para los que los efectos sobre el efectivo son flujos de efectivo de inversión o financiación"]
[null,0,"ifrs-full:OtherAdjustmentsToReconcileProfitLoss","Otros ajustes para conciliar la ganancia (pérdida)"]
[null,0,"ifrs-full:AdjustmentsForReconcileProfitLoss","Total ajustes para conciliar la ganancia (pérdida)",{"$f":"E15+E16+E17+E18+E19+E20+E21+E22+E23+E24+E25+E26+E27+E28+E29+E30+E31+E32","v":0},{"$f":"F15+F16+F17+F18+F19+F20+F21+F22+F23+F24+F25+F26+F27+F28+F29+F30+F31+F32","v":0},null,{"$f":"IF(E33<>\"\",\"CORRECTO\",\"Debe registrar información para '\"&D33&\"' en la columna correspondiente al periodo actual.\")","v":"CORRECTO"},{"$f":"IF(F33<>\"\",\"CORRECTO\",\"Debe registrar información para '\"&D33&\"'  en la columna correspondiente al periodo anterior.\")","v":"CORRECTO"},null,{"$f":"IF(H33=\"CORRECTO\",0,1)","v":0},{"$f":"IF(I33=\"CORRECTO\",0,1)","v":0}]
[null,0,"ifrs-full:CashFlowsFromUsedInOperations","Flujos de efectivo netos procedentes (utilizados en) operaciones",{"$f":"E13+E33","v":0},{"$f":"F13+F33","v":0},null,{"$f":"IF(E34<>\"\",\"CORRECTO\",\"Debe registrar información para '\"&D34&\"' en la columna correspondiente al periodo actual.\")","v":"CORRECTO"},{"$f":"IF(F34<>\"\",\"CORRECTO\",\"Debe registrar información para '\"&D34&\"'  en la columna correspondiente al periodo anterior.\")","v":"CORRECTO"},null,{"$f":"IF(H34=\"CORRECTO\",0,1)","v":0},{"$f":"IF(I34=\"CORRECTO\",0,1)","v":0}]
[null,0,"ifrs-full:DividendsPaidClassifiedAsOperatingActivities","Dividendos pagados"]
[null,0,"ifrs-full:DividendsReceivedClassifiedAsOperatingActivities","Dividendos recibidos"]
[null,0,"ifrs-full:InterestPaidClassifiedAsOperatingActivities","Intereses pagados"]
[null,0,"ifrs-full:InterestReceivedClassifiedAsOperatingActivities","Intereses recibidos"]
[null,0,"ifrs-full:IncomeTaxesPaidRefundClassifiedAsOperatingActivities","Impuestos a las ganancias reembolsados (pagados)"]
[null,0,"ifrs-full:OtherInflowsOutflowsOfCashClassifiedAsOperatingActivities","Otras entradas (salidas) de efectivo"]
[null,0,"ifrs-full:CashFlowsFromUsedInOperatingActivities","Flujos de efectivo netos procedentes de (utilizados en) actividades de operación",{"$f":"E34+E35+E36+E37+E38+E39+E40","v":0},{"$f":"F34+F35+F36+F37+F38+F39+F40","v":0},null,{"$f":"IF(E41<>\"\",\"CORRECTO\",\"Debe registrar información para '\"&D41&\"' en la columna correspondiente al periodo actual.\")","v":"CORRECTO"},{"$f":"IF(F41<>\"\",\"CORRECTO\",\"Debe registrar información para '\"&D41&\"'  en la columna correspondiente al periodo anterior.\")","v":"CORRECTO"},null,{"$f":"IF(H41=\"CORRECTO\",0,1)","v":0},{"$f":"IF(I41=\"CORRECTO\",0,1)","v":0}]
[null,0,"ifrs-full:CashFlowsFromUsedInInvestingActivitiesAbstract","Flujos de efectivo procedentes de (utilizados en) actividades de inversión [resumen]"]
[null,0,"ifrs-full:CashFlowsFromLosingControlOfSubsidiariesOrOtherBusinessesClassifiedAsInvestingActivities","Flujos de efectivo procedentes de la pérdida de control de subsidiarias u otros negocios"]
[null,0,"ifrs-full:CashFlowsUsedInObtainingControlOfSubsidiariesOrOtherBusinessesClassifiedAsInvestingActivities","Flujos de efectivo utilizados para obtener el control de subsidiarias u otros negocios"]
[null,0,"ifrs-full:OtherCashReceiptsFromSalesOfEquityOrDebtInstrumentsOfOtherEntitiesClassifiedAsInvestingActivities","Otros cobros por la venta de patrimonio o instrumentos de deuda de otras entidades"]
[null,0,"ifrs-full:OtherCashPaymentsToAcquireEquityOrDebtInstrumentsOfOtherEntitiesClassifiedAsInvestingActivities","Otros pagos para adquirir patrimonio o instrumentos de deuda de otras entidades"]
[null,0,"ifrs-full:OtherCashReceiptsFromSalesOfInterestsInJointVenturesClassifiedAsInvestingActivities","Otros cobros por la venta de participaciones en negocios conjuntos"]
[null,0,"ifrs-full:OtherCashPaymentsToAcquireInterestsInJointVenturesClassifiedAsInvestingActivities","Otros pagos para adquirir participaciones en negocios conjuntos"]
[null,0,"ifrs-full:ProceedsFromSalesOfPropertyPlantAndEquipmentClassifiedAsInvestingActivities","Importes procedentes de la venta de propiedades, planta y equipo"]
[null,0,"ifrs-full:PurchaseOfPropertyPlantAndEquipmentClassifiedAsInvestingActivities","Compras de propiedades, planta y equipo"]
[null,0,"ifrs-full:ProceedsFromSalesOfIntangibleAssetsClassifiedAsInvestingActivities","Importes procedentes de ventas de activos intangibles"]
[null,0,"ifrs-full:PurchaseOfIntangibleAssetsClassifiedAsInvestingActivities","Compras de activos intangibles"]
[null,0,"ifrs-full:ProceedsFromOtherLongtermAssetsClassifiedAsInvestingActivities","Recursos por ventas de otros activos a largo plazo"]
[null,0,"ifrs-full:PurchaseOfOtherLongtermAssetsClassifiedAsInvestingActivities","Compras de otros activos a largo plazo"]
[null,0,"ifrs-full:ProceedsFromGovernmentGrantsClassifiedAsInvestingActivities","Importes procedentes de subvenciones del gobierno"]
[null,0,"ifrs-full:CashAdvancesAndLoansMadeToOtherPartiesClassifiedAsInvestingActivities","Anticipos de efectivo y préstamos concedidos a terceros"]
[null,0,"ifrs-full:CashReceiptsFromRepaymentOfAdvancesAndLoansMadeToOtherPartiesClassifiedAsInvestingActivities","Cobros procedentes del reembolso de anticipos y préstamos concedidos a terceros"]
[null,0,"ifrs-full:CashPaymentsForFutureContractsForwardContractsOptionContractsAndSwapContractsClassifiedAsInvestingActivities","Pagos en efectivo por contratos de futuros, contratos a término, contratos de opciones y contratos de permuta financiera"]
[null,0,"ifrs-full:CashReceiptsFromFutureContractsForwardContractsOptionContractsAndSwapContractsClassifiedAsInvestingActivities","Cobros en efectivo por contratos de futuros, contratos a término, contratos de opciones y contratos de permuta financiera"]
[null,0,"ifrs-full:DividendsReceivedClassifiedAsInvestingActivities","Dividendos recibidos"]
[null,0,"ifrs-full:InterestPaidClassifiedAsInvestingActivities","Intereses pagados"]
[null,0,"ifrs-full:InterestReceivedClassifiedAsInvestingActivities","Intereses recibidos"]
[null,0,"ifrs-full:IncomeTaxesPaidRefundClassifiedAsInvestingActivities","Impuestos a las ganancias reembolsados (pagados)"]
[null,0,"ifrs-full:OtherInflowsOutflowsOfCashClassifiedAsInvestingActivities","Otras entradas (salidas) de efectivo"]
[null,0,"ifrs-full:CashFlowsFromUsedInInvestingActivities","Flujos de efectivo netos procedentes de (utilizados en) actividades de inversión",{"$f":"E43+E44+E45+E46+E47+E48+E49+E50+E51+E52+E53+E54+E55+E56+E57+E58+E59+E60+E61+E62+E63+E64","v":0},{"$f":"F43+F44+F45+F46+F47+F48+F49+F50+F51+F52+F53+F54+F55+F56+F57+F58+F59+F60+F61+F62+F63+F64","v":0},null,{"$f":"IF(E65<>\"\",\"CORRECTO\",\"Debe registrar información para '\"&D65&\"' en la columna correspondiente al periodo actual.\")","v":"CORRECTO"},{"$f":"IF(F65<>\"\",\"CORRECTO\",\"Debe registrar información para '\"&D65&\"'  en la columna correspondiente al periodo anterior.\")","v":"CORRECTO"},null,{"$f":"IF(H65=\"CORRECTO\",0,1)","v":0},{"$f":"IF(I65=\"CORRECTO\",0,1)","v":0}]
[null,0,"ifrs-full:CashFlowsFromUsedInFinancingActivitiesAbstract","Flujos de efectivo procedentes de (utilizados en) actividades de financiación [resumen]"]
[null,0,"ifrs-full:ProceedsFromChangesInOwnershipInterestsInSubsidiaries","Recursos por cambios en las participaciones en la propiedad en subsidiarias que no dan lugar a la pérdida de control"]
[null,0,"ifrs-full:PaymentsFromChangesInOwnershipInterestsInSubsidiaries","Pagos por cambios en las participaciones en la propiedad en subsidiarias que no dan lugar a la pérdida de control"]
[null,0,"ifrs-full:ProceedsFromIssuingShares","Importes procedentes de la emisión de acciones"]
[null,0,"ifrs-full:ProceedsFromIssuingOtherEquityInstruments","Importes procedentes de la emisión de otros instrumentos de patrimonio"]
[null,0,"ifrs-full:PaymentsToAcquireOrRedeemEntitysShares","Pagos por adquirir o rescatar las acciones de la entidad"]
[null,0,"ifrs-full:PaymentsOfOtherEquityInstruments","Pagos por otras participaciones en el patrimonio"]
[null,0,"ifrs-full:ProceedsFromBorrowingsClassifiedAsFinancingActivities","Importes procedentes de préstamos"]
[null,0,"ifrs-full:RepaymentsOfBorrowingsClassifiedAsFinancingActivities","Reembolsos de préstamos"]
[null,0,"ifrs-full:PaymentsOfFinanceLeaseLiabilitiesClassifiedAsFinancingActivities","Pagos de pasivos por arrendamientos financieros"]
[null,0,"ifrs-full:PaymentsOfLeaseLiabilitiesClassifiedAsFinancingActivities","Pagos de pasivos por arrendamiento"]
[null,0,"ifrs-full:ProceedsFromGovernmentGrantsClassifiedAsFinancingActivities","Importes procedentes de subvenciones del gobierno"]
[null,0,"ifrs-full:DividendsPaidClassifiedAsFinancingActivities","Dividendos pagados"]
[null,0,"ifrs-full:InterestPaidClassifiedAsFinancingActivities","Intereses pagados"]
[null,0,"ifrs-full:IncomeTaxesPaidRefundClassifiedAsFinancingActivities","Impuestos a las ganancias reembolsados (pagados)"]
[null,0,"ifrs-full:OtherInflowsOutflowsOfCashClassifiedAsFinancingActivities","Otras entradas (salidas) de efectivo"]
[null,0,"ifrs-full:CashFlowsFromUsedInFinancingActivities","Flujos de efectivo netos procedentes de (utilizados en) actividades de financiación",{"$f":"E67+E68+E69+E70+E71+E72+E73+E74+E75+E76+E77+E78+E79+E80+E81","v":0},{"$f":"F67+F68+F69+F70+F71+F72+F73+F74+F75+F76+F77+F78+F79+F80+F81","v":0},null,{"$f":"IF(E82<>\"\",\"CORRECTO\",\"Debe registrar información para '\"&D82&\"' en la columna correspondiente al periodo actual.\")","v":"CORRECTO"},{"$f":"IF(F82<>\"\",\"CORRECTO\",\"Debe registrar información para '\"&D82&\"'  en la columna correspondiente al periodo anterior.\")","v":"CORRECTO"},null,{"$f":"IF(H82=\"CORRECTO\",0,1)","v":0},{"$f":"IF(I82=\"CORRECTO\",0,1)","v":0}]
[null,0,"ifrs-full:IncreaseDecreaseInCashAndCashEquivalentsBeforeEffectOfExchangeRateChanges","Incremento (disminución) neto de efectivo y equivalentes al efectivo, antes del efecto de los cambios en la tasa de cambio",{"$f":"E41+E65+E82","v":0},{"$f":"F41+F65+F82","v":0},null,{"$f":"IF(E83<>\"\",\"CORRECTO\",\"Debe registrar información para '\"&D83&\"' en la columna correspondiente al periodo actual.\")","v":"CORRECTO"},{"$f":"IF(F83<>\"\",\"CORRECTO\",\"Debe registrar información para '\"&D83&\"'  en la columna correspondiente al periodo anterior.\")","v":"CORRECTO"},null,{"$f":"IF(H83=\"CORRECTO\",0,1)","v":0},{"$f":"IF(I83=\"CORRECTO\",0,1)","v":0}]
[null,0,"ifrs-full:EffectOfExchangeRateChangesOnCashAndCashEquivalentsAbstract","Efectos de la variación en la tasa de cambio sobre el efectivo y equivalentes al efectivo [resumen]"]
[null,0,"ifrs-full:EffectOfExchangeRateChangesOnCashAndCashEquivalents","Efectos de la variación en la tasa de cambio sobre el efectivo y equivalentes al efectivo"]
[null,0,"ifrs-full:IncreaseDecreaseInCashAndCashEquivalents","Incremento (disminución) neto de efectivo y equivalentes al efectivo",{"$f":"+E83+E85","v":0},{"$f":"+F83+F85","v":0},null,{"$f":"IF(E86=E88-E87,\"CORRECTO\",\"El valor calculado para '\"&D86&\"' debe ser igual a la diferencia entre '\"&D88&\"' menos '\"&D87&\"', en la columna correspondiente al periodo actual.\")","v":"CORRECTO"},{"$f":"IF(F86=F88-F87,\"CORRECTO\",\"El valor calculado para '\"&D86&\"' debe ser igual a la diferencia entre '\"&D88&\"' menos '\"&D87&\"', en la columna correspondiente al periodo actual.\")","v":"CORRECTO"},null,{"$f":"IF(H86=\"CORRECTO\",0,1)","v":0},0]
[null,1,"ifrs-full:CashAndCashEquivalents","Efectivo y equivalentes al efectivo al principio del periodo",{"$f":"'800101 - Nota. Efect. y Equiv.'!F22","v":0},{"$f":"'800101 - Nota. Efect. y Equiv.'!G22","v":0},null,{"$f":"IF(E87<>\"\",\"CORRECTO\",\"Debe registrar información para '\"&D87&\"' en la columna correspondiente al periodo actual.\")","v":"CORRECTO"},{"$f":"IF(F87<>\"\",\"CORRECTO\",\"Debe registrar información para '\"&D87&\"'  en la columna correspondiente al periodo anterior.\")","v":"CORRECTO"},null,0,0]
[null,1,"ifrs-full:CashAndCashEquivalents","Efectivo y equivalentes al efectivo al final del periodo",{"$f":"'800101 - Nota. Efect. y Equiv.'!E22","v":0},{"$f":"'800101 - Nota. Efect. y Equiv.'!F22","v":0},null,"CORRECTO","CORRECTO",null,0,0]
[]
[]
[null,null,null,"Diferencia entre los valores calculados en el Esado de Flujos de Efectivo y los registrados para Efectivo y equivalentes del efectivo",{"$f":"E86-(E88-E87)","v":0},{"$f":"F86-(F88-F87)","v":0}]

{"sheet":"610000 - Est. Camb. Patrimonio","index":19,"n_rows":57,"n_cols":45,"rows_kept":57,"cut":false,"hidden":false,"merged":[[3,3,5,23],[9,4,9,23],[36,4,36,23]]}
[]
[]
[]
[null,null,null,"610000 - Estado de Cambios en el patrimonio"]
[]
[]
[]
[]
[]
[null,null,null,null,"2017-12-31",null,null,null,null,null,null,null,null,null,null,null,null,null,null,null,null,null,null,null,null,null,{"$f":"IF(AC10=0,\"Formulario 'Estado de Cambios en el Patrimonio' Válido\",\"Formulario 'Estado de Cambios en el Patrimonio' con \"&AC10&\" inconsistencias\")","v":"Formulario 'Estado de Cambios en el Patrimonio' con 4 inconsistencias"},null,{"$f":"SUM(AC18:AC30)+SUM(AC45:AC57)","v":4}]
[null,null,null,null,"ifrs-full:IssuedCapitalMember","ifrs-full:SharePremiumMember","ifrs-full:TreasurySharesMember","ifrs-full:OtherEquityInterestMember","ifrs-full:RevaluationSurplusMember","ifrs-full:ReserveOfExchangeDifferencesOnTranslationMember","ifrs-full:ReserveOfCashFlowHedgesMember","ifrs-full:ReserveOfGainsAndLossesOnHedgingInstrumentsThatHedgeInvestmentsInEquityInstrumentsMember","ifrs-full:ReserveOfChangeInValueOfTimeValueOfOptionsMember","ifrs-full:ReserveOfChangeInValueOfForwardElementsOfForwardContractsMember","ifrs-full:ReserveOfGainsAndLossesOnFinancialAssetsMeasuredAtFairValueThroughOtherComprehensiveIncomeMember","ifrs-full:ReserveOfSharebasedPaymentsMember","ifrs-full:ReserveOfChangeInValueOfForeignCurrencyBasisSpreadsMember","ifrs-full:ReserveOfRemeasurementsOfDefinedBenefitPlansMember","ifrs-full:AmountRecognisedInOtherComprehensiveIncomeAndAccumulatedInEquityRelatingToNoncurrentAssetsOrDisposalGroupsHeldForSaleMember","ifrs-full:ReserveOfGainsAndLossesFromInvestmentsInEquityInstrumentsMember","ifrs-full:ReserveOfChangeInFairValueOfFinancialLiabilityAttributableToChangeInCreditRiskOfLiabilityMember","ifrs-full:OtherReservesMember","ifrs-full:RetainedEarningsMember","ifrs-full:EquityMember",null,null,null,null,null,null,null,null,null,null,null,null,null,null,null,null,null,null,{"$f":"IF(AS11=0,\"Formulario 'Administradores' Completo\",\"Formulario 'Administradores' con \"&AS11&\" filas por diligenciar\")","v":"Formulario 'Administradores' con 2 filas por diligenciar"},null,{"$f":"SUM(AS13:AS15)","v":2}]
[null,null,null,"ifrs-full:ComponentsOfEquityAxis","Capital emitido [miembro]","Prima de emisión [miembro]","Acciones propias en cartera [miembro]","Otras participaciones en el patrimonio [miembro]","Reverva por superávit de revaluación [miembro]","Reserva de diferencias de cambio en conversiones [miembro]","Reserva de coberturas de flujo de efectivo [miembro]","Reserva de ganancias y pérdidas sobre instrumentos de cobertura que cubren inversiones en instrumentos de patrimonio [miembro]","Reserva por cambios en el valor temporal del dinero de opciones [miembro]","Reserva por cambios en el valor de los elementos a término de contratos a término [miembro]","Reversión de ganancias y pérdidas sobre activos financieros medidos al valor razonable con cambios en otro resultado integral [miembro]","Reserva de pagos basados en acciones [miembro]","Reserva por cambios en el valor de los diferenciales de la tasa de cambio de la moneda extranjera [miembro]","Reserva de nuevas mediciones de planes de beneficios definidos [miembro]","Importes reconocidos en otro resultado integral y acumulados en el patrimonio relativos a activos no corrientes o grupos de activos para su disposición mantenidos para la venta [miembro]","Reserva de ganancias y pérdidas por inversiones en instrumentos de patrimonio [miembro]","Reserva para cambios en el valor razonable de pasivos financieros atribuibles a cambios en el riesgo crediticio del pasivo [miembro]","Total Otras reservas [miembro]","Ganancias acumuladas [miembro]","Patrimonio [miembro]"]
[null,"0;1","ifrs-full:StatementOfChangesInEquityAbstract","Estado de cambios en el patrimonio [resumen]",null,null,null,null,null,null,null,null,null,null,null,null,null,null,null,null,null,null,null,null,null,null,null,null,null,null,null,null,null,null,null,null,null,null,null,null,null,null,{"$f":"IF(AND(D13<>\"\",E13<>\"\",F13<>\"\",G13<>\"\",H13<>\"\",I13<>\"\",AR13=FALSE),\"CORRECTO\",\"Registre de forma completa y adecuada la información de \"&D13&\"'\")","v":"Registre de forma completa y adecuada la información de Estado de cambios en el patrimonio [resumen]'"},{"$f":"ISERROR(AND(SEARCH(\"@\",I13),SEARCH(\".\",I13)))","v":true},{"$f":"IF(AQ13=\"CORRECTO\",0,1)","v":1}]
[null,"0;1","ifrs-full:StatementOfChangesInEquityLineItems","Estado de cambios en el patrimonio [partidas de los estados financieros]",null,null,null,null,null,null,null,null,null,null,null,null,null,null,null,null,null,null,null,null,null,null,null,null,null,null,null,null,null,null,null,null,null,null,null,null,null,null,{"$f":"IF(AND(D14<>\"\",E14<>\"\",F14<>\"\",G14<>\"\",H14<>\"\",I14<>\"\",J14<>\"\",AR14=FALSE),\"CORRECTO\",\"Registre de forma completa y adecuada la información de \"&D14&\"'\")","v":"Registre de forma completa y adecuada la información de Estado de cambios en el patrimonio [partidas de los estados financieros]'"},{"$f":"ISERROR(AND(SEARCH(\"@\",I14),SEARCH(\".\",I14)))","v":true},1]
[null,"0;1","co-svsp-core_2017-12-31:EquityBeginningOfPeriod","Patrimonio al comienzo del periodo",{"$f":"+E57","v":0},{"$f":"+F57","v":0},{"$f":"+G57","v":0},0,0,0,0,0,0,0,0,0,0,0,0,0,0,{"$f":"J15+K15+L15+M15+N15+O15+P15+Q15+R15+S15+T15","v":0},{"$f":"+W57","v":0},{"$f":"E15+F15-G15+H15+V15+W15","v":0},null,null,null,null,null,null,null,null,null,null,null,null,null,null,null,null,null,null,{"$f":"IF(OR('110000 - Carátula'!E36=\"\",'110000 - Carátula'!E36=\"NO\"),\"CORRECTO\",IF(AND('110000 - Carátula'!E36=\"SI\",D15<>\"\",E15<>\"\",F15<>\"\",G15<>\"\",H15<>\"\",I15<>\"\",J15<>\"\",AR15=FALSE),\"CORRECTO\",\"Se indíca en 'Carátula' la obligatoriedad de tener revisor fiscal, de forma completa y adecuada la información de \"&D15&\"'\"))","v":"CORRECTO"},{"$f":"ISERROR(AND(SEARCH(\"@\",I15),SEARCH(\".\",I15)))","v":true},0]
[null,"0;1","ifrs-full:ChangesInEquityAbstract","Cambios en el patrimonio [resumen]"]
[null,"0;1","ifrs-full:ComprehensiveIncomeAbstract","Resultado integral [resumen]"]
[null,"0;1","co-svsp-core_2017-12-31:ProfitLoss","Ganancia (pérdida)",null,null,null,null,null,null,null,null,null,null,null,null,null,null,null,null,null,{"$f":"J18+K18+L18+M18+N18+O18+P18+Q18+R18+S18+T18","v":0},null,{"$f":"E18+F18-G18+H18+V18+W18","v":0},null,null,{"$f":"IF(X18='310000 - Est. Resultados'!E36,\"CORRECTO\",\"La información registrada en este formulario para '\"&D18&\"' en la columna '\"&$X$12&\"' para del periodo actual, debe ser igual al reportado en el Estado de Resultados\")","v":"CORRECTO"},null,{"$f":"IF(AA18=\"CORRECTO\",0,1)","v":0}]
[null,"0;1","co-svsp-core_2017-12-31:OtherComprehensiveIncome","Otro resultado integral",null,null,null,null,null,null,null,null,null,null,null,null,null,null,null,null,null,{"$f":"J19+K19+L19+M19+N19+O19+P19+Q19+R19+S19+T19","v":0},null,0,null,null,{"$f":"IF(X19='410000 - Est. Resultados ORI'!E52,\"CORRECTO\",\"La información registrada en este formulario para '\"&D19&\"' en la columna '\"&$X$12&\"' para del periodo actual, debe ser igual al reportado en el formularo ORI\")","v":"La información registrada en este formulario para 'Otro resultado integral' en la columna 'Patrimonio [miembro]' para del periodo actual, debe ser igual al reportado en el formularo ORI"},null,{"$f":"IF(AA19=\"CORRECTO\",0,1)","v":1}]
[null,"0;1","co-svsp-core_2017-12-31:ComprehensiveIncome","Resultado integral total",{"$f":"+E18+E19","v":0},{"$f":"+F18+F19","v":0},0,0,0,0,0,0,0,0,0,0,0,0,0,0,0,0,0,0,null,null,{"$f":"IF(X20='410000 - Est. Resultados ORI'!E53,\"CORRECTO\",\"La información registrada en este formulario para '\"&D20&\"' en la columna '\"&$X$12&\"' para del periodo actual, debe ser igual al reportado en el formulario ORI\")","v":"CORRECTO"},null,{"$f":"IF(AA20=\"CORRECTO\",0,1)","v":0}]
[null,"0;1","ifrs-full:IssueOfEquity","Emisión de patrimonio",null,null,null,null,null,null,null,null,null,null,null,null,null,null,null,null,null,{"$f":"J21+K21+L21+M21+N21+O21+P21+Q21+R21+S21+T21","v":0},null,0]
[null,"0;1","ifrs-full:DividendsPaid","Dividendos reconocidos como distribuciones a los propietarios",null,null,null,null,null,null,null,null,null,null,null,null,null,null,null,null,null,0,null,0]
[null,"0;1","ifrs-full:IncreaseDecreaseThroughOtherContributionsByOwners","Incrementos por otras aportaciones de los propietarios, patrimonio",null,null,null,null,null,null,null,null,null,null,null,null,null,null,null,null,null,0,null,0]
[null,"0;1","ifrs-full:IncreaseDecreaseThroughOtherDistributionsToOwners","Disminución por otras distribuciones a los propietarios, patrimonio",null,null,null,null,null,null,null,null,null,null,null,null,null,null,null,null,null,0,null,0]
[null,"0;1","ifrs-full:IncreaseDecreaseThroughTransfersAndOtherChangesEquity","Incrementos (disminuciones) por otros cambios, patrimonio",null,null,null,null,null,null,null,null,null,null,null,null,null,null,null,null,null,0,null,0]
[null,"0;1","ifrs-full:IncreaseDecreaseThroughTreasuryShareTransactions","Incrementos (disminuciones) por transacciones con acciones propias, patrimonio",null,null,null,null,null,null,null,null,null,null,null,null,null,null,null,null,null,0,null,0]
[null,"0;1","ifrs-full:IncreaseDecreaseThroughChangesInOwnershipInterestsInSubsidiariesThatDoNotResultInLossOfControl","Incrementos (disminuciones) por cambios las participaciones en la propiedad de subsidiarias que no dan lugar a pérdida de control, patrimonio",null,null,null,null,null,null,null,null,null,null,null,null,null,null,null,null,null,0,null,0]
[null,"0;1","ifrs-full:IncreaseDecreaseThroughSharebasedPaymentTransactions","Incrementos (disminuciones) por transacciones con pagos basados en acciones, patrimonio",null,null,null,null,null,null,null,null,null,null,null,null,null,null,null,null,null,0,null,0]
[null,"0;1","ifrs-full:ChangesInEquity","Total incremento (disminución) en el patrimonio",{"$f":"E20+E21-E22+E23-E24+E25+E26+E27+E28","v":0},{"$f":"F20+F21-F22+F23-F24+F25+F26+F27+F28","v":0},0,0,0,0,0,0,0,0,0,0,0,0,0,0,0,0,0,{"$f":"X20+X21-X22+X23-X24+X25+X26+X27+X28","v":0}]
[null,"0;1","co-svsp-core_2017-12-31:EquityEndOfPeriod","Patrimonio al final del periodo",{"$f":"+E15+E29","v":0},{"$f":"+F15+F29","v":0},0,0,0,0,0,0,0,0,0,0,0,0,0,0,0,0,0,{"$f":"E30+F30-G30+H30+V30+W30","v":0},null,null,{"$f":"IF(X30='210000 - Est. Situa. Financiera'!E76,\"CORRECTO\",\"La información registrada en este formulario para '\"&D30&\"' en la columna '\"&$X$12&\"' para del periodo actual, debe ser igual al reportado en el formulario Estado de Situación Financiera\")","v":"La información registrada en este formulario para 'Patrimonio al final del periodo' en la columna 'Patrimonio [miembro]' para del periodo actual, debe ser igual al reportado en el formulario Estado de Situación Financiera"},null,{"$f":"IF(AA30=\"CORRECTO\",0,1)","v":1}]
[]
[]
[]
[]
[]
[]
[null,null,null,null,"2016-12-31"]
[null,null,null,null,"ifrs-full:IssuedCapitalMember","ifrs-full:SharePremiumMember","ifrs-full:TreasurySharesMember","ifrs-full:OtherEquityInterestMember","ifrs-full:RevaluationSurplusMember","ifrs-full:ReserveOfExchangeDifferencesOnTranslationMember","ifrs-full:ReserveOfCashFlowHedgesMember","ifrs-full:ReserveOfGainsAndLossesOnHedgingInstrumentsThatHedgeInvestmentsInEquityInstrumentsMember","ifrs-full:ReserveOfChangeInValueOfTimeValueOfOptionsMember","ifrs-full:ReserveOfChangeInValueOfForwardElementsOfForwardContractsMember","ifrs-full:ReserveOfGainsAndLossesOnFinancialAssetsMeasuredAtFairValueThroughOtherComprehensiveIncomeMember","ifrs-full:ReserveOfSharebasedPaymentsMember","ifrs-full:ReserveOfChangeInValueOfForeignCurrencyBasisSpreadsMember","ifrs-full:ReserveOfRemeasurementsOfDefinedBenefitPlansMember","ifrs-full:AmountRecognisedInOtherComprehensiveIncomeAndAccumulatedInEquityRelatingToNoncurrentAssetsOrDisposalGroupsHeldForSaleMember","ifrs-full:ReserveOfGainsAndLossesFromInvestmentsInEquityInstrumentsMember","ifrs-full:ReserveOfChangeInFairValueOfFinancialLiabilityAttributableToChangeInCreditRiskOfLiabilityMember","ifrs-full:OtherReservesMember","ifrs-full:RetainedEarningsMember","ifrs-full:EquityMember",null,null,null,null,null,null,null,null,null,null,null,null,null,null,null,null,null,null,{"$f":"IF(AS38=0,\"Formulario 'Administradores' Completo\",\"Formulario 'Administradores' con \"&AS38&\" filas por diligenciar\")","v":"Formulario 'Administradores' con 2 filas por diligenciar"},null,{"$f":"SUM(AS40:AS42)","v":2}]
[null,null,null,"ifrs-full:ComponentsOfEquityAxis","Capital emitido [miembro]","Prima de emisión [miembro]","Acciones propias en cartera [miembro]","Otras participaciones en el patrimonio [miembro]","Reverva por superávit de revaluación [miembro]","Reserva de diferencias de cambio en conversiones [miembro]","Reserva de coberturas de flujo de efectivo [miembro]","Reserva de ganancias y pérdidas sobre instrumentos de cobertura que cubren inversiones en instrumentos de patrimonio [miembro]","Reserva por cambios en el valor temporal del dinero de opciones [miembro]","Reserva por cambios en el valor de los elementos a término de contratos a término [miembro]","Reversión de ganancias y pérdidas sobre activos financieros medidos al valor razonable con cambios en otro resultado integral [miembro]","Reserva de pagos basados en acciones [miembro]","Reserva por cambios en el valor de los diferenciales de la tasa de cambio de la moneda extranjera [miembro]","Reserva de nuevas mediciones de planes de beneficios definidos [miembro]","Importes reconocidos en otro resultado integral y acumulados en el patrimonio relativos a activos no corrientes o grupos de activos para su disposición mantenidos para la venta [miembro]","Reserva de ganancias y pérdidas por inversiones en instrumentos de patrimonio [miembro]","Reserva para cambios en el valor razonable de pasivos financieros atribuibles a cambios en el riesgo crediticio del pasivo [miembro]","Total Otras reservas [miembro]","Ganancias acumuladas [miembro]","Patrimonio [miembro]"]
[null,"0;2","ifrs-full:StatementOfChangesInEquityAbstract","Estado de cambios en el patrimonio [resumen]",null,null,null,null,null,null,null,null,null,null,null,null,null,null,null,null,null,null,null,null,null,null,null,null,null,null,null,null,null,null,null,null,null,null,null,null,null,null,{"$f":"IF(AND(D40<>\"\",E40<>\"\",F40<>\"\",G40<>\"\",H40<>\"\",I40<>\"\",AR40=FALSE),\"CORRECTO\",\"Registre de forma completa y adecuada la información de \"&D40&\"'\")","v":"Registre de forma completa y adecuada la información de Estado de cambios en el patrimonio [resumen]'"},{"$f":"ISERROR(AND(SEARCH(\"@\",I40),SEARCH(\".\",I40)))","v":true},{"$f":"IF(AQ40=\"CORRECTO\",0,1)","v":1}]
[null,"0;2","ifrs-full:StatementOfChangesInEquityLineItems","Estado de cambios en el patrimonio [partidas de los estados financieros]",null,null,null,null,null,null,null,null,null,null,null,null,null,null,null,null,null,null,null,null,null,null,null,null,null,null,null,null,null,null,null,null,null,null,null,null,null,null,{"$f":"IF(AND(D41<>\"\",E41<>\"\",F41<>\"\",G41<>\"\",H41<>\"\",I41<>\"\",J41<>\"\",AR41=FALSE),\"CORRECTO\",\"Registre de forma completa y adecuada la información de \"&D41&\"'\")","v":"Registre de forma completa y adecuada la información de Estado de cambios en el patrimonio [partidas de los estados financieros]'"},{"$f":"ISERROR(AND(SEARCH(\"@\",I41),SEARCH(\".\",I41)))","v":true},1]
[null,"0;2","co-svsp-core_2017-12-31:EquityBeginningOfPeriod","Patrimonio al comienzo del periodo",null,null,null,null,null,null,null,null,null,null,null,null,null,null,null,null,null,{"$f":"J42+K42+L42+M42+N42+O42+P42+Q42+R42+S42+T42","v":0},null,{"$f":"E42+F42-G42+H42+V42+W42","v":0},null,null,null,null,null,null,null,null,null,null,null,null,null,null,null,null,null,null,{"$f":"IF(OR('110000 - Carátula'!E63=\"\",'110000 - Carátula'!E63=\"NO\"),\"CORRECTO\",IF(AND('110000 - Carátula'!E63=\"SI\",D42<>\"\",E42<>\"\",F42<>\"\",G42<>\"\",H42<>\"\",I42<>\"\",J42<>\"\",AR42=FALSE),\"CORRECTO\",\"Se indíca en 'Carátula' la obligatoriedad de tener revisor fiscal, de forma completa y adecuada la información de \"&D42&\"'\"))","v":"CORRECTO"},{"$f":"ISERROR(AND(SEARCH(\"@\",I42),SEARCH(\".\",I42)))","v":true},0]
[null,"0;2","ifrs-full:ChangesInEquityAbstract","Cambios en el patrimonio [resumen]"]
[null,"0;2","ifrs-full:ComprehensiveIncomeAbstract","Resultado integral [resumen]"]
[null,"0;2","co-svsp-core_2017-12-31:ProfitLoss","Ganancia (pérdida)",null,null,null,null,null,null,null,null,null,null,null,null,null,null,null,null,null,{"$f":"J45+K45+L45+M45+N45+O45+P45+Q45+R45+S45+T45","v":0},null,{"$f":"E45+F45-G45+H45+V45+W45","v":0},null,null,{"$f":"IF(X45='310000 - Est. Resultados'!F36,\"CORRECTO\",\"La información registrada en este formulario para '\"&D45&\"' en la columna '\"&$X$12&\"' para del periodo anterior, debe ser igual al reportado en el Estado de Resultados\")","v":"CORRECTO"},null,{"$f":"IF(AA45=\"CORRECTO\",0,1)","v":0}]
[null,"0;2","co-svsp-core_2017-12-31:OtherComprehensiveIncome","Otro resultado integral",null,null,null,null,null,null,null,null,null,null,null,null,null,null,null,null,null,{"$f":"J46+K46+L46+M46+N46+O46+P46+Q46+R46+S46+T46","v":0},null,0,null,null,{"$f":"IF(X46='410000 - Est. Resultados ORI'!F52,\"CORRECTO\",\"La información registrada en este formulario para '\"&D46&\"' en la columna '\"&$X$12&\"' para del periodo anterior, debe ser igual al reportado en el formularo ORI\")","v":"La información registrada en este formulario para 'Otro resultado integral' en la columna 'Patrimonio [miembro]' para del periodo anterior, debe ser igual al reportado en el formularo ORI"},null,{"$f":"IF(AA46=\"CORRECTO\",0,1)","v":1}]
[null,"0;2","co-svsp-core_2017-12-31:ComprehensiveIncome","Resultado integral total",{"$f":"+E45+E46","v":0},{"$f":"+F45+F46","v":0},0,0,0,0,0,0,0,0,0,0,0,0,0,0,0,0,0,0,null,null,{"$f":"IF(X47='410000 - Est. Resultados ORI'!F53,\"CORRECTO\",\"La información registrada en este formulario para '\"&D47&\"' en la columna '\"&$X$12&\"' para del periodo anterior, debe ser igual al reportado en el formulario ORI\")","v":"CORRECTO"},null,{"$f":"IF(AA47=\"CORRECTO\",0,1)","v":0}]
[null,"0;2","ifrs-full:IssueOfEquity","Emisión de patrimonio",null,null,null,null,null,null,null,null,null,null,null,null,null,null,null,null,null,{"$f":"J48+K48+L48+M48+N48+O48+P48+Q48+R48+S48+T48","v":0},null,0]
[null,"0;2","ifrs-full:DividendsPaid","Dividendos reconocidos como distribuciones a los propietarios",null,null,null,null,null,null,null,null,null,null,null,null,null,null,null,null,null,0,null,0]
[null,"0;2","ifrs-full:IncreaseDecreaseThroughOtherContributionsByOwners","Incrementos por otras aportaciones de los propietarios, patrimonio",null,null,null,null,null,null,null,null,null,null,null,null,null,null,null,null,null,0,null,0]
[null,"0;2","ifrs-full:IncreaseDecreaseThroughOtherDistributionsToOwners","Disminución por otras distribuciones a los propietarios, patrimonio",null,null,null,null,null,null,null,null,null,null,null,null,null,null,null,null,null,0,null,0]
[null,"0;2","ifrs-full:IncreaseDecreaseThroughTransfersAndOtherChangesEquity","Incrementos (disminuciones) por otros cambios, patrimonio",null,null,null,null,null,null,null,null,null,null,null,null,null,null,null,null,null,0,null,0]
[null,"0;2","ifrs-full:IncreaseDecreaseThroughTreasuryShareTransactions","Incrementos (disminuciones) por transacciones con acciones propias, patrimonio",null,null,null,null,null,null,null,null,null,null,null,null,null,null,null,null,null,0,null,0]
[null,"0;2","ifrs-full:IncreaseDecreaseThroughChangesInOwnershipInterestsInSubsidiariesThatDoNotResultInLossOfControl","Incrementos (disminuciones) por cambios las participaciones en la propiedad de subsidiarias que no dan lugar a pérdida de control, patrimonio",null,null,null,null,null,null,null,null,null,null,null,null,null,null,null,null,null,0,null,0]
[null,"0;2","ifrs-full:IncreaseDecreaseThroughSharebasedPaymentTransactions","Incrementos (disminuciones) por transacciones con pagos basados en acciones, patrimonio",null,null,null,null,null,null,null,null,null,null,null,null,null,null,null,null,null,0,null,0]
[null,"0;2","ifrs-full:ChangesInEquity","Total incremento (disminución) en el patrimonio",{"$f":"E47+E48-E49+E50-E51+E52+E53+E54+E55","v":0},{"$f":"F47+F48-F49+F50-F51+F52+F53+F54+F55","v":0},0,0,0,0,0,0,0,0,0,0,0,0,0,0,0,0,{"$f":"W47+W48-W49+W50-W51+W52+W53+W54+W55","v":0},{"$f":"X47+X48-X49+X50-X51+X52+X53+X54+X55","v":0}]
[null,"0;2","co-svsp-core_2017-12-31:EquityEndOfPeriod","Patrimonio al final del periodo",{"$f":"+E42+E56","v":0},{"$f":"+F42+F56","v":0},0,0,0,0,0,0,0,0,0,0,0,0,0,0,0,0,{"$f":"+W42+W56","v":0},{"$f":"E57+F57-G57+H57+V57+W57","v":0},null,null,{"$f":"IF(X57='210000 - Est. Situa. Financiera'!F76,\"CORRECTO\",\"La información registrada en este formulario para '\"&D57&\"' en la columna '\"&$X$12&\"' para del periodo anterior, debe ser igual al reportado en el formulario Estado de Situación Financiera\")","v":"La información registrada en este formulario para 'Patrimonio al final del periodo' en la columna 'Patrimonio [miembro]' para del periodo anterior, debe ser igual al reportado en el formulario Estado de Situación Financiera"},null,{"$f":"IF(AA57=\"CORRECTO\",0,1)","v":1}]

{"sheet":"Data","index":20,"n_rows":8010,"n_cols":25,"rows_kept":8010,"cut":false,"hidden":true,"merged":[]}
["RowId","Footnote","Local Primary Item","Primary Item","Decimals","UnitRef","Fact","Identifier","IdentifierSchema","PeriodInitDuration","PeriodEndInstant","Dimension","DimensionMember","Dimension","DimensionMember","Dimension","DimensionMember","Dimension","DimensionMember","Dimension","DimensionMember","Dimension","DimensionMember","Dimension","DimensionMember"]
["/* "]
["/* "]
["/*"]
["/**OutputHeader","xmlns:xbrli = 'http://www.xbrl.org/2003/instance'"]
["/**OutputHeader","xmlns:link = 'http://www.xbrl.org/2003/linkbase'"]
["/**OutputHeader","xmlns:xlink = 'http://www.w3.org/1999/xlink'"]
["/**OutputHeader","xmlns:xsi='http://www.w3.org/2001/XMLSchema-instance'"]
["/**OutputHeader","xmlns:iso4217='http://www.xbrl.org/2003/iso4217'"]
["/**OutputHeader","xmlns:xbrldi='http://xbrl.org/2006/xbrldi'"]
["/**OutputHeader","xmlns:rsu='http://www.reportingstandard.com/userDefinedUnits'"]
["/**OutputHeader","xmlns:ifrs-full='http://xbrl.ifrs.org/taxonomy/2017-03-09/ifrs-full'"]
["/**OutputHeader","xmlns:co-svsp-core_2017-12-31='http://www.supervigilancia.gov.co/tools/Taxonomias/2017-12-31/'"]
["/**OutputHeader","link:schemaRef xlink:type='simple' xlink:href='http://www.juancarlosrodriguezrivera.com/Taxonomy/SVSP/Taxonomias/2017-12-31/Grupo1_2017-12-31.xsd'"]
["/**OutputMiddle","<xbrli:unit id=\"peso\">\n<xbrli:measure>iso4217:COP</xbrli:measure>\n</xbrli:unit>",null,"<xbrli:unit id=\"peso\">\n<xbrli:measure>iso4217:","COP","</xbrli:measure>\n</xbrli:unit>"]
["/**OutputMiddle","<xbrli:unit id=\"entero\">\n<xbrli:measure>xbrli:pure</xbrli:measure>\n</xbrli:unit>",null,"<xbrli:unit id=\"entero\">\n<xbrli:measure>xbrli:","pure","</xbrli:measure>\n</xbrli:unit>"]
["/**OutputMiddle","<xbrli:unit id=\"pesoXaccion\">    <xbrli:divide>\n      <xbrli:unitNumerator>\n      <xbrli:measure>iso4217:COP</xbrli:measure>\n      </xbrli:unitNumerator>\n      <xbrli:unitDenominator>\n      <xbrli:measure>xbrli:shares</xbrli:measure>\n      </xbrli:unitDenominator>\n    </xbrli:divide>\n</xbrli:unit>",null,"<xbrli:unit id=\"pesoXaccion\">","    <xbrli:divide>\n      <xbrli:unitNumerator>\n      <xbrli:measure>iso4217:COP</xbrli:measure>\n      </xbrli:unitNumerator>\n      <xbrli:unitDenominator>\n      <xbrli:measure>xbrli:shares</xbrli:measure>\n      </xbrli:unitDenominator>\n    </xbrli:divide>\n","</xbrli:unit>"]
["/**OutputMiddle","<xbrli:unit id=\"porcentaje\">\n<xbrli:measure>xbrli:pure</xbrli:measure>\n</xbrli:unit>",null,"<xbrli:unit id=\"porcentaje\">\n<xbrli:measure>xbrli:","pure","</xbrli:measure>\n</xbrli:unit>"]
["/**OutputMiddle","<xbrli:unit id=\"decimal\">\n<xbrli:measure>xbrli:pure</xbrli:measure>\n</xbrli:unit>",null,"<xbrli:unit id=\"decimal\">\n<xbrli:measure>xbrli:","pure","</xbrli:measure>\n</xbrli:unit>"]
["/**OutputMiddle","<xbrli:unit id=\"acciones\">\n<xbrli:measure>xbrli:shares</xbrli:measure>\n</xbrli:unit>",null,"<xbrli:unit id=\"acciones\">\n<xbrli:measure>xbrli:","shares","</xbrli:measure>\n</xbrli:unit>"]
["/**OutputMiddle","<xbrli:unit id=\"indefinido\">\n<xbrli:measure>rsu:undefined</xbrli:measure>\n</xbrli:unit>",null,"<xbrli:unit id=\"indefinido\">\n<xbrli:measure>xbrli:","rsu:undefined","</xbrli:measure>\n</xbrli:unit>"]
["/**FootnoteLang","\"en\""]
["/**OutputTail","</xbrli:xbrl>"]
["/*"]
[null,"_1-peso",null,null,0,"peso",null,{"$f":"'110000 - Carátula'!$E$11","v":0},"http://www.xbrl.org/scheme/companyName"]
[null,"_2-vacio",null,null,null,null,null,{"$f":"'110000 - Carátula'!$E$11","v":0},"http://www.xbrl.org/scheme/companyName"]
[null,"_3-entero",null,null,0,"entero",null,{"$f":"'110000 - Carátula'!$E$11","v":0},"http://www.xbrl.org/scheme/companyName"]
[null,"_4-pesoXaccion",null,null,"INF","pesoXaccion",null,{"$f":"'110000 - Carátula'!$E$11","v":0},"http://www.xbrl.org/scheme/companyName"]
[null,"_5-porcentaje",null,null,"INF","porcentaje",null,{"$f":"'110000 - Carátula'!$E$11","v":0},"http://www.xbrl.org/scheme/companyName"]
[null,"_6-decimal",null,null,"INF","decimal",null,{"$f":"'110000 - Carátula'!$E$11","v":0},"http://www.xbrl.org/scheme/companyName"]
[null,"_7-acciones",null,null,"INF","acciones",null,{"$f":"'110000 - Carátula'!$E$11","v":0},"http://www.xbrl.org/scheme/companyName"]
["/*"]
[{"$f":"IF(G33=\"\",\"/*\",\"\")","v":"/*"}]
["/*",null,"110000 - Carátula"]
["/*",null,"--01--"]
["/*",null,{"$f":"'110000 - Carátula'!$D$10","v":"Datos Básicos"},{"$f":"'110000 - Carátula'!$C$10","v":"co-svsp-core_2017-12-31:DatosBasicos"}]
["",null,{"$f":"'110000 - Carátula'!$D$11","v":"NIT"},{"$f":"'110000 - Carátula'!$C$11","v":"co-svsp-core_2017-12-31:NIT"},null,null,{"$f":"'110000 - Carátula'!$E$11","v":0},800001965,"http://www.xbrl.org/scheme/companyName",null,{"$f":"Periodos!$C$4","v":"2017-12-31"}]
["/*",null,{"$f":"'110000 - Carátula'!$D$12","v":"DV"},{"$f":"'110000 - Carátula'!$C$12","v":"co-svsp-core_2017-12-31:DV"}]
["",null,{"$f":"'110000 - Carátula'!$D$13","v":"Fecha de Corte"},{"$f":"'110000 - Carátula'!$C$13","v":"co-svsp-core_2017-12-31:FechadeCorte"},null,null,{"$f":"'110000 - Carátula'!$E$13","v":"2017-12-31"},800001965,"http://www.xbrl.org/scheme/companyName",null,{"$f":"Periodos!$C$4","v":"2017-12-31"}]
["/*",null,{"$f":"'110000 - Carátula'!$D$14","v":"Se reunió el máximo Órgano Social para considerar los Estados Financieros"},{"$f":"'110000 - Carátula'!$C$14","v":"co-svsp-core_2017-12-31:SereunioelmaximoOrganoSocialparaconsiderarlosEstadosFinancieros"}]
["/*",null,{"$f":"'110000 - Carátula'!$D$15","v":"Acta Número"},{"$f":"'110000 - Carátula'!$C$15","v":"co-svsp-core_2017-12-31:ActaNumero"}]
["/*",null,{"$f":"'110000 - Carátula'!$D$16","v":"Fecha del Acta"},{"$f":"'110000 - Carátula'!$C$16","v":"co-svsp-core_2017-12-31:FechadelActa"}]
["/*",null,{"$f":"'110000 - Carátula'!$D$17","v":"Fueron aprobados en Asamblea General de Accionistas o la Junta de Socios"},{"$f":"'110000 - Carátula'!$C$17","v":"co-svsp-core_2017-12-31:FueronaprobadosenAsambleaGeneraldeAccionistasolaJuntadeSocios"}]
["/*",null,{"$f":"'110000 - Carátula'!$D$18","v":"Información General"},{"$f":"'110000 - Carátula'!$C$18","v":"co-svsp-core_2017-12-31:InformacionGeneral"}]
["/*",null,{"$f":"'110000 - Carátula'!$D$19","v":"Razón Social"},{"$f":"'110000 - Carátula'!$C$19","v":"co-svsp-core_2017-12-31:RazonSocial"}]
["/*",null,{"$f":"'110000 - Carátula'!$D$20","v":"Objeto Social Principal"},{"$f":"'110000 - Carátula'!$C$20","v":"co-svsp-core_2017-12-31:ObjetoSocialPrincipal"}]
["/*",null,{"$f":"'110000 - Carátula'!$D$21","v":"Clasificación Industrial Internacional Uniforme Versión 4 A.C"},{"$f":"'110000 - Carátula'!$C$21","v":"co-svsp-core_2017-12-31:ClasificacionIndustrialInternacionalUniformeVersion4AC"}]
["/*",null,{"$f":"'110000 - Carátula'!$D$22","v":"Grupo de Preparadores de Información Financiera"},{"$f":"'110000 - Carátula'!$C$22","v":"co-svsp-core_2017-12-31:GrupodePreparadoresdeInformacionFinanciera"}]
["/*",null,{"$f":"'110000 - Carátula'!$D$23","v":"Naturaleza de la Empresa"},{"$f":"'110000 - Carátula'!$C$23","v":"co-svsp-core_2017-12-31:NaturalezadelaEmpresa"}]
["/*",null,{"$f":"'110000 - Carátula'!$D$24","v":"Tipo Societario"},{"$f":"'110000 - Carátula'!$C$24","v":"co-svsp-core_2017-12-31:TipoSocietario"}]
["/*",null,{"$f":"'110000 - Carátula'!$D$25","v":"Estado de la Empresa"},{"$f":"'110000 - Carátula'!$C$25","v":"co-svsp-core_2017-12-31:EstadoDeLaEmpresa"}]
["/*",null,{"$f":"'110000 - Carátula'!$D$26","v":"Dirección de Notificación Judicial"},{"$f":"'110000 - Carátula'!$C$26","v":"co-svsp-core_2017-12-31:DirecciondeNotificacionJudicial"}]
["/*",null,{"$f":"'110000 - Carátula'!$D$27","v":"Departamento de Notificación Judicial"},{"$f":"'110000 - Carátula'!$C$27","v":"co-svsp-core_2017-12-31:DepartamentodeNotificacionJudicial"}]
["/*",null,{"$f":"'110000 - Carátula'!$D$28","v":"Ciudad de Notificación Judicial"},{"$f":"'110000 - Carátula'!$C$28","v":"co-svsp-core_2017-12-31:CiudaddeNotificacionJudicial"}]
["/*",null,{"$f":"'110000 - Carátula'!$D$29","v":"E-mail Empresarial de Notificación Judicial"},{"$f":"'110000 - Carátula'!$C$29","v":"co-svsp-core_2017-12-31:EmailEmpresarialdeNotificacionJudicial"}]
["/*",null,{"$f":"'110000 - Carátula'!$D$30","v":"Celular"},{"$f":"'110000 - Carátula'!$C$30","v":"co-svsp-core_2017-12-31:Celular"}]
["/*",null,{"$f":"'110000 - Carátula'!$D$31","v":"Teléfono Fijo"},{"$f":"'110000 - Carátula'!$C$31","v":"co-svsp-core_2017-12-31:TelefonoFijo"}]
["/*",null,{"$f":"'110000 - Carátula'!$D$32","v":"Información ante Supervigilancia"},{"$f":"'110000 - Carátula'!$C$32","v":"co-svsp-core_2017-12-31:InformacionAnteSupervigilancia"}]
["/*",null,{"$f":"'110000 - Carátula'!$D$33","v":"Estado de Licencia de Funcionamiento"},{"$f":"'110000 - Carátula'!$C$33","v":"co-svsp-core_2017-12-31:EstadoDeLicenciaDeFuncionamiento"}]
["/*",null,{"$f":"'110000 - Carátula'!$D$34","v":"Tipo de Servicio"},{"$f":"'110000 - Carátula'!$C$34","v":"co-svsp-core_2017-12-31:TipoDeServicio"}]
["/*",null,{"$f":"'110000 - Carátula'!$D$35","v":"Información sobre la Revisoría Fiscal"},{"$f":"'110000 - Carátula'!$C$35","v":"co-svsp-core_2017-12-31:InformacionSobreLaRevisoriaFiscal"}]
["/*",null,{"$f":"'110000 - Carátula'!$D$36","v":"¿La compañía esta obligada a tener revisor fiscal?"},{"$f":"'110000 - Carátula'!$C$36","v":"co-svsp-core_2017-12-31:LaCompaniaEstaObligadaARevisorFiscal"}]
["/*",null,{"$f":"'110000 - Carátula'!$D$37","v":"¿El revisor fiscal pertenece a una firma?"},{"$f":"'110000 - Carátula'!$C$37","v":"co-svsp-core_2017-12-31:RevisorFiscalPerteneceAFirma"}]
["/*",null,{"$f":"'110000 - Carátula'!$D$38","v":"¿A que firma pertenece el revisor fiscal?"},{"$f":"'110000 - Carátula'!$C$38","v":"co-svsp-core_2017-12-31:RazonSocialRevisorFiscalPersonaJurídica"}]
["/*",null,{"$f":"'110000 - Carátula'!$D$39","v":"Dirección de Domicilio de la firma a la cual pertenece el revisor fiscal"},{"$f":"'110000 - Carátula'!$C$39","v":"co-svsp-core_2017-12-31:DirecciondeDomicilioRevisorFiscalPersonaJurídica"}]
["/*",null,{"$f":"'110000 - Carátula'!$D$40","v":"Registro en la Junta Central de Contadores del Revisor fiscal"},{"$f":"'110000 - Carátula'!$C$40","v":"co-svsp-core_2017-12-31:RegistroJCCRevisorFiscalPersonaJurídica"}]
["/*",null,{"$f":"'110000 - Carátula'!$D$41","v":"Información sobre consolidación de Estados Financieros"},{"$f":"'110000 - Carátula'!$C$41","v":"co-svsp-core_2017-12-31:InformacionSobreConsolidacionDeEstadosFinancieros"}]
["/*",null,{"$f":"'110000 - Carátula'!$D$42","v":"¿La compañía es responsable de consolidar información para este periodo?"},{"$f":"'110000 - Carátula'!$C$42","v":"co-svsp-core_2017-12-31:LaCompaniaEsResponsableDeConsolidarInformacionParaEstePeriodo"}]
["/*",null,{"$f":"'110000 - Carátula'!$D$43","v":"¿La compañía es subordinada o asociada de otra compañía?"},{"$f":"'110000 - Carátula'!$C$43","v":"co-svsp-core_2017-12-31:LaCompaniaEsSubordinadaOAsociadaDeOtraCompania"}]
["/*",null,{"$f":"'110000 - Carátula'!$D$44","v":"¿La compañía tiene subordinadas?"},{"$f":"'110000 - Carátula'!$C$44","v":"co-svsp-core_2017-12-31:LaCompaniaTieneSubordinadas"}]
["/*",null,{"$f":"'110000 - Carátula'!$D$45","v":"¿La compañía tiene asociadas?"},{"$f":"'110000 - Carátula'!$C$45","v":"co-svsp-core_2017-12-31:LaCompaniaTieneAsociadas"}]
["/*",null,{"$f":"'110000 - Carátula'!$D$46","v":"¿La compañía tiene negocios conjuntos?"},{"$f":"'110000 - Carátula'!$C$46","v":"co-svsp-core_2017-12-31:LaCompaniaTieneNegociosConjuntos"}]
["/*"]
["/*",null,"110010 GeneraXBRL"]
["/*",null,"--01--"]
["/*",null,{"$f":"'110010 GeneraXBRL'!$D$11","v":"Tipo de documento"},{"$f":"'110010 GeneraXBRL'!$C$11","v":"co-svsp-core_2017-12-31:TipoDeDocumento"}]
["/*",null,{"$f":"'110010 GeneraXBRL'!$D$12","v":"Numero de documento"},{"$f":"'110010 GeneraXBRL'!$C$12","v":"co-svsp-core_2017-12-31:NumeroDeDocumento"}]
["/*",null,{"$f":"'110010 GeneraXBRL'!$D$13","v":"Nombres"},{"$f":"'110010 GeneraXBRL'!$C$13","v":"co-svsp-core_2017-12-31:Nombres"}]
["/*",null,{"$f":"'110010 GeneraXBRL'!$D$14","v":"Apellidos"},{"$f":"'110010 GeneraXBRL'!$C$14","v":"co-svsp-core_2017-12-31:Apellidos"}]
["/*",null,{"$f":"'110010 GeneraXBRL'!$D$15","v":"Email"},{"$f":"'110010 GeneraXBRL'!$C$15","v":"co-svsp-core_2017-12-31:Email"}]
["/*",null,{"$f":"'110010 GeneraXBRL'!$D$16","v":"Tarjeta profesional"},{"$f":"'110010 GeneraXBRL'!$C$16","v":"co-svsp-core_2017-12-31:TarjetaProfesional"}]
["/*",null,"--02--"]
["/*",null,{"$f":"'110010 GeneraXBRL'!$D$11","v":"Tipo de documento"},{"$f":"'110010 GeneraXBRL'!$C$11","v":"co-svsp-core_2017-12-31:TipoDeDocumento"}]
["/*",null,{"$f":"'110010 GeneraXBRL'!$D$12","v":"Numero de documento"},{"$f":"'110010 GeneraXBRL'!$C$12","v":"co-svsp-core_2017-12-31:NumeroDeDocumento"}]
["/*",null,{"$f":"'110010 GeneraXBRL'!$D$13","v":"Nombres"},{"$f":"'110010 GeneraXBRL'!$C$13","v":"co-svsp-core_2017-12-31:Nombres"}]
["/*",null,{"$f":"'110010 GeneraXBRL'!$D$14","v":"Apellidos"},{"$f":"'110010 GeneraXBRL'!$C$14","v":"co-svsp-core_2017-12-31:Apellidos"}]
["/*",null,{"$f":"'110010 GeneraXBRL'!$D$15","v":"Email"},{"$f":"'110010 GeneraXBRL'!$C$15","v":"co-svsp-core_2017-12-31:Email"}]
["/*",null,{"$f":"'110010 GeneraXBRL'!$D$16","v":"Tarjeta profesional"},{"$f":"'110010 GeneraXBRL'!$C$16","v":"co-svsp-core_2017-12-31:TarjetaProfesional"}]
["/*",null,"--03--"]
["/*",null,{"$f":"'110010 GeneraXBRL'!$D$11","v":"Tipo de documento"},{"$f":"'110010 GeneraXBRL'!$C$11","v":"co-svsp-core_2017-12-31:TipoDeDocumento"}]
["/*",null,{"$f":"'110010 GeneraXBRL'!$D$12","v":"Numero de documento"},{"$f":"'110010 GeneraXBRL'!$C$12","v":"co-svsp-core_2017-12-31:NumeroDeDocumento"}]
["/*",null,{"$f":"'110010 GeneraXBRL'!$D$13","v":"Nombres"},{"$f":"'110010 GeneraXBRL'!$C$13","v":"co-svsp-core_2017-12-31:Nombres"}]
["/*",null,{"$f":"'110010 GeneraXBRL'!$D$14","v":"Apellidos"},{"$f":"'110010 GeneraXBRL'!$C$14","v":"co-svsp-core_2017-12-31:Apellidos"}]
["/*",null,{"$f":"'110010 GeneraXBRL'!$D$15","v":"Email"},{"$f":"'110010 GeneraXBRL'!$C$15","v":"co-svsp-core_2017-12-31:Email"}]
["/*",null,{"$f":"'110010 GeneraXBRL'!$D$16","v":"Tarjeta profesional"},{"$f":"'110010 GeneraXBRL'!$C$16","v":"co-svsp-core_2017-12-31:TarjetaProfesional"}]
["/*"]
[{"$f":"IF(G97=\"\",\"/*\",\"\")","v":"/*"},null,"210000 - Est. Situa. Financiera"]
["/*",null,"--01--"]
["/*",null,{"$f":"'210000 - Est. Situa. Financiera'!$D$11","v":"Estado de situación financiera [resumen]"},{"$f":"'210000 - Est. Situa. Financiera'!$C$11","v":"ifrs-full:StatementOfFinancialPositionAbstract"}]
["/*",null,{"$f":"'210000 - Est. Situa. Financiera'!$D$12","v":"Activos [resumen]"},{"$f":"'210000 - Est. Situa. Financiera'!$C$12","v":"ifrs-full:AssetsAbstract"}]
["/*",null,{"$f":"'210000 - Est. Situa. Financiera'!$D$13","v":"Activos corrientes [resumen]"},{"$f":"'210000 - Est. Situa. Financiera'!$C$13","v":"ifrs-full:CurrentAssetsAbstract"}]
["/*",null,{"$f":"'210000 - Est. Situa. Financiera'!$D$14","v":"Efectivo y equivalentes al efectivo"},{"$f":"'210000 - Est. Situa. Financiera'!$C$14","v":"ifrs-full:CashAndCashEquivalents"}]
["/*",null,{"$f":"'210000 - Est. Situa. Financiera'!$D$15","v":"Inventarios corrientes"},{"$f":"'210000 - Est. Situa. Financiera'!$C$15","v":"ifrs-full:Inventories"}]
["/*",null,{"$f":"'210000 - Est. Situa. Financiera'!$D$16","v":"Activos por impuestos corrientes, corriente"},{"$f":"'210000 - Est. Situa. Financiera'!$C$16","v":"ifrs-full:CurrentTaxAssetsCurrent"}]
["",null,{"$f":"'210000 - Est. Situa. Financiera'!$D$17","v":"Cuentas comerciales por cobrar y otras cuentas por cobrar corrientes"},{"$f":"'210000 - Est. Situa. Financiera'!$C$17","v":"ifrs-full:TradeAndOtherCurrentReceivables"},0,"peso",{"$f":"'210000 - Est. Situa. Financiera'!$E$17","v":0},800001965,"http://www.xbrl.org/scheme/companyName",null,{"$f":"Periodos!$C$4","v":"2017-12-31"}]
["/*",null,{"$f":"'210000 - Est. Situa. Financiera'!$D$18","v":"Activos biológicos corrientes"},{"$f":"'210000 - Est. Situa. Financiera'!$C$18","v":"ifrs-full:CurrentBiologicalAssets"}]
["/*",null,{"$f":"'210000 - Est. Situa. Financiera'!$D$19","v":"Otros activos financieros corrientes"},{"$f":"'210000 - Est. Situa. Financiera'!$C$19","v":"ifrs-full:OtherCurrentFinancialAssets"}]
["/*",null,{"$f":"'210000 - Est. Situa. Financiera'!$D$20","v":"Otros activos no financieros corrientes"},{"$f":"'210000 - Est. Situa. Financiera'!$C$20","v":"ifrs-full:OtherCurrentNonfinancialAssets"}]
["/*",null,{"$f":"'210000 - Est. Situa. Financiera'!$D$21","v":"Activos corrientes distintos al efectivo pignorados como garantía colateral para las que el receptor de transferencias tiene derecho por contrato o costumbre a vender o pignorar de nuevo dicha garantía colateral"},{"$f":"'210000 - Est. Situa. Financiera'!$C$21","v":"ifrs-full:CurrentNoncashAssetsPledgedAsCollateralForWhichTransfereeHasRightByContractOrCustomToSellOrRepledgeCollateral"}]
["/*",null,{"$f":"'210000 - Est. Situa. Financiera'!$D$22","v":"Total activos corrientes distintos de los activos no corrientes o grupo de activos para su disposición clasificados como mantenidos para la venta o como mantenidos para distribuir a los propietarios"},{"$f":"'210000 - Est. Situa. Financiera'!$C$22","v":"ifrs-full:CurrentAssetsOtherThanAssetsOrDisposalGroupsClassifiedAsHeldForSaleOrAsHeldForDistributionToOwners"}]
["/*",null,{"$f":"'210000 - Est. Situa. Financiera'!$D$23","v":"Activos no corrientes o grupos de activos para su disposición clasificados como mantenidos para la venta o como mantenidos para distribuir a los propietarios"},{"$f":"'210000 - Est. Situa. Financiera'!$C$23","v":"ifrs-full:NoncurrentAssetsOrDisposalGroupsClassifiedAsHeldForSaleOrAsHeldForDistributionToOwners"}]
["/*",null,{"$f":"'210000 - Est. Situa. Financiera'!$D$24","v":"Activos corrientes totales"},{"$f":"'210000 - Est. Situa. Financiera'!$C$24","v":"ifrs-full:CurrentAssets"}]
["/*",null,{"$f":"'210000 - Est. Situa. Financiera'!$D$25","v":"Activos no corrientes [resumen]"},{"$f":"'210000 - Est. Situa. Financiera'!$C$25","v":"ifrs-full:NoncurrentAssetsAbstract"}]
["/*",null,{"$f":"'210000 - Est. Situa. Financiera'!$D$26","v":"Propiedad de inversión"},{"$f":"'210000 - Est. Situa. Financiera'!$C$26","v":"ifrs-full:InvestmentProperty"}]
["",null,{"$f":"'210000 - Est. Situa. Financiera'!$D$27","v":"Propiedades, planta y equipo"},{"$f":"'210000 - Est. Situa. Financiera'!$C$27","v":"ifrs-full:PropertyPlantAndEquipment"},0,"peso",{"$f":"'210000 - Est. Situa. Financiera'!$E$27","v":0},800001965,"http://www.xbrl.org/scheme/companyName",null,{"$f":"Periodos!$C$4","v":"2017-12-31"}]
["/*",null,{"$f":"'210000 - Est. Situa. Financiera'!$D$28","v":"Plusvalía"},{"$f":"'210000 - Est. Situa. Financiera'!$C$28","v":"ifrs-full:Goodwill"}]
["/*",null,{"$f":"'210000 - Est. Situa. Financiera'!$D$29","v":"Activos intangibles distintos de la plusvalía"},{"$f":"'210000 - Est. Situa. Financiera'!$C$29","v":"ifrs-full:IntangibleAssetsOtherThanGoodwill"}]
["/*",null,{"$f":"'210000 - Est. Situa. Financiera'!$D$30","v":"Inversiones contabilizadas utilizando el método de la participación"},{"$f":"'210000 - Est. Situa. Financiera'!$C$30","v":"ifrs-full:InvestmentAccountedForUsingEquityMethod"}]
["/*",null,{"$f":"'210000 - Est. Situa. Financiera'!$D$31","v":"Inversiones en subsidiarias, negocios conjuntos y asociadas"},{"$f":"'210000 - Est. Situa. Financiera'!$C$31","v":"ifrs-full:InvestmentsInSubsidiariesJointVenturesAndAssociates"}]
["/*",null,{"$f":"'210000 - Est. Situa. Financiera'!$D$32","v":"Activos biológicos no corrientes"},{"$f":"'210000 - Est. Situa. Financiera'!$C$32","v":"ifrs-full:NoncurrentBiologicalAssets"}]
["",null,{"$f":"'210000 - Est. Situa. Financiera'!$D$33","v":"Cuentas comerciales por cobrar y otras cuentas por cobrar no corrientes"},{"$f":"'210000 - Est. Situa. Financiera'!$C$33","v":"ifrs-full:NoncurrentReceivables"},0,"peso",{"$f":"'210000 - Est. Situa. Financiera'!$E$33","v":0},800001965,"http://www.xbrl.org/scheme/companyName",null,{"$f":"Periodos!$C$4","v":"2017-12-31"}]
["/*",null,{"$f":"'210000 - Est. Situa. Financiera'!$D$34","v":"Inventarios no corrientes"},{"$f":"'210000 - Est. Situa. Financiera'!$C$34","v":"ifrs-full:NoncurrentInventories"}]
["/*",null,{"$f":"'210000 - Est. Situa. Financiera'!$D$35","v":"Activos por impuestos diferidos"},{"$f":"'210000 - Est. Situa. Financiera'!$C$35","v":"ifrs-full:DeferredTaxAssets"}]
["/*",null,{"$f":"'210000 - Est. Situa. Financiera'!$D$36","v":"Activos por impuestos corrientes, no corriente"},{"$f":"'210000 - Est. Situa. Financiera'!$C$36","v":"ifrs-full:CurrentTaxAssetsNoncurrent"}]
["/*",null,{"$f":"'210000 - Est. Situa. Financiera'!$D$37","v":"Otros activos financieros no corrientes"},{"$f":"'210000 - Est. Situa. Financiera'!$C$37","v":"ifrs-full:OtherNoncurrentFinancialAssets"}]
["/*",null,{"$f":"'210000 - Est. Situa. Financiera'!$D$38","v":"Otros activos no financieros no corrientes"},{"$f":"'210000 - Est. Situa. Financiera'!$C$38","v":"ifrs-full:OtherNoncurrentNonfinancialAssets"}]
["/*",null,{"$f":"'210000 - Est. Situa. Financiera'!$D$39","v":"Activos no corrientes distintos al efectivo pignorados como garantía colateral para las que el receptor de transferencias tiene derecho por contrato o costumbre a vender o pignorar de nuevo la garantía colateral"},{"$f":"'210000 - Est. Situa. Financiera'!$C$39","v":"ifrs-full:NoncurrentNoncashAssetsPledgedAsCollateralForWhichTransfereeHasRightByContractOrCustomToSellOrRepledgeCollateral"}]
["/*",null,{"$f":"'210000 - Est. Situa. Financiera'!$D$40","v":"Total de activos no corrientes"},{"$f":"'210000 - Est. Situa. Financiera'!$C$40","v":"ifrs-full:NoncurrentAssets"}]
["/*",null,{"$f":"'210000 - Est. Situa. Financiera'!$D$41","v":"Total de activos"},{"$f":"'210000 - Est. Situa. Financiera'!$C$41","v":"ifrs-full:Assets"}]
["/*",null,{"$f":"'210000 - Est. Situa. Financiera'!$D$42","v":"Patrimonio y pasivos [resumen]"},{"$f":"'210000 - Est. Situa. Financiera'!$C$42","v":"ifrs-full:EquityAndLiabilitiesAbstract"}]
["/*",null,{"$f":"'210000 - Est. Situa. Financiera'!$D$43","v":"Pasivos [resumen]"},{"$f":"'210000 - Est. Situa. Financiera'!$C$43","v":"ifrs-full:LiabilitiesAbstract"}]
["/*",null,{"$f":"'210000 - Est. Situa. Financiera'!$D$44","v":"Pasivos corrientes [resumen]"},{"$f":"'210000 - Est. Situa. Financiera'!$C$44","v":"ifrs-full:CurrentLiabilitiesAbstract"}]
["/*",null,{"$f":"'210000 - Est. Situa. Financiera'!$D$45","v":"Disposiciones actuales [resumen]"},{"$f":"'210000 - Est. Situa. Financiera'!$C$45","v":"ifrs-full:CurrentProvisionsAbstract"}]
["/*",null,{"$f":"'210000 - Est. Situa. Financiera'!$D$46","v":"Provisiones corrientes por beneficios a los empleados"},{"$f":"'210000 - Est. Situa. Financiera'!$C$46","v":"ifrs-full:CurrentProvisionsForEmployeeBenefits"}]
["/*",null,{"$f":"'210000 - Est. Situa. Financiera'!$D$47","v":"Otras provisiones corrientes"},{"$f":"'210000 - Est. Situa. Financiera'!$C$47","v":"ifrs-full:OtherShorttermProvisions"}]
["/*",null,{"$f":"'210000 - Est. Situa. Financiera'!$D$48","v":"Total provisiones corrientes"},{"$f":"'210000 - Est. Situa. Financiera'!$C$48","v":"ifrs-full:CurrentProvisions"}]
["/*",null,{"$f":"'210000 - Est. Situa. Financiera'!$D$49","v":"Cuentas por pagar comerciales y otras cuentas por pagar"},{"$f":"'210000 - Est. Situa. Financiera'!$C$49","v":"ifrs-full:TradeAndOtherCurrentPayables"}]
["/*",null,{"$f":"'210000 - Est. Situa. Financiera'!$D$50","v":"Pasivos por impuestos corrientes, corriente"},{"$f":"'210000 - Est. Situa. Financiera'!$C$50","v":"ifrs-full:CurrentTaxLiabilitiesCurrent"}]
["/*",null,{"$f":"'210000 - Est. Situa. Financiera'!$D$51","v":"Otros pasivos financieros corrientes"},{"$f":"'210000 - Est. Situa. Financiera'!$C$51","v":"ifrs-full:OtherCurrentFinancialLiabilities"}]
["/*",null,{"$f":"'210000 - Est. Situa. Financiera'!$D$52","v":"Otros pasivos no financieros corrientes"},{"$f":"'210000 - Est. Situa. Financiera'!$C$52","v":"ifrs-full:OtherCurrentNonfinancialLiabilities"}]
["/*",null,{"$f":"'210000 - Est. Situa. Financiera'!$D$53","v":"Total de pasivos corrientes distintos de los pasivos incluidos en grupos de activos para su disposición clasificados como mantenidos para la venta"},{"$f":"'210000 - Est. Situa. Financiera'!$C$53","v":"ifrs-full:CurrentLiabilitiesOtherThanLiabilitiesIncludedInDisposalGroupsClassifiedAsHeldForSale"}]
["/*",null,{"$f":"'210000 - Est. Situa. Financiera'!$D$54","v":"Pasivos incluidos en grupos de activos para su disposición clasificados como mantenidos para la venta"},{"$f":"'210000 - Est. Situa. Financiera'!$C$54","v":"ifrs-full:LiabilitiesIncludedInDisposalGroupsClassifiedAsHeldForSale"}]
["/*",null,{"$f":"'210000 - Est. Situa. Financiera'!$D$55","v":"Pasivos corrientes totales"},{"$f":"'210000 - Est. Situa. Financiera'!$C$55","v":"ifrs-full:CurrentLiabilities"}]
["/*",null,{"$f":"'210000 - Est. Situa. Financiera'!$D$56","v":"Pasivos no corrientes [resumen]"},{"$f":"'210000 - Est. Situa. Financiera'!$C$56","v":"ifrs-full:NoncurrentLiabilitiesAbstract"}]
["/*",null,{"$f":"'210000 - Est. Situa. Financiera'!$D$57","v":"Provisiones no corrientes [resumen]"},{"$f":"'210000 - Est. Situa. Financiera'!$C$57","v":"ifrs-full:NoncurrentProvisionsAbstract"}]
["/*",null,{"$f":"'210000 - Est. Situa. Financiera'!$D$58","v":"Provisiones no corrientes por beneficios a los empleados"},{"$f":"'210000 - Est. Situa. Financiera'!$C$58","v":"ifrs-full:NoncurrentProvisionsForEmployeeBenefits"}]
["/*",null,{"$f":"'210000 - Est. Situa. Financiera'!$D$59","v":"Otras provisiones no corrientes"},{"$f":"'210000 - Est. Situa. Financiera'!$C$59","v":"ifrs-full:OtherLongtermProvisions"}]
["/*",null,{"$f":"'210000 - Est. Situa. Financiera'!$D$60","v":"Total provisiones no corrientes"},{"$f":"'210000 - Est. Situa. Financiera'!$C$60","v":"ifrs-full:NoncurrentProvisions"}]
["/*",null,{"$f":"'210000 - Est. Situa. Financiera'!$D$61","v":"Cuentas comerciales por pagar y otras cuentas por pagar no corrientes"},{"$f":"'210000 - Est. Situa. Financiera'!$C$61","v":"ifrs-full:NoncurrentPayables"}]
["/*",null,{"$f":"'210000 - Est. Situa. Financiera'!$D$62","v":"Pasivo por impuestos diferidos"},{"$f":"'210000 - Est. Situa. Financiera'!$C$62","v":"ifrs-full:DeferredTaxLiabilities"}]
["/*",null,{"$f":"'210000 - Est. Situa. Financiera'!$D$63","v":"Pasivos por impuestos corrientes, no corriente"},{"$f":"'210000 - Est. Situa. Financiera'!$C$63","v":"ifrs-full:CurrentTaxLiabilitiesNoncurrent"}]
["/*",null,{"$f":"'210000 - Est. Situa. Financiera'!$D$64","v":"Otros pasivos financieros no corrientes"},{"$f":"'210000 - Est. Situa. Financiera'!$C$64","v":"ifrs-full:OtherNoncurrentFinancialLiabilities"}]
["/*",null,{"$f":"'210000 - Est. Situa. Financiera'!$D$65","v":"Otros pasivos no financieros no corrientes"},{"$f":"'210000 - Est. Situa. Financiera'!$C$65","v":"ifrs-full:OtherNoncurrentNonfinancialLiabilities"}]
["/*",null,{"$f":"'210000 - Est. Situa. Financiera'!$D$66","v":"Total de pasivos no corrientes"},{"$f":"'210000 - Est. Situa. Financiera'!$C$66","v":"ifrs-full:NoncurrentLiabilities"}]
["/*",null,{"$f":"'210000 - Est. Situa. Financiera'!$D$67","v":"Total pasivos"},{"$f":"'210000 - Est. Situa. Financiera'!$C$67","v":"ifrs-full:Liabilities"}]
["/*",null,{"$f":"'210000 - Est. Situa. Financiera'!$D$68","v":"Patrimonio [resumen]"},{"$f":"'210000 - Est. Situa. Financiera'!$C$68","v":"ifrs-full:EquityAbstract"}]
["/*",null,{"$f":"'210000 - Est. Situa. Financiera'!$D$69","v":"Capital emitido: Capital social, Capital suscrito o Aportes sociales"},{"$f":"'210000 - Est. Situa. Financiera'!$C$69","v":"ifrs-full:IssuedCapital"}]
["/*",null,{"$f":"'210000 - Est. Situa. Financiera'!$D$70","v":"Ganancias acumuladas"},{"$f":"'210000 - Est. Situa. Financiera'!$C$70","v":"ifrs-full:RetainedEarnings"}]
["/*",null,{"$f":"'210000 - Est. Situa. Financiera'!$D$71","v":"Prima de emisión"},{"$f":"'210000 - Est. Situa. Financiera'!$C$71","v":"ifrs-full:SharePremium"}]
["/*",null,{"$f":"'210000 - Est. Situa. Financiera'!$D$72","v":"Acciones propias en cartera"},{"$f":"'210000 - Est. Situa. Financiera'!$C$72","v":"ifrs-full:TreasuryShares"}]
[{"$f":"IF(G161=\"\",\"/*\",\"\")","v":"/*"},null,{"$f":"'210000 - Est. Situa. Financiera'!$D$73","v":"Inversión suplementaria al capital asignado"},{"$f":"'210000 - Est. Situa. Financiera'!$C$73","v":"co-svsp-core_2017-12-31:InversionSuplementariaAlCapitalAsignado"}]
["/*",null,{"$f":"'210000 - Est. Situa. Financiera'!$D$74","v":"Otras participaciones en el patrimonio"},{"$f":"'210000 - Est. Situa. Financiera'!$C$74","v":"ifrs-full:OtherEquityInterest"}]
["/*",null,{"$f":"'210000 - Est. Situa. Financiera'!$D$75","v":"Otras reservas"},{"$f":"'210000 - Est. Situa. Financiera'!$C$75","v":"ifrs-full:OtherReserves"}]
["/*",null,{"$f":"'210000 - Est. Situa. Financiera'!$D$76","v":"Patrimonio total"},{"$f":"'210000 - Est. Situa. Financiera'!$C$76","v":"ifrs-full:Equity"}]
["/*",null,{"$f":"'210000 - Est. Situa. Financiera'!$D$77","v":"Total de patrimonio y pasivos"},{"$f":"'210000 - Est. Situa. Financiera'!$C$77","v":"ifrs-full:EquityAndLiabilities"}]
["/*",null,"--02--"]
["/*",null,{"$f":"'210000 - Est. Situa. Financiera'!$D$11","v":"Estado de situación financiera [resumen]"},{"$f":"'210000 - Est. Situa. Financiera'!$C$11","v":"ifrs-full:StatementOfFinancialPositionAbstract"}]
["/*",null,{"$f":"'210000 - Est. Situa. Financiera'!$D$12","v":"Activos [resumen]"},{"$f":"'210000 - Est. Situa. Financiera'!$C$12","v":"ifrs-full:AssetsAbstract"}]
["/*",null,{"$f":"'210000 - Est. Situa. Financiera'!$D$13","v":"Activos corrientes [resumen]"},{"$f":"'210000 - Est. Situa. Financiera'!$C$13","v":"ifrs-full:CurrentAssetsAbstract"}]
["/*",null,{"$f":"'210000 - Est. Situa. Financiera'!$D$14","v":"Efectivo y equivalentes al efectivo"},{"$f":"'210000 - Est. Situa. Financiera'!$C$14","v":"ifrs-full:CashAndCashEquivalents"}]
["/*",null,{"$f":"'210000 - Est. Situa. Financiera'!$D$15","v":"Inventarios corrientes"},{"$f":"'210000 - Est. Situa. Financiera'!$C$15","v":"ifrs-full:Inventories"}]
["/*",null,{"$f":"'210000 - Est. Situa. Financiera'!$D$16","v":"Activos por impuestos corrientes, corriente"},{"$f":"'210000 - Est. Situa. Financiera'!$C$16","v":"ifrs-full:CurrentTaxAssetsCurrent"}]
["",null,{"$f":"'210000 - Est. Situa. Financiera'!$D$17","v":"Cuentas comerciales por cobrar y otras cuentas por cobrar corrientes"},{"$f":"'210000 - Est. Situa. Financiera'!$C$17","v":"ifrs-full:TradeAndOtherCurrentReceivables"},0,"peso",{"$f":"'210000 - Est. Situa. Financiera'!$F$17","v":0},800001965,"http://www.xbrl.org/scheme/companyName",null,{"$f":"Periodos!$D$4","v":"2016-12-31"}]
["/*",null,{"$f":"'210000 - Est. Situa. Financiera'!$D$18","v":"Activos biológicos corrientes"},{"$f":"'210000 - Est. Situa. Financiera'!$C$18","v":"ifrs-full:CurrentBiologicalAssets"}]
["/*",null,{"$f":"'210000 - Est. Situa. Financiera'!$D$19","v":"Otros activos financieros corrientes"},{"$f":"'210000 - Est. Situa. Financiera'!$C$19","v":"ifrs-full:OtherCurrentFinancialAssets"}]
["/*",null,{"$f":"'210000 - Est. Situa. Financiera'!$D$20","v":"Otros activos no financieros corrientes"},{"$f":"'210000 - Est. Situa. Financiera'!$C$20","v":"ifrs-full:OtherCurrentNonfinancialAssets"}]
["/*",null,{"$f":"'210000 - Est. Situa. Financiera'!$D$21","v":"Activos corrientes distintos al efectivo pignorados como garantía colateral para las que el receptor de transferencias tiene derecho por contrato o costumbre a vender o pignorar de nuevo dicha garantía colateral"},{"$f":"'210000 - Est. Situa. Financiera'!$C$21","v":"ifrs-full:CurrentNoncashAssetsPledgedAsCollateralForWhichTransfereeHasRightByContractOrCustomToSellOrRepledgeCollateral"}]
["/*",null,{"$f":"'210000 - Est. Situa. Financiera'!$D$22","v":"Total activos corrientes distintos de los activos no corrientes o grupo de activos para su disposición clasificados como mantenidos para la venta o como mantenidos para distribuir a los propietarios"},{"$f":"'210000 - Est. Situa. Financiera'!$C$22","v":"ifrs-full:CurrentAssetsOtherThanAssetsOrDisposalGroupsClassifiedAsHeldForSaleOrAsHeldForDistributionToOwners"}]
["/*",null,{"$f":"'210000 - Est. Situa. Financiera'!$D$23","v":"Activos no corrientes o grupos de activos para su disposición clasificados como mantenidos para la venta o como mantenidos para distribuir a los propietarios"},{"$f":"'210000 - Est. Situa. Financiera'!$C$23","v":"ifrs-full:NoncurrentAssetsOrDisposalGroupsClassifiedAsHeldForSaleOrAsHeldForDistributionToOwners"}]
["/*",null,{"$f":"'210000 - Est. Situa. Financiera'!$D$24","v":"Activos corrientes totales"},{"$f":"'210000 - Est. Situa. Financiera'!$C$24","v":"ifrs-full:CurrentAssets"}]
["/*",null,{"$f":"'210000 - Est. Situa. Financiera'!$D$25","v":"Activos no corrientes [resumen]"},{"$f":"'210000 - Est. Situa. Financiera'!$C$25","v":"ifrs-full:NoncurrentAssetsAbstract"}]
["/*",null,{"$f":"'210000 - Est. Situa. Financiera'!$D$26","v":"Propiedad de inversión"},{"$f":"'210000 - Est. Situa. Financiera'!$C$26","v":"ifrs-full:InvestmentProperty"}]
["",null,{"$f":"'210000 - Est. Situa. Financiera'!$D$27","v":"Propiedades, planta y equipo"},{"$f":"'210000 - Est. Situa. Financiera'!$C$27","v":"ifrs-full:PropertyPlantAndEquipment"},0,"peso",{"$f":"'210000 - Est. Situa. Financiera'!$F$27","v":0},800001965,"http://www.xbrl.org/scheme/companyName",null,{"$f":"Periodos!$D$4","v":"2016-12-31"}]
["/*",null,{"$f":"'210000 - Est. Situa. Financiera'!$D$28","v":"Plusvalía"},{"$f":"'210000 - Est. Situa. Financiera'!$C$28","v":"ifrs-full:Goodwill"}]
["/*",null,{"$f":"'210000 - Est. Situa. Financiera'!$D$29","v":"Activos intangibles distintos de la plusvalía"},{"$f":"'210000 - Est. Situa. Financiera'!$C$29","v":"ifrs-full:IntangibleAssetsOtherThanGoodwill"}]
["/*",null,{"$f":"'210000 - Est. Situa. Financiera'!$D$30","v":"Inversiones contabilizadas utilizando el método de la participación"},{"$f":"'210000 - Est. Situa. Financiera'!$C$30","v":"ifrs-full:InvestmentAccountedForUsingEquityMethod"}]
["/*",null,{"$f":"'210000 - Est. Situa. Financiera'!$D$31","v":"Inversiones en subsidiarias, negocios conjuntos y asociadas"},{"$f":"'210000 - Est. Situa. Financiera'!$C$31","v":"ifrs-full:InvestmentsInSubsidiariesJointVenturesAndAssociates"}]
["/*",null,{"$f":"'210000 - Est. Situa. Financiera'!$D$32","v":"Activos biológicos no corrientes"},{"$f":"'210000 - Est. Situa. Financiera'!$C$32","v":"ifrs-full:NoncurrentBiologicalAssets"}]
["",null,{"$f":"'210000 - Est. Situa. Financiera'!$D$33","v":"Cuentas comerciales por cobrar y otras cuentas por cobrar no corrientes"},{"$f":"'210000 - Est. Situa. Financiera'!$C$33","v":"ifrs-full:NoncurrentReceivables"},0,"peso",{"$f":"'210000 - Est. Situa. Financiera'!$F$33","v":0},800001965,"http://www.xbrl.org/scheme/companyName",null,{"$f":"Periodos!$D$4","v":"2016-12-31"}]
["/*",null,{"$f":"'210000 - Est. Situa. Financiera'!$D$34","v":"Inventarios no corrientes"},{"$f":"'210000 - Est. Situa. Financiera'!$C$34","v":"ifrs-full:NoncurrentInventories"}]
["/*",null,{"$f":"'210000 - Est. Situa. Financiera'!$D$35","v":"Activos por impuestos diferidos"},{"$f":"'210000 - Est. Situa. Financiera'!$C$35","v":"ifrs-full:DeferredTaxAssets"}]
["/*",null,{"$f":"'210000 - Est. Situa. Financiera'!$D$36","v":"Activos por impuestos corrientes, no corriente"},{"$f":"'210000 - Est. Situa. Financiera'!$C$36","v":"ifrs-full:CurrentTaxAssetsNoncurrent"}]
["/*",null,{"$f":"'210000 - Est. Situa. Financiera'!$D$37","v":"Otros activos financieros no corrientes"},{"$f":"'210000 - Est. Situa. Financiera'!$C$37","v":"ifrs-full:OtherNoncurrentFinancialAssets"}]
["/*",null,{"$f":"'210000 - Est. Situa. Financiera'!$D$38","v":"Otros activos no financieros no corrientes"},{"$f":"'210000 - Est. Situa. Financiera'!$C$38","v":"ifrs-full:OtherNoncurrentNonfinancialAssets"}]
["/*",null,{"$f":"'210000 - Est. Situa. Financiera'!$D$39","v":"Activos no corrientes distintos al efectivo pignorados como garantía colateral para las que el receptor de transferencias tiene derecho por contrato o costumbre a vender o pignorar de nuevo la garantía colateral"},{"$f":"'210000 - Est. Situa. Financiera'!$C$39","v":"ifrs-full:NoncurrentNoncashAssetsPledgedAsCollateralForWhichTransfereeHasRightByContractOrCustomToSellOrRepledgeCollateral"}]
["/*",null,{"$f":"'210000 - Est. Situa. Financiera'!$D$40","v":"Total de activos no corrientes"},{"$f":"'210000 - Est. Situa. Financiera'!$C$40","v":"ifrs-full:NoncurrentAssets"}]
["/*",null,{"$f":"'210000 - Est. Situa. Financiera'!$D$41","v":"Total de activos"},{"$f":"'210000 - Est. Situa. Financiera'!$C$41","v":"ifrs-full:Assets"}]
["/*",null,{"$f":"'210000 - Est. Situa. Financiera'!$D$42","v":"Patrimonio y pasivos [resumen]"},{"$f":"'210000 - Est. Situa. Financiera'!$C$42","v":"ifrs-full:EquityAndLiabilitiesAbstract"}]
["/*",null,{"$f":"'210000 - Est. Situa. Financiera'!$D$43","v":"Pasivos [resumen]"},{"$f":"'210000 - Est. Situa. Financiera'!$C$43","v":"ifrs-full:LiabilitiesAbstract"}]
["/*",null,{"$f":"'210000 - Est. Situa. Financiera'!$D$44","v":"Pasivos corrientes [resumen]"},{"$f":"'210000 - Est. Situa. Financiera'!$C$44","v":"ifrs-full:CurrentLiabilitiesAbstract"}]
["/*",null,{"$f":"'210000 - Est. Situa. Financiera'!$D$45","v":"Disposiciones actuales [resumen]"},{"$f":"'210000 - Est. Situa. Financiera'!$C$45","v":"ifrs-full:CurrentProvisionsAbstract"}]
["/*",null,{"$f":"'210000 - Est. Situa. Financiera'!$D$46","v":"Provisiones corrientes por beneficios a los empleados"},{"$f":"'210000 - Est. Situa. Financiera'!$C$46","v":"ifrs-full:CurrentProvisionsForEmployeeBenefits"}]
["/*",null,{"$f":"'210000 - Est. Situa. Financiera'!$D$47","v":"Otras provisiones corrientes"},{"$f":"'210000 - Est. Situa. Financiera'!$C$47","v":"ifrs-full:OtherShorttermProvisions"}]
["/*",null,{"$f":"'210000 - Est. Situa. Financiera'!$D$48","v":"Total provisiones corrientes"},{"$f":"'210000 - Est. Situa. Financiera'!$C$48","v":"ifrs-full:CurrentProvisions"}]
["/*",null,{"$f":"'210000 - Est. Situa. Financiera'!$D$49","v":"Cuentas por pagar comerciales y otras cuentas por pagar"},{"$f":"'210000 - Est. Situa. Financiera'!$C$49","v":"ifrs-full:TradeAndOtherCurrentPayables"}]
["/*",null,{"$f":"'210000 - Est. Situa. Financiera'!$D$50","v":"Pasivos por impuestos corrientes, corriente"},{"$f":"'210000 - Est. Situa. Financiera'!$C$50","v":"ifrs-full:CurrentTaxLiabilitiesCurrent"}]
["/*",null,{"$f":"'210000 - Est. Situa. Financiera'!$D$51","v":"Otros pasivos financieros corrientes"},{"$f":"'210000 - Est. Situa. Financiera'!$C$51","v":"ifrs-full:OtherCurrentFinancialLiabilities"}]
["/*",null,{"$f":"'210000 - Est. Situa. Financiera'!$D$52","v":"Otros pasivos no financieros corrientes"},{"$f":"'210000 - Est. Situa. Financiera'!$C$52","v":"ifrs-full:OtherCurrentNonfinancialLiabilities"}]
["/*",null,{"$f":"'210000 - Est. Situa. Financiera'!$D$53","v":"Total de pasivos corrientes distintos de los pasivos incluidos en grupos de activos para su disposición clasificados como mantenidos para la venta"},{"$f":"'210000 - Est. Situa. Financiera'!$C$53","v":"ifrs-full:CurrentLiabilitiesOtherThanLiabilitiesIncludedInDisposalGroupsClassifiedAsHeldForSale"}]
["/*",null,{"$f":"'210000 - Est. Situa. Financiera'!$D$54","v":"Pasivos incluidos en grupos de activos para su disposición clasificados como mantenidos para la venta"},{"$f":"'210000 - Est. Situa. Financiera'!$C$54","v":"ifrs-full:LiabilitiesIncludedInDisposalGroupsClassifiedAsHeldForSale"}]
["/*",null,{"$f":"'210000 - Est. Situa. Financiera'!$D$55","v":"Pasivos corrientes totales"},{"$f":"'210000 - Est. Situa. Financiera'!$C$55","v":"ifrs-full:CurrentLiabilities"}]
["/*",null,{"$f":"'210000 - Est. Situa. Financiera'!$D$56","v":"Pasivos no corrientes [resumen]"},{"$f":"'210000 - Est. Situa. Financiera'!$C$56","v":"ifrs-full:NoncurrentLiabilitiesAbstract"}]
["/*",null,{"$f":"'210000 - Est. Situa. Financiera'!$D$57","v":"Provisiones no corrientes [resumen]"},{"$f":"'210000 - Est. Situa. Financiera'!$C$57","v":"ifrs-full:NoncurrentProvisionsAbstract"}]
["/*",null,{"$f":"'210000 - Est. Situa. Financiera'!$D$58","v":"Provisiones no corrientes por beneficios a los empleados"},{"$f":"'210000 - Est. Situa. Financiera'!$C$58","v":"ifrs-full:NoncurrentProvisionsForEmployeeBenefits"}]
["/*",null,{"$f":"'210000 - Est. Situa. Financiera'!$D$59","v":"Otras provisiones no corrientes"},{"$f":"'210000 - Est. Situa. Financiera'!$C$59","v":"ifrs-full:OtherLongtermProvisions"}]
["/*",null,{"$f":"'210000 - Est. Situa. Financiera'!$D$60","v":"Total provisiones no corrientes"},{"$f":"'210000 - Est. Situa. Financiera'!$C$60","v":"ifrs-full:NoncurrentProvisions"}]
["/*",null,{"$f":"'210000 - Est. Situa. Financiera'!$D$61","v":"Cuentas comerciales por pagar y otras cuentas por pagar no corrientes"},{"$f":"'210000 - Est. Situa. Financiera'!$C$61","v":"ifrs-full:NoncurrentPayables"}]
["/*",null,{"$f":"'210000 - Est. Situa. Financiera'!$D$62","v":"Pasivo por impuestos diferidos"},{"$f":"'210000 - Est. Situa. Financiera'!$C$62","v":"ifrs-full:DeferredTaxLiabilities"}]
["/*",null,{"$f":"'210000 - Est. Situa. Financiera'!$D$63","v":"Pasivos por impuestos corrientes, no corriente"},{"$f":"'210000 - Est. Situa. Financiera'!$C$63","v":"ifrs-full:CurrentTaxLiabilitiesNoncurrent"}]
["/*",null,{"$f":"'210000 - Est. Situa. Financiera'!$D$64","v":"Otros pasivos financieros no corrientes"},{"$f":"'210000 - Est. Situa. Financiera'!$C$64","v":"ifrs-full:OtherNoncurrentFinancialLiabilities"}]
["/*",null,{"$f":"'210000 - Est. Situa. Financiera'!$D$65","v":"Otros pasivos no financieros no corrientes"},{"$f":"'210000 - Est. Situa. Financiera'!$C$65","v":"ifrs-full:OtherNoncurrentNonfinancialLiabilities"}]
["/*",null,{"$f":"'210000 - Est. Situa. Financiera'!$D$66","v":"Total de pasivos no corrientes"},{"$f":"'210000 - Est. Situa. Financiera'!$C$66","v":"ifrs-full:NoncurrentLiabilities"}]
["/*",null,{"$f":"'210000 - Est. Situa. Financiera'!$D$67","v":"Total pasivos"},{"$f":"'210000 - Est. Situa. Financiera'!$C$67","v":"ifrs-full:Liabilities"}]
["/*",null,{"$f":"'210000 - Est. Situa. Financiera'!$D$68","v":"Patrimonio [resumen]"},{"$f":"'210000 - Est. Situa. Financiera'!$C$68","v":"ifrs-full:EquityAbstract"}]
[{"$f":"IF(G225=\"\",\"/*\",\"\")","v":"/*"},null,{"$f":"'210000 - Est. Situa. Financiera'!$D$69","v":"Capital emitido: Capital social, Capital suscrito o Aportes sociales"},{"$f":"'210000 - Est. Situa. Financiera'!$C$69","v":"ifrs-full:IssuedCapital"}]
["/*",null,{"$f":"'210000 - Est. Situa. Financiera'!$D$70","v":"Ganancias acumuladas"},{"$f":"'210000 - Est. Situa. Financiera'!$C$70","v":"ifrs-full:RetainedEarnings"}]
["/*",null,{"$f":"'210000 - Est. Situa. Financiera'!$D$71","v":"Prima de emisión"},{"$f":"'210000 - Est. Situa. Financiera'!$C$71","v":"ifrs-full:SharePremium"}]
["/*",null,{"$f":"'210000 - Est. Situa. Financiera'!$D$72","v":"Acciones propias en cartera"},{"$f":"'210000 - Est. Situa. Financiera'!$C$72","v":"ifrs-full:TreasuryShares"}]
["/*",null,{"$f":"'210000 - Est. Situa. Financiera'!$D$73","v":"Inversión suplementaria al capital asignado"},{"$f":"'210000 - Est. Situa. Financiera'!$C$73","v":"co-svsp-core_2017-12-31:InversionSuplementariaAlCapitalAsignado"}]
["/*",null,{"$f":"'210000 - Est. Situa. Financiera'!$D$74","v":"Otras participaciones en el patrimonio"},{"$f":"'210000 - Est. Situa. Financiera'!$C$74","v":"ifrs-full:OtherEquityInterest"}]
["/*",null,{"$f":"'210000 - Est. Situa. Financiera'!$D$75","v":"Otras reservas"},{"$f":"'210000 - Est. Situa. Financiera'!$C$75","v":"ifrs-full:OtherReserves"}]
["/*",null,{"$f":"'210000 - Est. Situa. Financiera'!$D$76","v":"Patrimonio total"},{"$f":"'210000 - Est. Situa. Financiera'!$C$76","v":"ifrs-full:Equity"}]
["/*",null,{"$f":"'210000 - Est. Situa. Financiera'!$D$77","v":"Total de patrimonio y pasivos"},{"$f":"'210000 - Est. Situa. Financiera'!$C$77","v":"ifrs-full:EquityAndLiabilities"}]
["/*"]
["/*",null,"310000 - Est. Resultados"]
["/*",null,"--01--"]
["/*",null,{"$f":"'310000 - Est. Resultados'!$D$11","v":"Resultado de periodo [resumen]"},{"$f":"'310000 - Est. Resultados'!$C$11","v":"ifrs-full:IncomeStatementAbstract"}]
["/*",null,{"$f":"'310000 - Est. Resultados'!$D$12","v":"Ganancia (pérdida) [resumen]"},{"$f":"'310000 - Est. Resultados'!$C$12","v":"ifrs-full:ProfitLossAbstract"}]
["/*",null,{"$f":"'310000 - Est. Resultados'!$D$13","v":"Ingresos de actividades ordinarias"},{"$f":"'310000 - Est. Resultados'!$C$13","v":"ifrs-full:Revenue"}]
["/*",null,{"$f":"'310000 - Est. Resultados'!$D$14","v":"Costo de ventas"},{"$f":"'310000 - Est. Resultados'!$C$14","v":"ifrs-full:CostOfSales"}]
["/*",null,{"$f":"'310000 - Est. Resultados'!$D$15","v":"Ganancia bruta"},{"$f":"'310000 - Est. Resultados'!$C$15","v":"ifrs-full:GrossProfit"}]
["/*",null,{"$f":"'310000 - Est. Resultados'!$D$16","v":"Otros ingresos"},{"$f":"'310000 - Est. Resultados'!$C$16","v":"ifrs-full:OtherIncome"}]
["/*",null,{"$f":"'310000 - Est. Resultados'!$D$17","v":"Costos de distribución"},{"$f":"'310000 - Est. Resultados'!$C$17","v":"ifrs-full:DistributionCosts"}]
["/*",null,{"$f":"'310000 - Est. Resultados'!$D$18","v":"Gastos de administración"},{"$f":"'310000 - Est. Resultados'!$C$18","v":"ifrs-full:AdministrativeExpense"}]
["/*",null,{"$f":"'310000 - Est. Resultados'!$D$19","v":"Otros gastos"},{"$f":"'310000 - Est. Resultados'!$C$19","v":"ifrs-full:OtherExpenseByFunction"}]
["/*",null,{"$f":"'310000 - Est. Resultados'!$D$20","v":"Otras ganancias (pérdidas)"},{"$f":"'310000 - Est. Resultados'!$C$20","v":"ifrs-full:OtherGainsLosses"}]
["/*",null,{"$f":"'310000 - Est. Resultados'!$D$21","v":"Ganancia (pérdida) por actividades de operación"},{"$f":"'310000 - Est. Resultados'!$C$21","v":"ifrs-full:ProfitLossFromOperatingActivities"}]
["/*",null,{"$f":"'310000 - Est. Resultados'!$D$22","v":"Diferencia entre el importe en libros de dividendos pagaderos e importe en libros de activos distribuidos distintos al efectivo"},{"$f":"'310000 - Est. Resultados'!$C$22","v":"ifrs-full:DifferenceBetweenCarryingAmountOfDividendsPayableAndCarryingAmountOfNoncashAssetsDistributed"}]
["/*",null,{"$f":"'310000 - Est. Resultados'!$D$23","v":"Ganancias (pérdidas) que surgen de la baja en cuentas de activos financieros medidos al costo amortizado"},{"$f":"'310000 - Est. Resultados'!$C$23","v":"ifrs-full:GainLossArisingFromDerecognitionOfFinancialAssetsMeasuredAtAmortisedCost"}]
["/*",null,{"$f":"'310000 - Est. Resultados'!$D$24","v":"Ingresos financieros"},{"$f":"'310000 - Est. Resultados'!$C$24","v":"ifrs-full:FinanceIncome"}]
["/*",null,{"$f":"'310000 - Est. Resultados'!$D$25","v":"Costos financieros"},{"$f":"'310000 - Est. Resultados'!$C$25","v":"ifrs-full:FinanceCosts"}]
["/*",null,{"$f":"'310000 - Est. Resultados'!$D$26","v":"Deterioro de valor de ganancias y reversión de pérdidas por deterioro de valor (pérdidas por deterioro de valor) determinado de acuerdo con la NIIF 9"},{"$f":"'310000 - Est. Resultados'!$C$26","v":"ifrs-full:ImpairmentLossImpairmentGainAndReversalOfImpairmentLossDeterminedInAccordanceWithIFRS9"}]
["/*",null,{"$f":"'310000 - Est. Resultados'!$D$27","v":"Participación en las ganancias (pérdidas) de asociadas y negocios conjuntos que se contabilicen utilizando el método de la participación"},{"$f":"'310000 - Est. Resultados'!$C$27","v":"ifrs-full:ShareOfProfitLossOfAssociatesAndJointVenturesAccountedForUsingEquityMethod"}]
["/*",null,{"$f":"'310000 - Est. Resultados'!$D$28","v":"Otros ingresos (gastos) procedentes de subsidiarias, entidades controladas de forma conjunta y asociadas"},{"$f":"'310000 - Est. Resultados'!$C$28","v":"ifrs-full:OtherIncomeExpenseFromSubsidiariesJointlyControlledEntitiesAndAssociates"}]
["/*",null,{"$f":"'310000 - Est. Resultados'!$D$29","v":"Ganancias (pérdidas) que surgen de diferencias entre el costo amortizado anterior y el valor razonable de activos financieros reclasificados de la categoría de medición costo amortizado a la categoría de medición de valor razonable con cambios en resultados"},{"$f":"'310000 - Est. Resultados'!$C$29","v":"ifrs-full:GainsLossesArisingFromDifferenceBetweenPreviousCarryingAmountAndFairValueOfFinancialAssetsReclassifiedAsMeasuredAtFairValue"}]
["/*",null,{"$f":"'310000 - Est. Resultados'!$D$30","v":"Ganancia (pérdida) acumulada anteriormente reconocida en otro resultado integral que surge de la reclasificación de activos financieros de la categoría de medición de valor razonable con cambios en otro resultado integral a la de valor razonable con cambios en resultados"},{"$f":"'310000 - Est. Resultados'!$C$30","v":"ifrs-full:CumulativeGainLossPreviouslyRecognisedInOtherComprehensiveIncomeArisingFromReclassificationOfFinancialAssetsOutOfFairValueThroughOtherComprehensiveIncomeIntoFairValueThroughProfitOrLossMeasurementCategory"}]
["/*",null,{"$f":"'310000 - Est. Resultados'!$D$31","v":"Ganancias (pérdidas) de cobertura por cobertura de un grupo de partidas con posiciones de riesgo compensadoras"},{"$f":"'310000 - Est. Resultados'!$C$31","v":"ifrs-full:HedgingGainsLossesForHedgeOfGroupOfItemsWithOffsettingRiskPositions"}]
["/*",null,{"$f":"'310000 - Est. Resultados'!$D$32","v":"Ganancia (pérdida), antes de impuestos"},{"$f":"'310000 - Est. Resultados'!$C$32","v":"ifrs-full:ProfitLossBeforeTax"}]
["/*",null,{"$f":"'310000 - Est. Resultados'!$D$33","v":"Ingreso (gasto) por impuestos"},{"$f":"'310000 - Est. Resultados'!$C$33","v":"ifrs-full:IncomeTaxExpenseContinuingOperations"}]
["/*",null,{"$f":"'310000 - Est. Resultados'!$D$34","v":"Ganancia (pérdida) procedente de operaciones continuadas"},{"$f":"'310000 - Est. Resultados'!$C$34","v":"ifrs-full:ProfitLossFromContinuingOperations"}]
["/*",null,{"$f":"'310000 - Est. Resultados'!$D$35","v":"Ganancia (pérdida) procedente de operaciones discontinuadas"},{"$f":"'310000 - Est. Resultados'!$C$35","v":"ifrs-full:ProfitLossFromDiscontinuedOperations"}]
["/*",null,{"$f":"'310000 - Est. Resultados'!$D$36","v":"Ganancia (pérdida)"},{"$f":"'310000 - Est. Resultados'!$C$36","v":"ifrs-full:ProfitLoss"}]
["/*",null,{"$f":"'310000 - Est. Resultados'!$D$37","v":"Ganancias por acción [resumen]"},{"$f":"'310000 - Est. Resultados'!$C$37","v":"ifrs-full:EarningsPerShareAbstract"}]
["/*",null,{"$f":"'310000 - Est. Resultados'!$D$38","v":"Ganancia por acción básica [resumen]"},{"$f":"'310000 - Est. Resultados'!$C$38","v":"ifrs-full:BasicEarningsPerShareAbstract"}]
["/*",null,{"$f":"'310000 - Est. Resultados'!$D$39","v":"Ganancia (pérdida) por acción básica en operaciones continuadas"},{"$f":"'310000 - Est. Resultados'!$C$39","v":"ifrs-full:BasicEarningsLossPerShareFromContinuingOperations"}]
["/*",null,{"$f":"'310000 - Est. Resultados'!$D$40","v":"Ganancia (pérdida) por acción básica en operaciones discontinuadas"},{"$f":"'310000 - Est. Resultados'!$C$40","v":"ifrs-full:BasicEarningsLossPerShareFromDiscontinuedOperations"}]
["/*",null,{"$f":"'310000 - Est. Resultados'!$D$41","v":"Total ganancias (pérdidas) básicas por acción"},{"$f":"'310000 - Est. Resultados'!$C$41","v":"ifrs-full:BasicEarningsLossPerShare"}]
["/*",null,{"$f":"'310000 - Est. Resultados'!$D$42","v":"Ganancias por acción diluidas [resumen]"},{"$f":"'310000 - Est. Resultados'!$C$42","v":"ifrs-full:DilutedEarningsPerShareAbstract"}]
["/*",null,{"$f":"'310000 - Est. Resultados'!$D$43","v":"Ganancias (pérdida) diluida por acción procedente de operaciones continuadas"},{"$f":"'310000 - Est. Resultados'!$C$43","v":"ifrs-full:DilutedEarningsLossPerShareFromContinuingOperations"}]
["/*",null,{"$f":"'310000 - Est. Resultados'!$D$44","v":"Ganancias (pérdida) diluida por acción procedentes de operaciones discontinuadas"},{"$f":"'310000 - Est. Resultados'!$C$44","v":"ifrs-full:DilutedEarningsLossPerShareFromDiscontinuedOperations"}]
["/*",null,{"$f":"'310000 - Est. Resultados'!$D$45","v":"Total ganancias (pérdidas) por acción diluidas"},{"$f":"'310000 - Est. Resultados'!$C$45","v":"ifrs-full:DilutedEarningsLossPerShare"}]
["/*",null,"--02--"]
["/*",null,{"$f":"'310000 - Est. Resultados'!$D$11","v":"Resultado de periodo [resumen]"},{"$f":"'310000 - Est. Resultados'!$C$11","v":"ifrs-full:IncomeStatementAbstract"}]
["/*",null,{"$f":"'310000 - Est. Resultados'!$D$12","v":"Ganancia (pérdida) [resumen]"},{"$f":"'310000 - Est. Resultados'!$C$12","v":"ifrs-full:ProfitLossAbstract"}]
["/*",null,{"$f":"'310000 - Est. Resultados'!$D$13","v":"Ingresos de actividades ordinarias"},{"$f":"'310000 - Est. Resultados'!$C$13","v":"ifrs-full:Revenue"}]
["/*",null,{"$f":"'310000 - Est. Resultados'!$D$14","v":"Costo de ventas"},{"$f":"'310000 - Est. Resultados'!$C$14","v":"ifrs-full:CostOfSales"}]
["/*",null,{"$f":"'310000 - Est. Resultados'!$D$15","v":"Ganancia bruta"},{"$f":"'310000 - Est. Resultados'!$C$15","v":"ifrs-full:GrossProfit"}]
["/*",null,{"$f":"'310000 - Est. Resultados'!$D$16","v":"Otros ingresos"},{"$f":"'310000 - Est. Resultados'!$C$16","v":"ifrs-full:OtherIncome"}]
["/*",null,{"$f":"'310000 - Est. Resultados'!$D$17","v":"Costos de distribución"},{"$f":"'310000 - Est. Resultados'!$C$17","v":"ifrs-full:DistributionCosts"}]
["/*",null,{"$f":"'310000 - Est. Resultados'!$D$18","v":"Gastos de administración"},{"$f":"'310000 - Est. Resultados'!$C$18","v":"ifrs-full:AdministrativeExpense"}]
["/*",null,{"$f":"'310000 - Est. Resultados'!$D$19","v":"Otros gastos"},{"$f":"'310000 - Est. Resultados'!$C$19","v":"ifrs-full:OtherExpenseByFunction"}]
["/*",null,{"$f":"'310000 - Est. Resultados'!$D$20","v":"Otras ganancias (pérdidas)"},{"$f":"'310000 - Est. Resultados'!$C$20","v":"ifrs-full:OtherGainsLosses"}]
["/*",null,{"$f":"'310000 - Est. Resultados'!$D$21","v":"Ganancia (pérdida) por actividades de operación"},{"$f":"'310000 - Est. Resultados'!$C$21","v":"ifrs-full:ProfitLossFromOperatingActivities"}]
["/*",null,{"$f":"'310000 - Est. Resultados'!$D$22","v":"Diferencia entre el importe en libros de dividendos pagaderos e importe en libros de activos distribuidos distintos al efectivo"},{"$f":"'310000 - Est. Resultados'!$C$22","v":"ifrs-full:DifferenceBetweenCarryingAmountOfDividendsPayableAndCarryingAmountOfNoncashAssetsDistributed"}]
["/*",null,{"$f":"'310000 - Est. Resultados'!$D$23","v":"Ganancias (pérdidas) que surgen de la baja en cuentas de activos financieros medidos al costo amortizado"},{"$f":"'310000 - Est. Resultados'!$C$23","v":"ifrs-full:GainLossArisingFromDerecognitionOfFinancialAssetsMeasuredAtAmortisedCost"}]
["/*",null,{"$f":"'310000 - Est. Resultados'!$D$24","v":"Ingresos financieros"},{"$f":"'310000 - Est. Resultados'!$C$24","v":"ifrs-full:FinanceIncome"}]
["/*",null,{"$f":"'310000 - Est. Resultados'!$D$25","v":"Costos financieros"},{"$f":"'310000 - Est. Resultados'!$C$25","v":"ifrs-full:FinanceCosts"}]
["/*",null,{"$f":"'310000 - Est. Resultados'!$D$26","v":"Deterioro de valor de ganancias y reversión de pérdidas por deterioro de valor (pérdidas por deterioro de valor) determinado de acuerdo con la NIIF 9"},{"$f":"'310000 - Est. Resultados'!$C$26","v":"ifrs-full:ImpairmentLossImpairmentGainAndReversalOfImpairmentLossDeterminedInAccordanceWithIFRS9"}]
[{"$f":"IF(G289=\"\",\"/*\",\"\")","v":"/*"},null,{"$f":"'310000 - Est. Resultados'!$D$27","v":"Participación en las ganancias (pérdidas) de asociadas y negocios conjuntos que se contabilicen utilizando el método de la participación"},{"$f":"'310000 - Est. Resultados'!$C$27","v":"ifrs-full:ShareOfProfitLossOfAssociatesAndJointVenturesAccountedForUsingEquityMethod"}]
["/*",null,{"$f":"'310000 - Est. Resultados'!$D$28","v":"Otros ingresos (gastos) procedentes de subsidiarias, entidades controladas de forma conjunta y asociadas"},{"$f":"'310000 - Est. Resultados'!$C$28","v":"ifrs-full:OtherIncomeExpenseFromSubsidiariesJointlyControlledEntitiesAndAssociates"}]
["/*",null,{"$f":"'310000 - Est. Resultados'!$D$29","v":"Ganancias (pérdidas) que surgen de diferencias entre el costo amortizado anterior y el valor razonable de activos financieros reclasificados de la categoría de medición costo amortizado a la categoría de medición de valor razonable con cambios en resultados"},{"$f":"'310000 - Est. Resultados'!$C$29","v":"ifrs-full:GainsLossesArisingFromDifferenceBetweenPreviousCarryingAmountAndFairValueOfFinancialAssetsReclassifiedAsMeasuredAtFairValue"}]
["/*",null,{"$f":"'310000 - Est. Resultados'!$D$30","v":"Ganancia (pérdida) acumulada anteriormente reconocida en otro resultado integral que surge de la reclasificación de activos financieros de la categoría de medición de valor razonable con cambios en otro resultado integral a la de valor razonable con cambios en resultados"},{"$f":"'310000 - Est. Resultados'!$C$30","v":"ifrs-full:CumulativeGainLossPreviouslyRecognisedInOtherComprehensiveIncomeArisingFromReclassificationOfFinancialAssetsOutOfFairValueThroughOtherComprehensiveIncomeIntoFairValueThroughProfitOrLossMeasurementCategory"}]
["/*",null,{"$f":"'310000 - Est. Resultados'!$D$31","v":"Ganancias (pérdidas) de cobertura por cobertura de un grupo de partidas con posiciones de riesgo compensadoras"},{"$f":"'310000 - Est. Resultados'!$C$31","v":"ifrs-full:HedgingGainsLossesForHedgeOfGroupOfItemsWithOffsettingRiskPositions"}]
["/*",null,{"$f":"'310000 - Est. Resultados'!$D$32","v":"Ganancia (pérdida), antes de impuestos"},{"$f":"'310000 - Est. Resultados'!$C$32","v":"ifrs-full:ProfitLossBeforeTax"}]
["/*",null,{"$f":"'310000 - Est. Resultados'!$D$33","v":"Ingreso (gasto) por impuestos"},{"$f":"'310000 - Est. Resultados'!$C$33","v":"ifrs-full:IncomeTaxExpenseContinuingOperations"}]
["/*",null,{"$f":"'310000 - Est. Resultados'!$D$34","v":"Ganancia (pérdida) procedente de operaciones continuadas"},{"$f":"'310000 - Est. Resultados'!$C$34","v":"ifrs-full:ProfitLossFromContinuingOperations"}]
["/*",null,{"$f":"'310000 - Est. Resultados'!$D$35","v":"Ganancia (pérdida) procedente de operaciones discontinuadas"},{"$f":"'310000 - Est. Resultados'!$C$35","v":"ifrs-full:ProfitLossFromDiscontinuedOperations"}]
["/*",null,{"$f":"'310000 - Est. Resultados'!$D$36","v":"Ganancia (pérdida)"},{"$f":"'310000 - Est. Resultados'!$C$36","v":"ifrs-full:ProfitLoss"}]
["/*",null,{"$f":"'310000 - Est. Resultados'!$D$37","v":"Ganancias por acción [resumen]"},{"$f":"'310000 - Est. Resultados'!$C$37","v":"ifrs-full:EarningsPerShareAbstract"}]
["/*",null,{"$f":"'310000 - Est. Resultados'!$D$38","v":"Ganancia por acción básica [resumen]"},{"$f":"'310000 - Est. Resultados'!$C$38","v":"ifrs-full:BasicEarningsPerShareAbstract"}]
["/*",null,{"$f":"'310000 - Est. Resultados'!$D$39","v":"Ganancia (pérdida) por acción básica en operaciones continuadas"},{"$f":"'310000 - Est. Resultados'!$C$39","v":"ifrs-full:BasicEarningsLossPerShareFromContinuingOperations"}]
["/*",null,{"$f":"'310000 - Est. Resultados'!$D$40","v":"Ganancia (pérdida) por acción básica en operaciones discontinuadas"},{"$f":"'310000 - Est. Resultados'!$C$40","v":"ifrs-full:BasicEarningsLossPerShareFromDiscontinuedOperations"}]
["/*",null,{"$f":"'310000 - Est. Resultados'!$D$41","v":"Total ganancias (pérdidas) básicas por acción"},{"$f":"'310000 - Est. Resultados'!$C$41","v":"ifrs-full:BasicEarningsLossPerShare"}]
["/*",null,{"$f":"'310000 - Est. Resultados'!$D$42","v":"Ganancias por acción diluidas [resumen]"},{"$f":"'310000 - Est. Resultados'!$C$42","v":"ifrs-full:DilutedEarningsPerShareAbstract"}]
["/*",null,{"$f":"'310000 - Est. Resultados'!$D$43","v":"Ganancias (pérdida) diluida por acción procedente de operaciones continuadas"},{"$f":"'310000 - Est. Resultados'!$C$43","v":"ifrs-full:DilutedEarningsLossPerShareFromContinuingOperations"}]
["/*",null,{"$f":"'310000 - Est. Resultados'!$D$44","v":"Ganancias (pérdida) diluida por acción procedentes de operaciones discontinuadas"},{"$f":"'310000 - Est. Resultados'!$C$44","v":"ifrs-full:DilutedEarningsLossPerShareFromDiscontinuedOperations"}]
["/*",null,{"$f":"'310000 - Est. Resultados'!$D$45","v":"Total ganancias (pérdidas) por acción diluidas"},{"$f":"'310000 - Est. Resultados'!$C$45","v":"ifrs-full:DilutedEarningsLossPerShare"}]
["/*"]
["/*",null,"410000 - Est. Resultados ORI"]
["/*",null,"--01--"]
["/*",null,{"$f":"'410000 - Est. Resultados ORI'!$D$11","v":"Estado del resultado integral [resumen]"},{"$f":"'410000 - Est. Resultados ORI'!$C$11","v":"ifrs-full:StatementOfComprehensiveIncomeAbstract"}]
["/*",null,{"$f":"'410000 - Est. Resultados ORI'!$D$12","v":"Ganancia (pérdida)"},{"$f":"'410000 - Est. Resultados ORI'!$C$12","v":"ifrs-full:ProfitLoss"}]
["/*",null,{"$f":"'410000 - Est. Resultados ORI'!$D$13","v":"Otro resultado integral [resumen]"},{"$f":"'410000 - Est. Resultados ORI'!$C$13","v":"ifrs-full:OtherComprehensiveIncomeAbstract"}]
["/*",null,{"$f":"'410000 - Est. Resultados ORI'!$D$14","v":"Componentes de otro resultado integral que no se reclasificarán al resultado del periodo, netos de impuestos [resumen]"},{"$f":"'410000 - Est. Resultados ORI'!$C$14","v":"ifrs-full:ComponentsOfOtherComprehensiveIncomeThatWillNotBeReclassifiedToProfitOrLossNetOfTaxAbstract"}]
["/*",null,{"$f":"'410000 - Est. Resultados ORI'!$D$15","v":"Otro resultado integral, neto de impuestos, ganancias (pérdidas) de inversiones en instrumentos de patrimonio"},{"$f":"'410000 - Est. Resultados ORI'!$C$15","v":"ifrs-full:OtherComprehensiveIncomeNetOfTaxGainsLossesFromInvestmentsInEquityInstruments"}]
["/*",null,{"$f":"'410000 - Est. Resultados ORI'!$D$16","v":"Otro resultado integral, neto de impuestos, ganancias (pérdidas) por revaluación"},{"$f":"'410000 - Est. Resultados ORI'!$C$16","v":"ifrs-full:OtherComprehensiveIncomeNetOfTaxGainsLossesOnRevaluation"}]
["/*",null,{"$f":"'410000 - Est. Resultados ORI'!$D$17","v":"Otro resultado integral, neto de impuestos, ganancias (pérdidas) por nuevas mediciones de planes de beneficios definidos"},{"$f":"'410000 - Est. Resultados ORI'!$C$17","v":"ifrs-full:OtherComprehensiveIncomeNetOfTaxGainsLossesOnRemeasurementsOfDefinedBenefitPlans"}]
["/*",null,{"$f":"'410000 - Est. Resultados ORI'!$D$18","v":"Otro resultado integral, neto de impuestos, cambio en el valor razonable de pasivos financieros atribuible a cambios en el riesgo crediticio del pasivo"},{"$f":"'410000 - Est. Resultados ORI'!$C$18","v":"ifrs-full:OtherComprehensiveIncomeNetOfTaxChangeInFairValueOfFinancialLiabilityAttributableToChangeInCreditRiskOfLiability"}]
["/*",null,{"$f":"'410000 - Est. Resultados ORI'!$D$19","v":"Total otro resultado integral que no se reclasificará al resultado del periodo, neto de impuestos"},{"$f":"'410000 - Est. Resultados ORI'!$C$19","v":"ifrs-full:OtherComprehensiveIncomeThatWillNotBeReclassifiedToProfitOrLossNetOfTax"}]
["/*",null,{"$f":"'410000 - Est. Resultados ORI'!$D$20","v":"Componentes de otro resultado integral que se reclasificarán al resultado del periodo, netos de impuestos [resumen]"},{"$f":"'410000 - Est. Resultados ORI'!$C$20","v":"ifrs-full:ComponentsOfOtherComprehensiveIncomeThatWillBeReclassifiedToProfitOrLossNetOfTaxAbstract"}]
["/*",null,{"$f":"'410000 - Est. Resultados ORI'!$D$21","v":"Diferencias de cambio por conversión [resumen]"},{"$f":"'410000 - Est. Resultados ORI'!$C$21","v":"ifrs-full:ExchangeDifferencesOnTranslationAbstract"}]
["/*",null,{"$f":"'410000 - Est. Resultados ORI'!$D$22","v":"Ganancias (pérdidas) por diferencias de cambio de conversión, netas de impuestos"},{"$f":"'410000 - Est. Resultados ORI'!$C$22","v":"ifrs-full:GainsLossesOnExchangeDifferencesOnTranslationNetOfTax"}]
["/*",null,{"$f":"'410000 - Est. Resultados ORI'!$D$23","v":"Ajustes de reclasificación en diferencias de cambio de conversión, netos de impuestos"},{"$f":"'410000 - Est. Resultados ORI'!$C$23","v":"ifrs-full:ReclassificationAdjustmentsOnExchangeDifferencesOnTranslationNetOfTax"}]
["/*",null,{"$f":"'410000 - Est. Resultados ORI'!$D$24","v":"Otro resultado integral, neto de impuestos, diferencias de cambio por conversión"},{"$f":"'410000 - Est. Resultados ORI'!$C$24","v":"ifrs-full:OtherComprehensiveIncomeNetOfTaxExchangeDifferencesOnTranslation"}]
["/*",null,{"$f":"'410000 - Est. Resultados ORI'!$D$25","v":"Activos financieros disponibles para la venta [resumen]"},{"$f":"'410000 - Est. Resultados ORI'!$C$25","v":"ifrs-full:AvailableforsaleFinancialAssetsAbstract"}]
["/*",null,{"$f":"'410000 - Est. Resultados ORI'!$D$26","v":"Ganancias (pérdidas) por nuevas mediciones de activos financieros disponibles para la venta, netas de impuestos"},{"$f":"'410000 - Est. Resultados ORI'!$C$26","v":"ifrs-full:GainsLossesOnRemeasuringAvailableforsaleFinancialAssetsNetOfTax"}]
["/*",null,{"$f":"'410000 - Est. Resultados ORI'!$D$27","v":"Ajustes de reclasificación, activos financieros disponibles para la venta, netos de impuestos"},{"$f":"'410000 - Est. Resultados ORI'!$C$27","v":"ifrs-full:ReclassificationAdjustmentsOnAvailableforsaleFinancialAssetsNetOfTax"}]
["/*",null,{"$f":"'410000 - Est. Resultados ORI'!$D$28","v":"Otro resultado integral, neto de impuestos, activos financieros disponibles para la venta"},{"$f":"'410000 - Est. Resultados ORI'!$C$28","v":"ifrs-full:OtherComprehensiveIncomeNetOfTaxAvailableforsaleFinancialAssets"}]
["/*",null,{"$f":"'410000 - Est. Resultados ORI'!$D$29","v":"Coberturas del flujo de efectivo [resumen]"},{"$f":"'410000 - Est. Resultados ORI'!$C$29","v":"ifrs-full:CashFlowHedgesAbstract"}]
["/*",null,{"$f":"'410000 - Est. Resultados ORI'!$D$30","v":"Ganancias (pérdidas) por coberturas de flujos de efectivo, neto de impuestos"},{"$f":"'410000 - Est. Resultados ORI'!$C$30","v":"ifrs-full:GainsLossesOnCashFlowHedgesNetOfTax"}]
["/*",null,{"$f":"'410000 - Est. Resultados ORI'!$D$31","v":"Ajustes de reclasificación en coberturas de flujos de efectivo, netos de impuestos"},{"$f":"'410000 - Est. Resultados ORI'!$C$31","v":"ifrs-full:ReclassificationAdjustmentsOnCashFlowHedgesNetOfTax"}]
["/*",null,{"$f":"'410000 - Est. Resultados ORI'!$D$32","v":"Importes eliminados del patrimonio e incluidos en el importe en libros de activos (pasivos) no financieros que se hayan adquirido o incurrido mediante una transacción prevista altamente probable cubierta, neto de impuestos"},{"$f":"'410000 - Est. Resultados ORI'!$C$32","v":"ifrs-full:AdjustmentsForAmountsTransferredToInitialCarryingAmountOfHedgedItems"}]
["/*",null,{"$f":"'410000 - Est. Resultados ORI'!$D$33","v":"Otro resultado integral, neto de impuestos, coberturas del flujo de efectivo"},{"$f":"'410000 - Est. Resultados ORI'!$C$33","v":"ifrs-full:OtherComprehensiveIncomeNetOfTaxCashFlowHedges"}]
["/*",null,{"$f":"'410000 - Est. Resultados ORI'!$D$34","v":"Coberturas de inversiones netas en negocios en el extranjero [resumen]"},{"$f":"'410000 - Est. Resultados ORI'!$C$34","v":"ifrs-full:HedgesOfNetInvestmentsInForeignOperationsAbstract"}]
["/*",null,{"$f":"'410000 - Est. Resultados ORI'!$D$35","v":"Ganancias (pérdidas) por coberturas de inversiones netas en negocios en el extranjero, neto de impuestos"},{"$f":"'410000 - Est. Resultados ORI'!$C$35","v":"ifrs-full:GainsLossesOnHedgesOfNetInvestmentsInForeignOperationsNetOfTax"}]
["/*",null,{"$f":"'410000 - Est. Resultados ORI'!$D$36","v":"Ajustes de reclasificación por coberturas de inversiones netas en negocios en el extranjero, netos de impuestos"},{"$f":"'410000 - Est. Resultados ORI'!$C$36","v":"ifrs-full:ReclassificationAdjustmentsOnHedgesOfNetInvestmentsInForeignOperationsNetOfTax"}]
["/*",null,{"$f":"'410000 - Est. Resultados ORI'!$D$37","v":"Otro resultado integral, neto de impuestos, coberturas de inversiones netas en negocios en el extranjero"},{"$f":"'410000 - Est. Resultados ORI'!$C$37","v":"ifrs-full:OtherComprehensiveIncomeNetOfTaxHedgesOfNetInvestmentsInForeignOperations"}]
["/*",null,{"$f":"'410000 - Est. Resultados ORI'!$D$38","v":"Cambio en el valor temporal del dinero de opciones [resumen]"},{"$f":"'410000 - Est. Resultados ORI'!$C$38","v":"ifrs-full:ChangeInValueOfTimeValueOfOptionsAbstract"}]
["/*",null,{"$f":"'410000 - Est. Resultados ORI'!$D$39","v":"Ganancia (pérdida) por cambios en el valor temporal del dinero de opciones, neta de impuestos"},{"$f":"'410000 - Est. Resultados ORI'!$C$39","v":"ifrs-full:GainsLossesOnChangeInValueOfTimeValueOfOptionsNetOfTax"}]
["/*",null,{"$f":"'410000 - Est. Resultados ORI'!$D$40","v":"Ajustes de reclasificación por cambios en el valor temporal del dinero de opciones, netos de impuestos"},{"$f":"'410000 - Est. Resultados ORI'!$C$40","v":"ifrs-full:ReclassificationAdjustmentsOnChangeInValueOfTimeValueOfOptionsNetOfTax"}]
["/*",null,{"$f":"'410000 - Est. Resultados ORI'!$D$41","v":"Otro resultado integral, neto de impuestos, cambios en el valor del valor temporal del dinero de opciones"},{"$f":"'410000 - Est. Resultados ORI'!$C$41","v":"ifrs-full:OtherComprehensiveIncomeNetOfTaxChangeInValueOfTimeValueOfOptions"}]
["/*",null,{"$f":"'410000 - Est. Resultados ORI'!$D$42","v":"Cambios en el valor de los elementos a término de contratos a término [resumen]"},{"$f":"'410000 - Est. Resultados ORI'!$C$42","v":"ifrs-full:ChangeInValueOfForwardElementsOfForwardContractsAbstract"}]
["/*",null,{"$f":"'410000 - Est. Resultados ORI'!$D$43","v":"Ganancia (pérdida) por cambios en el valor de los elementos a término de contratos a término, neta de impuestos"},{"$f":"'410000 - Est. Resultados ORI'!$C$43","v":"ifrs-full:GainsLossesOnChangeInValueOfForwardElementsOfForwardContractsNetOfTax"}]
["/*",null,{"$f":"'410000 - Est. Resultados ORI'!$D$44","v":"Ajustes de reclasificación por cambios en el valor de los elementos a término de contratos a término, netos de impuestos"},{"$f":"'410000 - Est. Resultados ORI'!$C$44","v":"ifrs-full:ReclassificationAdjustmentsOnChangeInValueOfForwardElementsOfForwardContractsNetOfTax"}]
["/*",null,{"$f":"'410000 - Est. Resultados ORI'!$D$45","v":"Otro resultado integral, neto de impuestos, cambios en el valor de los elementos a término de contratos a término"},{"$f":"'410000 - Est. Resultados ORI'!$C$45","v":"ifrs-full:OtherComprehensiveIncomeNetOfTaxChangeInValueOfForwardElementsOfForwardContracts"}]
["/*",null,{"$f":"'410000 - Est. Resultados ORI'!$D$46","v":"Cambio en el valor de los diferenciales de tasa cambio de moneda extranjera [resumen]"},{"$f":"'410000 - Est. Resultados ORI'!$C$46","v":"ifrs-full:ChangeInValueOfForeignCurrencyBasisSpreadsAbstract"}]
["/*",null,{"$f":"'410000 - Est. Resultados ORI'!$D$47","v":"Ganancia (pérdida) por cambios en el valor de los diferenciales de la tasa de cambio de la moneda extranjera, neta de impuestos"},{"$f":"'410000 - Est. Resultados ORI'!$C$47","v":"ifrs-full:GainsLossesOnChangeInValueOfForeignCurrencyBasisSpreadsNetOfTax"}]
["/*",null,{"$f":"'410000 - Est. Resultados ORI'!$D$48","v":"Ajustes de reclasificación por cambios en el valor de los diferenciales de la tasa de cambio de la moneda extranjera, netos de impuestos"},{"$f":"'410000 - Est. Resultados ORI'!$C$48","v":"ifrs-full:ReclassificationAdjustmentsOnChangeInValueOfForeignCurrencyBasisSpreadsNetOfTax"}]
["/*",null,{"$f":"'410000 - Est. Resultados ORI'!$D$49","v":"Otro resultado integral, neto de impuestos, cambios en el valor de los diferenciales de tasa de cambio de la moneda extranjera"},{"$f":"'410000 - Est. Resultados ORI'!$C$49","v":"ifrs-full:OtherComprehensiveIncomeNetOfTaxChangeInValueOfForeignCurrencyBasisSpreads"}]
["/*",null,{"$f":"'410000 - Est. Resultados ORI'!$D$50","v":"Participación de otro resultado integral de asociadas y negocios conjuntos contabilizados utilizando el método de la participación que se reclasificará al resultado del periodo, neto de impuestos"},{"$f":"'410000 - Est. Resultados ORI'!$C$50","v":"ifrs-full:ShareOfOtherComprehensiveIncomeOfAssociatesAndJointVenturesAccountedForUsingEquityMethodThatWillBeReclassifiedToProfitOrLossNetOfTax"}]
["/*",null,{"$f":"'410000 - Est. Resultados ORI'!$D$51","v":"Total otro resultado integral que se reclasificará al resultado del periodo, neto de impuestos"},{"$f":"'410000 - Est. Resultados ORI'!$C$51","v":"ifrs-full:OtherComprehensiveIncomeThatWillBeReclassifiedToProfitOrLossNetOfTax"}]
["/*",null,{"$f":"'410000 - Est. Resultados ORI'!$D$52","v":"Total otro resultado integral"},{"$f":"'410000 - Est. Resultados ORI'!$C$52","v":"ifrs-full:OtherComprehensiveIncome"}]
[{"$f":"IF(G353=\"\",\"/*\",\"\")","v":"/*"},null,{"$f":"'410000 - Est. Resultados ORI'!$D$53","v":"Resultado integral total"},{"$f":"'410000 - Est. Resultados ORI'!$C$53","v":"ifrs-full:ComprehensiveIncome"}]
["/*",null,"--02--"]
["/*",null,{"$f":"'410000 - Est. Resultados ORI'!$D$11","v":"Estado del resultado integral [resumen]"},{"$f":"'410000 - Est. Resultados ORI'!$C$11","v":"ifrs-full:StatementOfComprehensiveIncomeAbstract"}]
["/*",null,{"$f":"'410000 - Est. Resultados ORI'!$D$12","v":"Ganancia (pérdida)"},{"$f":"'410000 - Est. Resultados ORI'!$C$12","v":"ifrs-full:ProfitLoss"}]
["/*",null,{"$f":"'410000 - Est. Resultados ORI'!$D$13","v":"Otro resultado integral [resumen]"},{"$f":"'410000 - Est. Resultados ORI'!$C$13","v":"ifrs-full:OtherComprehensiveIncomeAbstract"}]
["/*",null,{"$f":"'410000 - Est. Resultados ORI'!$D$14","v":"Componentes de otro resultado integral que no se reclasificarán al resultado del periodo, netos de impuestos [resumen]"},{"$f":"'410000 - Est. Resultados ORI'!$C$14","v":"ifrs-full:ComponentsOfOtherComprehensiveIncomeThatWillNotBeReclassifiedToProfitOrLossNetOfTaxAbstract"}]
["/*",null,{"$f":"'410000 - Est. Resultados ORI'!$D$15","v":"Otro resultado integral, neto de impuestos, ganancias (pérdidas) de inversiones en instrumentos de patrimonio"},{"$f":"'410000 - Est. Resultados ORI'!$C$15","v":"ifrs-full:OtherComprehensiveIncomeNetOfTaxGainsLossesFromInvestmentsInEquityInstruments"}]
["/*",null,{"$f":"'410000 - Est. Resultados ORI'!$D$16","v":"Otro resultado integral, neto de impuestos, ganancias (pérdidas) por revaluación"},{"$f":"'410000 - Est. Resultados ORI'!$C$16","v":"ifrs-full:OtherComprehensiveIncomeNetOfTaxGainsLossesOnRevaluation"}]
["/*",null,{"$f":"'410000 - Est. Resultados ORI'!$D$17","v":"Otro resultado integral, neto de impuestos, ganancias (pérdidas) por nuevas mediciones de planes de beneficios definidos"},{"$f":"'410000 - Est. Resultados ORI'!$C$17","v":"ifrs-full:OtherComprehensiveIncomeNetOfTaxGainsLossesOnRemeasurementsOfDefinedBenefitPlans"}]
["/*",null,{"$f":"'410000 - Est. Resultados ORI'!$D$18","v":"Otro resultado integral, neto de impuestos, cambio en el valor razonable de pasivos financieros atribuible a cambios en el riesgo crediticio del pasivo"},{"$f":"'410000 - Est. Resultados ORI'!$C$18","v":"ifrs-full:OtherComprehensiveIncomeNetOfTaxChangeInFairValueOfFinancialLiabilityAttributableToChangeInCreditRiskOfLiability"}]
["/*",null,{"$f":"'410000 - Est. Resultados ORI'!$D$19","v":"Total otro resultado integral que no se reclasificará al resultado del periodo, neto de impuestos"},{"$f":"'410000 - Est. Resultados ORI'!$C$19","v":"ifrs-full:OtherComprehensiveIncomeThatWillNotBeReclassifiedToProfitOrLossNetOfTax"}]
["/*",null,{"$f":"'410000 - Est. Resultados ORI'!$D$20","v":"Componentes de otro resultado integral que se reclasificarán al resultado del periodo, netos de impuestos [resumen]"},{"$f":"'410000 - Est. Resultados ORI'!$C$20","v":"ifrs-full:ComponentsOfOtherComprehensiveIncomeThatWillBeReclassifiedToProfitOrLossNetOfTaxAbstract"}]
["/*",null,{"$f":"'410000 - Est. Resultados ORI'!$D$21","v":"Diferencias de cambio por conversión [resumen]"},{"$f":"'410000 - Est. Resultados ORI'!$C$21","v":"ifrs-full:ExchangeDifferencesOnTranslationAbstract"}]
["/*",null,{"$f":"'410000 - Est. Resultados ORI'!$D$22","v":"Ganancias (pérdidas) por diferencias de cambio de conversión, netas de impuestos"},{"$f":"'410000 - Est. Resultados ORI'!$C$22","v":"ifrs-full:GainsLossesOnExchangeDifferencesOnTranslationNetOfTax"}]
["/*",null,{"$f":"'410000 - Est. Resultados ORI'!$D$23","v":"Ajustes de reclasificación en diferencias de cambio de conversión, netos de impuestos"},{"$f":"'410000 - Est. Resultados ORI'!$C$23","v":"ifrs-full:ReclassificationAdjustmentsOnExchangeDifferencesOnTranslationNetOfTax"}]
["/*",null,{"$f":"'410000 - Est. Resultados ORI'!$D$24","v":"Otro resultado integral, neto de impuestos, diferencias de cambio por conversión"},{"$f":"'410000 - Est. Resultados ORI'!$C$24","v":"ifrs-full:OtherComprehensiveIncomeNetOfTaxExchangeDifferencesOnTranslation"}]
["/*",null,{"$f":"'410000 - Est. Resultados ORI'!$D$25","v":"Activos financieros disponibles para la venta [resumen]"},{"$f":"'410000 - Est. Resultados ORI'!$C$25","v":"ifrs-full:AvailableforsaleFinancialAssetsAbstract"}]
["/*",null,{"$f":"'410000 - Est. Resultados ORI'!$D$26","v":"Ganancias (pérdidas) por nuevas mediciones de activos financieros disponibles para la venta, netas de impuestos"},{"$f":"'410000 - Est. Resultados ORI'!$C$26","v":"ifrs-full:GainsLossesOnRemeasuringAvailableforsaleFinancialAssetsNetOfTax"}]
["/*",null,{"$f":"'410000 - Est. Resultados ORI'!$D$27","v":"Ajustes de reclasificación, activos financieros disponibles para la venta, netos de impuestos"},{"$f":"'410000 - Est. Resultados ORI'!$C$27","v":"ifrs-full:ReclassificationAdjustmentsOnAvailableforsaleFinancialAssetsNetOfTax"}]
["/*",null,{"$f":"'410000 - Est. Resultados ORI'!$D$28","v":"Otro resultado integral, neto de impuestos, activos financieros disponibles para la venta"},{"$f":"'410000 - Est. Resultados ORI'!$C$28","v":"ifrs-full:OtherComprehensiveIncomeNetOfTaxAvailableforsaleFinancialAssets"}]
["/*",null,{"$f":"'410000 - Est. Resultados ORI'!$D$29","v":"Coberturas del flujo de efectivo [resumen]"},{"$f":"'410000 - Est. Resultados ORI'!$C$29","v":"ifrs-full:CashFlowHedgesAbstract"}]
["/*",null,{"$f":"'410000 - Est. Resultados ORI'!$D$30","v":"Ganancias (pérdidas) por coberturas de flujos de efectivo, neto de impuestos"},{"$f":"'410000 - Est. Resultados ORI'!$C$30","v":"ifrs-full:GainsLossesOnCashFlowHedgesNetOfTax"}]
["/*",null,{"$f":"'410000 - Est. Resultados ORI'!$D$31","v":"Ajustes de reclasificación en coberturas de flujos de efectivo, netos de impuestos"},{"$f":"'410000 - Est. Resultados ORI'!$C$31","v":"ifrs-full:ReclassificationAdjustmentsOnCashFlowHedgesNetOfTax"}]
["/*",null,{"$f":"'410000 - Est. Resultados ORI'!$D$32","v":"Importes eliminados del patrimonio e incluidos en el importe en libros de activos (pasivos) no financieros que se hayan adquirido o incurrido mediante una transacción prevista altamente probable cubierta, neto de impuestos"},{"$f":"'410000 - Est. Resultados ORI'!$C$32","v":"ifrs-full:AdjustmentsForAmountsTransferredToInitialCarryingAmountOfHedgedItems"}]
["/*",null,{"$f":"'410000 - Est. Resultados ORI'!$D$33","v":"Otro resultado integral, neto de impuestos, coberturas del flujo de efectivo"},{"$f":"'410000 - Est. Resultados ORI'!$C$33","v":"ifrs-full:OtherComprehensiveIncomeNetOfTaxCashFlowHedges"}]
["/*",null,{"$f":"'410000 - Est. Resultados ORI'!$D$34","v":"Coberturas de inversiones netas en negocios en el extranjero [resumen]"},{"$f":"'410000 - Est. Resultados ORI'!$C$34","v":"ifrs-full:HedgesOfNetInvestmentsInForeignOperationsAbstract"}]
["/*",null,{"$f":"'410000 - Est. Resultados ORI'!$D$35","v":"Ganancias (pérdidas) por coberturas de inversiones netas en negocios en el extranjero, neto de impuestos"},{"$f":"'410000 - Est. Resultados ORI'!$C$35","v":"ifrs-full:GainsLossesOnHedgesOfNetInvestmentsInForeignOperationsNetOfTax"}]
["/*",null,{"$f":"'410000 - Est. Resultados ORI'!$D$36","v":"Ajustes de reclasificación por coberturas de inversiones netas en negocios en el extranjero, netos de impuestos"},{"$f":"'410000 - Est. Resultados ORI'!$C$36","v":"ifrs-full:ReclassificationAdjustmentsOnHedgesOfNetInvestmentsInForeignOperationsNetOfTax"}]
["/*",null,{"$f":"'410000 - Est. Resultados ORI'!$D$37","v":"Otro resultado integral, neto de impuestos, coberturas de inversiones netas en negocios en el extranjero"},{"$f":"'410000 - Est. Resultados ORI'!$C$37","v":"ifrs-full:OtherComprehensiveIncomeNetOfTaxHedgesOfNetInvestmentsInForeignOperations"}]
["/*",null,{"$f":"'410000 - Est. Resultados ORI'!$D$38","v":"Cambio en el valor temporal del dinero de opciones [resumen]"},{"$f":"'410000 - Est. Resultados ORI'!$C$38","v":"ifrs-full:ChangeInValueOfTimeValueOfOptionsAbstract"}]
["/*",null,{"$f":"'410000 - Est. Resultados ORI'!$D$39","v":"Ganancia (pérdida) por cambios en el valor temporal del dinero de opciones, neta de impuestos"},{"$f":"'410000 - Est. Resultados ORI'!$C$39","v":"ifrs-full:GainsLossesOnChangeInValueOfTimeValueOfOptionsNetOfTax"}]
["/*",null,{"$f":"'410000 - Est. Resultados ORI'!$D$40","v":"Ajustes de reclasificación por cambios en el valor temporal del dinero de opciones, netos de impuestos"},{"$f":"'410000 - Est. Resultados ORI'!$C$40","v":"ifrs-full:ReclassificationAdjustmentsOnChangeInValueOfTimeValueOfOptionsNetOfTax"}]
["/*",null,{"$f":"'410000 - Est. Resultados ORI'!$D$41","v":"Otro resultado integral, neto de impuestos, cambios en el valor del valor temporal del dinero de opciones"},{"$f":"'410000 - Est. Resultados ORI'!$C$41","v":"ifrs-full:OtherComprehensiveIncomeNetOfTaxChangeInValueOfTimeValueOfOptions"}]
["/*",null,{"$f":"'410000 - Est. Resultados ORI'!$D$42","v":"Cambios en el valor de los elementos a término de contratos a término [resumen]"},{"$f":"'410000 - Est. Resultados ORI'!$C$42","v":"ifrs-full:ChangeInValueOfForwardElementsOfForwardContractsAbstract"}]
["/*",null,{"$f":"'410000 - Est. Resultados ORI'!$D$43","v":"Ganancia (pérdida) por cambios en el valor de los elementos a término de contratos a término, neta de impuestos"},{"$f":"'410000 - Est. Resultados ORI'!$C$43","v":"ifrs-full:GainsLossesOnChangeInValueOfForwardElementsOfForwardContractsNetOfTax"}]
["/*",null,{"$f":"'410000 - Est. Resultados ORI'!$D$44","v":"Ajustes de reclasificación por cambios en el valor de los elementos a término de contratos a término, netos de impuestos"},{"$f":"'410000 - Est. Resultados ORI'!$C$44","v":"ifrs-full:ReclassificationAdjustmentsOnChangeInValueOfForwardElementsOfForwardContractsNetOfTax"}]
["/*",null,{"$f":"'410000 - Est. Resultados ORI'!$D$45","v":"Otro resultado integral, neto de impuestos, cambios en el valor de los elementos a término de contratos a término"},{"$f":"'410000 - Est. Resultados ORI'!$C$45","v":"ifrs-full:OtherComprehensiveIncomeNetOfTaxChangeInValueOfForwardElementsOfForwardContracts"}]
["/*",null,{"$f":"'410000 - Est. Resultados ORI'!$D$46","v":"Cambio en el valor de los diferenciales de tasa cambio de moneda extranjera [resumen]"},{"$f":"'410000 - Est. Resultados ORI'!$C$46","v":"ifrs-full:ChangeInValueOfForeignCurrencyBasisSpreadsAbstract"}]
["/*",null,{"$f":"'410000 - Est. Resultados ORI'!$D$47","v":"Ganancia (pérdida) por cambios en el valor de los diferenciales de la tasa de cambio de la moneda extranjera, neta de impuestos"},{"$f":"'410000 - Est. Resultados ORI'!$C$47","v":"ifrs-full:GainsLossesOnChangeInValueOfForeignCurrencyBasisSpreadsNetOfTax"}]
["/*",null,{"$f":"'410000 - Est. Resultados ORI'!$D$48","v":"Ajustes de reclasificación por cambios en el valor de los diferenciales de la tasa de cambio de la moneda extranjera, netos de impuestos"},{"$f":"'410000 - Est. Resultados ORI'!$C$48","v":"ifrs-full:ReclassificationAdjustmentsOnChangeInValueOfForeignCurrencyBasisSpreadsNetOfTax"}]
["/*",null,{"$f":"'410000 - Est. Resultados ORI'!$D$49","v":"Otro resultado integral, neto de impuestos, cambios en el valor de los diferenciales de tasa de cambio de la moneda extranjera"},{"$f":"'410000 - Est. Resultados ORI'!$C$49","v":"ifrs-full:OtherComprehensiveIncomeNetOfTaxChangeInValueOfForeignCurrencyBasisSpreads"}]
["/*",null,{"$f":"'410000 - Est. Resultados ORI'!$D$50","v":"Participación de otro resultado integral de asociadas y negocios conjuntos contabilizados utilizando el método de la participación que se reclasificará al resultado del periodo, neto de impuestos"},{"$f":"'410000 - Est. Resultados ORI'!$C$50","v":"ifrs-full:ShareOfOtherComprehensiveIncomeOfAssociatesAndJointVenturesAccountedForUsingEquityMethodThatWillBeReclassifiedToProfitOrLossNetOfTax"}]
["/*",null,{"$f":"'410000 - Est. Resultados ORI'!$D$51","v":"Total otro resultado integral que se reclasificará al resultado del periodo, neto de impuestos"},{"$f":"'410000 - Est. Resultados ORI'!$C$51","v":"ifrs-full:OtherComprehensiveIncomeThatWillBeReclassifiedToProfitOrLossNetOfTax"}]
["/*",null,{"$f":"'410000 - Est. Resultados ORI'!$D$52","v":"Total otro resultado integral"},{"$f":"'410000 - Est. Resultados ORI'!$C$52","v":"ifrs-full:OtherComprehensiveIncome"}]
["/*",null,{"$f":"'410000 - Est. Resultados ORI'!$D$53","v":"Resultado integral total"},{"$f":"'410000 - Est. Resultados ORI'!$C$53","v":"ifrs-full:ComprehensiveIncome"}]
["/*"]
["/*",null,"520000 - Est. Flujos de Efec."]
["/*",null,"--01--"]
["/*",null,{"$f":"'520000 - Est. Flujos de Efec.'!$D$11","v":"Estado de flujos de efectivo [resumen]"},{"$f":"'520000 - Est. Flujos de Efec.'!$C$11","v":"ifrs-full:StatementOfCashFlowsAbstract"}]
["/*",null,{"$f":"'520000 - Est. Flujos de Efec.'!$D$12","v":"Flujos de efectivo procedentes de (utilizados en) actividades de operación [resumen]"},{"$f":"'520000 - Est. Flujos de Efec.'!$C$12","v":"ifrs-full:CashFlowsFromUsedInOperatingActivitiesAbstract"}]
["/*",null,{"$f":"'520000 - Est. Flujos de Efec.'!$D$13","v":"Ganancia (pérdida)"},{"$f":"'520000 - Est. Flujos de Efec.'!$C$13","v":"ifrs-full:ProfitLoss"}]
["/*",null,{"$f":"'520000 - Est. Flujos de Efec.'!$D$14","v":"Ajustes para conciliar la ganancia (pérdida) [resumen]"},{"$f":"'520000 - Est. Flujos de Efec.'!$C$14","v":"ifrs-full:AdjustmentsForReconcileProfitLossAbstract"}]
["/*",null,{"$f":"'520000 - Est. Flujos de Efec.'!$D$15","v":"Ajustes por gasto por impuestos a las ganancias"},{"$f":"'520000 - Est. Flujos de Efec.'!$C$15","v":"ifrs-full:AdjustmentsForIncomeTaxExpense"}]
["/*",null,{"$f":"'520000 - Est. Flujos de Efec.'!$D$16","v":"Ajustes por costos financieros"},{"$f":"'520000 - Est. Flujos de Efec.'!$C$16","v":"ifrs-full:AdjustmentsForFinanceCosts"}]
["/*",null,{"$f":"'520000 - Est. Flujos de Efec.'!$D$17","v":"Ajustes por disminuciones (incrementos) en los inventarios"},{"$f":"'520000 - Est. Flujos de Efec.'!$C$17","v":"ifrs-full:AdjustmentsForDecreaseIncreaseInInventories"}]
["/*",null,{"$f":"'520000 - Est. Flujos de Efec.'!$D$18","v":"Ajustes por la disminución (incremento) de cuentas por cobrar de origen comercial"},{"$f":"'520000 - Est. Flujos de Efec.'!$C$18","v":"ifrs-full:AdjustmentsForDecreaseIncreaseInTradeAccountReceivable"}]
["/*",null,{"$f":"'520000 - Est. Flujos de Efec.'!$D$19","v":"Ajustes por disminuciones (incrementos) en otras cuentas por cobrar derivadas de las actividades de operación"},{"$f":"'520000 - Est. Flujos de Efec.'!$C$19","v":"ifrs-full:AdjustmentsForDecreaseIncreaseInOtherOperatingReceivables"}]
["/*",null,{"$f":"'520000 - Est. Flujos de Efec.'!$D$20","v":"Ajustes por el incremento (disminución) de cuentas por pagar de origen comercial"},{"$f":"'520000 - Est. Flujos de Efec.'!$C$20","v":"ifrs-full:AdjustmentsForIncreaseDecreaseInTradeAccountPayable"}]
["/*",null,{"$f":"'520000 - Est. Flujos de Efec.'!$D$21","v":"Ajustes por incrementos (disminuciones) en otras cuentas por pagar derivadas de las actividades de operación"},{"$f":"'520000 - Est. Flujos de Efec.'!$C$21","v":"ifrs-full:AdjustmentsForIncreaseDecreaseInOtherOperatingPayables"}]
["/*",null,{"$f":"'520000 - Est. Flujos de Efec.'!$D$22","v":"Ajustes por gastos de depreciación y amortización"},{"$f":"'520000 - Est. Flujos de Efec.'!$C$22","v":"ifrs-full:AdjustmentsForDepreciationAndAmortisationExpense"}]
["/*",null,{"$f":"'520000 - Est. Flujos de Efec.'!$D$23","v":"Ajustes por deterioro de valor (reversiones de pérdidas por deterioro de valor) reconocidas en el resultado del periodo"},{"$f":"'520000 - Est. Flujos de Efec.'!$C$23","v":"ifrs-full:AdjustmentsForImpairmentLossReversalOfImpairmentLossRecognisedInProfitOrLoss"}]
["/*",null,{"$f":"'520000 - Est. Flujos de Efec.'!$D$24","v":"Ajustes por provisiones"},{"$f":"'520000 - Est. Flujos de Efec.'!$C$24","v":"ifrs-full:AdjustmentsForProvisions"}]
["/*",null,{"$f":"'520000 - Est. Flujos de Efec.'!$D$25","v":"Ajustes por pérdidas (ganancias) de moneda extranjera no realizadas"},{"$f":"'520000 - Est. Flujos de Efec.'!$C$25","v":"ifrs-full:AdjustmentsForUnrealisedForeignExchangeLossesGains"}]
["/*",null,{"$f":"'520000 - Est. Flujos de Efec.'!$D$26","v":"Ajustes por pagos basados en acciones"},{"$f":"'520000 - Est. Flujos de Efec.'!$C$26","v":"ifrs-full:AdjustmentsForSharebasedPayments"}]
[{"$f":"IF(G417=\"\",\"/*\",\"\")","v":"/*"},null,{"$f":"'520000 - Est. Flujos de Efec.'!$D$27","v":"Ajustes por pérdidas (ganancias) del valor razonable"},{"$f":"'520000 - Est. Flujos de Efec.'!$C$27","v":"ifrs-full:AdjustmentsForFairValueGainsLosses"}]
["/*",null,{"$f":"'520000 - Est. Flujos de Efec.'!$D$28","v":"Ajustes por ganancias no distribuidas de asociadas"},{"$f":"'520000 - Est. Flujos de Efec.'!$C$28","v":"ifrs-full:AdjustmentsForUndistributedProfitsOfAssociates"}]
["/*",null,{"$f":"'520000 - Est. Flujos de Efec.'!$D$29","v":"Otros ajustes por partidas distintas al efectivo"},{"$f":"'520000 - Est. Flujos de Efec.'!$C$29","v":"ifrs-full:OtherAdjustmentsForNoncashItems"}]
["/*",null,{"$f":"'520000 - Est. Flujos de Efec.'!$D$30","v":"Ajustes por pérdidas (ganancias) por la disposición de activos no corrientes"},{"$f":"'520000 - Est. Flujos de Efec.'!$C$30","v":"ifrs-full:AdjustmentsForLossesGainsOnDisposalOfNoncurrentAssets"}]
["/*",null,{"$f":"'520000 - Est. Flujos de Efec.'!$D$31","v":"Otros ajustes para los que los efectos sobre el efectivo son flujos de efectivo de inversión o financiación"},{"$f":"'520000 - Est. Flujos de Efec.'!$C$31","v":"ifrs-full:OtherAdjustmentsForWhichCashEffectsAreInvestingOrFinancingCashFlow"}]
["/*",null,{"$f":"'520000 - Est. Flujos de Efec.'!$D$32","v":"Otros ajustes para conciliar la ganancia (pérdida)"},{"$f":"'520000 - Est. Flujos de Efec.'!$C$32","v":"ifrs-full:OtherAdjustmentsToReconcileProfitLoss"}]
["/*",null,{"$f":"'520000 - Est. Flujos de Efec.'!$D$33","v":"Total ajustes para conciliar la ganancia (pérdida)"},{"$f":"'520000 - Est. Flujos de Efec.'!$C$33","v":"ifrs-full:AdjustmentsForReconcileProfitLoss"}]
["/*",null,{"$f":"'520000 - Est. Flujos de Efec.'!$D$34","v":"Flujos de efectivo netos procedentes (utilizados en) operaciones"},{"$f":"'520000 - Est. Flujos de Efec.'!$C$34","v":"ifrs-full:CashFlowsFromUsedInOperations"}]
["/*",null,{"$f":"'520000 - Est. Flujos de Efec.'!$D$35","v":"Dividendos pagados"},{"$f":"'520000 - Est. Flujos de Efec.'!$C$35","v":"ifrs-full:DividendsPaidClassifiedAsOperatingActivities"}]
["/*",null,{"$f":"'520000 - Est. Flujos de Efec.'!$D$36","v":"Dividendos recibidos"},{"$f":"'520000 - Est. Flujos de Efec.'!$C$36","v":"ifrs-full:DividendsReceivedClassifiedAsOperatingActivities"}]
["/*",null,{"$f":"'520000 - Est. Flujos de Efec.'!$D$37","v":"Intereses pagados"},{"$f":"'520000 - Est. Flujos de Efec.'!$C$37","v":"ifrs-full:InterestPaidClassifiedAsOperatingActivities"}]
["/*",null,{"$f":"'520000 - Est. Flujos de Efec.'!$D$38","v":"Intereses recibidos"},{"$f":"'520000 - Est. Flujos de Efec.'!$C$38","v":"ifrs-full:InterestReceivedClassifiedAsOperatingActivities"}]
["/*",null,{"$f":"'520000 - Est. Flujos de Efec.'!$D$39","v":"Impuestos a las ganancias reembolsados (pagados)"},{"$f":"'520000 - Est. Flujos de Efec.'!$C$39","v":"ifrs-full:IncomeTaxesPaidRefundClassifiedAsOperatingActivities"}]
["/*",null,{"$f":"'520000 - Est. Flujos de Efec.'!$D$40","v":"Otras entradas (salidas) de efectivo"},{"$f":"'520000 - Est. Flujos de Efec.'!$C$40","v":"ifrs-full:OtherInflowsOutflowsOfCashClassifiedAsOperatingActivities"}]
["/*",null,{"$f":"'520000 - Est. Flujos de Efec.'!$D$41","v":"Flujos de efectivo netos procedentes de (utilizados en) actividades de operación"},{"$f":"'520000 - Est. Flujos de Efec.'!$C$41","v":"ifrs-full:CashFlowsFromUsedInOperatingActivities"}]
["/*",null,{"$f":"'520000 - Est. Flujos de Efec.'!$D$42","v":"Flujos de efectivo procedentes de (utilizados en) actividades de inversión [resumen]"},{"$f":"'520000 - Est. Flujos de Efec.'!$C$42","v":"ifrs-full:CashFlowsFromUsedInInvestingActivitiesAbstract"}]
["/*",null,{"$f":"'520000 - Est. Flujos de Efec.'!$D$43","v":"Flujos de efectivo procedentes de la pérdida de control de subsidiarias u otros negocios"},{"$f":"'520000 - Est. Flujos de Efec.'!$C$43","v":"ifrs-full:CashFlowsFromLosingControlOfSubsidiariesOrOtherBusinessesClassifiedAsInvestingActivities"}]
["/*",null,{"$f":"'520000 - Est. Flujos de Efec.'!$D$44","v":"Flujos de efectivo utilizados para obtener el control de subsidiarias u otros negocios"},{"$f":"'520000 - Est. Flujos de Efec.'!$C$44","v":"ifrs-full:CashFlowsUsedInObtainingControlOfSubsidiariesOrOtherBusinessesClassifiedAsInvestingActivities"}]
["/*",null,{"$f":"'520000 - Est. Flujos de Efec.'!$D$45","v":"Otros cobros por la venta de patrimonio o instrumentos de deuda de otras entidades"},{"$f":"'520000 - Est. Flujos de Efec.'!$C$45","v":"ifrs-full:OtherCashReceiptsFromSalesOfEquityOrDebtInstrumentsOfOtherEntitiesClassifiedAsInvestingActivities"}]
["/*",null,{"$f":"'520000 - Est. Flujos de Efec.'!$D$46","v":"Otros pagos para adquirir patrimonio o instrumentos de deuda de otras entidades"},{"$f":"'520000 - Est. Flujos de Efec.'!$C$46","v":"ifrs-full:OtherCashPaymentsToAcquireEquityOrDebtInstrumentsOfOtherEntitiesClassifiedAsInvestingActivities"}]
["/*",null,{"$f":"'520000 - Est. Flujos de Efec.'!$D$47","v":"Otros cobros por la venta de participaciones en negocios conjuntos"},{"$f":"'520000 - Est. Flujos de Efec.'!$C$47","v":"ifrs-full:OtherCashReceiptsFromSalesOfInterestsInJointVenturesClassifiedAsInvestingActivities"}]
["/*",null,{"$f":"'520000 - Est. Flujos de Efec.'!$D$48","v":"Otros pagos para adquirir participaciones en negocios conjuntos"},{"$f":"'520000 - Est. Flujos de Efec.'!$C$48","v":"ifrs-full:OtherCashPaymentsToAcquireInterestsInJointVenturesClassifiedAsInvestingActivities"}]
["/*",null,{"$f":"'520000 - Est. Flujos de Efec.'!$D$49","v":"Importes procedentes de la venta de propiedades, planta y equipo"},{"$f":"'520000 - Est. Flujos de Efec.'!$C$49","v":"ifrs-full:ProceedsFromSalesOfPropertyPlantAndEquipmentClassifiedAsInvestingActivities"}]
["/*",null,{"$f":"'520000 - Est. Flujos de Efec.'!$D$50","v":"Compras de propiedades, planta y equipo"},{"$f":"'520000 - Est. Flujos de Efec.'!$C$50","v":"ifrs-full:PurchaseOfPropertyPlantAndEquipmentClassifiedAsInvestingActivities"}]
["/*",null,{"$f":"'520000 - Est. Flujos de Efec.'!$D$51","v":"Importes procedentes de ventas de activos intangibles"},{"$f":"'520000 - Est. Flujos de Efec.'!$C$51","v":"ifrs-full:ProceedsFromSalesOfIntangibleAssetsClassifiedAsInvestingActivities"}]
["/*",null,{"$f":"'520000 - Est. Flujos de Efec.'!$D$52","v":"Compras de activos intangibles"},{"$f":"'520000 - Est. Flujos de Efec.'!$C$52","v":"ifrs-full:PurchaseOfIntangibleAssetsClassifiedAsInvestingActivities"}]
["/*",null,{"$f":"'520000 - Est. Flujos de Efec.'!$D$53","v":"Recursos por ventas de otros activos a largo plazo"},{"$f":"'520000 - Est. Flujos de Efec.'!$C$53","v":"ifrs-full:ProceedsFromOtherLongtermAssetsClassifiedAsInvestingActivities"}]
["/*",null,{"$f":"'520000 - Est. Flujos de Efec.'!$D$54","v":"Compras de otros activos a largo plazo"},{"$f":"'520000 - Est. Flujos de Efec.'!$C$54","v":"ifrs-full:PurchaseOfOtherLongtermAssetsClassifiedAsInvestingActivities"}]
["/*",null,{"$f":"'520000 - Est. Flujos de Efec.'!$D$55","v":"Importes procedentes de subvenciones del gobierno"},{"$f":"'520000 - Est. Flujos de Efec.'!$C$55","v":"ifrs-full:ProceedsFromGovernmentGrantsClassifiedAsInvestingActivities"}]
["/*",null,{"$f":"'520000 - Est. Flujos de Efec.'!$D$56","v":"Anticipos de efectivo y préstamos concedidos a terceros"},{"$f":"'520000 - Est. Flujos de Efec.'!$C$56","v":"ifrs-full:CashAdvancesAndLoansMadeToOtherPartiesClassifiedAsInvestingActivities"}]
["/*",null,{"$f":"'520000 - Est. Flujos de Efec.'!$D$57","v":"Cobros procedentes del reembolso de anticipos y préstamos concedidos a terceros"},{"$f":"'520000 - Est. Flujos de Efec.'!$C$57","v":"ifrs-full:CashReceiptsFromRepaymentOfAdvancesAndLoansMadeToOtherPartiesClassifiedAsInvestingActivities"}]
["/*",null,{"$f":"'520000 - Est. Flujos de Efec.'!$D$58","v":"Pagos en efectivo por contratos de futuros, contratos a término, contratos de opciones y contratos de permuta financiera"},{"$f":"'520000 - Est. Flujos de Efec.'!$C$58","v":"ifrs-full:CashPaymentsForFutureContractsForwardContractsOptionContractsAndSwapContractsClassifiedAsInvestingActivities"}]
["/*",null,{"$f":"'520000 - Est. Flujos de Efec.'!$D$59","v":"Cobros en efectivo por contratos de futuros, contratos a término, contratos de opciones y contratos de permuta financiera"},{"$f":"'520000 - Est. Flujos de Efec.'!$C$59","v":"ifrs-full:CashReceiptsFromFutureContractsForwardContractsOptionContractsAndSwapContractsClassifiedAsInvestingActivities"}]
["/*",null,{"$f":"'520000 - Est. Flujos de Efec.'!$D$60","v":"Dividendos recibidos"},{"$f":"'520000 - Est. Flujos de Efec.'!$C$60","v":"ifrs-full:DividendsReceivedClassifiedAsInvestingActivities"}]
["/*",null,{"$f":"'520000 - Est. Flujos de Efec.'!$D$61","v":"Intereses pagados"},{"$f":"'520000 - Est. Flujos de Efec.'!$C$61","v":"ifrs-full:InterestPaidClassifiedAsInvestingActivities"}]
["/*",null,{"$f":"'520000 - Est. Flujos de Efec.'!$D$62","v":"Intereses recibidos"},{"$f":"'520000 - Est. Flujos de Efec.'!$C$62","v":"ifrs-full:InterestReceivedClassifiedAsInvestingActivities"}]
["/*",null,{"$f":"'520000 - Est. Flujos de Efec.'!$D$63","v":"Impuestos a las ganancias reembolsados (pagados)"},{"$f":"'520000 - Est. Flujos de Efec.'!$C$63","v":"ifrs-full:IncomeTaxesPaidRefundClassifiedAsInvestingActivities"}]
["/*",null,{"$f":"'520000 - Est. Flujos de Efec.'!$D$64","v":"Otras entradas (salidas) de efectivo"},{"$f":"'520000 - Est. Flujos de Efec.'!$C$64","v":"ifrs-full:OtherInflowsOutflowsOfCashClassifiedAsInvestingActivities"}]
["/*",null,{"$f":"'520000 - Est. Flujos de Efec.'!$D$65","v":"Flujos de efectivo netos procedentes de (utilizados en) actividades de inversión"},{"$f":"'520000 - Est. Flujos de Efec.'!$C$65","v":"ifrs-full:CashFlowsFromUsedInInvestingActivities"}]
["/*",null,{"$f":"'520000 - Est. Flujos de Efec.'!$D$66","v":"Flujos de efectivo procedentes de (utilizados en) actividades de financiación [resumen]"},{"$f":"'520000 - Est. Flujos de Efec.'!$C$66","v":"ifrs-full:CashFlowsFromUsedInFinancingActivitiesAbstract"}]
["/*",null,{"$f":"'520000 - Est. Flujos de Efec.'!$D$67","v":"Recursos por cambios en las participaciones en la propiedad en subsidiarias que no dan lugar a la pérdida de control"},{"$f":"'520000 - Est. Flujos de Efec.'!$C$67","v":"ifrs-full:ProceedsFromChangesInOwnershipInterestsInSubsidiaries"}]
["/*",null,{"$f":"'520000 - Est. Flujos de Efec.'!$D$68","v":"Pagos por cambios en las participaciones en la propiedad en subsidiarias que no dan lugar a la pérdida de control"},{"$f":"'520000 - Est. Flujos de Efec.'!$C$68","v":"ifrs-full:PaymentsFromChangesInOwnershipInterestsInSubsidiaries"}]
["/*",null,{"$f":"'520000 - Est. Flujos de Efec.'!$D$69","v":"Importes procedentes de la emisión de acciones"},{"$f":"'520000 - Est. Flujos de Efec.'!$C$69","v":"ifrs-full:ProceedsFromIssuingShares"}]
["/*",null,{"$f":"'520000 - Est. Flujos de Efec.'!$D$70","v":"Importes procedentes de la emisión de otros instrumentos de patrimonio"},{"$f":"'520000 - Est. Flujos de Efec.'!$C$70","v":"ifrs-full:ProceedsFromIssuingOtherEquityInstruments"}]
["/*",null,{"$f":"'520000 - Est. Flujos de Efec.'!$D$71","v":"Pagos por adquirir o rescatar las acciones de la entidad"},{"$f":"'520000 - Est. Flujos de Efec.'!$C$71","v":"ifrs-full:PaymentsToAcquireOrRedeemEntitysShares"}]
["/*",null,{"$f":"'520000 - Est. Flujos de Efec.'!$D$72","v":"Pagos por otras participaciones en el patrimonio"},{"$f":"'520000 - Est. Flujos de Efec.'!$C$72","v":"ifrs-full:PaymentsOfOtherEquityInstruments"}]
["/*",null,{"$f":"'520000 - Est. Flujos de Efec.'!$D$73","v":"Importes procedentes de préstamos"},{"$f":"'520000 - Est. Flujos de Efec.'!$C$73","v":"ifrs-full:ProceedsFromBorrowingsClassifiedAsFinancingActivities"}]
["/*",null,{"$f":"'520000 - Est. Flujos de Efec.'!$D$74","v":"Reembolsos de préstamos"},{"$f":"'520000 - Est. Flujos de Efec.'!$C$74","v":"ifrs-full:RepaymentsOfBorrowingsClassifiedAsFinancingActivities"}]
["/*",null,{"$f":"'520000 - Est. Flujos de Efec.'!$D$75","v":"Pagos de pasivos por arrendamientos financieros"},{"$f":"'520000 - Est. Flujos de Efec.'!$C$75","v":"ifrs-full:PaymentsOfFinanceLeaseLiabilitiesClassifiedAsFinancingActivities"}]
["/*",null,{"$f":"'520000 - Est. Flujos de Efec.'!$D$76","v":"Pagos de pasivos por arrendamiento"},{"$f":"'520000 - Est. Flujos de Efec.'!$C$76","v":"ifrs-full:PaymentsOfLeaseLiabilitiesClassifiedAsFinancingActivities"}]
["/*",null,{"$f":"'520000 - Est. Flujos de Efec.'!$D$77","v":"Importes procedentes de subvenciones del gobierno"},{"$f":"'520000 - Est. Flujos de Efec.'!$C$77","v":"ifrs-full:ProceedsFromGovernmentGrantsClassifiedAsFinancingActivities"}]
["/*",null,{"$f":"'520000 - Est. Flujos de Efec.'!$D$78","v":"Dividendos pagados"},{"$f":"'520000 - Est. Flujos de Efec.'!$C$78","v":"ifrs-full:DividendsPaidClassifiedAsFinancingActivities"}]
["/*",null,{"$f":"'520000 - Est. Flujos de Efec.'!$D$79","v":"Intereses pagados"},{"$f":"'520000 - Est. Flujos de Efec.'!$C$79","v":"ifrs-full:InterestPaidClassifiedAsFinancingActivities"}]
["/*",null,{"$f":"'520000 - Est. Flujos de Efec.'!$D$80","v":"Impuestos a las ganancias reembolsados (pagados)"},{"$f":"'520000 - Est. Flujos de Efec.'!$C$80","v":"ifrs-full:IncomeTaxesPaidRefundClassifiedAsFinancingActivities"}]
["/*",null,{"$f":"'520000 - Est. Flujos de Efec.'!$D$81","v":"Otras entradas (salidas) de efectivo"},{"$f":"'520000 - Est. Flujos de Efec.'!$C$81","v":"ifrs-full:OtherInflowsOutflowsOfCashClassifiedAsFinancingActivities"}]
["/*",null,{"$f":"'520000 - Est. Flujos de Efec.'!$D$82","v":"Flujos de efectivo netos procedentes de (utilizados en) actividades de financiación"},{"$f":"'520000 - Est. Flujos de Efec.'!$C$82","v":"ifrs-full:CashFlowsFromUsedInFinancingActivities"}]
["/*",null,{"$f":"'520000 - Est. Flujos de Efec.'!$D$83","v":"Incremento (disminución) neto de efectivo y equivalentes al efectivo, antes del efecto de los cambios en la tasa de cambio"},{"$f":"'520000 - Est. Flujos de Efec.'!$C$83","v":"ifrs-full:IncreaseDecreaseInCashAndCashEquivalentsBeforeEffectOfExchangeRateChanges"}]
["/*",null,{"$f":"'520000 - Est. Flujos de Efec.'!$D$84","v":"Efectos de la variación en la tasa de cambio sobre el efectivo y equivalentes al efectivo [resumen]"},{"$f":"'520000 - Est. Flujos de Efec.'!$C$84","v":"ifrs-full:EffectOfExchangeRateChangesOnCashAndCashEquivalentsAbstract"}]
["/*",null,{"$f":"'520000 - Est. Flujos de Efec.'!$D$85","v":"Efectos de la variación en la tasa de cambio sobre el efectivo y equivalentes al efectivo"},{"$f":"'520000 - Est. Flujos de Efec.'!$C$85","v":"ifrs-full:EffectOfExchangeRateChangesOnCashAndCashEquivalents"}]
["/*",null,{"$f":"'520000 - Est. Flujos de Efec.'!$D$86","v":"Incremento (disminución) neto de efectivo y equivalentes al efectivo"},{"$f":"'520000 - Est. Flujos de Efec.'!$C$86","v":"ifrs-full:IncreaseDecreaseInCashAndCashEquivalents"}]
["/*",null,{"$f":"'520000 - Est. Flujos de Efec.'!$D$87","v":"Efectivo y equivalentes al efectivo al principio del periodo"},{"$f":"'520000 - Est. Flujos de Efec.'!$C$87","v":"ifrs-full:CashAndCashEquivalents"}]
["/*",null,{"$f":"'520000 - Est. Flujos de Efec.'!$D$88","v":"Efectivo y equivalentes al efectivo al final del periodo"},{"$f":"'520000 - Est. Flujos de Efec.'!$C$88","v":"ifrs-full:CashAndCashEquivalents"}]
["/*",null,"--02--"]
["/*",null,{"$f":"'520000 - Est. Flujos de Efec.'!$D$11","v":"Estado de flujos de efectivo [resumen]"},{"$f":"'520000 - Est. Flujos de Efec.'!$C$11","v":"ifrs-full:StatementOfCashFlowsAbstract"}]
[{"$f":"IF(G481=\"\",\"/*\",\"\")","v":"/*"},null,{"$f":"'520000 - Est. Flujos de Efec.'!$D$12","v":"Flujos de efectivo procedentes de (utilizados en) actividades de operación [resumen]"},{"$f":"'520000 - Est. Flujos de Efec.'!$C$12","v":"ifrs-full:CashFlowsFromUsedInOperatingActivitiesAbstract"}]
["/*",null,{"$f":"'520000 - Est. Flujos de Efec.'!$D$13","v":"Ganancia (pérdida)"},{"$f":"'520000 - Est. Flujos de Efec.'!$C$13","v":"ifrs-full:ProfitLoss"}]
["/*",null,{"$f":"'520000 - Est. Flujos de Efec.'!$D$14","v":"Ajustes para conciliar la ganancia (pérdida) [resumen]"},{"$f":"'520000 - Est. Flujos de Efec.'!$C$14","v":"ifrs-full:AdjustmentsForReconcileProfitLossAbstract"}]
["/*",null,{"$f":"'520000 - Est. Flujos de Efec.'!$D$15","v":"Ajustes por gasto por impuestos a las ganancias"},{"$f":"'520000 - Est. Flujos de Efec.'!$C$15","v":"ifrs-full:AdjustmentsForIncomeTaxExpense"}]
["/*",null,{"$f":"'520000 - Est. Flujos de Efec.'!$D$16","v":"Ajustes por costos financieros"},{"$f":"'520000 - Est. Flujos de Efec.'!$C$16","v":"ifrs-full:AdjustmentsForFinanceCosts"}]
["/*",null,{"$f":"'520000 - Est. Flujos de Efec.'!$D$17","v":"Ajustes por disminuciones (incrementos) en los inventarios"},{"$f":"'520000 - Est. Flujos de Efec.'!$C$17","v":"ifrs-full:AdjustmentsForDecreaseIncreaseInInventories"}]
["/*",null,{"$f":"'520000 - Est. Flujos de Efec.'!$D$18","v":"Ajustes por la disminución (incremento) de cuentas por cobrar de origen comercial"},{"$f":"'520000 - Est. Flujos de Efec.'!$C$18","v":"ifrs-full:AdjustmentsForDecreaseIncreaseInTradeAccountReceivable"}]
["/*",null,{"$f":"'520000 - Est. Flujos de Efec.'!$D$19","v":"Ajustes por disminuciones (incrementos) en otras cuentas por cobrar derivadas de las actividades de operación"},{"$f":"'520000 - Est. Flujos de Efec.'!$C$19","v":"ifrs-full:AdjustmentsForDecreaseIncreaseInOtherOperatingReceivables"}]
["/*",null,{"$f":"'520000 - Est. Flujos de Efec.'!$D$20","v":"Ajustes por el incremento (disminución) de cuentas por pagar de origen comercial"},{"$f":"'520000 - Est. Flujos de Efec.'!$C$20","v":"ifrs-full:AdjustmentsForIncreaseDecreaseInTradeAccountPayable"}]
["/*",null,{"$f":"'520000 - Est. Flujos de Efec.'!$D$21","v":"Ajustes por incrementos (disminuciones) en otras cuentas por pagar derivadas de las actividades de operación"},{"$f":"'520000 - Est. Flujos de Efec.'!$C$21","v":"ifrs-full:AdjustmentsForIncreaseDecreaseInOtherOperatingPayables"}]
["/*",null,{"$f":"'520000 - Est. Flujos de Efec.'!$D$22","v":"Ajustes por gastos de depreciación y amortización"},{"$f":"'520000 - Est. Flujos de Efec.'!$C$22","v":"ifrs-full:AdjustmentsForDepreciationAndAmortisationExpense"}]
["/*",null,{"$f":"'520000 - Est. Flujos de Efec.'!$D$23","v":"Ajustes por deterioro de valor (reversiones de pérdidas por deterioro de valor) reconocidas en el resultado del periodo"},{"$f":"'520000 - Est. Flujos de Efec.'!$C$23","v":"ifrs-full:AdjustmentsForImpairmentLossReversalOfImpairmentLossRecognisedInProfitOrLoss"}]
["/*",null,{"$f":"'520000 - Est. Flujos de Efec.'!$D$24","v":"Ajustes por provisiones"},{"$f":"'520000 - Est. Flujos de Efec.'!$C$24","v":"ifrs-full:AdjustmentsForProvisions"}]
["/*",null,{"$f":"'520000 - Est. Flujos de Efec.'!$D$25","v":"Ajustes por pérdidas (ganancias) de moneda extranjera no realizadas"},{"$f":"'520000 - Est. Flujos de Efec.'!$C$25","v":"ifrs-full:AdjustmentsForUnrealisedForeignExchangeLossesGains"}]
["/*",null,{"$f":"'520000 - Est. Flujos de Efec.'!$D$26","v":"Ajustes por pagos basados en acciones"},{"$f":"'520000 - Est. Flujos de Efec.'!$C$26","v":"ifrs-full:AdjustmentsForSharebasedPayments"}]
["/*",null,{"$f":"'520000 - Est. Flujos de Efec.'!$D$27","v":"Ajustes por pérdidas (ganancias) del valor razonable"},{"$f":"'520000 - Est. Flujos de Efec.'!$C$27","v":"ifrs-full:AdjustmentsForFairValueGainsLosses"}]
["/*",null,{"$f":"'520000 - Est. Flujos de Efec.'!$D$28","v":"Ajustes por ganancias no distribuidas de asociadas"},{"$f":"'520000 - Est. Flujos de Efec.'!$C$28","v":"ifrs-full:AdjustmentsForUndistributedProfitsOfAssociates"}]
["/*",null,{"$f":"'520000 - Est. Flujos de Efec.'!$D$29","v":"Otros ajustes por partidas distintas al efectivo"},{"$f":"'520000 - Est. Flujos de Efec.'!$C$29","v":"ifrs-full:OtherAdjustmentsForNoncashItems"}]
["/*",null,{"$f":"'520000 - Est. Flujos de Efec.'!$D$30","v":"Ajustes por pérdidas (ganancias) por la disposición de activos no corrientes"},{"$f":"'520000 - Est. Flujos de Efec.'!$C$30","v":"ifrs-full:AdjustmentsForLossesGainsOnDisposalOfNoncurrentAssets"}]
["/*",null,{"$f":"'520000 - Est. Flujos de Efec.'!$D$31","v":"Otros ajustes para los que los efectos sobre el efectivo son flujos de efectivo de inversión o financiación"},{"$f":"'520000 - Est. Flujos de Efec.'!$C$31","v":"ifrs-full:OtherAdjustmentsForWhichCashEffectsAreInvestingOrFinancingCashFlow"}]
["/*",null,{"$f":"'520000 - Est. Flujos de Efec.'!$D$32","v":"Otros ajustes para conciliar la ganancia (pérdida)"},{"$f":"'520000 - Est. Flujos de Efec.'!$C$32","v":"ifrs-full:OtherAdjustmentsToReconcileProfitLoss"}]
["/*",null,{"$f":"'520000 - Est. Flujos de Efec.'!$D$33","v":"Total ajustes para conciliar la ganancia (pérdida)"},{"$f":"'520000 - Est. Flujos de Efec.'!$C$33","v":"ifrs-full:AdjustmentsForReconcileProfitLoss"}]
["/*",null,{"$f":"'520000 - Est. Flujos de Efec.'!$D$34","v":"Flujos de efectivo netos procedentes (utilizados en) operaciones"},{"$f":"'520000 - Est. Flujos de Efec.'!$C$34","v":"ifrs-full:CashFlowsFromUsedInOperations"}]
["/*",null,{"$f":"'520000 - Est. Flujos de Efec.'!$D$35","v":"Dividendos pagados"},{"$f":"'520000 - Est. Flujos de Efec.'!$C$35","v":"ifrs-full:DividendsPaidClassifiedAsOperatingActivities"}]
["/*",null,{"$f":"'520000 - Est. Flujos de Efec.'!$D$36","v":"Dividendos recibidos"},{"$f":"'520000 - Est. Flujos de Efec.'!$C$36","v":"ifrs-full:DividendsReceivedClassifiedAsOperatingActivities"}]
["/*",null,{"$f":"'520000 - Est. Flujos de Efec.'!$D$37","v":"Intereses pagados"},{"$f":"'520000 - Est. Flujos de Efec.'!$C$37","v":"ifrs-full:InterestPaidClassifiedAsOperatingActivities"}]
["/*",null,{"$f":"'520000 - Est. Flujos de Efec.'!$D$38","v":"Intereses recibidos"},{"$f":"'520000 - Est. Flujos de Efec.'!$C$38","v":"ifrs-full:InterestReceivedClassifiedAsOperatingActivities"}]
["/*",null,{"$f":"'520000 - Est. Flujos de Efec.'!$D$39","v":"Impuestos a las ganancias reembolsados (pagados)"},{"$f":"'520000 - Est. Flujos de Efec.'!$C$39","v":"ifrs-full:IncomeTaxesPaidRefundClassifiedAsOperatingActivities"}]
["/*",null,{"$f":"'520000 - Est. Flujos de Efec.'!$D$40","v":"Otras entradas (salidas) de efectivo"},{"$f":"'520000 - Est. Flujos de Efec.'!$C$40","v":"ifrs-full:OtherInflowsOutflowsOfCashClassifiedAsOperatingActivities"}]
["/*",null,{"$f":"'520000 - Est. Flujos de Efec.'!$D$41","v":"Flujos de efectivo netos procedentes de (utilizados en) actividades de operación"},{"$f":"'520000 - Est. Flujos de Efec.'!$C$41","v":"ifrs-full:CashFlowsFromUsedInOperatingActivities"}]
["/*",null,{"$f":"'520000 - Est. Flujos de Efec.'!$D$42","v":"Flujos de efectivo procedentes de (utilizados en) actividades de inversión [resumen]"},{"$f":"'520000 - Est. Flujos de Efec.'!$C$42","v":"ifrs-full:CashFlowsFromUsedInInvestingActivitiesAbstract"}]
["/*",null,{"$f":"'520000 - Est. Flujos de Efec.'!$D$43","v":"Flujos de efectivo procedentes de la pérdida de control de subsidiarias u otros negocios"},{"$f":"'520000 - Est. Flujos de Efec.'!$C$43","v":"ifrs-full:CashFlowsFromLosingControlOfSubsidiariesOrOtherBusinessesClassifiedAsInvestingActivities"}]
["/*",null,{"$f":"'520000 - Est. Flujos de Efec.'!$D$44","v":"Flujos de efectivo utilizados para obtener el control de subsidiarias u otros negocios"},{"$f":"'520000 - Est. Flujos de Efec.'!$C$44","v":"ifrs-full:CashFlowsUsedInObtainingControlOfSubsidiariesOrOtherBusinessesClassifiedAsInvestingActivities"}]
["/*",null,{"$f":"'520000 - Est. Flujos de Efec.'!$D$45","v":"Otros cobros por la venta de patrimonio o instrumentos de deuda de otras entidades"},{"$f":"'520000 - Est. Flujos de Efec.'!$C$45","v":"ifrs-full:OtherCashReceiptsFromSalesOfEquityOrDebtInstrumentsOfOtherEntitiesClassifiedAsInvestingActivities"}]
["/*",null,{"$f":"'520000 - Est. Flujos de Efec.'!$D$46","v":"Otros pagos para adquirir patrimonio o instrumentos de deuda de otras entidades"},{"$f":"'520000 - Est. Flujos de Efec.'!$C$46","v":"ifrs-full:OtherCashPaymentsToAcquireEquityOrDebtInstrumentsOfOtherEntitiesClassifiedAsInvestingActivities"}]
["/*",null,{"$f":"'520000 - Est. Flujos de Efec.'!$D$47","v":"Otros cobros por la venta de participaciones en negocios conjuntos"},{"$f":"'520000 - Est. Flujos de Efec.'!$C$47","v":"ifrs-full:OtherCashReceiptsFromSalesOfInterestsInJointVenturesClassifiedAsInvestingActivities"}]
["/*",null,{"$f":"'520000 - Est. Flujos de Efec.'!$D$48","v":"Otros pagos para adquirir participaciones en negocios conjuntos"},{"$f":"'520000 - Est. Flujos de Efec.'!$C$48","v":"ifrs-full:OtherCashPaymentsToAcquireInterestsInJointVenturesClassifiedAsInvestingActivities"}]
["/*",null,{"$f":"'520000 - Est. Flujos de Efec.'!$D$49","v":"Importes procedentes de la venta de propiedades, planta y equipo"},{"$f":"'520000 - Est. Flujos de Efec.'!$C$49","v":"ifrs-full:ProceedsFromSalesOfPropertyPlantAndEquipmentClassifiedAsInvestingActivities"}]
["/*",null,{"$f":"'520000 - Est. Flujos de Efec.'!$D$50","v":"Compras de propiedades, planta y equipo"},{"$f":"'520000 - Est. Flujos de Efec.'!$C$50","v":"ifrs-full:PurchaseOfPropertyPlantAndEquipmentClassifiedAsInvestingActivities"}]
["/*",null,{"$f":"'520000 - Est. Flujos de Efec.'!$D$51","v":"Importes procedentes de ventas de activos intangibles"},{"$f":"'520000 - Est. Flujos de Efec.'!$C$51","v":"ifrs-full:ProceedsFromSalesOfIntangibleAssetsClassifiedAsInvestingActivities"}]
["/*",null,{"$f":"'520000 - Est. Flujos de Efec.'!$D$52","v":"Compras de activos intangibles"},{"$f":"'520000 - Est. Flujos de Efec.'!$C$52","v":"ifrs-full:PurchaseOfIntangibleAssetsClassifiedAsInvestingActivities"}]
["/*",null,{"$f":"'520000 - Est. Flujos de Efec.'!$D$53","v":"Recursos por ventas de otros activos a largo plazo"},{"$f":"'520000 - Est. Flujos de Efec.'!$C$53","v":"ifrs-full:ProceedsFromOtherLongtermAssetsClassifiedAsInvestingActivities"}]
["/*",null,{"$f":"'520000 - Est. Flujos de Efec.'!$D$54","v":"Compras de otros activos a largo plazo"},{"$f":"'520000 - Est. Flujos de Efec.'!$C$54","v":"ifrs-full:PurchaseOfOtherLongtermAssetsClassifiedAsInvestingActivities"}]
["/*",null,{"$f":"'520000 - Est. Flujos de Efec.'!$D$55","v":"Importes procedentes de subvenciones del gobierno"},{"$f":"'520000 - Est. Flujos de Efec.'!$C$55","v":"ifrs-full:ProceedsFromGovernmentGrantsClassifiedAsInvestingActivities"}]
["/*",null,{"$f":"'520000 - Est. Flujos de Efec.'!$D$56","v":"Anticipos de efectivo y préstamos concedidos a terceros"},{"$f":"'520000 - Est. Flujos de Efec.'!$C$56","v":"ifrs-full:CashAdvancesAndLoansMadeToOtherPartiesClassifiedAsInvestingActivities"}]
["/*",null,{"$f":"'520000 - Est. Flujos de Efec.'!$D$57","v":"Cobros procedentes del reembolso de anticipos y préstamos concedidos a terceros"},{"$f":"'520000 - Est. Flujos de Efec.'!$C$57","v":"ifrs-full:CashReceiptsFromRepaymentOfAdvancesAndLoansMadeToOtherPartiesClassifiedAsInvestingActivities"}]
["/*",null,{"$f":"'520000 - Est. Flujos de Efec.'!$D$58","v":"Pagos en efectivo por contratos de futuros, contratos a término, contratos de opciones y contratos de permuta financiera"},{"$f":"'520000 - Est. Flujos de Efec.'!$C$58","v":"ifrs-full:CashPaymentsForFutureContractsForwardContractsOptionContractsAndSwapContractsClassifiedAsInvestingActivities"}]
["/*",null,{"$f":"'520000 - Est. Flujos de Efec.'!$D$59","v":"Cobros en efectivo por contratos de futuros, contratos a término, contratos de opciones y contratos de permuta financiera"},{"$f":"'520000 - Est. Flujos de Efec.'!$C$59","v":"ifrs-full:CashReceiptsFromFutureContractsForwardContractsOptionContractsAndSwapContractsClassifiedAsInvestingActivities"}]
["/*",null,{"$f":"'520000 - Est. Flujos de Efec.'!$D$60","v":"Dividendos recibidos"},{"$f":"'520000 - Est. Flujos de Efec.'!$C$60","v":"ifrs-full:DividendsReceivedClassifiedAsInvestingActivities"}]
["/*",null,{"$f":"'520000 - Est. Flujos de Efec.'!$D$61","v":"Intereses pagados"},{"$f":"'520000 - Est. Flujos de Efec.'!$C$61","v":"ifrs-full:InterestPaidClassifiedAsInvestingActivities"}]
["/*",null,{"$f":"'520000 - Est. Flujos de Efec.'!$D$62","v":"Intereses recibidos"},{"$f":"'520000 - Est. Flujos de Efec.'!$C$62","v":"ifrs-full:InterestReceivedClassifiedAsInvestingActivities"}]
["/*",null,{"$f":"'520000 - Est. Flujos de Efec.'!$D$63","v":"Impuestos a las ganancias reembolsados (pagados)"},{"$f":"'520000 - Est. Flujos de Efec.'!$C$63","v":"ifrs-full:IncomeTaxesPaidRefundClassifiedAsInvestingActivities"}]
["/*",null,{"$f":"'520000 - Est. Flujos de Efec.'!$D$64","v":"Otras entradas (salidas) de efectivo"},{"$f":"'520000 - Est. Flujos de Efec.'!$C$64","v":"ifrs-full:OtherInflowsOutflowsOfCashClassifiedAsInvestingActivities"}]
["/*",null,{"$f":"'520000 - Est. Flujos de Efec.'!$D$65","v":"Flujos de efectivo netos procedentes de (utilizados en) actividades de inversión"},{"$f":"'520000 - Est. Flujos de Efec.'!$C$65","v":"ifrs-full:CashFlowsFromUsedInInvestingActivities"}]
["/*",null,{"$f":"'520000 - Est. Flujos de Efec.'!$D$66","v":"Flujos de efectivo procedentes de (utilizados en) actividades de financiación [resumen]"},{"$f":"'520000 - Est. Flujos de Efec.'!$C$66","v":"ifrs-full:CashFlowsFromUsedInFinancingActivitiesAbstract"}]
["/*",null,{"$f":"'520000 - Est. Flujos de Efec.'!$D$67","v":"Recursos por cambios en las participaciones en la propiedad en subsidiarias que no dan lugar a la pérdida de control"},{"$f":"'520000 - Est. Flujos de Efec.'!$C$67","v":"ifrs-full:ProceedsFromChangesInOwnershipInterestsInSubsidiaries"}]
["/*",null,{"$f":"'520000 - Est. Flujos de Efec.'!$D$68","v":"Pagos por cambios en las participaciones en la propiedad en subsidiarias que no dan lugar a la pérdida de control"},{"$f":"'520000 - Est. Flujos de Efec.'!$C$68","v":"ifrs-full:PaymentsFromChangesInOwnershipInterestsInSubsidiaries"}]
["/*",null,{"$f":"'520000 - Est. Flujos de Efec.'!$D$69","v":"Importes procedentes de la emisión de acciones"},{"$f":"'520000 - Est. Flujos de Efec.'!$C$69","v":"ifrs-full:ProceedsFromIssuingShares"}]
["/*",null,{"$f":"'520000 - Est. Flujos de Efec.'!$D$70","v":"Importes procedentes de la emisión de otros instrumentos de patrimonio"},{"$f":"'520000 - Est. Flujos de Efec.'!$C$70","v":"ifrs-full:ProceedsFromIssuingOtherEquityInstruments"}]
["/*",null,{"$f":"'520000 - Est. Flujos de Efec.'!$D$71","v":"Pagos por adquirir o rescatar las acciones de la entidad"},{"$f":"'520000 - Est. Flujos de Efec.'!$C$71","v":"ifrs-full:PaymentsToAcquireOrRedeemEntitysShares"}]
["/*",null,{"$f":"'520000 - Est. Flujos de Efec.'!$D$72","v":"Pagos por otras participaciones en el patrimonio"},{"$f":"'520000 - Est. Flujos de Efec.'!$C$72","v":"ifrs-full:PaymentsOfOtherEquityInstruments"}]
["/*",null,{"$f":"'520000 - Est. Flujos de Efec.'!$D$73","v":"Importes procedentes de préstamos"},{"$f":"'520000 - Est. Flujos de Efec.'!$C$73","v":"ifrs-full:ProceedsFromBorrowingsClassifiedAsFinancingActivities"}]
["/*",null,{"$f":"'520000 - Est. Flujos de Efec.'!$D$74","v":"Reembolsos de préstamos"},{"$f":"'520000 - Est. Flujos de Efec.'!$C$74","v":"ifrs-full:RepaymentsOfBorrowingsClassifiedAsFinancingActivities"}]
["/*",null,{"$f":"'520000 - Est. Flujos de Efec.'!$D$75","v":"Pagos de pasivos por arrendamientos financieros"},{"$f":"'520000 - Est. Flujos de Efec.'!$C$75","v":"ifrs-full:PaymentsOfFinanceLeaseLiabilitiesClassifiedAsFinancingActivities"}]
[{"$f":"IF(G545=\"\",\"/*\",\"\")","v":"/*"},null,{"$f":"'520000 - Est. Flujos de Efec.'!$D$76","v":"Pagos de pasivos por arrendamiento"},{"$f":"'520000 - Est. Flujos de Efec.'!$C$76","v":"ifrs-full:PaymentsOfLeaseLiabilitiesClassifiedAsFinancingActivities"}]
["/*",null,{"$f":"'520000 - Est. Flujos de Efec.'!$D$77","v":"Importes procedentes de subvenciones del gobierno"},{"$f":"'520000 - Est. Flujos de Efec.'!$C$77","v":"ifrs-full:ProceedsFromGovernmentGrantsClassifiedAsFinancingActivities"}]
["/*",null,{"$f":"'520000 - Est. Flujos de Efec.'!$D$78","v":"Dividendos pagados"},{"$f":"'520000 - Est. Flujos de Efec.'!$C$78","v":"ifrs-full:DividendsPaidClassifiedAsFinancingActivities"}]
["/*",null,{"$f":"'520000 - Est. Flujos de Efec.'!$D$79","v":"Intereses pagados"},{"$f":"'520000 - Est. Flujos de Efec.'!$C$79","v":"ifrs-full:InterestPaidClassifiedAsFinancingActivities"}]
["/*",null,{"$f":"'520000 - Est. Flujos de Efec.'!$D$80","v":"Impuestos a las ganancias reembolsados (pagados)"},{"$f":"'520000 - Est. Flujos de Efec.'!$C$80","v":"ifrs-full:IncomeTaxesPaidRefundClassifiedAsFinancingActivities"}]
["/*",null,{"$f":"'520000 - Est. Flujos de Efec.'!$D$81","v":"Otras entradas (salidas) de efectivo"},{"$f":"'520000 - Est. Flujos de Efec.'!$C$81","v":"ifrs-full:OtherInflowsOutflowsOfCashClassifiedAsFinancingActivities"}]
["/*",null,{"$f":"'520000 - Est. Flujos de Efec.'!$D$82","v":"Flujos de efectivo netos procedentes de (utilizados en) actividades de financiación"},{"$f":"'520000 - Est. Flujos de Efec.'!$C$82","v":"ifrs-full:CashFlowsFromUsedInFinancingActivities"}]
["/*",null,{"$f":"'520000 - Est. Flujos de Efec.'!$D$83","v":"Incremento (disminución) neto de efectivo y equivalentes al efectivo, antes del efecto de los cambios en la tasa de cambio"},{"$f":"'520000 - Est. Flujos de Efec.'!$C$83","v":"ifrs-full:IncreaseDecreaseInCashAndCashEquivalentsBeforeEffectOfExchangeRateChanges"}]
["/*",null,{"$f":"'520000 - Est. Flujos de Efec.'!$D$84","v":"Efectos de la variación en la tasa de cambio sobre el efectivo y equivalentes al efectivo [resumen]"},{"$f":"'520000 - Est. Flujos de Efec.'!$C$84","v":"ifrs-full:EffectOfExchangeRateChangesOnCashAndCashEquivalentsAbstract"}]
["/*",null,{"$f":"'520000 - Est. Flujos de Efec.'!$D$85","v":"Efectos de la variación en la tasa de cambio sobre el efectivo y equivalentes al efectivo"},{"$f":"'520000 - Est. Flujos de Efec.'!$C$85","v":"ifrs-full:EffectOfExchangeRateChangesOnCashAndCashEquivalents"}]
["/*",null,{"$f":"'520000 - Est. Flujos de Efec.'!$D$86","v":"Incremento (disminución) neto de efectivo y equivalentes al efectivo"},{"$f":"'520000 - Est. Flujos de Efec.'!$C$86","v":"ifrs-full:IncreaseDecreaseInCashAndCashEquivalents"}]
["/*",null,{"$f":"'520000 - Est. Flujos de Efec.'!$D$87","v":"Efectivo y equivalentes al efectivo al principio del periodo"},{"$f":"'520000 - Est. Flujos de Efec.'!$C$87","v":"ifrs-full:CashAndCashEquivalents"}]
["/*",null,{"$f":"'520000 - Est. Flujos de Efec.'!$D$88","v":"Efectivo y equivalentes al efectivo al final del periodo"},{"$f":"'520000 - Est. Flujos de Efec.'!$C$88","v":"ifrs-full:CashAndCashEquivalents"}]
["/*"]
["/*",null,"610000 - Est. Camb. Patrimonio"]
["/*",null,"--01--"]
["/*",null,{"$f":"'610000 - Est. Camb. Patrimonio'!$D$13","v":"Estado de cambios en el patrimonio [resumen]"},{"$f":"'610000 - Est. Camb. Patrimonio'!$C$13","v":"ifrs-full:StatementOfChangesInEquityAbstract"}]
["/*",null,{"$f":"'610000 - Est. Camb. Patrimonio'!$D$14","v":"Estado de cambios en el patrimonio [partidas de los estados financieros]"},{"$f":"'610000 - Est. Camb. Patrimonio'!$C$14","v":"ifrs-full:StatementOfChangesInEquityLineItems"}]
["",null,{"$f":"'610000 - Est. Camb. Patrimonio'!$D$15","v":"Patrimonio al comienzo del periodo"},{"$f":"'610000 - Est. Camb. Patrimonio'!$C$15","v":"co-svsp-core_2017-12-31:EquityBeginningOfPeriod"},0,"peso",{"$f":"'610000 - Est. Camb. Patrimonio'!$E$15","v":0},800001965,"http://www.xbrl.org/scheme/companyName",{"$f":"Periodos!$C$3","v":"2017-01-01"},{"$f":"Periodos!$C$4","v":"2017-12-31"},{"$f":"'610000 - Est. Camb. Patrimonio'!$D$12","v":"ifrs-full:ComponentsOfEquityAxis"},{"$f":"'610000 - Est. Camb. Patrimonio'!$E$11","v":"ifrs-full:IssuedCapitalMember"}]
["/*",null,{"$f":"'610000 - Est. Camb. Patrimonio'!$D$16","v":"Cambios en el patrimonio [resumen]"},{"$f":"'610000 - Est. Camb. Patrimonio'!$C$16","v":"ifrs-full:ChangesInEquityAbstract"}]
["/*",null,{"$f":"'610000 - Est. Camb. Patrimonio'!$D$17","v":"Resultado integral [resumen]"},{"$f":"'610000 - Est. Camb. Patrimonio'!$C$17","v":"ifrs-full:ComprehensiveIncomeAbstract"}]
["/*",null,{"$f":"'610000 - Est. Camb. Patrimonio'!$D$18","v":"Ganancia (pérdida)"},{"$f":"'610000 - Est. Camb. Patrimonio'!$C$18","v":"co-svsp-core_2017-12-31:ProfitLoss"}]
["/*",null,{"$f":"'610000 - Est. Camb. Patrimonio'!$D$19","v":"Otro resultado integral"},{"$f":"'610000 - Est. Camb. Patrimonio'!$C$19","v":"co-svsp-core_2017-12-31:OtherComprehensiveIncome"}]
["",null,{"$f":"'610000 - Est. Camb. Patrimonio'!$D$20","v":"Resultado integral total"},{"$f":"'610000 - Est. Camb. Patrimonio'!$C$20","v":"co-svsp-core_2017-12-31:ComprehensiveIncome"},0,"peso",{"$f":"'610000 - Est. Camb. Patrimonio'!$E$20","v":0},800001965,"http://www.xbrl.org/scheme/companyName",{"$f":"Periodos!$C$3","v":"2017-01-01"},{"$f":"Periodos!$C$4","v":"2017-12-31"},{"$f":"'610000 - Est. Camb. Patrimonio'!$D$12","v":"ifrs-full:ComponentsOfEquityAxis"},{"$f":"'610000 - Est. Camb. Patrimonio'!$E$11","v":"ifrs-full:IssuedCapitalMember"}]
["/*",null,{"$f":"'610000 - Est. Camb. Patrimonio'!$D$21","v":"Emisión de patrimonio"},{"$f":"'610000 - Est. Camb. Patrimonio'!$C$21","v":"ifrs-full:IssueOfEquity"}]
["/*",null,{"$f":"'610000 - Est. Camb. Patrimonio'!$D$22","v":"Dividendos reconocidos como distribuciones a los propietarios"},{"$f":"'610000 - Est. Camb. Patrimonio'!$C$22","v":"ifrs-full:DividendsPaid"}]
["/*",null,{"$f":"'610000 - Est. Camb. Patrimonio'!$D$23","v":"Incrementos por otras aportaciones de los propietarios, patrimonio"},{"$f":"'610000 - Est. Camb. Patrimonio'!$C$23","v":"ifrs-full:IncreaseDecreaseThroughOtherContributionsByOwners"}]
["/*",null,{"$f":"'610000 - Est. Camb. Patrimonio'!$D$24","v":"Disminución por otras distribuciones a los propietarios, patrimonio"},{"$f":"'610000 - Est. Camb. Patrimonio'!$C$24","v":"ifrs-full:IncreaseDecreaseThroughOtherDistributionsToOwners"}]
["/*",null,{"$f":"'610000 - Est. Camb. Patrimonio'!$D$25","v":"Incrementos (disminuciones) por otros cambios, patrimonio"},{"$f":"'610000 - Est. Camb. Patrimonio'!$C$25","v":"ifrs-full:IncreaseDecreaseThroughTransfersAndOtherChangesEquity"}]
["/*",null,{"$f":"'610000 - Est. Camb. Patrimonio'!$D$26","v":"Incrementos (disminuciones) por transacciones con acciones propias, patrimonio"},{"$f":"'610000 - Est. Camb. Patrimonio'!$C$26","v":"ifrs-full:IncreaseDecreaseThroughTreasuryShareTransactions"}]
["/*",null,{"$f":"'610000 - Est. Camb. Patrimonio'!$D$27","v":"Incrementos (disminuciones) por cambios las participaciones en la propiedad de subsidiarias que no dan lugar a pérdida de control, patrimonio"},{"$f":"'610000 - Est. Camb. Patrimonio'!$C$27","v":"ifrs-full:IncreaseDecreaseThroughChangesInOwnershipInterestsInSubsidiariesThatDoNotResultInLossOfControl"}]
["/*",null,{"$f":"'610000 - Est. Camb. Patrimonio'!$D$28","v":"Incrementos (disminuciones) por transacciones con pagos basados en acciones, patrimonio"},{"$f":"'610000 - Est. Camb. Patrimonio'!$C$28","v":"ifrs-full:IncreaseDecreaseThroughSharebasedPaymentTransactions"}]
["",null,{"$f":"'610000 - Est. Camb. Patrimonio'!$D$29","v":"Total incremento (disminución) en el patrimonio"},{"$f":"'610000 - Est. Camb. Patrimonio'!$C$29","v":"ifrs-full:ChangesInEquity"},0,"peso",{"$f":"'610000 - Est. Camb. Patrimonio'!$E$29","v":0},800001965,"http://www.xbrl.org/scheme/companyName",{"$f":"Periodos!$C$3","v":"2017-01-01"},{"$f":"Periodos!$C$4","v":"2017-12-31"},{"$f":"'610000 - Est. Camb. Patrimonio'!$D$12","v":"ifrs-full:ComponentsOfEquityAxis"},{"$f":"'610000 - Est. Camb. Patrimonio'!$E$11","v":"ifrs-full:IssuedCapitalMember"}]
["",null,{"$f":"'610000 - Est. Camb. Patrimonio'!$D$30","v":"Patrimonio al final del periodo"},{"$f":"'610000 - Est. Camb. Patrimonio'!$C$30","v":"co-svsp-core_2017-12-31:EquityEndOfPeriod"},0,"peso",{"$f":"'610000 - Est. Camb. Patrimonio'!$E$30","v":0},800001965,"http://www.xbrl.org/scheme/companyName",{"$f":"Periodos!$C$3","v":"2017-01-01"},{"$f":"Periodos!$C$4","v":"2017-12-31"},{"$f":"'610000 - Est. Camb. Patrimonio'!$D$12","v":"ifrs-full:ComponentsOfEquityAxis"},{"$f":"'610000 - Est. Camb. Patrimonio'!$E$11","v":"ifrs-full:IssuedCapitalMember"}]
["/*",null,"--02--"]
["/*",null,{"$f":"'610000 - Est. Camb. Patrimonio'!$D$13","v":"Estado de cambios en el patrimonio [resumen]"},{"$f":"'610000 - Est. Camb. Patrimonio'!$C$13","v":"ifrs-full:StatementOfChangesInEquityAbstract"}]
["/*",null,{"$f":"'610000 - Est. Camb. Patrimonio'!$D$14","v":"Estado de cambios en el patrimonio [partidas de los estados financieros]"},{"$f":"'610000 - Est. Camb. Patrimonio'!$C$14","v":"ifrs-full:StatementOfChangesInEquityLineItems"}]
["",null,{"$f":"'610000 - Est. Camb. Patrimonio'!$D$15","v":"Patrimonio al comienzo del periodo"},{"$f":"'610000 - Est. Camb. Patrimonio'!$C$15","v":"co-svsp-core_2017-12-31:EquityBeginningOfPeriod"},0,"peso",{"$f":"'610000 - Est. Camb. Patrimonio'!$F$15","v":0},800001965,"http://www.xbrl.org/scheme/companyName",{"$f":"Periodos!$C$3","v":"2017-01-01"},{"$f":"Periodos!$C$4","v":"2017-12-31"},{"$f":"'610000 - Est. Camb. Patrimonio'!$D$12","v":"ifrs-full:ComponentsOfEquityAxis"},{"$f":"'610000 - Est. Camb. Patrimonio'!$F$11","v":"ifrs-full:SharePremiumMember"}]
["/*",null,{"$f":"'610000 - Est. Camb. Patrimonio'!$D$16","v":"Cambios en el patrimonio [resumen]"},{"$f":"'610000 - Est. Camb. Patrimonio'!$C$16","v":"ifrs-full:ChangesInEquityAbstract"}]
["/*",null,{"$f":"'610000 - Est. Camb. Patrimonio'!$D$17","v":"Resultado integral [resumen]"},{"$f":"'610000 - Est. Camb. Patrimonio'!$C$17","v":"ifrs-full:ComprehensiveIncomeAbstract"}]
["/*",null,{"$f":"'610000 - Est. Camb. Patrimonio'!$D$18","v":"Ganancia (pérdida)"},{"$f":"'610000 - Est. Camb. Patrimonio'!$C$18","v":"co-svsp-core_2017-12-31:ProfitLoss"}]
["/*",null,{"$f":"'610000 - Est. Camb. Patrimonio'!$D$19","v":"Otro resultado integral"},{"$f":"'610000 - Est. Camb. Patrimonio'!$C$19","v":"co-svsp-core_2017-12-31:OtherComprehensiveIncome"}]
["",null,{"$f":"'610000 - Est. Camb. Patrimonio'!$D$20","v":"Resultado integral total"},{"$f":"'610000 - Est. Camb. Patrimonio'!$C$20","v":"co-svsp-core_2017-12-31:ComprehensiveIncome"},0,"peso",{"$f":"'610000 - Est. Camb. Patrimonio'!$F$20","v":0},800001965,"http://www.xbrl.org/scheme/companyName",{"$f":"Periodos!$C$3","v":"2017-01-01"},{"$f":"Periodos!$C$4","v":"2017-12-31"},{"$f":"'610000 - Est. Camb. Patrimonio'!$D$12","v":"ifrs-full:ComponentsOfEquityAxis"},{"$f":"'610000 - Est. Camb. Patrimonio'!$F$11","v":"ifrs-full:SharePremiumMember"}]
["/*",null,{"$f":"'610000 - Est. Camb. Patrimonio'!$D$21","v":"Emisión de patrimonio"},{"$f":"'610000 - Est. Camb. Patrimonio'!$C$21","v":"ifrs-full:IssueOfEquity"}]
["/*",null,{"$f":"'610000 - Est. Camb. Patrimonio'!$D$22","v":"Dividendos reconocidos como distribuciones a los propietarios"},{"$f":"'610000 - Est. Camb. Patrimonio'!$C$22","v":"ifrs-full:DividendsPaid"}]
["/*",null,{"$f":"'610000 - Est. Camb. Patrimonio'!$D$23","v":"Incrementos por otras aportaciones de los propietarios, patrimonio"},{"$f":"'610000 - Est. Camb. Patrimonio'!$C$23","v":"ifrs-full:IncreaseDecreaseThroughOtherContributionsByOwners"}]
["/*",null,{"$f":"'610000 - Est. Camb. Patrimonio'!$D$24","v":"Disminución por otras distribuciones a los propietarios, patrimonio"},{"$f":"'610000 - Est. Camb. Patrimonio'!$C$24","v":"ifrs-full:IncreaseDecreaseThroughOtherDistributionsToOwners"}]
["/*",null,{"$f":"'610000 - Est. Camb. Patrimonio'!$D$25","v":"Incrementos (disminuciones) por otros cambios, patrimonio"},{"$f":"'610000 - Est. Camb. Patrimonio'!$C$25","v":"ifrs-full:IncreaseDecreaseThroughTransfersAndOtherChangesEquity"}]
["/*",null,{"$f":"'610000 - Est. Camb. Patrimonio'!$D$26","v":"Incrementos (disminuciones) por transacciones con acciones propias, patrimonio"},{"$f":"'610000 - Est. Camb. Patrimonio'!$C$26","v":"ifrs-full:IncreaseDecreaseThroughTreasuryShareTransactions"}]
["/*",null,{"$f":"'610000 - Est. Camb. Patrimonio'!$D$27","v":"Incrementos (disminuciones) por cambios las participaciones en la propiedad de subsidiarias que no dan lugar a pérdida de control, patrimonio"},{"$f":"'610000 - Est. Camb. Patrimonio'!$C$27","v":"ifrs-full:IncreaseDecreaseThroughChangesInOwnershipInterestsInSubsidiariesThatDoNotResultInLossOfControl"}]
["/*",null,{"$f":"'610000 - Est. Camb. Patrimonio'!$D$28","v":"Incrementos (disminuciones) por transacciones con pagos basados en acciones, patrimonio"},{"$f":"'610000 - Est. Camb. Patrimonio'!$C$28","v":"ifrs-full:IncreaseDecreaseThroughSharebasedPaymentTransactions"}]
["",null,{"$f":"'610000 - Est. Camb. Patrimonio'!$D$29","v":"Total incremento (disminución) en el patrimonio"},{"$f":"'610000 - Est. Camb. Patrimonio'!$C$29","v":"ifrs-full:ChangesInEquity"},0,"peso",{"$f":"'610000 - Est. Camb. Patrimonio'!$F$29","v":0},800001965,"http://www.xbrl.org/scheme/companyName",{"$f":"Periodos!$C$3","v":"2017-01-01"},{"$f":"Periodos!$C$4","v":"2017-12-31"},{"$f":"'610000 - Est. Camb. Patrimonio'!$D$12","v":"ifrs-full:ComponentsOfEquityAxis"},{"$f":"'610000 - Est. Camb. Patrimonio'!$F$11","v":"ifrs-full:SharePremiumMember"}]
["",null,{"$f":"'610000 - Est. Camb. Patrimonio'!$D$30","v":"Patrimonio al final del periodo"},{"$f":"'610000 - Est. Camb. Patrimonio'!$C$30","v":"co-svsp-core_2017-12-31:EquityEndOfPeriod"},0,"peso",{"$f":"'610000 - Est. Camb. Patrimonio'!$F$30","v":0},800001965,"http://www.xbrl.org/scheme/companyName",{"$f":"Periodos!$C$3","v":"2017-01-01"},{"$f":"Periodos!$C$4","v":"2017-12-31"},{"$f":"'610000 - Est. Camb. Patrimonio'!$D$12","v":"ifrs-full:ComponentsOfEquityAxis"},{"$f":"'610000 - Est. Camb. Patrimonio'!$F$11","v":"ifrs-full:SharePremiumMember"}]
["/*",null,"--03--"]
["/*",null,{"$f":"'610000 - Est. Camb. Patrimonio'!$D$13","v":"Estado de cambios en el patrimonio [resumen]"},{"$f":"'610000 - Est. Camb. Patrimonio'!$C$13","v":"ifrs-full:StatementOfChangesInEquityAbstract"}]
["/*",null,{"$f":"'610000 - Est. Camb. Patrimonio'!$D$14","v":"Estado de cambios en el patrimonio [partidas de los estados financieros]"},{"$f":"'610000 - Est. Camb. Patrimonio'!$C$14","v":"ifrs-full:StatementOfChangesInEquityLineItems"}]
["",null,{"$f":"'610000 - Est. Camb. Patrimonio'!$D$15","v":"Patrimonio al comienzo del periodo"},{"$f":"'610000 - Est. Camb. Patrimonio'!$C$15","v":"co-svsp-core_2017-12-31:EquityBeginningOfPeriod"},0,"peso",{"$f":"'610000 - Est. Camb. Patrimonio'!$G$15","v":0},800001965,"http://www.xbrl.org/scheme/companyName",{"$f":"Periodos!$C$3","v":"2017-01-01"},{"$f":"Periodos!$C$4","v":"2017-12-31"},{"$f":"'610000 - Est. Camb. Patrimonio'!$D$12","v":"ifrs-full:ComponentsOfEquityAxis"},{"$f":"'610000 - Est. Camb. Patrimonio'!$G$11","v":"ifrs-full:TreasurySharesMember"}]
["/*",null,{"$f":"'610000 - Est. Camb. Patrimonio'!$D$16","v":"Cambios en el patrimonio [resumen]"},{"$f":"'610000 - Est. Camb. Patrimonio'!$C$16","v":"ifrs-full:ChangesInEquityAbstract"}]
["/*",null,{"$f":"'610000 - Est. Camb. Patrimonio'!$D$17","v":"Resultado integral [resumen]"},{"$f":"'610000 - Est. Camb. Patrimonio'!$C$17","v":"ifrs-full:ComprehensiveIncomeAbstract"}]
["/*",null,{"$f":"'610000 - Est. Camb. Patrimonio'!$D$18","v":"Ganancia (pérdida)"},{"$f":"'610000 - Est. Camb. Patrimonio'!$C$18","v":"co-svsp-core_2017-12-31:ProfitLoss"}]
["/*",null,{"$f":"'610000 - Est. Camb. Patrimonio'!$D$19","v":"Otro resultado integral"},{"$f":"'610000 - Est. Camb. Patrimonio'!$C$19","v":"co-svsp-core_2017-12-31:OtherComprehensiveIncome"}]
["",null,{"$f":"'610000 - Est. Camb. Patrimonio'!$D$20","v":"Resultado integral total"},{"$f":"'610000 - Est. Camb. Patrimonio'!$C$20","v":"co-svsp-core_2017-12-31:ComprehensiveIncome"},0,"peso",{"$f":"'610000 - Est. Camb. Patrimonio'!$G$20","v":0},800001965,"http://www.xbrl.org/scheme/companyName",{"$f":"Periodos!$C$3","v":"2017-01-01"},{"$f":"Periodos!$C$4","v":"2017-12-31"},{"$f":"'610000 - Est. Camb. Patrimonio'!$D$12","v":"ifrs-full:ComponentsOfEquityAxis"},{"$f":"'610000 - Est. Camb. Patrimonio'!$G$11","v":"ifrs-full:TreasurySharesMember"}]
["/*",null,{"$f":"'610000 - Est. Camb. Patrimonio'!$D$21","v":"Emisión de patrimonio"},{"$f":"'610000 - Est. Camb. Patrimonio'!$C$21","v":"ifrs-full:IssueOfEquity"}]
["/*",null,{"$f":"'610000 - Est. Camb. Patrimonio'!$D$22","v":"Dividendos reconocidos como distribuciones a los propietarios"},{"$f":"'610000 - Est. Camb. Patrimonio'!$C$22","v":"ifrs-full:DividendsPaid"}]
[{"$f":"IF(G609=\"\",\"/*\",\"\")","v":"/*"},null,{"$f":"'610000 - Est. Camb. Patrimonio'!$D$23","v":"Incrementos por otras aportaciones de los propietarios, patrimonio"},{"$f":"'610000 - Est. Camb. Patrimonio'!$C$23","v":"ifrs-full:IncreaseDecreaseThroughOtherContributionsByOwners"}]
["/*",null,{"$f":"'610000 - Est. Camb. Patrimonio'!$D$24","v":"Disminución por otras distribuciones a los propietarios, patrimonio"},{"$f":"'610000 - Est. Camb. Patrimonio'!$C$24","v":"ifrs-full:IncreaseDecreaseThroughOtherDistributionsToOwners"}]
["/*",null,{"$f":"'610000 - Est. Camb. Patrimonio'!$D$25","v":"Incrementos (disminuciones) por otros cambios, patrimonio"},{"$f":"'610000 - Est. Camb. Patrimonio'!$C$25","v":"ifrs-full:IncreaseDecreaseThroughTransfersAndOtherChangesEquity"}]
["/*",null,{"$f":"'610000 - Est. Camb. Patrimonio'!$D$26","v":"Incrementos (disminuciones) por transacciones con acciones propias, patrimonio"},{"$f":"'610000 - Est. Camb. Patrimonio'!$C$26","v":"ifrs-full:IncreaseDecreaseThroughTreasuryShareTransactions"}]
["/*",null,{"$f":"'610000 - Est. Camb. Patrimonio'!$D$27","v":"Incrementos (disminuciones) por cambios las participaciones en la propiedad de subsidiarias que no dan lugar a pérdida de control, patrimonio"},{"$f":"'610000 - Est. Camb. Patrimonio'!$C$27","v":"ifrs-full:IncreaseDecreaseThroughChangesInOwnershipInterestsInSubsidiariesThatDoNotResultInLossOfControl"}]
["/*",null,{"$f":"'610000 - Est. Camb. Patrimonio'!$D$28","v":"Incrementos (disminuciones) por transacciones con pagos basados en acciones, patrimonio"},{"$f":"'610000 - Est. Camb. Patrimonio'!$C$28","v":"ifrs-full:IncreaseDecreaseThroughSharebasedPaymentTransactions"}]
["",null,{"$f":"'610000 - Est. Camb. Patrimonio'!$D$29","v":"Total incremento (disminución) en el patrimonio"},{"$f":"'610000 - Est. Camb. Patrimonio'!$C$29","v":"ifrs-full:ChangesInEquity"},0,"peso",{"$f":"'610000 - Est. Camb. Patrimonio'!$G$29","v":0},800001965,"http://www.xbrl.org/scheme/companyName",{"$f":"Periodos!$C$3","v":"2017-01-01"},{"$f":"Periodos!$C$4","v":"2017-12-31"},{"$f":"'610000 - Est. Camb. Patrimonio'!$D$12","v":"ifrs-full:ComponentsOfEquityAxis"},{"$f":"'610000 - Est. Camb. Patrimonio'!$G$11","v":"ifrs-full:TreasurySharesMember"}]
["",null,{"$f":"'610000 - Est. Camb. Patrimonio'!$D$30","v":"Patrimonio al final del periodo"},{"$f":"'610000 - Est. Camb. Patrimonio'!$C$30","v":"co-svsp-core_2017-12-31:EquityEndOfPeriod"},0,"peso",{"$f":"'610000 - Est. Camb. Patrimonio'!$G$30","v":0},800001965,"http://www.xbrl.org/scheme/companyName",{"$f":"Periodos!$C$3","v":"2017-01-01"},{"$f":"Periodos!$C$4","v":"2017-12-31"},{"$f":"'610000 - Est. Camb. Patrimonio'!$D$12","v":"ifrs-full:ComponentsOfEquityAxis"},{"$f":"'610000 - Est. Camb. Patrimonio'!$G$11","v":"ifrs-full:TreasurySharesMember"}]
["/*",null,"--04--"]
["/*",null,{"$f":"'610000 - Est. Camb. Patrimonio'!$D$13","v":"Estado de cambios en el patrimonio [resumen]"},{"$f":"'610000 - Est. Camb. Patrimonio'!$C$13","v":"ifrs-full:StatementOfChangesInEquityAbstract"}]
["/*",null,{"$f":"'610000 - Est. Camb. Patrimonio'!$D$14","v":"Estado de cambios en el patrimonio [partidas de los estados financieros]"},{"$f":"'610000 - Est. Camb. Patrimonio'!$C$14","v":"ifrs-full:StatementOfChangesInEquityLineItems"}]
["",null,{"$f":"'610000 - Est. Camb. Patrimonio'!$D$15","v":"Patrimonio al comienzo del periodo"},{"$f":"'610000 - Est. Camb. Patrimonio'!$C$15","v":"co-svsp-core_2017-12-31:EquityBeginningOfPeriod"},0,"peso",{"$f":"'610000 - Est. Camb. Patrimonio'!$H$15","v":0},800001965,"http://www.xbrl.org/scheme/companyName",{"$f":"Periodos!$C$3","v":"2017-01-01"},{"$f":"Periodos!$C$4","v":"2017-12-31"},{"$f":"'610000 - Est. Camb. Patrimonio'!$D$12","v":"ifrs-full:ComponentsOfEquityAxis"},{"$f":"'610000 - Est. Camb. Patrimonio'!$H$11","v":"ifrs-full:OtherEquityInterestMember"}]
["/*",null,{"$f":"'610000 - Est. Camb. Patrimonio'!$D$16","v":"Cambios en el patrimonio [resumen]"},{"$f":"'610000 - Est. Camb. Patrimonio'!$C$16","v":"ifrs-full:ChangesInEquityAbstract"}]
["/*",null,{"$f":"'610000 - Est. Camb. Patrimonio'!$D$17","v":"Resultado integral [resumen]"},{"$f":"'610000 - Est. Camb. Patrimonio'!$C$17","v":"ifrs-full:ComprehensiveIncomeAbstract"}]
["/*",null,{"$f":"'610000 - Est. Camb. Patrimonio'!$D$18","v":"Ganancia (pérdida)"},{"$f":"'610000 - Est. Camb. Patrimonio'!$C$18","v":"co-svsp-core_2017-12-31:ProfitLoss"}]
["/*",null,{"$f":"'610000 - Est. Camb. Patrimonio'!$D$19","v":"Otro resultado integral"},{"$f":"'610000 - Est. Camb. Patrimonio'!$C$19","v":"co-svsp-core_2017-12-31:OtherComprehensiveIncome"}]
["",null,{"$f":"'610000 - Est. Camb. Patrimonio'!$D$20","v":"Resultado integral total"},{"$f":"'610000 - Est. Camb. Patrimonio'!$C$20","v":"co-svsp-core_2017-12-31:ComprehensiveIncome"},0,"peso",{"$f":"'610000 - Est. Camb. Patrimonio'!$H$20","v":0},800001965,"http://www.xbrl.org/scheme/companyName",{"$f":"Periodos!$C$3","v":"2017-01-01"},{"$f":"Periodos!$C$4","v":"2017-12-31"},{"$f":"'610000 - Est. Camb. Patrimonio'!$D$12","v":"ifrs-full:ComponentsOfEquityAxis"},{"$f":"'610000 - Est. Camb. Patrimonio'!$H$11","v":"ifrs-full:OtherEquityInterestMember"}]
["/*",null,{"$f":"'610000 - Est. Camb. Patrimonio'!$D$21","v":"Emisión de patrimonio"},{"$f":"'610000 - Est. Camb. Patrimonio'!$C$21","v":"ifrs-full:IssueOfEquity"}]
["/*",null,{"$f":"'610000 - Est. Camb. Patrimonio'!$D$22","v":"Dividendos reconocidos como distribuciones a los propietarios"},{"$f":"'610000 - Est. Camb. Patrimonio'!$C$22","v":"ifrs-full:DividendsPaid"}]
["/*",null,{"$f":"'610000 - Est. Camb. Patrimonio'!$D$23","v":"Incrementos por otras aportaciones de los propietarios, patrimonio"},{"$f":"'610000 - Est. Camb. Patrimonio'!$C$23","v":"ifrs-full:IncreaseDecreaseThroughOtherContributionsByOwners"}]
["/*",null,{"$f":"'610000 - Est. Camb. Patrimonio'!$D$24","v":"Disminución por otras distribuciones a los propietarios, patrimonio"},{"$f":"'610000 - Est. Camb. Patrimonio'!$C$24","v":"ifrs-full:IncreaseDecreaseThroughOtherDistributionsToOwners"}]
["/*",null,{"$f":"'610000 - Est. Camb. Patrimonio'!$D$25","v":"Incrementos (disminuciones) por otros cambios, patrimonio"},{"$f":"'610000 - Est. Camb. Patrimonio'!$C$25","v":"ifrs-full:IncreaseDecreaseThroughTransfersAndOtherChangesEquity"}]
["/*",null,{"$f":"'610000 - Est. Camb. Patrimonio'!$D$26","v":"Incrementos (disminuciones) por transacciones con acciones propias, patrimonio"},{"$f":"'610000 - Est. Camb. Patrimonio'!$C$26","v":"ifrs-full:IncreaseDecreaseThroughTreasuryShareTransactions"}]
["/*",null,{"$f":"'610000 - Est. Camb. Patrimonio'!$D$27","v":"Incrementos (disminuciones) por cambios las participaciones en la propiedad de subsidiarias que no dan lugar a pérdida de control, patrimonio"},{"$f":"'610000 - Est. Camb. Patrimonio'!$C$27","v":"ifrs-full:IncreaseDecreaseThroughChangesInOwnershipInterestsInSubsidiariesThatDoNotResultInLossOfControl"}]
["/*",null,{"$f":"'610000 - Est. Camb. Patrimonio'!$D$28","v":"Incrementos (disminuciones) por transacciones con pagos basados en acciones, patrimonio"},{"$f":"'610000 - Est. Camb. Patrimonio'!$C$28","v":"ifrs-full:IncreaseDecreaseThroughSharebasedPaymentTransactions"}]
["",null,{"$f":"'610000 - Est. Camb. Patrimonio'!$D$29","v":"Total incremento (disminución) en el patrimonio"},{"$f":"'610000 - Est. Camb. Patrimonio'!$C$29","v":"ifrs-full:ChangesInEquity"},0,"peso",{"$f":"'610000 - Est. Camb. Patrimonio'!$H$29","v":0},800001965,"http://www.xbrl.org/scheme/companyName",{"$f":"Periodos!$C$3","v":"2017-01-01"},{"$f":"Periodos!$C$4","v":"2017-12-31"},{"$f":"'610000 - Est. Camb. Patrimonio'!$D$12","v":"ifrs-full:ComponentsOfEquityAxis"},{"$f":"'610000 - Est. Camb. Patrimonio'!$H$11","v":"ifrs-full:OtherEquityInterestMember"}]
["",null,{"$f":"'610000 - Est. Camb. Patrimonio'!$D$30","v":"Patrimonio al final del periodo"},{"$f":"'610000 - Est. Camb. Patrimonio'!$C$30","v":"co-svsp-core_2017-12-31:EquityEndOfPeriod"},0,"peso",{"$f":"'610000 - Est. Camb. Patrimonio'!$H$30","v":0},800001965,"http://www.xbrl.org/scheme/companyName",{"$f":"Periodos!$C$3","v":"2017-01-01"},{"$f":"Periodos!$C$4","v":"2017-12-31"},{"$f":"'610000 - Est. Camb. Patrimonio'!$D$12","v":"ifrs-full:ComponentsOfEquityAxis"},{"$f":"'610000 - Est. Camb. Patrimonio'!$H$11","v":"ifrs-full:OtherEquityInterestMember"}]
["/*",null,"--05--"]
["/*",null,{"$f":"'610000 - Est. Camb. Patrimonio'!$D$13","v":"Estado de cambios en el patrimonio [resumen]"},{"$f":"'610000 - Est. Camb. Patrimonio'!$C$13","v":"ifrs-full:StatementOfChangesInEquityAbstract"}]
["/*",null,{"$f":"'610000 - Est. Camb. Patrimonio'!$D$14","v":"Estado de cambios en el patrimonio [partidas de los estados financieros]"},{"$f":"'610000 - Est. Camb. Patrimonio'!$C$14","v":"ifrs-full:StatementOfChangesInEquityLineItems"}]
["",null,{"$f":"'610000 - Est. Camb. Patrimonio'!$D$15","v":"Patrimonio al comienzo del periodo"},{"$f":"'610000 - Est. Camb. Patrimonio'!$C$15","v":"co-svsp-core_2017-12-31:EquityBeginningOfPeriod"},0,"peso",{"$f":"'610000 - Est. Camb. Patrimonio'!$I$15","v":0},800001965,"http://www.xbrl.org/scheme/companyName",{"$f":"Periodos!$C$3","v":"2017-01-01"},{"$f":"Periodos!$C$4","v":"2017-12-31"},{"$f":"'610000 - Est. Camb. Patrimonio'!$D$12","v":"ifrs-full:ComponentsOfEquityAxis"},{"$f":"'610000 - Est. Camb. Patrimonio'!$I$11","v":"ifrs-full:RevaluationSurplusMember"}]
["/*",null,{"$f":"'610000 - Est. Camb. Patrimonio'!$D$16","v":"Cambios en el patrimonio [resumen]"},{"$f":"'610000 - Est. Camb. Patrimonio'!$C$16","v":"ifrs-full:ChangesInEquityAbstract"}]
["/*",null,{"$f":"'610000 - Est. Camb. Patrimonio'!$D$17","v":"Resultado integral [resumen]"},{"$f":"'610000 - Est. Camb. Patrimonio'!$C$17","v":"ifrs-full:ComprehensiveIncomeAbstract"}]
["/*",null,{"$f":"'610000 - Est. Camb. Patrimonio'!$D$18","v":"Ganancia (pérdida)"},{"$f":"'610000 - Est. Camb. Patrimonio'!$C$18","v":"co-svsp-core_2017-12-31:ProfitLoss"}]
["/*",null,{"$f":"'610000 - Est. Camb. Patrimonio'!$D$19","v":"Otro resultado integral"},{"$f":"'610000 - Est. Camb. Patrimonio'!$C$19","v":"co-svsp-core_2017-12-31:OtherComprehensiveIncome"}]
["",null,{"$f":"'610000 - Est. Camb. Patrimonio'!$D$20","v":"Resultado integral total"},{"$f":"'610000 - Est. Camb. Patrimonio'!$C$20","v":"co-svsp-core_2017-12-31:ComprehensiveIncome"},0,"peso",{"$f":"'610000 - Est. Camb. Patrimonio'!$I$20","v":0},800001965,"http://www.xbrl.org/scheme/companyName",{"$f":"Periodos!$C$3","v":"2017-01-01"},{"$f":"Periodos!$C$4","v":"2017-12-31"},{"$f":"'610000 - Est. Camb. Patrimonio'!$D$12","v":"ifrs-full:ComponentsOfEquityAxis"},{"$f":"'610000 - Est. Camb. Patrimonio'!$I$11","v":"ifrs-full:RevaluationSurplusMember"}]
["/*",null,{"$f":"'610000 - Est. Camb. Patrimonio'!$D$21","v":"Emisión de patrimonio"},{"$f":"'610000 - Est. Camb. Patrimonio'!$C$21","v":"ifrs-full:IssueOfEquity"}]
["/*",null,{"$f":"'610000 - Est. Camb. Patrimonio'!$D$22","v":"Dividendos reconocidos como distribuciones a los propietarios"},{"$f":"'610000 - Est. Camb. Patrimonio'!$C$22","v":"ifrs-full:DividendsPaid"}]
["/*",null,{"$f":"'610000 - Est. Camb. Patrimonio'!$D$23","v":"Incrementos por otras aportaciones de los propietarios, patrimonio"},{"$f":"'610000 - Est. Camb. Patrimonio'!$C$23","v":"ifrs-full:IncreaseDecreaseThroughOtherContributionsByOwners"}]
["/*",null,{"$f":"'610000 - Est. Camb. Patrimonio'!$D$24","v":"Disminución por otras distribuciones a los propietarios, patrimonio"},{"$f":"'610000 - Est. Camb. Patrimonio'!$C$24","v":"ifrs-full:IncreaseDecreaseThroughOtherDistributionsToOwners"}]
["/*",null,{"$f":"'610000 - Est. Camb. Patrimonio'!$D$25","v":"Incrementos (disminuciones) por otros cambios, patrimonio"},{"$f":"'610000 - Est. Camb. Patrimonio'!$C$25","v":"ifrs-full:IncreaseDecreaseThroughTransfersAndOtherChangesEquity"}]
["/*",null,{"$f":"'610000 - Est. Camb. Patrimonio'!$D$26","v":"Incrementos (disminuciones) por transacciones con acciones propias, patrimonio"},{"$f":"'610000 - Est. Camb. Patrimonio'!$C$26","v":"ifrs-full:IncreaseDecreaseThroughTreasuryShareTransactions"}]
["/*",null,{"$f":"'610000 - Est. Camb. Patrimonio'!$D$27","v":"Incrementos (disminuciones) por cambios las participaciones en la propiedad de subsidiarias que no dan lugar a pérdida de control, patrimonio"},{"$f":"'610000 - Est. Camb. Patrimonio'!$C$27","v":"ifrs-full:IncreaseDecreaseThroughChangesInOwnershipInterestsInSubsidiariesThatDoNotResultInLossOfControl"}]
["/*",null,{"$f":"'610000 - Est. Camb. Patrimonio'!$D$28","v":"Incrementos (disminuciones) por transacciones con pagos basados en acciones, patrimonio"},{"$f":"'610000 - Est. Camb. Patrimonio'!$C$28","v":"ifrs-full:IncreaseDecreaseThroughSharebasedPaymentTransactions"}]
["",null,{"$f":"'610000 - Est. Camb. Patrimonio'!$D$29","v":"Total incremento (disminución) en el patrimonio"},{"$f":"'610000 - Est. Camb. Patrimonio'!$C$29","v":"ifrs-full:ChangesInEquity"},0,"peso",{"$f":"'610000 - Est. Camb. Patrimonio'!$I$29","v":0},800001965,"http://www.xbrl.org/scheme/companyName",{"$f":"Periodos!$C$3","v":"2017-01-01"},{"$f":"Periodos!$C$4","v":"2017-12-31"},{"$f":"'610000 - Est. Camb. Patrimonio'!$D$12","v":"ifrs-full:ComponentsOfEquityAxis"},{"$f":"'610000 - Est. Camb. Patrimonio'!$I$11","v":"ifrs-full:RevaluationSurplusMember"}]
["",null,{"$f":"'610000 - Est. Camb. Patrimonio'!$D$30","v":"Patrimonio al final del periodo"},{"$f":"'610000 - Est. Camb. Patrimonio'!$C$30","v":"co-svsp-core_2017-12-31:EquityEndOfPeriod"},0,"peso",{"$f":"'610000 - Est. Camb. Patrimonio'!$I$30","v":0},800001965,"http://www.xbrl.org/scheme/companyName",{"$f":"Periodos!$C$3","v":"2017-01-01"},{"$f":"Periodos!$C$4","v":"2017-12-31"},{"$f":"'610000 - Est. Camb. Patrimonio'!$D$12","v":"ifrs-full:ComponentsOfEquityAxis"},{"$f":"'610000 - Est. Camb. Patrimonio'!$I$11","v":"ifrs-full:RevaluationSurplusMember"}]
["/*",null,"--06--"]
["/*",null,{"$f":"'610000 - Est. Camb. Patrimonio'!$D$13","v":"Estado de cambios en el patrimonio [resumen]"},{"$f":"'610000 - Est. Camb. Patrimonio'!$C$13","v":"ifrs-full:StatementOfChangesInEquityAbstract"}]
["/*",null,{"$f":"'610000 - Est. Camb. Patrimonio'!$D$14","v":"Estado de cambios en el patrimonio [partidas de los estados financieros]"},{"$f":"'610000 - Est. Camb. Patrimonio'!$C$14","v":"ifrs-full:StatementOfChangesInEquityLineItems"}]
["",null,{"$f":"'610000 - Est. Camb. Patrimonio'!$D$15","v":"Patrimonio al comienzo del periodo"},{"$f":"'610000 - Est. Camb. Patrimonio'!$C$15","v":"co-svsp-core_2017-12-31:EquityBeginningOfPeriod"},0,"peso",{"$f":"'610000 - Est. Camb. Patrimonio'!$J$15","v":0},800001965,"http://www.xbrl.org/scheme/companyName",{"$f":"Periodos!$C$3","v":"2017-01-01"},{"$f":"Periodos!$C$4","v":"2017-12-31"},{"$f":"'610000 - Est. Camb. Patrimonio'!$D$12","v":"ifrs-full:ComponentsOfEquityAxis"},{"$f":"'610000 - Est. Camb. Patrimonio'!$J$11","v":"ifrs-full:ReserveOfExchangeDifferencesOnTranslationMember"}]
["/*",null,{"$f":"'610000 - Est. Camb. Patrimonio'!$D$16","v":"Cambios en el patrimonio [resumen]"},{"$f":"'610000 - Est. Camb. Patrimonio'!$C$16","v":"ifrs-full:ChangesInEquityAbstract"}]
["/*",null,{"$f":"'610000 - Est. Camb. Patrimonio'!$D$17","v":"Resultado integral [resumen]"},{"$f":"'610000 - Est. Camb. Patrimonio'!$C$17","v":"ifrs-full:ComprehensiveIncomeAbstract"}]
["/*",null,{"$f":"'610000 - Est. Camb. Patrimonio'!$D$18","v":"Ganancia (pérdida)"},{"$f":"'610000 - Est. Camb. Patrimonio'!$C$18","v":"co-svsp-core_2017-12-31:ProfitLoss"}]
["/*",null,{"$f":"'610000 - Est. Camb. Patrimonio'!$D$19","v":"Otro resultado integral"},{"$f":"'610000 - Est. Camb. Patrimonio'!$C$19","v":"co-svsp-core_2017-12-31:OtherComprehensiveIncome"}]
["",null,{"$f":"'610000 - Est. Camb. Patrimonio'!$D$20","v":"Resultado integral total"},{"$f":"'610000 - Est. Camb. Patrimonio'!$C$20","v":"co-svsp-core_2017-12-31:ComprehensiveIncome"},0,"peso",{"$f":"'610000 - Est. Camb. Patrimonio'!$J$20","v":0},800001965,"http://www.xbrl.org/scheme/companyName",{"$f":"Periodos!$C$3","v":"2017-01-01"},{"$f":"Periodos!$C$4","v":"2017-12-31"},{"$f":"'610000 - Est. Camb. Patrimonio'!$D$12","v":"ifrs-full:ComponentsOfEquityAxis"},{"$f":"'610000 - Est. Camb. Patrimonio'!$J$11","v":"ifrs-full:ReserveOfExchangeDifferencesOnTranslationMember"}]
["/*",null,{"$f":"'610000 - Est. Camb. Patrimonio'!$D$21","v":"Emisión de patrimonio"},{"$f":"'610000 - Est. Camb. Patrimonio'!$C$21","v":"ifrs-full:IssueOfEquity"}]
["/*",null,{"$f":"'610000 - Est. Camb. Patrimonio'!$D$22","v":"Dividendos reconocidos como distribuciones a los propietarios"},{"$f":"'610000 - Est. Camb. Patrimonio'!$C$22","v":"ifrs-full:DividendsPaid"}]
["/*",null,{"$f":"'610000 - Est. Camb. Patrimonio'!$D$23","v":"Incrementos por otras aportaciones de los propietarios, patrimonio"},{"$f":"'610000 - Est. Camb. Patrimonio'!$C$23","v":"ifrs-full:IncreaseDecreaseThroughOtherContributionsByOwners"}]
["/*",null,{"$f":"'610000 - Est. Camb. Patrimonio'!$D$24","v":"Disminución por otras distribuciones a los propietarios, patrimonio"},{"$f":"'610000 - Est. Camb. Patrimonio'!$C$24","v":"ifrs-full:IncreaseDecreaseThroughOtherDistributionsToOwners"}]
["/*",null,{"$f":"'610000 - Est. Camb. Patrimonio'!$D$25","v":"Incrementos (disminuciones) por otros cambios, patrimonio"},{"$f":"'610000 - Est. Camb. Patrimonio'!$C$25","v":"ifrs-full:IncreaseDecreaseThroughTransfersAndOtherChangesEquity"}]
["/*",null,{"$f":"'610000 - Est. Camb. Patrimonio'!$D$26","v":"Incrementos (disminuciones) por transacciones con acciones propias, patrimonio"},{"$f":"'610000 - Est. Camb. Patrimonio'!$C$26","v":"ifrs-full:IncreaseDecreaseThroughTreasuryShareTransactions"}]
["/*",null,{"$f":"'610000 - Est. Camb. Patrimonio'!$D$27","v":"Incrementos (disminuciones) por cambios las participaciones en la propiedad de subsidiarias que no dan lugar a pérdida de control, patrimonio"},{"$f":"'610000 - Est. Camb. Patrimonio'!$C$27","v":"ifrs-full:IncreaseDecreaseThroughChangesInOwnershipInterestsInSubsidiariesThatDoNotResultInLossOfControl"}]
["/*",null,{"$f":"'610000 - Est. Camb. Patrimonio'!$D$28","v":"Incrementos (disminuciones) por transacciones con pagos basados en acciones, patrimonio"},{"$f":"'610000 - Est. Camb. Patrimonio'!$C$28","v":"ifrs-full:IncreaseDecreaseThroughSharebasedPaymentTransactions"}]
["",null,{"$f":"'610000 - Est. Camb. Patrimonio'!$D$29","v":"Total incremento (disminución) en el patrimonio"},{"$f":"'610000 - Est. Camb. Patrimonio'!$C$29","v":"ifrs-full:ChangesInEquity"},0,"peso",{"$f":"'610000 - Est. Camb. Patrimonio'!$J$29","v":0},800001965,"http://www.xbrl.org/scheme/companyName",{"$f":"Periodos!$C$3","v":"2017-01-01"},{"$f":"Periodos!$C$4","v":"2017-12-31"},{"$f":"'610000 - Est. Camb. Patrimonio'!$D$12","v":"ifrs-full:ComponentsOfEquityAxis"},{"$f":"'610000 - Est. Camb. Patrimonio'!$J$11","v":"ifrs-full:ReserveOfExchangeDifferencesOnTranslationMember"}]
[{"$f":"IF(G673=\"\",\"/*\",\"\")","v":""},null,{"$f":"'610000 - Est. Camb. Patrimonio'!$D$30","v":"Patrimonio al final del periodo"},{"$f":"'610000 - Est. Camb. Patrimonio'!$C$30","v":"co-svsp-core_2017-12-31:EquityEndOfPeriod"},0,"peso",{"$f":"'610000 - Est. Camb. Patrimonio'!$J$30","v":0},800001965,"http://www.xbrl.org/scheme/companyName",{"$f":"Periodos!$C$3","v":"2017-01-01"},{"$f":"Periodos!$C$4","v":"2017-12-31"},{"$f":"'610000 - Est. Camb. Patrimonio'!$D$12","v":"ifrs-full:ComponentsOfEquityAxis"},{"$f":"'610000 - Est. Camb. Patrimonio'!$J$11","v":"ifrs-full:ReserveOfExchangeDifferencesOnTranslationMember"}]
["/*",null,"--07--"]
["/*",null,{"$f":"'610000 - Est. Camb. Patrimonio'!$D$13","v":"Estado de cambios en el patrimonio [resumen]"},{"$f":"'610000 - Est. Camb. Patrimonio'!$C$13","v":"ifrs-full:StatementOfChangesInEquityAbstract"}]
["/*",null,{"$f":"'610000 - Est. Camb. Patrimonio'!$D$14","v":"Estado de cambios en el patrimonio [partidas de los estados financieros]"},{"$f":"'610000 - Est. Camb. Patrimonio'!$C$14","v":"ifrs-full:StatementOfChangesInEquityLineItems"}]
["",null,{"$f":"'610000 - Est. Camb. Patrimonio'!$D$15","v":"Patrimonio al comienzo del periodo"},{"$f":"'610000 - Est. Camb. Patrimonio'!$C$15","v":"co-svsp-core_2017-12-31:EquityBeginningOfPeriod"},0,"peso",{"$f":"'610000 - Est. Camb. Patrimonio'!$K$15","v":0},800001965,"http://www.xbrl.org/scheme/companyName",{"$f":"Periodos!$C$3","v":"2017-01-01"},{"$f":"Periodos!$C$4","v":"2017-12-31"},{"$f":"'610000 - Est. Camb. Patrimonio'!$D$12","v":"ifrs-full:ComponentsOfEquityAxis"},{"$f":"'610000 - Est. Camb. Patrimonio'!$K$11","v":"ifrs-full:ReserveOfCashFlowHedgesMember"}]
["/*",null,{"$f":"'610000 - Est. Camb. Patrimonio'!$D$16","v":"Cambios en el patrimonio [resumen]"},{"$f":"'610000 - Est. Camb. Patrimonio'!$C$16","v":"ifrs-full:ChangesInEquityAbstract"}]
["/*",null,{"$f":"'610000 - Est. Camb. Patrimonio'!$D$17","v":"Resultado integral [resumen]"},{"$f":"'610000 - Est. Camb. Patrimonio'!$C$17","v":"ifrs-full:ComprehensiveIncomeAbstract"}]
["/*",null,{"$f":"'610000 - Est. Camb. Patrimonio'!$D$18","v":"Ganancia (pérdida)"},{"$f":"'610000 - Est. Camb. Patrimonio'!$C$18","v":"co-svsp-core_2017-12-31:ProfitLoss"}]
["/*",null,{"$f":"'610000 - Est. Camb. Patrimonio'!$D$19","v":"Otro resultado integral"},{"$f":"'610000 - Est. Camb. Patrimonio'!$C$19","v":"co-svsp-core_2017-12-31:OtherComprehensiveIncome"}]
["",null,{"$f":"'610000 - Est. Camb. Patrimonio'!$D$20","v":"Resultado integral total"},{"$f":"'610000 - Est. Camb. Patrimonio'!$C$20","v":"co-svsp-core_2017-12-31:ComprehensiveIncome"},0,"peso",{"$f":"'610000 - Est. Camb. Patrimonio'!$K$20","v":0},800001965,"http://www.xbrl.org/scheme/companyName",{"$f":"Periodos!$C$3","v":"2017-01-01"},{"$f":"Periodos!$C$4","v":"2017-12-31"},{"$f":"'610000 - Est. Camb. Patrimonio'!$D$12","v":"ifrs-full:ComponentsOfEquityAxis"},{"$f":"'610000 - Est. Camb. Patrimonio'!$K$11","v":"ifrs-full:ReserveOfCashFlowHedgesMember"}]
["/*",null,{"$f":"'610000 - Est. Camb. Patrimonio'!$D$21","v":"Emisión de patrimonio"},{"$f":"'610000 - Est. Camb. Patrimonio'!$C$21","v":"ifrs-full:IssueOfEquity"}]
["/*",null,{"$f":"'610000 - Est. Camb. Patrimonio'!$D$22","v":"Dividendos reconocidos como distribuciones a los propietarios"},{"$f":"'610000 - Est. Camb. Patrimonio'!$C$22","v":"ifrs-full:DividendsPaid"}]
["/*",null,{"$f":"'610000 - Est. Camb. Patrimonio'!$D$23","v":"Incrementos por otras aportaciones de los propietarios, patrimonio"},{"$f":"'610000 - Est. Camb. Patrimonio'!$C$23","v":"ifrs-full:IncreaseDecreaseThroughOtherContributionsByOwners"}]
["/*",null,{"$f":"'610000 - Est. Camb. Patrimonio'!$D$24","v":"Disminución por otras distribuciones a los propietarios, patrimonio"},{"$f":"'610000 - Est. Camb. Patrimonio'!$C$24","v":"ifrs-full:IncreaseDecreaseThroughOtherDistributionsToOwners"}]
["/*",null,{"$f":"'610000 - Est. Camb. Patrimonio'!$D$25","v":"Incrementos (disminuciones) por otros cambios, patrimonio"},{"$f":"'610000 - Est. Camb. Patrimonio'!$C$25","v":"ifrs-full:IncreaseDecreaseThroughTransfersAndOtherChangesEquity"}]
["/*",null,{"$f":"'610000 - Est. Camb. Patrimonio'!$D$26","v":"Incrementos (disminuciones) por transacciones con acciones propias, patrimonio"},{"$f":"'610000 - Est. Camb. Patrimonio'!$C$26","v":"ifrs-full:IncreaseDecreaseThroughTreasuryShareTransactions"}]
["/*",null,{"$f":"'610000 - Est. Camb. Patrimonio'!$D$27","v":"Incrementos (disminuciones) por cambios las participaciones en la propiedad de subsidiarias que no dan lugar a pérdida de control, patrimonio"},{"$f":"'610000 - Est. Camb. Patrimonio'!$C$27","v":"ifrs-full:IncreaseDecreaseThroughChangesInOwnershipInterestsInSubsidiariesThatDoNotResultInLossOfControl"}]
["/*",null,{"$f":"'610000 - Est. Camb. Patrimonio'!$D$28","v":"Incrementos (disminuciones) por transacciones con pagos basados en acciones, patrimonio"},{"$f":"'610000 - Est. Camb. Patrimonio'!$C$28","v":"ifrs-full:IncreaseDecreaseThroughSharebasedPaymentTransactions"}]
["",null,{"$f":"'610000 - Est. Camb. Patrimonio'!$D$29","v":"Total incremento (disminución) en el patrimonio"},{"$f":"'610000 - Est. Camb. Patrimonio'!$C$29","v":"ifrs-full:ChangesInEquity"},0,"peso",{"$f":"'610000 - Est. Camb. Patrimonio'!$K$29","v":0},800001965,"http://www.xbrl.org/scheme/companyName",{"$f":"Periodos!$C$3","v":"2017-01-01"},{"$f":"Periodos!$C$4","v":"2017-12-31"},{"$f":"'610000 - Est. Camb. Patrimonio'!$D$12","v":"ifrs-full:ComponentsOfEquityAxis"},{"$f":"'610000 - Est. Camb. Patrimonio'!$K$11","v":"ifrs-full:ReserveOfCashFlowHedgesMember"}]
["",null,{"$f":"'610000 - Est. Camb. Patrimonio'!$D$30","v":"Patrimonio al final del periodo"},{"$f":"'610000 - Est. Camb. Patrimonio'!$C$30","v":"co-svsp-core_2017-12-31:EquityEndOfPeriod"},0,"peso",{"$f":"'610000 - Est. Camb. Patrimonio'!$K$30","v":0},800001965,"http://www.xbrl.org/scheme/companyName",{"$f":"Periodos!$C$3","v":"2017-01-01"},{"$f":"Periodos!$C$4","v":"2017-12-31"},{"$f":"'610000 - Est. Camb. Patrimonio'!$D$12","v":"ifrs-full:ComponentsOfEquityAxis"},{"$f":"'610000 - Est. Camb. Patrimonio'!$K$11","v":"ifrs-full:ReserveOfCashFlowHedgesMember"}]
["/*",null,"--08--"]
["/*",null,{"$f":"'610000 - Est. Camb. Patrimonio'!$D$13","v":"Estado de cambios en el patrimonio [resumen]"},{"$f":"'610000 - Est. Camb. Patrimonio'!$C$13","v":"ifrs-full:StatementOfChangesInEquityAbstract"}]
["/*",null,{"$f":"'610000 - Est. Camb. Patrimonio'!$D$14","v":"Estado de cambios en el patrimonio [partidas de los estados financieros]"},{"$f":"'610000 - Est. Camb. Patrimonio'!$C$14","v":"ifrs-full:StatementOfChangesInEquityLineItems"}]
["",null,{"$f":"'610000 - Est. Camb. Patrimonio'!$D$15","v":"Patrimonio al comienzo del periodo"},{"$f":"'610000 - Est. Camb. Patrimonio'!$C$15","v":"co-svsp-core_2017-12-31:EquityBeginningOfPeriod"},0,"peso",{"$f":"'610000 - Est. Camb. Patrimonio'!$L$15","v":0},800001965,"http://www.xbrl.org/scheme/companyName",{"$f":"Periodos!$C$3","v":"2017-01-01"},{"$f":"Periodos!$C$4","v":"2017-12-31"},{"$f":"'610000 - Est. Camb. Patrimonio'!$D$12","v":"ifrs-full:ComponentsOfEquityAxis"},{"$f":"'610000 - Est. Camb. Patrimonio'!$L$11","v":"ifrs-full:ReserveOfGainsAndLossesOnHedgingInstrumentsThatHedgeInvestmentsInEquityInstrumentsMember"}]
["/*",null,{"$f":"'610000 - Est. Camb. Patrimonio'!$D$16","v":"Cambios en el patrimonio [resumen]"},{"$f":"'610000 - Est. Camb. Patrimonio'!$C$16","v":"ifrs-full:ChangesInEquityAbstract"}]
["/*",null,{"$f":"'610000 - Est. Camb. Patrimonio'!$D$17","v":"Resultado integral [resumen]"},{"$f":"'610000 - Est. Camb. Patrimonio'!$C$17","v":"ifrs-full:ComprehensiveIncomeAbstract"}]
["/*",null,{"$f":"'610000 - Est. Camb. Patrimonio'!$D$18","v":"Ganancia (pérdida)"},{"$f":"'610000 - Est. Camb. Patrimonio'!$C$18","v":"co-svsp-core_2017-12-31:ProfitLoss"}]
["/*",null,{"$f":"'610000 - Est. Camb. Patrimonio'!$D$19","v":"Otro resultado integral"},{"$f":"'610000 - Est. Camb. Patrimonio'!$C$19","v":"co-svsp-core_2017-12-31:OtherComprehensiveIncome"}]
["",null,{"$f":"'610000 - Est. Camb. Patrimonio'!$D$20","v":"Resultado integral total"},{"$f":"'610000 - Est. Camb. Patrimonio'!$C$20","v":"co-svsp-core_2017-12-31:ComprehensiveIncome"},0,"peso",{"$f":"'610000 - Est. Camb. Patrimonio'!$L$20","v":0},800001965,"http://www.xbrl.org/scheme/companyName",{"$f":"Periodos!$C$3","v":"2017-01-01"},{"$f":"Periodos!$C$4","v":"2017-12-31"},{"$f":"'610000 - Est. Camb. Patrimonio'!$D$12","v":"ifrs-full:ComponentsOfEquityAxis"},{"$f":"'610000 - Est. Camb. Patrimonio'!$L$11","v":"ifrs-full:ReserveOfGainsAndLossesOnHedgingInstrumentsThatHedgeInvestmentsInEquityInstrumentsMember"}]
["/*",null,{"$f":"'610000 - Est. Camb. Patrimonio'!$D$21","v":"Emisión de patrimonio"},{"$f":"'610000 - Est. Camb. Patrimonio'!$C$21","v":"ifrs-full:IssueOfEquity"}]
["/*",null,{"$f":"'610000 - Est. Camb. Patrimonio'!$D$22","v":"Dividendos reconocidos como distribuciones a los propietarios"},{"$f":"'610000 - Est. Camb. Patrimonio'!$C$22","v":"ifrs-full:DividendsPaid"}]
["/*",null,{"$f":"'610000 - Est. Camb. Patrimonio'!$D$23","v":"Incrementos por otras aportaciones de los propietarios, patrimonio"},{"$f":"'610000 - Est. Camb. Patrimonio'!$C$23","v":"ifrs-full:IncreaseDecreaseThroughOtherContributionsByOwners"}]
["/*",null,{"$f":"'610000 - Est. Camb. Patrimonio'!$D$24","v":"Disminución por otras distribuciones a los propietarios, patrimonio"},{"$f":"'610000 - Est. Camb. Patrimonio'!$C$24","v":"ifrs-full:IncreaseDecreaseThroughOtherDistributionsToOwners"}]
["/*",null,{"$f":"'610000 - Est. Camb. Patrimonio'!$D$25","v":"Incrementos (disminuciones) por otros cambios, patrimonio"},{"$f":"'610000 - Est. Camb. Patrimonio'!$C$25","v":"ifrs-full:IncreaseDecreaseThroughTransfersAndOtherChangesEquity"}]
["/*",null,{"$f":"'610000 - Est. Camb. Patrimonio'!$D$26","v":"Incrementos (disminuciones) por transacciones con acciones propias, patrimonio"},{"$f":"'610000 - Est. Camb. Patrimonio'!$C$26","v":"ifrs-full:IncreaseDecreaseThroughTreasuryShareTransactions"}]
["/*",null,{"$f":"'610000 - Est. Camb. Patrimonio'!$D$27","v":"Incrementos (disminuciones) por cambios las participaciones en la propiedad de subsidiarias que no dan lugar a pérdida de control, patrimonio"},{"$f":"'610000 - Est. Camb. Patrimonio'!$C$27","v":"ifrs-full:IncreaseDecreaseThroughChangesInOwnershipInterestsInSubsidiariesThatDoNotResultInLossOfControl"}]
["/*",null,{"$f":"'610000 - Est. Camb. Patrimonio'!$D$28","v":"Incrementos (disminuciones) por transacciones con pagos basados en acciones, patrimonio"},{"$f":"'610000 - Est. Camb. Patrimonio'!$C$28","v":"ifrs-full:IncreaseDecreaseThroughSharebasedPaymentTransactions"}]
["",null,{"$f":"'610000 - Est. Camb. Patrimonio'!$D$29","v":"Total incremento (disminución) en el patrimonio"},{"$f":"'610000 - Est. Camb. Patrimonio'!$C$29","v":"ifrs-full:ChangesInEquity"},0,"peso",{"$f":"'610000 - Est. Camb. Patrimonio'!$L$29","v":0},800001965,"http://www.xbrl.org/scheme/companyName",{"$f":"Periodos!$C$3","v":"2017-01-01"},{"$f":"Periodos!$C$4","v":"2017-12-31"},{"$f":"'610000 - Est. Camb. Patrimonio'!$D$12","v":"ifrs-full:ComponentsOfEquityAxis"},{"$f":"'610000 - Est. Camb. Patrimonio'!$L$11","v":"ifrs-full:ReserveOfGainsAndLossesOnHedgingInstrumentsThatHedgeInvestmentsInEquityInstrumentsMember"}]
["",null,{"$f":"'610000 - Est. Camb. Patrimonio'!$D$30","v":"Patrimonio al final del periodo"},{"$f":"'610000 - Est. Camb. Patrimonio'!$C$30","v":"co-svsp-core_2017-12-31:EquityEndOfPeriod"},0,"peso",{"$f":"'610000 - Est. Camb. Patrimonio'!$L$30","v":0},800001965,"http://www.xbrl.org/scheme/companyName",{"$f":"Periodos!$C$3","v":"2017-01-01"},{"$f":"Periodos!$C$4","v":"2017-12-31"},{"$f":"'610000 - Est. Camb. Patrimonio'!$D$12","v":"ifrs-full:ComponentsOfEquityAxis"},{"$f":"'610000 - Est. Camb. Patrimonio'!$L$11","v":"ifrs-full:ReserveOfGainsAndLossesOnHedgingInstrumentsThatHedgeInvestmentsInEquityInstrumentsMember"}]
["/*",null,"--09--"]
["/*",null,{"$f":"'610000 - Est. Camb. Patrimonio'!$D$13","v":"Estado de cambios en el patrimonio [resumen]"},{"$f":"'610000 - Est. Camb. Patrimonio'!$C$13","v":"ifrs-full:StatementOfChangesInEquityAbstract"}]
["/*",null,{"$f":"'610000 - Est. Camb. Patrimonio'!$D$14","v":"Estado de cambios en el patrimonio [partidas de los estados financieros]"},{"$f":"'610000 - Est. Camb. Patrimonio'!$C$14","v":"ifrs-full:StatementOfChangesInEquityLineItems"}]
["",null,{"$f":"'610000 - Est. Camb. Patrimonio'!$D$15","v":"Patrimonio al comienzo del periodo"},{"$f":"'610000 - Est. Camb. Patrimonio'!$C$15","v":"co-svsp-core_2017-12-31:EquityBeginningOfPeriod"},0,"peso",{"$f":"'610000 - Est. Camb. Patrimonio'!$M$15","v":0},800001965,"http://www.xbrl.org/scheme/companyName",{"$f":"Periodos!$C$3","v":"2017-01-01"},{"$f":"Periodos!$C$4","v":"2017-12-31"},{"$f":"'610000 - Est. Camb. Patrimonio'!$D$12","v":"ifrs-full:ComponentsOfEquityAxis"},{"$f":"'610000 - Est. Camb. Patrimonio'!$M$11","v":"ifrs-full:ReserveOfChangeInValueOfTimeValueOfOptionsMember"}]
["/*",null,{"$f":"'610000 - Est. Camb. Patrimonio'!$D$16","v":"Cambios en el patrimonio [resumen]"},{"$f":"'610000 - Est. Camb. Patrimonio'!$C$16","v":"ifrs-full:ChangesInEquityAbstract"}]
["/*",null,{"$f":"'610000 - Est. Camb. Patrimonio'!$D$17","v":"Resultado integral [resumen]"},{"$f":"'610000 - Est. Camb. Patrimonio'!$C$17","v":"ifrs-full:ComprehensiveIncomeAbstract"}]
["/*",null,{"$f":"'610000 - Est. Camb. Patrimonio'!$D$18","v":"Ganancia (pérdida)"},{"$f":"'610000 - Est. Camb. Patrimonio'!$C$18","v":"co-svsp-core_2017-12-31:ProfitLoss"}]
["/*",null,{"$f":"'610000 - Est. Camb. Patrimonio'!$D$19","v":"Otro resultado integral"},{"$f":"'610000 - Est. Camb. Patrimonio'!$C$19","v":"co-svsp-core_2017-12-31:OtherComprehensiveIncome"}]
["",null,{"$f":"'610000 - Est. Camb. Patrimonio'!$D$20","v":"Resultado integral total"},{"$f":"'610000 - Est. Camb. Patrimonio'!$C$20","v":"co-svsp-core_2017-12-31:ComprehensiveIncome"},0,"peso",{"$f":"'610000 - Est. Camb. Patrimonio'!$M$20","v":0},800001965,"http://www.xbrl.org/scheme/companyName",{"$f":"Periodos!$C$3","v":"2017-01-01"},{"$f":"Periodos!$C$4","v":"2017-12-31"},{"$f":"'610000 - Est. Camb. Patrimonio'!$D$12","v":"ifrs-full:ComponentsOfEquityAxis"},{"$f":"'610000 - Est. Camb. Patrimonio'!$M$11","v":"ifrs-full:ReserveOfChangeInValueOfTimeValueOfOptionsMember"}]
["/*",null,{"$f":"'610000 - Est. Camb. Patrimonio'!$D$21","v":"Emisión de patrimonio"},{"$f":"'610000 - Est. Camb. Patrimonio'!$C$21","v":"ifrs-full:IssueOfEquity"}]
["/*",null,{"$f":"'610000 - Est. Camb. Patrimonio'!$D$22","v":"Dividendos reconocidos como distribuciones a los propietarios"},{"$f":"'610000 - Est. Camb. Patrimonio'!$C$22","v":"ifrs-full:DividendsPaid"}]
["/*",null,{"$f":"'610000 - Est. Camb. Patrimonio'!$D$23","v":"Incrementos por otras aportaciones de los propietarios, patrimonio"},{"$f":"'610000 - Est. Camb. Patrimonio'!$C$23","v":"ifrs-full:IncreaseDecreaseThroughOtherContributionsByOwners"}]
["/*",null,{"$f":"'610000 - Est. Camb. Patrimonio'!$D$24","v":"Disminución por otras distribuciones a los propietarios, patrimonio"},{"$f":"'610000 - Est. Camb. Patrimonio'!$C$24","v":"ifrs-full:IncreaseDecreaseThroughOtherDistributionsToOwners"}]
["/*",null,{"$f":"'610000 - Est. Camb. Patrimonio'!$D$25","v":"Incrementos (disminuciones) por otros cambios, patrimonio"},{"$f":"'610000 - Est. Camb. Patrimonio'!$C$25","v":"ifrs-full:IncreaseDecreaseThroughTransfersAndOtherChangesEquity"}]
["/*",null,{"$f":"'610000 - Est. Camb. Patrimonio'!$D$26","v":"Incrementos (disminuciones) por transacciones con acciones propias, patrimonio"},{"$f":"'610000 - Est. Camb. Patrimonio'!$C$26","v":"ifrs-full:IncreaseDecreaseThroughTreasuryShareTransactions"}]
["/*",null,{"$f":"'610000 - Est. Camb. Patrimonio'!$D$27","v":"Incrementos (disminuciones) por cambios las participaciones en la propiedad de subsidiarias que no dan lugar a pérdida de control, patrimonio"},{"$f":"'610000 - Est. Camb. Patrimonio'!$C$27","v":"ifrs-full:IncreaseDecreaseThroughChangesInOwnershipInterestsInSubsidiariesThatDoNotResultInLossOfControl"}]
["/*",null,{"$f":"'610000 - Est. Camb. Patrimonio'!$D$28","v":"Incrementos (disminuciones) por transacciones con pagos basados en acciones, patrimonio"},{"$f":"'610000 - Est. Camb. Patrimonio'!$C$28","v":"ifrs-full:IncreaseDecreaseThroughSharebasedPaymentTransactions"}]
["",null,{"$f":"'610000 - Est. Camb. Patrimonio'!$D$29","v":"Total incremento (disminución) en el patrimonio"},{"$f":"'610000 - Est. Camb. Patrimonio'!$C$29","v":"ifrs-full:ChangesInEquity"},0,"peso",{"$f":"'610000 - Est. Camb. Patrimonio'!$M$29","v":0},800001965,"http://www.xbrl.org/scheme/companyName",{"$f":"Periodos!$C$3","v":"2017-01-01"},{"$f":"Periodos!$C$4","v":"2017-12-31"},{"$f":"'610000 - Est. Camb. Patrimonio'!$D$12","v":"ifrs-full:ComponentsOfEquityAxis"},{"$f":"'610000 - Est. Camb. Patrimonio'!$M$11","v":"ifrs-full:ReserveOfChangeInValueOfTimeValueOfOptionsMember"}]
["",null,{"$f":"'610000 - Est. Camb. Patrimonio'!$D$30","v":"Patrimonio al final del periodo"},{"$f":"'610000 - Est. Camb. Patrimonio'!$C$30","v":"co-svsp-core_2017-12-31:EquityEndOfPeriod"},0,"peso",{"$f":"'610000 - Est. Camb. Patrimonio'!$M$30","v":0},800001965,"http://www.xbrl.org/scheme/companyName",{"$f":"Periodos!$C$3","v":"2017-01-01"},{"$f":"Periodos!$C$4","v":"2017-12-31"},{"$f":"'610000 - Est. Camb. Patrimonio'!$D$12","v":"ifrs-full:ComponentsOfEquityAxis"},{"$f":"'610000 - Est. Camb. Patrimonio'!$M$11","v":"ifrs-full:ReserveOfChangeInValueOfTimeValueOfOptionsMember"}]
["/*",null,"--10--"]
["/*",null,{"$f":"'610000 - Est. Camb. Patrimonio'!$D$13","v":"Estado de cambios en el patrimonio [resumen]"},{"$f":"'610000 - Est. Camb. Patrimonio'!$C$13","v":"ifrs-full:StatementOfChangesInEquityAbstract"}]
["/*",null,{"$f":"'610000 - Est. Camb. Patrimonio'!$D$14","v":"Estado de cambios en el patrimonio [partidas de los estados financieros]"},{"$f":"'610000 - Est. Camb. Patrimonio'!$C$14","v":"ifrs-full:StatementOfChangesInEquityLineItems"}]
["",null,{"$f":"'610000 - Est. Camb. Patrimonio'!$D$15","v":"Patrimonio al comienzo del periodo"},{"$f":"'610000 - Est. Camb. Patrimonio'!$C$15","v":"co-svsp-core_2017-12-31:EquityBeginningOfPeriod"},0,"peso",{"$f":"'610000 - Est. Camb. Patrimonio'!$N$15","v":0},800001965,"http://www.xbrl.org/scheme/companyName",{"$f":"Periodos!$C$3","v":"2017-01-01"},{"$f":"Periodos!$C$4","v":"2017-12-31"},{"$f":"'610000 - Est. Camb. Patrimonio'!$D$12","v":"ifrs-full:ComponentsOfEquityAxis"},{"$f":"'610000 - Est. Camb. Patrimonio'!$N$11","v":"ifrs-full:ReserveOfChangeInValueOfForwardElementsOfForwardContractsMember"}]
["/*",null,{"$f":"'610000 - Est. Camb. Patrimonio'!$D$16","v":"Cambios en el patrimonio [resumen]"},{"$f":"'610000 - Est. Camb. Patrimonio'!$C$16","v":"ifrs-full:ChangesInEquityAbstract"}]
["/*",null,{"$f":"'610000 - Est. Camb. Patrimonio'!$D$17","v":"Resultado integral [resumen]"},{"$f":"'610000 - Est. Camb. Patrimonio'!$C$17","v":"ifrs-full:ComprehensiveIncomeAbstract"}]
[{"$f":"IF(G737=\"\",\"/*\",\"\")","v":"/*"},null,{"$f":"'610000 - Est. Camb. Patrimonio'!$D$18","v":"Ganancia (pérdida)"},{"$f":"'610000 - Est. Camb. Patrimonio'!$C$18","v":"co-svsp-core_2017-12-31:ProfitLoss"}]
["/*",null,{"$f":"'610000 - Est. Camb. Patrimonio'!$D$19","v":"Otro resultado integral"},{"$f":"'610000 - Est. Camb. Patrimonio'!$C$19","v":"co-svsp-core_2017-12-31:OtherComprehensiveIncome"}]
["",null,{"$f":"'610000 - Est. Camb. Patrimonio'!$D$20","v":"Resultado integral total"},{"$f":"'610000 - Est. Camb. Patrimonio'!$C$20","v":"co-svsp-core_2017-12-31:ComprehensiveIncome"},0,"peso",{"$f":"'610000 - Est. Camb. Patrimonio'!$N$20","v":0},800001965,"http://www.xbrl.org/scheme/companyName",{"$f":"Periodos!$C$3","v":"2017-01-01"},{"$f":"Periodos!$C$4","v":"2017-12-31"},{"$f":"'610000 - Est. Camb. Patrimonio'!$D$12","v":"ifrs-full:ComponentsOfEquityAxis"},{"$f":"'610000 - Est. Camb. Patrimonio'!$N$11","v":"ifrs-full:ReserveOfChangeInValueOfForwardElementsOfForwardContractsMember"}]
["/*",null,{"$f":"'610000 - Est. Camb. Patrimonio'!$D$21","v":"Emisión de patrimonio"},{"$f":"'610000 - Est. Camb. Patrimonio'!$C$21","v":"ifrs-full:IssueOfEquity"}]
["/*",null,{"$f":"'610000 - Est. Camb. Patrimonio'!$D$22","v":"Dividendos reconocidos como distribuciones a los propietarios"},{"$f":"'610000 - Est. Camb. Patrimonio'!$C$22","v":"ifrs-full:DividendsPaid"}]
["/*",null,{"$f":"'610000 - Est. Camb. Patrimonio'!$D$23","v":"Incrementos por otras aportaciones de los propietarios, patrimonio"},{"$f":"'610000 - Est. Camb. Patrimonio'!$C$23","v":"ifrs-full:IncreaseDecreaseThroughOtherContributionsByOwners"}]
["/*",null,{"$f":"'610000 - Est. Camb. Patrimonio'!$D$24","v":"Disminución por otras distribuciones a los propietarios, patrimonio"},{"$f":"'610000 - Est. Camb. Patrimonio'!$C$24","v":"ifrs-full:IncreaseDecreaseThroughOtherDistributionsToOwners"}]
["/*",null,{"$f":"'610000 - Est. Camb. Patrimonio'!$D$25","v":"Incrementos (disminuciones) por otros cambios, patrimonio"},{"$f":"'610000 - Est. Camb. Patrimonio'!$C$25","v":"ifrs-full:IncreaseDecreaseThroughTransfersAndOtherChangesEquity"}]
["/*",null,{"$f":"'610000 - Est. Camb. Patrimonio'!$D$26","v":"Incrementos (disminuciones) por transacciones con acciones propias, patrimonio"},{"$f":"'610000 - Est. Camb. Patrimonio'!$C$26","v":"ifrs-full:IncreaseDecreaseThroughTreasuryShareTransactions"}]
["/*",null,{"$f":"'610000 - Est. Camb. Patrimonio'!$D$27","v":"Incrementos (disminuciones) por cambios las participaciones en la propiedad de subsidiarias que no dan lugar a pérdida de control, patrimonio"},{"$f":"'610000 - Est. Camb. Patrimonio'!$C$27","v":"ifrs-full:IncreaseDecreaseThroughChangesInOwnershipInterestsInSubsidiariesThatDoNotResultInLossOfControl"}]
["/*",null,{"$f":"'610000 - Est. Camb. Patrimonio'!$D$28","v":"Incrementos (disminuciones) por transacciones con pagos basados en acciones, patrimonio"},{"$f":"'610000 - Est. Camb. Patrimonio'!$C$28","v":"ifrs-full:IncreaseDecreaseThroughSharebasedPaymentTransactions"}]
["",null,{"$f":"'610000 - Est. Camb. Patrimonio'!$D$29","v":"Total incremento (disminución) en el patrimonio"},{"$f":"'610000 - Est. Camb. Patrimonio'!$C$29","v":"ifrs-full:ChangesInEquity"},0,"peso",{"$f":"'610000 - Est. Camb. Patrimonio'!$N$29","v":0},800001965,"http://www.xbrl.org/scheme/companyName",{"$f":"Periodos!$C$3","v":"2017-01-01"},{"$f":"Periodos!$C$4","v":"2017-12-31"},{"$f":"'610000 - Est. Camb. Patrimonio'!$D$12","v":"ifrs-full:ComponentsOfEquityAxis"},{"$f":"'610000 - Est. Camb. Patrimonio'!$N$11","v":"ifrs-full:ReserveOfChangeInValueOfForwardElementsOfForwardContractsMember"}]
["",null,{"$f":"'610000 - Est. Camb. Patrimonio'!$D$30","v":"Patrimonio al final del periodo"},{"$f":"'610000 - Est. Camb. Patrimonio'!$C$30","v":"co-svsp-core_2017-12-31:EquityEndOfPeriod"},0,"peso",{"$f":"'610000 - Est. Camb. Patrimonio'!$N$30","v":0},800001965,"http://www.xbrl.org/scheme/companyName",{"$f":"Periodos!$C$3","v":"2017-01-01"},{"$f":"Periodos!$C$4","v":"2017-12-31"},{"$f":"'610000 - Est. Camb. Patrimonio'!$D$12","v":"ifrs-full:ComponentsOfEquityAxis"},{"$f":"'610000 - Est. Camb. Patrimonio'!$N$11","v":"ifrs-full:ReserveOfChangeInValueOfForwardElementsOfForwardContractsMember"}]
["/*",null,"--11--"]
["/*",null,{"$f":"'610000 - Est. Camb. Patrimonio'!$D$13","v":"Estado de cambios en el patrimonio [resumen]"},{"$f":"'610000 - Est. Camb. Patrimonio'!$C$13","v":"ifrs-full:StatementOfChangesInEquityAbstract"}]
["/*",null,{"$f":"'610000 - Est. Camb. Patrimonio'!$D$14","v":"Estado de cambios en el patrimonio [partidas de los estados financieros]"},{"$f":"'610000 - Est. Camb. Patrimonio'!$C$14","v":"ifrs-full:StatementOfChangesInEquityLineItems"}]
["",null,{"$f":"'610000 - Est. Camb. Patrimonio'!$D$15","v":"Patrimonio al comienzo del periodo"},{"$f":"'610000 - Est. Camb. Patrimonio'!$C$15","v":"co-svsp-core_2017-12-31:EquityBeginningOfPeriod"},0,"peso",{"$f":"'610000 - Est. Camb. Patrimonio'!$O$15","v":0},800001965,"http://www.xbrl.org/scheme/companyName",{"$f":"Periodos!$C$3","v":"2017-01-01"},{"$f":"Periodos!$C$4","v":"2017-12-31"},{"$f":"'610000 - Est. Camb. Patrimonio'!$D$12","v":"ifrs-full:ComponentsOfEquityAxis"},{"$f":"'610000 - Est. Camb. Patrimonio'!$O$11","v":"ifrs-full:ReserveOfGainsAndLossesOnFinancialAssetsMeasuredAtFairValueThroughOtherComprehensiveIncomeMember"}]
["/*",null,{"$f":"'610000 - Est. Camb. Patrimonio'!$D$16","v":"Cambios en el patrimonio [resumen]"},{"$f":"'610000 - Est. Camb. Patrimonio'!$C$16","v":"ifrs-full:ChangesInEquityAbstract"}]
["/*",null,{"$f":"'610000 - Est. Camb. Patrimonio'!$D$17","v":"Resultado integral [resumen]"},{"$f":"'610000 - Est. Camb. Patrimonio'!$C$17","v":"ifrs-full:ComprehensiveIncomeAbstract"}]
["/*",null,{"$f":"'610000 - Est. Camb. Patrimonio'!$D$18","v":"Ganancia (pérdida)"},{"$f":"'610000 - Est. Camb. Patrimonio'!$C$18","v":"co-svsp-core_2017-12-31:ProfitLoss"}]
["/*",null,{"$f":"'610000 - Est. Camb. Patrimonio'!$D$19","v":"Otro resultado integral"},{"$f":"'610000 - Est. Camb. Patrimonio'!$C$19","v":"co-svsp-core_2017-12-31:OtherComprehensiveIncome"}]
["",null,{"$f":"'610000 - Est. Camb. Patrimonio'!$D$20","v":"Resultado integral total"},{"$f":"'610000 - Est. Camb. Patrimonio'!$C$20","v":"co-svsp-core_2017-12-31:ComprehensiveIncome"},0,"peso",{"$f":"'610000 - Est. Camb. Patrimonio'!$O$20","v":0},800001965,"http://www.xbrl.org/scheme/companyName",{"$f":"Periodos!$C$3","v":"2017-01-01"},{"$f":"Periodos!$C$4","v":"2017-12-31"},{"$f":"'610000 - Est. Camb. Patrimonio'!$D$12","v":"ifrs-full:ComponentsOfEquityAxis"},{"$f":"'610000 - Est. Camb. Patrimonio'!$O$11","v":"ifrs-full:ReserveOfGainsAndLossesOnFinancialAssetsMeasuredAtFairValueThroughOtherComprehensiveIncomeMember"}]
["/*",null,{"$f":"'610000 - Est. Camb. Patrimonio'!$D$21","v":"Emisión de patrimonio"},{"$f":"'610000 - Est. Camb. Patrimonio'!$C$21","v":"ifrs-full:IssueOfEquity"}]
["/*",null,{"$f":"'610000 - Est. Camb. Patrimonio'!$D$22","v":"Dividendos reconocidos como distribuciones a los propietarios"},{"$f":"'610000 - Est. Camb. Patrimonio'!$C$22","v":"ifrs-full:DividendsPaid"}]
["/*",null,{"$f":"'610000 - Est. Camb. Patrimonio'!$D$23","v":"Incrementos por otras aportaciones de los propietarios, patrimonio"},{"$f":"'610000 - Est. Camb. Patrimonio'!$C$23","v":"ifrs-full:IncreaseDecreaseThroughOtherContributionsByOwners"}]
["/*",null,{"$f":"'610000 - Est. Camb. Patrimonio'!$D$24","v":"Disminución por otras distribuciones a los propietarios, patrimonio"},{"$f":"'610000 - Est. Camb. Patrimonio'!$C$24","v":"ifrs-full:IncreaseDecreaseThroughOtherDistributionsToOwners"}]
["/*",null,{"$f":"'610000 - Est. Camb. Patrimonio'!$D$25","v":"Incrementos (disminuciones) por otros cambios, patrimonio"},{"$f":"'610000 - Est. Camb. Patrimonio'!$C$25","v":"ifrs-full:IncreaseDecreaseThroughTransfersAndOtherChangesEquity"}]
["/*",null,{"$f":"'610000 - Est. Camb. Patrimonio'!$D$26","v":"Incrementos (disminuciones) por transacciones con acciones propias, patrimonio"},{"$f":"'610000 - Est. Camb. Patrimonio'!$C$26","v":"ifrs-full:IncreaseDecreaseThroughTreasuryShareTransactions"}]
["/*",null,{"$f":"'610000 - Est. Camb. Patrimonio'!$D$27","v":"Incrementos (disminuciones) por cambios las participaciones en la propiedad de subsidiarias que no dan lugar a pérdida de control, patrimonio"},{"$f":"'610000 - Est. Camb. Patrimonio'!$C$27","v":"ifrs-full:IncreaseDecreaseThroughChangesInOwnershipInterestsInSubsidiariesThatDoNotResultInLossOfControl"}]
["/*",null,{"$f":"'610000 - Est. Camb. Patrimonio'!$D$28","v":"Incrementos (disminuciones) por transacciones con pagos basados en acciones, patrimonio"},{"$f":"'610000 - Est. Camb. Patrimonio'!$C$28","v":"ifrs-full:IncreaseDecreaseThroughSharebasedPaymentTransactions"}]
["",null,{"$f":"'610000 - Est. Camb. Patrimonio'!$D$29","v":"Total incremento (disminución) en el patrimonio"},{"$f":"'610000 - Est. Camb. Patrimonio'!$C$29","v":"ifrs-full:ChangesInEquity"},0,"peso",{"$f":"'610000 - Est. Camb. Patrimonio'!$O$29","v":0},800001965,"http://www.xbrl.org/scheme/companyName",{"$f":"Periodos!$C$3","v":"2017-01-01"},{"$f":"Periodos!$C$4","v":"2017-12-31"},{"$f":"'610000 - Est. Camb. Patrimonio'!$D$12","v":"ifrs-full:ComponentsOfEquityAxis"},{"$f":"'610000 - Est. Camb. Patrimonio'!$O$11","v":"ifrs-full:ReserveOfGainsAndLossesOnFinancialAssetsMeasuredAtFairValueThroughOtherComprehensiveIncomeMember"}]
["",null,{"$f":"'610000 - Est. Camb. Patrimonio'!$D$30","v":"Patrimonio al final del periodo"},{"$f":"'610000 - Est. Camb. Patrimonio'!$C$30","v":"co-svsp-core_2017-12-31:EquityEndOfPeriod"},0,"peso",{"$f":"'610000 - Est. Camb. Patrimonio'!$O$30","v":0},800001965,"http://www.xbrl.org/scheme/companyName",{"$f":"Periodos!$C$3","v":"2017-01-01"},{"$f":"Periodos!$C$4","v":"2017-12-31"},{"$f":"'610000 - Est. Camb. Patrimonio'!$D$12","v":"ifrs-full:ComponentsOfEquityAxis"},{"$f":"'610000 - Est. Camb. Patrimonio'!$O$11","v":"ifrs-full:ReserveOfGainsAndLossesOnFinancialAssetsMeasuredAtFairValueThroughOtherComprehensiveIncomeMember"}]
["/*",null,"--12--"]
["/*",null,{"$f":"'610000 - Est. Camb. Patrimonio'!$D$13","v":"Estado de cambios en el patrimonio [resumen]"},{"$f":"'610000 - Est. Camb. Patrimonio'!$C$13","v":"ifrs-full:StatementOfChangesInEquityAbstract"}]
["/*",null,{"$f":"'610000 - Est. Camb. Patrimonio'!$D$14","v":"Estado de cambios en el patrimonio [partidas de los estados financieros]"},{"$f":"'610000 - Est. Camb. Patrimonio'!$C$14","v":"ifrs-full:StatementOfChangesInEquityLineItems"}]
["",null,{"$f":"'610000 - Est. Camb. Patrimonio'!$D$15","v":"Patrimonio al comienzo del periodo"},{"$f":"'610000 - Est. Camb. Patrimonio'!$C$15","v":"co-svsp-core_2017-12-31:EquityBeginningOfPeriod"},0,"peso",{"$f":"'610000 - Est. Camb. Patrimonio'!$P$15","v":0},800001965,"http://www.xbrl.org/scheme/companyName",{"$f":"Periodos!$C$3","v":"2017-01-01"},{"$f":"Periodos!$C$4","v":"2017-12-31"},{"$f":"'610000 - Est. Camb. Patrimonio'!$D$12","v":"ifrs-full:ComponentsOfEquityAxis"},{"$f":"'610000 - Est. Camb. Patrimonio'!$P$11","v":"ifrs-full:ReserveOfSharebasedPaymentsMember"}]
["/*",null,{"$f":"'610000 - Est. Camb. Patrimonio'!$D$16","v":"Cambios en el patrimonio [resumen]"},{"$f":"'610000 - Est. Camb. Patrimonio'!$C$16","v":"ifrs-full:ChangesInEquityAbstract"}]
["/*",null,{"$f":"'610000 - Est. Camb. Patrimonio'!$D$17","v":"Resultado integral [resumen]"},{"$f":"'610000 - Est. Camb. Patrimonio'!$C$17","v":"ifrs-full:ComprehensiveIncomeAbstract"}]
["/*",null,{"$f":"'610000 - Est. Camb. Patrimonio'!$D$18","v":"Ganancia (pérdida)"},{"$f":"'610000 - Est. Camb. Patrimonio'!$C$18","v":"co-svsp-core_2017-12-31:ProfitLoss"}]
["/*",null,{"$f":"'610000 - Est. Camb. Patrimonio'!$D$19","v":"Otro resultado integral"},{"$f":"'610000 - Est. Camb. Patrimonio'!$C$19","v":"co-svsp-core_2017-12-31:OtherComprehensiveIncome"}]
["",null,{"$f":"'610000 - Est. Camb. Patrimonio'!$D$20","v":"Resultado integral total"},{"$f":"'610000 - Est. Camb. Patrimonio'!$C$20","v":"co-svsp-core_2017-12-31:ComprehensiveIncome"},0,"peso",{"$f":"'610000 - Est. Camb. Patrimonio'!$P$20","v":0},800001965,"http://www.xbrl.org/scheme/companyName",{"$f":"Periodos!$C$3","v":"2017-01-01"},{"$f":"Periodos!$C$4","v":"2017-12-31"},{"$f":"'610000 - Est. Camb. Patrimonio'!$D$12","v":"ifrs-full:ComponentsOfEquityAxis"},{"$f":"'610000 - Est. Camb. Patrimonio'!$P$11","v":"ifrs-full:ReserveOfSharebasedPaymentsMember"}]
["/*",null,{"$f":"'610000 - Est. Camb. Patrimonio'!$D$21","v":"Emisión de patrimonio"},{"$f":"'610000 - Est. Camb. Patrimonio'!$C$21","v":"ifrs-full:IssueOfEquity"}]
["/*",null,{"$f":"'610000 - Est. Camb. Patrimonio'!$D$22","v":"Dividendos reconocidos como distribuciones a los propietarios"},{"$f":"'610000 - Est. Camb. Patrimonio'!$C$22","v":"ifrs-full:DividendsPaid"}]
["/*",null,{"$f":"'610000 - Est. Camb. Patrimonio'!$D$23","v":"Incrementos por otras aportaciones de los propietarios, patrimonio"},{"$f":"'610000 - Est. Camb. Patrimonio'!$C$23","v":"ifrs-full:IncreaseDecreaseThroughOtherContributionsByOwners"}]
["/*",null,{"$f":"'610000 - Est. Camb. Patrimonio'!$D$24","v":"Disminución por otras distribuciones a los propietarios, patrimonio"},{"$f":"'610000 - Est. Camb. Patrimonio'!$C$24","v":"ifrs-full:IncreaseDecreaseThroughOtherDistributionsToOwners"}]
["/*",null,{"$f":"'610000 - Est. Camb. Patrimonio'!$D$25","v":"Incrementos (disminuciones) por otros cambios, patrimonio"},{"$f":"'610000 - Est. Camb. Patrimonio'!$C$25","v":"ifrs-full:IncreaseDecreaseThroughTransfersAndOtherChangesEquity"}]
["/*",null,{"$f":"'610000 - Est. Camb. Patrimonio'!$D$26","v":"Incrementos (disminuciones) por transacciones con acciones propias, patrimonio"},{"$f":"'610000 - Est. Camb. Patrimonio'!$C$26","v":"ifrs-full:IncreaseDecreaseThroughTreasuryShareTransactions"}]
["/*",null,{"$f":"'610000 - Est. Camb. Patrimonio'!$D$27","v":"Incrementos (disminuciones) por cambios las participaciones en la propiedad de subsidiarias que no dan lugar a pérdida de control, patrimonio"},{"$f":"'610000 - Est. Camb. Patrimonio'!$C$27","v":"ifrs-full:IncreaseDecreaseThroughChangesInOwnershipInterestsInSubsidiariesThatDoNotResultInLossOfControl"}]
["/*",null,{"$f":"'610000 - Est. Camb. Patrimonio'!$D$28","v":"Incrementos (disminuciones) por transacciones con pagos basados en acciones, patrimonio"},{"$f":"'610000 - Est. Camb. Patrimonio'!$C$28","v":"ifrs-full:IncreaseDecreaseThroughSharebasedPaymentTransactions"}]
["",null,{"$f":"'610000 - Est. Camb. Patrimonio'!$D$29","v":"Total incremento (disminución) en el patrimonio"},{"$f":"'610000 - Est. Camb. Patrimonio'!$C$29","v":"ifrs-full:ChangesInEquity"},0,"peso",{"$f":"'610000 - Est. Camb. Patrimonio'!$P$29","v":0},800001965,"http://www.xbrl.org/scheme/companyName",{"$f":"Periodos!$C$3","v":"2017-01-01"},{"$f":"Periodos!$C$4","v":"2017-12-31"},{"$f":"'610000 - Est. Camb. Patrimonio'!$D$12","v":"ifrs-full:ComponentsOfEquityAxis"},{"$f":"'610000 - Est. Camb. Patrimonio'!$P$11","v":"ifrs-full:ReserveOfSharebasedPaymentsMember"}]
["",null,{"$f":"'610000 - Est. Camb. Patrimonio'!$D$30","v":"Patrimonio al final del periodo"},{"$f":"'610000 - Est. Camb. Patrimonio'!$C$30","v":"co-svsp-core_2017-12-31:EquityEndOfPeriod"},0,"peso",{"$f":"'610000 - Est. Camb. Patrimonio'!$P$30","v":0},800001965,"http://www.xbrl.org/scheme/companyName",{"$f":"Periodos!$C$3","v":"2017-01-01"},{"$f":"Periodos!$C$4","v":"2017-12-31"},{"$f":"'610000 - Est. Camb. Patrimonio'!$D$12","v":"ifrs-full:ComponentsOfEquityAxis"},{"$f":"'610000 - Est. Camb. Patrimonio'!$P$11","v":"ifrs-full:ReserveOfSharebasedPaymentsMember"}]
["/*",null,"--13--"]
["/*",null,{"$f":"'610000 - Est. Camb. Patrimonio'!$D$13","v":"Estado de cambios en el patrimonio [resumen]"},{"$f":"'610000 - Est. Camb. Patrimonio'!$C$13","v":"ifrs-full:StatementOfChangesInEquityAbstract"}]
["/*",null,{"$f":"'610000 - Est. Camb. Patrimonio'!$D$14","v":"Estado de cambios en el patrimonio [partidas de los estados financieros]"},{"$f":"'610000 - Est. Camb. Patrimonio'!$C$14","v":"ifrs-full:StatementOfChangesInEquityLineItems"}]
["",null,{"$f":"'610000 - Est. Camb. Patrimonio'!$D$15","v":"Patrimonio al comienzo del periodo"},{"$f":"'610000 - Est. Camb. Patrimonio'!$C$15","v":"co-svsp-core_2017-12-31:EquityBeginningOfPeriod"},0,"peso",{"$f":"'610000 - Est. Camb. Patrimonio'!$Q$15","v":0},800001965,"http://www.xbrl.org/scheme/companyName",{"$f":"Periodos!$C$3","v":"2017-01-01"},{"$f":"Periodos!$C$4","v":"2017-12-31"},{"$f":"'610000 - Est. Camb. Patrimonio'!$D$12","v":"ifrs-full:ComponentsOfEquityAxis"},{"$f":"'610000 - Est. Camb. Patrimonio'!$Q$11","v":"ifrs-full:ReserveOfChangeInValueOfForeignCurrencyBasisSpreadsMember"}]
["/*",null,{"$f":"'610000 - Est. Camb. Patrimonio'!$D$16","v":"Cambios en el patrimonio [resumen]"},{"$f":"'610000 - Est. Camb. Patrimonio'!$C$16","v":"ifrs-full:ChangesInEquityAbstract"}]
["/*",null,{"$f":"'610000 - Est. Camb. Patrimonio'!$D$17","v":"Resultado integral [resumen]"},{"$f":"'610000 - Est. Camb. Patrimonio'!$C$17","v":"ifrs-full:ComprehensiveIncomeAbstract"}]
["/*",null,{"$f":"'610000 - Est. Camb. Patrimonio'!$D$18","v":"Ganancia (pérdida)"},{"$f":"'610000 - Est. Camb. Patrimonio'!$C$18","v":"co-svsp-core_2017-12-31:ProfitLoss"}]
["/*",null,{"$f":"'610000 - Est. Camb. Patrimonio'!$D$19","v":"Otro resultado integral"},{"$f":"'610000 - Est. Camb. Patrimonio'!$C$19","v":"co-svsp-core_2017-12-31:OtherComprehensiveIncome"}]
["",null,{"$f":"'610000 - Est. Camb. Patrimonio'!$D$20","v":"Resultado integral total"},{"$f":"'610000 - Est. Camb. Patrimonio'!$C$20","v":"co-svsp-core_2017-12-31:ComprehensiveIncome"},0,"peso",{"$f":"'610000 - Est. Camb. Patrimonio'!$Q$20","v":0},800001965,"http://www.xbrl.org/scheme/companyName",{"$f":"Periodos!$C$3","v":"2017-01-01"},{"$f":"Periodos!$C$4","v":"2017-12-31"},{"$f":"'610000 - Est. Camb. Patrimonio'!$D$12","v":"ifrs-full:ComponentsOfEquityAxis"},{"$f":"'610000 - Est. Camb. Patrimonio'!$Q$11","v":"ifrs-full:ReserveOfChangeInValueOfForeignCurrencyBasisSpreadsMember"}]
["/*",null,{"$f":"'610000 - Est. Camb. Patrimonio'!$D$21","v":"Emisión de patrimonio"},{"$f":"'610000 - Est. Camb. Patrimonio'!$C$21","v":"ifrs-full:IssueOfEquity"}]
["/*",null,{"$f":"'610000 - Est. Camb. Patrimonio'!$D$22","v":"Dividendos reconocidos como distribuciones a los propietarios"},{"$f":"'610000 - Est. Camb. Patrimonio'!$C$22","v":"ifrs-full:DividendsPaid"}]
["/*",null,{"$f":"'610000 - Est. Camb. Patrimonio'!$D$23","v":"Incrementos por otras aportaciones de los propietarios, patrimonio"},{"$f":"'610000 - Est. Camb. Patrimonio'!$C$23","v":"ifrs-full:IncreaseDecreaseThroughOtherContributionsByOwners"}]
["/*",null,{"$f":"'610000 - Est. Camb. Patrimonio'!$D$24","v":"Disminución por otras distribuciones a los propietarios, patrimonio"},{"$f":"'610000 - Est. Camb. Patrimonio'!$C$24","v":"ifrs-full:IncreaseDecreaseThroughOtherDistributionsToOwners"}]
[{"$f":"IF(G801=\"\",\"/*\",\"\")","v":"/*"},null,{"$f":"'610000 - Est. Camb. Patrimonio'!$D$25","v":"Incrementos (disminuciones) por otros cambios, patrimonio"},{"$f":"'610000 - Est. Camb. Patrimonio'!$C$25","v":"ifrs-full:IncreaseDecreaseThroughTransfersAndOtherChangesEquity"}]
["/*",null,{"$f":"'610000 - Est. Camb. Patrimonio'!$D$26","v":"Incrementos (disminuciones) por transacciones con acciones propias, patrimonio"},{"$f":"'610000 - Est. Camb. Patrimonio'!$C$26","v":"ifrs-full:IncreaseDecreaseThroughTreasuryShareTransactions"}]
["/*",null,{"$f":"'610000 - Est. Camb. Patrimonio'!$D$27","v":"Incrementos (disminuciones) por cambios las participaciones en la propiedad de subsidiarias que no dan lugar a pérdida de control, patrimonio"},{"$f":"'610000 - Est. Camb. Patrimonio'!$C$27","v":"ifrs-full:IncreaseDecreaseThroughChangesInOwnershipInterestsInSubsidiariesThatDoNotResultInLossOfControl"}]
["/*",null,{"$f":"'610000 - Est. Camb. Patrimonio'!$D$28","v":"Incrementos (disminuciones) por transacciones con pagos basados en acciones, patrimonio"},{"$f":"'610000 - Est. Camb. Patrimonio'!$C$28","v":"ifrs-full:IncreaseDecreaseThroughSharebasedPaymentTransactions"}]
["",null,{"$f":"'610000 - Est. Camb. Patrimonio'!$D$29","v":"Total incremento (disminución) en el patrimonio"},{"$f":"'610000 - Est. Camb. Patrimonio'!$C$29","v":"ifrs-full:ChangesInEquity"},0,"peso",{"$f":"'610000 - Est. Camb. Patrimonio'!$Q$29","v":0},800001965,"http://www.xbrl.org/scheme/companyName",{"$f":"Periodos!$C$3","v":"2017-01-01"},{"$f":"Periodos!$C$4","v":"2017-12-31"},{"$f":"'610000 - Est. Camb. Patrimonio'!$D$12","v":"ifrs-full:ComponentsOfEquityAxis"},{"$f":"'610000 - Est. Camb. Patrimonio'!$Q$11","v":"ifrs-full:ReserveOfChangeInValueOfForeignCurrencyBasisSpreadsMember"}]
["",null,{"$f":"'610000 - Est. Camb. Patrimonio'!$D$30","v":"Patrimonio al final del periodo"},{"$f":"'610000 - Est. Camb. Patrimonio'!$C$30","v":"co-svsp-core_2017-12-31:EquityEndOfPeriod"},0,"peso",{"$f":"'610000 - Est. Camb. Patrimonio'!$Q$30","v":0},800001965,"http://www.xbrl.org/scheme/companyName",{"$f":"Periodos!$C$3","v":"2017-01-01"},{"$f":"Periodos!$C$4","v":"2017-12-31"},{"$f":"'610000 - Est. Camb. Patrimonio'!$D$12","v":"ifrs-full:ComponentsOfEquityAxis"},{"$f":"'610000 - Est. Camb. Patrimonio'!$Q$11","v":"ifrs-full:ReserveOfChangeInValueOfForeignCurrencyBasisSpreadsMember"}]
["/*",null,"--14--"]
["/*",null,{"$f":"'610000 - Est. Camb. Patrimonio'!$D$13","v":"Estado de cambios en el patrimonio [resumen]"},{"$f":"'610000 - Est. Camb. Patrimonio'!$C$13","v":"ifrs-full:StatementOfChangesInEquityAbstract"}]
["/*",null,{"$f":"'610000 - Est. Camb. Patrimonio'!$D$14","v":"Estado de cambios en el patrimonio [partidas de los estados financieros]"},{"$f":"'610000 - Est. Camb. Patrimonio'!$C$14","v":"ifrs-full:StatementOfChangesInEquityLineItems"}]
["",null,{"$f":"'610000 - Est. Camb. Patrimonio'!$D$15","v":"Patrimonio al comienzo del periodo"},{"$f":"'610000 - Est. Camb. Patrimonio'!$C$15","v":"co-svsp-core_2017-12-31:EquityBeginningOfPeriod"},0,"peso",{"$f":"'610000 - Est. Camb. Patrimonio'!$R$15","v":0},800001965,"http://www.xbrl.org/scheme/companyName",{"$f":"Periodos!$C$3","v":"2017-01-01"},{"$f":"Periodos!$C$4","v":"2017-12-31"},{"$f":"'610000 - Est. Camb. Patrimonio'!$D$12","v":"ifrs-full:ComponentsOfEquityAxis"},{"$f":"'610000 - Est. Camb. Patrimonio'!$R$11","v":"ifrs-full:ReserveOfRemeasurementsOfDefinedBenefitPlansMember"}]
["/*",null,{"$f":"'610000 - Est. Camb. Patrimonio'!$D$16","v":"Cambios en el patrimonio [resumen]"},{"$f":"'610000 - Est. Camb. Patrimonio'!$C$16","v":"ifrs-full:ChangesInEquityAbstract"}]
["/*",null,{"$f":"'610000 - Est. Camb. Patrimonio'!$D$17","v":"Resultado integral [resumen]"},{"$f":"'610000 - Est. Camb. Patrimonio'!$C$17","v":"ifrs-full:ComprehensiveIncomeAbstract"}]
["/*",null,{"$f":"'610000 - Est. Camb. Patrimonio'!$D$18","v":"Ganancia (pérdida)"},{"$f":"'610000 - Est. Camb. Patrimonio'!$C$18","v":"co-svsp-core_2017-12-31:ProfitLoss"}]
["/*",null,{"$f":"'610000 - Est. Camb. Patrimonio'!$D$19","v":"Otro resultado integral"},{"$f":"'610000 - Est. Camb. Patrimonio'!$C$19","v":"co-svsp-core_2017-12-31:OtherComprehensiveIncome"}]
["",null,{"$f":"'610000 - Est. Camb. Patrimonio'!$D$20","v":"Resultado integral total"},{"$f":"'610000 - Est. Camb. Patrimonio'!$C$20","v":"co-svsp-core_2017-12-31:ComprehensiveIncome"},0,"peso",{"$f":"'610000 - Est. Camb. Patrimonio'!$R$20","v":0},800001965,"http://www.xbrl.org/scheme/companyName",{"$f":"Periodos!$C$3","v":"2017-01-01"},{"$f":"Periodos!$C$4","v":"2017-12-31"},{"$f":"'610000 - Est. Camb. Patrimonio'!$D$12","v":"ifrs-full:ComponentsOfEquityAxis"},{"$f":"'610000 - Est. Camb. Patrimonio'!$R$11","v":"ifrs-full:ReserveOfRemeasurementsOfDefinedBenefitPlansMember"}]
["/*",null,{"$f":"'610000 - Est. Camb. Patrimonio'!$D$21","v":"Emisión de patrimonio"},{"$f":"'610000 - Est. Camb. Patrimonio'!$C$21","v":"ifrs-full:IssueOfEquity"}]
["/*",null,{"$f":"'610000 - Est. Camb. Patrimonio'!$D$22","v":"Dividendos reconocidos como distribuciones a los propietarios"},{"$f":"'610000 - Est. Camb. Patrimonio'!$C$22","v":"ifrs-full:DividendsPaid"}]
["/*",null,{"$f":"'610000 - Est. Camb. Patrimonio'!$D$23","v":"Incrementos por otras aportaciones de los propietarios, patrimonio"},{"$f":"'610000 - Est. Camb. Patrimonio'!$C$23","v":"ifrs-full:IncreaseDecreaseThroughOtherContributionsByOwners"}]
["/*",null,{"$f":"'610000 - Est. Camb. Patrimonio'!$D$24","v":"Disminución por otras distribuciones a los propietarios, patrimonio"},{"$f":"'610000 - Est. Camb. Patrimonio'!$C$24","v":"ifrs-full:IncreaseDecreaseThroughOtherDistributionsToOwners"}]
["/*",null,{"$f":"'610000 - Est. Camb. Patrimonio'!$D$25","v":"Incrementos (disminuciones) por otros cambios, patrimonio"},{"$f":"'610000 - Est. Camb. Patrimonio'!$C$25","v":"ifrs-full:IncreaseDecreaseThroughTransfersAndOtherChangesEquity"}]
["/*",null,{"$f":"'610000 - Est. Camb. Patrimonio'!$D$26","v":"Incrementos (disminuciones) por transacciones con acciones propias, patrimonio"},{"$f":"'610000 - Est. Camb. Patrimonio'!$C$26","v":"ifrs-full:IncreaseDecreaseThroughTreasuryShareTransactions"}]
["/*",null,{"$f":"'610000 - Est. Camb. Patrimonio'!$D$27","v":"Incrementos (disminuciones) por cambios las participaciones en la propiedad de subsidiarias que no dan lugar a pérdida de control, patrimonio"},{"$f":"'610000 - Est. Camb. Patrimonio'!$C$27","v":"ifrs-full:IncreaseDecreaseThroughChangesInOwnershipInterestsInSubsidiariesThatDoNotResultInLossOfControl"}]
["/*",null,{"$f":"'610000 - Est. Camb. Patrimonio'!$D$28","v":"Incrementos (disminuciones) por transacciones con pagos basados en acciones, patrimonio"},{"$f":"'610000 - Est. Camb. Patrimonio'!$C$28","v":"ifrs-full:IncreaseDecreaseThroughSharebasedPaymentTransactions"}]
["",null,{"$f":"'610000 - Est. Camb. Patrimonio'!$D$29","v":"Total incremento (disminución) en el patrimonio"},{"$f":"'610000 - Est. Camb. Patrimonio'!$C$29","v":"ifrs-full:ChangesInEquity"},0,"peso",{"$f":"'610000 - Est. Camb. Patrimonio'!$R$29","v":0},800001965,"http://www.xbrl.org/scheme/companyName",{"$f":"Periodos!$C$3","v":"2017-01-01"},{"$f":"Periodos!$C$4","v":"2017-12-31"},{"$f":"'610000 - Est. Camb. Patrimonio'!$D$12","v":"ifrs-full:ComponentsOfEquityAxis"},{"$f":"'610000 - Est. Camb. Patrimonio'!$R$11","v":"ifrs-full:ReserveOfRemeasurementsOfDefinedBenefitPlansMember"}]
["",null,{"$f":"'610000 - Est. Camb. Patrimonio'!$D$30","v":"Patrimonio al final del periodo"},{"$f":"'610000 - Est. Camb. Patrimonio'!$C$30","v":"co-svsp-core_2017-12-31:EquityEndOfPeriod"},0,"peso",{"$f":"'610000 - Est. Camb. Patrimonio'!$R$30","v":0},800001965,"http://www.xbrl.org/scheme/companyName",{"$f":"Periodos!$C$3","v":"2017-01-01"},{"$f":"Periodos!$C$4","v":"2017-12-31"},{"$f":"'610000 - Est. Camb. Patrimonio'!$D$12","v":"ifrs-full:ComponentsOfEquityAxis"},{"$f":"'610000 - Est. Camb. Patrimonio'!$R$11","v":"ifrs-full:ReserveOfRemeasurementsOfDefinedBenefitPlansMember"}]
["/*",null,"--15--"]
["/*",null,{"$f":"'610000 - Est. Camb. Patrimonio'!$D$13","v":"Estado de cambios en el patrimonio [resumen]"},{"$f":"'610000 - Est. Camb. Patrimonio'!$C$13","v":"ifrs-full:StatementOfChangesInEquityAbstract"}]
["/*",null,{"$f":"'610000 - Est. Camb. Patrimonio'!$D$14","v":"Estado de cambios en el patrimonio [partidas de los estados financieros]"},{"$f":"'610000 - Est. Camb. Patrimonio'!$C$14","v":"ifrs-full:StatementOfChangesInEquityLineItems"}]
["",null,{"$f":"'610000 - Est. Camb. Patrimonio'!$D$15","v":"Patrimonio al comienzo del periodo"},{"$f":"'610000 - Est. Camb. Patrimonio'!$C$15","v":"co-svsp-core_2017-12-31:EquityBeginningOfPeriod"},0,"peso",{"$f":"'610000 - Est. Camb. Patrimonio'!$S$15","v":0},800001965,"http://www.xbrl.org/scheme/companyName",{"$f":"Periodos!$C$3","v":"2017-01-01"},{"$f":"Periodos!$C$4","v":"2017-12-31"},{"$f":"'610000 - Est. Camb. Patrimonio'!$D$12","v":"ifrs-full:ComponentsOfEquityAxis"},{"$f":"'610000 - Est. Camb. Patrimonio'!$S$11","v":"ifrs-full:AmountRecognisedInOtherComprehensiveIncomeAndAccumulatedInEquityRelatingToNoncurrentAssetsOrDisposalGroupsHeldForSaleMember"}]
["/*",null,{"$f":"'610000 - Est. Camb. Patrimonio'!$D$16","v":"Cambios en el patrimonio [resumen]"},{"$f":"'610000 - Est. Camb. Patrimonio'!$C$16","v":"ifrs-full:ChangesInEquityAbstract"}]
["/*",null,{"$f":"'610000 - Est. Camb. Patrimonio'!$D$17","v":"Resultado integral [resumen]"},{"$f":"'610000 - Est. Camb. Patrimonio'!$C$17","v":"ifrs-full:ComprehensiveIncomeAbstract"}]
["/*",null,{"$f":"'610000 - Est. Camb. Patrimonio'!$D$18","v":"Ganancia (pérdida)"},{"$f":"'610000 - Est. Camb. Patrimonio'!$C$18","v":"co-svsp-core_2017-12-31:ProfitLoss"}]
["/*",null,{"$f":"'610000 - Est. Camb. Patrimonio'!$D$19","v":"Otro resultado integral"},{"$f":"'610000 - Est. Camb. Patrimonio'!$C$19","v":"co-svsp-core_2017-12-31:OtherComprehensiveIncome"}]
["",null,{"$f":"'610000 - Est. Camb. Patrimonio'!$D$20","v":"Resultado integral total"},{"$f":"'610000 - Est. Camb. Patrimonio'!$C$20","v":"co-svsp-core_2017-12-31:ComprehensiveIncome"},0,"peso",{"$f":"'610000 - Est. Camb. Patrimonio'!$S$20","v":0},800001965,"http://www.xbrl.org/scheme/companyName",{"$f":"Periodos!$C$3","v":"2017-01-01"},{"$f":"Periodos!$C$4","v":"2017-12-31"},{"$f":"'610000 - Est. Camb. Patrimonio'!$D$12","v":"ifrs-full:ComponentsOfEquityAxis"},{"$f":"'610000 - Est. Camb. Patrimonio'!$S$11","v":"ifrs-full:AmountRecognisedInOtherComprehensiveIncomeAndAccumulatedInEquityRelatingToNoncurrentAssetsOrDisposalGroupsHeldForSaleMember"}]
["/*",null,{"$f":"'610000 - Est. Camb. Patrimonio'!$D$21","v":"Emisión de patrimonio"},{"$f":"'610000 - Est. Camb. Patrimonio'!$C$21","v":"ifrs-full:IssueOfEquity"}]
["/*",null,{"$f":"'610000 - Est. Camb. Patrimonio'!$D$22","v":"Dividendos reconocidos como distribuciones a los propietarios"},{"$f":"'610000 - Est. Camb. Patrimonio'!$C$22","v":"ifrs-full:DividendsPaid"}]
["/*",null,{"$f":"'610000 - Est. Camb. Patrimonio'!$D$23","v":"Incrementos por otras aportaciones de los propietarios, patrimonio"},{"$f":"'610000 - Est. Camb. Patrimonio'!$C$23","v":"ifrs-full:IncreaseDecreaseThroughOtherContributionsByOwners"}]
["/*",null,{"$f":"'610000 - Est. Camb. Patrimonio'!$D$24","v":"Disminución por otras distribuciones a los propietarios, patrimonio"},{"$f":"'610000 - Est. Camb. Patrimonio'!$C$24","v":"ifrs-full:IncreaseDecreaseThroughOtherDistributionsToOwners"}]
["/*",null,{"$f":"'610000 - Est. Camb. Patrimonio'!$D$25","v":"Incrementos (disminuciones) por otros cambios, patrimonio"},{"$f":"'610000 - Est. Camb. Patrimonio'!$C$25","v":"ifrs-full:IncreaseDecreaseThroughTransfersAndOtherChangesEquity"}]
["/*",null,{"$f":"'610000 - Est. Camb. Patrimonio'!$D$26","v":"Incrementos (disminuciones) por transacciones con acciones propias, patrimonio"},{"$f":"'610000 - Est. Camb. Patrimonio'!$C$26","v":"ifrs-full:IncreaseDecreaseThroughTreasuryShareTransactions"}]
["/*",null,{"$f":"'610000 - Est. Camb. Patrimonio'!$D$27","v":"Incrementos (disminuciones) por cambios las participaciones en la propiedad de subsidiarias que no dan lugar a pérdida de control, patrimonio"},{"$f":"'610000 - Est. Camb. Patrimonio'!$C$27","v":"ifrs-full:IncreaseDecreaseThroughChangesInOwnershipInterestsInSubsidiariesThatDoNotResultInLossOfControl"}]
["/*",null,{"$f":"'610000 - Est. Camb. Patrimonio'!$D$28","v":"Incrementos (disminuciones) por transacciones con pagos basados en acciones, patrimonio"},{"$f":"'610000 - Est. Camb. Patrimonio'!$C$28","v":"ifrs-full:IncreaseDecreaseThroughSharebasedPaymentTransactions"}]
["",null,{"$f":"'610000 - Est. Camb. Patrimonio'!$D$29","v":"Total incremento (disminución) en el patrimonio"},{"$f":"'610000 - Est. Camb. Patrimonio'!$C$29","v":"ifrs-full:ChangesInEquity"},0,"peso",{"$f":"'610000 - Est. Camb. Patrimonio'!$S$29","v":0},800001965,"http://www.xbrl.org/scheme/companyName",{"$f":"Periodos!$C$3","v":"2017-01-01"},{"$f":"Periodos!$C$4","v":"2017-12-31"},{"$f":"'610000 - Est. Camb. Patrimonio'!$D$12","v":"ifrs-full:ComponentsOfEquityAxis"},{"$f":"'610000 - Est. Camb. Patrimonio'!$S$11","v":"ifrs-full:AmountRecognisedInOtherComprehensiveIncomeAndAccumulatedInEquityRelatingToNoncurrentAssetsOrDisposalGroupsHeldForSaleMember"}]
["",null,{"$f":"'610000 - Est. Camb. Patrimonio'!$D$30","v":"Patrimonio al final del periodo"},{"$f":"'610000 - Est. Camb. Patrimonio'!$C$30","v":"co-svsp-core_2017-12-31:EquityEndOfPeriod"},0,"peso",{"$f":"'610000 - Est. Camb. Patrimonio'!$S$30","v":0},800001965,"http://www.xbrl.org/scheme/companyName",{"$f":"Periodos!$C$3","v":"2017-01-01"},{"$f":"Periodos!$C$4","v":"2017-12-31"},{"$f":"'610000 - Est. Camb. Patrimonio'!$D$12","v":"ifrs-full:ComponentsOfEquityAxis"},{"$f":"'610000 - Est. Camb. Patrimonio'!$S$11","v":"ifrs-full:AmountRecognisedInOtherComprehensiveIncomeAndAccumulatedInEquityRelatingToNoncurrentAssetsOrDisposalGroupsHeldForSaleMember"}]
["/*",null,"--16--"]
["/*",null,{"$f":"'610000 - Est. Camb. Patrimonio'!$D$13","v":"Estado de cambios en el patrimonio [resumen]"},{"$f":"'610000 - Est. Camb. Patrimonio'!$C$13","v":"ifrs-full:StatementOfChangesInEquityAbstract"}]
["/*",null,{"$f":"'610000 - Est. Camb. Patrimonio'!$D$14","v":"Estado de cambios en el patrimonio [partidas de los estados financieros]"},{"$f":"'610000 - Est. Camb. Patrimonio'!$C$14","v":"ifrs-full:StatementOfChangesInEquityLineItems"}]
["",null,{"$f":"'610000 - Est. Camb. Patrimonio'!$D$15","v":"Patrimonio al comienzo del periodo"},{"$f":"'610000 - Est. Camb. Patrimonio'!$C$15","v":"co-svsp-core_2017-12-31:EquityBeginningOfPeriod"},0,"peso",{"$f":"'610000 - Est. Camb. Patrimonio'!$T$15","v":0},800001965,"http://www.xbrl.org/scheme/companyName",{"$f":"Periodos!$C$3","v":"2017-01-01"},{"$f":"Periodos!$C$4","v":"2017-12-31"},{"$f":"'610000 - Est. Camb. Patrimonio'!$D$12","v":"ifrs-full:ComponentsOfEquityAxis"},{"$f":"'610000 - Est. Camb. Patrimonio'!$T$11","v":"ifrs-full:ReserveOfGainsAndLossesFromInvestmentsInEquityInstrumentsMember"}]
["/*",null,{"$f":"'610000 - Est. Camb. Patrimonio'!$D$16","v":"Cambios en el patrimonio [resumen]"},{"$f":"'610000 - Est. Camb. Patrimonio'!$C$16","v":"ifrs-full:ChangesInEquityAbstract"}]
["/*",null,{"$f":"'610000 - Est. Camb. Patrimonio'!$D$17","v":"Resultado integral [resumen]"},{"$f":"'610000 - Est. Camb. Patrimonio'!$C$17","v":"ifrs-full:ComprehensiveIncomeAbstract"}]
["/*",null,{"$f":"'610000 - Est. Camb. Patrimonio'!$D$18","v":"Ganancia (pérdida)"},{"$f":"'610000 - Est. Camb. Patrimonio'!$C$18","v":"co-svsp-core_2017-12-31:ProfitLoss"}]
["/*",null,{"$f":"'610000 - Est. Camb. Patrimonio'!$D$19","v":"Otro resultado integral"},{"$f":"'610000 - Est. Camb. Patrimonio'!$C$19","v":"co-svsp-core_2017-12-31:OtherComprehensiveIncome"}]
["",null,{"$f":"'610000 - Est. Camb. Patrimonio'!$D$20","v":"Resultado integral total"},{"$f":"'610000 - Est. Camb. Patrimonio'!$C$20","v":"co-svsp-core_2017-12-31:ComprehensiveIncome"},0,"peso",{"$f":"'610000 - Est. Camb. Patrimonio'!$T$20","v":0},800001965,"http://www.xbrl.org/scheme/companyName",{"$f":"Periodos!$C$3","v":"2017-01-01"},{"$f":"Periodos!$C$4","v":"2017-12-31"},{"$f":"'610000 - Est. Camb. Patrimonio'!$D$12","v":"ifrs-full:ComponentsOfEquityAxis"},{"$f":"'610000 - Est. Camb. Patrimonio'!$T$11","v":"ifrs-full:ReserveOfGainsAndLossesFromInvestmentsInEquityInstrumentsMember"}]
["/*",null,{"$f":"'610000 - Est. Camb. Patrimonio'!$D$21","v":"Emisión de patrimonio"},{"$f":"'610000 - Est. Camb. Patrimonio'!$C$21","v":"ifrs-full:IssueOfEquity"}]
["/*",null,{"$f":"'610000 - Est. Camb. Patrimonio'!$D$22","v":"Dividendos reconocidos como distribuciones a los propietarios"},{"$f":"'610000 - Est. Camb. Patrimonio'!$C$22","v":"ifrs-full:DividendsPaid"}]
["/*",null,{"$f":"'610000 - Est. Camb. Patrimonio'!$D$23","v":"Incrementos por otras aportaciones de los propietarios, patrimonio"},{"$f":"'610000 - Est. Camb. Patrimonio'!$C$23","v":"ifrs-full:IncreaseDecreaseThroughOtherContributionsByOwners"}]
["/*",null,{"$f":"'610000 - Est. Camb. Patrimonio'!$D$24","v":"Disminución por otras distribuciones a los propietarios, patrimonio"},{"$f":"'610000 - Est. Camb. Patrimonio'!$C$24","v":"ifrs-full:IncreaseDecreaseThroughOtherDistributionsToOwners"}]
["/*",null,{"$f":"'610000 - Est. Camb. Patrimonio'!$D$25","v":"Incrementos (disminuciones) por otros cambios, patrimonio"},{"$f":"'610000 - Est. Camb. Patrimonio'!$C$25","v":"ifrs-full:IncreaseDecreaseThroughTransfersAndOtherChangesEquity"}]
["/*",null,{"$f":"'610000 - Est. Camb. Patrimonio'!$D$26","v":"Incrementos (disminuciones) por transacciones con acciones propias, patrimonio"},{"$f":"'610000 - Est. Camb. Patrimonio'!$C$26","v":"ifrs-full:IncreaseDecreaseThroughTreasuryShareTransactions"}]
["/*",null,{"$f":"'610000 - Est. Camb. Patrimonio'!$D$27","v":"Incrementos (disminuciones) por cambios las participaciones en la propiedad de subsidiarias que no dan lugar a pérdida de control, patrimonio"},{"$f":"'610000 - Est. Camb. Patrimonio'!$C$27","v":"ifrs-full:IncreaseDecreaseThroughChangesInOwnershipInterestsInSubsidiariesThatDoNotResultInLossOfControl"}]
["/*",null,{"$f":"'610000 - Est. Camb. Patrimonio'!$D$28","v":"Incrementos (disminuciones) por transacciones con pagos basados en acciones, patrimonio"},{"$f":"'610000 - Est. Camb. Patrimonio'!$C$28","v":"ifrs-full:IncreaseDecreaseThroughSharebasedPaymentTransactions"}]
["",null,{"$f":"'610000 - Est. Camb. Patrimonio'!$D$29","v":"Total incremento (disminución) en el patrimonio"},{"$f":"'610000 - Est. Camb. Patrimonio'!$C$29","v":"ifrs-full:ChangesInEquity"},0,"peso",{"$f":"'610000 - Est. Camb. Patrimonio'!$T$29","v":0},800001965,"http://www.xbrl.org/scheme/companyName",{"$f":"Periodos!$C$3","v":"2017-01-01"},{"$f":"Periodos!$C$4","v":"2017-12-31"},{"$f":"'610000 - Est. Camb. Patrimonio'!$D$12","v":"ifrs-full:ComponentsOfEquityAxis"},{"$f":"'610000 - Est. Camb. Patrimonio'!$T$11","v":"ifrs-full:ReserveOfGainsAndLossesFromInvestmentsInEquityInstrumentsMember"}]
["",null,{"$f":"'610000 - Est. Camb. Patrimonio'!$D$30","v":"Patrimonio al final del periodo"},{"$f":"'610000 - Est. Camb. Patrimonio'!$C$30","v":"co-svsp-core_2017-12-31:EquityEndOfPeriod"},0,"peso",{"$f":"'610000 - Est. Camb. Patrimonio'!$T$30","v":0},800001965,"http://www.xbrl.org/scheme/companyName",{"$f":"Periodos!$C$3","v":"2017-01-01"},{"$f":"Periodos!$C$4","v":"2017-12-31"},{"$f":"'610000 - Est. Camb. Patrimonio'!$D$12","v":"ifrs-full:ComponentsOfEquityAxis"},{"$f":"'610000 - Est. Camb. Patrimonio'!$T$11","v":"ifrs-full:ReserveOfGainsAndLossesFromInvestmentsInEquityInstrumentsMember"}]
["/*",null,"--17--"]
[{"$f":"IF(G865=\"\",\"/*\",\"\")","v":"/*"},null,{"$f":"'610000 - Est. Camb. Patrimonio'!$D$13","v":"Estado de cambios en el patrimonio [resumen]"},{"$f":"'610000 - Est. Camb. Patrimonio'!$C$13","v":"ifrs-full:StatementOfChangesInEquityAbstract"}]
["/*",null,{"$f":"'610000 - Est. Camb. Patrimonio'!$D$14","v":"Estado de cambios en el patrimonio [partidas de los estados financieros]"},{"$f":"'610000 - Est. Camb. Patrimonio'!$C$14","v":"ifrs-full:StatementOfChangesInEquityLineItems"}]
["",null,{"$f":"'610000 - Est. Camb. Patrimonio'!$D$15","v":"Patrimonio al comienzo del periodo"},{"$f":"'610000 - Est. Camb. Patrimonio'!$C$15","v":"co-svsp-core_2017-12-31:EquityBeginningOfPeriod"},0,"peso",{"$f":"'610000 - Est. Camb. Patrimonio'!$U$15","v":0},800001965,"http://www.xbrl.org/scheme/companyName",{"$f":"Periodos!$C$3","v":"2017-01-01"},{"$f":"Periodos!$C$4","v":"2017-12-31"},{"$f":"'610000 - Est. Camb. Patrimonio'!$D$12","v":"ifrs-full:ComponentsOfEquityAxis"},{"$f":"'610000 - Est. Camb. Patrimonio'!$U$11","v":"ifrs-full:ReserveOfChangeInFairValueOfFinancialLiabilityAttributableToChangeInCreditRiskOfLiabilityMember"}]
["/*",null,{"$f":"'610000 - Est. Camb. Patrimonio'!$D$16","v":"Cambios en el patrimonio [resumen]"},{"$f":"'610000 - Est. Camb. Patrimonio'!$C$16","v":"ifrs-full:ChangesInEquityAbstract"}]
["/*",null,{"$f":"'610000 - Est. Camb. Patrimonio'!$D$17","v":"Resultado integral [resumen]"},{"$f":"'610000 - Est. Camb. Patrimonio'!$C$17","v":"ifrs-full:ComprehensiveIncomeAbstract"}]
["/*",null,{"$f":"'610000 - Est. Camb. Patrimonio'!$D$18","v":"Ganancia (pérdida)"},{"$f":"'610000 - Est. Camb. Patrimonio'!$C$18","v":"co-svsp-core_2017-12-31:ProfitLoss"}]
["/*",null,{"$f":"'610000 - Est. Camb. Patrimonio'!$D$19","v":"Otro resultado integral"},{"$f":"'610000 - Est. Camb. Patrimonio'!$C$19","v":"co-svsp-core_2017-12-31:OtherComprehensiveIncome"}]
["",null,{"$f":"'610000 - Est. Camb. Patrimonio'!$D$20","v":"Resultado integral total"},{"$f":"'610000 - Est. Camb. Patrimonio'!$C$20","v":"co-svsp-core_2017-12-31:ComprehensiveIncome"},0,"peso",{"$f":"'610000 - Est. Camb. Patrimonio'!$U$20","v":0},800001965,"http://www.xbrl.org/scheme/companyName",{"$f":"Periodos!$C$3","v":"2017-01-01"},{"$f":"Periodos!$C$4","v":"2017-12-31"},{"$f":"'610000 - Est. Camb. Patrimonio'!$D$12","v":"ifrs-full:ComponentsOfEquityAxis"},{"$f":"'610000 - Est. Camb. Patrimonio'!$U$11","v":"ifrs-full:ReserveOfChangeInFairValueOfFinancialLiabilityAttributableToChangeInCreditRiskOfLiabilityMember"}]
["/*",null,{"$f":"'610000 - Est. Camb. Patrimonio'!$D$21","v":"Emisión de patrimonio"},{"$f":"'610000 - Est. Camb. Patrimonio'!$C$21","v":"ifrs-full:IssueOfEquity"}]
["/*",null,{"$f":"'610000 - Est. Camb. Patrimonio'!$D$22","v":"Dividendos reconocidos como distribuciones a los propietarios"},{"$f":"'610000 - Est. Camb. Patrimonio'!$C$22","v":"ifrs-full:DividendsPaid"}]
["/*",null,{"$f":"'610000 - Est. Camb. Patrimonio'!$D$23","v":"Incrementos por otras aportaciones de los propietarios, patrimonio"},{"$f":"'610000 - Est. Camb. Patrimonio'!$C$23","v":"ifrs-full:IncreaseDecreaseThroughOtherContributionsByOwners"}]
["/*",null,{"$f":"'610000 - Est. Camb. Patrimonio'!$D$24","v":"Disminución por otras distribuciones a los propietarios, patrimonio"},{"$f":"'610000 - Est. Camb. Patrimonio'!$C$24","v":"ifrs-full:IncreaseDecreaseThroughOtherDistributionsToOwners"}]
["/*",null,{"$f":"'610000 - Est. Camb. Patrimonio'!$D$25","v":"Incrementos (disminuciones) por otros cambios, patrimonio"},{"$f":"'610000 - Est. Camb. Patrimonio'!$C$25","v":"ifrs-full:IncreaseDecreaseThroughTransfersAndOtherChangesEquity"}]
["/*",null,{"$f":"'610000 - Est. Camb. Patrimonio'!$D$26","v":"Incrementos (disminuciones) por transacciones con acciones propias, patrimonio"},{"$f":"'610000 - Est. Camb. Patrimonio'!$C$26","v":"ifrs-full:IncreaseDecreaseThroughTreasuryShareTransactions"}]
["/*",null,{"$f":"'610000 - Est. Camb. Patrimonio'!$D$27","v":"Incrementos (disminuciones) por cambios las participaciones en la propiedad de subsidiarias que no dan lugar a pérdida de control, patrimonio"},{"$f":"'610000 - Est. Camb. Patrimonio'!$C$27","v":"ifrs-full:IncreaseDecreaseThroughChangesInOwnershipInterestsInSubsidiariesThatDoNotResultInLossOfControl"}]
["/*",null,{"$f":"'610000 - Est. Camb. Patrimonio'!$D$28","v":"Incrementos (disminuciones) por transacciones con pagos basados en acciones, patrimonio"},{"$f":"'610000 - Est. Camb. Patrimonio'!$C$28","v":"ifrs-full:IncreaseDecreaseThroughSharebasedPaymentTransactions"}]
["",null,{"$f":"'610000 - Est. Camb. Patrimonio'!$D$29","v":"Total incremento (disminución) en el patrimonio"},{"$f":"'610000 - Est. Camb. Patrimonio'!$C$29","v":"ifrs-full:ChangesInEquity"},0,"peso",{"$f":"'610000 - Est. Camb. Patrimonio'!$U$29","v":0},800001965,"http://www.xbrl.org/scheme/companyName",{"$f":"Periodos!$C$3","v":"2017-01-01"},{"$f":"Periodos!$C$4","v":"2017-12-31"},{"$f":"'610000 - Est. Camb. Patrimonio'!$D$12","v":"ifrs-full:ComponentsOfEquityAxis"},{"$f":"'610000 - Est. Camb. Patrimonio'!$U$11","v":"ifrs-full:ReserveOfChangeInFairValueOfFinancialLiabilityAttributableToChangeInCreditRiskOfLiabilityMember"}]
["",null,{"$f":"'610000 - Est. Camb. Patrimonio'!$D$30","v":"Patrimonio al final del periodo"},{"$f":"'610000 - Est. Camb. Patrimonio'!$C$30","v":"co-svsp-core_2017-12-31:EquityEndOfPeriod"},0,"peso",{"$f":"'610000 - Est. Camb. Patrimonio'!$U$30","v":0},800001965,"http://www.xbrl.org/scheme/companyName",{"$f":"Periodos!$C$3","v":"2017-01-01"},{"$f":"Periodos!$C$4","v":"2017-12-31"},{"$f":"'610000 - Est. Camb. Patrimonio'!$D$12","v":"ifrs-full:ComponentsOfEquityAxis"},{"$f":"'610000 - Est. Camb. Patrimonio'!$U$11","v":"ifrs-full:ReserveOfChangeInFairValueOfFinancialLiabilityAttributableToChangeInCreditRiskOfLiabilityMember"}]
["/*",null,"--18--"]
["/*",null,{"$f":"'610000 - Est. Camb. Patrimonio'!$D$13","v":"Estado de cambios en el patrimonio [resumen]"},{"$f":"'610000 - Est. Camb. Patrimonio'!$C$13","v":"ifrs-full:StatementOfChangesInEquityAbstract"}]
["/*",null,{"$f":"'610000 - Est. Camb. Patrimonio'!$D$14","v":"Estado de cambios en el patrimonio [partidas de los estados financieros]"},{"$f":"'610000 - Est. Camb. Patrimonio'!$C$14","v":"ifrs-full:StatementOfChangesInEquityLineItems"}]
["",null,{"$f":"'610000 - Est. Camb. Patrimonio'!$D$15","v":"Patrimonio al comienzo del periodo"},{"$f":"'610000 - Est. Camb. Patrimonio'!$C$15","v":"co-svsp-core_2017-12-31:EquityBeginningOfPeriod"},0,"peso",{"$f":"'610000 - Est. Camb. Patrimonio'!$V$15","v":0},800001965,"http://www.xbrl.org/scheme/companyName",{"$f":"Periodos!$C$3","v":"2017-01-01"},{"$f":"Periodos!$C$4","v":"2017-12-31"},{"$f":"'610000 - Est. Camb. Patrimonio'!$D$12","v":"ifrs-full:ComponentsOfEquityAxis"},{"$f":"'610000 - Est. Camb. Patrimonio'!$V$11","v":"ifrs-full:OtherReservesMember"}]
["/*",null,{"$f":"'610000 - Est. Camb. Patrimonio'!$D$16","v":"Cambios en el patrimonio [resumen]"},{"$f":"'610000 - Est. Camb. Patrimonio'!$C$16","v":"ifrs-full:ChangesInEquityAbstract"}]
["/*",null,{"$f":"'610000 - Est. Camb. Patrimonio'!$D$17","v":"Resultado integral [resumen]"},{"$f":"'610000 - Est. Camb. Patrimonio'!$C$17","v":"ifrs-full:ComprehensiveIncomeAbstract"}]
["",null,{"$f":"'610000 - Est. Camb. Patrimonio'!$D$18","v":"Ganancia (pérdida)"},{"$f":"'610000 - Est. Camb. Patrimonio'!$C$18","v":"co-svsp-core_2017-12-31:ProfitLoss"},0,"peso",{"$f":"'610000 - Est. Camb. Patrimonio'!$V$18","v":0},800001965,"http://www.xbrl.org/scheme/companyName",{"$f":"Periodos!$C$3","v":"2017-01-01"},{"$f":"Periodos!$C$4","v":"2017-12-31"},{"$f":"'610000 - Est. Camb. Patrimonio'!$D$12","v":"ifrs-full:ComponentsOfEquityAxis"},{"$f":"'610000 - Est. Camb. Patrimonio'!$V$11","v":"ifrs-full:OtherReservesMember"}]
["",null,{"$f":"'610000 - Est. Camb. Patrimonio'!$D$19","v":"Otro resultado integral"},{"$f":"'610000 - Est. Camb. Patrimonio'!$C$19","v":"co-svsp-core_2017-12-31:OtherComprehensiveIncome"},0,"peso",{"$f":"'610000 - Est. Camb. Patrimonio'!$V$19","v":0},800001965,"http://www.xbrl.org/scheme/companyName",{"$f":"Periodos!$C$3","v":"2017-01-01"},{"$f":"Periodos!$C$4","v":"2017-12-31"},{"$f":"'610000 - Est. Camb. Patrimonio'!$D$12","v":"ifrs-full:ComponentsOfEquityAxis"},{"$f":"'610000 - Est. Camb. Patrimonio'!$V$11","v":"ifrs-full:OtherReservesMember"}]
["",null,{"$f":"'610000 - Est. Camb. Patrimonio'!$D$20","v":"Resultado integral total"},{"$f":"'610000 - Est. Camb. Patrimonio'!$C$20","v":"co-svsp-core_2017-12-31:ComprehensiveIncome"},0,"peso",{"$f":"'610000 - Est. Camb. Patrimonio'!$V$20","v":0},800001965,"http://www.xbrl.org/scheme/companyName",{"$f":"Periodos!$C$3","v":"2017-01-01"},{"$f":"Periodos!$C$4","v":"2017-12-31"},{"$f":"'610000 - Est. Camb. Patrimonio'!$D$12","v":"ifrs-full:ComponentsOfEquityAxis"},{"$f":"'610000 - Est. Camb. Patrimonio'!$V$11","v":"ifrs-full:OtherReservesMember"}]
["",null,{"$f":"'610000 - Est. Camb. Patrimonio'!$D$21","v":"Emisión de patrimonio"},{"$f":"'610000 - Est. Camb. Patrimonio'!$C$21","v":"ifrs-full:IssueOfEquity"},0,"peso",{"$f":"'610000 - Est. Camb. Patrimonio'!$V$21","v":0},800001965,"http://www.xbrl.org/scheme/companyName",{"$f":"Periodos!$C$3","v":"2017-01-01"},{"$f":"Periodos!$C$4","v":"2017-12-31"},{"$f":"'610000 - Est. Camb. Patrimonio'!$D$12","v":"ifrs-full:ComponentsOfEquityAxis"},{"$f":"'610000 - Est. Camb. Patrimonio'!$V$11","v":"ifrs-full:OtherReservesMember"}]
["",null,{"$f":"'610000 - Est. Camb. Patrimonio'!$D$22","v":"Dividendos reconocidos como distribuciones a los propietarios"},{"$f":"'610000 - Est. Camb. Patrimonio'!$C$22","v":"ifrs-full:DividendsPaid"},0,"peso",{"$f":"'610000 - Est. Camb. Patrimonio'!$V$22","v":0},800001965,"http://www.xbrl.org/scheme/companyName",{"$f":"Periodos!$C$3","v":"2017-01-01"},{"$f":"Periodos!$C$4","v":"2017-12-31"},{"$f":"'610000 - Est. Camb. Patrimonio'!$D$12","v":"ifrs-full:ComponentsOfEquityAxis"},{"$f":"'610000 - Est. Camb. Patrimonio'!$V$11","v":"ifrs-full:OtherReservesMember"}]
["",null,{"$f":"'610000 - Est. Camb. Patrimonio'!$D$23","v":"Incrementos por otras aportaciones de los propietarios, patrimonio"},{"$f":"'610000 - Est. Camb. Patrimonio'!$C$23","v":"ifrs-full:IncreaseDecreaseThroughOtherContributionsByOwners"},0,"peso",{"$f":"'610000 - Est. Camb. Patrimonio'!$V$23","v":0},800001965,"http://www.xbrl.org/scheme/companyName",{"$f":"Periodos!$C$3","v":"2017-01-01"},{"$f":"Periodos!$C$4","v":"2017-12-31"},{"$f":"'610000 - Est. Camb. Patrimonio'!$D$12","v":"ifrs-full:ComponentsOfEquityAxis"},{"$f":"'610000 - Est. Camb. Patrimonio'!$V$11","v":"ifrs-full:OtherReservesMember"}]
["",null,{"$f":"'610000 - Est. Camb. Patrimonio'!$D$24","v":"Disminución por otras distribuciones a los propietarios, patrimonio"},{"$f":"'610000 - Est. Camb. Patrimonio'!$C$24","v":"ifrs-full:IncreaseDecreaseThroughOtherDistributionsToOwners"},0,"peso",{"$f":"'610000 - Est. Camb. Patrimonio'!$V$24","v":0},800001965,"http://www.xbrl.org/scheme/companyName",{"$f":"Periodos!$C$3","v":"2017-01-01"},{"$f":"Periodos!$C$4","v":"2017-12-31"},{"$f":"'610000 - Est. Camb. Patrimonio'!$D$12","v":"ifrs-full:ComponentsOfEquityAxis"},{"$f":"'610000 - Est. Camb. Patrimonio'!$V$11","v":"ifrs-full:OtherReservesMember"}]
["",null,{"$f":"'610000 - Est. Camb. Patrimonio'!$D$25","v":"Incrementos (disminuciones) por otros cambios, patrimonio"},{"$f":"'610000 - Est. Camb. Patrimonio'!$C$25","v":"ifrs-full:IncreaseDecreaseThroughTransfersAndOtherChangesEquity"},0,"peso",{"$f":"'610000 - Est. Camb. Patrimonio'!$V$25","v":0},800001965,"http://www.xbrl.org/scheme/companyName",{"$f":"Periodos!$C$3","v":"2017-01-01"},{"$f":"Periodos!$C$4","v":"2017-12-31"},{"$f":"'610000 - Est. Camb. Patrimonio'!$D$12","v":"ifrs-full:ComponentsOfEquityAxis"},{"$f":"'610000 - Est. Camb. Patrimonio'!$V$11","v":"ifrs-full:OtherReservesMember"}]
["",null,{"$f":"'610000 - Est. Camb. Patrimonio'!$D$26","v":"Incrementos (disminuciones) por transacciones con acciones propias, patrimonio"},{"$f":"'610000 - Est. Camb. Patrimonio'!$C$26","v":"ifrs-full:IncreaseDecreaseThroughTreasuryShareTransactions"},0,"peso",{"$f":"'610000 - Est. Camb. Patrimonio'!$V$26","v":0},800001965,"http://www.xbrl.org/scheme/companyName",{"$f":"Periodos!$C$3","v":"2017-01-01"},{"$f":"Periodos!$C$4","v":"2017-12-31"},{"$f":"'610000 - Est. Camb. Patrimonio'!$D$12","v":"ifrs-full:ComponentsOfEquityAxis"},{"$f":"'610000 - Est. Camb. Patrimonio'!$V$11","v":"ifrs-full:OtherReservesMember"}]
["",null,{"$f":"'610000 - Est. Camb. Patrimonio'!$D$27","v":"Incrementos (disminuciones) por cambios las participaciones en la propiedad de subsidiarias que no dan lugar a pérdida de control, patrimonio"},{"$f":"'610000 - Est. Camb. Patrimonio'!$C$27","v":"ifrs-full:IncreaseDecreaseThroughChangesInOwnershipInterestsInSubsidiariesThatDoNotResultInLossOfControl"},0,"peso",{"$f":"'610000 - Est. Camb. Patrimonio'!$V$27","v":0},800001965,"http://www.xbrl.org/scheme/companyName",{"$f":"Periodos!$C$3","v":"2017-01-01"},{"$f":"Periodos!$C$4","v":"2017-12-31"},{"$f":"'610000 - Est. Camb. Patrimonio'!$D$12","v":"ifrs-full:ComponentsOfEquityAxis"},{"$f":"'610000 - Est. Camb. Patrimonio'!$V$11","v":"ifrs-full:OtherReservesMember"}]
["",null,{"$f":"'610000 - Est. Camb. Patrimonio'!$D$28","v":"Incrementos (disminuciones) por transacciones con pagos basados en acciones, patrimonio"},{"$f":"'610000 - Est. Camb. Patrimonio'!$C$28","v":"ifrs-full:IncreaseDecreaseThroughSharebasedPaymentTransactions"},0,"peso",{"$f":"'610000 - Est. Camb. Patrimonio'!$V$28","v":0},800001965,"http://www.xbrl.org/scheme/companyName",{"$f":"Periodos!$C$3","v":"2017-01-01"},{"$f":"Periodos!$C$4","v":"2017-12-31"},{"$f":"'610000 - Est. Camb. Patrimonio'!$D$12","v":"ifrs-full:ComponentsOfEquityAxis"},{"$f":"'610000 - Est. Camb. Patrimonio'!$V$11","v":"ifrs-full:OtherReservesMember"}]
["",null,{"$f":"'610000 - Est. Camb. Patrimonio'!$D$29","v":"Total incremento (disminución) en el patrimonio"},{"$f":"'610000 - Est. Camb. Patrimonio'!$C$29","v":"ifrs-full:ChangesInEquity"},0,"peso",{"$f":"'610000 - Est. Camb. Patrimonio'!$V$29","v":0},800001965,"http://www.xbrl.org/scheme/companyName",{"$f":"Periodos!$C$3","v":"2017-01-01"},{"$f":"Periodos!$C$4","v":"2017-12-31"},{"$f":"'610000 - Est. Camb. Patrimonio'!$D$12","v":"ifrs-full:ComponentsOfEquityAxis"},{"$f":"'610000 - Est. Camb. Patrimonio'!$V$11","v":"ifrs-full:OtherReservesMember"}]
["",null,{"$f":"'610000 - Est. Camb. Patrimonio'!$D$30","v":"Patrimonio al final del periodo"},{"$f":"'610000 - Est. Camb. Patrimonio'!$C$30","v":"co-svsp-core_2017-12-31:EquityEndOfPeriod"},0,"peso",{"$f":"'610000 - Est. Camb. Patrimonio'!$V$30","v":0},800001965,"http://www.xbrl.org/scheme/companyName",{"$f":"Periodos!$C$3","v":"2017-01-01"},{"$f":"Periodos!$C$4","v":"2017-12-31"},{"$f":"'610000 - Est. Camb. Patrimonio'!$D$12","v":"ifrs-full:ComponentsOfEquityAxis"},{"$f":"'610000 - Est. Camb. Patrimonio'!$V$11","v":"ifrs-full:OtherReservesMember"}]
["/*",null,"--19--"]
["/*",null,{"$f":"'610000 - Est. Camb. Patrimonio'!$D$13","v":"Estado de cambios en el patrimonio [resumen]"},{"$f":"'610000 - Est. Camb. Patrimonio'!$C$13","v":"ifrs-full:StatementOfChangesInEquityAbstract"}]
["/*",null,{"$f":"'610000 - Est. Camb. Patrimonio'!$D$14","v":"Estado de cambios en el patrimonio [partidas de los estados financieros]"},{"$f":"'610000 - Est. Camb. Patrimonio'!$C$14","v":"ifrs-full:StatementOfChangesInEquityLineItems"}]
["",null,{"$f":"'610000 - Est. Camb. Patrimonio'!$D$15","v":"Patrimonio al comienzo del periodo"},{"$f":"'610000 - Est. Camb. Patrimonio'!$C$15","v":"co-svsp-core_2017-12-31:EquityBeginningOfPeriod"},0,"peso",{"$f":"'610000 - Est. Camb. Patrimonio'!$W$15","v":0},800001965,"http://www.xbrl.org/scheme/companyName",{"$f":"Periodos!$C$3","v":"2017-01-01"},{"$f":"Periodos!$C$4","v":"2017-12-31"},{"$f":"'610000 - Est. Camb. Patrimonio'!$D$12","v":"ifrs-full:ComponentsOfEquityAxis"},{"$f":"'610000 - Est. Camb. Patrimonio'!$W$11","v":"ifrs-full:RetainedEarningsMember"}]
["/*",null,{"$f":"'610000 - Est. Camb. Patrimonio'!$D$16","v":"Cambios en el patrimonio [resumen]"},{"$f":"'610000 - Est. Camb. Patrimonio'!$C$16","v":"ifrs-full:ChangesInEquityAbstract"}]
["/*",null,{"$f":"'610000 - Est. Camb. Patrimonio'!$D$17","v":"Resultado integral [resumen]"},{"$f":"'610000 - Est. Camb. Patrimonio'!$C$17","v":"ifrs-full:ComprehensiveIncomeAbstract"}]
["/*",null,{"$f":"'610000 - Est. Camb. Patrimonio'!$D$18","v":"Ganancia (pérdida)"},{"$f":"'610000 - Est. Camb. Patrimonio'!$C$18","v":"co-svsp-core_2017-12-31:ProfitLoss"}]
["/*",null,{"$f":"'610000 - Est. Camb. Patrimonio'!$D$19","v":"Otro resultado integral"},{"$f":"'610000 - Est. Camb. Patrimonio'!$C$19","v":"co-svsp-core_2017-12-31:OtherComprehensiveIncome"}]
["",null,{"$f":"'610000 - Est. Camb. Patrimonio'!$D$20","v":"Resultado integral total"},{"$f":"'610000 - Est. Camb. Patrimonio'!$C$20","v":"co-svsp-core_2017-12-31:ComprehensiveIncome"},0,"peso",{"$f":"'610000 - Est. Camb. Patrimonio'!$W$20","v":0},800001965,"http://www.xbrl.org/scheme/companyName",{"$f":"Periodos!$C$3","v":"2017-01-01"},{"$f":"Periodos!$C$4","v":"2017-12-31"},{"$f":"'610000 - Est. Camb. Patrimonio'!$D$12","v":"ifrs-full:ComponentsOfEquityAxis"},{"$f":"'610000 - Est. Camb. Patrimonio'!$W$11","v":"ifrs-full:RetainedEarningsMember"}]
["/*",null,{"$f":"'610000 - Est. Camb. Patrimonio'!$D$21","v":"Emisión de patrimonio"},{"$f":"'610000 - Est. Camb. Patrimonio'!$C$21","v":"ifrs-full:IssueOfEquity"}]
["/*",null,{"$f":"'610000 - Est. Camb. Patrimonio'!$D$22","v":"Dividendos reconocidos como distribuciones a los propietarios"},{"$f":"'610000 - Est. Camb. Patrimonio'!$C$22","v":"ifrs-full:DividendsPaid"}]
["/*",null,{"$f":"'610000 - Est. Camb. Patrimonio'!$D$23","v":"Incrementos por otras aportaciones de los propietarios, patrimonio"},{"$f":"'610000 - Est. Camb. Patrimonio'!$C$23","v":"ifrs-full:IncreaseDecreaseThroughOtherContributionsByOwners"}]
["/*",null,{"$f":"'610000 - Est. Camb. Patrimonio'!$D$24","v":"Disminución por otras distribuciones a los propietarios, patrimonio"},{"$f":"'610000 - Est. Camb. Patrimonio'!$C$24","v":"ifrs-full:IncreaseDecreaseThroughOtherDistributionsToOwners"}]
["/*",null,{"$f":"'610000 - Est. Camb. Patrimonio'!$D$25","v":"Incrementos (disminuciones) por otros cambios, patrimonio"},{"$f":"'610000 - Est. Camb. Patrimonio'!$C$25","v":"ifrs-full:IncreaseDecreaseThroughTransfersAndOtherChangesEquity"}]
["/*",null,{"$f":"'610000 - Est. Camb. Patrimonio'!$D$26","v":"Incrementos (disminuciones) por transacciones con acciones propias, patrimonio"},{"$f":"'610000 - Est. Camb. Patrimonio'!$C$26","v":"ifrs-full:IncreaseDecreaseThroughTreasuryShareTransactions"}]
["/*",null,{"$f":"'610000 - Est. Camb. Patrimonio'!$D$27","v":"Incrementos (disminuciones) por cambios las participaciones en la propiedad de subsidiarias que no dan lugar a pérdida de control, patrimonio"},{"$f":"'610000 - Est. Camb. Patrimonio'!$C$27","v":"ifrs-full:IncreaseDecreaseThroughChangesInOwnershipInterestsInSubsidiariesThatDoNotResultInLossOfControl"}]
["/*",null,{"$f":"'610000 - Est. Camb. Patrimonio'!$D$28","v":"Incrementos (disminuciones) por transacciones con pagos basados en acciones, patrimonio"},{"$f":"'610000 - Est. Camb. Patrimonio'!$C$28","v":"ifrs-full:IncreaseDecreaseThroughSharebasedPaymentTransactions"}]
["",null,{"$f":"'610000 - Est. Camb. Patrimonio'!$D$29","v":"Total incremento (disminución) en el patrimonio"},{"$f":"'610000 - Est. Camb. Patrimonio'!$C$29","v":"ifrs-full:ChangesInEquity"},0,"peso",{"$f":"'610000 - Est. Camb. Patrimonio'!$W$29","v":0},800001965,"http://www.xbrl.org/scheme/companyName",{"$f":"Periodos!$C$3","v":"2017-01-01"},{"$f":"Periodos!$C$4","v":"2017-12-31"},{"$f":"'610000 - Est. Camb. Patrimonio'!$D$12","v":"ifrs-full:ComponentsOfEquityAxis"},{"$f":"'610000 - Est. Camb. Patrimonio'!$W$11","v":"ifrs-full:RetainedEarningsMember"}]
["",null,{"$f":"'610000 - Est. Camb. Patrimonio'!$D$30","v":"Patrimonio al final del periodo"},{"$f":"'610000 - Est. Camb. Patrimonio'!$C$30","v":"co-svsp-core_2017-12-31:EquityEndOfPeriod"},0,"peso",{"$f":"'610000 - Est. Camb. Patrimonio'!$W$30","v":0},800001965,"http://www.xbrl.org/scheme/companyName",{"$f":"Periodos!$C$3","v":"2017-01-01"},{"$f":"Periodos!$C$4","v":"2017-12-31"},{"$f":"'610000 - Est. Camb. Patrimonio'!$D$12","v":"ifrs-full:ComponentsOfEquityAxis"},{"$f":"'610000 - Est. Camb. Patrimonio'!$W$11","v":"ifrs-full:RetainedEarningsMember"}]
["/*",null,"--20--"]
["/*",null,{"$f":"'610000 - Est. Camb. Patrimonio'!$D$13","v":"Estado de cambios en el patrimonio [resumen]"},{"$f":"'610000 - Est. Camb. Patrimonio'!$C$13","v":"ifrs-full:StatementOfChangesInEquityAbstract"}]
["/*",null,{"$f":"'610000 - Est. Camb. Patrimonio'!$D$14","v":"Estado de cambios en el patrimonio [partidas de los estados financieros]"},{"$f":"'610000 - Est. Camb. Patrimonio'!$C$14","v":"ifrs-full:StatementOfChangesInEquityLineItems"}]
["",null,{"$f":"'610000 - Est. Camb. Patrimonio'!$D$15","v":"Patrimonio al comienzo del periodo"},{"$f":"'610000 - Est. Camb. Patrimonio'!$C$15","v":"co-svsp-core_2017-12-31:EquityBeginningOfPeriod"},0,"peso",{"$f":"'610000 - Est. Camb. Patrimonio'!$X$15","v":0},800001965,"http://www.xbrl.org/scheme/companyName",{"$f":"Periodos!$C$3","v":"2017-01-01"},{"$f":"Periodos!$C$4","v":"2017-12-31"},{"$f":"'610000 - Est. Camb. Patrimonio'!$D$12","v":"ifrs-full:ComponentsOfEquityAxis"},{"$f":"'610000 - Est. Camb. Patrimonio'!$X$11","v":"ifrs-full:EquityMember"}]
["/*",null,{"$f":"'610000 - Est. Camb. Patrimonio'!$D$16","v":"Cambios en el patrimonio [resumen]"},{"$f":"'610000 - Est. Camb. Patrimonio'!$C$16","v":"ifrs-full:ChangesInEquityAbstract"}]
["/*",null,{"$f":"'610000 - Est. Camb. Patrimonio'!$D$17","v":"Resultado integral [resumen]"},{"$f":"'610000 - Est. Camb. Patrimonio'!$C$17","v":"ifrs-full:ComprehensiveIncomeAbstract"}]
["",null,{"$f":"'610000 - Est. Camb. Patrimonio'!$D$18","v":"Ganancia (pérdida)"},{"$f":"'610000 - Est. Camb. Patrimonio'!$C$18","v":"co-svsp-core_2017-12-31:ProfitLoss"},0,"peso",{"$f":"'610000 - Est. Camb. Patrimonio'!$X$18","v":0},800001965,"http://www.xbrl.org/scheme/companyName",{"$f":"Periodos!$C$3","v":"2017-01-01"},{"$f":"Periodos!$C$4","v":"2017-12-31"},{"$f":"'610000 - Est. Camb. Patrimonio'!$D$12","v":"ifrs-full:ComponentsOfEquityAxis"},{"$f":"'610000 - Est. Camb. Patrimonio'!$X$11","v":"ifrs-full:EquityMember"}]
["",null,{"$f":"'610000 - Est. Camb. Patrimonio'!$D$19","v":"Otro resultado integral"},{"$f":"'610000 - Est. Camb. Patrimonio'!$C$19","v":"co-svsp-core_2017-12-31:OtherComprehensiveIncome"},0,"peso",{"$f":"'610000 - Est. Camb. Patrimonio'!$X$19","v":0},800001965,"http://www.xbrl.org/scheme/companyName",{"$f":"Periodos!$C$3","v":"2017-01-01"},{"$f":"Periodos!$C$4","v":"2017-12-31"},{"$f":"'610000 - Est. Camb. Patrimonio'!$D$12","v":"ifrs-full:ComponentsOfEquityAxis"},{"$f":"'610000 - Est. Camb. Patrimonio'!$X$11","v":"ifrs-full:EquityMember"}]
[{"$f":"IF(G929=\"\",\"/*\",\"\")","v":""},null,{"$f":"'610000 - Est. Camb. Patrimonio'!$D$20","v":"Resultado integral total"},{"$f":"'610000 - Est. Camb. Patrimonio'!$C$20","v":"co-svsp-core_2017-12-31:ComprehensiveIncome"},0,"peso",{"$f":"'610000 - Est. Camb. Patrimonio'!$X$20","v":0},800001965,"http://www.xbrl.org/scheme/companyName",{"$f":"Periodos!$C$3","v":"2017-01-01"},{"$f":"Periodos!$C$4","v":"2017-12-31"},{"$f":"'610000 - Est. Camb. Patrimonio'!$D$12","v":"ifrs-full:ComponentsOfEquityAxis"},{"$f":"'610000 - Est. Camb. Patrimonio'!$X$11","v":"ifrs-full:EquityMember"}]
["",null,{"$f":"'610000 - Est. Camb. Patrimonio'!$D$21","v":"Emisión de patrimonio"},{"$f":"'610000 - Est. Camb. Patrimonio'!$C$21","v":"ifrs-full:IssueOfEquity"},0,"peso",{"$f":"'610000 - Est. Camb. Patrimonio'!$X$21","v":0},800001965,"http://www.xbrl.org/scheme/companyName",{"$f":"Periodos!$C$3","v":"2017-01-01"},{"$f":"Periodos!$C$4","v":"2017-12-31"},{"$f":"'610000 - Est. Camb. Patrimonio'!$D$12","v":"ifrs-full:ComponentsOfEquityAxis"},{"$f":"'610000 - Est. Camb. Patrimonio'!$X$11","v":"ifrs-full:EquityMember"}]
["",null,{"$f":"'610000 - Est. Camb. Patrimonio'!$D$22","v":"Dividendos reconocidos como distribuciones a los propietarios"},{"$f":"'610000 - Est. Camb. Patrimonio'!$C$22","v":"ifrs-full:DividendsPaid"},0,"peso",{"$f":"'610000 - Est. Camb. Patrimonio'!$X$22","v":0},800001965,"http://www.xbrl.org/scheme/companyName",{"$f":"Periodos!$C$3","v":"2017-01-01"},{"$f":"Periodos!$C$4","v":"2017-12-31"},{"$f":"'610000 - Est. Camb. Patrimonio'!$D$12","v":"ifrs-full:ComponentsOfEquityAxis"},{"$f":"'610000 - Est. Camb. Patrimonio'!$X$11","v":"ifrs-full:EquityMember"}]
["",null,{"$f":"'610000 - Est. Camb. Patrimonio'!$D$23","v":"Incrementos por otras aportaciones de los propietarios, patrimonio"},{"$f":"'610000 - Est. Camb. Patrimonio'!$C$23","v":"ifrs-full:IncreaseDecreaseThroughOtherContributionsByOwners"},0,"peso",{"$f":"'610000 - Est. Camb. Patrimonio'!$X$23","v":0},800001965,"http://www.xbrl.org/scheme/companyName",{"$f":"Periodos!$C$3","v":"2017-01-01"},{"$f":"Periodos!$C$4","v":"2017-12-31"},{"$f":"'610000 - Est. Camb. Patrimonio'!$D$12","v":"ifrs-full:ComponentsOfEquityAxis"},{"$f":"'610000 - Est. Camb. Patrimonio'!$X$11","v":"ifrs-full:EquityMember"}]
["",null,{"$f":"'610000 - Est. Camb. Patrimonio'!$D$24","v":"Disminución por otras distribuciones a los propietarios, patrimonio"},{"$f":"'610000 - Est. Camb. Patrimonio'!$C$24","v":"ifrs-full:IncreaseDecreaseThroughOtherDistributionsToOwners"},0,"peso",{"$f":"'610000 - Est. Camb. Patrimonio'!$X$24","v":0},800001965,"http://www.xbrl.org/scheme/companyName",{"$f":"Periodos!$C$3","v":"2017-01-01"},{"$f":"Periodos!$C$4","v":"2017-12-31"},{"$f":"'610000 - Est. Camb. Patrimonio'!$D$12","v":"ifrs-full:ComponentsOfEquityAxis"},{"$f":"'610000 - Est. Camb. Patrimonio'!$X$11","v":"ifrs-full:EquityMember"}]
["",null,{"$f":"'610000 - Est. Camb. Patrimonio'!$D$25","v":"Incrementos (disminuciones) por otros cambios, patrimonio"},{"$f":"'610000 - Est. Camb. Patrimonio'!$C$25","v":"ifrs-full:IncreaseDecreaseThroughTransfersAndOtherChangesEquity"},0,"peso",{"$f":"'610000 - Est. Camb. Patrimonio'!$X$25","v":0},800001965,"http://www.xbrl.org/scheme/companyName",{"$f":"Periodos!$C$3","v":"2017-01-01"},{"$f":"Periodos!$C$4","v":"2017-12-31"},{"$f":"'610000 - Est. Camb. Patrimonio'!$D$12","v":"ifrs-full:ComponentsOfEquityAxis"},{"$f":"'610000 - Est. Camb. Patrimonio'!$X$11","v":"ifrs-full:EquityMember"}]
["",null,{"$f":"'610000 - Est. Camb. Patrimonio'!$D$26","v":"Incrementos (disminuciones) por transacciones con acciones propias, patrimonio"},{"$f":"'610000 - Est. Camb. Patrimonio'!$C$26","v":"ifrs-full:IncreaseDecreaseThroughTreasuryShareTransactions"},0,"peso",{"$f":"'610000 - Est. Camb. Patrimonio'!$X$26","v":0},800001965,"http://www.xbrl.org/scheme/companyName",{"$f":"Periodos!$C$3","v":"2017-01-01"},{"$f":"Periodos!$C$4","v":"2017-12-31"},{"$f":"'610000 - Est. Camb. Patrimonio'!$D$12","v":"ifrs-full:ComponentsOfEquityAxis"},{"$f":"'610000 - Est. Camb. Patrimonio'!$X$11","v":"ifrs-full:EquityMember"}]
["",null,{"$f":"'610000 - Est. Camb. Patrimonio'!$D$27","v":"Incrementos (disminuciones) por cambios las participaciones en la propiedad de subsidiarias que no dan lugar a pérdida de control, patrimonio"},{"$f":"'610000 - Est. Camb. Patrimonio'!$C$27","v":"ifrs-full:IncreaseDecreaseThroughChangesInOwnershipInterestsInSubsidiariesThatDoNotResultInLossOfControl"},0,"peso",{"$f":"'610000 - Est. Camb. Patrimonio'!$X$27","v":0},800001965,"http://www.xbrl.org/scheme/companyName",{"$f":"Periodos!$C$3","v":"2017-01-01"},{"$f":"Periodos!$C$4","v":"2017-12-31"},{"$f":"'610000 - Est. Camb. Patrimonio'!$D$12","v":"ifrs-full:ComponentsOfEquityAxis"},{"$f":"'610000 - Est. Camb. Patrimonio'!$X$11","v":"ifrs-full:EquityMember"}]
["",null,{"$f":"'610000 - Est. Camb. Patrimonio'!$D$28","v":"Incrementos (disminuciones) por transacciones con pagos basados en acciones, patrimonio"},{"$f":"'610000 - Est. Camb. Patrimonio'!$C$28","v":"ifrs-full:IncreaseDecreaseThroughSharebasedPaymentTransactions"},0,"peso",{"$f":"'610000 - Est. Camb. Patrimonio'!$X$28","v":0},800001965,"http://www.xbrl.org/scheme/companyName",{"$f":"Periodos!$C$3","v":"2017-01-01"},{"$f":"Periodos!$C$4","v":"2017-12-31"},{"$f":"'610000 - Est. Camb. Patrimonio'!$D$12","v":"ifrs-full:ComponentsOfEquityAxis"},{"$f":"'610000 - Est. Camb. Patrimonio'!$X$11","v":"ifrs-full:EquityMember"}]
["",null,{"$f":"'610000 - Est. Camb. Patrimonio'!$D$29","v":"Total incremento (disminución) en el patrimonio"},{"$f":"'610000 - Est. Camb. Patrimonio'!$C$29","v":"ifrs-full:ChangesInEquity"},0,"peso",{"$f":"'610000 - Est. Camb. Patrimonio'!$X$29","v":0},800001965,"http://www.xbrl.org/scheme/companyName",{"$f":"Periodos!$C$3","v":"2017-01-01"},{"$f":"Periodos!$C$4","v":"2017-12-31"},{"$f":"'610000 - Est. Camb. Patrimonio'!$D$12","v":"ifrs-full:ComponentsOfEquityAxis"},{"$f":"'610000 - Est. Camb. Patrimonio'!$X$11","v":"ifrs-full:EquityMember"}]
["",null,{"$f":"'610000 - Est. Camb. Patrimonio'!$D$30","v":"Patrimonio al final del periodo"},{"$f":"'610000 - Est. Camb. Patrimonio'!$C$30","v":"co-svsp-core_2017-12-31:EquityEndOfPeriod"},0,"peso",{"$f":"'610000 - Est. Camb. Patrimonio'!$X$30","v":0},800001965,"http://www.xbrl.org/scheme/companyName",{"$f":"Periodos!$C$3","v":"2017-01-01"},{"$f":"Periodos!$C$4","v":"2017-12-31"},{"$f":"'610000 - Est. Camb. Patrimonio'!$D$12","v":"ifrs-full:ComponentsOfEquityAxis"},{"$f":"'610000 - Est. Camb. Patrimonio'!$X$11","v":"ifrs-full:EquityMember"}]
["/*"]
["/*",null,"610000 - Est. Camb. Patrimonio"]
["/*",null,"--01--"]
["/*",null,{"$f":"'610000 - Est. Camb. Patrimonio'!$D$40","v":"Estado de cambios en el patrimonio [resumen]"},{"$f":"'610000 - Est. Camb. Patrimonio'!$C$40","v":"ifrs-full:StatementOfChangesInEquityAbstract"}]
["/*",null,{"$f":"'610000 - Est. Camb. Patrimonio'!$D$41","v":"Estado de cambios en el patrimonio [partidas de los estados financieros]"},{"$f":"'610000 - Est. Camb. Patrimonio'!$C$41","v":"ifrs-full:StatementOfChangesInEquityLineItems"}]
["/*",null,{"$f":"'610000 - Est. Camb. Patrimonio'!$D$42","v":"Patrimonio al comienzo del periodo"},{"$f":"'610000 - Est. Camb. Patrimonio'!$C$42","v":"co-svsp-core_2017-12-31:EquityBeginningOfPeriod"}]
["/*",null,{"$f":"'610000 - Est. Camb. Patrimonio'!$D$43","v":"Cambios en el patrimonio [resumen]"},{"$f":"'610000 - Est. Camb. Patrimonio'!$C$43","v":"ifrs-full:ChangesInEquityAbstract"}]
["/*",null,{"$f":"'610000 - Est. Camb. Patrimonio'!$D$44","v":"Resultado integral [resumen]"},{"$f":"'610000 - Est. Camb. Patrimonio'!$C$44","v":"ifrs-full:ComprehensiveIncomeAbstract"}]
["/*",null,{"$f":"'610000 - Est. Camb. Patrimonio'!$D$45","v":"Ganancia (pérdida)"},{"$f":"'610000 - Est. Camb. Patrimonio'!$C$45","v":"co-svsp-core_2017-12-31:ProfitLoss"}]
["/*",null,{"$f":"'610000 - Est. Camb. Patrimonio'!$D$46","v":"Otro resultado integral"},{"$f":"'610000 - Est. Camb. Patrimonio'!$C$46","v":"co-svsp-core_2017-12-31:OtherComprehensiveIncome"}]
["",null,{"$f":"'610000 - Est. Camb. Patrimonio'!$D$47","v":"Resultado integral total"},{"$f":"'610000 - Est. Camb. Patrimonio'!$C$47","v":"co-svsp-core_2017-12-31:ComprehensiveIncome"},0,"peso",{"$f":"'610000 - Est. Camb. Patrimonio'!$E$47","v":0},800001965,"http://www.xbrl.org/scheme/companyName",{"$f":"Periodos!$D$3","v":"2016-01-01"},{"$f":"Periodos!$D$4","v":"2016-12-31"},{"$f":"'610000 - Est. Camb. Patrimonio'!$D$39","v":"ifrs-full:ComponentsOfEquityAxis"},{"$f":"'610000 - Est. Camb. Patrimonio'!$E$38","v":"ifrs-full:IssuedCapitalMember"}]
["/*",null,{"$f":"'610000 - Est. Camb. Patrimonio'!$D$48","v":"Emisión de patrimonio"},{"$f":"'610000 - Est. Camb. Patrimonio'!$C$48","v":"ifrs-full:IssueOfEquity"}]
["/*",null,{"$f":"'610000 - Est. Camb. Patrimonio'!$D$49","v":"Dividendos reconocidos como distribuciones a los propietarios"},{"$f":"'610000 - Est. Camb. Patrimonio'!$C$49","v":"ifrs-full:DividendsPaid"}]
["/*",null,{"$f":"'610000 - Est. Camb. Patrimonio'!$D$50","v":"Incrementos por otras aportaciones de los propietarios, patrimonio"},{"$f":"'610000 - Est. Camb. Patrimonio'!$C$50","v":"ifrs-full:IncreaseDecreaseThroughOtherContributionsByOwners"}]
["/*",null,{"$f":"'610000 - Est. Camb. Patrimonio'!$D$51","v":"Disminución por otras distribuciones a los propietarios, patrimonio"},{"$f":"'610000 - Est. Camb. Patrimonio'!$C$51","v":"ifrs-full:IncreaseDecreaseThroughOtherDistributionsToOwners"}]
["/*",null,{"$f":"'610000 - Est. Camb. Patrimonio'!$D$52","v":"Incrementos (disminuciones) por otros cambios, patrimonio"},{"$f":"'610000 - Est. Camb. Patrimonio'!$C$52","v":"ifrs-full:IncreaseDecreaseThroughTransfersAndOtherChangesEquity"}]
["/*",null,{"$f":"'610000 - Est. Camb. Patrimonio'!$D$53","v":"Incrementos (disminuciones) por transacciones con acciones propias, patrimonio"},{"$f":"'610000 - Est. Camb. Patrimonio'!$C$53","v":"ifrs-full:IncreaseDecreaseThroughTreasuryShareTransactions"}]
["/*",null,{"$f":"'610000 - Est. Camb. Patrimonio'!$D$54","v":"Incrementos (disminuciones) por cambios las participaciones en la propiedad de subsidiarias que no dan lugar a pérdida de control, patrimonio"},{"$f":"'610000 - Est. Camb. Patrimonio'!$C$54","v":"ifrs-full:IncreaseDecreaseThroughChangesInOwnershipInterestsInSubsidiariesThatDoNotResultInLossOfControl"}]
["/*",null,{"$f":"'610000 - Est. Camb. Patrimonio'!$D$55","v":"Incrementos (disminuciones) por transacciones con pagos basados en acciones, patrimonio"},{"$f":"'610000 - Est. Camb. Patrimonio'!$C$55","v":"ifrs-full:IncreaseDecreaseThroughSharebasedPaymentTransactions"}]
["",null,{"$f":"'610000 - Est. Camb. Patrimonio'!$D$56","v":"Total incremento (disminución) en el patrimonio"},{"$f":"'610000 - Est. Camb. Patrimonio'!$C$56","v":"ifrs-full:ChangesInEquity"},0,"peso",{"$f":"'610000 - Est. Camb. Patrimonio'!$E$56","v":0},800001965,"http://www.xbrl.org/scheme/companyName",{"$f":"Periodos!$D$3","v":"2016-01-01"},{"$f":"Periodos!$D$4","v":"2016-12-31"},{"$f":"'610000 - Est. Camb. Patrimonio'!$D$39","v":"ifrs-full:ComponentsOfEquityAxis"},{"$f":"'610000 - Est. Camb. Patrimonio'!$E$38","v":"ifrs-full:IssuedCapitalMember"}]
["",null,{"$f":"'610000 - Est. Camb. Patrimonio'!$D$57","v":"Patrimonio al final del periodo"},{"$f":"'610000 - Est. Camb. Patrimonio'!$C$57","v":"co-svsp-core_2017-12-31:EquityEndOfPeriod"},0,"peso",{"$f":"'610000 - Est. Camb. Patrimonio'!$E$57","v":0},800001965,"http://www.xbrl.org/scheme/companyName",{"$f":"Periodos!$D$3","v":"2016-01-01"},{"$f":"Periodos!$D$4","v":"2016-12-31"},{"$f":"'610000 - Est. Camb. Patrimonio'!$D$39","v":"ifrs-full:ComponentsOfEquityAxis"},{"$f":"'610000 - Est. Camb. Patrimonio'!$E$38","v":"ifrs-full:IssuedCapitalMember"}]
["/*",null,"--02--"]
["/*",null,{"$f":"'610000 - Est. Camb. Patrimonio'!$D$40","v":"Estado de cambios en el patrimonio [resumen]"},{"$f":"'610000 - Est. Camb. Patrimonio'!$C$40","v":"ifrs-full:StatementOfChangesInEquityAbstract"}]
["/*",null,{"$f":"'610000 - Est. Camb. Patrimonio'!$D$41","v":"Estado de cambios en el patrimonio [partidas de los estados financieros]"},{"$f":"'610000 - Est. Camb. Patrimonio'!$C$41","v":"ifrs-full:StatementOfChangesInEquityLineItems"}]
["/*",null,{"$f":"'610000 - Est. Camb. Patrimonio'!$D$42","v":"Patrimonio al comienzo del periodo"},{"$f":"'610000 - Est. Camb. Patrimonio'!$C$42","v":"co-svsp-core_2017-12-31:EquityBeginningOfPeriod"}]
["/*",null,{"$f":"'610000 - Est. Camb. Patrimonio'!$D$43","v":"Cambios en el patrimonio [resumen]"},{"$f":"'610000 - Est. Camb. Patrimonio'!$C$43","v":"ifrs-full:ChangesInEquityAbstract"}]
["/*",null,{"$f":"'610000 - Est. Camb. Patrimonio'!$D$44","v":"Resultado integral [resumen]"},{"$f":"'610000 - Est. Camb. Patrimonio'!$C$44","v":"ifrs-full:ComprehensiveIncomeAbstract"}]
["/*",null,{"$f":"'610000 - Est. Camb. Patrimonio'!$D$45","v":"Ganancia (pérdida)"},{"$f":"'610000 - Est. Camb. Patrimonio'!$C$45","v":"co-svsp-core_2017-12-31:ProfitLoss"}]
["/*",null,{"$f":"'610000 - Est. Camb. Patrimonio'!$D$46","v":"Otro resultado integral"},{"$f":"'610000 - Est. Camb. Patrimonio'!$C$46","v":"co-svsp-core_2017-12-31:OtherComprehensiveIncome"}]
["",null,{"$f":"'610000 - Est. Camb. Patrimonio'!$D$47","v":"Resultado integral total"},{"$f":"'610000 - Est. Camb. Patrimonio'!$C$47","v":"co-svsp-core_2017-12-31:ComprehensiveIncome"},0,"peso",{"$f":"'610000 - Est. Camb. Patrimonio'!$F$47","v":0},800001965,"http://www.xbrl.org/scheme/companyName",{"$f":"Periodos!$D$3","v":"2016-01-01"},{"$f":"Periodos!$D$4","v":"2016-12-31"},{"$f":"'610000 - Est. Camb. Patrimonio'!$D$39","v":"ifrs-full:ComponentsOfEquityAxis"},{"$f":"'610000 - Est. Camb. Patrimonio'!$F$38","v":"ifrs-full:SharePremiumMember"}]
["/*",null,{"$f":"'610000 - Est. Camb. Patrimonio'!$D$48","v":"Emisión de patrimonio"},{"$f":"'610000 - Est. Camb. Patrimonio'!$C$48","v":"ifrs-full:IssueOfEquity"}]
["/*",null,{"$f":"'610000 - Est. Camb. Patrimonio'!$D$49","v":"Dividendos reconocidos como distribuciones a los propietarios"},{"$f":"'610000 - Est. Camb. Patrimonio'!$C$49","v":"ifrs-full:DividendsPaid"}]
["/*",null,{"$f":"'610000 - Est. Camb. Patrimonio'!$D$50","v":"Incrementos por otras aportaciones de los propietarios, patrimonio"},{"$f":"'610000 - Est. Camb. Patrimonio'!$C$50","v":"ifrs-full:IncreaseDecreaseThroughOtherContributionsByOwners"}]
["/*",null,{"$f":"'610000 - Est. Camb. Patrimonio'!$D$51","v":"Disminución por otras distribuciones a los propietarios, patrimonio"},{"$f":"'610000 - Est. Camb. Patrimonio'!$C$51","v":"ifrs-full:IncreaseDecreaseThroughOtherDistributionsToOwners"}]
["/*",null,{"$f":"'610000 - Est. Camb. Patrimonio'!$D$52","v":"Incrementos (disminuciones) por otros cambios, patrimonio"},{"$f":"'610000 - Est. Camb. Patrimonio'!$C$52","v":"ifrs-full:IncreaseDecreaseThroughTransfersAndOtherChangesEquity"}]
["/*",null,{"$f":"'610000 - Est. Camb. Patrimonio'!$D$53","v":"Incrementos (disminuciones) por transacciones con acciones propias, patrimonio"},{"$f":"'610000 - Est. Camb. Patrimonio'!$C$53","v":"ifrs-full:IncreaseDecreaseThroughTreasuryShareTransactions"}]
["/*",null,{"$f":"'610000 - Est. Camb. Patrimonio'!$D$54","v":"Incrementos (disminuciones) por cambios las participaciones en la propiedad de subsidiarias que no dan lugar a pérdida de control, patrimonio"},{"$f":"'610000 - Est. Camb. Patrimonio'!$C$54","v":"ifrs-full:IncreaseDecreaseThroughChangesInOwnershipInterestsInSubsidiariesThatDoNotResultInLossOfControl"}]
["/*",null,{"$f":"'610000 - Est. Camb. Patrimonio'!$D$55","v":"Incrementos (disminuciones) por transacciones con pagos basados en acciones, patrimonio"},{"$f":"'610000 - Est. Camb. Patrimonio'!$C$55","v":"ifrs-full:IncreaseDecreaseThroughSharebasedPaymentTransactions"}]
["",null,{"$f":"'610000 - Est. Camb. Patrimonio'!$D$56","v":"Total incremento (disminución) en el patrimonio"},{"$f":"'610000 - Est. Camb. Patrimonio'!$C$56","v":"ifrs-full:ChangesInEquity"},0,"peso",{"$f":"'610000 - Est. Camb. Patrimonio'!$F$56","v":0},800001965,"http://www.xbrl.org/scheme/companyName",{"$f":"Periodos!$D$3","v":"2016-01-01"},{"$f":"Periodos!$D$4","v":"2016-12-31"},{"$f":"'610000 - Est. Camb. Patrimonio'!$D$39","v":"ifrs-full:ComponentsOfEquityAxis"},{"$f":"'610000 - Est. Camb. Patrimonio'!$F$38","v":"ifrs-full:SharePremiumMember"}]
["",null,{"$f":"'610000 - Est. Camb. Patrimonio'!$D$57","v":"Patrimonio al final del periodo"},{"$f":"'610000 - Est. Camb. Patrimonio'!$C$57","v":"co-svsp-core_2017-12-31:EquityEndOfPeriod"},0,"peso",{"$f":"'610000 - Est. Camb. Patrimonio'!$F$57","v":0},800001965,"http://www.xbrl.org/scheme/companyName",{"$f":"Periodos!$D$3","v":"2016-01-01"},{"$f":"Periodos!$D$4","v":"2016-12-31"},{"$f":"'610000 - Est. Camb. Patrimonio'!$D$39","v":"ifrs-full:ComponentsOfEquityAxis"},{"$f":"'610000 - Est. Camb. Patrimonio'!$F$38","v":"ifrs-full:SharePremiumMember"}]
["/*",null,"--03--"]
["/*",null,{"$f":"'610000 - Est. Camb. Patrimonio'!$D$40","v":"Estado de cambios en el patrimonio [resumen]"},{"$f":"'610000 - Est. Camb. Patrimonio'!$C$40","v":"ifrs-full:StatementOfChangesInEquityAbstract"}]
["/*",null,{"$f":"'610000 - Est. Camb. Patrimonio'!$D$41","v":"Estado de cambios en el patrimonio [partidas de los estados financieros]"},{"$f":"'610000 - Est. Camb. Patrimonio'!$C$41","v":"ifrs-full:StatementOfChangesInEquityLineItems"}]
["/*",null,{"$f":"'610000 - Est. Camb. Patrimonio'!$D$42","v":"Patrimonio al comienzo del periodo"},{"$f":"'610000 - Est. Camb. Patrimonio'!$C$42","v":"co-svsp-core_2017-12-31:EquityBeginningOfPeriod"}]
["/*",null,{"$f":"'610000 - Est. Camb. Patrimonio'!$D$43","v":"Cambios en el patrimonio [resumen]"},{"$f":"'610000 - Est. Camb. Patrimonio'!$C$43","v":"ifrs-full:ChangesInEquityAbstract"}]
["/*",null,{"$f":"'610000 - Est. Camb. Patrimonio'!$D$44","v":"Resultado integral [resumen]"},{"$f":"'610000 - Est. Camb. Patrimonio'!$C$44","v":"ifrs-full:ComprehensiveIncomeAbstract"}]
["/*",null,{"$f":"'610000 - Est. Camb. Patrimonio'!$D$45","v":"Ganancia (pérdida)"},{"$f":"'610000 - Est. Camb. Patrimonio'!$C$45","v":"co-svsp-core_2017-12-31:ProfitLoss"}]
["/*",null,{"$f":"'610000 - Est. Camb. Patrimonio'!$D$46","v":"Otro resultado integral"},{"$f":"'610000 - Est. Camb. Patrimonio'!$C$46","v":"co-svsp-core_2017-12-31:OtherComprehensiveIncome"}]
["",null,{"$f":"'610000 - Est. Camb. Patrimonio'!$D$47","v":"Resultado integral total"},{"$f":"'610000 - Est. Camb. Patrimonio'!$C$47","v":"co-svsp-core_2017-12-31:ComprehensiveIncome"},0,"peso",{"$f":"'610000 - Est. Camb. Patrimonio'!$G$47","v":0},800001965,"http://www.xbrl.org/scheme/companyName",{"$f":"Periodos!$D$3","v":"2016-01-01"},{"$f":"Periodos!$D$4","v":"2016-12-31"},{"$f":"'610000 - Est. Camb. Patrimonio'!$D$39","v":"ifrs-full:ComponentsOfEquityAxis"},{"$f":"'610000 - Est. Camb. Patrimonio'!$G$38","v":"ifrs-full:TreasurySharesMember"}]
["/*",null,{"$f":"'610000 - Est. Camb. Patrimonio'!$D$48","v":"Emisión de patrimonio"},{"$f":"'610000 - Est. Camb. Patrimonio'!$C$48","v":"ifrs-full:IssueOfEquity"}]
["/*",null,{"$f":"'610000 - Est. Camb. Patrimonio'!$D$49","v":"Dividendos reconocidos como distribuciones a los propietarios"},{"$f":"'610000 - Est. Camb. Patrimonio'!$C$49","v":"ifrs-full:DividendsPaid"}]
["/*",null,{"$f":"'610000 - Est. Camb. Patrimonio'!$D$50","v":"Incrementos por otras aportaciones de los propietarios, patrimonio"},{"$f":"'610000 - Est. Camb. Patrimonio'!$C$50","v":"ifrs-full:IncreaseDecreaseThroughOtherContributionsByOwners"}]
["/*",null,{"$f":"'610000 - Est. Camb. Patrimonio'!$D$51","v":"Disminución por otras distribuciones a los propietarios, patrimonio"},{"$f":"'610000 - Est. Camb. Patrimonio'!$C$51","v":"ifrs-full:IncreaseDecreaseThroughOtherDistributionsToOwners"}]
[{"$f":"IF(G993=\"\",\"/*\",\"\")","v":"/*"},null,{"$f":"'610000 - Est. Camb. Patrimonio'!$D$52","v":"Incrementos (disminuciones) por otros cambios, patrimonio"},{"$f":"'610000 - Est. Camb. Patrimonio'!$C$52","v":"ifrs-full:IncreaseDecreaseThroughTransfersAndOtherChangesEquity"}]
["/*",null,{"$f":"'610000 - Est. Camb. Patrimonio'!$D$53","v":"Incrementos (disminuciones) por transacciones con acciones propias, patrimonio"},{"$f":"'610000 - Est. Camb. Patrimonio'!$C$53","v":"ifrs-full:IncreaseDecreaseThroughTreasuryShareTransactions"}]
["/*",null,{"$f":"'610000 - Est. Camb. Patrimonio'!$D$54","v":"Incrementos (disminuciones) por cambios las participaciones en la propiedad de subsidiarias que no dan lugar a pérdida de control, patrimonio"},{"$f":"'610000 - Est. Camb. Patrimonio'!$C$54","v":"ifrs-full:IncreaseDecreaseThroughChangesInOwnershipInterestsInSubsidiariesThatDoNotResultInLossOfControl"}]
["/*",null,{"$f":"'610000 - Est. Camb. Patrimonio'!$D$55","v":"Incrementos (disminuciones) por transacciones con pagos basados en acciones, patrimonio"},{"$f":"'610000 - Est. Camb. Patrimonio'!$C$55","v":"ifrs-full:IncreaseDecreaseThroughSharebasedPaymentTransactions"}]
["",null,{"$f":"'610000 - Est. Camb. Patrimonio'!$D$56","v":"Total incremento (disminución) en el patrimonio"},{"$f":"'610000 - Est. Camb. Patrimonio'!$C$56","v":"ifrs-full:ChangesInEquity"},0,"peso",{"$f":"'610000 - Est. Camb. Patrimonio'!$G$56","v":0},800001965,"http://www.xbrl.org/scheme/companyName",{"$f":"Periodos!$D$3","v":"2016-01-01"},{"$f":"Periodos!$D$4","v":"2016-12-31"},{"$f":"'610000 - Est. Camb. Patrimonio'!$D$39","v":"ifrs-full:ComponentsOfEquityAxis"},{"$f":"'610000 - Est. Camb. Patrimonio'!$G$38","v":"ifrs-full:TreasurySharesMember"}]
["",null,{"$f":"'610000 - Est. Camb. Patrimonio'!$D$57","v":"Patrimonio al final del periodo"},{"$f":"'610000 - Est. Camb. Patrimonio'!$C$57","v":"co-svsp-core_2017-12-31:EquityEndOfPeriod"},0,"peso",{"$f":"'610000 - Est. Camb. Patrimonio'!$G$57","v":0},800001965,"http://www.xbrl.org/scheme/companyName",{"$f":"Periodos!$D$3","v":"2016-01-01"},{"$f":"Periodos!$D$4","v":"2016-12-31"},{"$f":"'610000 - Est. Camb. Patrimonio'!$D$39","v":"ifrs-full:ComponentsOfEquityAxis"},{"$f":"'610000 - Est. Camb. Patrimonio'!$G$38","v":"ifrs-full:TreasurySharesMember"}]
["/*",null,"--04--"]
["/*",null,{"$f":"'610000 - Est. Camb. Patrimonio'!$D$40","v":"Estado de cambios en el patrimonio [resumen]"},{"$f":"'610000 - Est. Camb. Patrimonio'!$C$40","v":"ifrs-full:StatementOfChangesInEquityAbstract"}]
["/*",null,{"$f":"'610000 - Est. Camb. Patrimonio'!$D$41","v":"Estado de cambios en el patrimonio [partidas de los estados financieros]"},{"$f":"'610000 - Est. Camb. Patrimonio'!$C$41","v":"ifrs-full:StatementOfChangesInEquityLineItems"}]
["/*",null,{"$f":"'610000 - Est. Camb. Patrimonio'!$D$42","v":"Patrimonio al comienzo del periodo"},{"$f":"'610000 - Est. Camb. Patrimonio'!$C$42","v":"co-svsp-core_2017-12-31:EquityBeginningOfPeriod"}]
["/*",null,{"$f":"'610000 - Est. Camb. Patrimonio'!$D$43","v":"Cambios en el patrimonio [resumen]"},{"$f":"'610000 - Est. Camb. Patrimonio'!$C$43","v":"ifrs-full:ChangesInEquityAbstract"}]
["/*",null,{"$f":"'610000 - Est. Camb. Patrimonio'!$D$44","v":"Resultado integral [resumen]"},{"$f":"'610000 - Est. Camb. Patrimonio'!$C$44","v":"ifrs-full:ComprehensiveIncomeAbstract"}]
["/*",null,{"$f":"'610000 - Est. Camb. Patrimonio'!$D$45","v":"Ganancia (pérdida)"},{"$f":"'610000 - Est. Camb. Patrimonio'!$C$45","v":"co-svsp-core_2017-12-31:ProfitLoss"}]
["/*",null,{"$f":"'610000 - Est. Camb. Patrimonio'!$D$46","v":"Otro resultado integral"},{"$f":"'610000 - Est. Camb. Patrimonio'!$C$46","v":"co-svsp-core_2017-12-31:OtherComprehensiveIncome"}]
["",null,{"$f":"'610000 - Est. Camb. Patrimonio'!$D$47","v":"Resultado integral total"},{"$f":"'610000 - Est. Camb. Patrimonio'!$C$47","v":"co-svsp-core_2017-12-31:ComprehensiveIncome"},0,"peso",{"$f":"'610000 - Est. Camb. Patrimonio'!$H$47","v":0},800001965,"http://www.xbrl.org/scheme/companyName",{"$f":"Periodos!$D$3","v":"2016-01-01"},{"$f":"Periodos!$D$4","v":"2016-12-31"},{"$f":"'610000 - Est. Camb. Patrimonio'!$D$39","v":"ifrs-full:ComponentsOfEquityAxis"},{"$f":"'610000 - Est. Camb. Patrimonio'!$H$38","v":"ifrs-full:OtherEquityInterestMember"}]
["/*",null,{"$f":"'610000 - Est. Camb. Patrimonio'!$D$48","v":"Emisión de patrimonio"},{"$f":"'610000 - Est. Camb. Patrimonio'!$C$48","v":"ifrs-full:IssueOfEquity"}]
["/*",null,{"$f":"'610000 - Est. Camb. Patrimonio'!$D$49","v":"Dividendos reconocidos como distribuciones a los propietarios"},{"$f":"'610000 - Est. Camb. Patrimonio'!$C$49","v":"ifrs-full:DividendsPaid"}]
["/*",null,{"$f":"'610000 - Est. Camb. Patrimonio'!$D$50","v":"Incrementos por otras aportaciones de los propietarios, patrimonio"},{"$f":"'610000 - Est. Camb. Patrimonio'!$C$50","v":"ifrs-full:IncreaseDecreaseThroughOtherContributionsByOwners"}]
["/*",null,{"$f":"'610000 - Est. Camb. Patrimonio'!$D$51","v":"Disminución por otras distribuciones a los propietarios, patrimonio"},{"$f":"'610000 - Est. Camb. Patrimonio'!$C$51","v":"ifrs-full:IncreaseDecreaseThroughOtherDistributionsToOwners"}]
["/*",null,{"$f":"'610000 - Est. Camb. Patrimonio'!$D$52","v":"Incrementos (disminuciones) por otros cambios, patrimonio"},{"$f":"'610000 - Est. Camb. Patrimonio'!$C$52","v":"ifrs-full:IncreaseDecreaseThroughTransfersAndOtherChangesEquity"}]
["/*",null,{"$f":"'610000 - Est. Camb. Patrimonio'!$D$53","v":"Incrementos (disminuciones) por transacciones con acciones propias, patrimonio"},{"$f":"'610000 - Est. Camb. Patrimonio'!$C$53","v":"ifrs-full:IncreaseDecreaseThroughTreasuryShareTransactions"}]
["/*",null,{"$f":"'610000 - Est. Camb. Patrimonio'!$D$54","v":"Incrementos (disminuciones) por cambios las participaciones en la propiedad de subsidiarias que no dan lugar a pérdida de control, patrimonio"},{"$f":"'610000 - Est. Camb. Patrimonio'!$C$54","v":"ifrs-full:IncreaseDecreaseThroughChangesInOwnershipInterestsInSubsidiariesThatDoNotResultInLossOfControl"}]
["/*",null,{"$f":"'610000 - Est. Camb. Patrimonio'!$D$55","v":"Incrementos (disminuciones) por transacciones con pagos basados en acciones, patrimonio"},{"$f":"'610000 - Est. Camb. Patrimonio'!$C$55","v":"ifrs-full:IncreaseDecreaseThroughSharebasedPaymentTransactions"}]
["",null,{"$f":"'610000 - Est. Camb. Patrimonio'!$D$56","v":"Total incremento (disminución) en el patrimonio"},{"$f":"'610000 - Est. Camb. Patrimonio'!$C$56","v":"ifrs-full:ChangesInEquity"},0,"peso",{"$f":"'610000 - Est. Camb. Patrimonio'!$H$56","v":0},800001965,"http://www.xbrl.org/scheme/companyName",{"$f":"Periodos!$D$3","v":"2016-01-01"},{"$f":"Periodos!$D$4","v":"2016-12-31"},{"$f":"'610000 - Est. Camb. Patrimonio'!$D$39","v":"ifrs-full:ComponentsOfEquityAxis"},{"$f":"'610000 - Est. Camb. Patrimonio'!$H$38","v":"ifrs-full:OtherEquityInterestMember"}]
["",null,{"$f":"'610000 - Est. Camb. Patrimonio'!$D$57","v":"Patrimonio al final del periodo"},{"$f":"'610000 - Est. Camb. Patrimonio'!$C$57","v":"co-svsp-core_2017-12-31:EquityEndOfPeriod"},0,"peso",{"$f":"'610000 - Est. Camb. Patrimonio'!$H$57","v":0},800001965,"http://www.xbrl.org/scheme/companyName",{"$f":"Periodos!$D$3","v":"2016-01-01"},{"$f":"Periodos!$D$4","v":"2016-12-31"},{"$f":"'610000 - Est. Camb. Patrimonio'!$D$39","v":"ifrs-full:ComponentsOfEquityAxis"},{"$f":"'610000 - Est. Camb. Patrimonio'!$H$38","v":"ifrs-full:OtherEquityInterestMember"}]
["/*",null,"--05--"]
["/*",null,{"$f":"'610000 - Est. Camb. Patrimonio'!$D$40","v":"Estado de cambios en el patrimonio [resumen]"},{"$f":"'610000 - Est. Camb. Patrimonio'!$C$40","v":"ifrs-full:StatementOfChangesInEquityAbstract"}]
["/*",null,{"$f":"'610000 - Est. Camb. Patrimonio'!$D$41","v":"Estado de cambios en el patrimonio [partidas de los estados financieros]"},{"$f":"'610000 - Est. Camb. Patrimonio'!$C$41","v":"ifrs-full:StatementOfChangesInEquityLineItems"}]
["/*",null,{"$f":"'610000 - Est. Camb. Patrimonio'!$D$42","v":"Patrimonio al comienzo del periodo"},{"$f":"'610000 - Est. Camb. Patrimonio'!$C$42","v":"co-svsp-core_2017-12-31:EquityBeginningOfPeriod"}]
["/*",null,{"$f":"'610000 - Est. Camb. Patrimonio'!$D$43","v":"Cambios en el patrimonio [resumen]"},{"$f":"'610000 - Est. Camb. Patrimonio'!$C$43","v":"ifrs-full:ChangesInEquityAbstract"}]
["/*",null,{"$f":"'610000 - Est. Camb. Patrimonio'!$D$44","v":"Resultado integral [resumen]"},{"$f":"'610000 - Est. Camb. Patrimonio'!$C$44","v":"ifrs-full:ComprehensiveIncomeAbstract"}]
["/*",null,{"$f":"'610000 - Est. Camb. Patrimonio'!$D$45","v":"Ganancia (pérdida)"},{"$f":"'610000 - Est. Camb. Patrimonio'!$C$45","v":"co-svsp-core_2017-12-31:ProfitLoss"}]
["/*",null,{"$f":"'610000 - Est. Camb. Patrimonio'!$D$46","v":"Otro resultado integral"},{"$f":"'610000 - Est. Camb. Patrimonio'!$C$46","v":"co-svsp-core_2017-12-31:OtherComprehensiveIncome"}]
["",null,{"$f":"'610000 - Est. Camb. Patrimonio'!$D$47","v":"Resultado integral total"},{"$f":"'610000 - Est. Camb. Patrimonio'!$C$47","v":"co-svsp-core_2017-12-31:ComprehensiveIncome"},0,"peso",{"$f":"'610000 - Est. Camb. Patrimonio'!$I$47","v":0},800001965,"http://www.xbrl.org/scheme/companyName",{"$f":"Periodos!$D$3","v":"2016-01-01"},{"$f":"Periodos!$D$4","v":"2016-12-31"},{"$f":"'610000 - Est. Camb. Patrimonio'!$D$39","v":"ifrs-full:ComponentsOfEquityAxis"},{"$f":"'610000 - Est. Camb. Patrimonio'!$I$38","v":"ifrs-full:RevaluationSurplusMember"}]
["/*",null,{"$f":"'610000 - Est. Camb. Patrimonio'!$D$48","v":"Emisión de patrimonio"},{"$f":"'610000 - Est. Camb. Patrimonio'!$C$48","v":"ifrs-full:IssueOfEquity"}]
["/*",null,{"$f":"'610000 - Est. Camb. Patrimonio'!$D$49","v":"Dividendos reconocidos como distribuciones a los propietarios"},{"$f":"'610000 - Est. Camb. Patrimonio'!$C$49","v":"ifrs-full:DividendsPaid"}]
["/*",null,{"$f":"'610000 - Est. Camb. Patrimonio'!$D$50","v":"Incrementos por otras aportaciones de los propietarios, patrimonio"},{"$f":"'610000 - Est. Camb. Patrimonio'!$C$50","v":"ifrs-full:IncreaseDecreaseThroughOtherContributionsByOwners"}]
["/*",null,{"$f":"'610000 - Est. Camb. Patrimonio'!$D$51","v":"Disminución por otras distribuciones a los propietarios, patrimonio"},{"$f":"'610000 - Est. Camb. Patrimonio'!$C$51","v":"ifrs-full:IncreaseDecreaseThroughOtherDistributionsToOwners"}]
["/*",null,{"$f":"'610000 - Est. Camb. Patrimonio'!$D$52","v":"Incrementos (disminuciones) por otros cambios, patrimonio"},{"$f":"'610000 - Est. Camb. Patrimonio'!$C$52","v":"ifrs-full:IncreaseDecreaseThroughTransfersAndOtherChangesEquity"}]
["/*",null,{"$f":"'610000 - Est. Camb. Patrimonio'!$D$53","v":"Incrementos (disminuciones) por transacciones con acciones propias, patrimonio"},{"$f":"'610000 - Est. Camb. Patrimonio'!$C$53","v":"ifrs-full:IncreaseDecreaseThroughTreasuryShareTransactions"}]
["/*",null,{"$f":"'610000 - Est. Camb. Patrimonio'!$D$54","v":"Incrementos (disminuciones) por cambios las participaciones en la propiedad de subsidiarias que no dan lugar a pérdida de control, patrimonio"},{"$f":"'610000 - Est. Camb. Patrimonio'!$C$54","v":"ifrs-full:IncreaseDecreaseThroughChangesInOwnershipInterestsInSubsidiariesThatDoNotResultInLossOfControl"}]
["/*",null,{"$f":"'610000 - Est. Camb. Patrimonio'!$D$55","v":"Incrementos (disminuciones) por transacciones con pagos basados en acciones, patrimonio"},{"$f":"'610000 - Est. Camb. Patrimonio'!$C$55","v":"ifrs-full:IncreaseDecreaseThroughSharebasedPaymentTransactions"}]
["",null,{"$f":"'610000 - Est. Camb. Patrimonio'!$D$56","v":"Total incremento (disminución) en el patrimonio"},{"$f":"'610000 - Est. Camb. Patrimonio'!$C$56","v":"ifrs-full:ChangesInEquity"},0,"peso",{"$f":"'610000 - Est. Camb. Patrimonio'!$I$56","v":0},800001965,"http://www.xbrl.org/scheme/companyName",{"$f":"Periodos!$D$3","v":"2016-01-01"},{"$f":"Periodos!$D$4","v":"2016-12-31"},{"$f":"'610000 - Est. Camb. Patrimonio'!$D$39","v":"ifrs-full:ComponentsOfEquityAxis"},{"$f":"'610000 - Est. Camb. Patrimonio'!$I$38","v":"ifrs-full:RevaluationSurplusMember"}]
["",null,{"$f":"'610000 - Est. Camb. Patrimonio'!$D$57","v":"Patrimonio al final del periodo"},{"$f":"'610000 - Est. Camb. Patrimonio'!$C$57","v":"co-svsp-core_2017-12-31:EquityEndOfPeriod"},0,"peso",{"$f":"'610000 - Est. Camb. Patrimonio'!$I$57","v":0},800001965,"http://www.xbrl.org/scheme/companyName",{"$f":"Periodos!$D$3","v":"2016-01-01"},{"$f":"Periodos!$D$4","v":"2016-12-31"},{"$f":"'610000 - Est. Camb. Patrimonio'!$D$39","v":"ifrs-full:ComponentsOfEquityAxis"},{"$f":"'610000 - Est. Camb. Patrimonio'!$I$38","v":"ifrs-full:RevaluationSurplusMember"}]
["/*",null,"--06--"]
["/*",null,{"$f":"'610000 - Est. Camb. Patrimonio'!$D$40","v":"Estado de cambios en el patrimonio [resumen]"},{"$f":"'610000 - Est. Camb. Patrimonio'!$C$40","v":"ifrs-full:StatementOfChangesInEquityAbstract"}]
["/*",null,{"$f":"'610000 - Est. Camb. Patrimonio'!$D$41","v":"Estado de cambios en el patrimonio [partidas de los estados financieros]"},{"$f":"'610000 - Est. Camb. Patrimonio'!$C$41","v":"ifrs-full:StatementOfChangesInEquityLineItems"}]
["/*",null,{"$f":"'610000 - Est. Camb. Patrimonio'!$D$42","v":"Patrimonio al comienzo del periodo"},{"$f":"'610000 - Est. Camb. Patrimonio'!$C$42","v":"co-svsp-core_2017-12-31:EquityBeginningOfPeriod"}]
["/*",null,{"$f":"'610000 - Est. Camb. Patrimonio'!$D$43","v":"Cambios en el patrimonio [resumen]"},{"$f":"'610000 - Est. Camb. Patrimonio'!$C$43","v":"ifrs-full:ChangesInEquityAbstract"}]
["/*",null,{"$f":"'610000 - Est. Camb. Patrimonio'!$D$44","v":"Resultado integral [resumen]"},{"$f":"'610000 - Est. Camb. Patrimonio'!$C$44","v":"ifrs-full:ComprehensiveIncomeAbstract"}]
["/*",null,{"$f":"'610000 - Est. Camb. Patrimonio'!$D$45","v":"Ganancia (pérdida)"},{"$f":"'610000 - Est. Camb. Patrimonio'!$C$45","v":"co-svsp-core_2017-12-31:ProfitLoss"}]
["/*",null,{"$f":"'610000 - Est. Camb. Patrimonio'!$D$46","v":"Otro resultado integral"},{"$f":"'610000 - Est. Camb. Patrimonio'!$C$46","v":"co-svsp-core_2017-12-31:OtherComprehensiveIncome"}]
["",null,{"$f":"'610000 - Est. Camb. Patrimonio'!$D$47","v":"Resultado integral total"},{"$f":"'610000 - Est. Camb. Patrimonio'!$C$47","v":"co-svsp-core_2017-12-31:ComprehensiveIncome"},0,"peso",{"$f":"'610000 - Est. Camb. Patrimonio'!$J$47","v":0},800001965,"http://www.xbrl.org/scheme/companyName",{"$f":"Periodos!$D$3","v":"2016-01-01"},{"$f":"Periodos!$D$4","v":"2016-12-31"},{"$f":"'610000 - Est. Camb. Patrimonio'!$D$39","v":"ifrs-full:ComponentsOfEquityAxis"},{"$f":"'610000 - Est. Camb. Patrimonio'!$J$38","v":"ifrs-full:ReserveOfExchangeDifferencesOnTranslationMember"}]
["/*",null,{"$f":"'610000 - Est. Camb. Patrimonio'!$D$48","v":"Emisión de patrimonio"},{"$f":"'610000 - Est. Camb. Patrimonio'!$C$48","v":"ifrs-full:IssueOfEquity"}]
["/*",null,{"$f":"'610000 - Est. Camb. Patrimonio'!$D$49","v":"Dividendos reconocidos como distribuciones a los propietarios"},{"$f":"'610000 - Est. Camb. Patrimonio'!$C$49","v":"ifrs-full:DividendsPaid"}]
["/*",null,{"$f":"'610000 - Est. Camb. Patrimonio'!$D$50","v":"Incrementos por otras aportaciones de los propietarios, patrimonio"},{"$f":"'610000 - Est. Camb. Patrimonio'!$C$50","v":"ifrs-full:IncreaseDecreaseThroughOtherContributionsByOwners"}]
["/*",null,{"$f":"'610000 - Est. Camb. Patrimonio'!$D$51","v":"Disminución por otras distribuciones a los propietarios, patrimonio"},{"$f":"'610000 - Est. Camb. Patrimonio'!$C$51","v":"ifrs-full:IncreaseDecreaseThroughOtherDistributionsToOwners"}]
["/*",null,{"$f":"'610000 - Est. Camb. Patrimonio'!$D$52","v":"Incrementos (disminuciones) por otros cambios, patrimonio"},{"$f":"'610000 - Est. Camb. Patrimonio'!$C$52","v":"ifrs-full:IncreaseDecreaseThroughTransfersAndOtherChangesEquity"}]
["/*",null,{"$f":"'610000 - Est. Camb. Patrimonio'!$D$53","v":"Incrementos (disminuciones) por transacciones con acciones propias, patrimonio"},{"$f":"'610000 - Est. Camb. Patrimonio'!$C$53","v":"ifrs-full:IncreaseDecreaseThroughTreasuryShareTransactions"}]
["/*",null,{"$f":"'610000 - Est. Camb. Patrimonio'!$D$54","v":"Incrementos (disminuciones) por cambios las participaciones en la propiedad de subsidiarias que no dan lugar a pérdida de control, patrimonio"},{"$f":"'610000 - Est. Camb. Patrimonio'!$C$54","v":"ifrs-full:IncreaseDecreaseThroughChangesInOwnershipInterestsInSubsidiariesThatDoNotResultInLossOfControl"}]
["/*",null,{"$f":"'610000 - Est. Camb. Patrimonio'!$D$55","v":"Incrementos (disminuciones) por transacciones con pagos basados en acciones, patrimonio"},{"$f":"'610000 - Est. Camb. Patrimonio'!$C$55","v":"ifrs-full:IncreaseDecreaseThroughSharebasedPaymentTransactions"}]
["",null,{"$f":"'610000 - Est. Camb. Patrimonio'!$D$56","v":"Total incremento (disminución) en el patrimonio"},{"$f":"'610000 - Est. Camb. Patrimonio'!$C$56","v":"ifrs-full:ChangesInEquity"},0,"peso",{"$f":"'610000 - Est. Camb. Patrimonio'!$J$56","v":0},800001965,"http://www.xbrl.org/scheme/companyName",{"$f":"Periodos!$D$3","v":"2016-01-01"},{"$f":"Periodos!$D$4","v":"2016-12-31"},{"$f":"'610000 - Est. Camb. Patrimonio'!$D$39","v":"ifrs-full:ComponentsOfEquityAxis"},{"$f":"'610000 - Est. Camb. Patrimonio'!$J$38","v":"ifrs-full:ReserveOfExchangeDifferencesOnTranslationMember"}]
["",null,{"$f":"'610000 - Est. Camb. Patrimonio'!$D$57","v":"Patrimonio al final del periodo"},{"$f":"'610000 - Est. Camb. Patrimonio'!$C$57","v":"co-svsp-core_2017-12-31:EquityEndOfPeriod"},0,"peso",{"$f":"'610000 - Est. Camb. Patrimonio'!$J$57","v":0},800001965,"http://www.xbrl.org/scheme/companyName",{"$f":"Periodos!$D$3","v":"2016-01-01"},{"$f":"Periodos!$D$4","v":"2016-12-31"},{"$f":"'610000 - Est. Camb. Patrimonio'!$D$39","v":"ifrs-full:ComponentsOfEquityAxis"},{"$f":"'610000 - Est. Camb. Patrimonio'!$J$38","v":"ifrs-full:ReserveOfExchangeDifferencesOnTranslationMember"}]
["/*",null,"--07--"]
[{"$f":"IF(G1057=\"\",\"/*\",\"\")","v":"/*"},null,{"$f":"'610000 - Est. Camb. Patrimonio'!$D$40","v":"Estado de cambios en el patrimonio [resumen]"},{"$f":"'610000 - Est. Camb. Patrimonio'!$C$40","v":"ifrs-full:StatementOfChangesInEquityAbstract"}]
["/*",null,{"$f":"'610000 - Est. Camb. Patrimonio'!$D$41","v":"Estado de cambios en el patrimonio [partidas de los estados financieros]"},{"$f":"'610000 - Est. Camb. Patrimonio'!$C$41","v":"ifrs-full:StatementOfChangesInEquityLineItems"}]
["/*",null,{"$f":"'610000 - Est. Camb. Patrimonio'!$D$42","v":"Patrimonio al comienzo del periodo"},{"$f":"'610000 - Est. Camb. Patrimonio'!$C$42","v":"co-svsp-core_2017-12-31:EquityBeginningOfPeriod"}]
["/*",null,{"$f":"'610000 - Est. Camb. Patrimonio'!$D$43","v":"Cambios en el patrimonio [resumen]"},{"$f":"'610000 - Est. Camb. Patrimonio'!$C$43","v":"ifrs-full:ChangesInEquityAbstract"}]
["/*",null,{"$f":"'610000 - Est. Camb. Patrimonio'!$D$44","v":"Resultado integral [resumen]"},{"$f":"'610000 - Est. Camb. Patrimonio'!$C$44","v":"ifrs-full:ComprehensiveIncomeAbstract"}]
["/*",null,{"$f":"'610000 - Est. Camb. Patrimonio'!$D$45","v":"Ganancia (pérdida)"},{"$f":"'610000 - Est. Camb. Patrimonio'!$C$45","v":"co-svsp-core_2017-12-31:ProfitLoss"}]
["/*",null,{"$f":"'610000 - Est. Camb. Patrimonio'!$D$46","v":"Otro resultado integral"},{"$f":"'610000 - Est. Camb. Patrimonio'!$C$46","v":"co-svsp-core_2017-12-31:OtherComprehensiveIncome"}]
["",null,{"$f":"'610000 - Est. Camb. Patrimonio'!$D$47","v":"Resultado integral total"},{"$f":"'610000 - Est. Camb. Patrimonio'!$C$47","v":"co-svsp-core_2017-12-31:ComprehensiveIncome"},0,"peso",{"$f":"'610000 - Est. Camb. Patrimonio'!$K$47","v":0},800001965,"http://www.xbrl.org/scheme/companyName",{"$f":"Periodos!$D$3","v":"2016-01-01"},{"$f":"Periodos!$D$4","v":"2016-12-31"},{"$f":"'610000 - Est. Camb. Patrimonio'!$D$39","v":"ifrs-full:ComponentsOfEquityAxis"},{"$f":"'610000 - Est. Camb. Patrimonio'!$K$38","v":"ifrs-full:ReserveOfCashFlowHedgesMember"}]
["/*",null,{"$f":"'610000 - Est. Camb. Patrimonio'!$D$48","v":"Emisión de patrimonio"},{"$f":"'610000 - Est. Camb. Patrimonio'!$C$48","v":"ifrs-full:IssueOfEquity"}]
["/*",null,{"$f":"'610000 - Est. Camb. Patrimonio'!$D$49","v":"Dividendos reconocidos como distribuciones a los propietarios"},{"$f":"'610000 - Est. Camb. Patrimonio'!$C$49","v":"ifrs-full:DividendsPaid"}]
["/*",null,{"$f":"'610000 - Est. Camb. Patrimonio'!$D$50","v":"Incrementos por otras aportaciones de los propietarios, patrimonio"},{"$f":"'610000 - Est. Camb. Patrimonio'!$C$50","v":"ifrs-full:IncreaseDecreaseThroughOtherContributionsByOwners"}]
["/*",null,{"$f":"'610000 - Est. Camb. Patrimonio'!$D$51","v":"Disminución por otras distribuciones a los propietarios, patrimonio"},{"$f":"'610000 - Est. Camb. Patrimonio'!$C$51","v":"ifrs-full:IncreaseDecreaseThroughOtherDistributionsToOwners"}]
["/*",null,{"$f":"'610000 - Est. Camb. Patrimonio'!$D$52","v":"Incrementos (disminuciones) por otros cambios, patrimonio"},{"$f":"'610000 - Est. Camb. Patrimonio'!$C$52","v":"ifrs-full:IncreaseDecreaseThroughTransfersAndOtherChangesEquity"}]
["/*",null,{"$f":"'610000 - Est. Camb. Patrimonio'!$D$53","v":"Incrementos (disminuciones) por transacciones con acciones propias, patrimonio"},{"$f":"'610000 - Est. Camb. Patrimonio'!$C$53","v":"ifrs-full:IncreaseDecreaseThroughTreasuryShareTransactions"}]
["/*",null,{"$f":"'610000 - Est. Camb. Patrimonio'!$D$54","v":"Incrementos (disminuciones) por cambios las participaciones en la propiedad de subsidiarias que no dan lugar a pérdida de control, patrimonio"},{"$f":"'610000 - Est. Camb. Patrimonio'!$C$54","v":"ifrs-full:IncreaseDecreaseThroughChangesInOwnershipInterestsInSubsidiariesThatDoNotResultInLossOfControl"}]
["/*",null,{"$f":"'610000 - Est. Camb. Patrimonio'!$D$55","v":"Incrementos (disminuciones) por transacciones con pagos basados en acciones, patrimonio"},{"$f":"'610000 - Est. Camb. Patrimonio'!$C$55","v":"ifrs-full:IncreaseDecreaseThroughSharebasedPaymentTransactions"}]
["",null,{"$f":"'610000 - Est. Camb. Patrimonio'!$D$56","v":"Total incremento (disminución) en el patrimonio"},{"$f":"'610000 - Est. Camb. Patrimonio'!$C$56","v":"ifrs-full:ChangesInEquity"},0,"peso",{"$f":"'610000 - Est. Camb. Patrimonio'!$K$56","v":0},800001965,"http://www.xbrl.org/scheme/companyName",{"$f":"Periodos!$D$3","v":"2016-01-01"},{"$f":"Periodos!$D$4","v":"2016-12-31"},{"$f":"'610000 - Est. Camb. Patrimonio'!$D$39","v":"ifrs-full:ComponentsOfEquityAxis"},{"$f":"'610000 - Est. Camb. Patrimonio'!$K$38","v":"ifrs-full:ReserveOfCashFlowHedgesMember"}]
["",null,{"$f":"'610000 - Est. Camb. Patrimonio'!$D$57","v":"Patrimonio al final del periodo"},{"$f":"'610000 - Est. Camb. Patrimonio'!$C$57","v":"co-svsp-core_2017-12-31:EquityEndOfPeriod"},0,"peso",{"$f":"'610000 - Est. Camb. Patrimonio'!$K$57","v":0},800001965,"http://www.xbrl.org/scheme/companyName",{"$f":"Periodos!$D$3","v":"2016-01-01"},{"$f":"Periodos!$D$4","v":"2016-12-31"},{"$f":"'610000 - Est. Camb. Patrimonio'!$D$39","v":"ifrs-full:ComponentsOfEquityAxis"},{"$f":"'610000 - Est. Camb. Patrimonio'!$K$38","v":"ifrs-full:ReserveOfCashFlowHedgesMember"}]
["/*",null,"--08--"]
["/*",null,{"$f":"'610000 - Est. Camb. Patrimonio'!$D$40","v":"Estado de cambios en el patrimonio [resumen]"},{"$f":"'610000 - Est. Camb. Patrimonio'!$C$40","v":"ifrs-full:StatementOfChangesInEquityAbstract"}]
["/*",null,{"$f":"'610000 - Est. Camb. Patrimonio'!$D$41","v":"Estado de cambios en el patrimonio [partidas de los estados financieros]"},{"$f":"'610000 - Est. Camb. Patrimonio'!$C$41","v":"ifrs-full:StatementOfChangesInEquityLineItems"}]
["/*",null,{"$f":"'610000 - Est. Camb. Patrimonio'!$D$42","v":"Patrimonio al comienzo del periodo"},{"$f":"'610000 - Est. Camb. Patrimonio'!$C$42","v":"co-svsp-core_2017-12-31:EquityBeginningOfPeriod"}]
["/*",null,{"$f":"'610000 - Est. Camb. Patrimonio'!$D$43","v":"Cambios en el patrimonio [resumen]"},{"$f":"'610000 - Est. Camb. Patrimonio'!$C$43","v":"ifrs-full:ChangesInEquityAbstract"}]
["/*",null,{"$f":"'610000 - Est. Camb. Patrimonio'!$D$44","v":"Resultado integral [resumen]"},{"$f":"'610000 - Est. Camb. Patrimonio'!$C$44","v":"ifrs-full:ComprehensiveIncomeAbstract"}]
["/*",null,{"$f":"'610000 - Est. Camb. Patrimonio'!$D$45","v":"Ganancia (pérdida)"},{"$f":"'610000 - Est. Camb. Patrimonio'!$C$45","v":"co-svsp-core_2017-12-31:ProfitLoss"}]
["/*",null,{"$f":"'610000 - Est. Camb. Patrimonio'!$D$46","v":"Otro resultado integral"},{"$f":"'610000 - Est. Camb. Patrimonio'!$C$46","v":"co-svsp-core_2017-12-31:OtherComprehensiveIncome"}]
["",null,{"$f":"'610000 - Est. Camb. Patrimonio'!$D$47","v":"Resultado integral total"},{"$f":"'610000 - Est. Camb. Patrimonio'!$C$47","v":"co-svsp-core_2017-12-31:ComprehensiveIncome"},0,"peso",{"$f":"'610000 - Est. Camb. Patrimonio'!$L$47","v":0},800001965,"http://www.xbrl.org/scheme/companyName",{"$f":"Periodos!$D$3","v":"2016-01-01"},{"$f":"Periodos!$D$4","v":"2016-12-31"},{"$f":"'610000 - Est. Camb. Patrimonio'!$D$39","v":"ifrs-full:ComponentsOfEquityAxis"},{"$f":"'610000 - Est. Camb. Patrimonio'!$L$38","v":"ifrs-full:ReserveOfGainsAndLossesOnHedgingInstrumentsThatHedgeInvestmentsInEquityInstrumentsMember"}]
["/*",null,{"$f":"'610000 - Est. Camb. Patrimonio'!$D$48","v":"Emisión de patrimonio"},{"$f":"'610000 - Est. Camb. Patrimonio'!$C$48","v":"ifrs-full:IssueOfEquity"}]
["/*",null,{"$f":"'610000 - Est. Camb. Patrimonio'!$D$49","v":"Dividendos reconocidos como distribuciones a los propietarios"},{"$f":"'610000 - Est. Camb. Patrimonio'!$C$49","v":"ifrs-full:DividendsPaid"}]
["/*",null,{"$f":"'610000 - Est. Camb. Patrimonio'!$D$50","v":"Incrementos por otras aportaciones de los propietarios, patrimonio"},{"$f":"'610000 - Est. Camb. Patrimonio'!$C$50","v":"ifrs-full:IncreaseDecreaseThroughOtherContributionsByOwners"}]
["/*",null,{"$f":"'610000 - Est. Camb. Patrimonio'!$D$51","v":"Disminución por otras distribuciones a los propietarios, patrimonio"},{"$f":"'610000 - Est. Camb. Patrimonio'!$C$51","v":"ifrs-full:IncreaseDecreaseThroughOtherDistributionsToOwners"}]
["/*",null,{"$f":"'610000 - Est. Camb. Patrimonio'!$D$52","v":"Incrementos (disminuciones) por otros cambios, patrimonio"},{"$f":"'610000 - Est. Camb. Patrimonio'!$C$52","v":"ifrs-full:IncreaseDecreaseThroughTransfersAndOtherChangesEquity"}]
["/*",null,{"$f":"'610000 - Est. Camb. Patrimonio'!$D$53","v":"Incrementos (disminuciones) por transacciones con acciones propias, patrimonio"},{"$f":"'610000 - Est. Camb. Patrimonio'!$C$53","v":"ifrs-full:IncreaseDecreaseThroughTreasuryShareTransactions"}]
["/*",null,{"$f":"'610000 - Est. Camb. Patrimonio'!$D$54","v":"Incrementos (disminuciones) por cambios las participaciones en la propiedad de subsidiarias que no dan lugar a pérdida de control, patrimonio"},{"$f":"'610000 - Est. Camb. Patrimonio'!$C$54","v":"ifrs-full:IncreaseDecreaseThroughChangesInOwnershipInterestsInSubsidiariesThatDoNotResultInLossOfControl"}]
["/*",null,{"$f":"'610000 - Est. Camb. Patrimonio'!$D$55","v":"Incrementos (disminuciones) por transacciones con pagos basados en acciones, patrimonio"},{"$f":"'610000 - Est. Camb. Patrimonio'!$C$55","v":"ifrs-full:IncreaseDecreaseThroughSharebasedPaymentTransactions"}]
["",null,{"$f":"'610000 - Est. Camb. Patrimonio'!$D$56","v":"Total incremento (disminución) en el patrimonio"},{"$f":"'610000 - Est. Camb. Patrimonio'!$C$56","v":"ifrs-full:ChangesInEquity"},0,"peso",{"$f":"'610000 - Est. Camb. Patrimonio'!$L$56","v":0},800001965,"http://www.xbrl.org/scheme/companyName",{"$f":"Periodos!$D$3","v":"2016-01-01"},{"$f":"Periodos!$D$4","v":"2016-12-31"},{"$f":"'610000 - Est. Camb. Patrimonio'!$D$39","v":"ifrs-full:ComponentsOfEquityAxis"},{"$f":"'610000 - Est. Camb. Patrimonio'!$L$38","v":"ifrs-full:ReserveOfGainsAndLossesOnHedgingInstrumentsThatHedgeInvestmentsInEquityInstrumentsMember"}]
["",null,{"$f":"'610000 - Est. Camb. Patrimonio'!$D$57","v":"Patrimonio al final del periodo"},{"$f":"'610000 - Est. Camb. Patrimonio'!$C$57","v":"co-svsp-core_2017-12-31:EquityEndOfPeriod"},0,"peso",{"$f":"'610000 - Est. Camb. Patrimonio'!$L$57","v":0},800001965,"http://www.xbrl.org/scheme/companyName",{"$f":"Periodos!$D$3","v":"2016-01-01"},{"$f":"Periodos!$D$4","v":"2016-12-31"},{"$f":"'610000 - Est. Camb. Patrimonio'!$D$39","v":"ifrs-full:ComponentsOfEquityAxis"},{"$f":"'610000 - Est. Camb. Patrimonio'!$L$38","v":"ifrs-full:ReserveOfGainsAndLossesOnHedgingInstrumentsThatHedgeInvestmentsInEquityInstrumentsMember"}]
["/*",null,"--09--"]
["/*",null,{"$f":"'610000 - Est. Camb. Patrimonio'!$D$40","v":"Estado de cambios en el patrimonio [resumen]"},{"$f":"'610000 - Est. Camb. Patrimonio'!$C$40","v":"ifrs-full:StatementOfChangesInEquityAbstract"}]
["/*",null,{"$f":"'610000 - Est. Camb. Patrimonio'!$D$41","v":"Estado de cambios en el patrimonio [partidas de los estados financieros]"},{"$f":"'610000 - Est. Camb. Patrimonio'!$C$41","v":"ifrs-full:StatementOfChangesInEquityLineItems"}]
["/*",null,{"$f":"'610000 - Est. Camb. Patrimonio'!$D$42","v":"Patrimonio al comienzo del periodo"},{"$f":"'610000 - Est. Camb. Patrimonio'!$C$42","v":"co-svsp-core_2017-12-31:EquityBeginningOfPeriod"}]
["/*",null,{"$f":"'610000 - Est. Camb. Patrimonio'!$D$43","v":"Cambios en el patrimonio [resumen]"},{"$f":"'610000 - Est. Camb. Patrimonio'!$C$43","v":"ifrs-full:ChangesInEquityAbstract"}]
["/*",null,{"$f":"'610000 - Est. Camb. Patrimonio'!$D$44","v":"Resultado integral [resumen]"},{"$f":"'610000 - Est. Camb. Patrimonio'!$C$44","v":"ifrs-full:ComprehensiveIncomeAbstract"}]
["/*",null,{"$f":"'610000 - Est. Camb. Patrimonio'!$D$45","v":"Ganancia (pérdida)"},{"$f":"'610000 - Est. Camb. Patrimonio'!$C$45","v":"co-svsp-core_2017-12-31:ProfitLoss"}]
["/*",null,{"$f":"'610000 - Est. Camb. Patrimonio'!$D$46","v":"Otro resultado integral"},{"$f":"'610000 - Est. Camb. Patrimonio'!$C$46","v":"co-svsp-core_2017-12-31:OtherComprehensiveIncome"}]
["",null,{"$f":"'610000 - Est. Camb. Patrimonio'!$D$47","v":"Resultado integral total"},{"$f":"'610000 - Est. Camb. Patrimonio'!$C$47","v":"co-svsp-core_2017-12-31:ComprehensiveIncome"},0,"peso",{"$f":"'610000 - Est. Camb. Patrimonio'!$M$47","v":0},800001965,"http://www.xbrl.org/scheme/companyName",{"$f":"Periodos!$D$3","v":"2016-01-01"},{"$f":"Periodos!$D$4","v":"2016-12-31"},{"$f":"'610000 - Est. Camb. Patrimonio'!$D$39","v":"ifrs-full:ComponentsOfEquityAxis"},{"$f":"'610000 - Est. Camb. Patrimonio'!$M$38","v":"ifrs-full:ReserveOfChangeInValueOfTimeValueOfOptionsMember"}]
["/*",null,{"$f":"'610000 - Est. Camb. Patrimonio'!$D$48","v":"Emisión de patrimonio"},{"$f":"'610000 - Est. Camb. Patrimonio'!$C$48","v":"ifrs-full:IssueOfEquity"}]
["/*",null,{"$f":"'610000 - Est. Camb. Patrimonio'!$D$49","v":"Dividendos reconocidos como distribuciones a los propietarios"},{"$f":"'610000 - Est. Camb. Patrimonio'!$C$49","v":"ifrs-full:DividendsPaid"}]
["/*",null,{"$f":"'610000 - Est. Camb. Patrimonio'!$D$50","v":"Incrementos por otras aportaciones de los propietarios, patrimonio"},{"$f":"'610000 - Est. Camb. Patrimonio'!$C$50","v":"ifrs-full:IncreaseDecreaseThroughOtherContributionsByOwners"}]
["/*",null,{"$f":"'610000 - Est. Camb. Patrimonio'!$D$51","v":"Disminución por otras distribuciones a los propietarios, patrimonio"},{"$f":"'610000 - Est. Camb. Patrimonio'!$C$51","v":"ifrs-full:IncreaseDecreaseThroughOtherDistributionsToOwners"}]
["/*",null,{"$f":"'610000 - Est. Camb. Patrimonio'!$D$52","v":"Incrementos (disminuciones) por otros cambios, patrimonio"},{"$f":"'610000 - Est. Camb. Patrimonio'!$C$52","v":"ifrs-full:IncreaseDecreaseThroughTransfersAndOtherChangesEquity"}]
["/*",null,{"$f":"'610000 - Est. Camb. Patrimonio'!$D$53","v":"Incrementos (disminuciones) por transacciones con acciones propias, patrimonio"},{"$f":"'610000 - Est. Camb. Patrimonio'!$C$53","v":"ifrs-full:IncreaseDecreaseThroughTreasuryShareTransactions"}]
["/*",null,{"$f":"'610000 - Est. Camb. Patrimonio'!$D$54","v":"Incrementos (disminuciones) por cambios las participaciones en la propiedad de subsidiarias que no dan lugar a pérdida de control, patrimonio"},{"$f":"'610000 - Est. Camb. Patrimonio'!$C$54","v":"ifrs-full:IncreaseDecreaseThroughChangesInOwnershipInterestsInSubsidiariesThatDoNotResultInLossOfControl"}]
["/*",null,{"$f":"'610000 - Est. Camb. Patrimonio'!$D$55","v":"Incrementos (disminuciones) por transacciones con pagos basados en acciones, patrimonio"},{"$f":"'610000 - Est. Camb. Patrimonio'!$C$55","v":"ifrs-full:IncreaseDecreaseThroughSharebasedPaymentTransactions"}]
["",null,{"$f":"'610000 - Est. Camb. Patrimonio'!$D$56","v":"Total incremento (disminución) en el patrimonio"},{"$f":"'610000 - Est. Camb. Patrimonio'!$C$56","v":"ifrs-full:ChangesInEquity"},0,"peso",{"$f":"'610000 - Est. Camb. Patrimonio'!$M$56","v":0},800001965,"http://www.xbrl.org/scheme/companyName",{"$f":"Periodos!$D$3","v":"2016-01-01"},{"$f":"Periodos!$D$4","v":"2016-12-31"},{"$f":"'610000 - Est. Camb. Patrimonio'!$D$39","v":"ifrs-full:ComponentsOfEquityAxis"},{"$f":"'610000 - Est. Camb. Patrimonio'!$M$38","v":"ifrs-full:ReserveOfChangeInValueOfTimeValueOfOptionsMember"}]
["",null,{"$f":"'610000 - Est. Camb. Patrimonio'!$D$57","v":"Patrimonio al final del periodo"},{"$f":"'610000 - Est. Camb. Patrimonio'!$C$57","v":"co-svsp-core_2017-12-31:EquityEndOfPeriod"},0,"peso",{"$f":"'610000 - Est. Camb. Patrimonio'!$M$57","v":0},800001965,"http://www.xbrl.org/scheme/companyName",{"$f":"Periodos!$D$3","v":"2016-01-01"},{"$f":"Periodos!$D$4","v":"2016-12-31"},{"$f":"'610000 - Est. Camb. Patrimonio'!$D$39","v":"ifrs-full:ComponentsOfEquityAxis"},{"$f":"'610000 - Est. Camb. Patrimonio'!$M$38","v":"ifrs-full:ReserveOfChangeInValueOfTimeValueOfOptionsMember"}]
["/*",null,"--10--"]
["/*",null,{"$f":"'610000 - Est. Camb. Patrimonio'!$D$40","v":"Estado de cambios en el patrimonio [resumen]"},{"$f":"'610000 - Est. Camb. Patrimonio'!$C$40","v":"ifrs-full:StatementOfChangesInEquityAbstract"}]
["/*",null,{"$f":"'610000 - Est. Camb. Patrimonio'!$D$41","v":"Estado de cambios en el patrimonio [partidas de los estados financieros]"},{"$f":"'610000 - Est. Camb. Patrimonio'!$C$41","v":"ifrs-full:StatementOfChangesInEquityLineItems"}]
["/*",null,{"$f":"'610000 - Est. Camb. Patrimonio'!$D$42","v":"Patrimonio al comienzo del periodo"},{"$f":"'610000 - Est. Camb. Patrimonio'!$C$42","v":"co-svsp-core_2017-12-31:EquityBeginningOfPeriod"}]
["/*",null,{"$f":"'610000 - Est. Camb. Patrimonio'!$D$43","v":"Cambios en el patrimonio [resumen]"},{"$f":"'610000 - Est. Camb. Patrimonio'!$C$43","v":"ifrs-full:ChangesInEquityAbstract"}]
["/*",null,{"$f":"'610000 - Est. Camb. Patrimonio'!$D$44","v":"Resultado integral [resumen]"},{"$f":"'610000 - Est. Camb. Patrimonio'!$C$44","v":"ifrs-full:ComprehensiveIncomeAbstract"}]
["/*",null,{"$f":"'610000 - Est. Camb. Patrimonio'!$D$45","v":"Ganancia (pérdida)"},{"$f":"'610000 - Est. Camb. Patrimonio'!$C$45","v":"co-svsp-core_2017-12-31:ProfitLoss"}]
["/*",null,{"$f":"'610000 - Est. Camb. Patrimonio'!$D$46","v":"Otro resultado integral"},{"$f":"'610000 - Est. Camb. Patrimonio'!$C$46","v":"co-svsp-core_2017-12-31:OtherComprehensiveIncome"}]
[{"$f":"IF(G1121=\"\",\"/*\",\"\")","v":""},null,{"$f":"'610000 - Est. Camb. Patrimonio'!$D$47","v":"Resultado integral total"},{"$f":"'610000 - Est. Camb. Patrimonio'!$C$47","v":"co-svsp-core_2017-12-31:ComprehensiveIncome"},0,"peso",{"$f":"'610000 - Est. Camb. Patrimonio'!$N$47","v":0},800001965,"http://www.xbrl.org/scheme/companyName",{"$f":"Periodos!$D$3","v":"2016-01-01"},{"$f":"Periodos!$D$4","v":"2016-12-31"},{"$f":"'610000 - Est. Camb. Patrimonio'!$D$39","v":"ifrs-full:ComponentsOfEquityAxis"},{"$f":"'610000 - Est. Camb. Patrimonio'!$N$38","v":"ifrs-full:ReserveOfChangeInValueOfForwardElementsOfForwardContractsMember"}]
["/*",null,{"$f":"'610000 - Est. Camb. Patrimonio'!$D$48","v":"Emisión de patrimonio"},{"$f":"'610000 - Est. Camb. Patrimonio'!$C$48","v":"ifrs-full:IssueOfEquity"}]
["/*",null,{"$f":"'610000 - Est. Camb. Patrimonio'!$D$49","v":"Dividendos reconocidos como distribuciones a los propietarios"},{"$f":"'610000 - Est. Camb. Patrimonio'!$C$49","v":"ifrs-full:DividendsPaid"}]
["/*",null,{"$f":"'610000 - Est. Camb. Patrimonio'!$D$50","v":"Incrementos por otras aportaciones de los propietarios, patrimonio"},{"$f":"'610000 - Est. Camb. Patrimonio'!$C$50","v":"ifrs-full:IncreaseDecreaseThroughOtherContributionsByOwners"}]
["/*",null,{"$f":"'610000 - Est. Camb. Patrimonio'!$D$51","v":"Disminución por otras distribuciones a los propietarios, patrimonio"},{"$f":"'610000 - Est. Camb. Patrimonio'!$C$51","v":"ifrs-full:IncreaseDecreaseThroughOtherDistributionsToOwners"}]
["/*",null,{"$f":"'610000 - Est. Camb. Patrimonio'!$D$52","v":"Incrementos (disminuciones) por otros cambios, patrimonio"},{"$f":"'610000 - Est. Camb. Patrimonio'!$C$52","v":"ifrs-full:IncreaseDecreaseThroughTransfersAndOtherChangesEquity"}]
["/*",null,{"$f":"'610000 - Est. Camb. Patrimonio'!$D$53","v":"Incrementos (disminuciones) por transacciones con acciones propias, patrimonio"},{"$f":"'610000 - Est. Camb. Patrimonio'!$C$53","v":"ifrs-full:IncreaseDecreaseThroughTreasuryShareTransactions"}]
["/*",null,{"$f":"'610000 - Est. Camb. Patrimonio'!$D$54","v":"Incrementos (disminuciones) por cambios las participaciones en la propiedad de subsidiarias que no dan lugar a pérdida de control, patrimonio"},{"$f":"'610000 - Est. Camb. Patrimonio'!$C$54","v":"ifrs-full:IncreaseDecreaseThroughChangesInOwnershipInterestsInSubsidiariesThatDoNotResultInLossOfControl"}]
["/*",null,{"$f":"'610000 - Est. Camb. Patrimonio'!$D$55","v":"Incrementos (disminuciones) por transacciones con pagos basados en acciones, patrimonio"},{"$f":"'610000 - Est. Camb. Patrimonio'!$C$55","v":"ifrs-full:IncreaseDecreaseThroughSharebasedPaymentTransactions"}]
["",null,{"$f":"'610000 - Est. Camb. Patrimonio'!$D$56","v":"Total incremento (disminución) en el patrimonio"},{"$f":"'610000 - Est. Camb. Patrimonio'!$C$56","v":"ifrs-full:ChangesInEquity"},0,"peso",{"$f":"'610000 - Est. Camb. Patrimonio'!$N$56","v":0},800001965,"http://www.xbrl.org/scheme/companyName",{"$f":"Periodos!$D$3","v":"2016-01-01"},{"$f":"Periodos!$D$4","v":"2016-12-31"},{"$f":"'610000 - Est. Camb. Patrimonio'!$D$39","v":"ifrs-full:ComponentsOfEquityAxis"},{"$f":"'610000 - Est. Camb. Patrimonio'!$N$38","v":"ifrs-full:ReserveOfChangeInValueOfForwardElementsOfForwardContractsMember"}]
["",null,{"$f":"'610000 - Est. Camb. Patrimonio'!$D$57","v":"Patrimonio al final del periodo"},{"$f":"'610000 - Est. Camb. Patrimonio'!$C$57","v":"co-svsp-core_2017-12-31:EquityEndOfPeriod"},0,"peso",{"$f":"'610000 - Est. Camb. Patrimonio'!$N$57","v":0},800001965,"http://www.xbrl.org/scheme/companyName",{"$f":"Periodos!$D$3","v":"2016-01-01"},{"$f":"Periodos!$D$4","v":"2016-12-31"},{"$f":"'610000 - Est. Camb. Patrimonio'!$D$39","v":"ifrs-full:ComponentsOfEquityAxis"},{"$f":"'610000 - Est. Camb. Patrimonio'!$N$38","v":"ifrs-full:ReserveOfChangeInValueOfForwardElementsOfForwardContractsMember"}]
["/*",null,"--11--"]
["/*",null,{"$f":"'610000 - Est. Camb. Patrimonio'!$D$40","v":"Estado de cambios en el patrimonio [resumen]"},{"$f":"'610000 - Est. Camb. Patrimonio'!$C$40","v":"ifrs-full:StatementOfChangesInEquityAbstract"}]
["/*",null,{"$f":"'610000 - Est. Camb. Patrimonio'!$D$41","v":"Estado de cambios en el patrimonio [partidas de los estados financieros]"},{"$f":"'610000 - Est. Camb. Patrimonio'!$C$41","v":"ifrs-full:StatementOfChangesInEquityLineItems"}]
["/*",null,{"$f":"'610000 - Est. Camb. Patrimonio'!$D$42","v":"Patrimonio al comienzo del periodo"},{"$f":"'610000 - Est. Camb. Patrimonio'!$C$42","v":"co-svsp-core_2017-12-31:EquityBeginningOfPeriod"}]
["/*",null,{"$f":"'610000 - Est. Camb. Patrimonio'!$D$43","v":"Cambios en el patrimonio [resumen]"},{"$f":"'610000 - Est. Camb. Patrimonio'!$C$43","v":"ifrs-full:ChangesInEquityAbstract"}]
["/*",null,{"$f":"'610000 - Est. Camb. Patrimonio'!$D$44","v":"Resultado integral [resumen]"},{"$f":"'610000 - Est. Camb. Patrimonio'!$C$44","v":"ifrs-full:ComprehensiveIncomeAbstract"}]
["/*",null,{"$f":"'610000 - Est. Camb. Patrimonio'!$D$45","v":"Ganancia (pérdida)"},{"$f":"'610000 - Est. Camb. Patrimonio'!$C$45","v":"co-svsp-core_2017-12-31:ProfitLoss"}]
["/*",null,{"$f":"'610000 - Est. Camb. Patrimonio'!$D$46","v":"Otro resultado integral"},{"$f":"'610000 - Est. Camb. Patrimonio'!$C$46","v":"co-svsp-core_2017-12-31:OtherComprehensiveIncome"}]
["",null,{"$f":"'610000 - Est. Camb. Patrimonio'!$D$47","v":"Resultado integral total"},{"$f":"'610000 - Est. Camb. Patrimonio'!$C$47","v":"co-svsp-core_2017-12-31:ComprehensiveIncome"},0,"peso",{"$f":"'610000 - Est. Camb. Patrimonio'!$O$47","v":0},800001965,"http://www.xbrl.org/scheme/companyName",{"$f":"Periodos!$D$3","v":"2016-01-01"},{"$f":"Periodos!$D$4","v":"2016-12-31"},{"$f":"'610000 - Est. Camb. Patrimonio'!$D$39","v":"ifrs-full:ComponentsOfEquityAxis"},{"$f":"'610000 - Est. Camb. Patrimonio'!$O$38","v":"ifrs-full:ReserveOfGainsAndLossesOnFinancialAssetsMeasuredAtFairValueThroughOtherComprehensiveIncomeMember"}]
["/*",null,{"$f":"'610000 - Est. Camb. Patrimonio'!$D$48","v":"Emisión de patrimonio"},{"$f":"'610000 - Est. Camb. Patrimonio'!$C$48","v":"ifrs-full:IssueOfEquity"}]
["/*",null,{"$f":"'610000 - Est. Camb. Patrimonio'!$D$49","v":"Dividendos reconocidos como distribuciones a los propietarios"},{"$f":"'610000 - Est. Camb. Patrimonio'!$C$49","v":"ifrs-full:DividendsPaid"}]
["/*",null,{"$f":"'610000 - Est. Camb. Patrimonio'!$D$50","v":"Incrementos por otras aportaciones de los propietarios, patrimonio"},{"$f":"'610000 - Est. Camb. Patrimonio'!$C$50","v":"ifrs-full:IncreaseDecreaseThroughOtherContributionsByOwners"}]
["/*",null,{"$f":"'610000 - Est. Camb. Patrimonio'!$D$51","v":"Disminución por otras distribuciones a los propietarios, patrimonio"},{"$f":"'610000 - Est. Camb. Patrimonio'!$C$51","v":"ifrs-full:IncreaseDecreaseThroughOtherDistributionsToOwners"}]
["/*",null,{"$f":"'610000 - Est. Camb. Patrimonio'!$D$52","v":"Incrementos (disminuciones) por otros cambios, patrimonio"},{"$f":"'610000 - Est. Camb. Patrimonio'!$C$52","v":"ifrs-full:IncreaseDecreaseThroughTransfersAndOtherChangesEquity"}]
["/*",null,{"$f":"'610000 - Est. Camb. Patrimonio'!$D$53","v":"Incrementos (disminuciones) por transacciones con acciones propias, patrimonio"},{"$f":"'610000 - Est. Camb. Patrimonio'!$C$53","v":"ifrs-full:IncreaseDecreaseThroughTreasuryShareTransactions"}]
["/*",null,{"$f":"'610000 - Est. Camb. Patrimonio'!$D$54","v":"Incrementos (disminuciones) por cambios las participaciones en la propiedad de subsidiarias que no dan lugar a pérdida de control, patrimonio"},{"$f":"'610000 - Est. Camb. Patrimonio'!$C$54","v":"ifrs-full:IncreaseDecreaseThroughChangesInOwnershipInterestsInSubsidiariesThatDoNotResultInLossOfControl"}]
["/*",null,{"$f":"'610000 - Est. Camb. Patrimonio'!$D$55","v":"Incrementos (disminuciones) por transacciones con pagos basados en acciones, patrimonio"},{"$f":"'610000 - Est. Camb. Patrimonio'!$C$55","v":"ifrs-full:IncreaseDecreaseThroughSharebasedPaymentTransactions"}]
["",null,{"$f":"'610000 - Est. Camb. Patrimonio'!$D$56","v":"Total incremento (disminución) en el patrimonio"},{"$f":"'610000 - Est. Camb. Patrimonio'!$C$56","v":"ifrs-full:ChangesInEquity"},0,"peso",{"$f":"'610000 - Est. Camb. Patrimonio'!$O$56","v":0},800001965,"http://www.xbrl.org/scheme/companyName",{"$f":"Periodos!$D$3","v":"2016-01-01"},{"$f":"Periodos!$D$4","v":"2016-12-31"},{"$f":"'610000 - Est. Camb. Patrimonio'!$D$39","v":"ifrs-full:ComponentsOfEquityAxis"},{"$f":"'610000 - Est. Camb. Patrimonio'!$O$38","v":"ifrs-full:ReserveOfGainsAndLossesOnFinancialAssetsMeasuredAtFairValueThroughOtherComprehensiveIncomeMember"}]
["",null,{"$f":"'610000 - Est. Camb. Patrimonio'!$D$57","v":"Patrimonio al final del periodo"},{"$f":"'610000 - Est. Camb. Patrimonio'!$C$57","v":"co-svsp-core_2017-12-31:EquityEndOfPeriod"},0,"peso",{"$f":"'610000 - Est. Camb. Patrimonio'!$O$57","v":0},800001965,"http://www.xbrl.org/scheme/companyName",{"$f":"Periodos!$D$3","v":"2016-01-01"},{"$f":"Periodos!$D$4","v":"2016-12-31"},{"$f":"'610000 - Est. Camb. Patrimonio'!$D$39","v":"ifrs-full:ComponentsOfEquityAxis"},{"$f":"'610000 - Est. Camb. Patrimonio'!$O$38","v":"ifrs-full:ReserveOfGainsAndLossesOnFinancialAssetsMeasuredAtFairValueThroughOtherComprehensiveIncomeMember"}]
["/*",null,"--12--"]
["/*",null,{"$f":"'610000 - Est. Camb. Patrimonio'!$D$40","v":"Estado de cambios en el patrimonio [resumen]"},{"$f":"'610000 - Est. Camb. Patrimonio'!$C$40","v":"ifrs-full:StatementOfChangesInEquityAbstract"}]
["/*",null,{"$f":"'610000 - Est. Camb. Patrimonio'!$D$41","v":"Estado de cambios en el patrimonio [partidas de los estados financieros]"},{"$f":"'610000 - Est. Camb. Patrimonio'!$C$41","v":"ifrs-full:StatementOfChangesInEquityLineItems"}]
["/*",null,{"$f":"'610000 - Est. Camb. Patrimonio'!$D$42","v":"Patrimonio al comienzo del periodo"},{"$f":"'610000 - Est. Camb. Patrimonio'!$C$42","v":"co-svsp-core_2017-12-31:EquityBeginningOfPeriod"}]
["/*",null,{"$f":"'610000 - Est. Camb. Patrimonio'!$D$43","v":"Cambios en el patrimonio [resumen]"},{"$f":"'610000 - Est. Camb. Patrimonio'!$C$43","v":"ifrs-full:ChangesInEquityAbstract"}]
["/*",null,{"$f":"'610000 - Est. Camb. Patrimonio'!$D$44","v":"Resultado integral [resumen]"},{"$f":"'610000 - Est. Camb. Patrimonio'!$C$44","v":"ifrs-full:ComprehensiveIncomeAbstract"}]
["/*",null,{"$f":"'610000 - Est. Camb. Patrimonio'!$D$45","v":"Ganancia (pérdida)"},{"$f":"'610000 - Est. Camb. Patrimonio'!$C$45","v":"co-svsp-core_2017-12-31:ProfitLoss"}]
["/*",null,{"$f":"'610000 - Est. Camb. Patrimonio'!$D$46","v":"Otro resultado integral"},{"$f":"'610000 - Est. Camb. Patrimonio'!$C$46","v":"co-svsp-core_2017-12-31:OtherComprehensiveIncome"}]
["",null,{"$f":"'610000 - Est. Camb. Patrimonio'!$D$47","v":"Resultado integral total"},{"$f":"'610000 - Est. Camb. Patrimonio'!$C$47","v":"co-svsp-core_2017-12-31:ComprehensiveIncome"},0,"peso",{"$f":"'610000 - Est. Camb. Patrimonio'!$P$47","v":0},800001965,"http://www.xbrl.org/scheme/companyName",{"$f":"Periodos!$D$3","v":"2016-01-01"},{"$f":"Periodos!$D$4","v":"2016-12-31"},{"$f":"'610000 - Est. Camb. Patrimonio'!$D$39","v":"ifrs-full:ComponentsOfEquityAxis"},{"$f":"'610000 - Est. Camb. Patrimonio'!$P$38","v":"ifrs-full:ReserveOfSharebasedPaymentsMember"}]
["/*",null,{"$f":"'610000 - Est. Camb. Patrimonio'!$D$48","v":"Emisión de patrimonio"},{"$f":"'610000 - Est. Camb. Patrimonio'!$C$48","v":"ifrs-full:IssueOfEquity"}]
["/*",null,{"$f":"'610000 - Est. Camb. Patrimonio'!$D$49","v":"Dividendos reconocidos como distribuciones a los propietarios"},{"$f":"'610000 - Est. Camb. Patrimonio'!$C$49","v":"ifrs-full:DividendsPaid"}]
["/*",null,{"$f":"'610000 - Est. Camb. Patrimonio'!$D$50","v":"Incrementos por otras aportaciones de los propietarios, patrimonio"},{"$f":"'610000 - Est. Camb. Patrimonio'!$C$50","v":"ifrs-full:IncreaseDecreaseThroughOtherContributionsByOwners"}]
["/*",null,{"$f":"'610000 - Est. Camb. Patrimonio'!$D$51","v":"Disminución por otras distribuciones a los propietarios, patrimonio"},{"$f":"'610000 - Est. Camb. Patrimonio'!$C$51","v":"ifrs-full:IncreaseDecreaseThroughOtherDistributionsToOwners"}]
["/*",null,{"$f":"'610000 - Est. Camb. Patrimonio'!$D$52","v":"Incrementos (disminuciones) por otros cambios, patrimonio"},{"$f":"'610000 - Est. Camb. Patrimonio'!$C$52","v":"ifrs-full:IncreaseDecreaseThroughTransfersAndOtherChangesEquity"}]
["/*",null,{"$f":"'610000 - Est. Camb. Patrimonio'!$D$53","v":"Incrementos (disminuciones) por transacciones con acciones propias, patrimonio"},{"$f":"'610000 - Est. Camb. Patrimonio'!$C$53","v":"ifrs-full:IncreaseDecreaseThroughTreasuryShareTransactions"}]
["/*",null,{"$f":"'610000 - Est. Camb. Patrimonio'!$D$54","v":"Incrementos (disminuciones) por cambios las participaciones en la propiedad de subsidiarias que no dan lugar a pérdida de control, patrimonio"},{"$f":"'610000 - Est. Camb. Patrimonio'!$C$54","v":"ifrs-full:IncreaseDecreaseThroughChangesInOwnershipInterestsInSubsidiariesThatDoNotResultInLossOfControl"}]
["/*",null,{"$f":"'610000 - Est. Camb. Patrimonio'!$D$55","v":"Incrementos (disminuciones) por transacciones con pagos basados en acciones, patrimonio"},{"$f":"'610000 - Est. Camb. Patrimonio'!$C$55","v":"ifrs-full:IncreaseDecreaseThroughSharebasedPaymentTransactions"}]
["",null,{"$f":"'610000 - Est. Camb. Patrimonio'!$D$56","v":"Total incremento (disminución) en el patrimonio"},{"$f":"'610000 - Est. Camb. Patrimonio'!$C$56","v":"ifrs-full:ChangesInEquity"},0,"peso",{"$f":"'610000 - Est. Camb. Patrimonio'!$P$56","v":0},800001965,"http://www.xbrl.org/scheme/companyName",{"$f":"Periodos!$D$3","v":"2016-01-01"},{"$f":"Periodos!$D$4","v":"2016-12-31"},{"$f":"'610000 - Est. Camb. Patrimonio'!$D$39","v":"ifrs-full:ComponentsOfEquityAxis"},{"$f":"'610000 - Est. Camb. Patrimonio'!$P$38","v":"ifrs-full:ReserveOfSharebasedPaymentsMember"}]
["",null,{"$f":"'610000 - Est. Camb. Patrimonio'!$D$57","v":"Patrimonio al final del periodo"},{"$f":"'610000 - Est. Camb. Patrimonio'!$C$57","v":"co-svsp-core_2017-12-31:EquityEndOfPeriod"},0,"peso",{"$f":"'610000 - Est. Camb. Patrimonio'!$P$57","v":0},800001965,"http://www.xbrl.org/scheme/companyName",{"$f":"Periodos!$D$3","v":"2016-01-01"},{"$f":"Periodos!$D$4","v":"2016-12-31"},{"$f":"'610000 - Est. Camb. Patrimonio'!$D$39","v":"ifrs-full:ComponentsOfEquityAxis"},{"$f":"'610000 - Est. Camb. Patrimonio'!$P$38","v":"ifrs-full:ReserveOfSharebasedPaymentsMember"}]
["/*",null,"--13--"]
["/*",null,{"$f":"'610000 - Est. Camb. Patrimonio'!$D$40","v":"Estado de cambios en el patrimonio [resumen]"},{"$f":"'610000 - Est. Camb. Patrimonio'!$C$40","v":"ifrs-full:StatementOfChangesInEquityAbstract"}]
["/*",null,{"$f":"'610000 - Est. Camb. Patrimonio'!$D$41","v":"Estado de cambios en el patrimonio [partidas de los estados financieros]"},{"$f":"'610000 - Est. Camb. Patrimonio'!$C$41","v":"ifrs-full:StatementOfChangesInEquityLineItems"}]
["/*",null,{"$f":"'610000 - Est. Camb. Patrimonio'!$D$42","v":"Patrimonio al comienzo del periodo"},{"$f":"'610000 - Est. Camb. Patrimonio'!$C$42","v":"co-svsp-core_2017-12-31:EquityBeginningOfPeriod"}]
["/*",null,{"$f":"'610000 - Est. Camb. Patrimonio'!$D$43","v":"Cambios en el patrimonio [resumen]"},{"$f":"'610000 - Est. Camb. Patrimonio'!$C$43","v":"ifrs-full:ChangesInEquityAbstract"}]
["/*",null,{"$f":"'610000 - Est. Camb. Patrimonio'!$D$44","v":"Resultado integral [resumen]"},{"$f":"'610000 - Est. Camb. Patrimonio'!$C$44","v":"ifrs-full:ComprehensiveIncomeAbstract"}]
["/*",null,{"$f":"'610000 - Est. Camb. Patrimonio'!$D$45","v":"Ganancia (pérdida)"},{"$f":"'610000 - Est. Camb. Patrimonio'!$C$45","v":"co-svsp-core_2017-12-31:ProfitLoss"}]
["/*",null,{"$f":"'610000 - Est. Camb. Patrimonio'!$D$46","v":"Otro resultado integral"},{"$f":"'610000 - Est. Camb. Patrimonio'!$C$46","v":"co-svsp-core_2017-12-31:OtherComprehensiveIncome"}]
["",null,{"$f":"'610000 - Est. Camb. Patrimonio'!$D$47","v":"Resultado integral total"},{"$f":"'610000 - Est. Camb. Patrimonio'!$C$47","v":"co-svsp-core_2017-12-31:ComprehensiveIncome"},0,"peso",{"$f":"'610000 - Est. Camb. Patrimonio'!$Q$47","v":0},800001965,"http://www.xbrl.org/scheme/companyName",{"$f":"Periodos!$D$3","v":"2016-01-01"},{"$f":"Periodos!$D$4","v":"2016-12-31"},{"$f":"'610000 - Est. Camb. Patrimonio'!$D$39","v":"ifrs-full:ComponentsOfEquityAxis"},{"$f":"'610000 - Est. Camb. Patrimonio'!$Q$38","v":"ifrs-full:ReserveOfChangeInValueOfForeignCurrencyBasisSpreadsMember"}]
["/*",null,{"$f":"'610000 - Est. Camb. Patrimonio'!$D$48","v":"Emisión de patrimonio"},{"$f":"'610000 - Est. Camb. Patrimonio'!$C$48","v":"ifrs-full:IssueOfEquity"}]
["/*",null,{"$f":"'610000 - Est. Camb. Patrimonio'!$D$49","v":"Dividendos reconocidos como distribuciones a los propietarios"},{"$f":"'610000 - Est. Camb. Patrimonio'!$C$49","v":"ifrs-full:DividendsPaid"}]
["/*",null,{"$f":"'610000 - Est. Camb. Patrimonio'!$D$50","v":"Incrementos por otras aportaciones de los propietarios, patrimonio"},{"$f":"'610000 - Est. Camb. Patrimonio'!$C$50","v":"ifrs-full:IncreaseDecreaseThroughOtherContributionsByOwners"}]
["/*",null,{"$f":"'610000 - Est. Camb. Patrimonio'!$D$51","v":"Disminución por otras distribuciones a los propietarios, patrimonio"},{"$f":"'610000 - Est. Camb. Patrimonio'!$C$51","v":"ifrs-full:IncreaseDecreaseThroughOtherDistributionsToOwners"}]
["/*",null,{"$f":"'610000 - Est. Camb. Patrimonio'!$D$52","v":"Incrementos (disminuciones) por otros cambios, patrimonio"},{"$f":"'610000 - Est. Camb. Patrimonio'!$C$52","v":"ifrs-full:IncreaseDecreaseThroughTransfersAndOtherChangesEquity"}]
["/*",null,{"$f":"'610000 - Est. Camb. Patrimonio'!$D$53","v":"Incrementos (disminuciones) por transacciones con acciones propias, patrimonio"},{"$f":"'610000 - Est. Camb. Patrimonio'!$C$53","v":"ifrs-full:IncreaseDecreaseThroughTreasuryShareTransactions"}]
[{"$f":"IF(G1185=\"\",\"/*\",\"\")","v":"/*"},null,{"$f":"'610000 - Est. Camb. Patrimonio'!$D$54","v":"Incrementos (disminuciones) por cambios las participaciones en la propiedad de subsidiarias que no dan lugar a pérdida de control, patrimonio"},{"$f":"'610000 - Est. Camb. Patrimonio'!$C$54","v":"ifrs-full:IncreaseDecreaseThroughChangesInOwnershipInterestsInSubsidiariesThatDoNotResultInLossOfControl"}]
["/*",null,{"$f":"'610000 - Est. Camb. Patrimonio'!$D$55","v":"Incrementos (disminuciones) por transacciones con pagos basados en acciones, patrimonio"},{"$f":"'610000 - Est. Camb. Patrimonio'!$C$55","v":"ifrs-full:IncreaseDecreaseThroughSharebasedPaymentTransactions"}]
["",null,{"$f":"'610000 - Est. Camb. Patrimonio'!$D$56","v":"Total incremento (disminución) en el patrimonio"},{"$f":"'610000 - Est. Camb. Patrimonio'!$C$56","v":"ifrs-full:ChangesInEquity"},0,"peso",{"$f":"'610000 - Est. Camb. Patrimonio'!$Q$56","v":0},800001965,"http://www.xbrl.org/scheme/companyName",{"$f":"Periodos!$D$3","v":"2016-01-01"},{"$f":"Periodos!$D$4","v":"2016-12-31"},{"$f":"'610000 - Est. Camb. Patrimonio'!$D$39","v":"ifrs-full:ComponentsOfEquityAxis"},{"$f":"'610000 - Est. Camb. Patrimonio'!$Q$38","v":"ifrs-full:ReserveOfChangeInValueOfForeignCurrencyBasisSpreadsMember"}]
["",null,{"$f":"'610000 - Est. Camb. Patrimonio'!$D$57","v":"Patrimonio al final del periodo"},{"$f":"'610000 - Est. Camb. Patrimonio'!$C$57","v":"co-svsp-core_2017-12-31:EquityEndOfPeriod"},0,"peso",{"$f":"'610000 - Est. Camb. Patrimonio'!$Q$57","v":0},800001965,"http://www.xbrl.org/scheme/companyName",{"$f":"Periodos!$D$3","v":"2016-01-01"},{"$f":"Periodos!$D$4","v":"2016-12-31"},{"$f":"'610000 - Est. Camb. Patrimonio'!$D$39","v":"ifrs-full:ComponentsOfEquityAxis"},{"$f":"'610000 - Est. Camb. Patrimonio'!$Q$38","v":"ifrs-full:ReserveOfChangeInValueOfForeignCurrencyBasisSpreadsMember"}]
["/*",null,"--14--"]
["/*",null,{"$f":"'610000 - Est. Camb. Patrimonio'!$D$40","v":"Estado de cambios en el patrimonio [resumen]"},{"$f":"'610000 - Est. Camb. Patrimonio'!$C$40","v":"ifrs-full:StatementOfChangesInEquityAbstract"}]
["/*",null,{"$f":"'610000 - Est. Camb. Patrimonio'!$D$41","v":"Estado de cambios en el patrimonio [partidas de los estados financieros]"},{"$f":"'610000 - Est. Camb. Patrimonio'!$C$41","v":"ifrs-full:StatementOfChangesInEquityLineItems"}]
["/*",null,{"$f":"'610000 - Est. Camb. Patrimonio'!$D$42","v":"Patrimonio al comienzo del periodo"},{"$f":"'610000 - Est. Camb. Patrimonio'!$C$42","v":"co-svsp-core_2017-12-31:EquityBeginningOfPeriod"}]
["/*",null,{"$f":"'610000 - Est. Camb. Patrimonio'!$D$43","v":"Cambios en el patrimonio [resumen]"},{"$f":"'610000 - Est. Camb. Patrimonio'!$C$43","v":"ifrs-full:ChangesInEquityAbstract"}]
["/*",null,{"$f":"'610000 - Est. Camb. Patrimonio'!$D$44","v":"Resultado integral [resumen]"},{"$f":"'610000 - Est. Camb. Patrimonio'!$C$44","v":"ifrs-full:ComprehensiveIncomeAbstract"}]
["/*",null,{"$f":"'610000 - Est. Camb. Patrimonio'!$D$45","v":"Ganancia (pérdida)"},{"$f":"'610000 - Est. Camb. Patrimonio'!$C$45","v":"co-svsp-core_2017-12-31:ProfitLoss"}]
["/*",null,{"$f":"'610000 - Est. Camb. Patrimonio'!$D$46","v":"Otro resultado integral"},{"$f":"'610000 - Est. Camb. Patrimonio'!$C$46","v":"co-svsp-core_2017-12-31:OtherComprehensiveIncome"}]
["",null,{"$f":"'610000 - Est. Camb. Patrimonio'!$D$47","v":"Resultado integral total"},{"$f":"'610000 - Est. Camb. Patrimonio'!$C$47","v":"co-svsp-core_2017-12-31:ComprehensiveIncome"},0,"peso",{"$f":"'610000 - Est. Camb. Patrimonio'!$R$47","v":0},800001965,"http://www.xbrl.org/scheme/companyName",{"$f":"Periodos!$D$3","v":"2016-01-01"},{"$f":"Periodos!$D$4","v":"2016-12-31"},{"$f":"'610000 - Est. Camb. Patrimonio'!$D$39","v":"ifrs-full:ComponentsOfEquityAxis"},{"$f":"'610000 - Est. Camb. Patrimonio'!$R$38","v":"ifrs-full:ReserveOfRemeasurementsOfDefinedBenefitPlansMember"}]
["/*",null,{"$f":"'610000 - Est. Camb. Patrimonio'!$D$48","v":"Emisión de patrimonio"},{"$f":"'610000 - Est. Camb. Patrimonio'!$C$48","v":"ifrs-full:IssueOfEquity"}]
["/*",null,{"$f":"'610000 - Est. Camb. Patrimonio'!$D$49","v":"Dividendos reconocidos como distribuciones a los propietarios"},{"$f":"'610000 - Est. Camb. Patrimonio'!$C$49","v":"ifrs-full:DividendsPaid"}]
["/*",null,{"$f":"'610000 - Est. Camb. Patrimonio'!$D$50","v":"Incrementos por otras aportaciones de los propietarios, patrimonio"},{"$f":"'610000 - Est. Camb. Patrimonio'!$C$50","v":"ifrs-full:IncreaseDecreaseThroughOtherContributionsByOwners"}]
["/*",null,{"$f":"'610000 - Est. Camb. Patrimonio'!$D$51","v":"Disminución por otras distribuciones a los propietarios, patrimonio"},{"$f":"'610000 - Est. Camb. Patrimonio'!$C$51","v":"ifrs-full:IncreaseDecreaseThroughOtherDistributionsToOwners"}]
["/*",null,{"$f":"'610000 - Est. Camb. Patrimonio'!$D$52","v":"Incrementos (disminuciones) por otros cambios, patrimonio"},{"$f":"'610000 - Est. Camb. Patrimonio'!$C$52","v":"ifrs-full:IncreaseDecreaseThroughTransfersAndOtherChangesEquity"}]
["/*",null,{"$f":"'610000 - Est. Camb. Patrimonio'!$D$53","v":"Incrementos (disminuciones) por transacciones con acciones propias, patrimonio"},{"$f":"'610000 - Est. Camb. Patrimonio'!$C$53","v":"ifrs-full:IncreaseDecreaseThroughTreasuryShareTransactions"}]
["/*",null,{"$f":"'610000 - Est. Camb. Patrimonio'!$D$54","v":"Incrementos (disminuciones) por cambios las participaciones en la propiedad de subsidiarias que no dan lugar a pérdida de control, patrimonio"},{"$f":"'610000 - Est. Camb. Patrimonio'!$C$54","v":"ifrs-full:IncreaseDecreaseThroughChangesInOwnershipInterestsInSubsidiariesThatDoNotResultInLossOfControl"}]
["/*",null,{"$f":"'610000 - Est. Camb. Patrimonio'!$D$55","v":"Incrementos (disminuciones) por transacciones con pagos basados en acciones, patrimonio"},{"$f":"'610000 - Est. Camb. Patrimonio'!$C$55","v":"ifrs-full:IncreaseDecreaseThroughSharebasedPaymentTransactions"}]
["",null,{"$f":"'610000 - Est. Camb. Patrimonio'!$D$56","v":"Total incremento (disminución) en el patrimonio"},{"$f":"'610000 - Est. Camb. Patrimonio'!$C$56","v":"ifrs-full:ChangesInEquity"},0,"peso",{"$f":"'610000 - Est. Camb. Patrimonio'!$R$56","v":0},800001965,"http://www.xbrl.org/scheme/companyName",{"$f":"Periodos!$D$3","v":"2016-01-01"},{"$f":"Periodos!$D$4","v":"2016-12-31"},{"$f":"'610000 - Est. Camb. Patrimonio'!$D$39","v":"ifrs-full:ComponentsOfEquityAxis"},{"$f":"'610000 - Est. Camb. Patrimonio'!$R$38","v":"ifrs-full:ReserveOfRemeasurementsOfDefinedBenefitPlansMember"}]
["",null,{"$f":"'610000 - Est. Camb. Patrimonio'!$D$57","v":"Patrimonio al final del periodo"},{"$f":"'610000 - Est. Camb. Patrimonio'!$C$57","v":"co-svsp-core_2017-12-31:EquityEndOfPeriod"},0,"peso",{"$f":"'610000 - Est. Camb. Patrimonio'!$R$57","v":0},800001965,"http://www.xbrl.org/scheme/companyName",{"$f":"Periodos!$D$3","v":"2016-01-01"},{"$f":"Periodos!$D$4","v":"2016-12-31"},{"$f":"'610000 - Est. Camb. Patrimonio'!$D$39","v":"ifrs-full:ComponentsOfEquityAxis"},{"$f":"'610000 - Est. Camb. Patrimonio'!$R$38","v":"ifrs-full:ReserveOfRemeasurementsOfDefinedBenefitPlansMember"}]
["/*",null,"--15--"]
["/*",null,{"$f":"'610000 - Est. Camb. Patrimonio'!$D$40","v":"Estado de cambios en el patrimonio [resumen]"},{"$f":"'610000 - Est. Camb. Patrimonio'!$C$40","v":"ifrs-full:StatementOfChangesInEquityAbstract"}]
["/*",null,{"$f":"'610000 - Est. Camb. Patrimonio'!$D$41","v":"Estado de cambios en el patrimonio [partidas de los estados financieros]"},{"$f":"'610000 - Est. Camb. Patrimonio'!$C$41","v":"ifrs-full:StatementOfChangesInEquityLineItems"}]
["/*",null,{"$f":"'610000 - Est. Camb. Patrimonio'!$D$42","v":"Patrimonio al comienzo del periodo"},{"$f":"'610000 - Est. Camb. Patrimonio'!$C$42","v":"co-svsp-core_2017-12-31:EquityBeginningOfPeriod"}]
["/*",null,{"$f":"'610000 - Est. Camb. Patrimonio'!$D$43","v":"Cambios en el patrimonio [resumen]"},{"$f":"'610000 - Est. Camb. Patrimonio'!$C$43","v":"ifrs-full:ChangesInEquityAbstract"}]
["/*",null,{"$f":"'610000 - Est. Camb. Patrimonio'!$D$44","v":"Resultado integral [resumen]"},{"$f":"'610000 - Est. Camb. Patrimonio'!$C$44","v":"ifrs-full:ComprehensiveIncomeAbstract"}]
["/*",null,{"$f":"'610000 - Est. Camb. Patrimonio'!$D$45","v":"Ganancia (pérdida)"},{"$f":"'610000 - Est. Camb. Patrimonio'!$C$45","v":"co-svsp-core_2017-12-31:ProfitLoss"}]
["/*",null,{"$f":"'610000 - Est. Camb. Patrimonio'!$D$46","v":"Otro resultado integral"},{"$f":"'610000 - Est. Camb. Patrimonio'!$C$46","v":"co-svsp-core_2017-12-31:OtherComprehensiveIncome"}]
["",null,{"$f":"'610000 - Est. Camb. Patrimonio'!$D$47","v":"Resultado integral total"},{"$f":"'610000 - Est. Camb. Patrimonio'!$C$47","v":"co-svsp-core_2017-12-31:ComprehensiveIncome"},0,"peso",{"$f":"'610000 - Est. Camb. Patrimonio'!$S$47","v":0},800001965,"http://www.xbrl.org/scheme/companyName",{"$f":"Periodos!$D$3","v":"2016-01-01"},{"$f":"Periodos!$D$4","v":"2016-12-31"},{"$f":"'610000 - Est. Camb. Patrimonio'!$D$39","v":"ifrs-full:ComponentsOfEquityAxis"},{"$f":"'610000 - Est. Camb. Patrimonio'!$S$38","v":"ifrs-full:AmountRecognisedInOtherComprehensiveIncomeAndAccumulatedInEquityRelatingToNoncurrentAssetsOrDisposalGroupsHeldForSaleMember"}]
["/*",null,{"$f":"'610000 - Est. Camb. Patrimonio'!$D$48","v":"Emisión de patrimonio"},{"$f":"'610000 - Est. Camb. Patrimonio'!$C$48","v":"ifrs-full:IssueOfEquity"}]
["/*",null,{"$f":"'610000 - Est. Camb. Patrimonio'!$D$49","v":"Dividendos reconocidos como distribuciones a los propietarios"},{"$f":"'610000 - Est. Camb. Patrimonio'!$C$49","v":"ifrs-full:DividendsPaid"}]
["/*",null,{"$f":"'610000 - Est. Camb. Patrimonio'!$D$50","v":"Incrementos por otras aportaciones de los propietarios, patrimonio"},{"$f":"'610000 - Est. Camb. Patrimonio'!$C$50","v":"ifrs-full:IncreaseDecreaseThroughOtherContributionsByOwners"}]
["/*",null,{"$f":"'610000 - Est. Camb. Patrimonio'!$D$51","v":"Disminución por otras distribuciones a los propietarios, patrimonio"},{"$f":"'610000 - Est. Camb. Patrimonio'!$C$51","v":"ifrs-full:IncreaseDecreaseThroughOtherDistributionsToOwners"}]
["/*",null,{"$f":"'610000 - Est. Camb. Patrimonio'!$D$52","v":"Incrementos (disminuciones) por otros cambios, patrimonio"},{"$f":"'610000 - Est. Camb. Patrimonio'!$C$52","v":"ifrs-full:IncreaseDecreaseThroughTransfersAndOtherChangesEquity"}]
["/*",null,{"$f":"'610000 - Est. Camb. Patrimonio'!$D$53","v":"Incrementos (disminuciones) por transacciones con acciones propias, patrimonio"},{"$f":"'610000 - Est. Camb. Patrimonio'!$C$53","v":"ifrs-full:IncreaseDecreaseThroughTreasuryShareTransactions"}]
["/*",null,{"$f":"'610000 - Est. Camb. Patrimonio'!$D$54","v":"Incrementos (disminuciones) por cambios las participaciones en la propiedad de subsidiarias que no dan lugar a pérdida de control, patrimonio"},{"$f":"'610000 - Est. Camb. Patrimonio'!$C$54","v":"ifrs-full:IncreaseDecreaseThroughChangesInOwnershipInterestsInSubsidiariesThatDoNotResultInLossOfControl"}]
["/*",null,{"$f":"'610000 - Est. Camb. Patrimonio'!$D$55","v":"Incrementos (disminuciones) por transacciones con pagos basados en acciones, patrimonio"},{"$f":"'610000 - Est. Camb. Patrimonio'!$C$55","v":"ifrs-full:IncreaseDecreaseThroughSharebasedPaymentTransactions"}]
["",null,{"$f":"'610000 - Est. Camb. Patrimonio'!$D$56","v":"Total incremento (disminución) en el patrimonio"},{"$f":"'610000 - Est. Camb. Patrimonio'!$C$56","v":"ifrs-full:ChangesInEquity"},0,"peso",{"$f":"'610000 - Est. Camb. Patrimonio'!$S$56","v":0},800001965,"http://www.xbrl.org/scheme/companyName",{"$f":"Periodos!$D$3","v":"2016-01-01"},{"$f":"Periodos!$D$4","v":"2016-12-31"},{"$f":"'610000 - Est. Camb. Patrimonio'!$D$39","v":"ifrs-full:ComponentsOfEquityAxis"},{"$f":"'610000 - Est. Camb. Patrimonio'!$S$38","v":"ifrs-full:AmountRecognisedInOtherComprehensiveIncomeAndAccumulatedInEquityRelatingToNoncurrentAssetsOrDisposalGroupsHeldForSaleMember"}]
["",null,{"$f":"'610000 - Est. Camb. Patrimonio'!$D$57","v":"Patrimonio al final del periodo"},{"$f":"'610000 - Est. Camb. Patrimonio'!$C$57","v":"co-svsp-core_2017-12-31:EquityEndOfPeriod"},0,"peso",{"$f":"'610000 - Est. Camb. Patrimonio'!$S$57","v":0},800001965,"http://www.xbrl.org/scheme/companyName",{"$f":"Periodos!$D$3","v":"2016-01-01"},{"$f":"Periodos!$D$4","v":"2016-12-31"},{"$f":"'610000 - Est. Camb. Patrimonio'!$D$39","v":"ifrs-full:ComponentsOfEquityAxis"},{"$f":"'610000 - Est. Camb. Patrimonio'!$S$38","v":"ifrs-full:AmountRecognisedInOtherComprehensiveIncomeAndAccumulatedInEquityRelatingToNoncurrentAssetsOrDisposalGroupsHeldForSaleMember"}]
["/*",null,"--16--"]
["/*",null,{"$f":"'610000 - Est. Camb. Patrimonio'!$D$40","v":"Estado de cambios en el patrimonio [resumen]"},{"$f":"'610000 - Est. Camb. Patrimonio'!$C$40","v":"ifrs-full:StatementOfChangesInEquityAbstract"}]
["/*",null,{"$f":"'610000 - Est. Camb. Patrimonio'!$D$41","v":"Estado de cambios en el patrimonio [partidas de los estados financieros]"},{"$f":"'610000 - Est. Camb. Patrimonio'!$C$41","v":"ifrs-full:StatementOfChangesInEquityLineItems"}]
["/*",null,{"$f":"'610000 - Est. Camb. Patrimonio'!$D$42","v":"Patrimonio al comienzo del periodo"},{"$f":"'610000 - Est. Camb. Patrimonio'!$C$42","v":"co-svsp-core_2017-12-31:EquityBeginningOfPeriod"}]
["/*",null,{"$f":"'610000 - Est. Camb. Patrimonio'!$D$43","v":"Cambios en el patrimonio [resumen]"},{"$f":"'610000 - Est. Camb. Patrimonio'!$C$43","v":"ifrs-full:ChangesInEquityAbstract"}]
["/*",null,{"$f":"'610000 - Est. Camb. Patrimonio'!$D$44","v":"Resultado integral [resumen]"},{"$f":"'610000 - Est. Camb. Patrimonio'!$C$44","v":"ifrs-full:ComprehensiveIncomeAbstract"}]
["/*",null,{"$f":"'610000 - Est. Camb. Patrimonio'!$D$45","v":"Ganancia (pérdida)"},{"$f":"'610000 - Est. Camb. Patrimonio'!$C$45","v":"co-svsp-core_2017-12-31:ProfitLoss"}]
["/*",null,{"$f":"'610000 - Est. Camb. Patrimonio'!$D$46","v":"Otro resultado integral"},{"$f":"'610000 - Est. Camb. Patrimonio'!$C$46","v":"co-svsp-core_2017-12-31:OtherComprehensiveIncome"}]
["",null,{"$f":"'610000 - Est. Camb. Patrimonio'!$D$47","v":"Resultado integral total"},{"$f":"'610000 - Est. Camb. Patrimonio'!$C$47","v":"co-svsp-core_2017-12-31:ComprehensiveIncome"},0,"peso",{"$f":"'610000 - Est. Camb. Patrimonio'!$T$47","v":0},800001965,"http://www.xbrl.org/scheme/companyName",{"$f":"Periodos!$D$3","v":"2016-01-01"},{"$f":"Periodos!$D$4","v":"2016-12-31"},{"$f":"'610000 - Est. Camb. Patrimonio'!$D$39","v":"ifrs-full:ComponentsOfEquityAxis"},{"$f":"'610000 - Est. Camb. Patrimonio'!$T$38","v":"ifrs-full:ReserveOfGainsAndLossesFromInvestmentsInEquityInstrumentsMember"}]
["/*",null,{"$f":"'610000 - Est. Camb. Patrimonio'!$D$48","v":"Emisión de patrimonio"},{"$f":"'610000 - Est. Camb. Patrimonio'!$C$48","v":"ifrs-full:IssueOfEquity"}]
["/*",null,{"$f":"'610000 - Est. Camb. Patrimonio'!$D$49","v":"Dividendos reconocidos como distribuciones a los propietarios"},{"$f":"'610000 - Est. Camb. Patrimonio'!$C$49","v":"ifrs-full:DividendsPaid"}]
["/*",null,{"$f":"'610000 - Est. Camb. Patrimonio'!$D$50","v":"Incrementos por otras aportaciones de los propietarios, patrimonio"},{"$f":"'610000 - Est. Camb. Patrimonio'!$C$50","v":"ifrs-full:IncreaseDecreaseThroughOtherContributionsByOwners"}]
["/*",null,{"$f":"'610000 - Est. Camb. Patrimonio'!$D$51","v":"Disminución por otras distribuciones a los propietarios, patrimonio"},{"$f":"'610000 - Est. Camb. Patrimonio'!$C$51","v":"ifrs-full:IncreaseDecreaseThroughOtherDistributionsToOwners"}]
["/*",null,{"$f":"'610000 - Est. Camb. Patrimonio'!$D$52","v":"Incrementos (disminuciones) por otros cambios, patrimonio"},{"$f":"'610000 - Est. Camb. Patrimonio'!$C$52","v":"ifrs-full:IncreaseDecreaseThroughTransfersAndOtherChangesEquity"}]
["/*",null,{"$f":"'610000 - Est. Camb. Patrimonio'!$D$53","v":"Incrementos (disminuciones) por transacciones con acciones propias, patrimonio"},{"$f":"'610000 - Est. Camb. Patrimonio'!$C$53","v":"ifrs-full:IncreaseDecreaseThroughTreasuryShareTransactions"}]
["/*",null,{"$f":"'610000 - Est. Camb. Patrimonio'!$D$54","v":"Incrementos (disminuciones) por cambios las participaciones en la propiedad de subsidiarias que no dan lugar a pérdida de control, patrimonio"},{"$f":"'610000 - Est. Camb. Patrimonio'!$C$54","v":"ifrs-full:IncreaseDecreaseThroughChangesInOwnershipInterestsInSubsidiariesThatDoNotResultInLossOfControl"}]
["/*",null,{"$f":"'610000 - Est. Camb. Patrimonio'!$D$55","v":"Incrementos (disminuciones) por transacciones con pagos basados en acciones, patrimonio"},{"$f":"'610000 - Est. Camb. Patrimonio'!$C$55","v":"ifrs-full:IncreaseDecreaseThroughSharebasedPaymentTransactions"}]
["",null,{"$f":"'610000 - Est. Camb. Patrimonio'!$D$56","v":"Total incremento (disminución) en el patrimonio"},{"$f":"'610000 - Est. Camb. Patrimonio'!$C$56","v":"ifrs-full:ChangesInEquity"},0,"peso",{"$f":"'610000 - Est. Camb. Patrimonio'!$T$56","v":0},800001965,"http://www.xbrl.org/scheme/companyName",{"$f":"Periodos!$D$3","v":"2016-01-01"},{"$f":"Periodos!$D$4","v":"2016-12-31"},{"$f":"'610000 - Est. Camb. Patrimonio'!$D$39","v":"ifrs-full:ComponentsOfEquityAxis"},{"$f":"'610000 - Est. Camb. Patrimonio'!$T$38","v":"ifrs-full:ReserveOfGainsAndLossesFromInvestmentsInEquityInstrumentsMember"}]
["",null,{"$f":"'610000 - Est. Camb. Patrimonio'!$D$57","v":"Patrimonio al final del periodo"},{"$f":"'610000 - Est. Camb. Patrimonio'!$C$57","v":"co-svsp-core_2017-12-31:EquityEndOfPeriod"},0,"peso",{"$f":"'610000 - Est. Camb. Patrimonio'!$T$57","v":0},800001965,"http://www.xbrl.org/scheme/companyName",{"$f":"Periodos!$D$3","v":"2016-01-01"},{"$f":"Periodos!$D$4","v":"2016-12-31"},{"$f":"'610000 - Est. Camb. Patrimonio'!$D$39","v":"ifrs-full:ComponentsOfEquityAxis"},{"$f":"'610000 - Est. Camb. Patrimonio'!$T$38","v":"ifrs-full:ReserveOfGainsAndLossesFromInvestmentsInEquityInstrumentsMember"}]
["/*",null,"--17--"]
["/*",null,{"$f":"'610000 - Est. Camb. Patrimonio'!$D$40","v":"Estado de cambios en el patrimonio [resumen]"},{"$f":"'610000 - Est. Camb. Patrimonio'!$C$40","v":"ifrs-full:StatementOfChangesInEquityAbstract"}]
["/*",null,{"$f":"'610000 - Est. Camb. Patrimonio'!$D$41","v":"Estado de cambios en el patrimonio [partidas de los estados financieros]"},{"$f":"'610000 - Est. Camb. Patrimonio'!$C$41","v":"ifrs-full:StatementOfChangesInEquityLineItems"}]
[{"$f":"IF(G1249=\"\",\"/*\",\"\")","v":"/*"},null,{"$f":"'610000 - Est. Camb. Patrimonio'!$D$42","v":"Patrimonio al comienzo del periodo"},{"$f":"'610000 - Est. Camb. Patrimonio'!$C$42","v":"co-svsp-core_2017-12-31:EquityBeginningOfPeriod"}]
["/*",null,{"$f":"'610000 - Est. Camb. Patrimonio'!$D$43","v":"Cambios en el patrimonio [resumen]"},{"$f":"'610000 - Est. Camb. Patrimonio'!$C$43","v":"ifrs-full:ChangesInEquityAbstract"}]
["/*",null,{"$f":"'610000 - Est. Camb. Patrimonio'!$D$44","v":"Resultado integral [resumen]"},{"$f":"'610000 - Est. Camb. Patrimonio'!$C$44","v":"ifrs-full:ComprehensiveIncomeAbstract"}]
["/*",null,{"$f":"'610000 - Est. Camb. Patrimonio'!$D$45","v":"Ganancia (pérdida)"},{"$f":"'610000 - Est. Camb. Patrimonio'!$C$45","v":"co-svsp-core_2017-12-31:ProfitLoss"}]
["/*",null,{"$f":"'610000 - Est. Camb. Patrimonio'!$D$46","v":"Otro resultado integral"},{"$f":"'610000 - Est. Camb. Patrimonio'!$C$46","v":"co-svsp-core_2017-12-31:OtherComprehensiveIncome"}]
["",null,{"$f":"'610000 - Est. Camb. Patrimonio'!$D$47","v":"Resultado integral total"},{"$f":"'610000 - Est. Camb. Patrimonio'!$C$47","v":"co-svsp-core_2017-12-31:ComprehensiveIncome"},0,"peso",{"$f":"'610000 - Est. Camb. Patrimonio'!$U$47","v":0},800001965,"http://www.xbrl.org/scheme/companyName",{"$f":"Periodos!$D$3","v":"2016-01-01"},{"$f":"Periodos!$D$4","v":"2016-12-31"},{"$f":"'610000 - Est. Camb. Patrimonio'!$D$39","v":"ifrs-full:ComponentsOfEquityAxis"},{"$f":"'610000 - Est. Camb. Patrimonio'!$U$38","v":"ifrs-full:ReserveOfChangeInFairValueOfFinancialLiabilityAttributableToChangeInCreditRiskOfLiabilityMember"}]
["/*",null,{"$f":"'610000 - Est. Camb. Patrimonio'!$D$48","v":"Emisión de patrimonio"},{"$f":"'610000 - Est. Camb. Patrimonio'!$C$48","v":"ifrs-full:IssueOfEquity"}]
["/*",null,{"$f":"'610000 - Est. Camb. Patrimonio'!$D$49","v":"Dividendos reconocidos como distribuciones a los propietarios"},{"$f":"'610000 - Est. Camb. Patrimonio'!$C$49","v":"ifrs-full:DividendsPaid"}]
["/*",null,{"$f":"'610000 - Est. Camb. Patrimonio'!$D$50","v":"Incrementos por otras aportaciones de los propietarios, patrimonio"},{"$f":"'610000 - Est. Camb. Patrimonio'!$C$50","v":"ifrs-full:IncreaseDecreaseThroughOtherContributionsByOwners"}]
["/*",null,{"$f":"'610000 - Est. Camb. Patrimonio'!$D$51","v":"Disminución por otras distribuciones a los propietarios, patrimonio"},{"$f":"'610000 - Est. Camb. Patrimonio'!$C$51","v":"ifrs-full:IncreaseDecreaseThroughOtherDistributionsToOwners"}]
["/*",null,{"$f":"'610000 - Est. Camb. Patrimonio'!$D$52","v":"Incrementos (disminuciones) por otros cambios, patrimonio"},{"$f":"'610000 - Est. Camb. Patrimonio'!$C$52","v":"ifrs-full:IncreaseDecreaseThroughTransfersAndOtherChangesEquity"}]
["/*",null,{"$f":"'610000 - Est. Camb. Patrimonio'!$D$53","v":"Incrementos (disminuciones) por transacciones con acciones propias, patrimonio"},{"$f":"'610000 - Est. Camb. Patrimonio'!$C$53","v":"ifrs-full:IncreaseDecreaseThroughTreasuryShareTransactions"}]
["/*",null,{"$f":"'610000 - Est. Camb. Patrimonio'!$D$54","v":"Incrementos (disminuciones) por cambios las participaciones en la propiedad de subsidiarias que no dan lugar a pérdida de control, patrimonio"},{"$f":"'610000 - Est. Camb. Patrimonio'!$C$54","v":"ifrs-full:IncreaseDecreaseThroughChangesInOwnershipInterestsInSubsidiariesThatDoNotResultInLossOfControl"}]
["/*",null,{"$f":"'610000 - Est. Camb. Patrimonio'!$D$55","v":"Incrementos (disminuciones) por transacciones con pagos basados en acciones, patrimonio"},{"$f":"'610000 - Est. Camb. Patrimonio'!$C$55","v":"ifrs-full:IncreaseDecreaseThroughSharebasedPaymentTransactions"}]
["",null,{"$f":"'610000 - Est. Camb. Patrimonio'!$D$56","v":"Total incremento (disminución) en el patrimonio"},{"$f":"'610000 - Est. Camb. Patrimonio'!$C$56","v":"ifrs-full:ChangesInEquity"},0,"peso",{"$f":"'610000 - Est. Camb. Patrimonio'!$U$56","v":0},800001965,"http://www.xbrl.org/scheme/companyName",{"$f":"Periodos!$D$3","v":"2016-01-01"},{"$f":"Periodos!$D$4","v":"2016-12-31"},{"$f":"'610000 - Est. Camb. Patrimonio'!$D$39","v":"ifrs-full:ComponentsOfEquityAxis"},{"$f":"'610000 - Est. Camb. Patrimonio'!$U$38","v":"ifrs-full:ReserveOfChangeInFairValueOfFinancialLiabilityAttributableToChangeInCreditRiskOfLiabilityMember"}]
["",null,{"$f":"'610000 - Est. Camb. Patrimonio'!$D$57","v":"Patrimonio al final del periodo"},{"$f":"'610000 - Est. Camb. Patrimonio'!$C$57","v":"co-svsp-core_2017-12-31:EquityEndOfPeriod"},0,"peso",{"$f":"'610000 - Est. Camb. Patrimonio'!$U$57","v":0},800001965,"http://www.xbrl.org/scheme/companyName",{"$f":"Periodos!$D$3","v":"2016-01-01"},{"$f":"Periodos!$D$4","v":"2016-12-31"},{"$f":"'610000 - Est. Camb. Patrimonio'!$D$39","v":"ifrs-full:ComponentsOfEquityAxis"},{"$f":"'610000 - Est. Camb. Patrimonio'!$U$38","v":"ifrs-full:ReserveOfChangeInFairValueOfFinancialLiabilityAttributableToChangeInCreditRiskOfLiabilityMember"}]
["/*",null,"--18--"]
["/*",null,{"$f":"'610000 - Est. Camb. Patrimonio'!$D$40","v":"Estado de cambios en el patrimonio [resumen]"},{"$f":"'610000 - Est. Camb. Patrimonio'!$C$40","v":"ifrs-full:StatementOfChangesInEquityAbstract"}]
["/*",null,{"$f":"'610000 - Est. Camb. Patrimonio'!$D$41","v":"Estado de cambios en el patrimonio [partidas de los estados financieros]"},{"$f":"'610000 - Est. Camb. Patrimonio'!$C$41","v":"ifrs-full:StatementOfChangesInEquityLineItems"}]
["",null,{"$f":"'610000 - Est. Camb. Patrimonio'!$D$42","v":"Patrimonio al comienzo del periodo"},{"$f":"'610000 - Est. Camb. Patrimonio'!$C$42","v":"co-svsp-core_2017-12-31:EquityBeginningOfPeriod"},0,"peso",{"$f":"'610000 - Est. Camb. Patrimonio'!$V$42","v":0},800001965,"http://www.xbrl.org/scheme/companyName",{"$f":"Periodos!$D$3","v":"2016-01-01"},{"$f":"Periodos!$D$4","v":"2016-12-31"},{"$f":"'610000 - Est. Camb. Patrimonio'!$D$39","v":"ifrs-full:ComponentsOfEquityAxis"},{"$f":"'610000 - Est. Camb. Patrimonio'!$V$38","v":"ifrs-full:OtherReservesMember"}]
["/*",null,{"$f":"'610000 - Est. Camb. Patrimonio'!$D$43","v":"Cambios en el patrimonio [resumen]"},{"$f":"'610000 - Est. Camb. Patrimonio'!$C$43","v":"ifrs-full:ChangesInEquityAbstract"}]
["/*",null,{"$f":"'610000 - Est. Camb. Patrimonio'!$D$44","v":"Resultado integral [resumen]"},{"$f":"'610000 - Est. Camb. Patrimonio'!$C$44","v":"ifrs-full:ComprehensiveIncomeAbstract"}]
["",null,{"$f":"'610000 - Est. Camb. Patrimonio'!$D$45","v":"Ganancia (pérdida)"},{"$f":"'610000 - Est. Camb. Patrimonio'!$C$45","v":"co-svsp-core_2017-12-31:ProfitLoss"},0,"peso",{"$f":"'610000 - Est. Camb. Patrimonio'!$V$45","v":0},800001965,"http://www.xbrl.org/scheme/companyName",{"$f":"Periodos!$D$3","v":"2016-01-01"},{"$f":"Periodos!$D$4","v":"2016-12-31"},{"$f":"'610000 - Est. Camb. Patrimonio'!$D$39","v":"ifrs-full:ComponentsOfEquityAxis"},{"$f":"'610000 - Est. Camb. Patrimonio'!$V$38","v":"ifrs-full:OtherReservesMember"}]
["",null,{"$f":"'610000 - Est. Camb. Patrimonio'!$D$46","v":"Otro resultado integral"},{"$f":"'610000 - Est. Camb. Patrimonio'!$C$46","v":"co-svsp-core_2017-12-31:OtherComprehensiveIncome"},0,"peso",{"$f":"'610000 - Est. Camb. Patrimonio'!$V$46","v":0},800001965,"http://www.xbrl.org/scheme/companyName",{"$f":"Periodos!$D$3","v":"2016-01-01"},{"$f":"Periodos!$D$4","v":"2016-12-31"},{"$f":"'610000 - Est. Camb. Patrimonio'!$D$39","v":"ifrs-full:ComponentsOfEquityAxis"},{"$f":"'610000 - Est. Camb. Patrimonio'!$V$38","v":"ifrs-full:OtherReservesMember"}]
["",null,{"$f":"'610000 - Est. Camb. Patrimonio'!$D$47","v":"Resultado integral total"},{"$f":"'610000 - Est. Camb. Patrimonio'!$C$47","v":"co-svsp-core_2017-12-31:ComprehensiveIncome"},0,"peso",{"$f":"'610000 - Est. Camb. Patrimonio'!$V$47","v":0},800001965,"http://www.xbrl.org/scheme/companyName",{"$f":"Periodos!$D$3","v":"2016-01-01"},{"$f":"Periodos!$D$4","v":"2016-12-31"},{"$f":"'610000 - Est. Camb. Patrimonio'!$D$39","v":"ifrs-full:ComponentsOfEquityAxis"},{"$f":"'610000 - Est. Camb. Patrimonio'!$V$38","v":"ifrs-full:OtherReservesMember"}]
["",null,{"$f":"'610000 - Est. Camb. Patrimonio'!$D$48","v":"Emisión de patrimonio"},{"$f":"'610000 - Est. Camb. Patrimonio'!$C$48","v":"ifrs-full:IssueOfEquity"},0,"peso",{"$f":"'610000 - Est. Camb. Patrimonio'!$V$48","v":0},800001965,"http://www.xbrl.org/scheme/companyName",{"$f":"Periodos!$D$3","v":"2016-01-01"},{"$f":"Periodos!$D$4","v":"2016-12-31"},{"$f":"'610000 - Est. Camb. Patrimonio'!$D$39","v":"ifrs-full:ComponentsOfEquityAxis"},{"$f":"'610000 - Est. Camb. Patrimonio'!$V$38","v":"ifrs-full:OtherReservesMember"}]
["",null,{"$f":"'610000 - Est. Camb. Patrimonio'!$D$49","v":"Dividendos reconocidos como distribuciones a los propietarios"},{"$f":"'610000 - Est. Camb. Patrimonio'!$C$49","v":"ifrs-full:DividendsPaid"},0,"peso",{"$f":"'610000 - Est. Camb. Patrimonio'!$V$49","v":0},800001965,"http://www.xbrl.org/scheme/companyName",{"$f":"Periodos!$D$3","v":"2016-01-01"},{"$f":"Periodos!$D$4","v":"2016-12-31"},{"$f":"'610000 - Est. Camb. Patrimonio'!$D$39","v":"ifrs-full:ComponentsOfEquityAxis"},{"$f":"'610000 - Est. Camb. Patrimonio'!$V$38","v":"ifrs-full:OtherReservesMember"}]
["",null,{"$f":"'610000 - Est. Camb. Patrimonio'!$D$50","v":"Incrementos por otras aportaciones de los propietarios, patrimonio"},{"$f":"'610000 - Est. Camb. Patrimonio'!$C$50","v":"ifrs-full:IncreaseDecreaseThroughOtherContributionsByOwners"},0,"peso",{"$f":"'610000 - Est. Camb. Patrimonio'!$V$50","v":0},800001965,"http://www.xbrl.org/scheme/companyName",{"$f":"Periodos!$D$3","v":"2016-01-01"},{"$f":"Periodos!$D$4","v":"2016-12-31"},{"$f":"'610000 - Est. Camb. Patrimonio'!$D$39","v":"ifrs-full:ComponentsOfEquityAxis"},{"$f":"'610000 - Est. Camb. Patrimonio'!$V$38","v":"ifrs-full:OtherReservesMember"}]
["",null,{"$f":"'610000 - Est. Camb. Patrimonio'!$D$51","v":"Disminución por otras distribuciones a los propietarios, patrimonio"},{"$f":"'610000 - Est. Camb. Patrimonio'!$C$51","v":"ifrs-full:IncreaseDecreaseThroughOtherDistributionsToOwners"},0,"peso",{"$f":"'610000 - Est. Camb. Patrimonio'!$V$51","v":0},800001965,"http://www.xbrl.org/scheme/companyName",{"$f":"Periodos!$D$3","v":"2016-01-01"},{"$f":"Periodos!$D$4","v":"2016-12-31"},{"$f":"'610000 - Est. Camb. Patrimonio'!$D$39","v":"ifrs-full:ComponentsOfEquityAxis"},{"$f":"'610000 - Est. Camb. Patrimonio'!$V$38","v":"ifrs-full:OtherReservesMember"}]
["",null,{"$f":"'610000 - Est. Camb. Patrimonio'!$D$52","v":"Incrementos (disminuciones) por otros cambios, patrimonio"},{"$f":"'610000 - Est. Camb. Patrimonio'!$C$52","v":"ifrs-full:IncreaseDecreaseThroughTransfersAndOtherChangesEquity"},0,"peso",{"$f":"'610000 - Est. Camb. Patrimonio'!$V$52","v":0},800001965,"http://www.xbrl.org/scheme/companyName",{"$f":"Periodos!$D$3","v":"2016-01-01"},{"$f":"Periodos!$D$4","v":"2016-12-31"},{"$f":"'610000 - Est. Camb. Patrimonio'!$D$39","v":"ifrs-full:ComponentsOfEquityAxis"},{"$f":"'610000 - Est. Camb. Patrimonio'!$V$38","v":"ifrs-full:OtherReservesMember"}]
["",null,{"$f":"'610000 - Est. Camb. Patrimonio'!$D$53","v":"Incrementos (disminuciones) por transacciones con acciones propias, patrimonio"},{"$f":"'610000 - Est. Camb. Patrimonio'!$C$53","v":"ifrs-full:IncreaseDecreaseThroughTreasuryShareTransactions"},0,"peso",{"$f":"'610000 - Est. Camb. Patrimonio'!$V$53","v":0},800001965,"http://www.xbrl.org/scheme/companyName",{"$f":"Periodos!$D$3","v":"2016-01-01"},{"$f":"Periodos!$D$4","v":"2016-12-31"},{"$f":"'610000 - Est. Camb. Patrimonio'!$D$39","v":"ifrs-full:ComponentsOfEquityAxis"},{"$f":"'610000 - Est. Camb. Patrimonio'!$V$38","v":"ifrs-full:OtherReservesMember"}]
["",null,{"$f":"'610000 - Est. Camb. Patrimonio'!$D$54","v":"Incrementos (disminuciones) por cambios las participaciones en la propiedad de subsidiarias que no dan lugar a pérdida de control, patrimonio"},{"$f":"'610000 - Est. Camb. Patrimonio'!$C$54","v":"ifrs-full:IncreaseDecreaseThroughChangesInOwnershipInterestsInSubsidiariesThatDoNotResultInLossOfControl"},0,"peso",{"$f":"'610000 - Est. Camb. Patrimonio'!$V$54","v":0},800001965,"http://www.xbrl.org/scheme/companyName",{"$f":"Periodos!$D$3","v":"2016-01-01"},{"$f":"Periodos!$D$4","v":"2016-12-31"},{"$f":"'610000 - Est. Camb. Patrimonio'!$D$39","v":"ifrs-full:ComponentsOfEquityAxis"},{"$f":"'610000 - Est. Camb. Patrimonio'!$V$38","v":"ifrs-full:OtherReservesMember"}]
["",null,{"$f":"'610000 - Est. Camb. Patrimonio'!$D$55","v":"Incrementos (disminuciones) por transacciones con pagos basados en acciones, patrimonio"},{"$f":"'610000 - Est. Camb. Patrimonio'!$C$55","v":"ifrs-full:IncreaseDecreaseThroughSharebasedPaymentTransactions"},0,"peso",{"$f":"'610000 - Est. Camb. Patrimonio'!$V$55","v":0},800001965,"http://www.xbrl.org/scheme/companyName",{"$f":"Periodos!$D$3","v":"2016-01-01"},{"$f":"Periodos!$D$4","v":"2016-12-31"},{"$f":"'610000 - Est. Camb. Patrimonio'!$D$39","v":"ifrs-full:ComponentsOfEquityAxis"},{"$f":"'610000 - Est. Camb. Patrimonio'!$V$38","v":"ifrs-full:OtherReservesMember"}]
["",null,{"$f":"'610000 - Est. Camb. Patrimonio'!$D$56","v":"Total incremento (disminución) en el patrimonio"},{"$f":"'610000 - Est. Camb. Patrimonio'!$C$56","v":"ifrs-full:ChangesInEquity"},0,"peso",{"$f":"'610000 - Est. Camb. Patrimonio'!$V$56","v":0},800001965,"http://www.xbrl.org/scheme/companyName",{"$f":"Periodos!$D$3","v":"2016-01-01"},{"$f":"Periodos!$D$4","v":"2016-12-31"},{"$f":"'610000 - Est. Camb. Patrimonio'!$D$39","v":"ifrs-full:ComponentsOfEquityAxis"},{"$f":"'610000 - Est. Camb. Patrimonio'!$V$38","v":"ifrs-full:OtherReservesMember"}]
["",null,{"$f":"'610000 - Est. Camb. Patrimonio'!$D$57","v":"Patrimonio al final del periodo"},{"$f":"'610000 - Est. Camb. Patrimonio'!$C$57","v":"co-svsp-core_2017-12-31:EquityEndOfPeriod"},0,"peso",{"$f":"'610000 - Est. Camb. Patrimonio'!$V$57","v":0},800001965,"http://www.xbrl.org/scheme/companyName",{"$f":"Periodos!$D$3","v":"2016-01-01"},{"$f":"Periodos!$D$4","v":"2016-12-31"},{"$f":"'610000 - Est. Camb. Patrimonio'!$D$39","v":"ifrs-full:ComponentsOfEquityAxis"},{"$f":"'610000 - Est. Camb. Patrimonio'!$V$38","v":"ifrs-full:OtherReservesMember"}]
["/*",null,"--19--"]
["/*",null,{"$f":"'610000 - Est. Camb. Patrimonio'!$D$40","v":"Estado de cambios en el patrimonio [resumen]"},{"$f":"'610000 - Est. Camb. Patrimonio'!$C$40","v":"ifrs-full:StatementOfChangesInEquityAbstract"}]
["/*",null,{"$f":"'610000 - Est. Camb. Patrimonio'!$D$41","v":"Estado de cambios en el patrimonio [partidas de los estados financieros]"},{"$f":"'610000 - Est. Camb. Patrimonio'!$C$41","v":"ifrs-full:StatementOfChangesInEquityLineItems"}]
["/*",null,{"$f":"'610000 - Est. Camb. Patrimonio'!$D$42","v":"Patrimonio al comienzo del periodo"},{"$f":"'610000 - Est. Camb. Patrimonio'!$C$42","v":"co-svsp-core_2017-12-31:EquityBeginningOfPeriod"}]
["/*",null,{"$f":"'610000 - Est. Camb. Patrimonio'!$D$43","v":"Cambios en el patrimonio [resumen]"},{"$f":"'610000 - Est. Camb. Patrimonio'!$C$43","v":"ifrs-full:ChangesInEquityAbstract"}]
["/*",null,{"$f":"'610000 - Est. Camb. Patrimonio'!$D$44","v":"Resultado integral [resumen]"},{"$f":"'610000 - Est. Camb. Patrimonio'!$C$44","v":"ifrs-full:ComprehensiveIncomeAbstract"}]
["/*",null,{"$f":"'610000 - Est. Camb. Patrimonio'!$D$45","v":"Ganancia (pérdida)"},{"$f":"'610000 - Est. Camb. Patrimonio'!$C$45","v":"co-svsp-core_2017-12-31:ProfitLoss"}]
["/*",null,{"$f":"'610000 - Est. Camb. Patrimonio'!$D$46","v":"Otro resultado integral"},{"$f":"'610000 - Est. Camb. Patrimonio'!$C$46","v":"co-svsp-core_2017-12-31:OtherComprehensiveIncome"}]
["",null,{"$f":"'610000 - Est. Camb. Patrimonio'!$D$47","v":"Resultado integral total"},{"$f":"'610000 - Est. Camb. Patrimonio'!$C$47","v":"co-svsp-core_2017-12-31:ComprehensiveIncome"},0,"peso",{"$f":"'610000 - Est. Camb. Patrimonio'!$W$47","v":0},800001965,"http://www.xbrl.org/scheme/companyName",{"$f":"Periodos!$D$3","v":"2016-01-01"},{"$f":"Periodos!$D$4","v":"2016-12-31"},{"$f":"'610000 - Est. Camb. Patrimonio'!$D$39","v":"ifrs-full:ComponentsOfEquityAxis"},{"$f":"'610000 - Est. Camb. Patrimonio'!$W$38","v":"ifrs-full:RetainedEarningsMember"}]
["/*",null,{"$f":"'610000 - Est. Camb. Patrimonio'!$D$48","v":"Emisión de patrimonio"},{"$f":"'610000 - Est. Camb. Patrimonio'!$C$48","v":"ifrs-full:IssueOfEquity"}]
["/*",null,{"$f":"'610000 - Est. Camb. Patrimonio'!$D$49","v":"Dividendos reconocidos como distribuciones a los propietarios"},{"$f":"'610000 - Est. Camb. Patrimonio'!$C$49","v":"ifrs-full:DividendsPaid"}]
["/*",null,{"$f":"'610000 - Est. Camb. Patrimonio'!$D$50","v":"Incrementos por otras aportaciones de los propietarios, patrimonio"},{"$f":"'610000 - Est. Camb. Patrimonio'!$C$50","v":"ifrs-full:IncreaseDecreaseThroughOtherContributionsByOwners"}]
["/*",null,{"$f":"'610000 - Est. Camb. Patrimonio'!$D$51","v":"Disminución por otras distribuciones a los propietarios, patrimonio"},{"$f":"'610000 - Est. Camb. Patrimonio'!$C$51","v":"ifrs-full:IncreaseDecreaseThroughOtherDistributionsToOwners"}]
["/*",null,{"$f":"'610000 - Est. Camb. Patrimonio'!$D$52","v":"Incrementos (disminuciones) por otros cambios, patrimonio"},{"$f":"'610000 - Est. Camb. Patrimonio'!$C$52","v":"ifrs-full:IncreaseDecreaseThroughTransfersAndOtherChangesEquity"}]
["/*",null,{"$f":"'610000 - Est. Camb. Patrimonio'!$D$53","v":"Incrementos (disminuciones) por transacciones con acciones propias, patrimonio"},{"$f":"'610000 - Est. Camb. Patrimonio'!$C$53","v":"ifrs-full:IncreaseDecreaseThroughTreasuryShareTransactions"}]
["/*",null,{"$f":"'610000 - Est. Camb. Patrimonio'!$D$54","v":"Incrementos (disminuciones) por cambios las participaciones en la propiedad de subsidiarias que no dan lugar a pérdida de control, patrimonio"},{"$f":"'610000 - Est. Camb. Patrimonio'!$C$54","v":"ifrs-full:IncreaseDecreaseThroughChangesInOwnershipInterestsInSubsidiariesThatDoNotResultInLossOfControl"}]
["/*",null,{"$f":"'610000 - Est. Camb. Patrimonio'!$D$55","v":"Incrementos (disminuciones) por transacciones con pagos basados en acciones, patrimonio"},{"$f":"'610000 - Est. Camb. Patrimonio'!$C$55","v":"ifrs-full:IncreaseDecreaseThroughSharebasedPaymentTransactions"}]
["",null,{"$f":"'610000 - Est. Camb. Patrimonio'!$D$56","v":"Total incremento (disminución) en el patrimonio"},{"$f":"'610000 - Est. Camb. Patrimonio'!$C$56","v":"ifrs-full:ChangesInEquity"},0,"peso",{"$f":"'610000 - Est. Camb. Patrimonio'!$W$56","v":0},800001965,"http://www.xbrl.org/scheme/companyName",{"$f":"Periodos!$D$3","v":"2016-01-01"},{"$f":"Periodos!$D$4","v":"2016-12-31"},{"$f":"'610000 - Est. Camb. Patrimonio'!$D$39","v":"ifrs-full:ComponentsOfEquityAxis"},{"$f":"'610000 - Est. Camb. Patrimonio'!$W$38","v":"ifrs-full:RetainedEarningsMember"}]
["",null,{"$f":"'610000 - Est. Camb. Patrimonio'!$D$57","v":"Patrimonio al final del periodo"},{"$f":"'610000 - Est. Camb. Patrimonio'!$C$57","v":"co-svsp-core_2017-12-31:EquityEndOfPeriod"},0,"peso",{"$f":"'610000 - Est. Camb. Patrimonio'!$W$57","v":0},800001965,"http://www.xbrl.org/scheme/companyName",{"$f":"Periodos!$D$3","v":"2016-01-01"},{"$f":"Periodos!$D$4","v":"2016-12-31"},{"$f":"'610000 - Est. Camb. Patrimonio'!$D$39","v":"ifrs-full:ComponentsOfEquityAxis"},{"$f":"'610000 - Est. Camb. Patrimonio'!$W$38","v":"ifrs-full:RetainedEarningsMember"}]
["/*",null,"--20--"]
["/*",null,{"$f":"'610000 - Est. Camb. Patrimonio'!$D$40","v":"Estado de cambios en el patrimonio [resumen]"},{"$f":"'610000 - Est. Camb. Patrimonio'!$C$40","v":"ifrs-full:StatementOfChangesInEquityAbstract"}]
["/*",null,{"$f":"'610000 - Est. Camb. Patrimonio'!$D$41","v":"Estado de cambios en el patrimonio [partidas de los estados financieros]"},{"$f":"'610000 - Est. Camb. Patrimonio'!$C$41","v":"ifrs-full:StatementOfChangesInEquityLineItems"}]
["",null,{"$f":"'610000 - Est. Camb. Patrimonio'!$D$42","v":"Patrimonio al comienzo del periodo"},{"$f":"'610000 - Est. Camb. Patrimonio'!$C$42","v":"co-svsp-core_2017-12-31:EquityBeginningOfPeriod"},0,"peso",{"$f":"'610000 - Est. Camb. Patrimonio'!$X$42","v":0},800001965,"http://www.xbrl.org/scheme/companyName",{"$f":"Periodos!$D$3","v":"2016-01-01"},{"$f":"Periodos!$D$4","v":"2016-12-31"},{"$f":"'610000 - Est. Camb. Patrimonio'!$D$39","v":"ifrs-full:ComponentsOfEquityAxis"},{"$f":"'610000 - Est. Camb. Patrimonio'!$X$38","v":"ifrs-full:EquityMember"}]
["/*",null,{"$f":"'610000 - Est. Camb. Patrimonio'!$D$43","v":"Cambios en el patrimonio [resumen]"},{"$f":"'610000 - Est. Camb. Patrimonio'!$C$43","v":"ifrs-full:ChangesInEquityAbstract"}]
["/*",null,{"$f":"'610000 - Est. Camb. Patrimonio'!$D$44","v":"Resultado integral [resumen]"},{"$f":"'610000 - Est. Camb. Patrimonio'!$C$44","v":"ifrs-full:ComprehensiveIncomeAbstract"}]
["",null,{"$f":"'610000 - Est. Camb. Patrimonio'!$D$45","v":"Ganancia (pérdida)"},{"$f":"'610000 - Est. Camb. Patrimonio'!$C$45","v":"co-svsp-core_2017-12-31:ProfitLoss"},0,"peso",{"$f":"'610000 - Est. Camb. Patrimonio'!$X$45","v":0},800001965,"http://www.xbrl.org/scheme/companyName",{"$f":"Periodos!$D$3","v":"2016-01-01"},{"$f":"Periodos!$D$4","v":"2016-12-31"},{"$f":"'610000 - Est. Camb. Patrimonio'!$D$39","v":"ifrs-full:ComponentsOfEquityAxis"},{"$f":"'610000 - Est. Camb. Patrimonio'!$X$38","v":"ifrs-full:EquityMember"}]
["",null,{"$f":"'610000 - Est. Camb. Patrimonio'!$D$46","v":"Otro resultado integral"},{"$f":"'610000 - Est. Camb. Patrimonio'!$C$46","v":"co-svsp-core_2017-12-31:OtherComprehensiveIncome"},0,"peso",{"$f":"'610000 - Est. Camb. Patrimonio'!$X$46","v":0},800001965,"http://www.xbrl.org/scheme/companyName",{"$f":"Periodos!$D$3","v":"2016-01-01"},{"$f":"Periodos!$D$4","v":"2016-12-31"},{"$f":"'610000 - Est. Camb. Patrimonio'!$D$39","v":"ifrs-full:ComponentsOfEquityAxis"},{"$f":"'610000 - Est. Camb. Patrimonio'!$X$38","v":"ifrs-full:EquityMember"}]
["",null,{"$f":"'610000 - Est. Camb. Patrimonio'!$D$47","v":"Resultado integral total"},{"$f":"'610000 - Est. Camb. Patrimonio'!$C$47","v":"co-svsp-core_2017-12-31:ComprehensiveIncome"},0,"peso",{"$f":"'610000 - Est. Camb. Patrimonio'!$X$47","v":0},800001965,"http://www.xbrl.org/scheme/companyName",{"$f":"Periodos!$D$3","v":"2016-01-01"},{"$f":"Periodos!$D$4","v":"2016-12-31"},{"$f":"'610000 - Est. Camb. Patrimonio'!$D$39","v":"ifrs-full:ComponentsOfEquityAxis"},{"$f":"'610000 - Est. Camb. Patrimonio'!$X$38","v":"ifrs-full:EquityMember"}]
["",null,{"$f":"'610000 - Est. Camb. Patrimonio'!$D$48","v":"Emisión de patrimonio"},{"$f":"'610000 - Est. Camb. Patrimonio'!$C$48","v":"ifrs-full:IssueOfEquity"},0,"peso",{"$f":"'610000 - Est. Camb. Patrimonio'!$X$48","v":0},800001965,"http://www.xbrl.org/scheme/companyName",{"$f":"Periodos!$D$3","v":"2016-01-01"},{"$f":"Periodos!$D$4","v":"2016-12-31"},{"$f":"'610000 - Est. Camb. Patrimonio'!$D$39","v":"ifrs-full:ComponentsOfEquityAxis"},{"$f":"'610000 - Est. Camb. Patrimonio'!$X$38","v":"ifrs-full:EquityMember"}]
[{"$f":"IF(G1313=\"\",\"/*\",\"\")","v":""},null,{"$f":"'610000 - Est. Camb. Patrimonio'!$D$49","v":"Dividendos reconocidos como distribuciones a los propietarios"},{"$f":"'610000 - Est. Camb. Patrimonio'!$C$49","v":"ifrs-full:DividendsPaid"},0,"peso",{"$f":"'610000 - Est. Camb. Patrimonio'!$X$49","v":0},800001965,"http://www.xbrl.org/scheme/companyName",{"$f":"Periodos!$D$3","v":"2016-01-01"},{"$f":"Periodos!$D$4","v":"2016-12-31"},{"$f":"'610000 - Est. Camb. Patrimonio'!$D$39","v":"ifrs-full:ComponentsOfEquityAxis"},{"$f":"'610000 - Est. Camb. Patrimonio'!$X$38","v":"ifrs-full:EquityMember"}]
["",null,{"$f":"'610000 - Est. Camb. Patrimonio'!$D$50","v":"Incrementos por otras aportaciones de los propietarios, patrimonio"},{"$f":"'610000 - Est. Camb. Patrimonio'!$C$50","v":"ifrs-full:IncreaseDecreaseThroughOtherContributionsByOwners"},0,"peso",{"$f":"'610000 - Est. Camb. Patrimonio'!$X$50","v":0},800001965,"http://www.xbrl.org/scheme/companyName",{"$f":"Periodos!$D$3","v":"2016-01-01"},{"$f":"Periodos!$D$4","v":"2016-12-31"},{"$f":"'610000 - Est. Camb. Patrimonio'!$D$39","v":"ifrs-full:ComponentsOfEquityAxis"},{"$f":"'610000 - Est. Camb. Patrimonio'!$X$38","v":"ifrs-full:EquityMember"}]
["",null,{"$f":"'610000 - Est. Camb. Patrimonio'!$D$51","v":"Disminución por otras distribuciones a los propietarios, patrimonio"},{"$f":"'610000 - Est. Camb. Patrimonio'!$C$51","v":"ifrs-full:IncreaseDecreaseThroughOtherDistributionsToOwners"},0,"peso",{"$f":"'610000 - Est. Camb. Patrimonio'!$X$51","v":0},800001965,"http://www.xbrl.org/scheme/companyName",{"$f":"Periodos!$D$3","v":"2016-01-01"},{"$f":"Periodos!$D$4","v":"2016-12-31"},{"$f":"'610000 - Est. Camb. Patrimonio'!$D$39","v":"ifrs-full:ComponentsOfEquityAxis"},{"$f":"'610000 - Est. Camb. Patrimonio'!$X$38","v":"ifrs-full:EquityMember"}]
["",null,{"$f":"'610000 - Est. Camb. Patrimonio'!$D$52","v":"Incrementos (disminuciones) por otros cambios, patrimonio"},{"$f":"'610000 - Est. Camb. Patrimonio'!$C$52","v":"ifrs-full:IncreaseDecreaseThroughTransfersAndOtherChangesEquity"},0,"peso",{"$f":"'610000 - Est. Camb. Patrimonio'!$X$52","v":0},800001965,"http://www.xbrl.org/scheme/companyName",{"$f":"Periodos!$D$3","v":"2016-01-01"},{"$f":"Periodos!$D$4","v":"2016-12-31"},{"$f":"'610000 - Est. Camb. Patrimonio'!$D$39","v":"ifrs-full:ComponentsOfEquityAxis"},{"$f":"'610000 - Est. Camb. Patrimonio'!$X$38","v":"ifrs-full:EquityMember"}]
["",null,{"$f":"'610000 - Est. Camb. Patrimonio'!$D$53","v":"Incrementos (disminuciones) por transacciones con acciones propias, patrimonio"},{"$f":"'610000 - Est. Camb. Patrimonio'!$C$53","v":"ifrs-full:IncreaseDecreaseThroughTreasuryShareTransactions"},0,"peso",{"$f":"'610000 - Est. Camb. Patrimonio'!$X$53","v":0},800001965,"http://www.xbrl.org/scheme/companyName",{"$f":"Periodos!$D$3","v":"2016-01-01"},{"$f":"Periodos!$D$4","v":"2016-12-31"},{"$f":"'610000 - Est. Camb. Patrimonio'!$D$39","v":"ifrs-full:ComponentsOfEquityAxis"},{"$f":"'610000 - Est. Camb. Patrimonio'!$X$38","v":"ifrs-full:EquityMember"}]
["",null,{"$f":"'610000 - Est. Camb. Patrimonio'!$D$54","v":"Incrementos (disminuciones) por cambios las participaciones en la propiedad de subsidiarias que no dan lugar a pérdida de control, patrimonio"},{"$f":"'610000 - Est. Camb. Patrimonio'!$C$54","v":"ifrs-full:IncreaseDecreaseThroughChangesInOwnershipInterestsInSubsidiariesThatDoNotResultInLossOfControl"},0,"peso",{"$f":"'610000 - Est. Camb. Patrimonio'!$X$54","v":0},800001965,"http://www.xbrl.org/scheme/companyName",{"$f":"Periodos!$D$3","v":"2016-01-01"},{"$f":"Periodos!$D$4","v":"2016-12-31"},{"$f":"'610000 - Est. Camb. Patrimonio'!$D$39","v":"ifrs-full:ComponentsOfEquityAxis"},{"$f":"'610000 - Est. Camb. Patrimonio'!$X$38","v":"ifrs-full:EquityMember"}]
["",null,{"$f":"'610000 - Est. Camb. Patrimonio'!$D$55","v":"Incrementos (disminuciones) por transacciones con pagos basados en acciones, patrimonio"},{"$f":"'610000 - Est. Camb. Patrimonio'!$C$55","v":"ifrs-full:IncreaseDecreaseThroughSharebasedPaymentTransactions"},0,"peso",{"$f":"'610000 - Est. Camb. Patrimonio'!$X$55","v":0},800001965,"http://www.xbrl.org/scheme/companyName",{"$f":"Periodos!$D$3","v":"2016-01-01"},{"$f":"Periodos!$D$4","v":"2016-12-31"},{"$f":"'610000 - Est. Camb. Patrimonio'!$D$39","v":"ifrs-full:ComponentsOfEquityAxis"},{"$f":"'610000 - Est. Camb. Patrimonio'!$X$38","v":"ifrs-full:EquityMember"}]
["",null,{"$f":"'610000 - Est. Camb. Patrimonio'!$D$56","v":"Total incremento (disminución) en el patrimonio"},{"$f":"'610000 - Est. Camb. Patrimonio'!$C$56","v":"ifrs-full:ChangesInEquity"},0,"peso",{"$f":"'610000 - Est. Camb. Patrimonio'!$X$56","v":0},800001965,"http://www.xbrl.org/scheme/companyName",{"$f":"Periodos!$D$3","v":"2016-01-01"},{"$f":"Periodos!$D$4","v":"2016-12-31"},{"$f":"'610000 - Est. Camb. Patrimonio'!$D$39","v":"ifrs-full:ComponentsOfEquityAxis"},{"$f":"'610000 - Est. Camb. Patrimonio'!$X$38","v":"ifrs-full:EquityMember"}]
["",null,{"$f":"'610000 - Est. Camb. Patrimonio'!$D$57","v":"Patrimonio al final del periodo"},{"$f":"'610000 - Est. Camb. Patrimonio'!$C$57","v":"co-svsp-core_2017-12-31:EquityEndOfPeriod"},0,"peso",{"$f":"'610000 - Est. Camb. Patrimonio'!$X$57","v":0},800001965,"http://www.xbrl.org/scheme/companyName",{"$f":"Periodos!$D$3","v":"2016-01-01"},{"$f":"Periodos!$D$4","v":"2016-12-31"},{"$f":"'610000 - Est. Camb. Patrimonio'!$D$39","v":"ifrs-full:ComponentsOfEquityAxis"},{"$f":"'610000 - Est. Camb. Patrimonio'!$X$38","v":"ifrs-full:EquityMember"}]
["/*"]
["/*",null,"800101 - Nota. Efect. y Equiv."]
["/*",null,"--01--"]
["/*",null,{"$f":"'800101 - Nota. Efect. y Equiv.'!$D$11","v":"Efectivo y equivalentes al efectivo [resumen]"},{"$f":"'800101 - Nota. Efect. y Equiv.'!$C$11","v":"ifrs-full:CashAndCashEquivalentsAbstract"}]
["/*",null,{"$f":"'800101 - Nota. Efect. y Equiv.'!$D$12","v":"Efectivo [resumen]"},{"$f":"'800101 - Nota. Efect. y Equiv.'!$C$12","v":"ifrs-full:CashAbstract"}]
["/*",null,{"$f":"'800101 - Nota. Efect. y Equiv.'!$D$13","v":"Efectivo en caja"},{"$f":"'800101 - Nota. Efect. y Equiv.'!$C$13","v":"ifrs-full:CashOnHand"}]
["/*",null,{"$f":"'800101 - Nota. Efect. y Equiv.'!$D$14","v":"Saldos en bancos"},{"$f":"'800101 - Nota. Efect. y Equiv.'!$C$14","v":"ifrs-full:BalancesWithBanks"}]
["/*",null,{"$f":"'800101 - Nota. Efect. y Equiv.'!$D$15","v":"Total efectivo"},{"$f":"'800101 - Nota. Efect. y Equiv.'!$C$15","v":"ifrs-full:Cash"}]
["/*",null,{"$f":"'800101 - Nota. Efect. y Equiv.'!$D$16","v":"Equivalentes al efectivo [resumen]"},{"$f":"'800101 - Nota. Efect. y Equiv.'!$C$16","v":"ifrs-full:CashEquivalentsAbstract"}]
["/*",null,{"$f":"'800101 - Nota. Efect. y Equiv.'!$D$17","v":"Depósitos a corto plazo, clasificados como equivalentes al efectivo"},{"$f":"'800101 - Nota. Efect. y Equiv.'!$C$17","v":"ifrs-full:ShorttermDepositsClassifiedAsCashEquivalents"}]
["/*",null,{"$f":"'800101 - Nota. Efect. y Equiv.'!$D$18","v":"Inversiones a corto plazo, clasificados como equivalentes al efectivo"},{"$f":"'800101 - Nota. Efect. y Equiv.'!$C$18","v":"ifrs-full:ShorttermInvestmentsClassifiedAsCashEquivalents"}]
["/*",null,{"$f":"'800101 - Nota. Efect. y Equiv.'!$D$19","v":"Otros acuerdos bancarios, clasificados como equivalentes al efectivo"},{"$f":"'800101 - Nota. Efect. y Equiv.'!$C$19","v":"ifrs-full:BankingArrangementsClassifiedAsCashEquivalents"}]
["/*",null,{"$f":"'800101 - Nota. Efect. y Equiv.'!$D$20","v":"Total equivalentes al efectivo"},{"$f":"'800101 - Nota. Efect. y Equiv.'!$C$20","v":"ifrs-full:CashEquivalents"}]
["/*",null,{"$f":"'800101 - Nota. Efect. y Equiv.'!$D$21","v":"Otro efectivo y equivalentes al efectivo"},{"$f":"'800101 - Nota. Efect. y Equiv.'!$C$21","v":"ifrs-full:OtherCashAndCashEquivalents"}]
["/*",null,{"$f":"'800101 - Nota. Efect. y Equiv.'!$D$22","v":"Total de efectivo y equivalentes al efectivo"},{"$f":"'800101 - Nota. Efect. y Equiv.'!$C$22","v":"ifrs-full:CashAndCashEquivalents"}]
["/*",null,"--02--"]
["/*",null,{"$f":"'800101 - Nota. Efect. y Equiv.'!$D$11","v":"Efectivo y equivalentes al efectivo [resumen]"},{"$f":"'800101 - Nota. Efect. y Equiv.'!$C$11","v":"ifrs-full:CashAndCashEquivalentsAbstract"}]
["/*",null,{"$f":"'800101 - Nota. Efect. y Equiv.'!$D$12","v":"Efectivo [resumen]"},{"$f":"'800101 - Nota. Efect. y Equiv.'!$C$12","v":"ifrs-full:CashAbstract"}]
["/*",null,{"$f":"'800101 - Nota. Efect. y Equiv.'!$D$13","v":"Efectivo en caja"},{"$f":"'800101 - Nota. Efect. y Equiv.'!$C$13","v":"ifrs-full:CashOnHand"}]
["/*",null,{"$f":"'800101 - Nota. Efect. y Equiv.'!$D$14","v":"Saldos en bancos"},{"$f":"'800101 - Nota. Efect. y Equiv.'!$C$14","v":"ifrs-full:BalancesWithBanks"}]
["/*",null,{"$f":"'800101 - Nota. Efect. y Equiv.'!$D$15","v":"Total efectivo"},{"$f":"'800101 - Nota. Efect. y Equiv.'!$C$15","v":"ifrs-full:Cash"}]
["/*",null,{"$f":"'800101 - Nota. Efect. y Equiv.'!$D$16","v":"Equivalentes al efectivo [resumen]"},{"$f":"'800101 - Nota. Efect. y Equiv.'!$C$16","v":"ifrs-full:CashEquivalentsAbstract"}]
["/*",null,{"$f":"'800101 - Nota. Efect. y Equiv.'!$D$17","v":"Depósitos a corto plazo, clasificados como equivalentes al efectivo"},{"$f":"'800101 - Nota. Efect. y Equiv.'!$C$17","v":"ifrs-full:ShorttermDepositsClassifiedAsCashEquivalents"}]
["/*",null,{"$f":"'800101 - Nota. Efect. y Equiv.'!$D$18","v":"Inversiones a corto plazo, clasificados como equivalentes al efectivo"},{"$f":"'800101 - Nota. Efect. y Equiv.'!$C$18","v":"ifrs-full:ShorttermInvestmentsClassifiedAsCashEquivalents"}]
["/*",null,{"$f":"'800101 - Nota. Efect. y Equiv.'!$D$19","v":"Otros acuerdos bancarios, clasificados como equivalentes al efectivo"},{"$f":"'800101 - Nota. Efect. y Equiv.'!$C$19","v":"ifrs-full:BankingArrangementsClassifiedAsCashEquivalents"}]
["/*",null,{"$f":"'800101 - Nota. Efect. y Equiv.'!$D$20","v":"Total equivalentes al efectivo"},{"$f":"'800101 - Nota. Efect. y Equiv.'!$C$20","v":"ifrs-full:CashEquivalents"}]
["/*",null,{"$f":"'800101 - Nota. Efect. y Equiv.'!$D$21","v":"Otro efectivo y equivalentes al efectivo"},{"$f":"'800101 - Nota. Efect. y Equiv.'!$C$21","v":"ifrs-full:OtherCashAndCashEquivalents"}]
["/*",null,{"$f":"'800101 - Nota. Efect. y Equiv.'!$D$22","v":"Total de efectivo y equivalentes al efectivo"},{"$f":"'800101 - Nota. Efect. y Equiv.'!$C$22","v":"ifrs-full:CashAndCashEquivalents"}]
["/*",null,"--03--"]
["/*",null,{"$f":"'800101 - Nota. Efect. y Equiv.'!$D$11","v":"Efectivo y equivalentes al efectivo [resumen]"},{"$f":"'800101 - Nota. Efect. y Equiv.'!$C$11","v":"ifrs-full:CashAndCashEquivalentsAbstract"}]
["/*",null,{"$f":"'800101 - Nota. Efect. y Equiv.'!$D$12","v":"Efectivo [resumen]"},{"$f":"'800101 - Nota. Efect. y Equiv.'!$C$12","v":"ifrs-full:CashAbstract"}]
["/*",null,{"$f":"'800101 - Nota. Efect. y Equiv.'!$D$13","v":"Efectivo en caja"},{"$f":"'800101 - Nota. Efect. y Equiv.'!$C$13","v":"ifrs-full:CashOnHand"}]
["/*",null,{"$f":"'800101 - Nota. Efect. y Equiv.'!$D$14","v":"Saldos en bancos"},{"$f":"'800101 - Nota. Efect. y Equiv.'!$C$14","v":"ifrs-full:BalancesWithBanks"}]
["/*",null,{"$f":"'800101 - Nota. Efect. y Equiv.'!$D$15","v":"Total efectivo"},{"$f":"'800101 - Nota. Efect. y Equiv.'!$C$15","v":"ifrs-full:Cash"}]
["/*",null,{"$f":"'800101 - Nota. Efect. y Equiv.'!$D$16","v":"Equivalentes al efectivo [resumen]"},{"$f":"'800101 - Nota. Efect. y Equiv.'!$C$16","v":"ifrs-full:CashEquivalentsAbstract"}]
["/*",null,{"$f":"'800101 - Nota. Efect. y Equiv.'!$D$17","v":"Depósitos a corto plazo, clasificados como equivalentes al efectivo"},{"$f":"'800101 - Nota. Efect. y Equiv.'!$C$17","v":"ifrs-full:ShorttermDepositsClassifiedAsCashEquivalents"}]
["/*",null,{"$f":"'800101 - Nota. Efect. y Equiv.'!$D$18","v":"Inversiones a corto plazo, clasificados como equivalentes al efectivo"},{"$f":"'800101 - Nota. Efect. y Equiv.'!$C$18","v":"ifrs-full:ShorttermInvestmentsClassifiedAsCashEquivalents"}]
["/*",null,{"$f":"'800101 - Nota. Efect. y Equiv.'!$D$19","v":"Otros acuerdos bancarios, clasificados como equivalentes al efectivo"},{"$f":"'800101 - Nota. Efect. y Equiv.'!$C$19","v":"ifrs-full:BankingArrangementsClassifiedAsCashEquivalents"}]
["/*",null,{"$f":"'800101 - Nota. Efect. y Equiv.'!$D$20","v":"Total equivalentes al efectivo"},{"$f":"'800101 - Nota. Efect. y Equiv.'!$C$20","v":"ifrs-full:CashEquivalents"}]
["/*",null,{"$f":"'800101 - Nota. Efect. y Equiv.'!$D$21","v":"Otro efectivo y equivalentes al efectivo"},{"$f":"'800101 - Nota. Efect. y Equiv.'!$C$21","v":"ifrs-full:OtherCashAndCashEquivalents"}]
["/*",null,{"$f":"'800101 - Nota. Efect. y Equiv.'!$D$22","v":"Total de efectivo y equivalentes al efectivo"},{"$f":"'800101 - Nota. Efect. y Equiv.'!$C$22","v":"ifrs-full:CashAndCashEquivalents"}]
["/*"]
["/*",null,"800111 - Nota. Cuentas x cobrar"]
["/*",null,"--01--"]
["/*",null,{"$f":"'800111 - Nota. Cuentas x cobrar'!$D$12","v":"Cuentas comerciales por cobrar y otras cuentas por cobrar"},{"$f":"'800111 - Nota. Cuentas x cobrar'!$C$12","v":"co-svsp-core_2017-12-31:CxC_Cuentas_comerciales_por_cobrar_y_otras_cuentas_por_cobrar"}]
["/*",null,{"$f":"'800111 - Nota. Cuentas x cobrar'!$D$13","v":"Cuentas comerciales por cobrar"},{"$f":"'800111 - Nota. Cuentas x cobrar'!$C$13","v":"co-svsp-core_2017-12-31:CxC_Cuentas_comerciales_por_cobrar"}]
["/*",null,{"$f":"'800111 - Nota. Cuentas x cobrar'!$D$14","v":"Cuentas comerciales por cobrar que no están en mora ni deterioradas de valor"},{"$f":"'800111 - Nota. Cuentas x cobrar'!$C$14","v":"co-svsp-core_2017-12-31:CxC_Cuentas_comerciales_por_cobrar_no_están_en_mora_ni_deterioradas_de_valor"}]
["/*",null,{"$f":"'800111 - Nota. Cuentas x cobrar'!$D$15","v":"Cuentas comerciales por cobrar en mora pero no deterioradas de valor"},{"$f":"'800111 - Nota. Cuentas x cobrar'!$C$15","v":"co-svsp-core_2017-12-31:CxC_Cuentas_comerciales_por_cobrar_en_mora_pero_no_deterioradas_de_valor"}]
["/*",null,{"$f":"'800111 - Nota. Cuentas x cobrar'!$D$16","v":"Cuentas comerciales por cobrar deterioradas de valor"},{"$f":"'800111 - Nota. Cuentas x cobrar'!$C$16","v":"co-svsp-core_2017-12-31:CxC_Cuentas_comerciales_por_cobrar_deterioradas_de_valor"}]
["/*",null,{"$f":"'800111 - Nota. Cuentas x cobrar'!$D$17","v":"Deterioro (menor valor)"},{"$f":"'800111 - Nota. Cuentas x cobrar'!$C$17","v":"co-svsp-core_2017-12-31:CxC_Deterioro_menor_valor"}]
["/*",null,{"$f":"'800111 - Nota. Cuentas x cobrar'!$D$18","v":"Total cuentas comerciales por cobrar"},{"$f":"'800111 - Nota. Cuentas x cobrar'!$C$18","v":"co-svsp-core_2017-12-31:CxC_Total_cuentas_comerciales_por_cobrar"}]
["/*",null,{"$f":"'800111 - Nota. Cuentas x cobrar'!$D$19","v":"Otras cuentas por cobrar"},{"$f":"'800111 - Nota. Cuentas x cobrar'!$C$19","v":"co-svsp-core_2017-12-31:CxC_Otras_cuentas_por_cobrar"}]
["/*",null,{"$f":"'800111 - Nota. Cuentas x cobrar'!$D$20","v":"Otras cuentas por cobrar que no están en mora ni deterioradas de valor"},{"$f":"'800111 - Nota. Cuentas x cobrar'!$C$20","v":"co-svsp-core_2017-12-31:CxC_Cuentas_comerciales_por_cobrar_no_están_en_mora_ni_deterioradas_de_valor_OCxC"}]
["/*",null,{"$f":"'800111 - Nota. Cuentas x cobrar'!$D$21","v":"Otras cuentas por cobrar en mora pero no deterioradas de valor"},{"$f":"'800111 - Nota. Cuentas x cobrar'!$C$21","v":"co-svsp-core_2017-12-31:CxC_Cuentas_comerciales_por_cobrar_en_mora_pero_no_deterioradas_de_valor_OCxC"}]
["/*",null,{"$f":"'800111 - Nota. Cuentas x cobrar'!$D$22","v":"Otras cuentas por cobrar deterioradas de valor"},{"$f":"'800111 - Nota. Cuentas x cobrar'!$C$22","v":"co-svsp-core_2017-12-31:CxC_Cuentas_comerciales_por_cobrar_deterioradas_de_valor_OCxC"}]
[{"$f":"IF(G1377=\"\",\"/*\",\"\")","v":"/*"},null,{"$f":"'800111 - Nota. Cuentas x cobrar'!$D$23","v":"Deterioro (menor valor)"},{"$f":"'800111 - Nota. Cuentas x cobrar'!$C$23","v":"co-svsp-core_2017-12-31:CxC_Deterioro_menor_valor_OCxC"}]
["/*",null,{"$f":"'800111 - Nota. Cuentas x cobrar'!$D$24","v":"Total otras cuentas por cobrar"},{"$f":"'800111 - Nota. Cuentas x cobrar'!$C$24","v":"co-svsp-core_2017-12-31:CxC_Total_cuentas_comerciales_por_cobrar_OCxC"}]
["/*",null,{"$f":"'800111 - Nota. Cuentas x cobrar'!$D$25","v":"Total cuentas por cobrar y otras cuentas por cobrar"},{"$f":"'800111 - Nota. Cuentas x cobrar'!$C$25","v":"co-svsp-core_2017-12-31:CxC_Total_cuentas_por_cobrar_y_otras_cuentas_por_cobrar"}]
["/*",null,"--02--"]
["/*",null,{"$f":"'800111 - Nota. Cuentas x cobrar'!$D$12","v":"Cuentas comerciales por cobrar y otras cuentas por cobrar"},{"$f":"'800111 - Nota. Cuentas x cobrar'!$C$12","v":"co-svsp-core_2017-12-31:CxC_Cuentas_comerciales_por_cobrar_y_otras_cuentas_por_cobrar"}]
["/*",null,{"$f":"'800111 - Nota. Cuentas x cobrar'!$D$13","v":"Cuentas comerciales por cobrar"},{"$f":"'800111 - Nota. Cuentas x cobrar'!$C$13","v":"co-svsp-core_2017-12-31:CxC_Cuentas_comerciales_por_cobrar"}]
["/*",null,{"$f":"'800111 - Nota. Cuentas x cobrar'!$D$14","v":"Cuentas comerciales por cobrar que no están en mora ni deterioradas de valor"},{"$f":"'800111 - Nota. Cuentas x cobrar'!$C$14","v":"co-svsp-core_2017-12-31:CxC_Cuentas_comerciales_por_cobrar_no_están_en_mora_ni_deterioradas_de_valor"}]
["/*",null,{"$f":"'800111 - Nota. Cuentas x cobrar'!$D$15","v":"Cuentas comerciales por cobrar en mora pero no deterioradas de valor"},{"$f":"'800111 - Nota. Cuentas x cobrar'!$C$15","v":"co-svsp-core_2017-12-31:CxC_Cuentas_comerciales_por_cobrar_en_mora_pero_no_deterioradas_de_valor"}]
["/*",null,{"$f":"'800111 - Nota. Cuentas x cobrar'!$D$16","v":"Cuentas comerciales por cobrar deterioradas de valor"},{"$f":"'800111 - Nota. Cuentas x cobrar'!$C$16","v":"co-svsp-core_2017-12-31:CxC_Cuentas_comerciales_por_cobrar_deterioradas_de_valor"}]
["/*",null,{"$f":"'800111 - Nota. Cuentas x cobrar'!$D$17","v":"Deterioro (menor valor)"},{"$f":"'800111 - Nota. Cuentas x cobrar'!$C$17","v":"co-svsp-core_2017-12-31:CxC_Deterioro_menor_valor"}]
["/*",null,{"$f":"'800111 - Nota. Cuentas x cobrar'!$D$18","v":"Total cuentas comerciales por cobrar"},{"$f":"'800111 - Nota. Cuentas x cobrar'!$C$18","v":"co-svsp-core_2017-12-31:CxC_Total_cuentas_comerciales_por_cobrar"}]
["/*",null,{"$f":"'800111 - Nota. Cuentas x cobrar'!$D$19","v":"Otras cuentas por cobrar"},{"$f":"'800111 - Nota. Cuentas x cobrar'!$C$19","v":"co-svsp-core_2017-12-31:CxC_Otras_cuentas_por_cobrar"}]
["/*",null,{"$f":"'800111 - Nota. Cuentas x cobrar'!$D$20","v":"Otras cuentas por cobrar que no están en mora ni deterioradas de valor"},{"$f":"'800111 - Nota. Cuentas x cobrar'!$C$20","v":"co-svsp-core_2017-12-31:CxC_Cuentas_comerciales_por_cobrar_no_están_en_mora_ni_deterioradas_de_valor_OCxC"}]
["/*",null,{"$f":"'800111 - Nota. Cuentas x cobrar'!$D$21","v":"Otras cuentas por cobrar en mora pero no deterioradas de valor"},{"$f":"'800111 - Nota. Cuentas x cobrar'!$C$21","v":"co-svsp-core_2017-12-31:CxC_Cuentas_comerciales_por_cobrar_en_mora_pero_no_deterioradas_de_valor_OCxC"}]
["/*",null,{"$f":"'800111 - Nota. Cuentas x cobrar'!$D$22","v":"Otras cuentas por cobrar deterioradas de valor"},{"$f":"'800111 - Nota. Cuentas x cobrar'!$C$22","v":"co-svsp-core_2017-12-31:CxC_Cuentas_comerciales_por_cobrar_deterioradas_de_valor_OCxC"}]
["/*",null,{"$f":"'800111 - Nota. Cuentas x cobrar'!$D$23","v":"Deterioro (menor valor)"},{"$f":"'800111 - Nota. Cuentas x cobrar'!$C$23","v":"co-svsp-core_2017-12-31:CxC_Deterioro_menor_valor_OCxC"}]
["/*",null,{"$f":"'800111 - Nota. Cuentas x cobrar'!$D$24","v":"Total otras cuentas por cobrar"},{"$f":"'800111 - Nota. Cuentas x cobrar'!$C$24","v":"co-svsp-core_2017-12-31:CxC_Total_cuentas_comerciales_por_cobrar_OCxC"}]
["/*",null,{"$f":"'800111 - Nota. Cuentas x cobrar'!$D$25","v":"Total cuentas por cobrar y otras cuentas por cobrar"},{"$f":"'800111 - Nota. Cuentas x cobrar'!$C$25","v":"co-svsp-core_2017-12-31:CxC_Total_cuentas_por_cobrar_y_otras_cuentas_por_cobrar"}]
["/*",null,"--03--"]
["/*",null,{"$f":"'800111 - Nota. Cuentas x cobrar'!$D$12","v":"Cuentas comerciales por cobrar y otras cuentas por cobrar"},{"$f":"'800111 - Nota. Cuentas x cobrar'!$C$12","v":"co-svsp-core_2017-12-31:CxC_Cuentas_comerciales_por_cobrar_y_otras_cuentas_por_cobrar"}]
["/*",null,{"$f":"'800111 - Nota. Cuentas x cobrar'!$D$13","v":"Cuentas comerciales por cobrar"},{"$f":"'800111 - Nota. Cuentas x cobrar'!$C$13","v":"co-svsp-core_2017-12-31:CxC_Cuentas_comerciales_por_cobrar"}]
["/*",null,{"$f":"'800111 - Nota. Cuentas x cobrar'!$D$14","v":"Cuentas comerciales por cobrar que no están en mora ni deterioradas de valor"},{"$f":"'800111 - Nota. Cuentas x cobrar'!$C$14","v":"co-svsp-core_2017-12-31:CxC_Cuentas_comerciales_por_cobrar_no_están_en_mora_ni_deterioradas_de_valor"}]
["/*",null,{"$f":"'800111 - Nota. Cuentas x cobrar'!$D$15","v":"Cuentas comerciales por cobrar en mora pero no deterioradas de valor"},{"$f":"'800111 - Nota. Cuentas x cobrar'!$C$15","v":"co-svsp-core_2017-12-31:CxC_Cuentas_comerciales_por_cobrar_en_mora_pero_no_deterioradas_de_valor"}]
["/*",null,{"$f":"'800111 - Nota. Cuentas x cobrar'!$D$16","v":"Cuentas comerciales por cobrar deterioradas de valor"},{"$f":"'800111 - Nota. Cuentas x cobrar'!$C$16","v":"co-svsp-core_2017-12-31:CxC_Cuentas_comerciales_por_cobrar_deterioradas_de_valor"}]
["/*",null,{"$f":"'800111 - Nota. Cuentas x cobrar'!$D$17","v":"Deterioro (menor valor)"},{"$f":"'800111 - Nota. Cuentas x cobrar'!$C$17","v":"co-svsp-core_2017-12-31:CxC_Deterioro_menor_valor"}]
["/*",null,{"$f":"'800111 - Nota. Cuentas x cobrar'!$D$18","v":"Total cuentas comerciales por cobrar"},{"$f":"'800111 - Nota. Cuentas x cobrar'!$C$18","v":"co-svsp-core_2017-12-31:CxC_Total_cuentas_comerciales_por_cobrar"}]
["/*",null,{"$f":"'800111 - Nota. Cuentas x cobrar'!$D$19","v":"Otras cuentas por cobrar"},{"$f":"'800111 - Nota. Cuentas x cobrar'!$C$19","v":"co-svsp-core_2017-12-31:CxC_Otras_cuentas_por_cobrar"}]
["/*",null,{"$f":"'800111 - Nota. Cuentas x cobrar'!$D$20","v":"Otras cuentas por cobrar que no están en mora ni deterioradas de valor"},{"$f":"'800111 - Nota. Cuentas x cobrar'!$C$20","v":"co-svsp-core_2017-12-31:CxC_Cuentas_comerciales_por_cobrar_no_están_en_mora_ni_deterioradas_de_valor_OCxC"}]
["/*",null,{"$f":"'800111 - Nota. Cuentas x cobrar'!$D$21","v":"Otras cuentas por cobrar en mora pero no deterioradas de valor"},{"$f":"'800111 - Nota. Cuentas x cobrar'!$C$21","v":"co-svsp-core_2017-12-31:CxC_Cuentas_comerciales_por_cobrar_en_mora_pero_no_deterioradas_de_valor_OCxC"}]
["/*",null,{"$f":"'800111 - Nota. Cuentas x cobrar'!$D$22","v":"Otras cuentas por cobrar deterioradas de valor"},{"$f":"'800111 - Nota. Cuentas x cobrar'!$C$22","v":"co-svsp-core_2017-12-31:CxC_Cuentas_comerciales_por_cobrar_deterioradas_de_valor_OCxC"}]
["/*",null,{"$f":"'800111 - Nota. Cuentas x cobrar'!$D$23","v":"Deterioro (menor valor)"},{"$f":"'800111 - Nota. Cuentas x cobrar'!$C$23","v":"co-svsp-core_2017-12-31:CxC_Deterioro_menor_valor_OCxC"}]
["/*",null,{"$f":"'800111 - Nota. Cuentas x cobrar'!$D$24","v":"Total otras cuentas por cobrar"},{"$f":"'800111 - Nota. Cuentas x cobrar'!$C$24","v":"co-svsp-core_2017-12-31:CxC_Total_cuentas_comerciales_por_cobrar_OCxC"}]
["/*",null,{"$f":"'800111 - Nota. Cuentas x cobrar'!$D$25","v":"Total cuentas por cobrar y otras cuentas por cobrar"},{"$f":"'800111 - Nota. Cuentas x cobrar'!$C$25","v":"co-svsp-core_2017-12-31:CxC_Total_cuentas_por_cobrar_y_otras_cuentas_por_cobrar"}]
["/*",null,"--04--"]
["/*",null,{"$f":"'800111 - Nota. Cuentas x cobrar'!$D$12","v":"Cuentas comerciales por cobrar y otras cuentas por cobrar"},{"$f":"'800111 - Nota. Cuentas x cobrar'!$C$12","v":"co-svsp-core_2017-12-31:CxC_Cuentas_comerciales_por_cobrar_y_otras_cuentas_por_cobrar"}]
["/*",null,{"$f":"'800111 - Nota. Cuentas x cobrar'!$D$13","v":"Cuentas comerciales por cobrar"},{"$f":"'800111 - Nota. Cuentas x cobrar'!$C$13","v":"co-svsp-core_2017-12-31:CxC_Cuentas_comerciales_por_cobrar"}]
["/*",null,{"$f":"'800111 - Nota. Cuentas x cobrar'!$D$14","v":"Cuentas comerciales por cobrar que no están en mora ni deterioradas de valor"},{"$f":"'800111 - Nota. Cuentas x cobrar'!$C$14","v":"co-svsp-core_2017-12-31:CxC_Cuentas_comerciales_por_cobrar_no_están_en_mora_ni_deterioradas_de_valor"}]
["/*",null,{"$f":"'800111 - Nota. Cuentas x cobrar'!$D$15","v":"Cuentas comerciales por cobrar en mora pero no deterioradas de valor"},{"$f":"'800111 - Nota. Cuentas x cobrar'!$C$15","v":"co-svsp-core_2017-12-31:CxC_Cuentas_comerciales_por_cobrar_en_mora_pero_no_deterioradas_de_valor"}]
["/*",null,{"$f":"'800111 - Nota. Cuentas x cobrar'!$D$16","v":"Cuentas comerciales por cobrar deterioradas de valor"},{"$f":"'800111 - Nota. Cuentas x cobrar'!$C$16","v":"co-svsp-core_2017-12-31:CxC_Cuentas_comerciales_por_cobrar_deterioradas_de_valor"}]
["/*",null,{"$f":"'800111 - Nota. Cuentas x cobrar'!$D$17","v":"Deterioro (menor valor)"},{"$f":"'800111 - Nota. Cuentas x cobrar'!$C$17","v":"co-svsp-core_2017-12-31:CxC_Deterioro_menor_valor"}]
["/*",null,{"$f":"'800111 - Nota. Cuentas x cobrar'!$D$18","v":"Total cuentas comerciales por cobrar"},{"$f":"'800111 - Nota. Cuentas x cobrar'!$C$18","v":"co-svsp-core_2017-12-31:CxC_Total_cuentas_comerciales_por_cobrar"}]
["/*",null,{"$f":"'800111 - Nota. Cuentas x cobrar'!$D$19","v":"Otras cuentas por cobrar"},{"$f":"'800111 - Nota. Cuentas x cobrar'!$C$19","v":"co-svsp-core_2017-12-31:CxC_Otras_cuentas_por_cobrar"}]
["/*",null,{"$f":"'800111 - Nota. Cuentas x cobrar'!$D$20","v":"Otras cuentas por cobrar que no están en mora ni deterioradas de valor"},{"$f":"'800111 - Nota. Cuentas x cobrar'!$C$20","v":"co-svsp-core_2017-12-31:CxC_Cuentas_comerciales_por_cobrar_no_están_en_mora_ni_deterioradas_de_valor_OCxC"}]
["/*",null,{"$f":"'800111 - Nota. Cuentas x cobrar'!$D$21","v":"Otras cuentas por cobrar en mora pero no deterioradas de valor"},{"$f":"'800111 - Nota. Cuentas x cobrar'!$C$21","v":"co-svsp-core_2017-12-31:CxC_Cuentas_comerciales_por_cobrar_en_mora_pero_no_deterioradas_de_valor_OCxC"}]
["/*",null,{"$f":"'800111 - Nota. Cuentas x cobrar'!$D$22","v":"Otras cuentas por cobrar deterioradas de valor"},{"$f":"'800111 - Nota. Cuentas x cobrar'!$C$22","v":"co-svsp-core_2017-12-31:CxC_Cuentas_comerciales_por_cobrar_deterioradas_de_valor_OCxC"}]
["/*",null,{"$f":"'800111 - Nota. Cuentas x cobrar'!$D$23","v":"Deterioro (menor valor)"},{"$f":"'800111 - Nota. Cuentas x cobrar'!$C$23","v":"co-svsp-core_2017-12-31:CxC_Deterioro_menor_valor_OCxC"}]
["/*",null,{"$f":"'800111 - Nota. Cuentas x cobrar'!$D$24","v":"Total otras cuentas por cobrar"},{"$f":"'800111 - Nota. Cuentas x cobrar'!$C$24","v":"co-svsp-core_2017-12-31:CxC_Total_cuentas_comerciales_por_cobrar_OCxC"}]
["/*",null,{"$f":"'800111 - Nota. Cuentas x cobrar'!$D$25","v":"Total cuentas por cobrar y otras cuentas por cobrar"},{"$f":"'800111 - Nota. Cuentas x cobrar'!$C$25","v":"co-svsp-core_2017-12-31:CxC_Total_cuentas_por_cobrar_y_otras_cuentas_por_cobrar"}]
["/*",null,"--05--"]
["/*",null,{"$f":"'800111 - Nota. Cuentas x cobrar'!$D$12","v":"Cuentas comerciales por cobrar y otras cuentas por cobrar"},{"$f":"'800111 - Nota. Cuentas x cobrar'!$C$12","v":"co-svsp-core_2017-12-31:CxC_Cuentas_comerciales_por_cobrar_y_otras_cuentas_por_cobrar"}]
["/*",null,{"$f":"'800111 - Nota. Cuentas x cobrar'!$D$13","v":"Cuentas comerciales por cobrar"},{"$f":"'800111 - Nota. Cuentas x cobrar'!$C$13","v":"co-svsp-core_2017-12-31:CxC_Cuentas_comerciales_por_cobrar"}]
["/*",null,{"$f":"'800111 - Nota. Cuentas x cobrar'!$D$14","v":"Cuentas comerciales por cobrar que no están en mora ni deterioradas de valor"},{"$f":"'800111 - Nota. Cuentas x cobrar'!$C$14","v":"co-svsp-core_2017-12-31:CxC_Cuentas_comerciales_por_cobrar_no_están_en_mora_ni_deterioradas_de_valor"}]
["/*",null,{"$f":"'800111 - Nota. Cuentas x cobrar'!$D$15","v":"Cuentas comerciales por cobrar en mora pero no deterioradas de valor"},{"$f":"'800111 - Nota. Cuentas x cobrar'!$C$15","v":"co-svsp-core_2017-12-31:CxC_Cuentas_comerciales_por_cobrar_en_mora_pero_no_deterioradas_de_valor"}]
["/*",null,{"$f":"'800111 - Nota. Cuentas x cobrar'!$D$16","v":"Cuentas comerciales por cobrar deterioradas de valor"},{"$f":"'800111 - Nota. Cuentas x cobrar'!$C$16","v":"co-svsp-core_2017-12-31:CxC_Cuentas_comerciales_por_cobrar_deterioradas_de_valor"}]
["/*",null,{"$f":"'800111 - Nota. Cuentas x cobrar'!$D$17","v":"Deterioro (menor valor)"},{"$f":"'800111 - Nota. Cuentas x cobrar'!$C$17","v":"co-svsp-core_2017-12-31:CxC_Deterioro_menor_valor"}]
["/*",null,{"$f":"'800111 - Nota. Cuentas x cobrar'!$D$18","v":"Total cuentas comerciales por cobrar"},{"$f":"'800111 - Nota. Cuentas x cobrar'!$C$18","v":"co-svsp-core_2017-12-31:CxC_Total_cuentas_comerciales_por_cobrar"}]
["/*",null,{"$f":"'800111 - Nota. Cuentas x cobrar'!$D$19","v":"Otras cuentas por cobrar"},{"$f":"'800111 - Nota. Cuentas x cobrar'!$C$19","v":"co-svsp-core_2017-12-31:CxC_Otras_cuentas_por_cobrar"}]
["/*",null,{"$f":"'800111 - Nota. Cuentas x cobrar'!$D$20","v":"Otras cuentas por cobrar que no están en mora ni deterioradas de valor"},{"$f":"'800111 - Nota. Cuentas x cobrar'!$C$20","v":"co-svsp-core_2017-12-31:CxC_Cuentas_comerciales_por_cobrar_no_están_en_mora_ni_deterioradas_de_valor_OCxC"}]
["/*",null,{"$f":"'800111 - Nota. Cuentas x cobrar'!$D$21","v":"Otras cuentas por cobrar en mora pero no deterioradas de valor"},{"$f":"'800111 - Nota. Cuentas x cobrar'!$C$21","v":"co-svsp-core_2017-12-31:CxC_Cuentas_comerciales_por_cobrar_en_mora_pero_no_deterioradas_de_valor_OCxC"}]
["/*",null,{"$f":"'800111 - Nota. Cuentas x cobrar'!$D$22","v":"Otras cuentas por cobrar deterioradas de valor"},{"$f":"'800111 - Nota. Cuentas x cobrar'!$C$22","v":"co-svsp-core_2017-12-31:CxC_Cuentas_comerciales_por_cobrar_deterioradas_de_valor_OCxC"}]
["/*",null,{"$f":"'800111 - Nota. Cuentas x cobrar'!$D$23","v":"Deterioro (menor valor)"},{"$f":"'800111 - Nota. Cuentas x cobrar'!$C$23","v":"co-svsp-core_2017-12-31:CxC_Deterioro_menor_valor_OCxC"}]
["/*",null,{"$f":"'800111 - Nota. Cuentas x cobrar'!$D$24","v":"Total otras cuentas por cobrar"},{"$f":"'800111 - Nota. Cuentas x cobrar'!$C$24","v":"co-svsp-core_2017-12-31:CxC_Total_cuentas_comerciales_por_cobrar_OCxC"}]
["/*",null,{"$f":"'800111 - Nota. Cuentas x cobrar'!$D$25","v":"Total cuentas por cobrar y otras cuentas por cobrar"},{"$f":"'800111 - Nota. Cuentas x cobrar'!$C$25","v":"co-svsp-core_2017-12-31:CxC_Total_cuentas_por_cobrar_y_otras_cuentas_por_cobrar"}]
["/*",null,"--06--"]
[{"$f":"IF(G1441=\"\",\"/*\",\"\")","v":"/*"},null,{"$f":"'800111 - Nota. Cuentas x cobrar'!$D$12","v":"Cuentas comerciales por cobrar y otras cuentas por cobrar"},{"$f":"'800111 - Nota. Cuentas x cobrar'!$C$12","v":"co-svsp-core_2017-12-31:CxC_Cuentas_comerciales_por_cobrar_y_otras_cuentas_por_cobrar"}]
["/*",null,{"$f":"'800111 - Nota. Cuentas x cobrar'!$D$13","v":"Cuentas comerciales por cobrar"},{"$f":"'800111 - Nota. Cuentas x cobrar'!$C$13","v":"co-svsp-core_2017-12-31:CxC_Cuentas_comerciales_por_cobrar"}]
["/*",null,{"$f":"'800111 - Nota. Cuentas x cobrar'!$D$14","v":"Cuentas comerciales por cobrar que no están en mora ni deterioradas de valor"},{"$f":"'800111 - Nota. Cuentas x cobrar'!$C$14","v":"co-svsp-core_2017-12-31:CxC_Cuentas_comerciales_por_cobrar_no_están_en_mora_ni_deterioradas_de_valor"}]
["/*",null,{"$f":"'800111 - Nota. Cuentas x cobrar'!$D$15","v":"Cuentas comerciales por cobrar en mora pero no deterioradas de valor"},{"$f":"'800111 - Nota. Cuentas x cobrar'!$C$15","v":"co-svsp-core_2017-12-31:CxC_Cuentas_comerciales_por_cobrar_en_mora_pero_no_deterioradas_de_valor"}]
["/*",null,{"$f":"'800111 - Nota. Cuentas x cobrar'!$D$16","v":"Cuentas comerciales por cobrar deterioradas de valor"},{"$f":"'800111 - Nota. Cuentas x cobrar'!$C$16","v":"co-svsp-core_2017-12-31:CxC_Cuentas_comerciales_por_cobrar_deterioradas_de_valor"}]
["/*",null,{"$f":"'800111 - Nota. Cuentas x cobrar'!$D$17","v":"Deterioro (menor valor)"},{"$f":"'800111 - Nota. Cuentas x cobrar'!$C$17","v":"co-svsp-core_2017-12-31:CxC_Deterioro_menor_valor"}]
["/*",null,{"$f":"'800111 - Nota. Cuentas x cobrar'!$D$18","v":"Total cuentas comerciales por cobrar"},{"$f":"'800111 - Nota. Cuentas x cobrar'!$C$18","v":"co-svsp-core_2017-12-31:CxC_Total_cuentas_comerciales_por_cobrar"}]
["/*",null,{"$f":"'800111 - Nota. Cuentas x cobrar'!$D$19","v":"Otras cuentas por cobrar"},{"$f":"'800111 - Nota. Cuentas x cobrar'!$C$19","v":"co-svsp-core_2017-12-31:CxC_Otras_cuentas_por_cobrar"}]
["/*",null,{"$f":"'800111 - Nota. Cuentas x cobrar'!$D$20","v":"Otras cuentas por cobrar que no están en mora ni deterioradas de valor"},{"$f":"'800111 - Nota. Cuentas x cobrar'!$C$20","v":"co-svsp-core_2017-12-31:CxC_Cuentas_comerciales_por_cobrar_no_están_en_mora_ni_deterioradas_de_valor_OCxC"}]
["/*",null,{"$f":"'800111 - Nota. Cuentas x cobrar'!$D$21","v":"Otras cuentas por cobrar en mora pero no deterioradas de valor"},{"$f":"'800111 - Nota. Cuentas x cobrar'!$C$21","v":"co-svsp-core_2017-12-31:CxC_Cuentas_comerciales_por_cobrar_en_mora_pero_no_deterioradas_de_valor_OCxC"}]
["/*",null,{"$f":"'800111 - Nota. Cuentas x cobrar'!$D$22","v":"Otras cuentas por cobrar deterioradas de valor"},{"$f":"'800111 - Nota. Cuentas x cobrar'!$C$22","v":"co-svsp-core_2017-12-31:CxC_Cuentas_comerciales_por_cobrar_deterioradas_de_valor_OCxC"}]
["/*",null,{"$f":"'800111 - Nota. Cuentas x cobrar'!$D$23","v":"Deterioro (menor valor)"},{"$f":"'800111 - Nota. Cuentas x cobrar'!$C$23","v":"co-svsp-core_2017-12-31:CxC_Deterioro_menor_valor_OCxC"}]
["/*",null,{"$f":"'800111 - Nota. Cuentas x cobrar'!$D$24","v":"Total otras cuentas por cobrar"},{"$f":"'800111 - Nota. Cuentas x cobrar'!$C$24","v":"co-svsp-core_2017-12-31:CxC_Total_cuentas_comerciales_por_cobrar_OCxC"}]
["/*",null,{"$f":"'800111 - Nota. Cuentas x cobrar'!$D$25","v":"Total cuentas por cobrar y otras cuentas por cobrar"},{"$f":"'800111 - Nota. Cuentas x cobrar'!$C$25","v":"co-svsp-core_2017-12-31:CxC_Total_cuentas_por_cobrar_y_otras_cuentas_por_cobrar"}]
["/*",null,"--07--"]
["/*",null,{"$f":"'800111 - Nota. Cuentas x cobrar'!$D$12","v":"Cuentas comerciales por cobrar y otras cuentas por cobrar"},{"$f":"'800111 - Nota. Cuentas x cobrar'!$C$12","v":"co-svsp-core_2017-12-31:CxC_Cuentas_comerciales_por_cobrar_y_otras_cuentas_por_cobrar"}]
["/*",null,{"$f":"'800111 - Nota. Cuentas x cobrar'!$D$13","v":"Cuentas comerciales por cobrar"},{"$f":"'800111 - Nota. Cuentas x cobrar'!$C$13","v":"co-svsp-core_2017-12-31:CxC_Cuentas_comerciales_por_cobrar"}]
["/*",null,{"$f":"'800111 - Nota. Cuentas x cobrar'!$D$14","v":"Cuentas comerciales por cobrar que no están en mora ni deterioradas de valor"},{"$f":"'800111 - Nota. Cuentas x cobrar'!$C$14","v":"co-svsp-core_2017-12-31:CxC_Cuentas_comerciales_por_cobrar_no_están_en_mora_ni_deterioradas_de_valor"}]
["/*",null,{"$f":"'800111 - Nota. Cuentas x cobrar'!$D$15","v":"Cuentas comerciales por cobrar en mora pero no deterioradas de valor"},{"$f":"'800111 - Nota. Cuentas x cobrar'!$C$15","v":"co-svsp-core_2017-12-31:CxC_Cuentas_comerciales_por_cobrar_en_mora_pero_no_deterioradas_de_valor"}]
["/*",null,{"$f":"'800111 - Nota. Cuentas x cobrar'!$D$16","v":"Cuentas comerciales por cobrar deterioradas de valor"},{"$f":"'800111 - Nota. Cuentas x cobrar'!$C$16","v":"co-svsp-core_2017-12-31:CxC_Cuentas_comerciales_por_cobrar_deterioradas_de_valor"}]
["/*",null,{"$f":"'800111 - Nota. Cuentas x cobrar'!$D$17","v":"Deterioro (menor valor)"},{"$f":"'800111 - Nota. Cuentas x cobrar'!$C$17","v":"co-svsp-core_2017-12-31:CxC_Deterioro_menor_valor"}]
["/*",null,{"$f":"'800111 - Nota. Cuentas x cobrar'!$D$18","v":"Total cuentas comerciales por cobrar"},{"$f":"'800111 - Nota. Cuentas x cobrar'!$C$18","v":"co-svsp-core_2017-12-31:CxC_Total_cuentas_comerciales_por_cobrar"}]
["/*",null,{"$f":"'800111 - Nota. Cuentas x cobrar'!$D$19","v":"Otras cuentas por cobrar"},{"$f":"'800111 - Nota. Cuentas x cobrar'!$C$19","v":"co-svsp-core_2017-12-31:CxC_Otras_cuentas_por_cobrar"}]
["/*",null,{"$f":"'800111 - Nota. Cuentas x cobrar'!$D$20","v":"Otras cuentas por cobrar que no están en mora ni deterioradas de valor"},{"$f":"'800111 - Nota. Cuentas x cobrar'!$C$20","v":"co-svsp-core_2017-12-31:CxC_Cuentas_comerciales_por_cobrar_no_están_en_mora_ni_deterioradas_de_valor_OCxC"}]
["/*",null,{"$f":"'800111 - Nota. Cuentas x cobrar'!$D$21","v":"Otras cuentas por cobrar en mora pero no deterioradas de valor"},{"$f":"'800111 - Nota. Cuentas x cobrar'!$C$21","v":"co-svsp-core_2017-12-31:CxC_Cuentas_comerciales_por_cobrar_en_mora_pero_no_deterioradas_de_valor_OCxC"}]
["/*",null,{"$f":"'800111 - Nota. Cuentas x cobrar'!$D$22","v":"Otras cuentas por cobrar deterioradas de valor"},{"$f":"'800111 - Nota. Cuentas x cobrar'!$C$22","v":"co-svsp-core_2017-12-31:CxC_Cuentas_comerciales_por_cobrar_deterioradas_de_valor_OCxC"}]
["/*",null,{"$f":"'800111 - Nota. Cuentas x cobrar'!$D$23","v":"Deterioro (menor valor)"},{"$f":"'800111 - Nota. Cuentas x cobrar'!$C$23","v":"co-svsp-core_2017-12-31:CxC_Deterioro_menor_valor_OCxC"}]
["/*",null,{"$f":"'800111 - Nota. Cuentas x cobrar'!$D$24","v":"Total otras cuentas por cobrar"},{"$f":"'800111 - Nota. Cuentas x cobrar'!$C$24","v":"co-svsp-core_2017-12-31:CxC_Total_cuentas_comerciales_por_cobrar_OCxC"}]
["/*",null,{"$f":"'800111 - Nota. Cuentas x cobrar'!$D$25","v":"Total cuentas por cobrar y otras cuentas por cobrar"},{"$f":"'800111 - Nota. Cuentas x cobrar'!$C$25","v":"co-svsp-core_2017-12-31:CxC_Total_cuentas_por_cobrar_y_otras_cuentas_por_cobrar"}]
["/*",null,"--08--"]
["/*",null,{"$f":"'800111 - Nota. Cuentas x cobrar'!$D$12","v":"Cuentas comerciales por cobrar y otras cuentas por cobrar"},{"$f":"'800111 - Nota. Cuentas x cobrar'!$C$12","v":"co-svsp-core_2017-12-31:CxC_Cuentas_comerciales_por_cobrar_y_otras_cuentas_por_cobrar"}]
["/*",null,{"$f":"'800111 - Nota. Cuentas x cobrar'!$D$13","v":"Cuentas comerciales por cobrar"},{"$f":"'800111 - Nota. Cuentas x cobrar'!$C$13","v":"co-svsp-core_2017-12-31:CxC_Cuentas_comerciales_por_cobrar"}]
["/*",null,{"$f":"'800111 - Nota. Cuentas x cobrar'!$D$14","v":"Cuentas comerciales por cobrar que no están en mora ni deterioradas de valor"},{"$f":"'800111 - Nota. Cuentas x cobrar'!$C$14","v":"co-svsp-core_2017-12-31:CxC_Cuentas_comerciales_por_cobrar_no_están_en_mora_ni_deterioradas_de_valor"}]
["/*",null,{"$f":"'800111 - Nota. Cuentas x cobrar'!$D$15","v":"Cuentas comerciales por cobrar en mora pero no deterioradas de valor"},{"$f":"'800111 - Nota. Cuentas x cobrar'!$C$15","v":"co-svsp-core_2017-12-31:CxC_Cuentas_comerciales_por_cobrar_en_mora_pero_no_deterioradas_de_valor"}]
["/*",null,{"$f":"'800111 - Nota. Cuentas x cobrar'!$D$16","v":"Cuentas comerciales por cobrar deterioradas de valor"},{"$f":"'800111 - Nota. Cuentas x cobrar'!$C$16","v":"co-svsp-core_2017-12-31:CxC_Cuentas_comerciales_por_cobrar_deterioradas_de_valor"}]
["/*",null,{"$f":"'800111 - Nota. Cuentas x cobrar'!$D$17","v":"Deterioro (menor valor)"},{"$f":"'800111 - Nota. Cuentas x cobrar'!$C$17","v":"co-svsp-core_2017-12-31:CxC_Deterioro_menor_valor"}]
["/*",null,{"$f":"'800111 - Nota. Cuentas x cobrar'!$D$18","v":"Total cuentas comerciales por cobrar"},{"$f":"'800111 - Nota. Cuentas x cobrar'!$C$18","v":"co-svsp-core_2017-12-31:CxC_Total_cuentas_comerciales_por_cobrar"}]
["/*",null,{"$f":"'800111 - Nota. Cuentas x cobrar'!$D$19","v":"Otras cuentas por cobrar"},{"$f":"'800111 - Nota. Cuentas x cobrar'!$C$19","v":"co-svsp-core_2017-12-31:CxC_Otras_cuentas_por_cobrar"}]
["/*",null,{"$f":"'800111 - Nota. Cuentas x cobrar'!$D$20","v":"Otras cuentas por cobrar que no están en mora ni deterioradas de valor"},{"$f":"'800111 - Nota. Cuentas x cobrar'!$C$20","v":"co-svsp-core_2017-12-31:CxC_Cuentas_comerciales_por_cobrar_no_están_en_mora_ni_deterioradas_de_valor_OCxC"}]
["/*",null,{"$f":"'800111 - Nota. Cuentas x cobrar'!$D$21","v":"Otras cuentas por cobrar en mora pero no deterioradas de valor"},{"$f":"'800111 - Nota. Cuentas x cobrar'!$C$21","v":"co-svsp-core_2017-12-31:CxC_Cuentas_comerciales_por_cobrar_en_mora_pero_no_deterioradas_de_valor_OCxC"}]
["/*",null,{"$f":"'800111 - Nota. Cuentas x cobrar'!$D$22","v":"Otras cuentas por cobrar deterioradas de valor"},{"$f":"'800111 - Nota. Cuentas x cobrar'!$C$22","v":"co-svsp-core_2017-12-31:CxC_Cuentas_comerciales_por_cobrar_deterioradas_de_valor_OCxC"}]
["/*",null,{"$f":"'800111 - Nota. Cuentas x cobrar'!$D$23","v":"Deterioro (menor valor)"},{"$f":"'800111 - Nota. Cuentas x cobrar'!$C$23","v":"co-svsp-core_2017-12-31:CxC_Deterioro_menor_valor_OCxC"}]
["/*",null,{"$f":"'800111 - Nota. Cuentas x cobrar'!$D$24","v":"Total otras cuentas por cobrar"},{"$f":"'800111 - Nota. Cuentas x cobrar'!$C$24","v":"co-svsp-core_2017-12-31:CxC_Total_cuentas_comerciales_por_cobrar_OCxC"}]
["/*",null,{"$f":"'800111 - Nota. Cuentas x cobrar'!$D$25","v":"Total cuentas por cobrar y otras cuentas por cobrar"},{"$f":"'800111 - Nota. Cuentas x cobrar'!$C$25","v":"co-svsp-core_2017-12-31:CxC_Total_cuentas_por_cobrar_y_otras_cuentas_por_cobrar"}]
["/*",null,"--09--"]
["/*",null,{"$f":"'800111 - Nota. Cuentas x cobrar'!$D$12","v":"Cuentas comerciales por cobrar y otras cuentas por cobrar"},{"$f":"'800111 - Nota. Cuentas x cobrar'!$C$12","v":"co-svsp-core_2017-12-31:CxC_Cuentas_comerciales_por_cobrar_y_otras_cuentas_por_cobrar"}]
["/*",null,{"$f":"'800111 - Nota. Cuentas x cobrar'!$D$13","v":"Cuentas comerciales por cobrar"},{"$f":"'800111 - Nota. Cuentas x cobrar'!$C$13","v":"co-svsp-core_2017-12-31:CxC_Cuentas_comerciales_por_cobrar"}]
["",null,{"$f":"'800111 - Nota. Cuentas x cobrar'!$D$14","v":"Cuentas comerciales por cobrar que no están en mora ni deterioradas de valor"},{"$f":"'800111 - Nota. Cuentas x cobrar'!$C$14","v":"co-svsp-core_2017-12-31:CxC_Cuentas_comerciales_por_cobrar_no_están_en_mora_ni_deterioradas_de_valor"},0,"peso",{"$f":"'800111 - Nota. Cuentas x cobrar'!$M$14","v":0},800001965,"http://www.xbrl.org/scheme/companyName",null,{"$f":"Periodos!$C$4","v":"2017-12-31"},{"$f":"'800111 - Nota. Cuentas x cobrar'!$D$11","v":"co-svsp-core_2017-12-31:CuentasPorCobrar_Eje"},{"$f":"'800111 - Nota. Cuentas x cobrar'!$M$10","v":"co-svsp-core_2017-12-31:CxC_Vencidas_mas_de_360_dias_Miembro"}]
["/*",null,{"$f":"'800111 - Nota. Cuentas x cobrar'!$D$15","v":"Cuentas comerciales por cobrar en mora pero no deterioradas de valor"},{"$f":"'800111 - Nota. Cuentas x cobrar'!$C$15","v":"co-svsp-core_2017-12-31:CxC_Cuentas_comerciales_por_cobrar_en_mora_pero_no_deterioradas_de_valor"}]
["/*",null,{"$f":"'800111 - Nota. Cuentas x cobrar'!$D$16","v":"Cuentas comerciales por cobrar deterioradas de valor"},{"$f":"'800111 - Nota. Cuentas x cobrar'!$C$16","v":"co-svsp-core_2017-12-31:CxC_Cuentas_comerciales_por_cobrar_deterioradas_de_valor"}]
["/*",null,{"$f":"'800111 - Nota. Cuentas x cobrar'!$D$17","v":"Deterioro (menor valor)"},{"$f":"'800111 - Nota. Cuentas x cobrar'!$C$17","v":"co-svsp-core_2017-12-31:CxC_Deterioro_menor_valor"}]
["",null,{"$f":"'800111 - Nota. Cuentas x cobrar'!$D$18","v":"Total cuentas comerciales por cobrar"},{"$f":"'800111 - Nota. Cuentas x cobrar'!$C$18","v":"co-svsp-core_2017-12-31:CxC_Total_cuentas_comerciales_por_cobrar"},0,"peso",{"$f":"'800111 - Nota. Cuentas x cobrar'!$M$18","v":0},800001965,"http://www.xbrl.org/scheme/companyName",null,{"$f":"Periodos!$C$4","v":"2017-12-31"},{"$f":"'800111 - Nota. Cuentas x cobrar'!$D$11","v":"co-svsp-core_2017-12-31:CuentasPorCobrar_Eje"},{"$f":"'800111 - Nota. Cuentas x cobrar'!$M$10","v":"co-svsp-core_2017-12-31:CxC_Vencidas_mas_de_360_dias_Miembro"}]
["/*",null,{"$f":"'800111 - Nota. Cuentas x cobrar'!$D$19","v":"Otras cuentas por cobrar"},{"$f":"'800111 - Nota. Cuentas x cobrar'!$C$19","v":"co-svsp-core_2017-12-31:CxC_Otras_cuentas_por_cobrar"}]
["/*",null,{"$f":"'800111 - Nota. Cuentas x cobrar'!$D$20","v":"Otras cuentas por cobrar que no están en mora ni deterioradas de valor"},{"$f":"'800111 - Nota. Cuentas x cobrar'!$C$20","v":"co-svsp-core_2017-12-31:CxC_Cuentas_comerciales_por_cobrar_no_están_en_mora_ni_deterioradas_de_valor_OCxC"}]
["/*",null,{"$f":"'800111 - Nota. Cuentas x cobrar'!$D$21","v":"Otras cuentas por cobrar en mora pero no deterioradas de valor"},{"$f":"'800111 - Nota. Cuentas x cobrar'!$C$21","v":"co-svsp-core_2017-12-31:CxC_Cuentas_comerciales_por_cobrar_en_mora_pero_no_deterioradas_de_valor_OCxC"}]
["/*",null,{"$f":"'800111 - Nota. Cuentas x cobrar'!$D$22","v":"Otras cuentas por cobrar deterioradas de valor"},{"$f":"'800111 - Nota. Cuentas x cobrar'!$C$22","v":"co-svsp-core_2017-12-31:CxC_Cuentas_comerciales_por_cobrar_deterioradas_de_valor_OCxC"}]
["/*",null,{"$f":"'800111 - Nota. Cuentas x cobrar'!$D$23","v":"Deterioro (menor valor)"},{"$f":"'800111 - Nota. Cuentas x cobrar'!$C$23","v":"co-svsp-core_2017-12-31:CxC_Deterioro_menor_valor_OCxC"}]
["/*",null,{"$f":"'800111 - Nota. Cuentas x cobrar'!$D$24","v":"Total otras cuentas por cobrar"},{"$f":"'800111 - Nota. Cuentas x cobrar'!$C$24","v":"co-svsp-core_2017-12-31:CxC_Total_cuentas_comerciales_por_cobrar_OCxC"}]
["",null,{"$f":"'800111 - Nota. Cuentas x cobrar'!$D$25","v":"Total cuentas por cobrar y otras cuentas por cobrar"},{"$f":"'800111 - Nota. Cuentas x cobrar'!$C$25","v":"co-svsp-core_2017-12-31:CxC_Total_cuentas_por_cobrar_y_otras_cuentas_por_cobrar"},0,"peso",{"$f":"'800111 - Nota. Cuentas x cobrar'!$M$25","v":0},800001965,"http://www.xbrl.org/scheme/companyName",null,{"$f":"Periodos!$C$4","v":"2017-12-31"},{"$f":"'800111 - Nota. Cuentas x cobrar'!$D$11","v":"co-svsp-core_2017-12-31:CuentasPorCobrar_Eje"},{"$f":"'800111 - Nota. Cuentas x cobrar'!$M$10","v":"co-svsp-core_2017-12-31:CxC_Vencidas_mas_de_360_dias_Miembro"}]
["/*",null,"--10--"]
["/*",null,{"$f":"'800111 - Nota. Cuentas x cobrar'!$D$12","v":"Cuentas comerciales por cobrar y otras cuentas por cobrar"},{"$f":"'800111 - Nota. Cuentas x cobrar'!$C$12","v":"co-svsp-core_2017-12-31:CxC_Cuentas_comerciales_por_cobrar_y_otras_cuentas_por_cobrar"}]
["/*",null,{"$f":"'800111 - Nota. Cuentas x cobrar'!$D$13","v":"Cuentas comerciales por cobrar"},{"$f":"'800111 - Nota. Cuentas x cobrar'!$C$13","v":"co-svsp-core_2017-12-31:CxC_Cuentas_comerciales_por_cobrar"}]
["",null,{"$f":"'800111 - Nota. Cuentas x cobrar'!$D$14","v":"Cuentas comerciales por cobrar que no están en mora ni deterioradas de valor"},{"$f":"'800111 - Nota. Cuentas x cobrar'!$C$14","v":"co-svsp-core_2017-12-31:CxC_Cuentas_comerciales_por_cobrar_no_están_en_mora_ni_deterioradas_de_valor"},0,"peso",{"$f":"'800111 - Nota. Cuentas x cobrar'!$N$14","v":0},800001965,"http://www.xbrl.org/scheme/companyName",null,{"$f":"Periodos!$C$4","v":"2017-12-31"},{"$f":"'800111 - Nota. Cuentas x cobrar'!$D$11","v":"co-svsp-core_2017-12-31:CuentasPorCobrar_Eje"},{"$f":"'800111 - Nota. Cuentas x cobrar'!$N$10","v":"co-svsp-core_2017-12-31:CxC_Total_Vencidas_Miembro"}]
["/*",null,{"$f":"'800111 - Nota. Cuentas x cobrar'!$D$15","v":"Cuentas comerciales por cobrar en mora pero no deterioradas de valor"},{"$f":"'800111 - Nota. Cuentas x cobrar'!$C$15","v":"co-svsp-core_2017-12-31:CxC_Cuentas_comerciales_por_cobrar_en_mora_pero_no_deterioradas_de_valor"}]
[{"$f":"IF(G1505=\"\",\"/*\",\"\")","v":"/*"},null,{"$f":"'800111 - Nota. Cuentas x cobrar'!$D$16","v":"Cuentas comerciales por cobrar deterioradas de valor"},{"$f":"'800111 - Nota. Cuentas x cobrar'!$C$16","v":"co-svsp-core_2017-12-31:CxC_Cuentas_comerciales_por_cobrar_deterioradas_de_valor"}]
["/*",null,{"$f":"'800111 - Nota. Cuentas x cobrar'!$D$17","v":"Deterioro (menor valor)"},{"$f":"'800111 - Nota. Cuentas x cobrar'!$C$17","v":"co-svsp-core_2017-12-31:CxC_Deterioro_menor_valor"}]
["",null,{"$f":"'800111 - Nota. Cuentas x cobrar'!$D$18","v":"Total cuentas comerciales por cobrar"},{"$f":"'800111 - Nota. Cuentas x cobrar'!$C$18","v":"co-svsp-core_2017-12-31:CxC_Total_cuentas_comerciales_por_cobrar"},0,"peso",{"$f":"'800111 - Nota. Cuentas x cobrar'!$N$18","v":0},800001965,"http://www.xbrl.org/scheme/companyName",null,{"$f":"Periodos!$C$4","v":"2017-12-31"},{"$f":"'800111 - Nota. Cuentas x cobrar'!$D$11","v":"co-svsp-core_2017-12-31:CuentasPorCobrar_Eje"},{"$f":"'800111 - Nota. Cuentas x cobrar'!$N$10","v":"co-svsp-core_2017-12-31:CxC_Total_Vencidas_Miembro"}]
["/*",null,{"$f":"'800111 - Nota. Cuentas x cobrar'!$D$19","v":"Otras cuentas por cobrar"},{"$f":"'800111 - Nota. Cuentas x cobrar'!$C$19","v":"co-svsp-core_2017-12-31:CxC_Otras_cuentas_por_cobrar"}]
["/*",null,{"$f":"'800111 - Nota. Cuentas x cobrar'!$D$20","v":"Otras cuentas por cobrar que no están en mora ni deterioradas de valor"},{"$f":"'800111 - Nota. Cuentas x cobrar'!$C$20","v":"co-svsp-core_2017-12-31:CxC_Cuentas_comerciales_por_cobrar_no_están_en_mora_ni_deterioradas_de_valor_OCxC"}]
["/*",null,{"$f":"'800111 - Nota. Cuentas x cobrar'!$D$21","v":"Otras cuentas por cobrar en mora pero no deterioradas de valor"},{"$f":"'800111 - Nota. Cuentas x cobrar'!$C$21","v":"co-svsp-core_2017-12-31:CxC_Cuentas_comerciales_por_cobrar_en_mora_pero_no_deterioradas_de_valor_OCxC"}]
["/*",null,{"$f":"'800111 - Nota. Cuentas x cobrar'!$D$22","v":"Otras cuentas por cobrar deterioradas de valor"},{"$f":"'800111 - Nota. Cuentas x cobrar'!$C$22","v":"co-svsp-core_2017-12-31:CxC_Cuentas_comerciales_por_cobrar_deterioradas_de_valor_OCxC"}]
["/*",null,{"$f":"'800111 - Nota. Cuentas x cobrar'!$D$23","v":"Deterioro (menor valor)"},{"$f":"'800111 - Nota. Cuentas x cobrar'!$C$23","v":"co-svsp-core_2017-12-31:CxC_Deterioro_menor_valor_OCxC"}]
["/*",null,{"$f":"'800111 - Nota. Cuentas x cobrar'!$D$24","v":"Total otras cuentas por cobrar"},{"$f":"'800111 - Nota. Cuentas x cobrar'!$C$24","v":"co-svsp-core_2017-12-31:CxC_Total_cuentas_comerciales_por_cobrar_OCxC"}]
["",null,{"$f":"'800111 - Nota. Cuentas x cobrar'!$D$25","v":"Total cuentas por cobrar y otras cuentas por cobrar"},{"$f":"'800111 - Nota. Cuentas x cobrar'!$C$25","v":"co-svsp-core_2017-12-31:CxC_Total_cuentas_por_cobrar_y_otras_cuentas_por_cobrar"},0,"peso",{"$f":"'800111 - Nota. Cuentas x cobrar'!$N$25","v":0},800001965,"http://www.xbrl.org/scheme/companyName",null,{"$f":"Periodos!$C$4","v":"2017-12-31"},{"$f":"'800111 - Nota. Cuentas x cobrar'!$D$11","v":"co-svsp-core_2017-12-31:CuentasPorCobrar_Eje"},{"$f":"'800111 - Nota. Cuentas x cobrar'!$N$10","v":"co-svsp-core_2017-12-31:CxC_Total_Vencidas_Miembro"}]
["/*"]
["/*",null,"800111 - Nota. Cuentas x cobrar"]
["/*",null,"--01--"]
["/*",null,{"$f":"'800111 - Nota. Cuentas x cobrar'!$D$36","v":"Cuentas comerciales por cobrar y otras cuentas por cobrar"},{"$f":"'800111 - Nota. Cuentas x cobrar'!$C$36","v":"co-svsp-core_2017-12-31:CxC_Cuentas_comerciales_por_cobrar_y_otras_cuentas_por_cobrar"}]
["/*",null,{"$f":"'800111 - Nota. Cuentas x cobrar'!$D$37","v":"Cuentas comerciales por cobrar"},{"$f":"'800111 - Nota. Cuentas x cobrar'!$C$37","v":"co-svsp-core_2017-12-31:CxC_Cuentas_comerciales_por_cobrar"}]
["/*",null,{"$f":"'800111 - Nota. Cuentas x cobrar'!$D$38","v":"Cuentas comerciales por cobrar que no están en mora ni deterioradas de valor"},{"$f":"'800111 - Nota. Cuentas x cobrar'!$C$38","v":"co-svsp-core_2017-12-31:CxC_Cuentas_comerciales_por_cobrar_no_están_en_mora_ni_deterioradas_de_valor"}]
["/*",null,{"$f":"'800111 - Nota. Cuentas x cobrar'!$D$39","v":"Cuentas comerciales por cobrar en mora pero no deterioradas de valor"},{"$f":"'800111 - Nota. Cuentas x cobrar'!$C$39","v":"co-svsp-core_2017-12-31:CxC_Cuentas_comerciales_por_cobrar_en_mora_pero_no_deterioradas_de_valor"}]
["/*",null,{"$f":"'800111 - Nota. Cuentas x cobrar'!$D$40","v":"Cuentas comerciales por cobrar deterioradas de valor"},{"$f":"'800111 - Nota. Cuentas x cobrar'!$C$40","v":"co-svsp-core_2017-12-31:CxC_Cuentas_comerciales_por_cobrar_deterioradas_de_valor"}]
["/*",null,{"$f":"'800111 - Nota. Cuentas x cobrar'!$D$41","v":"Deterioro (menor valor)"},{"$f":"'800111 - Nota. Cuentas x cobrar'!$C$41","v":"co-svsp-core_2017-12-31:CxC_Deterioro_menor_valor"}]
["/*",null,{"$f":"'800111 - Nota. Cuentas x cobrar'!$D$42","v":"Total cuentas comerciales por cobrar"},{"$f":"'800111 - Nota. Cuentas x cobrar'!$C$42","v":"co-svsp-core_2017-12-31:CxC_Total_cuentas_comerciales_por_cobrar"}]
["/*",null,{"$f":"'800111 - Nota. Cuentas x cobrar'!$D$43","v":"Otras cuentas por cobrar"},{"$f":"'800111 - Nota. Cuentas x cobrar'!$C$43","v":"co-svsp-core_2017-12-31:CxC_Otras_cuentas_por_cobrar"}]
["/*",null,{"$f":"'800111 - Nota. Cuentas x cobrar'!$D$44","v":"Otras cuentas por cobrar que no están en mora ni deterioradas de valor"},{"$f":"'800111 - Nota. Cuentas x cobrar'!$C$44","v":"co-svsp-core_2017-12-31:CxC_Cuentas_comerciales_por_cobrar_no_están_en_mora_ni_deterioradas_de_valor_OCxC"}]
["/*",null,{"$f":"'800111 - Nota. Cuentas x cobrar'!$D$45","v":"Otras cuentas por cobrar en mora pero no deterioradas de valor"},{"$f":"'800111 - Nota. Cuentas x cobrar'!$C$45","v":"co-svsp-core_2017-12-31:CxC_Cuentas_comerciales_por_cobrar_en_mora_pero_no_deterioradas_de_valor_OCxC"}]
["/*",null,{"$f":"'800111 - Nota. Cuentas x cobrar'!$D$46","v":"Otras cuentas por cobrar deterioradas de valor"},{"$f":"'800111 - Nota. Cuentas x cobrar'!$C$46","v":"co-svsp-core_2017-12-31:CxC_Cuentas_comerciales_por_cobrar_deterioradas_de_valor_OCxC"}]
["/*",null,{"$f":"'800111 - Nota. Cuentas x cobrar'!$D$47","v":"Deterioro (menor valor)"},{"$f":"'800111 - Nota. Cuentas x cobrar'!$C$47","v":"co-svsp-core_2017-12-31:CxC_Deterioro_menor_valor_OCxC"}]
["/*",null,{"$f":"'800111 - Nota. Cuentas x cobrar'!$D$48","v":"Total otras cuentas por cobrar"},{"$f":"'800111 - Nota. Cuentas x cobrar'!$C$48","v":"co-svsp-core_2017-12-31:CxC_Total_cuentas_comerciales_por_cobrar_OCxC"}]
["/*",null,{"$f":"'800111 - Nota. Cuentas x cobrar'!$D$49","v":"Total cuentas por cobrar y otras cuentas por cobrar"},{"$f":"'800111 - Nota. Cuentas x cobrar'!$C$49","v":"co-svsp-core_2017-12-31:CxC_Total_cuentas_por_cobrar_y_otras_cuentas_por_cobrar"}]
["/*",null,"--02--"]
["/*",null,{"$f":"'800111 - Nota. Cuentas x cobrar'!$D$36","v":"Cuentas comerciales por cobrar y otras cuentas por cobrar"},{"$f":"'800111 - Nota. Cuentas x cobrar'!$C$36","v":"co-svsp-core_2017-12-31:CxC_Cuentas_comerciales_por_cobrar_y_otras_cuentas_por_cobrar"}]
["/*",null,{"$f":"'800111 - Nota. Cuentas x cobrar'!$D$37","v":"Cuentas comerciales por cobrar"},{"$f":"'800111 - Nota. Cuentas x cobrar'!$C$37","v":"co-svsp-core_2017-12-31:CxC_Cuentas_comerciales_por_cobrar"}]
["/*",null,{"$f":"'800111 - Nota. Cuentas x cobrar'!$D$38","v":"Cuentas comerciales por cobrar que no están en mora ni deterioradas de valor"},{"$f":"'800111 - Nota. Cuentas x cobrar'!$C$38","v":"co-svsp-core_2017-12-31:CxC_Cuentas_comerciales_por_cobrar_no_están_en_mora_ni_deterioradas_de_valor"}]
["/*",null,{"$f":"'800111 - Nota. Cuentas x cobrar'!$D$39","v":"Cuentas comerciales por cobrar en mora pero no deterioradas de valor"},{"$f":"'800111 - Nota. Cuentas x cobrar'!$C$39","v":"co-svsp-core_2017-12-31:CxC_Cuentas_comerciales_por_cobrar_en_mora_pero_no_deterioradas_de_valor"}]
["/*",null,{"$f":"'800111 - Nota. Cuentas x cobrar'!$D$40","v":"Cuentas comerciales por cobrar deterioradas de valor"},{"$f":"'800111 - Nota. Cuentas x cobrar'!$C$40","v":"co-svsp-core_2017-12-31:CxC_Cuentas_comerciales_por_cobrar_deterioradas_de_valor"}]
["/*",null,{"$f":"'800111 - Nota. Cuentas x cobrar'!$D$41","v":"Deterioro (menor valor)"},{"$f":"'800111 - Nota. Cuentas x cobrar'!$C$41","v":"co-svsp-core_2017-12-31:CxC_Deterioro_menor_valor"}]
["/*",null,{"$f":"'800111 - Nota. Cuentas x cobrar'!$D$42","v":"Total cuentas comerciales por cobrar"},{"$f":"'800111 - Nota. Cuentas x cobrar'!$C$42","v":"co-svsp-core_2017-12-31:CxC_Total_cuentas_comerciales_por_cobrar"}]
["/*",null,{"$f":"'800111 - Nota. Cuentas x cobrar'!$D$43","v":"Otras cuentas por cobrar"},{"$f":"'800111 - Nota. Cuentas x cobrar'!$C$43","v":"co-svsp-core_2017-12-31:CxC_Otras_cuentas_por_cobrar"}]
["/*",null,{"$f":"'800111 - Nota. Cuentas x cobrar'!$D$44","v":"Otras cuentas por cobrar que no están en mora ni deterioradas de valor"},{"$f":"'800111 - Nota. Cuentas x cobrar'!$C$44","v":"co-svsp-core_2017-12-31:CxC_Cuentas_comerciales_por_cobrar_no_están_en_mora_ni_deterioradas_de_valor_OCxC"}]
["/*",null,{"$f":"'800111 - Nota. Cuentas x cobrar'!$D$45","v":"Otras cuentas por cobrar en mora pero no deterioradas de valor"},{"$f":"'800111 - Nota. Cuentas x cobrar'!$C$45","v":"co-svsp-core_2017-12-31:CxC_Cuentas_comerciales_por_cobrar_en_mora_pero_no_deterioradas_de_valor_OCxC"}]
["/*",null,{"$f":"'800111 - Nota. Cuentas x cobrar'!$D$46","v":"Otras cuentas por cobrar deterioradas de valor"},{"$f":"'800111 - Nota. Cuentas x cobrar'!$C$46","v":"co-svsp-core_2017-12-31:CxC_Cuentas_comerciales_por_cobrar_deterioradas_de_valor_OCxC"}]
["/*",null,{"$f":"'800111 - Nota. Cuentas x cobrar'!$D$47","v":"Deterioro (menor valor)"},{"$f":"'800111 - Nota. Cuentas x cobrar'!$C$47","v":"co-svsp-core_2017-12-31:CxC_Deterioro_menor_valor_OCxC"}]
["/*",null,{"$f":"'800111 - Nota. Cuentas x cobrar'!$D$48","v":"Total otras cuentas por cobrar"},{"$f":"'800111 - Nota. Cuentas x cobrar'!$C$48","v":"co-svsp-core_2017-12-31:CxC_Total_cuentas_comerciales_por_cobrar_OCxC"}]
["/*",null,{"$f":"'800111 - Nota. Cuentas x cobrar'!$D$49","v":"Total cuentas por cobrar y otras cuentas por cobrar"},{"$f":"'800111 - Nota. Cuentas x cobrar'!$C$49","v":"co-svsp-core_2017-12-31:CxC_Total_cuentas_por_cobrar_y_otras_cuentas_por_cobrar"}]
["/*",null,"--03--"]
["/*",null,{"$f":"'800111 - Nota. Cuentas x cobrar'!$D$36","v":"Cuentas comerciales por cobrar y otras cuentas por cobrar"},{"$f":"'800111 - Nota. Cuentas x cobrar'!$C$36","v":"co-svsp-core_2017-12-31:CxC_Cuentas_comerciales_por_cobrar_y_otras_cuentas_por_cobrar"}]
["/*",null,{"$f":"'800111 - Nota. Cuentas x cobrar'!$D$37","v":"Cuentas comerciales por cobrar"},{"$f":"'800111 - Nota. Cuentas x cobrar'!$C$37","v":"co-svsp-core_2017-12-31:CxC_Cuentas_comerciales_por_cobrar"}]
["/*",null,{"$f":"'800111 - Nota. Cuentas x cobrar'!$D$38","v":"Cuentas comerciales por cobrar que no están en mora ni deterioradas de valor"},{"$f":"'800111 - Nota. Cuentas x cobrar'!$C$38","v":"co-svsp-core_2017-12-31:CxC_Cuentas_comerciales_por_cobrar_no_están_en_mora_ni_deterioradas_de_valor"}]
["/*",null,{"$f":"'800111 - Nota. Cuentas x cobrar'!$D$39","v":"Cuentas comerciales por cobrar en mora pero no deterioradas de valor"},{"$f":"'800111 - Nota. Cuentas x cobrar'!$C$39","v":"co-svsp-core_2017-12-31:CxC_Cuentas_comerciales_por_cobrar_en_mora_pero_no_deterioradas_de_valor"}]
["/*",null,{"$f":"'800111 - Nota. Cuentas x cobrar'!$D$40","v":"Cuentas comerciales por cobrar deterioradas de valor"},{"$f":"'800111 - Nota. Cuentas x cobrar'!$C$40","v":"co-svsp-core_2017-12-31:CxC_Cuentas_comerciales_por_cobrar_deterioradas_de_valor"}]
["/*",null,{"$f":"'800111 - Nota. Cuentas x cobrar'!$D$41","v":"Deterioro (menor valor)"},{"$f":"'800111 - Nota. Cuentas x cobrar'!$C$41","v":"co-svsp-core_2017-12-31:CxC_Deterioro_menor_valor"}]
["/*",null,{"$f":"'800111 - Nota. Cuentas x cobrar'!$D$42","v":"Total cuentas comerciales por cobrar"},{"$f":"'800111 - Nota. Cuentas x cobrar'!$C$42","v":"co-svsp-core_2017-12-31:CxC_Total_cuentas_comerciales_por_cobrar"}]
["/*",null,{"$f":"'800111 - Nota. Cuentas x cobrar'!$D$43","v":"Otras cuentas por cobrar"},{"$f":"'800111 - Nota. Cuentas x cobrar'!$C$43","v":"co-svsp-core_2017-12-31:CxC_Otras_cuentas_por_cobrar"}]
["/*",null,{"$f":"'800111 - Nota. Cuentas x cobrar'!$D$44","v":"Otras cuentas por cobrar que no están en mora ni deterioradas de valor"},{"$f":"'800111 - Nota. Cuentas x cobrar'!$C$44","v":"co-svsp-core_2017-12-31:CxC_Cuentas_comerciales_por_cobrar_no_están_en_mora_ni_deterioradas_de_valor_OCxC"}]
["/*",null,{"$f":"'800111 - Nota. Cuentas x cobrar'!$D$45","v":"Otras cuentas por cobrar en mora pero no deterioradas de valor"},{"$f":"'800111 - Nota. Cuentas x cobrar'!$C$45","v":"co-svsp-core_2017-12-31:CxC_Cuentas_comerciales_por_cobrar_en_mora_pero_no_deterioradas_de_valor_OCxC"}]
["/*",null,{"$f":"'800111 - Nota. Cuentas x cobrar'!$D$46","v":"Otras cuentas por cobrar deterioradas de valor"},{"$f":"'800111 - Nota. Cuentas x cobrar'!$C$46","v":"co-svsp-core_2017-12-31:CxC_Cuentas_comerciales_por_cobrar_deterioradas_de_valor_OCxC"}]
["/*",null,{"$f":"'800111 - Nota. Cuentas x cobrar'!$D$47","v":"Deterioro (menor valor)"},{"$f":"'800111 - Nota. Cuentas x cobrar'!$C$47","v":"co-svsp-core_2017-12-31:CxC_Deterioro_menor_valor_OCxC"}]
["/*",null,{"$f":"'800111 - Nota. Cuentas x cobrar'!$D$48","v":"Total otras cuentas por cobrar"},{"$f":"'800111 - Nota. Cuentas x cobrar'!$C$48","v":"co-svsp-core_2017-12-31:CxC_Total_cuentas_comerciales_por_cobrar_OCxC"}]
["/*",null,{"$f":"'800111 - Nota. Cuentas x cobrar'!$D$49","v":"Total cuentas por cobrar y otras cuentas por cobrar"},{"$f":"'800111 - Nota. Cuentas x cobrar'!$C$49","v":"co-svsp-core_2017-12-31:CxC_Total_cuentas_por_cobrar_y_otras_cuentas_por_cobrar"}]
["/*",null,"--04--"]
["/*",null,{"$f":"'800111 - Nota. Cuentas x cobrar'!$D$36","v":"Cuentas comerciales por cobrar y otras cuentas por cobrar"},{"$f":"'800111 - Nota. Cuentas x cobrar'!$C$36","v":"co-svsp-core_2017-12-31:CxC_Cuentas_comerciales_por_cobrar_y_otras_cuentas_por_cobrar"}]
["/*",null,{"$f":"'800111 - Nota. Cuentas x cobrar'!$D$37","v":"Cuentas comerciales por cobrar"},{"$f":"'800111 - Nota. Cuentas x cobrar'!$C$37","v":"co-svsp-core_2017-12-31:CxC_Cuentas_comerciales_por_cobrar"}]
["/*",null,{"$f":"'800111 - Nota. Cuentas x cobrar'!$D$38","v":"Cuentas comerciales por cobrar que no están en mora ni deterioradas de valor"},{"$f":"'800111 - Nota. Cuentas x cobrar'!$C$38","v":"co-svsp-core_2017-12-31:CxC_Cuentas_comerciales_por_cobrar_no_están_en_mora_ni_deterioradas_de_valor"}]
["/*",null,{"$f":"'800111 - Nota. Cuentas x cobrar'!$D$39","v":"Cuentas comerciales por cobrar en mora pero no deterioradas de valor"},{"$f":"'800111 - Nota. Cuentas x cobrar'!$C$39","v":"co-svsp-core_2017-12-31:CxC_Cuentas_comerciales_por_cobrar_en_mora_pero_no_deterioradas_de_valor"}]
["/*",null,{"$f":"'800111 - Nota. Cuentas x cobrar'!$D$40","v":"Cuentas comerciales por cobrar deterioradas de valor"},{"$f":"'800111 - Nota. Cuentas x cobrar'!$C$40","v":"co-svsp-core_2017-12-31:CxC_Cuentas_comerciales_por_cobrar_deterioradas_de_valor"}]
["/*",null,{"$f":"'800111 - Nota. Cuentas x cobrar'!$D$41","v":"Deterioro (menor valor)"},{"$f":"'800111 - Nota. Cuentas x cobrar'!$C$41","v":"co-svsp-core_2017-12-31:CxC_Deterioro_menor_valor"}]
[{"$f":"IF(G1569=\"\",\"/*\",\"\")","v":"/*"},null,{"$f":"'800111 - Nota. Cuentas x cobrar'!$D$42","v":"Total cuentas comerciales por cobrar"},{"$f":"'800111 - Nota. Cuentas x cobrar'!$C$42","v":"co-svsp-core_2017-12-31:CxC_Total_cuentas_comerciales_por_cobrar"}]
["/*",null,{"$f":"'800111 - Nota. Cuentas x cobrar'!$D$43","v":"Otras cuentas por cobrar"},{"$f":"'800111 - Nota. Cuentas x cobrar'!$C$43","v":"co-svsp-core_2017-12-31:CxC_Otras_cuentas_por_cobrar"}]
["/*",null,{"$f":"'800111 - Nota. Cuentas x cobrar'!$D$44","v":"Otras cuentas por cobrar que no están en mora ni deterioradas de valor"},{"$f":"'800111 - Nota. Cuentas x cobrar'!$C$44","v":"co-svsp-core_2017-12-31:CxC_Cuentas_comerciales_por_cobrar_no_están_en_mora_ni_deterioradas_de_valor_OCxC"}]
["/*",null,{"$f":"'800111 - Nota. Cuentas x cobrar'!$D$45","v":"Otras cuentas por cobrar en mora pero no deterioradas de valor"},{"$f":"'800111 - Nota. Cuentas x cobrar'!$C$45","v":"co-svsp-core_2017-12-31:CxC_Cuentas_comerciales_por_cobrar_en_mora_pero_no_deterioradas_de_valor_OCxC"}]
["/*",null,{"$f":"'800111 - Nota. Cuentas x cobrar'!$D$46","v":"Otras cuentas por cobrar deterioradas de valor"},{"$f":"'800111 - Nota. Cuentas x cobrar'!$C$46","v":"co-svsp-core_2017-12-31:CxC_Cuentas_comerciales_por_cobrar_deterioradas_de_valor_OCxC"}]
["/*",null,{"$f":"'800111 - Nota. Cuentas x cobrar'!$D$47","v":"Deterioro (menor valor)"},{"$f":"'800111 - Nota. Cuentas x cobrar'!$C$47","v":"co-svsp-core_2017-12-31:CxC_Deterioro_menor_valor_OCxC"}]
["/*",null,{"$f":"'800111 - Nota. Cuentas x cobrar'!$D$48","v":"Total otras cuentas por cobrar"},{"$f":"'800111 - Nota. Cuentas x cobrar'!$C$48","v":"co-svsp-core_2017-12-31:CxC_Total_cuentas_comerciales_por_cobrar_OCxC"}]
["/*",null,{"$f":"'800111 - Nota. Cuentas x cobrar'!$D$49","v":"Total cuentas por cobrar y otras cuentas por cobrar"},{"$f":"'800111 - Nota. Cuentas x cobrar'!$C$49","v":"co-svsp-core_2017-12-31:CxC_Total_cuentas_por_cobrar_y_otras_cuentas_por_cobrar"}]
["/*",null,"--05--"]
["/*",null,{"$f":"'800111 - Nota. Cuentas x cobrar'!$D$36","v":"Cuentas comerciales por cobrar y otras cuentas por cobrar"},{"$f":"'800111 - Nota. Cuentas x cobrar'!$C$36","v":"co-svsp-core_2017-12-31:CxC_Cuentas_comerciales_por_cobrar_y_otras_cuentas_por_cobrar"}]
["/*",null,{"$f":"'800111 - Nota. Cuentas x cobrar'!$D$37","v":"Cuentas comerciales por cobrar"},{"$f":"'800111 - Nota. Cuentas x cobrar'!$C$37","v":"co-svsp-core_2017-12-31:CxC_Cuentas_comerciales_por_cobrar"}]
["/*",null,{"$f":"'800111 - Nota. Cuentas x cobrar'!$D$38","v":"Cuentas comerciales por cobrar que no están en mora ni deterioradas de valor"},{"$f":"'800111 - Nota. Cuentas x cobrar'!$C$38","v":"co-svsp-core_2017-12-31:CxC_Cuentas_comerciales_por_cobrar_no_están_en_mora_ni_deterioradas_de_valor"}]
["/*",null,{"$f":"'800111 - Nota. Cuentas x cobrar'!$D$39","v":"Cuentas comerciales por cobrar en mora pero no deterioradas de valor"},{"$f":"'800111 - Nota. Cuentas x cobrar'!$C$39","v":"co-svsp-core_2017-12-31:CxC_Cuentas_comerciales_por_cobrar_en_mora_pero_no_deterioradas_de_valor"}]
["/*",null,{"$f":"'800111 - Nota. Cuentas x cobrar'!$D$40","v":"Cuentas comerciales por cobrar deterioradas de valor"},{"$f":"'800111 - Nota. Cuentas x cobrar'!$C$40","v":"co-svsp-core_2017-12-31:CxC_Cuentas_comerciales_por_cobrar_deterioradas_de_valor"}]
["/*",null,{"$f":"'800111 - Nota. Cuentas x cobrar'!$D$41","v":"Deterioro (menor valor)"},{"$f":"'800111 - Nota. Cuentas x cobrar'!$C$41","v":"co-svsp-core_2017-12-31:CxC_Deterioro_menor_valor"}]
["/*",null,{"$f":"'800111 - Nota. Cuentas x cobrar'!$D$42","v":"Total cuentas comerciales por cobrar"},{"$f":"'800111 - Nota. Cuentas x cobrar'!$C$42","v":"co-svsp-core_2017-12-31:CxC_Total_cuentas_comerciales_por_cobrar"}]
["/*",null,{"$f":"'800111 - Nota. Cuentas x cobrar'!$D$43","v":"Otras cuentas por cobrar"},{"$f":"'800111 - Nota. Cuentas x cobrar'!$C$43","v":"co-svsp-core_2017-12-31:CxC_Otras_cuentas_por_cobrar"}]
["/*",null,{"$f":"'800111 - Nota. Cuentas x cobrar'!$D$44","v":"Otras cuentas por cobrar que no están en mora ni deterioradas de valor"},{"$f":"'800111 - Nota. Cuentas x cobrar'!$C$44","v":"co-svsp-core_2017-12-31:CxC_Cuentas_comerciales_por_cobrar_no_están_en_mora_ni_deterioradas_de_valor_OCxC"}]
["/*",null,{"$f":"'800111 - Nota. Cuentas x cobrar'!$D$45","v":"Otras cuentas por cobrar en mora pero no deterioradas de valor"},{"$f":"'800111 - Nota. Cuentas x cobrar'!$C$45","v":"co-svsp-core_2017-12-31:CxC_Cuentas_comerciales_por_cobrar_en_mora_pero_no_deterioradas_de_valor_OCxC"}]
["/*",null,{"$f":"'800111 - Nota. Cuentas x cobrar'!$D$46","v":"Otras cuentas por cobrar deterioradas de valor"},{"$f":"'800111 - Nota. Cuentas x cobrar'!$C$46","v":"co-svsp-core_2017-12-31:CxC_Cuentas_comerciales_por_cobrar_deterioradas_de_valor_OCxC"}]
["/*",null,{"$f":"'800111 - Nota. Cuentas x cobrar'!$D$47","v":"Deterioro (menor valor)"},{"$f":"'800111 - Nota. Cuentas x cobrar'!$C$47","v":"co-svsp-core_2017-12-31:CxC_Deterioro_menor_valor_OCxC"}]
["/*",null,{"$f":"'800111 - Nota. Cuentas x cobrar'!$D$48","v":"Total otras cuentas por cobrar"},{"$f":"'800111 - Nota. Cuentas x cobrar'!$C$48","v":"co-svsp-core_2017-12-31:CxC_Total_cuentas_comerciales_por_cobrar_OCxC"}]
["/*",null,{"$f":"'800111 - Nota. Cuentas x cobrar'!$D$49","v":"Total cuentas por cobrar y otras cuentas por cobrar"},{"$f":"'800111 - Nota. Cuentas x cobrar'!$C$49","v":"co-svsp-core_2017-12-31:CxC_Total_cuentas_por_cobrar_y_otras_cuentas_por_cobrar"}]
["/*",null,"--06--"]
["/*",null,{"$f":"'800111 - Nota. Cuentas x cobrar'!$D$36","v":"Cuentas comerciales por cobrar y otras cuentas por cobrar"},{"$f":"'800111 - Nota. Cuentas x cobrar'!$C$36","v":"co-svsp-core_2017-12-31:CxC_Cuentas_comerciales_por_cobrar_y_otras_cuentas_por_cobrar"}]
["/*",null,{"$f":"'800111 - Nota. Cuentas x cobrar'!$D$37","v":"Cuentas comerciales por cobrar"},{"$f":"'800111 - Nota. Cuentas x cobrar'!$C$37","v":"co-svsp-core_2017-12-31:CxC_Cuentas_comerciales_por_cobrar"}]
["/*",null,{"$f":"'800111 - Nota. Cuentas x cobrar'!$D$38","v":"Cuentas comerciales por cobrar que no están en mora ni deterioradas de valor"},{"$f":"'800111 - Nota. Cuentas x cobrar'!$C$38","v":"co-svsp-core_2017-12-31:CxC_Cuentas_comerciales_por_cobrar_no_están_en_mora_ni_deterioradas_de_valor"}]
["/*",null,{"$f":"'800111 - Nota. Cuentas x cobrar'!$D$39","v":"Cuentas comerciales por cobrar en mora pero no deterioradas de valor"},{"$f":"'800111 - Nota. Cuentas x cobrar'!$C$39","v":"co-svsp-core_2017-12-31:CxC_Cuentas_comerciales_por_cobrar_en_mora_pero_no_deterioradas_de_valor"}]
["/*",null,{"$f":"'800111 - Nota. Cuentas x cobrar'!$D$40","v":"Cuentas comerciales por cobrar deterioradas de valor"},{"$f":"'800111 - Nota. Cuentas x cobrar'!$C$40","v":"co-svsp-core_2017-12-31:CxC_Cuentas_comerciales_por_cobrar_deterioradas_de_valor"}]
["/*",null,{"$f":"'800111 - Nota. Cuentas x cobrar'!$D$41","v":"Deterioro (menor valor)"},{"$f":"'800111 - Nota. Cuentas x cobrar'!$C$41","v":"co-svsp-core_2017-12-31:CxC_Deterioro_menor_valor"}]
["/*",null,{"$f":"'800111 - Nota. Cuentas x cobrar'!$D$42","v":"Total cuentas comerciales por cobrar"},{"$f":"'800111 - Nota. Cuentas x cobrar'!$C$42","v":"co-svsp-core_2017-12-31:CxC_Total_cuentas_comerciales_por_cobrar"}]
["/*",null,{"$f":"'800111 - Nota. Cuentas x cobrar'!$D$43","v":"Otras cuentas por cobrar"},{"$f":"'800111 - Nota. Cuentas x cobrar'!$C$43","v":"co-svsp-core_2017-12-31:CxC_Otras_cuentas_por_cobrar"}]
["/*",null,{"$f":"'800111 - Nota. Cuentas x cobrar'!$D$44","v":"Otras cuentas por cobrar que no están en mora ni deterioradas de valor"},{"$f":"'800111 - Nota. Cuentas x cobrar'!$C$44","v":"co-svsp-core_2017-12-31:CxC_Cuentas_comerciales_por_cobrar_no_están_en_mora_ni_deterioradas_de_valor_OCxC"}]
["/*",null,{"$f":"'800111 - Nota. Cuentas x cobrar'!$D$45","v":"Otras cuentas por cobrar en mora pero no deterioradas de valor"},{"$f":"'800111 - Nota. Cuentas x cobrar'!$C$45","v":"co-svsp-core_2017-12-31:CxC_Cuentas_comerciales_por_cobrar_en_mora_pero_no_deterioradas_de_valor_OCxC"}]
["/*",null,{"$f":"'800111 - Nota. Cuentas x cobrar'!$D$46","v":"Otras cuentas por cobrar deterioradas de valor"},{"$f":"'800111 - Nota. Cuentas x cobrar'!$C$46","v":"co-svsp-core_2017-12-31:CxC_Cuentas_comerciales_por_cobrar_deterioradas_de_valor_OCxC"}]
["/*",null,{"$f":"'800111 - Nota. Cuentas x cobrar'!$D$47","v":"Deterioro (menor valor)"},{"$f":"'800111 - Nota. Cuentas x cobrar'!$C$47","v":"co-svsp-core_2017-12-31:CxC_Deterioro_menor_valor_OCxC"}]
["/*",null,{"$f":"'800111 - Nota. Cuentas x cobrar'!$D$48","v":"Total otras cuentas por cobrar"},{"$f":"'800111 - Nota. Cuentas x cobrar'!$C$48","v":"co-svsp-core_2017-12-31:CxC_Total_cuentas_comerciales_por_cobrar_OCxC"}]
["/*",null,{"$f":"'800111 - Nota. Cuentas x cobrar'!$D$49","v":"Total cuentas por cobrar y otras cuentas por cobrar"},{"$f":"'800111 - Nota. Cuentas x cobrar'!$C$49","v":"co-svsp-core_2017-12-31:CxC_Total_cuentas_por_cobrar_y_otras_cuentas_por_cobrar"}]
["/*",null,"--07--"]
["/*",null,{"$f":"'800111 - Nota. Cuentas x cobrar'!$D$36","v":"Cuentas comerciales por cobrar y otras cuentas por cobrar"},{"$f":"'800111 - Nota. Cuentas x cobrar'!$C$36","v":"co-svsp-core_2017-12-31:CxC_Cuentas_comerciales_por_cobrar_y_otras_cuentas_por_cobrar"}]
["/*",null,{"$f":"'800111 - Nota. Cuentas x cobrar'!$D$37","v":"Cuentas comerciales por cobrar"},{"$f":"'800111 - Nota. Cuentas x cobrar'!$C$37","v":"co-svsp-core_2017-12-31:CxC_Cuentas_comerciales_por_cobrar"}]
["/*",null,{"$f":"'800111 - Nota. Cuentas x cobrar'!$D$38","v":"Cuentas comerciales por cobrar que no están en mora ni deterioradas de valor"},{"$f":"'800111 - Nota. Cuentas x cobrar'!$C$38","v":"co-svsp-core_2017-12-31:CxC_Cuentas_comerciales_por_cobrar_no_están_en_mora_ni_deterioradas_de_valor"}]
["/*",null,{"$f":"'800111 - Nota. Cuentas x cobrar'!$D$39","v":"Cuentas comerciales por cobrar en mora pero no deterioradas de valor"},{"$f":"'800111 - Nota. Cuentas x cobrar'!$C$39","v":"co-svsp-core_2017-12-31:CxC_Cuentas_comerciales_por_cobrar_en_mora_pero_no_deterioradas_de_valor"}]
["/*",null,{"$f":"'800111 - Nota. Cuentas x cobrar'!$D$40","v":"Cuentas comerciales por cobrar deterioradas de valor"},{"$f":"'800111 - Nota. Cuentas x cobrar'!$C$40","v":"co-svsp-core_2017-12-31:CxC_Cuentas_comerciales_por_cobrar_deterioradas_de_valor"}]
["/*",null,{"$f":"'800111 - Nota. Cuentas x cobrar'!$D$41","v":"Deterioro (menor valor)"},{"$f":"'800111 - Nota. Cuentas x cobrar'!$C$41","v":"co-svsp-core_2017-12-31:CxC_Deterioro_menor_valor"}]
["/*",null,{"$f":"'800111 - Nota. Cuentas x cobrar'!$D$42","v":"Total cuentas comerciales por cobrar"},{"$f":"'800111 - Nota. Cuentas x cobrar'!$C$42","v":"co-svsp-core_2017-12-31:CxC_Total_cuentas_comerciales_por_cobrar"}]
["/*",null,{"$f":"'800111 - Nota. Cuentas x cobrar'!$D$43","v":"Otras cuentas por cobrar"},{"$f":"'800111 - Nota. Cuentas x cobrar'!$C$43","v":"co-svsp-core_2017-12-31:CxC_Otras_cuentas_por_cobrar"}]
["/*",null,{"$f":"'800111 - Nota. Cuentas x cobrar'!$D$44","v":"Otras cuentas por cobrar que no están en mora ni deterioradas de valor"},{"$f":"'800111 - Nota. Cuentas x cobrar'!$C$44","v":"co-svsp-core_2017-12-31:CxC_Cuentas_comerciales_por_cobrar_no_están_en_mora_ni_deterioradas_de_valor_OCxC"}]
["/*",null,{"$f":"'800111 - Nota. Cuentas x cobrar'!$D$45","v":"Otras cuentas por cobrar en mora pero no deterioradas de valor"},{"$f":"'800111 - Nota. Cuentas x cobrar'!$C$45","v":"co-svsp-core_2017-12-31:CxC_Cuentas_comerciales_por_cobrar_en_mora_pero_no_deterioradas_de_valor_OCxC"}]
["/*",null,{"$f":"'800111 - Nota. Cuentas x cobrar'!$D$46","v":"Otras cuentas por cobrar deterioradas de valor"},{"$f":"'800111 - Nota. Cuentas x cobrar'!$C$46","v":"co-svsp-core_2017-12-31:CxC_Cuentas_comerciales_por_cobrar_deterioradas_de_valor_OCxC"}]
["/*",null,{"$f":"'800111 - Nota. Cuentas x cobrar'!$D$47","v":"Deterioro (menor valor)"},{"$f":"'800111 - Nota. Cuentas x cobrar'!$C$47","v":"co-svsp-core_2017-12-31:CxC_Deterioro_menor_valor_OCxC"}]
["/*",null,{"$f":"'800111 - Nota. Cuentas x cobrar'!$D$48","v":"Total otras cuentas por cobrar"},{"$f":"'800111 - Nota. Cuentas x cobrar'!$C$48","v":"co-svsp-core_2017-12-31:CxC_Total_cuentas_comerciales_por_cobrar_OCxC"}]
["/*",null,{"$f":"'800111 - Nota. Cuentas x cobrar'!$D$49","v":"Total cuentas por cobrar y otras cuentas por cobrar"},{"$f":"'800111 - Nota. Cuentas x cobrar'!$C$49","v":"co-svsp-core_2017-12-31:CxC_Total_cuentas_por_cobrar_y_otras_cuentas_por_cobrar"}]
["/*",null,"--08--"]
["/*",null,{"$f":"'800111 - Nota. Cuentas x cobrar'!$D$36","v":"Cuentas comerciales por cobrar y otras cuentas por cobrar"},{"$f":"'800111 - Nota. Cuentas x cobrar'!$C$36","v":"co-svsp-core_2017-12-31:CxC_Cuentas_comerciales_por_cobrar_y_otras_cuentas_por_cobrar"}]
["/*",null,{"$f":"'800111 - Nota. Cuentas x cobrar'!$D$37","v":"Cuentas comerciales por cobrar"},{"$f":"'800111 - Nota. Cuentas x cobrar'!$C$37","v":"co-svsp-core_2017-12-31:CxC_Cuentas_comerciales_por_cobrar"}]
["/*",null,{"$f":"'800111 - Nota. Cuentas x cobrar'!$D$38","v":"Cuentas comerciales por cobrar que no están en mora ni deterioradas de valor"},{"$f":"'800111 - Nota. Cuentas x cobrar'!$C$38","v":"co-svsp-core_2017-12-31:CxC_Cuentas_comerciales_por_cobrar_no_están_en_mora_ni_deterioradas_de_valor"}]
["/*",null,{"$f":"'800111 - Nota. Cuentas x cobrar'!$D$39","v":"Cuentas comerciales por cobrar en mora pero no deterioradas de valor"},{"$f":"'800111 - Nota. Cuentas x cobrar'!$C$39","v":"co-svsp-core_2017-12-31:CxC_Cuentas_comerciales_por_cobrar_en_mora_pero_no_deterioradas_de_valor"}]
["/*",null,{"$f":"'800111 - Nota. Cuentas x cobrar'!$D$40","v":"Cuentas comerciales por cobrar deterioradas de valor"},{"$f":"'800111 - Nota. Cuentas x cobrar'!$C$40","v":"co-svsp-core_2017-12-31:CxC_Cuentas_comerciales_por_cobrar_deterioradas_de_valor"}]
["/*",null,{"$f":"'800111 - Nota. Cuentas x cobrar'!$D$41","v":"Deterioro (menor valor)"},{"$f":"'800111 - Nota. Cuentas x cobrar'!$C$41","v":"co-svsp-core_2017-12-31:CxC_Deterioro_menor_valor"}]
["/*",null,{"$f":"'800111 - Nota. Cuentas x cobrar'!$D$42","v":"Total cuentas comerciales por cobrar"},{"$f":"'800111 - Nota. Cuentas x cobrar'!$C$42","v":"co-svsp-core_2017-12-31:CxC_Total_cuentas_comerciales_por_cobrar"}]
["/*",null,{"$f":"'800111 - Nota. Cuentas x cobrar'!$D$43","v":"Otras cuentas por cobrar"},{"$f":"'800111 - Nota. Cuentas x cobrar'!$C$43","v":"co-svsp-core_2017-12-31:CxC_Otras_cuentas_por_cobrar"}]
["/*",null,{"$f":"'800111 - Nota. Cuentas x cobrar'!$D$44","v":"Otras cuentas por cobrar que no están en mora ni deterioradas de valor"},{"$f":"'800111 - Nota. Cuentas x cobrar'!$C$44","v":"co-svsp-core_2017-12-31:CxC_Cuentas_comerciales_por_cobrar_no_están_en_mora_ni_deterioradas_de_valor_OCxC"}]
["/*",null,{"$f":"'800111 - Nota. Cuentas x cobrar'!$D$45","v":"Otras cuentas por cobrar en mora pero no deterioradas de valor"},{"$f":"'800111 - Nota. Cuentas x cobrar'!$C$45","v":"co-svsp-core_2017-12-31:CxC_Cuentas_comerciales_por_cobrar_en_mora_pero_no_deterioradas_de_valor_OCxC"}]
[{"$f":"IF(G1633=\"\",\"/*\",\"\")","v":"/*"},null,{"$f":"'800111 - Nota. Cuentas x cobrar'!$D$46","v":"Otras cuentas por cobrar deterioradas de valor"},{"$f":"'800111 - Nota. Cuentas x cobrar'!$C$46","v":"co-svsp-core_2017-12-31:CxC_Cuentas_comerciales_por_cobrar_deterioradas_de_valor_OCxC"}]
["/*",null,{"$f":"'800111 - Nota. Cuentas x cobrar'!$D$47","v":"Deterioro (menor valor)"},{"$f":"'800111 - Nota. Cuentas x cobrar'!$C$47","v":"co-svsp-core_2017-12-31:CxC_Deterioro_menor_valor_OCxC"}]
["/*",null,{"$f":"'800111 - Nota. Cuentas x cobrar'!$D$48","v":"Total otras cuentas por cobrar"},{"$f":"'800111 - Nota. Cuentas x cobrar'!$C$48","v":"co-svsp-core_2017-12-31:CxC_Total_cuentas_comerciales_por_cobrar_OCxC"}]
["/*",null,{"$f":"'800111 - Nota. Cuentas x cobrar'!$D$49","v":"Total cuentas por cobrar y otras cuentas por cobrar"},{"$f":"'800111 - Nota. Cuentas x cobrar'!$C$49","v":"co-svsp-core_2017-12-31:CxC_Total_cuentas_por_cobrar_y_otras_cuentas_por_cobrar"}]
["/*",null,"--09--"]
["/*",null,{"$f":"'800111 - Nota. Cuentas x cobrar'!$D$36","v":"Cuentas comerciales por cobrar y otras cuentas por cobrar"},{"$f":"'800111 - Nota. Cuentas x cobrar'!$C$36","v":"co-svsp-core_2017-12-31:CxC_Cuentas_comerciales_por_cobrar_y_otras_cuentas_por_cobrar"}]
["/*",null,{"$f":"'800111 - Nota. Cuentas x cobrar'!$D$37","v":"Cuentas comerciales por cobrar"},{"$f":"'800111 - Nota. Cuentas x cobrar'!$C$37","v":"co-svsp-core_2017-12-31:CxC_Cuentas_comerciales_por_cobrar"}]
["/*",null,{"$f":"'800111 - Nota. Cuentas x cobrar'!$D$38","v":"Cuentas comerciales por cobrar que no están en mora ni deterioradas de valor"},{"$f":"'800111 - Nota. Cuentas x cobrar'!$C$38","v":"co-svsp-core_2017-12-31:CxC_Cuentas_comerciales_por_cobrar_no_están_en_mora_ni_deterioradas_de_valor"}]
["/*",null,{"$f":"'800111 - Nota. Cuentas x cobrar'!$D$39","v":"Cuentas comerciales por cobrar en mora pero no deterioradas de valor"},{"$f":"'800111 - Nota. Cuentas x cobrar'!$C$39","v":"co-svsp-core_2017-12-31:CxC_Cuentas_comerciales_por_cobrar_en_mora_pero_no_deterioradas_de_valor"}]
["/*",null,{"$f":"'800111 - Nota. Cuentas x cobrar'!$D$40","v":"Cuentas comerciales por cobrar deterioradas de valor"},{"$f":"'800111 - Nota. Cuentas x cobrar'!$C$40","v":"co-svsp-core_2017-12-31:CxC_Cuentas_comerciales_por_cobrar_deterioradas_de_valor"}]
["/*",null,{"$f":"'800111 - Nota. Cuentas x cobrar'!$D$41","v":"Deterioro (menor valor)"},{"$f":"'800111 - Nota. Cuentas x cobrar'!$C$41","v":"co-svsp-core_2017-12-31:CxC_Deterioro_menor_valor"}]
["/*",null,{"$f":"'800111 - Nota. Cuentas x cobrar'!$D$42","v":"Total cuentas comerciales por cobrar"},{"$f":"'800111 - Nota. Cuentas x cobrar'!$C$42","v":"co-svsp-core_2017-12-31:CxC_Total_cuentas_comerciales_por_cobrar"}]
["/*",null,{"$f":"'800111 - Nota. Cuentas x cobrar'!$D$43","v":"Otras cuentas por cobrar"},{"$f":"'800111 - Nota. Cuentas x cobrar'!$C$43","v":"co-svsp-core_2017-12-31:CxC_Otras_cuentas_por_cobrar"}]
["/*",null,{"$f":"'800111 - Nota. Cuentas x cobrar'!$D$44","v":"Otras cuentas por cobrar que no están en mora ni deterioradas de valor"},{"$f":"'800111 - Nota. Cuentas x cobrar'!$C$44","v":"co-svsp-core_2017-12-31:CxC_Cuentas_comerciales_por_cobrar_no_están_en_mora_ni_deterioradas_de_valor_OCxC"}]
["/*",null,{"$f":"'800111 - Nota. Cuentas x cobrar'!$D$45","v":"Otras cuentas por cobrar en mora pero no deterioradas de valor"},{"$f":"'800111 - Nota. Cuentas x cobrar'!$C$45","v":"co-svsp-core_2017-12-31:CxC_Cuentas_comerciales_por_cobrar_en_mora_pero_no_deterioradas_de_valor_OCxC"}]
["/*",null,{"$f":"'800111 - Nota. Cuentas x cobrar'!$D$46","v":"Otras cuentas por cobrar deterioradas de valor"},{"$f":"'800111 - Nota. Cuentas x cobrar'!$C$46","v":"co-svsp-core_2017-12-31:CxC_Cuentas_comerciales_por_cobrar_deterioradas_de_valor_OCxC"}]
["/*",null,{"$f":"'800111 - Nota. Cuentas x cobrar'!$D$47","v":"Deterioro (menor valor)"},{"$f":"'800111 - Nota. Cuentas x cobrar'!$C$47","v":"co-svsp-core_2017-12-31:CxC_Deterioro_menor_valor_OCxC"}]
["/*",null,{"$f":"'800111 - Nota. Cuentas x cobrar'!$D$48","v":"Total otras cuentas por cobrar"},{"$f":"'800111 - Nota. Cuentas x cobrar'!$C$48","v":"co-svsp-core_2017-12-31:CxC_Total_cuentas_comerciales_por_cobrar_OCxC"}]
["/*",null,{"$f":"'800111 - Nota. Cuentas x cobrar'!$D$49","v":"Total cuentas por cobrar y otras cuentas por cobrar"},{"$f":"'800111 - Nota. Cuentas x cobrar'!$C$49","v":"co-svsp-core_2017-12-31:CxC_Total_cuentas_por_cobrar_y_otras_cuentas_por_cobrar"}]
["/*",null,"--10--"]
["/*",null,{"$f":"'800111 - Nota. Cuentas x cobrar'!$D$36","v":"Cuentas comerciales por cobrar y otras cuentas por cobrar"},{"$f":"'800111 - Nota. Cuentas x cobrar'!$C$36","v":"co-svsp-core_2017-12-31:CxC_Cuentas_comerciales_por_cobrar_y_otras_cuentas_por_cobrar"}]
["/*",null,{"$f":"'800111 - Nota. Cuentas x cobrar'!$D$37","v":"Cuentas comerciales por cobrar"},{"$f":"'800111 - Nota. Cuentas x cobrar'!$C$37","v":"co-svsp-core_2017-12-31:CxC_Cuentas_comerciales_por_cobrar"}]
["/*",null,{"$f":"'800111 - Nota. Cuentas x cobrar'!$D$38","v":"Cuentas comerciales por cobrar que no están en mora ni deterioradas de valor"},{"$f":"'800111 - Nota. Cuentas x cobrar'!$C$38","v":"co-svsp-core_2017-12-31:CxC_Cuentas_comerciales_por_cobrar_no_están_en_mora_ni_deterioradas_de_valor"}]
["/*",null,{"$f":"'800111 - Nota. Cuentas x cobrar'!$D$39","v":"Cuentas comerciales por cobrar en mora pero no deterioradas de valor"},{"$f":"'800111 - Nota. Cuentas x cobrar'!$C$39","v":"co-svsp-core_2017-12-31:CxC_Cuentas_comerciales_por_cobrar_en_mora_pero_no_deterioradas_de_valor"}]
["/*",null,{"$f":"'800111 - Nota. Cuentas x cobrar'!$D$40","v":"Cuentas comerciales por cobrar deterioradas de valor"},{"$f":"'800111 - Nota. Cuentas x cobrar'!$C$40","v":"co-svsp-core_2017-12-31:CxC_Cuentas_comerciales_por_cobrar_deterioradas_de_valor"}]
["/*",null,{"$f":"'800111 - Nota. Cuentas x cobrar'!$D$41","v":"Deterioro (menor valor)"},{"$f":"'800111 - Nota. Cuentas x cobrar'!$C$41","v":"co-svsp-core_2017-12-31:CxC_Deterioro_menor_valor"}]
["/*",null,{"$f":"'800111 - Nota. Cuentas x cobrar'!$D$42","v":"Total cuentas comerciales por cobrar"},{"$f":"'800111 - Nota. Cuentas x cobrar'!$C$42","v":"co-svsp-core_2017-12-31:CxC_Total_cuentas_comerciales_por_cobrar"}]
["/*",null,{"$f":"'800111 - Nota. Cuentas x cobrar'!$D$43","v":"Otras cuentas por cobrar"},{"$f":"'800111 - Nota. Cuentas x cobrar'!$C$43","v":"co-svsp-core_2017-12-31:CxC_Otras_cuentas_por_cobrar"}]
["/*",null,{"$f":"'800111 - Nota. Cuentas x cobrar'!$D$44","v":"Otras cuentas por cobrar que no están en mora ni deterioradas de valor"},{"$f":"'800111 - Nota. Cuentas x cobrar'!$C$44","v":"co-svsp-core_2017-12-31:CxC_Cuentas_comerciales_por_cobrar_no_están_en_mora_ni_deterioradas_de_valor_OCxC"}]
["/*",null,{"$f":"'800111 - Nota. Cuentas x cobrar'!$D$45","v":"Otras cuentas por cobrar en mora pero no deterioradas de valor"},{"$f":"'800111 - Nota. Cuentas x cobrar'!$C$45","v":"co-svsp-core_2017-12-31:CxC_Cuentas_comerciales_por_cobrar_en_mora_pero_no_deterioradas_de_valor_OCxC"}]
["/*",null,{"$f":"'800111 - Nota. Cuentas x cobrar'!$D$46","v":"Otras cuentas por cobrar deterioradas de valor"},{"$f":"'800111 - Nota. Cuentas x cobrar'!$C$46","v":"co-svsp-core_2017-12-31:CxC_Cuentas_comerciales_por_cobrar_deterioradas_de_valor_OCxC"}]
["/*",null,{"$f":"'800111 - Nota. Cuentas x cobrar'!$D$47","v":"Deterioro (menor valor)"},{"$f":"'800111 - Nota. Cuentas x cobrar'!$C$47","v":"co-svsp-core_2017-12-31:CxC_Deterioro_menor_valor_OCxC"}]
["/*",null,{"$f":"'800111 - Nota. Cuentas x cobrar'!$D$48","v":"Total otras cuentas por cobrar"},{"$f":"'800111 - Nota. Cuentas x cobrar'!$C$48","v":"co-svsp-core_2017-12-31:CxC_Total_cuentas_comerciales_por_cobrar_OCxC"}]
["/*",null,{"$f":"'800111 - Nota. Cuentas x cobrar'!$D$49","v":"Total cuentas por cobrar y otras cuentas por cobrar"},{"$f":"'800111 - Nota. Cuentas x cobrar'!$C$49","v":"co-svsp-core_2017-12-31:CxC_Total_cuentas_por_cobrar_y_otras_cuentas_por_cobrar"}]
["/*"]
["/*",null,"800111A GeneraXBRL"]
["/*",null,"--01--"]
["/*",null,{"$f":"#REF!","v":{"$error":"#REF!"}},{"$f":"#REF!","v":{"$error":"#REF!"}}]
["/*",null,{"$f":"#REF!","v":{"$error":"#REF!"}},{"$f":"#REF!","v":{"$error":"#REF!"}}]
["/*",null,{"$f":"#REF!","v":{"$error":"#REF!"}},{"$f":"#REF!","v":{"$error":"#REF!"}}]
["/*",null,{"$f":"#REF!","v":{"$error":"#REF!"}},{"$f":"#REF!","v":{"$error":"#REF!"}}]
["/*",null,{"$f":"#REF!","v":{"$error":"#REF!"}},{"$f":"#REF!","v":{"$error":"#REF!"}}]
["/*",null,{"$f":"#REF!","v":{"$error":"#REF!"}},{"$f":"#REF!","v":{"$error":"#REF!"}}]
["/*",null,{"$f":"#REF!","v":{"$error":"#REF!"}},{"$f":"#REF!","v":{"$error":"#REF!"}}]
["/*",null,{"$f":"#REF!","v":{"$error":"#REF!"}},{"$f":"#REF!","v":{"$error":"#REF!"}}]
["/*",null,{"$f":"#REF!","v":{"$error":"#REF!"}},{"$f":"#REF!","v":{"$error":"#REF!"}}]
["/*",null,{"$f":"#REF!","v":{"$error":"#REF!"}},{"$f":"#REF!","v":{"$error":"#REF!"}}]
["/*",null,{"$f":"#REF!","v":{"$error":"#REF!"}},{"$f":"#REF!","v":{"$error":"#REF!"}}]
["/*",null,{"$f":"#REF!","v":{"$error":"#REF!"}},{"$f":"#REF!","v":{"$error":"#REF!"}}]
["/*",null,"--02--"]
["/*",null,{"$f":"#REF!","v":{"$error":"#REF!"}},{"$f":"#REF!","v":{"$error":"#REF!"}}]
["/*",null,{"$f":"#REF!","v":{"$error":"#REF!"}},{"$f":"#REF!","v":{"$error":"#REF!"}}]
["/*",null,{"$f":"#REF!","v":{"$error":"#REF!"}},{"$f":"#REF!","v":{"$error":"#REF!"}}]
["/*",null,{"$f":"#REF!","v":{"$error":"#REF!"}},{"$f":"#REF!","v":{"$error":"#REF!"}}]
["/*",null,{"$f":"#REF!","v":{"$error":"#REF!"}},{"$f":"#REF!","v":{"$error":"#REF!"}}]
["/*",null,{"$f":"#REF!","v":{"$error":"#REF!"}},{"$f":"#REF!","v":{"$error":"#REF!"}}]
["/*",null,{"$f":"#REF!","v":{"$error":"#REF!"}},{"$f":"#REF!","v":{"$error":"#REF!"}}]
["/*",null,{"$f":"#REF!","v":{"$error":"#REF!"}},{"$f":"#REF!","v":{"$error":"#REF!"}}]
["/*",null,{"$f":"#REF!","v":{"$error":"#REF!"}},{"$f":"#REF!","v":{"$error":"#REF!"}}]
["/*",null,{"$f":"#REF!","v":{"$error":"#REF!"}},{"$f":"#REF!","v":{"$error":"#REF!"}}]
["/*",null,{"$f":"#REF!","v":{"$error":"#REF!"}},{"$f":"#REF!","v":{"$error":"#REF!"}}]
["/*",null,{"$f":"#REF!","v":{"$error":"#REF!"}},{"$f":"#REF!","v":{"$error":"#REF!"}}]
["/*",null,"--03--"]
[{"$error":"#REF!"},null,{"$f":"#REF!","v":{"$error":"#REF!"}},{"$f":"#REF!","v":{"$error":"#REF!"}},null,null,{"$f":"#REF!","v":{"$error":"#REF!"}},800001965,"http://www.xbrl.org/scheme/companyName",null,{"$f":"Periodos!$C$4","v":"2017-12-31"},{"$f":"#REF!","v":{"$error":"#REF!"}},{"$f":"#REF!","v":{"$error":"#REF!"}}]
[{"$f":"IF(G1697=\"\",\"/*\",\"\")","v":{"$error":"#REF!"}},null,{"$f":"#REF!","v":{"$error":"#REF!"}},{"$f":"#REF!","v":{"$error":"#REF!"}},null,null,{"$f":"#REF!","v":{"$error":"#REF!"}},800001965,"http://www.xbrl.org/scheme/companyName",null,{"$f":"Periodos!$C$4","v":"2017-12-31"},{"$f":"#REF!","v":{"$error":"#REF!"}},{"$f":"#REF!","v":{"$error":"#REF!"}}]
[{"$error":"#REF!"},null,{"$f":"#REF!","v":{"$error":"#REF!"}},{"$f":"#REF!","v":{"$error":"#REF!"}},null,null,{"$f":"#REF!","v":{"$error":"#REF!"}},800001965,"http://www.xbrl.org/scheme/companyName",null,{"$f":"Periodos!$C$4","v":"2017-12-31"},{"$f":"#REF!","v":{"$error":"#REF!"}},{"$f":"#REF!","v":{"$error":"#REF!"}}]
[{"$error":"#REF!"},null,{"$f":"#REF!","v":{"$error":"#REF!"}},{"$f":"#REF!","v":{"$error":"#REF!"}},null,null,{"$f":"#REF!","v":{"$error":"#REF!"}},800001965,"http://www.xbrl.org/scheme/companyName",null,{"$f":"Periodos!$C$4","v":"2017-12-31"},{"$f":"#REF!","v":{"$error":"#REF!"}},{"$f":"#REF!","v":{"$error":"#REF!"}}]
[{"$error":"#REF!"},null,{"$f":"#REF!","v":{"$error":"#REF!"}},{"$f":"#REF!","v":{"$error":"#REF!"}},null,null,{"$f":"#REF!","v":{"$error":"#REF!"}},800001965,"http://www.xbrl.org/scheme/companyName",null,{"$f":"Periodos!$C$4","v":"2017-12-31"},{"$f":"#REF!","v":{"$error":"#REF!"}},{"$f":"#REF!","v":{"$error":"#REF!"}}]
[{"$error":"#REF!"},null,{"$f":"#REF!","v":{"$error":"#REF!"}},{"$f":"#REF!","v":{"$error":"#REF!"}},null,null,{"$f":"#REF!","v":{"$error":"#REF!"}},800001965,"http://www.xbrl.org/scheme/companyName",null,{"$f":"Periodos!$C$4","v":"2017-12-31"},{"$f":"#REF!","v":{"$error":"#REF!"}},{"$f":"#REF!","v":{"$error":"#REF!"}}]
[{"$error":"#REF!"},null,{"$f":"#REF!","v":{"$error":"#REF!"}},{"$f":"#REF!","v":{"$error":"#REF!"}},null,null,{"$f":"#REF!","v":{"$error":"#REF!"}},800001965,"http://www.xbrl.org/scheme/companyName",null,{"$f":"Periodos!$C$4","v":"2017-12-31"},{"$f":"#REF!","v":{"$error":"#REF!"}},{"$f":"#REF!","v":{"$error":"#REF!"}}]
[{"$error":"#REF!"},null,{"$f":"#REF!","v":{"$error":"#REF!"}},{"$f":"#REF!","v":{"$error":"#REF!"}},null,null,{"$f":"#REF!","v":{"$error":"#REF!"}},800001965,"http://www.xbrl.org/scheme/companyName",null,{"$f":"Periodos!$C$4","v":"2017-12-31"},{"$f":"#REF!","v":{"$error":"#REF!"}},{"$f":"#REF!","v":{"$error":"#REF!"}}]
[{"$error":"#REF!"},null,{"$f":"#REF!","v":{"$error":"#REF!"}},{"$f":"#REF!","v":{"$error":"#REF!"}},null,null,{"$f":"#REF!","v":{"$error":"#REF!"}},800001965,"http://www.xbrl.org/scheme/companyName",null,{"$f":"Periodos!$C$4","v":"2017-12-31"},{"$f":"#REF!","v":{"$error":"#REF!"}},{"$f":"#REF!","v":{"$error":"#REF!"}}]
[{"$error":"#REF!"},null,{"$f":"#REF!","v":{"$error":"#REF!"}},{"$f":"#REF!","v":{"$error":"#REF!"}},null,null,{"$f":"#REF!","v":{"$error":"#REF!"}},800001965,"http://www.xbrl.org/scheme/companyName",null,{"$f":"Periodos!$C$4","v":"2017-12-31"},{"$f":"#REF!","v":{"$error":"#REF!"}},{"$f":"#REF!","v":{"$error":"#REF!"}}]
[{"$error":"#REF!"},null,{"$f":"#REF!","v":{"$error":"#REF!"}},{"$f":"#REF!","v":{"$error":"#REF!"}},null,null,{"$f":"#REF!","v":{"$error":"#REF!"}},800001965,"http://www.xbrl.org/scheme/companyName",null,{"$f":"Periodos!$C$4","v":"2017-12-31"},{"$f":"#REF!","v":{"$error":"#REF!"}},{"$f":"#REF!","v":{"$error":"#REF!"}}]
[{"$error":"#REF!"},null,{"$f":"#REF!","v":{"$error":"#REF!"}},{"$f":"#REF!","v":{"$error":"#REF!"}},0,"peso",{"$f":"#REF!","v":{"$error":"#REF!"}},800001965,"http://www.xbrl.org/scheme/companyName",null,{"$f":"Periodos!$C$4","v":"2017-12-31"},{"$f":"#REF!","v":{"$error":"#REF!"}},{"$f":"#REF!","v":{"$error":"#REF!"}}]
["/*",null,"--04--"]
[{"$error":"#REF!"},null,{"$f":"#REF!","v":{"$error":"#REF!"}},{"$f":"#REF!","v":{"$error":"#REF!"}},null,null,{"$f":"#REF!","v":{"$error":"#REF!"}},800001965,"http://www.xbrl.org/scheme/companyName",null,{"$f":"Periodos!$C$4","v":"2017-12-31"},{"$f":"#REF!","v":{"$error":"#REF!"}},{"$f":"#REF!","v":{"$error":"#REF!"}}]
[{"$error":"#REF!"},null,{"$f":"#REF!","v":{"$error":"#REF!"}},{"$f":"#REF!","v":{"$error":"#REF!"}},null,null,{"$f":"#REF!","v":{"$error":"#REF!"}},800001965,"http://www.xbrl.org/scheme/companyName",null,{"$f":"Periodos!$C$4","v":"2017-12-31"},{"$f":"#REF!","v":{"$error":"#REF!"}},{"$f":"#REF!","v":{"$error":"#REF!"}}]
[{"$error":"#REF!"},null,{"$f":"#REF!","v":{"$error":"#REF!"}},{"$f":"#REF!","v":{"$error":"#REF!"}},null,null,{"$f":"#REF!","v":{"$error":"#REF!"}},800001965,"http://www.xbrl.org/scheme/companyName",null,{"$f":"Periodos!$C$4","v":"2017-12-31"},{"$f":"#REF!","v":{"$error":"#REF!"}},{"$f":"#REF!","v":{"$error":"#REF!"}}]
[{"$error":"#REF!"},null,{"$f":"#REF!","v":{"$error":"#REF!"}},{"$f":"#REF!","v":{"$error":"#REF!"}},null,null,{"$f":"#REF!","v":{"$error":"#REF!"}},800001965,"http://www.xbrl.org/scheme/companyName",null,{"$f":"Periodos!$C$4","v":"2017-12-31"},{"$f":"#REF!","v":{"$error":"#REF!"}},{"$f":"#REF!","v":{"$error":"#REF!"}}]
[{"$error":"#REF!"},null,{"$f":"#REF!","v":{"$error":"#REF!"}},{"$f":"#REF!","v":{"$error":"#REF!"}},null,null,{"$f":"#REF!","v":{"$error":"#REF!"}},800001965,"http://www.xbrl.org/scheme/companyName",null,{"$f":"Periodos!$C$4","v":"2017-12-31"},{"$f":"#REF!","v":{"$error":"#REF!"}},{"$f":"#REF!","v":{"$error":"#REF!"}}]
[{"$error":"#REF!"},null,{"$f":"#REF!","v":{"$error":"#REF!"}},{"$f":"#REF!","v":{"$error":"#REF!"}},null,null,{"$f":"#REF!","v":{"$error":"#REF!"}},800001965,"http://www.xbrl.org/scheme/companyName",null,{"$f":"Periodos!$C$4","v":"2017-12-31"},{"$f":"#REF!","v":{"$error":"#REF!"}},{"$f":"#REF!","v":{"$error":"#REF!"}}]
[{"$error":"#REF!"},null,{"$f":"#REF!","v":{"$error":"#REF!"}},{"$f":"#REF!","v":{"$error":"#REF!"}},null,null,{"$f":"#REF!","v":{"$error":"#REF!"}},800001965,"http://www.xbrl.org/scheme/companyName",null,{"$f":"Periodos!$C$4","v":"2017-12-31"},{"$f":"#REF!","v":{"$error":"#REF!"}},{"$f":"#REF!","v":{"$error":"#REF!"}}]
[{"$error":"#REF!"},null,{"$f":"#REF!","v":{"$error":"#REF!"}},{"$f":"#REF!","v":{"$error":"#REF!"}},null,null,{"$f":"#REF!","v":{"$error":"#REF!"}},800001965,"http://www.xbrl.org/scheme/companyName",null,{"$f":"Periodos!$C$4","v":"2017-12-31"},{"$f":"#REF!","v":{"$error":"#REF!"}},{"$f":"#REF!","v":{"$error":"#REF!"}}]
[{"$error":"#REF!"},null,{"$f":"#REF!","v":{"$error":"#REF!"}},{"$f":"#REF!","v":{"$error":"#REF!"}},null,null,{"$f":"#REF!","v":{"$error":"#REF!"}},800001965,"http://www.xbrl.org/scheme/companyName",null,{"$f":"Periodos!$C$4","v":"2017-12-31"},{"$f":"#REF!","v":{"$error":"#REF!"}},{"$f":"#REF!","v":{"$error":"#REF!"}}]
[{"$error":"#REF!"},null,{"$f":"#REF!","v":{"$error":"#REF!"}},{"$f":"#REF!","v":{"$error":"#REF!"}},null,null,{"$f":"#REF!","v":{"$error":"#REF!"}},800001965,"http://www.xbrl.org/scheme/companyName",null,{"$f":"Periodos!$C$4","v":"2017-12-31"},{"$f":"#REF!","v":{"$error":"#REF!"}},{"$f":"#REF!","v":{"$error":"#REF!"}}]
[{"$error":"#REF!"},null,{"$f":"#REF!","v":{"$error":"#REF!"}},{"$f":"#REF!","v":{"$error":"#REF!"}},null,null,{"$f":"#REF!","v":{"$error":"#REF!"}},800001965,"http://www.xbrl.org/scheme/companyName",null,{"$f":"Periodos!$C$4","v":"2017-12-31"},{"$f":"#REF!","v":{"$error":"#REF!"}},{"$f":"#REF!","v":{"$error":"#REF!"}}]
[{"$error":"#REF!"},null,{"$f":"#REF!","v":{"$error":"#REF!"}},{"$f":"#REF!","v":{"$error":"#REF!"}},0,"peso",{"$f":"#REF!","v":{"$error":"#REF!"}},800001965,"http://www.xbrl.org/scheme/companyName",null,{"$f":"Periodos!$C$4","v":"2017-12-31"},{"$f":"#REF!","v":{"$error":"#REF!"}},{"$f":"#REF!","v":{"$error":"#REF!"}}]
["/*",null,"--05--"]
[{"$error":"#REF!"},null,{"$f":"#REF!","v":{"$error":"#REF!"}},{"$f":"#REF!","v":{"$error":"#REF!"}},null,null,{"$f":"#REF!","v":{"$error":"#REF!"}},800001965,"http://www.xbrl.org/scheme/companyName",null,{"$f":"Periodos!$C$4","v":"2017-12-31"},{"$f":"#REF!","v":{"$error":"#REF!"}},{"$f":"#REF!","v":{"$error":"#REF!"}}]
[{"$error":"#REF!"},null,{"$f":"#REF!","v":{"$error":"#REF!"}},{"$f":"#REF!","v":{"$error":"#REF!"}},null,null,{"$f":"#REF!","v":{"$error":"#REF!"}},800001965,"http://www.xbrl.org/scheme/companyName",null,{"$f":"Periodos!$C$4","v":"2017-12-31"},{"$f":"#REF!","v":{"$error":"#REF!"}},{"$f":"#REF!","v":{"$error":"#REF!"}}]
[{"$error":"#REF!"},null,{"$f":"#REF!","v":{"$error":"#REF!"}},{"$f":"#REF!","v":{"$error":"#REF!"}},null,null,{"$f":"#REF!","v":{"$error":"#REF!"}},800001965,"http://www.xbrl.org/scheme/companyName",null,{"$f":"Periodos!$C$4","v":"2017-12-31"},{"$f":"#REF!","v":{"$error":"#REF!"}},{"$f":"#REF!","v":{"$error":"#REF!"}}]
[{"$error":"#REF!"},null,{"$f":"#REF!","v":{"$error":"#REF!"}},{"$f":"#REF!","v":{"$error":"#REF!"}},null,null,{"$f":"#REF!","v":{"$error":"#REF!"}},800001965,"http://www.xbrl.org/scheme/companyName",null,{"$f":"Periodos!$C$4","v":"2017-12-31"},{"$f":"#REF!","v":{"$error":"#REF!"}},{"$f":"#REF!","v":{"$error":"#REF!"}}]
[{"$error":"#REF!"},null,{"$f":"#REF!","v":{"$error":"#REF!"}},{"$f":"#REF!","v":{"$error":"#REF!"}},null,null,{"$f":"#REF!","v":{"$error":"#REF!"}},800001965,"http://www.xbrl.org/scheme/companyName",null,{"$f":"Periodos!$C$4","v":"2017-12-31"},{"$f":"#REF!","v":{"$error":"#REF!"}},{"$f":"#REF!","v":{"$error":"#REF!"}}]
[{"$error":"#REF!"},null,{"$f":"#REF!","v":{"$error":"#REF!"}},{"$f":"#REF!","v":{"$error":"#REF!"}},null,null,{"$f":"#REF!","v":{"$error":"#REF!"}},800001965,"http://www.xbrl.org/scheme/companyName",null,{"$f":"Periodos!$C$4","v":"2017-12-31"},{"$f":"#REF!","v":{"$error":"#REF!"}},{"$f":"#REF!","v":{"$error":"#REF!"}}]
[{"$error":"#REF!"},null,{"$f":"#REF!","v":{"$error":"#REF!"}},{"$f":"#REF!","v":{"$error":"#REF!"}},null,null,{"$f":"#REF!","v":{"$error":"#REF!"}},800001965,"http://www.xbrl.org/scheme/companyName",null,{"$f":"Periodos!$C$4","v":"2017-12-31"},{"$f":"#REF!","v":{"$error":"#REF!"}},{"$f":"#REF!","v":{"$error":"#REF!"}}]
[{"$error":"#REF!"},null,{"$f":"#REF!","v":{"$error":"#REF!"}},{"$f":"#REF!","v":{"$error":"#REF!"}},null,null,{"$f":"#REF!","v":{"$error":"#REF!"}},800001965,"http://www.xbrl.org/scheme/companyName",null,{"$f":"Periodos!$C$4","v":"2017-12-31"},{"$f":"#REF!","v":{"$error":"#REF!"}},{"$f":"#REF!","v":{"$error":"#REF!"}}]
[{"$error":"#REF!"},null,{"$f":"#REF!","v":{"$error":"#REF!"}},{"$f":"#REF!","v":{"$error":"#REF!"}},null,null,{"$f":"#REF!","v":{"$error":"#REF!"}},800001965,"http://www.xbrl.org/scheme/companyName",null,{"$f":"Periodos!$C$4","v":"2017-12-31"},{"$f":"#REF!","v":{"$error":"#REF!"}},{"$f":"#REF!","v":{"$error":"#REF!"}}]
[{"$error":"#REF!"},null,{"$f":"#REF!","v":{"$error":"#REF!"}},{"$f":"#REF!","v":{"$error":"#REF!"}},null,null,{"$f":"#REF!","v":{"$error":"#REF!"}},800001965,"http://www.xbrl.org/scheme/companyName",null,{"$f":"Periodos!$C$4","v":"2017-12-31"},{"$f":"#REF!","v":{"$error":"#REF!"}},{"$f":"#REF!","v":{"$error":"#REF!"}}]
[{"$error":"#REF!"},null,{"$f":"#REF!","v":{"$error":"#REF!"}},{"$f":"#REF!","v":{"$error":"#REF!"}},null,null,{"$f":"#REF!","v":{"$error":"#REF!"}},800001965,"http://www.xbrl.org/scheme/companyName",null,{"$f":"Periodos!$C$4","v":"2017-12-31"},{"$f":"#REF!","v":{"$error":"#REF!"}},{"$f":"#REF!","v":{"$error":"#REF!"}}]
[{"$error":"#REF!"},null,{"$f":"#REF!","v":{"$error":"#REF!"}},{"$f":"#REF!","v":{"$error":"#REF!"}},0,"peso",{"$f":"#REF!","v":{"$error":"#REF!"}},800001965,"http://www.xbrl.org/scheme/companyName",null,{"$f":"Periodos!$C$4","v":"2017-12-31"},{"$f":"#REF!","v":{"$error":"#REF!"}},{"$f":"#REF!","v":{"$error":"#REF!"}}]
["/*",null,"--06--"]
[{"$error":"#REF!"},null,{"$f":"#REF!","v":{"$error":"#REF!"}},{"$f":"#REF!","v":{"$error":"#REF!"}},null,null,{"$f":"#REF!","v":{"$error":"#REF!"}},800001965,"http://www.xbrl.org/scheme/companyName",null,{"$f":"Periodos!$C$4","v":"2017-12-31"},{"$f":"#REF!","v":{"$error":"#REF!"}},{"$f":"#REF!","v":{"$error":"#REF!"}}]
[{"$error":"#REF!"},null,{"$f":"#REF!","v":{"$error":"#REF!"}},{"$f":"#REF!","v":{"$error":"#REF!"}},null,null,{"$f":"#REF!","v":{"$error":"#REF!"}},800001965,"http://www.xbrl.org/scheme/companyName",null,{"$f":"Periodos!$C$4","v":"2017-12-31"},{"$f":"#REF!","v":{"$error":"#REF!"}},{"$f":"#REF!","v":{"$error":"#REF!"}}]
[{"$error":"#REF!"},null,{"$f":"#REF!","v":{"$error":"#REF!"}},{"$f":"#REF!","v":{"$error":"#REF!"}},null,null,{"$f":"#REF!","v":{"$error":"#REF!"}},800001965,"http://www.xbrl.org/scheme/companyName",null,{"$f":"Periodos!$C$4","v":"2017-12-31"},{"$f":"#REF!","v":{"$error":"#REF!"}},{"$f":"#REF!","v":{"$error":"#REF!"}}]
[{"$error":"#REF!"},null,{"$f":"#REF!","v":{"$error":"#REF!"}},{"$f":"#REF!","v":{"$error":"#REF!"}},null,null,{"$f":"#REF!","v":{"$error":"#REF!"}},800001965,"http://www.xbrl.org/scheme/companyName",null,{"$f":"Periodos!$C$4","v":"2017-12-31"},{"$f":"#REF!","v":{"$error":"#REF!"}},{"$f":"#REF!","v":{"$error":"#REF!"}}]
[{"$error":"#REF!"},null,{"$f":"#REF!","v":{"$error":"#REF!"}},{"$f":"#REF!","v":{"$error":"#REF!"}},null,null,{"$f":"#REF!","v":{"$error":"#REF!"}},800001965,"http://www.xbrl.org/scheme/companyName",null,{"$f":"Periodos!$C$4","v":"2017-12-31"},{"$f":"#REF!","v":{"$error":"#REF!"}},{"$f":"#REF!","v":{"$error":"#REF!"}}]
[{"$error":"#REF!"},null,{"$f":"#REF!","v":{"$error":"#REF!"}},{"$f":"#REF!","v":{"$error":"#REF!"}},null,null,{"$f":"#REF!","v":{"$error":"#REF!"}},800001965,"http://www.xbrl.org/scheme/companyName",null,{"$f":"Periodos!$C$4","v":"2017-12-31"},{"$f":"#REF!","v":{"$error":"#REF!"}},{"$f":"#REF!","v":{"$error":"#REF!"}}]
[{"$error":"#REF!"},null,{"$f":"#REF!","v":{"$error":"#REF!"}},{"$f":"#REF!","v":{"$error":"#REF!"}},null,null,{"$f":"#REF!","v":{"$error":"#REF!"}},800001965,"http://www.xbrl.org/scheme/companyName",null,{"$f":"Periodos!$C$4","v":"2017-12-31"},{"$f":"#REF!","v":{"$error":"#REF!"}},{"$f":"#REF!","v":{"$error":"#REF!"}}]
[{"$error":"#REF!"},null,{"$f":"#REF!","v":{"$error":"#REF!"}},{"$f":"#REF!","v":{"$error":"#REF!"}},null,null,{"$f":"#REF!","v":{"$error":"#REF!"}},800001965,"http://www.xbrl.org/scheme/companyName",null,{"$f":"Periodos!$C$4","v":"2017-12-31"},{"$f":"#REF!","v":{"$error":"#REF!"}},{"$f":"#REF!","v":{"$error":"#REF!"}}]
[{"$error":"#REF!"},null,{"$f":"#REF!","v":{"$error":"#REF!"}},{"$f":"#REF!","v":{"$error":"#REF!"}},null,null,{"$f":"#REF!","v":{"$error":"#REF!"}},800001965,"http://www.xbrl.org/scheme/companyName",null,{"$f":"Periodos!$C$4","v":"2017-12-31"},{"$f":"#REF!","v":{"$error":"#REF!"}},{"$f":"#REF!","v":{"$error":"#REF!"}}]
[{"$error":"#REF!"},null,{"$f":"#REF!","v":{"$error":"#REF!"}},{"$f":"#REF!","v":{"$error":"#REF!"}},null,null,{"$f":"#REF!","v":{"$error":"#REF!"}},800001965,"http://www.xbrl.org/scheme/companyName",null,{"$f":"Periodos!$C$4","v":"2017-12-31"},{"$f":"#REF!","v":{"$error":"#REF!"}},{"$f":"#REF!","v":{"$error":"#REF!"}}]
[{"$error":"#REF!"},null,{"$f":"#REF!","v":{"$error":"#REF!"}},{"$f":"#REF!","v":{"$error":"#REF!"}},null,null,{"$f":"#REF!","v":{"$error":"#REF!"}},800001965,"http://www.xbrl.org/scheme/companyName",null,{"$f":"Periodos!$C$4","v":"2017-12-31"},{"$f":"#REF!","v":{"$error":"#REF!"}},{"$f":"#REF!","v":{"$error":"#REF!"}}]
[{"$error":"#REF!"},null,{"$f":"#REF!","v":{"$error":"#REF!"}},{"$f":"#REF!","v":{"$error":"#REF!"}},0,"peso",{"$f":"#REF!","v":{"$error":"#REF!"}},800001965,"http://www.xbrl.org/scheme/companyName",null,{"$f":"Periodos!$C$4","v":"2017-12-31"},{"$f":"#REF!","v":{"$error":"#REF!"}},{"$f":"#REF!","v":{"$error":"#REF!"}}]
["/*",null,"--07--"]
[{"$error":"#REF!"},null,{"$f":"#REF!","v":{"$error":"#REF!"}},{"$f":"#REF!","v":{"$error":"#REF!"}},null,null,{"$f":"#REF!","v":{"$error":"#REF!"}},800001965,"http://www.xbrl.org/scheme/companyName",null,{"$f":"Periodos!$C$4","v":"2017-12-31"},{"$f":"#REF!","v":{"$error":"#REF!"}},{"$f":"#REF!","v":{"$error":"#REF!"}}]
[{"$error":"#REF!"},null,{"$f":"#REF!","v":{"$error":"#REF!"}},{"$f":"#REF!","v":{"$error":"#REF!"}},null,null,{"$f":"#REF!","v":{"$error":"#REF!"}},800001965,"http://www.xbrl.org/scheme/companyName",null,{"$f":"Periodos!$C$4","v":"2017-12-31"},{"$f":"#REF!","v":{"$error":"#REF!"}},{"$f":"#REF!","v":{"$error":"#REF!"}}]
[{"$error":"#REF!"},null,{"$f":"#REF!","v":{"$error":"#REF!"}},{"$f":"#REF!","v":{"$error":"#REF!"}},null,null,{"$f":"#REF!","v":{"$error":"#REF!"}},800001965,"http://www.xbrl.org/scheme/companyName",null,{"$f":"Periodos!$C$4","v":"2017-12-31"},{"$f":"#REF!","v":{"$error":"#REF!"}},{"$f":"#REF!","v":{"$error":"#REF!"}}]
[{"$error":"#REF!"},null,{"$f":"#REF!","v":{"$error":"#REF!"}},{"$f":"#REF!","v":{"$error":"#REF!"}},null,null,{"$f":"#REF!","v":{"$error":"#REF!"}},800001965,"http://www.xbrl.org/scheme/companyName",null,{"$f":"Periodos!$C$4","v":"2017-12-31"},{"$f":"#REF!","v":{"$error":"#REF!"}},{"$f":"#REF!","v":{"$error":"#REF!"}}]
[{"$error":"#REF!"},null,{"$f":"#REF!","v":{"$error":"#REF!"}},{"$f":"#REF!","v":{"$error":"#REF!"}},null,null,{"$f":"#REF!","v":{"$error":"#REF!"}},800001965,"http://www.xbrl.org/scheme/companyName",null,{"$f":"Periodos!$C$4","v":"2017-12-31"},{"$f":"#REF!","v":{"$error":"#REF!"}},{"$f":"#REF!","v":{"$error":"#REF!"}}]
[{"$error":"#REF!"},null,{"$f":"#REF!","v":{"$error":"#REF!"}},{"$f":"#REF!","v":{"$error":"#REF!"}},null,null,{"$f":"#REF!","v":{"$error":"#REF!"}},800001965,"http://www.xbrl.org/scheme/companyName",null,{"$f":"Periodos!$C$4","v":"2017-12-31"},{"$f":"#REF!","v":{"$error":"#REF!"}},{"$f":"#REF!","v":{"$error":"#REF!"}}]
[{"$error":"#REF!"},null,{"$f":"#REF!","v":{"$error":"#REF!"}},{"$f":"#REF!","v":{"$error":"#REF!"}},null,null,{"$f":"#REF!","v":{"$error":"#REF!"}},800001965,"http://www.xbrl.org/scheme/companyName",null,{"$f":"Periodos!$C$4","v":"2017-12-31"},{"$f":"#REF!","v":{"$error":"#REF!"}},{"$f":"#REF!","v":{"$error":"#REF!"}}]
[{"$error":"#REF!"},null,{"$f":"#REF!","v":{"$error":"#REF!"}},{"$f":"#REF!","v":{"$error":"#REF!"}},null,null,{"$f":"#REF!","v":{"$error":"#REF!"}},800001965,"http://www.xbrl.org/scheme/companyName",null,{"$f":"Periodos!$C$4","v":"2017-12-31"},{"$f":"#REF!","v":{"$error":"#REF!"}},{"$f":"#REF!","v":{"$error":"#REF!"}}]
[{"$error":"#REF!"},null,{"$f":"#REF!","v":{"$error":"#REF!"}},{"$f":"#REF!","v":{"$error":"#REF!"}},null,null,{"$f":"#REF!","v":{"$error":"#REF!"}},800001965,"http://www.xbrl.org/scheme/companyName",null,{"$f":"Periodos!$C$4","v":"2017-12-31"},{"$f":"#REF!","v":{"$error":"#REF!"}},{"$f":"#REF!","v":{"$error":"#REF!"}}]
[{"$error":"#REF!"},null,{"$f":"#REF!","v":{"$error":"#REF!"}},{"$f":"#REF!","v":{"$error":"#REF!"}},null,null,{"$f":"#REF!","v":{"$error":"#REF!"}},800001965,"http://www.xbrl.org/scheme/companyName",null,{"$f":"Periodos!$C$4","v":"2017-12-31"},{"$f":"#REF!","v":{"$error":"#REF!"}},{"$f":"#REF!","v":{"$error":"#REF!"}}]
[{"$error":"#REF!"},null,{"$f":"#REF!","v":{"$error":"#REF!"}},{"$f":"#REF!","v":{"$error":"#REF!"}},null,null,{"$f":"#REF!","v":{"$error":"#REF!"}},800001965,"http://www.xbrl.org/scheme/companyName",null,{"$f":"Periodos!$C$4","v":"2017-12-31"},{"$f":"#REF!","v":{"$error":"#REF!"}},{"$f":"#REF!","v":{"$error":"#REF!"}}]
[{"$error":"#REF!"},null,{"$f":"#REF!","v":{"$error":"#REF!"}},{"$f":"#REF!","v":{"$error":"#REF!"}},0,"peso",{"$f":"#REF!","v":{"$error":"#REF!"}},800001965,"http://www.xbrl.org/scheme/companyName",null,{"$f":"Periodos!$C$4","v":"2017-12-31"},{"$f":"#REF!","v":{"$error":"#REF!"}},{"$f":"#REF!","v":{"$error":"#REF!"}}]
["/*",null,"--08--"]
[{"$f":"IF(G1761=\"\",\"/*\",\"\")","v":{"$error":"#REF!"}},null,{"$f":"#REF!","v":{"$error":"#REF!"}},{"$f":"#REF!","v":{"$error":"#REF!"}},null,null,{"$f":"#REF!","v":{"$error":"#REF!"}},800001965,"http://www.xbrl.org/scheme/companyName",null,{"$f":"Periodos!$C$4","v":"2017-12-31"},{"$f":"#REF!","v":{"$error":"#REF!"}},{"$f":"#REF!","v":{"$error":"#REF!"}}]
[{"$error":"#REF!"},null,{"$f":"#REF!","v":{"$error":"#REF!"}},{"$f":"#REF!","v":{"$error":"#REF!"}},null,null,{"$f":"#REF!","v":{"$error":"#REF!"}},800001965,"http://www.xbrl.org/scheme/companyName",null,{"$f":"Periodos!$C$4","v":"2017-12-31"},{"$f":"#REF!","v":{"$error":"#REF!"}},{"$f":"#REF!","v":{"$error":"#REF!"}}]
[{"$error":"#REF!"},null,{"$f":"#REF!","v":{"$error":"#REF!"}},{"$f":"#REF!","v":{"$error":"#REF!"}},null,null,{"$f":"#REF!","v":{"$error":"#REF!"}},800001965,"http://www.xbrl.org/scheme/companyName",null,{"$f":"Periodos!$C$4","v":"2017-12-31"},{"$f":"#REF!","v":{"$error":"#REF!"}},{"$f":"#REF!","v":{"$error":"#REF!"}}]
[{"$error":"#REF!"},null,{"$f":"#REF!","v":{"$error":"#REF!"}},{"$f":"#REF!","v":{"$error":"#REF!"}},null,null,{"$f":"#REF!","v":{"$error":"#REF!"}},800001965,"http://www.xbrl.org/scheme/companyName",null,{"$f":"Periodos!$C$4","v":"2017-12-31"},{"$f":"#REF!","v":{"$error":"#REF!"}},{"$f":"#REF!","v":{"$error":"#REF!"}}]
[{"$error":"#REF!"},null,{"$f":"#REF!","v":{"$error":"#REF!"}},{"$f":"#REF!","v":{"$error":"#REF!"}},null,null,{"$f":"#REF!","v":{"$error":"#REF!"}},800001965,"http://www.xbrl.org/scheme/companyName",null,{"$f":"Periodos!$C$4","v":"2017-12-31"},{"$f":"#REF!","v":{"$error":"#REF!"}},{"$f":"#REF!","v":{"$error":"#REF!"}}]
[{"$error":"#REF!"},null,{"$f":"#REF!","v":{"$error":"#REF!"}},{"$f":"#REF!","v":{"$error":"#REF!"}},null,null,{"$f":"#REF!","v":{"$error":"#REF!"}},800001965,"http://www.xbrl.org/scheme/companyName",null,{"$f":"Periodos!$C$4","v":"2017-12-31"},{"$f":"#REF!","v":{"$error":"#REF!"}},{"$f":"#REF!","v":{"$error":"#REF!"}}]
[{"$error":"#REF!"},null,{"$f":"#REF!","v":{"$error":"#REF!"}},{"$f":"#REF!","v":{"$error":"#REF!"}},null,null,{"$f":"#REF!","v":{"$error":"#REF!"}},800001965,"http://www.xbrl.org/scheme/companyName",null,{"$f":"Periodos!$C$4","v":"2017-12-31"},{"$f":"#REF!","v":{"$error":"#REF!"}},{"$f":"#REF!","v":{"$error":"#REF!"}}]
[{"$error":"#REF!"},null,{"$f":"#REF!","v":{"$error":"#REF!"}},{"$f":"#REF!","v":{"$error":"#REF!"}},null,null,{"$f":"#REF!","v":{"$error":"#REF!"}},800001965,"http://www.xbrl.org/scheme/companyName",null,{"$f":"Periodos!$C$4","v":"2017-12-31"},{"$f":"#REF!","v":{"$error":"#REF!"}},{"$f":"#REF!","v":{"$error":"#REF!"}}]
[{"$error":"#REF!"},null,{"$f":"#REF!","v":{"$error":"#REF!"}},{"$f":"#REF!","v":{"$error":"#REF!"}},null,null,{"$f":"#REF!","v":{"$error":"#REF!"}},800001965,"http://www.xbrl.org/scheme/companyName",null,{"$f":"Periodos!$C$4","v":"2017-12-31"},{"$f":"#REF!","v":{"$error":"#REF!"}},{"$f":"#REF!","v":{"$error":"#REF!"}}]
[{"$error":"#REF!"},null,{"$f":"#REF!","v":{"$error":"#REF!"}},{"$f":"#REF!","v":{"$error":"#REF!"}},null,null,{"$f":"#REF!","v":{"$error":"#REF!"}},800001965,"http://www.xbrl.org/scheme/companyName",null,{"$f":"Periodos!$C$4","v":"2017-12-31"},{"$f":"#REF!","v":{"$error":"#REF!"}},{"$f":"#REF!","v":{"$error":"#REF!"}}]
[{"$error":"#REF!"},null,{"$f":"#REF!","v":{"$error":"#REF!"}},{"$f":"#REF!","v":{"$error":"#REF!"}},null,null,{"$f":"#REF!","v":{"$error":"#REF!"}},800001965,"http://www.xbrl.org/scheme/companyName",null,{"$f":"Periodos!$C$4","v":"2017-12-31"},{"$f":"#REF!","v":{"$error":"#REF!"}},{"$f":"#REF!","v":{"$error":"#REF!"}}]
[{"$error":"#REF!"},null,{"$f":"#REF!","v":{"$error":"#REF!"}},{"$f":"#REF!","v":{"$error":"#REF!"}},0,"peso",{"$f":"#REF!","v":{"$error":"#REF!"}},800001965,"http://www.xbrl.org/scheme/companyName",null,{"$f":"Periodos!$C$4","v":"2017-12-31"},{"$f":"#REF!","v":{"$error":"#REF!"}},{"$f":"#REF!","v":{"$error":"#REF!"}}]
["/*",null,"--09--"]
[{"$error":"#REF!"},null,{"$f":"#REF!","v":{"$error":"#REF!"}},{"$f":"#REF!","v":{"$error":"#REF!"}},null,null,{"$f":"#REF!","v":{"$error":"#REF!"}},800001965,"http://www.xbrl.org/scheme/companyName",null,{"$f":"Periodos!$C$4","v":"2017-12-31"},{"$f":"#REF!","v":{"$error":"#REF!"}},{"$f":"#REF!","v":{"$error":"#REF!"}}]
[{"$error":"#REF!"},null,{"$f":"#REF!","v":{"$error":"#REF!"}},{"$f":"#REF!","v":{"$error":"#REF!"}},null,null,{"$f":"#REF!","v":{"$error":"#REF!"}},800001965,"http://www.xbrl.org/scheme/companyName",null,{"$f":"Periodos!$C$4","v":"2017-12-31"},{"$f":"#REF!","v":{"$error":"#REF!"}},{"$f":"#REF!","v":{"$error":"#REF!"}}]
[{"$error":"#REF!"},null,{"$f":"#REF!","v":{"$error":"#REF!"}},{"$f":"#REF!","v":{"$error":"#REF!"}},null,null,{"$f":"#REF!","v":{"$error":"#REF!"}},800001965,"http://www.xbrl.org/scheme/companyName",null,{"$f":"Periodos!$C$4","v":"2017-12-31"},{"$f":"#REF!","v":{"$error":"#REF!"}},{"$f":"#REF!","v":{"$error":"#REF!"}}]
[{"$error":"#REF!"},null,{"$f":"#REF!","v":{"$error":"#REF!"}},{"$f":"#REF!","v":{"$error":"#REF!"}},null,null,{"$f":"#REF!","v":{"$error":"#REF!"}},800001965,"http://www.xbrl.org/scheme/companyName",null,{"$f":"Periodos!$C$4","v":"2017-12-31"},{"$f":"#REF!","v":{"$error":"#REF!"}},{"$f":"#REF!","v":{"$error":"#REF!"}}]
[{"$error":"#REF!"},null,{"$f":"#REF!","v":{"$error":"#REF!"}},{"$f":"#REF!","v":{"$error":"#REF!"}},null,null,{"$f":"#REF!","v":{"$error":"#REF!"}},800001965,"http://www.xbrl.org/scheme/companyName",null,{"$f":"Periodos!$C$4","v":"2017-12-31"},{"$f":"#REF!","v":{"$error":"#REF!"}},{"$f":"#REF!","v":{"$error":"#REF!"}}]
[{"$error":"#REF!"},null,{"$f":"#REF!","v":{"$error":"#REF!"}},{"$f":"#REF!","v":{"$error":"#REF!"}},null,null,{"$f":"#REF!","v":{"$error":"#REF!"}},800001965,"http://www.xbrl.org/scheme/companyName",null,{"$f":"Periodos!$C$4","v":"2017-12-31"},{"$f":"#REF!","v":{"$error":"#REF!"}},{"$f":"#REF!","v":{"$error":"#REF!"}}]
[{"$error":"#REF!"},null,{"$f":"#REF!","v":{"$error":"#REF!"}},{"$f":"#REF!","v":{"$error":"#REF!"}},null,null,{"$f":"#REF!","v":{"$error":"#REF!"}},800001965,"http://www.xbrl.org/scheme/companyName",null,{"$f":"Periodos!$C$4","v":"2017-12-31"},{"$f":"#REF!","v":{"$error":"#REF!"}},{"$f":"#REF!","v":{"$error":"#REF!"}}]
[{"$error":"#REF!"},null,{"$f":"#REF!","v":{"$error":"#REF!"}},{"$f":"#REF!","v":{"$error":"#REF!"}},null,null,{"$f":"#REF!","v":{"$error":"#REF!"}},800001965,"http://www.xbrl.org/scheme/companyName",null,{"$f":"Periodos!$C$4","v":"2017-12-31"},{"$f":"#REF!","v":{"$error":"#REF!"}},{"$f":"#REF!","v":{"$error":"#REF!"}}]
[{"$error":"#REF!"},null,{"$f":"#REF!","v":{"$error":"#REF!"}},{"$f":"#REF!","v":{"$error":"#REF!"}},null,null,{"$f":"#REF!","v":{"$error":"#REF!"}},800001965,"http://www.xbrl.org/scheme/companyName",null,{"$f":"Periodos!$C$4","v":"2017-12-31"},{"$f":"#REF!","v":{"$error":"#REF!"}},{"$f":"#REF!","v":{"$error":"#REF!"}}]
[{"$error":"#REF!"},null,{"$f":"#REF!","v":{"$error":"#REF!"}},{"$f":"#REF!","v":{"$error":"#REF!"}},null,null,{"$f":"#REF!","v":{"$error":"#REF!"}},800001965,"http://www.xbrl.org/scheme/companyName",null,{"$f":"Periodos!$C$4","v":"2017-12-31"},{"$f":"#REF!","v":{"$error":"#REF!"}},{"$f":"#REF!","v":{"$error":"#REF!"}}]
[{"$error":"#REF!"},null,{"$f":"#REF!","v":{"$error":"#REF!"}},{"$f":"#REF!","v":{"$error":"#REF!"}},null,null,{"$f":"#REF!","v":{"$error":"#REF!"}},800001965,"http://www.xbrl.org/scheme/companyName",null,{"$f":"Periodos!$C$4","v":"2017-12-31"},{"$f":"#REF!","v":{"$error":"#REF!"}},{"$f":"#REF!","v":{"$error":"#REF!"}}]
[{"$error":"#REF!"},null,{"$f":"#REF!","v":{"$error":"#REF!"}},{"$f":"#REF!","v":{"$error":"#REF!"}},0,"peso",{"$f":"#REF!","v":{"$error":"#REF!"}},800001965,"http://www.xbrl.org/scheme/companyName",null,{"$f":"Periodos!$C$4","v":"2017-12-31"},{"$f":"#REF!","v":{"$error":"#REF!"}},{"$f":"#REF!","v":{"$error":"#REF!"}}]
["/*",null,"--10--"]
[{"$error":"#REF!"},null,{"$f":"#REF!","v":{"$error":"#REF!"}},{"$f":"#REF!","v":{"$error":"#REF!"}},null,null,{"$f":"#REF!","v":{"$error":"#REF!"}},800001965,"http://www.xbrl.org/scheme/companyName",null,{"$f":"Periodos!$C$4","v":"2017-12-31"},{"$f":"#REF!","v":{"$error":"#REF!"}},{"$f":"#REF!","v":{"$error":"#REF!"}}]
[{"$error":"#REF!"},null,{"$f":"#REF!","v":{"$error":"#REF!"}},{"$f":"#REF!","v":{"$error":"#REF!"}},null,null,{"$f":"#REF!","v":{"$error":"#REF!"}},800001965,"http://www.xbrl.org/scheme/companyName",null,{"$f":"Periodos!$C$4","v":"2017-12-31"},{"$f":"#REF!","v":{"$error":"#REF!"}},{"$f":"#REF!","v":{"$error":"#REF!"}}]
[{"$error":"#REF!"},null,{"$f":"#REF!","v":{"$error":"#REF!"}},{"$f":"#REF!","v":{"$error":"#REF!"}},null,null,{"$f":"#REF!","v":{"$error":"#REF!"}},800001965,"http://www.xbrl.org/scheme/companyName",null,{"$f":"Periodos!$C$4","v":"2017-12-31"},{"$f":"#REF!","v":{"$error":"#REF!"}},{"$f":"#REF!","v":{"$error":"#REF!"}}]
[{"$error":"#REF!"},null,{"$f":"#REF!","v":{"$error":"#REF!"}},{"$f":"#REF!","v":{"$error":"#REF!"}},null,null,{"$f":"#REF!","v":{"$error":"#REF!"}},800001965,"http://www.xbrl.org/scheme/companyName",null,{"$f":"Periodos!$C$4","v":"2017-12-31"},{"$f":"#REF!","v":{"$error":"#REF!"}},{"$f":"#REF!","v":{"$error":"#REF!"}}]
[{"$error":"#REF!"},null,{"$f":"#REF!","v":{"$error":"#REF!"}},{"$f":"#REF!","v":{"$error":"#REF!"}},null,null,{"$f":"#REF!","v":{"$error":"#REF!"}},800001965,"http://www.xbrl.org/scheme/companyName",null,{"$f":"Periodos!$C$4","v":"2017-12-31"},{"$f":"#REF!","v":{"$error":"#REF!"}},{"$f":"#REF!","v":{"$error":"#REF!"}}]
[{"$error":"#REF!"},null,{"$f":"#REF!","v":{"$error":"#REF!"}},{"$f":"#REF!","v":{"$error":"#REF!"}},null,null,{"$f":"#REF!","v":{"$error":"#REF!"}},800001965,"http://www.xbrl.org/scheme/companyName",null,{"$f":"Periodos!$C$4","v":"2017-12-31"},{"$f":"#REF!","v":{"$error":"#REF!"}},{"$f":"#REF!","v":{"$error":"#REF!"}}]
[{"$error":"#REF!"},null,{"$f":"#REF!","v":{"$error":"#REF!"}},{"$f":"#REF!","v":{"$error":"#REF!"}},null,null,{"$f":"#REF!","v":{"$error":"#REF!"}},800001965,"http://www.xbrl.org/scheme/companyName",null,{"$f":"Periodos!$C$4","v":"2017-12-31"},{"$f":"#REF!","v":{"$error":"#REF!"}},{"$f":"#REF!","v":{"$error":"#REF!"}}]
[{"$error":"#REF!"},null,{"$f":"#REF!","v":{"$error":"#REF!"}},{"$f":"#REF!","v":{"$error":"#REF!"}},null,null,{"$f":"#REF!","v":{"$error":"#REF!"}},800001965,"http://www.xbrl.org/scheme/companyName",null,{"$f":"Periodos!$C$4","v":"2017-12-31"},{"$f":"#REF!","v":{"$error":"#REF!"}},{"$f":"#REF!","v":{"$error":"#REF!"}}]
[{"$error":"#REF!"},null,{"$f":"#REF!","v":{"$error":"#REF!"}},{"$f":"#REF!","v":{"$error":"#REF!"}},null,null,{"$f":"#REF!","v":{"$error":"#REF!"}},800001965,"http://www.xbrl.org/scheme/companyName",null,{"$f":"Periodos!$C$4","v":"2017-12-31"},{"$f":"#REF!","v":{"$error":"#REF!"}},{"$f":"#REF!","v":{"$error":"#REF!"}}]
[{"$error":"#REF!"},null,{"$f":"#REF!","v":{"$error":"#REF!"}},{"$f":"#REF!","v":{"$error":"#REF!"}},null,null,{"$f":"#REF!","v":{"$error":"#REF!"}},800001965,"http://www.xbrl.org/scheme/companyName",null,{"$f":"Periodos!$C$4","v":"2017-12-31"},{"$f":"#REF!","v":{"$error":"#REF!"}},{"$f":"#REF!","v":{"$error":"#REF!"}}]
[{"$error":"#REF!"},null,{"$f":"#REF!","v":{"$error":"#REF!"}},{"$f":"#REF!","v":{"$error":"#REF!"}},null,null,{"$f":"#REF!","v":{"$error":"#REF!"}},800001965,"http://www.xbrl.org/scheme/companyName",null,{"$f":"Periodos!$C$4","v":"2017-12-31"},{"$f":"#REF!","v":{"$error":"#REF!"}},{"$f":"#REF!","v":{"$error":"#REF!"}}]
[{"$error":"#REF!"},null,{"$f":"#REF!","v":{"$error":"#REF!"}},{"$f":"#REF!","v":{"$error":"#REF!"}},0,"peso",{"$f":"#REF!","v":{"$error":"#REF!"}},800001965,"http://www.xbrl.org/scheme/companyName",null,{"$f":"Periodos!$C$4","v":"2017-12-31"},{"$f":"#REF!","v":{"$error":"#REF!"}},{"$f":"#REF!","v":{"$error":"#REF!"}}]
["/*",null,"--11--"]
[{"$error":"#REF!"},null,{"$f":"#REF!","v":{"$error":"#REF!"}},{"$f":"#REF!","v":{"$error":"#REF!"}},null,null,{"$f":"#REF!","v":{"$error":"#REF!"}},800001965,"http://www.xbrl.org/scheme/companyName",null,{"$f":"Periodos!$C$4","v":"2017-12-31"},{"$f":"#REF!","v":{"$error":"#REF!"}},{"$f":"#REF!","v":{"$error":"#REF!"}}]
[{"$error":"#REF!"},null,{"$f":"#REF!","v":{"$error":"#REF!"}},{"$f":"#REF!","v":{"$error":"#REF!"}},null,null,{"$f":"#REF!","v":{"$error":"#REF!"}},800001965,"http://www.xbrl.org/scheme/companyName",null,{"$f":"Periodos!$C$4","v":"2017-12-31"},{"$f":"#REF!","v":{"$error":"#REF!"}},{"$f":"#REF!","v":{"$error":"#REF!"}}]
[{"$error":"#REF!"},null,{"$f":"#REF!","v":{"$error":"#REF!"}},{"$f":"#REF!","v":{"$error":"#REF!"}},null,null,{"$f":"#REF!","v":{"$error":"#REF!"}},800001965,"http://www.xbrl.org/scheme/companyName",null,{"$f":"Periodos!$C$4","v":"2017-12-31"},{"$f":"#REF!","v":{"$error":"#REF!"}},{"$f":"#REF!","v":{"$error":"#REF!"}}]
[{"$error":"#REF!"},null,{"$f":"#REF!","v":{"$error":"#REF!"}},{"$f":"#REF!","v":{"$error":"#REF!"}},null,null,{"$f":"#REF!","v":{"$error":"#REF!"}},800001965,"http://www.xbrl.org/scheme/companyName",null,{"$f":"Periodos!$C$4","v":"2017-12-31"},{"$f":"#REF!","v":{"$error":"#REF!"}},{"$f":"#REF!","v":{"$error":"#REF!"}}]
[{"$error":"#REF!"},null,{"$f":"#REF!","v":{"$error":"#REF!"}},{"$f":"#REF!","v":{"$error":"#REF!"}},null,null,{"$f":"#REF!","v":{"$error":"#REF!"}},800001965,"http://www.xbrl.org/scheme/companyName",null,{"$f":"Periodos!$C$4","v":"2017-12-31"},{"$f":"#REF!","v":{"$error":"#REF!"}},{"$f":"#REF!","v":{"$error":"#REF!"}}]
[{"$error":"#REF!"},null,{"$f":"#REF!","v":{"$error":"#REF!"}},{"$f":"#REF!","v":{"$error":"#REF!"}},null,null,{"$f":"#REF!","v":{"$error":"#REF!"}},800001965,"http://www.xbrl.org/scheme/companyName",null,{"$f":"Periodos!$C$4","v":"2017-12-31"},{"$f":"#REF!","v":{"$error":"#REF!"}},{"$f":"#REF!","v":{"$error":"#REF!"}}]
[{"$error":"#REF!"},null,{"$f":"#REF!","v":{"$error":"#REF!"}},{"$f":"#REF!","v":{"$error":"#REF!"}},null,null,{"$f":"#REF!","v":{"$error":"#REF!"}},800001965,"http://www.xbrl.org/scheme/companyName",null,{"$f":"Periodos!$C$4","v":"2017-12-31"},{"$f":"#REF!","v":{"$error":"#REF!"}},{"$f":"#REF!","v":{"$error":"#REF!"}}]
[{"$error":"#REF!"},null,{"$f":"#REF!","v":{"$error":"#REF!"}},{"$f":"#REF!","v":{"$error":"#REF!"}},null,null,{"$f":"#REF!","v":{"$error":"#REF!"}},800001965,"http://www.xbrl.org/scheme/companyName",null,{"$f":"Periodos!$C$4","v":"2017-12-31"},{"$f":"#REF!","v":{"$error":"#REF!"}},{"$f":"#REF!","v":{"$error":"#REF!"}}]
[{"$error":"#REF!"},null,{"$f":"#REF!","v":{"$error":"#REF!"}},{"$f":"#REF!","v":{"$error":"#REF!"}},null,null,{"$f":"#REF!","v":{"$error":"#REF!"}},800001965,"http://www.xbrl.org/scheme/companyName",null,{"$f":"Periodos!$C$4","v":"2017-12-31"},{"$f":"#REF!","v":{"$error":"#REF!"}},{"$f":"#REF!","v":{"$error":"#REF!"}}]
[{"$error":"#REF!"},null,{"$f":"#REF!","v":{"$error":"#REF!"}},{"$f":"#REF!","v":{"$error":"#REF!"}},null,null,{"$f":"#REF!","v":{"$error":"#REF!"}},800001965,"http://www.xbrl.org/scheme/companyName",null,{"$f":"Periodos!$C$4","v":"2017-12-31"},{"$f":"#REF!","v":{"$error":"#REF!"}},{"$f":"#REF!","v":{"$error":"#REF!"}}]
[{"$error":"#REF!"},null,{"$f":"#REF!","v":{"$error":"#REF!"}},{"$f":"#REF!","v":{"$error":"#REF!"}},null,null,{"$f":"#REF!","v":{"$error":"#REF!"}},800001965,"http://www.xbrl.org/scheme/companyName",null,{"$f":"Periodos!$C$4","v":"2017-12-31"},{"$f":"#REF!","v":{"$error":"#REF!"}},{"$f":"#REF!","v":{"$error":"#REF!"}}]
[{"$error":"#REF!"},null,{"$f":"#REF!","v":{"$error":"#REF!"}},{"$f":"#REF!","v":{"$error":"#REF!"}},0,"peso",{"$f":"#REF!","v":{"$error":"#REF!"}},800001965,"http://www.xbrl.org/scheme/companyName",null,{"$f":"Periodos!$C$4","v":"2017-12-31"},{"$f":"#REF!","v":{"$error":"#REF!"}},{"$f":"#REF!","v":{"$error":"#REF!"}}]
["/*",null,"--12--"]
[{"$error":"#REF!"},null,{"$f":"#REF!","v":{"$error":"#REF!"}},{"$f":"#REF!","v":{"$error":"#REF!"}},null,null,{"$f":"#REF!","v":{"$error":"#REF!"}},800001965,"http://www.xbrl.org/scheme/companyName",null,{"$f":"Periodos!$C$4","v":"2017-12-31"},{"$f":"#REF!","v":{"$error":"#REF!"}},{"$f":"#REF!","v":{"$error":"#REF!"}}]
[{"$error":"#REF!"},null,{"$f":"#REF!","v":{"$error":"#REF!"}},{"$f":"#REF!","v":{"$error":"#REF!"}},null,null,{"$f":"#REF!","v":{"$error":"#REF!"}},800001965,"http://www.xbrl.org/scheme/companyName",null,{"$f":"Periodos!$C$4","v":"2017-12-31"},{"$f":"#REF!","v":{"$error":"#REF!"}},{"$f":"#REF!","v":{"$error":"#REF!"}}]
[{"$error":"#REF!"},null,{"$f":"#REF!","v":{"$error":"#REF!"}},{"$f":"#REF!","v":{"$error":"#REF!"}},null,null,{"$f":"#REF!","v":{"$error":"#REF!"}},800001965,"http://www.xbrl.org/scheme/companyName",null,{"$f":"Periodos!$C$4","v":"2017-12-31"},{"$f":"#REF!","v":{"$error":"#REF!"}},{"$f":"#REF!","v":{"$error":"#REF!"}}]
[{"$error":"#REF!"},null,{"$f":"#REF!","v":{"$error":"#REF!"}},{"$f":"#REF!","v":{"$error":"#REF!"}},null,null,{"$f":"#REF!","v":{"$error":"#REF!"}},800001965,"http://www.xbrl.org/scheme/companyName",null,{"$f":"Periodos!$C$4","v":"2017-12-31"},{"$f":"#REF!","v":{"$error":"#REF!"}},{"$f":"#REF!","v":{"$error":"#REF!"}}]
[{"$error":"#REF!"},null,{"$f":"#REF!","v":{"$error":"#REF!"}},{"$f":"#REF!","v":{"$error":"#REF!"}},null,null,{"$f":"#REF!","v":{"$error":"#REF!"}},800001965,"http://www.xbrl.org/scheme/companyName",null,{"$f":"Periodos!$C$4","v":"2017-12-31"},{"$f":"#REF!","v":{"$error":"#REF!"}},{"$f":"#REF!","v":{"$error":"#REF!"}}]
[{"$error":"#REF!"},null,{"$f":"#REF!","v":{"$error":"#REF!"}},{"$f":"#REF!","v":{"$error":"#REF!"}},null,null,{"$f":"#REF!","v":{"$error":"#REF!"}},800001965,"http://www.xbrl.org/scheme/companyName",null,{"$f":"Periodos!$C$4","v":"2017-12-31"},{"$f":"#REF!","v":{"$error":"#REF!"}},{"$f":"#REF!","v":{"$error":"#REF!"}}]
[{"$error":"#REF!"},null,{"$f":"#REF!","v":{"$error":"#REF!"}},{"$f":"#REF!","v":{"$error":"#REF!"}},null,null,{"$f":"#REF!","v":{"$error":"#REF!"}},800001965,"http://www.xbrl.org/scheme/companyName",null,{"$f":"Periodos!$C$4","v":"2017-12-31"},{"$f":"#REF!","v":{"$error":"#REF!"}},{"$f":"#REF!","v":{"$error":"#REF!"}}]
[{"$error":"#REF!"},null,{"$f":"#REF!","v":{"$error":"#REF!"}},{"$f":"#REF!","v":{"$error":"#REF!"}},null,null,{"$f":"#REF!","v":{"$error":"#REF!"}},800001965,"http://www.xbrl.org/scheme/companyName",null,{"$f":"Periodos!$C$4","v":"2017-12-31"},{"$f":"#REF!","v":{"$error":"#REF!"}},{"$f":"#REF!","v":{"$error":"#REF!"}}]
[{"$error":"#REF!"},null,{"$f":"#REF!","v":{"$error":"#REF!"}},{"$f":"#REF!","v":{"$error":"#REF!"}},null,null,{"$f":"#REF!","v":{"$error":"#REF!"}},800001965,"http://www.xbrl.org/scheme/companyName",null,{"$f":"Periodos!$C$4","v":"2017-12-31"},{"$f":"#REF!","v":{"$error":"#REF!"}},{"$f":"#REF!","v":{"$error":"#REF!"}}]
[{"$error":"#REF!"},null,{"$f":"#REF!","v":{"$error":"#REF!"}},{"$f":"#REF!","v":{"$error":"#REF!"}},null,null,{"$f":"#REF!","v":{"$error":"#REF!"}},800001965,"http://www.xbrl.org/scheme/companyName",null,{"$f":"Periodos!$C$4","v":"2017-12-31"},{"$f":"#REF!","v":{"$error":"#REF!"}},{"$f":"#REF!","v":{"$error":"#REF!"}}]
[{"$error":"#REF!"},null,{"$f":"#REF!","v":{"$error":"#REF!"}},{"$f":"#REF!","v":{"$error":"#REF!"}},null,null,{"$f":"#REF!","v":{"$error":"#REF!"}},800001965,"http://www.xbrl.org/scheme/companyName",null,{"$f":"Periodos!$C$4","v":"2017-12-31"},{"$f":"#REF!","v":{"$error":"#REF!"}},{"$f":"#REF!","v":{"$error":"#REF!"}}]
[{"$error":"#REF!"},null,{"$f":"#REF!","v":{"$error":"#REF!"}},{"$f":"#REF!","v":{"$error":"#REF!"}},0,"peso",{"$f":"#REF!","v":{"$error":"#REF!"}},800001965,"http://www.xbrl.org/scheme/companyName",null,{"$f":"Periodos!$C$4","v":"2017-12-31"},{"$f":"#REF!","v":{"$error":"#REF!"}},{"$f":"#REF!","v":{"$error":"#REF!"}}]
[{"$f":"IF(G1825=\"\",\"/*\",\"\")","v":"/*"},null,"--13--"]
[{"$error":"#REF!"},null,{"$f":"#REF!","v":{"$error":"#REF!"}},{"$f":"#REF!","v":{"$error":"#REF!"}},null,null,{"$f":"#REF!","v":{"$error":"#REF!"}},800001965,"http://www.xbrl.org/scheme/companyName",null,{"$f":"Periodos!$C$4","v":"2017-12-31"},{"$f":"#REF!","v":{"$error":"#REF!"}},{"$f":"#REF!","v":{"$error":"#REF!"}}]
[{"$error":"#REF!"},null,{"$f":"#REF!","v":{"$error":"#REF!"}},{"$f":"#REF!","v":{"$error":"#REF!"}},null,null,{"$f":"#REF!","v":{"$error":"#REF!"}},800001965,"http://www.xbrl.org/scheme/companyName",null,{"$f":"Periodos!$C$4","v":"2017-12-31"},{"$f":"#REF!","v":{"$error":"#REF!"}},{"$f":"#REF!","v":{"$error":"#REF!"}}]
[{"$error":"#REF!"},null,{"$f":"#REF!","v":{"$error":"#REF!"}},{"$f":"#REF!","v":{"$error":"#REF!"}},null,null,{"$f":"#REF!","v":{"$error":"#REF!"}},800001965,"http://www.xbrl.org/scheme/companyName",null,{"$f":"Periodos!$C$4","v":"2017-12-31"},{"$f":"#REF!","v":{"$error":"#REF!"}},{"$f":"#REF!","v":{"$error":"#REF!"}}]
[{"$error":"#REF!"},null,{"$f":"#REF!","v":{"$error":"#REF!"}},{"$f":"#REF!","v":{"$error":"#REF!"}},null,null,{"$f":"#REF!","v":{"$error":"#REF!"}},800001965,"http://www.xbrl.org/scheme/companyName",null,{"$f":"Periodos!$C$4","v":"2017-12-31"},{"$f":"#REF!","v":{"$error":"#REF!"}},{"$f":"#REF!","v":{"$error":"#REF!"}}]
[{"$error":"#REF!"},null,{"$f":"#REF!","v":{"$error":"#REF!"}},{"$f":"#REF!","v":{"$error":"#REF!"}},null,null,{"$f":"#REF!","v":{"$error":"#REF!"}},800001965,"http://www.xbrl.org/scheme/companyName",null,{"$f":"Periodos!$C$4","v":"2017-12-31"},{"$f":"#REF!","v":{"$error":"#REF!"}},{"$f":"#REF!","v":{"$error":"#REF!"}}]
[{"$error":"#REF!"},null,{"$f":"#REF!","v":{"$error":"#REF!"}},{"$f":"#REF!","v":{"$error":"#REF!"}},null,null,{"$f":"#REF!","v":{"$error":"#REF!"}},800001965,"http://www.xbrl.org/scheme/companyName",null,{"$f":"Periodos!$C$4","v":"2017-12-31"},{"$f":"#REF!","v":{"$error":"#REF!"}},{"$f":"#REF!","v":{"$error":"#REF!"}}]
[{"$error":"#REF!"},null,{"$f":"#REF!","v":{"$error":"#REF!"}},{"$f":"#REF!","v":{"$error":"#REF!"}},null,null,{"$f":"#REF!","v":{"$error":"#REF!"}},800001965,"http://www.xbrl.org/scheme/companyName",null,{"$f":"Periodos!$C$4","v":"2017-12-31"},{"$f":"#REF!","v":{"$error":"#REF!"}},{"$f":"#REF!","v":{"$error":"#REF!"}}]
[{"$error":"#REF!"},null,{"$f":"#REF!","v":{"$error":"#REF!"}},{"$f":"#REF!","v":{"$error":"#REF!"}},null,null,{"$f":"#REF!","v":{"$error":"#REF!"}},800001965,"http://www.xbrl.org/scheme/companyName",null,{"$f":"Periodos!$C$4","v":"2017-12-31"},{"$f":"#REF!","v":{"$error":"#REF!"}},{"$f":"#REF!","v":{"$error":"#REF!"}}]
[{"$error":"#REF!"},null,{"$f":"#REF!","v":{"$error":"#REF!"}},{"$f":"#REF!","v":{"$error":"#REF!"}},null,null,{"$f":"#REF!","v":{"$error":"#REF!"}},800001965,"http://www.xbrl.org/scheme/companyName",null,{"$f":"Periodos!$C$4","v":"2017-12-31"},{"$f":"#REF!","v":{"$error":"#REF!"}},{"$f":"#REF!","v":{"$error":"#REF!"}}]
[{"$error":"#REF!"},null,{"$f":"#REF!","v":{"$error":"#REF!"}},{"$f":"#REF!","v":{"$error":"#REF!"}},null,null,{"$f":"#REF!","v":{"$error":"#REF!"}},800001965,"http://www.xbrl.org/scheme/companyName",null,{"$f":"Periodos!$C$4","v":"2017-12-31"},{"$f":"#REF!","v":{"$error":"#REF!"}},{"$f":"#REF!","v":{"$error":"#REF!"}}]
[{"$error":"#REF!"},null,{"$f":"#REF!","v":{"$error":"#REF!"}},{"$f":"#REF!","v":{"$error":"#REF!"}},null,null,{"$f":"#REF!","v":{"$error":"#REF!"}},800001965,"http://www.xbrl.org/scheme/companyName",null,{"$f":"Periodos!$C$4","v":"2017-12-31"},{"$f":"#REF!","v":{"$error":"#REF!"}},{"$f":"#REF!","v":{"$error":"#REF!"}}]
[{"$error":"#REF!"},null,{"$f":"#REF!","v":{"$error":"#REF!"}},{"$f":"#REF!","v":{"$error":"#REF!"}},0,"peso",{"$f":"#REF!","v":{"$error":"#REF!"}},800001965,"http://www.xbrl.org/scheme/companyName",null,{"$f":"Periodos!$C$4","v":"2017-12-31"},{"$f":"#REF!","v":{"$error":"#REF!"}},{"$f":"#REF!","v":{"$error":"#REF!"}}]
["/*",null,"--14--"]
[{"$error":"#REF!"},null,{"$f":"#REF!","v":{"$error":"#REF!"}},{"$f":"#REF!","v":{"$error":"#REF!"}},null,null,{"$f":"#REF!","v":{"$error":"#REF!"}},800001965,"http://www.xbrl.org/scheme/companyName",null,{"$f":"Periodos!$C$4","v":"2017-12-31"},{"$f":"#REF!","v":{"$error":"#REF!"}},{"$f":"#REF!","v":{"$error":"#REF!"}}]
[{"$error":"#REF!"},null,{"$f":"#REF!","v":{"$error":"#REF!"}},{"$f":"#REF!","v":{"$error":"#REF!"}},null,null,{"$f":"#REF!","v":{"$error":"#REF!"}},800001965,"http://www.xbrl.org/scheme/companyName",null,{"$f":"Periodos!$C$4","v":"2017-12-31"},{"$f":"#REF!","v":{"$error":"#REF!"}},{"$f":"#REF!","v":{"$error":"#REF!"}}]
[{"$error":"#REF!"},null,{"$f":"#REF!","v":{"$error":"#REF!"}},{"$f":"#REF!","v":{"$error":"#REF!"}},null,null,{"$f":"#REF!","v":{"$error":"#REF!"}},800001965,"http://www.xbrl.org/scheme/companyName",null,{"$f":"Periodos!$C$4","v":"2017-12-31"},{"$f":"#REF!","v":{"$error":"#REF!"}},{"$f":"#REF!","v":{"$error":"#REF!"}}]
[{"$error":"#REF!"},null,{"$f":"#REF!","v":{"$error":"#REF!"}},{"$f":"#REF!","v":{"$error":"#REF!"}},null,null,{"$f":"#REF!","v":{"$error":"#REF!"}},800001965,"http://www.xbrl.org/scheme/companyName",null,{"$f":"Periodos!$C$4","v":"2017-12-31"},{"$f":"#REF!","v":{"$error":"#REF!"}},{"$f":"#REF!","v":{"$error":"#REF!"}}]
[{"$error":"#REF!"},null,{"$f":"#REF!","v":{"$error":"#REF!"}},{"$f":"#REF!","v":{"$error":"#REF!"}},null,null,{"$f":"#REF!","v":{"$error":"#REF!"}},800001965,"http://www.xbrl.org/scheme/companyName",null,{"$f":"Periodos!$C$4","v":"2017-12-31"},{"$f":"#REF!","v":{"$error":"#REF!"}},{"$f":"#REF!","v":{"$error":"#REF!"}}]
[{"$error":"#REF!"},null,{"$f":"#REF!","v":{"$error":"#REF!"}},{"$f":"#REF!","v":{"$error":"#REF!"}},null,null,{"$f":"#REF!","v":{"$error":"#REF!"}},800001965,"http://www.xbrl.org/scheme/companyName",null,{"$f":"Periodos!$C$4","v":"2017-12-31"},{"$f":"#REF!","v":{"$error":"#REF!"}},{"$f":"#REF!","v":{"$error":"#REF!"}}]
[{"$error":"#REF!"},null,{"$f":"#REF!","v":{"$error":"#REF!"}},{"$f":"#REF!","v":{"$error":"#REF!"}},null,null,{"$f":"#REF!","v":{"$error":"#REF!"}},800001965,"http://www.xbrl.org/scheme/companyName",null,{"$f":"Periodos!$C$4","v":"2017-12-31"},{"$f":"#REF!","v":{"$error":"#REF!"}},{"$f":"#REF!","v":{"$error":"#REF!"}}]
[{"$error":"#REF!"},null,{"$f":"#REF!","v":{"$error":"#REF!"}},{"$f":"#REF!","v":{"$error":"#REF!"}},null,null,{"$f":"#REF!","v":{"$error":"#REF!"}},800001965,"http://www.xbrl.org/scheme/companyName",null,{"$f":"Periodos!$C$4","v":"2017-12-31"},{"$f":"#REF!","v":{"$error":"#REF!"}},{"$f":"#REF!","v":{"$error":"#REF!"}}]
[{"$error":"#REF!"},null,{"$f":"#REF!","v":{"$error":"#REF!"}},{"$f":"#REF!","v":{"$error":"#REF!"}},null,null,{"$f":"#REF!","v":{"$error":"#REF!"}},800001965,"http://www.xbrl.org/scheme/companyName",null,{"$f":"Periodos!$C$4","v":"2017-12-31"},{"$f":"#REF!","v":{"$error":"#REF!"}},{"$f":"#REF!","v":{"$error":"#REF!"}}]
[{"$error":"#REF!"},null,{"$f":"#REF!","v":{"$error":"#REF!"}},{"$f":"#REF!","v":{"$error":"#REF!"}},null,null,{"$f":"#REF!","v":{"$error":"#REF!"}},800001965,"http://www.xbrl.org/scheme/companyName",null,{"$f":"Periodos!$C$4","v":"2017-12-31"},{"$f":"#REF!","v":{"$error":"#REF!"}},{"$f":"#REF!","v":{"$error":"#REF!"}}]
[{"$error":"#REF!"},null,{"$f":"#REF!","v":{"$error":"#REF!"}},{"$f":"#REF!","v":{"$error":"#REF!"}},null,null,{"$f":"#REF!","v":{"$error":"#REF!"}},800001965,"http://www.xbrl.org/scheme/companyName",null,{"$f":"Periodos!$C$4","v":"2017-12-31"},{"$f":"#REF!","v":{"$error":"#REF!"}},{"$f":"#REF!","v":{"$error":"#REF!"}}]
[{"$error":"#REF!"},null,{"$f":"#REF!","v":{"$error":"#REF!"}},{"$f":"#REF!","v":{"$error":"#REF!"}},0,"peso",{"$f":"#REF!","v":{"$error":"#REF!"}},800001965,"http://www.xbrl.org/scheme/companyName",null,{"$f":"Periodos!$C$4","v":"2017-12-31"},{"$f":"#REF!","v":{"$error":"#REF!"}},{"$f":"#REF!","v":{"$error":"#REF!"}}]
["/*",null,"--15--"]
[{"$error":"#REF!"},null,{"$f":"#REF!","v":{"$error":"#REF!"}},{"$f":"#REF!","v":{"$error":"#REF!"}},null,null,{"$f":"#REF!","v":{"$error":"#REF!"}},800001965,"http://www.xbrl.org/scheme/companyName",null,{"$f":"Periodos!$C$4","v":"2017-12-31"},{"$f":"#REF!","v":{"$error":"#REF!"}},{"$f":"#REF!","v":{"$error":"#REF!"}}]
[{"$error":"#REF!"},null,{"$f":"#REF!","v":{"$error":"#REF!"}},{"$f":"#REF!","v":{"$error":"#REF!"}},null,null,{"$f":"#REF!","v":{"$error":"#REF!"}},800001965,"http://www.xbrl.org/scheme/companyName",null,{"$f":"Periodos!$C$4","v":"2017-12-31"},{"$f":"#REF!","v":{"$error":"#REF!"}},{"$f":"#REF!","v":{"$error":"#REF!"}}]
[{"$error":"#REF!"},null,{"$f":"#REF!","v":{"$error":"#REF!"}},{"$f":"#REF!","v":{"$error":"#REF!"}},null,null,{"$f":"#REF!","v":{"$error":"#REF!"}},800001965,"http://www.xbrl.org/scheme/companyName",null,{"$f":"Periodos!$C$4","v":"2017-12-31"},{"$f":"#REF!","v":{"$error":"#REF!"}},{"$f":"#REF!","v":{"$error":"#REF!"}}]
[{"$error":"#REF!"},null,{"$f":"#REF!","v":{"$error":"#REF!"}},{"$f":"#REF!","v":{"$error":"#REF!"}},null,null,{"$f":"#REF!","v":{"$error":"#REF!"}},800001965,"http://www.xbrl.org/scheme/companyName",null,{"$f":"Periodos!$C$4","v":"2017-12-31"},{"$f":"#REF!","v":{"$error":"#REF!"}},{"$f":"#REF!","v":{"$error":"#REF!"}}]
[{"$error":"#REF!"},null,{"$f":"#REF!","v":{"$error":"#REF!"}},{"$f":"#REF!","v":{"$error":"#REF!"}},null,null,{"$f":"#REF!","v":{"$error":"#REF!"}},800001965,"http://www.xbrl.org/scheme/companyName",null,{"$f":"Periodos!$C$4","v":"2017-12-31"},{"$f":"#REF!","v":{"$error":"#REF!"}},{"$f":"#REF!","v":{"$error":"#REF!"}}]
[{"$error":"#REF!"},null,{"$f":"#REF!","v":{"$error":"#REF!"}},{"$f":"#REF!","v":{"$error":"#REF!"}},null,null,{"$f":"#REF!","v":{"$error":"#REF!"}},800001965,"http://www.xbrl.org/scheme/companyName",null,{"$f":"Periodos!$C$4","v":"2017-12-31"},{"$f":"#REF!","v":{"$error":"#REF!"}},{"$f":"#REF!","v":{"$error":"#REF!"}}]
[{"$error":"#REF!"},null,{"$f":"#REF!","v":{"$error":"#REF!"}},{"$f":"#REF!","v":{"$error":"#REF!"}},null,null,{"$f":"#REF!","v":{"$error":"#REF!"}},800001965,"http://www.xbrl.org/scheme/companyName",null,{"$f":"Periodos!$C$4","v":"2017-12-31"},{"$f":"#REF!","v":{"$error":"#REF!"}},{"$f":"#REF!","v":{"$error":"#REF!"}}]
[{"$error":"#REF!"},null,{"$f":"#REF!","v":{"$error":"#REF!"}},{"$f":"#REF!","v":{"$error":"#REF!"}},null,null,{"$f":"#REF!","v":{"$error":"#REF!"}},800001965,"http://www.xbrl.org/scheme/companyName",null,{"$f":"Periodos!$C$4","v":"2017-12-31"},{"$f":"#REF!","v":{"$error":"#REF!"}},{"$f":"#REF!","v":{"$error":"#REF!"}}]
[{"$error":"#REF!"},null,{"$f":"#REF!","v":{"$error":"#REF!"}},{"$f":"#REF!","v":{"$error":"#REF!"}},null,null,{"$f":"#REF!","v":{"$error":"#REF!"}},800001965,"http://www.xbrl.org/scheme/companyName",null,{"$f":"Periodos!$C$4","v":"2017-12-31"},{"$f":"#REF!","v":{"$error":"#REF!"}},{"$f":"#REF!","v":{"$error":"#REF!"}}]
[{"$error":"#REF!"},null,{"$f":"#REF!","v":{"$error":"#REF!"}},{"$f":"#REF!","v":{"$error":"#REF!"}},null,null,{"$f":"#REF!","v":{"$error":"#REF!"}},800001965,"http://www.xbrl.org/scheme/companyName",null,{"$f":"Periodos!$C$4","v":"2017-12-31"},{"$f":"#REF!","v":{"$error":"#REF!"}},{"$f":"#REF!","v":{"$error":"#REF!"}}]
[{"$error":"#REF!"},null,{"$f":"#REF!","v":{"$error":"#REF!"}},{"$f":"#REF!","v":{"$error":"#REF!"}},null,null,{"$f":"#REF!","v":{"$error":"#REF!"}},800001965,"http://www.xbrl.org/scheme/companyName",null,{"$f":"Periodos!$C$4","v":"2017-12-31"},{"$f":"#REF!","v":{"$error":"#REF!"}},{"$f":"#REF!","v":{"$error":"#REF!"}}]
[{"$error":"#REF!"},null,{"$f":"#REF!","v":{"$error":"#REF!"}},{"$f":"#REF!","v":{"$error":"#REF!"}},0,"peso",{"$f":"#REF!","v":{"$error":"#REF!"}},800001965,"http://www.xbrl.org/scheme/companyName",null,{"$f":"Periodos!$C$4","v":"2017-12-31"},{"$f":"#REF!","v":{"$error":"#REF!"}},{"$f":"#REF!","v":{"$error":"#REF!"}}]
["/*",null,"--16--"]
[{"$error":"#REF!"},null,{"$f":"#REF!","v":{"$error":"#REF!"}},{"$f":"#REF!","v":{"$error":"#REF!"}},null,null,{"$f":"#REF!","v":{"$error":"#REF!"}},800001965,"http://www.xbrl.org/scheme/companyName",null,{"$f":"Periodos!$C$4","v":"2017-12-31"},{"$f":"#REF!","v":{"$error":"#REF!"}},{"$f":"#REF!","v":{"$error":"#REF!"}}]
[{"$error":"#REF!"},null,{"$f":"#REF!","v":{"$error":"#REF!"}},{"$f":"#REF!","v":{"$error":"#REF!"}},null,null,{"$f":"#REF!","v":{"$error":"#REF!"}},800001965,"http://www.xbrl.org/scheme/companyName",null,{"$f":"Periodos!$C$4","v":"2017-12-31"},{"$f":"#REF!","v":{"$error":"#REF!"}},{"$f":"#REF!","v":{"$error":"#REF!"}}]
[{"$error":"#REF!"},null,{"$f":"#REF!","v":{"$error":"#REF!"}},{"$f":"#REF!","v":{"$error":"#REF!"}},null,null,{"$f":"#REF!","v":{"$error":"#REF!"}},800001965,"http://www.xbrl.org/scheme/companyName",null,{"$f":"Periodos!$C$4","v":"2017-12-31"},{"$f":"#REF!","v":{"$error":"#REF!"}},{"$f":"#REF!","v":{"$error":"#REF!"}}]
[{"$error":"#REF!"},null,{"$f":"#REF!","v":{"$error":"#REF!"}},{"$f":"#REF!","v":{"$error":"#REF!"}},null,null,{"$f":"#REF!","v":{"$error":"#REF!"}},800001965,"http://www.xbrl.org/scheme/companyName",null,{"$f":"Periodos!$C$4","v":"2017-12-31"},{"$f":"#REF!","v":{"$error":"#REF!"}},{"$f":"#REF!","v":{"$error":"#REF!"}}]
[{"$error":"#REF!"},null,{"$f":"#REF!","v":{"$error":"#REF!"}},{"$f":"#REF!","v":{"$error":"#REF!"}},null,null,{"$f":"#REF!","v":{"$error":"#REF!"}},800001965,"http://www.xbrl.org/scheme/companyName",null,{"$f":"Periodos!$C$4","v":"2017-12-31"},{"$f":"#REF!","v":{"$error":"#REF!"}},{"$f":"#REF!","v":{"$error":"#REF!"}}]
[{"$error":"#REF!"},null,{"$f":"#REF!","v":{"$error":"#REF!"}},{"$f":"#REF!","v":{"$error":"#REF!"}},null,null,{"$f":"#REF!","v":{"$error":"#REF!"}},800001965,"http://www.xbrl.org/scheme/companyName",null,{"$f":"Periodos!$C$4","v":"2017-12-31"},{"$f":"#REF!","v":{"$error":"#REF!"}},{"$f":"#REF!","v":{"$error":"#REF!"}}]
[{"$error":"#REF!"},null,{"$f":"#REF!","v":{"$error":"#REF!"}},{"$f":"#REF!","v":{"$error":"#REF!"}},null,null,{"$f":"#REF!","v":{"$error":"#REF!"}},800001965,"http://www.xbrl.org/scheme/companyName",null,{"$f":"Periodos!$C$4","v":"2017-12-31"},{"$f":"#REF!","v":{"$error":"#REF!"}},{"$f":"#REF!","v":{"$error":"#REF!"}}]
[{"$error":"#REF!"},null,{"$f":"#REF!","v":{"$error":"#REF!"}},{"$f":"#REF!","v":{"$error":"#REF!"}},null,null,{"$f":"#REF!","v":{"$error":"#REF!"}},800001965,"http://www.xbrl.org/scheme/companyName",null,{"$f":"Periodos!$C$4","v":"2017-12-31"},{"$f":"#REF!","v":{"$error":"#REF!"}},{"$f":"#REF!","v":{"$error":"#REF!"}}]
[{"$error":"#REF!"},null,{"$f":"#REF!","v":{"$error":"#REF!"}},{"$f":"#REF!","v":{"$error":"#REF!"}},null,null,{"$f":"#REF!","v":{"$error":"#REF!"}},800001965,"http://www.xbrl.org/scheme/companyName",null,{"$f":"Periodos!$C$4","v":"2017-12-31"},{"$f":"#REF!","v":{"$error":"#REF!"}},{"$f":"#REF!","v":{"$error":"#REF!"}}]
[{"$error":"#REF!"},null,{"$f":"#REF!","v":{"$error":"#REF!"}},{"$f":"#REF!","v":{"$error":"#REF!"}},null,null,{"$f":"#REF!","v":{"$error":"#REF!"}},800001965,"http://www.xbrl.org/scheme/companyName",null,{"$f":"Periodos!$C$4","v":"2017-12-31"},{"$f":"#REF!","v":{"$error":"#REF!"}},{"$f":"#REF!","v":{"$error":"#REF!"}}]
[{"$error":"#REF!"},null,{"$f":"#REF!","v":{"$error":"#REF!"}},{"$f":"#REF!","v":{"$error":"#REF!"}},null,null,{"$f":"#REF!","v":{"$error":"#REF!"}},800001965,"http://www.xbrl.org/scheme/companyName",null,{"$f":"Periodos!$C$4","v":"2017-12-31"},{"$f":"#REF!","v":{"$error":"#REF!"}},{"$f":"#REF!","v":{"$error":"#REF!"}}]
[{"$error":"#REF!"},null,{"$f":"#REF!","v":{"$error":"#REF!"}},{"$f":"#REF!","v":{"$error":"#REF!"}},0,"peso",{"$f":"#REF!","v":{"$error":"#REF!"}},800001965,"http://www.xbrl.org/scheme/companyName",null,{"$f":"Periodos!$C$4","v":"2017-12-31"},{"$f":"#REF!","v":{"$error":"#REF!"}},{"$f":"#REF!","v":{"$error":"#REF!"}}]
["/*",null,"--17--"]
[{"$error":"#REF!"},null,{"$f":"#REF!","v":{"$error":"#REF!"}},{"$f":"#REF!","v":{"$error":"#REF!"}},null,null,{"$f":"#REF!","v":{"$error":"#REF!"}},800001965,"http://www.xbrl.org/scheme/companyName",null,{"$f":"Periodos!$C$4","v":"2017-12-31"},{"$f":"#REF!","v":{"$error":"#REF!"}},{"$f":"#REF!","v":{"$error":"#REF!"}}]
[{"$error":"#REF!"},null,{"$f":"#REF!","v":{"$error":"#REF!"}},{"$f":"#REF!","v":{"$error":"#REF!"}},null,null,{"$f":"#REF!","v":{"$error":"#REF!"}},800001965,"http://www.xbrl.org/scheme/companyName",null,{"$f":"Periodos!$C$4","v":"2017-12-31"},{"$f":"#REF!","v":{"$error":"#REF!"}},{"$f":"#REF!","v":{"$error":"#REF!"}}]
[{"$error":"#REF!"},null,{"$f":"#REF!","v":{"$error":"#REF!"}},{"$f":"#REF!","v":{"$error":"#REF!"}},null,null,{"$f":"#REF!","v":{"$error":"#REF!"}},800001965,"http://www.xbrl.org/scheme/companyName",null,{"$f":"Periodos!$C$4","v":"2017-12-31"},{"$f":"#REF!","v":{"$error":"#REF!"}},{"$f":"#REF!","v":{"$error":"#REF!"}}]
[{"$error":"#REF!"},null,{"$f":"#REF!","v":{"$error":"#REF!"}},{"$f":"#REF!","v":{"$error":"#REF!"}},null,null,{"$f":"#REF!","v":{"$error":"#REF!"}},800001965,"http://www.xbrl.org/scheme/companyName",null,{"$f":"Periodos!$C$4","v":"2017-12-31"},{"$f":"#REF!","v":{"$error":"#REF!"}},{"$f":"#REF!","v":{"$error":"#REF!"}}]
[{"$error":"#REF!"},null,{"$f":"#REF!","v":{"$error":"#REF!"}},{"$f":"#REF!","v":{"$error":"#REF!"}},null,null,{"$f":"#REF!","v":{"$error":"#REF!"}},800001965,"http://www.xbrl.org/scheme/companyName",null,{"$f":"Periodos!$C$4","v":"2017-12-31"},{"$f":"#REF!","v":{"$error":"#REF!"}},{"$f":"#REF!","v":{"$error":"#REF!"}}]
[{"$error":"#REF!"},null,{"$f":"#REF!","v":{"$error":"#REF!"}},{"$f":"#REF!","v":{"$error":"#REF!"}},null,null,{"$f":"#REF!","v":{"$error":"#REF!"}},800001965,"http://www.xbrl.org/scheme/companyName",null,{"$f":"Periodos!$C$4","v":"2017-12-31"},{"$f":"#REF!","v":{"$error":"#REF!"}},{"$f":"#REF!","v":{"$error":"#REF!"}}]
[{"$error":"#REF!"},null,{"$f":"#REF!","v":{"$error":"#REF!"}},{"$f":"#REF!","v":{"$error":"#REF!"}},null,null,{"$f":"#REF!","v":{"$error":"#REF!"}},800001965,"http://www.xbrl.org/scheme/companyName",null,{"$f":"Periodos!$C$4","v":"2017-12-31"},{"$f":"#REF!","v":{"$error":"#REF!"}},{"$f":"#REF!","v":{"$error":"#REF!"}}]
[{"$error":"#REF!"},null,{"$f":"#REF!","v":{"$error":"#REF!"}},{"$f":"#REF!","v":{"$error":"#REF!"}},null,null,{"$f":"#REF!","v":{"$error":"#REF!"}},800001965,"http://www.xbrl.org/scheme/companyName",null,{"$f":"Periodos!$C$4","v":"2017-12-31"},{"$f":"#REF!","v":{"$error":"#REF!"}},{"$f":"#REF!","v":{"$error":"#REF!"}}]
[{"$error":"#REF!"},null,{"$f":"#REF!","v":{"$error":"#REF!"}},{"$f":"#REF!","v":{"$error":"#REF!"}},null,null,{"$f":"#REF!","v":{"$error":"#REF!"}},800001965,"http://www.xbrl.org/scheme/companyName",null,{"$f":"Periodos!$C$4","v":"2017-12-31"},{"$f":"#REF!","v":{"$error":"#REF!"}},{"$f":"#REF!","v":{"$error":"#REF!"}}]
[{"$error":"#REF!"},null,{"$f":"#REF!","v":{"$error":"#REF!"}},{"$f":"#REF!","v":{"$error":"#REF!"}},null,null,{"$f":"#REF!","v":{"$error":"#REF!"}},800001965,"http://www.xbrl.org/scheme/companyName",null,{"$f":"Periodos!$C$4","v":"2017-12-31"},{"$f":"#REF!","v":{"$error":"#REF!"}},{"$f":"#REF!","v":{"$error":"#REF!"}}]
[{"$error":"#REF!"},null,{"$f":"#REF!","v":{"$error":"#REF!"}},{"$f":"#REF!","v":{"$error":"#REF!"}},null,null,{"$f":"#REF!","v":{"$error":"#REF!"}},800001965,"http://www.xbrl.org/scheme/companyName",null,{"$f":"Periodos!$C$4","v":"2017-12-31"},{"$f":"#REF!","v":{"$error":"#REF!"}},{"$f":"#REF!","v":{"$error":"#REF!"}}]
[{"$f":"IF(G1889=\"\",\"/*\",\"\")","v":{"$error":"#REF!"}},null,{"$f":"#REF!","v":{"$error":"#REF!"}},{"$f":"#REF!","v":{"$error":"#REF!"}},0,"peso",{"$f":"#REF!","v":{"$error":"#REF!"}},800001965,"http://www.xbrl.org/scheme/companyName",null,{"$f":"Periodos!$C$4","v":"2017-12-31"},{"$f":"#REF!","v":{"$error":"#REF!"}},{"$f":"#REF!","v":{"$error":"#REF!"}}]
["/*",null,"--18--"]
[{"$error":"#REF!"},null,{"$f":"#REF!","v":{"$error":"#REF!"}},{"$f":"#REF!","v":{"$error":"#REF!"}},null,null,{"$f":"#REF!","v":{"$error":"#REF!"}},800001965,"http://www.xbrl.org/scheme/companyName",null,{"$f":"Periodos!$C$4","v":"2017-12-31"},{"$f":"#REF!","v":{"$error":"#REF!"}},{"$f":"#REF!","v":{"$error":"#REF!"}}]
[{"$error":"#REF!"},null,{"$f":"#REF!","v":{"$error":"#REF!"}},{"$f":"#REF!","v":{"$error":"#REF!"}},null,null,{"$f":"#REF!","v":{"$error":"#REF!"}},800001965,"http://www.xbrl.org/scheme/companyName",null,{"$f":"Periodos!$C$4","v":"2017-12-31"},{"$f":"#REF!","v":{"$error":"#REF!"}},{"$f":"#REF!","v":{"$error":"#REF!"}}]
[{"$error":"#REF!"},null,{"$f":"#REF!","v":{"$error":"#REF!"}},{"$f":"#REF!","v":{"$error":"#REF!"}},null,null,{"$f":"#REF!","v":{"$error":"#REF!"}},800001965,"http://www.xbrl.org/scheme/companyName",null,{"$f":"Periodos!$C$4","v":"2017-12-31"},{"$f":"#REF!","v":{"$error":"#REF!"}},{"$f":"#REF!","v":{"$error":"#REF!"}}]
[{"$error":"#REF!"},null,{"$f":"#REF!","v":{"$error":"#REF!"}},{"$f":"#REF!","v":{"$error":"#REF!"}},null,null,{"$f":"#REF!","v":{"$error":"#REF!"}},800001965,"http://www.xbrl.org/scheme/companyName",null,{"$f":"Periodos!$C$4","v":"2017-12-31"},{"$f":"#REF!","v":{"$error":"#REF!"}},{"$f":"#REF!","v":{"$error":"#REF!"}}]
[{"$error":"#REF!"},null,{"$f":"#REF!","v":{"$error":"#REF!"}},{"$f":"#REF!","v":{"$error":"#REF!"}},null,null,{"$f":"#REF!","v":{"$error":"#REF!"}},800001965,"http://www.xbrl.org/scheme/companyName",null,{"$f":"Periodos!$C$4","v":"2017-12-31"},{"$f":"#REF!","v":{"$error":"#REF!"}},{"$f":"#REF!","v":{"$error":"#REF!"}}]
[{"$error":"#REF!"},null,{"$f":"#REF!","v":{"$error":"#REF!"}},{"$f":"#REF!","v":{"$error":"#REF!"}},null,null,{"$f":"#REF!","v":{"$error":"#REF!"}},800001965,"http://www.xbrl.org/scheme/companyName",null,{"$f":"Periodos!$C$4","v":"2017-12-31"},{"$f":"#REF!","v":{"$error":"#REF!"}},{"$f":"#REF!","v":{"$error":"#REF!"}}]
[{"$error":"#REF!"},null,{"$f":"#REF!","v":{"$error":"#REF!"}},{"$f":"#REF!","v":{"$error":"#REF!"}},null,null,{"$f":"#REF!","v":{"$error":"#REF!"}},800001965,"http://www.xbrl.org/scheme/companyName",null,{"$f":"Periodos!$C$4","v":"2017-12-31"},{"$f":"#REF!","v":{"$error":"#REF!"}},{"$f":"#REF!","v":{"$error":"#REF!"}}]
[{"$error":"#REF!"},null,{"$f":"#REF!","v":{"$error":"#REF!"}},{"$f":"#REF!","v":{"$error":"#REF!"}},null,null,{"$f":"#REF!","v":{"$error":"#REF!"}},800001965,"http://www.xbrl.org/scheme/companyName",null,{"$f":"Periodos!$C$4","v":"2017-12-31"},{"$f":"#REF!","v":{"$error":"#REF!"}},{"$f":"#REF!","v":{"$error":"#REF!"}}]
[{"$error":"#REF!"},null,{"$f":"#REF!","v":{"$error":"#REF!"}},{"$f":"#REF!","v":{"$error":"#REF!"}},null,null,{"$f":"#REF!","v":{"$error":"#REF!"}},800001965,"http://www.xbrl.org/scheme/companyName",null,{"$f":"Periodos!$C$4","v":"2017-12-31"},{"$f":"#REF!","v":{"$error":"#REF!"}},{"$f":"#REF!","v":{"$error":"#REF!"}}]
[{"$error":"#REF!"},null,{"$f":"#REF!","v":{"$error":"#REF!"}},{"$f":"#REF!","v":{"$error":"#REF!"}},null,null,{"$f":"#REF!","v":{"$error":"#REF!"}},800001965,"http://www.xbrl.org/scheme/companyName",null,{"$f":"Periodos!$C$4","v":"2017-12-31"},{"$f":"#REF!","v":{"$error":"#REF!"}},{"$f":"#REF!","v":{"$error":"#REF!"}}]
[{"$error":"#REF!"},null,{"$f":"#REF!","v":{"$error":"#REF!"}},{"$f":"#REF!","v":{"$error":"#REF!"}},null,null,{"$f":"#REF!","v":{"$error":"#REF!"}},800001965,"http://www.xbrl.org/scheme/companyName",null,{"$f":"Periodos!$C$4","v":"2017-12-31"},{"$f":"#REF!","v":{"$error":"#REF!"}},{"$f":"#REF!","v":{"$error":"#REF!"}}]
[{"$error":"#REF!"},null,{"$f":"#REF!","v":{"$error":"#REF!"}},{"$f":"#REF!","v":{"$error":"#REF!"}},0,"peso",{"$f":"#REF!","v":{"$error":"#REF!"}},800001965,"http://www.xbrl.org/scheme/companyName",null,{"$f":"Periodos!$C$4","v":"2017-12-31"},{"$f":"#REF!","v":{"$error":"#REF!"}},{"$f":"#REF!","v":{"$error":"#REF!"}}]
["/*",null,"--19--"]
[{"$error":"#REF!"},null,{"$f":"#REF!","v":{"$error":"#REF!"}},{"$f":"#REF!","v":{"$error":"#REF!"}},null,null,{"$f":"#REF!","v":{"$error":"#REF!"}},800001965,"http://www.xbrl.org/scheme/companyName",null,{"$f":"Periodos!$C$4","v":"2017-12-31"},{"$f":"#REF!","v":{"$error":"#REF!"}},{"$f":"#REF!","v":{"$error":"#REF!"}}]
[{"$error":"#REF!"},null,{"$f":"#REF!","v":{"$error":"#REF!"}},{"$f":"#REF!","v":{"$error":"#REF!"}},null,null,{"$f":"#REF!","v":{"$error":"#REF!"}},800001965,"http://www.xbrl.org/scheme/companyName",null,{"$f":"Periodos!$C$4","v":"2017-12-31"},{"$f":"#REF!","v":{"$error":"#REF!"}},{"$f":"#REF!","v":{"$error":"#REF!"}}]
[{"$error":"#REF!"},null,{"$f":"#REF!","v":{"$error":"#REF!"}},{"$f":"#REF!","v":{"$error":"#REF!"}},null,null,{"$f":"#REF!","v":{"$error":"#REF!"}},800001965,"http://www.xbrl.org/scheme/companyName",null,{"$f":"Periodos!$C$4","v":"2017-12-31"},{"$f":"#REF!","v":{"$error":"#REF!"}},{"$f":"#REF!","v":{"$error":"#REF!"}}]
[{"$error":"#REF!"},null,{"$f":"#REF!","v":{"$error":"#REF!"}},{"$f":"#REF!","v":{"$error":"#REF!"}},null,null,{"$f":"#REF!","v":{"$error":"#REF!"}},800001965,"http://www.xbrl.org/scheme/companyName",null,{"$f":"Periodos!$C$4","v":"2017-12-31"},{"$f":"#REF!","v":{"$error":"#REF!"}},{"$f":"#REF!","v":{"$error":"#REF!"}}]
[{"$error":"#REF!"},null,{"$f":"#REF!","v":{"$error":"#REF!"}},{"$f":"#REF!","v":{"$error":"#REF!"}},null,null,{"$f":"#REF!","v":{"$error":"#REF!"}},800001965,"http://www.xbrl.org/scheme/companyName",null,{"$f":"Periodos!$C$4","v":"2017-12-31"},{"$f":"#REF!","v":{"$error":"#REF!"}},{"$f":"#REF!","v":{"$error":"#REF!"}}]
[{"$error":"#REF!"},null,{"$f":"#REF!","v":{"$error":"#REF!"}},{"$f":"#REF!","v":{"$error":"#REF!"}},null,null,{"$f":"#REF!","v":{"$error":"#REF!"}},800001965,"http://www.xbrl.org/scheme/companyName",null,{"$f":"Periodos!$C$4","v":"2017-12-31"},{"$f":"#REF!","v":{"$error":"#REF!"}},{"$f":"#REF!","v":{"$error":"#REF!"}}]
[{"$error":"#REF!"},null,{"$f":"#REF!","v":{"$error":"#REF!"}},{"$f":"#REF!","v":{"$error":"#REF!"}},null,null,{"$f":"#REF!","v":{"$error":"#REF!"}},800001965,"http://www.xbrl.org/scheme/companyName",null,{"$f":"Periodos!$C$4","v":"2017-12-31"},{"$f":"#REF!","v":{"$error":"#REF!"}},{"$f":"#REF!","v":{"$error":"#REF!"}}]
[{"$error":"#REF!"},null,{"$f":"#REF!","v":{"$error":"#REF!"}},{"$f":"#REF!","v":{"$error":"#REF!"}},null,null,{"$f":"#REF!","v":{"$error":"#REF!"}},800001965,"http://www.xbrl.org/scheme/companyName",null,{"$f":"Periodos!$C$4","v":"2017-12-31"},{"$f":"#REF!","v":{"$error":"#REF!"}},{"$f":"#REF!","v":{"$error":"#REF!"}}]
[{"$error":"#REF!"},null,{"$f":"#REF!","v":{"$error":"#REF!"}},{"$f":"#REF!","v":{"$error":"#REF!"}},null,null,{"$f":"#REF!","v":{"$error":"#REF!"}},800001965,"http://www.xbrl.org/scheme/companyName",null,{"$f":"Periodos!$C$4","v":"2017-12-31"},{"$f":"#REF!","v":{"$error":"#REF!"}},{"$f":"#REF!","v":{"$error":"#REF!"}}]
[{"$error":"#REF!"},null,{"$f":"#REF!","v":{"$error":"#REF!"}},{"$f":"#REF!","v":{"$error":"#REF!"}},null,null,{"$f":"#REF!","v":{"$error":"#REF!"}},800001965,"http://www.xbrl.org/scheme/companyName",null,{"$f":"Periodos!$C$4","v":"2017-12-31"},{"$f":"#REF!","v":{"$error":"#REF!"}},{"$f":"#REF!","v":{"$error":"#REF!"}}]
[{"$error":"#REF!"},null,{"$f":"#REF!","v":{"$error":"#REF!"}},{"$f":"#REF!","v":{"$error":"#REF!"}},null,null,{"$f":"#REF!","v":{"$error":"#REF!"}},800001965,"http://www.xbrl.org/scheme/companyName",null,{"$f":"Periodos!$C$4","v":"2017-12-31"},{"$f":"#REF!","v":{"$error":"#REF!"}},{"$f":"#REF!","v":{"$error":"#REF!"}}]
[{"$error":"#REF!"},null,{"$f":"#REF!","v":{"$error":"#REF!"}},{"$f":"#REF!","v":{"$error":"#REF!"}},0,"peso",{"$f":"#REF!","v":{"$error":"#REF!"}},800001965,"http://www.xbrl.org/scheme/companyName",null,{"$f":"Periodos!$C$4","v":"2017-12-31"},{"$f":"#REF!","v":{"$error":"#REF!"}},{"$f":"#REF!","v":{"$error":"#REF!"}}]
["/*",null,"--20--"]
[{"$error":"#REF!"},null,{"$f":"#REF!","v":{"$error":"#REF!"}},{"$f":"#REF!","v":{"$error":"#REF!"}},null,null,{"$f":"#REF!","v":{"$error":"#REF!"}},800001965,"http://www.xbrl.org/scheme/companyName",null,{"$f":"Periodos!$C$4","v":"2017-12-31"},{"$f":"#REF!","v":{"$error":"#REF!"}},{"$f":"#REF!","v":{"$error":"#REF!"}}]
[{"$error":"#REF!"},null,{"$f":"#REF!","v":{"$error":"#REF!"}},{"$f":"#REF!","v":{"$error":"#REF!"}},null,null,{"$f":"#REF!","v":{"$error":"#REF!"}},800001965,"http://www.xbrl.org/scheme/companyName",null,{"$f":"Periodos!$C$4","v":"2017-12-31"},{"$f":"#REF!","v":{"$error":"#REF!"}},{"$f":"#REF!","v":{"$error":"#REF!"}}]
[{"$error":"#REF!"},null,{"$f":"#REF!","v":{"$error":"#REF!"}},{"$f":"#REF!","v":{"$error":"#REF!"}},null,null,{"$f":"#REF!","v":{"$error":"#REF!"}},800001965,"http://www.xbrl.org/scheme/companyName",null,{"$f":"Periodos!$C$4","v":"2017-12-31"},{"$f":"#REF!","v":{"$error":"#REF!"}},{"$f":"#REF!","v":{"$error":"#REF!"}}]
[{"$error":"#REF!"},null,{"$f":"#REF!","v":{"$error":"#REF!"}},{"$f":"#REF!","v":{"$error":"#REF!"}},null,null,{"$f":"#REF!","v":{"$error":"#REF!"}},800001965,"http://www.xbrl.org/scheme/companyName",null,{"$f":"Periodos!$C$4","v":"2017-12-31"},{"$f":"#REF!","v":{"$error":"#REF!"}},{"$f":"#REF!","v":{"$error":"#REF!"}}]
[{"$error":"#REF!"},null,{"$f":"#REF!","v":{"$error":"#REF!"}},{"$f":"#REF!","v":{"$error":"#REF!"}},null,null,{"$f":"#REF!","v":{"$error":"#REF!"}},800001965,"http://www.xbrl.org/scheme/companyName",null,{"$f":"Periodos!$C$4","v":"2017-12-31"},{"$f":"#REF!","v":{"$error":"#REF!"}},{"$f":"#REF!","v":{"$error":"#REF!"}}]
[{"$error":"#REF!"},null,{"$f":"#REF!","v":{"$error":"#REF!"}},{"$f":"#REF!","v":{"$error":"#REF!"}},null,null,{"$f":"#REF!","v":{"$error":"#REF!"}},800001965,"http://www.xbrl.org/scheme/companyName",null,{"$f":"Periodos!$C$4","v":"2017-12-31"},{"$f":"#REF!","v":{"$error":"#REF!"}},{"$f":"#REF!","v":{"$error":"#REF!"}}]
[{"$error":"#REF!"},null,{"$f":"#REF!","v":{"$error":"#REF!"}},{"$f":"#REF!","v":{"$error":"#REF!"}},null,null,{"$f":"#REF!","v":{"$error":"#REF!"}},800001965,"http://www.xbrl.org/scheme/companyName",null,{"$f":"Periodos!$C$4","v":"2017-12-31"},{"$f":"#REF!","v":{"$error":"#REF!"}},{"$f":"#REF!","v":{"$error":"#REF!"}}]
[{"$error":"#REF!"},null,{"$f":"#REF!","v":{"$error":"#REF!"}},{"$f":"#REF!","v":{"$error":"#REF!"}},null,null,{"$f":"#REF!","v":{"$error":"#REF!"}},800001965,"http://www.xbrl.org/scheme/companyName",null,{"$f":"Periodos!$C$4","v":"2017-12-31"},{"$f":"#REF!","v":{"$error":"#REF!"}},{"$f":"#REF!","v":{"$error":"#REF!"}}]
[{"$error":"#REF!"},null,{"$f":"#REF!","v":{"$error":"#REF!"}},{"$f":"#REF!","v":{"$error":"#REF!"}},null,null,{"$f":"#REF!","v":{"$error":"#REF!"}},800001965,"http://www.xbrl.org/scheme/companyName",null,{"$f":"Periodos!$C$4","v":"2017-12-31"},{"$f":"#REF!","v":{"$error":"#REF!"}},{"$f":"#REF!","v":{"$error":"#REF!"}}]
[{"$error":"#REF!"},null,{"$f":"#REF!","v":{"$error":"#REF!"}},{"$f":"#REF!","v":{"$error":"#REF!"}},null,null,{"$f":"#REF!","v":{"$error":"#REF!"}},800001965,"http://www.xbrl.org/scheme/companyName",null,{"$f":"Periodos!$C$4","v":"2017-12-31"},{"$f":"#REF!","v":{"$error":"#REF!"}},{"$f":"#REF!","v":{"$error":"#REF!"}}]
[{"$error":"#REF!"},null,{"$f":"#REF!","v":{"$error":"#REF!"}},{"$f":"#REF!","v":{"$error":"#REF!"}},null,null,{"$f":"#REF!","v":{"$error":"#REF!"}},800001965,"http://www.xbrl.org/scheme/companyName",null,{"$f":"Periodos!$C$4","v":"2017-12-31"},{"$f":"#REF!","v":{"$error":"#REF!"}},{"$f":"#REF!","v":{"$error":"#REF!"}}]
[{"$error":"#REF!"},null,{"$f":"#REF!","v":{"$error":"#REF!"}},{"$f":"#REF!","v":{"$error":"#REF!"}},0,"peso",{"$f":"#REF!","v":{"$error":"#REF!"}},800001965,"http://www.xbrl.org/scheme/companyName",null,{"$f":"Periodos!$C$4","v":"2017-12-31"},{"$f":"#REF!","v":{"$error":"#REF!"}},{"$f":"#REF!","v":{"$error":"#REF!"}}]
["/*",null,"--21--"]
[{"$error":"#REF!"},null,{"$f":"#REF!","v":{"$error":"#REF!"}},{"$f":"#REF!","v":{"$error":"#REF!"}},null,null,{"$f":"#REF!","v":{"$error":"#REF!"}},800001965,"http://www.xbrl.org/scheme/companyName",null,{"$f":"Periodos!$C$4","v":"2017-12-31"},{"$f":"#REF!","v":{"$error":"#REF!"}},{"$f":"#REF!","v":{"$error":"#REF!"}}]
[{"$error":"#REF!"},null,{"$f":"#REF!","v":{"$error":"#REF!"}},{"$f":"#REF!","v":{"$error":"#REF!"}},null,null,{"$f":"#REF!","v":{"$error":"#REF!"}},800001965,"http://www.xbrl.org/scheme/companyName",null,{"$f":"Periodos!$C$4","v":"2017-12-31"},{"$f":"#REF!","v":{"$error":"#REF!"}},{"$f":"#REF!","v":{"$error":"#REF!"}}]
[{"$error":"#REF!"},null,{"$f":"#REF!","v":{"$error":"#REF!"}},{"$f":"#REF!","v":{"$error":"#REF!"}},null,null,{"$f":"#REF!","v":{"$error":"#REF!"}},800001965,"http://www.xbrl.org/scheme/companyName",null,{"$f":"Periodos!$C$4","v":"2017-12-31"},{"$f":"#REF!","v":{"$error":"#REF!"}},{"$f":"#REF!","v":{"$error":"#REF!"}}]
[{"$error":"#REF!"},null,{"$f":"#REF!","v":{"$error":"#REF!"}},{"$f":"#REF!","v":{"$error":"#REF!"}},null,null,{"$f":"#REF!","v":{"$error":"#REF!"}},800001965,"http://www.xbrl.org/scheme/companyName",null,{"$f":"Periodos!$C$4","v":"2017-12-31"},{"$f":"#REF!","v":{"$error":"#REF!"}},{"$f":"#REF!","v":{"$error":"#REF!"}}]
[{"$error":"#REF!"},null,{"$f":"#REF!","v":{"$error":"#REF!"}},{"$f":"#REF!","v":{"$error":"#REF!"}},null,null,{"$f":"#REF!","v":{"$error":"#REF!"}},800001965,"http://www.xbrl.org/scheme/companyName",null,{"$f":"Periodos!$C$4","v":"2017-12-31"},{"$f":"#REF!","v":{"$error":"#REF!"}},{"$f":"#REF!","v":{"$error":"#REF!"}}]
[{"$error":"#REF!"},null,{"$f":"#REF!","v":{"$error":"#REF!"}},{"$f":"#REF!","v":{"$error":"#REF!"}},null,null,{"$f":"#REF!","v":{"$error":"#REF!"}},800001965,"http://www.xbrl.org/scheme/companyName",null,{"$f":"Periodos!$C$4","v":"2017-12-31"},{"$f":"#REF!","v":{"$error":"#REF!"}},{"$f":"#REF!","v":{"$error":"#REF!"}}]
[{"$error":"#REF!"},null,{"$f":"#REF!","v":{"$error":"#REF!"}},{"$f":"#REF!","v":{"$error":"#REF!"}},null,null,{"$f":"#REF!","v":{"$error":"#REF!"}},800001965,"http://www.xbrl.org/scheme/companyName",null,{"$f":"Periodos!$C$4","v":"2017-12-31"},{"$f":"#REF!","v":{"$error":"#REF!"}},{"$f":"#REF!","v":{"$error":"#REF!"}}]
[{"$error":"#REF!"},null,{"$f":"#REF!","v":{"$error":"#REF!"}},{"$f":"#REF!","v":{"$error":"#REF!"}},null,null,{"$f":"#REF!","v":{"$error":"#REF!"}},800001965,"http://www.xbrl.org/scheme/companyName",null,{"$f":"Periodos!$C$4","v":"2017-12-31"},{"$f":"#REF!","v":{"$error":"#REF!"}},{"$f":"#REF!","v":{"$error":"#REF!"}}]
[{"$error":"#REF!"},null,{"$f":"#REF!","v":{"$error":"#REF!"}},{"$f":"#REF!","v":{"$error":"#REF!"}},null,null,{"$f":"#REF!","v":{"$error":"#REF!"}},800001965,"http://www.xbrl.org/scheme/companyName",null,{"$f":"Periodos!$C$4","v":"2017-12-31"},{"$f":"#REF!","v":{"$error":"#REF!"}},{"$f":"#REF!","v":{"$error":"#REF!"}}]
[{"$error":"#REF!"},null,{"$f":"#REF!","v":{"$error":"#REF!"}},{"$f":"#REF!","v":{"$error":"#REF!"}},null,null,{"$f":"#REF!","v":{"$error":"#REF!"}},800001965,"http://www.xbrl.org/scheme/companyName",null,{"$f":"Periodos!$C$4","v":"2017-12-31"},{"$f":"#REF!","v":{"$error":"#REF!"}},{"$f":"#REF!","v":{"$error":"#REF!"}}]
[{"$error":"#REF!"},null,{"$f":"#REF!","v":{"$error":"#REF!"}},{"$f":"#REF!","v":{"$error":"#REF!"}},null,null,{"$f":"#REF!","v":{"$error":"#REF!"}},800001965,"http://www.xbrl.org/scheme/companyName",null,{"$f":"Periodos!$C$4","v":"2017-12-31"},{"$f":"#REF!","v":{"$error":"#REF!"}},{"$f":"#REF!","v":{"$error":"#REF!"}}]
[{"$error":"#REF!"},null,{"$f":"#REF!","v":{"$error":"#REF!"}},{"$f":"#REF!","v":{"$error":"#REF!"}},0,"peso",{"$f":"#REF!","v":{"$error":"#REF!"}},800001965,"http://www.xbrl.org/scheme/companyName",null,{"$f":"Periodos!$C$4","v":"2017-12-31"},{"$f":"#REF!","v":{"$error":"#REF!"}},{"$f":"#REF!","v":{"$error":"#REF!"}}]
["/*",null,"--22--"]
[{"$error":"#REF!"},null,{"$f":"#REF!","v":{"$error":"#REF!"}},{"$f":"#REF!","v":{"$error":"#REF!"}},null,null,{"$f":"#REF!","v":{"$error":"#REF!"}},800001965,"http://www.xbrl.org/scheme/companyName",null,{"$f":"Periodos!$C$4","v":"2017-12-31"},{"$f":"#REF!","v":{"$error":"#REF!"}},{"$f":"#REF!","v":{"$error":"#REF!"}}]
[{"$error":"#REF!"},null,{"$f":"#REF!","v":{"$error":"#REF!"}},{"$f":"#REF!","v":{"$error":"#REF!"}},null,null,{"$f":"#REF!","v":{"$error":"#REF!"}},800001965,"http://www.xbrl.org/scheme/companyName",null,{"$f":"Periodos!$C$4","v":"2017-12-31"},{"$f":"#REF!","v":{"$error":"#REF!"}},{"$f":"#REF!","v":{"$error":"#REF!"}}]
[{"$error":"#REF!"},null,{"$f":"#REF!","v":{"$error":"#REF!"}},{"$f":"#REF!","v":{"$error":"#REF!"}},null,null,{"$f":"#REF!","v":{"$error":"#REF!"}},800001965,"http://www.xbrl.org/scheme/companyName",null,{"$f":"Periodos!$C$4","v":"2017-12-31"},{"$f":"#REF!","v":{"$error":"#REF!"}},{"$f":"#REF!","v":{"$error":"#REF!"}}]
[{"$error":"#REF!"},null,{"$f":"#REF!","v":{"$error":"#REF!"}},{"$f":"#REF!","v":{"$error":"#REF!"}},null,null,{"$f":"#REF!","v":{"$error":"#REF!"}},800001965,"http://www.xbrl.org/scheme/companyName",null,{"$f":"Periodos!$C$4","v":"2017-12-31"},{"$f":"#REF!","v":{"$error":"#REF!"}},{"$f":"#REF!","v":{"$error":"#REF!"}}]
[{"$error":"#REF!"},null,{"$f":"#REF!","v":{"$error":"#REF!"}},{"$f":"#REF!","v":{"$error":"#REF!"}},null,null,{"$f":"#REF!","v":{"$error":"#REF!"}},800001965,"http://www.xbrl.org/scheme/companyName",null,{"$f":"Periodos!$C$4","v":"2017-12-31"},{"$f":"#REF!","v":{"$error":"#REF!"}},{"$f":"#REF!","v":{"$error":"#REF!"}}]
[{"$error":"#REF!"},null,{"$f":"#REF!","v":{"$error":"#REF!"}},{"$f":"#REF!","v":{"$error":"#REF!"}},null,null,{"$f":"#REF!","v":{"$error":"#REF!"}},800001965,"http://www.xbrl.org/scheme/companyName",null,{"$f":"Periodos!$C$4","v":"2017-12-31"},{"$f":"#REF!","v":{"$error":"#REF!"}},{"$f":"#REF!","v":{"$error":"#REF!"}}]
[{"$error":"#REF!"},null,{"$f":"#REF!","v":{"$error":"#REF!"}},{"$f":"#REF!","v":{"$error":"#REF!"}},null,null,{"$f":"#REF!","v":{"$error":"#REF!"}},800001965,"http://www.xbrl.org/scheme/companyName",null,{"$f":"Periodos!$C$4","v":"2017-12-31"},{"$f":"#REF!","v":{"$error":"#REF!"}},{"$f":"#REF!","v":{"$error":"#REF!"}}]
[{"$error":"#REF!"},null,{"$f":"#REF!","v":{"$error":"#REF!"}},{"$f":"#REF!","v":{"$error":"#REF!"}},null,null,{"$f":"#REF!","v":{"$error":"#REF!"}},800001965,"http://www.xbrl.org/scheme/companyName",null,{"$f":"Periodos!$C$4","v":"2017-12-31"},{"$f":"#REF!","v":{"$error":"#REF!"}},{"$f":"#REF!","v":{"$error":"#REF!"}}]
[{"$error":"#REF!"},null,{"$f":"#REF!","v":{"$error":"#REF!"}},{"$f":"#REF!","v":{"$error":"#REF!"}},null,null,{"$f":"#REF!","v":{"$error":"#REF!"}},800001965,"http://www.xbrl.org/scheme/companyName",null,{"$f":"Periodos!$C$4","v":"2017-12-31"},{"$f":"#REF!","v":{"$error":"#REF!"}},{"$f":"#REF!","v":{"$error":"#REF!"}}]
[{"$error":"#REF!"},null,{"$f":"#REF!","v":{"$error":"#REF!"}},{"$f":"#REF!","v":{"$error":"#REF!"}},null,null,{"$f":"#REF!","v":{"$error":"#REF!"}},800001965,"http://www.xbrl.org/scheme/companyName",null,{"$f":"Periodos!$C$4","v":"2017-12-31"},{"$f":"#REF!","v":{"$error":"#REF!"}},{"$f":"#REF!","v":{"$error":"#REF!"}}]
[{"$f":"IF(G1953=\"\",\"/*\",\"\")","v":{"$error":"#REF!"}},null,{"$f":"#REF!","v":{"$error":"#REF!"}},{"$f":"#REF!","v":{"$error":"#REF!"}},null,null,{"$f":"#REF!","v":{"$error":"#REF!"}},800001965,"http://www.xbrl.org/scheme/companyName",null,{"$f":"Periodos!$C$4","v":"2017-12-31"},{"$f":"#REF!","v":{"$error":"#REF!"}},{"$f":"#REF!","v":{"$error":"#REF!"}}]
[{"$error":"#REF!"},null,{"$f":"#REF!","v":{"$error":"#REF!"}},{"$f":"#REF!","v":{"$error":"#REF!"}},0,"peso",{"$f":"#REF!","v":{"$error":"#REF!"}},800001965,"http://www.xbrl.org/scheme/companyName",null,{"$f":"Periodos!$C$4","v":"2017-12-31"},{"$f":"#REF!","v":{"$error":"#REF!"}},{"$f":"#REF!","v":{"$error":"#REF!"}}]
["/*",null,"--23--"]
[{"$error":"#REF!"},null,{"$f":"#REF!","v":{"$error":"#REF!"}},{"$f":"#REF!","v":{"$error":"#REF!"}},null,null,{"$f":"#REF!","v":{"$error":"#REF!"}},800001965,"http://www.xbrl.org/scheme/companyName",null,{"$f":"Periodos!$C$4","v":"2017-12-31"},{"$f":"#REF!","v":{"$error":"#REF!"}},{"$f":"#REF!","v":{"$error":"#REF!"}}]
[{"$error":"#REF!"},null,{"$f":"#REF!","v":{"$error":"#REF!"}},{"$f":"#REF!","v":{"$error":"#REF!"}},null,null,{"$f":"#REF!","v":{"$error":"#REF!"}},800001965,"http://www.xbrl.org/scheme/companyName",null,{"$f":"Periodos!$C$4","v":"2017-12-31"},{"$f":"#REF!","v":{"$error":"#REF!"}},{"$f":"#REF!","v":{"$error":"#REF!"}}]
[{"$error":"#REF!"},null,{"$f":"#REF!","v":{"$error":"#REF!"}},{"$f":"#REF!","v":{"$error":"#REF!"}},null,null,{"$f":"#REF!","v":{"$error":"#REF!"}},800001965,"http://www.xbrl.org/scheme/companyName",null,{"$f":"Periodos!$C$4","v":"2017-12-31"},{"$f":"#REF!","v":{"$error":"#REF!"}},{"$f":"#REF!","v":{"$error":"#REF!"}}]
[{"$error":"#REF!"},null,{"$f":"#REF!","v":{"$error":"#REF!"}},{"$f":"#REF!","v":{"$error":"#REF!"}},null,null,{"$f":"#REF!","v":{"$error":"#REF!"}},800001965,"http://www.xbrl.org/scheme/companyName",null,{"$f":"Periodos!$C$4","v":"2017-12-31"},{"$f":"#REF!","v":{"$error":"#REF!"}},{"$f":"#REF!","v":{"$error":"#REF!"}}]
[{"$error":"#REF!"},null,{"$f":"#REF!","v":{"$error":"#REF!"}},{"$f":"#REF!","v":{"$error":"#REF!"}},null,null,{"$f":"#REF!","v":{"$error":"#REF!"}},800001965,"http://www.xbrl.org/scheme/companyName",null,{"$f":"Periodos!$C$4","v":"2017-12-31"},{"$f":"#REF!","v":{"$error":"#REF!"}},{"$f":"#REF!","v":{"$error":"#REF!"}}]
[{"$error":"#REF!"},null,{"$f":"#REF!","v":{"$error":"#REF!"}},{"$f":"#REF!","v":{"$error":"#REF!"}},null,null,{"$f":"#REF!","v":{"$error":"#REF!"}},800001965,"http://www.xbrl.org/scheme/companyName",null,{"$f":"Periodos!$C$4","v":"2017-12-31"},{"$f":"#REF!","v":{"$error":"#REF!"}},{"$f":"#REF!","v":{"$error":"#REF!"}}]
[{"$error":"#REF!"},null,{"$f":"#REF!","v":{"$error":"#REF!"}},{"$f":"#REF!","v":{"$error":"#REF!"}},null,null,{"$f":"#REF!","v":{"$error":"#REF!"}},800001965,"http://www.xbrl.org/scheme/companyName",null,{"$f":"Periodos!$C$4","v":"2017-12-31"},{"$f":"#REF!","v":{"$error":"#REF!"}},{"$f":"#REF!","v":{"$error":"#REF!"}}]
[{"$error":"#REF!"},null,{"$f":"#REF!","v":{"$error":"#REF!"}},{"$f":"#REF!","v":{"$error":"#REF!"}},null,null,{"$f":"#REF!","v":{"$error":"#REF!"}},800001965,"http://www.xbrl.org/scheme/companyName",null,{"$f":"Periodos!$C$4","v":"2017-12-31"},{"$f":"#REF!","v":{"$error":"#REF!"}},{"$f":"#REF!","v":{"$error":"#REF!"}}]
[{"$error":"#REF!"},null,{"$f":"#REF!","v":{"$error":"#REF!"}},{"$f":"#REF!","v":{"$error":"#REF!"}},null,null,{"$f":"#REF!","v":{"$error":"#REF!"}},800001965,"http://www.xbrl.org/scheme/companyName",null,{"$f":"Periodos!$C$4","v":"2017-12-31"},{"$f":"#REF!","v":{"$error":"#REF!"}},{"$f":"#REF!","v":{"$error":"#REF!"}}]
[{"$error":"#REF!"},null,{"$f":"#REF!","v":{"$error":"#REF!"}},{"$f":"#REF!","v":{"$error":"#REF!"}},null,null,{"$f":"#REF!","v":{"$error":"#REF!"}},800001965,"http://www.xbrl.org/scheme/companyName",null,{"$f":"Periodos!$C$4","v":"2017-12-31"},{"$f":"#REF!","v":{"$error":"#REF!"}},{"$f":"#REF!","v":{"$error":"#REF!"}}]
[{"$error":"#REF!"},null,{"$f":"#REF!","v":{"$error":"#REF!"}},{"$f":"#REF!","v":{"$error":"#REF!"}},null,null,{"$f":"#REF!","v":{"$error":"#REF!"}},800001965,"http://www.xbrl.org/scheme/companyName",null,{"$f":"Periodos!$C$4","v":"2017-12-31"},{"$f":"#REF!","v":{"$error":"#REF!"}},{"$f":"#REF!","v":{"$error":"#REF!"}}]
[{"$error":"#REF!"},null,{"$f":"#REF!","v":{"$error":"#REF!"}},{"$f":"#REF!","v":{"$error":"#REF!"}},0,"peso",{"$f":"#REF!","v":{"$error":"#REF!"}},800001965,"http://www.xbrl.org/scheme/companyName",null,{"$f":"Periodos!$C$4","v":"2017-12-31"},{"$f":"#REF!","v":{"$error":"#REF!"}},{"$f":"#REF!","v":{"$error":"#REF!"}}]
["/*",null,"--24--"]
[{"$error":"#REF!"},null,{"$f":"#REF!","v":{"$error":"#REF!"}},{"$f":"#REF!","v":{"$error":"#REF!"}},null,null,{"$f":"#REF!","v":{"$error":"#REF!"}},800001965,"http://www.xbrl.org/scheme/companyName",null,{"$f":"Periodos!$C$4","v":"2017-12-31"},{"$f":"#REF!","v":{"$error":"#REF!"}},{"$f":"#REF!","v":{"$error":"#REF!"}}]
[{"$error":"#REF!"},null,{"$f":"#REF!","v":{"$error":"#REF!"}},{"$f":"#REF!","v":{"$error":"#REF!"}},null,null,{"$f":"#REF!","v":{"$error":"#REF!"}},800001965,"http://www.xbrl.org/scheme/companyName",null,{"$f":"Periodos!$C$4","v":"2017-12-31"},{"$f":"#REF!","v":{"$error":"#REF!"}},{"$f":"#REF!","v":{"$error":"#REF!"}}]
[{"$error":"#REF!"},null,{"$f":"#REF!","v":{"$error":"#REF!"}},{"$f":"#REF!","v":{"$error":"#REF!"}},null,null,{"$f":"#REF!","v":{"$error":"#REF!"}},800001965,"http://www.xbrl.org/scheme/companyName",null,{"$f":"Periodos!$C$4","v":"2017-12-31"},{"$f":"#REF!","v":{"$error":"#REF!"}},{"$f":"#REF!","v":{"$error":"#REF!"}}]
[{"$error":"#REF!"},null,{"$f":"#REF!","v":{"$error":"#REF!"}},{"$f":"#REF!","v":{"$error":"#REF!"}},null,null,{"$f":"#REF!","v":{"$error":"#REF!"}},800001965,"http://www.xbrl.org/scheme/companyName",null,{"$f":"Periodos!$C$4","v":"2017-12-31"},{"$f":"#REF!","v":{"$error":"#REF!"}},{"$f":"#REF!","v":{"$error":"#REF!"}}]
[{"$error":"#REF!"},null,{"$f":"#REF!","v":{"$error":"#REF!"}},{"$f":"#REF!","v":{"$error":"#REF!"}},null,null,{"$f":"#REF!","v":{"$error":"#REF!"}},800001965,"http://www.xbrl.org/scheme/companyName",null,{"$f":"Periodos!$C$4","v":"2017-12-31"},{"$f":"#REF!","v":{"$error":"#REF!"}},{"$f":"#REF!","v":{"$error":"#REF!"}}]
[{"$error":"#REF!"},null,{"$f":"#REF!","v":{"$error":"#REF!"}},{"$f":"#REF!","v":{"$error":"#REF!"}},null,null,{"$f":"#REF!","v":{"$error":"#REF!"}},800001965,"http://www.xbrl.org/scheme/companyName",null,{"$f":"Periodos!$C$4","v":"2017-12-31"},{"$f":"#REF!","v":{"$error":"#REF!"}},{"$f":"#REF!","v":{"$error":"#REF!"}}]
[{"$error":"#REF!"},null,{"$f":"#REF!","v":{"$error":"#REF!"}},{"$f":"#REF!","v":{"$error":"#REF!"}},null,null,{"$f":"#REF!","v":{"$error":"#REF!"}},800001965,"http://www.xbrl.org/scheme/companyName",null,{"$f":"Periodos!$C$4","v":"2017-12-31"},{"$f":"#REF!","v":{"$error":"#REF!"}},{"$f":"#REF!","v":{"$error":"#REF!"}}]
[{"$error":"#REF!"},null,{"$f":"#REF!","v":{"$error":"#REF!"}},{"$f":"#REF!","v":{"$error":"#REF!"}},null,null,{"$f":"#REF!","v":{"$error":"#REF!"}},800001965,"http://www.xbrl.org/scheme/companyName",null,{"$f":"Periodos!$C$4","v":"2017-12-31"},{"$f":"#REF!","v":{"$error":"#REF!"}},{"$f":"#REF!","v":{"$error":"#REF!"}}]
[{"$error":"#REF!"},null,{"$f":"#REF!","v":{"$error":"#REF!"}},{"$f":"#REF!","v":{"$error":"#REF!"}},null,null,{"$f":"#REF!","v":{"$error":"#REF!"}},800001965,"http://www.xbrl.org/scheme/companyName",null,{"$f":"Periodos!$C$4","v":"2017-12-31"},{"$f":"#REF!","v":{"$error":"#REF!"}},{"$f":"#REF!","v":{"$error":"#REF!"}}]
[{"$error":"#REF!"},null,{"$f":"#REF!","v":{"$error":"#REF!"}},{"$f":"#REF!","v":{"$error":"#REF!"}},null,null,{"$f":"#REF!","v":{"$error":"#REF!"}},800001965,"http://www.xbrl.org/scheme/companyName",null,{"$f":"Periodos!$C$4","v":"2017-12-31"},{"$f":"#REF!","v":{"$error":"#REF!"}},{"$f":"#REF!","v":{"$error":"#REF!"}}]
[{"$error":"#REF!"},null,{"$f":"#REF!","v":{"$error":"#REF!"}},{"$f":"#REF!","v":{"$error":"#REF!"}},null,null,{"$f":"#REF!","v":{"$error":"#REF!"}},800001965,"http://www.xbrl.org/scheme/companyName",null,{"$f":"Periodos!$C$4","v":"2017-12-31"},{"$f":"#REF!","v":{"$error":"#REF!"}},{"$f":"#REF!","v":{"$error":"#REF!"}}]
[{"$error":"#REF!"},null,{"$f":"#REF!","v":{"$error":"#REF!"}},{"$f":"#REF!","v":{"$error":"#REF!"}},0,"peso",{"$f":"#REF!","v":{"$error":"#REF!"}},800001965,"http://www.xbrl.org/scheme/companyName",null,{"$f":"Periodos!$C$4","v":"2017-12-31"},{"$f":"#REF!","v":{"$error":"#REF!"}},{"$f":"#REF!","v":{"$error":"#REF!"}}]
["/*",null,"--25--"]
[{"$error":"#REF!"},null,{"$f":"#REF!","v":{"$error":"#REF!"}},{"$f":"#REF!","v":{"$error":"#REF!"}},null,null,{"$f":"#REF!","v":{"$error":"#REF!"}},800001965,"http://www.xbrl.org/scheme/companyName",null,{"$f":"Periodos!$C$4","v":"2017-12-31"},{"$f":"#REF!","v":{"$error":"#REF!"}},{"$f":"#REF!","v":{"$error":"#REF!"}}]
[{"$error":"#REF!"},null,{"$f":"#REF!","v":{"$error":"#REF!"}},{"$f":"#REF!","v":{"$error":"#REF!"}},null,null,{"$f":"#REF!","v":{"$error":"#REF!"}},800001965,"http://www.xbrl.org/scheme/companyName",null,{"$f":"Periodos!$C$4","v":"2017-12-31"},{"$f":"#REF!","v":{"$error":"#REF!"}},{"$f":"#REF!","v":{"$error":"#REF!"}}]
[{"$error":"#REF!"},null,{"$f":"#REF!","v":{"$error":"#REF!"}},{"$f":"#REF!","v":{"$error":"#REF!"}},null,null,{"$f":"#REF!","v":{"$error":"#REF!"}},800001965,"http://www.xbrl.org/scheme/companyName",null,{"$f":"Periodos!$C$4","v":"2017-12-31"},{"$f":"#REF!","v":{"$error":"#REF!"}},{"$f":"#REF!","v":{"$error":"#REF!"}}]
[{"$error":"#REF!"},null,{"$f":"#REF!","v":{"$error":"#REF!"}},{"$f":"#REF!","v":{"$error":"#REF!"}},null,null,{"$f":"#REF!","v":{"$error":"#REF!"}},800001965,"http://www.xbrl.org/scheme/companyName",null,{"$f":"Periodos!$C$4","v":"2017-12-31"},{"$f":"#REF!","v":{"$error":"#REF!"}},{"$f":"#REF!","v":{"$error":"#REF!"}}]
[{"$error":"#REF!"},null,{"$f":"#REF!","v":{"$error":"#REF!"}},{"$f":"#REF!","v":{"$error":"#REF!"}},null,null,{"$f":"#REF!","v":{"$error":"#REF!"}},800001965,"http://www.xbrl.org/scheme/companyName",null,{"$f":"Periodos!$C$4","v":"2017-12-31"},{"$f":"#REF!","v":{"$error":"#REF!"}},{"$f":"#REF!","v":{"$error":"#REF!"}}]
[{"$error":"#REF!"},null,{"$f":"#REF!","v":{"$error":"#REF!"}},{"$f":"#REF!","v":{"$error":"#REF!"}},null,null,{"$f":"#REF!","v":{"$error":"#REF!"}},800001965,"http://www.xbrl.org/scheme/companyName",null,{"$f":"Periodos!$C$4","v":"2017-12-31"},{"$f":"#REF!","v":{"$error":"#REF!"}},{"$f":"#REF!","v":{"$error":"#REF!"}}]
[{"$error":"#REF!"},null,{"$f":"#REF!","v":{"$error":"#REF!"}},{"$f":"#REF!","v":{"$error":"#REF!"}},null,null,{"$f":"#REF!","v":{"$error":"#REF!"}},800001965,"http://www.xbrl.org/scheme/companyName",null,{"$f":"Periodos!$C$4","v":"2017-12-31"},{"$f":"#REF!","v":{"$error":"#REF!"}},{"$f":"#REF!","v":{"$error":"#REF!"}}]
[{"$error":"#REF!"},null,{"$f":"#REF!","v":{"$error":"#REF!"}},{"$f":"#REF!","v":{"$error":"#REF!"}},null,null,{"$f":"#REF!","v":{"$error":"#REF!"}},800001965,"http://www.xbrl.org/scheme/companyName",null,{"$f":"Periodos!$C$4","v":"2017-12-31"},{"$f":"#REF!","v":{"$error":"#REF!"}},{"$f":"#REF!","v":{"$error":"#REF!"}}]
[{"$error":"#REF!"},null,{"$f":"#REF!","v":{"$error":"#REF!"}},{"$f":"#REF!","v":{"$error":"#REF!"}},null,null,{"$f":"#REF!","v":{"$error":"#REF!"}},800001965,"http://www.xbrl.org/scheme/companyName",null,{"$f":"Periodos!$C$4","v":"2017-12-31"},{"$f":"#REF!","v":{"$error":"#REF!"}},{"$f":"#REF!","v":{"$error":"#REF!"}}]
[{"$error":"#REF!"},null,{"$f":"#REF!","v":{"$error":"#REF!"}},{"$f":"#REF!","v":{"$error":"#REF!"}},null,null,{"$f":"#REF!","v":{"$error":"#REF!"}},800001965,"http://www.xbrl.org/scheme/companyName",null,{"$f":"Periodos!$C$4","v":"2017-12-31"},{"$f":"#REF!","v":{"$error":"#REF!"}},{"$f":"#REF!","v":{"$error":"#REF!"}}]
[{"$error":"#REF!"},null,{"$f":"#REF!","v":{"$error":"#REF!"}},{"$f":"#REF!","v":{"$error":"#REF!"}},null,null,{"$f":"#REF!","v":{"$error":"#REF!"}},800001965,"http://www.xbrl.org/scheme/companyName",null,{"$f":"Periodos!$C$4","v":"2017-12-31"},{"$f":"#REF!","v":{"$error":"#REF!"}},{"$f":"#REF!","v":{"$error":"#REF!"}}]
[{"$error":"#REF!"},null,{"$f":"#REF!","v":{"$error":"#REF!"}},{"$f":"#REF!","v":{"$error":"#REF!"}},0,"peso",{"$f":"#REF!","v":{"$error":"#REF!"}},800001965,"http://www.xbrl.org/scheme/companyName",null,{"$f":"Periodos!$C$4","v":"2017-12-31"},{"$f":"#REF!","v":{"$error":"#REF!"}},{"$f":"#REF!","v":{"$error":"#REF!"}}]
["/*",null,"--26--"]
[{"$error":"#REF!"},null,{"$f":"#REF!","v":{"$error":"#REF!"}},{"$f":"#REF!","v":{"$error":"#REF!"}},null,null,{"$f":"#REF!","v":{"$error":"#REF!"}},800001965,"http://www.xbrl.org/scheme/companyName",null,{"$f":"Periodos!$C$4","v":"2017-12-31"},{"$f":"#REF!","v":{"$error":"#REF!"}},{"$f":"#REF!","v":{"$error":"#REF!"}}]
[{"$error":"#REF!"},null,{"$f":"#REF!","v":{"$error":"#REF!"}},{"$f":"#REF!","v":{"$error":"#REF!"}},null,null,{"$f":"#REF!","v":{"$error":"#REF!"}},800001965,"http://www.xbrl.org/scheme/companyName",null,{"$f":"Periodos!$C$4","v":"2017-12-31"},{"$f":"#REF!","v":{"$error":"#REF!"}},{"$f":"#REF!","v":{"$error":"#REF!"}}]
[{"$error":"#REF!"},null,{"$f":"#REF!","v":{"$error":"#REF!"}},{"$f":"#REF!","v":{"$error":"#REF!"}},null,null,{"$f":"#REF!","v":{"$error":"#REF!"}},800001965,"http://www.xbrl.org/scheme/companyName",null,{"$f":"Periodos!$C$4","v":"2017-12-31"},{"$f":"#REF!","v":{"$error":"#REF!"}},{"$f":"#REF!","v":{"$error":"#REF!"}}]
[{"$error":"#REF!"},null,{"$f":"#REF!","v":{"$error":"#REF!"}},{"$f":"#REF!","v":{"$error":"#REF!"}},null,null,{"$f":"#REF!","v":{"$error":"#REF!"}},800001965,"http://www.xbrl.org/scheme/companyName",null,{"$f":"Periodos!$C$4","v":"2017-12-31"},{"$f":"#REF!","v":{"$error":"#REF!"}},{"$f":"#REF!","v":{"$error":"#REF!"}}]
[{"$error":"#REF!"},null,{"$f":"#REF!","v":{"$error":"#REF!"}},{"$f":"#REF!","v":{"$error":"#REF!"}},null,null,{"$f":"#REF!","v":{"$error":"#REF!"}},800001965,"http://www.xbrl.org/scheme/companyName",null,{"$f":"Periodos!$C$4","v":"2017-12-31"},{"$f":"#REF!","v":{"$error":"#REF!"}},{"$f":"#REF!","v":{"$error":"#REF!"}}]
[{"$error":"#REF!"},null,{"$f":"#REF!","v":{"$error":"#REF!"}},{"$f":"#REF!","v":{"$error":"#REF!"}},null,null,{"$f":"#REF!","v":{"$error":"#REF!"}},800001965,"http://www.xbrl.org/scheme/companyName",null,{"$f":"Periodos!$C$4","v":"2017-12-31"},{"$f":"#REF!","v":{"$error":"#REF!"}},{"$f":"#REF!","v":{"$error":"#REF!"}}]
[{"$error":"#REF!"},null,{"$f":"#REF!","v":{"$error":"#REF!"}},{"$f":"#REF!","v":{"$error":"#REF!"}},null,null,{"$f":"#REF!","v":{"$error":"#REF!"}},800001965,"http://www.xbrl.org/scheme/companyName",null,{"$f":"Periodos!$C$4","v":"2017-12-31"},{"$f":"#REF!","v":{"$error":"#REF!"}},{"$f":"#REF!","v":{"$error":"#REF!"}}]
[{"$error":"#REF!"},null,{"$f":"#REF!","v":{"$error":"#REF!"}},{"$f":"#REF!","v":{"$error":"#REF!"}},null,null,{"$f":"#REF!","v":{"$error":"#REF!"}},800001965,"http://www.xbrl.org/scheme/companyName",null,{"$f":"Periodos!$C$4","v":"2017-12-31"},{"$f":"#REF!","v":{"$error":"#REF!"}},{"$f":"#REF!","v":{"$error":"#REF!"}}]
[{"$error":"#REF!"},null,{"$f":"#REF!","v":{"$error":"#REF!"}},{"$f":"#REF!","v":{"$error":"#REF!"}},null,null,{"$f":"#REF!","v":{"$error":"#REF!"}},800001965,"http://www.xbrl.org/scheme/companyName",null,{"$f":"Periodos!$C$4","v":"2017-12-31"},{"$f":"#REF!","v":{"$error":"#REF!"}},{"$f":"#REF!","v":{"$error":"#REF!"}}]
[{"$error":"#REF!"},null,{"$f":"#REF!","v":{"$error":"#REF!"}},{"$f":"#REF!","v":{"$error":"#REF!"}},null,null,{"$f":"#REF!","v":{"$error":"#REF!"}},800001965,"http://www.xbrl.org/scheme/companyName",null,{"$f":"Periodos!$C$4","v":"2017-12-31"},{"$f":"#REF!","v":{"$error":"#REF!"}},{"$f":"#REF!","v":{"$error":"#REF!"}}]
[{"$error":"#REF!"},null,{"$f":"#REF!","v":{"$error":"#REF!"}},{"$f":"#REF!","v":{"$error":"#REF!"}},null,null,{"$f":"#REF!","v":{"$error":"#REF!"}},800001965,"http://www.xbrl.org/scheme/companyName",null,{"$f":"Periodos!$C$4","v":"2017-12-31"},{"$f":"#REF!","v":{"$error":"#REF!"}},{"$f":"#REF!","v":{"$error":"#REF!"}}]
[{"$error":"#REF!"},null,{"$f":"#REF!","v":{"$error":"#REF!"}},{"$f":"#REF!","v":{"$error":"#REF!"}},0,"peso",{"$f":"#REF!","v":{"$error":"#REF!"}},800001965,"http://www.xbrl.org/scheme/companyName",null,{"$f":"Periodos!$C$4","v":"2017-12-31"},{"$f":"#REF!","v":{"$error":"#REF!"}},{"$f":"#REF!","v":{"$error":"#REF!"}}]
["/*",null,"--27--"]
[{"$error":"#REF!"},null,{"$f":"#REF!","v":{"$error":"#REF!"}},{"$f":"#REF!","v":{"$error":"#REF!"}},null,null,{"$f":"#REF!","v":{"$error":"#REF!"}},800001965,"http://www.xbrl.org/scheme/companyName",null,{"$f":"Periodos!$C$4","v":"2017-12-31"},{"$f":"#REF!","v":{"$error":"#REF!"}},{"$f":"#REF!","v":{"$error":"#REF!"}}]
[{"$error":"#REF!"},null,{"$f":"#REF!","v":{"$error":"#REF!"}},{"$f":"#REF!","v":{"$error":"#REF!"}},null,null,{"$f":"#REF!","v":{"$error":"#REF!"}},800001965,"http://www.xbrl.org/scheme/companyName",null,{"$f":"Periodos!$C$4","v":"2017-12-31"},{"$f":"#REF!","v":{"$error":"#REF!"}},{"$f":"#REF!","v":{"$error":"#REF!"}}]
[{"$error":"#REF!"},null,{"$f":"#REF!","v":{"$error":"#REF!"}},{"$f":"#REF!","v":{"$error":"#REF!"}},null,null,{"$f":"#REF!","v":{"$error":"#REF!"}},800001965,"http://www.xbrl.org/scheme/companyName",null,{"$f":"Periodos!$C$4","v":"2017-12-31"},{"$f":"#REF!","v":{"$error":"#REF!"}},{"$f":"#REF!","v":{"$error":"#REF!"}}]
[{"$error":"#REF!"},null,{"$f":"#REF!","v":{"$error":"#REF!"}},{"$f":"#REF!","v":{"$error":"#REF!"}},null,null,{"$f":"#REF!","v":{"$error":"#REF!"}},800001965,"http://www.xbrl.org/scheme/companyName",null,{"$f":"Periodos!$C$4","v":"2017-12-31"},{"$f":"#REF!","v":{"$error":"#REF!"}},{"$f":"#REF!","v":{"$error":"#REF!"}}]
[{"$error":"#REF!"},null,{"$f":"#REF!","v":{"$error":"#REF!"}},{"$f":"#REF!","v":{"$error":"#REF!"}},null,null,{"$f":"#REF!","v":{"$error":"#REF!"}},800001965,"http://www.xbrl.org/scheme/companyName",null,{"$f":"Periodos!$C$4","v":"2017-12-31"},{"$f":"#REF!","v":{"$error":"#REF!"}},{"$f":"#REF!","v":{"$error":"#REF!"}}]
[{"$error":"#REF!"},null,{"$f":"#REF!","v":{"$error":"#REF!"}},{"$f":"#REF!","v":{"$error":"#REF!"}},null,null,{"$f":"#REF!","v":{"$error":"#REF!"}},800001965,"http://www.xbrl.org/scheme/companyName",null,{"$f":"Periodos!$C$4","v":"2017-12-31"},{"$f":"#REF!","v":{"$error":"#REF!"}},{"$f":"#REF!","v":{"$error":"#REF!"}}]
[{"$error":"#REF!"},null,{"$f":"#REF!","v":{"$error":"#REF!"}},{"$f":"#REF!","v":{"$error":"#REF!"}},null,null,{"$f":"#REF!","v":{"$error":"#REF!"}},800001965,"http://www.xbrl.org/scheme/companyName",null,{"$f":"Periodos!$C$4","v":"2017-12-31"},{"$f":"#REF!","v":{"$error":"#REF!"}},{"$f":"#REF!","v":{"$error":"#REF!"}}]
[{"$error":"#REF!"},null,{"$f":"#REF!","v":{"$error":"#REF!"}},{"$f":"#REF!","v":{"$error":"#REF!"}},null,null,{"$f":"#REF!","v":{"$error":"#REF!"}},800001965,"http://www.xbrl.org/scheme/companyName",null,{"$f":"Periodos!$C$4","v":"2017-12-31"},{"$f":"#REF!","v":{"$error":"#REF!"}},{"$f":"#REF!","v":{"$error":"#REF!"}}]
[{"$error":"#REF!"},null,{"$f":"#REF!","v":{"$error":"#REF!"}},{"$f":"#REF!","v":{"$error":"#REF!"}},null,null,{"$f":"#REF!","v":{"$error":"#REF!"}},800001965,"http://www.xbrl.org/scheme/companyName",null,{"$f":"Periodos!$C$4","v":"2017-12-31"},{"$f":"#REF!","v":{"$error":"#REF!"}},{"$f":"#REF!","v":{"$error":"#REF!"}}]
[{"$f":"IF(G2017=\"\",\"/*\",\"\")","v":{"$error":"#REF!"}},null,{"$f":"#REF!","v":{"$error":"#REF!"}},{"$f":"#REF!","v":{"$error":"#REF!"}},null,null,{"$f":"#REF!","v":{"$error":"#REF!"}},800001965,"http://www.xbrl.org/scheme/companyName",null,{"$f":"Periodos!$C$4","v":"2017-12-31"},{"$f":"#REF!","v":{"$error":"#REF!"}},{"$f":"#REF!","v":{"$error":"#REF!"}}]
[{"$error":"#REF!"},null,{"$f":"#REF!","v":{"$error":"#REF!"}},{"$f":"#REF!","v":{"$error":"#REF!"}},null,null,{"$f":"#REF!","v":{"$error":"#REF!"}},800001965,"http://www.xbrl.org/scheme/companyName",null,{"$f":"Periodos!$C$4","v":"2017-12-31"},{"$f":"#REF!","v":{"$error":"#REF!"}},{"$f":"#REF!","v":{"$error":"#REF!"}}]
[{"$error":"#REF!"},null,{"$f":"#REF!","v":{"$error":"#REF!"}},{"$f":"#REF!","v":{"$error":"#REF!"}},0,"peso",{"$f":"#REF!","v":{"$error":"#REF!"}},800001965,"http://www.xbrl.org/scheme/companyName",null,{"$f":"Periodos!$C$4","v":"2017-12-31"},{"$f":"#REF!","v":{"$error":"#REF!"}},{"$f":"#REF!","v":{"$error":"#REF!"}}]
["/*",null,"--28--"]
[{"$error":"#REF!"},null,{"$f":"#REF!","v":{"$error":"#REF!"}},{"$f":"#REF!","v":{"$error":"#REF!"}},null,null,{"$f":"#REF!","v":{"$error":"#REF!"}},800001965,"http://www.xbrl.org/scheme/companyName",null,{"$f":"Periodos!$C$4","v":"2017-12-31"},{"$f":"#REF!","v":{"$error":"#REF!"}},{"$f":"#REF!","v":{"$error":"#REF!"}}]
[{"$error":"#REF!"},null,{"$f":"#REF!","v":{"$error":"#REF!"}},{"$f":"#REF!","v":{"$error":"#REF!"}},null,null,{"$f":"#REF!","v":{"$error":"#REF!"}},800001965,"http://www.xbrl.org/scheme/companyName",null,{"$f":"Periodos!$C$4","v":"2017-12-31"},{"$f":"#REF!","v":{"$error":"#REF!"}},{"$f":"#REF!","v":{"$error":"#REF!"}}]
[{"$error":"#REF!"},null,{"$f":"#REF!","v":{"$error":"#REF!"}},{"$f":"#REF!","v":{"$error":"#REF!"}},null,null,{"$f":"#REF!","v":{"$error":"#REF!"}},800001965,"http://www.xbrl.org/scheme/companyName",null,{"$f":"Periodos!$C$4","v":"2017-12-31"},{"$f":"#REF!","v":{"$error":"#REF!"}},{"$f":"#REF!","v":{"$error":"#REF!"}}]
[{"$error":"#REF!"},null,{"$f":"#REF!","v":{"$error":"#REF!"}},{"$f":"#REF!","v":{"$error":"#REF!"}},null,null,{"$f":"#REF!","v":{"$error":"#REF!"}},800001965,"http://www.xbrl.org/scheme/companyName",null,{"$f":"Periodos!$C$4","v":"2017-12-31"},{"$f":"#REF!","v":{"$error":"#REF!"}},{"$f":"#REF!","v":{"$error":"#REF!"}}]
[{"$error":"#REF!"},null,{"$f":"#REF!","v":{"$error":"#REF!"}},{"$f":"#REF!","v":{"$error":"#REF!"}},null,null,{"$f":"#REF!","v":{"$error":"#REF!"}},800001965,"http://www.xbrl.org/scheme/companyName",null,{"$f":"Periodos!$C$4","v":"2017-12-31"},{"$f":"#REF!","v":{"$error":"#REF!"}},{"$f":"#REF!","v":{"$error":"#REF!"}}]
[{"$error":"#REF!"},null,{"$f":"#REF!","v":{"$error":"#REF!"}},{"$f":"#REF!","v":{"$error":"#REF!"}},null,null,{"$f":"#REF!","v":{"$error":"#REF!"}},800001965,"http://www.xbrl.org/scheme/companyName",null,{"$f":"Periodos!$C$4","v":"2017-12-31"},{"$f":"#REF!","v":{"$error":"#REF!"}},{"$f":"#REF!","v":{"$error":"#REF!"}}]
[{"$error":"#REF!"},null,{"$f":"#REF!","v":{"$error":"#REF!"}},{"$f":"#REF!","v":{"$error":"#REF!"}},null,null,{"$f":"#REF!","v":{"$error":"#REF!"}},800001965,"http://www.xbrl.org/scheme/companyName",null,{"$f":"Periodos!$C$4","v":"2017-12-31"},{"$f":"#REF!","v":{"$error":"#REF!"}},{"$f":"#REF!","v":{"$error":"#REF!"}}]
[{"$error":"#REF!"},null,{"$f":"#REF!","v":{"$error":"#REF!"}},{"$f":"#REF!","v":{"$error":"#REF!"}},null,null,{"$f":"#REF!","v":{"$error":"#REF!"}},800001965,"http://www.xbrl.org/scheme/companyName",null,{"$f":"Periodos!$C$4","v":"2017-12-31"},{"$f":"#REF!","v":{"$error":"#REF!"}},{"$f":"#REF!","v":{"$error":"#REF!"}}]
[{"$error":"#REF!"},null,{"$f":"#REF!","v":{"$error":"#REF!"}},{"$f":"#REF!","v":{"$error":"#REF!"}},null,null,{"$f":"#REF!","v":{"$error":"#REF!"}},800001965,"http://www.xbrl.org/scheme/companyName",null,{"$f":"Periodos!$C$4","v":"2017-12-31"},{"$f":"#REF!","v":{"$error":"#REF!"}},{"$f":"#REF!","v":{"$error":"#REF!"}}]
[{"$error":"#REF!"},null,{"$f":"#REF!","v":{"$error":"#REF!"}},{"$f":"#REF!","v":{"$error":"#REF!"}},null,null,{"$f":"#REF!","v":{"$error":"#REF!"}},800001965,"http://www.xbrl.org/scheme/companyName",null,{"$f":"Periodos!$C$4","v":"2017-12-31"},{"$f":"#REF!","v":{"$error":"#REF!"}},{"$f":"#REF!","v":{"$error":"#REF!"}}]
[{"$error":"#REF!"},null,{"$f":"#REF!","v":{"$error":"#REF!"}},{"$f":"#REF!","v":{"$error":"#REF!"}},null,null,{"$f":"#REF!","v":{"$error":"#REF!"}},800001965,"http://www.xbrl.org/scheme/companyName",null,{"$f":"Periodos!$C$4","v":"2017-12-31"},{"$f":"#REF!","v":{"$error":"#REF!"}},{"$f":"#REF!","v":{"$error":"#REF!"}}]
[{"$error":"#REF!"},null,{"$f":"#REF!","v":{"$error":"#REF!"}},{"$f":"#REF!","v":{"$error":"#REF!"}},0,"peso",{"$f":"#REF!","v":{"$error":"#REF!"}},800001965,"http://www.xbrl.org/scheme/companyName",null,{"$f":"Periodos!$C$4","v":"2017-12-31"},{"$f":"#REF!","v":{"$error":"#REF!"}},{"$f":"#REF!","v":{"$error":"#REF!"}}]
["/*",null,"--29--"]
[{"$error":"#REF!"},null,{"$f":"#REF!","v":{"$error":"#REF!"}},{"$f":"#REF!","v":{"$error":"#REF!"}},null,null,{"$f":"#REF!","v":{"$error":"#REF!"}},800001965,"http://www.xbrl.org/scheme/companyName",null,{"$f":"Periodos!$C$4","v":"2017-12-31"},{"$f":"#REF!","v":{"$error":"#REF!"}},{"$f":"#REF!","v":{"$error":"#REF!"}}]
[{"$error":"#REF!"},null,{"$f":"#REF!","v":{"$error":"#REF!"}},{"$f":"#REF!","v":{"$error":"#REF!"}},null,null,{"$f":"#REF!","v":{"$error":"#REF!"}},800001965,"http://www.xbrl.org/scheme/companyName",null,{"$f":"Periodos!$C$4","v":"2017-12-31"},{"$f":"#REF!","v":{"$error":"#REF!"}},{"$f":"#REF!","v":{"$error":"#REF!"}}]
[{"$error":"#REF!"},null,{"$f":"#REF!","v":{"$error":"#REF!"}},{"$f":"#REF!","v":{"$error":"#REF!"}},null,null,{"$f":"#REF!","v":{"$error":"#REF!"}},800001965,"http://www.xbrl.org/scheme/companyName",null,{"$f":"Periodos!$C$4","v":"2017-12-31"},{"$f":"#REF!","v":{"$error":"#REF!"}},{"$f":"#REF!","v":{"$error":"#REF!"}}]
[{"$error":"#REF!"},null,{"$f":"#REF!","v":{"$error":"#REF!"}},{"$f":"#REF!","v":{"$error":"#REF!"}},null,null,{"$f":"#REF!","v":{"$error":"#REF!"}},800001965,"http://www.xbrl.org/scheme/companyName",null,{"$f":"Periodos!$C$4","v":"2017-12-31"},{"$f":"#REF!","v":{"$error":"#REF!"}},{"$f":"#REF!","v":{"$error":"#REF!"}}]
[{"$error":"#REF!"},null,{"$f":"#REF!","v":{"$error":"#REF!"}},{"$f":"#REF!","v":{"$error":"#REF!"}},null,null,{"$f":"#REF!","v":{"$error":"#REF!"}},800001965,"http://www.xbrl.org/scheme/companyName",null,{"$f":"Periodos!$C$4","v":"2017-12-31"},{"$f":"#REF!","v":{"$error":"#REF!"}},{"$f":"#REF!","v":{"$error":"#REF!"}}]
[{"$error":"#REF!"},null,{"$f":"#REF!","v":{"$error":"#REF!"}},{"$f":"#REF!","v":{"$error":"#REF!"}},null,null,{"$f":"#REF!","v":{"$error":"#REF!"}},800001965,"http://www.xbrl.org/scheme/companyName",null,{"$f":"Periodos!$C$4","v":"2017-12-31"},{"$f":"#REF!","v":{"$error":"#REF!"}},{"$f":"#REF!","v":{"$error":"#REF!"}}]
[{"$error":"#REF!"},null,{"$f":"#REF!","v":{"$error":"#REF!"}},{"$f":"#REF!","v":{"$error":"#REF!"}},null,null,{"$f":"#REF!","v":{"$error":"#REF!"}},800001965,"http://www.xbrl.org/scheme/companyName",null,{"$f":"Periodos!$C$4","v":"2017-12-31"},{"$f":"#REF!","v":{"$error":"#REF!"}},{"$f":"#REF!","v":{"$error":"#REF!"}}]
[{"$error":"#REF!"},null,{"$f":"#REF!","v":{"$error":"#REF!"}},{"$f":"#REF!","v":{"$error":"#REF!"}},null,null,{"$f":"#REF!","v":{"$error":"#REF!"}},800001965,"http://www.xbrl.org/scheme/companyName",null,{"$f":"Periodos!$C$4","v":"2017-12-31"},{"$f":"#REF!","v":{"$error":"#REF!"}},{"$f":"#REF!","v":{"$error":"#REF!"}}]
[{"$error":"#REF!"},null,{"$f":"#REF!","v":{"$error":"#REF!"}},{"$f":"#REF!","v":{"$error":"#REF!"}},null,null,{"$f":"#REF!","v":{"$error":"#REF!"}},800001965,"http://www.xbrl.org/scheme/companyName",null,{"$f":"Periodos!$C$4","v":"2017-12-31"},{"$f":"#REF!","v":{"$error":"#REF!"}},{"$f":"#REF!","v":{"$error":"#REF!"}}]
[{"$error":"#REF!"},null,{"$f":"#REF!","v":{"$error":"#REF!"}},{"$f":"#REF!","v":{"$error":"#REF!"}},null,null,{"$f":"#REF!","v":{"$error":"#REF!"}},800001965,"http://www.xbrl.org/scheme/companyName",null,{"$f":"Periodos!$C$4","v":"2017-12-31"},{"$f":"#REF!","v":{"$error":"#REF!"}},{"$f":"#REF!","v":{"$error":"#REF!"}}]
[{"$error":"#REF!"},null,{"$f":"#REF!","v":{"$error":"#REF!"}},{"$f":"#REF!","v":{"$error":"#REF!"}},null,null,{"$f":"#REF!","v":{"$error":"#REF!"}},800001965,"http://www.xbrl.org/scheme/companyName",null,{"$f":"Periodos!$C$4","v":"2017-12-31"},{"$f":"#REF!","v":{"$error":"#REF!"}},{"$f":"#REF!","v":{"$error":"#REF!"}}]
[{"$error":"#REF!"},null,{"$f":"#REF!","v":{"$error":"#REF!"}},{"$f":"#REF!","v":{"$error":"#REF!"}},0,"peso",{"$f":"#REF!","v":{"$error":"#REF!"}},800001965,"http://www.xbrl.org/scheme/companyName",null,{"$f":"Periodos!$C$4","v":"2017-12-31"},{"$f":"#REF!","v":{"$error":"#REF!"}},{"$f":"#REF!","v":{"$error":"#REF!"}}]
["/*",null,"--30--"]
[{"$error":"#REF!"},null,{"$f":"#REF!","v":{"$error":"#REF!"}},{"$f":"#REF!","v":{"$error":"#REF!"}},null,null,{"$f":"#REF!","v":{"$error":"#REF!"}},800001965,"http://www.xbrl.org/scheme/companyName",null,{"$f":"Periodos!$C$4","v":"2017-12-31"},{"$f":"#REF!","v":{"$error":"#REF!"}},{"$f":"#REF!","v":{"$error":"#REF!"}}]
[{"$error":"#REF!"},null,{"$f":"#REF!","v":{"$error":"#REF!"}},{"$f":"#REF!","v":{"$error":"#REF!"}},null,null,{"$f":"#REF!","v":{"$error":"#REF!"}},800001965,"http://www.xbrl.org/scheme/companyName",null,{"$f":"Periodos!$C$4","v":"2017-12-31"},{"$f":"#REF!","v":{"$error":"#REF!"}},{"$f":"#REF!","v":{"$error":"#REF!"}}]
[{"$error":"#REF!"},null,{"$f":"#REF!","v":{"$error":"#REF!"}},{"$f":"#REF!","v":{"$error":"#REF!"}},null,null,{"$f":"#REF!","v":{"$error":"#REF!"}},800001965,"http://www.xbrl.org/scheme/companyName",null,{"$f":"Periodos!$C$4","v":"2017-12-31"},{"$f":"#REF!","v":{"$error":"#REF!"}},{"$f":"#REF!","v":{"$error":"#REF!"}}]
[{"$error":"#REF!"},null,{"$f":"#REF!","v":{"$error":"#REF!"}},{"$f":"#REF!","v":{"$error":"#REF!"}},null,null,{"$f":"#REF!","v":{"$error":"#REF!"}},800001965,"http://www.xbrl.org/scheme/companyName",null,{"$f":"Periodos!$C$4","v":"2017-12-31"},{"$f":"#REF!","v":{"$error":"#REF!"}},{"$f":"#REF!","v":{"$error":"#REF!"}}]
[{"$error":"#REF!"},null,{"$f":"#REF!","v":{"$error":"#REF!"}},{"$f":"#REF!","v":{"$error":"#REF!"}},null,null,{"$f":"#REF!","v":{"$error":"#REF!"}},800001965,"http://www.xbrl.org/scheme/companyName",null,{"$f":"Periodos!$C$4","v":"2017-12-31"},{"$f":"#REF!","v":{"$error":"#REF!"}},{"$f":"#REF!","v":{"$error":"#REF!"}}]
[{"$error":"#REF!"},null,{"$f":"#REF!","v":{"$error":"#REF!"}},{"$f":"#REF!","v":{"$error":"#REF!"}},null,null,{"$f":"#REF!","v":{"$error":"#REF!"}},800001965,"http://www.xbrl.org/scheme/companyName",null,{"$f":"Periodos!$C$4","v":"2017-12-31"},{"$f":"#REF!","v":{"$error":"#REF!"}},{"$f":"#REF!","v":{"$error":"#REF!"}}]
[{"$error":"#REF!"},null,{"$f":"#REF!","v":{"$error":"#REF!"}},{"$f":"#REF!","v":{"$error":"#REF!"}},null,null,{"$f":"#REF!","v":{"$error":"#REF!"}},800001965,"http://www.xbrl.org/scheme/companyName",null,{"$f":"Periodos!$C$4","v":"2017-12-31"},{"$f":"#REF!","v":{"$error":"#REF!"}},{"$f":"#REF!","v":{"$error":"#REF!"}}]
[{"$error":"#REF!"},null,{"$f":"#REF!","v":{"$error":"#REF!"}},{"$f":"#REF!","v":{"$error":"#REF!"}},null,null,{"$f":"#REF!","v":{"$error":"#REF!"}},800001965,"http://www.xbrl.org/scheme/companyName",null,{"$f":"Periodos!$C$4","v":"2017-12-31"},{"$f":"#REF!","v":{"$error":"#REF!"}},{"$f":"#REF!","v":{"$error":"#REF!"}}]
[{"$error":"#REF!"},null,{"$f":"#REF!","v":{"$error":"#REF!"}},{"$f":"#REF!","v":{"$error":"#REF!"}},null,null,{"$f":"#REF!","v":{"$error":"#REF!"}},800001965,"http://www.xbrl.org/scheme/companyName",null,{"$f":"Periodos!$C$4","v":"2017-12-31"},{"$f":"#REF!","v":{"$error":"#REF!"}},{"$f":"#REF!","v":{"$error":"#REF!"}}]
[{"$error":"#REF!"},null,{"$f":"#REF!","v":{"$error":"#REF!"}},{"$f":"#REF!","v":{"$error":"#REF!"}},null,null,{"$f":"#REF!","v":{"$error":"#REF!"}},800001965,"http://www.xbrl.org/scheme/companyName",null,{"$f":"Periodos!$C$4","v":"2017-12-31"},{"$f":"#REF!","v":{"$error":"#REF!"}},{"$f":"#REF!","v":{"$error":"#REF!"}}]
[{"$error":"#REF!"},null,{"$f":"#REF!","v":{"$error":"#REF!"}},{"$f":"#REF!","v":{"$error":"#REF!"}},null,null,{"$f":"#REF!","v":{"$error":"#REF!"}},800001965,"http://www.xbrl.org/scheme/companyName",null,{"$f":"Periodos!$C$4","v":"2017-12-31"},{"$f":"#REF!","v":{"$error":"#REF!"}},{"$f":"#REF!","v":{"$error":"#REF!"}}]
[{"$error":"#REF!"},null,{"$f":"#REF!","v":{"$error":"#REF!"}},{"$f":"#REF!","v":{"$error":"#REF!"}},0,"peso",{"$f":"#REF!","v":{"$error":"#REF!"}},800001965,"http://www.xbrl.org/scheme/companyName",null,{"$f":"Periodos!$C$4","v":"2017-12-31"},{"$f":"#REF!","v":{"$error":"#REF!"}},{"$f":"#REF!","v":{"$error":"#REF!"}}]
["/*",null,"--31--"]
[{"$error":"#REF!"},null,{"$f":"#REF!","v":{"$error":"#REF!"}},{"$f":"#REF!","v":{"$error":"#REF!"}},null,null,{"$f":"#REF!","v":{"$error":"#REF!"}},800001965,"http://www.xbrl.org/scheme/companyName",null,{"$f":"Periodos!$C$4","v":"2017-12-31"},{"$f":"#REF!","v":{"$error":"#REF!"}},{"$f":"#REF!","v":{"$error":"#REF!"}}]
[{"$error":"#REF!"},null,{"$f":"#REF!","v":{"$error":"#REF!"}},{"$f":"#REF!","v":{"$error":"#REF!"}},null,null,{"$f":"#REF!","v":{"$error":"#REF!"}},800001965,"http://www.xbrl.org/scheme/companyName",null,{"$f":"Periodos!$C$4","v":"2017-12-31"},{"$f":"#REF!","v":{"$error":"#REF!"}},{"$f":"#REF!","v":{"$error":"#REF!"}}]
[{"$error":"#REF!"},null,{"$f":"#REF!","v":{"$error":"#REF!"}},{"$f":"#REF!","v":{"$error":"#REF!"}},null,null,{"$f":"#REF!","v":{"$error":"#REF!"}},800001965,"http://www.xbrl.org/scheme/companyName",null,{"$f":"Periodos!$C$4","v":"2017-12-31"},{"$f":"#REF!","v":{"$error":"#REF!"}},{"$f":"#REF!","v":{"$error":"#REF!"}}]
[{"$error":"#REF!"},null,{"$f":"#REF!","v":{"$error":"#REF!"}},{"$f":"#REF!","v":{"$error":"#REF!"}},null,null,{"$f":"#REF!","v":{"$error":"#REF!"}},800001965,"http://www.xbrl.org/scheme/companyName",null,{"$f":"Periodos!$C$4","v":"2017-12-31"},{"$f":"#REF!","v":{"$error":"#REF!"}},{"$f":"#REF!","v":{"$error":"#REF!"}}]
[{"$error":"#REF!"},null,{"$f":"#REF!","v":{"$error":"#REF!"}},{"$f":"#REF!","v":{"$error":"#REF!"}},null,null,{"$f":"#REF!","v":{"$error":"#REF!"}},800001965,"http://www.xbrl.org/scheme/companyName",null,{"$f":"Periodos!$C$4","v":"2017-12-31"},{"$f":"#REF!","v":{"$error":"#REF!"}},{"$f":"#REF!","v":{"$error":"#REF!"}}]
[{"$error":"#REF!"},null,{"$f":"#REF!","v":{"$error":"#REF!"}},{"$f":"#REF!","v":{"$error":"#REF!"}},null,null,{"$f":"#REF!","v":{"$error":"#REF!"}},800001965,"http://www.xbrl.org/scheme/companyName",null,{"$f":"Periodos!$C$4","v":"2017-12-31"},{"$f":"#REF!","v":{"$error":"#REF!"}},{"$f":"#REF!","v":{"$error":"#REF!"}}]
[{"$error":"#REF!"},null,{"$f":"#REF!","v":{"$error":"#REF!"}},{"$f":"#REF!","v":{"$error":"#REF!"}},null,null,{"$f":"#REF!","v":{"$error":"#REF!"}},800001965,"http://www.xbrl.org/scheme/companyName",null,{"$f":"Periodos!$C$4","v":"2017-12-31"},{"$f":"#REF!","v":{"$error":"#REF!"}},{"$f":"#REF!","v":{"$error":"#REF!"}}]
[{"$error":"#REF!"},null,{"$f":"#REF!","v":{"$error":"#REF!"}},{"$f":"#REF!","v":{"$error":"#REF!"}},null,null,{"$f":"#REF!","v":{"$error":"#REF!"}},800001965,"http://www.xbrl.org/scheme/companyName",null,{"$f":"Periodos!$C$4","v":"2017-12-31"},{"$f":"#REF!","v":{"$error":"#REF!"}},{"$f":"#REF!","v":{"$error":"#REF!"}}]
[{"$error":"#REF!"},null,{"$f":"#REF!","v":{"$error":"#REF!"}},{"$f":"#REF!","v":{"$error":"#REF!"}},null,null,{"$f":"#REF!","v":{"$error":"#REF!"}},800001965,"http://www.xbrl.org/scheme/companyName",null,{"$f":"Periodos!$C$4","v":"2017-12-31"},{"$f":"#REF!","v":{"$error":"#REF!"}},{"$f":"#REF!","v":{"$error":"#REF!"}}]
[{"$error":"#REF!"},null,{"$f":"#REF!","v":{"$error":"#REF!"}},{"$f":"#REF!","v":{"$error":"#REF!"}},null,null,{"$f":"#REF!","v":{"$error":"#REF!"}},800001965,"http://www.xbrl.org/scheme/companyName",null,{"$f":"Periodos!$C$4","v":"2017-12-31"},{"$f":"#REF!","v":{"$error":"#REF!"}},{"$f":"#REF!","v":{"$error":"#REF!"}}]
[{"$error":"#REF!"},null,{"$f":"#REF!","v":{"$error":"#REF!"}},{"$f":"#REF!","v":{"$error":"#REF!"}},null,null,{"$f":"#REF!","v":{"$error":"#REF!"}},800001965,"http://www.xbrl.org/scheme/companyName",null,{"$f":"Periodos!$C$4","v":"2017-12-31"},{"$f":"#REF!","v":{"$error":"#REF!"}},{"$f":"#REF!","v":{"$error":"#REF!"}}]
[{"$error":"#REF!"},null,{"$f":"#REF!","v":{"$error":"#REF!"}},{"$f":"#REF!","v":{"$error":"#REF!"}},0,"peso",{"$f":"#REF!","v":{"$error":"#REF!"}},800001965,"http://www.xbrl.org/scheme/companyName",null,{"$f":"Periodos!$C$4","v":"2017-12-31"},{"$f":"#REF!","v":{"$error":"#REF!"}},{"$f":"#REF!","v":{"$error":"#REF!"}}]
["/*",null,"--32--"]
[{"$error":"#REF!"},null,{"$f":"#REF!","v":{"$error":"#REF!"}},{"$f":"#REF!","v":{"$error":"#REF!"}},null,null,{"$f":"#REF!","v":{"$error":"#REF!"}},800001965,"http://www.xbrl.org/scheme/companyName",null,{"$f":"Periodos!$C$4","v":"2017-12-31"},{"$f":"#REF!","v":{"$error":"#REF!"}},{"$f":"#REF!","v":{"$error":"#REF!"}}]
[{"$error":"#REF!"},null,{"$f":"#REF!","v":{"$error":"#REF!"}},{"$f":"#REF!","v":{"$error":"#REF!"}},null,null,{"$f":"#REF!","v":{"$error":"#REF!"}},800001965,"http://www.xbrl.org/scheme/companyName",null,{"$f":"Periodos!$C$4","v":"2017-12-31"},{"$f":"#REF!","v":{"$error":"#REF!"}},{"$f":"#REF!","v":{"$error":"#REF!"}}]
[{"$error":"#REF!"},null,{"$f":"#REF!","v":{"$error":"#REF!"}},{"$f":"#REF!","v":{"$error":"#REF!"}},null,null,{"$f":"#REF!","v":{"$error":"#REF!"}},800001965,"http://www.xbrl.org/scheme/companyName",null,{"$f":"Periodos!$C$4","v":"2017-12-31"},{"$f":"#REF!","v":{"$error":"#REF!"}},{"$f":"#REF!","v":{"$error":"#REF!"}}]
[{"$error":"#REF!"},null,{"$f":"#REF!","v":{"$error":"#REF!"}},{"$f":"#REF!","v":{"$error":"#REF!"}},null,null,{"$f":"#REF!","v":{"$error":"#REF!"}},800001965,"http://www.xbrl.org/scheme/companyName",null,{"$f":"Periodos!$C$4","v":"2017-12-31"},{"$f":"#REF!","v":{"$error":"#REF!"}},{"$f":"#REF!","v":{"$error":"#REF!"}}]
[{"$error":"#REF!"},null,{"$f":"#REF!","v":{"$error":"#REF!"}},{"$f":"#REF!","v":{"$error":"#REF!"}},null,null,{"$f":"#REF!","v":{"$error":"#REF!"}},800001965,"http://www.xbrl.org/scheme/companyName",null,{"$f":"Periodos!$C$4","v":"2017-12-31"},{"$f":"#REF!","v":{"$error":"#REF!"}},{"$f":"#REF!","v":{"$error":"#REF!"}}]
[{"$error":"#REF!"},null,{"$f":"#REF!","v":{"$error":"#REF!"}},{"$f":"#REF!","v":{"$error":"#REF!"}},null,null,{"$f":"#REF!","v":{"$error":"#REF!"}},800001965,"http://www.xbrl.org/scheme/companyName",null,{"$f":"Periodos!$C$4","v":"2017-12-31"},{"$f":"#REF!","v":{"$error":"#REF!"}},{"$f":"#REF!","v":{"$error":"#REF!"}}]
[{"$error":"#REF!"},null,{"$f":"#REF!","v":{"$error":"#REF!"}},{"$f":"#REF!","v":{"$error":"#REF!"}},null,null,{"$f":"#REF!","v":{"$error":"#REF!"}},800001965,"http://www.xbrl.org/scheme/companyName",null,{"$f":"Periodos!$C$4","v":"2017-12-31"},{"$f":"#REF!","v":{"$error":"#REF!"}},{"$f":"#REF!","v":{"$error":"#REF!"}}]
[{"$error":"#REF!"},null,{"$f":"#REF!","v":{"$error":"#REF!"}},{"$f":"#REF!","v":{"$error":"#REF!"}},null,null,{"$f":"#REF!","v":{"$error":"#REF!"}},800001965,"http://www.xbrl.org/scheme/companyName",null,{"$f":"Periodos!$C$4","v":"2017-12-31"},{"$f":"#REF!","v":{"$error":"#REF!"}},{"$f":"#REF!","v":{"$error":"#REF!"}}]
[{"$f":"IF(G2081=\"\",\"/*\",\"\")","v":{"$error":"#REF!"}},null,{"$f":"#REF!","v":{"$error":"#REF!"}},{"$f":"#REF!","v":{"$error":"#REF!"}},null,null,{"$f":"#REF!","v":{"$error":"#REF!"}},800001965,"http://www.xbrl.org/scheme/companyName",null,{"$f":"Periodos!$C$4","v":"2017-12-31"},{"$f":"#REF!","v":{"$error":"#REF!"}},{"$f":"#REF!","v":{"$error":"#REF!"}}]
[{"$error":"#REF!"},null,{"$f":"#REF!","v":{"$error":"#REF!"}},{"$f":"#REF!","v":{"$error":"#REF!"}},null,null,{"$f":"#REF!","v":{"$error":"#REF!"}},800001965,"http://www.xbrl.org/scheme/companyName",null,{"$f":"Periodos!$C$4","v":"2017-12-31"},{"$f":"#REF!","v":{"$error":"#REF!"}},{"$f":"#REF!","v":{"$error":"#REF!"}}]
[{"$error":"#REF!"},null,{"$f":"#REF!","v":{"$error":"#REF!"}},{"$f":"#REF!","v":{"$error":"#REF!"}},null,null,{"$f":"#REF!","v":{"$error":"#REF!"}},800001965,"http://www.xbrl.org/scheme/companyName",null,{"$f":"Periodos!$C$4","v":"2017-12-31"},{"$f":"#REF!","v":{"$error":"#REF!"}},{"$f":"#REF!","v":{"$error":"#REF!"}}]
[{"$error":"#REF!"},null,{"$f":"#REF!","v":{"$error":"#REF!"}},{"$f":"#REF!","v":{"$error":"#REF!"}},0,"peso",{"$f":"#REF!","v":{"$error":"#REF!"}},800001965,"http://www.xbrl.org/scheme/companyName",null,{"$f":"Periodos!$C$4","v":"2017-12-31"},{"$f":"#REF!","v":{"$error":"#REF!"}},{"$f":"#REF!","v":{"$error":"#REF!"}}]
["/*",null,"--33--"]
[{"$error":"#REF!"},null,{"$f":"#REF!","v":{"$error":"#REF!"}},{"$f":"#REF!","v":{"$error":"#REF!"}},null,null,{"$f":"#REF!","v":{"$error":"#REF!"}},800001965,"http://www.xbrl.org/scheme/companyName",null,{"$f":"Periodos!$C$4","v":"2017-12-31"},{"$f":"#REF!","v":{"$error":"#REF!"}},{"$f":"#REF!","v":{"$error":"#REF!"}}]
[{"$error":"#REF!"},null,{"$f":"#REF!","v":{"$error":"#REF!"}},{"$f":"#REF!","v":{"$error":"#REF!"}},null,null,{"$f":"#REF!","v":{"$error":"#REF!"}},800001965,"http://www.xbrl.org/scheme/companyName",null,{"$f":"Periodos!$C$4","v":"2017-12-31"},{"$f":"#REF!","v":{"$error":"#REF!"}},{"$f":"#REF!","v":{"$error":"#REF!"}}]
[{"$error":"#REF!"},null,{"$f":"#REF!","v":{"$error":"#REF!"}},{"$f":"#REF!","v":{"$error":"#REF!"}},null,null,{"$f":"#REF!","v":{"$error":"#REF!"}},800001965,"http://www.xbrl.org/scheme/companyName",null,{"$f":"Periodos!$C$4","v":"2017-12-31"},{"$f":"#REF!","v":{"$error":"#REF!"}},{"$f":"#REF!","v":{"$error":"#REF!"}}]
[{"$error":"#REF!"},null,{"$f":"#REF!","v":{"$error":"#REF!"}},{"$f":"#REF!","v":{"$error":"#REF!"}},null,null,{"$f":"#REF!","v":{"$error":"#REF!"}},800001965,"http://www.xbrl.org/scheme/companyName",null,{"$f":"Periodos!$C$4","v":"2017-12-31"},{"$f":"#REF!","v":{"$error":"#REF!"}},{"$f":"#REF!","v":{"$error":"#REF!"}}]
[{"$error":"#REF!"},null,{"$f":"#REF!","v":{"$error":"#REF!"}},{"$f":"#REF!","v":{"$error":"#REF!"}},null,null,{"$f":"#REF!","v":{"$error":"#REF!"}},800001965,"http://www.xbrl.org/scheme/companyName",null,{"$f":"Periodos!$C$4","v":"2017-12-31"},{"$f":"#REF!","v":{"$error":"#REF!"}},{"$f":"#REF!","v":{"$error":"#REF!"}}]
[{"$error":"#REF!"},null,{"$f":"#REF!","v":{"$error":"#REF!"}},{"$f":"#REF!","v":{"$error":"#REF!"}},null,null,{"$f":"#REF!","v":{"$error":"#REF!"}},800001965,"http://www.xbrl.org/scheme/companyName",null,{"$f":"Periodos!$C$4","v":"2017-12-31"},{"$f":"#REF!","v":{"$error":"#REF!"}},{"$f":"#REF!","v":{"$error":"#REF!"}}]
[{"$error":"#REF!"},null,{"$f":"#REF!","v":{"$error":"#REF!"}},{"$f":"#REF!","v":{"$error":"#REF!"}},null,null,{"$f":"#REF!","v":{"$error":"#REF!"}},800001965,"http://www.xbrl.org/scheme/companyName",null,{"$f":"Periodos!$C$4","v":"2017-12-31"},{"$f":"#REF!","v":{"$error":"#REF!"}},{"$f":"#REF!","v":{"$error":"#REF!"}}]
[{"$error":"#REF!"},null,{"$f":"#REF!","v":{"$error":"#REF!"}},{"$f":"#REF!","v":{"$error":"#REF!"}},null,null,{"$f":"#REF!","v":{"$error":"#REF!"}},800001965,"http://www.xbrl.org/scheme/companyName",null,{"$f":"Periodos!$C$4","v":"2017-12-31"},{"$f":"#REF!","v":{"$error":"#REF!"}},{"$f":"#REF!","v":{"$error":"#REF!"}}]
[{"$error":"#REF!"},null,{"$f":"#REF!","v":{"$error":"#REF!"}},{"$f":"#REF!","v":{"$error":"#REF!"}},null,null,{"$f":"#REF!","v":{"$error":"#REF!"}},800001965,"http://www.xbrl.org/scheme/companyName",null,{"$f":"Periodos!$C$4","v":"2017-12-31"},{"$f":"#REF!","v":{"$error":"#REF!"}},{"$f":"#REF!","v":{"$error":"#REF!"}}]
[{"$error":"#REF!"},null,{"$f":"#REF!","v":{"$error":"#REF!"}},{"$f":"#REF!","v":{"$error":"#REF!"}},null,null,{"$f":"#REF!","v":{"$error":"#REF!"}},800001965,"http://www.xbrl.org/scheme/companyName",null,{"$f":"Periodos!$C$4","v":"2017-12-31"},{"$f":"#REF!","v":{"$error":"#REF!"}},{"$f":"#REF!","v":{"$error":"#REF!"}}]
[{"$error":"#REF!"},null,{"$f":"#REF!","v":{"$error":"#REF!"}},{"$f":"#REF!","v":{"$error":"#REF!"}},null,null,{"$f":"#REF!","v":{"$error":"#REF!"}},800001965,"http://www.xbrl.org/scheme/companyName",null,{"$f":"Periodos!$C$4","v":"2017-12-31"},{"$f":"#REF!","v":{"$error":"#REF!"}},{"$f":"#REF!","v":{"$error":"#REF!"}}]
[{"$error":"#REF!"},null,{"$f":"#REF!","v":{"$error":"#REF!"}},{"$f":"#REF!","v":{"$error":"#REF!"}},0,"peso",{"$f":"#REF!","v":{"$error":"#REF!"}},800001965,"http://www.xbrl.org/scheme/companyName",null,{"$f":"Periodos!$C$4","v":"2017-12-31"},{"$f":"#REF!","v":{"$error":"#REF!"}},{"$f":"#REF!","v":{"$error":"#REF!"}}]
["/*",null,"--34--"]
[{"$error":"#REF!"},null,{"$f":"#REF!","v":{"$error":"#REF!"}},{"$f":"#REF!","v":{"$error":"#REF!"}},null,null,{"$f":"#REF!","v":{"$error":"#REF!"}},800001965,"http://www.xbrl.org/scheme/companyName",null,{"$f":"Periodos!$C$4","v":"2017-12-31"},{"$f":"#REF!","v":{"$error":"#REF!"}},{"$f":"#REF!","v":{"$error":"#REF!"}}]
[{"$error":"#REF!"},null,{"$f":"#REF!","v":{"$error":"#REF!"}},{"$f":"#REF!","v":{"$error":"#REF!"}},null,null,{"$f":"#REF!","v":{"$error":"#REF!"}},800001965,"http://www.xbrl.org/scheme/companyName",null,{"$f":"Periodos!$C$4","v":"2017-12-31"},{"$f":"#REF!","v":{"$error":"#REF!"}},{"$f":"#REF!","v":{"$error":"#REF!"}}]
[{"$error":"#REF!"},null,{"$f":"#REF!","v":{"$error":"#REF!"}},{"$f":"#REF!","v":{"$error":"#REF!"}},null,null,{"$f":"#REF!","v":{"$error":"#REF!"}},800001965,"http://www.xbrl.org/scheme/companyName",null,{"$f":"Periodos!$C$4","v":"2017-12-31"},{"$f":"#REF!","v":{"$error":"#REF!"}},{"$f":"#REF!","v":{"$error":"#REF!"}}]
[{"$error":"#REF!"},null,{"$f":"#REF!","v":{"$error":"#REF!"}},{"$f":"#REF!","v":{"$error":"#REF!"}},null,null,{"$f":"#REF!","v":{"$error":"#REF!"}},800001965,"http://www.xbrl.org/scheme/companyName",null,{"$f":"Periodos!$C$4","v":"2017-12-31"},{"$f":"#REF!","v":{"$error":"#REF!"}},{"$f":"#REF!","v":{"$error":"#REF!"}}]
[{"$error":"#REF!"},null,{"$f":"#REF!","v":{"$error":"#REF!"}},{"$f":"#REF!","v":{"$error":"#REF!"}},null,null,{"$f":"#REF!","v":{"$error":"#REF!"}},800001965,"http://www.xbrl.org/scheme/companyName",null,{"$f":"Periodos!$C$4","v":"2017-12-31"},{"$f":"#REF!","v":{"$error":"#REF!"}},{"$f":"#REF!","v":{"$error":"#REF!"}}]
[{"$error":"#REF!"},null,{"$f":"#REF!","v":{"$error":"#REF!"}},{"$f":"#REF!","v":{"$error":"#REF!"}},null,null,{"$f":"#REF!","v":{"$error":"#REF!"}},800001965,"http://www.xbrl.org/scheme/companyName",null,{"$f":"Periodos!$C$4","v":"2017-12-31"},{"$f":"#REF!","v":{"$error":"#REF!"}},{"$f":"#REF!","v":{"$error":"#REF!"}}]
[{"$error":"#REF!"},null,{"$f":"#REF!","v":{"$error":"#REF!"}},{"$f":"#REF!","v":{"$error":"#REF!"}},null,null,{"$f":"#REF!","v":{"$error":"#REF!"}},800001965,"http://www.xbrl.org/scheme/companyName",null,{"$f":"Periodos!$C$4","v":"2017-12-31"},{"$f":"#REF!","v":{"$error":"#REF!"}},{"$f":"#REF!","v":{"$error":"#REF!"}}]
[{"$error":"#REF!"},null,{"$f":"#REF!","v":{"$error":"#REF!"}},{"$f":"#REF!","v":{"$error":"#REF!"}},null,null,{"$f":"#REF!","v":{"$error":"#REF!"}},800001965,"http://www.xbrl.org/scheme/companyName",null,{"$f":"Periodos!$C$4","v":"2017-12-31"},{"$f":"#REF!","v":{"$error":"#REF!"}},{"$f":"#REF!","v":{"$error":"#REF!"}}]
[{"$error":"#REF!"},null,{"$f":"#REF!","v":{"$error":"#REF!"}},{"$f":"#REF!","v":{"$error":"#REF!"}},null,null,{"$f":"#REF!","v":{"$error":"#REF!"}},800001965,"http://www.xbrl.org/scheme/companyName",null,{"$f":"Periodos!$C$4","v":"2017-12-31"},{"$f":"#REF!","v":{"$error":"#REF!"}},{"$f":"#REF!","v":{"$error":"#REF!"}}]
[{"$error":"#REF!"},null,{"$f":"#REF!","v":{"$error":"#REF!"}},{"$f":"#REF!","v":{"$error":"#REF!"}},null,null,{"$f":"#REF!","v":{"$error":"#REF!"}},800001965,"http://www.xbrl.org/scheme/companyName",null,{"$f":"Periodos!$C$4","v":"2017-12-31"},{"$f":"#REF!","v":{"$error":"#REF!"}},{"$f":"#REF!","v":{"$error":"#REF!"}}]
[{"$error":"#REF!"},null,{"$f":"#REF!","v":{"$error":"#REF!"}},{"$f":"#REF!","v":{"$error":"#REF!"}},null,null,{"$f":"#REF!","v":{"$error":"#REF!"}},800001965,"http://www.xbrl.org/scheme/companyName",null,{"$f":"Periodos!$C$4","v":"2017-12-31"},{"$f":"#REF!","v":{"$error":"#REF!"}},{"$f":"#REF!","v":{"$error":"#REF!"}}]
[{"$error":"#REF!"},null,{"$f":"#REF!","v":{"$error":"#REF!"}},{"$f":"#REF!","v":{"$error":"#REF!"}},0,"peso",{"$f":"#REF!","v":{"$error":"#REF!"}},800001965,"http://www.xbrl.org/scheme/companyName",null,{"$f":"Periodos!$C$4","v":"2017-12-31"},{"$f":"#REF!","v":{"$error":"#REF!"}},{"$f":"#REF!","v":{"$error":"#REF!"}}]
["/*",null,"--35--"]
[{"$error":"#REF!"},null,{"$f":"#REF!","v":{"$error":"#REF!"}},{"$f":"#REF!","v":{"$error":"#REF!"}},null,null,{"$f":"#REF!","v":{"$error":"#REF!"}},800001965,"http://www.xbrl.org/scheme/companyName",null,{"$f":"Periodos!$C$4","v":"2017-12-31"},{"$f":"#REF!","v":{"$error":"#REF!"}},{"$f":"#REF!","v":{"$error":"#REF!"}}]
[{"$error":"#REF!"},null,{"$f":"#REF!","v":{"$error":"#REF!"}},{"$f":"#REF!","v":{"$error":"#REF!"}},null,null,{"$f":"#REF!","v":{"$error":"#REF!"}},800001965,"http://www.xbrl.org/scheme/companyName",null,{"$f":"Periodos!$C$4","v":"2017-12-31"},{"$f":"#REF!","v":{"$error":"#REF!"}},{"$f":"#REF!","v":{"$error":"#REF!"}}]
[{"$error":"#REF!"},null,{"$f":"#REF!","v":{"$error":"#REF!"}},{"$f":"#REF!","v":{"$error":"#REF!"}},null,null,{"$f":"#REF!","v":{"$error":"#REF!"}},800001965,"http://www.xbrl.org/scheme/companyName",null,{"$f":"Periodos!$C$4","v":"2017-12-31"},{"$f":"#REF!","v":{"$error":"#REF!"}},{"$f":"#REF!","v":{"$error":"#REF!"}}]
[{"$error":"#REF!"},null,{"$f":"#REF!","v":{"$error":"#REF!"}},{"$f":"#REF!","v":{"$error":"#REF!"}},null,null,{"$f":"#REF!","v":{"$error":"#REF!"}},800001965,"http://www.xbrl.org/scheme/companyName",null,{"$f":"Periodos!$C$4","v":"2017-12-31"},{"$f":"#REF!","v":{"$error":"#REF!"}},{"$f":"#REF!","v":{"$error":"#REF!"}}]
[{"$error":"#REF!"},null,{"$f":"#REF!","v":{"$error":"#REF!"}},{"$f":"#REF!","v":{"$error":"#REF!"}},null,null,{"$f":"#REF!","v":{"$error":"#REF!"}},800001965,"http://www.xbrl.org/scheme/companyName",null,{"$f":"Periodos!$C$4","v":"2017-12-31"},{"$f":"#REF!","v":{"$error":"#REF!"}},{"$f":"#REF!","v":{"$error":"#REF!"}}]
[{"$error":"#REF!"},null,{"$f":"#REF!","v":{"$error":"#REF!"}},{"$f":"#REF!","v":{"$error":"#REF!"}},null,null,{"$f":"#REF!","v":{"$error":"#REF!"}},800001965,"http://www.xbrl.org/scheme/companyName",null,{"$f":"Periodos!$C$4","v":"2017-12-31"},{"$f":"#REF!","v":{"$error":"#REF!"}},{"$f":"#REF!","v":{"$error":"#REF!"}}]
[{"$error":"#REF!"},null,{"$f":"#REF!","v":{"$error":"#REF!"}},{"$f":"#REF!","v":{"$error":"#REF!"}},null,null,{"$f":"#REF!","v":{"$error":"#REF!"}},800001965,"http://www.xbrl.org/scheme/companyName",null,{"$f":"Periodos!$C$4","v":"2017-12-31"},{"$f":"#REF!","v":{"$error":"#REF!"}},{"$f":"#REF!","v":{"$error":"#REF!"}}]
[{"$error":"#REF!"},null,{"$f":"#REF!","v":{"$error":"#REF!"}},{"$f":"#REF!","v":{"$error":"#REF!"}},null,null,{"$f":"#REF!","v":{"$error":"#REF!"}},800001965,"http://www.xbrl.org/scheme/companyName",null,{"$f":"Periodos!$C$4","v":"2017-12-31"},{"$f":"#REF!","v":{"$error":"#REF!"}},{"$f":"#REF!","v":{"$error":"#REF!"}}]
[{"$error":"#REF!"},null,{"$f":"#REF!","v":{"$error":"#REF!"}},{"$f":"#REF!","v":{"$error":"#REF!"}},null,null,{"$f":"#REF!","v":{"$error":"#REF!"}},800001965,"http://www.xbrl.org/scheme/companyName",null,{"$f":"Periodos!$C$4","v":"2017-12-31"},{"$f":"#REF!","v":{"$error":"#REF!"}},{"$f":"#REF!","v":{"$error":"#REF!"}}]
[{"$error":"#REF!"},null,{"$f":"#REF!","v":{"$error":"#REF!"}},{"$f":"#REF!","v":{"$error":"#REF!"}},null,null,{"$f":"#REF!","v":{"$error":"#REF!"}},800001965,"http://www.xbrl.org/scheme/companyName",null,{"$f":"Periodos!$C$4","v":"2017-12-31"},{"$f":"#REF!","v":{"$error":"#REF!"}},{"$f":"#REF!","v":{"$error":"#REF!"}}]
[{"$error":"#REF!"},null,{"$f":"#REF!","v":{"$error":"#REF!"}},{"$f":"#REF!","v":{"$error":"#REF!"}},null,null,{"$f":"#REF!","v":{"$error":"#REF!"}},800001965,"http://www.xbrl.org/scheme/companyName",null,{"$f":"Periodos!$C$4","v":"2017-12-31"},{"$f":"#REF!","v":{"$error":"#REF!"}},{"$f":"#REF!","v":{"$error":"#REF!"}}]
[{"$error":"#REF!"},null,{"$f":"#REF!","v":{"$error":"#REF!"}},{"$f":"#REF!","v":{"$error":"#REF!"}},0,"peso",{"$f":"#REF!","v":{"$error":"#REF!"}},800001965,"http://www.xbrl.org/scheme/companyName",null,{"$f":"Periodos!$C$4","v":"2017-12-31"},{"$f":"#REF!","v":{"$error":"#REF!"}},{"$f":"#REF!","v":{"$error":"#REF!"}}]
["/*",null,"--36--"]
[{"$error":"#REF!"},null,{"$f":"#REF!","v":{"$error":"#REF!"}},{"$f":"#REF!","v":{"$error":"#REF!"}},null,null,{"$f":"#REF!","v":{"$error":"#REF!"}},800001965,"http://www.xbrl.org/scheme/companyName",null,{"$f":"Periodos!$C$4","v":"2017-12-31"},{"$f":"#REF!","v":{"$error":"#REF!"}},{"$f":"#REF!","v":{"$error":"#REF!"}}]
[{"$error":"#REF!"},null,{"$f":"#REF!","v":{"$error":"#REF!"}},{"$f":"#REF!","v":{"$error":"#REF!"}},null,null,{"$f":"#REF!","v":{"$error":"#REF!"}},800001965,"http://www.xbrl.org/scheme/companyName",null,{"$f":"Periodos!$C$4","v":"2017-12-31"},{"$f":"#REF!","v":{"$error":"#REF!"}},{"$f":"#REF!","v":{"$error":"#REF!"}}]
[{"$error":"#REF!"},null,{"$f":"#REF!","v":{"$error":"#REF!"}},{"$f":"#REF!","v":{"$error":"#REF!"}},null,null,{"$f":"#REF!","v":{"$error":"#REF!"}},800001965,"http://www.xbrl.org/scheme/companyName",null,{"$f":"Periodos!$C$4","v":"2017-12-31"},{"$f":"#REF!","v":{"$error":"#REF!"}},{"$f":"#REF!","v":{"$error":"#REF!"}}]
[{"$error":"#REF!"},null,{"$f":"#REF!","v":{"$error":"#REF!"}},{"$f":"#REF!","v":{"$error":"#REF!"}},null,null,{"$f":"#REF!","v":{"$error":"#REF!"}},800001965,"http://www.xbrl.org/scheme/companyName",null,{"$f":"Periodos!$C$4","v":"2017-12-31"},{"$f":"#REF!","v":{"$error":"#REF!"}},{"$f":"#REF!","v":{"$error":"#REF!"}}]
[{"$error":"#REF!"},null,{"$f":"#REF!","v":{"$error":"#REF!"}},{"$f":"#REF!","v":{"$error":"#REF!"}},null,null,{"$f":"#REF!","v":{"$error":"#REF!"}},800001965,"http://www.xbrl.org/scheme/companyName",null,{"$f":"Periodos!$C$4","v":"2017-12-31"},{"$f":"#REF!","v":{"$error":"#REF!"}},{"$f":"#REF!","v":{"$error":"#REF!"}}]
[{"$error":"#REF!"},null,{"$f":"#REF!","v":{"$error":"#REF!"}},{"$f":"#REF!","v":{"$error":"#REF!"}},null,null,{"$f":"#REF!","v":{"$error":"#REF!"}},800001965,"http://www.xbrl.org/scheme/companyName",null,{"$f":"Periodos!$C$4","v":"2017-12-31"},{"$f":"#REF!","v":{"$error":"#REF!"}},{"$f":"#REF!","v":{"$error":"#REF!"}}]
[{"$error":"#REF!"},null,{"$f":"#REF!","v":{"$error":"#REF!"}},{"$f":"#REF!","v":{"$error":"#REF!"}},null,null,{"$f":"#REF!","v":{"$error":"#REF!"}},800001965,"http://www.xbrl.org/scheme/companyName",null,{"$f":"Periodos!$C$4","v":"2017-12-31"},{"$f":"#REF!","v":{"$error":"#REF!"}},{"$f":"#REF!","v":{"$error":"#REF!"}}]
[{"$error":"#REF!"},null,{"$f":"#REF!","v":{"$error":"#REF!"}},{"$f":"#REF!","v":{"$error":"#REF!"}},null,null,{"$f":"#REF!","v":{"$error":"#REF!"}},800001965,"http://www.xbrl.org/scheme/companyName",null,{"$f":"Periodos!$C$4","v":"2017-12-31"},{"$f":"#REF!","v":{"$error":"#REF!"}},{"$f":"#REF!","v":{"$error":"#REF!"}}]
[{"$error":"#REF!"},null,{"$f":"#REF!","v":{"$error":"#REF!"}},{"$f":"#REF!","v":{"$error":"#REF!"}},null,null,{"$f":"#REF!","v":{"$error":"#REF!"}},800001965,"http://www.xbrl.org/scheme/companyName",null,{"$f":"Periodos!$C$4","v":"2017-12-31"},{"$f":"#REF!","v":{"$error":"#REF!"}},{"$f":"#REF!","v":{"$error":"#REF!"}}]
[{"$error":"#REF!"},null,{"$f":"#REF!","v":{"$error":"#REF!"}},{"$f":"#REF!","v":{"$error":"#REF!"}},null,null,{"$f":"#REF!","v":{"$error":"#REF!"}},800001965,"http://www.xbrl.org/scheme/companyName",null,{"$f":"Periodos!$C$4","v":"2017-12-31"},{"$f":"#REF!","v":{"$error":"#REF!"}},{"$f":"#REF!","v":{"$error":"#REF!"}}]
[{"$error":"#REF!"},null,{"$f":"#REF!","v":{"$error":"#REF!"}},{"$f":"#REF!","v":{"$error":"#REF!"}},null,null,{"$f":"#REF!","v":{"$error":"#REF!"}},800001965,"http://www.xbrl.org/scheme/companyName",null,{"$f":"Periodos!$C$4","v":"2017-12-31"},{"$f":"#REF!","v":{"$error":"#REF!"}},{"$f":"#REF!","v":{"$error":"#REF!"}}]
[{"$error":"#REF!"},null,{"$f":"#REF!","v":{"$error":"#REF!"}},{"$f":"#REF!","v":{"$error":"#REF!"}},0,"peso",{"$f":"#REF!","v":{"$error":"#REF!"}},800001965,"http://www.xbrl.org/scheme/companyName",null,{"$f":"Periodos!$C$4","v":"2017-12-31"},{"$f":"#REF!","v":{"$error":"#REF!"}},{"$f":"#REF!","v":{"$error":"#REF!"}}]
["/*",null,"--37--"]
[{"$error":"#REF!"},null,{"$f":"#REF!","v":{"$error":"#REF!"}},{"$f":"#REF!","v":{"$error":"#REF!"}},null,null,{"$f":"#REF!","v":{"$error":"#REF!"}},800001965,"http://www.xbrl.org/scheme/companyName",null,{"$f":"Periodos!$C$4","v":"2017-12-31"},{"$f":"#REF!","v":{"$error":"#REF!"}},{"$f":"#REF!","v":{"$error":"#REF!"}}]
[{"$error":"#REF!"},null,{"$f":"#REF!","v":{"$error":"#REF!"}},{"$f":"#REF!","v":{"$error":"#REF!"}},null,null,{"$f":"#REF!","v":{"$error":"#REF!"}},800001965,"http://www.xbrl.org/scheme/companyName",null,{"$f":"Periodos!$C$4","v":"2017-12-31"},{"$f":"#REF!","v":{"$error":"#REF!"}},{"$f":"#REF!","v":{"$error":"#REF!"}}]
[{"$error":"#REF!"},null,{"$f":"#REF!","v":{"$error":"#REF!"}},{"$f":"#REF!","v":{"$error":"#REF!"}},null,null,{"$f":"#REF!","v":{"$error":"#REF!"}},800001965,"http://www.xbrl.org/scheme/companyName",null,{"$f":"Periodos!$C$4","v":"2017-12-31"},{"$f":"#REF!","v":{"$error":"#REF!"}},{"$f":"#REF!","v":{"$error":"#REF!"}}]
[{"$error":"#REF!"},null,{"$f":"#REF!","v":{"$error":"#REF!"}},{"$f":"#REF!","v":{"$error":"#REF!"}},null,null,{"$f":"#REF!","v":{"$error":"#REF!"}},800001965,"http://www.xbrl.org/scheme/companyName",null,{"$f":"Periodos!$C$4","v":"2017-12-31"},{"$f":"#REF!","v":{"$error":"#REF!"}},{"$f":"#REF!","v":{"$error":"#REF!"}}]
[{"$error":"#REF!"},null,{"$f":"#REF!","v":{"$error":"#REF!"}},{"$f":"#REF!","v":{"$error":"#REF!"}},null,null,{"$f":"#REF!","v":{"$error":"#REF!"}},800001965,"http://www.xbrl.org/scheme/companyName",null,{"$f":"Periodos!$C$4","v":"2017-12-31"},{"$f":"#REF!","v":{"$error":"#REF!"}},{"$f":"#REF!","v":{"$error":"#REF!"}}]
[{"$error":"#REF!"},null,{"$f":"#REF!","v":{"$error":"#REF!"}},{"$f":"#REF!","v":{"$error":"#REF!"}},null,null,{"$f":"#REF!","v":{"$error":"#REF!"}},800001965,"http://www.xbrl.org/scheme/companyName",null,{"$f":"Periodos!$C$4","v":"2017-12-31"},{"$f":"#REF!","v":{"$error":"#REF!"}},{"$f":"#REF!","v":{"$error":"#REF!"}}]
[{"$error":"#REF!"},null,{"$f":"#REF!","v":{"$error":"#REF!"}},{"$f":"#REF!","v":{"$error":"#REF!"}},null,null,{"$f":"#REF!","v":{"$error":"#REF!"}},800001965,"http://www.xbrl.org/scheme/companyName",null,{"$f":"Periodos!$C$4","v":"2017-12-31"},{"$f":"#REF!","v":{"$error":"#REF!"}},{"$f":"#REF!","v":{"$error":"#REF!"}}]
[{"$f":"IF(G2145=\"\",\"/*\",\"\")","v":{"$error":"#REF!"}},null,{"$f":"#REF!","v":{"$error":"#REF!"}},{"$f":"#REF!","v":{"$error":"#REF!"}},null,null,{"$f":"#REF!","v":{"$error":"#REF!"}},800001965,"http://www.xbrl.org/scheme/companyName",null,{"$f":"Periodos!$C$4","v":"2017-12-31"},{"$f":"#REF!","v":{"$error":"#REF!"}},{"$f":"#REF!","v":{"$error":"#REF!"}}]
[{"$error":"#REF!"},null,{"$f":"#REF!","v":{"$error":"#REF!"}},{"$f":"#REF!","v":{"$error":"#REF!"}},null,null,{"$f":"#REF!","v":{"$error":"#REF!"}},800001965,"http://www.xbrl.org/scheme/companyName",null,{"$f":"Periodos!$C$4","v":"2017-12-31"},{"$f":"#REF!","v":{"$error":"#REF!"}},{"$f":"#REF!","v":{"$error":"#REF!"}}]
[{"$error":"#REF!"},null,{"$f":"#REF!","v":{"$error":"#REF!"}},{"$f":"#REF!","v":{"$error":"#REF!"}},null,null,{"$f":"#REF!","v":{"$error":"#REF!"}},800001965,"http://www.xbrl.org/scheme/companyName",null,{"$f":"Periodos!$C$4","v":"2017-12-31"},{"$f":"#REF!","v":{"$error":"#REF!"}},{"$f":"#REF!","v":{"$error":"#REF!"}}]
[{"$error":"#REF!"},null,{"$f":"#REF!","v":{"$error":"#REF!"}},{"$f":"#REF!","v":{"$error":"#REF!"}},null,null,{"$f":"#REF!","v":{"$error":"#REF!"}},800001965,"http://www.xbrl.org/scheme/companyName",null,{"$f":"Periodos!$C$4","v":"2017-12-31"},{"$f":"#REF!","v":{"$error":"#REF!"}},{"$f":"#REF!","v":{"$error":"#REF!"}}]
[{"$error":"#REF!"},null,{"$f":"#REF!","v":{"$error":"#REF!"}},{"$f":"#REF!","v":{"$error":"#REF!"}},0,"peso",{"$f":"#REF!","v":{"$error":"#REF!"}},800001965,"http://www.xbrl.org/scheme/companyName",null,{"$f":"Periodos!$C$4","v":"2017-12-31"},{"$f":"#REF!","v":{"$error":"#REF!"}},{"$f":"#REF!","v":{"$error":"#REF!"}}]
["/*",null,"--38--"]
[{"$error":"#REF!"},null,{"$f":"#REF!","v":{"$error":"#REF!"}},{"$f":"#REF!","v":{"$error":"#REF!"}},null,null,{"$f":"#REF!","v":{"$error":"#REF!"}},800001965,"http://www.xbrl.org/scheme/companyName",null,{"$f":"Periodos!$C$4","v":"2017-12-31"},{"$f":"#REF!","v":{"$error":"#REF!"}},{"$f":"#REF!","v":{"$error":"#REF!"}}]
[{"$error":"#REF!"},null,{"$f":"#REF!","v":{"$error":"#REF!"}},{"$f":"#REF!","v":{"$error":"#REF!"}},null,null,{"$f":"#REF!","v":{"$error":"#REF!"}},800001965,"http://www.xbrl.org/scheme/companyName",null,{"$f":"Periodos!$C$4","v":"2017-12-31"},{"$f":"#REF!","v":{"$error":"#REF!"}},{"$f":"#REF!","v":{"$error":"#REF!"}}]
[{"$error":"#REF!"},null,{"$f":"#REF!","v":{"$error":"#REF!"}},{"$f":"#REF!","v":{"$error":"#REF!"}},null,null,{"$f":"#REF!","v":{"$error":"#REF!"}},800001965,"http://www.xbrl.org/scheme/companyName",null,{"$f":"Periodos!$C$4","v":"2017-12-31"},{"$f":"#REF!","v":{"$error":"#REF!"}},{"$f":"#REF!","v":{"$error":"#REF!"}}]
[{"$error":"#REF!"},null,{"$f":"#REF!","v":{"$error":"#REF!"}},{"$f":"#REF!","v":{"$error":"#REF!"}},null,null,{"$f":"#REF!","v":{"$error":"#REF!"}},800001965,"http://www.xbrl.org/scheme/companyName",null,{"$f":"Periodos!$C$4","v":"2017-12-31"},{"$f":"#REF!","v":{"$error":"#REF!"}},{"$f":"#REF!","v":{"$error":"#REF!"}}]
[{"$error":"#REF!"},null,{"$f":"#REF!","v":{"$error":"#REF!"}},{"$f":"#REF!","v":{"$error":"#REF!"}},null,null,{"$f":"#REF!","v":{"$error":"#REF!"}},800001965,"http://www.xbrl.org/scheme/companyName",null,{"$f":"Periodos!$C$4","v":"2017-12-31"},{"$f":"#REF!","v":{"$error":"#REF!"}},{"$f":"#REF!","v":{"$error":"#REF!"}}]
[{"$error":"#REF!"},null,{"$f":"#REF!","v":{"$error":"#REF!"}},{"$f":"#REF!","v":{"$error":"#REF!"}},null,null,{"$f":"#REF!","v":{"$error":"#REF!"}},800001965,"http://www.xbrl.org/scheme/companyName",null,{"$f":"Periodos!$C$4","v":"2017-12-31"},{"$f":"#REF!","v":{"$error":"#REF!"}},{"$f":"#REF!","v":{"$error":"#REF!"}}]
[{"$error":"#REF!"},null,{"$f":"#REF!","v":{"$error":"#REF!"}},{"$f":"#REF!","v":{"$error":"#REF!"}},null,null,{"$f":"#REF!","v":{"$error":"#REF!"}},800001965,"http://www.xbrl.org/scheme/companyName",null,{"$f":"Periodos!$C$4","v":"2017-12-31"},{"$f":"#REF!","v":{"$error":"#REF!"}},{"$f":"#REF!","v":{"$error":"#REF!"}}]
[{"$error":"#REF!"},null,{"$f":"#REF!","v":{"$error":"#REF!"}},{"$f":"#REF!","v":{"$error":"#REF!"}},null,null,{"$f":"#REF!","v":{"$error":"#REF!"}},800001965,"http://www.xbrl.org/scheme/companyName",null,{"$f":"Periodos!$C$4","v":"2017-12-31"},{"$f":"#REF!","v":{"$error":"#REF!"}},{"$f":"#REF!","v":{"$error":"#REF!"}}]
[{"$error":"#REF!"},null,{"$f":"#REF!","v":{"$error":"#REF!"}},{"$f":"#REF!","v":{"$error":"#REF!"}},null,null,{"$f":"#REF!","v":{"$error":"#REF!"}},800001965,"http://www.xbrl.org/scheme/companyName",null,{"$f":"Periodos!$C$4","v":"2017-12-31"},{"$f":"#REF!","v":{"$error":"#REF!"}},{"$f":"#REF!","v":{"$error":"#REF!"}}]
[{"$error":"#REF!"},null,{"$f":"#REF!","v":{"$error":"#REF!"}},{"$f":"#REF!","v":{"$error":"#REF!"}},null,null,{"$f":"#REF!","v":{"$error":"#REF!"}},800001965,"http://www.xbrl.org/scheme/companyName",null,{"$f":"Periodos!$C$4","v":"2017-12-31"},{"$f":"#REF!","v":{"$error":"#REF!"}},{"$f":"#REF!","v":{"$error":"#REF!"}}]
[{"$error":"#REF!"},null,{"$f":"#REF!","v":{"$error":"#REF!"}},{"$f":"#REF!","v":{"$error":"#REF!"}},null,null,{"$f":"#REF!","v":{"$error":"#REF!"}},800001965,"http://www.xbrl.org/scheme/companyName",null,{"$f":"Periodos!$C$4","v":"2017-12-31"},{"$f":"#REF!","v":{"$error":"#REF!"}},{"$f":"#REF!","v":{"$error":"#REF!"}}]
[{"$error":"#REF!"},null,{"$f":"#REF!","v":{"$error":"#REF!"}},{"$f":"#REF!","v":{"$error":"#REF!"}},0,"peso",{"$f":"#REF!","v":{"$error":"#REF!"}},800001965,"http://www.xbrl.org/scheme/companyName",null,{"$f":"Periodos!$C$4","v":"2017-12-31"},{"$f":"#REF!","v":{"$error":"#REF!"}},{"$f":"#REF!","v":{"$error":"#REF!"}}]
["/*",null,"--39--"]
[{"$error":"#REF!"},null,{"$f":"#REF!","v":{"$error":"#REF!"}},{"$f":"#REF!","v":{"$error":"#REF!"}},null,null,{"$f":"#REF!","v":{"$error":"#REF!"}},800001965,"http://www.xbrl.org/scheme/companyName",null,{"$f":"Periodos!$C$4","v":"2017-12-31"},{"$f":"#REF!","v":{"$error":"#REF!"}},{"$f":"#REF!","v":{"$error":"#REF!"}}]
[{"$error":"#REF!"},null,{"$f":"#REF!","v":{"$error":"#REF!"}},{"$f":"#REF!","v":{"$error":"#REF!"}},null,null,{"$f":"#REF!","v":{"$error":"#REF!"}},800001965,"http://www.xbrl.org/scheme/companyName",null,{"$f":"Periodos!$C$4","v":"2017-12-31"},{"$f":"#REF!","v":{"$error":"#REF!"}},{"$f":"#REF!","v":{"$error":"#REF!"}}]
[{"$error":"#REF!"},null,{"$f":"#REF!","v":{"$error":"#REF!"}},{"$f":"#REF!","v":{"$error":"#REF!"}},null,null,{"$f":"#REF!","v":{"$error":"#REF!"}},800001965,"http://www.xbrl.org/scheme/companyName",null,{"$f":"Periodos!$C$4","v":"2017-12-31"},{"$f":"#REF!","v":{"$error":"#REF!"}},{"$f":"#REF!","v":{"$error":"#REF!"}}]
[{"$error":"#REF!"},null,{"$f":"#REF!","v":{"$error":"#REF!"}},{"$f":"#REF!","v":{"$error":"#REF!"}},null,null,{"$f":"#REF!","v":{"$error":"#REF!"}},800001965,"http://www.xbrl.org/scheme/companyName",null,{"$f":"Periodos!$C$4","v":"2017-12-31"},{"$f":"#REF!","v":{"$error":"#REF!"}},{"$f":"#REF!","v":{"$error":"#REF!"}}]
[{"$error":"#REF!"},null,{"$f":"#REF!","v":{"$error":"#REF!"}},{"$f":"#REF!","v":{"$error":"#REF!"}},null,null,{"$f":"#REF!","v":{"$error":"#REF!"}},800001965,"http://www.xbrl.org/scheme/companyName",null,{"$f":"Periodos!$C$4","v":"2017-12-31"},{"$f":"#REF!","v":{"$error":"#REF!"}},{"$f":"#REF!","v":{"$error":"#REF!"}}]
[{"$error":"#REF!"},null,{"$f":"#REF!","v":{"$error":"#REF!"}},{"$f":"#REF!","v":{"$error":"#REF!"}},null,null,{"$f":"#REF!","v":{"$error":"#REF!"}},800001965,"http://www.xbrl.org/scheme/companyName",null,{"$f":"Periodos!$C$4","v":"2017-12-31"},{"$f":"#REF!","v":{"$error":"#REF!"}},{"$f":"#REF!","v":{"$error":"#REF!"}}]
[{"$error":"#REF!"},null,{"$f":"#REF!","v":{"$error":"#REF!"}},{"$f":"#REF!","v":{"$error":"#REF!"}},null,null,{"$f":"#REF!","v":{"$error":"#REF!"}},800001965,"http://www.xbrl.org/scheme/companyName",null,{"$f":"Periodos!$C$4","v":"2017-12-31"},{"$f":"#REF!","v":{"$error":"#REF!"}},{"$f":"#REF!","v":{"$error":"#REF!"}}]
[{"$error":"#REF!"},null,{"$f":"#REF!","v":{"$error":"#REF!"}},{"$f":"#REF!","v":{"$error":"#REF!"}},null,null,{"$f":"#REF!","v":{"$error":"#REF!"}},800001965,"http://www.xbrl.org/scheme/companyName",null,{"$f":"Periodos!$C$4","v":"2017-12-31"},{"$f":"#REF!","v":{"$error":"#REF!"}},{"$f":"#REF!","v":{"$error":"#REF!"}}]
[{"$error":"#REF!"},null,{"$f":"#REF!","v":{"$error":"#REF!"}},{"$f":"#REF!","v":{"$error":"#REF!"}},null,null,{"$f":"#REF!","v":{"$error":"#REF!"}},800001965,"http://www.xbrl.org/scheme/companyName",null,{"$f":"Periodos!$C$4","v":"2017-12-31"},{"$f":"#REF!","v":{"$error":"#REF!"}},{"$f":"#REF!","v":{"$error":"#REF!"}}]
[{"$error":"#REF!"},null,{"$f":"#REF!","v":{"$error":"#REF!"}},{"$f":"#REF!","v":{"$error":"#REF!"}},null,null,{"$f":"#REF!","v":{"$error":"#REF!"}},800001965,"http://www.xbrl.org/scheme/companyName",null,{"$f":"Periodos!$C$4","v":"2017-12-31"},{"$f":"#REF!","v":{"$error":"#REF!"}},{"$f":"#REF!","v":{"$error":"#REF!"}}]
[{"$error":"#REF!"},null,{"$f":"#REF!","v":{"$error":"#REF!"}},{"$f":"#REF!","v":{"$error":"#REF!"}},null,null,{"$f":"#REF!","v":{"$error":"#REF!"}},800001965,"http://www.xbrl.org/scheme/companyName",null,{"$f":"Periodos!$C$4","v":"2017-12-31"},{"$f":"#REF!","v":{"$error":"#REF!"}},{"$f":"#REF!","v":{"$error":"#REF!"}}]
[{"$error":"#REF!"},null,{"$f":"#REF!","v":{"$error":"#REF!"}},{"$f":"#REF!","v":{"$error":"#REF!"}},0,"peso",{"$f":"#REF!","v":{"$error":"#REF!"}},800001965,"http://www.xbrl.org/scheme/companyName",null,{"$f":"Periodos!$C$4","v":"2017-12-31"},{"$f":"#REF!","v":{"$error":"#REF!"}},{"$f":"#REF!","v":{"$error":"#REF!"}}]
["/*",null,"--40--"]
[{"$error":"#REF!"},null,{"$f":"#REF!","v":{"$error":"#REF!"}},{"$f":"#REF!","v":{"$error":"#REF!"}},null,null,{"$f":"#REF!","v":{"$error":"#REF!"}},800001965,"http://www.xbrl.org/scheme/companyName",null,{"$f":"Periodos!$C$4","v":"2017-12-31"},{"$f":"#REF!","v":{"$error":"#REF!"}},{"$f":"#REF!","v":{"$error":"#REF!"}}]
[{"$error":"#REF!"},null,{"$f":"#REF!","v":{"$error":"#REF!"}},{"$f":"#REF!","v":{"$error":"#REF!"}},null,null,{"$f":"#REF!","v":{"$error":"#REF!"}},800001965,"http://www.xbrl.org/scheme/companyName",null,{"$f":"Periodos!$C$4","v":"2017-12-31"},{"$f":"#REF!","v":{"$error":"#REF!"}},{"$f":"#REF!","v":{"$error":"#REF!"}}]
[{"$error":"#REF!"},null,{"$f":"#REF!","v":{"$error":"#REF!"}},{"$f":"#REF!","v":{"$error":"#REF!"}},null,null,{"$f":"#REF!","v":{"$error":"#REF!"}},800001965,"http://www.xbrl.org/scheme/companyName",null,{"$f":"Periodos!$C$4","v":"2017-12-31"},{"$f":"#REF!","v":{"$error":"#REF!"}},{"$f":"#REF!","v":{"$error":"#REF!"}}]
[{"$error":"#REF!"},null,{"$f":"#REF!","v":{"$error":"#REF!"}},{"$f":"#REF!","v":{"$error":"#REF!"}},null,null,{"$f":"#REF!","v":{"$error":"#REF!"}},800001965,"http://www.xbrl.org/scheme/companyName",null,{"$f":"Periodos!$C$4","v":"2017-12-31"},{"$f":"#REF!","v":{"$error":"#REF!"}},{"$f":"#REF!","v":{"$error":"#REF!"}}]
[{"$error":"#REF!"},null,{"$f":"#REF!","v":{"$error":"#REF!"}},{"$f":"#REF!","v":{"$error":"#REF!"}},null,null,{"$f":"#REF!","v":{"$error":"#REF!"}},800001965,"http://www.xbrl.org/scheme/companyName",null,{"$f":"Periodos!$C$4","v":"2017-12-31"},{"$f":"#REF!","v":{"$error":"#REF!"}},{"$f":"#REF!","v":{"$error":"#REF!"}}]
[{"$error":"#REF!"},null,{"$f":"#REF!","v":{"$error":"#REF!"}},{"$f":"#REF!","v":{"$error":"#REF!"}},null,null,{"$f":"#REF!","v":{"$error":"#REF!"}},800001965,"http://www.xbrl.org/scheme/companyName",null,{"$f":"Periodos!$C$4","v":"2017-12-31"},{"$f":"#REF!","v":{"$error":"#REF!"}},{"$f":"#REF!","v":{"$error":"#REF!"}}]
[{"$error":"#REF!"},null,{"$f":"#REF!","v":{"$error":"#REF!"}},{"$f":"#REF!","v":{"$error":"#REF!"}},null,null,{"$f":"#REF!","v":{"$error":"#REF!"}},800001965,"http://www.xbrl.org/scheme/companyName",null,{"$f":"Periodos!$C$4","v":"2017-12-31"},{"$f":"#REF!","v":{"$error":"#REF!"}},{"$f":"#REF!","v":{"$error":"#REF!"}}]
[{"$error":"#REF!"},null,{"$f":"#REF!","v":{"$error":"#REF!"}},{"$f":"#REF!","v":{"$error":"#REF!"}},null,null,{"$f":"#REF!","v":{"$error":"#REF!"}},800001965,"http://www.xbrl.org/scheme/companyName",null,{"$f":"Periodos!$C$4","v":"2017-12-31"},{"$f":"#REF!","v":{"$error":"#REF!"}},{"$f":"#REF!","v":{"$error":"#REF!"}}]
[{"$error":"#REF!"},null,{"$f":"#REF!","v":{"$error":"#REF!"}},{"$f":"#REF!","v":{"$error":"#REF!"}},null,null,{"$f":"#REF!","v":{"$error":"#REF!"}},800001965,"http://www.xbrl.org/scheme/companyName",null,{"$f":"Periodos!$C$4","v":"2017-12-31"},{"$f":"#REF!","v":{"$error":"#REF!"}},{"$f":"#REF!","v":{"$error":"#REF!"}}]
[{"$error":"#REF!"},null,{"$f":"#REF!","v":{"$error":"#REF!"}},{"$f":"#REF!","v":{"$error":"#REF!"}},null,null,{"$f":"#REF!","v":{"$error":"#REF!"}},800001965,"http://www.xbrl.org/scheme/companyName",null,{"$f":"Periodos!$C$4","v":"2017-12-31"},{"$f":"#REF!","v":{"$error":"#REF!"}},{"$f":"#REF!","v":{"$error":"#REF!"}}]
[{"$error":"#REF!"},null,{"$f":"#REF!","v":{"$error":"#REF!"}},{"$f":"#REF!","v":{"$error":"#REF!"}},null,null,{"$f":"#REF!","v":{"$error":"#REF!"}},800001965,"http://www.xbrl.org/scheme/companyName",null,{"$f":"Periodos!$C$4","v":"2017-12-31"},{"$f":"#REF!","v":{"$error":"#REF!"}},{"$f":"#REF!","v":{"$error":"#REF!"}}]
[{"$error":"#REF!"},null,{"$f":"#REF!","v":{"$error":"#REF!"}},{"$f":"#REF!","v":{"$error":"#REF!"}},0,"peso",{"$f":"#REF!","v":{"$error":"#REF!"}},800001965,"http://www.xbrl.org/scheme/companyName",null,{"$f":"Periodos!$C$4","v":"2017-12-31"},{"$f":"#REF!","v":{"$error":"#REF!"}},{"$f":"#REF!","v":{"$error":"#REF!"}}]
["/*",null,"--41--"]
[{"$error":"#REF!"},null,{"$f":"#REF!","v":{"$error":"#REF!"}},{"$f":"#REF!","v":{"$error":"#REF!"}},null,null,{"$f":"#REF!","v":{"$error":"#REF!"}},800001965,"http://www.xbrl.org/scheme/companyName",null,{"$f":"Periodos!$C$4","v":"2017-12-31"},{"$f":"#REF!","v":{"$error":"#REF!"}},{"$f":"#REF!","v":{"$error":"#REF!"}}]
[{"$error":"#REF!"},null,{"$f":"#REF!","v":{"$error":"#REF!"}},{"$f":"#REF!","v":{"$error":"#REF!"}},null,null,{"$f":"#REF!","v":{"$error":"#REF!"}},800001965,"http://www.xbrl.org/scheme/companyName",null,{"$f":"Periodos!$C$4","v":"2017-12-31"},{"$f":"#REF!","v":{"$error":"#REF!"}},{"$f":"#REF!","v":{"$error":"#REF!"}}]
[{"$error":"#REF!"},null,{"$f":"#REF!","v":{"$error":"#REF!"}},{"$f":"#REF!","v":{"$error":"#REF!"}},null,null,{"$f":"#REF!","v":{"$error":"#REF!"}},800001965,"http://www.xbrl.org/scheme/companyName",null,{"$f":"Periodos!$C$4","v":"2017-12-31"},{"$f":"#REF!","v":{"$error":"#REF!"}},{"$f":"#REF!","v":{"$error":"#REF!"}}]
[{"$error":"#REF!"},null,{"$f":"#REF!","v":{"$error":"#REF!"}},{"$f":"#REF!","v":{"$error":"#REF!"}},null,null,{"$f":"#REF!","v":{"$error":"#REF!"}},800001965,"http://www.xbrl.org/scheme/companyName",null,{"$f":"Periodos!$C$4","v":"2017-12-31"},{"$f":"#REF!","v":{"$error":"#REF!"}},{"$f":"#REF!","v":{"$error":"#REF!"}}]
[{"$error":"#REF!"},null,{"$f":"#REF!","v":{"$error":"#REF!"}},{"$f":"#REF!","v":{"$error":"#REF!"}},null,null,{"$f":"#REF!","v":{"$error":"#REF!"}},800001965,"http://www.xbrl.org/scheme/companyName",null,{"$f":"Periodos!$C$4","v":"2017-12-31"},{"$f":"#REF!","v":{"$error":"#REF!"}},{"$f":"#REF!","v":{"$error":"#REF!"}}]
[{"$error":"#REF!"},null,{"$f":"#REF!","v":{"$error":"#REF!"}},{"$f":"#REF!","v":{"$error":"#REF!"}},null,null,{"$f":"#REF!","v":{"$error":"#REF!"}},800001965,"http://www.xbrl.org/scheme/companyName",null,{"$f":"Periodos!$C$4","v":"2017-12-31"},{"$f":"#REF!","v":{"$error":"#REF!"}},{"$f":"#REF!","v":{"$error":"#REF!"}}]
[{"$error":"#REF!"},null,{"$f":"#REF!","v":{"$error":"#REF!"}},{"$f":"#REF!","v":{"$error":"#REF!"}},null,null,{"$f":"#REF!","v":{"$error":"#REF!"}},800001965,"http://www.xbrl.org/scheme/companyName",null,{"$f":"Periodos!$C$4","v":"2017-12-31"},{"$f":"#REF!","v":{"$error":"#REF!"}},{"$f":"#REF!","v":{"$error":"#REF!"}}]
[{"$error":"#REF!"},null,{"$f":"#REF!","v":{"$error":"#REF!"}},{"$f":"#REF!","v":{"$error":"#REF!"}},null,null,{"$f":"#REF!","v":{"$error":"#REF!"}},800001965,"http://www.xbrl.org/scheme/companyName",null,{"$f":"Periodos!$C$4","v":"2017-12-31"},{"$f":"#REF!","v":{"$error":"#REF!"}},{"$f":"#REF!","v":{"$error":"#REF!"}}]
[{"$error":"#REF!"},null,{"$f":"#REF!","v":{"$error":"#REF!"}},{"$f":"#REF!","v":{"$error":"#REF!"}},null,null,{"$f":"#REF!","v":{"$error":"#REF!"}},800001965,"http://www.xbrl.org/scheme/companyName",null,{"$f":"Periodos!$C$4","v":"2017-12-31"},{"$f":"#REF!","v":{"$error":"#REF!"}},{"$f":"#REF!","v":{"$error":"#REF!"}}]
[{"$error":"#REF!"},null,{"$f":"#REF!","v":{"$error":"#REF!"}},{"$f":"#REF!","v":{"$error":"#REF!"}},null,null,{"$f":"#REF!","v":{"$error":"#REF!"}},800001965,"http://www.xbrl.org/scheme/companyName",null,{"$f":"Periodos!$C$4","v":"2017-12-31"},{"$f":"#REF!","v":{"$error":"#REF!"}},{"$f":"#REF!","v":{"$error":"#REF!"}}]
[{"$error":"#REF!"},null,{"$f":"#REF!","v":{"$error":"#REF!"}},{"$f":"#REF!","v":{"$error":"#REF!"}},null,null,{"$f":"#REF!","v":{"$error":"#REF!"}},800001965,"http://www.xbrl.org/scheme/companyName",null,{"$f":"Periodos!$C$4","v":"2017-12-31"},{"$f":"#REF!","v":{"$error":"#REF!"}},{"$f":"#REF!","v":{"$error":"#REF!"}}]
[{"$error":"#REF!"},null,{"$f":"#REF!","v":{"$error":"#REF!"}},{"$f":"#REF!","v":{"$error":"#REF!"}},0,"peso",{"$f":"#REF!","v":{"$error":"#REF!"}},800001965,"http://www.xbrl.org/scheme/companyName",null,{"$f":"Periodos!$C$4","v":"2017-12-31"},{"$f":"#REF!","v":{"$error":"#REF!"}},{"$f":"#REF!","v":{"$error":"#REF!"}}]
["/*",null,"--42--"]
[{"$error":"#REF!"},null,{"$f":"#REF!","v":{"$error":"#REF!"}},{"$f":"#REF!","v":{"$error":"#REF!"}},null,null,{"$f":"#REF!","v":{"$error":"#REF!"}},800001965,"http://www.xbrl.org/scheme/companyName",null,{"$f":"Periodos!$C$4","v":"2017-12-31"},{"$f":"#REF!","v":{"$error":"#REF!"}},{"$f":"#REF!","v":{"$error":"#REF!"}}]
[{"$error":"#REF!"},null,{"$f":"#REF!","v":{"$error":"#REF!"}},{"$f":"#REF!","v":{"$error":"#REF!"}},null,null,{"$f":"#REF!","v":{"$error":"#REF!"}},800001965,"http://www.xbrl.org/scheme/companyName",null,{"$f":"Periodos!$C$4","v":"2017-12-31"},{"$f":"#REF!","v":{"$error":"#REF!"}},{"$f":"#REF!","v":{"$error":"#REF!"}}]
[{"$error":"#REF!"},null,{"$f":"#REF!","v":{"$error":"#REF!"}},{"$f":"#REF!","v":{"$error":"#REF!"}},null,null,{"$f":"#REF!","v":{"$error":"#REF!"}},800001965,"http://www.xbrl.org/scheme/companyName",null,{"$f":"Periodos!$C$4","v":"2017-12-31"},{"$f":"#REF!","v":{"$error":"#REF!"}},{"$f":"#REF!","v":{"$error":"#REF!"}}]
[{"$error":"#REF!"},null,{"$f":"#REF!","v":{"$error":"#REF!"}},{"$f":"#REF!","v":{"$error":"#REF!"}},null,null,{"$f":"#REF!","v":{"$error":"#REF!"}},800001965,"http://www.xbrl.org/scheme/companyName",null,{"$f":"Periodos!$C$4","v":"2017-12-31"},{"$f":"#REF!","v":{"$error":"#REF!"}},{"$f":"#REF!","v":{"$error":"#REF!"}}]
[{"$error":"#REF!"},null,{"$f":"#REF!","v":{"$error":"#REF!"}},{"$f":"#REF!","v":{"$error":"#REF!"}},null,null,{"$f":"#REF!","v":{"$error":"#REF!"}},800001965,"http://www.xbrl.org/scheme/companyName",null,{"$f":"Periodos!$C$4","v":"2017-12-31"},{"$f":"#REF!","v":{"$error":"#REF!"}},{"$f":"#REF!","v":{"$error":"#REF!"}}]
[{"$error":"#REF!"},null,{"$f":"#REF!","v":{"$error":"#REF!"}},{"$f":"#REF!","v":{"$error":"#REF!"}},null,null,{"$f":"#REF!","v":{"$error":"#REF!"}},800001965,"http://www.xbrl.org/scheme/companyName",null,{"$f":"Periodos!$C$4","v":"2017-12-31"},{"$f":"#REF!","v":{"$error":"#REF!"}},{"$f":"#REF!","v":{"$error":"#REF!"}}]
[{"$f":"IF(G2209=\"\",\"/*\",\"\")","v":{"$error":"#REF!"}},null,{"$f":"#REF!","v":{"$error":"#REF!"}},{"$f":"#REF!","v":{"$error":"#REF!"}},null,null,{"$f":"#REF!","v":{"$error":"#REF!"}},800001965,"http://www.xbrl.org/scheme/companyName",null,{"$f":"Periodos!$C$4","v":"2017-12-31"},{"$f":"#REF!","v":{"$error":"#REF!"}},{"$f":"#REF!","v":{"$error":"#REF!"}}]
[{"$error":"#REF!"},null,{"$f":"#REF!","v":{"$error":"#REF!"}},{"$f":"#REF!","v":{"$error":"#REF!"}},null,null,{"$f":"#REF!","v":{"$error":"#REF!"}},800001965,"http://www.xbrl.org/scheme/companyName",null,{"$f":"Periodos!$C$4","v":"2017-12-31"},{"$f":"#REF!","v":{"$error":"#REF!"}},{"$f":"#REF!","v":{"$error":"#REF!"}}]
[{"$error":"#REF!"},null,{"$f":"#REF!","v":{"$error":"#REF!"}},{"$f":"#REF!","v":{"$error":"#REF!"}},null,null,{"$f":"#REF!","v":{"$error":"#REF!"}},800001965,"http://www.xbrl.org/scheme/companyName",null,{"$f":"Periodos!$C$4","v":"2017-12-31"},{"$f":"#REF!","v":{"$error":"#REF!"}},{"$f":"#REF!","v":{"$error":"#REF!"}}]
[{"$error":"#REF!"},null,{"$f":"#REF!","v":{"$error":"#REF!"}},{"$f":"#REF!","v":{"$error":"#REF!"}},null,null,{"$f":"#REF!","v":{"$error":"#REF!"}},800001965,"http://www.xbrl.org/scheme/companyName",null,{"$f":"Periodos!$C$4","v":"2017-12-31"},{"$f":"#REF!","v":{"$error":"#REF!"}},{"$f":"#REF!","v":{"$error":"#REF!"}}]
[{"$error":"#REF!"},null,{"$f":"#REF!","v":{"$error":"#REF!"}},{"$f":"#REF!","v":{"$error":"#REF!"}},null,null,{"$f":"#REF!","v":{"$error":"#REF!"}},800001965,"http://www.xbrl.org/scheme/companyName",null,{"$f":"Periodos!$C$4","v":"2017-12-31"},{"$f":"#REF!","v":{"$error":"#REF!"}},{"$f":"#REF!","v":{"$error":"#REF!"}}]
[{"$error":"#REF!"},null,{"$f":"#REF!","v":{"$error":"#REF!"}},{"$f":"#REF!","v":{"$error":"#REF!"}},0,"peso",{"$f":"#REF!","v":{"$error":"#REF!"}},800001965,"http://www.xbrl.org/scheme/companyName",null,{"$f":"Periodos!$C$4","v":"2017-12-31"},{"$f":"#REF!","v":{"$error":"#REF!"}},{"$f":"#REF!","v":{"$error":"#REF!"}}]
["/*",null,"--43--"]
[{"$error":"#REF!"},null,{"$f":"#REF!","v":{"$error":"#REF!"}},{"$f":"#REF!","v":{"$error":"#REF!"}},null,null,{"$f":"#REF!","v":{"$error":"#REF!"}},800001965,"http://www.xbrl.org/scheme/companyName",null,{"$f":"Periodos!$C$4","v":"2017-12-31"},{"$f":"#REF!","v":{"$error":"#REF!"}},{"$f":"#REF!","v":{"$error":"#REF!"}}]
[{"$error":"#REF!"},null,{"$f":"#REF!","v":{"$error":"#REF!"}},{"$f":"#REF!","v":{"$error":"#REF!"}},null,null,{"$f":"#REF!","v":{"$error":"#REF!"}},800001965,"http://www.xbrl.org/scheme/companyName",null,{"$f":"Periodos!$C$4","v":"2017-12-31"},{"$f":"#REF!","v":{"$error":"#REF!"}},{"$f":"#REF!","v":{"$error":"#REF!"}}]
[{"$error":"#REF!"},null,{"$f":"#REF!","v":{"$error":"#REF!"}},{"$f":"#REF!","v":{"$error":"#REF!"}},null,null,{"$f":"#REF!","v":{"$error":"#REF!"}},800001965,"http://www.xbrl.org/scheme/companyName",null,{"$f":"Periodos!$C$4","v":"2017-12-31"},{"$f":"#REF!","v":{"$error":"#REF!"}},{"$f":"#REF!","v":{"$error":"#REF!"}}]
[{"$error":"#REF!"},null,{"$f":"#REF!","v":{"$error":"#REF!"}},{"$f":"#REF!","v":{"$error":"#REF!"}},null,null,{"$f":"#REF!","v":{"$error":"#REF!"}},800001965,"http://www.xbrl.org/scheme/companyName",null,{"$f":"Periodos!$C$4","v":"2017-12-31"},{"$f":"#REF!","v":{"$error":"#REF!"}},{"$f":"#REF!","v":{"$error":"#REF!"}}]
[{"$error":"#REF!"},null,{"$f":"#REF!","v":{"$error":"#REF!"}},{"$f":"#REF!","v":{"$error":"#REF!"}},null,null,{"$f":"#REF!","v":{"$error":"#REF!"}},800001965,"http://www.xbrl.org/scheme/companyName",null,{"$f":"Periodos!$C$4","v":"2017-12-31"},{"$f":"#REF!","v":{"$error":"#REF!"}},{"$f":"#REF!","v":{"$error":"#REF!"}}]
[{"$error":"#REF!"},null,{"$f":"#REF!","v":{"$error":"#REF!"}},{"$f":"#REF!","v":{"$error":"#REF!"}},null,null,{"$f":"#REF!","v":{"$error":"#REF!"}},800001965,"http://www.xbrl.org/scheme/companyName",null,{"$f":"Periodos!$C$4","v":"2017-12-31"},{"$f":"#REF!","v":{"$error":"#REF!"}},{"$f":"#REF!","v":{"$error":"#REF!"}}]
[{"$error":"#REF!"},null,{"$f":"#REF!","v":{"$error":"#REF!"}},{"$f":"#REF!","v":{"$error":"#REF!"}},null,null,{"$f":"#REF!","v":{"$error":"#REF!"}},800001965,"http://www.xbrl.org/scheme/companyName",null,{"$f":"Periodos!$C$4","v":"2017-12-31"},{"$f":"#REF!","v":{"$error":"#REF!"}},{"$f":"#REF!","v":{"$error":"#REF!"}}]
[{"$error":"#REF!"},null,{"$f":"#REF!","v":{"$error":"#REF!"}},{"$f":"#REF!","v":{"$error":"#REF!"}},null,null,{"$f":"#REF!","v":{"$error":"#REF!"}},800001965,"http://www.xbrl.org/scheme/companyName",null,{"$f":"Periodos!$C$4","v":"2017-12-31"},{"$f":"#REF!","v":{"$error":"#REF!"}},{"$f":"#REF!","v":{"$error":"#REF!"}}]
[{"$error":"#REF!"},null,{"$f":"#REF!","v":{"$error":"#REF!"}},{"$f":"#REF!","v":{"$error":"#REF!"}},null,null,{"$f":"#REF!","v":{"$error":"#REF!"}},800001965,"http://www.xbrl.org/scheme/companyName",null,{"$f":"Periodos!$C$4","v":"2017-12-31"},{"$f":"#REF!","v":{"$error":"#REF!"}},{"$f":"#REF!","v":{"$error":"#REF!"}}]
[{"$error":"#REF!"},null,{"$f":"#REF!","v":{"$error":"#REF!"}},{"$f":"#REF!","v":{"$error":"#REF!"}},null,null,{"$f":"#REF!","v":{"$error":"#REF!"}},800001965,"http://www.xbrl.org/scheme/companyName",null,{"$f":"Periodos!$C$4","v":"2017-12-31"},{"$f":"#REF!","v":{"$error":"#REF!"}},{"$f":"#REF!","v":{"$error":"#REF!"}}]
[{"$error":"#REF!"},null,{"$f":"#REF!","v":{"$error":"#REF!"}},{"$f":"#REF!","v":{"$error":"#REF!"}},null,null,{"$f":"#REF!","v":{"$error":"#REF!"}},800001965,"http://www.xbrl.org/scheme/companyName",null,{"$f":"Periodos!$C$4","v":"2017-12-31"},{"$f":"#REF!","v":{"$error":"#REF!"}},{"$f":"#REF!","v":{"$error":"#REF!"}}]
[{"$error":"#REF!"},null,{"$f":"#REF!","v":{"$error":"#REF!"}},{"$f":"#REF!","v":{"$error":"#REF!"}},0,"peso",{"$f":"#REF!","v":{"$error":"#REF!"}},800001965,"http://www.xbrl.org/scheme/companyName",null,{"$f":"Periodos!$C$4","v":"2017-12-31"},{"$f":"#REF!","v":{"$error":"#REF!"}},{"$f":"#REF!","v":{"$error":"#REF!"}}]
["/*",null,"--44--"]
[{"$error":"#REF!"},null,{"$f":"#REF!","v":{"$error":"#REF!"}},{"$f":"#REF!","v":{"$error":"#REF!"}},null,null,{"$f":"#REF!","v":{"$error":"#REF!"}},800001965,"http://www.xbrl.org/scheme/companyName",null,{"$f":"Periodos!$C$4","v":"2017-12-31"},{"$f":"#REF!","v":{"$error":"#REF!"}},{"$f":"#REF!","v":{"$error":"#REF!"}}]
[{"$error":"#REF!"},null,{"$f":"#REF!","v":{"$error":"#REF!"}},{"$f":"#REF!","v":{"$error":"#REF!"}},null,null,{"$f":"#REF!","v":{"$error":"#REF!"}},800001965,"http://www.xbrl.org/scheme/companyName",null,{"$f":"Periodos!$C$4","v":"2017-12-31"},{"$f":"#REF!","v":{"$error":"#REF!"}},{"$f":"#REF!","v":{"$error":"#REF!"}}]
[{"$error":"#REF!"},null,{"$f":"#REF!","v":{"$error":"#REF!"}},{"$f":"#REF!","v":{"$error":"#REF!"}},null,null,{"$f":"#REF!","v":{"$error":"#REF!"}},800001965,"http://www.xbrl.org/scheme/companyName",null,{"$f":"Periodos!$C$4","v":"2017-12-31"},{"$f":"#REF!","v":{"$error":"#REF!"}},{"$f":"#REF!","v":{"$error":"#REF!"}}]
[{"$error":"#REF!"},null,{"$f":"#REF!","v":{"$error":"#REF!"}},{"$f":"#REF!","v":{"$error":"#REF!"}},null,null,{"$f":"#REF!","v":{"$error":"#REF!"}},800001965,"http://www.xbrl.org/scheme/companyName",null,{"$f":"Periodos!$C$4","v":"2017-12-31"},{"$f":"#REF!","v":{"$error":"#REF!"}},{"$f":"#REF!","v":{"$error":"#REF!"}}]
[{"$error":"#REF!"},null,{"$f":"#REF!","v":{"$error":"#REF!"}},{"$f":"#REF!","v":{"$error":"#REF!"}},null,null,{"$f":"#REF!","v":{"$error":"#REF!"}},800001965,"http://www.xbrl.org/scheme/companyName",null,{"$f":"Periodos!$C$4","v":"2017-12-31"},{"$f":"#REF!","v":{"$error":"#REF!"}},{"$f":"#REF!","v":{"$error":"#REF!"}}]
[{"$error":"#REF!"},null,{"$f":"#REF!","v":{"$error":"#REF!"}},{"$f":"#REF!","v":{"$error":"#REF!"}},null,null,{"$f":"#REF!","v":{"$error":"#REF!"}},800001965,"http://www.xbrl.org/scheme/companyName",null,{"$f":"Periodos!$C$4","v":"2017-12-31"},{"$f":"#REF!","v":{"$error":"#REF!"}},{"$f":"#REF!","v":{"$error":"#REF!"}}]
[{"$error":"#REF!"},null,{"$f":"#REF!","v":{"$error":"#REF!"}},{"$f":"#REF!","v":{"$error":"#REF!"}},null,null,{"$f":"#REF!","v":{"$error":"#REF!"}},800001965,"http://www.xbrl.org/scheme/companyName",null,{"$f":"Periodos!$C$4","v":"2017-12-31"},{"$f":"#REF!","v":{"$error":"#REF!"}},{"$f":"#REF!","v":{"$error":"#REF!"}}]
[{"$error":"#REF!"},null,{"$f":"#REF!","v":{"$error":"#REF!"}},{"$f":"#REF!","v":{"$error":"#REF!"}},null,null,{"$f":"#REF!","v":{"$error":"#REF!"}},800001965,"http://www.xbrl.org/scheme/companyName",null,{"$f":"Periodos!$C$4","v":"2017-12-31"},{"$f":"#REF!","v":{"$error":"#REF!"}},{"$f":"#REF!","v":{"$error":"#REF!"}}]
[{"$error":"#REF!"},null,{"$f":"#REF!","v":{"$error":"#REF!"}},{"$f":"#REF!","v":{"$error":"#REF!"}},null,null,{"$f":"#REF!","v":{"$error":"#REF!"}},800001965,"http://www.xbrl.org/scheme/companyName",null,{"$f":"Periodos!$C$4","v":"2017-12-31"},{"$f":"#REF!","v":{"$error":"#REF!"}},{"$f":"#REF!","v":{"$error":"#REF!"}}]
[{"$error":"#REF!"},null,{"$f":"#REF!","v":{"$error":"#REF!"}},{"$f":"#REF!","v":{"$error":"#REF!"}},null,null,{"$f":"#REF!","v":{"$error":"#REF!"}},800001965,"http://www.xbrl.org/scheme/companyName",null,{"$f":"Periodos!$C$4","v":"2017-12-31"},{"$f":"#REF!","v":{"$error":"#REF!"}},{"$f":"#REF!","v":{"$error":"#REF!"}}]
[{"$error":"#REF!"},null,{"$f":"#REF!","v":{"$error":"#REF!"}},{"$f":"#REF!","v":{"$error":"#REF!"}},null,null,{"$f":"#REF!","v":{"$error":"#REF!"}},800001965,"http://www.xbrl.org/scheme/companyName",null,{"$f":"Periodos!$C$4","v":"2017-12-31"},{"$f":"#REF!","v":{"$error":"#REF!"}},{"$f":"#REF!","v":{"$error":"#REF!"}}]
[{"$error":"#REF!"},null,{"$f":"#REF!","v":{"$error":"#REF!"}},{"$f":"#REF!","v":{"$error":"#REF!"}},0,"peso",{"$f":"#REF!","v":{"$error":"#REF!"}},800001965,"http://www.xbrl.org/scheme/companyName",null,{"$f":"Periodos!$C$4","v":"2017-12-31"},{"$f":"#REF!","v":{"$error":"#REF!"}},{"$f":"#REF!","v":{"$error":"#REF!"}}]
["/*",null,"--45--"]
[{"$error":"#REF!"},null,{"$f":"#REF!","v":{"$error":"#REF!"}},{"$f":"#REF!","v":{"$error":"#REF!"}},null,null,{"$f":"#REF!","v":{"$error":"#REF!"}},800001965,"http://www.xbrl.org/scheme/companyName",null,{"$f":"Periodos!$C$4","v":"2017-12-31"},{"$f":"#REF!","v":{"$error":"#REF!"}},{"$f":"#REF!","v":{"$error":"#REF!"}}]
[{"$error":"#REF!"},null,{"$f":"#REF!","v":{"$error":"#REF!"}},{"$f":"#REF!","v":{"$error":"#REF!"}},null,null,{"$f":"#REF!","v":{"$error":"#REF!"}},800001965,"http://www.xbrl.org/scheme/companyName",null,{"$f":"Periodos!$C$4","v":"2017-12-31"},{"$f":"#REF!","v":{"$error":"#REF!"}},{"$f":"#REF!","v":{"$error":"#REF!"}}]
[{"$error":"#REF!"},null,{"$f":"#REF!","v":{"$error":"#REF!"}},{"$f":"#REF!","v":{"$error":"#REF!"}},null,null,{"$f":"#REF!","v":{"$error":"#REF!"}},800001965,"http://www.xbrl.org/scheme/companyName",null,{"$f":"Periodos!$C$4","v":"2017-12-31"},{"$f":"#REF!","v":{"$error":"#REF!"}},{"$f":"#REF!","v":{"$error":"#REF!"}}]
[{"$error":"#REF!"},null,{"$f":"#REF!","v":{"$error":"#REF!"}},{"$f":"#REF!","v":{"$error":"#REF!"}},null,null,{"$f":"#REF!","v":{"$error":"#REF!"}},800001965,"http://www.xbrl.org/scheme/companyName",null,{"$f":"Periodos!$C$4","v":"2017-12-31"},{"$f":"#REF!","v":{"$error":"#REF!"}},{"$f":"#REF!","v":{"$error":"#REF!"}}]
[{"$error":"#REF!"},null,{"$f":"#REF!","v":{"$error":"#REF!"}},{"$f":"#REF!","v":{"$error":"#REF!"}},null,null,{"$f":"#REF!","v":{"$error":"#REF!"}},800001965,"http://www.xbrl.org/scheme/companyName",null,{"$f":"Periodos!$C$4","v":"2017-12-31"},{"$f":"#REF!","v":{"$error":"#REF!"}},{"$f":"#REF!","v":{"$error":"#REF!"}}]
[{"$error":"#REF!"},null,{"$f":"#REF!","v":{"$error":"#REF!"}},{"$f":"#REF!","v":{"$error":"#REF!"}},null,null,{"$f":"#REF!","v":{"$error":"#REF!"}},800001965,"http://www.xbrl.org/scheme/companyName",null,{"$f":"Periodos!$C$4","v":"2017-12-31"},{"$f":"#REF!","v":{"$error":"#REF!"}},{"$f":"#REF!","v":{"$error":"#REF!"}}]
[{"$error":"#REF!"},null,{"$f":"#REF!","v":{"$error":"#REF!"}},{"$f":"#REF!","v":{"$error":"#REF!"}},null,null,{"$f":"#REF!","v":{"$error":"#REF!"}},800001965,"http://www.xbrl.org/scheme/companyName",null,{"$f":"Periodos!$C$4","v":"2017-12-31"},{"$f":"#REF!","v":{"$error":"#REF!"}},{"$f":"#REF!","v":{"$error":"#REF!"}}]
[{"$error":"#REF!"},null,{"$f":"#REF!","v":{"$error":"#REF!"}},{"$f":"#REF!","v":{"$error":"#REF!"}},null,null,{"$f":"#REF!","v":{"$error":"#REF!"}},800001965,"http://www.xbrl.org/scheme/companyName",null,{"$f":"Periodos!$C$4","v":"2017-12-31"},{"$f":"#REF!","v":{"$error":"#REF!"}},{"$f":"#REF!","v":{"$error":"#REF!"}}]
[{"$error":"#REF!"},null,{"$f":"#REF!","v":{"$error":"#REF!"}},{"$f":"#REF!","v":{"$error":"#REF!"}},null,null,{"$f":"#REF!","v":{"$error":"#REF!"}},800001965,"http://www.xbrl.org/scheme/companyName",null,{"$f":"Periodos!$C$4","v":"2017-12-31"},{"$f":"#REF!","v":{"$error":"#REF!"}},{"$f":"#REF!","v":{"$error":"#REF!"}}]
[{"$error":"#REF!"},null,{"$f":"#REF!","v":{"$error":"#REF!"}},{"$f":"#REF!","v":{"$error":"#REF!"}},null,null,{"$f":"#REF!","v":{"$error":"#REF!"}},800001965,"http://www.xbrl.org/scheme/companyName",null,{"$f":"Periodos!$C$4","v":"2017-12-31"},{"$f":"#REF!","v":{"$error":"#REF!"}},{"$f":"#REF!","v":{"$error":"#REF!"}}]
[{"$error":"#REF!"},null,{"$f":"#REF!","v":{"$error":"#REF!"}},{"$f":"#REF!","v":{"$error":"#REF!"}},null,null,{"$f":"#REF!","v":{"$error":"#REF!"}},800001965,"http://www.xbrl.org/scheme/companyName",null,{"$f":"Periodos!$C$4","v":"2017-12-31"},{"$f":"#REF!","v":{"$error":"#REF!"}},{"$f":"#REF!","v":{"$error":"#REF!"}}]
[{"$error":"#REF!"},null,{"$f":"#REF!","v":{"$error":"#REF!"}},{"$f":"#REF!","v":{"$error":"#REF!"}},0,"peso",{"$f":"#REF!","v":{"$error":"#REF!"}},800001965,"http://www.xbrl.org/scheme/companyName",null,{"$f":"Periodos!$C$4","v":"2017-12-31"},{"$f":"#REF!","v":{"$error":"#REF!"}},{"$f":"#REF!","v":{"$error":"#REF!"}}]
["/*",null,"--46--"]
[{"$error":"#REF!"},null,{"$f":"#REF!","v":{"$error":"#REF!"}},{"$f":"#REF!","v":{"$error":"#REF!"}},null,null,{"$f":"#REF!","v":{"$error":"#REF!"}},800001965,"http://www.xbrl.org/scheme/companyName",null,{"$f":"Periodos!$C$4","v":"2017-12-31"},{"$f":"#REF!","v":{"$error":"#REF!"}},{"$f":"#REF!","v":{"$error":"#REF!"}}]
[{"$error":"#REF!"},null,{"$f":"#REF!","v":{"$error":"#REF!"}},{"$f":"#REF!","v":{"$error":"#REF!"}},null,null,{"$f":"#REF!","v":{"$error":"#REF!"}},800001965,"http://www.xbrl.org/scheme/companyName",null,{"$f":"Periodos!$C$4","v":"2017-12-31"},{"$f":"#REF!","v":{"$error":"#REF!"}},{"$f":"#REF!","v":{"$error":"#REF!"}}]
[{"$error":"#REF!"},null,{"$f":"#REF!","v":{"$error":"#REF!"}},{"$f":"#REF!","v":{"$error":"#REF!"}},null,null,{"$f":"#REF!","v":{"$error":"#REF!"}},800001965,"http://www.xbrl.org/scheme/companyName",null,{"$f":"Periodos!$C$4","v":"2017-12-31"},{"$f":"#REF!","v":{"$error":"#REF!"}},{"$f":"#REF!","v":{"$error":"#REF!"}}]
[{"$error":"#REF!"},null,{"$f":"#REF!","v":{"$error":"#REF!"}},{"$f":"#REF!","v":{"$error":"#REF!"}},null,null,{"$f":"#REF!","v":{"$error":"#REF!"}},800001965,"http://www.xbrl.org/scheme/companyName",null,{"$f":"Periodos!$C$4","v":"2017-12-31"},{"$f":"#REF!","v":{"$error":"#REF!"}},{"$f":"#REF!","v":{"$error":"#REF!"}}]
[{"$error":"#REF!"},null,{"$f":"#REF!","v":{"$error":"#REF!"}},{"$f":"#REF!","v":{"$error":"#REF!"}},null,null,{"$f":"#REF!","v":{"$error":"#REF!"}},800001965,"http://www.xbrl.org/scheme/companyName",null,{"$f":"Periodos!$C$4","v":"2017-12-31"},{"$f":"#REF!","v":{"$error":"#REF!"}},{"$f":"#REF!","v":{"$error":"#REF!"}}]
[{"$error":"#REF!"},null,{"$f":"#REF!","v":{"$error":"#REF!"}},{"$f":"#REF!","v":{"$error":"#REF!"}},null,null,{"$f":"#REF!","v":{"$error":"#REF!"}},800001965,"http://www.xbrl.org/scheme/companyName",null,{"$f":"Periodos!$C$4","v":"2017-12-31"},{"$f":"#REF!","v":{"$error":"#REF!"}},{"$f":"#REF!","v":{"$error":"#REF!"}}]
[{"$error":"#REF!"},null,{"$f":"#REF!","v":{"$error":"#REF!"}},{"$f":"#REF!","v":{"$error":"#REF!"}},null,null,{"$f":"#REF!","v":{"$error":"#REF!"}},800001965,"http://www.xbrl.org/scheme/companyName",null,{"$f":"Periodos!$C$4","v":"2017-12-31"},{"$f":"#REF!","v":{"$error":"#REF!"}},{"$f":"#REF!","v":{"$error":"#REF!"}}]
[{"$error":"#REF!"},null,{"$f":"#REF!","v":{"$error":"#REF!"}},{"$f":"#REF!","v":{"$error":"#REF!"}},null,null,{"$f":"#REF!","v":{"$error":"#REF!"}},800001965,"http://www.xbrl.org/scheme/companyName",null,{"$f":"Periodos!$C$4","v":"2017-12-31"},{"$f":"#REF!","v":{"$error":"#REF!"}},{"$f":"#REF!","v":{"$error":"#REF!"}}]
[{"$error":"#REF!"},null,{"$f":"#REF!","v":{"$error":"#REF!"}},{"$f":"#REF!","v":{"$error":"#REF!"}},null,null,{"$f":"#REF!","v":{"$error":"#REF!"}},800001965,"http://www.xbrl.org/scheme/companyName",null,{"$f":"Periodos!$C$4","v":"2017-12-31"},{"$f":"#REF!","v":{"$error":"#REF!"}},{"$f":"#REF!","v":{"$error":"#REF!"}}]
[{"$error":"#REF!"},null,{"$f":"#REF!","v":{"$error":"#REF!"}},{"$f":"#REF!","v":{"$error":"#REF!"}},null,null,{"$f":"#REF!","v":{"$error":"#REF!"}},800001965,"http://www.xbrl.org/scheme/companyName",null,{"$f":"Periodos!$C$4","v":"2017-12-31"},{"$f":"#REF!","v":{"$error":"#REF!"}},{"$f":"#REF!","v":{"$error":"#REF!"}}]
[{"$error":"#REF!"},null,{"$f":"#REF!","v":{"$error":"#REF!"}},{"$f":"#REF!","v":{"$error":"#REF!"}},null,null,{"$f":"#REF!","v":{"$error":"#REF!"}},800001965,"http://www.xbrl.org/scheme/companyName",null,{"$f":"Periodos!$C$4","v":"2017-12-31"},{"$f":"#REF!","v":{"$error":"#REF!"}},{"$f":"#REF!","v":{"$error":"#REF!"}}]
[{"$error":"#REF!"},null,{"$f":"#REF!","v":{"$error":"#REF!"}},{"$f":"#REF!","v":{"$error":"#REF!"}},0,"peso",{"$f":"#REF!","v":{"$error":"#REF!"}},800001965,"http://www.xbrl.org/scheme/companyName",null,{"$f":"Periodos!$C$4","v":"2017-12-31"},{"$f":"#REF!","v":{"$error":"#REF!"}},{"$f":"#REF!","v":{"$error":"#REF!"}}]
["/*",null,"--47--"]
[{"$error":"#REF!"},null,{"$f":"#REF!","v":{"$error":"#REF!"}},{"$f":"#REF!","v":{"$error":"#REF!"}},null,null,{"$f":"#REF!","v":{"$error":"#REF!"}},800001965,"http://www.xbrl.org/scheme/companyName",null,{"$f":"Periodos!$C$4","v":"2017-12-31"},{"$f":"#REF!","v":{"$error":"#REF!"}},{"$f":"#REF!","v":{"$error":"#REF!"}}]
[{"$error":"#REF!"},null,{"$f":"#REF!","v":{"$error":"#REF!"}},{"$f":"#REF!","v":{"$error":"#REF!"}},null,null,{"$f":"#REF!","v":{"$error":"#REF!"}},800001965,"http://www.xbrl.org/scheme/companyName",null,{"$f":"Periodos!$C$4","v":"2017-12-31"},{"$f":"#REF!","v":{"$error":"#REF!"}},{"$f":"#REF!","v":{"$error":"#REF!"}}]
[{"$error":"#REF!"},null,{"$f":"#REF!","v":{"$error":"#REF!"}},{"$f":"#REF!","v":{"$error":"#REF!"}},null,null,{"$f":"#REF!","v":{"$error":"#REF!"}},800001965,"http://www.xbrl.org/scheme/companyName",null,{"$f":"Periodos!$C$4","v":"2017-12-31"},{"$f":"#REF!","v":{"$error":"#REF!"}},{"$f":"#REF!","v":{"$error":"#REF!"}}]
[{"$error":"#REF!"},null,{"$f":"#REF!","v":{"$error":"#REF!"}},{"$f":"#REF!","v":{"$error":"#REF!"}},null,null,{"$f":"#REF!","v":{"$error":"#REF!"}},800001965,"http://www.xbrl.org/scheme/companyName",null,{"$f":"Periodos!$C$4","v":"2017-12-31"},{"$f":"#REF!","v":{"$error":"#REF!"}},{"$f":"#REF!","v":{"$error":"#REF!"}}]
[{"$error":"#REF!"},null,{"$f":"#REF!","v":{"$error":"#REF!"}},{"$f":"#REF!","v":{"$error":"#REF!"}},null,null,{"$f":"#REF!","v":{"$error":"#REF!"}},800001965,"http://www.xbrl.org/scheme/companyName",null,{"$f":"Periodos!$C$4","v":"2017-12-31"},{"$f":"#REF!","v":{"$error":"#REF!"}},{"$f":"#REF!","v":{"$error":"#REF!"}}]
[{"$f":"IF(G2273=\"\",\"/*\",\"\")","v":{"$error":"#REF!"}},null,{"$f":"#REF!","v":{"$error":"#REF!"}},{"$f":"#REF!","v":{"$error":"#REF!"}},null,null,{"$f":"#REF!","v":{"$error":"#REF!"}},800001965,"http://www.xbrl.org/scheme/companyName",null,{"$f":"Periodos!$C$4","v":"2017-12-31"},{"$f":"#REF!","v":{"$error":"#REF!"}},{"$f":"#REF!","v":{"$error":"#REF!"}}]
[{"$error":"#REF!"},null,{"$f":"#REF!","v":{"$error":"#REF!"}},{"$f":"#REF!","v":{"$error":"#REF!"}},null,null,{"$f":"#REF!","v":{"$error":"#REF!"}},800001965,"http://www.xbrl.org/scheme/companyName",null,{"$f":"Periodos!$C$4","v":"2017-12-31"},{"$f":"#REF!","v":{"$error":"#REF!"}},{"$f":"#REF!","v":{"$error":"#REF!"}}]
[{"$error":"#REF!"},null,{"$f":"#REF!","v":{"$error":"#REF!"}},{"$f":"#REF!","v":{"$error":"#REF!"}},null,null,{"$f":"#REF!","v":{"$error":"#REF!"}},800001965,"http://www.xbrl.org/scheme/companyName",null,{"$f":"Periodos!$C$4","v":"2017-12-31"},{"$f":"#REF!","v":{"$error":"#REF!"}},{"$f":"#REF!","v":{"$error":"#REF!"}}]
[{"$error":"#REF!"},null,{"$f":"#REF!","v":{"$error":"#REF!"}},{"$f":"#REF!","v":{"$error":"#REF!"}},null,null,{"$f":"#REF!","v":{"$error":"#REF!"}},800001965,"http://www.xbrl.org/scheme/companyName",null,{"$f":"Periodos!$C$4","v":"2017-12-31"},{"$f":"#REF!","v":{"$error":"#REF!"}},{"$f":"#REF!","v":{"$error":"#REF!"}}]
[{"$error":"#REF!"},null,{"$f":"#REF!","v":{"$error":"#REF!"}},{"$f":"#REF!","v":{"$error":"#REF!"}},null,null,{"$f":"#REF!","v":{"$error":"#REF!"}},800001965,"http://www.xbrl.org/scheme/companyName",null,{"$f":"Periodos!$C$4","v":"2017-12-31"},{"$f":"#REF!","v":{"$error":"#REF!"}},{"$f":"#REF!","v":{"$error":"#REF!"}}]
[{"$error":"#REF!"},null,{"$f":"#REF!","v":{"$error":"#REF!"}},{"$f":"#REF!","v":{"$error":"#REF!"}},null,null,{"$f":"#REF!","v":{"$error":"#REF!"}},800001965,"http://www.xbrl.org/scheme/companyName",null,{"$f":"Periodos!$C$4","v":"2017-12-31"},{"$f":"#REF!","v":{"$error":"#REF!"}},{"$f":"#REF!","v":{"$error":"#REF!"}}]
[{"$error":"#REF!"},null,{"$f":"#REF!","v":{"$error":"#REF!"}},{"$f":"#REF!","v":{"$error":"#REF!"}},0,"peso",{"$f":"#REF!","v":{"$error":"#REF!"}},800001965,"http://www.xbrl.org/scheme/companyName",null,{"$f":"Periodos!$C$4","v":"2017-12-31"},{"$f":"#REF!","v":{"$error":"#REF!"}},{"$f":"#REF!","v":{"$error":"#REF!"}}]
["/*",null,"--48--"]
[{"$error":"#REF!"},null,{"$f":"#REF!","v":{"$error":"#REF!"}},{"$f":"#REF!","v":{"$error":"#REF!"}},null,null,{"$f":"#REF!","v":{"$error":"#REF!"}},800001965,"http://www.xbrl.org/scheme/companyName",null,{"$f":"Periodos!$C$4","v":"2017-12-31"},{"$f":"#REF!","v":{"$error":"#REF!"}},{"$f":"#REF!","v":{"$error":"#REF!"}}]
[{"$error":"#REF!"},null,{"$f":"#REF!","v":{"$error":"#REF!"}},{"$f":"#REF!","v":{"$error":"#REF!"}},null,null,{"$f":"#REF!","v":{"$error":"#REF!"}},800001965,"http://www.xbrl.org/scheme/companyName",null,{"$f":"Periodos!$C$4","v":"2017-12-31"},{"$f":"#REF!","v":{"$error":"#REF!"}},{"$f":"#REF!","v":{"$error":"#REF!"}}]
[{"$error":"#REF!"},null,{"$f":"#REF!","v":{"$error":"#REF!"}},{"$f":"#REF!","v":{"$error":"#REF!"}},null,null,{"$f":"#REF!","v":{"$error":"#REF!"}},800001965,"http://www.xbrl.org/scheme/companyName",null,{"$f":"Periodos!$C$4","v":"2017-12-31"},{"$f":"#REF!","v":{"$error":"#REF!"}},{"$f":"#REF!","v":{"$error":"#REF!"}}]
[{"$error":"#REF!"},null,{"$f":"#REF!","v":{"$error":"#REF!"}},{"$f":"#REF!","v":{"$error":"#REF!"}},null,null,{"$f":"#REF!","v":{"$error":"#REF!"}},800001965,"http://www.xbrl.org/scheme/companyName",null,{"$f":"Periodos!$C$4","v":"2017-12-31"},{"$f":"#REF!","v":{"$error":"#REF!"}},{"$f":"#REF!","v":{"$error":"#REF!"}}]
[{"$error":"#REF!"},null,{"$f":"#REF!","v":{"$error":"#REF!"}},{"$f":"#REF!","v":{"$error":"#REF!"}},null,null,{"$f":"#REF!","v":{"$error":"#REF!"}},800001965,"http://www.xbrl.org/scheme/companyName",null,{"$f":"Periodos!$C$4","v":"2017-12-31"},{"$f":"#REF!","v":{"$error":"#REF!"}},{"$f":"#REF!","v":{"$error":"#REF!"}}]
[{"$error":"#REF!"},null,{"$f":"#REF!","v":{"$error":"#REF!"}},{"$f":"#REF!","v":{"$error":"#REF!"}},null,null,{"$f":"#REF!","v":{"$error":"#REF!"}},800001965,"http://www.xbrl.org/scheme/companyName",null,{"$f":"Periodos!$C$4","v":"2017-12-31"},{"$f":"#REF!","v":{"$error":"#REF!"}},{"$f":"#REF!","v":{"$error":"#REF!"}}]
[{"$error":"#REF!"},null,{"$f":"#REF!","v":{"$error":"#REF!"}},{"$f":"#REF!","v":{"$error":"#REF!"}},null,null,{"$f":"#REF!","v":{"$error":"#REF!"}},800001965,"http://www.xbrl.org/scheme/companyName",null,{"$f":"Periodos!$C$4","v":"2017-12-31"},{"$f":"#REF!","v":{"$error":"#REF!"}},{"$f":"#REF!","v":{"$error":"#REF!"}}]
[{"$error":"#REF!"},null,{"$f":"#REF!","v":{"$error":"#REF!"}},{"$f":"#REF!","v":{"$error":"#REF!"}},null,null,{"$f":"#REF!","v":{"$error":"#REF!"}},800001965,"http://www.xbrl.org/scheme/companyName",null,{"$f":"Periodos!$C$4","v":"2017-12-31"},{"$f":"#REF!","v":{"$error":"#REF!"}},{"$f":"#REF!","v":{"$error":"#REF!"}}]
[{"$error":"#REF!"},null,{"$f":"#REF!","v":{"$error":"#REF!"}},{"$f":"#REF!","v":{"$error":"#REF!"}},null,null,{"$f":"#REF!","v":{"$error":"#REF!"}},800001965,"http://www.xbrl.org/scheme/companyName",null,{"$f":"Periodos!$C$4","v":"2017-12-31"},{"$f":"#REF!","v":{"$error":"#REF!"}},{"$f":"#REF!","v":{"$error":"#REF!"}}]
[{"$error":"#REF!"},null,{"$f":"#REF!","v":{"$error":"#REF!"}},{"$f":"#REF!","v":{"$error":"#REF!"}},null,null,{"$f":"#REF!","v":{"$error":"#REF!"}},800001965,"http://www.xbrl.org/scheme/companyName",null,{"$f":"Periodos!$C$4","v":"2017-12-31"},{"$f":"#REF!","v":{"$error":"#REF!"}},{"$f":"#REF!","v":{"$error":"#REF!"}}]
[{"$error":"#REF!"},null,{"$f":"#REF!","v":{"$error":"#REF!"}},{"$f":"#REF!","v":{"$error":"#REF!"}},null,null,{"$f":"#REF!","v":{"$error":"#REF!"}},800001965,"http://www.xbrl.org/scheme/companyName",null,{"$f":"Periodos!$C$4","v":"2017-12-31"},{"$f":"#REF!","v":{"$error":"#REF!"}},{"$f":"#REF!","v":{"$error":"#REF!"}}]
[{"$error":"#REF!"},null,{"$f":"#REF!","v":{"$error":"#REF!"}},{"$f":"#REF!","v":{"$error":"#REF!"}},0,"peso",{"$f":"#REF!","v":{"$error":"#REF!"}},800001965,"http://www.xbrl.org/scheme/companyName",null,{"$f":"Periodos!$C$4","v":"2017-12-31"},{"$f":"#REF!","v":{"$error":"#REF!"}},{"$f":"#REF!","v":{"$error":"#REF!"}}]
["/*",null,"--49--"]
[{"$error":"#REF!"},null,{"$f":"#REF!","v":{"$error":"#REF!"}},{"$f":"#REF!","v":{"$error":"#REF!"}},null,null,{"$f":"#REF!","v":{"$error":"#REF!"}},800001965,"http://www.xbrl.org/scheme/companyName",null,{"$f":"Periodos!$C$4","v":"2017-12-31"},{"$f":"#REF!","v":{"$error":"#REF!"}},{"$f":"#REF!","v":{"$error":"#REF!"}}]
[{"$error":"#REF!"},null,{"$f":"#REF!","v":{"$error":"#REF!"}},{"$f":"#REF!","v":{"$error":"#REF!"}},null,null,{"$f":"#REF!","v":{"$error":"#REF!"}},800001965,"http://www.xbrl.org/scheme/companyName",null,{"$f":"Periodos!$C$4","v":"2017-12-31"},{"$f":"#REF!","v":{"$error":"#REF!"}},{"$f":"#REF!","v":{"$error":"#REF!"}}]
[{"$error":"#REF!"},null,{"$f":"#REF!","v":{"$error":"#REF!"}},{"$f":"#REF!","v":{"$error":"#REF!"}},null,null,{"$f":"#REF!","v":{"$error":"#REF!"}},800001965,"http://www.xbrl.org/scheme/companyName",null,{"$f":"Periodos!$C$4","v":"2017-12-31"},{"$f":"#REF!","v":{"$error":"#REF!"}},{"$f":"#REF!","v":{"$error":"#REF!"}}]
[{"$error":"#REF!"},null,{"$f":"#REF!","v":{"$error":"#REF!"}},{"$f":"#REF!","v":{"$error":"#REF!"}},null,null,{"$f":"#REF!","v":{"$error":"#REF!"}},800001965,"http://www.xbrl.org/scheme/companyName",null,{"$f":"Periodos!$C$4","v":"2017-12-31"},{"$f":"#REF!","v":{"$error":"#REF!"}},{"$f":"#REF!","v":{"$error":"#REF!"}}]
[{"$error":"#REF!"},null,{"$f":"#REF!","v":{"$error":"#REF!"}},{"$f":"#REF!","v":{"$error":"#REF!"}},null,null,{"$f":"#REF!","v":{"$error":"#REF!"}},800001965,"http://www.xbrl.org/scheme/companyName",null,{"$f":"Periodos!$C$4","v":"2017-12-31"},{"$f":"#REF!","v":{"$error":"#REF!"}},{"$f":"#REF!","v":{"$error":"#REF!"}}]
[{"$error":"#REF!"},null,{"$f":"#REF!","v":{"$error":"#REF!"}},{"$f":"#REF!","v":{"$error":"#REF!"}},null,null,{"$f":"#REF!","v":{"$error":"#REF!"}},800001965,"http://www.xbrl.org/scheme/companyName",null,{"$f":"Periodos!$C$4","v":"2017-12-31"},{"$f":"#REF!","v":{"$error":"#REF!"}},{"$f":"#REF!","v":{"$error":"#REF!"}}]
[{"$error":"#REF!"},null,{"$f":"#REF!","v":{"$error":"#REF!"}},{"$f":"#REF!","v":{"$error":"#REF!"}},null,null,{"$f":"#REF!","v":{"$error":"#REF!"}},800001965,"http://www.xbrl.org/scheme/companyName",null,{"$f":"Periodos!$C$4","v":"2017-12-31"},{"$f":"#REF!","v":{"$error":"#REF!"}},{"$f":"#REF!","v":{"$error":"#REF!"}}]
[{"$error":"#REF!"},null,{"$f":"#REF!","v":{"$error":"#REF!"}},{"$f":"#REF!","v":{"$error":"#REF!"}},null,null,{"$f":"#REF!","v":{"$error":"#REF!"}},800001965,"http://www.xbrl.org/scheme/companyName",null,{"$f":"Periodos!$C$4","v":"2017-12-31"},{"$f":"#REF!","v":{"$error":"#REF!"}},{"$f":"#REF!","v":{"$error":"#REF!"}}]
[{"$error":"#REF!"},null,{"$f":"#REF!","v":{"$error":"#REF!"}},{"$f":"#REF!","v":{"$error":"#REF!"}},null,null,{"$f":"#REF!","v":{"$error":"#REF!"}},800001965,"http://www.xbrl.org/scheme/companyName",null,{"$f":"Periodos!$C$4","v":"2017-12-31"},{"$f":"#REF!","v":{"$error":"#REF!"}},{"$f":"#REF!","v":{"$error":"#REF!"}}]
[{"$error":"#REF!"},null,{"$f":"#REF!","v":{"$error":"#REF!"}},{"$f":"#REF!","v":{"$error":"#REF!"}},null,null,{"$f":"#REF!","v":{"$error":"#REF!"}},800001965,"http://www.xbrl.org/scheme/companyName",null,{"$f":"Periodos!$C$4","v":"2017-12-31"},{"$f":"#REF!","v":{"$error":"#REF!"}},{"$f":"#REF!","v":{"$error":"#REF!"}}]
[{"$error":"#REF!"},null,{"$f":"#REF!","v":{"$error":"#REF!"}},{"$f":"#REF!","v":{"$error":"#REF!"}},null,null,{"$f":"#REF!","v":{"$error":"#REF!"}},800001965,"http://www.xbrl.org/scheme/companyName",null,{"$f":"Periodos!$C$4","v":"2017-12-31"},{"$f":"#REF!","v":{"$error":"#REF!"}},{"$f":"#REF!","v":{"$error":"#REF!"}}]
[{"$error":"#REF!"},null,{"$f":"#REF!","v":{"$error":"#REF!"}},{"$f":"#REF!","v":{"$error":"#REF!"}},0,"peso",{"$f":"#REF!","v":{"$error":"#REF!"}},800001965,"http://www.xbrl.org/scheme/companyName",null,{"$f":"Periodos!$C$4","v":"2017-12-31"},{"$f":"#REF!","v":{"$error":"#REF!"}},{"$f":"#REF!","v":{"$error":"#REF!"}}]
["/*",null,"--50--"]
[{"$error":"#REF!"},null,{"$f":"#REF!","v":{"$error":"#REF!"}},{"$f":"#REF!","v":{"$error":"#REF!"}},null,null,{"$f":"#REF!","v":{"$error":"#REF!"}},800001965,"http://www.xbrl.org/scheme/companyName",null,{"$f":"Periodos!$C$4","v":"2017-12-31"},{"$f":"#REF!","v":{"$error":"#REF!"}},{"$f":"#REF!","v":{"$error":"#REF!"}}]
[{"$error":"#REF!"},null,{"$f":"#REF!","v":{"$error":"#REF!"}},{"$f":"#REF!","v":{"$error":"#REF!"}},null,null,{"$f":"#REF!","v":{"$error":"#REF!"}},800001965,"http://www.xbrl.org/scheme/companyName",null,{"$f":"Periodos!$C$4","v":"2017-12-31"},{"$f":"#REF!","v":{"$error":"#REF!"}},{"$f":"#REF!","v":{"$error":"#REF!"}}]
[{"$error":"#REF!"},null,{"$f":"#REF!","v":{"$error":"#REF!"}},{"$f":"#REF!","v":{"$error":"#REF!"}},null,null,{"$f":"#REF!","v":{"$error":"#REF!"}},800001965,"http://www.xbrl.org/scheme/companyName",null,{"$f":"Periodos!$C$4","v":"2017-12-31"},{"$f":"#REF!","v":{"$error":"#REF!"}},{"$f":"#REF!","v":{"$error":"#REF!"}}]
[{"$error":"#REF!"},null,{"$f":"#REF!","v":{"$error":"#REF!"}},{"$f":"#REF!","v":{"$error":"#REF!"}},null,null,{"$f":"#REF!","v":{"$error":"#REF!"}},800001965,"http://www.xbrl.org/scheme/companyName",null,{"$f":"Periodos!$C$4","v":"2017-12-31"},{"$f":"#REF!","v":{"$error":"#REF!"}},{"$f":"#REF!","v":{"$error":"#REF!"}}]
[{"$error":"#REF!"},null,{"$f":"#REF!","v":{"$error":"#REF!"}},{"$f":"#REF!","v":{"$error":"#REF!"}},null,null,{"$f":"#REF!","v":{"$error":"#REF!"}},800001965,"http://www.xbrl.org/scheme/companyName",null,{"$f":"Periodos!$C$4","v":"2017-12-31"},{"$f":"#REF!","v":{"$error":"#REF!"}},{"$f":"#REF!","v":{"$error":"#REF!"}}]
[{"$error":"#REF!"},null,{"$f":"#REF!","v":{"$error":"#REF!"}},{"$f":"#REF!","v":{"$error":"#REF!"}},null,null,{"$f":"#REF!","v":{"$error":"#REF!"}},800001965,"http://www.xbrl.org/scheme/companyName",null,{"$f":"Periodos!$C$4","v":"2017-12-31"},{"$f":"#REF!","v":{"$error":"#REF!"}},{"$f":"#REF!","v":{"$error":"#REF!"}}]
[{"$error":"#REF!"},null,{"$f":"#REF!","v":{"$error":"#REF!"}},{"$f":"#REF!","v":{"$error":"#REF!"}},null,null,{"$f":"#REF!","v":{"$error":"#REF!"}},800001965,"http://www.xbrl.org/scheme/companyName",null,{"$f":"Periodos!$C$4","v":"2017-12-31"},{"$f":"#REF!","v":{"$error":"#REF!"}},{"$f":"#REF!","v":{"$error":"#REF!"}}]
[{"$error":"#REF!"},null,{"$f":"#REF!","v":{"$error":"#REF!"}},{"$f":"#REF!","v":{"$error":"#REF!"}},null,null,{"$f":"#REF!","v":{"$error":"#REF!"}},800001965,"http://www.xbrl.org/scheme/companyName",null,{"$f":"Periodos!$C$4","v":"2017-12-31"},{"$f":"#REF!","v":{"$error":"#REF!"}},{"$f":"#REF!","v":{"$error":"#REF!"}}]
[{"$error":"#REF!"},null,{"$f":"#REF!","v":{"$error":"#REF!"}},{"$f":"#REF!","v":{"$error":"#REF!"}},null,null,{"$f":"#REF!","v":{"$error":"#REF!"}},800001965,"http://www.xbrl.org/scheme/companyName",null,{"$f":"Periodos!$C$4","v":"2017-12-31"},{"$f":"#REF!","v":{"$error":"#REF!"}},{"$f":"#REF!","v":{"$error":"#REF!"}}]
[{"$error":"#REF!"},null,{"$f":"#REF!","v":{"$error":"#REF!"}},{"$f":"#REF!","v":{"$error":"#REF!"}},null,null,{"$f":"#REF!","v":{"$error":"#REF!"}},800001965,"http://www.xbrl.org/scheme/companyName",null,{"$f":"Periodos!$C$4","v":"2017-12-31"},{"$f":"#REF!","v":{"$error":"#REF!"}},{"$f":"#REF!","v":{"$error":"#REF!"}}]
[{"$error":"#REF!"},null,{"$f":"#REF!","v":{"$error":"#REF!"}},{"$f":"#REF!","v":{"$error":"#REF!"}},null,null,{"$f":"#REF!","v":{"$error":"#REF!"}},800001965,"http://www.xbrl.org/scheme/companyName",null,{"$f":"Periodos!$C$4","v":"2017-12-31"},{"$f":"#REF!","v":{"$error":"#REF!"}},{"$f":"#REF!","v":{"$error":"#REF!"}}]
[{"$error":"#REF!"},null,{"$f":"#REF!","v":{"$error":"#REF!"}},{"$f":"#REF!","v":{"$error":"#REF!"}},0,"peso",{"$f":"#REF!","v":{"$error":"#REF!"}},800001965,"http://www.xbrl.org/scheme/companyName",null,{"$f":"Periodos!$C$4","v":"2017-12-31"},{"$f":"#REF!","v":{"$error":"#REF!"}},{"$f":"#REF!","v":{"$error":"#REF!"}}]
["/*",null,"--51--"]
[{"$error":"#REF!"},null,{"$f":"#REF!","v":{"$error":"#REF!"}},{"$f":"#REF!","v":{"$error":"#REF!"}},null,null,{"$f":"#REF!","v":{"$error":"#REF!"}},800001965,"http://www.xbrl.org/scheme/companyName",null,{"$f":"Periodos!$C$4","v":"2017-12-31"},{"$f":"#REF!","v":{"$error":"#REF!"}},{"$f":"#REF!","v":{"$error":"#REF!"}}]
[{"$error":"#REF!"},null,{"$f":"#REF!","v":{"$error":"#REF!"}},{"$f":"#REF!","v":{"$error":"#REF!"}},null,null,{"$f":"#REF!","v":{"$error":"#REF!"}},800001965,"http://www.xbrl.org/scheme/companyName",null,{"$f":"Periodos!$C$4","v":"2017-12-31"},{"$f":"#REF!","v":{"$error":"#REF!"}},{"$f":"#REF!","v":{"$error":"#REF!"}}]
[{"$error":"#REF!"},null,{"$f":"#REF!","v":{"$error":"#REF!"}},{"$f":"#REF!","v":{"$error":"#REF!"}},null,null,{"$f":"#REF!","v":{"$error":"#REF!"}},800001965,"http://www.xbrl.org/scheme/companyName",null,{"$f":"Periodos!$C$4","v":"2017-12-31"},{"$f":"#REF!","v":{"$error":"#REF!"}},{"$f":"#REF!","v":{"$error":"#REF!"}}]
[{"$error":"#REF!"},null,{"$f":"#REF!","v":{"$error":"#REF!"}},{"$f":"#REF!","v":{"$error":"#REF!"}},null,null,{"$f":"#REF!","v":{"$error":"#REF!"}},800001965,"http://www.xbrl.org/scheme/companyName",null,{"$f":"Periodos!$C$4","v":"2017-12-31"},{"$f":"#REF!","v":{"$error":"#REF!"}},{"$f":"#REF!","v":{"$error":"#REF!"}}]
[{"$error":"#REF!"},null,{"$f":"#REF!","v":{"$error":"#REF!"}},{"$f":"#REF!","v":{"$error":"#REF!"}},null,null,{"$f":"#REF!","v":{"$error":"#REF!"}},800001965,"http://www.xbrl.org/scheme/companyName",null,{"$f":"Periodos!$C$4","v":"2017-12-31"},{"$f":"#REF!","v":{"$error":"#REF!"}},{"$f":"#REF!","v":{"$error":"#REF!"}}]
[{"$error":"#REF!"},null,{"$f":"#REF!","v":{"$error":"#REF!"}},{"$f":"#REF!","v":{"$error":"#REF!"}},null,null,{"$f":"#REF!","v":{"$error":"#REF!"}},800001965,"http://www.xbrl.org/scheme/companyName",null,{"$f":"Periodos!$C$4","v":"2017-12-31"},{"$f":"#REF!","v":{"$error":"#REF!"}},{"$f":"#REF!","v":{"$error":"#REF!"}}]
[{"$error":"#REF!"},null,{"$f":"#REF!","v":{"$error":"#REF!"}},{"$f":"#REF!","v":{"$error":"#REF!"}},null,null,{"$f":"#REF!","v":{"$error":"#REF!"}},800001965,"http://www.xbrl.org/scheme/companyName",null,{"$f":"Periodos!$C$4","v":"2017-12-31"},{"$f":"#REF!","v":{"$error":"#REF!"}},{"$f":"#REF!","v":{"$error":"#REF!"}}]
[{"$error":"#REF!"},null,{"$f":"#REF!","v":{"$error":"#REF!"}},{"$f":"#REF!","v":{"$error":"#REF!"}},null,null,{"$f":"#REF!","v":{"$error":"#REF!"}},800001965,"http://www.xbrl.org/scheme/companyName",null,{"$f":"Periodos!$C$4","v":"2017-12-31"},{"$f":"#REF!","v":{"$error":"#REF!"}},{"$f":"#REF!","v":{"$error":"#REF!"}}]
[{"$error":"#REF!"},null,{"$f":"#REF!","v":{"$error":"#REF!"}},{"$f":"#REF!","v":{"$error":"#REF!"}},null,null,{"$f":"#REF!","v":{"$error":"#REF!"}},800001965,"http://www.xbrl.org/scheme/companyName",null,{"$f":"Periodos!$C$4","v":"2017-12-31"},{"$f":"#REF!","v":{"$error":"#REF!"}},{"$f":"#REF!","v":{"$error":"#REF!"}}]
[{"$error":"#REF!"},null,{"$f":"#REF!","v":{"$error":"#REF!"}},{"$f":"#REF!","v":{"$error":"#REF!"}},null,null,{"$f":"#REF!","v":{"$error":"#REF!"}},800001965,"http://www.xbrl.org/scheme/companyName",null,{"$f":"Periodos!$C$4","v":"2017-12-31"},{"$f":"#REF!","v":{"$error":"#REF!"}},{"$f":"#REF!","v":{"$error":"#REF!"}}]
[{"$error":"#REF!"},null,{"$f":"#REF!","v":{"$error":"#REF!"}},{"$f":"#REF!","v":{"$error":"#REF!"}},null,null,{"$f":"#REF!","v":{"$error":"#REF!"}},800001965,"http://www.xbrl.org/scheme/companyName",null,{"$f":"Periodos!$C$4","v":"2017-12-31"},{"$f":"#REF!","v":{"$error":"#REF!"}},{"$f":"#REF!","v":{"$error":"#REF!"}}]
[{"$error":"#REF!"},null,{"$f":"#REF!","v":{"$error":"#REF!"}},{"$f":"#REF!","v":{"$error":"#REF!"}},0,"peso",{"$f":"#REF!","v":{"$error":"#REF!"}},800001965,"http://www.xbrl.org/scheme/companyName",null,{"$f":"Periodos!$C$4","v":"2017-12-31"},{"$f":"#REF!","v":{"$error":"#REF!"}},{"$f":"#REF!","v":{"$error":"#REF!"}}]
["/*",null,"--52--"]
[{"$error":"#REF!"},null,{"$f":"#REF!","v":{"$error":"#REF!"}},{"$f":"#REF!","v":{"$error":"#REF!"}},null,null,{"$f":"#REF!","v":{"$error":"#REF!"}},800001965,"http://www.xbrl.org/scheme/companyName",null,{"$f":"Periodos!$C$4","v":"2017-12-31"},{"$f":"#REF!","v":{"$error":"#REF!"}},{"$f":"#REF!","v":{"$error":"#REF!"}}]
[{"$error":"#REF!"},null,{"$f":"#REF!","v":{"$error":"#REF!"}},{"$f":"#REF!","v":{"$error":"#REF!"}},null,null,{"$f":"#REF!","v":{"$error":"#REF!"}},800001965,"http://www.xbrl.org/scheme/companyName",null,{"$f":"Periodos!$C$4","v":"2017-12-31"},{"$f":"#REF!","v":{"$error":"#REF!"}},{"$f":"#REF!","v":{"$error":"#REF!"}}]
[{"$error":"#REF!"},null,{"$f":"#REF!","v":{"$error":"#REF!"}},{"$f":"#REF!","v":{"$error":"#REF!"}},null,null,{"$f":"#REF!","v":{"$error":"#REF!"}},800001965,"http://www.xbrl.org/scheme/companyName",null,{"$f":"Periodos!$C$4","v":"2017-12-31"},{"$f":"#REF!","v":{"$error":"#REF!"}},{"$f":"#REF!","v":{"$error":"#REF!"}}]
[{"$error":"#REF!"},null,{"$f":"#REF!","v":{"$error":"#REF!"}},{"$f":"#REF!","v":{"$error":"#REF!"}},null,null,{"$f":"#REF!","v":{"$error":"#REF!"}},800001965,"http://www.xbrl.org/scheme/companyName",null,{"$f":"Periodos!$C$4","v":"2017-12-31"},{"$f":"#REF!","v":{"$error":"#REF!"}},{"$f":"#REF!","v":{"$error":"#REF!"}}]
[{"$f":"IF(G2337=\"\",\"/*\",\"\")","v":{"$error":"#REF!"}},null,{"$f":"#REF!","v":{"$error":"#REF!"}},{"$f":"#REF!","v":{"$error":"#REF!"}},null,null,{"$f":"#REF!","v":{"$error":"#REF!"}},800001965,"http://www.xbrl.org/scheme/companyName",null,{"$f":"Periodos!$C$4","v":"2017-12-31"},{"$f":"#REF!","v":{"$error":"#REF!"}},{"$f":"#REF!","v":{"$error":"#REF!"}}]
[{"$error":"#REF!"},null,{"$f":"#REF!","v":{"$error":"#REF!"}},{"$f":"#REF!","v":{"$error":"#REF!"}},null,null,{"$f":"#REF!","v":{"$error":"#REF!"}},800001965,"http://www.xbrl.org/scheme/companyName",null,{"$f":"Periodos!$C$4","v":"2017-12-31"},{"$f":"#REF!","v":{"$error":"#REF!"}},{"$f":"#REF!","v":{"$error":"#REF!"}}]
[{"$error":"#REF!"},null,{"$f":"#REF!","v":{"$error":"#REF!"}},{"$f":"#REF!","v":{"$error":"#REF!"}},null,null,{"$f":"#REF!","v":{"$error":"#REF!"}},800001965,"http://www.xbrl.org/scheme/companyName",null,{"$f":"Periodos!$C$4","v":"2017-12-31"},{"$f":"#REF!","v":{"$error":"#REF!"}},{"$f":"#REF!","v":{"$error":"#REF!"}}]
[{"$error":"#REF!"},null,{"$f":"#REF!","v":{"$error":"#REF!"}},{"$f":"#REF!","v":{"$error":"#REF!"}},null,null,{"$f":"#REF!","v":{"$error":"#REF!"}},800001965,"http://www.xbrl.org/scheme/companyName",null,{"$f":"Periodos!$C$4","v":"2017-12-31"},{"$f":"#REF!","v":{"$error":"#REF!"}},{"$f":"#REF!","v":{"$error":"#REF!"}}]
[{"$error":"#REF!"},null,{"$f":"#REF!","v":{"$error":"#REF!"}},{"$f":"#REF!","v":{"$error":"#REF!"}},null,null,{"$f":"#REF!","v":{"$error":"#REF!"}},800001965,"http://www.xbrl.org/scheme/companyName",null,{"$f":"Periodos!$C$4","v":"2017-12-31"},{"$f":"#REF!","v":{"$error":"#REF!"}},{"$f":"#REF!","v":{"$error":"#REF!"}}]
[{"$error":"#REF!"},null,{"$f":"#REF!","v":{"$error":"#REF!"}},{"$f":"#REF!","v":{"$error":"#REF!"}},null,null,{"$f":"#REF!","v":{"$error":"#REF!"}},800001965,"http://www.xbrl.org/scheme/companyName",null,{"$f":"Periodos!$C$4","v":"2017-12-31"},{"$f":"#REF!","v":{"$error":"#REF!"}},{"$f":"#REF!","v":{"$error":"#REF!"}}]
[{"$error":"#REF!"},null,{"$f":"#REF!","v":{"$error":"#REF!"}},{"$f":"#REF!","v":{"$error":"#REF!"}},null,null,{"$f":"#REF!","v":{"$error":"#REF!"}},800001965,"http://www.xbrl.org/scheme/companyName",null,{"$f":"Periodos!$C$4","v":"2017-12-31"},{"$f":"#REF!","v":{"$error":"#REF!"}},{"$f":"#REF!","v":{"$error":"#REF!"}}]
[{"$error":"#REF!"},null,{"$f":"#REF!","v":{"$error":"#REF!"}},{"$f":"#REF!","v":{"$error":"#REF!"}},0,"peso",{"$f":"#REF!","v":{"$error":"#REF!"}},800001965,"http://www.xbrl.org/scheme/companyName",null,{"$f":"Periodos!$C$4","v":"2017-12-31"},{"$f":"#REF!","v":{"$error":"#REF!"}},{"$f":"#REF!","v":{"$error":"#REF!"}}]
["/*",null,"--53--"]
["/*",null,{"$f":"#REF!","v":{"$error":"#REF!"}},{"$f":"#REF!","v":{"$error":"#REF!"}}]
["/*",null,{"$f":"#REF!","v":{"$error":"#REF!"}},{"$f":"#REF!","v":{"$error":"#REF!"}}]
["/*",null,{"$f":"#REF!","v":{"$error":"#REF!"}},{"$f":"#REF!","v":{"$error":"#REF!"}}]
["/*",null,{"$f":"#REF!","v":{"$error":"#REF!"}},{"$f":"#REF!","v":{"$error":"#REF!"}}]
["/*",null,{"$f":"#REF!","v":{"$error":"#REF!"}},{"$f":"#REF!","v":{"$error":"#REF!"}}]
["/*",null,{"$f":"#REF!","v":{"$error":"#REF!"}},{"$f":"#REF!","v":{"$error":"#REF!"}}]
["/*",null,{"$f":"#REF!","v":{"$error":"#REF!"}},{"$f":"#REF!","v":{"$error":"#REF!"}}]
["/*",null,{"$f":"#REF!","v":{"$error":"#REF!"}},{"$f":"#REF!","v":{"$error":"#REF!"}}]
["/*",null,{"$f":"#REF!","v":{"$error":"#REF!"}},{"$f":"#REF!","v":{"$error":"#REF!"}}]
["/*",null,{"$f":"#REF!","v":{"$error":"#REF!"}},{"$f":"#REF!","v":{"$error":"#REF!"}}]
["/*",null,{"$f":"#REF!","v":{"$error":"#REF!"}},{"$f":"#REF!","v":{"$error":"#REF!"}}]
[{"$error":"#REF!"},null,{"$f":"#REF!","v":{"$error":"#REF!"}},{"$f":"#REF!","v":{"$error":"#REF!"}},0,"peso",{"$f":"#REF!","v":{"$error":"#REF!"}},800001965,"http://www.xbrl.org/scheme/companyName",null,{"$f":"Periodos!$C$4","v":"2017-12-31"},{"$f":"#REF!","v":{"$error":"#REF!"}},{"$f":"#REF!","v":{"$error":"#REF!"}}]
["/*",null,"--54--"]
["/*",null,{"$f":"#REF!","v":{"$error":"#REF!"}},{"$f":"#REF!","v":{"$error":"#REF!"}}]
["/*",null,{"$f":"#REF!","v":{"$error":"#REF!"}},{"$f":"#REF!","v":{"$error":"#REF!"}}]
["/*",null,{"$f":"#REF!","v":{"$error":"#REF!"}},{"$f":"#REF!","v":{"$error":"#REF!"}}]
["/*",null,{"$f":"#REF!","v":{"$error":"#REF!"}},{"$f":"#REF!","v":{"$error":"#REF!"}}]
["/*",null,{"$f":"#REF!","v":{"$error":"#REF!"}},{"$f":"#REF!","v":{"$error":"#REF!"}}]
["/*",null,{"$f":"#REF!","v":{"$error":"#REF!"}},{"$f":"#REF!","v":{"$error":"#REF!"}}]
["/*",null,{"$f":"#REF!","v":{"$error":"#REF!"}},{"$f":"#REF!","v":{"$error":"#REF!"}}]
["/*",null,{"$f":"#REF!","v":{"$error":"#REF!"}},{"$f":"#REF!","v":{"$error":"#REF!"}}]
["/*",null,{"$f":"#REF!","v":{"$error":"#REF!"}},{"$f":"#REF!","v":{"$error":"#REF!"}}]
["/*",null,{"$f":"#REF!","v":{"$error":"#REF!"}},{"$f":"#REF!","v":{"$error":"#REF!"}}]
["/*",null,{"$f":"#REF!","v":{"$error":"#REF!"}},{"$f":"#REF!","v":{"$error":"#REF!"}}]
[{"$error":"#REF!"},null,{"$f":"#REF!","v":{"$error":"#REF!"}},{"$f":"#REF!","v":{"$error":"#REF!"}},0,"peso",{"$f":"#REF!","v":{"$error":"#REF!"}},800001965,"http://www.xbrl.org/scheme/companyName",null,{"$f":"Periodos!$C$4","v":"2017-12-31"},{"$f":"#REF!","v":{"$error":"#REF!"}},{"$f":"#REF!","v":{"$error":"#REF!"}}]
["/*",null,"--55--"]
["/*",null,{"$f":"#REF!","v":{"$error":"#REF!"}},{"$f":"#REF!","v":{"$error":"#REF!"}}]
["/*",null,{"$f":"#REF!","v":{"$error":"#REF!"}},{"$f":"#REF!","v":{"$error":"#REF!"}}]
["/*",null,{"$f":"#REF!","v":{"$error":"#REF!"}},{"$f":"#REF!","v":{"$error":"#REF!"}}]
["/*",null,{"$f":"#REF!","v":{"$error":"#REF!"}},{"$f":"#REF!","v":{"$error":"#REF!"}}]
["/*",null,{"$f":"#REF!","v":{"$error":"#REF!"}},{"$f":"#REF!","v":{"$error":"#REF!"}}]
["/*",null,{"$f":"#REF!","v":{"$error":"#REF!"}},{"$f":"#REF!","v":{"$error":"#REF!"}}]
["/*",null,{"$f":"#REF!","v":{"$error":"#REF!"}},{"$f":"#REF!","v":{"$error":"#REF!"}}]
["/*",null,{"$f":"#REF!","v":{"$error":"#REF!"}},{"$f":"#REF!","v":{"$error":"#REF!"}}]
["/*",null,{"$f":"#REF!","v":{"$error":"#REF!"}},{"$f":"#REF!","v":{"$error":"#REF!"}}]
["/*",null,{"$f":"#REF!","v":{"$error":"#REF!"}},{"$f":"#REF!","v":{"$error":"#REF!"}}]
["/*",null,{"$f":"#REF!","v":{"$error":"#REF!"}},{"$f":"#REF!","v":{"$error":"#REF!"}}]
["/*",null,{"$f":"#REF!","v":{"$error":"#REF!"}},{"$f":"#REF!","v":{"$error":"#REF!"}}]
["/*",null,"--56--"]
[{"$error":"#REF!"},null,{"$f":"#REF!","v":{"$error":"#REF!"}},{"$f":"#REF!","v":{"$error":"#REF!"}},null,null,{"$f":"#REF!","v":{"$error":"#REF!"}},800001965,"http://www.xbrl.org/scheme/companyName",null,{"$f":"Periodos!$C$4","v":"2017-12-31"},{"$f":"#REF!","v":{"$error":"#REF!"}},{"$f":"#REF!","v":{"$error":"#REF!"}}]
[{"$error":"#REF!"},null,{"$f":"#REF!","v":{"$error":"#REF!"}},{"$f":"#REF!","v":{"$error":"#REF!"}},null,null,{"$f":"#REF!","v":{"$error":"#REF!"}},800001965,"http://www.xbrl.org/scheme/companyName",null,{"$f":"Periodos!$C$4","v":"2017-12-31"},{"$f":"#REF!","v":{"$error":"#REF!"}},{"$f":"#REF!","v":{"$error":"#REF!"}}]
[{"$error":"#REF!"},null,{"$f":"#REF!","v":{"$error":"#REF!"}},{"$f":"#REF!","v":{"$error":"#REF!"}},null,null,{"$f":"#REF!","v":{"$error":"#REF!"}},800001965,"http://www.xbrl.org/scheme/companyName",null,{"$f":"Periodos!$C$4","v":"2017-12-31"},{"$f":"#REF!","v":{"$error":"#REF!"}},{"$f":"#REF!","v":{"$error":"#REF!"}}]
[{"$error":"#REF!"},null,{"$f":"#REF!","v":{"$error":"#REF!"}},{"$f":"#REF!","v":{"$error":"#REF!"}},null,null,{"$f":"#REF!","v":{"$error":"#REF!"}},800001965,"http://www.xbrl.org/scheme/companyName",null,{"$f":"Periodos!$C$4","v":"2017-12-31"},{"$f":"#REF!","v":{"$error":"#REF!"}},{"$f":"#REF!","v":{"$error":"#REF!"}}]
[{"$error":"#REF!"},null,{"$f":"#REF!","v":{"$error":"#REF!"}},{"$f":"#REF!","v":{"$error":"#REF!"}},null,null,{"$f":"#REF!","v":{"$error":"#REF!"}},800001965,"http://www.xbrl.org/scheme/companyName",null,{"$f":"Periodos!$C$4","v":"2017-12-31"},{"$f":"#REF!","v":{"$error":"#REF!"}},{"$f":"#REF!","v":{"$error":"#REF!"}}]
[{"$error":"#REF!"},null,{"$f":"#REF!","v":{"$error":"#REF!"}},{"$f":"#REF!","v":{"$error":"#REF!"}},null,null,{"$f":"#REF!","v":{"$error":"#REF!"}},800001965,"http://www.xbrl.org/scheme/companyName",null,{"$f":"Periodos!$C$4","v":"2017-12-31"},{"$f":"#REF!","v":{"$error":"#REF!"}},{"$f":"#REF!","v":{"$error":"#REF!"}}]
[{"$error":"#REF!"},null,{"$f":"#REF!","v":{"$error":"#REF!"}},{"$f":"#REF!","v":{"$error":"#REF!"}},null,null,{"$f":"#REF!","v":{"$error":"#REF!"}},800001965,"http://www.xbrl.org/scheme/companyName",null,{"$f":"Periodos!$C$4","v":"2017-12-31"},{"$f":"#REF!","v":{"$error":"#REF!"}},{"$f":"#REF!","v":{"$error":"#REF!"}}]
[{"$error":"#REF!"},null,{"$f":"#REF!","v":{"$error":"#REF!"}},{"$f":"#REF!","v":{"$error":"#REF!"}},null,null,{"$f":"#REF!","v":{"$error":"#REF!"}},800001965,"http://www.xbrl.org/scheme/companyName",null,{"$f":"Periodos!$C$4","v":"2017-12-31"},{"$f":"#REF!","v":{"$error":"#REF!"}},{"$f":"#REF!","v":{"$error":"#REF!"}}]
[{"$error":"#REF!"},null,{"$f":"#REF!","v":{"$error":"#REF!"}},{"$f":"#REF!","v":{"$error":"#REF!"}},null,null,{"$f":"#REF!","v":{"$error":"#REF!"}},800001965,"http://www.xbrl.org/scheme/companyName",null,{"$f":"Periodos!$C$4","v":"2017-12-31"},{"$f":"#REF!","v":{"$error":"#REF!"}},{"$f":"#REF!","v":{"$error":"#REF!"}}]
[{"$error":"#REF!"},null,{"$f":"#REF!","v":{"$error":"#REF!"}},{"$f":"#REF!","v":{"$error":"#REF!"}},null,null,{"$f":"#REF!","v":{"$error":"#REF!"}},800001965,"http://www.xbrl.org/scheme/companyName",null,{"$f":"Periodos!$C$4","v":"2017-12-31"},{"$f":"#REF!","v":{"$error":"#REF!"}},{"$f":"#REF!","v":{"$error":"#REF!"}}]
[{"$error":"#REF!"},null,{"$f":"#REF!","v":{"$error":"#REF!"}},{"$f":"#REF!","v":{"$error":"#REF!"}},null,null,{"$f":"#REF!","v":{"$error":"#REF!"}},800001965,"http://www.xbrl.org/scheme/companyName",null,{"$f":"Periodos!$C$4","v":"2017-12-31"},{"$f":"#REF!","v":{"$error":"#REF!"}},{"$f":"#REF!","v":{"$error":"#REF!"}}]
[{"$error":"#REF!"},null,{"$f":"#REF!","v":{"$error":"#REF!"}},{"$f":"#REF!","v":{"$error":"#REF!"}},0,"peso",{"$f":"#REF!","v":{"$error":"#REF!"}},800001965,"http://www.xbrl.org/scheme/companyName",null,{"$f":"Periodos!$C$4","v":"2017-12-31"},{"$f":"#REF!","v":{"$error":"#REF!"}},{"$f":"#REF!","v":{"$error":"#REF!"}}]
["/*",null,"--57--"]
[{"$error":"#REF!"},null,{"$f":"#REF!","v":{"$error":"#REF!"}},{"$f":"#REF!","v":{"$error":"#REF!"}},null,null,{"$f":"#REF!","v":{"$error":"#REF!"}},800001965,"http://www.xbrl.org/scheme/companyName",null,{"$f":"Periodos!$C$4","v":"2017-12-31"},{"$f":"#REF!","v":{"$error":"#REF!"}},{"$f":"#REF!","v":{"$error":"#REF!"}}]
[{"$error":"#REF!"},null,{"$f":"#REF!","v":{"$error":"#REF!"}},{"$f":"#REF!","v":{"$error":"#REF!"}},null,null,{"$f":"#REF!","v":{"$error":"#REF!"}},800001965,"http://www.xbrl.org/scheme/companyName",null,{"$f":"Periodos!$C$4","v":"2017-12-31"},{"$f":"#REF!","v":{"$error":"#REF!"}},{"$f":"#REF!","v":{"$error":"#REF!"}}]
[{"$error":"#REF!"},null,{"$f":"#REF!","v":{"$error":"#REF!"}},{"$f":"#REF!","v":{"$error":"#REF!"}},null,null,{"$f":"#REF!","v":{"$error":"#REF!"}},800001965,"http://www.xbrl.org/scheme/companyName",null,{"$f":"Periodos!$C$4","v":"2017-12-31"},{"$f":"#REF!","v":{"$error":"#REF!"}},{"$f":"#REF!","v":{"$error":"#REF!"}}]
[{"$f":"IF(G2401=\"\",\"/*\",\"\")","v":{"$error":"#REF!"}},null,{"$f":"#REF!","v":{"$error":"#REF!"}},{"$f":"#REF!","v":{"$error":"#REF!"}},null,null,{"$f":"#REF!","v":{"$error":"#REF!"}},800001965,"http://www.xbrl.org/scheme/companyName",null,{"$f":"Periodos!$C$4","v":"2017-12-31"},{"$f":"#REF!","v":{"$error":"#REF!"}},{"$f":"#REF!","v":{"$error":"#REF!"}}]
[{"$error":"#REF!"},null,{"$f":"#REF!","v":{"$error":"#REF!"}},{"$f":"#REF!","v":{"$error":"#REF!"}},null,null,{"$f":"#REF!","v":{"$error":"#REF!"}},800001965,"http://www.xbrl.org/scheme/companyName",null,{"$f":"Periodos!$C$4","v":"2017-12-31"},{"$f":"#REF!","v":{"$error":"#REF!"}},{"$f":"#REF!","v":{"$error":"#REF!"}}]
[{"$error":"#REF!"},null,{"$f":"#REF!","v":{"$error":"#REF!"}},{"$f":"#REF!","v":{"$error":"#REF!"}},null,null,{"$f":"#REF!","v":{"$error":"#REF!"}},800001965,"http://www.xbrl.org/scheme/companyName",null,{"$f":"Periodos!$C$4","v":"2017-12-31"},{"$f":"#REF!","v":{"$error":"#REF!"}},{"$f":"#REF!","v":{"$error":"#REF!"}}]
[{"$error":"#REF!"},null,{"$f":"#REF!","v":{"$error":"#REF!"}},{"$f":"#REF!","v":{"$error":"#REF!"}},null,null,{"$f":"#REF!","v":{"$error":"#REF!"}},800001965,"http://www.xbrl.org/scheme/companyName",null,{"$f":"Periodos!$C$4","v":"2017-12-31"},{"$f":"#REF!","v":{"$error":"#REF!"}},{"$f":"#REF!","v":{"$error":"#REF!"}}]
[{"$error":"#REF!"},null,{"$f":"#REF!","v":{"$error":"#REF!"}},{"$f":"#REF!","v":{"$error":"#REF!"}},null,null,{"$f":"#REF!","v":{"$error":"#REF!"}},800001965,"http://www.xbrl.org/scheme/companyName",null,{"$f":"Periodos!$C$4","v":"2017-12-31"},{"$f":"#REF!","v":{"$error":"#REF!"}},{"$f":"#REF!","v":{"$error":"#REF!"}}]
[{"$error":"#REF!"},null,{"$f":"#REF!","v":{"$error":"#REF!"}},{"$f":"#REF!","v":{"$error":"#REF!"}},null,null,{"$f":"#REF!","v":{"$error":"#REF!"}},800001965,"http://www.xbrl.org/scheme/companyName",null,{"$f":"Periodos!$C$4","v":"2017-12-31"},{"$f":"#REF!","v":{"$error":"#REF!"}},{"$f":"#REF!","v":{"$error":"#REF!"}}]
[{"$error":"#REF!"},null,{"$f":"#REF!","v":{"$error":"#REF!"}},{"$f":"#REF!","v":{"$error":"#REF!"}},null,null,{"$f":"#REF!","v":{"$error":"#REF!"}},800001965,"http://www.xbrl.org/scheme/companyName",null,{"$f":"Periodos!$C$4","v":"2017-12-31"},{"$f":"#REF!","v":{"$error":"#REF!"}},{"$f":"#REF!","v":{"$error":"#REF!"}}]
[{"$error":"#REF!"},null,{"$f":"#REF!","v":{"$error":"#REF!"}},{"$f":"#REF!","v":{"$error":"#REF!"}},null,null,{"$f":"#REF!","v":{"$error":"#REF!"}},800001965,"http://www.xbrl.org/scheme/companyName",null,{"$f":"Periodos!$C$4","v":"2017-12-31"},{"$f":"#REF!","v":{"$error":"#REF!"}},{"$f":"#REF!","v":{"$error":"#REF!"}}]
[{"$error":"#REF!"},null,{"$f":"#REF!","v":{"$error":"#REF!"}},{"$f":"#REF!","v":{"$error":"#REF!"}},0,"peso",{"$f":"#REF!","v":{"$error":"#REF!"}},800001965,"http://www.xbrl.org/scheme/companyName",null,{"$f":"Periodos!$C$4","v":"2017-12-31"},{"$f":"#REF!","v":{"$error":"#REF!"}},{"$f":"#REF!","v":{"$error":"#REF!"}}]
["/*",null,"--58--"]
[{"$error":"#REF!"},null,{"$f":"#REF!","v":{"$error":"#REF!"}},{"$f":"#REF!","v":{"$error":"#REF!"}},null,null,{"$f":"#REF!","v":{"$error":"#REF!"}},800001965,"http://www.xbrl.org/scheme/companyName",null,{"$f":"Periodos!$C$4","v":"2017-12-31"},{"$f":"#REF!","v":{"$error":"#REF!"}},{"$f":"#REF!","v":{"$error":"#REF!"}}]
[{"$error":"#REF!"},null,{"$f":"#REF!","v":{"$error":"#REF!"}},{"$f":"#REF!","v":{"$error":"#REF!"}},null,null,{"$f":"#REF!","v":{"$error":"#REF!"}},800001965,"http://www.xbrl.org/scheme/companyName",null,{"$f":"Periodos!$C$4","v":"2017-12-31"},{"$f":"#REF!","v":{"$error":"#REF!"}},{"$f":"#REF!","v":{"$error":"#REF!"}}]
[{"$error":"#REF!"},null,{"$f":"#REF!","v":{"$error":"#REF!"}},{"$f":"#REF!","v":{"$error":"#REF!"}},null,null,{"$f":"#REF!","v":{"$error":"#REF!"}},800001965,"http://www.xbrl.org/scheme/companyName",null,{"$f":"Periodos!$C$4","v":"2017-12-31"},{"$f":"#REF!","v":{"$error":"#REF!"}},{"$f":"#REF!","v":{"$error":"#REF!"}}]
[{"$error":"#REF!"},null,{"$f":"#REF!","v":{"$error":"#REF!"}},{"$f":"#REF!","v":{"$error":"#REF!"}},null,null,{"$f":"#REF!","v":{"$error":"#REF!"}},800001965,"http://www.xbrl.org/scheme/companyName",null,{"$f":"Periodos!$C$4","v":"2017-12-31"},{"$f":"#REF!","v":{"$error":"#REF!"}},{"$f":"#REF!","v":{"$error":"#REF!"}}]
[{"$error":"#REF!"},null,{"$f":"#REF!","v":{"$error":"#REF!"}},{"$f":"#REF!","v":{"$error":"#REF!"}},null,null,{"$f":"#REF!","v":{"$error":"#REF!"}},800001965,"http://www.xbrl.org/scheme/companyName",null,{"$f":"Periodos!$C$4","v":"2017-12-31"},{"$f":"#REF!","v":{"$error":"#REF!"}},{"$f":"#REF!","v":{"$error":"#REF!"}}]
[{"$error":"#REF!"},null,{"$f":"#REF!","v":{"$error":"#REF!"}},{"$f":"#REF!","v":{"$error":"#REF!"}},null,null,{"$f":"#REF!","v":{"$error":"#REF!"}},800001965,"http://www.xbrl.org/scheme/companyName",null,{"$f":"Periodos!$C$4","v":"2017-12-31"},{"$f":"#REF!","v":{"$error":"#REF!"}},{"$f":"#REF!","v":{"$error":"#REF!"}}]
[{"$error":"#REF!"},null,{"$f":"#REF!","v":{"$error":"#REF!"}},{"$f":"#REF!","v":{"$error":"#REF!"}},null,null,{"$f":"#REF!","v":{"$error":"#REF!"}},800001965,"http://www.xbrl.org/scheme/companyName",null,{"$f":"Periodos!$C$4","v":"2017-12-31"},{"$f":"#REF!","v":{"$error":"#REF!"}},{"$f":"#REF!","v":{"$error":"#REF!"}}]
[{"$error":"#REF!"},null,{"$f":"#REF!","v":{"$error":"#REF!"}},{"$f":"#REF!","v":{"$error":"#REF!"}},null,null,{"$f":"#REF!","v":{"$error":"#REF!"}},800001965,"http://www.xbrl.org/scheme/companyName",null,{"$f":"Periodos!$C$4","v":"2017-12-31"},{"$f":"#REF!","v":{"$error":"#REF!"}},{"$f":"#REF!","v":{"$error":"#REF!"}}]
[{"$error":"#REF!"},null,{"$f":"#REF!","v":{"$error":"#REF!"}},{"$f":"#REF!","v":{"$error":"#REF!"}},null,null,{"$f":"#REF!","v":{"$error":"#REF!"}},800001965,"http://www.xbrl.org/scheme/companyName",null,{"$f":"Periodos!$C$4","v":"2017-12-31"},{"$f":"#REF!","v":{"$error":"#REF!"}},{"$f":"#REF!","v":{"$error":"#REF!"}}]
[{"$error":"#REF!"},null,{"$f":"#REF!","v":{"$error":"#REF!"}},{"$f":"#REF!","v":{"$error":"#REF!"}},null,null,{"$f":"#REF!","v":{"$error":"#REF!"}},800001965,"http://www.xbrl.org/scheme/companyName",null,{"$f":"Periodos!$C$4","v":"2017-12-31"},{"$f":"#REF!","v":{"$error":"#REF!"}},{"$f":"#REF!","v":{"$error":"#REF!"}}]
[{"$error":"#REF!"},null,{"$f":"#REF!","v":{"$error":"#REF!"}},{"$f":"#REF!","v":{"$error":"#REF!"}},null,null,{"$f":"#REF!","v":{"$error":"#REF!"}},800001965,"http://www.xbrl.org/scheme/companyName",null,{"$f":"Periodos!$C$4","v":"2017-12-31"},{"$f":"#REF!","v":{"$error":"#REF!"}},{"$f":"#REF!","v":{"$error":"#REF!"}}]
[{"$error":"#REF!"},null,{"$f":"#REF!","v":{"$error":"#REF!"}},{"$f":"#REF!","v":{"$error":"#REF!"}},0,"peso",{"$f":"#REF!","v":{"$error":"#REF!"}},800001965,"http://www.xbrl.org/scheme/companyName",null,{"$f":"Periodos!$C$4","v":"2017-12-31"},{"$f":"#REF!","v":{"$error":"#REF!"}},{"$f":"#REF!","v":{"$error":"#REF!"}}]
["/*",null,"--59--"]
[{"$error":"#REF!"},null,{"$f":"#REF!","v":{"$error":"#REF!"}},{"$f":"#REF!","v":{"$error":"#REF!"}},null,null,{"$f":"#REF!","v":{"$error":"#REF!"}},800001965,"http://www.xbrl.org/scheme/companyName",null,{"$f":"Periodos!$C$4","v":"2017-12-31"},{"$f":"#REF!","v":{"$error":"#REF!"}},{"$f":"#REF!","v":{"$error":"#REF!"}}]
[{"$error":"#REF!"},null,{"$f":"#REF!","v":{"$error":"#REF!"}},{"$f":"#REF!","v":{"$error":"#REF!"}},null,null,{"$f":"#REF!","v":{"$error":"#REF!"}},800001965,"http://www.xbrl.org/scheme/companyName",null,{"$f":"Periodos!$C$4","v":"2017-12-31"},{"$f":"#REF!","v":{"$error":"#REF!"}},{"$f":"#REF!","v":{"$error":"#REF!"}}]
[{"$error":"#REF!"},null,{"$f":"#REF!","v":{"$error":"#REF!"}},{"$f":"#REF!","v":{"$error":"#REF!"}},null,null,{"$f":"#REF!","v":{"$error":"#REF!"}},800001965,"http://www.xbrl.org/scheme/companyName",null,{"$f":"Periodos!$C$4","v":"2017-12-31"},{"$f":"#REF!","v":{"$error":"#REF!"}},{"$f":"#REF!","v":{"$error":"#REF!"}}]
[{"$error":"#REF!"},null,{"$f":"#REF!","v":{"$error":"#REF!"}},{"$f":"#REF!","v":{"$error":"#REF!"}},null,null,{"$f":"#REF!","v":{"$error":"#REF!"}},800001965,"http://www.xbrl.org/scheme/companyName",null,{"$f":"Periodos!$C$4","v":"2017-12-31"},{"$f":"#REF!","v":{"$error":"#REF!"}},{"$f":"#REF!","v":{"$error":"#REF!"}}]
[{"$error":"#REF!"},null,{"$f":"#REF!","v":{"$error":"#REF!"}},{"$f":"#REF!","v":{"$error":"#REF!"}},null,null,{"$f":"#REF!","v":{"$error":"#REF!"}},800001965,"http://www.xbrl.org/scheme/companyName",null,{"$f":"Periodos!$C$4","v":"2017-12-31"},{"$f":"#REF!","v":{"$error":"#REF!"}},{"$f":"#REF!","v":{"$error":"#REF!"}}]
[{"$error":"#REF!"},null,{"$f":"#REF!","v":{"$error":"#REF!"}},{"$f":"#REF!","v":{"$error":"#REF!"}},null,null,{"$f":"#REF!","v":{"$error":"#REF!"}},800001965,"http://www.xbrl.org/scheme/companyName",null,{"$f":"Periodos!$C$4","v":"2017-12-31"},{"$f":"#REF!","v":{"$error":"#REF!"}},{"$f":"#REF!","v":{"$error":"#REF!"}}]
[{"$error":"#REF!"},null,{"$f":"#REF!","v":{"$error":"#REF!"}},{"$f":"#REF!","v":{"$error":"#REF!"}},null,null,{"$f":"#REF!","v":{"$error":"#REF!"}},800001965,"http://www.xbrl.org/scheme/companyName",null,{"$f":"Periodos!$C$4","v":"2017-12-31"},{"$f":"#REF!","v":{"$error":"#REF!"}},{"$f":"#REF!","v":{"$error":"#REF!"}}]
[{"$error":"#REF!"},null,{"$f":"#REF!","v":{"$error":"#REF!"}},{"$f":"#REF!","v":{"$error":"#REF!"}},null,null,{"$f":"#REF!","v":{"$error":"#REF!"}},800001965,"http://www.xbrl.org/scheme/companyName",null,{"$f":"Periodos!$C$4","v":"2017-12-31"},{"$f":"#REF!","v":{"$error":"#REF!"}},{"$f":"#REF!","v":{"$error":"#REF!"}}]
[{"$error":"#REF!"},null,{"$f":"#REF!","v":{"$error":"#REF!"}},{"$f":"#REF!","v":{"$error":"#REF!"}},null,null,{"$f":"#REF!","v":{"$error":"#REF!"}},800001965,"http://www.xbrl.org/scheme/companyName",null,{"$f":"Periodos!$C$4","v":"2017-12-31"},{"$f":"#REF!","v":{"$error":"#REF!"}},{"$f":"#REF!","v":{"$error":"#REF!"}}]
[{"$error":"#REF!"},null,{"$f":"#REF!","v":{"$error":"#REF!"}},{"$f":"#REF!","v":{"$error":"#REF!"}},null,null,{"$f":"#REF!","v":{"$error":"#REF!"}},800001965,"http://www.xbrl.org/scheme/companyName",null,{"$f":"Periodos!$C$4","v":"2017-12-31"},{"$f":"#REF!","v":{"$error":"#REF!"}},{"$f":"#REF!","v":{"$error":"#REF!"}}]
[{"$error":"#REF!"},null,{"$f":"#REF!","v":{"$error":"#REF!"}},{"$f":"#REF!","v":{"$error":"#REF!"}},null,null,{"$f":"#REF!","v":{"$error":"#REF!"}},800001965,"http://www.xbrl.org/scheme/companyName",null,{"$f":"Periodos!$C$4","v":"2017-12-31"},{"$f":"#REF!","v":{"$error":"#REF!"}},{"$f":"#REF!","v":{"$error":"#REF!"}}]
[{"$error":"#REF!"},null,{"$f":"#REF!","v":{"$error":"#REF!"}},{"$f":"#REF!","v":{"$error":"#REF!"}},0,"peso",{"$f":"#REF!","v":{"$error":"#REF!"}},800001965,"http://www.xbrl.org/scheme/companyName",null,{"$f":"Periodos!$C$4","v":"2017-12-31"},{"$f":"#REF!","v":{"$error":"#REF!"}},{"$f":"#REF!","v":{"$error":"#REF!"}}]
["/*",null,"--60--"]
[{"$error":"#REF!"},null,{"$f":"#REF!","v":{"$error":"#REF!"}},{"$f":"#REF!","v":{"$error":"#REF!"}},null,null,{"$f":"#REF!","v":{"$error":"#REF!"}},800001965,"http://www.xbrl.org/scheme/companyName",null,{"$f":"Periodos!$C$4","v":"2017-12-31"},{"$f":"#REF!","v":{"$error":"#REF!"}},{"$f":"#REF!","v":{"$error":"#REF!"}}]
[{"$error":"#REF!"},null,{"$f":"#REF!","v":{"$error":"#REF!"}},{"$f":"#REF!","v":{"$error":"#REF!"}},null,null,{"$f":"#REF!","v":{"$error":"#REF!"}},800001965,"http://www.xbrl.org/scheme/companyName",null,{"$f":"Periodos!$C$4","v":"2017-12-31"},{"$f":"#REF!","v":{"$error":"#REF!"}},{"$f":"#REF!","v":{"$error":"#REF!"}}]
[{"$error":"#REF!"},null,{"$f":"#REF!","v":{"$error":"#REF!"}},{"$f":"#REF!","v":{"$error":"#REF!"}},null,null,{"$f":"#REF!","v":{"$error":"#REF!"}},800001965,"http://www.xbrl.org/scheme/companyName",null,{"$f":"Periodos!$C$4","v":"2017-12-31"},{"$f":"#REF!","v":{"$error":"#REF!"}},{"$f":"#REF!","v":{"$error":"#REF!"}}]
[{"$error":"#REF!"},null,{"$f":"#REF!","v":{"$error":"#REF!"}},{"$f":"#REF!","v":{"$error":"#REF!"}},null,null,{"$f":"#REF!","v":{"$error":"#REF!"}},800001965,"http://www.xbrl.org/scheme/companyName",null,{"$f":"Periodos!$C$4","v":"2017-12-31"},{"$f":"#REF!","v":{"$error":"#REF!"}},{"$f":"#REF!","v":{"$error":"#REF!"}}]
[{"$error":"#REF!"},null,{"$f":"#REF!","v":{"$error":"#REF!"}},{"$f":"#REF!","v":{"$error":"#REF!"}},null,null,{"$f":"#REF!","v":{"$error":"#REF!"}},800001965,"http://www.xbrl.org/scheme/companyName",null,{"$f":"Periodos!$C$4","v":"2017-12-31"},{"$f":"#REF!","v":{"$error":"#REF!"}},{"$f":"#REF!","v":{"$error":"#REF!"}}]
[{"$error":"#REF!"},null,{"$f":"#REF!","v":{"$error":"#REF!"}},{"$f":"#REF!","v":{"$error":"#REF!"}},null,null,{"$f":"#REF!","v":{"$error":"#REF!"}},800001965,"http://www.xbrl.org/scheme/companyName",null,{"$f":"Periodos!$C$4","v":"2017-12-31"},{"$f":"#REF!","v":{"$error":"#REF!"}},{"$f":"#REF!","v":{"$error":"#REF!"}}]
[{"$error":"#REF!"},null,{"$f":"#REF!","v":{"$error":"#REF!"}},{"$f":"#REF!","v":{"$error":"#REF!"}},null,null,{"$f":"#REF!","v":{"$error":"#REF!"}},800001965,"http://www.xbrl.org/scheme/companyName",null,{"$f":"Periodos!$C$4","v":"2017-12-31"},{"$f":"#REF!","v":{"$error":"#REF!"}},{"$f":"#REF!","v":{"$error":"#REF!"}}]
[{"$error":"#REF!"},null,{"$f":"#REF!","v":{"$error":"#REF!"}},{"$f":"#REF!","v":{"$error":"#REF!"}},null,null,{"$f":"#REF!","v":{"$error":"#REF!"}},800001965,"http://www.xbrl.org/scheme/companyName",null,{"$f":"Periodos!$C$4","v":"2017-12-31"},{"$f":"#REF!","v":{"$error":"#REF!"}},{"$f":"#REF!","v":{"$error":"#REF!"}}]
[{"$error":"#REF!"},null,{"$f":"#REF!","v":{"$error":"#REF!"}},{"$f":"#REF!","v":{"$error":"#REF!"}},null,null,{"$f":"#REF!","v":{"$error":"#REF!"}},800001965,"http://www.xbrl.org/scheme/companyName",null,{"$f":"Periodos!$C$4","v":"2017-12-31"},{"$f":"#REF!","v":{"$error":"#REF!"}},{"$f":"#REF!","v":{"$error":"#REF!"}}]
[{"$error":"#REF!"},null,{"$f":"#REF!","v":{"$error":"#REF!"}},{"$f":"#REF!","v":{"$error":"#REF!"}},null,null,{"$f":"#REF!","v":{"$error":"#REF!"}},800001965,"http://www.xbrl.org/scheme/companyName",null,{"$f":"Periodos!$C$4","v":"2017-12-31"},{"$f":"#REF!","v":{"$error":"#REF!"}},{"$f":"#REF!","v":{"$error":"#REF!"}}]
[{"$error":"#REF!"},null,{"$f":"#REF!","v":{"$error":"#REF!"}},{"$f":"#REF!","v":{"$error":"#REF!"}},null,null,{"$f":"#REF!","v":{"$error":"#REF!"}},800001965,"http://www.xbrl.org/scheme/companyName",null,{"$f":"Periodos!$C$4","v":"2017-12-31"},{"$f":"#REF!","v":{"$error":"#REF!"}},{"$f":"#REF!","v":{"$error":"#REF!"}}]
[{"$error":"#REF!"},null,{"$f":"#REF!","v":{"$error":"#REF!"}},{"$f":"#REF!","v":{"$error":"#REF!"}},0,"peso",{"$f":"#REF!","v":{"$error":"#REF!"}},800001965,"http://www.xbrl.org/scheme/companyName",null,{"$f":"Periodos!$C$4","v":"2017-12-31"},{"$f":"#REF!","v":{"$error":"#REF!"}},{"$f":"#REF!","v":{"$error":"#REF!"}}]
["/*",null,"--61--"]
[{"$error":"#REF!"},null,{"$f":"#REF!","v":{"$error":"#REF!"}},{"$f":"#REF!","v":{"$error":"#REF!"}},null,null,{"$f":"#REF!","v":{"$error":"#REF!"}},800001965,"http://www.xbrl.org/scheme/companyName",null,{"$f":"Periodos!$C$4","v":"2017-12-31"},{"$f":"#REF!","v":{"$error":"#REF!"}},{"$f":"#REF!","v":{"$error":"#REF!"}}]
[{"$error":"#REF!"},null,{"$f":"#REF!","v":{"$error":"#REF!"}},{"$f":"#REF!","v":{"$error":"#REF!"}},null,null,{"$f":"#REF!","v":{"$error":"#REF!"}},800001965,"http://www.xbrl.org/scheme/companyName",null,{"$f":"Periodos!$C$4","v":"2017-12-31"},{"$f":"#REF!","v":{"$error":"#REF!"}},{"$f":"#REF!","v":{"$error":"#REF!"}}]
[{"$error":"#REF!"},null,{"$f":"#REF!","v":{"$error":"#REF!"}},{"$f":"#REF!","v":{"$error":"#REF!"}},null,null,{"$f":"#REF!","v":{"$error":"#REF!"}},800001965,"http://www.xbrl.org/scheme/companyName",null,{"$f":"Periodos!$C$4","v":"2017-12-31"},{"$f":"#REF!","v":{"$error":"#REF!"}},{"$f":"#REF!","v":{"$error":"#REF!"}}]
[{"$error":"#REF!"},null,{"$f":"#REF!","v":{"$error":"#REF!"}},{"$f":"#REF!","v":{"$error":"#REF!"}},null,null,{"$f":"#REF!","v":{"$error":"#REF!"}},800001965,"http://www.xbrl.org/scheme/companyName",null,{"$f":"Periodos!$C$4","v":"2017-12-31"},{"$f":"#REF!","v":{"$error":"#REF!"}},{"$f":"#REF!","v":{"$error":"#REF!"}}]
[{"$error":"#REF!"},null,{"$f":"#REF!","v":{"$error":"#REF!"}},{"$f":"#REF!","v":{"$error":"#REF!"}},null,null,{"$f":"#REF!","v":{"$error":"#REF!"}},800001965,"http://www.xbrl.org/scheme/companyName",null,{"$f":"Periodos!$C$4","v":"2017-12-31"},{"$f":"#REF!","v":{"$error":"#REF!"}},{"$f":"#REF!","v":{"$error":"#REF!"}}]
[{"$error":"#REF!"},null,{"$f":"#REF!","v":{"$error":"#REF!"}},{"$f":"#REF!","v":{"$error":"#REF!"}},null,null,{"$f":"#REF!","v":{"$error":"#REF!"}},800001965,"http://www.xbrl.org/scheme/companyName",null,{"$f":"Periodos!$C$4","v":"2017-12-31"},{"$f":"#REF!","v":{"$error":"#REF!"}},{"$f":"#REF!","v":{"$error":"#REF!"}}]
[{"$error":"#REF!"},null,{"$f":"#REF!","v":{"$error":"#REF!"}},{"$f":"#REF!","v":{"$error":"#REF!"}},null,null,{"$f":"#REF!","v":{"$error":"#REF!"}},800001965,"http://www.xbrl.org/scheme/companyName",null,{"$f":"Periodos!$C$4","v":"2017-12-31"},{"$f":"#REF!","v":{"$error":"#REF!"}},{"$f":"#REF!","v":{"$error":"#REF!"}}]
[{"$error":"#REF!"},null,{"$f":"#REF!","v":{"$error":"#REF!"}},{"$f":"#REF!","v":{"$error":"#REF!"}},null,null,{"$f":"#REF!","v":{"$error":"#REF!"}},800001965,"http://www.xbrl.org/scheme/companyName",null,{"$f":"Periodos!$C$4","v":"2017-12-31"},{"$f":"#REF!","v":{"$error":"#REF!"}},{"$f":"#REF!","v":{"$error":"#REF!"}}]
[{"$error":"#REF!"},null,{"$f":"#REF!","v":{"$error":"#REF!"}},{"$f":"#REF!","v":{"$error":"#REF!"}},null,null,{"$f":"#REF!","v":{"$error":"#REF!"}},800001965,"http://www.xbrl.org/scheme/companyName",null,{"$f":"Periodos!$C$4","v":"2017-12-31"},{"$f":"#REF!","v":{"$error":"#REF!"}},{"$f":"#REF!","v":{"$error":"#REF!"}}]
[{"$error":"#REF!"},null,{"$f":"#REF!","v":{"$error":"#REF!"}},{"$f":"#REF!","v":{"$error":"#REF!"}},null,null,{"$f":"#REF!","v":{"$error":"#REF!"}},800001965,"http://www.xbrl.org/scheme/companyName",null,{"$f":"Periodos!$C$4","v":"2017-12-31"},{"$f":"#REF!","v":{"$error":"#REF!"}},{"$f":"#REF!","v":{"$error":"#REF!"}}]
[{"$error":"#REF!"},null,{"$f":"#REF!","v":{"$error":"#REF!"}},{"$f":"#REF!","v":{"$error":"#REF!"}},null,null,{"$f":"#REF!","v":{"$error":"#REF!"}},800001965,"http://www.xbrl.org/scheme/companyName",null,{"$f":"Periodos!$C$4","v":"2017-12-31"},{"$f":"#REF!","v":{"$error":"#REF!"}},{"$f":"#REF!","v":{"$error":"#REF!"}}]
[{"$error":"#REF!"},null,{"$f":"#REF!","v":{"$error":"#REF!"}},{"$f":"#REF!","v":{"$error":"#REF!"}},0,"peso",{"$f":"#REF!","v":{"$error":"#REF!"}},800001965,"http://www.xbrl.org/scheme/companyName",null,{"$f":"Periodos!$C$4","v":"2017-12-31"},{"$f":"#REF!","v":{"$error":"#REF!"}},{"$f":"#REF!","v":{"$error":"#REF!"}}]
["/*",null,"--62--"]
[{"$error":"#REF!"},null,{"$f":"#REF!","v":{"$error":"#REF!"}},{"$f":"#REF!","v":{"$error":"#REF!"}},null,null,{"$f":"#REF!","v":{"$error":"#REF!"}},800001965,"http://www.xbrl.org/scheme/companyName",null,{"$f":"Periodos!$C$4","v":"2017-12-31"},{"$f":"#REF!","v":{"$error":"#REF!"}},{"$f":"#REF!","v":{"$error":"#REF!"}}]
[{"$error":"#REF!"},null,{"$f":"#REF!","v":{"$error":"#REF!"}},{"$f":"#REF!","v":{"$error":"#REF!"}},null,null,{"$f":"#REF!","v":{"$error":"#REF!"}},800001965,"http://www.xbrl.org/scheme/companyName",null,{"$f":"Periodos!$C$4","v":"2017-12-31"},{"$f":"#REF!","v":{"$error":"#REF!"}},{"$f":"#REF!","v":{"$error":"#REF!"}}]
[{"$f":"IF(G2465=\"\",\"/*\",\"\")","v":{"$error":"#REF!"}},null,{"$f":"#REF!","v":{"$error":"#REF!"}},{"$f":"#REF!","v":{"$error":"#REF!"}},null,null,{"$f":"#REF!","v":{"$error":"#REF!"}},800001965,"http://www.xbrl.org/scheme/companyName",null,{"$f":"Periodos!$C$4","v":"2017-12-31"},{"$f":"#REF!","v":{"$error":"#REF!"}},{"$f":"#REF!","v":{"$error":"#REF!"}}]
[{"$error":"#REF!"},null,{"$f":"#REF!","v":{"$error":"#REF!"}},{"$f":"#REF!","v":{"$error":"#REF!"}},null,null,{"$f":"#REF!","v":{"$error":"#REF!"}},800001965,"http://www.xbrl.org/scheme/companyName",null,{"$f":"Periodos!$C$4","v":"2017-12-31"},{"$f":"#REF!","v":{"$error":"#REF!"}},{"$f":"#REF!","v":{"$error":"#REF!"}}]
[{"$error":"#REF!"},null,{"$f":"#REF!","v":{"$error":"#REF!"}},{"$f":"#REF!","v":{"$error":"#REF!"}},null,null,{"$f":"#REF!","v":{"$error":"#REF!"}},800001965,"http://www.xbrl.org/scheme/companyName",null,{"$f":"Periodos!$C$4","v":"2017-12-31"},{"$f":"#REF!","v":{"$error":"#REF!"}},{"$f":"#REF!","v":{"$error":"#REF!"}}]
[{"$error":"#REF!"},null,{"$f":"#REF!","v":{"$error":"#REF!"}},{"$f":"#REF!","v":{"$error":"#REF!"}},null,null,{"$f":"#REF!","v":{"$error":"#REF!"}},800001965,"http://www.xbrl.org/scheme/companyName",null,{"$f":"Periodos!$C$4","v":"2017-12-31"},{"$f":"#REF!","v":{"$error":"#REF!"}},{"$f":"#REF!","v":{"$error":"#REF!"}}]
[{"$error":"#REF!"},null,{"$f":"#REF!","v":{"$error":"#REF!"}},{"$f":"#REF!","v":{"$error":"#REF!"}},null,null,{"$f":"#REF!","v":{"$error":"#REF!"}},800001965,"http://www.xbrl.org/scheme/companyName",null,{"$f":"Periodos!$C$4","v":"2017-12-31"},{"$f":"#REF!","v":{"$error":"#REF!"}},{"$f":"#REF!","v":{"$error":"#REF!"}}]
[{"$error":"#REF!"},null,{"$f":"#REF!","v":{"$error":"#REF!"}},{"$f":"#REF!","v":{"$error":"#REF!"}},null,null,{"$f":"#REF!","v":{"$error":"#REF!"}},800001965,"http://www.xbrl.org/scheme/companyName",null,{"$f":"Periodos!$C$4","v":"2017-12-31"},{"$f":"#REF!","v":{"$error":"#REF!"}},{"$f":"#REF!","v":{"$error":"#REF!"}}]
[{"$error":"#REF!"},null,{"$f":"#REF!","v":{"$error":"#REF!"}},{"$f":"#REF!","v":{"$error":"#REF!"}},null,null,{"$f":"#REF!","v":{"$error":"#REF!"}},800001965,"http://www.xbrl.org/scheme/companyName",null,{"$f":"Periodos!$C$4","v":"2017-12-31"},{"$f":"#REF!","v":{"$error":"#REF!"}},{"$f":"#REF!","v":{"$error":"#REF!"}}]
[{"$error":"#REF!"},null,{"$f":"#REF!","v":{"$error":"#REF!"}},{"$f":"#REF!","v":{"$error":"#REF!"}},null,null,{"$f":"#REF!","v":{"$error":"#REF!"}},800001965,"http://www.xbrl.org/scheme/companyName",null,{"$f":"Periodos!$C$4","v":"2017-12-31"},{"$f":"#REF!","v":{"$error":"#REF!"}},{"$f":"#REF!","v":{"$error":"#REF!"}}]
[{"$error":"#REF!"},null,{"$f":"#REF!","v":{"$error":"#REF!"}},{"$f":"#REF!","v":{"$error":"#REF!"}},null,null,{"$f":"#REF!","v":{"$error":"#REF!"}},800001965,"http://www.xbrl.org/scheme/companyName",null,{"$f":"Periodos!$C$4","v":"2017-12-31"},{"$f":"#REF!","v":{"$error":"#REF!"}},{"$f":"#REF!","v":{"$error":"#REF!"}}]
[{"$error":"#REF!"},null,{"$f":"#REF!","v":{"$error":"#REF!"}},{"$f":"#REF!","v":{"$error":"#REF!"}},0,"peso",{"$f":"#REF!","v":{"$error":"#REF!"}},800001965,"http://www.xbrl.org/scheme/companyName",null,{"$f":"Periodos!$C$4","v":"2017-12-31"},{"$f":"#REF!","v":{"$error":"#REF!"}},{"$f":"#REF!","v":{"$error":"#REF!"}}]
["/*",null,"--63--"]
[{"$error":"#REF!"},null,{"$f":"#REF!","v":{"$error":"#REF!"}},{"$f":"#REF!","v":{"$error":"#REF!"}},null,null,{"$f":"#REF!","v":{"$error":"#REF!"}},800001965,"http://www.xbrl.org/scheme/companyName",null,{"$f":"Periodos!$C$4","v":"2017-12-31"},{"$f":"#REF!","v":{"$error":"#REF!"}},{"$f":"#REF!","v":{"$error":"#REF!"}}]
[{"$error":"#REF!"},null,{"$f":"#REF!","v":{"$error":"#REF!"}},{"$f":"#REF!","v":{"$error":"#REF!"}},null,null,{"$f":"#REF!","v":{"$error":"#REF!"}},800001965,"http://www.xbrl.org/scheme/companyName",null,{"$f":"Periodos!$C$4","v":"2017-12-31"},{"$f":"#REF!","v":{"$error":"#REF!"}},{"$f":"#REF!","v":{"$error":"#REF!"}}]
[{"$error":"#REF!"},null,{"$f":"#REF!","v":{"$error":"#REF!"}},{"$f":"#REF!","v":{"$error":"#REF!"}},null,null,{"$f":"#REF!","v":{"$error":"#REF!"}},800001965,"http://www.xbrl.org/scheme/companyName",null,{"$f":"Periodos!$C$4","v":"2017-12-31"},{"$f":"#REF!","v":{"$error":"#REF!"}},{"$f":"#REF!","v":{"$error":"#REF!"}}]
[{"$error":"#REF!"},null,{"$f":"#REF!","v":{"$error":"#REF!"}},{"$f":"#REF!","v":{"$error":"#REF!"}},null,null,{"$f":"#REF!","v":{"$error":"#REF!"}},800001965,"http://www.xbrl.org/scheme/companyName",null,{"$f":"Periodos!$C$4","v":"2017-12-31"},{"$f":"#REF!","v":{"$error":"#REF!"}},{"$f":"#REF!","v":{"$error":"#REF!"}}]
[{"$error":"#REF!"},null,{"$f":"#REF!","v":{"$error":"#REF!"}},{"$f":"#REF!","v":{"$error":"#REF!"}},null,null,{"$f":"#REF!","v":{"$error":"#REF!"}},800001965,"http://www.xbrl.org/scheme/companyName",null,{"$f":"Periodos!$C$4","v":"2017-12-31"},{"$f":"#REF!","v":{"$error":"#REF!"}},{"$f":"#REF!","v":{"$error":"#REF!"}}]
[{"$error":"#REF!"},null,{"$f":"#REF!","v":{"$error":"#REF!"}},{"$f":"#REF!","v":{"$error":"#REF!"}},null,null,{"$f":"#REF!","v":{"$error":"#REF!"}},800001965,"http://www.xbrl.org/scheme/companyName",null,{"$f":"Periodos!$C$4","v":"2017-12-31"},{"$f":"#REF!","v":{"$error":"#REF!"}},{"$f":"#REF!","v":{"$error":"#REF!"}}]
[{"$error":"#REF!"},null,{"$f":"#REF!","v":{"$error":"#REF!"}},{"$f":"#REF!","v":{"$error":"#REF!"}},null,null,{"$f":"#REF!","v":{"$error":"#REF!"}},800001965,"http://www.xbrl.org/scheme/companyName",null,{"$f":"Periodos!$C$4","v":"2017-12-31"},{"$f":"#REF!","v":{"$error":"#REF!"}},{"$f":"#REF!","v":{"$error":"#REF!"}}]
[{"$error":"#REF!"},null,{"$f":"#REF!","v":{"$error":"#REF!"}},{"$f":"#REF!","v":{"$error":"#REF!"}},null,null,{"$f":"#REF!","v":{"$error":"#REF!"}},800001965,"http://www.xbrl.org/scheme/companyName",null,{"$f":"Periodos!$C$4","v":"2017-12-31"},{"$f":"#REF!","v":{"$error":"#REF!"}},{"$f":"#REF!","v":{"$error":"#REF!"}}]
[{"$error":"#REF!"},null,{"$f":"#REF!","v":{"$error":"#REF!"}},{"$f":"#REF!","v":{"$error":"#REF!"}},null,null,{"$f":"#REF!","v":{"$error":"#REF!"}},800001965,"http://www.xbrl.org/scheme/companyName",null,{"$f":"Periodos!$C$4","v":"2017-12-31"},{"$f":"#REF!","v":{"$error":"#REF!"}},{"$f":"#REF!","v":{"$error":"#REF!"}}]
[{"$error":"#REF!"},null,{"$f":"#REF!","v":{"$error":"#REF!"}},{"$f":"#REF!","v":{"$error":"#REF!"}},null,null,{"$f":"#REF!","v":{"$error":"#REF!"}},800001965,"http://www.xbrl.org/scheme/companyName",null,{"$f":"Periodos!$C$4","v":"2017-12-31"},{"$f":"#REF!","v":{"$error":"#REF!"}},{"$f":"#REF!","v":{"$error":"#REF!"}}]
[{"$error":"#REF!"},null,{"$f":"#REF!","v":{"$error":"#REF!"}},{"$f":"#REF!","v":{"$error":"#REF!"}},null,null,{"$f":"#REF!","v":{"$error":"#REF!"}},800001965,"http://www.xbrl.org/scheme/companyName",null,{"$f":"Periodos!$C$4","v":"2017-12-31"},{"$f":"#REF!","v":{"$error":"#REF!"}},{"$f":"#REF!","v":{"$error":"#REF!"}}]
[{"$error":"#REF!"},null,{"$f":"#REF!","v":{"$error":"#REF!"}},{"$f":"#REF!","v":{"$error":"#REF!"}},0,"peso",{"$f":"#REF!","v":{"$error":"#REF!"}},800001965,"http://www.xbrl.org/scheme/companyName",null,{"$f":"Periodos!$C$4","v":"2017-12-31"},{"$f":"#REF!","v":{"$error":"#REF!"}},{"$f":"#REF!","v":{"$error":"#REF!"}}]
["/*",null,"--64--"]
[{"$error":"#REF!"},null,{"$f":"#REF!","v":{"$error":"#REF!"}},{"$f":"#REF!","v":{"$error":"#REF!"}},null,null,{"$f":"#REF!","v":{"$error":"#REF!"}},800001965,"http://www.xbrl.org/scheme/companyName",null,{"$f":"Periodos!$C$4","v":"2017-12-31"},{"$f":"#REF!","v":{"$error":"#REF!"}},{"$f":"#REF!","v":{"$error":"#REF!"}}]
[{"$error":"#REF!"},null,{"$f":"#REF!","v":{"$error":"#REF!"}},{"$f":"#REF!","v":{"$error":"#REF!"}},null,null,{"$f":"#REF!","v":{"$error":"#REF!"}},800001965,"http://www.xbrl.org/scheme/companyName",null,{"$f":"Periodos!$C$4","v":"2017-12-31"},{"$f":"#REF!","v":{"$error":"#REF!"}},{"$f":"#REF!","v":{"$error":"#REF!"}}]
[{"$error":"#REF!"},null,{"$f":"#REF!","v":{"$error":"#REF!"}},{"$f":"#REF!","v":{"$error":"#REF!"}},null,null,{"$f":"#REF!","v":{"$error":"#REF!"}},800001965,"http://www.xbrl.org/scheme/companyName",null,{"$f":"Periodos!$C$4","v":"2017-12-31"},{"$f":"#REF!","v":{"$error":"#REF!"}},{"$f":"#REF!","v":{"$error":"#REF!"}}]
[{"$error":"#REF!"},null,{"$f":"#REF!","v":{"$error":"#REF!"}},{"$f":"#REF!","v":{"$error":"#REF!"}},null,null,{"$f":"#REF!","v":{"$error":"#REF!"}},800001965,"http://www.xbrl.org/scheme/companyName",null,{"$f":"Periodos!$C$4","v":"2017-12-31"},{"$f":"#REF!","v":{"$error":"#REF!"}},{"$f":"#REF!","v":{"$error":"#REF!"}}]
[{"$error":"#REF!"},null,{"$f":"#REF!","v":{"$error":"#REF!"}},{"$f":"#REF!","v":{"$error":"#REF!"}},null,null,{"$f":"#REF!","v":{"$error":"#REF!"}},800001965,"http://www.xbrl.org/scheme/companyName",null,{"$f":"Periodos!$C$4","v":"2017-12-31"},{"$f":"#REF!","v":{"$error":"#REF!"}},{"$f":"#REF!","v":{"$error":"#REF!"}}]
[{"$error":"#REF!"},null,{"$f":"#REF!","v":{"$error":"#REF!"}},{"$f":"#REF!","v":{"$error":"#REF!"}},null,null,{"$f":"#REF!","v":{"$error":"#REF!"}},800001965,"http://www.xbrl.org/scheme/companyName",null,{"$f":"Periodos!$C$4","v":"2017-12-31"},{"$f":"#REF!","v":{"$error":"#REF!"}},{"$f":"#REF!","v":{"$error":"#REF!"}}]
[{"$error":"#REF!"},null,{"$f":"#REF!","v":{"$error":"#REF!"}},{"$f":"#REF!","v":{"$error":"#REF!"}},null,null,{"$f":"#REF!","v":{"$error":"#REF!"}},800001965,"http://www.xbrl.org/scheme/companyName",null,{"$f":"Periodos!$C$4","v":"2017-12-31"},{"$f":"#REF!","v":{"$error":"#REF!"}},{"$f":"#REF!","v":{"$error":"#REF!"}}]
[{"$error":"#REF!"},null,{"$f":"#REF!","v":{"$error":"#REF!"}},{"$f":"#REF!","v":{"$error":"#REF!"}},null,null,{"$f":"#REF!","v":{"$error":"#REF!"}},800001965,"http://www.xbrl.org/scheme/companyName",null,{"$f":"Periodos!$C$4","v":"2017-12-31"},{"$f":"#REF!","v":{"$error":"#REF!"}},{"$f":"#REF!","v":{"$error":"#REF!"}}]
[{"$error":"#REF!"},null,{"$f":"#REF!","v":{"$error":"#REF!"}},{"$f":"#REF!","v":{"$error":"#REF!"}},null,null,{"$f":"#REF!","v":{"$error":"#REF!"}},800001965,"http://www.xbrl.org/scheme/companyName",null,{"$f":"Periodos!$C$4","v":"2017-12-31"},{"$f":"#REF!","v":{"$error":"#REF!"}},{"$f":"#REF!","v":{"$error":"#REF!"}}]
[{"$error":"#REF!"},null,{"$f":"#REF!","v":{"$error":"#REF!"}},{"$f":"#REF!","v":{"$error":"#REF!"}},null,null,{"$f":"#REF!","v":{"$error":"#REF!"}},800001965,"http://www.xbrl.org/scheme/companyName",null,{"$f":"Periodos!$C$4","v":"2017-12-31"},{"$f":"#REF!","v":{"$error":"#REF!"}},{"$f":"#REF!","v":{"$error":"#REF!"}}]
[{"$error":"#REF!"},null,{"$f":"#REF!","v":{"$error":"#REF!"}},{"$f":"#REF!","v":{"$error":"#REF!"}},null,null,{"$f":"#REF!","v":{"$error":"#REF!"}},800001965,"http://www.xbrl.org/scheme/companyName",null,{"$f":"Periodos!$C$4","v":"2017-12-31"},{"$f":"#REF!","v":{"$error":"#REF!"}},{"$f":"#REF!","v":{"$error":"#REF!"}}]
[{"$error":"#REF!"},null,{"$f":"#REF!","v":{"$error":"#REF!"}},{"$f":"#REF!","v":{"$error":"#REF!"}},0,"peso",{"$f":"#REF!","v":{"$error":"#REF!"}},800001965,"http://www.xbrl.org/scheme/companyName",null,{"$f":"Periodos!$C$4","v":"2017-12-31"},{"$f":"#REF!","v":{"$error":"#REF!"}},{"$f":"#REF!","v":{"$error":"#REF!"}}]
["/*",null,"--65--"]
[{"$error":"#REF!"},null,{"$f":"#REF!","v":{"$error":"#REF!"}},{"$f":"#REF!","v":{"$error":"#REF!"}},null,null,{"$f":"#REF!","v":{"$error":"#REF!"}},800001965,"http://www.xbrl.org/scheme/companyName",null,{"$f":"Periodos!$C$4","v":"2017-12-31"},{"$f":"#REF!","v":{"$error":"#REF!"}},{"$f":"#REF!","v":{"$error":"#REF!"}}]
[{"$error":"#REF!"},null,{"$f":"#REF!","v":{"$error":"#REF!"}},{"$f":"#REF!","v":{"$error":"#REF!"}},null,null,{"$f":"#REF!","v":{"$error":"#REF!"}},800001965,"http://www.xbrl.org/scheme/companyName",null,{"$f":"Periodos!$C$4","v":"2017-12-31"},{"$f":"#REF!","v":{"$error":"#REF!"}},{"$f":"#REF!","v":{"$error":"#REF!"}}]
[{"$error":"#REF!"},null,{"$f":"#REF!","v":{"$error":"#REF!"}},{"$f":"#REF!","v":{"$error":"#REF!"}},null,null,{"$f":"#REF!","v":{"$error":"#REF!"}},800001965,"http://www.xbrl.org/scheme/companyName",null,{"$f":"Periodos!$C$4","v":"2017-12-31"},{"$f":"#REF!","v":{"$error":"#REF!"}},{"$f":"#REF!","v":{"$error":"#REF!"}}]
[{"$error":"#REF!"},null,{"$f":"#REF!","v":{"$error":"#REF!"}},{"$f":"#REF!","v":{"$error":"#REF!"}},null,null,{"$f":"#REF!","v":{"$error":"#REF!"}},800001965,"http://www.xbrl.org/scheme/companyName",null,{"$f":"Periodos!$C$4","v":"2017-12-31"},{"$f":"#REF!","v":{"$error":"#REF!"}},{"$f":"#REF!","v":{"$error":"#REF!"}}]
[{"$error":"#REF!"},null,{"$f":"#REF!","v":{"$error":"#REF!"}},{"$f":"#REF!","v":{"$error":"#REF!"}},null,null,{"$f":"#REF!","v":{"$error":"#REF!"}},800001965,"http://www.xbrl.org/scheme/companyName",null,{"$f":"Periodos!$C$4","v":"2017-12-31"},{"$f":"#REF!","v":{"$error":"#REF!"}},{"$f":"#REF!","v":{"$error":"#REF!"}}]
[{"$error":"#REF!"},null,{"$f":"#REF!","v":{"$error":"#REF!"}},{"$f":"#REF!","v":{"$error":"#REF!"}},null,null,{"$f":"#REF!","v":{"$error":"#REF!"}},800001965,"http://www.xbrl.org/scheme/companyName",null,{"$f":"Periodos!$C$4","v":"2017-12-31"},{"$f":"#REF!","v":{"$error":"#REF!"}},{"$f":"#REF!","v":{"$error":"#REF!"}}]
[{"$error":"#REF!"},null,{"$f":"#REF!","v":{"$error":"#REF!"}},{"$f":"#REF!","v":{"$error":"#REF!"}},null,null,{"$f":"#REF!","v":{"$error":"#REF!"}},800001965,"http://www.xbrl.org/scheme/companyName",null,{"$f":"Periodos!$C$4","v":"2017-12-31"},{"$f":"#REF!","v":{"$error":"#REF!"}},{"$f":"#REF!","v":{"$error":"#REF!"}}]
[{"$error":"#REF!"},null,{"$f":"#REF!","v":{"$error":"#REF!"}},{"$f":"#REF!","v":{"$error":"#REF!"}},null,null,{"$f":"#REF!","v":{"$error":"#REF!"}},800001965,"http://www.xbrl.org/scheme/companyName",null,{"$f":"Periodos!$C$4","v":"2017-12-31"},{"$f":"#REF!","v":{"$error":"#REF!"}},{"$f":"#REF!","v":{"$error":"#REF!"}}]
[{"$error":"#REF!"},null,{"$f":"#REF!","v":{"$error":"#REF!"}},{"$f":"#REF!","v":{"$error":"#REF!"}},null,null,{"$f":"#REF!","v":{"$error":"#REF!"}},800001965,"http://www.xbrl.org/scheme/companyName",null,{"$f":"Periodos!$C$4","v":"2017-12-31"},{"$f":"#REF!","v":{"$error":"#REF!"}},{"$f":"#REF!","v":{"$error":"#REF!"}}]
[{"$error":"#REF!"},null,{"$f":"#REF!","v":{"$error":"#REF!"}},{"$f":"#REF!","v":{"$error":"#REF!"}},null,null,{"$f":"#REF!","v":{"$error":"#REF!"}},800001965,"http://www.xbrl.org/scheme/companyName",null,{"$f":"Periodos!$C$4","v":"2017-12-31"},{"$f":"#REF!","v":{"$error":"#REF!"}},{"$f":"#REF!","v":{"$error":"#REF!"}}]
[{"$error":"#REF!"},null,{"$f":"#REF!","v":{"$error":"#REF!"}},{"$f":"#REF!","v":{"$error":"#REF!"}},null,null,{"$f":"#REF!","v":{"$error":"#REF!"}},800001965,"http://www.xbrl.org/scheme/companyName",null,{"$f":"Periodos!$C$4","v":"2017-12-31"},{"$f":"#REF!","v":{"$error":"#REF!"}},{"$f":"#REF!","v":{"$error":"#REF!"}}]
[{"$error":"#REF!"},null,{"$f":"#REF!","v":{"$error":"#REF!"}},{"$f":"#REF!","v":{"$error":"#REF!"}},0,"peso",{"$f":"#REF!","v":{"$error":"#REF!"}},800001965,"http://www.xbrl.org/scheme/companyName",null,{"$f":"Periodos!$C$4","v":"2017-12-31"},{"$f":"#REF!","v":{"$error":"#REF!"}},{"$f":"#REF!","v":{"$error":"#REF!"}}]
["/*",null,"--66--"]
[{"$error":"#REF!"},null,{"$f":"#REF!","v":{"$error":"#REF!"}},{"$f":"#REF!","v":{"$error":"#REF!"}},null,null,{"$f":"#REF!","v":{"$error":"#REF!"}},800001965,"http://www.xbrl.org/scheme/companyName",null,{"$f":"Periodos!$C$4","v":"2017-12-31"},{"$f":"#REF!","v":{"$error":"#REF!"}},{"$f":"#REF!","v":{"$error":"#REF!"}}]
[{"$error":"#REF!"},null,{"$f":"#REF!","v":{"$error":"#REF!"}},{"$f":"#REF!","v":{"$error":"#REF!"}},null,null,{"$f":"#REF!","v":{"$error":"#REF!"}},800001965,"http://www.xbrl.org/scheme/companyName",null,{"$f":"Periodos!$C$4","v":"2017-12-31"},{"$f":"#REF!","v":{"$error":"#REF!"}},{"$f":"#REF!","v":{"$error":"#REF!"}}]
[{"$error":"#REF!"},null,{"$f":"#REF!","v":{"$error":"#REF!"}},{"$f":"#REF!","v":{"$error":"#REF!"}},null,null,{"$f":"#REF!","v":{"$error":"#REF!"}},800001965,"http://www.xbrl.org/scheme/companyName",null,{"$f":"Periodos!$C$4","v":"2017-12-31"},{"$f":"#REF!","v":{"$error":"#REF!"}},{"$f":"#REF!","v":{"$error":"#REF!"}}]
[{"$error":"#REF!"},null,{"$f":"#REF!","v":{"$error":"#REF!"}},{"$f":"#REF!","v":{"$error":"#REF!"}},null,null,{"$f":"#REF!","v":{"$error":"#REF!"}},800001965,"http://www.xbrl.org/scheme/companyName",null,{"$f":"Periodos!$C$4","v":"2017-12-31"},{"$f":"#REF!","v":{"$error":"#REF!"}},{"$f":"#REF!","v":{"$error":"#REF!"}}]
[{"$error":"#REF!"},null,{"$f":"#REF!","v":{"$error":"#REF!"}},{"$f":"#REF!","v":{"$error":"#REF!"}},null,null,{"$f":"#REF!","v":{"$error":"#REF!"}},800001965,"http://www.xbrl.org/scheme/companyName",null,{"$f":"Periodos!$C$4","v":"2017-12-31"},{"$f":"#REF!","v":{"$error":"#REF!"}},{"$f":"#REF!","v":{"$error":"#REF!"}}]
[{"$error":"#REF!"},null,{"$f":"#REF!","v":{"$error":"#REF!"}},{"$f":"#REF!","v":{"$error":"#REF!"}},null,null,{"$f":"#REF!","v":{"$error":"#REF!"}},800001965,"http://www.xbrl.org/scheme/companyName",null,{"$f":"Periodos!$C$4","v":"2017-12-31"},{"$f":"#REF!","v":{"$error":"#REF!"}},{"$f":"#REF!","v":{"$error":"#REF!"}}]
[{"$error":"#REF!"},null,{"$f":"#REF!","v":{"$error":"#REF!"}},{"$f":"#REF!","v":{"$error":"#REF!"}},null,null,{"$f":"#REF!","v":{"$error":"#REF!"}},800001965,"http://www.xbrl.org/scheme/companyName",null,{"$f":"Periodos!$C$4","v":"2017-12-31"},{"$f":"#REF!","v":{"$error":"#REF!"}},{"$f":"#REF!","v":{"$error":"#REF!"}}]
[{"$error":"#REF!"},null,{"$f":"#REF!","v":{"$error":"#REF!"}},{"$f":"#REF!","v":{"$error":"#REF!"}},null,null,{"$f":"#REF!","v":{"$error":"#REF!"}},800001965,"http://www.xbrl.org/scheme/companyName",null,{"$f":"Periodos!$C$4","v":"2017-12-31"},{"$f":"#REF!","v":{"$error":"#REF!"}},{"$f":"#REF!","v":{"$error":"#REF!"}}]
[{"$error":"#REF!"},null,{"$f":"#REF!","v":{"$error":"#REF!"}},{"$f":"#REF!","v":{"$error":"#REF!"}},null,null,{"$f":"#REF!","v":{"$error":"#REF!"}},800001965,"http://www.xbrl.org/scheme/companyName",null,{"$f":"Periodos!$C$4","v":"2017-12-31"},{"$f":"#REF!","v":{"$error":"#REF!"}},{"$f":"#REF!","v":{"$error":"#REF!"}}]
[{"$error":"#REF!"},null,{"$f":"#REF!","v":{"$error":"#REF!"}},{"$f":"#REF!","v":{"$error":"#REF!"}},null,null,{"$f":"#REF!","v":{"$error":"#REF!"}},800001965,"http://www.xbrl.org/scheme/companyName",null,{"$f":"Periodos!$C$4","v":"2017-12-31"},{"$f":"#REF!","v":{"$error":"#REF!"}},{"$f":"#REF!","v":{"$error":"#REF!"}}]
[{"$error":"#REF!"},null,{"$f":"#REF!","v":{"$error":"#REF!"}},{"$f":"#REF!","v":{"$error":"#REF!"}},null,null,{"$f":"#REF!","v":{"$error":"#REF!"}},800001965,"http://www.xbrl.org/scheme/companyName",null,{"$f":"Periodos!$C$4","v":"2017-12-31"},{"$f":"#REF!","v":{"$error":"#REF!"}},{"$f":"#REF!","v":{"$error":"#REF!"}}]
[{"$error":"#REF!"},null,{"$f":"#REF!","v":{"$error":"#REF!"}},{"$f":"#REF!","v":{"$error":"#REF!"}},0,"peso",{"$f":"#REF!","v":{"$error":"#REF!"}},800001965,"http://www.xbrl.org/scheme/companyName",null,{"$f":"Periodos!$C$4","v":"2017-12-31"},{"$f":"#REF!","v":{"$error":"#REF!"}},{"$f":"#REF!","v":{"$error":"#REF!"}}]
["/*",null,"--67--"]
[{"$error":"#REF!"},null,{"$f":"#REF!","v":{"$error":"#REF!"}},{"$f":"#REF!","v":{"$error":"#REF!"}},null,null,{"$f":"#REF!","v":{"$error":"#REF!"}},800001965,"http://www.xbrl.org/scheme/companyName",null,{"$f":"Periodos!$C$4","v":"2017-12-31"},{"$f":"#REF!","v":{"$error":"#REF!"}},{"$f":"#REF!","v":{"$error":"#REF!"}}]
[{"$f":"IF(G2529=\"\",\"/*\",\"\")","v":{"$error":"#REF!"}},null,{"$f":"#REF!","v":{"$error":"#REF!"}},{"$f":"#REF!","v":{"$error":"#REF!"}},null,null,{"$f":"#REF!","v":{"$error":"#REF!"}},800001965,"http://www.xbrl.org/scheme/companyName",null,{"$f":"Periodos!$C$4","v":"2017-12-31"},{"$f":"#REF!","v":{"$error":"#REF!"}},{"$f":"#REF!","v":{"$error":"#REF!"}}]
[{"$error":"#REF!"},null,{"$f":"#REF!","v":{"$error":"#REF!"}},{"$f":"#REF!","v":{"$error":"#REF!"}},null,null,{"$f":"#REF!","v":{"$error":"#REF!"}},800001965,"http://www.xbrl.org/scheme/companyName",null,{"$f":"Periodos!$C$4","v":"2017-12-31"},{"$f":"#REF!","v":{"$error":"#REF!"}},{"$f":"#REF!","v":{"$error":"#REF!"}}]
[{"$error":"#REF!"},null,{"$f":"#REF!","v":{"$error":"#REF!"}},{"$f":"#REF!","v":{"$error":"#REF!"}},null,null,{"$f":"#REF!","v":{"$error":"#REF!"}},800001965,"http://www.xbrl.org/scheme/companyName",null,{"$f":"Periodos!$C$4","v":"2017-12-31"},{"$f":"#REF!","v":{"$error":"#REF!"}},{"$f":"#REF!","v":{"$error":"#REF!"}}]
[{"$error":"#REF!"},null,{"$f":"#REF!","v":{"$error":"#REF!"}},{"$f":"#REF!","v":{"$error":"#REF!"}},null,null,{"$f":"#REF!","v":{"$error":"#REF!"}},800001965,"http://www.xbrl.org/scheme/companyName",null,{"$f":"Periodos!$C$4","v":"2017-12-31"},{"$f":"#REF!","v":{"$error":"#REF!"}},{"$f":"#REF!","v":{"$error":"#REF!"}}]
[{"$error":"#REF!"},null,{"$f":"#REF!","v":{"$error":"#REF!"}},{"$f":"#REF!","v":{"$error":"#REF!"}},null,null,{"$f":"#REF!","v":{"$error":"#REF!"}},800001965,"http://www.xbrl.org/scheme/companyName",null,{"$f":"Periodos!$C$4","v":"2017-12-31"},{"$f":"#REF!","v":{"$error":"#REF!"}},{"$f":"#REF!","v":{"$error":"#REF!"}}]
[{"$error":"#REF!"},null,{"$f":"#REF!","v":{"$error":"#REF!"}},{"$f":"#REF!","v":{"$error":"#REF!"}},null,null,{"$f":"#REF!","v":{"$error":"#REF!"}},800001965,"http://www.xbrl.org/scheme/companyName",null,{"$f":"Periodos!$C$4","v":"2017-12-31"},{"$f":"#REF!","v":{"$error":"#REF!"}},{"$f":"#REF!","v":{"$error":"#REF!"}}]
[{"$error":"#REF!"},null,{"$f":"#REF!","v":{"$error":"#REF!"}},{"$f":"#REF!","v":{"$error":"#REF!"}},null,null,{"$f":"#REF!","v":{"$error":"#REF!"}},800001965,"http://www.xbrl.org/scheme/companyName",null,{"$f":"Periodos!$C$4","v":"2017-12-31"},{"$f":"#REF!","v":{"$error":"#REF!"}},{"$f":"#REF!","v":{"$error":"#REF!"}}]
[{"$error":"#REF!"},null,{"$f":"#REF!","v":{"$error":"#REF!"}},{"$f":"#REF!","v":{"$error":"#REF!"}},null,null,{"$f":"#REF!","v":{"$error":"#REF!"}},800001965,"http://www.xbrl.org/scheme/companyName",null,{"$f":"Periodos!$C$4","v":"2017-12-31"},{"$f":"#REF!","v":{"$error":"#REF!"}},{"$f":"#REF!","v":{"$error":"#REF!"}}]
[{"$error":"#REF!"},null,{"$f":"#REF!","v":{"$error":"#REF!"}},{"$f":"#REF!","v":{"$error":"#REF!"}},null,null,{"$f":"#REF!","v":{"$error":"#REF!"}},800001965,"http://www.xbrl.org/scheme/companyName",null,{"$f":"Periodos!$C$4","v":"2017-12-31"},{"$f":"#REF!","v":{"$error":"#REF!"}},{"$f":"#REF!","v":{"$error":"#REF!"}}]
[{"$error":"#REF!"},null,{"$f":"#REF!","v":{"$error":"#REF!"}},{"$f":"#REF!","v":{"$error":"#REF!"}},null,null,{"$f":"#REF!","v":{"$error":"#REF!"}},800001965,"http://www.xbrl.org/scheme/companyName",null,{"$f":"Periodos!$C$4","v":"2017-12-31"},{"$f":"#REF!","v":{"$error":"#REF!"}},{"$f":"#REF!","v":{"$error":"#REF!"}}]
[{"$error":"#REF!"},null,{"$f":"#REF!","v":{"$error":"#REF!"}},{"$f":"#REF!","v":{"$error":"#REF!"}},0,"peso",{"$f":"#REF!","v":{"$error":"#REF!"}},800001965,"http://www.xbrl.org/scheme/companyName",null,{"$f":"Periodos!$C$4","v":"2017-12-31"},{"$f":"#REF!","v":{"$error":"#REF!"}},{"$f":"#REF!","v":{"$error":"#REF!"}}]
["/*",null,"--68--"]
[{"$error":"#REF!"},null,{"$f":"#REF!","v":{"$error":"#REF!"}},{"$f":"#REF!","v":{"$error":"#REF!"}},null,null,{"$f":"#REF!","v":{"$error":"#REF!"}},800001965,"http://www.xbrl.org/scheme/companyName",null,{"$f":"Periodos!$C$4","v":"2017-12-31"},{"$f":"#REF!","v":{"$error":"#REF!"}},{"$f":"#REF!","v":{"$error":"#REF!"}}]
[{"$error":"#REF!"},null,{"$f":"#REF!","v":{"$error":"#REF!"}},{"$f":"#REF!","v":{"$error":"#REF!"}},null,null,{"$f":"#REF!","v":{"$error":"#REF!"}},800001965,"http://www.xbrl.org/scheme/companyName",null,{"$f":"Periodos!$C$4","v":"2017-12-31"},{"$f":"#REF!","v":{"$error":"#REF!"}},{"$f":"#REF!","v":{"$error":"#REF!"}}]
[{"$error":"#REF!"},null,{"$f":"#REF!","v":{"$error":"#REF!"}},{"$f":"#REF!","v":{"$error":"#REF!"}},null,null,{"$f":"#REF!","v":{"$error":"#REF!"}},800001965,"http://www.xbrl.org/scheme/companyName",null,{"$f":"Periodos!$C$4","v":"2017-12-31"},{"$f":"#REF!","v":{"$error":"#REF!"}},{"$f":"#REF!","v":{"$error":"#REF!"}}]
[{"$error":"#REF!"},null,{"$f":"#REF!","v":{"$error":"#REF!"}},{"$f":"#REF!","v":{"$error":"#REF!"}},null,null,{"$f":"#REF!","v":{"$error":"#REF!"}},800001965,"http://www.xbrl.org/scheme/companyName",null,{"$f":"Periodos!$C$4","v":"2017-12-31"},{"$f":"#REF!","v":{"$error":"#REF!"}},{"$f":"#REF!","v":{"$error":"#REF!"}}]
[{"$error":"#REF!"},null,{"$f":"#REF!","v":{"$error":"#REF!"}},{"$f":"#REF!","v":{"$error":"#REF!"}},null,null,{"$f":"#REF!","v":{"$error":"#REF!"}},800001965,"http://www.xbrl.org/scheme/companyName",null,{"$f":"Periodos!$C$4","v":"2017-12-31"},{"$f":"#REF!","v":{"$error":"#REF!"}},{"$f":"#REF!","v":{"$error":"#REF!"}}]
[{"$error":"#REF!"},null,{"$f":"#REF!","v":{"$error":"#REF!"}},{"$f":"#REF!","v":{"$error":"#REF!"}},null,null,{"$f":"#REF!","v":{"$error":"#REF!"}},800001965,"http://www.xbrl.org/scheme/companyName",null,{"$f":"Periodos!$C$4","v":"2017-12-31"},{"$f":"#REF!","v":{"$error":"#REF!"}},{"$f":"#REF!","v":{"$error":"#REF!"}}]
[{"$error":"#REF!"},null,{"$f":"#REF!","v":{"$error":"#REF!"}},{"$f":"#REF!","v":{"$error":"#REF!"}},null,null,{"$f":"#REF!","v":{"$error":"#REF!"}},800001965,"http://www.xbrl.org/scheme/companyName",null,{"$f":"Periodos!$C$4","v":"2017-12-31"},{"$f":"#REF!","v":{"$error":"#REF!"}},{"$f":"#REF!","v":{"$error":"#REF!"}}]
[{"$error":"#REF!"},null,{"$f":"#REF!","v":{"$error":"#REF!"}},{"$f":"#REF!","v":{"$error":"#REF!"}},null,null,{"$f":"#REF!","v":{"$error":"#REF!"}},800001965,"http://www.xbrl.org/scheme/companyName",null,{"$f":"Periodos!$C$4","v":"2017-12-31"},{"$f":"#REF!","v":{"$error":"#REF!"}},{"$f":"#REF!","v":{"$error":"#REF!"}}]
[{"$error":"#REF!"},null,{"$f":"#REF!","v":{"$error":"#REF!"}},{"$f":"#REF!","v":{"$error":"#REF!"}},null,null,{"$f":"#REF!","v":{"$error":"#REF!"}},800001965,"http://www.xbrl.org/scheme/companyName",null,{"$f":"Periodos!$C$4","v":"2017-12-31"},{"$f":"#REF!","v":{"$error":"#REF!"}},{"$f":"#REF!","v":{"$error":"#REF!"}}]
[{"$error":"#REF!"},null,{"$f":"#REF!","v":{"$error":"#REF!"}},{"$f":"#REF!","v":{"$error":"#REF!"}},null,null,{"$f":"#REF!","v":{"$error":"#REF!"}},800001965,"http://www.xbrl.org/scheme/companyName",null,{"$f":"Periodos!$C$4","v":"2017-12-31"},{"$f":"#REF!","v":{"$error":"#REF!"}},{"$f":"#REF!","v":{"$error":"#REF!"}}]
[{"$error":"#REF!"},null,{"$f":"#REF!","v":{"$error":"#REF!"}},{"$f":"#REF!","v":{"$error":"#REF!"}},null,null,{"$f":"#REF!","v":{"$error":"#REF!"}},800001965,"http://www.xbrl.org/scheme/companyName",null,{"$f":"Periodos!$C$4","v":"2017-12-31"},{"$f":"#REF!","v":{"$error":"#REF!"}},{"$f":"#REF!","v":{"$error":"#REF!"}}]
[{"$error":"#REF!"},null,{"$f":"#REF!","v":{"$error":"#REF!"}},{"$f":"#REF!","v":{"$error":"#REF!"}},0,"peso",{"$f":"#REF!","v":{"$error":"#REF!"}},800001965,"http://www.xbrl.org/scheme/companyName",null,{"$f":"Periodos!$C$4","v":"2017-12-31"},{"$f":"#REF!","v":{"$error":"#REF!"}},{"$f":"#REF!","v":{"$error":"#REF!"}}]
["/*",null,"--69--"]
[{"$error":"#REF!"},null,{"$f":"#REF!","v":{"$error":"#REF!"}},{"$f":"#REF!","v":{"$error":"#REF!"}},null,null,{"$f":"#REF!","v":{"$error":"#REF!"}},800001965,"http://www.xbrl.org/scheme/companyName",null,{"$f":"Periodos!$C$4","v":"2017-12-31"},{"$f":"#REF!","v":{"$error":"#REF!"}},{"$f":"#REF!","v":{"$error":"#REF!"}}]
[{"$error":"#REF!"},null,{"$f":"#REF!","v":{"$error":"#REF!"}},{"$f":"#REF!","v":{"$error":"#REF!"}},null,null,{"$f":"#REF!","v":{"$error":"#REF!"}},800001965,"http://www.xbrl.org/scheme/companyName",null,{"$f":"Periodos!$C$4","v":"2017-12-31"},{"$f":"#REF!","v":{"$error":"#REF!"}},{"$f":"#REF!","v":{"$error":"#REF!"}}]
[{"$error":"#REF!"},null,{"$f":"#REF!","v":{"$error":"#REF!"}},{"$f":"#REF!","v":{"$error":"#REF!"}},null,null,{"$f":"#REF!","v":{"$error":"#REF!"}},800001965,"http://www.xbrl.org/scheme/companyName",null,{"$f":"Periodos!$C$4","v":"2017-12-31"},{"$f":"#REF!","v":{"$error":"#REF!"}},{"$f":"#REF!","v":{"$error":"#REF!"}}]
[{"$error":"#REF!"},null,{"$f":"#REF!","v":{"$error":"#REF!"}},{"$f":"#REF!","v":{"$error":"#REF!"}},null,null,{"$f":"#REF!","v":{"$error":"#REF!"}},800001965,"http://www.xbrl.org/scheme/companyName",null,{"$f":"Periodos!$C$4","v":"2017-12-31"},{"$f":"#REF!","v":{"$error":"#REF!"}},{"$f":"#REF!","v":{"$error":"#REF!"}}]
[{"$error":"#REF!"},null,{"$f":"#REF!","v":{"$error":"#REF!"}},{"$f":"#REF!","v":{"$error":"#REF!"}},null,null,{"$f":"#REF!","v":{"$error":"#REF!"}},800001965,"http://www.xbrl.org/scheme/companyName",null,{"$f":"Periodos!$C$4","v":"2017-12-31"},{"$f":"#REF!","v":{"$error":"#REF!"}},{"$f":"#REF!","v":{"$error":"#REF!"}}]
[{"$error":"#REF!"},null,{"$f":"#REF!","v":{"$error":"#REF!"}},{"$f":"#REF!","v":{"$error":"#REF!"}},null,null,{"$f":"#REF!","v":{"$error":"#REF!"}},800001965,"http://www.xbrl.org/scheme/companyName",null,{"$f":"Periodos!$C$4","v":"2017-12-31"},{"$f":"#REF!","v":{"$error":"#REF!"}},{"$f":"#REF!","v":{"$error":"#REF!"}}]
[{"$error":"#REF!"},null,{"$f":"#REF!","v":{"$error":"#REF!"}},{"$f":"#REF!","v":{"$error":"#REF!"}},null,null,{"$f":"#REF!","v":{"$error":"#REF!"}},800001965,"http://www.xbrl.org/scheme/companyName",null,{"$f":"Periodos!$C$4","v":"2017-12-31"},{"$f":"#REF!","v":{"$error":"#REF!"}},{"$f":"#REF!","v":{"$error":"#REF!"}}]
[{"$error":"#REF!"},null,{"$f":"#REF!","v":{"$error":"#REF!"}},{"$f":"#REF!","v":{"$error":"#REF!"}},null,null,{"$f":"#REF!","v":{"$error":"#REF!"}},800001965,"http://www.xbrl.org/scheme/companyName",null,{"$f":"Periodos!$C$4","v":"2017-12-31"},{"$f":"#REF!","v":{"$error":"#REF!"}},{"$f":"#REF!","v":{"$error":"#REF!"}}]
[{"$error":"#REF!"},null,{"$f":"#REF!","v":{"$error":"#REF!"}},{"$f":"#REF!","v":{"$error":"#REF!"}},null,null,{"$f":"#REF!","v":{"$error":"#REF!"}},800001965,"http://www.xbrl.org/scheme/companyName",null,{"$f":"Periodos!$C$4","v":"2017-12-31"},{"$f":"#REF!","v":{"$error":"#REF!"}},{"$f":"#REF!","v":{"$error":"#REF!"}}]
[{"$error":"#REF!"},null,{"$f":"#REF!","v":{"$error":"#REF!"}},{"$f":"#REF!","v":{"$error":"#REF!"}},null,null,{"$f":"#REF!","v":{"$error":"#REF!"}},800001965,"http://www.xbrl.org/scheme/companyName",null,{"$f":"Periodos!$C$4","v":"2017-12-31"},{"$f":"#REF!","v":{"$error":"#REF!"}},{"$f":"#REF!","v":{"$error":"#REF!"}}]
[{"$error":"#REF!"},null,{"$f":"#REF!","v":{"$error":"#REF!"}},{"$f":"#REF!","v":{"$error":"#REF!"}},null,null,{"$f":"#REF!","v":{"$error":"#REF!"}},800001965,"http://www.xbrl.org/scheme/companyName",null,{"$f":"Periodos!$C$4","v":"2017-12-31"},{"$f":"#REF!","v":{"$error":"#REF!"}},{"$f":"#REF!","v":{"$error":"#REF!"}}]
[{"$error":"#REF!"},null,{"$f":"#REF!","v":{"$error":"#REF!"}},{"$f":"#REF!","v":{"$error":"#REF!"}},0,"peso",{"$f":"#REF!","v":{"$error":"#REF!"}},800001965,"http://www.xbrl.org/scheme/companyName",null,{"$f":"Periodos!$C$4","v":"2017-12-31"},{"$f":"#REF!","v":{"$error":"#REF!"}},{"$f":"#REF!","v":{"$error":"#REF!"}}]
["/*",null,"--70--"]
[{"$error":"#REF!"},null,{"$f":"#REF!","v":{"$error":"#REF!"}},{"$f":"#REF!","v":{"$error":"#REF!"}},null,null,{"$f":"#REF!","v":{"$error":"#REF!"}},800001965,"http://www.xbrl.org/scheme/companyName",null,{"$f":"Periodos!$C$4","v":"2017-12-31"},{"$f":"#REF!","v":{"$error":"#REF!"}},{"$f":"#REF!","v":{"$error":"#REF!"}}]
[{"$error":"#REF!"},null,{"$f":"#REF!","v":{"$error":"#REF!"}},{"$f":"#REF!","v":{"$error":"#REF!"}},null,null,{"$f":"#REF!","v":{"$error":"#REF!"}},800001965,"http://www.xbrl.org/scheme/companyName",null,{"$f":"Periodos!$C$4","v":"2017-12-31"},{"$f":"#REF!","v":{"$error":"#REF!"}},{"$f":"#REF!","v":{"$error":"#REF!"}}]
[{"$error":"#REF!"},null,{"$f":"#REF!","v":{"$error":"#REF!"}},{"$f":"#REF!","v":{"$error":"#REF!"}},null,null,{"$f":"#REF!","v":{"$error":"#REF!"}},800001965,"http://www.xbrl.org/scheme/companyName",null,{"$f":"Periodos!$C$4","v":"2017-12-31"},{"$f":"#REF!","v":{"$error":"#REF!"}},{"$f":"#REF!","v":{"$error":"#REF!"}}]
[{"$error":"#REF!"},null,{"$f":"#REF!","v":{"$error":"#REF!"}},{"$f":"#REF!","v":{"$error":"#REF!"}},null,null,{"$f":"#REF!","v":{"$error":"#REF!"}},800001965,"http://www.xbrl.org/scheme/companyName",null,{"$f":"Periodos!$C$4","v":"2017-12-31"},{"$f":"#REF!","v":{"$error":"#REF!"}},{"$f":"#REF!","v":{"$error":"#REF!"}}]
[{"$error":"#REF!"},null,{"$f":"#REF!","v":{"$error":"#REF!"}},{"$f":"#REF!","v":{"$error":"#REF!"}},null,null,{"$f":"#REF!","v":{"$error":"#REF!"}},800001965,"http://www.xbrl.org/scheme/companyName",null,{"$f":"Periodos!$C$4","v":"2017-12-31"},{"$f":"#REF!","v":{"$error":"#REF!"}},{"$f":"#REF!","v":{"$error":"#REF!"}}]
[{"$error":"#REF!"},null,{"$f":"#REF!","v":{"$error":"#REF!"}},{"$f":"#REF!","v":{"$error":"#REF!"}},null,null,{"$f":"#REF!","v":{"$error":"#REF!"}},800001965,"http://www.xbrl.org/scheme/companyName",null,{"$f":"Periodos!$C$4","v":"2017-12-31"},{"$f":"#REF!","v":{"$error":"#REF!"}},{"$f":"#REF!","v":{"$error":"#REF!"}}]
[{"$error":"#REF!"},null,{"$f":"#REF!","v":{"$error":"#REF!"}},{"$f":"#REF!","v":{"$error":"#REF!"}},null,null,{"$f":"#REF!","v":{"$error":"#REF!"}},800001965,"http://www.xbrl.org/scheme/companyName",null,{"$f":"Periodos!$C$4","v":"2017-12-31"},{"$f":"#REF!","v":{"$error":"#REF!"}},{"$f":"#REF!","v":{"$error":"#REF!"}}]
[{"$error":"#REF!"},null,{"$f":"#REF!","v":{"$error":"#REF!"}},{"$f":"#REF!","v":{"$error":"#REF!"}},null,null,{"$f":"#REF!","v":{"$error":"#REF!"}},800001965,"http://www.xbrl.org/scheme/companyName",null,{"$f":"Periodos!$C$4","v":"2017-12-31"},{"$f":"#REF!","v":{"$error":"#REF!"}},{"$f":"#REF!","v":{"$error":"#REF!"}}]
[{"$error":"#REF!"},null,{"$f":"#REF!","v":{"$error":"#REF!"}},{"$f":"#REF!","v":{"$error":"#REF!"}},null,null,{"$f":"#REF!","v":{"$error":"#REF!"}},800001965,"http://www.xbrl.org/scheme/companyName",null,{"$f":"Periodos!$C$4","v":"2017-12-31"},{"$f":"#REF!","v":{"$error":"#REF!"}},{"$f":"#REF!","v":{"$error":"#REF!"}}]
[{"$error":"#REF!"},null,{"$f":"#REF!","v":{"$error":"#REF!"}},{"$f":"#REF!","v":{"$error":"#REF!"}},null,null,{"$f":"#REF!","v":{"$error":"#REF!"}},800001965,"http://www.xbrl.org/scheme/companyName",null,{"$f":"Periodos!$C$4","v":"2017-12-31"},{"$f":"#REF!","v":{"$error":"#REF!"}},{"$f":"#REF!","v":{"$error":"#REF!"}}]
[{"$error":"#REF!"},null,{"$f":"#REF!","v":{"$error":"#REF!"}},{"$f":"#REF!","v":{"$error":"#REF!"}},null,null,{"$f":"#REF!","v":{"$error":"#REF!"}},800001965,"http://www.xbrl.org/scheme/companyName",null,{"$f":"Periodos!$C$4","v":"2017-12-31"},{"$f":"#REF!","v":{"$error":"#REF!"}},{"$f":"#REF!","v":{"$error":"#REF!"}}]
[{"$error":"#REF!"},null,{"$f":"#REF!","v":{"$error":"#REF!"}},{"$f":"#REF!","v":{"$error":"#REF!"}},0,"peso",{"$f":"#REF!","v":{"$error":"#REF!"}},800001965,"http://www.xbrl.org/scheme/companyName",null,{"$f":"Periodos!$C$4","v":"2017-12-31"},{"$f":"#REF!","v":{"$error":"#REF!"}},{"$f":"#REF!","v":{"$error":"#REF!"}}]
["/*",null,"--71--"]
[{"$error":"#REF!"},null,{"$f":"#REF!","v":{"$error":"#REF!"}},{"$f":"#REF!","v":{"$error":"#REF!"}},null,null,{"$f":"#REF!","v":{"$error":"#REF!"}},800001965,"http://www.xbrl.org/scheme/companyName",null,{"$f":"Periodos!$C$4","v":"2017-12-31"},{"$f":"#REF!","v":{"$error":"#REF!"}},{"$f":"#REF!","v":{"$error":"#REF!"}}]
[{"$error":"#REF!"},null,{"$f":"#REF!","v":{"$error":"#REF!"}},{"$f":"#REF!","v":{"$error":"#REF!"}},null,null,{"$f":"#REF!","v":{"$error":"#REF!"}},800001965,"http://www.xbrl.org/scheme/companyName",null,{"$f":"Periodos!$C$4","v":"2017-12-31"},{"$f":"#REF!","v":{"$error":"#REF!"}},{"$f":"#REF!","v":{"$error":"#REF!"}}]
[{"$error":"#REF!"},null,{"$f":"#REF!","v":{"$error":"#REF!"}},{"$f":"#REF!","v":{"$error":"#REF!"}},null,null,{"$f":"#REF!","v":{"$error":"#REF!"}},800001965,"http://www.xbrl.org/scheme/companyName",null,{"$f":"Periodos!$C$4","v":"2017-12-31"},{"$f":"#REF!","v":{"$error":"#REF!"}},{"$f":"#REF!","v":{"$error":"#REF!"}}]
[{"$error":"#REF!"},null,{"$f":"#REF!","v":{"$error":"#REF!"}},{"$f":"#REF!","v":{"$error":"#REF!"}},null,null,{"$f":"#REF!","v":{"$error":"#REF!"}},800001965,"http://www.xbrl.org/scheme/companyName",null,{"$f":"Periodos!$C$4","v":"2017-12-31"},{"$f":"#REF!","v":{"$error":"#REF!"}},{"$f":"#REF!","v":{"$error":"#REF!"}}]
[{"$error":"#REF!"},null,{"$f":"#REF!","v":{"$error":"#REF!"}},{"$f":"#REF!","v":{"$error":"#REF!"}},null,null,{"$f":"#REF!","v":{"$error":"#REF!"}},800001965,"http://www.xbrl.org/scheme/companyName",null,{"$f":"Periodos!$C$4","v":"2017-12-31"},{"$f":"#REF!","v":{"$error":"#REF!"}},{"$f":"#REF!","v":{"$error":"#REF!"}}]
[{"$error":"#REF!"},null,{"$f":"#REF!","v":{"$error":"#REF!"}},{"$f":"#REF!","v":{"$error":"#REF!"}},null,null,{"$f":"#REF!","v":{"$error":"#REF!"}},800001965,"http://www.xbrl.org/scheme/companyName",null,{"$f":"Periodos!$C$4","v":"2017-12-31"},{"$f":"#REF!","v":{"$error":"#REF!"}},{"$f":"#REF!","v":{"$error":"#REF!"}}]
[{"$error":"#REF!"},null,{"$f":"#REF!","v":{"$error":"#REF!"}},{"$f":"#REF!","v":{"$error":"#REF!"}},null,null,{"$f":"#REF!","v":{"$error":"#REF!"}},800001965,"http://www.xbrl.org/scheme/companyName",null,{"$f":"Periodos!$C$4","v":"2017-12-31"},{"$f":"#REF!","v":{"$error":"#REF!"}},{"$f":"#REF!","v":{"$error":"#REF!"}}]
[{"$error":"#REF!"},null,{"$f":"#REF!","v":{"$error":"#REF!"}},{"$f":"#REF!","v":{"$error":"#REF!"}},null,null,{"$f":"#REF!","v":{"$error":"#REF!"}},800001965,"http://www.xbrl.org/scheme/companyName",null,{"$f":"Periodos!$C$4","v":"2017-12-31"},{"$f":"#REF!","v":{"$error":"#REF!"}},{"$f":"#REF!","v":{"$error":"#REF!"}}]
[{"$error":"#REF!"},null,{"$f":"#REF!","v":{"$error":"#REF!"}},{"$f":"#REF!","v":{"$error":"#REF!"}},null,null,{"$f":"#REF!","v":{"$error":"#REF!"}},800001965,"http://www.xbrl.org/scheme/companyName",null,{"$f":"Periodos!$C$4","v":"2017-12-31"},{"$f":"#REF!","v":{"$error":"#REF!"}},{"$f":"#REF!","v":{"$error":"#REF!"}}]
[{"$error":"#REF!"},null,{"$f":"#REF!","v":{"$error":"#REF!"}},{"$f":"#REF!","v":{"$error":"#REF!"}},null,null,{"$f":"#REF!","v":{"$error":"#REF!"}},800001965,"http://www.xbrl.org/scheme/companyName",null,{"$f":"Periodos!$C$4","v":"2017-12-31"},{"$f":"#REF!","v":{"$error":"#REF!"}},{"$f":"#REF!","v":{"$error":"#REF!"}}]
[{"$error":"#REF!"},null,{"$f":"#REF!","v":{"$error":"#REF!"}},{"$f":"#REF!","v":{"$error":"#REF!"}},null,null,{"$f":"#REF!","v":{"$error":"#REF!"}},800001965,"http://www.xbrl.org/scheme/companyName",null,{"$f":"Periodos!$C$4","v":"2017-12-31"},{"$f":"#REF!","v":{"$error":"#REF!"}},{"$f":"#REF!","v":{"$error":"#REF!"}}]
[{"$error":"#REF!"},null,{"$f":"#REF!","v":{"$error":"#REF!"}},{"$f":"#REF!","v":{"$error":"#REF!"}},0,"peso",{"$f":"#REF!","v":{"$error":"#REF!"}},800001965,"http://www.xbrl.org/scheme/companyName",null,{"$f":"Periodos!$C$4","v":"2017-12-31"},{"$f":"#REF!","v":{"$error":"#REF!"}},{"$f":"#REF!","v":{"$error":"#REF!"}}]
["/*",null,"--72--"]
[{"$f":"IF(G2593=\"\",\"/*\",\"\")","v":{"$error":"#REF!"}},null,{"$f":"#REF!","v":{"$error":"#REF!"}},{"$f":"#REF!","v":{"$error":"#REF!"}},null,null,{"$f":"#REF!","v":{"$error":"#REF!"}},800001965,"http://www.xbrl.org/scheme/companyName",null,{"$f":"Periodos!$C$4","v":"2017-12-31"},{"$f":"#REF!","v":{"$error":"#REF!"}},{"$f":"#REF!","v":{"$error":"#REF!"}}]
[{"$error":"#REF!"},null,{"$f":"#REF!","v":{"$error":"#REF!"}},{"$f":"#REF!","v":{"$error":"#REF!"}},null,null,{"$f":"#REF!","v":{"$error":"#REF!"}},800001965,"http://www.xbrl.org/scheme/companyName",null,{"$f":"Periodos!$C$4","v":"2017-12-31"},{"$f":"#REF!","v":{"$error":"#REF!"}},{"$f":"#REF!","v":{"$error":"#REF!"}}]
[{"$error":"#REF!"},null,{"$f":"#REF!","v":{"$error":"#REF!"}},{"$f":"#REF!","v":{"$error":"#REF!"}},null,null,{"$f":"#REF!","v":{"$error":"#REF!"}},800001965,"http://www.xbrl.org/scheme/companyName",null,{"$f":"Periodos!$C$4","v":"2017-12-31"},{"$f":"#REF!","v":{"$error":"#REF!"}},{"$f":"#REF!","v":{"$error":"#REF!"}}]
[{"$error":"#REF!"},null,{"$f":"#REF!","v":{"$error":"#REF!"}},{"$f":"#REF!","v":{"$error":"#REF!"}},null,null,{"$f":"#REF!","v":{"$error":"#REF!"}},800001965,"http://www.xbrl.org/scheme/companyName",null,{"$f":"Periodos!$C$4","v":"2017-12-31"},{"$f":"#REF!","v":{"$error":"#REF!"}},{"$f":"#REF!","v":{"$error":"#REF!"}}]
[{"$error":"#REF!"},null,{"$f":"#REF!","v":{"$error":"#REF!"}},{"$f":"#REF!","v":{"$error":"#REF!"}},null,null,{"$f":"#REF!","v":{"$error":"#REF!"}},800001965,"http://www.xbrl.org/scheme/companyName",null,{"$f":"Periodos!$C$4","v":"2017-12-31"},{"$f":"#REF!","v":{"$error":"#REF!"}},{"$f":"#REF!","v":{"$error":"#REF!"}}]
[{"$error":"#REF!"},null,{"$f":"#REF!","v":{"$error":"#REF!"}},{"$f":"#REF!","v":{"$error":"#REF!"}},null,null,{"$f":"#REF!","v":{"$error":"#REF!"}},800001965,"http://www.xbrl.org/scheme/companyName",null,{"$f":"Periodos!$C$4","v":"2017-12-31"},{"$f":"#REF!","v":{"$error":"#REF!"}},{"$f":"#REF!","v":{"$error":"#REF!"}}]
[{"$error":"#REF!"},null,{"$f":"#REF!","v":{"$error":"#REF!"}},{"$f":"#REF!","v":{"$error":"#REF!"}},null,null,{"$f":"#REF!","v":{"$error":"#REF!"}},800001965,"http://www.xbrl.org/scheme/companyName",null,{"$f":"Periodos!$C$4","v":"2017-12-31"},{"$f":"#REF!","v":{"$error":"#REF!"}},{"$f":"#REF!","v":{"$error":"#REF!"}}]
[{"$error":"#REF!"},null,{"$f":"#REF!","v":{"$error":"#REF!"}},{"$f":"#REF!","v":{"$error":"#REF!"}},null,null,{"$f":"#REF!","v":{"$error":"#REF!"}},800001965,"http://www.xbrl.org/scheme/companyName",null,{"$f":"Periodos!$C$4","v":"2017-12-31"},{"$f":"#REF!","v":{"$error":"#REF!"}},{"$f":"#REF!","v":{"$error":"#REF!"}}]
[{"$error":"#REF!"},null,{"$f":"#REF!","v":{"$error":"#REF!"}},{"$f":"#REF!","v":{"$error":"#REF!"}},null,null,{"$f":"#REF!","v":{"$error":"#REF!"}},800001965,"http://www.xbrl.org/scheme/companyName",null,{"$f":"Periodos!$C$4","v":"2017-12-31"},{"$f":"#REF!","v":{"$error":"#REF!"}},{"$f":"#REF!","v":{"$error":"#REF!"}}]
[{"$error":"#REF!"},null,{"$f":"#REF!","v":{"$error":"#REF!"}},{"$f":"#REF!","v":{"$error":"#REF!"}},null,null,{"$f":"#REF!","v":{"$error":"#REF!"}},800001965,"http://www.xbrl.org/scheme/companyName",null,{"$f":"Periodos!$C$4","v":"2017-12-31"},{"$f":"#REF!","v":{"$error":"#REF!"}},{"$f":"#REF!","v":{"$error":"#REF!"}}]
[{"$error":"#REF!"},null,{"$f":"#REF!","v":{"$error":"#REF!"}},{"$f":"#REF!","v":{"$error":"#REF!"}},null,null,{"$f":"#REF!","v":{"$error":"#REF!"}},800001965,"http://www.xbrl.org/scheme/companyName",null,{"$f":"Periodos!$C$4","v":"2017-12-31"},{"$f":"#REF!","v":{"$error":"#REF!"}},{"$f":"#REF!","v":{"$error":"#REF!"}}]
[{"$error":"#REF!"},null,{"$f":"#REF!","v":{"$error":"#REF!"}},{"$f":"#REF!","v":{"$error":"#REF!"}},0,"peso",{"$f":"#REF!","v":{"$error":"#REF!"}},800001965,"http://www.xbrl.org/scheme/companyName",null,{"$f":"Periodos!$C$4","v":"2017-12-31"},{"$f":"#REF!","v":{"$error":"#REF!"}},{"$f":"#REF!","v":{"$error":"#REF!"}}]
["/*",null,"--73--"]
[{"$error":"#REF!"},null,{"$f":"#REF!","v":{"$error":"#REF!"}},{"$f":"#REF!","v":{"$error":"#REF!"}},null,null,{"$f":"#REF!","v":{"$error":"#REF!"}},800001965,"http://www.xbrl.org/scheme/companyName",null,{"$f":"Periodos!$C$4","v":"2017-12-31"},{"$f":"#REF!","v":{"$error":"#REF!"}},{"$f":"#REF!","v":{"$error":"#REF!"}}]
[{"$error":"#REF!"},null,{"$f":"#REF!","v":{"$error":"#REF!"}},{"$f":"#REF!","v":{"$error":"#REF!"}},null,null,{"$f":"#REF!","v":{"$error":"#REF!"}},800001965,"http://www.xbrl.org/scheme/companyName",null,{"$f":"Periodos!$C$4","v":"2017-12-31"},{"$f":"#REF!","v":{"$error":"#REF!"}},{"$f":"#REF!","v":{"$error":"#REF!"}}]
[{"$error":"#REF!"},null,{"$f":"#REF!","v":{"$error":"#REF!"}},{"$f":"#REF!","v":{"$error":"#REF!"}},null,null,{"$f":"#REF!","v":{"$error":"#REF!"}},800001965,"http://www.xbrl.org/scheme/companyName",null,{"$f":"Periodos!$C$4","v":"2017-12-31"},{"$f":"#REF!","v":{"$error":"#REF!"}},{"$f":"#REF!","v":{"$error":"#REF!"}}]
[{"$error":"#REF!"},null,{"$f":"#REF!","v":{"$error":"#REF!"}},{"$f":"#REF!","v":{"$error":"#REF!"}},null,null,{"$f":"#REF!","v":{"$error":"#REF!"}},800001965,"http://www.xbrl.org/scheme/companyName",null,{"$f":"Periodos!$C$4","v":"2017-12-31"},{"$f":"#REF!","v":{"$error":"#REF!"}},{"$f":"#REF!","v":{"$error":"#REF!"}}]
[{"$error":"#REF!"},null,{"$f":"#REF!","v":{"$error":"#REF!"}},{"$f":"#REF!","v":{"$error":"#REF!"}},null,null,{"$f":"#REF!","v":{"$error":"#REF!"}},800001965,"http://www.xbrl.org/scheme/companyName",null,{"$f":"Periodos!$C$4","v":"2017-12-31"},{"$f":"#REF!","v":{"$error":"#REF!"}},{"$f":"#REF!","v":{"$error":"#REF!"}}]
[{"$error":"#REF!"},null,{"$f":"#REF!","v":{"$error":"#REF!"}},{"$f":"#REF!","v":{"$error":"#REF!"}},null,null,{"$f":"#REF!","v":{"$error":"#REF!"}},800001965,"http://www.xbrl.org/scheme/companyName",null,{"$f":"Periodos!$C$4","v":"2017-12-31"},{"$f":"#REF!","v":{"$error":"#REF!"}},{"$f":"#REF!","v":{"$error":"#REF!"}}]
[{"$error":"#REF!"},null,{"$f":"#REF!","v":{"$error":"#REF!"}},{"$f":"#REF!","v":{"$error":"#REF!"}},null,null,{"$f":"#REF!","v":{"$error":"#REF!"}},800001965,"http://www.xbrl.org/scheme/companyName",null,{"$f":"Periodos!$C$4","v":"2017-12-31"},{"$f":"#REF!","v":{"$error":"#REF!"}},{"$f":"#REF!","v":{"$error":"#REF!"}}]
[{"$error":"#REF!"},null,{"$f":"#REF!","v":{"$error":"#REF!"}},{"$f":"#REF!","v":{"$error":"#REF!"}},null,null,{"$f":"#REF!","v":{"$error":"#REF!"}},800001965,"http://www.xbrl.org/scheme/companyName",null,{"$f":"Periodos!$C$4","v":"2017-12-31"},{"$f":"#REF!","v":{"$error":"#REF!"}},{"$f":"#REF!","v":{"$error":"#REF!"}}]
[{"$error":"#REF!"},null,{"$f":"#REF!","v":{"$error":"#REF!"}},{"$f":"#REF!","v":{"$error":"#REF!"}},null,null,{"$f":"#REF!","v":{"$error":"#REF!"}},800001965,"http://www.xbrl.org/scheme/companyName",null,{"$f":"Periodos!$C$4","v":"2017-12-31"},{"$f":"#REF!","v":{"$error":"#REF!"}},{"$f":"#REF!","v":{"$error":"#REF!"}}]
[{"$error":"#REF!"},null,{"$f":"#REF!","v":{"$error":"#REF!"}},{"$f":"#REF!","v":{"$error":"#REF!"}},null,null,{"$f":"#REF!","v":{"$error":"#REF!"}},800001965,"http://www.xbrl.org/scheme/companyName",null,{"$f":"Periodos!$C$4","v":"2017-12-31"},{"$f":"#REF!","v":{"$error":"#REF!"}},{"$f":"#REF!","v":{"$error":"#REF!"}}]
[{"$error":"#REF!"},null,{"$f":"#REF!","v":{"$error":"#REF!"}},{"$f":"#REF!","v":{"$error":"#REF!"}},null,null,{"$f":"#REF!","v":{"$error":"#REF!"}},800001965,"http://www.xbrl.org/scheme/companyName",null,{"$f":"Periodos!$C$4","v":"2017-12-31"},{"$f":"#REF!","v":{"$error":"#REF!"}},{"$f":"#REF!","v":{"$error":"#REF!"}}]
[{"$error":"#REF!"},null,{"$f":"#REF!","v":{"$error":"#REF!"}},{"$f":"#REF!","v":{"$error":"#REF!"}},0,"peso",{"$f":"#REF!","v":{"$error":"#REF!"}},800001965,"http://www.xbrl.org/scheme/companyName",null,{"$f":"Periodos!$C$4","v":"2017-12-31"},{"$f":"#REF!","v":{"$error":"#REF!"}},{"$f":"#REF!","v":{"$error":"#REF!"}}]
["/*",null,"--74--"]
[{"$error":"#REF!"},null,{"$f":"#REF!","v":{"$error":"#REF!"}},{"$f":"#REF!","v":{"$error":"#REF!"}},null,null,{"$f":"#REF!","v":{"$error":"#REF!"}},800001965,"http://www.xbrl.org/scheme/companyName",null,{"$f":"Periodos!$C$4","v":"2017-12-31"},{"$f":"#REF!","v":{"$error":"#REF!"}},{"$f":"#REF!","v":{"$error":"#REF!"}}]
[{"$error":"#REF!"},null,{"$f":"#REF!","v":{"$error":"#REF!"}},{"$f":"#REF!","v":{"$error":"#REF!"}},null,null,{"$f":"#REF!","v":{"$error":"#REF!"}},800001965,"http://www.xbrl.org/scheme/companyName",null,{"$f":"Periodos!$C$4","v":"2017-12-31"},{"$f":"#REF!","v":{"$error":"#REF!"}},{"$f":"#REF!","v":{"$error":"#REF!"}}]
[{"$error":"#REF!"},null,{"$f":"#REF!","v":{"$error":"#REF!"}},{"$f":"#REF!","v":{"$error":"#REF!"}},null,null,{"$f":"#REF!","v":{"$error":"#REF!"}},800001965,"http://www.xbrl.org/scheme/companyName",null,{"$f":"Periodos!$C$4","v":"2017-12-31"},{"$f":"#REF!","v":{"$error":"#REF!"}},{"$f":"#REF!","v":{"$error":"#REF!"}}]
[{"$error":"#REF!"},null,{"$f":"#REF!","v":{"$error":"#REF!"}},{"$f":"#REF!","v":{"$error":"#REF!"}},null,null,{"$f":"#REF!","v":{"$error":"#REF!"}},800001965,"http://www.xbrl.org/scheme/companyName",null,{"$f":"Periodos!$C$4","v":"2017-12-31"},{"$f":"#REF!","v":{"$error":"#REF!"}},{"$f":"#REF!","v":{"$error":"#REF!"}}]
[{"$error":"#REF!"},null,{"$f":"#REF!","v":{"$error":"#REF!"}},{"$f":"#REF!","v":{"$error":"#REF!"}},null,null,{"$f":"#REF!","v":{"$error":"#REF!"}},800001965,"http://www.xbrl.org/scheme/companyName",null,{"$f":"Periodos!$C$4","v":"2017-12-31"},{"$f":"#REF!","v":{"$error":"#REF!"}},{"$f":"#REF!","v":{"$error":"#REF!"}}]
[{"$error":"#REF!"},null,{"$f":"#REF!","v":{"$error":"#REF!"}},{"$f":"#REF!","v":{"$error":"#REF!"}},null,null,{"$f":"#REF!","v":{"$error":"#REF!"}},800001965,"http://www.xbrl.org/scheme/companyName",null,{"$f":"Periodos!$C$4","v":"2017-12-31"},{"$f":"#REF!","v":{"$error":"#REF!"}},{"$f":"#REF!","v":{"$error":"#REF!"}}]
[{"$error":"#REF!"},null,{"$f":"#REF!","v":{"$error":"#REF!"}},{"$f":"#REF!","v":{"$error":"#REF!"}},null,null,{"$f":"#REF!","v":{"$error":"#REF!"}},800001965,"http://www.xbrl.org/scheme/companyName",null,{"$f":"Periodos!$C$4","v":"2017-12-31"},{"$f":"#REF!","v":{"$error":"#REF!"}},{"$f":"#REF!","v":{"$error":"#REF!"}}]
[{"$error":"#REF!"},null,{"$f":"#REF!","v":{"$error":"#REF!"}},{"$f":"#REF!","v":{"$error":"#REF!"}},null,null,{"$f":"#REF!","v":{"$error":"#REF!"}},800001965,"http://www.xbrl.org/scheme/companyName",null,{"$f":"Periodos!$C$4","v":"2017-12-31"},{"$f":"#REF!","v":{"$error":"#REF!"}},{"$f":"#REF!","v":{"$error":"#REF!"}}]
[{"$error":"#REF!"},null,{"$f":"#REF!","v":{"$error":"#REF!"}},{"$f":"#REF!","v":{"$error":"#REF!"}},null,null,{"$f":"#REF!","v":{"$error":"#REF!"}},800001965,"http://www.xbrl.org/scheme/companyName",null,{"$f":"Periodos!$C$4","v":"2017-12-31"},{"$f":"#REF!","v":{"$error":"#REF!"}},{"$f":"#REF!","v":{"$error":"#REF!"}}]
[{"$error":"#REF!"},null,{"$f":"#REF!","v":{"$error":"#REF!"}},{"$f":"#REF!","v":{"$error":"#REF!"}},null,null,{"$f":"#REF!","v":{"$error":"#REF!"}},800001965,"http://www.xbrl.org/scheme/companyName",null,{"$f":"Periodos!$C$4","v":"2017-12-31"},{"$f":"#REF!","v":{"$error":"#REF!"}},{"$f":"#REF!","v":{"$error":"#REF!"}}]
[{"$error":"#REF!"},null,{"$f":"#REF!","v":{"$error":"#REF!"}},{"$f":"#REF!","v":{"$error":"#REF!"}},null,null,{"$f":"#REF!","v":{"$error":"#REF!"}},800001965,"http://www.xbrl.org/scheme/companyName",null,{"$f":"Periodos!$C$4","v":"2017-12-31"},{"$f":"#REF!","v":{"$error":"#REF!"}},{"$f":"#REF!","v":{"$error":"#REF!"}}]
[{"$error":"#REF!"},null,{"$f":"#REF!","v":{"$error":"#REF!"}},{"$f":"#REF!","v":{"$error":"#REF!"}},0,"peso",{"$f":"#REF!","v":{"$error":"#REF!"}},800001965,"http://www.xbrl.org/scheme/companyName",null,{"$f":"Periodos!$C$4","v":"2017-12-31"},{"$f":"#REF!","v":{"$error":"#REF!"}},{"$f":"#REF!","v":{"$error":"#REF!"}}]
["/*",null,"--75--"]
[{"$error":"#REF!"},null,{"$f":"#REF!","v":{"$error":"#REF!"}},{"$f":"#REF!","v":{"$error":"#REF!"}},null,null,{"$f":"#REF!","v":{"$error":"#REF!"}},800001965,"http://www.xbrl.org/scheme/companyName",null,{"$f":"Periodos!$C$4","v":"2017-12-31"},{"$f":"#REF!","v":{"$error":"#REF!"}},{"$f":"#REF!","v":{"$error":"#REF!"}}]
[{"$error":"#REF!"},null,{"$f":"#REF!","v":{"$error":"#REF!"}},{"$f":"#REF!","v":{"$error":"#REF!"}},null,null,{"$f":"#REF!","v":{"$error":"#REF!"}},800001965,"http://www.xbrl.org/scheme/companyName",null,{"$f":"Periodos!$C$4","v":"2017-12-31"},{"$f":"#REF!","v":{"$error":"#REF!"}},{"$f":"#REF!","v":{"$error":"#REF!"}}]
[{"$error":"#REF!"},null,{"$f":"#REF!","v":{"$error":"#REF!"}},{"$f":"#REF!","v":{"$error":"#REF!"}},null,null,{"$f":"#REF!","v":{"$error":"#REF!"}},800001965,"http://www.xbrl.org/scheme/companyName",null,{"$f":"Periodos!$C$4","v":"2017-12-31"},{"$f":"#REF!","v":{"$error":"#REF!"}},{"$f":"#REF!","v":{"$error":"#REF!"}}]
[{"$error":"#REF!"},null,{"$f":"#REF!","v":{"$error":"#REF!"}},{"$f":"#REF!","v":{"$error":"#REF!"}},null,null,{"$f":"#REF!","v":{"$error":"#REF!"}},800001965,"http://www.xbrl.org/scheme/companyName",null,{"$f":"Periodos!$C$4","v":"2017-12-31"},{"$f":"#REF!","v":{"$error":"#REF!"}},{"$f":"#REF!","v":{"$error":"#REF!"}}]
[{"$error":"#REF!"},null,{"$f":"#REF!","v":{"$error":"#REF!"}},{"$f":"#REF!","v":{"$error":"#REF!"}},null,null,{"$f":"#REF!","v":{"$error":"#REF!"}},800001965,"http://www.xbrl.org/scheme/companyName",null,{"$f":"Periodos!$C$4","v":"2017-12-31"},{"$f":"#REF!","v":{"$error":"#REF!"}},{"$f":"#REF!","v":{"$error":"#REF!"}}]
[{"$error":"#REF!"},null,{"$f":"#REF!","v":{"$error":"#REF!"}},{"$f":"#REF!","v":{"$error":"#REF!"}},null,null,{"$f":"#REF!","v":{"$error":"#REF!"}},800001965,"http://www.xbrl.org/scheme/companyName",null,{"$f":"Periodos!$C$4","v":"2017-12-31"},{"$f":"#REF!","v":{"$error":"#REF!"}},{"$f":"#REF!","v":{"$error":"#REF!"}}]
[{"$error":"#REF!"},null,{"$f":"#REF!","v":{"$error":"#REF!"}},{"$f":"#REF!","v":{"$error":"#REF!"}},null,null,{"$f":"#REF!","v":{"$error":"#REF!"}},800001965,"http://www.xbrl.org/scheme/companyName",null,{"$f":"Periodos!$C$4","v":"2017-12-31"},{"$f":"#REF!","v":{"$error":"#REF!"}},{"$f":"#REF!","v":{"$error":"#REF!"}}]
[{"$error":"#REF!"},null,{"$f":"#REF!","v":{"$error":"#REF!"}},{"$f":"#REF!","v":{"$error":"#REF!"}},null,null,{"$f":"#REF!","v":{"$error":"#REF!"}},800001965,"http://www.xbrl.org/scheme/companyName",null,{"$f":"Periodos!$C$4","v":"2017-12-31"},{"$f":"#REF!","v":{"$error":"#REF!"}},{"$f":"#REF!","v":{"$error":"#REF!"}}]
[{"$error":"#REF!"},null,{"$f":"#REF!","v":{"$error":"#REF!"}},{"$f":"#REF!","v":{"$error":"#REF!"}},null,null,{"$f":"#REF!","v":{"$error":"#REF!"}},800001965,"http://www.xbrl.org/scheme/companyName",null,{"$f":"Periodos!$C$4","v":"2017-12-31"},{"$f":"#REF!","v":{"$error":"#REF!"}},{"$f":"#REF!","v":{"$error":"#REF!"}}]
[{"$error":"#REF!"},null,{"$f":"#REF!","v":{"$error":"#REF!"}},{"$f":"#REF!","v":{"$error":"#REF!"}},null,null,{"$f":"#REF!","v":{"$error":"#REF!"}},800001965,"http://www.xbrl.org/scheme/companyName",null,{"$f":"Periodos!$C$4","v":"2017-12-31"},{"$f":"#REF!","v":{"$error":"#REF!"}},{"$f":"#REF!","v":{"$error":"#REF!"}}]
[{"$error":"#REF!"},null,{"$f":"#REF!","v":{"$error":"#REF!"}},{"$f":"#REF!","v":{"$error":"#REF!"}},null,null,{"$f":"#REF!","v":{"$error":"#REF!"}},800001965,"http://www.xbrl.org/scheme/companyName",null,{"$f":"Periodos!$C$4","v":"2017-12-31"},{"$f":"#REF!","v":{"$error":"#REF!"}},{"$f":"#REF!","v":{"$error":"#REF!"}}]
[{"$error":"#REF!"},null,{"$f":"#REF!","v":{"$error":"#REF!"}},{"$f":"#REF!","v":{"$error":"#REF!"}},0,"peso",{"$f":"#REF!","v":{"$error":"#REF!"}},800001965,"http://www.xbrl.org/scheme/companyName",null,{"$f":"Periodos!$C$4","v":"2017-12-31"},{"$f":"#REF!","v":{"$error":"#REF!"}},{"$f":"#REF!","v":{"$error":"#REF!"}}]
["/*",null,"--76--"]
[{"$error":"#REF!"},null,{"$f":"#REF!","v":{"$error":"#REF!"}},{"$f":"#REF!","v":{"$error":"#REF!"}},null,null,{"$f":"#REF!","v":{"$error":"#REF!"}},800001965,"http://www.xbrl.org/scheme/companyName",null,{"$f":"Periodos!$C$4","v":"2017-12-31"},{"$f":"#REF!","v":{"$error":"#REF!"}},{"$f":"#REF!","v":{"$error":"#REF!"}}]
[{"$error":"#REF!"},null,{"$f":"#REF!","v":{"$error":"#REF!"}},{"$f":"#REF!","v":{"$error":"#REF!"}},null,null,{"$f":"#REF!","v":{"$error":"#REF!"}},800001965,"http://www.xbrl.org/scheme/companyName",null,{"$f":"Periodos!$C$4","v":"2017-12-31"},{"$f":"#REF!","v":{"$error":"#REF!"}},{"$f":"#REF!","v":{"$error":"#REF!"}}]
[{"$error":"#REF!"},null,{"$f":"#REF!","v":{"$error":"#REF!"}},{"$f":"#REF!","v":{"$error":"#REF!"}},null,null,{"$f":"#REF!","v":{"$error":"#REF!"}},800001965,"http://www.xbrl.org/scheme/companyName",null,{"$f":"Periodos!$C$4","v":"2017-12-31"},{"$f":"#REF!","v":{"$error":"#REF!"}},{"$f":"#REF!","v":{"$error":"#REF!"}}]
[{"$error":"#REF!"},null,{"$f":"#REF!","v":{"$error":"#REF!"}},{"$f":"#REF!","v":{"$error":"#REF!"}},null,null,{"$f":"#REF!","v":{"$error":"#REF!"}},800001965,"http://www.xbrl.org/scheme/companyName",null,{"$f":"Periodos!$C$4","v":"2017-12-31"},{"$f":"#REF!","v":{"$error":"#REF!"}},{"$f":"#REF!","v":{"$error":"#REF!"}}]
[{"$error":"#REF!"},null,{"$f":"#REF!","v":{"$error":"#REF!"}},{"$f":"#REF!","v":{"$error":"#REF!"}},null,null,{"$f":"#REF!","v":{"$error":"#REF!"}},800001965,"http://www.xbrl.org/scheme/companyName",null,{"$f":"Periodos!$C$4","v":"2017-12-31"},{"$f":"#REF!","v":{"$error":"#REF!"}},{"$f":"#REF!","v":{"$error":"#REF!"}}]
[{"$error":"#REF!"},null,{"$f":"#REF!","v":{"$error":"#REF!"}},{"$f":"#REF!","v":{"$error":"#REF!"}},null,null,{"$f":"#REF!","v":{"$error":"#REF!"}},800001965,"http://www.xbrl.org/scheme/companyName",null,{"$f":"Periodos!$C$4","v":"2017-12-31"},{"$f":"#REF!","v":{"$error":"#REF!"}},{"$f":"#REF!","v":{"$error":"#REF!"}}]
[{"$error":"#REF!"},null,{"$f":"#REF!","v":{"$error":"#REF!"}},{"$f":"#REF!","v":{"$error":"#REF!"}},null,null,{"$f":"#REF!","v":{"$error":"#REF!"}},800001965,"http://www.xbrl.org/scheme/companyName",null,{"$f":"Periodos!$C$4","v":"2017-12-31"},{"$f":"#REF!","v":{"$error":"#REF!"}},{"$f":"#REF!","v":{"$error":"#REF!"}}]
[{"$error":"#REF!"},null,{"$f":"#REF!","v":{"$error":"#REF!"}},{"$f":"#REF!","v":{"$error":"#REF!"}},null,null,{"$f":"#REF!","v":{"$error":"#REF!"}},800001965,"http://www.xbrl.org/scheme/companyName",null,{"$f":"Periodos!$C$4","v":"2017-12-31"},{"$f":"#REF!","v":{"$error":"#REF!"}},{"$f":"#REF!","v":{"$error":"#REF!"}}]
[{"$error":"#REF!"},null,{"$f":"#REF!","v":{"$error":"#REF!"}},{"$f":"#REF!","v":{"$error":"#REF!"}},null,null,{"$f":"#REF!","v":{"$error":"#REF!"}},800001965,"http://www.xbrl.org/scheme/companyName",null,{"$f":"Periodos!$C$4","v":"2017-12-31"},{"$f":"#REF!","v":{"$error":"#REF!"}},{"$f":"#REF!","v":{"$error":"#REF!"}}]
[{"$error":"#REF!"},null,{"$f":"#REF!","v":{"$error":"#REF!"}},{"$f":"#REF!","v":{"$error":"#REF!"}},null,null,{"$f":"#REF!","v":{"$error":"#REF!"}},800001965,"http://www.xbrl.org/scheme/companyName",null,{"$f":"Periodos!$C$4","v":"2017-12-31"},{"$f":"#REF!","v":{"$error":"#REF!"}},{"$f":"#REF!","v":{"$error":"#REF!"}}]
[{"$error":"#REF!"},null,{"$f":"#REF!","v":{"$error":"#REF!"}},{"$f":"#REF!","v":{"$error":"#REF!"}},null,null,{"$f":"#REF!","v":{"$error":"#REF!"}},800001965,"http://www.xbrl.org/scheme/companyName",null,{"$f":"Periodos!$C$4","v":"2017-12-31"},{"$f":"#REF!","v":{"$error":"#REF!"}},{"$f":"#REF!","v":{"$error":"#REF!"}}]
[{"$error":"#REF!"},null,{"$f":"#REF!","v":{"$error":"#REF!"}},{"$f":"#REF!","v":{"$error":"#REF!"}},0,"peso",{"$f":"#REF!","v":{"$error":"#REF!"}},800001965,"http://www.xbrl.org/scheme/companyName",null,{"$f":"Periodos!$C$4","v":"2017-12-31"},{"$f":"#REF!","v":{"$error":"#REF!"}},{"$f":"#REF!","v":{"$error":"#REF!"}}]
[{"$f":"IF(G2657=\"\",\"/*\",\"\")","v":"/*"},null,"--77--"]
[{"$error":"#REF!"},null,{"$f":"#REF!","v":{"$error":"#REF!"}},{"$f":"#REF!","v":{"$error":"#REF!"}},null,null,{"$f":"#REF!","v":{"$error":"#REF!"}},800001965,"http://www.xbrl.org/scheme/companyName",null,{"$f":"Periodos!$C$4","v":"2017-12-31"},{"$f":"#REF!","v":{"$error":"#REF!"}},{"$f":"#REF!","v":{"$error":"#REF!"}}]
[{"$error":"#REF!"},null,{"$f":"#REF!","v":{"$error":"#REF!"}},{"$f":"#REF!","v":{"$error":"#REF!"}},null,null,{"$f":"#REF!","v":{"$error":"#REF!"}},800001965,"http://www.xbrl.org/scheme/companyName",null,{"$f":"Periodos!$C$4","v":"2017-12-31"},{"$f":"#REF!","v":{"$error":"#REF!"}},{"$f":"#REF!","v":{"$error":"#REF!"}}]
[{"$error":"#REF!"},null,{"$f":"#REF!","v":{"$error":"#REF!"}},{"$f":"#REF!","v":{"$error":"#REF!"}},null,null,{"$f":"#REF!","v":{"$error":"#REF!"}},800001965,"http://www.xbrl.org/scheme/companyName",null,{"$f":"Periodos!$C$4","v":"2017-12-31"},{"$f":"#REF!","v":{"$error":"#REF!"}},{"$f":"#REF!","v":{"$error":"#REF!"}}]
[{"$error":"#REF!"},null,{"$f":"#REF!","v":{"$error":"#REF!"}},{"$f":"#REF!","v":{"$error":"#REF!"}},null,null,{"$f":"#REF!","v":{"$error":"#REF!"}},800001965,"http://www.xbrl.org/scheme/companyName",null,{"$f":"Periodos!$C$4","v":"2017-12-31"},{"$f":"#REF!","v":{"$error":"#REF!"}},{"$f":"#REF!","v":{"$error":"#REF!"}}]
[{"$error":"#REF!"},null,{"$f":"#REF!","v":{"$error":"#REF!"}},{"$f":"#REF!","v":{"$error":"#REF!"}},null,null,{"$f":"#REF!","v":{"$error":"#REF!"}},800001965,"http://www.xbrl.org/scheme/companyName",null,{"$f":"Periodos!$C$4","v":"2017-12-31"},{"$f":"#REF!","v":{"$error":"#REF!"}},{"$f":"#REF!","v":{"$error":"#REF!"}}]
[{"$error":"#REF!"},null,{"$f":"#REF!","v":{"$error":"#REF!"}},{"$f":"#REF!","v":{"$error":"#REF!"}},null,null,{"$f":"#REF!","v":{"$error":"#REF!"}},800001965,"http://www.xbrl.org/scheme/companyName",null,{"$f":"Periodos!$C$4","v":"2017-12-31"},{"$f":"#REF!","v":{"$error":"#REF!"}},{"$f":"#REF!","v":{"$error":"#REF!"}}]
[{"$error":"#REF!"},null,{"$f":"#REF!","v":{"$error":"#REF!"}},{"$f":"#REF!","v":{"$error":"#REF!"}},null,null,{"$f":"#REF!","v":{"$error":"#REF!"}},800001965,"http://www.xbrl.org/scheme/companyName",null,{"$f":"Periodos!$C$4","v":"2017-12-31"},{"$f":"#REF!","v":{"$error":"#REF!"}},{"$f":"#REF!","v":{"$error":"#REF!"}}]
[{"$error":"#REF!"},null,{"$f":"#REF!","v":{"$error":"#REF!"}},{"$f":"#REF!","v":{"$error":"#REF!"}},null,null,{"$f":"#REF!","v":{"$error":"#REF!"}},800001965,"http://www.xbrl.org/scheme/companyName",null,{"$f":"Periodos!$C$4","v":"2017-12-31"},{"$f":"#REF!","v":{"$error":"#REF!"}},{"$f":"#REF!","v":{"$error":"#REF!"}}]
[{"$error":"#REF!"},null,{"$f":"#REF!","v":{"$error":"#REF!"}},{"$f":"#REF!","v":{"$error":"#REF!"}},null,null,{"$f":"#REF!","v":{"$error":"#REF!"}},800001965,"http://www.xbrl.org/scheme/companyName",null,{"$f":"Periodos!$C$4","v":"2017-12-31"},{"$f":"#REF!","v":{"$error":"#REF!"}},{"$f":"#REF!","v":{"$error":"#REF!"}}]
[{"$error":"#REF!"},null,{"$f":"#REF!","v":{"$error":"#REF!"}},{"$f":"#REF!","v":{"$error":"#REF!"}},null,null,{"$f":"#REF!","v":{"$error":"#REF!"}},800001965,"http://www.xbrl.org/scheme/companyName",null,{"$f":"Periodos!$C$4","v":"2017-12-31"},{"$f":"#REF!","v":{"$error":"#REF!"}},{"$f":"#REF!","v":{"$error":"#REF!"}}]
[{"$error":"#REF!"},null,{"$f":"#REF!","v":{"$error":"#REF!"}},{"$f":"#REF!","v":{"$error":"#REF!"}},null,null,{"$f":"#REF!","v":{"$error":"#REF!"}},800001965,"http://www.xbrl.org/scheme/companyName",null,{"$f":"Periodos!$C$4","v":"2017-12-31"},{"$f":"#REF!","v":{"$error":"#REF!"}},{"$f":"#REF!","v":{"$error":"#REF!"}}]
[{"$error":"#REF!"},null,{"$f":"#REF!","v":{"$error":"#REF!"}},{"$f":"#REF!","v":{"$error":"#REF!"}},0,"peso",{"$f":"#REF!","v":{"$error":"#REF!"}},800001965,"http://www.xbrl.org/scheme/companyName",null,{"$f":"Periodos!$C$4","v":"2017-12-31"},{"$f":"#REF!","v":{"$error":"#REF!"}},{"$f":"#REF!","v":{"$error":"#REF!"}}]
["/*",null,"--78--"]
[{"$error":"#REF!"},null,{"$f":"#REF!","v":{"$error":"#REF!"}},{"$f":"#REF!","v":{"$error":"#REF!"}},null,null,{"$f":"#REF!","v":{"$error":"#REF!"}},800001965,"http://www.xbrl.org/scheme/companyName",null,{"$f":"Periodos!$C$4","v":"2017-12-31"},{"$f":"#REF!","v":{"$error":"#REF!"}},{"$f":"#REF!","v":{"$error":"#REF!"}}]
[{"$error":"#REF!"},null,{"$f":"#REF!","v":{"$error":"#REF!"}},{"$f":"#REF!","v":{"$error":"#REF!"}},null,null,{"$f":"#REF!","v":{"$error":"#REF!"}},800001965,"http://www.xbrl.org/scheme/companyName",null,{"$f":"Periodos!$C$4","v":"2017-12-31"},{"$f":"#REF!","v":{"$error":"#REF!"}},{"$f":"#REF!","v":{"$error":"#REF!"}}]
[{"$error":"#REF!"},null,{"$f":"#REF!","v":{"$error":"#REF!"}},{"$f":"#REF!","v":{"$error":"#REF!"}},null,null,{"$f":"#REF!","v":{"$error":"#REF!"}},800001965,"http://www.xbrl.org/scheme/companyName",null,{"$f":"Periodos!$C$4","v":"2017-12-31"},{"$f":"#REF!","v":{"$error":"#REF!"}},{"$f":"#REF!","v":{"$error":"#REF!"}}]
[{"$error":"#REF!"},null,{"$f":"#REF!","v":{"$error":"#REF!"}},{"$f":"#REF!","v":{"$error":"#REF!"}},null,null,{"$f":"#REF!","v":{"$error":"#REF!"}},800001965,"http://www.xbrl.org/scheme/companyName",null,{"$f":"Periodos!$C$4","v":"2017-12-31"},{"$f":"#REF!","v":{"$error":"#REF!"}},{"$f":"#REF!","v":{"$error":"#REF!"}}]
[{"$error":"#REF!"},null,{"$f":"#REF!","v":{"$error":"#REF!"}},{"$f":"#REF!","v":{"$error":"#REF!"}},null,null,{"$f":"#REF!","v":{"$error":"#REF!"}},800001965,"http://www.xbrl.org/scheme/companyName",null,{"$f":"Periodos!$C$4","v":"2017-12-31"},{"$f":"#REF!","v":{"$error":"#REF!"}},{"$f":"#REF!","v":{"$error":"#REF!"}}]
[{"$error":"#REF!"},null,{"$f":"#REF!","v":{"$error":"#REF!"}},{"$f":"#REF!","v":{"$error":"#REF!"}},null,null,{"$f":"#REF!","v":{"$error":"#REF!"}},800001965,"http://www.xbrl.org/scheme/companyName",null,{"$f":"Periodos!$C$4","v":"2017-12-31"},{"$f":"#REF!","v":{"$error":"#REF!"}},{"$f":"#REF!","v":{"$error":"#REF!"}}]
[{"$error":"#REF!"},null,{"$f":"#REF!","v":{"$error":"#REF!"}},{"$f":"#REF!","v":{"$error":"#REF!"}},null,null,{"$f":"#REF!","v":{"$error":"#REF!"}},800001965,"http://www.xbrl.org/scheme/companyName",null,{"$f":"Periodos!$C$4","v":"2017-12-31"},{"$f":"#REF!","v":{"$error":"#REF!"}},{"$f":"#REF!","v":{"$error":"#REF!"}}]
[{"$error":"#REF!"},null,{"$f":"#REF!","v":{"$error":"#REF!"}},{"$f":"#REF!","v":{"$error":"#REF!"}},null,null,{"$f":"#REF!","v":{"$error":"#REF!"}},800001965,"http://www.xbrl.org/scheme/companyName",null,{"$f":"Periodos!$C$4","v":"2017-12-31"},{"$f":"#REF!","v":{"$error":"#REF!"}},{"$f":"#REF!","v":{"$error":"#REF!"}}]
[{"$error":"#REF!"},null,{"$f":"#REF!","v":{"$error":"#REF!"}},{"$f":"#REF!","v":{"$error":"#REF!"}},null,null,{"$f":"#REF!","v":{"$error":"#REF!"}},800001965,"http://www.xbrl.org/scheme/companyName",null,{"$f":"Periodos!$C$4","v":"2017-12-31"},{"$f":"#REF!","v":{"$error":"#REF!"}},{"$f":"#REF!","v":{"$error":"#REF!"}}]
[{"$error":"#REF!"},null,{"$f":"#REF!","v":{"$error":"#REF!"}},{"$f":"#REF!","v":{"$error":"#REF!"}},null,null,{"$f":"#REF!","v":{"$error":"#REF!"}},800001965,"http://www.xbrl.org/scheme/companyName",null,{"$f":"Periodos!$C$4","v":"2017-12-31"},{"$f":"#REF!","v":{"$error":"#REF!"}},{"$f":"#REF!","v":{"$error":"#REF!"}}]
[{"$error":"#REF!"},null,{"$f":"#REF!","v":{"$error":"#REF!"}},{"$f":"#REF!","v":{"$error":"#REF!"}},null,null,{"$f":"#REF!","v":{"$error":"#REF!"}},800001965,"http://www.xbrl.org/scheme/companyName",null,{"$f":"Periodos!$C$4","v":"2017-12-31"},{"$f":"#REF!","v":{"$error":"#REF!"}},{"$f":"#REF!","v":{"$error":"#REF!"}}]
[{"$error":"#REF!"},null,{"$f":"#REF!","v":{"$error":"#REF!"}},{"$f":"#REF!","v":{"$error":"#REF!"}},0,"peso",{"$f":"#REF!","v":{"$error":"#REF!"}},800001965,"http://www.xbrl.org/scheme/companyName",null,{"$f":"Periodos!$C$4","v":"2017-12-31"},{"$f":"#REF!","v":{"$error":"#REF!"}},{"$f":"#REF!","v":{"$error":"#REF!"}}]
["/*",null,"--79--"]
[{"$error":"#REF!"},null,{"$f":"#REF!","v":{"$error":"#REF!"}},{"$f":"#REF!","v":{"$error":"#REF!"}},null,null,{"$f":"#REF!","v":{"$error":"#REF!"}},800001965,"http://www.xbrl.org/scheme/companyName",null,{"$f":"Periodos!$C$4","v":"2017-12-31"},{"$f":"#REF!","v":{"$error":"#REF!"}},{"$f":"#REF!","v":{"$error":"#REF!"}}]
[{"$error":"#REF!"},null,{"$f":"#REF!","v":{"$error":"#REF!"}},{"$f":"#REF!","v":{"$error":"#REF!"}},null,null,{"$f":"#REF!","v":{"$error":"#REF!"}},800001965,"http://www.xbrl.org/scheme/companyName",null,{"$f":"Periodos!$C$4","v":"2017-12-31"},{"$f":"#REF!","v":{"$error":"#REF!"}},{"$f":"#REF!","v":{"$error":"#REF!"}}]
[{"$error":"#REF!"},null,{"$f":"#REF!","v":{"$error":"#REF!"}},{"$f":"#REF!","v":{"$error":"#REF!"}},null,null,{"$f":"#REF!","v":{"$error":"#REF!"}},800001965,"http://www.xbrl.org/scheme/companyName",null,{"$f":"Periodos!$C$4","v":"2017-12-31"},{"$f":"#REF!","v":{"$error":"#REF!"}},{"$f":"#REF!","v":{"$error":"#REF!"}}]
[{"$error":"#REF!"},null,{"$f":"#REF!","v":{"$error":"#REF!"}},{"$f":"#REF!","v":{"$error":"#REF!"}},null,null,{"$f":"#REF!","v":{"$error":"#REF!"}},800001965,"http://www.xbrl.org/scheme/companyName",null,{"$f":"Periodos!$C$4","v":"2017-12-31"},{"$f":"#REF!","v":{"$error":"#REF!"}},{"$f":"#REF!","v":{"$error":"#REF!"}}]
[{"$error":"#REF!"},null,{"$f":"#REF!","v":{"$error":"#REF!"}},{"$f":"#REF!","v":{"$error":"#REF!"}},null,null,{"$f":"#REF!","v":{"$error":"#REF!"}},800001965,"http://www.xbrl.org/scheme/companyName",null,{"$f":"Periodos!$C$4","v":"2017-12-31"},{"$f":"#REF!","v":{"$error":"#REF!"}},{"$f":"#REF!","v":{"$error":"#REF!"}}]
[{"$error":"#REF!"},null,{"$f":"#REF!","v":{"$error":"#REF!"}},{"$f":"#REF!","v":{"$error":"#REF!"}},null,null,{"$f":"#REF!","v":{"$error":"#REF!"}},800001965,"http://www.xbrl.org/scheme/companyName",null,{"$f":"Periodos!$C$4","v":"2017-12-31"},{"$f":"#REF!","v":{"$error":"#REF!"}},{"$f":"#REF!","v":{"$error":"#REF!"}}]
[{"$error":"#REF!"},null,{"$f":"#REF!","v":{"$error":"#REF!"}},{"$f":"#REF!","v":{"$error":"#REF!"}},null,null,{"$f":"#REF!","v":{"$error":"#REF!"}},800001965,"http://www.xbrl.org/scheme/companyName",null,{"$f":"Periodos!$C$4","v":"2017-12-31"},{"$f":"#REF!","v":{"$error":"#REF!"}},{"$f":"#REF!","v":{"$error":"#REF!"}}]
[{"$error":"#REF!"},null,{"$f":"#REF!","v":{"$error":"#REF!"}},{"$f":"#REF!","v":{"$error":"#REF!"}},null,null,{"$f":"#REF!","v":{"$error":"#REF!"}},800001965,"http://www.xbrl.org/scheme/companyName",null,{"$f":"Periodos!$C$4","v":"2017-12-31"},{"$f":"#REF!","v":{"$error":"#REF!"}},{"$f":"#REF!","v":{"$error":"#REF!"}}]
[{"$error":"#REF!"},null,{"$f":"#REF!","v":{"$error":"#REF!"}},{"$f":"#REF!","v":{"$error":"#REF!"}},null,null,{"$f":"#REF!","v":{"$error":"#REF!"}},800001965,"http://www.xbrl.org/scheme/companyName",null,{"$f":"Periodos!$C$4","v":"2017-12-31"},{"$f":"#REF!","v":{"$error":"#REF!"}},{"$f":"#REF!","v":{"$error":"#REF!"}}]
[{"$error":"#REF!"},null,{"$f":"#REF!","v":{"$error":"#REF!"}},{"$f":"#REF!","v":{"$error":"#REF!"}},null,null,{"$f":"#REF!","v":{"$error":"#REF!"}},800001965,"http://www.xbrl.org/scheme/companyName",null,{"$f":"Periodos!$C$4","v":"2017-12-31"},{"$f":"#REF!","v":{"$error":"#REF!"}},{"$f":"#REF!","v":{"$error":"#REF!"}}]
[{"$error":"#REF!"},null,{"$f":"#REF!","v":{"$error":"#REF!"}},{"$f":"#REF!","v":{"$error":"#REF!"}},null,null,{"$f":"#REF!","v":{"$error":"#REF!"}},800001965,"http://www.xbrl.org/scheme/companyName",null,{"$f":"Periodos!$C$4","v":"2017-12-31"},{"$f":"#REF!","v":{"$error":"#REF!"}},{"$f":"#REF!","v":{"$error":"#REF!"}}]
[{"$error":"#REF!"},null,{"$f":"#REF!","v":{"$error":"#REF!"}},{"$f":"#REF!","v":{"$error":"#REF!"}},0,"peso",{"$f":"#REF!","v":{"$error":"#REF!"}},800001965,"http://www.xbrl.org/scheme/companyName",null,{"$f":"Periodos!$C$4","v":"2017-12-31"},{"$f":"#REF!","v":{"$error":"#REF!"}},{"$f":"#REF!","v":{"$error":"#REF!"}}]
["/*",null,"--80--"]
[{"$error":"#REF!"},null,{"$f":"#REF!","v":{"$error":"#REF!"}},{"$f":"#REF!","v":{"$error":"#REF!"}},null,null,{"$f":"#REF!","v":{"$error":"#REF!"}},800001965,"http://www.xbrl.org/scheme/companyName",null,{"$f":"Periodos!$C$4","v":"2017-12-31"},{"$f":"#REF!","v":{"$error":"#REF!"}},{"$f":"#REF!","v":{"$error":"#REF!"}}]
[{"$error":"#REF!"},null,{"$f":"#REF!","v":{"$error":"#REF!"}},{"$f":"#REF!","v":{"$error":"#REF!"}},null,null,{"$f":"#REF!","v":{"$error":"#REF!"}},800001965,"http://www.xbrl.org/scheme/companyName",null,{"$f":"Periodos!$C$4","v":"2017-12-31"},{"$f":"#REF!","v":{"$error":"#REF!"}},{"$f":"#REF!","v":{"$error":"#REF!"}}]
[{"$error":"#REF!"},null,{"$f":"#REF!","v":{"$error":"#REF!"}},{"$f":"#REF!","v":{"$error":"#REF!"}},null,null,{"$f":"#REF!","v":{"$error":"#REF!"}},800001965,"http://www.xbrl.org/scheme/companyName",null,{"$f":"Periodos!$C$4","v":"2017-12-31"},{"$f":"#REF!","v":{"$error":"#REF!"}},{"$f":"#REF!","v":{"$error":"#REF!"}}]
[{"$error":"#REF!"},null,{"$f":"#REF!","v":{"$error":"#REF!"}},{"$f":"#REF!","v":{"$error":"#REF!"}},null,null,{"$f":"#REF!","v":{"$error":"#REF!"}},800001965,"http://www.xbrl.org/scheme/companyName",null,{"$f":"Periodos!$C$4","v":"2017-12-31"},{"$f":"#REF!","v":{"$error":"#REF!"}},{"$f":"#REF!","v":{"$error":"#REF!"}}]
[{"$error":"#REF!"},null,{"$f":"#REF!","v":{"$error":"#REF!"}},{"$f":"#REF!","v":{"$error":"#REF!"}},null,null,{"$f":"#REF!","v":{"$error":"#REF!"}},800001965,"http://www.xbrl.org/scheme/companyName",null,{"$f":"Periodos!$C$4","v":"2017-12-31"},{"$f":"#REF!","v":{"$error":"#REF!"}},{"$f":"#REF!","v":{"$error":"#REF!"}}]
[{"$error":"#REF!"},null,{"$f":"#REF!","v":{"$error":"#REF!"}},{"$f":"#REF!","v":{"$error":"#REF!"}},null,null,{"$f":"#REF!","v":{"$error":"#REF!"}},800001965,"http://www.xbrl.org/scheme/companyName",null,{"$f":"Periodos!$C$4","v":"2017-12-31"},{"$f":"#REF!","v":{"$error":"#REF!"}},{"$f":"#REF!","v":{"$error":"#REF!"}}]
[{"$error":"#REF!"},null,{"$f":"#REF!","v":{"$error":"#REF!"}},{"$f":"#REF!","v":{"$error":"#REF!"}},null,null,{"$f":"#REF!","v":{"$error":"#REF!"}},800001965,"http://www.xbrl.org/scheme/companyName",null,{"$f":"Periodos!$C$4","v":"2017-12-31"},{"$f":"#REF!","v":{"$error":"#REF!"}},{"$f":"#REF!","v":{"$error":"#REF!"}}]
[{"$error":"#REF!"},null,{"$f":"#REF!","v":{"$error":"#REF!"}},{"$f":"#REF!","v":{"$error":"#REF!"}},null,null,{"$f":"#REF!","v":{"$error":"#REF!"}},800001965,"http://www.xbrl.org/scheme/companyName",null,{"$f":"Periodos!$C$4","v":"2017-12-31"},{"$f":"#REF!","v":{"$error":"#REF!"}},{"$f":"#REF!","v":{"$error":"#REF!"}}]
[{"$error":"#REF!"},null,{"$f":"#REF!","v":{"$error":"#REF!"}},{"$f":"#REF!","v":{"$error":"#REF!"}},null,null,{"$f":"#REF!","v":{"$error":"#REF!"}},800001965,"http://www.xbrl.org/scheme/companyName",null,{"$f":"Periodos!$C$4","v":"2017-12-31"},{"$f":"#REF!","v":{"$error":"#REF!"}},{"$f":"#REF!","v":{"$error":"#REF!"}}]
[{"$error":"#REF!"},null,{"$f":"#REF!","v":{"$error":"#REF!"}},{"$f":"#REF!","v":{"$error":"#REF!"}},null,null,{"$f":"#REF!","v":{"$error":"#REF!"}},800001965,"http://www.xbrl.org/scheme/companyName",null,{"$f":"Periodos!$C$4","v":"2017-12-31"},{"$f":"#REF!","v":{"$error":"#REF!"}},{"$f":"#REF!","v":{"$error":"#REF!"}}]
[{"$error":"#REF!"},null,{"$f":"#REF!","v":{"$error":"#REF!"}},{"$f":"#REF!","v":{"$error":"#REF!"}},null,null,{"$f":"#REF!","v":{"$error":"#REF!"}},800001965,"http://www.xbrl.org/scheme/companyName",null,{"$f":"Periodos!$C$4","v":"2017-12-31"},{"$f":"#REF!","v":{"$error":"#REF!"}},{"$f":"#REF!","v":{"$error":"#REF!"}}]
[{"$error":"#REF!"},null,{"$f":"#REF!","v":{"$error":"#REF!"}},{"$f":"#REF!","v":{"$error":"#REF!"}},0,"peso",{"$f":"#REF!","v":{"$error":"#REF!"}},800001965,"http://www.xbrl.org/scheme/companyName",null,{"$f":"Periodos!$C$4","v":"2017-12-31"},{"$f":"#REF!","v":{"$error":"#REF!"}},{"$f":"#REF!","v":{"$error":"#REF!"}}]
["/*",null,"--81--"]
[{"$error":"#REF!"},null,{"$f":"#REF!","v":{"$error":"#REF!"}},{"$f":"#REF!","v":{"$error":"#REF!"}},null,null,{"$f":"#REF!","v":{"$error":"#REF!"}},800001965,"http://www.xbrl.org/scheme/companyName",null,{"$f":"Periodos!$C$4","v":"2017-12-31"},{"$f":"#REF!","v":{"$error":"#REF!"}},{"$f":"#REF!","v":{"$error":"#REF!"}}]
[{"$error":"#REF!"},null,{"$f":"#REF!","v":{"$error":"#REF!"}},{"$f":"#REF!","v":{"$error":"#REF!"}},null,null,{"$f":"#REF!","v":{"$error":"#REF!"}},800001965,"http://www.xbrl.org/scheme/companyName",null,{"$f":"Periodos!$C$4","v":"2017-12-31"},{"$f":"#REF!","v":{"$error":"#REF!"}},{"$f":"#REF!","v":{"$error":"#REF!"}}]
[{"$error":"#REF!"},null,{"$f":"#REF!","v":{"$error":"#REF!"}},{"$f":"#REF!","v":{"$error":"#REF!"}},null,null,{"$f":"#REF!","v":{"$error":"#REF!"}},800001965,"http://www.xbrl.org/scheme/companyName",null,{"$f":"Periodos!$C$4","v":"2017-12-31"},{"$f":"#REF!","v":{"$error":"#REF!"}},{"$f":"#REF!","v":{"$error":"#REF!"}}]
[{"$error":"#REF!"},null,{"$f":"#REF!","v":{"$error":"#REF!"}},{"$f":"#REF!","v":{"$error":"#REF!"}},null,null,{"$f":"#REF!","v":{"$error":"#REF!"}},800001965,"http://www.xbrl.org/scheme/companyName",null,{"$f":"Periodos!$C$4","v":"2017-12-31"},{"$f":"#REF!","v":{"$error":"#REF!"}},{"$f":"#REF!","v":{"$error":"#REF!"}}]
[{"$error":"#REF!"},null,{"$f":"#REF!","v":{"$error":"#REF!"}},{"$f":"#REF!","v":{"$error":"#REF!"}},null,null,{"$f":"#REF!","v":{"$error":"#REF!"}},800001965,"http://www.xbrl.org/scheme/companyName",null,{"$f":"Periodos!$C$4","v":"2017-12-31"},{"$f":"#REF!","v":{"$error":"#REF!"}},{"$f":"#REF!","v":{"$error":"#REF!"}}]
[{"$error":"#REF!"},null,{"$f":"#REF!","v":{"$error":"#REF!"}},{"$f":"#REF!","v":{"$error":"#REF!"}},null,null,{"$f":"#REF!","v":{"$error":"#REF!"}},800001965,"http://www.xbrl.org/scheme/companyName",null,{"$f":"Periodos!$C$4","v":"2017-12-31"},{"$f":"#REF!","v":{"$error":"#REF!"}},{"$f":"#REF!","v":{"$error":"#REF!"}}]
[{"$error":"#REF!"},null,{"$f":"#REF!","v":{"$error":"#REF!"}},{"$f":"#REF!","v":{"$error":"#REF!"}},null,null,{"$f":"#REF!","v":{"$error":"#REF!"}},800001965,"http://www.xbrl.org/scheme/companyName",null,{"$f":"Periodos!$C$4","v":"2017-12-31"},{"$f":"#REF!","v":{"$error":"#REF!"}},{"$f":"#REF!","v":{"$error":"#REF!"}}]
[{"$error":"#REF!"},null,{"$f":"#REF!","v":{"$error":"#REF!"}},{"$f":"#REF!","v":{"$error":"#REF!"}},null,null,{"$f":"#REF!","v":{"$error":"#REF!"}},800001965,"http://www.xbrl.org/scheme/companyName",null,{"$f":"Periodos!$C$4","v":"2017-12-31"},{"$f":"#REF!","v":{"$error":"#REF!"}},{"$f":"#REF!","v":{"$error":"#REF!"}}]
[{"$error":"#REF!"},null,{"$f":"#REF!","v":{"$error":"#REF!"}},{"$f":"#REF!","v":{"$error":"#REF!"}},null,null,{"$f":"#REF!","v":{"$error":"#REF!"}},800001965,"http://www.xbrl.org/scheme/companyName",null,{"$f":"Periodos!$C$4","v":"2017-12-31"},{"$f":"#REF!","v":{"$error":"#REF!"}},{"$f":"#REF!","v":{"$error":"#REF!"}}]
[{"$error":"#REF!"},null,{"$f":"#REF!","v":{"$error":"#REF!"}},{"$f":"#REF!","v":{"$error":"#REF!"}},null,null,{"$f":"#REF!","v":{"$error":"#REF!"}},800001965,"http://www.xbrl.org/scheme/companyName",null,{"$f":"Periodos!$C$4","v":"2017-12-31"},{"$f":"#REF!","v":{"$error":"#REF!"}},{"$f":"#REF!","v":{"$error":"#REF!"}}]
[{"$error":"#REF!"},null,{"$f":"#REF!","v":{"$error":"#REF!"}},{"$f":"#REF!","v":{"$error":"#REF!"}},null,null,{"$f":"#REF!","v":{"$error":"#REF!"}},800001965,"http://www.xbrl.org/scheme/companyName",null,{"$f":"Periodos!$C$4","v":"2017-12-31"},{"$f":"#REF!","v":{"$error":"#REF!"}},{"$f":"#REF!","v":{"$error":"#REF!"}}]
[{"$f":"IF(G2721=\"\",\"/*\",\"\")","v":{"$error":"#REF!"}},null,{"$f":"#REF!","v":{"$error":"#REF!"}},{"$f":"#REF!","v":{"$error":"#REF!"}},0,"peso",{"$f":"#REF!","v":{"$error":"#REF!"}},800001965,"http://www.xbrl.org/scheme/companyName",null,{"$f":"Periodos!$C$4","v":"2017-12-31"},{"$f":"#REF!","v":{"$error":"#REF!"}},{"$f":"#REF!","v":{"$error":"#REF!"}}]
["/*",null,"--82--"]
[{"$error":"#REF!"},null,{"$f":"#REF!","v":{"$error":"#REF!"}},{"$f":"#REF!","v":{"$error":"#REF!"}},null,null,{"$f":"#REF!","v":{"$error":"#REF!"}},800001965,"http://www.xbrl.org/scheme/companyName",null,{"$f":"Periodos!$C$4","v":"2017-12-31"},{"$f":"#REF!","v":{"$error":"#REF!"}},{"$f":"#REF!","v":{"$error":"#REF!"}}]
[{"$error":"#REF!"},null,{"$f":"#REF!","v":{"$error":"#REF!"}},{"$f":"#REF!","v":{"$error":"#REF!"}},null,null,{"$f":"#REF!","v":{"$error":"#REF!"}},800001965,"http://www.xbrl.org/scheme/companyName",null,{"$f":"Periodos!$C$4","v":"2017-12-31"},{"$f":"#REF!","v":{"$error":"#REF!"}},{"$f":"#REF!","v":{"$error":"#REF!"}}]
[{"$error":"#REF!"},null,{"$f":"#REF!","v":{"$error":"#REF!"}},{"$f":"#REF!","v":{"$error":"#REF!"}},null,null,{"$f":"#REF!","v":{"$error":"#REF!"}},800001965,"http://www.xbrl.org/scheme/companyName",null,{"$f":"Periodos!$C$4","v":"2017-12-31"},{"$f":"#REF!","v":{"$error":"#REF!"}},{"$f":"#REF!","v":{"$error":"#REF!"}}]
[{"$error":"#REF!"},null,{"$f":"#REF!","v":{"$error":"#REF!"}},{"$f":"#REF!","v":{"$error":"#REF!"}},null,null,{"$f":"#REF!","v":{"$error":"#REF!"}},800001965,"http://www.xbrl.org/scheme/companyName",null,{"$f":"Periodos!$C$4","v":"2017-12-31"},{"$f":"#REF!","v":{"$error":"#REF!"}},{"$f":"#REF!","v":{"$error":"#REF!"}}]
[{"$error":"#REF!"},null,{"$f":"#REF!","v":{"$error":"#REF!"}},{"$f":"#REF!","v":{"$error":"#REF!"}},null,null,{"$f":"#REF!","v":{"$error":"#REF!"}},800001965,"http://www.xbrl.org/scheme/companyName",null,{"$f":"Periodos!$C$4","v":"2017-12-31"},{"$f":"#REF!","v":{"$error":"#REF!"}},{"$f":"#REF!","v":{"$error":"#REF!"}}]
[{"$error":"#REF!"},null,{"$f":"#REF!","v":{"$error":"#REF!"}},{"$f":"#REF!","v":{"$error":"#REF!"}},null,null,{"$f":"#REF!","v":{"$error":"#REF!"}},800001965,"http://www.xbrl.org/scheme/companyName",null,{"$f":"Periodos!$C$4","v":"2017-12-31"},{"$f":"#REF!","v":{"$error":"#REF!"}},{"$f":"#REF!","v":{"$error":"#REF!"}}]
[{"$error":"#REF!"},null,{"$f":"#REF!","v":{"$error":"#REF!"}},{"$f":"#REF!","v":{"$error":"#REF!"}},null,null,{"$f":"#REF!","v":{"$error":"#REF!"}},800001965,"http://www.xbrl.org/scheme/companyName",null,{"$f":"Periodos!$C$4","v":"2017-12-31"},{"$f":"#REF!","v":{"$error":"#REF!"}},{"$f":"#REF!","v":{"$error":"#REF!"}}]
[{"$error":"#REF!"},null,{"$f":"#REF!","v":{"$error":"#REF!"}},{"$f":"#REF!","v":{"$error":"#REF!"}},null,null,{"$f":"#REF!","v":{"$error":"#REF!"}},800001965,"http://www.xbrl.org/scheme/companyName",null,{"$f":"Periodos!$C$4","v":"2017-12-31"},{"$f":"#REF!","v":{"$error":"#REF!"}},{"$f":"#REF!","v":{"$error":"#REF!"}}]
[{"$error":"#REF!"},null,{"$f":"#REF!","v":{"$error":"#REF!"}},{"$f":"#REF!","v":{"$error":"#REF!"}},null,null,{"$f":"#REF!","v":{"$error":"#REF!"}},800001965,"http://www.xbrl.org/scheme/companyName",null,{"$f":"Periodos!$C$4","v":"2017-12-31"},{"$f":"#REF!","v":{"$error":"#REF!"}},{"$f":"#REF!","v":{"$error":"#REF!"}}]
[{"$error":"#REF!"},null,{"$f":"#REF!","v":{"$error":"#REF!"}},{"$f":"#REF!","v":{"$error":"#REF!"}},null,null,{"$f":"#REF!","v":{"$error":"#REF!"}},800001965,"http://www.xbrl.org/scheme/companyName",null,{"$f":"Periodos!$C$4","v":"2017-12-31"},{"$f":"#REF!","v":{"$error":"#REF!"}},{"$f":"#REF!","v":{"$error":"#REF!"}}]
[{"$error":"#REF!"},null,{"$f":"#REF!","v":{"$error":"#REF!"}},{"$f":"#REF!","v":{"$error":"#REF!"}},null,null,{"$f":"#REF!","v":{"$error":"#REF!"}},800001965,"http://www.xbrl.org/scheme/companyName",null,{"$f":"Periodos!$C$4","v":"2017-12-31"},{"$f":"#REF!","v":{"$error":"#REF!"}},{"$f":"#REF!","v":{"$error":"#REF!"}}]
[{"$error":"#REF!"},null,{"$f":"#REF!","v":{"$error":"#REF!"}},{"$f":"#REF!","v":{"$error":"#REF!"}},0,"peso",{"$f":"#REF!","v":{"$error":"#REF!"}},800001965,"http://www.xbrl.org/scheme/companyName",null,{"$f":"Periodos!$C$4","v":"2017-12-31"},{"$f":"#REF!","v":{"$error":"#REF!"}},{"$f":"#REF!","v":{"$error":"#REF!"}}]
["/*",null,"--83--"]
[{"$error":"#REF!"},null,{"$f":"#REF!","v":{"$error":"#REF!"}},{"$f":"#REF!","v":{"$error":"#REF!"}},null,null,{"$f":"#REF!","v":{"$error":"#REF!"}},800001965,"http://www.xbrl.org/scheme/companyName",null,{"$f":"Periodos!$C$4","v":"2017-12-31"},{"$f":"#REF!","v":{"$error":"#REF!"}},{"$f":"#REF!","v":{"$error":"#REF!"}}]
[{"$error":"#REF!"},null,{"$f":"#REF!","v":{"$error":"#REF!"}},{"$f":"#REF!","v":{"$error":"#REF!"}},null,null,{"$f":"#REF!","v":{"$error":"#REF!"}},800001965,"http://www.xbrl.org/scheme/companyName",null,{"$f":"Periodos!$C$4","v":"2017-12-31"},{"$f":"#REF!","v":{"$error":"#REF!"}},{"$f":"#REF!","v":{"$error":"#REF!"}}]
[{"$error":"#REF!"},null,{"$f":"#REF!","v":{"$error":"#REF!"}},{"$f":"#REF!","v":{"$error":"#REF!"}},null,null,{"$f":"#REF!","v":{"$error":"#REF!"}},800001965,"http://www.xbrl.org/scheme/companyName",null,{"$f":"Periodos!$C$4","v":"2017-12-31"},{"$f":"#REF!","v":{"$error":"#REF!"}},{"$f":"#REF!","v":{"$error":"#REF!"}}]
[{"$error":"#REF!"},null,{"$f":"#REF!","v":{"$error":"#REF!"}},{"$f":"#REF!","v":{"$error":"#REF!"}},null,null,{"$f":"#REF!","v":{"$error":"#REF!"}},800001965,"http://www.xbrl.org/scheme/companyName",null,{"$f":"Periodos!$C$4","v":"2017-12-31"},{"$f":"#REF!","v":{"$error":"#REF!"}},{"$f":"#REF!","v":{"$error":"#REF!"}}]
[{"$error":"#REF!"},null,{"$f":"#REF!","v":{"$error":"#REF!"}},{"$f":"#REF!","v":{"$error":"#REF!"}},null,null,{"$f":"#REF!","v":{"$error":"#REF!"}},800001965,"http://www.xbrl.org/scheme/companyName",null,{"$f":"Periodos!$C$4","v":"2017-12-31"},{"$f":"#REF!","v":{"$error":"#REF!"}},{"$f":"#REF!","v":{"$error":"#REF!"}}]
[{"$error":"#REF!"},null,{"$f":"#REF!","v":{"$error":"#REF!"}},{"$f":"#REF!","v":{"$error":"#REF!"}},null,null,{"$f":"#REF!","v":{"$error":"#REF!"}},800001965,"http://www.xbrl.org/scheme/companyName",null,{"$f":"Periodos!$C$4","v":"2017-12-31"},{"$f":"#REF!","v":{"$error":"#REF!"}},{"$f":"#REF!","v":{"$error":"#REF!"}}]
[{"$error":"#REF!"},null,{"$f":"#REF!","v":{"$error":"#REF!"}},{"$f":"#REF!","v":{"$error":"#REF!"}},null,null,{"$f":"#REF!","v":{"$error":"#REF!"}},800001965,"http://www.xbrl.org/scheme/companyName",null,{"$f":"Periodos!$C$4","v":"2017-12-31"},{"$f":"#REF!","v":{"$error":"#REF!"}},{"$f":"#REF!","v":{"$error":"#REF!"}}]
[{"$error":"#REF!"},null,{"$f":"#REF!","v":{"$error":"#REF!"}},{"$f":"#REF!","v":{"$error":"#REF!"}},null,null,{"$f":"#REF!","v":{"$error":"#REF!"}},800001965,"http://www.xbrl.org/scheme/companyName",null,{"$f":"Periodos!$C$4","v":"2017-12-31"},{"$f":"#REF!","v":{"$error":"#REF!"}},{"$f":"#REF!","v":{"$error":"#REF!"}}]
[{"$error":"#REF!"},null,{"$f":"#REF!","v":{"$error":"#REF!"}},{"$f":"#REF!","v":{"$error":"#REF!"}},null,null,{"$f":"#REF!","v":{"$error":"#REF!"}},800001965,"http://www.xbrl.org/scheme/companyName",null,{"$f":"Periodos!$C$4","v":"2017-12-31"},{"$f":"#REF!","v":{"$error":"#REF!"}},{"$f":"#REF!","v":{"$error":"#REF!"}}]
[{"$error":"#REF!"},null,{"$f":"#REF!","v":{"$error":"#REF!"}},{"$f":"#REF!","v":{"$error":"#REF!"}},null,null,{"$f":"#REF!","v":{"$error":"#REF!"}},800001965,"http://www.xbrl.org/scheme/companyName",null,{"$f":"Periodos!$C$4","v":"2017-12-31"},{"$f":"#REF!","v":{"$error":"#REF!"}},{"$f":"#REF!","v":{"$error":"#REF!"}}]
[{"$error":"#REF!"},null,{"$f":"#REF!","v":{"$error":"#REF!"}},{"$f":"#REF!","v":{"$error":"#REF!"}},null,null,{"$f":"#REF!","v":{"$error":"#REF!"}},800001965,"http://www.xbrl.org/scheme/companyName",null,{"$f":"Periodos!$C$4","v":"2017-12-31"},{"$f":"#REF!","v":{"$error":"#REF!"}},{"$f":"#REF!","v":{"$error":"#REF!"}}]
[{"$error":"#REF!"},null,{"$f":"#REF!","v":{"$error":"#REF!"}},{"$f":"#REF!","v":{"$error":"#REF!"}},0,"peso",{"$f":"#REF!","v":{"$error":"#REF!"}},800001965,"http://www.xbrl.org/scheme/companyName",null,{"$f":"Periodos!$C$4","v":"2017-12-31"},{"$f":"#REF!","v":{"$error":"#REF!"}},{"$f":"#REF!","v":{"$error":"#REF!"}}]
["/*",null,"--84--"]
[{"$error":"#REF!"},null,{"$f":"#REF!","v":{"$error":"#REF!"}},{"$f":"#REF!","v":{"$error":"#REF!"}},null,null,{"$f":"#REF!","v":{"$error":"#REF!"}},800001965,"http://www.xbrl.org/scheme/companyName",null,{"$f":"Periodos!$C$4","v":"2017-12-31"},{"$f":"#REF!","v":{"$error":"#REF!"}},{"$f":"#REF!","v":{"$error":"#REF!"}}]
[{"$error":"#REF!"},null,{"$f":"#REF!","v":{"$error":"#REF!"}},{"$f":"#REF!","v":{"$error":"#REF!"}},null,null,{"$f":"#REF!","v":{"$error":"#REF!"}},800001965,"http://www.xbrl.org/scheme/companyName",null,{"$f":"Periodos!$C$4","v":"2017-12-31"},{"$f":"#REF!","v":{"$error":"#REF!"}},{"$f":"#REF!","v":{"$error":"#REF!"}}]
[{"$error":"#REF!"},null,{"$f":"#REF!","v":{"$error":"#REF!"}},{"$f":"#REF!","v":{"$error":"#REF!"}},null,null,{"$f":"#REF!","v":{"$error":"#REF!"}},800001965,"http://www.xbrl.org/scheme/companyName",null,{"$f":"Periodos!$C$4","v":"2017-12-31"},{"$f":"#REF!","v":{"$error":"#REF!"}},{"$f":"#REF!","v":{"$error":"#REF!"}}]
[{"$error":"#REF!"},null,{"$f":"#REF!","v":{"$error":"#REF!"}},{"$f":"#REF!","v":{"$error":"#REF!"}},null,null,{"$f":"#REF!","v":{"$error":"#REF!"}},800001965,"http://www.xbrl.org/scheme/companyName",null,{"$f":"Periodos!$C$4","v":"2017-12-31"},{"$f":"#REF!","v":{"$error":"#REF!"}},{"$f":"#REF!","v":{"$error":"#REF!"}}]
[{"$error":"#REF!"},null,{"$f":"#REF!","v":{"$error":"#REF!"}},{"$f":"#REF!","v":{"$error":"#REF!"}},null,null,{"$f":"#REF!","v":{"$error":"#REF!"}},800001965,"http://www.xbrl.org/scheme/companyName",null,{"$f":"Periodos!$C$4","v":"2017-12-31"},{"$f":"#REF!","v":{"$error":"#REF!"}},{"$f":"#REF!","v":{"$error":"#REF!"}}]
[{"$error":"#REF!"},null,{"$f":"#REF!","v":{"$error":"#REF!"}},{"$f":"#REF!","v":{"$error":"#REF!"}},null,null,{"$f":"#REF!","v":{"$error":"#REF!"}},800001965,"http://www.xbrl.org/scheme/companyName",null,{"$f":"Periodos!$C$4","v":"2017-12-31"},{"$f":"#REF!","v":{"$error":"#REF!"}},{"$f":"#REF!","v":{"$error":"#REF!"}}]
[{"$error":"#REF!"},null,{"$f":"#REF!","v":{"$error":"#REF!"}},{"$f":"#REF!","v":{"$error":"#REF!"}},null,null,{"$f":"#REF!","v":{"$error":"#REF!"}},800001965,"http://www.xbrl.org/scheme/companyName",null,{"$f":"Periodos!$C$4","v":"2017-12-31"},{"$f":"#REF!","v":{"$error":"#REF!"}},{"$f":"#REF!","v":{"$error":"#REF!"}}]
[{"$error":"#REF!"},null,{"$f":"#REF!","v":{"$error":"#REF!"}},{"$f":"#REF!","v":{"$error":"#REF!"}},null,null,{"$f":"#REF!","v":{"$error":"#REF!"}},800001965,"http://www.xbrl.org/scheme/companyName",null,{"$f":"Periodos!$C$4","v":"2017-12-31"},{"$f":"#REF!","v":{"$error":"#REF!"}},{"$f":"#REF!","v":{"$error":"#REF!"}}]
[{"$error":"#REF!"},null,{"$f":"#REF!","v":{"$error":"#REF!"}},{"$f":"#REF!","v":{"$error":"#REF!"}},null,null,{"$f":"#REF!","v":{"$error":"#REF!"}},800001965,"http://www.xbrl.org/scheme/companyName",null,{"$f":"Periodos!$C$4","v":"2017-12-31"},{"$f":"#REF!","v":{"$error":"#REF!"}},{"$f":"#REF!","v":{"$error":"#REF!"}}]
[{"$error":"#REF!"},null,{"$f":"#REF!","v":{"$error":"#REF!"}},{"$f":"#REF!","v":{"$error":"#REF!"}},null,null,{"$f":"#REF!","v":{"$error":"#REF!"}},800001965,"http://www.xbrl.org/scheme/companyName",null,{"$f":"Periodos!$C$4","v":"2017-12-31"},{"$f":"#REF!","v":{"$error":"#REF!"}},{"$f":"#REF!","v":{"$error":"#REF!"}}]
[{"$error":"#REF!"},null,{"$f":"#REF!","v":{"$error":"#REF!"}},{"$f":"#REF!","v":{"$error":"#REF!"}},null,null,{"$f":"#REF!","v":{"$error":"#REF!"}},800001965,"http://www.xbrl.org/scheme/companyName",null,{"$f":"Periodos!$C$4","v":"2017-12-31"},{"$f":"#REF!","v":{"$error":"#REF!"}},{"$f":"#REF!","v":{"$error":"#REF!"}}]
[{"$error":"#REF!"},null,{"$f":"#REF!","v":{"$error":"#REF!"}},{"$f":"#REF!","v":{"$error":"#REF!"}},0,"peso",{"$f":"#REF!","v":{"$error":"#REF!"}},800001965,"http://www.xbrl.org/scheme/companyName",null,{"$f":"Periodos!$C$4","v":"2017-12-31"},{"$f":"#REF!","v":{"$error":"#REF!"}},{"$f":"#REF!","v":{"$error":"#REF!"}}]
["/*",null,"--85--"]
[{"$error":"#REF!"},null,{"$f":"#REF!","v":{"$error":"#REF!"}},{"$f":"#REF!","v":{"$error":"#REF!"}},null,null,{"$f":"#REF!","v":{"$error":"#REF!"}},800001965,"http://www.xbrl.org/scheme/companyName",null,{"$f":"Periodos!$C$4","v":"2017-12-31"},{"$f":"#REF!","v":{"$error":"#REF!"}},{"$f":"#REF!","v":{"$error":"#REF!"}}]
[{"$error":"#REF!"},null,{"$f":"#REF!","v":{"$error":"#REF!"}},{"$f":"#REF!","v":{"$error":"#REF!"}},null,null,{"$f":"#REF!","v":{"$error":"#REF!"}},800001965,"http://www.xbrl.org/scheme/companyName",null,{"$f":"Periodos!$C$4","v":"2017-12-31"},{"$f":"#REF!","v":{"$error":"#REF!"}},{"$f":"#REF!","v":{"$error":"#REF!"}}]
[{"$error":"#REF!"},null,{"$f":"#REF!","v":{"$error":"#REF!"}},{"$f":"#REF!","v":{"$error":"#REF!"}},null,null,{"$f":"#REF!","v":{"$error":"#REF!"}},800001965,"http://www.xbrl.org/scheme/companyName",null,{"$f":"Periodos!$C$4","v":"2017-12-31"},{"$f":"#REF!","v":{"$error":"#REF!"}},{"$f":"#REF!","v":{"$error":"#REF!"}}]
[{"$error":"#REF!"},null,{"$f":"#REF!","v":{"$error":"#REF!"}},{"$f":"#REF!","v":{"$error":"#REF!"}},null,null,{"$f":"#REF!","v":{"$error":"#REF!"}},800001965,"http://www.xbrl.org/scheme/companyName",null,{"$f":"Periodos!$C$4","v":"2017-12-31"},{"$f":"#REF!","v":{"$error":"#REF!"}},{"$f":"#REF!","v":{"$error":"#REF!"}}]
[{"$error":"#REF!"},null,{"$f":"#REF!","v":{"$error":"#REF!"}},{"$f":"#REF!","v":{"$error":"#REF!"}},null,null,{"$f":"#REF!","v":{"$error":"#REF!"}},800001965,"http://www.xbrl.org/scheme/companyName",null,{"$f":"Periodos!$C$4","v":"2017-12-31"},{"$f":"#REF!","v":{"$error":"#REF!"}},{"$f":"#REF!","v":{"$error":"#REF!"}}]
[{"$error":"#REF!"},null,{"$f":"#REF!","v":{"$error":"#REF!"}},{"$f":"#REF!","v":{"$error":"#REF!"}},null,null,{"$f":"#REF!","v":{"$error":"#REF!"}},800001965,"http://www.xbrl.org/scheme/companyName",null,{"$f":"Periodos!$C$4","v":"2017-12-31"},{"$f":"#REF!","v":{"$error":"#REF!"}},{"$f":"#REF!","v":{"$error":"#REF!"}}]
[{"$error":"#REF!"},null,{"$f":"#REF!","v":{"$error":"#REF!"}},{"$f":"#REF!","v":{"$error":"#REF!"}},null,null,{"$f":"#REF!","v":{"$error":"#REF!"}},800001965,"http://www.xbrl.org/scheme/companyName",null,{"$f":"Periodos!$C$4","v":"2017-12-31"},{"$f":"#REF!","v":{"$error":"#REF!"}},{"$f":"#REF!","v":{"$error":"#REF!"}}]
[{"$error":"#REF!"},null,{"$f":"#REF!","v":{"$error":"#REF!"}},{"$f":"#REF!","v":{"$error":"#REF!"}},null,null,{"$f":"#REF!","v":{"$error":"#REF!"}},800001965,"http://www.xbrl.org/scheme/companyName",null,{"$f":"Periodos!$C$4","v":"2017-12-31"},{"$f":"#REF!","v":{"$error":"#REF!"}},{"$f":"#REF!","v":{"$error":"#REF!"}}]
[{"$error":"#REF!"},null,{"$f":"#REF!","v":{"$error":"#REF!"}},{"$f":"#REF!","v":{"$error":"#REF!"}},null,null,{"$f":"#REF!","v":{"$error":"#REF!"}},800001965,"http://www.xbrl.org/scheme/companyName",null,{"$f":"Periodos!$C$4","v":"2017-12-31"},{"$f":"#REF!","v":{"$error":"#REF!"}},{"$f":"#REF!","v":{"$error":"#REF!"}}]
[{"$error":"#REF!"},null,{"$f":"#REF!","v":{"$error":"#REF!"}},{"$f":"#REF!","v":{"$error":"#REF!"}},null,null,{"$f":"#REF!","v":{"$error":"#REF!"}},800001965,"http://www.xbrl.org/scheme/companyName",null,{"$f":"Periodos!$C$4","v":"2017-12-31"},{"$f":"#REF!","v":{"$error":"#REF!"}},{"$f":"#REF!","v":{"$error":"#REF!"}}]
[{"$error":"#REF!"},null,{"$f":"#REF!","v":{"$error":"#REF!"}},{"$f":"#REF!","v":{"$error":"#REF!"}},null,null,{"$f":"#REF!","v":{"$error":"#REF!"}},800001965,"http://www.xbrl.org/scheme/companyName",null,{"$f":"Periodos!$C$4","v":"2017-12-31"},{"$f":"#REF!","v":{"$error":"#REF!"}},{"$f":"#REF!","v":{"$error":"#REF!"}}]
[{"$error":"#REF!"},null,{"$f":"#REF!","v":{"$error":"#REF!"}},{"$f":"#REF!","v":{"$error":"#REF!"}},0,"peso",{"$f":"#REF!","v":{"$error":"#REF!"}},800001965,"http://www.xbrl.org/scheme/companyName",null,{"$f":"Periodos!$C$4","v":"2017-12-31"},{"$f":"#REF!","v":{"$error":"#REF!"}},{"$f":"#REF!","v":{"$error":"#REF!"}}]
["/*",null,"--86--"]
[{"$error":"#REF!"},null,{"$f":"#REF!","v":{"$error":"#REF!"}},{"$f":"#REF!","v":{"$error":"#REF!"}},null,null,{"$f":"#REF!","v":{"$error":"#REF!"}},800001965,"http://www.xbrl.org/scheme/companyName",null,{"$f":"Periodos!$C$4","v":"2017-12-31"},{"$f":"#REF!","v":{"$error":"#REF!"}},{"$f":"#REF!","v":{"$error":"#REF!"}}]
[{"$error":"#REF!"},null,{"$f":"#REF!","v":{"$error":"#REF!"}},{"$f":"#REF!","v":{"$error":"#REF!"}},null,null,{"$f":"#REF!","v":{"$error":"#REF!"}},800001965,"http://www.xbrl.org/scheme/companyName",null,{"$f":"Periodos!$C$4","v":"2017-12-31"},{"$f":"#REF!","v":{"$error":"#REF!"}},{"$f":"#REF!","v":{"$error":"#REF!"}}]
[{"$error":"#REF!"},null,{"$f":"#REF!","v":{"$error":"#REF!"}},{"$f":"#REF!","v":{"$error":"#REF!"}},null,null,{"$f":"#REF!","v":{"$error":"#REF!"}},800001965,"http://www.xbrl.org/scheme/companyName",null,{"$f":"Periodos!$C$4","v":"2017-12-31"},{"$f":"#REF!","v":{"$error":"#REF!"}},{"$f":"#REF!","v":{"$error":"#REF!"}}]
[{"$error":"#REF!"},null,{"$f":"#REF!","v":{"$error":"#REF!"}},{"$f":"#REF!","v":{"$error":"#REF!"}},null,null,{"$f":"#REF!","v":{"$error":"#REF!"}},800001965,"http://www.xbrl.org/scheme/companyName",null,{"$f":"Periodos!$C$4","v":"2017-12-31"},{"$f":"#REF!","v":{"$error":"#REF!"}},{"$f":"#REF!","v":{"$error":"#REF!"}}]
[{"$error":"#REF!"},null,{"$f":"#REF!","v":{"$error":"#REF!"}},{"$f":"#REF!","v":{"$error":"#REF!"}},null,null,{"$f":"#REF!","v":{"$error":"#REF!"}},800001965,"http://www.xbrl.org/scheme/companyName",null,{"$f":"Periodos!$C$4","v":"2017-12-31"},{"$f":"#REF!","v":{"$error":"#REF!"}},{"$f":"#REF!","v":{"$error":"#REF!"}}]
[{"$error":"#REF!"},null,{"$f":"#REF!","v":{"$error":"#REF!"}},{"$f":"#REF!","v":{"$error":"#REF!"}},null,null,{"$f":"#REF!","v":{"$error":"#REF!"}},800001965,"http://www.xbrl.org/scheme/companyName",null,{"$f":"Periodos!$C$4","v":"2017-12-31"},{"$f":"#REF!","v":{"$error":"#REF!"}},{"$f":"#REF!","v":{"$error":"#REF!"}}]
[{"$error":"#REF!"},null,{"$f":"#REF!","v":{"$error":"#REF!"}},{"$f":"#REF!","v":{"$error":"#REF!"}},null,null,{"$f":"#REF!","v":{"$error":"#REF!"}},800001965,"http://www.xbrl.org/scheme/companyName",null,{"$f":"Periodos!$C$4","v":"2017-12-31"},{"$f":"#REF!","v":{"$error":"#REF!"}},{"$f":"#REF!","v":{"$error":"#REF!"}}]
[{"$error":"#REF!"},null,{"$f":"#REF!","v":{"$error":"#REF!"}},{"$f":"#REF!","v":{"$error":"#REF!"}},null,null,{"$f":"#REF!","v":{"$error":"#REF!"}},800001965,"http://www.xbrl.org/scheme/companyName",null,{"$f":"Periodos!$C$4","v":"2017-12-31"},{"$f":"#REF!","v":{"$error":"#REF!"}},{"$f":"#REF!","v":{"$error":"#REF!"}}]
[{"$error":"#REF!"},null,{"$f":"#REF!","v":{"$error":"#REF!"}},{"$f":"#REF!","v":{"$error":"#REF!"}},null,null,{"$f":"#REF!","v":{"$error":"#REF!"}},800001965,"http://www.xbrl.org/scheme/companyName",null,{"$f":"Periodos!$C$4","v":"2017-12-31"},{"$f":"#REF!","v":{"$error":"#REF!"}},{"$f":"#REF!","v":{"$error":"#REF!"}}]
[{"$error":"#REF!"},null,{"$f":"#REF!","v":{"$error":"#REF!"}},{"$f":"#REF!","v":{"$error":"#REF!"}},null,null,{"$f":"#REF!","v":{"$error":"#REF!"}},800001965,"http://www.xbrl.org/scheme/companyName",null,{"$f":"Periodos!$C$4","v":"2017-12-31"},{"$f":"#REF!","v":{"$error":"#REF!"}},{"$f":"#REF!","v":{"$error":"#REF!"}}]
[{"$f":"IF(G2785=\"\",\"/*\",\"\")","v":{"$error":"#REF!"}},null,{"$f":"#REF!","v":{"$error":"#REF!"}},{"$f":"#REF!","v":{"$error":"#REF!"}},null,null,{"$f":"#REF!","v":{"$error":"#REF!"}},800001965,"http://www.xbrl.org/scheme/companyName",null,{"$f":"Periodos!$C$4","v":"2017-12-31"},{"$f":"#REF!","v":{"$error":"#REF!"}},{"$f":"#REF!","v":{"$error":"#REF!"}}]
[{"$error":"#REF!"},null,{"$f":"#REF!","v":{"$error":"#REF!"}},{"$f":"#REF!","v":{"$error":"#REF!"}},0,"peso",{"$f":"#REF!","v":{"$error":"#REF!"}},800001965,"http://www.xbrl.org/scheme/companyName",null,{"$f":"Periodos!$C$4","v":"2017-12-31"},{"$f":"#REF!","v":{"$error":"#REF!"}},{"$f":"#REF!","v":{"$error":"#REF!"}}]
["/*",null,"--87--"]
[{"$error":"#REF!"},null,{"$f":"#REF!","v":{"$error":"#REF!"}},{"$f":"#REF!","v":{"$error":"#REF!"}},null,null,{"$f":"#REF!","v":{"$error":"#REF!"}},800001965,"http://www.xbrl.org/scheme/companyName",null,{"$f":"Periodos!$C$4","v":"2017-12-31"},{"$f":"#REF!","v":{"$error":"#REF!"}},{"$f":"#REF!","v":{"$error":"#REF!"}}]
[{"$error":"#REF!"},null,{"$f":"#REF!","v":{"$error":"#REF!"}},{"$f":"#REF!","v":{"$error":"#REF!"}},null,null,{"$f":"#REF!","v":{"$error":"#REF!"}},800001965,"http://www.xbrl.org/scheme/companyName",null,{"$f":"Periodos!$C$4","v":"2017-12-31"},{"$f":"#REF!","v":{"$error":"#REF!"}},{"$f":"#REF!","v":{"$error":"#REF!"}}]
[{"$error":"#REF!"},null,{"$f":"#REF!","v":{"$error":"#REF!"}},{"$f":"#REF!","v":{"$error":"#REF!"}},null,null,{"$f":"#REF!","v":{"$error":"#REF!"}},800001965,"http://www.xbrl.org/scheme/companyName",null,{"$f":"Periodos!$C$4","v":"2017-12-31"},{"$f":"#REF!","v":{"$error":"#REF!"}},{"$f":"#REF!","v":{"$error":"#REF!"}}]
[{"$error":"#REF!"},null,{"$f":"#REF!","v":{"$error":"#REF!"}},{"$f":"#REF!","v":{"$error":"#REF!"}},null,null,{"$f":"#REF!","v":{"$error":"#REF!"}},800001965,"http://www.xbrl.org/scheme/companyName",null,{"$f":"Periodos!$C$4","v":"2017-12-31"},{"$f":"#REF!","v":{"$error":"#REF!"}},{"$f":"#REF!","v":{"$error":"#REF!"}}]
[{"$error":"#REF!"},null,{"$f":"#REF!","v":{"$error":"#REF!"}},{"$f":"#REF!","v":{"$error":"#REF!"}},null,null,{"$f":"#REF!","v":{"$error":"#REF!"}},800001965,"http://www.xbrl.org/scheme/companyName",null,{"$f":"Periodos!$C$4","v":"2017-12-31"},{"$f":"#REF!","v":{"$error":"#REF!"}},{"$f":"#REF!","v":{"$error":"#REF!"}}]
[{"$error":"#REF!"},null,{"$f":"#REF!","v":{"$error":"#REF!"}},{"$f":"#REF!","v":{"$error":"#REF!"}},null,null,{"$f":"#REF!","v":{"$error":"#REF!"}},800001965,"http://www.xbrl.org/scheme/companyName",null,{"$f":"Periodos!$C$4","v":"2017-12-31"},{"$f":"#REF!","v":{"$error":"#REF!"}},{"$f":"#REF!","v":{"$error":"#REF!"}}]
[{"$error":"#REF!"},null,{"$f":"#REF!","v":{"$error":"#REF!"}},{"$f":"#REF!","v":{"$error":"#REF!"}},null,null,{"$f":"#REF!","v":{"$error":"#REF!"}},800001965,"http://www.xbrl.org/scheme/companyName",null,{"$f":"Periodos!$C$4","v":"2017-12-31"},{"$f":"#REF!","v":{"$error":"#REF!"}},{"$f":"#REF!","v":{"$error":"#REF!"}}]
[{"$error":"#REF!"},null,{"$f":"#REF!","v":{"$error":"#REF!"}},{"$f":"#REF!","v":{"$error":"#REF!"}},null,null,{"$f":"#REF!","v":{"$error":"#REF!"}},800001965,"http://www.xbrl.org/scheme/companyName",null,{"$f":"Periodos!$C$4","v":"2017-12-31"},{"$f":"#REF!","v":{"$error":"#REF!"}},{"$f":"#REF!","v":{"$error":"#REF!"}}]
[{"$error":"#REF!"},null,{"$f":"#REF!","v":{"$error":"#REF!"}},{"$f":"#REF!","v":{"$error":"#REF!"}},null,null,{"$f":"#REF!","v":{"$error":"#REF!"}},800001965,"http://www.xbrl.org/scheme/companyName",null,{"$f":"Periodos!$C$4","v":"2017-12-31"},{"$f":"#REF!","v":{"$error":"#REF!"}},{"$f":"#REF!","v":{"$error":"#REF!"}}]
[{"$error":"#REF!"},null,{"$f":"#REF!","v":{"$error":"#REF!"}},{"$f":"#REF!","v":{"$error":"#REF!"}},null,null,{"$f":"#REF!","v":{"$error":"#REF!"}},800001965,"http://www.xbrl.org/scheme/companyName",null,{"$f":"Periodos!$C$4","v":"2017-12-31"},{"$f":"#REF!","v":{"$error":"#REF!"}},{"$f":"#REF!","v":{"$error":"#REF!"}}]
[{"$error":"#REF!"},null,{"$f":"#REF!","v":{"$error":"#REF!"}},{"$f":"#REF!","v":{"$error":"#REF!"}},null,null,{"$f":"#REF!","v":{"$error":"#REF!"}},800001965,"http://www.xbrl.org/scheme/companyName",null,{"$f":"Periodos!$C$4","v":"2017-12-31"},{"$f":"#REF!","v":{"$error":"#REF!"}},{"$f":"#REF!","v":{"$error":"#REF!"}}]
[{"$error":"#REF!"},null,{"$f":"#REF!","v":{"$error":"#REF!"}},{"$f":"#REF!","v":{"$error":"#REF!"}},0,"peso",{"$f":"#REF!","v":{"$error":"#REF!"}},800001965,"http://www.xbrl.org/scheme/companyName",null,{"$f":"Periodos!$C$4","v":"2017-12-31"},{"$f":"#REF!","v":{"$error":"#REF!"}},{"$f":"#REF!","v":{"$error":"#REF!"}}]
["/*",null,"--88--"]
[{"$error":"#REF!"},null,{"$f":"#REF!","v":{"$error":"#REF!"}},{"$f":"#REF!","v":{"$error":"#REF!"}},null,null,{"$f":"#REF!","v":{"$error":"#REF!"}},800001965,"http://www.xbrl.org/scheme/companyName",null,{"$f":"Periodos!$C$4","v":"2017-12-31"},{"$f":"#REF!","v":{"$error":"#REF!"}},{"$f":"#REF!","v":{"$error":"#REF!"}}]
[{"$error":"#REF!"},null,{"$f":"#REF!","v":{"$error":"#REF!"}},{"$f":"#REF!","v":{"$error":"#REF!"}},null,null,{"$f":"#REF!","v":{"$error":"#REF!"}},800001965,"http://www.xbrl.org/scheme/companyName",null,{"$f":"Periodos!$C$4","v":"2017-12-31"},{"$f":"#REF!","v":{"$error":"#REF!"}},{"$f":"#REF!","v":{"$error":"#REF!"}}]
[{"$error":"#REF!"},null,{"$f":"#REF!","v":{"$error":"#REF!"}},{"$f":"#REF!","v":{"$error":"#REF!"}},null,null,{"$f":"#REF!","v":{"$error":"#REF!"}},800001965,"http://www.xbrl.org/scheme/companyName",null,{"$f":"Periodos!$C$4","v":"2017-12-31"},{"$f":"#REF!","v":{"$error":"#REF!"}},{"$f":"#REF!","v":{"$error":"#REF!"}}]
[{"$error":"#REF!"},null,{"$f":"#REF!","v":{"$error":"#REF!"}},{"$f":"#REF!","v":{"$error":"#REF!"}},null,null,{"$f":"#REF!","v":{"$error":"#REF!"}},800001965,"http://www.xbrl.org/scheme/companyName",null,{"$f":"Periodos!$C$4","v":"2017-12-31"},{"$f":"#REF!","v":{"$error":"#REF!"}},{"$f":"#REF!","v":{"$error":"#REF!"}}]
[{"$error":"#REF!"},null,{"$f":"#REF!","v":{"$error":"#REF!"}},{"$f":"#REF!","v":{"$error":"#REF!"}},null,null,{"$f":"#REF!","v":{"$error":"#REF!"}},800001965,"http://www.xbrl.org/scheme/companyName",null,{"$f":"Periodos!$C$4","v":"2017-12-31"},{"$f":"#REF!","v":{"$error":"#REF!"}},{"$f":"#REF!","v":{"$error":"#REF!"}}]
[{"$error":"#REF!"},null,{"$f":"#REF!","v":{"$error":"#REF!"}},{"$f":"#REF!","v":{"$error":"#REF!"}},null,null,{"$f":"#REF!","v":{"$error":"#REF!"}},800001965,"http://www.xbrl.org/scheme/companyName",null,{"$f":"Periodos!$C$4","v":"2017-12-31"},{"$f":"#REF!","v":{"$error":"#REF!"}},{"$f":"#REF!","v":{"$error":"#REF!"}}]
[{"$error":"#REF!"},null,{"$f":"#REF!","v":{"$error":"#REF!"}},{"$f":"#REF!","v":{"$error":"#REF!"}},null,null,{"$f":"#REF!","v":{"$error":"#REF!"}},800001965,"http://www.xbrl.org/scheme/companyName",null,{"$f":"Periodos!$C$4","v":"2017-12-31"},{"$f":"#REF!","v":{"$error":"#REF!"}},{"$f":"#REF!","v":{"$error":"#REF!"}}]
[{"$error":"#REF!"},null,{"$f":"#REF!","v":{"$error":"#REF!"}},{"$f":"#REF!","v":{"$error":"#REF!"}},null,null,{"$f":"#REF!","v":{"$error":"#REF!"}},800001965,"http://www.xbrl.org/scheme/companyName",null,{"$f":"Periodos!$C$4","v":"2017-12-31"},{"$f":"#REF!","v":{"$error":"#REF!"}},{"$f":"#REF!","v":{"$error":"#REF!"}}]
[{"$error":"#REF!"},null,{"$f":"#REF!","v":{"$error":"#REF!"}},{"$f":"#REF!","v":{"$error":"#REF!"}},null,null,{"$f":"#REF!","v":{"$error":"#REF!"}},800001965,"http://www.xbrl.org/scheme/companyName",null,{"$f":"Periodos!$C$4","v":"2017-12-31"},{"$f":"#REF!","v":{"$error":"#REF!"}},{"$f":"#REF!","v":{"$error":"#REF!"}}]
[{"$error":"#REF!"},null,{"$f":"#REF!","v":{"$error":"#REF!"}},{"$f":"#REF!","v":{"$error":"#REF!"}},null,null,{"$f":"#REF!","v":{"$error":"#REF!"}},800001965,"http://www.xbrl.org/scheme/companyName",null,{"$f":"Periodos!$C$4","v":"2017-12-31"},{"$f":"#REF!","v":{"$error":"#REF!"}},{"$f":"#REF!","v":{"$error":"#REF!"}}]
[{"$error":"#REF!"},null,{"$f":"#REF!","v":{"$error":"#REF!"}},{"$f":"#REF!","v":{"$error":"#REF!"}},null,null,{"$f":"#REF!","v":{"$error":"#REF!"}},800001965,"http://www.xbrl.org/scheme/companyName",null,{"$f":"Periodos!$C$4","v":"2017-12-31"},{"$f":"#REF!","v":{"$error":"#REF!"}},{"$f":"#REF!","v":{"$error":"#REF!"}}]
[{"$error":"#REF!"},null,{"$f":"#REF!","v":{"$error":"#REF!"}},{"$f":"#REF!","v":{"$error":"#REF!"}},0,"peso",{"$f":"#REF!","v":{"$error":"#REF!"}},800001965,"http://www.xbrl.org/scheme/companyName",null,{"$f":"Periodos!$C$4","v":"2017-12-31"},{"$f":"#REF!","v":{"$error":"#REF!"}},{"$f":"#REF!","v":{"$error":"#REF!"}}]
["/*",null,"--89--"]
[{"$error":"#REF!"},null,{"$f":"#REF!","v":{"$error":"#REF!"}},{"$f":"#REF!","v":{"$error":"#REF!"}},null,null,{"$f":"#REF!","v":{"$error":"#REF!"}},800001965,"http://www.xbrl.org/scheme/companyName",null,{"$f":"Periodos!$C$4","v":"2017-12-31"},{"$f":"#REF!","v":{"$error":"#REF!"}},{"$f":"#REF!","v":{"$error":"#REF!"}}]
[{"$error":"#REF!"},null,{"$f":"#REF!","v":{"$error":"#REF!"}},{"$f":"#REF!","v":{"$error":"#REF!"}},null,null,{"$f":"#REF!","v":{"$error":"#REF!"}},800001965,"http://www.xbrl.org/scheme/companyName",null,{"$f":"Periodos!$C$4","v":"2017-12-31"},{"$f":"#REF!","v":{"$error":"#REF!"}},{"$f":"#REF!","v":{"$error":"#REF!"}}]
[{"$error":"#REF!"},null,{"$f":"#REF!","v":{"$error":"#REF!"}},{"$f":"#REF!","v":{"$error":"#REF!"}},null,null,{"$f":"#REF!","v":{"$error":"#REF!"}},800001965,"http://www.xbrl.org/scheme/companyName",null,{"$f":"Periodos!$C$4","v":"2017-12-31"},{"$f":"#REF!","v":{"$error":"#REF!"}},{"$f":"#REF!","v":{"$error":"#REF!"}}]
[{"$error":"#REF!"},null,{"$f":"#REF!","v":{"$error":"#REF!"}},{"$f":"#REF!","v":{"$error":"#REF!"}},null,null,{"$f":"#REF!","v":{"$error":"#REF!"}},800001965,"http://www.xbrl.org/scheme/companyName",null,{"$f":"Periodos!$C$4","v":"2017-12-31"},{"$f":"#REF!","v":{"$error":"#REF!"}},{"$f":"#REF!","v":{"$error":"#REF!"}}]
[{"$error":"#REF!"},null,{"$f":"#REF!","v":{"$error":"#REF!"}},{"$f":"#REF!","v":{"$error":"#REF!"}},null,null,{"$f":"#REF!","v":{"$error":"#REF!"}},800001965,"http://www.xbrl.org/scheme/companyName",null,{"$f":"Periodos!$C$4","v":"2017-12-31"},{"$f":"#REF!","v":{"$error":"#REF!"}},{"$f":"#REF!","v":{"$error":"#REF!"}}]
[{"$error":"#REF!"},null,{"$f":"#REF!","v":{"$error":"#REF!"}},{"$f":"#REF!","v":{"$error":"#REF!"}},null,null,{"$f":"#REF!","v":{"$error":"#REF!"}},800001965,"http://www.xbrl.org/scheme/companyName",null,{"$f":"Periodos!$C$4","v":"2017-12-31"},{"$f":"#REF!","v":{"$error":"#REF!"}},{"$f":"#REF!","v":{"$error":"#REF!"}}]
[{"$error":"#REF!"},null,{"$f":"#REF!","v":{"$error":"#REF!"}},{"$f":"#REF!","v":{"$error":"#REF!"}},null,null,{"$f":"#REF!","v":{"$error":"#REF!"}},800001965,"http://www.xbrl.org/scheme/companyName",null,{"$f":"Periodos!$C$4","v":"2017-12-31"},{"$f":"#REF!","v":{"$error":"#REF!"}},{"$f":"#REF!","v":{"$error":"#REF!"}}]
[{"$error":"#REF!"},null,{"$f":"#REF!","v":{"$error":"#REF!"}},{"$f":"#REF!","v":{"$error":"#REF!"}},null,null,{"$f":"#REF!","v":{"$error":"#REF!"}},800001965,"http://www.xbrl.org/scheme/companyName",null,{"$f":"Periodos!$C$4","v":"2017-12-31"},{"$f":"#REF!","v":{"$error":"#REF!"}},{"$f":"#REF!","v":{"$error":"#REF!"}}]
[{"$error":"#REF!"},null,{"$f":"#REF!","v":{"$error":"#REF!"}},{"$f":"#REF!","v":{"$error":"#REF!"}},null,null,{"$f":"#REF!","v":{"$error":"#REF!"}},800001965,"http://www.xbrl.org/scheme/companyName",null,{"$f":"Periodos!$C$4","v":"2017-12-31"},{"$f":"#REF!","v":{"$error":"#REF!"}},{"$f":"#REF!","v":{"$error":"#REF!"}}]
[{"$error":"#REF!"},null,{"$f":"#REF!","v":{"$error":"#REF!"}},{"$f":"#REF!","v":{"$error":"#REF!"}},null,null,{"$f":"#REF!","v":{"$error":"#REF!"}},800001965,"http://www.xbrl.org/scheme/companyName",null,{"$f":"Periodos!$C$4","v":"2017-12-31"},{"$f":"#REF!","v":{"$error":"#REF!"}},{"$f":"#REF!","v":{"$error":"#REF!"}}]
[{"$error":"#REF!"},null,{"$f":"#REF!","v":{"$error":"#REF!"}},{"$f":"#REF!","v":{"$error":"#REF!"}},null,null,{"$f":"#REF!","v":{"$error":"#REF!"}},800001965,"http://www.xbrl.org/scheme/companyName",null,{"$f":"Periodos!$C$4","v":"2017-12-31"},{"$f":"#REF!","v":{"$error":"#REF!"}},{"$f":"#REF!","v":{"$error":"#REF!"}}]
[{"$error":"#REF!"},null,{"$f":"#REF!","v":{"$error":"#REF!"}},{"$f":"#REF!","v":{"$error":"#REF!"}},0,"peso",{"$f":"#REF!","v":{"$error":"#REF!"}},800001965,"http://www.xbrl.org/scheme/companyName",null,{"$f":"Periodos!$C$4","v":"2017-12-31"},{"$f":"#REF!","v":{"$error":"#REF!"}},{"$f":"#REF!","v":{"$error":"#REF!"}}]
["/*",null,"--90--"]
[{"$error":"#REF!"},null,{"$f":"#REF!","v":{"$error":"#REF!"}},{"$f":"#REF!","v":{"$error":"#REF!"}},null,null,{"$f":"#REF!","v":{"$error":"#REF!"}},800001965,"http://www.xbrl.org/scheme/companyName",null,{"$f":"Periodos!$C$4","v":"2017-12-31"},{"$f":"#REF!","v":{"$error":"#REF!"}},{"$f":"#REF!","v":{"$error":"#REF!"}}]
[{"$error":"#REF!"},null,{"$f":"#REF!","v":{"$error":"#REF!"}},{"$f":"#REF!","v":{"$error":"#REF!"}},null,null,{"$f":"#REF!","v":{"$error":"#REF!"}},800001965,"http://www.xbrl.org/scheme/companyName",null,{"$f":"Periodos!$C$4","v":"2017-12-31"},{"$f":"#REF!","v":{"$error":"#REF!"}},{"$f":"#REF!","v":{"$error":"#REF!"}}]
[{"$error":"#REF!"},null,{"$f":"#REF!","v":{"$error":"#REF!"}},{"$f":"#REF!","v":{"$error":"#REF!"}},null,null,{"$f":"#REF!","v":{"$error":"#REF!"}},800001965,"http://www.xbrl.org/scheme/companyName",null,{"$f":"Periodos!$C$4","v":"2017-12-31"},{"$f":"#REF!","v":{"$error":"#REF!"}},{"$f":"#REF!","v":{"$error":"#REF!"}}]
[{"$error":"#REF!"},null,{"$f":"#REF!","v":{"$error":"#REF!"}},{"$f":"#REF!","v":{"$error":"#REF!"}},null,null,{"$f":"#REF!","v":{"$error":"#REF!"}},800001965,"http://www.xbrl.org/scheme/companyName",null,{"$f":"Periodos!$C$4","v":"2017-12-31"},{"$f":"#REF!","v":{"$error":"#REF!"}},{"$f":"#REF!","v":{"$error":"#REF!"}}]
[{"$error":"#REF!"},null,{"$f":"#REF!","v":{"$error":"#REF!"}},{"$f":"#REF!","v":{"$error":"#REF!"}},null,null,{"$f":"#REF!","v":{"$error":"#REF!"}},800001965,"http://www.xbrl.org/scheme/companyName",null,{"$f":"Periodos!$C$4","v":"2017-12-31"},{"$f":"#REF!","v":{"$error":"#REF!"}},{"$f":"#REF!","v":{"$error":"#REF!"}}]
[{"$error":"#REF!"},null,{"$f":"#REF!","v":{"$error":"#REF!"}},{"$f":"#REF!","v":{"$error":"#REF!"}},null,null,{"$f":"#REF!","v":{"$error":"#REF!"}},800001965,"http://www.xbrl.org/scheme/companyName",null,{"$f":"Periodos!$C$4","v":"2017-12-31"},{"$f":"#REF!","v":{"$error":"#REF!"}},{"$f":"#REF!","v":{"$error":"#REF!"}}]
[{"$error":"#REF!"},null,{"$f":"#REF!","v":{"$error":"#REF!"}},{"$f":"#REF!","v":{"$error":"#REF!"}},null,null,{"$f":"#REF!","v":{"$error":"#REF!"}},800001965,"http://www.xbrl.org/scheme/companyName",null,{"$f":"Periodos!$C$4","v":"2017-12-31"},{"$f":"#REF!","v":{"$error":"#REF!"}},{"$f":"#REF!","v":{"$error":"#REF!"}}]
[{"$error":"#REF!"},null,{"$f":"#REF!","v":{"$error":"#REF!"}},{"$f":"#REF!","v":{"$error":"#REF!"}},null,null,{"$f":"#REF!","v":{"$error":"#REF!"}},800001965,"http://www.xbrl.org/scheme/companyName",null,{"$f":"Periodos!$C$4","v":"2017-12-31"},{"$f":"#REF!","v":{"$error":"#REF!"}},{"$f":"#REF!","v":{"$error":"#REF!"}}]
[{"$error":"#REF!"},null,{"$f":"#REF!","v":{"$error":"#REF!"}},{"$f":"#REF!","v":{"$error":"#REF!"}},null,null,{"$f":"#REF!","v":{"$error":"#REF!"}},800001965,"http://www.xbrl.org/scheme/companyName",null,{"$f":"Periodos!$C$4","v":"2017-12-31"},{"$f":"#REF!","v":{"$error":"#REF!"}},{"$f":"#REF!","v":{"$error":"#REF!"}}]
[{"$error":"#REF!"},null,{"$f":"#REF!","v":{"$error":"#REF!"}},{"$f":"#REF!","v":{"$error":"#REF!"}},null,null,{"$f":"#REF!","v":{"$error":"#REF!"}},800001965,"http://www.xbrl.org/scheme/companyName",null,{"$f":"Periodos!$C$4","v":"2017-12-31"},{"$f":"#REF!","v":{"$error":"#REF!"}},{"$f":"#REF!","v":{"$error":"#REF!"}}]
[{"$error":"#REF!"},null,{"$f":"#REF!","v":{"$error":"#REF!"}},{"$f":"#REF!","v":{"$error":"#REF!"}},null,null,{"$f":"#REF!","v":{"$error":"#REF!"}},800001965,"http://www.xbrl.org/scheme/companyName",null,{"$f":"Periodos!$C$4","v":"2017-12-31"},{"$f":"#REF!","v":{"$error":"#REF!"}},{"$f":"#REF!","v":{"$error":"#REF!"}}]
[{"$error":"#REF!"},null,{"$f":"#REF!","v":{"$error":"#REF!"}},{"$f":"#REF!","v":{"$error":"#REF!"}},0,"peso",{"$f":"#REF!","v":{"$error":"#REF!"}},800001965,"http://www.xbrl.org/scheme/companyName",null,{"$f":"Periodos!$C$4","v":"2017-12-31"},{"$f":"#REF!","v":{"$error":"#REF!"}},{"$f":"#REF!","v":{"$error":"#REF!"}}]
["/*",null,"--91--"]
[{"$error":"#REF!"},null,{"$f":"#REF!","v":{"$error":"#REF!"}},{"$f":"#REF!","v":{"$error":"#REF!"}},null,null,{"$f":"#REF!","v":{"$error":"#REF!"}},800001965,"http://www.xbrl.org/scheme/companyName",null,{"$f":"Periodos!$C$4","v":"2017-12-31"},{"$f":"#REF!","v":{"$error":"#REF!"}},{"$f":"#REF!","v":{"$error":"#REF!"}}]
[{"$error":"#REF!"},null,{"$f":"#REF!","v":{"$error":"#REF!"}},{"$f":"#REF!","v":{"$error":"#REF!"}},null,null,{"$f":"#REF!","v":{"$error":"#REF!"}},800001965,"http://www.xbrl.org/scheme/companyName",null,{"$f":"Periodos!$C$4","v":"2017-12-31"},{"$f":"#REF!","v":{"$error":"#REF!"}},{"$f":"#REF!","v":{"$error":"#REF!"}}]
[{"$error":"#REF!"},null,{"$f":"#REF!","v":{"$error":"#REF!"}},{"$f":"#REF!","v":{"$error":"#REF!"}},null,null,{"$f":"#REF!","v":{"$error":"#REF!"}},800001965,"http://www.xbrl.org/scheme/companyName",null,{"$f":"Periodos!$C$4","v":"2017-12-31"},{"$f":"#REF!","v":{"$error":"#REF!"}},{"$f":"#REF!","v":{"$error":"#REF!"}}]
[{"$error":"#REF!"},null,{"$f":"#REF!","v":{"$error":"#REF!"}},{"$f":"#REF!","v":{"$error":"#REF!"}},null,null,{"$f":"#REF!","v":{"$error":"#REF!"}},800001965,"http://www.xbrl.org/scheme/companyName",null,{"$f":"Periodos!$C$4","v":"2017-12-31"},{"$f":"#REF!","v":{"$error":"#REF!"}},{"$f":"#REF!","v":{"$error":"#REF!"}}]
[{"$error":"#REF!"},null,{"$f":"#REF!","v":{"$error":"#REF!"}},{"$f":"#REF!","v":{"$error":"#REF!"}},null,null,{"$f":"#REF!","v":{"$error":"#REF!"}},800001965,"http://www.xbrl.org/scheme/companyName",null,{"$f":"Periodos!$C$4","v":"2017-12-31"},{"$f":"#REF!","v":{"$error":"#REF!"}},{"$f":"#REF!","v":{"$error":"#REF!"}}]
[{"$error":"#REF!"},null,{"$f":"#REF!","v":{"$error":"#REF!"}},{"$f":"#REF!","v":{"$error":"#REF!"}},null,null,{"$f":"#REF!","v":{"$error":"#REF!"}},800001965,"http://www.xbrl.org/scheme/companyName",null,{"$f":"Periodos!$C$4","v":"2017-12-31"},{"$f":"#REF!","v":{"$error":"#REF!"}},{"$f":"#REF!","v":{"$error":"#REF!"}}]
[{"$error":"#REF!"},null,{"$f":"#REF!","v":{"$error":"#REF!"}},{"$f":"#REF!","v":{"$error":"#REF!"}},null,null,{"$f":"#REF!","v":{"$error":"#REF!"}},800001965,"http://www.xbrl.org/scheme/companyName",null,{"$f":"Periodos!$C$4","v":"2017-12-31"},{"$f":"#REF!","v":{"$error":"#REF!"}},{"$f":"#REF!","v":{"$error":"#REF!"}}]
[{"$error":"#REF!"},null,{"$f":"#REF!","v":{"$error":"#REF!"}},{"$f":"#REF!","v":{"$error":"#REF!"}},null,null,{"$f":"#REF!","v":{"$error":"#REF!"}},800001965,"http://www.xbrl.org/scheme/companyName",null,{"$f":"Periodos!$C$4","v":"2017-12-31"},{"$f":"#REF!","v":{"$error":"#REF!"}},{"$f":"#REF!","v":{"$error":"#REF!"}}]
[{"$error":"#REF!"},null,{"$f":"#REF!","v":{"$error":"#REF!"}},{"$f":"#REF!","v":{"$error":"#REF!"}},null,null,{"$f":"#REF!","v":{"$error":"#REF!"}},800001965,"http://www.xbrl.org/scheme/companyName",null,{"$f":"Periodos!$C$4","v":"2017-12-31"},{"$f":"#REF!","v":{"$error":"#REF!"}},{"$f":"#REF!","v":{"$error":"#REF!"}}]
[{"$f":"IF(G2849=\"\",\"/*\",\"\")","v":{"$error":"#REF!"}},null,{"$f":"#REF!","v":{"$error":"#REF!"}},{"$f":"#REF!","v":{"$error":"#REF!"}},null,null,{"$f":"#REF!","v":{"$error":"#REF!"}},800001965,"http://www.xbrl.org/scheme/companyName",null,{"$f":"Periodos!$C$4","v":"2017-12-31"},{"$f":"#REF!","v":{"$error":"#REF!"}},{"$f":"#REF!","v":{"$error":"#REF!"}}]
[{"$error":"#REF!"},null,{"$f":"#REF!","v":{"$error":"#REF!"}},{"$f":"#REF!","v":{"$error":"#REF!"}},null,null,{"$f":"#REF!","v":{"$error":"#REF!"}},800001965,"http://www.xbrl.org/scheme/companyName",null,{"$f":"Periodos!$C$4","v":"2017-12-31"},{"$f":"#REF!","v":{"$error":"#REF!"}},{"$f":"#REF!","v":{"$error":"#REF!"}}]
[{"$error":"#REF!"},null,{"$f":"#REF!","v":{"$error":"#REF!"}},{"$f":"#REF!","v":{"$error":"#REF!"}},0,"peso",{"$f":"#REF!","v":{"$error":"#REF!"}},800001965,"http://www.xbrl.org/scheme/companyName",null,{"$f":"Periodos!$C$4","v":"2017-12-31"},{"$f":"#REF!","v":{"$error":"#REF!"}},{"$f":"#REF!","v":{"$error":"#REF!"}}]
["/*",null,"--92--"]
[{"$error":"#REF!"},null,{"$f":"#REF!","v":{"$error":"#REF!"}},{"$f":"#REF!","v":{"$error":"#REF!"}},null,null,{"$f":"#REF!","v":{"$error":"#REF!"}},800001965,"http://www.xbrl.org/scheme/companyName",null,{"$f":"Periodos!$C$4","v":"2017-12-31"},{"$f":"#REF!","v":{"$error":"#REF!"}},{"$f":"#REF!","v":{"$error":"#REF!"}}]
[{"$error":"#REF!"},null,{"$f":"#REF!","v":{"$error":"#REF!"}},{"$f":"#REF!","v":{"$error":"#REF!"}},null,null,{"$f":"#REF!","v":{"$error":"#REF!"}},800001965,"http://www.xbrl.org/scheme/companyName",null,{"$f":"Periodos!$C$4","v":"2017-12-31"},{"$f":"#REF!","v":{"$error":"#REF!"}},{"$f":"#REF!","v":{"$error":"#REF!"}}]
[{"$error":"#REF!"},null,{"$f":"#REF!","v":{"$error":"#REF!"}},{"$f":"#REF!","v":{"$error":"#REF!"}},null,null,{"$f":"#REF!","v":{"$error":"#REF!"}},800001965,"http://www.xbrl.org/scheme/companyName",null,{"$f":"Periodos!$C$4","v":"2017-12-31"},{"$f":"#REF!","v":{"$error":"#REF!"}},{"$f":"#REF!","v":{"$error":"#REF!"}}]
[{"$error":"#REF!"},null,{"$f":"#REF!","v":{"$error":"#REF!"}},{"$f":"#REF!","v":{"$error":"#REF!"}},null,null,{"$f":"#REF!","v":{"$error":"#REF!"}},800001965,"http://www.xbrl.org/scheme/companyName",null,{"$f":"Periodos!$C$4","v":"2017-12-31"},{"$f":"#REF!","v":{"$error":"#REF!"}},{"$f":"#REF!","v":{"$error":"#REF!"}}]
[{"$error":"#REF!"},null,{"$f":"#REF!","v":{"$error":"#REF!"}},{"$f":"#REF!","v":{"$error":"#REF!"}},null,null,{"$f":"#REF!","v":{"$error":"#REF!"}},800001965,"http://www.xbrl.org/scheme/companyName",null,{"$f":"Periodos!$C$4","v":"2017-12-31"},{"$f":"#REF!","v":{"$error":"#REF!"}},{"$f":"#REF!","v":{"$error":"#REF!"}}]
[{"$error":"#REF!"},null,{"$f":"#REF!","v":{"$error":"#REF!"}},{"$f":"#REF!","v":{"$error":"#REF!"}},null,null,{"$f":"#REF!","v":{"$error":"#REF!"}},800001965,"http://www.xbrl.org/scheme/companyName",null,{"$f":"Periodos!$C$4","v":"2017-12-31"},{"$f":"#REF!","v":{"$error":"#REF!"}},{"$f":"#REF!","v":{"$error":"#REF!"}}]
[{"$error":"#REF!"},null,{"$f":"#REF!","v":{"$error":"#REF!"}},{"$f":"#REF!","v":{"$error":"#REF!"}},null,null,{"$f":"#REF!","v":{"$error":"#REF!"}},800001965,"http://www.xbrl.org/scheme/companyName",null,{"$f":"Periodos!$C$4","v":"2017-12-31"},{"$f":"#REF!","v":{"$error":"#REF!"}},{"$f":"#REF!","v":{"$error":"#REF!"}}]
[{"$error":"#REF!"},null,{"$f":"#REF!","v":{"$error":"#REF!"}},{"$f":"#REF!","v":{"$error":"#REF!"}},null,null,{"$f":"#REF!","v":{"$error":"#REF!"}},800001965,"http://www.xbrl.org/scheme/companyName",null,{"$f":"Periodos!$C$4","v":"2017-12-31"},{"$f":"#REF!","v":{"$error":"#REF!"}},{"$f":"#REF!","v":{"$error":"#REF!"}}]
[{"$error":"#REF!"},null,{"$f":"#REF!","v":{"$error":"#REF!"}},{"$f":"#REF!","v":{"$error":"#REF!"}},null,null,{"$f":"#REF!","v":{"$error":"#REF!"}},800001965,"http://www.xbrl.org/scheme/companyName",null,{"$f":"Periodos!$C$4","v":"2017-12-31"},{"$f":"#REF!","v":{"$error":"#REF!"}},{"$f":"#REF!","v":{"$error":"#REF!"}}]
[{"$error":"#REF!"},null,{"$f":"#REF!","v":{"$error":"#REF!"}},{"$f":"#REF!","v":{"$error":"#REF!"}},null,null,{"$f":"#REF!","v":{"$error":"#REF!"}},800001965,"http://www.xbrl.org/scheme/companyName",null,{"$f":"Periodos!$C$4","v":"2017-12-31"},{"$f":"#REF!","v":{"$error":"#REF!"}},{"$f":"#REF!","v":{"$error":"#REF!"}}]
[{"$error":"#REF!"},null,{"$f":"#REF!","v":{"$error":"#REF!"}},{"$f":"#REF!","v":{"$error":"#REF!"}},null,null,{"$f":"#REF!","v":{"$error":"#REF!"}},800001965,"http://www.xbrl.org/scheme/companyName",null,{"$f":"Periodos!$C$4","v":"2017-12-31"},{"$f":"#REF!","v":{"$error":"#REF!"}},{"$f":"#REF!","v":{"$error":"#REF!"}}]
[{"$error":"#REF!"},null,{"$f":"#REF!","v":{"$error":"#REF!"}},{"$f":"#REF!","v":{"$error":"#REF!"}},0,"peso",{"$f":"#REF!","v":{"$error":"#REF!"}},800001965,"http://www.xbrl.org/scheme/companyName",null,{"$f":"Periodos!$C$4","v":"2017-12-31"},{"$f":"#REF!","v":{"$error":"#REF!"}},{"$f":"#REF!","v":{"$error":"#REF!"}}]
["/*",null,"--93--"]
[{"$error":"#REF!"},null,{"$f":"#REF!","v":{"$error":"#REF!"}},{"$f":"#REF!","v":{"$error":"#REF!"}},null,null,{"$f":"#REF!","v":{"$error":"#REF!"}},800001965,"http://www.xbrl.org/scheme/companyName",null,{"$f":"Periodos!$C$4","v":"2017-12-31"},{"$f":"#REF!","v":{"$error":"#REF!"}},{"$f":"#REF!","v":{"$error":"#REF!"}}]
[{"$error":"#REF!"},null,{"$f":"#REF!","v":{"$error":"#REF!"}},{"$f":"#REF!","v":{"$error":"#REF!"}},null,null,{"$f":"#REF!","v":{"$error":"#REF!"}},800001965,"http://www.xbrl.org/scheme/companyName",null,{"$f":"Periodos!$C$4","v":"2017-12-31"},{"$f":"#REF!","v":{"$error":"#REF!"}},{"$f":"#REF!","v":{"$error":"#REF!"}}]
[{"$error":"#REF!"},null,{"$f":"#REF!","v":{"$error":"#REF!"}},{"$f":"#REF!","v":{"$error":"#REF!"}},null,null,{"$f":"#REF!","v":{"$error":"#REF!"}},800001965,"http://www.xbrl.org/scheme/companyName",null,{"$f":"Periodos!$C$4","v":"2017-12-31"},{"$f":"#REF!","v":{"$error":"#REF!"}},{"$f":"#REF!","v":{"$error":"#REF!"}}]
[{"$error":"#REF!"},null,{"$f":"#REF!","v":{"$error":"#REF!"}},{"$f":"#REF!","v":{"$error":"#REF!"}},null,null,{"$f":"#REF!","v":{"$error":"#REF!"}},800001965,"http://www.xbrl.org/scheme/companyName",null,{"$f":"Periodos!$C$4","v":"2017-12-31"},{"$f":"#REF!","v":{"$error":"#REF!"}},{"$f":"#REF!","v":{"$error":"#REF!"}}]
[{"$error":"#REF!"},null,{"$f":"#REF!","v":{"$error":"#REF!"}},{"$f":"#REF!","v":{"$error":"#REF!"}},null,null,{"$f":"#REF!","v":{"$error":"#REF!"}},800001965,"http://www.xbrl.org/scheme/companyName",null,{"$f":"Periodos!$C$4","v":"2017-12-31"},{"$f":"#REF!","v":{"$error":"#REF!"}},{"$f":"#REF!","v":{"$error":"#REF!"}}]
[{"$error":"#REF!"},null,{"$f":"#REF!","v":{"$error":"#REF!"}},{"$f":"#REF!","v":{"$error":"#REF!"}},null,null,{"$f":"#REF!","v":{"$error":"#REF!"}},800001965,"http://www.xbrl.org/scheme/companyName",null,{"$f":"Periodos!$C$4","v":"2017-12-31"},{"$f":"#REF!","v":{"$error":"#REF!"}},{"$f":"#REF!","v":{"$error":"#REF!"}}]
[{"$error":"#REF!"},null,{"$f":"#REF!","v":{"$error":"#REF!"}},{"$f":"#REF!","v":{"$error":"#REF!"}},null,null,{"$f":"#REF!","v":{"$error":"#REF!"}},800001965,"http://www.xbrl.org/scheme/companyName",null,{"$f":"Periodos!$C$4","v":"2017-12-31"},{"$f":"#REF!","v":{"$error":"#REF!"}},{"$f":"#REF!","v":{"$error":"#REF!"}}]
[{"$error":"#REF!"},null,{"$f":"#REF!","v":{"$error":"#REF!"}},{"$f":"#REF!","v":{"$error":"#REF!"}},null,null,{"$f":"#REF!","v":{"$error":"#REF!"}},800001965,"http://www.xbrl.org/scheme/companyName",null,{"$f":"Periodos!$C$4","v":"2017-12-31"},{"$f":"#REF!","v":{"$error":"#REF!"}},{"$f":"#REF!","v":{"$error":"#REF!"}}]
[{"$error":"#REF!"},null,{"$f":"#REF!","v":{"$error":"#REF!"}},{"$f":"#REF!","v":{"$error":"#REF!"}},null,null,{"$f":"#REF!","v":{"$error":"#REF!"}},800001965,"http://www.xbrl.org/scheme/companyName",null,{"$f":"Periodos!$C$4","v":"2017-12-31"},{"$f":"#REF!","v":{"$error":"#REF!"}},{"$f":"#REF!","v":{"$error":"#REF!"}}]
[{"$error":"#REF!"},null,{"$f":"#REF!","v":{"$error":"#REF!"}},{"$f":"#REF!","v":{"$error":"#REF!"}},null,null,{"$f":"#REF!","v":{"$error":"#REF!"}},800001965,"http://www.xbrl.org/scheme/companyName",null,{"$f":"Periodos!$C$4","v":"2017-12-31"},{"$f":"#REF!","v":{"$error":"#REF!"}},{"$f":"#REF!","v":{"$error":"#REF!"}}]
[{"$error":"#REF!"},null,{"$f":"#REF!","v":{"$error":"#REF!"}},{"$f":"#REF!","v":{"$error":"#REF!"}},null,null,{"$f":"#REF!","v":{"$error":"#REF!"}},800001965,"http://www.xbrl.org/scheme/companyName",null,{"$f":"Periodos!$C$4","v":"2017-12-31"},{"$f":"#REF!","v":{"$error":"#REF!"}},{"$f":"#REF!","v":{"$error":"#REF!"}}]
[{"$error":"#REF!"},null,{"$f":"#REF!","v":{"$error":"#REF!"}},{"$f":"#REF!","v":{"$error":"#REF!"}},0,"peso",{"$f":"#REF!","v":{"$error":"#REF!"}},800001965,"http://www.xbrl.org/scheme/companyName",null,{"$f":"Periodos!$C$4","v":"2017-12-31"},{"$f":"#REF!","v":{"$error":"#REF!"}},{"$f":"#REF!","v":{"$error":"#REF!"}}]
["/*",null,"--94--"]
[{"$error":"#REF!"},null,{"$f":"#REF!","v":{"$error":"#REF!"}},{"$f":"#REF!","v":{"$error":"#REF!"}},null,null,{"$f":"#REF!","v":{"$error":"#REF!"}},800001965,"http://www.xbrl.org/scheme/companyName",null,{"$f":"Periodos!$C$4","v":"2017-12-31"},{"$f":"#REF!","v":{"$error":"#REF!"}},{"$f":"#REF!","v":{"$error":"#REF!"}}]
[{"$error":"#REF!"},null,{"$f":"#REF!","v":{"$error":"#REF!"}},{"$f":"#REF!","v":{"$error":"#REF!"}},null,null,{"$f":"#REF!","v":{"$error":"#REF!"}},800001965,"http://www.xbrl.org/scheme/companyName",null,{"$f":"Periodos!$C$4","v":"2017-12-31"},{"$f":"#REF!","v":{"$error":"#REF!"}},{"$f":"#REF!","v":{"$error":"#REF!"}}]
[{"$error":"#REF!"},null,{"$f":"#REF!","v":{"$error":"#REF!"}},{"$f":"#REF!","v":{"$error":"#REF!"}},null,null,{"$f":"#REF!","v":{"$error":"#REF!"}},800001965,"http://www.xbrl.org/scheme/companyName",null,{"$f":"Periodos!$C$4","v":"2017-12-31"},{"$f":"#REF!","v":{"$error":"#REF!"}},{"$f":"#REF!","v":{"$error":"#REF!"}}]
[{"$error":"#REF!"},null,{"$f":"#REF!","v":{"$error":"#REF!"}},{"$f":"#REF!","v":{"$error":"#REF!"}},null,null,{"$f":"#REF!","v":{"$error":"#REF!"}},800001965,"http://www.xbrl.org/scheme/companyName",null,{"$f":"Periodos!$C$4","v":"2017-12-31"},{"$f":"#REF!","v":{"$error":"#REF!"}},{"$f":"#REF!","v":{"$error":"#REF!"}}]
[{"$error":"#REF!"},null,{"$f":"#REF!","v":{"$error":"#REF!"}},{"$f":"#REF!","v":{"$error":"#REF!"}},null,null,{"$f":"#REF!","v":{"$error":"#REF!"}},800001965,"http://www.xbrl.org/scheme/companyName",null,{"$f":"Periodos!$C$4","v":"2017-12-31"},{"$f":"#REF!","v":{"$error":"#REF!"}},{"$f":"#REF!","v":{"$error":"#REF!"}}]
[{"$error":"#REF!"},null,{"$f":"#REF!","v":{"$error":"#REF!"}},{"$f":"#REF!","v":{"$error":"#REF!"}},null,null,{"$f":"#REF!","v":{"$error":"#REF!"}},800001965,"http://www.xbrl.org/scheme/companyName",null,{"$f":"Periodos!$C$4","v":"2017-12-31"},{"$f":"#REF!","v":{"$error":"#REF!"}},{"$f":"#REF!","v":{"$error":"#REF!"}}]
[{"$error":"#REF!"},null,{"$f":"#REF!","v":{"$error":"#REF!"}},{"$f":"#REF!","v":{"$error":"#REF!"}},null,null,{"$f":"#REF!","v":{"$error":"#REF!"}},800001965,"http://www.xbrl.org/scheme/companyName",null,{"$f":"Periodos!$C$4","v":"2017-12-31"},{"$f":"#REF!","v":{"$error":"#REF!"}},{"$f":"#REF!","v":{"$error":"#REF!"}}]
[{"$error":"#REF!"},null,{"$f":"#REF!","v":{"$error":"#REF!"}},{"$f":"#REF!","v":{"$error":"#REF!"}},null,null,{"$f":"#REF!","v":{"$error":"#REF!"}},800001965,"http://www.xbrl.org/scheme/companyName",null,{"$f":"Periodos!$C$4","v":"2017-12-31"},{"$f":"#REF!","v":{"$error":"#REF!"}},{"$f":"#REF!","v":{"$error":"#REF!"}}]
[{"$error":"#REF!"},null,{"$f":"#REF!","v":{"$error":"#REF!"}},{"$f":"#REF!","v":{"$error":"#REF!"}},null,null,{"$f":"#REF!","v":{"$error":"#REF!"}},800001965,"http://www.xbrl.org/scheme/companyName",null,{"$f":"Periodos!$C$4","v":"2017-12-31"},{"$f":"#REF!","v":{"$error":"#REF!"}},{"$f":"#REF!","v":{"$error":"#REF!"}}]
[{"$error":"#REF!"},null,{"$f":"#REF!","v":{"$error":"#REF!"}},{"$f":"#REF!","v":{"$error":"#REF!"}},null,null,{"$f":"#REF!","v":{"$error":"#REF!"}},800001965,"http://www.xbrl.org/scheme/companyName",null,{"$f":"Periodos!$C$4","v":"2017-12-31"},{"$f":"#REF!","v":{"$error":"#REF!"}},{"$f":"#REF!","v":{"$error":"#REF!"}}]
[{"$error":"#REF!"},null,{"$f":"#REF!","v":{"$error":"#REF!"}},{"$f":"#REF!","v":{"$error":"#REF!"}},null,null,{"$f":"#REF!","v":{"$error":"#REF!"}},800001965,"http://www.xbrl.org/scheme/companyName",null,{"$f":"Periodos!$C$4","v":"2017-12-31"},{"$f":"#REF!","v":{"$error":"#REF!"}},{"$f":"#REF!","v":{"$error":"#REF!"}}]
[{"$error":"#REF!"},null,{"$f":"#REF!","v":{"$error":"#REF!"}},{"$f":"#REF!","v":{"$error":"#REF!"}},0,"peso",{"$f":"#REF!","v":{"$error":"#REF!"}},800001965,"http://www.xbrl.org/scheme/companyName",null,{"$f":"Periodos!$C$4","v":"2017-12-31"},{"$f":"#REF!","v":{"$error":"#REF!"}},{"$f":"#REF!","v":{"$error":"#REF!"}}]
["/*",null,"--95--"]
[{"$error":"#REF!"},null,{"$f":"#REF!","v":{"$error":"#REF!"}},{"$f":"#REF!","v":{"$error":"#REF!"}},null,null,{"$f":"#REF!","v":{"$error":"#REF!"}},800001965,"http://www.xbrl.org/scheme/companyName",null,{"$f":"Periodos!$C$4","v":"2017-12-31"},{"$f":"#REF!","v":{"$error":"#REF!"}},{"$f":"#REF!","v":{"$error":"#REF!"}}]
[{"$error":"#REF!"},null,{"$f":"#REF!","v":{"$error":"#REF!"}},{"$f":"#REF!","v":{"$error":"#REF!"}},null,null,{"$f":"#REF!","v":{"$error":"#REF!"}},800001965,"http://www.xbrl.org/scheme/companyName",null,{"$f":"Periodos!$C$4","v":"2017-12-31"},{"$f":"#REF!","v":{"$error":"#REF!"}},{"$f":"#REF!","v":{"$error":"#REF!"}}]
[{"$error":"#REF!"},null,{"$f":"#REF!","v":{"$error":"#REF!"}},{"$f":"#REF!","v":{"$error":"#REF!"}},null,null,{"$f":"#REF!","v":{"$error":"#REF!"}},800001965,"http://www.xbrl.org/scheme/companyName",null,{"$f":"Periodos!$C$4","v":"2017-12-31"},{"$f":"#REF!","v":{"$error":"#REF!"}},{"$f":"#REF!","v":{"$error":"#REF!"}}]
[{"$error":"#REF!"},null,{"$f":"#REF!","v":{"$error":"#REF!"}},{"$f":"#REF!","v":{"$error":"#REF!"}},null,null,{"$f":"#REF!","v":{"$error":"#REF!"}},800001965,"http://www.xbrl.org/scheme/companyName",null,{"$f":"Periodos!$C$4","v":"2017-12-31"},{"$f":"#REF!","v":{"$error":"#REF!"}},{"$f":"#REF!","v":{"$error":"#REF!"}}]
[{"$error":"#REF!"},null,{"$f":"#REF!","v":{"$error":"#REF!"}},{"$f":"#REF!","v":{"$error":"#REF!"}},null,null,{"$f":"#REF!","v":{"$error":"#REF!"}},800001965,"http://www.xbrl.org/scheme/companyName",null,{"$f":"Periodos!$C$4","v":"2017-12-31"},{"$f":"#REF!","v":{"$error":"#REF!"}},{"$f":"#REF!","v":{"$error":"#REF!"}}]
[{"$error":"#REF!"},null,{"$f":"#REF!","v":{"$error":"#REF!"}},{"$f":"#REF!","v":{"$error":"#REF!"}},null,null,{"$f":"#REF!","v":{"$error":"#REF!"}},800001965,"http://www.xbrl.org/scheme/companyName",null,{"$f":"Periodos!$C$4","v":"2017-12-31"},{"$f":"#REF!","v":{"$error":"#REF!"}},{"$f":"#REF!","v":{"$error":"#REF!"}}]
[{"$error":"#REF!"},null,{"$f":"#REF!","v":{"$error":"#REF!"}},{"$f":"#REF!","v":{"$error":"#REF!"}},null,null,{"$f":"#REF!","v":{"$error":"#REF!"}},800001965,"http://www.xbrl.org/scheme/companyName",null,{"$f":"Periodos!$C$4","v":"2017-12-31"},{"$f":"#REF!","v":{"$error":"#REF!"}},{"$f":"#REF!","v":{"$error":"#REF!"}}]
[{"$error":"#REF!"},null,{"$f":"#REF!","v":{"$error":"#REF!"}},{"$f":"#REF!","v":{"$error":"#REF!"}},null,null,{"$f":"#REF!","v":{"$error":"#REF!"}},800001965,"http://www.xbrl.org/scheme/companyName",null,{"$f":"Periodos!$C$4","v":"2017-12-31"},{"$f":"#REF!","v":{"$error":"#REF!"}},{"$f":"#REF!","v":{"$error":"#REF!"}}]
[{"$error":"#REF!"},null,{"$f":"#REF!","v":{"$error":"#REF!"}},{"$f":"#REF!","v":{"$error":"#REF!"}},null,null,{"$f":"#REF!","v":{"$error":"#REF!"}},800001965,"http://www.xbrl.org/scheme/companyName",null,{"$f":"Periodos!$C$4","v":"2017-12-31"},{"$f":"#REF!","v":{"$error":"#REF!"}},{"$f":"#REF!","v":{"$error":"#REF!"}}]
[{"$error":"#REF!"},null,{"$f":"#REF!","v":{"$error":"#REF!"}},{"$f":"#REF!","v":{"$error":"#REF!"}},null,null,{"$f":"#REF!","v":{"$error":"#REF!"}},800001965,"http://www.xbrl.org/scheme/companyName",null,{"$f":"Periodos!$C$4","v":"2017-12-31"},{"$f":"#REF!","v":{"$error":"#REF!"}},{"$f":"#REF!","v":{"$error":"#REF!"}}]
[{"$error":"#REF!"},null,{"$f":"#REF!","v":{"$error":"#REF!"}},{"$f":"#REF!","v":{"$error":"#REF!"}},null,null,{"$f":"#REF!","v":{"$error":"#REF!"}},800001965,"http://www.xbrl.org/scheme/companyName",null,{"$f":"Periodos!$C$4","v":"2017-12-31"},{"$f":"#REF!","v":{"$error":"#REF!"}},{"$f":"#REF!","v":{"$error":"#REF!"}}]
[{"$error":"#REF!"},null,{"$f":"#REF!","v":{"$error":"#REF!"}},{"$f":"#REF!","v":{"$error":"#REF!"}},0,"peso",{"$f":"#REF!","v":{"$error":"#REF!"}},800001965,"http://www.xbrl.org/scheme/companyName",null,{"$f":"Periodos!$C$4","v":"2017-12-31"},{"$f":"#REF!","v":{"$error":"#REF!"}},{"$f":"#REF!","v":{"$error":"#REF!"}}]
["/*",null,"--96--"]
[{"$error":"#REF!"},null,{"$f":"#REF!","v":{"$error":"#REF!"}},{"$f":"#REF!","v":{"$error":"#REF!"}},null,null,{"$f":"#REF!","v":{"$error":"#REF!"}},800001965,"http://www.xbrl.org/scheme/companyName",null,{"$f":"Periodos!$C$4","v":"2017-12-31"},{"$f":"#REF!","v":{"$error":"#REF!"}},{"$f":"#REF!","v":{"$error":"#REF!"}}]
[{"$error":"#REF!"},null,{"$f":"#REF!","v":{"$error":"#REF!"}},{"$f":"#REF!","v":{"$error":"#REF!"}},null,null,{"$f":"#REF!","v":{"$error":"#REF!"}},800001965,"http://www.xbrl.org/scheme/companyName",null,{"$f":"Periodos!$C$4","v":"2017-12-31"},{"$f":"#REF!","v":{"$error":"#REF!"}},{"$f":"#REF!","v":{"$error":"#REF!"}}]
[{"$error":"#REF!"},null,{"$f":"#REF!","v":{"$error":"#REF!"}},{"$f":"#REF!","v":{"$error":"#REF!"}},null,null,{"$f":"#REF!","v":{"$error":"#REF!"}},800001965,"http://www.xbrl.org/scheme/companyName",null,{"$f":"Periodos!$C$4","v":"2017-12-31"},{"$f":"#REF!","v":{"$error":"#REF!"}},{"$f":"#REF!","v":{"$error":"#REF!"}}]
[{"$error":"#REF!"},null,{"$f":"#REF!","v":{"$error":"#REF!"}},{"$f":"#REF!","v":{"$error":"#REF!"}},null,null,{"$f":"#REF!","v":{"$error":"#REF!"}},800001965,"http://www.xbrl.org/scheme/companyName",null,{"$f":"Periodos!$C$4","v":"2017-12-31"},{"$f":"#REF!","v":{"$error":"#REF!"}},{"$f":"#REF!","v":{"$error":"#REF!"}}]
[{"$error":"#REF!"},null,{"$f":"#REF!","v":{"$error":"#REF!"}},{"$f":"#REF!","v":{"$error":"#REF!"}},null,null,{"$f":"#REF!","v":{"$error":"#REF!"}},800001965,"http://www.xbrl.org/scheme/companyName",null,{"$f":"Periodos!$C$4","v":"2017-12-31"},{"$f":"#REF!","v":{"$error":"#REF!"}},{"$f":"#REF!","v":{"$error":"#REF!"}}]
[{"$error":"#REF!"},null,{"$f":"#REF!","v":{"$error":"#REF!"}},{"$f":"#REF!","v":{"$error":"#REF!"}},null,null,{"$f":"#REF!","v":{"$error":"#REF!"}},800001965,"http://www.xbrl.org/scheme/companyName",null,{"$f":"Periodos!$C$4","v":"2017-12-31"},{"$f":"#REF!","v":{"$error":"#REF!"}},{"$f":"#REF!","v":{"$error":"#REF!"}}]
[{"$error":"#REF!"},null,{"$f":"#REF!","v":{"$error":"#REF!"}},{"$f":"#REF!","v":{"$error":"#REF!"}},null,null,{"$f":"#REF!","v":{"$error":"#REF!"}},800001965,"http://www.xbrl.org/scheme/companyName",null,{"$f":"Periodos!$C$4","v":"2017-12-31"},{"$f":"#REF!","v":{"$error":"#REF!"}},{"$f":"#REF!","v":{"$error":"#REF!"}}]
[{"$error":"#REF!"},null,{"$f":"#REF!","v":{"$error":"#REF!"}},{"$f":"#REF!","v":{"$error":"#REF!"}},null,null,{"$f":"#REF!","v":{"$error":"#REF!"}},800001965,"http://www.xbrl.org/scheme/companyName",null,{"$f":"Periodos!$C$4","v":"2017-12-31"},{"$f":"#REF!","v":{"$error":"#REF!"}},{"$f":"#REF!","v":{"$error":"#REF!"}}]
[{"$f":"IF(G2913=\"\",\"/*\",\"\")","v":{"$error":"#REF!"}},null,{"$f":"#REF!","v":{"$error":"#REF!"}},{"$f":"#REF!","v":{"$error":"#REF!"}},null,null,{"$f":"#REF!","v":{"$error":"#REF!"}},800001965,"http://www.xbrl.org/scheme/companyName",null,{"$f":"Periodos!$C$4","v":"2017-12-31"},{"$f":"#REF!","v":{"$error":"#REF!"}},{"$f":"#REF!","v":{"$error":"#REF!"}}]
[{"$error":"#REF!"},null,{"$f":"#REF!","v":{"$error":"#REF!"}},{"$f":"#REF!","v":{"$error":"#REF!"}},null,null,{"$f":"#REF!","v":{"$error":"#REF!"}},800001965,"http://www.xbrl.org/scheme/companyName",null,{"$f":"Periodos!$C$4","v":"2017-12-31"},{"$f":"#REF!","v":{"$error":"#REF!"}},{"$f":"#REF!","v":{"$error":"#REF!"}}]
[{"$error":"#REF!"},null,{"$f":"#REF!","v":{"$error":"#REF!"}},{"$f":"#REF!","v":{"$error":"#REF!"}},null,null,{"$f":"#REF!","v":{"$error":"#REF!"}},800001965,"http://www.xbrl.org/scheme/companyName",null,{"$f":"Periodos!$C$4","v":"2017-12-31"},{"$f":"#REF!","v":{"$error":"#REF!"}},{"$f":"#REF!","v":{"$error":"#REF!"}}]
[{"$error":"#REF!"},null,{"$f":"#REF!","v":{"$error":"#REF!"}},{"$f":"#REF!","v":{"$error":"#REF!"}},0,"peso",{"$f":"#REF!","v":{"$error":"#REF!"}},800001965,"http://www.xbrl.org/scheme/companyName",null,{"$f":"Periodos!$C$4","v":"2017-12-31"},{"$f":"#REF!","v":{"$error":"#REF!"}},{"$f":"#REF!","v":{"$error":"#REF!"}}]
["/*",null,"--97--"]
[{"$error":"#REF!"},null,{"$f":"#REF!","v":{"$error":"#REF!"}},{"$f":"#REF!","v":{"$error":"#REF!"}},null,null,{"$f":"#REF!","v":{"$error":"#REF!"}},800001965,"http://www.xbrl.org/scheme/companyName",null,{"$f":"Periodos!$C$4","v":"2017-12-31"},{"$f":"#REF!","v":{"$error":"#REF!"}},{"$f":"#REF!","v":{"$error":"#REF!"}}]
[{"$error":"#REF!"},null,{"$f":"#REF!","v":{"$error":"#REF!"}},{"$f":"#REF!","v":{"$error":"#REF!"}},null,null,{"$f":"#REF!","v":{"$error":"#REF!"}},800001965,"http://www.xbrl.org/scheme/companyName",null,{"$f":"Periodos!$C$4","v":"2017-12-31"},{"$f":"#REF!","v":{"$error":"#REF!"}},{"$f":"#REF!","v":{"$error":"#REF!"}}]
[{"$error":"#REF!"},null,{"$f":"#REF!","v":{"$error":"#REF!"}},{"$f":"#REF!","v":{"$error":"#REF!"}},null,null,{"$f":"#REF!","v":{"$error":"#REF!"}},800001965,"http://www.xbrl.org/scheme/companyName",null,{"$f":"Periodos!$C$4","v":"2017-12-31"},{"$f":"#REF!","v":{"$error":"#REF!"}},{"$f":"#REF!","v":{"$error":"#REF!"}}]
[{"$error":"#REF!"},null,{"$f":"#REF!","v":{"$error":"#REF!"}},{"$f":"#REF!","v":{"$error":"#REF!"}},null,null,{"$f":"#REF!","v":{"$error":"#REF!"}},800001965,"http://www.xbrl.org/scheme/companyName",null,{"$f":"Periodos!$C$4","v":"2017-12-31"},{"$f":"#REF!","v":{"$error":"#REF!"}},{"$f":"#REF!","v":{"$error":"#REF!"}}]
[{"$error":"#REF!"},null,{"$f":"#REF!","v":{"$error":"#REF!"}},{"$f":"#REF!","v":{"$error":"#REF!"}},null,null,{"$f":"#REF!","v":{"$error":"#REF!"}},800001965,"http://www.xbrl.org/scheme/companyName",null,{"$f":"Periodos!$C$4","v":"2017-12-31"},{"$f":"#REF!","v":{"$error":"#REF!"}},{"$f":"#REF!","v":{"$error":"#REF!"}}]
[{"$error":"#REF!"},null,{"$f":"#REF!","v":{"$error":"#REF!"}},{"$f":"#REF!","v":{"$error":"#REF!"}},null,null,{"$f":"#REF!","v":{"$error":"#REF!"}},800001965,"http://www.xbrl.org/scheme/companyName",null,{"$f":"Periodos!$C$4","v":"2017-12-31"},{"$f":"#REF!","v":{"$error":"#REF!"}},{"$f":"#REF!","v":{"$error":"#REF!"}}]
[{"$error":"#REF!"},null,{"$f":"#REF!","v":{"$error":"#REF!"}},{"$f":"#REF!","v":{"$error":"#REF!"}},null,null,{"$f":"#REF!","v":{"$error":"#REF!"}},800001965,"http://www.xbrl.org/scheme/companyName",null,{"$f":"Periodos!$C$4","v":"2017-12-31"},{"$f":"#REF!","v":{"$error":"#REF!"}},{"$f":"#REF!","v":{"$error":"#REF!"}}]
[{"$error":"#REF!"},null,{"$f":"#REF!","v":{"$error":"#REF!"}},{"$f":"#REF!","v":{"$error":"#REF!"}},null,null,{"$f":"#REF!","v":{"$error":"#REF!"}},800001965,"http://www.xbrl.org/scheme/companyName",null,{"$f":"Periodos!$C$4","v":"2017-12-31"},{"$f":"#REF!","v":{"$error":"#REF!"}},{"$f":"#REF!","v":{"$error":"#REF!"}}]
[{"$error":"#REF!"},null,{"$f":"#REF!","v":{"$error":"#REF!"}},{"$f":"#REF!","v":{"$error":"#REF!"}},null,null,{"$f":"#REF!","v":{"$error":"#REF!"}},800001965,"http://www.xbrl.org/scheme/companyName",null,{"$f":"Periodos!$C$4","v":"2017-12-31"},{"$f":"#REF!","v":{"$error":"#REF!"}},{"$f":"#REF!","v":{"$error":"#REF!"}}]
[{"$error":"#REF!"},null,{"$f":"#REF!","v":{"$error":"#REF!"}},{"$f":"#REF!","v":{"$error":"#REF!"}},null,null,{"$f":"#REF!","v":{"$error":"#REF!"}},800001965,"http://www.xbrl.org/scheme/companyName",null,{"$f":"Periodos!$C$4","v":"2017-12-31"},{"$f":"#REF!","v":{"$error":"#REF!"}},{"$f":"#REF!","v":{"$error":"#REF!"}}]
[{"$error":"#REF!"},null,{"$f":"#REF!","v":{"$error":"#REF!"}},{"$f":"#REF!","v":{"$error":"#REF!"}},null,null,{"$f":"#REF!","v":{"$error":"#REF!"}},800001965,"http://www.xbrl.org/scheme/companyName",null,{"$f":"Periodos!$C$4","v":"2017-12-31"},{"$f":"#REF!","v":{"$error":"#REF!"}},{"$f":"#REF!","v":{"$error":"#REF!"}}]
[{"$error":"#REF!"},null,{"$f":"#REF!","v":{"$error":"#REF!"}},{"$f":"#REF!","v":{"$error":"#REF!"}},0,"peso",{"$f":"#REF!","v":{"$error":"#REF!"}},800001965,"http://www.xbrl.org/scheme/companyName",null,{"$f":"Periodos!$C$4","v":"2017-12-31"},{"$f":"#REF!","v":{"$error":"#REF!"}},{"$f":"#REF!","v":{"$error":"#REF!"}}]
["/*",null,"--98--"]
[{"$error":"#REF!"},null,{"$f":"#REF!","v":{"$error":"#REF!"}},{"$f":"#REF!","v":{"$error":"#REF!"}},null,null,{"$f":"#REF!","v":{"$error":"#REF!"}},800001965,"http://www.xbrl.org/scheme/companyName",null,{"$f":"Periodos!$C$4","v":"2017-12-31"},{"$f":"#REF!","v":{"$error":"#REF!"}},{"$f":"#REF!","v":{"$error":"#REF!"}}]
[{"$error":"#REF!"},null,{"$f":"#REF!","v":{"$error":"#REF!"}},{"$f":"#REF!","v":{"$error":"#REF!"}},null,null,{"$f":"#REF!","v":{"$error":"#REF!"}},800001965,"http://www.xbrl.org/scheme/companyName",null,{"$f":"Periodos!$C$4","v":"2017-12-31"},{"$f":"#REF!","v":{"$error":"#REF!"}},{"$f":"#REF!","v":{"$error":"#REF!"}}]
[{"$error":"#REF!"},null,{"$f":"#REF!","v":{"$error":"#REF!"}},{"$f":"#REF!","v":{"$error":"#REF!"}},null,null,{"$f":"#REF!","v":{"$error":"#REF!"}},800001965,"http://www.xbrl.org/scheme/companyName",null,{"$f":"Periodos!$C$4","v":"2017-12-31"},{"$f":"#REF!","v":{"$error":"#REF!"}},{"$f":"#REF!","v":{"$error":"#REF!"}}]
[{"$error":"#REF!"},null,{"$f":"#REF!","v":{"$error":"#REF!"}},{"$f":"#REF!","v":{"$error":"#REF!"}},null,null,{"$f":"#REF!","v":{"$error":"#REF!"}},800001965,"http://www.xbrl.org/scheme/companyName",null,{"$f":"Periodos!$C$4","v":"2017-12-31"},{"$f":"#REF!","v":{"$error":"#REF!"}},{"$f":"#REF!","v":{"$error":"#REF!"}}]
[{"$error":"#REF!"},null,{"$f":"#REF!","v":{"$error":"#REF!"}},{"$f":"#REF!","v":{"$error":"#REF!"}},null,null,{"$f":"#REF!","v":{"$error":"#REF!"}},800001965,"http://www.xbrl.org/scheme/companyName",null,{"$f":"Periodos!$C$4","v":"2017-12-31"},{"$f":"#REF!","v":{"$error":"#REF!"}},{"$f":"#REF!","v":{"$error":"#REF!"}}]
[{"$error":"#REF!"},null,{"$f":"#REF!","v":{"$error":"#REF!"}},{"$f":"#REF!","v":{"$error":"#REF!"}},null,null,{"$f":"#REF!","v":{"$error":"#REF!"}},800001965,"http://www.xbrl.org/scheme/companyName",null,{"$f":"Periodos!$C$4","v":"2017-12-31"},{"$f":"#REF!","v":{"$error":"#REF!"}},{"$f":"#REF!","v":{"$error":"#REF!"}}]
[{"$error":"#REF!"},null,{"$f":"#REF!","v":{"$error":"#REF!"}},{"$f":"#REF!","v":{"$error":"#REF!"}},null,null,{"$f":"#REF!","v":{"$error":"#REF!"}},800001965,"http://www.xbrl.org/scheme/companyName",null,{"$f":"Periodos!$C$4","v":"2017-12-31"},{"$f":"#REF!","v":{"$error":"#REF!"}},{"$f":"#REF!","v":{"$error":"#REF!"}}]
[{"$error":"#REF!"},null,{"$f":"#REF!","v":{"$error":"#REF!"}},{"$f":"#REF!","v":{"$error":"#REF!"}},null,null,{"$f":"#REF!","v":{"$error":"#REF!"}},800001965,"http://www.xbrl.org/scheme/companyName",null,{"$f":"Periodos!$C$4","v":"2017-12-31"},{"$f":"#REF!","v":{"$error":"#REF!"}},{"$f":"#REF!","v":{"$error":"#REF!"}}]
[{"$error":"#REF!"},null,{"$f":"#REF!","v":{"$error":"#REF!"}},{"$f":"#REF!","v":{"$error":"#REF!"}},null,null,{"$f":"#REF!","v":{"$error":"#REF!"}},800001965,"http://www.xbrl.org/scheme/companyName",null,{"$f":"Periodos!$C$4","v":"2017-12-31"},{"$f":"#REF!","v":{"$error":"#REF!"}},{"$f":"#REF!","v":{"$error":"#REF!"}}]
[{"$error":"#REF!"},null,{"$f":"#REF!","v":{"$error":"#REF!"}},{"$f":"#REF!","v":{"$error":"#REF!"}},null,null,{"$f":"#REF!","v":{"$error":"#REF!"}},800001965,"http://www.xbrl.org/scheme/companyName",null,{"$f":"Periodos!$C$4","v":"2017-12-31"},{"$f":"#REF!","v":{"$error":"#REF!"}},{"$f":"#REF!","v":{"$error":"#REF!"}}]
[{"$error":"#REF!"},null,{"$f":"#REF!","v":{"$error":"#REF!"}},{"$f":"#REF!","v":{"$error":"#REF!"}},null,null,{"$f":"#REF!","v":{"$error":"#REF!"}},800001965,"http://www.xbrl.org/scheme/companyName",null,{"$f":"Periodos!$C$4","v":"2017-12-31"},{"$f":"#REF!","v":{"$error":"#REF!"}},{"$f":"#REF!","v":{"$error":"#REF!"}}]
[{"$error":"#REF!"},null,{"$f":"#REF!","v":{"$error":"#REF!"}},{"$f":"#REF!","v":{"$error":"#REF!"}},0,"peso",{"$f":"#REF!","v":{"$error":"#REF!"}},800001965,"http://www.xbrl.org/scheme/companyName",null,{"$f":"Periodos!$C$4","v":"2017-12-31"},{"$f":"#REF!","v":{"$error":"#REF!"}},{"$f":"#REF!","v":{"$error":"#REF!"}}]
["/*",null,"--99--"]
[{"$error":"#REF!"},null,{"$f":"#REF!","v":{"$error":"#REF!"}},{"$f":"#REF!","v":{"$error":"#REF!"}},null,null,{"$f":"#REF!","v":{"$error":"#REF!"}},800001965,"http://www.xbrl.org/scheme/companyName",null,{"$f":"Periodos!$C$4","v":"2017-12-31"},{"$f":"#REF!","v":{"$error":"#REF!"}},{"$f":"#REF!","v":{"$error":"#REF!"}}]
[{"$error":"#REF!"},null,{"$f":"#REF!","v":{"$error":"#REF!"}},{"$f":"#REF!","v":{"$error":"#REF!"}},null,null,{"$f":"#REF!","v":{"$error":"#REF!"}},800001965,"http://www.xbrl.org/scheme/companyName",null,{"$f":"Periodos!$C$4","v":"2017-12-31"},{"$f":"#REF!","v":{"$error":"#REF!"}},{"$f":"#REF!","v":{"$error":"#REF!"}}]
[{"$error":"#REF!"},null,{"$f":"#REF!","v":{"$error":"#REF!"}},{"$f":"#REF!","v":{"$error":"#REF!"}},null,null,{"$f":"#REF!","v":{"$error":"#REF!"}},800001965,"http://www.xbrl.org/scheme/companyName",null,{"$f":"Periodos!$C$4","v":"2017-12-31"},{"$f":"#REF!","v":{"$error":"#REF!"}},{"$f":"#REF!","v":{"$error":"#REF!"}}]
[{"$error":"#REF!"},null,{"$f":"#REF!","v":{"$error":"#REF!"}},{"$f":"#REF!","v":{"$error":"#REF!"}},null,null,{"$f":"#REF!","v":{"$error":"#REF!"}},800001965,"http://www.xbrl.org/scheme/companyName",null,{"$f":"Periodos!$C$4","v":"2017-12-31"},{"$f":"#REF!","v":{"$error":"#REF!"}},{"$f":"#REF!","v":{"$error":"#REF!"}}]
[{"$error":"#REF!"},null,{"$f":"#REF!","v":{"$error":"#REF!"}},{"$f":"#REF!","v":{"$error":"#REF!"}},null,null,{"$f":"#REF!","v":{"$error":"#REF!"}},800001965,"http://www.xbrl.org/scheme/companyName",null,{"$f":"Periodos!$C$4","v":"2017-12-31"},{"$f":"#REF!","v":{"$error":"#REF!"}},{"$f":"#REF!","v":{"$error":"#REF!"}}]
[{"$error":"#REF!"},null,{"$f":"#REF!","v":{"$error":"#REF!"}},{"$f":"#REF!","v":{"$error":"#REF!"}},null,null,{"$f":"#REF!","v":{"$error":"#REF!"}},800001965,"http://www.xbrl.org/scheme/companyName",null,{"$f":"Periodos!$C$4","v":"2017-12-31"},{"$f":"#REF!","v":{"$error":"#REF!"}},{"$f":"#REF!","v":{"$error":"#REF!"}}]
[{"$error":"#REF!"},null,{"$f":"#REF!","v":{"$error":"#REF!"}},{"$f":"#REF!","v":{"$error":"#REF!"}},null,null,{"$f":"#REF!","v":{"$error":"#REF!"}},800001965,"http://www.xbrl.org/scheme/companyName",null,{"$f":"Periodos!$C$4","v":"2017-12-31"},{"$f":"#REF!","v":{"$error":"#REF!"}},{"$f":"#REF!","v":{"$error":"#REF!"}}]
[{"$error":"#REF!"},null,{"$f":"#REF!","v":{"$error":"#REF!"}},{"$f":"#REF!","v":{"$error":"#REF!"}},null,null,{"$f":"#REF!","v":{"$error":"#REF!"}},800001965,"http://www.xbrl.org/scheme/companyName",null,{"$f":"Periodos!$C$4","v":"2017-12-31"},{"$f":"#REF!","v":{"$error":"#REF!"}},{"$f":"#REF!","v":{"$error":"#REF!"}}]
[{"$error":"#REF!"},null,{"$f":"#REF!","v":{"$error":"#REF!"}},{"$f":"#REF!","v":{"$error":"#REF!"}},null,null,{"$f":"#REF!","v":{"$error":"#REF!"}},800001965,"http://www.xbrl.org/scheme/companyName",null,{"$f":"Periodos!$C$4","v":"2017-12-31"},{"$f":"#REF!","v":{"$error":"#REF!"}},{"$f":"#REF!","v":{"$error":"#REF!"}}]
[{"$error":"#REF!"},null,{"$f":"#REF!","v":{"$error":"#REF!"}},{"$f":"#REF!","v":{"$error":"#REF!"}},null,null,{"$f":"#REF!","v":{"$error":"#REF!"}},800001965,"http://www.xbrl.org/scheme/companyName",null,{"$f":"Periodos!$C$4","v":"2017-12-31"},{"$f":"#REF!","v":{"$error":"#REF!"}},{"$f":"#REF!","v":{"$error":"#REF!"}}]
[{"$error":"#REF!"},null,{"$f":"#REF!","v":{"$error":"#REF!"}},{"$f":"#REF!","v":{"$error":"#REF!"}},null,null,{"$f":"#REF!","v":{"$error":"#REF!"}},800001965,"http://www.xbrl.org/scheme/companyName",null,{"$f":"Periodos!$C$4","v":"2017-12-31"},{"$f":"#REF!","v":{"$error":"#REF!"}},{"$f":"#REF!","v":{"$error":"#REF!"}}]
[{"$error":"#REF!"},null,{"$f":"#REF!","v":{"$error":"#REF!"}},{"$f":"#REF!","v":{"$error":"#REF!"}},0,"peso",{"$f":"#REF!","v":{"$error":"#REF!"}},800001965,"http://www.xbrl.org/scheme/companyName",null,{"$f":"Periodos!$C$4","v":"2017-12-31"},{"$f":"#REF!","v":{"$error":"#REF!"}},{"$f":"#REF!","v":{"$error":"#REF!"}}]
["/*",null,"--100--"]
[{"$error":"#REF!"},null,{"$f":"#REF!","v":{"$error":"#REF!"}},{"$f":"#REF!","v":{"$error":"#REF!"}},null,null,{"$f":"#REF!","v":{"$error":"#REF!"}},800001965,"http://www.xbrl.org/scheme/companyName",null,{"$f":"Periodos!$C$4","v":"2017-12-31"},{"$f":"#REF!","v":{"$error":"#REF!"}},{"$f":"#REF!","v":{"$error":"#REF!"}}]
[{"$error":"#REF!"},null,{"$f":"#REF!","v":{"$error":"#REF!"}},{"$f":"#REF!","v":{"$error":"#REF!"}},null,null,{"$f":"#REF!","v":{"$error":"#REF!"}},800001965,"http://www.xbrl.org/scheme/companyName",null,{"$f":"Periodos!$C$4","v":"2017-12-31"},{"$f":"#REF!","v":{"$error":"#REF!"}},{"$f":"#REF!","v":{"$error":"#REF!"}}]
[{"$error":"#REF!"},null,{"$f":"#REF!","v":{"$error":"#REF!"}},{"$f":"#REF!","v":{"$error":"#REF!"}},null,null,{"$f":"#REF!","v":{"$error":"#REF!"}},800001965,"http://www.xbrl.org/scheme/companyName",null,{"$f":"Periodos!$C$4","v":"2017-12-31"},{"$f":"#REF!","v":{"$error":"#REF!"}},{"$f":"#REF!","v":{"$error":"#REF!"}}]
[{"$error":"#REF!"},null,{"$f":"#REF!","v":{"$error":"#REF!"}},{"$f":"#REF!","v":{"$error":"#REF!"}},null,null,{"$f":"#REF!","v":{"$error":"#REF!"}},800001965,"http://www.xbrl.org/scheme/companyName",null,{"$f":"Periodos!$C$4","v":"2017-12-31"},{"$f":"#REF!","v":{"$error":"#REF!"}},{"$f":"#REF!","v":{"$error":"#REF!"}}]
[{"$error":"#REF!"},null,{"$f":"#REF!","v":{"$error":"#REF!"}},{"$f":"#REF!","v":{"$error":"#REF!"}},null,null,{"$f":"#REF!","v":{"$error":"#REF!"}},800001965,"http://www.xbrl.org/scheme/companyName",null,{"$f":"Periodos!$C$4","v":"2017-12-31"},{"$f":"#REF!","v":{"$error":"#REF!"}},{"$f":"#REF!","v":{"$error":"#REF!"}}]
[{"$error":"#REF!"},null,{"$f":"#REF!","v":{"$error":"#REF!"}},{"$f":"#REF!","v":{"$error":"#REF!"}},null,null,{"$f":"#REF!","v":{"$error":"#REF!"}},800001965,"http://www.xbrl.org/scheme/companyName",null,{"$f":"Periodos!$C$4","v":"2017-12-31"},{"$f":"#REF!","v":{"$error":"#REF!"}},{"$f":"#REF!","v":{"$error":"#REF!"}}]
[{"$error":"#REF!"},null,{"$f":"#REF!","v":{"$error":"#REF!"}},{"$f":"#REF!","v":{"$error":"#REF!"}},null,null,{"$f":"#REF!","v":{"$error":"#REF!"}},800001965,"http://www.xbrl.org/scheme/companyName",null,{"$f":"Periodos!$C$4","v":"2017-12-31"},{"$f":"#REF!","v":{"$error":"#REF!"}},{"$f":"#REF!","v":{"$error":"#REF!"}}]
[{"$error":"#REF!"},null,{"$f":"#REF!","v":{"$error":"#REF!"}},{"$f":"#REF!","v":{"$error":"#REF!"}},null,null,{"$f":"#REF!","v":{"$error":"#REF!"}},800001965,"http://www.xbrl.org/scheme/companyName",null,{"$f":"Periodos!$C$4","v":"2017-12-31"},{"$f":"#REF!","v":{"$error":"#REF!"}},{"$f":"#REF!","v":{"$error":"#REF!"}}]
[{"$error":"#REF!"},null,{"$f":"#REF!","v":{"$error":"#REF!"}},{"$f":"#REF!","v":{"$error":"#REF!"}},null,null,{"$f":"#REF!","v":{"$error":"#REF!"}},800001965,"http://www.xbrl.org/scheme/companyName",null,{"$f":"Periodos!$C$4","v":"2017-12-31"},{"$f":"#REF!","v":{"$error":"#REF!"}},{"$f":"#REF!","v":{"$error":"#REF!"}}]
[{"$error":"#REF!"},null,{"$f":"#REF!","v":{"$error":"#REF!"}},{"$f":"#REF!","v":{"$error":"#REF!"}},null,null,{"$f":"#REF!","v":{"$error":"#REF!"}},800001965,"http://www.xbrl.org/scheme/companyName",null,{"$f":"Periodos!$C$4","v":"2017-12-31"},{"$f":"#REF!","v":{"$error":"#REF!"}},{"$f":"#REF!","v":{"$error":"#REF!"}}]
[{"$error":"#REF!"},null,{"$f":"#REF!","v":{"$error":"#REF!"}},{"$f":"#REF!","v":{"$error":"#REF!"}},null,null,{"$f":"#REF!","v":{"$error":"#REF!"}},800001965,"http://www.xbrl.org/scheme/companyName",null,{"$f":"Periodos!$C$4","v":"2017-12-31"},{"$f":"#REF!","v":{"$error":"#REF!"}},{"$f":"#REF!","v":{"$error":"#REF!"}}]
[{"$error":"#REF!"},null,{"$f":"#REF!","v":{"$error":"#REF!"}},{"$f":"#REF!","v":{"$error":"#REF!"}},0,"peso",{"$f":"#REF!","v":{"$error":"#REF!"}},800001965,"http://www.xbrl.org/scheme/companyName",null,{"$f":"Periodos!$C$4","v":"2017-12-31"},{"$f":"#REF!","v":{"$error":"#REF!"}},{"$f":"#REF!","v":{"$error":"#REF!"}}]
["/*",null,"--101--"]
[{"$error":"#REF!"},null,{"$f":"#REF!","v":{"$error":"#REF!"}},{"$f":"#REF!","v":{"$error":"#REF!"}},null,null,{"$f":"#REF!","v":{"$error":"#REF!"}},800001965,"http://www.xbrl.org/scheme/companyName",null,{"$f":"Periodos!$C$4","v":"2017-12-31"},{"$f":"#REF!","v":{"$error":"#REF!"}},{"$f":"#REF!","v":{"$error":"#REF!"}}]
[{"$error":"#REF!"},null,{"$f":"#REF!","v":{"$error":"#REF!"}},{"$f":"#REF!","v":{"$error":"#REF!"}},null,null,{"$f":"#REF!","v":{"$error":"#REF!"}},800001965,"http://www.xbrl.org/scheme/companyName",null,{"$f":"Periodos!$C$4","v":"2017-12-31"},{"$f":"#REF!","v":{"$error":"#REF!"}},{"$f":"#REF!","v":{"$error":"#REF!"}}]
[{"$error":"#REF!"},null,{"$f":"#REF!","v":{"$error":"#REF!"}},{"$f":"#REF!","v":{"$error":"#REF!"}},null,null,{"$f":"#REF!","v":{"$error":"#REF!"}},800001965,"http://www.xbrl.org/scheme/companyName",null,{"$f":"Periodos!$C$4","v":"2017-12-31"},{"$f":"#REF!","v":{"$error":"#REF!"}},{"$f":"#REF!","v":{"$error":"#REF!"}}]
[{"$error":"#REF!"},null,{"$f":"#REF!","v":{"$error":"#REF!"}},{"$f":"#REF!","v":{"$error":"#REF!"}},null,null,{"$f":"#REF!","v":{"$error":"#REF!"}},800001965,"http://www.xbrl.org/scheme/companyName",null,{"$f":"Periodos!$C$4","v":"2017-12-31"},{"$f":"#REF!","v":{"$error":"#REF!"}},{"$f":"#REF!","v":{"$error":"#REF!"}}]
[{"$error":"#REF!"},null,{"$f":"#REF!","v":{"$error":"#REF!"}},{"$f":"#REF!","v":{"$error":"#REF!"}},null,null,{"$f":"#REF!","v":{"$error":"#REF!"}},800001965,"http://www.xbrl.org/scheme/companyName",null,{"$f":"Periodos!$C$4","v":"2017-12-31"},{"$f":"#REF!","v":{"$error":"#REF!"}},{"$f":"#REF!","v":{"$error":"#REF!"}}]
[{"$error":"#REF!"},null,{"$f":"#REF!","v":{"$error":"#REF!"}},{"$f":"#REF!","v":{"$error":"#REF!"}},null,null,{"$f":"#REF!","v":{"$error":"#REF!"}},800001965,"http://www.xbrl.org/scheme/companyName",null,{"$f":"Periodos!$C$4","v":"2017-12-31"},{"$f":"#REF!","v":{"$error":"#REF!"}},{"$f":"#REF!","v":{"$error":"#REF!"}}]
[{"$error":"#REF!"},null,{"$f":"#REF!","v":{"$error":"#REF!"}},{"$f":"#REF!","v":{"$error":"#REF!"}},null,null,{"$f":"#REF!","v":{"$error":"#REF!"}},800001965,"http://www.xbrl.org/scheme/companyName",null,{"$f":"Periodos!$C$4","v":"2017-12-31"},{"$f":"#REF!","v":{"$error":"#REF!"}},{"$f":"#REF!","v":{"$error":"#REF!"}}]
[{"$f":"IF(G2977=\"\",\"/*\",\"\")","v":{"$error":"#REF!"}},null,{"$f":"#REF!","v":{"$error":"#REF!"}},{"$f":"#REF!","v":{"$error":"#REF!"}},null,null,{"$f":"#REF!","v":{"$error":"#REF!"}},800001965,"http://www.xbrl.org/scheme/companyName",null,{"$f":"Periodos!$C$4","v":"2017-12-31"},{"$f":"#REF!","v":{"$error":"#REF!"}},{"$f":"#REF!","v":{"$error":"#REF!"}}]
[{"$error":"#REF!"},null,{"$f":"#REF!","v":{"$error":"#REF!"}},{"$f":"#REF!","v":{"$error":"#REF!"}},null,null,{"$f":"#REF!","v":{"$error":"#REF!"}},800001965,"http://www.xbrl.org/scheme/companyName",null,{"$f":"Periodos!$C$4","v":"2017-12-31"},{"$f":"#REF!","v":{"$error":"#REF!"}},{"$f":"#REF!","v":{"$error":"#REF!"}}]
[{"$error":"#REF!"},null,{"$f":"#REF!","v":{"$error":"#REF!"}},{"$f":"#REF!","v":{"$error":"#REF!"}},null,null,{"$f":"#REF!","v":{"$error":"#REF!"}},800001965,"http://www.xbrl.org/scheme/companyName",null,{"$f":"Periodos!$C$4","v":"2017-12-31"},{"$f":"#REF!","v":{"$error":"#REF!"}},{"$f":"#REF!","v":{"$error":"#REF!"}}]
[{"$error":"#REF!"},null,{"$f":"#REF!","v":{"$error":"#REF!"}},{"$f":"#REF!","v":{"$error":"#REF!"}},null,null,{"$f":"#REF!","v":{"$error":"#REF!"}},800001965,"http://www.xbrl.org/scheme/companyName",null,{"$f":"Periodos!$C$4","v":"2017-12-31"},{"$f":"#REF!","v":{"$error":"#REF!"}},{"$f":"#REF!","v":{"$error":"#REF!"}}]
[{"$error":"#REF!"},null,{"$f":"#REF!","v":{"$error":"#REF!"}},{"$f":"#REF!","v":{"$error":"#REF!"}},0,"peso",{"$f":"#REF!","v":{"$error":"#REF!"}},800001965,"http://www.xbrl.org/scheme/companyName",null,{"$f":"Periodos!$C$4","v":"2017-12-31"},{"$f":"#REF!","v":{"$error":"#REF!"}},{"$f":"#REF!","v":{"$error":"#REF!"}}]
["/*",null,"--102--"]
[{"$error":"#REF!"},null,{"$f":"#REF!","v":{"$error":"#REF!"}},{"$f":"#REF!","v":{"$error":"#REF!"}},null,null,{"$f":"#REF!","v":{"$error":"#REF!"}},800001965,"http://www.xbrl.org/scheme/companyName",null,{"$f":"Periodos!$C$4","v":"2017-12-31"},{"$f":"#REF!","v":{"$error":"#REF!"}},{"$f":"#REF!","v":{"$error":"#REF!"}}]
[{"$error":"#REF!"},null,{"$f":"#REF!","v":{"$error":"#REF!"}},{"$f":"#REF!","v":{"$error":"#REF!"}},null,null,{"$f":"#REF!","v":{"$error":"#REF!"}},800001965,"http://www.xbrl.org/scheme/companyName",null,{"$f":"Periodos!$C$4","v":"2017-12-31"},{"$f":"#REF!","v":{"$error":"#REF!"}},{"$f":"#REF!","v":{"$error":"#REF!"}}]
[{"$error":"#REF!"},null,{"$f":"#REF!","v":{"$error":"#REF!"}},{"$f":"#REF!","v":{"$error":"#REF!"}},null,null,{"$f":"#REF!","v":{"$error":"#REF!"}},800001965,"http://www.xbrl.org/scheme/companyName",null,{"$f":"Periodos!$C$4","v":"2017-12-31"},{"$f":"#REF!","v":{"$error":"#REF!"}},{"$f":"#REF!","v":{"$error":"#REF!"}}]
[{"$error":"#REF!"},null,{"$f":"#REF!","v":{"$error":"#REF!"}},{"$f":"#REF!","v":{"$error":"#REF!"}},null,null,{"$f":"#REF!","v":{"$error":"#REF!"}},800001965,"http://www.xbrl.org/scheme/companyName",null,{"$f":"Periodos!$C$4","v":"2017-12-31"},{"$f":"#REF!","v":{"$error":"#REF!"}},{"$f":"#REF!","v":{"$error":"#REF!"}}]
[{"$error":"#REF!"},null,{"$f":"#REF!","v":{"$error":"#REF!"}},{"$f":"#REF!","v":{"$error":"#REF!"}},null,null,{"$f":"#REF!","v":{"$error":"#REF!"}},800001965,"http://www.xbrl.org/scheme/companyName",null,{"$f":"Periodos!$C$4","v":"2017-12-31"},{"$f":"#REF!","v":{"$error":"#REF!"}},{"$f":"#REF!","v":{"$error":"#REF!"}}]
[{"$error":"#REF!"},null,{"$f":"#REF!","v":{"$error":"#REF!"}},{"$f":"#REF!","v":{"$error":"#REF!"}},null,null,{"$f":"#REF!","v":{"$error":"#REF!"}},800001965,"http://www.xbrl.org/scheme/companyName",null,{"$f":"Periodos!$C$4","v":"2017-12-31"},{"$f":"#REF!","v":{"$error":"#REF!"}},{"$f":"#REF!","v":{"$error":"#REF!"}}]
[{"$error":"#REF!"},null,{"$f":"#REF!","v":{"$error":"#REF!"}},{"$f":"#REF!","v":{"$error":"#REF!"}},null,null,{"$f":"#REF!","v":{"$error":"#REF!"}},800001965,"http://www.xbrl.org/scheme/companyName",null,{"$f":"Periodos!$C$4","v":"2017-12-31"},{"$f":"#REF!","v":{"$error":"#REF!"}},{"$f":"#REF!","v":{"$error":"#REF!"}}]
[{"$error":"#REF!"},null,{"$f":"#REF!","v":{"$error":"#REF!"}},{"$f":"#REF!","v":{"$error":"#REF!"}},null,null,{"$f":"#REF!","v":{"$error":"#REF!"}},800001965,"http://www.xbrl.org/scheme/companyName",null,{"$f":"Periodos!$C$4","v":"2017-12-31"},{"$f":"#REF!","v":{"$error":"#REF!"}},{"$f":"#REF!","v":{"$error":"#REF!"}}]
[{"$error":"#REF!"},null,{"$f":"#REF!","v":{"$error":"#REF!"}},{"$f":"#REF!","v":{"$error":"#REF!"}},null,null,{"$f":"#REF!","v":{"$error":"#REF!"}},800001965,"http://www.xbrl.org/scheme/companyName",null,{"$f":"Periodos!$C$4","v":"2017-12-31"},{"$f":"#REF!","v":{"$error":"#REF!"}},{"$f":"#REF!","v":{"$error":"#REF!"}}]
[{"$error":"#REF!"},null,{"$f":"#REF!","v":{"$error":"#REF!"}},{"$f":"#REF!","v":{"$error":"#REF!"}},null,null,{"$f":"#REF!","v":{"$error":"#REF!"}},800001965,"http://www.xbrl.org/scheme/companyName",null,{"$f":"Periodos!$C$4","v":"2017-12-31"},{"$f":"#REF!","v":{"$error":"#REF!"}},{"$f":"#REF!","v":{"$error":"#REF!"}}]
[{"$error":"#REF!"},null,{"$f":"#REF!","v":{"$error":"#REF!"}},{"$f":"#REF!","v":{"$error":"#REF!"}},null,null,{"$f":"#REF!","v":{"$error":"#REF!"}},800001965,"http://www.xbrl.org/scheme/companyName",null,{"$f":"Periodos!$C$4","v":"2017-12-31"},{"$f":"#REF!","v":{"$error":"#REF!"}},{"$f":"#REF!","v":{"$error":"#REF!"}}]
[{"$error":"#REF!"},null,{"$f":"#REF!","v":{"$error":"#REF!"}},{"$f":"#REF!","v":{"$error":"#REF!"}},0,"peso",{"$f":"#REF!","v":{"$error":"#REF!"}},800001965,"http://www.xbrl.org/scheme/companyName",null,{"$f":"Periodos!$C$4","v":"2017-12-31"},{"$f":"#REF!","v":{"$error":"#REF!"}},{"$f":"#REF!","v":{"$error":"#REF!"}}]
["/*",null,"--103--"]
[{"$error":"#REF!"},null,{"$f":"#REF!","v":{"$error":"#REF!"}},{"$f":"#REF!","v":{"$error":"#REF!"}},null,null,{"$f":"#REF!","v":{"$error":"#REF!"}},800001965,"http://www.xbrl.org/scheme/companyName",null,{"$f":"Periodos!$C$4","v":"2017-12-31"},{"$f":"#REF!","v":{"$error":"#REF!"}},{"$f":"#REF!","v":{"$error":"#REF!"}}]
[{"$error":"#REF!"},null,{"$f":"#REF!","v":{"$error":"#REF!"}},{"$f":"#REF!","v":{"$error":"#REF!"}},null,null,{"$f":"#REF!","v":{"$error":"#REF!"}},800001965,"http://www.xbrl.org/scheme/companyName",null,{"$f":"Periodos!$C$4","v":"2017-12-31"},{"$f":"#REF!","v":{"$error":"#REF!"}},{"$f":"#REF!","v":{"$error":"#REF!"}}]
[{"$error":"#REF!"},null,{"$f":"#REF!","v":{"$error":"#REF!"}},{"$f":"#REF!","v":{"$error":"#REF!"}},null,null,{"$f":"#REF!","v":{"$error":"#REF!"}},800001965,"http://www.xbrl.org/scheme/companyName",null,{"$f":"Periodos!$C$4","v":"2017-12-31"},{"$f":"#REF!","v":{"$error":"#REF!"}},{"$f":"#REF!","v":{"$error":"#REF!"}}]
[{"$error":"#REF!"},null,{"$f":"#REF!","v":{"$error":"#REF!"}},{"$f":"#REF!","v":{"$error":"#REF!"}},null,null,{"$f":"#REF!","v":{"$error":"#REF!"}},800001965,"http://www.xbrl.org/scheme/companyName",null,{"$f":"Periodos!$C$4","v":"2017-12-31"},{"$f":"#REF!","v":{"$error":"#REF!"}},{"$f":"#REF!","v":{"$error":"#REF!"}}]
[{"$error":"#REF!"},null,{"$f":"#REF!","v":{"$error":"#REF!"}},{"$f":"#REF!","v":{"$error":"#REF!"}},null,null,{"$f":"#REF!","v":{"$error":"#REF!"}},800001965,"http://www.xbrl.org/scheme/companyName",null,{"$f":"Periodos!$C$4","v":"2017-12-31"},{"$f":"#REF!","v":{"$error":"#REF!"}},{"$f":"#REF!","v":{"$error":"#REF!"}}]
[{"$error":"#REF!"},null,{"$f":"#REF!","v":{"$error":"#REF!"}},{"$f":"#REF!","v":{"$error":"#REF!"}},null,null,{"$f":"#REF!","v":{"$error":"#REF!"}},800001965,"http://www.xbrl.org/scheme/companyName",null,{"$f":"Periodos!$C$4","v":"2017-12-31"},{"$f":"#REF!","v":{"$error":"#REF!"}},{"$f":"#REF!","v":{"$error":"#REF!"}}]
[{"$error":"#REF!"},null,{"$f":"#REF!","v":{"$error":"#REF!"}},{"$f":"#REF!","v":{"$error":"#REF!"}},null,null,{"$f":"#REF!","v":{"$error":"#REF!"}},800001965,"http://www.xbrl.org/scheme/companyName",null,{"$f":"Periodos!$C$4","v":"2017-12-31"},{"$f":"#REF!","v":{"$error":"#REF!"}},{"$f":"#REF!","v":{"$error":"#REF!"}}]
[{"$error":"#REF!"},null,{"$f":"#REF!","v":{"$error":"#REF!"}},{"$f":"#REF!","v":{"$error":"#REF!"}},null,null,{"$f":"#REF!","v":{"$error":"#REF!"}},800001965,"http://www.xbrl.org/scheme/companyName",null,{"$f":"Periodos!$C$4","v":"2017-12-31"},{"$f":"#REF!","v":{"$error":"#REF!"}},{"$f":"#REF!","v":{"$error":"#REF!"}}]
[{"$error":"#REF!"},null,{"$f":"#REF!","v":{"$error":"#REF!"}},{"$f":"#REF!","v":{"$error":"#REF!"}},null,null,{"$f":"#REF!","v":{"$error":"#REF!"}},800001965,"http://www.xbrl.org/scheme/companyName",null,{"$f":"Periodos!$C$4","v":"2017-12-31"},{"$f":"#REF!","v":{"$error":"#REF!"}},{"$f":"#REF!","v":{"$error":"#REF!"}}]
[{"$error":"#REF!"},null,{"$f":"#REF!","v":{"$error":"#REF!"}},{"$f":"#REF!","v":{"$error":"#REF!"}},null,null,{"$f":"#REF!","v":{"$error":"#REF!"}},800001965,"http://www.xbrl.org/scheme/companyName",null,{"$f":"Periodos!$C$4","v":"2017-12-31"},{"$f":"#REF!","v":{"$error":"#REF!"}},{"$f":"#REF!","v":{"$error":"#REF!"}}]
[{"$error":"#REF!"},null,{"$f":"#REF!","v":{"$error":"#REF!"}},{"$f":"#REF!","v":{"$error":"#REF!"}},null,null,{"$f":"#REF!","v":{"$error":"#REF!"}},800001965,"http://www.xbrl.org/scheme/companyName",null,{"$f":"Periodos!$C$4","v":"2017-12-31"},{"$f":"#REF!","v":{"$error":"#REF!"}},{"$f":"#REF!","v":{"$error":"#REF!"}}]
[{"$error":"#REF!"},null,{"$f":"#REF!","v":{"$error":"#REF!"}},{"$f":"#REF!","v":{"$error":"#REF!"}},0,"peso",{"$f":"#REF!","v":{"$error":"#REF!"}},800001965,"http://www.xbrl.org/scheme/companyName",null,{"$f":"Periodos!$C$4","v":"2017-12-31"},{"$f":"#REF!","v":{"$error":"#REF!"}},{"$f":"#REF!","v":{"$error":"#REF!"}}]
["/*",null,"--104--"]
[{"$error":"#REF!"},null,{"$f":"#REF!","v":{"$error":"#REF!"}},{"$f":"#REF!","v":{"$error":"#REF!"}},null,null,{"$f":"#REF!","v":{"$error":"#REF!"}},800001965,"http://www.xbrl.org/scheme/companyName",null,{"$f":"Periodos!$C$4","v":"2017-12-31"},{"$f":"#REF!","v":{"$error":"#REF!"}},{"$f":"#REF!","v":{"$error":"#REF!"}}]
[{"$error":"#REF!"},null,{"$f":"#REF!","v":{"$error":"#REF!"}},{"$f":"#REF!","v":{"$error":"#REF!"}},null,null,{"$f":"#REF!","v":{"$error":"#REF!"}},800001965,"http://www.xbrl.org/scheme/companyName",null,{"$f":"Periodos!$C$4","v":"2017-12-31"},{"$f":"#REF!","v":{"$error":"#REF!"}},{"$f":"#REF!","v":{"$error":"#REF!"}}]
[{"$error":"#REF!"},null,{"$f":"#REF!","v":{"$error":"#REF!"}},{"$f":"#REF!","v":{"$error":"#REF!"}},null,null,{"$f":"#REF!","v":{"$error":"#REF!"}},800001965,"http://www.xbrl.org/scheme/companyName",null,{"$f":"Periodos!$C$4","v":"2017-12-31"},{"$f":"#REF!","v":{"$error":"#REF!"}},{"$f":"#REF!","v":{"$error":"#REF!"}}]
[{"$error":"#REF!"},null,{"$f":"#REF!","v":{"$error":"#REF!"}},{"$f":"#REF!","v":{"$error":"#REF!"}},null,null,{"$f":"#REF!","v":{"$error":"#REF!"}},800001965,"http://www.xbrl.org/scheme/companyName",null,{"$f":"Periodos!$C$4","v":"2017-12-31"},{"$f":"#REF!","v":{"$error":"#REF!"}},{"$f":"#REF!","v":{"$error":"#REF!"}}]
[{"$error":"#REF!"},null,{"$f":"#REF!","v":{"$error":"#REF!"}},{"$f":"#REF!","v":{"$error":"#REF!"}},null,null,{"$f":"#REF!","v":{"$error":"#REF!"}},800001965,"http://www.xbrl.org/scheme/companyName",null,{"$f":"Periodos!$C$4","v":"2017-12-31"},{"$f":"#REF!","v":{"$error":"#REF!"}},{"$f":"#REF!","v":{"$error":"#REF!"}}]
[{"$error":"#REF!"},null,{"$f":"#REF!","v":{"$error":"#REF!"}},{"$f":"#REF!","v":{"$error":"#REF!"}},null,null,{"$f":"#REF!","v":{"$error":"#REF!"}},800001965,"http://www.xbrl.org/scheme/companyName",null,{"$f":"Periodos!$C$4","v":"2017-12-31"},{"$f":"#REF!","v":{"$error":"#REF!"}},{"$f":"#REF!","v":{"$error":"#REF!"}}]
[{"$error":"#REF!"},null,{"$f":"#REF!","v":{"$error":"#REF!"}},{"$f":"#REF!","v":{"$error":"#REF!"}},null,null,{"$f":"#REF!","v":{"$error":"#REF!"}},800001965,"http://www.xbrl.org/scheme/companyName",null,{"$f":"Periodos!$C$4","v":"2017-12-31"},{"$f":"#REF!","v":{"$error":"#REF!"}},{"$f":"#REF!","v":{"$error":"#REF!"}}]
[{"$error":"#REF!"},null,{"$f":"#REF!","v":{"$error":"#REF!"}},{"$f":"#REF!","v":{"$error":"#REF!"}},null,null,{"$f":"#REF!","v":{"$error":"#REF!"}},800001965,"http://www.xbrl.org/scheme/companyName",null,{"$f":"Periodos!$C$4","v":"2017-12-31"},{"$f":"#REF!","v":{"$error":"#REF!"}},{"$f":"#REF!","v":{"$error":"#REF!"}}]
[{"$error":"#REF!"},null,{"$f":"#REF!","v":{"$error":"#REF!"}},{"$f":"#REF!","v":{"$error":"#REF!"}},null,null,{"$f":"#REF!","v":{"$error":"#REF!"}},800001965,"http://www.xbrl.org/scheme/companyName",null,{"$f":"Periodos!$C$4","v":"2017-12-31"},{"$f":"#REF!","v":{"$error":"#REF!"}},{"$f":"#REF!","v":{"$error":"#REF!"}}]
[{"$error":"#REF!"},null,{"$f":"#REF!","v":{"$error":"#REF!"}},{"$f":"#REF!","v":{"$error":"#REF!"}},null,null,{"$f":"#REF!","v":{"$error":"#REF!"}},800001965,"http://www.xbrl.org/scheme/companyName",null,{"$f":"Periodos!$C$4","v":"2017-12-31"},{"$f":"#REF!","v":{"$error":"#REF!"}},{"$f":"#REF!","v":{"$error":"#REF!"}}]
[{"$error":"#REF!"},null,{"$f":"#REF!","v":{"$error":"#REF!"}},{"$f":"#REF!","v":{"$error":"#REF!"}},null,null,{"$f":"#REF!","v":{"$error":"#REF!"}},800001965,"http://www.xbrl.org/scheme/companyName",null,{"$f":"Periodos!$C$4","v":"2017-12-31"},{"$f":"#REF!","v":{"$error":"#REF!"}},{"$f":"#REF!","v":{"$error":"#REF!"}}]
[{"$error":"#REF!"},null,{"$f":"#REF!","v":{"$error":"#REF!"}},{"$f":"#REF!","v":{"$error":"#REF!"}},0,"peso",{"$f":"#REF!","v":{"$error":"#REF!"}},800001965,"http://www.xbrl.org/scheme/companyName",null,{"$f":"Periodos!$C$4","v":"2017-12-31"},{"$f":"#REF!","v":{"$error":"#REF!"}},{"$f":"#REF!","v":{"$error":"#REF!"}}]
["/*",null,"--105--"]
[{"$error":"#REF!"},null,{"$f":"#REF!","v":{"$error":"#REF!"}},{"$f":"#REF!","v":{"$error":"#REF!"}},null,null,{"$f":"#REF!","v":{"$error":"#REF!"}},800001965,"http://www.xbrl.org/scheme/companyName",null,{"$f":"Periodos!$C$4","v":"2017-12-31"},{"$f":"#REF!","v":{"$error":"#REF!"}},{"$f":"#REF!","v":{"$error":"#REF!"}}]
[{"$error":"#REF!"},null,{"$f":"#REF!","v":{"$error":"#REF!"}},{"$f":"#REF!","v":{"$error":"#REF!"}},null,null,{"$f":"#REF!","v":{"$error":"#REF!"}},800001965,"http://www.xbrl.org/scheme/companyName",null,{"$f":"Periodos!$C$4","v":"2017-12-31"},{"$f":"#REF!","v":{"$error":"#REF!"}},{"$f":"#REF!","v":{"$error":"#REF!"}}]
[{"$error":"#REF!"},null,{"$f":"#REF!","v":{"$error":"#REF!"}},{"$f":"#REF!","v":{"$error":"#REF!"}},null,null,{"$f":"#REF!","v":{"$error":"#REF!"}},800001965,"http://www.xbrl.org/scheme/companyName",null,{"$f":"Periodos!$C$4","v":"2017-12-31"},{"$f":"#REF!","v":{"$error":"#REF!"}},{"$f":"#REF!","v":{"$error":"#REF!"}}]
[{"$error":"#REF!"},null,{"$f":"#REF!","v":{"$error":"#REF!"}},{"$f":"#REF!","v":{"$error":"#REF!"}},null,null,{"$f":"#REF!","v":{"$error":"#REF!"}},800001965,"http://www.xbrl.org/scheme/companyName",null,{"$f":"Periodos!$C$4","v":"2017-12-31"},{"$f":"#REF!","v":{"$error":"#REF!"}},{"$f":"#REF!","v":{"$error":"#REF!"}}]
[{"$error":"#REF!"},null,{"$f":"#REF!","v":{"$error":"#REF!"}},{"$f":"#REF!","v":{"$error":"#REF!"}},null,null,{"$f":"#REF!","v":{"$error":"#REF!"}},800001965,"http://www.xbrl.org/scheme/companyName",null,{"$f":"Periodos!$C$4","v":"2017-12-31"},{"$f":"#REF!","v":{"$error":"#REF!"}},{"$f":"#REF!","v":{"$error":"#REF!"}}]
[{"$error":"#REF!"},null,{"$f":"#REF!","v":{"$error":"#REF!"}},{"$f":"#REF!","v":{"$error":"#REF!"}},null,null,{"$f":"#REF!","v":{"$error":"#REF!"}},800001965,"http://www.xbrl.org/scheme/companyName",null,{"$f":"Periodos!$C$4","v":"2017-12-31"},{"$f":"#REF!","v":{"$error":"#REF!"}},{"$f":"#REF!","v":{"$error":"#REF!"}}]
[{"$error":"#REF!"},null,{"$f":"#REF!","v":{"$error":"#REF!"}},{"$f":"#REF!","v":{"$error":"#REF!"}},null,null,{"$f":"#REF!","v":{"$error":"#REF!"}},800001965,"http://www.xbrl.org/scheme/companyName",null,{"$f":"Periodos!$C$4","v":"2017-12-31"},{"$f":"#REF!","v":{"$error":"#REF!"}},{"$f":"#REF!","v":{"$error":"#REF!"}}]
[{"$error":"#REF!"},null,{"$f":"#REF!","v":{"$error":"#REF!"}},{"$f":"#REF!","v":{"$error":"#REF!"}},null,null,{"$f":"#REF!","v":{"$error":"#REF!"}},800001965,"http://www.xbrl.org/scheme/companyName",null,{"$f":"Periodos!$C$4","v":"2017-12-31"},{"$f":"#REF!","v":{"$error":"#REF!"}},{"$f":"#REF!","v":{"$error":"#REF!"}}]
[{"$error":"#REF!"},null,{"$f":"#REF!","v":{"$error":"#REF!"}},{"$f":"#REF!","v":{"$error":"#REF!"}},null,null,{"$f":"#REF!","v":{"$error":"#REF!"}},800001965,"http://www.xbrl.org/scheme/companyName",null,{"$f":"Periodos!$C$4","v":"2017-12-31"},{"$f":"#REF!","v":{"$error":"#REF!"}},{"$f":"#REF!","v":{"$error":"#REF!"}}]
[{"$error":"#REF!"},null,{"$f":"#REF!","v":{"$error":"#REF!"}},{"$f":"#REF!","v":{"$error":"#REF!"}},null,null,{"$f":"#REF!","v":{"$error":"#REF!"}},800001965,"http://www.xbrl.org/scheme/companyName",null,{"$f":"Periodos!$C$4","v":"2017-12-31"},{"$f":"#REF!","v":{"$error":"#REF!"}},{"$f":"#REF!","v":{"$error":"#REF!"}}]
[{"$error":"#REF!"},null,{"$f":"#REF!","v":{"$error":"#REF!"}},{"$f":"#REF!","v":{"$error":"#REF!"}},null,null,{"$f":"#REF!","v":{"$error":"#REF!"}},800001965,"http://www.xbrl.org/scheme/companyName",null,{"$f":"Periodos!$C$4","v":"2017-12-31"},{"$f":"#REF!","v":{"$error":"#REF!"}},{"$f":"#REF!","v":{"$error":"#REF!"}}]
[{"$error":"#REF!"},null,{"$f":"#REF!","v":{"$error":"#REF!"}},{"$f":"#REF!","v":{"$error":"#REF!"}},0,"peso",{"$f":"#REF!","v":{"$error":"#REF!"}},800001965,"http://www.xbrl.org/scheme/companyName",null,{"$f":"Periodos!$C$4","v":"2017-12-31"},{"$f":"#REF!","v":{"$error":"#REF!"}},{"$f":"#REF!","v":{"$error":"#REF!"}}]
["/*",null,"--106--"]
["/*",null,{"$f":"#REF!","v":{"$error":"#REF!"}},{"$f":"#REF!","v":{"$error":"#REF!"}}]
["/*",null,{"$f":"#REF!","v":{"$error":"#REF!"}},{"$f":"#REF!","v":{"$error":"#REF!"}}]
["/*",null,{"$f":"#REF!","v":{"$error":"#REF!"}},{"$f":"#REF!","v":{"$error":"#REF!"}}]
["/*",null,{"$f":"#REF!","v":{"$error":"#REF!"}},{"$f":"#REF!","v":{"$error":"#REF!"}}]
["/*",null,{"$f":"#REF!","v":{"$error":"#REF!"}},{"$f":"#REF!","v":{"$error":"#REF!"}}]
["/*",null,{"$f":"#REF!","v":{"$error":"#REF!"}},{"$f":"#REF!","v":{"$error":"#REF!"}}]
[{"$f":"IF(G3041=\"\",\"/*\",\"\")","v":"/*"},null,{"$f":"#REF!","v":{"$error":"#REF!"}},{"$f":"#REF!","v":{"$error":"#REF!"}}]
["/*",null,{"$f":"#REF!","v":{"$error":"#REF!"}},{"$f":"#REF!","v":{"$error":"#REF!"}}]
["/*",null,{"$f":"#REF!","v":{"$error":"#REF!"}},{"$f":"#REF!","v":{"$error":"#REF!"}}]
["/*",null,{"$f":"#REF!","v":{"$error":"#REF!"}},{"$f":"#REF!","v":{"$error":"#REF!"}}]
["/*",null,{"$f":"#REF!","v":{"$error":"#REF!"}},{"$f":"#REF!","v":{"$error":"#REF!"}}]
[{"$error":"#REF!"},null,{"$f":"#REF!","v":{"$error":"#REF!"}},{"$f":"#REF!","v":{"$error":"#REF!"}},0,"peso",{"$f":"#REF!","v":{"$error":"#REF!"}},800001965,"http://www.xbrl.org/scheme/companyName",null,{"$f":"Periodos!$C$4","v":"2017-12-31"},{"$f":"#REF!","v":{"$error":"#REF!"}},{"$f":"#REF!","v":{"$error":"#REF!"}}]
["/*",null,"--107--"]
["/*",null,{"$f":"#REF!","v":{"$error":"#REF!"}},{"$f":"#REF!","v":{"$error":"#REF!"}}]
["/*",null,{"$f":"#REF!","v":{"$error":"#REF!"}},{"$f":"#REF!","v":{"$error":"#REF!"}}]
["/*",null,{"$f":"#REF!","v":{"$error":"#REF!"}},{"$f":"#REF!","v":{"$error":"#REF!"}}]
["/*",null,{"$f":"#REF!","v":{"$error":"#REF!"}},{"$f":"#REF!","v":{"$error":"#REF!"}}]
["/*",null,{"$f":"#REF!","v":{"$error":"#REF!"}},{"$f":"#REF!","v":{"$error":"#REF!"}}]
["/*",null,{"$f":"#REF!","v":{"$error":"#REF!"}},{"$f":"#REF!","v":{"$error":"#REF!"}}]
["/*",null,{"$f":"#REF!","v":{"$error":"#REF!"}},{"$f":"#REF!","v":{"$error":"#REF!"}}]
["/*",null,{"$f":"#REF!","v":{"$error":"#REF!"}},{"$f":"#REF!","v":{"$error":"#REF!"}}]
["/*",null,{"$f":"#REF!","v":{"$error":"#REF!"}},{"$f":"#REF!","v":{"$error":"#REF!"}}]
["/*",null,{"$f":"#REF!","v":{"$error":"#REF!"}},{"$f":"#REF!","v":{"$error":"#REF!"}}]
["/*",null,{"$f":"#REF!","v":{"$error":"#REF!"}},{"$f":"#REF!","v":{"$error":"#REF!"}}]
[{"$error":"#REF!"},null,{"$f":"#REF!","v":{"$error":"#REF!"}},{"$f":"#REF!","v":{"$error":"#REF!"}},0,"peso",{"$f":"#REF!","v":{"$error":"#REF!"}},800001965,"http://www.xbrl.org/scheme/companyName",null,{"$f":"Periodos!$C$4","v":"2017-12-31"},{"$f":"#REF!","v":{"$error":"#REF!"}},{"$f":"#REF!","v":{"$error":"#REF!"}}]
["/*",null,"--108--"]
["/*",null,{"$f":"#REF!","v":{"$error":"#REF!"}},{"$f":"#REF!","v":{"$error":"#REF!"}}]
["/*",null,{"$f":"#REF!","v":{"$error":"#REF!"}},{"$f":"#REF!","v":{"$error":"#REF!"}}]
["/*",null,{"$f":"#REF!","v":{"$error":"#REF!"}},{"$f":"#REF!","v":{"$error":"#REF!"}}]
["/*",null,{"$f":"#REF!","v":{"$error":"#REF!"}},{"$f":"#REF!","v":{"$error":"#REF!"}}]
["/*",null,{"$f":"#REF!","v":{"$error":"#REF!"}},{"$f":"#REF!","v":{"$error":"#REF!"}}]
["/*",null,{"$f":"#REF!","v":{"$error":"#REF!"}},{"$f":"#REF!","v":{"$error":"#REF!"}}]
["/*",null,{"$f":"#REF!","v":{"$error":"#REF!"}},{"$f":"#REF!","v":{"$error":"#REF!"}}]
["/*",null,{"$f":"#REF!","v":{"$error":"#REF!"}},{"$f":"#REF!","v":{"$error":"#REF!"}}]
["/*",null,{"$f":"#REF!","v":{"$error":"#REF!"}},{"$f":"#REF!","v":{"$error":"#REF!"}}]
["/*",null,{"$f":"#REF!","v":{"$error":"#REF!"}},{"$f":"#REF!","v":{"$error":"#REF!"}}]
["/*",null,{"$f":"#REF!","v":{"$error":"#REF!"}},{"$f":"#REF!","v":{"$error":"#REF!"}}]
["/*",null,{"$f":"#REF!","v":{"$error":"#REF!"}},{"$f":"#REF!","v":{"$error":"#REF!"}}]
["/*",null,"--109--"]
[{"$error":"#REF!"},null,{"$f":"#REF!","v":{"$error":"#REF!"}},{"$f":"#REF!","v":{"$error":"#REF!"}},null,null,{"$f":"#REF!","v":{"$error":"#REF!"}},800001965,"http://www.xbrl.org/scheme/companyName",null,{"$f":"Periodos!$C$4","v":"2017-12-31"},{"$f":"#REF!","v":{"$error":"#REF!"}},{"$f":"#REF!","v":{"$error":"#REF!"}}]
[{"$error":"#REF!"},null,{"$f":"#REF!","v":{"$error":"#REF!"}},{"$f":"#REF!","v":{"$error":"#REF!"}},null,null,{"$f":"#REF!","v":{"$error":"#REF!"}},800001965,"http://www.xbrl.org/scheme/companyName",null,{"$f":"Periodos!$C$4","v":"2017-12-31"},{"$f":"#REF!","v":{"$error":"#REF!"}},{"$f":"#REF!","v":{"$error":"#REF!"}}]
[{"$error":"#REF!"},null,{"$f":"#REF!","v":{"$error":"#REF!"}},{"$f":"#REF!","v":{"$error":"#REF!"}},null,null,{"$f":"#REF!","v":{"$error":"#REF!"}},800001965,"http://www.xbrl.org/scheme/companyName",null,{"$f":"Periodos!$C$4","v":"2017-12-31"},{"$f":"#REF!","v":{"$error":"#REF!"}},{"$f":"#REF!","v":{"$error":"#REF!"}}]
[{"$error":"#REF!"},null,{"$f":"#REF!","v":{"$error":"#REF!"}},{"$f":"#REF!","v":{"$error":"#REF!"}},null,null,{"$f":"#REF!","v":{"$error":"#REF!"}},800001965,"http://www.xbrl.org/scheme/companyName",null,{"$f":"Periodos!$C$4","v":"2017-12-31"},{"$f":"#REF!","v":{"$error":"#REF!"}},{"$f":"#REF!","v":{"$error":"#REF!"}}]
[{"$error":"#REF!"},null,{"$f":"#REF!","v":{"$error":"#REF!"}},{"$f":"#REF!","v":{"$error":"#REF!"}},null,null,{"$f":"#REF!","v":{"$error":"#REF!"}},800001965,"http://www.xbrl.org/scheme/companyName",null,{"$f":"Periodos!$C$4","v":"2017-12-31"},{"$f":"#REF!","v":{"$error":"#REF!"}},{"$f":"#REF!","v":{"$error":"#REF!"}}]
[{"$error":"#REF!"},null,{"$f":"#REF!","v":{"$error":"#REF!"}},{"$f":"#REF!","v":{"$error":"#REF!"}},null,null,{"$f":"#REF!","v":{"$error":"#REF!"}},800001965,"http://www.xbrl.org/scheme/companyName",null,{"$f":"Periodos!$C$4","v":"2017-12-31"},{"$f":"#REF!","v":{"$error":"#REF!"}},{"$f":"#REF!","v":{"$error":"#REF!"}}]
[{"$error":"#REF!"},null,{"$f":"#REF!","v":{"$error":"#REF!"}},{"$f":"#REF!","v":{"$error":"#REF!"}},null,null,{"$f":"#REF!","v":{"$error":"#REF!"}},800001965,"http://www.xbrl.org/scheme/companyName",null,{"$f":"Periodos!$C$4","v":"2017-12-31"},{"$f":"#REF!","v":{"$error":"#REF!"}},{"$f":"#REF!","v":{"$error":"#REF!"}}]
[{"$error":"#REF!"},null,{"$f":"#REF!","v":{"$error":"#REF!"}},{"$f":"#REF!","v":{"$error":"#REF!"}},null,null,{"$f":"#REF!","v":{"$error":"#REF!"}},800001965,"http://www.xbrl.org/scheme/companyName",null,{"$f":"Periodos!$C$4","v":"2017-12-31"},{"$f":"#REF!","v":{"$error":"#REF!"}},{"$f":"#REF!","v":{"$error":"#REF!"}}]
[{"$error":"#REF!"},null,{"$f":"#REF!","v":{"$error":"#REF!"}},{"$f":"#REF!","v":{"$error":"#REF!"}},null,null,{"$f":"#REF!","v":{"$error":"#REF!"}},800001965,"http://www.xbrl.org/scheme/companyName",null,{"$f":"Periodos!$C$4","v":"2017-12-31"},{"$f":"#REF!","v":{"$error":"#REF!"}},{"$f":"#REF!","v":{"$error":"#REF!"}}]
[{"$error":"#REF!"},null,{"$f":"#REF!","v":{"$error":"#REF!"}},{"$f":"#REF!","v":{"$error":"#REF!"}},null,null,{"$f":"#REF!","v":{"$error":"#REF!"}},800001965,"http://www.xbrl.org/scheme/companyName",null,{"$f":"Periodos!$C$4","v":"2017-12-31"},{"$f":"#REF!","v":{"$error":"#REF!"}},{"$f":"#REF!","v":{"$error":"#REF!"}}]
[{"$error":"#REF!"},null,{"$f":"#REF!","v":{"$error":"#REF!"}},{"$f":"#REF!","v":{"$error":"#REF!"}},null,null,{"$f":"#REF!","v":{"$error":"#REF!"}},800001965,"http://www.xbrl.org/scheme/companyName",null,{"$f":"Periodos!$C$4","v":"2017-12-31"},{"$f":"#REF!","v":{"$error":"#REF!"}},{"$f":"#REF!","v":{"$error":"#REF!"}}]
[{"$error":"#REF!"},null,{"$f":"#REF!","v":{"$error":"#REF!"}},{"$f":"#REF!","v":{"$error":"#REF!"}},0,"peso",{"$f":"#REF!","v":{"$error":"#REF!"}},800001965,"http://www.xbrl.org/scheme/companyName",null,{"$f":"Periodos!$C$4","v":"2017-12-31"},{"$f":"#REF!","v":{"$error":"#REF!"}},{"$f":"#REF!","v":{"$error":"#REF!"}}]
["/*",null,"--110--"]
[{"$error":"#REF!"},null,{"$f":"#REF!","v":{"$error":"#REF!"}},{"$f":"#REF!","v":{"$error":"#REF!"}},null,null,{"$f":"#REF!","v":{"$error":"#REF!"}},800001965,"http://www.xbrl.org/scheme/companyName",null,{"$f":"Periodos!$C$4","v":"2017-12-31"},{"$f":"#REF!","v":{"$error":"#REF!"}},{"$f":"#REF!","v":{"$error":"#REF!"}}]
[{"$error":"#REF!"},null,{"$f":"#REF!","v":{"$error":"#REF!"}},{"$f":"#REF!","v":{"$error":"#REF!"}},null,null,{"$f":"#REF!","v":{"$error":"#REF!"}},800001965,"http://www.xbrl.org/scheme/companyName",null,{"$f":"Periodos!$C$4","v":"2017-12-31"},{"$f":"#REF!","v":{"$error":"#REF!"}},{"$f":"#REF!","v":{"$error":"#REF!"}}]
[{"$error":"#REF!"},null,{"$f":"#REF!","v":{"$error":"#REF!"}},{"$f":"#REF!","v":{"$error":"#REF!"}},null,null,{"$f":"#REF!","v":{"$error":"#REF!"}},800001965,"http://www.xbrl.org/scheme/companyName",null,{"$f":"Periodos!$C$4","v":"2017-12-31"},{"$f":"#REF!","v":{"$error":"#REF!"}},{"$f":"#REF!","v":{"$error":"#REF!"}}]
[{"$error":"#REF!"},null,{"$f":"#REF!","v":{"$error":"#REF!"}},{"$f":"#REF!","v":{"$error":"#REF!"}},null,null,{"$f":"#REF!","v":{"$error":"#REF!"}},800001965,"http://www.xbrl.org/scheme/companyName",null,{"$f":"Periodos!$C$4","v":"2017-12-31"},{"$f":"#REF!","v":{"$error":"#REF!"}},{"$f":"#REF!","v":{"$error":"#REF!"}}]
[{"$error":"#REF!"},null,{"$f":"#REF!","v":{"$error":"#REF!"}},{"$f":"#REF!","v":{"$error":"#REF!"}},null,null,{"$f":"#REF!","v":{"$error":"#REF!"}},800001965,"http://www.xbrl.org/scheme/companyName",null,{"$f":"Periodos!$C$4","v":"2017-12-31"},{"$f":"#REF!","v":{"$error":"#REF!"}},{"$f":"#REF!","v":{"$error":"#REF!"}}]
[{"$error":"#REF!"},null,{"$f":"#REF!","v":{"$error":"#REF!"}},{"$f":"#REF!","v":{"$error":"#REF!"}},null,null,{"$f":"#REF!","v":{"$error":"#REF!"}},800001965,"http://www.xbrl.org/scheme/companyName",null,{"$f":"Periodos!$C$4","v":"2017-12-31"},{"$f":"#REF!","v":{"$error":"#REF!"}},{"$f":"#REF!","v":{"$error":"#REF!"}}]
[{"$error":"#REF!"},null,{"$f":"#REF!","v":{"$error":"#REF!"}},{"$f":"#REF!","v":{"$error":"#REF!"}},null,null,{"$f":"#REF!","v":{"$error":"#REF!"}},800001965,"http://www.xbrl.org/scheme/companyName",null,{"$f":"Periodos!$C$4","v":"2017-12-31"},{"$f":"#REF!","v":{"$error":"#REF!"}},{"$f":"#REF!","v":{"$error":"#REF!"}}]
[{"$error":"#REF!"},null,{"$f":"#REF!","v":{"$error":"#REF!"}},{"$f":"#REF!","v":{"$error":"#REF!"}},null,null,{"$f":"#REF!","v":{"$error":"#REF!"}},800001965,"http://www.xbrl.org/scheme/companyName",null,{"$f":"Periodos!$C$4","v":"2017-12-31"},{"$f":"#REF!","v":{"$error":"#REF!"}},{"$f":"#REF!","v":{"$error":"#REF!"}}]
[{"$error":"#REF!"},null,{"$f":"#REF!","v":{"$error":"#REF!"}},{"$f":"#REF!","v":{"$error":"#REF!"}},null,null,{"$f":"#REF!","v":{"$error":"#REF!"}},800001965,"http://www.xbrl.org/scheme/companyName",null,{"$f":"Periodos!$C$4","v":"2017-12-31"},{"$f":"#REF!","v":{"$error":"#REF!"}},{"$f":"#REF!","v":{"$error":"#REF!"}}]
[{"$error":"#REF!"},null,{"$f":"#REF!","v":{"$error":"#REF!"}},{"$f":"#REF!","v":{"$error":"#REF!"}},null,null,{"$f":"#REF!","v":{"$error":"#REF!"}},800001965,"http://www.xbrl.org/scheme/companyName",null,{"$f":"Periodos!$C$4","v":"2017-12-31"},{"$f":"#REF!","v":{"$error":"#REF!"}},{"$f":"#REF!","v":{"$error":"#REF!"}}]
[{"$error":"#REF!"},null,{"$f":"#REF!","v":{"$error":"#REF!"}},{"$f":"#REF!","v":{"$error":"#REF!"}},null,null,{"$f":"#REF!","v":{"$error":"#REF!"}},800001965,"http://www.xbrl.org/scheme/companyName",null,{"$f":"Periodos!$C$4","v":"2017-12-31"},{"$f":"#REF!","v":{"$error":"#REF!"}},{"$f":"#REF!","v":{"$error":"#REF!"}}]
[{"$error":"#REF!"},null,{"$f":"#REF!","v":{"$error":"#REF!"}},{"$f":"#REF!","v":{"$error":"#REF!"}},0,"peso",{"$f":"#REF!","v":{"$error":"#REF!"}},800001965,"http://www.xbrl.org/scheme/companyName",null,{"$f":"Periodos!$C$4","v":"2017-12-31"},{"$f":"#REF!","v":{"$error":"#REF!"}},{"$f":"#REF!","v":{"$error":"#REF!"}}]
["/*",null,"--111--"]
[{"$error":"#REF!"},null,{"$f":"#REF!","v":{"$error":"#REF!"}},{"$f":"#REF!","v":{"$error":"#REF!"}},null,null,{"$f":"#REF!","v":{"$error":"#REF!"}},800001965,"http://www.xbrl.org/scheme/companyName",null,{"$f":"Periodos!$C$4","v":"2017-12-31"},{"$f":"#REF!","v":{"$error":"#REF!"}},{"$f":"#REF!","v":{"$error":"#REF!"}}]
[{"$error":"#REF!"},null,{"$f":"#REF!","v":{"$error":"#REF!"}},{"$f":"#REF!","v":{"$error":"#REF!"}},null,null,{"$f":"#REF!","v":{"$error":"#REF!"}},800001965,"http://www.xbrl.org/scheme/companyName",null,{"$f":"Periodos!$C$4","v":"2017-12-31"},{"$f":"#REF!","v":{"$error":"#REF!"}},{"$f":"#REF!","v":{"$error":"#REF!"}}]
[{"$error":"#REF!"},null,{"$f":"#REF!","v":{"$error":"#REF!"}},{"$f":"#REF!","v":{"$error":"#REF!"}},null,null,{"$f":"#REF!","v":{"$error":"#REF!"}},800001965,"http://www.xbrl.org/scheme/companyName",null,{"$f":"Periodos!$C$4","v":"2017-12-31"},{"$f":"#REF!","v":{"$error":"#REF!"}},{"$f":"#REF!","v":{"$error":"#REF!"}}]
[{"$error":"#REF!"},null,{"$f":"#REF!","v":{"$error":"#REF!"}},{"$f":"#REF!","v":{"$error":"#REF!"}},null,null,{"$f":"#REF!","v":{"$error":"#REF!"}},800001965,"http://www.xbrl.org/scheme/companyName",null,{"$f":"Periodos!$C$4","v":"2017-12-31"},{"$f":"#REF!","v":{"$error":"#REF!"}},{"$f":"#REF!","v":{"$error":"#REF!"}}]
[{"$error":"#REF!"},null,{"$f":"#REF!","v":{"$error":"#REF!"}},{"$f":"#REF!","v":{"$error":"#REF!"}},null,null,{"$f":"#REF!","v":{"$error":"#REF!"}},800001965,"http://www.xbrl.org/scheme/companyName",null,{"$f":"Periodos!$C$4","v":"2017-12-31"},{"$f":"#REF!","v":{"$error":"#REF!"}},{"$f":"#REF!","v":{"$error":"#REF!"}}]
[{"$f":"IF(G3105=\"\",\"/*\",\"\")","v":{"$error":"#REF!"}},null,{"$f":"#REF!","v":{"$error":"#REF!"}},{"$f":"#REF!","v":{"$error":"#REF!"}},null,null,{"$f":"#REF!","v":{"$error":"#REF!"}},800001965,"http://www.xbrl.org/scheme/companyName",null,{"$f":"Periodos!$C$4","v":"2017-12-31"},{"$f":"#REF!","v":{"$error":"#REF!"}},{"$f":"#REF!","v":{"$error":"#REF!"}}]
[{"$error":"#REF!"},null,{"$f":"#REF!","v":{"$error":"#REF!"}},{"$f":"#REF!","v":{"$error":"#REF!"}},null,null,{"$f":"#REF!","v":{"$error":"#REF!"}},800001965,"http://www.xbrl.org/scheme/companyName",null,{"$f":"Periodos!$C$4","v":"2017-12-31"},{"$f":"#REF!","v":{"$error":"#REF!"}},{"$f":"#REF!","v":{"$error":"#REF!"}}]
[{"$error":"#REF!"},null,{"$f":"#REF!","v":{"$error":"#REF!"}},{"$f":"#REF!","v":{"$error":"#REF!"}},null,null,{"$f":"#REF!","v":{"$error":"#REF!"}},800001965,"http://www.xbrl.org/scheme/companyName",null,{"$f":"Periodos!$C$4","v":"2017-12-31"},{"$f":"#REF!","v":{"$error":"#REF!"}},{"$f":"#REF!","v":{"$error":"#REF!"}}]
[{"$error":"#REF!"},null,{"$f":"#REF!","v":{"$error":"#REF!"}},{"$f":"#REF!","v":{"$error":"#REF!"}},null,null,{"$f":"#REF!","v":{"$error":"#REF!"}},800001965,"http://www.xbrl.org/scheme/companyName",null,{"$f":"Periodos!$C$4","v":"2017-12-31"},{"$f":"#REF!","v":{"$error":"#REF!"}},{"$f":"#REF!","v":{"$error":"#REF!"}}]
[{"$error":"#REF!"},null,{"$f":"#REF!","v":{"$error":"#REF!"}},{"$f":"#REF!","v":{"$error":"#REF!"}},null,null,{"$f":"#REF!","v":{"$error":"#REF!"}},800001965,"http://www.xbrl.org/scheme/companyName",null,{"$f":"Periodos!$C$4","v":"2017-12-31"},{"$f":"#REF!","v":{"$error":"#REF!"}},{"$f":"#REF!","v":{"$error":"#REF!"}}]
[{"$error":"#REF!"},null,{"$f":"#REF!","v":{"$error":"#REF!"}},{"$f":"#REF!","v":{"$error":"#REF!"}},null,null,{"$f":"#REF!","v":{"$error":"#REF!"}},800001965,"http://www.xbrl.org/scheme/companyName",null,{"$f":"Periodos!$C$4","v":"2017-12-31"},{"$f":"#REF!","v":{"$error":"#REF!"}},{"$f":"#REF!","v":{"$error":"#REF!"}}]
[{"$error":"#REF!"},null,{"$f":"#REF!","v":{"$error":"#REF!"}},{"$f":"#REF!","v":{"$error":"#REF!"}},0,"peso",{"$f":"#REF!","v":{"$error":"#REF!"}},800001965,"http://www.xbrl.org/scheme/companyName",null,{"$f":"Periodos!$C$4","v":"2017-12-31"},{"$f":"#REF!","v":{"$error":"#REF!"}},{"$f":"#REF!","v":{"$error":"#REF!"}}]
["/*",null,"--112--"]
[{"$error":"#REF!"},null,{"$f":"#REF!","v":{"$error":"#REF!"}},{"$f":"#REF!","v":{"$error":"#REF!"}},null,null,{"$f":"#REF!","v":{"$error":"#REF!"}},800001965,"http://www.xbrl.org/scheme/companyName",null,{"$f":"Periodos!$C$4","v":"2017-12-31"},{"$f":"#REF!","v":{"$error":"#REF!"}},{"$f":"#REF!","v":{"$error":"#REF!"}}]
[{"$error":"#REF!"},null,{"$f":"#REF!","v":{"$error":"#REF!"}},{"$f":"#REF!","v":{"$error":"#REF!"}},null,null,{"$f":"#REF!","v":{"$error":"#REF!"}},800001965,"http://www.xbrl.org/scheme/companyName",null,{"$f":"Periodos!$C$4","v":"2017-12-31"},{"$f":"#REF!","v":{"$error":"#REF!"}},{"$f":"#REF!","v":{"$error":"#REF!"}}]
[{"$error":"#REF!"},null,{"$f":"#REF!","v":{"$error":"#REF!"}},{"$f":"#REF!","v":{"$error":"#REF!"}},null,null,{"$f":"#REF!","v":{"$error":"#REF!"}},800001965,"http://www.xbrl.org/scheme/companyName",null,{"$f":"Periodos!$C$4","v":"2017-12-31"},{"$f":"#REF!","v":{"$error":"#REF!"}},{"$f":"#REF!","v":{"$error":"#REF!"}}]
[{"$error":"#REF!"},null,{"$f":"#REF!","v":{"$error":"#REF!"}},{"$f":"#REF!","v":{"$error":"#REF!"}},null,null,{"$f":"#REF!","v":{"$error":"#REF!"}},800001965,"http://www.xbrl.org/scheme/companyName",null,{"$f":"Periodos!$C$4","v":"2017-12-31"},{"$f":"#REF!","v":{"$error":"#REF!"}},{"$f":"#REF!","v":{"$error":"#REF!"}}]
[{"$error":"#REF!"},null,{"$f":"#REF!","v":{"$error":"#REF!"}},{"$f":"#REF!","v":{"$error":"#REF!"}},null,null,{"$f":"#REF!","v":{"$error":"#REF!"}},800001965,"http://www.xbrl.org/scheme/companyName",null,{"$f":"Periodos!$C$4","v":"2017-12-31"},{"$f":"#REF!","v":{"$error":"#REF!"}},{"$f":"#REF!","v":{"$error":"#REF!"}}]
[{"$error":"#REF!"},null,{"$f":"#REF!","v":{"$error":"#REF!"}},{"$f":"#REF!","v":{"$error":"#REF!"}},null,null,{"$f":"#REF!","v":{"$error":"#REF!"}},800001965,"http://www.xbrl.org/scheme/companyName",null,{"$f":"Periodos!$C$4","v":"2017-12-31"},{"$f":"#REF!","v":{"$error":"#REF!"}},{"$f":"#REF!","v":{"$error":"#REF!"}}]
[{"$error":"#REF!"},null,{"$f":"#REF!","v":{"$error":"#REF!"}},{"$f":"#REF!","v":{"$error":"#REF!"}},null,null,{"$f":"#REF!","v":{"$error":"#REF!"}},800001965,"http://www.xbrl.org/scheme/companyName",null,{"$f":"Periodos!$C$4","v":"2017-12-31"},{"$f":"#REF!","v":{"$error":"#REF!"}},{"$f":"#REF!","v":{"$error":"#REF!"}}]
[{"$error":"#REF!"},null,{"$f":"#REF!","v":{"$error":"#REF!"}},{"$f":"#REF!","v":{"$error":"#REF!"}},null,null,{"$f":"#REF!","v":{"$error":"#REF!"}},800001965,"http://www.xbrl.org/scheme/companyName",null,{"$f":"Periodos!$C$4","v":"2017-12-31"},{"$f":"#REF!","v":{"$error":"#REF!"}},{"$f":"#REF!","v":{"$error":"#REF!"}}]
[{"$error":"#REF!"},null,{"$f":"#REF!","v":{"$error":"#REF!"}},{"$f":"#REF!","v":{"$error":"#REF!"}},null,null,{"$f":"#REF!","v":{"$error":"#REF!"}},800001965,"http://www.xbrl.org/scheme/companyName",null,{"$f":"Periodos!$C$4","v":"2017-12-31"},{"$f":"#REF!","v":{"$error":"#REF!"}},{"$f":"#REF!","v":{"$error":"#REF!"}}]
[{"$error":"#REF!"},null,{"$f":"#REF!","v":{"$error":"#REF!"}},{"$f":"#REF!","v":{"$error":"#REF!"}},null,null,{"$f":"#REF!","v":{"$error":"#REF!"}},800001965,"http://www.xbrl.org/scheme/companyName",null,{"$f":"Periodos!$C$4","v":"2017-12-31"},{"$f":"#REF!","v":{"$error":"#REF!"}},{"$f":"#REF!","v":{"$error":"#REF!"}}]
[{"$error":"#REF!"},null,{"$f":"#REF!","v":{"$error":"#REF!"}},{"$f":"#REF!","v":{"$error":"#REF!"}},null,null,{"$f":"#REF!","v":{"$error":"#REF!"}},800001965,"http://www.xbrl.org/scheme/companyName",null,{"$f":"Periodos!$C$4","v":"2017-12-31"},{"$f":"#REF!","v":{"$error":"#REF!"}},{"$f":"#REF!","v":{"$error":"#REF!"}}]
[{"$error":"#REF!"},null,{"$f":"#REF!","v":{"$error":"#REF!"}},{"$f":"#REF!","v":{"$error":"#REF!"}},0,"peso",{"$f":"#REF!","v":{"$error":"#REF!"}},800001965,"http://www.xbrl.org/scheme/companyName",null,{"$f":"Periodos!$C$4","v":"2017-12-31"},{"$f":"#REF!","v":{"$error":"#REF!"}},{"$f":"#REF!","v":{"$error":"#REF!"}}]
["/*",null,"--113--"]
[{"$error":"#REF!"},null,{"$f":"#REF!","v":{"$error":"#REF!"}},{"$f":"#REF!","v":{"$error":"#REF!"}},null,null,{"$f":"#REF!","v":{"$error":"#REF!"}},800001965,"http://www.xbrl.org/scheme/companyName",null,{"$f":"Periodos!$C$4","v":"2017-12-31"},{"$f":"#REF!","v":{"$error":"#REF!"}},{"$f":"#REF!","v":{"$error":"#REF!"}}]
[{"$error":"#REF!"},null,{"$f":"#REF!","v":{"$error":"#REF!"}},{"$f":"#REF!","v":{"$error":"#REF!"}},null,null,{"$f":"#REF!","v":{"$error":"#REF!"}},800001965,"http://www.xbrl.org/scheme/companyName",null,{"$f":"Periodos!$C$4","v":"2017-12-31"},{"$f":"#REF!","v":{"$error":"#REF!"}},{"$f":"#REF!","v":{"$error":"#REF!"}}]
[{"$error":"#REF!"},null,{"$f":"#REF!","v":{"$error":"#REF!"}},{"$f":"#REF!","v":{"$error":"#REF!"}},null,null,{"$f":"#REF!","v":{"$error":"#REF!"}},800001965,"http://www.xbrl.org/scheme/companyName",null,{"$f":"Periodos!$C$4","v":"2017-12-31"},{"$f":"#REF!","v":{"$error":"#REF!"}},{"$f":"#REF!","v":{"$error":"#REF!"}}]
[{"$error":"#REF!"},null,{"$f":"#REF!","v":{"$error":"#REF!"}},{"$f":"#REF!","v":{"$error":"#REF!"}},null,null,{"$f":"#REF!","v":{"$error":"#REF!"}},800001965,"http://www.xbrl.org/scheme/companyName",null,{"$f":"Periodos!$C$4","v":"2017-12-31"},{"$f":"#REF!","v":{"$error":"#REF!"}},{"$f":"#REF!","v":{"$error":"#REF!"}}]
[{"$error":"#REF!"},null,{"$f":"#REF!","v":{"$error":"#REF!"}},{"$f":"#REF!","v":{"$error":"#REF!"}},null,null,{"$f":"#REF!","v":{"$error":"#REF!"}},800001965,"http://www.xbrl.org/scheme/companyName",null,{"$f":"Periodos!$C$4","v":"2017-12-31"},{"$f":"#REF!","v":{"$error":"#REF!"}},{"$f":"#REF!","v":{"$error":"#REF!"}}]
[{"$error":"#REF!"},null,{"$f":"#REF!","v":{"$error":"#REF!"}},{"$f":"#REF!","v":{"$error":"#REF!"}},null,null,{"$f":"#REF!","v":{"$error":"#REF!"}},800001965,"http://www.xbrl.org/scheme/companyName",null,{"$f":"Periodos!$C$4","v":"2017-12-31"},{"$f":"#REF!","v":{"$error":"#REF!"}},{"$f":"#REF!","v":{"$error":"#REF!"}}]
[{"$error":"#REF!"},null,{"$f":"#REF!","v":{"$error":"#REF!"}},{"$f":"#REF!","v":{"$error":"#REF!"}},null,null,{"$f":"#REF!","v":{"$error":"#REF!"}},800001965,"http://www.xbrl.org/scheme/companyName",null,{"$f":"Periodos!$C$4","v":"2017-12-31"},{"$f":"#REF!","v":{"$error":"#REF!"}},{"$f":"#REF!","v":{"$error":"#REF!"}}]
[{"$error":"#REF!"},null,{"$f":"#REF!","v":{"$error":"#REF!"}},{"$f":"#REF!","v":{"$error":"#REF!"}},null,null,{"$f":"#REF!","v":{"$error":"#REF!"}},800001965,"http://www.xbrl.org/scheme/companyName",null,{"$f":"Periodos!$C$4","v":"2017-12-31"},{"$f":"#REF!","v":{"$error":"#REF!"}},{"$f":"#REF!","v":{"$error":"#REF!"}}]
[{"$error":"#REF!"},null,{"$f":"#REF!","v":{"$error":"#REF!"}},{"$f":"#REF!","v":{"$error":"#REF!"}},null,null,{"$f":"#REF!","v":{"$error":"#REF!"}},800001965,"http://www.xbrl.org/scheme/companyName",null,{"$f":"Periodos!$C$4","v":"2017-12-31"},{"$f":"#REF!","v":{"$error":"#REF!"}},{"$f":"#REF!","v":{"$error":"#REF!"}}]
[{"$error":"#REF!"},null,{"$f":"#REF!","v":{"$error":"#REF!"}},{"$f":"#REF!","v":{"$error":"#REF!"}},null,null,{"$f":"#REF!","v":{"$error":"#REF!"}},800001965,"http://www.xbrl.org/scheme/companyName",null,{"$f":"Periodos!$C$4","v":"2017-12-31"},{"$f":"#REF!","v":{"$error":"#REF!"}},{"$f":"#REF!","v":{"$error":"#REF!"}}]
[{"$error":"#REF!"},null,{"$f":"#REF!","v":{"$error":"#REF!"}},{"$f":"#REF!","v":{"$error":"#REF!"}},null,null,{"$f":"#REF!","v":{"$error":"#REF!"}},800001965,"http://www.xbrl.org/scheme/companyName",null,{"$f":"Periodos!$C$4","v":"2017-12-31"},{"$f":"#REF!","v":{"$error":"#REF!"}},{"$f":"#REF!","v":{"$error":"#REF!"}}]
[{"$error":"#REF!"},null,{"$f":"#REF!","v":{"$error":"#REF!"}},{"$f":"#REF!","v":{"$error":"#REF!"}},0,"peso",{"$f":"#REF!","v":{"$error":"#REF!"}},800001965,"http://www.xbrl.org/scheme/companyName",null,{"$f":"Periodos!$C$4","v":"2017-12-31"},{"$f":"#REF!","v":{"$error":"#REF!"}},{"$f":"#REF!","v":{"$error":"#REF!"}}]
["/*",null,"--114--"]
[{"$error":"#REF!"},null,{"$f":"#REF!","v":{"$error":"#REF!"}},{"$f":"#REF!","v":{"$error":"#REF!"}},null,null,{"$f":"#REF!","v":{"$error":"#REF!"}},800001965,"http://www.xbrl.org/scheme/companyName",null,{"$f":"Periodos!$C$4","v":"2017-12-31"},{"$f":"#REF!","v":{"$error":"#REF!"}},{"$f":"#REF!","v":{"$error":"#REF!"}}]
[{"$error":"#REF!"},null,{"$f":"#REF!","v":{"$error":"#REF!"}},{"$f":"#REF!","v":{"$error":"#REF!"}},null,null,{"$f":"#REF!","v":{"$error":"#REF!"}},800001965,"http://www.xbrl.org/scheme/companyName",null,{"$f":"Periodos!$C$4","v":"2017-12-31"},{"$f":"#REF!","v":{"$error":"#REF!"}},{"$f":"#REF!","v":{"$error":"#REF!"}}]
[{"$error":"#REF!"},null,{"$f":"#REF!","v":{"$error":"#REF!"}},{"$f":"#REF!","v":{"$error":"#REF!"}},null,null,{"$f":"#REF!","v":{"$error":"#REF!"}},800001965,"http://www.xbrl.org/scheme/companyName",null,{"$f":"Periodos!$C$4","v":"2017-12-31"},{"$f":"#REF!","v":{"$error":"#REF!"}},{"$f":"#REF!","v":{"$error":"#REF!"}}]
[{"$error":"#REF!"},null,{"$f":"#REF!","v":{"$error":"#REF!"}},{"$f":"#REF!","v":{"$error":"#REF!"}},null,null,{"$f":"#REF!","v":{"$error":"#REF!"}},800001965,"http://www.xbrl.org/scheme/companyName",null,{"$f":"Periodos!$C$4","v":"2017-12-31"},{"$f":"#REF!","v":{"$error":"#REF!"}},{"$f":"#REF!","v":{"$error":"#REF!"}}]
[{"$error":"#REF!"},null,{"$f":"#REF!","v":{"$error":"#REF!"}},{"$f":"#REF!","v":{"$error":"#REF!"}},null,null,{"$f":"#REF!","v":{"$error":"#REF!"}},800001965,"http://www.xbrl.org/scheme/companyName",null,{"$f":"Periodos!$C$4","v":"2017-12-31"},{"$f":"#REF!","v":{"$error":"#REF!"}},{"$f":"#REF!","v":{"$error":"#REF!"}}]
[{"$error":"#REF!"},null,{"$f":"#REF!","v":{"$error":"#REF!"}},{"$f":"#REF!","v":{"$error":"#REF!"}},null,null,{"$f":"#REF!","v":{"$error":"#REF!"}},800001965,"http://www.xbrl.org/scheme/companyName",null,{"$f":"Periodos!$C$4","v":"2017-12-31"},{"$f":"#REF!","v":{"$error":"#REF!"}},{"$f":"#REF!","v":{"$error":"#REF!"}}]
[{"$error":"#REF!"},null,{"$f":"#REF!","v":{"$error":"#REF!"}},{"$f":"#REF!","v":{"$error":"#REF!"}},null,null,{"$f":"#REF!","v":{"$error":"#REF!"}},800001965,"http://www.xbrl.org/scheme/companyName",null,{"$f":"Periodos!$C$4","v":"2017-12-31"},{"$f":"#REF!","v":{"$error":"#REF!"}},{"$f":"#REF!","v":{"$error":"#REF!"}}]
[{"$error":"#REF!"},null,{"$f":"#REF!","v":{"$error":"#REF!"}},{"$f":"#REF!","v":{"$error":"#REF!"}},null,null,{"$f":"#REF!","v":{"$error":"#REF!"}},800001965,"http://www.xbrl.org/scheme/companyName",null,{"$f":"Periodos!$C$4","v":"2017-12-31"},{"$f":"#REF!","v":{"$error":"#REF!"}},{"$f":"#REF!","v":{"$error":"#REF!"}}]
[{"$error":"#REF!"},null,{"$f":"#REF!","v":{"$error":"#REF!"}},{"$f":"#REF!","v":{"$error":"#REF!"}},null,null,{"$f":"#REF!","v":{"$error":"#REF!"}},800001965,"http://www.xbrl.org/scheme/companyName",null,{"$f":"Periodos!$C$4","v":"2017-12-31"},{"$f":"#REF!","v":{"$error":"#REF!"}},{"$f":"#REF!","v":{"$error":"#REF!"}}]
[{"$error":"#REF!"},null,{"$f":"#REF!","v":{"$error":"#REF!"}},{"$f":"#REF!","v":{"$error":"#REF!"}},null,null,{"$f":"#REF!","v":{"$error":"#REF!"}},800001965,"http://www.xbrl.org/scheme/companyName",null,{"$f":"Periodos!$C$4","v":"2017-12-31"},{"$f":"#REF!","v":{"$error":"#REF!"}},{"$f":"#REF!","v":{"$error":"#REF!"}}]
[{"$error":"#REF!"},null,{"$f":"#REF!","v":{"$error":"#REF!"}},{"$f":"#REF!","v":{"$error":"#REF!"}},null,null,{"$f":"#REF!","v":{"$error":"#REF!"}},800001965,"http://www.xbrl.org/scheme/companyName",null,{"$f":"Periodos!$C$4","v":"2017-12-31"},{"$f":"#REF!","v":{"$error":"#REF!"}},{"$f":"#REF!","v":{"$error":"#REF!"}}]
[{"$error":"#REF!"},null,{"$f":"#REF!","v":{"$error":"#REF!"}},{"$f":"#REF!","v":{"$error":"#REF!"}},0,"peso",{"$f":"#REF!","v":{"$error":"#REF!"}},800001965,"http://www.xbrl.org/scheme/companyName",null,{"$f":"Periodos!$C$4","v":"2017-12-31"},{"$f":"#REF!","v":{"$error":"#REF!"}},{"$f":"#REF!","v":{"$error":"#REF!"}}]
["/*",null,"--115--"]
[{"$error":"#REF!"},null,{"$f":"#REF!","v":{"$error":"#REF!"}},{"$f":"#REF!","v":{"$error":"#REF!"}},null,null,{"$f":"#REF!","v":{"$error":"#REF!"}},800001965,"http://www.xbrl.org/scheme/companyName",null,{"$f":"Periodos!$C$4","v":"2017-12-31"},{"$f":"#REF!","v":{"$error":"#REF!"}},{"$f":"#REF!","v":{"$error":"#REF!"}}]
[{"$error":"#REF!"},null,{"$f":"#REF!","v":{"$error":"#REF!"}},{"$f":"#REF!","v":{"$error":"#REF!"}},null,null,{"$f":"#REF!","v":{"$error":"#REF!"}},800001965,"http://www.xbrl.org/scheme/companyName",null,{"$f":"Periodos!$C$4","v":"2017-12-31"},{"$f":"#REF!","v":{"$error":"#REF!"}},{"$f":"#REF!","v":{"$error":"#REF!"}}]
[{"$error":"#REF!"},null,{"$f":"#REF!","v":{"$error":"#REF!"}},{"$f":"#REF!","v":{"$error":"#REF!"}},null,null,{"$f":"#REF!","v":{"$error":"#REF!"}},800001965,"http://www.xbrl.org/scheme/companyName",null,{"$f":"Periodos!$C$4","v":"2017-12-31"},{"$f":"#REF!","v":{"$error":"#REF!"}},{"$f":"#REF!","v":{"$error":"#REF!"}}]
[{"$error":"#REF!"},null,{"$f":"#REF!","v":{"$error":"#REF!"}},{"$f":"#REF!","v":{"$error":"#REF!"}},null,null,{"$f":"#REF!","v":{"$error":"#REF!"}},800001965,"http://www.xbrl.org/scheme/companyName",null,{"$f":"Periodos!$C$4","v":"2017-12-31"},{"$f":"#REF!","v":{"$error":"#REF!"}},{"$f":"#REF!","v":{"$error":"#REF!"}}]
[{"$error":"#REF!"},null,{"$f":"#REF!","v":{"$error":"#REF!"}},{"$f":"#REF!","v":{"$error":"#REF!"}},null,null,{"$f":"#REF!","v":{"$error":"#REF!"}},800001965,"http://www.xbrl.org/scheme/companyName",null,{"$f":"Periodos!$C$4","v":"2017-12-31"},{"$f":"#REF!","v":{"$error":"#REF!"}},{"$f":"#REF!","v":{"$error":"#REF!"}}]
[{"$error":"#REF!"},null,{"$f":"#REF!","v":{"$error":"#REF!"}},{"$f":"#REF!","v":{"$error":"#REF!"}},null,null,{"$f":"#REF!","v":{"$error":"#REF!"}},800001965,"http://www.xbrl.org/scheme/companyName",null,{"$f":"Periodos!$C$4","v":"2017-12-31"},{"$f":"#REF!","v":{"$error":"#REF!"}},{"$f":"#REF!","v":{"$error":"#REF!"}}]
[{"$error":"#REF!"},null,{"$f":"#REF!","v":{"$error":"#REF!"}},{"$f":"#REF!","v":{"$error":"#REF!"}},null,null,{"$f":"#REF!","v":{"$error":"#REF!"}},800001965,"http://www.xbrl.org/scheme/companyName",null,{"$f":"Periodos!$C$4","v":"2017-12-31"},{"$f":"#REF!","v":{"$error":"#REF!"}},{"$f":"#REF!","v":{"$error":"#REF!"}}]
[{"$error":"#REF!"},null,{"$f":"#REF!","v":{"$error":"#REF!"}},{"$f":"#REF!","v":{"$error":"#REF!"}},null,null,{"$f":"#REF!","v":{"$error":"#REF!"}},800001965,"http://www.xbrl.org/scheme/companyName",null,{"$f":"Periodos!$C$4","v":"2017-12-31"},{"$f":"#REF!","v":{"$error":"#REF!"}},{"$f":"#REF!","v":{"$error":"#REF!"}}]
[{"$error":"#REF!"},null,{"$f":"#REF!","v":{"$error":"#REF!"}},{"$f":"#REF!","v":{"$error":"#REF!"}},null,null,{"$f":"#REF!","v":{"$error":"#REF!"}},800001965,"http://www.xbrl.org/scheme/companyName",null,{"$f":"Periodos!$C$4","v":"2017-12-31"},{"$f":"#REF!","v":{"$error":"#REF!"}},{"$f":"#REF!","v":{"$error":"#REF!"}}]
[{"$error":"#REF!"},null,{"$f":"#REF!","v":{"$error":"#REF!"}},{"$f":"#REF!","v":{"$error":"#REF!"}},null,null,{"$f":"#REF!","v":{"$error":"#REF!"}},800001965,"http://www.xbrl.org/scheme/companyName",null,{"$f":"Periodos!$C$4","v":"2017-12-31"},{"$f":"#REF!","v":{"$error":"#REF!"}},{"$f":"#REF!","v":{"$error":"#REF!"}}]
[{"$error":"#REF!"},null,{"$f":"#REF!","v":{"$error":"#REF!"}},{"$f":"#REF!","v":{"$error":"#REF!"}},null,null,{"$f":"#REF!","v":{"$error":"#REF!"}},800001965,"http://www.xbrl.org/scheme/companyName",null,{"$f":"Periodos!$C$4","v":"2017-12-31"},{"$f":"#REF!","v":{"$error":"#REF!"}},{"$f":"#REF!","v":{"$error":"#REF!"}}]
[{"$error":"#REF!"},null,{"$f":"#REF!","v":{"$error":"#REF!"}},{"$f":"#REF!","v":{"$error":"#REF!"}},0,"peso",{"$f":"#REF!","v":{"$error":"#REF!"}},800001965,"http://www.xbrl.org/scheme/companyName",null,{"$f":"Periodos!$C$4","v":"2017-12-31"},{"$f":"#REF!","v":{"$error":"#REF!"}},{"$f":"#REF!","v":{"$error":"#REF!"}}]
["/*",null,"--116--"]
[{"$error":"#REF!"},null,{"$f":"#REF!","v":{"$error":"#REF!"}},{"$f":"#REF!","v":{"$error":"#REF!"}},null,null,{"$f":"#REF!","v":{"$error":"#REF!"}},800001965,"http://www.xbrl.org/scheme/companyName",null,{"$f":"Periodos!$C$4","v":"2017-12-31"},{"$f":"#REF!","v":{"$error":"#REF!"}},{"$f":"#REF!","v":{"$error":"#REF!"}}]
[{"$error":"#REF!"},null,{"$f":"#REF!","v":{"$error":"#REF!"}},{"$f":"#REF!","v":{"$error":"#REF!"}},null,null,{"$f":"#REF!","v":{"$error":"#REF!"}},800001965,"http://www.xbrl.org/scheme/companyName",null,{"$f":"Periodos!$C$4","v":"2017-12-31"},{"$f":"#REF!","v":{"$error":"#REF!"}},{"$f":"#REF!","v":{"$error":"#REF!"}}]
[{"$error":"#REF!"},null,{"$f":"#REF!","v":{"$error":"#REF!"}},{"$f":"#REF!","v":{"$error":"#REF!"}},null,null,{"$f":"#REF!","v":{"$error":"#REF!"}},800001965,"http://www.xbrl.org/scheme/companyName",null,{"$f":"Periodos!$C$4","v":"2017-12-31"},{"$f":"#REF!","v":{"$error":"#REF!"}},{"$f":"#REF!","v":{"$error":"#REF!"}}]
[{"$error":"#REF!"},null,{"$f":"#REF!","v":{"$error":"#REF!"}},{"$f":"#REF!","v":{"$error":"#REF!"}},null,null,{"$f":"#REF!","v":{"$error":"#REF!"}},800001965,"http://www.xbrl.org/scheme/companyName",null,{"$f":"Periodos!$C$4","v":"2017-12-31"},{"$f":"#REF!","v":{"$error":"#REF!"}},{"$f":"#REF!","v":{"$error":"#REF!"}}]
[{"$f":"IF(G3169=\"\",\"/*\",\"\")","v":{"$error":"#REF!"}},null,{"$f":"#REF!","v":{"$error":"#REF!"}},{"$f":"#REF!","v":{"$error":"#REF!"}},null,null,{"$f":"#REF!","v":{"$error":"#REF!"}},800001965,"http://www.xbrl.org/scheme/companyName",null,{"$f":"Periodos!$C$4","v":"2017-12-31"},{"$f":"#REF!","v":{"$error":"#REF!"}},{"$f":"#REF!","v":{"$error":"#REF!"}}]
[{"$error":"#REF!"},null,{"$f":"#REF!","v":{"$error":"#REF!"}},{"$f":"#REF!","v":{"$error":"#REF!"}},null,null,{"$f":"#REF!","v":{"$error":"#REF!"}},800001965,"http://www.xbrl.org/scheme/companyName",null,{"$f":"Periodos!$C$4","v":"2017-12-31"},{"$f":"#REF!","v":{"$error":"#REF!"}},{"$f":"#REF!","v":{"$error":"#REF!"}}]
[{"$error":"#REF!"},null,{"$f":"#REF!","v":{"$error":"#REF!"}},{"$f":"#REF!","v":{"$error":"#REF!"}},null,null,{"$f":"#REF!","v":{"$error":"#REF!"}},800001965,"http://www.xbrl.org/scheme/companyName",null,{"$f":"Periodos!$C$4","v":"2017-12-31"},{"$f":"#REF!","v":{"$error":"#REF!"}},{"$f":"#REF!","v":{"$error":"#REF!"}}]
[{"$error":"#REF!"},null,{"$f":"#REF!","v":{"$error":"#REF!"}},{"$f":"#REF!","v":{"$error":"#REF!"}},null,null,{"$f":"#REF!","v":{"$error":"#REF!"}},800001965,"http://www.xbrl.org/scheme/companyName",null,{"$f":"Periodos!$C$4","v":"2017-12-31"},{"$f":"#REF!","v":{"$error":"#REF!"}},{"$f":"#REF!","v":{"$error":"#REF!"}}]
[{"$error":"#REF!"},null,{"$f":"#REF!","v":{"$error":"#REF!"}},{"$f":"#REF!","v":{"$error":"#REF!"}},null,null,{"$f":"#REF!","v":{"$error":"#REF!"}},800001965,"http://www.xbrl.org/scheme/companyName",null,{"$f":"Periodos!$C$4","v":"2017-12-31"},{"$f":"#REF!","v":{"$error":"#REF!"}},{"$f":"#REF!","v":{"$error":"#REF!"}}]
[{"$error":"#REF!"},null,{"$f":"#REF!","v":{"$error":"#REF!"}},{"$f":"#REF!","v":{"$error":"#REF!"}},null,null,{"$f":"#REF!","v":{"$error":"#REF!"}},800001965,"http://www.xbrl.org/scheme/companyName",null,{"$f":"Periodos!$C$4","v":"2017-12-31"},{"$f":"#REF!","v":{"$error":"#REF!"}},{"$f":"#REF!","v":{"$error":"#REF!"}}]
[{"$error":"#REF!"},null,{"$f":"#REF!","v":{"$error":"#REF!"}},{"$f":"#REF!","v":{"$error":"#REF!"}},null,null,{"$f":"#REF!","v":{"$error":"#REF!"}},800001965,"http://www.xbrl.org/scheme/companyName",null,{"$f":"Periodos!$C$4","v":"2017-12-31"},{"$f":"#REF!","v":{"$error":"#REF!"}},{"$f":"#REF!","v":{"$error":"#REF!"}}]
[{"$error":"#REF!"},null,{"$f":"#REF!","v":{"$error":"#REF!"}},{"$f":"#REF!","v":{"$error":"#REF!"}},0,"peso",{"$f":"#REF!","v":{"$error":"#REF!"}},800001965,"http://www.xbrl.org/scheme/companyName",null,{"$f":"Periodos!$C$4","v":"2017-12-31"},{"$f":"#REF!","v":{"$error":"#REF!"}},{"$f":"#REF!","v":{"$error":"#REF!"}}]
["/*",null,"--117--"]
[{"$error":"#REF!"},null,{"$f":"#REF!","v":{"$error":"#REF!"}},{"$f":"#REF!","v":{"$error":"#REF!"}},null,null,{"$f":"#REF!","v":{"$error":"#REF!"}},800001965,"http://www.xbrl.org/scheme/companyName",null,{"$f":"Periodos!$C$4","v":"2017-12-31"},{"$f":"#REF!","v":{"$error":"#REF!"}},{"$f":"#REF!","v":{"$error":"#REF!"}}]
[{"$error":"#REF!"},null,{"$f":"#REF!","v":{"$error":"#REF!"}},{"$f":"#REF!","v":{"$error":"#REF!"}},null,null,{"$f":"#REF!","v":{"$error":"#REF!"}},800001965,"http://www.xbrl.org/scheme/companyName",null,{"$f":"Periodos!$C$4","v":"2017-12-31"},{"$f":"#REF!","v":{"$error":"#REF!"}},{"$f":"#REF!","v":{"$error":"#REF!"}}]
[{"$error":"#REF!"},null,{"$f":"#REF!","v":{"$error":"#REF!"}},{"$f":"#REF!","v":{"$error":"#REF!"}},null,null,{"$f":"#REF!","v":{"$error":"#REF!"}},800001965,"http://www.xbrl.org/scheme/companyName",null,{"$f":"Periodos!$C$4","v":"2017-12-31"},{"$f":"#REF!","v":{"$error":"#REF!"}},{"$f":"#REF!","v":{"$error":"#REF!"}}]
[{"$error":"#REF!"},null,{"$f":"#REF!","v":{"$error":"#REF!"}},{"$f":"#REF!","v":{"$error":"#REF!"}},null,null,{"$f":"#REF!","v":{"$error":"#REF!"}},800001965,"http://www.xbrl.org/scheme/companyName",null,{"$f":"Periodos!$C$4","v":"2017-12-31"},{"$f":"#REF!","v":{"$error":"#REF!"}},{"$f":"#REF!","v":{"$error":"#REF!"}}]
[{"$error":"#REF!"},null,{"$f":"#REF!","v":{"$error":"#REF!"}},{"$f":"#REF!","v":{"$error":"#REF!"}},null,null,{"$f":"#REF!","v":{"$error":"#REF!"}},800001965,"http://www.xbrl.org/scheme/companyName",null,{"$f":"Periodos!$C$4","v":"2017-12-31"},{"$f":"#REF!","v":{"$error":"#REF!"}},{"$f":"#REF!","v":{"$error":"#REF!"}}]
[{"$error":"#REF!"},null,{"$f":"#REF!","v":{"$error":"#REF!"}},{"$f":"#REF!","v":{"$error":"#REF!"}},null,null,{"$f":"#REF!","v":{"$error":"#REF!"}},800001965,"http://www.xbrl.org/scheme/companyName",null,{"$f":"Periodos!$C$4","v":"2017-12-31"},{"$f":"#REF!","v":{"$error":"#REF!"}},{"$f":"#REF!","v":{"$error":"#REF!"}}]
[{"$error":"#REF!"},null,{"$f":"#REF!","v":{"$error":"#REF!"}},{"$f":"#REF!","v":{"$error":"#REF!"}},null,null,{"$f":"#REF!","v":{"$error":"#REF!"}},800001965,"http://www.xbrl.org/scheme/companyName",null,{"$f":"Periodos!$C$4","v":"2017-12-31"},{"$f":"#REF!","v":{"$error":"#REF!"}},{"$f":"#REF!","v":{"$error":"#REF!"}}]
[{"$error":"#REF!"},null,{"$f":"#REF!","v":{"$error":"#REF!"}},{"$f":"#REF!","v":{"$error":"#REF!"}},null,null,{"$f":"#REF!","v":{"$error":"#REF!"}},800001965,"http://www.xbrl.org/scheme/companyName",null,{"$f":"Periodos!$C$4","v":"2017-12-31"},{"$f":"#REF!","v":{"$error":"#REF!"}},{"$f":"#REF!","v":{"$error":"#REF!"}}]
[{"$error":"#REF!"},null,{"$f":"#REF!","v":{"$error":"#REF!"}},{"$f":"#REF!","v":{"$error":"#REF!"}},null,null,{"$f":"#REF!","v":{"$error":"#REF!"}},800001965,"http://www.xbrl.org/scheme/companyName",null,{"$f":"Periodos!$C$4","v":"2017-12-31"},{"$f":"#REF!","v":{"$error":"#REF!"}},{"$f":"#REF!","v":{"$error":"#REF!"}}]
[{"$error":"#REF!"},null,{"$f":"#REF!","v":{"$error":"#REF!"}},{"$f":"#REF!","v":{"$error":"#REF!"}},null,null,{"$f":"#REF!","v":{"$error":"#REF!"}},800001965,"http://www.xbrl.org/scheme/companyName",null,{"$f":"Periodos!$C$4","v":"2017-12-31"},{"$f":"#REF!","v":{"$error":"#REF!"}},{"$f":"#REF!","v":{"$error":"#REF!"}}]
[{"$error":"#REF!"},null,{"$f":"#REF!","v":{"$error":"#REF!"}},{"$f":"#REF!","v":{"$error":"#REF!"}},null,null,{"$f":"#REF!","v":{"$error":"#REF!"}},800001965,"http://www.xbrl.org/scheme/companyName",null,{"$f":"Periodos!$C$4","v":"2017-12-31"},{"$f":"#REF!","v":{"$error":"#REF!"}},{"$f":"#REF!","v":{"$error":"#REF!"}}]
[{"$error":"#REF!"},null,{"$f":"#REF!","v":{"$error":"#REF!"}},{"$f":"#REF!","v":{"$error":"#REF!"}},0,"peso",{"$f":"#REF!","v":{"$error":"#REF!"}},800001965,"http://www.xbrl.org/scheme/companyName",null,{"$f":"Periodos!$C$4","v":"2017-12-31"},{"$f":"#REF!","v":{"$error":"#REF!"}},{"$f":"#REF!","v":{"$error":"#REF!"}}]
["/*",null,"--118--"]
[{"$error":"#REF!"},null,{"$f":"#REF!","v":{"$error":"#REF!"}},{"$f":"#REF!","v":{"$error":"#REF!"}},null,null,{"$f":"#REF!","v":{"$error":"#REF!"}},800001965,"http://www.xbrl.org/scheme/companyName",null,{"$f":"Periodos!$C$4","v":"2017-12-31"},{"$f":"#REF!","v":{"$error":"#REF!"}},{"$f":"#REF!","v":{"$error":"#REF!"}}]
[{"$error":"#REF!"},null,{"$f":"#REF!","v":{"$error":"#REF!"}},{"$f":"#REF!","v":{"$error":"#REF!"}},null,null,{"$f":"#REF!","v":{"$error":"#REF!"}},800001965,"http://www.xbrl.org/scheme/companyName",null,{"$f":"Periodos!$C$4","v":"2017-12-31"},{"$f":"#REF!","v":{"$error":"#REF!"}},{"$f":"#REF!","v":{"$error":"#REF!"}}]
[{"$error":"#REF!"},null,{"$f":"#REF!","v":{"$error":"#REF!"}},{"$f":"#REF!","v":{"$error":"#REF!"}},null,null,{"$f":"#REF!","v":{"$error":"#REF!"}},800001965,"http://www.xbrl.org/scheme/companyName",null,{"$f":"Periodos!$C$4","v":"2017-12-31"},{"$f":"#REF!","v":{"$error":"#REF!"}},{"$f":"#REF!","v":{"$error":"#REF!"}}]
[{"$error":"#REF!"},null,{"$f":"#REF!","v":{"$error":"#REF!"}},{"$f":"#REF!","v":{"$error":"#REF!"}},null,null,{"$f":"#REF!","v":{"$error":"#REF!"}},800001965,"http://www.xbrl.org/scheme/companyName",null,{"$f":"Periodos!$C$4","v":"2017-12-31"},{"$f":"#REF!","v":{"$error":"#REF!"}},{"$f":"#REF!","v":{"$error":"#REF!"}}]
[{"$error":"#REF!"},null,{"$f":"#REF!","v":{"$error":"#REF!"}},{"$f":"#REF!","v":{"$error":"#REF!"}},null,null,{"$f":"#REF!","v":{"$error":"#REF!"}},800001965,"http://www.xbrl.org/scheme/companyName",null,{"$f":"Periodos!$C$4","v":"2017-12-31"},{"$f":"#REF!","v":{"$error":"#REF!"}},{"$f":"#REF!","v":{"$error":"#REF!"}}]
[{"$error":"#REF!"},null,{"$f":"#REF!","v":{"$error":"#REF!"}},{"$f":"#REF!","v":{"$error":"#REF!"}},null,null,{"$f":"#REF!","v":{"$error":"#REF!"}},800001965,"http://www.xbrl.org/scheme/companyName",null,{"$f":"Periodos!$C$4","v":"2017-12-31"},{"$f":"#REF!","v":{"$error":"#REF!"}},{"$f":"#REF!","v":{"$error":"#REF!"}}]
[{"$error":"#REF!"},null,{"$f":"#REF!","v":{"$error":"#REF!"}},{"$f":"#REF!","v":{"$error":"#REF!"}},null,null,{"$f":"#REF!","v":{"$error":"#REF!"}},800001965,"http://www.xbrl.org/scheme/companyName",null,{"$f":"Periodos!$C$4","v":"2017-12-31"},{"$f":"#REF!","v":{"$error":"#REF!"}},{"$f":"#REF!","v":{"$error":"#REF!"}}]
[{"$error":"#REF!"},null,{"$f":"#REF!","v":{"$error":"#REF!"}},{"$f":"#REF!","v":{"$error":"#REF!"}},null,null,{"$f":"#REF!","v":{"$error":"#REF!"}},800001965,"http://www.xbrl.org/scheme/companyName",null,{"$f":"Periodos!$C$4","v":"2017-12-31"},{"$f":"#REF!","v":{"$error":"#REF!"}},{"$f":"#REF!","v":{"$error":"#REF!"}}]
[{"$error":"#REF!"},null,{"$f":"#REF!","v":{"$error":"#REF!"}},{"$f":"#REF!","v":{"$error":"#REF!"}},null,null,{"$f":"#REF!","v":{"$error":"#REF!"}},800001965,"http://www.xbrl.org/scheme/companyName",null,{"$f":"Periodos!$C$4","v":"2017-12-31"},{"$f":"#REF!","v":{"$error":"#REF!"}},{"$f":"#REF!","v":{"$error":"#REF!"}}]
[{"$error":"#REF!"},null,{"$f":"#REF!","v":{"$error":"#REF!"}},{"$f":"#REF!","v":{"$error":"#REF!"}},null,null,{"$f":"#REF!","v":{"$error":"#REF!"}},800001965,"http://www.xbrl.org/scheme/companyName",null,{"$f":"Periodos!$C$4","v":"2017-12-31"},{"$f":"#REF!","v":{"$error":"#REF!"}},{"$f":"#REF!","v":{"$error":"#REF!"}}]
[{"$error":"#REF!"},null,{"$f":"#REF!","v":{"$error":"#REF!"}},{"$f":"#REF!","v":{"$error":"#REF!"}},null,null,{"$f":"#REF!","v":{"$error":"#REF!"}},800001965,"http://www.xbrl.org/scheme/companyName",null,{"$f":"Periodos!$C$4","v":"2017-12-31"},{"$f":"#REF!","v":{"$error":"#REF!"}},{"$f":"#REF!","v":{"$error":"#REF!"}}]
[{"$error":"#REF!"},null,{"$f":"#REF!","v":{"$error":"#REF!"}},{"$f":"#REF!","v":{"$error":"#REF!"}},0,"peso",{"$f":"#REF!","v":{"$error":"#REF!"}},800001965,"http://www.xbrl.org/scheme/companyName",null,{"$f":"Periodos!$C$4","v":"2017-12-31"},{"$f":"#REF!","v":{"$error":"#REF!"}},{"$f":"#REF!","v":{"$error":"#REF!"}}]
["/*",null,"--119--"]
[{"$error":"#REF!"},null,{"$f":"#REF!","v":{"$error":"#REF!"}},{"$f":"#REF!","v":{"$error":"#REF!"}},null,null,{"$f":"#REF!","v":{"$error":"#REF!"}},800001965,"http://www.xbrl.org/scheme/companyName",null,{"$f":"Periodos!$C$4","v":"2017-12-31"},{"$f":"#REF!","v":{"$error":"#REF!"}},{"$f":"#REF!","v":{"$error":"#REF!"}}]
[{"$error":"#REF!"},null,{"$f":"#REF!","v":{"$error":"#REF!"}},{"$f":"#REF!","v":{"$error":"#REF!"}},null,null,{"$f":"#REF!","v":{"$error":"#REF!"}},800001965,"http://www.xbrl.org/scheme/companyName",null,{"$f":"Periodos!$C$4","v":"2017-12-31"},{"$f":"#REF!","v":{"$error":"#REF!"}},{"$f":"#REF!","v":{"$error":"#REF!"}}]
[{"$error":"#REF!"},null,{"$f":"#REF!","v":{"$error":"#REF!"}},{"$f":"#REF!","v":{"$error":"#REF!"}},null,null,{"$f":"#REF!","v":{"$error":"#REF!"}},800001965,"http://www.xbrl.org/scheme/companyName",null,{"$f":"Periodos!$C$4","v":"2017-12-31"},{"$f":"#REF!","v":{"$error":"#REF!"}},{"$f":"#REF!","v":{"$error":"#REF!"}}]
[{"$error":"#REF!"},null,{"$f":"#REF!","v":{"$error":"#REF!"}},{"$f":"#REF!","v":{"$error":"#REF!"}},null,null,{"$f":"#REF!","v":{"$error":"#REF!"}},800001965,"http://www.xbrl.org/scheme/companyName",null,{"$f":"Periodos!$C$4","v":"2017-12-31"},{"$f":"#REF!","v":{"$error":"#REF!"}},{"$f":"#REF!","v":{"$error":"#REF!"}}]
[{"$error":"#REF!"},null,{"$f":"#REF!","v":{"$error":"#REF!"}},{"$f":"#REF!","v":{"$error":"#REF!"}},null,null,{"$f":"#REF!","v":{"$error":"#REF!"}},800001965,"http://www.xbrl.org/scheme/companyName",null,{"$f":"Periodos!$C$4","v":"2017-12-31"},{"$f":"#REF!","v":{"$error":"#REF!"}},{"$f":"#REF!","v":{"$error":"#REF!"}}]
[{"$error":"#REF!"},null,{"$f":"#REF!","v":{"$error":"#REF!"}},{"$f":"#REF!","v":{"$error":"#REF!"}},null,null,{"$f":"#REF!","v":{"$error":"#REF!"}},800001965,"http://www.xbrl.org/scheme/companyName",null,{"$f":"Periodos!$C$4","v":"2017-12-31"},{"$f":"#REF!","v":{"$error":"#REF!"}},{"$f":"#REF!","v":{"$error":"#REF!"}}]
[{"$error":"#REF!"},null,{"$f":"#REF!","v":{"$error":"#REF!"}},{"$f":"#REF!","v":{"$error":"#REF!"}},null,null,{"$f":"#REF!","v":{"$error":"#REF!"}},800001965,"http://www.xbrl.org/scheme/companyName",null,{"$f":"Periodos!$C$4","v":"2017-12-31"},{"$f":"#REF!","v":{"$error":"#REF!"}},{"$f":"#REF!","v":{"$error":"#REF!"}}]
[{"$error":"#REF!"},null,{"$f":"#REF!","v":{"$error":"#REF!"}},{"$f":"#REF!","v":{"$error":"#REF!"}},null,null,{"$f":"#REF!","v":{"$error":"#REF!"}},800001965,"http://www.xbrl.org/scheme/companyName",null,{"$f":"Periodos!$C$4","v":"2017-12-31"},{"$f":"#REF!","v":{"$error":"#REF!"}},{"$f":"#REF!","v":{"$error":"#REF!"}}]
[{"$error":"#REF!"},null,{"$f":"#REF!","v":{"$error":"#REF!"}},{"$f":"#REF!","v":{"$error":"#REF!"}},null,null,{"$f":"#REF!","v":{"$error":"#REF!"}},800001965,"http://www.xbrl.org/scheme/companyName",null,{"$f":"Periodos!$C$4","v":"2017-12-31"},{"$f":"#REF!","v":{"$error":"#REF!"}},{"$f":"#REF!","v":{"$error":"#REF!"}}]
[{"$error":"#REF!"},null,{"$f":"#REF!","v":{"$error":"#REF!"}},{"$f":"#REF!","v":{"$error":"#REF!"}},null,null,{"$f":"#REF!","v":{"$error":"#REF!"}},800001965,"http://www.xbrl.org/scheme/companyName",null,{"$f":"Periodos!$C$4","v":"2017-12-31"},{"$f":"#REF!","v":{"$error":"#REF!"}},{"$f":"#REF!","v":{"$error":"#REF!"}}]
[{"$error":"#REF!"},null,{"$f":"#REF!","v":{"$error":"#REF!"}},{"$f":"#REF!","v":{"$error":"#REF!"}},null,null,{"$f":"#REF!","v":{"$error":"#REF!"}},800001965,"http://www.xbrl.org/scheme/companyName",null,{"$f":"Periodos!$C$4","v":"2017-12-31"},{"$f":"#REF!","v":{"$error":"#REF!"}},{"$f":"#REF!","v":{"$error":"#REF!"}}]
[{"$error":"#REF!"},null,{"$f":"#REF!","v":{"$error":"#REF!"}},{"$f":"#REF!","v":{"$error":"#REF!"}},0,"peso",{"$f":"#REF!","v":{"$error":"#REF!"}},800001965,"http://www.xbrl.org/scheme/companyName",null,{"$f":"Periodos!$C$4","v":"2017-12-31"},{"$f":"#REF!","v":{"$error":"#REF!"}},{"$f":"#REF!","v":{"$error":"#REF!"}}]
["/*",null,"--120--"]
[{"$error":"#REF!"},null,{"$f":"#REF!","v":{"$error":"#REF!"}},{"$f":"#REF!","v":{"$error":"#REF!"}},null,null,{"$f":"#REF!","v":{"$error":"#REF!"}},800001965,"http://www.xbrl.org/scheme/companyName",null,{"$f":"Periodos!$C$4","v":"2017-12-31"},{"$f":"#REF!","v":{"$error":"#REF!"}},{"$f":"#REF!","v":{"$error":"#REF!"}}]
[{"$error":"#REF!"},null,{"$f":"#REF!","v":{"$error":"#REF!"}},{"$f":"#REF!","v":{"$error":"#REF!"}},null,null,{"$f":"#REF!","v":{"$error":"#REF!"}},800001965,"http://www.xbrl.org/scheme/companyName",null,{"$f":"Periodos!$C$4","v":"2017-12-31"},{"$f":"#REF!","v":{"$error":"#REF!"}},{"$f":"#REF!","v":{"$error":"#REF!"}}]
[{"$error":"#REF!"},null,{"$f":"#REF!","v":{"$error":"#REF!"}},{"$f":"#REF!","v":{"$error":"#REF!"}},null,null,{"$f":"#REF!","v":{"$error":"#REF!"}},800001965,"http://www.xbrl.org/scheme/companyName",null,{"$f":"Periodos!$C$4","v":"2017-12-31"},{"$f":"#REF!","v":{"$error":"#REF!"}},{"$f":"#REF!","v":{"$error":"#REF!"}}]
[{"$error":"#REF!"},null,{"$f":"#REF!","v":{"$error":"#REF!"}},{"$f":"#REF!","v":{"$error":"#REF!"}},null,null,{"$f":"#REF!","v":{"$error":"#REF!"}},800001965,"http://www.xbrl.org/scheme/companyName",null,{"$f":"Periodos!$C$4","v":"2017-12-31"},{"$f":"#REF!","v":{"$error":"#REF!"}},{"$f":"#REF!","v":{"$error":"#REF!"}}]
[{"$error":"#REF!"},null,{"$f":"#REF!","v":{"$error":"#REF!"}},{"$f":"#REF!","v":{"$error":"#REF!"}},null,null,{"$f":"#REF!","v":{"$error":"#REF!"}},800001965,"http://www.xbrl.org/scheme/companyName",null,{"$f":"Periodos!$C$4","v":"2017-12-31"},{"$f":"#REF!","v":{"$error":"#REF!"}},{"$f":"#REF!","v":{"$error":"#REF!"}}]
[{"$error":"#REF!"},null,{"$f":"#REF!","v":{"$error":"#REF!"}},{"$f":"#REF!","v":{"$error":"#REF!"}},null,null,{"$f":"#REF!","v":{"$error":"#REF!"}},800001965,"http://www.xbrl.org/scheme/companyName",null,{"$f":"Periodos!$C$4","v":"2017-12-31"},{"$f":"#REF!","v":{"$error":"#REF!"}},{"$f":"#REF!","v":{"$error":"#REF!"}}]
[{"$error":"#REF!"},null,{"$f":"#REF!","v":{"$error":"#REF!"}},{"$f":"#REF!","v":{"$error":"#REF!"}},null,null,{"$f":"#REF!","v":{"$error":"#REF!"}},800001965,"http://www.xbrl.org/scheme/companyName",null,{"$f":"Periodos!$C$4","v":"2017-12-31"},{"$f":"#REF!","v":{"$error":"#REF!"}},{"$f":"#REF!","v":{"$error":"#REF!"}}]
[{"$error":"#REF!"},null,{"$f":"#REF!","v":{"$error":"#REF!"}},{"$f":"#REF!","v":{"$error":"#REF!"}},null,null,{"$f":"#REF!","v":{"$error":"#REF!"}},800001965,"http://www.xbrl.org/scheme/companyName",null,{"$f":"Periodos!$C$4","v":"2017-12-31"},{"$f":"#REF!","v":{"$error":"#REF!"}},{"$f":"#REF!","v":{"$error":"#REF!"}}]
[{"$error":"#REF!"},null,{"$f":"#REF!","v":{"$error":"#REF!"}},{"$f":"#REF!","v":{"$error":"#REF!"}},null,null,{"$f":"#REF!","v":{"$error":"#REF!"}},800001965,"http://www.xbrl.org/scheme/companyName",null,{"$f":"Periodos!$C$4","v":"2017-12-31"},{"$f":"#REF!","v":{"$error":"#REF!"}},{"$f":"#REF!","v":{"$error":"#REF!"}}]
[{"$error":"#REF!"},null,{"$f":"#REF!","v":{"$error":"#REF!"}},{"$f":"#REF!","v":{"$error":"#REF!"}},null,null,{"$f":"#REF!","v":{"$error":"#REF!"}},800001965,"http://www.xbrl.org/scheme/companyName",null,{"$f":"Periodos!$C$4","v":"2017-12-31"},{"$f":"#REF!","v":{"$error":"#REF!"}},{"$f":"#REF!","v":{"$error":"#REF!"}}]
[{"$error":"#REF!"},null,{"$f":"#REF!","v":{"$error":"#REF!"}},{"$f":"#REF!","v":{"$error":"#REF!"}},null,null,{"$f":"#REF!","v":{"$error":"#REF!"}},800001965,"http://www.xbrl.org/scheme/companyName",null,{"$f":"Periodos!$C$4","v":"2017-12-31"},{"$f":"#REF!","v":{"$error":"#REF!"}},{"$f":"#REF!","v":{"$error":"#REF!"}}]
[{"$error":"#REF!"},null,{"$f":"#REF!","v":{"$error":"#REF!"}},{"$f":"#REF!","v":{"$error":"#REF!"}},0,"peso",{"$f":"#REF!","v":{"$error":"#REF!"}},800001965,"http://www.xbrl.org/scheme/companyName",null,{"$f":"Periodos!$C$4","v":"2017-12-31"},{"$f":"#REF!","v":{"$error":"#REF!"}},{"$f":"#REF!","v":{"$error":"#REF!"}}]
["/*",null,"--121--"]
[{"$error":"#REF!"},null,{"$f":"#REF!","v":{"$error":"#REF!"}},{"$f":"#REF!","v":{"$error":"#REF!"}},null,null,{"$f":"#REF!","v":{"$error":"#REF!"}},800001965,"http://www.xbrl.org/scheme/companyName",null,{"$f":"Periodos!$C$4","v":"2017-12-31"},{"$f":"#REF!","v":{"$error":"#REF!"}},{"$f":"#REF!","v":{"$error":"#REF!"}}]
[{"$error":"#REF!"},null,{"$f":"#REF!","v":{"$error":"#REF!"}},{"$f":"#REF!","v":{"$error":"#REF!"}},null,null,{"$f":"#REF!","v":{"$error":"#REF!"}},800001965,"http://www.xbrl.org/scheme/companyName",null,{"$f":"Periodos!$C$4","v":"2017-12-31"},{"$f":"#REF!","v":{"$error":"#REF!"}},{"$f":"#REF!","v":{"$error":"#REF!"}}]
[{"$error":"#REF!"},null,{"$f":"#REF!","v":{"$error":"#REF!"}},{"$f":"#REF!","v":{"$error":"#REF!"}},null,null,{"$f":"#REF!","v":{"$error":"#REF!"}},800001965,"http://www.xbrl.org/scheme/companyName",null,{"$f":"Periodos!$C$4","v":"2017-12-31"},{"$f":"#REF!","v":{"$error":"#REF!"}},{"$f":"#REF!","v":{"$error":"#REF!"}}]
[{"$f":"IF(G3233=\"\",\"/*\",\"\")","v":{"$error":"#REF!"}},null,{"$f":"#REF!","v":{"$error":"#REF!"}},{"$f":"#REF!","v":{"$error":"#REF!"}},null,null,{"$f":"#REF!","v":{"$error":"#REF!"}},800001965,"http://www.xbrl.org/scheme/companyName",null,{"$f":"Periodos!$C$4","v":"2017-12-31"},{"$f":"#REF!","v":{"$error":"#REF!"}},{"$f":"#REF!","v":{"$error":"#REF!"}}]
[{"$error":"#REF!"},null,{"$f":"#REF!","v":{"$error":"#REF!"}},{"$f":"#REF!","v":{"$error":"#REF!"}},null,null,{"$f":"#REF!","v":{"$error":"#REF!"}},800001965,"http://www.xbrl.org/scheme/companyName",null,{"$f":"Periodos!$C$4","v":"2017-12-31"},{"$f":"#REF!","v":{"$error":"#REF!"}},{"$f":"#REF!","v":{"$error":"#REF!"}}]
[{"$error":"#REF!"},null,{"$f":"#REF!","v":{"$error":"#REF!"}},{"$f":"#REF!","v":{"$error":"#REF!"}},null,null,{"$f":"#REF!","v":{"$error":"#REF!"}},800001965,"http://www.xbrl.org/scheme/companyName",null,{"$f":"Periodos!$C$4","v":"2017-12-31"},{"$f":"#REF!","v":{"$error":"#REF!"}},{"$f":"#REF!","v":{"$error":"#REF!"}}]
[{"$error":"#REF!"},null,{"$f":"#REF!","v":{"$error":"#REF!"}},{"$f":"#REF!","v":{"$error":"#REF!"}},null,null,{"$f":"#REF!","v":{"$error":"#REF!"}},800001965,"http://www.xbrl.org/scheme/companyName",null,{"$f":"Periodos!$C$4","v":"2017-12-31"},{"$f":"#REF!","v":{"$error":"#REF!"}},{"$f":"#REF!","v":{"$error":"#REF!"}}]
[{"$error":"#REF!"},null,{"$f":"#REF!","v":{"$error":"#REF!"}},{"$f":"#REF!","v":{"$error":"#REF!"}},null,null,{"$f":"#REF!","v":{"$error":"#REF!"}},800001965,"http://www.xbrl.org/scheme/companyName",null,{"$f":"Periodos!$C$4","v":"2017-12-31"},{"$f":"#REF!","v":{"$error":"#REF!"}},{"$f":"#REF!","v":{"$error":"#REF!"}}]
[{"$error":"#REF!"},null,{"$f":"#REF!","v":{"$error":"#REF!"}},{"$f":"#REF!","v":{"$error":"#REF!"}},null,null,{"$f":"#REF!","v":{"$error":"#REF!"}},800001965,"http://www.xbrl.org/scheme/companyName",null,{"$f":"Periodos!$C$4","v":"2017-12-31"},{"$f":"#REF!","v":{"$error":"#REF!"}},{"$f":"#REF!","v":{"$error":"#REF!"}}]
[{"$error":"#REF!"},null,{"$f":"#REF!","v":{"$error":"#REF!"}},{"$f":"#REF!","v":{"$error":"#REF!"}},null,null,{"$f":"#REF!","v":{"$error":"#REF!"}},800001965,"http://www.xbrl.org/scheme/companyName",null,{"$f":"Periodos!$C$4","v":"2017-12-31"},{"$f":"#REF!","v":{"$error":"#REF!"}},{"$f":"#REF!","v":{"$error":"#REF!"}}]
[{"$error":"#REF!"},null,{"$f":"#REF!","v":{"$error":"#REF!"}},{"$f":"#REF!","v":{"$error":"#REF!"}},null,null,{"$f":"#REF!","v":{"$error":"#REF!"}},800001965,"http://www.xbrl.org/scheme/companyName",null,{"$f":"Periodos!$C$4","v":"2017-12-31"},{"$f":"#REF!","v":{"$error":"#REF!"}},{"$f":"#REF!","v":{"$error":"#REF!"}}]
[{"$error":"#REF!"},null,{"$f":"#REF!","v":{"$error":"#REF!"}},{"$f":"#REF!","v":{"$error":"#REF!"}},0,"peso",{"$f":"#REF!","v":{"$error":"#REF!"}},800001965,"http://www.xbrl.org/scheme/companyName",null,{"$f":"Periodos!$C$4","v":"2017-12-31"},{"$f":"#REF!","v":{"$error":"#REF!"}},{"$f":"#REF!","v":{"$error":"#REF!"}}]
["/*",null,"--122--"]
[{"$error":"#REF!"},null,{"$f":"#REF!","v":{"$error":"#REF!"}},{"$f":"#REF!","v":{"$error":"#REF!"}},null,null,{"$f":"#REF!","v":{"$error":"#REF!"}},800001965,"http://www.xbrl.org/scheme/companyName",null,{"$f":"Periodos!$C$4","v":"2017-12-31"},{"$f":"#REF!","v":{"$error":"#REF!"}},{"$f":"#REF!","v":{"$error":"#REF!"}}]
[{"$error":"#REF!"},null,{"$f":"#REF!","v":{"$error":"#REF!"}},{"$f":"#REF!","v":{"$error":"#REF!"}},null,null,{"$f":"#REF!","v":{"$error":"#REF!"}},800001965,"http://www.xbrl.org/scheme/companyName",null,{"$f":"Periodos!$C$4","v":"2017-12-31"},{"$f":"#REF!","v":{"$error":"#REF!"}},{"$f":"#REF!","v":{"$error":"#REF!"}}]
[{"$error":"#REF!"},null,{"$f":"#REF!","v":{"$error":"#REF!"}},{"$f":"#REF!","v":{"$error":"#REF!"}},null,null,{"$f":"#REF!","v":{"$error":"#REF!"}},800001965,"http://www.xbrl.org/scheme/companyName",null,{"$f":"Periodos!$C$4","v":"2017-12-31"},{"$f":"#REF!","v":{"$error":"#REF!"}},{"$f":"#REF!","v":{"$error":"#REF!"}}]
[{"$error":"#REF!"},null,{"$f":"#REF!","v":{"$error":"#REF!"}},{"$f":"#REF!","v":{"$error":"#REF!"}},null,null,{"$f":"#REF!","v":{"$error":"#REF!"}},800001965,"http://www.xbrl.org/scheme/companyName",null,{"$f":"Periodos!$C$4","v":"2017-12-31"},{"$f":"#REF!","v":{"$error":"#REF!"}},{"$f":"#REF!","v":{"$error":"#REF!"}}]
[{"$error":"#REF!"},null,{"$f":"#REF!","v":{"$error":"#REF!"}},{"$f":"#REF!","v":{"$error":"#REF!"}},null,null,{"$f":"#REF!","v":{"$error":"#REF!"}},800001965,"http://www.xbrl.org/scheme/companyName",null,{"$f":"Periodos!$C$4","v":"2017-12-31"},{"$f":"#REF!","v":{"$error":"#REF!"}},{"$f":"#REF!","v":{"$error":"#REF!"}}]
[{"$error":"#REF!"},null,{"$f":"#REF!","v":{"$error":"#REF!"}},{"$f":"#REF!","v":{"$error":"#REF!"}},null,null,{"$f":"#REF!","v":{"$error":"#REF!"}},800001965,"http://www.xbrl.org/scheme/companyName",null,{"$f":"Periodos!$C$4","v":"2017-12-31"},{"$f":"#REF!","v":{"$error":"#REF!"}},{"$f":"#REF!","v":{"$error":"#REF!"}}]
[{"$error":"#REF!"},null,{"$f":"#REF!","v":{"$error":"#REF!"}},{"$f":"#REF!","v":{"$error":"#REF!"}},null,null,{"$f":"#REF!","v":{"$error":"#REF!"}},800001965,"http://www.xbrl.org/scheme/companyName",null,{"$f":"Periodos!$C$4","v":"2017-12-31"},{"$f":"#REF!","v":{"$error":"#REF!"}},{"$f":"#REF!","v":{"$error":"#REF!"}}]
[{"$error":"#REF!"},null,{"$f":"#REF!","v":{"$error":"#REF!"}},{"$f":"#REF!","v":{"$error":"#REF!"}},null,null,{"$f":"#REF!","v":{"$error":"#REF!"}},800001965,"http://www.xbrl.org/scheme/companyName",null,{"$f":"Periodos!$C$4","v":"2017-12-31"},{"$f":"#REF!","v":{"$error":"#REF!"}},{"$f":"#REF!","v":{"$error":"#REF!"}}]
[{"$error":"#REF!"},null,{"$f":"#REF!","v":{"$error":"#REF!"}},{"$f":"#REF!","v":{"$error":"#REF!"}},null,null,{"$f":"#REF!","v":{"$error":"#REF!"}},800001965,"http://www.xbrl.org/scheme/companyName",null,{"$f":"Periodos!$C$4","v":"2017-12-31"},{"$f":"#REF!","v":{"$error":"#REF!"}},{"$f":"#REF!","v":{"$error":"#REF!"}}]
[{"$error":"#REF!"},null,{"$f":"#REF!","v":{"$error":"#REF!"}},{"$f":"#REF!","v":{"$error":"#REF!"}},null,null,{"$f":"#REF!","v":{"$error":"#REF!"}},800001965,"http://www.xbrl.org/scheme/companyName",null,{"$f":"Periodos!$C$4","v":"2017-12-31"},{"$f":"#REF!","v":{"$error":"#REF!"}},{"$f":"#REF!","v":{"$error":"#REF!"}}]
[{"$error":"#REF!"},null,{"$f":"#REF!","v":{"$error":"#REF!"}},{"$f":"#REF!","v":{"$error":"#REF!"}},null,null,{"$f":"#REF!","v":{"$error":"#REF!"}},800001965,"http://www.xbrl.org/scheme/companyName",null,{"$f":"Periodos!$C$4","v":"2017-12-31"},{"$f":"#REF!","v":{"$error":"#REF!"}},{"$f":"#REF!","v":{"$error":"#REF!"}}]
[{"$error":"#REF!"},null,{"$f":"#REF!","v":{"$error":"#REF!"}},{"$f":"#REF!","v":{"$error":"#REF!"}},0,"peso",{"$f":"#REF!","v":{"$error":"#REF!"}},800001965,"http://www.xbrl.org/scheme/companyName",null,{"$f":"Periodos!$C$4","v":"2017-12-31"},{"$f":"#REF!","v":{"$error":"#REF!"}},{"$f":"#REF!","v":{"$error":"#REF!"}}]
["/*",null,"--123--"]
[{"$error":"#REF!"},null,{"$f":"#REF!","v":{"$error":"#REF!"}},{"$f":"#REF!","v":{"$error":"#REF!"}},null,null,{"$f":"#REF!","v":{"$error":"#REF!"}},800001965,"http://www.xbrl.org/scheme/companyName",null,{"$f":"Periodos!$C$4","v":"2017-12-31"},{"$f":"#REF!","v":{"$error":"#REF!"}},{"$f":"#REF!","v":{"$error":"#REF!"}}]
[{"$error":"#REF!"},null,{"$f":"#REF!","v":{"$error":"#REF!"}},{"$f":"#REF!","v":{"$error":"#REF!"}},null,null,{"$f":"#REF!","v":{"$error":"#REF!"}},800001965,"http://www.xbrl.org/scheme/companyName",null,{"$f":"Periodos!$C$4","v":"2017-12-31"},{"$f":"#REF!","v":{"$error":"#REF!"}},{"$f":"#REF!","v":{"$error":"#REF!"}}]
[{"$error":"#REF!"},null,{"$f":"#REF!","v":{"$error":"#REF!"}},{"$f":"#REF!","v":{"$error":"#REF!"}},null,null,{"$f":"#REF!","v":{"$error":"#REF!"}},800001965,"http://www.xbrl.org/scheme/companyName",null,{"$f":"Periodos!$C$4","v":"2017-12-31"},{"$f":"#REF!","v":{"$error":"#REF!"}},{"$f":"#REF!","v":{"$error":"#REF!"}}]
[{"$error":"#REF!"},null,{"$f":"#REF!","v":{"$error":"#REF!"}},{"$f":"#REF!","v":{"$error":"#REF!"}},null,null,{"$f":"#REF!","v":{"$error":"#REF!"}},800001965,"http://www.xbrl.org/scheme/companyName",null,{"$f":"Periodos!$C$4","v":"2017-12-31"},{"$f":"#REF!","v":{"$error":"#REF!"}},{"$f":"#REF!","v":{"$error":"#REF!"}}]
[{"$error":"#REF!"},null,{"$f":"#REF!","v":{"$error":"#REF!"}},{"$f":"#REF!","v":{"$error":"#REF!"}},null,null,{"$f":"#REF!","v":{"$error":"#REF!"}},800001965,"http://www.xbrl.org/scheme/companyName",null,{"$f":"Periodos!$C$4","v":"2017-12-31"},{"$f":"#REF!","v":{"$error":"#REF!"}},{"$f":"#REF!","v":{"$error":"#REF!"}}]
[{"$error":"#REF!"},null,{"$f":"#REF!","v":{"$error":"#REF!"}},{"$f":"#REF!","v":{"$error":"#REF!"}},null,null,{"$f":"#REF!","v":{"$error":"#REF!"}},800001965,"http://www.xbrl.org/scheme/companyName",null,{"$f":"Periodos!$C$4","v":"2017-12-31"},{"$f":"#REF!","v":{"$error":"#REF!"}},{"$f":"#REF!","v":{"$error":"#REF!"}}]
[{"$error":"#REF!"},null,{"$f":"#REF!","v":{"$error":"#REF!"}},{"$f":"#REF!","v":{"$error":"#REF!"}},null,null,{"$f":"#REF!","v":{"$error":"#REF!"}},800001965,"http://www.xbrl.org/scheme/companyName",null,{"$f":"Periodos!$C$4","v":"2017-12-31"},{"$f":"#REF!","v":{"$error":"#REF!"}},{"$f":"#REF!","v":{"$error":"#REF!"}}]
[{"$error":"#REF!"},null,{"$f":"#REF!","v":{"$error":"#REF!"}},{"$f":"#REF!","v":{"$error":"#REF!"}},null,null,{"$f":"#REF!","v":{"$error":"#REF!"}},800001965,"http://www.xbrl.org/scheme/companyName",null,{"$f":"Periodos!$C$4","v":"2017-12-31"},{"$f":"#REF!","v":{"$error":"#REF!"}},{"$f":"#REF!","v":{"$error":"#REF!"}}]
[{"$error":"#REF!"},null,{"$f":"#REF!","v":{"$error":"#REF!"}},{"$f":"#REF!","v":{"$error":"#REF!"}},null,null,{"$f":"#REF!","v":{"$error":"#REF!"}},800001965,"http://www.xbrl.org/scheme/companyName",null,{"$f":"Periodos!$C$4","v":"2017-12-31"},{"$f":"#REF!","v":{"$error":"#REF!"}},{"$f":"#REF!","v":{"$error":"#REF!"}}]
[{"$error":"#REF!"},null,{"$f":"#REF!","v":{"$error":"#REF!"}},{"$f":"#REF!","v":{"$error":"#REF!"}},null,null,{"$f":"#REF!","v":{"$error":"#REF!"}},800001965,"http://www.xbrl.org/scheme/companyName",null,{"$f":"Periodos!$C$4","v":"2017-12-31"},{"$f":"#REF!","v":{"$error":"#REF!"}},{"$f":"#REF!","v":{"$error":"#REF!"}}]
[{"$error":"#REF!"},null,{"$f":"#REF!","v":{"$error":"#REF!"}},{"$f":"#REF!","v":{"$error":"#REF!"}},null,null,{"$f":"#REF!","v":{"$error":"#REF!"}},800001965,"http://www.xbrl.org/scheme/companyName",null,{"$f":"Periodos!$C$4","v":"2017-12-31"},{"$f":"#REF!","v":{"$error":"#REF!"}},{"$f":"#REF!","v":{"$error":"#REF!"}}]
[{"$error":"#REF!"},null,{"$f":"#REF!","v":{"$error":"#REF!"}},{"$f":"#REF!","v":{"$error":"#REF!"}},0,"peso",{"$f":"#REF!","v":{"$error":"#REF!"}},800001965,"http://www.xbrl.org/scheme/companyName",null,{"$f":"Periodos!$C$4","v":"2017-12-31"},{"$f":"#REF!","v":{"$error":"#REF!"}},{"$f":"#REF!","v":{"$error":"#REF!"}}]
["/*",null,"--124--"]
[{"$error":"#REF!"},null,{"$f":"#REF!","v":{"$error":"#REF!"}},{"$f":"#REF!","v":{"$error":"#REF!"}},null,null,{"$f":"#REF!","v":{"$error":"#REF!"}},800001965,"http://www.xbrl.org/scheme/companyName",null,{"$f":"Periodos!$C$4","v":"2017-12-31"},{"$f":"#REF!","v":{"$error":"#REF!"}},{"$f":"#REF!","v":{"$error":"#REF!"}}]
[{"$error":"#REF!"},null,{"$f":"#REF!","v":{"$error":"#REF!"}},{"$f":"#REF!","v":{"$error":"#REF!"}},null,null,{"$f":"#REF!","v":{"$error":"#REF!"}},800001965,"http://www.xbrl.org/scheme/companyName",null,{"$f":"Periodos!$C$4","v":"2017-12-31"},{"$f":"#REF!","v":{"$error":"#REF!"}},{"$f":"#REF!","v":{"$error":"#REF!"}}]
[{"$error":"#REF!"},null,{"$f":"#REF!","v":{"$error":"#REF!"}},{"$f":"#REF!","v":{"$error":"#REF!"}},null,null,{"$f":"#REF!","v":{"$error":"#REF!"}},800001965,"http://www.xbrl.org/scheme/companyName",null,{"$f":"Periodos!$C$4","v":"2017-12-31"},{"$f":"#REF!","v":{"$error":"#REF!"}},{"$f":"#REF!","v":{"$error":"#REF!"}}]
[{"$error":"#REF!"},null,{"$f":"#REF!","v":{"$error":"#REF!"}},{"$f":"#REF!","v":{"$error":"#REF!"}},null,null,{"$f":"#REF!","v":{"$error":"#REF!"}},800001965,"http://www.xbrl.org/scheme/companyName",null,{"$f":"Periodos!$C$4","v":"2017-12-31"},{"$f":"#REF!","v":{"$error":"#REF!"}},{"$f":"#REF!","v":{"$error":"#REF!"}}]
[{"$error":"#REF!"},null,{"$f":"#REF!","v":{"$error":"#REF!"}},{"$f":"#REF!","v":{"$error":"#REF!"}},null,null,{"$f":"#REF!","v":{"$error":"#REF!"}},800001965,"http://www.xbrl.org/scheme/companyName",null,{"$f":"Periodos!$C$4","v":"2017-12-31"},{"$f":"#REF!","v":{"$error":"#REF!"}},{"$f":"#REF!","v":{"$error":"#REF!"}}]
[{"$error":"#REF!"},null,{"$f":"#REF!","v":{"$error":"#REF!"}},{"$f":"#REF!","v":{"$error":"#REF!"}},null,null,{"$f":"#REF!","v":{"$error":"#REF!"}},800001965,"http://www.xbrl.org/scheme/companyName",null,{"$f":"Periodos!$C$4","v":"2017-12-31"},{"$f":"#REF!","v":{"$error":"#REF!"}},{"$f":"#REF!","v":{"$error":"#REF!"}}]
[{"$error":"#REF!"},null,{"$f":"#REF!","v":{"$error":"#REF!"}},{"$f":"#REF!","v":{"$error":"#REF!"}},null,null,{"$f":"#REF!","v":{"$error":"#REF!"}},800001965,"http://www.xbrl.org/scheme/companyName",null,{"$f":"Periodos!$C$4","v":"2017-12-31"},{"$f":"#REF!","v":{"$error":"#REF!"}},{"$f":"#REF!","v":{"$error":"#REF!"}}]
[{"$error":"#REF!"},null,{"$f":"#REF!","v":{"$error":"#REF!"}},{"$f":"#REF!","v":{"$error":"#REF!"}},null,null,{"$f":"#REF!","v":{"$error":"#REF!"}},800001965,"http://www.xbrl.org/scheme/companyName",null,{"$f":"Periodos!$C$4","v":"2017-12-31"},{"$f":"#REF!","v":{"$error":"#REF!"}},{"$f":"#REF!","v":{"$error":"#REF!"}}]
[{"$error":"#REF!"},null,{"$f":"#REF!","v":{"$error":"#REF!"}},{"$f":"#REF!","v":{"$error":"#REF!"}},null,null,{"$f":"#REF!","v":{"$error":"#REF!"}},800001965,"http://www.xbrl.org/scheme/companyName",null,{"$f":"Periodos!$C$4","v":"2017-12-31"},{"$f":"#REF!","v":{"$error":"#REF!"}},{"$f":"#REF!","v":{"$error":"#REF!"}}]
[{"$error":"#REF!"},null,{"$f":"#REF!","v":{"$error":"#REF!"}},{"$f":"#REF!","v":{"$error":"#REF!"}},null,null,{"$f":"#REF!","v":{"$error":"#REF!"}},800001965,"http://www.xbrl.org/scheme/companyName",null,{"$f":"Periodos!$C$4","v":"2017-12-31"},{"$f":"#REF!","v":{"$error":"#REF!"}},{"$f":"#REF!","v":{"$error":"#REF!"}}]
[{"$error":"#REF!"},null,{"$f":"#REF!","v":{"$error":"#REF!"}},{"$f":"#REF!","v":{"$error":"#REF!"}},null,null,{"$f":"#REF!","v":{"$error":"#REF!"}},800001965,"http://www.xbrl.org/scheme/companyName",null,{"$f":"Periodos!$C$4","v":"2017-12-31"},{"$f":"#REF!","v":{"$error":"#REF!"}},{"$f":"#REF!","v":{"$error":"#REF!"}}]
[{"$error":"#REF!"},null,{"$f":"#REF!","v":{"$error":"#REF!"}},{"$f":"#REF!","v":{"$error":"#REF!"}},0,"peso",{"$f":"#REF!","v":{"$error":"#REF!"}},800001965,"http://www.xbrl.org/scheme/companyName",null,{"$f":"Periodos!$C$4","v":"2017-12-31"},{"$f":"#REF!","v":{"$error":"#REF!"}},{"$f":"#REF!","v":{"$error":"#REF!"}}]
["/*",null,"--125--"]
[{"$error":"#REF!"},null,{"$f":"#REF!","v":{"$error":"#REF!"}},{"$f":"#REF!","v":{"$error":"#REF!"}},null,null,{"$f":"#REF!","v":{"$error":"#REF!"}},800001965,"http://www.xbrl.org/scheme/companyName",null,{"$f":"Periodos!$C$4","v":"2017-12-31"},{"$f":"#REF!","v":{"$error":"#REF!"}},{"$f":"#REF!","v":{"$error":"#REF!"}}]
[{"$error":"#REF!"},null,{"$f":"#REF!","v":{"$error":"#REF!"}},{"$f":"#REF!","v":{"$error":"#REF!"}},null,null,{"$f":"#REF!","v":{"$error":"#REF!"}},800001965,"http://www.xbrl.org/scheme/companyName",null,{"$f":"Periodos!$C$4","v":"2017-12-31"},{"$f":"#REF!","v":{"$error":"#REF!"}},{"$f":"#REF!","v":{"$error":"#REF!"}}]
[{"$error":"#REF!"},null,{"$f":"#REF!","v":{"$error":"#REF!"}},{"$f":"#REF!","v":{"$error":"#REF!"}},null,null,{"$f":"#REF!","v":{"$error":"#REF!"}},800001965,"http://www.xbrl.org/scheme/companyName",null,{"$f":"Periodos!$C$4","v":"2017-12-31"},{"$f":"#REF!","v":{"$error":"#REF!"}},{"$f":"#REF!","v":{"$error":"#REF!"}}]
[{"$error":"#REF!"},null,{"$f":"#REF!","v":{"$error":"#REF!"}},{"$f":"#REF!","v":{"$error":"#REF!"}},null,null,{"$f":"#REF!","v":{"$error":"#REF!"}},800001965,"http://www.xbrl.org/scheme/companyName",null,{"$f":"Periodos!$C$4","v":"2017-12-31"},{"$f":"#REF!","v":{"$error":"#REF!"}},{"$f":"#REF!","v":{"$error":"#REF!"}}]
[{"$error":"#REF!"},null,{"$f":"#REF!","v":{"$error":"#REF!"}},{"$f":"#REF!","v":{"$error":"#REF!"}},null,null,{"$f":"#REF!","v":{"$error":"#REF!"}},800001965,"http://www.xbrl.org/scheme/companyName",null,{"$f":"Periodos!$C$4","v":"2017-12-31"},{"$f":"#REF!","v":{"$error":"#REF!"}},{"$f":"#REF!","v":{"$error":"#REF!"}}]
[{"$error":"#REF!"},null,{"$f":"#REF!","v":{"$error":"#REF!"}},{"$f":"#REF!","v":{"$error":"#REF!"}},null,null,{"$f":"#REF!","v":{"$error":"#REF!"}},800001965,"http://www.xbrl.org/scheme/companyName",null,{"$f":"Periodos!$C$4","v":"2017-12-31"},{"$f":"#REF!","v":{"$error":"#REF!"}},{"$f":"#REF!","v":{"$error":"#REF!"}}]
[{"$error":"#REF!"},null,{"$f":"#REF!","v":{"$error":"#REF!"}},{"$f":"#REF!","v":{"$error":"#REF!"}},null,null,{"$f":"#REF!","v":{"$error":"#REF!"}},800001965,"http://www.xbrl.org/scheme/companyName",null,{"$f":"Periodos!$C$4","v":"2017-12-31"},{"$f":"#REF!","v":{"$error":"#REF!"}},{"$f":"#REF!","v":{"$error":"#REF!"}}]
[{"$error":"#REF!"},null,{"$f":"#REF!","v":{"$error":"#REF!"}},{"$f":"#REF!","v":{"$error":"#REF!"}},null,null,{"$f":"#REF!","v":{"$error":"#REF!"}},800001965,"http://www.xbrl.org/scheme/companyName",null,{"$f":"Periodos!$C$4","v":"2017-12-31"},{"$f":"#REF!","v":{"$error":"#REF!"}},{"$f":"#REF!","v":{"$error":"#REF!"}}]
[{"$error":"#REF!"},null,{"$f":"#REF!","v":{"$error":"#REF!"}},{"$f":"#REF!","v":{"$error":"#REF!"}},null,null,{"$f":"#REF!","v":{"$error":"#REF!"}},800001965,"http://www.xbrl.org/scheme/companyName",null,{"$f":"Periodos!$C$4","v":"2017-12-31"},{"$f":"#REF!","v":{"$error":"#REF!"}},{"$f":"#REF!","v":{"$error":"#REF!"}}]
[{"$error":"#REF!"},null,{"$f":"#REF!","v":{"$error":"#REF!"}},{"$f":"#REF!","v":{"$error":"#REF!"}},null,null,{"$f":"#REF!","v":{"$error":"#REF!"}},800001965,"http://www.xbrl.org/scheme/companyName",null,{"$f":"Periodos!$C$4","v":"2017-12-31"},{"$f":"#REF!","v":{"$error":"#REF!"}},{"$f":"#REF!","v":{"$error":"#REF!"}}]
[{"$error":"#REF!"},null,{"$f":"#REF!","v":{"$error":"#REF!"}},{"$f":"#REF!","v":{"$error":"#REF!"}},null,null,{"$f":"#REF!","v":{"$error":"#REF!"}},800001965,"http://www.xbrl.org/scheme/companyName",null,{"$f":"Periodos!$C$4","v":"2017-12-31"},{"$f":"#REF!","v":{"$error":"#REF!"}},{"$f":"#REF!","v":{"$error":"#REF!"}}]
[{"$error":"#REF!"},null,{"$f":"#REF!","v":{"$error":"#REF!"}},{"$f":"#REF!","v":{"$error":"#REF!"}},0,"peso",{"$f":"#REF!","v":{"$error":"#REF!"}},800001965,"http://www.xbrl.org/scheme/companyName",null,{"$f":"Periodos!$C$4","v":"2017-12-31"},{"$f":"#REF!","v":{"$error":"#REF!"}},{"$f":"#REF!","v":{"$error":"#REF!"}}]
["/*",null,"--126--"]
[{"$error":"#REF!"},null,{"$f":"#REF!","v":{"$error":"#REF!"}},{"$f":"#REF!","v":{"$error":"#REF!"}},null,null,{"$f":"#REF!","v":{"$error":"#REF!"}},800001965,"http://www.xbrl.org/scheme/companyName",null,{"$f":"Periodos!$C$4","v":"2017-12-31"},{"$f":"#REF!","v":{"$error":"#REF!"}},{"$f":"#REF!","v":{"$error":"#REF!"}}]
[{"$error":"#REF!"},null,{"$f":"#REF!","v":{"$error":"#REF!"}},{"$f":"#REF!","v":{"$error":"#REF!"}},null,null,{"$f":"#REF!","v":{"$error":"#REF!"}},800001965,"http://www.xbrl.org/scheme/companyName",null,{"$f":"Periodos!$C$4","v":"2017-12-31"},{"$f":"#REF!","v":{"$error":"#REF!"}},{"$f":"#REF!","v":{"$error":"#REF!"}}]
[{"$f":"IF(G3297=\"\",\"/*\",\"\")","v":{"$error":"#REF!"}},null,{"$f":"#REF!","v":{"$error":"#REF!"}},{"$f":"#REF!","v":{"$error":"#REF!"}},null,null,{"$f":"#REF!","v":{"$error":"#REF!"}},800001965,"http://www.xbrl.org/scheme/companyName",null,{"$f":"Periodos!$C$4","v":"2017-12-31"},{"$f":"#REF!","v":{"$error":"#REF!"}},{"$f":"#REF!","v":{"$error":"#REF!"}}]
[{"$error":"#REF!"},null,{"$f":"#REF!","v":{"$error":"#REF!"}},{"$f":"#REF!","v":{"$error":"#REF!"}},null,null,{"$f":"#REF!","v":{"$error":"#REF!"}},800001965,"http://www.xbrl.org/scheme/companyName",null,{"$f":"Periodos!$C$4","v":"2017-12-31"},{"$f":"#REF!","v":{"$error":"#REF!"}},{"$f":"#REF!","v":{"$error":"#REF!"}}]
[{"$error":"#REF!"},null,{"$f":"#REF!","v":{"$error":"#REF!"}},{"$f":"#REF!","v":{"$error":"#REF!"}},null,null,{"$f":"#REF!","v":{"$error":"#REF!"}},800001965,"http://www.xbrl.org/scheme/companyName",null,{"$f":"Periodos!$C$4","v":"2017-12-31"},{"$f":"#REF!","v":{"$error":"#REF!"}},{"$f":"#REF!","v":{"$error":"#REF!"}}]
[{"$error":"#REF!"},null,{"$f":"#REF!","v":{"$error":"#REF!"}},{"$f":"#REF!","v":{"$error":"#REF!"}},null,null,{"$f":"#REF!","v":{"$error":"#REF!"}},800001965,"http://www.xbrl.org/scheme/companyName",null,{"$f":"Periodos!$C$4","v":"2017-12-31"},{"$f":"#REF!","v":{"$error":"#REF!"}},{"$f":"#REF!","v":{"$error":"#REF!"}}]
[{"$error":"#REF!"},null,{"$f":"#REF!","v":{"$error":"#REF!"}},{"$f":"#REF!","v":{"$error":"#REF!"}},null,null,{"$f":"#REF!","v":{"$error":"#REF!"}},800001965,"http://www.xbrl.org/scheme/companyName",null,{"$f":"Periodos!$C$4","v":"2017-12-31"},{"$f":"#REF!","v":{"$error":"#REF!"}},{"$f":"#REF!","v":{"$error":"#REF!"}}]
[{"$error":"#REF!"},null,{"$f":"#REF!","v":{"$error":"#REF!"}},{"$f":"#REF!","v":{"$error":"#REF!"}},null,null,{"$f":"#REF!","v":{"$error":"#REF!"}},800001965,"http://www.xbrl.org/scheme/companyName",null,{"$f":"Periodos!$C$4","v":"2017-12-31"},{"$f":"#REF!","v":{"$error":"#REF!"}},{"$f":"#REF!","v":{"$error":"#REF!"}}]
[{"$error":"#REF!"},null,{"$f":"#REF!","v":{"$error":"#REF!"}},{"$f":"#REF!","v":{"$error":"#REF!"}},null,null,{"$f":"#REF!","v":{"$error":"#REF!"}},800001965,"http://www.xbrl.org/scheme/companyName",null,{"$f":"Periodos!$C$4","v":"2017-12-31"},{"$f":"#REF!","v":{"$error":"#REF!"}},{"$f":"#REF!","v":{"$error":"#REF!"}}]
[{"$error":"#REF!"},null,{"$f":"#REF!","v":{"$error":"#REF!"}},{"$f":"#REF!","v":{"$error":"#REF!"}},null,null,{"$f":"#REF!","v":{"$error":"#REF!"}},800001965,"http://www.xbrl.org/scheme/companyName",null,{"$f":"Periodos!$C$4","v":"2017-12-31"},{"$f":"#REF!","v":{"$error":"#REF!"}},{"$f":"#REF!","v":{"$error":"#REF!"}}]
[{"$error":"#REF!"},null,{"$f":"#REF!","v":{"$error":"#REF!"}},{"$f":"#REF!","v":{"$error":"#REF!"}},null,null,{"$f":"#REF!","v":{"$error":"#REF!"}},800001965,"http://www.xbrl.org/scheme/companyName",null,{"$f":"Periodos!$C$4","v":"2017-12-31"},{"$f":"#REF!","v":{"$error":"#REF!"}},{"$f":"#REF!","v":{"$error":"#REF!"}}]
[{"$error":"#REF!"},null,{"$f":"#REF!","v":{"$error":"#REF!"}},{"$f":"#REF!","v":{"$error":"#REF!"}},0,"peso",{"$f":"#REF!","v":{"$error":"#REF!"}},800001965,"http://www.xbrl.org/scheme/companyName",null,{"$f":"Periodos!$C$4","v":"2017-12-31"},{"$f":"#REF!","v":{"$error":"#REF!"}},{"$f":"#REF!","v":{"$error":"#REF!"}}]
["/*",null,"--127--"]
[{"$error":"#REF!"},null,{"$f":"#REF!","v":{"$error":"#REF!"}},{"$f":"#REF!","v":{"$error":"#REF!"}},null,null,{"$f":"#REF!","v":{"$error":"#REF!"}},800001965,"http://www.xbrl.org/scheme/companyName",null,{"$f":"Periodos!$C$4","v":"2017-12-31"},{"$f":"#REF!","v":{"$error":"#REF!"}},{"$f":"#REF!","v":{"$error":"#REF!"}}]
[{"$error":"#REF!"},null,{"$f":"#REF!","v":{"$error":"#REF!"}},{"$f":"#REF!","v":{"$error":"#REF!"}},null,null,{"$f":"#REF!","v":{"$error":"#REF!"}},800001965,"http://www.xbrl.org/scheme/companyName",null,{"$f":"Periodos!$C$4","v":"2017-12-31"},{"$f":"#REF!","v":{"$error":"#REF!"}},{"$f":"#REF!","v":{"$error":"#REF!"}}]
[{"$error":"#REF!"},null,{"$f":"#REF!","v":{"$error":"#REF!"}},{"$f":"#REF!","v":{"$error":"#REF!"}},null,null,{"$f":"#REF!","v":{"$error":"#REF!"}},800001965,"http://www.xbrl.org/scheme/companyName",null,{"$f":"Periodos!$C$4","v":"2017-12-31"},{"$f":"#REF!","v":{"$error":"#REF!"}},{"$f":"#REF!","v":{"$error":"#REF!"}}]
[{"$error":"#REF!"},null,{"$f":"#REF!","v":{"$error":"#REF!"}},{"$f":"#REF!","v":{"$error":"#REF!"}},null,null,{"$f":"#REF!","v":{"$error":"#REF!"}},800001965,"http://www.xbrl.org/scheme/companyName",null,{"$f":"Periodos!$C$4","v":"2017-12-31"},{"$f":"#REF!","v":{"$error":"#REF!"}},{"$f":"#REF!","v":{"$error":"#REF!"}}]
[{"$error":"#REF!"},null,{"$f":"#REF!","v":{"$error":"#REF!"}},{"$f":"#REF!","v":{"$error":"#REF!"}},null,null,{"$f":"#REF!","v":{"$error":"#REF!"}},800001965,"http://www.xbrl.org/scheme/companyName",null,{"$f":"Periodos!$C$4","v":"2017-12-31"},{"$f":"#REF!","v":{"$error":"#REF!"}},{"$f":"#REF!","v":{"$error":"#REF!"}}]
[{"$error":"#REF!"},null,{"$f":"#REF!","v":{"$error":"#REF!"}},{"$f":"#REF!","v":{"$error":"#REF!"}},null,null,{"$f":"#REF!","v":{"$error":"#REF!"}},800001965,"http://www.xbrl.org/scheme/companyName",null,{"$f":"Periodos!$C$4","v":"2017-12-31"},{"$f":"#REF!","v":{"$error":"#REF!"}},{"$f":"#REF!","v":{"$error":"#REF!"}}]
[{"$error":"#REF!"},null,{"$f":"#REF!","v":{"$error":"#REF!"}},{"$f":"#REF!","v":{"$error":"#REF!"}},null,null,{"$f":"#REF!","v":{"$error":"#REF!"}},800001965,"http://www.xbrl.org/scheme/companyName",null,{"$f":"Periodos!$C$4","v":"2017-12-31"},{"$f":"#REF!","v":{"$error":"#REF!"}},{"$f":"#REF!","v":{"$error":"#REF!"}}]
[{"$error":"#REF!"},null,{"$f":"#REF!","v":{"$error":"#REF!"}},{"$f":"#REF!","v":{"$error":"#REF!"}},null,null,{"$f":"#REF!","v":{"$error":"#REF!"}},800001965,"http://www.xbrl.org/scheme/companyName",null,{"$f":"Periodos!$C$4","v":"2017-12-31"},{"$f":"#REF!","v":{"$error":"#REF!"}},{"$f":"#REF!","v":{"$error":"#REF!"}}]
[{"$error":"#REF!"},null,{"$f":"#REF!","v":{"$error":"#REF!"}},{"$f":"#REF!","v":{"$error":"#REF!"}},null,null,{"$f":"#REF!","v":{"$error":"#REF!"}},800001965,"http://www.xbrl.org/scheme/companyName",null,{"$f":"Periodos!$C$4","v":"2017-12-31"},{"$f":"#REF!","v":{"$error":"#REF!"}},{"$f":"#REF!","v":{"$error":"#REF!"}}]
[{"$error":"#REF!"},null,{"$f":"#REF!","v":{"$error":"#REF!"}},{"$f":"#REF!","v":{"$error":"#REF!"}},null,null,{"$f":"#REF!","v":{"$error":"#REF!"}},800001965,"http://www.xbrl.org/scheme/companyName",null,{"$f":"Periodos!$C$4","v":"2017-12-31"},{"$f":"#REF!","v":{"$error":"#REF!"}},{"$f":"#REF!","v":{"$error":"#REF!"}}]
[{"$error":"#REF!"},null,{"$f":"#REF!","v":{"$error":"#REF!"}},{"$f":"#REF!","v":{"$error":"#REF!"}},null,null,{"$f":"#REF!","v":{"$error":"#REF!"}},800001965,"http://www.xbrl.org/scheme/companyName",null,{"$f":"Periodos!$C$4","v":"2017-12-31"},{"$f":"#REF!","v":{"$error":"#REF!"}},{"$f":"#REF!","v":{"$error":"#REF!"}}]
[{"$error":"#REF!"},null,{"$f":"#REF!","v":{"$error":"#REF!"}},{"$f":"#REF!","v":{"$error":"#REF!"}},0,"peso",{"$f":"#REF!","v":{"$error":"#REF!"}},800001965,"http://www.xbrl.org/scheme/companyName",null,{"$f":"Periodos!$C$4","v":"2017-12-31"},{"$f":"#REF!","v":{"$error":"#REF!"}},{"$f":"#REF!","v":{"$error":"#REF!"}}]
["/*",null,"--128--"]
[{"$error":"#REF!"},null,{"$f":"#REF!","v":{"$error":"#REF!"}},{"$f":"#REF!","v":{"$error":"#REF!"}},null,null,{"$f":"#REF!","v":{"$error":"#REF!"}},800001965,"http://www.xbrl.org/scheme/companyName",null,{"$f":"Periodos!$C$4","v":"2017-12-31"},{"$f":"#REF!","v":{"$error":"#REF!"}},{"$f":"#REF!","v":{"$error":"#REF!"}}]
[{"$error":"#REF!"},null,{"$f":"#REF!","v":{"$error":"#REF!"}},{"$f":"#REF!","v":{"$error":"#REF!"}},null,null,{"$f":"#REF!","v":{"$error":"#REF!"}},800001965,"http://www.xbrl.org/scheme/companyName",null,{"$f":"Periodos!$C$4","v":"2017-12-31"},{"$f":"#REF!","v":{"$error":"#REF!"}},{"$f":"#REF!","v":{"$error":"#REF!"}}]
[{"$error":"#REF!"},null,{"$f":"#REF!","v":{"$error":"#REF!"}},{"$f":"#REF!","v":{"$error":"#REF!"}},null,null,{"$f":"#REF!","v":{"$error":"#REF!"}},800001965,"http://www.xbrl.org/scheme/companyName",null,{"$f":"Periodos!$C$4","v":"2017-12-31"},{"$f":"#REF!","v":{"$error":"#REF!"}},{"$f":"#REF!","v":{"$error":"#REF!"}}]
[{"$error":"#REF!"},null,{"$f":"#REF!","v":{"$error":"#REF!"}},{"$f":"#REF!","v":{"$error":"#REF!"}},null,null,{"$f":"#REF!","v":{"$error":"#REF!"}},800001965,"http://www.xbrl.org/scheme/companyName",null,{"$f":"Periodos!$C$4","v":"2017-12-31"},{"$f":"#REF!","v":{"$error":"#REF!"}},{"$f":"#REF!","v":{"$error":"#REF!"}}]
[{"$error":"#REF!"},null,{"$f":"#REF!","v":{"$error":"#REF!"}},{"$f":"#REF!","v":{"$error":"#REF!"}},null,null,{"$f":"#REF!","v":{"$error":"#REF!"}},800001965,"http://www.xbrl.org/scheme/companyName",null,{"$f":"Periodos!$C$4","v":"2017-12-31"},{"$f":"#REF!","v":{"$error":"#REF!"}},{"$f":"#REF!","v":{"$error":"#REF!"}}]
[{"$error":"#REF!"},null,{"$f":"#REF!","v":{"$error":"#REF!"}},{"$f":"#REF!","v":{"$error":"#REF!"}},null,null,{"$f":"#REF!","v":{"$error":"#REF!"}},800001965,"http://www.xbrl.org/scheme/companyName",null,{"$f":"Periodos!$C$4","v":"2017-12-31"},{"$f":"#REF!","v":{"$error":"#REF!"}},{"$f":"#REF!","v":{"$error":"#REF!"}}]
[{"$error":"#REF!"},null,{"$f":"#REF!","v":{"$error":"#REF!"}},{"$f":"#REF!","v":{"$error":"#REF!"}},null,null,{"$f":"#REF!","v":{"$error":"#REF!"}},800001965,"http://www.xbrl.org/scheme/companyName",null,{"$f":"Periodos!$C$4","v":"2017-12-31"},{"$f":"#REF!","v":{"$error":"#REF!"}},{"$f":"#REF!","v":{"$error":"#REF!"}}]
[{"$error":"#REF!"},null,{"$f":"#REF!","v":{"$error":"#REF!"}},{"$f":"#REF!","v":{"$error":"#REF!"}},null,null,{"$f":"#REF!","v":{"$error":"#REF!"}},800001965,"http://www.xbrl.org/scheme/companyName",null,{"$f":"Periodos!$C$4","v":"2017-12-31"},{"$f":"#REF!","v":{"$error":"#REF!"}},{"$f":"#REF!","v":{"$error":"#REF!"}}]
[{"$error":"#REF!"},null,{"$f":"#REF!","v":{"$error":"#REF!"}},{"$f":"#REF!","v":{"$error":"#REF!"}},null,null,{"$f":"#REF!","v":{"$error":"#REF!"}},800001965,"http://www.xbrl.org/scheme/companyName",null,{"$f":"Periodos!$C$4","v":"2017-12-31"},{"$f":"#REF!","v":{"$error":"#REF!"}},{"$f":"#REF!","v":{"$error":"#REF!"}}]
[{"$error":"#REF!"},null,{"$f":"#REF!","v":{"$error":"#REF!"}},{"$f":"#REF!","v":{"$error":"#REF!"}},null,null,{"$f":"#REF!","v":{"$error":"#REF!"}},800001965,"http://www.xbrl.org/scheme/companyName",null,{"$f":"Periodos!$C$4","v":"2017-12-31"},{"$f":"#REF!","v":{"$error":"#REF!"}},{"$f":"#REF!","v":{"$error":"#REF!"}}]
[{"$error":"#REF!"},null,{"$f":"#REF!","v":{"$error":"#REF!"}},{"$f":"#REF!","v":{"$error":"#REF!"}},null,null,{"$f":"#REF!","v":{"$error":"#REF!"}},800001965,"http://www.xbrl.org/scheme/companyName",null,{"$f":"Periodos!$C$4","v":"2017-12-31"},{"$f":"#REF!","v":{"$error":"#REF!"}},{"$f":"#REF!","v":{"$error":"#REF!"}}]
[{"$error":"#REF!"},null,{"$f":"#REF!","v":{"$error":"#REF!"}},{"$f":"#REF!","v":{"$error":"#REF!"}},0,"peso",{"$f":"#REF!","v":{"$error":"#REF!"}},800001965,"http://www.xbrl.org/scheme/companyName",null,{"$f":"Periodos!$C$4","v":"2017-12-31"},{"$f":"#REF!","v":{"$error":"#REF!"}},{"$f":"#REF!","v":{"$error":"#REF!"}}]
["/*",null,"--129--"]
[{"$error":"#REF!"},null,{"$f":"#REF!","v":{"$error":"#REF!"}},{"$f":"#REF!","v":{"$error":"#REF!"}},null,null,{"$f":"#REF!","v":{"$error":"#REF!"}},800001965,"http://www.xbrl.org/scheme/companyName",null,{"$f":"Periodos!$C$4","v":"2017-12-31"},{"$f":"#REF!","v":{"$error":"#REF!"}},{"$f":"#REF!","v":{"$error":"#REF!"}}]
[{"$error":"#REF!"},null,{"$f":"#REF!","v":{"$error":"#REF!"}},{"$f":"#REF!","v":{"$error":"#REF!"}},null,null,{"$f":"#REF!","v":{"$error":"#REF!"}},800001965,"http://www.xbrl.org/scheme/companyName",null,{"$f":"Periodos!$C$4","v":"2017-12-31"},{"$f":"#REF!","v":{"$error":"#REF!"}},{"$f":"#REF!","v":{"$error":"#REF!"}}]
[{"$error":"#REF!"},null,{"$f":"#REF!","v":{"$error":"#REF!"}},{"$f":"#REF!","v":{"$error":"#REF!"}},null,null,{"$f":"#REF!","v":{"$error":"#REF!"}},800001965,"http://www.xbrl.org/scheme/companyName",null,{"$f":"Periodos!$C$4","v":"2017-12-31"},{"$f":"#REF!","v":{"$error":"#REF!"}},{"$f":"#REF!","v":{"$error":"#REF!"}}]
[{"$error":"#REF!"},null,{"$f":"#REF!","v":{"$error":"#REF!"}},{"$f":"#REF!","v":{"$error":"#REF!"}},null,null,{"$f":"#REF!","v":{"$error":"#REF!"}},800001965,"http://www.xbrl.org/scheme/companyName",null,{"$f":"Periodos!$C$4","v":"2017-12-31"},{"$f":"#REF!","v":{"$error":"#REF!"}},{"$f":"#REF!","v":{"$error":"#REF!"}}]
[{"$error":"#REF!"},null,{"$f":"#REF!","v":{"$error":"#REF!"}},{"$f":"#REF!","v":{"$error":"#REF!"}},null,null,{"$f":"#REF!","v":{"$error":"#REF!"}},800001965,"http://www.xbrl.org/scheme/companyName",null,{"$f":"Periodos!$C$4","v":"2017-12-31"},{"$f":"#REF!","v":{"$error":"#REF!"}},{"$f":"#REF!","v":{"$error":"#REF!"}}]
[{"$error":"#REF!"},null,{"$f":"#REF!","v":{"$error":"#REF!"}},{"$f":"#REF!","v":{"$error":"#REF!"}},null,null,{"$f":"#REF!","v":{"$error":"#REF!"}},800001965,"http://www.xbrl.org/scheme/companyName",null,{"$f":"Periodos!$C$4","v":"2017-12-31"},{"$f":"#REF!","v":{"$error":"#REF!"}},{"$f":"#REF!","v":{"$error":"#REF!"}}]
[{"$error":"#REF!"},null,{"$f":"#REF!","v":{"$error":"#REF!"}},{"$f":"#REF!","v":{"$error":"#REF!"}},null,null,{"$f":"#REF!","v":{"$error":"#REF!"}},800001965,"http://www.xbrl.org/scheme/companyName",null,{"$f":"Periodos!$C$4","v":"2017-12-31"},{"$f":"#REF!","v":{"$error":"#REF!"}},{"$f":"#REF!","v":{"$error":"#REF!"}}]
[{"$error":"#REF!"},null,{"$f":"#REF!","v":{"$error":"#REF!"}},{"$f":"#REF!","v":{"$error":"#REF!"}},null,null,{"$f":"#REF!","v":{"$error":"#REF!"}},800001965,"http://www.xbrl.org/scheme/companyName",null,{"$f":"Periodos!$C$4","v":"2017-12-31"},{"$f":"#REF!","v":{"$error":"#REF!"}},{"$f":"#REF!","v":{"$error":"#REF!"}}]
[{"$error":"#REF!"},null,{"$f":"#REF!","v":{"$error":"#REF!"}},{"$f":"#REF!","v":{"$error":"#REF!"}},null,null,{"$f":"#REF!","v":{"$error":"#REF!"}},800001965,"http://www.xbrl.org/scheme/companyName",null,{"$f":"Periodos!$C$4","v":"2017-12-31"},{"$f":"#REF!","v":{"$error":"#REF!"}},{"$f":"#REF!","v":{"$error":"#REF!"}}]
[{"$error":"#REF!"},null,{"$f":"#REF!","v":{"$error":"#REF!"}},{"$f":"#REF!","v":{"$error":"#REF!"}},null,null,{"$f":"#REF!","v":{"$error":"#REF!"}},800001965,"http://www.xbrl.org/scheme/companyName",null,{"$f":"Periodos!$C$4","v":"2017-12-31"},{"$f":"#REF!","v":{"$error":"#REF!"}},{"$f":"#REF!","v":{"$error":"#REF!"}}]
[{"$error":"#REF!"},null,{"$f":"#REF!","v":{"$error":"#REF!"}},{"$f":"#REF!","v":{"$error":"#REF!"}},null,null,{"$f":"#REF!","v":{"$error":"#REF!"}},800001965,"http://www.xbrl.org/scheme/companyName",null,{"$f":"Periodos!$C$4","v":"2017-12-31"},{"$f":"#REF!","v":{"$error":"#REF!"}},{"$f":"#REF!","v":{"$error":"#REF!"}}]
[{"$error":"#REF!"},null,{"$f":"#REF!","v":{"$error":"#REF!"}},{"$f":"#REF!","v":{"$error":"#REF!"}},0,"peso",{"$f":"#REF!","v":{"$error":"#REF!"}},800001965,"http://www.xbrl.org/scheme/companyName",null,{"$f":"Periodos!$C$4","v":"2017-12-31"},{"$f":"#REF!","v":{"$error":"#REF!"}},{"$f":"#REF!","v":{"$error":"#REF!"}}]
["/*",null,"--130--"]
[{"$error":"#REF!"},null,{"$f":"#REF!","v":{"$error":"#REF!"}},{"$f":"#REF!","v":{"$error":"#REF!"}},null,null,{"$f":"#REF!","v":{"$error":"#REF!"}},800001965,"http://www.xbrl.org/scheme/companyName",null,{"$f":"Periodos!$C$4","v":"2017-12-31"},{"$f":"#REF!","v":{"$error":"#REF!"}},{"$f":"#REF!","v":{"$error":"#REF!"}}]
[{"$error":"#REF!"},null,{"$f":"#REF!","v":{"$error":"#REF!"}},{"$f":"#REF!","v":{"$error":"#REF!"}},null,null,{"$f":"#REF!","v":{"$error":"#REF!"}},800001965,"http://www.xbrl.org/scheme/companyName",null,{"$f":"Periodos!$C$4","v":"2017-12-31"},{"$f":"#REF!","v":{"$error":"#REF!"}},{"$f":"#REF!","v":{"$error":"#REF!"}}]
[{"$error":"#REF!"},null,{"$f":"#REF!","v":{"$error":"#REF!"}},{"$f":"#REF!","v":{"$error":"#REF!"}},null,null,{"$f":"#REF!","v":{"$error":"#REF!"}},800001965,"http://www.xbrl.org/scheme/companyName",null,{"$f":"Periodos!$C$4","v":"2017-12-31"},{"$f":"#REF!","v":{"$error":"#REF!"}},{"$f":"#REF!","v":{"$error":"#REF!"}}]
[{"$error":"#REF!"},null,{"$f":"#REF!","v":{"$error":"#REF!"}},{"$f":"#REF!","v":{"$error":"#REF!"}},null,null,{"$f":"#REF!","v":{"$error":"#REF!"}},800001965,"http://www.xbrl.org/scheme/companyName",null,{"$f":"Periodos!$C$4","v":"2017-12-31"},{"$f":"#REF!","v":{"$error":"#REF!"}},{"$f":"#REF!","v":{"$error":"#REF!"}}]
[{"$error":"#REF!"},null,{"$f":"#REF!","v":{"$error":"#REF!"}},{"$f":"#REF!","v":{"$error":"#REF!"}},null,null,{"$f":"#REF!","v":{"$error":"#REF!"}},800001965,"http://www.xbrl.org/scheme/companyName",null,{"$f":"Periodos!$C$4","v":"2017-12-31"},{"$f":"#REF!","v":{"$error":"#REF!"}},{"$f":"#REF!","v":{"$error":"#REF!"}}]
[{"$error":"#REF!"},null,{"$f":"#REF!","v":{"$error":"#REF!"}},{"$f":"#REF!","v":{"$error":"#REF!"}},null,null,{"$f":"#REF!","v":{"$error":"#REF!"}},800001965,"http://www.xbrl.org/scheme/companyName",null,{"$f":"Periodos!$C$4","v":"2017-12-31"},{"$f":"#REF!","v":{"$error":"#REF!"}},{"$f":"#REF!","v":{"$error":"#REF!"}}]
[{"$error":"#REF!"},null,{"$f":"#REF!","v":{"$error":"#REF!"}},{"$f":"#REF!","v":{"$error":"#REF!"}},null,null,{"$f":"#REF!","v":{"$error":"#REF!"}},800001965,"http://www.xbrl.org/scheme/companyName",null,{"$f":"Periodos!$C$4","v":"2017-12-31"},{"$f":"#REF!","v":{"$error":"#REF!"}},{"$f":"#REF!","v":{"$error":"#REF!"}}]
[{"$error":"#REF!"},null,{"$f":"#REF!","v":{"$error":"#REF!"}},{"$f":"#REF!","v":{"$error":"#REF!"}},null,null,{"$f":"#REF!","v":{"$error":"#REF!"}},800001965,"http://www.xbrl.org/scheme/companyName",null,{"$f":"Periodos!$C$4","v":"2017-12-31"},{"$f":"#REF!","v":{"$error":"#REF!"}},{"$f":"#REF!","v":{"$error":"#REF!"}}]
[{"$error":"#REF!"},null,{"$f":"#REF!","v":{"$error":"#REF!"}},{"$f":"#REF!","v":{"$error":"#REF!"}},null,null,{"$f":"#REF!","v":{"$error":"#REF!"}},800001965,"http://www.xbrl.org/scheme/companyName",null,{"$f":"Periodos!$C$4","v":"2017-12-31"},{"$f":"#REF!","v":{"$error":"#REF!"}},{"$f":"#REF!","v":{"$error":"#REF!"}}]
[{"$error":"#REF!"},null,{"$f":"#REF!","v":{"$error":"#REF!"}},{"$f":"#REF!","v":{"$error":"#REF!"}},null,null,{"$f":"#REF!","v":{"$error":"#REF!"}},800001965,"http://www.xbrl.org/scheme/companyName",null,{"$f":"Periodos!$C$4","v":"2017-12-31"},{"$f":"#REF!","v":{"$error":"#REF!"}},{"$f":"#REF!","v":{"$error":"#REF!"}}]
[{"$error":"#REF!"},null,{"$f":"#REF!","v":{"$error":"#REF!"}},{"$f":"#REF!","v":{"$error":"#REF!"}},null,null,{"$f":"#REF!","v":{"$error":"#REF!"}},800001965,"http://www.xbrl.org/scheme/companyName",null,{"$f":"Periodos!$C$4","v":"2017-12-31"},{"$f":"#REF!","v":{"$error":"#REF!"}},{"$f":"#REF!","v":{"$error":"#REF!"}}]
[{"$error":"#REF!"},null,{"$f":"#REF!","v":{"$error":"#REF!"}},{"$f":"#REF!","v":{"$error":"#REF!"}},0,"peso",{"$f":"#REF!","v":{"$error":"#REF!"}},800001965,"http://www.xbrl.org/scheme/companyName",null,{"$f":"Periodos!$C$4","v":"2017-12-31"},{"$f":"#REF!","v":{"$error":"#REF!"}},{"$f":"#REF!","v":{"$error":"#REF!"}}]
["/*",null,"--131--"]
[{"$error":"#REF!"},null,{"$f":"#REF!","v":{"$error":"#REF!"}},{"$f":"#REF!","v":{"$error":"#REF!"}},null,null,{"$f":"#REF!","v":{"$error":"#REF!"}},800001965,"http://www.xbrl.org/scheme/companyName",null,{"$f":"Periodos!$C$4","v":"2017-12-31"},{"$f":"#REF!","v":{"$error":"#REF!"}},{"$f":"#REF!","v":{"$error":"#REF!"}}]
[{"$f":"IF(G3361=\"\",\"/*\",\"\")","v":{"$error":"#REF!"}},null,{"$f":"#REF!","v":{"$error":"#REF!"}},{"$f":"#REF!","v":{"$error":"#REF!"}},null,null,{"$f":"#REF!","v":{"$error":"#REF!"}},800001965,"http://www.xbrl.org/scheme/companyName",null,{"$f":"Periodos!$C$4","v":"2017-12-31"},{"$f":"#REF!","v":{"$error":"#REF!"}},{"$f":"#REF!","v":{"$error":"#REF!"}}]
[{"$error":"#REF!"},null,{"$f":"#REF!","v":{"$error":"#REF!"}},{"$f":"#REF!","v":{"$error":"#REF!"}},null,null,{"$f":"#REF!","v":{"$error":"#REF!"}},800001965,"http://www.xbrl.org/scheme/companyName",null,{"$f":"Periodos!$C$4","v":"2017-12-31"},{"$f":"#REF!","v":{"$error":"#REF!"}},{"$f":"#REF!","v":{"$error":"#REF!"}}]
[{"$error":"#REF!"},null,{"$f":"#REF!","v":{"$error":"#REF!"}},{"$f":"#REF!","v":{"$error":"#REF!"}},null,null,{"$f":"#REF!","v":{"$error":"#REF!"}},800001965,"http://www.xbrl.org/scheme/companyName",null,{"$f":"Periodos!$C$4","v":"2017-12-31"},{"$f":"#REF!","v":{"$error":"#REF!"}},{"$f":"#REF!","v":{"$error":"#REF!"}}]
[{"$error":"#REF!"},null,{"$f":"#REF!","v":{"$error":"#REF!"}},{"$f":"#REF!","v":{"$error":"#REF!"}},null,null,{"$f":"#REF!","v":{"$error":"#REF!"}},800001965,"http://www.xbrl.org/scheme/companyName",null,{"$f":"Periodos!$C$4","v":"2017-12-31"},{"$f":"#REF!","v":{"$error":"#REF!"}},{"$f":"#REF!","v":{"$error":"#REF!"}}]
[{"$error":"#REF!"},null,{"$f":"#REF!","v":{"$error":"#REF!"}},{"$f":"#REF!","v":{"$error":"#REF!"}},null,null,{"$f":"#REF!","v":{"$error":"#REF!"}},800001965,"http://www.xbrl.org/scheme/companyName",null,{"$f":"Periodos!$C$4","v":"2017-12-31"},{"$f":"#REF!","v":{"$error":"#REF!"}},{"$f":"#REF!","v":{"$error":"#REF!"}}]
[{"$error":"#REF!"},null,{"$f":"#REF!","v":{"$error":"#REF!"}},{"$f":"#REF!","v":{"$error":"#REF!"}},null,null,{"$f":"#REF!","v":{"$error":"#REF!"}},800001965,"http://www.xbrl.org/scheme/companyName",null,{"$f":"Periodos!$C$4","v":"2017-12-31"},{"$f":"#REF!","v":{"$error":"#REF!"}},{"$f":"#REF!","v":{"$error":"#REF!"}}]
[{"$error":"#REF!"},null,{"$f":"#REF!","v":{"$error":"#REF!"}},{"$f":"#REF!","v":{"$error":"#REF!"}},null,null,{"$f":"#REF!","v":{"$error":"#REF!"}},800001965,"http://www.xbrl.org/scheme/companyName",null,{"$f":"Periodos!$C$4","v":"2017-12-31"},{"$f":"#REF!","v":{"$error":"#REF!"}},{"$f":"#REF!","v":{"$error":"#REF!"}}]
[{"$error":"#REF!"},null,{"$f":"#REF!","v":{"$error":"#REF!"}},{"$f":"#REF!","v":{"$error":"#REF!"}},null,null,{"$f":"#REF!","v":{"$error":"#REF!"}},800001965,"http://www.xbrl.org/scheme/companyName",null,{"$f":"Periodos!$C$4","v":"2017-12-31"},{"$f":"#REF!","v":{"$error":"#REF!"}},{"$f":"#REF!","v":{"$error":"#REF!"}}]
[{"$error":"#REF!"},null,{"$f":"#REF!","v":{"$error":"#REF!"}},{"$f":"#REF!","v":{"$error":"#REF!"}},null,null,{"$f":"#REF!","v":{"$error":"#REF!"}},800001965,"http://www.xbrl.org/scheme/companyName",null,{"$f":"Periodos!$C$4","v":"2017-12-31"},{"$f":"#REF!","v":{"$error":"#REF!"}},{"$f":"#REF!","v":{"$error":"#REF!"}}]
[{"$error":"#REF!"},null,{"$f":"#REF!","v":{"$error":"#REF!"}},{"$f":"#REF!","v":{"$error":"#REF!"}},null,null,{"$f":"#REF!","v":{"$error":"#REF!"}},800001965,"http://www.xbrl.org/scheme/companyName",null,{"$f":"Periodos!$C$4","v":"2017-12-31"},{"$f":"#REF!","v":{"$error":"#REF!"}},{"$f":"#REF!","v":{"$error":"#REF!"}}]
[{"$error":"#REF!"},null,{"$f":"#REF!","v":{"$error":"#REF!"}},{"$f":"#REF!","v":{"$error":"#REF!"}},0,"peso",{"$f":"#REF!","v":{"$error":"#REF!"}},800001965,"http://www.xbrl.org/scheme/companyName",null,{"$f":"Periodos!$C$4","v":"2017-12-31"},{"$f":"#REF!","v":{"$error":"#REF!"}},{"$f":"#REF!","v":{"$error":"#REF!"}}]
["/*",null,"--132--"]
[{"$error":"#REF!"},null,{"$f":"#REF!","v":{"$error":"#REF!"}},{"$f":"#REF!","v":{"$error":"#REF!"}},null,null,{"$f":"#REF!","v":{"$error":"#REF!"}},800001965,"http://www.xbrl.org/scheme/companyName",null,{"$f":"Periodos!$C$4","v":"2017-12-31"},{"$f":"#REF!","v":{"$error":"#REF!"}},{"$f":"#REF!","v":{"$error":"#REF!"}}]
[{"$error":"#REF!"},null,{"$f":"#REF!","v":{"$error":"#REF!"}},{"$f":"#REF!","v":{"$error":"#REF!"}},null,null,{"$f":"#REF!","v":{"$error":"#REF!"}},800001965,"http://www.xbrl.org/scheme/companyName",null,{"$f":"Periodos!$C$4","v":"2017-12-31"},{"$f":"#REF!","v":{"$error":"#REF!"}},{"$f":"#REF!","v":{"$error":"#REF!"}}]
[{"$error":"#REF!"},null,{"$f":"#REF!","v":{"$error":"#REF!"}},{"$f":"#REF!","v":{"$error":"#REF!"}},null,null,{"$f":"#REF!","v":{"$error":"#REF!"}},800001965,"http://www.xbrl.org/scheme/companyName",null,{"$f":"Periodos!$C$4","v":"2017-12-31"},{"$f":"#REF!","v":{"$error":"#REF!"}},{"$f":"#REF!","v":{"$error":"#REF!"}}]
[{"$error":"#REF!"},null,{"$f":"#REF!","v":{"$error":"#REF!"}},{"$f":"#REF!","v":{"$error":"#REF!"}},null,null,{"$f":"#REF!","v":{"$error":"#REF!"}},800001965,"http://www.xbrl.org/scheme/companyName",null,{"$f":"Periodos!$C$4","v":"2017-12-31"},{"$f":"#REF!","v":{"$error":"#REF!"}},{"$f":"#REF!","v":{"$error":"#REF!"}}]
[{"$error":"#REF!"},null,{"$f":"#REF!","v":{"$error":"#REF!"}},{"$f":"#REF!","v":{"$error":"#REF!"}},null,null,{"$f":"#REF!","v":{"$error":"#REF!"}},800001965,"http://www.xbrl.org/scheme/companyName",null,{"$f":"Periodos!$C$4","v":"2017-12-31"},{"$f":"#REF!","v":{"$error":"#REF!"}},{"$f":"#REF!","v":{"$error":"#REF!"}}]
[{"$error":"#REF!"},null,{"$f":"#REF!","v":{"$error":"#REF!"}},{"$f":"#REF!","v":{"$error":"#REF!"}},null,null,{"$f":"#REF!","v":{"$error":"#REF!"}},800001965,"http://www.xbrl.org/scheme/companyName",null,{"$f":"Periodos!$C$4","v":"2017-12-31"},{"$f":"#REF!","v":{"$error":"#REF!"}},{"$f":"#REF!","v":{"$error":"#REF!"}}]
[{"$error":"#REF!"},null,{"$f":"#REF!","v":{"$error":"#REF!"}},{"$f":"#REF!","v":{"$error":"#REF!"}},null,null,{"$f":"#REF!","v":{"$error":"#REF!"}},800001965,"http://www.xbrl.org/scheme/companyName",null,{"$f":"Periodos!$C$4","v":"2017-12-31"},{"$f":"#REF!","v":{"$error":"#REF!"}},{"$f":"#REF!","v":{"$error":"#REF!"}}]
[{"$error":"#REF!"},null,{"$f":"#REF!","v":{"$error":"#REF!"}},{"$f":"#REF!","v":{"$error":"#REF!"}},null,null,{"$f":"#REF!","v":{"$error":"#REF!"}},800001965,"http://www.xbrl.org/scheme/companyName",null,{"$f":"Periodos!$C$4","v":"2017-12-31"},{"$f":"#REF!","v":{"$error":"#REF!"}},{"$f":"#REF!","v":{"$error":"#REF!"}}]
[{"$error":"#REF!"},null,{"$f":"#REF!","v":{"$error":"#REF!"}},{"$f":"#REF!","v":{"$error":"#REF!"}},null,null,{"$f":"#REF!","v":{"$error":"#REF!"}},800001965,"http://www.xbrl.org/scheme/companyName",null,{"$f":"Periodos!$C$4","v":"2017-12-31"},{"$f":"#REF!","v":{"$error":"#REF!"}},{"$f":"#REF!","v":{"$error":"#REF!"}}]
[{"$error":"#REF!"},null,{"$f":"#REF!","v":{"$error":"#REF!"}},{"$f":"#REF!","v":{"$error":"#REF!"}},null,null,{"$f":"#REF!","v":{"$error":"#REF!"}},800001965,"http://www.xbrl.org/scheme/companyName",null,{"$f":"Periodos!$C$4","v":"2017-12-31"},{"$f":"#REF!","v":{"$error":"#REF!"}},{"$f":"#REF!","v":{"$error":"#REF!"}}]
[{"$error":"#REF!"},null,{"$f":"#REF!","v":{"$error":"#REF!"}},{"$f":"#REF!","v":{"$error":"#REF!"}},null,null,{"$f":"#REF!","v":{"$error":"#REF!"}},800001965,"http://www.xbrl.org/scheme/companyName",null,{"$f":"Periodos!$C$4","v":"2017-12-31"},{"$f":"#REF!","v":{"$error":"#REF!"}},{"$f":"#REF!","v":{"$error":"#REF!"}}]
[{"$error":"#REF!"},null,{"$f":"#REF!","v":{"$error":"#REF!"}},{"$f":"#REF!","v":{"$error":"#REF!"}},0,"peso",{"$f":"#REF!","v":{"$error":"#REF!"}},800001965,"http://www.xbrl.org/scheme/companyName",null,{"$f":"Periodos!$C$4","v":"2017-12-31"},{"$f":"#REF!","v":{"$error":"#REF!"}},{"$f":"#REF!","v":{"$error":"#REF!"}}]
["/*",null,"--133--"]
[{"$error":"#REF!"},null,{"$f":"#REF!","v":{"$error":"#REF!"}},{"$f":"#REF!","v":{"$error":"#REF!"}},null,null,{"$f":"#REF!","v":{"$error":"#REF!"}},800001965,"http://www.xbrl.org/scheme/companyName",null,{"$f":"Periodos!$C$4","v":"2017-12-31"},{"$f":"#REF!","v":{"$error":"#REF!"}},{"$f":"#REF!","v":{"$error":"#REF!"}}]
[{"$error":"#REF!"},null,{"$f":"#REF!","v":{"$error":"#REF!"}},{"$f":"#REF!","v":{"$error":"#REF!"}},null,null,{"$f":"#REF!","v":{"$error":"#REF!"}},800001965,"http://www.xbrl.org/scheme/companyName",null,{"$f":"Periodos!$C$4","v":"2017-12-31"},{"$f":"#REF!","v":{"$error":"#REF!"}},{"$f":"#REF!","v":{"$error":"#REF!"}}]
[{"$error":"#REF!"},null,{"$f":"#REF!","v":{"$error":"#REF!"}},{"$f":"#REF!","v":{"$error":"#REF!"}},null,null,{"$f":"#REF!","v":{"$error":"#REF!"}},800001965,"http://www.xbrl.org/scheme/companyName",null,{"$f":"Periodos!$C$4","v":"2017-12-31"},{"$f":"#REF!","v":{"$error":"#REF!"}},{"$f":"#REF!","v":{"$error":"#REF!"}}]
[{"$error":"#REF!"},null,{"$f":"#REF!","v":{"$error":"#REF!"}},{"$f":"#REF!","v":{"$error":"#REF!"}},null,null,{"$f":"#REF!","v":{"$error":"#REF!"}},800001965,"http://www.xbrl.org/scheme/companyName",null,{"$f":"Periodos!$C$4","v":"2017-12-31"},{"$f":"#REF!","v":{"$error":"#REF!"}},{"$f":"#REF!","v":{"$error":"#REF!"}}]
[{"$error":"#REF!"},null,{"$f":"#REF!","v":{"$error":"#REF!"}},{"$f":"#REF!","v":{"$error":"#REF!"}},null,null,{"$f":"#REF!","v":{"$error":"#REF!"}},800001965,"http://www.xbrl.org/scheme/companyName",null,{"$f":"Periodos!$C$4","v":"2017-12-31"},{"$f":"#REF!","v":{"$error":"#REF!"}},{"$f":"#REF!","v":{"$error":"#REF!"}}]
[{"$error":"#REF!"},null,{"$f":"#REF!","v":{"$error":"#REF!"}},{"$f":"#REF!","v":{"$error":"#REF!"}},null,null,{"$f":"#REF!","v":{"$error":"#REF!"}},800001965,"http://www.xbrl.org/scheme/companyName",null,{"$f":"Periodos!$C$4","v":"2017-12-31"},{"$f":"#REF!","v":{"$error":"#REF!"}},{"$f":"#REF!","v":{"$error":"#REF!"}}]
[{"$error":"#REF!"},null,{"$f":"#REF!","v":{"$error":"#REF!"}},{"$f":"#REF!","v":{"$error":"#REF!"}},null,null,{"$f":"#REF!","v":{"$error":"#REF!"}},800001965,"http://www.xbrl.org/scheme/companyName",null,{"$f":"Periodos!$C$4","v":"2017-12-31"},{"$f":"#REF!","v":{"$error":"#REF!"}},{"$f":"#REF!","v":{"$error":"#REF!"}}]
[{"$error":"#REF!"},null,{"$f":"#REF!","v":{"$error":"#REF!"}},{"$f":"#REF!","v":{"$error":"#REF!"}},null,null,{"$f":"#REF!","v":{"$error":"#REF!"}},800001965,"http://www.xbrl.org/scheme/companyName",null,{"$f":"Periodos!$C$4","v":"2017-12-31"},{"$f":"#REF!","v":{"$error":"#REF!"}},{"$f":"#REF!","v":{"$error":"#REF!"}}]
[{"$error":"#REF!"},null,{"$f":"#REF!","v":{"$error":"#REF!"}},{"$f":"#REF!","v":{"$error":"#REF!"}},null,null,{"$f":"#REF!","v":{"$error":"#REF!"}},800001965,"http://www.xbrl.org/scheme/companyName",null,{"$f":"Periodos!$C$4","v":"2017-12-31"},{"$f":"#REF!","v":{"$error":"#REF!"}},{"$f":"#REF!","v":{"$error":"#REF!"}}]
[{"$error":"#REF!"},null,{"$f":"#REF!","v":{"$error":"#REF!"}},{"$f":"#REF!","v":{"$error":"#REF!"}},null,null,{"$f":"#REF!","v":{"$error":"#REF!"}},800001965,"http://www.xbrl.org/scheme/companyName",null,{"$f":"Periodos!$C$4","v":"2017-12-31"},{"$f":"#REF!","v":{"$error":"#REF!"}},{"$f":"#REF!","v":{"$error":"#REF!"}}]
[{"$error":"#REF!"},null,{"$f":"#REF!","v":{"$error":"#REF!"}},{"$f":"#REF!","v":{"$error":"#REF!"}},null,null,{"$f":"#REF!","v":{"$error":"#REF!"}},800001965,"http://www.xbrl.org/scheme/companyName",null,{"$f":"Periodos!$C$4","v":"2017-12-31"},{"$f":"#REF!","v":{"$error":"#REF!"}},{"$f":"#REF!","v":{"$error":"#REF!"}}]
[{"$error":"#REF!"},null,{"$f":"#REF!","v":{"$error":"#REF!"}},{"$f":"#REF!","v":{"$error":"#REF!"}},0,"peso",{"$f":"#REF!","v":{"$error":"#REF!"}},800001965,"http://www.xbrl.org/scheme/companyName",null,{"$f":"Periodos!$C$4","v":"2017-12-31"},{"$f":"#REF!","v":{"$error":"#REF!"}},{"$f":"#REF!","v":{"$error":"#REF!"}}]
["/*",null,"--134--"]
[{"$error":"#REF!"},null,{"$f":"#REF!","v":{"$error":"#REF!"}},{"$f":"#REF!","v":{"$error":"#REF!"}},null,null,{"$f":"#REF!","v":{"$error":"#REF!"}},800001965,"http://www.xbrl.org/scheme/companyName",null,{"$f":"Periodos!$C$4","v":"2017-12-31"},{"$f":"#REF!","v":{"$error":"#REF!"}},{"$f":"#REF!","v":{"$error":"#REF!"}}]
[{"$error":"#REF!"},null,{"$f":"#REF!","v":{"$error":"#REF!"}},{"$f":"#REF!","v":{"$error":"#REF!"}},null,null,{"$f":"#REF!","v":{"$error":"#REF!"}},800001965,"http://www.xbrl.org/scheme/companyName",null,{"$f":"Periodos!$C$4","v":"2017-12-31"},{"$f":"#REF!","v":{"$error":"#REF!"}},{"$f":"#REF!","v":{"$error":"#REF!"}}]
[{"$error":"#REF!"},null,{"$f":"#REF!","v":{"$error":"#REF!"}},{"$f":"#REF!","v":{"$error":"#REF!"}},null,null,{"$f":"#REF!","v":{"$error":"#REF!"}},800001965,"http://www.xbrl.org/scheme/companyName",null,{"$f":"Periodos!$C$4","v":"2017-12-31"},{"$f":"#REF!","v":{"$error":"#REF!"}},{"$f":"#REF!","v":{"$error":"#REF!"}}]
[{"$error":"#REF!"},null,{"$f":"#REF!","v":{"$error":"#REF!"}},{"$f":"#REF!","v":{"$error":"#REF!"}},null,null,{"$f":"#REF!","v":{"$error":"#REF!"}},800001965,"http://www.xbrl.org/scheme/companyName",null,{"$f":"Periodos!$C$4","v":"2017-12-31"},{"$f":"#REF!","v":{"$error":"#REF!"}},{"$f":"#REF!","v":{"$error":"#REF!"}}]
[{"$error":"#REF!"},null,{"$f":"#REF!","v":{"$error":"#REF!"}},{"$f":"#REF!","v":{"$error":"#REF!"}},null,null,{"$f":"#REF!","v":{"$error":"#REF!"}},800001965,"http://www.xbrl.org/scheme/companyName",null,{"$f":"Periodos!$C$4","v":"2017-12-31"},{"$f":"#REF!","v":{"$error":"#REF!"}},{"$f":"#REF!","v":{"$error":"#REF!"}}]
[{"$error":"#REF!"},null,{"$f":"#REF!","v":{"$error":"#REF!"}},{"$f":"#REF!","v":{"$error":"#REF!"}},null,null,{"$f":"#REF!","v":{"$error":"#REF!"}},800001965,"http://www.xbrl.org/scheme/companyName",null,{"$f":"Periodos!$C$4","v":"2017-12-31"},{"$f":"#REF!","v":{"$error":"#REF!"}},{"$f":"#REF!","v":{"$error":"#REF!"}}]
[{"$error":"#REF!"},null,{"$f":"#REF!","v":{"$error":"#REF!"}},{"$f":"#REF!","v":{"$error":"#REF!"}},null,null,{"$f":"#REF!","v":{"$error":"#REF!"}},800001965,"http://www.xbrl.org/scheme/companyName",null,{"$f":"Periodos!$C$4","v":"2017-12-31"},{"$f":"#REF!","v":{"$error":"#REF!"}},{"$f":"#REF!","v":{"$error":"#REF!"}}]
[{"$error":"#REF!"},null,{"$f":"#REF!","v":{"$error":"#REF!"}},{"$f":"#REF!","v":{"$error":"#REF!"}},null,null,{"$f":"#REF!","v":{"$error":"#REF!"}},800001965,"http://www.xbrl.org/scheme/companyName",null,{"$f":"Periodos!$C$4","v":"2017-12-31"},{"$f":"#REF!","v":{"$error":"#REF!"}},{"$f":"#REF!","v":{"$error":"#REF!"}}]
[{"$error":"#REF!"},null,{"$f":"#REF!","v":{"$error":"#REF!"}},{"$f":"#REF!","v":{"$error":"#REF!"}},null,null,{"$f":"#REF!","v":{"$error":"#REF!"}},800001965,"http://www.xbrl.org/scheme/companyName",null,{"$f":"Periodos!$C$4","v":"2017-12-31"},{"$f":"#REF!","v":{"$error":"#REF!"}},{"$f":"#REF!","v":{"$error":"#REF!"}}]
[{"$error":"#REF!"},null,{"$f":"#REF!","v":{"$error":"#REF!"}},{"$f":"#REF!","v":{"$error":"#REF!"}},null,null,{"$f":"#REF!","v":{"$error":"#REF!"}},800001965,"http://www.xbrl.org/scheme/companyName",null,{"$f":"Periodos!$C$4","v":"2017-12-31"},{"$f":"#REF!","v":{"$error":"#REF!"}},{"$f":"#REF!","v":{"$error":"#REF!"}}]
[{"$error":"#REF!"},null,{"$f":"#REF!","v":{"$error":"#REF!"}},{"$f":"#REF!","v":{"$error":"#REF!"}},null,null,{"$f":"#REF!","v":{"$error":"#REF!"}},800001965,"http://www.xbrl.org/scheme/companyName",null,{"$f":"Periodos!$C$4","v":"2017-12-31"},{"$f":"#REF!","v":{"$error":"#REF!"}},{"$f":"#REF!","v":{"$error":"#REF!"}}]
[{"$error":"#REF!"},null,{"$f":"#REF!","v":{"$error":"#REF!"}},{"$f":"#REF!","v":{"$error":"#REF!"}},0,"peso",{"$f":"#REF!","v":{"$error":"#REF!"}},800001965,"http://www.xbrl.org/scheme/companyName",null,{"$f":"Periodos!$C$4","v":"2017-12-31"},{"$f":"#REF!","v":{"$error":"#REF!"}},{"$f":"#REF!","v":{"$error":"#REF!"}}]
["/*",null,"--135--"]
[{"$error":"#REF!"},null,{"$f":"#REF!","v":{"$error":"#REF!"}},{"$f":"#REF!","v":{"$error":"#REF!"}},null,null,{"$f":"#REF!","v":{"$error":"#REF!"}},800001965,"http://www.xbrl.org/scheme/companyName",null,{"$f":"Periodos!$C$4","v":"2017-12-31"},{"$f":"#REF!","v":{"$error":"#REF!"}},{"$f":"#REF!","v":{"$error":"#REF!"}}]
[{"$error":"#REF!"},null,{"$f":"#REF!","v":{"$error":"#REF!"}},{"$f":"#REF!","v":{"$error":"#REF!"}},null,null,{"$f":"#REF!","v":{"$error":"#REF!"}},800001965,"http://www.xbrl.org/scheme/companyName",null,{"$f":"Periodos!$C$4","v":"2017-12-31"},{"$f":"#REF!","v":{"$error":"#REF!"}},{"$f":"#REF!","v":{"$error":"#REF!"}}]
[{"$error":"#REF!"},null,{"$f":"#REF!","v":{"$error":"#REF!"}},{"$f":"#REF!","v":{"$error":"#REF!"}},null,null,{"$f":"#REF!","v":{"$error":"#REF!"}},800001965,"http://www.xbrl.org/scheme/companyName",null,{"$f":"Periodos!$C$4","v":"2017-12-31"},{"$f":"#REF!","v":{"$error":"#REF!"}},{"$f":"#REF!","v":{"$error":"#REF!"}}]
[{"$error":"#REF!"},null,{"$f":"#REF!","v":{"$error":"#REF!"}},{"$f":"#REF!","v":{"$error":"#REF!"}},null,null,{"$f":"#REF!","v":{"$error":"#REF!"}},800001965,"http://www.xbrl.org/scheme/companyName",null,{"$f":"Periodos!$C$4","v":"2017-12-31"},{"$f":"#REF!","v":{"$error":"#REF!"}},{"$f":"#REF!","v":{"$error":"#REF!"}}]
[{"$error":"#REF!"},null,{"$f":"#REF!","v":{"$error":"#REF!"}},{"$f":"#REF!","v":{"$error":"#REF!"}},null,null,{"$f":"#REF!","v":{"$error":"#REF!"}},800001965,"http://www.xbrl.org/scheme/companyName",null,{"$f":"Periodos!$C$4","v":"2017-12-31"},{"$f":"#REF!","v":{"$error":"#REF!"}},{"$f":"#REF!","v":{"$error":"#REF!"}}]
[{"$error":"#REF!"},null,{"$f":"#REF!","v":{"$error":"#REF!"}},{"$f":"#REF!","v":{"$error":"#REF!"}},null,null,{"$f":"#REF!","v":{"$error":"#REF!"}},800001965,"http://www.xbrl.org/scheme/companyName",null,{"$f":"Periodos!$C$4","v":"2017-12-31"},{"$f":"#REF!","v":{"$error":"#REF!"}},{"$f":"#REF!","v":{"$error":"#REF!"}}]
[{"$error":"#REF!"},null,{"$f":"#REF!","v":{"$error":"#REF!"}},{"$f":"#REF!","v":{"$error":"#REF!"}},null,null,{"$f":"#REF!","v":{"$error":"#REF!"}},800001965,"http://www.xbrl.org/scheme/companyName",null,{"$f":"Periodos!$C$4","v":"2017-12-31"},{"$f":"#REF!","v":{"$error":"#REF!"}},{"$f":"#REF!","v":{"$error":"#REF!"}}]
[{"$error":"#REF!"},null,{"$f":"#REF!","v":{"$error":"#REF!"}},{"$f":"#REF!","v":{"$error":"#REF!"}},null,null,{"$f":"#REF!","v":{"$error":"#REF!"}},800001965,"http://www.xbrl.org/scheme/companyName",null,{"$f":"Periodos!$C$4","v":"2017-12-31"},{"$f":"#REF!","v":{"$error":"#REF!"}},{"$f":"#REF!","v":{"$error":"#REF!"}}]
[{"$error":"#REF!"},null,{"$f":"#REF!","v":{"$error":"#REF!"}},{"$f":"#REF!","v":{"$error":"#REF!"}},null,null,{"$f":"#REF!","v":{"$error":"#REF!"}},800001965,"http://www.xbrl.org/scheme/companyName",null,{"$f":"Periodos!$C$4","v":"2017-12-31"},{"$f":"#REF!","v":{"$error":"#REF!"}},{"$f":"#REF!","v":{"$error":"#REF!"}}]
[{"$error":"#REF!"},null,{"$f":"#REF!","v":{"$error":"#REF!"}},{"$f":"#REF!","v":{"$error":"#REF!"}},null,null,{"$f":"#REF!","v":{"$error":"#REF!"}},800001965,"http://www.xbrl.org/scheme/companyName",null,{"$f":"Periodos!$C$4","v":"2017-12-31"},{"$f":"#REF!","v":{"$error":"#REF!"}},{"$f":"#REF!","v":{"$error":"#REF!"}}]
[{"$error":"#REF!"},null,{"$f":"#REF!","v":{"$error":"#REF!"}},{"$f":"#REF!","v":{"$error":"#REF!"}},null,null,{"$f":"#REF!","v":{"$error":"#REF!"}},800001965,"http://www.xbrl.org/scheme/companyName",null,{"$f":"Periodos!$C$4","v":"2017-12-31"},{"$f":"#REF!","v":{"$error":"#REF!"}},{"$f":"#REF!","v":{"$error":"#REF!"}}]
[{"$error":"#REF!"},null,{"$f":"#REF!","v":{"$error":"#REF!"}},{"$f":"#REF!","v":{"$error":"#REF!"}},0,"peso",{"$f":"#REF!","v":{"$error":"#REF!"}},800001965,"http://www.xbrl.org/scheme/companyName",null,{"$f":"Periodos!$C$4","v":"2017-12-31"},{"$f":"#REF!","v":{"$error":"#REF!"}},{"$f":"#REF!","v":{"$error":"#REF!"}}]
["/*",null,"--136--"]
[{"$f":"IF(G3425=\"\",\"/*\",\"\")","v":{"$error":"#REF!"}},null,{"$f":"#REF!","v":{"$error":"#REF!"}},{"$f":"#REF!","v":{"$error":"#REF!"}},null,null,{"$f":"#REF!","v":{"$error":"#REF!"}},800001965,"http://www.xbrl.org/scheme/companyName",null,{"$f":"Periodos!$C$4","v":"2017-12-31"},{"$f":"#REF!","v":{"$error":"#REF!"}},{"$f":"#REF!","v":{"$error":"#REF!"}}]
[{"$error":"#REF!"},null,{"$f":"#REF!","v":{"$error":"#REF!"}},{"$f":"#REF!","v":{"$error":"#REF!"}},null,null,{"$f":"#REF!","v":{"$error":"#REF!"}},800001965,"http://www.xbrl.org/scheme/companyName",null,{"$f":"Periodos!$C$4","v":"2017-12-31"},{"$f":"#REF!","v":{"$error":"#REF!"}},{"$f":"#REF!","v":{"$error":"#REF!"}}]
[{"$error":"#REF!"},null,{"$f":"#REF!","v":{"$error":"#REF!"}},{"$f":"#REF!","v":{"$error":"#REF!"}},null,null,{"$f":"#REF!","v":{"$error":"#REF!"}},800001965,"http://www.xbrl.org/scheme/companyName",null,{"$f":"Periodos!$C$4","v":"2017-12-31"},{"$f":"#REF!","v":{"$error":"#REF!"}},{"$f":"#REF!","v":{"$error":"#REF!"}}]
[{"$error":"#REF!"},null,{"$f":"#REF!","v":{"$error":"#REF!"}},{"$f":"#REF!","v":{"$error":"#REF!"}},null,null,{"$f":"#REF!","v":{"$error":"#REF!"}},800001965,"http://www.xbrl.org/scheme/companyName",null,{"$f":"Periodos!$C$4","v":"2017-12-31"},{"$f":"#REF!","v":{"$error":"#REF!"}},{"$f":"#REF!","v":{"$error":"#REF!"}}]
[{"$error":"#REF!"},null,{"$f":"#REF!","v":{"$error":"#REF!"}},{"$f":"#REF!","v":{"$error":"#REF!"}},null,null,{"$f":"#REF!","v":{"$error":"#REF!"}},800001965,"http://www.xbrl.org/scheme/companyName",null,{"$f":"Periodos!$C$4","v":"2017-12-31"},{"$f":"#REF!","v":{"$error":"#REF!"}},{"$f":"#REF!","v":{"$error":"#REF!"}}]
[{"$error":"#REF!"},null,{"$f":"#REF!","v":{"$error":"#REF!"}},{"$f":"#REF!","v":{"$error":"#REF!"}},null,null,{"$f":"#REF!","v":{"$error":"#REF!"}},800001965,"http://www.xbrl.org/scheme/companyName",null,{"$f":"Periodos!$C$4","v":"2017-12-31"},{"$f":"#REF!","v":{"$error":"#REF!"}},{"$f":"#REF!","v":{"$error":"#REF!"}}]
[{"$error":"#REF!"},null,{"$f":"#REF!","v":{"$error":"#REF!"}},{"$f":"#REF!","v":{"$error":"#REF!"}},null,null,{"$f":"#REF!","v":{"$error":"#REF!"}},800001965,"http://www.xbrl.org/scheme/companyName",null,{"$f":"Periodos!$C$4","v":"2017-12-31"},{"$f":"#REF!","v":{"$error":"#REF!"}},{"$f":"#REF!","v":{"$error":"#REF!"}}]
[{"$error":"#REF!"},null,{"$f":"#REF!","v":{"$error":"#REF!"}},{"$f":"#REF!","v":{"$error":"#REF!"}},null,null,{"$f":"#REF!","v":{"$error":"#REF!"}},800001965,"http://www.xbrl.org/scheme/companyName",null,{"$f":"Periodos!$C$4","v":"2017-12-31"},{"$f":"#REF!","v":{"$error":"#REF!"}},{"$f":"#REF!","v":{"$error":"#REF!"}}]
[{"$error":"#REF!"},null,{"$f":"#REF!","v":{"$error":"#REF!"}},{"$f":"#REF!","v":{"$error":"#REF!"}},null,null,{"$f":"#REF!","v":{"$error":"#REF!"}},800001965,"http://www.xbrl.org/scheme/companyName",null,{"$f":"Periodos!$C$4","v":"2017-12-31"},{"$f":"#REF!","v":{"$error":"#REF!"}},{"$f":"#REF!","v":{"$error":"#REF!"}}]
[{"$error":"#REF!"},null,{"$f":"#REF!","v":{"$error":"#REF!"}},{"$f":"#REF!","v":{"$error":"#REF!"}},null,null,{"$f":"#REF!","v":{"$error":"#REF!"}},800001965,"http://www.xbrl.org/scheme/companyName",null,{"$f":"Periodos!$C$4","v":"2017-12-31"},{"$f":"#REF!","v":{"$error":"#REF!"}},{"$f":"#REF!","v":{"$error":"#REF!"}}]
[{"$error":"#REF!"},null,{"$f":"#REF!","v":{"$error":"#REF!"}},{"$f":"#REF!","v":{"$error":"#REF!"}},null,null,{"$f":"#REF!","v":{"$error":"#REF!"}},800001965,"http://www.xbrl.org/scheme/companyName",null,{"$f":"Periodos!$C$4","v":"2017-12-31"},{"$f":"#REF!","v":{"$error":"#REF!"}},{"$f":"#REF!","v":{"$error":"#REF!"}}]
[{"$error":"#REF!"},null,{"$f":"#REF!","v":{"$error":"#REF!"}},{"$f":"#REF!","v":{"$error":"#REF!"}},0,"peso",{"$f":"#REF!","v":{"$error":"#REF!"}},800001965,"http://www.xbrl.org/scheme/companyName",null,{"$f":"Periodos!$C$4","v":"2017-12-31"},{"$f":"#REF!","v":{"$error":"#REF!"}},{"$f":"#REF!","v":{"$error":"#REF!"}}]
["/*",null,"--137--"]
[{"$error":"#REF!"},null,{"$f":"#REF!","v":{"$error":"#REF!"}},{"$f":"#REF!","v":{"$error":"#REF!"}},null,null,{"$f":"#REF!","v":{"$error":"#REF!"}},800001965,"http://www.xbrl.org/scheme/companyName",null,{"$f":"Periodos!$C$4","v":"2017-12-31"},{"$f":"#REF!","v":{"$error":"#REF!"}},{"$f":"#REF!","v":{"$error":"#REF!"}}]
[{"$error":"#REF!"},null,{"$f":"#REF!","v":{"$error":"#REF!"}},{"$f":"#REF!","v":{"$error":"#REF!"}},null,null,{"$f":"#REF!","v":{"$error":"#REF!"}},800001965,"http://www.xbrl.org/scheme/companyName",null,{"$f":"Periodos!$C$4","v":"2017-12-31"},{"$f":"#REF!","v":{"$error":"#REF!"}},{"$f":"#REF!","v":{"$error":"#REF!"}}]
[{"$error":"#REF!"},null,{"$f":"#REF!","v":{"$error":"#REF!"}},{"$f":"#REF!","v":{"$error":"#REF!"}},null,null,{"$f":"#REF!","v":{"$error":"#REF!"}},800001965,"http://www.xbrl.org/scheme/companyName",null,{"$f":"Periodos!$C$4","v":"2017-12-31"},{"$f":"#REF!","v":{"$error":"#REF!"}},{"$f":"#REF!","v":{"$error":"#REF!"}}]
[{"$error":"#REF!"},null,{"$f":"#REF!","v":{"$error":"#REF!"}},{"$f":"#REF!","v":{"$error":"#REF!"}},null,null,{"$f":"#REF!","v":{"$error":"#REF!"}},800001965,"http://www.xbrl.org/scheme/companyName",null,{"$f":"Periodos!$C$4","v":"2017-12-31"},{"$f":"#REF!","v":{"$error":"#REF!"}},{"$f":"#REF!","v":{"$error":"#REF!"}}]
[{"$error":"#REF!"},null,{"$f":"#REF!","v":{"$error":"#REF!"}},{"$f":"#REF!","v":{"$error":"#REF!"}},null,null,{"$f":"#REF!","v":{"$error":"#REF!"}},800001965,"http://www.xbrl.org/scheme/companyName",null,{"$f":"Periodos!$C$4","v":"2017-12-31"},{"$f":"#REF!","v":{"$error":"#REF!"}},{"$f":"#REF!","v":{"$error":"#REF!"}}]
[{"$error":"#REF!"},null,{"$f":"#REF!","v":{"$error":"#REF!"}},{"$f":"#REF!","v":{"$error":"#REF!"}},null,null,{"$f":"#REF!","v":{"$error":"#REF!"}},800001965,"http://www.xbrl.org/scheme/companyName",null,{"$f":"Periodos!$C$4","v":"2017-12-31"},{"$f":"#REF!","v":{"$error":"#REF!"}},{"$f":"#REF!","v":{"$error":"#REF!"}}]
[{"$error":"#REF!"},null,{"$f":"#REF!","v":{"$error":"#REF!"}},{"$f":"#REF!","v":{"$error":"#REF!"}},null,null,{"$f":"#REF!","v":{"$error":"#REF!"}},800001965,"http://www.xbrl.org/scheme/companyName",null,{"$f":"Periodos!$C$4","v":"2017-12-31"},{"$f":"#REF!","v":{"$error":"#REF!"}},{"$f":"#REF!","v":{"$error":"#REF!"}}]
[{"$error":"#REF!"},null,{"$f":"#REF!","v":{"$error":"#REF!"}},{"$f":"#REF!","v":{"$error":"#REF!"}},null,null,{"$f":"#REF!","v":{"$error":"#REF!"}},800001965,"http://www.xbrl.org/scheme/companyName",null,{"$f":"Periodos!$C$4","v":"2017-12-31"},{"$f":"#REF!","v":{"$error":"#REF!"}},{"$f":"#REF!","v":{"$error":"#REF!"}}]
[{"$error":"#REF!"},null,{"$f":"#REF!","v":{"$error":"#REF!"}},{"$f":"#REF!","v":{"$error":"#REF!"}},null,null,{"$f":"#REF!","v":{"$error":"#REF!"}},800001965,"http://www.xbrl.org/scheme/companyName",null,{"$f":"Periodos!$C$4","v":"2017-12-31"},{"$f":"#REF!","v":{"$error":"#REF!"}},{"$f":"#REF!","v":{"$error":"#REF!"}}]
[{"$error":"#REF!"},null,{"$f":"#REF!","v":{"$error":"#REF!"}},{"$f":"#REF!","v":{"$error":"#REF!"}},null,null,{"$f":"#REF!","v":{"$error":"#REF!"}},800001965,"http://www.xbrl.org/scheme/companyName",null,{"$f":"Periodos!$C$4","v":"2017-12-31"},{"$f":"#REF!","v":{"$error":"#REF!"}},{"$f":"#REF!","v":{"$error":"#REF!"}}]
[{"$error":"#REF!"},null,{"$f":"#REF!","v":{"$error":"#REF!"}},{"$f":"#REF!","v":{"$error":"#REF!"}},null,null,{"$f":"#REF!","v":{"$error":"#REF!"}},800001965,"http://www.xbrl.org/scheme/companyName",null,{"$f":"Periodos!$C$4","v":"2017-12-31"},{"$f":"#REF!","v":{"$error":"#REF!"}},{"$f":"#REF!","v":{"$error":"#REF!"}}]
[{"$error":"#REF!"},null,{"$f":"#REF!","v":{"$error":"#REF!"}},{"$f":"#REF!","v":{"$error":"#REF!"}},0,"peso",{"$f":"#REF!","v":{"$error":"#REF!"}},800001965,"http://www.xbrl.org/scheme/companyName",null,{"$f":"Periodos!$C$4","v":"2017-12-31"},{"$f":"#REF!","v":{"$error":"#REF!"}},{"$f":"#REF!","v":{"$error":"#REF!"}}]
["/*",null,"--138--"]
[{"$error":"#REF!"},null,{"$f":"#REF!","v":{"$error":"#REF!"}},{"$f":"#REF!","v":{"$error":"#REF!"}},null,null,{"$f":"#REF!","v":{"$error":"#REF!"}},800001965,"http://www.xbrl.org/scheme/companyName",null,{"$f":"Periodos!$C$4","v":"2017-12-31"},{"$f":"#REF!","v":{"$error":"#REF!"}},{"$f":"#REF!","v":{"$error":"#REF!"}}]
[{"$error":"#REF!"},null,{"$f":"#REF!","v":{"$error":"#REF!"}},{"$f":"#REF!","v":{"$error":"#REF!"}},null,null,{"$f":"#REF!","v":{"$error":"#REF!"}},800001965,"http://www.xbrl.org/scheme/companyName",null,{"$f":"Periodos!$C$4","v":"2017-12-31"},{"$f":"#REF!","v":{"$error":"#REF!"}},{"$f":"#REF!","v":{"$error":"#REF!"}}]
[{"$error":"#REF!"},null,{"$f":"#REF!","v":{"$error":"#REF!"}},{"$f":"#REF!","v":{"$error":"#REF!"}},null,null,{"$f":"#REF!","v":{"$error":"#REF!"}},800001965,"http://www.xbrl.org/scheme/companyName",null,{"$f":"Periodos!$C$4","v":"2017-12-31"},{"$f":"#REF!","v":{"$error":"#REF!"}},{"$f":"#REF!","v":{"$error":"#REF!"}}]
[{"$error":"#REF!"},null,{"$f":"#REF!","v":{"$error":"#REF!"}},{"$f":"#REF!","v":{"$error":"#REF!"}},null,null,{"$f":"#REF!","v":{"$error":"#REF!"}},800001965,"http://www.xbrl.org/scheme/companyName",null,{"$f":"Periodos!$C$4","v":"2017-12-31"},{"$f":"#REF!","v":{"$error":"#REF!"}},{"$f":"#REF!","v":{"$error":"#REF!"}}]
[{"$error":"#REF!"},null,{"$f":"#REF!","v":{"$error":"#REF!"}},{"$f":"#REF!","v":{"$error":"#REF!"}},null,null,{"$f":"#REF!","v":{"$error":"#REF!"}},800001965,"http://www.xbrl.org/scheme/companyName",null,{"$f":"Periodos!$C$4","v":"2017-12-31"},{"$f":"#REF!","v":{"$error":"#REF!"}},{"$f":"#REF!","v":{"$error":"#REF!"}}]
[{"$error":"#REF!"},null,{"$f":"#REF!","v":{"$error":"#REF!"}},{"$f":"#REF!","v":{"$error":"#REF!"}},null,null,{"$f":"#REF!","v":{"$error":"#REF!"}},800001965,"http://www.xbrl.org/scheme/companyName",null,{"$f":"Periodos!$C$4","v":"2017-12-31"},{"$f":"#REF!","v":{"$error":"#REF!"}},{"$f":"#REF!","v":{"$error":"#REF!"}}]
[{"$error":"#REF!"},null,{"$f":"#REF!","v":{"$error":"#REF!"}},{"$f":"#REF!","v":{"$error":"#REF!"}},null,null,{"$f":"#REF!","v":{"$error":"#REF!"}},800001965,"http://www.xbrl.org/scheme/companyName",null,{"$f":"Periodos!$C$4","v":"2017-12-31"},{"$f":"#REF!","v":{"$error":"#REF!"}},{"$f":"#REF!","v":{"$error":"#REF!"}}]
[{"$error":"#REF!"},null,{"$f":"#REF!","v":{"$error":"#REF!"}},{"$f":"#REF!","v":{"$error":"#REF!"}},null,null,{"$f":"#REF!","v":{"$error":"#REF!"}},800001965,"http://www.xbrl.org/scheme/companyName",null,{"$f":"Periodos!$C$4","v":"2017-12-31"},{"$f":"#REF!","v":{"$error":"#REF!"}},{"$f":"#REF!","v":{"$error":"#REF!"}}]
[{"$error":"#REF!"},null,{"$f":"#REF!","v":{"$error":"#REF!"}},{"$f":"#REF!","v":{"$error":"#REF!"}},null,null,{"$f":"#REF!","v":{"$error":"#REF!"}},800001965,"http://www.xbrl.org/scheme/companyName",null,{"$f":"Periodos!$C$4","v":"2017-12-31"},{"$f":"#REF!","v":{"$error":"#REF!"}},{"$f":"#REF!","v":{"$error":"#REF!"}}]
[{"$error":"#REF!"},null,{"$f":"#REF!","v":{"$error":"#REF!"}},{"$f":"#REF!","v":{"$error":"#REF!"}},null,null,{"$f":"#REF!","v":{"$error":"#REF!"}},800001965,"http://www.xbrl.org/scheme/companyName",null,{"$f":"Periodos!$C$4","v":"2017-12-31"},{"$f":"#REF!","v":{"$error":"#REF!"}},{"$f":"#REF!","v":{"$error":"#REF!"}}]
[{"$error":"#REF!"},null,{"$f":"#REF!","v":{"$error":"#REF!"}},{"$f":"#REF!","v":{"$error":"#REF!"}},null,null,{"$f":"#REF!","v":{"$error":"#REF!"}},800001965,"http://www.xbrl.org/scheme/companyName",null,{"$f":"Periodos!$C$4","v":"2017-12-31"},{"$f":"#REF!","v":{"$error":"#REF!"}},{"$f":"#REF!","v":{"$error":"#REF!"}}]
[{"$error":"#REF!"},null,{"$f":"#REF!","v":{"$error":"#REF!"}},{"$f":"#REF!","v":{"$error":"#REF!"}},0,"peso",{"$f":"#REF!","v":{"$error":"#REF!"}},800001965,"http://www.xbrl.org/scheme/companyName",null,{"$f":"Periodos!$C$4","v":"2017-12-31"},{"$f":"#REF!","v":{"$error":"#REF!"}},{"$f":"#REF!","v":{"$error":"#REF!"}}]
["/*",null,"--139--"]
[{"$error":"#REF!"},null,{"$f":"#REF!","v":{"$error":"#REF!"}},{"$f":"#REF!","v":{"$error":"#REF!"}},null,null,{"$f":"#REF!","v":{"$error":"#REF!"}},800001965,"http://www.xbrl.org/scheme/companyName",null,{"$f":"Periodos!$C$4","v":"2017-12-31"},{"$f":"#REF!","v":{"$error":"#REF!"}},{"$f":"#REF!","v":{"$error":"#REF!"}}]
[{"$error":"#REF!"},null,{"$f":"#REF!","v":{"$error":"#REF!"}},{"$f":"#REF!","v":{"$error":"#REF!"}},null,null,{"$f":"#REF!","v":{"$error":"#REF!"}},800001965,"http://www.xbrl.org/scheme/companyName",null,{"$f":"Periodos!$C$4","v":"2017-12-31"},{"$f":"#REF!","v":{"$error":"#REF!"}},{"$f":"#REF!","v":{"$error":"#REF!"}}]
[{"$error":"#REF!"},null,{"$f":"#REF!","v":{"$error":"#REF!"}},{"$f":"#REF!","v":{"$error":"#REF!"}},null,null,{"$f":"#REF!","v":{"$error":"#REF!"}},800001965,"http://www.xbrl.org/scheme/companyName",null,{"$f":"Periodos!$C$4","v":"2017-12-31"},{"$f":"#REF!","v":{"$error":"#REF!"}},{"$f":"#REF!","v":{"$error":"#REF!"}}]
[{"$error":"#REF!"},null,{"$f":"#REF!","v":{"$error":"#REF!"}},{"$f":"#REF!","v":{"$error":"#REF!"}},null,null,{"$f":"#REF!","v":{"$error":"#REF!"}},800001965,"http://www.xbrl.org/scheme/companyName",null,{"$f":"Periodos!$C$4","v":"2017-12-31"},{"$f":"#REF!","v":{"$error":"#REF!"}},{"$f":"#REF!","v":{"$error":"#REF!"}}]
[{"$error":"#REF!"},null,{"$f":"#REF!","v":{"$error":"#REF!"}},{"$f":"#REF!","v":{"$error":"#REF!"}},null,null,{"$f":"#REF!","v":{"$error":"#REF!"}},800001965,"http://www.xbrl.org/scheme/companyName",null,{"$f":"Periodos!$C$4","v":"2017-12-31"},{"$f":"#REF!","v":{"$error":"#REF!"}},{"$f":"#REF!","v":{"$error":"#REF!"}}]
[{"$error":"#REF!"},null,{"$f":"#REF!","v":{"$error":"#REF!"}},{"$f":"#REF!","v":{"$error":"#REF!"}},null,null,{"$f":"#REF!","v":{"$error":"#REF!"}},800001965,"http://www.xbrl.org/scheme/companyName",null,{"$f":"Periodos!$C$4","v":"2017-12-31"},{"$f":"#REF!","v":{"$error":"#REF!"}},{"$f":"#REF!","v":{"$error":"#REF!"}}]
[{"$error":"#REF!"},null,{"$f":"#REF!","v":{"$error":"#REF!"}},{"$f":"#REF!","v":{"$error":"#REF!"}},null,null,{"$f":"#REF!","v":{"$error":"#REF!"}},800001965,"http://www.xbrl.org/scheme/companyName",null,{"$f":"Periodos!$C$4","v":"2017-12-31"},{"$f":"#REF!","v":{"$error":"#REF!"}},{"$f":"#REF!","v":{"$error":"#REF!"}}]
[{"$error":"#REF!"},null,{"$f":"#REF!","v":{"$error":"#REF!"}},{"$f":"#REF!","v":{"$error":"#REF!"}},null,null,{"$f":"#REF!","v":{"$error":"#REF!"}},800001965,"http://www.xbrl.org/scheme/companyName",null,{"$f":"Periodos!$C$4","v":"2017-12-31"},{"$f":"#REF!","v":{"$error":"#REF!"}},{"$f":"#REF!","v":{"$error":"#REF!"}}]
[{"$error":"#REF!"},null,{"$f":"#REF!","v":{"$error":"#REF!"}},{"$f":"#REF!","v":{"$error":"#REF!"}},null,null,{"$f":"#REF!","v":{"$error":"#REF!"}},800001965,"http://www.xbrl.org/scheme/companyName",null,{"$f":"Periodos!$C$4","v":"2017-12-31"},{"$f":"#REF!","v":{"$error":"#REF!"}},{"$f":"#REF!","v":{"$error":"#REF!"}}]
[{"$error":"#REF!"},null,{"$f":"#REF!","v":{"$error":"#REF!"}},{"$f":"#REF!","v":{"$error":"#REF!"}},null,null,{"$f":"#REF!","v":{"$error":"#REF!"}},800001965,"http://www.xbrl.org/scheme/companyName",null,{"$f":"Periodos!$C$4","v":"2017-12-31"},{"$f":"#REF!","v":{"$error":"#REF!"}},{"$f":"#REF!","v":{"$error":"#REF!"}}]
[{"$error":"#REF!"},null,{"$f":"#REF!","v":{"$error":"#REF!"}},{"$f":"#REF!","v":{"$error":"#REF!"}},null,null,{"$f":"#REF!","v":{"$error":"#REF!"}},800001965,"http://www.xbrl.org/scheme/companyName",null,{"$f":"Periodos!$C$4","v":"2017-12-31"},{"$f":"#REF!","v":{"$error":"#REF!"}},{"$f":"#REF!","v":{"$error":"#REF!"}}]
[{"$error":"#REF!"},null,{"$f":"#REF!","v":{"$error":"#REF!"}},{"$f":"#REF!","v":{"$error":"#REF!"}},0,"peso",{"$f":"#REF!","v":{"$error":"#REF!"}},800001965,"http://www.xbrl.org/scheme/companyName",null,{"$f":"Periodos!$C$4","v":"2017-12-31"},{"$f":"#REF!","v":{"$error":"#REF!"}},{"$f":"#REF!","v":{"$error":"#REF!"}}]
["/*",null,"--140--"]
[{"$error":"#REF!"},null,{"$f":"#REF!","v":{"$error":"#REF!"}},{"$f":"#REF!","v":{"$error":"#REF!"}},null,null,{"$f":"#REF!","v":{"$error":"#REF!"}},800001965,"http://www.xbrl.org/scheme/companyName",null,{"$f":"Periodos!$C$4","v":"2017-12-31"},{"$f":"#REF!","v":{"$error":"#REF!"}},{"$f":"#REF!","v":{"$error":"#REF!"}}]
[{"$error":"#REF!"},null,{"$f":"#REF!","v":{"$error":"#REF!"}},{"$f":"#REF!","v":{"$error":"#REF!"}},null,null,{"$f":"#REF!","v":{"$error":"#REF!"}},800001965,"http://www.xbrl.org/scheme/companyName",null,{"$f":"Periodos!$C$4","v":"2017-12-31"},{"$f":"#REF!","v":{"$error":"#REF!"}},{"$f":"#REF!","v":{"$error":"#REF!"}}]
[{"$error":"#REF!"},null,{"$f":"#REF!","v":{"$error":"#REF!"}},{"$f":"#REF!","v":{"$error":"#REF!"}},null,null,{"$f":"#REF!","v":{"$error":"#REF!"}},800001965,"http://www.xbrl.org/scheme/companyName",null,{"$f":"Periodos!$C$4","v":"2017-12-31"},{"$f":"#REF!","v":{"$error":"#REF!"}},{"$f":"#REF!","v":{"$error":"#REF!"}}]
[{"$error":"#REF!"},null,{"$f":"#REF!","v":{"$error":"#REF!"}},{"$f":"#REF!","v":{"$error":"#REF!"}},null,null,{"$f":"#REF!","v":{"$error":"#REF!"}},800001965,"http://www.xbrl.org/scheme/companyName",null,{"$f":"Periodos!$C$4","v":"2017-12-31"},{"$f":"#REF!","v":{"$error":"#REF!"}},{"$f":"#REF!","v":{"$error":"#REF!"}}]
[{"$error":"#REF!"},null,{"$f":"#REF!","v":{"$error":"#REF!"}},{"$f":"#REF!","v":{"$error":"#REF!"}},null,null,{"$f":"#REF!","v":{"$error":"#REF!"}},800001965,"http://www.xbrl.org/scheme/companyName",null,{"$f":"Periodos!$C$4","v":"2017-12-31"},{"$f":"#REF!","v":{"$error":"#REF!"}},{"$f":"#REF!","v":{"$error":"#REF!"}}]
[{"$error":"#REF!"},null,{"$f":"#REF!","v":{"$error":"#REF!"}},{"$f":"#REF!","v":{"$error":"#REF!"}},null,null,{"$f":"#REF!","v":{"$error":"#REF!"}},800001965,"http://www.xbrl.org/scheme/companyName",null,{"$f":"Periodos!$C$4","v":"2017-12-31"},{"$f":"#REF!","v":{"$error":"#REF!"}},{"$f":"#REF!","v":{"$error":"#REF!"}}]
[{"$error":"#REF!"},null,{"$f":"#REF!","v":{"$error":"#REF!"}},{"$f":"#REF!","v":{"$error":"#REF!"}},null,null,{"$f":"#REF!","v":{"$error":"#REF!"}},800001965,"http://www.xbrl.org/scheme/companyName",null,{"$f":"Periodos!$C$4","v":"2017-12-31"},{"$f":"#REF!","v":{"$error":"#REF!"}},{"$f":"#REF!","v":{"$error":"#REF!"}}]
[{"$error":"#REF!"},null,{"$f":"#REF!","v":{"$error":"#REF!"}},{"$f":"#REF!","v":{"$error":"#REF!"}},null,null,{"$f":"#REF!","v":{"$error":"#REF!"}},800001965,"http://www.xbrl.org/scheme/companyName",null,{"$f":"Periodos!$C$4","v":"2017-12-31"},{"$f":"#REF!","v":{"$error":"#REF!"}},{"$f":"#REF!","v":{"$error":"#REF!"}}]
[{"$error":"#REF!"},null,{"$f":"#REF!","v":{"$error":"#REF!"}},{"$f":"#REF!","v":{"$error":"#REF!"}},null,null,{"$f":"#REF!","v":{"$error":"#REF!"}},800001965,"http://www.xbrl.org/scheme/companyName",null,{"$f":"Periodos!$C$4","v":"2017-12-31"},{"$f":"#REF!","v":{"$error":"#REF!"}},{"$f":"#REF!","v":{"$error":"#REF!"}}]
[{"$error":"#REF!"},null,{"$f":"#REF!","v":{"$error":"#REF!"}},{"$f":"#REF!","v":{"$error":"#REF!"}},null,null,{"$f":"#REF!","v":{"$error":"#REF!"}},800001965,"http://www.xbrl.org/scheme/companyName",null,{"$f":"Periodos!$C$4","v":"2017-12-31"},{"$f":"#REF!","v":{"$error":"#REF!"}},{"$f":"#REF!","v":{"$error":"#REF!"}}]
[{"$error":"#REF!"},null,{"$f":"#REF!","v":{"$error":"#REF!"}},{"$f":"#REF!","v":{"$error":"#REF!"}},null,null,{"$f":"#REF!","v":{"$error":"#REF!"}},800001965,"http://www.xbrl.org/scheme/companyName",null,{"$f":"Periodos!$C$4","v":"2017-12-31"},{"$f":"#REF!","v":{"$error":"#REF!"}},{"$f":"#REF!","v":{"$error":"#REF!"}}]
[{"$error":"#REF!"},null,{"$f":"#REF!","v":{"$error":"#REF!"}},{"$f":"#REF!","v":{"$error":"#REF!"}},0,"peso",{"$f":"#REF!","v":{"$error":"#REF!"}},800001965,"http://www.xbrl.org/scheme/companyName",null,{"$f":"Periodos!$C$4","v":"2017-12-31"},{"$f":"#REF!","v":{"$error":"#REF!"}},{"$f":"#REF!","v":{"$error":"#REF!"}}]
[{"$f":"IF(G3489=\"\",\"/*\",\"\")","v":"/*"},null,"--141--"]
[{"$error":"#REF!"},null,{"$f":"#REF!","v":{"$error":"#REF!"}},{"$f":"#REF!","v":{"$error":"#REF!"}},null,null,{"$f":"#REF!","v":{"$error":"#REF!"}},800001965,"http://www.xbrl.org/scheme/companyName",null,{"$f":"Periodos!$C$4","v":"2017-12-31"},{"$f":"#REF!","v":{"$error":"#REF!"}},{"$f":"#REF!","v":{"$error":"#REF!"}}]
[{"$error":"#REF!"},null,{"$f":"#REF!","v":{"$error":"#REF!"}},{"$f":"#REF!","v":{"$error":"#REF!"}},null,null,{"$f":"#REF!","v":{"$error":"#REF!"}},800001965,"http://www.xbrl.org/scheme/companyName",null,{"$f":"Periodos!$C$4","v":"2017-12-31"},{"$f":"#REF!","v":{"$error":"#REF!"}},{"$f":"#REF!","v":{"$error":"#REF!"}}]
[{"$error":"#REF!"},null,{"$f":"#REF!","v":{"$error":"#REF!"}},{"$f":"#REF!","v":{"$error":"#REF!"}},null,null,{"$f":"#REF!","v":{"$error":"#REF!"}},800001965,"http://www.xbrl.org/scheme/companyName",null,{"$f":"Periodos!$C$4","v":"2017-12-31"},{"$f":"#REF!","v":{"$error":"#REF!"}},{"$f":"#REF!","v":{"$error":"#REF!"}}]
[{"$error":"#REF!"},null,{"$f":"#REF!","v":{"$error":"#REF!"}},{"$f":"#REF!","v":{"$error":"#REF!"}},null,null,{"$f":"#REF!","v":{"$error":"#REF!"}},800001965,"http://www.xbrl.org/scheme/companyName",null,{"$f":"Periodos!$C$4","v":"2017-12-31"},{"$f":"#REF!","v":{"$error":"#REF!"}},{"$f":"#REF!","v":{"$error":"#REF!"}}]
[{"$error":"#REF!"},null,{"$f":"#REF!","v":{"$error":"#REF!"}},{"$f":"#REF!","v":{"$error":"#REF!"}},null,null,{"$f":"#REF!","v":{"$error":"#REF!"}},800001965,"http://www.xbrl.org/scheme/companyName",null,{"$f":"Periodos!$C$4","v":"2017-12-31"},{"$f":"#REF!","v":{"$error":"#REF!"}},{"$f":"#REF!","v":{"$error":"#REF!"}}]
[{"$error":"#REF!"},null,{"$f":"#REF!","v":{"$error":"#REF!"}},{"$f":"#REF!","v":{"$error":"#REF!"}},null,null,{"$f":"#REF!","v":{"$error":"#REF!"}},800001965,"http://www.xbrl.org/scheme/companyName",null,{"$f":"Periodos!$C$4","v":"2017-12-31"},{"$f":"#REF!","v":{"$error":"#REF!"}},{"$f":"#REF!","v":{"$error":"#REF!"}}]
[{"$error":"#REF!"},null,{"$f":"#REF!","v":{"$error":"#REF!"}},{"$f":"#REF!","v":{"$error":"#REF!"}},null,null,{"$f":"#REF!","v":{"$error":"#REF!"}},800001965,"http://www.xbrl.org/scheme/companyName",null,{"$f":"Periodos!$C$4","v":"2017-12-31"},{"$f":"#REF!","v":{"$error":"#REF!"}},{"$f":"#REF!","v":{"$error":"#REF!"}}]
[{"$error":"#REF!"},null,{"$f":"#REF!","v":{"$error":"#REF!"}},{"$f":"#REF!","v":{"$error":"#REF!"}},null,null,{"$f":"#REF!","v":{"$error":"#REF!"}},800001965,"http://www.xbrl.org/scheme/companyName",null,{"$f":"Periodos!$C$4","v":"2017-12-31"},{"$f":"#REF!","v":{"$error":"#REF!"}},{"$f":"#REF!","v":{"$error":"#REF!"}}]
[{"$error":"#REF!"},null,{"$f":"#REF!","v":{"$error":"#REF!"}},{"$f":"#REF!","v":{"$error":"#REF!"}},null,null,{"$f":"#REF!","v":{"$error":"#REF!"}},800001965,"http://www.xbrl.org/scheme/companyName",null,{"$f":"Periodos!$C$4","v":"2017-12-31"},{"$f":"#REF!","v":{"$error":"#REF!"}},{"$f":"#REF!","v":{"$error":"#REF!"}}]
[{"$error":"#REF!"},null,{"$f":"#REF!","v":{"$error":"#REF!"}},{"$f":"#REF!","v":{"$error":"#REF!"}},null,null,{"$f":"#REF!","v":{"$error":"#REF!"}},800001965,"http://www.xbrl.org/scheme/companyName",null,{"$f":"Periodos!$C$4","v":"2017-12-31"},{"$f":"#REF!","v":{"$error":"#REF!"}},{"$f":"#REF!","v":{"$error":"#REF!"}}]
[{"$error":"#REF!"},null,{"$f":"#REF!","v":{"$error":"#REF!"}},{"$f":"#REF!","v":{"$error":"#REF!"}},null,null,{"$f":"#REF!","v":{"$error":"#REF!"}},800001965,"http://www.xbrl.org/scheme/companyName",null,{"$f":"Periodos!$C$4","v":"2017-12-31"},{"$f":"#REF!","v":{"$error":"#REF!"}},{"$f":"#REF!","v":{"$error":"#REF!"}}]
[{"$error":"#REF!"},null,{"$f":"#REF!","v":{"$error":"#REF!"}},{"$f":"#REF!","v":{"$error":"#REF!"}},0,"peso",{"$f":"#REF!","v":{"$error":"#REF!"}},800001965,"http://www.xbrl.org/scheme/companyName",null,{"$f":"Periodos!$C$4","v":"2017-12-31"},{"$f":"#REF!","v":{"$error":"#REF!"}},{"$f":"#REF!","v":{"$error":"#REF!"}}]
["/*",null,"--142--"]
[{"$error":"#REF!"},null,{"$f":"#REF!","v":{"$error":"#REF!"}},{"$f":"#REF!","v":{"$error":"#REF!"}},null,null,{"$f":"#REF!","v":{"$error":"#REF!"}},800001965,"http://www.xbrl.org/scheme/companyName",null,{"$f":"Periodos!$C$4","v":"2017-12-31"},{"$f":"#REF!","v":{"$error":"#REF!"}},{"$f":"#REF!","v":{"$error":"#REF!"}}]
[{"$error":"#REF!"},null,{"$f":"#REF!","v":{"$error":"#REF!"}},{"$f":"#REF!","v":{"$error":"#REF!"}},null,null,{"$f":"#REF!","v":{"$error":"#REF!"}},800001965,"http://www.xbrl.org/scheme/companyName",null,{"$f":"Periodos!$C$4","v":"2017-12-31"},{"$f":"#REF!","v":{"$error":"#REF!"}},{"$f":"#REF!","v":{"$error":"#REF!"}}]
[{"$error":"#REF!"},null,{"$f":"#REF!","v":{"$error":"#REF!"}},{"$f":"#REF!","v":{"$error":"#REF!"}},null,null,{"$f":"#REF!","v":{"$error":"#REF!"}},800001965,"http://www.xbrl.org/scheme/companyName",null,{"$f":"Periodos!$C$4","v":"2017-12-31"},{"$f":"#REF!","v":{"$error":"#REF!"}},{"$f":"#REF!","v":{"$error":"#REF!"}}]
[{"$error":"#REF!"},null,{"$f":"#REF!","v":{"$error":"#REF!"}},{"$f":"#REF!","v":{"$error":"#REF!"}},null,null,{"$f":"#REF!","v":{"$error":"#REF!"}},800001965,"http://www.xbrl.org/scheme/companyName",null,{"$f":"Periodos!$C$4","v":"2017-12-31"},{"$f":"#REF!","v":{"$error":"#REF!"}},{"$f":"#REF!","v":{"$error":"#REF!"}}]
[{"$error":"#REF!"},null,{"$f":"#REF!","v":{"$error":"#REF!"}},{"$f":"#REF!","v":{"$error":"#REF!"}},null,null,{"$f":"#REF!","v":{"$error":"#REF!"}},800001965,"http://www.xbrl.org/scheme/companyName",null,{"$f":"Periodos!$C$4","v":"2017-12-31"},{"$f":"#REF!","v":{"$error":"#REF!"}},{"$f":"#REF!","v":{"$error":"#REF!"}}]
[{"$error":"#REF!"},null,{"$f":"#REF!","v":{"$error":"#REF!"}},{"$f":"#REF!","v":{"$error":"#REF!"}},null,null,{"$f":"#REF!","v":{"$error":"#REF!"}},800001965,"http://www.xbrl.org/scheme/companyName",null,{"$f":"Periodos!$C$4","v":"2017-12-31"},{"$f":"#REF!","v":{"$error":"#REF!"}},{"$f":"#REF!","v":{"$error":"#REF!"}}]
[{"$error":"#REF!"},null,{"$f":"#REF!","v":{"$error":"#REF!"}},{"$f":"#REF!","v":{"$error":"#REF!"}},null,null,{"$f":"#REF!","v":{"$error":"#REF!"}},800001965,"http://www.xbrl.org/scheme/companyName",null,{"$f":"Periodos!$C$4","v":"2017-12-31"},{"$f":"#REF!","v":{"$error":"#REF!"}},{"$f":"#REF!","v":{"$error":"#REF!"}}]
[{"$error":"#REF!"},null,{"$f":"#REF!","v":{"$error":"#REF!"}},{"$f":"#REF!","v":{"$error":"#REF!"}},null,null,{"$f":"#REF!","v":{"$error":"#REF!"}},800001965,"http://www.xbrl.org/scheme/companyName",null,{"$f":"Periodos!$C$4","v":"2017-12-31"},{"$f":"#REF!","v":{"$error":"#REF!"}},{"$f":"#REF!","v":{"$error":"#REF!"}}]
[{"$error":"#REF!"},null,{"$f":"#REF!","v":{"$error":"#REF!"}},{"$f":"#REF!","v":{"$error":"#REF!"}},null,null,{"$f":"#REF!","v":{"$error":"#REF!"}},800001965,"http://www.xbrl.org/scheme/companyName",null,{"$f":"Periodos!$C$4","v":"2017-12-31"},{"$f":"#REF!","v":{"$error":"#REF!"}},{"$f":"#REF!","v":{"$error":"#REF!"}}]
[{"$error":"#REF!"},null,{"$f":"#REF!","v":{"$error":"#REF!"}},{"$f":"#REF!","v":{"$error":"#REF!"}},null,null,{"$f":"#REF!","v":{"$error":"#REF!"}},800001965,"http://www.xbrl.org/scheme/companyName",null,{"$f":"Periodos!$C$4","v":"2017-12-31"},{"$f":"#REF!","v":{"$error":"#REF!"}},{"$f":"#REF!","v":{"$error":"#REF!"}}]
[{"$error":"#REF!"},null,{"$f":"#REF!","v":{"$error":"#REF!"}},{"$f":"#REF!","v":{"$error":"#REF!"}},null,null,{"$f":"#REF!","v":{"$error":"#REF!"}},800001965,"http://www.xbrl.org/scheme/companyName",null,{"$f":"Periodos!$C$4","v":"2017-12-31"},{"$f":"#REF!","v":{"$error":"#REF!"}},{"$f":"#REF!","v":{"$error":"#REF!"}}]
[{"$error":"#REF!"},null,{"$f":"#REF!","v":{"$error":"#REF!"}},{"$f":"#REF!","v":{"$error":"#REF!"}},0,"peso",{"$f":"#REF!","v":{"$error":"#REF!"}},800001965,"http://www.xbrl.org/scheme/companyName",null,{"$f":"Periodos!$C$4","v":"2017-12-31"},{"$f":"#REF!","v":{"$error":"#REF!"}},{"$f":"#REF!","v":{"$error":"#REF!"}}]
["/*",null,"--143--"]
[{"$error":"#REF!"},null,{"$f":"#REF!","v":{"$error":"#REF!"}},{"$f":"#REF!","v":{"$error":"#REF!"}},null,null,{"$f":"#REF!","v":{"$error":"#REF!"}},800001965,"http://www.xbrl.org/scheme/companyName",null,{"$f":"Periodos!$C$4","v":"2017-12-31"},{"$f":"#REF!","v":{"$error":"#REF!"}},{"$f":"#REF!","v":{"$error":"#REF!"}}]
[{"$error":"#REF!"},null,{"$f":"#REF!","v":{"$error":"#REF!"}},{"$f":"#REF!","v":{"$error":"#REF!"}},null,null,{"$f":"#REF!","v":{"$error":"#REF!"}},800001965,"http://www.xbrl.org/scheme/companyName",null,{"$f":"Periodos!$C$4","v":"2017-12-31"},{"$f":"#REF!","v":{"$error":"#REF!"}},{"$f":"#REF!","v":{"$error":"#REF!"}}]
[{"$error":"#REF!"},null,{"$f":"#REF!","v":{"$error":"#REF!"}},{"$f":"#REF!","v":{"$error":"#REF!"}},null,null,{"$f":"#REF!","v":{"$error":"#REF!"}},800001965,"http://www.xbrl.org/scheme/companyName",null,{"$f":"Periodos!$C$4","v":"2017-12-31"},{"$f":"#REF!","v":{"$error":"#REF!"}},{"$f":"#REF!","v":{"$error":"#REF!"}}]
[{"$error":"#REF!"},null,{"$f":"#REF!","v":{"$error":"#REF!"}},{"$f":"#REF!","v":{"$error":"#REF!"}},null,null,{"$f":"#REF!","v":{"$error":"#REF!"}},800001965,"http://www.xbrl.org/scheme/companyName",null,{"$f":"Periodos!$C$4","v":"2017-12-31"},{"$f":"#REF!","v":{"$error":"#REF!"}},{"$f":"#REF!","v":{"$error":"#REF!"}}]
[{"$error":"#REF!"},null,{"$f":"#REF!","v":{"$error":"#REF!"}},{"$f":"#REF!","v":{"$error":"#REF!"}},null,null,{"$f":"#REF!","v":{"$error":"#REF!"}},800001965,"http://www.xbrl.org/scheme/companyName",null,{"$f":"Periodos!$C$4","v":"2017-12-31"},{"$f":"#REF!","v":{"$error":"#REF!"}},{"$f":"#REF!","v":{"$error":"#REF!"}}]
[{"$error":"#REF!"},null,{"$f":"#REF!","v":{"$error":"#REF!"}},{"$f":"#REF!","v":{"$error":"#REF!"}},null,null,{"$f":"#REF!","v":{"$error":"#REF!"}},800001965,"http://www.xbrl.org/scheme/companyName",null,{"$f":"Periodos!$C$4","v":"2017-12-31"},{"$f":"#REF!","v":{"$error":"#REF!"}},{"$f":"#REF!","v":{"$error":"#REF!"}}]
[{"$error":"#REF!"},null,{"$f":"#REF!","v":{"$error":"#REF!"}},{"$f":"#REF!","v":{"$error":"#REF!"}},null,null,{"$f":"#REF!","v":{"$error":"#REF!"}},800001965,"http://www.xbrl.org/scheme/companyName",null,{"$f":"Periodos!$C$4","v":"2017-12-31"},{"$f":"#REF!","v":{"$error":"#REF!"}},{"$f":"#REF!","v":{"$error":"#REF!"}}]
[{"$error":"#REF!"},null,{"$f":"#REF!","v":{"$error":"#REF!"}},{"$f":"#REF!","v":{"$error":"#REF!"}},null,null,{"$f":"#REF!","v":{"$error":"#REF!"}},800001965,"http://www.xbrl.org/scheme/companyName",null,{"$f":"Periodos!$C$4","v":"2017-12-31"},{"$f":"#REF!","v":{"$error":"#REF!"}},{"$f":"#REF!","v":{"$error":"#REF!"}}]
[{"$error":"#REF!"},null,{"$f":"#REF!","v":{"$error":"#REF!"}},{"$f":"#REF!","v":{"$error":"#REF!"}},null,null,{"$f":"#REF!","v":{"$error":"#REF!"}},800001965,"http://www.xbrl.org/scheme/companyName",null,{"$f":"Periodos!$C$4","v":"2017-12-31"},{"$f":"#REF!","v":{"$error":"#REF!"}},{"$f":"#REF!","v":{"$error":"#REF!"}}]
[{"$error":"#REF!"},null,{"$f":"#REF!","v":{"$error":"#REF!"}},{"$f":"#REF!","v":{"$error":"#REF!"}},null,null,{"$f":"#REF!","v":{"$error":"#REF!"}},800001965,"http://www.xbrl.org/scheme/companyName",null,{"$f":"Periodos!$C$4","v":"2017-12-31"},{"$f":"#REF!","v":{"$error":"#REF!"}},{"$f":"#REF!","v":{"$error":"#REF!"}}]
[{"$error":"#REF!"},null,{"$f":"#REF!","v":{"$error":"#REF!"}},{"$f":"#REF!","v":{"$error":"#REF!"}},null,null,{"$f":"#REF!","v":{"$error":"#REF!"}},800001965,"http://www.xbrl.org/scheme/companyName",null,{"$f":"Periodos!$C$4","v":"2017-12-31"},{"$f":"#REF!","v":{"$error":"#REF!"}},{"$f":"#REF!","v":{"$error":"#REF!"}}]
[{"$error":"#REF!"},null,{"$f":"#REF!","v":{"$error":"#REF!"}},{"$f":"#REF!","v":{"$error":"#REF!"}},0,"peso",{"$f":"#REF!","v":{"$error":"#REF!"}},800001965,"http://www.xbrl.org/scheme/companyName",null,{"$f":"Periodos!$C$4","v":"2017-12-31"},{"$f":"#REF!","v":{"$error":"#REF!"}},{"$f":"#REF!","v":{"$error":"#REF!"}}]
["/*",null,"--144--"]
[{"$error":"#REF!"},null,{"$f":"#REF!","v":{"$error":"#REF!"}},{"$f":"#REF!","v":{"$error":"#REF!"}},null,null,{"$f":"#REF!","v":{"$error":"#REF!"}},800001965,"http://www.xbrl.org/scheme/companyName",null,{"$f":"Periodos!$C$4","v":"2017-12-31"},{"$f":"#REF!","v":{"$error":"#REF!"}},{"$f":"#REF!","v":{"$error":"#REF!"}}]
[{"$error":"#REF!"},null,{"$f":"#REF!","v":{"$error":"#REF!"}},{"$f":"#REF!","v":{"$error":"#REF!"}},null,null,{"$f":"#REF!","v":{"$error":"#REF!"}},800001965,"http://www.xbrl.org/scheme/companyName",null,{"$f":"Periodos!$C$4","v":"2017-12-31"},{"$f":"#REF!","v":{"$error":"#REF!"}},{"$f":"#REF!","v":{"$error":"#REF!"}}]
[{"$error":"#REF!"},null,{"$f":"#REF!","v":{"$error":"#REF!"}},{"$f":"#REF!","v":{"$error":"#REF!"}},null,null,{"$f":"#REF!","v":{"$error":"#REF!"}},800001965,"http://www.xbrl.org/scheme/companyName",null,{"$f":"Periodos!$C$4","v":"2017-12-31"},{"$f":"#REF!","v":{"$error":"#REF!"}},{"$f":"#REF!","v":{"$error":"#REF!"}}]
[{"$error":"#REF!"},null,{"$f":"#REF!","v":{"$error":"#REF!"}},{"$f":"#REF!","v":{"$error":"#REF!"}},null,null,{"$f":"#REF!","v":{"$error":"#REF!"}},800001965,"http://www.xbrl.org/scheme/companyName",null,{"$f":"Periodos!$C$4","v":"2017-12-31"},{"$f":"#REF!","v":{"$error":"#REF!"}},{"$f":"#REF!","v":{"$error":"#REF!"}}]
[{"$error":"#REF!"},null,{"$f":"#REF!","v":{"$error":"#REF!"}},{"$f":"#REF!","v":{"$error":"#REF!"}},null,null,{"$f":"#REF!","v":{"$error":"#REF!"}},800001965,"http://www.xbrl.org/scheme/companyName",null,{"$f":"Periodos!$C$4","v":"2017-12-31"},{"$f":"#REF!","v":{"$error":"#REF!"}},{"$f":"#REF!","v":{"$error":"#REF!"}}]
[{"$error":"#REF!"},null,{"$f":"#REF!","v":{"$error":"#REF!"}},{"$f":"#REF!","v":{"$error":"#REF!"}},null,null,{"$f":"#REF!","v":{"$error":"#REF!"}},800001965,"http://www.xbrl.org/scheme/companyName",null,{"$f":"Periodos!$C$4","v":"2017-12-31"},{"$f":"#REF!","v":{"$error":"#REF!"}},{"$f":"#REF!","v":{"$error":"#REF!"}}]
[{"$error":"#REF!"},null,{"$f":"#REF!","v":{"$error":"#REF!"}},{"$f":"#REF!","v":{"$error":"#REF!"}},null,null,{"$f":"#REF!","v":{"$error":"#REF!"}},800001965,"http://www.xbrl.org/scheme/companyName",null,{"$f":"Periodos!$C$4","v":"2017-12-31"},{"$f":"#REF!","v":{"$error":"#REF!"}},{"$f":"#REF!","v":{"$error":"#REF!"}}]
[{"$error":"#REF!"},null,{"$f":"#REF!","v":{"$error":"#REF!"}},{"$f":"#REF!","v":{"$error":"#REF!"}},null,null,{"$f":"#REF!","v":{"$error":"#REF!"}},800001965,"http://www.xbrl.org/scheme/companyName",null,{"$f":"Periodos!$C$4","v":"2017-12-31"},{"$f":"#REF!","v":{"$error":"#REF!"}},{"$f":"#REF!","v":{"$error":"#REF!"}}]
[{"$error":"#REF!"},null,{"$f":"#REF!","v":{"$error":"#REF!"}},{"$f":"#REF!","v":{"$error":"#REF!"}},null,null,{"$f":"#REF!","v":{"$error":"#REF!"}},800001965,"http://www.xbrl.org/scheme/companyName",null,{"$f":"Periodos!$C$4","v":"2017-12-31"},{"$f":"#REF!","v":{"$error":"#REF!"}},{"$f":"#REF!","v":{"$error":"#REF!"}}]
[{"$error":"#REF!"},null,{"$f":"#REF!","v":{"$error":"#REF!"}},{"$f":"#REF!","v":{"$error":"#REF!"}},null,null,{"$f":"#REF!","v":{"$error":"#REF!"}},800001965,"http://www.xbrl.org/scheme/companyName",null,{"$f":"Periodos!$C$4","v":"2017-12-31"},{"$f":"#REF!","v":{"$error":"#REF!"}},{"$f":"#REF!","v":{"$error":"#REF!"}}]
[{"$error":"#REF!"},null,{"$f":"#REF!","v":{"$error":"#REF!"}},{"$f":"#REF!","v":{"$error":"#REF!"}},null,null,{"$f":"#REF!","v":{"$error":"#REF!"}},800001965,"http://www.xbrl.org/scheme/companyName",null,{"$f":"Periodos!$C$4","v":"2017-12-31"},{"$f":"#REF!","v":{"$error":"#REF!"}},{"$f":"#REF!","v":{"$error":"#REF!"}}]
[{"$error":"#REF!"},null,{"$f":"#REF!","v":{"$error":"#REF!"}},{"$f":"#REF!","v":{"$error":"#REF!"}},0,"peso",{"$f":"#REF!","v":{"$error":"#REF!"}},800001965,"http://www.xbrl.org/scheme/companyName",null,{"$f":"Periodos!$C$4","v":"2017-12-31"},{"$f":"#REF!","v":{"$error":"#REF!"}},{"$f":"#REF!","v":{"$error":"#REF!"}}]
["/*",null,"--145--"]
[{"$error":"#REF!"},null,{"$f":"#REF!","v":{"$error":"#REF!"}},{"$f":"#REF!","v":{"$error":"#REF!"}},null,null,{"$f":"#REF!","v":{"$error":"#REF!"}},800001965,"http://www.xbrl.org/scheme/companyName",null,{"$f":"Periodos!$C$4","v":"2017-12-31"},{"$f":"#REF!","v":{"$error":"#REF!"}},{"$f":"#REF!","v":{"$error":"#REF!"}}]
[{"$error":"#REF!"},null,{"$f":"#REF!","v":{"$error":"#REF!"}},{"$f":"#REF!","v":{"$error":"#REF!"}},null,null,{"$f":"#REF!","v":{"$error":"#REF!"}},800001965,"http://www.xbrl.org/scheme/companyName",null,{"$f":"Periodos!$C$4","v":"2017-12-31"},{"$f":"#REF!","v":{"$error":"#REF!"}},{"$f":"#REF!","v":{"$error":"#REF!"}}]
[{"$error":"#REF!"},null,{"$f":"#REF!","v":{"$error":"#REF!"}},{"$f":"#REF!","v":{"$error":"#REF!"}},null,null,{"$f":"#REF!","v":{"$error":"#REF!"}},800001965,"http://www.xbrl.org/scheme/companyName",null,{"$f":"Periodos!$C$4","v":"2017-12-31"},{"$f":"#REF!","v":{"$error":"#REF!"}},{"$f":"#REF!","v":{"$error":"#REF!"}}]
[{"$error":"#REF!"},null,{"$f":"#REF!","v":{"$error":"#REF!"}},{"$f":"#REF!","v":{"$error":"#REF!"}},null,null,{"$f":"#REF!","v":{"$error":"#REF!"}},800001965,"http://www.xbrl.org/scheme/companyName",null,{"$f":"Periodos!$C$4","v":"2017-12-31"},{"$f":"#REF!","v":{"$error":"#REF!"}},{"$f":"#REF!","v":{"$error":"#REF!"}}]
[{"$error":"#REF!"},null,{"$f":"#REF!","v":{"$error":"#REF!"}},{"$f":"#REF!","v":{"$error":"#REF!"}},null,null,{"$f":"#REF!","v":{"$error":"#REF!"}},800001965,"http://www.xbrl.org/scheme/companyName",null,{"$f":"Periodos!$C$4","v":"2017-12-31"},{"$f":"#REF!","v":{"$error":"#REF!"}},{"$f":"#REF!","v":{"$error":"#REF!"}}]
[{"$error":"#REF!"},null,{"$f":"#REF!","v":{"$error":"#REF!"}},{"$f":"#REF!","v":{"$error":"#REF!"}},null,null,{"$f":"#REF!","v":{"$error":"#REF!"}},800001965,"http://www.xbrl.org/scheme/companyName",null,{"$f":"Periodos!$C$4","v":"2017-12-31"},{"$f":"#REF!","v":{"$error":"#REF!"}},{"$f":"#REF!","v":{"$error":"#REF!"}}]
[{"$error":"#REF!"},null,{"$f":"#REF!","v":{"$error":"#REF!"}},{"$f":"#REF!","v":{"$error":"#REF!"}},null,null,{"$f":"#REF!","v":{"$error":"#REF!"}},800001965,"http://www.xbrl.org/scheme/companyName",null,{"$f":"Periodos!$C$4","v":"2017-12-31"},{"$f":"#REF!","v":{"$error":"#REF!"}},{"$f":"#REF!","v":{"$error":"#REF!"}}]
[{"$error":"#REF!"},null,{"$f":"#REF!","v":{"$error":"#REF!"}},{"$f":"#REF!","v":{"$error":"#REF!"}},null,null,{"$f":"#REF!","v":{"$error":"#REF!"}},800001965,"http://www.xbrl.org/scheme/companyName",null,{"$f":"Periodos!$C$4","v":"2017-12-31"},{"$f":"#REF!","v":{"$error":"#REF!"}},{"$f":"#REF!","v":{"$error":"#REF!"}}]
[{"$error":"#REF!"},null,{"$f":"#REF!","v":{"$error":"#REF!"}},{"$f":"#REF!","v":{"$error":"#REF!"}},null,null,{"$f":"#REF!","v":{"$error":"#REF!"}},800001965,"http://www.xbrl.org/scheme/companyName",null,{"$f":"Periodos!$C$4","v":"2017-12-31"},{"$f":"#REF!","v":{"$error":"#REF!"}},{"$f":"#REF!","v":{"$error":"#REF!"}}]
[{"$error":"#REF!"},null,{"$f":"#REF!","v":{"$error":"#REF!"}},{"$f":"#REF!","v":{"$error":"#REF!"}},null,null,{"$f":"#REF!","v":{"$error":"#REF!"}},800001965,"http://www.xbrl.org/scheme/companyName",null,{"$f":"Periodos!$C$4","v":"2017-12-31"},{"$f":"#REF!","v":{"$error":"#REF!"}},{"$f":"#REF!","v":{"$error":"#REF!"}}]
[{"$error":"#REF!"},null,{"$f":"#REF!","v":{"$error":"#REF!"}},{"$f":"#REF!","v":{"$error":"#REF!"}},null,null,{"$f":"#REF!","v":{"$error":"#REF!"}},800001965,"http://www.xbrl.org/scheme/companyName",null,{"$f":"Periodos!$C$4","v":"2017-12-31"},{"$f":"#REF!","v":{"$error":"#REF!"}},{"$f":"#REF!","v":{"$error":"#REF!"}}]
[{"$f":"IF(G3553=\"\",\"/*\",\"\")","v":{"$error":"#REF!"}},null,{"$f":"#REF!","v":{"$error":"#REF!"}},{"$f":"#REF!","v":{"$error":"#REF!"}},0,"peso",{"$f":"#REF!","v":{"$error":"#REF!"}},800001965,"http://www.xbrl.org/scheme/companyName",null,{"$f":"Periodos!$C$4","v":"2017-12-31"},{"$f":"#REF!","v":{"$error":"#REF!"}},{"$f":"#REF!","v":{"$error":"#REF!"}}]
["/*",null,"--146--"]
[{"$error":"#REF!"},null,{"$f":"#REF!","v":{"$error":"#REF!"}},{"$f":"#REF!","v":{"$error":"#REF!"}},null,null,{"$f":"#REF!","v":{"$error":"#REF!"}},800001965,"http://www.xbrl.org/scheme/companyName",null,{"$f":"Periodos!$C$4","v":"2017-12-31"},{"$f":"#REF!","v":{"$error":"#REF!"}},{"$f":"#REF!","v":{"$error":"#REF!"}}]
[{"$error":"#REF!"},null,{"$f":"#REF!","v":{"$error":"#REF!"}},{"$f":"#REF!","v":{"$error":"#REF!"}},null,null,{"$f":"#REF!","v":{"$error":"#REF!"}},800001965,"http://www.xbrl.org/scheme/companyName",null,{"$f":"Periodos!$C$4","v":"2017-12-31"},{"$f":"#REF!","v":{"$error":"#REF!"}},{"$f":"#REF!","v":{"$error":"#REF!"}}]
[{"$error":"#REF!"},null,{"$f":"#REF!","v":{"$error":"#REF!"}},{"$f":"#REF!","v":{"$error":"#REF!"}},null,null,{"$f":"#REF!","v":{"$error":"#REF!"}},800001965,"http://www.xbrl.org/scheme/companyName",null,{"$f":"Periodos!$C$4","v":"2017-12-31"},{"$f":"#REF!","v":{"$error":"#REF!"}},{"$f":"#REF!","v":{"$error":"#REF!"}}]
[{"$error":"#REF!"},null,{"$f":"#REF!","v":{"$error":"#REF!"}},{"$f":"#REF!","v":{"$error":"#REF!"}},null,null,{"$f":"#REF!","v":{"$error":"#REF!"}},800001965,"http://www.xbrl.org/scheme/companyName",null,{"$f":"Periodos!$C$4","v":"2017-12-31"},{"$f":"#REF!","v":{"$error":"#REF!"}},{"$f":"#REF!","v":{"$error":"#REF!"}}]
[{"$error":"#REF!"},null,{"$f":"#REF!","v":{"$error":"#REF!"}},{"$f":"#REF!","v":{"$error":"#REF!"}},null,null,{"$f":"#REF!","v":{"$error":"#REF!"}},800001965,"http://www.xbrl.org/scheme/companyName",null,{"$f":"Periodos!$C$4","v":"2017-12-31"},{"$f":"#REF!","v":{"$error":"#REF!"}},{"$f":"#REF!","v":{"$error":"#REF!"}}]
[{"$error":"#REF!"},null,{"$f":"#REF!","v":{"$error":"#REF!"}},{"$f":"#REF!","v":{"$error":"#REF!"}},null,null,{"$f":"#REF!","v":{"$error":"#REF!"}},800001965,"http://www.xbrl.org/scheme/companyName",null,{"$f":"Periodos!$C$4","v":"2017-12-31"},{"$f":"#REF!","v":{"$error":"#REF!"}},{"$f":"#REF!","v":{"$error":"#REF!"}}]
[{"$error":"#REF!"},null,{"$f":"#REF!","v":{"$error":"#REF!"}},{"$f":"#REF!","v":{"$error":"#REF!"}},null,null,{"$f":"#REF!","v":{"$error":"#REF!"}},800001965,"http://www.xbrl.org/scheme/companyName",null,{"$f":"Periodos!$C$4","v":"2017-12-31"},{"$f":"#REF!","v":{"$error":"#REF!"}},{"$f":"#REF!","v":{"$error":"#REF!"}}]
[{"$error":"#REF!"},null,{"$f":"#REF!","v":{"$error":"#REF!"}},{"$f":"#REF!","v":{"$error":"#REF!"}},null,null,{"$f":"#REF!","v":{"$error":"#REF!"}},800001965,"http://www.xbrl.org/scheme/companyName",null,{"$f":"Periodos!$C$4","v":"2017-12-31"},{"$f":"#REF!","v":{"$error":"#REF!"}},{"$f":"#REF!","v":{"$error":"#REF!"}}]
[{"$error":"#REF!"},null,{"$f":"#REF!","v":{"$error":"#REF!"}},{"$f":"#REF!","v":{"$error":"#REF!"}},null,null,{"$f":"#REF!","v":{"$error":"#REF!"}},800001965,"http://www.xbrl.org/scheme/companyName",null,{"$f":"Periodos!$C$4","v":"2017-12-31"},{"$f":"#REF!","v":{"$error":"#REF!"}},{"$f":"#REF!","v":{"$error":"#REF!"}}]
[{"$error":"#REF!"},null,{"$f":"#REF!","v":{"$error":"#REF!"}},{"$f":"#REF!","v":{"$error":"#REF!"}},null,null,{"$f":"#REF!","v":{"$error":"#REF!"}},800001965,"http://www.xbrl.org/scheme/companyName",null,{"$f":"Periodos!$C$4","v":"2017-12-31"},{"$f":"#REF!","v":{"$error":"#REF!"}},{"$f":"#REF!","v":{"$error":"#REF!"}}]
[{"$error":"#REF!"},null,{"$f":"#REF!","v":{"$error":"#REF!"}},{"$f":"#REF!","v":{"$error":"#REF!"}},null,null,{"$f":"#REF!","v":{"$error":"#REF!"}},800001965,"http://www.xbrl.org/scheme/companyName",null,{"$f":"Periodos!$C$4","v":"2017-12-31"},{"$f":"#REF!","v":{"$error":"#REF!"}},{"$f":"#REF!","v":{"$error":"#REF!"}}]
[{"$error":"#REF!"},null,{"$f":"#REF!","v":{"$error":"#REF!"}},{"$f":"#REF!","v":{"$error":"#REF!"}},0,"peso",{"$f":"#REF!","v":{"$error":"#REF!"}},800001965,"http://www.xbrl.org/scheme/companyName",null,{"$f":"Periodos!$C$4","v":"2017-12-31"},{"$f":"#REF!","v":{"$error":"#REF!"}},{"$f":"#REF!","v":{"$error":"#REF!"}}]
["/*",null,"--147--"]
[{"$error":"#REF!"},null,{"$f":"#REF!","v":{"$error":"#REF!"}},{"$f":"#REF!","v":{"$error":"#REF!"}},null,null,{"$f":"#REF!","v":{"$error":"#REF!"}},800001965,"http://www.xbrl.org/scheme/companyName",null,{"$f":"Periodos!$C$4","v":"2017-12-31"},{"$f":"#REF!","v":{"$error":"#REF!"}},{"$f":"#REF!","v":{"$error":"#REF!"}}]
[{"$error":"#REF!"},null,{"$f":"#REF!","v":{"$error":"#REF!"}},{"$f":"#REF!","v":{"$error":"#REF!"}},null,null,{"$f":"#REF!","v":{"$error":"#REF!"}},800001965,"http://www.xbrl.org/scheme/companyName",null,{"$f":"Periodos!$C$4","v":"2017-12-31"},{"$f":"#REF!","v":{"$error":"#REF!"}},{"$f":"#REF!","v":{"$error":"#REF!"}}]
[{"$error":"#REF!"},null,{"$f":"#REF!","v":{"$error":"#REF!"}},{"$f":"#REF!","v":{"$error":"#REF!"}},null,null,{"$f":"#REF!","v":{"$error":"#REF!"}},800001965,"http://www.xbrl.org/scheme/companyName",null,{"$f":"Periodos!$C$4","v":"2017-12-31"},{"$f":"#REF!","v":{"$error":"#REF!"}},{"$f":"#REF!","v":{"$error":"#REF!"}}]
[{"$error":"#REF!"},null,{"$f":"#REF!","v":{"$error":"#REF!"}},{"$f":"#REF!","v":{"$error":"#REF!"}},null,null,{"$f":"#REF!","v":{"$error":"#REF!"}},800001965,"http://www.xbrl.org/scheme/companyName",null,{"$f":"Periodos!$C$4","v":"2017-12-31"},{"$f":"#REF!","v":{"$error":"#REF!"}},{"$f":"#REF!","v":{"$error":"#REF!"}}]
[{"$error":"#REF!"},null,{"$f":"#REF!","v":{"$error":"#REF!"}},{"$f":"#REF!","v":{"$error":"#REF!"}},null,null,{"$f":"#REF!","v":{"$error":"#REF!"}},800001965,"http://www.xbrl.org/scheme/companyName",null,{"$f":"Periodos!$C$4","v":"2017-12-31"},{"$f":"#REF!","v":{"$error":"#REF!"}},{"$f":"#REF!","v":{"$error":"#REF!"}}]
[{"$error":"#REF!"},null,{"$f":"#REF!","v":{"$error":"#REF!"}},{"$f":"#REF!","v":{"$error":"#REF!"}},null,null,{"$f":"#REF!","v":{"$error":"#REF!"}},800001965,"http://www.xbrl.org/scheme/companyName",null,{"$f":"Periodos!$C$4","v":"2017-12-31"},{"$f":"#REF!","v":{"$error":"#REF!"}},{"$f":"#REF!","v":{"$error":"#REF!"}}]
[{"$error":"#REF!"},null,{"$f":"#REF!","v":{"$error":"#REF!"}},{"$f":"#REF!","v":{"$error":"#REF!"}},null,null,{"$f":"#REF!","v":{"$error":"#REF!"}},800001965,"http://www.xbrl.org/scheme/companyName",null,{"$f":"Periodos!$C$4","v":"2017-12-31"},{"$f":"#REF!","v":{"$error":"#REF!"}},{"$f":"#REF!","v":{"$error":"#REF!"}}]
[{"$error":"#REF!"},null,{"$f":"#REF!","v":{"$error":"#REF!"}},{"$f":"#REF!","v":{"$error":"#REF!"}},null,null,{"$f":"#REF!","v":{"$error":"#REF!"}},800001965,"http://www.xbrl.org/scheme/companyName",null,{"$f":"Periodos!$C$4","v":"2017-12-31"},{"$f":"#REF!","v":{"$error":"#REF!"}},{"$f":"#REF!","v":{"$error":"#REF!"}}]
[{"$error":"#REF!"},null,{"$f":"#REF!","v":{"$error":"#REF!"}},{"$f":"#REF!","v":{"$error":"#REF!"}},null,null,{"$f":"#REF!","v":{"$error":"#REF!"}},800001965,"http://www.xbrl.org/scheme/companyName",null,{"$f":"Periodos!$C$4","v":"2017-12-31"},{"$f":"#REF!","v":{"$error":"#REF!"}},{"$f":"#REF!","v":{"$error":"#REF!"}}]
[{"$error":"#REF!"},null,{"$f":"#REF!","v":{"$error":"#REF!"}},{"$f":"#REF!","v":{"$error":"#REF!"}},null,null,{"$f":"#REF!","v":{"$error":"#REF!"}},800001965,"http://www.xbrl.org/scheme/companyName",null,{"$f":"Periodos!$C$4","v":"2017-12-31"},{"$f":"#REF!","v":{"$error":"#REF!"}},{"$f":"#REF!","v":{"$error":"#REF!"}}]
[{"$error":"#REF!"},null,{"$f":"#REF!","v":{"$error":"#REF!"}},{"$f":"#REF!","v":{"$error":"#REF!"}},null,null,{"$f":"#REF!","v":{"$error":"#REF!"}},800001965,"http://www.xbrl.org/scheme/companyName",null,{"$f":"Periodos!$C$4","v":"2017-12-31"},{"$f":"#REF!","v":{"$error":"#REF!"}},{"$f":"#REF!","v":{"$error":"#REF!"}}]
[{"$error":"#REF!"},null,{"$f":"#REF!","v":{"$error":"#REF!"}},{"$f":"#REF!","v":{"$error":"#REF!"}},0,"peso",{"$f":"#REF!","v":{"$error":"#REF!"}},800001965,"http://www.xbrl.org/scheme/companyName",null,{"$f":"Periodos!$C$4","v":"2017-12-31"},{"$f":"#REF!","v":{"$error":"#REF!"}},{"$f":"#REF!","v":{"$error":"#REF!"}}]
["/*",null,"--148--"]
[{"$error":"#REF!"},null,{"$f":"#REF!","v":{"$error":"#REF!"}},{"$f":"#REF!","v":{"$error":"#REF!"}},null,null,{"$f":"#REF!","v":{"$error":"#REF!"}},800001965,"http://www.xbrl.org/scheme/companyName",null,{"$f":"Periodos!$C$4","v":"2017-12-31"},{"$f":"#REF!","v":{"$error":"#REF!"}},{"$f":"#REF!","v":{"$error":"#REF!"}}]
[{"$error":"#REF!"},null,{"$f":"#REF!","v":{"$error":"#REF!"}},{"$f":"#REF!","v":{"$error":"#REF!"}},null,null,{"$f":"#REF!","v":{"$error":"#REF!"}},800001965,"http://www.xbrl.org/scheme/companyName",null,{"$f":"Periodos!$C$4","v":"2017-12-31"},{"$f":"#REF!","v":{"$error":"#REF!"}},{"$f":"#REF!","v":{"$error":"#REF!"}}]
[{"$error":"#REF!"},null,{"$f":"#REF!","v":{"$error":"#REF!"}},{"$f":"#REF!","v":{"$error":"#REF!"}},null,null,{"$f":"#REF!","v":{"$error":"#REF!"}},800001965,"http://www.xbrl.org/scheme/companyName",null,{"$f":"Periodos!$C$4","v":"2017-12-31"},{"$f":"#REF!","v":{"$error":"#REF!"}},{"$f":"#REF!","v":{"$error":"#REF!"}}]
[{"$error":"#REF!"},null,{"$f":"#REF!","v":{"$error":"#REF!"}},{"$f":"#REF!","v":{"$error":"#REF!"}},null,null,{"$f":"#REF!","v":{"$error":"#REF!"}},800001965,"http://www.xbrl.org/scheme/companyName",null,{"$f":"Periodos!$C$4","v":"2017-12-31"},{"$f":"#REF!","v":{"$error":"#REF!"}},{"$f":"#REF!","v":{"$error":"#REF!"}}]
[{"$error":"#REF!"},null,{"$f":"#REF!","v":{"$error":"#REF!"}},{"$f":"#REF!","v":{"$error":"#REF!"}},null,null,{"$f":"#REF!","v":{"$error":"#REF!"}},800001965,"http://www.xbrl.org/scheme/companyName",null,{"$f":"Periodos!$C$4","v":"2017-12-31"},{"$f":"#REF!","v":{"$error":"#REF!"}},{"$f":"#REF!","v":{"$error":"#REF!"}}]
[{"$error":"#REF!"},null,{"$f":"#REF!","v":{"$error":"#REF!"}},{"$f":"#REF!","v":{"$error":"#REF!"}},null,null,{"$f":"#REF!","v":{"$error":"#REF!"}},800001965,"http://www.xbrl.org/scheme/companyName",null,{"$f":"Periodos!$C$4","v":"2017-12-31"},{"$f":"#REF!","v":{"$error":"#REF!"}},{"$f":"#REF!","v":{"$error":"#REF!"}}]
[{"$error":"#REF!"},null,{"$f":"#REF!","v":{"$error":"#REF!"}},{"$f":"#REF!","v":{"$error":"#REF!"}},null,null,{"$f":"#REF!","v":{"$error":"#REF!"}},800001965,"http://www.xbrl.org/scheme/companyName",null,{"$f":"Periodos!$C$4","v":"2017-12-31"},{"$f":"#REF!","v":{"$error":"#REF!"}},{"$f":"#REF!","v":{"$error":"#REF!"}}]
[{"$error":"#REF!"},null,{"$f":"#REF!","v":{"$error":"#REF!"}},{"$f":"#REF!","v":{"$error":"#REF!"}},null,null,{"$f":"#REF!","v":{"$error":"#REF!"}},800001965,"http://www.xbrl.org/scheme/companyName",null,{"$f":"Periodos!$C$4","v":"2017-12-31"},{"$f":"#REF!","v":{"$error":"#REF!"}},{"$f":"#REF!","v":{"$error":"#REF!"}}]
[{"$error":"#REF!"},null,{"$f":"#REF!","v":{"$error":"#REF!"}},{"$f":"#REF!","v":{"$error":"#REF!"}},null,null,{"$f":"#REF!","v":{"$error":"#REF!"}},800001965,"http://www.xbrl.org/scheme/companyName",null,{"$f":"Periodos!$C$4","v":"2017-12-31"},{"$f":"#REF!","v":{"$error":"#REF!"}},{"$f":"#REF!","v":{"$error":"#REF!"}}]
[{"$error":"#REF!"},null,{"$f":"#REF!","v":{"$error":"#REF!"}},{"$f":"#REF!","v":{"$error":"#REF!"}},null,null,{"$f":"#REF!","v":{"$error":"#REF!"}},800001965,"http://www.xbrl.org/scheme/companyName",null,{"$f":"Periodos!$C$4","v":"2017-12-31"},{"$f":"#REF!","v":{"$error":"#REF!"}},{"$f":"#REF!","v":{"$error":"#REF!"}}]
[{"$error":"#REF!"},null,{"$f":"#REF!","v":{"$error":"#REF!"}},{"$f":"#REF!","v":{"$error":"#REF!"}},null,null,{"$f":"#REF!","v":{"$error":"#REF!"}},800001965,"http://www.xbrl.org/scheme/companyName",null,{"$f":"Periodos!$C$4","v":"2017-12-31"},{"$f":"#REF!","v":{"$error":"#REF!"}},{"$f":"#REF!","v":{"$error":"#REF!"}}]
[{"$error":"#REF!"},null,{"$f":"#REF!","v":{"$error":"#REF!"}},{"$f":"#REF!","v":{"$error":"#REF!"}},0,"peso",{"$f":"#REF!","v":{"$error":"#REF!"}},800001965,"http://www.xbrl.org/scheme/companyName",null,{"$f":"Periodos!$C$4","v":"2017-12-31"},{"$f":"#REF!","v":{"$error":"#REF!"}},{"$f":"#REF!","v":{"$error":"#REF!"}}]
["/*",null,"--149--"]
[{"$error":"#REF!"},null,{"$f":"#REF!","v":{"$error":"#REF!"}},{"$f":"#REF!","v":{"$error":"#REF!"}},null,null,{"$f":"#REF!","v":{"$error":"#REF!"}},800001965,"http://www.xbrl.org/scheme/companyName",null,{"$f":"Periodos!$C$4","v":"2017-12-31"},{"$f":"#REF!","v":{"$error":"#REF!"}},{"$f":"#REF!","v":{"$error":"#REF!"}}]
[{"$error":"#REF!"},null,{"$f":"#REF!","v":{"$error":"#REF!"}},{"$f":"#REF!","v":{"$error":"#REF!"}},null,null,{"$f":"#REF!","v":{"$error":"#REF!"}},800001965,"http://www.xbrl.org/scheme/companyName",null,{"$f":"Periodos!$C$4","v":"2017-12-31"},{"$f":"#REF!","v":{"$error":"#REF!"}},{"$f":"#REF!","v":{"$error":"#REF!"}}]
[{"$error":"#REF!"},null,{"$f":"#REF!","v":{"$error":"#REF!"}},{"$f":"#REF!","v":{"$error":"#REF!"}},null,null,{"$f":"#REF!","v":{"$error":"#REF!"}},800001965,"http://www.xbrl.org/scheme/companyName",null,{"$f":"Periodos!$C$4","v":"2017-12-31"},{"$f":"#REF!","v":{"$error":"#REF!"}},{"$f":"#REF!","v":{"$error":"#REF!"}}]
[{"$error":"#REF!"},null,{"$f":"#REF!","v":{"$error":"#REF!"}},{"$f":"#REF!","v":{"$error":"#REF!"}},null,null,{"$f":"#REF!","v":{"$error":"#REF!"}},800001965,"http://www.xbrl.org/scheme/companyName",null,{"$f":"Periodos!$C$4","v":"2017-12-31"},{"$f":"#REF!","v":{"$error":"#REF!"}},{"$f":"#REF!","v":{"$error":"#REF!"}}]
[{"$error":"#REF!"},null,{"$f":"#REF!","v":{"$error":"#REF!"}},{"$f":"#REF!","v":{"$error":"#REF!"}},null,null,{"$f":"#REF!","v":{"$error":"#REF!"}},800001965,"http://www.xbrl.org/scheme/companyName",null,{"$f":"Periodos!$C$4","v":"2017-12-31"},{"$f":"#REF!","v":{"$error":"#REF!"}},{"$f":"#REF!","v":{"$error":"#REF!"}}]
[{"$error":"#REF!"},null,{"$f":"#REF!","v":{"$error":"#REF!"}},{"$f":"#REF!","v":{"$error":"#REF!"}},null,null,{"$f":"#REF!","v":{"$error":"#REF!"}},800001965,"http://www.xbrl.org/scheme/companyName",null,{"$f":"Periodos!$C$4","v":"2017-12-31"},{"$f":"#REF!","v":{"$error":"#REF!"}},{"$f":"#REF!","v":{"$error":"#REF!"}}]
[{"$error":"#REF!"},null,{"$f":"#REF!","v":{"$error":"#REF!"}},{"$f":"#REF!","v":{"$error":"#REF!"}},null,null,{"$f":"#REF!","v":{"$error":"#REF!"}},800001965,"http://www.xbrl.org/scheme/companyName",null,{"$f":"Periodos!$C$4","v":"2017-12-31"},{"$f":"#REF!","v":{"$error":"#REF!"}},{"$f":"#REF!","v":{"$error":"#REF!"}}]
[{"$error":"#REF!"},null,{"$f":"#REF!","v":{"$error":"#REF!"}},{"$f":"#REF!","v":{"$error":"#REF!"}},null,null,{"$f":"#REF!","v":{"$error":"#REF!"}},800001965,"http://www.xbrl.org/scheme/companyName",null,{"$f":"Periodos!$C$4","v":"2017-12-31"},{"$f":"#REF!","v":{"$error":"#REF!"}},{"$f":"#REF!","v":{"$error":"#REF!"}}]
[{"$error":"#REF!"},null,{"$f":"#REF!","v":{"$error":"#REF!"}},{"$f":"#REF!","v":{"$error":"#REF!"}},null,null,{"$f":"#REF!","v":{"$error":"#REF!"}},800001965,"http://www.xbrl.org/scheme/companyName",null,{"$f":"Periodos!$C$4","v":"2017-12-31"},{"$f":"#REF!","v":{"$error":"#REF!"}},{"$f":"#REF!","v":{"$error":"#REF!"}}]
[{"$error":"#REF!"},null,{"$f":"#REF!","v":{"$error":"#REF!"}},{"$f":"#REF!","v":{"$error":"#REF!"}},null,null,{"$f":"#REF!","v":{"$error":"#REF!"}},800001965,"http://www.xbrl.org/scheme/companyName",null,{"$f":"Periodos!$C$4","v":"2017-12-31"},{"$f":"#REF!","v":{"$error":"#REF!"}},{"$f":"#REF!","v":{"$error":"#REF!"}}]
[{"$error":"#REF!"},null,{"$f":"#REF!","v":{"$error":"#REF!"}},{"$f":"#REF!","v":{"$error":"#REF!"}},null,null,{"$f":"#REF!","v":{"$error":"#REF!"}},800001965,"http://www.xbrl.org/scheme/companyName",null,{"$f":"Periodos!$C$4","v":"2017-12-31"},{"$f":"#REF!","v":{"$error":"#REF!"}},{"$f":"#REF!","v":{"$error":"#REF!"}}]
[{"$error":"#REF!"},null,{"$f":"#REF!","v":{"$error":"#REF!"}},{"$f":"#REF!","v":{"$error":"#REF!"}},0,"peso",{"$f":"#REF!","v":{"$error":"#REF!"}},800001965,"http://www.xbrl.org/scheme/companyName",null,{"$f":"Periodos!$C$4","v":"2017-12-31"},{"$f":"#REF!","v":{"$error":"#REF!"}},{"$f":"#REF!","v":{"$error":"#REF!"}}]
["/*",null,"--150--"]
[{"$error":"#REF!"},null,{"$f":"#REF!","v":{"$error":"#REF!"}},{"$f":"#REF!","v":{"$error":"#REF!"}},null,null,{"$f":"#REF!","v":{"$error":"#REF!"}},800001965,"http://www.xbrl.org/scheme/companyName",null,{"$f":"Periodos!$C$4","v":"2017-12-31"},{"$f":"#REF!","v":{"$error":"#REF!"}},{"$f":"#REF!","v":{"$error":"#REF!"}}]
[{"$error":"#REF!"},null,{"$f":"#REF!","v":{"$error":"#REF!"}},{"$f":"#REF!","v":{"$error":"#REF!"}},null,null,{"$f":"#REF!","v":{"$error":"#REF!"}},800001965,"http://www.xbrl.org/scheme/companyName",null,{"$f":"Periodos!$C$4","v":"2017-12-31"},{"$f":"#REF!","v":{"$error":"#REF!"}},{"$f":"#REF!","v":{"$error":"#REF!"}}]
[{"$error":"#REF!"},null,{"$f":"#REF!","v":{"$error":"#REF!"}},{"$f":"#REF!","v":{"$error":"#REF!"}},null,null,{"$f":"#REF!","v":{"$error":"#REF!"}},800001965,"http://www.xbrl.org/scheme/companyName",null,{"$f":"Periodos!$C$4","v":"2017-12-31"},{"$f":"#REF!","v":{"$error":"#REF!"}},{"$f":"#REF!","v":{"$error":"#REF!"}}]
[{"$error":"#REF!"},null,{"$f":"#REF!","v":{"$error":"#REF!"}},{"$f":"#REF!","v":{"$error":"#REF!"}},null,null,{"$f":"#REF!","v":{"$error":"#REF!"}},800001965,"http://www.xbrl.org/scheme/companyName",null,{"$f":"Periodos!$C$4","v":"2017-12-31"},{"$f":"#REF!","v":{"$error":"#REF!"}},{"$f":"#REF!","v":{"$error":"#REF!"}}]
[{"$error":"#REF!"},null,{"$f":"#REF!","v":{"$error":"#REF!"}},{"$f":"#REF!","v":{"$error":"#REF!"}},null,null,{"$f":"#REF!","v":{"$error":"#REF!"}},800001965,"http://www.xbrl.org/scheme/companyName",null,{"$f":"Periodos!$C$4","v":"2017-12-31"},{"$f":"#REF!","v":{"$error":"#REF!"}},{"$f":"#REF!","v":{"$error":"#REF!"}}]
[{"$error":"#REF!"},null,{"$f":"#REF!","v":{"$error":"#REF!"}},{"$f":"#REF!","v":{"$error":"#REF!"}},null,null,{"$f":"#REF!","v":{"$error":"#REF!"}},800001965,"http://www.xbrl.org/scheme/companyName",null,{"$f":"Periodos!$C$4","v":"2017-12-31"},{"$f":"#REF!","v":{"$error":"#REF!"}},{"$f":"#REF!","v":{"$error":"#REF!"}}]
[{"$error":"#REF!"},null,{"$f":"#REF!","v":{"$error":"#REF!"}},{"$f":"#REF!","v":{"$error":"#REF!"}},null,null,{"$f":"#REF!","v":{"$error":"#REF!"}},800001965,"http://www.xbrl.org/scheme/companyName",null,{"$f":"Periodos!$C$4","v":"2017-12-31"},{"$f":"#REF!","v":{"$error":"#REF!"}},{"$f":"#REF!","v":{"$error":"#REF!"}}]
[{"$error":"#REF!"},null,{"$f":"#REF!","v":{"$error":"#REF!"}},{"$f":"#REF!","v":{"$error":"#REF!"}},null,null,{"$f":"#REF!","v":{"$error":"#REF!"}},800001965,"http://www.xbrl.org/scheme/companyName",null,{"$f":"Periodos!$C$4","v":"2017-12-31"},{"$f":"#REF!","v":{"$error":"#REF!"}},{"$f":"#REF!","v":{"$error":"#REF!"}}]
[{"$error":"#REF!"},null,{"$f":"#REF!","v":{"$error":"#REF!"}},{"$f":"#REF!","v":{"$error":"#REF!"}},null,null,{"$f":"#REF!","v":{"$error":"#REF!"}},800001965,"http://www.xbrl.org/scheme/companyName",null,{"$f":"Periodos!$C$4","v":"2017-12-31"},{"$f":"#REF!","v":{"$error":"#REF!"}},{"$f":"#REF!","v":{"$error":"#REF!"}}]
[{"$error":"#REF!"},null,{"$f":"#REF!","v":{"$error":"#REF!"}},{"$f":"#REF!","v":{"$error":"#REF!"}},null,null,{"$f":"#REF!","v":{"$error":"#REF!"}},800001965,"http://www.xbrl.org/scheme/companyName",null,{"$f":"Periodos!$C$4","v":"2017-12-31"},{"$f":"#REF!","v":{"$error":"#REF!"}},{"$f":"#REF!","v":{"$error":"#REF!"}}]
[{"$f":"IF(G3617=\"\",\"/*\",\"\")","v":{"$error":"#REF!"}},null,{"$f":"#REF!","v":{"$error":"#REF!"}},{"$f":"#REF!","v":{"$error":"#REF!"}},null,null,{"$f":"#REF!","v":{"$error":"#REF!"}},800001965,"http://www.xbrl.org/scheme/companyName",null,{"$f":"Periodos!$C$4","v":"2017-12-31"},{"$f":"#REF!","v":{"$error":"#REF!"}},{"$f":"#REF!","v":{"$error":"#REF!"}}]
[{"$error":"#REF!"},null,{"$f":"#REF!","v":{"$error":"#REF!"}},{"$f":"#REF!","v":{"$error":"#REF!"}},0,"peso",{"$f":"#REF!","v":{"$error":"#REF!"}},800001965,"http://www.xbrl.org/scheme/companyName",null,{"$f":"Periodos!$C$4","v":"2017-12-31"},{"$f":"#REF!","v":{"$error":"#REF!"}},{"$f":"#REF!","v":{"$error":"#REF!"}}]
["/*",null,"--151--"]
[{"$error":"#REF!"},null,{"$f":"#REF!","v":{"$error":"#REF!"}},{"$f":"#REF!","v":{"$error":"#REF!"}},null,null,{"$f":"#REF!","v":{"$error":"#REF!"}},800001965,"http://www.xbrl.org/scheme/companyName",null,{"$f":"Periodos!$C$4","v":"2017-12-31"},{"$f":"#REF!","v":{"$error":"#REF!"}},{"$f":"#REF!","v":{"$error":"#REF!"}}]
[{"$error":"#REF!"},null,{"$f":"#REF!","v":{"$error":"#REF!"}},{"$f":"#REF!","v":{"$error":"#REF!"}},null,null,{"$f":"#REF!","v":{"$error":"#REF!"}},800001965,"http://www.xbrl.org/scheme/companyName",null,{"$f":"Periodos!$C$4","v":"2017-12-31"},{"$f":"#REF!","v":{"$error":"#REF!"}},{"$f":"#REF!","v":{"$error":"#REF!"}}]
[{"$error":"#REF!"},null,{"$f":"#REF!","v":{"$error":"#REF!"}},{"$f":"#REF!","v":{"$error":"#REF!"}},null,null,{"$f":"#REF!","v":{"$error":"#REF!"}},800001965,"http://www.xbrl.org/scheme/companyName",null,{"$f":"Periodos!$C$4","v":"2017-12-31"},{"$f":"#REF!","v":{"$error":"#REF!"}},{"$f":"#REF!","v":{"$error":"#REF!"}}]
[{"$error":"#REF!"},null,{"$f":"#REF!","v":{"$error":"#REF!"}},{"$f":"#REF!","v":{"$error":"#REF!"}},null,null,{"$f":"#REF!","v":{"$error":"#REF!"}},800001965,"http://www.xbrl.org/scheme/companyName",null,{"$f":"Periodos!$C$4","v":"2017-12-31"},{"$f":"#REF!","v":{"$error":"#REF!"}},{"$f":"#REF!","v":{"$error":"#REF!"}}]
[{"$error":"#REF!"},null,{"$f":"#REF!","v":{"$error":"#REF!"}},{"$f":"#REF!","v":{"$error":"#REF!"}},null,null,{"$f":"#REF!","v":{"$error":"#REF!"}},800001965,"http://www.xbrl.org/scheme/companyName",null,{"$f":"Periodos!$C$4","v":"2017-12-31"},{"$f":"#REF!","v":{"$error":"#REF!"}},{"$f":"#REF!","v":{"$error":"#REF!"}}]
[{"$error":"#REF!"},null,{"$f":"#REF!","v":{"$error":"#REF!"}},{"$f":"#REF!","v":{"$error":"#REF!"}},null,null,{"$f":"#REF!","v":{"$error":"#REF!"}},800001965,"http://www.xbrl.org/scheme/companyName",null,{"$f":"Periodos!$C$4","v":"2017-12-31"},{"$f":"#REF!","v":{"$error":"#REF!"}},{"$f":"#REF!","v":{"$error":"#REF!"}}]
[{"$error":"#REF!"},null,{"$f":"#REF!","v":{"$error":"#REF!"}},{"$f":"#REF!","v":{"$error":"#REF!"}},null,null,{"$f":"#REF!","v":{"$error":"#REF!"}},800001965,"http://www.xbrl.org/scheme/companyName",null,{"$f":"Periodos!$C$4","v":"2017-12-31"},{"$f":"#REF!","v":{"$error":"#REF!"}},{"$f":"#REF!","v":{"$error":"#REF!"}}]
[{"$error":"#REF!"},null,{"$f":"#REF!","v":{"$error":"#REF!"}},{"$f":"#REF!","v":{"$error":"#REF!"}},null,null,{"$f":"#REF!","v":{"$error":"#REF!"}},800001965,"http://www.xbrl.org/scheme/companyName",null,{"$f":"Periodos!$C$4","v":"2017-12-31"},{"$f":"#REF!","v":{"$error":"#REF!"}},{"$f":"#REF!","v":{"$error":"#REF!"}}]
[{"$error":"#REF!"},null,{"$f":"#REF!","v":{"$error":"#REF!"}},{"$f":"#REF!","v":{"$error":"#REF!"}},null,null,{"$f":"#REF!","v":{"$error":"#REF!"}},800001965,"http://www.xbrl.org/scheme/companyName",null,{"$f":"Periodos!$C$4","v":"2017-12-31"},{"$f":"#REF!","v":{"$error":"#REF!"}},{"$f":"#REF!","v":{"$error":"#REF!"}}]
[{"$error":"#REF!"},null,{"$f":"#REF!","v":{"$error":"#REF!"}},{"$f":"#REF!","v":{"$error":"#REF!"}},null,null,{"$f":"#REF!","v":{"$error":"#REF!"}},800001965,"http://www.xbrl.org/scheme/companyName",null,{"$f":"Periodos!$C$4","v":"2017-12-31"},{"$f":"#REF!","v":{"$error":"#REF!"}},{"$f":"#REF!","v":{"$error":"#REF!"}}]
[{"$error":"#REF!"},null,{"$f":"#REF!","v":{"$error":"#REF!"}},{"$f":"#REF!","v":{"$error":"#REF!"}},null,null,{"$f":"#REF!","v":{"$error":"#REF!"}},800001965,"http://www.xbrl.org/scheme/companyName",null,{"$f":"Periodos!$C$4","v":"2017-12-31"},{"$f":"#REF!","v":{"$error":"#REF!"}},{"$f":"#REF!","v":{"$error":"#REF!"}}]
[{"$error":"#REF!"},null,{"$f":"#REF!","v":{"$error":"#REF!"}},{"$f":"#REF!","v":{"$error":"#REF!"}},0,"peso",{"$f":"#REF!","v":{"$error":"#REF!"}},800001965,"http://www.xbrl.org/scheme/companyName",null,{"$f":"Periodos!$C$4","v":"2017-12-31"},{"$f":"#REF!","v":{"$error":"#REF!"}},{"$f":"#REF!","v":{"$error":"#REF!"}}]
["/*",null,"--152--"]
[{"$error":"#REF!"},null,{"$f":"#REF!","v":{"$error":"#REF!"}},{"$f":"#REF!","v":{"$error":"#REF!"}},null,null,{"$f":"#REF!","v":{"$error":"#REF!"}},800001965,"http://www.xbrl.org/scheme/companyName",null,{"$f":"Periodos!$C$4","v":"2017-12-31"},{"$f":"#REF!","v":{"$error":"#REF!"}},{"$f":"#REF!","v":{"$error":"#REF!"}}]
[{"$error":"#REF!"},null,{"$f":"#REF!","v":{"$error":"#REF!"}},{"$f":"#REF!","v":{"$error":"#REF!"}},null,null,{"$f":"#REF!","v":{"$error":"#REF!"}},800001965,"http://www.xbrl.org/scheme/companyName",null,{"$f":"Periodos!$C$4","v":"2017-12-31"},{"$f":"#REF!","v":{"$error":"#REF!"}},{"$f":"#REF!","v":{"$error":"#REF!"}}]
[{"$error":"#REF!"},null,{"$f":"#REF!","v":{"$error":"#REF!"}},{"$f":"#REF!","v":{"$error":"#REF!"}},null,null,{"$f":"#REF!","v":{"$error":"#REF!"}},800001965,"http://www.xbrl.org/scheme/companyName",null,{"$f":"Periodos!$C$4","v":"2017-12-31"},{"$f":"#REF!","v":{"$error":"#REF!"}},{"$f":"#REF!","v":{"$error":"#REF!"}}]
[{"$error":"#REF!"},null,{"$f":"#REF!","v":{"$error":"#REF!"}},{"$f":"#REF!","v":{"$error":"#REF!"}},null,null,{"$f":"#REF!","v":{"$error":"#REF!"}},800001965,"http://www.xbrl.org/scheme/companyName",null,{"$f":"Periodos!$C$4","v":"2017-12-31"},{"$f":"#REF!","v":{"$error":"#REF!"}},{"$f":"#REF!","v":{"$error":"#REF!"}}]
[{"$error":"#REF!"},null,{"$f":"#REF!","v":{"$error":"#REF!"}},{"$f":"#REF!","v":{"$error":"#REF!"}},null,null,{"$f":"#REF!","v":{"$error":"#REF!"}},800001965,"http://www.xbrl.org/scheme/companyName",null,{"$f":"Periodos!$C$4","v":"2017-12-31"},{"$f":"#REF!","v":{"$error":"#REF!"}},{"$f":"#REF!","v":{"$error":"#REF!"}}]
[{"$error":"#REF!"},null,{"$f":"#REF!","v":{"$error":"#REF!"}},{"$f":"#REF!","v":{"$error":"#REF!"}},null,null,{"$f":"#REF!","v":{"$error":"#REF!"}},800001965,"http://www.xbrl.org/scheme/companyName",null,{"$f":"Periodos!$C$4","v":"2017-12-31"},{"$f":"#REF!","v":{"$error":"#REF!"}},{"$f":"#REF!","v":{"$error":"#REF!"}}]
[{"$error":"#REF!"},null,{"$f":"#REF!","v":{"$error":"#REF!"}},{"$f":"#REF!","v":{"$error":"#REF!"}},null,null,{"$f":"#REF!","v":{"$error":"#REF!"}},800001965,"http://www.xbrl.org/scheme/companyName",null,{"$f":"Periodos!$C$4","v":"2017-12-31"},{"$f":"#REF!","v":{"$error":"#REF!"}},{"$f":"#REF!","v":{"$error":"#REF!"}}]
[{"$error":"#REF!"},null,{"$f":"#REF!","v":{"$error":"#REF!"}},{"$f":"#REF!","v":{"$error":"#REF!"}},null,null,{"$f":"#REF!","v":{"$error":"#REF!"}},800001965,"http://www.xbrl.org/scheme/companyName",null,{"$f":"Periodos!$C$4","v":"2017-12-31"},{"$f":"#REF!","v":{"$error":"#REF!"}},{"$f":"#REF!","v":{"$error":"#REF!"}}]
[{"$error":"#REF!"},null,{"$f":"#REF!","v":{"$error":"#REF!"}},{"$f":"#REF!","v":{"$error":"#REF!"}},null,null,{"$f":"#REF!","v":{"$error":"#REF!"}},800001965,"http://www.xbrl.org/scheme/companyName",null,{"$f":"Periodos!$C$4","v":"2017-12-31"},{"$f":"#REF!","v":{"$error":"#REF!"}},{"$f":"#REF!","v":{"$error":"#REF!"}}]
[{"$error":"#REF!"},null,{"$f":"#REF!","v":{"$error":"#REF!"}},{"$f":"#REF!","v":{"$error":"#REF!"}},null,null,{"$f":"#REF!","v":{"$error":"#REF!"}},800001965,"http://www.xbrl.org/scheme/companyName",null,{"$f":"Periodos!$C$4","v":"2017-12-31"},{"$f":"#REF!","v":{"$error":"#REF!"}},{"$f":"#REF!","v":{"$error":"#REF!"}}]
[{"$error":"#REF!"},null,{"$f":"#REF!","v":{"$error":"#REF!"}},{"$f":"#REF!","v":{"$error":"#REF!"}},null,null,{"$f":"#REF!","v":{"$error":"#REF!"}},800001965,"http://www.xbrl.org/scheme/companyName",null,{"$f":"Periodos!$C$4","v":"2017-12-31"},{"$f":"#REF!","v":{"$error":"#REF!"}},{"$f":"#REF!","v":{"$error":"#REF!"}}]
[{"$error":"#REF!"},null,{"$f":"#REF!","v":{"$error":"#REF!"}},{"$f":"#REF!","v":{"$error":"#REF!"}},0,"peso",{"$f":"#REF!","v":{"$error":"#REF!"}},800001965,"http://www.xbrl.org/scheme/companyName",null,{"$f":"Periodos!$C$4","v":"2017-12-31"},{"$f":"#REF!","v":{"$error":"#REF!"}},{"$f":"#REF!","v":{"$error":"#REF!"}}]
["/*",null,"--153--"]
[{"$error":"#REF!"},null,{"$f":"#REF!","v":{"$error":"#REF!"}},{"$f":"#REF!","v":{"$error":"#REF!"}},null,null,{"$f":"#REF!","v":{"$error":"#REF!"}},800001965,"http://www.xbrl.org/scheme/companyName",null,{"$f":"Periodos!$C$4","v":"2017-12-31"},{"$f":"#REF!","v":{"$error":"#REF!"}},{"$f":"#REF!","v":{"$error":"#REF!"}}]
[{"$error":"#REF!"},null,{"$f":"#REF!","v":{"$error":"#REF!"}},{"$f":"#REF!","v":{"$error":"#REF!"}},null,null,{"$f":"#REF!","v":{"$error":"#REF!"}},800001965,"http://www.xbrl.org/scheme/companyName",null,{"$f":"Periodos!$C$4","v":"2017-12-31"},{"$f":"#REF!","v":{"$error":"#REF!"}},{"$f":"#REF!","v":{"$error":"#REF!"}}]
[{"$error":"#REF!"},null,{"$f":"#REF!","v":{"$error":"#REF!"}},{"$f":"#REF!","v":{"$error":"#REF!"}},null,null,{"$f":"#REF!","v":{"$error":"#REF!"}},800001965,"http://www.xbrl.org/scheme/companyName",null,{"$f":"Periodos!$C$4","v":"2017-12-31"},{"$f":"#REF!","v":{"$error":"#REF!"}},{"$f":"#REF!","v":{"$error":"#REF!"}}]
[{"$error":"#REF!"},null,{"$f":"#REF!","v":{"$error":"#REF!"}},{"$f":"#REF!","v":{"$error":"#REF!"}},null,null,{"$f":"#REF!","v":{"$error":"#REF!"}},800001965,"http://www.xbrl.org/scheme/companyName",null,{"$f":"Periodos!$C$4","v":"2017-12-31"},{"$f":"#REF!","v":{"$error":"#REF!"}},{"$f":"#REF!","v":{"$error":"#REF!"}}]
[{"$error":"#REF!"},null,{"$f":"#REF!","v":{"$error":"#REF!"}},{"$f":"#REF!","v":{"$error":"#REF!"}},null,null,{"$f":"#REF!","v":{"$error":"#REF!"}},800001965,"http://www.xbrl.org/scheme/companyName",null,{"$f":"Periodos!$C$4","v":"2017-12-31"},{"$f":"#REF!","v":{"$error":"#REF!"}},{"$f":"#REF!","v":{"$error":"#REF!"}}]
[{"$error":"#REF!"},null,{"$f":"#REF!","v":{"$error":"#REF!"}},{"$f":"#REF!","v":{"$error":"#REF!"}},null,null,{"$f":"#REF!","v":{"$error":"#REF!"}},800001965,"http://www.xbrl.org/scheme/companyName",null,{"$f":"Periodos!$C$4","v":"2017-12-31"},{"$f":"#REF!","v":{"$error":"#REF!"}},{"$f":"#REF!","v":{"$error":"#REF!"}}]
[{"$error":"#REF!"},null,{"$f":"#REF!","v":{"$error":"#REF!"}},{"$f":"#REF!","v":{"$error":"#REF!"}},null,null,{"$f":"#REF!","v":{"$error":"#REF!"}},800001965,"http://www.xbrl.org/scheme/companyName",null,{"$f":"Periodos!$C$4","v":"2017-12-31"},{"$f":"#REF!","v":{"$error":"#REF!"}},{"$f":"#REF!","v":{"$error":"#REF!"}}]
[{"$error":"#REF!"},null,{"$f":"#REF!","v":{"$error":"#REF!"}},{"$f":"#REF!","v":{"$error":"#REF!"}},null,null,{"$f":"#REF!","v":{"$error":"#REF!"}},800001965,"http://www.xbrl.org/scheme/companyName",null,{"$f":"Periodos!$C$4","v":"2017-12-31"},{"$f":"#REF!","v":{"$error":"#REF!"}},{"$f":"#REF!","v":{"$error":"#REF!"}}]
[{"$error":"#REF!"},null,{"$f":"#REF!","v":{"$error":"#REF!"}},{"$f":"#REF!","v":{"$error":"#REF!"}},null,null,{"$f":"#REF!","v":{"$error":"#REF!"}},800001965,"http://www.xbrl.org/scheme/companyName",null,{"$f":"Periodos!$C$4","v":"2017-12-31"},{"$f":"#REF!","v":{"$error":"#REF!"}},{"$f":"#REF!","v":{"$error":"#REF!"}}]
[{"$error":"#REF!"},null,{"$f":"#REF!","v":{"$error":"#REF!"}},{"$f":"#REF!","v":{"$error":"#REF!"}},null,null,{"$f":"#REF!","v":{"$error":"#REF!"}},800001965,"http://www.xbrl.org/scheme/companyName",null,{"$f":"Periodos!$C$4","v":"2017-12-31"},{"$f":"#REF!","v":{"$error":"#REF!"}},{"$f":"#REF!","v":{"$error":"#REF!"}}]
[{"$error":"#REF!"},null,{"$f":"#REF!","v":{"$error":"#REF!"}},{"$f":"#REF!","v":{"$error":"#REF!"}},null,null,{"$f":"#REF!","v":{"$error":"#REF!"}},800001965,"http://www.xbrl.org/scheme/companyName",null,{"$f":"Periodos!$C$4","v":"2017-12-31"},{"$f":"#REF!","v":{"$error":"#REF!"}},{"$f":"#REF!","v":{"$error":"#REF!"}}]
[{"$error":"#REF!"},null,{"$f":"#REF!","v":{"$error":"#REF!"}},{"$f":"#REF!","v":{"$error":"#REF!"}},0,"peso",{"$f":"#REF!","v":{"$error":"#REF!"}},800001965,"http://www.xbrl.org/scheme/companyName",null,{"$f":"Periodos!$C$4","v":"2017-12-31"},{"$f":"#REF!","v":{"$error":"#REF!"}},{"$f":"#REF!","v":{"$error":"#REF!"}}]
["/*",null,"--154--"]
[{"$error":"#REF!"},null,{"$f":"#REF!","v":{"$error":"#REF!"}},{"$f":"#REF!","v":{"$error":"#REF!"}},null,null,{"$f":"#REF!","v":{"$error":"#REF!"}},800001965,"http://www.xbrl.org/scheme/companyName",null,{"$f":"Periodos!$C$4","v":"2017-12-31"},{"$f":"#REF!","v":{"$error":"#REF!"}},{"$f":"#REF!","v":{"$error":"#REF!"}}]
[{"$error":"#REF!"},null,{"$f":"#REF!","v":{"$error":"#REF!"}},{"$f":"#REF!","v":{"$error":"#REF!"}},null,null,{"$f":"#REF!","v":{"$error":"#REF!"}},800001965,"http://www.xbrl.org/scheme/companyName",null,{"$f":"Periodos!$C$4","v":"2017-12-31"},{"$f":"#REF!","v":{"$error":"#REF!"}},{"$f":"#REF!","v":{"$error":"#REF!"}}]
[{"$error":"#REF!"},null,{"$f":"#REF!","v":{"$error":"#REF!"}},{"$f":"#REF!","v":{"$error":"#REF!"}},null,null,{"$f":"#REF!","v":{"$error":"#REF!"}},800001965,"http://www.xbrl.org/scheme/companyName",null,{"$f":"Periodos!$C$4","v":"2017-12-31"},{"$f":"#REF!","v":{"$error":"#REF!"}},{"$f":"#REF!","v":{"$error":"#REF!"}}]
[{"$error":"#REF!"},null,{"$f":"#REF!","v":{"$error":"#REF!"}},{"$f":"#REF!","v":{"$error":"#REF!"}},null,null,{"$f":"#REF!","v":{"$error":"#REF!"}},800001965,"http://www.xbrl.org/scheme/companyName",null,{"$f":"Periodos!$C$4","v":"2017-12-31"},{"$f":"#REF!","v":{"$error":"#REF!"}},{"$f":"#REF!","v":{"$error":"#REF!"}}]
[{"$error":"#REF!"},null,{"$f":"#REF!","v":{"$error":"#REF!"}},{"$f":"#REF!","v":{"$error":"#REF!"}},null,null,{"$f":"#REF!","v":{"$error":"#REF!"}},800001965,"http://www.xbrl.org/scheme/companyName",null,{"$f":"Periodos!$C$4","v":"2017-12-31"},{"$f":"#REF!","v":{"$error":"#REF!"}},{"$f":"#REF!","v":{"$error":"#REF!"}}]
[{"$error":"#REF!"},null,{"$f":"#REF!","v":{"$error":"#REF!"}},{"$f":"#REF!","v":{"$error":"#REF!"}},null,null,{"$f":"#REF!","v":{"$error":"#REF!"}},800001965,"http://www.xbrl.org/scheme/companyName",null,{"$f":"Periodos!$C$4","v":"2017-12-31"},{"$f":"#REF!","v":{"$error":"#REF!"}},{"$f":"#REF!","v":{"$error":"#REF!"}}]
[{"$error":"#REF!"},null,{"$f":"#REF!","v":{"$error":"#REF!"}},{"$f":"#REF!","v":{"$error":"#REF!"}},null,null,{"$f":"#REF!","v":{"$error":"#REF!"}},800001965,"http://www.xbrl.org/scheme/companyName",null,{"$f":"Periodos!$C$4","v":"2017-12-31"},{"$f":"#REF!","v":{"$error":"#REF!"}},{"$f":"#REF!","v":{"$error":"#REF!"}}]
[{"$error":"#REF!"},null,{"$f":"#REF!","v":{"$error":"#REF!"}},{"$f":"#REF!","v":{"$error":"#REF!"}},null,null,{"$f":"#REF!","v":{"$error":"#REF!"}},800001965,"http://www.xbrl.org/scheme/companyName",null,{"$f":"Periodos!$C$4","v":"2017-12-31"},{"$f":"#REF!","v":{"$error":"#REF!"}},{"$f":"#REF!","v":{"$error":"#REF!"}}]
[{"$error":"#REF!"},null,{"$f":"#REF!","v":{"$error":"#REF!"}},{"$f":"#REF!","v":{"$error":"#REF!"}},null,null,{"$f":"#REF!","v":{"$error":"#REF!"}},800001965,"http://www.xbrl.org/scheme/companyName",null,{"$f":"Periodos!$C$4","v":"2017-12-31"},{"$f":"#REF!","v":{"$error":"#REF!"}},{"$f":"#REF!","v":{"$error":"#REF!"}}]
[{"$error":"#REF!"},null,{"$f":"#REF!","v":{"$error":"#REF!"}},{"$f":"#REF!","v":{"$error":"#REF!"}},null,null,{"$f":"#REF!","v":{"$error":"#REF!"}},800001965,"http://www.xbrl.org/scheme/companyName",null,{"$f":"Periodos!$C$4","v":"2017-12-31"},{"$f":"#REF!","v":{"$error":"#REF!"}},{"$f":"#REF!","v":{"$error":"#REF!"}}]
[{"$error":"#REF!"},null,{"$f":"#REF!","v":{"$error":"#REF!"}},{"$f":"#REF!","v":{"$error":"#REF!"}},null,null,{"$f":"#REF!","v":{"$error":"#REF!"}},800001965,"http://www.xbrl.org/scheme/companyName",null,{"$f":"Periodos!$C$4","v":"2017-12-31"},{"$f":"#REF!","v":{"$error":"#REF!"}},{"$f":"#REF!","v":{"$error":"#REF!"}}]
[{"$error":"#REF!"},null,{"$f":"#REF!","v":{"$error":"#REF!"}},{"$f":"#REF!","v":{"$error":"#REF!"}},0,"peso",{"$f":"#REF!","v":{"$error":"#REF!"}},800001965,"http://www.xbrl.org/scheme/companyName",null,{"$f":"Periodos!$C$4","v":"2017-12-31"},{"$f":"#REF!","v":{"$error":"#REF!"}},{"$f":"#REF!","v":{"$error":"#REF!"}}]
["/*",null,"--155--"]
[{"$error":"#REF!"},null,{"$f":"#REF!","v":{"$error":"#REF!"}},{"$f":"#REF!","v":{"$error":"#REF!"}},null,null,{"$f":"#REF!","v":{"$error":"#REF!"}},800001965,"http://www.xbrl.org/scheme/companyName",null,{"$f":"Periodos!$C$4","v":"2017-12-31"},{"$f":"#REF!","v":{"$error":"#REF!"}},{"$f":"#REF!","v":{"$error":"#REF!"}}]
[{"$error":"#REF!"},null,{"$f":"#REF!","v":{"$error":"#REF!"}},{"$f":"#REF!","v":{"$error":"#REF!"}},null,null,{"$f":"#REF!","v":{"$error":"#REF!"}},800001965,"http://www.xbrl.org/scheme/companyName",null,{"$f":"Periodos!$C$4","v":"2017-12-31"},{"$f":"#REF!","v":{"$error":"#REF!"}},{"$f":"#REF!","v":{"$error":"#REF!"}}]
[{"$error":"#REF!"},null,{"$f":"#REF!","v":{"$error":"#REF!"}},{"$f":"#REF!","v":{"$error":"#REF!"}},null,null,{"$f":"#REF!","v":{"$error":"#REF!"}},800001965,"http://www.xbrl.org/scheme/companyName",null,{"$f":"Periodos!$C$4","v":"2017-12-31"},{"$f":"#REF!","v":{"$error":"#REF!"}},{"$f":"#REF!","v":{"$error":"#REF!"}}]
[{"$error":"#REF!"},null,{"$f":"#REF!","v":{"$error":"#REF!"}},{"$f":"#REF!","v":{"$error":"#REF!"}},null,null,{"$f":"#REF!","v":{"$error":"#REF!"}},800001965,"http://www.xbrl.org/scheme/companyName",null,{"$f":"Periodos!$C$4","v":"2017-12-31"},{"$f":"#REF!","v":{"$error":"#REF!"}},{"$f":"#REF!","v":{"$error":"#REF!"}}]
[{"$error":"#REF!"},null,{"$f":"#REF!","v":{"$error":"#REF!"}},{"$f":"#REF!","v":{"$error":"#REF!"}},null,null,{"$f":"#REF!","v":{"$error":"#REF!"}},800001965,"http://www.xbrl.org/scheme/companyName",null,{"$f":"Periodos!$C$4","v":"2017-12-31"},{"$f":"#REF!","v":{"$error":"#REF!"}},{"$f":"#REF!","v":{"$error":"#REF!"}}]
[{"$error":"#REF!"},null,{"$f":"#REF!","v":{"$error":"#REF!"}},{"$f":"#REF!","v":{"$error":"#REF!"}},null,null,{"$f":"#REF!","v":{"$error":"#REF!"}},800001965,"http://www.xbrl.org/scheme/companyName",null,{"$f":"Periodos!$C$4","v":"2017-12-31"},{"$f":"#REF!","v":{"$error":"#REF!"}},{"$f":"#REF!","v":{"$error":"#REF!"}}]
[{"$error":"#REF!"},null,{"$f":"#REF!","v":{"$error":"#REF!"}},{"$f":"#REF!","v":{"$error":"#REF!"}},null,null,{"$f":"#REF!","v":{"$error":"#REF!"}},800001965,"http://www.xbrl.org/scheme/companyName",null,{"$f":"Periodos!$C$4","v":"2017-12-31"},{"$f":"#REF!","v":{"$error":"#REF!"}},{"$f":"#REF!","v":{"$error":"#REF!"}}]
[{"$error":"#REF!"},null,{"$f":"#REF!","v":{"$error":"#REF!"}},{"$f":"#REF!","v":{"$error":"#REF!"}},null,null,{"$f":"#REF!","v":{"$error":"#REF!"}},800001965,"http://www.xbrl.org/scheme/companyName",null,{"$f":"Periodos!$C$4","v":"2017-12-31"},{"$f":"#REF!","v":{"$error":"#REF!"}},{"$f":"#REF!","v":{"$error":"#REF!"}}]
[{"$error":"#REF!"},null,{"$f":"#REF!","v":{"$error":"#REF!"}},{"$f":"#REF!","v":{"$error":"#REF!"}},null,null,{"$f":"#REF!","v":{"$error":"#REF!"}},800001965,"http://www.xbrl.org/scheme/companyName",null,{"$f":"Periodos!$C$4","v":"2017-12-31"},{"$f":"#REF!","v":{"$error":"#REF!"}},{"$f":"#REF!","v":{"$error":"#REF!"}}]
[{"$f":"IF(G3681=\"\",\"/*\",\"\")","v":{"$error":"#REF!"}},null,{"$f":"#REF!","v":{"$error":"#REF!"}},{"$f":"#REF!","v":{"$error":"#REF!"}},null,null,{"$f":"#REF!","v":{"$error":"#REF!"}},800001965,"http://www.xbrl.org/scheme/companyName",null,{"$f":"Periodos!$C$4","v":"2017-12-31"},{"$f":"#REF!","v":{"$error":"#REF!"}},{"$f":"#REF!","v":{"$error":"#REF!"}}]
[{"$error":"#REF!"},null,{"$f":"#REF!","v":{"$error":"#REF!"}},{"$f":"#REF!","v":{"$error":"#REF!"}},null,null,{"$f":"#REF!","v":{"$error":"#REF!"}},800001965,"http://www.xbrl.org/scheme/companyName",null,{"$f":"Periodos!$C$4","v":"2017-12-31"},{"$f":"#REF!","v":{"$error":"#REF!"}},{"$f":"#REF!","v":{"$error":"#REF!"}}]
[{"$error":"#REF!"},null,{"$f":"#REF!","v":{"$error":"#REF!"}},{"$f":"#REF!","v":{"$error":"#REF!"}},0,"peso",{"$f":"#REF!","v":{"$error":"#REF!"}},800001965,"http://www.xbrl.org/scheme/companyName",null,{"$f":"Periodos!$C$4","v":"2017-12-31"},{"$f":"#REF!","v":{"$error":"#REF!"}},{"$f":"#REF!","v":{"$error":"#REF!"}}]
["/*",null,"--156--"]
[{"$error":"#REF!"},null,{"$f":"#REF!","v":{"$error":"#REF!"}},{"$f":"#REF!","v":{"$error":"#REF!"}},null,null,{"$f":"#REF!","v":{"$error":"#REF!"}},800001965,"http://www.xbrl.org/scheme/companyName",null,{"$f":"Periodos!$C$4","v":"2017-12-31"},{"$f":"#REF!","v":{"$error":"#REF!"}},{"$f":"#REF!","v":{"$error":"#REF!"}}]
[{"$error":"#REF!"},null,{"$f":"#REF!","v":{"$error":"#REF!"}},{"$f":"#REF!","v":{"$error":"#REF!"}},null,null,{"$f":"#REF!","v":{"$error":"#REF!"}},800001965,"http://www.xbrl.org/scheme/companyName",null,{"$f":"Periodos!$C$4","v":"2017-12-31"},{"$f":"#REF!","v":{"$error":"#REF!"}},{"$f":"#REF!","v":{"$error":"#REF!"}}]
[{"$error":"#REF!"},null,{"$f":"#REF!","v":{"$error":"#REF!"}},{"$f":"#REF!","v":{"$error":"#REF!"}},null,null,{"$f":"#REF!","v":{"$error":"#REF!"}},800001965,"http://www.xbrl.org/scheme/companyName",null,{"$f":"Periodos!$C$4","v":"2017-12-31"},{"$f":"#REF!","v":{"$error":"#REF!"}},{"$f":"#REF!","v":{"$error":"#REF!"}}]
[{"$error":"#REF!"},null,{"$f":"#REF!","v":{"$error":"#REF!"}},{"$f":"#REF!","v":{"$error":"#REF!"}},null,null,{"$f":"#REF!","v":{"$error":"#REF!"}},800001965,"http://www.xbrl.org/scheme/companyName",null,{"$f":"Periodos!$C$4","v":"2017-12-31"},{"$f":"#REF!","v":{"$error":"#REF!"}},{"$f":"#REF!","v":{"$error":"#REF!"}}]
[{"$error":"#REF!"},null,{"$f":"#REF!","v":{"$error":"#REF!"}},{"$f":"#REF!","v":{"$error":"#REF!"}},null,null,{"$f":"#REF!","v":{"$error":"#REF!"}},800001965,"http://www.xbrl.org/scheme/companyName",null,{"$f":"Periodos!$C$4","v":"2017-12-31"},{"$f":"#REF!","v":{"$error":"#REF!"}},{"$f":"#REF!","v":{"$error":"#REF!"}}]
[{"$error":"#REF!"},null,{"$f":"#REF!","v":{"$error":"#REF!"}},{"$f":"#REF!","v":{"$error":"#REF!"}},null,null,{"$f":"#REF!","v":{"$error":"#REF!"}},800001965,"http://www.xbrl.org/scheme/companyName",null,{"$f":"Periodos!$C$4","v":"2017-12-31"},{"$f":"#REF!","v":{"$error":"#REF!"}},{"$f":"#REF!","v":{"$error":"#REF!"}}]
[{"$error":"#REF!"},null,{"$f":"#REF!","v":{"$error":"#REF!"}},{"$f":"#REF!","v":{"$error":"#REF!"}},null,null,{"$f":"#REF!","v":{"$error":"#REF!"}},800001965,"http://www.xbrl.org/scheme/companyName",null,{"$f":"Periodos!$C$4","v":"2017-12-31"},{"$f":"#REF!","v":{"$error":"#REF!"}},{"$f":"#REF!","v":{"$error":"#REF!"}}]
[{"$error":"#REF!"},null,{"$f":"#REF!","v":{"$error":"#REF!"}},{"$f":"#REF!","v":{"$error":"#REF!"}},null,null,{"$f":"#REF!","v":{"$error":"#REF!"}},800001965,"http://www.xbrl.org/scheme/companyName",null,{"$f":"Periodos!$C$4","v":"2017-12-31"},{"$f":"#REF!","v":{"$error":"#REF!"}},{"$f":"#REF!","v":{"$error":"#REF!"}}]
[{"$error":"#REF!"},null,{"$f":"#REF!","v":{"$error":"#REF!"}},{"$f":"#REF!","v":{"$error":"#REF!"}},null,null,{"$f":"#REF!","v":{"$error":"#REF!"}},800001965,"http://www.xbrl.org/scheme/companyName",null,{"$f":"Periodos!$C$4","v":"2017-12-31"},{"$f":"#REF!","v":{"$error":"#REF!"}},{"$f":"#REF!","v":{"$error":"#REF!"}}]
[{"$error":"#REF!"},null,{"$f":"#REF!","v":{"$error":"#REF!"}},{"$f":"#REF!","v":{"$error":"#REF!"}},null,null,{"$f":"#REF!","v":{"$error":"#REF!"}},800001965,"http://www.xbrl.org/scheme/companyName",null,{"$f":"Periodos!$C$4","v":"2017-12-31"},{"$f":"#REF!","v":{"$error":"#REF!"}},{"$f":"#REF!","v":{"$error":"#REF!"}}]
[{"$error":"#REF!"},null,{"$f":"#REF!","v":{"$error":"#REF!"}},{"$f":"#REF!","v":{"$error":"#REF!"}},null,null,{"$f":"#REF!","v":{"$error":"#REF!"}},800001965,"http://www.xbrl.org/scheme/companyName",null,{"$f":"Periodos!$C$4","v":"2017-12-31"},{"$f":"#REF!","v":{"$error":"#REF!"}},{"$f":"#REF!","v":{"$error":"#REF!"}}]
[{"$error":"#REF!"},null,{"$f":"#REF!","v":{"$error":"#REF!"}},{"$f":"#REF!","v":{"$error":"#REF!"}},0,"peso",{"$f":"#REF!","v":{"$error":"#REF!"}},800001965,"http://www.xbrl.org/scheme/companyName",null,{"$f":"Periodos!$C$4","v":"2017-12-31"},{"$f":"#REF!","v":{"$error":"#REF!"}},{"$f":"#REF!","v":{"$error":"#REF!"}}]
["/*",null,"--157--"]
[{"$error":"#REF!"},null,{"$f":"#REF!","v":{"$error":"#REF!"}},{"$f":"#REF!","v":{"$error":"#REF!"}},null,null,{"$f":"#REF!","v":{"$error":"#REF!"}},800001965,"http://www.xbrl.org/scheme/companyName",null,{"$f":"Periodos!$C$4","v":"2017-12-31"},{"$f":"#REF!","v":{"$error":"#REF!"}},{"$f":"#REF!","v":{"$error":"#REF!"}}]
[{"$error":"#REF!"},null,{"$f":"#REF!","v":{"$error":"#REF!"}},{"$f":"#REF!","v":{"$error":"#REF!"}},null,null,{"$f":"#REF!","v":{"$error":"#REF!"}},800001965,"http://www.xbrl.org/scheme/companyName",null,{"$f":"Periodos!$C$4","v":"2017-12-31"},{"$f":"#REF!","v":{"$error":"#REF!"}},{"$f":"#REF!","v":{"$error":"#REF!"}}]
[{"$error":"#REF!"},null,{"$f":"#REF!","v":{"$error":"#REF!"}},{"$f":"#REF!","v":{"$error":"#REF!"}},null,null,{"$f":"#REF!","v":{"$error":"#REF!"}},800001965,"http://www.xbrl.org/scheme/companyName",null,{"$f":"Periodos!$C$4","v":"2017-12-31"},{"$f":"#REF!","v":{"$error":"#REF!"}},{"$f":"#REF!","v":{"$error":"#REF!"}}]
[{"$error":"#REF!"},null,{"$f":"#REF!","v":{"$error":"#REF!"}},{"$f":"#REF!","v":{"$error":"#REF!"}},null,null,{"$f":"#REF!","v":{"$error":"#REF!"}},800001965,"http://www.xbrl.org/scheme/companyName",null,{"$f":"Periodos!$C$4","v":"2017-12-31"},{"$f":"#REF!","v":{"$error":"#REF!"}},{"$f":"#REF!","v":{"$error":"#REF!"}}]
[{"$error":"#REF!"},null,{"$f":"#REF!","v":{"$error":"#REF!"}},{"$f":"#REF!","v":{"$error":"#REF!"}},null,null,{"$f":"#REF!","v":{"$error":"#REF!"}},800001965,"http://www.xbrl.org/scheme/companyName",null,{"$f":"Periodos!$C$4","v":"2017-12-31"},{"$f":"#REF!","v":{"$error":"#REF!"}},{"$f":"#REF!","v":{"$error":"#REF!"}}]
[{"$error":"#REF!"},null,{"$f":"#REF!","v":{"$error":"#REF!"}},{"$f":"#REF!","v":{"$error":"#REF!"}},null,null,{"$f":"#REF!","v":{"$error":"#REF!"}},800001965,"http://www.xbrl.org/scheme/companyName",null,{"$f":"Periodos!$C$4","v":"2017-12-31"},{"$f":"#REF!","v":{"$error":"#REF!"}},{"$f":"#REF!","v":{"$error":"#REF!"}}]
[{"$error":"#REF!"},null,{"$f":"#REF!","v":{"$error":"#REF!"}},{"$f":"#REF!","v":{"$error":"#REF!"}},null,null,{"$f":"#REF!","v":{"$error":"#REF!"}},800001965,"http://www.xbrl.org/scheme/companyName",null,{"$f":"Periodos!$C$4","v":"2017-12-31"},{"$f":"#REF!","v":{"$error":"#REF!"}},{"$f":"#REF!","v":{"$error":"#REF!"}}]
[{"$error":"#REF!"},null,{"$f":"#REF!","v":{"$error":"#REF!"}},{"$f":"#REF!","v":{"$error":"#REF!"}},null,null,{"$f":"#REF!","v":{"$error":"#REF!"}},800001965,"http://www.xbrl.org/scheme/companyName",null,{"$f":"Periodos!$C$4","v":"2017-12-31"},{"$f":"#REF!","v":{"$error":"#REF!"}},{"$f":"#REF!","v":{"$error":"#REF!"}}]
[{"$error":"#REF!"},null,{"$f":"#REF!","v":{"$error":"#REF!"}},{"$f":"#REF!","v":{"$error":"#REF!"}},null,null,{"$f":"#REF!","v":{"$error":"#REF!"}},800001965,"http://www.xbrl.org/scheme/companyName",null,{"$f":"Periodos!$C$4","v":"2017-12-31"},{"$f":"#REF!","v":{"$error":"#REF!"}},{"$f":"#REF!","v":{"$error":"#REF!"}}]
[{"$error":"#REF!"},null,{"$f":"#REF!","v":{"$error":"#REF!"}},{"$f":"#REF!","v":{"$error":"#REF!"}},null,null,{"$f":"#REF!","v":{"$error":"#REF!"}},800001965,"http://www.xbrl.org/scheme/companyName",null,{"$f":"Periodos!$C$4","v":"2017-12-31"},{"$f":"#REF!","v":{"$error":"#REF!"}},{"$f":"#REF!","v":{"$error":"#REF!"}}]
[{"$error":"#REF!"},null,{"$f":"#REF!","v":{"$error":"#REF!"}},{"$f":"#REF!","v":{"$error":"#REF!"}},null,null,{"$f":"#REF!","v":{"$error":"#REF!"}},800001965,"http://www.xbrl.org/scheme/companyName",null,{"$f":"Periodos!$C$4","v":"2017-12-31"},{"$f":"#REF!","v":{"$error":"#REF!"}},{"$f":"#REF!","v":{"$error":"#REF!"}}]
[{"$error":"#REF!"},null,{"$f":"#REF!","v":{"$error":"#REF!"}},{"$f":"#REF!","v":{"$error":"#REF!"}},0,"peso",{"$f":"#REF!","v":{"$error":"#REF!"}},800001965,"http://www.xbrl.org/scheme/companyName",null,{"$f":"Periodos!$C$4","v":"2017-12-31"},{"$f":"#REF!","v":{"$error":"#REF!"}},{"$f":"#REF!","v":{"$error":"#REF!"}}]
["/*",null,"--158--"]
[{"$error":"#REF!"},null,{"$f":"#REF!","v":{"$error":"#REF!"}},{"$f":"#REF!","v":{"$error":"#REF!"}},null,null,{"$f":"#REF!","v":{"$error":"#REF!"}},800001965,"http://www.xbrl.org/scheme/companyName",null,{"$f":"Periodos!$C$4","v":"2017-12-31"},{"$f":"#REF!","v":{"$error":"#REF!"}},{"$f":"#REF!","v":{"$error":"#REF!"}}]
[{"$error":"#REF!"},null,{"$f":"#REF!","v":{"$error":"#REF!"}},{"$f":"#REF!","v":{"$error":"#REF!"}},null,null,{"$f":"#REF!","v":{"$error":"#REF!"}},800001965,"http://www.xbrl.org/scheme/companyName",null,{"$f":"Periodos!$C$4","v":"2017-12-31"},{"$f":"#REF!","v":{"$error":"#REF!"}},{"$f":"#REF!","v":{"$error":"#REF!"}}]
[{"$error":"#REF!"},null,{"$f":"#REF!","v":{"$error":"#REF!"}},{"$f":"#REF!","v":{"$error":"#REF!"}},null,null,{"$f":"#REF!","v":{"$error":"#REF!"}},800001965,"http://www.xbrl.org/scheme/companyName",null,{"$f":"Periodos!$C$4","v":"2017-12-31"},{"$f":"#REF!","v":{"$error":"#REF!"}},{"$f":"#REF!","v":{"$error":"#REF!"}}]
[{"$error":"#REF!"},null,{"$f":"#REF!","v":{"$error":"#REF!"}},{"$f":"#REF!","v":{"$error":"#REF!"}},null,null,{"$f":"#REF!","v":{"$error":"#REF!"}},800001965,"http://www.xbrl.org/scheme/companyName",null,{"$f":"Periodos!$C$4","v":"2017-12-31"},{"$f":"#REF!","v":{"$error":"#REF!"}},{"$f":"#REF!","v":{"$error":"#REF!"}}]
[{"$error":"#REF!"},null,{"$f":"#REF!","v":{"$error":"#REF!"}},{"$f":"#REF!","v":{"$error":"#REF!"}},null,null,{"$f":"#REF!","v":{"$error":"#REF!"}},800001965,"http://www.xbrl.org/scheme/companyName",null,{"$f":"Periodos!$C$4","v":"2017-12-31"},{"$f":"#REF!","v":{"$error":"#REF!"}},{"$f":"#REF!","v":{"$error":"#REF!"}}]
[{"$error":"#REF!"},null,{"$f":"#REF!","v":{"$error":"#REF!"}},{"$f":"#REF!","v":{"$error":"#REF!"}},null,null,{"$f":"#REF!","v":{"$error":"#REF!"}},800001965,"http://www.xbrl.org/scheme/companyName",null,{"$f":"Periodos!$C$4","v":"2017-12-31"},{"$f":"#REF!","v":{"$error":"#REF!"}},{"$f":"#REF!","v":{"$error":"#REF!"}}]
[{"$error":"#REF!"},null,{"$f":"#REF!","v":{"$error":"#REF!"}},{"$f":"#REF!","v":{"$error":"#REF!"}},null,null,{"$f":"#REF!","v":{"$error":"#REF!"}},800001965,"http://www.xbrl.org/scheme/companyName",null,{"$f":"Periodos!$C$4","v":"2017-12-31"},{"$f":"#REF!","v":{"$error":"#REF!"}},{"$f":"#REF!","v":{"$error":"#REF!"}}]
[{"$error":"#REF!"},null,{"$f":"#REF!","v":{"$error":"#REF!"}},{"$f":"#REF!","v":{"$error":"#REF!"}},null,null,{"$f":"#REF!","v":{"$error":"#REF!"}},800001965,"http://www.xbrl.org/scheme/companyName",null,{"$f":"Periodos!$C$4","v":"2017-12-31"},{"$f":"#REF!","v":{"$error":"#REF!"}},{"$f":"#REF!","v":{"$error":"#REF!"}}]
[{"$error":"#REF!"},null,{"$f":"#REF!","v":{"$error":"#REF!"}},{"$f":"#REF!","v":{"$error":"#REF!"}},null,null,{"$f":"#REF!","v":{"$error":"#REF!"}},800001965,"http://www.xbrl.org/scheme/companyName",null,{"$f":"Periodos!$C$4","v":"2017-12-31"},{"$f":"#REF!","v":{"$error":"#REF!"}},{"$f":"#REF!","v":{"$error":"#REF!"}}]
[{"$error":"#REF!"},null,{"$f":"#REF!","v":{"$error":"#REF!"}},{"$f":"#REF!","v":{"$error":"#REF!"}},null,null,{"$f":"#REF!","v":{"$error":"#REF!"}},800001965,"http://www.xbrl.org/scheme/companyName",null,{"$f":"Periodos!$C$4","v":"2017-12-31"},{"$f":"#REF!","v":{"$error":"#REF!"}},{"$f":"#REF!","v":{"$error":"#REF!"}}]
[{"$error":"#REF!"},null,{"$f":"#REF!","v":{"$error":"#REF!"}},{"$f":"#REF!","v":{"$error":"#REF!"}},null,null,{"$f":"#REF!","v":{"$error":"#REF!"}},800001965,"http://www.xbrl.org/scheme/companyName",null,{"$f":"Periodos!$C$4","v":"2017-12-31"},{"$f":"#REF!","v":{"$error":"#REF!"}},{"$f":"#REF!","v":{"$error":"#REF!"}}]
[{"$error":"#REF!"},null,{"$f":"#REF!","v":{"$error":"#REF!"}},{"$f":"#REF!","v":{"$error":"#REF!"}},0,"peso",{"$f":"#REF!","v":{"$error":"#REF!"}},800001965,"http://www.xbrl.org/scheme/companyName",null,{"$f":"Periodos!$C$4","v":"2017-12-31"},{"$f":"#REF!","v":{"$error":"#REF!"}},{"$f":"#REF!","v":{"$error":"#REF!"}}]
["/*",null,"--159--"]
["/*",null,{"$f":"#REF!","v":{"$error":"#REF!"}},{"$f":"#REF!","v":{"$error":"#REF!"}}]
["/*",null,{"$f":"#REF!","v":{"$error":"#REF!"}},{"$f":"#REF!","v":{"$error":"#REF!"}}]
["/*",null,{"$f":"#REF!","v":{"$error":"#REF!"}},{"$f":"#REF!","v":{"$error":"#REF!"}}]
["/*",null,{"$f":"#REF!","v":{"$error":"#REF!"}},{"$f":"#REF!","v":{"$error":"#REF!"}}]
["/*",null,{"$f":"#REF!","v":{"$error":"#REF!"}},{"$f":"#REF!","v":{"$error":"#REF!"}}]
["/*",null,{"$f":"#REF!","v":{"$error":"#REF!"}},{"$f":"#REF!","v":{"$error":"#REF!"}}]
["/*",null,{"$f":"#REF!","v":{"$error":"#REF!"}},{"$f":"#REF!","v":{"$error":"#REF!"}}]
["/*",null,{"$f":"#REF!","v":{"$error":"#REF!"}},{"$f":"#REF!","v":{"$error":"#REF!"}}]
["/*",null,{"$f":"#REF!","v":{"$error":"#REF!"}},{"$f":"#REF!","v":{"$error":"#REF!"}}]
["/*",null,{"$f":"#REF!","v":{"$error":"#REF!"}},{"$f":"#REF!","v":{"$error":"#REF!"}}]
["/*",null,{"$f":"#REF!","v":{"$error":"#REF!"}},{"$f":"#REF!","v":{"$error":"#REF!"}}]
[{"$error":"#REF!"},null,{"$f":"#REF!","v":{"$error":"#REF!"}},{"$f":"#REF!","v":{"$error":"#REF!"}},0,"peso",{"$f":"#REF!","v":{"$error":"#REF!"}},800001965,"http://www.xbrl.org/scheme/companyName",null,{"$f":"Periodos!$C$4","v":"2017-12-31"},{"$f":"#REF!","v":{"$error":"#REF!"}},{"$f":"#REF!","v":{"$error":"#REF!"}}]
["/*",null,"--160--"]
["/*",null,{"$f":"#REF!","v":{"$error":"#REF!"}},{"$f":"#REF!","v":{"$error":"#REF!"}}]
["/*",null,{"$f":"#REF!","v":{"$error":"#REF!"}},{"$f":"#REF!","v":{"$error":"#REF!"}}]
["/*",null,{"$f":"#REF!","v":{"$error":"#REF!"}},{"$f":"#REF!","v":{"$error":"#REF!"}}]
["/*",null,{"$f":"#REF!","v":{"$error":"#REF!"}},{"$f":"#REF!","v":{"$error":"#REF!"}}]
["/*",null,{"$f":"#REF!","v":{"$error":"#REF!"}},{"$f":"#REF!","v":{"$error":"#REF!"}}]
["/*",null,{"$f":"#REF!","v":{"$error":"#REF!"}},{"$f":"#REF!","v":{"$error":"#REF!"}}]
["/*",null,{"$f":"#REF!","v":{"$error":"#REF!"}},{"$f":"#REF!","v":{"$error":"#REF!"}}]
["/*",null,{"$f":"#REF!","v":{"$error":"#REF!"}},{"$f":"#REF!","v":{"$error":"#REF!"}}]
[{"$f":"IF(G3745=\"\",\"/*\",\"\")","v":"/*"},null,{"$f":"#REF!","v":{"$error":"#REF!"}},{"$f":"#REF!","v":{"$error":"#REF!"}}]
["/*",null,{"$f":"#REF!","v":{"$error":"#REF!"}},{"$f":"#REF!","v":{"$error":"#REF!"}}]
["/*",null,{"$f":"#REF!","v":{"$error":"#REF!"}},{"$f":"#REF!","v":{"$error":"#REF!"}}]
[{"$error":"#REF!"},null,{"$f":"#REF!","v":{"$error":"#REF!"}},{"$f":"#REF!","v":{"$error":"#REF!"}},0,"peso",{"$f":"#REF!","v":{"$error":"#REF!"}},800001965,"http://www.xbrl.org/scheme/companyName",null,{"$f":"Periodos!$C$4","v":"2017-12-31"},{"$f":"#REF!","v":{"$error":"#REF!"}},{"$f":"#REF!","v":{"$error":"#REF!"}}]
["/*",null,"--161--"]
["/*",null,{"$f":"#REF!","v":{"$error":"#REF!"}},{"$f":"#REF!","v":{"$error":"#REF!"}}]
["/*",null,{"$f":"#REF!","v":{"$error":"#REF!"}},{"$f":"#REF!","v":{"$error":"#REF!"}}]
["/*",null,{"$f":"#REF!","v":{"$error":"#REF!"}},{"$f":"#REF!","v":{"$error":"#REF!"}}]
["/*",null,{"$f":"#REF!","v":{"$error":"#REF!"}},{"$f":"#REF!","v":{"$error":"#REF!"}}]
["/*",null,{"$f":"#REF!","v":{"$error":"#REF!"}},{"$f":"#REF!","v":{"$error":"#REF!"}}]
["/*",null,{"$f":"#REF!","v":{"$error":"#REF!"}},{"$f":"#REF!","v":{"$error":"#REF!"}}]
["/*",null,{"$f":"#REF!","v":{"$error":"#REF!"}},{"$f":"#REF!","v":{"$error":"#REF!"}}]
["/*",null,{"$f":"#REF!","v":{"$error":"#REF!"}},{"$f":"#REF!","v":{"$error":"#REF!"}}]
["/*",null,{"$f":"#REF!","v":{"$error":"#REF!"}},{"$f":"#REF!","v":{"$error":"#REF!"}}]
["/*",null,{"$f":"#REF!","v":{"$error":"#REF!"}},{"$f":"#REF!","v":{"$error":"#REF!"}}]
["/*",null,{"$f":"#REF!","v":{"$error":"#REF!"}},{"$f":"#REF!","v":{"$error":"#REF!"}}]
[{"$error":"#REF!"},null,{"$f":"#REF!","v":{"$error":"#REF!"}},{"$f":"#REF!","v":{"$error":"#REF!"}},0,"peso",{"$f":"#REF!","v":{"$error":"#REF!"}},800001965,"http://www.xbrl.org/scheme/companyName",null,{"$f":"Periodos!$C$4","v":"2017-12-31"},{"$f":"#REF!","v":{"$error":"#REF!"}},{"$f":"#REF!","v":{"$error":"#REF!"}}]
["/*"]
["/*",null,"800111A GeneraXBRL"]
["/*",null,"--01--"]
["/*",null,{"$f":"#REF!","v":{"$error":"#REF!"}},{"$f":"#REF!","v":{"$error":"#REF!"}}]
["/*",null,{"$f":"#REF!","v":{"$error":"#REF!"}},{"$f":"#REF!","v":{"$error":"#REF!"}}]
["/*",null,{"$f":"#REF!","v":{"$error":"#REF!"}},{"$f":"#REF!","v":{"$error":"#REF!"}}]
["/*",null,{"$f":"#REF!","v":{"$error":"#REF!"}},{"$f":"#REF!","v":{"$error":"#REF!"}}]
["/*",null,{"$f":"#REF!","v":{"$error":"#REF!"}},{"$f":"#REF!","v":{"$error":"#REF!"}}]
["/*",null,{"$f":"#REF!","v":{"$error":"#REF!"}},{"$f":"#REF!","v":{"$error":"#REF!"}}]
["/*",null,{"$f":"#REF!","v":{"$error":"#REF!"}},{"$f":"#REF!","v":{"$error":"#REF!"}}]
["/*",null,{"$f":"#REF!","v":{"$error":"#REF!"}},{"$f":"#REF!","v":{"$error":"#REF!"}}]
["/*",null,{"$f":"#REF!","v":{"$error":"#REF!"}},{"$f":"#REF!","v":{"$error":"#REF!"}}]
["/*",null,{"$f":"#REF!","v":{"$error":"#REF!"}},{"$f":"#REF!","v":{"$error":"#REF!"}}]
["/*",null,{"$f":"#REF!","v":{"$error":"#REF!"}},{"$f":"#REF!","v":{"$error":"#REF!"}}]
["/*",null,{"$f":"#REF!","v":{"$error":"#REF!"}},{"$f":"#REF!","v":{"$error":"#REF!"}}]
["/*",null,"--02--"]
["/*",null,{"$f":"#REF!","v":{"$error":"#REF!"}},{"$f":"#REF!","v":{"$error":"#REF!"}}]
["/*",null,{"$f":"#REF!","v":{"$error":"#REF!"}},{"$f":"#REF!","v":{"$error":"#REF!"}}]
["/*",null,{"$f":"#REF!","v":{"$error":"#REF!"}},{"$f":"#REF!","v":{"$error":"#REF!"}}]
["/*",null,{"$f":"#REF!","v":{"$error":"#REF!"}},{"$f":"#REF!","v":{"$error":"#REF!"}}]
["/*",null,{"$f":"#REF!","v":{"$error":"#REF!"}},{"$f":"#REF!","v":{"$error":"#REF!"}}]
["/*",null,{"$f":"#REF!","v":{"$error":"#REF!"}},{"$f":"#REF!","v":{"$error":"#REF!"}}]
["/*",null,{"$f":"#REF!","v":{"$error":"#REF!"}},{"$f":"#REF!","v":{"$error":"#REF!"}}]
["/*",null,{"$f":"#REF!","v":{"$error":"#REF!"}},{"$f":"#REF!","v":{"$error":"#REF!"}}]
["/*",null,{"$f":"#REF!","v":{"$error":"#REF!"}},{"$f":"#REF!","v":{"$error":"#REF!"}}]
["/*",null,{"$f":"#REF!","v":{"$error":"#REF!"}},{"$f":"#REF!","v":{"$error":"#REF!"}}]
["/*",null,{"$f":"#REF!","v":{"$error":"#REF!"}},{"$f":"#REF!","v":{"$error":"#REF!"}}]
["/*",null,{"$f":"#REF!","v":{"$error":"#REF!"}},{"$f":"#REF!","v":{"$error":"#REF!"}}]
["/*",null,"--03--"]
[{"$error":"#REF!"},null,{"$f":"#REF!","v":{"$error":"#REF!"}},{"$f":"#REF!","v":{"$error":"#REF!"}},null,null,{"$f":"#REF!","v":{"$error":"#REF!"}},800001965,"http://www.xbrl.org/scheme/companyName",null,{"$f":"Periodos!$D$4","v":"2016-12-31"},{"$f":"#REF!","v":{"$error":"#REF!"}},{"$f":"#REF!","v":{"$error":"#REF!"}}]
[{"$error":"#REF!"},null,{"$f":"#REF!","v":{"$error":"#REF!"}},{"$f":"#REF!","v":{"$error":"#REF!"}},null,null,{"$f":"#REF!","v":{"$error":"#REF!"}},800001965,"http://www.xbrl.org/scheme/companyName",null,{"$f":"Periodos!$D$4","v":"2016-12-31"},{"$f":"#REF!","v":{"$error":"#REF!"}},{"$f":"#REF!","v":{"$error":"#REF!"}}]
[{"$error":"#REF!"},null,{"$f":"#REF!","v":{"$error":"#REF!"}},{"$f":"#REF!","v":{"$error":"#REF!"}},null,null,{"$f":"#REF!","v":{"$error":"#REF!"}},800001965,"http://www.xbrl.org/scheme/companyName",null,{"$f":"Periodos!$D$4","v":"2016-12-31"},{"$f":"#REF!","v":{"$error":"#REF!"}},{"$f":"#REF!","v":{"$error":"#REF!"}}]
[{"$error":"#REF!"},null,{"$f":"#REF!","v":{"$error":"#REF!"}},{"$f":"#REF!","v":{"$error":"#REF!"}},null,null,{"$f":"#REF!","v":{"$error":"#REF!"}},800001965,"http://www.xbrl.org/scheme/companyName",null,{"$f":"Periodos!$D$4","v":"2016-12-31"},{"$f":"#REF!","v":{"$error":"#REF!"}},{"$f":"#REF!","v":{"$error":"#REF!"}}]
[{"$error":"#REF!"},null,{"$f":"#REF!","v":{"$error":"#REF!"}},{"$f":"#REF!","v":{"$error":"#REF!"}},null,null,{"$f":"#REF!","v":{"$error":"#REF!"}},800001965,"http://www.xbrl.org/scheme/companyName",null,{"$f":"Periodos!$D$4","v":"2016-12-31"},{"$f":"#REF!","v":{"$error":"#REF!"}},{"$f":"#REF!","v":{"$error":"#REF!"}}]
[{"$error":"#REF!"},null,{"$f":"#REF!","v":{"$error":"#REF!"}},{"$f":"#REF!","v":{"$error":"#REF!"}},null,null,{"$f":"#REF!","v":{"$error":"#REF!"}},800001965,"http://www.xbrl.org/scheme/companyName",null,{"$f":"Periodos!$D$4","v":"2016-12-31"},{"$f":"#REF!","v":{"$error":"#REF!"}},{"$f":"#REF!","v":{"$error":"#REF!"}}]
[{"$error":"#REF!"},null,{"$f":"#REF!","v":{"$error":"#REF!"}},{"$f":"#REF!","v":{"$error":"#REF!"}},null,null,{"$f":"#REF!","v":{"$error":"#REF!"}},800001965,"http://www.xbrl.org/scheme/companyName",null,{"$f":"Periodos!$D$4","v":"2016-12-31"},{"$f":"#REF!","v":{"$error":"#REF!"}},{"$f":"#REF!","v":{"$error":"#REF!"}}]
[{"$error":"#REF!"},null,{"$f":"#REF!","v":{"$error":"#REF!"}},{"$f":"#REF!","v":{"$error":"#REF!"}},null,null,{"$f":"#REF!","v":{"$error":"#REF!"}},800001965,"http://www.xbrl.org/scheme/companyName",null,{"$f":"Periodos!$D$4","v":"2016-12-31"},{"$f":"#REF!","v":{"$error":"#REF!"}},{"$f":"#REF!","v":{"$error":"#REF!"}}]
[{"$error":"#REF!"},null,{"$f":"#REF!","v":{"$error":"#REF!"}},{"$f":"#REF!","v":{"$error":"#REF!"}},null,null,{"$f":"#REF!","v":{"$error":"#REF!"}},800001965,"http://www.xbrl.org/scheme/companyName",null,{"$f":"Periodos!$D$4","v":"2016-12-31"},{"$f":"#REF!","v":{"$error":"#REF!"}},{"$f":"#REF!","v":{"$error":"#REF!"}}]
[{"$error":"#REF!"},null,{"$f":"#REF!","v":{"$error":"#REF!"}},{"$f":"#REF!","v":{"$error":"#REF!"}},null,null,{"$f":"#REF!","v":{"$error":"#REF!"}},800001965,"http://www.xbrl.org/scheme/companyName",null,{"$f":"Periodos!$D$4","v":"2016-12-31"},{"$f":"#REF!","v":{"$error":"#REF!"}},{"$f":"#REF!","v":{"$error":"#REF!"}}]
[{"$error":"#REF!"},null,{"$f":"#REF!","v":{"$error":"#REF!"}},{"$f":"#REF!","v":{"$error":"#REF!"}},null,null,{"$f":"#REF!","v":{"$error":"#REF!"}},800001965,"http://www.xbrl.org/scheme/companyName",null,{"$f":"Periodos!$D$4","v":"2016-12-31"},{"$f":"#REF!","v":{"$error":"#REF!"}},{"$f":"#REF!","v":{"$error":"#REF!"}}]
[{"$error":"#REF!"},null,{"$f":"#REF!","v":{"$error":"#REF!"}},{"$f":"#REF!","v":{"$error":"#REF!"}},0,"peso",{"$f":"#REF!","v":{"$error":"#REF!"}},800001965,"http://www.xbrl.org/scheme/companyName",null,{"$f":"Periodos!$D$4","v":"2016-12-31"},{"$f":"#REF!","v":{"$error":"#REF!"}},{"$f":"#REF!","v":{"$error":"#REF!"}}]
["/*",null,"--04--"]
[{"$error":"#REF!"},null,{"$f":"#REF!","v":{"$error":"#REF!"}},{"$f":"#REF!","v":{"$error":"#REF!"}},null,null,{"$f":"#REF!","v":{"$error":"#REF!"}},800001965,"http://www.xbrl.org/scheme/companyName",null,{"$f":"Periodos!$D$4","v":"2016-12-31"},{"$f":"#REF!","v":{"$error":"#REF!"}},{"$f":"#REF!","v":{"$error":"#REF!"}}]
[{"$error":"#REF!"},null,{"$f":"#REF!","v":{"$error":"#REF!"}},{"$f":"#REF!","v":{"$error":"#REF!"}},null,null,{"$f":"#REF!","v":{"$error":"#REF!"}},800001965,"http://www.xbrl.org/scheme/companyName",null,{"$f":"Periodos!$D$4","v":"2016-12-31"},{"$f":"#REF!","v":{"$error":"#REF!"}},{"$f":"#REF!","v":{"$error":"#REF!"}}]
[{"$error":"#REF!"},null,{"$f":"#REF!","v":{"$error":"#REF!"}},{"$f":"#REF!","v":{"$error":"#REF!"}},null,null,{"$f":"#REF!","v":{"$error":"#REF!"}},800001965,"http://www.xbrl.org/scheme/companyName",null,{"$f":"Periodos!$D$4","v":"2016-12-31"},{"$f":"#REF!","v":{"$error":"#REF!"}},{"$f":"#REF!","v":{"$error":"#REF!"}}]
[{"$error":"#REF!"},null,{"$f":"#REF!","v":{"$error":"#REF!"}},{"$f":"#REF!","v":{"$error":"#REF!"}},null,null,{"$f":"#REF!","v":{"$error":"#REF!"}},800001965,"http://www.xbrl.org/scheme/companyName",null,{"$f":"Periodos!$D$4","v":"2016-12-31"},{"$f":"#REF!","v":{"$error":"#REF!"}},{"$f":"#REF!","v":{"$error":"#REF!"}}]
[{"$error":"#REF!"},null,{"$f":"#REF!","v":{"$error":"#REF!"}},{"$f":"#REF!","v":{"$error":"#REF!"}},null,null,{"$f":"#REF!","v":{"$error":"#REF!"}},800001965,"http://www.xbrl.org/scheme/companyName",null,{"$f":"Periodos!$D$4","v":"2016-12-31"},{"$f":"#REF!","v":{"$error":"#REF!"}},{"$f":"#REF!","v":{"$error":"#REF!"}}]
[{"$f":"IF(G3809=\"\",\"/*\",\"\")","v":{"$error":"#REF!"}},null,{"$f":"#REF!","v":{"$error":"#REF!"}},{"$f":"#REF!","v":{"$error":"#REF!"}},null,null,{"$f":"#REF!","v":{"$error":"#REF!"}},800001965,"http://www.xbrl.org/scheme/companyName",null,{"$f":"Periodos!$D$4","v":"2016-12-31"},{"$f":"#REF!","v":{"$error":"#REF!"}},{"$f":"#REF!","v":{"$error":"#REF!"}}]
[{"$error":"#REF!"},null,{"$f":"#REF!","v":{"$error":"#REF!"}},{"$f":"#REF!","v":{"$error":"#REF!"}},null,null,{"$f":"#REF!","v":{"$error":"#REF!"}},800001965,"http://www.xbrl.org/scheme/companyName",null,{"$f":"Periodos!$D$4","v":"2016-12-31"},{"$f":"#REF!","v":{"$error":"#REF!"}},{"$f":"#REF!","v":{"$error":"#REF!"}}]
[{"$error":"#REF!"},null,{"$f":"#REF!","v":{"$error":"#REF!"}},{"$f":"#REF!","v":{"$error":"#REF!"}},null,null,{"$f":"#REF!","v":{"$error":"#REF!"}},800001965,"http://www.xbrl.org/scheme/companyName",null,{"$f":"Periodos!$D$4","v":"2016-12-31"},{"$f":"#REF!","v":{"$error":"#REF!"}},{"$f":"#REF!","v":{"$error":"#REF!"}}]
[{"$error":"#REF!"},null,{"$f":"#REF!","v":{"$error":"#REF!"}},{"$f":"#REF!","v":{"$error":"#REF!"}},null,null,{"$f":"#REF!","v":{"$error":"#REF!"}},800001965,"http://www.xbrl.org/scheme/companyName",null,{"$f":"Periodos!$D$4","v":"2016-12-31"},{"$f":"#REF!","v":{"$error":"#REF!"}},{"$f":"#REF!","v":{"$error":"#REF!"}}]
[{"$error":"#REF!"},null,{"$f":"#REF!","v":{"$error":"#REF!"}},{"$f":"#REF!","v":{"$error":"#REF!"}},null,null,{"$f":"#REF!","v":{"$error":"#REF!"}},800001965,"http://www.xbrl.org/scheme/companyName",null,{"$f":"Periodos!$D$4","v":"2016-12-31"},{"$f":"#REF!","v":{"$error":"#REF!"}},{"$f":"#REF!","v":{"$error":"#REF!"}}]
[{"$error":"#REF!"},null,{"$f":"#REF!","v":{"$error":"#REF!"}},{"$f":"#REF!","v":{"$error":"#REF!"}},null,null,{"$f":"#REF!","v":{"$error":"#REF!"}},800001965,"http://www.xbrl.org/scheme/companyName",null,{"$f":"Periodos!$D$4","v":"2016-12-31"},{"$f":"#REF!","v":{"$error":"#REF!"}},{"$f":"#REF!","v":{"$error":"#REF!"}}]
[{"$error":"#REF!"},null,{"$f":"#REF!","v":{"$error":"#REF!"}},{"$f":"#REF!","v":{"$error":"#REF!"}},0,"peso",{"$f":"#REF!","v":{"$error":"#REF!"}},800001965,"http://www.xbrl.org/scheme/companyName",null,{"$f":"Periodos!$D$4","v":"2016-12-31"},{"$f":"#REF!","v":{"$error":"#REF!"}},{"$f":"#REF!","v":{"$error":"#REF!"}}]
["/*",null,"--05--"]
[{"$error":"#REF!"},null,{"$f":"#REF!","v":{"$error":"#REF!"}},{"$f":"#REF!","v":{"$error":"#REF!"}},null,null,{"$f":"#REF!","v":{"$error":"#REF!"}},800001965,"http://www.xbrl.org/scheme/companyName",null,{"$f":"Periodos!$D$4","v":"2016-12-31"},{"$f":"#REF!","v":{"$error":"#REF!"}},{"$f":"#REF!","v":{"$error":"#REF!"}}]
[{"$error":"#REF!"},null,{"$f":"#REF!","v":{"$error":"#REF!"}},{"$f":"#REF!","v":{"$error":"#REF!"}},null,null,{"$f":"#REF!","v":{"$error":"#REF!"}},800001965,"http://www.xbrl.org/scheme/companyName",null,{"$f":"Periodos!$D$4","v":"2016-12-31"},{"$f":"#REF!","v":{"$error":"#REF!"}},{"$f":"#REF!","v":{"$error":"#REF!"}}]
[{"$error":"#REF!"},null,{"$f":"#REF!","v":{"$error":"#REF!"}},{"$f":"#REF!","v":{"$error":"#REF!"}},null,null,{"$f":"#REF!","v":{"$error":"#REF!"}},800001965,"http://www.xbrl.org/scheme/companyName",null,{"$f":"Periodos!$D$4","v":"2016-12-31"},{"$f":"#REF!","v":{"$error":"#REF!"}},{"$f":"#REF!","v":{"$error":"#REF!"}}]
[{"$error":"#REF!"},null,{"$f":"#REF!","v":{"$error":"#REF!"}},{"$f":"#REF!","v":{"$error":"#REF!"}},null,null,{"$f":"#REF!","v":{"$error":"#REF!"}},800001965,"http://www.xbrl.org/scheme/companyName",null,{"$f":"Periodos!$D$4","v":"2016-12-31"},{"$f":"#REF!","v":{"$error":"#REF!"}},{"$f":"#REF!","v":{"$error":"#REF!"}}]
[{"$error":"#REF!"},null,{"$f":"#REF!","v":{"$error":"#REF!"}},{"$f":"#REF!","v":{"$error":"#REF!"}},null,null,{"$f":"#REF!","v":{"$error":"#REF!"}},800001965,"http://www.xbrl.org/scheme/companyName",null,{"$f":"Periodos!$D$4","v":"2016-12-31"},{"$f":"#REF!","v":{"$error":"#REF!"}},{"$f":"#REF!","v":{"$error":"#REF!"}}]
[{"$error":"#REF!"},null,{"$f":"#REF!","v":{"$error":"#REF!"}},{"$f":"#REF!","v":{"$error":"#REF!"}},null,null,{"$f":"#REF!","v":{"$error":"#REF!"}},800001965,"http://www.xbrl.org/scheme/companyName",null,{"$f":"Periodos!$D$4","v":"2016-12-31"},{"$f":"#REF!","v":{"$error":"#REF!"}},{"$f":"#REF!","v":{"$error":"#REF!"}}]
[{"$error":"#REF!"},null,{"$f":"#REF!","v":{"$error":"#REF!"}},{"$f":"#REF!","v":{"$error":"#REF!"}},null,null,{"$f":"#REF!","v":{"$error":"#REF!"}},800001965,"http://www.xbrl.org/scheme/companyName",null,{"$f":"Periodos!$D$4","v":"2016-12-31"},{"$f":"#REF!","v":{"$error":"#REF!"}},{"$f":"#REF!","v":{"$error":"#REF!"}}]
[{"$error":"#REF!"},null,{"$f":"#REF!","v":{"$error":"#REF!"}},{"$f":"#REF!","v":{"$error":"#REF!"}},null,null,{"$f":"#REF!","v":{"$error":"#REF!"}},800001965,"http://www.xbrl.org/scheme/companyName",null,{"$f":"Periodos!$D$4","v":"2016-12-31"},{"$f":"#REF!","v":{"$error":"#REF!"}},{"$f":"#REF!","v":{"$error":"#REF!"}}]
[{"$error":"#REF!"},null,{"$f":"#REF!","v":{"$error":"#REF!"}},{"$f":"#REF!","v":{"$error":"#REF!"}},null,null,{"$f":"#REF!","v":{"$error":"#REF!"}},800001965,"http://www.xbrl.org/scheme/companyName",null,{"$f":"Periodos!$D$4","v":"2016-12-31"},{"$f":"#REF!","v":{"$error":"#REF!"}},{"$f":"#REF!","v":{"$error":"#REF!"}}]
[{"$error":"#REF!"},null,{"$f":"#REF!","v":{"$error":"#REF!"}},{"$f":"#REF!","v":{"$error":"#REF!"}},null,null,{"$f":"#REF!","v":{"$error":"#REF!"}},800001965,"http://www.xbrl.org/scheme/companyName",null,{"$f":"Periodos!$D$4","v":"2016-12-31"},{"$f":"#REF!","v":{"$error":"#REF!"}},{"$f":"#REF!","v":{"$error":"#REF!"}}]
[{"$error":"#REF!"},null,{"$f":"#REF!","v":{"$error":"#REF!"}},{"$f":"#REF!","v":{"$error":"#REF!"}},null,null,{"$f":"#REF!","v":{"$error":"#REF!"}},800001965,"http://www.xbrl.org/scheme/companyName",null,{"$f":"Periodos!$D$4","v":"2016-12-31"},{"$f":"#REF!","v":{"$error":"#REF!"}},{"$f":"#REF!","v":{"$error":"#REF!"}}]
[{"$error":"#REF!"},null,{"$f":"#REF!","v":{"$error":"#REF!"}},{"$f":"#REF!","v":{"$error":"#REF!"}},0,"peso",{"$f":"#REF!","v":{"$error":"#REF!"}},800001965,"http://www.xbrl.org/scheme/companyName",null,{"$f":"Periodos!$D$4","v":"2016-12-31"},{"$f":"#REF!","v":{"$error":"#REF!"}},{"$f":"#REF!","v":{"$error":"#REF!"}}]
["/*",null,"--06--"]
[{"$error":"#REF!"},null,{"$f":"#REF!","v":{"$error":"#REF!"}},{"$f":"#REF!","v":{"$error":"#REF!"}},null,null,{"$f":"#REF!","v":{"$error":"#REF!"}},800001965,"http://www.xbrl.org/scheme/companyName",null,{"$f":"Periodos!$D$4","v":"2016-12-31"},{"$f":"#REF!","v":{"$error":"#REF!"}},{"$f":"#REF!","v":{"$error":"#REF!"}}]
[{"$error":"#REF!"},null,{"$f":"#REF!","v":{"$error":"#REF!"}},{"$f":"#REF!","v":{"$error":"#REF!"}},null,null,{"$f":"#REF!","v":{"$error":"#REF!"}},800001965,"http://www.xbrl.org/scheme/companyName",null,{"$f":"Periodos!$D$4","v":"2016-12-31"},{"$f":"#REF!","v":{"$error":"#REF!"}},{"$f":"#REF!","v":{"$error":"#REF!"}}]
[{"$error":"#REF!"},null,{"$f":"#REF!","v":{"$error":"#REF!"}},{"$f":"#REF!","v":{"$error":"#REF!"}},null,null,{"$f":"#REF!","v":{"$error":"#REF!"}},800001965,"http://www.xbrl.org/scheme/companyName",null,{"$f":"Periodos!$D$4","v":"2016-12-31"},{"$f":"#REF!","v":{"$error":"#REF!"}},{"$f":"#REF!","v":{"$error":"#REF!"}}]
[{"$error":"#REF!"},null,{"$f":"#REF!","v":{"$error":"#REF!"}},{"$f":"#REF!","v":{"$error":"#REF!"}},null,null,{"$f":"#REF!","v":{"$error":"#REF!"}},800001965,"http://www.xbrl.org/scheme/companyName",null,{"$f":"Periodos!$D$4","v":"2016-12-31"},{"$f":"#REF!","v":{"$error":"#REF!"}},{"$f":"#REF!","v":{"$error":"#REF!"}}]
[{"$error":"#REF!"},null,{"$f":"#REF!","v":{"$error":"#REF!"}},{"$f":"#REF!","v":{"$error":"#REF!"}},null,null,{"$f":"#REF!","v":{"$error":"#REF!"}},800001965,"http://www.xbrl.org/scheme/companyName",null,{"$f":"Periodos!$D$4","v":"2016-12-31"},{"$f":"#REF!","v":{"$error":"#REF!"}},{"$f":"#REF!","v":{"$error":"#REF!"}}]
[{"$error":"#REF!"},null,{"$f":"#REF!","v":{"$error":"#REF!"}},{"$f":"#REF!","v":{"$error":"#REF!"}},null,null,{"$f":"#REF!","v":{"$error":"#REF!"}},800001965,"http://www.xbrl.org/scheme/companyName",null,{"$f":"Periodos!$D$4","v":"2016-12-31"},{"$f":"#REF!","v":{"$error":"#REF!"}},{"$f":"#REF!","v":{"$error":"#REF!"}}]
[{"$error":"#REF!"},null,{"$f":"#REF!","v":{"$error":"#REF!"}},{"$f":"#REF!","v":{"$error":"#REF!"}},null,null,{"$f":"#REF!","v":{"$error":"#REF!"}},800001965,"http://www.xbrl.org/scheme/companyName",null,{"$f":"Periodos!$D$4","v":"2016-12-31"},{"$f":"#REF!","v":{"$error":"#REF!"}},{"$f":"#REF!","v":{"$error":"#REF!"}}]
[{"$error":"#REF!"},null,{"$f":"#REF!","v":{"$error":"#REF!"}},{"$f":"#REF!","v":{"$error":"#REF!"}},null,null,{"$f":"#REF!","v":{"$error":"#REF!"}},800001965,"http://www.xbrl.org/scheme/companyName",null,{"$f":"Periodos!$D$4","v":"2016-12-31"},{"$f":"#REF!","v":{"$error":"#REF!"}},{"$f":"#REF!","v":{"$error":"#REF!"}}]
[{"$error":"#REF!"},null,{"$f":"#REF!","v":{"$error":"#REF!"}},{"$f":"#REF!","v":{"$error":"#REF!"}},null,null,{"$f":"#REF!","v":{"$error":"#REF!"}},800001965,"http://www.xbrl.org/scheme/companyName",null,{"$f":"Periodos!$D$4","v":"2016-12-31"},{"$f":"#REF!","v":{"$error":"#REF!"}},{"$f":"#REF!","v":{"$error":"#REF!"}}]
[{"$error":"#REF!"},null,{"$f":"#REF!","v":{"$error":"#REF!"}},{"$f":"#REF!","v":{"$error":"#REF!"}},null,null,{"$f":"#REF!","v":{"$error":"#REF!"}},800001965,"http://www.xbrl.org/scheme/companyName",null,{"$f":"Periodos!$D$4","v":"2016-12-31"},{"$f":"#REF!","v":{"$error":"#REF!"}},{"$f":"#REF!","v":{"$error":"#REF!"}}]
[{"$error":"#REF!"},null,{"$f":"#REF!","v":{"$error":"#REF!"}},{"$f":"#REF!","v":{"$error":"#REF!"}},null,null,{"$f":"#REF!","v":{"$error":"#REF!"}},800001965,"http://www.xbrl.org/scheme/companyName",null,{"$f":"Periodos!$D$4","v":"2016-12-31"},{"$f":"#REF!","v":{"$error":"#REF!"}},{"$f":"#REF!","v":{"$error":"#REF!"}}]
[{"$error":"#REF!"},null,{"$f":"#REF!","v":{"$error":"#REF!"}},{"$f":"#REF!","v":{"$error":"#REF!"}},0,"peso",{"$f":"#REF!","v":{"$error":"#REF!"}},800001965,"http://www.xbrl.org/scheme/companyName",null,{"$f":"Periodos!$D$4","v":"2016-12-31"},{"$f":"#REF!","v":{"$error":"#REF!"}},{"$f":"#REF!","v":{"$error":"#REF!"}}]
["/*",null,"--07--"]
[{"$error":"#REF!"},null,{"$f":"#REF!","v":{"$error":"#REF!"}},{"$f":"#REF!","v":{"$error":"#REF!"}},null,null,{"$f":"#REF!","v":{"$error":"#REF!"}},800001965,"http://www.xbrl.org/scheme/companyName",null,{"$f":"Periodos!$D$4","v":"2016-12-31"},{"$f":"#REF!","v":{"$error":"#REF!"}},{"$f":"#REF!","v":{"$error":"#REF!"}}]
[{"$error":"#REF!"},null,{"$f":"#REF!","v":{"$error":"#REF!"}},{"$f":"#REF!","v":{"$error":"#REF!"}},null,null,{"$f":"#REF!","v":{"$error":"#REF!"}},800001965,"http://www.xbrl.org/scheme/companyName",null,{"$f":"Periodos!$D$4","v":"2016-12-31"},{"$f":"#REF!","v":{"$error":"#REF!"}},{"$f":"#REF!","v":{"$error":"#REF!"}}]
[{"$error":"#REF!"},null,{"$f":"#REF!","v":{"$error":"#REF!"}},{"$f":"#REF!","v":{"$error":"#REF!"}},null,null,{"$f":"#REF!","v":{"$error":"#REF!"}},800001965,"http://www.xbrl.org/scheme/companyName",null,{"$f":"Periodos!$D$4","v":"2016-12-31"},{"$f":"#REF!","v":{"$error":"#REF!"}},{"$f":"#REF!","v":{"$error":"#REF!"}}]
[{"$error":"#REF!"},null,{"$f":"#REF!","v":{"$error":"#REF!"}},{"$f":"#REF!","v":{"$error":"#REF!"}},null,null,{"$f":"#REF!","v":{"$error":"#REF!"}},800001965,"http://www.xbrl.org/scheme/companyName",null,{"$f":"Periodos!$D$4","v":"2016-12-31"},{"$f":"#REF!","v":{"$error":"#REF!"}},{"$f":"#REF!","v":{"$error":"#REF!"}}]
[{"$error":"#REF!"},null,{"$f":"#REF!","v":{"$error":"#REF!"}},{"$f":"#REF!","v":{"$error":"#REF!"}},null,null,{"$f":"#REF!","v":{"$error":"#REF!"}},800001965,"http://www.xbrl.org/scheme/companyName",null,{"$f":"Periodos!$D$4","v":"2016-12-31"},{"$f":"#REF!","v":{"$error":"#REF!"}},{"$f":"#REF!","v":{"$error":"#REF!"}}]
[{"$error":"#REF!"},null,{"$f":"#REF!","v":{"$error":"#REF!"}},{"$f":"#REF!","v":{"$error":"#REF!"}},null,null,{"$f":"#REF!","v":{"$error":"#REF!"}},800001965,"http://www.xbrl.org/scheme/companyName",null,{"$f":"Periodos!$D$4","v":"2016-12-31"},{"$f":"#REF!","v":{"$error":"#REF!"}},{"$f":"#REF!","v":{"$error":"#REF!"}}]
[{"$error":"#REF!"},null,{"$f":"#REF!","v":{"$error":"#REF!"}},{"$f":"#REF!","v":{"$error":"#REF!"}},null,null,{"$f":"#REF!","v":{"$error":"#REF!"}},800001965,"http://www.xbrl.org/scheme/companyName",null,{"$f":"Periodos!$D$4","v":"2016-12-31"},{"$f":"#REF!","v":{"$error":"#REF!"}},{"$f":"#REF!","v":{"$error":"#REF!"}}]
[{"$error":"#REF!"},null,{"$f":"#REF!","v":{"$error":"#REF!"}},{"$f":"#REF!","v":{"$error":"#REF!"}},null,null,{"$f":"#REF!","v":{"$error":"#REF!"}},800001965,"http://www.xbrl.org/scheme/companyName",null,{"$f":"Periodos!$D$4","v":"2016-12-31"},{"$f":"#REF!","v":{"$error":"#REF!"}},{"$f":"#REF!","v":{"$error":"#REF!"}}]
[{"$error":"#REF!"},null,{"$f":"#REF!","v":{"$error":"#REF!"}},{"$f":"#REF!","v":{"$error":"#REF!"}},null,null,{"$f":"#REF!","v":{"$error":"#REF!"}},800001965,"http://www.xbrl.org/scheme/companyName",null,{"$f":"Periodos!$D$4","v":"2016-12-31"},{"$f":"#REF!","v":{"$error":"#REF!"}},{"$f":"#REF!","v":{"$error":"#REF!"}}]
[{"$error":"#REF!"},null,{"$f":"#REF!","v":{"$error":"#REF!"}},{"$f":"#REF!","v":{"$error":"#REF!"}},null,null,{"$f":"#REF!","v":{"$error":"#REF!"}},800001965,"http://www.xbrl.org/scheme/companyName",null,{"$f":"Periodos!$D$4","v":"2016-12-31"},{"$f":"#REF!","v":{"$error":"#REF!"}},{"$f":"#REF!","v":{"$error":"#REF!"}}]
[{"$error":"#REF!"},null,{"$f":"#REF!","v":{"$error":"#REF!"}},{"$f":"#REF!","v":{"$error":"#REF!"}},null,null,{"$f":"#REF!","v":{"$error":"#REF!"}},800001965,"http://www.xbrl.org/scheme/companyName",null,{"$f":"Periodos!$D$4","v":"2016-12-31"},{"$f":"#REF!","v":{"$error":"#REF!"}},{"$f":"#REF!","v":{"$error":"#REF!"}}]
[{"$error":"#REF!"},null,{"$f":"#REF!","v":{"$error":"#REF!"}},{"$f":"#REF!","v":{"$error":"#REF!"}},0,"peso",{"$f":"#REF!","v":{"$error":"#REF!"}},800001965,"http://www.xbrl.org/scheme/companyName",null,{"$f":"Periodos!$D$4","v":"2016-12-31"},{"$f":"#REF!","v":{"$error":"#REF!"}},{"$f":"#REF!","v":{"$error":"#REF!"}}]
["/*",null,"--08--"]
[{"$error":"#REF!"},null,{"$f":"#REF!","v":{"$error":"#REF!"}},{"$f":"#REF!","v":{"$error":"#REF!"}},null,null,{"$f":"#REF!","v":{"$error":"#REF!"}},800001965,"http://www.xbrl.org/scheme/companyName",null,{"$f":"Periodos!$D$4","v":"2016-12-31"},{"$f":"#REF!","v":{"$error":"#REF!"}},{"$f":"#REF!","v":{"$error":"#REF!"}}]
[{"$error":"#REF!"},null,{"$f":"#REF!","v":{"$error":"#REF!"}},{"$f":"#REF!","v":{"$error":"#REF!"}},null,null,{"$f":"#REF!","v":{"$error":"#REF!"}},800001965,"http://www.xbrl.org/scheme/companyName",null,{"$f":"Periodos!$D$4","v":"2016-12-31"},{"$f":"#REF!","v":{"$error":"#REF!"}},{"$f":"#REF!","v":{"$error":"#REF!"}}]
[{"$error":"#REF!"},null,{"$f":"#REF!","v":{"$error":"#REF!"}},{"$f":"#REF!","v":{"$error":"#REF!"}},null,null,{"$f":"#REF!","v":{"$error":"#REF!"}},800001965,"http://www.xbrl.org/scheme/companyName",null,{"$f":"Periodos!$D$4","v":"2016-12-31"},{"$f":"#REF!","v":{"$error":"#REF!"}},{"$f":"#REF!","v":{"$error":"#REF!"}}]
[{"$error":"#REF!"},null,{"$f":"#REF!","v":{"$error":"#REF!"}},{"$f":"#REF!","v":{"$error":"#REF!"}},null,null,{"$f":"#REF!","v":{"$error":"#REF!"}},800001965,"http://www.xbrl.org/scheme/companyName",null,{"$f":"Periodos!$D$4","v":"2016-12-31"},{"$f":"#REF!","v":{"$error":"#REF!"}},{"$f":"#REF!","v":{"$error":"#REF!"}}]
[{"$error":"#REF!"},null,{"$f":"#REF!","v":{"$error":"#REF!"}},{"$f":"#REF!","v":{"$error":"#REF!"}},null,null,{"$f":"#REF!","v":{"$error":"#REF!"}},800001965,"http://www.xbrl.org/scheme/companyName",null,{"$f":"Periodos!$D$4","v":"2016-12-31"},{"$f":"#REF!","v":{"$error":"#REF!"}},{"$f":"#REF!","v":{"$error":"#REF!"}}]
[{"$error":"#REF!"},null,{"$f":"#REF!","v":{"$error":"#REF!"}},{"$f":"#REF!","v":{"$error":"#REF!"}},null,null,{"$f":"#REF!","v":{"$error":"#REF!"}},800001965,"http://www.xbrl.org/scheme/companyName",null,{"$f":"Periodos!$D$4","v":"2016-12-31"},{"$f":"#REF!","v":{"$error":"#REF!"}},{"$f":"#REF!","v":{"$error":"#REF!"}}]
[{"$error":"#REF!"},null,{"$f":"#REF!","v":{"$error":"#REF!"}},{"$f":"#REF!","v":{"$error":"#REF!"}},null,null,{"$f":"#REF!","v":{"$error":"#REF!"}},800001965,"http://www.xbrl.org/scheme/companyName",null,{"$f":"Periodos!$D$4","v":"2016-12-31"},{"$f":"#REF!","v":{"$error":"#REF!"}},{"$f":"#REF!","v":{"$error":"#REF!"}}]
[{"$error":"#REF!"},null,{"$f":"#REF!","v":{"$error":"#REF!"}},{"$f":"#REF!","v":{"$error":"#REF!"}},null,null,{"$f":"#REF!","v":{"$error":"#REF!"}},800001965,"http://www.xbrl.org/scheme/companyName",null,{"$f":"Periodos!$D$4","v":"2016-12-31"},{"$f":"#REF!","v":{"$error":"#REF!"}},{"$f":"#REF!","v":{"$error":"#REF!"}}]
[{"$error":"#REF!"},null,{"$f":"#REF!","v":{"$error":"#REF!"}},{"$f":"#REF!","v":{"$error":"#REF!"}},null,null,{"$f":"#REF!","v":{"$error":"#REF!"}},800001965,"http://www.xbrl.org/scheme/companyName",null,{"$f":"Periodos!$D$4","v":"2016-12-31"},{"$f":"#REF!","v":{"$error":"#REF!"}},{"$f":"#REF!","v":{"$error":"#REF!"}}]
[{"$error":"#REF!"},null,{"$f":"#REF!","v":{"$error":"#REF!"}},{"$f":"#REF!","v":{"$error":"#REF!"}},null,null,{"$f":"#REF!","v":{"$error":"#REF!"}},800001965,"http://www.xbrl.org/scheme/companyName",null,{"$f":"Periodos!$D$4","v":"2016-12-31"},{"$f":"#REF!","v":{"$error":"#REF!"}},{"$f":"#REF!","v":{"$error":"#REF!"}}]
[{"$error":"#REF!"},null,{"$f":"#REF!","v":{"$error":"#REF!"}},{"$f":"#REF!","v":{"$error":"#REF!"}},null,null,{"$f":"#REF!","v":{"$error":"#REF!"}},800001965,"http://www.xbrl.org/scheme/companyName",null,{"$f":"Periodos!$D$4","v":"2016-12-31"},{"$f":"#REF!","v":{"$error":"#REF!"}},{"$f":"#REF!","v":{"$error":"#REF!"}}]
[{"$error":"#REF!"},null,{"$f":"#REF!","v":{"$error":"#REF!"}},{"$f":"#REF!","v":{"$error":"#REF!"}},0,"peso",{"$f":"#REF!","v":{"$error":"#REF!"}},800001965,"http://www.xbrl.org/scheme/companyName",null,{"$f":"Periodos!$D$4","v":"2016-12-31"},{"$f":"#REF!","v":{"$error":"#REF!"}},{"$f":"#REF!","v":{"$error":"#REF!"}}]
["/*",null,"--09--"]
[{"$error":"#REF!"},null,{"$f":"#REF!","v":{"$error":"#REF!"}},{"$f":"#REF!","v":{"$error":"#REF!"}},null,null,{"$f":"#REF!","v":{"$error":"#REF!"}},800001965,"http://www.xbrl.org/scheme/companyName",null,{"$f":"Periodos!$D$4","v":"2016-12-31"},{"$f":"#REF!","v":{"$error":"#REF!"}},{"$f":"#REF!","v":{"$error":"#REF!"}}]
[{"$error":"#REF!"},null,{"$f":"#REF!","v":{"$error":"#REF!"}},{"$f":"#REF!","v":{"$error":"#REF!"}},null,null,{"$f":"#REF!","v":{"$error":"#REF!"}},800001965,"http://www.xbrl.org/scheme/companyName",null,{"$f":"Periodos!$D$4","v":"2016-12-31"},{"$f":"#REF!","v":{"$error":"#REF!"}},{"$f":"#REF!","v":{"$error":"#REF!"}}]
[{"$error":"#REF!"},null,{"$f":"#REF!","v":{"$error":"#REF!"}},{"$f":"#REF!","v":{"$error":"#REF!"}},null,null,{"$f":"#REF!","v":{"$error":"#REF!"}},800001965,"http://www.xbrl.org/scheme/companyName",null,{"$f":"Periodos!$D$4","v":"2016-12-31"},{"$f":"#REF!","v":{"$error":"#REF!"}},{"$f":"#REF!","v":{"$error":"#REF!"}}]
[{"$error":"#REF!"},null,{"$f":"#REF!","v":{"$error":"#REF!"}},{"$f":"#REF!","v":{"$error":"#REF!"}},null,null,{"$f":"#REF!","v":{"$error":"#REF!"}},800001965,"http://www.xbrl.org/scheme/companyName",null,{"$f":"Periodos!$D$4","v":"2016-12-31"},{"$f":"#REF!","v":{"$error":"#REF!"}},{"$f":"#REF!","v":{"$error":"#REF!"}}]
[{"$f":"IF(G3873=\"\",\"/*\",\"\")","v":{"$error":"#REF!"}},null,{"$f":"#REF!","v":{"$error":"#REF!"}},{"$f":"#REF!","v":{"$error":"#REF!"}},null,null,{"$f":"#REF!","v":{"$error":"#REF!"}},800001965,"http://www.xbrl.org/scheme/companyName",null,{"$f":"Periodos!$D$4","v":"2016-12-31"},{"$f":"#REF!","v":{"$error":"#REF!"}},{"$f":"#REF!","v":{"$error":"#REF!"}}]
[{"$error":"#REF!"},null,{"$f":"#REF!","v":{"$error":"#REF!"}},{"$f":"#REF!","v":{"$error":"#REF!"}},null,null,{"$f":"#REF!","v":{"$error":"#REF!"}},800001965,"http://www.xbrl.org/scheme/companyName",null,{"$f":"Periodos!$D$4","v":"2016-12-31"},{"$f":"#REF!","v":{"$error":"#REF!"}},{"$f":"#REF!","v":{"$error":"#REF!"}}]
[{"$error":"#REF!"},null,{"$f":"#REF!","v":{"$error":"#REF!"}},{"$f":"#REF!","v":{"$error":"#REF!"}},null,null,{"$f":"#REF!","v":{"$error":"#REF!"}},800001965,"http://www.xbrl.org/scheme/companyName",null,{"$f":"Periodos!$D$4","v":"2016-12-31"},{"$f":"#REF!","v":{"$error":"#REF!"}},{"$f":"#REF!","v":{"$error":"#REF!"}}]
[{"$error":"#REF!"},null,{"$f":"#REF!","v":{"$error":"#REF!"}},{"$f":"#REF!","v":{"$error":"#REF!"}},null,null,{"$f":"#REF!","v":{"$error":"#REF!"}},800001965,"http://www.xbrl.org/scheme/companyName",null,{"$f":"Periodos!$D$4","v":"2016-12-31"},{"$f":"#REF!","v":{"$error":"#REF!"}},{"$f":"#REF!","v":{"$error":"#REF!"}}]
[{"$error":"#REF!"},null,{"$f":"#REF!","v":{"$error":"#REF!"}},{"$f":"#REF!","v":{"$error":"#REF!"}},null,null,{"$f":"#REF!","v":{"$error":"#REF!"}},800001965,"http://www.xbrl.org/scheme/companyName",null,{"$f":"Periodos!$D$4","v":"2016-12-31"},{"$f":"#REF!","v":{"$error":"#REF!"}},{"$f":"#REF!","v":{"$error":"#REF!"}}]
[{"$error":"#REF!"},null,{"$f":"#REF!","v":{"$error":"#REF!"}},{"$f":"#REF!","v":{"$error":"#REF!"}},null,null,{"$f":"#REF!","v":{"$error":"#REF!"}},800001965,"http://www.xbrl.org/scheme/companyName",null,{"$f":"Periodos!$D$4","v":"2016-12-31"},{"$f":"#REF!","v":{"$error":"#REF!"}},{"$f":"#REF!","v":{"$error":"#REF!"}}]
[{"$error":"#REF!"},null,{"$f":"#REF!","v":{"$error":"#REF!"}},{"$f":"#REF!","v":{"$error":"#REF!"}},null,null,{"$f":"#REF!","v":{"$error":"#REF!"}},800001965,"http://www.xbrl.org/scheme/companyName",null,{"$f":"Periodos!$D$4","v":"2016-12-31"},{"$f":"#REF!","v":{"$error":"#REF!"}},{"$f":"#REF!","v":{"$error":"#REF!"}}]
[{"$error":"#REF!"},null,{"$f":"#REF!","v":{"$error":"#REF!"}},{"$f":"#REF!","v":{"$error":"#REF!"}},0,"peso",{"$f":"#REF!","v":{"$error":"#REF!"}},800001965,"http://www.xbrl.org/scheme/companyName",null,{"$f":"Periodos!$D$4","v":"2016-12-31"},{"$f":"#REF!","v":{"$error":"#REF!"}},{"$f":"#REF!","v":{"$error":"#REF!"}}]
["/*",null,"--10--"]
[{"$error":"#REF!"},null,{"$f":"#REF!","v":{"$error":"#REF!"}},{"$f":"#REF!","v":{"$error":"#REF!"}},null,null,{"$f":"#REF!","v":{"$error":"#REF!"}},800001965,"http://www.xbrl.org/scheme/companyName",null,{"$f":"Periodos!$D$4","v":"2016-12-31"},{"$f":"#REF!","v":{"$error":"#REF!"}},{"$f":"#REF!","v":{"$error":"#REF!"}}]
[{"$error":"#REF!"},null,{"$f":"#REF!","v":{"$error":"#REF!"}},{"$f":"#REF!","v":{"$error":"#REF!"}},null,null,{"$f":"#REF!","v":{"$error":"#REF!"}},800001965,"http://www.xbrl.org/scheme/companyName",null,{"$f":"Periodos!$D$4","v":"2016-12-31"},{"$f":"#REF!","v":{"$error":"#REF!"}},{"$f":"#REF!","v":{"$error":"#REF!"}}]
[{"$error":"#REF!"},null,{"$f":"#REF!","v":{"$error":"#REF!"}},{"$f":"#REF!","v":{"$error":"#REF!"}},null,null,{"$f":"#REF!","v":{"$error":"#REF!"}},800001965,"http://www.xbrl.org/scheme/companyName",null,{"$f":"Periodos!$D$4","v":"2016-12-31"},{"$f":"#REF!","v":{"$error":"#REF!"}},{"$f":"#REF!","v":{"$error":"#REF!"}}]
[{"$error":"#REF!"},null,{"$f":"#REF!","v":{"$error":"#REF!"}},{"$f":"#REF!","v":{"$error":"#REF!"}},null,null,{"$f":"#REF!","v":{"$error":"#REF!"}},800001965,"http://www.xbrl.org/scheme/companyName",null,{"$f":"Periodos!$D$4","v":"2016-12-31"},{"$f":"#REF!","v":{"$error":"#REF!"}},{"$f":"#REF!","v":{"$error":"#REF!"}}]
[{"$error":"#REF!"},null,{"$f":"#REF!","v":{"$error":"#REF!"}},{"$f":"#REF!","v":{"$error":"#REF!"}},null,null,{"$f":"#REF!","v":{"$error":"#REF!"}},800001965,"http://www.xbrl.org/scheme/companyName",null,{"$f":"Periodos!$D$4","v":"2016-12-31"},{"$f":"#REF!","v":{"$error":"#REF!"}},{"$f":"#REF!","v":{"$error":"#REF!"}}]
[{"$error":"#REF!"},null,{"$f":"#REF!","v":{"$error":"#REF!"}},{"$f":"#REF!","v":{"$error":"#REF!"}},null,null,{"$f":"#REF!","v":{"$error":"#REF!"}},800001965,"http://www.xbrl.org/scheme/companyName",null,{"$f":"Periodos!$D$4","v":"2016-12-31"},{"$f":"#REF!","v":{"$error":"#REF!"}},{"$f":"#REF!","v":{"$error":"#REF!"}}]
[{"$error":"#REF!"},null,{"$f":"#REF!","v":{"$error":"#REF!"}},{"$f":"#REF!","v":{"$error":"#REF!"}},null,null,{"$f":"#REF!","v":{"$error":"#REF!"}},800001965,"http://www.xbrl.org/scheme/companyName",null,{"$f":"Periodos!$D$4","v":"2016-12-31"},{"$f":"#REF!","v":{"$error":"#REF!"}},{"$f":"#REF!","v":{"$error":"#REF!"}}]
[{"$error":"#REF!"},null,{"$f":"#REF!","v":{"$error":"#REF!"}},{"$f":"#REF!","v":{"$error":"#REF!"}},null,null,{"$f":"#REF!","v":{"$error":"#REF!"}},800001965,"http://www.xbrl.org/scheme/companyName",null,{"$f":"Periodos!$D$4","v":"2016-12-31"},{"$f":"#REF!","v":{"$error":"#REF!"}},{"$f":"#REF!","v":{"$error":"#REF!"}}]
[{"$error":"#REF!"},null,{"$f":"#REF!","v":{"$error":"#REF!"}},{"$f":"#REF!","v":{"$error":"#REF!"}},null,null,{"$f":"#REF!","v":{"$error":"#REF!"}},800001965,"http://www.xbrl.org/scheme/companyName",null,{"$f":"Periodos!$D$4","v":"2016-12-31"},{"$f":"#REF!","v":{"$error":"#REF!"}},{"$f":"#REF!","v":{"$error":"#REF!"}}]
[{"$error":"#REF!"},null,{"$f":"#REF!","v":{"$error":"#REF!"}},{"$f":"#REF!","v":{"$error":"#REF!"}},null,null,{"$f":"#REF!","v":{"$error":"#REF!"}},800001965,"http://www.xbrl.org/scheme/companyName",null,{"$f":"Periodos!$D$4","v":"2016-12-31"},{"$f":"#REF!","v":{"$error":"#REF!"}},{"$f":"#REF!","v":{"$error":"#REF!"}}]
[{"$error":"#REF!"},null,{"$f":"#REF!","v":{"$error":"#REF!"}},{"$f":"#REF!","v":{"$error":"#REF!"}},null,null,{"$f":"#REF!","v":{"$error":"#REF!"}},800001965,"http://www.xbrl.org/scheme/companyName",null,{"$f":"Periodos!$D$4","v":"2016-12-31"},{"$f":"#REF!","v":{"$error":"#REF!"}},{"$f":"#REF!","v":{"$error":"#REF!"}}]
[{"$error":"#REF!"},null,{"$f":"#REF!","v":{"$error":"#REF!"}},{"$f":"#REF!","v":{"$error":"#REF!"}},0,"peso",{"$f":"#REF!","v":{"$error":"#REF!"}},800001965,"http://www.xbrl.org/scheme/companyName",null,{"$f":"Periodos!$D$4","v":"2016-12-31"},{"$f":"#REF!","v":{"$error":"#REF!"}},{"$f":"#REF!","v":{"$error":"#REF!"}}]
["/*",null,"--11--"]
[{"$error":"#REF!"},null,{"$f":"#REF!","v":{"$error":"#REF!"}},{"$f":"#REF!","v":{"$error":"#REF!"}},null,null,{"$f":"#REF!","v":{"$error":"#REF!"}},800001965,"http://www.xbrl.org/scheme/companyName",null,{"$f":"Periodos!$D$4","v":"2016-12-31"},{"$f":"#REF!","v":{"$error":"#REF!"}},{"$f":"#REF!","v":{"$error":"#REF!"}}]
[{"$error":"#REF!"},null,{"$f":"#REF!","v":{"$error":"#REF!"}},{"$f":"#REF!","v":{"$error":"#REF!"}},null,null,{"$f":"#REF!","v":{"$error":"#REF!"}},800001965,"http://www.xbrl.org/scheme/companyName",null,{"$f":"Periodos!$D$4","v":"2016-12-31"},{"$f":"#REF!","v":{"$error":"#REF!"}},{"$f":"#REF!","v":{"$error":"#REF!"}}]
[{"$error":"#REF!"},null,{"$f":"#REF!","v":{"$error":"#REF!"}},{"$f":"#REF!","v":{"$error":"#REF!"}},null,null,{"$f":"#REF!","v":{"$error":"#REF!"}},800001965,"http://www.xbrl.org/scheme/companyName",null,{"$f":"Periodos!$D$4","v":"2016-12-31"},{"$f":"#REF!","v":{"$error":"#REF!"}},{"$f":"#REF!","v":{"$error":"#REF!"}}]
[{"$error":"#REF!"},null,{"$f":"#REF!","v":{"$error":"#REF!"}},{"$f":"#REF!","v":{"$error":"#REF!"}},null,null,{"$f":"#REF!","v":{"$error":"#REF!"}},800001965,"http://www.xbrl.org/scheme/companyName",null,{"$f":"Periodos!$D$4","v":"2016-12-31"},{"$f":"#REF!","v":{"$error":"#REF!"}},{"$f":"#REF!","v":{"$error":"#REF!"}}]
[{"$error":"#REF!"},null,{"$f":"#REF!","v":{"$error":"#REF!"}},{"$f":"#REF!","v":{"$error":"#REF!"}},null,null,{"$f":"#REF!","v":{"$error":"#REF!"}},800001965,"http://www.xbrl.org/scheme/companyName",null,{"$f":"Periodos!$D$4","v":"2016-12-31"},{"$f":"#REF!","v":{"$error":"#REF!"}},{"$f":"#REF!","v":{"$error":"#REF!"}}]
[{"$error":"#REF!"},null,{"$f":"#REF!","v":{"$error":"#REF!"}},{"$f":"#REF!","v":{"$error":"#REF!"}},null,null,{"$f":"#REF!","v":{"$error":"#REF!"}},800001965,"http://www.xbrl.org/scheme/companyName",null,{"$f":"Periodos!$D$4","v":"2016-12-31"},{"$f":"#REF!","v":{"$error":"#REF!"}},{"$f":"#REF!","v":{"$error":"#REF!"}}]
[{"$error":"#REF!"},null,{"$f":"#REF!","v":{"$error":"#REF!"}},{"$f":"#REF!","v":{"$error":"#REF!"}},null,null,{"$f":"#REF!","v":{"$error":"#REF!"}},800001965,"http://www.xbrl.org/scheme/companyName",null,{"$f":"Periodos!$D$4","v":"2016-12-31"},{"$f":"#REF!","v":{"$error":"#REF!"}},{"$f":"#REF!","v":{"$error":"#REF!"}}]
[{"$error":"#REF!"},null,{"$f":"#REF!","v":{"$error":"#REF!"}},{"$f":"#REF!","v":{"$error":"#REF!"}},null,null,{"$f":"#REF!","v":{"$error":"#REF!"}},800001965,"http://www.xbrl.org/scheme/companyName",null,{"$f":"Periodos!$D$4","v":"2016-12-31"},{"$f":"#REF!","v":{"$error":"#REF!"}},{"$f":"#REF!","v":{"$error":"#REF!"}}]
[{"$error":"#REF!"},null,{"$f":"#REF!","v":{"$error":"#REF!"}},{"$f":"#REF!","v":{"$error":"#REF!"}},null,null,{"$f":"#REF!","v":{"$error":"#REF!"}},800001965,"http://www.xbrl.org/scheme/companyName",null,{"$f":"Periodos!$D$4","v":"2016-12-31"},{"$f":"#REF!","v":{"$error":"#REF!"}},{"$f":"#REF!","v":{"$error":"#REF!"}}]
[{"$error":"#REF!"},null,{"$f":"#REF!","v":{"$error":"#REF!"}},{"$f":"#REF!","v":{"$error":"#REF!"}},null,null,{"$f":"#REF!","v":{"$error":"#REF!"}},800001965,"http://www.xbrl.org/scheme/companyName",null,{"$f":"Periodos!$D$4","v":"2016-12-31"},{"$f":"#REF!","v":{"$error":"#REF!"}},{"$f":"#REF!","v":{"$error":"#REF!"}}]
[{"$error":"#REF!"},null,{"$f":"#REF!","v":{"$error":"#REF!"}},{"$f":"#REF!","v":{"$error":"#REF!"}},null,null,{"$f":"#REF!","v":{"$error":"#REF!"}},800001965,"http://www.xbrl.org/scheme/companyName",null,{"$f":"Periodos!$D$4","v":"2016-12-31"},{"$f":"#REF!","v":{"$error":"#REF!"}},{"$f":"#REF!","v":{"$error":"#REF!"}}]
[{"$error":"#REF!"},null,{"$f":"#REF!","v":{"$error":"#REF!"}},{"$f":"#REF!","v":{"$error":"#REF!"}},0,"peso",{"$f":"#REF!","v":{"$error":"#REF!"}},800001965,"http://www.xbrl.org/scheme/companyName",null,{"$f":"Periodos!$D$4","v":"2016-12-31"},{"$f":"#REF!","v":{"$error":"#REF!"}},{"$f":"#REF!","v":{"$error":"#REF!"}}]
["/*",null,"--12--"]
[{"$error":"#REF!"},null,{"$f":"#REF!","v":{"$error":"#REF!"}},{"$f":"#REF!","v":{"$error":"#REF!"}},null,null,{"$f":"#REF!","v":{"$error":"#REF!"}},800001965,"http://www.xbrl.org/scheme/companyName",null,{"$f":"Periodos!$D$4","v":"2016-12-31"},{"$f":"#REF!","v":{"$error":"#REF!"}},{"$f":"#REF!","v":{"$error":"#REF!"}}]
[{"$error":"#REF!"},null,{"$f":"#REF!","v":{"$error":"#REF!"}},{"$f":"#REF!","v":{"$error":"#REF!"}},null,null,{"$f":"#REF!","v":{"$error":"#REF!"}},800001965,"http://www.xbrl.org/scheme/companyName",null,{"$f":"Periodos!$D$4","v":"2016-12-31"},{"$f":"#REF!","v":{"$error":"#REF!"}},{"$f":"#REF!","v":{"$error":"#REF!"}}]
[{"$error":"#REF!"},null,{"$f":"#REF!","v":{"$error":"#REF!"}},{"$f":"#REF!","v":{"$error":"#REF!"}},null,null,{"$f":"#REF!","v":{"$error":"#REF!"}},800001965,"http://www.xbrl.org/scheme/companyName",null,{"$f":"Periodos!$D$4","v":"2016-12-31"},{"$f":"#REF!","v":{"$error":"#REF!"}},{"$f":"#REF!","v":{"$error":"#REF!"}}]
[{"$error":"#REF!"},null,{"$f":"#REF!","v":{"$error":"#REF!"}},{"$f":"#REF!","v":{"$error":"#REF!"}},null,null,{"$f":"#REF!","v":{"$error":"#REF!"}},800001965,"http://www.xbrl.org/scheme/companyName",null,{"$f":"Periodos!$D$4","v":"2016-12-31"},{"$f":"#REF!","v":{"$error":"#REF!"}},{"$f":"#REF!","v":{"$error":"#REF!"}}]
[{"$error":"#REF!"},null,{"$f":"#REF!","v":{"$error":"#REF!"}},{"$f":"#REF!","v":{"$error":"#REF!"}},null,null,{"$f":"#REF!","v":{"$error":"#REF!"}},800001965,"http://www.xbrl.org/scheme/companyName",null,{"$f":"Periodos!$D$4","v":"2016-12-31"},{"$f":"#REF!","v":{"$error":"#REF!"}},{"$f":"#REF!","v":{"$error":"#REF!"}}]
[{"$error":"#REF!"},null,{"$f":"#REF!","v":{"$error":"#REF!"}},{"$f":"#REF!","v":{"$error":"#REF!"}},null,null,{"$f":"#REF!","v":{"$error":"#REF!"}},800001965,"http://www.xbrl.org/scheme/companyName",null,{"$f":"Periodos!$D$4","v":"2016-12-31"},{"$f":"#REF!","v":{"$error":"#REF!"}},{"$f":"#REF!","v":{"$error":"#REF!"}}]
[{"$error":"#REF!"},null,{"$f":"#REF!","v":{"$error":"#REF!"}},{"$f":"#REF!","v":{"$error":"#REF!"}},null,null,{"$f":"#REF!","v":{"$error":"#REF!"}},800001965,"http://www.xbrl.org/scheme/companyName",null,{"$f":"Periodos!$D$4","v":"2016-12-31"},{"$f":"#REF!","v":{"$error":"#REF!"}},{"$f":"#REF!","v":{"$error":"#REF!"}}]
[{"$error":"#REF!"},null,{"$f":"#REF!","v":{"$error":"#REF!"}},{"$f":"#REF!","v":{"$error":"#REF!"}},null,null,{"$f":"#REF!","v":{"$error":"#REF!"}},800001965,"http://www.xbrl.org/scheme/companyName",null,{"$f":"Periodos!$D$4","v":"2016-12-31"},{"$f":"#REF!","v":{"$error":"#REF!"}},{"$f":"#REF!","v":{"$error":"#REF!"}}]
[{"$error":"#REF!"},null,{"$f":"#REF!","v":{"$error":"#REF!"}},{"$f":"#REF!","v":{"$error":"#REF!"}},null,null,{"$f":"#REF!","v":{"$error":"#REF!"}},800001965,"http://www.xbrl.org/scheme/companyName",null,{"$f":"Periodos!$D$4","v":"2016-12-31"},{"$f":"#REF!","v":{"$error":"#REF!"}},{"$f":"#REF!","v":{"$error":"#REF!"}}]
[{"$error":"#REF!"},null,{"$f":"#REF!","v":{"$error":"#REF!"}},{"$f":"#REF!","v":{"$error":"#REF!"}},null,null,{"$f":"#REF!","v":{"$error":"#REF!"}},800001965,"http://www.xbrl.org/scheme/companyName",null,{"$f":"Periodos!$D$4","v":"2016-12-31"},{"$f":"#REF!","v":{"$error":"#REF!"}},{"$f":"#REF!","v":{"$error":"#REF!"}}]
[{"$error":"#REF!"},null,{"$f":"#REF!","v":{"$error":"#REF!"}},{"$f":"#REF!","v":{"$error":"#REF!"}},null,null,{"$f":"#REF!","v":{"$error":"#REF!"}},800001965,"http://www.xbrl.org/scheme/companyName",null,{"$f":"Periodos!$D$4","v":"2016-12-31"},{"$f":"#REF!","v":{"$error":"#REF!"}},{"$f":"#REF!","v":{"$error":"#REF!"}}]
[{"$error":"#REF!"},null,{"$f":"#REF!","v":{"$error":"#REF!"}},{"$f":"#REF!","v":{"$error":"#REF!"}},0,"peso",{"$f":"#REF!","v":{"$error":"#REF!"}},800001965,"http://www.xbrl.org/scheme/companyName",null,{"$f":"Periodos!$D$4","v":"2016-12-31"},{"$f":"#REF!","v":{"$error":"#REF!"}},{"$f":"#REF!","v":{"$error":"#REF!"}}]
["/*",null,"--13--"]
[{"$error":"#REF!"},null,{"$f":"#REF!","v":{"$error":"#REF!"}},{"$f":"#REF!","v":{"$error":"#REF!"}},null,null,{"$f":"#REF!","v":{"$error":"#REF!"}},800001965,"http://www.xbrl.org/scheme/companyName",null,{"$f":"Periodos!$D$4","v":"2016-12-31"},{"$f":"#REF!","v":{"$error":"#REF!"}},{"$f":"#REF!","v":{"$error":"#REF!"}}]
[{"$error":"#REF!"},null,{"$f":"#REF!","v":{"$error":"#REF!"}},{"$f":"#REF!","v":{"$error":"#REF!"}},null,null,{"$f":"#REF!","v":{"$error":"#REF!"}},800001965,"http://www.xbrl.org/scheme/companyName",null,{"$f":"Periodos!$D$4","v":"2016-12-31"},{"$f":"#REF!","v":{"$error":"#REF!"}},{"$f":"#REF!","v":{"$error":"#REF!"}}]
[{"$error":"#REF!"},null,{"$f":"#REF!","v":{"$error":"#REF!"}},{"$f":"#REF!","v":{"$error":"#REF!"}},null,null,{"$f":"#REF!","v":{"$error":"#REF!"}},800001965,"http://www.xbrl.org/scheme/companyName",null,{"$f":"Periodos!$D$4","v":"2016-12-31"},{"$f":"#REF!","v":{"$error":"#REF!"}},{"$f":"#REF!","v":{"$error":"#REF!"}}]
[{"$error":"#REF!"},null,{"$f":"#REF!","v":{"$error":"#REF!"}},{"$f":"#REF!","v":{"$error":"#REF!"}},null,null,{"$f":"#REF!","v":{"$error":"#REF!"}},800001965,"http://www.xbrl.org/scheme/companyName",null,{"$f":"Periodos!$D$4","v":"2016-12-31"},{"$f":"#REF!","v":{"$error":"#REF!"}},{"$f":"#REF!","v":{"$error":"#REF!"}}]
[{"$error":"#REF!"},null,{"$f":"#REF!","v":{"$error":"#REF!"}},{"$f":"#REF!","v":{"$error":"#REF!"}},null,null,{"$f":"#REF!","v":{"$error":"#REF!"}},800001965,"http://www.xbrl.org/scheme/companyName",null,{"$f":"Periodos!$D$4","v":"2016-12-31"},{"$f":"#REF!","v":{"$error":"#REF!"}},{"$f":"#REF!","v":{"$error":"#REF!"}}]
[{"$error":"#REF!"},null,{"$f":"#REF!","v":{"$error":"#REF!"}},{"$f":"#REF!","v":{"$error":"#REF!"}},null,null,{"$f":"#REF!","v":{"$error":"#REF!"}},800001965,"http://www.xbrl.org/scheme/companyName",null,{"$f":"Periodos!$D$4","v":"2016-12-31"},{"$f":"#REF!","v":{"$error":"#REF!"}},{"$f":"#REF!","v":{"$error":"#REF!"}}]
[{"$error":"#REF!"},null,{"$f":"#REF!","v":{"$error":"#REF!"}},{"$f":"#REF!","v":{"$error":"#REF!"}},null,null,{"$f":"#REF!","v":{"$error":"#REF!"}},800001965,"http://www.xbrl.org/scheme/companyName",null,{"$f":"Periodos!$D$4","v":"2016-12-31"},{"$f":"#REF!","v":{"$error":"#REF!"}},{"$f":"#REF!","v":{"$error":"#REF!"}}]
[{"$error":"#REF!"},null,{"$f":"#REF!","v":{"$error":"#REF!"}},{"$f":"#REF!","v":{"$error":"#REF!"}},null,null,{"$f":"#REF!","v":{"$error":"#REF!"}},800001965,"http://www.xbrl.org/scheme/companyName",null,{"$f":"Periodos!$D$4","v":"2016-12-31"},{"$f":"#REF!","v":{"$error":"#REF!"}},{"$f":"#REF!","v":{"$error":"#REF!"}}]
[{"$error":"#REF!"},null,{"$f":"#REF!","v":{"$error":"#REF!"}},{"$f":"#REF!","v":{"$error":"#REF!"}},null,null,{"$f":"#REF!","v":{"$error":"#REF!"}},800001965,"http://www.xbrl.org/scheme/companyName",null,{"$f":"Periodos!$D$4","v":"2016-12-31"},{"$f":"#REF!","v":{"$error":"#REF!"}},{"$f":"#REF!","v":{"$error":"#REF!"}}]
[{"$error":"#REF!"},null,{"$f":"#REF!","v":{"$error":"#REF!"}},{"$f":"#REF!","v":{"$error":"#REF!"}},null,null,{"$f":"#REF!","v":{"$error":"#REF!"}},800001965,"http://www.xbrl.org/scheme/companyName",null,{"$f":"Periodos!$D$4","v":"2016-12-31"},{"$f":"#REF!","v":{"$error":"#REF!"}},{"$f":"#REF!","v":{"$error":"#REF!"}}]
[{"$error":"#REF!"},null,{"$f":"#REF!","v":{"$error":"#REF!"}},{"$f":"#REF!","v":{"$error":"#REF!"}},null,null,{"$f":"#REF!","v":{"$error":"#REF!"}},800001965,"http://www.xbrl.org/scheme/companyName",null,{"$f":"Periodos!$D$4","v":"2016-12-31"},{"$f":"#REF!","v":{"$error":"#REF!"}},{"$f":"#REF!","v":{"$error":"#REF!"}}]
[{"$error":"#REF!"},null,{"$f":"#REF!","v":{"$error":"#REF!"}},{"$f":"#REF!","v":{"$error":"#REF!"}},0,"peso",{"$f":"#REF!","v":{"$error":"#REF!"}},800001965,"http://www.xbrl.org/scheme/companyName",null,{"$f":"Periodos!$D$4","v":"2016-12-31"},{"$f":"#REF!","v":{"$error":"#REF!"}},{"$f":"#REF!","v":{"$error":"#REF!"}}]
["/*",null,"--14--"]
[{"$error":"#REF!"},null,{"$f":"#REF!","v":{"$error":"#REF!"}},{"$f":"#REF!","v":{"$error":"#REF!"}},null,null,{"$f":"#REF!","v":{"$error":"#REF!"}},800001965,"http://www.xbrl.org/scheme/companyName",null,{"$f":"Periodos!$D$4","v":"2016-12-31"},{"$f":"#REF!","v":{"$error":"#REF!"}},{"$f":"#REF!","v":{"$error":"#REF!"}}]
[{"$error":"#REF!"},null,{"$f":"#REF!","v":{"$error":"#REF!"}},{"$f":"#REF!","v":{"$error":"#REF!"}},null,null,{"$f":"#REF!","v":{"$error":"#REF!"}},800001965,"http://www.xbrl.org/scheme/companyName",null,{"$f":"Periodos!$D$4","v":"2016-12-31"},{"$f":"#REF!","v":{"$error":"#REF!"}},{"$f":"#REF!","v":{"$error":"#REF!"}}]
[{"$error":"#REF!"},null,{"$f":"#REF!","v":{"$error":"#REF!"}},{"$f":"#REF!","v":{"$error":"#REF!"}},null,null,{"$f":"#REF!","v":{"$error":"#REF!"}},800001965,"http://www.xbrl.org/scheme/companyName",null,{"$f":"Periodos!$D$4","v":"2016-12-31"},{"$f":"#REF!","v":{"$error":"#REF!"}},{"$f":"#REF!","v":{"$error":"#REF!"}}]
[{"$f":"IF(G3937=\"\",\"/*\",\"\")","v":{"$error":"#REF!"}},null,{"$f":"#REF!","v":{"$error":"#REF!"}},{"$f":"#REF!","v":{"$error":"#REF!"}},null,null,{"$f":"#REF!","v":{"$error":"#REF!"}},800001965,"http://www.xbrl.org/scheme/companyName",null,{"$f":"Periodos!$D$4","v":"2016-12-31"},{"$f":"#REF!","v":{"$error":"#REF!"}},{"$f":"#REF!","v":{"$error":"#REF!"}}]
[{"$error":"#REF!"},null,{"$f":"#REF!","v":{"$error":"#REF!"}},{"$f":"#REF!","v":{"$error":"#REF!"}},null,null,{"$f":"#REF!","v":{"$error":"#REF!"}},800001965,"http://www.xbrl.org/scheme/companyName",null,{"$f":"Periodos!$D$4","v":"2016-12-31"},{"$f":"#REF!","v":{"$error":"#REF!"}},{"$f":"#REF!","v":{"$error":"#REF!"}}]
[{"$error":"#REF!"},null,{"$f":"#REF!","v":{"$error":"#REF!"}},{"$f":"#REF!","v":{"$error":"#REF!"}},null,null,{"$f":"#REF!","v":{"$error":"#REF!"}},800001965,"http://www.xbrl.org/scheme/companyName",null,{"$f":"Periodos!$D$4","v":"2016-12-31"},{"$f":"#REF!","v":{"$error":"#REF!"}},{"$f":"#REF!","v":{"$error":"#REF!"}}]
[{"$error":"#REF!"},null,{"$f":"#REF!","v":{"$error":"#REF!"}},{"$f":"#REF!","v":{"$error":"#REF!"}},null,null,{"$f":"#REF!","v":{"$error":"#REF!"}},800001965,"http://www.xbrl.org/scheme/companyName",null,{"$f":"Periodos!$D$4","v":"2016-12-31"},{"$f":"#REF!","v":{"$error":"#REF!"}},{"$f":"#REF!","v":{"$error":"#REF!"}}]
[{"$error":"#REF!"},null,{"$f":"#REF!","v":{"$error":"#REF!"}},{"$f":"#REF!","v":{"$error":"#REF!"}},null,null,{"$f":"#REF!","v":{"$error":"#REF!"}},800001965,"http://www.xbrl.org/scheme/companyName",null,{"$f":"Periodos!$D$4","v":"2016-12-31"},{"$f":"#REF!","v":{"$error":"#REF!"}},{"$f":"#REF!","v":{"$error":"#REF!"}}]
[{"$error":"#REF!"},null,{"$f":"#REF!","v":{"$error":"#REF!"}},{"$f":"#REF!","v":{"$error":"#REF!"}},null,null,{"$f":"#REF!","v":{"$error":"#REF!"}},800001965,"http://www.xbrl.org/scheme/companyName",null,{"$f":"Periodos!$D$4","v":"2016-12-31"},{"$f":"#REF!","v":{"$error":"#REF!"}},{"$f":"#REF!","v":{"$error":"#REF!"}}]
[{"$error":"#REF!"},null,{"$f":"#REF!","v":{"$error":"#REF!"}},{"$f":"#REF!","v":{"$error":"#REF!"}},null,null,{"$f":"#REF!","v":{"$error":"#REF!"}},800001965,"http://www.xbrl.org/scheme/companyName",null,{"$f":"Periodos!$D$4","v":"2016-12-31"},{"$f":"#REF!","v":{"$error":"#REF!"}},{"$f":"#REF!","v":{"$error":"#REF!"}}]
[{"$error":"#REF!"},null,{"$f":"#REF!","v":{"$error":"#REF!"}},{"$f":"#REF!","v":{"$error":"#REF!"}},null,null,{"$f":"#REF!","v":{"$error":"#REF!"}},800001965,"http://www.xbrl.org/scheme/companyName",null,{"$f":"Periodos!$D$4","v":"2016-12-31"},{"$f":"#REF!","v":{"$error":"#REF!"}},{"$f":"#REF!","v":{"$error":"#REF!"}}]
[{"$error":"#REF!"},null,{"$f":"#REF!","v":{"$error":"#REF!"}},{"$f":"#REF!","v":{"$error":"#REF!"}},0,"peso",{"$f":"#REF!","v":{"$error":"#REF!"}},800001965,"http://www.xbrl.org/scheme/companyName",null,{"$f":"Periodos!$D$4","v":"2016-12-31"},{"$f":"#REF!","v":{"$error":"#REF!"}},{"$f":"#REF!","v":{"$error":"#REF!"}}]
["/*",null,"--15--"]
[{"$error":"#REF!"},null,{"$f":"#REF!","v":{"$error":"#REF!"}},{"$f":"#REF!","v":{"$error":"#REF!"}},null,null,{"$f":"#REF!","v":{"$error":"#REF!"}},800001965,"http://www.xbrl.org/scheme/companyName",null,{"$f":"Periodos!$D$4","v":"2016-12-31"},{"$f":"#REF!","v":{"$error":"#REF!"}},{"$f":"#REF!","v":{"$error":"#REF!"}}]
[{"$error":"#REF!"},null,{"$f":"#REF!","v":{"$error":"#REF!"}},{"$f":"#REF!","v":{"$error":"#REF!"}},null,null,{"$f":"#REF!","v":{"$error":"#REF!"}},800001965,"http://www.xbrl.org/scheme/companyName",null,{"$f":"Periodos!$D$4","v":"2016-12-31"},{"$f":"#REF!","v":{"$error":"#REF!"}},{"$f":"#REF!","v":{"$error":"#REF!"}}]
[{"$error":"#REF!"},null,{"$f":"#REF!","v":{"$error":"#REF!"}},{"$f":"#REF!","v":{"$error":"#REF!"}},null,null,{"$f":"#REF!","v":{"$error":"#REF!"}},800001965,"http://www.xbrl.org/scheme/companyName",null,{"$f":"Periodos!$D$4","v":"2016-12-31"},{"$f":"#REF!","v":{"$error":"#REF!"}},{"$f":"#REF!","v":{"$error":"#REF!"}}]
[{"$error":"#REF!"},null,{"$f":"#REF!","v":{"$error":"#REF!"}},{"$f":"#REF!","v":{"$error":"#REF!"}},null,null,{"$f":"#REF!","v":{"$error":"#REF!"}},800001965,"http://www.xbrl.org/scheme/companyName",null,{"$f":"Periodos!$D$4","v":"2016-12-31"},{"$f":"#REF!","v":{"$error":"#REF!"}},{"$f":"#REF!","v":{"$error":"#REF!"}}]
[{"$error":"#REF!"},null,{"$f":"#REF!","v":{"$error":"#REF!"}},{"$f":"#REF!","v":{"$error":"#REF!"}},null,null,{"$f":"#REF!","v":{"$error":"#REF!"}},800001965,"http://www.xbrl.org/scheme/companyName",null,{"$f":"Periodos!$D$4","v":"2016-12-31"},{"$f":"#REF!","v":{"$error":"#REF!"}},{"$f":"#REF!","v":{"$error":"#REF!"}}]
[{"$error":"#REF!"},null,{"$f":"#REF!","v":{"$error":"#REF!"}},{"$f":"#REF!","v":{"$error":"#REF!"}},null,null,{"$f":"#REF!","v":{"$error":"#REF!"}},800001965,"http://www.xbrl.org/scheme/companyName",null,{"$f":"Periodos!$D$4","v":"2016-12-31"},{"$f":"#REF!","v":{"$error":"#REF!"}},{"$f":"#REF!","v":{"$error":"#REF!"}}]
[{"$error":"#REF!"},null,{"$f":"#REF!","v":{"$error":"#REF!"}},{"$f":"#REF!","v":{"$error":"#REF!"}},null,null,{"$f":"#REF!","v":{"$error":"#REF!"}},800001965,"http://www.xbrl.org/scheme/companyName",null,{"$f":"Periodos!$D$4","v":"2016-12-31"},{"$f":"#REF!","v":{"$error":"#REF!"}},{"$f":"#REF!","v":{"$error":"#REF!"}}]
[{"$error":"#REF!"},null,{"$f":"#REF!","v":{"$error":"#REF!"}},{"$f":"#REF!","v":{"$error":"#REF!"}},null,null,{"$f":"#REF!","v":{"$error":"#REF!"}},800001965,"http://www.xbrl.org/scheme/companyName",null,{"$f":"Periodos!$D$4","v":"2016-12-31"},{"$f":"#REF!","v":{"$error":"#REF!"}},{"$f":"#REF!","v":{"$error":"#REF!"}}]
[{"$error":"#REF!"},null,{"$f":"#REF!","v":{"$error":"#REF!"}},{"$f":"#REF!","v":{"$error":"#REF!"}},null,null,{"$f":"#REF!","v":{"$error":"#REF!"}},800001965,"http://www.xbrl.org/scheme/companyName",null,{"$f":"Periodos!$D$4","v":"2016-12-31"},{"$f":"#REF!","v":{"$error":"#REF!"}},{"$f":"#REF!","v":{"$error":"#REF!"}}]
[{"$error":"#REF!"},null,{"$f":"#REF!","v":{"$error":"#REF!"}},{"$f":"#REF!","v":{"$error":"#REF!"}},null,null,{"$f":"#REF!","v":{"$error":"#REF!"}},800001965,"http://www.xbrl.org/scheme/companyName",null,{"$f":"Periodos!$D$4","v":"2016-12-31"},{"$f":"#REF!","v":{"$error":"#REF!"}},{"$f":"#REF!","v":{"$error":"#REF!"}}]
[{"$error":"#REF!"},null,{"$f":"#REF!","v":{"$error":"#REF!"}},{"$f":"#REF!","v":{"$error":"#REF!"}},null,null,{"$f":"#REF!","v":{"$error":"#REF!"}},800001965,"http://www.xbrl.org/scheme/companyName",null,{"$f":"Periodos!$D$4","v":"2016-12-31"},{"$f":"#REF!","v":{"$error":"#REF!"}},{"$f":"#REF!","v":{"$error":"#REF!"}}]
[{"$error":"#REF!"},null,{"$f":"#REF!","v":{"$error":"#REF!"}},{"$f":"#REF!","v":{"$error":"#REF!"}},0,"peso",{"$f":"#REF!","v":{"$error":"#REF!"}},800001965,"http://www.xbrl.org/scheme/companyName",null,{"$f":"Periodos!$D$4","v":"2016-12-31"},{"$f":"#REF!","v":{"$error":"#REF!"}},{"$f":"#REF!","v":{"$error":"#REF!"}}]
["/*",null,"--16--"]
[{"$error":"#REF!"},null,{"$f":"#REF!","v":{"$error":"#REF!"}},{"$f":"#REF!","v":{"$error":"#REF!"}},null,null,{"$f":"#REF!","v":{"$error":"#REF!"}},800001965,"http://www.xbrl.org/scheme/companyName",null,{"$f":"Periodos!$D$4","v":"2016-12-31"},{"$f":"#REF!","v":{"$error":"#REF!"}},{"$f":"#REF!","v":{"$error":"#REF!"}}]
[{"$error":"#REF!"},null,{"$f":"#REF!","v":{"$error":"#REF!"}},{"$f":"#REF!","v":{"$error":"#REF!"}},null,null,{"$f":"#REF!","v":{"$error":"#REF!"}},800001965,"http://www.xbrl.org/scheme/companyName",null,{"$f":"Periodos!$D$4","v":"2016-12-31"},{"$f":"#REF!","v":{"$error":"#REF!"}},{"$f":"#REF!","v":{"$error":"#REF!"}}]
[{"$error":"#REF!"},null,{"$f":"#REF!","v":{"$error":"#REF!"}},{"$f":"#REF!","v":{"$error":"#REF!"}},null,null,{"$f":"#REF!","v":{"$error":"#REF!"}},800001965,"http://www.xbrl.org/scheme/companyName",null,{"$f":"Periodos!$D$4","v":"2016-12-31"},{"$f":"#REF!","v":{"$error":"#REF!"}},{"$f":"#REF!","v":{"$error":"#REF!"}}]
[{"$error":"#REF!"},null,{"$f":"#REF!","v":{"$error":"#REF!"}},{"$f":"#REF!","v":{"$error":"#REF!"}},null,null,{"$f":"#REF!","v":{"$error":"#REF!"}},800001965,"http://www.xbrl.org/scheme/companyName",null,{"$f":"Periodos!$D$4","v":"2016-12-31"},{"$f":"#REF!","v":{"$error":"#REF!"}},{"$f":"#REF!","v":{"$error":"#REF!"}}]
[{"$error":"#REF!"},null,{"$f":"#REF!","v":{"$error":"#REF!"}},{"$f":"#REF!","v":{"$error":"#REF!"}},null,null,{"$f":"#REF!","v":{"$error":"#REF!"}},800001965,"http://www.xbrl.org/scheme/companyName",null,{"$f":"Periodos!$D$4","v":"2016-12-31"},{"$f":"#REF!","v":{"$error":"#REF!"}},{"$f":"#REF!","v":{"$error":"#REF!"}}]
[{"$error":"#REF!"},null,{"$f":"#REF!","v":{"$error":"#REF!"}},{"$f":"#REF!","v":{"$error":"#REF!"}},null,null,{"$f":"#REF!","v":{"$error":"#REF!"}},800001965,"http://www.xbrl.org/scheme/companyName",null,{"$f":"Periodos!$D$4","v":"2016-12-31"},{"$f":"#REF!","v":{"$error":"#REF!"}},{"$f":"#REF!","v":{"$error":"#REF!"}}]
[{"$error":"#REF!"},null,{"$f":"#REF!","v":{"$error":"#REF!"}},{"$f":"#REF!","v":{"$error":"#REF!"}},null,null,{"$f":"#REF!","v":{"$error":"#REF!"}},800001965,"http://www.xbrl.org/scheme/companyName",null,{"$f":"Periodos!$D$4","v":"2016-12-31"},{"$f":"#REF!","v":{"$error":"#REF!"}},{"$f":"#REF!","v":{"$error":"#REF!"}}]
[{"$error":"#REF!"},null,{"$f":"#REF!","v":{"$error":"#REF!"}},{"$f":"#REF!","v":{"$error":"#REF!"}},null,null,{"$f":"#REF!","v":{"$error":"#REF!"}},800001965,"http://www.xbrl.org/scheme/companyName",null,{"$f":"Periodos!$D$4","v":"2016-12-31"},{"$f":"#REF!","v":{"$error":"#REF!"}},{"$f":"#REF!","v":{"$error":"#REF!"}}]
[{"$error":"#REF!"},null,{"$f":"#REF!","v":{"$error":"#REF!"}},{"$f":"#REF!","v":{"$error":"#REF!"}},null,null,{"$f":"#REF!","v":{"$error":"#REF!"}},800001965,"http://www.xbrl.org/scheme/companyName",null,{"$f":"Periodos!$D$4","v":"2016-12-31"},{"$f":"#REF!","v":{"$error":"#REF!"}},{"$f":"#REF!","v":{"$error":"#REF!"}}]
[{"$error":"#REF!"},null,{"$f":"#REF!","v":{"$error":"#REF!"}},{"$f":"#REF!","v":{"$error":"#REF!"}},null,null,{"$f":"#REF!","v":{"$error":"#REF!"}},800001965,"http://www.xbrl.org/scheme/companyName",null,{"$f":"Periodos!$D$4","v":"2016-12-31"},{"$f":"#REF!","v":{"$error":"#REF!"}},{"$f":"#REF!","v":{"$error":"#REF!"}}]
[{"$error":"#REF!"},null,{"$f":"#REF!","v":{"$error":"#REF!"}},{"$f":"#REF!","v":{"$error":"#REF!"}},null,null,{"$f":"#REF!","v":{"$error":"#REF!"}},800001965,"http://www.xbrl.org/scheme/companyName",null,{"$f":"Periodos!$D$4","v":"2016-12-31"},{"$f":"#REF!","v":{"$error":"#REF!"}},{"$f":"#REF!","v":{"$error":"#REF!"}}]
[{"$error":"#REF!"},null,{"$f":"#REF!","v":{"$error":"#REF!"}},{"$f":"#REF!","v":{"$error":"#REF!"}},0,"peso",{"$f":"#REF!","v":{"$error":"#REF!"}},800001965,"http://www.xbrl.org/scheme/companyName",null,{"$f":"Periodos!$D$4","v":"2016-12-31"},{"$f":"#REF!","v":{"$error":"#REF!"}},{"$f":"#REF!","v":{"$error":"#REF!"}}]
["/*",null,"--17--"]
[{"$error":"#REF!"},null,{"$f":"#REF!","v":{"$error":"#REF!"}},{"$f":"#REF!","v":{"$error":"#REF!"}},null,null,{"$f":"#REF!","v":{"$error":"#REF!"}},800001965,"http://www.xbrl.org/scheme/companyName",null,{"$f":"Periodos!$D$4","v":"2016-12-31"},{"$f":"#REF!","v":{"$error":"#REF!"}},{"$f":"#REF!","v":{"$error":"#REF!"}}]
[{"$error":"#REF!"},null,{"$f":"#REF!","v":{"$error":"#REF!"}},{"$f":"#REF!","v":{"$error":"#REF!"}},null,null,{"$f":"#REF!","v":{"$error":"#REF!"}},800001965,"http://www.xbrl.org/scheme/companyName",null,{"$f":"Periodos!$D$4","v":"2016-12-31"},{"$f":"#REF!","v":{"$error":"#REF!"}},{"$f":"#REF!","v":{"$error":"#REF!"}}]
[{"$error":"#REF!"},null,{"$f":"#REF!","v":{"$error":"#REF!"}},{"$f":"#REF!","v":{"$error":"#REF!"}},null,null,{"$f":"#REF!","v":{"$error":"#REF!"}},800001965,"http://www.xbrl.org/scheme/companyName",null,{"$f":"Periodos!$D$4","v":"2016-12-31"},{"$f":"#REF!","v":{"$error":"#REF!"}},{"$f":"#REF!","v":{"$error":"#REF!"}}]
[{"$error":"#REF!"},null,{"$f":"#REF!","v":{"$error":"#REF!"}},{"$f":"#REF!","v":{"$error":"#REF!"}},null,null,{"$f":"#REF!","v":{"$error":"#REF!"}},800001965,"http://www.xbrl.org/scheme/companyName",null,{"$f":"Periodos!$D$4","v":"2016-12-31"},{"$f":"#REF!","v":{"$error":"#REF!"}},{"$f":"#REF!","v":{"$error":"#REF!"}}]
[{"$error":"#REF!"},null,{"$f":"#REF!","v":{"$error":"#REF!"}},{"$f":"#REF!","v":{"$error":"#REF!"}},null,null,{"$f":"#REF!","v":{"$error":"#REF!"}},800001965,"http://www.xbrl.org/scheme/companyName",null,{"$f":"Periodos!$D$4","v":"2016-12-31"},{"$f":"#REF!","v":{"$error":"#REF!"}},{"$f":"#REF!","v":{"$error":"#REF!"}}]
[{"$error":"#REF!"},null,{"$f":"#REF!","v":{"$error":"#REF!"}},{"$f":"#REF!","v":{"$error":"#REF!"}},null,null,{"$f":"#REF!","v":{"$error":"#REF!"}},800001965,"http://www.xbrl.org/scheme/companyName",null,{"$f":"Periodos!$D$4","v":"2016-12-31"},{"$f":"#REF!","v":{"$error":"#REF!"}},{"$f":"#REF!","v":{"$error":"#REF!"}}]
[{"$error":"#REF!"},null,{"$f":"#REF!","v":{"$error":"#REF!"}},{"$f":"#REF!","v":{"$error":"#REF!"}},null,null,{"$f":"#REF!","v":{"$error":"#REF!"}},800001965,"http://www.xbrl.org/scheme/companyName",null,{"$f":"Periodos!$D$4","v":"2016-12-31"},{"$f":"#REF!","v":{"$error":"#REF!"}},{"$f":"#REF!","v":{"$error":"#REF!"}}]
[{"$error":"#REF!"},null,{"$f":"#REF!","v":{"$error":"#REF!"}},{"$f":"#REF!","v":{"$error":"#REF!"}},null,null,{"$f":"#REF!","v":{"$error":"#REF!"}},800001965,"http://www.xbrl.org/scheme/companyName",null,{"$f":"Periodos!$D$4","v":"2016-12-31"},{"$f":"#REF!","v":{"$error":"#REF!"}},{"$f":"#REF!","v":{"$error":"#REF!"}}]
[{"$error":"#REF!"},null,{"$f":"#REF!","v":{"$error":"#REF!"}},{"$f":"#REF!","v":{"$error":"#REF!"}},null,null,{"$f":"#REF!","v":{"$error":"#REF!"}},800001965,"http://www.xbrl.org/scheme/companyName",null,{"$f":"Periodos!$D$4","v":"2016-12-31"},{"$f":"#REF!","v":{"$error":"#REF!"}},{"$f":"#REF!","v":{"$error":"#REF!"}}]
[{"$error":"#REF!"},null,{"$f":"#REF!","v":{"$error":"#REF!"}},{"$f":"#REF!","v":{"$error":"#REF!"}},null,null,{"$f":"#REF!","v":{"$error":"#REF!"}},800001965,"http://www.xbrl.org/scheme/companyName",null,{"$f":"Periodos!$D$4","v":"2016-12-31"},{"$f":"#REF!","v":{"$error":"#REF!"}},{"$f":"#REF!","v":{"$error":"#REF!"}}]
[{"$error":"#REF!"},null,{"$f":"#REF!","v":{"$error":"#REF!"}},{"$f":"#REF!","v":{"$error":"#REF!"}},null,null,{"$f":"#REF!","v":{"$error":"#REF!"}},800001965,"http://www.xbrl.org/scheme/companyName",null,{"$f":"Periodos!$D$4","v":"2016-12-31"},{"$f":"#REF!","v":{"$error":"#REF!"}},{"$f":"#REF!","v":{"$error":"#REF!"}}]
[{"$error":"#REF!"},null,{"$f":"#REF!","v":{"$error":"#REF!"}},{"$f":"#REF!","v":{"$error":"#REF!"}},0,"peso",{"$f":"#REF!","v":{"$error":"#REF!"}},800001965,"http://www.xbrl.org/scheme/companyName",null,{"$f":"Periodos!$D$4","v":"2016-12-31"},{"$f":"#REF!","v":{"$error":"#REF!"}},{"$f":"#REF!","v":{"$error":"#REF!"}}]
["/*",null,"--18--"]
[{"$error":"#REF!"},null,{"$f":"#REF!","v":{"$error":"#REF!"}},{"$f":"#REF!","v":{"$error":"#REF!"}},null,null,{"$f":"#REF!","v":{"$error":"#REF!"}},800001965,"http://www.xbrl.org/scheme/companyName",null,{"$f":"Periodos!$D$4","v":"2016-12-31"},{"$f":"#REF!","v":{"$error":"#REF!"}},{"$f":"#REF!","v":{"$error":"#REF!"}}]
[{"$error":"#REF!"},null,{"$f":"#REF!","v":{"$error":"#REF!"}},{"$f":"#REF!","v":{"$error":"#REF!"}},null,null,{"$f":"#REF!","v":{"$error":"#REF!"}},800001965,"http://www.xbrl.org/scheme/companyName",null,{"$f":"Periodos!$D$4","v":"2016-12-31"},{"$f":"#REF!","v":{"$error":"#REF!"}},{"$f":"#REF!","v":{"$error":"#REF!"}}]
[{"$error":"#REF!"},null,{"$f":"#REF!","v":{"$error":"#REF!"}},{"$f":"#REF!","v":{"$error":"#REF!"}},null,null,{"$f":"#REF!","v":{"$error":"#REF!"}},800001965,"http://www.xbrl.org/scheme/companyName",null,{"$f":"Periodos!$D$4","v":"2016-12-31"},{"$f":"#REF!","v":{"$error":"#REF!"}},{"$f":"#REF!","v":{"$error":"#REF!"}}]
[{"$error":"#REF!"},null,{"$f":"#REF!","v":{"$error":"#REF!"}},{"$f":"#REF!","v":{"$error":"#REF!"}},null,null,{"$f":"#REF!","v":{"$error":"#REF!"}},800001965,"http://www.xbrl.org/scheme/companyName",null,{"$f":"Periodos!$D$4","v":"2016-12-31"},{"$f":"#REF!","v":{"$error":"#REF!"}},{"$f":"#REF!","v":{"$error":"#REF!"}}]
[{"$error":"#REF!"},null,{"$f":"#REF!","v":{"$error":"#REF!"}},{"$f":"#REF!","v":{"$error":"#REF!"}},null,null,{"$f":"#REF!","v":{"$error":"#REF!"}},800001965,"http://www.xbrl.org/scheme/companyName",null,{"$f":"Periodos!$D$4","v":"2016-12-31"},{"$f":"#REF!","v":{"$error":"#REF!"}},{"$f":"#REF!","v":{"$error":"#REF!"}}]
[{"$error":"#REF!"},null,{"$f":"#REF!","v":{"$error":"#REF!"}},{"$f":"#REF!","v":{"$error":"#REF!"}},null,null,{"$f":"#REF!","v":{"$error":"#REF!"}},800001965,"http://www.xbrl.org/scheme/companyName",null,{"$f":"Periodos!$D$4","v":"2016-12-31"},{"$f":"#REF!","v":{"$error":"#REF!"}},{"$f":"#REF!","v":{"$error":"#REF!"}}]
[{"$error":"#REF!"},null,{"$f":"#REF!","v":{"$error":"#REF!"}},{"$f":"#REF!","v":{"$error":"#REF!"}},null,null,{"$f":"#REF!","v":{"$error":"#REF!"}},800001965,"http://www.xbrl.org/scheme/companyName",null,{"$f":"Periodos!$D$4","v":"2016-12-31"},{"$f":"#REF!","v":{"$error":"#REF!"}},{"$f":"#REF!","v":{"$error":"#REF!"}}]
[{"$error":"#REF!"},null,{"$f":"#REF!","v":{"$error":"#REF!"}},{"$f":"#REF!","v":{"$error":"#REF!"}},null,null,{"$f":"#REF!","v":{"$error":"#REF!"}},800001965,"http://www.xbrl.org/scheme/companyName",null,{"$f":"Periodos!$D$4","v":"2016-12-31"},{"$f":"#REF!","v":{"$error":"#REF!"}},{"$f":"#REF!","v":{"$error":"#REF!"}}]
[{"$error":"#REF!"},null,{"$f":"#REF!","v":{"$error":"#REF!"}},{"$f":"#REF!","v":{"$error":"#REF!"}},null,null,{"$f":"#REF!","v":{"$error":"#REF!"}},800001965,"http://www.xbrl.org/scheme/companyName",null,{"$f":"Periodos!$D$4","v":"2016-12-31"},{"$f":"#REF!","v":{"$error":"#REF!"}},{"$f":"#REF!","v":{"$error":"#REF!"}}]
[{"$error":"#REF!"},null,{"$f":"#REF!","v":{"$error":"#REF!"}},{"$f":"#REF!","v":{"$error":"#REF!"}},null,null,{"$f":"#REF!","v":{"$error":"#REF!"}},800001965,"http://www.xbrl.org/scheme/companyName",null,{"$f":"Periodos!$D$4","v":"2016-12-31"},{"$f":"#REF!","v":{"$error":"#REF!"}},{"$f":"#REF!","v":{"$error":"#REF!"}}]
[{"$error":"#REF!"},null,{"$f":"#REF!","v":{"$error":"#REF!"}},{"$f":"#REF!","v":{"$error":"#REF!"}},null,null,{"$f":"#REF!","v":{"$error":"#REF!"}},800001965,"http://www.xbrl.org/scheme/companyName",null,{"$f":"Periodos!$D$4","v":"2016-12-31"},{"$f":"#REF!","v":{"$error":"#REF!"}},{"$f":"#REF!","v":{"$error":"#REF!"}}]
[{"$error":"#REF!"},null,{"$f":"#REF!","v":{"$error":"#REF!"}},{"$f":"#REF!","v":{"$error":"#REF!"}},0,"peso",{"$f":"#REF!","v":{"$error":"#REF!"}},800001965,"http://www.xbrl.org/scheme/companyName",null,{"$f":"Periodos!$D$4","v":"2016-12-31"},{"$f":"#REF!","v":{"$error":"#REF!"}},{"$f":"#REF!","v":{"$error":"#REF!"}}]
["/*",null,"--19--"]
[{"$error":"#REF!"},null,{"$f":"#REF!","v":{"$error":"#REF!"}},{"$f":"#REF!","v":{"$error":"#REF!"}},null,null,{"$f":"#REF!","v":{"$error":"#REF!"}},800001965,"http://www.xbrl.org/scheme/companyName",null,{"$f":"Periodos!$D$4","v":"2016-12-31"},{"$f":"#REF!","v":{"$error":"#REF!"}},{"$f":"#REF!","v":{"$error":"#REF!"}}]
[{"$error":"#REF!"},null,{"$f":"#REF!","v":{"$error":"#REF!"}},{"$f":"#REF!","v":{"$error":"#REF!"}},null,null,{"$f":"#REF!","v":{"$error":"#REF!"}},800001965,"http://www.xbrl.org/scheme/companyName",null,{"$f":"Periodos!$D$4","v":"2016-12-31"},{"$f":"#REF!","v":{"$error":"#REF!"}},{"$f":"#REF!","v":{"$error":"#REF!"}}]
[{"$f":"IF(G4001=\"\",\"/*\",\"\")","v":{"$error":"#REF!"}},null,{"$f":"#REF!","v":{"$error":"#REF!"}},{"$f":"#REF!","v":{"$error":"#REF!"}},null,null,{"$f":"#REF!","v":{"$error":"#REF!"}},800001965,"http://www.xbrl.org/scheme/companyName",null,{"$f":"Periodos!$D$4","v":"2016-12-31"},{"$f":"#REF!","v":{"$error":"#REF!"}},{"$f":"#REF!","v":{"$error":"#REF!"}}]
[{"$error":"#REF!"},null,{"$f":"#REF!","v":{"$error":"#REF!"}},{"$f":"#REF!","v":{"$error":"#REF!"}},null,null,{"$f":"#REF!","v":{"$error":"#REF!"}},800001965,"http://www.xbrl.org/scheme/companyName",null,{"$f":"Periodos!$D$4","v":"2016-12-31"},{"$f":"#REF!","v":{"$error":"#REF!"}},{"$f":"#REF!","v":{"$error":"#REF!"}}]
[{"$error":"#REF!"},null,{"$f":"#REF!","v":{"$error":"#REF!"}},{"$f":"#REF!","v":{"$error":"#REF!"}},null,null,{"$f":"#REF!","v":{"$error":"#REF!"}},800001965,"http://www.xbrl.org/scheme/companyName",null,{"$f":"Periodos!$D$4","v":"2016-12-31"},{"$f":"#REF!","v":{"$error":"#REF!"}},{"$f":"#REF!","v":{"$error":"#REF!"}}]
[{"$error":"#REF!"},null,{"$f":"#REF!","v":{"$error":"#REF!"}},{"$f":"#REF!","v":{"$error":"#REF!"}},null,null,{"$f":"#REF!","v":{"$error":"#REF!"}},800001965,"http://www.xbrl.org/scheme/companyName",null,{"$f":"Periodos!$D$4","v":"2016-12-31"},{"$f":"#REF!","v":{"$error":"#REF!"}},{"$f":"#REF!","v":{"$error":"#REF!"}}]
[{"$error":"#REF!"},null,{"$f":"#REF!","v":{"$error":"#REF!"}},{"$f":"#REF!","v":{"$error":"#REF!"}},null,null,{"$f":"#REF!","v":{"$error":"#REF!"}},800001965,"http://www.xbrl.org/scheme/companyName",null,{"$f":"Periodos!$D$4","v":"2016-12-31"},{"$f":"#REF!","v":{"$error":"#REF!"}},{"$f":"#REF!","v":{"$error":"#REF!"}}]
[{"$error":"#REF!"},null,{"$f":"#REF!","v":{"$error":"#REF!"}},{"$f":"#REF!","v":{"$error":"#REF!"}},null,null,{"$f":"#REF!","v":{"$error":"#REF!"}},800001965,"http://www.xbrl.org/scheme/companyName",null,{"$f":"Periodos!$D$4","v":"2016-12-31"},{"$f":"#REF!","v":{"$error":"#REF!"}},{"$f":"#REF!","v":{"$error":"#REF!"}}]
[{"$error":"#REF!"},null,{"$f":"#REF!","v":{"$error":"#REF!"}},{"$f":"#REF!","v":{"$error":"#REF!"}},null,null,{"$f":"#REF!","v":{"$error":"#REF!"}},800001965,"http://www.xbrl.org/scheme/companyName",null,{"$f":"Periodos!$D$4","v":"2016-12-31"},{"$f":"#REF!","v":{"$error":"#REF!"}},{"$f":"#REF!","v":{"$error":"#REF!"}}]
[{"$error":"#REF!"},null,{"$f":"#REF!","v":{"$error":"#REF!"}},{"$f":"#REF!","v":{"$error":"#REF!"}},null,null,{"$f":"#REF!","v":{"$error":"#REF!"}},800001965,"http://www.xbrl.org/scheme/companyName",null,{"$f":"Periodos!$D$4","v":"2016-12-31"},{"$f":"#REF!","v":{"$error":"#REF!"}},{"$f":"#REF!","v":{"$error":"#REF!"}}]
[{"$error":"#REF!"},null,{"$f":"#REF!","v":{"$error":"#REF!"}},{"$f":"#REF!","v":{"$error":"#REF!"}},null,null,{"$f":"#REF!","v":{"$error":"#REF!"}},800001965,"http://www.xbrl.org/scheme/companyName",null,{"$f":"Periodos!$D$4","v":"2016-12-31"},{"$f":"#REF!","v":{"$error":"#REF!"}},{"$f":"#REF!","v":{"$error":"#REF!"}}]
[{"$error":"#REF!"},null,{"$f":"#REF!","v":{"$error":"#REF!"}},{"$f":"#REF!","v":{"$error":"#REF!"}},0,"peso",{"$f":"#REF!","v":{"$error":"#REF!"}},800001965,"http://www.xbrl.org/scheme/companyName",null,{"$f":"Periodos!$D$4","v":"2016-12-31"},{"$f":"#REF!","v":{"$error":"#REF!"}},{"$f":"#REF!","v":{"$error":"#REF!"}}]
["/*",null,"--20--"]
[{"$error":"#REF!"},null,{"$f":"#REF!","v":{"$error":"#REF!"}},{"$f":"#REF!","v":{"$error":"#REF!"}},null,null,{"$f":"#REF!","v":{"$error":"#REF!"}},800001965,"http://www.xbrl.org/scheme/companyName",null,{"$f":"Periodos!$D$4","v":"2016-12-31"},{"$f":"#REF!","v":{"$error":"#REF!"}},{"$f":"#REF!","v":{"$error":"#REF!"}}]
[{"$error":"#REF!"},null,{"$f":"#REF!","v":{"$error":"#REF!"}},{"$f":"#REF!","v":{"$error":"#REF!"}},null,null,{"$f":"#REF!","v":{"$error":"#REF!"}},800001965,"http://www.xbrl.org/scheme/companyName",null,{"$f":"Periodos!$D$4","v":"2016-12-31"},{"$f":"#REF!","v":{"$error":"#REF!"}},{"$f":"#REF!","v":{"$error":"#REF!"}}]
[{"$error":"#REF!"},null,{"$f":"#REF!","v":{"$error":"#REF!"}},{"$f":"#REF!","v":{"$error":"#REF!"}},null,null,{"$f":"#REF!","v":{"$error":"#REF!"}},800001965,"http://www.xbrl.org/scheme/companyName",null,{"$f":"Periodos!$D$4","v":"2016-12-31"},{"$f":"#REF!","v":{"$error":"#REF!"}},{"$f":"#REF!","v":{"$error":"#REF!"}}]
[{"$error":"#REF!"},null,{"$f":"#REF!","v":{"$error":"#REF!"}},{"$f":"#REF!","v":{"$error":"#REF!"}},null,null,{"$f":"#REF!","v":{"$error":"#REF!"}},800001965,"http://www.xbrl.org/scheme/companyName",null,{"$f":"Periodos!$D$4","v":"2016-12-31"},{"$f":"#REF!","v":{"$error":"#REF!"}},{"$f":"#REF!","v":{"$error":"#REF!"}}]
[{"$error":"#REF!"},null,{"$f":"#REF!","v":{"$error":"#REF!"}},{"$f":"#REF!","v":{"$error":"#REF!"}},null,null,{"$f":"#REF!","v":{"$error":"#REF!"}},800001965,"http://www.xbrl.org/scheme/companyName",null,{"$f":"Periodos!$D$4","v":"2016-12-31"},{"$f":"#REF!","v":{"$error":"#REF!"}},{"$f":"#REF!","v":{"$error":"#REF!"}}]
[{"$error":"#REF!"},null,{"$f":"#REF!","v":{"$error":"#REF!"}},{"$f":"#REF!","v":{"$error":"#REF!"}},null,null,{"$f":"#REF!","v":{"$error":"#REF!"}},800001965,"http://www.xbrl.org/scheme/companyName",null,{"$f":"Periodos!$D$4","v":"2016-12-31"},{"$f":"#REF!","v":{"$error":"#REF!"}},{"$f":"#REF!","v":{"$error":"#REF!"}}]
[{"$error":"#REF!"},null,{"$f":"#REF!","v":{"$error":"#REF!"}},{"$f":"#REF!","v":{"$error":"#REF!"}},null,null,{"$f":"#REF!","v":{"$error":"#REF!"}},800001965,"http://www.xbrl.org/scheme/companyName",null,{"$f":"Periodos!$D$4","v":"2016-12-31"},{"$f":"#REF!","v":{"$error":"#REF!"}},{"$f":"#REF!","v":{"$error":"#REF!"}}]
[{"$error":"#REF!"},null,{"$f":"#REF!","v":{"$error":"#REF!"}},{"$f":"#REF!","v":{"$error":"#REF!"}},null,null,{"$f":"#REF!","v":{"$error":"#REF!"}},800001965,"http://www.xbrl.org/scheme/companyName",null,{"$f":"Periodos!$D$4","v":"2016-12-31"},{"$f":"#REF!","v":{"$error":"#REF!"}},{"$f":"#REF!","v":{"$error":"#REF!"}}]
[{"$error":"#REF!"},null,{"$f":"#REF!","v":{"$error":"#REF!"}},{"$f":"#REF!","v":{"$error":"#REF!"}},null,null,{"$f":"#REF!","v":{"$error":"#REF!"}},800001965,"http://www.xbrl.org/scheme/companyName",null,{"$f":"Periodos!$D$4","v":"2016-12-31"},{"$f":"#REF!","v":{"$error":"#REF!"}},{"$f":"#REF!","v":{"$error":"#REF!"}}]
[{"$error":"#REF!"},null,{"$f":"#REF!","v":{"$error":"#REF!"}},{"$f":"#REF!","v":{"$error":"#REF!"}},null,null,{"$f":"#REF!","v":{"$error":"#REF!"}},800001965,"http://www.xbrl.org/scheme/companyName",null,{"$f":"Periodos!$D$4","v":"2016-12-31"},{"$f":"#REF!","v":{"$error":"#REF!"}},{"$f":"#REF!","v":{"$error":"#REF!"}}]
[{"$error":"#REF!"},null,{"$f":"#REF!","v":{"$error":"#REF!"}},{"$f":"#REF!","v":{"$error":"#REF!"}},null,null,{"$f":"#REF!","v":{"$error":"#REF!"}},800001965,"http://www.xbrl.org/scheme/companyName",null,{"$f":"Periodos!$D$4","v":"2016-12-31"},{"$f":"#REF!","v":{"$error":"#REF!"}},{"$f":"#REF!","v":{"$error":"#REF!"}}]
[{"$error":"#REF!"},null,{"$f":"#REF!","v":{"$error":"#REF!"}},{"$f":"#REF!","v":{"$error":"#REF!"}},0,"peso",{"$f":"#REF!","v":{"$error":"#REF!"}},800001965,"http://www.xbrl.org/scheme/companyName",null,{"$f":"Periodos!$D$4","v":"2016-12-31"},{"$f":"#REF!","v":{"$error":"#REF!"}},{"$f":"#REF!","v":{"$error":"#REF!"}}]
["/*",null,"--21--"]
[{"$error":"#REF!"},null,{"$f":"#REF!","v":{"$error":"#REF!"}},{"$f":"#REF!","v":{"$error":"#REF!"}},null,null,{"$f":"#REF!","v":{"$error":"#REF!"}},800001965,"http://www.xbrl.org/scheme/companyName",null,{"$f":"Periodos!$D$4","v":"2016-12-31"},{"$f":"#REF!","v":{"$error":"#REF!"}},{"$f":"#REF!","v":{"$error":"#REF!"}}]
[{"$error":"#REF!"},null,{"$f":"#REF!","v":{"$error":"#REF!"}},{"$f":"#REF!","v":{"$error":"#REF!"}},null,null,{"$f":"#REF!","v":{"$error":"#REF!"}},800001965,"http://www.xbrl.org/scheme/companyName",null,{"$f":"Periodos!$D$4","v":"2016-12-31"},{"$f":"#REF!","v":{"$error":"#REF!"}},{"$f":"#REF!","v":{"$error":"#REF!"}}]
[{"$error":"#REF!"},null,{"$f":"#REF!","v":{"$error":"#REF!"}},{"$f":"#REF!","v":{"$error":"#REF!"}},null,null,{"$f":"#REF!","v":{"$error":"#REF!"}},800001965,"http://www.xbrl.org/scheme/companyName",null,{"$f":"Periodos!$D$4","v":"2016-12-31"},{"$f":"#REF!","v":{"$error":"#REF!"}},{"$f":"#REF!","v":{"$error":"#REF!"}}]
[{"$error":"#REF!"},null,{"$f":"#REF!","v":{"$error":"#REF!"}},{"$f":"#REF!","v":{"$error":"#REF!"}},null,null,{"$f":"#REF!","v":{"$error":"#REF!"}},800001965,"http://www.xbrl.org/scheme/companyName",null,{"$f":"Periodos!$D$4","v":"2016-12-31"},{"$f":"#REF!","v":{"$error":"#REF!"}},{"$f":"#REF!","v":{"$error":"#REF!"}}]
[{"$error":"#REF!"},null,{"$f":"#REF!","v":{"$error":"#REF!"}},{"$f":"#REF!","v":{"$error":"#REF!"}},null,null,{"$f":"#REF!","v":{"$error":"#REF!"}},800001965,"http://www.xbrl.org/scheme/companyName",null,{"$f":"Periodos!$D$4","v":"2016-12-31"},{"$f":"#REF!","v":{"$error":"#REF!"}},{"$f":"#REF!","v":{"$error":"#REF!"}}]
[{"$error":"#REF!"},null,{"$f":"#REF!","v":{"$error":"#REF!"}},{"$f":"#REF!","v":{"$error":"#REF!"}},null,null,{"$f":"#REF!","v":{"$error":"#REF!"}},800001965,"http://www.xbrl.org/scheme/companyName",null,{"$f":"Periodos!$D$4","v":"2016-12-31"},{"$f":"#REF!","v":{"$error":"#REF!"}},{"$f":"#REF!","v":{"$error":"#REF!"}}]
[{"$error":"#REF!"},null,{"$f":"#REF!","v":{"$error":"#REF!"}},{"$f":"#REF!","v":{"$error":"#REF!"}},null,null,{"$f":"#REF!","v":{"$error":"#REF!"}},800001965,"http://www.xbrl.org/scheme/companyName",null,{"$f":"Periodos!$D$4","v":"2016-12-31"},{"$f":"#REF!","v":{"$error":"#REF!"}},{"$f":"#REF!","v":{"$error":"#REF!"}}]
[{"$error":"#REF!"},null,{"$f":"#REF!","v":{"$error":"#REF!"}},{"$f":"#REF!","v":{"$error":"#REF!"}},null,null,{"$f":"#REF!","v":{"$error":"#REF!"}},800001965,"http://www.xbrl.org/scheme/companyName",null,{"$f":"Periodos!$D$4","v":"2016-12-31"},{"$f":"#REF!","v":{"$error":"#REF!"}},{"$f":"#REF!","v":{"$error":"#REF!"}}]
[{"$error":"#REF!"},null,{"$f":"#REF!","v":{"$error":"#REF!"}},{"$f":"#REF!","v":{"$error":"#REF!"}},null,null,{"$f":"#REF!","v":{"$error":"#REF!"}},800001965,"http://www.xbrl.org/scheme/companyName",null,{"$f":"Periodos!$D$4","v":"2016-12-31"},{"$f":"#REF!","v":{"$error":"#REF!"}},{"$f":"#REF!","v":{"$error":"#REF!"}}]
[{"$error":"#REF!"},null,{"$f":"#REF!","v":{"$error":"#REF!"}},{"$f":"#REF!","v":{"$error":"#REF!"}},null,null,{"$f":"#REF!","v":{"$error":"#REF!"}},800001965,"http://www.xbrl.org/scheme/companyName",null,{"$f":"Periodos!$D$4","v":"2016-12-31"},{"$f":"#REF!","v":{"$error":"#REF!"}},{"$f":"#REF!","v":{"$error":"#REF!"}}]
[{"$error":"#REF!"},null,{"$f":"#REF!","v":{"$error":"#REF!"}},{"$f":"#REF!","v":{"$error":"#REF!"}},null,null,{"$f":"#REF!","v":{"$error":"#REF!"}},800001965,"http://www.xbrl.org/scheme/companyName",null,{"$f":"Periodos!$D$4","v":"2016-12-31"},{"$f":"#REF!","v":{"$error":"#REF!"}},{"$f":"#REF!","v":{"$error":"#REF!"}}]
[{"$error":"#REF!"},null,{"$f":"#REF!","v":{"$error":"#REF!"}},{"$f":"#REF!","v":{"$error":"#REF!"}},0,"peso",{"$f":"#REF!","v":{"$error":"#REF!"}},800001965,"http://www.xbrl.org/scheme/companyName",null,{"$f":"Periodos!$D$4","v":"2016-12-31"},{"$f":"#REF!","v":{"$error":"#REF!"}},{"$f":"#REF!","v":{"$error":"#REF!"}}]
["/*",null,"--22--"]
[{"$error":"#REF!"},null,{"$f":"#REF!","v":{"$error":"#REF!"}},{"$f":"#REF!","v":{"$error":"#REF!"}},null,null,{"$f":"#REF!","v":{"$error":"#REF!"}},800001965,"http://www.xbrl.org/scheme/companyName",null,{"$f":"Periodos!$D$4","v":"2016-12-31"},{"$f":"#REF!","v":{"$error":"#REF!"}},{"$f":"#REF!","v":{"$error":"#REF!"}}]
[{"$error":"#REF!"},null,{"$f":"#REF!","v":{"$error":"#REF!"}},{"$f":"#REF!","v":{"$error":"#REF!"}},null,null,{"$f":"#REF!","v":{"$error":"#REF!"}},800001965,"http://www.xbrl.org/scheme/companyName",null,{"$f":"Periodos!$D$4","v":"2016-12-31"},{"$f":"#REF!","v":{"$error":"#REF!"}},{"$f":"#REF!","v":{"$error":"#REF!"}}]
[{"$error":"#REF!"},null,{"$f":"#REF!","v":{"$error":"#REF!"}},{"$f":"#REF!","v":{"$error":"#REF!"}},null,null,{"$f":"#REF!","v":{"$error":"#REF!"}},800001965,"http://www.xbrl.org/scheme/companyName",null,{"$f":"Periodos!$D$4","v":"2016-12-31"},{"$f":"#REF!","v":{"$error":"#REF!"}},{"$f":"#REF!","v":{"$error":"#REF!"}}]
[{"$error":"#REF!"},null,{"$f":"#REF!","v":{"$error":"#REF!"}},{"$f":"#REF!","v":{"$error":"#REF!"}},null,null,{"$f":"#REF!","v":{"$error":"#REF!"}},800001965,"http://www.xbrl.org/scheme/companyName",null,{"$f":"Periodos!$D$4","v":"2016-12-31"},{"$f":"#REF!","v":{"$error":"#REF!"}},{"$f":"#REF!","v":{"$error":"#REF!"}}]
[{"$error":"#REF!"},null,{"$f":"#REF!","v":{"$error":"#REF!"}},{"$f":"#REF!","v":{"$error":"#REF!"}},null,null,{"$f":"#REF!","v":{"$error":"#REF!"}},800001965,"http://www.xbrl.org/scheme/companyName",null,{"$f":"Periodos!$D$4","v":"2016-12-31"},{"$f":"#REF!","v":{"$error":"#REF!"}},{"$f":"#REF!","v":{"$error":"#REF!"}}]
[{"$error":"#REF!"},null,{"$f":"#REF!","v":{"$error":"#REF!"}},{"$f":"#REF!","v":{"$error":"#REF!"}},null,null,{"$f":"#REF!","v":{"$error":"#REF!"}},800001965,"http://www.xbrl.org/scheme/companyName",null,{"$f":"Periodos!$D$4","v":"2016-12-31"},{"$f":"#REF!","v":{"$error":"#REF!"}},{"$f":"#REF!","v":{"$error":"#REF!"}}]
[{"$error":"#REF!"},null,{"$f":"#REF!","v":{"$error":"#REF!"}},{"$f":"#REF!","v":{"$error":"#REF!"}},null,null,{"$f":"#REF!","v":{"$error":"#REF!"}},800001965,"http://www.xbrl.org/scheme/companyName",null,{"$f":"Periodos!$D$4","v":"2016-12-31"},{"$f":"#REF!","v":{"$error":"#REF!"}},{"$f":"#REF!","v":{"$error":"#REF!"}}]
[{"$error":"#REF!"},null,{"$f":"#REF!","v":{"$error":"#REF!"}},{"$f":"#REF!","v":{"$error":"#REF!"}},null,null,{"$f":"#REF!","v":{"$error":"#REF!"}},800001965,"http://www.xbrl.org/scheme/companyName",null,{"$f":"Periodos!$D$4","v":"2016-12-31"},{"$f":"#REF!","v":{"$error":"#REF!"}},{"$f":"#REF!","v":{"$error":"#REF!"}}]
[{"$error":"#REF!"},null,{"$f":"#REF!","v":{"$error":"#REF!"}},{"$f":"#REF!","v":{"$error":"#REF!"}},null,null,{"$f":"#REF!","v":{"$error":"#REF!"}},800001965,"http://www.xbrl.org/scheme/companyName",null,{"$f":"Periodos!$D$4","v":"2016-12-31"},{"$f":"#REF!","v":{"$error":"#REF!"}},{"$f":"#REF!","v":{"$error":"#REF!"}}]
[{"$error":"#REF!"},null,{"$f":"#REF!","v":{"$error":"#REF!"}},{"$f":"#REF!","v":{"$error":"#REF!"}},null,null,{"$f":"#REF!","v":{"$error":"#REF!"}},800001965,"http://www.xbrl.org/scheme/companyName",null,{"$f":"Periodos!$D$4","v":"2016-12-31"},{"$f":"#REF!","v":{"$error":"#REF!"}},{"$f":"#REF!","v":{"$error":"#REF!"}}]
[{"$error":"#REF!"},null,{"$f":"#REF!","v":{"$error":"#REF!"}},{"$f":"#REF!","v":{"$error":"#REF!"}},null,null,{"$f":"#REF!","v":{"$error":"#REF!"}},800001965,"http://www.xbrl.org/scheme/companyName",null,{"$f":"Periodos!$D$4","v":"2016-12-31"},{"$f":"#REF!","v":{"$error":"#REF!"}},{"$f":"#REF!","v":{"$error":"#REF!"}}]
[{"$error":"#REF!"},null,{"$f":"#REF!","v":{"$error":"#REF!"}},{"$f":"#REF!","v":{"$error":"#REF!"}},0,"peso",{"$f":"#REF!","v":{"$error":"#REF!"}},800001965,"http://www.xbrl.org/scheme/companyName",null,{"$f":"Periodos!$D$4","v":"2016-12-31"},{"$f":"#REF!","v":{"$error":"#REF!"}},{"$f":"#REF!","v":{"$error":"#REF!"}}]
["/*",null,"--23--"]
[{"$error":"#REF!"},null,{"$f":"#REF!","v":{"$error":"#REF!"}},{"$f":"#REF!","v":{"$error":"#REF!"}},null,null,{"$f":"#REF!","v":{"$error":"#REF!"}},800001965,"http://www.xbrl.org/scheme/companyName",null,{"$f":"Periodos!$D$4","v":"2016-12-31"},{"$f":"#REF!","v":{"$error":"#REF!"}},{"$f":"#REF!","v":{"$error":"#REF!"}}]
[{"$error":"#REF!"},null,{"$f":"#REF!","v":{"$error":"#REF!"}},{"$f":"#REF!","v":{"$error":"#REF!"}},null,null,{"$f":"#REF!","v":{"$error":"#REF!"}},800001965,"http://www.xbrl.org/scheme/companyName",null,{"$f":"Periodos!$D$4","v":"2016-12-31"},{"$f":"#REF!","v":{"$error":"#REF!"}},{"$f":"#REF!","v":{"$error":"#REF!"}}]
[{"$error":"#REF!"},null,{"$f":"#REF!","v":{"$error":"#REF!"}},{"$f":"#REF!","v":{"$error":"#REF!"}},null,null,{"$f":"#REF!","v":{"$error":"#REF!"}},800001965,"http://www.xbrl.org/scheme/companyName",null,{"$f":"Periodos!$D$4","v":"2016-12-31"},{"$f":"#REF!","v":{"$error":"#REF!"}},{"$f":"#REF!","v":{"$error":"#REF!"}}]
[{"$error":"#REF!"},null,{"$f":"#REF!","v":{"$error":"#REF!"}},{"$f":"#REF!","v":{"$error":"#REF!"}},null,null,{"$f":"#REF!","v":{"$error":"#REF!"}},800001965,"http://www.xbrl.org/scheme/companyName",null,{"$f":"Periodos!$D$4","v":"2016-12-31"},{"$f":"#REF!","v":{"$error":"#REF!"}},{"$f":"#REF!","v":{"$error":"#REF!"}}]
[{"$error":"#REF!"},null,{"$f":"#REF!","v":{"$error":"#REF!"}},{"$f":"#REF!","v":{"$error":"#REF!"}},null,null,{"$f":"#REF!","v":{"$error":"#REF!"}},800001965,"http://www.xbrl.org/scheme/companyName",null,{"$f":"Periodos!$D$4","v":"2016-12-31"},{"$f":"#REF!","v":{"$error":"#REF!"}},{"$f":"#REF!","v":{"$error":"#REF!"}}]
[{"$error":"#REF!"},null,{"$f":"#REF!","v":{"$error":"#REF!"}},{"$f":"#REF!","v":{"$error":"#REF!"}},null,null,{"$f":"#REF!","v":{"$error":"#REF!"}},800001965,"http://www.xbrl.org/scheme/companyName",null,{"$f":"Periodos!$D$4","v":"2016-12-31"},{"$f":"#REF!","v":{"$error":"#REF!"}},{"$f":"#REF!","v":{"$error":"#REF!"}}]
[{"$error":"#REF!"},null,{"$f":"#REF!","v":{"$error":"#REF!"}},{"$f":"#REF!","v":{"$error":"#REF!"}},null,null,{"$f":"#REF!","v":{"$error":"#REF!"}},800001965,"http://www.xbrl.org/scheme/companyName",null,{"$f":"Periodos!$D$4","v":"2016-12-31"},{"$f":"#REF!","v":{"$error":"#REF!"}},{"$f":"#REF!","v":{"$error":"#REF!"}}]
[{"$error":"#REF!"},null,{"$f":"#REF!","v":{"$error":"#REF!"}},{"$f":"#REF!","v":{"$error":"#REF!"}},null,null,{"$f":"#REF!","v":{"$error":"#REF!"}},800001965,"http://www.xbrl.org/scheme/companyName",null,{"$f":"Periodos!$D$4","v":"2016-12-31"},{"$f":"#REF!","v":{"$error":"#REF!"}},{"$f":"#REF!","v":{"$error":"#REF!"}}]
[{"$error":"#REF!"},null,{"$f":"#REF!","v":{"$error":"#REF!"}},{"$f":"#REF!","v":{"$error":"#REF!"}},null,null,{"$f":"#REF!","v":{"$error":"#REF!"}},800001965,"http://www.xbrl.org/scheme/companyName",null,{"$f":"Periodos!$D$4","v":"2016-12-31"},{"$f":"#REF!","v":{"$error":"#REF!"}},{"$f":"#REF!","v":{"$error":"#REF!"}}]
[{"$error":"#REF!"},null,{"$f":"#REF!","v":{"$error":"#REF!"}},{"$f":"#REF!","v":{"$error":"#REF!"}},null,null,{"$f":"#REF!","v":{"$error":"#REF!"}},800001965,"http://www.xbrl.org/scheme/companyName",null,{"$f":"Periodos!$D$4","v":"2016-12-31"},{"$f":"#REF!","v":{"$error":"#REF!"}},{"$f":"#REF!","v":{"$error":"#REF!"}}]
[{"$error":"#REF!"},null,{"$f":"#REF!","v":{"$error":"#REF!"}},{"$f":"#REF!","v":{"$error":"#REF!"}},null,null,{"$f":"#REF!","v":{"$error":"#REF!"}},800001965,"http://www.xbrl.org/scheme/companyName",null,{"$f":"Periodos!$D$4","v":"2016-12-31"},{"$f":"#REF!","v":{"$error":"#REF!"}},{"$f":"#REF!","v":{"$error":"#REF!"}}]
[{"$error":"#REF!"},null,{"$f":"#REF!","v":{"$error":"#REF!"}},{"$f":"#REF!","v":{"$error":"#REF!"}},0,"peso",{"$f":"#REF!","v":{"$error":"#REF!"}},800001965,"http://www.xbrl.org/scheme/companyName",null,{"$f":"Periodos!$D$4","v":"2016-12-31"},{"$f":"#REF!","v":{"$error":"#REF!"}},{"$f":"#REF!","v":{"$error":"#REF!"}}]
["/*",null,"--24--"]
[{"$error":"#REF!"},null,{"$f":"#REF!","v":{"$error":"#REF!"}},{"$f":"#REF!","v":{"$error":"#REF!"}},null,null,{"$f":"#REF!","v":{"$error":"#REF!"}},800001965,"http://www.xbrl.org/scheme/companyName",null,{"$f":"Periodos!$D$4","v":"2016-12-31"},{"$f":"#REF!","v":{"$error":"#REF!"}},{"$f":"#REF!","v":{"$error":"#REF!"}}]
[{"$f":"IF(G4065=\"\",\"/*\",\"\")","v":{"$error":"#REF!"}},null,{"$f":"#REF!","v":{"$error":"#REF!"}},{"$f":"#REF!","v":{"$error":"#REF!"}},null,null,{"$f":"#REF!","v":{"$error":"#REF!"}},800001965,"http://www.xbrl.org/scheme/companyName",null,{"$f":"Periodos!$D$4","v":"2016-12-31"},{"$f":"#REF!","v":{"$error":"#REF!"}},{"$f":"#REF!","v":{"$error":"#REF!"}}]
[{"$error":"#REF!"},null,{"$f":"#REF!","v":{"$error":"#REF!"}},{"$f":"#REF!","v":{"$error":"#REF!"}},null,null,{"$f":"#REF!","v":{"$error":"#REF!"}},800001965,"http://www.xbrl.org/scheme/companyName",null,{"$f":"Periodos!$D$4","v":"2016-12-31"},{"$f":"#REF!","v":{"$error":"#REF!"}},{"$f":"#REF!","v":{"$error":"#REF!"}}]
[{"$error":"#REF!"},null,{"$f":"#REF!","v":{"$error":"#REF!"}},{"$f":"#REF!","v":{"$error":"#REF!"}},null,null,{"$f":"#REF!","v":{"$error":"#REF!"}},800001965,"http://www.xbrl.org/scheme/companyName",null,{"$f":"Periodos!$D$4","v":"2016-12-31"},{"$f":"#REF!","v":{"$error":"#REF!"}},{"$f":"#REF!","v":{"$error":"#REF!"}}]
[{"$error":"#REF!"},null,{"$f":"#REF!","v":{"$error":"#REF!"}},{"$f":"#REF!","v":{"$error":"#REF!"}},null,null,{"$f":"#REF!","v":{"$error":"#REF!"}},800001965,"http://www.xbrl.org/scheme/companyName",null,{"$f":"Periodos!$D$4","v":"2016-12-31"},{"$f":"#REF!","v":{"$error":"#REF!"}},{"$f":"#REF!","v":{"$error":"#REF!"}}]
[{"$error":"#REF!"},null,{"$f":"#REF!","v":{"$error":"#REF!"}},{"$f":"#REF!","v":{"$error":"#REF!"}},null,null,{"$f":"#REF!","v":{"$error":"#REF!"}},800001965,"http://www.xbrl.org/scheme/companyName",null,{"$f":"Periodos!$D$4","v":"2016-12-31"},{"$f":"#REF!","v":{"$error":"#REF!"}},{"$f":"#REF!","v":{"$error":"#REF!"}}]
[{"$error":"#REF!"},null,{"$f":"#REF!","v":{"$error":"#REF!"}},{"$f":"#REF!","v":{"$error":"#REF!"}},null,null,{"$f":"#REF!","v":{"$error":"#REF!"}},800001965,"http://www.xbrl.org/scheme/companyName",null,{"$f":"Periodos!$D$4","v":"2016-12-31"},{"$f":"#REF!","v":{"$error":"#REF!"}},{"$f":"#REF!","v":{"$error":"#REF!"}}]
[{"$error":"#REF!"},null,{"$f":"#REF!","v":{"$error":"#REF!"}},{"$f":"#REF!","v":{"$error":"#REF!"}},null,null,{"$f":"#REF!","v":{"$error":"#REF!"}},800001965,"http://www.xbrl.org/scheme/companyName",null,{"$f":"Periodos!$D$4","v":"2016-12-31"},{"$f":"#REF!","v":{"$error":"#REF!"}},{"$f":"#REF!","v":{"$error":"#REF!"}}]
[{"$error":"#REF!"},null,{"$f":"#REF!","v":{"$error":"#REF!"}},{"$f":"#REF!","v":{"$error":"#REF!"}},null,null,{"$f":"#REF!","v":{"$error":"#REF!"}},800001965,"http://www.xbrl.org/scheme/companyName",null,{"$f":"Periodos!$D$4","v":"2016-12-31"},{"$f":"#REF!","v":{"$error":"#REF!"}},{"$f":"#REF!","v":{"$error":"#REF!"}}]
[{"$error":"#REF!"},null,{"$f":"#REF!","v":{"$error":"#REF!"}},{"$f":"#REF!","v":{"$error":"#REF!"}},null,null,{"$f":"#REF!","v":{"$error":"#REF!"}},800001965,"http://www.xbrl.org/scheme/companyName",null,{"$f":"Periodos!$D$4","v":"2016-12-31"},{"$f":"#REF!","v":{"$error":"#REF!"}},{"$f":"#REF!","v":{"$error":"#REF!"}}]
[{"$error":"#REF!"},null,{"$f":"#REF!","v":{"$error":"#REF!"}},{"$f":"#REF!","v":{"$error":"#REF!"}},null,null,{"$f":"#REF!","v":{"$error":"#REF!"}},800001965,"http://www.xbrl.org/scheme/companyName",null,{"$f":"Periodos!$D$4","v":"2016-12-31"},{"$f":"#REF!","v":{"$error":"#REF!"}},{"$f":"#REF!","v":{"$error":"#REF!"}}]
[{"$error":"#REF!"},null,{"$f":"#REF!","v":{"$error":"#REF!"}},{"$f":"#REF!","v":{"$error":"#REF!"}},0,"peso",{"$f":"#REF!","v":{"$error":"#REF!"}},800001965,"http://www.xbrl.org/scheme/companyName",null,{"$f":"Periodos!$D$4","v":"2016-12-31"},{"$f":"#REF!","v":{"$error":"#REF!"}},{"$f":"#REF!","v":{"$error":"#REF!"}}]
["/*",null,"--25--"]
[{"$error":"#REF!"},null,{"$f":"#REF!","v":{"$error":"#REF!"}},{"$f":"#REF!","v":{"$error":"#REF!"}},null,null,{"$f":"#REF!","v":{"$error":"#REF!"}},800001965,"http://www.xbrl.org/scheme/companyName",null,{"$f":"Periodos!$D$4","v":"2016-12-31"},{"$f":"#REF!","v":{"$error":"#REF!"}},{"$f":"#REF!","v":{"$error":"#REF!"}}]
[{"$error":"#REF!"},null,{"$f":"#REF!","v":{"$error":"#REF!"}},{"$f":"#REF!","v":{"$error":"#REF!"}},null,null,{"$f":"#REF!","v":{"$error":"#REF!"}},800001965,"http://www.xbrl.org/scheme/companyName",null,{"$f":"Periodos!$D$4","v":"2016-12-31"},{"$f":"#REF!","v":{"$error":"#REF!"}},{"$f":"#REF!","v":{"$error":"#REF!"}}]
[{"$error":"#REF!"},null,{"$f":"#REF!","v":{"$error":"#REF!"}},{"$f":"#REF!","v":{"$error":"#REF!"}},null,null,{"$f":"#REF!","v":{"$error":"#REF!"}},800001965,"http://www.xbrl.org/scheme/companyName",null,{"$f":"Periodos!$D$4","v":"2016-12-31"},{"$f":"#REF!","v":{"$error":"#REF!"}},{"$f":"#REF!","v":{"$error":"#REF!"}}]
[{"$error":"#REF!"},null,{"$f":"#REF!","v":{"$error":"#REF!"}},{"$f":"#REF!","v":{"$error":"#REF!"}},null,null,{"$f":"#REF!","v":{"$error":"#REF!"}},800001965,"http://www.xbrl.org/scheme/companyName",null,{"$f":"Periodos!$D$4","v":"2016-12-31"},{"$f":"#REF!","v":{"$error":"#REF!"}},{"$f":"#REF!","v":{"$error":"#REF!"}}]
[{"$error":"#REF!"},null,{"$f":"#REF!","v":{"$error":"#REF!"}},{"$f":"#REF!","v":{"$error":"#REF!"}},null,null,{"$f":"#REF!","v":{"$error":"#REF!"}},800001965,"http://www.xbrl.org/scheme/companyName",null,{"$f":"Periodos!$D$4","v":"2016-12-31"},{"$f":"#REF!","v":{"$error":"#REF!"}},{"$f":"#REF!","v":{"$error":"#REF!"}}]
[{"$error":"#REF!"},null,{"$f":"#REF!","v":{"$error":"#REF!"}},{"$f":"#REF!","v":{"$error":"#REF!"}},null,null,{"$f":"#REF!","v":{"$error":"#REF!"}},800001965,"http://www.xbrl.org/scheme/companyName",null,{"$f":"Periodos!$D$4","v":"2016-12-31"},{"$f":"#REF!","v":{"$error":"#REF!"}},{"$f":"#REF!","v":{"$error":"#REF!"}}]
[{"$error":"#REF!"},null,{"$f":"#REF!","v":{"$error":"#REF!"}},{"$f":"#REF!","v":{"$error":"#REF!"}},null,null,{"$f":"#REF!","v":{"$error":"#REF!"}},800001965,"http://www.xbrl.org/scheme/companyName",null,{"$f":"Periodos!$D$4","v":"2016-12-31"},{"$f":"#REF!","v":{"$error":"#REF!"}},{"$f":"#REF!","v":{"$error":"#REF!"}}]
[{"$error":"#REF!"},null,{"$f":"#REF!","v":{"$error":"#REF!"}},{"$f":"#REF!","v":{"$error":"#REF!"}},null,null,{"$f":"#REF!","v":{"$error":"#REF!"}},800001965,"http://www.xbrl.org/scheme/companyName",null,{"$f":"Periodos!$D$4","v":"2016-12-31"},{"$f":"#REF!","v":{"$error":"#REF!"}},{"$f":"#REF!","v":{"$error":"#REF!"}}]
[{"$error":"#REF!"},null,{"$f":"#REF!","v":{"$error":"#REF!"}},{"$f":"#REF!","v":{"$error":"#REF!"}},null,null,{"$f":"#REF!","v":{"$error":"#REF!"}},800001965,"http://www.xbrl.org/scheme/companyName",null,{"$f":"Periodos!$D$4","v":"2016-12-31"},{"$f":"#REF!","v":{"$error":"#REF!"}},{"$f":"#REF!","v":{"$error":"#REF!"}}]
[{"$error":"#REF!"},null,{"$f":"#REF!","v":{"$error":"#REF!"}},{"$f":"#REF!","v":{"$error":"#REF!"}},null,null,{"$f":"#REF!","v":{"$error":"#REF!"}},800001965,"http://www.xbrl.org/scheme/companyName",null,{"$f":"Periodos!$D$4","v":"2016-12-31"},{"$f":"#REF!","v":{"$error":"#REF!"}},{"$f":"#REF!","v":{"$error":"#REF!"}}]
[{"$error":"#REF!"},null,{"$f":"#REF!","v":{"$error":"#REF!"}},{"$f":"#REF!","v":{"$error":"#REF!"}},null,null,{"$f":"#REF!","v":{"$error":"#REF!"}},800001965,"http://www.xbrl.org/scheme/companyName",null,{"$f":"Periodos!$D$4","v":"2016-12-31"},{"$f":"#REF!","v":{"$error":"#REF!"}},{"$f":"#REF!","v":{"$error":"#REF!"}}]
[{"$error":"#REF!"},null,{"$f":"#REF!","v":{"$error":"#REF!"}},{"$f":"#REF!","v":{"$error":"#REF!"}},0,"peso",{"$f":"#REF!","v":{"$error":"#REF!"}},800001965,"http://www.xbrl.org/scheme/companyName",null,{"$f":"Periodos!$D$4","v":"2016-12-31"},{"$f":"#REF!","v":{"$error":"#REF!"}},{"$f":"#REF!","v":{"$error":"#REF!"}}]
["/*",null,"--26--"]
[{"$error":"#REF!"},null,{"$f":"#REF!","v":{"$error":"#REF!"}},{"$f":"#REF!","v":{"$error":"#REF!"}},null,null,{"$f":"#REF!","v":{"$error":"#REF!"}},800001965,"http://www.xbrl.org/scheme/companyName",null,{"$f":"Periodos!$D$4","v":"2016-12-31"},{"$f":"#REF!","v":{"$error":"#REF!"}},{"$f":"#REF!","v":{"$error":"#REF!"}}]
[{"$error":"#REF!"},null,{"$f":"#REF!","v":{"$error":"#REF!"}},{"$f":"#REF!","v":{"$error":"#REF!"}},null,null,{"$f":"#REF!","v":{"$error":"#REF!"}},800001965,"http://www.xbrl.org/scheme/companyName",null,{"$f":"Periodos!$D$4","v":"2016-12-31"},{"$f":"#REF!","v":{"$error":"#REF!"}},{"$f":"#REF!","v":{"$error":"#REF!"}}]
[{"$error":"#REF!"},null,{"$f":"#REF!","v":{"$error":"#REF!"}},{"$f":"#REF!","v":{"$error":"#REF!"}},null,null,{"$f":"#REF!","v":{"$error":"#REF!"}},800001965,"http://www.xbrl.org/scheme/companyName",null,{"$f":"Periodos!$D$4","v":"2016-12-31"},{"$f":"#REF!","v":{"$error":"#REF!"}},{"$f":"#REF!","v":{"$error":"#REF!"}}]
[{"$error":"#REF!"},null,{"$f":"#REF!","v":{"$error":"#REF!"}},{"$f":"#REF!","v":{"$error":"#REF!"}},null,null,{"$f":"#REF!","v":{"$error":"#REF!"}},800001965,"http://www.xbrl.org/scheme/companyName",null,{"$f":"Periodos!$D$4","v":"2016-12-31"},{"$f":"#REF!","v":{"$error":"#REF!"}},{"$f":"#REF!","v":{"$error":"#REF!"}}]
[{"$error":"#REF!"},null,{"$f":"#REF!","v":{"$error":"#REF!"}},{"$f":"#REF!","v":{"$error":"#REF!"}},null,null,{"$f":"#REF!","v":{"$error":"#REF!"}},800001965,"http://www.xbrl.org/scheme/companyName",null,{"$f":"Periodos!$D$4","v":"2016-12-31"},{"$f":"#REF!","v":{"$error":"#REF!"}},{"$f":"#REF!","v":{"$error":"#REF!"}}]
[{"$error":"#REF!"},null,{"$f":"#REF!","v":{"$error":"#REF!"}},{"$f":"#REF!","v":{"$error":"#REF!"}},null,null,{"$f":"#REF!","v":{"$error":"#REF!"}},800001965,"http://www.xbrl.org/scheme/companyName",null,{"$f":"Periodos!$D$4","v":"2016-12-31"},{"$f":"#REF!","v":{"$error":"#REF!"}},{"$f":"#REF!","v":{"$error":"#REF!"}}]
[{"$error":"#REF!"},null,{"$f":"#REF!","v":{"$error":"#REF!"}},{"$f":"#REF!","v":{"$error":"#REF!"}},null,null,{"$f":"#REF!","v":{"$error":"#REF!"}},800001965,"http://www.xbrl.org/scheme/companyName",null,{"$f":"Periodos!$D$4","v":"2016-12-31"},{"$f":"#REF!","v":{"$error":"#REF!"}},{"$f":"#REF!","v":{"$error":"#REF!"}}]
[{"$error":"#REF!"},null,{"$f":"#REF!","v":{"$error":"#REF!"}},{"$f":"#REF!","v":{"$error":"#REF!"}},null,null,{"$f":"#REF!","v":{"$error":"#REF!"}},800001965,"http://www.xbrl.org/scheme/companyName",null,{"$f":"Periodos!$D$4","v":"2016-12-31"},{"$f":"#REF!","v":{"$error":"#REF!"}},{"$f":"#REF!","v":{"$error":"#REF!"}}]
[{"$error":"#REF!"},null,{"$f":"#REF!","v":{"$error":"#REF!"}},{"$f":"#REF!","v":{"$error":"#REF!"}},null,null,{"$f":"#REF!","v":{"$error":"#REF!"}},800001965,"http://www.xbrl.org/scheme/companyName",null,{"$f":"Periodos!$D$4","v":"2016-12-31"},{"$f":"#REF!","v":{"$error":"#REF!"}},{"$f":"#REF!","v":{"$error":"#REF!"}}]
[{"$error":"#REF!"},null,{"$f":"#REF!","v":{"$error":"#REF!"}},{"$f":"#REF!","v":{"$error":"#REF!"}},null,null,{"$f":"#REF!","v":{"$error":"#REF!"}},800001965,"http://www.xbrl.org/scheme/companyName",null,{"$f":"Periodos!$D$4","v":"2016-12-31"},{"$f":"#REF!","v":{"$error":"#REF!"}},{"$f":"#REF!","v":{"$error":"#REF!"}}]
[{"$error":"#REF!"},null,{"$f":"#REF!","v":{"$error":"#REF!"}},{"$f":"#REF!","v":{"$error":"#REF!"}},null,null,{"$f":"#REF!","v":{"$error":"#REF!"}},800001965,"http://www.xbrl.org/scheme/companyName",null,{"$f":"Periodos!$D$4","v":"2016-12-31"},{"$f":"#REF!","v":{"$error":"#REF!"}},{"$f":"#REF!","v":{"$error":"#REF!"}}]
[{"$error":"#REF!"},null,{"$f":"#REF!","v":{"$error":"#REF!"}},{"$f":"#REF!","v":{"$error":"#REF!"}},0,"peso",{"$f":"#REF!","v":{"$error":"#REF!"}},800001965,"http://www.xbrl.org/scheme/companyName",null,{"$f":"Periodos!$D$4","v":"2016-12-31"},{"$f":"#REF!","v":{"$error":"#REF!"}},{"$f":"#REF!","v":{"$error":"#REF!"}}]
["/*",null,"--27--"]
[{"$error":"#REF!"},null,{"$f":"#REF!","v":{"$error":"#REF!"}},{"$f":"#REF!","v":{"$error":"#REF!"}},null,null,{"$f":"#REF!","v":{"$error":"#REF!"}},800001965,"http://www.xbrl.org/scheme/companyName",null,{"$f":"Periodos!$D$4","v":"2016-12-31"},{"$f":"#REF!","v":{"$error":"#REF!"}},{"$f":"#REF!","v":{"$error":"#REF!"}}]
[{"$error":"#REF!"},null,{"$f":"#REF!","v":{"$error":"#REF!"}},{"$f":"#REF!","v":{"$error":"#REF!"}},null,null,{"$f":"#REF!","v":{"$error":"#REF!"}},800001965,"http://www.xbrl.org/scheme/companyName",null,{"$f":"Periodos!$D$4","v":"2016-12-31"},{"$f":"#REF!","v":{"$error":"#REF!"}},{"$f":"#REF!","v":{"$error":"#REF!"}}]
[{"$error":"#REF!"},null,{"$f":"#REF!","v":{"$error":"#REF!"}},{"$f":"#REF!","v":{"$error":"#REF!"}},null,null,{"$f":"#REF!","v":{"$error":"#REF!"}},800001965,"http://www.xbrl.org/scheme/companyName",null,{"$f":"Periodos!$D$4","v":"2016-12-31"},{"$f":"#REF!","v":{"$error":"#REF!"}},{"$f":"#REF!","v":{"$error":"#REF!"}}]
[{"$error":"#REF!"},null,{"$f":"#REF!","v":{"$error":"#REF!"}},{"$f":"#REF!","v":{"$error":"#REF!"}},null,null,{"$f":"#REF!","v":{"$error":"#REF!"}},800001965,"http://www.xbrl.org/scheme/companyName",null,{"$f":"Periodos!$D$4","v":"2016-12-31"},{"$f":"#REF!","v":{"$error":"#REF!"}},{"$f":"#REF!","v":{"$error":"#REF!"}}]
[{"$error":"#REF!"},null,{"$f":"#REF!","v":{"$error":"#REF!"}},{"$f":"#REF!","v":{"$error":"#REF!"}},null,null,{"$f":"#REF!","v":{"$error":"#REF!"}},800001965,"http://www.xbrl.org/scheme/companyName",null,{"$f":"Periodos!$D$4","v":"2016-12-31"},{"$f":"#REF!","v":{"$error":"#REF!"}},{"$f":"#REF!","v":{"$error":"#REF!"}}]
[{"$error":"#REF!"},null,{"$f":"#REF!","v":{"$error":"#REF!"}},{"$f":"#REF!","v":{"$error":"#REF!"}},null,null,{"$f":"#REF!","v":{"$error":"#REF!"}},800001965,"http://www.xbrl.org/scheme/companyName",null,{"$f":"Periodos!$D$4","v":"2016-12-31"},{"$f":"#REF!","v":{"$error":"#REF!"}},{"$f":"#REF!","v":{"$error":"#REF!"}}]
[{"$error":"#REF!"},null,{"$f":"#REF!","v":{"$error":"#REF!"}},{"$f":"#REF!","v":{"$error":"#REF!"}},null,null,{"$f":"#REF!","v":{"$error":"#REF!"}},800001965,"http://www.xbrl.org/scheme/companyName",null,{"$f":"Periodos!$D$4","v":"2016-12-31"},{"$f":"#REF!","v":{"$error":"#REF!"}},{"$f":"#REF!","v":{"$error":"#REF!"}}]
[{"$error":"#REF!"},null,{"$f":"#REF!","v":{"$error":"#REF!"}},{"$f":"#REF!","v":{"$error":"#REF!"}},null,null,{"$f":"#REF!","v":{"$error":"#REF!"}},800001965,"http://www.xbrl.org/scheme/companyName",null,{"$f":"Periodos!$D$4","v":"2016-12-31"},{"$f":"#REF!","v":{"$error":"#REF!"}},{"$f":"#REF!","v":{"$error":"#REF!"}}]
[{"$error":"#REF!"},null,{"$f":"#REF!","v":{"$error":"#REF!"}},{"$f":"#REF!","v":{"$error":"#REF!"}},null,null,{"$f":"#REF!","v":{"$error":"#REF!"}},800001965,"http://www.xbrl.org/scheme/companyName",null,{"$f":"Periodos!$D$4","v":"2016-12-31"},{"$f":"#REF!","v":{"$error":"#REF!"}},{"$f":"#REF!","v":{"$error":"#REF!"}}]
[{"$error":"#REF!"},null,{"$f":"#REF!","v":{"$error":"#REF!"}},{"$f":"#REF!","v":{"$error":"#REF!"}},null,null,{"$f":"#REF!","v":{"$error":"#REF!"}},800001965,"http://www.xbrl.org/scheme/companyName",null,{"$f":"Periodos!$D$4","v":"2016-12-31"},{"$f":"#REF!","v":{"$error":"#REF!"}},{"$f":"#REF!","v":{"$error":"#REF!"}}]
[{"$error":"#REF!"},null,{"$f":"#REF!","v":{"$error":"#REF!"}},{"$f":"#REF!","v":{"$error":"#REF!"}},null,null,{"$f":"#REF!","v":{"$error":"#REF!"}},800001965,"http://www.xbrl.org/scheme/companyName",null,{"$f":"Periodos!$D$4","v":"2016-12-31"},{"$f":"#REF!","v":{"$error":"#REF!"}},{"$f":"#REF!","v":{"$error":"#REF!"}}]
[{"$error":"#REF!"},null,{"$f":"#REF!","v":{"$error":"#REF!"}},{"$f":"#REF!","v":{"$error":"#REF!"}},0,"peso",{"$f":"#REF!","v":{"$error":"#REF!"}},800001965,"http://www.xbrl.org/scheme/companyName",null,{"$f":"Periodos!$D$4","v":"2016-12-31"},{"$f":"#REF!","v":{"$error":"#REF!"}},{"$f":"#REF!","v":{"$error":"#REF!"}}]
["/*",null,"--28--"]
[{"$error":"#REF!"},null,{"$f":"#REF!","v":{"$error":"#REF!"}},{"$f":"#REF!","v":{"$error":"#REF!"}},null,null,{"$f":"#REF!","v":{"$error":"#REF!"}},800001965,"http://www.xbrl.org/scheme/companyName",null,{"$f":"Periodos!$D$4","v":"2016-12-31"},{"$f":"#REF!","v":{"$error":"#REF!"}},{"$f":"#REF!","v":{"$error":"#REF!"}}]
[{"$error":"#REF!"},null,{"$f":"#REF!","v":{"$error":"#REF!"}},{"$f":"#REF!","v":{"$error":"#REF!"}},null,null,{"$f":"#REF!","v":{"$error":"#REF!"}},800001965,"http://www.xbrl.org/scheme/companyName",null,{"$f":"Periodos!$D$4","v":"2016-12-31"},{"$f":"#REF!","v":{"$error":"#REF!"}},{"$f":"#REF!","v":{"$error":"#REF!"}}]
[{"$error":"#REF!"},null,{"$f":"#REF!","v":{"$error":"#REF!"}},{"$f":"#REF!","v":{"$error":"#REF!"}},null,null,{"$f":"#REF!","v":{"$error":"#REF!"}},800001965,"http://www.xbrl.org/scheme/companyName",null,{"$f":"Periodos!$D$4","v":"2016-12-31"},{"$f":"#REF!","v":{"$error":"#REF!"}},{"$f":"#REF!","v":{"$error":"#REF!"}}]
[{"$error":"#REF!"},null,{"$f":"#REF!","v":{"$error":"#REF!"}},{"$f":"#REF!","v":{"$error":"#REF!"}},null,null,{"$f":"#REF!","v":{"$error":"#REF!"}},800001965,"http://www.xbrl.org/scheme/companyName",null,{"$f":"Periodos!$D$4","v":"2016-12-31"},{"$f":"#REF!","v":{"$error":"#REF!"}},{"$f":"#REF!","v":{"$error":"#REF!"}}]
[{"$error":"#REF!"},null,{"$f":"#REF!","v":{"$error":"#REF!"}},{"$f":"#REF!","v":{"$error":"#REF!"}},null,null,{"$f":"#REF!","v":{"$error":"#REF!"}},800001965,"http://www.xbrl.org/scheme/companyName",null,{"$f":"Periodos!$D$4","v":"2016-12-31"},{"$f":"#REF!","v":{"$error":"#REF!"}},{"$f":"#REF!","v":{"$error":"#REF!"}}]
[{"$error":"#REF!"},null,{"$f":"#REF!","v":{"$error":"#REF!"}},{"$f":"#REF!","v":{"$error":"#REF!"}},null,null,{"$f":"#REF!","v":{"$error":"#REF!"}},800001965,"http://www.xbrl.org/scheme/companyName",null,{"$f":"Periodos!$D$4","v":"2016-12-31"},{"$f":"#REF!","v":{"$error":"#REF!"}},{"$f":"#REF!","v":{"$error":"#REF!"}}]
[{"$error":"#REF!"},null,{"$f":"#REF!","v":{"$error":"#REF!"}},{"$f":"#REF!","v":{"$error":"#REF!"}},null,null,{"$f":"#REF!","v":{"$error":"#REF!"}},800001965,"http://www.xbrl.org/scheme/companyName",null,{"$f":"Periodos!$D$4","v":"2016-12-31"},{"$f":"#REF!","v":{"$error":"#REF!"}},{"$f":"#REF!","v":{"$error":"#REF!"}}]
[{"$error":"#REF!"},null,{"$f":"#REF!","v":{"$error":"#REF!"}},{"$f":"#REF!","v":{"$error":"#REF!"}},null,null,{"$f":"#REF!","v":{"$error":"#REF!"}},800001965,"http://www.xbrl.org/scheme/companyName",null,{"$f":"Periodos!$D$4","v":"2016-12-31"},{"$f":"#REF!","v":{"$error":"#REF!"}},{"$f":"#REF!","v":{"$error":"#REF!"}}]
[{"$error":"#REF!"},null,{"$f":"#REF!","v":{"$error":"#REF!"}},{"$f":"#REF!","v":{"$error":"#REF!"}},null,null,{"$f":"#REF!","v":{"$error":"#REF!"}},800001965,"http://www.xbrl.org/scheme/companyName",null,{"$f":"Periodos!$D$4","v":"2016-12-31"},{"$f":"#REF!","v":{"$error":"#REF!"}},{"$f":"#REF!","v":{"$error":"#REF!"}}]
[{"$error":"#REF!"},null,{"$f":"#REF!","v":{"$error":"#REF!"}},{"$f":"#REF!","v":{"$error":"#REF!"}},null,null,{"$f":"#REF!","v":{"$error":"#REF!"}},800001965,"http://www.xbrl.org/scheme/companyName",null,{"$f":"Periodos!$D$4","v":"2016-12-31"},{"$f":"#REF!","v":{"$error":"#REF!"}},{"$f":"#REF!","v":{"$error":"#REF!"}}]
[{"$error":"#REF!"},null,{"$f":"#REF!","v":{"$error":"#REF!"}},{"$f":"#REF!","v":{"$error":"#REF!"}},null,null,{"$f":"#REF!","v":{"$error":"#REF!"}},800001965,"http://www.xbrl.org/scheme/companyName",null,{"$f":"Periodos!$D$4","v":"2016-12-31"},{"$f":"#REF!","v":{"$error":"#REF!"}},{"$f":"#REF!","v":{"$error":"#REF!"}}]
[{"$error":"#REF!"},null,{"$f":"#REF!","v":{"$error":"#REF!"}},{"$f":"#REF!","v":{"$error":"#REF!"}},0,"peso",{"$f":"#REF!","v":{"$error":"#REF!"}},800001965,"http://www.xbrl.org/scheme/companyName",null,{"$f":"Periodos!$D$4","v":"2016-12-31"},{"$f":"#REF!","v":{"$error":"#REF!"}},{"$f":"#REF!","v":{"$error":"#REF!"}}]
["/*",null,"--29--"]
[{"$f":"IF(G4129=\"\",\"/*\",\"\")","v":{"$error":"#REF!"}},null,{"$f":"#REF!","v":{"$error":"#REF!"}},{"$f":"#REF!","v":{"$error":"#REF!"}},null,null,{"$f":"#REF!","v":{"$error":"#REF!"}},800001965,"http://www.xbrl.org/scheme/companyName",null,{"$f":"Periodos!$D$4","v":"2016-12-31"},{"$f":"#REF!","v":{"$error":"#REF!"}},{"$f":"#REF!","v":{"$error":"#REF!"}}]
[{"$error":"#REF!"},null,{"$f":"#REF!","v":{"$error":"#REF!"}},{"$f":"#REF!","v":{"$error":"#REF!"}},null,null,{"$f":"#REF!","v":{"$error":"#REF!"}},800001965,"http://www.xbrl.org/scheme/companyName",null,{"$f":"Periodos!$D$4","v":"2016-12-31"},{"$f":"#REF!","v":{"$error":"#REF!"}},{"$f":"#REF!","v":{"$error":"#REF!"}}]
[{"$error":"#REF!"},null,{"$f":"#REF!","v":{"$error":"#REF!"}},{"$f":"#REF!","v":{"$error":"#REF!"}},null,null,{"$f":"#REF!","v":{"$error":"#REF!"}},800001965,"http://www.xbrl.org/scheme/companyName",null,{"$f":"Periodos!$D$4","v":"2016-12-31"},{"$f":"#REF!","v":{"$error":"#REF!"}},{"$f":"#REF!","v":{"$error":"#REF!"}}]
[{"$error":"#REF!"},null,{"$f":"#REF!","v":{"$error":"#REF!"}},{"$f":"#REF!","v":{"$error":"#REF!"}},null,null,{"$f":"#REF!","v":{"$error":"#REF!"}},800001965,"http://www.xbrl.org/scheme/companyName",null,{"$f":"Periodos!$D$4","v":"2016-12-31"},{"$f":"#REF!","v":{"$error":"#REF!"}},{"$f":"#REF!","v":{"$error":"#REF!"}}]
[{"$error":"#REF!"},null,{"$f":"#REF!","v":{"$error":"#REF!"}},{"$f":"#REF!","v":{"$error":"#REF!"}},null,null,{"$f":"#REF!","v":{"$error":"#REF!"}},800001965,"http://www.xbrl.org/scheme/companyName",null,{"$f":"Periodos!$D$4","v":"2016-12-31"},{"$f":"#REF!","v":{"$error":"#REF!"}},{"$f":"#REF!","v":{"$error":"#REF!"}}]
[{"$error":"#REF!"},null,{"$f":"#REF!","v":{"$error":"#REF!"}},{"$f":"#REF!","v":{"$error":"#REF!"}},null,null,{"$f":"#REF!","v":{"$error":"#REF!"}},800001965,"http://www.xbrl.org/scheme/companyName",null,{"$f":"Periodos!$D$4","v":"2016-12-31"},{"$f":"#REF!","v":{"$error":"#REF!"}},{"$f":"#REF!","v":{"$error":"#REF!"}}]
[{"$error":"#REF!"},null,{"$f":"#REF!","v":{"$error":"#REF!"}},{"$f":"#REF!","v":{"$error":"#REF!"}},null,null,{"$f":"#REF!","v":{"$error":"#REF!"}},800001965,"http://www.xbrl.org/scheme/companyName",null,{"$f":"Periodos!$D$4","v":"2016-12-31"},{"$f":"#REF!","v":{"$error":"#REF!"}},{"$f":"#REF!","v":{"$error":"#REF!"}}]
[{"$error":"#REF!"},null,{"$f":"#REF!","v":{"$error":"#REF!"}},{"$f":"#REF!","v":{"$error":"#REF!"}},null,null,{"$f":"#REF!","v":{"$error":"#REF!"}},800001965,"http://www.xbrl.org/scheme/companyName",null,{"$f":"Periodos!$D$4","v":"2016-12-31"},{"$f":"#REF!","v":{"$error":"#REF!"}},{"$f":"#REF!","v":{"$error":"#REF!"}}]
[{"$error":"#REF!"},null,{"$f":"#REF!","v":{"$error":"#REF!"}},{"$f":"#REF!","v":{"$error":"#REF!"}},null,null,{"$f":"#REF!","v":{"$error":"#REF!"}},800001965,"http://www.xbrl.org/scheme/companyName",null,{"$f":"Periodos!$D$4","v":"2016-12-31"},{"$f":"#REF!","v":{"$error":"#REF!"}},{"$f":"#REF!","v":{"$error":"#REF!"}}]
[{"$error":"#REF!"},null,{"$f":"#REF!","v":{"$error":"#REF!"}},{"$f":"#REF!","v":{"$error":"#REF!"}},null,null,{"$f":"#REF!","v":{"$error":"#REF!"}},800001965,"http://www.xbrl.org/scheme/companyName",null,{"$f":"Periodos!$D$4","v":"2016-12-31"},{"$f":"#REF!","v":{"$error":"#REF!"}},{"$f":"#REF!","v":{"$error":"#REF!"}}]
[{"$error":"#REF!"},null,{"$f":"#REF!","v":{"$error":"#REF!"}},{"$f":"#REF!","v":{"$error":"#REF!"}},null,null,{"$f":"#REF!","v":{"$error":"#REF!"}},800001965,"http://www.xbrl.org/scheme/companyName",null,{"$f":"Periodos!$D$4","v":"2016-12-31"},{"$f":"#REF!","v":{"$error":"#REF!"}},{"$f":"#REF!","v":{"$error":"#REF!"}}]
[{"$error":"#REF!"},null,{"$f":"#REF!","v":{"$error":"#REF!"}},{"$f":"#REF!","v":{"$error":"#REF!"}},0,"peso",{"$f":"#REF!","v":{"$error":"#REF!"}},800001965,"http://www.xbrl.org/scheme/companyName",null,{"$f":"Periodos!$D$4","v":"2016-12-31"},{"$f":"#REF!","v":{"$error":"#REF!"}},{"$f":"#REF!","v":{"$error":"#REF!"}}]
["/*",null,"--30--"]
[{"$error":"#REF!"},null,{"$f":"#REF!","v":{"$error":"#REF!"}},{"$f":"#REF!","v":{"$error":"#REF!"}},null,null,{"$f":"#REF!","v":{"$error":"#REF!"}},800001965,"http://www.xbrl.org/scheme/companyName",null,{"$f":"Periodos!$D$4","v":"2016-12-31"},{"$f":"#REF!","v":{"$error":"#REF!"}},{"$f":"#REF!","v":{"$error":"#REF!"}}]
[{"$error":"#REF!"},null,{"$f":"#REF!","v":{"$error":"#REF!"}},{"$f":"#REF!","v":{"$error":"#REF!"}},null,null,{"$f":"#REF!","v":{"$error":"#REF!"}},800001965,"http://www.xbrl.org/scheme/companyName",null,{"$f":"Periodos!$D$4","v":"2016-12-31"},{"$f":"#REF!","v":{"$error":"#REF!"}},{"$f":"#REF!","v":{"$error":"#REF!"}}]
[{"$error":"#REF!"},null,{"$f":"#REF!","v":{"$error":"#REF!"}},{"$f":"#REF!","v":{"$error":"#REF!"}},null,null,{"$f":"#REF!","v":{"$error":"#REF!"}},800001965,"http://www.xbrl.org/scheme/companyName",null,{"$f":"Periodos!$D$4","v":"2016-12-31"},{"$f":"#REF!","v":{"$error":"#REF!"}},{"$f":"#REF!","v":{"$error":"#REF!"}}]
[{"$error":"#REF!"},null,{"$f":"#REF!","v":{"$error":"#REF!"}},{"$f":"#REF!","v":{"$error":"#REF!"}},null,null,{"$f":"#REF!","v":{"$error":"#REF!"}},800001965,"http://www.xbrl.org/scheme/companyName",null,{"$f":"Periodos!$D$4","v":"2016-12-31"},{"$f":"#REF!","v":{"$error":"#REF!"}},{"$f":"#REF!","v":{"$error":"#REF!"}}]
[{"$error":"#REF!"},null,{"$f":"#REF!","v":{"$error":"#REF!"}},{"$f":"#REF!","v":{"$error":"#REF!"}},null,null,{"$f":"#REF!","v":{"$error":"#REF!"}},800001965,"http://www.xbrl.org/scheme/companyName",null,{"$f":"Periodos!$D$4","v":"2016-12-31"},{"$f":"#REF!","v":{"$error":"#REF!"}},{"$f":"#REF!","v":{"$error":"#REF!"}}]
[{"$error":"#REF!"},null,{"$f":"#REF!","v":{"$error":"#REF!"}},{"$f":"#REF!","v":{"$error":"#REF!"}},null,null,{"$f":"#REF!","v":{"$error":"#REF!"}},800001965,"http://www.xbrl.org/scheme/companyName",null,{"$f":"Periodos!$D$4","v":"2016-12-31"},{"$f":"#REF!","v":{"$error":"#REF!"}},{"$f":"#REF!","v":{"$error":"#REF!"}}]
[{"$error":"#REF!"},null,{"$f":"#REF!","v":{"$error":"#REF!"}},{"$f":"#REF!","v":{"$error":"#REF!"}},null,null,{"$f":"#REF!","v":{"$error":"#REF!"}},800001965,"http://www.xbrl.org/scheme/companyName",null,{"$f":"Periodos!$D$4","v":"2016-12-31"},{"$f":"#REF!","v":{"$error":"#REF!"}},{"$f":"#REF!","v":{"$error":"#REF!"}}]
[{"$error":"#REF!"},null,{"$f":"#REF!","v":{"$error":"#REF!"}},{"$f":"#REF!","v":{"$error":"#REF!"}},null,null,{"$f":"#REF!","v":{"$error":"#REF!"}},800001965,"http://www.xbrl.org/scheme/companyName",null,{"$f":"Periodos!$D$4","v":"2016-12-31"},{"$f":"#REF!","v":{"$error":"#REF!"}},{"$f":"#REF!","v":{"$error":"#REF!"}}]
[{"$error":"#REF!"},null,{"$f":"#REF!","v":{"$error":"#REF!"}},{"$f":"#REF!","v":{"$error":"#REF!"}},null,null,{"$f":"#REF!","v":{"$error":"#REF!"}},800001965,"http://www.xbrl.org/scheme/companyName",null,{"$f":"Periodos!$D$4","v":"2016-12-31"},{"$f":"#REF!","v":{"$error":"#REF!"}},{"$f":"#REF!","v":{"$error":"#REF!"}}]
[{"$error":"#REF!"},null,{"$f":"#REF!","v":{"$error":"#REF!"}},{"$f":"#REF!","v":{"$error":"#REF!"}},null,null,{"$f":"#REF!","v":{"$error":"#REF!"}},800001965,"http://www.xbrl.org/scheme/companyName",null,{"$f":"Periodos!$D$4","v":"2016-12-31"},{"$f":"#REF!","v":{"$error":"#REF!"}},{"$f":"#REF!","v":{"$error":"#REF!"}}]
[{"$error":"#REF!"},null,{"$f":"#REF!","v":{"$error":"#REF!"}},{"$f":"#REF!","v":{"$error":"#REF!"}},null,null,{"$f":"#REF!","v":{"$error":"#REF!"}},800001965,"http://www.xbrl.org/scheme/companyName",null,{"$f":"Periodos!$D$4","v":"2016-12-31"},{"$f":"#REF!","v":{"$error":"#REF!"}},{"$f":"#REF!","v":{"$error":"#REF!"}}]
[{"$error":"#REF!"},null,{"$f":"#REF!","v":{"$error":"#REF!"}},{"$f":"#REF!","v":{"$error":"#REF!"}},0,"peso",{"$f":"#REF!","v":{"$error":"#REF!"}},800001965,"http://www.xbrl.org/scheme/companyName",null,{"$f":"Periodos!$D$4","v":"2016-12-31"},{"$f":"#REF!","v":{"$error":"#REF!"}},{"$f":"#REF!","v":{"$error":"#REF!"}}]
["/*",null,"--31--"]
[{"$error":"#REF!"},null,{"$f":"#REF!","v":{"$error":"#REF!"}},{"$f":"#REF!","v":{"$error":"#REF!"}},null,null,{"$f":"#REF!","v":{"$error":"#REF!"}},800001965,"http://www.xbrl.org/scheme/companyName",null,{"$f":"Periodos!$D$4","v":"2016-12-31"},{"$f":"#REF!","v":{"$error":"#REF!"}},{"$f":"#REF!","v":{"$error":"#REF!"}}]
[{"$error":"#REF!"},null,{"$f":"#REF!","v":{"$error":"#REF!"}},{"$f":"#REF!","v":{"$error":"#REF!"}},null,null,{"$f":"#REF!","v":{"$error":"#REF!"}},800001965,"http://www.xbrl.org/scheme/companyName",null,{"$f":"Periodos!$D$4","v":"2016-12-31"},{"$f":"#REF!","v":{"$error":"#REF!"}},{"$f":"#REF!","v":{"$error":"#REF!"}}]
[{"$error":"#REF!"},null,{"$f":"#REF!","v":{"$error":"#REF!"}},{"$f":"#REF!","v":{"$error":"#REF!"}},null,null,{"$f":"#REF!","v":{"$error":"#REF!"}},800001965,"http://www.xbrl.org/scheme/companyName",null,{"$f":"Periodos!$D$4","v":"2016-12-31"},{"$f":"#REF!","v":{"$error":"#REF!"}},{"$f":"#REF!","v":{"$error":"#REF!"}}]
[{"$error":"#REF!"},null,{"$f":"#REF!","v":{"$error":"#REF!"}},{"$f":"#REF!","v":{"$error":"#REF!"}},null,null,{"$f":"#REF!","v":{"$error":"#REF!"}},800001965,"http://www.xbrl.org/scheme/companyName",null,{"$f":"Periodos!$D$4","v":"2016-12-31"},{"$f":"#REF!","v":{"$error":"#REF!"}},{"$f":"#REF!","v":{"$error":"#REF!"}}]
[{"$error":"#REF!"},null,{"$f":"#REF!","v":{"$error":"#REF!"}},{"$f":"#REF!","v":{"$error":"#REF!"}},null,null,{"$f":"#REF!","v":{"$error":"#REF!"}},800001965,"http://www.xbrl.org/scheme/companyName",null,{"$f":"Periodos!$D$4","v":"2016-12-31"},{"$f":"#REF!","v":{"$error":"#REF!"}},{"$f":"#REF!","v":{"$error":"#REF!"}}]
[{"$error":"#REF!"},null,{"$f":"#REF!","v":{"$error":"#REF!"}},{"$f":"#REF!","v":{"$error":"#REF!"}},null,null,{"$f":"#REF!","v":{"$error":"#REF!"}},800001965,"http://www.xbrl.org/scheme/companyName",null,{"$f":"Periodos!$D$4","v":"2016-12-31"},{"$f":"#REF!","v":{"$error":"#REF!"}},{"$f":"#REF!","v":{"$error":"#REF!"}}]
[{"$error":"#REF!"},null,{"$f":"#REF!","v":{"$error":"#REF!"}},{"$f":"#REF!","v":{"$error":"#REF!"}},null,null,{"$f":"#REF!","v":{"$error":"#REF!"}},800001965,"http://www.xbrl.org/scheme/companyName",null,{"$f":"Periodos!$D$4","v":"2016-12-31"},{"$f":"#REF!","v":{"$error":"#REF!"}},{"$f":"#REF!","v":{"$error":"#REF!"}}]
[{"$error":"#REF!"},null,{"$f":"#REF!","v":{"$error":"#REF!"}},{"$f":"#REF!","v":{"$error":"#REF!"}},null,null,{"$f":"#REF!","v":{"$error":"#REF!"}},800001965,"http://www.xbrl.org/scheme/companyName",null,{"$f":"Periodos!$D$4","v":"2016-12-31"},{"$f":"#REF!","v":{"$error":"#REF!"}},{"$f":"#REF!","v":{"$error":"#REF!"}}]
[{"$error":"#REF!"},null,{"$f":"#REF!","v":{"$error":"#REF!"}},{"$f":"#REF!","v":{"$error":"#REF!"}},null,null,{"$f":"#REF!","v":{"$error":"#REF!"}},800001965,"http://www.xbrl.org/scheme/companyName",null,{"$f":"Periodos!$D$4","v":"2016-12-31"},{"$f":"#REF!","v":{"$error":"#REF!"}},{"$f":"#REF!","v":{"$error":"#REF!"}}]
[{"$error":"#REF!"},null,{"$f":"#REF!","v":{"$error":"#REF!"}},{"$f":"#REF!","v":{"$error":"#REF!"}},null,null,{"$f":"#REF!","v":{"$error":"#REF!"}},800001965,"http://www.xbrl.org/scheme/companyName",null,{"$f":"Periodos!$D$4","v":"2016-12-31"},{"$f":"#REF!","v":{"$error":"#REF!"}},{"$f":"#REF!","v":{"$error":"#REF!"}}]
[{"$error":"#REF!"},null,{"$f":"#REF!","v":{"$error":"#REF!"}},{"$f":"#REF!","v":{"$error":"#REF!"}},null,null,{"$f":"#REF!","v":{"$error":"#REF!"}},800001965,"http://www.xbrl.org/scheme/companyName",null,{"$f":"Periodos!$D$4","v":"2016-12-31"},{"$f":"#REF!","v":{"$error":"#REF!"}},{"$f":"#REF!","v":{"$error":"#REF!"}}]
[{"$error":"#REF!"},null,{"$f":"#REF!","v":{"$error":"#REF!"}},{"$f":"#REF!","v":{"$error":"#REF!"}},0,"peso",{"$f":"#REF!","v":{"$error":"#REF!"}},800001965,"http://www.xbrl.org/scheme/companyName",null,{"$f":"Periodos!$D$4","v":"2016-12-31"},{"$f":"#REF!","v":{"$error":"#REF!"}},{"$f":"#REF!","v":{"$error":"#REF!"}}]
["/*",null,"--32--"]
[{"$error":"#REF!"},null,{"$f":"#REF!","v":{"$error":"#REF!"}},{"$f":"#REF!","v":{"$error":"#REF!"}},null,null,{"$f":"#REF!","v":{"$error":"#REF!"}},800001965,"http://www.xbrl.org/scheme/companyName",null,{"$f":"Periodos!$D$4","v":"2016-12-31"},{"$f":"#REF!","v":{"$error":"#REF!"}},{"$f":"#REF!","v":{"$error":"#REF!"}}]
[{"$error":"#REF!"},null,{"$f":"#REF!","v":{"$error":"#REF!"}},{"$f":"#REF!","v":{"$error":"#REF!"}},null,null,{"$f":"#REF!","v":{"$error":"#REF!"}},800001965,"http://www.xbrl.org/scheme/companyName",null,{"$f":"Periodos!$D$4","v":"2016-12-31"},{"$f":"#REF!","v":{"$error":"#REF!"}},{"$f":"#REF!","v":{"$error":"#REF!"}}]
[{"$error":"#REF!"},null,{"$f":"#REF!","v":{"$error":"#REF!"}},{"$f":"#REF!","v":{"$error":"#REF!"}},null,null,{"$f":"#REF!","v":{"$error":"#REF!"}},800001965,"http://www.xbrl.org/scheme/companyName",null,{"$f":"Periodos!$D$4","v":"2016-12-31"},{"$f":"#REF!","v":{"$error":"#REF!"}},{"$f":"#REF!","v":{"$error":"#REF!"}}]
[{"$error":"#REF!"},null,{"$f":"#REF!","v":{"$error":"#REF!"}},{"$f":"#REF!","v":{"$error":"#REF!"}},null,null,{"$f":"#REF!","v":{"$error":"#REF!"}},800001965,"http://www.xbrl.org/scheme/companyName",null,{"$f":"Periodos!$D$4","v":"2016-12-31"},{"$f":"#REF!","v":{"$error":"#REF!"}},{"$f":"#REF!","v":{"$error":"#REF!"}}]
[{"$error":"#REF!"},null,{"$f":"#REF!","v":{"$error":"#REF!"}},{"$f":"#REF!","v":{"$error":"#REF!"}},null,null,{"$f":"#REF!","v":{"$error":"#REF!"}},800001965,"http://www.xbrl.org/scheme/companyName",null,{"$f":"Periodos!$D$4","v":"2016-12-31"},{"$f":"#REF!","v":{"$error":"#REF!"}},{"$f":"#REF!","v":{"$error":"#REF!"}}]
[{"$error":"#REF!"},null,{"$f":"#REF!","v":{"$error":"#REF!"}},{"$f":"#REF!","v":{"$error":"#REF!"}},null,null,{"$f":"#REF!","v":{"$error":"#REF!"}},800001965,"http://www.xbrl.org/scheme/companyName",null,{"$f":"Periodos!$D$4","v":"2016-12-31"},{"$f":"#REF!","v":{"$error":"#REF!"}},{"$f":"#REF!","v":{"$error":"#REF!"}}]
[{"$error":"#REF!"},null,{"$f":"#REF!","v":{"$error":"#REF!"}},{"$f":"#REF!","v":{"$error":"#REF!"}},null,null,{"$f":"#REF!","v":{"$error":"#REF!"}},800001965,"http://www.xbrl.org/scheme/companyName",null,{"$f":"Periodos!$D$4","v":"2016-12-31"},{"$f":"#REF!","v":{"$error":"#REF!"}},{"$f":"#REF!","v":{"$error":"#REF!"}}]
[{"$error":"#REF!"},null,{"$f":"#REF!","v":{"$error":"#REF!"}},{"$f":"#REF!","v":{"$error":"#REF!"}},null,null,{"$f":"#REF!","v":{"$error":"#REF!"}},800001965,"http://www.xbrl.org/scheme/companyName",null,{"$f":"Periodos!$D$4","v":"2016-12-31"},{"$f":"#REF!","v":{"$error":"#REF!"}},{"$f":"#REF!","v":{"$error":"#REF!"}}]
[{"$error":"#REF!"},null,{"$f":"#REF!","v":{"$error":"#REF!"}},{"$f":"#REF!","v":{"$error":"#REF!"}},null,null,{"$f":"#REF!","v":{"$error":"#REF!"}},800001965,"http://www.xbrl.org/scheme/companyName",null,{"$f":"Periodos!$D$4","v":"2016-12-31"},{"$f":"#REF!","v":{"$error":"#REF!"}},{"$f":"#REF!","v":{"$error":"#REF!"}}]
[{"$error":"#REF!"},null,{"$f":"#REF!","v":{"$error":"#REF!"}},{"$f":"#REF!","v":{"$error":"#REF!"}},null,null,{"$f":"#REF!","v":{"$error":"#REF!"}},800001965,"http://www.xbrl.org/scheme/companyName",null,{"$f":"Periodos!$D$4","v":"2016-12-31"},{"$f":"#REF!","v":{"$error":"#REF!"}},{"$f":"#REF!","v":{"$error":"#REF!"}}]
[{"$error":"#REF!"},null,{"$f":"#REF!","v":{"$error":"#REF!"}},{"$f":"#REF!","v":{"$error":"#REF!"}},null,null,{"$f":"#REF!","v":{"$error":"#REF!"}},800001965,"http://www.xbrl.org/scheme/companyName",null,{"$f":"Periodos!$D$4","v":"2016-12-31"},{"$f":"#REF!","v":{"$error":"#REF!"}},{"$f":"#REF!","v":{"$error":"#REF!"}}]
[{"$error":"#REF!"},null,{"$f":"#REF!","v":{"$error":"#REF!"}},{"$f":"#REF!","v":{"$error":"#REF!"}},0,"peso",{"$f":"#REF!","v":{"$error":"#REF!"}},800001965,"http://www.xbrl.org/scheme/companyName",null,{"$f":"Periodos!$D$4","v":"2016-12-31"},{"$f":"#REF!","v":{"$error":"#REF!"}},{"$f":"#REF!","v":{"$error":"#REF!"}}]
["/*",null,"--33--"]
[{"$error":"#REF!"},null,{"$f":"#REF!","v":{"$error":"#REF!"}},{"$f":"#REF!","v":{"$error":"#REF!"}},null,null,{"$f":"#REF!","v":{"$error":"#REF!"}},800001965,"http://www.xbrl.org/scheme/companyName",null,{"$f":"Periodos!$D$4","v":"2016-12-31"},{"$f":"#REF!","v":{"$error":"#REF!"}},{"$f":"#REF!","v":{"$error":"#REF!"}}]
[{"$error":"#REF!"},null,{"$f":"#REF!","v":{"$error":"#REF!"}},{"$f":"#REF!","v":{"$error":"#REF!"}},null,null,{"$f":"#REF!","v":{"$error":"#REF!"}},800001965,"http://www.xbrl.org/scheme/companyName",null,{"$f":"Periodos!$D$4","v":"2016-12-31"},{"$f":"#REF!","v":{"$error":"#REF!"}},{"$f":"#REF!","v":{"$error":"#REF!"}}]
[{"$error":"#REF!"},null,{"$f":"#REF!","v":{"$error":"#REF!"}},{"$f":"#REF!","v":{"$error":"#REF!"}},null,null,{"$f":"#REF!","v":{"$error":"#REF!"}},800001965,"http://www.xbrl.org/scheme/companyName",null,{"$f":"Periodos!$D$4","v":"2016-12-31"},{"$f":"#REF!","v":{"$error":"#REF!"}},{"$f":"#REF!","v":{"$error":"#REF!"}}]
[{"$error":"#REF!"},null,{"$f":"#REF!","v":{"$error":"#REF!"}},{"$f":"#REF!","v":{"$error":"#REF!"}},null,null,{"$f":"#REF!","v":{"$error":"#REF!"}},800001965,"http://www.xbrl.org/scheme/companyName",null,{"$f":"Periodos!$D$4","v":"2016-12-31"},{"$f":"#REF!","v":{"$error":"#REF!"}},{"$f":"#REF!","v":{"$error":"#REF!"}}]
[{"$error":"#REF!"},null,{"$f":"#REF!","v":{"$error":"#REF!"}},{"$f":"#REF!","v":{"$error":"#REF!"}},null,null,{"$f":"#REF!","v":{"$error":"#REF!"}},800001965,"http://www.xbrl.org/scheme/companyName",null,{"$f":"Periodos!$D$4","v":"2016-12-31"},{"$f":"#REF!","v":{"$error":"#REF!"}},{"$f":"#REF!","v":{"$error":"#REF!"}}]
[{"$error":"#REF!"},null,{"$f":"#REF!","v":{"$error":"#REF!"}},{"$f":"#REF!","v":{"$error":"#REF!"}},null,null,{"$f":"#REF!","v":{"$error":"#REF!"}},800001965,"http://www.xbrl.org/scheme/companyName",null,{"$f":"Periodos!$D$4","v":"2016-12-31"},{"$f":"#REF!","v":{"$error":"#REF!"}},{"$f":"#REF!","v":{"$error":"#REF!"}}]
[{"$error":"#REF!"},null,{"$f":"#REF!","v":{"$error":"#REF!"}},{"$f":"#REF!","v":{"$error":"#REF!"}},null,null,{"$f":"#REF!","v":{"$error":"#REF!"}},800001965,"http://www.xbrl.org/scheme/companyName",null,{"$f":"Periodos!$D$4","v":"2016-12-31"},{"$f":"#REF!","v":{"$error":"#REF!"}},{"$f":"#REF!","v":{"$error":"#REF!"}}]
[{"$error":"#REF!"},null,{"$f":"#REF!","v":{"$error":"#REF!"}},{"$f":"#REF!","v":{"$error":"#REF!"}},null,null,{"$f":"#REF!","v":{"$error":"#REF!"}},800001965,"http://www.xbrl.org/scheme/companyName",null,{"$f":"Periodos!$D$4","v":"2016-12-31"},{"$f":"#REF!","v":{"$error":"#REF!"}},{"$f":"#REF!","v":{"$error":"#REF!"}}]
[{"$error":"#REF!"},null,{"$f":"#REF!","v":{"$error":"#REF!"}},{"$f":"#REF!","v":{"$error":"#REF!"}},null,null,{"$f":"#REF!","v":{"$error":"#REF!"}},800001965,"http://www.xbrl.org/scheme/companyName",null,{"$f":"Periodos!$D$4","v":"2016-12-31"},{"$f":"#REF!","v":{"$error":"#REF!"}},{"$f":"#REF!","v":{"$error":"#REF!"}}]
[{"$error":"#REF!"},null,{"$f":"#REF!","v":{"$error":"#REF!"}},{"$f":"#REF!","v":{"$error":"#REF!"}},null,null,{"$f":"#REF!","v":{"$error":"#REF!"}},800001965,"http://www.xbrl.org/scheme/companyName",null,{"$f":"Periodos!$D$4","v":"2016-12-31"},{"$f":"#REF!","v":{"$error":"#REF!"}},{"$f":"#REF!","v":{"$error":"#REF!"}}]
[{"$error":"#REF!"},null,{"$f":"#REF!","v":{"$error":"#REF!"}},{"$f":"#REF!","v":{"$error":"#REF!"}},null,null,{"$f":"#REF!","v":{"$error":"#REF!"}},800001965,"http://www.xbrl.org/scheme/companyName",null,{"$f":"Periodos!$D$4","v":"2016-12-31"},{"$f":"#REF!","v":{"$error":"#REF!"}},{"$f":"#REF!","v":{"$error":"#REF!"}}]
[{"$error":"#REF!"},null,{"$f":"#REF!","v":{"$error":"#REF!"}},{"$f":"#REF!","v":{"$error":"#REF!"}},0,"peso",{"$f":"#REF!","v":{"$error":"#REF!"}},800001965,"http://www.xbrl.org/scheme/companyName",null,{"$f":"Periodos!$D$4","v":"2016-12-31"},{"$f":"#REF!","v":{"$error":"#REF!"}},{"$f":"#REF!","v":{"$error":"#REF!"}}]
[{"$f":"IF(G4193=\"\",\"/*\",\"\")","v":"/*"},null,"--34--"]
[{"$error":"#REF!"},null,{"$f":"#REF!","v":{"$error":"#REF!"}},{"$f":"#REF!","v":{"$error":"#REF!"}},null,null,{"$f":"#REF!","v":{"$error":"#REF!"}},800001965,"http://www.xbrl.org/scheme/companyName",null,{"$f":"Periodos!$D$4","v":"2016-12-31"},{"$f":"#REF!","v":{"$error":"#REF!"}},{"$f":"#REF!","v":{"$error":"#REF!"}}]
[{"$error":"#REF!"},null,{"$f":"#REF!","v":{"$error":"#REF!"}},{"$f":"#REF!","v":{"$error":"#REF!"}},null,null,{"$f":"#REF!","v":{"$error":"#REF!"}},800001965,"http://www.xbrl.org/scheme/companyName",null,{"$f":"Periodos!$D$4","v":"2016-12-31"},{"$f":"#REF!","v":{"$error":"#REF!"}},{"$f":"#REF!","v":{"$error":"#REF!"}}]
[{"$error":"#REF!"},null,{"$f":"#REF!","v":{"$error":"#REF!"}},{"$f":"#REF!","v":{"$error":"#REF!"}},null,null,{"$f":"#REF!","v":{"$error":"#REF!"}},800001965,"http://www.xbrl.org/scheme/companyName",null,{"$f":"Periodos!$D$4","v":"2016-12-31"},{"$f":"#REF!","v":{"$error":"#REF!"}},{"$f":"#REF!","v":{"$error":"#REF!"}}]
[{"$error":"#REF!"},null,{"$f":"#REF!","v":{"$error":"#REF!"}},{"$f":"#REF!","v":{"$error":"#REF!"}},null,null,{"$f":"#REF!","v":{"$error":"#REF!"}},800001965,"http://www.xbrl.org/scheme/companyName",null,{"$f":"Periodos!$D$4","v":"2016-12-31"},{"$f":"#REF!","v":{"$error":"#REF!"}},{"$f":"#REF!","v":{"$error":"#REF!"}}]
[{"$error":"#REF!"},null,{"$f":"#REF!","v":{"$error":"#REF!"}},{"$f":"#REF!","v":{"$error":"#REF!"}},null,null,{"$f":"#REF!","v":{"$error":"#REF!"}},800001965,"http://www.xbrl.org/scheme/companyName",null,{"$f":"Periodos!$D$4","v":"2016-12-31"},{"$f":"#REF!","v":{"$error":"#REF!"}},{"$f":"#REF!","v":{"$error":"#REF!"}}]
[{"$error":"#REF!"},null,{"$f":"#REF!","v":{"$error":"#REF!"}},{"$f":"#REF!","v":{"$error":"#REF!"}},null,null,{"$f":"#REF!","v":{"$error":"#REF!"}},800001965,"http://www.xbrl.org/scheme/companyName",null,{"$f":"Periodos!$D$4","v":"2016-12-31"},{"$f":"#REF!","v":{"$error":"#REF!"}},{"$f":"#REF!","v":{"$error":"#REF!"}}]
[{"$error":"#REF!"},null,{"$f":"#REF!","v":{"$error":"#REF!"}},{"$f":"#REF!","v":{"$error":"#REF!"}},null,null,{"$f":"#REF!","v":{"$error":"#REF!"}},800001965,"http://www.xbrl.org/scheme/companyName",null,{"$f":"Periodos!$D$4","v":"2016-12-31"},{"$f":"#REF!","v":{"$error":"#REF!"}},{"$f":"#REF!","v":{"$error":"#REF!"}}]
[{"$error":"#REF!"},null,{"$f":"#REF!","v":{"$error":"#REF!"}},{"$f":"#REF!","v":{"$error":"#REF!"}},null,null,{"$f":"#REF!","v":{"$error":"#REF!"}},800001965,"http://www.xbrl.org/scheme/companyName",null,{"$f":"Periodos!$D$4","v":"2016-12-31"},{"$f":"#REF!","v":{"$error":"#REF!"}},{"$f":"#REF!","v":{"$error":"#REF!"}}]
[{"$error":"#REF!"},null,{"$f":"#REF!","v":{"$error":"#REF!"}},{"$f":"#REF!","v":{"$error":"#REF!"}},null,null,{"$f":"#REF!","v":{"$error":"#REF!"}},800001965,"http://www.xbrl.org/scheme/companyName",null,{"$f":"Periodos!$D$4","v":"2016-12-31"},{"$f":"#REF!","v":{"$error":"#REF!"}},{"$f":"#REF!","v":{"$error":"#REF!"}}]
[{"$error":"#REF!"},null,{"$f":"#REF!","v":{"$error":"#REF!"}},{"$f":"#REF!","v":{"$error":"#REF!"}},null,null,{"$f":"#REF!","v":{"$error":"#REF!"}},800001965,"http://www.xbrl.org/scheme/companyName",null,{"$f":"Periodos!$D$4","v":"2016-12-31"},{"$f":"#REF!","v":{"$error":"#REF!"}},{"$f":"#REF!","v":{"$error":"#REF!"}}]
[{"$error":"#REF!"},null,{"$f":"#REF!","v":{"$error":"#REF!"}},{"$f":"#REF!","v":{"$error":"#REF!"}},null,null,{"$f":"#REF!","v":{"$error":"#REF!"}},800001965,"http://www.xbrl.org/scheme/companyName",null,{"$f":"Periodos!$D$4","v":"2016-12-31"},{"$f":"#REF!","v":{"$error":"#REF!"}},{"$f":"#REF!","v":{"$error":"#REF!"}}]
[{"$error":"#REF!"},null,{"$f":"#REF!","v":{"$error":"#REF!"}},{"$f":"#REF!","v":{"$error":"#REF!"}},0,"peso",{"$f":"#REF!","v":{"$error":"#REF!"}},800001965,"http://www.xbrl.org/scheme/companyName",null,{"$f":"Periodos!$D$4","v":"2016-12-31"},{"$f":"#REF!","v":{"$error":"#REF!"}},{"$f":"#REF!","v":{"$error":"#REF!"}}]
["/*",null,"--35--"]
[{"$error":"#REF!"},null,{"$f":"#REF!","v":{"$error":"#REF!"}},{"$f":"#REF!","v":{"$error":"#REF!"}},null,null,{"$f":"#REF!","v":{"$error":"#REF!"}},800001965,"http://www.xbrl.org/scheme/companyName",null,{"$f":"Periodos!$D$4","v":"2016-12-31"},{"$f":"#REF!","v":{"$error":"#REF!"}},{"$f":"#REF!","v":{"$error":"#REF!"}}]
[{"$error":"#REF!"},null,{"$f":"#REF!","v":{"$error":"#REF!"}},{"$f":"#REF!","v":{"$error":"#REF!"}},null,null,{"$f":"#REF!","v":{"$error":"#REF!"}},800001965,"http://www.xbrl.org/scheme/companyName",null,{"$f":"Periodos!$D$4","v":"2016-12-31"},{"$f":"#REF!","v":{"$error":"#REF!"}},{"$f":"#REF!","v":{"$error":"#REF!"}}]
[{"$error":"#REF!"},null,{"$f":"#REF!","v":{"$error":"#REF!"}},{"$f":"#REF!","v":{"$error":"#REF!"}},null,null,{"$f":"#REF!","v":{"$error":"#REF!"}},800001965,"http://www.xbrl.org/scheme/companyName",null,{"$f":"Periodos!$D$4","v":"2016-12-31"},{"$f":"#REF!","v":{"$error":"#REF!"}},{"$f":"#REF!","v":{"$error":"#REF!"}}]
[{"$error":"#REF!"},null,{"$f":"#REF!","v":{"$error":"#REF!"}},{"$f":"#REF!","v":{"$error":"#REF!"}},null,null,{"$f":"#REF!","v":{"$error":"#REF!"}},800001965,"http://www.xbrl.org/scheme/companyName",null,{"$f":"Periodos!$D$4","v":"2016-12-31"},{"$f":"#REF!","v":{"$error":"#REF!"}},{"$f":"#REF!","v":{"$error":"#REF!"}}]
[{"$error":"#REF!"},null,{"$f":"#REF!","v":{"$error":"#REF!"}},{"$f":"#REF!","v":{"$error":"#REF!"}},null,null,{"$f":"#REF!","v":{"$error":"#REF!"}},800001965,"http://www.xbrl.org/scheme/companyName",null,{"$f":"Periodos!$D$4","v":"2016-12-31"},{"$f":"#REF!","v":{"$error":"#REF!"}},{"$f":"#REF!","v":{"$error":"#REF!"}}]
[{"$error":"#REF!"},null,{"$f":"#REF!","v":{"$error":"#REF!"}},{"$f":"#REF!","v":{"$error":"#REF!"}},null,null,{"$f":"#REF!","v":{"$error":"#REF!"}},800001965,"http://www.xbrl.org/scheme/companyName",null,{"$f":"Periodos!$D$4","v":"2016-12-31"},{"$f":"#REF!","v":{"$error":"#REF!"}},{"$f":"#REF!","v":{"$error":"#REF!"}}]
[{"$error":"#REF!"},null,{"$f":"#REF!","v":{"$error":"#REF!"}},{"$f":"#REF!","v":{"$error":"#REF!"}},null,null,{"$f":"#REF!","v":{"$error":"#REF!"}},800001965,"http://www.xbrl.org/scheme/companyName",null,{"$f":"Periodos!$D$4","v":"2016-12-31"},{"$f":"#REF!","v":{"$error":"#REF!"}},{"$f":"#REF!","v":{"$error":"#REF!"}}]
[{"$error":"#REF!"},null,{"$f":"#REF!","v":{"$error":"#REF!"}},{"$f":"#REF!","v":{"$error":"#REF!"}},null,null,{"$f":"#REF!","v":{"$error":"#REF!"}},800001965,"http://www.xbrl.org/scheme/companyName",null,{"$f":"Periodos!$D$4","v":"2016-12-31"},{"$f":"#REF!","v":{"$error":"#REF!"}},{"$f":"#REF!","v":{"$error":"#REF!"}}]
[{"$error":"#REF!"},null,{"$f":"#REF!","v":{"$error":"#REF!"}},{"$f":"#REF!","v":{"$error":"#REF!"}},null,null,{"$f":"#REF!","v":{"$error":"#REF!"}},800001965,"http://www.xbrl.org/scheme/companyName",null,{"$f":"Periodos!$D$4","v":"2016-12-31"},{"$f":"#REF!","v":{"$error":"#REF!"}},{"$f":"#REF!","v":{"$error":"#REF!"}}]
[{"$error":"#REF!"},null,{"$f":"#REF!","v":{"$error":"#REF!"}},{"$f":"#REF!","v":{"$error":"#REF!"}},null,null,{"$f":"#REF!","v":{"$error":"#REF!"}},800001965,"http://www.xbrl.org/scheme/companyName",null,{"$f":"Periodos!$D$4","v":"2016-12-31"},{"$f":"#REF!","v":{"$error":"#REF!"}},{"$f":"#REF!","v":{"$error":"#REF!"}}]
[{"$error":"#REF!"},null,{"$f":"#REF!","v":{"$error":"#REF!"}},{"$f":"#REF!","v":{"$error":"#REF!"}},null,null,{"$f":"#REF!","v":{"$error":"#REF!"}},800001965,"http://www.xbrl.org/scheme/companyName",null,{"$f":"Periodos!$D$4","v":"2016-12-31"},{"$f":"#REF!","v":{"$error":"#REF!"}},{"$f":"#REF!","v":{"$error":"#REF!"}}]
[{"$error":"#REF!"},null,{"$f":"#REF!","v":{"$error":"#REF!"}},{"$f":"#REF!","v":{"$error":"#REF!"}},0,"peso",{"$f":"#REF!","v":{"$error":"#REF!"}},800001965,"http://www.xbrl.org/scheme/companyName",null,{"$f":"Periodos!$D$4","v":"2016-12-31"},{"$f":"#REF!","v":{"$error":"#REF!"}},{"$f":"#REF!","v":{"$error":"#REF!"}}]
["/*",null,"--36--"]
[{"$error":"#REF!"},null,{"$f":"#REF!","v":{"$error":"#REF!"}},{"$f":"#REF!","v":{"$error":"#REF!"}},null,null,{"$f":"#REF!","v":{"$error":"#REF!"}},800001965,"http://www.xbrl.org/scheme/companyName",null,{"$f":"Periodos!$D$4","v":"2016-12-31"},{"$f":"#REF!","v":{"$error":"#REF!"}},{"$f":"#REF!","v":{"$error":"#REF!"}}]
[{"$error":"#REF!"},null,{"$f":"#REF!","v":{"$error":"#REF!"}},{"$f":"#REF!","v":{"$error":"#REF!"}},null,null,{"$f":"#REF!","v":{"$error":"#REF!"}},800001965,"http://www.xbrl.org/scheme/companyName",null,{"$f":"Periodos!$D$4","v":"2016-12-31"},{"$f":"#REF!","v":{"$error":"#REF!"}},{"$f":"#REF!","v":{"$error":"#REF!"}}]
[{"$error":"#REF!"},null,{"$f":"#REF!","v":{"$error":"#REF!"}},{"$f":"#REF!","v":{"$error":"#REF!"}},null,null,{"$f":"#REF!","v":{"$error":"#REF!"}},800001965,"http://www.xbrl.org/scheme/companyName",null,{"$f":"Periodos!$D$4","v":"2016-12-31"},{"$f":"#REF!","v":{"$error":"#REF!"}},{"$f":"#REF!","v":{"$error":"#REF!"}}]
[{"$error":"#REF!"},null,{"$f":"#REF!","v":{"$error":"#REF!"}},{"$f":"#REF!","v":{"$error":"#REF!"}},null,null,{"$f":"#REF!","v":{"$error":"#REF!"}},800001965,"http://www.xbrl.org/scheme/companyName",null,{"$f":"Periodos!$D$4","v":"2016-12-31"},{"$f":"#REF!","v":{"$error":"#REF!"}},{"$f":"#REF!","v":{"$error":"#REF!"}}]
[{"$error":"#REF!"},null,{"$f":"#REF!","v":{"$error":"#REF!"}},{"$f":"#REF!","v":{"$error":"#REF!"}},null,null,{"$f":"#REF!","v":{"$error":"#REF!"}},800001965,"http://www.xbrl.org/scheme/companyName",null,{"$f":"Periodos!$D$4","v":"2016-12-31"},{"$f":"#REF!","v":{"$error":"#REF!"}},{"$f":"#REF!","v":{"$error":"#REF!"}}]
[{"$error":"#REF!"},null,{"$f":"#REF!","v":{"$error":"#REF!"}},{"$f":"#REF!","v":{"$error":"#REF!"}},null,null,{"$f":"#REF!","v":{"$error":"#REF!"}},800001965,"http://www.xbrl.org/scheme/companyName",null,{"$f":"Periodos!$D$4","v":"2016-12-31"},{"$f":"#REF!","v":{"$error":"#REF!"}},{"$f":"#REF!","v":{"$error":"#REF!"}}]
[{"$error":"#REF!"},null,{"$f":"#REF!","v":{"$error":"#REF!"}},{"$f":"#REF!","v":{"$error":"#REF!"}},null,null,{"$f":"#REF!","v":{"$error":"#REF!"}},800001965,"http://www.xbrl.org/scheme/companyName",null,{"$f":"Periodos!$D$4","v":"2016-12-31"},{"$f":"#REF!","v":{"$error":"#REF!"}},{"$f":"#REF!","v":{"$error":"#REF!"}}]
[{"$error":"#REF!"},null,{"$f":"#REF!","v":{"$error":"#REF!"}},{"$f":"#REF!","v":{"$error":"#REF!"}},null,null,{"$f":"#REF!","v":{"$error":"#REF!"}},800001965,"http://www.xbrl.org/scheme/companyName",null,{"$f":"Periodos!$D$4","v":"2016-12-31"},{"$f":"#REF!","v":{"$error":"#REF!"}},{"$f":"#REF!","v":{"$error":"#REF!"}}]
[{"$error":"#REF!"},null,{"$f":"#REF!","v":{"$error":"#REF!"}},{"$f":"#REF!","v":{"$error":"#REF!"}},null,null,{"$f":"#REF!","v":{"$error":"#REF!"}},800001965,"http://www.xbrl.org/scheme/companyName",null,{"$f":"Periodos!$D$4","v":"2016-12-31"},{"$f":"#REF!","v":{"$error":"#REF!"}},{"$f":"#REF!","v":{"$error":"#REF!"}}]
[{"$error":"#REF!"},null,{"$f":"#REF!","v":{"$error":"#REF!"}},{"$f":"#REF!","v":{"$error":"#REF!"}},null,null,{"$f":"#REF!","v":{"$error":"#REF!"}},800001965,"http://www.xbrl.org/scheme/companyName",null,{"$f":"Periodos!$D$4","v":"2016-12-31"},{"$f":"#REF!","v":{"$error":"#REF!"}},{"$f":"#REF!","v":{"$error":"#REF!"}}]
[{"$error":"#REF!"},null,{"$f":"#REF!","v":{"$error":"#REF!"}},{"$f":"#REF!","v":{"$error":"#REF!"}},null,null,{"$f":"#REF!","v":{"$error":"#REF!"}},800001965,"http://www.xbrl.org/scheme/companyName",null,{"$f":"Periodos!$D$4","v":"2016-12-31"},{"$f":"#REF!","v":{"$error":"#REF!"}},{"$f":"#REF!","v":{"$error":"#REF!"}}]
[{"$error":"#REF!"},null,{"$f":"#REF!","v":{"$error":"#REF!"}},{"$f":"#REF!","v":{"$error":"#REF!"}},0,"peso",{"$f":"#REF!","v":{"$error":"#REF!"}},800001965,"http://www.xbrl.org/scheme/companyName",null,{"$f":"Periodos!$D$4","v":"2016-12-31"},{"$f":"#REF!","v":{"$error":"#REF!"}},{"$f":"#REF!","v":{"$error":"#REF!"}}]
["/*",null,"--37--"]
[{"$error":"#REF!"},null,{"$f":"#REF!","v":{"$error":"#REF!"}},{"$f":"#REF!","v":{"$error":"#REF!"}},null,null,{"$f":"#REF!","v":{"$error":"#REF!"}},800001965,"http://www.xbrl.org/scheme/companyName",null,{"$f":"Periodos!$D$4","v":"2016-12-31"},{"$f":"#REF!","v":{"$error":"#REF!"}},{"$f":"#REF!","v":{"$error":"#REF!"}}]
[{"$error":"#REF!"},null,{"$f":"#REF!","v":{"$error":"#REF!"}},{"$f":"#REF!","v":{"$error":"#REF!"}},null,null,{"$f":"#REF!","v":{"$error":"#REF!"}},800001965,"http://www.xbrl.org/scheme/companyName",null,{"$f":"Periodos!$D$4","v":"2016-12-31"},{"$f":"#REF!","v":{"$error":"#REF!"}},{"$f":"#REF!","v":{"$error":"#REF!"}}]
[{"$error":"#REF!"},null,{"$f":"#REF!","v":{"$error":"#REF!"}},{"$f":"#REF!","v":{"$error":"#REF!"}},null,null,{"$f":"#REF!","v":{"$error":"#REF!"}},800001965,"http://www.xbrl.org/scheme/companyName",null,{"$f":"Periodos!$D$4","v":"2016-12-31"},{"$f":"#REF!","v":{"$error":"#REF!"}},{"$f":"#REF!","v":{"$error":"#REF!"}}]
[{"$error":"#REF!"},null,{"$f":"#REF!","v":{"$error":"#REF!"}},{"$f":"#REF!","v":{"$error":"#REF!"}},null,null,{"$f":"#REF!","v":{"$error":"#REF!"}},800001965,"http://www.xbrl.org/scheme/companyName",null,{"$f":"Periodos!$D$4","v":"2016-12-31"},{"$f":"#REF!","v":{"$error":"#REF!"}},{"$f":"#REF!","v":{"$error":"#REF!"}}]
[{"$error":"#REF!"},null,{"$f":"#REF!","v":{"$error":"#REF!"}},{"$f":"#REF!","v":{"$error":"#REF!"}},null,null,{"$f":"#REF!","v":{"$error":"#REF!"}},800001965,"http://www.xbrl.org/scheme/companyName",null,{"$f":"Periodos!$D$4","v":"2016-12-31"},{"$f":"#REF!","v":{"$error":"#REF!"}},{"$f":"#REF!","v":{"$error":"#REF!"}}]
[{"$error":"#REF!"},null,{"$f":"#REF!","v":{"$error":"#REF!"}},{"$f":"#REF!","v":{"$error":"#REF!"}},null,null,{"$f":"#REF!","v":{"$error":"#REF!"}},800001965,"http://www.xbrl.org/scheme/companyName",null,{"$f":"Periodos!$D$4","v":"2016-12-31"},{"$f":"#REF!","v":{"$error":"#REF!"}},{"$f":"#REF!","v":{"$error":"#REF!"}}]
[{"$error":"#REF!"},null,{"$f":"#REF!","v":{"$error":"#REF!"}},{"$f":"#REF!","v":{"$error":"#REF!"}},null,null,{"$f":"#REF!","v":{"$error":"#REF!"}},800001965,"http://www.xbrl.org/scheme/companyName",null,{"$f":"Periodos!$D$4","v":"2016-12-31"},{"$f":"#REF!","v":{"$error":"#REF!"}},{"$f":"#REF!","v":{"$error":"#REF!"}}]
[{"$error":"#REF!"},null,{"$f":"#REF!","v":{"$error":"#REF!"}},{"$f":"#REF!","v":{"$error":"#REF!"}},null,null,{"$f":"#REF!","v":{"$error":"#REF!"}},800001965,"http://www.xbrl.org/scheme/companyName",null,{"$f":"Periodos!$D$4","v":"2016-12-31"},{"$f":"#REF!","v":{"$error":"#REF!"}},{"$f":"#REF!","v":{"$error":"#REF!"}}]
[{"$error":"#REF!"},null,{"$f":"#REF!","v":{"$error":"#REF!"}},{"$f":"#REF!","v":{"$error":"#REF!"}},null,null,{"$f":"#REF!","v":{"$error":"#REF!"}},800001965,"http://www.xbrl.org/scheme/companyName",null,{"$f":"Periodos!$D$4","v":"2016-12-31"},{"$f":"#REF!","v":{"$error":"#REF!"}},{"$f":"#REF!","v":{"$error":"#REF!"}}]
[{"$error":"#REF!"},null,{"$f":"#REF!","v":{"$error":"#REF!"}},{"$f":"#REF!","v":{"$error":"#REF!"}},null,null,{"$f":"#REF!","v":{"$error":"#REF!"}},800001965,"http://www.xbrl.org/scheme/companyName",null,{"$f":"Periodos!$D$4","v":"2016-12-31"},{"$f":"#REF!","v":{"$error":"#REF!"}},{"$f":"#REF!","v":{"$error":"#REF!"}}]
[{"$error":"#REF!"},null,{"$f":"#REF!","v":{"$error":"#REF!"}},{"$f":"#REF!","v":{"$error":"#REF!"}},null,null,{"$f":"#REF!","v":{"$error":"#REF!"}},800001965,"http://www.xbrl.org/scheme/companyName",null,{"$f":"Periodos!$D$4","v":"2016-12-31"},{"$f":"#REF!","v":{"$error":"#REF!"}},{"$f":"#REF!","v":{"$error":"#REF!"}}]
[{"$error":"#REF!"},null,{"$f":"#REF!","v":{"$error":"#REF!"}},{"$f":"#REF!","v":{"$error":"#REF!"}},0,"peso",{"$f":"#REF!","v":{"$error":"#REF!"}},800001965,"http://www.xbrl.org/scheme/companyName",null,{"$f":"Periodos!$D$4","v":"2016-12-31"},{"$f":"#REF!","v":{"$error":"#REF!"}},{"$f":"#REF!","v":{"$error":"#REF!"}}]
["/*",null,"--38--"]
[{"$error":"#REF!"},null,{"$f":"#REF!","v":{"$error":"#REF!"}},{"$f":"#REF!","v":{"$error":"#REF!"}},null,null,{"$f":"#REF!","v":{"$error":"#REF!"}},800001965,"http://www.xbrl.org/scheme/companyName",null,{"$f":"Periodos!$D$4","v":"2016-12-31"},{"$f":"#REF!","v":{"$error":"#REF!"}},{"$f":"#REF!","v":{"$error":"#REF!"}}]
[{"$error":"#REF!"},null,{"$f":"#REF!","v":{"$error":"#REF!"}},{"$f":"#REF!","v":{"$error":"#REF!"}},null,null,{"$f":"#REF!","v":{"$error":"#REF!"}},800001965,"http://www.xbrl.org/scheme/companyName",null,{"$f":"Periodos!$D$4","v":"2016-12-31"},{"$f":"#REF!","v":{"$error":"#REF!"}},{"$f":"#REF!","v":{"$error":"#REF!"}}]
[{"$error":"#REF!"},null,{"$f":"#REF!","v":{"$error":"#REF!"}},{"$f":"#REF!","v":{"$error":"#REF!"}},null,null,{"$f":"#REF!","v":{"$error":"#REF!"}},800001965,"http://www.xbrl.org/scheme/companyName",null,{"$f":"Periodos!$D$4","v":"2016-12-31"},{"$f":"#REF!","v":{"$error":"#REF!"}},{"$f":"#REF!","v":{"$error":"#REF!"}}]
[{"$error":"#REF!"},null,{"$f":"#REF!","v":{"$error":"#REF!"}},{"$f":"#REF!","v":{"$error":"#REF!"}},null,null,{"$f":"#REF!","v":{"$error":"#REF!"}},800001965,"http://www.xbrl.org/scheme/companyName",null,{"$f":"Periodos!$D$4","v":"2016-12-31"},{"$f":"#REF!","v":{"$error":"#REF!"}},{"$f":"#REF!","v":{"$error":"#REF!"}}]
[{"$error":"#REF!"},null,{"$f":"#REF!","v":{"$error":"#REF!"}},{"$f":"#REF!","v":{"$error":"#REF!"}},null,null,{"$f":"#REF!","v":{"$error":"#REF!"}},800001965,"http://www.xbrl.org/scheme/companyName",null,{"$f":"Periodos!$D$4","v":"2016-12-31"},{"$f":"#REF!","v":{"$error":"#REF!"}},{"$f":"#REF!","v":{"$error":"#REF!"}}]
[{"$error":"#REF!"},null,{"$f":"#REF!","v":{"$error":"#REF!"}},{"$f":"#REF!","v":{"$error":"#REF!"}},null,null,{"$f":"#REF!","v":{"$error":"#REF!"}},800001965,"http://www.xbrl.org/scheme/companyName",null,{"$f":"Periodos!$D$4","v":"2016-12-31"},{"$f":"#REF!","v":{"$error":"#REF!"}},{"$f":"#REF!","v":{"$error":"#REF!"}}]
[{"$error":"#REF!"},null,{"$f":"#REF!","v":{"$error":"#REF!"}},{"$f":"#REF!","v":{"$error":"#REF!"}},null,null,{"$f":"#REF!","v":{"$error":"#REF!"}},800001965,"http://www.xbrl.org/scheme/companyName",null,{"$f":"Periodos!$D$4","v":"2016-12-31"},{"$f":"#REF!","v":{"$error":"#REF!"}},{"$f":"#REF!","v":{"$error":"#REF!"}}]
[{"$error":"#REF!"},null,{"$f":"#REF!","v":{"$error":"#REF!"}},{"$f":"#REF!","v":{"$error":"#REF!"}},null,null,{"$f":"#REF!","v":{"$error":"#REF!"}},800001965,"http://www.xbrl.org/scheme/companyName",null,{"$f":"Periodos!$D$4","v":"2016-12-31"},{"$f":"#REF!","v":{"$error":"#REF!"}},{"$f":"#REF!","v":{"$error":"#REF!"}}]
[{"$error":"#REF!"},null,{"$f":"#REF!","v":{"$error":"#REF!"}},{"$f":"#REF!","v":{"$error":"#REF!"}},null,null,{"$f":"#REF!","v":{"$error":"#REF!"}},800001965,"http://www.xbrl.org/scheme/companyName",null,{"$f":"Periodos!$D$4","v":"2016-12-31"},{"$f":"#REF!","v":{"$error":"#REF!"}},{"$f":"#REF!","v":{"$error":"#REF!"}}]
[{"$error":"#REF!"},null,{"$f":"#REF!","v":{"$error":"#REF!"}},{"$f":"#REF!","v":{"$error":"#REF!"}},null,null,{"$f":"#REF!","v":{"$error":"#REF!"}},800001965,"http://www.xbrl.org/scheme/companyName",null,{"$f":"Periodos!$D$4","v":"2016-12-31"},{"$f":"#REF!","v":{"$error":"#REF!"}},{"$f":"#REF!","v":{"$error":"#REF!"}}]
[{"$error":"#REF!"},null,{"$f":"#REF!","v":{"$error":"#REF!"}},{"$f":"#REF!","v":{"$error":"#REF!"}},null,null,{"$f":"#REF!","v":{"$error":"#REF!"}},800001965,"http://www.xbrl.org/scheme/companyName",null,{"$f":"Periodos!$D$4","v":"2016-12-31"},{"$f":"#REF!","v":{"$error":"#REF!"}},{"$f":"#REF!","v":{"$error":"#REF!"}}]
[{"$f":"IF(G4257=\"\",\"/*\",\"\")","v":{"$error":"#REF!"}},null,{"$f":"#REF!","v":{"$error":"#REF!"}},{"$f":"#REF!","v":{"$error":"#REF!"}},0,"peso",{"$f":"#REF!","v":{"$error":"#REF!"}},800001965,"http://www.xbrl.org/scheme/companyName",null,{"$f":"Periodos!$D$4","v":"2016-12-31"},{"$f":"#REF!","v":{"$error":"#REF!"}},{"$f":"#REF!","v":{"$error":"#REF!"}}]
["/*",null,"--39--"]
[{"$error":"#REF!"},null,{"$f":"#REF!","v":{"$error":"#REF!"}},{"$f":"#REF!","v":{"$error":"#REF!"}},null,null,{"$f":"#REF!","v":{"$error":"#REF!"}},800001965,"http://www.xbrl.org/scheme/companyName",null,{"$f":"Periodos!$D$4","v":"2016-12-31"},{"$f":"#REF!","v":{"$error":"#REF!"}},{"$f":"#REF!","v":{"$error":"#REF!"}}]
[{"$error":"#REF!"},null,{"$f":"#REF!","v":{"$error":"#REF!"}},{"$f":"#REF!","v":{"$error":"#REF!"}},null,null,{"$f":"#REF!","v":{"$error":"#REF!"}},800001965,"http://www.xbrl.org/scheme/companyName",null,{"$f":"Periodos!$D$4","v":"2016-12-31"},{"$f":"#REF!","v":{"$error":"#REF!"}},{"$f":"#REF!","v":{"$error":"#REF!"}}]
[{"$error":"#REF!"},null,{"$f":"#REF!","v":{"$error":"#REF!"}},{"$f":"#REF!","v":{"$error":"#REF!"}},null,null,{"$f":"#REF!","v":{"$error":"#REF!"}},800001965,"http://www.xbrl.org/scheme/companyName",null,{"$f":"Periodos!$D$4","v":"2016-12-31"},{"$f":"#REF!","v":{"$error":"#REF!"}},{"$f":"#REF!","v":{"$error":"#REF!"}}]
[{"$error":"#REF!"},null,{"$f":"#REF!","v":{"$error":"#REF!"}},{"$f":"#REF!","v":{"$error":"#REF!"}},null,null,{"$f":"#REF!","v":{"$error":"#REF!"}},800001965,"http://www.xbrl.org/scheme/companyName",null,{"$f":"Periodos!$D$4","v":"2016-12-31"},{"$f":"#REF!","v":{"$error":"#REF!"}},{"$f":"#REF!","v":{"$error":"#REF!"}}]
[{"$error":"#REF!"},null,{"$f":"#REF!","v":{"$error":"#REF!"}},{"$f":"#REF!","v":{"$error":"#REF!"}},null,null,{"$f":"#REF!","v":{"$error":"#REF!"}},800001965,"http://www.xbrl.org/scheme/companyName",null,{"$f":"Periodos!$D$4","v":"2016-12-31"},{"$f":"#REF!","v":{"$error":"#REF!"}},{"$f":"#REF!","v":{"$error":"#REF!"}}]
[{"$error":"#REF!"},null,{"$f":"#REF!","v":{"$error":"#REF!"}},{"$f":"#REF!","v":{"$error":"#REF!"}},null,null,{"$f":"#REF!","v":{"$error":"#REF!"}},800001965,"http://www.xbrl.org/scheme/companyName",null,{"$f":"Periodos!$D$4","v":"2016-12-31"},{"$f":"#REF!","v":{"$error":"#REF!"}},{"$f":"#REF!","v":{"$error":"#REF!"}}]
[{"$error":"#REF!"},null,{"$f":"#REF!","v":{"$error":"#REF!"}},{"$f":"#REF!","v":{"$error":"#REF!"}},null,null,{"$f":"#REF!","v":{"$error":"#REF!"}},800001965,"http://www.xbrl.org/scheme/companyName",null,{"$f":"Periodos!$D$4","v":"2016-12-31"},{"$f":"#REF!","v":{"$error":"#REF!"}},{"$f":"#REF!","v":{"$error":"#REF!"}}]
[{"$error":"#REF!"},null,{"$f":"#REF!","v":{"$error":"#REF!"}},{"$f":"#REF!","v":{"$error":"#REF!"}},null,null,{"$f":"#REF!","v":{"$error":"#REF!"}},800001965,"http://www.xbrl.org/scheme/companyName",null,{"$f":"Periodos!$D$4","v":"2016-12-31"},{"$f":"#REF!","v":{"$error":"#REF!"}},{"$f":"#REF!","v":{"$error":"#REF!"}}]
[{"$error":"#REF!"},null,{"$f":"#REF!","v":{"$error":"#REF!"}},{"$f":"#REF!","v":{"$error":"#REF!"}},null,null,{"$f":"#REF!","v":{"$error":"#REF!"}},800001965,"http://www.xbrl.org/scheme/companyName",null,{"$f":"Periodos!$D$4","v":"2016-12-31"},{"$f":"#REF!","v":{"$error":"#REF!"}},{"$f":"#REF!","v":{"$error":"#REF!"}}]
[{"$error":"#REF!"},null,{"$f":"#REF!","v":{"$error":"#REF!"}},{"$f":"#REF!","v":{"$error":"#REF!"}},null,null,{"$f":"#REF!","v":{"$error":"#REF!"}},800001965,"http://www.xbrl.org/scheme/companyName",null,{"$f":"Periodos!$D$4","v":"2016-12-31"},{"$f":"#REF!","v":{"$error":"#REF!"}},{"$f":"#REF!","v":{"$error":"#REF!"}}]
[{"$error":"#REF!"},null,{"$f":"#REF!","v":{"$error":"#REF!"}},{"$f":"#REF!","v":{"$error":"#REF!"}},null,null,{"$f":"#REF!","v":{"$error":"#REF!"}},800001965,"http://www.xbrl.org/scheme/companyName",null,{"$f":"Periodos!$D$4","v":"2016-12-31"},{"$f":"#REF!","v":{"$error":"#REF!"}},{"$f":"#REF!","v":{"$error":"#REF!"}}]
[{"$error":"#REF!"},null,{"$f":"#REF!","v":{"$error":"#REF!"}},{"$f":"#REF!","v":{"$error":"#REF!"}},0,"peso",{"$f":"#REF!","v":{"$error":"#REF!"}},800001965,"http://www.xbrl.org/scheme/companyName",null,{"$f":"Periodos!$D$4","v":"2016-12-31"},{"$f":"#REF!","v":{"$error":"#REF!"}},{"$f":"#REF!","v":{"$error":"#REF!"}}]
["/*",null,"--40--"]
[{"$error":"#REF!"},null,{"$f":"#REF!","v":{"$error":"#REF!"}},{"$f":"#REF!","v":{"$error":"#REF!"}},null,null,{"$f":"#REF!","v":{"$error":"#REF!"}},800001965,"http://www.xbrl.org/scheme/companyName",null,{"$f":"Periodos!$D$4","v":"2016-12-31"},{"$f":"#REF!","v":{"$error":"#REF!"}},{"$f":"#REF!","v":{"$error":"#REF!"}}]
[{"$error":"#REF!"},null,{"$f":"#REF!","v":{"$error":"#REF!"}},{"$f":"#REF!","v":{"$error":"#REF!"}},null,null,{"$f":"#REF!","v":{"$error":"#REF!"}},800001965,"http://www.xbrl.org/scheme/companyName",null,{"$f":"Periodos!$D$4","v":"2016-12-31"},{"$f":"#REF!","v":{"$error":"#REF!"}},{"$f":"#REF!","v":{"$error":"#REF!"}}]
[{"$error":"#REF!"},null,{"$f":"#REF!","v":{"$error":"#REF!"}},{"$f":"#REF!","v":{"$error":"#REF!"}},null,null,{"$f":"#REF!","v":{"$error":"#REF!"}},800001965,"http://www.xbrl.org/scheme/companyName",null,{"$f":"Periodos!$D$4","v":"2016-12-31"},{"$f":"#REF!","v":{"$error":"#REF!"}},{"$f":"#REF!","v":{"$error":"#REF!"}}]
[{"$error":"#REF!"},null,{"$f":"#REF!","v":{"$error":"#REF!"}},{"$f":"#REF!","v":{"$error":"#REF!"}},null,null,{"$f":"#REF!","v":{"$error":"#REF!"}},800001965,"http://www.xbrl.org/scheme/companyName",null,{"$f":"Periodos!$D$4","v":"2016-12-31"},{"$f":"#REF!","v":{"$error":"#REF!"}},{"$f":"#REF!","v":{"$error":"#REF!"}}]
[{"$error":"#REF!"},null,{"$f":"#REF!","v":{"$error":"#REF!"}},{"$f":"#REF!","v":{"$error":"#REF!"}},null,null,{"$f":"#REF!","v":{"$error":"#REF!"}},800001965,"http://www.xbrl.org/scheme/companyName",null,{"$f":"Periodos!$D$4","v":"2016-12-31"},{"$f":"#REF!","v":{"$error":"#REF!"}},{"$f":"#REF!","v":{"$error":"#REF!"}}]
[{"$error":"#REF!"},null,{"$f":"#REF!","v":{"$error":"#REF!"}},{"$f":"#REF!","v":{"$error":"#REF!"}},null,null,{"$f":"#REF!","v":{"$error":"#REF!"}},800001965,"http://www.xbrl.org/scheme/companyName",null,{"$f":"Periodos!$D$4","v":"2016-12-31"},{"$f":"#REF!","v":{"$error":"#REF!"}},{"$f":"#REF!","v":{"$error":"#REF!"}}]
[{"$error":"#REF!"},null,{"$f":"#REF!","v":{"$error":"#REF!"}},{"$f":"#REF!","v":{"$error":"#REF!"}},null,null,{"$f":"#REF!","v":{"$error":"#REF!"}},800001965,"http://www.xbrl.org/scheme/companyName",null,{"$f":"Periodos!$D$4","v":"2016-12-31"},{"$f":"#REF!","v":{"$error":"#REF!"}},{"$f":"#REF!","v":{"$error":"#REF!"}}]
[{"$error":"#REF!"},null,{"$f":"#REF!","v":{"$error":"#REF!"}},{"$f":"#REF!","v":{"$error":"#REF!"}},null,null,{"$f":"#REF!","v":{"$error":"#REF!"}},800001965,"http://www.xbrl.org/scheme/companyName",null,{"$f":"Periodos!$D$4","v":"2016-12-31"},{"$f":"#REF!","v":{"$error":"#REF!"}},{"$f":"#REF!","v":{"$error":"#REF!"}}]
[{"$error":"#REF!"},null,{"$f":"#REF!","v":{"$error":"#REF!"}},{"$f":"#REF!","v":{"$error":"#REF!"}},null,null,{"$f":"#REF!","v":{"$error":"#REF!"}},800001965,"http://www.xbrl.org/scheme/companyName",null,{"$f":"Periodos!$D$4","v":"2016-12-31"},{"$f":"#REF!","v":{"$error":"#REF!"}},{"$f":"#REF!","v":{"$error":"#REF!"}}]
[{"$error":"#REF!"},null,{"$f":"#REF!","v":{"$error":"#REF!"}},{"$f":"#REF!","v":{"$error":"#REF!"}},null,null,{"$f":"#REF!","v":{"$error":"#REF!"}},800001965,"http://www.xbrl.org/scheme/companyName",null,{"$f":"Periodos!$D$4","v":"2016-12-31"},{"$f":"#REF!","v":{"$error":"#REF!"}},{"$f":"#REF!","v":{"$error":"#REF!"}}]
[{"$error":"#REF!"},null,{"$f":"#REF!","v":{"$error":"#REF!"}},{"$f":"#REF!","v":{"$error":"#REF!"}},null,null,{"$f":"#REF!","v":{"$error":"#REF!"}},800001965,"http://www.xbrl.org/scheme/companyName",null,{"$f":"Periodos!$D$4","v":"2016-12-31"},{"$f":"#REF!","v":{"$error":"#REF!"}},{"$f":"#REF!","v":{"$error":"#REF!"}}]
[{"$error":"#REF!"},null,{"$f":"#REF!","v":{"$error":"#REF!"}},{"$f":"#REF!","v":{"$error":"#REF!"}},0,"peso",{"$f":"#REF!","v":{"$error":"#REF!"}},800001965,"http://www.xbrl.org/scheme/companyName",null,{"$f":"Periodos!$D$4","v":"2016-12-31"},{"$f":"#REF!","v":{"$error":"#REF!"}},{"$f":"#REF!","v":{"$error":"#REF!"}}]
["/*",null,"--41--"]
[{"$error":"#REF!"},null,{"$f":"#REF!","v":{"$error":"#REF!"}},{"$f":"#REF!","v":{"$error":"#REF!"}},null,null,{"$f":"#REF!","v":{"$error":"#REF!"}},800001965,"http://www.xbrl.org/scheme/companyName",null,{"$f":"Periodos!$D$4","v":"2016-12-31"},{"$f":"#REF!","v":{"$error":"#REF!"}},{"$f":"#REF!","v":{"$error":"#REF!"}}]
[{"$error":"#REF!"},null,{"$f":"#REF!","v":{"$error":"#REF!"}},{"$f":"#REF!","v":{"$error":"#REF!"}},null,null,{"$f":"#REF!","v":{"$error":"#REF!"}},800001965,"http://www.xbrl.org/scheme/companyName",null,{"$f":"Periodos!$D$4","v":"2016-12-31"},{"$f":"#REF!","v":{"$error":"#REF!"}},{"$f":"#REF!","v":{"$error":"#REF!"}}]
[{"$error":"#REF!"},null,{"$f":"#REF!","v":{"$error":"#REF!"}},{"$f":"#REF!","v":{"$error":"#REF!"}},null,null,{"$f":"#REF!","v":{"$error":"#REF!"}},800001965,"http://www.xbrl.org/scheme/companyName",null,{"$f":"Periodos!$D$4","v":"2016-12-31"},{"$f":"#REF!","v":{"$error":"#REF!"}},{"$f":"#REF!","v":{"$error":"#REF!"}}]
[{"$error":"#REF!"},null,{"$f":"#REF!","v":{"$error":"#REF!"}},{"$f":"#REF!","v":{"$error":"#REF!"}},null,null,{"$f":"#REF!","v":{"$error":"#REF!"}},800001965,"http://www.xbrl.org/scheme/companyName",null,{"$f":"Periodos!$D$4","v":"2016-12-31"},{"$f":"#REF!","v":{"$error":"#REF!"}},{"$f":"#REF!","v":{"$error":"#REF!"}}]
[{"$error":"#REF!"},null,{"$f":"#REF!","v":{"$error":"#REF!"}},{"$f":"#REF!","v":{"$error":"#REF!"}},null,null,{"$f":"#REF!","v":{"$error":"#REF!"}},800001965,"http://www.xbrl.org/scheme/companyName",null,{"$f":"Periodos!$D$4","v":"2016-12-31"},{"$f":"#REF!","v":{"$error":"#REF!"}},{"$f":"#REF!","v":{"$error":"#REF!"}}]
[{"$error":"#REF!"},null,{"$f":"#REF!","v":{"$error":"#REF!"}},{"$f":"#REF!","v":{"$error":"#REF!"}},null,null,{"$f":"#REF!","v":{"$error":"#REF!"}},800001965,"http://www.xbrl.org/scheme/companyName",null,{"$f":"Periodos!$D$4","v":"2016-12-31"},{"$f":"#REF!","v":{"$error":"#REF!"}},{"$f":"#REF!","v":{"$error":"#REF!"}}]
[{"$error":"#REF!"},null,{"$f":"#REF!","v":{"$error":"#REF!"}},{"$f":"#REF!","v":{"$error":"#REF!"}},null,null,{"$f":"#REF!","v":{"$error":"#REF!"}},800001965,"http://www.xbrl.org/scheme/companyName",null,{"$f":"Periodos!$D$4","v":"2016-12-31"},{"$f":"#REF!","v":{"$error":"#REF!"}},{"$f":"#REF!","v":{"$error":"#REF!"}}]
[{"$error":"#REF!"},null,{"$f":"#REF!","v":{"$error":"#REF!"}},{"$f":"#REF!","v":{"$error":"#REF!"}},null,null,{"$f":"#REF!","v":{"$error":"#REF!"}},800001965,"http://www.xbrl.org/scheme/companyName",null,{"$f":"Periodos!$D$4","v":"2016-12-31"},{"$f":"#REF!","v":{"$error":"#REF!"}},{"$f":"#REF!","v":{"$error":"#REF!"}}]
[{"$error":"#REF!"},null,{"$f":"#REF!","v":{"$error":"#REF!"}},{"$f":"#REF!","v":{"$error":"#REF!"}},null,null,{"$f":"#REF!","v":{"$error":"#REF!"}},800001965,"http://www.xbrl.org/scheme/companyName",null,{"$f":"Periodos!$D$4","v":"2016-12-31"},{"$f":"#REF!","v":{"$error":"#REF!"}},{"$f":"#REF!","v":{"$error":"#REF!"}}]
[{"$error":"#REF!"},null,{"$f":"#REF!","v":{"$error":"#REF!"}},{"$f":"#REF!","v":{"$error":"#REF!"}},null,null,{"$f":"#REF!","v":{"$error":"#REF!"}},800001965,"http://www.xbrl.org/scheme/companyName",null,{"$f":"Periodos!$D$4","v":"2016-12-31"},{"$f":"#REF!","v":{"$error":"#REF!"}},{"$f":"#REF!","v":{"$error":"#REF!"}}]
[{"$error":"#REF!"},null,{"$f":"#REF!","v":{"$error":"#REF!"}},{"$f":"#REF!","v":{"$error":"#REF!"}},null,null,{"$f":"#REF!","v":{"$error":"#REF!"}},800001965,"http://www.xbrl.org/scheme/companyName",null,{"$f":"Periodos!$D$4","v":"2016-12-31"},{"$f":"#REF!","v":{"$error":"#REF!"}},{"$f":"#REF!","v":{"$error":"#REF!"}}]
[{"$error":"#REF!"},null,{"$f":"#REF!","v":{"$error":"#REF!"}},{"$f":"#REF!","v":{"$error":"#REF!"}},0,"peso",{"$f":"#REF!","v":{"$error":"#REF!"}},800001965,"http://www.xbrl.org/scheme/companyName",null,{"$f":"Periodos!$D$4","v":"2016-12-31"},{"$f":"#REF!","v":{"$error":"#REF!"}},{"$f":"#REF!","v":{"$error":"#REF!"}}]
["/*",null,"--42--"]
[{"$error":"#REF!"},null,{"$f":"#REF!","v":{"$error":"#REF!"}},{"$f":"#REF!","v":{"$error":"#REF!"}},null,null,{"$f":"#REF!","v":{"$error":"#REF!"}},800001965,"http://www.xbrl.org/scheme/companyName",null,{"$f":"Periodos!$D$4","v":"2016-12-31"},{"$f":"#REF!","v":{"$error":"#REF!"}},{"$f":"#REF!","v":{"$error":"#REF!"}}]
[{"$error":"#REF!"},null,{"$f":"#REF!","v":{"$error":"#REF!"}},{"$f":"#REF!","v":{"$error":"#REF!"}},null,null,{"$f":"#REF!","v":{"$error":"#REF!"}},800001965,"http://www.xbrl.org/scheme/companyName",null,{"$f":"Periodos!$D$4","v":"2016-12-31"},{"$f":"#REF!","v":{"$error":"#REF!"}},{"$f":"#REF!","v":{"$error":"#REF!"}}]
[{"$error":"#REF!"},null,{"$f":"#REF!","v":{"$error":"#REF!"}},{"$f":"#REF!","v":{"$error":"#REF!"}},null,null,{"$f":"#REF!","v":{"$error":"#REF!"}},800001965,"http://www.xbrl.org/scheme/companyName",null,{"$f":"Periodos!$D$4","v":"2016-12-31"},{"$f":"#REF!","v":{"$error":"#REF!"}},{"$f":"#REF!","v":{"$error":"#REF!"}}]
[{"$error":"#REF!"},null,{"$f":"#REF!","v":{"$error":"#REF!"}},{"$f":"#REF!","v":{"$error":"#REF!"}},null,null,{"$f":"#REF!","v":{"$error":"#REF!"}},800001965,"http://www.xbrl.org/scheme/companyName",null,{"$f":"Periodos!$D$4","v":"2016-12-31"},{"$f":"#REF!","v":{"$error":"#REF!"}},{"$f":"#REF!","v":{"$error":"#REF!"}}]
[{"$error":"#REF!"},null,{"$f":"#REF!","v":{"$error":"#REF!"}},{"$f":"#REF!","v":{"$error":"#REF!"}},null,null,{"$f":"#REF!","v":{"$error":"#REF!"}},800001965,"http://www.xbrl.org/scheme/companyName",null,{"$f":"Periodos!$D$4","v":"2016-12-31"},{"$f":"#REF!","v":{"$error":"#REF!"}},{"$f":"#REF!","v":{"$error":"#REF!"}}]
[{"$error":"#REF!"},null,{"$f":"#REF!","v":{"$error":"#REF!"}},{"$f":"#REF!","v":{"$error":"#REF!"}},null,null,{"$f":"#REF!","v":{"$error":"#REF!"}},800001965,"http://www.xbrl.org/scheme/companyName",null,{"$f":"Periodos!$D$4","v":"2016-12-31"},{"$f":"#REF!","v":{"$error":"#REF!"}},{"$f":"#REF!","v":{"$error":"#REF!"}}]
[{"$error":"#REF!"},null,{"$f":"#REF!","v":{"$error":"#REF!"}},{"$f":"#REF!","v":{"$error":"#REF!"}},null,null,{"$f":"#REF!","v":{"$error":"#REF!"}},800001965,"http://www.xbrl.org/scheme/companyName",null,{"$f":"Periodos!$D$4","v":"2016-12-31"},{"$f":"#REF!","v":{"$error":"#REF!"}},{"$f":"#REF!","v":{"$error":"#REF!"}}]
[{"$error":"#REF!"},null,{"$f":"#REF!","v":{"$error":"#REF!"}},{"$f":"#REF!","v":{"$error":"#REF!"}},null,null,{"$f":"#REF!","v":{"$error":"#REF!"}},800001965,"http://www.xbrl.org/scheme/companyName",null,{"$f":"Periodos!$D$4","v":"2016-12-31"},{"$f":"#REF!","v":{"$error":"#REF!"}},{"$f":"#REF!","v":{"$error":"#REF!"}}]
[{"$error":"#REF!"},null,{"$f":"#REF!","v":{"$error":"#REF!"}},{"$f":"#REF!","v":{"$error":"#REF!"}},null,null,{"$f":"#REF!","v":{"$error":"#REF!"}},800001965,"http://www.xbrl.org/scheme/companyName",null,{"$f":"Periodos!$D$4","v":"2016-12-31"},{"$f":"#REF!","v":{"$error":"#REF!"}},{"$f":"#REF!","v":{"$error":"#REF!"}}]
[{"$error":"#REF!"},null,{"$f":"#REF!","v":{"$error":"#REF!"}},{"$f":"#REF!","v":{"$error":"#REF!"}},null,null,{"$f":"#REF!","v":{"$error":"#REF!"}},800001965,"http://www.xbrl.org/scheme/companyName",null,{"$f":"Periodos!$D$4","v":"2016-12-31"},{"$f":"#REF!","v":{"$error":"#REF!"}},{"$f":"#REF!","v":{"$error":"#REF!"}}]
[{"$error":"#REF!"},null,{"$f":"#REF!","v":{"$error":"#REF!"}},{"$f":"#REF!","v":{"$error":"#REF!"}},null,null,{"$f":"#REF!","v":{"$error":"#REF!"}},800001965,"http://www.xbrl.org/scheme/companyName",null,{"$f":"Periodos!$D$4","v":"2016-12-31"},{"$f":"#REF!","v":{"$error":"#REF!"}},{"$f":"#REF!","v":{"$error":"#REF!"}}]
[{"$error":"#REF!"},null,{"$f":"#REF!","v":{"$error":"#REF!"}},{"$f":"#REF!","v":{"$error":"#REF!"}},0,"peso",{"$f":"#REF!","v":{"$error":"#REF!"}},800001965,"http://www.xbrl.org/scheme/companyName",null,{"$f":"Periodos!$D$4","v":"2016-12-31"},{"$f":"#REF!","v":{"$error":"#REF!"}},{"$f":"#REF!","v":{"$error":"#REF!"}}]
["/*",null,"--43--"]
[{"$error":"#REF!"},null,{"$f":"#REF!","v":{"$error":"#REF!"}},{"$f":"#REF!","v":{"$error":"#REF!"}},null,null,{"$f":"#REF!","v":{"$error":"#REF!"}},800001965,"http://www.xbrl.org/scheme/companyName",null,{"$f":"Periodos!$D$4","v":"2016-12-31"},{"$f":"#REF!","v":{"$error":"#REF!"}},{"$f":"#REF!","v":{"$error":"#REF!"}}]
[{"$error":"#REF!"},null,{"$f":"#REF!","v":{"$error":"#REF!"}},{"$f":"#REF!","v":{"$error":"#REF!"}},null,null,{"$f":"#REF!","v":{"$error":"#REF!"}},800001965,"http://www.xbrl.org/scheme/companyName",null,{"$f":"Periodos!$D$4","v":"2016-12-31"},{"$f":"#REF!","v":{"$error":"#REF!"}},{"$f":"#REF!","v":{"$error":"#REF!"}}]
[{"$error":"#REF!"},null,{"$f":"#REF!","v":{"$error":"#REF!"}},{"$f":"#REF!","v":{"$error":"#REF!"}},null,null,{"$f":"#REF!","v":{"$error":"#REF!"}},800001965,"http://www.xbrl.org/scheme/companyName",null,{"$f":"Periodos!$D$4","v":"2016-12-31"},{"$f":"#REF!","v":{"$error":"#REF!"}},{"$f":"#REF!","v":{"$error":"#REF!"}}]
[{"$error":"#REF!"},null,{"$f":"#REF!","v":{"$error":"#REF!"}},{"$f":"#REF!","v":{"$error":"#REF!"}},null,null,{"$f":"#REF!","v":{"$error":"#REF!"}},800001965,"http://www.xbrl.org/scheme/companyName",null,{"$f":"Periodos!$D$4","v":"2016-12-31"},{"$f":"#REF!","v":{"$error":"#REF!"}},{"$f":"#REF!","v":{"$error":"#REF!"}}]
[{"$error":"#REF!"},null,{"$f":"#REF!","v":{"$error":"#REF!"}},{"$f":"#REF!","v":{"$error":"#REF!"}},null,null,{"$f":"#REF!","v":{"$error":"#REF!"}},800001965,"http://www.xbrl.org/scheme/companyName",null,{"$f":"Periodos!$D$4","v":"2016-12-31"},{"$f":"#REF!","v":{"$error":"#REF!"}},{"$f":"#REF!","v":{"$error":"#REF!"}}]
[{"$error":"#REF!"},null,{"$f":"#REF!","v":{"$error":"#REF!"}},{"$f":"#REF!","v":{"$error":"#REF!"}},null,null,{"$f":"#REF!","v":{"$error":"#REF!"}},800001965,"http://www.xbrl.org/scheme/companyName",null,{"$f":"Periodos!$D$4","v":"2016-12-31"},{"$f":"#REF!","v":{"$error":"#REF!"}},{"$f":"#REF!","v":{"$error":"#REF!"}}]
[{"$error":"#REF!"},null,{"$f":"#REF!","v":{"$error":"#REF!"}},{"$f":"#REF!","v":{"$error":"#REF!"}},null,null,{"$f":"#REF!","v":{"$error":"#REF!"}},800001965,"http://www.xbrl.org/scheme/companyName",null,{"$f":"Periodos!$D$4","v":"2016-12-31"},{"$f":"#REF!","v":{"$error":"#REF!"}},{"$f":"#REF!","v":{"$error":"#REF!"}}]
[{"$error":"#REF!"},null,{"$f":"#REF!","v":{"$error":"#REF!"}},{"$f":"#REF!","v":{"$error":"#REF!"}},null,null,{"$f":"#REF!","v":{"$error":"#REF!"}},800001965,"http://www.xbrl.org/scheme/companyName",null,{"$f":"Periodos!$D$4","v":"2016-12-31"},{"$f":"#REF!","v":{"$error":"#REF!"}},{"$f":"#REF!","v":{"$error":"#REF!"}}]
[{"$error":"#REF!"},null,{"$f":"#REF!","v":{"$error":"#REF!"}},{"$f":"#REF!","v":{"$error":"#REF!"}},null,null,{"$f":"#REF!","v":{"$error":"#REF!"}},800001965,"http://www.xbrl.org/scheme/companyName",null,{"$f":"Periodos!$D$4","v":"2016-12-31"},{"$f":"#REF!","v":{"$error":"#REF!"}},{"$f":"#REF!","v":{"$error":"#REF!"}}]
[{"$error":"#REF!"},null,{"$f":"#REF!","v":{"$error":"#REF!"}},{"$f":"#REF!","v":{"$error":"#REF!"}},null,null,{"$f":"#REF!","v":{"$error":"#REF!"}},800001965,"http://www.xbrl.org/scheme/companyName",null,{"$f":"Periodos!$D$4","v":"2016-12-31"},{"$f":"#REF!","v":{"$error":"#REF!"}},{"$f":"#REF!","v":{"$error":"#REF!"}}]
[{"$f":"IF(G4321=\"\",\"/*\",\"\")","v":{"$error":"#REF!"}},null,{"$f":"#REF!","v":{"$error":"#REF!"}},{"$f":"#REF!","v":{"$error":"#REF!"}},null,null,{"$f":"#REF!","v":{"$error":"#REF!"}},800001965,"http://www.xbrl.org/scheme/companyName",null,{"$f":"Periodos!$D$4","v":"2016-12-31"},{"$f":"#REF!","v":{"$error":"#REF!"}},{"$f":"#REF!","v":{"$error":"#REF!"}}]
[{"$error":"#REF!"},null,{"$f":"#REF!","v":{"$error":"#REF!"}},{"$f":"#REF!","v":{"$error":"#REF!"}},0,"peso",{"$f":"#REF!","v":{"$error":"#REF!"}},800001965,"http://www.xbrl.org/scheme/companyName",null,{"$f":"Periodos!$D$4","v":"2016-12-31"},{"$f":"#REF!","v":{"$error":"#REF!"}},{"$f":"#REF!","v":{"$error":"#REF!"}}]
["/*",null,"--44--"]
[{"$error":"#REF!"},null,{"$f":"#REF!","v":{"$error":"#REF!"}},{"$f":"#REF!","v":{"$error":"#REF!"}},null,null,{"$f":"#REF!","v":{"$error":"#REF!"}},800001965,"http://www.xbrl.org/scheme/companyName",null,{"$f":"Periodos!$D$4","v":"2016-12-31"},{"$f":"#REF!","v":{"$error":"#REF!"}},{"$f":"#REF!","v":{"$error":"#REF!"}}]
[{"$error":"#REF!"},null,{"$f":"#REF!","v":{"$error":"#REF!"}},{"$f":"#REF!","v":{"$error":"#REF!"}},null,null,{"$f":"#REF!","v":{"$error":"#REF!"}},800001965,"http://www.xbrl.org/scheme/companyName",null,{"$f":"Periodos!$D$4","v":"2016-12-31"},{"$f":"#REF!","v":{"$error":"#REF!"}},{"$f":"#REF!","v":{"$error":"#REF!"}}]
[{"$error":"#REF!"},null,{"$f":"#REF!","v":{"$error":"#REF!"}},{"$f":"#REF!","v":{"$error":"#REF!"}},null,null,{"$f":"#REF!","v":{"$error":"#REF!"}},800001965,"http://www.xbrl.org/scheme/companyName",null,{"$f":"Periodos!$D$4","v":"2016-12-31"},{"$f":"#REF!","v":{"$error":"#REF!"}},{"$f":"#REF!","v":{"$error":"#REF!"}}]
[{"$error":"#REF!"},null,{"$f":"#REF!","v":{"$error":"#REF!"}},{"$f":"#REF!","v":{"$error":"#REF!"}},null,null,{"$f":"#REF!","v":{"$error":"#REF!"}},800001965,"http://www.xbrl.org/scheme/companyName",null,{"$f":"Periodos!$D$4","v":"2016-12-31"},{"$f":"#REF!","v":{"$error":"#REF!"}},{"$f":"#REF!","v":{"$error":"#REF!"}}]
[{"$error":"#REF!"},null,{"$f":"#REF!","v":{"$error":"#REF!"}},{"$f":"#REF!","v":{"$error":"#REF!"}},null,null,{"$f":"#REF!","v":{"$error":"#REF!"}},800001965,"http://www.xbrl.org/scheme/companyName",null,{"$f":"Periodos!$D$4","v":"2016-12-31"},{"$f":"#REF!","v":{"$error":"#REF!"}},{"$f":"#REF!","v":{"$error":"#REF!"}}]
[{"$error":"#REF!"},null,{"$f":"#REF!","v":{"$error":"#REF!"}},{"$f":"#REF!","v":{"$error":"#REF!"}},null,null,{"$f":"#REF!","v":{"$error":"#REF!"}},800001965,"http://www.xbrl.org/scheme/companyName",null,{"$f":"Periodos!$D$4","v":"2016-12-31"},{"$f":"#REF!","v":{"$error":"#REF!"}},{"$f":"#REF!","v":{"$error":"#REF!"}}]
[{"$error":"#REF!"},null,{"$f":"#REF!","v":{"$error":"#REF!"}},{"$f":"#REF!","v":{"$error":"#REF!"}},null,null,{"$f":"#REF!","v":{"$error":"#REF!"}},800001965,"http://www.xbrl.org/scheme/companyName",null,{"$f":"Periodos!$D$4","v":"2016-12-31"},{"$f":"#REF!","v":{"$error":"#REF!"}},{"$f":"#REF!","v":{"$error":"#REF!"}}]
[{"$error":"#REF!"},null,{"$f":"#REF!","v":{"$error":"#REF!"}},{"$f":"#REF!","v":{"$error":"#REF!"}},null,null,{"$f":"#REF!","v":{"$error":"#REF!"}},800001965,"http://www.xbrl.org/scheme/companyName",null,{"$f":"Periodos!$D$4","v":"2016-12-31"},{"$f":"#REF!","v":{"$error":"#REF!"}},{"$f":"#REF!","v":{"$error":"#REF!"}}]
[{"$error":"#REF!"},null,{"$f":"#REF!","v":{"$error":"#REF!"}},{"$f":"#REF!","v":{"$error":"#REF!"}},null,null,{"$f":"#REF!","v":{"$error":"#REF!"}},800001965,"http://www.xbrl.org/scheme/companyName",null,{"$f":"Periodos!$D$4","v":"2016-12-31"},{"$f":"#REF!","v":{"$error":"#REF!"}},{"$f":"#REF!","v":{"$error":"#REF!"}}]
[{"$error":"#REF!"},null,{"$f":"#REF!","v":{"$error":"#REF!"}},{"$f":"#REF!","v":{"$error":"#REF!"}},null,null,{"$f":"#REF!","v":{"$error":"#REF!"}},800001965,"http://www.xbrl.org/scheme/companyName",null,{"$f":"Periodos!$D$4","v":"2016-12-31"},{"$f":"#REF!","v":{"$error":"#REF!"}},{"$f":"#REF!","v":{"$error":"#REF!"}}]
[{"$error":"#REF!"},null,{"$f":"#REF!","v":{"$error":"#REF!"}},{"$f":"#REF!","v":{"$error":"#REF!"}},null,null,{"$f":"#REF!","v":{"$error":"#REF!"}},800001965,"http://www.xbrl.org/scheme/companyName",null,{"$f":"Periodos!$D$4","v":"2016-12-31"},{"$f":"#REF!","v":{"$error":"#REF!"}},{"$f":"#REF!","v":{"$error":"#REF!"}}]
[{"$error":"#REF!"},null,{"$f":"#REF!","v":{"$error":"#REF!"}},{"$f":"#REF!","v":{"$error":"#REF!"}},0,"peso",{"$f":"#REF!","v":{"$error":"#REF!"}},800001965,"http://www.xbrl.org/scheme/companyName",null,{"$f":"Periodos!$D$4","v":"2016-12-31"},{"$f":"#REF!","v":{"$error":"#REF!"}},{"$f":"#REF!","v":{"$error":"#REF!"}}]
["/*",null,"--45--"]
[{"$error":"#REF!"},null,{"$f":"#REF!","v":{"$error":"#REF!"}},{"$f":"#REF!","v":{"$error":"#REF!"}},null,null,{"$f":"#REF!","v":{"$error":"#REF!"}},800001965,"http://www.xbrl.org/scheme/companyName",null,{"$f":"Periodos!$D$4","v":"2016-12-31"},{"$f":"#REF!","v":{"$error":"#REF!"}},{"$f":"#REF!","v":{"$error":"#REF!"}}]
[{"$error":"#REF!"},null,{"$f":"#REF!","v":{"$error":"#REF!"}},{"$f":"#REF!","v":{"$error":"#REF!"}},null,null,{"$f":"#REF!","v":{"$error":"#REF!"}},800001965,"http://www.xbrl.org/scheme/companyName",null,{"$f":"Periodos!$D$4","v":"2016-12-31"},{"$f":"#REF!","v":{"$error":"#REF!"}},{"$f":"#REF!","v":{"$error":"#REF!"}}]
[{"$error":"#REF!"},null,{"$f":"#REF!","v":{"$error":"#REF!"}},{"$f":"#REF!","v":{"$error":"#REF!"}},null,null,{"$f":"#REF!","v":{"$error":"#REF!"}},800001965,"http://www.xbrl.org/scheme/companyName",null,{"$f":"Periodos!$D$4","v":"2016-12-31"},{"$f":"#REF!","v":{"$error":"#REF!"}},{"$f":"#REF!","v":{"$error":"#REF!"}}]
[{"$error":"#REF!"},null,{"$f":"#REF!","v":{"$error":"#REF!"}},{"$f":"#REF!","v":{"$error":"#REF!"}},null,null,{"$f":"#REF!","v":{"$error":"#REF!"}},800001965,"http://www.xbrl.org/scheme/companyName",null,{"$f":"Periodos!$D$4","v":"2016-12-31"},{"$f":"#REF!","v":{"$error":"#REF!"}},{"$f":"#REF!","v":{"$error":"#REF!"}}]
[{"$error":"#REF!"},null,{"$f":"#REF!","v":{"$error":"#REF!"}},{"$f":"#REF!","v":{"$error":"#REF!"}},null,null,{"$f":"#REF!","v":{"$error":"#REF!"}},800001965,"http://www.xbrl.org/scheme/companyName",null,{"$f":"Periodos!$D$4","v":"2016-12-31"},{"$f":"#REF!","v":{"$error":"#REF!"}},{"$f":"#REF!","v":{"$error":"#REF!"}}]
[{"$error":"#REF!"},null,{"$f":"#REF!","v":{"$error":"#REF!"}},{"$f":"#REF!","v":{"$error":"#REF!"}},null,null,{"$f":"#REF!","v":{"$error":"#REF!"}},800001965,"http://www.xbrl.org/scheme/companyName",null,{"$f":"Periodos!$D$4","v":"2016-12-31"},{"$f":"#REF!","v":{"$error":"#REF!"}},{"$f":"#REF!","v":{"$error":"#REF!"}}]
[{"$error":"#REF!"},null,{"$f":"#REF!","v":{"$error":"#REF!"}},{"$f":"#REF!","v":{"$error":"#REF!"}},null,null,{"$f":"#REF!","v":{"$error":"#REF!"}},800001965,"http://www.xbrl.org/scheme/companyName",null,{"$f":"Periodos!$D$4","v":"2016-12-31"},{"$f":"#REF!","v":{"$error":"#REF!"}},{"$f":"#REF!","v":{"$error":"#REF!"}}]
[{"$error":"#REF!"},null,{"$f":"#REF!","v":{"$error":"#REF!"}},{"$f":"#REF!","v":{"$error":"#REF!"}},null,null,{"$f":"#REF!","v":{"$error":"#REF!"}},800001965,"http://www.xbrl.org/scheme/companyName",null,{"$f":"Periodos!$D$4","v":"2016-12-31"},{"$f":"#REF!","v":{"$error":"#REF!"}},{"$f":"#REF!","v":{"$error":"#REF!"}}]
[{"$error":"#REF!"},null,{"$f":"#REF!","v":{"$error":"#REF!"}},{"$f":"#REF!","v":{"$error":"#REF!"}},null,null,{"$f":"#REF!","v":{"$error":"#REF!"}},800001965,"http://www.xbrl.org/scheme/companyName",null,{"$f":"Periodos!$D$4","v":"2016-12-31"},{"$f":"#REF!","v":{"$error":"#REF!"}},{"$f":"#REF!","v":{"$error":"#REF!"}}]
[{"$error":"#REF!"},null,{"$f":"#REF!","v":{"$error":"#REF!"}},{"$f":"#REF!","v":{"$error":"#REF!"}},null,null,{"$f":"#REF!","v":{"$error":"#REF!"}},800001965,"http://www.xbrl.org/scheme/companyName",null,{"$f":"Periodos!$D$4","v":"2016-12-31"},{"$f":"#REF!","v":{"$error":"#REF!"}},{"$f":"#REF!","v":{"$error":"#REF!"}}]
[{"$error":"#REF!"},null,{"$f":"#REF!","v":{"$error":"#REF!"}},{"$f":"#REF!","v":{"$error":"#REF!"}},null,null,{"$f":"#REF!","v":{"$error":"#REF!"}},800001965,"http://www.xbrl.org/scheme/companyName",null,{"$f":"Periodos!$D$4","v":"2016-12-31"},{"$f":"#REF!","v":{"$error":"#REF!"}},{"$f":"#REF!","v":{"$error":"#REF!"}}]
[{"$error":"#REF!"},null,{"$f":"#REF!","v":{"$error":"#REF!"}},{"$f":"#REF!","v":{"$error":"#REF!"}},0,"peso",{"$f":"#REF!","v":{"$error":"#REF!"}},800001965,"http://www.xbrl.org/scheme/companyName",null,{"$f":"Periodos!$D$4","v":"2016-12-31"},{"$f":"#REF!","v":{"$error":"#REF!"}},{"$f":"#REF!","v":{"$error":"#REF!"}}]
["/*",null,"--46--"]
[{"$error":"#REF!"},null,{"$f":"#REF!","v":{"$error":"#REF!"}},{"$f":"#REF!","v":{"$error":"#REF!"}},null,null,{"$f":"#REF!","v":{"$error":"#REF!"}},800001965,"http://www.xbrl.org/scheme/companyName",null,{"$f":"Periodos!$D$4","v":"2016-12-31"},{"$f":"#REF!","v":{"$error":"#REF!"}},{"$f":"#REF!","v":{"$error":"#REF!"}}]
[{"$error":"#REF!"},null,{"$f":"#REF!","v":{"$error":"#REF!"}},{"$f":"#REF!","v":{"$error":"#REF!"}},null,null,{"$f":"#REF!","v":{"$error":"#REF!"}},800001965,"http://www.xbrl.org/scheme/companyName",null,{"$f":"Periodos!$D$4","v":"2016-12-31"},{"$f":"#REF!","v":{"$error":"#REF!"}},{"$f":"#REF!","v":{"$error":"#REF!"}}]
[{"$error":"#REF!"},null,{"$f":"#REF!","v":{"$error":"#REF!"}},{"$f":"#REF!","v":{"$error":"#REF!"}},null,null,{"$f":"#REF!","v":{"$error":"#REF!"}},800001965,"http://www.xbrl.org/scheme/companyName",null,{"$f":"Periodos!$D$4","v":"2016-12-31"},{"$f":"#REF!","v":{"$error":"#REF!"}},{"$f":"#REF!","v":{"$error":"#REF!"}}]
[{"$error":"#REF!"},null,{"$f":"#REF!","v":{"$error":"#REF!"}},{"$f":"#REF!","v":{"$error":"#REF!"}},null,null,{"$f":"#REF!","v":{"$error":"#REF!"}},800001965,"http://www.xbrl.org/scheme/companyName",null,{"$f":"Periodos!$D$4","v":"2016-12-31"},{"$f":"#REF!","v":{"$error":"#REF!"}},{"$f":"#REF!","v":{"$error":"#REF!"}}]
[{"$error":"#REF!"},null,{"$f":"#REF!","v":{"$error":"#REF!"}},{"$f":"#REF!","v":{"$error":"#REF!"}},null,null,{"$f":"#REF!","v":{"$error":"#REF!"}},800001965,"http://www.xbrl.org/scheme/companyName",null,{"$f":"Periodos!$D$4","v":"2016-12-31"},{"$f":"#REF!","v":{"$error":"#REF!"}},{"$f":"#REF!","v":{"$error":"#REF!"}}]
[{"$error":"#REF!"},null,{"$f":"#REF!","v":{"$error":"#REF!"}},{"$f":"#REF!","v":{"$error":"#REF!"}},null,null,{"$f":"#REF!","v":{"$error":"#REF!"}},800001965,"http://www.xbrl.org/scheme/companyName",null,{"$f":"Periodos!$D$4","v":"2016-12-31"},{"$f":"#REF!","v":{"$error":"#REF!"}},{"$f":"#REF!","v":{"$error":"#REF!"}}]
[{"$error":"#REF!"},null,{"$f":"#REF!","v":{"$error":"#REF!"}},{"$f":"#REF!","v":{"$error":"#REF!"}},null,null,{"$f":"#REF!","v":{"$error":"#REF!"}},800001965,"http://www.xbrl.org/scheme/companyName",null,{"$f":"Periodos!$D$4","v":"2016-12-31"},{"$f":"#REF!","v":{"$error":"#REF!"}},{"$f":"#REF!","v":{"$error":"#REF!"}}]
[{"$error":"#REF!"},null,{"$f":"#REF!","v":{"$error":"#REF!"}},{"$f":"#REF!","v":{"$error":"#REF!"}},null,null,{"$f":"#REF!","v":{"$error":"#REF!"}},800001965,"http://www.xbrl.org/scheme/companyName",null,{"$f":"Periodos!$D$4","v":"2016-12-31"},{"$f":"#REF!","v":{"$error":"#REF!"}},{"$f":"#REF!","v":{"$error":"#REF!"}}]
[{"$error":"#REF!"},null,{"$f":"#REF!","v":{"$error":"#REF!"}},{"$f":"#REF!","v":{"$error":"#REF!"}},null,null,{"$f":"#REF!","v":{"$error":"#REF!"}},800001965,"http://www.xbrl.org/scheme/companyName",null,{"$f":"Periodos!$D$4","v":"2016-12-31"},{"$f":"#REF!","v":{"$error":"#REF!"}},{"$f":"#REF!","v":{"$error":"#REF!"}}]
[{"$error":"#REF!"},null,{"$f":"#REF!","v":{"$error":"#REF!"}},{"$f":"#REF!","v":{"$error":"#REF!"}},null,null,{"$f":"#REF!","v":{"$error":"#REF!"}},800001965,"http://www.xbrl.org/scheme/companyName",null,{"$f":"Periodos!$D$4","v":"2016-12-31"},{"$f":"#REF!","v":{"$error":"#REF!"}},{"$f":"#REF!","v":{"$error":"#REF!"}}]
[{"$error":"#REF!"},null,{"$f":"#REF!","v":{"$error":"#REF!"}},{"$f":"#REF!","v":{"$error":"#REF!"}},null,null,{"$f":"#REF!","v":{"$error":"#REF!"}},800001965,"http://www.xbrl.org/scheme/companyName",null,{"$f":"Periodos!$D$4","v":"2016-12-31"},{"$f":"#REF!","v":{"$error":"#REF!"}},{"$f":"#REF!","v":{"$error":"#REF!"}}]
[{"$error":"#REF!"},null,{"$f":"#REF!","v":{"$error":"#REF!"}},{"$f":"#REF!","v":{"$error":"#REF!"}},0,"peso",{"$f":"#REF!","v":{"$error":"#REF!"}},800001965,"http://www.xbrl.org/scheme/companyName",null,{"$f":"Periodos!$D$4","v":"2016-12-31"},{"$f":"#REF!","v":{"$error":"#REF!"}},{"$f":"#REF!","v":{"$error":"#REF!"}}]
["/*",null,"--47--"]
[{"$error":"#REF!"},null,{"$f":"#REF!","v":{"$error":"#REF!"}},{"$f":"#REF!","v":{"$error":"#REF!"}},null,null,{"$f":"#REF!","v":{"$error":"#REF!"}},800001965,"http://www.xbrl.org/scheme/companyName",null,{"$f":"Periodos!$D$4","v":"2016-12-31"},{"$f":"#REF!","v":{"$error":"#REF!"}},{"$f":"#REF!","v":{"$error":"#REF!"}}]
[{"$error":"#REF!"},null,{"$f":"#REF!","v":{"$error":"#REF!"}},{"$f":"#REF!","v":{"$error":"#REF!"}},null,null,{"$f":"#REF!","v":{"$error":"#REF!"}},800001965,"http://www.xbrl.org/scheme/companyName",null,{"$f":"Periodos!$D$4","v":"2016-12-31"},{"$f":"#REF!","v":{"$error":"#REF!"}},{"$f":"#REF!","v":{"$error":"#REF!"}}]
[{"$error":"#REF!"},null,{"$f":"#REF!","v":{"$error":"#REF!"}},{"$f":"#REF!","v":{"$error":"#REF!"}},null,null,{"$f":"#REF!","v":{"$error":"#REF!"}},800001965,"http://www.xbrl.org/scheme/companyName",null,{"$f":"Periodos!$D$4","v":"2016-12-31"},{"$f":"#REF!","v":{"$error":"#REF!"}},{"$f":"#REF!","v":{"$error":"#REF!"}}]
[{"$error":"#REF!"},null,{"$f":"#REF!","v":{"$error":"#REF!"}},{"$f":"#REF!","v":{"$error":"#REF!"}},null,null,{"$f":"#REF!","v":{"$error":"#REF!"}},800001965,"http://www.xbrl.org/scheme/companyName",null,{"$f":"Periodos!$D$4","v":"2016-12-31"},{"$f":"#REF!","v":{"$error":"#REF!"}},{"$f":"#REF!","v":{"$error":"#REF!"}}]
[{"$error":"#REF!"},null,{"$f":"#REF!","v":{"$error":"#REF!"}},{"$f":"#REF!","v":{"$error":"#REF!"}},null,null,{"$f":"#REF!","v":{"$error":"#REF!"}},800001965,"http://www.xbrl.org/scheme/companyName",null,{"$f":"Periodos!$D$4","v":"2016-12-31"},{"$f":"#REF!","v":{"$error":"#REF!"}},{"$f":"#REF!","v":{"$error":"#REF!"}}]
[{"$error":"#REF!"},null,{"$f":"#REF!","v":{"$error":"#REF!"}},{"$f":"#REF!","v":{"$error":"#REF!"}},null,null,{"$f":"#REF!","v":{"$error":"#REF!"}},800001965,"http://www.xbrl.org/scheme/companyName",null,{"$f":"Periodos!$D$4","v":"2016-12-31"},{"$f":"#REF!","v":{"$error":"#REF!"}},{"$f":"#REF!","v":{"$error":"#REF!"}}]
[{"$error":"#REF!"},null,{"$f":"#REF!","v":{"$error":"#REF!"}},{"$f":"#REF!","v":{"$error":"#REF!"}},null,null,{"$f":"#REF!","v":{"$error":"#REF!"}},800001965,"http://www.xbrl.org/scheme/companyName",null,{"$f":"Periodos!$D$4","v":"2016-12-31"},{"$f":"#REF!","v":{"$error":"#REF!"}},{"$f":"#REF!","v":{"$error":"#REF!"}}]
[{"$error":"#REF!"},null,{"$f":"#REF!","v":{"$error":"#REF!"}},{"$f":"#REF!","v":{"$error":"#REF!"}},null,null,{"$f":"#REF!","v":{"$error":"#REF!"}},800001965,"http://www.xbrl.org/scheme/companyName",null,{"$f":"Periodos!$D$4","v":"2016-12-31"},{"$f":"#REF!","v":{"$error":"#REF!"}},{"$f":"#REF!","v":{"$error":"#REF!"}}]
[{"$error":"#REF!"},null,{"$f":"#REF!","v":{"$error":"#REF!"}},{"$f":"#REF!","v":{"$error":"#REF!"}},null,null,{"$f":"#REF!","v":{"$error":"#REF!"}},800001965,"http://www.xbrl.org/scheme/companyName",null,{"$f":"Periodos!$D$4","v":"2016-12-31"},{"$f":"#REF!","v":{"$error":"#REF!"}},{"$f":"#REF!","v":{"$error":"#REF!"}}]
[{"$error":"#REF!"},null,{"$f":"#REF!","v":{"$error":"#REF!"}},{"$f":"#REF!","v":{"$error":"#REF!"}},null,null,{"$f":"#REF!","v":{"$error":"#REF!"}},800001965,"http://www.xbrl.org/scheme/companyName",null,{"$f":"Periodos!$D$4","v":"2016-12-31"},{"$f":"#REF!","v":{"$error":"#REF!"}},{"$f":"#REF!","v":{"$error":"#REF!"}}]
[{"$error":"#REF!"},null,{"$f":"#REF!","v":{"$error":"#REF!"}},{"$f":"#REF!","v":{"$error":"#REF!"}},null,null,{"$f":"#REF!","v":{"$error":"#REF!"}},800001965,"http://www.xbrl.org/scheme/companyName",null,{"$f":"Periodos!$D$4","v":"2016-12-31"},{"$f":"#REF!","v":{"$error":"#REF!"}},{"$f":"#REF!","v":{"$error":"#REF!"}}]
[{"$error":"#REF!"},null,{"$f":"#REF!","v":{"$error":"#REF!"}},{"$f":"#REF!","v":{"$error":"#REF!"}},0,"peso",{"$f":"#REF!","v":{"$error":"#REF!"}},800001965,"http://www.xbrl.org/scheme/companyName",null,{"$f":"Periodos!$D$4","v":"2016-12-31"},{"$f":"#REF!","v":{"$error":"#REF!"}},{"$f":"#REF!","v":{"$error":"#REF!"}}]
["/*",null,"--48--"]
[{"$error":"#REF!"},null,{"$f":"#REF!","v":{"$error":"#REF!"}},{"$f":"#REF!","v":{"$error":"#REF!"}},null,null,{"$f":"#REF!","v":{"$error":"#REF!"}},800001965,"http://www.xbrl.org/scheme/companyName",null,{"$f":"Periodos!$D$4","v":"2016-12-31"},{"$f":"#REF!","v":{"$error":"#REF!"}},{"$f":"#REF!","v":{"$error":"#REF!"}}]
[{"$error":"#REF!"},null,{"$f":"#REF!","v":{"$error":"#REF!"}},{"$f":"#REF!","v":{"$error":"#REF!"}},null,null,{"$f":"#REF!","v":{"$error":"#REF!"}},800001965,"http://www.xbrl.org/scheme/companyName",null,{"$f":"Periodos!$D$4","v":"2016-12-31"},{"$f":"#REF!","v":{"$error":"#REF!"}},{"$f":"#REF!","v":{"$error":"#REF!"}}]
[{"$error":"#REF!"},null,{"$f":"#REF!","v":{"$error":"#REF!"}},{"$f":"#REF!","v":{"$error":"#REF!"}},null,null,{"$f":"#REF!","v":{"$error":"#REF!"}},800001965,"http://www.xbrl.org/scheme/companyName",null,{"$f":"Periodos!$D$4","v":"2016-12-31"},{"$f":"#REF!","v":{"$error":"#REF!"}},{"$f":"#REF!","v":{"$error":"#REF!"}}]
[{"$error":"#REF!"},null,{"$f":"#REF!","v":{"$error":"#REF!"}},{"$f":"#REF!","v":{"$error":"#REF!"}},null,null,{"$f":"#REF!","v":{"$error":"#REF!"}},800001965,"http://www.xbrl.org/scheme/companyName",null,{"$f":"Periodos!$D$4","v":"2016-12-31"},{"$f":"#REF!","v":{"$error":"#REF!"}},{"$f":"#REF!","v":{"$error":"#REF!"}}]
[{"$error":"#REF!"},null,{"$f":"#REF!","v":{"$error":"#REF!"}},{"$f":"#REF!","v":{"$error":"#REF!"}},null,null,{"$f":"#REF!","v":{"$error":"#REF!"}},800001965,"http://www.xbrl.org/scheme/companyName",null,{"$f":"Periodos!$D$4","v":"2016-12-31"},{"$f":"#REF!","v":{"$error":"#REF!"}},{"$f":"#REF!","v":{"$error":"#REF!"}}]
[{"$error":"#REF!"},null,{"$f":"#REF!","v":{"$error":"#REF!"}},{"$f":"#REF!","v":{"$error":"#REF!"}},null,null,{"$f":"#REF!","v":{"$error":"#REF!"}},800001965,"http://www.xbrl.org/scheme/companyName",null,{"$f":"Periodos!$D$4","v":"2016-12-31"},{"$f":"#REF!","v":{"$error":"#REF!"}},{"$f":"#REF!","v":{"$error":"#REF!"}}]
[{"$error":"#REF!"},null,{"$f":"#REF!","v":{"$error":"#REF!"}},{"$f":"#REF!","v":{"$error":"#REF!"}},null,null,{"$f":"#REF!","v":{"$error":"#REF!"}},800001965,"http://www.xbrl.org/scheme/companyName",null,{"$f":"Periodos!$D$4","v":"2016-12-31"},{"$f":"#REF!","v":{"$error":"#REF!"}},{"$f":"#REF!","v":{"$error":"#REF!"}}]
[{"$error":"#REF!"},null,{"$f":"#REF!","v":{"$error":"#REF!"}},{"$f":"#REF!","v":{"$error":"#REF!"}},null,null,{"$f":"#REF!","v":{"$error":"#REF!"}},800001965,"http://www.xbrl.org/scheme/companyName",null,{"$f":"Periodos!$D$4","v":"2016-12-31"},{"$f":"#REF!","v":{"$error":"#REF!"}},{"$f":"#REF!","v":{"$error":"#REF!"}}]
[{"$error":"#REF!"},null,{"$f":"#REF!","v":{"$error":"#REF!"}},{"$f":"#REF!","v":{"$error":"#REF!"}},null,null,{"$f":"#REF!","v":{"$error":"#REF!"}},800001965,"http://www.xbrl.org/scheme/companyName",null,{"$f":"Periodos!$D$4","v":"2016-12-31"},{"$f":"#REF!","v":{"$error":"#REF!"}},{"$f":"#REF!","v":{"$error":"#REF!"}}]
[{"$f":"IF(G4385=\"\",\"/*\",\"\")","v":{"$error":"#REF!"}},null,{"$f":"#REF!","v":{"$error":"#REF!"}},{"$f":"#REF!","v":{"$error":"#REF!"}},null,null,{"$f":"#REF!","v":{"$error":"#REF!"}},800001965,"http://www.xbrl.org/scheme/companyName",null,{"$f":"Periodos!$D$4","v":"2016-12-31"},{"$f":"#REF!","v":{"$error":"#REF!"}},{"$f":"#REF!","v":{"$error":"#REF!"}}]
[{"$error":"#REF!"},null,{"$f":"#REF!","v":{"$error":"#REF!"}},{"$f":"#REF!","v":{"$error":"#REF!"}},null,null,{"$f":"#REF!","v":{"$error":"#REF!"}},800001965,"http://www.xbrl.org/scheme/companyName",null,{"$f":"Periodos!$D$4","v":"2016-12-31"},{"$f":"#REF!","v":{"$error":"#REF!"}},{"$f":"#REF!","v":{"$error":"#REF!"}}]
[{"$error":"#REF!"},null,{"$f":"#REF!","v":{"$error":"#REF!"}},{"$f":"#REF!","v":{"$error":"#REF!"}},0,"peso",{"$f":"#REF!","v":{"$error":"#REF!"}},800001965,"http://www.xbrl.org/scheme/companyName",null,{"$f":"Periodos!$D$4","v":"2016-12-31"},{"$f":"#REF!","v":{"$error":"#REF!"}},{"$f":"#REF!","v":{"$error":"#REF!"}}]
["/*",null,"--49--"]
[{"$error":"#REF!"},null,{"$f":"#REF!","v":{"$error":"#REF!"}},{"$f":"#REF!","v":{"$error":"#REF!"}},null,null,{"$f":"#REF!","v":{"$error":"#REF!"}},800001965,"http://www.xbrl.org/scheme/companyName",null,{"$f":"Periodos!$D$4","v":"2016-12-31"},{"$f":"#REF!","v":{"$error":"#REF!"}},{"$f":"#REF!","v":{"$error":"#REF!"}}]
[{"$error":"#REF!"},null,{"$f":"#REF!","v":{"$error":"#REF!"}},{"$f":"#REF!","v":{"$error":"#REF!"}},null,null,{"$f":"#REF!","v":{"$error":"#REF!"}},800001965,"http://www.xbrl.org/scheme/companyName",null,{"$f":"Periodos!$D$4","v":"2016-12-31"},{"$f":"#REF!","v":{"$error":"#REF!"}},{"$f":"#REF!","v":{"$error":"#REF!"}}]
[{"$error":"#REF!"},null,{"$f":"#REF!","v":{"$error":"#REF!"}},{"$f":"#REF!","v":{"$error":"#REF!"}},null,null,{"$f":"#REF!","v":{"$error":"#REF!"}},800001965,"http://www.xbrl.org/scheme/companyName",null,{"$f":"Periodos!$D$4","v":"2016-12-31"},{"$f":"#REF!","v":{"$error":"#REF!"}},{"$f":"#REF!","v":{"$error":"#REF!"}}]
[{"$error":"#REF!"},null,{"$f":"#REF!","v":{"$error":"#REF!"}},{"$f":"#REF!","v":{"$error":"#REF!"}},null,null,{"$f":"#REF!","v":{"$error":"#REF!"}},800001965,"http://www.xbrl.org/scheme/companyName",null,{"$f":"Periodos!$D$4","v":"2016-12-31"},{"$f":"#REF!","v":{"$error":"#REF!"}},{"$f":"#REF!","v":{"$error":"#REF!"}}]
[{"$error":"#REF!"},null,{"$f":"#REF!","v":{"$error":"#REF!"}},{"$f":"#REF!","v":{"$error":"#REF!"}},null,null,{"$f":"#REF!","v":{"$error":"#REF!"}},800001965,"http://www.xbrl.org/scheme/companyName",null,{"$f":"Periodos!$D$4","v":"2016-12-31"},{"$f":"#REF!","v":{"$error":"#REF!"}},{"$f":"#REF!","v":{"$error":"#REF!"}}]
[{"$error":"#REF!"},null,{"$f":"#REF!","v":{"$error":"#REF!"}},{"$f":"#REF!","v":{"$error":"#REF!"}},null,null,{"$f":"#REF!","v":{"$error":"#REF!"}},800001965,"http://www.xbrl.org/scheme/companyName",null,{"$f":"Periodos!$D$4","v":"2016-12-31"},{"$f":"#REF!","v":{"$error":"#REF!"}},{"$f":"#REF!","v":{"$error":"#REF!"}}]
[{"$error":"#REF!"},null,{"$f":"#REF!","v":{"$error":"#REF!"}},{"$f":"#REF!","v":{"$error":"#REF!"}},null,null,{"$f":"#REF!","v":{"$error":"#REF!"}},800001965,"http://www.xbrl.org/scheme/companyName",null,{"$f":"Periodos!$D$4","v":"2016-12-31"},{"$f":"#REF!","v":{"$error":"#REF!"}},{"$f":"#REF!","v":{"$error":"#REF!"}}]
[{"$error":"#REF!"},null,{"$f":"#REF!","v":{"$error":"#REF!"}},{"$f":"#REF!","v":{"$error":"#REF!"}},null,null,{"$f":"#REF!","v":{"$error":"#REF!"}},800001965,"http://www.xbrl.org/scheme/companyName",null,{"$f":"Periodos!$D$4","v":"2016-12-31"},{"$f":"#REF!","v":{"$error":"#REF!"}},{"$f":"#REF!","v":{"$error":"#REF!"}}]
[{"$error":"#REF!"},null,{"$f":"#REF!","v":{"$error":"#REF!"}},{"$f":"#REF!","v":{"$error":"#REF!"}},null,null,{"$f":"#REF!","v":{"$error":"#REF!"}},800001965,"http://www.xbrl.org/scheme/companyName",null,{"$f":"Periodos!$D$4","v":"2016-12-31"},{"$f":"#REF!","v":{"$error":"#REF!"}},{"$f":"#REF!","v":{"$error":"#REF!"}}]
[{"$error":"#REF!"},null,{"$f":"#REF!","v":{"$error":"#REF!"}},{"$f":"#REF!","v":{"$error":"#REF!"}},null,null,{"$f":"#REF!","v":{"$error":"#REF!"}},800001965,"http://www.xbrl.org/scheme/companyName",null,{"$f":"Periodos!$D$4","v":"2016-12-31"},{"$f":"#REF!","v":{"$error":"#REF!"}},{"$f":"#REF!","v":{"$error":"#REF!"}}]
[{"$error":"#REF!"},null,{"$f":"#REF!","v":{"$error":"#REF!"}},{"$f":"#REF!","v":{"$error":"#REF!"}},null,null,{"$f":"#REF!","v":{"$error":"#REF!"}},800001965,"http://www.xbrl.org/scheme/companyName",null,{"$f":"Periodos!$D$4","v":"2016-12-31"},{"$f":"#REF!","v":{"$error":"#REF!"}},{"$f":"#REF!","v":{"$error":"#REF!"}}]
[{"$error":"#REF!"},null,{"$f":"#REF!","v":{"$error":"#REF!"}},{"$f":"#REF!","v":{"$error":"#REF!"}},0,"peso",{"$f":"#REF!","v":{"$error":"#REF!"}},800001965,"http://www.xbrl.org/scheme/companyName",null,{"$f":"Periodos!$D$4","v":"2016-12-31"},{"$f":"#REF!","v":{"$error":"#REF!"}},{"$f":"#REF!","v":{"$error":"#REF!"}}]
["/*",null,"--50--"]
[{"$error":"#REF!"},null,{"$f":"#REF!","v":{"$error":"#REF!"}},{"$f":"#REF!","v":{"$error":"#REF!"}},null,null,{"$f":"#REF!","v":{"$error":"#REF!"}},800001965,"http://www.xbrl.org/scheme/companyName",null,{"$f":"Periodos!$D$4","v":"2016-12-31"},{"$f":"#REF!","v":{"$error":"#REF!"}},{"$f":"#REF!","v":{"$error":"#REF!"}}]
[{"$error":"#REF!"},null,{"$f":"#REF!","v":{"$error":"#REF!"}},{"$f":"#REF!","v":{"$error":"#REF!"}},null,null,{"$f":"#REF!","v":{"$error":"#REF!"}},800001965,"http://www.xbrl.org/scheme/companyName",null,{"$f":"Periodos!$D$4","v":"2016-12-31"},{"$f":"#REF!","v":{"$error":"#REF!"}},{"$f":"#REF!","v":{"$error":"#REF!"}}]
[{"$error":"#REF!"},null,{"$f":"#REF!","v":{"$error":"#REF!"}},{"$f":"#REF!","v":{"$error":"#REF!"}},null,null,{"$f":"#REF!","v":{"$error":"#REF!"}},800001965,"http://www.xbrl.org/scheme/companyName",null,{"$f":"Periodos!$D$4","v":"2016-12-31"},{"$f":"#REF!","v":{"$error":"#REF!"}},{"$f":"#REF!","v":{"$error":"#REF!"}}]
[{"$error":"#REF!"},null,{"$f":"#REF!","v":{"$error":"#REF!"}},{"$f":"#REF!","v":{"$error":"#REF!"}},null,null,{"$f":"#REF!","v":{"$error":"#REF!"}},800001965,"http://www.xbrl.org/scheme/companyName",null,{"$f":"Periodos!$D$4","v":"2016-12-31"},{"$f":"#REF!","v":{"$error":"#REF!"}},{"$f":"#REF!","v":{"$error":"#REF!"}}]
[{"$error":"#REF!"},null,{"$f":"#REF!","v":{"$error":"#REF!"}},{"$f":"#REF!","v":{"$error":"#REF!"}},null,null,{"$f":"#REF!","v":{"$error":"#REF!"}},800001965,"http://www.xbrl.org/scheme/companyName",null,{"$f":"Periodos!$D$4","v":"2016-12-31"},{"$f":"#REF!","v":{"$error":"#REF!"}},{"$f":"#REF!","v":{"$error":"#REF!"}}]
[{"$error":"#REF!"},null,{"$f":"#REF!","v":{"$error":"#REF!"}},{"$f":"#REF!","v":{"$error":"#REF!"}},null,null,{"$f":"#REF!","v":{"$error":"#REF!"}},800001965,"http://www.xbrl.org/scheme/companyName",null,{"$f":"Periodos!$D$4","v":"2016-12-31"},{"$f":"#REF!","v":{"$error":"#REF!"}},{"$f":"#REF!","v":{"$error":"#REF!"}}]
[{"$error":"#REF!"},null,{"$f":"#REF!","v":{"$error":"#REF!"}},{"$f":"#REF!","v":{"$error":"#REF!"}},null,null,{"$f":"#REF!","v":{"$error":"#REF!"}},800001965,"http://www.xbrl.org/scheme/companyName",null,{"$f":"Periodos!$D$4","v":"2016-12-31"},{"$f":"#REF!","v":{"$error":"#REF!"}},{"$f":"#REF!","v":{"$error":"#REF!"}}]
[{"$error":"#REF!"},null,{"$f":"#REF!","v":{"$error":"#REF!"}},{"$f":"#REF!","v":{"$error":"#REF!"}},null,null,{"$f":"#REF!","v":{"$error":"#REF!"}},800001965,"http://www.xbrl.org/scheme/companyName",null,{"$f":"Periodos!$D$4","v":"2016-12-31"},{"$f":"#REF!","v":{"$error":"#REF!"}},{"$f":"#REF!","v":{"$error":"#REF!"}}]
[{"$error":"#REF!"},null,{"$f":"#REF!","v":{"$error":"#REF!"}},{"$f":"#REF!","v":{"$error":"#REF!"}},null,null,{"$f":"#REF!","v":{"$error":"#REF!"}},800001965,"http://www.xbrl.org/scheme/companyName",null,{"$f":"Periodos!$D$4","v":"2016-12-31"},{"$f":"#REF!","v":{"$error":"#REF!"}},{"$f":"#REF!","v":{"$error":"#REF!"}}]
[{"$error":"#REF!"},null,{"$f":"#REF!","v":{"$error":"#REF!"}},{"$f":"#REF!","v":{"$error":"#REF!"}},null,null,{"$f":"#REF!","v":{"$error":"#REF!"}},800001965,"http://www.xbrl.org/scheme/companyName",null,{"$f":"Periodos!$D$4","v":"2016-12-31"},{"$f":"#REF!","v":{"$error":"#REF!"}},{"$f":"#REF!","v":{"$error":"#REF!"}}]
[{"$error":"#REF!"},null,{"$f":"#REF!","v":{"$error":"#REF!"}},{"$f":"#REF!","v":{"$error":"#REF!"}},null,null,{"$f":"#REF!","v":{"$error":"#REF!"}},800001965,"http://www.xbrl.org/scheme/companyName",null,{"$f":"Periodos!$D$4","v":"2016-12-31"},{"$f":"#REF!","v":{"$error":"#REF!"}},{"$f":"#REF!","v":{"$error":"#REF!"}}]
[{"$error":"#REF!"},null,{"$f":"#REF!","v":{"$error":"#REF!"}},{"$f":"#REF!","v":{"$error":"#REF!"}},0,"peso",{"$f":"#REF!","v":{"$error":"#REF!"}},800001965,"http://www.xbrl.org/scheme/companyName",null,{"$f":"Periodos!$D$4","v":"2016-12-31"},{"$f":"#REF!","v":{"$error":"#REF!"}},{"$f":"#REF!","v":{"$error":"#REF!"}}]
["/*",null,"--51--"]
[{"$error":"#REF!"},null,{"$f":"#REF!","v":{"$error":"#REF!"}},{"$f":"#REF!","v":{"$error":"#REF!"}},null,null,{"$f":"#REF!","v":{"$error":"#REF!"}},800001965,"http://www.xbrl.org/scheme/companyName",null,{"$f":"Periodos!$D$4","v":"2016-12-31"},{"$f":"#REF!","v":{"$error":"#REF!"}},{"$f":"#REF!","v":{"$error":"#REF!"}}]
[{"$error":"#REF!"},null,{"$f":"#REF!","v":{"$error":"#REF!"}},{"$f":"#REF!","v":{"$error":"#REF!"}},null,null,{"$f":"#REF!","v":{"$error":"#REF!"}},800001965,"http://www.xbrl.org/scheme/companyName",null,{"$f":"Periodos!$D$4","v":"2016-12-31"},{"$f":"#REF!","v":{"$error":"#REF!"}},{"$f":"#REF!","v":{"$error":"#REF!"}}]
[{"$error":"#REF!"},null,{"$f":"#REF!","v":{"$error":"#REF!"}},{"$f":"#REF!","v":{"$error":"#REF!"}},null,null,{"$f":"#REF!","v":{"$error":"#REF!"}},800001965,"http://www.xbrl.org/scheme/companyName",null,{"$f":"Periodos!$D$4","v":"2016-12-31"},{"$f":"#REF!","v":{"$error":"#REF!"}},{"$f":"#REF!","v":{"$error":"#REF!"}}]
[{"$error":"#REF!"},null,{"$f":"#REF!","v":{"$error":"#REF!"}},{"$f":"#REF!","v":{"$error":"#REF!"}},null,null,{"$f":"#REF!","v":{"$error":"#REF!"}},800001965,"http://www.xbrl.org/scheme/companyName",null,{"$f":"Periodos!$D$4","v":"2016-12-31"},{"$f":"#REF!","v":{"$error":"#REF!"}},{"$f":"#REF!","v":{"$error":"#REF!"}}]
[{"$error":"#REF!"},null,{"$f":"#REF!","v":{"$error":"#REF!"}},{"$f":"#REF!","v":{"$error":"#REF!"}},null,null,{"$f":"#REF!","v":{"$error":"#REF!"}},800001965,"http://www.xbrl.org/scheme/companyName",null,{"$f":"Periodos!$D$4","v":"2016-12-31"},{"$f":"#REF!","v":{"$error":"#REF!"}},{"$f":"#REF!","v":{"$error":"#REF!"}}]
[{"$error":"#REF!"},null,{"$f":"#REF!","v":{"$error":"#REF!"}},{"$f":"#REF!","v":{"$error":"#REF!"}},null,null,{"$f":"#REF!","v":{"$error":"#REF!"}},800001965,"http://www.xbrl.org/scheme/companyName",null,{"$f":"Periodos!$D$4","v":"2016-12-31"},{"$f":"#REF!","v":{"$error":"#REF!"}},{"$f":"#REF!","v":{"$error":"#REF!"}}]
[{"$error":"#REF!"},null,{"$f":"#REF!","v":{"$error":"#REF!"}},{"$f":"#REF!","v":{"$error":"#REF!"}},null,null,{"$f":"#REF!","v":{"$error":"#REF!"}},800001965,"http://www.xbrl.org/scheme/companyName",null,{"$f":"Periodos!$D$4","v":"2016-12-31"},{"$f":"#REF!","v":{"$error":"#REF!"}},{"$f":"#REF!","v":{"$error":"#REF!"}}]
[{"$error":"#REF!"},null,{"$f":"#REF!","v":{"$error":"#REF!"}},{"$f":"#REF!","v":{"$error":"#REF!"}},null,null,{"$f":"#REF!","v":{"$error":"#REF!"}},800001965,"http://www.xbrl.org/scheme/companyName",null,{"$f":"Periodos!$D$4","v":"2016-12-31"},{"$f":"#REF!","v":{"$error":"#REF!"}},{"$f":"#REF!","v":{"$error":"#REF!"}}]
[{"$error":"#REF!"},null,{"$f":"#REF!","v":{"$error":"#REF!"}},{"$f":"#REF!","v":{"$error":"#REF!"}},null,null,{"$f":"#REF!","v":{"$error":"#REF!"}},800001965,"http://www.xbrl.org/scheme/companyName",null,{"$f":"Periodos!$D$4","v":"2016-12-31"},{"$f":"#REF!","v":{"$error":"#REF!"}},{"$f":"#REF!","v":{"$error":"#REF!"}}]
[{"$error":"#REF!"},null,{"$f":"#REF!","v":{"$error":"#REF!"}},{"$f":"#REF!","v":{"$error":"#REF!"}},null,null,{"$f":"#REF!","v":{"$error":"#REF!"}},800001965,"http://www.xbrl.org/scheme/companyName",null,{"$f":"Periodos!$D$4","v":"2016-12-31"},{"$f":"#REF!","v":{"$error":"#REF!"}},{"$f":"#REF!","v":{"$error":"#REF!"}}]
[{"$error":"#REF!"},null,{"$f":"#REF!","v":{"$error":"#REF!"}},{"$f":"#REF!","v":{"$error":"#REF!"}},null,null,{"$f":"#REF!","v":{"$error":"#REF!"}},800001965,"http://www.xbrl.org/scheme/companyName",null,{"$f":"Periodos!$D$4","v":"2016-12-31"},{"$f":"#REF!","v":{"$error":"#REF!"}},{"$f":"#REF!","v":{"$error":"#REF!"}}]
[{"$error":"#REF!"},null,{"$f":"#REF!","v":{"$error":"#REF!"}},{"$f":"#REF!","v":{"$error":"#REF!"}},0,"peso",{"$f":"#REF!","v":{"$error":"#REF!"}},800001965,"http://www.xbrl.org/scheme/companyName",null,{"$f":"Periodos!$D$4","v":"2016-12-31"},{"$f":"#REF!","v":{"$error":"#REF!"}},{"$f":"#REF!","v":{"$error":"#REF!"}}]
["/*",null,"--52--"]
[{"$error":"#REF!"},null,{"$f":"#REF!","v":{"$error":"#REF!"}},{"$f":"#REF!","v":{"$error":"#REF!"}},null,null,{"$f":"#REF!","v":{"$error":"#REF!"}},800001965,"http://www.xbrl.org/scheme/companyName",null,{"$f":"Periodos!$D$4","v":"2016-12-31"},{"$f":"#REF!","v":{"$error":"#REF!"}},{"$f":"#REF!","v":{"$error":"#REF!"}}]
[{"$error":"#REF!"},null,{"$f":"#REF!","v":{"$error":"#REF!"}},{"$f":"#REF!","v":{"$error":"#REF!"}},null,null,{"$f":"#REF!","v":{"$error":"#REF!"}},800001965,"http://www.xbrl.org/scheme/companyName",null,{"$f":"Periodos!$D$4","v":"2016-12-31"},{"$f":"#REF!","v":{"$error":"#REF!"}},{"$f":"#REF!","v":{"$error":"#REF!"}}]
[{"$error":"#REF!"},null,{"$f":"#REF!","v":{"$error":"#REF!"}},{"$f":"#REF!","v":{"$error":"#REF!"}},null,null,{"$f":"#REF!","v":{"$error":"#REF!"}},800001965,"http://www.xbrl.org/scheme/companyName",null,{"$f":"Periodos!$D$4","v":"2016-12-31"},{"$f":"#REF!","v":{"$error":"#REF!"}},{"$f":"#REF!","v":{"$error":"#REF!"}}]
[{"$error":"#REF!"},null,{"$f":"#REF!","v":{"$error":"#REF!"}},{"$f":"#REF!","v":{"$error":"#REF!"}},null,null,{"$f":"#REF!","v":{"$error":"#REF!"}},800001965,"http://www.xbrl.org/scheme/companyName",null,{"$f":"Periodos!$D$4","v":"2016-12-31"},{"$f":"#REF!","v":{"$error":"#REF!"}},{"$f":"#REF!","v":{"$error":"#REF!"}}]
[{"$error":"#REF!"},null,{"$f":"#REF!","v":{"$error":"#REF!"}},{"$f":"#REF!","v":{"$error":"#REF!"}},null,null,{"$f":"#REF!","v":{"$error":"#REF!"}},800001965,"http://www.xbrl.org/scheme/companyName",null,{"$f":"Periodos!$D$4","v":"2016-12-31"},{"$f":"#REF!","v":{"$error":"#REF!"}},{"$f":"#REF!","v":{"$error":"#REF!"}}]
[{"$error":"#REF!"},null,{"$f":"#REF!","v":{"$error":"#REF!"}},{"$f":"#REF!","v":{"$error":"#REF!"}},null,null,{"$f":"#REF!","v":{"$error":"#REF!"}},800001965,"http://www.xbrl.org/scheme/companyName",null,{"$f":"Periodos!$D$4","v":"2016-12-31"},{"$f":"#REF!","v":{"$error":"#REF!"}},{"$f":"#REF!","v":{"$error":"#REF!"}}]
[{"$error":"#REF!"},null,{"$f":"#REF!","v":{"$error":"#REF!"}},{"$f":"#REF!","v":{"$error":"#REF!"}},null,null,{"$f":"#REF!","v":{"$error":"#REF!"}},800001965,"http://www.xbrl.org/scheme/companyName",null,{"$f":"Periodos!$D$4","v":"2016-12-31"},{"$f":"#REF!","v":{"$error":"#REF!"}},{"$f":"#REF!","v":{"$error":"#REF!"}}]
[{"$error":"#REF!"},null,{"$f":"#REF!","v":{"$error":"#REF!"}},{"$f":"#REF!","v":{"$error":"#REF!"}},null,null,{"$f":"#REF!","v":{"$error":"#REF!"}},800001965,"http://www.xbrl.org/scheme/companyName",null,{"$f":"Periodos!$D$4","v":"2016-12-31"},{"$f":"#REF!","v":{"$error":"#REF!"}},{"$f":"#REF!","v":{"$error":"#REF!"}}]
[{"$error":"#REF!"},null,{"$f":"#REF!","v":{"$error":"#REF!"}},{"$f":"#REF!","v":{"$error":"#REF!"}},null,null,{"$f":"#REF!","v":{"$error":"#REF!"}},800001965,"http://www.xbrl.org/scheme/companyName",null,{"$f":"Periodos!$D$4","v":"2016-12-31"},{"$f":"#REF!","v":{"$error":"#REF!"}},{"$f":"#REF!","v":{"$error":"#REF!"}}]
[{"$error":"#REF!"},null,{"$f":"#REF!","v":{"$error":"#REF!"}},{"$f":"#REF!","v":{"$error":"#REF!"}},null,null,{"$f":"#REF!","v":{"$error":"#REF!"}},800001965,"http://www.xbrl.org/scheme/companyName",null,{"$f":"Periodos!$D$4","v":"2016-12-31"},{"$f":"#REF!","v":{"$error":"#REF!"}},{"$f":"#REF!","v":{"$error":"#REF!"}}]
[{"$error":"#REF!"},null,{"$f":"#REF!","v":{"$error":"#REF!"}},{"$f":"#REF!","v":{"$error":"#REF!"}},null,null,{"$f":"#REF!","v":{"$error":"#REF!"}},800001965,"http://www.xbrl.org/scheme/companyName",null,{"$f":"Periodos!$D$4","v":"2016-12-31"},{"$f":"#REF!","v":{"$error":"#REF!"}},{"$f":"#REF!","v":{"$error":"#REF!"}}]
[{"$error":"#REF!"},null,{"$f":"#REF!","v":{"$error":"#REF!"}},{"$f":"#REF!","v":{"$error":"#REF!"}},0,"peso",{"$f":"#REF!","v":{"$error":"#REF!"}},800001965,"http://www.xbrl.org/scheme/companyName",null,{"$f":"Periodos!$D$4","v":"2016-12-31"},{"$f":"#REF!","v":{"$error":"#REF!"}},{"$f":"#REF!","v":{"$error":"#REF!"}}]
["/*",null,"--53--"]
["/*",null,{"$f":"#REF!","v":{"$error":"#REF!"}},{"$f":"#REF!","v":{"$error":"#REF!"}}]
["/*",null,{"$f":"#REF!","v":{"$error":"#REF!"}},{"$f":"#REF!","v":{"$error":"#REF!"}}]
["/*",null,{"$f":"#REF!","v":{"$error":"#REF!"}},{"$f":"#REF!","v":{"$error":"#REF!"}}]
["/*",null,{"$f":"#REF!","v":{"$error":"#REF!"}},{"$f":"#REF!","v":{"$error":"#REF!"}}]
["/*",null,{"$f":"#REF!","v":{"$error":"#REF!"}},{"$f":"#REF!","v":{"$error":"#REF!"}}]
["/*",null,{"$f":"#REF!","v":{"$error":"#REF!"}},{"$f":"#REF!","v":{"$error":"#REF!"}}]
["/*",null,{"$f":"#REF!","v":{"$error":"#REF!"}},{"$f":"#REF!","v":{"$error":"#REF!"}}]
["/*",null,{"$f":"#REF!","v":{"$error":"#REF!"}},{"$f":"#REF!","v":{"$error":"#REF!"}}]
[{"$f":"IF(G4449=\"\",\"/*\",\"\")","v":"/*"},null,{"$f":"#REF!","v":{"$error":"#REF!"}},{"$f":"#REF!","v":{"$error":"#REF!"}}]
["/*",null,{"$f":"#REF!","v":{"$error":"#REF!"}},{"$f":"#REF!","v":{"$error":"#REF!"}}]
["/*",null,{"$f":"#REF!","v":{"$error":"#REF!"}},{"$f":"#REF!","v":{"$error":"#REF!"}}]
[{"$error":"#REF!"},null,{"$f":"#REF!","v":{"$error":"#REF!"}},{"$f":"#REF!","v":{"$error":"#REF!"}},0,"peso",{"$f":"#REF!","v":{"$error":"#REF!"}},800001965,"http://www.xbrl.org/scheme/companyName",null,{"$f":"Periodos!$D$4","v":"2016-12-31"},{"$f":"#REF!","v":{"$error":"#REF!"}},{"$f":"#REF!","v":{"$error":"#REF!"}}]
["/*",null,"--54--"]
["/*",null,{"$f":"#REF!","v":{"$error":"#REF!"}},{"$f":"#REF!","v":{"$error":"#REF!"}}]
["/*",null,{"$f":"#REF!","v":{"$error":"#REF!"}},{"$f":"#REF!","v":{"$error":"#REF!"}}]
["/*",null,{"$f":"#REF!","v":{"$error":"#REF!"}},{"$f":"#REF!","v":{"$error":"#REF!"}}]
["/*",null,{"$f":"#REF!","v":{"$error":"#REF!"}},{"$f":"#REF!","v":{"$error":"#REF!"}}]
["/*",null,{"$f":"#REF!","v":{"$error":"#REF!"}},{"$f":"#REF!","v":{"$error":"#REF!"}}]
["/*",null,{"$f":"#REF!","v":{"$error":"#REF!"}},{"$f":"#REF!","v":{"$error":"#REF!"}}]
["/*",null,{"$f":"#REF!","v":{"$error":"#REF!"}},{"$f":"#REF!","v":{"$error":"#REF!"}}]
["/*",null,{"$f":"#REF!","v":{"$error":"#REF!"}},{"$f":"#REF!","v":{"$error":"#REF!"}}]
["/*",null,{"$f":"#REF!","v":{"$error":"#REF!"}},{"$f":"#REF!","v":{"$error":"#REF!"}}]
["/*",null,{"$f":"#REF!","v":{"$error":"#REF!"}},{"$f":"#REF!","v":{"$error":"#REF!"}}]
["/*",null,{"$f":"#REF!","v":{"$error":"#REF!"}},{"$f":"#REF!","v":{"$error":"#REF!"}}]
[{"$error":"#REF!"},null,{"$f":"#REF!","v":{"$error":"#REF!"}},{"$f":"#REF!","v":{"$error":"#REF!"}},0,"peso",{"$f":"#REF!","v":{"$error":"#REF!"}},800001965,"http://www.xbrl.org/scheme/companyName",null,{"$f":"Periodos!$D$4","v":"2016-12-31"},{"$f":"#REF!","v":{"$error":"#REF!"}},{"$f":"#REF!","v":{"$error":"#REF!"}}]
["/*",null,"--55--"]
["/*",null,{"$f":"#REF!","v":{"$error":"#REF!"}},{"$f":"#REF!","v":{"$error":"#REF!"}}]
["/*",null,{"$f":"#REF!","v":{"$error":"#REF!"}},{"$f":"#REF!","v":{"$error":"#REF!"}}]
["/*",null,{"$f":"#REF!","v":{"$error":"#REF!"}},{"$f":"#REF!","v":{"$error":"#REF!"}}]
["/*",null,{"$f":"#REF!","v":{"$error":"#REF!"}},{"$f":"#REF!","v":{"$error":"#REF!"}}]
["/*",null,{"$f":"#REF!","v":{"$error":"#REF!"}},{"$f":"#REF!","v":{"$error":"#REF!"}}]
["/*",null,{"$f":"#REF!","v":{"$error":"#REF!"}},{"$f":"#REF!","v":{"$error":"#REF!"}}]
["/*",null,{"$f":"#REF!","v":{"$error":"#REF!"}},{"$f":"#REF!","v":{"$error":"#REF!"}}]
["/*",null,{"$f":"#REF!","v":{"$error":"#REF!"}},{"$f":"#REF!","v":{"$error":"#REF!"}}]
["/*",null,{"$f":"#REF!","v":{"$error":"#REF!"}},{"$f":"#REF!","v":{"$error":"#REF!"}}]
["/*",null,{"$f":"#REF!","v":{"$error":"#REF!"}},{"$f":"#REF!","v":{"$error":"#REF!"}}]
["/*",null,{"$f":"#REF!","v":{"$error":"#REF!"}},{"$f":"#REF!","v":{"$error":"#REF!"}}]
["/*",null,{"$f":"#REF!","v":{"$error":"#REF!"}},{"$f":"#REF!","v":{"$error":"#REF!"}}]
["/*",null,"--56--"]
[{"$error":"#REF!"},null,{"$f":"#REF!","v":{"$error":"#REF!"}},{"$f":"#REF!","v":{"$error":"#REF!"}},null,null,{"$f":"#REF!","v":{"$error":"#REF!"}},800001965,"http://www.xbrl.org/scheme/companyName",null,{"$f":"Periodos!$D$4","v":"2016-12-31"},{"$f":"#REF!","v":{"$error":"#REF!"}},{"$f":"#REF!","v":{"$error":"#REF!"}}]
[{"$error":"#REF!"},null,{"$f":"#REF!","v":{"$error":"#REF!"}},{"$f":"#REF!","v":{"$error":"#REF!"}},null,null,{"$f":"#REF!","v":{"$error":"#REF!"}},800001965,"http://www.xbrl.org/scheme/companyName",null,{"$f":"Periodos!$D$4","v":"2016-12-31"},{"$f":"#REF!","v":{"$error":"#REF!"}},{"$f":"#REF!","v":{"$error":"#REF!"}}]
[{"$error":"#REF!"},null,{"$f":"#REF!","v":{"$error":"#REF!"}},{"$f":"#REF!","v":{"$error":"#REF!"}},null,null,{"$f":"#REF!","v":{"$error":"#REF!"}},800001965,"http://www.xbrl.org/scheme/companyName",null,{"$f":"Periodos!$D$4","v":"2016-12-31"},{"$f":"#REF!","v":{"$error":"#REF!"}},{"$f":"#REF!","v":{"$error":"#REF!"}}]
[{"$error":"#REF!"},null,{"$f":"#REF!","v":{"$error":"#REF!"}},{"$f":"#REF!","v":{"$error":"#REF!"}},null,null,{"$f":"#REF!","v":{"$error":"#REF!"}},800001965,"http://www.xbrl.org/scheme/companyName",null,{"$f":"Periodos!$D$4","v":"2016-12-31"},{"$f":"#REF!","v":{"$error":"#REF!"}},{"$f":"#REF!","v":{"$error":"#REF!"}}]
[{"$error":"#REF!"},null,{"$f":"#REF!","v":{"$error":"#REF!"}},{"$f":"#REF!","v":{"$error":"#REF!"}},null,null,{"$f":"#REF!","v":{"$error":"#REF!"}},800001965,"http://www.xbrl.org/scheme/companyName",null,{"$f":"Periodos!$D$4","v":"2016-12-31"},{"$f":"#REF!","v":{"$error":"#REF!"}},{"$f":"#REF!","v":{"$error":"#REF!"}}]
[{"$error":"#REF!"},null,{"$f":"#REF!","v":{"$error":"#REF!"}},{"$f":"#REF!","v":{"$error":"#REF!"}},null,null,{"$f":"#REF!","v":{"$error":"#REF!"}},800001965,"http://www.xbrl.org/scheme/companyName",null,{"$f":"Periodos!$D$4","v":"2016-12-31"},{"$f":"#REF!","v":{"$error":"#REF!"}},{"$f":"#REF!","v":{"$error":"#REF!"}}]
[{"$error":"#REF!"},null,{"$f":"#REF!","v":{"$error":"#REF!"}},{"$f":"#REF!","v":{"$error":"#REF!"}},null,null,{"$f":"#REF!","v":{"$error":"#REF!"}},800001965,"http://www.xbrl.org/scheme/companyName",null,{"$f":"Periodos!$D$4","v":"2016-12-31"},{"$f":"#REF!","v":{"$error":"#REF!"}},{"$f":"#REF!","v":{"$error":"#REF!"}}]
[{"$error":"#REF!"},null,{"$f":"#REF!","v":{"$error":"#REF!"}},{"$f":"#REF!","v":{"$error":"#REF!"}},null,null,{"$f":"#REF!","v":{"$error":"#REF!"}},800001965,"http://www.xbrl.org/scheme/companyName",null,{"$f":"Periodos!$D$4","v":"2016-12-31"},{"$f":"#REF!","v":{"$error":"#REF!"}},{"$f":"#REF!","v":{"$error":"#REF!"}}]
[{"$error":"#REF!"},null,{"$f":"#REF!","v":{"$error":"#REF!"}},{"$f":"#REF!","v":{"$error":"#REF!"}},null,null,{"$f":"#REF!","v":{"$error":"#REF!"}},800001965,"http://www.xbrl.org/scheme/companyName",null,{"$f":"Periodos!$D$4","v":"2016-12-31"},{"$f":"#REF!","v":{"$error":"#REF!"}},{"$f":"#REF!","v":{"$error":"#REF!"}}]
[{"$error":"#REF!"},null,{"$f":"#REF!","v":{"$error":"#REF!"}},{"$f":"#REF!","v":{"$error":"#REF!"}},null,null,{"$f":"#REF!","v":{"$error":"#REF!"}},800001965,"http://www.xbrl.org/scheme/companyName",null,{"$f":"Periodos!$D$4","v":"2016-12-31"},{"$f":"#REF!","v":{"$error":"#REF!"}},{"$f":"#REF!","v":{"$error":"#REF!"}}]
[{"$error":"#REF!"},null,{"$f":"#REF!","v":{"$error":"#REF!"}},{"$f":"#REF!","v":{"$error":"#REF!"}},null,null,{"$f":"#REF!","v":{"$error":"#REF!"}},800001965,"http://www.xbrl.org/scheme/companyName",null,{"$f":"Periodos!$D$4","v":"2016-12-31"},{"$f":"#REF!","v":{"$error":"#REF!"}},{"$f":"#REF!","v":{"$error":"#REF!"}}]
[{"$error":"#REF!"},null,{"$f":"#REF!","v":{"$error":"#REF!"}},{"$f":"#REF!","v":{"$error":"#REF!"}},0,"peso",{"$f":"#REF!","v":{"$error":"#REF!"}},800001965,"http://www.xbrl.org/scheme/companyName",null,{"$f":"Periodos!$D$4","v":"2016-12-31"},{"$f":"#REF!","v":{"$error":"#REF!"}},{"$f":"#REF!","v":{"$error":"#REF!"}}]
["/*",null,"--57--"]
[{"$error":"#REF!"},null,{"$f":"#REF!","v":{"$error":"#REF!"}},{"$f":"#REF!","v":{"$error":"#REF!"}},null,null,{"$f":"#REF!","v":{"$error":"#REF!"}},800001965,"http://www.xbrl.org/scheme/companyName",null,{"$f":"Periodos!$D$4","v":"2016-12-31"},{"$f":"#REF!","v":{"$error":"#REF!"}},{"$f":"#REF!","v":{"$error":"#REF!"}}]
[{"$error":"#REF!"},null,{"$f":"#REF!","v":{"$error":"#REF!"}},{"$f":"#REF!","v":{"$error":"#REF!"}},null,null,{"$f":"#REF!","v":{"$error":"#REF!"}},800001965,"http://www.xbrl.org/scheme/companyName",null,{"$f":"Periodos!$D$4","v":"2016-12-31"},{"$f":"#REF!","v":{"$error":"#REF!"}},{"$f":"#REF!","v":{"$error":"#REF!"}}]
[{"$error":"#REF!"},null,{"$f":"#REF!","v":{"$error":"#REF!"}},{"$f":"#REF!","v":{"$error":"#REF!"}},null,null,{"$f":"#REF!","v":{"$error":"#REF!"}},800001965,"http://www.xbrl.org/scheme/companyName",null,{"$f":"Periodos!$D$4","v":"2016-12-31"},{"$f":"#REF!","v":{"$error":"#REF!"}},{"$f":"#REF!","v":{"$error":"#REF!"}}]
[{"$error":"#REF!"},null,{"$f":"#REF!","v":{"$error":"#REF!"}},{"$f":"#REF!","v":{"$error":"#REF!"}},null,null,{"$f":"#REF!","v":{"$error":"#REF!"}},800001965,"http://www.xbrl.org/scheme/companyName",null,{"$f":"Periodos!$D$4","v":"2016-12-31"},{"$f":"#REF!","v":{"$error":"#REF!"}},{"$f":"#REF!","v":{"$error":"#REF!"}}]
[{"$error":"#REF!"},null,{"$f":"#REF!","v":{"$error":"#REF!"}},{"$f":"#REF!","v":{"$error":"#REF!"}},null,null,{"$f":"#REF!","v":{"$error":"#REF!"}},800001965,"http://www.xbrl.org/scheme/companyName",null,{"$f":"Periodos!$D$4","v":"2016-12-31"},{"$f":"#REF!","v":{"$error":"#REF!"}},{"$f":"#REF!","v":{"$error":"#REF!"}}]
[{"$error":"#REF!"},null,{"$f":"#REF!","v":{"$error":"#REF!"}},{"$f":"#REF!","v":{"$error":"#REF!"}},null,null,{"$f":"#REF!","v":{"$error":"#REF!"}},800001965,"http://www.xbrl.org/scheme/companyName",null,{"$f":"Periodos!$D$4","v":"2016-12-31"},{"$f":"#REF!","v":{"$error":"#REF!"}},{"$f":"#REF!","v":{"$error":"#REF!"}}]
[{"$error":"#REF!"},null,{"$f":"#REF!","v":{"$error":"#REF!"}},{"$f":"#REF!","v":{"$error":"#REF!"}},null,null,{"$f":"#REF!","v":{"$error":"#REF!"}},800001965,"http://www.xbrl.org/scheme/companyName",null,{"$f":"Periodos!$D$4","v":"2016-12-31"},{"$f":"#REF!","v":{"$error":"#REF!"}},{"$f":"#REF!","v":{"$error":"#REF!"}}]
[{"$error":"#REF!"},null,{"$f":"#REF!","v":{"$error":"#REF!"}},{"$f":"#REF!","v":{"$error":"#REF!"}},null,null,{"$f":"#REF!","v":{"$error":"#REF!"}},800001965,"http://www.xbrl.org/scheme/companyName",null,{"$f":"Periodos!$D$4","v":"2016-12-31"},{"$f":"#REF!","v":{"$error":"#REF!"}},{"$f":"#REF!","v":{"$error":"#REF!"}}]
[{"$error":"#REF!"},null,{"$f":"#REF!","v":{"$error":"#REF!"}},{"$f":"#REF!","v":{"$error":"#REF!"}},null,null,{"$f":"#REF!","v":{"$error":"#REF!"}},800001965,"http://www.xbrl.org/scheme/companyName",null,{"$f":"Periodos!$D$4","v":"2016-12-31"},{"$f":"#REF!","v":{"$error":"#REF!"}},{"$f":"#REF!","v":{"$error":"#REF!"}}]
[{"$error":"#REF!"},null,{"$f":"#REF!","v":{"$error":"#REF!"}},{"$f":"#REF!","v":{"$error":"#REF!"}},null,null,{"$f":"#REF!","v":{"$error":"#REF!"}},800001965,"http://www.xbrl.org/scheme/companyName",null,{"$f":"Periodos!$D$4","v":"2016-12-31"},{"$f":"#REF!","v":{"$error":"#REF!"}},{"$f":"#REF!","v":{"$error":"#REF!"}}]
[{"$error":"#REF!"},null,{"$f":"#REF!","v":{"$error":"#REF!"}},{"$f":"#REF!","v":{"$error":"#REF!"}},null,null,{"$f":"#REF!","v":{"$error":"#REF!"}},800001965,"http://www.xbrl.org/scheme/companyName",null,{"$f":"Periodos!$D$4","v":"2016-12-31"},{"$f":"#REF!","v":{"$error":"#REF!"}},{"$f":"#REF!","v":{"$error":"#REF!"}}]
[{"$error":"#REF!"},null,{"$f":"#REF!","v":{"$error":"#REF!"}},{"$f":"#REF!","v":{"$error":"#REF!"}},0,"peso",{"$f":"#REF!","v":{"$error":"#REF!"}},800001965,"http://www.xbrl.org/scheme/companyName",null,{"$f":"Periodos!$D$4","v":"2016-12-31"},{"$f":"#REF!","v":{"$error":"#REF!"}},{"$f":"#REF!","v":{"$error":"#REF!"}}]
["/*",null,"--58--"]
[{"$error":"#REF!"},null,{"$f":"#REF!","v":{"$error":"#REF!"}},{"$f":"#REF!","v":{"$error":"#REF!"}},null,null,{"$f":"#REF!","v":{"$error":"#REF!"}},800001965,"http://www.xbrl.org/scheme/companyName",null,{"$f":"Periodos!$D$4","v":"2016-12-31"},{"$f":"#REF!","v":{"$error":"#REF!"}},{"$f":"#REF!","v":{"$error":"#REF!"}}]
[{"$error":"#REF!"},null,{"$f":"#REF!","v":{"$error":"#REF!"}},{"$f":"#REF!","v":{"$error":"#REF!"}},null,null,{"$f":"#REF!","v":{"$error":"#REF!"}},800001965,"http://www.xbrl.org/scheme/companyName",null,{"$f":"Periodos!$D$4","v":"2016-12-31"},{"$f":"#REF!","v":{"$error":"#REF!"}},{"$f":"#REF!","v":{"$error":"#REF!"}}]
[{"$error":"#REF!"},null,{"$f":"#REF!","v":{"$error":"#REF!"}},{"$f":"#REF!","v":{"$error":"#REF!"}},null,null,{"$f":"#REF!","v":{"$error":"#REF!"}},800001965,"http://www.xbrl.org/scheme/companyName",null,{"$f":"Periodos!$D$4","v":"2016-12-31"},{"$f":"#REF!","v":{"$error":"#REF!"}},{"$f":"#REF!","v":{"$error":"#REF!"}}]
[{"$error":"#REF!"},null,{"$f":"#REF!","v":{"$error":"#REF!"}},{"$f":"#REF!","v":{"$error":"#REF!"}},null,null,{"$f":"#REF!","v":{"$error":"#REF!"}},800001965,"http://www.xbrl.org/scheme/companyName",null,{"$f":"Periodos!$D$4","v":"2016-12-31"},{"$f":"#REF!","v":{"$error":"#REF!"}},{"$f":"#REF!","v":{"$error":"#REF!"}}]
[{"$error":"#REF!"},null,{"$f":"#REF!","v":{"$error":"#REF!"}},{"$f":"#REF!","v":{"$error":"#REF!"}},null,null,{"$f":"#REF!","v":{"$error":"#REF!"}},800001965,"http://www.xbrl.org/scheme/companyName",null,{"$f":"Periodos!$D$4","v":"2016-12-31"},{"$f":"#REF!","v":{"$error":"#REF!"}},{"$f":"#REF!","v":{"$error":"#REF!"}}]
[{"$error":"#REF!"},null,{"$f":"#REF!","v":{"$error":"#REF!"}},{"$f":"#REF!","v":{"$error":"#REF!"}},null,null,{"$f":"#REF!","v":{"$error":"#REF!"}},800001965,"http://www.xbrl.org/scheme/companyName",null,{"$f":"Periodos!$D$4","v":"2016-12-31"},{"$f":"#REF!","v":{"$error":"#REF!"}},{"$f":"#REF!","v":{"$error":"#REF!"}}]
[{"$error":"#REF!"},null,{"$f":"#REF!","v":{"$error":"#REF!"}},{"$f":"#REF!","v":{"$error":"#REF!"}},null,null,{"$f":"#REF!","v":{"$error":"#REF!"}},800001965,"http://www.xbrl.org/scheme/companyName",null,{"$f":"Periodos!$D$4","v":"2016-12-31"},{"$f":"#REF!","v":{"$error":"#REF!"}},{"$f":"#REF!","v":{"$error":"#REF!"}}]
[{"$f":"IF(G4513=\"\",\"/*\",\"\")","v":{"$error":"#REF!"}},null,{"$f":"#REF!","v":{"$error":"#REF!"}},{"$f":"#REF!","v":{"$error":"#REF!"}},null,null,{"$f":"#REF!","v":{"$error":"#REF!"}},800001965,"http://www.xbrl.org/scheme/companyName",null,{"$f":"Periodos!$D$4","v":"2016-12-31"},{"$f":"#REF!","v":{"$error":"#REF!"}},{"$f":"#REF!","v":{"$error":"#REF!"}}]
[{"$error":"#REF!"},null,{"$f":"#REF!","v":{"$error":"#REF!"}},{"$f":"#REF!","v":{"$error":"#REF!"}},null,null,{"$f":"#REF!","v":{"$error":"#REF!"}},800001965,"http://www.xbrl.org/scheme/companyName",null,{"$f":"Periodos!$D$4","v":"2016-12-31"},{"$f":"#REF!","v":{"$error":"#REF!"}},{"$f":"#REF!","v":{"$error":"#REF!"}}]
[{"$error":"#REF!"},null,{"$f":"#REF!","v":{"$error":"#REF!"}},{"$f":"#REF!","v":{"$error":"#REF!"}},null,null,{"$f":"#REF!","v":{"$error":"#REF!"}},800001965,"http://www.xbrl.org/scheme/companyName",null,{"$f":"Periodos!$D$4","v":"2016-12-31"},{"$f":"#REF!","v":{"$error":"#REF!"}},{"$f":"#REF!","v":{"$error":"#REF!"}}]
[{"$error":"#REF!"},null,{"$f":"#REF!","v":{"$error":"#REF!"}},{"$f":"#REF!","v":{"$error":"#REF!"}},null,null,{"$f":"#REF!","v":{"$error":"#REF!"}},800001965,"http://www.xbrl.org/scheme/companyName",null,{"$f":"Periodos!$D$4","v":"2016-12-31"},{"$f":"#REF!","v":{"$error":"#REF!"}},{"$f":"#REF!","v":{"$error":"#REF!"}}]
[{"$error":"#REF!"},null,{"$f":"#REF!","v":{"$error":"#REF!"}},{"$f":"#REF!","v":{"$error":"#REF!"}},0,"peso",{"$f":"#REF!","v":{"$error":"#REF!"}},800001965,"http://www.xbrl.org/scheme/companyName",null,{"$f":"Periodos!$D$4","v":"2016-12-31"},{"$f":"#REF!","v":{"$error":"#REF!"}},{"$f":"#REF!","v":{"$error":"#REF!"}}]
["/*",null,"--59--"]
[{"$error":"#REF!"},null,{"$f":"#REF!","v":{"$error":"#REF!"}},{"$f":"#REF!","v":{"$error":"#REF!"}},null,null,{"$f":"#REF!","v":{"$error":"#REF!"}},800001965,"http://www.xbrl.org/scheme/companyName",null,{"$f":"Periodos!$D$4","v":"2016-12-31"},{"$f":"#REF!","v":{"$error":"#REF!"}},{"$f":"#REF!","v":{"$error":"#REF!"}}]
[{"$error":"#REF!"},null,{"$f":"#REF!","v":{"$error":"#REF!"}},{"$f":"#REF!","v":{"$error":"#REF!"}},null,null,{"$f":"#REF!","v":{"$error":"#REF!"}},800001965,"http://www.xbrl.org/scheme/companyName",null,{"$f":"Periodos!$D$4","v":"2016-12-31"},{"$f":"#REF!","v":{"$error":"#REF!"}},{"$f":"#REF!","v":{"$error":"#REF!"}}]
[{"$error":"#REF!"},null,{"$f":"#REF!","v":{"$error":"#REF!"}},{"$f":"#REF!","v":{"$error":"#REF!"}},null,null,{"$f":"#REF!","v":{"$error":"#REF!"}},800001965,"http://www.xbrl.org/scheme/companyName",null,{"$f":"Periodos!$D$4","v":"2016-12-31"},{"$f":"#REF!","v":{"$error":"#REF!"}},{"$f":"#REF!","v":{"$error":"#REF!"}}]
[{"$error":"#REF!"},null,{"$f":"#REF!","v":{"$error":"#REF!"}},{"$f":"#REF!","v":{"$error":"#REF!"}},null,null,{"$f":"#REF!","v":{"$error":"#REF!"}},800001965,"http://www.xbrl.org/scheme/companyName",null,{"$f":"Periodos!$D$4","v":"2016-12-31"},{"$f":"#REF!","v":{"$error":"#REF!"}},{"$f":"#REF!","v":{"$error":"#REF!"}}]
[{"$error":"#REF!"},null,{"$f":"#REF!","v":{"$error":"#REF!"}},{"$f":"#REF!","v":{"$error":"#REF!"}},null,null,{"$f":"#REF!","v":{"$error":"#REF!"}},800001965,"http://www.xbrl.org/scheme/companyName",null,{"$f":"Periodos!$D$4","v":"2016-12-31"},{"$f":"#REF!","v":{"$error":"#REF!"}},{"$f":"#REF!","v":{"$error":"#REF!"}}]
[{"$error":"#REF!"},null,{"$f":"#REF!","v":{"$error":"#REF!"}},{"$f":"#REF!","v":{"$error":"#REF!"}},null,null,{"$f":"#REF!","v":{"$error":"#REF!"}},800001965,"http://www.xbrl.org/scheme/companyName",null,{"$f":"Periodos!$D$4","v":"2016-12-31"},{"$f":"#REF!","v":{"$error":"#REF!"}},{"$f":"#REF!","v":{"$error":"#REF!"}}]
[{"$error":"#REF!"},null,{"$f":"#REF!","v":{"$error":"#REF!"}},{"$f":"#REF!","v":{"$error":"#REF!"}},null,null,{"$f":"#REF!","v":{"$error":"#REF!"}},800001965,"http://www.xbrl.org/scheme/companyName",null,{"$f":"Periodos!$D$4","v":"2016-12-31"},{"$f":"#REF!","v":{"$error":"#REF!"}},{"$f":"#REF!","v":{"$error":"#REF!"}}]
[{"$error":"#REF!"},null,{"$f":"#REF!","v":{"$error":"#REF!"}},{"$f":"#REF!","v":{"$error":"#REF!"}},null,null,{"$f":"#REF!","v":{"$error":"#REF!"}},800001965,"http://www.xbrl.org/scheme/companyName",null,{"$f":"Periodos!$D$4","v":"2016-12-31"},{"$f":"#REF!","v":{"$error":"#REF!"}},{"$f":"#REF!","v":{"$error":"#REF!"}}]
[{"$error":"#REF!"},null,{"$f":"#REF!","v":{"$error":"#REF!"}},{"$f":"#REF!","v":{"$error":"#REF!"}},null,null,{"$f":"#REF!","v":{"$error":"#REF!"}},800001965,"http://www.xbrl.org/scheme/companyName",null,{"$f":"Periodos!$D$4","v":"2016-12-31"},{"$f":"#REF!","v":{"$error":"#REF!"}},{"$f":"#REF!","v":{"$error":"#REF!"}}]
[{"$error":"#REF!"},null,{"$f":"#REF!","v":{"$error":"#REF!"}},{"$f":"#REF!","v":{"$error":"#REF!"}},null,null,{"$f":"#REF!","v":{"$error":"#REF!"}},800001965,"http://www.xbrl.org/scheme/companyName",null,{"$f":"Periodos!$D$4","v":"2016-12-31"},{"$f":"#REF!","v":{"$error":"#REF!"}},{"$f":"#REF!","v":{"$error":"#REF!"}}]
[{"$error":"#REF!"},null,{"$f":"#REF!","v":{"$error":"#REF!"}},{"$f":"#REF!","v":{"$error":"#REF!"}},null,null,{"$f":"#REF!","v":{"$error":"#REF!"}},800001965,"http://www.xbrl.org/scheme/companyName",null,{"$f":"Periodos!$D$4","v":"2016-12-31"},{"$f":"#REF!","v":{"$error":"#REF!"}},{"$f":"#REF!","v":{"$error":"#REF!"}}]
[{"$error":"#REF!"},null,{"$f":"#REF!","v":{"$error":"#REF!"}},{"$f":"#REF!","v":{"$error":"#REF!"}},0,"peso",{"$f":"#REF!","v":{"$error":"#REF!"}},800001965,"http://www.xbrl.org/scheme/companyName",null,{"$f":"Periodos!$D$4","v":"2016-12-31"},{"$f":"#REF!","v":{"$error":"#REF!"}},{"$f":"#REF!","v":{"$error":"#REF!"}}]
["/*",null,"--60--"]
[{"$error":"#REF!"},null,{"$f":"#REF!","v":{"$error":"#REF!"}},{"$f":"#REF!","v":{"$error":"#REF!"}},null,null,{"$f":"#REF!","v":{"$error":"#REF!"}},800001965,"http://www.xbrl.org/scheme/companyName",null,{"$f":"Periodos!$D$4","v":"2016-12-31"},{"$f":"#REF!","v":{"$error":"#REF!"}},{"$f":"#REF!","v":{"$error":"#REF!"}}]
[{"$error":"#REF!"},null,{"$f":"#REF!","v":{"$error":"#REF!"}},{"$f":"#REF!","v":{"$error":"#REF!"}},null,null,{"$f":"#REF!","v":{"$error":"#REF!"}},800001965,"http://www.xbrl.org/scheme/companyName",null,{"$f":"Periodos!$D$4","v":"2016-12-31"},{"$f":"#REF!","v":{"$error":"#REF!"}},{"$f":"#REF!","v":{"$error":"#REF!"}}]
[{"$error":"#REF!"},null,{"$f":"#REF!","v":{"$error":"#REF!"}},{"$f":"#REF!","v":{"$error":"#REF!"}},null,null,{"$f":"#REF!","v":{"$error":"#REF!"}},800001965,"http://www.xbrl.org/scheme/companyName",null,{"$f":"Periodos!$D$4","v":"2016-12-31"},{"$f":"#REF!","v":{"$error":"#REF!"}},{"$f":"#REF!","v":{"$error":"#REF!"}}]
[{"$error":"#REF!"},null,{"$f":"#REF!","v":{"$error":"#REF!"}},{"$f":"#REF!","v":{"$error":"#REF!"}},null,null,{"$f":"#REF!","v":{"$error":"#REF!"}},800001965,"http://www.xbrl.org/scheme/companyName",null,{"$f":"Periodos!$D$4","v":"2016-12-31"},{"$f":"#REF!","v":{"$error":"#REF!"}},{"$f":"#REF!","v":{"$error":"#REF!"}}]
[{"$error":"#REF!"},null,{"$f":"#REF!","v":{"$error":"#REF!"}},{"$f":"#REF!","v":{"$error":"#REF!"}},null,null,{"$f":"#REF!","v":{"$error":"#REF!"}},800001965,"http://www.xbrl.org/scheme/companyName",null,{"$f":"Periodos!$D$4","v":"2016-12-31"},{"$f":"#REF!","v":{"$error":"#REF!"}},{"$f":"#REF!","v":{"$error":"#REF!"}}]
[{"$error":"#REF!"},null,{"$f":"#REF!","v":{"$error":"#REF!"}},{"$f":"#REF!","v":{"$error":"#REF!"}},null,null,{"$f":"#REF!","v":{"$error":"#REF!"}},800001965,"http://www.xbrl.org/scheme/companyName",null,{"$f":"Periodos!$D$4","v":"2016-12-31"},{"$f":"#REF!","v":{"$error":"#REF!"}},{"$f":"#REF!","v":{"$error":"#REF!"}}]
[{"$error":"#REF!"},null,{"$f":"#REF!","v":{"$error":"#REF!"}},{"$f":"#REF!","v":{"$error":"#REF!"}},null,null,{"$f":"#REF!","v":{"$error":"#REF!"}},800001965,"http://www.xbrl.org/scheme/companyName",null,{"$f":"Periodos!$D$4","v":"2016-12-31"},{"$f":"#REF!","v":{"$error":"#REF!"}},{"$f":"#REF!","v":{"$error":"#REF!"}}]
[{"$error":"#REF!"},null,{"$f":"#REF!","v":{"$error":"#REF!"}},{"$f":"#REF!","v":{"$error":"#REF!"}},null,null,{"$f":"#REF!","v":{"$error":"#REF!"}},800001965,"http://www.xbrl.org/scheme/companyName",null,{"$f":"Periodos!$D$4","v":"2016-12-31"},{"$f":"#REF!","v":{"$error":"#REF!"}},{"$f":"#REF!","v":{"$error":"#REF!"}}]
[{"$error":"#REF!"},null,{"$f":"#REF!","v":{"$error":"#REF!"}},{"$f":"#REF!","v":{"$error":"#REF!"}},null,null,{"$f":"#REF!","v":{"$error":"#REF!"}},800001965,"http://www.xbrl.org/scheme/companyName",null,{"$f":"Periodos!$D$4","v":"2016-12-31"},{"$f":"#REF!","v":{"$error":"#REF!"}},{"$f":"#REF!","v":{"$error":"#REF!"}}]
[{"$error":"#REF!"},null,{"$f":"#REF!","v":{"$error":"#REF!"}},{"$f":"#REF!","v":{"$error":"#REF!"}},null,null,{"$f":"#REF!","v":{"$error":"#REF!"}},800001965,"http://www.xbrl.org/scheme/companyName",null,{"$f":"Periodos!$D$4","v":"2016-12-31"},{"$f":"#REF!","v":{"$error":"#REF!"}},{"$f":"#REF!","v":{"$error":"#REF!"}}]
[{"$error":"#REF!"},null,{"$f":"#REF!","v":{"$error":"#REF!"}},{"$f":"#REF!","v":{"$error":"#REF!"}},null,null,{"$f":"#REF!","v":{"$error":"#REF!"}},800001965,"http://www.xbrl.org/scheme/companyName",null,{"$f":"Periodos!$D$4","v":"2016-12-31"},{"$f":"#REF!","v":{"$error":"#REF!"}},{"$f":"#REF!","v":{"$error":"#REF!"}}]
[{"$error":"#REF!"},null,{"$f":"#REF!","v":{"$error":"#REF!"}},{"$f":"#REF!","v":{"$error":"#REF!"}},0,"peso",{"$f":"#REF!","v":{"$error":"#REF!"}},800001965,"http://www.xbrl.org/scheme/companyName",null,{"$f":"Periodos!$D$4","v":"2016-12-31"},{"$f":"#REF!","v":{"$error":"#REF!"}},{"$f":"#REF!","v":{"$error":"#REF!"}}]
["/*",null,"--61--"]
[{"$error":"#REF!"},null,{"$f":"#REF!","v":{"$error":"#REF!"}},{"$f":"#REF!","v":{"$error":"#REF!"}},null,null,{"$f":"#REF!","v":{"$error":"#REF!"}},800001965,"http://www.xbrl.org/scheme/companyName",null,{"$f":"Periodos!$D$4","v":"2016-12-31"},{"$f":"#REF!","v":{"$error":"#REF!"}},{"$f":"#REF!","v":{"$error":"#REF!"}}]
[{"$error":"#REF!"},null,{"$f":"#REF!","v":{"$error":"#REF!"}},{"$f":"#REF!","v":{"$error":"#REF!"}},null,null,{"$f":"#REF!","v":{"$error":"#REF!"}},800001965,"http://www.xbrl.org/scheme/companyName",null,{"$f":"Periodos!$D$4","v":"2016-12-31"},{"$f":"#REF!","v":{"$error":"#REF!"}},{"$f":"#REF!","v":{"$error":"#REF!"}}]
[{"$error":"#REF!"},null,{"$f":"#REF!","v":{"$error":"#REF!"}},{"$f":"#REF!","v":{"$error":"#REF!"}},null,null,{"$f":"#REF!","v":{"$error":"#REF!"}},800001965,"http://www.xbrl.org/scheme/companyName",null,{"$f":"Periodos!$D$4","v":"2016-12-31"},{"$f":"#REF!","v":{"$error":"#REF!"}},{"$f":"#REF!","v":{"$error":"#REF!"}}]
[{"$error":"#REF!"},null,{"$f":"#REF!","v":{"$error":"#REF!"}},{"$f":"#REF!","v":{"$error":"#REF!"}},null,null,{"$f":"#REF!","v":{"$error":"#REF!"}},800001965,"http://www.xbrl.org/scheme/companyName",null,{"$f":"Periodos!$D$4","v":"2016-12-31"},{"$f":"#REF!","v":{"$error":"#REF!"}},{"$f":"#REF!","v":{"$error":"#REF!"}}]
[{"$error":"#REF!"},null,{"$f":"#REF!","v":{"$error":"#REF!"}},{"$f":"#REF!","v":{"$error":"#REF!"}},null,null,{"$f":"#REF!","v":{"$error":"#REF!"}},800001965,"http://www.xbrl.org/scheme/companyName",null,{"$f":"Periodos!$D$4","v":"2016-12-31"},{"$f":"#REF!","v":{"$error":"#REF!"}},{"$f":"#REF!","v":{"$error":"#REF!"}}]
[{"$error":"#REF!"},null,{"$f":"#REF!","v":{"$error":"#REF!"}},{"$f":"#REF!","v":{"$error":"#REF!"}},null,null,{"$f":"#REF!","v":{"$error":"#REF!"}},800001965,"http://www.xbrl.org/scheme/companyName",null,{"$f":"Periodos!$D$4","v":"2016-12-31"},{"$f":"#REF!","v":{"$error":"#REF!"}},{"$f":"#REF!","v":{"$error":"#REF!"}}]
[{"$error":"#REF!"},null,{"$f":"#REF!","v":{"$error":"#REF!"}},{"$f":"#REF!","v":{"$error":"#REF!"}},null,null,{"$f":"#REF!","v":{"$error":"#REF!"}},800001965,"http://www.xbrl.org/scheme/companyName",null,{"$f":"Periodos!$D$4","v":"2016-12-31"},{"$f":"#REF!","v":{"$error":"#REF!"}},{"$f":"#REF!","v":{"$error":"#REF!"}}]
[{"$error":"#REF!"},null,{"$f":"#REF!","v":{"$error":"#REF!"}},{"$f":"#REF!","v":{"$error":"#REF!"}},null,null,{"$f":"#REF!","v":{"$error":"#REF!"}},800001965,"http://www.xbrl.org/scheme/companyName",null,{"$f":"Periodos!$D$4","v":"2016-12-31"},{"$f":"#REF!","v":{"$error":"#REF!"}},{"$f":"#REF!","v":{"$error":"#REF!"}}]
[{"$error":"#REF!"},null,{"$f":"#REF!","v":{"$error":"#REF!"}},{"$f":"#REF!","v":{"$error":"#REF!"}},null,null,{"$f":"#REF!","v":{"$error":"#REF!"}},800001965,"http://www.xbrl.org/scheme/companyName",null,{"$f":"Periodos!$D$4","v":"2016-12-31"},{"$f":"#REF!","v":{"$error":"#REF!"}},{"$f":"#REF!","v":{"$error":"#REF!"}}]
[{"$error":"#REF!"},null,{"$f":"#REF!","v":{"$error":"#REF!"}},{"$f":"#REF!","v":{"$error":"#REF!"}},null,null,{"$f":"#REF!","v":{"$error":"#REF!"}},800001965,"http://www.xbrl.org/scheme/companyName",null,{"$f":"Periodos!$D$4","v":"2016-12-31"},{"$f":"#REF!","v":{"$error":"#REF!"}},{"$f":"#REF!","v":{"$error":"#REF!"}}]
[{"$error":"#REF!"},null,{"$f":"#REF!","v":{"$error":"#REF!"}},{"$f":"#REF!","v":{"$error":"#REF!"}},null,null,{"$f":"#REF!","v":{"$error":"#REF!"}},800001965,"http://www.xbrl.org/scheme/companyName",null,{"$f":"Periodos!$D$4","v":"2016-12-31"},{"$f":"#REF!","v":{"$error":"#REF!"}},{"$f":"#REF!","v":{"$error":"#REF!"}}]
[{"$error":"#REF!"},null,{"$f":"#REF!","v":{"$error":"#REF!"}},{"$f":"#REF!","v":{"$error":"#REF!"}},0,"peso",{"$f":"#REF!","v":{"$error":"#REF!"}},800001965,"http://www.xbrl.org/scheme/companyName",null,{"$f":"Periodos!$D$4","v":"2016-12-31"},{"$f":"#REF!","v":{"$error":"#REF!"}},{"$f":"#REF!","v":{"$error":"#REF!"}}]
["/*",null,"--62--"]
[{"$error":"#REF!"},null,{"$f":"#REF!","v":{"$error":"#REF!"}},{"$f":"#REF!","v":{"$error":"#REF!"}},null,null,{"$f":"#REF!","v":{"$error":"#REF!"}},800001965,"http://www.xbrl.org/scheme/companyName",null,{"$f":"Periodos!$D$4","v":"2016-12-31"},{"$f":"#REF!","v":{"$error":"#REF!"}},{"$f":"#REF!","v":{"$error":"#REF!"}}]
[{"$error":"#REF!"},null,{"$f":"#REF!","v":{"$error":"#REF!"}},{"$f":"#REF!","v":{"$error":"#REF!"}},null,null,{"$f":"#REF!","v":{"$error":"#REF!"}},800001965,"http://www.xbrl.org/scheme/companyName",null,{"$f":"Periodos!$D$4","v":"2016-12-31"},{"$f":"#REF!","v":{"$error":"#REF!"}},{"$f":"#REF!","v":{"$error":"#REF!"}}]
[{"$error":"#REF!"},null,{"$f":"#REF!","v":{"$error":"#REF!"}},{"$f":"#REF!","v":{"$error":"#REF!"}},null,null,{"$f":"#REF!","v":{"$error":"#REF!"}},800001965,"http://www.xbrl.org/scheme/companyName",null,{"$f":"Periodos!$D$4","v":"2016-12-31"},{"$f":"#REF!","v":{"$error":"#REF!"}},{"$f":"#REF!","v":{"$error":"#REF!"}}]
[{"$error":"#REF!"},null,{"$f":"#REF!","v":{"$error":"#REF!"}},{"$f":"#REF!","v":{"$error":"#REF!"}},null,null,{"$f":"#REF!","v":{"$error":"#REF!"}},800001965,"http://www.xbrl.org/scheme/companyName",null,{"$f":"Periodos!$D$4","v":"2016-12-31"},{"$f":"#REF!","v":{"$error":"#REF!"}},{"$f":"#REF!","v":{"$error":"#REF!"}}]
[{"$error":"#REF!"},null,{"$f":"#REF!","v":{"$error":"#REF!"}},{"$f":"#REF!","v":{"$error":"#REF!"}},null,null,{"$f":"#REF!","v":{"$error":"#REF!"}},800001965,"http://www.xbrl.org/scheme/companyName",null,{"$f":"Periodos!$D$4","v":"2016-12-31"},{"$f":"#REF!","v":{"$error":"#REF!"}},{"$f":"#REF!","v":{"$error":"#REF!"}}]
[{"$error":"#REF!"},null,{"$f":"#REF!","v":{"$error":"#REF!"}},{"$f":"#REF!","v":{"$error":"#REF!"}},null,null,{"$f":"#REF!","v":{"$error":"#REF!"}},800001965,"http://www.xbrl.org/scheme/companyName",null,{"$f":"Periodos!$D$4","v":"2016-12-31"},{"$f":"#REF!","v":{"$error":"#REF!"}},{"$f":"#REF!","v":{"$error":"#REF!"}}]
[{"$error":"#REF!"},null,{"$f":"#REF!","v":{"$error":"#REF!"}},{"$f":"#REF!","v":{"$error":"#REF!"}},null,null,{"$f":"#REF!","v":{"$error":"#REF!"}},800001965,"http://www.xbrl.org/scheme/companyName",null,{"$f":"Periodos!$D$4","v":"2016-12-31"},{"$f":"#REF!","v":{"$error":"#REF!"}},{"$f":"#REF!","v":{"$error":"#REF!"}}]
[{"$error":"#REF!"},null,{"$f":"#REF!","v":{"$error":"#REF!"}},{"$f":"#REF!","v":{"$error":"#REF!"}},null,null,{"$f":"#REF!","v":{"$error":"#REF!"}},800001965,"http://www.xbrl.org/scheme/companyName",null,{"$f":"Periodos!$D$4","v":"2016-12-31"},{"$f":"#REF!","v":{"$error":"#REF!"}},{"$f":"#REF!","v":{"$error":"#REF!"}}]
[{"$error":"#REF!"},null,{"$f":"#REF!","v":{"$error":"#REF!"}},{"$f":"#REF!","v":{"$error":"#REF!"}},null,null,{"$f":"#REF!","v":{"$error":"#REF!"}},800001965,"http://www.xbrl.org/scheme/companyName",null,{"$f":"Periodos!$D$4","v":"2016-12-31"},{"$f":"#REF!","v":{"$error":"#REF!"}},{"$f":"#REF!","v":{"$error":"#REF!"}}]
[{"$error":"#REF!"},null,{"$f":"#REF!","v":{"$error":"#REF!"}},{"$f":"#REF!","v":{"$error":"#REF!"}},null,null,{"$f":"#REF!","v":{"$error":"#REF!"}},800001965,"http://www.xbrl.org/scheme/companyName",null,{"$f":"Periodos!$D$4","v":"2016-12-31"},{"$f":"#REF!","v":{"$error":"#REF!"}},{"$f":"#REF!","v":{"$error":"#REF!"}}]
[{"$error":"#REF!"},null,{"$f":"#REF!","v":{"$error":"#REF!"}},{"$f":"#REF!","v":{"$error":"#REF!"}},null,null,{"$f":"#REF!","v":{"$error":"#REF!"}},800001965,"http://www.xbrl.org/scheme/companyName",null,{"$f":"Periodos!$D$4","v":"2016-12-31"},{"$f":"#REF!","v":{"$error":"#REF!"}},{"$f":"#REF!","v":{"$error":"#REF!"}}]
[{"$error":"#REF!"},null,{"$f":"#REF!","v":{"$error":"#REF!"}},{"$f":"#REF!","v":{"$error":"#REF!"}},0,"peso",{"$f":"#REF!","v":{"$error":"#REF!"}},800001965,"http://www.xbrl.org/scheme/companyName",null,{"$f":"Periodos!$D$4","v":"2016-12-31"},{"$f":"#REF!","v":{"$error":"#REF!"}},{"$f":"#REF!","v":{"$error":"#REF!"}}]
["/*",null,"--63--"]
[{"$error":"#REF!"},null,{"$f":"#REF!","v":{"$error":"#REF!"}},{"$f":"#REF!","v":{"$error":"#REF!"}},null,null,{"$f":"#REF!","v":{"$error":"#REF!"}},800001965,"http://www.xbrl.org/scheme/companyName",null,{"$f":"Periodos!$D$4","v":"2016-12-31"},{"$f":"#REF!","v":{"$error":"#REF!"}},{"$f":"#REF!","v":{"$error":"#REF!"}}]
[{"$error":"#REF!"},null,{"$f":"#REF!","v":{"$error":"#REF!"}},{"$f":"#REF!","v":{"$error":"#REF!"}},null,null,{"$f":"#REF!","v":{"$error":"#REF!"}},800001965,"http://www.xbrl.org/scheme/companyName",null,{"$f":"Periodos!$D$4","v":"2016-12-31"},{"$f":"#REF!","v":{"$error":"#REF!"}},{"$f":"#REF!","v":{"$error":"#REF!"}}]
[{"$error":"#REF!"},null,{"$f":"#REF!","v":{"$error":"#REF!"}},{"$f":"#REF!","v":{"$error":"#REF!"}},null,null,{"$f":"#REF!","v":{"$error":"#REF!"}},800001965,"http://www.xbrl.org/scheme/companyName",null,{"$f":"Periodos!$D$4","v":"2016-12-31"},{"$f":"#REF!","v":{"$error":"#REF!"}},{"$f":"#REF!","v":{"$error":"#REF!"}}]
[{"$error":"#REF!"},null,{"$f":"#REF!","v":{"$error":"#REF!"}},{"$f":"#REF!","v":{"$error":"#REF!"}},null,null,{"$f":"#REF!","v":{"$error":"#REF!"}},800001965,"http://www.xbrl.org/scheme/companyName",null,{"$f":"Periodos!$D$4","v":"2016-12-31"},{"$f":"#REF!","v":{"$error":"#REF!"}},{"$f":"#REF!","v":{"$error":"#REF!"}}]
[{"$error":"#REF!"},null,{"$f":"#REF!","v":{"$error":"#REF!"}},{"$f":"#REF!","v":{"$error":"#REF!"}},null,null,{"$f":"#REF!","v":{"$error":"#REF!"}},800001965,"http://www.xbrl.org/scheme/companyName",null,{"$f":"Periodos!$D$4","v":"2016-12-31"},{"$f":"#REF!","v":{"$error":"#REF!"}},{"$f":"#REF!","v":{"$error":"#REF!"}}]
[{"$error":"#REF!"},null,{"$f":"#REF!","v":{"$error":"#REF!"}},{"$f":"#REF!","v":{"$error":"#REF!"}},null,null,{"$f":"#REF!","v":{"$error":"#REF!"}},800001965,"http://www.xbrl.org/scheme/companyName",null,{"$f":"Periodos!$D$4","v":"2016-12-31"},{"$f":"#REF!","v":{"$error":"#REF!"}},{"$f":"#REF!","v":{"$error":"#REF!"}}]
[{"$f":"IF(G4577=\"\",\"/*\",\"\")","v":{"$error":"#REF!"}},null,{"$f":"#REF!","v":{"$error":"#REF!"}},{"$f":"#REF!","v":{"$error":"#REF!"}},null,null,{"$f":"#REF!","v":{"$error":"#REF!"}},800001965,"http://www.xbrl.org/scheme/companyName",null,{"$f":"Periodos!$D$4","v":"2016-12-31"},{"$f":"#REF!","v":{"$error":"#REF!"}},{"$f":"#REF!","v":{"$error":"#REF!"}}]
[{"$error":"#REF!"},null,{"$f":"#REF!","v":{"$error":"#REF!"}},{"$f":"#REF!","v":{"$error":"#REF!"}},null,null,{"$f":"#REF!","v":{"$error":"#REF!"}},800001965,"http://www.xbrl.org/scheme/companyName",null,{"$f":"Periodos!$D$4","v":"2016-12-31"},{"$f":"#REF!","v":{"$error":"#REF!"}},{"$f":"#REF!","v":{"$error":"#REF!"}}]
[{"$error":"#REF!"},null,{"$f":"#REF!","v":{"$error":"#REF!"}},{"$f":"#REF!","v":{"$error":"#REF!"}},null,null,{"$f":"#REF!","v":{"$error":"#REF!"}},800001965,"http://www.xbrl.org/scheme/companyName",null,{"$f":"Periodos!$D$4","v":"2016-12-31"},{"$f":"#REF!","v":{"$error":"#REF!"}},{"$f":"#REF!","v":{"$error":"#REF!"}}]
[{"$error":"#REF!"},null,{"$f":"#REF!","v":{"$error":"#REF!"}},{"$f":"#REF!","v":{"$error":"#REF!"}},null,null,{"$f":"#REF!","v":{"$error":"#REF!"}},800001965,"http://www.xbrl.org/scheme/companyName",null,{"$f":"Periodos!$D$4","v":"2016-12-31"},{"$f":"#REF!","v":{"$error":"#REF!"}},{"$f":"#REF!","v":{"$error":"#REF!"}}]
[{"$error":"#REF!"},null,{"$f":"#REF!","v":{"$error":"#REF!"}},{"$f":"#REF!","v":{"$error":"#REF!"}},null,null,{"$f":"#REF!","v":{"$error":"#REF!"}},800001965,"http://www.xbrl.org/scheme/companyName",null,{"$f":"Periodos!$D$4","v":"2016-12-31"},{"$f":"#REF!","v":{"$error":"#REF!"}},{"$f":"#REF!","v":{"$error":"#REF!"}}]
[{"$error":"#REF!"},null,{"$f":"#REF!","v":{"$error":"#REF!"}},{"$f":"#REF!","v":{"$error":"#REF!"}},0,"peso",{"$f":"#REF!","v":{"$error":"#REF!"}},800001965,"http://www.xbrl.org/scheme/companyName",null,{"$f":"Periodos!$D$4","v":"2016-12-31"},{"$f":"#REF!","v":{"$error":"#REF!"}},{"$f":"#REF!","v":{"$error":"#REF!"}}]
["/*",null,"--64--"]
[{"$error":"#REF!"},null,{"$f":"#REF!","v":{"$error":"#REF!"}},{"$f":"#REF!","v":{"$error":"#REF!"}},null,null,{"$f":"#REF!","v":{"$error":"#REF!"}},800001965,"http://www.xbrl.org/scheme/companyName",null,{"$f":"Periodos!$D$4","v":"2016-12-31"},{"$f":"#REF!","v":{"$error":"#REF!"}},{"$f":"#REF!","v":{"$error":"#REF!"}}]
[{"$error":"#REF!"},null,{"$f":"#REF!","v":{"$error":"#REF!"}},{"$f":"#REF!","v":{"$error":"#REF!"}},null,null,{"$f":"#REF!","v":{"$error":"#REF!"}},800001965,"http://www.xbrl.org/scheme/companyName",null,{"$f":"Periodos!$D$4","v":"2016-12-31"},{"$f":"#REF!","v":{"$error":"#REF!"}},{"$f":"#REF!","v":{"$error":"#REF!"}}]
[{"$error":"#REF!"},null,{"$f":"#REF!","v":{"$error":"#REF!"}},{"$f":"#REF!","v":{"$error":"#REF!"}},null,null,{"$f":"#REF!","v":{"$error":"#REF!"}},800001965,"http://www.xbrl.org/scheme/companyName",null,{"$f":"Periodos!$D$4","v":"2016-12-31"},{"$f":"#REF!","v":{"$error":"#REF!"}},{"$f":"#REF!","v":{"$error":"#REF!"}}]
[{"$error":"#REF!"},null,{"$f":"#REF!","v":{"$error":"#REF!"}},{"$f":"#REF!","v":{"$error":"#REF!"}},null,null,{"$f":"#REF!","v":{"$error":"#REF!"}},800001965,"http://www.xbrl.org/scheme/companyName",null,{"$f":"Periodos!$D$4","v":"2016-12-31"},{"$f":"#REF!","v":{"$error":"#REF!"}},{"$f":"#REF!","v":{"$error":"#REF!"}}]
[{"$error":"#REF!"},null,{"$f":"#REF!","v":{"$error":"#REF!"}},{"$f":"#REF!","v":{"$error":"#REF!"}},null,null,{"$f":"#REF!","v":{"$error":"#REF!"}},800001965,"http://www.xbrl.org/scheme/companyName",null,{"$f":"Periodos!$D$4","v":"2016-12-31"},{"$f":"#REF!","v":{"$error":"#REF!"}},{"$f":"#REF!","v":{"$error":"#REF!"}}]
[{"$error":"#REF!"},null,{"$f":"#REF!","v":{"$error":"#REF!"}},{"$f":"#REF!","v":{"$error":"#REF!"}},null,null,{"$f":"#REF!","v":{"$error":"#REF!"}},800001965,"http://www.xbrl.org/scheme/companyName",null,{"$f":"Periodos!$D$4","v":"2016-12-31"},{"$f":"#REF!","v":{"$error":"#REF!"}},{"$f":"#REF!","v":{"$error":"#REF!"}}]
[{"$error":"#REF!"},null,{"$f":"#REF!","v":{"$error":"#REF!"}},{"$f":"#REF!","v":{"$error":"#REF!"}},null,null,{"$f":"#REF!","v":{"$error":"#REF!"}},800001965,"http://www.xbrl.org/scheme/companyName",null,{"$f":"Periodos!$D$4","v":"2016-12-31"},{"$f":"#REF!","v":{"$error":"#REF!"}},{"$f":"#REF!","v":{"$error":"#REF!"}}]
[{"$error":"#REF!"},null,{"$f":"#REF!","v":{"$error":"#REF!"}},{"$f":"#REF!","v":{"$error":"#REF!"}},null,null,{"$f":"#REF!","v":{"$error":"#REF!"}},800001965,"http://www.xbrl.org/scheme/companyName",null,{"$f":"Periodos!$D$4","v":"2016-12-31"},{"$f":"#REF!","v":{"$error":"#REF!"}},{"$f":"#REF!","v":{"$error":"#REF!"}}]
[{"$error":"#REF!"},null,{"$f":"#REF!","v":{"$error":"#REF!"}},{"$f":"#REF!","v":{"$error":"#REF!"}},null,null,{"$f":"#REF!","v":{"$error":"#REF!"}},800001965,"http://www.xbrl.org/scheme/companyName",null,{"$f":"Periodos!$D$4","v":"2016-12-31"},{"$f":"#REF!","v":{"$error":"#REF!"}},{"$f":"#REF!","v":{"$error":"#REF!"}}]
[{"$error":"#REF!"},null,{"$f":"#REF!","v":{"$error":"#REF!"}},{"$f":"#REF!","v":{"$error":"#REF!"}},null,null,{"$f":"#REF!","v":{"$error":"#REF!"}},800001965,"http://www.xbrl.org/scheme/companyName",null,{"$f":"Periodos!$D$4","v":"2016-12-31"},{"$f":"#REF!","v":{"$error":"#REF!"}},{"$f":"#REF!","v":{"$error":"#REF!"}}]
[{"$error":"#REF!"},null,{"$f":"#REF!","v":{"$error":"#REF!"}},{"$f":"#REF!","v":{"$error":"#REF!"}},null,null,{"$f":"#REF!","v":{"$error":"#REF!"}},800001965,"http://www.xbrl.org/scheme/companyName",null,{"$f":"Periodos!$D$4","v":"2016-12-31"},{"$f":"#REF!","v":{"$error":"#REF!"}},{"$f":"#REF!","v":{"$error":"#REF!"}}]
[{"$error":"#REF!"},null,{"$f":"#REF!","v":{"$error":"#REF!"}},{"$f":"#REF!","v":{"$error":"#REF!"}},0,"peso",{"$f":"#REF!","v":{"$error":"#REF!"}},800001965,"http://www.xbrl.org/scheme/companyName",null,{"$f":"Periodos!$D$4","v":"2016-12-31"},{"$f":"#REF!","v":{"$error":"#REF!"}},{"$f":"#REF!","v":{"$error":"#REF!"}}]
["/*",null,"--65--"]
[{"$error":"#REF!"},null,{"$f":"#REF!","v":{"$error":"#REF!"}},{"$f":"#REF!","v":{"$error":"#REF!"}},null,null,{"$f":"#REF!","v":{"$error":"#REF!"}},800001965,"http://www.xbrl.org/scheme/companyName",null,{"$f":"Periodos!$D$4","v":"2016-12-31"},{"$f":"#REF!","v":{"$error":"#REF!"}},{"$f":"#REF!","v":{"$error":"#REF!"}}]
[{"$error":"#REF!"},null,{"$f":"#REF!","v":{"$error":"#REF!"}},{"$f":"#REF!","v":{"$error":"#REF!"}},null,null,{"$f":"#REF!","v":{"$error":"#REF!"}},800001965,"http://www.xbrl.org/scheme/companyName",null,{"$f":"Periodos!$D$4","v":"2016-12-31"},{"$f":"#REF!","v":{"$error":"#REF!"}},{"$f":"#REF!","v":{"$error":"#REF!"}}]
[{"$error":"#REF!"},null,{"$f":"#REF!","v":{"$error":"#REF!"}},{"$f":"#REF!","v":{"$error":"#REF!"}},null,null,{"$f":"#REF!","v":{"$error":"#REF!"}},800001965,"http://www.xbrl.org/scheme/companyName",null,{"$f":"Periodos!$D$4","v":"2016-12-31"},{"$f":"#REF!","v":{"$error":"#REF!"}},{"$f":"#REF!","v":{"$error":"#REF!"}}]
[{"$error":"#REF!"},null,{"$f":"#REF!","v":{"$error":"#REF!"}},{"$f":"#REF!","v":{"$error":"#REF!"}},null,null,{"$f":"#REF!","v":{"$error":"#REF!"}},800001965,"http://www.xbrl.org/scheme/companyName",null,{"$f":"Periodos!$D$4","v":"2016-12-31"},{"$f":"#REF!","v":{"$error":"#REF!"}},{"$f":"#REF!","v":{"$error":"#REF!"}}]
[{"$error":"#REF!"},null,{"$f":"#REF!","v":{"$error":"#REF!"}},{"$f":"#REF!","v":{"$error":"#REF!"}},null,null,{"$f":"#REF!","v":{"$error":"#REF!"}},800001965,"http://www.xbrl.org/scheme/companyName",null,{"$f":"Periodos!$D$4","v":"2016-12-31"},{"$f":"#REF!","v":{"$error":"#REF!"}},{"$f":"#REF!","v":{"$error":"#REF!"}}]
[{"$error":"#REF!"},null,{"$f":"#REF!","v":{"$error":"#REF!"}},{"$f":"#REF!","v":{"$error":"#REF!"}},null,null,{"$f":"#REF!","v":{"$error":"#REF!"}},800001965,"http://www.xbrl.org/scheme/companyName",null,{"$f":"Periodos!$D$4","v":"2016-12-31"},{"$f":"#REF!","v":{"$error":"#REF!"}},{"$f":"#REF!","v":{"$error":"#REF!"}}]
[{"$error":"#REF!"},null,{"$f":"#REF!","v":{"$error":"#REF!"}},{"$f":"#REF!","v":{"$error":"#REF!"}},null,null,{"$f":"#REF!","v":{"$error":"#REF!"}},800001965,"http://www.xbrl.org/scheme/companyName",null,{"$f":"Periodos!$D$4","v":"2016-12-31"},{"$f":"#REF!","v":{"$error":"#REF!"}},{"$f":"#REF!","v":{"$error":"#REF!"}}]
[{"$error":"#REF!"},null,{"$f":"#REF!","v":{"$error":"#REF!"}},{"$f":"#REF!","v":{"$error":"#REF!"}},null,null,{"$f":"#REF!","v":{"$error":"#REF!"}},800001965,"http://www.xbrl.org/scheme/companyName",null,{"$f":"Periodos!$D$4","v":"2016-12-31"},{"$f":"#REF!","v":{"$error":"#REF!"}},{"$f":"#REF!","v":{"$error":"#REF!"}}]
[{"$error":"#REF!"},null,{"$f":"#REF!","v":{"$error":"#REF!"}},{"$f":"#REF!","v":{"$error":"#REF!"}},null,null,{"$f":"#REF!","v":{"$error":"#REF!"}},800001965,"http://www.xbrl.org/scheme/companyName",null,{"$f":"Periodos!$D$4","v":"2016-12-31"},{"$f":"#REF!","v":{"$error":"#REF!"}},{"$f":"#REF!","v":{"$error":"#REF!"}}]
[{"$error":"#REF!"},null,{"$f":"#REF!","v":{"$error":"#REF!"}},{"$f":"#REF!","v":{"$error":"#REF!"}},null,null,{"$f":"#REF!","v":{"$error":"#REF!"}},800001965,"http://www.xbrl.org/scheme/companyName",null,{"$f":"Periodos!$D$4","v":"2016-12-31"},{"$f":"#REF!","v":{"$error":"#REF!"}},{"$f":"#REF!","v":{"$error":"#REF!"}}]
[{"$error":"#REF!"},null,{"$f":"#REF!","v":{"$error":"#REF!"}},{"$f":"#REF!","v":{"$error":"#REF!"}},null,null,{"$f":"#REF!","v":{"$error":"#REF!"}},800001965,"http://www.xbrl.org/scheme/companyName",null,{"$f":"Periodos!$D$4","v":"2016-12-31"},{"$f":"#REF!","v":{"$error":"#REF!"}},{"$f":"#REF!","v":{"$error":"#REF!"}}]
[{"$error":"#REF!"},null,{"$f":"#REF!","v":{"$error":"#REF!"}},{"$f":"#REF!","v":{"$error":"#REF!"}},0,"peso",{"$f":"#REF!","v":{"$error":"#REF!"}},800001965,"http://www.xbrl.org/scheme/companyName",null,{"$f":"Periodos!$D$4","v":"2016-12-31"},{"$f":"#REF!","v":{"$error":"#REF!"}},{"$f":"#REF!","v":{"$error":"#REF!"}}]
["/*",null,"--66--"]
[{"$error":"#REF!"},null,{"$f":"#REF!","v":{"$error":"#REF!"}},{"$f":"#REF!","v":{"$error":"#REF!"}},null,null,{"$f":"#REF!","v":{"$error":"#REF!"}},800001965,"http://www.xbrl.org/scheme/companyName",null,{"$f":"Periodos!$D$4","v":"2016-12-31"},{"$f":"#REF!","v":{"$error":"#REF!"}},{"$f":"#REF!","v":{"$error":"#REF!"}}]
[{"$error":"#REF!"},null,{"$f":"#REF!","v":{"$error":"#REF!"}},{"$f":"#REF!","v":{"$error":"#REF!"}},null,null,{"$f":"#REF!","v":{"$error":"#REF!"}},800001965,"http://www.xbrl.org/scheme/companyName",null,{"$f":"Periodos!$D$4","v":"2016-12-31"},{"$f":"#REF!","v":{"$error":"#REF!"}},{"$f":"#REF!","v":{"$error":"#REF!"}}]
[{"$error":"#REF!"},null,{"$f":"#REF!","v":{"$error":"#REF!"}},{"$f":"#REF!","v":{"$error":"#REF!"}},null,null,{"$f":"#REF!","v":{"$error":"#REF!"}},800001965,"http://www.xbrl.org/scheme/companyName",null,{"$f":"Periodos!$D$4","v":"2016-12-31"},{"$f":"#REF!","v":{"$error":"#REF!"}},{"$f":"#REF!","v":{"$error":"#REF!"}}]
[{"$error":"#REF!"},null,{"$f":"#REF!","v":{"$error":"#REF!"}},{"$f":"#REF!","v":{"$error":"#REF!"}},null,null,{"$f":"#REF!","v":{"$error":"#REF!"}},800001965,"http://www.xbrl.org/scheme/companyName",null,{"$f":"Periodos!$D$4","v":"2016-12-31"},{"$f":"#REF!","v":{"$error":"#REF!"}},{"$f":"#REF!","v":{"$error":"#REF!"}}]
[{"$error":"#REF!"},null,{"$f":"#REF!","v":{"$error":"#REF!"}},{"$f":"#REF!","v":{"$error":"#REF!"}},null,null,{"$f":"#REF!","v":{"$error":"#REF!"}},800001965,"http://www.xbrl.org/scheme/companyName",null,{"$f":"Periodos!$D$4","v":"2016-12-31"},{"$f":"#REF!","v":{"$error":"#REF!"}},{"$f":"#REF!","v":{"$error":"#REF!"}}]
[{"$error":"#REF!"},null,{"$f":"#REF!","v":{"$error":"#REF!"}},{"$f":"#REF!","v":{"$error":"#REF!"}},null,null,{"$f":"#REF!","v":{"$error":"#REF!"}},800001965,"http://www.xbrl.org/scheme/companyName",null,{"$f":"Periodos!$D$4","v":"2016-12-31"},{"$f":"#REF!","v":{"$error":"#REF!"}},{"$f":"#REF!","v":{"$error":"#REF!"}}]
[{"$error":"#REF!"},null,{"$f":"#REF!","v":{"$error":"#REF!"}},{"$f":"#REF!","v":{"$error":"#REF!"}},null,null,{"$f":"#REF!","v":{"$error":"#REF!"}},800001965,"http://www.xbrl.org/scheme/companyName",null,{"$f":"Periodos!$D$4","v":"2016-12-31"},{"$f":"#REF!","v":{"$error":"#REF!"}},{"$f":"#REF!","v":{"$error":"#REF!"}}]
[{"$error":"#REF!"},null,{"$f":"#REF!","v":{"$error":"#REF!"}},{"$f":"#REF!","v":{"$error":"#REF!"}},null,null,{"$f":"#REF!","v":{"$error":"#REF!"}},800001965,"http://www.xbrl.org/scheme/companyName",null,{"$f":"Periodos!$D$4","v":"2016-12-31"},{"$f":"#REF!","v":{"$error":"#REF!"}},{"$f":"#REF!","v":{"$error":"#REF!"}}]
[{"$error":"#REF!"},null,{"$f":"#REF!","v":{"$error":"#REF!"}},{"$f":"#REF!","v":{"$error":"#REF!"}},null,null,{"$f":"#REF!","v":{"$error":"#REF!"}},800001965,"http://www.xbrl.org/scheme/companyName",null,{"$f":"Periodos!$D$4","v":"2016-12-31"},{"$f":"#REF!","v":{"$error":"#REF!"}},{"$f":"#REF!","v":{"$error":"#REF!"}}]
[{"$error":"#REF!"},null,{"$f":"#REF!","v":{"$error":"#REF!"}},{"$f":"#REF!","v":{"$error":"#REF!"}},null,null,{"$f":"#REF!","v":{"$error":"#REF!"}},800001965,"http://www.xbrl.org/scheme/companyName",null,{"$f":"Periodos!$D$4","v":"2016-12-31"},{"$f":"#REF!","v":{"$error":"#REF!"}},{"$f":"#REF!","v":{"$error":"#REF!"}}]
[{"$error":"#REF!"},null,{"$f":"#REF!","v":{"$error":"#REF!"}},{"$f":"#REF!","v":{"$error":"#REF!"}},null,null,{"$f":"#REF!","v":{"$error":"#REF!"}},800001965,"http://www.xbrl.org/scheme/companyName",null,{"$f":"Periodos!$D$4","v":"2016-12-31"},{"$f":"#REF!","v":{"$error":"#REF!"}},{"$f":"#REF!","v":{"$error":"#REF!"}}]
[{"$error":"#REF!"},null,{"$f":"#REF!","v":{"$error":"#REF!"}},{"$f":"#REF!","v":{"$error":"#REF!"}},0,"peso",{"$f":"#REF!","v":{"$error":"#REF!"}},800001965,"http://www.xbrl.org/scheme/companyName",null,{"$f":"Periodos!$D$4","v":"2016-12-31"},{"$f":"#REF!","v":{"$error":"#REF!"}},{"$f":"#REF!","v":{"$error":"#REF!"}}]
["/*",null,"--67--"]
[{"$error":"#REF!"},null,{"$f":"#REF!","v":{"$error":"#REF!"}},{"$f":"#REF!","v":{"$error":"#REF!"}},null,null,{"$f":"#REF!","v":{"$error":"#REF!"}},800001965,"http://www.xbrl.org/scheme/companyName",null,{"$f":"Periodos!$D$4","v":"2016-12-31"},{"$f":"#REF!","v":{"$error":"#REF!"}},{"$f":"#REF!","v":{"$error":"#REF!"}}]
[{"$error":"#REF!"},null,{"$f":"#REF!","v":{"$error":"#REF!"}},{"$f":"#REF!","v":{"$error":"#REF!"}},null,null,{"$f":"#REF!","v":{"$error":"#REF!"}},800001965,"http://www.xbrl.org/scheme/companyName",null,{"$f":"Periodos!$D$4","v":"2016-12-31"},{"$f":"#REF!","v":{"$error":"#REF!"}},{"$f":"#REF!","v":{"$error":"#REF!"}}]
[{"$error":"#REF!"},null,{"$f":"#REF!","v":{"$error":"#REF!"}},{"$f":"#REF!","v":{"$error":"#REF!"}},null,null,{"$f":"#REF!","v":{"$error":"#REF!"}},800001965,"http://www.xbrl.org/scheme/companyName",null,{"$f":"Periodos!$D$4","v":"2016-12-31"},{"$f":"#REF!","v":{"$error":"#REF!"}},{"$f":"#REF!","v":{"$error":"#REF!"}}]
[{"$error":"#REF!"},null,{"$f":"#REF!","v":{"$error":"#REF!"}},{"$f":"#REF!","v":{"$error":"#REF!"}},null,null,{"$f":"#REF!","v":{"$error":"#REF!"}},800001965,"http://www.xbrl.org/scheme/companyName",null,{"$f":"Periodos!$D$4","v":"2016-12-31"},{"$f":"#REF!","v":{"$error":"#REF!"}},{"$f":"#REF!","v":{"$error":"#REF!"}}]
[{"$error":"#REF!"},null,{"$f":"#REF!","v":{"$error":"#REF!"}},{"$f":"#REF!","v":{"$error":"#REF!"}},null,null,{"$f":"#REF!","v":{"$error":"#REF!"}},800001965,"http://www.xbrl.org/scheme/companyName",null,{"$f":"Periodos!$D$4","v":"2016-12-31"},{"$f":"#REF!","v":{"$error":"#REF!"}},{"$f":"#REF!","v":{"$error":"#REF!"}}]
[{"$error":"#REF!"},null,{"$f":"#REF!","v":{"$error":"#REF!"}},{"$f":"#REF!","v":{"$error":"#REF!"}},null,null,{"$f":"#REF!","v":{"$error":"#REF!"}},800001965,"http://www.xbrl.org/scheme/companyName",null,{"$f":"Periodos!$D$4","v":"2016-12-31"},{"$f":"#REF!","v":{"$error":"#REF!"}},{"$f":"#REF!","v":{"$error":"#REF!"}}]
[{"$error":"#REF!"},null,{"$f":"#REF!","v":{"$error":"#REF!"}},{"$f":"#REF!","v":{"$error":"#REF!"}},null,null,{"$f":"#REF!","v":{"$error":"#REF!"}},800001965,"http://www.xbrl.org/scheme/companyName",null,{"$f":"Periodos!$D$4","v":"2016-12-31"},{"$f":"#REF!","v":{"$error":"#REF!"}},{"$f":"#REF!","v":{"$error":"#REF!"}}]
[{"$error":"#REF!"},null,{"$f":"#REF!","v":{"$error":"#REF!"}},{"$f":"#REF!","v":{"$error":"#REF!"}},null,null,{"$f":"#REF!","v":{"$error":"#REF!"}},800001965,"http://www.xbrl.org/scheme/companyName",null,{"$f":"Periodos!$D$4","v":"2016-12-31"},{"$f":"#REF!","v":{"$error":"#REF!"}},{"$f":"#REF!","v":{"$error":"#REF!"}}]
[{"$error":"#REF!"},null,{"$f":"#REF!","v":{"$error":"#REF!"}},{"$f":"#REF!","v":{"$error":"#REF!"}},null,null,{"$f":"#REF!","v":{"$error":"#REF!"}},800001965,"http://www.xbrl.org/scheme/companyName",null,{"$f":"Periodos!$D$4","v":"2016-12-31"},{"$f":"#REF!","v":{"$error":"#REF!"}},{"$f":"#REF!","v":{"$error":"#REF!"}}]
[{"$error":"#REF!"},null,{"$f":"#REF!","v":{"$error":"#REF!"}},{"$f":"#REF!","v":{"$error":"#REF!"}},null,null,{"$f":"#REF!","v":{"$error":"#REF!"}},800001965,"http://www.xbrl.org/scheme/companyName",null,{"$f":"Periodos!$D$4","v":"2016-12-31"},{"$f":"#REF!","v":{"$error":"#REF!"}},{"$f":"#REF!","v":{"$error":"#REF!"}}]
[{"$error":"#REF!"},null,{"$f":"#REF!","v":{"$error":"#REF!"}},{"$f":"#REF!","v":{"$error":"#REF!"}},null,null,{"$f":"#REF!","v":{"$error":"#REF!"}},800001965,"http://www.xbrl.org/scheme/companyName",null,{"$f":"Periodos!$D$4","v":"2016-12-31"},{"$f":"#REF!","v":{"$error":"#REF!"}},{"$f":"#REF!","v":{"$error":"#REF!"}}]
[{"$error":"#REF!"},null,{"$f":"#REF!","v":{"$error":"#REF!"}},{"$f":"#REF!","v":{"$error":"#REF!"}},0,"peso",{"$f":"#REF!","v":{"$error":"#REF!"}},800001965,"http://www.xbrl.org/scheme/companyName",null,{"$f":"Periodos!$D$4","v":"2016-12-31"},{"$f":"#REF!","v":{"$error":"#REF!"}},{"$f":"#REF!","v":{"$error":"#REF!"}}]
["/*",null,"--68--"]
[{"$error":"#REF!"},null,{"$f":"#REF!","v":{"$error":"#REF!"}},{"$f":"#REF!","v":{"$error":"#REF!"}},null,null,{"$f":"#REF!","v":{"$error":"#REF!"}},800001965,"http://www.xbrl.org/scheme/companyName",null,{"$f":"Periodos!$D$4","v":"2016-12-31"},{"$f":"#REF!","v":{"$error":"#REF!"}},{"$f":"#REF!","v":{"$error":"#REF!"}}]
[{"$error":"#REF!"},null,{"$f":"#REF!","v":{"$error":"#REF!"}},{"$f":"#REF!","v":{"$error":"#REF!"}},null,null,{"$f":"#REF!","v":{"$error":"#REF!"}},800001965,"http://www.xbrl.org/scheme/companyName",null,{"$f":"Periodos!$D$4","v":"2016-12-31"},{"$f":"#REF!","v":{"$error":"#REF!"}},{"$f":"#REF!","v":{"$error":"#REF!"}}]
[{"$error":"#REF!"},null,{"$f":"#REF!","v":{"$error":"#REF!"}},{"$f":"#REF!","v":{"$error":"#REF!"}},null,null,{"$f":"#REF!","v":{"$error":"#REF!"}},800001965,"http://www.xbrl.org/scheme/companyName",null,{"$f":"Periodos!$D$4","v":"2016-12-31"},{"$f":"#REF!","v":{"$error":"#REF!"}},{"$f":"#REF!","v":{"$error":"#REF!"}}]
[{"$error":"#REF!"},null,{"$f":"#REF!","v":{"$error":"#REF!"}},{"$f":"#REF!","v":{"$error":"#REF!"}},null,null,{"$f":"#REF!","v":{"$error":"#REF!"}},800001965,"http://www.xbrl.org/scheme/companyName",null,{"$f":"Periodos!$D$4","v":"2016-12-31"},{"$f":"#REF!","v":{"$error":"#REF!"}},{"$f":"#REF!","v":{"$error":"#REF!"}}]
[{"$error":"#REF!"},null,{"$f":"#REF!","v":{"$error":"#REF!"}},{"$f":"#REF!","v":{"$error":"#REF!"}},null,null,{"$f":"#REF!","v":{"$error":"#REF!"}},800001965,"http://www.xbrl.org/scheme/companyName",null,{"$f":"Periodos!$D$4","v":"2016-12-31"},{"$f":"#REF!","v":{"$error":"#REF!"}},{"$f":"#REF!","v":{"$error":"#REF!"}}]
[{"$f":"IF(G4641=\"\",\"/*\",\"\")","v":{"$error":"#REF!"}},null,{"$f":"#REF!","v":{"$error":"#REF!"}},{"$f":"#REF!","v":{"$error":"#REF!"}},null,null,{"$f":"#REF!","v":{"$error":"#REF!"}},800001965,"http://www.xbrl.org/scheme/companyName",null,{"$f":"Periodos!$D$4","v":"2016-12-31"},{"$f":"#REF!","v":{"$error":"#REF!"}},{"$f":"#REF!","v":{"$error":"#REF!"}}]
[{"$error":"#REF!"},null,{"$f":"#REF!","v":{"$error":"#REF!"}},{"$f":"#REF!","v":{"$error":"#REF!"}},null,null,{"$f":"#REF!","v":{"$error":"#REF!"}},800001965,"http://www.xbrl.org/scheme/companyName",null,{"$f":"Periodos!$D$4","v":"2016-12-31"},{"$f":"#REF!","v":{"$error":"#REF!"}},{"$f":"#REF!","v":{"$error":"#REF!"}}]
[{"$error":"#REF!"},null,{"$f":"#REF!","v":{"$error":"#REF!"}},{"$f":"#REF!","v":{"$error":"#REF!"}},null,null,{"$f":"#REF!","v":{"$error":"#REF!"}},800001965,"http://www.xbrl.org/scheme/companyName",null,{"$f":"Periodos!$D$4","v":"2016-12-31"},{"$f":"#REF!","v":{"$error":"#REF!"}},{"$f":"#REF!","v":{"$error":"#REF!"}}]
[{"$error":"#REF!"},null,{"$f":"#REF!","v":{"$error":"#REF!"}},{"$f":"#REF!","v":{"$error":"#REF!"}},null,null,{"$f":"#REF!","v":{"$error":"#REF!"}},800001965,"http://www.xbrl.org/scheme/companyName",null,{"$f":"Periodos!$D$4","v":"2016-12-31"},{"$f":"#REF!","v":{"$error":"#REF!"}},{"$f":"#REF!","v":{"$error":"#REF!"}}]
[{"$error":"#REF!"},null,{"$f":"#REF!","v":{"$error":"#REF!"}},{"$f":"#REF!","v":{"$error":"#REF!"}},null,null,{"$f":"#REF!","v":{"$error":"#REF!"}},800001965,"http://www.xbrl.org/scheme/companyName",null,{"$f":"Periodos!$D$4","v":"2016-12-31"},{"$f":"#REF!","v":{"$error":"#REF!"}},{"$f":"#REF!","v":{"$error":"#REF!"}}]
[{"$error":"#REF!"},null,{"$f":"#REF!","v":{"$error":"#REF!"}},{"$f":"#REF!","v":{"$error":"#REF!"}},null,null,{"$f":"#REF!","v":{"$error":"#REF!"}},800001965,"http://www.xbrl.org/scheme/companyName",null,{"$f":"Periodos!$D$4","v":"2016-12-31"},{"$f":"#REF!","v":{"$error":"#REF!"}},{"$f":"#REF!","v":{"$error":"#REF!"}}]
[{"$error":"#REF!"},null,{"$f":"#REF!","v":{"$error":"#REF!"}},{"$f":"#REF!","v":{"$error":"#REF!"}},0,"peso",{"$f":"#REF!","v":{"$error":"#REF!"}},800001965,"http://www.xbrl.org/scheme/companyName",null,{"$f":"Periodos!$D$4","v":"2016-12-31"},{"$f":"#REF!","v":{"$error":"#REF!"}},{"$f":"#REF!","v":{"$error":"#REF!"}}]
["/*",null,"--69--"]
[{"$error":"#REF!"},null,{"$f":"#REF!","v":{"$error":"#REF!"}},{"$f":"#REF!","v":{"$error":"#REF!"}},null,null,{"$f":"#REF!","v":{"$error":"#REF!"}},800001965,"http://www.xbrl.org/scheme/companyName",null,{"$f":"Periodos!$D$4","v":"2016-12-31"},{"$f":"#REF!","v":{"$error":"#REF!"}},{"$f":"#REF!","v":{"$error":"#REF!"}}]
[{"$error":"#REF!"},null,{"$f":"#REF!","v":{"$error":"#REF!"}},{"$f":"#REF!","v":{"$error":"#REF!"}},null,null,{"$f":"#REF!","v":{"$error":"#REF!"}},800001965,"http://www.xbrl.org/scheme/companyName",null,{"$f":"Periodos!$D$4","v":"2016-12-31"},{"$f":"#REF!","v":{"$error":"#REF!"}},{"$f":"#REF!","v":{"$error":"#REF!"}}]
[{"$error":"#REF!"},null,{"$f":"#REF!","v":{"$error":"#REF!"}},{"$f":"#REF!","v":{"$error":"#REF!"}},null,null,{"$f":"#REF!","v":{"$error":"#REF!"}},800001965,"http://www.xbrl.org/scheme/companyName",null,{"$f":"Periodos!$D$4","v":"2016-12-31"},{"$f":"#REF!","v":{"$error":"#REF!"}},{"$f":"#REF!","v":{"$error":"#REF!"}}]
[{"$error":"#REF!"},null,{"$f":"#REF!","v":{"$error":"#REF!"}},{"$f":"#REF!","v":{"$error":"#REF!"}},null,null,{"$f":"#REF!","v":{"$error":"#REF!"}},800001965,"http://www.xbrl.org/scheme/companyName",null,{"$f":"Periodos!$D$4","v":"2016-12-31"},{"$f":"#REF!","v":{"$error":"#REF!"}},{"$f":"#REF!","v":{"$error":"#REF!"}}]
[{"$error":"#REF!"},null,{"$f":"#REF!","v":{"$error":"#REF!"}},{"$f":"#REF!","v":{"$error":"#REF!"}},null,null,{"$f":"#REF!","v":{"$error":"#REF!"}},800001965,"http://www.xbrl.org/scheme/companyName",null,{"$f":"Periodos!$D$4","v":"2016-12-31"},{"$f":"#REF!","v":{"$error":"#REF!"}},{"$f":"#REF!","v":{"$error":"#REF!"}}]
[{"$error":"#REF!"},null,{"$f":"#REF!","v":{"$error":"#REF!"}},{"$f":"#REF!","v":{"$error":"#REF!"}},null,null,{"$f":"#REF!","v":{"$error":"#REF!"}},800001965,"http://www.xbrl.org/scheme/companyName",null,{"$f":"Periodos!$D$4","v":"2016-12-31"},{"$f":"#REF!","v":{"$error":"#REF!"}},{"$f":"#REF!","v":{"$error":"#REF!"}}]
[{"$error":"#REF!"},null,{"$f":"#REF!","v":{"$error":"#REF!"}},{"$f":"#REF!","v":{"$error":"#REF!"}},null,null,{"$f":"#REF!","v":{"$error":"#REF!"}},800001965,"http://www.xbrl.org/scheme/companyName",null,{"$f":"Periodos!$D$4","v":"2016-12-31"},{"$f":"#REF!","v":{"$error":"#REF!"}},{"$f":"#REF!","v":{"$error":"#REF!"}}]
[{"$error":"#REF!"},null,{"$f":"#REF!","v":{"$error":"#REF!"}},{"$f":"#REF!","v":{"$error":"#REF!"}},null,null,{"$f":"#REF!","v":{"$error":"#REF!"}},800001965,"http://www.xbrl.org/scheme/companyName",null,{"$f":"Periodos!$D$4","v":"2016-12-31"},{"$f":"#REF!","v":{"$error":"#REF!"}},{"$f":"#REF!","v":{"$error":"#REF!"}}]
[{"$error":"#REF!"},null,{"$f":"#REF!","v":{"$error":"#REF!"}},{"$f":"#REF!","v":{"$error":"#REF!"}},null,null,{"$f":"#REF!","v":{"$error":"#REF!"}},800001965,"http://www.xbrl.org/scheme/companyName",null,{"$f":"Periodos!$D$4","v":"2016-12-31"},{"$f":"#REF!","v":{"$error":"#REF!"}},{"$f":"#REF!","v":{"$error":"#REF!"}}]
[{"$error":"#REF!"},null,{"$f":"#REF!","v":{"$error":"#REF!"}},{"$f":"#REF!","v":{"$error":"#REF!"}},null,null,{"$f":"#REF!","v":{"$error":"#REF!"}},800001965,"http://www.xbrl.org/scheme/companyName",null,{"$f":"Periodos!$D$4","v":"2016-12-31"},{"$f":"#REF!","v":{"$error":"#REF!"}},{"$f":"#REF!","v":{"$error":"#REF!"}}]
[{"$error":"#REF!"},null,{"$f":"#REF!","v":{"$error":"#REF!"}},{"$f":"#REF!","v":{"$error":"#REF!"}},null,null,{"$f":"#REF!","v":{"$error":"#REF!"}},800001965,"http://www.xbrl.org/scheme/companyName",null,{"$f":"Periodos!$D$4","v":"2016-12-31"},{"$f":"#REF!","v":{"$error":"#REF!"}},{"$f":"#REF!","v":{"$error":"#REF!"}}]
[{"$error":"#REF!"},null,{"$f":"#REF!","v":{"$error":"#REF!"}},{"$f":"#REF!","v":{"$error":"#REF!"}},0,"peso",{"$f":"#REF!","v":{"$error":"#REF!"}},800001965,"http://www.xbrl.org/scheme/companyName",null,{"$f":"Periodos!$D$4","v":"2016-12-31"},{"$f":"#REF!","v":{"$error":"#REF!"}},{"$f":"#REF!","v":{"$error":"#REF!"}}]
["/*",null,"--70--"]
[{"$error":"#REF!"},null,{"$f":"#REF!","v":{"$error":"#REF!"}},{"$f":"#REF!","v":{"$error":"#REF!"}},null,null,{"$f":"#REF!","v":{"$error":"#REF!"}},800001965,"http://www.xbrl.org/scheme/companyName",null,{"$f":"Periodos!$D$4","v":"2016-12-31"},{"$f":"#REF!","v":{"$error":"#REF!"}},{"$f":"#REF!","v":{"$error":"#REF!"}}]
[{"$error":"#REF!"},null,{"$f":"#REF!","v":{"$error":"#REF!"}},{"$f":"#REF!","v":{"$error":"#REF!"}},null,null,{"$f":"#REF!","v":{"$error":"#REF!"}},800001965,"http://www.xbrl.org/scheme/companyName",null,{"$f":"Periodos!$D$4","v":"2016-12-31"},{"$f":"#REF!","v":{"$error":"#REF!"}},{"$f":"#REF!","v":{"$error":"#REF!"}}]
[{"$error":"#REF!"},null,{"$f":"#REF!","v":{"$error":"#REF!"}},{"$f":"#REF!","v":{"$error":"#REF!"}},null,null,{"$f":"#REF!","v":{"$error":"#REF!"}},800001965,"http://www.xbrl.org/scheme/companyName",null,{"$f":"Periodos!$D$4","v":"2016-12-31"},{"$f":"#REF!","v":{"$error":"#REF!"}},{"$f":"#REF!","v":{"$error":"#REF!"}}]
[{"$error":"#REF!"},null,{"$f":"#REF!","v":{"$error":"#REF!"}},{"$f":"#REF!","v":{"$error":"#REF!"}},null,null,{"$f":"#REF!","v":{"$error":"#REF!"}},800001965,"http://www.xbrl.org/scheme/companyName",null,{"$f":"Periodos!$D$4","v":"2016-12-31"},{"$f":"#REF!","v":{"$error":"#REF!"}},{"$f":"#REF!","v":{"$error":"#REF!"}}]
[{"$error":"#REF!"},null,{"$f":"#REF!","v":{"$error":"#REF!"}},{"$f":"#REF!","v":{"$error":"#REF!"}},null,null,{"$f":"#REF!","v":{"$error":"#REF!"}},800001965,"http://www.xbrl.org/scheme/companyName",null,{"$f":"Periodos!$D$4","v":"2016-12-31"},{"$f":"#REF!","v":{"$error":"#REF!"}},{"$f":"#REF!","v":{"$error":"#REF!"}}]
[{"$error":"#REF!"},null,{"$f":"#REF!","v":{"$error":"#REF!"}},{"$f":"#REF!","v":{"$error":"#REF!"}},null,null,{"$f":"#REF!","v":{"$error":"#REF!"}},800001965,"http://www.xbrl.org/scheme/companyName",null,{"$f":"Periodos!$D$4","v":"2016-12-31"},{"$f":"#REF!","v":{"$error":"#REF!"}},{"$f":"#REF!","v":{"$error":"#REF!"}}]
[{"$error":"#REF!"},null,{"$f":"#REF!","v":{"$error":"#REF!"}},{"$f":"#REF!","v":{"$error":"#REF!"}},null,null,{"$f":"#REF!","v":{"$error":"#REF!"}},800001965,"http://www.xbrl.org/scheme/companyName",null,{"$f":"Periodos!$D$4","v":"2016-12-31"},{"$f":"#REF!","v":{"$error":"#REF!"}},{"$f":"#REF!","v":{"$error":"#REF!"}}]
[{"$error":"#REF!"},null,{"$f":"#REF!","v":{"$error":"#REF!"}},{"$f":"#REF!","v":{"$error":"#REF!"}},null,null,{"$f":"#REF!","v":{"$error":"#REF!"}},800001965,"http://www.xbrl.org/scheme/companyName",null,{"$f":"Periodos!$D$4","v":"2016-12-31"},{"$f":"#REF!","v":{"$error":"#REF!"}},{"$f":"#REF!","v":{"$error":"#REF!"}}]
[{"$error":"#REF!"},null,{"$f":"#REF!","v":{"$error":"#REF!"}},{"$f":"#REF!","v":{"$error":"#REF!"}},null,null,{"$f":"#REF!","v":{"$error":"#REF!"}},800001965,"http://www.xbrl.org/scheme/companyName",null,{"$f":"Periodos!$D$4","v":"2016-12-31"},{"$f":"#REF!","v":{"$error":"#REF!"}},{"$f":"#REF!","v":{"$error":"#REF!"}}]
[{"$error":"#REF!"},null,{"$f":"#REF!","v":{"$error":"#REF!"}},{"$f":"#REF!","v":{"$error":"#REF!"}},null,null,{"$f":"#REF!","v":{"$error":"#REF!"}},800001965,"http://www.xbrl.org/scheme/companyName",null,{"$f":"Periodos!$D$4","v":"2016-12-31"},{"$f":"#REF!","v":{"$error":"#REF!"}},{"$f":"#REF!","v":{"$error":"#REF!"}}]
[{"$error":"#REF!"},null,{"$f":"#REF!","v":{"$error":"#REF!"}},{"$f":"#REF!","v":{"$error":"#REF!"}},null,null,{"$f":"#REF!","v":{"$error":"#REF!"}},800001965,"http://www.xbrl.org/scheme/companyName",null,{"$f":"Periodos!$D$4","v":"2016-12-31"},{"$f":"#REF!","v":{"$error":"#REF!"}},{"$f":"#REF!","v":{"$error":"#REF!"}}]
[{"$error":"#REF!"},null,{"$f":"#REF!","v":{"$error":"#REF!"}},{"$f":"#REF!","v":{"$error":"#REF!"}},0,"peso",{"$f":"#REF!","v":{"$error":"#REF!"}},800001965,"http://www.xbrl.org/scheme/companyName",null,{"$f":"Periodos!$D$4","v":"2016-12-31"},{"$f":"#REF!","v":{"$error":"#REF!"}},{"$f":"#REF!","v":{"$error":"#REF!"}}]
["/*",null,"--71--"]
[{"$error":"#REF!"},null,{"$f":"#REF!","v":{"$error":"#REF!"}},{"$f":"#REF!","v":{"$error":"#REF!"}},null,null,{"$f":"#REF!","v":{"$error":"#REF!"}},800001965,"http://www.xbrl.org/scheme/companyName",null,{"$f":"Periodos!$D$4","v":"2016-12-31"},{"$f":"#REF!","v":{"$error":"#REF!"}},{"$f":"#REF!","v":{"$error":"#REF!"}}]
[{"$error":"#REF!"},null,{"$f":"#REF!","v":{"$error":"#REF!"}},{"$f":"#REF!","v":{"$error":"#REF!"}},null,null,{"$f":"#REF!","v":{"$error":"#REF!"}},800001965,"http://www.xbrl.org/scheme/companyName",null,{"$f":"Periodos!$D$4","v":"2016-12-31"},{"$f":"#REF!","v":{"$error":"#REF!"}},{"$f":"#REF!","v":{"$error":"#REF!"}}]
[{"$error":"#REF!"},null,{"$f":"#REF!","v":{"$error":"#REF!"}},{"$f":"#REF!","v":{"$error":"#REF!"}},null,null,{"$f":"#REF!","v":{"$error":"#REF!"}},800001965,"http://www.xbrl.org/scheme/companyName",null,{"$f":"Periodos!$D$4","v":"2016-12-31"},{"$f":"#REF!","v":{"$error":"#REF!"}},{"$f":"#REF!","v":{"$error":"#REF!"}}]
[{"$error":"#REF!"},null,{"$f":"#REF!","v":{"$error":"#REF!"}},{"$f":"#REF!","v":{"$error":"#REF!"}},null,null,{"$f":"#REF!","v":{"$error":"#REF!"}},800001965,"http://www.xbrl.org/scheme/companyName",null,{"$f":"Periodos!$D$4","v":"2016-12-31"},{"$f":"#REF!","v":{"$error":"#REF!"}},{"$f":"#REF!","v":{"$error":"#REF!"}}]
[{"$error":"#REF!"},null,{"$f":"#REF!","v":{"$error":"#REF!"}},{"$f":"#REF!","v":{"$error":"#REF!"}},null,null,{"$f":"#REF!","v":{"$error":"#REF!"}},800001965,"http://www.xbrl.org/scheme/companyName",null,{"$f":"Periodos!$D$4","v":"2016-12-31"},{"$f":"#REF!","v":{"$error":"#REF!"}},{"$f":"#REF!","v":{"$error":"#REF!"}}]
[{"$error":"#REF!"},null,{"$f":"#REF!","v":{"$error":"#REF!"}},{"$f":"#REF!","v":{"$error":"#REF!"}},null,null,{"$f":"#REF!","v":{"$error":"#REF!"}},800001965,"http://www.xbrl.org/scheme/companyName",null,{"$f":"Periodos!$D$4","v":"2016-12-31"},{"$f":"#REF!","v":{"$error":"#REF!"}},{"$f":"#REF!","v":{"$error":"#REF!"}}]
[{"$error":"#REF!"},null,{"$f":"#REF!","v":{"$error":"#REF!"}},{"$f":"#REF!","v":{"$error":"#REF!"}},null,null,{"$f":"#REF!","v":{"$error":"#REF!"}},800001965,"http://www.xbrl.org/scheme/companyName",null,{"$f":"Periodos!$D$4","v":"2016-12-31"},{"$f":"#REF!","v":{"$error":"#REF!"}},{"$f":"#REF!","v":{"$error":"#REF!"}}]
[{"$error":"#REF!"},null,{"$f":"#REF!","v":{"$error":"#REF!"}},{"$f":"#REF!","v":{"$error":"#REF!"}},null,null,{"$f":"#REF!","v":{"$error":"#REF!"}},800001965,"http://www.xbrl.org/scheme/companyName",null,{"$f":"Periodos!$D$4","v":"2016-12-31"},{"$f":"#REF!","v":{"$error":"#REF!"}},{"$f":"#REF!","v":{"$error":"#REF!"}}]
[{"$error":"#REF!"},null,{"$f":"#REF!","v":{"$error":"#REF!"}},{"$f":"#REF!","v":{"$error":"#REF!"}},null,null,{"$f":"#REF!","v":{"$error":"#REF!"}},800001965,"http://www.xbrl.org/scheme/companyName",null,{"$f":"Periodos!$D$4","v":"2016-12-31"},{"$f":"#REF!","v":{"$error":"#REF!"}},{"$f":"#REF!","v":{"$error":"#REF!"}}]
[{"$error":"#REF!"},null,{"$f":"#REF!","v":{"$error":"#REF!"}},{"$f":"#REF!","v":{"$error":"#REF!"}},null,null,{"$f":"#REF!","v":{"$error":"#REF!"}},800001965,"http://www.xbrl.org/scheme/companyName",null,{"$f":"Periodos!$D$4","v":"2016-12-31"},{"$f":"#REF!","v":{"$error":"#REF!"}},{"$f":"#REF!","v":{"$error":"#REF!"}}]
[{"$error":"#REF!"},null,{"$f":"#REF!","v":{"$error":"#REF!"}},{"$f":"#REF!","v":{"$error":"#REF!"}},null,null,{"$f":"#REF!","v":{"$error":"#REF!"}},800001965,"http://www.xbrl.org/scheme/companyName",null,{"$f":"Periodos!$D$4","v":"2016-12-31"},{"$f":"#REF!","v":{"$error":"#REF!"}},{"$f":"#REF!","v":{"$error":"#REF!"}}]
[{"$error":"#REF!"},null,{"$f":"#REF!","v":{"$error":"#REF!"}},{"$f":"#REF!","v":{"$error":"#REF!"}},0,"peso",{"$f":"#REF!","v":{"$error":"#REF!"}},800001965,"http://www.xbrl.org/scheme/companyName",null,{"$f":"Periodos!$D$4","v":"2016-12-31"},{"$f":"#REF!","v":{"$error":"#REF!"}},{"$f":"#REF!","v":{"$error":"#REF!"}}]
["/*",null,"--72--"]
[{"$error":"#REF!"},null,{"$f":"#REF!","v":{"$error":"#REF!"}},{"$f":"#REF!","v":{"$error":"#REF!"}},null,null,{"$f":"#REF!","v":{"$error":"#REF!"}},800001965,"http://www.xbrl.org/scheme/companyName",null,{"$f":"Periodos!$D$4","v":"2016-12-31"},{"$f":"#REF!","v":{"$error":"#REF!"}},{"$f":"#REF!","v":{"$error":"#REF!"}}]
[{"$error":"#REF!"},null,{"$f":"#REF!","v":{"$error":"#REF!"}},{"$f":"#REF!","v":{"$error":"#REF!"}},null,null,{"$f":"#REF!","v":{"$error":"#REF!"}},800001965,"http://www.xbrl.org/scheme/companyName",null,{"$f":"Periodos!$D$4","v":"2016-12-31"},{"$f":"#REF!","v":{"$error":"#REF!"}},{"$f":"#REF!","v":{"$error":"#REF!"}}]
[{"$error":"#REF!"},null,{"$f":"#REF!","v":{"$error":"#REF!"}},{"$f":"#REF!","v":{"$error":"#REF!"}},null,null,{"$f":"#REF!","v":{"$error":"#REF!"}},800001965,"http://www.xbrl.org/scheme/companyName",null,{"$f":"Periodos!$D$4","v":"2016-12-31"},{"$f":"#REF!","v":{"$error":"#REF!"}},{"$f":"#REF!","v":{"$error":"#REF!"}}]
[{"$error":"#REF!"},null,{"$f":"#REF!","v":{"$error":"#REF!"}},{"$f":"#REF!","v":{"$error":"#REF!"}},null,null,{"$f":"#REF!","v":{"$error":"#REF!"}},800001965,"http://www.xbrl.org/scheme/companyName",null,{"$f":"Periodos!$D$4","v":"2016-12-31"},{"$f":"#REF!","v":{"$error":"#REF!"}},{"$f":"#REF!","v":{"$error":"#REF!"}}]
[{"$error":"#REF!"},null,{"$f":"#REF!","v":{"$error":"#REF!"}},{"$f":"#REF!","v":{"$error":"#REF!"}},null,null,{"$f":"#REF!","v":{"$error":"#REF!"}},800001965,"http://www.xbrl.org/scheme/companyName",null,{"$f":"Periodos!$D$4","v":"2016-12-31"},{"$f":"#REF!","v":{"$error":"#REF!"}},{"$f":"#REF!","v":{"$error":"#REF!"}}]
[{"$error":"#REF!"},null,{"$f":"#REF!","v":{"$error":"#REF!"}},{"$f":"#REF!","v":{"$error":"#REF!"}},null,null,{"$f":"#REF!","v":{"$error":"#REF!"}},800001965,"http://www.xbrl.org/scheme/companyName",null,{"$f":"Periodos!$D$4","v":"2016-12-31"},{"$f":"#REF!","v":{"$error":"#REF!"}},{"$f":"#REF!","v":{"$error":"#REF!"}}]
[{"$error":"#REF!"},null,{"$f":"#REF!","v":{"$error":"#REF!"}},{"$f":"#REF!","v":{"$error":"#REF!"}},null,null,{"$f":"#REF!","v":{"$error":"#REF!"}},800001965,"http://www.xbrl.org/scheme/companyName",null,{"$f":"Periodos!$D$4","v":"2016-12-31"},{"$f":"#REF!","v":{"$error":"#REF!"}},{"$f":"#REF!","v":{"$error":"#REF!"}}]
[{"$error":"#REF!"},null,{"$f":"#REF!","v":{"$error":"#REF!"}},{"$f":"#REF!","v":{"$error":"#REF!"}},null,null,{"$f":"#REF!","v":{"$error":"#REF!"}},800001965,"http://www.xbrl.org/scheme/companyName",null,{"$f":"Periodos!$D$4","v":"2016-12-31"},{"$f":"#REF!","v":{"$error":"#REF!"}},{"$f":"#REF!","v":{"$error":"#REF!"}}]
[{"$error":"#REF!"},null,{"$f":"#REF!","v":{"$error":"#REF!"}},{"$f":"#REF!","v":{"$error":"#REF!"}},null,null,{"$f":"#REF!","v":{"$error":"#REF!"}},800001965,"http://www.xbrl.org/scheme/companyName",null,{"$f":"Periodos!$D$4","v":"2016-12-31"},{"$f":"#REF!","v":{"$error":"#REF!"}},{"$f":"#REF!","v":{"$error":"#REF!"}}]
[{"$error":"#REF!"},null,{"$f":"#REF!","v":{"$error":"#REF!"}},{"$f":"#REF!","v":{"$error":"#REF!"}},null,null,{"$f":"#REF!","v":{"$error":"#REF!"}},800001965,"http://www.xbrl.org/scheme/companyName",null,{"$f":"Periodos!$D$4","v":"2016-12-31"},{"$f":"#REF!","v":{"$error":"#REF!"}},{"$f":"#REF!","v":{"$error":"#REF!"}}]
[{"$error":"#REF!"},null,{"$f":"#REF!","v":{"$error":"#REF!"}},{"$f":"#REF!","v":{"$error":"#REF!"}},null,null,{"$f":"#REF!","v":{"$error":"#REF!"}},800001965,"http://www.xbrl.org/scheme/companyName",null,{"$f":"Periodos!$D$4","v":"2016-12-31"},{"$f":"#REF!","v":{"$error":"#REF!"}},{"$f":"#REF!","v":{"$error":"#REF!"}}]
[{"$error":"#REF!"},null,{"$f":"#REF!","v":{"$error":"#REF!"}},{"$f":"#REF!","v":{"$error":"#REF!"}},0,"peso",{"$f":"#REF!","v":{"$error":"#REF!"}},800001965,"http://www.xbrl.org/scheme/companyName",null,{"$f":"Periodos!$D$4","v":"2016-12-31"},{"$f":"#REF!","v":{"$error":"#REF!"}},{"$f":"#REF!","v":{"$error":"#REF!"}}]
["/*",null,"--73--"]
[{"$error":"#REF!"},null,{"$f":"#REF!","v":{"$error":"#REF!"}},{"$f":"#REF!","v":{"$error":"#REF!"}},null,null,{"$f":"#REF!","v":{"$error":"#REF!"}},800001965,"http://www.xbrl.org/scheme/companyName",null,{"$f":"Periodos!$D$4","v":"2016-12-31"},{"$f":"#REF!","v":{"$error":"#REF!"}},{"$f":"#REF!","v":{"$error":"#REF!"}}]
[{"$error":"#REF!"},null,{"$f":"#REF!","v":{"$error":"#REF!"}},{"$f":"#REF!","v":{"$error":"#REF!"}},null,null,{"$f":"#REF!","v":{"$error":"#REF!"}},800001965,"http://www.xbrl.org/scheme/companyName",null,{"$f":"Periodos!$D$4","v":"2016-12-31"},{"$f":"#REF!","v":{"$error":"#REF!"}},{"$f":"#REF!","v":{"$error":"#REF!"}}]
[{"$error":"#REF!"},null,{"$f":"#REF!","v":{"$error":"#REF!"}},{"$f":"#REF!","v":{"$error":"#REF!"}},null,null,{"$f":"#REF!","v":{"$error":"#REF!"}},800001965,"http://www.xbrl.org/scheme/companyName",null,{"$f":"Periodos!$D$4","v":"2016-12-31"},{"$f":"#REF!","v":{"$error":"#REF!"}},{"$f":"#REF!","v":{"$error":"#REF!"}}]
[{"$error":"#REF!"},null,{"$f":"#REF!","v":{"$error":"#REF!"}},{"$f":"#REF!","v":{"$error":"#REF!"}},null,null,{"$f":"#REF!","v":{"$error":"#REF!"}},800001965,"http://www.xbrl.org/scheme/companyName",null,{"$f":"Periodos!$D$4","v":"2016-12-31"},{"$f":"#REF!","v":{"$error":"#REF!"}},{"$f":"#REF!","v":{"$error":"#REF!"}}]
[{"$f":"IF(G4705=\"\",\"/*\",\"\")","v":{"$error":"#REF!"}},null,{"$f":"#REF!","v":{"$error":"#REF!"}},{"$f":"#REF!","v":{"$error":"#REF!"}},null,null,{"$f":"#REF!","v":{"$error":"#REF!"}},800001965,"http://www.xbrl.org/scheme/companyName",null,{"$f":"Periodos!$D$4","v":"2016-12-31"},{"$f":"#REF!","v":{"$error":"#REF!"}},{"$f":"#REF!","v":{"$error":"#REF!"}}]
[{"$error":"#REF!"},null,{"$f":"#REF!","v":{"$error":"#REF!"}},{"$f":"#REF!","v":{"$error":"#REF!"}},null,null,{"$f":"#REF!","v":{"$error":"#REF!"}},800001965,"http://www.xbrl.org/scheme/companyName",null,{"$f":"Periodos!$D$4","v":"2016-12-31"},{"$f":"#REF!","v":{"$error":"#REF!"}},{"$f":"#REF!","v":{"$error":"#REF!"}}]
[{"$error":"#REF!"},null,{"$f":"#REF!","v":{"$error":"#REF!"}},{"$f":"#REF!","v":{"$error":"#REF!"}},null,null,{"$f":"#REF!","v":{"$error":"#REF!"}},800001965,"http://www.xbrl.org/scheme/companyName",null,{"$f":"Periodos!$D$4","v":"2016-12-31"},{"$f":"#REF!","v":{"$error":"#REF!"}},{"$f":"#REF!","v":{"$error":"#REF!"}}]
[{"$error":"#REF!"},null,{"$f":"#REF!","v":{"$error":"#REF!"}},{"$f":"#REF!","v":{"$error":"#REF!"}},null,null,{"$f":"#REF!","v":{"$error":"#REF!"}},800001965,"http://www.xbrl.org/scheme/companyName",null,{"$f":"Periodos!$D$4","v":"2016-12-31"},{"$f":"#REF!","v":{"$error":"#REF!"}},{"$f":"#REF!","v":{"$error":"#REF!"}}]
[{"$error":"#REF!"},null,{"$f":"#REF!","v":{"$error":"#REF!"}},{"$f":"#REF!","v":{"$error":"#REF!"}},null,null,{"$f":"#REF!","v":{"$error":"#REF!"}},800001965,"http://www.xbrl.org/scheme/companyName",null,{"$f":"Periodos!$D$4","v":"2016-12-31"},{"$f":"#REF!","v":{"$error":"#REF!"}},{"$f":"#REF!","v":{"$error":"#REF!"}}]
[{"$error":"#REF!"},null,{"$f":"#REF!","v":{"$error":"#REF!"}},{"$f":"#REF!","v":{"$error":"#REF!"}},null,null,{"$f":"#REF!","v":{"$error":"#REF!"}},800001965,"http://www.xbrl.org/scheme/companyName",null,{"$f":"Periodos!$D$4","v":"2016-12-31"},{"$f":"#REF!","v":{"$error":"#REF!"}},{"$f":"#REF!","v":{"$error":"#REF!"}}]
[{"$error":"#REF!"},null,{"$f":"#REF!","v":{"$error":"#REF!"}},{"$f":"#REF!","v":{"$error":"#REF!"}},null,null,{"$f":"#REF!","v":{"$error":"#REF!"}},800001965,"http://www.xbrl.org/scheme/companyName",null,{"$f":"Periodos!$D$4","v":"2016-12-31"},{"$f":"#REF!","v":{"$error":"#REF!"}},{"$f":"#REF!","v":{"$error":"#REF!"}}]
[{"$error":"#REF!"},null,{"$f":"#REF!","v":{"$error":"#REF!"}},{"$f":"#REF!","v":{"$error":"#REF!"}},0,"peso",{"$f":"#REF!","v":{"$error":"#REF!"}},800001965,"http://www.xbrl.org/scheme/companyName",null,{"$f":"Periodos!$D$4","v":"2016-12-31"},{"$f":"#REF!","v":{"$error":"#REF!"}},{"$f":"#REF!","v":{"$error":"#REF!"}}]
["/*",null,"--74--"]
[{"$error":"#REF!"},null,{"$f":"#REF!","v":{"$error":"#REF!"}},{"$f":"#REF!","v":{"$error":"#REF!"}},null,null,{"$f":"#REF!","v":{"$error":"#REF!"}},800001965,"http://www.xbrl.org/scheme/companyName",null,{"$f":"Periodos!$D$4","v":"2016-12-31"},{"$f":"#REF!","v":{"$error":"#REF!"}},{"$f":"#REF!","v":{"$error":"#REF!"}}]
[{"$error":"#REF!"},null,{"$f":"#REF!","v":{"$error":"#REF!"}},{"$f":"#REF!","v":{"$error":"#REF!"}},null,null,{"$f":"#REF!","v":{"$error":"#REF!"}},800001965,"http://www.xbrl.org/scheme/companyName",null,{"$f":"Periodos!$D$4","v":"2016-12-31"},{"$f":"#REF!","v":{"$error":"#REF!"}},{"$f":"#REF!","v":{"$error":"#REF!"}}]
[{"$error":"#REF!"},null,{"$f":"#REF!","v":{"$error":"#REF!"}},{"$f":"#REF!","v":{"$error":"#REF!"}},null,null,{"$f":"#REF!","v":{"$error":"#REF!"}},800001965,"http://www.xbrl.org/scheme/companyName",null,{"$f":"Periodos!$D$4","v":"2016-12-31"},{"$f":"#REF!","v":{"$error":"#REF!"}},{"$f":"#REF!","v":{"$error":"#REF!"}}]
[{"$error":"#REF!"},null,{"$f":"#REF!","v":{"$error":"#REF!"}},{"$f":"#REF!","v":{"$error":"#REF!"}},null,null,{"$f":"#REF!","v":{"$error":"#REF!"}},800001965,"http://www.xbrl.org/scheme/companyName",null,{"$f":"Periodos!$D$4","v":"2016-12-31"},{"$f":"#REF!","v":{"$error":"#REF!"}},{"$f":"#REF!","v":{"$error":"#REF!"}}]
[{"$error":"#REF!"},null,{"$f":"#REF!","v":{"$error":"#REF!"}},{"$f":"#REF!","v":{"$error":"#REF!"}},null,null,{"$f":"#REF!","v":{"$error":"#REF!"}},800001965,"http://www.xbrl.org/scheme/companyName",null,{"$f":"Periodos!$D$4","v":"2016-12-31"},{"$f":"#REF!","v":{"$error":"#REF!"}},{"$f":"#REF!","v":{"$error":"#REF!"}}]
[{"$error":"#REF!"},null,{"$f":"#REF!","v":{"$error":"#REF!"}},{"$f":"#REF!","v":{"$error":"#REF!"}},null,null,{"$f":"#REF!","v":{"$error":"#REF!"}},800001965,"http://www.xbrl.org/scheme/companyName",null,{"$f":"Periodos!$D$4","v":"2016-12-31"},{"$f":"#REF!","v":{"$error":"#REF!"}},{"$f":"#REF!","v":{"$error":"#REF!"}}]
[{"$error":"#REF!"},null,{"$f":"#REF!","v":{"$error":"#REF!"}},{"$f":"#REF!","v":{"$error":"#REF!"}},null,null,{"$f":"#REF!","v":{"$error":"#REF!"}},800001965,"http://www.xbrl.org/scheme/companyName",null,{"$f":"Periodos!$D$4","v":"2016-12-31"},{"$f":"#REF!","v":{"$error":"#REF!"}},{"$f":"#REF!","v":{"$error":"#REF!"}}]
[{"$error":"#REF!"},null,{"$f":"#REF!","v":{"$error":"#REF!"}},{"$f":"#REF!","v":{"$error":"#REF!"}},null,null,{"$f":"#REF!","v":{"$error":"#REF!"}},800001965,"http://www.xbrl.org/scheme/companyName",null,{"$f":"Periodos!$D$4","v":"2016-12-31"},{"$f":"#REF!","v":{"$error":"#REF!"}},{"$f":"#REF!","v":{"$error":"#REF!"}}]
[{"$error":"#REF!"},null,{"$f":"#REF!","v":{"$error":"#REF!"}},{"$f":"#REF!","v":{"$error":"#REF!"}},null,null,{"$f":"#REF!","v":{"$error":"#REF!"}},800001965,"http://www.xbrl.org/scheme/companyName",null,{"$f":"Periodos!$D$4","v":"2016-12-31"},{"$f":"#REF!","v":{"$error":"#REF!"}},{"$f":"#REF!","v":{"$error":"#REF!"}}]
[{"$error":"#REF!"},null,{"$f":"#REF!","v":{"$error":"#REF!"}},{"$f":"#REF!","v":{"$error":"#REF!"}},null,null,{"$f":"#REF!","v":{"$error":"#REF!"}},800001965,"http://www.xbrl.org/scheme/companyName",null,{"$f":"Periodos!$D$4","v":"2016-12-31"},{"$f":"#REF!","v":{"$error":"#REF!"}},{"$f":"#REF!","v":{"$error":"#REF!"}}]
[{"$error":"#REF!"},null,{"$f":"#REF!","v":{"$error":"#REF!"}},{"$f":"#REF!","v":{"$error":"#REF!"}},null,null,{"$f":"#REF!","v":{"$error":"#REF!"}},800001965,"http://www.xbrl.org/scheme/companyName",null,{"$f":"Periodos!$D$4","v":"2016-12-31"},{"$f":"#REF!","v":{"$error":"#REF!"}},{"$f":"#REF!","v":{"$error":"#REF!"}}]
[{"$error":"#REF!"},null,{"$f":"#REF!","v":{"$error":"#REF!"}},{"$f":"#REF!","v":{"$error":"#REF!"}},0,"peso",{"$f":"#REF!","v":{"$error":"#REF!"}},800001965,"http://www.xbrl.org/scheme/companyName",null,{"$f":"Periodos!$D$4","v":"2016-12-31"},{"$f":"#REF!","v":{"$error":"#REF!"}},{"$f":"#REF!","v":{"$error":"#REF!"}}]
["/*",null,"--75--"]
[{"$error":"#REF!"},null,{"$f":"#REF!","v":{"$error":"#REF!"}},{"$f":"#REF!","v":{"$error":"#REF!"}},null,null,{"$f":"#REF!","v":{"$error":"#REF!"}},800001965,"http://www.xbrl.org/scheme/companyName",null,{"$f":"Periodos!$D$4","v":"2016-12-31"},{"$f":"#REF!","v":{"$error":"#REF!"}},{"$f":"#REF!","v":{"$error":"#REF!"}}]
[{"$error":"#REF!"},null,{"$f":"#REF!","v":{"$error":"#REF!"}},{"$f":"#REF!","v":{"$error":"#REF!"}},null,null,{"$f":"#REF!","v":{"$error":"#REF!"}},800001965,"http://www.xbrl.org/scheme/companyName",null,{"$f":"Periodos!$D$4","v":"2016-12-31"},{"$f":"#REF!","v":{"$error":"#REF!"}},{"$f":"#REF!","v":{"$error":"#REF!"}}]
[{"$error":"#REF!"},null,{"$f":"#REF!","v":{"$error":"#REF!"}},{"$f":"#REF!","v":{"$error":"#REF!"}},null,null,{"$f":"#REF!","v":{"$error":"#REF!"}},800001965,"http://www.xbrl.org/scheme/companyName",null,{"$f":"Periodos!$D$4","v":"2016-12-31"},{"$f":"#REF!","v":{"$error":"#REF!"}},{"$f":"#REF!","v":{"$error":"#REF!"}}]
[{"$error":"#REF!"},null,{"$f":"#REF!","v":{"$error":"#REF!"}},{"$f":"#REF!","v":{"$error":"#REF!"}},null,null,{"$f":"#REF!","v":{"$error":"#REF!"}},800001965,"http://www.xbrl.org/scheme/companyName",null,{"$f":"Periodos!$D$4","v":"2016-12-31"},{"$f":"#REF!","v":{"$error":"#REF!"}},{"$f":"#REF!","v":{"$error":"#REF!"}}]
[{"$error":"#REF!"},null,{"$f":"#REF!","v":{"$error":"#REF!"}},{"$f":"#REF!","v":{"$error":"#REF!"}},null,null,{"$f":"#REF!","v":{"$error":"#REF!"}},800001965,"http://www.xbrl.org/scheme/companyName",null,{"$f":"Periodos!$D$4","v":"2016-12-31"},{"$f":"#REF!","v":{"$error":"#REF!"}},{"$f":"#REF!","v":{"$error":"#REF!"}}]
[{"$error":"#REF!"},null,{"$f":"#REF!","v":{"$error":"#REF!"}},{"$f":"#REF!","v":{"$error":"#REF!"}},null,null,{"$f":"#REF!","v":{"$error":"#REF!"}},800001965,"http://www.xbrl.org/scheme/companyName",null,{"$f":"Periodos!$D$4","v":"2016-12-31"},{"$f":"#REF!","v":{"$error":"#REF!"}},{"$f":"#REF!","v":{"$error":"#REF!"}}]
[{"$error":"#REF!"},null,{"$f":"#REF!","v":{"$error":"#REF!"}},{"$f":"#REF!","v":{"$error":"#REF!"}},null,null,{"$f":"#REF!","v":{"$error":"#REF!"}},800001965,"http://www.xbrl.org/scheme/companyName",null,{"$f":"Periodos!$D$4","v":"2016-12-31"},{"$f":"#REF!","v":{"$error":"#REF!"}},{"$f":"#REF!","v":{"$error":"#REF!"}}]
[{"$error":"#REF!"},null,{"$f":"#REF!","v":{"$error":"#REF!"}},{"$f":"#REF!","v":{"$error":"#REF!"}},null,null,{"$f":"#REF!","v":{"$error":"#REF!"}},800001965,"http://www.xbrl.org/scheme/companyName",null,{"$f":"Periodos!$D$4","v":"2016-12-31"},{"$f":"#REF!","v":{"$error":"#REF!"}},{"$f":"#REF!","v":{"$error":"#REF!"}}]
[{"$error":"#REF!"},null,{"$f":"#REF!","v":{"$error":"#REF!"}},{"$f":"#REF!","v":{"$error":"#REF!"}},null,null,{"$f":"#REF!","v":{"$error":"#REF!"}},800001965,"http://www.xbrl.org/scheme/companyName",null,{"$f":"Periodos!$D$4","v":"2016-12-31"},{"$f":"#REF!","v":{"$error":"#REF!"}},{"$f":"#REF!","v":{"$error":"#REF!"}}]
[{"$error":"#REF!"},null,{"$f":"#REF!","v":{"$error":"#REF!"}},{"$f":"#REF!","v":{"$error":"#REF!"}},null,null,{"$f":"#REF!","v":{"$error":"#REF!"}},800001965,"http://www.xbrl.org/scheme/companyName",null,{"$f":"Periodos!$D$4","v":"2016-12-31"},{"$f":"#REF!","v":{"$error":"#REF!"}},{"$f":"#REF!","v":{"$error":"#REF!"}}]
[{"$error":"#REF!"},null,{"$f":"#REF!","v":{"$error":"#REF!"}},{"$f":"#REF!","v":{"$error":"#REF!"}},null,null,{"$f":"#REF!","v":{"$error":"#REF!"}},800001965,"http://www.xbrl.org/scheme/companyName",null,{"$f":"Periodos!$D$4","v":"2016-12-31"},{"$f":"#REF!","v":{"$error":"#REF!"}},{"$f":"#REF!","v":{"$error":"#REF!"}}]
[{"$error":"#REF!"},null,{"$f":"#REF!","v":{"$error":"#REF!"}},{"$f":"#REF!","v":{"$error":"#REF!"}},0,"peso",{"$f":"#REF!","v":{"$error":"#REF!"}},800001965,"http://www.xbrl.org/scheme/companyName",null,{"$f":"Periodos!$D$4","v":"2016-12-31"},{"$f":"#REF!","v":{"$error":"#REF!"}},{"$f":"#REF!","v":{"$error":"#REF!"}}]
["/*",null,"--76--"]
[{"$error":"#REF!"},null,{"$f":"#REF!","v":{"$error":"#REF!"}},{"$f":"#REF!","v":{"$error":"#REF!"}},null,null,{"$f":"#REF!","v":{"$error":"#REF!"}},800001965,"http://www.xbrl.org/scheme/companyName",null,{"$f":"Periodos!$D$4","v":"2016-12-31"},{"$f":"#REF!","v":{"$error":"#REF!"}},{"$f":"#REF!","v":{"$error":"#REF!"}}]
[{"$error":"#REF!"},null,{"$f":"#REF!","v":{"$error":"#REF!"}},{"$f":"#REF!","v":{"$error":"#REF!"}},null,null,{"$f":"#REF!","v":{"$error":"#REF!"}},800001965,"http://www.xbrl.org/scheme/companyName",null,{"$f":"Periodos!$D$4","v":"2016-12-31"},{"$f":"#REF!","v":{"$error":"#REF!"}},{"$f":"#REF!","v":{"$error":"#REF!"}}]
[{"$error":"#REF!"},null,{"$f":"#REF!","v":{"$error":"#REF!"}},{"$f":"#REF!","v":{"$error":"#REF!"}},null,null,{"$f":"#REF!","v":{"$error":"#REF!"}},800001965,"http://www.xbrl.org/scheme/companyName",null,{"$f":"Periodos!$D$4","v":"2016-12-31"},{"$f":"#REF!","v":{"$error":"#REF!"}},{"$f":"#REF!","v":{"$error":"#REF!"}}]
[{"$error":"#REF!"},null,{"$f":"#REF!","v":{"$error":"#REF!"}},{"$f":"#REF!","v":{"$error":"#REF!"}},null,null,{"$f":"#REF!","v":{"$error":"#REF!"}},800001965,"http://www.xbrl.org/scheme/companyName",null,{"$f":"Periodos!$D$4","v":"2016-12-31"},{"$f":"#REF!","v":{"$error":"#REF!"}},{"$f":"#REF!","v":{"$error":"#REF!"}}]
[{"$error":"#REF!"},null,{"$f":"#REF!","v":{"$error":"#REF!"}},{"$f":"#REF!","v":{"$error":"#REF!"}},null,null,{"$f":"#REF!","v":{"$error":"#REF!"}},800001965,"http://www.xbrl.org/scheme/companyName",null,{"$f":"Periodos!$D$4","v":"2016-12-31"},{"$f":"#REF!","v":{"$error":"#REF!"}},{"$f":"#REF!","v":{"$error":"#REF!"}}]
[{"$error":"#REF!"},null,{"$f":"#REF!","v":{"$error":"#REF!"}},{"$f":"#REF!","v":{"$error":"#REF!"}},null,null,{"$f":"#REF!","v":{"$error":"#REF!"}},800001965,"http://www.xbrl.org/scheme/companyName",null,{"$f":"Periodos!$D$4","v":"2016-12-31"},{"$f":"#REF!","v":{"$error":"#REF!"}},{"$f":"#REF!","v":{"$error":"#REF!"}}]
[{"$error":"#REF!"},null,{"$f":"#REF!","v":{"$error":"#REF!"}},{"$f":"#REF!","v":{"$error":"#REF!"}},null,null,{"$f":"#REF!","v":{"$error":"#REF!"}},800001965,"http://www.xbrl.org/scheme/companyName",null,{"$f":"Periodos!$D$4","v":"2016-12-31"},{"$f":"#REF!","v":{"$error":"#REF!"}},{"$f":"#REF!","v":{"$error":"#REF!"}}]
[{"$error":"#REF!"},null,{"$f":"#REF!","v":{"$error":"#REF!"}},{"$f":"#REF!","v":{"$error":"#REF!"}},null,null,{"$f":"#REF!","v":{"$error":"#REF!"}},800001965,"http://www.xbrl.org/scheme/companyName",null,{"$f":"Periodos!$D$4","v":"2016-12-31"},{"$f":"#REF!","v":{"$error":"#REF!"}},{"$f":"#REF!","v":{"$error":"#REF!"}}]
[{"$error":"#REF!"},null,{"$f":"#REF!","v":{"$error":"#REF!"}},{"$f":"#REF!","v":{"$error":"#REF!"}},null,null,{"$f":"#REF!","v":{"$error":"#REF!"}},800001965,"http://www.xbrl.org/scheme/companyName",null,{"$f":"Periodos!$D$4","v":"2016-12-31"},{"$f":"#REF!","v":{"$error":"#REF!"}},{"$f":"#REF!","v":{"$error":"#REF!"}}]
[{"$error":"#REF!"},null,{"$f":"#REF!","v":{"$error":"#REF!"}},{"$f":"#REF!","v":{"$error":"#REF!"}},null,null,{"$f":"#REF!","v":{"$error":"#REF!"}},800001965,"http://www.xbrl.org/scheme/companyName",null,{"$f":"Periodos!$D$4","v":"2016-12-31"},{"$f":"#REF!","v":{"$error":"#REF!"}},{"$f":"#REF!","v":{"$error":"#REF!"}}]
[{"$error":"#REF!"},null,{"$f":"#REF!","v":{"$error":"#REF!"}},{"$f":"#REF!","v":{"$error":"#REF!"}},null,null,{"$f":"#REF!","v":{"$error":"#REF!"}},800001965,"http://www.xbrl.org/scheme/companyName",null,{"$f":"Periodos!$D$4","v":"2016-12-31"},{"$f":"#REF!","v":{"$error":"#REF!"}},{"$f":"#REF!","v":{"$error":"#REF!"}}]
[{"$error":"#REF!"},null,{"$f":"#REF!","v":{"$error":"#REF!"}},{"$f":"#REF!","v":{"$error":"#REF!"}},0,"peso",{"$f":"#REF!","v":{"$error":"#REF!"}},800001965,"http://www.xbrl.org/scheme/companyName",null,{"$f":"Periodos!$D$4","v":"2016-12-31"},{"$f":"#REF!","v":{"$error":"#REF!"}},{"$f":"#REF!","v":{"$error":"#REF!"}}]
["/*",null,"--77--"]
[{"$error":"#REF!"},null,{"$f":"#REF!","v":{"$error":"#REF!"}},{"$f":"#REF!","v":{"$error":"#REF!"}},null,null,{"$f":"#REF!","v":{"$error":"#REF!"}},800001965,"http://www.xbrl.org/scheme/companyName",null,{"$f":"Periodos!$D$4","v":"2016-12-31"},{"$f":"#REF!","v":{"$error":"#REF!"}},{"$f":"#REF!","v":{"$error":"#REF!"}}]
[{"$error":"#REF!"},null,{"$f":"#REF!","v":{"$error":"#REF!"}},{"$f":"#REF!","v":{"$error":"#REF!"}},null,null,{"$f":"#REF!","v":{"$error":"#REF!"}},800001965,"http://www.xbrl.org/scheme/companyName",null,{"$f":"Periodos!$D$4","v":"2016-12-31"},{"$f":"#REF!","v":{"$error":"#REF!"}},{"$f":"#REF!","v":{"$error":"#REF!"}}]
[{"$error":"#REF!"},null,{"$f":"#REF!","v":{"$error":"#REF!"}},{"$f":"#REF!","v":{"$error":"#REF!"}},null,null,{"$f":"#REF!","v":{"$error":"#REF!"}},800001965,"http://www.xbrl.org/scheme/companyName",null,{"$f":"Periodos!$D$4","v":"2016-12-31"},{"$f":"#REF!","v":{"$error":"#REF!"}},{"$f":"#REF!","v":{"$error":"#REF!"}}]
[{"$error":"#REF!"},null,{"$f":"#REF!","v":{"$error":"#REF!"}},{"$f":"#REF!","v":{"$error":"#REF!"}},null,null,{"$f":"#REF!","v":{"$error":"#REF!"}},800001965,"http://www.xbrl.org/scheme/companyName",null,{"$f":"Periodos!$D$4","v":"2016-12-31"},{"$f":"#REF!","v":{"$error":"#REF!"}},{"$f":"#REF!","v":{"$error":"#REF!"}}]
[{"$error":"#REF!"},null,{"$f":"#REF!","v":{"$error":"#REF!"}},{"$f":"#REF!","v":{"$error":"#REF!"}},null,null,{"$f":"#REF!","v":{"$error":"#REF!"}},800001965,"http://www.xbrl.org/scheme/companyName",null,{"$f":"Periodos!$D$4","v":"2016-12-31"},{"$f":"#REF!","v":{"$error":"#REF!"}},{"$f":"#REF!","v":{"$error":"#REF!"}}]
[{"$error":"#REF!"},null,{"$f":"#REF!","v":{"$error":"#REF!"}},{"$f":"#REF!","v":{"$error":"#REF!"}},null,null,{"$f":"#REF!","v":{"$error":"#REF!"}},800001965,"http://www.xbrl.org/scheme/companyName",null,{"$f":"Periodos!$D$4","v":"2016-12-31"},{"$f":"#REF!","v":{"$error":"#REF!"}},{"$f":"#REF!","v":{"$error":"#REF!"}}]
[{"$error":"#REF!"},null,{"$f":"#REF!","v":{"$error":"#REF!"}},{"$f":"#REF!","v":{"$error":"#REF!"}},null,null,{"$f":"#REF!","v":{"$error":"#REF!"}},800001965,"http://www.xbrl.org/scheme/companyName",null,{"$f":"Periodos!$D$4","v":"2016-12-31"},{"$f":"#REF!","v":{"$error":"#REF!"}},{"$f":"#REF!","v":{"$error":"#REF!"}}]
[{"$error":"#REF!"},null,{"$f":"#REF!","v":{"$error":"#REF!"}},{"$f":"#REF!","v":{"$error":"#REF!"}},null,null,{"$f":"#REF!","v":{"$error":"#REF!"}},800001965,"http://www.xbrl.org/scheme/companyName",null,{"$f":"Periodos!$D$4","v":"2016-12-31"},{"$f":"#REF!","v":{"$error":"#REF!"}},{"$f":"#REF!","v":{"$error":"#REF!"}}]
[{"$error":"#REF!"},null,{"$f":"#REF!","v":{"$error":"#REF!"}},{"$f":"#REF!","v":{"$error":"#REF!"}},null,null,{"$f":"#REF!","v":{"$error":"#REF!"}},800001965,"http://www.xbrl.org/scheme/companyName",null,{"$f":"Periodos!$D$4","v":"2016-12-31"},{"$f":"#REF!","v":{"$error":"#REF!"}},{"$f":"#REF!","v":{"$error":"#REF!"}}]
[{"$error":"#REF!"},null,{"$f":"#REF!","v":{"$error":"#REF!"}},{"$f":"#REF!","v":{"$error":"#REF!"}},null,null,{"$f":"#REF!","v":{"$error":"#REF!"}},800001965,"http://www.xbrl.org/scheme/companyName",null,{"$f":"Periodos!$D$4","v":"2016-12-31"},{"$f":"#REF!","v":{"$error":"#REF!"}},{"$f":"#REF!","v":{"$error":"#REF!"}}]
[{"$error":"#REF!"},null,{"$f":"#REF!","v":{"$error":"#REF!"}},{"$f":"#REF!","v":{"$error":"#REF!"}},null,null,{"$f":"#REF!","v":{"$error":"#REF!"}},800001965,"http://www.xbrl.org/scheme/companyName",null,{"$f":"Periodos!$D$4","v":"2016-12-31"},{"$f":"#REF!","v":{"$error":"#REF!"}},{"$f":"#REF!","v":{"$error":"#REF!"}}]
[{"$error":"#REF!"},null,{"$f":"#REF!","v":{"$error":"#REF!"}},{"$f":"#REF!","v":{"$error":"#REF!"}},0,"peso",{"$f":"#REF!","v":{"$error":"#REF!"}},800001965,"http://www.xbrl.org/scheme/companyName",null,{"$f":"Periodos!$D$4","v":"2016-12-31"},{"$f":"#REF!","v":{"$error":"#REF!"}},{"$f":"#REF!","v":{"$error":"#REF!"}}]
["/*",null,"--78--"]
[{"$error":"#REF!"},null,{"$f":"#REF!","v":{"$error":"#REF!"}},{"$f":"#REF!","v":{"$error":"#REF!"}},null,null,{"$f":"#REF!","v":{"$error":"#REF!"}},800001965,"http://www.xbrl.org/scheme/companyName",null,{"$f":"Periodos!$D$4","v":"2016-12-31"},{"$f":"#REF!","v":{"$error":"#REF!"}},{"$f":"#REF!","v":{"$error":"#REF!"}}]
[{"$error":"#REF!"},null,{"$f":"#REF!","v":{"$error":"#REF!"}},{"$f":"#REF!","v":{"$error":"#REF!"}},null,null,{"$f":"#REF!","v":{"$error":"#REF!"}},800001965,"http://www.xbrl.org/scheme/companyName",null,{"$f":"Periodos!$D$4","v":"2016-12-31"},{"$f":"#REF!","v":{"$error":"#REF!"}},{"$f":"#REF!","v":{"$error":"#REF!"}}]
[{"$error":"#REF!"},null,{"$f":"#REF!","v":{"$error":"#REF!"}},{"$f":"#REF!","v":{"$error":"#REF!"}},null,null,{"$f":"#REF!","v":{"$error":"#REF!"}},800001965,"http://www.xbrl.org/scheme/companyName",null,{"$f":"Periodos!$D$4","v":"2016-12-31"},{"$f":"#REF!","v":{"$error":"#REF!"}},{"$f":"#REF!","v":{"$error":"#REF!"}}]
[{"$f":"IF(G4769=\"\",\"/*\",\"\")","v":{"$error":"#REF!"}},null,{"$f":"#REF!","v":{"$error":"#REF!"}},{"$f":"#REF!","v":{"$error":"#REF!"}},null,null,{"$f":"#REF!","v":{"$error":"#REF!"}},800001965,"http://www.xbrl.org/scheme/companyName",null,{"$f":"Periodos!$D$4","v":"2016-12-31"},{"$f":"#REF!","v":{"$error":"#REF!"}},{"$f":"#REF!","v":{"$error":"#REF!"}}]
[{"$error":"#REF!"},null,{"$f":"#REF!","v":{"$error":"#REF!"}},{"$f":"#REF!","v":{"$error":"#REF!"}},null,null,{"$f":"#REF!","v":{"$error":"#REF!"}},800001965,"http://www.xbrl.org/scheme/companyName",null,{"$f":"Periodos!$D$4","v":"2016-12-31"},{"$f":"#REF!","v":{"$error":"#REF!"}},{"$f":"#REF!","v":{"$error":"#REF!"}}]
[{"$error":"#REF!"},null,{"$f":"#REF!","v":{"$error":"#REF!"}},{"$f":"#REF!","v":{"$error":"#REF!"}},null,null,{"$f":"#REF!","v":{"$error":"#REF!"}},800001965,"http://www.xbrl.org/scheme/companyName",null,{"$f":"Periodos!$D$4","v":"2016-12-31"},{"$f":"#REF!","v":{"$error":"#REF!"}},{"$f":"#REF!","v":{"$error":"#REF!"}}]
[{"$error":"#REF!"},null,{"$f":"#REF!","v":{"$error":"#REF!"}},{"$f":"#REF!","v":{"$error":"#REF!"}},null,null,{"$f":"#REF!","v":{"$error":"#REF!"}},800001965,"http://www.xbrl.org/scheme/companyName",null,{"$f":"Periodos!$D$4","v":"2016-12-31"},{"$f":"#REF!","v":{"$error":"#REF!"}},{"$f":"#REF!","v":{"$error":"#REF!"}}]
[{"$error":"#REF!"},null,{"$f":"#REF!","v":{"$error":"#REF!"}},{"$f":"#REF!","v":{"$error":"#REF!"}},null,null,{"$f":"#REF!","v":{"$error":"#REF!"}},800001965,"http://www.xbrl.org/scheme/companyName",null,{"$f":"Periodos!$D$4","v":"2016-12-31"},{"$f":"#REF!","v":{"$error":"#REF!"}},{"$f":"#REF!","v":{"$error":"#REF!"}}]
[{"$error":"#REF!"},null,{"$f":"#REF!","v":{"$error":"#REF!"}},{"$f":"#REF!","v":{"$error":"#REF!"}},null,null,{"$f":"#REF!","v":{"$error":"#REF!"}},800001965,"http://www.xbrl.org/scheme/companyName",null,{"$f":"Periodos!$D$4","v":"2016-12-31"},{"$f":"#REF!","v":{"$error":"#REF!"}},{"$f":"#REF!","v":{"$error":"#REF!"}}]
[{"$error":"#REF!"},null,{"$f":"#REF!","v":{"$error":"#REF!"}},{"$f":"#REF!","v":{"$error":"#REF!"}},null,null,{"$f":"#REF!","v":{"$error":"#REF!"}},800001965,"http://www.xbrl.org/scheme/companyName",null,{"$f":"Periodos!$D$4","v":"2016-12-31"},{"$f":"#REF!","v":{"$error":"#REF!"}},{"$f":"#REF!","v":{"$error":"#REF!"}}]
[{"$error":"#REF!"},null,{"$f":"#REF!","v":{"$error":"#REF!"}},{"$f":"#REF!","v":{"$error":"#REF!"}},null,null,{"$f":"#REF!","v":{"$error":"#REF!"}},800001965,"http://www.xbrl.org/scheme/companyName",null,{"$f":"Periodos!$D$4","v":"2016-12-31"},{"$f":"#REF!","v":{"$error":"#REF!"}},{"$f":"#REF!","v":{"$error":"#REF!"}}]
[{"$error":"#REF!"},null,{"$f":"#REF!","v":{"$error":"#REF!"}},{"$f":"#REF!","v":{"$error":"#REF!"}},0,"peso",{"$f":"#REF!","v":{"$error":"#REF!"}},800001965,"http://www.xbrl.org/scheme/companyName",null,{"$f":"Periodos!$D$4","v":"2016-12-31"},{"$f":"#REF!","v":{"$error":"#REF!"}},{"$f":"#REF!","v":{"$error":"#REF!"}}]
["/*",null,"--79--"]
[{"$error":"#REF!"},null,{"$f":"#REF!","v":{"$error":"#REF!"}},{"$f":"#REF!","v":{"$error":"#REF!"}},null,null,{"$f":"#REF!","v":{"$error":"#REF!"}},800001965,"http://www.xbrl.org/scheme/companyName",null,{"$f":"Periodos!$D$4","v":"2016-12-31"},{"$f":"#REF!","v":{"$error":"#REF!"}},{"$f":"#REF!","v":{"$error":"#REF!"}}]
[{"$error":"#REF!"},null,{"$f":"#REF!","v":{"$error":"#REF!"}},{"$f":"#REF!","v":{"$error":"#REF!"}},null,null,{"$f":"#REF!","v":{"$error":"#REF!"}},800001965,"http://www.xbrl.org/scheme/companyName",null,{"$f":"Periodos!$D$4","v":"2016-12-31"},{"$f":"#REF!","v":{"$error":"#REF!"}},{"$f":"#REF!","v":{"$error":"#REF!"}}]
[{"$error":"#REF!"},null,{"$f":"#REF!","v":{"$error":"#REF!"}},{"$f":"#REF!","v":{"$error":"#REF!"}},null,null,{"$f":"#REF!","v":{"$error":"#REF!"}},800001965,"http://www.xbrl.org/scheme/companyName",null,{"$f":"Periodos!$D$4","v":"2016-12-31"},{"$f":"#REF!","v":{"$error":"#REF!"}},{"$f":"#REF!","v":{"$error":"#REF!"}}]
[{"$error":"#REF!"},null,{"$f":"#REF!","v":{"$error":"#REF!"}},{"$f":"#REF!","v":{"$error":"#REF!"}},null,null,{"$f":"#REF!","v":{"$error":"#REF!"}},800001965,"http://www.xbrl.org/scheme/companyName",null,{"$f":"Periodos!$D$4","v":"2016-12-31"},{"$f":"#REF!","v":{"$error":"#REF!"}},{"$f":"#REF!","v":{"$error":"#REF!"}}]
[{"$error":"#REF!"},null,{"$f":"#REF!","v":{"$error":"#REF!"}},{"$f":"#REF!","v":{"$error":"#REF!"}},null,null,{"$f":"#REF!","v":{"$error":"#REF!"}},800001965,"http://www.xbrl.org/scheme/companyName",null,{"$f":"Periodos!$D$4","v":"2016-12-31"},{"$f":"#REF!","v":{"$error":"#REF!"}},{"$f":"#REF!","v":{"$error":"#REF!"}}]
[{"$error":"#REF!"},null,{"$f":"#REF!","v":{"$error":"#REF!"}},{"$f":"#REF!","v":{"$error":"#REF!"}},null,null,{"$f":"#REF!","v":{"$error":"#REF!"}},800001965,"http://www.xbrl.org/scheme/companyName",null,{"$f":"Periodos!$D$4","v":"2016-12-31"},{"$f":"#REF!","v":{"$error":"#REF!"}},{"$f":"#REF!","v":{"$error":"#REF!"}}]
[{"$error":"#REF!"},null,{"$f":"#REF!","v":{"$error":"#REF!"}},{"$f":"#REF!","v":{"$error":"#REF!"}},null,null,{"$f":"#REF!","v":{"$error":"#REF!"}},800001965,"http://www.xbrl.org/scheme/companyName",null,{"$f":"Periodos!$D$4","v":"2016-12-31"},{"$f":"#REF!","v":{"$error":"#REF!"}},{"$f":"#REF!","v":{"$error":"#REF!"}}]
[{"$error":"#REF!"},null,{"$f":"#REF!","v":{"$error":"#REF!"}},{"$f":"#REF!","v":{"$error":"#REF!"}},null,null,{"$f":"#REF!","v":{"$error":"#REF!"}},800001965,"http://www.xbrl.org/scheme/companyName",null,{"$f":"Periodos!$D$4","v":"2016-12-31"},{"$f":"#REF!","v":{"$error":"#REF!"}},{"$f":"#REF!","v":{"$error":"#REF!"}}]
[{"$error":"#REF!"},null,{"$f":"#REF!","v":{"$error":"#REF!"}},{"$f":"#REF!","v":{"$error":"#REF!"}},null,null,{"$f":"#REF!","v":{"$error":"#REF!"}},800001965,"http://www.xbrl.org/scheme/companyName",null,{"$f":"Periodos!$D$4","v":"2016-12-31"},{"$f":"#REF!","v":{"$error":"#REF!"}},{"$f":"#REF!","v":{"$error":"#REF!"}}]
[{"$error":"#REF!"},null,{"$f":"#REF!","v":{"$error":"#REF!"}},{"$f":"#REF!","v":{"$error":"#REF!"}},null,null,{"$f":"#REF!","v":{"$error":"#REF!"}},800001965,"http://www.xbrl.org/scheme/companyName",null,{"$f":"Periodos!$D$4","v":"2016-12-31"},{"$f":"#REF!","v":{"$error":"#REF!"}},{"$f":"#REF!","v":{"$error":"#REF!"}}]
[{"$error":"#REF!"},null,{"$f":"#REF!","v":{"$error":"#REF!"}},{"$f":"#REF!","v":{"$error":"#REF!"}},null,null,{"$f":"#REF!","v":{"$error":"#REF!"}},800001965,"http://www.xbrl.org/scheme/companyName",null,{"$f":"Periodos!$D$4","v":"2016-12-31"},{"$f":"#REF!","v":{"$error":"#REF!"}},{"$f":"#REF!","v":{"$error":"#REF!"}}]
[{"$error":"#REF!"},null,{"$f":"#REF!","v":{"$error":"#REF!"}},{"$f":"#REF!","v":{"$error":"#REF!"}},0,"peso",{"$f":"#REF!","v":{"$error":"#REF!"}},800001965,"http://www.xbrl.org/scheme/companyName",null,{"$f":"Periodos!$D$4","v":"2016-12-31"},{"$f":"#REF!","v":{"$error":"#REF!"}},{"$f":"#REF!","v":{"$error":"#REF!"}}]
["/*",null,"--80--"]
[{"$error":"#REF!"},null,{"$f":"#REF!","v":{"$error":"#REF!"}},{"$f":"#REF!","v":{"$error":"#REF!"}},null,null,{"$f":"#REF!","v":{"$error":"#REF!"}},800001965,"http://www.xbrl.org/scheme/companyName",null,{"$f":"Periodos!$D$4","v":"2016-12-31"},{"$f":"#REF!","v":{"$error":"#REF!"}},{"$f":"#REF!","v":{"$error":"#REF!"}}]
[{"$error":"#REF!"},null,{"$f":"#REF!","v":{"$error":"#REF!"}},{"$f":"#REF!","v":{"$error":"#REF!"}},null,null,{"$f":"#REF!","v":{"$error":"#REF!"}},800001965,"http://www.xbrl.org/scheme/companyName",null,{"$f":"Periodos!$D$4","v":"2016-12-31"},{"$f":"#REF!","v":{"$error":"#REF!"}},{"$f":"#REF!","v":{"$error":"#REF!"}}]
[{"$error":"#REF!"},null,{"$f":"#REF!","v":{"$error":"#REF!"}},{"$f":"#REF!","v":{"$error":"#REF!"}},null,null,{"$f":"#REF!","v":{"$error":"#REF!"}},800001965,"http://www.xbrl.org/scheme/companyName",null,{"$f":"Periodos!$D$4","v":"2016-12-31"},{"$f":"#REF!","v":{"$error":"#REF!"}},{"$f":"#REF!","v":{"$error":"#REF!"}}]
[{"$error":"#REF!"},null,{"$f":"#REF!","v":{"$error":"#REF!"}},{"$f":"#REF!","v":{"$error":"#REF!"}},null,null,{"$f":"#REF!","v":{"$error":"#REF!"}},800001965,"http://www.xbrl.org/scheme/companyName",null,{"$f":"Periodos!$D$4","v":"2016-12-31"},{"$f":"#REF!","v":{"$error":"#REF!"}},{"$f":"#REF!","v":{"$error":"#REF!"}}]
[{"$error":"#REF!"},null,{"$f":"#REF!","v":{"$error":"#REF!"}},{"$f":"#REF!","v":{"$error":"#REF!"}},null,null,{"$f":"#REF!","v":{"$error":"#REF!"}},800001965,"http://www.xbrl.org/scheme/companyName",null,{"$f":"Periodos!$D$4","v":"2016-12-31"},{"$f":"#REF!","v":{"$error":"#REF!"}},{"$f":"#REF!","v":{"$error":"#REF!"}}]
[{"$error":"#REF!"},null,{"$f":"#REF!","v":{"$error":"#REF!"}},{"$f":"#REF!","v":{"$error":"#REF!"}},null,null,{"$f":"#REF!","v":{"$error":"#REF!"}},800001965,"http://www.xbrl.org/scheme/companyName",null,{"$f":"Periodos!$D$4","v":"2016-12-31"},{"$f":"#REF!","v":{"$error":"#REF!"}},{"$f":"#REF!","v":{"$error":"#REF!"}}]
[{"$error":"#REF!"},null,{"$f":"#REF!","v":{"$error":"#REF!"}},{"$f":"#REF!","v":{"$error":"#REF!"}},null,null,{"$f":"#REF!","v":{"$error":"#REF!"}},800001965,"http://www.xbrl.org/scheme/companyName",null,{"$f":"Periodos!$D$4","v":"2016-12-31"},{"$f":"#REF!","v":{"$error":"#REF!"}},{"$f":"#REF!","v":{"$error":"#REF!"}}]
[{"$error":"#REF!"},null,{"$f":"#REF!","v":{"$error":"#REF!"}},{"$f":"#REF!","v":{"$error":"#REF!"}},null,null,{"$f":"#REF!","v":{"$error":"#REF!"}},800001965,"http://www.xbrl.org/scheme/companyName",null,{"$f":"Periodos!$D$4","v":"2016-12-31"},{"$f":"#REF!","v":{"$error":"#REF!"}},{"$f":"#REF!","v":{"$error":"#REF!"}}]
[{"$error":"#REF!"},null,{"$f":"#REF!","v":{"$error":"#REF!"}},{"$f":"#REF!","v":{"$error":"#REF!"}},null,null,{"$f":"#REF!","v":{"$error":"#REF!"}},800001965,"http://www.xbrl.org/scheme/companyName",null,{"$f":"Periodos!$D$4","v":"2016-12-31"},{"$f":"#REF!","v":{"$error":"#REF!"}},{"$f":"#REF!","v":{"$error":"#REF!"}}]
[{"$error":"#REF!"},null,{"$f":"#REF!","v":{"$error":"#REF!"}},{"$f":"#REF!","v":{"$error":"#REF!"}},null,null,{"$f":"#REF!","v":{"$error":"#REF!"}},800001965,"http://www.xbrl.org/scheme/companyName",null,{"$f":"Periodos!$D$4","v":"2016-12-31"},{"$f":"#REF!","v":{"$error":"#REF!"}},{"$f":"#REF!","v":{"$error":"#REF!"}}]
[{"$error":"#REF!"},null,{"$f":"#REF!","v":{"$error":"#REF!"}},{"$f":"#REF!","v":{"$error":"#REF!"}},null,null,{"$f":"#REF!","v":{"$error":"#REF!"}},800001965,"http://www.xbrl.org/scheme/companyName",null,{"$f":"Periodos!$D$4","v":"2016-12-31"},{"$f":"#REF!","v":{"$error":"#REF!"}},{"$f":"#REF!","v":{"$error":"#REF!"}}]
[{"$error":"#REF!"},null,{"$f":"#REF!","v":{"$error":"#REF!"}},{"$f":"#REF!","v":{"$error":"#REF!"}},0,"peso",{"$f":"#REF!","v":{"$error":"#REF!"}},800001965,"http://www.xbrl.org/scheme/companyName",null,{"$f":"Periodos!$D$4","v":"2016-12-31"},{"$f":"#REF!","v":{"$error":"#REF!"}},{"$f":"#REF!","v":{"$error":"#REF!"}}]
["/*",null,"--81--"]
[{"$error":"#REF!"},null,{"$f":"#REF!","v":{"$error":"#REF!"}},{"$f":"#REF!","v":{"$error":"#REF!"}},null,null,{"$f":"#REF!","v":{"$error":"#REF!"}},800001965,"http://www.xbrl.org/scheme/companyName",null,{"$f":"Periodos!$D$4","v":"2016-12-31"},{"$f":"#REF!","v":{"$error":"#REF!"}},{"$f":"#REF!","v":{"$error":"#REF!"}}]
[{"$error":"#REF!"},null,{"$f":"#REF!","v":{"$error":"#REF!"}},{"$f":"#REF!","v":{"$error":"#REF!"}},null,null,{"$f":"#REF!","v":{"$error":"#REF!"}},800001965,"http://www.xbrl.org/scheme/companyName",null,{"$f":"Periodos!$D$4","v":"2016-12-31"},{"$f":"#REF!","v":{"$error":"#REF!"}},{"$f":"#REF!","v":{"$error":"#REF!"}}]
[{"$error":"#REF!"},null,{"$f":"#REF!","v":{"$error":"#REF!"}},{"$f":"#REF!","v":{"$error":"#REF!"}},null,null,{"$f":"#REF!","v":{"$error":"#REF!"}},800001965,"http://www.xbrl.org/scheme/companyName",null,{"$f":"Periodos!$D$4","v":"2016-12-31"},{"$f":"#REF!","v":{"$error":"#REF!"}},{"$f":"#REF!","v":{"$error":"#REF!"}}]
[{"$error":"#REF!"},null,{"$f":"#REF!","v":{"$error":"#REF!"}},{"$f":"#REF!","v":{"$error":"#REF!"}},null,null,{"$f":"#REF!","v":{"$error":"#REF!"}},800001965,"http://www.xbrl.org/scheme/companyName",null,{"$f":"Periodos!$D$4","v":"2016-12-31"},{"$f":"#REF!","v":{"$error":"#REF!"}},{"$f":"#REF!","v":{"$error":"#REF!"}}]
[{"$error":"#REF!"},null,{"$f":"#REF!","v":{"$error":"#REF!"}},{"$f":"#REF!","v":{"$error":"#REF!"}},null,null,{"$f":"#REF!","v":{"$error":"#REF!"}},800001965,"http://www.xbrl.org/scheme/companyName",null,{"$f":"Periodos!$D$4","v":"2016-12-31"},{"$f":"#REF!","v":{"$error":"#REF!"}},{"$f":"#REF!","v":{"$error":"#REF!"}}]
[{"$error":"#REF!"},null,{"$f":"#REF!","v":{"$error":"#REF!"}},{"$f":"#REF!","v":{"$error":"#REF!"}},null,null,{"$f":"#REF!","v":{"$error":"#REF!"}},800001965,"http://www.xbrl.org/scheme/companyName",null,{"$f":"Periodos!$D$4","v":"2016-12-31"},{"$f":"#REF!","v":{"$error":"#REF!"}},{"$f":"#REF!","v":{"$error":"#REF!"}}]
[{"$error":"#REF!"},null,{"$f":"#REF!","v":{"$error":"#REF!"}},{"$f":"#REF!","v":{"$error":"#REF!"}},null,null,{"$f":"#REF!","v":{"$error":"#REF!"}},800001965,"http://www.xbrl.org/scheme/companyName",null,{"$f":"Periodos!$D$4","v":"2016-12-31"},{"$f":"#REF!","v":{"$error":"#REF!"}},{"$f":"#REF!","v":{"$error":"#REF!"}}]
[{"$error":"#REF!"},null,{"$f":"#REF!","v":{"$error":"#REF!"}},{"$f":"#REF!","v":{"$error":"#REF!"}},null,null,{"$f":"#REF!","v":{"$error":"#REF!"}},800001965,"http://www.xbrl.org/scheme/companyName",null,{"$f":"Periodos!$D$4","v":"2016-12-31"},{"$f":"#REF!","v":{"$error":"#REF!"}},{"$f":"#REF!","v":{"$error":"#REF!"}}]
[{"$error":"#REF!"},null,{"$f":"#REF!","v":{"$error":"#REF!"}},{"$f":"#REF!","v":{"$error":"#REF!"}},null,null,{"$f":"#REF!","v":{"$error":"#REF!"}},800001965,"http://www.xbrl.org/scheme/companyName",null,{"$f":"Periodos!$D$4","v":"2016-12-31"},{"$f":"#REF!","v":{"$error":"#REF!"}},{"$f":"#REF!","v":{"$error":"#REF!"}}]
[{"$error":"#REF!"},null,{"$f":"#REF!","v":{"$error":"#REF!"}},{"$f":"#REF!","v":{"$error":"#REF!"}},null,null,{"$f":"#REF!","v":{"$error":"#REF!"}},800001965,"http://www.xbrl.org/scheme/companyName",null,{"$f":"Periodos!$D$4","v":"2016-12-31"},{"$f":"#REF!","v":{"$error":"#REF!"}},{"$f":"#REF!","v":{"$error":"#REF!"}}]
[{"$error":"#REF!"},null,{"$f":"#REF!","v":{"$error":"#REF!"}},{"$f":"#REF!","v":{"$error":"#REF!"}},null,null,{"$f":"#REF!","v":{"$error":"#REF!"}},800001965,"http://www.xbrl.org/scheme/companyName",null,{"$f":"Periodos!$D$4","v":"2016-12-31"},{"$f":"#REF!","v":{"$error":"#REF!"}},{"$f":"#REF!","v":{"$error":"#REF!"}}]
[{"$error":"#REF!"},null,{"$f":"#REF!","v":{"$error":"#REF!"}},{"$f":"#REF!","v":{"$error":"#REF!"}},0,"peso",{"$f":"#REF!","v":{"$error":"#REF!"}},800001965,"http://www.xbrl.org/scheme/companyName",null,{"$f":"Periodos!$D$4","v":"2016-12-31"},{"$f":"#REF!","v":{"$error":"#REF!"}},{"$f":"#REF!","v":{"$error":"#REF!"}}]
["/*",null,"--82--"]
[{"$error":"#REF!"},null,{"$f":"#REF!","v":{"$error":"#REF!"}},{"$f":"#REF!","v":{"$error":"#REF!"}},null,null,{"$f":"#REF!","v":{"$error":"#REF!"}},800001965,"http://www.xbrl.org/scheme/companyName",null,{"$f":"Periodos!$D$4","v":"2016-12-31"},{"$f":"#REF!","v":{"$error":"#REF!"}},{"$f":"#REF!","v":{"$error":"#REF!"}}]
[{"$error":"#REF!"},null,{"$f":"#REF!","v":{"$error":"#REF!"}},{"$f":"#REF!","v":{"$error":"#REF!"}},null,null,{"$f":"#REF!","v":{"$error":"#REF!"}},800001965,"http://www.xbrl.org/scheme/companyName",null,{"$f":"Periodos!$D$4","v":"2016-12-31"},{"$f":"#REF!","v":{"$error":"#REF!"}},{"$f":"#REF!","v":{"$error":"#REF!"}}]
[{"$error":"#REF!"},null,{"$f":"#REF!","v":{"$error":"#REF!"}},{"$f":"#REF!","v":{"$error":"#REF!"}},null,null,{"$f":"#REF!","v":{"$error":"#REF!"}},800001965,"http://www.xbrl.org/scheme/companyName",null,{"$f":"Periodos!$D$4","v":"2016-12-31"},{"$f":"#REF!","v":{"$error":"#REF!"}},{"$f":"#REF!","v":{"$error":"#REF!"}}]
[{"$error":"#REF!"},null,{"$f":"#REF!","v":{"$error":"#REF!"}},{"$f":"#REF!","v":{"$error":"#REF!"}},null,null,{"$f":"#REF!","v":{"$error":"#REF!"}},800001965,"http://www.xbrl.org/scheme/companyName",null,{"$f":"Periodos!$D$4","v":"2016-12-31"},{"$f":"#REF!","v":{"$error":"#REF!"}},{"$f":"#REF!","v":{"$error":"#REF!"}}]
[{"$error":"#REF!"},null,{"$f":"#REF!","v":{"$error":"#REF!"}},{"$f":"#REF!","v":{"$error":"#REF!"}},null,null,{"$f":"#REF!","v":{"$error":"#REF!"}},800001965,"http://www.xbrl.org/scheme/companyName",null,{"$f":"Periodos!$D$4","v":"2016-12-31"},{"$f":"#REF!","v":{"$error":"#REF!"}},{"$f":"#REF!","v":{"$error":"#REF!"}}]
[{"$error":"#REF!"},null,{"$f":"#REF!","v":{"$error":"#REF!"}},{"$f":"#REF!","v":{"$error":"#REF!"}},null,null,{"$f":"#REF!","v":{"$error":"#REF!"}},800001965,"http://www.xbrl.org/scheme/companyName",null,{"$f":"Periodos!$D$4","v":"2016-12-31"},{"$f":"#REF!","v":{"$error":"#REF!"}},{"$f":"#REF!","v":{"$error":"#REF!"}}]
[{"$error":"#REF!"},null,{"$f":"#REF!","v":{"$error":"#REF!"}},{"$f":"#REF!","v":{"$error":"#REF!"}},null,null,{"$f":"#REF!","v":{"$error":"#REF!"}},800001965,"http://www.xbrl.org/scheme/companyName",null,{"$f":"Periodos!$D$4","v":"2016-12-31"},{"$f":"#REF!","v":{"$error":"#REF!"}},{"$f":"#REF!","v":{"$error":"#REF!"}}]
[{"$error":"#REF!"},null,{"$f":"#REF!","v":{"$error":"#REF!"}},{"$f":"#REF!","v":{"$error":"#REF!"}},null,null,{"$f":"#REF!","v":{"$error":"#REF!"}},800001965,"http://www.xbrl.org/scheme/companyName",null,{"$f":"Periodos!$D$4","v":"2016-12-31"},{"$f":"#REF!","v":{"$error":"#REF!"}},{"$f":"#REF!","v":{"$error":"#REF!"}}]
[{"$error":"#REF!"},null,{"$f":"#REF!","v":{"$error":"#REF!"}},{"$f":"#REF!","v":{"$error":"#REF!"}},null,null,{"$f":"#REF!","v":{"$error":"#REF!"}},800001965,"http://www.xbrl.org/scheme/companyName",null,{"$f":"Periodos!$D$4","v":"2016-12-31"},{"$f":"#REF!","v":{"$error":"#REF!"}},{"$f":"#REF!","v":{"$error":"#REF!"}}]
[{"$error":"#REF!"},null,{"$f":"#REF!","v":{"$error":"#REF!"}},{"$f":"#REF!","v":{"$error":"#REF!"}},null,null,{"$f":"#REF!","v":{"$error":"#REF!"}},800001965,"http://www.xbrl.org/scheme/companyName",null,{"$f":"Periodos!$D$4","v":"2016-12-31"},{"$f":"#REF!","v":{"$error":"#REF!"}},{"$f":"#REF!","v":{"$error":"#REF!"}}]
[{"$error":"#REF!"},null,{"$f":"#REF!","v":{"$error":"#REF!"}},{"$f":"#REF!","v":{"$error":"#REF!"}},null,null,{"$f":"#REF!","v":{"$error":"#REF!"}},800001965,"http://www.xbrl.org/scheme/companyName",null,{"$f":"Periodos!$D$4","v":"2016-12-31"},{"$f":"#REF!","v":{"$error":"#REF!"}},{"$f":"#REF!","v":{"$error":"#REF!"}}]
[{"$error":"#REF!"},null,{"$f":"#REF!","v":{"$error":"#REF!"}},{"$f":"#REF!","v":{"$error":"#REF!"}},0,"peso",{"$f":"#REF!","v":{"$error":"#REF!"}},800001965,"http://www.xbrl.org/scheme/companyName",null,{"$f":"Periodos!$D$4","v":"2016-12-31"},{"$f":"#REF!","v":{"$error":"#REF!"}},{"$f":"#REF!","v":{"$error":"#REF!"}}]
["/*",null,"--83--"]
[{"$error":"#REF!"},null,{"$f":"#REF!","v":{"$error":"#REF!"}},{"$f":"#REF!","v":{"$error":"#REF!"}},null,null,{"$f":"#REF!","v":{"$error":"#REF!"}},800001965,"http://www.xbrl.org/scheme/companyName",null,{"$f":"Periodos!$D$4","v":"2016-12-31"},{"$f":"#REF!","v":{"$error":"#REF!"}},{"$f":"#REF!","v":{"$error":"#REF!"}}]
[{"$error":"#REF!"},null,{"$f":"#REF!","v":{"$error":"#REF!"}},{"$f":"#REF!","v":{"$error":"#REF!"}},null,null,{"$f":"#REF!","v":{"$error":"#REF!"}},800001965,"http://www.xbrl.org/scheme/companyName",null,{"$f":"Periodos!$D$4","v":"2016-12-31"},{"$f":"#REF!","v":{"$error":"#REF!"}},{"$f":"#REF!","v":{"$error":"#REF!"}}]
[{"$f":"IF(G4833=\"\",\"/*\",\"\")","v":{"$error":"#REF!"}},null,{"$f":"#REF!","v":{"$error":"#REF!"}},{"$f":"#REF!","v":{"$error":"#REF!"}},null,null,{"$f":"#REF!","v":{"$error":"#REF!"}},800001965,"http://www.xbrl.org/scheme/companyName",null,{"$f":"Periodos!$D$4","v":"2016-12-31"},{"$f":"#REF!","v":{"$error":"#REF!"}},{"$f":"#REF!","v":{"$error":"#REF!"}}]
[{"$error":"#REF!"},null,{"$f":"#REF!","v":{"$error":"#REF!"}},{"$f":"#REF!","v":{"$error":"#REF!"}},null,null,{"$f":"#REF!","v":{"$error":"#REF!"}},800001965,"http://www.xbrl.org/scheme/companyName",null,{"$f":"Periodos!$D$4","v":"2016-12-31"},{"$f":"#REF!","v":{"$error":"#REF!"}},{"$f":"#REF!","v":{"$error":"#REF!"}}]
[{"$error":"#REF!"},null,{"$f":"#REF!","v":{"$error":"#REF!"}},{"$f":"#REF!","v":{"$error":"#REF!"}},null,null,{"$f":"#REF!","v":{"$error":"#REF!"}},800001965,"http://www.xbrl.org/scheme/companyName",null,{"$f":"Periodos!$D$4","v":"2016-12-31"},{"$f":"#REF!","v":{"$error":"#REF!"}},{"$f":"#REF!","v":{"$error":"#REF!"}}]
[{"$error":"#REF!"},null,{"$f":"#REF!","v":{"$error":"#REF!"}},{"$f":"#REF!","v":{"$error":"#REF!"}},null,null,{"$f":"#REF!","v":{"$error":"#REF!"}},800001965,"http://www.xbrl.org/scheme/companyName",null,{"$f":"Periodos!$D$4","v":"2016-12-31"},{"$f":"#REF!","v":{"$error":"#REF!"}},{"$f":"#REF!","v":{"$error":"#REF!"}}]
[{"$error":"#REF!"},null,{"$f":"#REF!","v":{"$error":"#REF!"}},{"$f":"#REF!","v":{"$error":"#REF!"}},null,null,{"$f":"#REF!","v":{"$error":"#REF!"}},800001965,"http://www.xbrl.org/scheme/companyName",null,{"$f":"Periodos!$D$4","v":"2016-12-31"},{"$f":"#REF!","v":{"$error":"#REF!"}},{"$f":"#REF!","v":{"$error":"#REF!"}}]
[{"$error":"#REF!"},null,{"$f":"#REF!","v":{"$error":"#REF!"}},{"$f":"#REF!","v":{"$error":"#REF!"}},null,null,{"$f":"#REF!","v":{"$error":"#REF!"}},800001965,"http://www.xbrl.org/scheme/companyName",null,{"$f":"Periodos!$D$4","v":"2016-12-31"},{"$f":"#REF!","v":{"$error":"#REF!"}},{"$f":"#REF!","v":{"$error":"#REF!"}}]
[{"$error":"#REF!"},null,{"$f":"#REF!","v":{"$error":"#REF!"}},{"$f":"#REF!","v":{"$error":"#REF!"}},null,null,{"$f":"#REF!","v":{"$error":"#REF!"}},800001965,"http://www.xbrl.org/scheme/companyName",null,{"$f":"Periodos!$D$4","v":"2016-12-31"},{"$f":"#REF!","v":{"$error":"#REF!"}},{"$f":"#REF!","v":{"$error":"#REF!"}}]
[{"$error":"#REF!"},null,{"$f":"#REF!","v":{"$error":"#REF!"}},{"$f":"#REF!","v":{"$error":"#REF!"}},null,null,{"$f":"#REF!","v":{"$error":"#REF!"}},800001965,"http://www.xbrl.org/scheme/companyName",null,{"$f":"Periodos!$D$4","v":"2016-12-31"},{"$f":"#REF!","v":{"$error":"#REF!"}},{"$f":"#REF!","v":{"$error":"#REF!"}}]
[{"$error":"#REF!"},null,{"$f":"#REF!","v":{"$error":"#REF!"}},{"$f":"#REF!","v":{"$error":"#REF!"}},null,null,{"$f":"#REF!","v":{"$error":"#REF!"}},800001965,"http://www.xbrl.org/scheme/companyName",null,{"$f":"Periodos!$D$4","v":"2016-12-31"},{"$f":"#REF!","v":{"$error":"#REF!"}},{"$f":"#REF!","v":{"$error":"#REF!"}}]
[{"$error":"#REF!"},null,{"$f":"#REF!","v":{"$error":"#REF!"}},{"$f":"#REF!","v":{"$error":"#REF!"}},0,"peso",{"$f":"#REF!","v":{"$error":"#REF!"}},800001965,"http://www.xbrl.org/scheme/companyName",null,{"$f":"Periodos!$D$4","v":"2016-12-31"},{"$f":"#REF!","v":{"$error":"#REF!"}},{"$f":"#REF!","v":{"$error":"#REF!"}}]
["/*",null,"--84--"]
[{"$error":"#REF!"},null,{"$f":"#REF!","v":{"$error":"#REF!"}},{"$f":"#REF!","v":{"$error":"#REF!"}},null,null,{"$f":"#REF!","v":{"$error":"#REF!"}},800001965,"http://www.xbrl.org/scheme/companyName",null,{"$f":"Periodos!$D$4","v":"2016-12-31"},{"$f":"#REF!","v":{"$error":"#REF!"}},{"$f":"#REF!","v":{"$error":"#REF!"}}]
[{"$error":"#REF!"},null,{"$f":"#REF!","v":{"$error":"#REF!"}},{"$f":"#REF!","v":{"$error":"#REF!"}},null,null,{"$f":"#REF!","v":{"$error":"#REF!"}},800001965,"http://www.xbrl.org/scheme/companyName",null,{"$f":"Periodos!$D$4","v":"2016-12-31"},{"$f":"#REF!","v":{"$error":"#REF!"}},{"$f":"#REF!","v":{"$error":"#REF!"}}]
[{"$error":"#REF!"},null,{"$f":"#REF!","v":{"$error":"#REF!"}},{"$f":"#REF!","v":{"$error":"#REF!"}},null,null,{"$f":"#REF!","v":{"$error":"#REF!"}},800001965,"http://www.xbrl.org/scheme/companyName",null,{"$f":"Periodos!$D$4","v":"2016-12-31"},{"$f":"#REF!","v":{"$error":"#REF!"}},{"$f":"#REF!","v":{"$error":"#REF!"}}]
[{"$error":"#REF!"},null,{"$f":"#REF!","v":{"$error":"#REF!"}},{"$f":"#REF!","v":{"$error":"#REF!"}},null,null,{"$f":"#REF!","v":{"$error":"#REF!"}},800001965,"http://www.xbrl.org/scheme/companyName",null,{"$f":"Periodos!$D$4","v":"2016-12-31"},{"$f":"#REF!","v":{"$error":"#REF!"}},{"$f":"#REF!","v":{"$error":"#REF!"}}]
[{"$error":"#REF!"},null,{"$f":"#REF!","v":{"$error":"#REF!"}},{"$f":"#REF!","v":{"$error":"#REF!"}},null,null,{"$f":"#REF!","v":{"$error":"#REF!"}},800001965,"http://www.xbrl.org/scheme/companyName",null,{"$f":"Periodos!$D$4","v":"2016-12-31"},{"$f":"#REF!","v":{"$error":"#REF!"}},{"$f":"#REF!","v":{"$error":"#REF!"}}]
[{"$error":"#REF!"},null,{"$f":"#REF!","v":{"$error":"#REF!"}},{"$f":"#REF!","v":{"$error":"#REF!"}},null,null,{"$f":"#REF!","v":{"$error":"#REF!"}},800001965,"http://www.xbrl.org/scheme/companyName",null,{"$f":"Periodos!$D$4","v":"2016-12-31"},{"$f":"#REF!","v":{"$error":"#REF!"}},{"$f":"#REF!","v":{"$error":"#REF!"}}]
[{"$error":"#REF!"},null,{"$f":"#REF!","v":{"$error":"#REF!"}},{"$f":"#REF!","v":{"$error":"#REF!"}},null,null,{"$f":"#REF!","v":{"$error":"#REF!"}},800001965,"http://www.xbrl.org/scheme/companyName",null,{"$f":"Periodos!$D$4","v":"2016-12-31"},{"$f":"#REF!","v":{"$error":"#REF!"}},{"$f":"#REF!","v":{"$error":"#REF!"}}]
[{"$error":"#REF!"},null,{"$f":"#REF!","v":{"$error":"#REF!"}},{"$f":"#REF!","v":{"$error":"#REF!"}},null,null,{"$f":"#REF!","v":{"$error":"#REF!"}},800001965,"http://www.xbrl.org/scheme/companyName",null,{"$f":"Periodos!$D$4","v":"2016-12-31"},{"$f":"#REF!","v":{"$error":"#REF!"}},{"$f":"#REF!","v":{"$error":"#REF!"}}]
[{"$error":"#REF!"},null,{"$f":"#REF!","v":{"$error":"#REF!"}},{"$f":"#REF!","v":{"$error":"#REF!"}},null,null,{"$f":"#REF!","v":{"$error":"#REF!"}},800001965,"http://www.xbrl.org/scheme/companyName",null,{"$f":"Periodos!$D$4","v":"2016-12-31"},{"$f":"#REF!","v":{"$error":"#REF!"}},{"$f":"#REF!","v":{"$error":"#REF!"}}]
[{"$error":"#REF!"},null,{"$f":"#REF!","v":{"$error":"#REF!"}},{"$f":"#REF!","v":{"$error":"#REF!"}},null,null,{"$f":"#REF!","v":{"$error":"#REF!"}},800001965,"http://www.xbrl.org/scheme/companyName",null,{"$f":"Periodos!$D$4","v":"2016-12-31"},{"$f":"#REF!","v":{"$error":"#REF!"}},{"$f":"#REF!","v":{"$error":"#REF!"}}]
[{"$error":"#REF!"},null,{"$f":"#REF!","v":{"$error":"#REF!"}},{"$f":"#REF!","v":{"$error":"#REF!"}},null,null,{"$f":"#REF!","v":{"$error":"#REF!"}},800001965,"http://www.xbrl.org/scheme/companyName",null,{"$f":"Periodos!$D$4","v":"2016-12-31"},{"$f":"#REF!","v":{"$error":"#REF!"}},{"$f":"#REF!","v":{"$error":"#REF!"}}]
[{"$error":"#REF!"},null,{"$f":"#REF!","v":{"$error":"#REF!"}},{"$f":"#REF!","v":{"$error":"#REF!"}},0,"peso",{"$f":"#REF!","v":{"$error":"#REF!"}},800001965,"http://www.xbrl.org/scheme/companyName",null,{"$f":"Periodos!$D$4","v":"2016-12-31"},{"$f":"#REF!","v":{"$error":"#REF!"}},{"$f":"#REF!","v":{"$error":"#REF!"}}]
["/*",null,"--85--"]
[{"$error":"#REF!"},null,{"$f":"#REF!","v":{"$error":"#REF!"}},{"$f":"#REF!","v":{"$error":"#REF!"}},null,null,{"$f":"#REF!","v":{"$error":"#REF!"}},800001965,"http://www.xbrl.org/scheme/companyName",null,{"$f":"Periodos!$D$4","v":"2016-12-31"},{"$f":"#REF!","v":{"$error":"#REF!"}},{"$f":"#REF!","v":{"$error":"#REF!"}}]
[{"$error":"#REF!"},null,{"$f":"#REF!","v":{"$error":"#REF!"}},{"$f":"#REF!","v":{"$error":"#REF!"}},null,null,{"$f":"#REF!","v":{"$error":"#REF!"}},800001965,"http://www.xbrl.org/scheme/companyName",null,{"$f":"Periodos!$D$4","v":"2016-12-31"},{"$f":"#REF!","v":{"$error":"#REF!"}},{"$f":"#REF!","v":{"$error":"#REF!"}}]
[{"$error":"#REF!"},null,{"$f":"#REF!","v":{"$error":"#REF!"}},{"$f":"#REF!","v":{"$error":"#REF!"}},null,null,{"$f":"#REF!","v":{"$error":"#REF!"}},800001965,"http://www.xbrl.org/scheme/companyName",null,{"$f":"Periodos!$D$4","v":"2016-12-31"},{"$f":"#REF!","v":{"$error":"#REF!"}},{"$f":"#REF!","v":{"$error":"#REF!"}}]
[{"$error":"#REF!"},null,{"$f":"#REF!","v":{"$error":"#REF!"}},{"$f":"#REF!","v":{"$error":"#REF!"}},null,null,{"$f":"#REF!","v":{"$error":"#REF!"}},800001965,"http://www.xbrl.org/scheme/companyName",null,{"$f":"Periodos!$D$4","v":"2016-12-31"},{"$f":"#REF!","v":{"$error":"#REF!"}},{"$f":"#REF!","v":{"$error":"#REF!"}}]
[{"$error":"#REF!"},null,{"$f":"#REF!","v":{"$error":"#REF!"}},{"$f":"#REF!","v":{"$error":"#REF!"}},null,null,{"$f":"#REF!","v":{"$error":"#REF!"}},800001965,"http://www.xbrl.org/scheme/companyName",null,{"$f":"Periodos!$D$4","v":"2016-12-31"},{"$f":"#REF!","v":{"$error":"#REF!"}},{"$f":"#REF!","v":{"$error":"#REF!"}}]
[{"$error":"#REF!"},null,{"$f":"#REF!","v":{"$error":"#REF!"}},{"$f":"#REF!","v":{"$error":"#REF!"}},null,null,{"$f":"#REF!","v":{"$error":"#REF!"}},800001965,"http://www.xbrl.org/scheme/companyName",null,{"$f":"Periodos!$D$4","v":"2016-12-31"},{"$f":"#REF!","v":{"$error":"#REF!"}},{"$f":"#REF!","v":{"$error":"#REF!"}}]
[{"$error":"#REF!"},null,{"$f":"#REF!","v":{"$error":"#REF!"}},{"$f":"#REF!","v":{"$error":"#REF!"}},null,null,{"$f":"#REF!","v":{"$error":"#REF!"}},800001965,"http://www.xbrl.org/scheme/companyName",null,{"$f":"Periodos!$D$4","v":"2016-12-31"},{"$f":"#REF!","v":{"$error":"#REF!"}},{"$f":"#REF!","v":{"$error":"#REF!"}}]
[{"$error":"#REF!"},null,{"$f":"#REF!","v":{"$error":"#REF!"}},{"$f":"#REF!","v":{"$error":"#REF!"}},null,null,{"$f":"#REF!","v":{"$error":"#REF!"}},800001965,"http://www.xbrl.org/scheme/companyName",null,{"$f":"Periodos!$D$4","v":"2016-12-31"},{"$f":"#REF!","v":{"$error":"#REF!"}},{"$f":"#REF!","v":{"$error":"#REF!"}}]
[{"$error":"#REF!"},null,{"$f":"#REF!","v":{"$error":"#REF!"}},{"$f":"#REF!","v":{"$error":"#REF!"}},null,null,{"$f":"#REF!","v":{"$error":"#REF!"}},800001965,"http://www.xbrl.org/scheme/companyName",null,{"$f":"Periodos!$D$4","v":"2016-12-31"},{"$f":"#REF!","v":{"$error":"#REF!"}},{"$f":"#REF!","v":{"$error":"#REF!"}}]
[{"$error":"#REF!"},null,{"$f":"#REF!","v":{"$error":"#REF!"}},{"$f":"#REF!","v":{"$error":"#REF!"}},null,null,{"$f":"#REF!","v":{"$error":"#REF!"}},800001965,"http://www.xbrl.org/scheme/companyName",null,{"$f":"Periodos!$D$4","v":"2016-12-31"},{"$f":"#REF!","v":{"$error":"#REF!"}},{"$f":"#REF!","v":{"$error":"#REF!"}}]
[{"$error":"#REF!"},null,{"$f":"#REF!","v":{"$error":"#REF!"}},{"$f":"#REF!","v":{"$error":"#REF!"}},null,null,{"$f":"#REF!","v":{"$error":"#REF!"}},800001965,"http://www.xbrl.org/scheme/companyName",null,{"$f":"Periodos!$D$4","v":"2016-12-31"},{"$f":"#REF!","v":{"$error":"#REF!"}},{"$f":"#REF!","v":{"$error":"#REF!"}}]
[{"$error":"#REF!"},null,{"$f":"#REF!","v":{"$error":"#REF!"}},{"$f":"#REF!","v":{"$error":"#REF!"}},0,"peso",{"$f":"#REF!","v":{"$error":"#REF!"}},800001965,"http://www.xbrl.org/scheme/companyName",null,{"$f":"Periodos!$D$4","v":"2016-12-31"},{"$f":"#REF!","v":{"$error":"#REF!"}},{"$f":"#REF!","v":{"$error":"#REF!"}}]
["/*",null,"--86--"]
[{"$error":"#REF!"},null,{"$f":"#REF!","v":{"$error":"#REF!"}},{"$f":"#REF!","v":{"$error":"#REF!"}},null,null,{"$f":"#REF!","v":{"$error":"#REF!"}},800001965,"http://www.xbrl.org/scheme/companyName",null,{"$f":"Periodos!$D$4","v":"2016-12-31"},{"$f":"#REF!","v":{"$error":"#REF!"}},{"$f":"#REF!","v":{"$error":"#REF!"}}]
[{"$error":"#REF!"},null,{"$f":"#REF!","v":{"$error":"#REF!"}},{"$f":"#REF!","v":{"$error":"#REF!"}},null,null,{"$f":"#REF!","v":{"$error":"#REF!"}},800001965,"http://www.xbrl.org/scheme/companyName",null,{"$f":"Periodos!$D$4","v":"2016-12-31"},{"$f":"#REF!","v":{"$error":"#REF!"}},{"$f":"#REF!","v":{"$error":"#REF!"}}]
[{"$error":"#REF!"},null,{"$f":"#REF!","v":{"$error":"#REF!"}},{"$f":"#REF!","v":{"$error":"#REF!"}},null,null,{"$f":"#REF!","v":{"$error":"#REF!"}},800001965,"http://www.xbrl.org/scheme/companyName",null,{"$f":"Periodos!$D$4","v":"2016-12-31"},{"$f":"#REF!","v":{"$error":"#REF!"}},{"$f":"#REF!","v":{"$error":"#REF!"}}]
[{"$error":"#REF!"},null,{"$f":"#REF!","v":{"$error":"#REF!"}},{"$f":"#REF!","v":{"$error":"#REF!"}},null,null,{"$f":"#REF!","v":{"$error":"#REF!"}},800001965,"http://www.xbrl.org/scheme/companyName",null,{"$f":"Periodos!$D$4","v":"2016-12-31"},{"$f":"#REF!","v":{"$error":"#REF!"}},{"$f":"#REF!","v":{"$error":"#REF!"}}]
[{"$error":"#REF!"},null,{"$f":"#REF!","v":{"$error":"#REF!"}},{"$f":"#REF!","v":{"$error":"#REF!"}},null,null,{"$f":"#REF!","v":{"$error":"#REF!"}},800001965,"http://www.xbrl.org/scheme/companyName",null,{"$f":"Periodos!$D$4","v":"2016-12-31"},{"$f":"#REF!","v":{"$error":"#REF!"}},{"$f":"#REF!","v":{"$error":"#REF!"}}]
[{"$error":"#REF!"},null,{"$f":"#REF!","v":{"$error":"#REF!"}},{"$f":"#REF!","v":{"$error":"#REF!"}},null,null,{"$f":"#REF!","v":{"$error":"#REF!"}},800001965,"http://www.xbrl.org/scheme/companyName",null,{"$f":"Periodos!$D$4","v":"2016-12-31"},{"$f":"#REF!","v":{"$error":"#REF!"}},{"$f":"#REF!","v":{"$error":"#REF!"}}]
[{"$error":"#REF!"},null,{"$f":"#REF!","v":{"$error":"#REF!"}},{"$f":"#REF!","v":{"$error":"#REF!"}},null,null,{"$f":"#REF!","v":{"$error":"#REF!"}},800001965,"http://www.xbrl.org/scheme/companyName",null,{"$f":"Periodos!$D$4","v":"2016-12-31"},{"$f":"#REF!","v":{"$error":"#REF!"}},{"$f":"#REF!","v":{"$error":"#REF!"}}]
[{"$error":"#REF!"},null,{"$f":"#REF!","v":{"$error":"#REF!"}},{"$f":"#REF!","v":{"$error":"#REF!"}},null,null,{"$f":"#REF!","v":{"$error":"#REF!"}},800001965,"http://www.xbrl.org/scheme/companyName",null,{"$f":"Periodos!$D$4","v":"2016-12-31"},{"$f":"#REF!","v":{"$error":"#REF!"}},{"$f":"#REF!","v":{"$error":"#REF!"}}]
[{"$error":"#REF!"},null,{"$f":"#REF!","v":{"$error":"#REF!"}},{"$f":"#REF!","v":{"$error":"#REF!"}},null,null,{"$f":"#REF!","v":{"$error":"#REF!"}},800001965,"http://www.xbrl.org/scheme/companyName",null,{"$f":"Periodos!$D$4","v":"2016-12-31"},{"$f":"#REF!","v":{"$error":"#REF!"}},{"$f":"#REF!","v":{"$error":"#REF!"}}]
[{"$error":"#REF!"},null,{"$f":"#REF!","v":{"$error":"#REF!"}},{"$f":"#REF!","v":{"$error":"#REF!"}},null,null,{"$f":"#REF!","v":{"$error":"#REF!"}},800001965,"http://www.xbrl.org/scheme/companyName",null,{"$f":"Periodos!$D$4","v":"2016-12-31"},{"$f":"#REF!","v":{"$error":"#REF!"}},{"$f":"#REF!","v":{"$error":"#REF!"}}]
[{"$error":"#REF!"},null,{"$f":"#REF!","v":{"$error":"#REF!"}},{"$f":"#REF!","v":{"$error":"#REF!"}},null,null,{"$f":"#REF!","v":{"$error":"#REF!"}},800001965,"http://www.xbrl.org/scheme/companyName",null,{"$f":"Periodos!$D$4","v":"2016-12-31"},{"$f":"#REF!","v":{"$error":"#REF!"}},{"$f":"#REF!","v":{"$error":"#REF!"}}]
[{"$error":"#REF!"},null,{"$f":"#REF!","v":{"$error":"#REF!"}},{"$f":"#REF!","v":{"$error":"#REF!"}},0,"peso",{"$f":"#REF!","v":{"$error":"#REF!"}},800001965,"http://www.xbrl.org/scheme/companyName",null,{"$f":"Periodos!$D$4","v":"2016-12-31"},{"$f":"#REF!","v":{"$error":"#REF!"}},{"$f":"#REF!","v":{"$error":"#REF!"}}]
["/*",null,"--87--"]
[{"$error":"#REF!"},null,{"$f":"#REF!","v":{"$error":"#REF!"}},{"$f":"#REF!","v":{"$error":"#REF!"}},null,null,{"$f":"#REF!","v":{"$error":"#REF!"}},800001965,"http://www.xbrl.org/scheme/companyName",null,{"$f":"Periodos!$D$4","v":"2016-12-31"},{"$f":"#REF!","v":{"$error":"#REF!"}},{"$f":"#REF!","v":{"$error":"#REF!"}}]
[{"$error":"#REF!"},null,{"$f":"#REF!","v":{"$error":"#REF!"}},{"$f":"#REF!","v":{"$error":"#REF!"}},null,null,{"$f":"#REF!","v":{"$error":"#REF!"}},800001965,"http://www.xbrl.org/scheme/companyName",null,{"$f":"Periodos!$D$4","v":"2016-12-31"},{"$f":"#REF!","v":{"$error":"#REF!"}},{"$f":"#REF!","v":{"$error":"#REF!"}}]
[{"$error":"#REF!"},null,{"$f":"#REF!","v":{"$error":"#REF!"}},{"$f":"#REF!","v":{"$error":"#REF!"}},null,null,{"$f":"#REF!","v":{"$error":"#REF!"}},800001965,"http://www.xbrl.org/scheme/companyName",null,{"$f":"Periodos!$D$4","v":"2016-12-31"},{"$f":"#REF!","v":{"$error":"#REF!"}},{"$f":"#REF!","v":{"$error":"#REF!"}}]
[{"$error":"#REF!"},null,{"$f":"#REF!","v":{"$error":"#REF!"}},{"$f":"#REF!","v":{"$error":"#REF!"}},null,null,{"$f":"#REF!","v":{"$error":"#REF!"}},800001965,"http://www.xbrl.org/scheme/companyName",null,{"$f":"Periodos!$D$4","v":"2016-12-31"},{"$f":"#REF!","v":{"$error":"#REF!"}},{"$f":"#REF!","v":{"$error":"#REF!"}}]
[{"$error":"#REF!"},null,{"$f":"#REF!","v":{"$error":"#REF!"}},{"$f":"#REF!","v":{"$error":"#REF!"}},null,null,{"$f":"#REF!","v":{"$error":"#REF!"}},800001965,"http://www.xbrl.org/scheme/companyName",null,{"$f":"Periodos!$D$4","v":"2016-12-31"},{"$f":"#REF!","v":{"$error":"#REF!"}},{"$f":"#REF!","v":{"$error":"#REF!"}}]
[{"$error":"#REF!"},null,{"$f":"#REF!","v":{"$error":"#REF!"}},{"$f":"#REF!","v":{"$error":"#REF!"}},null,null,{"$f":"#REF!","v":{"$error":"#REF!"}},800001965,"http://www.xbrl.org/scheme/companyName",null,{"$f":"Periodos!$D$4","v":"2016-12-31"},{"$f":"#REF!","v":{"$error":"#REF!"}},{"$f":"#REF!","v":{"$error":"#REF!"}}]
[{"$error":"#REF!"},null,{"$f":"#REF!","v":{"$error":"#REF!"}},{"$f":"#REF!","v":{"$error":"#REF!"}},null,null,{"$f":"#REF!","v":{"$error":"#REF!"}},800001965,"http://www.xbrl.org/scheme/companyName",null,{"$f":"Periodos!$D$4","v":"2016-12-31"},{"$f":"#REF!","v":{"$error":"#REF!"}},{"$f":"#REF!","v":{"$error":"#REF!"}}]
[{"$error":"#REF!"},null,{"$f":"#REF!","v":{"$error":"#REF!"}},{"$f":"#REF!","v":{"$error":"#REF!"}},null,null,{"$f":"#REF!","v":{"$error":"#REF!"}},800001965,"http://www.xbrl.org/scheme/companyName",null,{"$f":"Periodos!$D$4","v":"2016-12-31"},{"$f":"#REF!","v":{"$error":"#REF!"}},{"$f":"#REF!","v":{"$error":"#REF!"}}]
[{"$error":"#REF!"},null,{"$f":"#REF!","v":{"$error":"#REF!"}},{"$f":"#REF!","v":{"$error":"#REF!"}},null,null,{"$f":"#REF!","v":{"$error":"#REF!"}},800001965,"http://www.xbrl.org/scheme/companyName",null,{"$f":"Periodos!$D$4","v":"2016-12-31"},{"$f":"#REF!","v":{"$error":"#REF!"}},{"$f":"#REF!","v":{"$error":"#REF!"}}]
[{"$error":"#REF!"},null,{"$f":"#REF!","v":{"$error":"#REF!"}},{"$f":"#REF!","v":{"$error":"#REF!"}},null,null,{"$f":"#REF!","v":{"$error":"#REF!"}},800001965,"http://www.xbrl.org/scheme/companyName",null,{"$f":"Periodos!$D$4","v":"2016-12-31"},{"$f":"#REF!","v":{"$error":"#REF!"}},{"$f":"#REF!","v":{"$error":"#REF!"}}]
[{"$error":"#REF!"},null,{"$f":"#REF!","v":{"$error":"#REF!"}},{"$f":"#REF!","v":{"$error":"#REF!"}},null,null,{"$f":"#REF!","v":{"$error":"#REF!"}},800001965,"http://www.xbrl.org/scheme/companyName",null,{"$f":"Periodos!$D$4","v":"2016-12-31"},{"$f":"#REF!","v":{"$error":"#REF!"}},{"$f":"#REF!","v":{"$error":"#REF!"}}]
[{"$error":"#REF!"},null,{"$f":"#REF!","v":{"$error":"#REF!"}},{"$f":"#REF!","v":{"$error":"#REF!"}},0,"peso",{"$f":"#REF!","v":{"$error":"#REF!"}},800001965,"http://www.xbrl.org/scheme/companyName",null,{"$f":"Periodos!$D$4","v":"2016-12-31"},{"$f":"#REF!","v":{"$error":"#REF!"}},{"$f":"#REF!","v":{"$error":"#REF!"}}]
["/*",null,"--88--"]
[{"$error":"#REF!"},null,{"$f":"#REF!","v":{"$error":"#REF!"}},{"$f":"#REF!","v":{"$error":"#REF!"}},null,null,{"$f":"#REF!","v":{"$error":"#REF!"}},800001965,"http://www.xbrl.org/scheme/companyName",null,{"$f":"Periodos!$D$4","v":"2016-12-31"},{"$f":"#REF!","v":{"$error":"#REF!"}},{"$f":"#REF!","v":{"$error":"#REF!"}}]
[{"$f":"IF(G4897=\"\",\"/*\",\"\")","v":{"$error":"#REF!"}},null,{"$f":"#REF!","v":{"$error":"#REF!"}},{"$f":"#REF!","v":{"$error":"#REF!"}},null,null,{"$f":"#REF!","v":{"$error":"#REF!"}},800001965,"http://www.xbrl.org/scheme/companyName",null,{"$f":"Periodos!$D$4","v":"2016-12-31"},{"$f":"#REF!","v":{"$error":"#REF!"}},{"$f":"#REF!","v":{"$error":"#REF!"}}]
[{"$error":"#REF!"},null,{"$f":"#REF!","v":{"$error":"#REF!"}},{"$f":"#REF!","v":{"$error":"#REF!"}},null,null,{"$f":"#REF!","v":{"$error":"#REF!"}},800001965,"http://www.xbrl.org/scheme/companyName",null,{"$f":"Periodos!$D$4","v":"2016-12-31"},{"$f":"#REF!","v":{"$error":"#REF!"}},{"$f":"#REF!","v":{"$error":"#REF!"}}]
[{"$error":"#REF!"},null,{"$f":"#REF!","v":{"$error":"#REF!"}},{"$f":"#REF!","v":{"$error":"#REF!"}},null,null,{"$f":"#REF!","v":{"$error":"#REF!"}},800001965,"http://www.xbrl.org/scheme/companyName",null,{"$f":"Periodos!$D$4","v":"2016-12-31"},{"$f":"#REF!","v":{"$error":"#REF!"}},{"$f":"#REF!","v":{"$error":"#REF!"}}]
[{"$error":"#REF!"},null,{"$f":"#REF!","v":{"$error":"#REF!"}},{"$f":"#REF!","v":{"$error":"#REF!"}},null,null,{"$f":"#REF!","v":{"$error":"#REF!"}},800001965,"http://www.xbrl.org/scheme/companyName",null,{"$f":"Periodos!$D$4","v":"2016-12-31"},{"$f":"#REF!","v":{"$error":"#REF!"}},{"$f":"#REF!","v":{"$error":"#REF!"}}]
[{"$error":"#REF!"},null,{"$f":"#REF!","v":{"$error":"#REF!"}},{"$f":"#REF!","v":{"$error":"#REF!"}},null,null,{"$f":"#REF!","v":{"$error":"#REF!"}},800001965,"http://www.xbrl.org/scheme/companyName",null,{"$f":"Periodos!$D$4","v":"2016-12-31"},{"$f":"#REF!","v":{"$error":"#REF!"}},{"$f":"#REF!","v":{"$error":"#REF!"}}]
[{"$error":"#REF!"},null,{"$f":"#REF!","v":{"$error":"#REF!"}},{"$f":"#REF!","v":{"$error":"#REF!"}},null,null,{"$f":"#REF!","v":{"$error":"#REF!"}},800001965,"http://www.xbrl.org/scheme/companyName",null,{"$f":"Periodos!$D$4","v":"2016-12-31"},{"$f":"#REF!","v":{"$error":"#REF!"}},{"$f":"#REF!","v":{"$error":"#REF!"}}]
[{"$error":"#REF!"},null,{"$f":"#REF!","v":{"$error":"#REF!"}},{"$f":"#REF!","v":{"$error":"#REF!"}},null,null,{"$f":"#REF!","v":{"$error":"#REF!"}},800001965,"http://www.xbrl.org/scheme/companyName",null,{"$f":"Periodos!$D$4","v":"2016-12-31"},{"$f":"#REF!","v":{"$error":"#REF!"}},{"$f":"#REF!","v":{"$error":"#REF!"}}]
[{"$error":"#REF!"},null,{"$f":"#REF!","v":{"$error":"#REF!"}},{"$f":"#REF!","v":{"$error":"#REF!"}},null,null,{"$f":"#REF!","v":{"$error":"#REF!"}},800001965,"http://www.xbrl.org/scheme/companyName",null,{"$f":"Periodos!$D$4","v":"2016-12-31"},{"$f":"#REF!","v":{"$error":"#REF!"}},{"$f":"#REF!","v":{"$error":"#REF!"}}]
[{"$error":"#REF!"},null,{"$f":"#REF!","v":{"$error":"#REF!"}},{"$f":"#REF!","v":{"$error":"#REF!"}},null,null,{"$f":"#REF!","v":{"$error":"#REF!"}},800001965,"http://www.xbrl.org/scheme/companyName",null,{"$f":"Periodos!$D$4","v":"2016-12-31"},{"$f":"#REF!","v":{"$error":"#REF!"}},{"$f":"#REF!","v":{"$error":"#REF!"}}]
[{"$error":"#REF!"},null,{"$f":"#REF!","v":{"$error":"#REF!"}},{"$f":"#REF!","v":{"$error":"#REF!"}},null,null,{"$f":"#REF!","v":{"$error":"#REF!"}},800001965,"http://www.xbrl.org/scheme/companyName",null,{"$f":"Periodos!$D$4","v":"2016-12-31"},{"$f":"#REF!","v":{"$error":"#REF!"}},{"$f":"#REF!","v":{"$error":"#REF!"}}]
[{"$error":"#REF!"},null,{"$f":"#REF!","v":{"$error":"#REF!"}},{"$f":"#REF!","v":{"$error":"#REF!"}},0,"peso",{"$f":"#REF!","v":{"$error":"#REF!"}},800001965,"http://www.xbrl.org/scheme/companyName",null,{"$f":"Periodos!$D$4","v":"2016-12-31"},{"$f":"#REF!","v":{"$error":"#REF!"}},{"$f":"#REF!","v":{"$error":"#REF!"}}]
["/*",null,"--89--"]
[{"$error":"#REF!"},null,{"$f":"#REF!","v":{"$error":"#REF!"}},{"$f":"#REF!","v":{"$error":"#REF!"}},null,null,{"$f":"#REF!","v":{"$error":"#REF!"}},800001965,"http://www.xbrl.org/scheme/companyName",null,{"$f":"Periodos!$D$4","v":"2016-12-31"},{"$f":"#REF!","v":{"$error":"#REF!"}},{"$f":"#REF!","v":{"$error":"#REF!"}}]
[{"$error":"#REF!"},null,{"$f":"#REF!","v":{"$error":"#REF!"}},{"$f":"#REF!","v":{"$error":"#REF!"}},null,null,{"$f":"#REF!","v":{"$error":"#REF!"}},800001965,"http://www.xbrl.org/scheme/companyName",null,{"$f":"Periodos!$D$4","v":"2016-12-31"},{"$f":"#REF!","v":{"$error":"#REF!"}},{"$f":"#REF!","v":{"$error":"#REF!"}}]
[{"$error":"#REF!"},null,{"$f":"#REF!","v":{"$error":"#REF!"}},{"$f":"#REF!","v":{"$error":"#REF!"}},null,null,{"$f":"#REF!","v":{"$error":"#REF!"}},800001965,"http://www.xbrl.org/scheme/companyName",null,{"$f":"Periodos!$D$4","v":"2016-12-31"},{"$f":"#REF!","v":{"$error":"#REF!"}},{"$f":"#REF!","v":{"$error":"#REF!"}}]
[{"$error":"#REF!"},null,{"$f":"#REF!","v":{"$error":"#REF!"}},{"$f":"#REF!","v":{"$error":"#REF!"}},null,null,{"$f":"#REF!","v":{"$error":"#REF!"}},800001965,"http://www.xbrl.org/scheme/companyName",null,{"$f":"Periodos!$D$4","v":"2016-12-31"},{"$f":"#REF!","v":{"$error":"#REF!"}},{"$f":"#REF!","v":{"$error":"#REF!"}}]
[{"$error":"#REF!"},null,{"$f":"#REF!","v":{"$error":"#REF!"}},{"$f":"#REF!","v":{"$error":"#REF!"}},null,null,{"$f":"#REF!","v":{"$error":"#REF!"}},800001965,"http://www.xbrl.org/scheme/companyName",null,{"$f":"Periodos!$D$4","v":"2016-12-31"},{"$f":"#REF!","v":{"$error":"#REF!"}},{"$f":"#REF!","v":{"$error":"#REF!"}}]
[{"$error":"#REF!"},null,{"$f":"#REF!","v":{"$error":"#REF!"}},{"$f":"#REF!","v":{"$error":"#REF!"}},null,null,{"$f":"#REF!","v":{"$error":"#REF!"}},800001965,"http://www.xbrl.org/scheme/companyName",null,{"$f":"Periodos!$D$4","v":"2016-12-31"},{"$f":"#REF!","v":{"$error":"#REF!"}},{"$f":"#REF!","v":{"$error":"#REF!"}}]
[{"$error":"#REF!"},null,{"$f":"#REF!","v":{"$error":"#REF!"}},{"$f":"#REF!","v":{"$error":"#REF!"}},null,null,{"$f":"#REF!","v":{"$error":"#REF!"}},800001965,"http://www.xbrl.org/scheme/companyName",null,{"$f":"Periodos!$D$4","v":"2016-12-31"},{"$f":"#REF!","v":{"$error":"#REF!"}},{"$f":"#REF!","v":{"$error":"#REF!"}}]
[{"$error":"#REF!"},null,{"$f":"#REF!","v":{"$error":"#REF!"}},{"$f":"#REF!","v":{"$error":"#REF!"}},null,null,{"$f":"#REF!","v":{"$error":"#REF!"}},800001965,"http://www.xbrl.org/scheme/companyName",null,{"$f":"Periodos!$D$4","v":"2016-12-31"},{"$f":"#REF!","v":{"$error":"#REF!"}},{"$f":"#REF!","v":{"$error":"#REF!"}}]
[{"$error":"#REF!"},null,{"$f":"#REF!","v":{"$error":"#REF!"}},{"$f":"#REF!","v":{"$error":"#REF!"}},null,null,{"$f":"#REF!","v":{"$error":"#REF!"}},800001965,"http://www.xbrl.org/scheme/companyName",null,{"$f":"Periodos!$D$4","v":"2016-12-31"},{"$f":"#REF!","v":{"$error":"#REF!"}},{"$f":"#REF!","v":{"$error":"#REF!"}}]
[{"$error":"#REF!"},null,{"$f":"#REF!","v":{"$error":"#REF!"}},{"$f":"#REF!","v":{"$error":"#REF!"}},null,null,{"$f":"#REF!","v":{"$error":"#REF!"}},800001965,"http://www.xbrl.org/scheme/companyName",null,{"$f":"Periodos!$D$4","v":"2016-12-31"},{"$f":"#REF!","v":{"$error":"#REF!"}},{"$f":"#REF!","v":{"$error":"#REF!"}}]
[{"$error":"#REF!"},null,{"$f":"#REF!","v":{"$error":"#REF!"}},{"$f":"#REF!","v":{"$error":"#REF!"}},null,null,{"$f":"#REF!","v":{"$error":"#REF!"}},800001965,"http://www.xbrl.org/scheme/companyName",null,{"$f":"Periodos!$D$4","v":"2016-12-31"},{"$f":"#REF!","v":{"$error":"#REF!"}},{"$f":"#REF!","v":{"$error":"#REF!"}}]
[{"$error":"#REF!"},null,{"$f":"#REF!","v":{"$error":"#REF!"}},{"$f":"#REF!","v":{"$error":"#REF!"}},0,"peso",{"$f":"#REF!","v":{"$error":"#REF!"}},800001965,"http://www.xbrl.org/scheme/companyName",null,{"$f":"Periodos!$D$4","v":"2016-12-31"},{"$f":"#REF!","v":{"$error":"#REF!"}},{"$f":"#REF!","v":{"$error":"#REF!"}}]
["/*",null,"--90--"]
[{"$error":"#REF!"},null,{"$f":"#REF!","v":{"$error":"#REF!"}},{"$f":"#REF!","v":{"$error":"#REF!"}},null,null,{"$f":"#REF!","v":{"$error":"#REF!"}},800001965,"http://www.xbrl.org/scheme/companyName",null,{"$f":"Periodos!$D$4","v":"2016-12-31"},{"$f":"#REF!","v":{"$error":"#REF!"}},{"$f":"#REF!","v":{"$error":"#REF!"}}]
[{"$error":"#REF!"},null,{"$f":"#REF!","v":{"$error":"#REF!"}},{"$f":"#REF!","v":{"$error":"#REF!"}},null,null,{"$f":"#REF!","v":{"$error":"#REF!"}},800001965,"http://www.xbrl.org/scheme/companyName",null,{"$f":"Periodos!$D$4","v":"2016-12-31"},{"$f":"#REF!","v":{"$error":"#REF!"}},{"$f":"#REF!","v":{"$error":"#REF!"}}]
[{"$error":"#REF!"},null,{"$f":"#REF!","v":{"$error":"#REF!"}},{"$f":"#REF!","v":{"$error":"#REF!"}},null,null,{"$f":"#REF!","v":{"$error":"#REF!"}},800001965,"http://www.xbrl.org/scheme/companyName",null,{"$f":"Periodos!$D$4","v":"2016-12-31"},{"$f":"#REF!","v":{"$error":"#REF!"}},{"$f":"#REF!","v":{"$error":"#REF!"}}]
[{"$error":"#REF!"},null,{"$f":"#REF!","v":{"$error":"#REF!"}},{"$f":"#REF!","v":{"$error":"#REF!"}},null,null,{"$f":"#REF!","v":{"$error":"#REF!"}},800001965,"http://www.xbrl.org/scheme/companyName",null,{"$f":"Periodos!$D$4","v":"2016-12-31"},{"$f":"#REF!","v":{"$error":"#REF!"}},{"$f":"#REF!","v":{"$error":"#REF!"}}]
[{"$error":"#REF!"},null,{"$f":"#REF!","v":{"$error":"#REF!"}},{"$f":"#REF!","v":{"$error":"#REF!"}},null,null,{"$f":"#REF!","v":{"$error":"#REF!"}},800001965,"http://www.xbrl.org/scheme/companyName",null,{"$f":"Periodos!$D$4","v":"2016-12-31"},{"$f":"#REF!","v":{"$error":"#REF!"}},{"$f":"#REF!","v":{"$error":"#REF!"}}]
[{"$error":"#REF!"},null,{"$f":"#REF!","v":{"$error":"#REF!"}},{"$f":"#REF!","v":{"$error":"#REF!"}},null,null,{"$f":"#REF!","v":{"$error":"#REF!"}},800001965,"http://www.xbrl.org/scheme/companyName",null,{"$f":"Periodos!$D$4","v":"2016-12-31"},{"$f":"#REF!","v":{"$error":"#REF!"}},{"$f":"#REF!","v":{"$error":"#REF!"}}]
[{"$error":"#REF!"},null,{"$f":"#REF!","v":{"$error":"#REF!"}},{"$f":"#REF!","v":{"$error":"#REF!"}},null,null,{"$f":"#REF!","v":{"$error":"#REF!"}},800001965,"http://www.xbrl.org/scheme/companyName",null,{"$f":"Periodos!$D$4","v":"2016-12-31"},{"$f":"#REF!","v":{"$error":"#REF!"}},{"$f":"#REF!","v":{"$error":"#REF!"}}]
[{"$error":"#REF!"},null,{"$f":"#REF!","v":{"$error":"#REF!"}},{"$f":"#REF!","v":{"$error":"#REF!"}},null,null,{"$f":"#REF!","v":{"$error":"#REF!"}},800001965,"http://www.xbrl.org/scheme/companyName",null,{"$f":"Periodos!$D$4","v":"2016-12-31"},{"$f":"#REF!","v":{"$error":"#REF!"}},{"$f":"#REF!","v":{"$error":"#REF!"}}]
[{"$error":"#REF!"},null,{"$f":"#REF!","v":{"$error":"#REF!"}},{"$f":"#REF!","v":{"$error":"#REF!"}},null,null,{"$f":"#REF!","v":{"$error":"#REF!"}},800001965,"http://www.xbrl.org/scheme/companyName",null,{"$f":"Periodos!$D$4","v":"2016-12-31"},{"$f":"#REF!","v":{"$error":"#REF!"}},{"$f":"#REF!","v":{"$error":"#REF!"}}]
[{"$error":"#REF!"},null,{"$f":"#REF!","v":{"$error":"#REF!"}},{"$f":"#REF!","v":{"$error":"#REF!"}},null,null,{"$f":"#REF!","v":{"$error":"#REF!"}},800001965,"http://www.xbrl.org/scheme/companyName",null,{"$f":"Periodos!$D$4","v":"2016-12-31"},{"$f":"#REF!","v":{"$error":"#REF!"}},{"$f":"#REF!","v":{"$error":"#REF!"}}]
[{"$error":"#REF!"},null,{"$f":"#REF!","v":{"$error":"#REF!"}},{"$f":"#REF!","v":{"$error":"#REF!"}},null,null,{"$f":"#REF!","v":{"$error":"#REF!"}},800001965,"http://www.xbrl.org/scheme/companyName",null,{"$f":"Periodos!$D$4","v":"2016-12-31"},{"$f":"#REF!","v":{"$error":"#REF!"}},{"$f":"#REF!","v":{"$error":"#REF!"}}]
[{"$error":"#REF!"},null,{"$f":"#REF!","v":{"$error":"#REF!"}},{"$f":"#REF!","v":{"$error":"#REF!"}},0,"peso",{"$f":"#REF!","v":{"$error":"#REF!"}},800001965,"http://www.xbrl.org/scheme/companyName",null,{"$f":"Periodos!$D$4","v":"2016-12-31"},{"$f":"#REF!","v":{"$error":"#REF!"}},{"$f":"#REF!","v":{"$error":"#REF!"}}]
["/*",null,"--91--"]
[{"$error":"#REF!"},null,{"$f":"#REF!","v":{"$error":"#REF!"}},{"$f":"#REF!","v":{"$error":"#REF!"}},null,null,{"$f":"#REF!","v":{"$error":"#REF!"}},800001965,"http://www.xbrl.org/scheme/companyName",null,{"$f":"Periodos!$D$4","v":"2016-12-31"},{"$f":"#REF!","v":{"$error":"#REF!"}},{"$f":"#REF!","v":{"$error":"#REF!"}}]
[{"$error":"#REF!"},null,{"$f":"#REF!","v":{"$error":"#REF!"}},{"$f":"#REF!","v":{"$error":"#REF!"}},null,null,{"$f":"#REF!","v":{"$error":"#REF!"}},800001965,"http://www.xbrl.org/scheme/companyName",null,{"$f":"Periodos!$D$4","v":"2016-12-31"},{"$f":"#REF!","v":{"$error":"#REF!"}},{"$f":"#REF!","v":{"$error":"#REF!"}}]
[{"$error":"#REF!"},null,{"$f":"#REF!","v":{"$error":"#REF!"}},{"$f":"#REF!","v":{"$error":"#REF!"}},null,null,{"$f":"#REF!","v":{"$error":"#REF!"}},800001965,"http://www.xbrl.org/scheme/companyName",null,{"$f":"Periodos!$D$4","v":"2016-12-31"},{"$f":"#REF!","v":{"$error":"#REF!"}},{"$f":"#REF!","v":{"$error":"#REF!"}}]
[{"$error":"#REF!"},null,{"$f":"#REF!","v":{"$error":"#REF!"}},{"$f":"#REF!","v":{"$error":"#REF!"}},null,null,{"$f":"#REF!","v":{"$error":"#REF!"}},800001965,"http://www.xbrl.org/scheme/companyName",null,{"$f":"Periodos!$D$4","v":"2016-12-31"},{"$f":"#REF!","v":{"$error":"#REF!"}},{"$f":"#REF!","v":{"$error":"#REF!"}}]
[{"$error":"#REF!"},null,{"$f":"#REF!","v":{"$error":"#REF!"}},{"$f":"#REF!","v":{"$error":"#REF!"}},null,null,{"$f":"#REF!","v":{"$error":"#REF!"}},800001965,"http://www.xbrl.org/scheme/companyName",null,{"$f":"Periodos!$D$4","v":"2016-12-31"},{"$f":"#REF!","v":{"$error":"#REF!"}},{"$f":"#REF!","v":{"$error":"#REF!"}}]
[{"$error":"#REF!"},null,{"$f":"#REF!","v":{"$error":"#REF!"}},{"$f":"#REF!","v":{"$error":"#REF!"}},null,null,{"$f":"#REF!","v":{"$error":"#REF!"}},800001965,"http://www.xbrl.org/scheme/companyName",null,{"$f":"Periodos!$D$4","v":"2016-12-31"},{"$f":"#REF!","v":{"$error":"#REF!"}},{"$f":"#REF!","v":{"$error":"#REF!"}}]
[{"$error":"#REF!"},null,{"$f":"#REF!","v":{"$error":"#REF!"}},{"$f":"#REF!","v":{"$error":"#REF!"}},null,null,{"$f":"#REF!","v":{"$error":"#REF!"}},800001965,"http://www.xbrl.org/scheme/companyName",null,{"$f":"Periodos!$D$4","v":"2016-12-31"},{"$f":"#REF!","v":{"$error":"#REF!"}},{"$f":"#REF!","v":{"$error":"#REF!"}}]
[{"$error":"#REF!"},null,{"$f":"#REF!","v":{"$error":"#REF!"}},{"$f":"#REF!","v":{"$error":"#REF!"}},null,null,{"$f":"#REF!","v":{"$error":"#REF!"}},800001965,"http://www.xbrl.org/scheme/companyName",null,{"$f":"Periodos!$D$4","v":"2016-12-31"},{"$f":"#REF!","v":{"$error":"#REF!"}},{"$f":"#REF!","v":{"$error":"#REF!"}}]
[{"$error":"#REF!"},null,{"$f":"#REF!","v":{"$error":"#REF!"}},{"$f":"#REF!","v":{"$error":"#REF!"}},null,null,{"$f":"#REF!","v":{"$error":"#REF!"}},800001965,"http://www.xbrl.org/scheme/companyName",null,{"$f":"Periodos!$D$4","v":"2016-12-31"},{"$f":"#REF!","v":{"$error":"#REF!"}},{"$f":"#REF!","v":{"$error":"#REF!"}}]
[{"$error":"#REF!"},null,{"$f":"#REF!","v":{"$error":"#REF!"}},{"$f":"#REF!","v":{"$error":"#REF!"}},null,null,{"$f":"#REF!","v":{"$error":"#REF!"}},800001965,"http://www.xbrl.org/scheme/companyName",null,{"$f":"Periodos!$D$4","v":"2016-12-31"},{"$f":"#REF!","v":{"$error":"#REF!"}},{"$f":"#REF!","v":{"$error":"#REF!"}}]
[{"$error":"#REF!"},null,{"$f":"#REF!","v":{"$error":"#REF!"}},{"$f":"#REF!","v":{"$error":"#REF!"}},null,null,{"$f":"#REF!","v":{"$error":"#REF!"}},800001965,"http://www.xbrl.org/scheme/companyName",null,{"$f":"Periodos!$D$4","v":"2016-12-31"},{"$f":"#REF!","v":{"$error":"#REF!"}},{"$f":"#REF!","v":{"$error":"#REF!"}}]
[{"$error":"#REF!"},null,{"$f":"#REF!","v":{"$error":"#REF!"}},{"$f":"#REF!","v":{"$error":"#REF!"}},0,"peso",{"$f":"#REF!","v":{"$error":"#REF!"}},800001965,"http://www.xbrl.org/scheme/companyName",null,{"$f":"Periodos!$D$4","v":"2016-12-31"},{"$f":"#REF!","v":{"$error":"#REF!"}},{"$f":"#REF!","v":{"$error":"#REF!"}}]
["/*",null,"--92--"]
[{"$error":"#REF!"},null,{"$f":"#REF!","v":{"$error":"#REF!"}},{"$f":"#REF!","v":{"$error":"#REF!"}},null,null,{"$f":"#REF!","v":{"$error":"#REF!"}},800001965,"http://www.xbrl.org/scheme/companyName",null,{"$f":"Periodos!$D$4","v":"2016-12-31"},{"$f":"#REF!","v":{"$error":"#REF!"}},{"$f":"#REF!","v":{"$error":"#REF!"}}]
[{"$error":"#REF!"},null,{"$f":"#REF!","v":{"$error":"#REF!"}},{"$f":"#REF!","v":{"$error":"#REF!"}},null,null,{"$f":"#REF!","v":{"$error":"#REF!"}},800001965,"http://www.xbrl.org/scheme/companyName",null,{"$f":"Periodos!$D$4","v":"2016-12-31"},{"$f":"#REF!","v":{"$error":"#REF!"}},{"$f":"#REF!","v":{"$error":"#REF!"}}]
[{"$error":"#REF!"},null,{"$f":"#REF!","v":{"$error":"#REF!"}},{"$f":"#REF!","v":{"$error":"#REF!"}},null,null,{"$f":"#REF!","v":{"$error":"#REF!"}},800001965,"http://www.xbrl.org/scheme/companyName",null,{"$f":"Periodos!$D$4","v":"2016-12-31"},{"$f":"#REF!","v":{"$error":"#REF!"}},{"$f":"#REF!","v":{"$error":"#REF!"}}]
[{"$error":"#REF!"},null,{"$f":"#REF!","v":{"$error":"#REF!"}},{"$f":"#REF!","v":{"$error":"#REF!"}},null,null,{"$f":"#REF!","v":{"$error":"#REF!"}},800001965,"http://www.xbrl.org/scheme/companyName",null,{"$f":"Periodos!$D$4","v":"2016-12-31"},{"$f":"#REF!","v":{"$error":"#REF!"}},{"$f":"#REF!","v":{"$error":"#REF!"}}]
[{"$error":"#REF!"},null,{"$f":"#REF!","v":{"$error":"#REF!"}},{"$f":"#REF!","v":{"$error":"#REF!"}},null,null,{"$f":"#REF!","v":{"$error":"#REF!"}},800001965,"http://www.xbrl.org/scheme/companyName",null,{"$f":"Periodos!$D$4","v":"2016-12-31"},{"$f":"#REF!","v":{"$error":"#REF!"}},{"$f":"#REF!","v":{"$error":"#REF!"}}]
[{"$error":"#REF!"},null,{"$f":"#REF!","v":{"$error":"#REF!"}},{"$f":"#REF!","v":{"$error":"#REF!"}},null,null,{"$f":"#REF!","v":{"$error":"#REF!"}},800001965,"http://www.xbrl.org/scheme/companyName",null,{"$f":"Periodos!$D$4","v":"2016-12-31"},{"$f":"#REF!","v":{"$error":"#REF!"}},{"$f":"#REF!","v":{"$error":"#REF!"}}]
[{"$error":"#REF!"},null,{"$f":"#REF!","v":{"$error":"#REF!"}},{"$f":"#REF!","v":{"$error":"#REF!"}},null,null,{"$f":"#REF!","v":{"$error":"#REF!"}},800001965,"http://www.xbrl.org/scheme/companyName",null,{"$f":"Periodos!$D$4","v":"2016-12-31"},{"$f":"#REF!","v":{"$error":"#REF!"}},{"$f":"#REF!","v":{"$error":"#REF!"}}]
[{"$error":"#REF!"},null,{"$f":"#REF!","v":{"$error":"#REF!"}},{"$f":"#REF!","v":{"$error":"#REF!"}},null,null,{"$f":"#REF!","v":{"$error":"#REF!"}},800001965,"http://www.xbrl.org/scheme/companyName",null,{"$f":"Periodos!$D$4","v":"2016-12-31"},{"$f":"#REF!","v":{"$error":"#REF!"}},{"$f":"#REF!","v":{"$error":"#REF!"}}]
[{"$error":"#REF!"},null,{"$f":"#REF!","v":{"$error":"#REF!"}},{"$f":"#REF!","v":{"$error":"#REF!"}},null,null,{"$f":"#REF!","v":{"$error":"#REF!"}},800001965,"http://www.xbrl.org/scheme/companyName",null,{"$f":"Periodos!$D$4","v":"2016-12-31"},{"$f":"#REF!","v":{"$error":"#REF!"}},{"$f":"#REF!","v":{"$error":"#REF!"}}]
[{"$error":"#REF!"},null,{"$f":"#REF!","v":{"$error":"#REF!"}},{"$f":"#REF!","v":{"$error":"#REF!"}},null,null,{"$f":"#REF!","v":{"$error":"#REF!"}},800001965,"http://www.xbrl.org/scheme/companyName",null,{"$f":"Periodos!$D$4","v":"2016-12-31"},{"$f":"#REF!","v":{"$error":"#REF!"}},{"$f":"#REF!","v":{"$error":"#REF!"}}]
[{"$error":"#REF!"},null,{"$f":"#REF!","v":{"$error":"#REF!"}},{"$f":"#REF!","v":{"$error":"#REF!"}},null,null,{"$f":"#REF!","v":{"$error":"#REF!"}},800001965,"http://www.xbrl.org/scheme/companyName",null,{"$f":"Periodos!$D$4","v":"2016-12-31"},{"$f":"#REF!","v":{"$error":"#REF!"}},{"$f":"#REF!","v":{"$error":"#REF!"}}]
[{"$error":"#REF!"},null,{"$f":"#REF!","v":{"$error":"#REF!"}},{"$f":"#REF!","v":{"$error":"#REF!"}},0,"peso",{"$f":"#REF!","v":{"$error":"#REF!"}},800001965,"http://www.xbrl.org/scheme/companyName",null,{"$f":"Periodos!$D$4","v":"2016-12-31"},{"$f":"#REF!","v":{"$error":"#REF!"}},{"$f":"#REF!","v":{"$error":"#REF!"}}]
["/*",null,"--93--"]
[{"$f":"IF(G4961=\"\",\"/*\",\"\")","v":{"$error":"#REF!"}},null,{"$f":"#REF!","v":{"$error":"#REF!"}},{"$f":"#REF!","v":{"$error":"#REF!"}},null,null,{"$f":"#REF!","v":{"$error":"#REF!"}},800001965,"http://www.xbrl.org/scheme/companyName",null,{"$f":"Periodos!$D$4","v":"2016-12-31"},{"$f":"#REF!","v":{"$error":"#REF!"}},{"$f":"#REF!","v":{"$error":"#REF!"}}]
[{"$error":"#REF!"},null,{"$f":"#REF!","v":{"$error":"#REF!"}},{"$f":"#REF!","v":{"$error":"#REF!"}},null,null,{"$f":"#REF!","v":{"$error":"#REF!"}},800001965,"http://www.xbrl.org/scheme/companyName",null,{"$f":"Periodos!$D$4","v":"2016-12-31"},{"$f":"#REF!","v":{"$error":"#REF!"}},{"$f":"#REF!","v":{"$error":"#REF!"}}]
[{"$error":"#REF!"},null,{"$f":"#REF!","v":{"$error":"#REF!"}},{"$f":"#REF!","v":{"$error":"#REF!"}},null,null,{"$f":"#REF!","v":{"$error":"#REF!"}},800001965,"http://www.xbrl.org/scheme/companyName",null,{"$f":"Periodos!$D$4","v":"2016-12-31"},{"$f":"#REF!","v":{"$error":"#REF!"}},{"$f":"#REF!","v":{"$error":"#REF!"}}]
[{"$error":"#REF!"},null,{"$f":"#REF!","v":{"$error":"#REF!"}},{"$f":"#REF!","v":{"$error":"#REF!"}},null,null,{"$f":"#REF!","v":{"$error":"#REF!"}},800001965,"http://www.xbrl.org/scheme/companyName",null,{"$f":"Periodos!$D$4","v":"2016-12-31"},{"$f":"#REF!","v":{"$error":"#REF!"}},{"$f":"#REF!","v":{"$error":"#REF!"}}]
[{"$error":"#REF!"},null,{"$f":"#REF!","v":{"$error":"#REF!"}},{"$f":"#REF!","v":{"$error":"#REF!"}},null,null,{"$f":"#REF!","v":{"$error":"#REF!"}},800001965,"http://www.xbrl.org/scheme/companyName",null,{"$f":"Periodos!$D$4","v":"2016-12-31"},{"$f":"#REF!","v":{"$error":"#REF!"}},{"$f":"#REF!","v":{"$error":"#REF!"}}]
[{"$error":"#REF!"},null,{"$f":"#REF!","v":{"$error":"#REF!"}},{"$f":"#REF!","v":{"$error":"#REF!"}},null,null,{"$f":"#REF!","v":{"$error":"#REF!"}},800001965,"http://www.xbrl.org/scheme/companyName",null,{"$f":"Periodos!$D$4","v":"2016-12-31"},{"$f":"#REF!","v":{"$error":"#REF!"}},{"$f":"#REF!","v":{"$error":"#REF!"}}]
[{"$error":"#REF!"},null,{"$f":"#REF!","v":{"$error":"#REF!"}},{"$f":"#REF!","v":{"$error":"#REF!"}},null,null,{"$f":"#REF!","v":{"$error":"#REF!"}},800001965,"http://www.xbrl.org/scheme/companyName",null,{"$f":"Periodos!$D$4","v":"2016-12-31"},{"$f":"#REF!","v":{"$error":"#REF!"}},{"$f":"#REF!","v":{"$error":"#REF!"}}]
[{"$error":"#REF!"},null,{"$f":"#REF!","v":{"$error":"#REF!"}},{"$f":"#REF!","v":{"$error":"#REF!"}},null,null,{"$f":"#REF!","v":{"$error":"#REF!"}},800001965,"http://www.xbrl.org/scheme/companyName",null,{"$f":"Periodos!$D$4","v":"2016-12-31"},{"$f":"#REF!","v":{"$error":"#REF!"}},{"$f":"#REF!","v":{"$error":"#REF!"}}]
[{"$error":"#REF!"},null,{"$f":"#REF!","v":{"$error":"#REF!"}},{"$f":"#REF!","v":{"$error":"#REF!"}},null,null,{"$f":"#REF!","v":{"$error":"#REF!"}},800001965,"http://www.xbrl.org/scheme/companyName",null,{"$f":"Periodos!$D$4","v":"2016-12-31"},{"$f":"#REF!","v":{"$error":"#REF!"}},{"$f":"#REF!","v":{"$error":"#REF!"}}]
[{"$error":"#REF!"},null,{"$f":"#REF!","v":{"$error":"#REF!"}},{"$f":"#REF!","v":{"$error":"#REF!"}},null,null,{"$f":"#REF!","v":{"$error":"#REF!"}},800001965,"http://www.xbrl.org/scheme/companyName",null,{"$f":"Periodos!$D$4","v":"2016-12-31"},{"$f":"#REF!","v":{"$error":"#REF!"}},{"$f":"#REF!","v":{"$error":"#REF!"}}]
[{"$error":"#REF!"},null,{"$f":"#REF!","v":{"$error":"#REF!"}},{"$f":"#REF!","v":{"$error":"#REF!"}},null,null,{"$f":"#REF!","v":{"$error":"#REF!"}},800001965,"http://www.xbrl.org/scheme/companyName",null,{"$f":"Periodos!$D$4","v":"2016-12-31"},{"$f":"#REF!","v":{"$error":"#REF!"}},{"$f":"#REF!","v":{"$error":"#REF!"}}]
[{"$error":"#REF!"},null,{"$f":"#REF!","v":{"$error":"#REF!"}},{"$f":"#REF!","v":{"$error":"#REF!"}},0,"peso",{"$f":"#REF!","v":{"$error":"#REF!"}},800001965,"http://www.xbrl.org/scheme/companyName",null,{"$f":"Periodos!$D$4","v":"2016-12-31"},{"$f":"#REF!","v":{"$error":"#REF!"}},{"$f":"#REF!","v":{"$error":"#REF!"}}]
["/*",null,"--94--"]
[{"$error":"#REF!"},null,{"$f":"#REF!","v":{"$error":"#REF!"}},{"$f":"#REF!","v":{"$error":"#REF!"}},null,null,{"$f":"#REF!","v":{"$error":"#REF!"}},800001965,"http://www.xbrl.org/scheme/companyName",null,{"$f":"Periodos!$D$4","v":"2016-12-31"},{"$f":"#REF!","v":{"$error":"#REF!"}},{"$f":"#REF!","v":{"$error":"#REF!"}}]
[{"$error":"#REF!"},null,{"$f":"#REF!","v":{"$error":"#REF!"}},{"$f":"#REF!","v":{"$error":"#REF!"}},null,null,{"$f":"#REF!","v":{"$error":"#REF!"}},800001965,"http://www.xbrl.org/scheme/companyName",null,{"$f":"Periodos!$D$4","v":"2016-12-31"},{"$f":"#REF!","v":{"$error":"#REF!"}},{"$f":"#REF!","v":{"$error":"#REF!"}}]
[{"$error":"#REF!"},null,{"$f":"#REF!","v":{"$error":"#REF!"}},{"$f":"#REF!","v":{"$error":"#REF!"}},null,null,{"$f":"#REF!","v":{"$error":"#REF!"}},800001965,"http://www.xbrl.org/scheme/companyName",null,{"$f":"Periodos!$D$4","v":"2016-12-31"},{"$f":"#REF!","v":{"$error":"#REF!"}},{"$f":"#REF!","v":{"$error":"#REF!"}}]
[{"$error":"#REF!"},null,{"$f":"#REF!","v":{"$error":"#REF!"}},{"$f":"#REF!","v":{"$error":"#REF!"}},null,null,{"$f":"#REF!","v":{"$error":"#REF!"}},800001965,"http://www.xbrl.org/scheme/companyName",null,{"$f":"Periodos!$D$4","v":"2016-12-31"},{"$f":"#REF!","v":{"$error":"#REF!"}},{"$f":"#REF!","v":{"$error":"#REF!"}}]
[{"$error":"#REF!"},null,{"$f":"#REF!","v":{"$error":"#REF!"}},{"$f":"#REF!","v":{"$error":"#REF!"}},null,null,{"$f":"#REF!","v":{"$error":"#REF!"}},800001965,"http://www.xbrl.org/scheme/companyName",null,{"$f":"Periodos!$D$4","v":"2016-12-31"},{"$f":"#REF!","v":{"$error":"#REF!"}},{"$f":"#REF!","v":{"$error":"#REF!"}}]
[{"$error":"#REF!"},null,{"$f":"#REF!","v":{"$error":"#REF!"}},{"$f":"#REF!","v":{"$error":"#REF!"}},null,null,{"$f":"#REF!","v":{"$error":"#REF!"}},800001965,"http://www.xbrl.org/scheme/companyName",null,{"$f":"Periodos!$D$4","v":"2016-12-31"},{"$f":"#REF!","v":{"$error":"#REF!"}},{"$f":"#REF!","v":{"$error":"#REF!"}}]
[{"$error":"#REF!"},null,{"$f":"#REF!","v":{"$error":"#REF!"}},{"$f":"#REF!","v":{"$error":"#REF!"}},null,null,{"$f":"#REF!","v":{"$error":"#REF!"}},800001965,"http://www.xbrl.org/scheme/companyName",null,{"$f":"Periodos!$D$4","v":"2016-12-31"},{"$f":"#REF!","v":{"$error":"#REF!"}},{"$f":"#REF!","v":{"$error":"#REF!"}}]
[{"$error":"#REF!"},null,{"$f":"#REF!","v":{"$error":"#REF!"}},{"$f":"#REF!","v":{"$error":"#REF!"}},null,null,{"$f":"#REF!","v":{"$error":"#REF!"}},800001965,"http://www.xbrl.org/scheme/companyName",null,{"$f":"Periodos!$D$4","v":"2016-12-31"},{"$f":"#REF!","v":{"$error":"#REF!"}},{"$f":"#REF!","v":{"$error":"#REF!"}}]
[{"$error":"#REF!"},null,{"$f":"#REF!","v":{"$error":"#REF!"}},{"$f":"#REF!","v":{"$error":"#REF!"}},null,null,{"$f":"#REF!","v":{"$error":"#REF!"}},800001965,"http://www.xbrl.org/scheme/companyName",null,{"$f":"Periodos!$D$4","v":"2016-12-31"},{"$f":"#REF!","v":{"$error":"#REF!"}},{"$f":"#REF!","v":{"$error":"#REF!"}}]
[{"$error":"#REF!"},null,{"$f":"#REF!","v":{"$error":"#REF!"}},{"$f":"#REF!","v":{"$error":"#REF!"}},null,null,{"$f":"#REF!","v":{"$error":"#REF!"}},800001965,"http://www.xbrl.org/scheme/companyName",null,{"$f":"Periodos!$D$4","v":"2016-12-31"},{"$f":"#REF!","v":{"$error":"#REF!"}},{"$f":"#REF!","v":{"$error":"#REF!"}}]
[{"$error":"#REF!"},null,{"$f":"#REF!","v":{"$error":"#REF!"}},{"$f":"#REF!","v":{"$error":"#REF!"}},null,null,{"$f":"#REF!","v":{"$error":"#REF!"}},800001965,"http://www.xbrl.org/scheme/companyName",null,{"$f":"Periodos!$D$4","v":"2016-12-31"},{"$f":"#REF!","v":{"$error":"#REF!"}},{"$f":"#REF!","v":{"$error":"#REF!"}}]
[{"$error":"#REF!"},null,{"$f":"#REF!","v":{"$error":"#REF!"}},{"$f":"#REF!","v":{"$error":"#REF!"}},0,"peso",{"$f":"#REF!","v":{"$error":"#REF!"}},800001965,"http://www.xbrl.org/scheme/companyName",null,{"$f":"Periodos!$D$4","v":"2016-12-31"},{"$f":"#REF!","v":{"$error":"#REF!"}},{"$f":"#REF!","v":{"$error":"#REF!"}}]
["/*",null,"--95--"]
[{"$error":"#REF!"},null,{"$f":"#REF!","v":{"$error":"#REF!"}},{"$f":"#REF!","v":{"$error":"#REF!"}},null,null,{"$f":"#REF!","v":{"$error":"#REF!"}},800001965,"http://www.xbrl.org/scheme/companyName",null,{"$f":"Periodos!$D$4","v":"2016-12-31"},{"$f":"#REF!","v":{"$error":"#REF!"}},{"$f":"#REF!","v":{"$error":"#REF!"}}]
[{"$error":"#REF!"},null,{"$f":"#REF!","v":{"$error":"#REF!"}},{"$f":"#REF!","v":{"$error":"#REF!"}},null,null,{"$f":"#REF!","v":{"$error":"#REF!"}},800001965,"http://www.xbrl.org/scheme/companyName",null,{"$f":"Periodos!$D$4","v":"2016-12-31"},{"$f":"#REF!","v":{"$error":"#REF!"}},{"$f":"#REF!","v":{"$error":"#REF!"}}]
[{"$error":"#REF!"},null,{"$f":"#REF!","v":{"$error":"#REF!"}},{"$f":"#REF!","v":{"$error":"#REF!"}},null,null,{"$f":"#REF!","v":{"$error":"#REF!"}},800001965,"http://www.xbrl.org/scheme/companyName",null,{"$f":"Periodos!$D$4","v":"2016-12-31"},{"$f":"#REF!","v":{"$error":"#REF!"}},{"$f":"#REF!","v":{"$error":"#REF!"}}]
[{"$error":"#REF!"},null,{"$f":"#REF!","v":{"$error":"#REF!"}},{"$f":"#REF!","v":{"$error":"#REF!"}},null,null,{"$f":"#REF!","v":{"$error":"#REF!"}},800001965,"http://www.xbrl.org/scheme/companyName",null,{"$f":"Periodos!$D$4","v":"2016-12-31"},{"$f":"#REF!","v":{"$error":"#REF!"}},{"$f":"#REF!","v":{"$error":"#REF!"}}]
[{"$error":"#REF!"},null,{"$f":"#REF!","v":{"$error":"#REF!"}},{"$f":"#REF!","v":{"$error":"#REF!"}},null,null,{"$f":"#REF!","v":{"$error":"#REF!"}},800001965,"http://www.xbrl.org/scheme/companyName",null,{"$f":"Periodos!$D$4","v":"2016-12-31"},{"$f":"#REF!","v":{"$error":"#REF!"}},{"$f":"#REF!","v":{"$error":"#REF!"}}]
[{"$error":"#REF!"},null,{"$f":"#REF!","v":{"$error":"#REF!"}},{"$f":"#REF!","v":{"$error":"#REF!"}},null,null,{"$f":"#REF!","v":{"$error":"#REF!"}},800001965,"http://www.xbrl.org/scheme/companyName",null,{"$f":"Periodos!$D$4","v":"2016-12-31"},{"$f":"#REF!","v":{"$error":"#REF!"}},{"$f":"#REF!","v":{"$error":"#REF!"}}]
[{"$error":"#REF!"},null,{"$f":"#REF!","v":{"$error":"#REF!"}},{"$f":"#REF!","v":{"$error":"#REF!"}},null,null,{"$f":"#REF!","v":{"$error":"#REF!"}},800001965,"http://www.xbrl.org/scheme/companyName",null,{"$f":"Periodos!$D$4","v":"2016-12-31"},{"$f":"#REF!","v":{"$error":"#REF!"}},{"$f":"#REF!","v":{"$error":"#REF!"}}]
[{"$error":"#REF!"},null,{"$f":"#REF!","v":{"$error":"#REF!"}},{"$f":"#REF!","v":{"$error":"#REF!"}},null,null,{"$f":"#REF!","v":{"$error":"#REF!"}},800001965,"http://www.xbrl.org/scheme/companyName",null,{"$f":"Periodos!$D$4","v":"2016-12-31"},{"$f":"#REF!","v":{"$error":"#REF!"}},{"$f":"#REF!","v":{"$error":"#REF!"}}]
[{"$error":"#REF!"},null,{"$f":"#REF!","v":{"$error":"#REF!"}},{"$f":"#REF!","v":{"$error":"#REF!"}},null,null,{"$f":"#REF!","v":{"$error":"#REF!"}},800001965,"http://www.xbrl.org/scheme/companyName",null,{"$f":"Periodos!$D$4","v":"2016-12-31"},{"$f":"#REF!","v":{"$error":"#REF!"}},{"$f":"#REF!","v":{"$error":"#REF!"}}]
[{"$error":"#REF!"},null,{"$f":"#REF!","v":{"$error":"#REF!"}},{"$f":"#REF!","v":{"$error":"#REF!"}},null,null,{"$f":"#REF!","v":{"$error":"#REF!"}},800001965,"http://www.xbrl.org/scheme/companyName",null,{"$f":"Periodos!$D$4","v":"2016-12-31"},{"$f":"#REF!","v":{"$error":"#REF!"}},{"$f":"#REF!","v":{"$error":"#REF!"}}]
[{"$error":"#REF!"},null,{"$f":"#REF!","v":{"$error":"#REF!"}},{"$f":"#REF!","v":{"$error":"#REF!"}},null,null,{"$f":"#REF!","v":{"$error":"#REF!"}},800001965,"http://www.xbrl.org/scheme/companyName",null,{"$f":"Periodos!$D$4","v":"2016-12-31"},{"$f":"#REF!","v":{"$error":"#REF!"}},{"$f":"#REF!","v":{"$error":"#REF!"}}]
[{"$error":"#REF!"},null,{"$f":"#REF!","v":{"$error":"#REF!"}},{"$f":"#REF!","v":{"$error":"#REF!"}},0,"peso",{"$f":"#REF!","v":{"$error":"#REF!"}},800001965,"http://www.xbrl.org/scheme/companyName",null,{"$f":"Periodos!$D$4","v":"2016-12-31"},{"$f":"#REF!","v":{"$error":"#REF!"}},{"$f":"#REF!","v":{"$error":"#REF!"}}]
["/*",null,"--96--"]
[{"$error":"#REF!"},null,{"$f":"#REF!","v":{"$error":"#REF!"}},{"$f":"#REF!","v":{"$error":"#REF!"}},null,null,{"$f":"#REF!","v":{"$error":"#REF!"}},800001965,"http://www.xbrl.org/scheme/companyName",null,{"$f":"Periodos!$D$4","v":"2016-12-31"},{"$f":"#REF!","v":{"$error":"#REF!"}},{"$f":"#REF!","v":{"$error":"#REF!"}}]
[{"$error":"#REF!"},null,{"$f":"#REF!","v":{"$error":"#REF!"}},{"$f":"#REF!","v":{"$error":"#REF!"}},null,null,{"$f":"#REF!","v":{"$error":"#REF!"}},800001965,"http://www.xbrl.org/scheme/companyName",null,{"$f":"Periodos!$D$4","v":"2016-12-31"},{"$f":"#REF!","v":{"$error":"#REF!"}},{"$f":"#REF!","v":{"$error":"#REF!"}}]
[{"$error":"#REF!"},null,{"$f":"#REF!","v":{"$error":"#REF!"}},{"$f":"#REF!","v":{"$error":"#REF!"}},null,null,{"$f":"#REF!","v":{"$error":"#REF!"}},800001965,"http://www.xbrl.org/scheme/companyName",null,{"$f":"Periodos!$D$4","v":"2016-12-31"},{"$f":"#REF!","v":{"$error":"#REF!"}},{"$f":"#REF!","v":{"$error":"#REF!"}}]
[{"$error":"#REF!"},null,{"$f":"#REF!","v":{"$error":"#REF!"}},{"$f":"#REF!","v":{"$error":"#REF!"}},null,null,{"$f":"#REF!","v":{"$error":"#REF!"}},800001965,"http://www.xbrl.org/scheme/companyName",null,{"$f":"Periodos!$D$4","v":"2016-12-31"},{"$f":"#REF!","v":{"$error":"#REF!"}},{"$f":"#REF!","v":{"$error":"#REF!"}}]
[{"$error":"#REF!"},null,{"$f":"#REF!","v":{"$error":"#REF!"}},{"$f":"#REF!","v":{"$error":"#REF!"}},null,null,{"$f":"#REF!","v":{"$error":"#REF!"}},800001965,"http://www.xbrl.org/scheme/companyName",null,{"$f":"Periodos!$D$4","v":"2016-12-31"},{"$f":"#REF!","v":{"$error":"#REF!"}},{"$f":"#REF!","v":{"$error":"#REF!"}}]
[{"$error":"#REF!"},null,{"$f":"#REF!","v":{"$error":"#REF!"}},{"$f":"#REF!","v":{"$error":"#REF!"}},null,null,{"$f":"#REF!","v":{"$error":"#REF!"}},800001965,"http://www.xbrl.org/scheme/companyName",null,{"$f":"Periodos!$D$4","v":"2016-12-31"},{"$f":"#REF!","v":{"$error":"#REF!"}},{"$f":"#REF!","v":{"$error":"#REF!"}}]
[{"$error":"#REF!"},null,{"$f":"#REF!","v":{"$error":"#REF!"}},{"$f":"#REF!","v":{"$error":"#REF!"}},null,null,{"$f":"#REF!","v":{"$error":"#REF!"}},800001965,"http://www.xbrl.org/scheme/companyName",null,{"$f":"Periodos!$D$4","v":"2016-12-31"},{"$f":"#REF!","v":{"$error":"#REF!"}},{"$f":"#REF!","v":{"$error":"#REF!"}}]
[{"$error":"#REF!"},null,{"$f":"#REF!","v":{"$error":"#REF!"}},{"$f":"#REF!","v":{"$error":"#REF!"}},null,null,{"$f":"#REF!","v":{"$error":"#REF!"}},800001965,"http://www.xbrl.org/scheme/companyName",null,{"$f":"Periodos!$D$4","v":"2016-12-31"},{"$f":"#REF!","v":{"$error":"#REF!"}},{"$f":"#REF!","v":{"$error":"#REF!"}}]
[{"$error":"#REF!"},null,{"$f":"#REF!","v":{"$error":"#REF!"}},{"$f":"#REF!","v":{"$error":"#REF!"}},null,null,{"$f":"#REF!","v":{"$error":"#REF!"}},800001965,"http://www.xbrl.org/scheme/companyName",null,{"$f":"Periodos!$D$4","v":"2016-12-31"},{"$f":"#REF!","v":{"$error":"#REF!"}},{"$f":"#REF!","v":{"$error":"#REF!"}}]
[{"$error":"#REF!"},null,{"$f":"#REF!","v":{"$error":"#REF!"}},{"$f":"#REF!","v":{"$error":"#REF!"}},null,null,{"$f":"#REF!","v":{"$error":"#REF!"}},800001965,"http://www.xbrl.org/scheme/companyName",null,{"$f":"Periodos!$D$4","v":"2016-12-31"},{"$f":"#REF!","v":{"$error":"#REF!"}},{"$f":"#REF!","v":{"$error":"#REF!"}}]
[{"$error":"#REF!"},null,{"$f":"#REF!","v":{"$error":"#REF!"}},{"$f":"#REF!","v":{"$error":"#REF!"}},null,null,{"$f":"#REF!","v":{"$error":"#REF!"}},800001965,"http://www.xbrl.org/scheme/companyName",null,{"$f":"Periodos!$D$4","v":"2016-12-31"},{"$f":"#REF!","v":{"$error":"#REF!"}},{"$f":"#REF!","v":{"$error":"#REF!"}}]
[{"$error":"#REF!"},null,{"$f":"#REF!","v":{"$error":"#REF!"}},{"$f":"#REF!","v":{"$error":"#REF!"}},0,"peso",{"$f":"#REF!","v":{"$error":"#REF!"}},800001965,"http://www.xbrl.org/scheme/companyName",null,{"$f":"Periodos!$D$4","v":"2016-12-31"},{"$f":"#REF!","v":{"$error":"#REF!"}},{"$f":"#REF!","v":{"$error":"#REF!"}}]
["/*",null,"--97--"]
[{"$error":"#REF!"},null,{"$f":"#REF!","v":{"$error":"#REF!"}},{"$f":"#REF!","v":{"$error":"#REF!"}},null,null,{"$f":"#REF!","v":{"$error":"#REF!"}},800001965,"http://www.xbrl.org/scheme/companyName",null,{"$f":"Periodos!$D$4","v":"2016-12-31"},{"$f":"#REF!","v":{"$error":"#REF!"}},{"$f":"#REF!","v":{"$error":"#REF!"}}]
[{"$error":"#REF!"},null,{"$f":"#REF!","v":{"$error":"#REF!"}},{"$f":"#REF!","v":{"$error":"#REF!"}},null,null,{"$f":"#REF!","v":{"$error":"#REF!"}},800001965,"http://www.xbrl.org/scheme/companyName",null,{"$f":"Periodos!$D$4","v":"2016-12-31"},{"$f":"#REF!","v":{"$error":"#REF!"}},{"$f":"#REF!","v":{"$error":"#REF!"}}]
[{"$error":"#REF!"},null,{"$f":"#REF!","v":{"$error":"#REF!"}},{"$f":"#REF!","v":{"$error":"#REF!"}},null,null,{"$f":"#REF!","v":{"$error":"#REF!"}},800001965,"http://www.xbrl.org/scheme/companyName",null,{"$f":"Periodos!$D$4","v":"2016-12-31"},{"$f":"#REF!","v":{"$error":"#REF!"}},{"$f":"#REF!","v":{"$error":"#REF!"}}]
[{"$error":"#REF!"},null,{"$f":"#REF!","v":{"$error":"#REF!"}},{"$f":"#REF!","v":{"$error":"#REF!"}},null,null,{"$f":"#REF!","v":{"$error":"#REF!"}},800001965,"http://www.xbrl.org/scheme/companyName",null,{"$f":"Periodos!$D$4","v":"2016-12-31"},{"$f":"#REF!","v":{"$error":"#REF!"}},{"$f":"#REF!","v":{"$error":"#REF!"}}]
[{"$error":"#REF!"},null,{"$f":"#REF!","v":{"$error":"#REF!"}},{"$f":"#REF!","v":{"$error":"#REF!"}},null,null,{"$f":"#REF!","v":{"$error":"#REF!"}},800001965,"http://www.xbrl.org/scheme/companyName",null,{"$f":"Periodos!$D$4","v":"2016-12-31"},{"$f":"#REF!","v":{"$error":"#REF!"}},{"$f":"#REF!","v":{"$error":"#REF!"}}]
[{"$error":"#REF!"},null,{"$f":"#REF!","v":{"$error":"#REF!"}},{"$f":"#REF!","v":{"$error":"#REF!"}},null,null,{"$f":"#REF!","v":{"$error":"#REF!"}},800001965,"http://www.xbrl.org/scheme/companyName",null,{"$f":"Periodos!$D$4","v":"2016-12-31"},{"$f":"#REF!","v":{"$error":"#REF!"}},{"$f":"#REF!","v":{"$error":"#REF!"}}]
[{"$error":"#REF!"},null,{"$f":"#REF!","v":{"$error":"#REF!"}},{"$f":"#REF!","v":{"$error":"#REF!"}},null,null,{"$f":"#REF!","v":{"$error":"#REF!"}},800001965,"http://www.xbrl.org/scheme/companyName",null,{"$f":"Periodos!$D$4","v":"2016-12-31"},{"$f":"#REF!","v":{"$error":"#REF!"}},{"$f":"#REF!","v":{"$error":"#REF!"}}]
[{"$error":"#REF!"},null,{"$f":"#REF!","v":{"$error":"#REF!"}},{"$f":"#REF!","v":{"$error":"#REF!"}},null,null,{"$f":"#REF!","v":{"$error":"#REF!"}},800001965,"http://www.xbrl.org/scheme/companyName",null,{"$f":"Periodos!$D$4","v":"2016-12-31"},{"$f":"#REF!","v":{"$error":"#REF!"}},{"$f":"#REF!","v":{"$error":"#REF!"}}]
[{"$error":"#REF!"},null,{"$f":"#REF!","v":{"$error":"#REF!"}},{"$f":"#REF!","v":{"$error":"#REF!"}},null,null,{"$f":"#REF!","v":{"$error":"#REF!"}},800001965,"http://www.xbrl.org/scheme/companyName",null,{"$f":"Periodos!$D$4","v":"2016-12-31"},{"$f":"#REF!","v":{"$error":"#REF!"}},{"$f":"#REF!","v":{"$error":"#REF!"}}]
[{"$error":"#REF!"},null,{"$f":"#REF!","v":{"$error":"#REF!"}},{"$f":"#REF!","v":{"$error":"#REF!"}},null,null,{"$f":"#REF!","v":{"$error":"#REF!"}},800001965,"http://www.xbrl.org/scheme/companyName",null,{"$f":"Periodos!$D$4","v":"2016-12-31"},{"$f":"#REF!","v":{"$error":"#REF!"}},{"$f":"#REF!","v":{"$error":"#REF!"}}]
[{"$error":"#REF!"},null,{"$f":"#REF!","v":{"$error":"#REF!"}},{"$f":"#REF!","v":{"$error":"#REF!"}},null,null,{"$f":"#REF!","v":{"$error":"#REF!"}},800001965,"http://www.xbrl.org/scheme/companyName",null,{"$f":"Periodos!$D$4","v":"2016-12-31"},{"$f":"#REF!","v":{"$error":"#REF!"}},{"$f":"#REF!","v":{"$error":"#REF!"}}]
[{"$error":"#REF!"},null,{"$f":"#REF!","v":{"$error":"#REF!"}},{"$f":"#REF!","v":{"$error":"#REF!"}},0,"peso",{"$f":"#REF!","v":{"$error":"#REF!"}},800001965,"http://www.xbrl.org/scheme/companyName",null,{"$f":"Periodos!$D$4","v":"2016-12-31"},{"$f":"#REF!","v":{"$error":"#REF!"}},{"$f":"#REF!","v":{"$error":"#REF!"}}]
[{"$f":"IF(G5025=\"\",\"/*\",\"\")","v":"/*"},null,"--98--"]
[{"$error":"#REF!"},null,{"$f":"#REF!","v":{"$error":"#REF!"}},{"$f":"#REF!","v":{"$error":"#REF!"}},null,null,{"$f":"#REF!","v":{"$error":"#REF!"}},800001965,"http://www.xbrl.org/scheme/companyName",null,{"$f":"Periodos!$D$4","v":"2016-12-31"},{"$f":"#REF!","v":{"$error":"#REF!"}},{"$f":"#REF!","v":{"$error":"#REF!"}}]
[{"$error":"#REF!"},null,{"$f":"#REF!","v":{"$error":"#REF!"}},{"$f":"#REF!","v":{"$error":"#REF!"}},null,null,{"$f":"#REF!","v":{"$error":"#REF!"}},800001965,"http://www.xbrl.org/scheme/companyName",null,{"$f":"Periodos!$D$4","v":"2016-12-31"},{"$f":"#REF!","v":{"$error":"#REF!"}},{"$f":"#REF!","v":{"$error":"#REF!"}}]
[{"$error":"#REF!"},null,{"$f":"#REF!","v":{"$error":"#REF!"}},{"$f":"#REF!","v":{"$error":"#REF!"}},null,null,{"$f":"#REF!","v":{"$error":"#REF!"}},800001965,"http://www.xbrl.org/scheme/companyName",null,{"$f":"Periodos!$D$4","v":"2016-12-31"},{"$f":"#REF!","v":{"$error":"#REF!"}},{"$f":"#REF!","v":{"$error":"#REF!"}}]
[{"$error":"#REF!"},null,{"$f":"#REF!","v":{"$error":"#REF!"}},{"$f":"#REF!","v":{"$error":"#REF!"}},null,null,{"$f":"#REF!","v":{"$error":"#REF!"}},800001965,"http://www.xbrl.org/scheme/companyName",null,{"$f":"Periodos!$D$4","v":"2016-12-31"},{"$f":"#REF!","v":{"$error":"#REF!"}},{"$f":"#REF!","v":{"$error":"#REF!"}}]
[{"$error":"#REF!"},null,{"$f":"#REF!","v":{"$error":"#REF!"}},{"$f":"#REF!","v":{"$error":"#REF!"}},null,null,{"$f":"#REF!","v":{"$error":"#REF!"}},800001965,"http://www.xbrl.org/scheme/companyName",null,{"$f":"Periodos!$D$4","v":"2016-12-31"},{"$f":"#REF!","v":{"$error":"#REF!"}},{"$f":"#REF!","v":{"$error":"#REF!"}}]
[{"$error":"#REF!"},null,{"$f":"#REF!","v":{"$error":"#REF!"}},{"$f":"#REF!","v":{"$error":"#REF!"}},null,null,{"$f":"#REF!","v":{"$error":"#REF!"}},800001965,"http://www.xbrl.org/scheme/companyName",null,{"$f":"Periodos!$D$4","v":"2016-12-31"},{"$f":"#REF!","v":{"$error":"#REF!"}},{"$f":"#REF!","v":{"$error":"#REF!"}}]
[{"$error":"#REF!"},null,{"$f":"#REF!","v":{"$error":"#REF!"}},{"$f":"#REF!","v":{"$error":"#REF!"}},null,null,{"$f":"#REF!","v":{"$error":"#REF!"}},800001965,"http://www.xbrl.org/scheme/companyName",null,{"$f":"Periodos!$D$4","v":"2016-12-31"},{"$f":"#REF!","v":{"$error":"#REF!"}},{"$f":"#REF!","v":{"$error":"#REF!"}}]
[{"$error":"#REF!"},null,{"$f":"#REF!","v":{"$error":"#REF!"}},{"$f":"#REF!","v":{"$error":"#REF!"}},null,null,{"$f":"#REF!","v":{"$error":"#REF!"}},800001965,"http://www.xbrl.org/scheme/companyName",null,{"$f":"Periodos!$D$4","v":"2016-12-31"},{"$f":"#REF!","v":{"$error":"#REF!"}},{"$f":"#REF!","v":{"$error":"#REF!"}}]
[{"$error":"#REF!"},null,{"$f":"#REF!","v":{"$error":"#REF!"}},{"$f":"#REF!","v":{"$error":"#REF!"}},null,null,{"$f":"#REF!","v":{"$error":"#REF!"}},800001965,"http://www.xbrl.org/scheme/companyName",null,{"$f":"Periodos!$D$4","v":"2016-12-31"},{"$f":"#REF!","v":{"$error":"#REF!"}},{"$f":"#REF!","v":{"$error":"#REF!"}}]
[{"$error":"#REF!"},null,{"$f":"#REF!","v":{"$error":"#REF!"}},{"$f":"#REF!","v":{"$error":"#REF!"}},null,null,{"$f":"#REF!","v":{"$error":"#REF!"}},800001965,"http://www.xbrl.org/scheme/companyName",null,{"$f":"Periodos!$D$4","v":"2016-12-31"},{"$f":"#REF!","v":{"$error":"#REF!"}},{"$f":"#REF!","v":{"$error":"#REF!"}}]
[{"$error":"#REF!"},null,{"$f":"#REF!","v":{"$error":"#REF!"}},{"$f":"#REF!","v":{"$error":"#REF!"}},null,null,{"$f":"#REF!","v":{"$error":"#REF!"}},800001965,"http://www.xbrl.org/scheme/companyName",null,{"$f":"Periodos!$D$4","v":"2016-12-31"},{"$f":"#REF!","v":{"$error":"#REF!"}},{"$f":"#REF!","v":{"$error":"#REF!"}}]
[{"$error":"#REF!"},null,{"$f":"#REF!","v":{"$error":"#REF!"}},{"$f":"#REF!","v":{"$error":"#REF!"}},0,"peso",{"$f":"#REF!","v":{"$error":"#REF!"}},800001965,"http://www.xbrl.org/scheme/companyName",null,{"$f":"Periodos!$D$4","v":"2016-12-31"},{"$f":"#REF!","v":{"$error":"#REF!"}},{"$f":"#REF!","v":{"$error":"#REF!"}}]
["/*",null,"--99--"]
[{"$error":"#REF!"},null,{"$f":"#REF!","v":{"$error":"#REF!"}},{"$f":"#REF!","v":{"$error":"#REF!"}},null,null,{"$f":"#REF!","v":{"$error":"#REF!"}},800001965,"http://www.xbrl.org/scheme/companyName",null,{"$f":"Periodos!$D$4","v":"2016-12-31"},{"$f":"#REF!","v":{"$error":"#REF!"}},{"$f":"#REF!","v":{"$error":"#REF!"}}]
[{"$error":"#REF!"},null,{"$f":"#REF!","v":{"$error":"#REF!"}},{"$f":"#REF!","v":{"$error":"#REF!"}},null,null,{"$f":"#REF!","v":{"$error":"#REF!"}},800001965,"http://www.xbrl.org/scheme/companyName",null,{"$f":"Periodos!$D$4","v":"2016-12-31"},{"$f":"#REF!","v":{"$error":"#REF!"}},{"$f":"#REF!","v":{"$error":"#REF!"}}]
[{"$error":"#REF!"},null,{"$f":"#REF!","v":{"$error":"#REF!"}},{"$f":"#REF!","v":{"$error":"#REF!"}},null,null,{"$f":"#REF!","v":{"$error":"#REF!"}},800001965,"http://www.xbrl.org/scheme/companyName",null,{"$f":"Periodos!$D$4","v":"2016-12-31"},{"$f":"#REF!","v":{"$error":"#REF!"}},{"$f":"#REF!","v":{"$error":"#REF!"}}]
[{"$error":"#REF!"},null,{"$f":"#REF!","v":{"$error":"#REF!"}},{"$f":"#REF!","v":{"$error":"#REF!"}},null,null,{"$f":"#REF!","v":{"$error":"#REF!"}},800001965,"http://www.xbrl.org/scheme/companyName",null,{"$f":"Periodos!$D$4","v":"2016-12-31"},{"$f":"#REF!","v":{"$error":"#REF!"}},{"$f":"#REF!","v":{"$error":"#REF!"}}]
[{"$error":"#REF!"},null,{"$f":"#REF!","v":{"$error":"#REF!"}},{"$f":"#REF!","v":{"$error":"#REF!"}},null,null,{"$f":"#REF!","v":{"$error":"#REF!"}},800001965,"http://www.xbrl.org/scheme/companyName",null,{"$f":"Periodos!$D$4","v":"2016-12-31"},{"$f":"#REF!","v":{"$error":"#REF!"}},{"$f":"#REF!","v":{"$error":"#REF!"}}]
[{"$error":"#REF!"},null,{"$f":"#REF!","v":{"$error":"#REF!"}},{"$f":"#REF!","v":{"$error":"#REF!"}},null,null,{"$f":"#REF!","v":{"$error":"#REF!"}},800001965,"http://www.xbrl.org/scheme/companyName",null,{"$f":"Periodos!$D$4","v":"2016-12-31"},{"$f":"#REF!","v":{"$error":"#REF!"}},{"$f":"#REF!","v":{"$error":"#REF!"}}]
[{"$error":"#REF!"},null,{"$f":"#REF!","v":{"$error":"#REF!"}},{"$f":"#REF!","v":{"$error":"#REF!"}},null,null,{"$f":"#REF!","v":{"$error":"#REF!"}},800001965,"http://www.xbrl.org/scheme/companyName",null,{"$f":"Periodos!$D$4","v":"2016-12-31"},{"$f":"#REF!","v":{"$error":"#REF!"}},{"$f":"#REF!","v":{"$error":"#REF!"}}]
[{"$error":"#REF!"},null,{"$f":"#REF!","v":{"$error":"#REF!"}},{"$f":"#REF!","v":{"$error":"#REF!"}},null,null,{"$f":"#REF!","v":{"$error":"#REF!"}},800001965,"http://www.xbrl.org/scheme/companyName",null,{"$f":"Periodos!$D$4","v":"2016-12-31"},{"$f":"#REF!","v":{"$error":"#REF!"}},{"$f":"#REF!","v":{"$error":"#REF!"}}]
[{"$error":"#REF!"},null,{"$f":"#REF!","v":{"$error":"#REF!"}},{"$f":"#REF!","v":{"$error":"#REF!"}},null,null,{"$f":"#REF!","v":{"$error":"#REF!"}},800001965,"http://www.xbrl.org/scheme/companyName",null,{"$f":"Periodos!$D$4","v":"2016-12-31"},{"$f":"#REF!","v":{"$error":"#REF!"}},{"$f":"#REF!","v":{"$error":"#REF!"}}]
[{"$error":"#REF!"},null,{"$f":"#REF!","v":{"$error":"#REF!"}},{"$f":"#REF!","v":{"$error":"#REF!"}},null,null,{"$f":"#REF!","v":{"$error":"#REF!"}},800001965,"http://www.xbrl.org/scheme/companyName",null,{"$f":"Periodos!$D$4","v":"2016-12-31"},{"$f":"#REF!","v":{"$error":"#REF!"}},{"$f":"#REF!","v":{"$error":"#REF!"}}]
[{"$error":"#REF!"},null,{"$f":"#REF!","v":{"$error":"#REF!"}},{"$f":"#REF!","v":{"$error":"#REF!"}},null,null,{"$f":"#REF!","v":{"$error":"#REF!"}},800001965,"http://www.xbrl.org/scheme/companyName",null,{"$f":"Periodos!$D$4","v":"2016-12-31"},{"$f":"#REF!","v":{"$error":"#REF!"}},{"$f":"#REF!","v":{"$error":"#REF!"}}]
[{"$error":"#REF!"},null,{"$f":"#REF!","v":{"$error":"#REF!"}},{"$f":"#REF!","v":{"$error":"#REF!"}},0,"peso",{"$f":"#REF!","v":{"$error":"#REF!"}},800001965,"http://www.xbrl.org/scheme/companyName",null,{"$f":"Periodos!$D$4","v":"2016-12-31"},{"$f":"#REF!","v":{"$error":"#REF!"}},{"$f":"#REF!","v":{"$error":"#REF!"}}]
["/*",null,"--100--"]
[{"$error":"#REF!"},null,{"$f":"#REF!","v":{"$error":"#REF!"}},{"$f":"#REF!","v":{"$error":"#REF!"}},null,null,{"$f":"#REF!","v":{"$error":"#REF!"}},800001965,"http://www.xbrl.org/scheme/companyName",null,{"$f":"Periodos!$D$4","v":"2016-12-31"},{"$f":"#REF!","v":{"$error":"#REF!"}},{"$f":"#REF!","v":{"$error":"#REF!"}}]
[{"$error":"#REF!"},null,{"$f":"#REF!","v":{"$error":"#REF!"}},{"$f":"#REF!","v":{"$error":"#REF!"}},null,null,{"$f":"#REF!","v":{"$error":"#REF!"}},800001965,"http://www.xbrl.org/scheme/companyName",null,{"$f":"Periodos!$D$4","v":"2016-12-31"},{"$f":"#REF!","v":{"$error":"#REF!"}},{"$f":"#REF!","v":{"$error":"#REF!"}}]
[{"$error":"#REF!"},null,{"$f":"#REF!","v":{"$error":"#REF!"}},{"$f":"#REF!","v":{"$error":"#REF!"}},null,null,{"$f":"#REF!","v":{"$error":"#REF!"}},800001965,"http://www.xbrl.org/scheme/companyName",null,{"$f":"Periodos!$D$4","v":"2016-12-31"},{"$f":"#REF!","v":{"$error":"#REF!"}},{"$f":"#REF!","v":{"$error":"#REF!"}}]
[{"$error":"#REF!"},null,{"$f":"#REF!","v":{"$error":"#REF!"}},{"$f":"#REF!","v":{"$error":"#REF!"}},null,null,{"$f":"#REF!","v":{"$error":"#REF!"}},800001965,"http://www.xbrl.org/scheme/companyName",null,{"$f":"Periodos!$D$4","v":"2016-12-31"},{"$f":"#REF!","v":{"$error":"#REF!"}},{"$f":"#REF!","v":{"$error":"#REF!"}}]
[{"$error":"#REF!"},null,{"$f":"#REF!","v":{"$error":"#REF!"}},{"$f":"#REF!","v":{"$error":"#REF!"}},null,null,{"$f":"#REF!","v":{"$error":"#REF!"}},800001965,"http://www.xbrl.org/scheme/companyName",null,{"$f":"Periodos!$D$4","v":"2016-12-31"},{"$f":"#REF!","v":{"$error":"#REF!"}},{"$f":"#REF!","v":{"$error":"#REF!"}}]
[{"$error":"#REF!"},null,{"$f":"#REF!","v":{"$error":"#REF!"}},{"$f":"#REF!","v":{"$error":"#REF!"}},null,null,{"$f":"#REF!","v":{"$error":"#REF!"}},800001965,"http://www.xbrl.org/scheme/companyName",null,{"$f":"Periodos!$D$4","v":"2016-12-31"},{"$f":"#REF!","v":{"$error":"#REF!"}},{"$f":"#REF!","v":{"$error":"#REF!"}}]
[{"$error":"#REF!"},null,{"$f":"#REF!","v":{"$error":"#REF!"}},{"$f":"#REF!","v":{"$error":"#REF!"}},null,null,{"$f":"#REF!","v":{"$error":"#REF!"}},800001965,"http://www.xbrl.org/scheme/companyName",null,{"$f":"Periodos!$D$4","v":"2016-12-31"},{"$f":"#REF!","v":{"$error":"#REF!"}},{"$f":"#REF!","v":{"$error":"#REF!"}}]
[{"$error":"#REF!"},null,{"$f":"#REF!","v":{"$error":"#REF!"}},{"$f":"#REF!","v":{"$error":"#REF!"}},null,null,{"$f":"#REF!","v":{"$error":"#REF!"}},800001965,"http://www.xbrl.org/scheme/companyName",null,{"$f":"Periodos!$D$4","v":"2016-12-31"},{"$f":"#REF!","v":{"$error":"#REF!"}},{"$f":"#REF!","v":{"$error":"#REF!"}}]
[{"$error":"#REF!"},null,{"$f":"#REF!","v":{"$error":"#REF!"}},{"$f":"#REF!","v":{"$error":"#REF!"}},null,null,{"$f":"#REF!","v":{"$error":"#REF!"}},800001965,"http://www.xbrl.org/scheme/companyName",null,{"$f":"Periodos!$D$4","v":"2016-12-31"},{"$f":"#REF!","v":{"$error":"#REF!"}},{"$f":"#REF!","v":{"$error":"#REF!"}}]
[{"$error":"#REF!"},null,{"$f":"#REF!","v":{"$error":"#REF!"}},{"$f":"#REF!","v":{"$error":"#REF!"}},null,null,{"$f":"#REF!","v":{"$error":"#REF!"}},800001965,"http://www.xbrl.org/scheme/companyName",null,{"$f":"Periodos!$D$4","v":"2016-12-31"},{"$f":"#REF!","v":{"$error":"#REF!"}},{"$f":"#REF!","v":{"$error":"#REF!"}}]
[{"$error":"#REF!"},null,{"$f":"#REF!","v":{"$error":"#REF!"}},{"$f":"#REF!","v":{"$error":"#REF!"}},null,null,{"$f":"#REF!","v":{"$error":"#REF!"}},800001965,"http://www.xbrl.org/scheme/companyName",null,{"$f":"Periodos!$D$4","v":"2016-12-31"},{"$f":"#REF!","v":{"$error":"#REF!"}},{"$f":"#REF!","v":{"$error":"#REF!"}}]
[{"$error":"#REF!"},null,{"$f":"#REF!","v":{"$error":"#REF!"}},{"$f":"#REF!","v":{"$error":"#REF!"}},0,"peso",{"$f":"#REF!","v":{"$error":"#REF!"}},800001965,"http://www.xbrl.org/scheme/companyName",null,{"$f":"Periodos!$D$4","v":"2016-12-31"},{"$f":"#REF!","v":{"$error":"#REF!"}},{"$f":"#REF!","v":{"$error":"#REF!"}}]
["/*",null,"--101--"]
[{"$error":"#REF!"},null,{"$f":"#REF!","v":{"$error":"#REF!"}},{"$f":"#REF!","v":{"$error":"#REF!"}},null,null,{"$f":"#REF!","v":{"$error":"#REF!"}},800001965,"http://www.xbrl.org/scheme/companyName",null,{"$f":"Periodos!$D$4","v":"2016-12-31"},{"$f":"#REF!","v":{"$error":"#REF!"}},{"$f":"#REF!","v":{"$error":"#REF!"}}]
[{"$error":"#REF!"},null,{"$f":"#REF!","v":{"$error":"#REF!"}},{"$f":"#REF!","v":{"$error":"#REF!"}},null,null,{"$f":"#REF!","v":{"$error":"#REF!"}},800001965,"http://www.xbrl.org/scheme/companyName",null,{"$f":"Periodos!$D$4","v":"2016-12-31"},{"$f":"#REF!","v":{"$error":"#REF!"}},{"$f":"#REF!","v":{"$error":"#REF!"}}]
[{"$error":"#REF!"},null,{"$f":"#REF!","v":{"$error":"#REF!"}},{"$f":"#REF!","v":{"$error":"#REF!"}},null,null,{"$f":"#REF!","v":{"$error":"#REF!"}},800001965,"http://www.xbrl.org/scheme/companyName",null,{"$f":"Periodos!$D$4","v":"2016-12-31"},{"$f":"#REF!","v":{"$error":"#REF!"}},{"$f":"#REF!","v":{"$error":"#REF!"}}]
[{"$error":"#REF!"},null,{"$f":"#REF!","v":{"$error":"#REF!"}},{"$f":"#REF!","v":{"$error":"#REF!"}},null,null,{"$f":"#REF!","v":{"$error":"#REF!"}},800001965,"http://www.xbrl.org/scheme/companyName",null,{"$f":"Periodos!$D$4","v":"2016-12-31"},{"$f":"#REF!","v":{"$error":"#REF!"}},{"$f":"#REF!","v":{"$error":"#REF!"}}]
[{"$error":"#REF!"},null,{"$f":"#REF!","v":{"$error":"#REF!"}},{"$f":"#REF!","v":{"$error":"#REF!"}},null,null,{"$f":"#REF!","v":{"$error":"#REF!"}},800001965,"http://www.xbrl.org/scheme/companyName",null,{"$f":"Periodos!$D$4","v":"2016-12-31"},{"$f":"#REF!","v":{"$error":"#REF!"}},{"$f":"#REF!","v":{"$error":"#REF!"}}]
[{"$error":"#REF!"},null,{"$f":"#REF!","v":{"$error":"#REF!"}},{"$f":"#REF!","v":{"$error":"#REF!"}},null,null,{"$f":"#REF!","v":{"$error":"#REF!"}},800001965,"http://www.xbrl.org/scheme/companyName",null,{"$f":"Periodos!$D$4","v":"2016-12-31"},{"$f":"#REF!","v":{"$error":"#REF!"}},{"$f":"#REF!","v":{"$error":"#REF!"}}]
[{"$error":"#REF!"},null,{"$f":"#REF!","v":{"$error":"#REF!"}},{"$f":"#REF!","v":{"$error":"#REF!"}},null,null,{"$f":"#REF!","v":{"$error":"#REF!"}},800001965,"http://www.xbrl.org/scheme/companyName",null,{"$f":"Periodos!$D$4","v":"2016-12-31"},{"$f":"#REF!","v":{"$error":"#REF!"}},{"$f":"#REF!","v":{"$error":"#REF!"}}]
[{"$error":"#REF!"},null,{"$f":"#REF!","v":{"$error":"#REF!"}},{"$f":"#REF!","v":{"$error":"#REF!"}},null,null,{"$f":"#REF!","v":{"$error":"#REF!"}},800001965,"http://www.xbrl.org/scheme/companyName",null,{"$f":"Periodos!$D$4","v":"2016-12-31"},{"$f":"#REF!","v":{"$error":"#REF!"}},{"$f":"#REF!","v":{"$error":"#REF!"}}]
[{"$error":"#REF!"},null,{"$f":"#REF!","v":{"$error":"#REF!"}},{"$f":"#REF!","v":{"$error":"#REF!"}},null,null,{"$f":"#REF!","v":{"$error":"#REF!"}},800001965,"http://www.xbrl.org/scheme/companyName",null,{"$f":"Periodos!$D$4","v":"2016-12-31"},{"$f":"#REF!","v":{"$error":"#REF!"}},{"$f":"#REF!","v":{"$error":"#REF!"}}]
[{"$error":"#REF!"},null,{"$f":"#REF!","v":{"$error":"#REF!"}},{"$f":"#REF!","v":{"$error":"#REF!"}},null,null,{"$f":"#REF!","v":{"$error":"#REF!"}},800001965,"http://www.xbrl.org/scheme/companyName",null,{"$f":"Periodos!$D$4","v":"2016-12-31"},{"$f":"#REF!","v":{"$error":"#REF!"}},{"$f":"#REF!","v":{"$error":"#REF!"}}]
[{"$error":"#REF!"},null,{"$f":"#REF!","v":{"$error":"#REF!"}},{"$f":"#REF!","v":{"$error":"#REF!"}},null,null,{"$f":"#REF!","v":{"$error":"#REF!"}},800001965,"http://www.xbrl.org/scheme/companyName",null,{"$f":"Periodos!$D$4","v":"2016-12-31"},{"$f":"#REF!","v":{"$error":"#REF!"}},{"$f":"#REF!","v":{"$error":"#REF!"}}]
[{"$error":"#REF!"},null,{"$f":"#REF!","v":{"$error":"#REF!"}},{"$f":"#REF!","v":{"$error":"#REF!"}},0,"peso",{"$f":"#REF!","v":{"$error":"#REF!"}},800001965,"http://www.xbrl.org/scheme/companyName",null,{"$f":"Periodos!$D$4","v":"2016-12-31"},{"$f":"#REF!","v":{"$error":"#REF!"}},{"$f":"#REF!","v":{"$error":"#REF!"}}]
["/*",null,"--102--"]
[{"$error":"#REF!"},null,{"$f":"#REF!","v":{"$error":"#REF!"}},{"$f":"#REF!","v":{"$error":"#REF!"}},null,null,{"$f":"#REF!","v":{"$error":"#REF!"}},800001965,"http://www.xbrl.org/scheme/companyName",null,{"$f":"Periodos!$D$4","v":"2016-12-31"},{"$f":"#REF!","v":{"$error":"#REF!"}},{"$f":"#REF!","v":{"$error":"#REF!"}}]
[{"$error":"#REF!"},null,{"$f":"#REF!","v":{"$error":"#REF!"}},{"$f":"#REF!","v":{"$error":"#REF!"}},null,null,{"$f":"#REF!","v":{"$error":"#REF!"}},800001965,"http://www.xbrl.org/scheme/companyName",null,{"$f":"Periodos!$D$4","v":"2016-12-31"},{"$f":"#REF!","v":{"$error":"#REF!"}},{"$f":"#REF!","v":{"$error":"#REF!"}}]
[{"$error":"#REF!"},null,{"$f":"#REF!","v":{"$error":"#REF!"}},{"$f":"#REF!","v":{"$error":"#REF!"}},null,null,{"$f":"#REF!","v":{"$error":"#REF!"}},800001965,"http://www.xbrl.org/scheme/companyName",null,{"$f":"Periodos!$D$4","v":"2016-12-31"},{"$f":"#REF!","v":{"$error":"#REF!"}},{"$f":"#REF!","v":{"$error":"#REF!"}}]
[{"$error":"#REF!"},null,{"$f":"#REF!","v":{"$error":"#REF!"}},{"$f":"#REF!","v":{"$error":"#REF!"}},null,null,{"$f":"#REF!","v":{"$error":"#REF!"}},800001965,"http://www.xbrl.org/scheme/companyName",null,{"$f":"Periodos!$D$4","v":"2016-12-31"},{"$f":"#REF!","v":{"$error":"#REF!"}},{"$f":"#REF!","v":{"$error":"#REF!"}}]
[{"$error":"#REF!"},null,{"$f":"#REF!","v":{"$error":"#REF!"}},{"$f":"#REF!","v":{"$error":"#REF!"}},null,null,{"$f":"#REF!","v":{"$error":"#REF!"}},800001965,"http://www.xbrl.org/scheme/companyName",null,{"$f":"Periodos!$D$4","v":"2016-12-31"},{"$f":"#REF!","v":{"$error":"#REF!"}},{"$f":"#REF!","v":{"$error":"#REF!"}}]
[{"$error":"#REF!"},null,{"$f":"#REF!","v":{"$error":"#REF!"}},{"$f":"#REF!","v":{"$error":"#REF!"}},null,null,{"$f":"#REF!","v":{"$error":"#REF!"}},800001965,"http://www.xbrl.org/scheme/companyName",null,{"$f":"Periodos!$D$4","v":"2016-12-31"},{"$f":"#REF!","v":{"$error":"#REF!"}},{"$f":"#REF!","v":{"$error":"#REF!"}}]
[{"$error":"#REF!"},null,{"$f":"#REF!","v":{"$error":"#REF!"}},{"$f":"#REF!","v":{"$error":"#REF!"}},null,null,{"$f":"#REF!","v":{"$error":"#REF!"}},800001965,"http://www.xbrl.org/scheme/companyName",null,{"$f":"Periodos!$D$4","v":"2016-12-31"},{"$f":"#REF!","v":{"$error":"#REF!"}},{"$f":"#REF!","v":{"$error":"#REF!"}}]
[{"$error":"#REF!"},null,{"$f":"#REF!","v":{"$error":"#REF!"}},{"$f":"#REF!","v":{"$error":"#REF!"}},null,null,{"$f":"#REF!","v":{"$error":"#REF!"}},800001965,"http://www.xbrl.org/scheme/companyName",null,{"$f":"Periodos!$D$4","v":"2016-12-31"},{"$f":"#REF!","v":{"$error":"#REF!"}},{"$f":"#REF!","v":{"$error":"#REF!"}}]
[{"$error":"#REF!"},null,{"$f":"#REF!","v":{"$error":"#REF!"}},{"$f":"#REF!","v":{"$error":"#REF!"}},null,null,{"$f":"#REF!","v":{"$error":"#REF!"}},800001965,"http://www.xbrl.org/scheme/companyName",null,{"$f":"Periodos!$D$4","v":"2016-12-31"},{"$f":"#REF!","v":{"$error":"#REF!"}},{"$f":"#REF!","v":{"$error":"#REF!"}}]
[{"$error":"#REF!"},null,{"$f":"#REF!","v":{"$error":"#REF!"}},{"$f":"#REF!","v":{"$error":"#REF!"}},null,null,{"$f":"#REF!","v":{"$error":"#REF!"}},800001965,"http://www.xbrl.org/scheme/companyName",null,{"$f":"Periodos!$D$4","v":"2016-12-31"},{"$f":"#REF!","v":{"$error":"#REF!"}},{"$f":"#REF!","v":{"$error":"#REF!"}}]
[{"$error":"#REF!"},null,{"$f":"#REF!","v":{"$error":"#REF!"}},{"$f":"#REF!","v":{"$error":"#REF!"}},null,null,{"$f":"#REF!","v":{"$error":"#REF!"}},800001965,"http://www.xbrl.org/scheme/companyName",null,{"$f":"Periodos!$D$4","v":"2016-12-31"},{"$f":"#REF!","v":{"$error":"#REF!"}},{"$f":"#REF!","v":{"$error":"#REF!"}}]
[{"$f":"IF(G5089=\"\",\"/*\",\"\")","v":{"$error":"#REF!"}},null,{"$f":"#REF!","v":{"$error":"#REF!"}},{"$f":"#REF!","v":{"$error":"#REF!"}},0,"peso",{"$f":"#REF!","v":{"$error":"#REF!"}},800001965,"http://www.xbrl.org/scheme/companyName",null,{"$f":"Periodos!$D$4","v":"2016-12-31"},{"$f":"#REF!","v":{"$error":"#REF!"}},{"$f":"#REF!","v":{"$error":"#REF!"}}]
["/*",null,"--103--"]
[{"$error":"#REF!"},null,{"$f":"#REF!","v":{"$error":"#REF!"}},{"$f":"#REF!","v":{"$error":"#REF!"}},null,null,{"$f":"#REF!","v":{"$error":"#REF!"}},800001965,"http://www.xbrl.org/scheme/companyName",null,{"$f":"Periodos!$D$4","v":"2016-12-31"},{"$f":"#REF!","v":{"$error":"#REF!"}},{"$f":"#REF!","v":{"$error":"#REF!"}}]
[{"$error":"#REF!"},null,{"$f":"#REF!","v":{"$error":"#REF!"}},{"$f":"#REF!","v":{"$error":"#REF!"}},null,null,{"$f":"#REF!","v":{"$error":"#REF!"}},800001965,"http://www.xbrl.org/scheme/companyName",null,{"$f":"Periodos!$D$4","v":"2016-12-31"},{"$f":"#REF!","v":{"$error":"#REF!"}},{"$f":"#REF!","v":{"$error":"#REF!"}}]
[{"$error":"#REF!"},null,{"$f":"#REF!","v":{"$error":"#REF!"}},{"$f":"#REF!","v":{"$error":"#REF!"}},null,null,{"$f":"#REF!","v":{"$error":"#REF!"}},800001965,"http://www.xbrl.org/scheme/companyName",null,{"$f":"Periodos!$D$4","v":"2016-12-31"},{"$f":"#REF!","v":{"$error":"#REF!"}},{"$f":"#REF!","v":{"$error":"#REF!"}}]
[{"$error":"#REF!"},null,{"$f":"#REF!","v":{"$error":"#REF!"}},{"$f":"#REF!","v":{"$error":"#REF!"}},null,null,{"$f":"#REF!","v":{"$error":"#REF!"}},800001965,"http://www.xbrl.org/scheme/companyName",null,{"$f":"Periodos!$D$4","v":"2016-12-31"},{"$f":"#REF!","v":{"$error":"#REF!"}},{"$f":"#REF!","v":{"$error":"#REF!"}}]
[{"$error":"#REF!"},null,{"$f":"#REF!","v":{"$error":"#REF!"}},{"$f":"#REF!","v":{"$error":"#REF!"}},null,null,{"$f":"#REF!","v":{"$error":"#REF!"}},800001965,"http://www.xbrl.org/scheme/companyName",null,{"$f":"Periodos!$D$4","v":"2016-12-31"},{"$f":"#REF!","v":{"$error":"#REF!"}},{"$f":"#REF!","v":{"$error":"#REF!"}}]
[{"$error":"#REF!"},null,{"$f":"#REF!","v":{"$error":"#REF!"}},{"$f":"#REF!","v":{"$error":"#REF!"}},null,null,{"$f":"#REF!","v":{"$error":"#REF!"}},800001965,"http://www.xbrl.org/scheme/companyName",null,{"$f":"Periodos!$D$4","v":"2016-12-31"},{"$f":"#REF!","v":{"$error":"#REF!"}},{"$f":"#REF!","v":{"$error":"#REF!"}}]
[{"$error":"#REF!"},null,{"$f":"#REF!","v":{"$error":"#REF!"}},{"$f":"#REF!","v":{"$error":"#REF!"}},null,null,{"$f":"#REF!","v":{"$error":"#REF!"}},800001965,"http://www.xbrl.org/scheme/companyName",null,{"$f":"Periodos!$D$4","v":"2016-12-31"},{"$f":"#REF!","v":{"$error":"#REF!"}},{"$f":"#REF!","v":{"$error":"#REF!"}}]
[{"$error":"#REF!"},null,{"$f":"#REF!","v":{"$error":"#REF!"}},{"$f":"#REF!","v":{"$error":"#REF!"}},null,null,{"$f":"#REF!","v":{"$error":"#REF!"}},800001965,"http://www.xbrl.org/scheme/companyName",null,{"$f":"Periodos!$D$4","v":"2016-12-31"},{"$f":"#REF!","v":{"$error":"#REF!"}},{"$f":"#REF!","v":{"$error":"#REF!"}}]
[{"$error":"#REF!"},null,{"$f":"#REF!","v":{"$error":"#REF!"}},{"$f":"#REF!","v":{"$error":"#REF!"}},null,null,{"$f":"#REF!","v":{"$error":"#REF!"}},800001965,"http://www.xbrl.org/scheme/companyName",null,{"$f":"Periodos!$D$4","v":"2016-12-31"},{"$f":"#REF!","v":{"$error":"#REF!"}},{"$f":"#REF!","v":{"$error":"#REF!"}}]
[{"$error":"#REF!"},null,{"$f":"#REF!","v":{"$error":"#REF!"}},{"$f":"#REF!","v":{"$error":"#REF!"}},null,null,{"$f":"#REF!","v":{"$error":"#REF!"}},800001965,"http://www.xbrl.org/scheme/companyName",null,{"$f":"Periodos!$D$4","v":"2016-12-31"},{"$f":"#REF!","v":{"$error":"#REF!"}},{"$f":"#REF!","v":{"$error":"#REF!"}}]
[{"$error":"#REF!"},null,{"$f":"#REF!","v":{"$error":"#REF!"}},{"$f":"#REF!","v":{"$error":"#REF!"}},null,null,{"$f":"#REF!","v":{"$error":"#REF!"}},800001965,"http://www.xbrl.org/scheme/companyName",null,{"$f":"Periodos!$D$4","v":"2016-12-31"},{"$f":"#REF!","v":{"$error":"#REF!"}},{"$f":"#REF!","v":{"$error":"#REF!"}}]
[{"$error":"#REF!"},null,{"$f":"#REF!","v":{"$error":"#REF!"}},{"$f":"#REF!","v":{"$error":"#REF!"}},0,"peso",{"$f":"#REF!","v":{"$error":"#REF!"}},800001965,"http://www.xbrl.org/scheme/companyName",null,{"$f":"Periodos!$D$4","v":"2016-12-31"},{"$f":"#REF!","v":{"$error":"#REF!"}},{"$f":"#REF!","v":{"$error":"#REF!"}}]
["/*",null,"--104--"]
[{"$error":"#REF!"},null,{"$f":"#REF!","v":{"$error":"#REF!"}},{"$f":"#REF!","v":{"$error":"#REF!"}},null,null,{"$f":"#REF!","v":{"$error":"#REF!"}},800001965,"http://www.xbrl.org/scheme/companyName",null,{"$f":"Periodos!$D$4","v":"2016-12-31"},{"$f":"#REF!","v":{"$error":"#REF!"}},{"$f":"#REF!","v":{"$error":"#REF!"}}]
[{"$error":"#REF!"},null,{"$f":"#REF!","v":{"$error":"#REF!"}},{"$f":"#REF!","v":{"$error":"#REF!"}},null,null,{"$f":"#REF!","v":{"$error":"#REF!"}},800001965,"http://www.xbrl.org/scheme/companyName",null,{"$f":"Periodos!$D$4","v":"2016-12-31"},{"$f":"#REF!","v":{"$error":"#REF!"}},{"$f":"#REF!","v":{"$error":"#REF!"}}]
[{"$error":"#REF!"},null,{"$f":"#REF!","v":{"$error":"#REF!"}},{"$f":"#REF!","v":{"$error":"#REF!"}},null,null,{"$f":"#REF!","v":{"$error":"#REF!"}},800001965,"http://www.xbrl.org/scheme/companyName",null,{"$f":"Periodos!$D$4","v":"2016-12-31"},{"$f":"#REF!","v":{"$error":"#REF!"}},{"$f":"#REF!","v":{"$error":"#REF!"}}]
[{"$error":"#REF!"},null,{"$f":"#REF!","v":{"$error":"#REF!"}},{"$f":"#REF!","v":{"$error":"#REF!"}},null,null,{"$f":"#REF!","v":{"$error":"#REF!"}},800001965,"http://www.xbrl.org/scheme/companyName",null,{"$f":"Periodos!$D$4","v":"2016-12-31"},{"$f":"#REF!","v":{"$error":"#REF!"}},{"$f":"#REF!","v":{"$error":"#REF!"}}]
[{"$error":"#REF!"},null,{"$f":"#REF!","v":{"$error":"#REF!"}},{"$f":"#REF!","v":{"$error":"#REF!"}},null,null,{"$f":"#REF!","v":{"$error":"#REF!"}},800001965,"http://www.xbrl.org/scheme/companyName",null,{"$f":"Periodos!$D$4","v":"2016-12-31"},{"$f":"#REF!","v":{"$error":"#REF!"}},{"$f":"#REF!","v":{"$error":"#REF!"}}]
[{"$error":"#REF!"},null,{"$f":"#REF!","v":{"$error":"#REF!"}},{"$f":"#REF!","v":{"$error":"#REF!"}},null,null,{"$f":"#REF!","v":{"$error":"#REF!"}},800001965,"http://www.xbrl.org/scheme/companyName",null,{"$f":"Periodos!$D$4","v":"2016-12-31"},{"$f":"#REF!","v":{"$error":"#REF!"}},{"$f":"#REF!","v":{"$error":"#REF!"}}]
[{"$error":"#REF!"},null,{"$f":"#REF!","v":{"$error":"#REF!"}},{"$f":"#REF!","v":{"$error":"#REF!"}},null,null,{"$f":"#REF!","v":{"$error":"#REF!"}},800001965,"http://www.xbrl.org/scheme/companyName",null,{"$f":"Periodos!$D$4","v":"2016-12-31"},{"$f":"#REF!","v":{"$error":"#REF!"}},{"$f":"#REF!","v":{"$error":"#REF!"}}]
[{"$error":"#REF!"},null,{"$f":"#REF!","v":{"$error":"#REF!"}},{"$f":"#REF!","v":{"$error":"#REF!"}},null,null,{"$f":"#REF!","v":{"$error":"#REF!"}},800001965,"http://www.xbrl.org/scheme/companyName",null,{"$f":"Periodos!$D$4","v":"2016-12-31"},{"$f":"#REF!","v":{"$error":"#REF!"}},{"$f":"#REF!","v":{"$error":"#REF!"}}]
[{"$error":"#REF!"},null,{"$f":"#REF!","v":{"$error":"#REF!"}},{"$f":"#REF!","v":{"$error":"#REF!"}},null,null,{"$f":"#REF!","v":{"$error":"#REF!"}},800001965,"http://www.xbrl.org/scheme/companyName",null,{"$f":"Periodos!$D$4","v":"2016-12-31"},{"$f":"#REF!","v":{"$error":"#REF!"}},{"$f":"#REF!","v":{"$error":"#REF!"}}]
[{"$error":"#REF!"},null,{"$f":"#REF!","v":{"$error":"#REF!"}},{"$f":"#REF!","v":{"$error":"#REF!"}},null,null,{"$f":"#REF!","v":{"$error":"#REF!"}},800001965,"http://www.xbrl.org/scheme/companyName",null,{"$f":"Periodos!$D$4","v":"2016-12-31"},{"$f":"#REF!","v":{"$error":"#REF!"}},{"$f":"#REF!","v":{"$error":"#REF!"}}]
[{"$error":"#REF!"},null,{"$f":"#REF!","v":{"$error":"#REF!"}},{"$f":"#REF!","v":{"$error":"#REF!"}},null,null,{"$f":"#REF!","v":{"$error":"#REF!"}},800001965,"http://www.xbrl.org/scheme/companyName",null,{"$f":"Periodos!$D$4","v":"2016-12-31"},{"$f":"#REF!","v":{"$error":"#REF!"}},{"$f":"#REF!","v":{"$error":"#REF!"}}]
[{"$error":"#REF!"},null,{"$f":"#REF!","v":{"$error":"#REF!"}},{"$f":"#REF!","v":{"$error":"#REF!"}},0,"peso",{"$f":"#REF!","v":{"$error":"#REF!"}},800001965,"http://www.xbrl.org/scheme/companyName",null,{"$f":"Periodos!$D$4","v":"2016-12-31"},{"$f":"#REF!","v":{"$error":"#REF!"}},{"$f":"#REF!","v":{"$error":"#REF!"}}]
["/*",null,"--105--"]
[{"$error":"#REF!"},null,{"$f":"#REF!","v":{"$error":"#REF!"}},{"$f":"#REF!","v":{"$error":"#REF!"}},null,null,{"$f":"#REF!","v":{"$error":"#REF!"}},800001965,"http://www.xbrl.org/scheme/companyName",null,{"$f":"Periodos!$D$4","v":"2016-12-31"},{"$f":"#REF!","v":{"$error":"#REF!"}},{"$f":"#REF!","v":{"$error":"#REF!"}}]
[{"$error":"#REF!"},null,{"$f":"#REF!","v":{"$error":"#REF!"}},{"$f":"#REF!","v":{"$error":"#REF!"}},null,null,{"$f":"#REF!","v":{"$error":"#REF!"}},800001965,"http://www.xbrl.org/scheme/companyName",null,{"$f":"Periodos!$D$4","v":"2016-12-31"},{"$f":"#REF!","v":{"$error":"#REF!"}},{"$f":"#REF!","v":{"$error":"#REF!"}}]
[{"$error":"#REF!"},null,{"$f":"#REF!","v":{"$error":"#REF!"}},{"$f":"#REF!","v":{"$error":"#REF!"}},null,null,{"$f":"#REF!","v":{"$error":"#REF!"}},800001965,"http://www.xbrl.org/scheme/companyName",null,{"$f":"Periodos!$D$4","v":"2016-12-31"},{"$f":"#REF!","v":{"$error":"#REF!"}},{"$f":"#REF!","v":{"$error":"#REF!"}}]
[{"$error":"#REF!"},null,{"$f":"#REF!","v":{"$error":"#REF!"}},{"$f":"#REF!","v":{"$error":"#REF!"}},null,null,{"$f":"#REF!","v":{"$error":"#REF!"}},800001965,"http://www.xbrl.org/scheme/companyName",null,{"$f":"Periodos!$D$4","v":"2016-12-31"},{"$f":"#REF!","v":{"$error":"#REF!"}},{"$f":"#REF!","v":{"$error":"#REF!"}}]
[{"$error":"#REF!"},null,{"$f":"#REF!","v":{"$error":"#REF!"}},{"$f":"#REF!","v":{"$error":"#REF!"}},null,null,{"$f":"#REF!","v":{"$error":"#REF!"}},800001965,"http://www.xbrl.org/scheme/companyName",null,{"$f":"Periodos!$D$4","v":"2016-12-31"},{"$f":"#REF!","v":{"$error":"#REF!"}},{"$f":"#REF!","v":{"$error":"#REF!"}}]
[{"$error":"#REF!"},null,{"$f":"#REF!","v":{"$error":"#REF!"}},{"$f":"#REF!","v":{"$error":"#REF!"}},null,null,{"$f":"#REF!","v":{"$error":"#REF!"}},800001965,"http://www.xbrl.org/scheme/companyName",null,{"$f":"Periodos!$D$4","v":"2016-12-31"},{"$f":"#REF!","v":{"$error":"#REF!"}},{"$f":"#REF!","v":{"$error":"#REF!"}}]
[{"$error":"#REF!"},null,{"$f":"#REF!","v":{"$error":"#REF!"}},{"$f":"#REF!","v":{"$error":"#REF!"}},null,null,{"$f":"#REF!","v":{"$error":"#REF!"}},800001965,"http://www.xbrl.org/scheme/companyName",null,{"$f":"Periodos!$D$4","v":"2016-12-31"},{"$f":"#REF!","v":{"$error":"#REF!"}},{"$f":"#REF!","v":{"$error":"#REF!"}}]
[{"$error":"#REF!"},null,{"$f":"#REF!","v":{"$error":"#REF!"}},{"$f":"#REF!","v":{"$error":"#REF!"}},null,null,{"$f":"#REF!","v":{"$error":"#REF!"}},800001965,"http://www.xbrl.org/scheme/companyName",null,{"$f":"Periodos!$D$4","v":"2016-12-31"},{"$f":"#REF!","v":{"$error":"#REF!"}},{"$f":"#REF!","v":{"$error":"#REF!"}}]
[{"$error":"#REF!"},null,{"$f":"#REF!","v":{"$error":"#REF!"}},{"$f":"#REF!","v":{"$error":"#REF!"}},null,null,{"$f":"#REF!","v":{"$error":"#REF!"}},800001965,"http://www.xbrl.org/scheme/companyName",null,{"$f":"Periodos!$D$4","v":"2016-12-31"},{"$f":"#REF!","v":{"$error":"#REF!"}},{"$f":"#REF!","v":{"$error":"#REF!"}}]
[{"$error":"#REF!"},null,{"$f":"#REF!","v":{"$error":"#REF!"}},{"$f":"#REF!","v":{"$error":"#REF!"}},null,null,{"$f":"#REF!","v":{"$error":"#REF!"}},800001965,"http://www.xbrl.org/scheme/companyName",null,{"$f":"Periodos!$D$4","v":"2016-12-31"},{"$f":"#REF!","v":{"$error":"#REF!"}},{"$f":"#REF!","v":{"$error":"#REF!"}}]
[{"$error":"#REF!"},null,{"$f":"#REF!","v":{"$error":"#REF!"}},{"$f":"#REF!","v":{"$error":"#REF!"}},null,null,{"$f":"#REF!","v":{"$error":"#REF!"}},800001965,"http://www.xbrl.org/scheme/companyName",null,{"$f":"Periodos!$D$4","v":"2016-12-31"},{"$f":"#REF!","v":{"$error":"#REF!"}},{"$f":"#REF!","v":{"$error":"#REF!"}}]
[{"$error":"#REF!"},null,{"$f":"#REF!","v":{"$error":"#REF!"}},{"$f":"#REF!","v":{"$error":"#REF!"}},0,"peso",{"$f":"#REF!","v":{"$error":"#REF!"}},800001965,"http://www.xbrl.org/scheme/companyName",null,{"$f":"Periodos!$D$4","v":"2016-12-31"},{"$f":"#REF!","v":{"$error":"#REF!"}},{"$f":"#REF!","v":{"$error":"#REF!"}}]
["/*",null,"--106--"]
["/*",null,{"$f":"#REF!","v":{"$error":"#REF!"}},{"$f":"#REF!","v":{"$error":"#REF!"}}]
["/*",null,{"$f":"#REF!","v":{"$error":"#REF!"}},{"$f":"#REF!","v":{"$error":"#REF!"}}]
["/*",null,{"$f":"#REF!","v":{"$error":"#REF!"}},{"$f":"#REF!","v":{"$error":"#REF!"}}]
["/*",null,{"$f":"#REF!","v":{"$error":"#REF!"}},{"$f":"#REF!","v":{"$error":"#REF!"}}]
["/*",null,{"$f":"#REF!","v":{"$error":"#REF!"}},{"$f":"#REF!","v":{"$error":"#REF!"}}]
["/*",null,{"$f":"#REF!","v":{"$error":"#REF!"}},{"$f":"#REF!","v":{"$error":"#REF!"}}]
["/*",null,{"$f":"#REF!","v":{"$error":"#REF!"}},{"$f":"#REF!","v":{"$error":"#REF!"}}]
["/*",null,{"$f":"#REF!","v":{"$error":"#REF!"}},{"$f":"#REF!","v":{"$error":"#REF!"}}]
["/*",null,{"$f":"#REF!","v":{"$error":"#REF!"}},{"$f":"#REF!","v":{"$error":"#REF!"}}]
["/*",null,{"$f":"#REF!","v":{"$error":"#REF!"}},{"$f":"#REF!","v":{"$error":"#REF!"}}]
["/*",null,{"$f":"#REF!","v":{"$error":"#REF!"}},{"$f":"#REF!","v":{"$error":"#REF!"}}]
[{"$error":"#REF!"},null,{"$f":"#REF!","v":{"$error":"#REF!"}},{"$f":"#REF!","v":{"$error":"#REF!"}},0,"peso",{"$f":"#REF!","v":{"$error":"#REF!"}},800001965,"http://www.xbrl.org/scheme/companyName",null,{"$f":"Periodos!$D$4","v":"2016-12-31"},{"$f":"#REF!","v":{"$error":"#REF!"}},{"$f":"#REF!","v":{"$error":"#REF!"}}]
["/*",null,"--107--"]
["/*",null,{"$f":"#REF!","v":{"$error":"#REF!"}},{"$f":"#REF!","v":{"$error":"#REF!"}}]
["/*",null,{"$f":"#REF!","v":{"$error":"#REF!"}},{"$f":"#REF!","v":{"$error":"#REF!"}}]
["/*",null,{"$f":"#REF!","v":{"$error":"#REF!"}},{"$f":"#REF!","v":{"$error":"#REF!"}}]
["/*",null,{"$f":"#REF!","v":{"$error":"#REF!"}},{"$f":"#REF!","v":{"$error":"#REF!"}}]
["/*",null,{"$f":"#REF!","v":{"$error":"#REF!"}},{"$f":"#REF!","v":{"$error":"#REF!"}}]
["/*",null,{"$f":"#REF!","v":{"$error":"#REF!"}},{"$f":"#REF!","v":{"$error":"#REF!"}}]
["/*",null,{"$f":"#REF!","v":{"$error":"#REF!"}},{"$f":"#REF!","v":{"$error":"#REF!"}}]
["/*",null,{"$f":"#REF!","v":{"$error":"#REF!"}},{"$f":"#REF!","v":{"$error":"#REF!"}}]
["/*",null,{"$f":"#REF!","v":{"$error":"#REF!"}},{"$f":"#REF!","v":{"$error":"#REF!"}}]
["/*",null,{"$f":"#REF!","v":{"$error":"#REF!"}},{"$f":"#REF!","v":{"$error":"#REF!"}}]
[{"$f":"IF(G5153=\"\",\"/*\",\"\")","v":"/*"},null,{"$f":"#REF!","v":{"$error":"#REF!"}},{"$f":"#REF!","v":{"$error":"#REF!"}}]
[{"$error":"#REF!"},null,{"$f":"#REF!","v":{"$error":"#REF!"}},{"$f":"#REF!","v":{"$error":"#REF!"}},0,"peso",{"$f":"#REF!","v":{"$error":"#REF!"}},800001965,"http://www.xbrl.org/scheme/companyName",null,{"$f":"Periodos!$D$4","v":"2016-12-31"},{"$f":"#REF!","v":{"$error":"#REF!"}},{"$f":"#REF!","v":{"$error":"#REF!"}}]
["/*",null,"--108--"]
["/*",null,{"$f":"#REF!","v":{"$error":"#REF!"}},{"$f":"#REF!","v":{"$error":"#REF!"}}]
["/*",null,{"$f":"#REF!","v":{"$error":"#REF!"}},{"$f":"#REF!","v":{"$error":"#REF!"}}]
["/*",null,{"$f":"#REF!","v":{"$error":"#REF!"}},{"$f":"#REF!","v":{"$error":"#REF!"}}]
["/*",null,{"$f":"#REF!","v":{"$error":"#REF!"}},{"$f":"#REF!","v":{"$error":"#REF!"}}]
["/*",null,{"$f":"#REF!","v":{"$error":"#REF!"}},{"$f":"#REF!","v":{"$error":"#REF!"}}]
["/*",null,{"$f":"#REF!","v":{"$error":"#REF!"}},{"$f":"#REF!","v":{"$error":"#REF!"}}]
["/*",null,{"$f":"#REF!","v":{"$error":"#REF!"}},{"$f":"#REF!","v":{"$error":"#REF!"}}]
["/*",null,{"$f":"#REF!","v":{"$error":"#REF!"}},{"$f":"#REF!","v":{"$error":"#REF!"}}]
["/*",null,{"$f":"#REF!","v":{"$error":"#REF!"}},{"$f":"#REF!","v":{"$error":"#REF!"}}]
["/*",null,{"$f":"#REF!","v":{"$error":"#REF!"}},{"$f":"#REF!","v":{"$error":"#REF!"}}]
["/*",null,{"$f":"#REF!","v":{"$error":"#REF!"}},{"$f":"#REF!","v":{"$error":"#REF!"}}]
["/*",null,{"$f":"#REF!","v":{"$error":"#REF!"}},{"$f":"#REF!","v":{"$error":"#REF!"}}]
["/*",null,"--109--"]
[{"$error":"#REF!"},null,{"$f":"#REF!","v":{"$error":"#REF!"}},{"$f":"#REF!","v":{"$error":"#REF!"}},null,null,{"$f":"#REF!","v":{"$error":"#REF!"}},800001965,"http://www.xbrl.org/scheme/companyName",null,{"$f":"Periodos!$D$4","v":"2016-12-31"},{"$f":"#REF!","v":{"$error":"#REF!"}},{"$f":"#REF!","v":{"$error":"#REF!"}}]
[{"$error":"#REF!"},null,{"$f":"#REF!","v":{"$error":"#REF!"}},{"$f":"#REF!","v":{"$error":"#REF!"}},null,null,{"$f":"#REF!","v":{"$error":"#REF!"}},800001965,"http://www.xbrl.org/scheme/companyName",null,{"$f":"Periodos!$D$4","v":"2016-12-31"},{"$f":"#REF!","v":{"$error":"#REF!"}},{"$f":"#REF!","v":{"$error":"#REF!"}}]
[{"$error":"#REF!"},null,{"$f":"#REF!","v":{"$error":"#REF!"}},{"$f":"#REF!","v":{"$error":"#REF!"}},null,null,{"$f":"#REF!","v":{"$error":"#REF!"}},800001965,"http://www.xbrl.org/scheme/companyName",null,{"$f":"Periodos!$D$4","v":"2016-12-31"},{"$f":"#REF!","v":{"$error":"#REF!"}},{"$f":"#REF!","v":{"$error":"#REF!"}}]
[{"$error":"#REF!"},null,{"$f":"#REF!","v":{"$error":"#REF!"}},{"$f":"#REF!","v":{"$error":"#REF!"}},null,null,{"$f":"#REF!","v":{"$error":"#REF!"}},800001965,"http://www.xbrl.org/scheme/companyName",null,{"$f":"Periodos!$D$4","v":"2016-12-31"},{"$f":"#REF!","v":{"$error":"#REF!"}},{"$f":"#REF!","v":{"$error":"#REF!"}}]
[{"$error":"#REF!"},null,{"$f":"#REF!","v":{"$error":"#REF!"}},{"$f":"#REF!","v":{"$error":"#REF!"}},null,null,{"$f":"#REF!","v":{"$error":"#REF!"}},800001965,"http://www.xbrl.org/scheme/companyName",null,{"$f":"Periodos!$D$4","v":"2016-12-31"},{"$f":"#REF!","v":{"$error":"#REF!"}},{"$f":"#REF!","v":{"$error":"#REF!"}}]
[{"$error":"#REF!"},null,{"$f":"#REF!","v":{"$error":"#REF!"}},{"$f":"#REF!","v":{"$error":"#REF!"}},null,null,{"$f":"#REF!","v":{"$error":"#REF!"}},800001965,"http://www.xbrl.org/scheme/companyName",null,{"$f":"Periodos!$D$4","v":"2016-12-31"},{"$f":"#REF!","v":{"$error":"#REF!"}},{"$f":"#REF!","v":{"$error":"#REF!"}}]
[{"$error":"#REF!"},null,{"$f":"#REF!","v":{"$error":"#REF!"}},{"$f":"#REF!","v":{"$error":"#REF!"}},null,null,{"$f":"#REF!","v":{"$error":"#REF!"}},800001965,"http://www.xbrl.org/scheme/companyName",null,{"$f":"Periodos!$D$4","v":"2016-12-31"},{"$f":"#REF!","v":{"$error":"#REF!"}},{"$f":"#REF!","v":{"$error":"#REF!"}}]
[{"$error":"#REF!"},null,{"$f":"#REF!","v":{"$error":"#REF!"}},{"$f":"#REF!","v":{"$error":"#REF!"}},null,null,{"$f":"#REF!","v":{"$error":"#REF!"}},800001965,"http://www.xbrl.org/scheme/companyName",null,{"$f":"Periodos!$D$4","v":"2016-12-31"},{"$f":"#REF!","v":{"$error":"#REF!"}},{"$f":"#REF!","v":{"$error":"#REF!"}}]
[{"$error":"#REF!"},null,{"$f":"#REF!","v":{"$error":"#REF!"}},{"$f":"#REF!","v":{"$error":"#REF!"}},null,null,{"$f":"#REF!","v":{"$error":"#REF!"}},800001965,"http://www.xbrl.org/scheme/companyName",null,{"$f":"Periodos!$D$4","v":"2016-12-31"},{"$f":"#REF!","v":{"$error":"#REF!"}},{"$f":"#REF!","v":{"$error":"#REF!"}}]
[{"$error":"#REF!"},null,{"$f":"#REF!","v":{"$error":"#REF!"}},{"$f":"#REF!","v":{"$error":"#REF!"}},null,null,{"$f":"#REF!","v":{"$error":"#REF!"}},800001965,"http://www.xbrl.org/scheme/companyName",null,{"$f":"Periodos!$D$4","v":"2016-12-31"},{"$f":"#REF!","v":{"$error":"#REF!"}},{"$f":"#REF!","v":{"$error":"#REF!"}}]
[{"$error":"#REF!"},null,{"$f":"#REF!","v":{"$error":"#REF!"}},{"$f":"#REF!","v":{"$error":"#REF!"}},null,null,{"$f":"#REF!","v":{"$error":"#REF!"}},800001965,"http://www.xbrl.org/scheme/companyName",null,{"$f":"Periodos!$D$4","v":"2016-12-31"},{"$f":"#REF!","v":{"$error":"#REF!"}},{"$f":"#REF!","v":{"$error":"#REF!"}}]
[{"$error":"#REF!"},null,{"$f":"#REF!","v":{"$error":"#REF!"}},{"$f":"#REF!","v":{"$error":"#REF!"}},0,"peso",{"$f":"#REF!","v":{"$error":"#REF!"}},800001965,"http://www.xbrl.org/scheme/companyName",null,{"$f":"Periodos!$D$4","v":"2016-12-31"},{"$f":"#REF!","v":{"$error":"#REF!"}},{"$f":"#REF!","v":{"$error":"#REF!"}}]
["/*",null,"--110--"]
[{"$error":"#REF!"},null,{"$f":"#REF!","v":{"$error":"#REF!"}},{"$f":"#REF!","v":{"$error":"#REF!"}},null,null,{"$f":"#REF!","v":{"$error":"#REF!"}},800001965,"http://www.xbrl.org/scheme/companyName",null,{"$f":"Periodos!$D$4","v":"2016-12-31"},{"$f":"#REF!","v":{"$error":"#REF!"}},{"$f":"#REF!","v":{"$error":"#REF!"}}]
[{"$error":"#REF!"},null,{"$f":"#REF!","v":{"$error":"#REF!"}},{"$f":"#REF!","v":{"$error":"#REF!"}},null,null,{"$f":"#REF!","v":{"$error":"#REF!"}},800001965,"http://www.xbrl.org/scheme/companyName",null,{"$f":"Periodos!$D$4","v":"2016-12-31"},{"$f":"#REF!","v":{"$error":"#REF!"}},{"$f":"#REF!","v":{"$error":"#REF!"}}]
[{"$error":"#REF!"},null,{"$f":"#REF!","v":{"$error":"#REF!"}},{"$f":"#REF!","v":{"$error":"#REF!"}},null,null,{"$f":"#REF!","v":{"$error":"#REF!"}},800001965,"http://www.xbrl.org/scheme/companyName",null,{"$f":"Periodos!$D$4","v":"2016-12-31"},{"$f":"#REF!","v":{"$error":"#REF!"}},{"$f":"#REF!","v":{"$error":"#REF!"}}]
[{"$error":"#REF!"},null,{"$f":"#REF!","v":{"$error":"#REF!"}},{"$f":"#REF!","v":{"$error":"#REF!"}},null,null,{"$f":"#REF!","v":{"$error":"#REF!"}},800001965,"http://www.xbrl.org/scheme/companyName",null,{"$f":"Periodos!$D$4","v":"2016-12-31"},{"$f":"#REF!","v":{"$error":"#REF!"}},{"$f":"#REF!","v":{"$error":"#REF!"}}]
[{"$error":"#REF!"},null,{"$f":"#REF!","v":{"$error":"#REF!"}},{"$f":"#REF!","v":{"$error":"#REF!"}},null,null,{"$f":"#REF!","v":{"$error":"#REF!"}},800001965,"http://www.xbrl.org/scheme/companyName",null,{"$f":"Periodos!$D$4","v":"2016-12-31"},{"$f":"#REF!","v":{"$error":"#REF!"}},{"$f":"#REF!","v":{"$error":"#REF!"}}]
[{"$error":"#REF!"},null,{"$f":"#REF!","v":{"$error":"#REF!"}},{"$f":"#REF!","v":{"$error":"#REF!"}},null,null,{"$f":"#REF!","v":{"$error":"#REF!"}},800001965,"http://www.xbrl.org/scheme/companyName",null,{"$f":"Periodos!$D$4","v":"2016-12-31"},{"$f":"#REF!","v":{"$error":"#REF!"}},{"$f":"#REF!","v":{"$error":"#REF!"}}]
[{"$error":"#REF!"},null,{"$f":"#REF!","v":{"$error":"#REF!"}},{"$f":"#REF!","v":{"$error":"#REF!"}},null,null,{"$f":"#REF!","v":{"$error":"#REF!"}},800001965,"http://www.xbrl.org/scheme/companyName",null,{"$f":"Periodos!$D$4","v":"2016-12-31"},{"$f":"#REF!","v":{"$error":"#REF!"}},{"$f":"#REF!","v":{"$error":"#REF!"}}]
[{"$error":"#REF!"},null,{"$f":"#REF!","v":{"$error":"#REF!"}},{"$f":"#REF!","v":{"$error":"#REF!"}},null,null,{"$f":"#REF!","v":{"$error":"#REF!"}},800001965,"http://www.xbrl.org/scheme/companyName",null,{"$f":"Periodos!$D$4","v":"2016-12-31"},{"$f":"#REF!","v":{"$error":"#REF!"}},{"$f":"#REF!","v":{"$error":"#REF!"}}]
[{"$error":"#REF!"},null,{"$f":"#REF!","v":{"$error":"#REF!"}},{"$f":"#REF!","v":{"$error":"#REF!"}},null,null,{"$f":"#REF!","v":{"$error":"#REF!"}},800001965,"http://www.xbrl.org/scheme/companyName",null,{"$f":"Periodos!$D$4","v":"2016-12-31"},{"$f":"#REF!","v":{"$error":"#REF!"}},{"$f":"#REF!","v":{"$error":"#REF!"}}]
[{"$error":"#REF!"},null,{"$f":"#REF!","v":{"$error":"#REF!"}},{"$f":"#REF!","v":{"$error":"#REF!"}},null,null,{"$f":"#REF!","v":{"$error":"#REF!"}},800001965,"http://www.xbrl.org/scheme/companyName",null,{"$f":"Periodos!$D$4","v":"2016-12-31"},{"$f":"#REF!","v":{"$error":"#REF!"}},{"$f":"#REF!","v":{"$error":"#REF!"}}]
[{"$error":"#REF!"},null,{"$f":"#REF!","v":{"$error":"#REF!"}},{"$f":"#REF!","v":{"$error":"#REF!"}},null,null,{"$f":"#REF!","v":{"$error":"#REF!"}},800001965,"http://www.xbrl.org/scheme/companyName",null,{"$f":"Periodos!$D$4","v":"2016-12-31"},{"$f":"#REF!","v":{"$error":"#REF!"}},{"$f":"#REF!","v":{"$error":"#REF!"}}]
[{"$error":"#REF!"},null,{"$f":"#REF!","v":{"$error":"#REF!"}},{"$f":"#REF!","v":{"$error":"#REF!"}},0,"peso",{"$f":"#REF!","v":{"$error":"#REF!"}},800001965,"http://www.xbrl.org/scheme/companyName",null,{"$f":"Periodos!$D$4","v":"2016-12-31"},{"$f":"#REF!","v":{"$error":"#REF!"}},{"$f":"#REF!","v":{"$error":"#REF!"}}]
["/*",null,"--111--"]
[{"$error":"#REF!"},null,{"$f":"#REF!","v":{"$error":"#REF!"}},{"$f":"#REF!","v":{"$error":"#REF!"}},null,null,{"$f":"#REF!","v":{"$error":"#REF!"}},800001965,"http://www.xbrl.org/scheme/companyName",null,{"$f":"Periodos!$D$4","v":"2016-12-31"},{"$f":"#REF!","v":{"$error":"#REF!"}},{"$f":"#REF!","v":{"$error":"#REF!"}}]
[{"$error":"#REF!"},null,{"$f":"#REF!","v":{"$error":"#REF!"}},{"$f":"#REF!","v":{"$error":"#REF!"}},null,null,{"$f":"#REF!","v":{"$error":"#REF!"}},800001965,"http://www.xbrl.org/scheme/companyName",null,{"$f":"Periodos!$D$4","v":"2016-12-31"},{"$f":"#REF!","v":{"$error":"#REF!"}},{"$f":"#REF!","v":{"$error":"#REF!"}}]
[{"$error":"#REF!"},null,{"$f":"#REF!","v":{"$error":"#REF!"}},{"$f":"#REF!","v":{"$error":"#REF!"}},null,null,{"$f":"#REF!","v":{"$error":"#REF!"}},800001965,"http://www.xbrl.org/scheme/companyName",null,{"$f":"Periodos!$D$4","v":"2016-12-31"},{"$f":"#REF!","v":{"$error":"#REF!"}},{"$f":"#REF!","v":{"$error":"#REF!"}}]
[{"$error":"#REF!"},null,{"$f":"#REF!","v":{"$error":"#REF!"}},{"$f":"#REF!","v":{"$error":"#REF!"}},null,null,{"$f":"#REF!","v":{"$error":"#REF!"}},800001965,"http://www.xbrl.org/scheme/companyName",null,{"$f":"Periodos!$D$4","v":"2016-12-31"},{"$f":"#REF!","v":{"$error":"#REF!"}},{"$f":"#REF!","v":{"$error":"#REF!"}}]
[{"$error":"#REF!"},null,{"$f":"#REF!","v":{"$error":"#REF!"}},{"$f":"#REF!","v":{"$error":"#REF!"}},null,null,{"$f":"#REF!","v":{"$error":"#REF!"}},800001965,"http://www.xbrl.org/scheme/companyName",null,{"$f":"Periodos!$D$4","v":"2016-12-31"},{"$f":"#REF!","v":{"$error":"#REF!"}},{"$f":"#REF!","v":{"$error":"#REF!"}}]
[{"$error":"#REF!"},null,{"$f":"#REF!","v":{"$error":"#REF!"}},{"$f":"#REF!","v":{"$error":"#REF!"}},null,null,{"$f":"#REF!","v":{"$error":"#REF!"}},800001965,"http://www.xbrl.org/scheme/companyName",null,{"$f":"Periodos!$D$4","v":"2016-12-31"},{"$f":"#REF!","v":{"$error":"#REF!"}},{"$f":"#REF!","v":{"$error":"#REF!"}}]
[{"$error":"#REF!"},null,{"$f":"#REF!","v":{"$error":"#REF!"}},{"$f":"#REF!","v":{"$error":"#REF!"}},null,null,{"$f":"#REF!","v":{"$error":"#REF!"}},800001965,"http://www.xbrl.org/scheme/companyName",null,{"$f":"Periodos!$D$4","v":"2016-12-31"},{"$f":"#REF!","v":{"$error":"#REF!"}},{"$f":"#REF!","v":{"$error":"#REF!"}}]
[{"$error":"#REF!"},null,{"$f":"#REF!","v":{"$error":"#REF!"}},{"$f":"#REF!","v":{"$error":"#REF!"}},null,null,{"$f":"#REF!","v":{"$error":"#REF!"}},800001965,"http://www.xbrl.org/scheme/companyName",null,{"$f":"Periodos!$D$4","v":"2016-12-31"},{"$f":"#REF!","v":{"$error":"#REF!"}},{"$f":"#REF!","v":{"$error":"#REF!"}}]
[{"$error":"#REF!"},null,{"$f":"#REF!","v":{"$error":"#REF!"}},{"$f":"#REF!","v":{"$error":"#REF!"}},null,null,{"$f":"#REF!","v":{"$error":"#REF!"}},800001965,"http://www.xbrl.org/scheme/companyName",null,{"$f":"Periodos!$D$4","v":"2016-12-31"},{"$f":"#REF!","v":{"$error":"#REF!"}},{"$f":"#REF!","v":{"$error":"#REF!"}}]
[{"$error":"#REF!"},null,{"$f":"#REF!","v":{"$error":"#REF!"}},{"$f":"#REF!","v":{"$error":"#REF!"}},null,null,{"$f":"#REF!","v":{"$error":"#REF!"}},800001965,"http://www.xbrl.org/scheme/companyName",null,{"$f":"Periodos!$D$4","v":"2016-12-31"},{"$f":"#REF!","v":{"$error":"#REF!"}},{"$f":"#REF!","v":{"$error":"#REF!"}}]
[{"$error":"#REF!"},null,{"$f":"#REF!","v":{"$error":"#REF!"}},{"$f":"#REF!","v":{"$error":"#REF!"}},null,null,{"$f":"#REF!","v":{"$error":"#REF!"}},800001965,"http://www.xbrl.org/scheme/companyName",null,{"$f":"Periodos!$D$4","v":"2016-12-31"},{"$f":"#REF!","v":{"$error":"#REF!"}},{"$f":"#REF!","v":{"$error":"#REF!"}}]
[{"$error":"#REF!"},null,{"$f":"#REF!","v":{"$error":"#REF!"}},{"$f":"#REF!","v":{"$error":"#REF!"}},0,"peso",{"$f":"#REF!","v":{"$error":"#REF!"}},800001965,"http://www.xbrl.org/scheme/companyName",null,{"$f":"Periodos!$D$4","v":"2016-12-31"},{"$f":"#REF!","v":{"$error":"#REF!"}},{"$f":"#REF!","v":{"$error":"#REF!"}}]
["/*",null,"--112--"]
[{"$error":"#REF!"},null,{"$f":"#REF!","v":{"$error":"#REF!"}},{"$f":"#REF!","v":{"$error":"#REF!"}},null,null,{"$f":"#REF!","v":{"$error":"#REF!"}},800001965,"http://www.xbrl.org/scheme/companyName",null,{"$f":"Periodos!$D$4","v":"2016-12-31"},{"$f":"#REF!","v":{"$error":"#REF!"}},{"$f":"#REF!","v":{"$error":"#REF!"}}]
[{"$error":"#REF!"},null,{"$f":"#REF!","v":{"$error":"#REF!"}},{"$f":"#REF!","v":{"$error":"#REF!"}},null,null,{"$f":"#REF!","v":{"$error":"#REF!"}},800001965,"http://www.xbrl.org/scheme/companyName",null,{"$f":"Periodos!$D$4","v":"2016-12-31"},{"$f":"#REF!","v":{"$error":"#REF!"}},{"$f":"#REF!","v":{"$error":"#REF!"}}]
[{"$error":"#REF!"},null,{"$f":"#REF!","v":{"$error":"#REF!"}},{"$f":"#REF!","v":{"$error":"#REF!"}},null,null,{"$f":"#REF!","v":{"$error":"#REF!"}},800001965,"http://www.xbrl.org/scheme/companyName",null,{"$f":"Periodos!$D$4","v":"2016-12-31"},{"$f":"#REF!","v":{"$error":"#REF!"}},{"$f":"#REF!","v":{"$error":"#REF!"}}]
[{"$error":"#REF!"},null,{"$f":"#REF!","v":{"$error":"#REF!"}},{"$f":"#REF!","v":{"$error":"#REF!"}},null,null,{"$f":"#REF!","v":{"$error":"#REF!"}},800001965,"http://www.xbrl.org/scheme/companyName",null,{"$f":"Periodos!$D$4","v":"2016-12-31"},{"$f":"#REF!","v":{"$error":"#REF!"}},{"$f":"#REF!","v":{"$error":"#REF!"}}]
[{"$error":"#REF!"},null,{"$f":"#REF!","v":{"$error":"#REF!"}},{"$f":"#REF!","v":{"$error":"#REF!"}},null,null,{"$f":"#REF!","v":{"$error":"#REF!"}},800001965,"http://www.xbrl.org/scheme/companyName",null,{"$f":"Periodos!$D$4","v":"2016-12-31"},{"$f":"#REF!","v":{"$error":"#REF!"}},{"$f":"#REF!","v":{"$error":"#REF!"}}]
[{"$error":"#REF!"},null,{"$f":"#REF!","v":{"$error":"#REF!"}},{"$f":"#REF!","v":{"$error":"#REF!"}},null,null,{"$f":"#REF!","v":{"$error":"#REF!"}},800001965,"http://www.xbrl.org/scheme/companyName",null,{"$f":"Periodos!$D$4","v":"2016-12-31"},{"$f":"#REF!","v":{"$error":"#REF!"}},{"$f":"#REF!","v":{"$error":"#REF!"}}]
[{"$error":"#REF!"},null,{"$f":"#REF!","v":{"$error":"#REF!"}},{"$f":"#REF!","v":{"$error":"#REF!"}},null,null,{"$f":"#REF!","v":{"$error":"#REF!"}},800001965,"http://www.xbrl.org/scheme/companyName",null,{"$f":"Periodos!$D$4","v":"2016-12-31"},{"$f":"#REF!","v":{"$error":"#REF!"}},{"$f":"#REF!","v":{"$error":"#REF!"}}]
[{"$error":"#REF!"},null,{"$f":"#REF!","v":{"$error":"#REF!"}},{"$f":"#REF!","v":{"$error":"#REF!"}},null,null,{"$f":"#REF!","v":{"$error":"#REF!"}},800001965,"http://www.xbrl.org/scheme/companyName",null,{"$f":"Periodos!$D$4","v":"2016-12-31"},{"$f":"#REF!","v":{"$error":"#REF!"}},{"$f":"#REF!","v":{"$error":"#REF!"}}]
[{"$error":"#REF!"},null,{"$f":"#REF!","v":{"$error":"#REF!"}},{"$f":"#REF!","v":{"$error":"#REF!"}},null,null,{"$f":"#REF!","v":{"$error":"#REF!"}},800001965,"http://www.xbrl.org/scheme/companyName",null,{"$f":"Periodos!$D$4","v":"2016-12-31"},{"$f":"#REF!","v":{"$error":"#REF!"}},{"$f":"#REF!","v":{"$error":"#REF!"}}]
[{"$f":"IF(G5217=\"\",\"/*\",\"\")","v":{"$error":"#REF!"}},null,{"$f":"#REF!","v":{"$error":"#REF!"}},{"$f":"#REF!","v":{"$error":"#REF!"}},null,null,{"$f":"#REF!","v":{"$error":"#REF!"}},800001965,"http://www.xbrl.org/scheme/companyName",null,{"$f":"Periodos!$D$4","v":"2016-12-31"},{"$f":"#REF!","v":{"$error":"#REF!"}},{"$f":"#REF!","v":{"$error":"#REF!"}}]
[{"$error":"#REF!"},null,{"$f":"#REF!","v":{"$error":"#REF!"}},{"$f":"#REF!","v":{"$error":"#REF!"}},null,null,{"$f":"#REF!","v":{"$error":"#REF!"}},800001965,"http://www.xbrl.org/scheme/companyName",null,{"$f":"Periodos!$D$4","v":"2016-12-31"},{"$f":"#REF!","v":{"$error":"#REF!"}},{"$f":"#REF!","v":{"$error":"#REF!"}}]
[{"$error":"#REF!"},null,{"$f":"#REF!","v":{"$error":"#REF!"}},{"$f":"#REF!","v":{"$error":"#REF!"}},0,"peso",{"$f":"#REF!","v":{"$error":"#REF!"}},800001965,"http://www.xbrl.org/scheme/companyName",null,{"$f":"Periodos!$D$4","v":"2016-12-31"},{"$f":"#REF!","v":{"$error":"#REF!"}},{"$f":"#REF!","v":{"$error":"#REF!"}}]
["/*",null,"--113--"]
[{"$error":"#REF!"},null,{"$f":"#REF!","v":{"$error":"#REF!"}},{"$f":"#REF!","v":{"$error":"#REF!"}},null,null,{"$f":"#REF!","v":{"$error":"#REF!"}},800001965,"http://www.xbrl.org/scheme/companyName",null,{"$f":"Periodos!$D$4","v":"2016-12-31"},{"$f":"#REF!","v":{"$error":"#REF!"}},{"$f":"#REF!","v":{"$error":"#REF!"}}]
[{"$error":"#REF!"},null,{"$f":"#REF!","v":{"$error":"#REF!"}},{"$f":"#REF!","v":{"$error":"#REF!"}},null,null,{"$f":"#REF!","v":{"$error":"#REF!"}},800001965,"http://www.xbrl.org/scheme/companyName",null,{"$f":"Periodos!$D$4","v":"2016-12-31"},{"$f":"#REF!","v":{"$error":"#REF!"}},{"$f":"#REF!","v":{"$error":"#REF!"}}]
[{"$error":"#REF!"},null,{"$f":"#REF!","v":{"$error":"#REF!"}},{"$f":"#REF!","v":{"$error":"#REF!"}},null,null,{"$f":"#REF!","v":{"$error":"#REF!"}},800001965,"http://www.xbrl.org/scheme/companyName",null,{"$f":"Periodos!$D$4","v":"2016-12-31"},{"$f":"#REF!","v":{"$error":"#REF!"}},{"$f":"#REF!","v":{"$error":"#REF!"}}]
[{"$error":"#REF!"},null,{"$f":"#REF!","v":{"$error":"#REF!"}},{"$f":"#REF!","v":{"$error":"#REF!"}},null,null,{"$f":"#REF!","v":{"$error":"#REF!"}},800001965,"http://www.xbrl.org/scheme/companyName",null,{"$f":"Periodos!$D$4","v":"2016-12-31"},{"$f":"#REF!","v":{"$error":"#REF!"}},{"$f":"#REF!","v":{"$error":"#REF!"}}]
[{"$error":"#REF!"},null,{"$f":"#REF!","v":{"$error":"#REF!"}},{"$f":"#REF!","v":{"$error":"#REF!"}},null,null,{"$f":"#REF!","v":{"$error":"#REF!"}},800001965,"http://www.xbrl.org/scheme/companyName",null,{"$f":"Periodos!$D$4","v":"2016-12-31"},{"$f":"#REF!","v":{"$error":"#REF!"}},{"$f":"#REF!","v":{"$error":"#REF!"}}]
[{"$error":"#REF!"},null,{"$f":"#REF!","v":{"$error":"#REF!"}},{"$f":"#REF!","v":{"$error":"#REF!"}},null,null,{"$f":"#REF!","v":{"$error":"#REF!"}},800001965,"http://www.xbrl.org/scheme/companyName",null,{"$f":"Periodos!$D$4","v":"2016-12-31"},{"$f":"#REF!","v":{"$error":"#REF!"}},{"$f":"#REF!","v":{"$error":"#REF!"}}]
[{"$error":"#REF!"},null,{"$f":"#REF!","v":{"$error":"#REF!"}},{"$f":"#REF!","v":{"$error":"#REF!"}},null,null,{"$f":"#REF!","v":{"$error":"#REF!"}},800001965,"http://www.xbrl.org/scheme/companyName",null,{"$f":"Periodos!$D$4","v":"2016-12-31"},{"$f":"#REF!","v":{"$error":"#REF!"}},{"$f":"#REF!","v":{"$error":"#REF!"}}]
[{"$error":"#REF!"},null,{"$f":"#REF!","v":{"$error":"#REF!"}},{"$f":"#REF!","v":{"$error":"#REF!"}},null,null,{"$f":"#REF!","v":{"$error":"#REF!"}},800001965,"http://www.xbrl.org/scheme/companyName",null,{"$f":"Periodos!$D$4","v":"2016-12-31"},{"$f":"#REF!","v":{"$error":"#REF!"}},{"$f":"#REF!","v":{"$error":"#REF!"}}]
[{"$error":"#REF!"},null,{"$f":"#REF!","v":{"$error":"#REF!"}},{"$f":"#REF!","v":{"$error":"#REF!"}},null,null,{"$f":"#REF!","v":{"$error":"#REF!"}},800001965,"http://www.xbrl.org/scheme/companyName",null,{"$f":"Periodos!$D$4","v":"2016-12-31"},{"$f":"#REF!","v":{"$error":"#REF!"}},{"$f":"#REF!","v":{"$error":"#REF!"}}]
[{"$error":"#REF!"},null,{"$f":"#REF!","v":{"$error":"#REF!"}},{"$f":"#REF!","v":{"$error":"#REF!"}},null,null,{"$f":"#REF!","v":{"$error":"#REF!"}},800001965,"http://www.xbrl.org/scheme/companyName",null,{"$f":"Periodos!$D$4","v":"2016-12-31"},{"$f":"#REF!","v":{"$error":"#REF!"}},{"$f":"#REF!","v":{"$error":"#REF!"}}]
[{"$error":"#REF!"},null,{"$f":"#REF!","v":{"$error":"#REF!"}},{"$f":"#REF!","v":{"$error":"#REF!"}},null,null,{"$f":"#REF!","v":{"$error":"#REF!"}},800001965,"http://www.xbrl.org/scheme/companyName",null,{"$f":"Periodos!$D$4","v":"2016-12-31"},{"$f":"#REF!","v":{"$error":"#REF!"}},{"$f":"#REF!","v":{"$error":"#REF!"}}]
[{"$error":"#REF!"},null,{"$f":"#REF!","v":{"$error":"#REF!"}},{"$f":"#REF!","v":{"$error":"#REF!"}},0,"peso",{"$f":"#REF!","v":{"$error":"#REF!"}},800001965,"http://www.xbrl.org/scheme/companyName",null,{"$f":"Periodos!$D$4","v":"2016-12-31"},{"$f":"#REF!","v":{"$error":"#REF!"}},{"$f":"#REF!","v":{"$error":"#REF!"}}]
["/*",null,"--114--"]
[{"$error":"#REF!"},null,{"$f":"#REF!","v":{"$error":"#REF!"}},{"$f":"#REF!","v":{"$error":"#REF!"}},null,null,{"$f":"#REF!","v":{"$error":"#REF!"}},800001965,"http://www.xbrl.org/scheme/companyName",null,{"$f":"Periodos!$D$4","v":"2016-12-31"},{"$f":"#REF!","v":{"$error":"#REF!"}},{"$f":"#REF!","v":{"$error":"#REF!"}}]
[{"$error":"#REF!"},null,{"$f":"#REF!","v":{"$error":"#REF!"}},{"$f":"#REF!","v":{"$error":"#REF!"}},null,null,{"$f":"#REF!","v":{"$error":"#REF!"}},800001965,"http://www.xbrl.org/scheme/companyName",null,{"$f":"Periodos!$D$4","v":"2016-12-31"},{"$f":"#REF!","v":{"$error":"#REF!"}},{"$f":"#REF!","v":{"$error":"#REF!"}}]
[{"$error":"#REF!"},null,{"$f":"#REF!","v":{"$error":"#REF!"}},{"$f":"#REF!","v":{"$error":"#REF!"}},null,null,{"$f":"#REF!","v":{"$error":"#REF!"}},800001965,"http://www.xbrl.org/scheme/companyName",null,{"$f":"Periodos!$D$4","v":"2016-12-31"},{"$f":"#REF!","v":{"$error":"#REF!"}},{"$f":"#REF!","v":{"$error":"#REF!"}}]
[{"$error":"#REF!"},null,{"$f":"#REF!","v":{"$error":"#REF!"}},{"$f":"#REF!","v":{"$error":"#REF!"}},null,null,{"$f":"#REF!","v":{"$error":"#REF!"}},800001965,"http://www.xbrl.org/scheme/companyName",null,{"$f":"Periodos!$D$4","v":"2016-12-31"},{"$f":"#REF!","v":{"$error":"#REF!"}},{"$f":"#REF!","v":{"$error":"#REF!"}}]
[{"$error":"#REF!"},null,{"$f":"#REF!","v":{"$error":"#REF!"}},{"$f":"#REF!","v":{"$error":"#REF!"}},null,null,{"$f":"#REF!","v":{"$error":"#REF!"}},800001965,"http://www.xbrl.org/scheme/companyName",null,{"$f":"Periodos!$D$4","v":"2016-12-31"},{"$f":"#REF!","v":{"$error":"#REF!"}},{"$f":"#REF!","v":{"$error":"#REF!"}}]
[{"$error":"#REF!"},null,{"$f":"#REF!","v":{"$error":"#REF!"}},{"$f":"#REF!","v":{"$error":"#REF!"}},null,null,{"$f":"#REF!","v":{"$error":"#REF!"}},800001965,"http://www.xbrl.org/scheme/companyName",null,{"$f":"Periodos!$D$4","v":"2016-12-31"},{"$f":"#REF!","v":{"$error":"#REF!"}},{"$f":"#REF!","v":{"$error":"#REF!"}}]
[{"$error":"#REF!"},null,{"$f":"#REF!","v":{"$error":"#REF!"}},{"$f":"#REF!","v":{"$error":"#REF!"}},null,null,{"$f":"#REF!","v":{"$error":"#REF!"}},800001965,"http://www.xbrl.org/scheme/companyName",null,{"$f":"Periodos!$D$4","v":"2016-12-31"},{"$f":"#REF!","v":{"$error":"#REF!"}},{"$f":"#REF!","v":{"$error":"#REF!"}}]
[{"$error":"#REF!"},null,{"$f":"#REF!","v":{"$error":"#REF!"}},{"$f":"#REF!","v":{"$error":"#REF!"}},null,null,{"$f":"#REF!","v":{"$error":"#REF!"}},800001965,"http://www.xbrl.org/scheme/companyName",null,{"$f":"Periodos!$D$4","v":"2016-12-31"},{"$f":"#REF!","v":{"$error":"#REF!"}},{"$f":"#REF!","v":{"$error":"#REF!"}}]
[{"$error":"#REF!"},null,{"$f":"#REF!","v":{"$error":"#REF!"}},{"$f":"#REF!","v":{"$error":"#REF!"}},null,null,{"$f":"#REF!","v":{"$error":"#REF!"}},800001965,"http://www.xbrl.org/scheme/companyName",null,{"$f":"Periodos!$D$4","v":"2016-12-31"},{"$f":"#REF!","v":{"$error":"#REF!"}},{"$f":"#REF!","v":{"$error":"#REF!"}}]
[{"$error":"#REF!"},null,{"$f":"#REF!","v":{"$error":"#REF!"}},{"$f":"#REF!","v":{"$error":"#REF!"}},null,null,{"$f":"#REF!","v":{"$error":"#REF!"}},800001965,"http://www.xbrl.org/scheme/companyName",null,{"$f":"Periodos!$D$4","v":"2016-12-31"},{"$f":"#REF!","v":{"$error":"#REF!"}},{"$f":"#REF!","v":{"$error":"#REF!"}}]
[{"$error":"#REF!"},null,{"$f":"#REF!","v":{"$error":"#REF!"}},{"$f":"#REF!","v":{"$error":"#REF!"}},null,null,{"$f":"#REF!","v":{"$error":"#REF!"}},800001965,"http://www.xbrl.org/scheme/companyName",null,{"$f":"Periodos!$D$4","v":"2016-12-31"},{"$f":"#REF!","v":{"$error":"#REF!"}},{"$f":"#REF!","v":{"$error":"#REF!"}}]
[{"$error":"#REF!"},null,{"$f":"#REF!","v":{"$error":"#REF!"}},{"$f":"#REF!","v":{"$error":"#REF!"}},0,"peso",{"$f":"#REF!","v":{"$error":"#REF!"}},800001965,"http://www.xbrl.org/scheme/companyName",null,{"$f":"Periodos!$D$4","v":"2016-12-31"},{"$f":"#REF!","v":{"$error":"#REF!"}},{"$f":"#REF!","v":{"$error":"#REF!"}}]
["/*",null,"--115--"]
[{"$error":"#REF!"},null,{"$f":"#REF!","v":{"$error":"#REF!"}},{"$f":"#REF!","v":{"$error":"#REF!"}},null,null,{"$f":"#REF!","v":{"$error":"#REF!"}},800001965,"http://www.xbrl.org/scheme/companyName",null,{"$f":"Periodos!$D$4","v":"2016-12-31"},{"$f":"#REF!","v":{"$error":"#REF!"}},{"$f":"#REF!","v":{"$error":"#REF!"}}]
[{"$error":"#REF!"},null,{"$f":"#REF!","v":{"$error":"#REF!"}},{"$f":"#REF!","v":{"$error":"#REF!"}},null,null,{"$f":"#REF!","v":{"$error":"#REF!"}},800001965,"http://www.xbrl.org/scheme/companyName",null,{"$f":"Periodos!$D$4","v":"2016-12-31"},{"$f":"#REF!","v":{"$error":"#REF!"}},{"$f":"#REF!","v":{"$error":"#REF!"}}]
[{"$error":"#REF!"},null,{"$f":"#REF!","v":{"$error":"#REF!"}},{"$f":"#REF!","v":{"$error":"#REF!"}},null,null,{"$f":"#REF!","v":{"$error":"#REF!"}},800001965,"http://www.xbrl.org/scheme/companyName",null,{"$f":"Periodos!$D$4","v":"2016-12-31"},{"$f":"#REF!","v":{"$error":"#REF!"}},{"$f":"#REF!","v":{"$error":"#REF!"}}]
[{"$error":"#REF!"},null,{"$f":"#REF!","v":{"$error":"#REF!"}},{"$f":"#REF!","v":{"$error":"#REF!"}},null,null,{"$f":"#REF!","v":{"$error":"#REF!"}},800001965,"http://www.xbrl.org/scheme/companyName",null,{"$f":"Periodos!$D$4","v":"2016-12-31"},{"$f":"#REF!","v":{"$error":"#REF!"}},{"$f":"#REF!","v":{"$error":"#REF!"}}]
[{"$error":"#REF!"},null,{"$f":"#REF!","v":{"$error":"#REF!"}},{"$f":"#REF!","v":{"$error":"#REF!"}},null,null,{"$f":"#REF!","v":{"$error":"#REF!"}},800001965,"http://www.xbrl.org/scheme/companyName",null,{"$f":"Periodos!$D$4","v":"2016-12-31"},{"$f":"#REF!","v":{"$error":"#REF!"}},{"$f":"#REF!","v":{"$error":"#REF!"}}]
[{"$error":"#REF!"},null,{"$f":"#REF!","v":{"$error":"#REF!"}},{"$f":"#REF!","v":{"$error":"#REF!"}},null,null,{"$f":"#REF!","v":{"$error":"#REF!"}},800001965,"http://www.xbrl.org/scheme/companyName",null,{"$f":"Periodos!$D$4","v":"2016-12-31"},{"$f":"#REF!","v":{"$error":"#REF!"}},{"$f":"#REF!","v":{"$error":"#REF!"}}]
[{"$error":"#REF!"},null,{"$f":"#REF!","v":{"$error":"#REF!"}},{"$f":"#REF!","v":{"$error":"#REF!"}},null,null,{"$f":"#REF!","v":{"$error":"#REF!"}},800001965,"http://www.xbrl.org/scheme/companyName",null,{"$f":"Periodos!$D$4","v":"2016-12-31"},{"$f":"#REF!","v":{"$error":"#REF!"}},{"$f":"#REF!","v":{"$error":"#REF!"}}]
[{"$error":"#REF!"},null,{"$f":"#REF!","v":{"$error":"#REF!"}},{"$f":"#REF!","v":{"$error":"#REF!"}},null,null,{"$f":"#REF!","v":{"$error":"#REF!"}},800001965,"http://www.xbrl.org/scheme/companyName",null,{"$f":"Periodos!$D$4","v":"2016-12-31"},{"$f":"#REF!","v":{"$error":"#REF!"}},{"$f":"#REF!","v":{"$error":"#REF!"}}]
[{"$error":"#REF!"},null,{"$f":"#REF!","v":{"$error":"#REF!"}},{"$f":"#REF!","v":{"$error":"#REF!"}},null,null,{"$f":"#REF!","v":{"$error":"#REF!"}},800001965,"http://www.xbrl.org/scheme/companyName",null,{"$f":"Periodos!$D$4","v":"2016-12-31"},{"$f":"#REF!","v":{"$error":"#REF!"}},{"$f":"#REF!","v":{"$error":"#REF!"}}]
[{"$error":"#REF!"},null,{"$f":"#REF!","v":{"$error":"#REF!"}},{"$f":"#REF!","v":{"$error":"#REF!"}},null,null,{"$f":"#REF!","v":{"$error":"#REF!"}},800001965,"http://www.xbrl.org/scheme/companyName",null,{"$f":"Periodos!$D$4","v":"2016-12-31"},{"$f":"#REF!","v":{"$error":"#REF!"}},{"$f":"#REF!","v":{"$error":"#REF!"}}]
[{"$error":"#REF!"},null,{"$f":"#REF!","v":{"$error":"#REF!"}},{"$f":"#REF!","v":{"$error":"#REF!"}},null,null,{"$f":"#REF!","v":{"$error":"#REF!"}},800001965,"http://www.xbrl.org/scheme/companyName",null,{"$f":"Periodos!$D$4","v":"2016-12-31"},{"$f":"#REF!","v":{"$error":"#REF!"}},{"$f":"#REF!","v":{"$error":"#REF!"}}]
[{"$error":"#REF!"},null,{"$f":"#REF!","v":{"$error":"#REF!"}},{"$f":"#REF!","v":{"$error":"#REF!"}},0,"peso",{"$f":"#REF!","v":{"$error":"#REF!"}},800001965,"http://www.xbrl.org/scheme/companyName",null,{"$f":"Periodos!$D$4","v":"2016-12-31"},{"$f":"#REF!","v":{"$error":"#REF!"}},{"$f":"#REF!","v":{"$error":"#REF!"}}]
["/*",null,"--116--"]
[{"$error":"#REF!"},null,{"$f":"#REF!","v":{"$error":"#REF!"}},{"$f":"#REF!","v":{"$error":"#REF!"}},null,null,{"$f":"#REF!","v":{"$error":"#REF!"}},800001965,"http://www.xbrl.org/scheme/companyName",null,{"$f":"Periodos!$D$4","v":"2016-12-31"},{"$f":"#REF!","v":{"$error":"#REF!"}},{"$f":"#REF!","v":{"$error":"#REF!"}}]
[{"$error":"#REF!"},null,{"$f":"#REF!","v":{"$error":"#REF!"}},{"$f":"#REF!","v":{"$error":"#REF!"}},null,null,{"$f":"#REF!","v":{"$error":"#REF!"}},800001965,"http://www.xbrl.org/scheme/companyName",null,{"$f":"Periodos!$D$4","v":"2016-12-31"},{"$f":"#REF!","v":{"$error":"#REF!"}},{"$f":"#REF!","v":{"$error":"#REF!"}}]
[{"$error":"#REF!"},null,{"$f":"#REF!","v":{"$error":"#REF!"}},{"$f":"#REF!","v":{"$error":"#REF!"}},null,null,{"$f":"#REF!","v":{"$error":"#REF!"}},800001965,"http://www.xbrl.org/scheme/companyName",null,{"$f":"Periodos!$D$4","v":"2016-12-31"},{"$f":"#REF!","v":{"$error":"#REF!"}},{"$f":"#REF!","v":{"$error":"#REF!"}}]
[{"$error":"#REF!"},null,{"$f":"#REF!","v":{"$error":"#REF!"}},{"$f":"#REF!","v":{"$error":"#REF!"}},null,null,{"$f":"#REF!","v":{"$error":"#REF!"}},800001965,"http://www.xbrl.org/scheme/companyName",null,{"$f":"Periodos!$D$4","v":"2016-12-31"},{"$f":"#REF!","v":{"$error":"#REF!"}},{"$f":"#REF!","v":{"$error":"#REF!"}}]
[{"$error":"#REF!"},null,{"$f":"#REF!","v":{"$error":"#REF!"}},{"$f":"#REF!","v":{"$error":"#REF!"}},null,null,{"$f":"#REF!","v":{"$error":"#REF!"}},800001965,"http://www.xbrl.org/scheme/companyName",null,{"$f":"Periodos!$D$4","v":"2016-12-31"},{"$f":"#REF!","v":{"$error":"#REF!"}},{"$f":"#REF!","v":{"$error":"#REF!"}}]
[{"$error":"#REF!"},null,{"$f":"#REF!","v":{"$error":"#REF!"}},{"$f":"#REF!","v":{"$error":"#REF!"}},null,null,{"$f":"#REF!","v":{"$error":"#REF!"}},800001965,"http://www.xbrl.org/scheme/companyName",null,{"$f":"Periodos!$D$4","v":"2016-12-31"},{"$f":"#REF!","v":{"$error":"#REF!"}},{"$f":"#REF!","v":{"$error":"#REF!"}}]
[{"$error":"#REF!"},null,{"$f":"#REF!","v":{"$error":"#REF!"}},{"$f":"#REF!","v":{"$error":"#REF!"}},null,null,{"$f":"#REF!","v":{"$error":"#REF!"}},800001965,"http://www.xbrl.org/scheme/companyName",null,{"$f":"Periodos!$D$4","v":"2016-12-31"},{"$f":"#REF!","v":{"$error":"#REF!"}},{"$f":"#REF!","v":{"$error":"#REF!"}}]
[{"$error":"#REF!"},null,{"$f":"#REF!","v":{"$error":"#REF!"}},{"$f":"#REF!","v":{"$error":"#REF!"}},null,null,{"$f":"#REF!","v":{"$error":"#REF!"}},800001965,"http://www.xbrl.org/scheme/companyName",null,{"$f":"Periodos!$D$4","v":"2016-12-31"},{"$f":"#REF!","v":{"$error":"#REF!"}},{"$f":"#REF!","v":{"$error":"#REF!"}}]
[{"$error":"#REF!"},null,{"$f":"#REF!","v":{"$error":"#REF!"}},{"$f":"#REF!","v":{"$error":"#REF!"}},null,null,{"$f":"#REF!","v":{"$error":"#REF!"}},800001965,"http://www.xbrl.org/scheme/companyName",null,{"$f":"Periodos!$D$4","v":"2016-12-31"},{"$f":"#REF!","v":{"$error":"#REF!"}},{"$f":"#REF!","v":{"$error":"#REF!"}}]
[{"$error":"#REF!"},null,{"$f":"#REF!","v":{"$error":"#REF!"}},{"$f":"#REF!","v":{"$error":"#REF!"}},null,null,{"$f":"#REF!","v":{"$error":"#REF!"}},800001965,"http://www.xbrl.org/scheme/companyName",null,{"$f":"Periodos!$D$4","v":"2016-12-31"},{"$f":"#REF!","v":{"$error":"#REF!"}},{"$f":"#REF!","v":{"$error":"#REF!"}}]
[{"$error":"#REF!"},null,{"$f":"#REF!","v":{"$error":"#REF!"}},{"$f":"#REF!","v":{"$error":"#REF!"}},null,null,{"$f":"#REF!","v":{"$error":"#REF!"}},800001965,"http://www.xbrl.org/scheme/companyName",null,{"$f":"Periodos!$D$4","v":"2016-12-31"},{"$f":"#REF!","v":{"$error":"#REF!"}},{"$f":"#REF!","v":{"$error":"#REF!"}}]
[{"$error":"#REF!"},null,{"$f":"#REF!","v":{"$error":"#REF!"}},{"$f":"#REF!","v":{"$error":"#REF!"}},0,"peso",{"$f":"#REF!","v":{"$error":"#REF!"}},800001965,"http://www.xbrl.org/scheme/companyName",null,{"$f":"Periodos!$D$4","v":"2016-12-31"},{"$f":"#REF!","v":{"$error":"#REF!"}},{"$f":"#REF!","v":{"$error":"#REF!"}}]
["/*",null,"--117--"]
[{"$error":"#REF!"},null,{"$f":"#REF!","v":{"$error":"#REF!"}},{"$f":"#REF!","v":{"$error":"#REF!"}},null,null,{"$f":"#REF!","v":{"$error":"#REF!"}},800001965,"http://www.xbrl.org/scheme/companyName",null,{"$f":"Periodos!$D$4","v":"2016-12-31"},{"$f":"#REF!","v":{"$error":"#REF!"}},{"$f":"#REF!","v":{"$error":"#REF!"}}]
[{"$error":"#REF!"},null,{"$f":"#REF!","v":{"$error":"#REF!"}},{"$f":"#REF!","v":{"$error":"#REF!"}},null,null,{"$f":"#REF!","v":{"$error":"#REF!"}},800001965,"http://www.xbrl.org/scheme/companyName",null,{"$f":"Periodos!$D$4","v":"2016-12-31"},{"$f":"#REF!","v":{"$error":"#REF!"}},{"$f":"#REF!","v":{"$error":"#REF!"}}]
[{"$error":"#REF!"},null,{"$f":"#REF!","v":{"$error":"#REF!"}},{"$f":"#REF!","v":{"$error":"#REF!"}},null,null,{"$f":"#REF!","v":{"$error":"#REF!"}},800001965,"http://www.xbrl.org/scheme/companyName",null,{"$f":"Periodos!$D$4","v":"2016-12-31"},{"$f":"#REF!","v":{"$error":"#REF!"}},{"$f":"#REF!","v":{"$error":"#REF!"}}]
[{"$error":"#REF!"},null,{"$f":"#REF!","v":{"$error":"#REF!"}},{"$f":"#REF!","v":{"$error":"#REF!"}},null,null,{"$f":"#REF!","v":{"$error":"#REF!"}},800001965,"http://www.xbrl.org/scheme/companyName",null,{"$f":"Periodos!$D$4","v":"2016-12-31"},{"$f":"#REF!","v":{"$error":"#REF!"}},{"$f":"#REF!","v":{"$error":"#REF!"}}]
[{"$error":"#REF!"},null,{"$f":"#REF!","v":{"$error":"#REF!"}},{"$f":"#REF!","v":{"$error":"#REF!"}},null,null,{"$f":"#REF!","v":{"$error":"#REF!"}},800001965,"http://www.xbrl.org/scheme/companyName",null,{"$f":"Periodos!$D$4","v":"2016-12-31"},{"$f":"#REF!","v":{"$error":"#REF!"}},{"$f":"#REF!","v":{"$error":"#REF!"}}]
[{"$error":"#REF!"},null,{"$f":"#REF!","v":{"$error":"#REF!"}},{"$f":"#REF!","v":{"$error":"#REF!"}},null,null,{"$f":"#REF!","v":{"$error":"#REF!"}},800001965,"http://www.xbrl.org/scheme/companyName",null,{"$f":"Periodos!$D$4","v":"2016-12-31"},{"$f":"#REF!","v":{"$error":"#REF!"}},{"$f":"#REF!","v":{"$error":"#REF!"}}]
[{"$error":"#REF!"},null,{"$f":"#REF!","v":{"$error":"#REF!"}},{"$f":"#REF!","v":{"$error":"#REF!"}},null,null,{"$f":"#REF!","v":{"$error":"#REF!"}},800001965,"http://www.xbrl.org/scheme/companyName",null,{"$f":"Periodos!$D$4","v":"2016-12-31"},{"$f":"#REF!","v":{"$error":"#REF!"}},{"$f":"#REF!","v":{"$error":"#REF!"}}]
[{"$error":"#REF!"},null,{"$f":"#REF!","v":{"$error":"#REF!"}},{"$f":"#REF!","v":{"$error":"#REF!"}},null,null,{"$f":"#REF!","v":{"$error":"#REF!"}},800001965,"http://www.xbrl.org/scheme/companyName",null,{"$f":"Periodos!$D$4","v":"2016-12-31"},{"$f":"#REF!","v":{"$error":"#REF!"}},{"$f":"#REF!","v":{"$error":"#REF!"}}]
[{"$f":"IF(G5281=\"\",\"/*\",\"\")","v":{"$error":"#REF!"}},null,{"$f":"#REF!","v":{"$error":"#REF!"}},{"$f":"#REF!","v":{"$error":"#REF!"}},null,null,{"$f":"#REF!","v":{"$error":"#REF!"}},800001965,"http://www.xbrl.org/scheme/companyName",null,{"$f":"Periodos!$D$4","v":"2016-12-31"},{"$f":"#REF!","v":{"$error":"#REF!"}},{"$f":"#REF!","v":{"$error":"#REF!"}}]
[{"$error":"#REF!"},null,{"$f":"#REF!","v":{"$error":"#REF!"}},{"$f":"#REF!","v":{"$error":"#REF!"}},null,null,{"$f":"#REF!","v":{"$error":"#REF!"}},800001965,"http://www.xbrl.org/scheme/companyName",null,{"$f":"Periodos!$D$4","v":"2016-12-31"},{"$f":"#REF!","v":{"$error":"#REF!"}},{"$f":"#REF!","v":{"$error":"#REF!"}}]
[{"$error":"#REF!"},null,{"$f":"#REF!","v":{"$error":"#REF!"}},{"$f":"#REF!","v":{"$error":"#REF!"}},null,null,{"$f":"#REF!","v":{"$error":"#REF!"}},800001965,"http://www.xbrl.org/scheme/companyName",null,{"$f":"Periodos!$D$4","v":"2016-12-31"},{"$f":"#REF!","v":{"$error":"#REF!"}},{"$f":"#REF!","v":{"$error":"#REF!"}}]
[{"$error":"#REF!"},null,{"$f":"#REF!","v":{"$error":"#REF!"}},{"$f":"#REF!","v":{"$error":"#REF!"}},0,"peso",{"$f":"#REF!","v":{"$error":"#REF!"}},800001965,"http://www.xbrl.org/scheme/companyName",null,{"$f":"Periodos!$D$4","v":"2016-12-31"},{"$f":"#REF!","v":{"$error":"#REF!"}},{"$f":"#REF!","v":{"$error":"#REF!"}}]
["/*",null,"--118--"]
[{"$error":"#REF!"},null,{"$f":"#REF!","v":{"$error":"#REF!"}},{"$f":"#REF!","v":{"$error":"#REF!"}},null,null,{"$f":"#REF!","v":{"$error":"#REF!"}},800001965,"http://www.xbrl.org/scheme/companyName",null,{"$f":"Periodos!$D$4","v":"2016-12-31"},{"$f":"#REF!","v":{"$error":"#REF!"}},{"$f":"#REF!","v":{"$error":"#REF!"}}]
[{"$error":"#REF!"},null,{"$f":"#REF!","v":{"$error":"#REF!"}},{"$f":"#REF!","v":{"$error":"#REF!"}},null,null,{"$f":"#REF!","v":{"$error":"#REF!"}},800001965,"http://www.xbrl.org/scheme/companyName",null,{"$f":"Periodos!$D$4","v":"2016-12-31"},{"$f":"#REF!","v":{"$error":"#REF!"}},{"$f":"#REF!","v":{"$error":"#REF!"}}]
[{"$error":"#REF!"},null,{"$f":"#REF!","v":{"$error":"#REF!"}},{"$f":"#REF!","v":{"$error":"#REF!"}},null,null,{"$f":"#REF!","v":{"$error":"#REF!"}},800001965,"http://www.xbrl.org/scheme/companyName",null,{"$f":"Periodos!$D$4","v":"2016-12-31"},{"$f":"#REF!","v":{"$error":"#REF!"}},{"$f":"#REF!","v":{"$error":"#REF!"}}]
[{"$error":"#REF!"},null,{"$f":"#REF!","v":{"$error":"#REF!"}},{"$f":"#REF!","v":{"$error":"#REF!"}},null,null,{"$f":"#REF!","v":{"$error":"#REF!"}},800001965,"http://www.xbrl.org/scheme/companyName",null,{"$f":"Periodos!$D$4","v":"2016-12-31"},{"$f":"#REF!","v":{"$error":"#REF!"}},{"$f":"#REF!","v":{"$error":"#REF!"}}]
[{"$error":"#REF!"},null,{"$f":"#REF!","v":{"$error":"#REF!"}},{"$f":"#REF!","v":{"$error":"#REF!"}},null,null,{"$f":"#REF!","v":{"$error":"#REF!"}},800001965,"http://www.xbrl.org/scheme/companyName",null,{"$f":"Periodos!$D$4","v":"2016-12-31"},{"$f":"#REF!","v":{"$error":"#REF!"}},{"$f":"#REF!","v":{"$error":"#REF!"}}]
[{"$error":"#REF!"},null,{"$f":"#REF!","v":{"$error":"#REF!"}},{"$f":"#REF!","v":{"$error":"#REF!"}},null,null,{"$f":"#REF!","v":{"$error":"#REF!"}},800001965,"http://www.xbrl.org/scheme/companyName",null,{"$f":"Periodos!$D$4","v":"2016-12-31"},{"$f":"#REF!","v":{"$error":"#REF!"}},{"$f":"#REF!","v":{"$error":"#REF!"}}]
[{"$error":"#REF!"},null,{"$f":"#REF!","v":{"$error":"#REF!"}},{"$f":"#REF!","v":{"$error":"#REF!"}},null,null,{"$f":"#REF!","v":{"$error":"#REF!"}},800001965,"http://www.xbrl.org/scheme/companyName",null,{"$f":"Periodos!$D$4","v":"2016-12-31"},{"$f":"#REF!","v":{"$error":"#REF!"}},{"$f":"#REF!","v":{"$error":"#REF!"}}]
[{"$error":"#REF!"},null,{"$f":"#REF!","v":{"$error":"#REF!"}},{"$f":"#REF!","v":{"$error":"#REF!"}},null,null,{"$f":"#REF!","v":{"$error":"#REF!"}},800001965,"http://www.xbrl.org/scheme/companyName",null,{"$f":"Periodos!$D$4","v":"2016-12-31"},{"$f":"#REF!","v":{"$error":"#REF!"}},{"$f":"#REF!","v":{"$error":"#REF!"}}]
[{"$error":"#REF!"},null,{"$f":"#REF!","v":{"$error":"#REF!"}},{"$f":"#REF!","v":{"$error":"#REF!"}},null,null,{"$f":"#REF!","v":{"$error":"#REF!"}},800001965,"http://www.xbrl.org/scheme/companyName",null,{"$f":"Periodos!$D$4","v":"2016-12-31"},{"$f":"#REF!","v":{"$error":"#REF!"}},{"$f":"#REF!","v":{"$error":"#REF!"}}]
[{"$error":"#REF!"},null,{"$f":"#REF!","v":{"$error":"#REF!"}},{"$f":"#REF!","v":{"$error":"#REF!"}},null,null,{"$f":"#REF!","v":{"$error":"#REF!"}},800001965,"http://www.xbrl.org/scheme/companyName",null,{"$f":"Periodos!$D$4","v":"2016-12-31"},{"$f":"#REF!","v":{"$error":"#REF!"}},{"$f":"#REF!","v":{"$error":"#REF!"}}]
[{"$error":"#REF!"},null,{"$f":"#REF!","v":{"$error":"#REF!"}},{"$f":"#REF!","v":{"$error":"#REF!"}},null,null,{"$f":"#REF!","v":{"$error":"#REF!"}},800001965,"http://www.xbrl.org/scheme/companyName",null,{"$f":"Periodos!$D$4","v":"2016-12-31"},{"$f":"#REF!","v":{"$error":"#REF!"}},{"$f":"#REF!","v":{"$error":"#REF!"}}]
[{"$error":"#REF!"},null,{"$f":"#REF!","v":{"$error":"#REF!"}},{"$f":"#REF!","v":{"$error":"#REF!"}},0,"peso",{"$f":"#REF!","v":{"$error":"#REF!"}},800001965,"http://www.xbrl.org/scheme/companyName",null,{"$f":"Periodos!$D$4","v":"2016-12-31"},{"$f":"#REF!","v":{"$error":"#REF!"}},{"$f":"#REF!","v":{"$error":"#REF!"}}]
["/*",null,"--119--"]
[{"$error":"#REF!"},null,{"$f":"#REF!","v":{"$error":"#REF!"}},{"$f":"#REF!","v":{"$error":"#REF!"}},null,null,{"$f":"#REF!","v":{"$error":"#REF!"}},800001965,"http://www.xbrl.org/scheme/companyName",null,{"$f":"Periodos!$D$4","v":"2016-12-31"},{"$f":"#REF!","v":{"$error":"#REF!"}},{"$f":"#REF!","v":{"$error":"#REF!"}}]
[{"$error":"#REF!"},null,{"$f":"#REF!","v":{"$error":"#REF!"}},{"$f":"#REF!","v":{"$error":"#REF!"}},null,null,{"$f":"#REF!","v":{"$error":"#REF!"}},800001965,"http://www.xbrl.org/scheme/companyName",null,{"$f":"Periodos!$D$4","v":"2016-12-31"},{"$f":"#REF!","v":{"$error":"#REF!"}},{"$f":"#REF!","v":{"$error":"#REF!"}}]
[{"$error":"#REF!"},null,{"$f":"#REF!","v":{"$error":"#REF!"}},{"$f":"#REF!","v":{"$error":"#REF!"}},null,null,{"$f":"#REF!","v":{"$error":"#REF!"}},800001965,"http://www.xbrl.org/scheme/companyName",null,{"$f":"Periodos!$D$4","v":"2016-12-31"},{"$f":"#REF!","v":{"$error":"#REF!"}},{"$f":"#REF!","v":{"$error":"#REF!"}}]
[{"$error":"#REF!"},null,{"$f":"#REF!","v":{"$error":"#REF!"}},{"$f":"#REF!","v":{"$error":"#REF!"}},null,null,{"$f":"#REF!","v":{"$error":"#REF!"}},800001965,"http://www.xbrl.org/scheme/companyName",null,{"$f":"Periodos!$D$4","v":"2016-12-31"},{"$f":"#REF!","v":{"$error":"#REF!"}},{"$f":"#REF!","v":{"$error":"#REF!"}}]
[{"$error":"#REF!"},null,{"$f":"#REF!","v":{"$error":"#REF!"}},{"$f":"#REF!","v":{"$error":"#REF!"}},null,null,{"$f":"#REF!","v":{"$error":"#REF!"}},800001965,"http://www.xbrl.org/scheme/companyName",null,{"$f":"Periodos!$D$4","v":"2016-12-31"},{"$f":"#REF!","v":{"$error":"#REF!"}},{"$f":"#REF!","v":{"$error":"#REF!"}}]
[{"$error":"#REF!"},null,{"$f":"#REF!","v":{"$error":"#REF!"}},{"$f":"#REF!","v":{"$error":"#REF!"}},null,null,{"$f":"#REF!","v":{"$error":"#REF!"}},800001965,"http://www.xbrl.org/scheme/companyName",null,{"$f":"Periodos!$D$4","v":"2016-12-31"},{"$f":"#REF!","v":{"$error":"#REF!"}},{"$f":"#REF!","v":{"$error":"#REF!"}}]
[{"$error":"#REF!"},null,{"$f":"#REF!","v":{"$error":"#REF!"}},{"$f":"#REF!","v":{"$error":"#REF!"}},null,null,{"$f":"#REF!","v":{"$error":"#REF!"}},800001965,"http://www.xbrl.org/scheme/companyName",null,{"$f":"Periodos!$D$4","v":"2016-12-31"},{"$f":"#REF!","v":{"$error":"#REF!"}},{"$f":"#REF!","v":{"$error":"#REF!"}}]
[{"$error":"#REF!"},null,{"$f":"#REF!","v":{"$error":"#REF!"}},{"$f":"#REF!","v":{"$error":"#REF!"}},null,null,{"$f":"#REF!","v":{"$error":"#REF!"}},800001965,"http://www.xbrl.org/scheme/companyName",null,{"$f":"Periodos!$D$4","v":"2016-12-31"},{"$f":"#REF!","v":{"$error":"#REF!"}},{"$f":"#REF!","v":{"$error":"#REF!"}}]
[{"$error":"#REF!"},null,{"$f":"#REF!","v":{"$error":"#REF!"}},{"$f":"#REF!","v":{"$error":"#REF!"}},null,null,{"$f":"#REF!","v":{"$error":"#REF!"}},800001965,"http://www.xbrl.org/scheme/companyName",null,{"$f":"Periodos!$D$4","v":"2016-12-31"},{"$f":"#REF!","v":{"$error":"#REF!"}},{"$f":"#REF!","v":{"$error":"#REF!"}}]
[{"$error":"#REF!"},null,{"$f":"#REF!","v":{"$error":"#REF!"}},{"$f":"#REF!","v":{"$error":"#REF!"}},null,null,{"$f":"#REF!","v":{"$error":"#REF!"}},800001965,"http://www.xbrl.org/scheme/companyName",null,{"$f":"Periodos!$D$4","v":"2016-12-31"},{"$f":"#REF!","v":{"$error":"#REF!"}},{"$f":"#REF!","v":{"$error":"#REF!"}}]
[{"$error":"#REF!"},null,{"$f":"#REF!","v":{"$error":"#REF!"}},{"$f":"#REF!","v":{"$error":"#REF!"}},null,null,{"$f":"#REF!","v":{"$error":"#REF!"}},800001965,"http://www.xbrl.org/scheme/companyName",null,{"$f":"Periodos!$D$4","v":"2016-12-31"},{"$f":"#REF!","v":{"$error":"#REF!"}},{"$f":"#REF!","v":{"$error":"#REF!"}}]
[{"$error":"#REF!"},null,{"$f":"#REF!","v":{"$error":"#REF!"}},{"$f":"#REF!","v":{"$error":"#REF!"}},0,"peso",{"$f":"#REF!","v":{"$error":"#REF!"}},800001965,"http://www.xbrl.org/scheme/companyName",null,{"$f":"Periodos!$D$4","v":"2016-12-31"},{"$f":"#REF!","v":{"$error":"#REF!"}},{"$f":"#REF!","v":{"$error":"#REF!"}}]
["/*",null,"--120--"]
[{"$error":"#REF!"},null,{"$f":"#REF!","v":{"$error":"#REF!"}},{"$f":"#REF!","v":{"$error":"#REF!"}},null,null,{"$f":"#REF!","v":{"$error":"#REF!"}},800001965,"http://www.xbrl.org/scheme/companyName",null,{"$f":"Periodos!$D$4","v":"2016-12-31"},{"$f":"#REF!","v":{"$error":"#REF!"}},{"$f":"#REF!","v":{"$error":"#REF!"}}]
[{"$error":"#REF!"},null,{"$f":"#REF!","v":{"$error":"#REF!"}},{"$f":"#REF!","v":{"$error":"#REF!"}},null,null,{"$f":"#REF!","v":{"$error":"#REF!"}},800001965,"http://www.xbrl.org/scheme/companyName",null,{"$f":"Periodos!$D$4","v":"2016-12-31"},{"$f":"#REF!","v":{"$error":"#REF!"}},{"$f":"#REF!","v":{"$error":"#REF!"}}]
[{"$error":"#REF!"},null,{"$f":"#REF!","v":{"$error":"#REF!"}},{"$f":"#REF!","v":{"$error":"#REF!"}},null,null,{"$f":"#REF!","v":{"$error":"#REF!"}},800001965,"http://www.xbrl.org/scheme/companyName",null,{"$f":"Periodos!$D$4","v":"2016-12-31"},{"$f":"#REF!","v":{"$error":"#REF!"}},{"$f":"#REF!","v":{"$error":"#REF!"}}]
[{"$error":"#REF!"},null,{"$f":"#REF!","v":{"$error":"#REF!"}},{"$f":"#REF!","v":{"$error":"#REF!"}},null,null,{"$f":"#REF!","v":{"$error":"#REF!"}},800001965,"http://www.xbrl.org/scheme/companyName",null,{"$f":"Periodos!$D$4","v":"2016-12-31"},{"$f":"#REF!","v":{"$error":"#REF!"}},{"$f":"#REF!","v":{"$error":"#REF!"}}]
[{"$error":"#REF!"},null,{"$f":"#REF!","v":{"$error":"#REF!"}},{"$f":"#REF!","v":{"$error":"#REF!"}},null,null,{"$f":"#REF!","v":{"$error":"#REF!"}},800001965,"http://www.xbrl.org/scheme/companyName",null,{"$f":"Periodos!$D$4","v":"2016-12-31"},{"$f":"#REF!","v":{"$error":"#REF!"}},{"$f":"#REF!","v":{"$error":"#REF!"}}]
[{"$error":"#REF!"},null,{"$f":"#REF!","v":{"$error":"#REF!"}},{"$f":"#REF!","v":{"$error":"#REF!"}},null,null,{"$f":"#REF!","v":{"$error":"#REF!"}},800001965,"http://www.xbrl.org/scheme/companyName",null,{"$f":"Periodos!$D$4","v":"2016-12-31"},{"$f":"#REF!","v":{"$error":"#REF!"}},{"$f":"#REF!","v":{"$error":"#REF!"}}]
[{"$error":"#REF!"},null,{"$f":"#REF!","v":{"$error":"#REF!"}},{"$f":"#REF!","v":{"$error":"#REF!"}},null,null,{"$f":"#REF!","v":{"$error":"#REF!"}},800001965,"http://www.xbrl.org/scheme/companyName",null,{"$f":"Periodos!$D$4","v":"2016-12-31"},{"$f":"#REF!","v":{"$error":"#REF!"}},{"$f":"#REF!","v":{"$error":"#REF!"}}]
[{"$error":"#REF!"},null,{"$f":"#REF!","v":{"$error":"#REF!"}},{"$f":"#REF!","v":{"$error":"#REF!"}},null,null,{"$f":"#REF!","v":{"$error":"#REF!"}},800001965,"http://www.xbrl.org/scheme/companyName",null,{"$f":"Periodos!$D$4","v":"2016-12-31"},{"$f":"#REF!","v":{"$error":"#REF!"}},{"$f":"#REF!","v":{"$error":"#REF!"}}]
[{"$error":"#REF!"},null,{"$f":"#REF!","v":{"$error":"#REF!"}},{"$f":"#REF!","v":{"$error":"#REF!"}},null,null,{"$f":"#REF!","v":{"$error":"#REF!"}},800001965,"http://www.xbrl.org/scheme/companyName",null,{"$f":"Periodos!$D$4","v":"2016-12-31"},{"$f":"#REF!","v":{"$error":"#REF!"}},{"$f":"#REF!","v":{"$error":"#REF!"}}]
[{"$error":"#REF!"},null,{"$f":"#REF!","v":{"$error":"#REF!"}},{"$f":"#REF!","v":{"$error":"#REF!"}},null,null,{"$f":"#REF!","v":{"$error":"#REF!"}},800001965,"http://www.xbrl.org/scheme/companyName",null,{"$f":"Periodos!$D$4","v":"2016-12-31"},{"$f":"#REF!","v":{"$error":"#REF!"}},{"$f":"#REF!","v":{"$error":"#REF!"}}]
[{"$error":"#REF!"},null,{"$f":"#REF!","v":{"$error":"#REF!"}},{"$f":"#REF!","v":{"$error":"#REF!"}},null,null,{"$f":"#REF!","v":{"$error":"#REF!"}},800001965,"http://www.xbrl.org/scheme/companyName",null,{"$f":"Periodos!$D$4","v":"2016-12-31"},{"$f":"#REF!","v":{"$error":"#REF!"}},{"$f":"#REF!","v":{"$error":"#REF!"}}]
[{"$error":"#REF!"},null,{"$f":"#REF!","v":{"$error":"#REF!"}},{"$f":"#REF!","v":{"$error":"#REF!"}},0,"peso",{"$f":"#REF!","v":{"$error":"#REF!"}},800001965,"http://www.xbrl.org/scheme/companyName",null,{"$f":"Periodos!$D$4","v":"2016-12-31"},{"$f":"#REF!","v":{"$error":"#REF!"}},{"$f":"#REF!","v":{"$error":"#REF!"}}]
["/*",null,"--121--"]
[{"$error":"#REF!"},null,{"$f":"#REF!","v":{"$error":"#REF!"}},{"$f":"#REF!","v":{"$error":"#REF!"}},null,null,{"$f":"#REF!","v":{"$error":"#REF!"}},800001965,"http://www.xbrl.org/scheme/companyName",null,{"$f":"Periodos!$D$4","v":"2016-12-31"},{"$f":"#REF!","v":{"$error":"#REF!"}},{"$f":"#REF!","v":{"$error":"#REF!"}}]
[{"$error":"#REF!"},null,{"$f":"#REF!","v":{"$error":"#REF!"}},{"$f":"#REF!","v":{"$error":"#REF!"}},null,null,{"$f":"#REF!","v":{"$error":"#REF!"}},800001965,"http://www.xbrl.org/scheme/companyName",null,{"$f":"Periodos!$D$4","v":"2016-12-31"},{"$f":"#REF!","v":{"$error":"#REF!"}},{"$f":"#REF!","v":{"$error":"#REF!"}}]
[{"$error":"#REF!"},null,{"$f":"#REF!","v":{"$error":"#REF!"}},{"$f":"#REF!","v":{"$error":"#REF!"}},null,null,{"$f":"#REF!","v":{"$error":"#REF!"}},800001965,"http://www.xbrl.org/scheme/companyName",null,{"$f":"Periodos!$D$4","v":"2016-12-31"},{"$f":"#REF!","v":{"$error":"#REF!"}},{"$f":"#REF!","v":{"$error":"#REF!"}}]
[{"$error":"#REF!"},null,{"$f":"#REF!","v":{"$error":"#REF!"}},{"$f":"#REF!","v":{"$error":"#REF!"}},null,null,{"$f":"#REF!","v":{"$error":"#REF!"}},800001965,"http://www.xbrl.org/scheme/companyName",null,{"$f":"Periodos!$D$4","v":"2016-12-31"},{"$f":"#REF!","v":{"$error":"#REF!"}},{"$f":"#REF!","v":{"$error":"#REF!"}}]
[{"$error":"#REF!"},null,{"$f":"#REF!","v":{"$error":"#REF!"}},{"$f":"#REF!","v":{"$error":"#REF!"}},null,null,{"$f":"#REF!","v":{"$error":"#REF!"}},800001965,"http://www.xbrl.org/scheme/companyName",null,{"$f":"Periodos!$D$4","v":"2016-12-31"},{"$f":"#REF!","v":{"$error":"#REF!"}},{"$f":"#REF!","v":{"$error":"#REF!"}}]
[{"$error":"#REF!"},null,{"$f":"#REF!","v":{"$error":"#REF!"}},{"$f":"#REF!","v":{"$error":"#REF!"}},null,null,{"$f":"#REF!","v":{"$error":"#REF!"}},800001965,"http://www.xbrl.org/scheme/companyName",null,{"$f":"Periodos!$D$4","v":"2016-12-31"},{"$f":"#REF!","v":{"$error":"#REF!"}},{"$f":"#REF!","v":{"$error":"#REF!"}}]
[{"$error":"#REF!"},null,{"$f":"#REF!","v":{"$error":"#REF!"}},{"$f":"#REF!","v":{"$error":"#REF!"}},null,null,{"$f":"#REF!","v":{"$error":"#REF!"}},800001965,"http://www.xbrl.org/scheme/companyName",null,{"$f":"Periodos!$D$4","v":"2016-12-31"},{"$f":"#REF!","v":{"$error":"#REF!"}},{"$f":"#REF!","v":{"$error":"#REF!"}}]
[{"$error":"#REF!"},null,{"$f":"#REF!","v":{"$error":"#REF!"}},{"$f":"#REF!","v":{"$error":"#REF!"}},null,null,{"$f":"#REF!","v":{"$error":"#REF!"}},800001965,"http://www.xbrl.org/scheme/companyName",null,{"$f":"Periodos!$D$4","v":"2016-12-31"},{"$f":"#REF!","v":{"$error":"#REF!"}},{"$f":"#REF!","v":{"$error":"#REF!"}}]
[{"$error":"#REF!"},null,{"$f":"#REF!","v":{"$error":"#REF!"}},{"$f":"#REF!","v":{"$error":"#REF!"}},null,null,{"$f":"#REF!","v":{"$error":"#REF!"}},800001965,"http://www.xbrl.org/scheme/companyName",null,{"$f":"Periodos!$D$4","v":"2016-12-31"},{"$f":"#REF!","v":{"$error":"#REF!"}},{"$f":"#REF!","v":{"$error":"#REF!"}}]
[{"$error":"#REF!"},null,{"$f":"#REF!","v":{"$error":"#REF!"}},{"$f":"#REF!","v":{"$error":"#REF!"}},null,null,{"$f":"#REF!","v":{"$error":"#REF!"}},800001965,"http://www.xbrl.org/scheme/companyName",null,{"$f":"Periodos!$D$4","v":"2016-12-31"},{"$f":"#REF!","v":{"$error":"#REF!"}},{"$f":"#REF!","v":{"$error":"#REF!"}}]
[{"$error":"#REF!"},null,{"$f":"#REF!","v":{"$error":"#REF!"}},{"$f":"#REF!","v":{"$error":"#REF!"}},null,null,{"$f":"#REF!","v":{"$error":"#REF!"}},800001965,"http://www.xbrl.org/scheme/companyName",null,{"$f":"Periodos!$D$4","v":"2016-12-31"},{"$f":"#REF!","v":{"$error":"#REF!"}},{"$f":"#REF!","v":{"$error":"#REF!"}}]
[{"$error":"#REF!"},null,{"$f":"#REF!","v":{"$error":"#REF!"}},{"$f":"#REF!","v":{"$error":"#REF!"}},0,"peso",{"$f":"#REF!","v":{"$error":"#REF!"}},800001965,"http://www.xbrl.org/scheme/companyName",null,{"$f":"Periodos!$D$4","v":"2016-12-31"},{"$f":"#REF!","v":{"$error":"#REF!"}},{"$f":"#REF!","v":{"$error":"#REF!"}}]
["/*",null,"--122--"]
[{"$error":"#REF!"},null,{"$f":"#REF!","v":{"$error":"#REF!"}},{"$f":"#REF!","v":{"$error":"#REF!"}},null,null,{"$f":"#REF!","v":{"$error":"#REF!"}},800001965,"http://www.xbrl.org/scheme/companyName",null,{"$f":"Periodos!$D$4","v":"2016-12-31"},{"$f":"#REF!","v":{"$error":"#REF!"}},{"$f":"#REF!","v":{"$error":"#REF!"}}]
[{"$error":"#REF!"},null,{"$f":"#REF!","v":{"$error":"#REF!"}},{"$f":"#REF!","v":{"$error":"#REF!"}},null,null,{"$f":"#REF!","v":{"$error":"#REF!"}},800001965,"http://www.xbrl.org/scheme/companyName",null,{"$f":"Periodos!$D$4","v":"2016-12-31"},{"$f":"#REF!","v":{"$error":"#REF!"}},{"$f":"#REF!","v":{"$error":"#REF!"}}]
[{"$error":"#REF!"},null,{"$f":"#REF!","v":{"$error":"#REF!"}},{"$f":"#REF!","v":{"$error":"#REF!"}},null,null,{"$f":"#REF!","v":{"$error":"#REF!"}},800001965,"http://www.xbrl.org/scheme/companyName",null,{"$f":"Periodos!$D$4","v":"2016-12-31"},{"$f":"#REF!","v":{"$error":"#REF!"}},{"$f":"#REF!","v":{"$error":"#REF!"}}]
[{"$error":"#REF!"},null,{"$f":"#REF!","v":{"$error":"#REF!"}},{"$f":"#REF!","v":{"$error":"#REF!"}},null,null,{"$f":"#REF!","v":{"$error":"#REF!"}},800001965,"http://www.xbrl.org/scheme/companyName",null,{"$f":"Periodos!$D$4","v":"2016-12-31"},{"$f":"#REF!","v":{"$error":"#REF!"}},{"$f":"#REF!","v":{"$error":"#REF!"}}]
[{"$error":"#REF!"},null,{"$f":"#REF!","v":{"$error":"#REF!"}},{"$f":"#REF!","v":{"$error":"#REF!"}},null,null,{"$f":"#REF!","v":{"$error":"#REF!"}},800001965,"http://www.xbrl.org/scheme/companyName",null,{"$f":"Periodos!$D$4","v":"2016-12-31"},{"$f":"#REF!","v":{"$error":"#REF!"}},{"$f":"#REF!","v":{"$error":"#REF!"}}]
[{"$error":"#REF!"},null,{"$f":"#REF!","v":{"$error":"#REF!"}},{"$f":"#REF!","v":{"$error":"#REF!"}},null,null,{"$f":"#REF!","v":{"$error":"#REF!"}},800001965,"http://www.xbrl.org/scheme/companyName",null,{"$f":"Periodos!$D$4","v":"2016-12-31"},{"$f":"#REF!","v":{"$error":"#REF!"}},{"$f":"#REF!","v":{"$error":"#REF!"}}]
[{"$error":"#REF!"},null,{"$f":"#REF!","v":{"$error":"#REF!"}},{"$f":"#REF!","v":{"$error":"#REF!"}},null,null,{"$f":"#REF!","v":{"$error":"#REF!"}},800001965,"http://www.xbrl.org/scheme/companyName",null,{"$f":"Periodos!$D$4","v":"2016-12-31"},{"$f":"#REF!","v":{"$error":"#REF!"}},{"$f":"#REF!","v":{"$error":"#REF!"}}]
[{"$f":"IF(G5345=\"\",\"/*\",\"\")","v":{"$error":"#REF!"}},null,{"$f":"#REF!","v":{"$error":"#REF!"}},{"$f":"#REF!","v":{"$error":"#REF!"}},null,null,{"$f":"#REF!","v":{"$error":"#REF!"}},800001965,"http://www.xbrl.org/scheme/companyName",null,{"$f":"Periodos!$D$4","v":"2016-12-31"},{"$f":"#REF!","v":{"$error":"#REF!"}},{"$f":"#REF!","v":{"$error":"#REF!"}}]
[{"$error":"#REF!"},null,{"$f":"#REF!","v":{"$error":"#REF!"}},{"$f":"#REF!","v":{"$error":"#REF!"}},null,null,{"$f":"#REF!","v":{"$error":"#REF!"}},800001965,"http://www.xbrl.org/scheme/companyName",null,{"$f":"Periodos!$D$4","v":"2016-12-31"},{"$f":"#REF!","v":{"$error":"#REF!"}},{"$f":"#REF!","v":{"$error":"#REF!"}}]
[{"$error":"#REF!"},null,{"$f":"#REF!","v":{"$error":"#REF!"}},{"$f":"#REF!","v":{"$error":"#REF!"}},null,null,{"$f":"#REF!","v":{"$error":"#REF!"}},800001965,"http://www.xbrl.org/scheme/companyName",null,{"$f":"Periodos!$D$4","v":"2016-12-31"},{"$f":"#REF!","v":{"$error":"#REF!"}},{"$f":"#REF!","v":{"$error":"#REF!"}}]
[{"$error":"#REF!"},null,{"$f":"#REF!","v":{"$error":"#REF!"}},{"$f":"#REF!","v":{"$error":"#REF!"}},null,null,{"$f":"#REF!","v":{"$error":"#REF!"}},800001965,"http://www.xbrl.org/scheme/companyName",null,{"$f":"Periodos!$D$4","v":"2016-12-31"},{"$f":"#REF!","v":{"$error":"#REF!"}},{"$f":"#REF!","v":{"$error":"#REF!"}}]
[{"$error":"#REF!"},null,{"$f":"#REF!","v":{"$error":"#REF!"}},{"$f":"#REF!","v":{"$error":"#REF!"}},0,"peso",{"$f":"#REF!","v":{"$error":"#REF!"}},800001965,"http://www.xbrl.org/scheme/companyName",null,{"$f":"Periodos!$D$4","v":"2016-12-31"},{"$f":"#REF!","v":{"$error":"#REF!"}},{"$f":"#REF!","v":{"$error":"#REF!"}}]
["/*",null,"--123--"]
[{"$error":"#REF!"},null,{"$f":"#REF!","v":{"$error":"#REF!"}},{"$f":"#REF!","v":{"$error":"#REF!"}},null,null,{"$f":"#REF!","v":{"$error":"#REF!"}},800001965,"http://www.xbrl.org/scheme/companyName",null,{"$f":"Periodos!$D$4","v":"2016-12-31"},{"$f":"#REF!","v":{"$error":"#REF!"}},{"$f":"#REF!","v":{"$error":"#REF!"}}]
[{"$error":"#REF!"},null,{"$f":"#REF!","v":{"$error":"#REF!"}},{"$f":"#REF!","v":{"$error":"#REF!"}},null,null,{"$f":"#REF!","v":{"$error":"#REF!"}},800001965,"http://www.xbrl.org/scheme/companyName",null,{"$f":"Periodos!$D$4","v":"2016-12-31"},{"$f":"#REF!","v":{"$error":"#REF!"}},{"$f":"#REF!","v":{"$error":"#REF!"}}]
[{"$error":"#REF!"},null,{"$f":"#REF!","v":{"$error":"#REF!"}},{"$f":"#REF!","v":{"$error":"#REF!"}},null,null,{"$f":"#REF!","v":{"$error":"#REF!"}},800001965,"http://www.xbrl.org/scheme/companyName",null,{"$f":"Periodos!$D$4","v":"2016-12-31"},{"$f":"#REF!","v":{"$error":"#REF!"}},{"$f":"#REF!","v":{"$error":"#REF!"}}]
[{"$error":"#REF!"},null,{"$f":"#REF!","v":{"$error":"#REF!"}},{"$f":"#REF!","v":{"$error":"#REF!"}},null,null,{"$f":"#REF!","v":{"$error":"#REF!"}},800001965,"http://www.xbrl.org/scheme/companyName",null,{"$f":"Periodos!$D$4","v":"2016-12-31"},{"$f":"#REF!","v":{"$error":"#REF!"}},{"$f":"#REF!","v":{"$error":"#REF!"}}]
[{"$error":"#REF!"},null,{"$f":"#REF!","v":{"$error":"#REF!"}},{"$f":"#REF!","v":{"$error":"#REF!"}},null,null,{"$f":"#REF!","v":{"$error":"#REF!"}},800001965,"http://www.xbrl.org/scheme/companyName",null,{"$f":"Periodos!$D$4","v":"2016-12-31"},{"$f":"#REF!","v":{"$error":"#REF!"}},{"$f":"#REF!","v":{"$error":"#REF!"}}]
[{"$error":"#REF!"},null,{"$f":"#REF!","v":{"$error":"#REF!"}},{"$f":"#REF!","v":{"$error":"#REF!"}},null,null,{"$f":"#REF!","v":{"$error":"#REF!"}},800001965,"http://www.xbrl.org/scheme/companyName",null,{"$f":"Periodos!$D$4","v":"2016-12-31"},{"$f":"#REF!","v":{"$error":"#REF!"}},{"$f":"#REF!","v":{"$error":"#REF!"}}]
[{"$error":"#REF!"},null,{"$f":"#REF!","v":{"$error":"#REF!"}},{"$f":"#REF!","v":{"$error":"#REF!"}},null,null,{"$f":"#REF!","v":{"$error":"#REF!"}},800001965,"http://www.xbrl.org/scheme/companyName",null,{"$f":"Periodos!$D$4","v":"2016-12-31"},{"$f":"#REF!","v":{"$error":"#REF!"}},{"$f":"#REF!","v":{"$error":"#REF!"}}]
[{"$error":"#REF!"},null,{"$f":"#REF!","v":{"$error":"#REF!"}},{"$f":"#REF!","v":{"$error":"#REF!"}},null,null,{"$f":"#REF!","v":{"$error":"#REF!"}},800001965,"http://www.xbrl.org/scheme/companyName",null,{"$f":"Periodos!$D$4","v":"2016-12-31"},{"$f":"#REF!","v":{"$error":"#REF!"}},{"$f":"#REF!","v":{"$error":"#REF!"}}]
[{"$error":"#REF!"},null,{"$f":"#REF!","v":{"$error":"#REF!"}},{"$f":"#REF!","v":{"$error":"#REF!"}},null,null,{"$f":"#REF!","v":{"$error":"#REF!"}},800001965,"http://www.xbrl.org/scheme/companyName",null,{"$f":"Periodos!$D$4","v":"2016-12-31"},{"$f":"#REF!","v":{"$error":"#REF!"}},{"$f":"#REF!","v":{"$error":"#REF!"}}]
[{"$error":"#REF!"},null,{"$f":"#REF!","v":{"$error":"#REF!"}},{"$f":"#REF!","v":{"$error":"#REF!"}},null,null,{"$f":"#REF!","v":{"$error":"#REF!"}},800001965,"http://www.xbrl.org/scheme/companyName",null,{"$f":"Periodos!$D$4","v":"2016-12-31"},{"$f":"#REF!","v":{"$error":"#REF!"}},{"$f":"#REF!","v":{"$error":"#REF!"}}]
[{"$error":"#REF!"},null,{"$f":"#REF!","v":{"$error":"#REF!"}},{"$f":"#REF!","v":{"$error":"#REF!"}},null,null,{"$f":"#REF!","v":{"$error":"#REF!"}},800001965,"http://www.xbrl.org/scheme/companyName",null,{"$f":"Periodos!$D$4","v":"2016-12-31"},{"$f":"#REF!","v":{"$error":"#REF!"}},{"$f":"#REF!","v":{"$error":"#REF!"}}]
[{"$error":"#REF!"},null,{"$f":"#REF!","v":{"$error":"#REF!"}},{"$f":"#REF!","v":{"$error":"#REF!"}},0,"peso",{"$f":"#REF!","v":{"$error":"#REF!"}},800001965,"http://www.xbrl.org/scheme/companyName",null,{"$f":"Periodos!$D$4","v":"2016-12-31"},{"$f":"#REF!","v":{"$error":"#REF!"}},{"$f":"#REF!","v":{"$error":"#REF!"}}]
["/*",null,"--124--"]
[{"$error":"#REF!"},null,{"$f":"#REF!","v":{"$error":"#REF!"}},{"$f":"#REF!","v":{"$error":"#REF!"}},null,null,{"$f":"#REF!","v":{"$error":"#REF!"}},800001965,"http://www.xbrl.org/scheme/companyName",null,{"$f":"Periodos!$D$4","v":"2016-12-31"},{"$f":"#REF!","v":{"$error":"#REF!"}},{"$f":"#REF!","v":{"$error":"#REF!"}}]
[{"$error":"#REF!"},null,{"$f":"#REF!","v":{"$error":"#REF!"}},{"$f":"#REF!","v":{"$error":"#REF!"}},null,null,{"$f":"#REF!","v":{"$error":"#REF!"}},800001965,"http://www.xbrl.org/scheme/companyName",null,{"$f":"Periodos!$D$4","v":"2016-12-31"},{"$f":"#REF!","v":{"$error":"#REF!"}},{"$f":"#REF!","v":{"$error":"#REF!"}}]
[{"$error":"#REF!"},null,{"$f":"#REF!","v":{"$error":"#REF!"}},{"$f":"#REF!","v":{"$error":"#REF!"}},null,null,{"$f":"#REF!","v":{"$error":"#REF!"}},800001965,"http://www.xbrl.org/scheme/companyName",null,{"$f":"Periodos!$D$4","v":"2016-12-31"},{"$f":"#REF!","v":{"$error":"#REF!"}},{"$f":"#REF!","v":{"$error":"#REF!"}}]
[{"$error":"#REF!"},null,{"$f":"#REF!","v":{"$error":"#REF!"}},{"$f":"#REF!","v":{"$error":"#REF!"}},null,null,{"$f":"#REF!","v":{"$error":"#REF!"}},800001965,"http://www.xbrl.org/scheme/companyName",null,{"$f":"Periodos!$D$4","v":"2016-12-31"},{"$f":"#REF!","v":{"$error":"#REF!"}},{"$f":"#REF!","v":{"$error":"#REF!"}}]
[{"$error":"#REF!"},null,{"$f":"#REF!","v":{"$error":"#REF!"}},{"$f":"#REF!","v":{"$error":"#REF!"}},null,null,{"$f":"#REF!","v":{"$error":"#REF!"}},800001965,"http://www.xbrl.org/scheme/companyName",null,{"$f":"Periodos!$D$4","v":"2016-12-31"},{"$f":"#REF!","v":{"$error":"#REF!"}},{"$f":"#REF!","v":{"$error":"#REF!"}}]
[{"$error":"#REF!"},null,{"$f":"#REF!","v":{"$error":"#REF!"}},{"$f":"#REF!","v":{"$error":"#REF!"}},null,null,{"$f":"#REF!","v":{"$error":"#REF!"}},800001965,"http://www.xbrl.org/scheme/companyName",null,{"$f":"Periodos!$D$4","v":"2016-12-31"},{"$f":"#REF!","v":{"$error":"#REF!"}},{"$f":"#REF!","v":{"$error":"#REF!"}}]
[{"$error":"#REF!"},null,{"$f":"#REF!","v":{"$error":"#REF!"}},{"$f":"#REF!","v":{"$error":"#REF!"}},null,null,{"$f":"#REF!","v":{"$error":"#REF!"}},800001965,"http://www.xbrl.org/scheme/companyName",null,{"$f":"Periodos!$D$4","v":"2016-12-31"},{"$f":"#REF!","v":{"$error":"#REF!"}},{"$f":"#REF!","v":{"$error":"#REF!"}}]
[{"$error":"#REF!"},null,{"$f":"#REF!","v":{"$error":"#REF!"}},{"$f":"#REF!","v":{"$error":"#REF!"}},null,null,{"$f":"#REF!","v":{"$error":"#REF!"}},800001965,"http://www.xbrl.org/scheme/companyName",null,{"$f":"Periodos!$D$4","v":"2016-12-31"},{"$f":"#REF!","v":{"$error":"#REF!"}},{"$f":"#REF!","v":{"$error":"#REF!"}}]
[{"$error":"#REF!"},null,{"$f":"#REF!","v":{"$error":"#REF!"}},{"$f":"#REF!","v":{"$error":"#REF!"}},null,null,{"$f":"#REF!","v":{"$error":"#REF!"}},800001965,"http://www.xbrl.org/scheme/companyName",null,{"$f":"Periodos!$D$4","v":"2016-12-31"},{"$f":"#REF!","v":{"$error":"#REF!"}},{"$f":"#REF!","v":{"$error":"#REF!"}}]
[{"$error":"#REF!"},null,{"$f":"#REF!","v":{"$error":"#REF!"}},{"$f":"#REF!","v":{"$error":"#REF!"}},null,null,{"$f":"#REF!","v":{"$error":"#REF!"}},800001965,"http://www.xbrl.org/scheme/companyName",null,{"$f":"Periodos!$D$4","v":"2016-12-31"},{"$f":"#REF!","v":{"$error":"#REF!"}},{"$f":"#REF!","v":{"$error":"#REF!"}}]
[{"$error":"#REF!"},null,{"$f":"#REF!","v":{"$error":"#REF!"}},{"$f":"#REF!","v":{"$error":"#REF!"}},null,null,{"$f":"#REF!","v":{"$error":"#REF!"}},800001965,"http://www.xbrl.org/scheme/companyName",null,{"$f":"Periodos!$D$4","v":"2016-12-31"},{"$f":"#REF!","v":{"$error":"#REF!"}},{"$f":"#REF!","v":{"$error":"#REF!"}}]
[{"$error":"#REF!"},null,{"$f":"#REF!","v":{"$error":"#REF!"}},{"$f":"#REF!","v":{"$error":"#REF!"}},0,"peso",{"$f":"#REF!","v":{"$error":"#REF!"}},800001965,"http://www.xbrl.org/scheme/companyName",null,{"$f":"Periodos!$D$4","v":"2016-12-31"},{"$f":"#REF!","v":{"$error":"#REF!"}},{"$f":"#REF!","v":{"$error":"#REF!"}}]
["/*",null,"--125--"]
[{"$error":"#REF!"},null,{"$f":"#REF!","v":{"$error":"#REF!"}},{"$f":"#REF!","v":{"$error":"#REF!"}},null,null,{"$f":"#REF!","v":{"$error":"#REF!"}},800001965,"http://www.xbrl.org/scheme/companyName",null,{"$f":"Periodos!$D$4","v":"2016-12-31"},{"$f":"#REF!","v":{"$error":"#REF!"}},{"$f":"#REF!","v":{"$error":"#REF!"}}]
[{"$error":"#REF!"},null,{"$f":"#REF!","v":{"$error":"#REF!"}},{"$f":"#REF!","v":{"$error":"#REF!"}},null,null,{"$f":"#REF!","v":{"$error":"#REF!"}},800001965,"http://www.xbrl.org/scheme/companyName",null,{"$f":"Periodos!$D$4","v":"2016-12-31"},{"$f":"#REF!","v":{"$error":"#REF!"}},{"$f":"#REF!","v":{"$error":"#REF!"}}]
[{"$error":"#REF!"},null,{"$f":"#REF!","v":{"$error":"#REF!"}},{"$f":"#REF!","v":{"$error":"#REF!"}},null,null,{"$f":"#REF!","v":{"$error":"#REF!"}},800001965,"http://www.xbrl.org/scheme/companyName",null,{"$f":"Periodos!$D$4","v":"2016-12-31"},{"$f":"#REF!","v":{"$error":"#REF!"}},{"$f":"#REF!","v":{"$error":"#REF!"}}]
[{"$error":"#REF!"},null,{"$f":"#REF!","v":{"$error":"#REF!"}},{"$f":"#REF!","v":{"$error":"#REF!"}},null,null,{"$f":"#REF!","v":{"$error":"#REF!"}},800001965,"http://www.xbrl.org/scheme/companyName",null,{"$f":"Periodos!$D$4","v":"2016-12-31"},{"$f":"#REF!","v":{"$error":"#REF!"}},{"$f":"#REF!","v":{"$error":"#REF!"}}]
[{"$error":"#REF!"},null,{"$f":"#REF!","v":{"$error":"#REF!"}},{"$f":"#REF!","v":{"$error":"#REF!"}},null,null,{"$f":"#REF!","v":{"$error":"#REF!"}},800001965,"http://www.xbrl.org/scheme/companyName",null,{"$f":"Periodos!$D$4","v":"2016-12-31"},{"$f":"#REF!","v":{"$error":"#REF!"}},{"$f":"#REF!","v":{"$error":"#REF!"}}]
[{"$error":"#REF!"},null,{"$f":"#REF!","v":{"$error":"#REF!"}},{"$f":"#REF!","v":{"$error":"#REF!"}},null,null,{"$f":"#REF!","v":{"$error":"#REF!"}},800001965,"http://www.xbrl.org/scheme/companyName",null,{"$f":"Periodos!$D$4","v":"2016-12-31"},{"$f":"#REF!","v":{"$error":"#REF!"}},{"$f":"#REF!","v":{"$error":"#REF!"}}]
[{"$error":"#REF!"},null,{"$f":"#REF!","v":{"$error":"#REF!"}},{"$f":"#REF!","v":{"$error":"#REF!"}},null,null,{"$f":"#REF!","v":{"$error":"#REF!"}},800001965,"http://www.xbrl.org/scheme/companyName",null,{"$f":"Periodos!$D$4","v":"2016-12-31"},{"$f":"#REF!","v":{"$error":"#REF!"}},{"$f":"#REF!","v":{"$error":"#REF!"}}]
[{"$error":"#REF!"},null,{"$f":"#REF!","v":{"$error":"#REF!"}},{"$f":"#REF!","v":{"$error":"#REF!"}},null,null,{"$f":"#REF!","v":{"$error":"#REF!"}},800001965,"http://www.xbrl.org/scheme/companyName",null,{"$f":"Periodos!$D$4","v":"2016-12-31"},{"$f":"#REF!","v":{"$error":"#REF!"}},{"$f":"#REF!","v":{"$error":"#REF!"}}]
[{"$error":"#REF!"},null,{"$f":"#REF!","v":{"$error":"#REF!"}},{"$f":"#REF!","v":{"$error":"#REF!"}},null,null,{"$f":"#REF!","v":{"$error":"#REF!"}},800001965,"http://www.xbrl.org/scheme/companyName",null,{"$f":"Periodos!$D$4","v":"2016-12-31"},{"$f":"#REF!","v":{"$error":"#REF!"}},{"$f":"#REF!","v":{"$error":"#REF!"}}]
[{"$error":"#REF!"},null,{"$f":"#REF!","v":{"$error":"#REF!"}},{"$f":"#REF!","v":{"$error":"#REF!"}},null,null,{"$f":"#REF!","v":{"$error":"#REF!"}},800001965,"http://www.xbrl.org/scheme/companyName",null,{"$f":"Periodos!$D$4","v":"2016-12-31"},{"$f":"#REF!","v":{"$error":"#REF!"}},{"$f":"#REF!","v":{"$error":"#REF!"}}]
[{"$error":"#REF!"},null,{"$f":"#REF!","v":{"$error":"#REF!"}},{"$f":"#REF!","v":{"$error":"#REF!"}},null,null,{"$f":"#REF!","v":{"$error":"#REF!"}},800001965,"http://www.xbrl.org/scheme/companyName",null,{"$f":"Periodos!$D$4","v":"2016-12-31"},{"$f":"#REF!","v":{"$error":"#REF!"}},{"$f":"#REF!","v":{"$error":"#REF!"}}]
[{"$error":"#REF!"},null,{"$f":"#REF!","v":{"$error":"#REF!"}},{"$f":"#REF!","v":{"$error":"#REF!"}},0,"peso",{"$f":"#REF!","v":{"$error":"#REF!"}},800001965,"http://www.xbrl.org/scheme/companyName",null,{"$f":"Periodos!$D$4","v":"2016-12-31"},{"$f":"#REF!","v":{"$error":"#REF!"}},{"$f":"#REF!","v":{"$error":"#REF!"}}]
["/*",null,"--126--"]
[{"$error":"#REF!"},null,{"$f":"#REF!","v":{"$error":"#REF!"}},{"$f":"#REF!","v":{"$error":"#REF!"}},null,null,{"$f":"#REF!","v":{"$error":"#REF!"}},800001965,"http://www.xbrl.org/scheme/companyName",null,{"$f":"Periodos!$D$4","v":"2016-12-31"},{"$f":"#REF!","v":{"$error":"#REF!"}},{"$f":"#REF!","v":{"$error":"#REF!"}}]
[{"$error":"#REF!"},null,{"$f":"#REF!","v":{"$error":"#REF!"}},{"$f":"#REF!","v":{"$error":"#REF!"}},null,null,{"$f":"#REF!","v":{"$error":"#REF!"}},800001965,"http://www.xbrl.org/scheme/companyName",null,{"$f":"Periodos!$D$4","v":"2016-12-31"},{"$f":"#REF!","v":{"$error":"#REF!"}},{"$f":"#REF!","v":{"$error":"#REF!"}}]
[{"$error":"#REF!"},null,{"$f":"#REF!","v":{"$error":"#REF!"}},{"$f":"#REF!","v":{"$error":"#REF!"}},null,null,{"$f":"#REF!","v":{"$error":"#REF!"}},800001965,"http://www.xbrl.org/scheme/companyName",null,{"$f":"Periodos!$D$4","v":"2016-12-31"},{"$f":"#REF!","v":{"$error":"#REF!"}},{"$f":"#REF!","v":{"$error":"#REF!"}}]
[{"$error":"#REF!"},null,{"$f":"#REF!","v":{"$error":"#REF!"}},{"$f":"#REF!","v":{"$error":"#REF!"}},null,null,{"$f":"#REF!","v":{"$error":"#REF!"}},800001965,"http://www.xbrl.org/scheme/companyName",null,{"$f":"Periodos!$D$4","v":"2016-12-31"},{"$f":"#REF!","v":{"$error":"#REF!"}},{"$f":"#REF!","v":{"$error":"#REF!"}}]
[{"$error":"#REF!"},null,{"$f":"#REF!","v":{"$error":"#REF!"}},{"$f":"#REF!","v":{"$error":"#REF!"}},null,null,{"$f":"#REF!","v":{"$error":"#REF!"}},800001965,"http://www.xbrl.org/scheme/companyName",null,{"$f":"Periodos!$D$4","v":"2016-12-31"},{"$f":"#REF!","v":{"$error":"#REF!"}},{"$f":"#REF!","v":{"$error":"#REF!"}}]
[{"$error":"#REF!"},null,{"$f":"#REF!","v":{"$error":"#REF!"}},{"$f":"#REF!","v":{"$error":"#REF!"}},null,null,{"$f":"#REF!","v":{"$error":"#REF!"}},800001965,"http://www.xbrl.org/scheme/companyName",null,{"$f":"Periodos!$D$4","v":"2016-12-31"},{"$f":"#REF!","v":{"$error":"#REF!"}},{"$f":"#REF!","v":{"$error":"#REF!"}}]
[{"$error":"#REF!"},null,{"$f":"#REF!","v":{"$error":"#REF!"}},{"$f":"#REF!","v":{"$error":"#REF!"}},null,null,{"$f":"#REF!","v":{"$error":"#REF!"}},800001965,"http://www.xbrl.org/scheme/companyName",null,{"$f":"Periodos!$D$4","v":"2016-12-31"},{"$f":"#REF!","v":{"$error":"#REF!"}},{"$f":"#REF!","v":{"$error":"#REF!"}}]
[{"$error":"#REF!"},null,{"$f":"#REF!","v":{"$error":"#REF!"}},{"$f":"#REF!","v":{"$error":"#REF!"}},null,null,{"$f":"#REF!","v":{"$error":"#REF!"}},800001965,"http://www.xbrl.org/scheme/companyName",null,{"$f":"Periodos!$D$4","v":"2016-12-31"},{"$f":"#REF!","v":{"$error":"#REF!"}},{"$f":"#REF!","v":{"$error":"#REF!"}}]
[{"$error":"#REF!"},null,{"$f":"#REF!","v":{"$error":"#REF!"}},{"$f":"#REF!","v":{"$error":"#REF!"}},null,null,{"$f":"#REF!","v":{"$error":"#REF!"}},800001965,"http://www.xbrl.org/scheme/companyName",null,{"$f":"Periodos!$D$4","v":"2016-12-31"},{"$f":"#REF!","v":{"$error":"#REF!"}},{"$f":"#REF!","v":{"$error":"#REF!"}}]
[{"$error":"#REF!"},null,{"$f":"#REF!","v":{"$error":"#REF!"}},{"$f":"#REF!","v":{"$error":"#REF!"}},null,null,{"$f":"#REF!","v":{"$error":"#REF!"}},800001965,"http://www.xbrl.org/scheme/companyName",null,{"$f":"Periodos!$D$4","v":"2016-12-31"},{"$f":"#REF!","v":{"$error":"#REF!"}},{"$f":"#REF!","v":{"$error":"#REF!"}}]
[{"$error":"#REF!"},null,{"$f":"#REF!","v":{"$error":"#REF!"}},{"$f":"#REF!","v":{"$error":"#REF!"}},null,null,{"$f":"#REF!","v":{"$error":"#REF!"}},800001965,"http://www.xbrl.org/scheme/companyName",null,{"$f":"Periodos!$D$4","v":"2016-12-31"},{"$f":"#REF!","v":{"$error":"#REF!"}},{"$f":"#REF!","v":{"$error":"#REF!"}}]
[{"$error":"#REF!"},null,{"$f":"#REF!","v":{"$error":"#REF!"}},{"$f":"#REF!","v":{"$error":"#REF!"}},0,"peso",{"$f":"#REF!","v":{"$error":"#REF!"}},800001965,"http://www.xbrl.org/scheme/companyName",null,{"$f":"Periodos!$D$4","v":"2016-12-31"},{"$f":"#REF!","v":{"$error":"#REF!"}},{"$f":"#REF!","v":{"$error":"#REF!"}}]
["/*",null,"--127--"]
[{"$error":"#REF!"},null,{"$f":"#REF!","v":{"$error":"#REF!"}},{"$f":"#REF!","v":{"$error":"#REF!"}},null,null,{"$f":"#REF!","v":{"$error":"#REF!"}},800001965,"http://www.xbrl.org/scheme/companyName",null,{"$f":"Periodos!$D$4","v":"2016-12-31"},{"$f":"#REF!","v":{"$error":"#REF!"}},{"$f":"#REF!","v":{"$error":"#REF!"}}]
[{"$error":"#REF!"},null,{"$f":"#REF!","v":{"$error":"#REF!"}},{"$f":"#REF!","v":{"$error":"#REF!"}},null,null,{"$f":"#REF!","v":{"$error":"#REF!"}},800001965,"http://www.xbrl.org/scheme/companyName",null,{"$f":"Periodos!$D$4","v":"2016-12-31"},{"$f":"#REF!","v":{"$error":"#REF!"}},{"$f":"#REF!","v":{"$error":"#REF!"}}]
[{"$error":"#REF!"},null,{"$f":"#REF!","v":{"$error":"#REF!"}},{"$f":"#REF!","v":{"$error":"#REF!"}},null,null,{"$f":"#REF!","v":{"$error":"#REF!"}},800001965,"http://www.xbrl.org/scheme/companyName",null,{"$f":"Periodos!$D$4","v":"2016-12-31"},{"$f":"#REF!","v":{"$error":"#REF!"}},{"$f":"#REF!","v":{"$error":"#REF!"}}]
[{"$error":"#REF!"},null,{"$f":"#REF!","v":{"$error":"#REF!"}},{"$f":"#REF!","v":{"$error":"#REF!"}},null,null,{"$f":"#REF!","v":{"$error":"#REF!"}},800001965,"http://www.xbrl.org/scheme/companyName",null,{"$f":"Periodos!$D$4","v":"2016-12-31"},{"$f":"#REF!","v":{"$error":"#REF!"}},{"$f":"#REF!","v":{"$error":"#REF!"}}]
[{"$error":"#REF!"},null,{"$f":"#REF!","v":{"$error":"#REF!"}},{"$f":"#REF!","v":{"$error":"#REF!"}},null,null,{"$f":"#REF!","v":{"$error":"#REF!"}},800001965,"http://www.xbrl.org/scheme/companyName",null,{"$f":"Periodos!$D$4","v":"2016-12-31"},{"$f":"#REF!","v":{"$error":"#REF!"}},{"$f":"#REF!","v":{"$error":"#REF!"}}]
[{"$error":"#REF!"},null,{"$f":"#REF!","v":{"$error":"#REF!"}},{"$f":"#REF!","v":{"$error":"#REF!"}},null,null,{"$f":"#REF!","v":{"$error":"#REF!"}},800001965,"http://www.xbrl.org/scheme/companyName",null,{"$f":"Periodos!$D$4","v":"2016-12-31"},{"$f":"#REF!","v":{"$error":"#REF!"}},{"$f":"#REF!","v":{"$error":"#REF!"}}]
[{"$f":"IF(G5409=\"\",\"/*\",\"\")","v":{"$error":"#REF!"}},null,{"$f":"#REF!","v":{"$error":"#REF!"}},{"$f":"#REF!","v":{"$error":"#REF!"}},null,null,{"$f":"#REF!","v":{"$error":"#REF!"}},800001965,"http://www.xbrl.org/scheme/companyName",null,{"$f":"Periodos!$D$4","v":"2016-12-31"},{"$f":"#REF!","v":{"$error":"#REF!"}},{"$f":"#REF!","v":{"$error":"#REF!"}}]
[{"$error":"#REF!"},null,{"$f":"#REF!","v":{"$error":"#REF!"}},{"$f":"#REF!","v":{"$error":"#REF!"}},null,null,{"$f":"#REF!","v":{"$error":"#REF!"}},800001965,"http://www.xbrl.org/scheme/companyName",null,{"$f":"Periodos!$D$4","v":"2016-12-31"},{"$f":"#REF!","v":{"$error":"#REF!"}},{"$f":"#REF!","v":{"$error":"#REF!"}}]
[{"$error":"#REF!"},null,{"$f":"#REF!","v":{"$error":"#REF!"}},{"$f":"#REF!","v":{"$error":"#REF!"}},null,null,{"$f":"#REF!","v":{"$error":"#REF!"}},800001965,"http://www.xbrl.org/scheme/companyName",null,{"$f":"Periodos!$D$4","v":"2016-12-31"},{"$f":"#REF!","v":{"$error":"#REF!"}},{"$f":"#REF!","v":{"$error":"#REF!"}}]
[{"$error":"#REF!"},null,{"$f":"#REF!","v":{"$error":"#REF!"}},{"$f":"#REF!","v":{"$error":"#REF!"}},null,null,{"$f":"#REF!","v":{"$error":"#REF!"}},800001965,"http://www.xbrl.org/scheme/companyName",null,{"$f":"Periodos!$D$4","v":"2016-12-31"},{"$f":"#REF!","v":{"$error":"#REF!"}},{"$f":"#REF!","v":{"$error":"#REF!"}}]
[{"$error":"#REF!"},null,{"$f":"#REF!","v":{"$error":"#REF!"}},{"$f":"#REF!","v":{"$error":"#REF!"}},null,null,{"$f":"#REF!","v":{"$error":"#REF!"}},800001965,"http://www.xbrl.org/scheme/companyName",null,{"$f":"Periodos!$D$4","v":"2016-12-31"},{"$f":"#REF!","v":{"$error":"#REF!"}},{"$f":"#REF!","v":{"$error":"#REF!"}}]
[{"$error":"#REF!"},null,{"$f":"#REF!","v":{"$error":"#REF!"}},{"$f":"#REF!","v":{"$error":"#REF!"}},0,"peso",{"$f":"#REF!","v":{"$error":"#REF!"}},800001965,"http://www.xbrl.org/scheme/companyName",null,{"$f":"Periodos!$D$4","v":"2016-12-31"},{"$f":"#REF!","v":{"$error":"#REF!"}},{"$f":"#REF!","v":{"$error":"#REF!"}}]
["/*",null,"--128--"]
[{"$error":"#REF!"},null,{"$f":"#REF!","v":{"$error":"#REF!"}},{"$f":"#REF!","v":{"$error":"#REF!"}},null,null,{"$f":"#REF!","v":{"$error":"#REF!"}},800001965,"http://www.xbrl.org/scheme/companyName",null,{"$f":"Periodos!$D$4","v":"2016-12-31"},{"$f":"#REF!","v":{"$error":"#REF!"}},{"$f":"#REF!","v":{"$error":"#REF!"}}]
[{"$error":"#REF!"},null,{"$f":"#REF!","v":{"$error":"#REF!"}},{"$f":"#REF!","v":{"$error":"#REF!"}},null,null,{"$f":"#REF!","v":{"$error":"#REF!"}},800001965,"http://www.xbrl.org/scheme/companyName",null,{"$f":"Periodos!$D$4","v":"2016-12-31"},{"$f":"#REF!","v":{"$error":"#REF!"}},{"$f":"#REF!","v":{"$error":"#REF!"}}]
[{"$error":"#REF!"},null,{"$f":"#REF!","v":{"$error":"#REF!"}},{"$f":"#REF!","v":{"$error":"#REF!"}},null,null,{"$f":"#REF!","v":{"$error":"#REF!"}},800001965,"http://www.xbrl.org/scheme/companyName",null,{"$f":"Periodos!$D$4","v":"2016-12-31"},{"$f":"#REF!","v":{"$error":"#REF!"}},{"$f":"#REF!","v":{"$error":"#REF!"}}]
[{"$error":"#REF!"},null,{"$f":"#REF!","v":{"$error":"#REF!"}},{"$f":"#REF!","v":{"$error":"#REF!"}},null,null,{"$f":"#REF!","v":{"$error":"#REF!"}},800001965,"http://www.xbrl.org/scheme/companyName",null,{"$f":"Periodos!$D$4","v":"2016-12-31"},{"$f":"#REF!","v":{"$error":"#REF!"}},{"$f":"#REF!","v":{"$error":"#REF!"}}]
[{"$error":"#REF!"},null,{"$f":"#REF!","v":{"$error":"#REF!"}},{"$f":"#REF!","v":{"$error":"#REF!"}},null,null,{"$f":"#REF!","v":{"$error":"#REF!"}},800001965,"http://www.xbrl.org/scheme/companyName",null,{"$f":"Periodos!$D$4","v":"2016-12-31"},{"$f":"#REF!","v":{"$error":"#REF!"}},{"$f":"#REF!","v":{"$error":"#REF!"}}]
[{"$error":"#REF!"},null,{"$f":"#REF!","v":{"$error":"#REF!"}},{"$f":"#REF!","v":{"$error":"#REF!"}},null,null,{"$f":"#REF!","v":{"$error":"#REF!"}},800001965,"http://www.xbrl.org/scheme/companyName",null,{"$f":"Periodos!$D$4","v":"2016-12-31"},{"$f":"#REF!","v":{"$error":"#REF!"}},{"$f":"#REF!","v":{"$error":"#REF!"}}]
[{"$error":"#REF!"},null,{"$f":"#REF!","v":{"$error":"#REF!"}},{"$f":"#REF!","v":{"$error":"#REF!"}},null,null,{"$f":"#REF!","v":{"$error":"#REF!"}},800001965,"http://www.xbrl.org/scheme/companyName",null,{"$f":"Periodos!$D$4","v":"2016-12-31"},{"$f":"#REF!","v":{"$error":"#REF!"}},{"$f":"#REF!","v":{"$error":"#REF!"}}]
[{"$error":"#REF!"},null,{"$f":"#REF!","v":{"$error":"#REF!"}},{"$f":"#REF!","v":{"$error":"#REF!"}},null,null,{"$f":"#REF!","v":{"$error":"#REF!"}},800001965,"http://www.xbrl.org/scheme/companyName",null,{"$f":"Periodos!$D$4","v":"2016-12-31"},{"$f":"#REF!","v":{"$error":"#REF!"}},{"$f":"#REF!","v":{"$error":"#REF!"}}]
[{"$error":"#REF!"},null,{"$f":"#REF!","v":{"$error":"#REF!"}},{"$f":"#REF!","v":{"$error":"#REF!"}},null,null,{"$f":"#REF!","v":{"$error":"#REF!"}},800001965,"http://www.xbrl.org/scheme/companyName",null,{"$f":"Periodos!$D$4","v":"2016-12-31"},{"$f":"#REF!","v":{"$error":"#REF!"}},{"$f":"#REF!","v":{"$error":"#REF!"}}]
[{"$error":"#REF!"},null,{"$f":"#REF!","v":{"$error":"#REF!"}},{"$f":"#REF!","v":{"$error":"#REF!"}},null,null,{"$f":"#REF!","v":{"$error":"#REF!"}},800001965,"http://www.xbrl.org/scheme/companyName",null,{"$f":"Periodos!$D$4","v":"2016-12-31"},{"$f":"#REF!","v":{"$error":"#REF!"}},{"$f":"#REF!","v":{"$error":"#REF!"}}]
[{"$error":"#REF!"},null,{"$f":"#REF!","v":{"$error":"#REF!"}},{"$f":"#REF!","v":{"$error":"#REF!"}},null,null,{"$f":"#REF!","v":{"$error":"#REF!"}},800001965,"http://www.xbrl.org/scheme/companyName",null,{"$f":"Periodos!$D$4","v":"2016-12-31"},{"$f":"#REF!","v":{"$error":"#REF!"}},{"$f":"#REF!","v":{"$error":"#REF!"}}]
[{"$error":"#REF!"},null,{"$f":"#REF!","v":{"$error":"#REF!"}},{"$f":"#REF!","v":{"$error":"#REF!"}},0,"peso",{"$f":"#REF!","v":{"$error":"#REF!"}},800001965,"http://www.xbrl.org/scheme/companyName",null,{"$f":"Periodos!$D$4","v":"2016-12-31"},{"$f":"#REF!","v":{"$error":"#REF!"}},{"$f":"#REF!","v":{"$error":"#REF!"}}]
["/*",null,"--129--"]
[{"$error":"#REF!"},null,{"$f":"#REF!","v":{"$error":"#REF!"}},{"$f":"#REF!","v":{"$error":"#REF!"}},null,null,{"$f":"#REF!","v":{"$error":"#REF!"}},800001965,"http://www.xbrl.org/scheme/companyName",null,{"$f":"Periodos!$D$4","v":"2016-12-31"},{"$f":"#REF!","v":{"$error":"#REF!"}},{"$f":"#REF!","v":{"$error":"#REF!"}}]
[{"$error":"#REF!"},null,{"$f":"#REF!","v":{"$error":"#REF!"}},{"$f":"#REF!","v":{"$error":"#REF!"}},null,null,{"$f":"#REF!","v":{"$error":"#REF!"}},800001965,"http://www.xbrl.org/scheme/companyName",null,{"$f":"Periodos!$D$4","v":"2016-12-31"},{"$f":"#REF!","v":{"$error":"#REF!"}},{"$f":"#REF!","v":{"$error":"#REF!"}}]
[{"$error":"#REF!"},null,{"$f":"#REF!","v":{"$error":"#REF!"}},{"$f":"#REF!","v":{"$error":"#REF!"}},null,null,{"$f":"#REF!","v":{"$error":"#REF!"}},800001965,"http://www.xbrl.org/scheme/companyName",null,{"$f":"Periodos!$D$4","v":"2016-12-31"},{"$f":"#REF!","v":{"$error":"#REF!"}},{"$f":"#REF!","v":{"$error":"#REF!"}}]
[{"$error":"#REF!"},null,{"$f":"#REF!","v":{"$error":"#REF!"}},{"$f":"#REF!","v":{"$error":"#REF!"}},null,null,{"$f":"#REF!","v":{"$error":"#REF!"}},800001965,"http://www.xbrl.org/scheme/companyName",null,{"$f":"Periodos!$D$4","v":"2016-12-31"},{"$f":"#REF!","v":{"$error":"#REF!"}},{"$f":"#REF!","v":{"$error":"#REF!"}}]
[{"$error":"#REF!"},null,{"$f":"#REF!","v":{"$error":"#REF!"}},{"$f":"#REF!","v":{"$error":"#REF!"}},null,null,{"$f":"#REF!","v":{"$error":"#REF!"}},800001965,"http://www.xbrl.org/scheme/companyName",null,{"$f":"Periodos!$D$4","v":"2016-12-31"},{"$f":"#REF!","v":{"$error":"#REF!"}},{"$f":"#REF!","v":{"$error":"#REF!"}}]
[{"$error":"#REF!"},null,{"$f":"#REF!","v":{"$error":"#REF!"}},{"$f":"#REF!","v":{"$error":"#REF!"}},null,null,{"$f":"#REF!","v":{"$error":"#REF!"}},800001965,"http://www.xbrl.org/scheme/companyName",null,{"$f":"Periodos!$D$4","v":"2016-12-31"},{"$f":"#REF!","v":{"$error":"#REF!"}},{"$f":"#REF!","v":{"$error":"#REF!"}}]
[{"$error":"#REF!"},null,{"$f":"#REF!","v":{"$error":"#REF!"}},{"$f":"#REF!","v":{"$error":"#REF!"}},null,null,{"$f":"#REF!","v":{"$error":"#REF!"}},800001965,"http://www.xbrl.org/scheme/companyName",null,{"$f":"Periodos!$D$4","v":"2016-12-31"},{"$f":"#REF!","v":{"$error":"#REF!"}},{"$f":"#REF!","v":{"$error":"#REF!"}}]
[{"$error":"#REF!"},null,{"$f":"#REF!","v":{"$error":"#REF!"}},{"$f":"#REF!","v":{"$error":"#REF!"}},null,null,{"$f":"#REF!","v":{"$error":"#REF!"}},800001965,"http://www.xbrl.org/scheme/companyName",null,{"$f":"Periodos!$D$4","v":"2016-12-31"},{"$f":"#REF!","v":{"$error":"#REF!"}},{"$f":"#REF!","v":{"$error":"#REF!"}}]
[{"$error":"#REF!"},null,{"$f":"#REF!","v":{"$error":"#REF!"}},{"$f":"#REF!","v":{"$error":"#REF!"}},null,null,{"$f":"#REF!","v":{"$error":"#REF!"}},800001965,"http://www.xbrl.org/scheme/companyName",null,{"$f":"Periodos!$D$4","v":"2016-12-31"},{"$f":"#REF!","v":{"$error":"#REF!"}},{"$f":"#REF!","v":{"$error":"#REF!"}}]
[{"$error":"#REF!"},null,{"$f":"#REF!","v":{"$error":"#REF!"}},{"$f":"#REF!","v":{"$error":"#REF!"}},null,null,{"$f":"#REF!","v":{"$error":"#REF!"}},800001965,"http://www.xbrl.org/scheme/companyName",null,{"$f":"Periodos!$D$4","v":"2016-12-31"},{"$f":"#REF!","v":{"$error":"#REF!"}},{"$f":"#REF!","v":{"$error":"#REF!"}}]
[{"$error":"#REF!"},null,{"$f":"#REF!","v":{"$error":"#REF!"}},{"$f":"#REF!","v":{"$error":"#REF!"}},null,null,{"$f":"#REF!","v":{"$error":"#REF!"}},800001965,"http://www.xbrl.org/scheme/companyName",null,{"$f":"Periodos!$D$4","v":"2016-12-31"},{"$f":"#REF!","v":{"$error":"#REF!"}},{"$f":"#REF!","v":{"$error":"#REF!"}}]
[{"$error":"#REF!"},null,{"$f":"#REF!","v":{"$error":"#REF!"}},{"$f":"#REF!","v":{"$error":"#REF!"}},0,"peso",{"$f":"#REF!","v":{"$error":"#REF!"}},800001965,"http://www.xbrl.org/scheme/companyName",null,{"$f":"Periodos!$D$4","v":"2016-12-31"},{"$f":"#REF!","v":{"$error":"#REF!"}},{"$f":"#REF!","v":{"$error":"#REF!"}}]
["/*",null,"--130--"]
[{"$error":"#REF!"},null,{"$f":"#REF!","v":{"$error":"#REF!"}},{"$f":"#REF!","v":{"$error":"#REF!"}},null,null,{"$f":"#REF!","v":{"$error":"#REF!"}},800001965,"http://www.xbrl.org/scheme/companyName",null,{"$f":"Periodos!$D$4","v":"2016-12-31"},{"$f":"#REF!","v":{"$error":"#REF!"}},{"$f":"#REF!","v":{"$error":"#REF!"}}]
[{"$error":"#REF!"},null,{"$f":"#REF!","v":{"$error":"#REF!"}},{"$f":"#REF!","v":{"$error":"#REF!"}},null,null,{"$f":"#REF!","v":{"$error":"#REF!"}},800001965,"http://www.xbrl.org/scheme/companyName",null,{"$f":"Periodos!$D$4","v":"2016-12-31"},{"$f":"#REF!","v":{"$error":"#REF!"}},{"$f":"#REF!","v":{"$error":"#REF!"}}]
[{"$error":"#REF!"},null,{"$f":"#REF!","v":{"$error":"#REF!"}},{"$f":"#REF!","v":{"$error":"#REF!"}},null,null,{"$f":"#REF!","v":{"$error":"#REF!"}},800001965,"http://www.xbrl.org/scheme/companyName",null,{"$f":"Periodos!$D$4","v":"2016-12-31"},{"$f":"#REF!","v":{"$error":"#REF!"}},{"$f":"#REF!","v":{"$error":"#REF!"}}]
[{"$error":"#REF!"},null,{"$f":"#REF!","v":{"$error":"#REF!"}},{"$f":"#REF!","v":{"$error":"#REF!"}},null,null,{"$f":"#REF!","v":{"$error":"#REF!"}},800001965,"http://www.xbrl.org/scheme/companyName",null,{"$f":"Periodos!$D$4","v":"2016-12-31"},{"$f":"#REF!","v":{"$error":"#REF!"}},{"$f":"#REF!","v":{"$error":"#REF!"}}]
[{"$error":"#REF!"},null,{"$f":"#REF!","v":{"$error":"#REF!"}},{"$f":"#REF!","v":{"$error":"#REF!"}},null,null,{"$f":"#REF!","v":{"$error":"#REF!"}},800001965,"http://www.xbrl.org/scheme/companyName",null,{"$f":"Periodos!$D$4","v":"2016-12-31"},{"$f":"#REF!","v":{"$error":"#REF!"}},{"$f":"#REF!","v":{"$error":"#REF!"}}]
[{"$error":"#REF!"},null,{"$f":"#REF!","v":{"$error":"#REF!"}},{"$f":"#REF!","v":{"$error":"#REF!"}},null,null,{"$f":"#REF!","v":{"$error":"#REF!"}},800001965,"http://www.xbrl.org/scheme/companyName",null,{"$f":"Periodos!$D$4","v":"2016-12-31"},{"$f":"#REF!","v":{"$error":"#REF!"}},{"$f":"#REF!","v":{"$error":"#REF!"}}]
[{"$error":"#REF!"},null,{"$f":"#REF!","v":{"$error":"#REF!"}},{"$f":"#REF!","v":{"$error":"#REF!"}},null,null,{"$f":"#REF!","v":{"$error":"#REF!"}},800001965,"http://www.xbrl.org/scheme/companyName",null,{"$f":"Periodos!$D$4","v":"2016-12-31"},{"$f":"#REF!","v":{"$error":"#REF!"}},{"$f":"#REF!","v":{"$error":"#REF!"}}]
[{"$error":"#REF!"},null,{"$f":"#REF!","v":{"$error":"#REF!"}},{"$f":"#REF!","v":{"$error":"#REF!"}},null,null,{"$f":"#REF!","v":{"$error":"#REF!"}},800001965,"http://www.xbrl.org/scheme/companyName",null,{"$f":"Periodos!$D$4","v":"2016-12-31"},{"$f":"#REF!","v":{"$error":"#REF!"}},{"$f":"#REF!","v":{"$error":"#REF!"}}]
[{"$error":"#REF!"},null,{"$f":"#REF!","v":{"$error":"#REF!"}},{"$f":"#REF!","v":{"$error":"#REF!"}},null,null,{"$f":"#REF!","v":{"$error":"#REF!"}},800001965,"http://www.xbrl.org/scheme/companyName",null,{"$f":"Periodos!$D$4","v":"2016-12-31"},{"$f":"#REF!","v":{"$error":"#REF!"}},{"$f":"#REF!","v":{"$error":"#REF!"}}]
[{"$error":"#REF!"},null,{"$f":"#REF!","v":{"$error":"#REF!"}},{"$f":"#REF!","v":{"$error":"#REF!"}},null,null,{"$f":"#REF!","v":{"$error":"#REF!"}},800001965,"http://www.xbrl.org/scheme/companyName",null,{"$f":"Periodos!$D$4","v":"2016-12-31"},{"$f":"#REF!","v":{"$error":"#REF!"}},{"$f":"#REF!","v":{"$error":"#REF!"}}]
[{"$error":"#REF!"},null,{"$f":"#REF!","v":{"$error":"#REF!"}},{"$f":"#REF!","v":{"$error":"#REF!"}},null,null,{"$f":"#REF!","v":{"$error":"#REF!"}},800001965,"http://www.xbrl.org/scheme/companyName",null,{"$f":"Periodos!$D$4","v":"2016-12-31"},{"$f":"#REF!","v":{"$error":"#REF!"}},{"$f":"#REF!","v":{"$error":"#REF!"}}]
[{"$error":"#REF!"},null,{"$f":"#REF!","v":{"$error":"#REF!"}},{"$f":"#REF!","v":{"$error":"#REF!"}},0,"peso",{"$f":"#REF!","v":{"$error":"#REF!"}},800001965,"http://www.xbrl.org/scheme/companyName",null,{"$f":"Periodos!$D$4","v":"2016-12-31"},{"$f":"#REF!","v":{"$error":"#REF!"}},{"$f":"#REF!","v":{"$error":"#REF!"}}]
["/*",null,"--131--"]
[{"$error":"#REF!"},null,{"$f":"#REF!","v":{"$error":"#REF!"}},{"$f":"#REF!","v":{"$error":"#REF!"}},null,null,{"$f":"#REF!","v":{"$error":"#REF!"}},800001965,"http://www.xbrl.org/scheme/companyName",null,{"$f":"Periodos!$D$4","v":"2016-12-31"},{"$f":"#REF!","v":{"$error":"#REF!"}},{"$f":"#REF!","v":{"$error":"#REF!"}}]
[{"$error":"#REF!"},null,{"$f":"#REF!","v":{"$error":"#REF!"}},{"$f":"#REF!","v":{"$error":"#REF!"}},null,null,{"$f":"#REF!","v":{"$error":"#REF!"}},800001965,"http://www.xbrl.org/scheme/companyName",null,{"$f":"Periodos!$D$4","v":"2016-12-31"},{"$f":"#REF!","v":{"$error":"#REF!"}},{"$f":"#REF!","v":{"$error":"#REF!"}}]
[{"$error":"#REF!"},null,{"$f":"#REF!","v":{"$error":"#REF!"}},{"$f":"#REF!","v":{"$error":"#REF!"}},null,null,{"$f":"#REF!","v":{"$error":"#REF!"}},800001965,"http://www.xbrl.org/scheme/companyName",null,{"$f":"Periodos!$D$4","v":"2016-12-31"},{"$f":"#REF!","v":{"$error":"#REF!"}},{"$f":"#REF!","v":{"$error":"#REF!"}}]
[{"$error":"#REF!"},null,{"$f":"#REF!","v":{"$error":"#REF!"}},{"$f":"#REF!","v":{"$error":"#REF!"}},null,null,{"$f":"#REF!","v":{"$error":"#REF!"}},800001965,"http://www.xbrl.org/scheme/companyName",null,{"$f":"Periodos!$D$4","v":"2016-12-31"},{"$f":"#REF!","v":{"$error":"#REF!"}},{"$f":"#REF!","v":{"$error":"#REF!"}}]
[{"$error":"#REF!"},null,{"$f":"#REF!","v":{"$error":"#REF!"}},{"$f":"#REF!","v":{"$error":"#REF!"}},null,null,{"$f":"#REF!","v":{"$error":"#REF!"}},800001965,"http://www.xbrl.org/scheme/companyName",null,{"$f":"Periodos!$D$4","v":"2016-12-31"},{"$f":"#REF!","v":{"$error":"#REF!"}},{"$f":"#REF!","v":{"$error":"#REF!"}}]
[{"$error":"#REF!"},null,{"$f":"#REF!","v":{"$error":"#REF!"}},{"$f":"#REF!","v":{"$error":"#REF!"}},null,null,{"$f":"#REF!","v":{"$error":"#REF!"}},800001965,"http://www.xbrl.org/scheme/companyName",null,{"$f":"Periodos!$D$4","v":"2016-12-31"},{"$f":"#REF!","v":{"$error":"#REF!"}},{"$f":"#REF!","v":{"$error":"#REF!"}}]
[{"$error":"#REF!"},null,{"$f":"#REF!","v":{"$error":"#REF!"}},{"$f":"#REF!","v":{"$error":"#REF!"}},null,null,{"$f":"#REF!","v":{"$error":"#REF!"}},800001965,"http://www.xbrl.org/scheme/companyName",null,{"$f":"Periodos!$D$4","v":"2016-12-31"},{"$f":"#REF!","v":{"$error":"#REF!"}},{"$f":"#REF!","v":{"$error":"#REF!"}}]
[{"$error":"#REF!"},null,{"$f":"#REF!","v":{"$error":"#REF!"}},{"$f":"#REF!","v":{"$error":"#REF!"}},null,null,{"$f":"#REF!","v":{"$error":"#REF!"}},800001965,"http://www.xbrl.org/scheme/companyName",null,{"$f":"Periodos!$D$4","v":"2016-12-31"},{"$f":"#REF!","v":{"$error":"#REF!"}},{"$f":"#REF!","v":{"$error":"#REF!"}}]
[{"$error":"#REF!"},null,{"$f":"#REF!","v":{"$error":"#REF!"}},{"$f":"#REF!","v":{"$error":"#REF!"}},null,null,{"$f":"#REF!","v":{"$error":"#REF!"}},800001965,"http://www.xbrl.org/scheme/companyName",null,{"$f":"Periodos!$D$4","v":"2016-12-31"},{"$f":"#REF!","v":{"$error":"#REF!"}},{"$f":"#REF!","v":{"$error":"#REF!"}}]
[{"$error":"#REF!"},null,{"$f":"#REF!","v":{"$error":"#REF!"}},{"$f":"#REF!","v":{"$error":"#REF!"}},null,null,{"$f":"#REF!","v":{"$error":"#REF!"}},800001965,"http://www.xbrl.org/scheme/companyName",null,{"$f":"Periodos!$D$4","v":"2016-12-31"},{"$f":"#REF!","v":{"$error":"#REF!"}},{"$f":"#REF!","v":{"$error":"#REF!"}}]
[{"$error":"#REF!"},null,{"$f":"#REF!","v":{"$error":"#REF!"}},{"$f":"#REF!","v":{"$error":"#REF!"}},null,null,{"$f":"#REF!","v":{"$error":"#REF!"}},800001965,"http://www.xbrl.org/scheme/companyName",null,{"$f":"Periodos!$D$4","v":"2016-12-31"},{"$f":"#REF!","v":{"$error":"#REF!"}},{"$f":"#REF!","v":{"$error":"#REF!"}}]
[{"$error":"#REF!"},null,{"$f":"#REF!","v":{"$error":"#REF!"}},{"$f":"#REF!","v":{"$error":"#REF!"}},0,"peso",{"$f":"#REF!","v":{"$error":"#REF!"}},800001965,"http://www.xbrl.org/scheme/companyName",null,{"$f":"Periodos!$D$4","v":"2016-12-31"},{"$f":"#REF!","v":{"$error":"#REF!"}},{"$f":"#REF!","v":{"$error":"#REF!"}}]
["/*",null,"--132--"]
[{"$error":"#REF!"},null,{"$f":"#REF!","v":{"$error":"#REF!"}},{"$f":"#REF!","v":{"$error":"#REF!"}},null,null,{"$f":"#REF!","v":{"$error":"#REF!"}},800001965,"http://www.xbrl.org/scheme/companyName",null,{"$f":"Periodos!$D$4","v":"2016-12-31"},{"$f":"#REF!","v":{"$error":"#REF!"}},{"$f":"#REF!","v":{"$error":"#REF!"}}]
[{"$error":"#REF!"},null,{"$f":"#REF!","v":{"$error":"#REF!"}},{"$f":"#REF!","v":{"$error":"#REF!"}},null,null,{"$f":"#REF!","v":{"$error":"#REF!"}},800001965,"http://www.xbrl.org/scheme/companyName",null,{"$f":"Periodos!$D$4","v":"2016-12-31"},{"$f":"#REF!","v":{"$error":"#REF!"}},{"$f":"#REF!","v":{"$error":"#REF!"}}]
[{"$error":"#REF!"},null,{"$f":"#REF!","v":{"$error":"#REF!"}},{"$f":"#REF!","v":{"$error":"#REF!"}},null,null,{"$f":"#REF!","v":{"$error":"#REF!"}},800001965,"http://www.xbrl.org/scheme/companyName",null,{"$f":"Periodos!$D$4","v":"2016-12-31"},{"$f":"#REF!","v":{"$error":"#REF!"}},{"$f":"#REF!","v":{"$error":"#REF!"}}]
[{"$error":"#REF!"},null,{"$f":"#REF!","v":{"$error":"#REF!"}},{"$f":"#REF!","v":{"$error":"#REF!"}},null,null,{"$f":"#REF!","v":{"$error":"#REF!"}},800001965,"http://www.xbrl.org/scheme/companyName",null,{"$f":"Periodos!$D$4","v":"2016-12-31"},{"$f":"#REF!","v":{"$error":"#REF!"}},{"$f":"#REF!","v":{"$error":"#REF!"}}]
[{"$error":"#REF!"},null,{"$f":"#REF!","v":{"$error":"#REF!"}},{"$f":"#REF!","v":{"$error":"#REF!"}},null,null,{"$f":"#REF!","v":{"$error":"#REF!"}},800001965,"http://www.xbrl.org/scheme/companyName",null,{"$f":"Periodos!$D$4","v":"2016-12-31"},{"$f":"#REF!","v":{"$error":"#REF!"}},{"$f":"#REF!","v":{"$error":"#REF!"}}]
[{"$f":"IF(G5473=\"\",\"/*\",\"\")","v":{"$error":"#REF!"}},null,{"$f":"#REF!","v":{"$error":"#REF!"}},{"$f":"#REF!","v":{"$error":"#REF!"}},null,null,{"$f":"#REF!","v":{"$error":"#REF!"}},800001965,"http://www.xbrl.org/scheme/companyName",null,{"$f":"Periodos!$D$4","v":"2016-12-31"},{"$f":"#REF!","v":{"$error":"#REF!"}},{"$f":"#REF!","v":{"$error":"#REF!"}}]
[{"$error":"#REF!"},null,{"$f":"#REF!","v":{"$error":"#REF!"}},{"$f":"#REF!","v":{"$error":"#REF!"}},null,null,{"$f":"#REF!","v":{"$error":"#REF!"}},800001965,"http://www.xbrl.org/scheme/companyName",null,{"$f":"Periodos!$D$4","v":"2016-12-31"},{"$f":"#REF!","v":{"$error":"#REF!"}},{"$f":"#REF!","v":{"$error":"#REF!"}}]
[{"$error":"#REF!"},null,{"$f":"#REF!","v":{"$error":"#REF!"}},{"$f":"#REF!","v":{"$error":"#REF!"}},null,null,{"$f":"#REF!","v":{"$error":"#REF!"}},800001965,"http://www.xbrl.org/scheme/companyName",null,{"$f":"Periodos!$D$4","v":"2016-12-31"},{"$f":"#REF!","v":{"$error":"#REF!"}},{"$f":"#REF!","v":{"$error":"#REF!"}}]
[{"$error":"#REF!"},null,{"$f":"#REF!","v":{"$error":"#REF!"}},{"$f":"#REF!","v":{"$error":"#REF!"}},null,null,{"$f":"#REF!","v":{"$error":"#REF!"}},800001965,"http://www.xbrl.org/scheme/companyName",null,{"$f":"Periodos!$D$4","v":"2016-12-31"},{"$f":"#REF!","v":{"$error":"#REF!"}},{"$f":"#REF!","v":{"$error":"#REF!"}}]
[{"$error":"#REF!"},null,{"$f":"#REF!","v":{"$error":"#REF!"}},{"$f":"#REF!","v":{"$error":"#REF!"}},null,null,{"$f":"#REF!","v":{"$error":"#REF!"}},800001965,"http://www.xbrl.org/scheme/companyName",null,{"$f":"Periodos!$D$4","v":"2016-12-31"},{"$f":"#REF!","v":{"$error":"#REF!"}},{"$f":"#REF!","v":{"$error":"#REF!"}}]
[{"$error":"#REF!"},null,{"$f":"#REF!","v":{"$error":"#REF!"}},{"$f":"#REF!","v":{"$error":"#REF!"}},null,null,{"$f":"#REF!","v":{"$error":"#REF!"}},800001965,"http://www.xbrl.org/scheme/companyName",null,{"$f":"Periodos!$D$4","v":"2016-12-31"},{"$f":"#REF!","v":{"$error":"#REF!"}},{"$f":"#REF!","v":{"$error":"#REF!"}}]
[{"$error":"#REF!"},null,{"$f":"#REF!","v":{"$error":"#REF!"}},{"$f":"#REF!","v":{"$error":"#REF!"}},0,"peso",{"$f":"#REF!","v":{"$error":"#REF!"}},800001965,"http://www.xbrl.org/scheme/companyName",null,{"$f":"Periodos!$D$4","v":"2016-12-31"},{"$f":"#REF!","v":{"$error":"#REF!"}},{"$f":"#REF!","v":{"$error":"#REF!"}}]
["/*",null,"--133--"]
[{"$error":"#REF!"},null,{"$f":"#REF!","v":{"$error":"#REF!"}},{"$f":"#REF!","v":{"$error":"#REF!"}},null,null,{"$f":"#REF!","v":{"$error":"#REF!"}},800001965,"http://www.xbrl.org/scheme/companyName",null,{"$f":"Periodos!$D$4","v":"2016-12-31"},{"$f":"#REF!","v":{"$error":"#REF!"}},{"$f":"#REF!","v":{"$error":"#REF!"}}]
[{"$error":"#REF!"},null,{"$f":"#REF!","v":{"$error":"#REF!"}},{"$f":"#REF!","v":{"$error":"#REF!"}},null,null,{"$f":"#REF!","v":{"$error":"#REF!"}},800001965,"http://www.xbrl.org/scheme/companyName",null,{"$f":"Periodos!$D$4","v":"2016-12-31"},{"$f":"#REF!","v":{"$error":"#REF!"}},{"$f":"#REF!","v":{"$error":"#REF!"}}]
[{"$error":"#REF!"},null,{"$f":"#REF!","v":{"$error":"#REF!"}},{"$f":"#REF!","v":{"$error":"#REF!"}},null,null,{"$f":"#REF!","v":{"$error":"#REF!"}},800001965,"http://www.xbrl.org/scheme/companyName",null,{"$f":"Periodos!$D$4","v":"2016-12-31"},{"$f":"#REF!","v":{"$error":"#REF!"}},{"$f":"#REF!","v":{"$error":"#REF!"}}]
[{"$error":"#REF!"},null,{"$f":"#REF!","v":{"$error":"#REF!"}},{"$f":"#REF!","v":{"$error":"#REF!"}},null,null,{"$f":"#REF!","v":{"$error":"#REF!"}},800001965,"http://www.xbrl.org/scheme/companyName",null,{"$f":"Periodos!$D$4","v":"2016-12-31"},{"$f":"#REF!","v":{"$error":"#REF!"}},{"$f":"#REF!","v":{"$error":"#REF!"}}]
[{"$error":"#REF!"},null,{"$f":"#REF!","v":{"$error":"#REF!"}},{"$f":"#REF!","v":{"$error":"#REF!"}},null,null,{"$f":"#REF!","v":{"$error":"#REF!"}},800001965,"http://www.xbrl.org/scheme/companyName",null,{"$f":"Periodos!$D$4","v":"2016-12-31"},{"$f":"#REF!","v":{"$error":"#REF!"}},{"$f":"#REF!","v":{"$error":"#REF!"}}]
[{"$error":"#REF!"},null,{"$f":"#REF!","v":{"$error":"#REF!"}},{"$f":"#REF!","v":{"$error":"#REF!"}},null,null,{"$f":"#REF!","v":{"$error":"#REF!"}},800001965,"http://www.xbrl.org/scheme/companyName",null,{"$f":"Periodos!$D$4","v":"2016-12-31"},{"$f":"#REF!","v":{"$error":"#REF!"}},{"$f":"#REF!","v":{"$error":"#REF!"}}]
[{"$error":"#REF!"},null,{"$f":"#REF!","v":{"$error":"#REF!"}},{"$f":"#REF!","v":{"$error":"#REF!"}},null,null,{"$f":"#REF!","v":{"$error":"#REF!"}},800001965,"http://www.xbrl.org/scheme/companyName",null,{"$f":"Periodos!$D$4","v":"2016-12-31"},{"$f":"#REF!","v":{"$error":"#REF!"}},{"$f":"#REF!","v":{"$error":"#REF!"}}]
[{"$error":"#REF!"},null,{"$f":"#REF!","v":{"$error":"#REF!"}},{"$f":"#REF!","v":{"$error":"#REF!"}},null,null,{"$f":"#REF!","v":{"$error":"#REF!"}},800001965,"http://www.xbrl.org/scheme/companyName",null,{"$f":"Periodos!$D$4","v":"2016-12-31"},{"$f":"#REF!","v":{"$error":"#REF!"}},{"$f":"#REF!","v":{"$error":"#REF!"}}]
[{"$error":"#REF!"},null,{"$f":"#REF!","v":{"$error":"#REF!"}},{"$f":"#REF!","v":{"$error":"#REF!"}},null,null,{"$f":"#REF!","v":{"$error":"#REF!"}},800001965,"http://www.xbrl.org/scheme/companyName",null,{"$f":"Periodos!$D$4","v":"2016-12-31"},{"$f":"#REF!","v":{"$error":"#REF!"}},{"$f":"#REF!","v":{"$error":"#REF!"}}]
[{"$error":"#REF!"},null,{"$f":"#REF!","v":{"$error":"#REF!"}},{"$f":"#REF!","v":{"$error":"#REF!"}},null,null,{"$f":"#REF!","v":{"$error":"#REF!"}},800001965,"http://www.xbrl.org/scheme/companyName",null,{"$f":"Periodos!$D$4","v":"2016-12-31"},{"$f":"#REF!","v":{"$error":"#REF!"}},{"$f":"#REF!","v":{"$error":"#REF!"}}]
[{"$error":"#REF!"},null,{"$f":"#REF!","v":{"$error":"#REF!"}},{"$f":"#REF!","v":{"$error":"#REF!"}},null,null,{"$f":"#REF!","v":{"$error":"#REF!"}},800001965,"http://www.xbrl.org/scheme/companyName",null,{"$f":"Periodos!$D$4","v":"2016-12-31"},{"$f":"#REF!","v":{"$error":"#REF!"}},{"$f":"#REF!","v":{"$error":"#REF!"}}]
[{"$error":"#REF!"},null,{"$f":"#REF!","v":{"$error":"#REF!"}},{"$f":"#REF!","v":{"$error":"#REF!"}},0,"peso",{"$f":"#REF!","v":{"$error":"#REF!"}},800001965,"http://www.xbrl.org/scheme/companyName",null,{"$f":"Periodos!$D$4","v":"2016-12-31"},{"$f":"#REF!","v":{"$error":"#REF!"}},{"$f":"#REF!","v":{"$error":"#REF!"}}]
["/*",null,"--134--"]
[{"$error":"#REF!"},null,{"$f":"#REF!","v":{"$error":"#REF!"}},{"$f":"#REF!","v":{"$error":"#REF!"}},null,null,{"$f":"#REF!","v":{"$error":"#REF!"}},800001965,"http://www.xbrl.org/scheme/companyName",null,{"$f":"Periodos!$D$4","v":"2016-12-31"},{"$f":"#REF!","v":{"$error":"#REF!"}},{"$f":"#REF!","v":{"$error":"#REF!"}}]
[{"$error":"#REF!"},null,{"$f":"#REF!","v":{"$error":"#REF!"}},{"$f":"#REF!","v":{"$error":"#REF!"}},null,null,{"$f":"#REF!","v":{"$error":"#REF!"}},800001965,"http://www.xbrl.org/scheme/companyName",null,{"$f":"Periodos!$D$4","v":"2016-12-31"},{"$f":"#REF!","v":{"$error":"#REF!"}},{"$f":"#REF!","v":{"$error":"#REF!"}}]
[{"$error":"#REF!"},null,{"$f":"#REF!","v":{"$error":"#REF!"}},{"$f":"#REF!","v":{"$error":"#REF!"}},null,null,{"$f":"#REF!","v":{"$error":"#REF!"}},800001965,"http://www.xbrl.org/scheme/companyName",null,{"$f":"Periodos!$D$4","v":"2016-12-31"},{"$f":"#REF!","v":{"$error":"#REF!"}},{"$f":"#REF!","v":{"$error":"#REF!"}}]
[{"$error":"#REF!"},null,{"$f":"#REF!","v":{"$error":"#REF!"}},{"$f":"#REF!","v":{"$error":"#REF!"}},null,null,{"$f":"#REF!","v":{"$error":"#REF!"}},800001965,"http://www.xbrl.org/scheme/companyName",null,{"$f":"Periodos!$D$4","v":"2016-12-31"},{"$f":"#REF!","v":{"$error":"#REF!"}},{"$f":"#REF!","v":{"$error":"#REF!"}}]
[{"$error":"#REF!"},null,{"$f":"#REF!","v":{"$error":"#REF!"}},{"$f":"#REF!","v":{"$error":"#REF!"}},null,null,{"$f":"#REF!","v":{"$error":"#REF!"}},800001965,"http://www.xbrl.org/scheme/companyName",null,{"$f":"Periodos!$D$4","v":"2016-12-31"},{"$f":"#REF!","v":{"$error":"#REF!"}},{"$f":"#REF!","v":{"$error":"#REF!"}}]
[{"$error":"#REF!"},null,{"$f":"#REF!","v":{"$error":"#REF!"}},{"$f":"#REF!","v":{"$error":"#REF!"}},null,null,{"$f":"#REF!","v":{"$error":"#REF!"}},800001965,"http://www.xbrl.org/scheme/companyName",null,{"$f":"Periodos!$D$4","v":"2016-12-31"},{"$f":"#REF!","v":{"$error":"#REF!"}},{"$f":"#REF!","v":{"$error":"#REF!"}}]
[{"$error":"#REF!"},null,{"$f":"#REF!","v":{"$error":"#REF!"}},{"$f":"#REF!","v":{"$error":"#REF!"}},null,null,{"$f":"#REF!","v":{"$error":"#REF!"}},800001965,"http://www.xbrl.org/scheme/companyName",null,{"$f":"Periodos!$D$4","v":"2016-12-31"},{"$f":"#REF!","v":{"$error":"#REF!"}},{"$f":"#REF!","v":{"$error":"#REF!"}}]
[{"$error":"#REF!"},null,{"$f":"#REF!","v":{"$error":"#REF!"}},{"$f":"#REF!","v":{"$error":"#REF!"}},null,null,{"$f":"#REF!","v":{"$error":"#REF!"}},800001965,"http://www.xbrl.org/scheme/companyName",null,{"$f":"Periodos!$D$4","v":"2016-12-31"},{"$f":"#REF!","v":{"$error":"#REF!"}},{"$f":"#REF!","v":{"$error":"#REF!"}}]
[{"$error":"#REF!"},null,{"$f":"#REF!","v":{"$error":"#REF!"}},{"$f":"#REF!","v":{"$error":"#REF!"}},null,null,{"$f":"#REF!","v":{"$error":"#REF!"}},800001965,"http://www.xbrl.org/scheme/companyName",null,{"$f":"Periodos!$D$4","v":"2016-12-31"},{"$f":"#REF!","v":{"$error":"#REF!"}},{"$f":"#REF!","v":{"$error":"#REF!"}}]
[{"$error":"#REF!"},null,{"$f":"#REF!","v":{"$error":"#REF!"}},{"$f":"#REF!","v":{"$error":"#REF!"}},null,null,{"$f":"#REF!","v":{"$error":"#REF!"}},800001965,"http://www.xbrl.org/scheme/companyName",null,{"$f":"Periodos!$D$4","v":"2016-12-31"},{"$f":"#REF!","v":{"$error":"#REF!"}},{"$f":"#REF!","v":{"$error":"#REF!"}}]
[{"$error":"#REF!"},null,{"$f":"#REF!","v":{"$error":"#REF!"}},{"$f":"#REF!","v":{"$error":"#REF!"}},null,null,{"$f":"#REF!","v":{"$error":"#REF!"}},800001965,"http://www.xbrl.org/scheme/companyName",null,{"$f":"Periodos!$D$4","v":"2016-12-31"},{"$f":"#REF!","v":{"$error":"#REF!"}},{"$f":"#REF!","v":{"$error":"#REF!"}}]
[{"$error":"#REF!"},null,{"$f":"#REF!","v":{"$error":"#REF!"}},{"$f":"#REF!","v":{"$error":"#REF!"}},0,"peso",{"$f":"#REF!","v":{"$error":"#REF!"}},800001965,"http://www.xbrl.org/scheme/companyName",null,{"$f":"Periodos!$D$4","v":"2016-12-31"},{"$f":"#REF!","v":{"$error":"#REF!"}},{"$f":"#REF!","v":{"$error":"#REF!"}}]
["/*",null,"--135--"]
[{"$error":"#REF!"},null,{"$f":"#REF!","v":{"$error":"#REF!"}},{"$f":"#REF!","v":{"$error":"#REF!"}},null,null,{"$f":"#REF!","v":{"$error":"#REF!"}},800001965,"http://www.xbrl.org/scheme/companyName",null,{"$f":"Periodos!$D$4","v":"2016-12-31"},{"$f":"#REF!","v":{"$error":"#REF!"}},{"$f":"#REF!","v":{"$error":"#REF!"}}]
[{"$error":"#REF!"},null,{"$f":"#REF!","v":{"$error":"#REF!"}},{"$f":"#REF!","v":{"$error":"#REF!"}},null,null,{"$f":"#REF!","v":{"$error":"#REF!"}},800001965,"http://www.xbrl.org/scheme/companyName",null,{"$f":"Periodos!$D$4","v":"2016-12-31"},{"$f":"#REF!","v":{"$error":"#REF!"}},{"$f":"#REF!","v":{"$error":"#REF!"}}]
[{"$error":"#REF!"},null,{"$f":"#REF!","v":{"$error":"#REF!"}},{"$f":"#REF!","v":{"$error":"#REF!"}},null,null,{"$f":"#REF!","v":{"$error":"#REF!"}},800001965,"http://www.xbrl.org/scheme/companyName",null,{"$f":"Periodos!$D$4","v":"2016-12-31"},{"$f":"#REF!","v":{"$error":"#REF!"}},{"$f":"#REF!","v":{"$error":"#REF!"}}]
[{"$error":"#REF!"},null,{"$f":"#REF!","v":{"$error":"#REF!"}},{"$f":"#REF!","v":{"$error":"#REF!"}},null,null,{"$f":"#REF!","v":{"$error":"#REF!"}},800001965,"http://www.xbrl.org/scheme/companyName",null,{"$f":"Periodos!$D$4","v":"2016-12-31"},{"$f":"#REF!","v":{"$error":"#REF!"}},{"$f":"#REF!","v":{"$error":"#REF!"}}]
[{"$error":"#REF!"},null,{"$f":"#REF!","v":{"$error":"#REF!"}},{"$f":"#REF!","v":{"$error":"#REF!"}},null,null,{"$f":"#REF!","v":{"$error":"#REF!"}},800001965,"http://www.xbrl.org/scheme/companyName",null,{"$f":"Periodos!$D$4","v":"2016-12-31"},{"$f":"#REF!","v":{"$error":"#REF!"}},{"$f":"#REF!","v":{"$error":"#REF!"}}]
[{"$error":"#REF!"},null,{"$f":"#REF!","v":{"$error":"#REF!"}},{"$f":"#REF!","v":{"$error":"#REF!"}},null,null,{"$f":"#REF!","v":{"$error":"#REF!"}},800001965,"http://www.xbrl.org/scheme/companyName",null,{"$f":"Periodos!$D$4","v":"2016-12-31"},{"$f":"#REF!","v":{"$error":"#REF!"}},{"$f":"#REF!","v":{"$error":"#REF!"}}]
[{"$error":"#REF!"},null,{"$f":"#REF!","v":{"$error":"#REF!"}},{"$f":"#REF!","v":{"$error":"#REF!"}},null,null,{"$f":"#REF!","v":{"$error":"#REF!"}},800001965,"http://www.xbrl.org/scheme/companyName",null,{"$f":"Periodos!$D$4","v":"2016-12-31"},{"$f":"#REF!","v":{"$error":"#REF!"}},{"$f":"#REF!","v":{"$error":"#REF!"}}]
[{"$error":"#REF!"},null,{"$f":"#REF!","v":{"$error":"#REF!"}},{"$f":"#REF!","v":{"$error":"#REF!"}},null,null,{"$f":"#REF!","v":{"$error":"#REF!"}},800001965,"http://www.xbrl.org/scheme/companyName",null,{"$f":"Periodos!$D$4","v":"2016-12-31"},{"$f":"#REF!","v":{"$error":"#REF!"}},{"$f":"#REF!","v":{"$error":"#REF!"}}]
[{"$error":"#REF!"},null,{"$f":"#REF!","v":{"$error":"#REF!"}},{"$f":"#REF!","v":{"$error":"#REF!"}},null,null,{"$f":"#REF!","v":{"$error":"#REF!"}},800001965,"http://www.xbrl.org/scheme/companyName",null,{"$f":"Periodos!$D$4","v":"2016-12-31"},{"$f":"#REF!","v":{"$error":"#REF!"}},{"$f":"#REF!","v":{"$error":"#REF!"}}]
[{"$error":"#REF!"},null,{"$f":"#REF!","v":{"$error":"#REF!"}},{"$f":"#REF!","v":{"$error":"#REF!"}},null,null,{"$f":"#REF!","v":{"$error":"#REF!"}},800001965,"http://www.xbrl.org/scheme/companyName",null,{"$f":"Periodos!$D$4","v":"2016-12-31"},{"$f":"#REF!","v":{"$error":"#REF!"}},{"$f":"#REF!","v":{"$error":"#REF!"}}]
[{"$error":"#REF!"},null,{"$f":"#REF!","v":{"$error":"#REF!"}},{"$f":"#REF!","v":{"$error":"#REF!"}},null,null,{"$f":"#REF!","v":{"$error":"#REF!"}},800001965,"http://www.xbrl.org/scheme/companyName",null,{"$f":"Periodos!$D$4","v":"2016-12-31"},{"$f":"#REF!","v":{"$error":"#REF!"}},{"$f":"#REF!","v":{"$error":"#REF!"}}]
[{"$error":"#REF!"},null,{"$f":"#REF!","v":{"$error":"#REF!"}},{"$f":"#REF!","v":{"$error":"#REF!"}},0,"peso",{"$f":"#REF!","v":{"$error":"#REF!"}},800001965,"http://www.xbrl.org/scheme/companyName",null,{"$f":"Periodos!$D$4","v":"2016-12-31"},{"$f":"#REF!","v":{"$error":"#REF!"}},{"$f":"#REF!","v":{"$error":"#REF!"}}]
["/*",null,"--136--"]
[{"$error":"#REF!"},null,{"$f":"#REF!","v":{"$error":"#REF!"}},{"$f":"#REF!","v":{"$error":"#REF!"}},null,null,{"$f":"#REF!","v":{"$error":"#REF!"}},800001965,"http://www.xbrl.org/scheme/companyName",null,{"$f":"Periodos!$D$4","v":"2016-12-31"},{"$f":"#REF!","v":{"$error":"#REF!"}},{"$f":"#REF!","v":{"$error":"#REF!"}}]
[{"$error":"#REF!"},null,{"$f":"#REF!","v":{"$error":"#REF!"}},{"$f":"#REF!","v":{"$error":"#REF!"}},null,null,{"$f":"#REF!","v":{"$error":"#REF!"}},800001965,"http://www.xbrl.org/scheme/companyName",null,{"$f":"Periodos!$D$4","v":"2016-12-31"},{"$f":"#REF!","v":{"$error":"#REF!"}},{"$f":"#REF!","v":{"$error":"#REF!"}}]
[{"$error":"#REF!"},null,{"$f":"#REF!","v":{"$error":"#REF!"}},{"$f":"#REF!","v":{"$error":"#REF!"}},null,null,{"$f":"#REF!","v":{"$error":"#REF!"}},800001965,"http://www.xbrl.org/scheme/companyName",null,{"$f":"Periodos!$D$4","v":"2016-12-31"},{"$f":"#REF!","v":{"$error":"#REF!"}},{"$f":"#REF!","v":{"$error":"#REF!"}}]
[{"$error":"#REF!"},null,{"$f":"#REF!","v":{"$error":"#REF!"}},{"$f":"#REF!","v":{"$error":"#REF!"}},null,null,{"$f":"#REF!","v":{"$error":"#REF!"}},800001965,"http://www.xbrl.org/scheme/companyName",null,{"$f":"Periodos!$D$4","v":"2016-12-31"},{"$f":"#REF!","v":{"$error":"#REF!"}},{"$f":"#REF!","v":{"$error":"#REF!"}}]
[{"$error":"#REF!"},null,{"$f":"#REF!","v":{"$error":"#REF!"}},{"$f":"#REF!","v":{"$error":"#REF!"}},null,null,{"$f":"#REF!","v":{"$error":"#REF!"}},800001965,"http://www.xbrl.org/scheme/companyName",null,{"$f":"Periodos!$D$4","v":"2016-12-31"},{"$f":"#REF!","v":{"$error":"#REF!"}},{"$f":"#REF!","v":{"$error":"#REF!"}}]
[{"$error":"#REF!"},null,{"$f":"#REF!","v":{"$error":"#REF!"}},{"$f":"#REF!","v":{"$error":"#REF!"}},null,null,{"$f":"#REF!","v":{"$error":"#REF!"}},800001965,"http://www.xbrl.org/scheme/companyName",null,{"$f":"Periodos!$D$4","v":"2016-12-31"},{"$f":"#REF!","v":{"$error":"#REF!"}},{"$f":"#REF!","v":{"$error":"#REF!"}}]
[{"$error":"#REF!"},null,{"$f":"#REF!","v":{"$error":"#REF!"}},{"$f":"#REF!","v":{"$error":"#REF!"}},null,null,{"$f":"#REF!","v":{"$error":"#REF!"}},800001965,"http://www.xbrl.org/scheme/companyName",null,{"$f":"Periodos!$D$4","v":"2016-12-31"},{"$f":"#REF!","v":{"$error":"#REF!"}},{"$f":"#REF!","v":{"$error":"#REF!"}}]
[{"$error":"#REF!"},null,{"$f":"#REF!","v":{"$error":"#REF!"}},{"$f":"#REF!","v":{"$error":"#REF!"}},null,null,{"$f":"#REF!","v":{"$error":"#REF!"}},800001965,"http://www.xbrl.org/scheme/companyName",null,{"$f":"Periodos!$D$4","v":"2016-12-31"},{"$f":"#REF!","v":{"$error":"#REF!"}},{"$f":"#REF!","v":{"$error":"#REF!"}}]
[{"$error":"#REF!"},null,{"$f":"#REF!","v":{"$error":"#REF!"}},{"$f":"#REF!","v":{"$error":"#REF!"}},null,null,{"$f":"#REF!","v":{"$error":"#REF!"}},800001965,"http://www.xbrl.org/scheme/companyName",null,{"$f":"Periodos!$D$4","v":"2016-12-31"},{"$f":"#REF!","v":{"$error":"#REF!"}},{"$f":"#REF!","v":{"$error":"#REF!"}}]
[{"$error":"#REF!"},null,{"$f":"#REF!","v":{"$error":"#REF!"}},{"$f":"#REF!","v":{"$error":"#REF!"}},null,null,{"$f":"#REF!","v":{"$error":"#REF!"}},800001965,"http://www.xbrl.org/scheme/companyName",null,{"$f":"Periodos!$D$4","v":"2016-12-31"},{"$f":"#REF!","v":{"$error":"#REF!"}},{"$f":"#REF!","v":{"$error":"#REF!"}}]
[{"$error":"#REF!"},null,{"$f":"#REF!","v":{"$error":"#REF!"}},{"$f":"#REF!","v":{"$error":"#REF!"}},null,null,{"$f":"#REF!","v":{"$error":"#REF!"}},800001965,"http://www.xbrl.org/scheme/companyName",null,{"$f":"Periodos!$D$4","v":"2016-12-31"},{"$f":"#REF!","v":{"$error":"#REF!"}},{"$f":"#REF!","v":{"$error":"#REF!"}}]
[{"$error":"#REF!"},null,{"$f":"#REF!","v":{"$error":"#REF!"}},{"$f":"#REF!","v":{"$error":"#REF!"}},0,"peso",{"$f":"#REF!","v":{"$error":"#REF!"}},800001965,"http://www.xbrl.org/scheme/companyName",null,{"$f":"Periodos!$D$4","v":"2016-12-31"},{"$f":"#REF!","v":{"$error":"#REF!"}},{"$f":"#REF!","v":{"$error":"#REF!"}}]
["/*",null,"--137--"]
[{"$error":"#REF!"},null,{"$f":"#REF!","v":{"$error":"#REF!"}},{"$f":"#REF!","v":{"$error":"#REF!"}},null,null,{"$f":"#REF!","v":{"$error":"#REF!"}},800001965,"http://www.xbrl.org/scheme/companyName",null,{"$f":"Periodos!$D$4","v":"2016-12-31"},{"$f":"#REF!","v":{"$error":"#REF!"}},{"$f":"#REF!","v":{"$error":"#REF!"}}]
[{"$error":"#REF!"},null,{"$f":"#REF!","v":{"$error":"#REF!"}},{"$f":"#REF!","v":{"$error":"#REF!"}},null,null,{"$f":"#REF!","v":{"$error":"#REF!"}},800001965,"http://www.xbrl.org/scheme/companyName",null,{"$f":"Periodos!$D$4","v":"2016-12-31"},{"$f":"#REF!","v":{"$error":"#REF!"}},{"$f":"#REF!","v":{"$error":"#REF!"}}]
[{"$error":"#REF!"},null,{"$f":"#REF!","v":{"$error":"#REF!"}},{"$f":"#REF!","v":{"$error":"#REF!"}},null,null,{"$f":"#REF!","v":{"$error":"#REF!"}},800001965,"http://www.xbrl.org/scheme/companyName",null,{"$f":"Periodos!$D$4","v":"2016-12-31"},{"$f":"#REF!","v":{"$error":"#REF!"}},{"$f":"#REF!","v":{"$error":"#REF!"}}]
[{"$error":"#REF!"},null,{"$f":"#REF!","v":{"$error":"#REF!"}},{"$f":"#REF!","v":{"$error":"#REF!"}},null,null,{"$f":"#REF!","v":{"$error":"#REF!"}},800001965,"http://www.xbrl.org/scheme/companyName",null,{"$f":"Periodos!$D$4","v":"2016-12-31"},{"$f":"#REF!","v":{"$error":"#REF!"}},{"$f":"#REF!","v":{"$error":"#REF!"}}]
[{"$f":"IF(G5537=\"\",\"/*\",\"\")","v":{"$error":"#REF!"}},null,{"$f":"#REF!","v":{"$error":"#REF!"}},{"$f":"#REF!","v":{"$error":"#REF!"}},null,null,{"$f":"#REF!","v":{"$error":"#REF!"}},800001965,"http://www.xbrl.org/scheme/companyName",null,{"$f":"Periodos!$D$4","v":"2016-12-31"},{"$f":"#REF!","v":{"$error":"#REF!"}},{"$f":"#REF!","v":{"$error":"#REF!"}}]
[{"$error":"#REF!"},null,{"$f":"#REF!","v":{"$error":"#REF!"}},{"$f":"#REF!","v":{"$error":"#REF!"}},null,null,{"$f":"#REF!","v":{"$error":"#REF!"}},800001965,"http://www.xbrl.org/scheme/companyName",null,{"$f":"Periodos!$D$4","v":"2016-12-31"},{"$f":"#REF!","v":{"$error":"#REF!"}},{"$f":"#REF!","v":{"$error":"#REF!"}}]
[{"$error":"#REF!"},null,{"$f":"#REF!","v":{"$error":"#REF!"}},{"$f":"#REF!","v":{"$error":"#REF!"}},null,null,{"$f":"#REF!","v":{"$error":"#REF!"}},800001965,"http://www.xbrl.org/scheme/companyName",null,{"$f":"Periodos!$D$4","v":"2016-12-31"},{"$f":"#REF!","v":{"$error":"#REF!"}},{"$f":"#REF!","v":{"$error":"#REF!"}}]
[{"$error":"#REF!"},null,{"$f":"#REF!","v":{"$error":"#REF!"}},{"$f":"#REF!","v":{"$error":"#REF!"}},null,null,{"$f":"#REF!","v":{"$error":"#REF!"}},800001965,"http://www.xbrl.org/scheme/companyName",null,{"$f":"Periodos!$D$4","v":"2016-12-31"},{"$f":"#REF!","v":{"$error":"#REF!"}},{"$f":"#REF!","v":{"$error":"#REF!"}}]
[{"$error":"#REF!"},null,{"$f":"#REF!","v":{"$error":"#REF!"}},{"$f":"#REF!","v":{"$error":"#REF!"}},null,null,{"$f":"#REF!","v":{"$error":"#REF!"}},800001965,"http://www.xbrl.org/scheme/companyName",null,{"$f":"Periodos!$D$4","v":"2016-12-31"},{"$f":"#REF!","v":{"$error":"#REF!"}},{"$f":"#REF!","v":{"$error":"#REF!"}}]
[{"$error":"#REF!"},null,{"$f":"#REF!","v":{"$error":"#REF!"}},{"$f":"#REF!","v":{"$error":"#REF!"}},null,null,{"$f":"#REF!","v":{"$error":"#REF!"}},800001965,"http://www.xbrl.org/scheme/companyName",null,{"$f":"Periodos!$D$4","v":"2016-12-31"},{"$f":"#REF!","v":{"$error":"#REF!"}},{"$f":"#REF!","v":{"$error":"#REF!"}}]
[{"$error":"#REF!"},null,{"$f":"#REF!","v":{"$error":"#REF!"}},{"$f":"#REF!","v":{"$error":"#REF!"}},null,null,{"$f":"#REF!","v":{"$error":"#REF!"}},800001965,"http://www.xbrl.org/scheme/companyName",null,{"$f":"Periodos!$D$4","v":"2016-12-31"},{"$f":"#REF!","v":{"$error":"#REF!"}},{"$f":"#REF!","v":{"$error":"#REF!"}}]
[{"$error":"#REF!"},null,{"$f":"#REF!","v":{"$error":"#REF!"}},{"$f":"#REF!","v":{"$error":"#REF!"}},0,"peso",{"$f":"#REF!","v":{"$error":"#REF!"}},800001965,"http://www.xbrl.org/scheme/companyName",null,{"$f":"Periodos!$D$4","v":"2016-12-31"},{"$f":"#REF!","v":{"$error":"#REF!"}},{"$f":"#REF!","v":{"$error":"#REF!"}}]
["/*",null,"--138--"]
[{"$error":"#REF!"},null,{"$f":"#REF!","v":{"$error":"#REF!"}},{"$f":"#REF!","v":{"$error":"#REF!"}},null,null,{"$f":"#REF!","v":{"$error":"#REF!"}},800001965,"http://www.xbrl.org/scheme/companyName",null,{"$f":"Periodos!$D$4","v":"2016-12-31"},{"$f":"#REF!","v":{"$error":"#REF!"}},{"$f":"#REF!","v":{"$error":"#REF!"}}]
[{"$error":"#REF!"},null,{"$f":"#REF!","v":{"$error":"#REF!"}},{"$f":"#REF!","v":{"$error":"#REF!"}},null,null,{"$f":"#REF!","v":{"$error":"#REF!"}},800001965,"http://www.xbrl.org/scheme/companyName",null,{"$f":"Periodos!$D$4","v":"2016-12-31"},{"$f":"#REF!","v":{"$error":"#REF!"}},{"$f":"#REF!","v":{"$error":"#REF!"}}]
[{"$error":"#REF!"},null,{"$f":"#REF!","v":{"$error":"#REF!"}},{"$f":"#REF!","v":{"$error":"#REF!"}},null,null,{"$f":"#REF!","v":{"$error":"#REF!"}},800001965,"http://www.xbrl.org/scheme/companyName",null,{"$f":"Periodos!$D$4","v":"2016-12-31"},{"$f":"#REF!","v":{"$error":"#REF!"}},{"$f":"#REF!","v":{"$error":"#REF!"}}]
[{"$error":"#REF!"},null,{"$f":"#REF!","v":{"$error":"#REF!"}},{"$f":"#REF!","v":{"$error":"#REF!"}},null,null,{"$f":"#REF!","v":{"$error":"#REF!"}},800001965,"http://www.xbrl.org/scheme/companyName",null,{"$f":"Periodos!$D$4","v":"2016-12-31"},{"$f":"#REF!","v":{"$error":"#REF!"}},{"$f":"#REF!","v":{"$error":"#REF!"}}]
[{"$error":"#REF!"},null,{"$f":"#REF!","v":{"$error":"#REF!"}},{"$f":"#REF!","v":{"$error":"#REF!"}},null,null,{"$f":"#REF!","v":{"$error":"#REF!"}},800001965,"http://www.xbrl.org/scheme/companyName",null,{"$f":"Periodos!$D$4","v":"2016-12-31"},{"$f":"#REF!","v":{"$error":"#REF!"}},{"$f":"#REF!","v":{"$error":"#REF!"}}]
[{"$error":"#REF!"},null,{"$f":"#REF!","v":{"$error":"#REF!"}},{"$f":"#REF!","v":{"$error":"#REF!"}},null,null,{"$f":"#REF!","v":{"$error":"#REF!"}},800001965,"http://www.xbrl.org/scheme/companyName",null,{"$f":"Periodos!$D$4","v":"2016-12-31"},{"$f":"#REF!","v":{"$error":"#REF!"}},{"$f":"#REF!","v":{"$error":"#REF!"}}]
[{"$error":"#REF!"},null,{"$f":"#REF!","v":{"$error":"#REF!"}},{"$f":"#REF!","v":{"$error":"#REF!"}},null,null,{"$f":"#REF!","v":{"$error":"#REF!"}},800001965,"http://www.xbrl.org/scheme/companyName",null,{"$f":"Periodos!$D$4","v":"2016-12-31"},{"$f":"#REF!","v":{"$error":"#REF!"}},{"$f":"#REF!","v":{"$error":"#REF!"}}]
[{"$error":"#REF!"},null,{"$f":"#REF!","v":{"$error":"#REF!"}},{"$f":"#REF!","v":{"$error":"#REF!"}},null,null,{"$f":"#REF!","v":{"$error":"#REF!"}},800001965,"http://www.xbrl.org/scheme/companyName",null,{"$f":"Periodos!$D$4","v":"2016-12-31"},{"$f":"#REF!","v":{"$error":"#REF!"}},{"$f":"#REF!","v":{"$error":"#REF!"}}]
[{"$error":"#REF!"},null,{"$f":"#REF!","v":{"$error":"#REF!"}},{"$f":"#REF!","v":{"$error":"#REF!"}},null,null,{"$f":"#REF!","v":{"$error":"#REF!"}},800001965,"http://www.xbrl.org/scheme/companyName",null,{"$f":"Periodos!$D$4","v":"2016-12-31"},{"$f":"#REF!","v":{"$error":"#REF!"}},{"$f":"#REF!","v":{"$error":"#REF!"}}]
[{"$error":"#REF!"},null,{"$f":"#REF!","v":{"$error":"#REF!"}},{"$f":"#REF!","v":{"$error":"#REF!"}},null,null,{"$f":"#REF!","v":{"$error":"#REF!"}},800001965,"http://www.xbrl.org/scheme/companyName",null,{"$f":"Periodos!$D$4","v":"2016-12-31"},{"$f":"#REF!","v":{"$error":"#REF!"}},{"$f":"#REF!","v":{"$error":"#REF!"}}]
[{"$error":"#REF!"},null,{"$f":"#REF!","v":{"$error":"#REF!"}},{"$f":"#REF!","v":{"$error":"#REF!"}},null,null,{"$f":"#REF!","v":{"$error":"#REF!"}},800001965,"http://www.xbrl.org/scheme/companyName",null,{"$f":"Periodos!$D$4","v":"2016-12-31"},{"$f":"#REF!","v":{"$error":"#REF!"}},{"$f":"#REF!","v":{"$error":"#REF!"}}]
[{"$error":"#REF!"},null,{"$f":"#REF!","v":{"$error":"#REF!"}},{"$f":"#REF!","v":{"$error":"#REF!"}},0,"peso",{"$f":"#REF!","v":{"$error":"#REF!"}},800001965,"http://www.xbrl.org/scheme/companyName",null,{"$f":"Periodos!$D$4","v":"2016-12-31"},{"$f":"#REF!","v":{"$error":"#REF!"}},{"$f":"#REF!","v":{"$error":"#REF!"}}]
["/*",null,"--139--"]
[{"$error":"#REF!"},null,{"$f":"#REF!","v":{"$error":"#REF!"}},{"$f":"#REF!","v":{"$error":"#REF!"}},null,null,{"$f":"#REF!","v":{"$error":"#REF!"}},800001965,"http://www.xbrl.org/scheme/companyName",null,{"$f":"Periodos!$D$4","v":"2016-12-31"},{"$f":"#REF!","v":{"$error":"#REF!"}},{"$f":"#REF!","v":{"$error":"#REF!"}}]
[{"$error":"#REF!"},null,{"$f":"#REF!","v":{"$error":"#REF!"}},{"$f":"#REF!","v":{"$error":"#REF!"}},null,null,{"$f":"#REF!","v":{"$error":"#REF!"}},800001965,"http://www.xbrl.org/scheme/companyName",null,{"$f":"Periodos!$D$4","v":"2016-12-31"},{"$f":"#REF!","v":{"$error":"#REF!"}},{"$f":"#REF!","v":{"$error":"#REF!"}}]
[{"$error":"#REF!"},null,{"$f":"#REF!","v":{"$error":"#REF!"}},{"$f":"#REF!","v":{"$error":"#REF!"}},null,null,{"$f":"#REF!","v":{"$error":"#REF!"}},800001965,"http://www.xbrl.org/scheme/companyName",null,{"$f":"Periodos!$D$4","v":"2016-12-31"},{"$f":"#REF!","v":{"$error":"#REF!"}},{"$f":"#REF!","v":{"$error":"#REF!"}}]
[{"$error":"#REF!"},null,{"$f":"#REF!","v":{"$error":"#REF!"}},{"$f":"#REF!","v":{"$error":"#REF!"}},null,null,{"$f":"#REF!","v":{"$error":"#REF!"}},800001965,"http://www.xbrl.org/scheme/companyName",null,{"$f":"Periodos!$D$4","v":"2016-12-31"},{"$f":"#REF!","v":{"$error":"#REF!"}},{"$f":"#REF!","v":{"$error":"#REF!"}}]
[{"$error":"#REF!"},null,{"$f":"#REF!","v":{"$error":"#REF!"}},{"$f":"#REF!","v":{"$error":"#REF!"}},null,null,{"$f":"#REF!","v":{"$error":"#REF!"}},800001965,"http://www.xbrl.org/scheme/companyName",null,{"$f":"Periodos!$D$4","v":"2016-12-31"},{"$f":"#REF!","v":{"$error":"#REF!"}},{"$f":"#REF!","v":{"$error":"#REF!"}}]
[{"$error":"#REF!"},null,{"$f":"#REF!","v":{"$error":"#REF!"}},{"$f":"#REF!","v":{"$error":"#REF!"}},null,null,{"$f":"#REF!","v":{"$error":"#REF!"}},800001965,"http://www.xbrl.org/scheme/companyName",null,{"$f":"Periodos!$D$4","v":"2016-12-31"},{"$f":"#REF!","v":{"$error":"#REF!"}},{"$f":"#REF!","v":{"$error":"#REF!"}}]
[{"$error":"#REF!"},null,{"$f":"#REF!","v":{"$error":"#REF!"}},{"$f":"#REF!","v":{"$error":"#REF!"}},null,null,{"$f":"#REF!","v":{"$error":"#REF!"}},800001965,"http://www.xbrl.org/scheme/companyName",null,{"$f":"Periodos!$D$4","v":"2016-12-31"},{"$f":"#REF!","v":{"$error":"#REF!"}},{"$f":"#REF!","v":{"$error":"#REF!"}}]
[{"$error":"#REF!"},null,{"$f":"#REF!","v":{"$error":"#REF!"}},{"$f":"#REF!","v":{"$error":"#REF!"}},null,null,{"$f":"#REF!","v":{"$error":"#REF!"}},800001965,"http://www.xbrl.org/scheme/companyName",null,{"$f":"Periodos!$D$4","v":"2016-12-31"},{"$f":"#REF!","v":{"$error":"#REF!"}},{"$f":"#REF!","v":{"$error":"#REF!"}}]
[{"$error":"#REF!"},null,{"$f":"#REF!","v":{"$error":"#REF!"}},{"$f":"#REF!","v":{"$error":"#REF!"}},null,null,{"$f":"#REF!","v":{"$error":"#REF!"}},800001965,"http://www.xbrl.org/scheme/companyName",null,{"$f":"Periodos!$D$4","v":"2016-12-31"},{"$f":"#REF!","v":{"$error":"#REF!"}},{"$f":"#REF!","v":{"$error":"#REF!"}}]
[{"$error":"#REF!"},null,{"$f":"#REF!","v":{"$error":"#REF!"}},{"$f":"#REF!","v":{"$error":"#REF!"}},null,null,{"$f":"#REF!","v":{"$error":"#REF!"}},800001965,"http://www.xbrl.org/scheme/companyName",null,{"$f":"Periodos!$D$4","v":"2016-12-31"},{"$f":"#REF!","v":{"$error":"#REF!"}},{"$f":"#REF!","v":{"$error":"#REF!"}}]
[{"$error":"#REF!"},null,{"$f":"#REF!","v":{"$error":"#REF!"}},{"$f":"#REF!","v":{"$error":"#REF!"}},null,null,{"$f":"#REF!","v":{"$error":"#REF!"}},800001965,"http://www.xbrl.org/scheme/companyName",null,{"$f":"Periodos!$D$4","v":"2016-12-31"},{"$f":"#REF!","v":{"$error":"#REF!"}},{"$f":"#REF!","v":{"$error":"#REF!"}}]
[{"$error":"#REF!"},null,{"$f":"#REF!","v":{"$error":"#REF!"}},{"$f":"#REF!","v":{"$error":"#REF!"}},0,"peso",{"$f":"#REF!","v":{"$error":"#REF!"}},800001965,"http://www.xbrl.org/scheme/companyName",null,{"$f":"Periodos!$D$4","v":"2016-12-31"},{"$f":"#REF!","v":{"$error":"#REF!"}},{"$f":"#REF!","v":{"$error":"#REF!"}}]
["/*",null,"--140--"]
[{"$error":"#REF!"},null,{"$f":"#REF!","v":{"$error":"#REF!"}},{"$f":"#REF!","v":{"$error":"#REF!"}},null,null,{"$f":"#REF!","v":{"$error":"#REF!"}},800001965,"http://www.xbrl.org/scheme/companyName",null,{"$f":"Periodos!$D$4","v":"2016-12-31"},{"$f":"#REF!","v":{"$error":"#REF!"}},{"$f":"#REF!","v":{"$error":"#REF!"}}]
[{"$error":"#REF!"},null,{"$f":"#REF!","v":{"$error":"#REF!"}},{"$f":"#REF!","v":{"$error":"#REF!"}},null,null,{"$f":"#REF!","v":{"$error":"#REF!"}},800001965,"http://www.xbrl.org/scheme/companyName",null,{"$f":"Periodos!$D$4","v":"2016-12-31"},{"$f":"#REF!","v":{"$error":"#REF!"}},{"$f":"#REF!","v":{"$error":"#REF!"}}]
[{"$error":"#REF!"},null,{"$f":"#REF!","v":{"$error":"#REF!"}},{"$f":"#REF!","v":{"$error":"#REF!"}},null,null,{"$f":"#REF!","v":{"$error":"#REF!"}},800001965,"http://www.xbrl.org/scheme/companyName",null,{"$f":"Periodos!$D$4","v":"2016-12-31"},{"$f":"#REF!","v":{"$error":"#REF!"}},{"$f":"#REF!","v":{"$error":"#REF!"}}]
[{"$error":"#REF!"},null,{"$f":"#REF!","v":{"$error":"#REF!"}},{"$f":"#REF!","v":{"$error":"#REF!"}},null,null,{"$f":"#REF!","v":{"$error":"#REF!"}},800001965,"http://www.xbrl.org/scheme/companyName",null,{"$f":"Periodos!$D$4","v":"2016-12-31"},{"$f":"#REF!","v":{"$error":"#REF!"}},{"$f":"#REF!","v":{"$error":"#REF!"}}]
[{"$error":"#REF!"},null,{"$f":"#REF!","v":{"$error":"#REF!"}},{"$f":"#REF!","v":{"$error":"#REF!"}},null,null,{"$f":"#REF!","v":{"$error":"#REF!"}},800001965,"http://www.xbrl.org/scheme/companyName",null,{"$f":"Periodos!$D$4","v":"2016-12-31"},{"$f":"#REF!","v":{"$error":"#REF!"}},{"$f":"#REF!","v":{"$error":"#REF!"}}]
[{"$error":"#REF!"},null,{"$f":"#REF!","v":{"$error":"#REF!"}},{"$f":"#REF!","v":{"$error":"#REF!"}},null,null,{"$f":"#REF!","v":{"$error":"#REF!"}},800001965,"http://www.xbrl.org/scheme/companyName",null,{"$f":"Periodos!$D$4","v":"2016-12-31"},{"$f":"#REF!","v":{"$error":"#REF!"}},{"$f":"#REF!","v":{"$error":"#REF!"}}]
[{"$error":"#REF!"},null,{"$f":"#REF!","v":{"$error":"#REF!"}},{"$f":"#REF!","v":{"$error":"#REF!"}},null,null,{"$f":"#REF!","v":{"$error":"#REF!"}},800001965,"http://www.xbrl.org/scheme/companyName",null,{"$f":"Periodos!$D$4","v":"2016-12-31"},{"$f":"#REF!","v":{"$error":"#REF!"}},{"$f":"#REF!","v":{"$error":"#REF!"}}]
[{"$error":"#REF!"},null,{"$f":"#REF!","v":{"$error":"#REF!"}},{"$f":"#REF!","v":{"$error":"#REF!"}},null,null,{"$f":"#REF!","v":{"$error":"#REF!"}},800001965,"http://www.xbrl.org/scheme/companyName",null,{"$f":"Periodos!$D$4","v":"2016-12-31"},{"$f":"#REF!","v":{"$error":"#REF!"}},{"$f":"#REF!","v":{"$error":"#REF!"}}]
[{"$error":"#REF!"},null,{"$f":"#REF!","v":{"$error":"#REF!"}},{"$f":"#REF!","v":{"$error":"#REF!"}},null,null,{"$f":"#REF!","v":{"$error":"#REF!"}},800001965,"http://www.xbrl.org/scheme/companyName",null,{"$f":"Periodos!$D$4","v":"2016-12-31"},{"$f":"#REF!","v":{"$error":"#REF!"}},{"$f":"#REF!","v":{"$error":"#REF!"}}]
[{"$error":"#REF!"},null,{"$f":"#REF!","v":{"$error":"#REF!"}},{"$f":"#REF!","v":{"$error":"#REF!"}},null,null,{"$f":"#REF!","v":{"$error":"#REF!"}},800001965,"http://www.xbrl.org/scheme/companyName",null,{"$f":"Periodos!$D$4","v":"2016-12-31"},{"$f":"#REF!","v":{"$error":"#REF!"}},{"$f":"#REF!","v":{"$error":"#REF!"}}]
[{"$error":"#REF!"},null,{"$f":"#REF!","v":{"$error":"#REF!"}},{"$f":"#REF!","v":{"$error":"#REF!"}},null,null,{"$f":"#REF!","v":{"$error":"#REF!"}},800001965,"http://www.xbrl.org/scheme/companyName",null,{"$f":"Periodos!$D$4","v":"2016-12-31"},{"$f":"#REF!","v":{"$error":"#REF!"}},{"$f":"#REF!","v":{"$error":"#REF!"}}]
[{"$error":"#REF!"},null,{"$f":"#REF!","v":{"$error":"#REF!"}},{"$f":"#REF!","v":{"$error":"#REF!"}},0,"peso",{"$f":"#REF!","v":{"$error":"#REF!"}},800001965,"http://www.xbrl.org/scheme/companyName",null,{"$f":"Periodos!$D$4","v":"2016-12-31"},{"$f":"#REF!","v":{"$error":"#REF!"}},{"$f":"#REF!","v":{"$error":"#REF!"}}]
["/*",null,"--141--"]
[{"$error":"#REF!"},null,{"$f":"#REF!","v":{"$error":"#REF!"}},{"$f":"#REF!","v":{"$error":"#REF!"}},null,null,{"$f":"#REF!","v":{"$error":"#REF!"}},800001965,"http://www.xbrl.org/scheme/companyName",null,{"$f":"Periodos!$D$4","v":"2016-12-31"},{"$f":"#REF!","v":{"$error":"#REF!"}},{"$f":"#REF!","v":{"$error":"#REF!"}}]
[{"$error":"#REF!"},null,{"$f":"#REF!","v":{"$error":"#REF!"}},{"$f":"#REF!","v":{"$error":"#REF!"}},null,null,{"$f":"#REF!","v":{"$error":"#REF!"}},800001965,"http://www.xbrl.org/scheme/companyName",null,{"$f":"Periodos!$D$4","v":"2016-12-31"},{"$f":"#REF!","v":{"$error":"#REF!"}},{"$f":"#REF!","v":{"$error":"#REF!"}}]
[{"$error":"#REF!"},null,{"$f":"#REF!","v":{"$error":"#REF!"}},{"$f":"#REF!","v":{"$error":"#REF!"}},null,null,{"$f":"#REF!","v":{"$error":"#REF!"}},800001965,"http://www.xbrl.org/scheme/companyName",null,{"$f":"Periodos!$D$4","v":"2016-12-31"},{"$f":"#REF!","v":{"$error":"#REF!"}},{"$f":"#REF!","v":{"$error":"#REF!"}}]
[{"$error":"#REF!"},null,{"$f":"#REF!","v":{"$error":"#REF!"}},{"$f":"#REF!","v":{"$error":"#REF!"}},null,null,{"$f":"#REF!","v":{"$error":"#REF!"}},800001965,"http://www.xbrl.org/scheme/companyName",null,{"$f":"Periodos!$D$4","v":"2016-12-31"},{"$f":"#REF!","v":{"$error":"#REF!"}},{"$f":"#REF!","v":{"$error":"#REF!"}}]
[{"$error":"#REF!"},null,{"$f":"#REF!","v":{"$error":"#REF!"}},{"$f":"#REF!","v":{"$error":"#REF!"}},null,null,{"$f":"#REF!","v":{"$error":"#REF!"}},800001965,"http://www.xbrl.org/scheme/companyName",null,{"$f":"Periodos!$D$4","v":"2016-12-31"},{"$f":"#REF!","v":{"$error":"#REF!"}},{"$f":"#REF!","v":{"$error":"#REF!"}}]
[{"$error":"#REF!"},null,{"$f":"#REF!","v":{"$error":"#REF!"}},{"$f":"#REF!","v":{"$error":"#REF!"}},null,null,{"$f":"#REF!","v":{"$error":"#REF!"}},800001965,"http://www.xbrl.org/scheme/companyName",null,{"$f":"Periodos!$D$4","v":"2016-12-31"},{"$f":"#REF!","v":{"$error":"#REF!"}},{"$f":"#REF!","v":{"$error":"#REF!"}}]
[{"$error":"#REF!"},null,{"$f":"#REF!","v":{"$error":"#REF!"}},{"$f":"#REF!","v":{"$error":"#REF!"}},null,null,{"$f":"#REF!","v":{"$error":"#REF!"}},800001965,"http://www.xbrl.org/scheme/companyName",null,{"$f":"Periodos!$D$4","v":"2016-12-31"},{"$f":"#REF!","v":{"$error":"#REF!"}},{"$f":"#REF!","v":{"$error":"#REF!"}}]
[{"$error":"#REF!"},null,{"$f":"#REF!","v":{"$error":"#REF!"}},{"$f":"#REF!","v":{"$error":"#REF!"}},null,null,{"$f":"#REF!","v":{"$error":"#REF!"}},800001965,"http://www.xbrl.org/scheme/companyName",null,{"$f":"Periodos!$D$4","v":"2016-12-31"},{"$f":"#REF!","v":{"$error":"#REF!"}},{"$f":"#REF!","v":{"$error":"#REF!"}}]
[{"$error":"#REF!"},null,{"$f":"#REF!","v":{"$error":"#REF!"}},{"$f":"#REF!","v":{"$error":"#REF!"}},null,null,{"$f":"#REF!","v":{"$error":"#REF!"}},800001965,"http://www.xbrl.org/scheme/companyName",null,{"$f":"Periodos!$D$4","v":"2016-12-31"},{"$f":"#REF!","v":{"$error":"#REF!"}},{"$f":"#REF!","v":{"$error":"#REF!"}}]
[{"$error":"#REF!"},null,{"$f":"#REF!","v":{"$error":"#REF!"}},{"$f":"#REF!","v":{"$error":"#REF!"}},null,null,{"$f":"#REF!","v":{"$error":"#REF!"}},800001965,"http://www.xbrl.org/scheme/companyName",null,{"$f":"Periodos!$D$4","v":"2016-12-31"},{"$f":"#REF!","v":{"$error":"#REF!"}},{"$f":"#REF!","v":{"$error":"#REF!"}}]
[{"$error":"#REF!"},null,{"$f":"#REF!","v":{"$error":"#REF!"}},{"$f":"#REF!","v":{"$error":"#REF!"}},null,null,{"$f":"#REF!","v":{"$error":"#REF!"}},800001965,"http://www.xbrl.org/scheme/companyName",null,{"$f":"Periodos!$D$4","v":"2016-12-31"},{"$f":"#REF!","v":{"$error":"#REF!"}},{"$f":"#REF!","v":{"$error":"#REF!"}}]
[{"$error":"#REF!"},null,{"$f":"#REF!","v":{"$error":"#REF!"}},{"$f":"#REF!","v":{"$error":"#REF!"}},0,"peso",{"$f":"#REF!","v":{"$error":"#REF!"}},800001965,"http://www.xbrl.org/scheme/companyName",null,{"$f":"Periodos!$D$4","v":"2016-12-31"},{"$f":"#REF!","v":{"$error":"#REF!"}},{"$f":"#REF!","v":{"$error":"#REF!"}}]
["/*",null,"--142--"]
[{"$error":"#REF!"},null,{"$f":"#REF!","v":{"$error":"#REF!"}},{"$f":"#REF!","v":{"$error":"#REF!"}},null,null,{"$f":"#REF!","v":{"$error":"#REF!"}},800001965,"http://www.xbrl.org/scheme/companyName",null,{"$f":"Periodos!$D$4","v":"2016-12-31"},{"$f":"#REF!","v":{"$error":"#REF!"}},{"$f":"#REF!","v":{"$error":"#REF!"}}]
[{"$error":"#REF!"},null,{"$f":"#REF!","v":{"$error":"#REF!"}},{"$f":"#REF!","v":{"$error":"#REF!"}},null,null,{"$f":"#REF!","v":{"$error":"#REF!"}},800001965,"http://www.xbrl.org/scheme/companyName",null,{"$f":"Periodos!$D$4","v":"2016-12-31"},{"$f":"#REF!","v":{"$error":"#REF!"}},{"$f":"#REF!","v":{"$error":"#REF!"}}]
[{"$error":"#REF!"},null,{"$f":"#REF!","v":{"$error":"#REF!"}},{"$f":"#REF!","v":{"$error":"#REF!"}},null,null,{"$f":"#REF!","v":{"$error":"#REF!"}},800001965,"http://www.xbrl.org/scheme/companyName",null,{"$f":"Periodos!$D$4","v":"2016-12-31"},{"$f":"#REF!","v":{"$error":"#REF!"}},{"$f":"#REF!","v":{"$error":"#REF!"}}]
[{"$f":"IF(G5601=\"\",\"/*\",\"\")","v":{"$error":"#REF!"}},null,{"$f":"#REF!","v":{"$error":"#REF!"}},{"$f":"#REF!","v":{"$error":"#REF!"}},null,null,{"$f":"#REF!","v":{"$error":"#REF!"}},800001965,"http://www.xbrl.org/scheme/companyName",null,{"$f":"Periodos!$D$4","v":"2016-12-31"},{"$f":"#REF!","v":{"$error":"#REF!"}},{"$f":"#REF!","v":{"$error":"#REF!"}}]
[{"$error":"#REF!"},null,{"$f":"#REF!","v":{"$error":"#REF!"}},{"$f":"#REF!","v":{"$error":"#REF!"}},null,null,{"$f":"#REF!","v":{"$error":"#REF!"}},800001965,"http://www.xbrl.org/scheme/companyName",null,{"$f":"Periodos!$D$4","v":"2016-12-31"},{"$f":"#REF!","v":{"$error":"#REF!"}},{"$f":"#REF!","v":{"$error":"#REF!"}}]
[{"$error":"#REF!"},null,{"$f":"#REF!","v":{"$error":"#REF!"}},{"$f":"#REF!","v":{"$error":"#REF!"}},null,null,{"$f":"#REF!","v":{"$error":"#REF!"}},800001965,"http://www.xbrl.org/scheme/companyName",null,{"$f":"Periodos!$D$4","v":"2016-12-31"},{"$f":"#REF!","v":{"$error":"#REF!"}},{"$f":"#REF!","v":{"$error":"#REF!"}}]
[{"$error":"#REF!"},null,{"$f":"#REF!","v":{"$error":"#REF!"}},{"$f":"#REF!","v":{"$error":"#REF!"}},null,null,{"$f":"#REF!","v":{"$error":"#REF!"}},800001965,"http://www.xbrl.org/scheme/companyName",null,{"$f":"Periodos!$D$4","v":"2016-12-31"},{"$f":"#REF!","v":{"$error":"#REF!"}},{"$f":"#REF!","v":{"$error":"#REF!"}}]
[{"$error":"#REF!"},null,{"$f":"#REF!","v":{"$error":"#REF!"}},{"$f":"#REF!","v":{"$error":"#REF!"}},null,null,{"$f":"#REF!","v":{"$error":"#REF!"}},800001965,"http://www.xbrl.org/scheme/companyName",null,{"$f":"Periodos!$D$4","v":"2016-12-31"},{"$f":"#REF!","v":{"$error":"#REF!"}},{"$f":"#REF!","v":{"$error":"#REF!"}}]
[{"$error":"#REF!"},null,{"$f":"#REF!","v":{"$error":"#REF!"}},{"$f":"#REF!","v":{"$error":"#REF!"}},null,null,{"$f":"#REF!","v":{"$error":"#REF!"}},800001965,"http://www.xbrl.org/scheme/companyName",null,{"$f":"Periodos!$D$4","v":"2016-12-31"},{"$f":"#REF!","v":{"$error":"#REF!"}},{"$f":"#REF!","v":{"$error":"#REF!"}}]
[{"$error":"#REF!"},null,{"$f":"#REF!","v":{"$error":"#REF!"}},{"$f":"#REF!","v":{"$error":"#REF!"}},null,null,{"$f":"#REF!","v":{"$error":"#REF!"}},800001965,"http://www.xbrl.org/scheme/companyName",null,{"$f":"Periodos!$D$4","v":"2016-12-31"},{"$f":"#REF!","v":{"$error":"#REF!"}},{"$f":"#REF!","v":{"$error":"#REF!"}}]
[{"$error":"#REF!"},null,{"$f":"#REF!","v":{"$error":"#REF!"}},{"$f":"#REF!","v":{"$error":"#REF!"}},null,null,{"$f":"#REF!","v":{"$error":"#REF!"}},800001965,"http://www.xbrl.org/scheme/companyName",null,{"$f":"Periodos!$D$4","v":"2016-12-31"},{"$f":"#REF!","v":{"$error":"#REF!"}},{"$f":"#REF!","v":{"$error":"#REF!"}}]
[{"$error":"#REF!"},null,{"$f":"#REF!","v":{"$error":"#REF!"}},{"$f":"#REF!","v":{"$error":"#REF!"}},0,"peso",{"$f":"#REF!","v":{"$error":"#REF!"}},800001965,"http://www.xbrl.org/scheme/companyName",null,{"$f":"Periodos!$D$4","v":"2016-12-31"},{"$f":"#REF!","v":{"$error":"#REF!"}},{"$f":"#REF!","v":{"$error":"#REF!"}}]
["/*",null,"--143--"]
[{"$error":"#REF!"},null,{"$f":"#REF!","v":{"$error":"#REF!"}},{"$f":"#REF!","v":{"$error":"#REF!"}},null,null,{"$f":"#REF!","v":{"$error":"#REF!"}},800001965,"http://www.xbrl.org/scheme/companyName",null,{"$f":"Periodos!$D$4","v":"2016-12-31"},{"$f":"#REF!","v":{"$error":"#REF!"}},{"$f":"#REF!","v":{"$error":"#REF!"}}]
[{"$error":"#REF!"},null,{"$f":"#REF!","v":{"$error":"#REF!"}},{"$f":"#REF!","v":{"$error":"#REF!"}},null,null,{"$f":"#REF!","v":{"$error":"#REF!"}},800001965,"http://www.xbrl.org/scheme/companyName",null,{"$f":"Periodos!$D$4","v":"2016-12-31"},{"$f":"#REF!","v":{"$error":"#REF!"}},{"$f":"#REF!","v":{"$error":"#REF!"}}]
[{"$error":"#REF!"},null,{"$f":"#REF!","v":{"$error":"#REF!"}},{"$f":"#REF!","v":{"$error":"#REF!"}},null,null,{"$f":"#REF!","v":{"$error":"#REF!"}},800001965,"http://www.xbrl.org/scheme/companyName",null,{"$f":"Periodos!$D$4","v":"2016-12-31"},{"$f":"#REF!","v":{"$error":"#REF!"}},{"$f":"#REF!","v":{"$error":"#REF!"}}]
[{"$error":"#REF!"},null,{"$f":"#REF!","v":{"$error":"#REF!"}},{"$f":"#REF!","v":{"$error":"#REF!"}},null,null,{"$f":"#REF!","v":{"$error":"#REF!"}},800001965,"http://www.xbrl.org/scheme/companyName",null,{"$f":"Periodos!$D$4","v":"2016-12-31"},{"$f":"#REF!","v":{"$error":"#REF!"}},{"$f":"#REF!","v":{"$error":"#REF!"}}]
[{"$error":"#REF!"},null,{"$f":"#REF!","v":{"$error":"#REF!"}},{"$f":"#REF!","v":{"$error":"#REF!"}},null,null,{"$f":"#REF!","v":{"$error":"#REF!"}},800001965,"http://www.xbrl.org/scheme/companyName",null,{"$f":"Periodos!$D$4","v":"2016-12-31"},{"$f":"#REF!","v":{"$error":"#REF!"}},{"$f":"#REF!","v":{"$error":"#REF!"}}]
[{"$error":"#REF!"},null,{"$f":"#REF!","v":{"$error":"#REF!"}},{"$f":"#REF!","v":{"$error":"#REF!"}},null,null,{"$f":"#REF!","v":{"$error":"#REF!"}},800001965,"http://www.xbrl.org/scheme/companyName",null,{"$f":"Periodos!$D$4","v":"2016-12-31"},{"$f":"#REF!","v":{"$error":"#REF!"}},{"$f":"#REF!","v":{"$error":"#REF!"}}]
[{"$error":"#REF!"},null,{"$f":"#REF!","v":{"$error":"#REF!"}},{"$f":"#REF!","v":{"$error":"#REF!"}},null,null,{"$f":"#REF!","v":{"$error":"#REF!"}},800001965,"http://www.xbrl.org/scheme/companyName",null,{"$f":"Periodos!$D$4","v":"2016-12-31"},{"$f":"#REF!","v":{"$error":"#REF!"}},{"$f":"#REF!","v":{"$error":"#REF!"}}]
[{"$error":"#REF!"},null,{"$f":"#REF!","v":{"$error":"#REF!"}},{"$f":"#REF!","v":{"$error":"#REF!"}},null,null,{"$f":"#REF!","v":{"$error":"#REF!"}},800001965,"http://www.xbrl.org/scheme/companyName",null,{"$f":"Periodos!$D$4","v":"2016-12-31"},{"$f":"#REF!","v":{"$error":"#REF!"}},{"$f":"#REF!","v":{"$error":"#REF!"}}]
[{"$error":"#REF!"},null,{"$f":"#REF!","v":{"$error":"#REF!"}},{"$f":"#REF!","v":{"$error":"#REF!"}},null,null,{"$f":"#REF!","v":{"$error":"#REF!"}},800001965,"http://www.xbrl.org/scheme/companyName",null,{"$f":"Periodos!$D$4","v":"2016-12-31"},{"$f":"#REF!","v":{"$error":"#REF!"}},{"$f":"#REF!","v":{"$error":"#REF!"}}]
[{"$error":"#REF!"},null,{"$f":"#REF!","v":{"$error":"#REF!"}},{"$f":"#REF!","v":{"$error":"#REF!"}},null,null,{"$f":"#REF!","v":{"$error":"#REF!"}},800001965,"http://www.xbrl.org/scheme/companyName",null,{"$f":"Periodos!$D$4","v":"2016-12-31"},{"$f":"#REF!","v":{"$error":"#REF!"}},{"$f":"#REF!","v":{"$error":"#REF!"}}]
[{"$error":"#REF!"},null,{"$f":"#REF!","v":{"$error":"#REF!"}},{"$f":"#REF!","v":{"$error":"#REF!"}},null,null,{"$f":"#REF!","v":{"$error":"#REF!"}},800001965,"http://www.xbrl.org/scheme/companyName",null,{"$f":"Periodos!$D$4","v":"2016-12-31"},{"$f":"#REF!","v":{"$error":"#REF!"}},{"$f":"#REF!","v":{"$error":"#REF!"}}]
[{"$error":"#REF!"},null,{"$f":"#REF!","v":{"$error":"#REF!"}},{"$f":"#REF!","v":{"$error":"#REF!"}},0,"peso",{"$f":"#REF!","v":{"$error":"#REF!"}},800001965,"http://www.xbrl.org/scheme/companyName",null,{"$f":"Periodos!$D$4","v":"2016-12-31"},{"$f":"#REF!","v":{"$error":"#REF!"}},{"$f":"#REF!","v":{"$error":"#REF!"}}]
["/*",null,"--144--"]
[{"$error":"#REF!"},null,{"$f":"#REF!","v":{"$error":"#REF!"}},{"$f":"#REF!","v":{"$error":"#REF!"}},null,null,{"$f":"#REF!","v":{"$error":"#REF!"}},800001965,"http://www.xbrl.org/scheme/companyName",null,{"$f":"Periodos!$D$4","v":"2016-12-31"},{"$f":"#REF!","v":{"$error":"#REF!"}},{"$f":"#REF!","v":{"$error":"#REF!"}}]
[{"$error":"#REF!"},null,{"$f":"#REF!","v":{"$error":"#REF!"}},{"$f":"#REF!","v":{"$error":"#REF!"}},null,null,{"$f":"#REF!","v":{"$error":"#REF!"}},800001965,"http://www.xbrl.org/scheme/companyName",null,{"$f":"Periodos!$D$4","v":"2016-12-31"},{"$f":"#REF!","v":{"$error":"#REF!"}},{"$f":"#REF!","v":{"$error":"#REF!"}}]
[{"$error":"#REF!"},null,{"$f":"#REF!","v":{"$error":"#REF!"}},{"$f":"#REF!","v":{"$error":"#REF!"}},null,null,{"$f":"#REF!","v":{"$error":"#REF!"}},800001965,"http://www.xbrl.org/scheme/companyName",null,{"$f":"Periodos!$D$4","v":"2016-12-31"},{"$f":"#REF!","v":{"$error":"#REF!"}},{"$f":"#REF!","v":{"$error":"#REF!"}}]
[{"$error":"#REF!"},null,{"$f":"#REF!","v":{"$error":"#REF!"}},{"$f":"#REF!","v":{"$error":"#REF!"}},null,null,{"$f":"#REF!","v":{"$error":"#REF!"}},800001965,"http://www.xbrl.org/scheme/companyName",null,{"$f":"Periodos!$D$4","v":"2016-12-31"},{"$f":"#REF!","v":{"$error":"#REF!"}},{"$f":"#REF!","v":{"$error":"#REF!"}}]
[{"$error":"#REF!"},null,{"$f":"#REF!","v":{"$error":"#REF!"}},{"$f":"#REF!","v":{"$error":"#REF!"}},null,null,{"$f":"#REF!","v":{"$error":"#REF!"}},800001965,"http://www.xbrl.org/scheme/companyName",null,{"$f":"Periodos!$D$4","v":"2016-12-31"},{"$f":"#REF!","v":{"$error":"#REF!"}},{"$f":"#REF!","v":{"$error":"#REF!"}}]
[{"$error":"#REF!"},null,{"$f":"#REF!","v":{"$error":"#REF!"}},{"$f":"#REF!","v":{"$error":"#REF!"}},null,null,{"$f":"#REF!","v":{"$error":"#REF!"}},800001965,"http://www.xbrl.org/scheme/companyName",null,{"$f":"Periodos!$D$4","v":"2016-12-31"},{"$f":"#REF!","v":{"$error":"#REF!"}},{"$f":"#REF!","v":{"$error":"#REF!"}}]
[{"$error":"#REF!"},null,{"$f":"#REF!","v":{"$error":"#REF!"}},{"$f":"#REF!","v":{"$error":"#REF!"}},null,null,{"$f":"#REF!","v":{"$error":"#REF!"}},800001965,"http://www.xbrl.org/scheme/companyName",null,{"$f":"Periodos!$D$4","v":"2016-12-31"},{"$f":"#REF!","v":{"$error":"#REF!"}},{"$f":"#REF!","v":{"$error":"#REF!"}}]
[{"$error":"#REF!"},null,{"$f":"#REF!","v":{"$error":"#REF!"}},{"$f":"#REF!","v":{"$error":"#REF!"}},null,null,{"$f":"#REF!","v":{"$error":"#REF!"}},800001965,"http://www.xbrl.org/scheme/companyName",null,{"$f":"Periodos!$D$4","v":"2016-12-31"},{"$f":"#REF!","v":{"$error":"#REF!"}},{"$f":"#REF!","v":{"$error":"#REF!"}}]
[{"$error":"#REF!"},null,{"$f":"#REF!","v":{"$error":"#REF!"}},{"$f":"#REF!","v":{"$error":"#REF!"}},null,null,{"$f":"#REF!","v":{"$error":"#REF!"}},800001965,"http://www.xbrl.org/scheme/companyName",null,{"$f":"Periodos!$D$4","v":"2016-12-31"},{"$f":"#REF!","v":{"$error":"#REF!"}},{"$f":"#REF!","v":{"$error":"#REF!"}}]
[{"$error":"#REF!"},null,{"$f":"#REF!","v":{"$error":"#REF!"}},{"$f":"#REF!","v":{"$error":"#REF!"}},null,null,{"$f":"#REF!","v":{"$error":"#REF!"}},800001965,"http://www.xbrl.org/scheme/companyName",null,{"$f":"Periodos!$D$4","v":"2016-12-31"},{"$f":"#REF!","v":{"$error":"#REF!"}},{"$f":"#REF!","v":{"$error":"#REF!"}}]
[{"$error":"#REF!"},null,{"$f":"#REF!","v":{"$error":"#REF!"}},{"$f":"#REF!","v":{"$error":"#REF!"}},null,null,{"$f":"#REF!","v":{"$error":"#REF!"}},800001965,"http://www.xbrl.org/scheme/companyName",null,{"$f":"Periodos!$D$4","v":"2016-12-31"},{"$f":"#REF!","v":{"$error":"#REF!"}},{"$f":"#REF!","v":{"$error":"#REF!"}}]
[{"$error":"#REF!"},null,{"$f":"#REF!","v":{"$error":"#REF!"}},{"$f":"#REF!","v":{"$error":"#REF!"}},0,"peso",{"$f":"#REF!","v":{"$error":"#REF!"}},800001965,"http://www.xbrl.org/scheme/companyName",null,{"$f":"Periodos!$D$4","v":"2016-12-31"},{"$f":"#REF!","v":{"$error":"#REF!"}},{"$f":"#REF!","v":{"$error":"#REF!"}}]
["/*",null,"--145--"]
[{"$error":"#REF!"},null,{"$f":"#REF!","v":{"$error":"#REF!"}},{"$f":"#REF!","v":{"$error":"#REF!"}},null,null,{"$f":"#REF!","v":{"$error":"#REF!"}},800001965,"http://www.xbrl.org/scheme/companyName",null,{"$f":"Periodos!$D$4","v":"2016-12-31"},{"$f":"#REF!","v":{"$error":"#REF!"}},{"$f":"#REF!","v":{"$error":"#REF!"}}]
[{"$error":"#REF!"},null,{"$f":"#REF!","v":{"$error":"#REF!"}},{"$f":"#REF!","v":{"$error":"#REF!"}},null,null,{"$f":"#REF!","v":{"$error":"#REF!"}},800001965,"http://www.xbrl.org/scheme/companyName",null,{"$f":"Periodos!$D$4","v":"2016-12-31"},{"$f":"#REF!","v":{"$error":"#REF!"}},{"$f":"#REF!","v":{"$error":"#REF!"}}]
[{"$error":"#REF!"},null,{"$f":"#REF!","v":{"$error":"#REF!"}},{"$f":"#REF!","v":{"$error":"#REF!"}},null,null,{"$f":"#REF!","v":{"$error":"#REF!"}},800001965,"http://www.xbrl.org/scheme/companyName",null,{"$f":"Periodos!$D$4","v":"2016-12-31"},{"$f":"#REF!","v":{"$error":"#REF!"}},{"$f":"#REF!","v":{"$error":"#REF!"}}]
[{"$error":"#REF!"},null,{"$f":"#REF!","v":{"$error":"#REF!"}},{"$f":"#REF!","v":{"$error":"#REF!"}},null,null,{"$f":"#REF!","v":{"$error":"#REF!"}},800001965,"http://www.xbrl.org/scheme/companyName",null,{"$f":"Periodos!$D$4","v":"2016-12-31"},{"$f":"#REF!","v":{"$error":"#REF!"}},{"$f":"#REF!","v":{"$error":"#REF!"}}]
[{"$error":"#REF!"},null,{"$f":"#REF!","v":{"$error":"#REF!"}},{"$f":"#REF!","v":{"$error":"#REF!"}},null,null,{"$f":"#REF!","v":{"$error":"#REF!"}},800001965,"http://www.xbrl.org/scheme/companyName",null,{"$f":"Periodos!$D$4","v":"2016-12-31"},{"$f":"#REF!","v":{"$error":"#REF!"}},{"$f":"#REF!","v":{"$error":"#REF!"}}]
[{"$error":"#REF!"},null,{"$f":"#REF!","v":{"$error":"#REF!"}},{"$f":"#REF!","v":{"$error":"#REF!"}},null,null,{"$f":"#REF!","v":{"$error":"#REF!"}},800001965,"http://www.xbrl.org/scheme/companyName",null,{"$f":"Periodos!$D$4","v":"2016-12-31"},{"$f":"#REF!","v":{"$error":"#REF!"}},{"$f":"#REF!","v":{"$error":"#REF!"}}]
[{"$error":"#REF!"},null,{"$f":"#REF!","v":{"$error":"#REF!"}},{"$f":"#REF!","v":{"$error":"#REF!"}},null,null,{"$f":"#REF!","v":{"$error":"#REF!"}},800001965,"http://www.xbrl.org/scheme/companyName",null,{"$f":"Periodos!$D$4","v":"2016-12-31"},{"$f":"#REF!","v":{"$error":"#REF!"}},{"$f":"#REF!","v":{"$error":"#REF!"}}]
[{"$error":"#REF!"},null,{"$f":"#REF!","v":{"$error":"#REF!"}},{"$f":"#REF!","v":{"$error":"#REF!"}},null,null,{"$f":"#REF!","v":{"$error":"#REF!"}},800001965,"http://www.xbrl.org/scheme/companyName",null,{"$f":"Periodos!$D$4","v":"2016-12-31"},{"$f":"#REF!","v":{"$error":"#REF!"}},{"$f":"#REF!","v":{"$error":"#REF!"}}]
[{"$error":"#REF!"},null,{"$f":"#REF!","v":{"$error":"#REF!"}},{"$f":"#REF!","v":{"$error":"#REF!"}},null,null,{"$f":"#REF!","v":{"$error":"#REF!"}},800001965,"http://www.xbrl.org/scheme/companyName",null,{"$f":"Periodos!$D$4","v":"2016-12-31"},{"$f":"#REF!","v":{"$error":"#REF!"}},{"$f":"#REF!","v":{"$error":"#REF!"}}]
[{"$error":"#REF!"},null,{"$f":"#REF!","v":{"$error":"#REF!"}},{"$f":"#REF!","v":{"$error":"#REF!"}},null,null,{"$f":"#REF!","v":{"$error":"#REF!"}},800001965,"http://www.xbrl.org/scheme/companyName",null,{"$f":"Periodos!$D$4","v":"2016-12-31"},{"$f":"#REF!","v":{"$error":"#REF!"}},{"$f":"#REF!","v":{"$error":"#REF!"}}]
[{"$error":"#REF!"},null,{"$f":"#REF!","v":{"$error":"#REF!"}},{"$f":"#REF!","v":{"$error":"#REF!"}},null,null,{"$f":"#REF!","v":{"$error":"#REF!"}},800001965,"http://www.xbrl.org/scheme/companyName",null,{"$f":"Periodos!$D$4","v":"2016-12-31"},{"$f":"#REF!","v":{"$error":"#REF!"}},{"$f":"#REF!","v":{"$error":"#REF!"}}]
[{"$error":"#REF!"},null,{"$f":"#REF!","v":{"$error":"#REF!"}},{"$f":"#REF!","v":{"$error":"#REF!"}},0,"peso",{"$f":"#REF!","v":{"$error":"#REF!"}},800001965,"http://www.xbrl.org/scheme/companyName",null,{"$f":"Periodos!$D$4","v":"2016-12-31"},{"$f":"#REF!","v":{"$error":"#REF!"}},{"$f":"#REF!","v":{"$error":"#REF!"}}]
["/*",null,"--146--"]
[{"$error":"#REF!"},null,{"$f":"#REF!","v":{"$error":"#REF!"}},{"$f":"#REF!","v":{"$error":"#REF!"}},null,null,{"$f":"#REF!","v":{"$error":"#REF!"}},800001965,"http://www.xbrl.org/scheme/companyName",null,{"$f":"Periodos!$D$4","v":"2016-12-31"},{"$f":"#REF!","v":{"$error":"#REF!"}},{"$f":"#REF!","v":{"$error":"#REF!"}}]
[{"$error":"#REF!"},null,{"$f":"#REF!","v":{"$error":"#REF!"}},{"$f":"#REF!","v":{"$error":"#REF!"}},null,null,{"$f":"#REF!","v":{"$error":"#REF!"}},800001965,"http://www.xbrl.org/scheme/companyName",null,{"$f":"Periodos!$D$4","v":"2016-12-31"},{"$f":"#REF!","v":{"$error":"#REF!"}},{"$f":"#REF!","v":{"$error":"#REF!"}}]
[{"$error":"#REF!"},null,{"$f":"#REF!","v":{"$error":"#REF!"}},{"$f":"#REF!","v":{"$error":"#REF!"}},null,null,{"$f":"#REF!","v":{"$error":"#REF!"}},800001965,"http://www.xbrl.org/scheme/companyName",null,{"$f":"Periodos!$D$4","v":"2016-12-31"},{"$f":"#REF!","v":{"$error":"#REF!"}},{"$f":"#REF!","v":{"$error":"#REF!"}}]
[{"$error":"#REF!"},null,{"$f":"#REF!","v":{"$error":"#REF!"}},{"$f":"#REF!","v":{"$error":"#REF!"}},null,null,{"$f":"#REF!","v":{"$error":"#REF!"}},800001965,"http://www.xbrl.org/scheme/companyName",null,{"$f":"Periodos!$D$4","v":"2016-12-31"},{"$f":"#REF!","v":{"$error":"#REF!"}},{"$f":"#REF!","v":{"$error":"#REF!"}}]
[{"$error":"#REF!"},null,{"$f":"#REF!","v":{"$error":"#REF!"}},{"$f":"#REF!","v":{"$error":"#REF!"}},null,null,{"$f":"#REF!","v":{"$error":"#REF!"}},800001965,"http://www.xbrl.org/scheme/companyName",null,{"$f":"Periodos!$D$4","v":"2016-12-31"},{"$f":"#REF!","v":{"$error":"#REF!"}},{"$f":"#REF!","v":{"$error":"#REF!"}}]
[{"$error":"#REF!"},null,{"$f":"#REF!","v":{"$error":"#REF!"}},{"$f":"#REF!","v":{"$error":"#REF!"}},null,null,{"$f":"#REF!","v":{"$error":"#REF!"}},800001965,"http://www.xbrl.org/scheme/companyName",null,{"$f":"Periodos!$D$4","v":"2016-12-31"},{"$f":"#REF!","v":{"$error":"#REF!"}},{"$f":"#REF!","v":{"$error":"#REF!"}}]
[{"$error":"#REF!"},null,{"$f":"#REF!","v":{"$error":"#REF!"}},{"$f":"#REF!","v":{"$error":"#REF!"}},null,null,{"$f":"#REF!","v":{"$error":"#REF!"}},800001965,"http://www.xbrl.org/scheme/companyName",null,{"$f":"Periodos!$D$4","v":"2016-12-31"},{"$f":"#REF!","v":{"$error":"#REF!"}},{"$f":"#REF!","v":{"$error":"#REF!"}}]
[{"$error":"#REF!"},null,{"$f":"#REF!","v":{"$error":"#REF!"}},{"$f":"#REF!","v":{"$error":"#REF!"}},null,null,{"$f":"#REF!","v":{"$error":"#REF!"}},800001965,"http://www.xbrl.org/scheme/companyName",null,{"$f":"Periodos!$D$4","v":"2016-12-31"},{"$f":"#REF!","v":{"$error":"#REF!"}},{"$f":"#REF!","v":{"$error":"#REF!"}}]
[{"$error":"#REF!"},null,{"$f":"#REF!","v":{"$error":"#REF!"}},{"$f":"#REF!","v":{"$error":"#REF!"}},null,null,{"$f":"#REF!","v":{"$error":"#REF!"}},800001965,"http://www.xbrl.org/scheme/companyName",null,{"$f":"Periodos!$D$4","v":"2016-12-31"},{"$f":"#REF!","v":{"$error":"#REF!"}},{"$f":"#REF!","v":{"$error":"#REF!"}}]
[{"$error":"#REF!"},null,{"$f":"#REF!","v":{"$error":"#REF!"}},{"$f":"#REF!","v":{"$error":"#REF!"}},null,null,{"$f":"#REF!","v":{"$error":"#REF!"}},800001965,"http://www.xbrl.org/scheme/companyName",null,{"$f":"Periodos!$D$4","v":"2016-12-31"},{"$f":"#REF!","v":{"$error":"#REF!"}},{"$f":"#REF!","v":{"$error":"#REF!"}}]
[{"$error":"#REF!"},null,{"$f":"#REF!","v":{"$error":"#REF!"}},{"$f":"#REF!","v":{"$error":"#REF!"}},null,null,{"$f":"#REF!","v":{"$error":"#REF!"}},800001965,"http://www.xbrl.org/scheme/companyName",null,{"$f":"Periodos!$D$4","v":"2016-12-31"},{"$f":"#REF!","v":{"$error":"#REF!"}},{"$f":"#REF!","v":{"$error":"#REF!"}}]
[{"$error":"#REF!"},null,{"$f":"#REF!","v":{"$error":"#REF!"}},{"$f":"#REF!","v":{"$error":"#REF!"}},0,"peso",{"$f":"#REF!","v":{"$error":"#REF!"}},800001965,"http://www.xbrl.org/scheme/companyName",null,{"$f":"Periodos!$D$4","v":"2016-12-31"},{"$f":"#REF!","v":{"$error":"#REF!"}},{"$f":"#REF!","v":{"$error":"#REF!"}}]
["/*",null,"--147--"]
[{"$error":"#REF!"},null,{"$f":"#REF!","v":{"$error":"#REF!"}},{"$f":"#REF!","v":{"$error":"#REF!"}},null,null,{"$f":"#REF!","v":{"$error":"#REF!"}},800001965,"http://www.xbrl.org/scheme/companyName",null,{"$f":"Periodos!$D$4","v":"2016-12-31"},{"$f":"#REF!","v":{"$error":"#REF!"}},{"$f":"#REF!","v":{"$error":"#REF!"}}]
[{"$error":"#REF!"},null,{"$f":"#REF!","v":{"$error":"#REF!"}},{"$f":"#REF!","v":{"$error":"#REF!"}},null,null,{"$f":"#REF!","v":{"$error":"#REF!"}},800001965,"http://www.xbrl.org/scheme/companyName",null,{"$f":"Periodos!$D$4","v":"2016-12-31"},{"$f":"#REF!","v":{"$error":"#REF!"}},{"$f":"#REF!","v":{"$error":"#REF!"}}]
[{"$f":"IF(G5665=\"\",\"/*\",\"\")","v":{"$error":"#REF!"}},null,{"$f":"#REF!","v":{"$error":"#REF!"}},{"$f":"#REF!","v":{"$error":"#REF!"}},null,null,{"$f":"#REF!","v":{"$error":"#REF!"}},800001965,"http://www.xbrl.org/scheme/companyName",null,{"$f":"Periodos!$D$4","v":"2016-12-31"},{"$f":"#REF!","v":{"$error":"#REF!"}},{"$f":"#REF!","v":{"$error":"#REF!"}}]
[{"$error":"#REF!"},null,{"$f":"#REF!","v":{"$error":"#REF!"}},{"$f":"#REF!","v":{"$error":"#REF!"}},null,null,{"$f":"#REF!","v":{"$error":"#REF!"}},800001965,"http://www.xbrl.org/scheme/companyName",null,{"$f":"Periodos!$D$4","v":"2016-12-31"},{"$f":"#REF!","v":{"$error":"#REF!"}},{"$f":"#REF!","v":{"$error":"#REF!"}}]
[{"$error":"#REF!"},null,{"$f":"#REF!","v":{"$error":"#REF!"}},{"$f":"#REF!","v":{"$error":"#REF!"}},null,null,{"$f":"#REF!","v":{"$error":"#REF!"}},800001965,"http://www.xbrl.org/scheme/companyName",null,{"$f":"Periodos!$D$4","v":"2016-12-31"},{"$f":"#REF!","v":{"$error":"#REF!"}},{"$f":"#REF!","v":{"$error":"#REF!"}}]
[{"$error":"#REF!"},null,{"$f":"#REF!","v":{"$error":"#REF!"}},{"$f":"#REF!","v":{"$error":"#REF!"}},null,null,{"$f":"#REF!","v":{"$error":"#REF!"}},800001965,"http://www.xbrl.org/scheme/companyName",null,{"$f":"Periodos!$D$4","v":"2016-12-31"},{"$f":"#REF!","v":{"$error":"#REF!"}},{"$f":"#REF!","v":{"$error":"#REF!"}}]
[{"$error":"#REF!"},null,{"$f":"#REF!","v":{"$error":"#REF!"}},{"$f":"#REF!","v":{"$error":"#REF!"}},null,null,{"$f":"#REF!","v":{"$error":"#REF!"}},800001965,"http://www.xbrl.org/scheme/companyName",null,{"$f":"Periodos!$D$4","v":"2016-12-31"},{"$f":"#REF!","v":{"$error":"#REF!"}},{"$f":"#REF!","v":{"$error":"#REF!"}}]
[{"$error":"#REF!"},null,{"$f":"#REF!","v":{"$error":"#REF!"}},{"$f":"#REF!","v":{"$error":"#REF!"}},null,null,{"$f":"#REF!","v":{"$error":"#REF!"}},800001965,"http://www.xbrl.org/scheme/companyName",null,{"$f":"Periodos!$D$4","v":"2016-12-31"},{"$f":"#REF!","v":{"$error":"#REF!"}},{"$f":"#REF!","v":{"$error":"#REF!"}}]
[{"$error":"#REF!"},null,{"$f":"#REF!","v":{"$error":"#REF!"}},{"$f":"#REF!","v":{"$error":"#REF!"}},null,null,{"$f":"#REF!","v":{"$error":"#REF!"}},800001965,"http://www.xbrl.org/scheme/companyName",null,{"$f":"Periodos!$D$4","v":"2016-12-31"},{"$f":"#REF!","v":{"$error":"#REF!"}},{"$f":"#REF!","v":{"$error":"#REF!"}}]
[{"$error":"#REF!"},null,{"$f":"#REF!","v":{"$error":"#REF!"}},{"$f":"#REF!","v":{"$error":"#REF!"}},null,null,{"$f":"#REF!","v":{"$error":"#REF!"}},800001965,"http://www.xbrl.org/scheme/companyName",null,{"$f":"Periodos!$D$4","v":"2016-12-31"},{"$f":"#REF!","v":{"$error":"#REF!"}},{"$f":"#REF!","v":{"$error":"#REF!"}}]
[{"$error":"#REF!"},null,{"$f":"#REF!","v":{"$error":"#REF!"}},{"$f":"#REF!","v":{"$error":"#REF!"}},null,null,{"$f":"#REF!","v":{"$error":"#REF!"}},800001965,"http://www.xbrl.org/scheme/companyName",null,{"$f":"Periodos!$D$4","v":"2016-12-31"},{"$f":"#REF!","v":{"$error":"#REF!"}},{"$f":"#REF!","v":{"$error":"#REF!"}}]
[{"$error":"#REF!"},null,{"$f":"#REF!","v":{"$error":"#REF!"}},{"$f":"#REF!","v":{"$error":"#REF!"}},0,"peso",{"$f":"#REF!","v":{"$error":"#REF!"}},800001965,"http://www.xbrl.org/scheme/companyName",null,{"$f":"Periodos!$D$4","v":"2016-12-31"},{"$f":"#REF!","v":{"$error":"#REF!"}},{"$f":"#REF!","v":{"$error":"#REF!"}}]
["/*",null,"--148--"]
[{"$error":"#REF!"},null,{"$f":"#REF!","v":{"$error":"#REF!"}},{"$f":"#REF!","v":{"$error":"#REF!"}},null,null,{"$f":"#REF!","v":{"$error":"#REF!"}},800001965,"http://www.xbrl.org/scheme/companyName",null,{"$f":"Periodos!$D$4","v":"2016-12-31"},{"$f":"#REF!","v":{"$error":"#REF!"}},{"$f":"#REF!","v":{"$error":"#REF!"}}]
[{"$error":"#REF!"},null,{"$f":"#REF!","v":{"$error":"#REF!"}},{"$f":"#REF!","v":{"$error":"#REF!"}},null,null,{"$f":"#REF!","v":{"$error":"#REF!"}},800001965,"http://www.xbrl.org/scheme/companyName",null,{"$f":"Periodos!$D$4","v":"2016-12-31"},{"$f":"#REF!","v":{"$error":"#REF!"}},{"$f":"#REF!","v":{"$error":"#REF!"}}]
[{"$error":"#REF!"},null,{"$f":"#REF!","v":{"$error":"#REF!"}},{"$f":"#REF!","v":{"$error":"#REF!"}},null,null,{"$f":"#REF!","v":{"$error":"#REF!"}},800001965,"http://www.xbrl.org/scheme/companyName",null,{"$f":"Periodos!$D$4","v":"2016-12-31"},{"$f":"#REF!","v":{"$error":"#REF!"}},{"$f":"#REF!","v":{"$error":"#REF!"}}]
[{"$error":"#REF!"},null,{"$f":"#REF!","v":{"$error":"#REF!"}},{"$f":"#REF!","v":{"$error":"#REF!"}},null,null,{"$f":"#REF!","v":{"$error":"#REF!"}},800001965,"http://www.xbrl.org/scheme/companyName",null,{"$f":"Periodos!$D$4","v":"2016-12-31"},{"$f":"#REF!","v":{"$error":"#REF!"}},{"$f":"#REF!","v":{"$error":"#REF!"}}]
[{"$error":"#REF!"},null,{"$f":"#REF!","v":{"$error":"#REF!"}},{"$f":"#REF!","v":{"$error":"#REF!"}},null,null,{"$f":"#REF!","v":{"$error":"#REF!"}},800001965,"http://www.xbrl.org/scheme/companyName",null,{"$f":"Periodos!$D$4","v":"2016-12-31"},{"$f":"#REF!","v":{"$error":"#REF!"}},{"$f":"#REF!","v":{"$error":"#REF!"}}]
[{"$error":"#REF!"},null,{"$f":"#REF!","v":{"$error":"#REF!"}},{"$f":"#REF!","v":{"$error":"#REF!"}},null,null,{"$f":"#REF!","v":{"$error":"#REF!"}},800001965,"http://www.xbrl.org/scheme/companyName",null,{"$f":"Periodos!$D$4","v":"2016-12-31"},{"$f":"#REF!","v":{"$error":"#REF!"}},{"$f":"#REF!","v":{"$error":"#REF!"}}]
[{"$error":"#REF!"},null,{"$f":"#REF!","v":{"$error":"#REF!"}},{"$f":"#REF!","v":{"$error":"#REF!"}},null,null,{"$f":"#REF!","v":{"$error":"#REF!"}},800001965,"http://www.xbrl.org/scheme/companyName",null,{"$f":"Periodos!$D$4","v":"2016-12-31"},{"$f":"#REF!","v":{"$error":"#REF!"}},{"$f":"#REF!","v":{"$error":"#REF!"}}]
[{"$error":"#REF!"},null,{"$f":"#REF!","v":{"$error":"#REF!"}},{"$f":"#REF!","v":{"$error":"#REF!"}},null,null,{"$f":"#REF!","v":{"$error":"#REF!"}},800001965,"http://www.xbrl.org/scheme/companyName",null,{"$f":"Periodos!$D$4","v":"2016-12-31"},{"$f":"#REF!","v":{"$error":"#REF!"}},{"$f":"#REF!","v":{"$error":"#REF!"}}]
[{"$error":"#REF!"},null,{"$f":"#REF!","v":{"$error":"#REF!"}},{"$f":"#REF!","v":{"$error":"#REF!"}},null,null,{"$f":"#REF!","v":{"$error":"#REF!"}},800001965,"http://www.xbrl.org/scheme/companyName",null,{"$f":"Periodos!$D$4","v":"2016-12-31"},{"$f":"#REF!","v":{"$error":"#REF!"}},{"$f":"#REF!","v":{"$error":"#REF!"}}]
[{"$error":"#REF!"},null,{"$f":"#REF!","v":{"$error":"#REF!"}},{"$f":"#REF!","v":{"$error":"#REF!"}},null,null,{"$f":"#REF!","v":{"$error":"#REF!"}},800001965,"http://www.xbrl.org/scheme/companyName",null,{"$f":"Periodos!$D$4","v":"2016-12-31"},{"$f":"#REF!","v":{"$error":"#REF!"}},{"$f":"#REF!","v":{"$error":"#REF!"}}]
[{"$error":"#REF!"},null,{"$f":"#REF!","v":{"$error":"#REF!"}},{"$f":"#REF!","v":{"$error":"#REF!"}},null,null,{"$f":"#REF!","v":{"$error":"#REF!"}},800001965,"http://www.xbrl.org/scheme/companyName",null,{"$f":"Periodos!$D$4","v":"2016-12-31"},{"$f":"#REF!","v":{"$error":"#REF!"}},{"$f":"#REF!","v":{"$error":"#REF!"}}]
[{"$error":"#REF!"},null,{"$f":"#REF!","v":{"$error":"#REF!"}},{"$f":"#REF!","v":{"$error":"#REF!"}},0,"peso",{"$f":"#REF!","v":{"$error":"#REF!"}},800001965,"http://www.xbrl.org/scheme/companyName",null,{"$f":"Periodos!$D$4","v":"2016-12-31"},{"$f":"#REF!","v":{"$error":"#REF!"}},{"$f":"#REF!","v":{"$error":"#REF!"}}]
["/*",null,"--149--"]
[{"$error":"#REF!"},null,{"$f":"#REF!","v":{"$error":"#REF!"}},{"$f":"#REF!","v":{"$error":"#REF!"}},null,null,{"$f":"#REF!","v":{"$error":"#REF!"}},800001965,"http://www.xbrl.org/scheme/companyName",null,{"$f":"Periodos!$D$4","v":"2016-12-31"},{"$f":"#REF!","v":{"$error":"#REF!"}},{"$f":"#REF!","v":{"$error":"#REF!"}}]
[{"$error":"#REF!"},null,{"$f":"#REF!","v":{"$error":"#REF!"}},{"$f":"#REF!","v":{"$error":"#REF!"}},null,null,{"$f":"#REF!","v":{"$error":"#REF!"}},800001965,"http://www.xbrl.org/scheme/companyName",null,{"$f":"Periodos!$D$4","v":"2016-12-31"},{"$f":"#REF!","v":{"$error":"#REF!"}},{"$f":"#REF!","v":{"$error":"#REF!"}}]
[{"$error":"#REF!"},null,{"$f":"#REF!","v":{"$error":"#REF!"}},{"$f":"#REF!","v":{"$error":"#REF!"}},null,null,{"$f":"#REF!","v":{"$error":"#REF!"}},800001965,"http://www.xbrl.org/scheme/companyName",null,{"$f":"Periodos!$D$4","v":"2016-12-31"},{"$f":"#REF!","v":{"$error":"#REF!"}},{"$f":"#REF!","v":{"$error":"#REF!"}}]
[{"$error":"#REF!"},null,{"$f":"#REF!","v":{"$error":"#REF!"}},{"$f":"#REF!","v":{"$error":"#REF!"}},null,null,{"$f":"#REF!","v":{"$error":"#REF!"}},800001965,"http://www.xbrl.org/scheme/companyName",null,{"$f":"Periodos!$D$4","v":"2016-12-31"},{"$f":"#REF!","v":{"$error":"#REF!"}},{"$f":"#REF!","v":{"$error":"#REF!"}}]
[{"$error":"#REF!"},null,{"$f":"#REF!","v":{"$error":"#REF!"}},{"$f":"#REF!","v":{"$error":"#REF!"}},null,null,{"$f":"#REF!","v":{"$error":"#REF!"}},800001965,"http://www.xbrl.org/scheme/companyName",null,{"$f":"Periodos!$D$4","v":"2016-12-31"},{"$f":"#REF!","v":{"$error":"#REF!"}},{"$f":"#REF!","v":{"$error":"#REF!"}}]
[{"$error":"#REF!"},null,{"$f":"#REF!","v":{"$error":"#REF!"}},{"$f":"#REF!","v":{"$error":"#REF!"}},null,null,{"$f":"#REF!","v":{"$error":"#REF!"}},800001965,"http://www.xbrl.org/scheme/companyName",null,{"$f":"Periodos!$D$4","v":"2016-12-31"},{"$f":"#REF!","v":{"$error":"#REF!"}},{"$f":"#REF!","v":{"$error":"#REF!"}}]
[{"$error":"#REF!"},null,{"$f":"#REF!","v":{"$error":"#REF!"}},{"$f":"#REF!","v":{"$error":"#REF!"}},null,null,{"$f":"#REF!","v":{"$error":"#REF!"}},800001965,"http://www.xbrl.org/scheme/companyName",null,{"$f":"Periodos!$D$4","v":"2016-12-31"},{"$f":"#REF!","v":{"$error":"#REF!"}},{"$f":"#REF!","v":{"$error":"#REF!"}}]
[{"$error":"#REF!"},null,{"$f":"#REF!","v":{"$error":"#REF!"}},{"$f":"#REF!","v":{"$error":"#REF!"}},null,null,{"$f":"#REF!","v":{"$error":"#REF!"}},800001965,"http://www.xbrl.org/scheme/companyName",null,{"$f":"Periodos!$D$4","v":"2016-12-31"},{"$f":"#REF!","v":{"$error":"#REF!"}},{"$f":"#REF!","v":{"$error":"#REF!"}}]
[{"$error":"#REF!"},null,{"$f":"#REF!","v":{"$error":"#REF!"}},{"$f":"#REF!","v":{"$error":"#REF!"}},null,null,{"$f":"#REF!","v":{"$error":"#REF!"}},800001965,"http://www.xbrl.org/scheme/companyName",null,{"$f":"Periodos!$D$4","v":"2016-12-31"},{"$f":"#REF!","v":{"$error":"#REF!"}},{"$f":"#REF!","v":{"$error":"#REF!"}}]
[{"$error":"#REF!"},null,{"$f":"#REF!","v":{"$error":"#REF!"}},{"$f":"#REF!","v":{"$error":"#REF!"}},null,null,{"$f":"#REF!","v":{"$error":"#REF!"}},800001965,"http://www.xbrl.org/scheme/companyName",null,{"$f":"Periodos!$D$4","v":"2016-12-31"},{"$f":"#REF!","v":{"$error":"#REF!"}},{"$f":"#REF!","v":{"$error":"#REF!"}}]
[{"$error":"#REF!"},null,{"$f":"#REF!","v":{"$error":"#REF!"}},{"$f":"#REF!","v":{"$error":"#REF!"}},null,null,{"$f":"#REF!","v":{"$error":"#REF!"}},800001965,"http://www.xbrl.org/scheme/companyName",null,{"$f":"Periodos!$D$4","v":"2016-12-31"},{"$f":"#REF!","v":{"$error":"#REF!"}},{"$f":"#REF!","v":{"$error":"#REF!"}}]
[{"$error":"#REF!"},null,{"$f":"#REF!","v":{"$error":"#REF!"}},{"$f":"#REF!","v":{"$error":"#REF!"}},0,"peso",{"$f":"#REF!","v":{"$error":"#REF!"}},800001965,"http://www.xbrl.org/scheme/companyName",null,{"$f":"Periodos!$D$4","v":"2016-12-31"},{"$f":"#REF!","v":{"$error":"#REF!"}},{"$f":"#REF!","v":{"$error":"#REF!"}}]
["/*",null,"--150--"]
[{"$error":"#REF!"},null,{"$f":"#REF!","v":{"$error":"#REF!"}},{"$f":"#REF!","v":{"$error":"#REF!"}},null,null,{"$f":"#REF!","v":{"$error":"#REF!"}},800001965,"http://www.xbrl.org/scheme/companyName",null,{"$f":"Periodos!$D$4","v":"2016-12-31"},{"$f":"#REF!","v":{"$error":"#REF!"}},{"$f":"#REF!","v":{"$error":"#REF!"}}]
[{"$error":"#REF!"},null,{"$f":"#REF!","v":{"$error":"#REF!"}},{"$f":"#REF!","v":{"$error":"#REF!"}},null,null,{"$f":"#REF!","v":{"$error":"#REF!"}},800001965,"http://www.xbrl.org/scheme/companyName",null,{"$f":"Periodos!$D$4","v":"2016-12-31"},{"$f":"#REF!","v":{"$error":"#REF!"}},{"$f":"#REF!","v":{"$error":"#REF!"}}]
[{"$error":"#REF!"},null,{"$f":"#REF!","v":{"$error":"#REF!"}},{"$f":"#REF!","v":{"$error":"#REF!"}},null,null,{"$f":"#REF!","v":{"$error":"#REF!"}},800001965,"http://www.xbrl.org/scheme/companyName",null,{"$f":"Periodos!$D$4","v":"2016-12-31"},{"$f":"#REF!","v":{"$error":"#REF!"}},{"$f":"#REF!","v":{"$error":"#REF!"}}]
[{"$error":"#REF!"},null,{"$f":"#REF!","v":{"$error":"#REF!"}},{"$f":"#REF!","v":{"$error":"#REF!"}},null,null,{"$f":"#REF!","v":{"$error":"#REF!"}},800001965,"http://www.xbrl.org/scheme/companyName",null,{"$f":"Periodos!$D$4","v":"2016-12-31"},{"$f":"#REF!","v":{"$error":"#REF!"}},{"$f":"#REF!","v":{"$error":"#REF!"}}]
[{"$error":"#REF!"},null,{"$f":"#REF!","v":{"$error":"#REF!"}},{"$f":"#REF!","v":{"$error":"#REF!"}},null,null,{"$f":"#REF!","v":{"$error":"#REF!"}},800001965,"http://www.xbrl.org/scheme/companyName",null,{"$f":"Periodos!$D$4","v":"2016-12-31"},{"$f":"#REF!","v":{"$error":"#REF!"}},{"$f":"#REF!","v":{"$error":"#REF!"}}]
[{"$error":"#REF!"},null,{"$f":"#REF!","v":{"$error":"#REF!"}},{"$f":"#REF!","v":{"$error":"#REF!"}},null,null,{"$f":"#REF!","v":{"$error":"#REF!"}},800001965,"http://www.xbrl.org/scheme/companyName",null,{"$f":"Periodos!$D$4","v":"2016-12-31"},{"$f":"#REF!","v":{"$error":"#REF!"}},{"$f":"#REF!","v":{"$error":"#REF!"}}]
[{"$error":"#REF!"},null,{"$f":"#REF!","v":{"$error":"#REF!"}},{"$f":"#REF!","v":{"$error":"#REF!"}},null,null,{"$f":"#REF!","v":{"$error":"#REF!"}},800001965,"http://www.xbrl.org/scheme/companyName",null,{"$f":"Periodos!$D$4","v":"2016-12-31"},{"$f":"#REF!","v":{"$error":"#REF!"}},{"$f":"#REF!","v":{"$error":"#REF!"}}]
[{"$error":"#REF!"},null,{"$f":"#REF!","v":{"$error":"#REF!"}},{"$f":"#REF!","v":{"$error":"#REF!"}},null,null,{"$f":"#REF!","v":{"$error":"#REF!"}},800001965,"http://www.xbrl.org/scheme/companyName",null,{"$f":"Periodos!$D$4","v":"2016-12-31"},{"$f":"#REF!","v":{"$error":"#REF!"}},{"$f":"#REF!","v":{"$error":"#REF!"}}]
[{"$error":"#REF!"},null,{"$f":"#REF!","v":{"$error":"#REF!"}},{"$f":"#REF!","v":{"$error":"#REF!"}},null,null,{"$f":"#REF!","v":{"$error":"#REF!"}},800001965,"http://www.xbrl.org/scheme/companyName",null,{"$f":"Periodos!$D$4","v":"2016-12-31"},{"$f":"#REF!","v":{"$error":"#REF!"}},{"$f":"#REF!","v":{"$error":"#REF!"}}]
[{"$error":"#REF!"},null,{"$f":"#REF!","v":{"$error":"#REF!"}},{"$f":"#REF!","v":{"$error":"#REF!"}},null,null,{"$f":"#REF!","v":{"$error":"#REF!"}},800001965,"http://www.xbrl.org/scheme/companyName",null,{"$f":"Periodos!$D$4","v":"2016-12-31"},{"$f":"#REF!","v":{"$error":"#REF!"}},{"$f":"#REF!","v":{"$error":"#REF!"}}]
[{"$error":"#REF!"},null,{"$f":"#REF!","v":{"$error":"#REF!"}},{"$f":"#REF!","v":{"$error":"#REF!"}},null,null,{"$f":"#REF!","v":{"$error":"#REF!"}},800001965,"http://www.xbrl.org/scheme/companyName",null,{"$f":"Periodos!$D$4","v":"2016-12-31"},{"$f":"#REF!","v":{"$error":"#REF!"}},{"$f":"#REF!","v":{"$error":"#REF!"}}]
[{"$error":"#REF!"},null,{"$f":"#REF!","v":{"$error":"#REF!"}},{"$f":"#REF!","v":{"$error":"#REF!"}},0,"peso",{"$f":"#REF!","v":{"$error":"#REF!"}},800001965,"http://www.xbrl.org/scheme/companyName",null,{"$f":"Periodos!$D$4","v":"2016-12-31"},{"$f":"#REF!","v":{"$error":"#REF!"}},{"$f":"#REF!","v":{"$error":"#REF!"}}]
["/*",null,"--151--"]
[{"$error":"#REF!"},null,{"$f":"#REF!","v":{"$error":"#REF!"}},{"$f":"#REF!","v":{"$error":"#REF!"}},null,null,{"$f":"#REF!","v":{"$error":"#REF!"}},800001965,"http://www.xbrl.org/scheme/companyName",null,{"$f":"Periodos!$D$4","v":"2016-12-31"},{"$f":"#REF!","v":{"$error":"#REF!"}},{"$f":"#REF!","v":{"$error":"#REF!"}}]
[{"$error":"#REF!"},null,{"$f":"#REF!","v":{"$error":"#REF!"}},{"$f":"#REF!","v":{"$error":"#REF!"}},null,null,{"$f":"#REF!","v":{"$error":"#REF!"}},800001965,"http://www.xbrl.org/scheme/companyName",null,{"$f":"Periodos!$D$4","v":"2016-12-31"},{"$f":"#REF!","v":{"$error":"#REF!"}},{"$f":"#REF!","v":{"$error":"#REF!"}}]
[{"$error":"#REF!"},null,{"$f":"#REF!","v":{"$error":"#REF!"}},{"$f":"#REF!","v":{"$error":"#REF!"}},null,null,{"$f":"#REF!","v":{"$error":"#REF!"}},800001965,"http://www.xbrl.org/scheme/companyName",null,{"$f":"Periodos!$D$4","v":"2016-12-31"},{"$f":"#REF!","v":{"$error":"#REF!"}},{"$f":"#REF!","v":{"$error":"#REF!"}}]
[{"$error":"#REF!"},null,{"$f":"#REF!","v":{"$error":"#REF!"}},{"$f":"#REF!","v":{"$error":"#REF!"}},null,null,{"$f":"#REF!","v":{"$error":"#REF!"}},800001965,"http://www.xbrl.org/scheme/companyName",null,{"$f":"Periodos!$D$4","v":"2016-12-31"},{"$f":"#REF!","v":{"$error":"#REF!"}},{"$f":"#REF!","v":{"$error":"#REF!"}}]
[{"$error":"#REF!"},null,{"$f":"#REF!","v":{"$error":"#REF!"}},{"$f":"#REF!","v":{"$error":"#REF!"}},null,null,{"$f":"#REF!","v":{"$error":"#REF!"}},800001965,"http://www.xbrl.org/scheme/companyName",null,{"$f":"Periodos!$D$4","v":"2016-12-31"},{"$f":"#REF!","v":{"$error":"#REF!"}},{"$f":"#REF!","v":{"$error":"#REF!"}}]
[{"$error":"#REF!"},null,{"$f":"#REF!","v":{"$error":"#REF!"}},{"$f":"#REF!","v":{"$error":"#REF!"}},null,null,{"$f":"#REF!","v":{"$error":"#REF!"}},800001965,"http://www.xbrl.org/scheme/companyName",null,{"$f":"Periodos!$D$4","v":"2016-12-31"},{"$f":"#REF!","v":{"$error":"#REF!"}},{"$f":"#REF!","v":{"$error":"#REF!"}}]
[{"$error":"#REF!"},null,{"$f":"#REF!","v":{"$error":"#REF!"}},{"$f":"#REF!","v":{"$error":"#REF!"}},null,null,{"$f":"#REF!","v":{"$error":"#REF!"}},800001965,"http://www.xbrl.org/scheme/companyName",null,{"$f":"Periodos!$D$4","v":"2016-12-31"},{"$f":"#REF!","v":{"$error":"#REF!"}},{"$f":"#REF!","v":{"$error":"#REF!"}}]
[{"$error":"#REF!"},null,{"$f":"#REF!","v":{"$error":"#REF!"}},{"$f":"#REF!","v":{"$error":"#REF!"}},null,null,{"$f":"#REF!","v":{"$error":"#REF!"}},800001965,"http://www.xbrl.org/scheme/companyName",null,{"$f":"Periodos!$D$4","v":"2016-12-31"},{"$f":"#REF!","v":{"$error":"#REF!"}},{"$f":"#REF!","v":{"$error":"#REF!"}}]
[{"$error":"#REF!"},null,{"$f":"#REF!","v":{"$error":"#REF!"}},{"$f":"#REF!","v":{"$error":"#REF!"}},null,null,{"$f":"#REF!","v":{"$error":"#REF!"}},800001965,"http://www.xbrl.org/scheme/companyName",null,{"$f":"Periodos!$D$4","v":"2016-12-31"},{"$f":"#REF!","v":{"$error":"#REF!"}},{"$f":"#REF!","v":{"$error":"#REF!"}}]
[{"$error":"#REF!"},null,{"$f":"#REF!","v":{"$error":"#REF!"}},{"$f":"#REF!","v":{"$error":"#REF!"}},null,null,{"$f":"#REF!","v":{"$error":"#REF!"}},800001965,"http://www.xbrl.org/scheme/companyName",null,{"$f":"Periodos!$D$4","v":"2016-12-31"},{"$f":"#REF!","v":{"$error":"#REF!"}},{"$f":"#REF!","v":{"$error":"#REF!"}}]
[{"$error":"#REF!"},null,{"$f":"#REF!","v":{"$error":"#REF!"}},{"$f":"#REF!","v":{"$error":"#REF!"}},null,null,{"$f":"#REF!","v":{"$error":"#REF!"}},800001965,"http://www.xbrl.org/scheme/companyName",null,{"$f":"Periodos!$D$4","v":"2016-12-31"},{"$f":"#REF!","v":{"$error":"#REF!"}},{"$f":"#REF!","v":{"$error":"#REF!"}}]
[{"$error":"#REF!"},null,{"$f":"#REF!","v":{"$error":"#REF!"}},{"$f":"#REF!","v":{"$error":"#REF!"}},0,"peso",{"$f":"#REF!","v":{"$error":"#REF!"}},800001965,"http://www.xbrl.org/scheme/companyName",null,{"$f":"Periodos!$D$4","v":"2016-12-31"},{"$f":"#REF!","v":{"$error":"#REF!"}},{"$f":"#REF!","v":{"$error":"#REF!"}}]
["/*",null,"--152--"]
[{"$error":"#REF!"},null,{"$f":"#REF!","v":{"$error":"#REF!"}},{"$f":"#REF!","v":{"$error":"#REF!"}},null,null,{"$f":"#REF!","v":{"$error":"#REF!"}},800001965,"http://www.xbrl.org/scheme/companyName",null,{"$f":"Periodos!$D$4","v":"2016-12-31"},{"$f":"#REF!","v":{"$error":"#REF!"}},{"$f":"#REF!","v":{"$error":"#REF!"}}]
[{"$f":"IF(G5729=\"\",\"/*\",\"\")","v":{"$error":"#REF!"}},null,{"$f":"#REF!","v":{"$error":"#REF!"}},{"$f":"#REF!","v":{"$error":"#REF!"}},null,null,{"$f":"#REF!","v":{"$error":"#REF!"}},800001965,"http://www.xbrl.org/scheme/companyName",null,{"$f":"Periodos!$D$4","v":"2016-12-31"},{"$f":"#REF!","v":{"$error":"#REF!"}},{"$f":"#REF!","v":{"$error":"#REF!"}}]
[{"$error":"#REF!"},null,{"$f":"#REF!","v":{"$error":"#REF!"}},{"$f":"#REF!","v":{"$error":"#REF!"}},null,null,{"$f":"#REF!","v":{"$error":"#REF!"}},800001965,"http://www.xbrl.org/scheme/companyName",null,{"$f":"Periodos!$D$4","v":"2016-12-31"},{"$f":"#REF!","v":{"$error":"#REF!"}},{"$f":"#REF!","v":{"$error":"#REF!"}}]
[{"$error":"#REF!"},null,{"$f":"#REF!","v":{"$error":"#REF!"}},{"$f":"#REF!","v":{"$error":"#REF!"}},null,null,{"$f":"#REF!","v":{"$error":"#REF!"}},800001965,"http://www.xbrl.org/scheme/companyName",null,{"$f":"Periodos!$D$4","v":"2016-12-31"},{"$f":"#REF!","v":{"$error":"#REF!"}},{"$f":"#REF!","v":{"$error":"#REF!"}}]
[{"$error":"#REF!"},null,{"$f":"#REF!","v":{"$error":"#REF!"}},{"$f":"#REF!","v":{"$error":"#REF!"}},null,null,{"$f":"#REF!","v":{"$error":"#REF!"}},800001965,"http://www.xbrl.org/scheme/companyName",null,{"$f":"Periodos!$D$4","v":"2016-12-31"},{"$f":"#REF!","v":{"$error":"#REF!"}},{"$f":"#REF!","v":{"$error":"#REF!"}}]
[{"$error":"#REF!"},null,{"$f":"#REF!","v":{"$error":"#REF!"}},{"$f":"#REF!","v":{"$error":"#REF!"}},null,null,{"$f":"#REF!","v":{"$error":"#REF!"}},800001965,"http://www.xbrl.org/scheme/companyName",null,{"$f":"Periodos!$D$4","v":"2016-12-31"},{"$f":"#REF!","v":{"$error":"#REF!"}},{"$f":"#REF!","v":{"$error":"#REF!"}}]
[{"$error":"#REF!"},null,{"$f":"#REF!","v":{"$error":"#REF!"}},{"$f":"#REF!","v":{"$error":"#REF!"}},null,null,{"$f":"#REF!","v":{"$error":"#REF!"}},800001965,"http://www.xbrl.org/scheme/companyName",null,{"$f":"Periodos!$D$4","v":"2016-12-31"},{"$f":"#REF!","v":{"$error":"#REF!"}},{"$f":"#REF!","v":{"$error":"#REF!"}}]
[{"$error":"#REF!"},null,{"$f":"#REF!","v":{"$error":"#REF!"}},{"$f":"#REF!","v":{"$error":"#REF!"}},null,null,{"$f":"#REF!","v":{"$error":"#REF!"}},800001965,"http://www.xbrl.org/scheme/companyName",null,{"$f":"Periodos!$D$4","v":"2016-12-31"},{"$f":"#REF!","v":{"$error":"#REF!"}},{"$f":"#REF!","v":{"$error":"#REF!"}}]
[{"$error":"#REF!"},null,{"$f":"#REF!","v":{"$error":"#REF!"}},{"$f":"#REF!","v":{"$error":"#REF!"}},null,null,{"$f":"#REF!","v":{"$error":"#REF!"}},800001965,"http://www.xbrl.org/scheme/companyName",null,{"$f":"Periodos!$D$4","v":"2016-12-31"},{"$f":"#REF!","v":{"$error":"#REF!"}},{"$f":"#REF!","v":{"$error":"#REF!"}}]
[{"$error":"#REF!"},null,{"$f":"#REF!","v":{"$error":"#REF!"}},{"$f":"#REF!","v":{"$error":"#REF!"}},null,null,{"$f":"#REF!","v":{"$error":"#REF!"}},800001965,"http://www.xbrl.org/scheme/companyName",null,{"$f":"Periodos!$D$4","v":"2016-12-31"},{"$f":"#REF!","v":{"$error":"#REF!"}},{"$f":"#REF!","v":{"$error":"#REF!"}}]
[{"$error":"#REF!"},null,{"$f":"#REF!","v":{"$error":"#REF!"}},{"$f":"#REF!","v":{"$error":"#REF!"}},null,null,{"$f":"#REF!","v":{"$error":"#REF!"}},800001965,"http://www.xbrl.org/scheme/companyName",null,{"$f":"Periodos!$D$4","v":"2016-12-31"},{"$f":"#REF!","v":{"$error":"#REF!"}},{"$f":"#REF!","v":{"$error":"#REF!"}}]
[{"$error":"#REF!"},null,{"$f":"#REF!","v":{"$error":"#REF!"}},{"$f":"#REF!","v":{"$error":"#REF!"}},0,"peso",{"$f":"#REF!","v":{"$error":"#REF!"}},800001965,"http://www.xbrl.org/scheme/companyName",null,{"$f":"Periodos!$D$4","v":"2016-12-31"},{"$f":"#REF!","v":{"$error":"#REF!"}},{"$f":"#REF!","v":{"$error":"#REF!"}}]
["/*",null,"--153--"]
[{"$error":"#REF!"},null,{"$f":"#REF!","v":{"$error":"#REF!"}},{"$f":"#REF!","v":{"$error":"#REF!"}},null,null,{"$f":"#REF!","v":{"$error":"#REF!"}},800001965,"http://www.xbrl.org/scheme/companyName",null,{"$f":"Periodos!$D$4","v":"2016-12-31"},{"$f":"#REF!","v":{"$error":"#REF!"}},{"$f":"#REF!","v":{"$error":"#REF!"}}]
[{"$error":"#REF!"},null,{"$f":"#REF!","v":{"$error":"#REF!"}},{"$f":"#REF!","v":{"$error":"#REF!"}},null,null,{"$f":"#REF!","v":{"$error":"#REF!"}},800001965,"http://www.xbrl.org/scheme/companyName",null,{"$f":"Periodos!$D$4","v":"2016-12-31"},{"$f":"#REF!","v":{"$error":"#REF!"}},{"$f":"#REF!","v":{"$error":"#REF!"}}]
[{"$error":"#REF!"},null,{"$f":"#REF!","v":{"$error":"#REF!"}},{"$f":"#REF!","v":{"$error":"#REF!"}},null,null,{"$f":"#REF!","v":{"$error":"#REF!"}},800001965,"http://www.xbrl.org/scheme/companyName",null,{"$f":"Periodos!$D$4","v":"2016-12-31"},{"$f":"#REF!","v":{"$error":"#REF!"}},{"$f":"#REF!","v":{"$error":"#REF!"}}]
[{"$error":"#REF!"},null,{"$f":"#REF!","v":{"$error":"#REF!"}},{"$f":"#REF!","v":{"$error":"#REF!"}},null,null,{"$f":"#REF!","v":{"$error":"#REF!"}},800001965,"http://www.xbrl.org/scheme/companyName",null,{"$f":"Periodos!$D$4","v":"2016-12-31"},{"$f":"#REF!","v":{"$error":"#REF!"}},{"$f":"#REF!","v":{"$error":"#REF!"}}]
[{"$error":"#REF!"},null,{"$f":"#REF!","v":{"$error":"#REF!"}},{"$f":"#REF!","v":{"$error":"#REF!"}},null,null,{"$f":"#REF!","v":{"$error":"#REF!"}},800001965,"http://www.xbrl.org/scheme/companyName",null,{"$f":"Periodos!$D$4","v":"2016-12-31"},{"$f":"#REF!","v":{"$error":"#REF!"}},{"$f":"#REF!","v":{"$error":"#REF!"}}]
[{"$error":"#REF!"},null,{"$f":"#REF!","v":{"$error":"#REF!"}},{"$f":"#REF!","v":{"$error":"#REF!"}},null,null,{"$f":"#REF!","v":{"$error":"#REF!"}},800001965,"http://www.xbrl.org/scheme/companyName",null,{"$f":"Periodos!$D$4","v":"2016-12-31"},{"$f":"#REF!","v":{"$error":"#REF!"}},{"$f":"#REF!","v":{"$error":"#REF!"}}]
[{"$error":"#REF!"},null,{"$f":"#REF!","v":{"$error":"#REF!"}},{"$f":"#REF!","v":{"$error":"#REF!"}},null,null,{"$f":"#REF!","v":{"$error":"#REF!"}},800001965,"http://www.xbrl.org/scheme/companyName",null,{"$f":"Periodos!$D$4","v":"2016-12-31"},{"$f":"#REF!","v":{"$error":"#REF!"}},{"$f":"#REF!","v":{"$error":"#REF!"}}]
[{"$error":"#REF!"},null,{"$f":"#REF!","v":{"$error":"#REF!"}},{"$f":"#REF!","v":{"$error":"#REF!"}},null,null,{"$f":"#REF!","v":{"$error":"#REF!"}},800001965,"http://www.xbrl.org/scheme/companyName",null,{"$f":"Periodos!$D$4","v":"2016-12-31"},{"$f":"#REF!","v":{"$error":"#REF!"}},{"$f":"#REF!","v":{"$error":"#REF!"}}]
[{"$error":"#REF!"},null,{"$f":"#REF!","v":{"$error":"#REF!"}},{"$f":"#REF!","v":{"$error":"#REF!"}},null,null,{"$f":"#REF!","v":{"$error":"#REF!"}},800001965,"http://www.xbrl.org/scheme/companyName",null,{"$f":"Periodos!$D$4","v":"2016-12-31"},{"$f":"#REF!","v":{"$error":"#REF!"}},{"$f":"#REF!","v":{"$error":"#REF!"}}]
[{"$error":"#REF!"},null,{"$f":"#REF!","v":{"$error":"#REF!"}},{"$f":"#REF!","v":{"$error":"#REF!"}},null,null,{"$f":"#REF!","v":{"$error":"#REF!"}},800001965,"http://www.xbrl.org/scheme/companyName",null,{"$f":"Periodos!$D$4","v":"2016-12-31"},{"$f":"#REF!","v":{"$error":"#REF!"}},{"$f":"#REF!","v":{"$error":"#REF!"}}]
[{"$error":"#REF!"},null,{"$f":"#REF!","v":{"$error":"#REF!"}},{"$f":"#REF!","v":{"$error":"#REF!"}},null,null,{"$f":"#REF!","v":{"$error":"#REF!"}},800001965,"http://www.xbrl.org/scheme/companyName",null,{"$f":"Periodos!$D$4","v":"2016-12-31"},{"$f":"#REF!","v":{"$error":"#REF!"}},{"$f":"#REF!","v":{"$error":"#REF!"}}]
[{"$error":"#REF!"},null,{"$f":"#REF!","v":{"$error":"#REF!"}},{"$f":"#REF!","v":{"$error":"#REF!"}},0,"peso",{"$f":"#REF!","v":{"$error":"#REF!"}},800001965,"http://www.xbrl.org/scheme/companyName",null,{"$f":"Periodos!$D$4","v":"2016-12-31"},{"$f":"#REF!","v":{"$error":"#REF!"}},{"$f":"#REF!","v":{"$error":"#REF!"}}]
["/*",null,"--154--"]
[{"$error":"#REF!"},null,{"$f":"#REF!","v":{"$error":"#REF!"}},{"$f":"#REF!","v":{"$error":"#REF!"}},null,null,{"$f":"#REF!","v":{"$error":"#REF!"}},800001965,"http://www.xbrl.org/scheme/companyName",null,{"$f":"Periodos!$D$4","v":"2016-12-31"},{"$f":"#REF!","v":{"$error":"#REF!"}},{"$f":"#REF!","v":{"$error":"#REF!"}}]
[{"$error":"#REF!"},null,{"$f":"#REF!","v":{"$error":"#REF!"}},{"$f":"#REF!","v":{"$error":"#REF!"}},null,null,{"$f":"#REF!","v":{"$error":"#REF!"}},800001965,"http://www.xbrl.org/scheme/companyName",null,{"$f":"Periodos!$D$4","v":"2016-12-31"},{"$f":"#REF!","v":{"$error":"#REF!"}},{"$f":"#REF!","v":{"$error":"#REF!"}}]
[{"$error":"#REF!"},null,{"$f":"#REF!","v":{"$error":"#REF!"}},{"$f":"#REF!","v":{"$error":"#REF!"}},null,null,{"$f":"#REF!","v":{"$error":"#REF!"}},800001965,"http://www.xbrl.org/scheme/companyName",null,{"$f":"Periodos!$D$4","v":"2016-12-31"},{"$f":"#REF!","v":{"$error":"#REF!"}},{"$f":"#REF!","v":{"$error":"#REF!"}}]
[{"$error":"#REF!"},null,{"$f":"#REF!","v":{"$error":"#REF!"}},{"$f":"#REF!","v":{"$error":"#REF!"}},null,null,{"$f":"#REF!","v":{"$error":"#REF!"}},800001965,"http://www.xbrl.org/scheme/companyName",null,{"$f":"Periodos!$D$4","v":"2016-12-31"},{"$f":"#REF!","v":{"$error":"#REF!"}},{"$f":"#REF!","v":{"$error":"#REF!"}}]
[{"$error":"#REF!"},null,{"$f":"#REF!","v":{"$error":"#REF!"}},{"$f":"#REF!","v":{"$error":"#REF!"}},null,null,{"$f":"#REF!","v":{"$error":"#REF!"}},800001965,"http://www.xbrl.org/scheme/companyName",null,{"$f":"Periodos!$D$4","v":"2016-12-31"},{"$f":"#REF!","v":{"$error":"#REF!"}},{"$f":"#REF!","v":{"$error":"#REF!"}}]
[{"$error":"#REF!"},null,{"$f":"#REF!","v":{"$error":"#REF!"}},{"$f":"#REF!","v":{"$error":"#REF!"}},null,null,{"$f":"#REF!","v":{"$error":"#REF!"}},800001965,"http://www.xbrl.org/scheme/companyName",null,{"$f":"Periodos!$D$4","v":"2016-12-31"},{"$f":"#REF!","v":{"$error":"#REF!"}},{"$f":"#REF!","v":{"$error":"#REF!"}}]
[{"$error":"#REF!"},null,{"$f":"#REF!","v":{"$error":"#REF!"}},{"$f":"#REF!","v":{"$error":"#REF!"}},null,null,{"$f":"#REF!","v":{"$error":"#REF!"}},800001965,"http://www.xbrl.org/scheme/companyName",null,{"$f":"Periodos!$D$4","v":"2016-12-31"},{"$f":"#REF!","v":{"$error":"#REF!"}},{"$f":"#REF!","v":{"$error":"#REF!"}}]
[{"$error":"#REF!"},null,{"$f":"#REF!","v":{"$error":"#REF!"}},{"$f":"#REF!","v":{"$error":"#REF!"}},null,null,{"$f":"#REF!","v":{"$error":"#REF!"}},800001965,"http://www.xbrl.org/scheme/companyName",null,{"$f":"Periodos!$D$4","v":"2016-12-31"},{"$f":"#REF!","v":{"$error":"#REF!"}},{"$f":"#REF!","v":{"$error":"#REF!"}}]
[{"$error":"#REF!"},null,{"$f":"#REF!","v":{"$error":"#REF!"}},{"$f":"#REF!","v":{"$error":"#REF!"}},null,null,{"$f":"#REF!","v":{"$error":"#REF!"}},800001965,"http://www.xbrl.org/scheme/companyName",null,{"$f":"Periodos!$D$4","v":"2016-12-31"},{"$f":"#REF!","v":{"$error":"#REF!"}},{"$f":"#REF!","v":{"$error":"#REF!"}}]
[{"$error":"#REF!"},null,{"$f":"#REF!","v":{"$error":"#REF!"}},{"$f":"#REF!","v":{"$error":"#REF!"}},null,null,{"$f":"#REF!","v":{"$error":"#REF!"}},800001965,"http://www.xbrl.org/scheme/companyName",null,{"$f":"Periodos!$D$4","v":"2016-12-31"},{"$f":"#REF!","v":{"$error":"#REF!"}},{"$f":"#REF!","v":{"$error":"#REF!"}}]
[{"$error":"#REF!"},null,{"$f":"#REF!","v":{"$error":"#REF!"}},{"$f":"#REF!","v":{"$error":"#REF!"}},null,null,{"$f":"#REF!","v":{"$error":"#REF!"}},800001965,"http://www.xbrl.org/scheme/companyName",null,{"$f":"Periodos!$D$4","v":"2016-12-31"},{"$f":"#REF!","v":{"$error":"#REF!"}},{"$f":"#REF!","v":{"$error":"#REF!"}}]
[{"$error":"#REF!"},null,{"$f":"#REF!","v":{"$error":"#REF!"}},{"$f":"#REF!","v":{"$error":"#REF!"}},0,"peso",{"$f":"#REF!","v":{"$error":"#REF!"}},800001965,"http://www.xbrl.org/scheme/companyName",null,{"$f":"Periodos!$D$4","v":"2016-12-31"},{"$f":"#REF!","v":{"$error":"#REF!"}},{"$f":"#REF!","v":{"$error":"#REF!"}}]
["/*",null,"--155--"]
[{"$error":"#REF!"},null,{"$f":"#REF!","v":{"$error":"#REF!"}},{"$f":"#REF!","v":{"$error":"#REF!"}},null,null,{"$f":"#REF!","v":{"$error":"#REF!"}},800001965,"http://www.xbrl.org/scheme/companyName",null,{"$f":"Periodos!$D$4","v":"2016-12-31"},{"$f":"#REF!","v":{"$error":"#REF!"}},{"$f":"#REF!","v":{"$error":"#REF!"}}]
[{"$error":"#REF!"},null,{"$f":"#REF!","v":{"$error":"#REF!"}},{"$f":"#REF!","v":{"$error":"#REF!"}},null,null,{"$f":"#REF!","v":{"$error":"#REF!"}},800001965,"http://www.xbrl.org/scheme/companyName",null,{"$f":"Periodos!$D$4","v":"2016-12-31"},{"$f":"#REF!","v":{"$error":"#REF!"}},{"$f":"#REF!","v":{"$error":"#REF!"}}]
[{"$error":"#REF!"},null,{"$f":"#REF!","v":{"$error":"#REF!"}},{"$f":"#REF!","v":{"$error":"#REF!"}},null,null,{"$f":"#REF!","v":{"$error":"#REF!"}},800001965,"http://www.xbrl.org/scheme/companyName",null,{"$f":"Periodos!$D$4","v":"2016-12-31"},{"$f":"#REF!","v":{"$error":"#REF!"}},{"$f":"#REF!","v":{"$error":"#REF!"}}]
[{"$error":"#REF!"},null,{"$f":"#REF!","v":{"$error":"#REF!"}},{"$f":"#REF!","v":{"$error":"#REF!"}},null,null,{"$f":"#REF!","v":{"$error":"#REF!"}},800001965,"http://www.xbrl.org/scheme/companyName",null,{"$f":"Periodos!$D$4","v":"2016-12-31"},{"$f":"#REF!","v":{"$error":"#REF!"}},{"$f":"#REF!","v":{"$error":"#REF!"}}]
[{"$error":"#REF!"},null,{"$f":"#REF!","v":{"$error":"#REF!"}},{"$f":"#REF!","v":{"$error":"#REF!"}},null,null,{"$f":"#REF!","v":{"$error":"#REF!"}},800001965,"http://www.xbrl.org/scheme/companyName",null,{"$f":"Periodos!$D$4","v":"2016-12-31"},{"$f":"#REF!","v":{"$error":"#REF!"}},{"$f":"#REF!","v":{"$error":"#REF!"}}]
[{"$error":"#REF!"},null,{"$f":"#REF!","v":{"$error":"#REF!"}},{"$f":"#REF!","v":{"$error":"#REF!"}},null,null,{"$f":"#REF!","v":{"$error":"#REF!"}},800001965,"http://www.xbrl.org/scheme/companyName",null,{"$f":"Periodos!$D$4","v":"2016-12-31"},{"$f":"#REF!","v":{"$error":"#REF!"}},{"$f":"#REF!","v":{"$error":"#REF!"}}]
[{"$error":"#REF!"},null,{"$f":"#REF!","v":{"$error":"#REF!"}},{"$f":"#REF!","v":{"$error":"#REF!"}},null,null,{"$f":"#REF!","v":{"$error":"#REF!"}},800001965,"http://www.xbrl.org/scheme/companyName",null,{"$f":"Periodos!$D$4","v":"2016-12-31"},{"$f":"#REF!","v":{"$error":"#REF!"}},{"$f":"#REF!","v":{"$error":"#REF!"}}]
[{"$error":"#REF!"},null,{"$f":"#REF!","v":{"$error":"#REF!"}},{"$f":"#REF!","v":{"$error":"#REF!"}},null,null,{"$f":"#REF!","v":{"$error":"#REF!"}},800001965,"http://www.xbrl.org/scheme/companyName",null,{"$f":"Periodos!$D$4","v":"2016-12-31"},{"$f":"#REF!","v":{"$error":"#REF!"}},{"$f":"#REF!","v":{"$error":"#REF!"}}]
[{"$error":"#REF!"},null,{"$f":"#REF!","v":{"$error":"#REF!"}},{"$f":"#REF!","v":{"$error":"#REF!"}},null,null,{"$f":"#REF!","v":{"$error":"#REF!"}},800001965,"http://www.xbrl.org/scheme/companyName",null,{"$f":"Periodos!$D$4","v":"2016-12-31"},{"$f":"#REF!","v":{"$error":"#REF!"}},{"$f":"#REF!","v":{"$error":"#REF!"}}]
[{"$error":"#REF!"},null,{"$f":"#REF!","v":{"$error":"#REF!"}},{"$f":"#REF!","v":{"$error":"#REF!"}},null,null,{"$f":"#REF!","v":{"$error":"#REF!"}},800001965,"http://www.xbrl.org/scheme/companyName",null,{"$f":"Periodos!$D$4","v":"2016-12-31"},{"$f":"#REF!","v":{"$error":"#REF!"}},{"$f":"#REF!","v":{"$error":"#REF!"}}]
[{"$error":"#REF!"},null,{"$f":"#REF!","v":{"$error":"#REF!"}},{"$f":"#REF!","v":{"$error":"#REF!"}},null,null,{"$f":"#REF!","v":{"$error":"#REF!"}},800001965,"http://www.xbrl.org/scheme/companyName",null,{"$f":"Periodos!$D$4","v":"2016-12-31"},{"$f":"#REF!","v":{"$error":"#REF!"}},{"$f":"#REF!","v":{"$error":"#REF!"}}]
[{"$error":"#REF!"},null,{"$f":"#REF!","v":{"$error":"#REF!"}},{"$f":"#REF!","v":{"$error":"#REF!"}},0,"peso",{"$f":"#REF!","v":{"$error":"#REF!"}},800001965,"http://www.xbrl.org/scheme/companyName",null,{"$f":"Periodos!$D$4","v":"2016-12-31"},{"$f":"#REF!","v":{"$error":"#REF!"}},{"$f":"#REF!","v":{"$error":"#REF!"}}]
["/*",null,"--156--"]
[{"$error":"#REF!"},null,{"$f":"#REF!","v":{"$error":"#REF!"}},{"$f":"#REF!","v":{"$error":"#REF!"}},null,null,{"$f":"#REF!","v":{"$error":"#REF!"}},800001965,"http://www.xbrl.org/scheme/companyName",null,{"$f":"Periodos!$D$4","v":"2016-12-31"},{"$f":"#REF!","v":{"$error":"#REF!"}},{"$f":"#REF!","v":{"$error":"#REF!"}}]
[{"$error":"#REF!"},null,{"$f":"#REF!","v":{"$error":"#REF!"}},{"$f":"#REF!","v":{"$error":"#REF!"}},null,null,{"$f":"#REF!","v":{"$error":"#REF!"}},800001965,"http://www.xbrl.org/scheme/companyName",null,{"$f":"Periodos!$D$4","v":"2016-12-31"},{"$f":"#REF!","v":{"$error":"#REF!"}},{"$f":"#REF!","v":{"$error":"#REF!"}}]
[{"$error":"#REF!"},null,{"$f":"#REF!","v":{"$error":"#REF!"}},{"$f":"#REF!","v":{"$error":"#REF!"}},null,null,{"$f":"#REF!","v":{"$error":"#REF!"}},800001965,"http://www.xbrl.org/scheme/companyName",null,{"$f":"Periodos!$D$4","v":"2016-12-31"},{"$f":"#REF!","v":{"$error":"#REF!"}},{"$f":"#REF!","v":{"$error":"#REF!"}}]
[{"$error":"#REF!"},null,{"$f":"#REF!","v":{"$error":"#REF!"}},{"$f":"#REF!","v":{"$error":"#REF!"}},null,null,{"$f":"#REF!","v":{"$error":"#REF!"}},800001965,"http://www.xbrl.org/scheme/companyName",null,{"$f":"Periodos!$D$4","v":"2016-12-31"},{"$f":"#REF!","v":{"$error":"#REF!"}},{"$f":"#REF!","v":{"$error":"#REF!"}}]
[{"$error":"#REF!"},null,{"$f":"#REF!","v":{"$error":"#REF!"}},{"$f":"#REF!","v":{"$error":"#REF!"}},null,null,{"$f":"#REF!","v":{"$error":"#REF!"}},800001965,"http://www.xbrl.org/scheme/companyName",null,{"$f":"Periodos!$D$4","v":"2016-12-31"},{"$f":"#REF!","v":{"$error":"#REF!"}},{"$f":"#REF!","v":{"$error":"#REF!"}}]
[{"$error":"#REF!"},null,{"$f":"#REF!","v":{"$error":"#REF!"}},{"$f":"#REF!","v":{"$error":"#REF!"}},null,null,{"$f":"#REF!","v":{"$error":"#REF!"}},800001965,"http://www.xbrl.org/scheme/companyName",null,{"$f":"Periodos!$D$4","v":"2016-12-31"},{"$f":"#REF!","v":{"$error":"#REF!"}},{"$f":"#REF!","v":{"$error":"#REF!"}}]
[{"$error":"#REF!"},null,{"$f":"#REF!","v":{"$error":"#REF!"}},{"$f":"#REF!","v":{"$error":"#REF!"}},null,null,{"$f":"#REF!","v":{"$error":"#REF!"}},800001965,"http://www.xbrl.org/scheme/companyName",null,{"$f":"Periodos!$D$4","v":"2016-12-31"},{"$f":"#REF!","v":{"$error":"#REF!"}},{"$f":"#REF!","v":{"$error":"#REF!"}}]
[{"$error":"#REF!"},null,{"$f":"#REF!","v":{"$error":"#REF!"}},{"$f":"#REF!","v":{"$error":"#REF!"}},null,null,{"$f":"#REF!","v":{"$error":"#REF!"}},800001965,"http://www.xbrl.org/scheme/companyName",null,{"$f":"Periodos!$D$4","v":"2016-12-31"},{"$f":"#REF!","v":{"$error":"#REF!"}},{"$f":"#REF!","v":{"$error":"#REF!"}}]
[{"$error":"#REF!"},null,{"$f":"#REF!","v":{"$error":"#REF!"}},{"$f":"#REF!","v":{"$error":"#REF!"}},null,null,{"$f":"#REF!","v":{"$error":"#REF!"}},800001965,"http://www.xbrl.org/scheme/companyName",null,{"$f":"Periodos!$D$4","v":"2016-12-31"},{"$f":"#REF!","v":{"$error":"#REF!"}},{"$f":"#REF!","v":{"$error":"#REF!"}}]
[{"$error":"#REF!"},null,{"$f":"#REF!","v":{"$error":"#REF!"}},{"$f":"#REF!","v":{"$error":"#REF!"}},null,null,{"$f":"#REF!","v":{"$error":"#REF!"}},800001965,"http://www.xbrl.org/scheme/companyName",null,{"$f":"Periodos!$D$4","v":"2016-12-31"},{"$f":"#REF!","v":{"$error":"#REF!"}},{"$f":"#REF!","v":{"$error":"#REF!"}}]
[{"$error":"#REF!"},null,{"$f":"#REF!","v":{"$error":"#REF!"}},{"$f":"#REF!","v":{"$error":"#REF!"}},null,null,{"$f":"#REF!","v":{"$error":"#REF!"}},800001965,"http://www.xbrl.org/scheme/companyName",null,{"$f":"Periodos!$D$4","v":"2016-12-31"},{"$f":"#REF!","v":{"$error":"#REF!"}},{"$f":"#REF!","v":{"$error":"#REF!"}}]
[{"$error":"#REF!"},null,{"$f":"#REF!","v":{"$error":"#REF!"}},{"$f":"#REF!","v":{"$error":"#REF!"}},0,"peso",{"$f":"#REF!","v":{"$error":"#REF!"}},800001965,"http://www.xbrl.org/scheme/companyName",null,{"$f":"Periodos!$D$4","v":"2016-12-31"},{"$f":"#REF!","v":{"$error":"#REF!"}},{"$f":"#REF!","v":{"$error":"#REF!"}}]
["/*",null,"--157--"]
[{"$f":"IF(G5793=\"\",\"/*\",\"\")","v":{"$error":"#REF!"}},null,{"$f":"#REF!","v":{"$error":"#REF!"}},{"$f":"#REF!","v":{"$error":"#REF!"}},null,null,{"$f":"#REF!","v":{"$error":"#REF!"}},800001965,"http://www.xbrl.org/scheme/companyName",null,{"$f":"Periodos!$D$4","v":"2016-12-31"},{"$f":"#REF!","v":{"$error":"#REF!"}},{"$f":"#REF!","v":{"$error":"#REF!"}}]
[{"$error":"#REF!"},null,{"$f":"#REF!","v":{"$error":"#REF!"}},{"$f":"#REF!","v":{"$error":"#REF!"}},null,null,{"$f":"#REF!","v":{"$error":"#REF!"}},800001965,"http://www.xbrl.org/scheme/companyName",null,{"$f":"Periodos!$D$4","v":"2016-12-31"},{"$f":"#REF!","v":{"$error":"#REF!"}},{"$f":"#REF!","v":{"$error":"#REF!"}}]
[{"$error":"#REF!"},null,{"$f":"#REF!","v":{"$error":"#REF!"}},{"$f":"#REF!","v":{"$error":"#REF!"}},null,null,{"$f":"#REF!","v":{"$error":"#REF!"}},800001965,"http://www.xbrl.org/scheme/companyName",null,{"$f":"Periodos!$D$4","v":"2016-12-31"},{"$f":"#REF!","v":{"$error":"#REF!"}},{"$f":"#REF!","v":{"$error":"#REF!"}}]
[{"$error":"#REF!"},null,{"$f":"#REF!","v":{"$error":"#REF!"}},{"$f":"#REF!","v":{"$error":"#REF!"}},null,null,{"$f":"#REF!","v":{"$error":"#REF!"}},800001965,"http://www.xbrl.org/scheme/companyName",null,{"$f":"Periodos!$D$4","v":"2016-12-31"},{"$f":"#REF!","v":{"$error":"#REF!"}},{"$f":"#REF!","v":{"$error":"#REF!"}}]
[{"$error":"#REF!"},null,{"$f":"#REF!","v":{"$error":"#REF!"}},{"$f":"#REF!","v":{"$error":"#REF!"}},null,null,{"$f":"#REF!","v":{"$error":"#REF!"}},800001965,"http://www.xbrl.org/scheme/companyName",null,{"$f":"Periodos!$D$4","v":"2016-12-31"},{"$f":"#REF!","v":{"$error":"#REF!"}},{"$f":"#REF!","v":{"$error":"#REF!"}}]
[{"$error":"#REF!"},null,{"$f":"#REF!","v":{"$error":"#REF!"}},{"$f":"#REF!","v":{"$error":"#REF!"}},null,null,{"$f":"#REF!","v":{"$error":"#REF!"}},800001965,"http://www.xbrl.org/scheme/companyName",null,{"$f":"Periodos!$D$4","v":"2016-12-31"},{"$f":"#REF!","v":{"$error":"#REF!"}},{"$f":"#REF!","v":{"$error":"#REF!"}}]
[{"$error":"#REF!"},null,{"$f":"#REF!","v":{"$error":"#REF!"}},{"$f":"#REF!","v":{"$error":"#REF!"}},null,null,{"$f":"#REF!","v":{"$error":"#REF!"}},800001965,"http://www.xbrl.org/scheme/companyName",null,{"$f":"Periodos!$D$4","v":"2016-12-31"},{"$f":"#REF!","v":{"$error":"#REF!"}},{"$f":"#REF!","v":{"$error":"#REF!"}}]
[{"$error":"#REF!"},null,{"$f":"#REF!","v":{"$error":"#REF!"}},{"$f":"#REF!","v":{"$error":"#REF!"}},null,null,{"$f":"#REF!","v":{"$error":"#REF!"}},800001965,"http://www.xbrl.org/scheme/companyName",null,{"$f":"Periodos!$D$4","v":"2016-12-31"},{"$f":"#REF!","v":{"$error":"#REF!"}},{"$f":"#REF!","v":{"$error":"#REF!"}}]
[{"$error":"#REF!"},null,{"$f":"#REF!","v":{"$error":"#REF!"}},{"$f":"#REF!","v":{"$error":"#REF!"}},null,null,{"$f":"#REF!","v":{"$error":"#REF!"}},800001965,"http://www.xbrl.org/scheme/companyName",null,{"$f":"Periodos!$D$4","v":"2016-12-31"},{"$f":"#REF!","v":{"$error":"#REF!"}},{"$f":"#REF!","v":{"$error":"#REF!"}}]
[{"$error":"#REF!"},null,{"$f":"#REF!","v":{"$error":"#REF!"}},{"$f":"#REF!","v":{"$error":"#REF!"}},null,null,{"$f":"#REF!","v":{"$error":"#REF!"}},800001965,"http://www.xbrl.org/scheme/companyName",null,{"$f":"Periodos!$D$4","v":"2016-12-31"},{"$f":"#REF!","v":{"$error":"#REF!"}},{"$f":"#REF!","v":{"$error":"#REF!"}}]
[{"$error":"#REF!"},null,{"$f":"#REF!","v":{"$error":"#REF!"}},{"$f":"#REF!","v":{"$error":"#REF!"}},null,null,{"$f":"#REF!","v":{"$error":"#REF!"}},800001965,"http://www.xbrl.org/scheme/companyName",null,{"$f":"Periodos!$D$4","v":"2016-12-31"},{"$f":"#REF!","v":{"$error":"#REF!"}},{"$f":"#REF!","v":{"$error":"#REF!"}}]
[{"$error":"#REF!"},null,{"$f":"#REF!","v":{"$error":"#REF!"}},{"$f":"#REF!","v":{"$error":"#REF!"}},0,"peso",{"$f":"#REF!","v":{"$error":"#REF!"}},800001965,"http://www.xbrl.org/scheme/companyName",null,{"$f":"Periodos!$D$4","v":"2016-12-31"},{"$f":"#REF!","v":{"$error":"#REF!"}},{"$f":"#REF!","v":{"$error":"#REF!"}}]
["/*",null,"--158--"]
[{"$error":"#REF!"},null,{"$f":"#REF!","v":{"$error":"#REF!"}},{"$f":"#REF!","v":{"$error":"#REF!"}},null,null,{"$f":"#REF!","v":{"$error":"#REF!"}},800001965,"http://www.xbrl.org/scheme/companyName",null,{"$f":"Periodos!$D$4","v":"2016-12-31"},{"$f":"#REF!","v":{"$error":"#REF!"}},{"$f":"#REF!","v":{"$error":"#REF!"}}]
[{"$error":"#REF!"},null,{"$f":"#REF!","v":{"$error":"#REF!"}},{"$f":"#REF!","v":{"$error":"#REF!"}},null,null,{"$f":"#REF!","v":{"$error":"#REF!"}},800001965,"http://www.xbrl.org/scheme/companyName",null,{"$f":"Periodos!$D$4","v":"2016-12-31"},{"$f":"#REF!","v":{"$error":"#REF!"}},{"$f":"#REF!","v":{"$error":"#REF!"}}]
[{"$error":"#REF!"},null,{"$f":"#REF!","v":{"$error":"#REF!"}},{"$f":"#REF!","v":{"$error":"#REF!"}},null,null,{"$f":"#REF!","v":{"$error":"#REF!"}},800001965,"http://www.xbrl.org/scheme/companyName",null,{"$f":"Periodos!$D$4","v":"2016-12-31"},{"$f":"#REF!","v":{"$error":"#REF!"}},{"$f":"#REF!","v":{"$error":"#REF!"}}]
[{"$error":"#REF!"},null,{"$f":"#REF!","v":{"$error":"#REF!"}},{"$f":"#REF!","v":{"$error":"#REF!"}},null,null,{"$f":"#REF!","v":{"$error":"#REF!"}},800001965,"http://www.xbrl.org/scheme/companyName",null,{"$f":"Periodos!$D$4","v":"2016-12-31"},{"$f":"#REF!","v":{"$error":"#REF!"}},{"$f":"#REF!","v":{"$error":"#REF!"}}]
[{"$error":"#REF!"},null,{"$f":"#REF!","v":{"$error":"#REF!"}},{"$f":"#REF!","v":{"$error":"#REF!"}},null,null,{"$f":"#REF!","v":{"$error":"#REF!"}},800001965,"http://www.xbrl.org/scheme/companyName",null,{"$f":"Periodos!$D$4","v":"2016-12-31"},{"$f":"#REF!","v":{"$error":"#REF!"}},{"$f":"#REF!","v":{"$error":"#REF!"}}]
[{"$error":"#REF!"},null,{"$f":"#REF!","v":{"$error":"#REF!"}},{"$f":"#REF!","v":{"$error":"#REF!"}},null,null,{"$f":"#REF!","v":{"$error":"#REF!"}},800001965,"http://www.xbrl.org/scheme/companyName",null,{"$f":"Periodos!$D$4","v":"2016-12-31"},{"$f":"#REF!","v":{"$error":"#REF!"}},{"$f":"#REF!","v":{"$error":"#REF!"}}]
[{"$error":"#REF!"},null,{"$f":"#REF!","v":{"$error":"#REF!"}},{"$f":"#REF!","v":{"$error":"#REF!"}},null,null,{"$f":"#REF!","v":{"$error":"#REF!"}},800001965,"http://www.xbrl.org/scheme/companyName",null,{"$f":"Periodos!$D$4","v":"2016-12-31"},{"$f":"#REF!","v":{"$error":"#REF!"}},{"$f":"#REF!","v":{"$error":"#REF!"}}]
[{"$error":"#REF!"},null,{"$f":"#REF!","v":{"$error":"#REF!"}},{"$f":"#REF!","v":{"$error":"#REF!"}},null,null,{"$f":"#REF!","v":{"$error":"#REF!"}},800001965,"http://www.xbrl.org/scheme/companyName",null,{"$f":"Periodos!$D$4","v":"2016-12-31"},{"$f":"#REF!","v":{"$error":"#REF!"}},{"$f":"#REF!","v":{"$error":"#REF!"}}]
[{"$error":"#REF!"},null,{"$f":"#REF!","v":{"$error":"#REF!"}},{"$f":"#REF!","v":{"$error":"#REF!"}},null,null,{"$f":"#REF!","v":{"$error":"#REF!"}},800001965,"http://www.xbrl.org/scheme/companyName",null,{"$f":"Periodos!$D$4","v":"2016-12-31"},{"$f":"#REF!","v":{"$error":"#REF!"}},{"$f":"#REF!","v":{"$error":"#REF!"}}]
[{"$error":"#REF!"},null,{"$f":"#REF!","v":{"$error":"#REF!"}},{"$f":"#REF!","v":{"$error":"#REF!"}},null,null,{"$f":"#REF!","v":{"$error":"#REF!"}},800001965,"http://www.xbrl.org/scheme/companyName",null,{"$f":"Periodos!$D$4","v":"2016-12-31"},{"$f":"#REF!","v":{"$error":"#REF!"}},{"$f":"#REF!","v":{"$error":"#REF!"}}]
[{"$error":"#REF!"},null,{"$f":"#REF!","v":{"$error":"#REF!"}},{"$f":"#REF!","v":{"$error":"#REF!"}},null,null,{"$f":"#REF!","v":{"$error":"#REF!"}},800001965,"http://www.xbrl.org/scheme/companyName",null,{"$f":"Periodos!$D$4","v":"2016-12-31"},{"$f":"#REF!","v":{"$error":"#REF!"}},{"$f":"#REF!","v":{"$error":"#REF!"}}]
[{"$error":"#REF!"},null,{"$f":"#REF!","v":{"$error":"#REF!"}},{"$f":"#REF!","v":{"$error":"#REF!"}},0,"peso",{"$f":"#REF!","v":{"$error":"#REF!"}},800001965,"http://www.xbrl.org/scheme/companyName",null,{"$f":"Periodos!$D$4","v":"2016-12-31"},{"$f":"#REF!","v":{"$error":"#REF!"}},{"$f":"#REF!","v":{"$error":"#REF!"}}]
["/*",null,"--159--"]
["/*",null,{"$f":"#REF!","v":{"$error":"#REF!"}},{"$f":"#REF!","v":{"$error":"#REF!"}}]
["/*",null,{"$f":"#REF!","v":{"$error":"#REF!"}},{"$f":"#REF!","v":{"$error":"#REF!"}}]
["/*",null,{"$f":"#REF!","v":{"$error":"#REF!"}},{"$f":"#REF!","v":{"$error":"#REF!"}}]
["/*",null,{"$f":"#REF!","v":{"$error":"#REF!"}},{"$f":"#REF!","v":{"$error":"#REF!"}}]
["/*",null,{"$f":"#REF!","v":{"$error":"#REF!"}},{"$f":"#REF!","v":{"$error":"#REF!"}}]
["/*",null,{"$f":"#REF!","v":{"$error":"#REF!"}},{"$f":"#REF!","v":{"$error":"#REF!"}}]
["/*",null,{"$f":"#REF!","v":{"$error":"#REF!"}},{"$f":"#REF!","v":{"$error":"#REF!"}}]
["/*",null,{"$f":"#REF!","v":{"$error":"#REF!"}},{"$f":"#REF!","v":{"$error":"#REF!"}}]
["/*",null,{"$f":"#REF!","v":{"$error":"#REF!"}},{"$f":"#REF!","v":{"$error":"#REF!"}}]
["/*",null,{"$f":"#REF!","v":{"$error":"#REF!"}},{"$f":"#REF!","v":{"$error":"#REF!"}}]
["/*",null,{"$f":"#REF!","v":{"$error":"#REF!"}},{"$f":"#REF!","v":{"$error":"#REF!"}}]
[{"$error":"#REF!"},null,{"$f":"#REF!","v":{"$error":"#REF!"}},{"$f":"#REF!","v":{"$error":"#REF!"}},0,"peso",{"$f":"#REF!","v":{"$error":"#REF!"}},800001965,"http://www.xbrl.org/scheme/companyName",null,{"$f":"Periodos!$D$4","v":"2016-12-31"},{"$f":"#REF!","v":{"$error":"#REF!"}},{"$f":"#REF!","v":{"$error":"#REF!"}}]
["/*",null,"--160--"]
["/*",null,{"$f":"#REF!","v":{"$error":"#REF!"}},{"$f":"#REF!","v":{"$error":"#REF!"}}]
["/*",null,{"$f":"#REF!","v":{"$error":"#REF!"}},{"$f":"#REF!","v":{"$error":"#REF!"}}]
["/*",null,{"$f":"#REF!","v":{"$error":"#REF!"}},{"$f":"#REF!","v":{"$error":"#REF!"}}]
["/*",null,{"$f":"#REF!","v":{"$error":"#REF!"}},{"$f":"#REF!","v":{"$error":"#REF!"}}]
["/*",null,{"$f":"#REF!","v":{"$error":"#REF!"}},{"$f":"#REF!","v":{"$error":"#REF!"}}]
["/*",null,{"$f":"#REF!","v":{"$error":"#REF!"}},{"$f":"#REF!","v":{"$error":"#REF!"}}]
["/*",null,{"$f":"#REF!","v":{"$error":"#REF!"}},{"$f":"#REF!","v":{"$error":"#REF!"}}]
["/*",null,{"$f":"#REF!","v":{"$error":"#REF!"}},{"$f":"#REF!","v":{"$error":"#REF!"}}]
["/*",null,{"$f":"#REF!","v":{"$error":"#REF!"}},{"$f":"#REF!","v":{"$error":"#REF!"}}]
["/*",null,{"$f":"#REF!","v":{"$error":"#REF!"}},{"$f":"#REF!","v":{"$error":"#REF!"}}]
["/*",null,{"$f":"#REF!","v":{"$error":"#REF!"}},{"$f":"#REF!","v":{"$error":"#REF!"}}]
[{"$error":"#REF!"},null,{"$f":"#REF!","v":{"$error":"#REF!"}},{"$f":"#REF!","v":{"$error":"#REF!"}},0,"peso",{"$f":"#REF!","v":{"$error":"#REF!"}},800001965,"http://www.xbrl.org/scheme/companyName",null,{"$f":"Periodos!$D$4","v":"2016-12-31"},{"$f":"#REF!","v":{"$error":"#REF!"}},{"$f":"#REF!","v":{"$error":"#REF!"}}]
["/*",null,"--161--"]
["/*",null,{"$f":"#REF!","v":{"$error":"#REF!"}},{"$f":"#REF!","v":{"$error":"#REF!"}}]
["/*",null,{"$f":"#REF!","v":{"$error":"#REF!"}},{"$f":"#REF!","v":{"$error":"#REF!"}}]
["/*",null,{"$f":"#REF!","v":{"$error":"#REF!"}},{"$f":"#REF!","v":{"$error":"#REF!"}}]
["/*",null,{"$f":"#REF!","v":{"$error":"#REF!"}},{"$f":"#REF!","v":{"$error":"#REF!"}}]
["/*",null,{"$f":"#REF!","v":{"$error":"#REF!"}},{"$f":"#REF!","v":{"$error":"#REF!"}}]
["/*",null,{"$f":"#REF!","v":{"$error":"#REF!"}},{"$f":"#REF!","v":{"$error":"#REF!"}}]
["/*",null,{"$f":"#REF!","v":{"$error":"#REF!"}},{"$f":"#REF!","v":{"$error":"#REF!"}}]
["/*",null,{"$f":"#REF!","v":{"$error":"#REF!"}},{"$f":"#REF!","v":{"$error":"#REF!"}}]
["/*",null,{"$f":"#REF!","v":{"$error":"#REF!"}},{"$f":"#REF!","v":{"$error":"#REF!"}}]
["/*",null,{"$f":"#REF!","v":{"$error":"#REF!"}},{"$f":"#REF!","v":{"$error":"#REF!"}}]
["/*",null,{"$f":"#REF!","v":{"$error":"#REF!"}},{"$f":"#REF!","v":{"$error":"#REF!"}}]
[{"$error":"#REF!"},null,{"$f":"#REF!","v":{"$error":"#REF!"}},{"$f":"#REF!","v":{"$error":"#REF!"}},0,"peso",{"$f":"#REF!","v":{"$error":"#REF!"}},800001965,"http://www.xbrl.org/scheme/companyName",null,{"$f":"Periodos!$D$4","v":"2016-12-31"},{"$f":"#REF!","v":{"$error":"#REF!"}},{"$f":"#REF!","v":{"$error":"#REF!"}}]
[{"$f":"IF(G5857=\"\",\"/*\",\"\")","v":"/*"}]
["/*",null,"822100 - Nota. Prop, plan y eq."]
["/*",null,"--01--"]
["/*",null,{"$f":"'822100 - Nota. Prop, plan y eq.'!$D$12","v":"Información a revelar detallada sobre propiedades, planta y equipo [partidas de los estados financieros]"},{"$f":"'822100 - Nota. Prop, plan y eq.'!$C$12","v":"ifrs-full:DisclosureOfPropertyPlantAndEquipmentLineItems"}]
["/*",null,{"$f":"'822100 - Nota. Prop, plan y eq.'!$D$13","v":"Bases de medición, propiedades, planta y equipo"},{"$f":"'822100 - Nota. Prop, plan y eq.'!$C$13","v":"ifrs-full:MeasurementBasesPropertyPlantAndEquipment"}]
["/*",null,{"$f":"'822100 - Nota. Prop, plan y eq.'!$D$14","v":"Método de depreciación, propiedades, planta y equipo"},{"$f":"'822100 - Nota. Prop, plan y eq.'!$C$14","v":"ifrs-full:DepreciationMethodPropertyPlantAndEquipment"}]
["/*",null,{"$f":"'822100 - Nota. Prop, plan y eq.'!$D$15","v":"Vidas útiles o tasas de depreciación, propiedades, planta y equipo"},{"$f":"'822100 - Nota. Prop, plan y eq.'!$C$15","v":"ifrs-full:UsefulLivesOrDepreciationRatesPropertyPlantAndEquipment"}]
["/*",null,{"$f":"'822100 - Nota. Prop, plan y eq.'!$D$16","v":"Fechas de vigencia de revaluación, propiedades, planta y equipo"},{"$f":"'822100 - Nota. Prop, plan y eq.'!$C$16","v":"ifrs-full:EffectiveDatesOfRevaluationPropertyPlantAndEquipment"}]
["/*",null,{"$f":"'822100 - Nota. Prop, plan y eq.'!$D$17","v":"Explicación de la implicación del tasador independiente en la revaluación, propiedades, planta y equipo"},{"$f":"'822100 - Nota. Prop, plan y eq.'!$C$17","v":"ifrs-full:ExplanationOfIndependentValuerUsedForRevaluationPropertyPlantAndEquipment"}]
["/*",null,{"$f":"'822100 - Nota. Prop, plan y eq.'!$D$18","v":"Explicación del método de revaluación y supuestos significativos, propiedad, planta y equipo"},{"$f":"'822100 - Nota. Prop, plan y eq.'!$C$18","v":"co-svsp-core_2017-12-31:ExplanationOfRevaluationMethodsAndSignificantAssumptionsPropertyPlantAndEquipment"}]
["/*",null,{"$f":"'822100 - Nota. Prop, plan y eq.'!$D$19","v":"Conciliación de cambios en propiedades, planta y equipo [resumen]"},{"$f":"'822100 - Nota. Prop, plan y eq.'!$C$19","v":"ifrs-full:ReconciliationOfChangesInPropertyPlantAndEquipmentAbstract"}]
["",null,{"$f":"'822100 - Nota. Prop, plan y eq.'!$D$20","v":"Propiedades, planta y equipo al comienzo del periodo"},{"$f":"'822100 - Nota. Prop, plan y eq.'!$C$20","v":"co-svsp-core_2017-12-31:PropertyPlantAndEquipmentBeginningOfPeriod"},0,"peso",{"$f":"'822100 - Nota. Prop, plan y eq.'!$E$20","v":0},800001965,"http://www.xbrl.org/scheme/companyName",{"$f":"Periodos!$C$3","v":"2017-01-01"},{"$f":"Periodos!$C$4","v":"2017-12-31"},{"$f":"'822100 - Nota. Prop, plan y eq.'!$D$11","v":"co-svsp-core_2017-12-31:PropiedadesPlantaYEquipoEje_G1"},{"$f":"'822100 - Nota. Prop, plan y eq.'!$E$10","v":"ifrs-full:LandMember"}]
["/*",null,{"$f":"'822100 - Nota. Prop, plan y eq.'!$D$21","v":"Cambios en propiedades, planta y equipo [resumen]"},{"$f":"'822100 - Nota. Prop, plan y eq.'!$C$21","v":"ifrs-full:ChangesInPropertyPlantAndEquipmentAbstract"}]
["/*",null,{"$f":"'822100 - Nota. Prop, plan y eq.'!$D$22","v":"Incrementos distintos de los procedentes de combinaciones de negocios, propiedades, planta y equipo"},{"$f":"'822100 - Nota. Prop, plan y eq.'!$C$22","v":"ifrs-full:AdditionsOtherThanThroughBusinessCombinationsPropertyPlantAndEquipment"}]
["/*",null,{"$f":"'822100 - Nota. Prop, plan y eq.'!$D$23","v":"Adquisiciones realizadas mediante combinaciones de negocios, propiedades, planta y equipo"},{"$f":"'822100 - Nota. Prop, plan y eq.'!$C$23","v":"ifrs-full:AcquisitionsThroughBusinessCombinationsPropertyPlantAndEquipment"}]
["/*",null,{"$f":"'822100 - Nota. Prop, plan y eq.'!$D$24","v":"Depreciación, propiedades, planta y equipo"},{"$f":"'822100 - Nota. Prop, plan y eq.'!$C$24","v":"ifrs-full:DepreciationPropertyPlantAndEquipment"}]
["/*",null,{"$f":"'822100 - Nota. Prop, plan y eq.'!$D$25","v":"Pérdidas por deterioro de valor reconocidas en el resultado del periodo, propiedades, planta y equipo"},{"$f":"'822100 - Nota. Prop, plan y eq.'!$C$25","v":"ifrs-full:ImpairmentLossRecognisedInProfitOrLossPropertyPlantAndEquipment"}]
["/*",null,{"$f":"'822100 - Nota. Prop, plan y eq.'!$D$26","v":"Reversión de pérdidas por deterioro de valor reconocidas en el resultado del periodo, propiedades, planta y equipo"},{"$f":"'822100 - Nota. Prop, plan y eq.'!$C$26","v":"ifrs-full:ReversalOfImpairmentLossRecognisedInProfitOrLossPropertyPlantAndEquipment"}]
["/*",null,{"$f":"'822100 - Nota. Prop, plan y eq.'!$D$27","v":"Incrementos (disminuciones) de revaluaciones, propiedades, planta y equipo"},{"$f":"'822100 - Nota. Prop, plan y eq.'!$C$27","v":"ifrs-full:RevaluationIncreaseDecreasePropertyPlantAndEquipment"}]
["/*",null,{"$f":"'822100 - Nota. Prop, plan y eq.'!$D$28","v":"Pérdidas por deterioro de valor reconocidas en otro resultado integral, propiedades, planta y equipo"},{"$f":"'822100 - Nota. Prop, plan y eq.'!$C$28","v":"ifrs-full:ImpairmentLossRecognisedInOtherComprehensiveIncomePropertyPlantAndEquipment"}]
["/*",null,{"$f":"'822100 - Nota. Prop, plan y eq.'!$D$29","v":"Reversión de pérdidas por deterioro de valor reconocidas en otro resultado integral, propiedades, planta y equipo"},{"$f":"'822100 - Nota. Prop, plan y eq.'!$C$29","v":"ifrs-full:ReversalOfImpairmentLossRecognisedInOtherComprehensiveIncomePropertyPlantAndEquipment"}]
["/*",null,{"$f":"'822100 - Nota. Prop, plan y eq.'!$D$30","v":"Incrementos (disminuciones) por transferencias y otros cambios, propiedades, planta y equipo [resumen]"},{"$f":"'822100 - Nota. Prop, plan y eq.'!$C$30","v":"ifrs-full:IncreaseDecreaseThroughTransfersAndOtherChangesPropertyPlantAndEquipmentAbstract"}]
["/*",null,{"$f":"'822100 - Nota. Prop, plan y eq.'!$D$31","v":"Incrementos (disminuciones) por transferencias desde (hacia) propiedades de inversión, propiedades, planta y equipo"},{"$f":"'822100 - Nota. Prop, plan y eq.'!$C$31","v":"ifrs-full:IncreaseDecreaseThroughTransfersFromToInvestmentPropertyPropertyPlantAndEquipment"}]
["/*",null,{"$f":"'822100 - Nota. Prop, plan y eq.'!$D$32","v":"Incrementos (disminuciones) por transferencias desde construcciones en proceso , propiedades, planta y equipo"},{"$f":"'822100 - Nota. Prop, plan y eq.'!$C$32","v":"ifrs-full:IncreaseDecreaseThroughTransfersFromConstructionInProgressPropertyPlantAndEquipment"}]
["/*",null,{"$f":"'822100 - Nota. Prop, plan y eq.'!$D$33","v":"Incrementos (disminuciones) por otros cambios, propiedades, planta y equipo"},{"$f":"'822100 - Nota. Prop, plan y eq.'!$C$33","v":"ifrs-full:IncreaseDecreaseThroughOtherChangesPropertyPlantAndEquipment"}]
["",null,{"$f":"'822100 - Nota. Prop, plan y eq.'!$D$34","v":"Total incrementos (disminuciones) por transferencias y otros cambios, propiedades, planta y equipo"},{"$f":"'822100 - Nota. Prop, plan y eq.'!$C$34","v":"ifrs-full:IncreaseDecreaseThroughTransfersAndOtherChangesPropertyPlantAndEquipment"},0,"peso",{"$f":"'822100 - Nota. Prop, plan y eq.'!$E$34","v":0},800001965,"http://www.xbrl.org/scheme/companyName",{"$f":"Periodos!$C$3","v":"2017-01-01"},{"$f":"Periodos!$C$4","v":"2017-12-31"},{"$f":"'822100 - Nota. Prop, plan y eq.'!$D$11","v":"co-svsp-core_2017-12-31:PropiedadesPlantaYEquipoEje_G1"},{"$f":"'822100 - Nota. Prop, plan y eq.'!$E$10","v":"ifrs-full:LandMember"}]
["/*",null,{"$f":"'822100 - Nota. Prop, plan y eq.'!$D$35","v":"Disposiciones y retiros de servicio, propiedades, planta y equipo [resumen]"},{"$f":"'822100 - Nota. Prop, plan y eq.'!$C$35","v":"ifrs-full:DisposalsAndRetirementsPropertyPlantAndEquipmentAbstract"}]
["/*",null,{"$f":"'822100 - Nota. Prop, plan y eq.'!$D$36","v":"Disposiciones, propiedades, planta y equipo"},{"$f":"'822100 - Nota. Prop, plan y eq.'!$C$36","v":"ifrs-full:DisposalsPropertyPlantAndEquipment"}]
["/*",null,{"$f":"'822100 - Nota. Prop, plan y eq.'!$D$37","v":"Retiros, propiedades, planta y equipo"},{"$f":"'822100 - Nota. Prop, plan y eq.'!$C$37","v":"ifrs-full:RetirementsPropertyPlantAndEquipment"}]
["",null,{"$f":"'822100 - Nota. Prop, plan y eq.'!$D$38","v":"Total de disposiciones y retiros de servicio, propiedades, planta y equipo"},{"$f":"'822100 - Nota. Prop, plan y eq.'!$C$38","v":"ifrs-full:DisposalsAndRetirementsPropertyPlantAndEquipment"},0,"peso",{"$f":"'822100 - Nota. Prop, plan y eq.'!$E$38","v":0},800001965,"http://www.xbrl.org/scheme/companyName",{"$f":"Periodos!$C$3","v":"2017-01-01"},{"$f":"Periodos!$C$4","v":"2017-12-31"},{"$f":"'822100 - Nota. Prop, plan y eq.'!$D$11","v":"co-svsp-core_2017-12-31:PropiedadesPlantaYEquipoEje_G1"},{"$f":"'822100 - Nota. Prop, plan y eq.'!$E$10","v":"ifrs-full:LandMember"}]
["/*",null,{"$f":"'822100 - Nota. Prop, plan y eq.'!$D$39","v":"Disminuciones por clasificar como mantenidos para la venta, propiedades, planta y equipo"},{"$f":"'822100 - Nota. Prop, plan y eq.'!$C$39","v":"ifrs-full:DecreaseThroughClassifiedAsHeldForSalePropertyPlantAndEquipment"}]
["",null,{"$f":"'822100 - Nota. Prop, plan y eq.'!$D$40","v":"Total incremento (disminución) en propiedades, planta y equipo"},{"$f":"'822100 - Nota. Prop, plan y eq.'!$C$40","v":"ifrs-full:ChangesInPropertyPlantAndEquipment"},0,"peso",{"$f":"'822100 - Nota. Prop, plan y eq.'!$E$40","v":0},800001965,"http://www.xbrl.org/scheme/companyName",{"$f":"Periodos!$C$3","v":"2017-01-01"},{"$f":"Periodos!$C$4","v":"2017-12-31"},{"$f":"'822100 - Nota. Prop, plan y eq.'!$D$11","v":"co-svsp-core_2017-12-31:PropiedadesPlantaYEquipoEje_G1"},{"$f":"'822100 - Nota. Prop, plan y eq.'!$E$10","v":"ifrs-full:LandMember"}]
["",null,{"$f":"'822100 - Nota. Prop, plan y eq.'!$D$41","v":"Propiedades, planta y equipo al final del periodo"},{"$f":"'822100 - Nota. Prop, plan y eq.'!$C$41","v":"co-svsp-core_2017-12-31:PropertyPlantAndEquipmentEndOfPeriod"},0,"peso",{"$f":"'822100 - Nota. Prop, plan y eq.'!$E$41","v":0},800001965,"http://www.xbrl.org/scheme/companyName",{"$f":"Periodos!$C$3","v":"2017-01-01"},{"$f":"Periodos!$C$4","v":"2017-12-31"},{"$f":"'822100 - Nota. Prop, plan y eq.'!$D$11","v":"co-svsp-core_2017-12-31:PropiedadesPlantaYEquipoEje_G1"},{"$f":"'822100 - Nota. Prop, plan y eq.'!$E$10","v":"ifrs-full:LandMember"}]
["/*",null,"--02--"]
["/*",null,{"$f":"'822100 - Nota. Prop, plan y eq.'!$D$12","v":"Información a revelar detallada sobre propiedades, planta y equipo [partidas de los estados financieros]"},{"$f":"'822100 - Nota. Prop, plan y eq.'!$C$12","v":"ifrs-full:DisclosureOfPropertyPlantAndEquipmentLineItems"}]
["/*",null,{"$f":"'822100 - Nota. Prop, plan y eq.'!$D$13","v":"Bases de medición, propiedades, planta y equipo"},{"$f":"'822100 - Nota. Prop, plan y eq.'!$C$13","v":"ifrs-full:MeasurementBasesPropertyPlantAndEquipment"}]
["/*",null,{"$f":"'822100 - Nota. Prop, plan y eq.'!$D$14","v":"Método de depreciación, propiedades, planta y equipo"},{"$f":"'822100 - Nota. Prop, plan y eq.'!$C$14","v":"ifrs-full:DepreciationMethodPropertyPlantAndEquipment"}]
["/*",null,{"$f":"'822100 - Nota. Prop, plan y eq.'!$D$15","v":"Vidas útiles o tasas de depreciación, propiedades, planta y equipo"},{"$f":"'822100 - Nota. Prop, plan y eq.'!$C$15","v":"ifrs-full:UsefulLivesOrDepreciationRatesPropertyPlantAndEquipment"}]
["/*",null,{"$f":"'822100 - Nota. Prop, plan y eq.'!$D$16","v":"Fechas de vigencia de revaluación, propiedades, planta y equipo"},{"$f":"'822100 - Nota. Prop, plan y eq.'!$C$16","v":"ifrs-full:EffectiveDatesOfRevaluationPropertyPlantAndEquipment"}]
["/*",null,{"$f":"'822100 - Nota. Prop, plan y eq.'!$D$17","v":"Explicación de la implicación del tasador independiente en la revaluación, propiedades, planta y equipo"},{"$f":"'822100 - Nota. Prop, plan y eq.'!$C$17","v":"ifrs-full:ExplanationOfIndependentValuerUsedForRevaluationPropertyPlantAndEquipment"}]
["/*",null,{"$f":"'822100 - Nota. Prop, plan y eq.'!$D$18","v":"Explicación del método de revaluación y supuestos significativos, propiedad, planta y equipo"},{"$f":"'822100 - Nota. Prop, plan y eq.'!$C$18","v":"co-svsp-core_2017-12-31:ExplanationOfRevaluationMethodsAndSignificantAssumptionsPropertyPlantAndEquipment"}]
["/*",null,{"$f":"'822100 - Nota. Prop, plan y eq.'!$D$19","v":"Conciliación de cambios en propiedades, planta y equipo [resumen]"},{"$f":"'822100 - Nota. Prop, plan y eq.'!$C$19","v":"ifrs-full:ReconciliationOfChangesInPropertyPlantAndEquipmentAbstract"}]
["",null,{"$f":"'822100 - Nota. Prop, plan y eq.'!$D$20","v":"Propiedades, planta y equipo al comienzo del periodo"},{"$f":"'822100 - Nota. Prop, plan y eq.'!$C$20","v":"co-svsp-core_2017-12-31:PropertyPlantAndEquipmentBeginningOfPeriod"},0,"peso",{"$f":"'822100 - Nota. Prop, plan y eq.'!$F$20","v":0},800001965,"http://www.xbrl.org/scheme/companyName",{"$f":"Periodos!$C$3","v":"2017-01-01"},{"$f":"Periodos!$C$4","v":"2017-12-31"},{"$f":"'822100 - Nota. Prop, plan y eq.'!$D$11","v":"co-svsp-core_2017-12-31:PropiedadesPlantaYEquipoEje_G1"},{"$f":"'822100 - Nota. Prop, plan y eq.'!$F$10","v":"ifrs-full:BuildingsMember"}]
["/*",null,{"$f":"'822100 - Nota. Prop, plan y eq.'!$D$21","v":"Cambios en propiedades, planta y equipo [resumen]"},{"$f":"'822100 - Nota. Prop, plan y eq.'!$C$21","v":"ifrs-full:ChangesInPropertyPlantAndEquipmentAbstract"}]
["/*",null,{"$f":"'822100 - Nota. Prop, plan y eq.'!$D$22","v":"Incrementos distintos de los procedentes de combinaciones de negocios, propiedades, planta y equipo"},{"$f":"'822100 - Nota. Prop, plan y eq.'!$C$22","v":"ifrs-full:AdditionsOtherThanThroughBusinessCombinationsPropertyPlantAndEquipment"}]
["/*",null,{"$f":"'822100 - Nota. Prop, plan y eq.'!$D$23","v":"Adquisiciones realizadas mediante combinaciones de negocios, propiedades, planta y equipo"},{"$f":"'822100 - Nota. Prop, plan y eq.'!$C$23","v":"ifrs-full:AcquisitionsThroughBusinessCombinationsPropertyPlantAndEquipment"}]
["/*",null,{"$f":"'822100 - Nota. Prop, plan y eq.'!$D$24","v":"Depreciación, propiedades, planta y equipo"},{"$f":"'822100 - Nota. Prop, plan y eq.'!$C$24","v":"ifrs-full:DepreciationPropertyPlantAndEquipment"}]
["/*",null,{"$f":"'822100 - Nota. Prop, plan y eq.'!$D$25","v":"Pérdidas por deterioro de valor reconocidas en el resultado del periodo, propiedades, planta y equipo"},{"$f":"'822100 - Nota. Prop, plan y eq.'!$C$25","v":"ifrs-full:ImpairmentLossRecognisedInProfitOrLossPropertyPlantAndEquipment"}]
["/*",null,{"$f":"'822100 - Nota. Prop, plan y eq.'!$D$26","v":"Reversión de pérdidas por deterioro de valor reconocidas en el resultado del periodo, propiedades, planta y equipo"},{"$f":"'822100 - Nota. Prop, plan y eq.'!$C$26","v":"ifrs-full:ReversalOfImpairmentLossRecognisedInProfitOrLossPropertyPlantAndEquipment"}]
["/*",null,{"$f":"'822100 - Nota. Prop, plan y eq.'!$D$27","v":"Incrementos (disminuciones) de revaluaciones, propiedades, planta y equipo"},{"$f":"'822100 - Nota. Prop, plan y eq.'!$C$27","v":"ifrs-full:RevaluationIncreaseDecreasePropertyPlantAndEquipment"}]
["/*",null,{"$f":"'822100 - Nota. Prop, plan y eq.'!$D$28","v":"Pérdidas por deterioro de valor reconocidas en otro resultado integral, propiedades, planta y equipo"},{"$f":"'822100 - Nota. Prop, plan y eq.'!$C$28","v":"ifrs-full:ImpairmentLossRecognisedInOtherComprehensiveIncomePropertyPlantAndEquipment"}]
["/*",null,{"$f":"'822100 - Nota. Prop, plan y eq.'!$D$29","v":"Reversión de pérdidas por deterioro de valor reconocidas en otro resultado integral, propiedades, planta y equipo"},{"$f":"'822100 - Nota. Prop, plan y eq.'!$C$29","v":"ifrs-full:ReversalOfImpairmentLossRecognisedInOtherComprehensiveIncomePropertyPlantAndEquipment"}]
["/*",null,{"$f":"'822100 - Nota. Prop, plan y eq.'!$D$30","v":"Incrementos (disminuciones) por transferencias y otros cambios, propiedades, planta y equipo [resumen]"},{"$f":"'822100 - Nota. Prop, plan y eq.'!$C$30","v":"ifrs-full:IncreaseDecreaseThroughTransfersAndOtherChangesPropertyPlantAndEquipmentAbstract"}]
["/*",null,{"$f":"'822100 - Nota. Prop, plan y eq.'!$D$31","v":"Incrementos (disminuciones) por transferencias desde (hacia) propiedades de inversión, propiedades, planta y equipo"},{"$f":"'822100 - Nota. Prop, plan y eq.'!$C$31","v":"ifrs-full:IncreaseDecreaseThroughTransfersFromToInvestmentPropertyPropertyPlantAndEquipment"}]
["/*",null,{"$f":"'822100 - Nota. Prop, plan y eq.'!$D$32","v":"Incrementos (disminuciones) por transferencias desde construcciones en proceso , propiedades, planta y equipo"},{"$f":"'822100 - Nota. Prop, plan y eq.'!$C$32","v":"ifrs-full:IncreaseDecreaseThroughTransfersFromConstructionInProgressPropertyPlantAndEquipment"}]
["/*",null,{"$f":"'822100 - Nota. Prop, plan y eq.'!$D$33","v":"Incrementos (disminuciones) por otros cambios, propiedades, planta y equipo"},{"$f":"'822100 - Nota. Prop, plan y eq.'!$C$33","v":"ifrs-full:IncreaseDecreaseThroughOtherChangesPropertyPlantAndEquipment"}]
["",null,{"$f":"'822100 - Nota. Prop, plan y eq.'!$D$34","v":"Total incrementos (disminuciones) por transferencias y otros cambios, propiedades, planta y equipo"},{"$f":"'822100 - Nota. Prop, plan y eq.'!$C$34","v":"ifrs-full:IncreaseDecreaseThroughTransfersAndOtherChangesPropertyPlantAndEquipment"},0,"peso",{"$f":"'822100 - Nota. Prop, plan y eq.'!$F$34","v":0},800001965,"http://www.xbrl.org/scheme/companyName",{"$f":"Periodos!$C$3","v":"2017-01-01"},{"$f":"Periodos!$C$4","v":"2017-12-31"},{"$f":"'822100 - Nota. Prop, plan y eq.'!$D$11","v":"co-svsp-core_2017-12-31:PropiedadesPlantaYEquipoEje_G1"},{"$f":"'822100 - Nota. Prop, plan y eq.'!$F$10","v":"ifrs-full:BuildingsMember"}]
["/*",null,{"$f":"'822100 - Nota. Prop, plan y eq.'!$D$35","v":"Disposiciones y retiros de servicio, propiedades, planta y equipo [resumen]"},{"$f":"'822100 - Nota. Prop, plan y eq.'!$C$35","v":"ifrs-full:DisposalsAndRetirementsPropertyPlantAndEquipmentAbstract"}]
["/*",null,{"$f":"'822100 - Nota. Prop, plan y eq.'!$D$36","v":"Disposiciones, propiedades, planta y equipo"},{"$f":"'822100 - Nota. Prop, plan y eq.'!$C$36","v":"ifrs-full:DisposalsPropertyPlantAndEquipment"}]
["/*",null,{"$f":"'822100 - Nota. Prop, plan y eq.'!$D$37","v":"Retiros, propiedades, planta y equipo"},{"$f":"'822100 - Nota. Prop, plan y eq.'!$C$37","v":"ifrs-full:RetirementsPropertyPlantAndEquipment"}]
["",null,{"$f":"'822100 - Nota. Prop, plan y eq.'!$D$38","v":"Total de disposiciones y retiros de servicio, propiedades, planta y equipo"},{"$f":"'822100 - Nota. Prop, plan y eq.'!$C$38","v":"ifrs-full:DisposalsAndRetirementsPropertyPlantAndEquipment"},0,"peso",{"$f":"'822100 - Nota. Prop, plan y eq.'!$F$38","v":0},800001965,"http://www.xbrl.org/scheme/companyName",{"$f":"Periodos!$C$3","v":"2017-01-01"},{"$f":"Periodos!$C$4","v":"2017-12-31"},{"$f":"'822100 - Nota. Prop, plan y eq.'!$D$11","v":"co-svsp-core_2017-12-31:PropiedadesPlantaYEquipoEje_G1"},{"$f":"'822100 - Nota. Prop, plan y eq.'!$F$10","v":"ifrs-full:BuildingsMember"}]
["/*",null,{"$f":"'822100 - Nota. Prop, plan y eq.'!$D$39","v":"Disminuciones por clasificar como mantenidos para la venta, propiedades, planta y equipo"},{"$f":"'822100 - Nota. Prop, plan y eq.'!$C$39","v":"ifrs-full:DecreaseThroughClassifiedAsHeldForSalePropertyPlantAndEquipment"}]
["",null,{"$f":"'822100 - Nota. Prop, plan y eq.'!$D$40","v":"Total incremento (disminución) en propiedades, planta y equipo"},{"$f":"'822100 - Nota. Prop, plan y eq.'!$C$40","v":"ifrs-full:ChangesInPropertyPlantAndEquipment"},0,"peso",{"$f":"'822100 - Nota. Prop, plan y eq.'!$F$40","v":0},800001965,"http://www.xbrl.org/scheme/companyName",{"$f":"Periodos!$C$3","v":"2017-01-01"},{"$f":"Periodos!$C$4","v":"2017-12-31"},{"$f":"'822100 - Nota. Prop, plan y eq.'!$D$11","v":"co-svsp-core_2017-12-31:PropiedadesPlantaYEquipoEje_G1"},{"$f":"'822100 - Nota. Prop, plan y eq.'!$F$10","v":"ifrs-full:BuildingsMember"}]
["",null,{"$f":"'822100 - Nota. Prop, plan y eq.'!$D$41","v":"Propiedades, planta y equipo al final del periodo"},{"$f":"'822100 - Nota. Prop, plan y eq.'!$C$41","v":"co-svsp-core_2017-12-31:PropertyPlantAndEquipmentEndOfPeriod"},0,"peso",{"$f":"'822100 - Nota. Prop, plan y eq.'!$F$41","v":0},800001965,"http://www.xbrl.org/scheme/companyName",{"$f":"Periodos!$C$3","v":"2017-01-01"},{"$f":"Periodos!$C$4","v":"2017-12-31"},{"$f":"'822100 - Nota. Prop, plan y eq.'!$D$11","v":"co-svsp-core_2017-12-31:PropiedadesPlantaYEquipoEje_G1"},{"$f":"'822100 - Nota. Prop, plan y eq.'!$F$10","v":"ifrs-full:BuildingsMember"}]
[{"$f":"IF(G5921=\"\",\"/*\",\"\")","v":"/*"},null,"--03--"]
["/*",null,{"$f":"'822100 - Nota. Prop, plan y eq.'!$D$12","v":"Información a revelar detallada sobre propiedades, planta y equipo [partidas de los estados financieros]"},{"$f":"'822100 - Nota. Prop, plan y eq.'!$C$12","v":"ifrs-full:DisclosureOfPropertyPlantAndEquipmentLineItems"}]
["/*",null,{"$f":"'822100 - Nota. Prop, plan y eq.'!$D$13","v":"Bases de medición, propiedades, planta y equipo"},{"$f":"'822100 - Nota. Prop, plan y eq.'!$C$13","v":"ifrs-full:MeasurementBasesPropertyPlantAndEquipment"}]
["/*",null,{"$f":"'822100 - Nota. Prop, plan y eq.'!$D$14","v":"Método de depreciación, propiedades, planta y equipo"},{"$f":"'822100 - Nota. Prop, plan y eq.'!$C$14","v":"ifrs-full:DepreciationMethodPropertyPlantAndEquipment"}]
["/*",null,{"$f":"'822100 - Nota. Prop, plan y eq.'!$D$15","v":"Vidas útiles o tasas de depreciación, propiedades, planta y equipo"},{"$f":"'822100 - Nota. Prop, plan y eq.'!$C$15","v":"ifrs-full:UsefulLivesOrDepreciationRatesPropertyPlantAndEquipment"}]
["/*",null,{"$f":"'822100 - Nota. Prop, plan y eq.'!$D$16","v":"Fechas de vigencia de revaluación, propiedades, planta y equipo"},{"$f":"'822100 - Nota. Prop, plan y eq.'!$C$16","v":"ifrs-full:EffectiveDatesOfRevaluationPropertyPlantAndEquipment"}]
["/*",null,{"$f":"'822100 - Nota. Prop, plan y eq.'!$D$17","v":"Explicación de la implicación del tasador independiente en la revaluación, propiedades, planta y equipo"},{"$f":"'822100 - Nota. Prop, plan y eq.'!$C$17","v":"ifrs-full:ExplanationOfIndependentValuerUsedForRevaluationPropertyPlantAndEquipment"}]
["/*",null,{"$f":"'822100 - Nota. Prop, plan y eq.'!$D$18","v":"Explicación del método de revaluación y supuestos significativos, propiedad, planta y equipo"},{"$f":"'822100 - Nota. Prop, plan y eq.'!$C$18","v":"co-svsp-core_2017-12-31:ExplanationOfRevaluationMethodsAndSignificantAssumptionsPropertyPlantAndEquipment"}]
["/*",null,{"$f":"'822100 - Nota. Prop, plan y eq.'!$D$19","v":"Conciliación de cambios en propiedades, planta y equipo [resumen]"},{"$f":"'822100 - Nota. Prop, plan y eq.'!$C$19","v":"ifrs-full:ReconciliationOfChangesInPropertyPlantAndEquipmentAbstract"}]
["",null,{"$f":"'822100 - Nota. Prop, plan y eq.'!$D$20","v":"Propiedades, planta y equipo al comienzo del periodo"},{"$f":"'822100 - Nota. Prop, plan y eq.'!$C$20","v":"co-svsp-core_2017-12-31:PropertyPlantAndEquipmentBeginningOfPeriod"},0,"peso",{"$f":"'822100 - Nota. Prop, plan y eq.'!$G$20","v":0},800001965,"http://www.xbrl.org/scheme/companyName",{"$f":"Periodos!$C$3","v":"2017-01-01"},{"$f":"Periodos!$C$4","v":"2017-12-31"},{"$f":"'822100 - Nota. Prop, plan y eq.'!$D$11","v":"co-svsp-core_2017-12-31:PropiedadesPlantaYEquipoEje_G1"},{"$f":"'822100 - Nota. Prop, plan y eq.'!$G$10","v":"ifrs-full:LandAndBuildingsMember"}]
["/*",null,{"$f":"'822100 - Nota. Prop, plan y eq.'!$D$21","v":"Cambios en propiedades, planta y equipo [resumen]"},{"$f":"'822100 - Nota. Prop, plan y eq.'!$C$21","v":"ifrs-full:ChangesInPropertyPlantAndEquipmentAbstract"}]
["/*",null,{"$f":"'822100 - Nota. Prop, plan y eq.'!$D$22","v":"Incrementos distintos de los procedentes de combinaciones de negocios, propiedades, planta y equipo"},{"$f":"'822100 - Nota. Prop, plan y eq.'!$C$22","v":"ifrs-full:AdditionsOtherThanThroughBusinessCombinationsPropertyPlantAndEquipment"}]
["/*",null,{"$f":"'822100 - Nota. Prop, plan y eq.'!$D$23","v":"Adquisiciones realizadas mediante combinaciones de negocios, propiedades, planta y equipo"},{"$f":"'822100 - Nota. Prop, plan y eq.'!$C$23","v":"ifrs-full:AcquisitionsThroughBusinessCombinationsPropertyPlantAndEquipment"}]
["/*",null,{"$f":"'822100 - Nota. Prop, plan y eq.'!$D$24","v":"Depreciación, propiedades, planta y equipo"},{"$f":"'822100 - Nota. Prop, plan y eq.'!$C$24","v":"ifrs-full:DepreciationPropertyPlantAndEquipment"}]
["/*",null,{"$f":"'822100 - Nota. Prop, plan y eq.'!$D$25","v":"Pérdidas por deterioro de valor reconocidas en el resultado del periodo, propiedades, planta y equipo"},{"$f":"'822100 - Nota. Prop, plan y eq.'!$C$25","v":"ifrs-full:ImpairmentLossRecognisedInProfitOrLossPropertyPlantAndEquipment"}]
["/*",null,{"$f":"'822100 - Nota. Prop, plan y eq.'!$D$26","v":"Reversión de pérdidas por deterioro de valor reconocidas en el resultado del periodo, propiedades, planta y equipo"},{"$f":"'822100 - Nota. Prop, plan y eq.'!$C$26","v":"ifrs-full:ReversalOfImpairmentLossRecognisedInProfitOrLossPropertyPlantAndEquipment"}]
["/*",null,{"$f":"'822100 - Nota. Prop, plan y eq.'!$D$27","v":"Incrementos (disminuciones) de revaluaciones, propiedades, planta y equipo"},{"$f":"'822100 - Nota. Prop, plan y eq.'!$C$27","v":"ifrs-full:RevaluationIncreaseDecreasePropertyPlantAndEquipment"}]
["/*",null,{"$f":"'822100 - Nota. Prop, plan y eq.'!$D$28","v":"Pérdidas por deterioro de valor reconocidas en otro resultado integral, propiedades, planta y equipo"},{"$f":"'822100 - Nota. Prop, plan y eq.'!$C$28","v":"ifrs-full:ImpairmentLossRecognisedInOtherComprehensiveIncomePropertyPlantAndEquipment"}]
["/*",null,{"$f":"'822100 - Nota. Prop, plan y eq.'!$D$29","v":"Reversión de pérdidas por deterioro de valor reconocidas en otro resultado integral, propiedades, planta y equipo"},{"$f":"'822100 - Nota. Prop, plan y eq.'!$C$29","v":"ifrs-full:ReversalOfImpairmentLossRecognisedInOtherComprehensiveIncomePropertyPlantAndEquipment"}]
["/*",null,{"$f":"'822100 - Nota. Prop, plan y eq.'!$D$30","v":"Incrementos (disminuciones) por transferencias y otros cambios, propiedades, planta y equipo [resumen]"},{"$f":"'822100 - Nota. Prop, plan y eq.'!$C$30","v":"ifrs-full:IncreaseDecreaseThroughTransfersAndOtherChangesPropertyPlantAndEquipmentAbstract"}]
["/*",null,{"$f":"'822100 - Nota. Prop, plan y eq.'!$D$31","v":"Incrementos (disminuciones) por transferencias desde (hacia) propiedades de inversión, propiedades, planta y equipo"},{"$f":"'822100 - Nota. Prop, plan y eq.'!$C$31","v":"ifrs-full:IncreaseDecreaseThroughTransfersFromToInvestmentPropertyPropertyPlantAndEquipment"}]
["/*",null,{"$f":"'822100 - Nota. Prop, plan y eq.'!$D$32","v":"Incrementos (disminuciones) por transferencias desde construcciones en proceso , propiedades, planta y equipo"},{"$f":"'822100 - Nota. Prop, plan y eq.'!$C$32","v":"ifrs-full:IncreaseDecreaseThroughTransfersFromConstructionInProgressPropertyPlantAndEquipment"}]
["/*",null,{"$f":"'822100 - Nota. Prop, plan y eq.'!$D$33","v":"Incrementos (disminuciones) por otros cambios, propiedades, planta y equipo"},{"$f":"'822100 - Nota. Prop, plan y eq.'!$C$33","v":"ifrs-full:IncreaseDecreaseThroughOtherChangesPropertyPlantAndEquipment"}]
["",null,{"$f":"'822100 - Nota. Prop, plan y eq.'!$D$34","v":"Total incrementos (disminuciones) por transferencias y otros cambios, propiedades, planta y equipo"},{"$f":"'822100 - Nota. Prop, plan y eq.'!$C$34","v":"ifrs-full:IncreaseDecreaseThroughTransfersAndOtherChangesPropertyPlantAndEquipment"},0,"peso",{"$f":"'822100 - Nota. Prop, plan y eq.'!$G$34","v":0},800001965,"http://www.xbrl.org/scheme/companyName",{"$f":"Periodos!$C$3","v":"2017-01-01"},{"$f":"Periodos!$C$4","v":"2017-12-31"},{"$f":"'822100 - Nota. Prop, plan y eq.'!$D$11","v":"co-svsp-core_2017-12-31:PropiedadesPlantaYEquipoEje_G1"},{"$f":"'822100 - Nota. Prop, plan y eq.'!$G$10","v":"ifrs-full:LandAndBuildingsMember"}]
["/*",null,{"$f":"'822100 - Nota. Prop, plan y eq.'!$D$35","v":"Disposiciones y retiros de servicio, propiedades, planta y equipo [resumen]"},{"$f":"'822100 - Nota. Prop, plan y eq.'!$C$35","v":"ifrs-full:DisposalsAndRetirementsPropertyPlantAndEquipmentAbstract"}]
["/*",null,{"$f":"'822100 - Nota. Prop, plan y eq.'!$D$36","v":"Disposiciones, propiedades, planta y equipo"},{"$f":"'822100 - Nota. Prop, plan y eq.'!$C$36","v":"ifrs-full:DisposalsPropertyPlantAndEquipment"}]
["/*",null,{"$f":"'822100 - Nota. Prop, plan y eq.'!$D$37","v":"Retiros, propiedades, planta y equipo"},{"$f":"'822100 - Nota. Prop, plan y eq.'!$C$37","v":"ifrs-full:RetirementsPropertyPlantAndEquipment"}]
["",null,{"$f":"'822100 - Nota. Prop, plan y eq.'!$D$38","v":"Total de disposiciones y retiros de servicio, propiedades, planta y equipo"},{"$f":"'822100 - Nota. Prop, plan y eq.'!$C$38","v":"ifrs-full:DisposalsAndRetirementsPropertyPlantAndEquipment"},0,"peso",{"$f":"'822100 - Nota. Prop, plan y eq.'!$G$38","v":0},800001965,"http://www.xbrl.org/scheme/companyName",{"$f":"Periodos!$C$3","v":"2017-01-01"},{"$f":"Periodos!$C$4","v":"2017-12-31"},{"$f":"'822100 - Nota. Prop, plan y eq.'!$D$11","v":"co-svsp-core_2017-12-31:PropiedadesPlantaYEquipoEje_G1"},{"$f":"'822100 - Nota. Prop, plan y eq.'!$G$10","v":"ifrs-full:LandAndBuildingsMember"}]
["/*",null,{"$f":"'822100 - Nota. Prop, plan y eq.'!$D$39","v":"Disminuciones por clasificar como mantenidos para la venta, propiedades, planta y equipo"},{"$f":"'822100 - Nota. Prop, plan y eq.'!$C$39","v":"ifrs-full:DecreaseThroughClassifiedAsHeldForSalePropertyPlantAndEquipment"}]
["",null,{"$f":"'822100 - Nota. Prop, plan y eq.'!$D$40","v":"Total incremento (disminución) en propiedades, planta y equipo"},{"$f":"'822100 - Nota. Prop, plan y eq.'!$C$40","v":"ifrs-full:ChangesInPropertyPlantAndEquipment"},0,"peso",{"$f":"'822100 - Nota. Prop, plan y eq.'!$G$40","v":0},800001965,"http://www.xbrl.org/scheme/companyName",{"$f":"Periodos!$C$3","v":"2017-01-01"},{"$f":"Periodos!$C$4","v":"2017-12-31"},{"$f":"'822100 - Nota. Prop, plan y eq.'!$D$11","v":"co-svsp-core_2017-12-31:PropiedadesPlantaYEquipoEje_G1"},{"$f":"'822100 - Nota. Prop, plan y eq.'!$G$10","v":"ifrs-full:LandAndBuildingsMember"}]
["",null,{"$f":"'822100 - Nota. Prop, plan y eq.'!$D$41","v":"Propiedades, planta y equipo al final del periodo"},{"$f":"'822100 - Nota. Prop, plan y eq.'!$C$41","v":"co-svsp-core_2017-12-31:PropertyPlantAndEquipmentEndOfPeriod"},0,"peso",{"$f":"'822100 - Nota. Prop, plan y eq.'!$G$41","v":0},800001965,"http://www.xbrl.org/scheme/companyName",{"$f":"Periodos!$C$3","v":"2017-01-01"},{"$f":"Periodos!$C$4","v":"2017-12-31"},{"$f":"'822100 - Nota. Prop, plan y eq.'!$D$11","v":"co-svsp-core_2017-12-31:PropiedadesPlantaYEquipoEje_G1"},{"$f":"'822100 - Nota. Prop, plan y eq.'!$G$10","v":"ifrs-full:LandAndBuildingsMember"}]
["/*",null,"--04--"]
["/*",null,{"$f":"'822100 - Nota. Prop, plan y eq.'!$D$12","v":"Información a revelar detallada sobre propiedades, planta y equipo [partidas de los estados financieros]"},{"$f":"'822100 - Nota. Prop, plan y eq.'!$C$12","v":"ifrs-full:DisclosureOfPropertyPlantAndEquipmentLineItems"}]
["/*",null,{"$f":"'822100 - Nota. Prop, plan y eq.'!$D$13","v":"Bases de medición, propiedades, planta y equipo"},{"$f":"'822100 - Nota. Prop, plan y eq.'!$C$13","v":"ifrs-full:MeasurementBasesPropertyPlantAndEquipment"}]
["/*",null,{"$f":"'822100 - Nota. Prop, plan y eq.'!$D$14","v":"Método de depreciación, propiedades, planta y equipo"},{"$f":"'822100 - Nota. Prop, plan y eq.'!$C$14","v":"ifrs-full:DepreciationMethodPropertyPlantAndEquipment"}]
["/*",null,{"$f":"'822100 - Nota. Prop, plan y eq.'!$D$15","v":"Vidas útiles o tasas de depreciación, propiedades, planta y equipo"},{"$f":"'822100 - Nota. Prop, plan y eq.'!$C$15","v":"ifrs-full:UsefulLivesOrDepreciationRatesPropertyPlantAndEquipment"}]
["/*",null,{"$f":"'822100 - Nota. Prop, plan y eq.'!$D$16","v":"Fechas de vigencia de revaluación, propiedades, planta y equipo"},{"$f":"'822100 - Nota. Prop, plan y eq.'!$C$16","v":"ifrs-full:EffectiveDatesOfRevaluationPropertyPlantAndEquipment"}]
["/*",null,{"$f":"'822100 - Nota. Prop, plan y eq.'!$D$17","v":"Explicación de la implicación del tasador independiente en la revaluación, propiedades, planta y equipo"},{"$f":"'822100 - Nota. Prop, plan y eq.'!$C$17","v":"ifrs-full:ExplanationOfIndependentValuerUsedForRevaluationPropertyPlantAndEquipment"}]
["/*",null,{"$f":"'822100 - Nota. Prop, plan y eq.'!$D$18","v":"Explicación del método de revaluación y supuestos significativos, propiedad, planta y equipo"},{"$f":"'822100 - Nota. Prop, plan y eq.'!$C$18","v":"co-svsp-core_2017-12-31:ExplanationOfRevaluationMethodsAndSignificantAssumptionsPropertyPlantAndEquipment"}]
["/*",null,{"$f":"'822100 - Nota. Prop, plan y eq.'!$D$19","v":"Conciliación de cambios en propiedades, planta y equipo [resumen]"},{"$f":"'822100 - Nota. Prop, plan y eq.'!$C$19","v":"ifrs-full:ReconciliationOfChangesInPropertyPlantAndEquipmentAbstract"}]
["",null,{"$f":"'822100 - Nota. Prop, plan y eq.'!$D$20","v":"Propiedades, planta y equipo al comienzo del periodo"},{"$f":"'822100 - Nota. Prop, plan y eq.'!$C$20","v":"co-svsp-core_2017-12-31:PropertyPlantAndEquipmentBeginningOfPeriod"},0,"peso",{"$f":"'822100 - Nota. Prop, plan y eq.'!$H$20","v":0},800001965,"http://www.xbrl.org/scheme/companyName",{"$f":"Periodos!$C$3","v":"2017-01-01"},{"$f":"Periodos!$C$4","v":"2017-12-31"},{"$f":"'822100 - Nota. Prop, plan y eq.'!$D$11","v":"co-svsp-core_2017-12-31:PropiedadesPlantaYEquipoEje_G1"},{"$f":"'822100 - Nota. Prop, plan y eq.'!$H$10","v":"ifrs-full:MachineryMember"}]
["/*",null,{"$f":"'822100 - Nota. Prop, plan y eq.'!$D$21","v":"Cambios en propiedades, planta y equipo [resumen]"},{"$f":"'822100 - Nota. Prop, plan y eq.'!$C$21","v":"ifrs-full:ChangesInPropertyPlantAndEquipmentAbstract"}]
["/*",null,{"$f":"'822100 - Nota. Prop, plan y eq.'!$D$22","v":"Incrementos distintos de los procedentes de combinaciones de negocios, propiedades, planta y equipo"},{"$f":"'822100 - Nota. Prop, plan y eq.'!$C$22","v":"ifrs-full:AdditionsOtherThanThroughBusinessCombinationsPropertyPlantAndEquipment"}]
["/*",null,{"$f":"'822100 - Nota. Prop, plan y eq.'!$D$23","v":"Adquisiciones realizadas mediante combinaciones de negocios, propiedades, planta y equipo"},{"$f":"'822100 - Nota. Prop, plan y eq.'!$C$23","v":"ifrs-full:AcquisitionsThroughBusinessCombinationsPropertyPlantAndEquipment"}]
["/*",null,{"$f":"'822100 - Nota. Prop, plan y eq.'!$D$24","v":"Depreciación, propiedades, planta y equipo"},{"$f":"'822100 - Nota. Prop, plan y eq.'!$C$24","v":"ifrs-full:DepreciationPropertyPlantAndEquipment"}]
["/*",null,{"$f":"'822100 - Nota. Prop, plan y eq.'!$D$25","v":"Pérdidas por deterioro de valor reconocidas en el resultado del periodo, propiedades, planta y equipo"},{"$f":"'822100 - Nota. Prop, plan y eq.'!$C$25","v":"ifrs-full:ImpairmentLossRecognisedInProfitOrLossPropertyPlantAndEquipment"}]
["/*",null,{"$f":"'822100 - Nota. Prop, plan y eq.'!$D$26","v":"Reversión de pérdidas por deterioro de valor reconocidas en el resultado del periodo, propiedades, planta y equipo"},{"$f":"'822100 - Nota. Prop, plan y eq.'!$C$26","v":"ifrs-full:ReversalOfImpairmentLossRecognisedInProfitOrLossPropertyPlantAndEquipment"}]
["/*",null,{"$f":"'822100 - Nota. Prop, plan y eq.'!$D$27","v":"Incrementos (disminuciones) de revaluaciones, propiedades, planta y equipo"},{"$f":"'822100 - Nota. Prop, plan y eq.'!$C$27","v":"ifrs-full:RevaluationIncreaseDecreasePropertyPlantAndEquipment"}]
["/*",null,{"$f":"'822100 - Nota. Prop, plan y eq.'!$D$28","v":"Pérdidas por deterioro de valor reconocidas en otro resultado integral, propiedades, planta y equipo"},{"$f":"'822100 - Nota. Prop, plan y eq.'!$C$28","v":"ifrs-full:ImpairmentLossRecognisedInOtherComprehensiveIncomePropertyPlantAndEquipment"}]
["/*",null,{"$f":"'822100 - Nota. Prop, plan y eq.'!$D$29","v":"Reversión de pérdidas por deterioro de valor reconocidas en otro resultado integral, propiedades, planta y equipo"},{"$f":"'822100 - Nota. Prop, plan y eq.'!$C$29","v":"ifrs-full:ReversalOfImpairmentLossRecognisedInOtherComprehensiveIncomePropertyPlantAndEquipment"}]
["/*",null,{"$f":"'822100 - Nota. Prop, plan y eq.'!$D$30","v":"Incrementos (disminuciones) por transferencias y otros cambios, propiedades, planta y equipo [resumen]"},{"$f":"'822100 - Nota. Prop, plan y eq.'!$C$30","v":"ifrs-full:IncreaseDecreaseThroughTransfersAndOtherChangesPropertyPlantAndEquipmentAbstract"}]
["/*",null,{"$f":"'822100 - Nota. Prop, plan y eq.'!$D$31","v":"Incrementos (disminuciones) por transferencias desde (hacia) propiedades de inversión, propiedades, planta y equipo"},{"$f":"'822100 - Nota. Prop, plan y eq.'!$C$31","v":"ifrs-full:IncreaseDecreaseThroughTransfersFromToInvestmentPropertyPropertyPlantAndEquipment"}]
["/*",null,{"$f":"'822100 - Nota. Prop, plan y eq.'!$D$32","v":"Incrementos (disminuciones) por transferencias desde construcciones en proceso , propiedades, planta y equipo"},{"$f":"'822100 - Nota. Prop, plan y eq.'!$C$32","v":"ifrs-full:IncreaseDecreaseThroughTransfersFromConstructionInProgressPropertyPlantAndEquipment"}]
["/*",null,{"$f":"'822100 - Nota. Prop, plan y eq.'!$D$33","v":"Incrementos (disminuciones) por otros cambios, propiedades, planta y equipo"},{"$f":"'822100 - Nota. Prop, plan y eq.'!$C$33","v":"ifrs-full:IncreaseDecreaseThroughOtherChangesPropertyPlantAndEquipment"}]
["",null,{"$f":"'822100 - Nota. Prop, plan y eq.'!$D$34","v":"Total incrementos (disminuciones) por transferencias y otros cambios, propiedades, planta y equipo"},{"$f":"'822100 - Nota. Prop, plan y eq.'!$C$34","v":"ifrs-full:IncreaseDecreaseThroughTransfersAndOtherChangesPropertyPlantAndEquipment"},0,"peso",{"$f":"'822100 - Nota. Prop, plan y eq.'!$H$34","v":0},800001965,"http://www.xbrl.org/scheme/companyName",{"$f":"Periodos!$C$3","v":"2017-01-01"},{"$f":"Periodos!$C$4","v":"2017-12-31"},{"$f":"'822100 - Nota. Prop, plan y eq.'!$D$11","v":"co-svsp-core_2017-12-31:PropiedadesPlantaYEquipoEje_G1"},{"$f":"'822100 - Nota. Prop, plan y eq.'!$H$10","v":"ifrs-full:MachineryMember"}]
["/*",null,{"$f":"'822100 - Nota. Prop, plan y eq.'!$D$35","v":"Disposiciones y retiros de servicio, propiedades, planta y equipo [resumen]"},{"$f":"'822100 - Nota. Prop, plan y eq.'!$C$35","v":"ifrs-full:DisposalsAndRetirementsPropertyPlantAndEquipmentAbstract"}]
["/*",null,{"$f":"'822100 - Nota. Prop, plan y eq.'!$D$36","v":"Disposiciones, propiedades, planta y equipo"},{"$f":"'822100 - Nota. Prop, plan y eq.'!$C$36","v":"ifrs-full:DisposalsPropertyPlantAndEquipment"}]
["/*",null,{"$f":"'822100 - Nota. Prop, plan y eq.'!$D$37","v":"Retiros, propiedades, planta y equipo"},{"$f":"'822100 - Nota. Prop, plan y eq.'!$C$37","v":"ifrs-full:RetirementsPropertyPlantAndEquipment"}]
["",null,{"$f":"'822100 - Nota. Prop, plan y eq.'!$D$38","v":"Total de disposiciones y retiros de servicio, propiedades, planta y equipo"},{"$f":"'822100 - Nota. Prop, plan y eq.'!$C$38","v":"ifrs-full:DisposalsAndRetirementsPropertyPlantAndEquipment"},0,"peso",{"$f":"'822100 - Nota. Prop, plan y eq.'!$H$38","v":0},800001965,"http://www.xbrl.org/scheme/companyName",{"$f":"Periodos!$C$3","v":"2017-01-01"},{"$f":"Periodos!$C$4","v":"2017-12-31"},{"$f":"'822100 - Nota. Prop, plan y eq.'!$D$11","v":"co-svsp-core_2017-12-31:PropiedadesPlantaYEquipoEje_G1"},{"$f":"'822100 - Nota. Prop, plan y eq.'!$H$10","v":"ifrs-full:MachineryMember"}]
["/*",null,{"$f":"'822100 - Nota. Prop, plan y eq.'!$D$39","v":"Disminuciones por clasificar como mantenidos para la venta, propiedades, planta y equipo"},{"$f":"'822100 - Nota. Prop, plan y eq.'!$C$39","v":"ifrs-full:DecreaseThroughClassifiedAsHeldForSalePropertyPlantAndEquipment"}]
["",null,{"$f":"'822100 - Nota. Prop, plan y eq.'!$D$40","v":"Total incremento (disminución) en propiedades, planta y equipo"},{"$f":"'822100 - Nota. Prop, plan y eq.'!$C$40","v":"ifrs-full:ChangesInPropertyPlantAndEquipment"},0,"peso",{"$f":"'822100 - Nota. Prop, plan y eq.'!$H$40","v":0},800001965,"http://www.xbrl.org/scheme/companyName",{"$f":"Periodos!$C$3","v":"2017-01-01"},{"$f":"Periodos!$C$4","v":"2017-12-31"},{"$f":"'822100 - Nota. Prop, plan y eq.'!$D$11","v":"co-svsp-core_2017-12-31:PropiedadesPlantaYEquipoEje_G1"},{"$f":"'822100 - Nota. Prop, plan y eq.'!$H$10","v":"ifrs-full:MachineryMember"}]
["",null,{"$f":"'822100 - Nota. Prop, plan y eq.'!$D$41","v":"Propiedades, planta y equipo al final del periodo"},{"$f":"'822100 - Nota. Prop, plan y eq.'!$C$41","v":"co-svsp-core_2017-12-31:PropertyPlantAndEquipmentEndOfPeriod"},0,"peso",{"$f":"'822100 - Nota. Prop, plan y eq.'!$H$41","v":0},800001965,"http://www.xbrl.org/scheme/companyName",{"$f":"Periodos!$C$3","v":"2017-01-01"},{"$f":"Periodos!$C$4","v":"2017-12-31"},{"$f":"'822100 - Nota. Prop, plan y eq.'!$D$11","v":"co-svsp-core_2017-12-31:PropiedadesPlantaYEquipoEje_G1"},{"$f":"'822100 - Nota. Prop, plan y eq.'!$H$10","v":"ifrs-full:MachineryMember"}]
["/*",null,"--05--"]
["/*",null,{"$f":"'822100 - Nota. Prop, plan y eq.'!$D$12","v":"Información a revelar detallada sobre propiedades, planta y equipo [partidas de los estados financieros]"},{"$f":"'822100 - Nota. Prop, plan y eq.'!$C$12","v":"ifrs-full:DisclosureOfPropertyPlantAndEquipmentLineItems"}]
[{"$f":"IF(G5985=\"\",\"/*\",\"\")","v":"/*"},null,{"$f":"'822100 - Nota. Prop, plan y eq.'!$D$13","v":"Bases de medición, propiedades, planta y equipo"},{"$f":"'822100 - Nota. Prop, plan y eq.'!$C$13","v":"ifrs-full:MeasurementBasesPropertyPlantAndEquipment"}]
["/*",null,{"$f":"'822100 - Nota. Prop, plan y eq.'!$D$14","v":"Método de depreciación, propiedades, planta y equipo"},{"$f":"'822100 - Nota. Prop, plan y eq.'!$C$14","v":"ifrs-full:DepreciationMethodPropertyPlantAndEquipment"}]
["/*",null,{"$f":"'822100 - Nota. Prop, plan y eq.'!$D$15","v":"Vidas útiles o tasas de depreciación, propiedades, planta y equipo"},{"$f":"'822100 - Nota. Prop, plan y eq.'!$C$15","v":"ifrs-full:UsefulLivesOrDepreciationRatesPropertyPlantAndEquipment"}]
["/*",null,{"$f":"'822100 - Nota. Prop, plan y eq.'!$D$16","v":"Fechas de vigencia de revaluación, propiedades, planta y equipo"},{"$f":"'822100 - Nota. Prop, plan y eq.'!$C$16","v":"ifrs-full:EffectiveDatesOfRevaluationPropertyPlantAndEquipment"}]
["/*",null,{"$f":"'822100 - Nota. Prop, plan y eq.'!$D$17","v":"Explicación de la implicación del tasador independiente en la revaluación, propiedades, planta y equipo"},{"$f":"'822100 - Nota. Prop, plan y eq.'!$C$17","v":"ifrs-full:ExplanationOfIndependentValuerUsedForRevaluationPropertyPlantAndEquipment"}]
["/*",null,{"$f":"'822100 - Nota. Prop, plan y eq.'!$D$18","v":"Explicación del método de revaluación y supuestos significativos, propiedad, planta y equipo"},{"$f":"'822100 - Nota. Prop, plan y eq.'!$C$18","v":"co-svsp-core_2017-12-31:ExplanationOfRevaluationMethodsAndSignificantAssumptionsPropertyPlantAndEquipment"}]
["/*",null,{"$f":"'822100 - Nota. Prop, plan y eq.'!$D$19","v":"Conciliación de cambios en propiedades, planta y equipo [resumen]"},{"$f":"'822100 - Nota. Prop, plan y eq.'!$C$19","v":"ifrs-full:ReconciliationOfChangesInPropertyPlantAndEquipmentAbstract"}]
["",null,{"$f":"'822100 - Nota. Prop, plan y eq.'!$D$20","v":"Propiedades, planta y equipo al comienzo del periodo"},{"$f":"'822100 - Nota. Prop, plan y eq.'!$C$20","v":"co-svsp-core_2017-12-31:PropertyPlantAndEquipmentBeginningOfPeriod"},0,"peso",{"$f":"'822100 - Nota. Prop, plan y eq.'!$I$20","v":0},800001965,"http://www.xbrl.org/scheme/companyName",{"$f":"Periodos!$C$3","v":"2017-01-01"},{"$f":"Periodos!$C$4","v":"2017-12-31"},{"$f":"'822100 - Nota. Prop, plan y eq.'!$D$11","v":"co-svsp-core_2017-12-31:PropiedadesPlantaYEquipoEje_G1"},{"$f":"'822100 - Nota. Prop, plan y eq.'!$I$10","v":"ifrs-full:ShipsMember"}]
["/*",null,{"$f":"'822100 - Nota. Prop, plan y eq.'!$D$21","v":"Cambios en propiedades, planta y equipo [resumen]"},{"$f":"'822100 - Nota. Prop, plan y eq.'!$C$21","v":"ifrs-full:ChangesInPropertyPlantAndEquipmentAbstract"}]
["/*",null,{"$f":"'822100 - Nota. Prop, plan y eq.'!$D$22","v":"Incrementos distintos de los procedentes de combinaciones de negocios, propiedades, planta y equipo"},{"$f":"'822100 - Nota. Prop, plan y eq.'!$C$22","v":"ifrs-full:AdditionsOtherThanThroughBusinessCombinationsPropertyPlantAndEquipment"}]
["/*",null,{"$f":"'822100 - Nota. Prop, plan y eq.'!$D$23","v":"Adquisiciones realizadas mediante combinaciones de negocios, propiedades, planta y equipo"},{"$f":"'822100 - Nota. Prop, plan y eq.'!$C$23","v":"ifrs-full:AcquisitionsThroughBusinessCombinationsPropertyPlantAndEquipment"}]
["/*",null,{"$f":"'822100 - Nota. Prop, plan y eq.'!$D$24","v":"Depreciación, propiedades, planta y equipo"},{"$f":"'822100 - Nota. Prop, plan y eq.'!$C$24","v":"ifrs-full:DepreciationPropertyPlantAndEquipment"}]
["/*",null,{"$f":"'822100 - Nota. Prop, plan y eq.'!$D$25","v":"Pérdidas por deterioro de valor reconocidas en el resultado del periodo, propiedades, planta y equipo"},{"$f":"'822100 - Nota. Prop, plan y eq.'!$C$25","v":"ifrs-full:ImpairmentLossRecognisedInProfitOrLossPropertyPlantAndEquipment"}]
["/*",null,{"$f":"'822100 - Nota. Prop, plan y eq.'!$D$26","v":"Reversión de pérdidas por deterioro de valor reconocidas en el resultado del periodo, propiedades, planta y equipo"},{"$f":"'822100 - Nota. Prop, plan y eq.'!$C$26","v":"ifrs-full:ReversalOfImpairmentLossRecognisedInProfitOrLossPropertyPlantAndEquipment"}]
["/*",null,{"$f":"'822100 - Nota. Prop, plan y eq.'!$D$27","v":"Incrementos (disminuciones) de revaluaciones, propiedades, planta y equipo"},{"$f":"'822100 - Nota. Prop, plan y eq.'!$C$27","v":"ifrs-full:RevaluationIncreaseDecreasePropertyPlantAndEquipment"}]
["/*",null,{"$f":"'822100 - Nota. Prop, plan y eq.'!$D$28","v":"Pérdidas por deterioro de valor reconocidas en otro resultado integral, propiedades, planta y equipo"},{"$f":"'822100 - Nota. Prop, plan y eq.'!$C$28","v":"ifrs-full:ImpairmentLossRecognisedInOtherComprehensiveIncomePropertyPlantAndEquipment"}]
["/*",null,{"$f":"'822100 - Nota. Prop, plan y eq.'!$D$29","v":"Reversión de pérdidas por deterioro de valor reconocidas en otro resultado integral, propiedades, planta y equipo"},{"$f":"'822100 - Nota. Prop, plan y eq.'!$C$29","v":"ifrs-full:ReversalOfImpairmentLossRecognisedInOtherComprehensiveIncomePropertyPlantAndEquipment"}]
["/*",null,{"$f":"'822100 - Nota. Prop, plan y eq.'!$D$30","v":"Incrementos (disminuciones) por transferencias y otros cambios, propiedades, planta y equipo [resumen]"},{"$f":"'822100 - Nota. Prop, plan y eq.'!$C$30","v":"ifrs-full:IncreaseDecreaseThroughTransfersAndOtherChangesPropertyPlantAndEquipmentAbstract"}]
["/*",null,{"$f":"'822100 - Nota. Prop, plan y eq.'!$D$31","v":"Incrementos (disminuciones) por transferencias desde (hacia) propiedades de inversión, propiedades, planta y equipo"},{"$f":"'822100 - Nota. Prop, plan y eq.'!$C$31","v":"ifrs-full:IncreaseDecreaseThroughTransfersFromToInvestmentPropertyPropertyPlantAndEquipment"}]
["/*",null,{"$f":"'822100 - Nota. Prop, plan y eq.'!$D$32","v":"Incrementos (disminuciones) por transferencias desde construcciones en proceso , propiedades, planta y equipo"},{"$f":"'822100 - Nota. Prop, plan y eq.'!$C$32","v":"ifrs-full:IncreaseDecreaseThroughTransfersFromConstructionInProgressPropertyPlantAndEquipment"}]
["/*",null,{"$f":"'822100 - Nota. Prop, plan y eq.'!$D$33","v":"Incrementos (disminuciones) por otros cambios, propiedades, planta y equipo"},{"$f":"'822100 - Nota. Prop, plan y eq.'!$C$33","v":"ifrs-full:IncreaseDecreaseThroughOtherChangesPropertyPlantAndEquipment"}]
["",null,{"$f":"'822100 - Nota. Prop, plan y eq.'!$D$34","v":"Total incrementos (disminuciones) por transferencias y otros cambios, propiedades, planta y equipo"},{"$f":"'822100 - Nota. Prop, plan y eq.'!$C$34","v":"ifrs-full:IncreaseDecreaseThroughTransfersAndOtherChangesPropertyPlantAndEquipment"},0,"peso",{"$f":"'822100 - Nota. Prop, plan y eq.'!$I$34","v":0},800001965,"http://www.xbrl.org/scheme/companyName",{"$f":"Periodos!$C$3","v":"2017-01-01"},{"$f":"Periodos!$C$4","v":"2017-12-31"},{"$f":"'822100 - Nota. Prop, plan y eq.'!$D$11","v":"co-svsp-core_2017-12-31:PropiedadesPlantaYEquipoEje_G1"},{"$f":"'822100 - Nota. Prop, plan y eq.'!$I$10","v":"ifrs-full:ShipsMember"}]
["/*",null,{"$f":"'822100 - Nota. Prop, plan y eq.'!$D$35","v":"Disposiciones y retiros de servicio, propiedades, planta y equipo [resumen]"},{"$f":"'822100 - Nota. Prop, plan y eq.'!$C$35","v":"ifrs-full:DisposalsAndRetirementsPropertyPlantAndEquipmentAbstract"}]
["/*",null,{"$f":"'822100 - Nota. Prop, plan y eq.'!$D$36","v":"Disposiciones, propiedades, planta y equipo"},{"$f":"'822100 - Nota. Prop, plan y eq.'!$C$36","v":"ifrs-full:DisposalsPropertyPlantAndEquipment"}]
["/*",null,{"$f":"'822100 - Nota. Prop, plan y eq.'!$D$37","v":"Retiros, propiedades, planta y equipo"},{"$f":"'822100 - Nota. Prop, plan y eq.'!$C$37","v":"ifrs-full:RetirementsPropertyPlantAndEquipment"}]
["",null,{"$f":"'822100 - Nota. Prop, plan y eq.'!$D$38","v":"Total de disposiciones y retiros de servicio, propiedades, planta y equipo"},{"$f":"'822100 - Nota. Prop, plan y eq.'!$C$38","v":"ifrs-full:DisposalsAndRetirementsPropertyPlantAndEquipment"},0,"peso",{"$f":"'822100 - Nota. Prop, plan y eq.'!$I$38","v":0},800001965,"http://www.xbrl.org/scheme/companyName",{"$f":"Periodos!$C$3","v":"2017-01-01"},{"$f":"Periodos!$C$4","v":"2017-12-31"},{"$f":"'822100 - Nota. Prop, plan y eq.'!$D$11","v":"co-svsp-core_2017-12-31:PropiedadesPlantaYEquipoEje_G1"},{"$f":"'822100 - Nota. Prop, plan y eq.'!$I$10","v":"ifrs-full:ShipsMember"}]
["/*",null,{"$f":"'822100 - Nota. Prop, plan y eq.'!$D$39","v":"Disminuciones por clasificar como mantenidos para la venta, propiedades, planta y equipo"},{"$f":"'822100 - Nota. Prop, plan y eq.'!$C$39","v":"ifrs-full:DecreaseThroughClassifiedAsHeldForSalePropertyPlantAndEquipment"}]
["",null,{"$f":"'822100 - Nota. Prop, plan y eq.'!$D$40","v":"Total incremento (disminución) en propiedades, planta y equipo"},{"$f":"'822100 - Nota. Prop, plan y eq.'!$C$40","v":"ifrs-full:ChangesInPropertyPlantAndEquipment"},0,"peso",{"$f":"'822100 - Nota. Prop, plan y eq.'!$I$40","v":0},800001965,"http://www.xbrl.org/scheme/companyName",{"$f":"Periodos!$C$3","v":"2017-01-01"},{"$f":"Periodos!$C$4","v":"2017-12-31"},{"$f":"'822100 - Nota. Prop, plan y eq.'!$D$11","v":"co-svsp-core_2017-12-31:PropiedadesPlantaYEquipoEje_G1"},{"$f":"'822100 - Nota. Prop, plan y eq.'!$I$10","v":"ifrs-full:ShipsMember"}]
["",null,{"$f":"'822100 - Nota. Prop, plan y eq.'!$D$41","v":"Propiedades, planta y equipo al final del periodo"},{"$f":"'822100 - Nota. Prop, plan y eq.'!$C$41","v":"co-svsp-core_2017-12-31:PropertyPlantAndEquipmentEndOfPeriod"},0,"peso",{"$f":"'822100 - Nota. Prop, plan y eq.'!$I$41","v":0},800001965,"http://www.xbrl.org/scheme/companyName",{"$f":"Periodos!$C$3","v":"2017-01-01"},{"$f":"Periodos!$C$4","v":"2017-12-31"},{"$f":"'822100 - Nota. Prop, plan y eq.'!$D$11","v":"co-svsp-core_2017-12-31:PropiedadesPlantaYEquipoEje_G1"},{"$f":"'822100 - Nota. Prop, plan y eq.'!$I$10","v":"ifrs-full:ShipsMember"}]
["/*",null,"--06--"]
["/*",null,{"$f":"'822100 - Nota. Prop, plan y eq.'!$D$12","v":"Información a revelar detallada sobre propiedades, planta y equipo [partidas de los estados financieros]"},{"$f":"'822100 - Nota. Prop, plan y eq.'!$C$12","v":"ifrs-full:DisclosureOfPropertyPlantAndEquipmentLineItems"}]
["/*",null,{"$f":"'822100 - Nota. Prop, plan y eq.'!$D$13","v":"Bases de medición, propiedades, planta y equipo"},{"$f":"'822100 - Nota. Prop, plan y eq.'!$C$13","v":"ifrs-full:MeasurementBasesPropertyPlantAndEquipment"}]
["/*",null,{"$f":"'822100 - Nota. Prop, plan y eq.'!$D$14","v":"Método de depreciación, propiedades, planta y equipo"},{"$f":"'822100 - Nota. Prop, plan y eq.'!$C$14","v":"ifrs-full:DepreciationMethodPropertyPlantAndEquipment"}]
["/*",null,{"$f":"'822100 - Nota. Prop, plan y eq.'!$D$15","v":"Vidas útiles o tasas de depreciación, propiedades, planta y equipo"},{"$f":"'822100 - Nota. Prop, plan y eq.'!$C$15","v":"ifrs-full:UsefulLivesOrDepreciationRatesPropertyPlantAndEquipment"}]
["/*",null,{"$f":"'822100 - Nota. Prop, plan y eq.'!$D$16","v":"Fechas de vigencia de revaluación, propiedades, planta y equipo"},{"$f":"'822100 - Nota. Prop, plan y eq.'!$C$16","v":"ifrs-full:EffectiveDatesOfRevaluationPropertyPlantAndEquipment"}]
["/*",null,{"$f":"'822100 - Nota. Prop, plan y eq.'!$D$17","v":"Explicación de la implicación del tasador independiente en la revaluación, propiedades, planta y equipo"},{"$f":"'822100 - Nota. Prop, plan y eq.'!$C$17","v":"ifrs-full:ExplanationOfIndependentValuerUsedForRevaluationPropertyPlantAndEquipment"}]
["/*",null,{"$f":"'822100 - Nota. Prop, plan y eq.'!$D$18","v":"Explicación del método de revaluación y supuestos significativos, propiedad, planta y equipo"},{"$f":"'822100 - Nota. Prop, plan y eq.'!$C$18","v":"co-svsp-core_2017-12-31:ExplanationOfRevaluationMethodsAndSignificantAssumptionsPropertyPlantAndEquipment"}]
["/*",null,{"$f":"'822100 - Nota. Prop, plan y eq.'!$D$19","v":"Conciliación de cambios en propiedades, planta y equipo [resumen]"},{"$f":"'822100 - Nota. Prop, plan y eq.'!$C$19","v":"ifrs-full:ReconciliationOfChangesInPropertyPlantAndEquipmentAbstract"}]
["",null,{"$f":"'822100 - Nota. Prop, plan y eq.'!$D$20","v":"Propiedades, planta y equipo al comienzo del periodo"},{"$f":"'822100 - Nota. Prop, plan y eq.'!$C$20","v":"co-svsp-core_2017-12-31:PropertyPlantAndEquipmentBeginningOfPeriod"},0,"peso",{"$f":"'822100 - Nota. Prop, plan y eq.'!$J$20","v":0},800001965,"http://www.xbrl.org/scheme/companyName",{"$f":"Periodos!$C$3","v":"2017-01-01"},{"$f":"Periodos!$C$4","v":"2017-12-31"},{"$f":"'822100 - Nota. Prop, plan y eq.'!$D$11","v":"co-svsp-core_2017-12-31:PropiedadesPlantaYEquipoEje_G1"},{"$f":"'822100 - Nota. Prop, plan y eq.'!$J$10","v":"ifrs-full:AircraftMember"}]
["/*",null,{"$f":"'822100 - Nota. Prop, plan y eq.'!$D$21","v":"Cambios en propiedades, planta y equipo [resumen]"},{"$f":"'822100 - Nota. Prop, plan y eq.'!$C$21","v":"ifrs-full:ChangesInPropertyPlantAndEquipmentAbstract"}]
["/*",null,{"$f":"'822100 - Nota. Prop, plan y eq.'!$D$22","v":"Incrementos distintos de los procedentes de combinaciones de negocios, propiedades, planta y equipo"},{"$f":"'822100 - Nota. Prop, plan y eq.'!$C$22","v":"ifrs-full:AdditionsOtherThanThroughBusinessCombinationsPropertyPlantAndEquipment"}]
["/*",null,{"$f":"'822100 - Nota. Prop, plan y eq.'!$D$23","v":"Adquisiciones realizadas mediante combinaciones de negocios, propiedades, planta y equipo"},{"$f":"'822100 - Nota. Prop, plan y eq.'!$C$23","v":"ifrs-full:AcquisitionsThroughBusinessCombinationsPropertyPlantAndEquipment"}]
["/*",null,{"$f":"'822100 - Nota. Prop, plan y eq.'!$D$24","v":"Depreciación, propiedades, planta y equipo"},{"$f":"'822100 - Nota. Prop, plan y eq.'!$C$24","v":"ifrs-full:DepreciationPropertyPlantAndEquipment"}]
["/*",null,{"$f":"'822100 - Nota. Prop, plan y eq.'!$D$25","v":"Pérdidas por deterioro de valor reconocidas en el resultado del periodo, propiedades, planta y equipo"},{"$f":"'822100 - Nota. Prop, plan y eq.'!$C$25","v":"ifrs-full:ImpairmentLossRecognisedInProfitOrLossPropertyPlantAndEquipment"}]
["/*",null,{"$f":"'822100 - Nota. Prop, plan y eq.'!$D$26","v":"Reversión de pérdidas por deterioro de valor reconocidas en el resultado del periodo, propiedades, planta y equipo"},{"$f":"'822100 - Nota. Prop, plan y eq.'!$C$26","v":"ifrs-full:ReversalOfImpairmentLossRecognisedInProfitOrLossPropertyPlantAndEquipment"}]
["/*",null,{"$f":"'822100 - Nota. Prop, plan y eq.'!$D$27","v":"Incrementos (disminuciones) de revaluaciones, propiedades, planta y equipo"},{"$f":"'822100 - Nota. Prop, plan y eq.'!$C$27","v":"ifrs-full:RevaluationIncreaseDecreasePropertyPlantAndEquipment"}]
["/*",null,{"$f":"'822100 - Nota. Prop, plan y eq.'!$D$28","v":"Pérdidas por deterioro de valor reconocidas en otro resultado integral, propiedades, planta y equipo"},{"$f":"'822100 - Nota. Prop, plan y eq.'!$C$28","v":"ifrs-full:ImpairmentLossRecognisedInOtherComprehensiveIncomePropertyPlantAndEquipment"}]
["/*",null,{"$f":"'822100 - Nota. Prop, plan y eq.'!$D$29","v":"Reversión de pérdidas por deterioro de valor reconocidas en otro resultado integral, propiedades, planta y equipo"},{"$f":"'822100 - Nota. Prop, plan y eq.'!$C$29","v":"ifrs-full:ReversalOfImpairmentLossRecognisedInOtherComprehensiveIncomePropertyPlantAndEquipment"}]
["/*",null,{"$f":"'822100 - Nota. Prop, plan y eq.'!$D$30","v":"Incrementos (disminuciones) por transferencias y otros cambios, propiedades, planta y equipo [resumen]"},{"$f":"'822100 - Nota. Prop, plan y eq.'!$C$30","v":"ifrs-full:IncreaseDecreaseThroughTransfersAndOtherChangesPropertyPlantAndEquipmentAbstract"}]
["/*",null,{"$f":"'822100 - Nota. Prop, plan y eq.'!$D$31","v":"Incrementos (disminuciones) por transferencias desde (hacia) propiedades de inversión, propiedades, planta y equipo"},{"$f":"'822100 - Nota. Prop, plan y eq.'!$C$31","v":"ifrs-full:IncreaseDecreaseThroughTransfersFromToInvestmentPropertyPropertyPlantAndEquipment"}]
["/*",null,{"$f":"'822100 - Nota. Prop, plan y eq.'!$D$32","v":"Incrementos (disminuciones) por transferencias desde construcciones en proceso , propiedades, planta y equipo"},{"$f":"'822100 - Nota. Prop, plan y eq.'!$C$32","v":"ifrs-full:IncreaseDecreaseThroughTransfersFromConstructionInProgressPropertyPlantAndEquipment"}]
["/*",null,{"$f":"'822100 - Nota. Prop, plan y eq.'!$D$33","v":"Incrementos (disminuciones) por otros cambios, propiedades, planta y equipo"},{"$f":"'822100 - Nota. Prop, plan y eq.'!$C$33","v":"ifrs-full:IncreaseDecreaseThroughOtherChangesPropertyPlantAndEquipment"}]
["",null,{"$f":"'822100 - Nota. Prop, plan y eq.'!$D$34","v":"Total incrementos (disminuciones) por transferencias y otros cambios, propiedades, planta y equipo"},{"$f":"'822100 - Nota. Prop, plan y eq.'!$C$34","v":"ifrs-full:IncreaseDecreaseThroughTransfersAndOtherChangesPropertyPlantAndEquipment"},0,"peso",{"$f":"'822100 - Nota. Prop, plan y eq.'!$J$34","v":0},800001965,"http://www.xbrl.org/scheme/companyName",{"$f":"Periodos!$C$3","v":"2017-01-01"},{"$f":"Periodos!$C$4","v":"2017-12-31"},{"$f":"'822100 - Nota. Prop, plan y eq.'!$D$11","v":"co-svsp-core_2017-12-31:PropiedadesPlantaYEquipoEje_G1"},{"$f":"'822100 - Nota. Prop, plan y eq.'!$J$10","v":"ifrs-full:AircraftMember"}]
["/*",null,{"$f":"'822100 - Nota. Prop, plan y eq.'!$D$35","v":"Disposiciones y retiros de servicio, propiedades, planta y equipo [resumen]"},{"$f":"'822100 - Nota. Prop, plan y eq.'!$C$35","v":"ifrs-full:DisposalsAndRetirementsPropertyPlantAndEquipmentAbstract"}]
["/*",null,{"$f":"'822100 - Nota. Prop, plan y eq.'!$D$36","v":"Disposiciones, propiedades, planta y equipo"},{"$f":"'822100 - Nota. Prop, plan y eq.'!$C$36","v":"ifrs-full:DisposalsPropertyPlantAndEquipment"}]
["/*",null,{"$f":"'822100 - Nota. Prop, plan y eq.'!$D$37","v":"Retiros, propiedades, planta y equipo"},{"$f":"'822100 - Nota. Prop, plan y eq.'!$C$37","v":"ifrs-full:RetirementsPropertyPlantAndEquipment"}]
["",null,{"$f":"'822100 - Nota. Prop, plan y eq.'!$D$38","v":"Total de disposiciones y retiros de servicio, propiedades, planta y equipo"},{"$f":"'822100 - Nota. Prop, plan y eq.'!$C$38","v":"ifrs-full:DisposalsAndRetirementsPropertyPlantAndEquipment"},0,"peso",{"$f":"'822100 - Nota. Prop, plan y eq.'!$J$38","v":0},800001965,"http://www.xbrl.org/scheme/companyName",{"$f":"Periodos!$C$3","v":"2017-01-01"},{"$f":"Periodos!$C$4","v":"2017-12-31"},{"$f":"'822100 - Nota. Prop, plan y eq.'!$D$11","v":"co-svsp-core_2017-12-31:PropiedadesPlantaYEquipoEje_G1"},{"$f":"'822100 - Nota. Prop, plan y eq.'!$J$10","v":"ifrs-full:AircraftMember"}]
["/*",null,{"$f":"'822100 - Nota. Prop, plan y eq.'!$D$39","v":"Disminuciones por clasificar como mantenidos para la venta, propiedades, planta y equipo"},{"$f":"'822100 - Nota. Prop, plan y eq.'!$C$39","v":"ifrs-full:DecreaseThroughClassifiedAsHeldForSalePropertyPlantAndEquipment"}]
["",null,{"$f":"'822100 - Nota. Prop, plan y eq.'!$D$40","v":"Total incremento (disminución) en propiedades, planta y equipo"},{"$f":"'822100 - Nota. Prop, plan y eq.'!$C$40","v":"ifrs-full:ChangesInPropertyPlantAndEquipment"},0,"peso",{"$f":"'822100 - Nota. Prop, plan y eq.'!$J$40","v":0},800001965,"http://www.xbrl.org/scheme/companyName",{"$f":"Periodos!$C$3","v":"2017-01-01"},{"$f":"Periodos!$C$4","v":"2017-12-31"},{"$f":"'822100 - Nota. Prop, plan y eq.'!$D$11","v":"co-svsp-core_2017-12-31:PropiedadesPlantaYEquipoEje_G1"},{"$f":"'822100 - Nota. Prop, plan y eq.'!$J$10","v":"ifrs-full:AircraftMember"}]
["",null,{"$f":"'822100 - Nota. Prop, plan y eq.'!$D$41","v":"Propiedades, planta y equipo al final del periodo"},{"$f":"'822100 - Nota. Prop, plan y eq.'!$C$41","v":"co-svsp-core_2017-12-31:PropertyPlantAndEquipmentEndOfPeriod"},0,"peso",{"$f":"'822100 - Nota. Prop, plan y eq.'!$J$41","v":0},800001965,"http://www.xbrl.org/scheme/companyName",{"$f":"Periodos!$C$3","v":"2017-01-01"},{"$f":"Periodos!$C$4","v":"2017-12-31"},{"$f":"'822100 - Nota. Prop, plan y eq.'!$D$11","v":"co-svsp-core_2017-12-31:PropiedadesPlantaYEquipoEje_G1"},{"$f":"'822100 - Nota. Prop, plan y eq.'!$J$10","v":"ifrs-full:AircraftMember"}]
["/*",null,"--07--"]
["/*",null,{"$f":"'822100 - Nota. Prop, plan y eq.'!$D$12","v":"Información a revelar detallada sobre propiedades, planta y equipo [partidas de los estados financieros]"},{"$f":"'822100 - Nota. Prop, plan y eq.'!$C$12","v":"ifrs-full:DisclosureOfPropertyPlantAndEquipmentLineItems"}]
["/*",null,{"$f":"'822100 - Nota. Prop, plan y eq.'!$D$13","v":"Bases de medición, propiedades, planta y equipo"},{"$f":"'822100 - Nota. Prop, plan y eq.'!$C$13","v":"ifrs-full:MeasurementBasesPropertyPlantAndEquipment"}]
["/*",null,{"$f":"'822100 - Nota. Prop, plan y eq.'!$D$14","v":"Método de depreciación, propiedades, planta y equipo"},{"$f":"'822100 - Nota. Prop, plan y eq.'!$C$14","v":"ifrs-full:DepreciationMethodPropertyPlantAndEquipment"}]
[{"$f":"IF(G6049=\"\",\"/*\",\"\")","v":"/*"},null,{"$f":"'822100 - Nota. Prop, plan y eq.'!$D$15","v":"Vidas útiles o tasas de depreciación, propiedades, planta y equipo"},{"$f":"'822100 - Nota. Prop, plan y eq.'!$C$15","v":"ifrs-full:UsefulLivesOrDepreciationRatesPropertyPlantAndEquipment"}]
["/*",null,{"$f":"'822100 - Nota. Prop, plan y eq.'!$D$16","v":"Fechas de vigencia de revaluación, propiedades, planta y equipo"},{"$f":"'822100 - Nota. Prop, plan y eq.'!$C$16","v":"ifrs-full:EffectiveDatesOfRevaluationPropertyPlantAndEquipment"}]
["/*",null,{"$f":"'822100 - Nota. Prop, plan y eq.'!$D$17","v":"Explicación de la implicación del tasador independiente en la revaluación, propiedades, planta y equipo"},{"$f":"'822100 - Nota. Prop, plan y eq.'!$C$17","v":"ifrs-full:ExplanationOfIndependentValuerUsedForRevaluationPropertyPlantAndEquipment"}]
["/*",null,{"$f":"'822100 - Nota. Prop, plan y eq.'!$D$18","v":"Explicación del método de revaluación y supuestos significativos, propiedad, planta y equipo"},{"$f":"'822100 - Nota. Prop, plan y eq.'!$C$18","v":"co-svsp-core_2017-12-31:ExplanationOfRevaluationMethodsAndSignificantAssumptionsPropertyPlantAndEquipment"}]
["/*",null,{"$f":"'822100 - Nota. Prop, plan y eq.'!$D$19","v":"Conciliación de cambios en propiedades, planta y equipo [resumen]"},{"$f":"'822100 - Nota. Prop, plan y eq.'!$C$19","v":"ifrs-full:ReconciliationOfChangesInPropertyPlantAndEquipmentAbstract"}]
["",null,{"$f":"'822100 - Nota. Prop, plan y eq.'!$D$20","v":"Propiedades, planta y equipo al comienzo del periodo"},{"$f":"'822100 - Nota. Prop, plan y eq.'!$C$20","v":"co-svsp-core_2017-12-31:PropertyPlantAndEquipmentBeginningOfPeriod"},0,"peso",{"$f":"'822100 - Nota. Prop, plan y eq.'!$K$20","v":0},800001965,"http://www.xbrl.org/scheme/companyName",{"$f":"Periodos!$C$3","v":"2017-01-01"},{"$f":"Periodos!$C$4","v":"2017-12-31"},{"$f":"'822100 - Nota. Prop, plan y eq.'!$D$11","v":"co-svsp-core_2017-12-31:PropiedadesPlantaYEquipoEje_G1"},{"$f":"'822100 - Nota. Prop, plan y eq.'!$K$10","v":"co-svsp-core_2017-12-31:AutomovilesBlindandosMiembro"}]
["/*",null,{"$f":"'822100 - Nota. Prop, plan y eq.'!$D$21","v":"Cambios en propiedades, planta y equipo [resumen]"},{"$f":"'822100 - Nota. Prop, plan y eq.'!$C$21","v":"ifrs-full:ChangesInPropertyPlantAndEquipmentAbstract"}]
["/*",null,{"$f":"'822100 - Nota. Prop, plan y eq.'!$D$22","v":"Incrementos distintos de los procedentes de combinaciones de negocios, propiedades, planta y equipo"},{"$f":"'822100 - Nota. Prop, plan y eq.'!$C$22","v":"ifrs-full:AdditionsOtherThanThroughBusinessCombinationsPropertyPlantAndEquipment"}]
["/*",null,{"$f":"'822100 - Nota. Prop, plan y eq.'!$D$23","v":"Adquisiciones realizadas mediante combinaciones de negocios, propiedades, planta y equipo"},{"$f":"'822100 - Nota. Prop, plan y eq.'!$C$23","v":"ifrs-full:AcquisitionsThroughBusinessCombinationsPropertyPlantAndEquipment"}]
["/*",null,{"$f":"'822100 - Nota. Prop, plan y eq.'!$D$24","v":"Depreciación, propiedades, planta y equipo"},{"$f":"'822100 - Nota. Prop, plan y eq.'!$C$24","v":"ifrs-full:DepreciationPropertyPlantAndEquipment"}]
["/*",null,{"$f":"'822100 - Nota. Prop, plan y eq.'!$D$25","v":"Pérdidas por deterioro de valor reconocidas en el resultado del periodo, propiedades, planta y equipo"},{"$f":"'822100 - Nota. Prop, plan y eq.'!$C$25","v":"ifrs-full:ImpairmentLossRecognisedInProfitOrLossPropertyPlantAndEquipment"}]
["/*",null,{"$f":"'822100 - Nota. Prop, plan y eq.'!$D$26","v":"Reversión de pérdidas por deterioro de valor reconocidas en el resultado del periodo, propiedades, planta y equipo"},{"$f":"'822100 - Nota. Prop, plan y eq.'!$C$26","v":"ifrs-full:ReversalOfImpairmentLossRecognisedInProfitOrLossPropertyPlantAndEquipment"}]
["/*",null,{"$f":"'822100 - Nota. Prop, plan y eq.'!$D$27","v":"Incrementos (disminuciones) de revaluaciones, propiedades, planta y equipo"},{"$f":"'822100 - Nota. Prop, plan y eq.'!$C$27","v":"ifrs-full:RevaluationIncreaseDecreasePropertyPlantAndEquipment"}]
["/*",null,{"$f":"'822100 - Nota. Prop, plan y eq.'!$D$28","v":"Pérdidas por deterioro de valor reconocidas en otro resultado integral, propiedades, planta y equipo"},{"$f":"'822100 - Nota. Prop, plan y eq.'!$C$28","v":"ifrs-full:ImpairmentLossRecognisedInOtherComprehensiveIncomePropertyPlantAndEquipment"}]
["/*",null,{"$f":"'822100 - Nota. Prop, plan y eq.'!$D$29","v":"Reversión de pérdidas por deterioro de valor reconocidas en otro resultado integral, propiedades, planta y equipo"},{"$f":"'822100 - Nota. Prop, plan y eq.'!$C$29","v":"ifrs-full:ReversalOfImpairmentLossRecognisedInOtherComprehensiveIncomePropertyPlantAndEquipment"}]
["/*",null,{"$f":"'822100 - Nota. Prop, plan y eq.'!$D$30","v":"Incrementos (disminuciones) por transferencias y otros cambios, propiedades, planta y equipo [resumen]"},{"$f":"'822100 - Nota. Prop, plan y eq.'!$C$30","v":"ifrs-full:IncreaseDecreaseThroughTransfersAndOtherChangesPropertyPlantAndEquipmentAbstract"}]
["/*",null,{"$f":"'822100 - Nota. Prop, plan y eq.'!$D$31","v":"Incrementos (disminuciones) por transferencias desde (hacia) propiedades de inversión, propiedades, planta y equipo"},{"$f":"'822100 - Nota. Prop, plan y eq.'!$C$31","v":"ifrs-full:IncreaseDecreaseThroughTransfersFromToInvestmentPropertyPropertyPlantAndEquipment"}]
["/*",null,{"$f":"'822100 - Nota. Prop, plan y eq.'!$D$32","v":"Incrementos (disminuciones) por transferencias desde construcciones en proceso , propiedades, planta y equipo"},{"$f":"'822100 - Nota. Prop, plan y eq.'!$C$32","v":"ifrs-full:IncreaseDecreaseThroughTransfersFromConstructionInProgressPropertyPlantAndEquipment"}]
["/*",null,{"$f":"'822100 - Nota. Prop, plan y eq.'!$D$33","v":"Incrementos (disminuciones) por otros cambios, propiedades, planta y equipo"},{"$f":"'822100 - Nota. Prop, plan y eq.'!$C$33","v":"ifrs-full:IncreaseDecreaseThroughOtherChangesPropertyPlantAndEquipment"}]
["",null,{"$f":"'822100 - Nota. Prop, plan y eq.'!$D$34","v":"Total incrementos (disminuciones) por transferencias y otros cambios, propiedades, planta y equipo"},{"$f":"'822100 - Nota. Prop, plan y eq.'!$C$34","v":"ifrs-full:IncreaseDecreaseThroughTransfersAndOtherChangesPropertyPlantAndEquipment"},0,"peso",{"$f":"'822100 - Nota. Prop, plan y eq.'!$K$34","v":0},800001965,"http://www.xbrl.org/scheme/companyName",{"$f":"Periodos!$C$3","v":"2017-01-01"},{"$f":"Periodos!$C$4","v":"2017-12-31"},{"$f":"'822100 - Nota. Prop, plan y eq.'!$D$11","v":"co-svsp-core_2017-12-31:PropiedadesPlantaYEquipoEje_G1"},{"$f":"'822100 - Nota. Prop, plan y eq.'!$K$10","v":"co-svsp-core_2017-12-31:AutomovilesBlindandosMiembro"}]
["/*",null,{"$f":"'822100 - Nota. Prop, plan y eq.'!$D$35","v":"Disposiciones y retiros de servicio, propiedades, planta y equipo [resumen]"},{"$f":"'822100 - Nota. Prop, plan y eq.'!$C$35","v":"ifrs-full:DisposalsAndRetirementsPropertyPlantAndEquipmentAbstract"}]
["/*",null,{"$f":"'822100 - Nota. Prop, plan y eq.'!$D$36","v":"Disposiciones, propiedades, planta y equipo"},{"$f":"'822100 - Nota. Prop, plan y eq.'!$C$36","v":"ifrs-full:DisposalsPropertyPlantAndEquipment"}]
["/*",null,{"$f":"'822100 - Nota. Prop, plan y eq.'!$D$37","v":"Retiros, propiedades, planta y equipo"},{"$f":"'822100 - Nota. Prop, plan y eq.'!$C$37","v":"ifrs-full:RetirementsPropertyPlantAndEquipment"}]
["",null,{"$f":"'822100 - Nota. Prop, plan y eq.'!$D$38","v":"Total de disposiciones y retiros de servicio, propiedades, planta y equipo"},{"$f":"'822100 - Nota. Prop, plan y eq.'!$C$38","v":"ifrs-full:DisposalsAndRetirementsPropertyPlantAndEquipment"},0,"peso",{"$f":"'822100 - Nota. Prop, plan y eq.'!$K$38","v":0},800001965,"http://www.xbrl.org/scheme/companyName",{"$f":"Periodos!$C$3","v":"2017-01-01"},{"$f":"Periodos!$C$4","v":"2017-12-31"},{"$f":"'822100 - Nota. Prop, plan y eq.'!$D$11","v":"co-svsp-core_2017-12-31:PropiedadesPlantaYEquipoEje_G1"},{"$f":"'822100 - Nota. Prop, plan y eq.'!$K$10","v":"co-svsp-core_2017-12-31:AutomovilesBlindandosMiembro"}]
["/*",null,{"$f":"'822100 - Nota. Prop, plan y eq.'!$D$39","v":"Disminuciones por clasificar como mantenidos para la venta, propiedades, planta y equipo"},{"$f":"'822100 - Nota. Prop, plan y eq.'!$C$39","v":"ifrs-full:DecreaseThroughClassifiedAsHeldForSalePropertyPlantAndEquipment"}]
["",null,{"$f":"'822100 - Nota. Prop, plan y eq.'!$D$40","v":"Total incremento (disminución) en propiedades, planta y equipo"},{"$f":"'822100 - Nota. Prop, plan y eq.'!$C$40","v":"ifrs-full:ChangesInPropertyPlantAndEquipment"},0,"peso",{"$f":"'822100 - Nota. Prop, plan y eq.'!$K$40","v":0},800001965,"http://www.xbrl.org/scheme/companyName",{"$f":"Periodos!$C$3","v":"2017-01-01"},{"$f":"Periodos!$C$4","v":"2017-12-31"},{"$f":"'822100 - Nota. Prop, plan y eq.'!$D$11","v":"co-svsp-core_2017-12-31:PropiedadesPlantaYEquipoEje_G1"},{"$f":"'822100 - Nota. Prop, plan y eq.'!$K$10","v":"co-svsp-core_2017-12-31:AutomovilesBlindandosMiembro"}]
["",null,{"$f":"'822100 - Nota. Prop, plan y eq.'!$D$41","v":"Propiedades, planta y equipo al final del periodo"},{"$f":"'822100 - Nota. Prop, plan y eq.'!$C$41","v":"co-svsp-core_2017-12-31:PropertyPlantAndEquipmentEndOfPeriod"},0,"peso",{"$f":"'822100 - Nota. Prop, plan y eq.'!$K$41","v":0},800001965,"http://www.xbrl.org/scheme/companyName",{"$f":"Periodos!$C$3","v":"2017-01-01"},{"$f":"Periodos!$C$4","v":"2017-12-31"},{"$f":"'822100 - Nota. Prop, plan y eq.'!$D$11","v":"co-svsp-core_2017-12-31:PropiedadesPlantaYEquipoEje_G1"},{"$f":"'822100 - Nota. Prop, plan y eq.'!$K$10","v":"co-svsp-core_2017-12-31:AutomovilesBlindandosMiembro"}]
["/*",null,"--08--"]
["/*",null,{"$f":"'822100 - Nota. Prop, plan y eq.'!$D$12","v":"Información a revelar detallada sobre propiedades, planta y equipo [partidas de los estados financieros]"},{"$f":"'822100 - Nota. Prop, plan y eq.'!$C$12","v":"ifrs-full:DisclosureOfPropertyPlantAndEquipmentLineItems"}]
["/*",null,{"$f":"'822100 - Nota. Prop, plan y eq.'!$D$13","v":"Bases de medición, propiedades, planta y equipo"},{"$f":"'822100 - Nota. Prop, plan y eq.'!$C$13","v":"ifrs-full:MeasurementBasesPropertyPlantAndEquipment"}]
["/*",null,{"$f":"'822100 - Nota. Prop, plan y eq.'!$D$14","v":"Método de depreciación, propiedades, planta y equipo"},{"$f":"'822100 - Nota. Prop, plan y eq.'!$C$14","v":"ifrs-full:DepreciationMethodPropertyPlantAndEquipment"}]
["/*",null,{"$f":"'822100 - Nota. Prop, plan y eq.'!$D$15","v":"Vidas útiles o tasas de depreciación, propiedades, planta y equipo"},{"$f":"'822100 - Nota. Prop, plan y eq.'!$C$15","v":"ifrs-full:UsefulLivesOrDepreciationRatesPropertyPlantAndEquipment"}]
["/*",null,{"$f":"'822100 - Nota. Prop, plan y eq.'!$D$16","v":"Fechas de vigencia de revaluación, propiedades, planta y equipo"},{"$f":"'822100 - Nota. Prop, plan y eq.'!$C$16","v":"ifrs-full:EffectiveDatesOfRevaluationPropertyPlantAndEquipment"}]
["/*",null,{"$f":"'822100 - Nota. Prop, plan y eq.'!$D$17","v":"Explicación de la implicación del tasador independiente en la revaluación, propiedades, planta y equipo"},{"$f":"'822100 - Nota. Prop, plan y eq.'!$C$17","v":"ifrs-full:ExplanationOfIndependentValuerUsedForRevaluationPropertyPlantAndEquipment"}]
["/*",null,{"$f":"'822100 - Nota. Prop, plan y eq.'!$D$18","v":"Explicación del método de revaluación y supuestos significativos, propiedad, planta y equipo"},{"$f":"'822100 - Nota. Prop, plan y eq.'!$C$18","v":"co-svsp-core_2017-12-31:ExplanationOfRevaluationMethodsAndSignificantAssumptionsPropertyPlantAndEquipment"}]
["/*",null,{"$f":"'822100 - Nota. Prop, plan y eq.'!$D$19","v":"Conciliación de cambios en propiedades, planta y equipo [resumen]"},{"$f":"'822100 - Nota. Prop, plan y eq.'!$C$19","v":"ifrs-full:ReconciliationOfChangesInPropertyPlantAndEquipmentAbstract"}]
["",null,{"$f":"'822100 - Nota. Prop, plan y eq.'!$D$20","v":"Propiedades, planta y equipo al comienzo del periodo"},{"$f":"'822100 - Nota. Prop, plan y eq.'!$C$20","v":"co-svsp-core_2017-12-31:PropertyPlantAndEquipmentBeginningOfPeriod"},0,"peso",{"$f":"'822100 - Nota. Prop, plan y eq.'!$L$20","v":0},800001965,"http://www.xbrl.org/scheme/companyName",{"$f":"Periodos!$C$3","v":"2017-01-01"},{"$f":"Periodos!$C$4","v":"2017-12-31"},{"$f":"'822100 - Nota. Prop, plan y eq.'!$D$11","v":"co-svsp-core_2017-12-31:PropiedadesPlantaYEquipoEje_G1"},{"$f":"'822100 - Nota. Prop, plan y eq.'!$L$10","v":"co-svsp-core_2017-12-31:OtrosVehiculosMiembro"}]
["/*",null,{"$f":"'822100 - Nota. Prop, plan y eq.'!$D$21","v":"Cambios en propiedades, planta y equipo [resumen]"},{"$f":"'822100 - Nota. Prop, plan y eq.'!$C$21","v":"ifrs-full:ChangesInPropertyPlantAndEquipmentAbstract"}]
["/*",null,{"$f":"'822100 - Nota. Prop, plan y eq.'!$D$22","v":"Incrementos distintos de los procedentes de combinaciones de negocios, propiedades, planta y equipo"},{"$f":"'822100 - Nota. Prop, plan y eq.'!$C$22","v":"ifrs-full:AdditionsOtherThanThroughBusinessCombinationsPropertyPlantAndEquipment"}]
["/*",null,{"$f":"'822100 - Nota. Prop, plan y eq.'!$D$23","v":"Adquisiciones realizadas mediante combinaciones de negocios, propiedades, planta y equipo"},{"$f":"'822100 - Nota. Prop, plan y eq.'!$C$23","v":"ifrs-full:AcquisitionsThroughBusinessCombinationsPropertyPlantAndEquipment"}]
["/*",null,{"$f":"'822100 - Nota. Prop, plan y eq.'!$D$24","v":"Depreciación, propiedades, planta y equipo"},{"$f":"'822100 - Nota. Prop, plan y eq.'!$C$24","v":"ifrs-full:DepreciationPropertyPlantAndEquipment"}]
["/*",null,{"$f":"'822100 - Nota. Prop, plan y eq.'!$D$25","v":"Pérdidas por deterioro de valor reconocidas en el resultado del periodo, propiedades, planta y equipo"},{"$f":"'822100 - Nota. Prop, plan y eq.'!$C$25","v":"ifrs-full:ImpairmentLossRecognisedInProfitOrLossPropertyPlantAndEquipment"}]
["/*",null,{"$f":"'822100 - Nota. Prop, plan y eq.'!$D$26","v":"Reversión de pérdidas por deterioro de valor reconocidas en el resultado del periodo, propiedades, planta y equipo"},{"$f":"'822100 - Nota. Prop, plan y eq.'!$C$26","v":"ifrs-full:ReversalOfImpairmentLossRecognisedInProfitOrLossPropertyPlantAndEquipment"}]
["/*",null,{"$f":"'822100 - Nota. Prop, plan y eq.'!$D$27","v":"Incrementos (disminuciones) de revaluaciones, propiedades, planta y equipo"},{"$f":"'822100 - Nota. Prop, plan y eq.'!$C$27","v":"ifrs-full:RevaluationIncreaseDecreasePropertyPlantAndEquipment"}]
["/*",null,{"$f":"'822100 - Nota. Prop, plan y eq.'!$D$28","v":"Pérdidas por deterioro de valor reconocidas en otro resultado integral, propiedades, planta y equipo"},{"$f":"'822100 - Nota. Prop, plan y eq.'!$C$28","v":"ifrs-full:ImpairmentLossRecognisedInOtherComprehensiveIncomePropertyPlantAndEquipment"}]
["/*",null,{"$f":"'822100 - Nota. Prop, plan y eq.'!$D$29","v":"Reversión de pérdidas por deterioro de valor reconocidas en otro resultado integral, propiedades, planta y equipo"},{"$f":"'822100 - Nota. Prop, plan y eq.'!$C$29","v":"ifrs-full:ReversalOfImpairmentLossRecognisedInOtherComprehensiveIncomePropertyPlantAndEquipment"}]
["/*",null,{"$f":"'822100 - Nota. Prop, plan y eq.'!$D$30","v":"Incrementos (disminuciones) por transferencias y otros cambios, propiedades, planta y equipo [resumen]"},{"$f":"'822100 - Nota. Prop, plan y eq.'!$C$30","v":"ifrs-full:IncreaseDecreaseThroughTransfersAndOtherChangesPropertyPlantAndEquipmentAbstract"}]
["/*",null,{"$f":"'822100 - Nota. Prop, plan y eq.'!$D$31","v":"Incrementos (disminuciones) por transferencias desde (hacia) propiedades de inversión, propiedades, planta y equipo"},{"$f":"'822100 - Nota. Prop, plan y eq.'!$C$31","v":"ifrs-full:IncreaseDecreaseThroughTransfersFromToInvestmentPropertyPropertyPlantAndEquipment"}]
["/*",null,{"$f":"'822100 - Nota. Prop, plan y eq.'!$D$32","v":"Incrementos (disminuciones) por transferencias desde construcciones en proceso , propiedades, planta y equipo"},{"$f":"'822100 - Nota. Prop, plan y eq.'!$C$32","v":"ifrs-full:IncreaseDecreaseThroughTransfersFromConstructionInProgressPropertyPlantAndEquipment"}]
["/*",null,{"$f":"'822100 - Nota. Prop, plan y eq.'!$D$33","v":"Incrementos (disminuciones) por otros cambios, propiedades, planta y equipo"},{"$f":"'822100 - Nota. Prop, plan y eq.'!$C$33","v":"ifrs-full:IncreaseDecreaseThroughOtherChangesPropertyPlantAndEquipment"}]
["",null,{"$f":"'822100 - Nota. Prop, plan y eq.'!$D$34","v":"Total incrementos (disminuciones) por transferencias y otros cambios, propiedades, planta y equipo"},{"$f":"'822100 - Nota. Prop, plan y eq.'!$C$34","v":"ifrs-full:IncreaseDecreaseThroughTransfersAndOtherChangesPropertyPlantAndEquipment"},0,"peso",{"$f":"'822100 - Nota. Prop, plan y eq.'!$L$34","v":0},800001965,"http://www.xbrl.org/scheme/companyName",{"$f":"Periodos!$C$3","v":"2017-01-01"},{"$f":"Periodos!$C$4","v":"2017-12-31"},{"$f":"'822100 - Nota. Prop, plan y eq.'!$D$11","v":"co-svsp-core_2017-12-31:PropiedadesPlantaYEquipoEje_G1"},{"$f":"'822100 - Nota. Prop, plan y eq.'!$L$10","v":"co-svsp-core_2017-12-31:OtrosVehiculosMiembro"}]
["/*",null,{"$f":"'822100 - Nota. Prop, plan y eq.'!$D$35","v":"Disposiciones y retiros de servicio, propiedades, planta y equipo [resumen]"},{"$f":"'822100 - Nota. Prop, plan y eq.'!$C$35","v":"ifrs-full:DisposalsAndRetirementsPropertyPlantAndEquipmentAbstract"}]
["/*",null,{"$f":"'822100 - Nota. Prop, plan y eq.'!$D$36","v":"Disposiciones, propiedades, planta y equipo"},{"$f":"'822100 - Nota. Prop, plan y eq.'!$C$36","v":"ifrs-full:DisposalsPropertyPlantAndEquipment"}]
["/*",null,{"$f":"'822100 - Nota. Prop, plan y eq.'!$D$37","v":"Retiros, propiedades, planta y equipo"},{"$f":"'822100 - Nota. Prop, plan y eq.'!$C$37","v":"ifrs-full:RetirementsPropertyPlantAndEquipment"}]
["",null,{"$f":"'822100 - Nota. Prop, plan y eq.'!$D$38","v":"Total de disposiciones y retiros de servicio, propiedades, planta y equipo"},{"$f":"'822100 - Nota. Prop, plan y eq.'!$C$38","v":"ifrs-full:DisposalsAndRetirementsPropertyPlantAndEquipment"},0,"peso",{"$f":"'822100 - Nota. Prop, plan y eq.'!$L$38","v":0},800001965,"http://www.xbrl.org/scheme/companyName",{"$f":"Periodos!$C$3","v":"2017-01-01"},{"$f":"Periodos!$C$4","v":"2017-12-31"},{"$f":"'822100 - Nota. Prop, plan y eq.'!$D$11","v":"co-svsp-core_2017-12-31:PropiedadesPlantaYEquipoEje_G1"},{"$f":"'822100 - Nota. Prop, plan y eq.'!$L$10","v":"co-svsp-core_2017-12-31:OtrosVehiculosMiembro"}]
["/*",null,{"$f":"'822100 - Nota. Prop, plan y eq.'!$D$39","v":"Disminuciones por clasificar como mantenidos para la venta, propiedades, planta y equipo"},{"$f":"'822100 - Nota. Prop, plan y eq.'!$C$39","v":"ifrs-full:DecreaseThroughClassifiedAsHeldForSalePropertyPlantAndEquipment"}]
["",null,{"$f":"'822100 - Nota. Prop, plan y eq.'!$D$40","v":"Total incremento (disminución) en propiedades, planta y equipo"},{"$f":"'822100 - Nota. Prop, plan y eq.'!$C$40","v":"ifrs-full:ChangesInPropertyPlantAndEquipment"},0,"peso",{"$f":"'822100 - Nota. Prop, plan y eq.'!$L$40","v":0},800001965,"http://www.xbrl.org/scheme/companyName",{"$f":"Periodos!$C$3","v":"2017-01-01"},{"$f":"Periodos!$C$4","v":"2017-12-31"},{"$f":"'822100 - Nota. Prop, plan y eq.'!$D$11","v":"co-svsp-core_2017-12-31:PropiedadesPlantaYEquipoEje_G1"},{"$f":"'822100 - Nota. Prop, plan y eq.'!$L$10","v":"co-svsp-core_2017-12-31:OtrosVehiculosMiembro"}]
["",null,{"$f":"'822100 - Nota. Prop, plan y eq.'!$D$41","v":"Propiedades, planta y equipo al final del periodo"},{"$f":"'822100 - Nota. Prop, plan y eq.'!$C$41","v":"co-svsp-core_2017-12-31:PropertyPlantAndEquipmentEndOfPeriod"},0,"peso",{"$f":"'822100 - Nota. Prop, plan y eq.'!$L$41","v":0},800001965,"http://www.xbrl.org/scheme/companyName",{"$f":"Periodos!$C$3","v":"2017-01-01"},{"$f":"Periodos!$C$4","v":"2017-12-31"},{"$f":"'822100 - Nota. Prop, plan y eq.'!$D$11","v":"co-svsp-core_2017-12-31:PropiedadesPlantaYEquipoEje_G1"},{"$f":"'822100 - Nota. Prop, plan y eq.'!$L$10","v":"co-svsp-core_2017-12-31:OtrosVehiculosMiembro"}]
["/*",null,"--09--"]
["/*",null,{"$f":"'822100 - Nota. Prop, plan y eq.'!$D$12","v":"Información a revelar detallada sobre propiedades, planta y equipo [partidas de los estados financieros]"},{"$f":"'822100 - Nota. Prop, plan y eq.'!$C$12","v":"ifrs-full:DisclosureOfPropertyPlantAndEquipmentLineItems"}]
["/*",null,{"$f":"'822100 - Nota. Prop, plan y eq.'!$D$13","v":"Bases de medición, propiedades, planta y equipo"},{"$f":"'822100 - Nota. Prop, plan y eq.'!$C$13","v":"ifrs-full:MeasurementBasesPropertyPlantAndEquipment"}]
["/*",null,{"$f":"'822100 - Nota. Prop, plan y eq.'!$D$14","v":"Método de depreciación, propiedades, planta y equipo"},{"$f":"'822100 - Nota. Prop, plan y eq.'!$C$14","v":"ifrs-full:DepreciationMethodPropertyPlantAndEquipment"}]
["/*",null,{"$f":"'822100 - Nota. Prop, plan y eq.'!$D$15","v":"Vidas útiles o tasas de depreciación, propiedades, planta y equipo"},{"$f":"'822100 - Nota. Prop, plan y eq.'!$C$15","v":"ifrs-full:UsefulLivesOrDepreciationRatesPropertyPlantAndEquipment"}]
["/*",null,{"$f":"'822100 - Nota. Prop, plan y eq.'!$D$16","v":"Fechas de vigencia de revaluación, propiedades, planta y equipo"},{"$f":"'822100 - Nota. Prop, plan y eq.'!$C$16","v":"ifrs-full:EffectiveDatesOfRevaluationPropertyPlantAndEquipment"}]
[{"$f":"IF(G6113=\"\",\"/*\",\"\")","v":"/*"},null,{"$f":"'822100 - Nota. Prop, plan y eq.'!$D$17","v":"Explicación de la implicación del tasador independiente en la revaluación, propiedades, planta y equipo"},{"$f":"'822100 - Nota. Prop, plan y eq.'!$C$17","v":"ifrs-full:ExplanationOfIndependentValuerUsedForRevaluationPropertyPlantAndEquipment"}]
["/*",null,{"$f":"'822100 - Nota. Prop, plan y eq.'!$D$18","v":"Explicación del método de revaluación y supuestos significativos, propiedad, planta y equipo"},{"$f":"'822100 - Nota. Prop, plan y eq.'!$C$18","v":"co-svsp-core_2017-12-31:ExplanationOfRevaluationMethodsAndSignificantAssumptionsPropertyPlantAndEquipment"}]
["/*",null,{"$f":"'822100 - Nota. Prop, plan y eq.'!$D$19","v":"Conciliación de cambios en propiedades, planta y equipo [resumen]"},{"$f":"'822100 - Nota. Prop, plan y eq.'!$C$19","v":"ifrs-full:ReconciliationOfChangesInPropertyPlantAndEquipmentAbstract"}]
["",null,{"$f":"'822100 - Nota. Prop, plan y eq.'!$D$20","v":"Propiedades, planta y equipo al comienzo del periodo"},{"$f":"'822100 - Nota. Prop, plan y eq.'!$C$20","v":"co-svsp-core_2017-12-31:PropertyPlantAndEquipmentBeginningOfPeriod"},0,"peso",{"$f":"'822100 - Nota. Prop, plan y eq.'!$M$20","v":0},800001965,"http://www.xbrl.org/scheme/companyName",{"$f":"Periodos!$C$3","v":"2017-01-01"},{"$f":"Periodos!$C$4","v":"2017-12-31"},{"$f":"'822100 - Nota. Prop, plan y eq.'!$D$11","v":"co-svsp-core_2017-12-31:PropiedadesPlantaYEquipoEje_G1"},{"$f":"'822100 - Nota. Prop, plan y eq.'!$M$10","v":"ifrs-full:MotorVehiclesMember"}]
["/*",null,{"$f":"'822100 - Nota. Prop, plan y eq.'!$D$21","v":"Cambios en propiedades, planta y equipo [resumen]"},{"$f":"'822100 - Nota. Prop, plan y eq.'!$C$21","v":"ifrs-full:ChangesInPropertyPlantAndEquipmentAbstract"}]
["/*",null,{"$f":"'822100 - Nota. Prop, plan y eq.'!$D$22","v":"Incrementos distintos de los procedentes de combinaciones de negocios, propiedades, planta y equipo"},{"$f":"'822100 - Nota. Prop, plan y eq.'!$C$22","v":"ifrs-full:AdditionsOtherThanThroughBusinessCombinationsPropertyPlantAndEquipment"}]
["/*",null,{"$f":"'822100 - Nota. Prop, plan y eq.'!$D$23","v":"Adquisiciones realizadas mediante combinaciones de negocios, propiedades, planta y equipo"},{"$f":"'822100 - Nota. Prop, plan y eq.'!$C$23","v":"ifrs-full:AcquisitionsThroughBusinessCombinationsPropertyPlantAndEquipment"}]
["/*",null,{"$f":"'822100 - Nota. Prop, plan y eq.'!$D$24","v":"Depreciación, propiedades, planta y equipo"},{"$f":"'822100 - Nota. Prop, plan y eq.'!$C$24","v":"ifrs-full:DepreciationPropertyPlantAndEquipment"}]
["/*",null,{"$f":"'822100 - Nota. Prop, plan y eq.'!$D$25","v":"Pérdidas por deterioro de valor reconocidas en el resultado del periodo, propiedades, planta y equipo"},{"$f":"'822100 - Nota. Prop, plan y eq.'!$C$25","v":"ifrs-full:ImpairmentLossRecognisedInProfitOrLossPropertyPlantAndEquipment"}]
["/*",null,{"$f":"'822100 - Nota. Prop, plan y eq.'!$D$26","v":"Reversión de pérdidas por deterioro de valor reconocidas en el resultado del periodo, propiedades, planta y equipo"},{"$f":"'822100 - Nota. Prop, plan y eq.'!$C$26","v":"ifrs-full:ReversalOfImpairmentLossRecognisedInProfitOrLossPropertyPlantAndEquipment"}]
["/*",null,{"$f":"'822100 - Nota. Prop, plan y eq.'!$D$27","v":"Incrementos (disminuciones) de revaluaciones, propiedades, planta y equipo"},{"$f":"'822100 - Nota. Prop, plan y eq.'!$C$27","v":"ifrs-full:RevaluationIncreaseDecreasePropertyPlantAndEquipment"}]
["/*",null,{"$f":"'822100 - Nota. Prop, plan y eq.'!$D$28","v":"Pérdidas por deterioro de valor reconocidas en otro resultado integral, propiedades, planta y equipo"},{"$f":"'822100 - Nota. Prop, plan y eq.'!$C$28","v":"ifrs-full:ImpairmentLossRecognisedInOtherComprehensiveIncomePropertyPlantAndEquipment"}]
["/*",null,{"$f":"'822100 - Nota. Prop, plan y eq.'!$D$29","v":"Reversión de pérdidas por deterioro de valor reconocidas en otro resultado integral, propiedades, planta y equipo"},{"$f":"'822100 - Nota. Prop, plan y eq.'!$C$29","v":"ifrs-full:ReversalOfImpairmentLossRecognisedInOtherComprehensiveIncomePropertyPlantAndEquipment"}]
["/*",null,{"$f":"'822100 - Nota. Prop, plan y eq.'!$D$30","v":"Incrementos (disminuciones) por transferencias y otros cambios, propiedades, planta y equipo [resumen]"},{"$f":"'822100 - Nota. Prop, plan y eq.'!$C$30","v":"ifrs-full:IncreaseDecreaseThroughTransfersAndOtherChangesPropertyPlantAndEquipmentAbstract"}]
["/*",null,{"$f":"'822100 - Nota. Prop, plan y eq.'!$D$31","v":"Incrementos (disminuciones) por transferencias desde (hacia) propiedades de inversión, propiedades, planta y equipo"},{"$f":"'822100 - Nota. Prop, plan y eq.'!$C$31","v":"ifrs-full:IncreaseDecreaseThroughTransfersFromToInvestmentPropertyPropertyPlantAndEquipment"}]
["/*",null,{"$f":"'822100 - Nota. Prop, plan y eq.'!$D$32","v":"Incrementos (disminuciones) por transferencias desde construcciones en proceso , propiedades, planta y equipo"},{"$f":"'822100 - Nota. Prop, plan y eq.'!$C$32","v":"ifrs-full:IncreaseDecreaseThroughTransfersFromConstructionInProgressPropertyPlantAndEquipment"}]
["/*",null,{"$f":"'822100 - Nota. Prop, plan y eq.'!$D$33","v":"Incrementos (disminuciones) por otros cambios, propiedades, planta y equipo"},{"$f":"'822100 - Nota. Prop, plan y eq.'!$C$33","v":"ifrs-full:IncreaseDecreaseThroughOtherChangesPropertyPlantAndEquipment"}]
["",null,{"$f":"'822100 - Nota. Prop, plan y eq.'!$D$34","v":"Total incrementos (disminuciones) por transferencias y otros cambios, propiedades, planta y equipo"},{"$f":"'822100 - Nota. Prop, plan y eq.'!$C$34","v":"ifrs-full:IncreaseDecreaseThroughTransfersAndOtherChangesPropertyPlantAndEquipment"},0,"peso",{"$f":"'822100 - Nota. Prop, plan y eq.'!$M$34","v":0},800001965,"http://www.xbrl.org/scheme/companyName",{"$f":"Periodos!$C$3","v":"2017-01-01"},{"$f":"Periodos!$C$4","v":"2017-12-31"},{"$f":"'822100 - Nota. Prop, plan y eq.'!$D$11","v":"co-svsp-core_2017-12-31:PropiedadesPlantaYEquipoEje_G1"},{"$f":"'822100 - Nota. Prop, plan y eq.'!$M$10","v":"ifrs-full:MotorVehiclesMember"}]
["/*",null,{"$f":"'822100 - Nota. Prop, plan y eq.'!$D$35","v":"Disposiciones y retiros de servicio, propiedades, planta y equipo [resumen]"},{"$f":"'822100 - Nota. Prop, plan y eq.'!$C$35","v":"ifrs-full:DisposalsAndRetirementsPropertyPlantAndEquipmentAbstract"}]
["/*",null,{"$f":"'822100 - Nota. Prop, plan y eq.'!$D$36","v":"Disposiciones, propiedades, planta y equipo"},{"$f":"'822100 - Nota. Prop, plan y eq.'!$C$36","v":"ifrs-full:DisposalsPropertyPlantAndEquipment"}]
["/*",null,{"$f":"'822100 - Nota. Prop, plan y eq.'!$D$37","v":"Retiros, propiedades, planta y equipo"},{"$f":"'822100 - Nota. Prop, plan y eq.'!$C$37","v":"ifrs-full:RetirementsPropertyPlantAndEquipment"}]
["",null,{"$f":"'822100 - Nota. Prop, plan y eq.'!$D$38","v":"Total de disposiciones y retiros de servicio, propiedades, planta y equipo"},{"$f":"'822100 - Nota. Prop, plan y eq.'!$C$38","v":"ifrs-full:DisposalsAndRetirementsPropertyPlantAndEquipment"},0,"peso",{"$f":"'822100 - Nota. Prop, plan y eq.'!$M$38","v":0},800001965,"http://www.xbrl.org/scheme/companyName",{"$f":"Periodos!$C$3","v":"2017-01-01"},{"$f":"Periodos!$C$4","v":"2017-12-31"},{"$f":"'822100 - Nota. Prop, plan y eq.'!$D$11","v":"co-svsp-core_2017-12-31:PropiedadesPlantaYEquipoEje_G1"},{"$f":"'822100 - Nota. Prop, plan y eq.'!$M$10","v":"ifrs-full:MotorVehiclesMember"}]
["/*",null,{"$f":"'822100 - Nota. Prop, plan y eq.'!$D$39","v":"Disminuciones por clasificar como mantenidos para la venta, propiedades, planta y equipo"},{"$f":"'822100 - Nota. Prop, plan y eq.'!$C$39","v":"ifrs-full:DecreaseThroughClassifiedAsHeldForSalePropertyPlantAndEquipment"}]
["",null,{"$f":"'822100 - Nota. Prop, plan y eq.'!$D$40","v":"Total incremento (disminución) en propiedades, planta y equipo"},{"$f":"'822100 - Nota. Prop, plan y eq.'!$C$40","v":"ifrs-full:ChangesInPropertyPlantAndEquipment"},0,"peso",{"$f":"'822100 - Nota. Prop, plan y eq.'!$M$40","v":0},800001965,"http://www.xbrl.org/scheme/companyName",{"$f":"Periodos!$C$3","v":"2017-01-01"},{"$f":"Periodos!$C$4","v":"2017-12-31"},{"$f":"'822100 - Nota. Prop, plan y eq.'!$D$11","v":"co-svsp-core_2017-12-31:PropiedadesPlantaYEquipoEje_G1"},{"$f":"'822100 - Nota. Prop, plan y eq.'!$M$10","v":"ifrs-full:MotorVehiclesMember"}]
["",null,{"$f":"'822100 - Nota. Prop, plan y eq.'!$D$41","v":"Propiedades, planta y equipo al final del periodo"},{"$f":"'822100 - Nota. Prop, plan y eq.'!$C$41","v":"co-svsp-core_2017-12-31:PropertyPlantAndEquipmentEndOfPeriod"},0,"peso",{"$f":"'822100 - Nota. Prop, plan y eq.'!$M$41","v":0},800001965,"http://www.xbrl.org/scheme/companyName",{"$f":"Periodos!$C$3","v":"2017-01-01"},{"$f":"Periodos!$C$4","v":"2017-12-31"},{"$f":"'822100 - Nota. Prop, plan y eq.'!$D$11","v":"co-svsp-core_2017-12-31:PropiedadesPlantaYEquipoEje_G1"},{"$f":"'822100 - Nota. Prop, plan y eq.'!$M$10","v":"ifrs-full:MotorVehiclesMember"}]
["/*",null,"--10--"]
["/*",null,{"$f":"'822100 - Nota. Prop, plan y eq.'!$D$12","v":"Información a revelar detallada sobre propiedades, planta y equipo [partidas de los estados financieros]"},{"$f":"'822100 - Nota. Prop, plan y eq.'!$C$12","v":"ifrs-full:DisclosureOfPropertyPlantAndEquipmentLineItems"}]
["/*",null,{"$f":"'822100 - Nota. Prop, plan y eq.'!$D$13","v":"Bases de medición, propiedades, planta y equipo"},{"$f":"'822100 - Nota. Prop, plan y eq.'!$C$13","v":"ifrs-full:MeasurementBasesPropertyPlantAndEquipment"}]
["/*",null,{"$f":"'822100 - Nota. Prop, plan y eq.'!$D$14","v":"Método de depreciación, propiedades, planta y equipo"},{"$f":"'822100 - Nota. Prop, plan y eq.'!$C$14","v":"ifrs-full:DepreciationMethodPropertyPlantAndEquipment"}]
["/*",null,{"$f":"'822100 - Nota. Prop, plan y eq.'!$D$15","v":"Vidas útiles o tasas de depreciación, propiedades, planta y equipo"},{"$f":"'822100 - Nota. Prop, plan y eq.'!$C$15","v":"ifrs-full:UsefulLivesOrDepreciationRatesPropertyPlantAndEquipment"}]
["/*",null,{"$f":"'822100 - Nota. Prop, plan y eq.'!$D$16","v":"Fechas de vigencia de revaluación, propiedades, planta y equipo"},{"$f":"'822100 - Nota. Prop, plan y eq.'!$C$16","v":"ifrs-full:EffectiveDatesOfRevaluationPropertyPlantAndEquipment"}]
["/*",null,{"$f":"'822100 - Nota. Prop, plan y eq.'!$D$17","v":"Explicación de la implicación del tasador independiente en la revaluación, propiedades, planta y equipo"},{"$f":"'822100 - Nota. Prop, plan y eq.'!$C$17","v":"ifrs-full:ExplanationOfIndependentValuerUsedForRevaluationPropertyPlantAndEquipment"}]
["/*",null,{"$f":"'822100 - Nota. Prop, plan y eq.'!$D$18","v":"Explicación del método de revaluación y supuestos significativos, propiedad, planta y equipo"},{"$f":"'822100 - Nota. Prop, plan y eq.'!$C$18","v":"co-svsp-core_2017-12-31:ExplanationOfRevaluationMethodsAndSignificantAssumptionsPropertyPlantAndEquipment"}]
["/*",null,{"$f":"'822100 - Nota. Prop, plan y eq.'!$D$19","v":"Conciliación de cambios en propiedades, planta y equipo [resumen]"},{"$f":"'822100 - Nota. Prop, plan y eq.'!$C$19","v":"ifrs-full:ReconciliationOfChangesInPropertyPlantAndEquipmentAbstract"}]
["",null,{"$f":"'822100 - Nota. Prop, plan y eq.'!$D$20","v":"Propiedades, planta y equipo al comienzo del periodo"},{"$f":"'822100 - Nota. Prop, plan y eq.'!$C$20","v":"co-svsp-core_2017-12-31:PropertyPlantAndEquipmentBeginningOfPeriod"},0,"peso",{"$f":"'822100 - Nota. Prop, plan y eq.'!$N$20","v":0},800001965,"http://www.xbrl.org/scheme/companyName",{"$f":"Periodos!$C$3","v":"2017-01-01"},{"$f":"Periodos!$C$4","v":"2017-12-31"},{"$f":"'822100 - Nota. Prop, plan y eq.'!$D$11","v":"co-svsp-core_2017-12-31:PropiedadesPlantaYEquipoEje_G1"},{"$f":"'822100 - Nota. Prop, plan y eq.'!$N$10","v":"ifrs-full:VehiclesMember"}]
["/*",null,{"$f":"'822100 - Nota. Prop, plan y eq.'!$D$21","v":"Cambios en propiedades, planta y equipo [resumen]"},{"$f":"'822100 - Nota. Prop, plan y eq.'!$C$21","v":"ifrs-full:ChangesInPropertyPlantAndEquipmentAbstract"}]
["/*",null,{"$f":"'822100 - Nota. Prop, plan y eq.'!$D$22","v":"Incrementos distintos de los procedentes de combinaciones de negocios, propiedades, planta y equipo"},{"$f":"'822100 - Nota. Prop, plan y eq.'!$C$22","v":"ifrs-full:AdditionsOtherThanThroughBusinessCombinationsPropertyPlantAndEquipment"}]
["/*",null,{"$f":"'822100 - Nota. Prop, plan y eq.'!$D$23","v":"Adquisiciones realizadas mediante combinaciones de negocios, propiedades, planta y equipo"},{"$f":"'822100 - Nota. Prop, plan y eq.'!$C$23","v":"ifrs-full:AcquisitionsThroughBusinessCombinationsPropertyPlantAndEquipment"}]
["/*",null,{"$f":"'822100 - Nota. Prop, plan y eq.'!$D$24","v":"Depreciación, propiedades, planta y equipo"},{"$f":"'822100 - Nota. Prop, plan y eq.'!$C$24","v":"ifrs-full:DepreciationPropertyPlantAndEquipment"}]
["/*",null,{"$f":"'822100 - Nota. Prop, plan y eq.'!$D$25","v":"Pérdidas por deterioro de valor reconocidas en el resultado del periodo, propiedades, planta y equipo"},{"$f":"'822100 - Nota. Prop, plan y eq.'!$C$25","v":"ifrs-full:ImpairmentLossRecognisedInProfitOrLossPropertyPlantAndEquipment"}]
["/*",null,{"$f":"'822100 - Nota. Prop, plan y eq.'!$D$26","v":"Reversión de pérdidas por deterioro de valor reconocidas en el resultado del periodo, propiedades, planta y equipo"},{"$f":"'822100 - Nota. Prop, plan y eq.'!$C$26","v":"ifrs-full:ReversalOfImpairmentLossRecognisedInProfitOrLossPropertyPlantAndEquipment"}]
["/*",null,{"$f":"'822100 - Nota. Prop, plan y eq.'!$D$27","v":"Incrementos (disminuciones) de revaluaciones, propiedades, planta y equipo"},{"$f":"'822100 - Nota. Prop, plan y eq.'!$C$27","v":"ifrs-full:RevaluationIncreaseDecreasePropertyPlantAndEquipment"}]
["/*",null,{"$f":"'822100 - Nota. Prop, plan y eq.'!$D$28","v":"Pérdidas por deterioro de valor reconocidas en otro resultado integral, propiedades, planta y equipo"},{"$f":"'822100 - Nota. Prop, plan y eq.'!$C$28","v":"ifrs-full:ImpairmentLossRecognisedInOtherComprehensiveIncomePropertyPlantAndEquipment"}]
["/*",null,{"$f":"'822100 - Nota. Prop, plan y eq.'!$D$29","v":"Reversión de pérdidas por deterioro de valor reconocidas en otro resultado integral, propiedades, planta y equipo"},{"$f":"'822100 - Nota. Prop, plan y eq.'!$C$29","v":"ifrs-full:ReversalOfImpairmentLossRecognisedInOtherComprehensiveIncomePropertyPlantAndEquipment"}]
["/*",null,{"$f":"'822100 - Nota. Prop, plan y eq.'!$D$30","v":"Incrementos (disminuciones) por transferencias y otros cambios, propiedades, planta y equipo [resumen]"},{"$f":"'822100 - Nota. Prop, plan y eq.'!$C$30","v":"ifrs-full:IncreaseDecreaseThroughTransfersAndOtherChangesPropertyPlantAndEquipmentAbstract"}]
["/*",null,{"$f":"'822100 - Nota. Prop, plan y eq.'!$D$31","v":"Incrementos (disminuciones) por transferencias desde (hacia) propiedades de inversión, propiedades, planta y equipo"},{"$f":"'822100 - Nota. Prop, plan y eq.'!$C$31","v":"ifrs-full:IncreaseDecreaseThroughTransfersFromToInvestmentPropertyPropertyPlantAndEquipment"}]
["/*",null,{"$f":"'822100 - Nota. Prop, plan y eq.'!$D$32","v":"Incrementos (disminuciones) por transferencias desde construcciones en proceso , propiedades, planta y equipo"},{"$f":"'822100 - Nota. Prop, plan y eq.'!$C$32","v":"ifrs-full:IncreaseDecreaseThroughTransfersFromConstructionInProgressPropertyPlantAndEquipment"}]
["/*",null,{"$f":"'822100 - Nota. Prop, plan y eq.'!$D$33","v":"Incrementos (disminuciones) por otros cambios, propiedades, planta y equipo"},{"$f":"'822100 - Nota. Prop, plan y eq.'!$C$33","v":"ifrs-full:IncreaseDecreaseThroughOtherChangesPropertyPlantAndEquipment"}]
["",null,{"$f":"'822100 - Nota. Prop, plan y eq.'!$D$34","v":"Total incrementos (disminuciones) por transferencias y otros cambios, propiedades, planta y equipo"},{"$f":"'822100 - Nota. Prop, plan y eq.'!$C$34","v":"ifrs-full:IncreaseDecreaseThroughTransfersAndOtherChangesPropertyPlantAndEquipment"},0,"peso",{"$f":"'822100 - Nota. Prop, plan y eq.'!$N$34","v":0},800001965,"http://www.xbrl.org/scheme/companyName",{"$f":"Periodos!$C$3","v":"2017-01-01"},{"$f":"Periodos!$C$4","v":"2017-12-31"},{"$f":"'822100 - Nota. Prop, plan y eq.'!$D$11","v":"co-svsp-core_2017-12-31:PropiedadesPlantaYEquipoEje_G1"},{"$f":"'822100 - Nota. Prop, plan y eq.'!$N$10","v":"ifrs-full:VehiclesMember"}]
["/*",null,{"$f":"'822100 - Nota. Prop, plan y eq.'!$D$35","v":"Disposiciones y retiros de servicio, propiedades, planta y equipo [resumen]"},{"$f":"'822100 - Nota. Prop, plan y eq.'!$C$35","v":"ifrs-full:DisposalsAndRetirementsPropertyPlantAndEquipmentAbstract"}]
["/*",null,{"$f":"'822100 - Nota. Prop, plan y eq.'!$D$36","v":"Disposiciones, propiedades, planta y equipo"},{"$f":"'822100 - Nota. Prop, plan y eq.'!$C$36","v":"ifrs-full:DisposalsPropertyPlantAndEquipment"}]
["/*",null,{"$f":"'822100 - Nota. Prop, plan y eq.'!$D$37","v":"Retiros, propiedades, planta y equipo"},{"$f":"'822100 - Nota. Prop, plan y eq.'!$C$37","v":"ifrs-full:RetirementsPropertyPlantAndEquipment"}]
["",null,{"$f":"'822100 - Nota. Prop, plan y eq.'!$D$38","v":"Total de disposiciones y retiros de servicio, propiedades, planta y equipo"},{"$f":"'822100 - Nota. Prop, plan y eq.'!$C$38","v":"ifrs-full:DisposalsAndRetirementsPropertyPlantAndEquipment"},0,"peso",{"$f":"'822100 - Nota. Prop, plan y eq.'!$N$38","v":0},800001965,"http://www.xbrl.org/scheme/companyName",{"$f":"Periodos!$C$3","v":"2017-01-01"},{"$f":"Periodos!$C$4","v":"2017-12-31"},{"$f":"'822100 - Nota. Prop, plan y eq.'!$D$11","v":"co-svsp-core_2017-12-31:PropiedadesPlantaYEquipoEje_G1"},{"$f":"'822100 - Nota. Prop, plan y eq.'!$N$10","v":"ifrs-full:VehiclesMember"}]
["/*",null,{"$f":"'822100 - Nota. Prop, plan y eq.'!$D$39","v":"Disminuciones por clasificar como mantenidos para la venta, propiedades, planta y equipo"},{"$f":"'822100 - Nota. Prop, plan y eq.'!$C$39","v":"ifrs-full:DecreaseThroughClassifiedAsHeldForSalePropertyPlantAndEquipment"}]
["",null,{"$f":"'822100 - Nota. Prop, plan y eq.'!$D$40","v":"Total incremento (disminución) en propiedades, planta y equipo"},{"$f":"'822100 - Nota. Prop, plan y eq.'!$C$40","v":"ifrs-full:ChangesInPropertyPlantAndEquipment"},0,"peso",{"$f":"'822100 - Nota. Prop, plan y eq.'!$N$40","v":0},800001965,"http://www.xbrl.org/scheme/companyName",{"$f":"Periodos!$C$3","v":"2017-01-01"},{"$f":"Periodos!$C$4","v":"2017-12-31"},{"$f":"'822100 - Nota. Prop, plan y eq.'!$D$11","v":"co-svsp-core_2017-12-31:PropiedadesPlantaYEquipoEje_G1"},{"$f":"'822100 - Nota. Prop, plan y eq.'!$N$10","v":"ifrs-full:VehiclesMember"}]
["",null,{"$f":"'822100 - Nota. Prop, plan y eq.'!$D$41","v":"Propiedades, planta y equipo al final del periodo"},{"$f":"'822100 - Nota. Prop, plan y eq.'!$C$41","v":"co-svsp-core_2017-12-31:PropertyPlantAndEquipmentEndOfPeriod"},0,"peso",{"$f":"'822100 - Nota. Prop, plan y eq.'!$N$41","v":0},800001965,"http://www.xbrl.org/scheme/companyName",{"$f":"Periodos!$C$3","v":"2017-01-01"},{"$f":"Periodos!$C$4","v":"2017-12-31"},{"$f":"'822100 - Nota. Prop, plan y eq.'!$D$11","v":"co-svsp-core_2017-12-31:PropiedadesPlantaYEquipoEje_G1"},{"$f":"'822100 - Nota. Prop, plan y eq.'!$N$10","v":"ifrs-full:VehiclesMember"}]
["/*",null,"--11--"]
["/*",null,{"$f":"'822100 - Nota. Prop, plan y eq.'!$D$12","v":"Información a revelar detallada sobre propiedades, planta y equipo [partidas de los estados financieros]"},{"$f":"'822100 - Nota. Prop, plan y eq.'!$C$12","v":"ifrs-full:DisclosureOfPropertyPlantAndEquipmentLineItems"}]
["/*",null,{"$f":"'822100 - Nota. Prop, plan y eq.'!$D$13","v":"Bases de medición, propiedades, planta y equipo"},{"$f":"'822100 - Nota. Prop, plan y eq.'!$C$13","v":"ifrs-full:MeasurementBasesPropertyPlantAndEquipment"}]
["/*",null,{"$f":"'822100 - Nota. Prop, plan y eq.'!$D$14","v":"Método de depreciación, propiedades, planta y equipo"},{"$f":"'822100 - Nota. Prop, plan y eq.'!$C$14","v":"ifrs-full:DepreciationMethodPropertyPlantAndEquipment"}]
["/*",null,{"$f":"'822100 - Nota. Prop, plan y eq.'!$D$15","v":"Vidas útiles o tasas de depreciación, propiedades, planta y equipo"},{"$f":"'822100 - Nota. Prop, plan y eq.'!$C$15","v":"ifrs-full:UsefulLivesOrDepreciationRatesPropertyPlantAndEquipment"}]
["/*",null,{"$f":"'822100 - Nota. Prop, plan y eq.'!$D$16","v":"Fechas de vigencia de revaluación, propiedades, planta y equipo"},{"$f":"'822100 - Nota. Prop, plan y eq.'!$C$16","v":"ifrs-full:EffectiveDatesOfRevaluationPropertyPlantAndEquipment"}]
["/*",null,{"$f":"'822100 - Nota. Prop, plan y eq.'!$D$17","v":"Explicación de la implicación del tasador independiente en la revaluación, propiedades, planta y equipo"},{"$f":"'822100 - Nota. Prop, plan y eq.'!$C$17","v":"ifrs-full:ExplanationOfIndependentValuerUsedForRevaluationPropertyPlantAndEquipment"}]
["/*",null,{"$f":"'822100 - Nota. Prop, plan y eq.'!$D$18","v":"Explicación del método de revaluación y supuestos significativos, propiedad, planta y equipo"},{"$f":"'822100 - Nota. Prop, plan y eq.'!$C$18","v":"co-svsp-core_2017-12-31:ExplanationOfRevaluationMethodsAndSignificantAssumptionsPropertyPlantAndEquipment"}]
[{"$f":"IF(G6177=\"\",\"/*\",\"\")","v":"/*"},null,{"$f":"'822100 - Nota. Prop, plan y eq.'!$D$19","v":"Conciliación de cambios en propiedades, planta y equipo [resumen]"},{"$f":"'822100 - Nota. Prop, plan y eq.'!$C$19","v":"ifrs-full:ReconciliationOfChangesInPropertyPlantAndEquipmentAbstract"}]
["",null,{"$f":"'822100 - Nota. Prop, plan y eq.'!$D$20","v":"Propiedades, planta y equipo al comienzo del periodo"},{"$f":"'822100 - Nota. Prop, plan y eq.'!$C$20","v":"co-svsp-core_2017-12-31:PropertyPlantAndEquipmentBeginningOfPeriod"},0,"peso",{"$f":"'822100 - Nota. Prop, plan y eq.'!$O$20","v":0},800001965,"http://www.xbrl.org/scheme/companyName",{"$f":"Periodos!$C$3","v":"2017-01-01"},{"$f":"Periodos!$C$4","v":"2017-12-31"},{"$f":"'822100 - Nota. Prop, plan y eq.'!$D$11","v":"co-svsp-core_2017-12-31:PropiedadesPlantaYEquipoEje_G1"},{"$f":"'822100 - Nota. Prop, plan y eq.'!$O$10","v":"ifrs-full:FixturesAndFittingsMember"}]
["/*",null,{"$f":"'822100 - Nota. Prop, plan y eq.'!$D$21","v":"Cambios en propiedades, planta y equipo [resumen]"},{"$f":"'822100 - Nota. Prop, plan y eq.'!$C$21","v":"ifrs-full:ChangesInPropertyPlantAndEquipmentAbstract"}]
["/*",null,{"$f":"'822100 - Nota. Prop, plan y eq.'!$D$22","v":"Incrementos distintos de los procedentes de combinaciones de negocios, propiedades, planta y equipo"},{"$f":"'822100 - Nota. Prop, plan y eq.'!$C$22","v":"ifrs-full:AdditionsOtherThanThroughBusinessCombinationsPropertyPlantAndEquipment"}]
["/*",null,{"$f":"'822100 - Nota. Prop, plan y eq.'!$D$23","v":"Adquisiciones realizadas mediante combinaciones de negocios, propiedades, planta y equipo"},{"$f":"'822100 - Nota. Prop, plan y eq.'!$C$23","v":"ifrs-full:AcquisitionsThroughBusinessCombinationsPropertyPlantAndEquipment"}]
["/*",null,{"$f":"'822100 - Nota. Prop, plan y eq.'!$D$24","v":"Depreciación, propiedades, planta y equipo"},{"$f":"'822100 - Nota. Prop, plan y eq.'!$C$24","v":"ifrs-full:DepreciationPropertyPlantAndEquipment"}]
["/*",null,{"$f":"'822100 - Nota. Prop, plan y eq.'!$D$25","v":"Pérdidas por deterioro de valor reconocidas en el resultado del periodo, propiedades, planta y equipo"},{"$f":"'822100 - Nota. Prop, plan y eq.'!$C$25","v":"ifrs-full:ImpairmentLossRecognisedInProfitOrLossPropertyPlantAndEquipment"}]
["/*",null,{"$f":"'822100 - Nota. Prop, plan y eq.'!$D$26","v":"Reversión de pérdidas por deterioro de valor reconocidas en el resultado del periodo, propiedades, planta y equipo"},{"$f":"'822100 - Nota. Prop, plan y eq.'!$C$26","v":"ifrs-full:ReversalOfImpairmentLossRecognisedInProfitOrLossPropertyPlantAndEquipment"}]
["/*",null,{"$f":"'822100 - Nota. Prop, plan y eq.'!$D$27","v":"Incrementos (disminuciones) de revaluaciones, propiedades, planta y equipo"},{"$f":"'822100 - Nota. Prop, plan y eq.'!$C$27","v":"ifrs-full:RevaluationIncreaseDecreasePropertyPlantAndEquipment"}]
["/*",null,{"$f":"'822100 - Nota. Prop, plan y eq.'!$D$28","v":"Pérdidas por deterioro de valor reconocidas en otro resultado integral, propiedades, planta y equipo"},{"$f":"'822100 - Nota. Prop, plan y eq.'!$C$28","v":"ifrs-full:ImpairmentLossRecognisedInOtherComprehensiveIncomePropertyPlantAndEquipment"}]
["/*",null,{"$f":"'822100 - Nota. Prop, plan y eq.'!$D$29","v":"Reversión de pérdidas por deterioro de valor reconocidas en otro resultado integral, propiedades, planta y equipo"},{"$f":"'822100 - Nota. Prop, plan y eq.'!$C$29","v":"ifrs-full:ReversalOfImpairmentLossRecognisedInOtherComprehensiveIncomePropertyPlantAndEquipment"}]
["/*",null,{"$f":"'822100 - Nota. Prop, plan y eq.'!$D$30","v":"Incrementos (disminuciones) por transferencias y otros cambios, propiedades, planta y equipo [resumen]"},{"$f":"'822100 - Nota. Prop, plan y eq.'!$C$30","v":"ifrs-full:IncreaseDecreaseThroughTransfersAndOtherChangesPropertyPlantAndEquipmentAbstract"}]
["/*",null,{"$f":"'822100 - Nota. Prop, plan y eq.'!$D$31","v":"Incrementos (disminuciones) por transferencias desde (hacia) propiedades de inversión, propiedades, planta y equipo"},{"$f":"'822100 - Nota. Prop, plan y eq.'!$C$31","v":"ifrs-full:IncreaseDecreaseThroughTransfersFromToInvestmentPropertyPropertyPlantAndEquipment"}]
["/*",null,{"$f":"'822100 - Nota. Prop, plan y eq.'!$D$32","v":"Incrementos (disminuciones) por transferencias desde construcciones en proceso , propiedades, planta y equipo"},{"$f":"'822100 - Nota. Prop, plan y eq.'!$C$32","v":"ifrs-full:IncreaseDecreaseThroughTransfersFromConstructionInProgressPropertyPlantAndEquipment"}]
["/*",null,{"$f":"'822100 - Nota. Prop, plan y eq.'!$D$33","v":"Incrementos (disminuciones) por otros cambios, propiedades, planta y equipo"},{"$f":"'822100 - Nota. Prop, plan y eq.'!$C$33","v":"ifrs-full:IncreaseDecreaseThroughOtherChangesPropertyPlantAndEquipment"}]
["",null,{"$f":"'822100 - Nota. Prop, plan y eq.'!$D$34","v":"Total incrementos (disminuciones) por transferencias y otros cambios, propiedades, planta y equipo"},{"$f":"'822100 - Nota. Prop, plan y eq.'!$C$34","v":"ifrs-full:IncreaseDecreaseThroughTransfersAndOtherChangesPropertyPlantAndEquipment"},0,"peso",{"$f":"'822100 - Nota. Prop, plan y eq.'!$O$34","v":0},800001965,"http://www.xbrl.org/scheme/companyName",{"$f":"Periodos!$C$3","v":"2017-01-01"},{"$f":"Periodos!$C$4","v":"2017-12-31"},{"$f":"'822100 - Nota. Prop, plan y eq.'!$D$11","v":"co-svsp-core_2017-12-31:PropiedadesPlantaYEquipoEje_G1"},{"$f":"'822100 - Nota. Prop, plan y eq.'!$O$10","v":"ifrs-full:FixturesAndFittingsMember"}]
["/*",null,{"$f":"'822100 - Nota. Prop, plan y eq.'!$D$35","v":"Disposiciones y retiros de servicio, propiedades, planta y equipo [resumen]"},{"$f":"'822100 - Nota. Prop, plan y eq.'!$C$35","v":"ifrs-full:DisposalsAndRetirementsPropertyPlantAndEquipmentAbstract"}]
["/*",null,{"$f":"'822100 - Nota. Prop, plan y eq.'!$D$36","v":"Disposiciones, propiedades, planta y equipo"},{"$f":"'822100 - Nota. Prop, plan y eq.'!$C$36","v":"ifrs-full:DisposalsPropertyPlantAndEquipment"}]
["/*",null,{"$f":"'822100 - Nota. Prop, plan y eq.'!$D$37","v":"Retiros, propiedades, planta y equipo"},{"$f":"'822100 - Nota. Prop, plan y eq.'!$C$37","v":"ifrs-full:RetirementsPropertyPlantAndEquipment"}]
["",null,{"$f":"'822100 - Nota. Prop, plan y eq.'!$D$38","v":"Total de disposiciones y retiros de servicio, propiedades, planta y equipo"},{"$f":"'822100 - Nota. Prop, plan y eq.'!$C$38","v":"ifrs-full:DisposalsAndRetirementsPropertyPlantAndEquipment"},0,"peso",{"$f":"'822100 - Nota. Prop, plan y eq.'!$O$38","v":0},800001965,"http://www.xbrl.org/scheme/companyName",{"$f":"Periodos!$C$3","v":"2017-01-01"},{"$f":"Periodos!$C$4","v":"2017-12-31"},{"$f":"'822100 - Nota. Prop, plan y eq.'!$D$11","v":"co-svsp-core_2017-12-31:PropiedadesPlantaYEquipoEje_G1"},{"$f":"'822100 - Nota. Prop, plan y eq.'!$O$10","v":"ifrs-full:FixturesAndFittingsMember"}]
["/*",null,{"$f":"'822100 - Nota. Prop, plan y eq.'!$D$39","v":"Disminuciones por clasificar como mantenidos para la venta, propiedades, planta y equipo"},{"$f":"'822100 - Nota. Prop, plan y eq.'!$C$39","v":"ifrs-full:DecreaseThroughClassifiedAsHeldForSalePropertyPlantAndEquipment"}]
["",null,{"$f":"'822100 - Nota. Prop, plan y eq.'!$D$40","v":"Total incremento (disminución) en propiedades, planta y equipo"},{"$f":"'822100 - Nota. Prop, plan y eq.'!$C$40","v":"ifrs-full:ChangesInPropertyPlantAndEquipment"},0,"peso",{"$f":"'822100 - Nota. Prop, plan y eq.'!$O$40","v":0},800001965,"http://www.xbrl.org/scheme/companyName",{"$f":"Periodos!$C$3","v":"2017-01-01"},{"$f":"Periodos!$C$4","v":"2017-12-31"},{"$f":"'822100 - Nota. Prop, plan y eq.'!$D$11","v":"co-svsp-core_2017-12-31:PropiedadesPlantaYEquipoEje_G1"},{"$f":"'822100 - Nota. Prop, plan y eq.'!$O$10","v":"ifrs-full:FixturesAndFittingsMember"}]
["",null,{"$f":"'822100 - Nota. Prop, plan y eq.'!$D$41","v":"Propiedades, planta y equipo al final del periodo"},{"$f":"'822100 - Nota. Prop, plan y eq.'!$C$41","v":"co-svsp-core_2017-12-31:PropertyPlantAndEquipmentEndOfPeriod"},0,"peso",{"$f":"'822100 - Nota. Prop, plan y eq.'!$O$41","v":0},800001965,"http://www.xbrl.org/scheme/companyName",{"$f":"Periodos!$C$3","v":"2017-01-01"},{"$f":"Periodos!$C$4","v":"2017-12-31"},{"$f":"'822100 - Nota. Prop, plan y eq.'!$D$11","v":"co-svsp-core_2017-12-31:PropiedadesPlantaYEquipoEje_G1"},{"$f":"'822100 - Nota. Prop, plan y eq.'!$O$10","v":"ifrs-full:FixturesAndFittingsMember"}]
["/*",null,"--12--"]
["/*",null,{"$f":"'822100 - Nota. Prop, plan y eq.'!$D$12","v":"Información a revelar detallada sobre propiedades, planta y equipo [partidas de los estados financieros]"},{"$f":"'822100 - Nota. Prop, plan y eq.'!$C$12","v":"ifrs-full:DisclosureOfPropertyPlantAndEquipmentLineItems"}]
["/*",null,{"$f":"'822100 - Nota. Prop, plan y eq.'!$D$13","v":"Bases de medición, propiedades, planta y equipo"},{"$f":"'822100 - Nota. Prop, plan y eq.'!$C$13","v":"ifrs-full:MeasurementBasesPropertyPlantAndEquipment"}]
["/*",null,{"$f":"'822100 - Nota. Prop, plan y eq.'!$D$14","v":"Método de depreciación, propiedades, planta y equipo"},{"$f":"'822100 - Nota. Prop, plan y eq.'!$C$14","v":"ifrs-full:DepreciationMethodPropertyPlantAndEquipment"}]
["/*",null,{"$f":"'822100 - Nota. Prop, plan y eq.'!$D$15","v":"Vidas útiles o tasas de depreciación, propiedades, planta y equipo"},{"$f":"'822100 - Nota. Prop, plan y eq.'!$C$15","v":"ifrs-full:UsefulLivesOrDepreciationRatesPropertyPlantAndEquipment"}]
["/*",null,{"$f":"'822100 - Nota. Prop, plan y eq.'!$D$16","v":"Fechas de vigencia de revaluación, propiedades, planta y equipo"},{"$f":"'822100 - Nota. Prop, plan y eq.'!$C$16","v":"ifrs-full:EffectiveDatesOfRevaluationPropertyPlantAndEquipment"}]
["/*",null,{"$f":"'822100 - Nota. Prop, plan y eq.'!$D$17","v":"Explicación de la implicación del tasador independiente en la revaluación, propiedades, planta y equipo"},{"$f":"'822100 - Nota. Prop, plan y eq.'!$C$17","v":"ifrs-full:ExplanationOfIndependentValuerUsedForRevaluationPropertyPlantAndEquipment"}]
["/*",null,{"$f":"'822100 - Nota. Prop, plan y eq.'!$D$18","v":"Explicación del método de revaluación y supuestos significativos, propiedad, planta y equipo"},{"$f":"'822100 - Nota. Prop, plan y eq.'!$C$18","v":"co-svsp-core_2017-12-31:ExplanationOfRevaluationMethodsAndSignificantAssumptionsPropertyPlantAndEquipment"}]
["/*",null,{"$f":"'822100 - Nota. Prop, plan y eq.'!$D$19","v":"Conciliación de cambios en propiedades, planta y equipo [resumen]"},{"$f":"'822100 - Nota. Prop, plan y eq.'!$C$19","v":"ifrs-full:ReconciliationOfChangesInPropertyPlantAndEquipmentAbstract"}]
["",null,{"$f":"'822100 - Nota. Prop, plan y eq.'!$D$20","v":"Propiedades, planta y equipo al comienzo del periodo"},{"$f":"'822100 - Nota. Prop, plan y eq.'!$C$20","v":"co-svsp-core_2017-12-31:PropertyPlantAndEquipmentBeginningOfPeriod"},0,"peso",{"$f":"'822100 - Nota. Prop, plan y eq.'!$P$20","v":0},800001965,"http://www.xbrl.org/scheme/companyName",{"$f":"Periodos!$C$3","v":"2017-01-01"},{"$f":"Periodos!$C$4","v":"2017-12-31"},{"$f":"'822100 - Nota. Prop, plan y eq.'!$D$11","v":"co-svsp-core_2017-12-31:PropiedadesPlantaYEquipoEje_G1"},{"$f":"'822100 - Nota. Prop, plan y eq.'!$P$10","v":"ifrs-full:ComputerEquipmentMember"}]
["/*",null,{"$f":"'822100 - Nota. Prop, plan y eq.'!$D$21","v":"Cambios en propiedades, planta y equipo [resumen]"},{"$f":"'822100 - Nota. Prop, plan y eq.'!$C$21","v":"ifrs-full:ChangesInPropertyPlantAndEquipmentAbstract"}]
["/*",null,{"$f":"'822100 - Nota. Prop, plan y eq.'!$D$22","v":"Incrementos distintos de los procedentes de combinaciones de negocios, propiedades, planta y equipo"},{"$f":"'822100 - Nota. Prop, plan y eq.'!$C$22","v":"ifrs-full:AdditionsOtherThanThroughBusinessCombinationsPropertyPlantAndEquipment"}]
["/*",null,{"$f":"'822100 - Nota. Prop, plan y eq.'!$D$23","v":"Adquisiciones realizadas mediante combinaciones de negocios, propiedades, planta y equipo"},{"$f":"'822100 - Nota. Prop, plan y eq.'!$C$23","v":"ifrs-full:AcquisitionsThroughBusinessCombinationsPropertyPlantAndEquipment"}]
["/*",null,{"$f":"'822100 - Nota. Prop, plan y eq.'!$D$24","v":"Depreciación, propiedades, planta y equipo"},{"$f":"'822100 - Nota. Prop, plan y eq.'!$C$24","v":"ifrs-full:DepreciationPropertyPlantAndEquipment"}]
["/*",null,{"$f":"'822100 - Nota. Prop, plan y eq.'!$D$25","v":"Pérdidas por deterioro de valor reconocidas en el resultado del periodo, propiedades, planta y equipo"},{"$f":"'822100 - Nota. Prop, plan y eq.'!$C$25","v":"ifrs-full:ImpairmentLossRecognisedInProfitOrLossPropertyPlantAndEquipment"}]
["/*",null,{"$f":"'822100 - Nota. Prop, plan y eq.'!$D$26","v":"Reversión de pérdidas por deterioro de valor reconocidas en el resultado del periodo, propiedades, planta y equipo"},{"$f":"'822100 - Nota. Prop, plan y eq.'!$C$26","v":"ifrs-full:ReversalOfImpairmentLossRecognisedInProfitOrLossPropertyPlantAndEquipment"}]
["/*",null,{"$f":"'822100 - Nota. Prop, plan y eq.'!$D$27","v":"Incrementos (disminuciones) de revaluaciones, propiedades, planta y equipo"},{"$f":"'822100 - Nota. Prop, plan y eq.'!$C$27","v":"ifrs-full:RevaluationIncreaseDecreasePropertyPlantAndEquipment"}]
["/*",null,{"$f":"'822100 - Nota. Prop, plan y eq.'!$D$28","v":"Pérdidas por deterioro de valor reconocidas en otro resultado integral, propiedades, planta y equipo"},{"$f":"'822100 - Nota. Prop, plan y eq.'!$C$28","v":"ifrs-full:ImpairmentLossRecognisedInOtherComprehensiveIncomePropertyPlantAndEquipment"}]
["/*",null,{"$f":"'822100 - Nota. Prop, plan y eq.'!$D$29","v":"Reversión de pérdidas por deterioro de valor reconocidas en otro resultado integral, propiedades, planta y equipo"},{"$f":"'822100 - Nota. Prop, plan y eq.'!$C$29","v":"ifrs-full:ReversalOfImpairmentLossRecognisedInOtherComprehensiveIncomePropertyPlantAndEquipment"}]
["/*",null,{"$f":"'822100 - Nota. Prop, plan y eq.'!$D$30","v":"Incrementos (disminuciones) por transferencias y otros cambios, propiedades, planta y equipo [resumen]"},{"$f":"'822100 - Nota. Prop, plan y eq.'!$C$30","v":"ifrs-full:IncreaseDecreaseThroughTransfersAndOtherChangesPropertyPlantAndEquipmentAbstract"}]
["/*",null,{"$f":"'822100 - Nota. Prop, plan y eq.'!$D$31","v":"Incrementos (disminuciones) por transferencias desde (hacia) propiedades de inversión, propiedades, planta y equipo"},{"$f":"'822100 - Nota. Prop, plan y eq.'!$C$31","v":"ifrs-full:IncreaseDecreaseThroughTransfersFromToInvestmentPropertyPropertyPlantAndEquipment"}]
["/*",null,{"$f":"'822100 - Nota. Prop, plan y eq.'!$D$32","v":"Incrementos (disminuciones) por transferencias desde construcciones en proceso , propiedades, planta y equipo"},{"$f":"'822100 - Nota. Prop, plan y eq.'!$C$32","v":"ifrs-full:IncreaseDecreaseThroughTransfersFromConstructionInProgressPropertyPlantAndEquipment"}]
["/*",null,{"$f":"'822100 - Nota. Prop, plan y eq.'!$D$33","v":"Incrementos (disminuciones) por otros cambios, propiedades, planta y equipo"},{"$f":"'822100 - Nota. Prop, plan y eq.'!$C$33","v":"ifrs-full:IncreaseDecreaseThroughOtherChangesPropertyPlantAndEquipment"}]
["",null,{"$f":"'822100 - Nota. Prop, plan y eq.'!$D$34","v":"Total incrementos (disminuciones) por transferencias y otros cambios, propiedades, planta y equipo"},{"$f":"'822100 - Nota. Prop, plan y eq.'!$C$34","v":"ifrs-full:IncreaseDecreaseThroughTransfersAndOtherChangesPropertyPlantAndEquipment"},0,"peso",{"$f":"'822100 - Nota. Prop, plan y eq.'!$P$34","v":0},800001965,"http://www.xbrl.org/scheme/companyName",{"$f":"Periodos!$C$3","v":"2017-01-01"},{"$f":"Periodos!$C$4","v":"2017-12-31"},{"$f":"'822100 - Nota. Prop, plan y eq.'!$D$11","v":"co-svsp-core_2017-12-31:PropiedadesPlantaYEquipoEje_G1"},{"$f":"'822100 - Nota. Prop, plan y eq.'!$P$10","v":"ifrs-full:ComputerEquipmentMember"}]
["/*",null,{"$f":"'822100 - Nota. Prop, plan y eq.'!$D$35","v":"Disposiciones y retiros de servicio, propiedades, planta y equipo [resumen]"},{"$f":"'822100 - Nota. Prop, plan y eq.'!$C$35","v":"ifrs-full:DisposalsAndRetirementsPropertyPlantAndEquipmentAbstract"}]
["/*",null,{"$f":"'822100 - Nota. Prop, plan y eq.'!$D$36","v":"Disposiciones, propiedades, planta y equipo"},{"$f":"'822100 - Nota. Prop, plan y eq.'!$C$36","v":"ifrs-full:DisposalsPropertyPlantAndEquipment"}]
["/*",null,{"$f":"'822100 - Nota. Prop, plan y eq.'!$D$37","v":"Retiros, propiedades, planta y equipo"},{"$f":"'822100 - Nota. Prop, plan y eq.'!$C$37","v":"ifrs-full:RetirementsPropertyPlantAndEquipment"}]
["",null,{"$f":"'822100 - Nota. Prop, plan y eq.'!$D$38","v":"Total de disposiciones y retiros de servicio, propiedades, planta y equipo"},{"$f":"'822100 - Nota. Prop, plan y eq.'!$C$38","v":"ifrs-full:DisposalsAndRetirementsPropertyPlantAndEquipment"},0,"peso",{"$f":"'822100 - Nota. Prop, plan y eq.'!$P$38","v":0},800001965,"http://www.xbrl.org/scheme/companyName",{"$f":"Periodos!$C$3","v":"2017-01-01"},{"$f":"Periodos!$C$4","v":"2017-12-31"},{"$f":"'822100 - Nota. Prop, plan y eq.'!$D$11","v":"co-svsp-core_2017-12-31:PropiedadesPlantaYEquipoEje_G1"},{"$f":"'822100 - Nota. Prop, plan y eq.'!$P$10","v":"ifrs-full:ComputerEquipmentMember"}]
["/*",null,{"$f":"'822100 - Nota. Prop, plan y eq.'!$D$39","v":"Disminuciones por clasificar como mantenidos para la venta, propiedades, planta y equipo"},{"$f":"'822100 - Nota. Prop, plan y eq.'!$C$39","v":"ifrs-full:DecreaseThroughClassifiedAsHeldForSalePropertyPlantAndEquipment"}]
["",null,{"$f":"'822100 - Nota. Prop, plan y eq.'!$D$40","v":"Total incremento (disminución) en propiedades, planta y equipo"},{"$f":"'822100 - Nota. Prop, plan y eq.'!$C$40","v":"ifrs-full:ChangesInPropertyPlantAndEquipment"},0,"peso",{"$f":"'822100 - Nota. Prop, plan y eq.'!$P$40","v":0},800001965,"http://www.xbrl.org/scheme/companyName",{"$f":"Periodos!$C$3","v":"2017-01-01"},{"$f":"Periodos!$C$4","v":"2017-12-31"},{"$f":"'822100 - Nota. Prop, plan y eq.'!$D$11","v":"co-svsp-core_2017-12-31:PropiedadesPlantaYEquipoEje_G1"},{"$f":"'822100 - Nota. Prop, plan y eq.'!$P$10","v":"ifrs-full:ComputerEquipmentMember"}]
["",null,{"$f":"'822100 - Nota. Prop, plan y eq.'!$D$41","v":"Propiedades, planta y equipo al final del periodo"},{"$f":"'822100 - Nota. Prop, plan y eq.'!$C$41","v":"co-svsp-core_2017-12-31:PropertyPlantAndEquipmentEndOfPeriod"},0,"peso",{"$f":"'822100 - Nota. Prop, plan y eq.'!$P$41","v":0},800001965,"http://www.xbrl.org/scheme/companyName",{"$f":"Periodos!$C$3","v":"2017-01-01"},{"$f":"Periodos!$C$4","v":"2017-12-31"},{"$f":"'822100 - Nota. Prop, plan y eq.'!$D$11","v":"co-svsp-core_2017-12-31:PropiedadesPlantaYEquipoEje_G1"},{"$f":"'822100 - Nota. Prop, plan y eq.'!$P$10","v":"ifrs-full:ComputerEquipmentMember"}]
["/*",null,"--13--"]
["/*",null,{"$f":"'822100 - Nota. Prop, plan y eq.'!$D$12","v":"Información a revelar detallada sobre propiedades, planta y equipo [partidas de los estados financieros]"},{"$f":"'822100 - Nota. Prop, plan y eq.'!$C$12","v":"ifrs-full:DisclosureOfPropertyPlantAndEquipmentLineItems"}]
["/*",null,{"$f":"'822100 - Nota. Prop, plan y eq.'!$D$13","v":"Bases de medición, propiedades, planta y equipo"},{"$f":"'822100 - Nota. Prop, plan y eq.'!$C$13","v":"ifrs-full:MeasurementBasesPropertyPlantAndEquipment"}]
["/*",null,{"$f":"'822100 - Nota. Prop, plan y eq.'!$D$14","v":"Método de depreciación, propiedades, planta y equipo"},{"$f":"'822100 - Nota. Prop, plan y eq.'!$C$14","v":"ifrs-full:DepreciationMethodPropertyPlantAndEquipment"}]
["/*",null,{"$f":"'822100 - Nota. Prop, plan y eq.'!$D$15","v":"Vidas útiles o tasas de depreciación, propiedades, planta y equipo"},{"$f":"'822100 - Nota. Prop, plan y eq.'!$C$15","v":"ifrs-full:UsefulLivesOrDepreciationRatesPropertyPlantAndEquipment"}]
["/*",null,{"$f":"'822100 - Nota. Prop, plan y eq.'!$D$16","v":"Fechas de vigencia de revaluación, propiedades, planta y equipo"},{"$f":"'822100 - Nota. Prop, plan y eq.'!$C$16","v":"ifrs-full:EffectiveDatesOfRevaluationPropertyPlantAndEquipment"}]
["/*",null,{"$f":"'822100 - Nota. Prop, plan y eq.'!$D$17","v":"Explicación de la implicación del tasador independiente en la revaluación, propiedades, planta y equipo"},{"$f":"'822100 - Nota. Prop, plan y eq.'!$C$17","v":"ifrs-full:ExplanationOfIndependentValuerUsedForRevaluationPropertyPlantAndEquipment"}]
["/*",null,{"$f":"'822100 - Nota. Prop, plan y eq.'!$D$18","v":"Explicación del método de revaluación y supuestos significativos, propiedad, planta y equipo"},{"$f":"'822100 - Nota. Prop, plan y eq.'!$C$18","v":"co-svsp-core_2017-12-31:ExplanationOfRevaluationMethodsAndSignificantAssumptionsPropertyPlantAndEquipment"}]
["/*",null,{"$f":"'822100 - Nota. Prop, plan y eq.'!$D$19","v":"Conciliación de cambios en propiedades, planta y equipo [resumen]"},{"$f":"'822100 - Nota. Prop, plan y eq.'!$C$19","v":"ifrs-full:ReconciliationOfChangesInPropertyPlantAndEquipmentAbstract"}]
["",null,{"$f":"'822100 - Nota. Prop, plan y eq.'!$D$20","v":"Propiedades, planta y equipo al comienzo del periodo"},{"$f":"'822100 - Nota. Prop, plan y eq.'!$C$20","v":"co-svsp-core_2017-12-31:PropertyPlantAndEquipmentBeginningOfPeriod"},0,"peso",{"$f":"'822100 - Nota. Prop, plan y eq.'!$Q$20","v":0},800001965,"http://www.xbrl.org/scheme/companyName",{"$f":"Periodos!$C$3","v":"2017-01-01"},{"$f":"Periodos!$C$4","v":"2017-12-31"},{"$f":"'822100 - Nota. Prop, plan y eq.'!$D$11","v":"co-svsp-core_2017-12-31:PropiedadesPlantaYEquipoEje_G1"},{"$f":"'822100 - Nota. Prop, plan y eq.'!$Q$10","v":"ifrs-full:CommunicationAndNetworkEquipmentMember"}]
[{"$f":"IF(G6241=\"\",\"/*\",\"\")","v":"/*"},null,{"$f":"'822100 - Nota. Prop, plan y eq.'!$D$21","v":"Cambios en propiedades, planta y equipo [resumen]"},{"$f":"'822100 - Nota. Prop, plan y eq.'!$C$21","v":"ifrs-full:ChangesInPropertyPlantAndEquipmentAbstract"}]
["/*",null,{"$f":"'822100 - Nota. Prop, plan y eq.'!$D$22","v":"Incrementos distintos de los procedentes de combinaciones de negocios, propiedades, planta y equipo"},{"$f":"'822100 - Nota. Prop, plan y eq.'!$C$22","v":"ifrs-full:AdditionsOtherThanThroughBusinessCombinationsPropertyPlantAndEquipment"}]
["/*",null,{"$f":"'822100 - Nota. Prop, plan y eq.'!$D$23","v":"Adquisiciones realizadas mediante combinaciones de negocios, propiedades, planta y equipo"},{"$f":"'822100 - Nota. Prop, plan y eq.'!$C$23","v":"ifrs-full:AcquisitionsThroughBusinessCombinationsPropertyPlantAndEquipment"}]
["/*",null,{"$f":"'822100 - Nota. Prop, plan y eq.'!$D$24","v":"Depreciación, propiedades, planta y equipo"},{"$f":"'822100 - Nota. Prop, plan y eq.'!$C$24","v":"ifrs-full:DepreciationPropertyPlantAndEquipment"}]
["/*",null,{"$f":"'822100 - Nota. Prop, plan y eq.'!$D$25","v":"Pérdidas por deterioro de valor reconocidas en el resultado del periodo, propiedades, planta y equipo"},{"$f":"'822100 - Nota. Prop, plan y eq.'!$C$25","v":"ifrs-full:ImpairmentLossRecognisedInProfitOrLossPropertyPlantAndEquipment"}]
["/*",null,{"$f":"'822100 - Nota. Prop, plan y eq.'!$D$26","v":"Reversión de pérdidas por deterioro de valor reconocidas en el resultado del periodo, propiedades, planta y equipo"},{"$f":"'822100 - Nota. Prop, plan y eq.'!$C$26","v":"ifrs-full:ReversalOfImpairmentLossRecognisedInProfitOrLossPropertyPlantAndEquipment"}]
["/*",null,{"$f":"'822100 - Nota. Prop, plan y eq.'!$D$27","v":"Incrementos (disminuciones) de revaluaciones, propiedades, planta y equipo"},{"$f":"'822100 - Nota. Prop, plan y eq.'!$C$27","v":"ifrs-full:RevaluationIncreaseDecreasePropertyPlantAndEquipment"}]
["/*",null,{"$f":"'822100 - Nota. Prop, plan y eq.'!$D$28","v":"Pérdidas por deterioro de valor reconocidas en otro resultado integral, propiedades, planta y equipo"},{"$f":"'822100 - Nota. Prop, plan y eq.'!$C$28","v":"ifrs-full:ImpairmentLossRecognisedInOtherComprehensiveIncomePropertyPlantAndEquipment"}]
["/*",null,{"$f":"'822100 - Nota. Prop, plan y eq.'!$D$29","v":"Reversión de pérdidas por deterioro de valor reconocidas en otro resultado integral, propiedades, planta y equipo"},{"$f":"'822100 - Nota. Prop, plan y eq.'!$C$29","v":"ifrs-full:ReversalOfImpairmentLossRecognisedInOtherComprehensiveIncomePropertyPlantAndEquipment"}]
["/*",null,{"$f":"'822100 - Nota. Prop, plan y eq.'!$D$30","v":"Incrementos (disminuciones) por transferencias y otros cambios, propiedades, planta y equipo [resumen]"},{"$f":"'822100 - Nota. Prop, plan y eq.'!$C$30","v":"ifrs-full:IncreaseDecreaseThroughTransfersAndOtherChangesPropertyPlantAndEquipmentAbstract"}]
["/*",null,{"$f":"'822100 - Nota. Prop, plan y eq.'!$D$31","v":"Incrementos (disminuciones) por transferencias desde (hacia) propiedades de inversión, propiedades, planta y equipo"},{"$f":"'822100 - Nota. Prop, plan y eq.'!$C$31","v":"ifrs-full:IncreaseDecreaseThroughTransfersFromToInvestmentPropertyPropertyPlantAndEquipment"}]
["/*",null,{"$f":"'822100 - Nota. Prop, plan y eq.'!$D$32","v":"Incrementos (disminuciones) por transferencias desde construcciones en proceso , propiedades, planta y equipo"},{"$f":"'822100 - Nota. Prop, plan y eq.'!$C$32","v":"ifrs-full:IncreaseDecreaseThroughTransfersFromConstructionInProgressPropertyPlantAndEquipment"}]
["/*",null,{"$f":"'822100 - Nota. Prop, plan y eq.'!$D$33","v":"Incrementos (disminuciones) por otros cambios, propiedades, planta y equipo"},{"$f":"'822100 - Nota. Prop, plan y eq.'!$C$33","v":"ifrs-full:IncreaseDecreaseThroughOtherChangesPropertyPlantAndEquipment"}]
["",null,{"$f":"'822100 - Nota. Prop, plan y eq.'!$D$34","v":"Total incrementos (disminuciones) por transferencias y otros cambios, propiedades, planta y equipo"},{"$f":"'822100 - Nota. Prop, plan y eq.'!$C$34","v":"ifrs-full:IncreaseDecreaseThroughTransfersAndOtherChangesPropertyPlantAndEquipment"},0,"peso",{"$f":"'822100 - Nota. Prop, plan y eq.'!$Q$34","v":0},800001965,"http://www.xbrl.org/scheme/companyName",{"$f":"Periodos!$C$3","v":"2017-01-01"},{"$f":"Periodos!$C$4","v":"2017-12-31"},{"$f":"'822100 - Nota. Prop, plan y eq.'!$D$11","v":"co-svsp-core_2017-12-31:PropiedadesPlantaYEquipoEje_G1"},{"$f":"'822100 - Nota. Prop, plan y eq.'!$Q$10","v":"ifrs-full:CommunicationAndNetworkEquipmentMember"}]
["/*",null,{"$f":"'822100 - Nota. Prop, plan y eq.'!$D$35","v":"Disposiciones y retiros de servicio, propiedades, planta y equipo [resumen]"},{"$f":"'822100 - Nota. Prop, plan y eq.'!$C$35","v":"ifrs-full:DisposalsAndRetirementsPropertyPlantAndEquipmentAbstract"}]
["/*",null,{"$f":"'822100 - Nota. Prop, plan y eq.'!$D$36","v":"Disposiciones, propiedades, planta y equipo"},{"$f":"'822100 - Nota. Prop, plan y eq.'!$C$36","v":"ifrs-full:DisposalsPropertyPlantAndEquipment"}]
["/*",null,{"$f":"'822100 - Nota. Prop, plan y eq.'!$D$37","v":"Retiros, propiedades, planta y equipo"},{"$f":"'822100 - Nota. Prop, plan y eq.'!$C$37","v":"ifrs-full:RetirementsPropertyPlantAndEquipment"}]
["",null,{"$f":"'822100 - Nota. Prop, plan y eq.'!$D$38","v":"Total de disposiciones y retiros de servicio, propiedades, planta y equipo"},{"$f":"'822100 - Nota. Prop, plan y eq.'!$C$38","v":"ifrs-full:DisposalsAndRetirementsPropertyPlantAndEquipment"},0,"peso",{"$f":"'822100 - Nota. Prop, plan y eq.'!$Q$38","v":0},800001965,"http://www.xbrl.org/scheme/companyName",{"$f":"Periodos!$C$3","v":"2017-01-01"},{"$f":"Periodos!$C$4","v":"2017-12-31"},{"$f":"'822100 - Nota. Prop, plan y eq.'!$D$11","v":"co-svsp-core_2017-12-31:PropiedadesPlantaYEquipoEje_G1"},{"$f":"'822100 - Nota. Prop, plan y eq.'!$Q$10","v":"ifrs-full:CommunicationAndNetworkEquipmentMember"}]
["/*",null,{"$f":"'822100 - Nota. Prop, plan y eq.'!$D$39","v":"Disminuciones por clasificar como mantenidos para la venta, propiedades, planta y equipo"},{"$f":"'822100 - Nota. Prop, plan y eq.'!$C$39","v":"ifrs-full:DecreaseThroughClassifiedAsHeldForSalePropertyPlantAndEquipment"}]
["",null,{"$f":"'822100 - Nota. Prop, plan y eq.'!$D$40","v":"Total incremento (disminución) en propiedades, planta y equipo"},{"$f":"'822100 - Nota. Prop, plan y eq.'!$C$40","v":"ifrs-full:ChangesInPropertyPlantAndEquipment"},0,"peso",{"$f":"'822100 - Nota. Prop, plan y eq.'!$Q$40","v":0},800001965,"http://www.xbrl.org/scheme/companyName",{"$f":"Periodos!$C$3","v":"2017-01-01"},{"$f":"Periodos!$C$4","v":"2017-12-31"},{"$f":"'822100 - Nota. Prop, plan y eq.'!$D$11","v":"co-svsp-core_2017-12-31:PropiedadesPlantaYEquipoEje_G1"},{"$f":"'822100 - Nota. Prop, plan y eq.'!$Q$10","v":"ifrs-full:CommunicationAndNetworkEquipmentMember"}]
["",null,{"$f":"'822100 - Nota. Prop, plan y eq.'!$D$41","v":"Propiedades, planta y equipo al final del periodo"},{"$f":"'822100 - Nota. Prop, plan y eq.'!$C$41","v":"co-svsp-core_2017-12-31:PropertyPlantAndEquipmentEndOfPeriod"},0,"peso",{"$f":"'822100 - Nota. Prop, plan y eq.'!$Q$41","v":0},800001965,"http://www.xbrl.org/scheme/companyName",{"$f":"Periodos!$C$3","v":"2017-01-01"},{"$f":"Periodos!$C$4","v":"2017-12-31"},{"$f":"'822100 - Nota. Prop, plan y eq.'!$D$11","v":"co-svsp-core_2017-12-31:PropiedadesPlantaYEquipoEje_G1"},{"$f":"'822100 - Nota. Prop, plan y eq.'!$Q$10","v":"ifrs-full:CommunicationAndNetworkEquipmentMember"}]
["/*",null,"--14--"]
["/*",null,{"$f":"'822100 - Nota. Prop, plan y eq.'!$D$12","v":"Información a revelar detallada sobre propiedades, planta y equipo [partidas de los estados financieros]"},{"$f":"'822100 - Nota. Prop, plan y eq.'!$C$12","v":"ifrs-full:DisclosureOfPropertyPlantAndEquipmentLineItems"}]
["/*",null,{"$f":"'822100 - Nota. Prop, plan y eq.'!$D$13","v":"Bases de medición, propiedades, planta y equipo"},{"$f":"'822100 - Nota. Prop, plan y eq.'!$C$13","v":"ifrs-full:MeasurementBasesPropertyPlantAndEquipment"}]
["/*",null,{"$f":"'822100 - Nota. Prop, plan y eq.'!$D$14","v":"Método de depreciación, propiedades, planta y equipo"},{"$f":"'822100 - Nota. Prop, plan y eq.'!$C$14","v":"ifrs-full:DepreciationMethodPropertyPlantAndEquipment"}]
["/*",null,{"$f":"'822100 - Nota. Prop, plan y eq.'!$D$15","v":"Vidas útiles o tasas de depreciación, propiedades, planta y equipo"},{"$f":"'822100 - Nota. Prop, plan y eq.'!$C$15","v":"ifrs-full:UsefulLivesOrDepreciationRatesPropertyPlantAndEquipment"}]
["/*",null,{"$f":"'822100 - Nota. Prop, plan y eq.'!$D$16","v":"Fechas de vigencia de revaluación, propiedades, planta y equipo"},{"$f":"'822100 - Nota. Prop, plan y eq.'!$C$16","v":"ifrs-full:EffectiveDatesOfRevaluationPropertyPlantAndEquipment"}]
["/*",null,{"$f":"'822100 - Nota. Prop, plan y eq.'!$D$17","v":"Explicación de la implicación del tasador independiente en la revaluación, propiedades, planta y equipo"},{"$f":"'822100 - Nota. Prop, plan y eq.'!$C$17","v":"ifrs-full:ExplanationOfIndependentValuerUsedForRevaluationPropertyPlantAndEquipment"}]
["/*",null,{"$f":"'822100 - Nota. Prop, plan y eq.'!$D$18","v":"Explicación del método de revaluación y supuestos significativos, propiedad, planta y equipo"},{"$f":"'822100 - Nota. Prop, plan y eq.'!$C$18","v":"co-svsp-core_2017-12-31:ExplanationOfRevaluationMethodsAndSignificantAssumptionsPropertyPlantAndEquipment"}]
["/*",null,{"$f":"'822100 - Nota. Prop, plan y eq.'!$D$19","v":"Conciliación de cambios en propiedades, planta y equipo [resumen]"},{"$f":"'822100 - Nota. Prop, plan y eq.'!$C$19","v":"ifrs-full:ReconciliationOfChangesInPropertyPlantAndEquipmentAbstract"}]
["",null,{"$f":"'822100 - Nota. Prop, plan y eq.'!$D$20","v":"Propiedades, planta y equipo al comienzo del periodo"},{"$f":"'822100 - Nota. Prop, plan y eq.'!$C$20","v":"co-svsp-core_2017-12-31:PropertyPlantAndEquipmentBeginningOfPeriod"},0,"peso",{"$f":"'822100 - Nota. Prop, plan y eq.'!$R$20","v":0},800001965,"http://www.xbrl.org/scheme/companyName",{"$f":"Periodos!$C$3","v":"2017-01-01"},{"$f":"Periodos!$C$4","v":"2017-12-31"},{"$f":"'822100 - Nota. Prop, plan y eq.'!$D$11","v":"co-svsp-core_2017-12-31:PropiedadesPlantaYEquipoEje_G1"},{"$f":"'822100 - Nota. Prop, plan y eq.'!$R$10","v":"ifrs-full:NetworkInfrastructureMember"}]
["/*",null,{"$f":"'822100 - Nota. Prop, plan y eq.'!$D$21","v":"Cambios en propiedades, planta y equipo [resumen]"},{"$f":"'822100 - Nota. Prop, plan y eq.'!$C$21","v":"ifrs-full:ChangesInPropertyPlantAndEquipmentAbstract"}]
["/*",null,{"$f":"'822100 - Nota. Prop, plan y eq.'!$D$22","v":"Incrementos distintos de los procedentes de combinaciones de negocios, propiedades, planta y equipo"},{"$f":"'822100 - Nota. Prop, plan y eq.'!$C$22","v":"ifrs-full:AdditionsOtherThanThroughBusinessCombinationsPropertyPlantAndEquipment"}]
["/*",null,{"$f":"'822100 - Nota. Prop, plan y eq.'!$D$23","v":"Adquisiciones realizadas mediante combinaciones de negocios, propiedades, planta y equipo"},{"$f":"'822100 - Nota. Prop, plan y eq.'!$C$23","v":"ifrs-full:AcquisitionsThroughBusinessCombinationsPropertyPlantAndEquipment"}]
["/*",null,{"$f":"'822100 - Nota. Prop, plan y eq.'!$D$24","v":"Depreciación, propiedades, planta y equipo"},{"$f":"'822100 - Nota. Prop, plan y eq.'!$C$24","v":"ifrs-full:DepreciationPropertyPlantAndEquipment"}]
["/*",null,{"$f":"'822100 - Nota. Prop, plan y eq.'!$D$25","v":"Pérdidas por deterioro de valor reconocidas en el resultado del periodo, propiedades, planta y equipo"},{"$f":"'822100 - Nota. Prop, plan y eq.'!$C$25","v":"ifrs-full:ImpairmentLossRecognisedInProfitOrLossPropertyPlantAndEquipment"}]
["/*",null,{"$f":"'822100 - Nota. Prop, plan y eq.'!$D$26","v":"Reversión de pérdidas por deterioro de valor reconocidas en el resultado del periodo, propiedades, planta y equipo"},{"$f":"'822100 - Nota. Prop, plan y eq.'!$C$26","v":"ifrs-full:ReversalOfImpairmentLossRecognisedInProfitOrLossPropertyPlantAndEquipment"}]
["/*",null,{"$f":"'822100 - Nota. Prop, plan y eq.'!$D$27","v":"Incrementos (disminuciones) de revaluaciones, propiedades, planta y equipo"},{"$f":"'822100 - Nota. Prop, plan y eq.'!$C$27","v":"ifrs-full:RevaluationIncreaseDecreasePropertyPlantAndEquipment"}]
["/*",null,{"$f":"'822100 - Nota. Prop, plan y eq.'!$D$28","v":"Pérdidas por deterioro de valor reconocidas en otro resultado integral, propiedades, planta y equipo"},{"$f":"'822100 - Nota. Prop, plan y eq.'!$C$28","v":"ifrs-full:ImpairmentLossRecognisedInOtherComprehensiveIncomePropertyPlantAndEquipment"}]
["/*",null,{"$f":"'822100 - Nota. Prop, plan y eq.'!$D$29","v":"Reversión de pérdidas por deterioro de valor reconocidas en otro resultado integral, propiedades, planta y equipo"},{"$f":"'822100 - Nota. Prop, plan y eq.'!$C$29","v":"ifrs-full:ReversalOfImpairmentLossRecognisedInOtherComprehensiveIncomePropertyPlantAndEquipment"}]
["/*",null,{"$f":"'822100 - Nota. Prop, plan y eq.'!$D$30","v":"Incrementos (disminuciones) por transferencias y otros cambios, propiedades, planta y equipo [resumen]"},{"$f":"'822100 - Nota. Prop, plan y eq.'!$C$30","v":"ifrs-full:IncreaseDecreaseThroughTransfersAndOtherChangesPropertyPlantAndEquipmentAbstract"}]
["/*",null,{"$f":"'822100 - Nota. Prop, plan y eq.'!$D$31","v":"Incrementos (disminuciones) por transferencias desde (hacia) propiedades de inversión, propiedades, planta y equipo"},{"$f":"'822100 - Nota. Prop, plan y eq.'!$C$31","v":"ifrs-full:IncreaseDecreaseThroughTransfersFromToInvestmentPropertyPropertyPlantAndEquipment"}]
["/*",null,{"$f":"'822100 - Nota. Prop, plan y eq.'!$D$32","v":"Incrementos (disminuciones) por transferencias desde construcciones en proceso , propiedades, planta y equipo"},{"$f":"'822100 - Nota. Prop, plan y eq.'!$C$32","v":"ifrs-full:IncreaseDecreaseThroughTransfersFromConstructionInProgressPropertyPlantAndEquipment"}]
["/*",null,{"$f":"'822100 - Nota. Prop, plan y eq.'!$D$33","v":"Incrementos (disminuciones) por otros cambios, propiedades, planta y equipo"},{"$f":"'822100 - Nota. Prop, plan y eq.'!$C$33","v":"ifrs-full:IncreaseDecreaseThroughOtherChangesPropertyPlantAndEquipment"}]
["",null,{"$f":"'822100 - Nota. Prop, plan y eq.'!$D$34","v":"Total incrementos (disminuciones) por transferencias y otros cambios, propiedades, planta y equipo"},{"$f":"'822100 - Nota. Prop, plan y eq.'!$C$34","v":"ifrs-full:IncreaseDecreaseThroughTransfersAndOtherChangesPropertyPlantAndEquipment"},0,"peso",{"$f":"'822100 - Nota. Prop, plan y eq.'!$R$34","v":0},800001965,"http://www.xbrl.org/scheme/companyName",{"$f":"Periodos!$C$3","v":"2017-01-01"},{"$f":"Periodos!$C$4","v":"2017-12-31"},{"$f":"'822100 - Nota. Prop, plan y eq.'!$D$11","v":"co-svsp-core_2017-12-31:PropiedadesPlantaYEquipoEje_G1"},{"$f":"'822100 - Nota. Prop, plan y eq.'!$R$10","v":"ifrs-full:NetworkInfrastructureMember"}]
["/*",null,{"$f":"'822100 - Nota. Prop, plan y eq.'!$D$35","v":"Disposiciones y retiros de servicio, propiedades, planta y equipo [resumen]"},{"$f":"'822100 - Nota. Prop, plan y eq.'!$C$35","v":"ifrs-full:DisposalsAndRetirementsPropertyPlantAndEquipmentAbstract"}]
["/*",null,{"$f":"'822100 - Nota. Prop, plan y eq.'!$D$36","v":"Disposiciones, propiedades, planta y equipo"},{"$f":"'822100 - Nota. Prop, plan y eq.'!$C$36","v":"ifrs-full:DisposalsPropertyPlantAndEquipment"}]
["/*",null,{"$f":"'822100 - Nota. Prop, plan y eq.'!$D$37","v":"Retiros, propiedades, planta y equipo"},{"$f":"'822100 - Nota. Prop, plan y eq.'!$C$37","v":"ifrs-full:RetirementsPropertyPlantAndEquipment"}]
["",null,{"$f":"'822100 - Nota. Prop, plan y eq.'!$D$38","v":"Total de disposiciones y retiros de servicio, propiedades, planta y equipo"},{"$f":"'822100 - Nota. Prop, plan y eq.'!$C$38","v":"ifrs-full:DisposalsAndRetirementsPropertyPlantAndEquipment"},0,"peso",{"$f":"'822100 - Nota. Prop, plan y eq.'!$R$38","v":0},800001965,"http://www.xbrl.org/scheme/companyName",{"$f":"Periodos!$C$3","v":"2017-01-01"},{"$f":"Periodos!$C$4","v":"2017-12-31"},{"$f":"'822100 - Nota. Prop, plan y eq.'!$D$11","v":"co-svsp-core_2017-12-31:PropiedadesPlantaYEquipoEje_G1"},{"$f":"'822100 - Nota. Prop, plan y eq.'!$R$10","v":"ifrs-full:NetworkInfrastructureMember"}]
["/*",null,{"$f":"'822100 - Nota. Prop, plan y eq.'!$D$39","v":"Disminuciones por clasificar como mantenidos para la venta, propiedades, planta y equipo"},{"$f":"'822100 - Nota. Prop, plan y eq.'!$C$39","v":"ifrs-full:DecreaseThroughClassifiedAsHeldForSalePropertyPlantAndEquipment"}]
["",null,{"$f":"'822100 - Nota. Prop, plan y eq.'!$D$40","v":"Total incremento (disminución) en propiedades, planta y equipo"},{"$f":"'822100 - Nota. Prop, plan y eq.'!$C$40","v":"ifrs-full:ChangesInPropertyPlantAndEquipment"},0,"peso",{"$f":"'822100 - Nota. Prop, plan y eq.'!$R$40","v":0},800001965,"http://www.xbrl.org/scheme/companyName",{"$f":"Periodos!$C$3","v":"2017-01-01"},{"$f":"Periodos!$C$4","v":"2017-12-31"},{"$f":"'822100 - Nota. Prop, plan y eq.'!$D$11","v":"co-svsp-core_2017-12-31:PropiedadesPlantaYEquipoEje_G1"},{"$f":"'822100 - Nota. Prop, plan y eq.'!$R$10","v":"ifrs-full:NetworkInfrastructureMember"}]
["",null,{"$f":"'822100 - Nota. Prop, plan y eq.'!$D$41","v":"Propiedades, planta y equipo al final del periodo"},{"$f":"'822100 - Nota. Prop, plan y eq.'!$C$41","v":"co-svsp-core_2017-12-31:PropertyPlantAndEquipmentEndOfPeriod"},0,"peso",{"$f":"'822100 - Nota. Prop, plan y eq.'!$R$41","v":0},800001965,"http://www.xbrl.org/scheme/companyName",{"$f":"Periodos!$C$3","v":"2017-01-01"},{"$f":"Periodos!$C$4","v":"2017-12-31"},{"$f":"'822100 - Nota. Prop, plan y eq.'!$D$11","v":"co-svsp-core_2017-12-31:PropiedadesPlantaYEquipoEje_G1"},{"$f":"'822100 - Nota. Prop, plan y eq.'!$R$10","v":"ifrs-full:NetworkInfrastructureMember"}]
["/*",null,"--15--"]
["/*",null,{"$f":"'822100 - Nota. Prop, plan y eq.'!$D$12","v":"Información a revelar detallada sobre propiedades, planta y equipo [partidas de los estados financieros]"},{"$f":"'822100 - Nota. Prop, plan y eq.'!$C$12","v":"ifrs-full:DisclosureOfPropertyPlantAndEquipmentLineItems"}]
["/*",null,{"$f":"'822100 - Nota. Prop, plan y eq.'!$D$13","v":"Bases de medición, propiedades, planta y equipo"},{"$f":"'822100 - Nota. Prop, plan y eq.'!$C$13","v":"ifrs-full:MeasurementBasesPropertyPlantAndEquipment"}]
["/*",null,{"$f":"'822100 - Nota. Prop, plan y eq.'!$D$14","v":"Método de depreciación, propiedades, planta y equipo"},{"$f":"'822100 - Nota. Prop, plan y eq.'!$C$14","v":"ifrs-full:DepreciationMethodPropertyPlantAndEquipment"}]
["/*",null,{"$f":"'822100 - Nota. Prop, plan y eq.'!$D$15","v":"Vidas útiles o tasas de depreciación, propiedades, planta y equipo"},{"$f":"'822100 - Nota. Prop, plan y eq.'!$C$15","v":"ifrs-full:UsefulLivesOrDepreciationRatesPropertyPlantAndEquipment"}]
["/*",null,{"$f":"'822100 - Nota. Prop, plan y eq.'!$D$16","v":"Fechas de vigencia de revaluación, propiedades, planta y equipo"},{"$f":"'822100 - Nota. Prop, plan y eq.'!$C$16","v":"ifrs-full:EffectiveDatesOfRevaluationPropertyPlantAndEquipment"}]
["/*",null,{"$f":"'822100 - Nota. Prop, plan y eq.'!$D$17","v":"Explicación de la implicación del tasador independiente en la revaluación, propiedades, planta y equipo"},{"$f":"'822100 - Nota. Prop, plan y eq.'!$C$17","v":"ifrs-full:ExplanationOfIndependentValuerUsedForRevaluationPropertyPlantAndEquipment"}]
["/*",null,{"$f":"'822100 - Nota. Prop, plan y eq.'!$D$18","v":"Explicación del método de revaluación y supuestos significativos, propiedad, planta y equipo"},{"$f":"'822100 - Nota. Prop, plan y eq.'!$C$18","v":"co-svsp-core_2017-12-31:ExplanationOfRevaluationMethodsAndSignificantAssumptionsPropertyPlantAndEquipment"}]
["/*",null,{"$f":"'822100 - Nota. Prop, plan y eq.'!$D$19","v":"Conciliación de cambios en propiedades, planta y equipo [resumen]"},{"$f":"'822100 - Nota. Prop, plan y eq.'!$C$19","v":"ifrs-full:ReconciliationOfChangesInPropertyPlantAndEquipmentAbstract"}]
["",null,{"$f":"'822100 - Nota. Prop, plan y eq.'!$D$20","v":"Propiedades, planta y equipo al comienzo del periodo"},{"$f":"'822100 - Nota. Prop, plan y eq.'!$C$20","v":"co-svsp-core_2017-12-31:PropertyPlantAndEquipmentBeginningOfPeriod"},0,"peso",{"$f":"'822100 - Nota. Prop, plan y eq.'!$S$20","v":0},800001965,"http://www.xbrl.org/scheme/companyName",{"$f":"Periodos!$C$3","v":"2017-01-01"},{"$f":"Periodos!$C$4","v":"2017-12-31"},{"$f":"'822100 - Nota. Prop, plan y eq.'!$D$11","v":"co-svsp-core_2017-12-31:PropiedadesPlantaYEquipoEje_G1"},{"$f":"'822100 - Nota. Prop, plan y eq.'!$S$10","v":"ifrs-full:BearerPlantsMember"}]
["/*",null,{"$f":"'822100 - Nota. Prop, plan y eq.'!$D$21","v":"Cambios en propiedades, planta y equipo [resumen]"},{"$f":"'822100 - Nota. Prop, plan y eq.'!$C$21","v":"ifrs-full:ChangesInPropertyPlantAndEquipmentAbstract"}]
["/*",null,{"$f":"'822100 - Nota. Prop, plan y eq.'!$D$22","v":"Incrementos distintos de los procedentes de combinaciones de negocios, propiedades, planta y equipo"},{"$f":"'822100 - Nota. Prop, plan y eq.'!$C$22","v":"ifrs-full:AdditionsOtherThanThroughBusinessCombinationsPropertyPlantAndEquipment"}]
[{"$f":"IF(G6305=\"\",\"/*\",\"\")","v":"/*"},null,{"$f":"'822100 - Nota. Prop, plan y eq.'!$D$23","v":"Adquisiciones realizadas mediante combinaciones de negocios, propiedades, planta y equipo"},{"$f":"'822100 - Nota. Prop, plan y eq.'!$C$23","v":"ifrs-full:AcquisitionsThroughBusinessCombinationsPropertyPlantAndEquipment"}]
["/*",null,{"$f":"'822100 - Nota. Prop, plan y eq.'!$D$24","v":"Depreciación, propiedades, planta y equipo"},{"$f":"'822100 - Nota. Prop, plan y eq.'!$C$24","v":"ifrs-full:DepreciationPropertyPlantAndEquipment"}]
["/*",null,{"$f":"'822100 - Nota. Prop, plan y eq.'!$D$25","v":"Pérdidas por deterioro de valor reconocidas en el resultado del periodo, propiedades, planta y equipo"},{"$f":"'822100 - Nota. Prop, plan y eq.'!$C$25","v":"ifrs-full:ImpairmentLossRecognisedInProfitOrLossPropertyPlantAndEquipment"}]
["/*",null,{"$f":"'822100 - Nota. Prop, plan y eq.'!$D$26","v":"Reversión de pérdidas por deterioro de valor reconocidas en el resultado del periodo, propiedades, planta y equipo"},{"$f":"'822100 - Nota. Prop, plan y eq.'!$C$26","v":"ifrs-full:ReversalOfImpairmentLossRecognisedInProfitOrLossPropertyPlantAndEquipment"}]
["/*",null,{"$f":"'822100 - Nota. Prop, plan y eq.'!$D$27","v":"Incrementos (disminuciones) de revaluaciones, propiedades, planta y equipo"},{"$f":"'822100 - Nota. Prop, plan y eq.'!$C$27","v":"ifrs-full:RevaluationIncreaseDecreasePropertyPlantAndEquipment"}]
["/*",null,{"$f":"'822100 - Nota. Prop, plan y eq.'!$D$28","v":"Pérdidas por deterioro de valor reconocidas en otro resultado integral, propiedades, planta y equipo"},{"$f":"'822100 - Nota. Prop, plan y eq.'!$C$28","v":"ifrs-full:ImpairmentLossRecognisedInOtherComprehensiveIncomePropertyPlantAndEquipment"}]
["/*",null,{"$f":"'822100 - Nota. Prop, plan y eq.'!$D$29","v":"Reversión de pérdidas por deterioro de valor reconocidas en otro resultado integral, propiedades, planta y equipo"},{"$f":"'822100 - Nota. Prop, plan y eq.'!$C$29","v":"ifrs-full:ReversalOfImpairmentLossRecognisedInOtherComprehensiveIncomePropertyPlantAndEquipment"}]
["/*",null,{"$f":"'822100 - Nota. Prop, plan y eq.'!$D$30","v":"Incrementos (disminuciones) por transferencias y otros cambios, propiedades, planta y equipo [resumen]"},{"$f":"'822100 - Nota. Prop, plan y eq.'!$C$30","v":"ifrs-full:IncreaseDecreaseThroughTransfersAndOtherChangesPropertyPlantAndEquipmentAbstract"}]
["/*",null,{"$f":"'822100 - Nota. Prop, plan y eq.'!$D$31","v":"Incrementos (disminuciones) por transferencias desde (hacia) propiedades de inversión, propiedades, planta y equipo"},{"$f":"'822100 - Nota. Prop, plan y eq.'!$C$31","v":"ifrs-full:IncreaseDecreaseThroughTransfersFromToInvestmentPropertyPropertyPlantAndEquipment"}]
["/*",null,{"$f":"'822100 - Nota. Prop, plan y eq.'!$D$32","v":"Incrementos (disminuciones) por transferencias desde construcciones en proceso , propiedades, planta y equipo"},{"$f":"'822100 - Nota. Prop, plan y eq.'!$C$32","v":"ifrs-full:IncreaseDecreaseThroughTransfersFromConstructionInProgressPropertyPlantAndEquipment"}]
["/*",null,{"$f":"'822100 - Nota. Prop, plan y eq.'!$D$33","v":"Incrementos (disminuciones) por otros cambios, propiedades, planta y equipo"},{"$f":"'822100 - Nota. Prop, plan y eq.'!$C$33","v":"ifrs-full:IncreaseDecreaseThroughOtherChangesPropertyPlantAndEquipment"}]
["",null,{"$f":"'822100 - Nota. Prop, plan y eq.'!$D$34","v":"Total incrementos (disminuciones) por transferencias y otros cambios, propiedades, planta y equipo"},{"$f":"'822100 - Nota. Prop, plan y eq.'!$C$34","v":"ifrs-full:IncreaseDecreaseThroughTransfersAndOtherChangesPropertyPlantAndEquipment"},0,"peso",{"$f":"'822100 - Nota. Prop, plan y eq.'!$S$34","v":0},800001965,"http://www.xbrl.org/scheme/companyName",{"$f":"Periodos!$C$3","v":"2017-01-01"},{"$f":"Periodos!$C$4","v":"2017-12-31"},{"$f":"'822100 - Nota. Prop, plan y eq.'!$D$11","v":"co-svsp-core_2017-12-31:PropiedadesPlantaYEquipoEje_G1"},{"$f":"'822100 - Nota. Prop, plan y eq.'!$S$10","v":"ifrs-full:BearerPlantsMember"}]
["/*",null,{"$f":"'822100 - Nota. Prop, plan y eq.'!$D$35","v":"Disposiciones y retiros de servicio, propiedades, planta y equipo [resumen]"},{"$f":"'822100 - Nota. Prop, plan y eq.'!$C$35","v":"ifrs-full:DisposalsAndRetirementsPropertyPlantAndEquipmentAbstract"}]
["/*",null,{"$f":"'822100 - Nota. Prop, plan y eq.'!$D$36","v":"Disposiciones, propiedades, planta y equipo"},{"$f":"'822100 - Nota. Prop, plan y eq.'!$C$36","v":"ifrs-full:DisposalsPropertyPlantAndEquipment"}]
["/*",null,{"$f":"'822100 - Nota. Prop, plan y eq.'!$D$37","v":"Retiros, propiedades, planta y equipo"},{"$f":"'822100 - Nota. Prop, plan y eq.'!$C$37","v":"ifrs-full:RetirementsPropertyPlantAndEquipment"}]
["",null,{"$f":"'822100 - Nota. Prop, plan y eq.'!$D$38","v":"Total de disposiciones y retiros de servicio, propiedades, planta y equipo"},{"$f":"'822100 - Nota. Prop, plan y eq.'!$C$38","v":"ifrs-full:DisposalsAndRetirementsPropertyPlantAndEquipment"},0,"peso",{"$f":"'822100 - Nota. Prop, plan y eq.'!$S$38","v":0},800001965,"http://www.xbrl.org/scheme/companyName",{"$f":"Periodos!$C$3","v":"2017-01-01"},{"$f":"Periodos!$C$4","v":"2017-12-31"},{"$f":"'822100 - Nota. Prop, plan y eq.'!$D$11","v":"co-svsp-core_2017-12-31:PropiedadesPlantaYEquipoEje_G1"},{"$f":"'822100 - Nota. Prop, plan y eq.'!$S$10","v":"ifrs-full:BearerPlantsMember"}]
["/*",null,{"$f":"'822100 - Nota. Prop, plan y eq.'!$D$39","v":"Disminuciones por clasificar como mantenidos para la venta, propiedades, planta y equipo"},{"$f":"'822100 - Nota. Prop, plan y eq.'!$C$39","v":"ifrs-full:DecreaseThroughClassifiedAsHeldForSalePropertyPlantAndEquipment"}]
["",null,{"$f":"'822100 - Nota. Prop, plan y eq.'!$D$40","v":"Total incremento (disminución) en propiedades, planta y equipo"},{"$f":"'822100 - Nota. Prop, plan y eq.'!$C$40","v":"ifrs-full:ChangesInPropertyPlantAndEquipment"},0,"peso",{"$f":"'822100 - Nota. Prop, plan y eq.'!$S$40","v":0},800001965,"http://www.xbrl.org/scheme/companyName",{"$f":"Periodos!$C$3","v":"2017-01-01"},{"$f":"Periodos!$C$4","v":"2017-12-31"},{"$f":"'822100 - Nota. Prop, plan y eq.'!$D$11","v":"co-svsp-core_2017-12-31:PropiedadesPlantaYEquipoEje_G1"},{"$f":"'822100 - Nota. Prop, plan y eq.'!$S$10","v":"ifrs-full:BearerPlantsMember"}]
["",null,{"$f":"'822100 - Nota. Prop, plan y eq.'!$D$41","v":"Propiedades, planta y equipo al final del periodo"},{"$f":"'822100 - Nota. Prop, plan y eq.'!$C$41","v":"co-svsp-core_2017-12-31:PropertyPlantAndEquipmentEndOfPeriod"},0,"peso",{"$f":"'822100 - Nota. Prop, plan y eq.'!$S$41","v":0},800001965,"http://www.xbrl.org/scheme/companyName",{"$f":"Periodos!$C$3","v":"2017-01-01"},{"$f":"Periodos!$C$4","v":"2017-12-31"},{"$f":"'822100 - Nota. Prop, plan y eq.'!$D$11","v":"co-svsp-core_2017-12-31:PropiedadesPlantaYEquipoEje_G1"},{"$f":"'822100 - Nota. Prop, plan y eq.'!$S$10","v":"ifrs-full:BearerPlantsMember"}]
["/*",null,"--16--"]
["/*",null,{"$f":"'822100 - Nota. Prop, plan y eq.'!$D$12","v":"Información a revelar detallada sobre propiedades, planta y equipo [partidas de los estados financieros]"},{"$f":"'822100 - Nota. Prop, plan y eq.'!$C$12","v":"ifrs-full:DisclosureOfPropertyPlantAndEquipmentLineItems"}]
["/*",null,{"$f":"'822100 - Nota. Prop, plan y eq.'!$D$13","v":"Bases de medición, propiedades, planta y equipo"},{"$f":"'822100 - Nota. Prop, plan y eq.'!$C$13","v":"ifrs-full:MeasurementBasesPropertyPlantAndEquipment"}]
["/*",null,{"$f":"'822100 - Nota. Prop, plan y eq.'!$D$14","v":"Método de depreciación, propiedades, planta y equipo"},{"$f":"'822100 - Nota. Prop, plan y eq.'!$C$14","v":"ifrs-full:DepreciationMethodPropertyPlantAndEquipment"}]
["/*",null,{"$f":"'822100 - Nota. Prop, plan y eq.'!$D$15","v":"Vidas útiles o tasas de depreciación, propiedades, planta y equipo"},{"$f":"'822100 - Nota. Prop, plan y eq.'!$C$15","v":"ifrs-full:UsefulLivesOrDepreciationRatesPropertyPlantAndEquipment"}]
["/*",null,{"$f":"'822100 - Nota. Prop, plan y eq.'!$D$16","v":"Fechas de vigencia de revaluación, propiedades, planta y equipo"},{"$f":"'822100 - Nota. Prop, plan y eq.'!$C$16","v":"ifrs-full:EffectiveDatesOfRevaluationPropertyPlantAndEquipment"}]
["/*",null,{"$f":"'822100 - Nota. Prop, plan y eq.'!$D$17","v":"Explicación de la implicación del tasador independiente en la revaluación, propiedades, planta y equipo"},{"$f":"'822100 - Nota. Prop, plan y eq.'!$C$17","v":"ifrs-full:ExplanationOfIndependentValuerUsedForRevaluationPropertyPlantAndEquipment"}]
["/*",null,{"$f":"'822100 - Nota. Prop, plan y eq.'!$D$18","v":"Explicación del método de revaluación y supuestos significativos, propiedad, planta y equipo"},{"$f":"'822100 - Nota. Prop, plan y eq.'!$C$18","v":"co-svsp-core_2017-12-31:ExplanationOfRevaluationMethodsAndSignificantAssumptionsPropertyPlantAndEquipment"}]
["/*",null,{"$f":"'822100 - Nota. Prop, plan y eq.'!$D$19","v":"Conciliación de cambios en propiedades, planta y equipo [resumen]"},{"$f":"'822100 - Nota. Prop, plan y eq.'!$C$19","v":"ifrs-full:ReconciliationOfChangesInPropertyPlantAndEquipmentAbstract"}]
["",null,{"$f":"'822100 - Nota. Prop, plan y eq.'!$D$20","v":"Propiedades, planta y equipo al comienzo del periodo"},{"$f":"'822100 - Nota. Prop, plan y eq.'!$C$20","v":"co-svsp-core_2017-12-31:PropertyPlantAndEquipmentBeginningOfPeriod"},0,"peso",{"$f":"'822100 - Nota. Prop, plan y eq.'!$T$20","v":0},800001965,"http://www.xbrl.org/scheme/companyName",{"$f":"Periodos!$C$3","v":"2017-01-01"},{"$f":"Periodos!$C$4","v":"2017-12-31"},{"$f":"'822100 - Nota. Prop, plan y eq.'!$D$11","v":"co-svsp-core_2017-12-31:PropiedadesPlantaYEquipoEje_G1"},{"$f":"'822100 - Nota. Prop, plan y eq.'!$T$10","v":"ifrs-full:TangibleExplorationAndEvaluationAssetsMember"}]
["/*",null,{"$f":"'822100 - Nota. Prop, plan y eq.'!$D$21","v":"Cambios en propiedades, planta y equipo [resumen]"},{"$f":"'822100 - Nota. Prop, plan y eq.'!$C$21","v":"ifrs-full:ChangesInPropertyPlantAndEquipmentAbstract"}]
["/*",null,{"$f":"'822100 - Nota. Prop, plan y eq.'!$D$22","v":"Incrementos distintos de los procedentes de combinaciones de negocios, propiedades, planta y equipo"},{"$f":"'822100 - Nota. Prop, plan y eq.'!$C$22","v":"ifrs-full:AdditionsOtherThanThroughBusinessCombinationsPropertyPlantAndEquipment"}]
["/*",null,{"$f":"'822100 - Nota. Prop, plan y eq.'!$D$23","v":"Adquisiciones realizadas mediante combinaciones de negocios, propiedades, planta y equipo"},{"$f":"'822100 - Nota. Prop, plan y eq.'!$C$23","v":"ifrs-full:AcquisitionsThroughBusinessCombinationsPropertyPlantAndEquipment"}]
["/*",null,{"$f":"'822100 - Nota. Prop, plan y eq.'!$D$24","v":"Depreciación, propiedades, planta y equipo"},{"$f":"'822100 - Nota. Prop, plan y eq.'!$C$24","v":"ifrs-full:DepreciationPropertyPlantAndEquipment"}]
["/*",null,{"$f":"'822100 - Nota. Prop, plan y eq.'!$D$25","v":"Pérdidas por deterioro de valor reconocidas en el resultado del periodo, propiedades, planta y equipo"},{"$f":"'822100 - Nota. Prop, plan y eq.'!$C$25","v":"ifrs-full:ImpairmentLossRecognisedInProfitOrLossPropertyPlantAndEquipment"}]
["/*",null,{"$f":"'822100 - Nota. Prop, plan y eq.'!$D$26","v":"Reversión de pérdidas por deterioro de valor reconocidas en el resultado del periodo, propiedades, planta y equipo"},{"$f":"'822100 - Nota. Prop, plan y eq.'!$C$26","v":"ifrs-full:ReversalOfImpairmentLossRecognisedInProfitOrLossPropertyPlantAndEquipment"}]
["/*",null,{"$f":"'822100 - Nota. Prop, plan y eq.'!$D$27","v":"Incrementos (disminuciones) de revaluaciones, propiedades, planta y equipo"},{"$f":"'822100 - Nota. Prop, plan y eq.'!$C$27","v":"ifrs-full:RevaluationIncreaseDecreasePropertyPlantAndEquipment"}]
["/*",null,{"$f":"'822100 - Nota. Prop, plan y eq.'!$D$28","v":"Pérdidas por deterioro de valor reconocidas en otro resultado integral, propiedades, planta y equipo"},{"$f":"'822100 - Nota. Prop, plan y eq.'!$C$28","v":"ifrs-full:ImpairmentLossRecognisedInOtherComprehensiveIncomePropertyPlantAndEquipment"}]
["/*",null,{"$f":"'822100 - Nota. Prop, plan y eq.'!$D$29","v":"Reversión de pérdidas por deterioro de valor reconocidas en otro resultado integral, propiedades, planta y equipo"},{"$f":"'822100 - Nota. Prop, plan y eq.'!$C$29","v":"ifrs-full:ReversalOfImpairmentLossRecognisedInOtherComprehensiveIncomePropertyPlantAndEquipment"}]
["/*",null,{"$f":"'822100 - Nota. Prop, plan y eq.'!$D$30","v":"Incrementos (disminuciones) por transferencias y otros cambios, propiedades, planta y equipo [resumen]"},{"$f":"'822100 - Nota. Prop, plan y eq.'!$C$30","v":"ifrs-full:IncreaseDecreaseThroughTransfersAndOtherChangesPropertyPlantAndEquipmentAbstract"}]
["/*",null,{"$f":"'822100 - Nota. Prop, plan y eq.'!$D$31","v":"Incrementos (disminuciones) por transferencias desde (hacia) propiedades de inversión, propiedades, planta y equipo"},{"$f":"'822100 - Nota. Prop, plan y eq.'!$C$31","v":"ifrs-full:IncreaseDecreaseThroughTransfersFromToInvestmentPropertyPropertyPlantAndEquipment"}]
["/*",null,{"$f":"'822100 - Nota. Prop, plan y eq.'!$D$32","v":"Incrementos (disminuciones) por transferencias desde construcciones en proceso , propiedades, planta y equipo"},{"$f":"'822100 - Nota. Prop, plan y eq.'!$C$32","v":"ifrs-full:IncreaseDecreaseThroughTransfersFromConstructionInProgressPropertyPlantAndEquipment"}]
["/*",null,{"$f":"'822100 - Nota. Prop, plan y eq.'!$D$33","v":"Incrementos (disminuciones) por otros cambios, propiedades, planta y equipo"},{"$f":"'822100 - Nota. Prop, plan y eq.'!$C$33","v":"ifrs-full:IncreaseDecreaseThroughOtherChangesPropertyPlantAndEquipment"}]
["",null,{"$f":"'822100 - Nota. Prop, plan y eq.'!$D$34","v":"Total incrementos (disminuciones) por transferencias y otros cambios, propiedades, planta y equipo"},{"$f":"'822100 - Nota. Prop, plan y eq.'!$C$34","v":"ifrs-full:IncreaseDecreaseThroughTransfersAndOtherChangesPropertyPlantAndEquipment"},0,"peso",{"$f":"'822100 - Nota. Prop, plan y eq.'!$T$34","v":0},800001965,"http://www.xbrl.org/scheme/companyName",{"$f":"Periodos!$C$3","v":"2017-01-01"},{"$f":"Periodos!$C$4","v":"2017-12-31"},{"$f":"'822100 - Nota. Prop, plan y eq.'!$D$11","v":"co-svsp-core_2017-12-31:PropiedadesPlantaYEquipoEje_G1"},{"$f":"'822100 - Nota. Prop, plan y eq.'!$T$10","v":"ifrs-full:TangibleExplorationAndEvaluationAssetsMember"}]
["/*",null,{"$f":"'822100 - Nota. Prop, plan y eq.'!$D$35","v":"Disposiciones y retiros de servicio, propiedades, planta y equipo [resumen]"},{"$f":"'822100 - Nota. Prop, plan y eq.'!$C$35","v":"ifrs-full:DisposalsAndRetirementsPropertyPlantAndEquipmentAbstract"}]
["/*",null,{"$f":"'822100 - Nota. Prop, plan y eq.'!$D$36","v":"Disposiciones, propiedades, planta y equipo"},{"$f":"'822100 - Nota. Prop, plan y eq.'!$C$36","v":"ifrs-full:DisposalsPropertyPlantAndEquipment"}]
["/*",null,{"$f":"'822100 - Nota. Prop, plan y eq.'!$D$37","v":"Retiros, propiedades, planta y equipo"},{"$f":"'822100 - Nota. Prop, plan y eq.'!$C$37","v":"ifrs-full:RetirementsPropertyPlantAndEquipment"}]
["",null,{"$f":"'822100 - Nota. Prop, plan y eq.'!$D$38","v":"Total de disposiciones y retiros de servicio, propiedades, planta y equipo"},{"$f":"'822100 - Nota. Prop, plan y eq.'!$C$38","v":"ifrs-full:DisposalsAndRetirementsPropertyPlantAndEquipment"},0,"peso",{"$f":"'822100 - Nota. Prop, plan y eq.'!$T$38","v":0},800001965,"http://www.xbrl.org/scheme/companyName",{"$f":"Periodos!$C$3","v":"2017-01-01"},{"$f":"Periodos!$C$4","v":"2017-12-31"},{"$f":"'822100 - Nota. Prop, plan y eq.'!$D$11","v":"co-svsp-core_2017-12-31:PropiedadesPlantaYEquipoEje_G1"},{"$f":"'822100 - Nota. Prop, plan y eq.'!$T$10","v":"ifrs-full:TangibleExplorationAndEvaluationAssetsMember"}]
["/*",null,{"$f":"'822100 - Nota. Prop, plan y eq.'!$D$39","v":"Disminuciones por clasificar como mantenidos para la venta, propiedades, planta y equipo"},{"$f":"'822100 - Nota. Prop, plan y eq.'!$C$39","v":"ifrs-full:DecreaseThroughClassifiedAsHeldForSalePropertyPlantAndEquipment"}]
["",null,{"$f":"'822100 - Nota. Prop, plan y eq.'!$D$40","v":"Total incremento (disminución) en propiedades, planta y equipo"},{"$f":"'822100 - Nota. Prop, plan y eq.'!$C$40","v":"ifrs-full:ChangesInPropertyPlantAndEquipment"},0,"peso",{"$f":"'822100 - Nota. Prop, plan y eq.'!$T$40","v":0},800001965,"http://www.xbrl.org/scheme/companyName",{"$f":"Periodos!$C$3","v":"2017-01-01"},{"$f":"Periodos!$C$4","v":"2017-12-31"},{"$f":"'822100 - Nota. Prop, plan y eq.'!$D$11","v":"co-svsp-core_2017-12-31:PropiedadesPlantaYEquipoEje_G1"},{"$f":"'822100 - Nota. Prop, plan y eq.'!$T$10","v":"ifrs-full:TangibleExplorationAndEvaluationAssetsMember"}]
["",null,{"$f":"'822100 - Nota. Prop, plan y eq.'!$D$41","v":"Propiedades, planta y equipo al final del periodo"},{"$f":"'822100 - Nota. Prop, plan y eq.'!$C$41","v":"co-svsp-core_2017-12-31:PropertyPlantAndEquipmentEndOfPeriod"},0,"peso",{"$f":"'822100 - Nota. Prop, plan y eq.'!$T$41","v":0},800001965,"http://www.xbrl.org/scheme/companyName",{"$f":"Periodos!$C$3","v":"2017-01-01"},{"$f":"Periodos!$C$4","v":"2017-12-31"},{"$f":"'822100 - Nota. Prop, plan y eq.'!$D$11","v":"co-svsp-core_2017-12-31:PropiedadesPlantaYEquipoEje_G1"},{"$f":"'822100 - Nota. Prop, plan y eq.'!$T$10","v":"ifrs-full:TangibleExplorationAndEvaluationAssetsMember"}]
["/*",null,"--17--"]
["/*",null,{"$f":"'822100 - Nota. Prop, plan y eq.'!$D$12","v":"Información a revelar detallada sobre propiedades, planta y equipo [partidas de los estados financieros]"},{"$f":"'822100 - Nota. Prop, plan y eq.'!$C$12","v":"ifrs-full:DisclosureOfPropertyPlantAndEquipmentLineItems"}]
["/*",null,{"$f":"'822100 - Nota. Prop, plan y eq.'!$D$13","v":"Bases de medición, propiedades, planta y equipo"},{"$f":"'822100 - Nota. Prop, plan y eq.'!$C$13","v":"ifrs-full:MeasurementBasesPropertyPlantAndEquipment"}]
["/*",null,{"$f":"'822100 - Nota. Prop, plan y eq.'!$D$14","v":"Método de depreciación, propiedades, planta y equipo"},{"$f":"'822100 - Nota. Prop, plan y eq.'!$C$14","v":"ifrs-full:DepreciationMethodPropertyPlantAndEquipment"}]
["/*",null,{"$f":"'822100 - Nota. Prop, plan y eq.'!$D$15","v":"Vidas útiles o tasas de depreciación, propiedades, planta y equipo"},{"$f":"'822100 - Nota. Prop, plan y eq.'!$C$15","v":"ifrs-full:UsefulLivesOrDepreciationRatesPropertyPlantAndEquipment"}]
["/*",null,{"$f":"'822100 - Nota. Prop, plan y eq.'!$D$16","v":"Fechas de vigencia de revaluación, propiedades, planta y equipo"},{"$f":"'822100 - Nota. Prop, plan y eq.'!$C$16","v":"ifrs-full:EffectiveDatesOfRevaluationPropertyPlantAndEquipment"}]
["/*",null,{"$f":"'822100 - Nota. Prop, plan y eq.'!$D$17","v":"Explicación de la implicación del tasador independiente en la revaluación, propiedades, planta y equipo"},{"$f":"'822100 - Nota. Prop, plan y eq.'!$C$17","v":"ifrs-full:ExplanationOfIndependentValuerUsedForRevaluationPropertyPlantAndEquipment"}]
["/*",null,{"$f":"'822100 - Nota. Prop, plan y eq.'!$D$18","v":"Explicación del método de revaluación y supuestos significativos, propiedad, planta y equipo"},{"$f":"'822100 - Nota. Prop, plan y eq.'!$C$18","v":"co-svsp-core_2017-12-31:ExplanationOfRevaluationMethodsAndSignificantAssumptionsPropertyPlantAndEquipment"}]
["/*",null,{"$f":"'822100 - Nota. Prop, plan y eq.'!$D$19","v":"Conciliación de cambios en propiedades, planta y equipo [resumen]"},{"$f":"'822100 - Nota. Prop, plan y eq.'!$C$19","v":"ifrs-full:ReconciliationOfChangesInPropertyPlantAndEquipmentAbstract"}]
["",null,{"$f":"'822100 - Nota. Prop, plan y eq.'!$D$20","v":"Propiedades, planta y equipo al comienzo del periodo"},{"$f":"'822100 - Nota. Prop, plan y eq.'!$C$20","v":"co-svsp-core_2017-12-31:PropertyPlantAndEquipmentBeginningOfPeriod"},0,"peso",{"$f":"'822100 - Nota. Prop, plan y eq.'!$U$20","v":0},800001965,"http://www.xbrl.org/scheme/companyName",{"$f":"Periodos!$C$3","v":"2017-01-01"},{"$f":"Periodos!$C$4","v":"2017-12-31"},{"$f":"'822100 - Nota. Prop, plan y eq.'!$D$11","v":"co-svsp-core_2017-12-31:PropiedadesPlantaYEquipoEje_G1"},{"$f":"'822100 - Nota. Prop, plan y eq.'!$U$10","v":"ifrs-full:LeaseholdImprovementsMember"}]
["/*",null,{"$f":"'822100 - Nota. Prop, plan y eq.'!$D$21","v":"Cambios en propiedades, planta y equipo [resumen]"},{"$f":"'822100 - Nota. Prop, plan y eq.'!$C$21","v":"ifrs-full:ChangesInPropertyPlantAndEquipmentAbstract"}]
["/*",null,{"$f":"'822100 - Nota. Prop, plan y eq.'!$D$22","v":"Incrementos distintos de los procedentes de combinaciones de negocios, propiedades, planta y equipo"},{"$f":"'822100 - Nota. Prop, plan y eq.'!$C$22","v":"ifrs-full:AdditionsOtherThanThroughBusinessCombinationsPropertyPlantAndEquipment"}]
["/*",null,{"$f":"'822100 - Nota. Prop, plan y eq.'!$D$23","v":"Adquisiciones realizadas mediante combinaciones de negocios, propiedades, planta y equipo"},{"$f":"'822100 - Nota. Prop, plan y eq.'!$C$23","v":"ifrs-full:AcquisitionsThroughBusinessCombinationsPropertyPlantAndEquipment"}]
["/*",null,{"$f":"'822100 - Nota. Prop, plan y eq.'!$D$24","v":"Depreciación, propiedades, planta y equipo"},{"$f":"'822100 - Nota. Prop, plan y eq.'!$C$24","v":"ifrs-full:DepreciationPropertyPlantAndEquipment"}]
[{"$f":"IF(G6369=\"\",\"/*\",\"\")","v":"/*"},null,{"$f":"'822100 - Nota. Prop, plan y eq.'!$D$25","v":"Pérdidas por deterioro de valor reconocidas en el resultado del periodo, propiedades, planta y equipo"},{"$f":"'822100 - Nota. Prop, plan y eq.'!$C$25","v":"ifrs-full:ImpairmentLossRecognisedInProfitOrLossPropertyPlantAndEquipment"}]
["/*",null,{"$f":"'822100 - Nota. Prop, plan y eq.'!$D$26","v":"Reversión de pérdidas por deterioro de valor reconocidas en el resultado del periodo, propiedades, planta y equipo"},{"$f":"'822100 - Nota. Prop, plan y eq.'!$C$26","v":"ifrs-full:ReversalOfImpairmentLossRecognisedInProfitOrLossPropertyPlantAndEquipment"}]
["/*",null,{"$f":"'822100 - Nota. Prop, plan y eq.'!$D$27","v":"Incrementos (disminuciones) de revaluaciones, propiedades, planta y equipo"},{"$f":"'822100 - Nota. Prop, plan y eq.'!$C$27","v":"ifrs-full:RevaluationIncreaseDecreasePropertyPlantAndEquipment"}]
["/*",null,{"$f":"'822100 - Nota. Prop, plan y eq.'!$D$28","v":"Pérdidas por deterioro de valor reconocidas en otro resultado integral, propiedades, planta y equipo"},{"$f":"'822100 - Nota. Prop, plan y eq.'!$C$28","v":"ifrs-full:ImpairmentLossRecognisedInOtherComprehensiveIncomePropertyPlantAndEquipment"}]
["/*",null,{"$f":"'822100 - Nota. Prop, plan y eq.'!$D$29","v":"Reversión de pérdidas por deterioro de valor reconocidas en otro resultado integral, propiedades, planta y equipo"},{"$f":"'822100 - Nota. Prop, plan y eq.'!$C$29","v":"ifrs-full:ReversalOfImpairmentLossRecognisedInOtherComprehensiveIncomePropertyPlantAndEquipment"}]
["/*",null,{"$f":"'822100 - Nota. Prop, plan y eq.'!$D$30","v":"Incrementos (disminuciones) por transferencias y otros cambios, propiedades, planta y equipo [resumen]"},{"$f":"'822100 - Nota. Prop, plan y eq.'!$C$30","v":"ifrs-full:IncreaseDecreaseThroughTransfersAndOtherChangesPropertyPlantAndEquipmentAbstract"}]
["/*",null,{"$f":"'822100 - Nota. Prop, plan y eq.'!$D$31","v":"Incrementos (disminuciones) por transferencias desde (hacia) propiedades de inversión, propiedades, planta y equipo"},{"$f":"'822100 - Nota. Prop, plan y eq.'!$C$31","v":"ifrs-full:IncreaseDecreaseThroughTransfersFromToInvestmentPropertyPropertyPlantAndEquipment"}]
["/*",null,{"$f":"'822100 - Nota. Prop, plan y eq.'!$D$32","v":"Incrementos (disminuciones) por transferencias desde construcciones en proceso , propiedades, planta y equipo"},{"$f":"'822100 - Nota. Prop, plan y eq.'!$C$32","v":"ifrs-full:IncreaseDecreaseThroughTransfersFromConstructionInProgressPropertyPlantAndEquipment"}]
["/*",null,{"$f":"'822100 - Nota. Prop, plan y eq.'!$D$33","v":"Incrementos (disminuciones) por otros cambios, propiedades, planta y equipo"},{"$f":"'822100 - Nota. Prop, plan y eq.'!$C$33","v":"ifrs-full:IncreaseDecreaseThroughOtherChangesPropertyPlantAndEquipment"}]
["",null,{"$f":"'822100 - Nota. Prop, plan y eq.'!$D$34","v":"Total incrementos (disminuciones) por transferencias y otros cambios, propiedades, planta y equipo"},{"$f":"'822100 - Nota. Prop, plan y eq.'!$C$34","v":"ifrs-full:IncreaseDecreaseThroughTransfersAndOtherChangesPropertyPlantAndEquipment"},0,"peso",{"$f":"'822100 - Nota. Prop, plan y eq.'!$U$34","v":0},800001965,"http://www.xbrl.org/scheme/companyName",{"$f":"Periodos!$C$3","v":"2017-01-01"},{"$f":"Periodos!$C$4","v":"2017-12-31"},{"$f":"'822100 - Nota. Prop, plan y eq.'!$D$11","v":"co-svsp-core_2017-12-31:PropiedadesPlantaYEquipoEje_G1"},{"$f":"'822100 - Nota. Prop, plan y eq.'!$U$10","v":"ifrs-full:LeaseholdImprovementsMember"}]
["/*",null,{"$f":"'822100 - Nota. Prop, plan y eq.'!$D$35","v":"Disposiciones y retiros de servicio, propiedades, planta y equipo [resumen]"},{"$f":"'822100 - Nota. Prop, plan y eq.'!$C$35","v":"ifrs-full:DisposalsAndRetirementsPropertyPlantAndEquipmentAbstract"}]
["/*",null,{"$f":"'822100 - Nota. Prop, plan y eq.'!$D$36","v":"Disposiciones, propiedades, planta y equipo"},{"$f":"'822100 - Nota. Prop, plan y eq.'!$C$36","v":"ifrs-full:DisposalsPropertyPlantAndEquipment"}]
["/*",null,{"$f":"'822100 - Nota. Prop, plan y eq.'!$D$37","v":"Retiros, propiedades, planta y equipo"},{"$f":"'822100 - Nota. Prop, plan y eq.'!$C$37","v":"ifrs-full:RetirementsPropertyPlantAndEquipment"}]
["",null,{"$f":"'822100 - Nota. Prop, plan y eq.'!$D$38","v":"Total de disposiciones y retiros de servicio, propiedades, planta y equipo"},{"$f":"'822100 - Nota. Prop, plan y eq.'!$C$38","v":"ifrs-full:DisposalsAndRetirementsPropertyPlantAndEquipment"},0,"peso",{"$f":"'822100 - Nota. Prop, plan y eq.'!$U$38","v":0},800001965,"http://www.xbrl.org/scheme/companyName",{"$f":"Periodos!$C$3","v":"2017-01-01"},{"$f":"Periodos!$C$4","v":"2017-12-31"},{"$f":"'822100 - Nota. Prop, plan y eq.'!$D$11","v":"co-svsp-core_2017-12-31:PropiedadesPlantaYEquipoEje_G1"},{"$f":"'822100 - Nota. Prop, plan y eq.'!$U$10","v":"ifrs-full:LeaseholdImprovementsMember"}]
["/*",null,{"$f":"'822100 - Nota. Prop, plan y eq.'!$D$39","v":"Disminuciones por clasificar como mantenidos para la venta, propiedades, planta y equipo"},{"$f":"'822100 - Nota. Prop, plan y eq.'!$C$39","v":"ifrs-full:DecreaseThroughClassifiedAsHeldForSalePropertyPlantAndEquipment"}]
["",null,{"$f":"'822100 - Nota. Prop, plan y eq.'!$D$40","v":"Total incremento (disminución) en propiedades, planta y equipo"},{"$f":"'822100 - Nota. Prop, plan y eq.'!$C$40","v":"ifrs-full:ChangesInPropertyPlantAndEquipment"},0,"peso",{"$f":"'822100 - Nota. Prop, plan y eq.'!$U$40","v":0},800001965,"http://www.xbrl.org/scheme/companyName",{"$f":"Periodos!$C$3","v":"2017-01-01"},{"$f":"Periodos!$C$4","v":"2017-12-31"},{"$f":"'822100 - Nota. Prop, plan y eq.'!$D$11","v":"co-svsp-core_2017-12-31:PropiedadesPlantaYEquipoEje_G1"},{"$f":"'822100 - Nota. Prop, plan y eq.'!$U$10","v":"ifrs-full:LeaseholdImprovementsMember"}]
["",null,{"$f":"'822100 - Nota. Prop, plan y eq.'!$D$41","v":"Propiedades, planta y equipo al final del periodo"},{"$f":"'822100 - Nota. Prop, plan y eq.'!$C$41","v":"co-svsp-core_2017-12-31:PropertyPlantAndEquipmentEndOfPeriod"},0,"peso",{"$f":"'822100 - Nota. Prop, plan y eq.'!$U$41","v":0},800001965,"http://www.xbrl.org/scheme/companyName",{"$f":"Periodos!$C$3","v":"2017-01-01"},{"$f":"Periodos!$C$4","v":"2017-12-31"},{"$f":"'822100 - Nota. Prop, plan y eq.'!$D$11","v":"co-svsp-core_2017-12-31:PropiedadesPlantaYEquipoEje_G1"},{"$f":"'822100 - Nota. Prop, plan y eq.'!$U$10","v":"ifrs-full:LeaseholdImprovementsMember"}]
["/*",null,"--18--"]
["/*",null,{"$f":"'822100 - Nota. Prop, plan y eq.'!$D$12","v":"Información a revelar detallada sobre propiedades, planta y equipo [partidas de los estados financieros]"},{"$f":"'822100 - Nota. Prop, plan y eq.'!$C$12","v":"ifrs-full:DisclosureOfPropertyPlantAndEquipmentLineItems"}]
["/*",null,{"$f":"'822100 - Nota. Prop, plan y eq.'!$D$13","v":"Bases de medición, propiedades, planta y equipo"},{"$f":"'822100 - Nota. Prop, plan y eq.'!$C$13","v":"ifrs-full:MeasurementBasesPropertyPlantAndEquipment"}]
["/*",null,{"$f":"'822100 - Nota. Prop, plan y eq.'!$D$14","v":"Método de depreciación, propiedades, planta y equipo"},{"$f":"'822100 - Nota. Prop, plan y eq.'!$C$14","v":"ifrs-full:DepreciationMethodPropertyPlantAndEquipment"}]
["/*",null,{"$f":"'822100 - Nota. Prop, plan y eq.'!$D$15","v":"Vidas útiles o tasas de depreciación, propiedades, planta y equipo"},{"$f":"'822100 - Nota. Prop, plan y eq.'!$C$15","v":"ifrs-full:UsefulLivesOrDepreciationRatesPropertyPlantAndEquipment"}]
["/*",null,{"$f":"'822100 - Nota. Prop, plan y eq.'!$D$16","v":"Fechas de vigencia de revaluación, propiedades, planta y equipo"},{"$f":"'822100 - Nota. Prop, plan y eq.'!$C$16","v":"ifrs-full:EffectiveDatesOfRevaluationPropertyPlantAndEquipment"}]
["/*",null,{"$f":"'822100 - Nota. Prop, plan y eq.'!$D$17","v":"Explicación de la implicación del tasador independiente en la revaluación, propiedades, planta y equipo"},{"$f":"'822100 - Nota. Prop, plan y eq.'!$C$17","v":"ifrs-full:ExplanationOfIndependentValuerUsedForRevaluationPropertyPlantAndEquipment"}]
["/*",null,{"$f":"'822100 - Nota. Prop, plan y eq.'!$D$18","v":"Explicación del método de revaluación y supuestos significativos, propiedad, planta y equipo"},{"$f":"'822100 - Nota. Prop, plan y eq.'!$C$18","v":"co-svsp-core_2017-12-31:ExplanationOfRevaluationMethodsAndSignificantAssumptionsPropertyPlantAndEquipment"}]
["/*",null,{"$f":"'822100 - Nota. Prop, plan y eq.'!$D$19","v":"Conciliación de cambios en propiedades, planta y equipo [resumen]"},{"$f":"'822100 - Nota. Prop, plan y eq.'!$C$19","v":"ifrs-full:ReconciliationOfChangesInPropertyPlantAndEquipmentAbstract"}]
["",null,{"$f":"'822100 - Nota. Prop, plan y eq.'!$D$20","v":"Propiedades, planta y equipo al comienzo del periodo"},{"$f":"'822100 - Nota. Prop, plan y eq.'!$C$20","v":"co-svsp-core_2017-12-31:PropertyPlantAndEquipmentBeginningOfPeriod"},0,"peso",{"$f":"'822100 - Nota. Prop, plan y eq.'!$V$20","v":0},800001965,"http://www.xbrl.org/scheme/companyName",{"$f":"Periodos!$C$3","v":"2017-01-01"},{"$f":"Periodos!$C$4","v":"2017-12-31"},{"$f":"'822100 - Nota. Prop, plan y eq.'!$D$11","v":"co-svsp-core_2017-12-31:PropiedadesPlantaYEquipoEje_G1"},{"$f":"'822100 - Nota. Prop, plan y eq.'!$V$10","v":"ifrs-full:PropertyPlantAndEquipmentUnderOperatingLeasesMember"}]
["/*",null,{"$f":"'822100 - Nota. Prop, plan y eq.'!$D$21","v":"Cambios en propiedades, planta y equipo [resumen]"},{"$f":"'822100 - Nota. Prop, plan y eq.'!$C$21","v":"ifrs-full:ChangesInPropertyPlantAndEquipmentAbstract"}]
["/*",null,{"$f":"'822100 - Nota. Prop, plan y eq.'!$D$22","v":"Incrementos distintos de los procedentes de combinaciones de negocios, propiedades, planta y equipo"},{"$f":"'822100 - Nota. Prop, plan y eq.'!$C$22","v":"ifrs-full:AdditionsOtherThanThroughBusinessCombinationsPropertyPlantAndEquipment"}]
["/*",null,{"$f":"'822100 - Nota. Prop, plan y eq.'!$D$23","v":"Adquisiciones realizadas mediante combinaciones de negocios, propiedades, planta y equipo"},{"$f":"'822100 - Nota. Prop, plan y eq.'!$C$23","v":"ifrs-full:AcquisitionsThroughBusinessCombinationsPropertyPlantAndEquipment"}]
["/*",null,{"$f":"'822100 - Nota. Prop, plan y eq.'!$D$24","v":"Depreciación, propiedades, planta y equipo"},{"$f":"'822100 - Nota. Prop, plan y eq.'!$C$24","v":"ifrs-full:DepreciationPropertyPlantAndEquipment"}]
["/*",null,{"$f":"'822100 - Nota. Prop, plan y eq.'!$D$25","v":"Pérdidas por deterioro de valor reconocidas en el resultado del periodo, propiedades, planta y equipo"},{"$f":"'822100 - Nota. Prop, plan y eq.'!$C$25","v":"ifrs-full:ImpairmentLossRecognisedInProfitOrLossPropertyPlantAndEquipment"}]
["/*",null,{"$f":"'822100 - Nota. Prop, plan y eq.'!$D$26","v":"Reversión de pérdidas por deterioro de valor reconocidas en el resultado del periodo, propiedades, planta y equipo"},{"$f":"'822100 - Nota. Prop, plan y eq.'!$C$26","v":"ifrs-full:ReversalOfImpairmentLossRecognisedInProfitOrLossPropertyPlantAndEquipment"}]
["/*",null,{"$f":"'822100 - Nota. Prop, plan y eq.'!$D$27","v":"Incrementos (disminuciones) de revaluaciones, propiedades, planta y equipo"},{"$f":"'822100 - Nota. Prop, plan y eq.'!$C$27","v":"ifrs-full:RevaluationIncreaseDecreasePropertyPlantAndEquipment"}]
["/*",null,{"$f":"'822100 - Nota. Prop, plan y eq.'!$D$28","v":"Pérdidas por deterioro de valor reconocidas en otro resultado integral, propiedades, planta y equipo"},{"$f":"'822100 - Nota. Prop, plan y eq.'!$C$28","v":"ifrs-full:ImpairmentLossRecognisedInOtherComprehensiveIncomePropertyPlantAndEquipment"}]
["/*",null,{"$f":"'822100 - Nota. Prop, plan y eq.'!$D$29","v":"Reversión de pérdidas por deterioro de valor reconocidas en otro resultado integral, propiedades, planta y equipo"},{"$f":"'822100 - Nota. Prop, plan y eq.'!$C$29","v":"ifrs-full:ReversalOfImpairmentLossRecognisedInOtherComprehensiveIncomePropertyPlantAndEquipment"}]
["/*",null,{"$f":"'822100 - Nota. Prop, plan y eq.'!$D$30","v":"Incrementos (disminuciones) por transferencias y otros cambios, propiedades, planta y equipo [resumen]"},{"$f":"'822100 - Nota. Prop, plan y eq.'!$C$30","v":"ifrs-full:IncreaseDecreaseThroughTransfersAndOtherChangesPropertyPlantAndEquipmentAbstract"}]
["/*",null,{"$f":"'822100 - Nota. Prop, plan y eq.'!$D$31","v":"Incrementos (disminuciones) por transferencias desde (hacia) propiedades de inversión, propiedades, planta y equipo"},{"$f":"'822100 - Nota. Prop, plan y eq.'!$C$31","v":"ifrs-full:IncreaseDecreaseThroughTransfersFromToInvestmentPropertyPropertyPlantAndEquipment"}]
["/*",null,{"$f":"'822100 - Nota. Prop, plan y eq.'!$D$32","v":"Incrementos (disminuciones) por transferencias desde construcciones en proceso , propiedades, planta y equipo"},{"$f":"'822100 - Nota. Prop, plan y eq.'!$C$32","v":"ifrs-full:IncreaseDecreaseThroughTransfersFromConstructionInProgressPropertyPlantAndEquipment"}]
["/*",null,{"$f":"'822100 - Nota. Prop, plan y eq.'!$D$33","v":"Incrementos (disminuciones) por otros cambios, propiedades, planta y equipo"},{"$f":"'822100 - Nota. Prop, plan y eq.'!$C$33","v":"ifrs-full:IncreaseDecreaseThroughOtherChangesPropertyPlantAndEquipment"}]
["",null,{"$f":"'822100 - Nota. Prop, plan y eq.'!$D$34","v":"Total incrementos (disminuciones) por transferencias y otros cambios, propiedades, planta y equipo"},{"$f":"'822100 - Nota. Prop, plan y eq.'!$C$34","v":"ifrs-full:IncreaseDecreaseThroughTransfersAndOtherChangesPropertyPlantAndEquipment"},0,"peso",{"$f":"'822100 - Nota. Prop, plan y eq.'!$V$34","v":0},800001965,"http://www.xbrl.org/scheme/companyName",{"$f":"Periodos!$C$3","v":"2017-01-01"},{"$f":"Periodos!$C$4","v":"2017-12-31"},{"$f":"'822100 - Nota. Prop, plan y eq.'!$D$11","v":"co-svsp-core_2017-12-31:PropiedadesPlantaYEquipoEje_G1"},{"$f":"'822100 - Nota. Prop, plan y eq.'!$V$10","v":"ifrs-full:PropertyPlantAndEquipmentUnderOperatingLeasesMember"}]
["/*",null,{"$f":"'822100 - Nota. Prop, plan y eq.'!$D$35","v":"Disposiciones y retiros de servicio, propiedades, planta y equipo [resumen]"},{"$f":"'822100 - Nota. Prop, plan y eq.'!$C$35","v":"ifrs-full:DisposalsAndRetirementsPropertyPlantAndEquipmentAbstract"}]
["/*",null,{"$f":"'822100 - Nota. Prop, plan y eq.'!$D$36","v":"Disposiciones, propiedades, planta y equipo"},{"$f":"'822100 - Nota. Prop, plan y eq.'!$C$36","v":"ifrs-full:DisposalsPropertyPlantAndEquipment"}]
["/*",null,{"$f":"'822100 - Nota. Prop, plan y eq.'!$D$37","v":"Retiros, propiedades, planta y equipo"},{"$f":"'822100 - Nota. Prop, plan y eq.'!$C$37","v":"ifrs-full:RetirementsPropertyPlantAndEquipment"}]
["",null,{"$f":"'822100 - Nota. Prop, plan y eq.'!$D$38","v":"Total de disposiciones y retiros de servicio, propiedades, planta y equipo"},{"$f":"'822100 - Nota. Prop, plan y eq.'!$C$38","v":"ifrs-full:DisposalsAndRetirementsPropertyPlantAndEquipment"},0,"peso",{"$f":"'822100 - Nota. Prop, plan y eq.'!$V$38","v":0},800001965,"http://www.xbrl.org/scheme/companyName",{"$f":"Periodos!$C$3","v":"2017-01-01"},{"$f":"Periodos!$C$4","v":"2017-12-31"},{"$f":"'822100 - Nota. Prop, plan y eq.'!$D$11","v":"co-svsp-core_2017-12-31:PropiedadesPlantaYEquipoEje_G1"},{"$f":"'822100 - Nota. Prop, plan y eq.'!$V$10","v":"ifrs-full:PropertyPlantAndEquipmentUnderOperatingLeasesMember"}]
["/*",null,{"$f":"'822100 - Nota. Prop, plan y eq.'!$D$39","v":"Disminuciones por clasificar como mantenidos para la venta, propiedades, planta y equipo"},{"$f":"'822100 - Nota. Prop, plan y eq.'!$C$39","v":"ifrs-full:DecreaseThroughClassifiedAsHeldForSalePropertyPlantAndEquipment"}]
["",null,{"$f":"'822100 - Nota. Prop, plan y eq.'!$D$40","v":"Total incremento (disminución) en propiedades, planta y equipo"},{"$f":"'822100 - Nota. Prop, plan y eq.'!$C$40","v":"ifrs-full:ChangesInPropertyPlantAndEquipment"},0,"peso",{"$f":"'822100 - Nota. Prop, plan y eq.'!$V$40","v":0},800001965,"http://www.xbrl.org/scheme/companyName",{"$f":"Periodos!$C$3","v":"2017-01-01"},{"$f":"Periodos!$C$4","v":"2017-12-31"},{"$f":"'822100 - Nota. Prop, plan y eq.'!$D$11","v":"co-svsp-core_2017-12-31:PropiedadesPlantaYEquipoEje_G1"},{"$f":"'822100 - Nota. Prop, plan y eq.'!$V$10","v":"ifrs-full:PropertyPlantAndEquipmentUnderOperatingLeasesMember"}]
["",null,{"$f":"'822100 - Nota. Prop, plan y eq.'!$D$41","v":"Propiedades, planta y equipo al final del periodo"},{"$f":"'822100 - Nota. Prop, plan y eq.'!$C$41","v":"co-svsp-core_2017-12-31:PropertyPlantAndEquipmentEndOfPeriod"},0,"peso",{"$f":"'822100 - Nota. Prop, plan y eq.'!$V$41","v":0},800001965,"http://www.xbrl.org/scheme/companyName",{"$f":"Periodos!$C$3","v":"2017-01-01"},{"$f":"Periodos!$C$4","v":"2017-12-31"},{"$f":"'822100 - Nota. Prop, plan y eq.'!$D$11","v":"co-svsp-core_2017-12-31:PropiedadesPlantaYEquipoEje_G1"},{"$f":"'822100 - Nota. Prop, plan y eq.'!$V$10","v":"ifrs-full:PropertyPlantAndEquipmentUnderOperatingLeasesMember"}]
["/*",null,"--19--"]
["/*",null,{"$f":"'822100 - Nota. Prop, plan y eq.'!$D$12","v":"Información a revelar detallada sobre propiedades, planta y equipo [partidas de los estados financieros]"},{"$f":"'822100 - Nota. Prop, plan y eq.'!$C$12","v":"ifrs-full:DisclosureOfPropertyPlantAndEquipmentLineItems"}]
["/*",null,{"$f":"'822100 - Nota. Prop, plan y eq.'!$D$13","v":"Bases de medición, propiedades, planta y equipo"},{"$f":"'822100 - Nota. Prop, plan y eq.'!$C$13","v":"ifrs-full:MeasurementBasesPropertyPlantAndEquipment"}]
["/*",null,{"$f":"'822100 - Nota. Prop, plan y eq.'!$D$14","v":"Método de depreciación, propiedades, planta y equipo"},{"$f":"'822100 - Nota. Prop, plan y eq.'!$C$14","v":"ifrs-full:DepreciationMethodPropertyPlantAndEquipment"}]
["/*",null,{"$f":"'822100 - Nota. Prop, plan y eq.'!$D$15","v":"Vidas útiles o tasas de depreciación, propiedades, planta y equipo"},{"$f":"'822100 - Nota. Prop, plan y eq.'!$C$15","v":"ifrs-full:UsefulLivesOrDepreciationRatesPropertyPlantAndEquipment"}]
["/*",null,{"$f":"'822100 - Nota. Prop, plan y eq.'!$D$16","v":"Fechas de vigencia de revaluación, propiedades, planta y equipo"},{"$f":"'822100 - Nota. Prop, plan y eq.'!$C$16","v":"ifrs-full:EffectiveDatesOfRevaluationPropertyPlantAndEquipment"}]
["/*",null,{"$f":"'822100 - Nota. Prop, plan y eq.'!$D$17","v":"Explicación de la implicación del tasador independiente en la revaluación, propiedades, planta y equipo"},{"$f":"'822100 - Nota. Prop, plan y eq.'!$C$17","v":"ifrs-full:ExplanationOfIndependentValuerUsedForRevaluationPropertyPlantAndEquipment"}]
["/*",null,{"$f":"'822100 - Nota. Prop, plan y eq.'!$D$18","v":"Explicación del método de revaluación y supuestos significativos, propiedad, planta y equipo"},{"$f":"'822100 - Nota. Prop, plan y eq.'!$C$18","v":"co-svsp-core_2017-12-31:ExplanationOfRevaluationMethodsAndSignificantAssumptionsPropertyPlantAndEquipment"}]
["/*",null,{"$f":"'822100 - Nota. Prop, plan y eq.'!$D$19","v":"Conciliación de cambios en propiedades, planta y equipo [resumen]"},{"$f":"'822100 - Nota. Prop, plan y eq.'!$C$19","v":"ifrs-full:ReconciliationOfChangesInPropertyPlantAndEquipmentAbstract"}]
["",null,{"$f":"'822100 - Nota. Prop, plan y eq.'!$D$20","v":"Propiedades, planta y equipo al comienzo del periodo"},{"$f":"'822100 - Nota. Prop, plan y eq.'!$C$20","v":"co-svsp-core_2017-12-31:PropertyPlantAndEquipmentBeginningOfPeriod"},0,"peso",{"$f":"'822100 - Nota. Prop, plan y eq.'!$W$20","v":0},800001965,"http://www.xbrl.org/scheme/companyName",{"$f":"Periodos!$C$3","v":"2017-01-01"},{"$f":"Periodos!$C$4","v":"2017-12-31"},{"$f":"'822100 - Nota. Prop, plan y eq.'!$D$11","v":"co-svsp-core_2017-12-31:PropiedadesPlantaYEquipoEje_G1"},{"$f":"'822100 - Nota. Prop, plan y eq.'!$W$10","v":"ifrs-full:ConstructionInProgressMember"}]
["/*",null,{"$f":"'822100 - Nota. Prop, plan y eq.'!$D$21","v":"Cambios en propiedades, planta y equipo [resumen]"},{"$f":"'822100 - Nota. Prop, plan y eq.'!$C$21","v":"ifrs-full:ChangesInPropertyPlantAndEquipmentAbstract"}]
["/*",null,{"$f":"'822100 - Nota. Prop, plan y eq.'!$D$22","v":"Incrementos distintos de los procedentes de combinaciones de negocios, propiedades, planta y equipo"},{"$f":"'822100 - Nota. Prop, plan y eq.'!$C$22","v":"ifrs-full:AdditionsOtherThanThroughBusinessCombinationsPropertyPlantAndEquipment"}]
["/*",null,{"$f":"'822100 - Nota. Prop, plan y eq.'!$D$23","v":"Adquisiciones realizadas mediante combinaciones de negocios, propiedades, planta y equipo"},{"$f":"'822100 - Nota. Prop, plan y eq.'!$C$23","v":"ifrs-full:AcquisitionsThroughBusinessCombinationsPropertyPlantAndEquipment"}]
["/*",null,{"$f":"'822100 - Nota. Prop, plan y eq.'!$D$24","v":"Depreciación, propiedades, planta y equipo"},{"$f":"'822100 - Nota. Prop, plan y eq.'!$C$24","v":"ifrs-full:DepreciationPropertyPlantAndEquipment"}]
["/*",null,{"$f":"'822100 - Nota. Prop, plan y eq.'!$D$25","v":"Pérdidas por deterioro de valor reconocidas en el resultado del periodo, propiedades, planta y equipo"},{"$f":"'822100 - Nota. Prop, plan y eq.'!$C$25","v":"ifrs-full:ImpairmentLossRecognisedInProfitOrLossPropertyPlantAndEquipment"}]
["/*",null,{"$f":"'822100 - Nota. Prop, plan y eq.'!$D$26","v":"Reversión de pérdidas por deterioro de valor reconocidas en el resultado del periodo, propiedades, planta y equipo"},{"$f":"'822100 - Nota. Prop, plan y eq.'!$C$26","v":"ifrs-full:ReversalOfImpairmentLossRecognisedInProfitOrLossPropertyPlantAndEquipment"}]
[{"$f":"IF(G6433=\"\",\"/*\",\"\")","v":"/*"},null,{"$f":"'822100 - Nota. Prop, plan y eq.'!$D$27","v":"Incrementos (disminuciones) de revaluaciones, propiedades, planta y equipo"},{"$f":"'822100 - Nota. Prop, plan y eq.'!$C$27","v":"ifrs-full:RevaluationIncreaseDecreasePropertyPlantAndEquipment"}]
["/*",null,{"$f":"'822100 - Nota. Prop, plan y eq.'!$D$28","v":"Pérdidas por deterioro de valor reconocidas en otro resultado integral, propiedades, planta y equipo"},{"$f":"'822100 - Nota. Prop, plan y eq.'!$C$28","v":"ifrs-full:ImpairmentLossRecognisedInOtherComprehensiveIncomePropertyPlantAndEquipment"}]
["/*",null,{"$f":"'822100 - Nota. Prop, plan y eq.'!$D$29","v":"Reversión de pérdidas por deterioro de valor reconocidas en otro resultado integral, propiedades, planta y equipo"},{"$f":"'822100 - Nota. Prop, plan y eq.'!$C$29","v":"ifrs-full:ReversalOfImpairmentLossRecognisedInOtherComprehensiveIncomePropertyPlantAndEquipment"}]
["/*",null,{"$f":"'822100 - Nota. Prop, plan y eq.'!$D$30","v":"Incrementos (disminuciones) por transferencias y otros cambios, propiedades, planta y equipo [resumen]"},{"$f":"'822100 - Nota. Prop, plan y eq.'!$C$30","v":"ifrs-full:IncreaseDecreaseThroughTransfersAndOtherChangesPropertyPlantAndEquipmentAbstract"}]
["/*",null,{"$f":"'822100 - Nota. Prop, plan y eq.'!$D$31","v":"Incrementos (disminuciones) por transferencias desde (hacia) propiedades de inversión, propiedades, planta y equipo"},{"$f":"'822100 - Nota. Prop, plan y eq.'!$C$31","v":"ifrs-full:IncreaseDecreaseThroughTransfersFromToInvestmentPropertyPropertyPlantAndEquipment"}]
["/*",null,{"$f":"'822100 - Nota. Prop, plan y eq.'!$D$32","v":"Incrementos (disminuciones) por transferencias desde construcciones en proceso , propiedades, planta y equipo"},{"$f":"'822100 - Nota. Prop, plan y eq.'!$C$32","v":"ifrs-full:IncreaseDecreaseThroughTransfersFromConstructionInProgressPropertyPlantAndEquipment"}]
["/*",null,{"$f":"'822100 - Nota. Prop, plan y eq.'!$D$33","v":"Incrementos (disminuciones) por otros cambios, propiedades, planta y equipo"},{"$f":"'822100 - Nota. Prop, plan y eq.'!$C$33","v":"ifrs-full:IncreaseDecreaseThroughOtherChangesPropertyPlantAndEquipment"}]
["",null,{"$f":"'822100 - Nota. Prop, plan y eq.'!$D$34","v":"Total incrementos (disminuciones) por transferencias y otros cambios, propiedades, planta y equipo"},{"$f":"'822100 - Nota. Prop, plan y eq.'!$C$34","v":"ifrs-full:IncreaseDecreaseThroughTransfersAndOtherChangesPropertyPlantAndEquipment"},0,"peso",{"$f":"'822100 - Nota. Prop, plan y eq.'!$W$34","v":0},800001965,"http://www.xbrl.org/scheme/companyName",{"$f":"Periodos!$C$3","v":"2017-01-01"},{"$f":"Periodos!$C$4","v":"2017-12-31"},{"$f":"'822100 - Nota. Prop, plan y eq.'!$D$11","v":"co-svsp-core_2017-12-31:PropiedadesPlantaYEquipoEje_G1"},{"$f":"'822100 - Nota. Prop, plan y eq.'!$W$10","v":"ifrs-full:ConstructionInProgressMember"}]
["/*",null,{"$f":"'822100 - Nota. Prop, plan y eq.'!$D$35","v":"Disposiciones y retiros de servicio, propiedades, planta y equipo [resumen]"},{"$f":"'822100 - Nota. Prop, plan y eq.'!$C$35","v":"ifrs-full:DisposalsAndRetirementsPropertyPlantAndEquipmentAbstract"}]
["/*",null,{"$f":"'822100 - Nota. Prop, plan y eq.'!$D$36","v":"Disposiciones, propiedades, planta y equipo"},{"$f":"'822100 - Nota. Prop, plan y eq.'!$C$36","v":"ifrs-full:DisposalsPropertyPlantAndEquipment"}]
["/*",null,{"$f":"'822100 - Nota. Prop, plan y eq.'!$D$37","v":"Retiros, propiedades, planta y equipo"},{"$f":"'822100 - Nota. Prop, plan y eq.'!$C$37","v":"ifrs-full:RetirementsPropertyPlantAndEquipment"}]
["",null,{"$f":"'822100 - Nota. Prop, plan y eq.'!$D$38","v":"Total de disposiciones y retiros de servicio, propiedades, planta y equipo"},{"$f":"'822100 - Nota. Prop, plan y eq.'!$C$38","v":"ifrs-full:DisposalsAndRetirementsPropertyPlantAndEquipment"},0,"peso",{"$f":"'822100 - Nota. Prop, plan y eq.'!$W$38","v":0},800001965,"http://www.xbrl.org/scheme/companyName",{"$f":"Periodos!$C$3","v":"2017-01-01"},{"$f":"Periodos!$C$4","v":"2017-12-31"},{"$f":"'822100 - Nota. Prop, plan y eq.'!$D$11","v":"co-svsp-core_2017-12-31:PropiedadesPlantaYEquipoEje_G1"},{"$f":"'822100 - Nota. Prop, plan y eq.'!$W$10","v":"ifrs-full:ConstructionInProgressMember"}]
["/*",null,{"$f":"'822100 - Nota. Prop, plan y eq.'!$D$39","v":"Disminuciones por clasificar como mantenidos para la venta, propiedades, planta y equipo"},{"$f":"'822100 - Nota. Prop, plan y eq.'!$C$39","v":"ifrs-full:DecreaseThroughClassifiedAsHeldForSalePropertyPlantAndEquipment"}]
["",null,{"$f":"'822100 - Nota. Prop, plan y eq.'!$D$40","v":"Total incremento (disminución) en propiedades, planta y equipo"},{"$f":"'822100 - Nota. Prop, plan y eq.'!$C$40","v":"ifrs-full:ChangesInPropertyPlantAndEquipment"},0,"peso",{"$f":"'822100 - Nota. Prop, plan y eq.'!$W$40","v":0},800001965,"http://www.xbrl.org/scheme/companyName",{"$f":"Periodos!$C$3","v":"2017-01-01"},{"$f":"Periodos!$C$4","v":"2017-12-31"},{"$f":"'822100 - Nota. Prop, plan y eq.'!$D$11","v":"co-svsp-core_2017-12-31:PropiedadesPlantaYEquipoEje_G1"},{"$f":"'822100 - Nota. Prop, plan y eq.'!$W$10","v":"ifrs-full:ConstructionInProgressMember"}]
["",null,{"$f":"'822100 - Nota. Prop, plan y eq.'!$D$41","v":"Propiedades, planta y equipo al final del periodo"},{"$f":"'822100 - Nota. Prop, plan y eq.'!$C$41","v":"co-svsp-core_2017-12-31:PropertyPlantAndEquipmentEndOfPeriod"},0,"peso",{"$f":"'822100 - Nota. Prop, plan y eq.'!$W$41","v":0},800001965,"http://www.xbrl.org/scheme/companyName",{"$f":"Periodos!$C$3","v":"2017-01-01"},{"$f":"Periodos!$C$4","v":"2017-12-31"},{"$f":"'822100 - Nota. Prop, plan y eq.'!$D$11","v":"co-svsp-core_2017-12-31:PropiedadesPlantaYEquipoEje_G1"},{"$f":"'822100 - Nota. Prop, plan y eq.'!$W$10","v":"ifrs-full:ConstructionInProgressMember"}]
["/*",null,"--20--"]
["/*",null,{"$f":"'822100 - Nota. Prop, plan y eq.'!$D$12","v":"Información a revelar detallada sobre propiedades, planta y equipo [partidas de los estados financieros]"},{"$f":"'822100 - Nota. Prop, plan y eq.'!$C$12","v":"ifrs-full:DisclosureOfPropertyPlantAndEquipmentLineItems"}]
["/*",null,{"$f":"'822100 - Nota. Prop, plan y eq.'!$D$13","v":"Bases de medición, propiedades, planta y equipo"},{"$f":"'822100 - Nota. Prop, plan y eq.'!$C$13","v":"ifrs-full:MeasurementBasesPropertyPlantAndEquipment"}]
["/*",null,{"$f":"'822100 - Nota. Prop, plan y eq.'!$D$14","v":"Método de depreciación, propiedades, planta y equipo"},{"$f":"'822100 - Nota. Prop, plan y eq.'!$C$14","v":"ifrs-full:DepreciationMethodPropertyPlantAndEquipment"}]
["/*",null,{"$f":"'822100 - Nota. Prop, plan y eq.'!$D$15","v":"Vidas útiles o tasas de depreciación, propiedades, planta y equipo"},{"$f":"'822100 - Nota. Prop, plan y eq.'!$C$15","v":"ifrs-full:UsefulLivesOrDepreciationRatesPropertyPlantAndEquipment"}]
["/*",null,{"$f":"'822100 - Nota. Prop, plan y eq.'!$D$16","v":"Fechas de vigencia de revaluación, propiedades, planta y equipo"},{"$f":"'822100 - Nota. Prop, plan y eq.'!$C$16","v":"ifrs-full:EffectiveDatesOfRevaluationPropertyPlantAndEquipment"}]
["/*",null,{"$f":"'822100 - Nota. Prop, plan y eq.'!$D$17","v":"Explicación de la implicación del tasador independiente en la revaluación, propiedades, planta y equipo"},{"$f":"'822100 - Nota. Prop, plan y eq.'!$C$17","v":"ifrs-full:ExplanationOfIndependentValuerUsedForRevaluationPropertyPlantAndEquipment"}]
["/*",null,{"$f":"'822100 - Nota. Prop, plan y eq.'!$D$18","v":"Explicación del método de revaluación y supuestos significativos, propiedad, planta y equipo"},{"$f":"'822100 - Nota. Prop, plan y eq.'!$C$18","v":"co-svsp-core_2017-12-31:ExplanationOfRevaluationMethodsAndSignificantAssumptionsPropertyPlantAndEquipment"}]
["/*",null,{"$f":"'822100 - Nota. Prop, plan y eq.'!$D$19","v":"Conciliación de cambios en propiedades, planta y equipo [resumen]"},{"$f":"'822100 - Nota. Prop, plan y eq.'!$C$19","v":"ifrs-full:ReconciliationOfChangesInPropertyPlantAndEquipmentAbstract"}]
["",null,{"$f":"'822100 - Nota. Prop, plan y eq.'!$D$20","v":"Propiedades, planta y equipo al comienzo del periodo"},{"$f":"'822100 - Nota. Prop, plan y eq.'!$C$20","v":"co-svsp-core_2017-12-31:PropertyPlantAndEquipmentBeginningOfPeriod"},0,"peso",{"$f":"'822100 - Nota. Prop, plan y eq.'!$X$20","v":0},800001965,"http://www.xbrl.org/scheme/companyName",{"$f":"Periodos!$C$3","v":"2017-01-01"},{"$f":"Periodos!$C$4","v":"2017-12-31"},{"$f":"'822100 - Nota. Prop, plan y eq.'!$D$11","v":"co-svsp-core_2017-12-31:PropiedadesPlantaYEquipoEje_G1"},{"$f":"'822100 - Nota. Prop, plan y eq.'!$X$10","v":"co-svsp-core_2017-12-31:CaninosMiembro"}]
["/*",null,{"$f":"'822100 - Nota. Prop, plan y eq.'!$D$21","v":"Cambios en propiedades, planta y equipo [resumen]"},{"$f":"'822100 - Nota. Prop, plan y eq.'!$C$21","v":"ifrs-full:ChangesInPropertyPlantAndEquipmentAbstract"}]
["/*",null,{"$f":"'822100 - Nota. Prop, plan y eq.'!$D$22","v":"Incrementos distintos de los procedentes de combinaciones de negocios, propiedades, planta y equipo"},{"$f":"'822100 - Nota. Prop, plan y eq.'!$C$22","v":"ifrs-full:AdditionsOtherThanThroughBusinessCombinationsPropertyPlantAndEquipment"}]
["/*",null,{"$f":"'822100 - Nota. Prop, plan y eq.'!$D$23","v":"Adquisiciones realizadas mediante combinaciones de negocios, propiedades, planta y equipo"},{"$f":"'822100 - Nota. Prop, plan y eq.'!$C$23","v":"ifrs-full:AcquisitionsThroughBusinessCombinationsPropertyPlantAndEquipment"}]
["/*",null,{"$f":"'822100 - Nota. Prop, plan y eq.'!$D$24","v":"Depreciación, propiedades, planta y equipo"},{"$f":"'822100 - Nota. Prop, plan y eq.'!$C$24","v":"ifrs-full:DepreciationPropertyPlantAndEquipment"}]
["/*",null,{"$f":"'822100 - Nota. Prop, plan y eq.'!$D$25","v":"Pérdidas por deterioro de valor reconocidas en el resultado del periodo, propiedades, planta y equipo"},{"$f":"'822100 - Nota. Prop, plan y eq.'!$C$25","v":"ifrs-full:ImpairmentLossRecognisedInProfitOrLossPropertyPlantAndEquipment"}]
["/*",null,{"$f":"'822100 - Nota. Prop, plan y eq.'!$D$26","v":"Reversión de pérdidas por deterioro de valor reconocidas en el resultado del periodo, propiedades, planta y equipo"},{"$f":"'822100 - Nota. Prop, plan y eq.'!$C$26","v":"ifrs-full:ReversalOfImpairmentLossRecognisedInProfitOrLossPropertyPlantAndEquipment"}]
["/*",null,{"$f":"'822100 - Nota. Prop, plan y eq.'!$D$27","v":"Incrementos (disminuciones) de revaluaciones, propiedades, planta y equipo"},{"$f":"'822100 - Nota. Prop, plan y eq.'!$C$27","v":"ifrs-full:RevaluationIncreaseDecreasePropertyPlantAndEquipment"}]
["/*",null,{"$f":"'822100 - Nota. Prop, plan y eq.'!$D$28","v":"Pérdidas por deterioro de valor reconocidas en otro resultado integral, propiedades, planta y equipo"},{"$f":"'822100 - Nota. Prop, plan y eq.'!$C$28","v":"ifrs-full:ImpairmentLossRecognisedInOtherComprehensiveIncomePropertyPlantAndEquipment"}]
["/*",null,{"$f":"'822100 - Nota. Prop, plan y eq.'!$D$29","v":"Reversión de pérdidas por deterioro de valor reconocidas en otro resultado integral, propiedades, planta y equipo"},{"$f":"'822100 - Nota. Prop, plan y eq.'!$C$29","v":"ifrs-full:ReversalOfImpairmentLossRecognisedInOtherComprehensiveIncomePropertyPlantAndEquipment"}]
["/*",null,{"$f":"'822100 - Nota. Prop, plan y eq.'!$D$30","v":"Incrementos (disminuciones) por transferencias y otros cambios, propiedades, planta y equipo [resumen]"},{"$f":"'822100 - Nota. Prop, plan y eq.'!$C$30","v":"ifrs-full:IncreaseDecreaseThroughTransfersAndOtherChangesPropertyPlantAndEquipmentAbstract"}]
["/*",null,{"$f":"'822100 - Nota. Prop, plan y eq.'!$D$31","v":"Incrementos (disminuciones) por transferencias desde (hacia) propiedades de inversión, propiedades, planta y equipo"},{"$f":"'822100 - Nota. Prop, plan y eq.'!$C$31","v":"ifrs-full:IncreaseDecreaseThroughTransfersFromToInvestmentPropertyPropertyPlantAndEquipment"}]
["/*",null,{"$f":"'822100 - Nota. Prop, plan y eq.'!$D$32","v":"Incrementos (disminuciones) por transferencias desde construcciones en proceso , propiedades, planta y equipo"},{"$f":"'822100 - Nota. Prop, plan y eq.'!$C$32","v":"ifrs-full:IncreaseDecreaseThroughTransfersFromConstructionInProgressPropertyPlantAndEquipment"}]
["/*",null,{"$f":"'822100 - Nota. Prop, plan y eq.'!$D$33","v":"Incrementos (disminuciones) por otros cambios, propiedades, planta y equipo"},{"$f":"'822100 - Nota. Prop, plan y eq.'!$C$33","v":"ifrs-full:IncreaseDecreaseThroughOtherChangesPropertyPlantAndEquipment"}]
["",null,{"$f":"'822100 - Nota. Prop, plan y eq.'!$D$34","v":"Total incrementos (disminuciones) por transferencias y otros cambios, propiedades, planta y equipo"},{"$f":"'822100 - Nota. Prop, plan y eq.'!$C$34","v":"ifrs-full:IncreaseDecreaseThroughTransfersAndOtherChangesPropertyPlantAndEquipment"},0,"peso",{"$f":"'822100 - Nota. Prop, plan y eq.'!$X$34","v":0},800001965,"http://www.xbrl.org/scheme/companyName",{"$f":"Periodos!$C$3","v":"2017-01-01"},{"$f":"Periodos!$C$4","v":"2017-12-31"},{"$f":"'822100 - Nota. Prop, plan y eq.'!$D$11","v":"co-svsp-core_2017-12-31:PropiedadesPlantaYEquipoEje_G1"},{"$f":"'822100 - Nota. Prop, plan y eq.'!$X$10","v":"co-svsp-core_2017-12-31:CaninosMiembro"}]
["/*",null,{"$f":"'822100 - Nota. Prop, plan y eq.'!$D$35","v":"Disposiciones y retiros de servicio, propiedades, planta y equipo [resumen]"},{"$f":"'822100 - Nota. Prop, plan y eq.'!$C$35","v":"ifrs-full:DisposalsAndRetirementsPropertyPlantAndEquipmentAbstract"}]
["/*",null,{"$f":"'822100 - Nota. Prop, plan y eq.'!$D$36","v":"Disposiciones, propiedades, planta y equipo"},{"$f":"'822100 - Nota. Prop, plan y eq.'!$C$36","v":"ifrs-full:DisposalsPropertyPlantAndEquipment"}]
["/*",null,{"$f":"'822100 - Nota. Prop, plan y eq.'!$D$37","v":"Retiros, propiedades, planta y equipo"},{"$f":"'822100 - Nota. Prop, plan y eq.'!$C$37","v":"ifrs-full:RetirementsPropertyPlantAndEquipment"}]
["",null,{"$f":"'822100 - Nota. Prop, plan y eq.'!$D$38","v":"Total de disposiciones y retiros de servicio, propiedades, planta y equipo"},{"$f":"'822100 - Nota. Prop, plan y eq.'!$C$38","v":"ifrs-full:DisposalsAndRetirementsPropertyPlantAndEquipment"},0,"peso",{"$f":"'822100 - Nota. Prop, plan y eq.'!$X$38","v":0},800001965,"http://www.xbrl.org/scheme/companyName",{"$f":"Periodos!$C$3","v":"2017-01-01"},{"$f":"Periodos!$C$4","v":"2017-12-31"},{"$f":"'822100 - Nota. Prop, plan y eq.'!$D$11","v":"co-svsp-core_2017-12-31:PropiedadesPlantaYEquipoEje_G1"},{"$f":"'822100 - Nota. Prop, plan y eq.'!$X$10","v":"co-svsp-core_2017-12-31:CaninosMiembro"}]
["/*",null,{"$f":"'822100 - Nota. Prop, plan y eq.'!$D$39","v":"Disminuciones por clasificar como mantenidos para la venta, propiedades, planta y equipo"},{"$f":"'822100 - Nota. Prop, plan y eq.'!$C$39","v":"ifrs-full:DecreaseThroughClassifiedAsHeldForSalePropertyPlantAndEquipment"}]
["",null,{"$f":"'822100 - Nota. Prop, plan y eq.'!$D$40","v":"Total incremento (disminución) en propiedades, planta y equipo"},{"$f":"'822100 - Nota. Prop, plan y eq.'!$C$40","v":"ifrs-full:ChangesInPropertyPlantAndEquipment"},0,"peso",{"$f":"'822100 - Nota. Prop, plan y eq.'!$X$40","v":0},800001965,"http://www.xbrl.org/scheme/companyName",{"$f":"Periodos!$C$3","v":"2017-01-01"},{"$f":"Periodos!$C$4","v":"2017-12-31"},{"$f":"'822100 - Nota. Prop, plan y eq.'!$D$11","v":"co-svsp-core_2017-12-31:PropiedadesPlantaYEquipoEje_G1"},{"$f":"'822100 - Nota. Prop, plan y eq.'!$X$10","v":"co-svsp-core_2017-12-31:CaninosMiembro"}]
["",null,{"$f":"'822100 - Nota. Prop, plan y eq.'!$D$41","v":"Propiedades, planta y equipo al final del periodo"},{"$f":"'822100 - Nota. Prop, plan y eq.'!$C$41","v":"co-svsp-core_2017-12-31:PropertyPlantAndEquipmentEndOfPeriod"},0,"peso",{"$f":"'822100 - Nota. Prop, plan y eq.'!$X$41","v":0},800001965,"http://www.xbrl.org/scheme/companyName",{"$f":"Periodos!$C$3","v":"2017-01-01"},{"$f":"Periodos!$C$4","v":"2017-12-31"},{"$f":"'822100 - Nota. Prop, plan y eq.'!$D$11","v":"co-svsp-core_2017-12-31:PropiedadesPlantaYEquipoEje_G1"},{"$f":"'822100 - Nota. Prop, plan y eq.'!$X$10","v":"co-svsp-core_2017-12-31:CaninosMiembro"}]
["/*",null,"--21--"]
["/*",null,{"$f":"'822100 - Nota. Prop, plan y eq.'!$D$12","v":"Información a revelar detallada sobre propiedades, planta y equipo [partidas de los estados financieros]"},{"$f":"'822100 - Nota. Prop, plan y eq.'!$C$12","v":"ifrs-full:DisclosureOfPropertyPlantAndEquipmentLineItems"}]
["/*",null,{"$f":"'822100 - Nota. Prop, plan y eq.'!$D$13","v":"Bases de medición, propiedades, planta y equipo"},{"$f":"'822100 - Nota. Prop, plan y eq.'!$C$13","v":"ifrs-full:MeasurementBasesPropertyPlantAndEquipment"}]
["/*",null,{"$f":"'822100 - Nota. Prop, plan y eq.'!$D$14","v":"Método de depreciación, propiedades, planta y equipo"},{"$f":"'822100 - Nota. Prop, plan y eq.'!$C$14","v":"ifrs-full:DepreciationMethodPropertyPlantAndEquipment"}]
["/*",null,{"$f":"'822100 - Nota. Prop, plan y eq.'!$D$15","v":"Vidas útiles o tasas de depreciación, propiedades, planta y equipo"},{"$f":"'822100 - Nota. Prop, plan y eq.'!$C$15","v":"ifrs-full:UsefulLivesOrDepreciationRatesPropertyPlantAndEquipment"}]
["/*",null,{"$f":"'822100 - Nota. Prop, plan y eq.'!$D$16","v":"Fechas de vigencia de revaluación, propiedades, planta y equipo"},{"$f":"'822100 - Nota. Prop, plan y eq.'!$C$16","v":"ifrs-full:EffectiveDatesOfRevaluationPropertyPlantAndEquipment"}]
["/*",null,{"$f":"'822100 - Nota. Prop, plan y eq.'!$D$17","v":"Explicación de la implicación del tasador independiente en la revaluación, propiedades, planta y equipo"},{"$f":"'822100 - Nota. Prop, plan y eq.'!$C$17","v":"ifrs-full:ExplanationOfIndependentValuerUsedForRevaluationPropertyPlantAndEquipment"}]
["/*",null,{"$f":"'822100 - Nota. Prop, plan y eq.'!$D$18","v":"Explicación del método de revaluación y supuestos significativos, propiedad, planta y equipo"},{"$f":"'822100 - Nota. Prop, plan y eq.'!$C$18","v":"co-svsp-core_2017-12-31:ExplanationOfRevaluationMethodsAndSignificantAssumptionsPropertyPlantAndEquipment"}]
["/*",null,{"$f":"'822100 - Nota. Prop, plan y eq.'!$D$19","v":"Conciliación de cambios en propiedades, planta y equipo [resumen]"},{"$f":"'822100 - Nota. Prop, plan y eq.'!$C$19","v":"ifrs-full:ReconciliationOfChangesInPropertyPlantAndEquipmentAbstract"}]
["",null,{"$f":"'822100 - Nota. Prop, plan y eq.'!$D$20","v":"Propiedades, planta y equipo al comienzo del periodo"},{"$f":"'822100 - Nota. Prop, plan y eq.'!$C$20","v":"co-svsp-core_2017-12-31:PropertyPlantAndEquipmentBeginningOfPeriod"},0,"peso",{"$f":"'822100 - Nota. Prop, plan y eq.'!$Y$20","v":0},800001965,"http://www.xbrl.org/scheme/companyName",{"$f":"Periodos!$C$3","v":"2017-01-01"},{"$f":"Periodos!$C$4","v":"2017-12-31"},{"$f":"'822100 - Nota. Prop, plan y eq.'!$D$11","v":"co-svsp-core_2017-12-31:PropiedadesPlantaYEquipoEje_G1"},{"$f":"'822100 - Nota. Prop, plan y eq.'!$Y$10","v":"co-svsp-core_2017-12-31:EquinosMiembro"}]
["/*",null,{"$f":"'822100 - Nota. Prop, plan y eq.'!$D$21","v":"Cambios en propiedades, planta y equipo [resumen]"},{"$f":"'822100 - Nota. Prop, plan y eq.'!$C$21","v":"ifrs-full:ChangesInPropertyPlantAndEquipmentAbstract"}]
["/*",null,{"$f":"'822100 - Nota. Prop, plan y eq.'!$D$22","v":"Incrementos distintos de los procedentes de combinaciones de negocios, propiedades, planta y equipo"},{"$f":"'822100 - Nota. Prop, plan y eq.'!$C$22","v":"ifrs-full:AdditionsOtherThanThroughBusinessCombinationsPropertyPlantAndEquipment"}]
["/*",null,{"$f":"'822100 - Nota. Prop, plan y eq.'!$D$23","v":"Adquisiciones realizadas mediante combinaciones de negocios, propiedades, planta y equipo"},{"$f":"'822100 - Nota. Prop, plan y eq.'!$C$23","v":"ifrs-full:AcquisitionsThroughBusinessCombinationsPropertyPlantAndEquipment"}]
["/*",null,{"$f":"'822100 - Nota. Prop, plan y eq.'!$D$24","v":"Depreciación, propiedades, planta y equipo"},{"$f":"'822100 - Nota. Prop, plan y eq.'!$C$24","v":"ifrs-full:DepreciationPropertyPlantAndEquipment"}]
["/*",null,{"$f":"'822100 - Nota. Prop, plan y eq.'!$D$25","v":"Pérdidas por deterioro de valor reconocidas en el resultado del periodo, propiedades, planta y equipo"},{"$f":"'822100 - Nota. Prop, plan y eq.'!$C$25","v":"ifrs-full:ImpairmentLossRecognisedInProfitOrLossPropertyPlantAndEquipment"}]
["/*",null,{"$f":"'822100 - Nota. Prop, plan y eq.'!$D$26","v":"Reversión de pérdidas por deterioro de valor reconocidas en el resultado del periodo, propiedades, planta y equipo"},{"$f":"'822100 - Nota. Prop, plan y eq.'!$C$26","v":"ifrs-full:ReversalOfImpairmentLossRecognisedInProfitOrLossPropertyPlantAndEquipment"}]
["/*",null,{"$f":"'822100 - Nota. Prop, plan y eq.'!$D$27","v":"Incrementos (disminuciones) de revaluaciones, propiedades, planta y equipo"},{"$f":"'822100 - Nota. Prop, plan y eq.'!$C$27","v":"ifrs-full:RevaluationIncreaseDecreasePropertyPlantAndEquipment"}]
["/*",null,{"$f":"'822100 - Nota. Prop, plan y eq.'!$D$28","v":"Pérdidas por deterioro de valor reconocidas en otro resultado integral, propiedades, planta y equipo"},{"$f":"'822100 - Nota. Prop, plan y eq.'!$C$28","v":"ifrs-full:ImpairmentLossRecognisedInOtherComprehensiveIncomePropertyPlantAndEquipment"}]
[{"$f":"IF(G6497=\"\",\"/*\",\"\")","v":"/*"},null,{"$f":"'822100 - Nota. Prop, plan y eq.'!$D$29","v":"Reversión de pérdidas por deterioro de valor reconocidas en otro resultado integral, propiedades, planta y equipo"},{"$f":"'822100 - Nota. Prop, plan y eq.'!$C$29","v":"ifrs-full:ReversalOfImpairmentLossRecognisedInOtherComprehensiveIncomePropertyPlantAndEquipment"}]
["/*",null,{"$f":"'822100 - Nota. Prop, plan y eq.'!$D$30","v":"Incrementos (disminuciones) por transferencias y otros cambios, propiedades, planta y equipo [resumen]"},{"$f":"'822100 - Nota. Prop, plan y eq.'!$C$30","v":"ifrs-full:IncreaseDecreaseThroughTransfersAndOtherChangesPropertyPlantAndEquipmentAbstract"}]
["/*",null,{"$f":"'822100 - Nota. Prop, plan y eq.'!$D$31","v":"Incrementos (disminuciones) por transferencias desde (hacia) propiedades de inversión, propiedades, planta y equipo"},{"$f":"'822100 - Nota. Prop, plan y eq.'!$C$31","v":"ifrs-full:IncreaseDecreaseThroughTransfersFromToInvestmentPropertyPropertyPlantAndEquipment"}]
["/*",null,{"$f":"'822100 - Nota. Prop, plan y eq.'!$D$32","v":"Incrementos (disminuciones) por transferencias desde construcciones en proceso , propiedades, planta y equipo"},{"$f":"'822100 - Nota. Prop, plan y eq.'!$C$32","v":"ifrs-full:IncreaseDecreaseThroughTransfersFromConstructionInProgressPropertyPlantAndEquipment"}]
["/*",null,{"$f":"'822100 - Nota. Prop, plan y eq.'!$D$33","v":"Incrementos (disminuciones) por otros cambios, propiedades, planta y equipo"},{"$f":"'822100 - Nota. Prop, plan y eq.'!$C$33","v":"ifrs-full:IncreaseDecreaseThroughOtherChangesPropertyPlantAndEquipment"}]
["",null,{"$f":"'822100 - Nota. Prop, plan y eq.'!$D$34","v":"Total incrementos (disminuciones) por transferencias y otros cambios, propiedades, planta y equipo"},{"$f":"'822100 - Nota. Prop, plan y eq.'!$C$34","v":"ifrs-full:IncreaseDecreaseThroughTransfersAndOtherChangesPropertyPlantAndEquipment"},0,"peso",{"$f":"'822100 - Nota. Prop, plan y eq.'!$Y$34","v":0},800001965,"http://www.xbrl.org/scheme/companyName",{"$f":"Periodos!$C$3","v":"2017-01-01"},{"$f":"Periodos!$C$4","v":"2017-12-31"},{"$f":"'822100 - Nota. Prop, plan y eq.'!$D$11","v":"co-svsp-core_2017-12-31:PropiedadesPlantaYEquipoEje_G1"},{"$f":"'822100 - Nota. Prop, plan y eq.'!$Y$10","v":"co-svsp-core_2017-12-31:EquinosMiembro"}]
["/*",null,{"$f":"'822100 - Nota. Prop, plan y eq.'!$D$35","v":"Disposiciones y retiros de servicio, propiedades, planta y equipo [resumen]"},{"$f":"'822100 - Nota. Prop, plan y eq.'!$C$35","v":"ifrs-full:DisposalsAndRetirementsPropertyPlantAndEquipmentAbstract"}]
["/*",null,{"$f":"'822100 - Nota. Prop, plan y eq.'!$D$36","v":"Disposiciones, propiedades, planta y equipo"},{"$f":"'822100 - Nota. Prop, plan y eq.'!$C$36","v":"ifrs-full:DisposalsPropertyPlantAndEquipment"}]
["/*",null,{"$f":"'822100 - Nota. Prop, plan y eq.'!$D$37","v":"Retiros, propiedades, planta y equipo"},{"$f":"'822100 - Nota. Prop, plan y eq.'!$C$37","v":"ifrs-full:RetirementsPropertyPlantAndEquipment"}]
["",null,{"$f":"'822100 - Nota. Prop, plan y eq.'!$D$38","v":"Total de disposiciones y retiros de servicio, propiedades, planta y equipo"},{"$f":"'822100 - Nota. Prop, plan y eq.'!$C$38","v":"ifrs-full:DisposalsAndRetirementsPropertyPlantAndEquipment"},0,"peso",{"$f":"'822100 - Nota. Prop, plan y eq.'!$Y$38","v":0},800001965,"http://www.xbrl.org/scheme/companyName",{"$f":"Periodos!$C$3","v":"2017-01-01"},{"$f":"Periodos!$C$4","v":"2017-12-31"},{"$f":"'822100 - Nota. Prop, plan y eq.'!$D$11","v":"co-svsp-core_2017-12-31:PropiedadesPlantaYEquipoEje_G1"},{"$f":"'822100 - Nota. Prop, plan y eq.'!$Y$10","v":"co-svsp-core_2017-12-31:EquinosMiembro"}]
["/*",null,{"$f":"'822100 - Nota. Prop, plan y eq.'!$D$39","v":"Disminuciones por clasificar como mantenidos para la venta, propiedades, planta y equipo"},{"$f":"'822100 - Nota. Prop, plan y eq.'!$C$39","v":"ifrs-full:DecreaseThroughClassifiedAsHeldForSalePropertyPlantAndEquipment"}]
["",null,{"$f":"'822100 - Nota. Prop, plan y eq.'!$D$40","v":"Total incremento (disminución) en propiedades, planta y equipo"},{"$f":"'822100 - Nota. Prop, plan y eq.'!$C$40","v":"ifrs-full:ChangesInPropertyPlantAndEquipment"},0,"peso",{"$f":"'822100 - Nota. Prop, plan y eq.'!$Y$40","v":0},800001965,"http://www.xbrl.org/scheme/companyName",{"$f":"Periodos!$C$3","v":"2017-01-01"},{"$f":"Periodos!$C$4","v":"2017-12-31"},{"$f":"'822100 - Nota. Prop, plan y eq.'!$D$11","v":"co-svsp-core_2017-12-31:PropiedadesPlantaYEquipoEje_G1"},{"$f":"'822100 - Nota. Prop, plan y eq.'!$Y$10","v":"co-svsp-core_2017-12-31:EquinosMiembro"}]
["",null,{"$f":"'822100 - Nota. Prop, plan y eq.'!$D$41","v":"Propiedades, planta y equipo al final del periodo"},{"$f":"'822100 - Nota. Prop, plan y eq.'!$C$41","v":"co-svsp-core_2017-12-31:PropertyPlantAndEquipmentEndOfPeriod"},0,"peso",{"$f":"'822100 - Nota. Prop, plan y eq.'!$Y$41","v":0},800001965,"http://www.xbrl.org/scheme/companyName",{"$f":"Periodos!$C$3","v":"2017-01-01"},{"$f":"Periodos!$C$4","v":"2017-12-31"},{"$f":"'822100 - Nota. Prop, plan y eq.'!$D$11","v":"co-svsp-core_2017-12-31:PropiedadesPlantaYEquipoEje_G1"},{"$f":"'822100 - Nota. Prop, plan y eq.'!$Y$10","v":"co-svsp-core_2017-12-31:EquinosMiembro"}]
["/*",null,"--22--"]
["/*",null,{"$f":"'822100 - Nota. Prop, plan y eq.'!$D$12","v":"Información a revelar detallada sobre propiedades, planta y equipo [partidas de los estados financieros]"},{"$f":"'822100 - Nota. Prop, plan y eq.'!$C$12","v":"ifrs-full:DisclosureOfPropertyPlantAndEquipmentLineItems"}]
["/*",null,{"$f":"'822100 - Nota. Prop, plan y eq.'!$D$13","v":"Bases de medición, propiedades, planta y equipo"},{"$f":"'822100 - Nota. Prop, plan y eq.'!$C$13","v":"ifrs-full:MeasurementBasesPropertyPlantAndEquipment"}]
["/*",null,{"$f":"'822100 - Nota. Prop, plan y eq.'!$D$14","v":"Método de depreciación, propiedades, planta y equipo"},{"$f":"'822100 - Nota. Prop, plan y eq.'!$C$14","v":"ifrs-full:DepreciationMethodPropertyPlantAndEquipment"}]
["/*",null,{"$f":"'822100 - Nota. Prop, plan y eq.'!$D$15","v":"Vidas útiles o tasas de depreciación, propiedades, planta y equipo"},{"$f":"'822100 - Nota. Prop, plan y eq.'!$C$15","v":"ifrs-full:UsefulLivesOrDepreciationRatesPropertyPlantAndEquipment"}]
["/*",null,{"$f":"'822100 - Nota. Prop, plan y eq.'!$D$16","v":"Fechas de vigencia de revaluación, propiedades, planta y equipo"},{"$f":"'822100 - Nota. Prop, plan y eq.'!$C$16","v":"ifrs-full:EffectiveDatesOfRevaluationPropertyPlantAndEquipment"}]
["/*",null,{"$f":"'822100 - Nota. Prop, plan y eq.'!$D$17","v":"Explicación de la implicación del tasador independiente en la revaluación, propiedades, planta y equipo"},{"$f":"'822100 - Nota. Prop, plan y eq.'!$C$17","v":"ifrs-full:ExplanationOfIndependentValuerUsedForRevaluationPropertyPlantAndEquipment"}]
["/*",null,{"$f":"'822100 - Nota. Prop, plan y eq.'!$D$18","v":"Explicación del método de revaluación y supuestos significativos, propiedad, planta y equipo"},{"$f":"'822100 - Nota. Prop, plan y eq.'!$C$18","v":"co-svsp-core_2017-12-31:ExplanationOfRevaluationMethodsAndSignificantAssumptionsPropertyPlantAndEquipment"}]
["/*",null,{"$f":"'822100 - Nota. Prop, plan y eq.'!$D$19","v":"Conciliación de cambios en propiedades, planta y equipo [resumen]"},{"$f":"'822100 - Nota. Prop, plan y eq.'!$C$19","v":"ifrs-full:ReconciliationOfChangesInPropertyPlantAndEquipmentAbstract"}]
["",null,{"$f":"'822100 - Nota. Prop, plan y eq.'!$D$20","v":"Propiedades, planta y equipo al comienzo del periodo"},{"$f":"'822100 - Nota. Prop, plan y eq.'!$C$20","v":"co-svsp-core_2017-12-31:PropertyPlantAndEquipmentBeginningOfPeriod"},0,"peso",{"$f":"'822100 - Nota. Prop, plan y eq.'!$Z$20","v":0},800001965,"http://www.xbrl.org/scheme/companyName",{"$f":"Periodos!$C$3","v":"2017-01-01"},{"$f":"Periodos!$C$4","v":"2017-12-31"},{"$f":"'822100 - Nota. Prop, plan y eq.'!$D$11","v":"co-svsp-core_2017-12-31:PropiedadesPlantaYEquipoEje_G1"},{"$f":"'822100 - Nota. Prop, plan y eq.'!$Z$10","v":"co-svsp-core_2017-12-31:AnimalesMiembro"}]
["/*",null,{"$f":"'822100 - Nota. Prop, plan y eq.'!$D$21","v":"Cambios en propiedades, planta y equipo [resumen]"},{"$f":"'822100 - Nota. Prop, plan y eq.'!$C$21","v":"ifrs-full:ChangesInPropertyPlantAndEquipmentAbstract"}]
["/*",null,{"$f":"'822100 - Nota. Prop, plan y eq.'!$D$22","v":"Incrementos distintos de los procedentes de combinaciones de negocios, propiedades, planta y equipo"},{"$f":"'822100 - Nota. Prop, plan y eq.'!$C$22","v":"ifrs-full:AdditionsOtherThanThroughBusinessCombinationsPropertyPlantAndEquipment"}]
["/*",null,{"$f":"'822100 - Nota. Prop, plan y eq.'!$D$23","v":"Adquisiciones realizadas mediante combinaciones de negocios, propiedades, planta y equipo"},{"$f":"'822100 - Nota. Prop, plan y eq.'!$C$23","v":"ifrs-full:AcquisitionsThroughBusinessCombinationsPropertyPlantAndEquipment"}]
["/*",null,{"$f":"'822100 - Nota. Prop, plan y eq.'!$D$24","v":"Depreciación, propiedades, planta y equipo"},{"$f":"'822100 - Nota. Prop, plan y eq.'!$C$24","v":"ifrs-full:DepreciationPropertyPlantAndEquipment"}]
["/*",null,{"$f":"'822100 - Nota. Prop, plan y eq.'!$D$25","v":"Pérdidas por deterioro de valor reconocidas en el resultado del periodo, propiedades, planta y equipo"},{"$f":"'822100 - Nota. Prop, plan y eq.'!$C$25","v":"ifrs-full:ImpairmentLossRecognisedInProfitOrLossPropertyPlantAndEquipment"}]
["/*",null,{"$f":"'822100 - Nota. Prop, plan y eq.'!$D$26","v":"Reversión de pérdidas por deterioro de valor reconocidas en el resultado del periodo, propiedades, planta y equipo"},{"$f":"'822100 - Nota. Prop, plan y eq.'!$C$26","v":"ifrs-full:ReversalOfImpairmentLossRecognisedInProfitOrLossPropertyPlantAndEquipment"}]
["/*",null,{"$f":"'822100 - Nota. Prop, plan y eq.'!$D$27","v":"Incrementos (disminuciones) de revaluaciones, propiedades, planta y equipo"},{"$f":"'822100 - Nota. Prop, plan y eq.'!$C$27","v":"ifrs-full:RevaluationIncreaseDecreasePropertyPlantAndEquipment"}]
["/*",null,{"$f":"'822100 - Nota. Prop, plan y eq.'!$D$28","v":"Pérdidas por deterioro de valor reconocidas en otro resultado integral, propiedades, planta y equipo"},{"$f":"'822100 - Nota. Prop, plan y eq.'!$C$28","v":"ifrs-full:ImpairmentLossRecognisedInOtherComprehensiveIncomePropertyPlantAndEquipment"}]
["/*",null,{"$f":"'822100 - Nota. Prop, plan y eq.'!$D$29","v":"Reversión de pérdidas por deterioro de valor reconocidas en otro resultado integral, propiedades, planta y equipo"},{"$f":"'822100 - Nota. Prop, plan y eq.'!$C$29","v":"ifrs-full:ReversalOfImpairmentLossRecognisedInOtherComprehensiveIncomePropertyPlantAndEquipment"}]
["/*",null,{"$f":"'822100 - Nota. Prop, plan y eq.'!$D$30","v":"Incrementos (disminuciones) por transferencias y otros cambios, propiedades, planta y equipo [resumen]"},{"$f":"'822100 - Nota. Prop, plan y eq.'!$C$30","v":"ifrs-full:IncreaseDecreaseThroughTransfersAndOtherChangesPropertyPlantAndEquipmentAbstract"}]
["/*",null,{"$f":"'822100 - Nota. Prop, plan y eq.'!$D$31","v":"Incrementos (disminuciones) por transferencias desde (hacia) propiedades de inversión, propiedades, planta y equipo"},{"$f":"'822100 - Nota. Prop, plan y eq.'!$C$31","v":"ifrs-full:IncreaseDecreaseThroughTransfersFromToInvestmentPropertyPropertyPlantAndEquipment"}]
["/*",null,{"$f":"'822100 - Nota. Prop, plan y eq.'!$D$32","v":"Incrementos (disminuciones) por transferencias desde construcciones en proceso , propiedades, planta y equipo"},{"$f":"'822100 - Nota. Prop, plan y eq.'!$C$32","v":"ifrs-full:IncreaseDecreaseThroughTransfersFromConstructionInProgressPropertyPlantAndEquipment"}]
["/*",null,{"$f":"'822100 - Nota. Prop, plan y eq.'!$D$33","v":"Incrementos (disminuciones) por otros cambios, propiedades, planta y equipo"},{"$f":"'822100 - Nota. Prop, plan y eq.'!$C$33","v":"ifrs-full:IncreaseDecreaseThroughOtherChangesPropertyPlantAndEquipment"}]
["",null,{"$f":"'822100 - Nota. Prop, plan y eq.'!$D$34","v":"Total incrementos (disminuciones) por transferencias y otros cambios, propiedades, planta y equipo"},{"$f":"'822100 - Nota. Prop, plan y eq.'!$C$34","v":"ifrs-full:IncreaseDecreaseThroughTransfersAndOtherChangesPropertyPlantAndEquipment"},0,"peso",{"$f":"'822100 - Nota. Prop, plan y eq.'!$Z$34","v":0},800001965,"http://www.xbrl.org/scheme/companyName",{"$f":"Periodos!$C$3","v":"2017-01-01"},{"$f":"Periodos!$C$4","v":"2017-12-31"},{"$f":"'822100 - Nota. Prop, plan y eq.'!$D$11","v":"co-svsp-core_2017-12-31:PropiedadesPlantaYEquipoEje_G1"},{"$f":"'822100 - Nota. Prop, plan y eq.'!$Z$10","v":"co-svsp-core_2017-12-31:AnimalesMiembro"}]
["/*",null,{"$f":"'822100 - Nota. Prop, plan y eq.'!$D$35","v":"Disposiciones y retiros de servicio, propiedades, planta y equipo [resumen]"},{"$f":"'822100 - Nota. Prop, plan y eq.'!$C$35","v":"ifrs-full:DisposalsAndRetirementsPropertyPlantAndEquipmentAbstract"}]
["/*",null,{"$f":"'822100 - Nota. Prop, plan y eq.'!$D$36","v":"Disposiciones, propiedades, planta y equipo"},{"$f":"'822100 - Nota. Prop, plan y eq.'!$C$36","v":"ifrs-full:DisposalsPropertyPlantAndEquipment"}]
["/*",null,{"$f":"'822100 - Nota. Prop, plan y eq.'!$D$37","v":"Retiros, propiedades, planta y equipo"},{"$f":"'822100 - Nota. Prop, plan y eq.'!$C$37","v":"ifrs-full:RetirementsPropertyPlantAndEquipment"}]
["",null,{"$f":"'822100 - Nota. Prop, plan y eq.'!$D$38","v":"Total de disposiciones y retiros de servicio, propiedades, planta y equipo"},{"$f":"'822100 - Nota. Prop, plan y eq.'!$C$38","v":"ifrs-full:DisposalsAndRetirementsPropertyPlantAndEquipment"},0,"peso",{"$f":"'822100 - Nota. Prop, plan y eq.'!$Z$38","v":0},800001965,"http://www.xbrl.org/scheme/companyName",{"$f":"Periodos!$C$3","v":"2017-01-01"},{"$f":"Periodos!$C$4","v":"2017-12-31"},{"$f":"'822100 - Nota. Prop, plan y eq.'!$D$11","v":"co-svsp-core_2017-12-31:PropiedadesPlantaYEquipoEje_G1"},{"$f":"'822100 - Nota. Prop, plan y eq.'!$Z$10","v":"co-svsp-core_2017-12-31:AnimalesMiembro"}]
["/*",null,{"$f":"'822100 - Nota. Prop, plan y eq.'!$D$39","v":"Disminuciones por clasificar como mantenidos para la venta, propiedades, planta y equipo"},{"$f":"'822100 - Nota. Prop, plan y eq.'!$C$39","v":"ifrs-full:DecreaseThroughClassifiedAsHeldForSalePropertyPlantAndEquipment"}]
["",null,{"$f":"'822100 - Nota. Prop, plan y eq.'!$D$40","v":"Total incremento (disminución) en propiedades, planta y equipo"},{"$f":"'822100 - Nota. Prop, plan y eq.'!$C$40","v":"ifrs-full:ChangesInPropertyPlantAndEquipment"},0,"peso",{"$f":"'822100 - Nota. Prop, plan y eq.'!$Z$40","v":0},800001965,"http://www.xbrl.org/scheme/companyName",{"$f":"Periodos!$C$3","v":"2017-01-01"},{"$f":"Periodos!$C$4","v":"2017-12-31"},{"$f":"'822100 - Nota. Prop, plan y eq.'!$D$11","v":"co-svsp-core_2017-12-31:PropiedadesPlantaYEquipoEje_G1"},{"$f":"'822100 - Nota. Prop, plan y eq.'!$Z$10","v":"co-svsp-core_2017-12-31:AnimalesMiembro"}]
["",null,{"$f":"'822100 - Nota. Prop, plan y eq.'!$D$41","v":"Propiedades, planta y equipo al final del periodo"},{"$f":"'822100 - Nota. Prop, plan y eq.'!$C$41","v":"co-svsp-core_2017-12-31:PropertyPlantAndEquipmentEndOfPeriod"},0,"peso",{"$f":"'822100 - Nota. Prop, plan y eq.'!$Z$41","v":0},800001965,"http://www.xbrl.org/scheme/companyName",{"$f":"Periodos!$C$3","v":"2017-01-01"},{"$f":"Periodos!$C$4","v":"2017-12-31"},{"$f":"'822100 - Nota. Prop, plan y eq.'!$D$11","v":"co-svsp-core_2017-12-31:PropiedadesPlantaYEquipoEje_G1"},{"$f":"'822100 - Nota. Prop, plan y eq.'!$Z$10","v":"co-svsp-core_2017-12-31:AnimalesMiembro"}]
["/*",null,"--23--"]
["/*",null,{"$f":"'822100 - Nota. Prop, plan y eq.'!$D$12","v":"Información a revelar detallada sobre propiedades, planta y equipo [partidas de los estados financieros]"},{"$f":"'822100 - Nota. Prop, plan y eq.'!$C$12","v":"ifrs-full:DisclosureOfPropertyPlantAndEquipmentLineItems"}]
["/*",null,{"$f":"'822100 - Nota. Prop, plan y eq.'!$D$13","v":"Bases de medición, propiedades, planta y equipo"},{"$f":"'822100 - Nota. Prop, plan y eq.'!$C$13","v":"ifrs-full:MeasurementBasesPropertyPlantAndEquipment"}]
["/*",null,{"$f":"'822100 - Nota. Prop, plan y eq.'!$D$14","v":"Método de depreciación, propiedades, planta y equipo"},{"$f":"'822100 - Nota. Prop, plan y eq.'!$C$14","v":"ifrs-full:DepreciationMethodPropertyPlantAndEquipment"}]
["/*",null,{"$f":"'822100 - Nota. Prop, plan y eq.'!$D$15","v":"Vidas útiles o tasas de depreciación, propiedades, planta y equipo"},{"$f":"'822100 - Nota. Prop, plan y eq.'!$C$15","v":"ifrs-full:UsefulLivesOrDepreciationRatesPropertyPlantAndEquipment"}]
["/*",null,{"$f":"'822100 - Nota. Prop, plan y eq.'!$D$16","v":"Fechas de vigencia de revaluación, propiedades, planta y equipo"},{"$f":"'822100 - Nota. Prop, plan y eq.'!$C$16","v":"ifrs-full:EffectiveDatesOfRevaluationPropertyPlantAndEquipment"}]
["/*",null,{"$f":"'822100 - Nota. Prop, plan y eq.'!$D$17","v":"Explicación de la implicación del tasador independiente en la revaluación, propiedades, planta y equipo"},{"$f":"'822100 - Nota. Prop, plan y eq.'!$C$17","v":"ifrs-full:ExplanationOfIndependentValuerUsedForRevaluationPropertyPlantAndEquipment"}]
["/*",null,{"$f":"'822100 - Nota. Prop, plan y eq.'!$D$18","v":"Explicación del método de revaluación y supuestos significativos, propiedad, planta y equipo"},{"$f":"'822100 - Nota. Prop, plan y eq.'!$C$18","v":"co-svsp-core_2017-12-31:ExplanationOfRevaluationMethodsAndSignificantAssumptionsPropertyPlantAndEquipment"}]
["/*",null,{"$f":"'822100 - Nota. Prop, plan y eq.'!$D$19","v":"Conciliación de cambios en propiedades, planta y equipo [resumen]"},{"$f":"'822100 - Nota. Prop, plan y eq.'!$C$19","v":"ifrs-full:ReconciliationOfChangesInPropertyPlantAndEquipmentAbstract"}]
["",null,{"$f":"'822100 - Nota. Prop, plan y eq.'!$D$20","v":"Propiedades, planta y equipo al comienzo del periodo"},{"$f":"'822100 - Nota. Prop, plan y eq.'!$C$20","v":"co-svsp-core_2017-12-31:PropertyPlantAndEquipmentBeginningOfPeriod"},0,"peso",{"$f":"'822100 - Nota. Prop, plan y eq.'!$AA$20","v":0},800001965,"http://www.xbrl.org/scheme/companyName",{"$f":"Periodos!$C$3","v":"2017-01-01"},{"$f":"Periodos!$C$4","v":"2017-12-31"},{"$f":"'822100 - Nota. Prop, plan y eq.'!$D$11","v":"co-svsp-core_2017-12-31:PropiedadesPlantaYEquipoEje_G1"},{"$f":"'822100 - Nota. Prop, plan y eq.'!$AA$10","v":"co-svsp-core_2017-12-31:Otras_PPE"}]
["/*",null,{"$f":"'822100 - Nota. Prop, plan y eq.'!$D$21","v":"Cambios en propiedades, planta y equipo [resumen]"},{"$f":"'822100 - Nota. Prop, plan y eq.'!$C$21","v":"ifrs-full:ChangesInPropertyPlantAndEquipmentAbstract"}]
["/*",null,{"$f":"'822100 - Nota. Prop, plan y eq.'!$D$22","v":"Incrementos distintos de los procedentes de combinaciones de negocios, propiedades, planta y equipo"},{"$f":"'822100 - Nota. Prop, plan y eq.'!$C$22","v":"ifrs-full:AdditionsOtherThanThroughBusinessCombinationsPropertyPlantAndEquipment"}]
["/*",null,{"$f":"'822100 - Nota. Prop, plan y eq.'!$D$23","v":"Adquisiciones realizadas mediante combinaciones de negocios, propiedades, planta y equipo"},{"$f":"'822100 - Nota. Prop, plan y eq.'!$C$23","v":"ifrs-full:AcquisitionsThroughBusinessCombinationsPropertyPlantAndEquipment"}]
["/*",null,{"$f":"'822100 - Nota. Prop, plan y eq.'!$D$24","v":"Depreciación, propiedades, planta y equipo"},{"$f":"'822100 - Nota. Prop, plan y eq.'!$C$24","v":"ifrs-full:DepreciationPropertyPlantAndEquipment"}]
["/*",null,{"$f":"'822100 - Nota. Prop, plan y eq.'!$D$25","v":"Pérdidas por deterioro de valor reconocidas en el resultado del periodo, propiedades, planta y equipo"},{"$f":"'822100 - Nota. Prop, plan y eq.'!$C$25","v":"ifrs-full:ImpairmentLossRecognisedInProfitOrLossPropertyPlantAndEquipment"}]
["/*",null,{"$f":"'822100 - Nota. Prop, plan y eq.'!$D$26","v":"Reversión de pérdidas por deterioro de valor reconocidas en el resultado del periodo, propiedades, planta y equipo"},{"$f":"'822100 - Nota. Prop, plan y eq.'!$C$26","v":"ifrs-full:ReversalOfImpairmentLossRecognisedInProfitOrLossPropertyPlantAndEquipment"}]
["/*",null,{"$f":"'822100 - Nota. Prop, plan y eq.'!$D$27","v":"Incrementos (disminuciones) de revaluaciones, propiedades, planta y equipo"},{"$f":"'822100 - Nota. Prop, plan y eq.'!$C$27","v":"ifrs-full:RevaluationIncreaseDecreasePropertyPlantAndEquipment"}]
["/*",null,{"$f":"'822100 - Nota. Prop, plan y eq.'!$D$28","v":"Pérdidas por deterioro de valor reconocidas en otro resultado integral, propiedades, planta y equipo"},{"$f":"'822100 - Nota. Prop, plan y eq.'!$C$28","v":"ifrs-full:ImpairmentLossRecognisedInOtherComprehensiveIncomePropertyPlantAndEquipment"}]
["/*",null,{"$f":"'822100 - Nota. Prop, plan y eq.'!$D$29","v":"Reversión de pérdidas por deterioro de valor reconocidas en otro resultado integral, propiedades, planta y equipo"},{"$f":"'822100 - Nota. Prop, plan y eq.'!$C$29","v":"ifrs-full:ReversalOfImpairmentLossRecognisedInOtherComprehensiveIncomePropertyPlantAndEquipment"}]
["/*",null,{"$f":"'822100 - Nota. Prop, plan y eq.'!$D$30","v":"Incrementos (disminuciones) por transferencias y otros cambios, propiedades, planta y equipo [resumen]"},{"$f":"'822100 - Nota. Prop, plan y eq.'!$C$30","v":"ifrs-full:IncreaseDecreaseThroughTransfersAndOtherChangesPropertyPlantAndEquipmentAbstract"}]
[{"$f":"IF(G6561=\"\",\"/*\",\"\")","v":"/*"},null,{"$f":"'822100 - Nota. Prop, plan y eq.'!$D$31","v":"Incrementos (disminuciones) por transferencias desde (hacia) propiedades de inversión, propiedades, planta y equipo"},{"$f":"'822100 - Nota. Prop, plan y eq.'!$C$31","v":"ifrs-full:IncreaseDecreaseThroughTransfersFromToInvestmentPropertyPropertyPlantAndEquipment"}]
["/*",null,{"$f":"'822100 - Nota. Prop, plan y eq.'!$D$32","v":"Incrementos (disminuciones) por transferencias desde construcciones en proceso , propiedades, planta y equipo"},{"$f":"'822100 - Nota. Prop, plan y eq.'!$C$32","v":"ifrs-full:IncreaseDecreaseThroughTransfersFromConstructionInProgressPropertyPlantAndEquipment"}]
["/*",null,{"$f":"'822100 - Nota. Prop, plan y eq.'!$D$33","v":"Incrementos (disminuciones) por otros cambios, propiedades, planta y equipo"},{"$f":"'822100 - Nota. Prop, plan y eq.'!$C$33","v":"ifrs-full:IncreaseDecreaseThroughOtherChangesPropertyPlantAndEquipment"}]
["",null,{"$f":"'822100 - Nota. Prop, plan y eq.'!$D$34","v":"Total incrementos (disminuciones) por transferencias y otros cambios, propiedades, planta y equipo"},{"$f":"'822100 - Nota. Prop, plan y eq.'!$C$34","v":"ifrs-full:IncreaseDecreaseThroughTransfersAndOtherChangesPropertyPlantAndEquipment"},0,"peso",{"$f":"'822100 - Nota. Prop, plan y eq.'!$AA$34","v":0},800001965,"http://www.xbrl.org/scheme/companyName",{"$f":"Periodos!$C$3","v":"2017-01-01"},{"$f":"Periodos!$C$4","v":"2017-12-31"},{"$f":"'822100 - Nota. Prop, plan y eq.'!$D$11","v":"co-svsp-core_2017-12-31:PropiedadesPlantaYEquipoEje_G1"},{"$f":"'822100 - Nota. Prop, plan y eq.'!$AA$10","v":"co-svsp-core_2017-12-31:Otras_PPE"}]
["/*",null,{"$f":"'822100 - Nota. Prop, plan y eq.'!$D$35","v":"Disposiciones y retiros de servicio, propiedades, planta y equipo [resumen]"},{"$f":"'822100 - Nota. Prop, plan y eq.'!$C$35","v":"ifrs-full:DisposalsAndRetirementsPropertyPlantAndEquipmentAbstract"}]
["/*",null,{"$f":"'822100 - Nota. Prop, plan y eq.'!$D$36","v":"Disposiciones, propiedades, planta y equipo"},{"$f":"'822100 - Nota. Prop, plan y eq.'!$C$36","v":"ifrs-full:DisposalsPropertyPlantAndEquipment"}]
["/*",null,{"$f":"'822100 - Nota. Prop, plan y eq.'!$D$37","v":"Retiros, propiedades, planta y equipo"},{"$f":"'822100 - Nota. Prop, plan y eq.'!$C$37","v":"ifrs-full:RetirementsPropertyPlantAndEquipment"}]
["",null,{"$f":"'822100 - Nota. Prop, plan y eq.'!$D$38","v":"Total de disposiciones y retiros de servicio, propiedades, planta y equipo"},{"$f":"'822100 - Nota. Prop, plan y eq.'!$C$38","v":"ifrs-full:DisposalsAndRetirementsPropertyPlantAndEquipment"},0,"peso",{"$f":"'822100 - Nota. Prop, plan y eq.'!$AA$38","v":0},800001965,"http://www.xbrl.org/scheme/companyName",{"$f":"Periodos!$C$3","v":"2017-01-01"},{"$f":"Periodos!$C$4","v":"2017-12-31"},{"$f":"'822100 - Nota. Prop, plan y eq.'!$D$11","v":"co-svsp-core_2017-12-31:PropiedadesPlantaYEquipoEje_G1"},{"$f":"'822100 - Nota. Prop, plan y eq.'!$AA$10","v":"co-svsp-core_2017-12-31:Otras_PPE"}]
["/*",null,{"$f":"'822100 - Nota. Prop, plan y eq.'!$D$39","v":"Disminuciones por clasificar como mantenidos para la venta, propiedades, planta y equipo"},{"$f":"'822100 - Nota. Prop, plan y eq.'!$C$39","v":"ifrs-full:DecreaseThroughClassifiedAsHeldForSalePropertyPlantAndEquipment"}]
["",null,{"$f":"'822100 - Nota. Prop, plan y eq.'!$D$40","v":"Total incremento (disminución) en propiedades, planta y equipo"},{"$f":"'822100 - Nota. Prop, plan y eq.'!$C$40","v":"ifrs-full:ChangesInPropertyPlantAndEquipment"},0,"peso",{"$f":"'822100 - Nota. Prop, plan y eq.'!$AA$40","v":0},800001965,"http://www.xbrl.org/scheme/companyName",{"$f":"Periodos!$C$3","v":"2017-01-01"},{"$f":"Periodos!$C$4","v":"2017-12-31"},{"$f":"'822100 - Nota. Prop, plan y eq.'!$D$11","v":"co-svsp-core_2017-12-31:PropiedadesPlantaYEquipoEje_G1"},{"$f":"'822100 - Nota. Prop, plan y eq.'!$AA$10","v":"co-svsp-core_2017-12-31:Otras_PPE"}]
["",null,{"$f":"'822100 - Nota. Prop, plan y eq.'!$D$41","v":"Propiedades, planta y equipo al final del periodo"},{"$f":"'822100 - Nota. Prop, plan y eq.'!$C$41","v":"co-svsp-core_2017-12-31:PropertyPlantAndEquipmentEndOfPeriod"},0,"peso",{"$f":"'822100 - Nota. Prop, plan y eq.'!$AA$41","v":0},800001965,"http://www.xbrl.org/scheme/companyName",{"$f":"Periodos!$C$3","v":"2017-01-01"},{"$f":"Periodos!$C$4","v":"2017-12-31"},{"$f":"'822100 - Nota. Prop, plan y eq.'!$D$11","v":"co-svsp-core_2017-12-31:PropiedadesPlantaYEquipoEje_G1"},{"$f":"'822100 - Nota. Prop, plan y eq.'!$AA$10","v":"co-svsp-core_2017-12-31:Otras_PPE"}]
["/*",null,"--24--"]
["/*",null,{"$f":"'822100 - Nota. Prop, plan y eq.'!$D$12","v":"Información a revelar detallada sobre propiedades, planta y equipo [partidas de los estados financieros]"},{"$f":"'822100 - Nota. Prop, plan y eq.'!$C$12","v":"ifrs-full:DisclosureOfPropertyPlantAndEquipmentLineItems"}]
["/*",null,{"$f":"'822100 - Nota. Prop, plan y eq.'!$D$13","v":"Bases de medición, propiedades, planta y equipo"},{"$f":"'822100 - Nota. Prop, plan y eq.'!$C$13","v":"ifrs-full:MeasurementBasesPropertyPlantAndEquipment"}]
["/*",null,{"$f":"'822100 - Nota. Prop, plan y eq.'!$D$14","v":"Método de depreciación, propiedades, planta y equipo"},{"$f":"'822100 - Nota. Prop, plan y eq.'!$C$14","v":"ifrs-full:DepreciationMethodPropertyPlantAndEquipment"}]
["/*",null,{"$f":"'822100 - Nota. Prop, plan y eq.'!$D$15","v":"Vidas útiles o tasas de depreciación, propiedades, planta y equipo"},{"$f":"'822100 - Nota. Prop, plan y eq.'!$C$15","v":"ifrs-full:UsefulLivesOrDepreciationRatesPropertyPlantAndEquipment"}]
["/*",null,{"$f":"'822100 - Nota. Prop, plan y eq.'!$D$16","v":"Fechas de vigencia de revaluación, propiedades, planta y equipo"},{"$f":"'822100 - Nota. Prop, plan y eq.'!$C$16","v":"ifrs-full:EffectiveDatesOfRevaluationPropertyPlantAndEquipment"}]
["/*",null,{"$f":"'822100 - Nota. Prop, plan y eq.'!$D$17","v":"Explicación de la implicación del tasador independiente en la revaluación, propiedades, planta y equipo"},{"$f":"'822100 - Nota. Prop, plan y eq.'!$C$17","v":"ifrs-full:ExplanationOfIndependentValuerUsedForRevaluationPropertyPlantAndEquipment"}]
["/*",null,{"$f":"'822100 - Nota. Prop, plan y eq.'!$D$18","v":"Explicación del método de revaluación y supuestos significativos, propiedad, planta y equipo"},{"$f":"'822100 - Nota. Prop, plan y eq.'!$C$18","v":"co-svsp-core_2017-12-31:ExplanationOfRevaluationMethodsAndSignificantAssumptionsPropertyPlantAndEquipment"}]
["/*",null,{"$f":"'822100 - Nota. Prop, plan y eq.'!$D$19","v":"Conciliación de cambios en propiedades, planta y equipo [resumen]"},{"$f":"'822100 - Nota. Prop, plan y eq.'!$C$19","v":"ifrs-full:ReconciliationOfChangesInPropertyPlantAndEquipmentAbstract"}]
["",null,{"$f":"'822100 - Nota. Prop, plan y eq.'!$D$20","v":"Propiedades, planta y equipo al comienzo del periodo"},{"$f":"'822100 - Nota. Prop, plan y eq.'!$C$20","v":"co-svsp-core_2017-12-31:PropertyPlantAndEquipmentBeginningOfPeriod"},0,"peso",{"$f":"'822100 - Nota. Prop, plan y eq.'!$AB$20","v":0},800001965,"http://www.xbrl.org/scheme/companyName",{"$f":"Periodos!$C$3","v":"2017-01-01"},{"$f":"Periodos!$C$4","v":"2017-12-31"},{"$f":"'822100 - Nota. Prop, plan y eq.'!$D$11","v":"co-svsp-core_2017-12-31:PropiedadesPlantaYEquipoEje_G1"},{"$f":"'822100 - Nota. Prop, plan y eq.'!$AB$10","v":"ifrs-full:OtherPropertyPlantAndEquipmentMember"}]
["/*",null,{"$f":"'822100 - Nota. Prop, plan y eq.'!$D$21","v":"Cambios en propiedades, planta y equipo [resumen]"},{"$f":"'822100 - Nota. Prop, plan y eq.'!$C$21","v":"ifrs-full:ChangesInPropertyPlantAndEquipmentAbstract"}]
["/*",null,{"$f":"'822100 - Nota. Prop, plan y eq.'!$D$22","v":"Incrementos distintos de los procedentes de combinaciones de negocios, propiedades, planta y equipo"},{"$f":"'822100 - Nota. Prop, plan y eq.'!$C$22","v":"ifrs-full:AdditionsOtherThanThroughBusinessCombinationsPropertyPlantAndEquipment"}]
["/*",null,{"$f":"'822100 - Nota. Prop, plan y eq.'!$D$23","v":"Adquisiciones realizadas mediante combinaciones de negocios, propiedades, planta y equipo"},{"$f":"'822100 - Nota. Prop, plan y eq.'!$C$23","v":"ifrs-full:AcquisitionsThroughBusinessCombinationsPropertyPlantAndEquipment"}]
["/*",null,{"$f":"'822100 - Nota. Prop, plan y eq.'!$D$24","v":"Depreciación, propiedades, planta y equipo"},{"$f":"'822100 - Nota. Prop, plan y eq.'!$C$24","v":"ifrs-full:DepreciationPropertyPlantAndEquipment"}]
["/*",null,{"$f":"'822100 - Nota. Prop, plan y eq.'!$D$25","v":"Pérdidas por deterioro de valor reconocidas en el resultado del periodo, propiedades, planta y equipo"},{"$f":"'822100 - Nota. Prop, plan y eq.'!$C$25","v":"ifrs-full:ImpairmentLossRecognisedInProfitOrLossPropertyPlantAndEquipment"}]
["/*",null,{"$f":"'822100 - Nota. Prop, plan y eq.'!$D$26","v":"Reversión de pérdidas por deterioro de valor reconocidas en el resultado del periodo, propiedades, planta y equipo"},{"$f":"'822100 - Nota. Prop, plan y eq.'!$C$26","v":"ifrs-full:ReversalOfImpairmentLossRecognisedInProfitOrLossPropertyPlantAndEquipment"}]
["/*",null,{"$f":"'822100 - Nota. Prop, plan y eq.'!$D$27","v":"Incrementos (disminuciones) de revaluaciones, propiedades, planta y equipo"},{"$f":"'822100 - Nota. Prop, plan y eq.'!$C$27","v":"ifrs-full:RevaluationIncreaseDecreasePropertyPlantAndEquipment"}]
["/*",null,{"$f":"'822100 - Nota. Prop, plan y eq.'!$D$28","v":"Pérdidas por deterioro de valor reconocidas en otro resultado integral, propiedades, planta y equipo"},{"$f":"'822100 - Nota. Prop, plan y eq.'!$C$28","v":"ifrs-full:ImpairmentLossRecognisedInOtherComprehensiveIncomePropertyPlantAndEquipment"}]
["/*",null,{"$f":"'822100 - Nota. Prop, plan y eq.'!$D$29","v":"Reversión de pérdidas por deterioro de valor reconocidas en otro resultado integral, propiedades, planta y equipo"},{"$f":"'822100 - Nota. Prop, plan y eq.'!$C$29","v":"ifrs-full:ReversalOfImpairmentLossRecognisedInOtherComprehensiveIncomePropertyPlantAndEquipment"}]
["/*",null,{"$f":"'822100 - Nota. Prop, plan y eq.'!$D$30","v":"Incrementos (disminuciones) por transferencias y otros cambios, propiedades, planta y equipo [resumen]"},{"$f":"'822100 - Nota. Prop, plan y eq.'!$C$30","v":"ifrs-full:IncreaseDecreaseThroughTransfersAndOtherChangesPropertyPlantAndEquipmentAbstract"}]
["/*",null,{"$f":"'822100 - Nota. Prop, plan y eq.'!$D$31","v":"Incrementos (disminuciones) por transferencias desde (hacia) propiedades de inversión, propiedades, planta y equipo"},{"$f":"'822100 - Nota. Prop, plan y eq.'!$C$31","v":"ifrs-full:IncreaseDecreaseThroughTransfersFromToInvestmentPropertyPropertyPlantAndEquipment"}]
["/*",null,{"$f":"'822100 - Nota. Prop, plan y eq.'!$D$32","v":"Incrementos (disminuciones) por transferencias desde construcciones en proceso , propiedades, planta y equipo"},{"$f":"'822100 - Nota. Prop, plan y eq.'!$C$32","v":"ifrs-full:IncreaseDecreaseThroughTransfersFromConstructionInProgressPropertyPlantAndEquipment"}]
["/*",null,{"$f":"'822100 - Nota. Prop, plan y eq.'!$D$33","v":"Incrementos (disminuciones) por otros cambios, propiedades, planta y equipo"},{"$f":"'822100 - Nota. Prop, plan y eq.'!$C$33","v":"ifrs-full:IncreaseDecreaseThroughOtherChangesPropertyPlantAndEquipment"}]
["",null,{"$f":"'822100 - Nota. Prop, plan y eq.'!$D$34","v":"Total incrementos (disminuciones) por transferencias y otros cambios, propiedades, planta y equipo"},{"$f":"'822100 - Nota. Prop, plan y eq.'!$C$34","v":"ifrs-full:IncreaseDecreaseThroughTransfersAndOtherChangesPropertyPlantAndEquipment"},0,"peso",{"$f":"'822100 - Nota. Prop, plan y eq.'!$AB$34","v":0},800001965,"http://www.xbrl.org/scheme/companyName",{"$f":"Periodos!$C$3","v":"2017-01-01"},{"$f":"Periodos!$C$4","v":"2017-12-31"},{"$f":"'822100 - Nota. Prop, plan y eq.'!$D$11","v":"co-svsp-core_2017-12-31:PropiedadesPlantaYEquipoEje_G1"},{"$f":"'822100 - Nota. Prop, plan y eq.'!$AB$10","v":"ifrs-full:OtherPropertyPlantAndEquipmentMember"}]
["/*",null,{"$f":"'822100 - Nota. Prop, plan y eq.'!$D$35","v":"Disposiciones y retiros de servicio, propiedades, planta y equipo [resumen]"},{"$f":"'822100 - Nota. Prop, plan y eq.'!$C$35","v":"ifrs-full:DisposalsAndRetirementsPropertyPlantAndEquipmentAbstract"}]
["/*",null,{"$f":"'822100 - Nota. Prop, plan y eq.'!$D$36","v":"Disposiciones, propiedades, planta y equipo"},{"$f":"'822100 - Nota. Prop, plan y eq.'!$C$36","v":"ifrs-full:DisposalsPropertyPlantAndEquipment"}]
["/*",null,{"$f":"'822100 - Nota. Prop, plan y eq.'!$D$37","v":"Retiros, propiedades, planta y equipo"},{"$f":"'822100 - Nota. Prop, plan y eq.'!$C$37","v":"ifrs-full:RetirementsPropertyPlantAndEquipment"}]
["",null,{"$f":"'822100 - Nota. Prop, plan y eq.'!$D$38","v":"Total de disposiciones y retiros de servicio, propiedades, planta y equipo"},{"$f":"'822100 - Nota. Prop, plan y eq.'!$C$38","v":"ifrs-full:DisposalsAndRetirementsPropertyPlantAndEquipment"},0,"peso",{"$f":"'822100 - Nota. Prop, plan y eq.'!$AB$38","v":0},800001965,"http://www.xbrl.org/scheme/companyName",{"$f":"Periodos!$C$3","v":"2017-01-01"},{"$f":"Periodos!$C$4","v":"2017-12-31"},{"$f":"'822100 - Nota. Prop, plan y eq.'!$D$11","v":"co-svsp-core_2017-12-31:PropiedadesPlantaYEquipoEje_G1"},{"$f":"'822100 - Nota. Prop, plan y eq.'!$AB$10","v":"ifrs-full:OtherPropertyPlantAndEquipmentMember"}]
["/*",null,{"$f":"'822100 - Nota. Prop, plan y eq.'!$D$39","v":"Disminuciones por clasificar como mantenidos para la venta, propiedades, planta y equipo"},{"$f":"'822100 - Nota. Prop, plan y eq.'!$C$39","v":"ifrs-full:DecreaseThroughClassifiedAsHeldForSalePropertyPlantAndEquipment"}]
["",null,{"$f":"'822100 - Nota. Prop, plan y eq.'!$D$40","v":"Total incremento (disminución) en propiedades, planta y equipo"},{"$f":"'822100 - Nota. Prop, plan y eq.'!$C$40","v":"ifrs-full:ChangesInPropertyPlantAndEquipment"},0,"peso",{"$f":"'822100 - Nota. Prop, plan y eq.'!$AB$40","v":0},800001965,"http://www.xbrl.org/scheme/companyName",{"$f":"Periodos!$C$3","v":"2017-01-01"},{"$f":"Periodos!$C$4","v":"2017-12-31"},{"$f":"'822100 - Nota. Prop, plan y eq.'!$D$11","v":"co-svsp-core_2017-12-31:PropiedadesPlantaYEquipoEje_G1"},{"$f":"'822100 - Nota. Prop, plan y eq.'!$AB$10","v":"ifrs-full:OtherPropertyPlantAndEquipmentMember"}]
["",null,{"$f":"'822100 - Nota. Prop, plan y eq.'!$D$41","v":"Propiedades, planta y equipo al final del periodo"},{"$f":"'822100 - Nota. Prop, plan y eq.'!$C$41","v":"co-svsp-core_2017-12-31:PropertyPlantAndEquipmentEndOfPeriod"},0,"peso",{"$f":"'822100 - Nota. Prop, plan y eq.'!$AB$41","v":0},800001965,"http://www.xbrl.org/scheme/companyName",{"$f":"Periodos!$C$3","v":"2017-01-01"},{"$f":"Periodos!$C$4","v":"2017-12-31"},{"$f":"'822100 - Nota. Prop, plan y eq.'!$D$11","v":"co-svsp-core_2017-12-31:PropiedadesPlantaYEquipoEje_G1"},{"$f":"'822100 - Nota. Prop, plan y eq.'!$AB$10","v":"ifrs-full:OtherPropertyPlantAndEquipmentMember"}]
["/*"]
["/*",null,"822100 - Nota. Prop, plan y eq."]
["/*",null,"--01--"]
["/*",null,{"$f":"'822100 - Nota. Prop, plan y eq.'!$D$51","v":"Información a revelar detallada sobre propiedades, planta y equipo [partidas de los estados financieros]"},{"$f":"'822100 - Nota. Prop, plan y eq.'!$C$51","v":"ifrs-full:DisclosureOfPropertyPlantAndEquipmentLineItems"}]
["/*",null,{"$f":"'822100 - Nota. Prop, plan y eq.'!$D$52","v":"Bases de medición, propiedades, planta y equipo"},{"$f":"'822100 - Nota. Prop, plan y eq.'!$C$52","v":"ifrs-full:MeasurementBasesPropertyPlantAndEquipment"}]
["/*",null,{"$f":"'822100 - Nota. Prop, plan y eq.'!$D$53","v":"Método de depreciación, propiedades, planta y equipo"},{"$f":"'822100 - Nota. Prop, plan y eq.'!$C$53","v":"ifrs-full:DepreciationMethodPropertyPlantAndEquipment"}]
["/*",null,{"$f":"'822100 - Nota. Prop, plan y eq.'!$D$54","v":"Vidas útiles o tasas de depreciación, propiedades, planta y equipo"},{"$f":"'822100 - Nota. Prop, plan y eq.'!$C$54","v":"ifrs-full:UsefulLivesOrDepreciationRatesPropertyPlantAndEquipment"}]
["/*",null,{"$f":"'822100 - Nota. Prop, plan y eq.'!$D$55","v":"Fechas de vigencia de revaluación, propiedades, planta y equipo"},{"$f":"'822100 - Nota. Prop, plan y eq.'!$C$55","v":"ifrs-full:EffectiveDatesOfRevaluationPropertyPlantAndEquipment"}]
["/*",null,{"$f":"'822100 - Nota. Prop, plan y eq.'!$D$56","v":"Explicación de la implicación del tasador independiente en la revaluación, propiedades, planta y equipo"},{"$f":"'822100 - Nota. Prop, plan y eq.'!$C$56","v":"ifrs-full:ExplanationOfIndependentValuerUsedForRevaluationPropertyPlantAndEquipment"}]
["/*",null,{"$f":"'822100 - Nota. Prop, plan y eq.'!$D$57","v":"Explicación del método de revaluación y supuestos significativos, propiedad, planta y equipo"},{"$f":"'822100 - Nota. Prop, plan y eq.'!$C$57","v":"co-svsp-core_2017-12-31:ExplanationOfRevaluationMethodsAndSignificantAssumptionsPropertyPlantAndEquipment"}]
["/*",null,{"$f":"'822100 - Nota. Prop, plan y eq.'!$D$58","v":"Conciliación de cambios en propiedades, planta y equipo [resumen]"},{"$f":"'822100 - Nota. Prop, plan y eq.'!$C$58","v":"ifrs-full:ReconciliationOfChangesInPropertyPlantAndEquipmentAbstract"}]
["/*",null,{"$f":"'822100 - Nota. Prop, plan y eq.'!$D$59","v":"Propiedades, planta y equipo al comienzo del periodo"},{"$f":"'822100 - Nota. Prop, plan y eq.'!$C$59","v":"co-svsp-core_2017-12-31:PropertyPlantAndEquipmentBeginningOfPeriod"}]
["/*",null,{"$f":"'822100 - Nota. Prop, plan y eq.'!$D$60","v":"Cambios en propiedades, planta y equipo [resumen]"},{"$f":"'822100 - Nota. Prop, plan y eq.'!$C$60","v":"ifrs-full:ChangesInPropertyPlantAndEquipmentAbstract"}]
["/*",null,{"$f":"'822100 - Nota. Prop, plan y eq.'!$D$61","v":"Incrementos distintos de los procedentes de combinaciones de negocios, propiedades, planta y equipo"},{"$f":"'822100 - Nota. Prop, plan y eq.'!$C$61","v":"ifrs-full:AdditionsOtherThanThroughBusinessCombinationsPropertyPlantAndEquipment"}]
["/*",null,{"$f":"'822100 - Nota. Prop, plan y eq.'!$D$62","v":"Adquisiciones realizadas mediante combinaciones de negocios, propiedades, planta y equipo"},{"$f":"'822100 - Nota. Prop, plan y eq.'!$C$62","v":"ifrs-full:AcquisitionsThroughBusinessCombinationsPropertyPlantAndEquipment"}]
["/*",null,{"$f":"'822100 - Nota. Prop, plan y eq.'!$D$63","v":"Depreciación, propiedades, planta y equipo"},{"$f":"'822100 - Nota. Prop, plan y eq.'!$C$63","v":"ifrs-full:DepreciationPropertyPlantAndEquipment"}]
["/*",null,{"$f":"'822100 - Nota. Prop, plan y eq.'!$D$64","v":"Pérdidas por deterioro de valor reconocidas en el resultado del periodo, propiedades, planta y equipo"},{"$f":"'822100 - Nota. Prop, plan y eq.'!$C$64","v":"ifrs-full:ImpairmentLossRecognisedInProfitOrLossPropertyPlantAndEquipment"}]
["/*",null,{"$f":"'822100 - Nota. Prop, plan y eq.'!$D$65","v":"Reversión de pérdidas por deterioro de valor reconocidas en el resultado del periodo, propiedades, planta y equipo"},{"$f":"'822100 - Nota. Prop, plan y eq.'!$C$65","v":"ifrs-full:ReversalOfImpairmentLossRecognisedInProfitOrLossPropertyPlantAndEquipment"}]
["/*",null,{"$f":"'822100 - Nota. Prop, plan y eq.'!$D$66","v":"Incrementos (disminuciones) de revaluaciones, propiedades, planta y equipo"},{"$f":"'822100 - Nota. Prop, plan y eq.'!$C$66","v":"ifrs-full:RevaluationIncreaseDecreasePropertyPlantAndEquipment"}]
["/*",null,{"$f":"'822100 - Nota. Prop, plan y eq.'!$D$67","v":"Pérdidas por deterioro de valor reconocidas en otro resultado integral, propiedades, planta y equipo"},{"$f":"'822100 - Nota. Prop, plan y eq.'!$C$67","v":"ifrs-full:ImpairmentLossRecognisedInOtherComprehensiveIncomePropertyPlantAndEquipment"}]
["/*",null,{"$f":"'822100 - Nota. Prop, plan y eq.'!$D$68","v":"Reversión de pérdidas por deterioro de valor reconocidas en otro resultado integral, propiedades, planta y equipo"},{"$f":"'822100 - Nota. Prop, plan y eq.'!$C$68","v":"ifrs-full:ReversalOfImpairmentLossRecognisedInOtherComprehensiveIncomePropertyPlantAndEquipment"}]
["/*",null,{"$f":"'822100 - Nota. Prop, plan y eq.'!$D$69","v":"Incrementos (disminuciones) por transferencias y otros cambios, propiedades, planta y equipo [resumen]"},{"$f":"'822100 - Nota. Prop, plan y eq.'!$C$69","v":"ifrs-full:IncreaseDecreaseThroughTransfersAndOtherChangesPropertyPlantAndEquipmentAbstract"}]
[{"$f":"IF(G6625=\"\",\"/*\",\"\")","v":"/*"},null,{"$f":"'822100 - Nota. Prop, plan y eq.'!$D$70","v":"Incrementos (disminuciones) por transferencias desde (hacia) propiedades de inversión, propiedades, planta y equipo"},{"$f":"'822100 - Nota. Prop, plan y eq.'!$C$70","v":"ifrs-full:IncreaseDecreaseThroughTransfersFromToInvestmentPropertyPropertyPlantAndEquipment"}]
["/*",null,{"$f":"'822100 - Nota. Prop, plan y eq.'!$D$71","v":"Incrementos (disminuciones) por transferencias desde construcciones en proceso , propiedades, planta y equipo"},{"$f":"'822100 - Nota. Prop, plan y eq.'!$C$71","v":"ifrs-full:IncreaseDecreaseThroughTransfersFromConstructionInProgressPropertyPlantAndEquipment"}]
["/*",null,{"$f":"'822100 - Nota. Prop, plan y eq.'!$D$72","v":"Incrementos (disminuciones) por otros cambios, propiedades, planta y equipo"},{"$f":"'822100 - Nota. Prop, plan y eq.'!$C$72","v":"ifrs-full:IncreaseDecreaseThroughOtherChangesPropertyPlantAndEquipment"}]
["",null,{"$f":"'822100 - Nota. Prop, plan y eq.'!$D$73","v":"Total incrementos (disminuciones) por transferencias y otros cambios, propiedades, planta y equipo"},{"$f":"'822100 - Nota. Prop, plan y eq.'!$C$73","v":"ifrs-full:IncreaseDecreaseThroughTransfersAndOtherChangesPropertyPlantAndEquipment"},0,"peso",{"$f":"'822100 - Nota. Prop, plan y eq.'!$E$73","v":0},800001965,"http://www.xbrl.org/scheme/companyName",{"$f":"Periodos!$D$3","v":"2016-01-01"},{"$f":"Periodos!$D$4","v":"2016-12-31"},{"$f":"'822100 - Nota. Prop, plan y eq.'!$D$50","v":"co-svsp-core_2017-12-31:PropiedadesPlantaYEquipoEje_G1"},{"$f":"'822100 - Nota. Prop, plan y eq.'!$E$49","v":"ifrs-full:LandMember"}]
["/*",null,{"$f":"'822100 - Nota. Prop, plan y eq.'!$D$74","v":"Disposiciones y retiros de servicio, propiedades, planta y equipo [resumen]"},{"$f":"'822100 - Nota. Prop, plan y eq.'!$C$74","v":"ifrs-full:DisposalsAndRetirementsPropertyPlantAndEquipmentAbstract"}]
["/*",null,{"$f":"'822100 - Nota. Prop, plan y eq.'!$D$75","v":"Disposiciones, propiedades, planta y equipo"},{"$f":"'822100 - Nota. Prop, plan y eq.'!$C$75","v":"ifrs-full:DisposalsPropertyPlantAndEquipment"}]
["/*",null,{"$f":"'822100 - Nota. Prop, plan y eq.'!$D$76","v":"Retiros, propiedades, planta y equipo"},{"$f":"'822100 - Nota. Prop, plan y eq.'!$C$76","v":"ifrs-full:RetirementsPropertyPlantAndEquipment"}]
["",null,{"$f":"'822100 - Nota. Prop, plan y eq.'!$D$77","v":"Total de disposiciones y retiros de servicio, propiedades, planta y equipo"},{"$f":"'822100 - Nota. Prop, plan y eq.'!$C$77","v":"ifrs-full:DisposalsAndRetirementsPropertyPlantAndEquipment"},0,"peso",{"$f":"'822100 - Nota. Prop, plan y eq.'!$E$77","v":0},800001965,"http://www.xbrl.org/scheme/companyName",{"$f":"Periodos!$D$3","v":"2016-01-01"},{"$f":"Periodos!$D$4","v":"2016-12-31"},{"$f":"'822100 - Nota. Prop, plan y eq.'!$D$50","v":"co-svsp-core_2017-12-31:PropiedadesPlantaYEquipoEje_G1"},{"$f":"'822100 - Nota. Prop, plan y eq.'!$E$49","v":"ifrs-full:LandMember"}]
["/*",null,{"$f":"'822100 - Nota. Prop, plan y eq.'!$D$78","v":"Disminuciones por clasificar como mantenidos para la venta, propiedades, planta y equipo"},{"$f":"'822100 - Nota. Prop, plan y eq.'!$C$78","v":"ifrs-full:DecreaseThroughClassifiedAsHeldForSalePropertyPlantAndEquipment"}]
["",null,{"$f":"'822100 - Nota. Prop, plan y eq.'!$D$79","v":"Total incremento (disminución) en propiedades, planta y equipo"},{"$f":"'822100 - Nota. Prop, plan y eq.'!$C$79","v":"ifrs-full:ChangesInPropertyPlantAndEquipment"},0,"peso",{"$f":"'822100 - Nota. Prop, plan y eq.'!$E$79","v":0},800001965,"http://www.xbrl.org/scheme/companyName",{"$f":"Periodos!$D$3","v":"2016-01-01"},{"$f":"Periodos!$D$4","v":"2016-12-31"},{"$f":"'822100 - Nota. Prop, plan y eq.'!$D$50","v":"co-svsp-core_2017-12-31:PropiedadesPlantaYEquipoEje_G1"},{"$f":"'822100 - Nota. Prop, plan y eq.'!$E$49","v":"ifrs-full:LandMember"}]
["",null,{"$f":"'822100 - Nota. Prop, plan y eq.'!$D$80","v":"Propiedades, planta y equipo al final del periodo"},{"$f":"'822100 - Nota. Prop, plan y eq.'!$C$80","v":"co-svsp-core_2017-12-31:PropertyPlantAndEquipmentEndOfPeriod"},0,"peso",{"$f":"'822100 - Nota. Prop, plan y eq.'!$E$80","v":0},800001965,"http://www.xbrl.org/scheme/companyName",{"$f":"Periodos!$D$3","v":"2016-01-01"},{"$f":"Periodos!$D$4","v":"2016-12-31"},{"$f":"'822100 - Nota. Prop, plan y eq.'!$D$50","v":"co-svsp-core_2017-12-31:PropiedadesPlantaYEquipoEje_G1"},{"$f":"'822100 - Nota. Prop, plan y eq.'!$E$49","v":"ifrs-full:LandMember"}]
["/*",null,"--02--"]
["/*",null,{"$f":"'822100 - Nota. Prop, plan y eq.'!$D$51","v":"Información a revelar detallada sobre propiedades, planta y equipo [partidas de los estados financieros]"},{"$f":"'822100 - Nota. Prop, plan y eq.'!$C$51","v":"ifrs-full:DisclosureOfPropertyPlantAndEquipmentLineItems"}]
["/*",null,{"$f":"'822100 - Nota. Prop, plan y eq.'!$D$52","v":"Bases de medición, propiedades, planta y equipo"},{"$f":"'822100 - Nota. Prop, plan y eq.'!$C$52","v":"ifrs-full:MeasurementBasesPropertyPlantAndEquipment"}]
["/*",null,{"$f":"'822100 - Nota. Prop, plan y eq.'!$D$53","v":"Método de depreciación, propiedades, planta y equipo"},{"$f":"'822100 - Nota. Prop, plan y eq.'!$C$53","v":"ifrs-full:DepreciationMethodPropertyPlantAndEquipment"}]
["/*",null,{"$f":"'822100 - Nota. Prop, plan y eq.'!$D$54","v":"Vidas útiles o tasas de depreciación, propiedades, planta y equipo"},{"$f":"'822100 - Nota. Prop, plan y eq.'!$C$54","v":"ifrs-full:UsefulLivesOrDepreciationRatesPropertyPlantAndEquipment"}]
["/*",null,{"$f":"'822100 - Nota. Prop, plan y eq.'!$D$55","v":"Fechas de vigencia de revaluación, propiedades, planta y equipo"},{"$f":"'822100 - Nota. Prop, plan y eq.'!$C$55","v":"ifrs-full:EffectiveDatesOfRevaluationPropertyPlantAndEquipment"}]
["/*",null,{"$f":"'822100 - Nota. Prop, plan y eq.'!$D$56","v":"Explicación de la implicación del tasador independiente en la revaluación, propiedades, planta y equipo"},{"$f":"'822100 - Nota. Prop, plan y eq.'!$C$56","v":"ifrs-full:ExplanationOfIndependentValuerUsedForRevaluationPropertyPlantAndEquipment"}]
["/*",null,{"$f":"'822100 - Nota. Prop, plan y eq.'!$D$57","v":"Explicación del método de revaluación y supuestos significativos, propiedad, planta y equipo"},{"$f":"'822100 - Nota. Prop, plan y eq.'!$C$57","v":"co-svsp-core_2017-12-31:ExplanationOfRevaluationMethodsAndSignificantAssumptionsPropertyPlantAndEquipment"}]
["/*",null,{"$f":"'822100 - Nota. Prop, plan y eq.'!$D$58","v":"Conciliación de cambios en propiedades, planta y equipo [resumen]"},{"$f":"'822100 - Nota. Prop, plan y eq.'!$C$58","v":"ifrs-full:ReconciliationOfChangesInPropertyPlantAndEquipmentAbstract"}]
["/*",null,{"$f":"'822100 - Nota. Prop, plan y eq.'!$D$59","v":"Propiedades, planta y equipo al comienzo del periodo"},{"$f":"'822100 - Nota. Prop, plan y eq.'!$C$59","v":"co-svsp-core_2017-12-31:PropertyPlantAndEquipmentBeginningOfPeriod"}]
["/*",null,{"$f":"'822100 - Nota. Prop, plan y eq.'!$D$60","v":"Cambios en propiedades, planta y equipo [resumen]"},{"$f":"'822100 - Nota. Prop, plan y eq.'!$C$60","v":"ifrs-full:ChangesInPropertyPlantAndEquipmentAbstract"}]
["/*",null,{"$f":"'822100 - Nota. Prop, plan y eq.'!$D$61","v":"Incrementos distintos de los procedentes de combinaciones de negocios, propiedades, planta y equipo"},{"$f":"'822100 - Nota. Prop, plan y eq.'!$C$61","v":"ifrs-full:AdditionsOtherThanThroughBusinessCombinationsPropertyPlantAndEquipment"}]
["/*",null,{"$f":"'822100 - Nota. Prop, plan y eq.'!$D$62","v":"Adquisiciones realizadas mediante combinaciones de negocios, propiedades, planta y equipo"},{"$f":"'822100 - Nota. Prop, plan y eq.'!$C$62","v":"ifrs-full:AcquisitionsThroughBusinessCombinationsPropertyPlantAndEquipment"}]
["/*",null,{"$f":"'822100 - Nota. Prop, plan y eq.'!$D$63","v":"Depreciación, propiedades, planta y equipo"},{"$f":"'822100 - Nota. Prop, plan y eq.'!$C$63","v":"ifrs-full:DepreciationPropertyPlantAndEquipment"}]
["/*",null,{"$f":"'822100 - Nota. Prop, plan y eq.'!$D$64","v":"Pérdidas por deterioro de valor reconocidas en el resultado del periodo, propiedades, planta y equipo"},{"$f":"'822100 - Nota. Prop, plan y eq.'!$C$64","v":"ifrs-full:ImpairmentLossRecognisedInProfitOrLossPropertyPlantAndEquipment"}]
["/*",null,{"$f":"'822100 - Nota. Prop, plan y eq.'!$D$65","v":"Reversión de pérdidas por deterioro de valor reconocidas en el resultado del periodo, propiedades, planta y equipo"},{"$f":"'822100 - Nota. Prop, plan y eq.'!$C$65","v":"ifrs-full:ReversalOfImpairmentLossRecognisedInProfitOrLossPropertyPlantAndEquipment"}]
["/*",null,{"$f":"'822100 - Nota. Prop, plan y eq.'!$D$66","v":"Incrementos (disminuciones) de revaluaciones, propiedades, planta y equipo"},{"$f":"'822100 - Nota. Prop, plan y eq.'!$C$66","v":"ifrs-full:RevaluationIncreaseDecreasePropertyPlantAndEquipment"}]
["/*",null,{"$f":"'822100 - Nota. Prop, plan y eq.'!$D$67","v":"Pérdidas por deterioro de valor reconocidas en otro resultado integral, propiedades, planta y equipo"},{"$f":"'822100 - Nota. Prop, plan y eq.'!$C$67","v":"ifrs-full:ImpairmentLossRecognisedInOtherComprehensiveIncomePropertyPlantAndEquipment"}]
["/*",null,{"$f":"'822100 - Nota. Prop, plan y eq.'!$D$68","v":"Reversión de pérdidas por deterioro de valor reconocidas en otro resultado integral, propiedades, planta y equipo"},{"$f":"'822100 - Nota. Prop, plan y eq.'!$C$68","v":"ifrs-full:ReversalOfImpairmentLossRecognisedInOtherComprehensiveIncomePropertyPlantAndEquipment"}]
["/*",null,{"$f":"'822100 - Nota. Prop, plan y eq.'!$D$69","v":"Incrementos (disminuciones) por transferencias y otros cambios, propiedades, planta y equipo [resumen]"},{"$f":"'822100 - Nota. Prop, plan y eq.'!$C$69","v":"ifrs-full:IncreaseDecreaseThroughTransfersAndOtherChangesPropertyPlantAndEquipmentAbstract"}]
["/*",null,{"$f":"'822100 - Nota. Prop, plan y eq.'!$D$70","v":"Incrementos (disminuciones) por transferencias desde (hacia) propiedades de inversión, propiedades, planta y equipo"},{"$f":"'822100 - Nota. Prop, plan y eq.'!$C$70","v":"ifrs-full:IncreaseDecreaseThroughTransfersFromToInvestmentPropertyPropertyPlantAndEquipment"}]
["/*",null,{"$f":"'822100 - Nota. Prop, plan y eq.'!$D$71","v":"Incrementos (disminuciones) por transferencias desde construcciones en proceso , propiedades, planta y equipo"},{"$f":"'822100 - Nota. Prop, plan y eq.'!$C$71","v":"ifrs-full:IncreaseDecreaseThroughTransfersFromConstructionInProgressPropertyPlantAndEquipment"}]
["/*",null,{"$f":"'822100 - Nota. Prop, plan y eq.'!$D$72","v":"Incrementos (disminuciones) por otros cambios, propiedades, planta y equipo"},{"$f":"'822100 - Nota. Prop, plan y eq.'!$C$72","v":"ifrs-full:IncreaseDecreaseThroughOtherChangesPropertyPlantAndEquipment"}]
["",null,{"$f":"'822100 - Nota. Prop, plan y eq.'!$D$73","v":"Total incrementos (disminuciones) por transferencias y otros cambios, propiedades, planta y equipo"},{"$f":"'822100 - Nota. Prop, plan y eq.'!$C$73","v":"ifrs-full:IncreaseDecreaseThroughTransfersAndOtherChangesPropertyPlantAndEquipment"},0,"peso",{"$f":"'822100 - Nota. Prop, plan y eq.'!$F$73","v":0},800001965,"http://www.xbrl.org/scheme/companyName",{"$f":"Periodos!$D$3","v":"2016-01-01"},{"$f":"Periodos!$D$4","v":"2016-12-31"},{"$f":"'822100 - Nota. Prop, plan y eq.'!$D$50","v":"co-svsp-core_2017-12-31:PropiedadesPlantaYEquipoEje_G1"},{"$f":"'822100 - Nota. Prop, plan y eq.'!$F$49","v":"ifrs-full:BuildingsMember"}]
["/*",null,{"$f":"'822100 - Nota. Prop, plan y eq.'!$D$74","v":"Disposiciones y retiros de servicio, propiedades, planta y equipo [resumen]"},{"$f":"'822100 - Nota. Prop, plan y eq.'!$C$74","v":"ifrs-full:DisposalsAndRetirementsPropertyPlantAndEquipmentAbstract"}]
["/*",null,{"$f":"'822100 - Nota. Prop, plan y eq.'!$D$75","v":"Disposiciones, propiedades, planta y equipo"},{"$f":"'822100 - Nota. Prop, plan y eq.'!$C$75","v":"ifrs-full:DisposalsPropertyPlantAndEquipment"}]
["/*",null,{"$f":"'822100 - Nota. Prop, plan y eq.'!$D$76","v":"Retiros, propiedades, planta y equipo"},{"$f":"'822100 - Nota. Prop, plan y eq.'!$C$76","v":"ifrs-full:RetirementsPropertyPlantAndEquipment"}]
["",null,{"$f":"'822100 - Nota. Prop, plan y eq.'!$D$77","v":"Total de disposiciones y retiros de servicio, propiedades, planta y equipo"},{"$f":"'822100 - Nota. Prop, plan y eq.'!$C$77","v":"ifrs-full:DisposalsAndRetirementsPropertyPlantAndEquipment"},0,"peso",{"$f":"'822100 - Nota. Prop, plan y eq.'!$F$77","v":0},800001965,"http://www.xbrl.org/scheme/companyName",{"$f":"Periodos!$D$3","v":"2016-01-01"},{"$f":"Periodos!$D$4","v":"2016-12-31"},{"$f":"'822100 - Nota. Prop, plan y eq.'!$D$50","v":"co-svsp-core_2017-12-31:PropiedadesPlantaYEquipoEje_G1"},{"$f":"'822100 - Nota. Prop, plan y eq.'!$F$49","v":"ifrs-full:BuildingsMember"}]
["/*",null,{"$f":"'822100 - Nota. Prop, plan y eq.'!$D$78","v":"Disminuciones por clasificar como mantenidos para la venta, propiedades, planta y equipo"},{"$f":"'822100 - Nota. Prop, plan y eq.'!$C$78","v":"ifrs-full:DecreaseThroughClassifiedAsHeldForSalePropertyPlantAndEquipment"}]
["",null,{"$f":"'822100 - Nota. Prop, plan y eq.'!$D$79","v":"Total incremento (disminución) en propiedades, planta y equipo"},{"$f":"'822100 - Nota. Prop, plan y eq.'!$C$79","v":"ifrs-full:ChangesInPropertyPlantAndEquipment"},0,"peso",{"$f":"'822100 - Nota. Prop, plan y eq.'!$F$79","v":0},800001965,"http://www.xbrl.org/scheme/companyName",{"$f":"Periodos!$D$3","v":"2016-01-01"},{"$f":"Periodos!$D$4","v":"2016-12-31"},{"$f":"'822100 - Nota. Prop, plan y eq.'!$D$50","v":"co-svsp-core_2017-12-31:PropiedadesPlantaYEquipoEje_G1"},{"$f":"'822100 - Nota. Prop, plan y eq.'!$F$49","v":"ifrs-full:BuildingsMember"}]
["",null,{"$f":"'822100 - Nota. Prop, plan y eq.'!$D$80","v":"Propiedades, planta y equipo al final del periodo"},{"$f":"'822100 - Nota. Prop, plan y eq.'!$C$80","v":"co-svsp-core_2017-12-31:PropertyPlantAndEquipmentEndOfPeriod"},0,"peso",{"$f":"'822100 - Nota. Prop, plan y eq.'!$F$80","v":0},800001965,"http://www.xbrl.org/scheme/companyName",{"$f":"Periodos!$D$3","v":"2016-01-01"},{"$f":"Periodos!$D$4","v":"2016-12-31"},{"$f":"'822100 - Nota. Prop, plan y eq.'!$D$50","v":"co-svsp-core_2017-12-31:PropiedadesPlantaYEquipoEje_G1"},{"$f":"'822100 - Nota. Prop, plan y eq.'!$F$49","v":"ifrs-full:BuildingsMember"}]
["/*",null,"--03--"]
["/*",null,{"$f":"'822100 - Nota. Prop, plan y eq.'!$D$51","v":"Información a revelar detallada sobre propiedades, planta y equipo [partidas de los estados financieros]"},{"$f":"'822100 - Nota. Prop, plan y eq.'!$C$51","v":"ifrs-full:DisclosureOfPropertyPlantAndEquipmentLineItems"}]
["/*",null,{"$f":"'822100 - Nota. Prop, plan y eq.'!$D$52","v":"Bases de medición, propiedades, planta y equipo"},{"$f":"'822100 - Nota. Prop, plan y eq.'!$C$52","v":"ifrs-full:MeasurementBasesPropertyPlantAndEquipment"}]
["/*",null,{"$f":"'822100 - Nota. Prop, plan y eq.'!$D$53","v":"Método de depreciación, propiedades, planta y equipo"},{"$f":"'822100 - Nota. Prop, plan y eq.'!$C$53","v":"ifrs-full:DepreciationMethodPropertyPlantAndEquipment"}]
["/*",null,{"$f":"'822100 - Nota. Prop, plan y eq.'!$D$54","v":"Vidas útiles o tasas de depreciación, propiedades, planta y equipo"},{"$f":"'822100 - Nota. Prop, plan y eq.'!$C$54","v":"ifrs-full:UsefulLivesOrDepreciationRatesPropertyPlantAndEquipment"}]
["/*",null,{"$f":"'822100 - Nota. Prop, plan y eq.'!$D$55","v":"Fechas de vigencia de revaluación, propiedades, planta y equipo"},{"$f":"'822100 - Nota. Prop, plan y eq.'!$C$55","v":"ifrs-full:EffectiveDatesOfRevaluationPropertyPlantAndEquipment"}]
["/*",null,{"$f":"'822100 - Nota. Prop, plan y eq.'!$D$56","v":"Explicación de la implicación del tasador independiente en la revaluación, propiedades, planta y equipo"},{"$f":"'822100 - Nota. Prop, plan y eq.'!$C$56","v":"ifrs-full:ExplanationOfIndependentValuerUsedForRevaluationPropertyPlantAndEquipment"}]
["/*",null,{"$f":"'822100 - Nota. Prop, plan y eq.'!$D$57","v":"Explicación del método de revaluación y supuestos significativos, propiedad, planta y equipo"},{"$f":"'822100 - Nota. Prop, plan y eq.'!$C$57","v":"co-svsp-core_2017-12-31:ExplanationOfRevaluationMethodsAndSignificantAssumptionsPropertyPlantAndEquipment"}]
["/*",null,{"$f":"'822100 - Nota. Prop, plan y eq.'!$D$58","v":"Conciliación de cambios en propiedades, planta y equipo [resumen]"},{"$f":"'822100 - Nota. Prop, plan y eq.'!$C$58","v":"ifrs-full:ReconciliationOfChangesInPropertyPlantAndEquipmentAbstract"}]
["/*",null,{"$f":"'822100 - Nota. Prop, plan y eq.'!$D$59","v":"Propiedades, planta y equipo al comienzo del periodo"},{"$f":"'822100 - Nota. Prop, plan y eq.'!$C$59","v":"co-svsp-core_2017-12-31:PropertyPlantAndEquipmentBeginningOfPeriod"}]
["/*",null,{"$f":"'822100 - Nota. Prop, plan y eq.'!$D$60","v":"Cambios en propiedades, planta y equipo [resumen]"},{"$f":"'822100 - Nota. Prop, plan y eq.'!$C$60","v":"ifrs-full:ChangesInPropertyPlantAndEquipmentAbstract"}]
["/*",null,{"$f":"'822100 - Nota. Prop, plan y eq.'!$D$61","v":"Incrementos distintos de los procedentes de combinaciones de negocios, propiedades, planta y equipo"},{"$f":"'822100 - Nota. Prop, plan y eq.'!$C$61","v":"ifrs-full:AdditionsOtherThanThroughBusinessCombinationsPropertyPlantAndEquipment"}]
["/*",null,{"$f":"'822100 - Nota. Prop, plan y eq.'!$D$62","v":"Adquisiciones realizadas mediante combinaciones de negocios, propiedades, planta y equipo"},{"$f":"'822100 - Nota. Prop, plan y eq.'!$C$62","v":"ifrs-full:AcquisitionsThroughBusinessCombinationsPropertyPlantAndEquipment"}]
["/*",null,{"$f":"'822100 - Nota. Prop, plan y eq.'!$D$63","v":"Depreciación, propiedades, planta y equipo"},{"$f":"'822100 - Nota. Prop, plan y eq.'!$C$63","v":"ifrs-full:DepreciationPropertyPlantAndEquipment"}]
["/*",null,{"$f":"'822100 - Nota. Prop, plan y eq.'!$D$64","v":"Pérdidas por deterioro de valor reconocidas en el resultado del periodo, propiedades, planta y equipo"},{"$f":"'822100 - Nota. Prop, plan y eq.'!$C$64","v":"ifrs-full:ImpairmentLossRecognisedInProfitOrLossPropertyPlantAndEquipment"}]
["/*",null,{"$f":"'822100 - Nota. Prop, plan y eq.'!$D$65","v":"Reversión de pérdidas por deterioro de valor reconocidas en el resultado del periodo, propiedades, planta y equipo"},{"$f":"'822100 - Nota. Prop, plan y eq.'!$C$65","v":"ifrs-full:ReversalOfImpairmentLossRecognisedInProfitOrLossPropertyPlantAndEquipment"}]
["/*",null,{"$f":"'822100 - Nota. Prop, plan y eq.'!$D$66","v":"Incrementos (disminuciones) de revaluaciones, propiedades, planta y equipo"},{"$f":"'822100 - Nota. Prop, plan y eq.'!$C$66","v":"ifrs-full:RevaluationIncreaseDecreasePropertyPlantAndEquipment"}]
["/*",null,{"$f":"'822100 - Nota. Prop, plan y eq.'!$D$67","v":"Pérdidas por deterioro de valor reconocidas en otro resultado integral, propiedades, planta y equipo"},{"$f":"'822100 - Nota. Prop, plan y eq.'!$C$67","v":"ifrs-full:ImpairmentLossRecognisedInOtherComprehensiveIncomePropertyPlantAndEquipment"}]
["/*",null,{"$f":"'822100 - Nota. Prop, plan y eq.'!$D$68","v":"Reversión de pérdidas por deterioro de valor reconocidas en otro resultado integral, propiedades, planta y equipo"},{"$f":"'822100 - Nota. Prop, plan y eq.'!$C$68","v":"ifrs-full:ReversalOfImpairmentLossRecognisedInOtherComprehensiveIncomePropertyPlantAndEquipment"}]
["/*",null,{"$f":"'822100 - Nota. Prop, plan y eq.'!$D$69","v":"Incrementos (disminuciones) por transferencias y otros cambios, propiedades, planta y equipo [resumen]"},{"$f":"'822100 - Nota. Prop, plan y eq.'!$C$69","v":"ifrs-full:IncreaseDecreaseThroughTransfersAndOtherChangesPropertyPlantAndEquipmentAbstract"}]
["/*",null,{"$f":"'822100 - Nota. Prop, plan y eq.'!$D$70","v":"Incrementos (disminuciones) por transferencias desde (hacia) propiedades de inversión, propiedades, planta y equipo"},{"$f":"'822100 - Nota. Prop, plan y eq.'!$C$70","v":"ifrs-full:IncreaseDecreaseThroughTransfersFromToInvestmentPropertyPropertyPlantAndEquipment"}]
["/*",null,{"$f":"'822100 - Nota. Prop, plan y eq.'!$D$71","v":"Incrementos (disminuciones) por transferencias desde construcciones en proceso , propiedades, planta y equipo"},{"$f":"'822100 - Nota. Prop, plan y eq.'!$C$71","v":"ifrs-full:IncreaseDecreaseThroughTransfersFromConstructionInProgressPropertyPlantAndEquipment"}]
[{"$f":"IF(G6689=\"\",\"/*\",\"\")","v":"/*"},null,{"$f":"'822100 - Nota. Prop, plan y eq.'!$D$72","v":"Incrementos (disminuciones) por otros cambios, propiedades, planta y equipo"},{"$f":"'822100 - Nota. Prop, plan y eq.'!$C$72","v":"ifrs-full:IncreaseDecreaseThroughOtherChangesPropertyPlantAndEquipment"}]
["",null,{"$f":"'822100 - Nota. Prop, plan y eq.'!$D$73","v":"Total incrementos (disminuciones) por transferencias y otros cambios, propiedades, planta y equipo"},{"$f":"'822100 - Nota. Prop, plan y eq.'!$C$73","v":"ifrs-full:IncreaseDecreaseThroughTransfersAndOtherChangesPropertyPlantAndEquipment"},0,"peso",{"$f":"'822100 - Nota. Prop, plan y eq.'!$G$73","v":0},800001965,"http://www.xbrl.org/scheme/companyName",{"$f":"Periodos!$D$3","v":"2016-01-01"},{"$f":"Periodos!$D$4","v":"2016-12-31"},{"$f":"'822100 - Nota. Prop, plan y eq.'!$D$50","v":"co-svsp-core_2017-12-31:PropiedadesPlantaYEquipoEje_G1"},{"$f":"'822100 - Nota. Prop, plan y eq.'!$G$49","v":"ifrs-full:LandAndBuildingsMember"}]
["/*",null,{"$f":"'822100 - Nota. Prop, plan y eq.'!$D$74","v":"Disposiciones y retiros de servicio, propiedades, planta y equipo [resumen]"},{"$f":"'822100 - Nota. Prop, plan y eq.'!$C$74","v":"ifrs-full:DisposalsAndRetirementsPropertyPlantAndEquipmentAbstract"}]
["/*",null,{"$f":"'822100 - Nota. Prop, plan y eq.'!$D$75","v":"Disposiciones, propiedades, planta y equipo"},{"$f":"'822100 - Nota. Prop, plan y eq.'!$C$75","v":"ifrs-full:DisposalsPropertyPlantAndEquipment"}]
["/*",null,{"$f":"'822100 - Nota. Prop, plan y eq.'!$D$76","v":"Retiros, propiedades, planta y equipo"},{"$f":"'822100 - Nota. Prop, plan y eq.'!$C$76","v":"ifrs-full:RetirementsPropertyPlantAndEquipment"}]
["",null,{"$f":"'822100 - Nota. Prop, plan y eq.'!$D$77","v":"Total de disposiciones y retiros de servicio, propiedades, planta y equipo"},{"$f":"'822100 - Nota. Prop, plan y eq.'!$C$77","v":"ifrs-full:DisposalsAndRetirementsPropertyPlantAndEquipment"},0,"peso",{"$f":"'822100 - Nota. Prop, plan y eq.'!$G$77","v":0},800001965,"http://www.xbrl.org/scheme/companyName",{"$f":"Periodos!$D$3","v":"2016-01-01"},{"$f":"Periodos!$D$4","v":"2016-12-31"},{"$f":"'822100 - Nota. Prop, plan y eq.'!$D$50","v":"co-svsp-core_2017-12-31:PropiedadesPlantaYEquipoEje_G1"},{"$f":"'822100 - Nota. Prop, plan y eq.'!$G$49","v":"ifrs-full:LandAndBuildingsMember"}]
["/*",null,{"$f":"'822100 - Nota. Prop, plan y eq.'!$D$78","v":"Disminuciones por clasificar como mantenidos para la venta, propiedades, planta y equipo"},{"$f":"'822100 - Nota. Prop, plan y eq.'!$C$78","v":"ifrs-full:DecreaseThroughClassifiedAsHeldForSalePropertyPlantAndEquipment"}]
["",null,{"$f":"'822100 - Nota. Prop, plan y eq.'!$D$79","v":"Total incremento (disminución) en propiedades, planta y equipo"},{"$f":"'822100 - Nota. Prop, plan y eq.'!$C$79","v":"ifrs-full:ChangesInPropertyPlantAndEquipment"},0,"peso",{"$f":"'822100 - Nota. Prop, plan y eq.'!$G$79","v":0},800001965,"http://www.xbrl.org/scheme/companyName",{"$f":"Periodos!$D$3","v":"2016-01-01"},{"$f":"Periodos!$D$4","v":"2016-12-31"},{"$f":"'822100 - Nota. Prop, plan y eq.'!$D$50","v":"co-svsp-core_2017-12-31:PropiedadesPlantaYEquipoEje_G1"},{"$f":"'822100 - Nota. Prop, plan y eq.'!$G$49","v":"ifrs-full:LandAndBuildingsMember"}]
["",null,{"$f":"'822100 - Nota. Prop, plan y eq.'!$D$80","v":"Propiedades, planta y equipo al final del periodo"},{"$f":"'822100 - Nota. Prop, plan y eq.'!$C$80","v":"co-svsp-core_2017-12-31:PropertyPlantAndEquipmentEndOfPeriod"},0,"peso",{"$f":"'822100 - Nota. Prop, plan y eq.'!$G$80","v":0},800001965,"http://www.xbrl.org/scheme/companyName",{"$f":"Periodos!$D$3","v":"2016-01-01"},{"$f":"Periodos!$D$4","v":"2016-12-31"},{"$f":"'822100 - Nota. Prop, plan y eq.'!$D$50","v":"co-svsp-core_2017-12-31:PropiedadesPlantaYEquipoEje_G1"},{"$f":"'822100 - Nota. Prop, plan y eq.'!$G$49","v":"ifrs-full:LandAndBuildingsMember"}]
["/*",null,"--04--"]
["/*",null,{"$f":"'822100 - Nota. Prop, plan y eq.'!$D$51","v":"Información a revelar detallada sobre propiedades, planta y equipo [partidas de los estados financieros]"},{"$f":"'822100 - Nota. Prop, plan y eq.'!$C$51","v":"ifrs-full:DisclosureOfPropertyPlantAndEquipmentLineItems"}]
["/*",null,{"$f":"'822100 - Nota. Prop, plan y eq.'!$D$52","v":"Bases de medición, propiedades, planta y equipo"},{"$f":"'822100 - Nota. Prop, plan y eq.'!$C$52","v":"ifrs-full:MeasurementBasesPropertyPlantAndEquipment"}]
["/*",null,{"$f":"'822100 - Nota. Prop, plan y eq.'!$D$53","v":"Método de depreciación, propiedades, planta y equipo"},{"$f":"'822100 - Nota. Prop, plan y eq.'!$C$53","v":"ifrs-full:DepreciationMethodPropertyPlantAndEquipment"}]
["/*",null,{"$f":"'822100 - Nota. Prop, plan y eq.'!$D$54","v":"Vidas útiles o tasas de depreciación, propiedades, planta y equipo"},{"$f":"'822100 - Nota. Prop, plan y eq.'!$C$54","v":"ifrs-full:UsefulLivesOrDepreciationRatesPropertyPlantAndEquipment"}]
["/*",null,{"$f":"'822100 - Nota. Prop, plan y eq.'!$D$55","v":"Fechas de vigencia de revaluación, propiedades, planta y equipo"},{"$f":"'822100 - Nota. Prop, plan y eq.'!$C$55","v":"ifrs-full:EffectiveDatesOfRevaluationPropertyPlantAndEquipment"}]
["/*",null,{"$f":"'822100 - Nota. Prop, plan y eq.'!$D$56","v":"Explicación de la implicación del tasador independiente en la revaluación, propiedades, planta y equipo"},{"$f":"'822100 - Nota. Prop, plan y eq.'!$C$56","v":"ifrs-full:ExplanationOfIndependentValuerUsedForRevaluationPropertyPlantAndEquipment"}]
["/*",null,{"$f":"'822100 - Nota. Prop, plan y eq.'!$D$57","v":"Explicación del método de revaluación y supuestos significativos, propiedad, planta y equipo"},{"$f":"'822100 - Nota. Prop, plan y eq.'!$C$57","v":"co-svsp-core_2017-12-31:ExplanationOfRevaluationMethodsAndSignificantAssumptionsPropertyPlantAndEquipment"}]
["/*",null,{"$f":"'822100 - Nota. Prop, plan y eq.'!$D$58","v":"Conciliación de cambios en propiedades, planta y equipo [resumen]"},{"$f":"'822100 - Nota. Prop, plan y eq.'!$C$58","v":"ifrs-full:ReconciliationOfChangesInPropertyPlantAndEquipmentAbstract"}]
["/*",null,{"$f":"'822100 - Nota. Prop, plan y eq.'!$D$59","v":"Propiedades, planta y equipo al comienzo del periodo"},{"$f":"'822100 - Nota. Prop, plan y eq.'!$C$59","v":"co-svsp-core_2017-12-31:PropertyPlantAndEquipmentBeginningOfPeriod"}]
["/*",null,{"$f":"'822100 - Nota. Prop, plan y eq.'!$D$60","v":"Cambios en propiedades, planta y equipo [resumen]"},{"$f":"'822100 - Nota. Prop, plan y eq.'!$C$60","v":"ifrs-full:ChangesInPropertyPlantAndEquipmentAbstract"}]
["/*",null,{"$f":"'822100 - Nota. Prop, plan y eq.'!$D$61","v":"Incrementos distintos de los procedentes de combinaciones de negocios, propiedades, planta y equipo"},{"$f":"'822100 - Nota. Prop, plan y eq.'!$C$61","v":"ifrs-full:AdditionsOtherThanThroughBusinessCombinationsPropertyPlantAndEquipment"}]
["/*",null,{"$f":"'822100 - Nota. Prop, plan y eq.'!$D$62","v":"Adquisiciones realizadas mediante combinaciones de negocios, propiedades, planta y equipo"},{"$f":"'822100 - Nota. Prop, plan y eq.'!$C$62","v":"ifrs-full:AcquisitionsThroughBusinessCombinationsPropertyPlantAndEquipment"}]
["/*",null,{"$f":"'822100 - Nota. Prop, plan y eq.'!$D$63","v":"Depreciación, propiedades, planta y equipo"},{"$f":"'822100 - Nota. Prop, plan y eq.'!$C$63","v":"ifrs-full:DepreciationPropertyPlantAndEquipment"}]
["/*",null,{"$f":"'822100 - Nota. Prop, plan y eq.'!$D$64","v":"Pérdidas por deterioro de valor reconocidas en el resultado del periodo, propiedades, planta y equipo"},{"$f":"'822100 - Nota. Prop, plan y eq.'!$C$64","v":"ifrs-full:ImpairmentLossRecognisedInProfitOrLossPropertyPlantAndEquipment"}]
["/*",null,{"$f":"'822100 - Nota. Prop, plan y eq.'!$D$65","v":"Reversión de pérdidas por deterioro de valor reconocidas en el resultado del periodo, propiedades, planta y equipo"},{"$f":"'822100 - Nota. Prop, plan y eq.'!$C$65","v":"ifrs-full:ReversalOfImpairmentLossRecognisedInProfitOrLossPropertyPlantAndEquipment"}]
["/*",null,{"$f":"'822100 - Nota. Prop, plan y eq.'!$D$66","v":"Incrementos (disminuciones) de revaluaciones, propiedades, planta y equipo"},{"$f":"'822100 - Nota. Prop, plan y eq.'!$C$66","v":"ifrs-full:RevaluationIncreaseDecreasePropertyPlantAndEquipment"}]
["/*",null,{"$f":"'822100 - Nota. Prop, plan y eq.'!$D$67","v":"Pérdidas por deterioro de valor reconocidas en otro resultado integral, propiedades, planta y equipo"},{"$f":"'822100 - Nota. Prop, plan y eq.'!$C$67","v":"ifrs-full:ImpairmentLossRecognisedInOtherComprehensiveIncomePropertyPlantAndEquipment"}]
["/*",null,{"$f":"'822100 - Nota. Prop, plan y eq.'!$D$68","v":"Reversión de pérdidas por deterioro de valor reconocidas en otro resultado integral, propiedades, planta y equipo"},{"$f":"'822100 - Nota. Prop, plan y eq.'!$C$68","v":"ifrs-full:ReversalOfImpairmentLossRecognisedInOtherComprehensiveIncomePropertyPlantAndEquipment"}]
["/*",null,{"$f":"'822100 - Nota. Prop, plan y eq.'!$D$69","v":"Incrementos (disminuciones) por transferencias y otros cambios, propiedades, planta y equipo [resumen]"},{"$f":"'822100 - Nota. Prop, plan y eq.'!$C$69","v":"ifrs-full:IncreaseDecreaseThroughTransfersAndOtherChangesPropertyPlantAndEquipmentAbstract"}]
["/*",null,{"$f":"'822100 - Nota. Prop, plan y eq.'!$D$70","v":"Incrementos (disminuciones) por transferencias desde (hacia) propiedades de inversión, propiedades, planta y equipo"},{"$f":"'822100 - Nota. Prop, plan y eq.'!$C$70","v":"ifrs-full:IncreaseDecreaseThroughTransfersFromToInvestmentPropertyPropertyPlantAndEquipment"}]
["/*",null,{"$f":"'822100 - Nota. Prop, plan y eq.'!$D$71","v":"Incrementos (disminuciones) por transferencias desde construcciones en proceso , propiedades, planta y equipo"},{"$f":"'822100 - Nota. Prop, plan y eq.'!$C$71","v":"ifrs-full:IncreaseDecreaseThroughTransfersFromConstructionInProgressPropertyPlantAndEquipment"}]
["/*",null,{"$f":"'822100 - Nota. Prop, plan y eq.'!$D$72","v":"Incrementos (disminuciones) por otros cambios, propiedades, planta y equipo"},{"$f":"'822100 - Nota. Prop, plan y eq.'!$C$72","v":"ifrs-full:IncreaseDecreaseThroughOtherChangesPropertyPlantAndEquipment"}]
["",null,{"$f":"'822100 - Nota. Prop, plan y eq.'!$D$73","v":"Total incrementos (disminuciones) por transferencias y otros cambios, propiedades, planta y equipo"},{"$f":"'822100 - Nota. Prop, plan y eq.'!$C$73","v":"ifrs-full:IncreaseDecreaseThroughTransfersAndOtherChangesPropertyPlantAndEquipment"},0,"peso",{"$f":"'822100 - Nota. Prop, plan y eq.'!$H$73","v":0},800001965,"http://www.xbrl.org/scheme/companyName",{"$f":"Periodos!$D$3","v":"2016-01-01"},{"$f":"Periodos!$D$4","v":"2016-12-31"},{"$f":"'822100 - Nota. Prop, plan y eq.'!$D$50","v":"co-svsp-core_2017-12-31:PropiedadesPlantaYEquipoEje_G1"},{"$f":"'822100 - Nota. Prop, plan y eq.'!$H$49","v":"ifrs-full:MachineryMember"}]
["/*",null,{"$f":"'822100 - Nota. Prop, plan y eq.'!$D$74","v":"Disposiciones y retiros de servicio, propiedades, planta y equipo [resumen]"},{"$f":"'822100 - Nota. Prop, plan y eq.'!$C$74","v":"ifrs-full:DisposalsAndRetirementsPropertyPlantAndEquipmentAbstract"}]
["/*",null,{"$f":"'822100 - Nota. Prop, plan y eq.'!$D$75","v":"Disposiciones, propiedades, planta y equipo"},{"$f":"'822100 - Nota. Prop, plan y eq.'!$C$75","v":"ifrs-full:DisposalsPropertyPlantAndEquipment"}]
["/*",null,{"$f":"'822100 - Nota. Prop, plan y eq.'!$D$76","v":"Retiros, propiedades, planta y equipo"},{"$f":"'822100 - Nota. Prop, plan y eq.'!$C$76","v":"ifrs-full:RetirementsPropertyPlantAndEquipment"}]
["",null,{"$f":"'822100 - Nota. Prop, plan y eq.'!$D$77","v":"Total de disposiciones y retiros de servicio, propiedades, planta y equipo"},{"$f":"'822100 - Nota. Prop, plan y eq.'!$C$77","v":"ifrs-full:DisposalsAndRetirementsPropertyPlantAndEquipment"},0,"peso",{"$f":"'822100 - Nota. Prop, plan y eq.'!$H$77","v":0},800001965,"http://www.xbrl.org/scheme/companyName",{"$f":"Periodos!$D$3","v":"2016-01-01"},{"$f":"Periodos!$D$4","v":"2016-12-31"},{"$f":"'822100 - Nota. Prop, plan y eq.'!$D$50","v":"co-svsp-core_2017-12-31:PropiedadesPlantaYEquipoEje_G1"},{"$f":"'822100 - Nota. Prop, plan y eq.'!$H$49","v":"ifrs-full:MachineryMember"}]
["/*",null,{"$f":"'822100 - Nota. Prop, plan y eq.'!$D$78","v":"Disminuciones por clasificar como mantenidos para la venta, propiedades, planta y equipo"},{"$f":"'822100 - Nota. Prop, plan y eq.'!$C$78","v":"ifrs-full:DecreaseThroughClassifiedAsHeldForSalePropertyPlantAndEquipment"}]
["",null,{"$f":"'822100 - Nota. Prop, plan y eq.'!$D$79","v":"Total incremento (disminución) en propiedades, planta y equipo"},{"$f":"'822100 - Nota. Prop, plan y eq.'!$C$79","v":"ifrs-full:ChangesInPropertyPlantAndEquipment"},0,"peso",{"$f":"'822100 - Nota. Prop, plan y eq.'!$H$79","v":0},800001965,"http://www.xbrl.org/scheme/companyName",{"$f":"Periodos!$D$3","v":"2016-01-01"},{"$f":"Periodos!$D$4","v":"2016-12-31"},{"$f":"'822100 - Nota. Prop, plan y eq.'!$D$50","v":"co-svsp-core_2017-12-31:PropiedadesPlantaYEquipoEje_G1"},{"$f":"'822100 - Nota. Prop, plan y eq.'!$H$49","v":"ifrs-full:MachineryMember"}]
["",null,{"$f":"'822100 - Nota. Prop, plan y eq.'!$D$80","v":"Propiedades, planta y equipo al final del periodo"},{"$f":"'822100 - Nota. Prop, plan y eq.'!$C$80","v":"co-svsp-core_2017-12-31:PropertyPlantAndEquipmentEndOfPeriod"},0,"peso",{"$f":"'822100 - Nota. Prop, plan y eq.'!$H$80","v":0},800001965,"http://www.xbrl.org/scheme/companyName",{"$f":"Periodos!$D$3","v":"2016-01-01"},{"$f":"Periodos!$D$4","v":"2016-12-31"},{"$f":"'822100 - Nota. Prop, plan y eq.'!$D$50","v":"co-svsp-core_2017-12-31:PropiedadesPlantaYEquipoEje_G1"},{"$f":"'822100 - Nota. Prop, plan y eq.'!$H$49","v":"ifrs-full:MachineryMember"}]
["/*",null,"--05--"]
["/*",null,{"$f":"'822100 - Nota. Prop, plan y eq.'!$D$51","v":"Información a revelar detallada sobre propiedades, planta y equipo [partidas de los estados financieros]"},{"$f":"'822100 - Nota. Prop, plan y eq.'!$C$51","v":"ifrs-full:DisclosureOfPropertyPlantAndEquipmentLineItems"}]
["/*",null,{"$f":"'822100 - Nota. Prop, plan y eq.'!$D$52","v":"Bases de medición, propiedades, planta y equipo"},{"$f":"'822100 - Nota. Prop, plan y eq.'!$C$52","v":"ifrs-full:MeasurementBasesPropertyPlantAndEquipment"}]
["/*",null,{"$f":"'822100 - Nota. Prop, plan y eq.'!$D$53","v":"Método de depreciación, propiedades, planta y equipo"},{"$f":"'822100 - Nota. Prop, plan y eq.'!$C$53","v":"ifrs-full:DepreciationMethodPropertyPlantAndEquipment"}]
["/*",null,{"$f":"'822100 - Nota. Prop, plan y eq.'!$D$54","v":"Vidas útiles o tasas de depreciación, propiedades, planta y equipo"},{"$f":"'822100 - Nota. Prop, plan y eq.'!$C$54","v":"ifrs-full:UsefulLivesOrDepreciationRatesPropertyPlantAndEquipment"}]
["/*",null,{"$f":"'822100 - Nota. Prop, plan y eq.'!$D$55","v":"Fechas de vigencia de revaluación, propiedades, planta y equipo"},{"$f":"'822100 - Nota. Prop, plan y eq.'!$C$55","v":"ifrs-full:EffectiveDatesOfRevaluationPropertyPlantAndEquipment"}]
["/*",null,{"$f":"'822100 - Nota. Prop, plan y eq.'!$D$56","v":"Explicación de la implicación del tasador independiente en la revaluación, propiedades, planta y equipo"},{"$f":"'822100 - Nota. Prop, plan y eq.'!$C$56","v":"ifrs-full:ExplanationOfIndependentValuerUsedForRevaluationPropertyPlantAndEquipment"}]
["/*",null,{"$f":"'822100 - Nota. Prop, plan y eq.'!$D$57","v":"Explicación del método de revaluación y supuestos significativos, propiedad, planta y equipo"},{"$f":"'822100 - Nota. Prop, plan y eq.'!$C$57","v":"co-svsp-core_2017-12-31:ExplanationOfRevaluationMethodsAndSignificantAssumptionsPropertyPlantAndEquipment"}]
["/*",null,{"$f":"'822100 - Nota. Prop, plan y eq.'!$D$58","v":"Conciliación de cambios en propiedades, planta y equipo [resumen]"},{"$f":"'822100 - Nota. Prop, plan y eq.'!$C$58","v":"ifrs-full:ReconciliationOfChangesInPropertyPlantAndEquipmentAbstract"}]
["/*",null,{"$f":"'822100 - Nota. Prop, plan y eq.'!$D$59","v":"Propiedades, planta y equipo al comienzo del periodo"},{"$f":"'822100 - Nota. Prop, plan y eq.'!$C$59","v":"co-svsp-core_2017-12-31:PropertyPlantAndEquipmentBeginningOfPeriod"}]
["/*",null,{"$f":"'822100 - Nota. Prop, plan y eq.'!$D$60","v":"Cambios en propiedades, planta y equipo [resumen]"},{"$f":"'822100 - Nota. Prop, plan y eq.'!$C$60","v":"ifrs-full:ChangesInPropertyPlantAndEquipmentAbstract"}]
["/*",null,{"$f":"'822100 - Nota. Prop, plan y eq.'!$D$61","v":"Incrementos distintos de los procedentes de combinaciones de negocios, propiedades, planta y equipo"},{"$f":"'822100 - Nota. Prop, plan y eq.'!$C$61","v":"ifrs-full:AdditionsOtherThanThroughBusinessCombinationsPropertyPlantAndEquipment"}]
["/*",null,{"$f":"'822100 - Nota. Prop, plan y eq.'!$D$62","v":"Adquisiciones realizadas mediante combinaciones de negocios, propiedades, planta y equipo"},{"$f":"'822100 - Nota. Prop, plan y eq.'!$C$62","v":"ifrs-full:AcquisitionsThroughBusinessCombinationsPropertyPlantAndEquipment"}]
["/*",null,{"$f":"'822100 - Nota. Prop, plan y eq.'!$D$63","v":"Depreciación, propiedades, planta y equipo"},{"$f":"'822100 - Nota. Prop, plan y eq.'!$C$63","v":"ifrs-full:DepreciationPropertyPlantAndEquipment"}]
["/*",null,{"$f":"'822100 - Nota. Prop, plan y eq.'!$D$64","v":"Pérdidas por deterioro de valor reconocidas en el resultado del periodo, propiedades, planta y equipo"},{"$f":"'822100 - Nota. Prop, plan y eq.'!$C$64","v":"ifrs-full:ImpairmentLossRecognisedInProfitOrLossPropertyPlantAndEquipment"}]
["/*",null,{"$f":"'822100 - Nota. Prop, plan y eq.'!$D$65","v":"Reversión de pérdidas por deterioro de valor reconocidas en el resultado del periodo, propiedades, planta y equipo"},{"$f":"'822100 - Nota. Prop, plan y eq.'!$C$65","v":"ifrs-full:ReversalOfImpairmentLossRecognisedInProfitOrLossPropertyPlantAndEquipment"}]
["/*",null,{"$f":"'822100 - Nota. Prop, plan y eq.'!$D$66","v":"Incrementos (disminuciones) de revaluaciones, propiedades, planta y equipo"},{"$f":"'822100 - Nota. Prop, plan y eq.'!$C$66","v":"ifrs-full:RevaluationIncreaseDecreasePropertyPlantAndEquipment"}]
["/*",null,{"$f":"'822100 - Nota. Prop, plan y eq.'!$D$67","v":"Pérdidas por deterioro de valor reconocidas en otro resultado integral, propiedades, planta y equipo"},{"$f":"'822100 - Nota. Prop, plan y eq.'!$C$67","v":"ifrs-full:ImpairmentLossRecognisedInOtherComprehensiveIncomePropertyPlantAndEquipment"}]
["/*",null,{"$f":"'822100 - Nota. Prop, plan y eq.'!$D$68","v":"Reversión de pérdidas por deterioro de valor reconocidas en otro resultado integral, propiedades, planta y equipo"},{"$f":"'822100 - Nota. Prop, plan y eq.'!$C$68","v":"ifrs-full:ReversalOfImpairmentLossRecognisedInOtherComprehensiveIncomePropertyPlantAndEquipment"}]
["/*",null,{"$f":"'822100 - Nota. Prop, plan y eq.'!$D$69","v":"Incrementos (disminuciones) por transferencias y otros cambios, propiedades, planta y equipo [resumen]"},{"$f":"'822100 - Nota. Prop, plan y eq.'!$C$69","v":"ifrs-full:IncreaseDecreaseThroughTransfersAndOtherChangesPropertyPlantAndEquipmentAbstract"}]
["/*",null,{"$f":"'822100 - Nota. Prop, plan y eq.'!$D$70","v":"Incrementos (disminuciones) por transferencias desde (hacia) propiedades de inversión, propiedades, planta y equipo"},{"$f":"'822100 - Nota. Prop, plan y eq.'!$C$70","v":"ifrs-full:IncreaseDecreaseThroughTransfersFromToInvestmentPropertyPropertyPlantAndEquipment"}]
["/*",null,{"$f":"'822100 - Nota. Prop, plan y eq.'!$D$71","v":"Incrementos (disminuciones) por transferencias desde construcciones en proceso , propiedades, planta y equipo"},{"$f":"'822100 - Nota. Prop, plan y eq.'!$C$71","v":"ifrs-full:IncreaseDecreaseThroughTransfersFromConstructionInProgressPropertyPlantAndEquipment"}]
["/*",null,{"$f":"'822100 - Nota. Prop, plan y eq.'!$D$72","v":"Incrementos (disminuciones) por otros cambios, propiedades, planta y equipo"},{"$f":"'822100 - Nota. Prop, plan y eq.'!$C$72","v":"ifrs-full:IncreaseDecreaseThroughOtherChangesPropertyPlantAndEquipment"}]
["",null,{"$f":"'822100 - Nota. Prop, plan y eq.'!$D$73","v":"Total incrementos (disminuciones) por transferencias y otros cambios, propiedades, planta y equipo"},{"$f":"'822100 - Nota. Prop, plan y eq.'!$C$73","v":"ifrs-full:IncreaseDecreaseThroughTransfersAndOtherChangesPropertyPlantAndEquipment"},0,"peso",{"$f":"'822100 - Nota. Prop, plan y eq.'!$I$73","v":0},800001965,"http://www.xbrl.org/scheme/companyName",{"$f":"Periodos!$D$3","v":"2016-01-01"},{"$f":"Periodos!$D$4","v":"2016-12-31"},{"$f":"'822100 - Nota. Prop, plan y eq.'!$D$50","v":"co-svsp-core_2017-12-31:PropiedadesPlantaYEquipoEje_G1"},{"$f":"'822100 - Nota. Prop, plan y eq.'!$I$49","v":"ifrs-full:ShipsMember"}]
[{"$f":"IF(G6753=\"\",\"/*\",\"\")","v":"/*"},null,{"$f":"'822100 - Nota. Prop, plan y eq.'!$D$74","v":"Disposiciones y retiros de servicio, propiedades, planta y equipo [resumen]"},{"$f":"'822100 - Nota. Prop, plan y eq.'!$C$74","v":"ifrs-full:DisposalsAndRetirementsPropertyPlantAndEquipmentAbstract"}]
["/*",null,{"$f":"'822100 - Nota. Prop, plan y eq.'!$D$75","v":"Disposiciones, propiedades, planta y equipo"},{"$f":"'822100 - Nota. Prop, plan y eq.'!$C$75","v":"ifrs-full:DisposalsPropertyPlantAndEquipment"}]
["/*",null,{"$f":"'822100 - Nota. Prop, plan y eq.'!$D$76","v":"Retiros, propiedades, planta y equipo"},{"$f":"'822100 - Nota. Prop, plan y eq.'!$C$76","v":"ifrs-full:RetirementsPropertyPlantAndEquipment"}]
["",null,{"$f":"'822100 - Nota. Prop, plan y eq.'!$D$77","v":"Total de disposiciones y retiros de servicio, propiedades, planta y equipo"},{"$f":"'822100 - Nota. Prop, plan y eq.'!$C$77","v":"ifrs-full:DisposalsAndRetirementsPropertyPlantAndEquipment"},0,"peso",{"$f":"'822100 - Nota. Prop, plan y eq.'!$I$77","v":0},800001965,"http://www.xbrl.org/scheme/companyName",{"$f":"Periodos!$D$3","v":"2016-01-01"},{"$f":"Periodos!$D$4","v":"2016-12-31"},{"$f":"'822100 - Nota. Prop, plan y eq.'!$D$50","v":"co-svsp-core_2017-12-31:PropiedadesPlantaYEquipoEje_G1"},{"$f":"'822100 - Nota. Prop, plan y eq.'!$I$49","v":"ifrs-full:ShipsMember"}]
["/*",null,{"$f":"'822100 - Nota. Prop, plan y eq.'!$D$78","v":"Disminuciones por clasificar como mantenidos para la venta, propiedades, planta y equipo"},{"$f":"'822100 - Nota. Prop, plan y eq.'!$C$78","v":"ifrs-full:DecreaseThroughClassifiedAsHeldForSalePropertyPlantAndEquipment"}]
["",null,{"$f":"'822100 - Nota. Prop, plan y eq.'!$D$79","v":"Total incremento (disminución) en propiedades, planta y equipo"},{"$f":"'822100 - Nota. Prop, plan y eq.'!$C$79","v":"ifrs-full:ChangesInPropertyPlantAndEquipment"},0,"peso",{"$f":"'822100 - Nota. Prop, plan y eq.'!$I$79","v":0},800001965,"http://www.xbrl.org/scheme/companyName",{"$f":"Periodos!$D$3","v":"2016-01-01"},{"$f":"Periodos!$D$4","v":"2016-12-31"},{"$f":"'822100 - Nota. Prop, plan y eq.'!$D$50","v":"co-svsp-core_2017-12-31:PropiedadesPlantaYEquipoEje_G1"},{"$f":"'822100 - Nota. Prop, plan y eq.'!$I$49","v":"ifrs-full:ShipsMember"}]
["",null,{"$f":"'822100 - Nota. Prop, plan y eq.'!$D$80","v":"Propiedades, planta y equipo al final del periodo"},{"$f":"'822100 - Nota. Prop, plan y eq.'!$C$80","v":"co-svsp-core_2017-12-31:PropertyPlantAndEquipmentEndOfPeriod"},0,"peso",{"$f":"'822100 - Nota. Prop, plan y eq.'!$I$80","v":0},800001965,"http://www.xbrl.org/scheme/companyName",{"$f":"Periodos!$D$3","v":"2016-01-01"},{"$f":"Periodos!$D$4","v":"2016-12-31"},{"$f":"'822100 - Nota. Prop, plan y eq.'!$D$50","v":"co-svsp-core_2017-12-31:PropiedadesPlantaYEquipoEje_G1"},{"$f":"'822100 - Nota. Prop, plan y eq.'!$I$49","v":"ifrs-full:ShipsMember"}]
["/*",null,"--06--"]
["/*",null,{"$f":"'822100 - Nota. Prop, plan y eq.'!$D$51","v":"Información a revelar detallada sobre propiedades, planta y equipo [partidas de los estados financieros]"},{"$f":"'822100 - Nota. Prop, plan y eq.'!$C$51","v":"ifrs-full:DisclosureOfPropertyPlantAndEquipmentLineItems"}]
["/*",null,{"$f":"'822100 - Nota. Prop, plan y eq.'!$D$52","v":"Bases de medición, propiedades, planta y equipo"},{"$f":"'822100 - Nota. Prop, plan y eq.'!$C$52","v":"ifrs-full:MeasurementBasesPropertyPlantAndEquipment"}]
["/*",null,{"$f":"'822100 - Nota. Prop, plan y eq.'!$D$53","v":"Método de depreciación, propiedades, planta y equipo"},{"$f":"'822100 - Nota. Prop, plan y eq.'!$C$53","v":"ifrs-full:DepreciationMethodPropertyPlantAndEquipment"}]
["/*",null,{"$f":"'822100 - Nota. Prop, plan y eq.'!$D$54","v":"Vidas útiles o tasas de depreciación, propiedades, planta y equipo"},{"$f":"'822100 - Nota. Prop, plan y eq.'!$C$54","v":"ifrs-full:UsefulLivesOrDepreciationRatesPropertyPlantAndEquipment"}]
["/*",null,{"$f":"'822100 - Nota. Prop, plan y eq.'!$D$55","v":"Fechas de vigencia de revaluación, propiedades, planta y equipo"},{"$f":"'822100 - Nota. Prop, plan y eq.'!$C$55","v":"ifrs-full:EffectiveDatesOfRevaluationPropertyPlantAndEquipment"}]
["/*",null,{"$f":"'822100 - Nota. Prop, plan y eq.'!$D$56","v":"Explicación de la implicación del tasador independiente en la revaluación, propiedades, planta y equipo"},{"$f":"'822100 - Nota. Prop, plan y eq.'!$C$56","v":"ifrs-full:ExplanationOfIndependentValuerUsedForRevaluationPropertyPlantAndEquipment"}]
["/*",null,{"$f":"'822100 - Nota. Prop, plan y eq.'!$D$57","v":"Explicación del método de revaluación y supuestos significativos, propiedad, planta y equipo"},{"$f":"'822100 - Nota. Prop, plan y eq.'!$C$57","v":"co-svsp-core_2017-12-31:ExplanationOfRevaluationMethodsAndSignificantAssumptionsPropertyPlantAndEquipment"}]
["/*",null,{"$f":"'822100 - Nota. Prop, plan y eq.'!$D$58","v":"Conciliación de cambios en propiedades, planta y equipo [resumen]"},{"$f":"'822100 - Nota. Prop, plan y eq.'!$C$58","v":"ifrs-full:ReconciliationOfChangesInPropertyPlantAndEquipmentAbstract"}]
["/*",null,{"$f":"'822100 - Nota. Prop, plan y eq.'!$D$59","v":"Propiedades, planta y equipo al comienzo del periodo"},{"$f":"'822100 - Nota. Prop, plan y eq.'!$C$59","v":"co-svsp-core_2017-12-31:PropertyPlantAndEquipmentBeginningOfPeriod"}]
["/*",null,{"$f":"'822100 - Nota. Prop, plan y eq.'!$D$60","v":"Cambios en propiedades, planta y equipo [resumen]"},{"$f":"'822100 - Nota. Prop, plan y eq.'!$C$60","v":"ifrs-full:ChangesInPropertyPlantAndEquipmentAbstract"}]
["/*",null,{"$f":"'822100 - Nota. Prop, plan y eq.'!$D$61","v":"Incrementos distintos de los procedentes de combinaciones de negocios, propiedades, planta y equipo"},{"$f":"'822100 - Nota. Prop, plan y eq.'!$C$61","v":"ifrs-full:AdditionsOtherThanThroughBusinessCombinationsPropertyPlantAndEquipment"}]
["/*",null,{"$f":"'822100 - Nota. Prop, plan y eq.'!$D$62","v":"Adquisiciones realizadas mediante combinaciones de negocios, propiedades, planta y equipo"},{"$f":"'822100 - Nota. Prop, plan y eq.'!$C$62","v":"ifrs-full:AcquisitionsThroughBusinessCombinationsPropertyPlantAndEquipment"}]
["/*",null,{"$f":"'822100 - Nota. Prop, plan y eq.'!$D$63","v":"Depreciación, propiedades, planta y equipo"},{"$f":"'822100 - Nota. Prop, plan y eq.'!$C$63","v":"ifrs-full:DepreciationPropertyPlantAndEquipment"}]
["/*",null,{"$f":"'822100 - Nota. Prop, plan y eq.'!$D$64","v":"Pérdidas por deterioro de valor reconocidas en el resultado del periodo, propiedades, planta y equipo"},{"$f":"'822100 - Nota. Prop, plan y eq.'!$C$64","v":"ifrs-full:ImpairmentLossRecognisedInProfitOrLossPropertyPlantAndEquipment"}]
["/*",null,{"$f":"'822100 - Nota. Prop, plan y eq.'!$D$65","v":"Reversión de pérdidas por deterioro de valor reconocidas en el resultado del periodo, propiedades, planta y equipo"},{"$f":"'822100 - Nota. Prop, plan y eq.'!$C$65","v":"ifrs-full:ReversalOfImpairmentLossRecognisedInProfitOrLossPropertyPlantAndEquipment"}]
["/*",null,{"$f":"'822100 - Nota. Prop, plan y eq.'!$D$66","v":"Incrementos (disminuciones) de revaluaciones, propiedades, planta y equipo"},{"$f":"'822100 - Nota. Prop, plan y eq.'!$C$66","v":"ifrs-full:RevaluationIncreaseDecreasePropertyPlantAndEquipment"}]
["/*",null,{"$f":"'822100 - Nota. Prop, plan y eq.'!$D$67","v":"Pérdidas por deterioro de valor reconocidas en otro resultado integral, propiedades, planta y equipo"},{"$f":"'822100 - Nota. Prop, plan y eq.'!$C$67","v":"ifrs-full:ImpairmentLossRecognisedInOtherComprehensiveIncomePropertyPlantAndEquipment"}]
["/*",null,{"$f":"'822100 - Nota. Prop, plan y eq.'!$D$68","v":"Reversión de pérdidas por deterioro de valor reconocidas en otro resultado integral, propiedades, planta y equipo"},{"$f":"'822100 - Nota. Prop, plan y eq.'!$C$68","v":"ifrs-full:ReversalOfImpairmentLossRecognisedInOtherComprehensiveIncomePropertyPlantAndEquipment"}]
["/*",null,{"$f":"'822100 - Nota. Prop, plan y eq.'!$D$69","v":"Incrementos (disminuciones) por transferencias y otros cambios, propiedades, planta y equipo [resumen]"},{"$f":"'822100 - Nota. Prop, plan y eq.'!$C$69","v":"ifrs-full:IncreaseDecreaseThroughTransfersAndOtherChangesPropertyPlantAndEquipmentAbstract"}]
["/*",null,{"$f":"'822100 - Nota. Prop, plan y eq.'!$D$70","v":"Incrementos (disminuciones) por transferencias desde (hacia) propiedades de inversión, propiedades, planta y equipo"},{"$f":"'822100 - Nota. Prop, plan y eq.'!$C$70","v":"ifrs-full:IncreaseDecreaseThroughTransfersFromToInvestmentPropertyPropertyPlantAndEquipment"}]
["/*",null,{"$f":"'822100 - Nota. Prop, plan y eq.'!$D$71","v":"Incrementos (disminuciones) por transferencias desde construcciones en proceso , propiedades, planta y equipo"},{"$f":"'822100 - Nota. Prop, plan y eq.'!$C$71","v":"ifrs-full:IncreaseDecreaseThroughTransfersFromConstructionInProgressPropertyPlantAndEquipment"}]
["/*",null,{"$f":"'822100 - Nota. Prop, plan y eq.'!$D$72","v":"Incrementos (disminuciones) por otros cambios, propiedades, planta y equipo"},{"$f":"'822100 - Nota. Prop, plan y eq.'!$C$72","v":"ifrs-full:IncreaseDecreaseThroughOtherChangesPropertyPlantAndEquipment"}]
["",null,{"$f":"'822100 - Nota. Prop, plan y eq.'!$D$73","v":"Total incrementos (disminuciones) por transferencias y otros cambios, propiedades, planta y equipo"},{"$f":"'822100 - Nota. Prop, plan y eq.'!$C$73","v":"ifrs-full:IncreaseDecreaseThroughTransfersAndOtherChangesPropertyPlantAndEquipment"},0,"peso",{"$f":"'822100 - Nota. Prop, plan y eq.'!$J$73","v":0},800001965,"http://www.xbrl.org/scheme/companyName",{"$f":"Periodos!$D$3","v":"2016-01-01"},{"$f":"Periodos!$D$4","v":"2016-12-31"},{"$f":"'822100 - Nota. Prop, plan y eq.'!$D$50","v":"co-svsp-core_2017-12-31:PropiedadesPlantaYEquipoEje_G1"},{"$f":"'822100 - Nota. Prop, plan y eq.'!$J$49","v":"ifrs-full:AircraftMember"}]
["/*",null,{"$f":"'822100 - Nota. Prop, plan y eq.'!$D$74","v":"Disposiciones y retiros de servicio, propiedades, planta y equipo [resumen]"},{"$f":"'822100 - Nota. Prop, plan y eq.'!$C$74","v":"ifrs-full:DisposalsAndRetirementsPropertyPlantAndEquipmentAbstract"}]
["/*",null,{"$f":"'822100 - Nota. Prop, plan y eq.'!$D$75","v":"Disposiciones, propiedades, planta y equipo"},{"$f":"'822100 - Nota. Prop, plan y eq.'!$C$75","v":"ifrs-full:DisposalsPropertyPlantAndEquipment"}]
["/*",null,{"$f":"'822100 - Nota. Prop, plan y eq.'!$D$76","v":"Retiros, propiedades, planta y equipo"},{"$f":"'822100 - Nota. Prop, plan y eq.'!$C$76","v":"ifrs-full:RetirementsPropertyPlantAndEquipment"}]
["",null,{"$f":"'822100 - Nota. Prop, plan y eq.'!$D$77","v":"Total de disposiciones y retiros de servicio, propiedades, planta y equipo"},{"$f":"'822100 - Nota. Prop, plan y eq.'!$C$77","v":"ifrs-full:DisposalsAndRetirementsPropertyPlantAndEquipment"},0,"peso",{"$f":"'822100 - Nota. Prop, plan y eq.'!$J$77","v":0},800001965,"http://www.xbrl.org/scheme/companyName",{"$f":"Periodos!$D$3","v":"2016-01-01"},{"$f":"Periodos!$D$4","v":"2016-12-31"},{"$f":"'822100 - Nota. Prop, plan y eq.'!$D$50","v":"co-svsp-core_2017-12-31:PropiedadesPlantaYEquipoEje_G1"},{"$f":"'822100 - Nota. Prop, plan y eq.'!$J$49","v":"ifrs-full:AircraftMember"}]
["/*",null,{"$f":"'822100 - Nota. Prop, plan y eq.'!$D$78","v":"Disminuciones por clasificar como mantenidos para la venta, propiedades, planta y equipo"},{"$f":"'822100 - Nota. Prop, plan y eq.'!$C$78","v":"ifrs-full:DecreaseThroughClassifiedAsHeldForSalePropertyPlantAndEquipment"}]
["",null,{"$f":"'822100 - Nota. Prop, plan y eq.'!$D$79","v":"Total incremento (disminución) en propiedades, planta y equipo"},{"$f":"'822100 - Nota. Prop, plan y eq.'!$C$79","v":"ifrs-full:ChangesInPropertyPlantAndEquipment"},0,"peso",{"$f":"'822100 - Nota. Prop, plan y eq.'!$J$79","v":0},800001965,"http://www.xbrl.org/scheme/companyName",{"$f":"Periodos!$D$3","v":"2016-01-01"},{"$f":"Periodos!$D$4","v":"2016-12-31"},{"$f":"'822100 - Nota. Prop, plan y eq.'!$D$50","v":"co-svsp-core_2017-12-31:PropiedadesPlantaYEquipoEje_G1"},{"$f":"'822100 - Nota. Prop, plan y eq.'!$J$49","v":"ifrs-full:AircraftMember"}]
["",null,{"$f":"'822100 - Nota. Prop, plan y eq.'!$D$80","v":"Propiedades, planta y equipo al final del periodo"},{"$f":"'822100 - Nota. Prop, plan y eq.'!$C$80","v":"co-svsp-core_2017-12-31:PropertyPlantAndEquipmentEndOfPeriod"},0,"peso",{"$f":"'822100 - Nota. Prop, plan y eq.'!$J$80","v":0},800001965,"http://www.xbrl.org/scheme/companyName",{"$f":"Periodos!$D$3","v":"2016-01-01"},{"$f":"Periodos!$D$4","v":"2016-12-31"},{"$f":"'822100 - Nota. Prop, plan y eq.'!$D$50","v":"co-svsp-core_2017-12-31:PropiedadesPlantaYEquipoEje_G1"},{"$f":"'822100 - Nota. Prop, plan y eq.'!$J$49","v":"ifrs-full:AircraftMember"}]
["/*",null,"--07--"]
["/*",null,{"$f":"'822100 - Nota. Prop, plan y eq.'!$D$51","v":"Información a revelar detallada sobre propiedades, planta y equipo [partidas de los estados financieros]"},{"$f":"'822100 - Nota. Prop, plan y eq.'!$C$51","v":"ifrs-full:DisclosureOfPropertyPlantAndEquipmentLineItems"}]
["/*",null,{"$f":"'822100 - Nota. Prop, plan y eq.'!$D$52","v":"Bases de medición, propiedades, planta y equipo"},{"$f":"'822100 - Nota. Prop, plan y eq.'!$C$52","v":"ifrs-full:MeasurementBasesPropertyPlantAndEquipment"}]
["/*",null,{"$f":"'822100 - Nota. Prop, plan y eq.'!$D$53","v":"Método de depreciación, propiedades, planta y equipo"},{"$f":"'822100 - Nota. Prop, plan y eq.'!$C$53","v":"ifrs-full:DepreciationMethodPropertyPlantAndEquipment"}]
["/*",null,{"$f":"'822100 - Nota. Prop, plan y eq.'!$D$54","v":"Vidas útiles o tasas de depreciación, propiedades, planta y equipo"},{"$f":"'822100 - Nota. Prop, plan y eq.'!$C$54","v":"ifrs-full:UsefulLivesOrDepreciationRatesPropertyPlantAndEquipment"}]
["/*",null,{"$f":"'822100 - Nota. Prop, plan y eq.'!$D$55","v":"Fechas de vigencia de revaluación, propiedades, planta y equipo"},{"$f":"'822100 - Nota. Prop, plan y eq.'!$C$55","v":"ifrs-full:EffectiveDatesOfRevaluationPropertyPlantAndEquipment"}]
["/*",null,{"$f":"'822100 - Nota. Prop, plan y eq.'!$D$56","v":"Explicación de la implicación del tasador independiente en la revaluación, propiedades, planta y equipo"},{"$f":"'822100 - Nota. Prop, plan y eq.'!$C$56","v":"ifrs-full:ExplanationOfIndependentValuerUsedForRevaluationPropertyPlantAndEquipment"}]
["/*",null,{"$f":"'822100 - Nota. Prop, plan y eq.'!$D$57","v":"Explicación del método de revaluación y supuestos significativos, propiedad, planta y equipo"},{"$f":"'822100 - Nota. Prop, plan y eq.'!$C$57","v":"co-svsp-core_2017-12-31:ExplanationOfRevaluationMethodsAndSignificantAssumptionsPropertyPlantAndEquipment"}]
["/*",null,{"$f":"'822100 - Nota. Prop, plan y eq.'!$D$58","v":"Conciliación de cambios en propiedades, planta y equipo [resumen]"},{"$f":"'822100 - Nota. Prop, plan y eq.'!$C$58","v":"ifrs-full:ReconciliationOfChangesInPropertyPlantAndEquipmentAbstract"}]
["/*",null,{"$f":"'822100 - Nota. Prop, plan y eq.'!$D$59","v":"Propiedades, planta y equipo al comienzo del periodo"},{"$f":"'822100 - Nota. Prop, plan y eq.'!$C$59","v":"co-svsp-core_2017-12-31:PropertyPlantAndEquipmentBeginningOfPeriod"}]
["/*",null,{"$f":"'822100 - Nota. Prop, plan y eq.'!$D$60","v":"Cambios en propiedades, planta y equipo [resumen]"},{"$f":"'822100 - Nota. Prop, plan y eq.'!$C$60","v":"ifrs-full:ChangesInPropertyPlantAndEquipmentAbstract"}]
["/*",null,{"$f":"'822100 - Nota. Prop, plan y eq.'!$D$61","v":"Incrementos distintos de los procedentes de combinaciones de negocios, propiedades, planta y equipo"},{"$f":"'822100 - Nota. Prop, plan y eq.'!$C$61","v":"ifrs-full:AdditionsOtherThanThroughBusinessCombinationsPropertyPlantAndEquipment"}]
["/*",null,{"$f":"'822100 - Nota. Prop, plan y eq.'!$D$62","v":"Adquisiciones realizadas mediante combinaciones de negocios, propiedades, planta y equipo"},{"$f":"'822100 - Nota. Prop, plan y eq.'!$C$62","v":"ifrs-full:AcquisitionsThroughBusinessCombinationsPropertyPlantAndEquipment"}]
["/*",null,{"$f":"'822100 - Nota. Prop, plan y eq.'!$D$63","v":"Depreciación, propiedades, planta y equipo"},{"$f":"'822100 - Nota. Prop, plan y eq.'!$C$63","v":"ifrs-full:DepreciationPropertyPlantAndEquipment"}]
["/*",null,{"$f":"'822100 - Nota. Prop, plan y eq.'!$D$64","v":"Pérdidas por deterioro de valor reconocidas en el resultado del periodo, propiedades, planta y equipo"},{"$f":"'822100 - Nota. Prop, plan y eq.'!$C$64","v":"ifrs-full:ImpairmentLossRecognisedInProfitOrLossPropertyPlantAndEquipment"}]
["/*",null,{"$f":"'822100 - Nota. Prop, plan y eq.'!$D$65","v":"Reversión de pérdidas por deterioro de valor reconocidas en el resultado del periodo, propiedades, planta y equipo"},{"$f":"'822100 - Nota. Prop, plan y eq.'!$C$65","v":"ifrs-full:ReversalOfImpairmentLossRecognisedInProfitOrLossPropertyPlantAndEquipment"}]
["/*",null,{"$f":"'822100 - Nota. Prop, plan y eq.'!$D$66","v":"Incrementos (disminuciones) de revaluaciones, propiedades, planta y equipo"},{"$f":"'822100 - Nota. Prop, plan y eq.'!$C$66","v":"ifrs-full:RevaluationIncreaseDecreasePropertyPlantAndEquipment"}]
["/*",null,{"$f":"'822100 - Nota. Prop, plan y eq.'!$D$67","v":"Pérdidas por deterioro de valor reconocidas en otro resultado integral, propiedades, planta y equipo"},{"$f":"'822100 - Nota. Prop, plan y eq.'!$C$67","v":"ifrs-full:ImpairmentLossRecognisedInOtherComprehensiveIncomePropertyPlantAndEquipment"}]
["/*",null,{"$f":"'822100 - Nota. Prop, plan y eq.'!$D$68","v":"Reversión de pérdidas por deterioro de valor reconocidas en otro resultado integral, propiedades, planta y equipo"},{"$f":"'822100 - Nota. Prop, plan y eq.'!$C$68","v":"ifrs-full:ReversalOfImpairmentLossRecognisedInOtherComprehensiveIncomePropertyPlantAndEquipment"}]
["/*",null,{"$f":"'822100 - Nota. Prop, plan y eq.'!$D$69","v":"Incrementos (disminuciones) por transferencias y otros cambios, propiedades, planta y equipo [resumen]"},{"$f":"'822100 - Nota. Prop, plan y eq.'!$C$69","v":"ifrs-full:IncreaseDecreaseThroughTransfersAndOtherChangesPropertyPlantAndEquipmentAbstract"}]
["/*",null,{"$f":"'822100 - Nota. Prop, plan y eq.'!$D$70","v":"Incrementos (disminuciones) por transferencias desde (hacia) propiedades de inversión, propiedades, planta y equipo"},{"$f":"'822100 - Nota. Prop, plan y eq.'!$C$70","v":"ifrs-full:IncreaseDecreaseThroughTransfersFromToInvestmentPropertyPropertyPlantAndEquipment"}]
["/*",null,{"$f":"'822100 - Nota. Prop, plan y eq.'!$D$71","v":"Incrementos (disminuciones) por transferencias desde construcciones en proceso , propiedades, planta y equipo"},{"$f":"'822100 - Nota. Prop, plan y eq.'!$C$71","v":"ifrs-full:IncreaseDecreaseThroughTransfersFromConstructionInProgressPropertyPlantAndEquipment"}]
["/*",null,{"$f":"'822100 - Nota. Prop, plan y eq.'!$D$72","v":"Incrementos (disminuciones) por otros cambios, propiedades, planta y equipo"},{"$f":"'822100 - Nota. Prop, plan y eq.'!$C$72","v":"ifrs-full:IncreaseDecreaseThroughOtherChangesPropertyPlantAndEquipment"}]
["",null,{"$f":"'822100 - Nota. Prop, plan y eq.'!$D$73","v":"Total incrementos (disminuciones) por transferencias y otros cambios, propiedades, planta y equipo"},{"$f":"'822100 - Nota. Prop, plan y eq.'!$C$73","v":"ifrs-full:IncreaseDecreaseThroughTransfersAndOtherChangesPropertyPlantAndEquipment"},0,"peso",{"$f":"'822100 - Nota. Prop, plan y eq.'!$K$73","v":0},800001965,"http://www.xbrl.org/scheme/companyName",{"$f":"Periodos!$D$3","v":"2016-01-01"},{"$f":"Periodos!$D$4","v":"2016-12-31"},{"$f":"'822100 - Nota. Prop, plan y eq.'!$D$50","v":"co-svsp-core_2017-12-31:PropiedadesPlantaYEquipoEje_G1"},{"$f":"'822100 - Nota. Prop, plan y eq.'!$K$49","v":"co-svsp-core_2017-12-31:AutomovilesBlindandosMiembro"}]
["/*",null,{"$f":"'822100 - Nota. Prop, plan y eq.'!$D$74","v":"Disposiciones y retiros de servicio, propiedades, planta y equipo [resumen]"},{"$f":"'822100 - Nota. Prop, plan y eq.'!$C$74","v":"ifrs-full:DisposalsAndRetirementsPropertyPlantAndEquipmentAbstract"}]
["/*",null,{"$f":"'822100 - Nota. Prop, plan y eq.'!$D$75","v":"Disposiciones, propiedades, planta y equipo"},{"$f":"'822100 - Nota. Prop, plan y eq.'!$C$75","v":"ifrs-full:DisposalsPropertyPlantAndEquipment"}]
[{"$f":"IF(G6817=\"\",\"/*\",\"\")","v":"/*"},null,{"$f":"'822100 - Nota. Prop, plan y eq.'!$D$76","v":"Retiros, propiedades, planta y equipo"},{"$f":"'822100 - Nota. Prop, plan y eq.'!$C$76","v":"ifrs-full:RetirementsPropertyPlantAndEquipment"}]
["",null,{"$f":"'822100 - Nota. Prop, plan y eq.'!$D$77","v":"Total de disposiciones y retiros de servicio, propiedades, planta y equipo"},{"$f":"'822100 - Nota. Prop, plan y eq.'!$C$77","v":"ifrs-full:DisposalsAndRetirementsPropertyPlantAndEquipment"},0,"peso",{"$f":"'822100 - Nota. Prop, plan y eq.'!$K$77","v":0},800001965,"http://www.xbrl.org/scheme/companyName",{"$f":"Periodos!$D$3","v":"2016-01-01"},{"$f":"Periodos!$D$4","v":"2016-12-31"},{"$f":"'822100 - Nota. Prop, plan y eq.'!$D$50","v":"co-svsp-core_2017-12-31:PropiedadesPlantaYEquipoEje_G1"},{"$f":"'822100 - Nota. Prop, plan y eq.'!$K$49","v":"co-svsp-core_2017-12-31:AutomovilesBlindandosMiembro"}]
["/*",null,{"$f":"'822100 - Nota. Prop, plan y eq.'!$D$78","v":"Disminuciones por clasificar como mantenidos para la venta, propiedades, planta y equipo"},{"$f":"'822100 - Nota. Prop, plan y eq.'!$C$78","v":"ifrs-full:DecreaseThroughClassifiedAsHeldForSalePropertyPlantAndEquipment"}]
["",null,{"$f":"'822100 - Nota. Prop, plan y eq.'!$D$79","v":"Total incremento (disminución) en propiedades, planta y equipo"},{"$f":"'822100 - Nota. Prop, plan y eq.'!$C$79","v":"ifrs-full:ChangesInPropertyPlantAndEquipment"},0,"peso",{"$f":"'822100 - Nota. Prop, plan y eq.'!$K$79","v":0},800001965,"http://www.xbrl.org/scheme/companyName",{"$f":"Periodos!$D$3","v":"2016-01-01"},{"$f":"Periodos!$D$4","v":"2016-12-31"},{"$f":"'822100 - Nota. Prop, plan y eq.'!$D$50","v":"co-svsp-core_2017-12-31:PropiedadesPlantaYEquipoEje_G1"},{"$f":"'822100 - Nota. Prop, plan y eq.'!$K$49","v":"co-svsp-core_2017-12-31:AutomovilesBlindandosMiembro"}]
["",null,{"$f":"'822100 - Nota. Prop, plan y eq.'!$D$80","v":"Propiedades, planta y equipo al final del periodo"},{"$f":"'822100 - Nota. Prop, plan y eq.'!$C$80","v":"co-svsp-core_2017-12-31:PropertyPlantAndEquipmentEndOfPeriod"},0,"peso",{"$f":"'822100 - Nota. Prop, plan y eq.'!$K$80","v":0},800001965,"http://www.xbrl.org/scheme/companyName",{"$f":"Periodos!$D$3","v":"2016-01-01"},{"$f":"Periodos!$D$4","v":"2016-12-31"},{"$f":"'822100 - Nota. Prop, plan y eq.'!$D$50","v":"co-svsp-core_2017-12-31:PropiedadesPlantaYEquipoEje_G1"},{"$f":"'822100 - Nota. Prop, plan y eq.'!$K$49","v":"co-svsp-core_2017-12-31:AutomovilesBlindandosMiembro"}]
["/*",null,"--08--"]
["/*",null,{"$f":"'822100 - Nota. Prop, plan y eq.'!$D$51","v":"Información a revelar detallada sobre propiedades, planta y equipo [partidas de los estados financieros]"},{"$f":"'822100 - Nota. Prop, plan y eq.'!$C$51","v":"ifrs-full:DisclosureOfPropertyPlantAndEquipmentLineItems"}]
["/*",null,{"$f":"'822100 - Nota. Prop, plan y eq.'!$D$52","v":"Bases de medición, propiedades, planta y equipo"},{"$f":"'822100 - Nota. Prop, plan y eq.'!$C$52","v":"ifrs-full:MeasurementBasesPropertyPlantAndEquipment"}]
["/*",null,{"$f":"'822100 - Nota. Prop, plan y eq.'!$D$53","v":"Método de depreciación, propiedades, planta y equipo"},{"$f":"'822100 - Nota. Prop, plan y eq.'!$C$53","v":"ifrs-full:DepreciationMethodPropertyPlantAndEquipment"}]
["/*",null,{"$f":"'822100 - Nota. Prop, plan y eq.'!$D$54","v":"Vidas útiles o tasas de depreciación, propiedades, planta y equipo"},{"$f":"'822100 - Nota. Prop, plan y eq.'!$C$54","v":"ifrs-full:UsefulLivesOrDepreciationRatesPropertyPlantAndEquipment"}]
["/*",null,{"$f":"'822100 - Nota. Prop, plan y eq.'!$D$55","v":"Fechas de vigencia de revaluación, propiedades, planta y equipo"},{"$f":"'822100 - Nota. Prop, plan y eq.'!$C$55","v":"ifrs-full:EffectiveDatesOfRevaluationPropertyPlantAndEquipment"}]
["/*",null,{"$f":"'822100 - Nota. Prop, plan y eq.'!$D$56","v":"Explicación de la implicación del tasador independiente en la revaluación, propiedades, planta y equipo"},{"$f":"'822100 - Nota. Prop, plan y eq.'!$C$56","v":"ifrs-full:ExplanationOfIndependentValuerUsedForRevaluationPropertyPlantAndEquipment"}]
["/*",null,{"$f":"'822100 - Nota. Prop, plan y eq.'!$D$57","v":"Explicación del método de revaluación y supuestos significativos, propiedad, planta y equipo"},{"$f":"'822100 - Nota. Prop, plan y eq.'!$C$57","v":"co-svsp-core_2017-12-31:ExplanationOfRevaluationMethodsAndSignificantAssumptionsPropertyPlantAndEquipment"}]
["/*",null,{"$f":"'822100 - Nota. Prop, plan y eq.'!$D$58","v":"Conciliación de cambios en propiedades, planta y equipo [resumen]"},{"$f":"'822100 - Nota. Prop, plan y eq.'!$C$58","v":"ifrs-full:ReconciliationOfChangesInPropertyPlantAndEquipmentAbstract"}]
["/*",null,{"$f":"'822100 - Nota. Prop, plan y eq.'!$D$59","v":"Propiedades, planta y equipo al comienzo del periodo"},{"$f":"'822100 - Nota. Prop, plan y eq.'!$C$59","v":"co-svsp-core_2017-12-31:PropertyPlantAndEquipmentBeginningOfPeriod"}]
["/*",null,{"$f":"'822100 - Nota. Prop, plan y eq.'!$D$60","v":"Cambios en propiedades, planta y equipo [resumen]"},{"$f":"'822100 - Nota. Prop, plan y eq.'!$C$60","v":"ifrs-full:ChangesInPropertyPlantAndEquipmentAbstract"}]
["/*",null,{"$f":"'822100 - Nota. Prop, plan y eq.'!$D$61","v":"Incrementos distintos de los procedentes de combinaciones de negocios, propiedades, planta y equipo"},{"$f":"'822100 - Nota. Prop, plan y eq.'!$C$61","v":"ifrs-full:AdditionsOtherThanThroughBusinessCombinationsPropertyPlantAndEquipment"}]
["/*",null,{"$f":"'822100 - Nota. Prop, plan y eq.'!$D$62","v":"Adquisiciones realizadas mediante combinaciones de negocios, propiedades, planta y equipo"},{"$f":"'822100 - Nota. Prop, plan y eq.'!$C$62","v":"ifrs-full:AcquisitionsThroughBusinessCombinationsPropertyPlantAndEquipment"}]
["/*",null,{"$f":"'822100 - Nota. Prop, plan y eq.'!$D$63","v":"Depreciación, propiedades, planta y equipo"},{"$f":"'822100 - Nota. Prop, plan y eq.'!$C$63","v":"ifrs-full:DepreciationPropertyPlantAndEquipment"}]
["/*",null,{"$f":"'822100 - Nota. Prop, plan y eq.'!$D$64","v":"Pérdidas por deterioro de valor reconocidas en el resultado del periodo, propiedades, planta y equipo"},{"$f":"'822100 - Nota. Prop, plan y eq.'!$C$64","v":"ifrs-full:ImpairmentLossRecognisedInProfitOrLossPropertyPlantAndEquipment"}]
["/*",null,{"$f":"'822100 - Nota. Prop, plan y eq.'!$D$65","v":"Reversión de pérdidas por deterioro de valor reconocidas en el resultado del periodo, propiedades, planta y equipo"},{"$f":"'822100 - Nota. Prop, plan y eq.'!$C$65","v":"ifrs-full:ReversalOfImpairmentLossRecognisedInProfitOrLossPropertyPlantAndEquipment"}]
["/*",null,{"$f":"'822100 - Nota. Prop, plan y eq.'!$D$66","v":"Incrementos (disminuciones) de revaluaciones, propiedades, planta y equipo"},{"$f":"'822100 - Nota. Prop, plan y eq.'!$C$66","v":"ifrs-full:RevaluationIncreaseDecreasePropertyPlantAndEquipment"}]
["/*",null,{"$f":"'822100 - Nota. Prop, plan y eq.'!$D$67","v":"Pérdidas por deterioro de valor reconocidas en otro resultado integral, propiedades, planta y equipo"},{"$f":"'822100 - Nota. Prop, plan y eq.'!$C$67","v":"ifrs-full:ImpairmentLossRecognisedInOtherComprehensiveIncomePropertyPlantAndEquipment"}]
["/*",null,{"$f":"'822100 - Nota. Prop, plan y eq.'!$D$68","v":"Reversión de pérdidas por deterioro de valor reconocidas en otro resultado integral, propiedades, planta y equipo"},{"$f":"'822100 - Nota. Prop, plan y eq.'!$C$68","v":"ifrs-full:ReversalOfImpairmentLossRecognisedInOtherComprehensiveIncomePropertyPlantAndEquipment"}]
["/*",null,{"$f":"'822100 - Nota. Prop, plan y eq.'!$D$69","v":"Incrementos (disminuciones) por transferencias y otros cambios, propiedades, planta y equipo [resumen]"},{"$f":"'822100 - Nota. Prop, plan y eq.'!$C$69","v":"ifrs-full:IncreaseDecreaseThroughTransfersAndOtherChangesPropertyPlantAndEquipmentAbstract"}]
["/*",null,{"$f":"'822100 - Nota. Prop, plan y eq.'!$D$70","v":"Incrementos (disminuciones) por transferencias desde (hacia) propiedades de inversión, propiedades, planta y equipo"},{"$f":"'822100 - Nota. Prop, plan y eq.'!$C$70","v":"ifrs-full:IncreaseDecreaseThroughTransfersFromToInvestmentPropertyPropertyPlantAndEquipment"}]
["/*",null,{"$f":"'822100 - Nota. Prop, plan y eq.'!$D$71","v":"Incrementos (disminuciones) por transferencias desde construcciones en proceso , propiedades, planta y equipo"},{"$f":"'822100 - Nota. Prop, plan y eq.'!$C$71","v":"ifrs-full:IncreaseDecreaseThroughTransfersFromConstructionInProgressPropertyPlantAndEquipment"}]
["/*",null,{"$f":"'822100 - Nota. Prop, plan y eq.'!$D$72","v":"Incrementos (disminuciones) por otros cambios, propiedades, planta y equipo"},{"$f":"'822100 - Nota. Prop, plan y eq.'!$C$72","v":"ifrs-full:IncreaseDecreaseThroughOtherChangesPropertyPlantAndEquipment"}]
["",null,{"$f":"'822100 - Nota. Prop, plan y eq.'!$D$73","v":"Total incrementos (disminuciones) por transferencias y otros cambios, propiedades, planta y equipo"},{"$f":"'822100 - Nota. Prop, plan y eq.'!$C$73","v":"ifrs-full:IncreaseDecreaseThroughTransfersAndOtherChangesPropertyPlantAndEquipment"},0,"peso",{"$f":"'822100 - Nota. Prop, plan y eq.'!$L$73","v":0},800001965,"http://www.xbrl.org/scheme/companyName",{"$f":"Periodos!$D$3","v":"2016-01-01"},{"$f":"Periodos!$D$4","v":"2016-12-31"},{"$f":"'822100 - Nota. Prop, plan y eq.'!$D$50","v":"co-svsp-core_2017-12-31:PropiedadesPlantaYEquipoEje_G1"},{"$f":"'822100 - Nota. Prop, plan y eq.'!$L$49","v":"co-svsp-core_2017-12-31:OtrosVehiculosMiembro"}]
["/*",null,{"$f":"'822100 - Nota. Prop, plan y eq.'!$D$74","v":"Disposiciones y retiros de servicio, propiedades, planta y equipo [resumen]"},{"$f":"'822100 - Nota. Prop, plan y eq.'!$C$74","v":"ifrs-full:DisposalsAndRetirementsPropertyPlantAndEquipmentAbstract"}]
["/*",null,{"$f":"'822100 - Nota. Prop, plan y eq.'!$D$75","v":"Disposiciones, propiedades, planta y equipo"},{"$f":"'822100 - Nota. Prop, plan y eq.'!$C$75","v":"ifrs-full:DisposalsPropertyPlantAndEquipment"}]
["/*",null,{"$f":"'822100 - Nota. Prop, plan y eq.'!$D$76","v":"Retiros, propiedades, planta y equipo"},{"$f":"'822100 - Nota. Prop, plan y eq.'!$C$76","v":"ifrs-full:RetirementsPropertyPlantAndEquipment"}]
["",null,{"$f":"'822100 - Nota. Prop, plan y eq.'!$D$77","v":"Total de disposiciones y retiros de servicio, propiedades, planta y equipo"},{"$f":"'822100 - Nota. Prop, plan y eq.'!$C$77","v":"ifrs-full:DisposalsAndRetirementsPropertyPlantAndEquipment"},0,"peso",{"$f":"'822100 - Nota. Prop, plan y eq.'!$L$77","v":0},800001965,"http://www.xbrl.org/scheme/companyName",{"$f":"Periodos!$D$3","v":"2016-01-01"},{"$f":"Periodos!$D$4","v":"2016-12-31"},{"$f":"'822100 - Nota. Prop, plan y eq.'!$D$50","v":"co-svsp-core_2017-12-31:PropiedadesPlantaYEquipoEje_G1"},{"$f":"'822100 - Nota. Prop, plan y eq.'!$L$49","v":"co-svsp-core_2017-12-31:OtrosVehiculosMiembro"}]
["/*",null,{"$f":"'822100 - Nota. Prop, plan y eq.'!$D$78","v":"Disminuciones por clasificar como mantenidos para la venta, propiedades, planta y equipo"},{"$f":"'822100 - Nota. Prop, plan y eq.'!$C$78","v":"ifrs-full:DecreaseThroughClassifiedAsHeldForSalePropertyPlantAndEquipment"}]
["",null,{"$f":"'822100 - Nota. Prop, plan y eq.'!$D$79","v":"Total incremento (disminución) en propiedades, planta y equipo"},{"$f":"'822100 - Nota. Prop, plan y eq.'!$C$79","v":"ifrs-full:ChangesInPropertyPlantAndEquipment"},0,"peso",{"$f":"'822100 - Nota. Prop, plan y eq.'!$L$79","v":0},800001965,"http://www.xbrl.org/scheme/companyName",{"$f":"Periodos!$D$3","v":"2016-01-01"},{"$f":"Periodos!$D$4","v":"2016-12-31"},{"$f":"'822100 - Nota. Prop, plan y eq.'!$D$50","v":"co-svsp-core_2017-12-31:PropiedadesPlantaYEquipoEje_G1"},{"$f":"'822100 - Nota. Prop, plan y eq.'!$L$49","v":"co-svsp-core_2017-12-31:OtrosVehiculosMiembro"}]
["",null,{"$f":"'822100 - Nota. Prop, plan y eq.'!$D$80","v":"Propiedades, planta y equipo al final del periodo"},{"$f":"'822100 - Nota. Prop, plan y eq.'!$C$80","v":"co-svsp-core_2017-12-31:PropertyPlantAndEquipmentEndOfPeriod"},0,"peso",{"$f":"'822100 - Nota. Prop, plan y eq.'!$L$80","v":0},800001965,"http://www.xbrl.org/scheme/companyName",{"$f":"Periodos!$D$3","v":"2016-01-01"},{"$f":"Periodos!$D$4","v":"2016-12-31"},{"$f":"'822100 - Nota. Prop, plan y eq.'!$D$50","v":"co-svsp-core_2017-12-31:PropiedadesPlantaYEquipoEje_G1"},{"$f":"'822100 - Nota. Prop, plan y eq.'!$L$49","v":"co-svsp-core_2017-12-31:OtrosVehiculosMiembro"}]
["/*",null,"--09--"]
["/*",null,{"$f":"'822100 - Nota. Prop, plan y eq.'!$D$51","v":"Información a revelar detallada sobre propiedades, planta y equipo [partidas de los estados financieros]"},{"$f":"'822100 - Nota. Prop, plan y eq.'!$C$51","v":"ifrs-full:DisclosureOfPropertyPlantAndEquipmentLineItems"}]
["/*",null,{"$f":"'822100 - Nota. Prop, plan y eq.'!$D$52","v":"Bases de medición, propiedades, planta y equipo"},{"$f":"'822100 - Nota. Prop, plan y eq.'!$C$52","v":"ifrs-full:MeasurementBasesPropertyPlantAndEquipment"}]
["/*",null,{"$f":"'822100 - Nota. Prop, plan y eq.'!$D$53","v":"Método de depreciación, propiedades, planta y equipo"},{"$f":"'822100 - Nota. Prop, plan y eq.'!$C$53","v":"ifrs-full:DepreciationMethodPropertyPlantAndEquipment"}]
["/*",null,{"$f":"'822100 - Nota. Prop, plan y eq.'!$D$54","v":"Vidas útiles o tasas de depreciación, propiedades, planta y equipo"},{"$f":"'822100 - Nota. Prop, plan y eq.'!$C$54","v":"ifrs-full:UsefulLivesOrDepreciationRatesPropertyPlantAndEquipment"}]
["/*",null,{"$f":"'822100 - Nota. Prop, plan y eq.'!$D$55","v":"Fechas de vigencia de revaluación, propiedades, planta y equipo"},{"$f":"'822100 - Nota. Prop, plan y eq.'!$C$55","v":"ifrs-full:EffectiveDatesOfRevaluationPropertyPlantAndEquipment"}]
["/*",null,{"$f":"'822100 - Nota. Prop, plan y eq.'!$D$56","v":"Explicación de la implicación del tasador independiente en la revaluación, propiedades, planta y equipo"},{"$f":"'822100 - Nota. Prop, plan y eq.'!$C$56","v":"ifrs-full:ExplanationOfIndependentValuerUsedForRevaluationPropertyPlantAndEquipment"}]
["/*",null,{"$f":"'822100 - Nota. Prop, plan y eq.'!$D$57","v":"Explicación del método de revaluación y supuestos significativos, propiedad, planta y equipo"},{"$f":"'822100 - Nota. Prop, plan y eq.'!$C$57","v":"co-svsp-core_2017-12-31:ExplanationOfRevaluationMethodsAndSignificantAssumptionsPropertyPlantAndEquipment"}]
["/*",null,{"$f":"'822100 - Nota. Prop, plan y eq.'!$D$58","v":"Conciliación de cambios en propiedades, planta y equipo [resumen]"},{"$f":"'822100 - Nota. Prop, plan y eq.'!$C$58","v":"ifrs-full:ReconciliationOfChangesInPropertyPlantAndEquipmentAbstract"}]
["/*",null,{"$f":"'822100 - Nota. Prop, plan y eq.'!$D$59","v":"Propiedades, planta y equipo al comienzo del periodo"},{"$f":"'822100 - Nota. Prop, plan y eq.'!$C$59","v":"co-svsp-core_2017-12-31:PropertyPlantAndEquipmentBeginningOfPeriod"}]
["/*",null,{"$f":"'822100 - Nota. Prop, plan y eq.'!$D$60","v":"Cambios en propiedades, planta y equipo [resumen]"},{"$f":"'822100 - Nota. Prop, plan y eq.'!$C$60","v":"ifrs-full:ChangesInPropertyPlantAndEquipmentAbstract"}]
["/*",null,{"$f":"'822100 - Nota. Prop, plan y eq.'!$D$61","v":"Incrementos distintos de los procedentes de combinaciones de negocios, propiedades, planta y equipo"},{"$f":"'822100 - Nota. Prop, plan y eq.'!$C$61","v":"ifrs-full:AdditionsOtherThanThroughBusinessCombinationsPropertyPlantAndEquipment"}]
["/*",null,{"$f":"'822100 - Nota. Prop, plan y eq.'!$D$62","v":"Adquisiciones realizadas mediante combinaciones de negocios, propiedades, planta y equipo"},{"$f":"'822100 - Nota. Prop, plan y eq.'!$C$62","v":"ifrs-full:AcquisitionsThroughBusinessCombinationsPropertyPlantAndEquipment"}]
["/*",null,{"$f":"'822100 - Nota. Prop, plan y eq.'!$D$63","v":"Depreciación, propiedades, planta y equipo"},{"$f":"'822100 - Nota. Prop, plan y eq.'!$C$63","v":"ifrs-full:DepreciationPropertyPlantAndEquipment"}]
["/*",null,{"$f":"'822100 - Nota. Prop, plan y eq.'!$D$64","v":"Pérdidas por deterioro de valor reconocidas en el resultado del periodo, propiedades, planta y equipo"},{"$f":"'822100 - Nota. Prop, plan y eq.'!$C$64","v":"ifrs-full:ImpairmentLossRecognisedInProfitOrLossPropertyPlantAndEquipment"}]
["/*",null,{"$f":"'822100 - Nota. Prop, plan y eq.'!$D$65","v":"Reversión de pérdidas por deterioro de valor reconocidas en el resultado del periodo, propiedades, planta y equipo"},{"$f":"'822100 - Nota. Prop, plan y eq.'!$C$65","v":"ifrs-full:ReversalOfImpairmentLossRecognisedInProfitOrLossPropertyPlantAndEquipment"}]
["/*",null,{"$f":"'822100 - Nota. Prop, plan y eq.'!$D$66","v":"Incrementos (disminuciones) de revaluaciones, propiedades, planta y equipo"},{"$f":"'822100 - Nota. Prop, plan y eq.'!$C$66","v":"ifrs-full:RevaluationIncreaseDecreasePropertyPlantAndEquipment"}]
["/*",null,{"$f":"'822100 - Nota. Prop, plan y eq.'!$D$67","v":"Pérdidas por deterioro de valor reconocidas en otro resultado integral, propiedades, planta y equipo"},{"$f":"'822100 - Nota. Prop, plan y eq.'!$C$67","v":"ifrs-full:ImpairmentLossRecognisedInOtherComprehensiveIncomePropertyPlantAndEquipment"}]
["/*",null,{"$f":"'822100 - Nota. Prop, plan y eq.'!$D$68","v":"Reversión de pérdidas por deterioro de valor reconocidas en otro resultado integral, propiedades, planta y equipo"},{"$f":"'822100 - Nota. Prop, plan y eq.'!$C$68","v":"ifrs-full:ReversalOfImpairmentLossRecognisedInOtherComprehensiveIncomePropertyPlantAndEquipment"}]
["/*",null,{"$f":"'822100 - Nota. Prop, plan y eq.'!$D$69","v":"Incrementos (disminuciones) por transferencias y otros cambios, propiedades, planta y equipo [resumen]"},{"$f":"'822100 - Nota. Prop, plan y eq.'!$C$69","v":"ifrs-full:IncreaseDecreaseThroughTransfersAndOtherChangesPropertyPlantAndEquipmentAbstract"}]
["/*",null,{"$f":"'822100 - Nota. Prop, plan y eq.'!$D$70","v":"Incrementos (disminuciones) por transferencias desde (hacia) propiedades de inversión, propiedades, planta y equipo"},{"$f":"'822100 - Nota. Prop, plan y eq.'!$C$70","v":"ifrs-full:IncreaseDecreaseThroughTransfersFromToInvestmentPropertyPropertyPlantAndEquipment"}]
["/*",null,{"$f":"'822100 - Nota. Prop, plan y eq.'!$D$71","v":"Incrementos (disminuciones) por transferencias desde construcciones en proceso , propiedades, planta y equipo"},{"$f":"'822100 - Nota. Prop, plan y eq.'!$C$71","v":"ifrs-full:IncreaseDecreaseThroughTransfersFromConstructionInProgressPropertyPlantAndEquipment"}]
["/*",null,{"$f":"'822100 - Nota. Prop, plan y eq.'!$D$72","v":"Incrementos (disminuciones) por otros cambios, propiedades, planta y equipo"},{"$f":"'822100 - Nota. Prop, plan y eq.'!$C$72","v":"ifrs-full:IncreaseDecreaseThroughOtherChangesPropertyPlantAndEquipment"}]
["",null,{"$f":"'822100 - Nota. Prop, plan y eq.'!$D$73","v":"Total incrementos (disminuciones) por transferencias y otros cambios, propiedades, planta y equipo"},{"$f":"'822100 - Nota. Prop, plan y eq.'!$C$73","v":"ifrs-full:IncreaseDecreaseThroughTransfersAndOtherChangesPropertyPlantAndEquipment"},0,"peso",{"$f":"'822100 - Nota. Prop, plan y eq.'!$M$73","v":0},800001965,"http://www.xbrl.org/scheme/companyName",{"$f":"Periodos!$D$3","v":"2016-01-01"},{"$f":"Periodos!$D$4","v":"2016-12-31"},{"$f":"'822100 - Nota. Prop, plan y eq.'!$D$50","v":"co-svsp-core_2017-12-31:PropiedadesPlantaYEquipoEje_G1"},{"$f":"'822100 - Nota. Prop, plan y eq.'!$M$49","v":"ifrs-full:MotorVehiclesMember"}]
["/*",null,{"$f":"'822100 - Nota. Prop, plan y eq.'!$D$74","v":"Disposiciones y retiros de servicio, propiedades, planta y equipo [resumen]"},{"$f":"'822100 - Nota. Prop, plan y eq.'!$C$74","v":"ifrs-full:DisposalsAndRetirementsPropertyPlantAndEquipmentAbstract"}]
["/*",null,{"$f":"'822100 - Nota. Prop, plan y eq.'!$D$75","v":"Disposiciones, propiedades, planta y equipo"},{"$f":"'822100 - Nota. Prop, plan y eq.'!$C$75","v":"ifrs-full:DisposalsPropertyPlantAndEquipment"}]
["/*",null,{"$f":"'822100 - Nota. Prop, plan y eq.'!$D$76","v":"Retiros, propiedades, planta y equipo"},{"$f":"'822100 - Nota. Prop, plan y eq.'!$C$76","v":"ifrs-full:RetirementsPropertyPlantAndEquipment"}]
["",null,{"$f":"'822100 - Nota. Prop, plan y eq.'!$D$77","v":"Total de disposiciones y retiros de servicio, propiedades, planta y equipo"},{"$f":"'822100 - Nota. Prop, plan y eq.'!$C$77","v":"ifrs-full:DisposalsAndRetirementsPropertyPlantAndEquipment"},0,"peso",{"$f":"'822100 - Nota. Prop, plan y eq.'!$M$77","v":0},800001965,"http://www.xbrl.org/scheme/companyName",{"$f":"Periodos!$D$3","v":"2016-01-01"},{"$f":"Periodos!$D$4","v":"2016-12-31"},{"$f":"'822100 - Nota. Prop, plan y eq.'!$D$50","v":"co-svsp-core_2017-12-31:PropiedadesPlantaYEquipoEje_G1"},{"$f":"'822100 - Nota. Prop, plan y eq.'!$M$49","v":"ifrs-full:MotorVehiclesMember"}]
[{"$f":"IF(G6881=\"\",\"/*\",\"\")","v":"/*"},null,{"$f":"'822100 - Nota. Prop, plan y eq.'!$D$78","v":"Disminuciones por clasificar como mantenidos para la venta, propiedades, planta y equipo"},{"$f":"'822100 - Nota. Prop, plan y eq.'!$C$78","v":"ifrs-full:DecreaseThroughClassifiedAsHeldForSalePropertyPlantAndEquipment"}]
["",null,{"$f":"'822100 - Nota. Prop, plan y eq.'!$D$79","v":"Total incremento (disminución) en propiedades, planta y equipo"},{"$f":"'822100 - Nota. Prop, plan y eq.'!$C$79","v":"ifrs-full:ChangesInPropertyPlantAndEquipment"},0,"peso",{"$f":"'822100 - Nota. Prop, plan y eq.'!$M$79","v":0},800001965,"http://www.xbrl.org/scheme/companyName",{"$f":"Periodos!$D$3","v":"2016-01-01"},{"$f":"Periodos!$D$4","v":"2016-12-31"},{"$f":"'822100 - Nota. Prop, plan y eq.'!$D$50","v":"co-svsp-core_2017-12-31:PropiedadesPlantaYEquipoEje_G1"},{"$f":"'822100 - Nota. Prop, plan y eq.'!$M$49","v":"ifrs-full:MotorVehiclesMember"}]
["",null,{"$f":"'822100 - Nota. Prop, plan y eq.'!$D$80","v":"Propiedades, planta y equipo al final del periodo"},{"$f":"'822100 - Nota. Prop, plan y eq.'!$C$80","v":"co-svsp-core_2017-12-31:PropertyPlantAndEquipmentEndOfPeriod"},0,"peso",{"$f":"'822100 - Nota. Prop, plan y eq.'!$M$80","v":0},800001965,"http://www.xbrl.org/scheme/companyName",{"$f":"Periodos!$D$3","v":"2016-01-01"},{"$f":"Periodos!$D$4","v":"2016-12-31"},{"$f":"'822100 - Nota. Prop, plan y eq.'!$D$50","v":"co-svsp-core_2017-12-31:PropiedadesPlantaYEquipoEje_G1"},{"$f":"'822100 - Nota. Prop, plan y eq.'!$M$49","v":"ifrs-full:MotorVehiclesMember"}]
["/*",null,"--10--"]
["/*",null,{"$f":"'822100 - Nota. Prop, plan y eq.'!$D$51","v":"Información a revelar detallada sobre propiedades, planta y equipo [partidas de los estados financieros]"},{"$f":"'822100 - Nota. Prop, plan y eq.'!$C$51","v":"ifrs-full:DisclosureOfPropertyPlantAndEquipmentLineItems"}]
["/*",null,{"$f":"'822100 - Nota. Prop, plan y eq.'!$D$52","v":"Bases de medición, propiedades, planta y equipo"},{"$f":"'822100 - Nota. Prop, plan y eq.'!$C$52","v":"ifrs-full:MeasurementBasesPropertyPlantAndEquipment"}]
["/*",null,{"$f":"'822100 - Nota. Prop, plan y eq.'!$D$53","v":"Método de depreciación, propiedades, planta y equipo"},{"$f":"'822100 - Nota. Prop, plan y eq.'!$C$53","v":"ifrs-full:DepreciationMethodPropertyPlantAndEquipment"}]
["/*",null,{"$f":"'822100 - Nota. Prop, plan y eq.'!$D$54","v":"Vidas útiles o tasas de depreciación, propiedades, planta y equipo"},{"$f":"'822100 - Nota. Prop, plan y eq.'!$C$54","v":"ifrs-full:UsefulLivesOrDepreciationRatesPropertyPlantAndEquipment"}]
["/*",null,{"$f":"'822100 - Nota. Prop, plan y eq.'!$D$55","v":"Fechas de vigencia de revaluación, propiedades, planta y equipo"},{"$f":"'822100 - Nota. Prop, plan y eq.'!$C$55","v":"ifrs-full:EffectiveDatesOfRevaluationPropertyPlantAndEquipment"}]
["/*",null,{"$f":"'822100 - Nota. Prop, plan y eq.'!$D$56","v":"Explicación de la implicación del tasador independiente en la revaluación, propiedades, planta y equipo"},{"$f":"'822100 - Nota. Prop, plan y eq.'!$C$56","v":"ifrs-full:ExplanationOfIndependentValuerUsedForRevaluationPropertyPlantAndEquipment"}]
["/*",null,{"$f":"'822100 - Nota. Prop, plan y eq.'!$D$57","v":"Explicación del método de revaluación y supuestos significativos, propiedad, planta y equipo"},{"$f":"'822100 - Nota. Prop, plan y eq.'!$C$57","v":"co-svsp-core_2017-12-31:ExplanationOfRevaluationMethodsAndSignificantAssumptionsPropertyPlantAndEquipment"}]
["/*",null,{"$f":"'822100 - Nota. Prop, plan y eq.'!$D$58","v":"Conciliación de cambios en propiedades, planta y equipo [resumen]"},{"$f":"'822100 - Nota. Prop, plan y eq.'!$C$58","v":"ifrs-full:ReconciliationOfChangesInPropertyPlantAndEquipmentAbstract"}]
["/*",null,{"$f":"'822100 - Nota. Prop, plan y eq.'!$D$59","v":"Propiedades, planta y equipo al comienzo del periodo"},{"$f":"'822100 - Nota. Prop, plan y eq.'!$C$59","v":"co-svsp-core_2017-12-31:PropertyPlantAndEquipmentBeginningOfPeriod"}]
["/*",null,{"$f":"'822100 - Nota. Prop, plan y eq.'!$D$60","v":"Cambios en propiedades, planta y equipo [resumen]"},{"$f":"'822100 - Nota. Prop, plan y eq.'!$C$60","v":"ifrs-full:ChangesInPropertyPlantAndEquipmentAbstract"}]
["/*",null,{"$f":"'822100 - Nota. Prop, plan y eq.'!$D$61","v":"Incrementos distintos de los procedentes de combinaciones de negocios, propiedades, planta y equipo"},{"$f":"'822100 - Nota. Prop, plan y eq.'!$C$61","v":"ifrs-full:AdditionsOtherThanThroughBusinessCombinationsPropertyPlantAndEquipment"}]
["/*",null,{"$f":"'822100 - Nota. Prop, plan y eq.'!$D$62","v":"Adquisiciones realizadas mediante combinaciones de negocios, propiedades, planta y equipo"},{"$f":"'822100 - Nota. Prop, plan y eq.'!$C$62","v":"ifrs-full:AcquisitionsThroughBusinessCombinationsPropertyPlantAndEquipment"}]
["/*",null,{"$f":"'822100 - Nota. Prop, plan y eq.'!$D$63","v":"Depreciación, propiedades, planta y equipo"},{"$f":"'822100 - Nota. Prop, plan y eq.'!$C$63","v":"ifrs-full:DepreciationPropertyPlantAndEquipment"}]
["/*",null,{"$f":"'822100 - Nota. Prop, plan y eq.'!$D$64","v":"Pérdidas por deterioro de valor reconocidas en el resultado del periodo, propiedades, planta y equipo"},{"$f":"'822100 - Nota. Prop, plan y eq.'!$C$64","v":"ifrs-full:ImpairmentLossRecognisedInProfitOrLossPropertyPlantAndEquipment"}]
["/*",null,{"$f":"'822100 - Nota. Prop, plan y eq.'!$D$65","v":"Reversión de pérdidas por deterioro de valor reconocidas en el resultado del periodo, propiedades, planta y equipo"},{"$f":"'822100 - Nota. Prop, plan y eq.'!$C$65","v":"ifrs-full:ReversalOfImpairmentLossRecognisedInProfitOrLossPropertyPlantAndEquipment"}]
["/*",null,{"$f":"'822100 - Nota. Prop, plan y eq.'!$D$66","v":"Incrementos (disminuciones) de revaluaciones, propiedades, planta y equipo"},{"$f":"'822100 - Nota. Prop, plan y eq.'!$C$66","v":"ifrs-full:RevaluationIncreaseDecreasePropertyPlantAndEquipment"}]
["/*",null,{"$f":"'822100 - Nota. Prop, plan y eq.'!$D$67","v":"Pérdidas por deterioro de valor reconocidas en otro resultado integral, propiedades, planta y equipo"},{"$f":"'822100 - Nota. Prop, plan y eq.'!$C$67","v":"ifrs-full:ImpairmentLossRecognisedInOtherComprehensiveIncomePropertyPlantAndEquipment"}]
["/*",null,{"$f":"'822100 - Nota. Prop, plan y eq.'!$D$68","v":"Reversión de pérdidas por deterioro de valor reconocidas en otro resultado integral, propiedades, planta y equipo"},{"$f":"'822100 - Nota. Prop, plan y eq.'!$C$68","v":"ifrs-full:ReversalOfImpairmentLossRecognisedInOtherComprehensiveIncomePropertyPlantAndEquipment"}]
["/*",null,{"$f":"'822100 - Nota. Prop, plan y eq.'!$D$69","v":"Incrementos (disminuciones) por transferencias y otros cambios, propiedades, planta y equipo [resumen]"},{"$f":"'822100 - Nota. Prop, plan y eq.'!$C$69","v":"ifrs-full:IncreaseDecreaseThroughTransfersAndOtherChangesPropertyPlantAndEquipmentAbstract"}]
["/*",null,{"$f":"'822100 - Nota. Prop, plan y eq.'!$D$70","v":"Incrementos (disminuciones) por transferencias desde (hacia) propiedades de inversión, propiedades, planta y equipo"},{"$f":"'822100 - Nota. Prop, plan y eq.'!$C$70","v":"ifrs-full:IncreaseDecreaseThroughTransfersFromToInvestmentPropertyPropertyPlantAndEquipment"}]
["/*",null,{"$f":"'822100 - Nota. Prop, plan y eq.'!$D$71","v":"Incrementos (disminuciones) por transferencias desde construcciones en proceso , propiedades, planta y equipo"},{"$f":"'822100 - Nota. Prop, plan y eq.'!$C$71","v":"ifrs-full:IncreaseDecreaseThroughTransfersFromConstructionInProgressPropertyPlantAndEquipment"}]
["/*",null,{"$f":"'822100 - Nota. Prop, plan y eq.'!$D$72","v":"Incrementos (disminuciones) por otros cambios, propiedades, planta y equipo"},{"$f":"'822100 - Nota. Prop, plan y eq.'!$C$72","v":"ifrs-full:IncreaseDecreaseThroughOtherChangesPropertyPlantAndEquipment"}]
["",null,{"$f":"'822100 - Nota. Prop, plan y eq.'!$D$73","v":"Total incrementos (disminuciones) por transferencias y otros cambios, propiedades, planta y equipo"},{"$f":"'822100 - Nota. Prop, plan y eq.'!$C$73","v":"ifrs-full:IncreaseDecreaseThroughTransfersAndOtherChangesPropertyPlantAndEquipment"},0,"peso",{"$f":"'822100 - Nota. Prop, plan y eq.'!$N$73","v":0},800001965,"http://www.xbrl.org/scheme/companyName",{"$f":"Periodos!$D$3","v":"2016-01-01"},{"$f":"Periodos!$D$4","v":"2016-12-31"},{"$f":"'822100 - Nota. Prop, plan y eq.'!$D$50","v":"co-svsp-core_2017-12-31:PropiedadesPlantaYEquipoEje_G1"},{"$f":"'822100 - Nota. Prop, plan y eq.'!$N$49","v":"ifrs-full:VehiclesMember"}]
["/*",null,{"$f":"'822100 - Nota. Prop, plan y eq.'!$D$74","v":"Disposiciones y retiros de servicio, propiedades, planta y equipo [resumen]"},{"$f":"'822100 - Nota. Prop, plan y eq.'!$C$74","v":"ifrs-full:DisposalsAndRetirementsPropertyPlantAndEquipmentAbstract"}]
["/*",null,{"$f":"'822100 - Nota. Prop, plan y eq.'!$D$75","v":"Disposiciones, propiedades, planta y equipo"},{"$f":"'822100 - Nota. Prop, plan y eq.'!$C$75","v":"ifrs-full:DisposalsPropertyPlantAndEquipment"}]
["/*",null,{"$f":"'822100 - Nota. Prop, plan y eq.'!$D$76","v":"Retiros, propiedades, planta y equipo"},{"$f":"'822100 - Nota. Prop, plan y eq.'!$C$76","v":"ifrs-full:RetirementsPropertyPlantAndEquipment"}]
["",null,{"$f":"'822100 - Nota. Prop, plan y eq.'!$D$77","v":"Total de disposiciones y retiros de servicio, propiedades, planta y equipo"},{"$f":"'822100 - Nota. Prop, plan y eq.'!$C$77","v":"ifrs-full:DisposalsAndRetirementsPropertyPlantAndEquipment"},0,"peso",{"$f":"'822100 - Nota. Prop, plan y eq.'!$N$77","v":0},800001965,"http://www.xbrl.org/scheme/companyName",{"$f":"Periodos!$D$3","v":"2016-01-01"},{"$f":"Periodos!$D$4","v":"2016-12-31"},{"$f":"'822100 - Nota. Prop, plan y eq.'!$D$50","v":"co-svsp-core_2017-12-31:PropiedadesPlantaYEquipoEje_G1"},{"$f":"'822100 - Nota. Prop, plan y eq.'!$N$49","v":"ifrs-full:VehiclesMember"}]
["/*",null,{"$f":"'822100 - Nota. Prop, plan y eq.'!$D$78","v":"Disminuciones por clasificar como mantenidos para la venta, propiedades, planta y equipo"},{"$f":"'822100 - Nota. Prop, plan y eq.'!$C$78","v":"ifrs-full:DecreaseThroughClassifiedAsHeldForSalePropertyPlantAndEquipment"}]
["",null,{"$f":"'822100 - Nota. Prop, plan y eq.'!$D$79","v":"Total incremento (disminución) en propiedades, planta y equipo"},{"$f":"'822100 - Nota. Prop, plan y eq.'!$C$79","v":"ifrs-full:ChangesInPropertyPlantAndEquipment"},0,"peso",{"$f":"'822100 - Nota. Prop, plan y eq.'!$N$79","v":0},800001965,"http://www.xbrl.org/scheme/companyName",{"$f":"Periodos!$D$3","v":"2016-01-01"},{"$f":"Periodos!$D$4","v":"2016-12-31"},{"$f":"'822100 - Nota. Prop, plan y eq.'!$D$50","v":"co-svsp-core_2017-12-31:PropiedadesPlantaYEquipoEje_G1"},{"$f":"'822100 - Nota. Prop, plan y eq.'!$N$49","v":"ifrs-full:VehiclesMember"}]
["",null,{"$f":"'822100 - Nota. Prop, plan y eq.'!$D$80","v":"Propiedades, planta y equipo al final del periodo"},{"$f":"'822100 - Nota. Prop, plan y eq.'!$C$80","v":"co-svsp-core_2017-12-31:PropertyPlantAndEquipmentEndOfPeriod"},0,"peso",{"$f":"'822100 - Nota. Prop, plan y eq.'!$N$80","v":0},800001965,"http://www.xbrl.org/scheme/companyName",{"$f":"Periodos!$D$3","v":"2016-01-01"},{"$f":"Periodos!$D$4","v":"2016-12-31"},{"$f":"'822100 - Nota. Prop, plan y eq.'!$D$50","v":"co-svsp-core_2017-12-31:PropiedadesPlantaYEquipoEje_G1"},{"$f":"'822100 - Nota. Prop, plan y eq.'!$N$49","v":"ifrs-full:VehiclesMember"}]
["/*",null,"--11--"]
["/*",null,{"$f":"'822100 - Nota. Prop, plan y eq.'!$D$51","v":"Información a revelar detallada sobre propiedades, planta y equipo [partidas de los estados financieros]"},{"$f":"'822100 - Nota. Prop, plan y eq.'!$C$51","v":"ifrs-full:DisclosureOfPropertyPlantAndEquipmentLineItems"}]
["/*",null,{"$f":"'822100 - Nota. Prop, plan y eq.'!$D$52","v":"Bases de medición, propiedades, planta y equipo"},{"$f":"'822100 - Nota. Prop, plan y eq.'!$C$52","v":"ifrs-full:MeasurementBasesPropertyPlantAndEquipment"}]
["/*",null,{"$f":"'822100 - Nota. Prop, plan y eq.'!$D$53","v":"Método de depreciación, propiedades, planta y equipo"},{"$f":"'822100 - Nota. Prop, plan y eq.'!$C$53","v":"ifrs-full:DepreciationMethodPropertyPlantAndEquipment"}]
["/*",null,{"$f":"'822100 - Nota. Prop, plan y eq.'!$D$54","v":"Vidas útiles o tasas de depreciación, propiedades, planta y equipo"},{"$f":"'822100 - Nota. Prop, plan y eq.'!$C$54","v":"ifrs-full:UsefulLivesOrDepreciationRatesPropertyPlantAndEquipment"}]
["/*",null,{"$f":"'822100 - Nota. Prop, plan y eq.'!$D$55","v":"Fechas de vigencia de revaluación, propiedades, planta y equipo"},{"$f":"'822100 - Nota. Prop, plan y eq.'!$C$55","v":"ifrs-full:EffectiveDatesOfRevaluationPropertyPlantAndEquipment"}]
["/*",null,{"$f":"'822100 - Nota. Prop, plan y eq.'!$D$56","v":"Explicación de la implicación del tasador independiente en la revaluación, propiedades, planta y equipo"},{"$f":"'822100 - Nota. Prop, plan y eq.'!$C$56","v":"ifrs-full:ExplanationOfIndependentValuerUsedForRevaluationPropertyPlantAndEquipment"}]
["/*",null,{"$f":"'822100 - Nota. Prop, plan y eq.'!$D$57","v":"Explicación del método de revaluación y supuestos significativos, propiedad, planta y equipo"},{"$f":"'822100 - Nota. Prop, plan y eq.'!$C$57","v":"co-svsp-core_2017-12-31:ExplanationOfRevaluationMethodsAndSignificantAssumptionsPropertyPlantAndEquipment"}]
["/*",null,{"$f":"'822100 - Nota. Prop, plan y eq.'!$D$58","v":"Conciliación de cambios en propiedades, planta y equipo [resumen]"},{"$f":"'822100 - Nota. Prop, plan y eq.'!$C$58","v":"ifrs-full:ReconciliationOfChangesInPropertyPlantAndEquipmentAbstract"}]
["/*",null,{"$f":"'822100 - Nota. Prop, plan y eq.'!$D$59","v":"Propiedades, planta y equipo al comienzo del periodo"},{"$f":"'822100 - Nota. Prop, plan y eq.'!$C$59","v":"co-svsp-core_2017-12-31:PropertyPlantAndEquipmentBeginningOfPeriod"}]
["/*",null,{"$f":"'822100 - Nota. Prop, plan y eq.'!$D$60","v":"Cambios en propiedades, planta y equipo [resumen]"},{"$f":"'822100 - Nota. Prop, plan y eq.'!$C$60","v":"ifrs-full:ChangesInPropertyPlantAndEquipmentAbstract"}]
["/*",null,{"$f":"'822100 - Nota. Prop, plan y eq.'!$D$61","v":"Incrementos distintos de los procedentes de combinaciones de negocios, propiedades, planta y equipo"},{"$f":"'822100 - Nota. Prop, plan y eq.'!$C$61","v":"ifrs-full:AdditionsOtherThanThroughBusinessCombinationsPropertyPlantAndEquipment"}]
["/*",null,{"$f":"'822100 - Nota. Prop, plan y eq.'!$D$62","v":"Adquisiciones realizadas mediante combinaciones de negocios, propiedades, planta y equipo"},{"$f":"'822100 - Nota. Prop, plan y eq.'!$C$62","v":"ifrs-full:AcquisitionsThroughBusinessCombinationsPropertyPlantAndEquipment"}]
["/*",null,{"$f":"'822100 - Nota. Prop, plan y eq.'!$D$63","v":"Depreciación, propiedades, planta y equipo"},{"$f":"'822100 - Nota. Prop, plan y eq.'!$C$63","v":"ifrs-full:DepreciationPropertyPlantAndEquipment"}]
["/*",null,{"$f":"'822100 - Nota. Prop, plan y eq.'!$D$64","v":"Pérdidas por deterioro de valor reconocidas en el resultado del periodo, propiedades, planta y equipo"},{"$f":"'822100 - Nota. Prop, plan y eq.'!$C$64","v":"ifrs-full:ImpairmentLossRecognisedInProfitOrLossPropertyPlantAndEquipment"}]
["/*",null,{"$f":"'822100 - Nota. Prop, plan y eq.'!$D$65","v":"Reversión de pérdidas por deterioro de valor reconocidas en el resultado del periodo, propiedades, planta y equipo"},{"$f":"'822100 - Nota. Prop, plan y eq.'!$C$65","v":"ifrs-full:ReversalOfImpairmentLossRecognisedInProfitOrLossPropertyPlantAndEquipment"}]
["/*",null,{"$f":"'822100 - Nota. Prop, plan y eq.'!$D$66","v":"Incrementos (disminuciones) de revaluaciones, propiedades, planta y equipo"},{"$f":"'822100 - Nota. Prop, plan y eq.'!$C$66","v":"ifrs-full:RevaluationIncreaseDecreasePropertyPlantAndEquipment"}]
["/*",null,{"$f":"'822100 - Nota. Prop, plan y eq.'!$D$67","v":"Pérdidas por deterioro de valor reconocidas en otro resultado integral, propiedades, planta y equipo"},{"$f":"'822100 - Nota. Prop, plan y eq.'!$C$67","v":"ifrs-full:ImpairmentLossRecognisedInOtherComprehensiveIncomePropertyPlantAndEquipment"}]
["/*",null,{"$f":"'822100 - Nota. Prop, plan y eq.'!$D$68","v":"Reversión de pérdidas por deterioro de valor reconocidas en otro resultado integral, propiedades, planta y equipo"},{"$f":"'822100 - Nota. Prop, plan y eq.'!$C$68","v":"ifrs-full:ReversalOfImpairmentLossRecognisedInOtherComprehensiveIncomePropertyPlantAndEquipment"}]
["/*",null,{"$f":"'822100 - Nota. Prop, plan y eq.'!$D$69","v":"Incrementos (disminuciones) por transferencias y otros cambios, propiedades, planta y equipo [resumen]"},{"$f":"'822100 - Nota. Prop, plan y eq.'!$C$69","v":"ifrs-full:IncreaseDecreaseThroughTransfersAndOtherChangesPropertyPlantAndEquipmentAbstract"}]
["/*",null,{"$f":"'822100 - Nota. Prop, plan y eq.'!$D$70","v":"Incrementos (disminuciones) por transferencias desde (hacia) propiedades de inversión, propiedades, planta y equipo"},{"$f":"'822100 - Nota. Prop, plan y eq.'!$C$70","v":"ifrs-full:IncreaseDecreaseThroughTransfersFromToInvestmentPropertyPropertyPlantAndEquipment"}]
["/*",null,{"$f":"'822100 - Nota. Prop, plan y eq.'!$D$71","v":"Incrementos (disminuciones) por transferencias desde construcciones en proceso , propiedades, planta y equipo"},{"$f":"'822100 - Nota. Prop, plan y eq.'!$C$71","v":"ifrs-full:IncreaseDecreaseThroughTransfersFromConstructionInProgressPropertyPlantAndEquipment"}]
["/*",null,{"$f":"'822100 - Nota. Prop, plan y eq.'!$D$72","v":"Incrementos (disminuciones) por otros cambios, propiedades, planta y equipo"},{"$f":"'822100 - Nota. Prop, plan y eq.'!$C$72","v":"ifrs-full:IncreaseDecreaseThroughOtherChangesPropertyPlantAndEquipment"}]
["",null,{"$f":"'822100 - Nota. Prop, plan y eq.'!$D$73","v":"Total incrementos (disminuciones) por transferencias y otros cambios, propiedades, planta y equipo"},{"$f":"'822100 - Nota. Prop, plan y eq.'!$C$73","v":"ifrs-full:IncreaseDecreaseThroughTransfersAndOtherChangesPropertyPlantAndEquipment"},0,"peso",{"$f":"'822100 - Nota. Prop, plan y eq.'!$O$73","v":0},800001965,"http://www.xbrl.org/scheme/companyName",{"$f":"Periodos!$D$3","v":"2016-01-01"},{"$f":"Periodos!$D$4","v":"2016-12-31"},{"$f":"'822100 - Nota. Prop, plan y eq.'!$D$50","v":"co-svsp-core_2017-12-31:PropiedadesPlantaYEquipoEje_G1"},{"$f":"'822100 - Nota. Prop, plan y eq.'!$O$49","v":"ifrs-full:FixturesAndFittingsMember"}]
["/*",null,{"$f":"'822100 - Nota. Prop, plan y eq.'!$D$74","v":"Disposiciones y retiros de servicio, propiedades, planta y equipo [resumen]"},{"$f":"'822100 - Nota. Prop, plan y eq.'!$C$74","v":"ifrs-full:DisposalsAndRetirementsPropertyPlantAndEquipmentAbstract"}]
["/*",null,{"$f":"'822100 - Nota. Prop, plan y eq.'!$D$75","v":"Disposiciones, propiedades, planta y equipo"},{"$f":"'822100 - Nota. Prop, plan y eq.'!$C$75","v":"ifrs-full:DisposalsPropertyPlantAndEquipment"}]
["/*",null,{"$f":"'822100 - Nota. Prop, plan y eq.'!$D$76","v":"Retiros, propiedades, planta y equipo"},{"$f":"'822100 - Nota. Prop, plan y eq.'!$C$76","v":"ifrs-full:RetirementsPropertyPlantAndEquipment"}]
["",null,{"$f":"'822100 - Nota. Prop, plan y eq.'!$D$77","v":"Total de disposiciones y retiros de servicio, propiedades, planta y equipo"},{"$f":"'822100 - Nota. Prop, plan y eq.'!$C$77","v":"ifrs-full:DisposalsAndRetirementsPropertyPlantAndEquipment"},0,"peso",{"$f":"'822100 - Nota. Prop, plan y eq.'!$O$77","v":0},800001965,"http://www.xbrl.org/scheme/companyName",{"$f":"Periodos!$D$3","v":"2016-01-01"},{"$f":"Periodos!$D$4","v":"2016-12-31"},{"$f":"'822100 - Nota. Prop, plan y eq.'!$D$50","v":"co-svsp-core_2017-12-31:PropiedadesPlantaYEquipoEje_G1"},{"$f":"'822100 - Nota. Prop, plan y eq.'!$O$49","v":"ifrs-full:FixturesAndFittingsMember"}]
["/*",null,{"$f":"'822100 - Nota. Prop, plan y eq.'!$D$78","v":"Disminuciones por clasificar como mantenidos para la venta, propiedades, planta y equipo"},{"$f":"'822100 - Nota. Prop, plan y eq.'!$C$78","v":"ifrs-full:DecreaseThroughClassifiedAsHeldForSalePropertyPlantAndEquipment"}]
["",null,{"$f":"'822100 - Nota. Prop, plan y eq.'!$D$79","v":"Total incremento (disminución) en propiedades, planta y equipo"},{"$f":"'822100 - Nota. Prop, plan y eq.'!$C$79","v":"ifrs-full:ChangesInPropertyPlantAndEquipment"},0,"peso",{"$f":"'822100 - Nota. Prop, plan y eq.'!$O$79","v":0},800001965,"http://www.xbrl.org/scheme/companyName",{"$f":"Periodos!$D$3","v":"2016-01-01"},{"$f":"Periodos!$D$4","v":"2016-12-31"},{"$f":"'822100 - Nota. Prop, plan y eq.'!$D$50","v":"co-svsp-core_2017-12-31:PropiedadesPlantaYEquipoEje_G1"},{"$f":"'822100 - Nota. Prop, plan y eq.'!$O$49","v":"ifrs-full:FixturesAndFittingsMember"}]
[{"$f":"IF(G6945=\"\",\"/*\",\"\")","v":""},null,{"$f":"'822100 - Nota. Prop, plan y eq.'!$D$80","v":"Propiedades, planta y equipo al final del periodo"},{"$f":"'822100 - Nota. Prop, plan y eq.'!$C$80","v":"co-svsp-core_2017-12-31:PropertyPlantAndEquipmentEndOfPeriod"},0,"peso",{"$f":"'822100 - Nota. Prop, plan y eq.'!$O$80","v":0},800001965,"http://www.xbrl.org/scheme/companyName",{"$f":"Periodos!$D$3","v":"2016-01-01"},{"$f":"Periodos!$D$4","v":"2016-12-31"},{"$f":"'822100 - Nota. Prop, plan y eq.'!$D$50","v":"co-svsp-core_2017-12-31:PropiedadesPlantaYEquipoEje_G1"},{"$f":"'822100 - Nota. Prop, plan y eq.'!$O$49","v":"ifrs-full:FixturesAndFittingsMember"}]
["/*",null,"--12--"]
["/*",null,{"$f":"'822100 - Nota. Prop, plan y eq.'!$D$51","v":"Información a revelar detallada sobre propiedades, planta y equipo [partidas de los estados financieros]"},{"$f":"'822100 - Nota. Prop, plan y eq.'!$C$51","v":"ifrs-full:DisclosureOfPropertyPlantAndEquipmentLineItems"}]
["/*",null,{"$f":"'822100 - Nota. Prop, plan y eq.'!$D$52","v":"Bases de medición, propiedades, planta y equipo"},{"$f":"'822100 - Nota. Prop, plan y eq.'!$C$52","v":"ifrs-full:MeasurementBasesPropertyPlantAndEquipment"}]
["/*",null,{"$f":"'822100 - Nota. Prop, plan y eq.'!$D$53","v":"Método de depreciación, propiedades, planta y equipo"},{"$f":"'822100 - Nota. Prop, plan y eq.'!$C$53","v":"ifrs-full:DepreciationMethodPropertyPlantAndEquipment"}]
["/*",null,{"$f":"'822100 - Nota. Prop, plan y eq.'!$D$54","v":"Vidas útiles o tasas de depreciación, propiedades, planta y equipo"},{"$f":"'822100 - Nota. Prop, plan y eq.'!$C$54","v":"ifrs-full:UsefulLivesOrDepreciationRatesPropertyPlantAndEquipment"}]
["/*",null,{"$f":"'822100 - Nota. Prop, plan y eq.'!$D$55","v":"Fechas de vigencia de revaluación, propiedades, planta y equipo"},{"$f":"'822100 - Nota. Prop, plan y eq.'!$C$55","v":"ifrs-full:EffectiveDatesOfRevaluationPropertyPlantAndEquipment"}]
["/*",null,{"$f":"'822100 - Nota. Prop, plan y eq.'!$D$56","v":"Explicación de la implicación del tasador independiente en la revaluación, propiedades, planta y equipo"},{"$f":"'822100 - Nota. Prop, plan y eq.'!$C$56","v":"ifrs-full:ExplanationOfIndependentValuerUsedForRevaluationPropertyPlantAndEquipment"}]
["/*",null,{"$f":"'822100 - Nota. Prop, plan y eq.'!$D$57","v":"Explicación del método de revaluación y supuestos significativos, propiedad, planta y equipo"},{"$f":"'822100 - Nota. Prop, plan y eq.'!$C$57","v":"co-svsp-core_2017-12-31:ExplanationOfRevaluationMethodsAndSignificantAssumptionsPropertyPlantAndEquipment"}]
["/*",null,{"$f":"'822100 - Nota. Prop, plan y eq.'!$D$58","v":"Conciliación de cambios en propiedades, planta y equipo [resumen]"},{"$f":"'822100 - Nota. Prop, plan y eq.'!$C$58","v":"ifrs-full:ReconciliationOfChangesInPropertyPlantAndEquipmentAbstract"}]
["/*",null,{"$f":"'822100 - Nota. Prop, plan y eq.'!$D$59","v":"Propiedades, planta y equipo al comienzo del periodo"},{"$f":"'822100 - Nota. Prop, plan y eq.'!$C$59","v":"co-svsp-core_2017-12-31:PropertyPlantAndEquipmentBeginningOfPeriod"}]
["/*",null,{"$f":"'822100 - Nota. Prop, plan y eq.'!$D$60","v":"Cambios en propiedades, planta y equipo [resumen]"},{"$f":"'822100 - Nota. Prop, plan y eq.'!$C$60","v":"ifrs-full:ChangesInPropertyPlantAndEquipmentAbstract"}]
["/*",null,{"$f":"'822100 - Nota. Prop, plan y eq.'!$D$61","v":"Incrementos distintos de los procedentes de combinaciones de negocios, propiedades, planta y equipo"},{"$f":"'822100 - Nota. Prop, plan y eq.'!$C$61","v":"ifrs-full:AdditionsOtherThanThroughBusinessCombinationsPropertyPlantAndEquipment"}]
["/*",null,{"$f":"'822100 - Nota. Prop, plan y eq.'!$D$62","v":"Adquisiciones realizadas mediante combinaciones de negocios, propiedades, planta y equipo"},{"$f":"'822100 - Nota. Prop, plan y eq.'!$C$62","v":"ifrs-full:AcquisitionsThroughBusinessCombinationsPropertyPlantAndEquipment"}]
["/*",null,{"$f":"'822100 - Nota. Prop, plan y eq.'!$D$63","v":"Depreciación, propiedades, planta y equipo"},{"$f":"'822100 - Nota. Prop, plan y eq.'!$C$63","v":"ifrs-full:DepreciationPropertyPlantAndEquipment"}]
["/*",null,{"$f":"'822100 - Nota. Prop, plan y eq.'!$D$64","v":"Pérdidas por deterioro de valor reconocidas en el resultado del periodo, propiedades, planta y equipo"},{"$f":"'822100 - Nota. Prop, plan y eq.'!$C$64","v":"ifrs-full:ImpairmentLossRecognisedInProfitOrLossPropertyPlantAndEquipment"}]
["/*",null,{"$f":"'822100 - Nota. Prop, plan y eq.'!$D$65","v":"Reversión de pérdidas por deterioro de valor reconocidas en el resultado del periodo, propiedades, planta y equipo"},{"$f":"'822100 - Nota. Prop, plan y eq.'!$C$65","v":"ifrs-full:ReversalOfImpairmentLossRecognisedInProfitOrLossPropertyPlantAndEquipment"}]
["/*",null,{"$f":"'822100 - Nota. Prop, plan y eq.'!$D$66","v":"Incrementos (disminuciones) de revaluaciones, propiedades, planta y equipo"},{"$f":"'822100 - Nota. Prop, plan y eq.'!$C$66","v":"ifrs-full:RevaluationIncreaseDecreasePropertyPlantAndEquipment"}]
["/*",null,{"$f":"'822100 - Nota. Prop, plan y eq.'!$D$67","v":"Pérdidas por deterioro de valor reconocidas en otro resultado integral, propiedades, planta y equipo"},{"$f":"'822100 - Nota. Prop, plan y eq.'!$C$67","v":"ifrs-full:ImpairmentLossRecognisedInOtherComprehensiveIncomePropertyPlantAndEquipment"}]
["/*",null,{"$f":"'822100 - Nota. Prop, plan y eq.'!$D$68","v":"Reversión de pérdidas por deterioro de valor reconocidas en otro resultado integral, propiedades, planta y equipo"},{"$f":"'822100 - Nota. Prop, plan y eq.'!$C$68","v":"ifrs-full:ReversalOfImpairmentLossRecognisedInOtherComprehensiveIncomePropertyPlantAndEquipment"}]
["/*",null,{"$f":"'822100 - Nota. Prop, plan y eq.'!$D$69","v":"Incrementos (disminuciones) por transferencias y otros cambios, propiedades, planta y equipo [resumen]"},{"$f":"'822100 - Nota. Prop, plan y eq.'!$C$69","v":"ifrs-full:IncreaseDecreaseThroughTransfersAndOtherChangesPropertyPlantAndEquipmentAbstract"}]
["/*",null,{"$f":"'822100 - Nota. Prop, plan y eq.'!$D$70","v":"Incrementos (disminuciones) por transferencias desde (hacia) propiedades de inversión, propiedades, planta y equipo"},{"$f":"'822100 - Nota. Prop, plan y eq.'!$C$70","v":"ifrs-full:IncreaseDecreaseThroughTransfersFromToInvestmentPropertyPropertyPlantAndEquipment"}]
["/*",null,{"$f":"'822100 - Nota. Prop, plan y eq.'!$D$71","v":"Incrementos (disminuciones) por transferencias desde construcciones en proceso , propiedades, planta y equipo"},{"$f":"'822100 - Nota. Prop, plan y eq.'!$C$71","v":"ifrs-full:IncreaseDecreaseThroughTransfersFromConstructionInProgressPropertyPlantAndEquipment"}]
["/*",null,{"$f":"'822100 - Nota. Prop, plan y eq.'!$D$72","v":"Incrementos (disminuciones) por otros cambios, propiedades, planta y equipo"},{"$f":"'822100 - Nota. Prop, plan y eq.'!$C$72","v":"ifrs-full:IncreaseDecreaseThroughOtherChangesPropertyPlantAndEquipment"}]
["",null,{"$f":"'822100 - Nota. Prop, plan y eq.'!$D$73","v":"Total incrementos (disminuciones) por transferencias y otros cambios, propiedades, planta y equipo"},{"$f":"'822100 - Nota. Prop, plan y eq.'!$C$73","v":"ifrs-full:IncreaseDecreaseThroughTransfersAndOtherChangesPropertyPlantAndEquipment"},0,"peso",{"$f":"'822100 - Nota. Prop, plan y eq.'!$P$73","v":0},800001965,"http://www.xbrl.org/scheme/companyName",{"$f":"Periodos!$D$3","v":"2016-01-01"},{"$f":"Periodos!$D$4","v":"2016-12-31"},{"$f":"'822100 - Nota. Prop, plan y eq.'!$D$50","v":"co-svsp-core_2017-12-31:PropiedadesPlantaYEquipoEje_G1"},{"$f":"'822100 - Nota. Prop, plan y eq.'!$P$49","v":"ifrs-full:ComputerEquipmentMember"}]
["/*",null,{"$f":"'822100 - Nota. Prop, plan y eq.'!$D$74","v":"Disposiciones y retiros de servicio, propiedades, planta y equipo [resumen]"},{"$f":"'822100 - Nota. Prop, plan y eq.'!$C$74","v":"ifrs-full:DisposalsAndRetirementsPropertyPlantAndEquipmentAbstract"}]
["/*",null,{"$f":"'822100 - Nota. Prop, plan y eq.'!$D$75","v":"Disposiciones, propiedades, planta y equipo"},{"$f":"'822100 - Nota. Prop, plan y eq.'!$C$75","v":"ifrs-full:DisposalsPropertyPlantAndEquipment"}]
["/*",null,{"$f":"'822100 - Nota. Prop, plan y eq.'!$D$76","v":"Retiros, propiedades, planta y equipo"},{"$f":"'822100 - Nota. Prop, plan y eq.'!$C$76","v":"ifrs-full:RetirementsPropertyPlantAndEquipment"}]
["",null,{"$f":"'822100 - Nota. Prop, plan y eq.'!$D$77","v":"Total de disposiciones y retiros de servicio, propiedades, planta y equipo"},{"$f":"'822100 - Nota. Prop, plan y eq.'!$C$77","v":"ifrs-full:DisposalsAndRetirementsPropertyPlantAndEquipment"},0,"peso",{"$f":"'822100 - Nota. Prop, plan y eq.'!$P$77","v":0},800001965,"http://www.xbrl.org/scheme/companyName",{"$f":"Periodos!$D$3","v":"2016-01-01"},{"$f":"Periodos!$D$4","v":"2016-12-31"},{"$f":"'822100 - Nota. Prop, plan y eq.'!$D$50","v":"co-svsp-core_2017-12-31:PropiedadesPlantaYEquipoEje_G1"},{"$f":"'822100 - Nota. Prop, plan y eq.'!$P$49","v":"ifrs-full:ComputerEquipmentMember"}]
["/*",null,{"$f":"'822100 - Nota. Prop, plan y eq.'!$D$78","v":"Disminuciones por clasificar como mantenidos para la venta, propiedades, planta y equipo"},{"$f":"'822100 - Nota. Prop, plan y eq.'!$C$78","v":"ifrs-full:DecreaseThroughClassifiedAsHeldForSalePropertyPlantAndEquipment"}]
["",null,{"$f":"'822100 - Nota. Prop, plan y eq.'!$D$79","v":"Total incremento (disminución) en propiedades, planta y equipo"},{"$f":"'822100 - Nota. Prop, plan y eq.'!$C$79","v":"ifrs-full:ChangesInPropertyPlantAndEquipment"},0,"peso",{"$f":"'822100 - Nota. Prop, plan y eq.'!$P$79","v":0},800001965,"http://www.xbrl.org/scheme/companyName",{"$f":"Periodos!$D$3","v":"2016-01-01"},{"$f":"Periodos!$D$4","v":"2016-12-31"},{"$f":"'822100 - Nota. Prop, plan y eq.'!$D$50","v":"co-svsp-core_2017-12-31:PropiedadesPlantaYEquipoEje_G1"},{"$f":"'822100 - Nota. Prop, plan y eq.'!$P$49","v":"ifrs-full:ComputerEquipmentMember"}]
["",null,{"$f":"'822100 - Nota. Prop, plan y eq.'!$D$80","v":"Propiedades, planta y equipo al final del periodo"},{"$f":"'822100 - Nota. Prop, plan y eq.'!$C$80","v":"co-svsp-core_2017-12-31:PropertyPlantAndEquipmentEndOfPeriod"},0,"peso",{"$f":"'822100 - Nota. Prop, plan y eq.'!$P$80","v":0},800001965,"http://www.xbrl.org/scheme/companyName",{"$f":"Periodos!$D$3","v":"2016-01-01"},{"$f":"Periodos!$D$4","v":"2016-12-31"},{"$f":"'822100 - Nota. Prop, plan y eq.'!$D$50","v":"co-svsp-core_2017-12-31:PropiedadesPlantaYEquipoEje_G1"},{"$f":"'822100 - Nota. Prop, plan y eq.'!$P$49","v":"ifrs-full:ComputerEquipmentMember"}]
["/*",null,"--13--"]
["/*",null,{"$f":"'822100 - Nota. Prop, plan y eq.'!$D$51","v":"Información a revelar detallada sobre propiedades, planta y equipo [partidas de los estados financieros]"},{"$f":"'822100 - Nota. Prop, plan y eq.'!$C$51","v":"ifrs-full:DisclosureOfPropertyPlantAndEquipmentLineItems"}]
["/*",null,{"$f":"'822100 - Nota. Prop, plan y eq.'!$D$52","v":"Bases de medición, propiedades, planta y equipo"},{"$f":"'822100 - Nota. Prop, plan y eq.'!$C$52","v":"ifrs-full:MeasurementBasesPropertyPlantAndEquipment"}]
["/*",null,{"$f":"'822100 - Nota. Prop, plan y eq.'!$D$53","v":"Método de depreciación, propiedades, planta y equipo"},{"$f":"'822100 - Nota. Prop, plan y eq.'!$C$53","v":"ifrs-full:DepreciationMethodPropertyPlantAndEquipment"}]
["/*",null,{"$f":"'822100 - Nota. Prop, plan y eq.'!$D$54","v":"Vidas útiles o tasas de depreciación, propiedades, planta y equipo"},{"$f":"'822100 - Nota. Prop, plan y eq.'!$C$54","v":"ifrs-full:UsefulLivesOrDepreciationRatesPropertyPlantAndEquipment"}]
["/*",null,{"$f":"'822100 - Nota. Prop, plan y eq.'!$D$55","v":"Fechas de vigencia de revaluación, propiedades, planta y equipo"},{"$f":"'822100 - Nota. Prop, plan y eq.'!$C$55","v":"ifrs-full:EffectiveDatesOfRevaluationPropertyPlantAndEquipment"}]
["/*",null,{"$f":"'822100 - Nota. Prop, plan y eq.'!$D$56","v":"Explicación de la implicación del tasador independiente en la revaluación, propiedades, planta y equipo"},{"$f":"'822100 - Nota. Prop, plan y eq.'!$C$56","v":"ifrs-full:ExplanationOfIndependentValuerUsedForRevaluationPropertyPlantAndEquipment"}]
["/*",null,{"$f":"'822100 - Nota. Prop, plan y eq.'!$D$57","v":"Explicación del método de revaluación y supuestos significativos, propiedad, planta y equipo"},{"$f":"'822100 - Nota. Prop, plan y eq.'!$C$57","v":"co-svsp-core_2017-12-31:ExplanationOfRevaluationMethodsAndSignificantAssumptionsPropertyPlantAndEquipment"}]
["/*",null,{"$f":"'822100 - Nota. Prop, plan y eq.'!$D$58","v":"Conciliación de cambios en propiedades, planta y equipo [resumen]"},{"$f":"'822100 - Nota. Prop, plan y eq.'!$C$58","v":"ifrs-full:ReconciliationOfChangesInPropertyPlantAndEquipmentAbstract"}]
["/*",null,{"$f":"'822100 - Nota. Prop, plan y eq.'!$D$59","v":"Propiedades, planta y equipo al comienzo del periodo"},{"$f":"'822100 - Nota. Prop, plan y eq.'!$C$59","v":"co-svsp-core_2017-12-31:PropertyPlantAndEquipmentBeginningOfPeriod"}]
["/*",null,{"$f":"'822100 - Nota. Prop, plan y eq.'!$D$60","v":"Cambios en propiedades, planta y equipo [resumen]"},{"$f":"'822100 - Nota. Prop, plan y eq.'!$C$60","v":"ifrs-full:ChangesInPropertyPlantAndEquipmentAbstract"}]
["/*",null,{"$f":"'822100 - Nota. Prop, plan y eq.'!$D$61","v":"Incrementos distintos de los procedentes de combinaciones de negocios, propiedades, planta y equipo"},{"$f":"'822100 - Nota. Prop, plan y eq.'!$C$61","v":"ifrs-full:AdditionsOtherThanThroughBusinessCombinationsPropertyPlantAndEquipment"}]
["/*",null,{"$f":"'822100 - Nota. Prop, plan y eq.'!$D$62","v":"Adquisiciones realizadas mediante combinaciones de negocios, propiedades, planta y equipo"},{"$f":"'822100 - Nota. Prop, plan y eq.'!$C$62","v":"ifrs-full:AcquisitionsThroughBusinessCombinationsPropertyPlantAndEquipment"}]
["/*",null,{"$f":"'822100 - Nota. Prop, plan y eq.'!$D$63","v":"Depreciación, propiedades, planta y equipo"},{"$f":"'822100 - Nota. Prop, plan y eq.'!$C$63","v":"ifrs-full:DepreciationPropertyPlantAndEquipment"}]
["/*",null,{"$f":"'822100 - Nota. Prop, plan y eq.'!$D$64","v":"Pérdidas por deterioro de valor reconocidas en el resultado del periodo, propiedades, planta y equipo"},{"$f":"'822100 - Nota. Prop, plan y eq.'!$C$64","v":"ifrs-full:ImpairmentLossRecognisedInProfitOrLossPropertyPlantAndEquipment"}]
["/*",null,{"$f":"'822100 - Nota. Prop, plan y eq.'!$D$65","v":"Reversión de pérdidas por deterioro de valor reconocidas en el resultado del periodo, propiedades, planta y equipo"},{"$f":"'822100 - Nota. Prop, plan y eq.'!$C$65","v":"ifrs-full:ReversalOfImpairmentLossRecognisedInProfitOrLossPropertyPlantAndEquipment"}]
["/*",null,{"$f":"'822100 - Nota. Prop, plan y eq.'!$D$66","v":"Incrementos (disminuciones) de revaluaciones, propiedades, planta y equipo"},{"$f":"'822100 - Nota. Prop, plan y eq.'!$C$66","v":"ifrs-full:RevaluationIncreaseDecreasePropertyPlantAndEquipment"}]
["/*",null,{"$f":"'822100 - Nota. Prop, plan y eq.'!$D$67","v":"Pérdidas por deterioro de valor reconocidas en otro resultado integral, propiedades, planta y equipo"},{"$f":"'822100 - Nota. Prop, plan y eq.'!$C$67","v":"ifrs-full:ImpairmentLossRecognisedInOtherComprehensiveIncomePropertyPlantAndEquipment"}]
["/*",null,{"$f":"'822100 - Nota. Prop, plan y eq.'!$D$68","v":"Reversión de pérdidas por deterioro de valor reconocidas en otro resultado integral, propiedades, planta y equipo"},{"$f":"'822100 - Nota. Prop, plan y eq.'!$C$68","v":"ifrs-full:ReversalOfImpairmentLossRecognisedInOtherComprehensiveIncomePropertyPlantAndEquipment"}]
["/*",null,{"$f":"'822100 - Nota. Prop, plan y eq.'!$D$69","v":"Incrementos (disminuciones) por transferencias y otros cambios, propiedades, planta y equipo [resumen]"},{"$f":"'822100 - Nota. Prop, plan y eq.'!$C$69","v":"ifrs-full:IncreaseDecreaseThroughTransfersAndOtherChangesPropertyPlantAndEquipmentAbstract"}]
["/*",null,{"$f":"'822100 - Nota. Prop, plan y eq.'!$D$70","v":"Incrementos (disminuciones) por transferencias desde (hacia) propiedades de inversión, propiedades, planta y equipo"},{"$f":"'822100 - Nota. Prop, plan y eq.'!$C$70","v":"ifrs-full:IncreaseDecreaseThroughTransfersFromToInvestmentPropertyPropertyPlantAndEquipment"}]
["/*",null,{"$f":"'822100 - Nota. Prop, plan y eq.'!$D$71","v":"Incrementos (disminuciones) por transferencias desde construcciones en proceso , propiedades, planta y equipo"},{"$f":"'822100 - Nota. Prop, plan y eq.'!$C$71","v":"ifrs-full:IncreaseDecreaseThroughTransfersFromConstructionInProgressPropertyPlantAndEquipment"}]
["/*",null,{"$f":"'822100 - Nota. Prop, plan y eq.'!$D$72","v":"Incrementos (disminuciones) por otros cambios, propiedades, planta y equipo"},{"$f":"'822100 - Nota. Prop, plan y eq.'!$C$72","v":"ifrs-full:IncreaseDecreaseThroughOtherChangesPropertyPlantAndEquipment"}]
["",null,{"$f":"'822100 - Nota. Prop, plan y eq.'!$D$73","v":"Total incrementos (disminuciones) por transferencias y otros cambios, propiedades, planta y equipo"},{"$f":"'822100 - Nota. Prop, plan y eq.'!$C$73","v":"ifrs-full:IncreaseDecreaseThroughTransfersAndOtherChangesPropertyPlantAndEquipment"},0,"peso",{"$f":"'822100 - Nota. Prop, plan y eq.'!$Q$73","v":0},800001965,"http://www.xbrl.org/scheme/companyName",{"$f":"Periodos!$D$3","v":"2016-01-01"},{"$f":"Periodos!$D$4","v":"2016-12-31"},{"$f":"'822100 - Nota. Prop, plan y eq.'!$D$50","v":"co-svsp-core_2017-12-31:PropiedadesPlantaYEquipoEje_G1"},{"$f":"'822100 - Nota. Prop, plan y eq.'!$Q$49","v":"ifrs-full:CommunicationAndNetworkEquipmentMember"}]
["/*",null,{"$f":"'822100 - Nota. Prop, plan y eq.'!$D$74","v":"Disposiciones y retiros de servicio, propiedades, planta y equipo [resumen]"},{"$f":"'822100 - Nota. Prop, plan y eq.'!$C$74","v":"ifrs-full:DisposalsAndRetirementsPropertyPlantAndEquipmentAbstract"}]
["/*",null,{"$f":"'822100 - Nota. Prop, plan y eq.'!$D$75","v":"Disposiciones, propiedades, planta y equipo"},{"$f":"'822100 - Nota. Prop, plan y eq.'!$C$75","v":"ifrs-full:DisposalsPropertyPlantAndEquipment"}]
["/*",null,{"$f":"'822100 - Nota. Prop, plan y eq.'!$D$76","v":"Retiros, propiedades, planta y equipo"},{"$f":"'822100 - Nota. Prop, plan y eq.'!$C$76","v":"ifrs-full:RetirementsPropertyPlantAndEquipment"}]
["",null,{"$f":"'822100 - Nota. Prop, plan y eq.'!$D$77","v":"Total de disposiciones y retiros de servicio, propiedades, planta y equipo"},{"$f":"'822100 - Nota. Prop, plan y eq.'!$C$77","v":"ifrs-full:DisposalsAndRetirementsPropertyPlantAndEquipment"},0,"peso",{"$f":"'822100 - Nota. Prop, plan y eq.'!$Q$77","v":0},800001965,"http://www.xbrl.org/scheme/companyName",{"$f":"Periodos!$D$3","v":"2016-01-01"},{"$f":"Periodos!$D$4","v":"2016-12-31"},{"$f":"'822100 - Nota. Prop, plan y eq.'!$D$50","v":"co-svsp-core_2017-12-31:PropiedadesPlantaYEquipoEje_G1"},{"$f":"'822100 - Nota. Prop, plan y eq.'!$Q$49","v":"ifrs-full:CommunicationAndNetworkEquipmentMember"}]
["/*",null,{"$f":"'822100 - Nota. Prop, plan y eq.'!$D$78","v":"Disminuciones por clasificar como mantenidos para la venta, propiedades, planta y equipo"},{"$f":"'822100 - Nota. Prop, plan y eq.'!$C$78","v":"ifrs-full:DecreaseThroughClassifiedAsHeldForSalePropertyPlantAndEquipment"}]
["",null,{"$f":"'822100 - Nota. Prop, plan y eq.'!$D$79","v":"Total incremento (disminución) en propiedades, planta y equipo"},{"$f":"'822100 - Nota. Prop, plan y eq.'!$C$79","v":"ifrs-full:ChangesInPropertyPlantAndEquipment"},0,"peso",{"$f":"'822100 - Nota. Prop, plan y eq.'!$Q$79","v":0},800001965,"http://www.xbrl.org/scheme/companyName",{"$f":"Periodos!$D$3","v":"2016-01-01"},{"$f":"Periodos!$D$4","v":"2016-12-31"},{"$f":"'822100 - Nota. Prop, plan y eq.'!$D$50","v":"co-svsp-core_2017-12-31:PropiedadesPlantaYEquipoEje_G1"},{"$f":"'822100 - Nota. Prop, plan y eq.'!$Q$49","v":"ifrs-full:CommunicationAndNetworkEquipmentMember"}]
["",null,{"$f":"'822100 - Nota. Prop, plan y eq.'!$D$80","v":"Propiedades, planta y equipo al final del periodo"},{"$f":"'822100 - Nota. Prop, plan y eq.'!$C$80","v":"co-svsp-core_2017-12-31:PropertyPlantAndEquipmentEndOfPeriod"},0,"peso",{"$f":"'822100 - Nota. Prop, plan y eq.'!$Q$80","v":0},800001965,"http://www.xbrl.org/scheme/companyName",{"$f":"Periodos!$D$3","v":"2016-01-01"},{"$f":"Periodos!$D$4","v":"2016-12-31"},{"$f":"'822100 - Nota. Prop, plan y eq.'!$D$50","v":"co-svsp-core_2017-12-31:PropiedadesPlantaYEquipoEje_G1"},{"$f":"'822100 - Nota. Prop, plan y eq.'!$Q$49","v":"ifrs-full:CommunicationAndNetworkEquipmentMember"}]
["/*",null,"--14--"]
[{"$f":"IF(G7009=\"\",\"/*\",\"\")","v":"/*"},null,{"$f":"'822100 - Nota. Prop, plan y eq.'!$D$51","v":"Información a revelar detallada sobre propiedades, planta y equipo [partidas de los estados financieros]"},{"$f":"'822100 - Nota. Prop, plan y eq.'!$C$51","v":"ifrs-full:DisclosureOfPropertyPlantAndEquipmentLineItems"}]
["/*",null,{"$f":"'822100 - Nota. Prop, plan y eq.'!$D$52","v":"Bases de medición, propiedades, planta y equipo"},{"$f":"'822100 - Nota. Prop, plan y eq.'!$C$52","v":"ifrs-full:MeasurementBasesPropertyPlantAndEquipment"}]
["/*",null,{"$f":"'822100 - Nota. Prop, plan y eq.'!$D$53","v":"Método de depreciación, propiedades, planta y equipo"},{"$f":"'822100 - Nota. Prop, plan y eq.'!$C$53","v":"ifrs-full:DepreciationMethodPropertyPlantAndEquipment"}]
["/*",null,{"$f":"'822100 - Nota. Prop, plan y eq.'!$D$54","v":"Vidas útiles o tasas de depreciación, propiedades, planta y equipo"},{"$f":"'822100 - Nota. Prop, plan y eq.'!$C$54","v":"ifrs-full:UsefulLivesOrDepreciationRatesPropertyPlantAndEquipment"}]
["/*",null,{"$f":"'822100 - Nota. Prop, plan y eq.'!$D$55","v":"Fechas de vigencia de revaluación, propiedades, planta y equipo"},{"$f":"'822100 - Nota. Prop, plan y eq.'!$C$55","v":"ifrs-full:EffectiveDatesOfRevaluationPropertyPlantAndEquipment"}]
["/*",null,{"$f":"'822100 - Nota. Prop, plan y eq.'!$D$56","v":"Explicación de la implicación del tasador independiente en la revaluación, propiedades, planta y equipo"},{"$f":"'822100 - Nota. Prop, plan y eq.'!$C$56","v":"ifrs-full:ExplanationOfIndependentValuerUsedForRevaluationPropertyPlantAndEquipment"}]
["/*",null,{"$f":"'822100 - Nota. Prop, plan y eq.'!$D$57","v":"Explicación del método de revaluación y supuestos significativos, propiedad, planta y equipo"},{"$f":"'822100 - Nota. Prop, plan y eq.'!$C$57","v":"co-svsp-core_2017-12-31:ExplanationOfRevaluationMethodsAndSignificantAssumptionsPropertyPlantAndEquipment"}]
["/*",null,{"$f":"'822100 - Nota. Prop, plan y eq.'!$D$58","v":"Conciliación de cambios en propiedades, planta y equipo [resumen]"},{"$f":"'822100 - Nota. Prop, plan y eq.'!$C$58","v":"ifrs-full:ReconciliationOfChangesInPropertyPlantAndEquipmentAbstract"}]
["/*",null,{"$f":"'822100 - Nota. Prop, plan y eq.'!$D$59","v":"Propiedades, planta y equipo al comienzo del periodo"},{"$f":"'822100 - Nota. Prop, plan y eq.'!$C$59","v":"co-svsp-core_2017-12-31:PropertyPlantAndEquipmentBeginningOfPeriod"}]
["/*",null,{"$f":"'822100 - Nota. Prop, plan y eq.'!$D$60","v":"Cambios en propiedades, planta y equipo [resumen]"},{"$f":"'822100 - Nota. Prop, plan y eq.'!$C$60","v":"ifrs-full:ChangesInPropertyPlantAndEquipmentAbstract"}]
["/*",null,{"$f":"'822100 - Nota. Prop, plan y eq.'!$D$61","v":"Incrementos distintos de los procedentes de combinaciones de negocios, propiedades, planta y equipo"},{"$f":"'822100 - Nota. Prop, plan y eq.'!$C$61","v":"ifrs-full:AdditionsOtherThanThroughBusinessCombinationsPropertyPlantAndEquipment"}]
["/*",null,{"$f":"'822100 - Nota. Prop, plan y eq.'!$D$62","v":"Adquisiciones realizadas mediante combinaciones de negocios, propiedades, planta y equipo"},{"$f":"'822100 - Nota. Prop, plan y eq.'!$C$62","v":"ifrs-full:AcquisitionsThroughBusinessCombinationsPropertyPlantAndEquipment"}]
["/*",null,{"$f":"'822100 - Nota. Prop, plan y eq.'!$D$63","v":"Depreciación, propiedades, planta y equipo"},{"$f":"'822100 - Nota. Prop, plan y eq.'!$C$63","v":"ifrs-full:DepreciationPropertyPlantAndEquipment"}]
["/*",null,{"$f":"'822100 - Nota. Prop, plan y eq.'!$D$64","v":"Pérdidas por deterioro de valor reconocidas en el resultado del periodo, propiedades, planta y equipo"},{"$f":"'822100 - Nota. Prop, plan y eq.'!$C$64","v":"ifrs-full:ImpairmentLossRecognisedInProfitOrLossPropertyPlantAndEquipment"}]
["/*",null,{"$f":"'822100 - Nota. Prop, plan y eq.'!$D$65","v":"Reversión de pérdidas por deterioro de valor reconocidas en el resultado del periodo, propiedades, planta y equipo"},{"$f":"'822100 - Nota. Prop, plan y eq.'!$C$65","v":"ifrs-full:ReversalOfImpairmentLossRecognisedInProfitOrLossPropertyPlantAndEquipment"}]
["/*",null,{"$f":"'822100 - Nota. Prop, plan y eq.'!$D$66","v":"Incrementos (disminuciones) de revaluaciones, propiedades, planta y equipo"},{"$f":"'822100 - Nota. Prop, plan y eq.'!$C$66","v":"ifrs-full:RevaluationIncreaseDecreasePropertyPlantAndEquipment"}]
["/*",null,{"$f":"'822100 - Nota. Prop, plan y eq.'!$D$67","v":"Pérdidas por deterioro de valor reconocidas en otro resultado integral, propiedades, planta y equipo"},{"$f":"'822100 - Nota. Prop, plan y eq.'!$C$67","v":"ifrs-full:ImpairmentLossRecognisedInOtherComprehensiveIncomePropertyPlantAndEquipment"}]
["/*",null,{"$f":"'822100 - Nota. Prop, plan y eq.'!$D$68","v":"Reversión de pérdidas por deterioro de valor reconocidas en otro resultado integral, propiedades, planta y equipo"},{"$f":"'822100 - Nota. Prop, plan y eq.'!$C$68","v":"ifrs-full:ReversalOfImpairmentLossRecognisedInOtherComprehensiveIncomePropertyPlantAndEquipment"}]
["/*",null,{"$f":"'822100 - Nota. Prop, plan y eq.'!$D$69","v":"Incrementos (disminuciones) por transferencias y otros cambios, propiedades, planta y equipo [resumen]"},{"$f":"'822100 - Nota. Prop, plan y eq.'!$C$69","v":"ifrs-full:IncreaseDecreaseThroughTransfersAndOtherChangesPropertyPlantAndEquipmentAbstract"}]
["/*",null,{"$f":"'822100 - Nota. Prop, plan y eq.'!$D$70","v":"Incrementos (disminuciones) por transferencias desde (hacia) propiedades de inversión, propiedades, planta y equipo"},{"$f":"'822100 - Nota. Prop, plan y eq.'!$C$70","v":"ifrs-full:IncreaseDecreaseThroughTransfersFromToInvestmentPropertyPropertyPlantAndEquipment"}]
["/*",null,{"$f":"'822100 - Nota. Prop, plan y eq.'!$D$71","v":"Incrementos (disminuciones) por transferencias desde construcciones en proceso , propiedades, planta y equipo"},{"$f":"'822100 - Nota. Prop, plan y eq.'!$C$71","v":"ifrs-full:IncreaseDecreaseThroughTransfersFromConstructionInProgressPropertyPlantAndEquipment"}]
["/*",null,{"$f":"'822100 - Nota. Prop, plan y eq.'!$D$72","v":"Incrementos (disminuciones) por otros cambios, propiedades, planta y equipo"},{"$f":"'822100 - Nota. Prop, plan y eq.'!$C$72","v":"ifrs-full:IncreaseDecreaseThroughOtherChangesPropertyPlantAndEquipment"}]
["",null,{"$f":"'822100 - Nota. Prop, plan y eq.'!$D$73","v":"Total incrementos (disminuciones) por transferencias y otros cambios, propiedades, planta y equipo"},{"$f":"'822100 - Nota. Prop, plan y eq.'!$C$73","v":"ifrs-full:IncreaseDecreaseThroughTransfersAndOtherChangesPropertyPlantAndEquipment"},0,"peso",{"$f":"'822100 - Nota. Prop, plan y eq.'!$R$73","v":0},800001965,"http://www.xbrl.org/scheme/companyName",{"$f":"Periodos!$D$3","v":"2016-01-01"},{"$f":"Periodos!$D$4","v":"2016-12-31"},{"$f":"'822100 - Nota. Prop, plan y eq.'!$D$50","v":"co-svsp-core_2017-12-31:PropiedadesPlantaYEquipoEje_G1"},{"$f":"'822100 - Nota. Prop, plan y eq.'!$R$49","v":"ifrs-full:NetworkInfrastructureMember"}]
["/*",null,{"$f":"'822100 - Nota. Prop, plan y eq.'!$D$74","v":"Disposiciones y retiros de servicio, propiedades, planta y equipo [resumen]"},{"$f":"'822100 - Nota. Prop, plan y eq.'!$C$74","v":"ifrs-full:DisposalsAndRetirementsPropertyPlantAndEquipmentAbstract"}]
["/*",null,{"$f":"'822100 - Nota. Prop, plan y eq.'!$D$75","v":"Disposiciones, propiedades, planta y equipo"},{"$f":"'822100 - Nota. Prop, plan y eq.'!$C$75","v":"ifrs-full:DisposalsPropertyPlantAndEquipment"}]
["/*",null,{"$f":"'822100 - Nota. Prop, plan y eq.'!$D$76","v":"Retiros, propiedades, planta y equipo"},{"$f":"'822100 - Nota. Prop, plan y eq.'!$C$76","v":"ifrs-full:RetirementsPropertyPlantAndEquipment"}]
["",null,{"$f":"'822100 - Nota. Prop, plan y eq.'!$D$77","v":"Total de disposiciones y retiros de servicio, propiedades, planta y equipo"},{"$f":"'822100 - Nota. Prop, plan y eq.'!$C$77","v":"ifrs-full:DisposalsAndRetirementsPropertyPlantAndEquipment"},0,"peso",{"$f":"'822100 - Nota. Prop, plan y eq.'!$R$77","v":0},800001965,"http://www.xbrl.org/scheme/companyName",{"$f":"Periodos!$D$3","v":"2016-01-01"},{"$f":"Periodos!$D$4","v":"2016-12-31"},{"$f":"'822100 - Nota. Prop, plan y eq.'!$D$50","v":"co-svsp-core_2017-12-31:PropiedadesPlantaYEquipoEje_G1"},{"$f":"'822100 - Nota. Prop, plan y eq.'!$R$49","v":"ifrs-full:NetworkInfrastructureMember"}]
["/*",null,{"$f":"'822100 - Nota. Prop, plan y eq.'!$D$78","v":"Disminuciones por clasificar como mantenidos para la venta, propiedades, planta y equipo"},{"$f":"'822100 - Nota. Prop, plan y eq.'!$C$78","v":"ifrs-full:DecreaseThroughClassifiedAsHeldForSalePropertyPlantAndEquipment"}]
["",null,{"$f":"'822100 - Nota. Prop, plan y eq.'!$D$79","v":"Total incremento (disminución) en propiedades, planta y equipo"},{"$f":"'822100 - Nota. Prop, plan y eq.'!$C$79","v":"ifrs-full:ChangesInPropertyPlantAndEquipment"},0,"peso",{"$f":"'822100 - Nota. Prop, plan y eq.'!$R$79","v":0},800001965,"http://www.xbrl.org/scheme/companyName",{"$f":"Periodos!$D$3","v":"2016-01-01"},{"$f":"Periodos!$D$4","v":"2016-12-31"},{"$f":"'822100 - Nota. Prop, plan y eq.'!$D$50","v":"co-svsp-core_2017-12-31:PropiedadesPlantaYEquipoEje_G1"},{"$f":"'822100 - Nota. Prop, plan y eq.'!$R$49","v":"ifrs-full:NetworkInfrastructureMember"}]
["",null,{"$f":"'822100 - Nota. Prop, plan y eq.'!$D$80","v":"Propiedades, planta y equipo al final del periodo"},{"$f":"'822100 - Nota. Prop, plan y eq.'!$C$80","v":"co-svsp-core_2017-12-31:PropertyPlantAndEquipmentEndOfPeriod"},0,"peso",{"$f":"'822100 - Nota. Prop, plan y eq.'!$R$80","v":0},800001965,"http://www.xbrl.org/scheme/companyName",{"$f":"Periodos!$D$3","v":"2016-01-01"},{"$f":"Periodos!$D$4","v":"2016-12-31"},{"$f":"'822100 - Nota. Prop, plan y eq.'!$D$50","v":"co-svsp-core_2017-12-31:PropiedadesPlantaYEquipoEje_G1"},{"$f":"'822100 - Nota. Prop, plan y eq.'!$R$49","v":"ifrs-full:NetworkInfrastructureMember"}]
["/*",null,"--15--"]
["/*",null,{"$f":"'822100 - Nota. Prop, plan y eq.'!$D$51","v":"Información a revelar detallada sobre propiedades, planta y equipo [partidas de los estados financieros]"},{"$f":"'822100 - Nota. Prop, plan y eq.'!$C$51","v":"ifrs-full:DisclosureOfPropertyPlantAndEquipmentLineItems"}]
["/*",null,{"$f":"'822100 - Nota. Prop, plan y eq.'!$D$52","v":"Bases de medición, propiedades, planta y equipo"},{"$f":"'822100 - Nota. Prop, plan y eq.'!$C$52","v":"ifrs-full:MeasurementBasesPropertyPlantAndEquipment"}]
["/*",null,{"$f":"'822100 - Nota. Prop, plan y eq.'!$D$53","v":"Método de depreciación, propiedades, planta y equipo"},{"$f":"'822100 - Nota. Prop, plan y eq.'!$C$53","v":"ifrs-full:DepreciationMethodPropertyPlantAndEquipment"}]
["/*",null,{"$f":"'822100 - Nota. Prop, plan y eq.'!$D$54","v":"Vidas útiles o tasas de depreciación, propiedades, planta y equipo"},{"$f":"'822100 - Nota. Prop, plan y eq.'!$C$54","v":"ifrs-full:UsefulLivesOrDepreciationRatesPropertyPlantAndEquipment"}]
["/*",null,{"$f":"'822100 - Nota. Prop, plan y eq.'!$D$55","v":"Fechas de vigencia de revaluación, propiedades, planta y equipo"},{"$f":"'822100 - Nota. Prop, plan y eq.'!$C$55","v":"ifrs-full:EffectiveDatesOfRevaluationPropertyPlantAndEquipment"}]
["/*",null,{"$f":"'822100 - Nota. Prop, plan y eq.'!$D$56","v":"Explicación de la implicación del tasador independiente en la revaluación, propiedades, planta y equipo"},{"$f":"'822100 - Nota. Prop, plan y eq.'!$C$56","v":"ifrs-full:ExplanationOfIndependentValuerUsedForRevaluationPropertyPlantAndEquipment"}]
["/*",null,{"$f":"'822100 - Nota. Prop, plan y eq.'!$D$57","v":"Explicación del método de revaluación y supuestos significativos, propiedad, planta y equipo"},{"$f":"'822100 - Nota. Prop, plan y eq.'!$C$57","v":"co-svsp-core_2017-12-31:ExplanationOfRevaluationMethodsAndSignificantAssumptionsPropertyPlantAndEquipment"}]
["/*",null,{"$f":"'822100 - Nota. Prop, plan y eq.'!$D$58","v":"Conciliación de cambios en propiedades, planta y equipo [resumen]"},{"$f":"'822100 - Nota. Prop, plan y eq.'!$C$58","v":"ifrs-full:ReconciliationOfChangesInPropertyPlantAndEquipmentAbstract"}]
["/*",null,{"$f":"'822100 - Nota. Prop, plan y eq.'!$D$59","v":"Propiedades, planta y equipo al comienzo del periodo"},{"$f":"'822100 - Nota. Prop, plan y eq.'!$C$59","v":"co-svsp-core_2017-12-31:PropertyPlantAndEquipmentBeginningOfPeriod"}]
["/*",null,{"$f":"'822100 - Nota. Prop, plan y eq.'!$D$60","v":"Cambios en propiedades, planta y equipo [resumen]"},{"$f":"'822100 - Nota. Prop, plan y eq.'!$C$60","v":"ifrs-full:ChangesInPropertyPlantAndEquipmentAbstract"}]
["/*",null,{"$f":"'822100 - Nota. Prop, plan y eq.'!$D$61","v":"Incrementos distintos de los procedentes de combinaciones de negocios, propiedades, planta y equipo"},{"$f":"'822100 - Nota. Prop, plan y eq.'!$C$61","v":"ifrs-full:AdditionsOtherThanThroughBusinessCombinationsPropertyPlantAndEquipment"}]
["/*",null,{"$f":"'822100 - Nota. Prop, plan y eq.'!$D$62","v":"Adquisiciones realizadas mediante combinaciones de negocios, propiedades, planta y equipo"},{"$f":"'822100 - Nota. Prop, plan y eq.'!$C$62","v":"ifrs-full:AcquisitionsThroughBusinessCombinationsPropertyPlantAndEquipment"}]
["/*",null,{"$f":"'822100 - Nota. Prop, plan y eq.'!$D$63","v":"Depreciación, propiedades, planta y equipo"},{"$f":"'822100 - Nota. Prop, plan y eq.'!$C$63","v":"ifrs-full:DepreciationPropertyPlantAndEquipment"}]
["/*",null,{"$f":"'822100 - Nota. Prop, plan y eq.'!$D$64","v":"Pérdidas por deterioro de valor reconocidas en el resultado del periodo, propiedades, planta y equipo"},{"$f":"'822100 - Nota. Prop, plan y eq.'!$C$64","v":"ifrs-full:ImpairmentLossRecognisedInProfitOrLossPropertyPlantAndEquipment"}]
["/*",null,{"$f":"'822100 - Nota. Prop, plan y eq.'!$D$65","v":"Reversión de pérdidas por deterioro de valor reconocidas en el resultado del periodo, propiedades, planta y equipo"},{"$f":"'822100 - Nota. Prop, plan y eq.'!$C$65","v":"ifrs-full:ReversalOfImpairmentLossRecognisedInProfitOrLossPropertyPlantAndEquipment"}]
["/*",null,{"$f":"'822100 - Nota. Prop, plan y eq.'!$D$66","v":"Incrementos (disminuciones) de revaluaciones, propiedades, planta y equipo"},{"$f":"'822100 - Nota. Prop, plan y eq.'!$C$66","v":"ifrs-full:RevaluationIncreaseDecreasePropertyPlantAndEquipment"}]
["/*",null,{"$f":"'822100 - Nota. Prop, plan y eq.'!$D$67","v":"Pérdidas por deterioro de valor reconocidas en otro resultado integral, propiedades, planta y equipo"},{"$f":"'822100 - Nota. Prop, plan y eq.'!$C$67","v":"ifrs-full:ImpairmentLossRecognisedInOtherComprehensiveIncomePropertyPlantAndEquipment"}]
["/*",null,{"$f":"'822100 - Nota. Prop, plan y eq.'!$D$68","v":"Reversión de pérdidas por deterioro de valor reconocidas en otro resultado integral, propiedades, planta y equipo"},{"$f":"'822100 - Nota. Prop, plan y eq.'!$C$68","v":"ifrs-full:ReversalOfImpairmentLossRecognisedInOtherComprehensiveIncomePropertyPlantAndEquipment"}]
["/*",null,{"$f":"'822100 - Nota. Prop, plan y eq.'!$D$69","v":"Incrementos (disminuciones) por transferencias y otros cambios, propiedades, planta y equipo [resumen]"},{"$f":"'822100 - Nota. Prop, plan y eq.'!$C$69","v":"ifrs-full:IncreaseDecreaseThroughTransfersAndOtherChangesPropertyPlantAndEquipmentAbstract"}]
["/*",null,{"$f":"'822100 - Nota. Prop, plan y eq.'!$D$70","v":"Incrementos (disminuciones) por transferencias desde (hacia) propiedades de inversión, propiedades, planta y equipo"},{"$f":"'822100 - Nota. Prop, plan y eq.'!$C$70","v":"ifrs-full:IncreaseDecreaseThroughTransfersFromToInvestmentPropertyPropertyPlantAndEquipment"}]
["/*",null,{"$f":"'822100 - Nota. Prop, plan y eq.'!$D$71","v":"Incrementos (disminuciones) por transferencias desde construcciones en proceso , propiedades, planta y equipo"},{"$f":"'822100 - Nota. Prop, plan y eq.'!$C$71","v":"ifrs-full:IncreaseDecreaseThroughTransfersFromConstructionInProgressPropertyPlantAndEquipment"}]
["/*",null,{"$f":"'822100 - Nota. Prop, plan y eq.'!$D$72","v":"Incrementos (disminuciones) por otros cambios, propiedades, planta y equipo"},{"$f":"'822100 - Nota. Prop, plan y eq.'!$C$72","v":"ifrs-full:IncreaseDecreaseThroughOtherChangesPropertyPlantAndEquipment"}]
["",null,{"$f":"'822100 - Nota. Prop, plan y eq.'!$D$73","v":"Total incrementos (disminuciones) por transferencias y otros cambios, propiedades, planta y equipo"},{"$f":"'822100 - Nota. Prop, plan y eq.'!$C$73","v":"ifrs-full:IncreaseDecreaseThroughTransfersAndOtherChangesPropertyPlantAndEquipment"},0,"peso",{"$f":"'822100 - Nota. Prop, plan y eq.'!$S$73","v":0},800001965,"http://www.xbrl.org/scheme/companyName",{"$f":"Periodos!$D$3","v":"2016-01-01"},{"$f":"Periodos!$D$4","v":"2016-12-31"},{"$f":"'822100 - Nota. Prop, plan y eq.'!$D$50","v":"co-svsp-core_2017-12-31:PropiedadesPlantaYEquipoEje_G1"},{"$f":"'822100 - Nota. Prop, plan y eq.'!$S$49","v":"ifrs-full:BearerPlantsMember"}]
["/*",null,{"$f":"'822100 - Nota. Prop, plan y eq.'!$D$74","v":"Disposiciones y retiros de servicio, propiedades, planta y equipo [resumen]"},{"$f":"'822100 - Nota. Prop, plan y eq.'!$C$74","v":"ifrs-full:DisposalsAndRetirementsPropertyPlantAndEquipmentAbstract"}]
["/*",null,{"$f":"'822100 - Nota. Prop, plan y eq.'!$D$75","v":"Disposiciones, propiedades, planta y equipo"},{"$f":"'822100 - Nota. Prop, plan y eq.'!$C$75","v":"ifrs-full:DisposalsPropertyPlantAndEquipment"}]
["/*",null,{"$f":"'822100 - Nota. Prop, plan y eq.'!$D$76","v":"Retiros, propiedades, planta y equipo"},{"$f":"'822100 - Nota. Prop, plan y eq.'!$C$76","v":"ifrs-full:RetirementsPropertyPlantAndEquipment"}]
["",null,{"$f":"'822100 - Nota. Prop, plan y eq.'!$D$77","v":"Total de disposiciones y retiros de servicio, propiedades, planta y equipo"},{"$f":"'822100 - Nota. Prop, plan y eq.'!$C$77","v":"ifrs-full:DisposalsAndRetirementsPropertyPlantAndEquipment"},0,"peso",{"$f":"'822100 - Nota. Prop, plan y eq.'!$S$77","v":0},800001965,"http://www.xbrl.org/scheme/companyName",{"$f":"Periodos!$D$3","v":"2016-01-01"},{"$f":"Periodos!$D$4","v":"2016-12-31"},{"$f":"'822100 - Nota. Prop, plan y eq.'!$D$50","v":"co-svsp-core_2017-12-31:PropiedadesPlantaYEquipoEje_G1"},{"$f":"'822100 - Nota. Prop, plan y eq.'!$S$49","v":"ifrs-full:BearerPlantsMember"}]
["/*",null,{"$f":"'822100 - Nota. Prop, plan y eq.'!$D$78","v":"Disminuciones por clasificar como mantenidos para la venta, propiedades, planta y equipo"},{"$f":"'822100 - Nota. Prop, plan y eq.'!$C$78","v":"ifrs-full:DecreaseThroughClassifiedAsHeldForSalePropertyPlantAndEquipment"}]
["",null,{"$f":"'822100 - Nota. Prop, plan y eq.'!$D$79","v":"Total incremento (disminución) en propiedades, planta y equipo"},{"$f":"'822100 - Nota. Prop, plan y eq.'!$C$79","v":"ifrs-full:ChangesInPropertyPlantAndEquipment"},0,"peso",{"$f":"'822100 - Nota. Prop, plan y eq.'!$S$79","v":0},800001965,"http://www.xbrl.org/scheme/companyName",{"$f":"Periodos!$D$3","v":"2016-01-01"},{"$f":"Periodos!$D$4","v":"2016-12-31"},{"$f":"'822100 - Nota. Prop, plan y eq.'!$D$50","v":"co-svsp-core_2017-12-31:PropiedadesPlantaYEquipoEje_G1"},{"$f":"'822100 - Nota. Prop, plan y eq.'!$S$49","v":"ifrs-full:BearerPlantsMember"}]
["",null,{"$f":"'822100 - Nota. Prop, plan y eq.'!$D$80","v":"Propiedades, planta y equipo al final del periodo"},{"$f":"'822100 - Nota. Prop, plan y eq.'!$C$80","v":"co-svsp-core_2017-12-31:PropertyPlantAndEquipmentEndOfPeriod"},0,"peso",{"$f":"'822100 - Nota. Prop, plan y eq.'!$S$80","v":0},800001965,"http://www.xbrl.org/scheme/companyName",{"$f":"Periodos!$D$3","v":"2016-01-01"},{"$f":"Periodos!$D$4","v":"2016-12-31"},{"$f":"'822100 - Nota. Prop, plan y eq.'!$D$50","v":"co-svsp-core_2017-12-31:PropiedadesPlantaYEquipoEje_G1"},{"$f":"'822100 - Nota. Prop, plan y eq.'!$S$49","v":"ifrs-full:BearerPlantsMember"}]
["/*",null,"--16--"]
["/*",null,{"$f":"'822100 - Nota. Prop, plan y eq.'!$D$51","v":"Información a revelar detallada sobre propiedades, planta y equipo [partidas de los estados financieros]"},{"$f":"'822100 - Nota. Prop, plan y eq.'!$C$51","v":"ifrs-full:DisclosureOfPropertyPlantAndEquipmentLineItems"}]
["/*",null,{"$f":"'822100 - Nota. Prop, plan y eq.'!$D$52","v":"Bases de medición, propiedades, planta y equipo"},{"$f":"'822100 - Nota. Prop, plan y eq.'!$C$52","v":"ifrs-full:MeasurementBasesPropertyPlantAndEquipment"}]
[{"$f":"IF(G7073=\"\",\"/*\",\"\")","v":"/*"},null,{"$f":"'822100 - Nota. Prop, plan y eq.'!$D$53","v":"Método de depreciación, propiedades, planta y equipo"},{"$f":"'822100 - Nota. Prop, plan y eq.'!$C$53","v":"ifrs-full:DepreciationMethodPropertyPlantAndEquipment"}]
["/*",null,{"$f":"'822100 - Nota. Prop, plan y eq.'!$D$54","v":"Vidas útiles o tasas de depreciación, propiedades, planta y equipo"},{"$f":"'822100 - Nota. Prop, plan y eq.'!$C$54","v":"ifrs-full:UsefulLivesOrDepreciationRatesPropertyPlantAndEquipment"}]
["/*",null,{"$f":"'822100 - Nota. Prop, plan y eq.'!$D$55","v":"Fechas de vigencia de revaluación, propiedades, planta y equipo"},{"$f":"'822100 - Nota. Prop, plan y eq.'!$C$55","v":"ifrs-full:EffectiveDatesOfRevaluationPropertyPlantAndEquipment"}]
["/*",null,{"$f":"'822100 - Nota. Prop, plan y eq.'!$D$56","v":"Explicación de la implicación del tasador independiente en la revaluación, propiedades, planta y equipo"},{"$f":"'822100 - Nota. Prop, plan y eq.'!$C$56","v":"ifrs-full:ExplanationOfIndependentValuerUsedForRevaluationPropertyPlantAndEquipment"}]
["/*",null,{"$f":"'822100 - Nota. Prop, plan y eq.'!$D$57","v":"Explicación del método de revaluación y supuestos significativos, propiedad, planta y equipo"},{"$f":"'822100 - Nota. Prop, plan y eq.'!$C$57","v":"co-svsp-core_2017-12-31:ExplanationOfRevaluationMethodsAndSignificantAssumptionsPropertyPlantAndEquipment"}]
["/*",null,{"$f":"'822100 - Nota. Prop, plan y eq.'!$D$58","v":"Conciliación de cambios en propiedades, planta y equipo [resumen]"},{"$f":"'822100 - Nota. Prop, plan y eq.'!$C$58","v":"ifrs-full:ReconciliationOfChangesInPropertyPlantAndEquipmentAbstract"}]
["/*",null,{"$f":"'822100 - Nota. Prop, plan y eq.'!$D$59","v":"Propiedades, planta y equipo al comienzo del periodo"},{"$f":"'822100 - Nota. Prop, plan y eq.'!$C$59","v":"co-svsp-core_2017-12-31:PropertyPlantAndEquipmentBeginningOfPeriod"}]
["/*",null,{"$f":"'822100 - Nota. Prop, plan y eq.'!$D$60","v":"Cambios en propiedades, planta y equipo [resumen]"},{"$f":"'822100 - Nota. Prop, plan y eq.'!$C$60","v":"ifrs-full:ChangesInPropertyPlantAndEquipmentAbstract"}]
["/*",null,{"$f":"'822100 - Nota. Prop, plan y eq.'!$D$61","v":"Incrementos distintos de los procedentes de combinaciones de negocios, propiedades, planta y equipo"},{"$f":"'822100 - Nota. Prop, plan y eq.'!$C$61","v":"ifrs-full:AdditionsOtherThanThroughBusinessCombinationsPropertyPlantAndEquipment"}]
["/*",null,{"$f":"'822100 - Nota. Prop, plan y eq.'!$D$62","v":"Adquisiciones realizadas mediante combinaciones de negocios, propiedades, planta y equipo"},{"$f":"'822100 - Nota. Prop, plan y eq.'!$C$62","v":"ifrs-full:AcquisitionsThroughBusinessCombinationsPropertyPlantAndEquipment"}]
["/*",null,{"$f":"'822100 - Nota. Prop, plan y eq.'!$D$63","v":"Depreciación, propiedades, planta y equipo"},{"$f":"'822100 - Nota. Prop, plan y eq.'!$C$63","v":"ifrs-full:DepreciationPropertyPlantAndEquipment"}]
["/*",null,{"$f":"'822100 - Nota. Prop, plan y eq.'!$D$64","v":"Pérdidas por deterioro de valor reconocidas en el resultado del periodo, propiedades, planta y equipo"},{"$f":"'822100 - Nota. Prop, plan y eq.'!$C$64","v":"ifrs-full:ImpairmentLossRecognisedInProfitOrLossPropertyPlantAndEquipment"}]
["/*",null,{"$f":"'822100 - Nota. Prop, plan y eq.'!$D$65","v":"Reversión de pérdidas por deterioro de valor reconocidas en el resultado del periodo, propiedades, planta y equipo"},{"$f":"'822100 - Nota. Prop, plan y eq.'!$C$65","v":"ifrs-full:ReversalOfImpairmentLossRecognisedInProfitOrLossPropertyPlantAndEquipment"}]
["/*",null,{"$f":"'822100 - Nota. Prop, plan y eq.'!$D$66","v":"Incrementos (disminuciones) de revaluaciones, propiedades, planta y equipo"},{"$f":"'822100 - Nota. Prop, plan y eq.'!$C$66","v":"ifrs-full:RevaluationIncreaseDecreasePropertyPlantAndEquipment"}]
["/*",null,{"$f":"'822100 - Nota. Prop, plan y eq.'!$D$67","v":"Pérdidas por deterioro de valor reconocidas en otro resultado integral, propiedades, planta y equipo"},{"$f":"'822100 - Nota. Prop, plan y eq.'!$C$67","v":"ifrs-full:ImpairmentLossRecognisedInOtherComprehensiveIncomePropertyPlantAndEquipment"}]
["/*",null,{"$f":"'822100 - Nota. Prop, plan y eq.'!$D$68","v":"Reversión de pérdidas por deterioro de valor reconocidas en otro resultado integral, propiedades, planta y equipo"},{"$f":"'822100 - Nota. Prop, plan y eq.'!$C$68","v":"ifrs-full:ReversalOfImpairmentLossRecognisedInOtherComprehensiveIncomePropertyPlantAndEquipment"}]
["/*",null,{"$f":"'822100 - Nota. Prop, plan y eq.'!$D$69","v":"Incrementos (disminuciones) por transferencias y otros cambios, propiedades, planta y equipo [resumen]"},{"$f":"'822100 - Nota. Prop, plan y eq.'!$C$69","v":"ifrs-full:IncreaseDecreaseThroughTransfersAndOtherChangesPropertyPlantAndEquipmentAbstract"}]
["/*",null,{"$f":"'822100 - Nota. Prop, plan y eq.'!$D$70","v":"Incrementos (disminuciones) por transferencias desde (hacia) propiedades de inversión, propiedades, planta y equipo"},{"$f":"'822100 - Nota. Prop, plan y eq.'!$C$70","v":"ifrs-full:IncreaseDecreaseThroughTransfersFromToInvestmentPropertyPropertyPlantAndEquipment"}]
["/*",null,{"$f":"'822100 - Nota. Prop, plan y eq.'!$D$71","v":"Incrementos (disminuciones) por transferencias desde construcciones en proceso , propiedades, planta y equipo"},{"$f":"'822100 - Nota. Prop, plan y eq.'!$C$71","v":"ifrs-full:IncreaseDecreaseThroughTransfersFromConstructionInProgressPropertyPlantAndEquipment"}]
["/*",null,{"$f":"'822100 - Nota. Prop, plan y eq.'!$D$72","v":"Incrementos (disminuciones) por otros cambios, propiedades, planta y equipo"},{"$f":"'822100 - Nota. Prop, plan y eq.'!$C$72","v":"ifrs-full:IncreaseDecreaseThroughOtherChangesPropertyPlantAndEquipment"}]
["",null,{"$f":"'822100 - Nota. Prop, plan y eq.'!$D$73","v":"Total incrementos (disminuciones) por transferencias y otros cambios, propiedades, planta y equipo"},{"$f":"'822100 - Nota. Prop, plan y eq.'!$C$73","v":"ifrs-full:IncreaseDecreaseThroughTransfersAndOtherChangesPropertyPlantAndEquipment"},0,"peso",{"$f":"'822100 - Nota. Prop, plan y eq.'!$T$73","v":0},800001965,"http://www.xbrl.org/scheme/companyName",{"$f":"Periodos!$D$3","v":"2016-01-01"},{"$f":"Periodos!$D$4","v":"2016-12-31"},{"$f":"'822100 - Nota. Prop, plan y eq.'!$D$50","v":"co-svsp-core_2017-12-31:PropiedadesPlantaYEquipoEje_G1"},{"$f":"'822100 - Nota. Prop, plan y eq.'!$T$49","v":"ifrs-full:TangibleExplorationAndEvaluationAssetsMember"}]
["/*",null,{"$f":"'822100 - Nota. Prop, plan y eq.'!$D$74","v":"Disposiciones y retiros de servicio, propiedades, planta y equipo [resumen]"},{"$f":"'822100 - Nota. Prop, plan y eq.'!$C$74","v":"ifrs-full:DisposalsAndRetirementsPropertyPlantAndEquipmentAbstract"}]
["/*",null,{"$f":"'822100 - Nota. Prop, plan y eq.'!$D$75","v":"Disposiciones, propiedades, planta y equipo"},{"$f":"'822100 - Nota. Prop, plan y eq.'!$C$75","v":"ifrs-full:DisposalsPropertyPlantAndEquipment"}]
["/*",null,{"$f":"'822100 - Nota. Prop, plan y eq.'!$D$76","v":"Retiros, propiedades, planta y equipo"},{"$f":"'822100 - Nota. Prop, plan y eq.'!$C$76","v":"ifrs-full:RetirementsPropertyPlantAndEquipment"}]
["",null,{"$f":"'822100 - Nota. Prop, plan y eq.'!$D$77","v":"Total de disposiciones y retiros de servicio, propiedades, planta y equipo"},{"$f":"'822100 - Nota. Prop, plan y eq.'!$C$77","v":"ifrs-full:DisposalsAndRetirementsPropertyPlantAndEquipment"},0,"peso",{"$f":"'822100 - Nota. Prop, plan y eq.'!$T$77","v":0},800001965,"http://www.xbrl.org/scheme/companyName",{"$f":"Periodos!$D$3","v":"2016-01-01"},{"$f":"Periodos!$D$4","v":"2016-12-31"},{"$f":"'822100 - Nota. Prop, plan y eq.'!$D$50","v":"co-svsp-core_2017-12-31:PropiedadesPlantaYEquipoEje_G1"},{"$f":"'822100 - Nota. Prop, plan y eq.'!$T$49","v":"ifrs-full:TangibleExplorationAndEvaluationAssetsMember"}]
["/*",null,{"$f":"'822100 - Nota. Prop, plan y eq.'!$D$78","v":"Disminuciones por clasificar como mantenidos para la venta, propiedades, planta y equipo"},{"$f":"'822100 - Nota. Prop, plan y eq.'!$C$78","v":"ifrs-full:DecreaseThroughClassifiedAsHeldForSalePropertyPlantAndEquipment"}]
["",null,{"$f":"'822100 - Nota. Prop, plan y eq.'!$D$79","v":"Total incremento (disminución) en propiedades, planta y equipo"},{"$f":"'822100 - Nota. Prop, plan y eq.'!$C$79","v":"ifrs-full:ChangesInPropertyPlantAndEquipment"},0,"peso",{"$f":"'822100 - Nota. Prop, plan y eq.'!$T$79","v":0},800001965,"http://www.xbrl.org/scheme/companyName",{"$f":"Periodos!$D$3","v":"2016-01-01"},{"$f":"Periodos!$D$4","v":"2016-12-31"},{"$f":"'822100 - Nota. Prop, plan y eq.'!$D$50","v":"co-svsp-core_2017-12-31:PropiedadesPlantaYEquipoEje_G1"},{"$f":"'822100 - Nota. Prop, plan y eq.'!$T$49","v":"ifrs-full:TangibleExplorationAndEvaluationAssetsMember"}]
["",null,{"$f":"'822100 - Nota. Prop, plan y eq.'!$D$80","v":"Propiedades, planta y equipo al final del periodo"},{"$f":"'822100 - Nota. Prop, plan y eq.'!$C$80","v":"co-svsp-core_2017-12-31:PropertyPlantAndEquipmentEndOfPeriod"},0,"peso",{"$f":"'822100 - Nota. Prop, plan y eq.'!$T$80","v":0},800001965,"http://www.xbrl.org/scheme/companyName",{"$f":"Periodos!$D$3","v":"2016-01-01"},{"$f":"Periodos!$D$4","v":"2016-12-31"},{"$f":"'822100 - Nota. Prop, plan y eq.'!$D$50","v":"co-svsp-core_2017-12-31:PropiedadesPlantaYEquipoEje_G1"},{"$f":"'822100 - Nota. Prop, plan y eq.'!$T$49","v":"ifrs-full:TangibleExplorationAndEvaluationAssetsMember"}]
["/*",null,"--17--"]
["/*",null,{"$f":"'822100 - Nota. Prop, plan y eq.'!$D$51","v":"Información a revelar detallada sobre propiedades, planta y equipo [partidas de los estados financieros]"},{"$f":"'822100 - Nota. Prop, plan y eq.'!$C$51","v":"ifrs-full:DisclosureOfPropertyPlantAndEquipmentLineItems"}]
["/*",null,{"$f":"'822100 - Nota. Prop, plan y eq.'!$D$52","v":"Bases de medición, propiedades, planta y equipo"},{"$f":"'822100 - Nota. Prop, plan y eq.'!$C$52","v":"ifrs-full:MeasurementBasesPropertyPlantAndEquipment"}]
["/*",null,{"$f":"'822100 - Nota. Prop, plan y eq.'!$D$53","v":"Método de depreciación, propiedades, planta y equipo"},{"$f":"'822100 - Nota. Prop, plan y eq.'!$C$53","v":"ifrs-full:DepreciationMethodPropertyPlantAndEquipment"}]
["/*",null,{"$f":"'822100 - Nota. Prop, plan y eq.'!$D$54","v":"Vidas útiles o tasas de depreciación, propiedades, planta y equipo"},{"$f":"'822100 - Nota. Prop, plan y eq.'!$C$54","v":"ifrs-full:UsefulLivesOrDepreciationRatesPropertyPlantAndEquipment"}]
["/*",null,{"$f":"'822100 - Nota. Prop, plan y eq.'!$D$55","v":"Fechas de vigencia de revaluación, propiedades, planta y equipo"},{"$f":"'822100 - Nota. Prop, plan y eq.'!$C$55","v":"ifrs-full:EffectiveDatesOfRevaluationPropertyPlantAndEquipment"}]
["/*",null,{"$f":"'822100 - Nota. Prop, plan y eq.'!$D$56","v":"Explicación de la implicación del tasador independiente en la revaluación, propiedades, planta y equipo"},{"$f":"'822100 - Nota. Prop, plan y eq.'!$C$56","v":"ifrs-full:ExplanationOfIndependentValuerUsedForRevaluationPropertyPlantAndEquipment"}]
["/*",null,{"$f":"'822100 - Nota. Prop, plan y eq.'!$D$57","v":"Explicación del método de revaluación y supuestos significativos, propiedad, planta y equipo"},{"$f":"'822100 - Nota. Prop, plan y eq.'!$C$57","v":"co-svsp-core_2017-12-31:ExplanationOfRevaluationMethodsAndSignificantAssumptionsPropertyPlantAndEquipment"}]
["/*",null,{"$f":"'822100 - Nota. Prop, plan y eq.'!$D$58","v":"Conciliación de cambios en propiedades, planta y equipo [resumen]"},{"$f":"'822100 - Nota. Prop, plan y eq.'!$C$58","v":"ifrs-full:ReconciliationOfChangesInPropertyPlantAndEquipmentAbstract"}]
["/*",null,{"$f":"'822100 - Nota. Prop, plan y eq.'!$D$59","v":"Propiedades, planta y equipo al comienzo del periodo"},{"$f":"'822100 - Nota. Prop, plan y eq.'!$C$59","v":"co-svsp-core_2017-12-31:PropertyPlantAndEquipmentBeginningOfPeriod"}]
["/*",null,{"$f":"'822100 - Nota. Prop, plan y eq.'!$D$60","v":"Cambios en propiedades, planta y equipo [resumen]"},{"$f":"'822100 - Nota. Prop, plan y eq.'!$C$60","v":"ifrs-full:ChangesInPropertyPlantAndEquipmentAbstract"}]
["/*",null,{"$f":"'822100 - Nota. Prop, plan y eq.'!$D$61","v":"Incrementos distintos de los procedentes de combinaciones de negocios, propiedades, planta y equipo"},{"$f":"'822100 - Nota. Prop, plan y eq.'!$C$61","v":"ifrs-full:AdditionsOtherThanThroughBusinessCombinationsPropertyPlantAndEquipment"}]
["/*",null,{"$f":"'822100 - Nota. Prop, plan y eq.'!$D$62","v":"Adquisiciones realizadas mediante combinaciones de negocios, propiedades, planta y equipo"},{"$f":"'822100 - Nota. Prop, plan y eq.'!$C$62","v":"ifrs-full:AcquisitionsThroughBusinessCombinationsPropertyPlantAndEquipment"}]
["/*",null,{"$f":"'822100 - Nota. Prop, plan y eq.'!$D$63","v":"Depreciación, propiedades, planta y equipo"},{"$f":"'822100 - Nota. Prop, plan y eq.'!$C$63","v":"ifrs-full:DepreciationPropertyPlantAndEquipment"}]
["/*",null,{"$f":"'822100 - Nota. Prop, plan y eq.'!$D$64","v":"Pérdidas por deterioro de valor reconocidas en el resultado del periodo, propiedades, planta y equipo"},{"$f":"'822100 - Nota. Prop, plan y eq.'!$C$64","v":"ifrs-full:ImpairmentLossRecognisedInProfitOrLossPropertyPlantAndEquipment"}]
["/*",null,{"$f":"'822100 - Nota. Prop, plan y eq.'!$D$65","v":"Reversión de pérdidas por deterioro de valor reconocidas en el resultado del periodo, propiedades, planta y equipo"},{"$f":"'822100 - Nota. Prop, plan y eq.'!$C$65","v":"ifrs-full:ReversalOfImpairmentLossRecognisedInProfitOrLossPropertyPlantAndEquipment"}]
["/*",null,{"$f":"'822100 - Nota. Prop, plan y eq.'!$D$66","v":"Incrementos (disminuciones) de revaluaciones, propiedades, planta y equipo"},{"$f":"'822100 - Nota. Prop, plan y eq.'!$C$66","v":"ifrs-full:RevaluationIncreaseDecreasePropertyPlantAndEquipment"}]
["/*",null,{"$f":"'822100 - Nota. Prop, plan y eq.'!$D$67","v":"Pérdidas por deterioro de valor reconocidas en otro resultado integral, propiedades, planta y equipo"},{"$f":"'822100 - Nota. Prop, plan y eq.'!$C$67","v":"ifrs-full:ImpairmentLossRecognisedInOtherComprehensiveIncomePropertyPlantAndEquipment"}]
["/*",null,{"$f":"'822100 - Nota. Prop, plan y eq.'!$D$68","v":"Reversión de pérdidas por deterioro de valor reconocidas en otro resultado integral, propiedades, planta y equipo"},{"$f":"'822100 - Nota. Prop, plan y eq.'!$C$68","v":"ifrs-full:ReversalOfImpairmentLossRecognisedInOtherComprehensiveIncomePropertyPlantAndEquipment"}]
["/*",null,{"$f":"'822100 - Nota. Prop, plan y eq.'!$D$69","v":"Incrementos (disminuciones) por transferencias y otros cambios, propiedades, planta y equipo [resumen]"},{"$f":"'822100 - Nota. Prop, plan y eq.'!$C$69","v":"ifrs-full:IncreaseDecreaseThroughTransfersAndOtherChangesPropertyPlantAndEquipmentAbstract"}]
["/*",null,{"$f":"'822100 - Nota. Prop, plan y eq.'!$D$70","v":"Incrementos (disminuciones) por transferencias desde (hacia) propiedades de inversión, propiedades, planta y equipo"},{"$f":"'822100 - Nota. Prop, plan y eq.'!$C$70","v":"ifrs-full:IncreaseDecreaseThroughTransfersFromToInvestmentPropertyPropertyPlantAndEquipment"}]
["/*",null,{"$f":"'822100 - Nota. Prop, plan y eq.'!$D$71","v":"Incrementos (disminuciones) por transferencias desde construcciones en proceso , propiedades, planta y equipo"},{"$f":"'822100 - Nota. Prop, plan y eq.'!$C$71","v":"ifrs-full:IncreaseDecreaseThroughTransfersFromConstructionInProgressPropertyPlantAndEquipment"}]
["/*",null,{"$f":"'822100 - Nota. Prop, plan y eq.'!$D$72","v":"Incrementos (disminuciones) por otros cambios, propiedades, planta y equipo"},{"$f":"'822100 - Nota. Prop, plan y eq.'!$C$72","v":"ifrs-full:IncreaseDecreaseThroughOtherChangesPropertyPlantAndEquipment"}]
["",null,{"$f":"'822100 - Nota. Prop, plan y eq.'!$D$73","v":"Total incrementos (disminuciones) por transferencias y otros cambios, propiedades, planta y equipo"},{"$f":"'822100 - Nota. Prop, plan y eq.'!$C$73","v":"ifrs-full:IncreaseDecreaseThroughTransfersAndOtherChangesPropertyPlantAndEquipment"},0,"peso",{"$f":"'822100 - Nota. Prop, plan y eq.'!$U$73","v":0},800001965,"http://www.xbrl.org/scheme/companyName",{"$f":"Periodos!$D$3","v":"2016-01-01"},{"$f":"Periodos!$D$4","v":"2016-12-31"},{"$f":"'822100 - Nota. Prop, plan y eq.'!$D$50","v":"co-svsp-core_2017-12-31:PropiedadesPlantaYEquipoEje_G1"},{"$f":"'822100 - Nota. Prop, plan y eq.'!$U$49","v":"ifrs-full:LeaseholdImprovementsMember"}]
["/*",null,{"$f":"'822100 - Nota. Prop, plan y eq.'!$D$74","v":"Disposiciones y retiros de servicio, propiedades, planta y equipo [resumen]"},{"$f":"'822100 - Nota. Prop, plan y eq.'!$C$74","v":"ifrs-full:DisposalsAndRetirementsPropertyPlantAndEquipmentAbstract"}]
["/*",null,{"$f":"'822100 - Nota. Prop, plan y eq.'!$D$75","v":"Disposiciones, propiedades, planta y equipo"},{"$f":"'822100 - Nota. Prop, plan y eq.'!$C$75","v":"ifrs-full:DisposalsPropertyPlantAndEquipment"}]
["/*",null,{"$f":"'822100 - Nota. Prop, plan y eq.'!$D$76","v":"Retiros, propiedades, planta y equipo"},{"$f":"'822100 - Nota. Prop, plan y eq.'!$C$76","v":"ifrs-full:RetirementsPropertyPlantAndEquipment"}]
["",null,{"$f":"'822100 - Nota. Prop, plan y eq.'!$D$77","v":"Total de disposiciones y retiros de servicio, propiedades, planta y equipo"},{"$f":"'822100 - Nota. Prop, plan y eq.'!$C$77","v":"ifrs-full:DisposalsAndRetirementsPropertyPlantAndEquipment"},0,"peso",{"$f":"'822100 - Nota. Prop, plan y eq.'!$U$77","v":0},800001965,"http://www.xbrl.org/scheme/companyName",{"$f":"Periodos!$D$3","v":"2016-01-01"},{"$f":"Periodos!$D$4","v":"2016-12-31"},{"$f":"'822100 - Nota. Prop, plan y eq.'!$D$50","v":"co-svsp-core_2017-12-31:PropiedadesPlantaYEquipoEje_G1"},{"$f":"'822100 - Nota. Prop, plan y eq.'!$U$49","v":"ifrs-full:LeaseholdImprovementsMember"}]
["/*",null,{"$f":"'822100 - Nota. Prop, plan y eq.'!$D$78","v":"Disminuciones por clasificar como mantenidos para la venta, propiedades, planta y equipo"},{"$f":"'822100 - Nota. Prop, plan y eq.'!$C$78","v":"ifrs-full:DecreaseThroughClassifiedAsHeldForSalePropertyPlantAndEquipment"}]
["",null,{"$f":"'822100 - Nota. Prop, plan y eq.'!$D$79","v":"Total incremento (disminución) en propiedades, planta y equipo"},{"$f":"'822100 - Nota. Prop, plan y eq.'!$C$79","v":"ifrs-full:ChangesInPropertyPlantAndEquipment"},0,"peso",{"$f":"'822100 - Nota. Prop, plan y eq.'!$U$79","v":0},800001965,"http://www.xbrl.org/scheme/companyName",{"$f":"Periodos!$D$3","v":"2016-01-01"},{"$f":"Periodos!$D$4","v":"2016-12-31"},{"$f":"'822100 - Nota. Prop, plan y eq.'!$D$50","v":"co-svsp-core_2017-12-31:PropiedadesPlantaYEquipoEje_G1"},{"$f":"'822100 - Nota. Prop, plan y eq.'!$U$49","v":"ifrs-full:LeaseholdImprovementsMember"}]
["",null,{"$f":"'822100 - Nota. Prop, plan y eq.'!$D$80","v":"Propiedades, planta y equipo al final del periodo"},{"$f":"'822100 - Nota. Prop, plan y eq.'!$C$80","v":"co-svsp-core_2017-12-31:PropertyPlantAndEquipmentEndOfPeriod"},0,"peso",{"$f":"'822100 - Nota. Prop, plan y eq.'!$U$80","v":0},800001965,"http://www.xbrl.org/scheme/companyName",{"$f":"Periodos!$D$3","v":"2016-01-01"},{"$f":"Periodos!$D$4","v":"2016-12-31"},{"$f":"'822100 - Nota. Prop, plan y eq.'!$D$50","v":"co-svsp-core_2017-12-31:PropiedadesPlantaYEquipoEje_G1"},{"$f":"'822100 - Nota. Prop, plan y eq.'!$U$49","v":"ifrs-full:LeaseholdImprovementsMember"}]
["/*",null,"--18--"]
["/*",null,{"$f":"'822100 - Nota. Prop, plan y eq.'!$D$51","v":"Información a revelar detallada sobre propiedades, planta y equipo [partidas de los estados financieros]"},{"$f":"'822100 - Nota. Prop, plan y eq.'!$C$51","v":"ifrs-full:DisclosureOfPropertyPlantAndEquipmentLineItems"}]
["/*",null,{"$f":"'822100 - Nota. Prop, plan y eq.'!$D$52","v":"Bases de medición, propiedades, planta y equipo"},{"$f":"'822100 - Nota. Prop, plan y eq.'!$C$52","v":"ifrs-full:MeasurementBasesPropertyPlantAndEquipment"}]
["/*",null,{"$f":"'822100 - Nota. Prop, plan y eq.'!$D$53","v":"Método de depreciación, propiedades, planta y equipo"},{"$f":"'822100 - Nota. Prop, plan y eq.'!$C$53","v":"ifrs-full:DepreciationMethodPropertyPlantAndEquipment"}]
["/*",null,{"$f":"'822100 - Nota. Prop, plan y eq.'!$D$54","v":"Vidas útiles o tasas de depreciación, propiedades, planta y equipo"},{"$f":"'822100 - Nota. Prop, plan y eq.'!$C$54","v":"ifrs-full:UsefulLivesOrDepreciationRatesPropertyPlantAndEquipment"}]
[{"$f":"IF(G7137=\"\",\"/*\",\"\")","v":"/*"},null,{"$f":"'822100 - Nota. Prop, plan y eq.'!$D$55","v":"Fechas de vigencia de revaluación, propiedades, planta y equipo"},{"$f":"'822100 - Nota. Prop, plan y eq.'!$C$55","v":"ifrs-full:EffectiveDatesOfRevaluationPropertyPlantAndEquipment"}]
["/*",null,{"$f":"'822100 - Nota. Prop, plan y eq.'!$D$56","v":"Explicación de la implicación del tasador independiente en la revaluación, propiedades, planta y equipo"},{"$f":"'822100 - Nota. Prop, plan y eq.'!$C$56","v":"ifrs-full:ExplanationOfIndependentValuerUsedForRevaluationPropertyPlantAndEquipment"}]
["/*",null,{"$f":"'822100 - Nota. Prop, plan y eq.'!$D$57","v":"Explicación del método de revaluación y supuestos significativos, propiedad, planta y equipo"},{"$f":"'822100 - Nota. Prop, plan y eq.'!$C$57","v":"co-svsp-core_2017-12-31:ExplanationOfRevaluationMethodsAndSignificantAssumptionsPropertyPlantAndEquipment"}]
["/*",null,{"$f":"'822100 - Nota. Prop, plan y eq.'!$D$58","v":"Conciliación de cambios en propiedades, planta y equipo [resumen]"},{"$f":"'822100 - Nota. Prop, plan y eq.'!$C$58","v":"ifrs-full:ReconciliationOfChangesInPropertyPlantAndEquipmentAbstract"}]
["/*",null,{"$f":"'822100 - Nota. Prop, plan y eq.'!$D$59","v":"Propiedades, planta y equipo al comienzo del periodo"},{"$f":"'822100 - Nota. Prop, plan y eq.'!$C$59","v":"co-svsp-core_2017-12-31:PropertyPlantAndEquipmentBeginningOfPeriod"}]
["/*",null,{"$f":"'822100 - Nota. Prop, plan y eq.'!$D$60","v":"Cambios en propiedades, planta y equipo [resumen]"},{"$f":"'822100 - Nota. Prop, plan y eq.'!$C$60","v":"ifrs-full:ChangesInPropertyPlantAndEquipmentAbstract"}]
["/*",null,{"$f":"'822100 - Nota. Prop, plan y eq.'!$D$61","v":"Incrementos distintos de los procedentes de combinaciones de negocios, propiedades, planta y equipo"},{"$f":"'822100 - Nota. Prop, plan y eq.'!$C$61","v":"ifrs-full:AdditionsOtherThanThroughBusinessCombinationsPropertyPlantAndEquipment"}]
["/*",null,{"$f":"'822100 - Nota. Prop, plan y eq.'!$D$62","v":"Adquisiciones realizadas mediante combinaciones de negocios, propiedades, planta y equipo"},{"$f":"'822100 - Nota. Prop, plan y eq.'!$C$62","v":"ifrs-full:AcquisitionsThroughBusinessCombinationsPropertyPlantAndEquipment"}]
["/*",null,{"$f":"'822100 - Nota. Prop, plan y eq.'!$D$63","v":"Depreciación, propiedades, planta y equipo"},{"$f":"'822100 - Nota. Prop, plan y eq.'!$C$63","v":"ifrs-full:DepreciationPropertyPlantAndEquipment"}]
["/*",null,{"$f":"'822100 - Nota. Prop, plan y eq.'!$D$64","v":"Pérdidas por deterioro de valor reconocidas en el resultado del periodo, propiedades, planta y equipo"},{"$f":"'822100 - Nota. Prop, plan y eq.'!$C$64","v":"ifrs-full:ImpairmentLossRecognisedInProfitOrLossPropertyPlantAndEquipment"}]
["/*",null,{"$f":"'822100 - Nota. Prop, plan y eq.'!$D$65","v":"Reversión de pérdidas por deterioro de valor reconocidas en el resultado del periodo, propiedades, planta y equipo"},{"$f":"'822100 - Nota. Prop, plan y eq.'!$C$65","v":"ifrs-full:ReversalOfImpairmentLossRecognisedInProfitOrLossPropertyPlantAndEquipment"}]
["/*",null,{"$f":"'822100 - Nota. Prop, plan y eq.'!$D$66","v":"Incrementos (disminuciones) de revaluaciones, propiedades, planta y equipo"},{"$f":"'822100 - Nota. Prop, plan y eq.'!$C$66","v":"ifrs-full:RevaluationIncreaseDecreasePropertyPlantAndEquipment"}]
["/*",null,{"$f":"'822100 - Nota. Prop, plan y eq.'!$D$67","v":"Pérdidas por deterioro de valor reconocidas en otro resultado integral, propiedades, planta y equipo"},{"$f":"'822100 - Nota. Prop, plan y eq.'!$C$67","v":"ifrs-full:ImpairmentLossRecognisedInOtherComprehensiveIncomePropertyPlantAndEquipment"}]
["/*",null,{"$f":"'822100 - Nota. Prop, plan y eq.'!$D$68","v":"Reversión de pérdidas por deterioro de valor reconocidas en otro resultado integral, propiedades, planta y equipo"},{"$f":"'822100 - Nota. Prop, plan y eq.'!$C$68","v":"ifrs-full:ReversalOfImpairmentLossRecognisedInOtherComprehensiveIncomePropertyPlantAndEquipment"}]
["/*",null,{"$f":"'822100 - Nota. Prop, plan y eq.'!$D$69","v":"Incrementos (disminuciones) por transferencias y otros cambios, propiedades, planta y equipo [resumen]"},{"$f":"'822100 - Nota. Prop, plan y eq.'!$C$69","v":"ifrs-full:IncreaseDecreaseThroughTransfersAndOtherChangesPropertyPlantAndEquipmentAbstract"}]
["/*",null,{"$f":"'822100 - Nota. Prop, plan y eq.'!$D$70","v":"Incrementos (disminuciones) por transferencias desde (hacia) propiedades de inversión, propiedades, planta y equipo"},{"$f":"'822100 - Nota. Prop, plan y eq.'!$C$70","v":"ifrs-full:IncreaseDecreaseThroughTransfersFromToInvestmentPropertyPropertyPlantAndEquipment"}]
["/*",null,{"$f":"'822100 - Nota. Prop, plan y eq.'!$D$71","v":"Incrementos (disminuciones) por transferencias desde construcciones en proceso , propiedades, planta y equipo"},{"$f":"'822100 - Nota. Prop, plan y eq.'!$C$71","v":"ifrs-full:IncreaseDecreaseThroughTransfersFromConstructionInProgressPropertyPlantAndEquipment"}]
["/*",null,{"$f":"'822100 - Nota. Prop, plan y eq.'!$D$72","v":"Incrementos (disminuciones) por otros cambios, propiedades, planta y equipo"},{"$f":"'822100 - Nota. Prop, plan y eq.'!$C$72","v":"ifrs-full:IncreaseDecreaseThroughOtherChangesPropertyPlantAndEquipment"}]
["",null,{"$f":"'822100 - Nota. Prop, plan y eq.'!$D$73","v":"Total incrementos (disminuciones) por transferencias y otros cambios, propiedades, planta y equipo"},{"$f":"'822100 - Nota. Prop, plan y eq.'!$C$73","v":"ifrs-full:IncreaseDecreaseThroughTransfersAndOtherChangesPropertyPlantAndEquipment"},0,"peso",{"$f":"'822100 - Nota. Prop, plan y eq.'!$V$73","v":0},800001965,"http://www.xbrl.org/scheme/companyName",{"$f":"Periodos!$D$3","v":"2016-01-01"},{"$f":"Periodos!$D$4","v":"2016-12-31"},{"$f":"'822100 - Nota. Prop, plan y eq.'!$D$50","v":"co-svsp-core_2017-12-31:PropiedadesPlantaYEquipoEje_G1"},{"$f":"'822100 - Nota. Prop, plan y eq.'!$V$49","v":"ifrs-full:PropertyPlantAndEquipmentUnderOperatingLeasesMember"}]
["/*",null,{"$f":"'822100 - Nota. Prop, plan y eq.'!$D$74","v":"Disposiciones y retiros de servicio, propiedades, planta y equipo [resumen]"},{"$f":"'822100 - Nota. Prop, plan y eq.'!$C$74","v":"ifrs-full:DisposalsAndRetirementsPropertyPlantAndEquipmentAbstract"}]
["/*",null,{"$f":"'822100 - Nota. Prop, plan y eq.'!$D$75","v":"Disposiciones, propiedades, planta y equipo"},{"$f":"'822100 - Nota. Prop, plan y eq.'!$C$75","v":"ifrs-full:DisposalsPropertyPlantAndEquipment"}]
["/*",null,{"$f":"'822100 - Nota. Prop, plan y eq.'!$D$76","v":"Retiros, propiedades, planta y equipo"},{"$f":"'822100 - Nota. Prop, plan y eq.'!$C$76","v":"ifrs-full:RetirementsPropertyPlantAndEquipment"}]
["",null,{"$f":"'822100 - Nota. Prop, plan y eq.'!$D$77","v":"Total de disposiciones y retiros de servicio, propiedades, planta y equipo"},{"$f":"'822100 - Nota. Prop, plan y eq.'!$C$77","v":"ifrs-full:DisposalsAndRetirementsPropertyPlantAndEquipment"},0,"peso",{"$f":"'822100 - Nota. Prop, plan y eq.'!$V$77","v":0},800001965,"http://www.xbrl.org/scheme/companyName",{"$f":"Periodos!$D$3","v":"2016-01-01"},{"$f":"Periodos!$D$4","v":"2016-12-31"},{"$f":"'822100 - Nota. Prop, plan y eq.'!$D$50","v":"co-svsp-core_2017-12-31:PropiedadesPlantaYEquipoEje_G1"},{"$f":"'822100 - Nota. Prop, plan y eq.'!$V$49","v":"ifrs-full:PropertyPlantAndEquipmentUnderOperatingLeasesMember"}]
["/*",null,{"$f":"'822100 - Nota. Prop, plan y eq.'!$D$78","v":"Disminuciones por clasificar como mantenidos para la venta, propiedades, planta y equipo"},{"$f":"'822100 - Nota. Prop, plan y eq.'!$C$78","v":"ifrs-full:DecreaseThroughClassifiedAsHeldForSalePropertyPlantAndEquipment"}]
["",null,{"$f":"'822100 - Nota. Prop, plan y eq.'!$D$79","v":"Total incremento (disminución) en propiedades, planta y equipo"},{"$f":"'822100 - Nota. Prop, plan y eq.'!$C$79","v":"ifrs-full:ChangesInPropertyPlantAndEquipment"},0,"peso",{"$f":"'822100 - Nota. Prop, plan y eq.'!$V$79","v":0},800001965,"http://www.xbrl.org/scheme/companyName",{"$f":"Periodos!$D$3","v":"2016-01-01"},{"$f":"Periodos!$D$4","v":"2016-12-31"},{"$f":"'822100 - Nota. Prop, plan y eq.'!$D$50","v":"co-svsp-core_2017-12-31:PropiedadesPlantaYEquipoEje_G1"},{"$f":"'822100 - Nota. Prop, plan y eq.'!$V$49","v":"ifrs-full:PropertyPlantAndEquipmentUnderOperatingLeasesMember"}]
["",null,{"$f":"'822100 - Nota. Prop, plan y eq.'!$D$80","v":"Propiedades, planta y equipo al final del periodo"},{"$f":"'822100 - Nota. Prop, plan y eq.'!$C$80","v":"co-svsp-core_2017-12-31:PropertyPlantAndEquipmentEndOfPeriod"},0,"peso",{"$f":"'822100 - Nota. Prop, plan y eq.'!$V$80","v":0},800001965,"http://www.xbrl.org/scheme/companyName",{"$f":"Periodos!$D$3","v":"2016-01-01"},{"$f":"Periodos!$D$4","v":"2016-12-31"},{"$f":"'822100 - Nota. Prop, plan y eq.'!$D$50","v":"co-svsp-core_2017-12-31:PropiedadesPlantaYEquipoEje_G1"},{"$f":"'822100 - Nota. Prop, plan y eq.'!$V$49","v":"ifrs-full:PropertyPlantAndEquipmentUnderOperatingLeasesMember"}]
["/*",null,"--19--"]
["/*",null,{"$f":"'822100 - Nota. Prop, plan y eq.'!$D$51","v":"Información a revelar detallada sobre propiedades, planta y equipo [partidas de los estados financieros]"},{"$f":"'822100 - Nota. Prop, plan y eq.'!$C$51","v":"ifrs-full:DisclosureOfPropertyPlantAndEquipmentLineItems"}]
["/*",null,{"$f":"'822100 - Nota. Prop, plan y eq.'!$D$52","v":"Bases de medición, propiedades, planta y equipo"},{"$f":"'822100 - Nota. Prop, plan y eq.'!$C$52","v":"ifrs-full:MeasurementBasesPropertyPlantAndEquipment"}]
["/*",null,{"$f":"'822100 - Nota. Prop, plan y eq.'!$D$53","v":"Método de depreciación, propiedades, planta y equipo"},{"$f":"'822100 - Nota. Prop, plan y eq.'!$C$53","v":"ifrs-full:DepreciationMethodPropertyPlantAndEquipment"}]
["/*",null,{"$f":"'822100 - Nota. Prop, plan y eq.'!$D$54","v":"Vidas útiles o tasas de depreciación, propiedades, planta y equipo"},{"$f":"'822100 - Nota. Prop, plan y eq.'!$C$54","v":"ifrs-full:UsefulLivesOrDepreciationRatesPropertyPlantAndEquipment"}]
["/*",null,{"$f":"'822100 - Nota. Prop, plan y eq.'!$D$55","v":"Fechas de vigencia de revaluación, propiedades, planta y equipo"},{"$f":"'822100 - Nota. Prop, plan y eq.'!$C$55","v":"ifrs-full:EffectiveDatesOfRevaluationPropertyPlantAndEquipment"}]
["/*",null,{"$f":"'822100 - Nota. Prop, plan y eq.'!$D$56","v":"Explicación de la implicación del tasador independiente en la revaluación, propiedades, planta y equipo"},{"$f":"'822100 - Nota. Prop, plan y eq.'!$C$56","v":"ifrs-full:ExplanationOfIndependentValuerUsedForRevaluationPropertyPlantAndEquipment"}]
["/*",null,{"$f":"'822100 - Nota. Prop, plan y eq.'!$D$57","v":"Explicación del método de revaluación y supuestos significativos, propiedad, planta y equipo"},{"$f":"'822100 - Nota. Prop, plan y eq.'!$C$57","v":"co-svsp-core_2017-12-31:ExplanationOfRevaluationMethodsAndSignificantAssumptionsPropertyPlantAndEquipment"}]
["/*",null,{"$f":"'822100 - Nota. Prop, plan y eq.'!$D$58","v":"Conciliación de cambios en propiedades, planta y equipo [resumen]"},{"$f":"'822100 - Nota. Prop, plan y eq.'!$C$58","v":"ifrs-full:ReconciliationOfChangesInPropertyPlantAndEquipmentAbstract"}]
["/*",null,{"$f":"'822100 - Nota. Prop, plan y eq.'!$D$59","v":"Propiedades, planta y equipo al comienzo del periodo"},{"$f":"'822100 - Nota. Prop, plan y eq.'!$C$59","v":"co-svsp-core_2017-12-31:PropertyPlantAndEquipmentBeginningOfPeriod"}]
["/*",null,{"$f":"'822100 - Nota. Prop, plan y eq.'!$D$60","v":"Cambios en propiedades, planta y equipo [resumen]"},{"$f":"'822100 - Nota. Prop, plan y eq.'!$C$60","v":"ifrs-full:ChangesInPropertyPlantAndEquipmentAbstract"}]
["/*",null,{"$f":"'822100 - Nota. Prop, plan y eq.'!$D$61","v":"Incrementos distintos de los procedentes de combinaciones de negocios, propiedades, planta y equipo"},{"$f":"'822100 - Nota. Prop, plan y eq.'!$C$61","v":"ifrs-full:AdditionsOtherThanThroughBusinessCombinationsPropertyPlantAndEquipment"}]
["/*",null,{"$f":"'822100 - Nota. Prop, plan y eq.'!$D$62","v":"Adquisiciones realizadas mediante combinaciones de negocios, propiedades, planta y equipo"},{"$f":"'822100 - Nota. Prop, plan y eq.'!$C$62","v":"ifrs-full:AcquisitionsThroughBusinessCombinationsPropertyPlantAndEquipment"}]
["/*",null,{"$f":"'822100 - Nota. Prop, plan y eq.'!$D$63","v":"Depreciación, propiedades, planta y equipo"},{"$f":"'822100 - Nota. Prop, plan y eq.'!$C$63","v":"ifrs-full:DepreciationPropertyPlantAndEquipment"}]
["/*",null,{"$f":"'822100 - Nota. Prop, plan y eq.'!$D$64","v":"Pérdidas por deterioro de valor reconocidas en el resultado del periodo, propiedades, planta y equipo"},{"$f":"'822100 - Nota. Prop, plan y eq.'!$C$64","v":"ifrs-full:ImpairmentLossRecognisedInProfitOrLossPropertyPlantAndEquipment"}]
["/*",null,{"$f":"'822100 - Nota. Prop, plan y eq.'!$D$65","v":"Reversión de pérdidas por deterioro de valor reconocidas en el resultado del periodo, propiedades, planta y equipo"},{"$f":"'822100 - Nota. Prop, plan y eq.'!$C$65","v":"ifrs-full:ReversalOfImpairmentLossRecognisedInProfitOrLossPropertyPlantAndEquipment"}]
["/*",null,{"$f":"'822100 - Nota. Prop, plan y eq.'!$D$66","v":"Incrementos (disminuciones) de revaluaciones, propiedades, planta y equipo"},{"$f":"'822100 - Nota. Prop, plan y eq.'!$C$66","v":"ifrs-full:RevaluationIncreaseDecreasePropertyPlantAndEquipment"}]
["/*",null,{"$f":"'822100 - Nota. Prop, plan y eq.'!$D$67","v":"Pérdidas por deterioro de valor reconocidas en otro resultado integral, propiedades, planta y equipo"},{"$f":"'822100 - Nota. Prop, plan y eq.'!$C$67","v":"ifrs-full:ImpairmentLossRecognisedInOtherComprehensiveIncomePropertyPlantAndEquipment"}]
["/*",null,{"$f":"'822100 - Nota. Prop, plan y eq.'!$D$68","v":"Reversión de pérdidas por deterioro de valor reconocidas en otro resultado integral, propiedades, planta y equipo"},{"$f":"'822100 - Nota. Prop, plan y eq.'!$C$68","v":"ifrs-full:ReversalOfImpairmentLossRecognisedInOtherComprehensiveIncomePropertyPlantAndEquipment"}]
["/*",null,{"$f":"'822100 - Nota. Prop, plan y eq.'!$D$69","v":"Incrementos (disminuciones) por transferencias y otros cambios, propiedades, planta y equipo [resumen]"},{"$f":"'822100 - Nota. Prop, plan y eq.'!$C$69","v":"ifrs-full:IncreaseDecreaseThroughTransfersAndOtherChangesPropertyPlantAndEquipmentAbstract"}]
["/*",null,{"$f":"'822100 - Nota. Prop, plan y eq.'!$D$70","v":"Incrementos (disminuciones) por transferencias desde (hacia) propiedades de inversión, propiedades, planta y equipo"},{"$f":"'822100 - Nota. Prop, plan y eq.'!$C$70","v":"ifrs-full:IncreaseDecreaseThroughTransfersFromToInvestmentPropertyPropertyPlantAndEquipment"}]
["/*",null,{"$f":"'822100 - Nota. Prop, plan y eq.'!$D$71","v":"Incrementos (disminuciones) por transferencias desde construcciones en proceso , propiedades, planta y equipo"},{"$f":"'822100 - Nota. Prop, plan y eq.'!$C$71","v":"ifrs-full:IncreaseDecreaseThroughTransfersFromConstructionInProgressPropertyPlantAndEquipment"}]
["/*",null,{"$f":"'822100 - Nota. Prop, plan y eq.'!$D$72","v":"Incrementos (disminuciones) por otros cambios, propiedades, planta y equipo"},{"$f":"'822100 - Nota. Prop, plan y eq.'!$C$72","v":"ifrs-full:IncreaseDecreaseThroughOtherChangesPropertyPlantAndEquipment"}]
["",null,{"$f":"'822100 - Nota. Prop, plan y eq.'!$D$73","v":"Total incrementos (disminuciones) por transferencias y otros cambios, propiedades, planta y equipo"},{"$f":"'822100 - Nota. Prop, plan y eq.'!$C$73","v":"ifrs-full:IncreaseDecreaseThroughTransfersAndOtherChangesPropertyPlantAndEquipment"},0,"peso",{"$f":"'822100 - Nota. Prop, plan y eq.'!$W$73","v":0},800001965,"http://www.xbrl.org/scheme/companyName",{"$f":"Periodos!$D$3","v":"2016-01-01"},{"$f":"Periodos!$D$4","v":"2016-12-31"},{"$f":"'822100 - Nota. Prop, plan y eq.'!$D$50","v":"co-svsp-core_2017-12-31:PropiedadesPlantaYEquipoEje_G1"},{"$f":"'822100 - Nota. Prop, plan y eq.'!$W$49","v":"ifrs-full:ConstructionInProgressMember"}]
["/*",null,{"$f":"'822100 - Nota. Prop, plan y eq.'!$D$74","v":"Disposiciones y retiros de servicio, propiedades, planta y equipo [resumen]"},{"$f":"'822100 - Nota. Prop, plan y eq.'!$C$74","v":"ifrs-full:DisposalsAndRetirementsPropertyPlantAndEquipmentAbstract"}]
["/*",null,{"$f":"'822100 - Nota. Prop, plan y eq.'!$D$75","v":"Disposiciones, propiedades, planta y equipo"},{"$f":"'822100 - Nota. Prop, plan y eq.'!$C$75","v":"ifrs-full:DisposalsPropertyPlantAndEquipment"}]
["/*",null,{"$f":"'822100 - Nota. Prop, plan y eq.'!$D$76","v":"Retiros, propiedades, planta y equipo"},{"$f":"'822100 - Nota. Prop, plan y eq.'!$C$76","v":"ifrs-full:RetirementsPropertyPlantAndEquipment"}]
["",null,{"$f":"'822100 - Nota. Prop, plan y eq.'!$D$77","v":"Total de disposiciones y retiros de servicio, propiedades, planta y equipo"},{"$f":"'822100 - Nota. Prop, plan y eq.'!$C$77","v":"ifrs-full:DisposalsAndRetirementsPropertyPlantAndEquipment"},0,"peso",{"$f":"'822100 - Nota. Prop, plan y eq.'!$W$77","v":0},800001965,"http://www.xbrl.org/scheme/companyName",{"$f":"Periodos!$D$3","v":"2016-01-01"},{"$f":"Periodos!$D$4","v":"2016-12-31"},{"$f":"'822100 - Nota. Prop, plan y eq.'!$D$50","v":"co-svsp-core_2017-12-31:PropiedadesPlantaYEquipoEje_G1"},{"$f":"'822100 - Nota. Prop, plan y eq.'!$W$49","v":"ifrs-full:ConstructionInProgressMember"}]
["/*",null,{"$f":"'822100 - Nota. Prop, plan y eq.'!$D$78","v":"Disminuciones por clasificar como mantenidos para la venta, propiedades, planta y equipo"},{"$f":"'822100 - Nota. Prop, plan y eq.'!$C$78","v":"ifrs-full:DecreaseThroughClassifiedAsHeldForSalePropertyPlantAndEquipment"}]
["",null,{"$f":"'822100 - Nota. Prop, plan y eq.'!$D$79","v":"Total incremento (disminución) en propiedades, planta y equipo"},{"$f":"'822100 - Nota. Prop, plan y eq.'!$C$79","v":"ifrs-full:ChangesInPropertyPlantAndEquipment"},0,"peso",{"$f":"'822100 - Nota. Prop, plan y eq.'!$W$79","v":0},800001965,"http://www.xbrl.org/scheme/companyName",{"$f":"Periodos!$D$3","v":"2016-01-01"},{"$f":"Periodos!$D$4","v":"2016-12-31"},{"$f":"'822100 - Nota. Prop, plan y eq.'!$D$50","v":"co-svsp-core_2017-12-31:PropiedadesPlantaYEquipoEje_G1"},{"$f":"'822100 - Nota. Prop, plan y eq.'!$W$49","v":"ifrs-full:ConstructionInProgressMember"}]
["",null,{"$f":"'822100 - Nota. Prop, plan y eq.'!$D$80","v":"Propiedades, planta y equipo al final del periodo"},{"$f":"'822100 - Nota. Prop, plan y eq.'!$C$80","v":"co-svsp-core_2017-12-31:PropertyPlantAndEquipmentEndOfPeriod"},0,"peso",{"$f":"'822100 - Nota. Prop, plan y eq.'!$W$80","v":0},800001965,"http://www.xbrl.org/scheme/companyName",{"$f":"Periodos!$D$3","v":"2016-01-01"},{"$f":"Periodos!$D$4","v":"2016-12-31"},{"$f":"'822100 - Nota. Prop, plan y eq.'!$D$50","v":"co-svsp-core_2017-12-31:PropiedadesPlantaYEquipoEje_G1"},{"$f":"'822100 - Nota. Prop, plan y eq.'!$W$49","v":"ifrs-full:ConstructionInProgressMember"}]
["/*",null,"--20--"]
["/*",null,{"$f":"'822100 - Nota. Prop, plan y eq.'!$D$51","v":"Información a revelar detallada sobre propiedades, planta y equipo [partidas de los estados financieros]"},{"$f":"'822100 - Nota. Prop, plan y eq.'!$C$51","v":"ifrs-full:DisclosureOfPropertyPlantAndEquipmentLineItems"}]
["/*",null,{"$f":"'822100 - Nota. Prop, plan y eq.'!$D$52","v":"Bases de medición, propiedades, planta y equipo"},{"$f":"'822100 - Nota. Prop, plan y eq.'!$C$52","v":"ifrs-full:MeasurementBasesPropertyPlantAndEquipment"}]
["/*",null,{"$f":"'822100 - Nota. Prop, plan y eq.'!$D$53","v":"Método de depreciación, propiedades, planta y equipo"},{"$f":"'822100 - Nota. Prop, plan y eq.'!$C$53","v":"ifrs-full:DepreciationMethodPropertyPlantAndEquipment"}]
["/*",null,{"$f":"'822100 - Nota. Prop, plan y eq.'!$D$54","v":"Vidas útiles o tasas de depreciación, propiedades, planta y equipo"},{"$f":"'822100 - Nota. Prop, plan y eq.'!$C$54","v":"ifrs-full:UsefulLivesOrDepreciationRatesPropertyPlantAndEquipment"}]
["/*",null,{"$f":"'822100 - Nota. Prop, plan y eq.'!$D$55","v":"Fechas de vigencia de revaluación, propiedades, planta y equipo"},{"$f":"'822100 - Nota. Prop, plan y eq.'!$C$55","v":"ifrs-full:EffectiveDatesOfRevaluationPropertyPlantAndEquipment"}]
["/*",null,{"$f":"'822100 - Nota. Prop, plan y eq.'!$D$56","v":"Explicación de la implicación del tasador independiente en la revaluación, propiedades, planta y equipo"},{"$f":"'822100 - Nota. Prop, plan y eq.'!$C$56","v":"ifrs-full:ExplanationOfIndependentValuerUsedForRevaluationPropertyPlantAndEquipment"}]
[{"$f":"IF(G7201=\"\",\"/*\",\"\")","v":"/*"},null,{"$f":"'822100 - Nota. Prop, plan y eq.'!$D$57","v":"Explicación del método de revaluación y supuestos significativos, propiedad, planta y equipo"},{"$f":"'822100 - Nota. Prop, plan y eq.'!$C$57","v":"co-svsp-core_2017-12-31:ExplanationOfRevaluationMethodsAndSignificantAssumptionsPropertyPlantAndEquipment"}]
["/*",null,{"$f":"'822100 - Nota. Prop, plan y eq.'!$D$58","v":"Conciliación de cambios en propiedades, planta y equipo [resumen]"},{"$f":"'822100 - Nota. Prop, plan y eq.'!$C$58","v":"ifrs-full:ReconciliationOfChangesInPropertyPlantAndEquipmentAbstract"}]
["/*",null,{"$f":"'822100 - Nota. Prop, plan y eq.'!$D$59","v":"Propiedades, planta y equipo al comienzo del periodo"},{"$f":"'822100 - Nota. Prop, plan y eq.'!$C$59","v":"co-svsp-core_2017-12-31:PropertyPlantAndEquipmentBeginningOfPeriod"}]
["/*",null,{"$f":"'822100 - Nota. Prop, plan y eq.'!$D$60","v":"Cambios en propiedades, planta y equipo [resumen]"},{"$f":"'822100 - Nota. Prop, plan y eq.'!$C$60","v":"ifrs-full:ChangesInPropertyPlantAndEquipmentAbstract"}]
["/*",null,{"$f":"'822100 - Nota. Prop, plan y eq.'!$D$61","v":"Incrementos distintos de los procedentes de combinaciones de negocios, propiedades, planta y equipo"},{"$f":"'822100 - Nota. Prop, plan y eq.'!$C$61","v":"ifrs-full:AdditionsOtherThanThroughBusinessCombinationsPropertyPlantAndEquipment"}]
["/*",null,{"$f":"'822100 - Nota. Prop, plan y eq.'!$D$62","v":"Adquisiciones realizadas mediante combinaciones de negocios, propiedades, planta y equipo"},{"$f":"'822100 - Nota. Prop, plan y eq.'!$C$62","v":"ifrs-full:AcquisitionsThroughBusinessCombinationsPropertyPlantAndEquipment"}]
["/*",null,{"$f":"'822100 - Nota. Prop, plan y eq.'!$D$63","v":"Depreciación, propiedades, planta y equipo"},{"$f":"'822100 - Nota. Prop, plan y eq.'!$C$63","v":"ifrs-full:DepreciationPropertyPlantAndEquipment"}]
["/*",null,{"$f":"'822100 - Nota. Prop, plan y eq.'!$D$64","v":"Pérdidas por deterioro de valor reconocidas en el resultado del periodo, propiedades, planta y equipo"},{"$f":"'822100 - Nota. Prop, plan y eq.'!$C$64","v":"ifrs-full:ImpairmentLossRecognisedInProfitOrLossPropertyPlantAndEquipment"}]
["/*",null,{"$f":"'822100 - Nota. Prop, plan y eq.'!$D$65","v":"Reversión de pérdidas por deterioro de valor reconocidas en el resultado del periodo, propiedades, planta y equipo"},{"$f":"'822100 - Nota. Prop, plan y eq.'!$C$65","v":"ifrs-full:ReversalOfImpairmentLossRecognisedInProfitOrLossPropertyPlantAndEquipment"}]
["/*",null,{"$f":"'822100 - Nota. Prop, plan y eq.'!$D$66","v":"Incrementos (disminuciones) de revaluaciones, propiedades, planta y equipo"},{"$f":"'822100 - Nota. Prop, plan y eq.'!$C$66","v":"ifrs-full:RevaluationIncreaseDecreasePropertyPlantAndEquipment"}]
["/*",null,{"$f":"'822100 - Nota. Prop, plan y eq.'!$D$67","v":"Pérdidas por deterioro de valor reconocidas en otro resultado integral, propiedades, planta y equipo"},{"$f":"'822100 - Nota. Prop, plan y eq.'!$C$67","v":"ifrs-full:ImpairmentLossRecognisedInOtherComprehensiveIncomePropertyPlantAndEquipment"}]
["/*",null,{"$f":"'822100 - Nota. Prop, plan y eq.'!$D$68","v":"Reversión de pérdidas por deterioro de valor reconocidas en otro resultado integral, propiedades, planta y equipo"},{"$f":"'822100 - Nota. Prop, plan y eq.'!$C$68","v":"ifrs-full:ReversalOfImpairmentLossRecognisedInOtherComprehensiveIncomePropertyPlantAndEquipment"}]
["/*",null,{"$f":"'822100 - Nota. Prop, plan y eq.'!$D$69","v":"Incrementos (disminuciones) por transferencias y otros cambios, propiedades, planta y equipo [resumen]"},{"$f":"'822100 - Nota. Prop, plan y eq.'!$C$69","v":"ifrs-full:IncreaseDecreaseThroughTransfersAndOtherChangesPropertyPlantAndEquipmentAbstract"}]
["/*",null,{"$f":"'822100 - Nota. Prop, plan y eq.'!$D$70","v":"Incrementos (disminuciones) por transferencias desde (hacia) propiedades de inversión, propiedades, planta y equipo"},{"$f":"'822100 - Nota. Prop, plan y eq.'!$C$70","v":"ifrs-full:IncreaseDecreaseThroughTransfersFromToInvestmentPropertyPropertyPlantAndEquipment"}]
["/*",null,{"$f":"'822100 - Nota. Prop, plan y eq.'!$D$71","v":"Incrementos (disminuciones) por transferencias desde construcciones en proceso , propiedades, planta y equipo"},{"$f":"'822100 - Nota. Prop, plan y eq.'!$C$71","v":"ifrs-full:IncreaseDecreaseThroughTransfersFromConstructionInProgressPropertyPlantAndEquipment"}]
["/*",null,{"$f":"'822100 - Nota. Prop, plan y eq.'!$D$72","v":"Incrementos (disminuciones) por otros cambios, propiedades, planta y equipo"},{"$f":"'822100 - Nota. Prop, plan y eq.'!$C$72","v":"ifrs-full:IncreaseDecreaseThroughOtherChangesPropertyPlantAndEquipment"}]
["",null,{"$f":"'822100 - Nota. Prop, plan y eq.'!$D$73","v":"Total incrementos (disminuciones) por transferencias y otros cambios, propiedades, planta y equipo"},{"$f":"'822100 - Nota. Prop, plan y eq.'!$C$73","v":"ifrs-full:IncreaseDecreaseThroughTransfersAndOtherChangesPropertyPlantAndEquipment"},0,"peso",{"$f":"'822100 - Nota. Prop, plan y eq.'!$X$73","v":0},800001965,"http://www.xbrl.org/scheme/companyName",{"$f":"Periodos!$D$3","v":"2016-01-01"},{"$f":"Periodos!$D$4","v":"2016-12-31"},{"$f":"'822100 - Nota. Prop, plan y eq.'!$D$50","v":"co-svsp-core_2017-12-31:PropiedadesPlantaYEquipoEje_G1"},{"$f":"'822100 - Nota. Prop, plan y eq.'!$X$49","v":"co-svsp-core_2017-12-31:CaninosMiembro"}]
["/*",null,{"$f":"'822100 - Nota. Prop, plan y eq.'!$D$74","v":"Disposiciones y retiros de servicio, propiedades, planta y equipo [resumen]"},{"$f":"'822100 - Nota. Prop, plan y eq.'!$C$74","v":"ifrs-full:DisposalsAndRetirementsPropertyPlantAndEquipmentAbstract"}]
["/*",null,{"$f":"'822100 - Nota. Prop, plan y eq.'!$D$75","v":"Disposiciones, propiedades, planta y equipo"},{"$f":"'822100 - Nota. Prop, plan y eq.'!$C$75","v":"ifrs-full:DisposalsPropertyPlantAndEquipment"}]
["/*",null,{"$f":"'822100 - Nota. Prop, plan y eq.'!$D$76","v":"Retiros, propiedades, planta y equipo"},{"$f":"'822100 - Nota. Prop, plan y eq.'!$C$76","v":"ifrs-full:RetirementsPropertyPlantAndEquipment"}]
["",null,{"$f":"'822100 - Nota. Prop, plan y eq.'!$D$77","v":"Total de disposiciones y retiros de servicio, propiedades, planta y equipo"},{"$f":"'822100 - Nota. Prop, plan y eq.'!$C$77","v":"ifrs-full:DisposalsAndRetirementsPropertyPlantAndEquipment"},0,"peso",{"$f":"'822100 - Nota. Prop, plan y eq.'!$X$77","v":0},800001965,"http://www.xbrl.org/scheme/companyName",{"$f":"Periodos!$D$3","v":"2016-01-01"},{"$f":"Periodos!$D$4","v":"2016-12-31"},{"$f":"'822100 - Nota. Prop, plan y eq.'!$D$50","v":"co-svsp-core_2017-12-31:PropiedadesPlantaYEquipoEje_G1"},{"$f":"'822100 - Nota. Prop, plan y eq.'!$X$49","v":"co-svsp-core_2017-12-31:CaninosMiembro"}]
["/*",null,{"$f":"'822100 - Nota. Prop, plan y eq.'!$D$78","v":"Disminuciones por clasificar como mantenidos para la venta, propiedades, planta y equipo"},{"$f":"'822100 - Nota. Prop, plan y eq.'!$C$78","v":"ifrs-full:DecreaseThroughClassifiedAsHeldForSalePropertyPlantAndEquipment"}]
["",null,{"$f":"'822100 - Nota. Prop, plan y eq.'!$D$79","v":"Total incremento (disminución) en propiedades, planta y equipo"},{"$f":"'822100 - Nota. Prop, plan y eq.'!$C$79","v":"ifrs-full:ChangesInPropertyPlantAndEquipment"},0,"peso",{"$f":"'822100 - Nota. Prop, plan y eq.'!$X$79","v":0},800001965,"http://www.xbrl.org/scheme/companyName",{"$f":"Periodos!$D$3","v":"2016-01-01"},{"$f":"Periodos!$D$4","v":"2016-12-31"},{"$f":"'822100 - Nota. Prop, plan y eq.'!$D$50","v":"co-svsp-core_2017-12-31:PropiedadesPlantaYEquipoEje_G1"},{"$f":"'822100 - Nota. Prop, plan y eq.'!$X$49","v":"co-svsp-core_2017-12-31:CaninosMiembro"}]
["",null,{"$f":"'822100 - Nota. Prop, plan y eq.'!$D$80","v":"Propiedades, planta y equipo al final del periodo"},{"$f":"'822100 - Nota. Prop, plan y eq.'!$C$80","v":"co-svsp-core_2017-12-31:PropertyPlantAndEquipmentEndOfPeriod"},0,"peso",{"$f":"'822100 - Nota. Prop, plan y eq.'!$X$80","v":0},800001965,"http://www.xbrl.org/scheme/companyName",{"$f":"Periodos!$D$3","v":"2016-01-01"},{"$f":"Periodos!$D$4","v":"2016-12-31"},{"$f":"'822100 - Nota. Prop, plan y eq.'!$D$50","v":"co-svsp-core_2017-12-31:PropiedadesPlantaYEquipoEje_G1"},{"$f":"'822100 - Nota. Prop, plan y eq.'!$X$49","v":"co-svsp-core_2017-12-31:CaninosMiembro"}]
["/*",null,"--21--"]
["/*",null,{"$f":"'822100 - Nota. Prop, plan y eq.'!$D$51","v":"Información a revelar detallada sobre propiedades, planta y equipo [partidas de los estados financieros]"},{"$f":"'822100 - Nota. Prop, plan y eq.'!$C$51","v":"ifrs-full:DisclosureOfPropertyPlantAndEquipmentLineItems"}]
["/*",null,{"$f":"'822100 - Nota. Prop, plan y eq.'!$D$52","v":"Bases de medición, propiedades, planta y equipo"},{"$f":"'822100 - Nota. Prop, plan y eq.'!$C$52","v":"ifrs-full:MeasurementBasesPropertyPlantAndEquipment"}]
["/*",null,{"$f":"'822100 - Nota. Prop, plan y eq.'!$D$53","v":"Método de depreciación, propiedades, planta y equipo"},{"$f":"'822100 - Nota. Prop, plan y eq.'!$C$53","v":"ifrs-full:DepreciationMethodPropertyPlantAndEquipment"}]
["/*",null,{"$f":"'822100 - Nota. Prop, plan y eq.'!$D$54","v":"Vidas útiles o tasas de depreciación, propiedades, planta y equipo"},{"$f":"'822100 - Nota. Prop, plan y eq.'!$C$54","v":"ifrs-full:UsefulLivesOrDepreciationRatesPropertyPlantAndEquipment"}]
["/*",null,{"$f":"'822100 - Nota. Prop, plan y eq.'!$D$55","v":"Fechas de vigencia de revaluación, propiedades, planta y equipo"},{"$f":"'822100 - Nota. Prop, plan y eq.'!$C$55","v":"ifrs-full:EffectiveDatesOfRevaluationPropertyPlantAndEquipment"}]
["/*",null,{"$f":"'822100 - Nota. Prop, plan y eq.'!$D$56","v":"Explicación de la implicación del tasador independiente en la revaluación, propiedades, planta y equipo"},{"$f":"'822100 - Nota. Prop, plan y eq.'!$C$56","v":"ifrs-full:ExplanationOfIndependentValuerUsedForRevaluationPropertyPlantAndEquipment"}]
["/*",null,{"$f":"'822100 - Nota. Prop, plan y eq.'!$D$57","v":"Explicación del método de revaluación y supuestos significativos, propiedad, planta y equipo"},{"$f":"'822100 - Nota. Prop, plan y eq.'!$C$57","v":"co-svsp-core_2017-12-31:ExplanationOfRevaluationMethodsAndSignificantAssumptionsPropertyPlantAndEquipment"}]
["/*",null,{"$f":"'822100 - Nota. Prop, plan y eq.'!$D$58","v":"Conciliación de cambios en propiedades, planta y equipo [resumen]"},{"$f":"'822100 - Nota. Prop, plan y eq.'!$C$58","v":"ifrs-full:ReconciliationOfChangesInPropertyPlantAndEquipmentAbstract"}]
["/*",null,{"$f":"'822100 - Nota. Prop, plan y eq.'!$D$59","v":"Propiedades, planta y equipo al comienzo del periodo"},{"$f":"'822100 - Nota. Prop, plan y eq.'!$C$59","v":"co-svsp-core_2017-12-31:PropertyPlantAndEquipmentBeginningOfPeriod"}]
["/*",null,{"$f":"'822100 - Nota. Prop, plan y eq.'!$D$60","v":"Cambios en propiedades, planta y equipo [resumen]"},{"$f":"'822100 - Nota. Prop, plan y eq.'!$C$60","v":"ifrs-full:ChangesInPropertyPlantAndEquipmentAbstract"}]
["/*",null,{"$f":"'822100 - Nota. Prop, plan y eq.'!$D$61","v":"Incrementos distintos de los procedentes de combinaciones de negocios, propiedades, planta y equipo"},{"$f":"'822100 - Nota. Prop, plan y eq.'!$C$61","v":"ifrs-full:AdditionsOtherThanThroughBusinessCombinationsPropertyPlantAndEquipment"}]
["/*",null,{"$f":"'822100 - Nota. Prop, plan y eq.'!$D$62","v":"Adquisiciones realizadas mediante combinaciones de negocios, propiedades, planta y equipo"},{"$f":"'822100 - Nota. Prop, plan y eq.'!$C$62","v":"ifrs-full:AcquisitionsThroughBusinessCombinationsPropertyPlantAndEquipment"}]
["/*",null,{"$f":"'822100 - Nota. Prop, plan y eq.'!$D$63","v":"Depreciación, propiedades, planta y equipo"},{"$f":"'822100 - Nota. Prop, plan y eq.'!$C$63","v":"ifrs-full:DepreciationPropertyPlantAndEquipment"}]
["/*",null,{"$f":"'822100 - Nota. Prop, plan y eq.'!$D$64","v":"Pérdidas por deterioro de valor reconocidas en el resultado del periodo, propiedades, planta y equipo"},{"$f":"'822100 - Nota. Prop, plan y eq.'!$C$64","v":"ifrs-full:ImpairmentLossRecognisedInProfitOrLossPropertyPlantAndEquipment"}]
["/*",null,{"$f":"'822100 - Nota. Prop, plan y eq.'!$D$65","v":"Reversión de pérdidas por deterioro de valor reconocidas en el resultado del periodo, propiedades, planta y equipo"},{"$f":"'822100 - Nota. Prop, plan y eq.'!$C$65","v":"ifrs-full:ReversalOfImpairmentLossRecognisedInProfitOrLossPropertyPlantAndEquipment"}]
["/*",null,{"$f":"'822100 - Nota. Prop, plan y eq.'!$D$66","v":"Incrementos (disminuciones) de revaluaciones, propiedades, planta y equipo"},{"$f":"'822100 - Nota. Prop, plan y eq.'!$C$66","v":"ifrs-full:RevaluationIncreaseDecreasePropertyPlantAndEquipment"}]
["/*",null,{"$f":"'822100 - Nota. Prop, plan y eq.'!$D$67","v":"Pérdidas por deterioro de valor reconocidas en otro resultado integral, propiedades, planta y equipo"},{"$f":"'822100 - Nota. Prop, plan y eq.'!$C$67","v":"ifrs-full:ImpairmentLossRecognisedInOtherComprehensiveIncomePropertyPlantAndEquipment"}]
["/*",null,{"$f":"'822100 - Nota. Prop, plan y eq.'!$D$68","v":"Reversión de pérdidas por deterioro de valor reconocidas en otro resultado integral, propiedades, planta y equipo"},{"$f":"'822100 - Nota. Prop, plan y eq.'!$C$68","v":"ifrs-full:ReversalOfImpairmentLossRecognisedInOtherComprehensiveIncomePropertyPlantAndEquipment"}]
["/*",null,{"$f":"'822100 - Nota. Prop, plan y eq.'!$D$69","v":"Incrementos (disminuciones) por transferencias y otros cambios, propiedades, planta y equipo [resumen]"},{"$f":"'822100 - Nota. Prop, plan y eq.'!$C$69","v":"ifrs-full:IncreaseDecreaseThroughTransfersAndOtherChangesPropertyPlantAndEquipmentAbstract"}]
["/*",null,{"$f":"'822100 - Nota. Prop, plan y eq.'!$D$70","v":"Incrementos (disminuciones) por transferencias desde (hacia) propiedades de inversión, propiedades, planta y equipo"},{"$f":"'822100 - Nota. Prop, plan y eq.'!$C$70","v":"ifrs-full:IncreaseDecreaseThroughTransfersFromToInvestmentPropertyPropertyPlantAndEquipment"}]
["/*",null,{"$f":"'822100 - Nota. Prop, plan y eq.'!$D$71","v":"Incrementos (disminuciones) por transferencias desde construcciones en proceso , propiedades, planta y equipo"},{"$f":"'822100 - Nota. Prop, plan y eq.'!$C$71","v":"ifrs-full:IncreaseDecreaseThroughTransfersFromConstructionInProgressPropertyPlantAndEquipment"}]
["/*",null,{"$f":"'822100 - Nota. Prop, plan y eq.'!$D$72","v":"Incrementos (disminuciones) por otros cambios, propiedades, planta y equipo"},{"$f":"'822100 - Nota. Prop, plan y eq.'!$C$72","v":"ifrs-full:IncreaseDecreaseThroughOtherChangesPropertyPlantAndEquipment"}]
["",null,{"$f":"'822100 - Nota. Prop, plan y eq.'!$D$73","v":"Total incrementos (disminuciones) por transferencias y otros cambios, propiedades, planta y equipo"},{"$f":"'822100 - Nota. Prop, plan y eq.'!$C$73","v":"ifrs-full:IncreaseDecreaseThroughTransfersAndOtherChangesPropertyPlantAndEquipment"},0,"peso",{"$f":"'822100 - Nota. Prop, plan y eq.'!$Y$73","v":0},800001965,"http://www.xbrl.org/scheme/companyName",{"$f":"Periodos!$D$3","v":"2016-01-01"},{"$f":"Periodos!$D$4","v":"2016-12-31"},{"$f":"'822100 - Nota. Prop, plan y eq.'!$D$50","v":"co-svsp-core_2017-12-31:PropiedadesPlantaYEquipoEje_G1"},{"$f":"'822100 - Nota. Prop, plan y eq.'!$Y$49","v":"co-svsp-core_2017-12-31:EquinosMiembro"}]
["/*",null,{"$f":"'822100 - Nota. Prop, plan y eq.'!$D$74","v":"Disposiciones y retiros de servicio, propiedades, planta y equipo [resumen]"},{"$f":"'822100 - Nota. Prop, plan y eq.'!$C$74","v":"ifrs-full:DisposalsAndRetirementsPropertyPlantAndEquipmentAbstract"}]
["/*",null,{"$f":"'822100 - Nota. Prop, plan y eq.'!$D$75","v":"Disposiciones, propiedades, planta y equipo"},{"$f":"'822100 - Nota. Prop, plan y eq.'!$C$75","v":"ifrs-full:DisposalsPropertyPlantAndEquipment"}]
["/*",null,{"$f":"'822100 - Nota. Prop, plan y eq.'!$D$76","v":"Retiros, propiedades, planta y equipo"},{"$f":"'822100 - Nota. Prop, plan y eq.'!$C$76","v":"ifrs-full:RetirementsPropertyPlantAndEquipment"}]
["",null,{"$f":"'822100 - Nota. Prop, plan y eq.'!$D$77","v":"Total de disposiciones y retiros de servicio, propiedades, planta y equipo"},{"$f":"'822100 - Nota. Prop, plan y eq.'!$C$77","v":"ifrs-full:DisposalsAndRetirementsPropertyPlantAndEquipment"},0,"peso",{"$f":"'822100 - Nota. Prop, plan y eq.'!$Y$77","v":0},800001965,"http://www.xbrl.org/scheme/companyName",{"$f":"Periodos!$D$3","v":"2016-01-01"},{"$f":"Periodos!$D$4","v":"2016-12-31"},{"$f":"'822100 - Nota. Prop, plan y eq.'!$D$50","v":"co-svsp-core_2017-12-31:PropiedadesPlantaYEquipoEje_G1"},{"$f":"'822100 - Nota. Prop, plan y eq.'!$Y$49","v":"co-svsp-core_2017-12-31:EquinosMiembro"}]
["/*",null,{"$f":"'822100 - Nota. Prop, plan y eq.'!$D$78","v":"Disminuciones por clasificar como mantenidos para la venta, propiedades, planta y equipo"},{"$f":"'822100 - Nota. Prop, plan y eq.'!$C$78","v":"ifrs-full:DecreaseThroughClassifiedAsHeldForSalePropertyPlantAndEquipment"}]
["",null,{"$f":"'822100 - Nota. Prop, plan y eq.'!$D$79","v":"Total incremento (disminución) en propiedades, planta y equipo"},{"$f":"'822100 - Nota. Prop, plan y eq.'!$C$79","v":"ifrs-full:ChangesInPropertyPlantAndEquipment"},0,"peso",{"$f":"'822100 - Nota. Prop, plan y eq.'!$Y$79","v":0},800001965,"http://www.xbrl.org/scheme/companyName",{"$f":"Periodos!$D$3","v":"2016-01-01"},{"$f":"Periodos!$D$4","v":"2016-12-31"},{"$f":"'822100 - Nota. Prop, plan y eq.'!$D$50","v":"co-svsp-core_2017-12-31:PropiedadesPlantaYEquipoEje_G1"},{"$f":"'822100 - Nota. Prop, plan y eq.'!$Y$49","v":"co-svsp-core_2017-12-31:EquinosMiembro"}]
["",null,{"$f":"'822100 - Nota. Prop, plan y eq.'!$D$80","v":"Propiedades, planta y equipo al final del periodo"},{"$f":"'822100 - Nota. Prop, plan y eq.'!$C$80","v":"co-svsp-core_2017-12-31:PropertyPlantAndEquipmentEndOfPeriod"},0,"peso",{"$f":"'822100 - Nota. Prop, plan y eq.'!$Y$80","v":0},800001965,"http://www.xbrl.org/scheme/companyName",{"$f":"Periodos!$D$3","v":"2016-01-01"},{"$f":"Periodos!$D$4","v":"2016-12-31"},{"$f":"'822100 - Nota. Prop, plan y eq.'!$D$50","v":"co-svsp-core_2017-12-31:PropiedadesPlantaYEquipoEje_G1"},{"$f":"'822100 - Nota. Prop, plan y eq.'!$Y$49","v":"co-svsp-core_2017-12-31:EquinosMiembro"}]
["/*",null,"--22--"]
["/*",null,{"$f":"'822100 - Nota. Prop, plan y eq.'!$D$51","v":"Información a revelar detallada sobre propiedades, planta y equipo [partidas de los estados financieros]"},{"$f":"'822100 - Nota. Prop, plan y eq.'!$C$51","v":"ifrs-full:DisclosureOfPropertyPlantAndEquipmentLineItems"}]
["/*",null,{"$f":"'822100 - Nota. Prop, plan y eq.'!$D$52","v":"Bases de medición, propiedades, planta y equipo"},{"$f":"'822100 - Nota. Prop, plan y eq.'!$C$52","v":"ifrs-full:MeasurementBasesPropertyPlantAndEquipment"}]
["/*",null,{"$f":"'822100 - Nota. Prop, plan y eq.'!$D$53","v":"Método de depreciación, propiedades, planta y equipo"},{"$f":"'822100 - Nota. Prop, plan y eq.'!$C$53","v":"ifrs-full:DepreciationMethodPropertyPlantAndEquipment"}]
["/*",null,{"$f":"'822100 - Nota. Prop, plan y eq.'!$D$54","v":"Vidas útiles o tasas de depreciación, propiedades, planta y equipo"},{"$f":"'822100 - Nota. Prop, plan y eq.'!$C$54","v":"ifrs-full:UsefulLivesOrDepreciationRatesPropertyPlantAndEquipment"}]
["/*",null,{"$f":"'822100 - Nota. Prop, plan y eq.'!$D$55","v":"Fechas de vigencia de revaluación, propiedades, planta y equipo"},{"$f":"'822100 - Nota. Prop, plan y eq.'!$C$55","v":"ifrs-full:EffectiveDatesOfRevaluationPropertyPlantAndEquipment"}]
["/*",null,{"$f":"'822100 - Nota. Prop, plan y eq.'!$D$56","v":"Explicación de la implicación del tasador independiente en la revaluación, propiedades, planta y equipo"},{"$f":"'822100 - Nota. Prop, plan y eq.'!$C$56","v":"ifrs-full:ExplanationOfIndependentValuerUsedForRevaluationPropertyPlantAndEquipment"}]
["/*",null,{"$f":"'822100 - Nota. Prop, plan y eq.'!$D$57","v":"Explicación del método de revaluación y supuestos significativos, propiedad, planta y equipo"},{"$f":"'822100 - Nota. Prop, plan y eq.'!$C$57","v":"co-svsp-core_2017-12-31:ExplanationOfRevaluationMethodsAndSignificantAssumptionsPropertyPlantAndEquipment"}]
["/*",null,{"$f":"'822100 - Nota. Prop, plan y eq.'!$D$58","v":"Conciliación de cambios en propiedades, planta y equipo [resumen]"},{"$f":"'822100 - Nota. Prop, plan y eq.'!$C$58","v":"ifrs-full:ReconciliationOfChangesInPropertyPlantAndEquipmentAbstract"}]
[{"$f":"IF(G7265=\"\",\"/*\",\"\")","v":"/*"},null,{"$f":"'822100 - Nota. Prop, plan y eq.'!$D$59","v":"Propiedades, planta y equipo al comienzo del periodo"},{"$f":"'822100 - Nota. Prop, plan y eq.'!$C$59","v":"co-svsp-core_2017-12-31:PropertyPlantAndEquipmentBeginningOfPeriod"}]
["/*",null,{"$f":"'822100 - Nota. Prop, plan y eq.'!$D$60","v":"Cambios en propiedades, planta y equipo [resumen]"},{"$f":"'822100 - Nota. Prop, plan y eq.'!$C$60","v":"ifrs-full:ChangesInPropertyPlantAndEquipmentAbstract"}]
["/*",null,{"$f":"'822100 - Nota. Prop, plan y eq.'!$D$61","v":"Incrementos distintos de los procedentes de combinaciones de negocios, propiedades, planta y equipo"},{"$f":"'822100 - Nota. Prop, plan y eq.'!$C$61","v":"ifrs-full:AdditionsOtherThanThroughBusinessCombinationsPropertyPlantAndEquipment"}]
["/*",null,{"$f":"'822100 - Nota. Prop, plan y eq.'!$D$62","v":"Adquisiciones realizadas mediante combinaciones de negocios, propiedades, planta y equipo"},{"$f":"'822100 - Nota. Prop, plan y eq.'!$C$62","v":"ifrs-full:AcquisitionsThroughBusinessCombinationsPropertyPlantAndEquipment"}]
["/*",null,{"$f":"'822100 - Nota. Prop, plan y eq.'!$D$63","v":"Depreciación, propiedades, planta y equipo"},{"$f":"'822100 - Nota. Prop, plan y eq.'!$C$63","v":"ifrs-full:DepreciationPropertyPlantAndEquipment"}]
["/*",null,{"$f":"'822100 - Nota. Prop, plan y eq.'!$D$64","v":"Pérdidas por deterioro de valor reconocidas en el resultado del periodo, propiedades, planta y equipo"},{"$f":"'822100 - Nota. Prop, plan y eq.'!$C$64","v":"ifrs-full:ImpairmentLossRecognisedInProfitOrLossPropertyPlantAndEquipment"}]
["/*",null,{"$f":"'822100 - Nota. Prop, plan y eq.'!$D$65","v":"Reversión de pérdidas por deterioro de valor reconocidas en el resultado del periodo, propiedades, planta y equipo"},{"$f":"'822100 - Nota. Prop, plan y eq.'!$C$65","v":"ifrs-full:ReversalOfImpairmentLossRecognisedInProfitOrLossPropertyPlantAndEquipment"}]
["/*",null,{"$f":"'822100 - Nota. Prop, plan y eq.'!$D$66","v":"Incrementos (disminuciones) de revaluaciones, propiedades, planta y equipo"},{"$f":"'822100 - Nota. Prop, plan y eq.'!$C$66","v":"ifrs-full:RevaluationIncreaseDecreasePropertyPlantAndEquipment"}]
["/*",null,{"$f":"'822100 - Nota. Prop, plan y eq.'!$D$67","v":"Pérdidas por deterioro de valor reconocidas en otro resultado integral, propiedades, planta y equipo"},{"$f":"'822100 - Nota. Prop, plan y eq.'!$C$67","v":"ifrs-full:ImpairmentLossRecognisedInOtherComprehensiveIncomePropertyPlantAndEquipment"}]
["/*",null,{"$f":"'822100 - Nota. Prop, plan y eq.'!$D$68","v":"Reversión de pérdidas por deterioro de valor reconocidas en otro resultado integral, propiedades, planta y equipo"},{"$f":"'822100 - Nota. Prop, plan y eq.'!$C$68","v":"ifrs-full:ReversalOfImpairmentLossRecognisedInOtherComprehensiveIncomePropertyPlantAndEquipment"}]
["/*",null,{"$f":"'822100 - Nota. Prop, plan y eq.'!$D$69","v":"Incrementos (disminuciones) por transferencias y otros cambios, propiedades, planta y equipo [resumen]"},{"$f":"'822100 - Nota. Prop, plan y eq.'!$C$69","v":"ifrs-full:IncreaseDecreaseThroughTransfersAndOtherChangesPropertyPlantAndEquipmentAbstract"}]
["/*",null,{"$f":"'822100 - Nota. Prop, plan y eq.'!$D$70","v":"Incrementos (disminuciones) por transferencias desde (hacia) propiedades de inversión, propiedades, planta y equipo"},{"$f":"'822100 - Nota. Prop, plan y eq.'!$C$70","v":"ifrs-full:IncreaseDecreaseThroughTransfersFromToInvestmentPropertyPropertyPlantAndEquipment"}]
["/*",null,{"$f":"'822100 - Nota. Prop, plan y eq.'!$D$71","v":"Incrementos (disminuciones) por transferencias desde construcciones en proceso , propiedades, planta y equipo"},{"$f":"'822100 - Nota. Prop, plan y eq.'!$C$71","v":"ifrs-full:IncreaseDecreaseThroughTransfersFromConstructionInProgressPropertyPlantAndEquipment"}]
["/*",null,{"$f":"'822100 - Nota. Prop, plan y eq.'!$D$72","v":"Incrementos (disminuciones) por otros cambios, propiedades, planta y equipo"},{"$f":"'822100 - Nota. Prop, plan y eq.'!$C$72","v":"ifrs-full:IncreaseDecreaseThroughOtherChangesPropertyPlantAndEquipment"}]
["",null,{"$f":"'822100 - Nota. Prop, plan y eq.'!$D$73","v":"Total incrementos (disminuciones) por transferencias y otros cambios, propiedades, planta y equipo"},{"$f":"'822100 - Nota. Prop, plan y eq.'!$C$73","v":"ifrs-full:IncreaseDecreaseThroughTransfersAndOtherChangesPropertyPlantAndEquipment"},0,"peso",{"$f":"'822100 - Nota. Prop, plan y eq.'!$Z$73","v":0},800001965,"http://www.xbrl.org/scheme/companyName",{"$f":"Periodos!$D$3","v":"2016-01-01"},{"$f":"Periodos!$D$4","v":"2016-12-31"},{"$f":"'822100 - Nota. Prop, plan y eq.'!$D$50","v":"co-svsp-core_2017-12-31:PropiedadesPlantaYEquipoEje_G1"},{"$f":"'822100 - Nota. Prop, plan y eq.'!$Z$49","v":"co-svsp-core_2017-12-31:AnimalesMiembro"}]
["/*",null,{"$f":"'822100 - Nota. Prop, plan y eq.'!$D$74","v":"Disposiciones y retiros de servicio, propiedades, planta y equipo [resumen]"},{"$f":"'822100 - Nota. Prop, plan y eq.'!$C$74","v":"ifrs-full:DisposalsAndRetirementsPropertyPlantAndEquipmentAbstract"}]
["/*",null,{"$f":"'822100 - Nota. Prop, plan y eq.'!$D$75","v":"Disposiciones, propiedades, planta y equipo"},{"$f":"'822100 - Nota. Prop, plan y eq.'!$C$75","v":"ifrs-full:DisposalsPropertyPlantAndEquipment"}]
["/*",null,{"$f":"'822100 - Nota. Prop, plan y eq.'!$D$76","v":"Retiros, propiedades, planta y equipo"},{"$f":"'822100 - Nota. Prop, plan y eq.'!$C$76","v":"ifrs-full:RetirementsPropertyPlantAndEquipment"}]
["",null,{"$f":"'822100 - Nota. Prop, plan y eq.'!$D$77","v":"Total de disposiciones y retiros de servicio, propiedades, planta y equipo"},{"$f":"'822100 - Nota. Prop, plan y eq.'!$C$77","v":"ifrs-full:DisposalsAndRetirementsPropertyPlantAndEquipment"},0,"peso",{"$f":"'822100 - Nota. Prop, plan y eq.'!$Z$77","v":0},800001965,"http://www.xbrl.org/scheme/companyName",{"$f":"Periodos!$D$3","v":"2016-01-01"},{"$f":"Periodos!$D$4","v":"2016-12-31"},{"$f":"'822100 - Nota. Prop, plan y eq.'!$D$50","v":"co-svsp-core_2017-12-31:PropiedadesPlantaYEquipoEje_G1"},{"$f":"'822100 - Nota. Prop, plan y eq.'!$Z$49","v":"co-svsp-core_2017-12-31:AnimalesMiembro"}]
["/*",null,{"$f":"'822100 - Nota. Prop, plan y eq.'!$D$78","v":"Disminuciones por clasificar como mantenidos para la venta, propiedades, planta y equipo"},{"$f":"'822100 - Nota. Prop, plan y eq.'!$C$78","v":"ifrs-full:DecreaseThroughClassifiedAsHeldForSalePropertyPlantAndEquipment"}]
["",null,{"$f":"'822100 - Nota. Prop, plan y eq.'!$D$79","v":"Total incremento (disminución) en propiedades, planta y equipo"},{"$f":"'822100 - Nota. Prop, plan y eq.'!$C$79","v":"ifrs-full:ChangesInPropertyPlantAndEquipment"},0,"peso",{"$f":"'822100 - Nota. Prop, plan y eq.'!$Z$79","v":0},800001965,"http://www.xbrl.org/scheme/companyName",{"$f":"Periodos!$D$3","v":"2016-01-01"},{"$f":"Periodos!$D$4","v":"2016-12-31"},{"$f":"'822100 - Nota. Prop, plan y eq.'!$D$50","v":"co-svsp-core_2017-12-31:PropiedadesPlantaYEquipoEje_G1"},{"$f":"'822100 - Nota. Prop, plan y eq.'!$Z$49","v":"co-svsp-core_2017-12-31:AnimalesMiembro"}]
["",null,{"$f":"'822100 - Nota. Prop, plan y eq.'!$D$80","v":"Propiedades, planta y equipo al final del periodo"},{"$f":"'822100 - Nota. Prop, plan y eq.'!$C$80","v":"co-svsp-core_2017-12-31:PropertyPlantAndEquipmentEndOfPeriod"},0,"peso",{"$f":"'822100 - Nota. Prop, plan y eq.'!$Z$80","v":0},800001965,"http://www.xbrl.org/scheme/companyName",{"$f":"Periodos!$D$3","v":"2016-01-01"},{"$f":"Periodos!$D$4","v":"2016-12-31"},{"$f":"'822100 - Nota. Prop, plan y eq.'!$D$50","v":"co-svsp-core_2017-12-31:PropiedadesPlantaYEquipoEje_G1"},{"$f":"'822100 - Nota. Prop, plan y eq.'!$Z$49","v":"co-svsp-core_2017-12-31:AnimalesMiembro"}]
["/*",null,"--23--"]
["/*",null,{"$f":"'822100 - Nota. Prop, plan y eq.'!$D$51","v":"Información a revelar detallada sobre propiedades, planta y equipo [partidas de los estados financieros]"},{"$f":"'822100 - Nota. Prop, plan y eq.'!$C$51","v":"ifrs-full:DisclosureOfPropertyPlantAndEquipmentLineItems"}]
["/*",null,{"$f":"'822100 - Nota. Prop, plan y eq.'!$D$52","v":"Bases de medición, propiedades, planta y equipo"},{"$f":"'822100 - Nota. Prop, plan y eq.'!$C$52","v":"ifrs-full:MeasurementBasesPropertyPlantAndEquipment"}]
["/*",null,{"$f":"'822100 - Nota. Prop, plan y eq.'!$D$53","v":"Método de depreciación, propiedades, planta y equipo"},{"$f":"'822100 - Nota. Prop, plan y eq.'!$C$53","v":"ifrs-full:DepreciationMethodPropertyPlantAndEquipment"}]
["/*",null,{"$f":"'822100 - Nota. Prop, plan y eq.'!$D$54","v":"Vidas útiles o tasas de depreciación, propiedades, planta y equipo"},{"$f":"'822100 - Nota. Prop, plan y eq.'!$C$54","v":"ifrs-full:UsefulLivesOrDepreciationRatesPropertyPlantAndEquipment"}]
["/*",null,{"$f":"'822100 - Nota. Prop, plan y eq.'!$D$55","v":"Fechas de vigencia de revaluación, propiedades, planta y equipo"},{"$f":"'822100 - Nota. Prop, plan y eq.'!$C$55","v":"ifrs-full:EffectiveDatesOfRevaluationPropertyPlantAndEquipment"}]
["/*",null,{"$f":"'822100 - Nota. Prop, plan y eq.'!$D$56","v":"Explicación de la implicación del tasador independiente en la revaluación, propiedades, planta y equipo"},{"$f":"'822100 - Nota. Prop, plan y eq.'!$C$56","v":"ifrs-full:ExplanationOfIndependentValuerUsedForRevaluationPropertyPlantAndEquipment"}]
["/*",null,{"$f":"'822100 - Nota. Prop, plan y eq.'!$D$57","v":"Explicación del método de revaluación y supuestos significativos, propiedad, planta y equipo"},{"$f":"'822100 - Nota. Prop, plan y eq.'!$C$57","v":"co-svsp-core_2017-12-31:ExplanationOfRevaluationMethodsAndSignificantAssumptionsPropertyPlantAndEquipment"}]
["/*",null,{"$f":"'822100 - Nota. Prop, plan y eq.'!$D$58","v":"Conciliación de cambios en propiedades, planta y equipo [resumen]"},{"$f":"'822100 - Nota. Prop, plan y eq.'!$C$58","v":"ifrs-full:ReconciliationOfChangesInPropertyPlantAndEquipmentAbstract"}]
["/*",null,{"$f":"'822100 - Nota. Prop, plan y eq.'!$D$59","v":"Propiedades, planta y equipo al comienzo del periodo"},{"$f":"'822100 - Nota. Prop, plan y eq.'!$C$59","v":"co-svsp-core_2017-12-31:PropertyPlantAndEquipmentBeginningOfPeriod"}]
["/*",null,{"$f":"'822100 - Nota. Prop, plan y eq.'!$D$60","v":"Cambios en propiedades, planta y equipo [resumen]"},{"$f":"'822100 - Nota. Prop, plan y eq.'!$C$60","v":"ifrs-full:ChangesInPropertyPlantAndEquipmentAbstract"}]
["/*",null,{"$f":"'822100 - Nota. Prop, plan y eq.'!$D$61","v":"Incrementos distintos de los procedentes de combinaciones de negocios, propiedades, planta y equipo"},{"$f":"'822100 - Nota. Prop, plan y eq.'!$C$61","v":"ifrs-full:AdditionsOtherThanThroughBusinessCombinationsPropertyPlantAndEquipment"}]
["/*",null,{"$f":"'822100 - Nota. Prop, plan y eq.'!$D$62","v":"Adquisiciones realizadas mediante combinaciones de negocios, propiedades, planta y equipo"},{"$f":"'822100 - Nota. Prop, plan y eq.'!$C$62","v":"ifrs-full:AcquisitionsThroughBusinessCombinationsPropertyPlantAndEquipment"}]
["/*",null,{"$f":"'822100 - Nota. Prop, plan y eq.'!$D$63","v":"Depreciación, propiedades, planta y equipo"},{"$f":"'822100 - Nota. Prop, plan y eq.'!$C$63","v":"ifrs-full:DepreciationPropertyPlantAndEquipment"}]
["/*",null,{"$f":"'822100 - Nota. Prop, plan y eq.'!$D$64","v":"Pérdidas por deterioro de valor reconocidas en el resultado del periodo, propiedades, planta y equipo"},{"$f":"'822100 - Nota. Prop, plan y eq.'!$C$64","v":"ifrs-full:ImpairmentLossRecognisedInProfitOrLossPropertyPlantAndEquipment"}]
["/*",null,{"$f":"'822100 - Nota. Prop, plan y eq.'!$D$65","v":"Reversión de pérdidas por deterioro de valor reconocidas en el resultado del periodo, propiedades, planta y equipo"},{"$f":"'822100 - Nota. Prop, plan y eq.'!$C$65","v":"ifrs-full:ReversalOfImpairmentLossRecognisedInProfitOrLossPropertyPlantAndEquipment"}]
["/*",null,{"$f":"'822100 - Nota. Prop, plan y eq.'!$D$66","v":"Incrementos (disminuciones) de revaluaciones, propiedades, planta y equipo"},{"$f":"'822100 - Nota. Prop, plan y eq.'!$C$66","v":"ifrs-full:RevaluationIncreaseDecreasePropertyPlantAndEquipment"}]
["/*",null,{"$f":"'822100 - Nota. Prop, plan y eq.'!$D$67","v":"Pérdidas por deterioro de valor reconocidas en otro resultado integral, propiedades, planta y equipo"},{"$f":"'822100 - Nota. Prop, plan y eq.'!$C$67","v":"ifrs-full:ImpairmentLossRecognisedInOtherComprehensiveIncomePropertyPlantAndEquipment"}]
["/*",null,{"$f":"'822100 - Nota. Prop, plan y eq.'!$D$68","v":"Reversión de pérdidas por deterioro de valor reconocidas en otro resultado integral, propiedades, planta y equipo"},{"$f":"'822100 - Nota. Prop, plan y eq.'!$C$68","v":"ifrs-full:ReversalOfImpairmentLossRecognisedInOtherComprehensiveIncomePropertyPlantAndEquipment"}]
["/*",null,{"$f":"'822100 - Nota. Prop, plan y eq.'!$D$69","v":"Incrementos (disminuciones) por transferencias y otros cambios, propiedades, planta y equipo [resumen]"},{"$f":"'822100 - Nota. Prop, plan y eq.'!$C$69","v":"ifrs-full:IncreaseDecreaseThroughTransfersAndOtherChangesPropertyPlantAndEquipmentAbstract"}]
["/*",null,{"$f":"'822100 - Nota. Prop, plan y eq.'!$D$70","v":"Incrementos (disminuciones) por transferencias desde (hacia) propiedades de inversión, propiedades, planta y equipo"},{"$f":"'822100 - Nota. Prop, plan y eq.'!$C$70","v":"ifrs-full:IncreaseDecreaseThroughTransfersFromToInvestmentPropertyPropertyPlantAndEquipment"}]
["/*",null,{"$f":"'822100 - Nota. Prop, plan y eq.'!$D$71","v":"Incrementos (disminuciones) por transferencias desde construcciones en proceso , propiedades, planta y equipo"},{"$f":"'822100 - Nota. Prop, plan y eq.'!$C$71","v":"ifrs-full:IncreaseDecreaseThroughTransfersFromConstructionInProgressPropertyPlantAndEquipment"}]
["/*",null,{"$f":"'822100 - Nota. Prop, plan y eq.'!$D$72","v":"Incrementos (disminuciones) por otros cambios, propiedades, planta y equipo"},{"$f":"'822100 - Nota. Prop, plan y eq.'!$C$72","v":"ifrs-full:IncreaseDecreaseThroughOtherChangesPropertyPlantAndEquipment"}]
["",null,{"$f":"'822100 - Nota. Prop, plan y eq.'!$D$73","v":"Total incrementos (disminuciones) por transferencias y otros cambios, propiedades, planta y equipo"},{"$f":"'822100 - Nota. Prop, plan y eq.'!$C$73","v":"ifrs-full:IncreaseDecreaseThroughTransfersAndOtherChangesPropertyPlantAndEquipment"},0,"peso",{"$f":"'822100 - Nota. Prop, plan y eq.'!$AA$73","v":0},800001965,"http://www.xbrl.org/scheme/companyName",{"$f":"Periodos!$D$3","v":"2016-01-01"},{"$f":"Periodos!$D$4","v":"2016-12-31"},{"$f":"'822100 - Nota. Prop, plan y eq.'!$D$50","v":"co-svsp-core_2017-12-31:PropiedadesPlantaYEquipoEje_G1"},{"$f":"'822100 - Nota. Prop, plan y eq.'!$AA$49","v":"co-svsp-core_2017-12-31:Otras_PPE"}]
["/*",null,{"$f":"'822100 - Nota. Prop, plan y eq.'!$D$74","v":"Disposiciones y retiros de servicio, propiedades, planta y equipo [resumen]"},{"$f":"'822100 - Nota. Prop, plan y eq.'!$C$74","v":"ifrs-full:DisposalsAndRetirementsPropertyPlantAndEquipmentAbstract"}]
["/*",null,{"$f":"'822100 - Nota. Prop, plan y eq.'!$D$75","v":"Disposiciones, propiedades, planta y equipo"},{"$f":"'822100 - Nota. Prop, plan y eq.'!$C$75","v":"ifrs-full:DisposalsPropertyPlantAndEquipment"}]
["/*",null,{"$f":"'822100 - Nota. Prop, plan y eq.'!$D$76","v":"Retiros, propiedades, planta y equipo"},{"$f":"'822100 - Nota. Prop, plan y eq.'!$C$76","v":"ifrs-full:RetirementsPropertyPlantAndEquipment"}]
["",null,{"$f":"'822100 - Nota. Prop, plan y eq.'!$D$77","v":"Total de disposiciones y retiros de servicio, propiedades, planta y equipo"},{"$f":"'822100 - Nota. Prop, plan y eq.'!$C$77","v":"ifrs-full:DisposalsAndRetirementsPropertyPlantAndEquipment"},0,"peso",{"$f":"'822100 - Nota. Prop, plan y eq.'!$AA$77","v":0},800001965,"http://www.xbrl.org/scheme/companyName",{"$f":"Periodos!$D$3","v":"2016-01-01"},{"$f":"Periodos!$D$4","v":"2016-12-31"},{"$f":"'822100 - Nota. Prop, plan y eq.'!$D$50","v":"co-svsp-core_2017-12-31:PropiedadesPlantaYEquipoEje_G1"},{"$f":"'822100 - Nota. Prop, plan y eq.'!$AA$49","v":"co-svsp-core_2017-12-31:Otras_PPE"}]
["/*",null,{"$f":"'822100 - Nota. Prop, plan y eq.'!$D$78","v":"Disminuciones por clasificar como mantenidos para la venta, propiedades, planta y equipo"},{"$f":"'822100 - Nota. Prop, plan y eq.'!$C$78","v":"ifrs-full:DecreaseThroughClassifiedAsHeldForSalePropertyPlantAndEquipment"}]
["",null,{"$f":"'822100 - Nota. Prop, plan y eq.'!$D$79","v":"Total incremento (disminución) en propiedades, planta y equipo"},{"$f":"'822100 - Nota. Prop, plan y eq.'!$C$79","v":"ifrs-full:ChangesInPropertyPlantAndEquipment"},0,"peso",{"$f":"'822100 - Nota. Prop, plan y eq.'!$AA$79","v":0},800001965,"http://www.xbrl.org/scheme/companyName",{"$f":"Periodos!$D$3","v":"2016-01-01"},{"$f":"Periodos!$D$4","v":"2016-12-31"},{"$f":"'822100 - Nota. Prop, plan y eq.'!$D$50","v":"co-svsp-core_2017-12-31:PropiedadesPlantaYEquipoEje_G1"},{"$f":"'822100 - Nota. Prop, plan y eq.'!$AA$49","v":"co-svsp-core_2017-12-31:Otras_PPE"}]
["",null,{"$f":"'822100 - Nota. Prop, plan y eq.'!$D$80","v":"Propiedades, planta y equipo al final del periodo"},{"$f":"'822100 - Nota. Prop, plan y eq.'!$C$80","v":"co-svsp-core_2017-12-31:PropertyPlantAndEquipmentEndOfPeriod"},0,"peso",{"$f":"'822100 - Nota. Prop, plan y eq.'!$AA$80","v":0},800001965,"http://www.xbrl.org/scheme/companyName",{"$f":"Periodos!$D$3","v":"2016-01-01"},{"$f":"Periodos!$D$4","v":"2016-12-31"},{"$f":"'822100 - Nota. Prop, plan y eq.'!$D$50","v":"co-svsp-core_2017-12-31:PropiedadesPlantaYEquipoEje_G1"},{"$f":"'822100 - Nota. Prop, plan y eq.'!$AA$49","v":"co-svsp-core_2017-12-31:Otras_PPE"}]
["/*",null,"--24--"]
["/*",null,{"$f":"'822100 - Nota. Prop, plan y eq.'!$D$51","v":"Información a revelar detallada sobre propiedades, planta y equipo [partidas de los estados financieros]"},{"$f":"'822100 - Nota. Prop, plan y eq.'!$C$51","v":"ifrs-full:DisclosureOfPropertyPlantAndEquipmentLineItems"}]
["/*",null,{"$f":"'822100 - Nota. Prop, plan y eq.'!$D$52","v":"Bases de medición, propiedades, planta y equipo"},{"$f":"'822100 - Nota. Prop, plan y eq.'!$C$52","v":"ifrs-full:MeasurementBasesPropertyPlantAndEquipment"}]
["/*",null,{"$f":"'822100 - Nota. Prop, plan y eq.'!$D$53","v":"Método de depreciación, propiedades, planta y equipo"},{"$f":"'822100 - Nota. Prop, plan y eq.'!$C$53","v":"ifrs-full:DepreciationMethodPropertyPlantAndEquipment"}]
["/*",null,{"$f":"'822100 - Nota. Prop, plan y eq.'!$D$54","v":"Vidas útiles o tasas de depreciación, propiedades, planta y equipo"},{"$f":"'822100 - Nota. Prop, plan y eq.'!$C$54","v":"ifrs-full:UsefulLivesOrDepreciationRatesPropertyPlantAndEquipment"}]
["/*",null,{"$f":"'822100 - Nota. Prop, plan y eq.'!$D$55","v":"Fechas de vigencia de revaluación, propiedades, planta y equipo"},{"$f":"'822100 - Nota. Prop, plan y eq.'!$C$55","v":"ifrs-full:EffectiveDatesOfRevaluationPropertyPlantAndEquipment"}]
["/*",null,{"$f":"'822100 - Nota. Prop, plan y eq.'!$D$56","v":"Explicación de la implicación del tasador independiente en la revaluación, propiedades, planta y equipo"},{"$f":"'822100 - Nota. Prop, plan y eq.'!$C$56","v":"ifrs-full:ExplanationOfIndependentValuerUsedForRevaluationPropertyPlantAndEquipment"}]
["/*",null,{"$f":"'822100 - Nota. Prop, plan y eq.'!$D$57","v":"Explicación del método de revaluación y supuestos significativos, propiedad, planta y equipo"},{"$f":"'822100 - Nota. Prop, plan y eq.'!$C$57","v":"co-svsp-core_2017-12-31:ExplanationOfRevaluationMethodsAndSignificantAssumptionsPropertyPlantAndEquipment"}]
["/*",null,{"$f":"'822100 - Nota. Prop, plan y eq.'!$D$58","v":"Conciliación de cambios en propiedades, planta y equipo [resumen]"},{"$f":"'822100 - Nota. Prop, plan y eq.'!$C$58","v":"ifrs-full:ReconciliationOfChangesInPropertyPlantAndEquipmentAbstract"}]
["/*",null,{"$f":"'822100 - Nota. Prop, plan y eq.'!$D$59","v":"Propiedades, planta y equipo al comienzo del periodo"},{"$f":"'822100 - Nota. Prop, plan y eq.'!$C$59","v":"co-svsp-core_2017-12-31:PropertyPlantAndEquipmentBeginningOfPeriod"}]
["/*",null,{"$f":"'822100 - Nota. Prop, plan y eq.'!$D$60","v":"Cambios en propiedades, planta y equipo [resumen]"},{"$f":"'822100 - Nota. Prop, plan y eq.'!$C$60","v":"ifrs-full:ChangesInPropertyPlantAndEquipmentAbstract"}]
[{"$f":"IF(G7329=\"\",\"/*\",\"\")","v":"/*"},null,{"$f":"'822100 - Nota. Prop, plan y eq.'!$D$61","v":"Incrementos distintos de los procedentes de combinaciones de negocios, propiedades, planta y equipo"},{"$f":"'822100 - Nota. Prop, plan y eq.'!$C$61","v":"ifrs-full:AdditionsOtherThanThroughBusinessCombinationsPropertyPlantAndEquipment"}]
["/*",null,{"$f":"'822100 - Nota. Prop, plan y eq.'!$D$62","v":"Adquisiciones realizadas mediante combinaciones de negocios, propiedades, planta y equipo"},{"$f":"'822100 - Nota. Prop, plan y eq.'!$C$62","v":"ifrs-full:AcquisitionsThroughBusinessCombinationsPropertyPlantAndEquipment"}]
["/*",null,{"$f":"'822100 - Nota. Prop, plan y eq.'!$D$63","v":"Depreciación, propiedades, planta y equipo"},{"$f":"'822100 - Nota. Prop, plan y eq.'!$C$63","v":"ifrs-full:DepreciationPropertyPlantAndEquipment"}]
["/*",null,{"$f":"'822100 - Nota. Prop, plan y eq.'!$D$64","v":"Pérdidas por deterioro de valor reconocidas en el resultado del periodo, propiedades, planta y equipo"},{"$f":"'822100 - Nota. Prop, plan y eq.'!$C$64","v":"ifrs-full:ImpairmentLossRecognisedInProfitOrLossPropertyPlantAndEquipment"}]
["/*",null,{"$f":"'822100 - Nota. Prop, plan y eq.'!$D$65","v":"Reversión de pérdidas por deterioro de valor reconocidas en el resultado del periodo, propiedades, planta y equipo"},{"$f":"'822100 - Nota. Prop, plan y eq.'!$C$65","v":"ifrs-full:ReversalOfImpairmentLossRecognisedInProfitOrLossPropertyPlantAndEquipment"}]
["/*",null,{"$f":"'822100 - Nota. Prop, plan y eq.'!$D$66","v":"Incrementos (disminuciones) de revaluaciones, propiedades, planta y equipo"},{"$f":"'822100 - Nota. Prop, plan y eq.'!$C$66","v":"ifrs-full:RevaluationIncreaseDecreasePropertyPlantAndEquipment"}]
["/*",null,{"$f":"'822100 - Nota. Prop, plan y eq.'!$D$67","v":"Pérdidas por deterioro de valor reconocidas en otro resultado integral, propiedades, planta y equipo"},{"$f":"'822100 - Nota. Prop, plan y eq.'!$C$67","v":"ifrs-full:ImpairmentLossRecognisedInOtherComprehensiveIncomePropertyPlantAndEquipment"}]
["/*",null,{"$f":"'822100 - Nota. Prop, plan y eq.'!$D$68","v":"Reversión de pérdidas por deterioro de valor reconocidas en otro resultado integral, propiedades, planta y equipo"},{"$f":"'822100 - Nota. Prop, plan y eq.'!$C$68","v":"ifrs-full:ReversalOfImpairmentLossRecognisedInOtherComprehensiveIncomePropertyPlantAndEquipment"}]
["/*",null,{"$f":"'822100 - Nota. Prop, plan y eq.'!$D$69","v":"Incrementos (disminuciones) por transferencias y otros cambios, propiedades, planta y equipo [resumen]"},{"$f":"'822100 - Nota. Prop, plan y eq.'!$C$69","v":"ifrs-full:IncreaseDecreaseThroughTransfersAndOtherChangesPropertyPlantAndEquipmentAbstract"}]
["/*",null,{"$f":"'822100 - Nota. Prop, plan y eq.'!$D$70","v":"Incrementos (disminuciones) por transferencias desde (hacia) propiedades de inversión, propiedades, planta y equipo"},{"$f":"'822100 - Nota. Prop, plan y eq.'!$C$70","v":"ifrs-full:IncreaseDecreaseThroughTransfersFromToInvestmentPropertyPropertyPlantAndEquipment"}]
["/*",null,{"$f":"'822100 - Nota. Prop, plan y eq.'!$D$71","v":"Incrementos (disminuciones) por transferencias desde construcciones en proceso , propiedades, planta y equipo"},{"$f":"'822100 - Nota. Prop, plan y eq.'!$C$71","v":"ifrs-full:IncreaseDecreaseThroughTransfersFromConstructionInProgressPropertyPlantAndEquipment"}]
["/*",null,{"$f":"'822100 - Nota. Prop, plan y eq.'!$D$72","v":"Incrementos (disminuciones) por otros cambios, propiedades, planta y equipo"},{"$f":"'822100 - Nota. Prop, plan y eq.'!$C$72","v":"ifrs-full:IncreaseDecreaseThroughOtherChangesPropertyPlantAndEquipment"}]
["",null,{"$f":"'822100 - Nota. Prop, plan y eq.'!$D$73","v":"Total incrementos (disminuciones) por transferencias y otros cambios, propiedades, planta y equipo"},{"$f":"'822100 - Nota. Prop, plan y eq.'!$C$73","v":"ifrs-full:IncreaseDecreaseThroughTransfersAndOtherChangesPropertyPlantAndEquipment"},0,"peso",{"$f":"'822100 - Nota. Prop, plan y eq.'!$AB$73","v":0},800001965,"http://www.xbrl.org/scheme/companyName",{"$f":"Periodos!$D$3","v":"2016-01-01"},{"$f":"Periodos!$D$4","v":"2016-12-31"},{"$f":"'822100 - Nota. Prop, plan y eq.'!$D$50","v":"co-svsp-core_2017-12-31:PropiedadesPlantaYEquipoEje_G1"},{"$f":"'822100 - Nota. Prop, plan y eq.'!$AB$49","v":"ifrs-full:OtherPropertyPlantAndEquipmentMember"}]
["/*",null,{"$f":"'822100 - Nota. Prop, plan y eq.'!$D$74","v":"Disposiciones y retiros de servicio, propiedades, planta y equipo [resumen]"},{"$f":"'822100 - Nota. Prop, plan y eq.'!$C$74","v":"ifrs-full:DisposalsAndRetirementsPropertyPlantAndEquipmentAbstract"}]
["/*",null,{"$f":"'822100 - Nota. Prop, plan y eq.'!$D$75","v":"Disposiciones, propiedades, planta y equipo"},{"$f":"'822100 - Nota. Prop, plan y eq.'!$C$75","v":"ifrs-full:DisposalsPropertyPlantAndEquipment"}]
["/*",null,{"$f":"'822100 - Nota. Prop, plan y eq.'!$D$76","v":"Retiros, propiedades, planta y equipo"},{"$f":"'822100 - Nota. Prop, plan y eq.'!$C$76","v":"ifrs-full:RetirementsPropertyPlantAndEquipment"}]
["",null,{"$f":"'822100 - Nota. Prop, plan y eq.'!$D$77","v":"Total de disposiciones y retiros de servicio, propiedades, planta y equipo"},{"$f":"'822100 - Nota. Prop, plan y eq.'!$C$77","v":"ifrs-full:DisposalsAndRetirementsPropertyPlantAndEquipment"},0,"peso",{"$f":"'822100 - Nota. Prop, plan y eq.'!$AB$77","v":0},800001965,"http://www.xbrl.org/scheme/companyName",{"$f":"Periodos!$D$3","v":"2016-01-01"},{"$f":"Periodos!$D$4","v":"2016-12-31"},{"$f":"'822100 - Nota. Prop, plan y eq.'!$D$50","v":"co-svsp-core_2017-12-31:PropiedadesPlantaYEquipoEje_G1"},{"$f":"'822100 - Nota. Prop, plan y eq.'!$AB$49","v":"ifrs-full:OtherPropertyPlantAndEquipmentMember"}]
["/*",null,{"$f":"'822100 - Nota. Prop, plan y eq.'!$D$78","v":"Disminuciones por clasificar como mantenidos para la venta, propiedades, planta y equipo"},{"$f":"'822100 - Nota. Prop, plan y eq.'!$C$78","v":"ifrs-full:DecreaseThroughClassifiedAsHeldForSalePropertyPlantAndEquipment"}]
["",null,{"$f":"'822100 - Nota. Prop, plan y eq.'!$D$79","v":"Total incremento (disminución) en propiedades, planta y equipo"},{"$f":"'822100 - Nota. Prop, plan y eq.'!$C$79","v":"ifrs-full:ChangesInPropertyPlantAndEquipment"},0,"peso",{"$f":"'822100 - Nota. Prop, plan y eq.'!$AB$79","v":0},800001965,"http://www.xbrl.org/scheme/companyName",{"$f":"Periodos!$D$3","v":"2016-01-01"},{"$f":"Periodos!$D$4","v":"2016-12-31"},{"$f":"'822100 - Nota. Prop, plan y eq.'!$D$50","v":"co-svsp-core_2017-12-31:PropiedadesPlantaYEquipoEje_G1"},{"$f":"'822100 - Nota. Prop, plan y eq.'!$AB$49","v":"ifrs-full:OtherPropertyPlantAndEquipmentMember"}]
["",null,{"$f":"'822100 - Nota. Prop, plan y eq.'!$D$80","v":"Propiedades, planta y equipo al final del periodo"},{"$f":"'822100 - Nota. Prop, plan y eq.'!$C$80","v":"co-svsp-core_2017-12-31:PropertyPlantAndEquipmentEndOfPeriod"},0,"peso",{"$f":"'822100 - Nota. Prop, plan y eq.'!$AB$80","v":0},800001965,"http://www.xbrl.org/scheme/companyName",{"$f":"Periodos!$D$3","v":"2016-01-01"},{"$f":"Periodos!$D$4","v":"2016-12-31"},{"$f":"'822100 - Nota. Prop, plan y eq.'!$D$50","v":"co-svsp-core_2017-12-31:PropiedadesPlantaYEquipoEje_G1"},{"$f":"'822100 - Nota. Prop, plan y eq.'!$AB$49","v":"ifrs-full:OtherPropertyPlantAndEquipmentMember"}]
["/*"]
["/*",null,"823180 - Nota. Activos Intang."]
["/*",null,"--01--"]
["/*",null,{"$f":"'823180 - Nota. Activos Intang.'!$D$13","v":"Información a revelar detallada sobre activos intangibles [partidas de los estados financieros]"},{"$f":"'823180 - Nota. Activos Intang.'!$C$13","v":"ifrs-full:DisclosureOfIntangibleAssetsLineItems"}]
["/*",null,{"$f":"'823180 - Nota. Activos Intang.'!$D$14","v":"Método de amortización, activos intangibles distintos de la plusvalía"},{"$f":"'823180 - Nota. Activos Intang.'!$C$14","v":"ifrs-full:AmortisationMethodIntangibleAssetsOtherThanGoodwill"}]
["/*",null,{"$f":"'823180 - Nota. Activos Intang.'!$D$15","v":"Vidas útiles o tasas de amortización, activos intangibles distintos de la plusvalía"},{"$f":"'823180 - Nota. Activos Intang.'!$C$15","v":"ifrs-full:UsefulLivesOrAmortisationRatesIntangibleAssetsOtherThanGoodwill"}]
["/*",null,{"$f":"'823180 - Nota. Activos Intang.'!$D$16","v":"Importe en libros en términos brutos"},{"$f":"'823180 - Nota. Activos Intang.'!$C$16","v":"co-svsp-core_2017-12-31:GrossCarryingAmount"}]
["/*",null,{"$f":"'823180 - Nota. Activos Intang.'!$D$17","v":"Depreciación y amortización acumuladas"},{"$f":"'823180 - Nota. Activos Intang.'!$C$17","v":"co-svsp-core_2017-12-31:AccumulatedDepreciationAndAmortisation"}]
["/*",null,{"$f":"'823180 - Nota. Activos Intang.'!$D$18","v":"Deterioro de valor acumulado"},{"$f":"'823180 - Nota. Activos Intang.'!$C$18","v":"co-svsp-core_2017-12-31:AccumulatedImpairment"}]
["/*",null,{"$f":"'823180 - Nota. Activos Intang.'!$D$19","v":"Conciliación de cambios en activos intangibles distintos de la plusvalía [resumen]"},{"$f":"'823180 - Nota. Activos Intang.'!$C$19","v":"ifrs-full:ReconciliationOfChangesInIntangibleAssetsOtherThanGoodwillAbstract"}]
["/*",null,{"$f":"'823180 - Nota. Activos Intang.'!$D$20","v":"Activos intangibles distintos de la plusvalía"},{"$f":"'823180 - Nota. Activos Intang.'!$C$20","v":"co-svsp-core_2017-12-31:IntangibleAssetsOtherThanGoodwillBeginningOfPeriod"}]
["/*",null,{"$f":"'823180 - Nota. Activos Intang.'!$D$21","v":"Incrementos distintos de los procedentes de combinaciones de negocios, activos intangibles distintos de la plusvalía"},{"$f":"'823180 - Nota. Activos Intang.'!$C$21","v":"ifrs-full:AdditionsOtherThanThroughBusinessCombinationsIntangibleAssetsOtherThanGoodwill"}]
["/*",null,{"$f":"'823180 - Nota. Activos Intang.'!$D$22","v":"Adquisiciones realizadas mediante combinaciones de negocios, activos intangibles distintos a la plusvalía"},{"$f":"'823180 - Nota. Activos Intang.'!$C$22","v":"ifrs-full:AcquisitionsThroughBusinessCombinationsIntangibleAssetsOtherThanGoodwill"}]
["/*",null,{"$f":"'823180 - Nota. Activos Intang.'!$D$23","v":"Amortización, activos intangibles distintos de la plusvalía"},{"$f":"'823180 - Nota. Activos Intang.'!$C$23","v":"ifrs-full:AmortisationIntangibleAssetsOtherThanGoodwill"}]
["/*",null,{"$f":"'823180 - Nota. Activos Intang.'!$D$24","v":"Pérdidas por deterioro de valor reconocidas en el resultado del periodo, activos intangibles distintos de la plusvalía"},{"$f":"'823180 - Nota. Activos Intang.'!$C$24","v":"ifrs-full:ImpairmentLossRecognisedInProfitOrLossIntangibleAssetsOtherThanGoodwill"}]
["/*",null,{"$f":"'823180 - Nota. Activos Intang.'!$D$25","v":"Reversión de pérdidas por deterioro de valor reconocidas en el resultado del periodo, activos intangibles distintos de la plusvalía"},{"$f":"'823180 - Nota. Activos Intang.'!$C$25","v":"ifrs-full:ReversalOfImpairmentLossRecognisedInProfitOrLossIntangibleAssetsOtherThanGoodwill"}]
["/*",null,{"$f":"'823180 - Nota. Activos Intang.'!$D$26","v":"Incrementos (disminuciones) por transferencias y otros cambios, activos intangibles distintos de la plusvalía [resumen]"},{"$f":"'823180 - Nota. Activos Intang.'!$C$26","v":"ifrs-full:IncreaseDecreaseThroughTransfersAndOtherChangesIntangibleAssetsOtherThanGoodwillAbstract"}]
["/*",null,{"$f":"'823180 - Nota. Activos Intang.'!$D$27","v":"Incrementos (disminuciones) por transferencias, activos intangibles distintas de la plusvalía"},{"$f":"'823180 - Nota. Activos Intang.'!$C$27","v":"ifrs-full:IncreaseDecreaseThroughTransfersIntangibleAssetsOtherThanGoodwill"}]
["/*",null,{"$f":"'823180 - Nota. Activos Intang.'!$D$28","v":"Incrementos (disminuciones) por otros cambios, activos intangibles distintos de la plusvalía"},{"$f":"'823180 - Nota. Activos Intang.'!$C$28","v":"ifrs-full:IncreaseDecreaseThroughOtherChangesIntangibleAssetsOtherThanGoodwill"}]
["",null,{"$f":"'823180 - Nota. Activos Intang.'!$D$29","v":"Incremento (disminución) por transferencias y otros cambios, activos intangibles distintos de la plusvalía"},{"$f":"'823180 - Nota. Activos Intang.'!$C$29","v":"ifrs-full:IncreaseDecreaseThroughTransfersAndOtherChangesIntangibleAssetsOtherThanGoodwill"},0,"peso",{"$f":"'823180 - Nota. Activos Intang.'!$E$29","v":0},800001965,"http://www.xbrl.org/scheme/companyName",{"$f":"Periodos!$C$3","v":"2017-01-01"},{"$f":"Periodos!$C$4","v":"2017-12-31"},{"$f":"'823180 - Nota. Activos Intang.'!$D$12","v":"co-svsp-core_2017-12-31:ActivosIntangibles_Eje_G1"},{"$f":"'823180 - Nota. Activos Intang.'!$E$11","v":"ifrs-full:BrandNamesMember"}]
["/*",null,{"$f":"'823180 - Nota. Activos Intang.'!$D$30","v":"Disposiciones y retiros de servicio, activos intangibles distintos de la plusvalía [resumen]"},{"$f":"'823180 - Nota. Activos Intang.'!$C$30","v":"ifrs-full:DisposalsAndRetirementsIntangibleAssetsOtherThanGoodwillAbstract"}]
["/*",null,{"$f":"'823180 - Nota. Activos Intang.'!$D$31","v":"Disposiciones, activos intangibles distintos de la plusvalía"},{"$f":"'823180 - Nota. Activos Intang.'!$C$31","v":"ifrs-full:DisposalsIntangibleAssetsOtherThanGoodwill"}]
["/*",null,{"$f":"'823180 - Nota. Activos Intang.'!$D$32","v":"Retiros de servicio, activos intangibles distintos de la plusvalía"},{"$f":"'823180 - Nota. Activos Intang.'!$C$32","v":"ifrs-full:RetirementsIntangibleAssetsOtherThanGoodwill"}]
["",null,{"$f":"'823180 - Nota. Activos Intang.'!$D$33","v":"Disposiciones y retiros de servicio, activos intangibles distintos de la plusvalía"},{"$f":"'823180 - Nota. Activos Intang.'!$C$33","v":"ifrs-full:DisposalsAndRetirementsIntangibleAssetsOtherThanGoodwill"},0,"peso",{"$f":"'823180 - Nota. Activos Intang.'!$E$33","v":0},800001965,"http://www.xbrl.org/scheme/companyName",{"$f":"Periodos!$C$3","v":"2017-01-01"},{"$f":"Periodos!$C$4","v":"2017-12-31"},{"$f":"'823180 - Nota. Activos Intang.'!$D$12","v":"co-svsp-core_2017-12-31:ActivosIntangibles_Eje_G1"},{"$f":"'823180 - Nota. Activos Intang.'!$E$11","v":"ifrs-full:BrandNamesMember"}]
["/*",null,{"$f":"'823180 - Nota. Activos Intang.'!$D$34","v":"Disminuciones por clasificar como mantenidos para la venta, activos intangibles distintos de la plusvalía"},{"$f":"'823180 - Nota. Activos Intang.'!$C$34","v":"ifrs-full:DecreaseThroughClassifiedAsHeldForSaleIntangibleAssetsOtherThanGoodwill"}]
["",null,{"$f":"'823180 - Nota. Activos Intang.'!$D$35","v":"Incremento (disminución) en activos intangibles distintos de la plusvalía"},{"$f":"'823180 - Nota. Activos Intang.'!$C$35","v":"ifrs-full:ChangesInIntangibleAssetsOtherThanGoodwill"},0,"peso",{"$f":"'823180 - Nota. Activos Intang.'!$E$35","v":0},800001965,"http://www.xbrl.org/scheme/companyName",{"$f":"Periodos!$C$3","v":"2017-01-01"},{"$f":"Periodos!$C$4","v":"2017-12-31"},{"$f":"'823180 - Nota. Activos Intang.'!$D$12","v":"co-svsp-core_2017-12-31:ActivosIntangibles_Eje_G1"},{"$f":"'823180 - Nota. Activos Intang.'!$E$11","v":"ifrs-full:BrandNamesMember"}]
["",null,{"$f":"'823180 - Nota. Activos Intang.'!$D$36","v":"Activos intangibles distintos de la plusvalía"},{"$f":"'823180 - Nota. Activos Intang.'!$C$36","v":"co-svsp-core_2017-12-31:IntangibleAssetsOtherThanGoodwillEndOfPeriod"},0,"peso",{"$f":"'823180 - Nota. Activos Intang.'!$E$36","v":0},800001965,"http://www.xbrl.org/scheme/companyName",{"$f":"Periodos!$C$3","v":"2017-01-01"},{"$f":"Periodos!$C$4","v":"2017-12-31"},{"$f":"'823180 - Nota. Activos Intang.'!$D$12","v":"co-svsp-core_2017-12-31:ActivosIntangibles_Eje_G1"},{"$f":"'823180 - Nota. Activos Intang.'!$E$11","v":"ifrs-full:BrandNamesMember"}]
["/*",null,"--02--"]
["/*",null,{"$f":"'823180 - Nota. Activos Intang.'!$D$13","v":"Información a revelar detallada sobre activos intangibles [partidas de los estados financieros]"},{"$f":"'823180 - Nota. Activos Intang.'!$C$13","v":"ifrs-full:DisclosureOfIntangibleAssetsLineItems"}]
["/*",null,{"$f":"'823180 - Nota. Activos Intang.'!$D$14","v":"Método de amortización, activos intangibles distintos de la plusvalía"},{"$f":"'823180 - Nota. Activos Intang.'!$C$14","v":"ifrs-full:AmortisationMethodIntangibleAssetsOtherThanGoodwill"}]
["/*",null,{"$f":"'823180 - Nota. Activos Intang.'!$D$15","v":"Vidas útiles o tasas de amortización, activos intangibles distintos de la plusvalía"},{"$f":"'823180 - Nota. Activos Intang.'!$C$15","v":"ifrs-full:UsefulLivesOrAmortisationRatesIntangibleAssetsOtherThanGoodwill"}]
["/*",null,{"$f":"'823180 - Nota. Activos Intang.'!$D$16","v":"Importe en libros en términos brutos"},{"$f":"'823180 - Nota. Activos Intang.'!$C$16","v":"co-svsp-core_2017-12-31:GrossCarryingAmount"}]
["/*",null,{"$f":"'823180 - Nota. Activos Intang.'!$D$17","v":"Depreciación y amortización acumuladas"},{"$f":"'823180 - Nota. Activos Intang.'!$C$17","v":"co-svsp-core_2017-12-31:AccumulatedDepreciationAndAmortisation"}]
["/*",null,{"$f":"'823180 - Nota. Activos Intang.'!$D$18","v":"Deterioro de valor acumulado"},{"$f":"'823180 - Nota. Activos Intang.'!$C$18","v":"co-svsp-core_2017-12-31:AccumulatedImpairment"}]
["/*",null,{"$f":"'823180 - Nota. Activos Intang.'!$D$19","v":"Conciliación de cambios en activos intangibles distintos de la plusvalía [resumen]"},{"$f":"'823180 - Nota. Activos Intang.'!$C$19","v":"ifrs-full:ReconciliationOfChangesInIntangibleAssetsOtherThanGoodwillAbstract"}]
["/*",null,{"$f":"'823180 - Nota. Activos Intang.'!$D$20","v":"Activos intangibles distintos de la plusvalía"},{"$f":"'823180 - Nota. Activos Intang.'!$C$20","v":"co-svsp-core_2017-12-31:IntangibleAssetsOtherThanGoodwillBeginningOfPeriod"}]
["/*",null,{"$f":"'823180 - Nota. Activos Intang.'!$D$21","v":"Incrementos distintos de los procedentes de combinaciones de negocios, activos intangibles distintos de la plusvalía"},{"$f":"'823180 - Nota. Activos Intang.'!$C$21","v":"ifrs-full:AdditionsOtherThanThroughBusinessCombinationsIntangibleAssetsOtherThanGoodwill"}]
["/*",null,{"$f":"'823180 - Nota. Activos Intang.'!$D$22","v":"Adquisiciones realizadas mediante combinaciones de negocios, activos intangibles distintos a la plusvalía"},{"$f":"'823180 - Nota. Activos Intang.'!$C$22","v":"ifrs-full:AcquisitionsThroughBusinessCombinationsIntangibleAssetsOtherThanGoodwill"}]
["/*",null,{"$f":"'823180 - Nota. Activos Intang.'!$D$23","v":"Amortización, activos intangibles distintos de la plusvalía"},{"$f":"'823180 - Nota. Activos Intang.'!$C$23","v":"ifrs-full:AmortisationIntangibleAssetsOtherThanGoodwill"}]
["/*",null,{"$f":"'823180 - Nota. Activos Intang.'!$D$24","v":"Pérdidas por deterioro de valor reconocidas en el resultado del periodo, activos intangibles distintos de la plusvalía"},{"$f":"'823180 - Nota. Activos Intang.'!$C$24","v":"ifrs-full:ImpairmentLossRecognisedInProfitOrLossIntangibleAssetsOtherThanGoodwill"}]
["/*",null,{"$f":"'823180 - Nota. Activos Intang.'!$D$25","v":"Reversión de pérdidas por deterioro de valor reconocidas en el resultado del periodo, activos intangibles distintos de la plusvalía"},{"$f":"'823180 - Nota. Activos Intang.'!$C$25","v":"ifrs-full:ReversalOfImpairmentLossRecognisedInProfitOrLossIntangibleAssetsOtherThanGoodwill"}]
["/*",null,{"$f":"'823180 - Nota. Activos Intang.'!$D$26","v":"Incrementos (disminuciones) por transferencias y otros cambios, activos intangibles distintos de la plusvalía [resumen]"},{"$f":"'823180 - Nota. Activos Intang.'!$C$26","v":"ifrs-full:IncreaseDecreaseThroughTransfersAndOtherChangesIntangibleAssetsOtherThanGoodwillAbstract"}]
["/*",null,{"$f":"'823180 - Nota. Activos Intang.'!$D$27","v":"Incrementos (disminuciones) por transferencias, activos intangibles distintas de la plusvalía"},{"$f":"'823180 - Nota. Activos Intang.'!$C$27","v":"ifrs-full:IncreaseDecreaseThroughTransfersIntangibleAssetsOtherThanGoodwill"}]
["/*",null,{"$f":"'823180 - Nota. Activos Intang.'!$D$28","v":"Incrementos (disminuciones) por otros cambios, activos intangibles distintos de la plusvalía"},{"$f":"'823180 - Nota. Activos Intang.'!$C$28","v":"ifrs-full:IncreaseDecreaseThroughOtherChangesIntangibleAssetsOtherThanGoodwill"}]
[{"$f":"IF(G7393=\"\",\"/*\",\"\")","v":""},null,{"$f":"'823180 - Nota. Activos Intang.'!$D$29","v":"Incremento (disminución) por transferencias y otros cambios, activos intangibles distintos de la plusvalía"},{"$f":"'823180 - Nota. Activos Intang.'!$C$29","v":"ifrs-full:IncreaseDecreaseThroughTransfersAndOtherChangesIntangibleAssetsOtherThanGoodwill"},0,"peso",{"$f":"'823180 - Nota. Activos Intang.'!$F$29","v":0},800001965,"http://www.xbrl.org/scheme/companyName",{"$f":"Periodos!$C$3","v":"2017-01-01"},{"$f":"Periodos!$C$4","v":"2017-12-31"},{"$f":"'823180 - Nota. Activos Intang.'!$D$12","v":"co-svsp-core_2017-12-31:ActivosIntangibles_Eje_G1"},{"$f":"'823180 - Nota. Activos Intang.'!$F$11","v":"co-svsp-core_2017-12-31:PatentesMiembro"}]
["/*",null,{"$f":"'823180 - Nota. Activos Intang.'!$D$30","v":"Disposiciones y retiros de servicio, activos intangibles distintos de la plusvalía [resumen]"},{"$f":"'823180 - Nota. Activos Intang.'!$C$30","v":"ifrs-full:DisposalsAndRetirementsIntangibleAssetsOtherThanGoodwillAbstract"}]
["/*",null,{"$f":"'823180 - Nota. Activos Intang.'!$D$31","v":"Disposiciones, activos intangibles distintos de la plusvalía"},{"$f":"'823180 - Nota. Activos Intang.'!$C$31","v":"ifrs-full:DisposalsIntangibleAssetsOtherThanGoodwill"}]
["/*",null,{"$f":"'823180 - Nota. Activos Intang.'!$D$32","v":"Retiros de servicio, activos intangibles distintos de la plusvalía"},{"$f":"'823180 - Nota. Activos Intang.'!$C$32","v":"ifrs-full:RetirementsIntangibleAssetsOtherThanGoodwill"}]
["",null,{"$f":"'823180 - Nota. Activos Intang.'!$D$33","v":"Disposiciones y retiros de servicio, activos intangibles distintos de la plusvalía"},{"$f":"'823180 - Nota. Activos Intang.'!$C$33","v":"ifrs-full:DisposalsAndRetirementsIntangibleAssetsOtherThanGoodwill"},0,"peso",{"$f":"'823180 - Nota. Activos Intang.'!$F$33","v":0},800001965,"http://www.xbrl.org/scheme/companyName",{"$f":"Periodos!$C$3","v":"2017-01-01"},{"$f":"Periodos!$C$4","v":"2017-12-31"},{"$f":"'823180 - Nota. Activos Intang.'!$D$12","v":"co-svsp-core_2017-12-31:ActivosIntangibles_Eje_G1"},{"$f":"'823180 - Nota. Activos Intang.'!$F$11","v":"co-svsp-core_2017-12-31:PatentesMiembro"}]
["/*",null,{"$f":"'823180 - Nota. Activos Intang.'!$D$34","v":"Disminuciones por clasificar como mantenidos para la venta, activos intangibles distintos de la plusvalía"},{"$f":"'823180 - Nota. Activos Intang.'!$C$34","v":"ifrs-full:DecreaseThroughClassifiedAsHeldForSaleIntangibleAssetsOtherThanGoodwill"}]
["",null,{"$f":"'823180 - Nota. Activos Intang.'!$D$35","v":"Incremento (disminución) en activos intangibles distintos de la plusvalía"},{"$f":"'823180 - Nota. Activos Intang.'!$C$35","v":"ifrs-full:ChangesInIntangibleAssetsOtherThanGoodwill"},0,"peso",{"$f":"'823180 - Nota. Activos Intang.'!$F$35","v":0},800001965,"http://www.xbrl.org/scheme/companyName",{"$f":"Periodos!$C$3","v":"2017-01-01"},{"$f":"Periodos!$C$4","v":"2017-12-31"},{"$f":"'823180 - Nota. Activos Intang.'!$D$12","v":"co-svsp-core_2017-12-31:ActivosIntangibles_Eje_G1"},{"$f":"'823180 - Nota. Activos Intang.'!$F$11","v":"co-svsp-core_2017-12-31:PatentesMiembro"}]
["",null,{"$f":"'823180 - Nota. Activos Intang.'!$D$36","v":"Activos intangibles distintos de la plusvalía"},{"$f":"'823180 - Nota. Activos Intang.'!$C$36","v":"co-svsp-core_2017-12-31:IntangibleAssetsOtherThanGoodwillEndOfPeriod"},0,"peso",{"$f":"'823180 - Nota. Activos Intang.'!$F$36","v":0},800001965,"http://www.xbrl.org/scheme/companyName",{"$f":"Periodos!$C$3","v":"2017-01-01"},{"$f":"Periodos!$C$4","v":"2017-12-31"},{"$f":"'823180 - Nota. Activos Intang.'!$D$12","v":"co-svsp-core_2017-12-31:ActivosIntangibles_Eje_G1"},{"$f":"'823180 - Nota. Activos Intang.'!$F$11","v":"co-svsp-core_2017-12-31:PatentesMiembro"}]
["/*",null,"--03--"]
["/*",null,{"$f":"'823180 - Nota. Activos Intang.'!$D$13","v":"Información a revelar detallada sobre activos intangibles [partidas de los estados financieros]"},{"$f":"'823180 - Nota. Activos Intang.'!$C$13","v":"ifrs-full:DisclosureOfIntangibleAssetsLineItems"}]
["/*",null,{"$f":"'823180 - Nota. Activos Intang.'!$D$14","v":"Método de amortización, activos intangibles distintos de la plusvalía"},{"$f":"'823180 - Nota. Activos Intang.'!$C$14","v":"ifrs-full:AmortisationMethodIntangibleAssetsOtherThanGoodwill"}]
["/*",null,{"$f":"'823180 - Nota. Activos Intang.'!$D$15","v":"Vidas útiles o tasas de amortización, activos intangibles distintos de la plusvalía"},{"$f":"'823180 - Nota. Activos Intang.'!$C$15","v":"ifrs-full:UsefulLivesOrAmortisationRatesIntangibleAssetsOtherThanGoodwill"}]
["/*",null,{"$f":"'823180 - Nota. Activos Intang.'!$D$16","v":"Importe en libros en términos brutos"},{"$f":"'823180 - Nota. Activos Intang.'!$C$16","v":"co-svsp-core_2017-12-31:GrossCarryingAmount"}]
["/*",null,{"$f":"'823180 - Nota. Activos Intang.'!$D$17","v":"Depreciación y amortización acumuladas"},{"$f":"'823180 - Nota. Activos Intang.'!$C$17","v":"co-svsp-core_2017-12-31:AccumulatedDepreciationAndAmortisation"}]
["/*",null,{"$f":"'823180 - Nota. Activos Intang.'!$D$18","v":"Deterioro de valor acumulado"},{"$f":"'823180 - Nota. Activos Intang.'!$C$18","v":"co-svsp-core_2017-12-31:AccumulatedImpairment"}]
["/*",null,{"$f":"'823180 - Nota. Activos Intang.'!$D$19","v":"Conciliación de cambios en activos intangibles distintos de la plusvalía [resumen]"},{"$f":"'823180 - Nota. Activos Intang.'!$C$19","v":"ifrs-full:ReconciliationOfChangesInIntangibleAssetsOtherThanGoodwillAbstract"}]
["/*",null,{"$f":"'823180 - Nota. Activos Intang.'!$D$20","v":"Activos intangibles distintos de la plusvalía"},{"$f":"'823180 - Nota. Activos Intang.'!$C$20","v":"co-svsp-core_2017-12-31:IntangibleAssetsOtherThanGoodwillBeginningOfPeriod"}]
["/*",null,{"$f":"'823180 - Nota. Activos Intang.'!$D$21","v":"Incrementos distintos de los procedentes de combinaciones de negocios, activos intangibles distintos de la plusvalía"},{"$f":"'823180 - Nota. Activos Intang.'!$C$21","v":"ifrs-full:AdditionsOtherThanThroughBusinessCombinationsIntangibleAssetsOtherThanGoodwill"}]
["/*",null,{"$f":"'823180 - Nota. Activos Intang.'!$D$22","v":"Adquisiciones realizadas mediante combinaciones de negocios, activos intangibles distintos a la plusvalía"},{"$f":"'823180 - Nota. Activos Intang.'!$C$22","v":"ifrs-full:AcquisitionsThroughBusinessCombinationsIntangibleAssetsOtherThanGoodwill"}]
["/*",null,{"$f":"'823180 - Nota. Activos Intang.'!$D$23","v":"Amortización, activos intangibles distintos de la plusvalía"},{"$f":"'823180 - Nota. Activos Intang.'!$C$23","v":"ifrs-full:AmortisationIntangibleAssetsOtherThanGoodwill"}]
["/*",null,{"$f":"'823180 - Nota. Activos Intang.'!$D$24","v":"Pérdidas por deterioro de valor reconocidas en el resultado del periodo, activos intangibles distintos de la plusvalía"},{"$f":"'823180 - Nota. Activos Intang.'!$C$24","v":"ifrs-full:ImpairmentLossRecognisedInProfitOrLossIntangibleAssetsOtherThanGoodwill"}]
["/*",null,{"$f":"'823180 - Nota. Activos Intang.'!$D$25","v":"Reversión de pérdidas por deterioro de valor reconocidas en el resultado del periodo, activos intangibles distintos de la plusvalía"},{"$f":"'823180 - Nota. Activos Intang.'!$C$25","v":"ifrs-full:ReversalOfImpairmentLossRecognisedInProfitOrLossIntangibleAssetsOtherThanGoodwill"}]
["/*",null,{"$f":"'823180 - Nota. Activos Intang.'!$D$26","v":"Incrementos (disminuciones) por transferencias y otros cambios, activos intangibles distintos de la plusvalía [resumen]"},{"$f":"'823180 - Nota. Activos Intang.'!$C$26","v":"ifrs-full:IncreaseDecreaseThroughTransfersAndOtherChangesIntangibleAssetsOtherThanGoodwillAbstract"}]
["/*",null,{"$f":"'823180 - Nota. Activos Intang.'!$D$27","v":"Incrementos (disminuciones) por transferencias, activos intangibles distintas de la plusvalía"},{"$f":"'823180 - Nota. Activos Intang.'!$C$27","v":"ifrs-full:IncreaseDecreaseThroughTransfersIntangibleAssetsOtherThanGoodwill"}]
["/*",null,{"$f":"'823180 - Nota. Activos Intang.'!$D$28","v":"Incrementos (disminuciones) por otros cambios, activos intangibles distintos de la plusvalía"},{"$f":"'823180 - Nota. Activos Intang.'!$C$28","v":"ifrs-full:IncreaseDecreaseThroughOtherChangesIntangibleAssetsOtherThanGoodwill"}]
["",null,{"$f":"'823180 - Nota. Activos Intang.'!$D$29","v":"Incremento (disminución) por transferencias y otros cambios, activos intangibles distintos de la plusvalía"},{"$f":"'823180 - Nota. Activos Intang.'!$C$29","v":"ifrs-full:IncreaseDecreaseThroughTransfersAndOtherChangesIntangibleAssetsOtherThanGoodwill"},0,"peso",{"$f":"'823180 - Nota. Activos Intang.'!$G$29","v":0},800001965,"http://www.xbrl.org/scheme/companyName",{"$f":"Periodos!$C$3","v":"2017-01-01"},{"$f":"Periodos!$C$4","v":"2017-12-31"},{"$f":"'823180 - Nota. Activos Intang.'!$D$12","v":"co-svsp-core_2017-12-31:ActivosIntangibles_Eje_G1"},{"$f":"'823180 - Nota. Activos Intang.'!$G$11","v":"ifrs-full:ComputerSoftwareMember"}]
["/*",null,{"$f":"'823180 - Nota. Activos Intang.'!$D$30","v":"Disposiciones y retiros de servicio, activos intangibles distintos de la plusvalía [resumen]"},{"$f":"'823180 - Nota. Activos Intang.'!$C$30","v":"ifrs-full:DisposalsAndRetirementsIntangibleAssetsOtherThanGoodwillAbstract"}]
["/*",null,{"$f":"'823180 - Nota. Activos Intang.'!$D$31","v":"Disposiciones, activos intangibles distintos de la plusvalía"},{"$f":"'823180 - Nota. Activos Intang.'!$C$31","v":"ifrs-full:DisposalsIntangibleAssetsOtherThanGoodwill"}]
["/*",null,{"$f":"'823180 - Nota. Activos Intang.'!$D$32","v":"Retiros de servicio, activos intangibles distintos de la plusvalía"},{"$f":"'823180 - Nota. Activos Intang.'!$C$32","v":"ifrs-full:RetirementsIntangibleAssetsOtherThanGoodwill"}]
["",null,{"$f":"'823180 - Nota. Activos Intang.'!$D$33","v":"Disposiciones y retiros de servicio, activos intangibles distintos de la plusvalía"},{"$f":"'823180 - Nota. Activos Intang.'!$C$33","v":"ifrs-full:DisposalsAndRetirementsIntangibleAssetsOtherThanGoodwill"},0,"peso",{"$f":"'823180 - Nota. Activos Intang.'!$G$33","v":0},800001965,"http://www.xbrl.org/scheme/companyName",{"$f":"Periodos!$C$3","v":"2017-01-01"},{"$f":"Periodos!$C$4","v":"2017-12-31"},{"$f":"'823180 - Nota. Activos Intang.'!$D$12","v":"co-svsp-core_2017-12-31:ActivosIntangibles_Eje_G1"},{"$f":"'823180 - Nota. Activos Intang.'!$G$11","v":"ifrs-full:ComputerSoftwareMember"}]
["/*",null,{"$f":"'823180 - Nota. Activos Intang.'!$D$34","v":"Disminuciones por clasificar como mantenidos para la venta, activos intangibles distintos de la plusvalía"},{"$f":"'823180 - Nota. Activos Intang.'!$C$34","v":"ifrs-full:DecreaseThroughClassifiedAsHeldForSaleIntangibleAssetsOtherThanGoodwill"}]
["",null,{"$f":"'823180 - Nota. Activos Intang.'!$D$35","v":"Incremento (disminución) en activos intangibles distintos de la plusvalía"},{"$f":"'823180 - Nota. Activos Intang.'!$C$35","v":"ifrs-full:ChangesInIntangibleAssetsOtherThanGoodwill"},0,"peso",{"$f":"'823180 - Nota. Activos Intang.'!$G$35","v":0},800001965,"http://www.xbrl.org/scheme/companyName",{"$f":"Periodos!$C$3","v":"2017-01-01"},{"$f":"Periodos!$C$4","v":"2017-12-31"},{"$f":"'823180 - Nota. Activos Intang.'!$D$12","v":"co-svsp-core_2017-12-31:ActivosIntangibles_Eje_G1"},{"$f":"'823180 - Nota. Activos Intang.'!$G$11","v":"ifrs-full:ComputerSoftwareMember"}]
["",null,{"$f":"'823180 - Nota. Activos Intang.'!$D$36","v":"Activos intangibles distintos de la plusvalía"},{"$f":"'823180 - Nota. Activos Intang.'!$C$36","v":"co-svsp-core_2017-12-31:IntangibleAssetsOtherThanGoodwillEndOfPeriod"},0,"peso",{"$f":"'823180 - Nota. Activos Intang.'!$G$36","v":0},800001965,"http://www.xbrl.org/scheme/companyName",{"$f":"Periodos!$C$3","v":"2017-01-01"},{"$f":"Periodos!$C$4","v":"2017-12-31"},{"$f":"'823180 - Nota. Activos Intang.'!$D$12","v":"co-svsp-core_2017-12-31:ActivosIntangibles_Eje_G1"},{"$f":"'823180 - Nota. Activos Intang.'!$G$11","v":"ifrs-full:ComputerSoftwareMember"}]
["/*",null,"--04--"]
["/*",null,{"$f":"'823180 - Nota. Activos Intang.'!$D$13","v":"Información a revelar detallada sobre activos intangibles [partidas de los estados financieros]"},{"$f":"'823180 - Nota. Activos Intang.'!$C$13","v":"ifrs-full:DisclosureOfIntangibleAssetsLineItems"}]
["/*",null,{"$f":"'823180 - Nota. Activos Intang.'!$D$14","v":"Método de amortización, activos intangibles distintos de la plusvalía"},{"$f":"'823180 - Nota. Activos Intang.'!$C$14","v":"ifrs-full:AmortisationMethodIntangibleAssetsOtherThanGoodwill"}]
["/*",null,{"$f":"'823180 - Nota. Activos Intang.'!$D$15","v":"Vidas útiles o tasas de amortización, activos intangibles distintos de la plusvalía"},{"$f":"'823180 - Nota. Activos Intang.'!$C$15","v":"ifrs-full:UsefulLivesOrAmortisationRatesIntangibleAssetsOtherThanGoodwill"}]
["/*",null,{"$f":"'823180 - Nota. Activos Intang.'!$D$16","v":"Importe en libros en términos brutos"},{"$f":"'823180 - Nota. Activos Intang.'!$C$16","v":"co-svsp-core_2017-12-31:GrossCarryingAmount"}]
["/*",null,{"$f":"'823180 - Nota. Activos Intang.'!$D$17","v":"Depreciación y amortización acumuladas"},{"$f":"'823180 - Nota. Activos Intang.'!$C$17","v":"co-svsp-core_2017-12-31:AccumulatedDepreciationAndAmortisation"}]
["/*",null,{"$f":"'823180 - Nota. Activos Intang.'!$D$18","v":"Deterioro de valor acumulado"},{"$f":"'823180 - Nota. Activos Intang.'!$C$18","v":"co-svsp-core_2017-12-31:AccumulatedImpairment"}]
["/*",null,{"$f":"'823180 - Nota. Activos Intang.'!$D$19","v":"Conciliación de cambios en activos intangibles distintos de la plusvalía [resumen]"},{"$f":"'823180 - Nota. Activos Intang.'!$C$19","v":"ifrs-full:ReconciliationOfChangesInIntangibleAssetsOtherThanGoodwillAbstract"}]
["/*",null,{"$f":"'823180 - Nota. Activos Intang.'!$D$20","v":"Activos intangibles distintos de la plusvalía"},{"$f":"'823180 - Nota. Activos Intang.'!$C$20","v":"co-svsp-core_2017-12-31:IntangibleAssetsOtherThanGoodwillBeginningOfPeriod"}]
["/*",null,{"$f":"'823180 - Nota. Activos Intang.'!$D$21","v":"Incrementos distintos de los procedentes de combinaciones de negocios, activos intangibles distintos de la plusvalía"},{"$f":"'823180 - Nota. Activos Intang.'!$C$21","v":"ifrs-full:AdditionsOtherThanThroughBusinessCombinationsIntangibleAssetsOtherThanGoodwill"}]
["/*",null,{"$f":"'823180 - Nota. Activos Intang.'!$D$22","v":"Adquisiciones realizadas mediante combinaciones de negocios, activos intangibles distintos a la plusvalía"},{"$f":"'823180 - Nota. Activos Intang.'!$C$22","v":"ifrs-full:AcquisitionsThroughBusinessCombinationsIntangibleAssetsOtherThanGoodwill"}]
["/*",null,{"$f":"'823180 - Nota. Activos Intang.'!$D$23","v":"Amortización, activos intangibles distintos de la plusvalía"},{"$f":"'823180 - Nota. Activos Intang.'!$C$23","v":"ifrs-full:AmortisationIntangibleAssetsOtherThanGoodwill"}]
["/*",null,{"$f":"'823180 - Nota. Activos Intang.'!$D$24","v":"Pérdidas por deterioro de valor reconocidas en el resultado del periodo, activos intangibles distintos de la plusvalía"},{"$f":"'823180 - Nota. Activos Intang.'!$C$24","v":"ifrs-full:ImpairmentLossRecognisedInProfitOrLossIntangibleAssetsOtherThanGoodwill"}]
["/*",null,{"$f":"'823180 - Nota. Activos Intang.'!$D$25","v":"Reversión de pérdidas por deterioro de valor reconocidas en el resultado del periodo, activos intangibles distintos de la plusvalía"},{"$f":"'823180 - Nota. Activos Intang.'!$C$25","v":"ifrs-full:ReversalOfImpairmentLossRecognisedInProfitOrLossIntangibleAssetsOtherThanGoodwill"}]
["/*",null,{"$f":"'823180 - Nota. Activos Intang.'!$D$26","v":"Incrementos (disminuciones) por transferencias y otros cambios, activos intangibles distintos de la plusvalía [resumen]"},{"$f":"'823180 - Nota. Activos Intang.'!$C$26","v":"ifrs-full:IncreaseDecreaseThroughTransfersAndOtherChangesIntangibleAssetsOtherThanGoodwillAbstract"}]
["/*",null,{"$f":"'823180 - Nota. Activos Intang.'!$D$27","v":"Incrementos (disminuciones) por transferencias, activos intangibles distintas de la plusvalía"},{"$f":"'823180 - Nota. Activos Intang.'!$C$27","v":"ifrs-full:IncreaseDecreaseThroughTransfersIntangibleAssetsOtherThanGoodwill"}]
["/*",null,{"$f":"'823180 - Nota. Activos Intang.'!$D$28","v":"Incrementos (disminuciones) por otros cambios, activos intangibles distintos de la plusvalía"},{"$f":"'823180 - Nota. Activos Intang.'!$C$28","v":"ifrs-full:IncreaseDecreaseThroughOtherChangesIntangibleAssetsOtherThanGoodwill"}]
["",null,{"$f":"'823180 - Nota. Activos Intang.'!$D$29","v":"Incremento (disminución) por transferencias y otros cambios, activos intangibles distintos de la plusvalía"},{"$f":"'823180 - Nota. Activos Intang.'!$C$29","v":"ifrs-full:IncreaseDecreaseThroughTransfersAndOtherChangesIntangibleAssetsOtherThanGoodwill"},0,"peso",{"$f":"'823180 - Nota. Activos Intang.'!$H$29","v":0},800001965,"http://www.xbrl.org/scheme/companyName",{"$f":"Periodos!$C$3","v":"2017-01-01"},{"$f":"Periodos!$C$4","v":"2017-12-31"},{"$f":"'823180 - Nota. Activos Intang.'!$D$12","v":"co-svsp-core_2017-12-31:ActivosIntangibles_Eje_G1"},{"$f":"'823180 - Nota. Activos Intang.'!$H$11","v":"ifrs-full:LicencesAndFranchisesMember"}]
["/*",null,{"$f":"'823180 - Nota. Activos Intang.'!$D$30","v":"Disposiciones y retiros de servicio, activos intangibles distintos de la plusvalía [resumen]"},{"$f":"'823180 - Nota. Activos Intang.'!$C$30","v":"ifrs-full:DisposalsAndRetirementsIntangibleAssetsOtherThanGoodwillAbstract"}]
["/*",null,{"$f":"'823180 - Nota. Activos Intang.'!$D$31","v":"Disposiciones, activos intangibles distintos de la plusvalía"},{"$f":"'823180 - Nota. Activos Intang.'!$C$31","v":"ifrs-full:DisposalsIntangibleAssetsOtherThanGoodwill"}]
["/*",null,{"$f":"'823180 - Nota. Activos Intang.'!$D$32","v":"Retiros de servicio, activos intangibles distintos de la plusvalía"},{"$f":"'823180 - Nota. Activos Intang.'!$C$32","v":"ifrs-full:RetirementsIntangibleAssetsOtherThanGoodwill"}]
["",null,{"$f":"'823180 - Nota. Activos Intang.'!$D$33","v":"Disposiciones y retiros de servicio, activos intangibles distintos de la plusvalía"},{"$f":"'823180 - Nota. Activos Intang.'!$C$33","v":"ifrs-full:DisposalsAndRetirementsIntangibleAssetsOtherThanGoodwill"},0,"peso",{"$f":"'823180 - Nota. Activos Intang.'!$H$33","v":0},800001965,"http://www.xbrl.org/scheme/companyName",{"$f":"Periodos!$C$3","v":"2017-01-01"},{"$f":"Periodos!$C$4","v":"2017-12-31"},{"$f":"'823180 - Nota. Activos Intang.'!$D$12","v":"co-svsp-core_2017-12-31:ActivosIntangibles_Eje_G1"},{"$f":"'823180 - Nota. Activos Intang.'!$H$11","v":"ifrs-full:LicencesAndFranchisesMember"}]
["/*",null,{"$f":"'823180 - Nota. Activos Intang.'!$D$34","v":"Disminuciones por clasificar como mantenidos para la venta, activos intangibles distintos de la plusvalía"},{"$f":"'823180 - Nota. Activos Intang.'!$C$34","v":"ifrs-full:DecreaseThroughClassifiedAsHeldForSaleIntangibleAssetsOtherThanGoodwill"}]
["",null,{"$f":"'823180 - Nota. Activos Intang.'!$D$35","v":"Incremento (disminución) en activos intangibles distintos de la plusvalía"},{"$f":"'823180 - Nota. Activos Intang.'!$C$35","v":"ifrs-full:ChangesInIntangibleAssetsOtherThanGoodwill"},0,"peso",{"$f":"'823180 - Nota. Activos Intang.'!$H$35","v":0},800001965,"http://www.xbrl.org/scheme/companyName",{"$f":"Periodos!$C$3","v":"2017-01-01"},{"$f":"Periodos!$C$4","v":"2017-12-31"},{"$f":"'823180 - Nota. Activos Intang.'!$D$12","v":"co-svsp-core_2017-12-31:ActivosIntangibles_Eje_G1"},{"$f":"'823180 - Nota. Activos Intang.'!$H$11","v":"ifrs-full:LicencesAndFranchisesMember"}]
["",null,{"$f":"'823180 - Nota. Activos Intang.'!$D$36","v":"Activos intangibles distintos de la plusvalía"},{"$f":"'823180 - Nota. Activos Intang.'!$C$36","v":"co-svsp-core_2017-12-31:IntangibleAssetsOtherThanGoodwillEndOfPeriod"},0,"peso",{"$f":"'823180 - Nota. Activos Intang.'!$H$36","v":0},800001965,"http://www.xbrl.org/scheme/companyName",{"$f":"Periodos!$C$3","v":"2017-01-01"},{"$f":"Periodos!$C$4","v":"2017-12-31"},{"$f":"'823180 - Nota. Activos Intang.'!$D$12","v":"co-svsp-core_2017-12-31:ActivosIntangibles_Eje_G1"},{"$f":"'823180 - Nota. Activos Intang.'!$H$11","v":"ifrs-full:LicencesAndFranchisesMember"}]
["/*",null,"--05--"]
["/*",null,{"$f":"'823180 - Nota. Activos Intang.'!$D$13","v":"Información a revelar detallada sobre activos intangibles [partidas de los estados financieros]"},{"$f":"'823180 - Nota. Activos Intang.'!$C$13","v":"ifrs-full:DisclosureOfIntangibleAssetsLineItems"}]
["/*",null,{"$f":"'823180 - Nota. Activos Intang.'!$D$14","v":"Método de amortización, activos intangibles distintos de la plusvalía"},{"$f":"'823180 - Nota. Activos Intang.'!$C$14","v":"ifrs-full:AmortisationMethodIntangibleAssetsOtherThanGoodwill"}]
["/*",null,{"$f":"'823180 - Nota. Activos Intang.'!$D$15","v":"Vidas útiles o tasas de amortización, activos intangibles distintos de la plusvalía"},{"$f":"'823180 - Nota. Activos Intang.'!$C$15","v":"ifrs-full:UsefulLivesOrAmortisationRatesIntangibleAssetsOtherThanGoodwill"}]
["/*",null,{"$f":"'823180 - Nota. Activos Intang.'!$D$16","v":"Importe en libros en términos brutos"},{"$f":"'823180 - Nota. Activos Intang.'!$C$16","v":"co-svsp-core_2017-12-31:GrossCarryingAmount"}]
["/*",null,{"$f":"'823180 - Nota. Activos Intang.'!$D$17","v":"Depreciación y amortización acumuladas"},{"$f":"'823180 - Nota. Activos Intang.'!$C$17","v":"co-svsp-core_2017-12-31:AccumulatedDepreciationAndAmortisation"}]
[{"$f":"IF(G7457=\"\",\"/*\",\"\")","v":"/*"},null,{"$f":"'823180 - Nota. Activos Intang.'!$D$18","v":"Deterioro de valor acumulado"},{"$f":"'823180 - Nota. Activos Intang.'!$C$18","v":"co-svsp-core_2017-12-31:AccumulatedImpairment"}]
["/*",null,{"$f":"'823180 - Nota. Activos Intang.'!$D$19","v":"Conciliación de cambios en activos intangibles distintos de la plusvalía [resumen]"},{"$f":"'823180 - Nota. Activos Intang.'!$C$19","v":"ifrs-full:ReconciliationOfChangesInIntangibleAssetsOtherThanGoodwillAbstract"}]
["/*",null,{"$f":"'823180 - Nota. Activos Intang.'!$D$20","v":"Activos intangibles distintos de la plusvalía"},{"$f":"'823180 - Nota. Activos Intang.'!$C$20","v":"co-svsp-core_2017-12-31:IntangibleAssetsOtherThanGoodwillBeginningOfPeriod"}]
["/*",null,{"$f":"'823180 - Nota. Activos Intang.'!$D$21","v":"Incrementos distintos de los procedentes de combinaciones de negocios, activos intangibles distintos de la plusvalía"},{"$f":"'823180 - Nota. Activos Intang.'!$C$21","v":"ifrs-full:AdditionsOtherThanThroughBusinessCombinationsIntangibleAssetsOtherThanGoodwill"}]
["/*",null,{"$f":"'823180 - Nota. Activos Intang.'!$D$22","v":"Adquisiciones realizadas mediante combinaciones de negocios, activos intangibles distintos a la plusvalía"},{"$f":"'823180 - Nota. Activos Intang.'!$C$22","v":"ifrs-full:AcquisitionsThroughBusinessCombinationsIntangibleAssetsOtherThanGoodwill"}]
["/*",null,{"$f":"'823180 - Nota. Activos Intang.'!$D$23","v":"Amortización, activos intangibles distintos de la plusvalía"},{"$f":"'823180 - Nota. Activos Intang.'!$C$23","v":"ifrs-full:AmortisationIntangibleAssetsOtherThanGoodwill"}]
["/*",null,{"$f":"'823180 - Nota. Activos Intang.'!$D$24","v":"Pérdidas por deterioro de valor reconocidas en el resultado del periodo, activos intangibles distintos de la plusvalía"},{"$f":"'823180 - Nota. Activos Intang.'!$C$24","v":"ifrs-full:ImpairmentLossRecognisedInProfitOrLossIntangibleAssetsOtherThanGoodwill"}]
["/*",null,{"$f":"'823180 - Nota. Activos Intang.'!$D$25","v":"Reversión de pérdidas por deterioro de valor reconocidas en el resultado del periodo, activos intangibles distintos de la plusvalía"},{"$f":"'823180 - Nota. Activos Intang.'!$C$25","v":"ifrs-full:ReversalOfImpairmentLossRecognisedInProfitOrLossIntangibleAssetsOtherThanGoodwill"}]
["/*",null,{"$f":"'823180 - Nota. Activos Intang.'!$D$26","v":"Incrementos (disminuciones) por transferencias y otros cambios, activos intangibles distintos de la plusvalía [resumen]"},{"$f":"'823180 - Nota. Activos Intang.'!$C$26","v":"ifrs-full:IncreaseDecreaseThroughTransfersAndOtherChangesIntangibleAssetsOtherThanGoodwillAbstract"}]
["/*",null,{"$f":"'823180 - Nota. Activos Intang.'!$D$27","v":"Incrementos (disminuciones) por transferencias, activos intangibles distintas de la plusvalía"},{"$f":"'823180 - Nota. Activos Intang.'!$C$27","v":"ifrs-full:IncreaseDecreaseThroughTransfersIntangibleAssetsOtherThanGoodwill"}]
["/*",null,{"$f":"'823180 - Nota. Activos Intang.'!$D$28","v":"Incrementos (disminuciones) por otros cambios, activos intangibles distintos de la plusvalía"},{"$f":"'823180 - Nota. Activos Intang.'!$C$28","v":"ifrs-full:IncreaseDecreaseThroughOtherChangesIntangibleAssetsOtherThanGoodwill"}]
["",null,{"$f":"'823180 - Nota. Activos Intang.'!$D$29","v":"Incremento (disminución) por transferencias y otros cambios, activos intangibles distintos de la plusvalía"},{"$f":"'823180 - Nota. Activos Intang.'!$C$29","v":"ifrs-full:IncreaseDecreaseThroughTransfersAndOtherChangesIntangibleAssetsOtherThanGoodwill"},0,"peso",{"$f":"'823180 - Nota. Activos Intang.'!$I$29","v":0},800001965,"http://www.xbrl.org/scheme/companyName",{"$f":"Periodos!$C$3","v":"2017-01-01"},{"$f":"Periodos!$C$4","v":"2017-12-31"},{"$f":"'823180 - Nota. Activos Intang.'!$D$12","v":"co-svsp-core_2017-12-31:ActivosIntangibles_Eje_G1"},{"$f":"'823180 - Nota. Activos Intang.'!$I$11","v":"co-svsp-core_2017-12-31:DerechosMiembro"}]
["/*",null,{"$f":"'823180 - Nota. Activos Intang.'!$D$30","v":"Disposiciones y retiros de servicio, activos intangibles distintos de la plusvalía [resumen]"},{"$f":"'823180 - Nota. Activos Intang.'!$C$30","v":"ifrs-full:DisposalsAndRetirementsIntangibleAssetsOtherThanGoodwillAbstract"}]
["/*",null,{"$f":"'823180 - Nota. Activos Intang.'!$D$31","v":"Disposiciones, activos intangibles distintos de la plusvalía"},{"$f":"'823180 - Nota. Activos Intang.'!$C$31","v":"ifrs-full:DisposalsIntangibleAssetsOtherThanGoodwill"}]
["/*",null,{"$f":"'823180 - Nota. Activos Intang.'!$D$32","v":"Retiros de servicio, activos intangibles distintos de la plusvalía"},{"$f":"'823180 - Nota. Activos Intang.'!$C$32","v":"ifrs-full:RetirementsIntangibleAssetsOtherThanGoodwill"}]
["",null,{"$f":"'823180 - Nota. Activos Intang.'!$D$33","v":"Disposiciones y retiros de servicio, activos intangibles distintos de la plusvalía"},{"$f":"'823180 - Nota. Activos Intang.'!$C$33","v":"ifrs-full:DisposalsAndRetirementsIntangibleAssetsOtherThanGoodwill"},0,"peso",{"$f":"'823180 - Nota. Activos Intang.'!$I$33","v":0},800001965,"http://www.xbrl.org/scheme/companyName",{"$f":"Periodos!$C$3","v":"2017-01-01"},{"$f":"Periodos!$C$4","v":"2017-12-31"},{"$f":"'823180 - Nota. Activos Intang.'!$D$12","v":"co-svsp-core_2017-12-31:ActivosIntangibles_Eje_G1"},{"$f":"'823180 - Nota. Activos Intang.'!$I$11","v":"co-svsp-core_2017-12-31:DerechosMiembro"}]
["/*",null,{"$f":"'823180 - Nota. Activos Intang.'!$D$34","v":"Disminuciones por clasificar como mantenidos para la venta, activos intangibles distintos de la plusvalía"},{"$f":"'823180 - Nota. Activos Intang.'!$C$34","v":"ifrs-full:DecreaseThroughClassifiedAsHeldForSaleIntangibleAssetsOtherThanGoodwill"}]
["",null,{"$f":"'823180 - Nota. Activos Intang.'!$D$35","v":"Incremento (disminución) en activos intangibles distintos de la plusvalía"},{"$f":"'823180 - Nota. Activos Intang.'!$C$35","v":"ifrs-full:ChangesInIntangibleAssetsOtherThanGoodwill"},0,"peso",{"$f":"'823180 - Nota. Activos Intang.'!$I$35","v":0},800001965,"http://www.xbrl.org/scheme/companyName",{"$f":"Periodos!$C$3","v":"2017-01-01"},{"$f":"Periodos!$C$4","v":"2017-12-31"},{"$f":"'823180 - Nota. Activos Intang.'!$D$12","v":"co-svsp-core_2017-12-31:ActivosIntangibles_Eje_G1"},{"$f":"'823180 - Nota. Activos Intang.'!$I$11","v":"co-svsp-core_2017-12-31:DerechosMiembro"}]
["",null,{"$f":"'823180 - Nota. Activos Intang.'!$D$36","v":"Activos intangibles distintos de la plusvalía"},{"$f":"'823180 - Nota. Activos Intang.'!$C$36","v":"co-svsp-core_2017-12-31:IntangibleAssetsOtherThanGoodwillEndOfPeriod"},0,"peso",{"$f":"'823180 - Nota. Activos Intang.'!$I$36","v":0},800001965,"http://www.xbrl.org/scheme/companyName",{"$f":"Periodos!$C$3","v":"2017-01-01"},{"$f":"Periodos!$C$4","v":"2017-12-31"},{"$f":"'823180 - Nota. Activos Intang.'!$D$12","v":"co-svsp-core_2017-12-31:ActivosIntangibles_Eje_G1"},{"$f":"'823180 - Nota. Activos Intang.'!$I$11","v":"co-svsp-core_2017-12-31:DerechosMiembro"}]
["/*",null,"--06--"]
["/*",null,{"$f":"'823180 - Nota. Activos Intang.'!$D$13","v":"Información a revelar detallada sobre activos intangibles [partidas de los estados financieros]"},{"$f":"'823180 - Nota. Activos Intang.'!$C$13","v":"ifrs-full:DisclosureOfIntangibleAssetsLineItems"}]
["/*",null,{"$f":"'823180 - Nota. Activos Intang.'!$D$14","v":"Método de amortización, activos intangibles distintos de la plusvalía"},{"$f":"'823180 - Nota. Activos Intang.'!$C$14","v":"ifrs-full:AmortisationMethodIntangibleAssetsOtherThanGoodwill"}]
["/*",null,{"$f":"'823180 - Nota. Activos Intang.'!$D$15","v":"Vidas útiles o tasas de amortización, activos intangibles distintos de la plusvalía"},{"$f":"'823180 - Nota. Activos Intang.'!$C$15","v":"ifrs-full:UsefulLivesOrAmortisationRatesIntangibleAssetsOtherThanGoodwill"}]
["/*",null,{"$f":"'823180 - Nota. Activos Intang.'!$D$16","v":"Importe en libros en términos brutos"},{"$f":"'823180 - Nota. Activos Intang.'!$C$16","v":"co-svsp-core_2017-12-31:GrossCarryingAmount"}]
["/*",null,{"$f":"'823180 - Nota. Activos Intang.'!$D$17","v":"Depreciación y amortización acumuladas"},{"$f":"'823180 - Nota. Activos Intang.'!$C$17","v":"co-svsp-core_2017-12-31:AccumulatedDepreciationAndAmortisation"}]
["/*",null,{"$f":"'823180 - Nota. Activos Intang.'!$D$18","v":"Deterioro de valor acumulado"},{"$f":"'823180 - Nota. Activos Intang.'!$C$18","v":"co-svsp-core_2017-12-31:AccumulatedImpairment"}]
["/*",null,{"$f":"'823180 - Nota. Activos Intang.'!$D$19","v":"Conciliación de cambios en activos intangibles distintos de la plusvalía [resumen]"},{"$f":"'823180 - Nota. Activos Intang.'!$C$19","v":"ifrs-full:ReconciliationOfChangesInIntangibleAssetsOtherThanGoodwillAbstract"}]
["/*",null,{"$f":"'823180 - Nota. Activos Intang.'!$D$20","v":"Activos intangibles distintos de la plusvalía"},{"$f":"'823180 - Nota. Activos Intang.'!$C$20","v":"co-svsp-core_2017-12-31:IntangibleAssetsOtherThanGoodwillBeginningOfPeriod"}]
["/*",null,{"$f":"'823180 - Nota. Activos Intang.'!$D$21","v":"Incrementos distintos de los procedentes de combinaciones de negocios, activos intangibles distintos de la plusvalía"},{"$f":"'823180 - Nota. Activos Intang.'!$C$21","v":"ifrs-full:AdditionsOtherThanThroughBusinessCombinationsIntangibleAssetsOtherThanGoodwill"}]
["/*",null,{"$f":"'823180 - Nota. Activos Intang.'!$D$22","v":"Adquisiciones realizadas mediante combinaciones de negocios, activos intangibles distintos a la plusvalía"},{"$f":"'823180 - Nota. Activos Intang.'!$C$22","v":"ifrs-full:AcquisitionsThroughBusinessCombinationsIntangibleAssetsOtherThanGoodwill"}]
["/*",null,{"$f":"'823180 - Nota. Activos Intang.'!$D$23","v":"Amortización, activos intangibles distintos de la plusvalía"},{"$f":"'823180 - Nota. Activos Intang.'!$C$23","v":"ifrs-full:AmortisationIntangibleAssetsOtherThanGoodwill"}]
["/*",null,{"$f":"'823180 - Nota. Activos Intang.'!$D$24","v":"Pérdidas por deterioro de valor reconocidas en el resultado del periodo, activos intangibles distintos de la plusvalía"},{"$f":"'823180 - Nota. Activos Intang.'!$C$24","v":"ifrs-full:ImpairmentLossRecognisedInProfitOrLossIntangibleAssetsOtherThanGoodwill"}]
["/*",null,{"$f":"'823180 - Nota. Activos Intang.'!$D$25","v":"Reversión de pérdidas por deterioro de valor reconocidas en el resultado del periodo, activos intangibles distintos de la plusvalía"},{"$f":"'823180 - Nota. Activos Intang.'!$C$25","v":"ifrs-full:ReversalOfImpairmentLossRecognisedInProfitOrLossIntangibleAssetsOtherThanGoodwill"}]
["/*",null,{"$f":"'823180 - Nota. Activos Intang.'!$D$26","v":"Incrementos (disminuciones) por transferencias y otros cambios, activos intangibles distintos de la plusvalía [resumen]"},{"$f":"'823180 - Nota. Activos Intang.'!$C$26","v":"ifrs-full:IncreaseDecreaseThroughTransfersAndOtherChangesIntangibleAssetsOtherThanGoodwillAbstract"}]
["/*",null,{"$f":"'823180 - Nota. Activos Intang.'!$D$27","v":"Incrementos (disminuciones) por transferencias, activos intangibles distintas de la plusvalía"},{"$f":"'823180 - Nota. Activos Intang.'!$C$27","v":"ifrs-full:IncreaseDecreaseThroughTransfersIntangibleAssetsOtherThanGoodwill"}]
["/*",null,{"$f":"'823180 - Nota. Activos Intang.'!$D$28","v":"Incrementos (disminuciones) por otros cambios, activos intangibles distintos de la plusvalía"},{"$f":"'823180 - Nota. Activos Intang.'!$C$28","v":"ifrs-full:IncreaseDecreaseThroughOtherChangesIntangibleAssetsOtherThanGoodwill"}]
["",null,{"$f":"'823180 - Nota. Activos Intang.'!$D$29","v":"Incremento (disminución) por transferencias y otros cambios, activos intangibles distintos de la plusvalía"},{"$f":"'823180 - Nota. Activos Intang.'!$C$29","v":"ifrs-full:IncreaseDecreaseThroughTransfersAndOtherChangesIntangibleAssetsOtherThanGoodwill"},0,"peso",{"$f":"'823180 - Nota. Activos Intang.'!$J$29","v":0},800001965,"http://www.xbrl.org/scheme/companyName",{"$f":"Periodos!$C$3","v":"2017-01-01"},{"$f":"Periodos!$C$4","v":"2017-12-31"},{"$f":"'823180 - Nota. Activos Intang.'!$D$12","v":"co-svsp-core_2017-12-31:ActivosIntangibles_Eje_G1"},{"$f":"'823180 - Nota. Activos Intang.'!$J$11","v":"co-svsp-core_2017-12-31:KnowhowMiembro"}]
["/*",null,{"$f":"'823180 - Nota. Activos Intang.'!$D$30","v":"Disposiciones y retiros de servicio, activos intangibles distintos de la plusvalía [resumen]"},{"$f":"'823180 - Nota. Activos Intang.'!$C$30","v":"ifrs-full:DisposalsAndRetirementsIntangibleAssetsOtherThanGoodwillAbstract"}]
["/*",null,{"$f":"'823180 - Nota. Activos Intang.'!$D$31","v":"Disposiciones, activos intangibles distintos de la plusvalía"},{"$f":"'823180 - Nota. Activos Intang.'!$C$31","v":"ifrs-full:DisposalsIntangibleAssetsOtherThanGoodwill"}]
["/*",null,{"$f":"'823180 - Nota. Activos Intang.'!$D$32","v":"Retiros de servicio, activos intangibles distintos de la plusvalía"},{"$f":"'823180 - Nota. Activos Intang.'!$C$32","v":"ifrs-full:RetirementsIntangibleAssetsOtherThanGoodwill"}]
["",null,{"$f":"'823180 - Nota. Activos Intang.'!$D$33","v":"Disposiciones y retiros de servicio, activos intangibles distintos de la plusvalía"},{"$f":"'823180 - Nota. Activos Intang.'!$C$33","v":"ifrs-full:DisposalsAndRetirementsIntangibleAssetsOtherThanGoodwill"},0,"peso",{"$f":"'823180 - Nota. Activos Intang.'!$J$33","v":0},800001965,"http://www.xbrl.org/scheme/companyName",{"$f":"Periodos!$C$3","v":"2017-01-01"},{"$f":"Periodos!$C$4","v":"2017-12-31"},{"$f":"'823180 - Nota. Activos Intang.'!$D$12","v":"co-svsp-core_2017-12-31:ActivosIntangibles_Eje_G1"},{"$f":"'823180 - Nota. Activos Intang.'!$J$11","v":"co-svsp-core_2017-12-31:KnowhowMiembro"}]
["/*",null,{"$f":"'823180 - Nota. Activos Intang.'!$D$34","v":"Disminuciones por clasificar como mantenidos para la venta, activos intangibles distintos de la plusvalía"},{"$f":"'823180 - Nota. Activos Intang.'!$C$34","v":"ifrs-full:DecreaseThroughClassifiedAsHeldForSaleIntangibleAssetsOtherThanGoodwill"}]
["",null,{"$f":"'823180 - Nota. Activos Intang.'!$D$35","v":"Incremento (disminución) en activos intangibles distintos de la plusvalía"},{"$f":"'823180 - Nota. Activos Intang.'!$C$35","v":"ifrs-full:ChangesInIntangibleAssetsOtherThanGoodwill"},0,"peso",{"$f":"'823180 - Nota. Activos Intang.'!$J$35","v":0},800001965,"http://www.xbrl.org/scheme/companyName",{"$f":"Periodos!$C$3","v":"2017-01-01"},{"$f":"Periodos!$C$4","v":"2017-12-31"},{"$f":"'823180 - Nota. Activos Intang.'!$D$12","v":"co-svsp-core_2017-12-31:ActivosIntangibles_Eje_G1"},{"$f":"'823180 - Nota. Activos Intang.'!$J$11","v":"co-svsp-core_2017-12-31:KnowhowMiembro"}]
["",null,{"$f":"'823180 - Nota. Activos Intang.'!$D$36","v":"Activos intangibles distintos de la plusvalía"},{"$f":"'823180 - Nota. Activos Intang.'!$C$36","v":"co-svsp-core_2017-12-31:IntangibleAssetsOtherThanGoodwillEndOfPeriod"},0,"peso",{"$f":"'823180 - Nota. Activos Intang.'!$J$36","v":0},800001965,"http://www.xbrl.org/scheme/companyName",{"$f":"Periodos!$C$3","v":"2017-01-01"},{"$f":"Periodos!$C$4","v":"2017-12-31"},{"$f":"'823180 - Nota. Activos Intang.'!$D$12","v":"co-svsp-core_2017-12-31:ActivosIntangibles_Eje_G1"},{"$f":"'823180 - Nota. Activos Intang.'!$J$11","v":"co-svsp-core_2017-12-31:KnowhowMiembro"}]
["/*",null,"--07--"]
["/*",null,{"$f":"'823180 - Nota. Activos Intang.'!$D$13","v":"Información a revelar detallada sobre activos intangibles [partidas de los estados financieros]"},{"$f":"'823180 - Nota. Activos Intang.'!$C$13","v":"ifrs-full:DisclosureOfIntangibleAssetsLineItems"}]
["/*",null,{"$f":"'823180 - Nota. Activos Intang.'!$D$14","v":"Método de amortización, activos intangibles distintos de la plusvalía"},{"$f":"'823180 - Nota. Activos Intang.'!$C$14","v":"ifrs-full:AmortisationMethodIntangibleAssetsOtherThanGoodwill"}]
["/*",null,{"$f":"'823180 - Nota. Activos Intang.'!$D$15","v":"Vidas útiles o tasas de amortización, activos intangibles distintos de la plusvalía"},{"$f":"'823180 - Nota. Activos Intang.'!$C$15","v":"ifrs-full:UsefulLivesOrAmortisationRatesIntangibleAssetsOtherThanGoodwill"}]
["/*",null,{"$f":"'823180 - Nota. Activos Intang.'!$D$16","v":"Importe en libros en términos brutos"},{"$f":"'823180 - Nota. Activos Intang.'!$C$16","v":"co-svsp-core_2017-12-31:GrossCarryingAmount"}]
["/*",null,{"$f":"'823180 - Nota. Activos Intang.'!$D$17","v":"Depreciación y amortización acumuladas"},{"$f":"'823180 - Nota. Activos Intang.'!$C$17","v":"co-svsp-core_2017-12-31:AccumulatedDepreciationAndAmortisation"}]
["/*",null,{"$f":"'823180 - Nota. Activos Intang.'!$D$18","v":"Deterioro de valor acumulado"},{"$f":"'823180 - Nota. Activos Intang.'!$C$18","v":"co-svsp-core_2017-12-31:AccumulatedImpairment"}]
["/*",null,{"$f":"'823180 - Nota. Activos Intang.'!$D$19","v":"Conciliación de cambios en activos intangibles distintos de la plusvalía [resumen]"},{"$f":"'823180 - Nota. Activos Intang.'!$C$19","v":"ifrs-full:ReconciliationOfChangesInIntangibleAssetsOtherThanGoodwillAbstract"}]
["/*",null,{"$f":"'823180 - Nota. Activos Intang.'!$D$20","v":"Activos intangibles distintos de la plusvalía"},{"$f":"'823180 - Nota. Activos Intang.'!$C$20","v":"co-svsp-core_2017-12-31:IntangibleAssetsOtherThanGoodwillBeginningOfPeriod"}]
["/*",null,{"$f":"'823180 - Nota. Activos Intang.'!$D$21","v":"Incrementos distintos de los procedentes de combinaciones de negocios, activos intangibles distintos de la plusvalía"},{"$f":"'823180 - Nota. Activos Intang.'!$C$21","v":"ifrs-full:AdditionsOtherThanThroughBusinessCombinationsIntangibleAssetsOtherThanGoodwill"}]
["/*",null,{"$f":"'823180 - Nota. Activos Intang.'!$D$22","v":"Adquisiciones realizadas mediante combinaciones de negocios, activos intangibles distintos a la plusvalía"},{"$f":"'823180 - Nota. Activos Intang.'!$C$22","v":"ifrs-full:AcquisitionsThroughBusinessCombinationsIntangibleAssetsOtherThanGoodwill"}]
["/*",null,{"$f":"'823180 - Nota. Activos Intang.'!$D$23","v":"Amortización, activos intangibles distintos de la plusvalía"},{"$f":"'823180 - Nota. Activos Intang.'!$C$23","v":"ifrs-full:AmortisationIntangibleAssetsOtherThanGoodwill"}]
["/*",null,{"$f":"'823180 - Nota. Activos Intang.'!$D$24","v":"Pérdidas por deterioro de valor reconocidas en el resultado del periodo, activos intangibles distintos de la plusvalía"},{"$f":"'823180 - Nota. Activos Intang.'!$C$24","v":"ifrs-full:ImpairmentLossRecognisedInProfitOrLossIntangibleAssetsOtherThanGoodwill"}]
["/*",null,{"$f":"'823180 - Nota. Activos Intang.'!$D$25","v":"Reversión de pérdidas por deterioro de valor reconocidas en el resultado del periodo, activos intangibles distintos de la plusvalía"},{"$f":"'823180 - Nota. Activos Intang.'!$C$25","v":"ifrs-full:ReversalOfImpairmentLossRecognisedInProfitOrLossIntangibleAssetsOtherThanGoodwill"}]
["/*",null,{"$f":"'823180 - Nota. Activos Intang.'!$D$26","v":"Incrementos (disminuciones) por transferencias y otros cambios, activos intangibles distintos de la plusvalía [resumen]"},{"$f":"'823180 - Nota. Activos Intang.'!$C$26","v":"ifrs-full:IncreaseDecreaseThroughTransfersAndOtherChangesIntangibleAssetsOtherThanGoodwillAbstract"}]
["/*",null,{"$f":"'823180 - Nota. Activos Intang.'!$D$27","v":"Incrementos (disminuciones) por transferencias, activos intangibles distintas de la plusvalía"},{"$f":"'823180 - Nota. Activos Intang.'!$C$27","v":"ifrs-full:IncreaseDecreaseThroughTransfersIntangibleAssetsOtherThanGoodwill"}]
["/*",null,{"$f":"'823180 - Nota. Activos Intang.'!$D$28","v":"Incrementos (disminuciones) por otros cambios, activos intangibles distintos de la plusvalía"},{"$f":"'823180 - Nota. Activos Intang.'!$C$28","v":"ifrs-full:IncreaseDecreaseThroughOtherChangesIntangibleAssetsOtherThanGoodwill"}]
["",null,{"$f":"'823180 - Nota. Activos Intang.'!$D$29","v":"Incremento (disminución) por transferencias y otros cambios, activos intangibles distintos de la plusvalía"},{"$f":"'823180 - Nota. Activos Intang.'!$C$29","v":"ifrs-full:IncreaseDecreaseThroughTransfersAndOtherChangesIntangibleAssetsOtherThanGoodwill"},0,"peso",{"$f":"'823180 - Nota. Activos Intang.'!$K$29","v":0},800001965,"http://www.xbrl.org/scheme/companyName",{"$f":"Periodos!$C$3","v":"2017-01-01"},{"$f":"Periodos!$C$4","v":"2017-12-31"},{"$f":"'823180 - Nota. Activos Intang.'!$D$12","v":"co-svsp-core_2017-12-31:ActivosIntangibles_Eje_G1"},{"$f":"'823180 - Nota. Activos Intang.'!$K$11","v":"ifrs-full:IntangibleExplorationAndEvaluationAssetsMember"}]
["/*",null,{"$f":"'823180 - Nota. Activos Intang.'!$D$30","v":"Disposiciones y retiros de servicio, activos intangibles distintos de la plusvalía [resumen]"},{"$f":"'823180 - Nota. Activos Intang.'!$C$30","v":"ifrs-full:DisposalsAndRetirementsIntangibleAssetsOtherThanGoodwillAbstract"}]
["/*",null,{"$f":"'823180 - Nota. Activos Intang.'!$D$31","v":"Disposiciones, activos intangibles distintos de la plusvalía"},{"$f":"'823180 - Nota. Activos Intang.'!$C$31","v":"ifrs-full:DisposalsIntangibleAssetsOtherThanGoodwill"}]
[{"$f":"IF(G7521=\"\",\"/*\",\"\")","v":"/*"},null,{"$f":"'823180 - Nota. Activos Intang.'!$D$32","v":"Retiros de servicio, activos intangibles distintos de la plusvalía"},{"$f":"'823180 - Nota. Activos Intang.'!$C$32","v":"ifrs-full:RetirementsIntangibleAssetsOtherThanGoodwill"}]
["",null,{"$f":"'823180 - Nota. Activos Intang.'!$D$33","v":"Disposiciones y retiros de servicio, activos intangibles distintos de la plusvalía"},{"$f":"'823180 - Nota. Activos Intang.'!$C$33","v":"ifrs-full:DisposalsAndRetirementsIntangibleAssetsOtherThanGoodwill"},0,"peso",{"$f":"'823180 - Nota. Activos Intang.'!$K$33","v":0},800001965,"http://www.xbrl.org/scheme/companyName",{"$f":"Periodos!$C$3","v":"2017-01-01"},{"$f":"Periodos!$C$4","v":"2017-12-31"},{"$f":"'823180 - Nota. Activos Intang.'!$D$12","v":"co-svsp-core_2017-12-31:ActivosIntangibles_Eje_G1"},{"$f":"'823180 - Nota. Activos Intang.'!$K$11","v":"ifrs-full:IntangibleExplorationAndEvaluationAssetsMember"}]
["/*",null,{"$f":"'823180 - Nota. Activos Intang.'!$D$34","v":"Disminuciones por clasificar como mantenidos para la venta, activos intangibles distintos de la plusvalía"},{"$f":"'823180 - Nota. Activos Intang.'!$C$34","v":"ifrs-full:DecreaseThroughClassifiedAsHeldForSaleIntangibleAssetsOtherThanGoodwill"}]
["",null,{"$f":"'823180 - Nota. Activos Intang.'!$D$35","v":"Incremento (disminución) en activos intangibles distintos de la plusvalía"},{"$f":"'823180 - Nota. Activos Intang.'!$C$35","v":"ifrs-full:ChangesInIntangibleAssetsOtherThanGoodwill"},0,"peso",{"$f":"'823180 - Nota. Activos Intang.'!$K$35","v":0},800001965,"http://www.xbrl.org/scheme/companyName",{"$f":"Periodos!$C$3","v":"2017-01-01"},{"$f":"Periodos!$C$4","v":"2017-12-31"},{"$f":"'823180 - Nota. Activos Intang.'!$D$12","v":"co-svsp-core_2017-12-31:ActivosIntangibles_Eje_G1"},{"$f":"'823180 - Nota. Activos Intang.'!$K$11","v":"ifrs-full:IntangibleExplorationAndEvaluationAssetsMember"}]
["",null,{"$f":"'823180 - Nota. Activos Intang.'!$D$36","v":"Activos intangibles distintos de la plusvalía"},{"$f":"'823180 - Nota. Activos Intang.'!$C$36","v":"co-svsp-core_2017-12-31:IntangibleAssetsOtherThanGoodwillEndOfPeriod"},0,"peso",{"$f":"'823180 - Nota. Activos Intang.'!$K$36","v":0},800001965,"http://www.xbrl.org/scheme/companyName",{"$f":"Periodos!$C$3","v":"2017-01-01"},{"$f":"Periodos!$C$4","v":"2017-12-31"},{"$f":"'823180 - Nota. Activos Intang.'!$D$12","v":"co-svsp-core_2017-12-31:ActivosIntangibles_Eje_G1"},{"$f":"'823180 - Nota. Activos Intang.'!$K$11","v":"ifrs-full:IntangibleExplorationAndEvaluationAssetsMember"}]
["/*",null,"--08--"]
["/*",null,{"$f":"'823180 - Nota. Activos Intang.'!$D$13","v":"Información a revelar detallada sobre activos intangibles [partidas de los estados financieros]"},{"$f":"'823180 - Nota. Activos Intang.'!$C$13","v":"ifrs-full:DisclosureOfIntangibleAssetsLineItems"}]
["/*",null,{"$f":"'823180 - Nota. Activos Intang.'!$D$14","v":"Método de amortización, activos intangibles distintos de la plusvalía"},{"$f":"'823180 - Nota. Activos Intang.'!$C$14","v":"ifrs-full:AmortisationMethodIntangibleAssetsOtherThanGoodwill"}]
["/*",null,{"$f":"'823180 - Nota. Activos Intang.'!$D$15","v":"Vidas útiles o tasas de amortización, activos intangibles distintos de la plusvalía"},{"$f":"'823180 - Nota. Activos Intang.'!$C$15","v":"ifrs-full:UsefulLivesOrAmortisationRatesIntangibleAssetsOtherThanGoodwill"}]
["/*",null,{"$f":"'823180 - Nota. Activos Intang.'!$D$16","v":"Importe en libros en términos brutos"},{"$f":"'823180 - Nota. Activos Intang.'!$C$16","v":"co-svsp-core_2017-12-31:GrossCarryingAmount"}]
["/*",null,{"$f":"'823180 - Nota. Activos Intang.'!$D$17","v":"Depreciación y amortización acumuladas"},{"$f":"'823180 - Nota. Activos Intang.'!$C$17","v":"co-svsp-core_2017-12-31:AccumulatedDepreciationAndAmortisation"}]
["/*",null,{"$f":"'823180 - Nota. Activos Intang.'!$D$18","v":"Deterioro de valor acumulado"},{"$f":"'823180 - Nota. Activos Intang.'!$C$18","v":"co-svsp-core_2017-12-31:AccumulatedImpairment"}]
["/*",null,{"$f":"'823180 - Nota. Activos Intang.'!$D$19","v":"Conciliación de cambios en activos intangibles distintos de la plusvalía [resumen]"},{"$f":"'823180 - Nota. Activos Intang.'!$C$19","v":"ifrs-full:ReconciliationOfChangesInIntangibleAssetsOtherThanGoodwillAbstract"}]
["/*",null,{"$f":"'823180 - Nota. Activos Intang.'!$D$20","v":"Activos intangibles distintos de la plusvalía"},{"$f":"'823180 - Nota. Activos Intang.'!$C$20","v":"co-svsp-core_2017-12-31:IntangibleAssetsOtherThanGoodwillBeginningOfPeriod"}]
["/*",null,{"$f":"'823180 - Nota. Activos Intang.'!$D$21","v":"Incrementos distintos de los procedentes de combinaciones de negocios, activos intangibles distintos de la plusvalía"},{"$f":"'823180 - Nota. Activos Intang.'!$C$21","v":"ifrs-full:AdditionsOtherThanThroughBusinessCombinationsIntangibleAssetsOtherThanGoodwill"}]
["/*",null,{"$f":"'823180 - Nota. Activos Intang.'!$D$22","v":"Adquisiciones realizadas mediante combinaciones de negocios, activos intangibles distintos a la plusvalía"},{"$f":"'823180 - Nota. Activos Intang.'!$C$22","v":"ifrs-full:AcquisitionsThroughBusinessCombinationsIntangibleAssetsOtherThanGoodwill"}]
["/*",null,{"$f":"'823180 - Nota. Activos Intang.'!$D$23","v":"Amortización, activos intangibles distintos de la plusvalía"},{"$f":"'823180 - Nota. Activos Intang.'!$C$23","v":"ifrs-full:AmortisationIntangibleAssetsOtherThanGoodwill"}]
["/*",null,{"$f":"'823180 - Nota. Activos Intang.'!$D$24","v":"Pérdidas por deterioro de valor reconocidas en el resultado del periodo, activos intangibles distintos de la plusvalía"},{"$f":"'823180 - Nota. Activos Intang.'!$C$24","v":"ifrs-full:ImpairmentLossRecognisedInProfitOrLossIntangibleAssetsOtherThanGoodwill"}]
["/*",null,{"$f":"'823180 - Nota. Activos Intang.'!$D$25","v":"Reversión de pérdidas por deterioro de valor reconocidas en el resultado del periodo, activos intangibles distintos de la plusvalía"},{"$f":"'823180 - Nota. Activos Intang.'!$C$25","v":"ifrs-full:ReversalOfImpairmentLossRecognisedInProfitOrLossIntangibleAssetsOtherThanGoodwill"}]
["/*",null,{"$f":"'823180 - Nota. Activos Intang.'!$D$26","v":"Incrementos (disminuciones) por transferencias y otros cambios, activos intangibles distintos de la plusvalía [resumen]"},{"$f":"'823180 - Nota. Activos Intang.'!$C$26","v":"ifrs-full:IncreaseDecreaseThroughTransfersAndOtherChangesIntangibleAssetsOtherThanGoodwillAbstract"}]
["/*",null,{"$f":"'823180 - Nota. Activos Intang.'!$D$27","v":"Incrementos (disminuciones) por transferencias, activos intangibles distintas de la plusvalía"},{"$f":"'823180 - Nota. Activos Intang.'!$C$27","v":"ifrs-full:IncreaseDecreaseThroughTransfersIntangibleAssetsOtherThanGoodwill"}]
["/*",null,{"$f":"'823180 - Nota. Activos Intang.'!$D$28","v":"Incrementos (disminuciones) por otros cambios, activos intangibles distintos de la plusvalía"},{"$f":"'823180 - Nota. Activos Intang.'!$C$28","v":"ifrs-full:IncreaseDecreaseThroughOtherChangesIntangibleAssetsOtherThanGoodwill"}]
["",null,{"$f":"'823180 - Nota. Activos Intang.'!$D$29","v":"Incremento (disminución) por transferencias y otros cambios, activos intangibles distintos de la plusvalía"},{"$f":"'823180 - Nota. Activos Intang.'!$C$29","v":"ifrs-full:IncreaseDecreaseThroughTransfersAndOtherChangesIntangibleAssetsOtherThanGoodwill"},0,"peso",{"$f":"'823180 - Nota. Activos Intang.'!$L$29","v":0},800001965,"http://www.xbrl.org/scheme/companyName",{"$f":"Periodos!$C$3","v":"2017-01-01"},{"$f":"Periodos!$C$4","v":"2017-12-31"},{"$f":"'823180 - Nota. Activos Intang.'!$D$12","v":"co-svsp-core_2017-12-31:ActivosIntangibles_Eje_G1"},{"$f":"'823180 - Nota. Activos Intang.'!$L$11","v":"co-svsp-core_2017-12-31:ServiceConcessionArrangementsClassifiedAsIntangibleAssetsMember"}]
["/*",null,{"$f":"'823180 - Nota. Activos Intang.'!$D$30","v":"Disposiciones y retiros de servicio, activos intangibles distintos de la plusvalía [resumen]"},{"$f":"'823180 - Nota. Activos Intang.'!$C$30","v":"ifrs-full:DisposalsAndRetirementsIntangibleAssetsOtherThanGoodwillAbstract"}]
["/*",null,{"$f":"'823180 - Nota. Activos Intang.'!$D$31","v":"Disposiciones, activos intangibles distintos de la plusvalía"},{"$f":"'823180 - Nota. Activos Intang.'!$C$31","v":"ifrs-full:DisposalsIntangibleAssetsOtherThanGoodwill"}]
["/*",null,{"$f":"'823180 - Nota. Activos Intang.'!$D$32","v":"Retiros de servicio, activos intangibles distintos de la plusvalía"},{"$f":"'823180 - Nota. Activos Intang.'!$C$32","v":"ifrs-full:RetirementsIntangibleAssetsOtherThanGoodwill"}]
["",null,{"$f":"'823180 - Nota. Activos Intang.'!$D$33","v":"Disposiciones y retiros de servicio, activos intangibles distintos de la plusvalía"},{"$f":"'823180 - Nota. Activos Intang.'!$C$33","v":"ifrs-full:DisposalsAndRetirementsIntangibleAssetsOtherThanGoodwill"},0,"peso",{"$f":"'823180 - Nota. Activos Intang.'!$L$33","v":0},800001965,"http://www.xbrl.org/scheme/companyName",{"$f":"Periodos!$C$3","v":"2017-01-01"},{"$f":"Periodos!$C$4","v":"2017-12-31"},{"$f":"'823180 - Nota. Activos Intang.'!$D$12","v":"co-svsp-core_2017-12-31:ActivosIntangibles_Eje_G1"},{"$f":"'823180 - Nota. Activos Intang.'!$L$11","v":"co-svsp-core_2017-12-31:ServiceConcessionArrangementsClassifiedAsIntangibleAssetsMember"}]
["/*",null,{"$f":"'823180 - Nota. Activos Intang.'!$D$34","v":"Disminuciones por clasificar como mantenidos para la venta, activos intangibles distintos de la plusvalía"},{"$f":"'823180 - Nota. Activos Intang.'!$C$34","v":"ifrs-full:DecreaseThroughClassifiedAsHeldForSaleIntangibleAssetsOtherThanGoodwill"}]
["",null,{"$f":"'823180 - Nota. Activos Intang.'!$D$35","v":"Incremento (disminución) en activos intangibles distintos de la plusvalía"},{"$f":"'823180 - Nota. Activos Intang.'!$C$35","v":"ifrs-full:ChangesInIntangibleAssetsOtherThanGoodwill"},0,"peso",{"$f":"'823180 - Nota. Activos Intang.'!$L$35","v":0},800001965,"http://www.xbrl.org/scheme/companyName",{"$f":"Periodos!$C$3","v":"2017-01-01"},{"$f":"Periodos!$C$4","v":"2017-12-31"},{"$f":"'823180 - Nota. Activos Intang.'!$D$12","v":"co-svsp-core_2017-12-31:ActivosIntangibles_Eje_G1"},{"$f":"'823180 - Nota. Activos Intang.'!$L$11","v":"co-svsp-core_2017-12-31:ServiceConcessionArrangementsClassifiedAsIntangibleAssetsMember"}]
["",null,{"$f":"'823180 - Nota. Activos Intang.'!$D$36","v":"Activos intangibles distintos de la plusvalía"},{"$f":"'823180 - Nota. Activos Intang.'!$C$36","v":"co-svsp-core_2017-12-31:IntangibleAssetsOtherThanGoodwillEndOfPeriod"},0,"peso",{"$f":"'823180 - Nota. Activos Intang.'!$L$36","v":0},800001965,"http://www.xbrl.org/scheme/companyName",{"$f":"Periodos!$C$3","v":"2017-01-01"},{"$f":"Periodos!$C$4","v":"2017-12-31"},{"$f":"'823180 - Nota. Activos Intang.'!$D$12","v":"co-svsp-core_2017-12-31:ActivosIntangibles_Eje_G1"},{"$f":"'823180 - Nota. Activos Intang.'!$L$11","v":"co-svsp-core_2017-12-31:ServiceConcessionArrangementsClassifiedAsIntangibleAssetsMember"}]
["/*",null,"--09--"]
["/*",null,{"$f":"'823180 - Nota. Activos Intang.'!$D$13","v":"Información a revelar detallada sobre activos intangibles [partidas de los estados financieros]"},{"$f":"'823180 - Nota. Activos Intang.'!$C$13","v":"ifrs-full:DisclosureOfIntangibleAssetsLineItems"}]
["/*",null,{"$f":"'823180 - Nota. Activos Intang.'!$D$14","v":"Método de amortización, activos intangibles distintos de la plusvalía"},{"$f":"'823180 - Nota. Activos Intang.'!$C$14","v":"ifrs-full:AmortisationMethodIntangibleAssetsOtherThanGoodwill"}]
["/*",null,{"$f":"'823180 - Nota. Activos Intang.'!$D$15","v":"Vidas útiles o tasas de amortización, activos intangibles distintos de la plusvalía"},{"$f":"'823180 - Nota. Activos Intang.'!$C$15","v":"ifrs-full:UsefulLivesOrAmortisationRatesIntangibleAssetsOtherThanGoodwill"}]
["/*",null,{"$f":"'823180 - Nota. Activos Intang.'!$D$16","v":"Importe en libros en términos brutos"},{"$f":"'823180 - Nota. Activos Intang.'!$C$16","v":"co-svsp-core_2017-12-31:GrossCarryingAmount"}]
["/*",null,{"$f":"'823180 - Nota. Activos Intang.'!$D$17","v":"Depreciación y amortización acumuladas"},{"$f":"'823180 - Nota. Activos Intang.'!$C$17","v":"co-svsp-core_2017-12-31:AccumulatedDepreciationAndAmortisation"}]
["/*",null,{"$f":"'823180 - Nota. Activos Intang.'!$D$18","v":"Deterioro de valor acumulado"},{"$f":"'823180 - Nota. Activos Intang.'!$C$18","v":"co-svsp-core_2017-12-31:AccumulatedImpairment"}]
["/*",null,{"$f":"'823180 - Nota. Activos Intang.'!$D$19","v":"Conciliación de cambios en activos intangibles distintos de la plusvalía [resumen]"},{"$f":"'823180 - Nota. Activos Intang.'!$C$19","v":"ifrs-full:ReconciliationOfChangesInIntangibleAssetsOtherThanGoodwillAbstract"}]
["/*",null,{"$f":"'823180 - Nota. Activos Intang.'!$D$20","v":"Activos intangibles distintos de la plusvalía"},{"$f":"'823180 - Nota. Activos Intang.'!$C$20","v":"co-svsp-core_2017-12-31:IntangibleAssetsOtherThanGoodwillBeginningOfPeriod"}]
["/*",null,{"$f":"'823180 - Nota. Activos Intang.'!$D$21","v":"Incrementos distintos de los procedentes de combinaciones de negocios, activos intangibles distintos de la plusvalía"},{"$f":"'823180 - Nota. Activos Intang.'!$C$21","v":"ifrs-full:AdditionsOtherThanThroughBusinessCombinationsIntangibleAssetsOtherThanGoodwill"}]
["/*",null,{"$f":"'823180 - Nota. Activos Intang.'!$D$22","v":"Adquisiciones realizadas mediante combinaciones de negocios, activos intangibles distintos a la plusvalía"},{"$f":"'823180 - Nota. Activos Intang.'!$C$22","v":"ifrs-full:AcquisitionsThroughBusinessCombinationsIntangibleAssetsOtherThanGoodwill"}]
["/*",null,{"$f":"'823180 - Nota. Activos Intang.'!$D$23","v":"Amortización, activos intangibles distintos de la plusvalía"},{"$f":"'823180 - Nota. Activos Intang.'!$C$23","v":"ifrs-full:AmortisationIntangibleAssetsOtherThanGoodwill"}]
["/*",null,{"$f":"'823180 - Nota. Activos Intang.'!$D$24","v":"Pérdidas por deterioro de valor reconocidas en el resultado del periodo, activos intangibles distintos de la plusvalía"},{"$f":"'823180 - Nota. Activos Intang.'!$C$24","v":"ifrs-full:ImpairmentLossRecognisedInProfitOrLossIntangibleAssetsOtherThanGoodwill"}]
["/*",null,{"$f":"'823180 - Nota. Activos Intang.'!$D$25","v":"Reversión de pérdidas por deterioro de valor reconocidas en el resultado del periodo, activos intangibles distintos de la plusvalía"},{"$f":"'823180 - Nota. Activos Intang.'!$C$25","v":"ifrs-full:ReversalOfImpairmentLossRecognisedInProfitOrLossIntangibleAssetsOtherThanGoodwill"}]
["/*",null,{"$f":"'823180 - Nota. Activos Intang.'!$D$26","v":"Incrementos (disminuciones) por transferencias y otros cambios, activos intangibles distintos de la plusvalía [resumen]"},{"$f":"'823180 - Nota. Activos Intang.'!$C$26","v":"ifrs-full:IncreaseDecreaseThroughTransfersAndOtherChangesIntangibleAssetsOtherThanGoodwillAbstract"}]
["/*",null,{"$f":"'823180 - Nota. Activos Intang.'!$D$27","v":"Incrementos (disminuciones) por transferencias, activos intangibles distintas de la plusvalía"},{"$f":"'823180 - Nota. Activos Intang.'!$C$27","v":"ifrs-full:IncreaseDecreaseThroughTransfersIntangibleAssetsOtherThanGoodwill"}]
["/*",null,{"$f":"'823180 - Nota. Activos Intang.'!$D$28","v":"Incrementos (disminuciones) por otros cambios, activos intangibles distintos de la plusvalía"},{"$f":"'823180 - Nota. Activos Intang.'!$C$28","v":"ifrs-full:IncreaseDecreaseThroughOtherChangesIntangibleAssetsOtherThanGoodwill"}]
["",null,{"$f":"'823180 - Nota. Activos Intang.'!$D$29","v":"Incremento (disminución) por transferencias y otros cambios, activos intangibles distintos de la plusvalía"},{"$f":"'823180 - Nota. Activos Intang.'!$C$29","v":"ifrs-full:IncreaseDecreaseThroughTransfersAndOtherChangesIntangibleAssetsOtherThanGoodwill"},0,"peso",{"$f":"'823180 - Nota. Activos Intang.'!$M$29","v":0},800001965,"http://www.xbrl.org/scheme/companyName",{"$f":"Periodos!$C$3","v":"2017-01-01"},{"$f":"Periodos!$C$4","v":"2017-12-31"},{"$f":"'823180 - Nota. Activos Intang.'!$D$12","v":"co-svsp-core_2017-12-31:ActivosIntangibles_Eje_G1"},{"$f":"'823180 - Nota. Activos Intang.'!$M$11","v":"ifrs-full:OtherIntangibleAssetsMember"}]
["/*",null,{"$f":"'823180 - Nota. Activos Intang.'!$D$30","v":"Disposiciones y retiros de servicio, activos intangibles distintos de la plusvalía [resumen]"},{"$f":"'823180 - Nota. Activos Intang.'!$C$30","v":"ifrs-full:DisposalsAndRetirementsIntangibleAssetsOtherThanGoodwillAbstract"}]
["/*",null,{"$f":"'823180 - Nota. Activos Intang.'!$D$31","v":"Disposiciones, activos intangibles distintos de la plusvalía"},{"$f":"'823180 - Nota. Activos Intang.'!$C$31","v":"ifrs-full:DisposalsIntangibleAssetsOtherThanGoodwill"}]
["/*",null,{"$f":"'823180 - Nota. Activos Intang.'!$D$32","v":"Retiros de servicio, activos intangibles distintos de la plusvalía"},{"$f":"'823180 - Nota. Activos Intang.'!$C$32","v":"ifrs-full:RetirementsIntangibleAssetsOtherThanGoodwill"}]
["",null,{"$f":"'823180 - Nota. Activos Intang.'!$D$33","v":"Disposiciones y retiros de servicio, activos intangibles distintos de la plusvalía"},{"$f":"'823180 - Nota. Activos Intang.'!$C$33","v":"ifrs-full:DisposalsAndRetirementsIntangibleAssetsOtherThanGoodwill"},0,"peso",{"$f":"'823180 - Nota. Activos Intang.'!$M$33","v":0},800001965,"http://www.xbrl.org/scheme/companyName",{"$f":"Periodos!$C$3","v":"2017-01-01"},{"$f":"Periodos!$C$4","v":"2017-12-31"},{"$f":"'823180 - Nota. Activos Intang.'!$D$12","v":"co-svsp-core_2017-12-31:ActivosIntangibles_Eje_G1"},{"$f":"'823180 - Nota. Activos Intang.'!$M$11","v":"ifrs-full:OtherIntangibleAssetsMember"}]
["/*",null,{"$f":"'823180 - Nota. Activos Intang.'!$D$34","v":"Disminuciones por clasificar como mantenidos para la venta, activos intangibles distintos de la plusvalía"},{"$f":"'823180 - Nota. Activos Intang.'!$C$34","v":"ifrs-full:DecreaseThroughClassifiedAsHeldForSaleIntangibleAssetsOtherThanGoodwill"}]
["",null,{"$f":"'823180 - Nota. Activos Intang.'!$D$35","v":"Incremento (disminución) en activos intangibles distintos de la plusvalía"},{"$f":"'823180 - Nota. Activos Intang.'!$C$35","v":"ifrs-full:ChangesInIntangibleAssetsOtherThanGoodwill"},0,"peso",{"$f":"'823180 - Nota. Activos Intang.'!$M$35","v":0},800001965,"http://www.xbrl.org/scheme/companyName",{"$f":"Periodos!$C$3","v":"2017-01-01"},{"$f":"Periodos!$C$4","v":"2017-12-31"},{"$f":"'823180 - Nota. Activos Intang.'!$D$12","v":"co-svsp-core_2017-12-31:ActivosIntangibles_Eje_G1"},{"$f":"'823180 - Nota. Activos Intang.'!$M$11","v":"ifrs-full:OtherIntangibleAssetsMember"}]
["",null,{"$f":"'823180 - Nota. Activos Intang.'!$D$36","v":"Activos intangibles distintos de la plusvalía"},{"$f":"'823180 - Nota. Activos Intang.'!$C$36","v":"co-svsp-core_2017-12-31:IntangibleAssetsOtherThanGoodwillEndOfPeriod"},0,"peso",{"$f":"'823180 - Nota. Activos Intang.'!$M$36","v":0},800001965,"http://www.xbrl.org/scheme/companyName",{"$f":"Periodos!$C$3","v":"2017-01-01"},{"$f":"Periodos!$C$4","v":"2017-12-31"},{"$f":"'823180 - Nota. Activos Intang.'!$D$12","v":"co-svsp-core_2017-12-31:ActivosIntangibles_Eje_G1"},{"$f":"'823180 - Nota. Activos Intang.'!$M$11","v":"ifrs-full:OtherIntangibleAssetsMember"}]
["/*",null,"--10--"]
["/*",null,{"$f":"'823180 - Nota. Activos Intang.'!$D$13","v":"Información a revelar detallada sobre activos intangibles [partidas de los estados financieros]"},{"$f":"'823180 - Nota. Activos Intang.'!$C$13","v":"ifrs-full:DisclosureOfIntangibleAssetsLineItems"}]
["/*",null,{"$f":"'823180 - Nota. Activos Intang.'!$D$14","v":"Método de amortización, activos intangibles distintos de la plusvalía"},{"$f":"'823180 - Nota. Activos Intang.'!$C$14","v":"ifrs-full:AmortisationMethodIntangibleAssetsOtherThanGoodwill"}]
["/*",null,{"$f":"'823180 - Nota. Activos Intang.'!$D$15","v":"Vidas útiles o tasas de amortización, activos intangibles distintos de la plusvalía"},{"$f":"'823180 - Nota. Activos Intang.'!$C$15","v":"ifrs-full:UsefulLivesOrAmortisationRatesIntangibleAssetsOtherThanGoodwill"}]
["",null,{"$f":"'823180 - Nota. Activos Intang.'!$D$16","v":"Importe en libros en términos brutos"},{"$f":"'823180 - Nota. Activos Intang.'!$C$16","v":"co-svsp-core_2017-12-31:GrossCarryingAmount"},0,"peso",{"$f":"'823180 - Nota. Activos Intang.'!$N$16","v":0},800001965,"http://www.xbrl.org/scheme/companyName",{"$f":"Periodos!$C$3","v":"2017-01-01"},{"$f":"Periodos!$C$4","v":"2017-12-31"},{"$f":"'823180 - Nota. Activos Intang.'!$D$12","v":"co-svsp-core_2017-12-31:ActivosIntangibles_Eje_G1"},{"$f":"'823180 - Nota. Activos Intang.'!$N$11","v":"ifrs-full:IntangibleAssetsOtherThanGoodwillMember"}]
["",null,{"$f":"'823180 - Nota. Activos Intang.'!$D$17","v":"Depreciación y amortización acumuladas"},{"$f":"'823180 - Nota. Activos Intang.'!$C$17","v":"co-svsp-core_2017-12-31:AccumulatedDepreciationAndAmortisation"},0,"peso",{"$f":"'823180 - Nota. Activos Intang.'!$N$17","v":0},800001965,"http://www.xbrl.org/scheme/companyName",{"$f":"Periodos!$C$3","v":"2017-01-01"},{"$f":"Periodos!$C$4","v":"2017-12-31"},{"$f":"'823180 - Nota. Activos Intang.'!$D$12","v":"co-svsp-core_2017-12-31:ActivosIntangibles_Eje_G1"},{"$f":"'823180 - Nota. Activos Intang.'!$N$11","v":"ifrs-full:IntangibleAssetsOtherThanGoodwillMember"}]
["",null,{"$f":"'823180 - Nota. Activos Intang.'!$D$18","v":"Deterioro de valor acumulado"},{"$f":"'823180 - Nota. Activos Intang.'!$C$18","v":"co-svsp-core_2017-12-31:AccumulatedImpairment"},0,"peso",{"$f":"'823180 - Nota. Activos Intang.'!$N$18","v":0},800001965,"http://www.xbrl.org/scheme/companyName",{"$f":"Periodos!$C$3","v":"2017-01-01"},{"$f":"Periodos!$C$4","v":"2017-12-31"},{"$f":"'823180 - Nota. Activos Intang.'!$D$12","v":"co-svsp-core_2017-12-31:ActivosIntangibles_Eje_G1"},{"$f":"'823180 - Nota. Activos Intang.'!$N$11","v":"ifrs-full:IntangibleAssetsOtherThanGoodwillMember"}]
["/*",null,{"$f":"'823180 - Nota. Activos Intang.'!$D$19","v":"Conciliación de cambios en activos intangibles distintos de la plusvalía [resumen]"},{"$f":"'823180 - Nota. Activos Intang.'!$C$19","v":"ifrs-full:ReconciliationOfChangesInIntangibleAssetsOtherThanGoodwillAbstract"}]
["",null,{"$f":"'823180 - Nota. Activos Intang.'!$D$20","v":"Activos intangibles distintos de la plusvalía"},{"$f":"'823180 - Nota. Activos Intang.'!$C$20","v":"co-svsp-core_2017-12-31:IntangibleAssetsOtherThanGoodwillBeginningOfPeriod"},0,"peso",{"$f":"'823180 - Nota. Activos Intang.'!$N$20","v":0},800001965,"http://www.xbrl.org/scheme/companyName",{"$f":"Periodos!$C$3","v":"2017-01-01"},{"$f":"Periodos!$C$4","v":"2017-12-31"},{"$f":"'823180 - Nota. Activos Intang.'!$D$12","v":"co-svsp-core_2017-12-31:ActivosIntangibles_Eje_G1"},{"$f":"'823180 - Nota. Activos Intang.'!$N$11","v":"ifrs-full:IntangibleAssetsOtherThanGoodwillMember"}]
[{"$f":"IF(G7585=\"\",\"/*\",\"\")","v":""},null,{"$f":"'823180 - Nota. Activos Intang.'!$D$21","v":"Incrementos distintos de los procedentes de combinaciones de negocios, activos intangibles distintos de la plusvalía"},{"$f":"'823180 - Nota. Activos Intang.'!$C$21","v":"ifrs-full:AdditionsOtherThanThroughBusinessCombinationsIntangibleAssetsOtherThanGoodwill"},0,"peso",{"$f":"'823180 - Nota. Activos Intang.'!$N$21","v":0},800001965,"http://www.xbrl.org/scheme/companyName",{"$f":"Periodos!$C$3","v":"2017-01-01"},{"$f":"Periodos!$C$4","v":"2017-12-31"},{"$f":"'823180 - Nota. Activos Intang.'!$D$12","v":"co-svsp-core_2017-12-31:ActivosIntangibles_Eje_G1"},{"$f":"'823180 - Nota. Activos Intang.'!$N$11","v":"ifrs-full:IntangibleAssetsOtherThanGoodwillMember"}]
["",null,{"$f":"'823180 - Nota. Activos Intang.'!$D$22","v":"Adquisiciones realizadas mediante combinaciones de negocios, activos intangibles distintos a la plusvalía"},{"$f":"'823180 - Nota. Activos Intang.'!$C$22","v":"ifrs-full:AcquisitionsThroughBusinessCombinationsIntangibleAssetsOtherThanGoodwill"},0,"peso",{"$f":"'823180 - Nota. Activos Intang.'!$N$22","v":0},800001965,"http://www.xbrl.org/scheme/companyName",{"$f":"Periodos!$C$3","v":"2017-01-01"},{"$f":"Periodos!$C$4","v":"2017-12-31"},{"$f":"'823180 - Nota. Activos Intang.'!$D$12","v":"co-svsp-core_2017-12-31:ActivosIntangibles_Eje_G1"},{"$f":"'823180 - Nota. Activos Intang.'!$N$11","v":"ifrs-full:IntangibleAssetsOtherThanGoodwillMember"}]
["",null,{"$f":"'823180 - Nota. Activos Intang.'!$D$23","v":"Amortización, activos intangibles distintos de la plusvalía"},{"$f":"'823180 - Nota. Activos Intang.'!$C$23","v":"ifrs-full:AmortisationIntangibleAssetsOtherThanGoodwill"},0,"peso",{"$f":"'823180 - Nota. Activos Intang.'!$N$23","v":0},800001965,"http://www.xbrl.org/scheme/companyName",{"$f":"Periodos!$C$3","v":"2017-01-01"},{"$f":"Periodos!$C$4","v":"2017-12-31"},{"$f":"'823180 - Nota. Activos Intang.'!$D$12","v":"co-svsp-core_2017-12-31:ActivosIntangibles_Eje_G1"},{"$f":"'823180 - Nota. Activos Intang.'!$N$11","v":"ifrs-full:IntangibleAssetsOtherThanGoodwillMember"}]
["",null,{"$f":"'823180 - Nota. Activos Intang.'!$D$24","v":"Pérdidas por deterioro de valor reconocidas en el resultado del periodo, activos intangibles distintos de la plusvalía"},{"$f":"'823180 - Nota. Activos Intang.'!$C$24","v":"ifrs-full:ImpairmentLossRecognisedInProfitOrLossIntangibleAssetsOtherThanGoodwill"},0,"peso",{"$f":"'823180 - Nota. Activos Intang.'!$N$24","v":0},800001965,"http://www.xbrl.org/scheme/companyName",{"$f":"Periodos!$C$3","v":"2017-01-01"},{"$f":"Periodos!$C$4","v":"2017-12-31"},{"$f":"'823180 - Nota. Activos Intang.'!$D$12","v":"co-svsp-core_2017-12-31:ActivosIntangibles_Eje_G1"},{"$f":"'823180 - Nota. Activos Intang.'!$N$11","v":"ifrs-full:IntangibleAssetsOtherThanGoodwillMember"}]
["",null,{"$f":"'823180 - Nota. Activos Intang.'!$D$25","v":"Reversión de pérdidas por deterioro de valor reconocidas en el resultado del periodo, activos intangibles distintos de la plusvalía"},{"$f":"'823180 - Nota. Activos Intang.'!$C$25","v":"ifrs-full:ReversalOfImpairmentLossRecognisedInProfitOrLossIntangibleAssetsOtherThanGoodwill"},0,"peso",{"$f":"'823180 - Nota. Activos Intang.'!$N$25","v":0},800001965,"http://www.xbrl.org/scheme/companyName",{"$f":"Periodos!$C$3","v":"2017-01-01"},{"$f":"Periodos!$C$4","v":"2017-12-31"},{"$f":"'823180 - Nota. Activos Intang.'!$D$12","v":"co-svsp-core_2017-12-31:ActivosIntangibles_Eje_G1"},{"$f":"'823180 - Nota. Activos Intang.'!$N$11","v":"ifrs-full:IntangibleAssetsOtherThanGoodwillMember"}]
["/*",null,{"$f":"'823180 - Nota. Activos Intang.'!$D$26","v":"Incrementos (disminuciones) por transferencias y otros cambios, activos intangibles distintos de la plusvalía [resumen]"},{"$f":"'823180 - Nota. Activos Intang.'!$C$26","v":"ifrs-full:IncreaseDecreaseThroughTransfersAndOtherChangesIntangibleAssetsOtherThanGoodwillAbstract"}]
["",null,{"$f":"'823180 - Nota. Activos Intang.'!$D$27","v":"Incrementos (disminuciones) por transferencias, activos intangibles distintas de la plusvalía"},{"$f":"'823180 - Nota. Activos Intang.'!$C$27","v":"ifrs-full:IncreaseDecreaseThroughTransfersIntangibleAssetsOtherThanGoodwill"},0,"peso",{"$f":"'823180 - Nota. Activos Intang.'!$N$27","v":0},800001965,"http://www.xbrl.org/scheme/companyName",{"$f":"Periodos!$C$3","v":"2017-01-01"},{"$f":"Periodos!$C$4","v":"2017-12-31"},{"$f":"'823180 - Nota. Activos Intang.'!$D$12","v":"co-svsp-core_2017-12-31:ActivosIntangibles_Eje_G1"},{"$f":"'823180 - Nota. Activos Intang.'!$N$11","v":"ifrs-full:IntangibleAssetsOtherThanGoodwillMember"}]
["",null,{"$f":"'823180 - Nota. Activos Intang.'!$D$28","v":"Incrementos (disminuciones) por otros cambios, activos intangibles distintos de la plusvalía"},{"$f":"'823180 - Nota. Activos Intang.'!$C$28","v":"ifrs-full:IncreaseDecreaseThroughOtherChangesIntangibleAssetsOtherThanGoodwill"},0,"peso",{"$f":"'823180 - Nota. Activos Intang.'!$N$28","v":0},800001965,"http://www.xbrl.org/scheme/companyName",{"$f":"Periodos!$C$3","v":"2017-01-01"},{"$f":"Periodos!$C$4","v":"2017-12-31"},{"$f":"'823180 - Nota. Activos Intang.'!$D$12","v":"co-svsp-core_2017-12-31:ActivosIntangibles_Eje_G1"},{"$f":"'823180 - Nota. Activos Intang.'!$N$11","v":"ifrs-full:IntangibleAssetsOtherThanGoodwillMember"}]
["",null,{"$f":"'823180 - Nota. Activos Intang.'!$D$29","v":"Incremento (disminución) por transferencias y otros cambios, activos intangibles distintos de la plusvalía"},{"$f":"'823180 - Nota. Activos Intang.'!$C$29","v":"ifrs-full:IncreaseDecreaseThroughTransfersAndOtherChangesIntangibleAssetsOtherThanGoodwill"},0,"peso",{"$f":"'823180 - Nota. Activos Intang.'!$N$29","v":0},800001965,"http://www.xbrl.org/scheme/companyName",{"$f":"Periodos!$C$3","v":"2017-01-01"},{"$f":"Periodos!$C$4","v":"2017-12-31"},{"$f":"'823180 - Nota. Activos Intang.'!$D$12","v":"co-svsp-core_2017-12-31:ActivosIntangibles_Eje_G1"},{"$f":"'823180 - Nota. Activos Intang.'!$N$11","v":"ifrs-full:IntangibleAssetsOtherThanGoodwillMember"}]
["/*",null,{"$f":"'823180 - Nota. Activos Intang.'!$D$30","v":"Disposiciones y retiros de servicio, activos intangibles distintos de la plusvalía [resumen]"},{"$f":"'823180 - Nota. Activos Intang.'!$C$30","v":"ifrs-full:DisposalsAndRetirementsIntangibleAssetsOtherThanGoodwillAbstract"}]
["",null,{"$f":"'823180 - Nota. Activos Intang.'!$D$31","v":"Disposiciones, activos intangibles distintos de la plusvalía"},{"$f":"'823180 - Nota. Activos Intang.'!$C$31","v":"ifrs-full:DisposalsIntangibleAssetsOtherThanGoodwill"},0,"peso",{"$f":"'823180 - Nota. Activos Intang.'!$N$31","v":0},800001965,"http://www.xbrl.org/scheme/companyName",{"$f":"Periodos!$C$3","v":"2017-01-01"},{"$f":"Periodos!$C$4","v":"2017-12-31"},{"$f":"'823180 - Nota. Activos Intang.'!$D$12","v":"co-svsp-core_2017-12-31:ActivosIntangibles_Eje_G1"},{"$f":"'823180 - Nota. Activos Intang.'!$N$11","v":"ifrs-full:IntangibleAssetsOtherThanGoodwillMember"}]
["",null,{"$f":"'823180 - Nota. Activos Intang.'!$D$32","v":"Retiros de servicio, activos intangibles distintos de la plusvalía"},{"$f":"'823180 - Nota. Activos Intang.'!$C$32","v":"ifrs-full:RetirementsIntangibleAssetsOtherThanGoodwill"},0,"peso",{"$f":"'823180 - Nota. Activos Intang.'!$N$32","v":0},800001965,"http://www.xbrl.org/scheme/companyName",{"$f":"Periodos!$C$3","v":"2017-01-01"},{"$f":"Periodos!$C$4","v":"2017-12-31"},{"$f":"'823180 - Nota. Activos Intang.'!$D$12","v":"co-svsp-core_2017-12-31:ActivosIntangibles_Eje_G1"},{"$f":"'823180 - Nota. Activos Intang.'!$N$11","v":"ifrs-full:IntangibleAssetsOtherThanGoodwillMember"}]
["",null,{"$f":"'823180 - Nota. Activos Intang.'!$D$33","v":"Disposiciones y retiros de servicio, activos intangibles distintos de la plusvalía"},{"$f":"'823180 - Nota. Activos Intang.'!$C$33","v":"ifrs-full:DisposalsAndRetirementsIntangibleAssetsOtherThanGoodwill"},0,"peso",{"$f":"'823180 - Nota. Activos Intang.'!$N$33","v":0},800001965,"http://www.xbrl.org/scheme/companyName",{"$f":"Periodos!$C$3","v":"2017-01-01"},{"$f":"Periodos!$C$4","v":"2017-12-31"},{"$f":"'823180 - Nota. Activos Intang.'!$D$12","v":"co-svsp-core_2017-12-31:ActivosIntangibles_Eje_G1"},{"$f":"'823180 - Nota. Activos Intang.'!$N$11","v":"ifrs-full:IntangibleAssetsOtherThanGoodwillMember"}]
["",null,{"$f":"'823180 - Nota. Activos Intang.'!$D$34","v":"Disminuciones por clasificar como mantenidos para la venta, activos intangibles distintos de la plusvalía"},{"$f":"'823180 - Nota. Activos Intang.'!$C$34","v":"ifrs-full:DecreaseThroughClassifiedAsHeldForSaleIntangibleAssetsOtherThanGoodwill"},0,"peso",{"$f":"'823180 - Nota. Activos Intang.'!$N$34","v":0},800001965,"http://www.xbrl.org/scheme/companyName",{"$f":"Periodos!$C$3","v":"2017-01-01"},{"$f":"Periodos!$C$4","v":"2017-12-31"},{"$f":"'823180 - Nota. Activos Intang.'!$D$12","v":"co-svsp-core_2017-12-31:ActivosIntangibles_Eje_G1"},{"$f":"'823180 - Nota. Activos Intang.'!$N$11","v":"ifrs-full:IntangibleAssetsOtherThanGoodwillMember"}]
["",null,{"$f":"'823180 - Nota. Activos Intang.'!$D$35","v":"Incremento (disminución) en activos intangibles distintos de la plusvalía"},{"$f":"'823180 - Nota. Activos Intang.'!$C$35","v":"ifrs-full:ChangesInIntangibleAssetsOtherThanGoodwill"},0,"peso",{"$f":"'823180 - Nota. Activos Intang.'!$N$35","v":0},800001965,"http://www.xbrl.org/scheme/companyName",{"$f":"Periodos!$C$3","v":"2017-01-01"},{"$f":"Periodos!$C$4","v":"2017-12-31"},{"$f":"'823180 - Nota. Activos Intang.'!$D$12","v":"co-svsp-core_2017-12-31:ActivosIntangibles_Eje_G1"},{"$f":"'823180 - Nota. Activos Intang.'!$N$11","v":"ifrs-full:IntangibleAssetsOtherThanGoodwillMember"}]
["",null,{"$f":"'823180 - Nota. Activos Intang.'!$D$36","v":"Activos intangibles distintos de la plusvalía"},{"$f":"'823180 - Nota. Activos Intang.'!$C$36","v":"co-svsp-core_2017-12-31:IntangibleAssetsOtherThanGoodwillEndOfPeriod"},0,"peso",{"$f":"'823180 - Nota. Activos Intang.'!$N$36","v":0},800001965,"http://www.xbrl.org/scheme/companyName",{"$f":"Periodos!$C$3","v":"2017-01-01"},{"$f":"Periodos!$C$4","v":"2017-12-31"},{"$f":"'823180 - Nota. Activos Intang.'!$D$12","v":"co-svsp-core_2017-12-31:ActivosIntangibles_Eje_G1"},{"$f":"'823180 - Nota. Activos Intang.'!$N$11","v":"ifrs-full:IntangibleAssetsOtherThanGoodwillMember"}]
["/*"]
["/*",null,"823180 - Nota. Activos Intang."]
["/*",null,"--01--"]
["/*",null,{"$f":"'823180 - Nota. Activos Intang.'!$D$43","v":"Información a revelar detallada sobre activos intangibles [partidas de los estados financieros]"},{"$f":"'823180 - Nota. Activos Intang.'!$C$43","v":"ifrs-full:DisclosureOfIntangibleAssetsLineItems"}]
["/*",null,{"$f":"'823180 - Nota. Activos Intang.'!$D$44","v":"Método de amortización, activos intangibles distintos de la plusvalía"},{"$f":"'823180 - Nota. Activos Intang.'!$C$44","v":"ifrs-full:AmortisationMethodIntangibleAssetsOtherThanGoodwill"}]
["/*",null,{"$f":"'823180 - Nota. Activos Intang.'!$D$45","v":"Vidas útiles o tasas de amortización, activos intangibles distintos de la plusvalía"},{"$f":"'823180 - Nota. Activos Intang.'!$C$45","v":"ifrs-full:UsefulLivesOrAmortisationRatesIntangibleAssetsOtherThanGoodwill"}]
["/*",null,{"$f":"'823180 - Nota. Activos Intang.'!$D$46","v":"Importe en libros en términos brutos"},{"$f":"'823180 - Nota. Activos Intang.'!$C$46","v":"co-svsp-core_2017-12-31:GrossCarryingAmount"}]
["/*",null,{"$f":"'823180 - Nota. Activos Intang.'!$D$47","v":"Depreciación y amortización acumuladas"},{"$f":"'823180 - Nota. Activos Intang.'!$C$47","v":"co-svsp-core_2017-12-31:AccumulatedDepreciationAndAmortisation"}]
["/*",null,{"$f":"'823180 - Nota. Activos Intang.'!$D$48","v":"Deterioro de valor acumulado"},{"$f":"'823180 - Nota. Activos Intang.'!$C$48","v":"co-svsp-core_2017-12-31:AccumulatedImpairment"}]
["/*",null,{"$f":"'823180 - Nota. Activos Intang.'!$D$49","v":"Conciliación de cambios en activos intangibles distintos de la plusvalía [resumen]"},{"$f":"'823180 - Nota. Activos Intang.'!$C$49","v":"ifrs-full:ReconciliationOfChangesInIntangibleAssetsOtherThanGoodwillAbstract"}]
["/*",null,{"$f":"'823180 - Nota. Activos Intang.'!$D$50","v":"Activos intangibles distintos de la plusvalía"},{"$f":"'823180 - Nota. Activos Intang.'!$C$50","v":"co-svsp-core_2017-12-31:IntangibleAssetsOtherThanGoodwillBeginningOfPeriod"}]
["/*",null,{"$f":"'823180 - Nota. Activos Intang.'!$D$51","v":"Incrementos distintos de los procedentes de combinaciones de negocios, activos intangibles distintos de la plusvalía"},{"$f":"'823180 - Nota. Activos Intang.'!$C$51","v":"ifrs-full:AdditionsOtherThanThroughBusinessCombinationsIntangibleAssetsOtherThanGoodwill"}]
["/*",null,{"$f":"'823180 - Nota. Activos Intang.'!$D$52","v":"Adquisiciones realizadas mediante combinaciones de negocios, activos intangibles distintos a la plusvalía"},{"$f":"'823180 - Nota. Activos Intang.'!$C$52","v":"ifrs-full:AcquisitionsThroughBusinessCombinationsIntangibleAssetsOtherThanGoodwill"}]
["/*",null,{"$f":"'823180 - Nota. Activos Intang.'!$D$53","v":"Amortización, activos intangibles distintos de la plusvalía"},{"$f":"'823180 - Nota. Activos Intang.'!$C$53","v":"ifrs-full:AmortisationIntangibleAssetsOtherThanGoodwill"}]
["/*",null,{"$f":"'823180 - Nota. Activos Intang.'!$D$54","v":"Pérdidas por deterioro de valor reconocidas en el resultado del periodo, activos intangibles distintos de la plusvalía"},{"$f":"'823180 - Nota. Activos Intang.'!$C$54","v":"ifrs-full:ImpairmentLossRecognisedInProfitOrLossIntangibleAssetsOtherThanGoodwill"}]
["/*",null,{"$f":"'823180 - Nota. Activos Intang.'!$D$55","v":"Reversión de pérdidas por deterioro de valor reconocidas en el resultado del periodo, activos intangibles distintos de la plusvalía"},{"$f":"'823180 - Nota. Activos Intang.'!$C$55","v":"ifrs-full:ReversalOfImpairmentLossRecognisedInProfitOrLossIntangibleAssetsOtherThanGoodwill"}]
["/*",null,{"$f":"'823180 - Nota. Activos Intang.'!$D$56","v":"Incrementos (disminuciones) por transferencias y otros cambios, activos intangibles distintos de la plusvalía [resumen]"},{"$f":"'823180 - Nota. Activos Intang.'!$C$56","v":"ifrs-full:IncreaseDecreaseThroughTransfersAndOtherChangesIntangibleAssetsOtherThanGoodwillAbstract"}]
["/*",null,{"$f":"'823180 - Nota. Activos Intang.'!$D$57","v":"Incrementos (disminuciones) por transferencias, activos intangibles distintas de la plusvalía"},{"$f":"'823180 - Nota. Activos Intang.'!$C$57","v":"ifrs-full:IncreaseDecreaseThroughTransfersIntangibleAssetsOtherThanGoodwill"}]
["/*",null,{"$f":"'823180 - Nota. Activos Intang.'!$D$58","v":"Incrementos (disminuciones) por otros cambios, activos intangibles distintos de la plusvalía"},{"$f":"'823180 - Nota. Activos Intang.'!$C$58","v":"ifrs-full:IncreaseDecreaseThroughOtherChangesIntangibleAssetsOtherThanGoodwill"}]
["",null,{"$f":"'823180 - Nota. Activos Intang.'!$D$59","v":"Incremento (disminución) por transferencias y otros cambios, activos intangibles distintos de la plusvalía"},{"$f":"'823180 - Nota. Activos Intang.'!$C$59","v":"ifrs-full:IncreaseDecreaseThroughTransfersAndOtherChangesIntangibleAssetsOtherThanGoodwill"},0,"peso",{"$f":"'823180 - Nota. Activos Intang.'!$E$59","v":0},800001965,"http://www.xbrl.org/scheme/companyName",{"$f":"Periodos!$D$3","v":"2016-01-01"},{"$f":"Periodos!$D$4","v":"2016-12-31"},{"$f":"'823180 - Nota. Activos Intang.'!$D$42","v":"co-svsp-core_2017-12-31:ActivosIntangibles_Eje_G1"},{"$f":"'823180 - Nota. Activos Intang.'!$E$41","v":"ifrs-full:BrandNamesMember"}]
["/*",null,{"$f":"'823180 - Nota. Activos Intang.'!$D$60","v":"Disposiciones y retiros de servicio, activos intangibles distintos de la plusvalía [resumen]"},{"$f":"'823180 - Nota. Activos Intang.'!$C$60","v":"ifrs-full:DisposalsAndRetirementsIntangibleAssetsOtherThanGoodwillAbstract"}]
["/*",null,{"$f":"'823180 - Nota. Activos Intang.'!$D$61","v":"Disposiciones, activos intangibles distintos de la plusvalía"},{"$f":"'823180 - Nota. Activos Intang.'!$C$61","v":"ifrs-full:DisposalsIntangibleAssetsOtherThanGoodwill"}]
["/*",null,{"$f":"'823180 - Nota. Activos Intang.'!$D$62","v":"Retiros de servicio, activos intangibles distintos de la plusvalía"},{"$f":"'823180 - Nota. Activos Intang.'!$C$62","v":"ifrs-full:RetirementsIntangibleAssetsOtherThanGoodwill"}]
["",null,{"$f":"'823180 - Nota. Activos Intang.'!$D$63","v":"Disposiciones y retiros de servicio, activos intangibles distintos de la plusvalía"},{"$f":"'823180 - Nota. Activos Intang.'!$C$63","v":"ifrs-full:DisposalsAndRetirementsIntangibleAssetsOtherThanGoodwill"},0,"peso",{"$f":"'823180 - Nota. Activos Intang.'!$E$63","v":0},800001965,"http://www.xbrl.org/scheme/companyName",{"$f":"Periodos!$D$3","v":"2016-01-01"},{"$f":"Periodos!$D$4","v":"2016-12-31"},{"$f":"'823180 - Nota. Activos Intang.'!$D$42","v":"co-svsp-core_2017-12-31:ActivosIntangibles_Eje_G1"},{"$f":"'823180 - Nota. Activos Intang.'!$E$41","v":"ifrs-full:BrandNamesMember"}]
["/*",null,{"$f":"'823180 - Nota. Activos Intang.'!$D$64","v":"Disminuciones por clasificar como mantenidos para la venta, activos intangibles distintos de la plusvalía"},{"$f":"'823180 - Nota. Activos Intang.'!$C$64","v":"ifrs-full:DecreaseThroughClassifiedAsHeldForSaleIntangibleAssetsOtherThanGoodwill"}]
["",null,{"$f":"'823180 - Nota. Activos Intang.'!$D$65","v":"Incremento (disminución) en activos intangibles distintos de la plusvalía"},{"$f":"'823180 - Nota. Activos Intang.'!$C$65","v":"ifrs-full:ChangesInIntangibleAssetsOtherThanGoodwill"},0,"peso",{"$f":"'823180 - Nota. Activos Intang.'!$E$65","v":0},800001965,"http://www.xbrl.org/scheme/companyName",{"$f":"Periodos!$D$3","v":"2016-01-01"},{"$f":"Periodos!$D$4","v":"2016-12-31"},{"$f":"'823180 - Nota. Activos Intang.'!$D$42","v":"co-svsp-core_2017-12-31:ActivosIntangibles_Eje_G1"},{"$f":"'823180 - Nota. Activos Intang.'!$E$41","v":"ifrs-full:BrandNamesMember"}]
["",null,{"$f":"'823180 - Nota. Activos Intang.'!$D$66","v":"Activos intangibles distintos de la plusvalía"},{"$f":"'823180 - Nota. Activos Intang.'!$C$66","v":"co-svsp-core_2017-12-31:IntangibleAssetsOtherThanGoodwillEndOfPeriod"},0,"peso",{"$f":"'823180 - Nota. Activos Intang.'!$E$66","v":0},800001965,"http://www.xbrl.org/scheme/companyName",{"$f":"Periodos!$D$3","v":"2016-01-01"},{"$f":"Periodos!$D$4","v":"2016-12-31"},{"$f":"'823180 - Nota. Activos Intang.'!$D$42","v":"co-svsp-core_2017-12-31:ActivosIntangibles_Eje_G1"},{"$f":"'823180 - Nota. Activos Intang.'!$E$41","v":"ifrs-full:BrandNamesMember"}]
["/*",null,"--02--"]
["/*",null,{"$f":"'823180 - Nota. Activos Intang.'!$D$43","v":"Información a revelar detallada sobre activos intangibles [partidas de los estados financieros]"},{"$f":"'823180 - Nota. Activos Intang.'!$C$43","v":"ifrs-full:DisclosureOfIntangibleAssetsLineItems"}]
["/*",null,{"$f":"'823180 - Nota. Activos Intang.'!$D$44","v":"Método de amortización, activos intangibles distintos de la plusvalía"},{"$f":"'823180 - Nota. Activos Intang.'!$C$44","v":"ifrs-full:AmortisationMethodIntangibleAssetsOtherThanGoodwill"}]
["/*",null,{"$f":"'823180 - Nota. Activos Intang.'!$D$45","v":"Vidas útiles o tasas de amortización, activos intangibles distintos de la plusvalía"},{"$f":"'823180 - Nota. Activos Intang.'!$C$45","v":"ifrs-full:UsefulLivesOrAmortisationRatesIntangibleAssetsOtherThanGoodwill"}]
["/*",null,{"$f":"'823180 - Nota. Activos Intang.'!$D$46","v":"Importe en libros en términos brutos"},{"$f":"'823180 - Nota. Activos Intang.'!$C$46","v":"co-svsp-core_2017-12-31:GrossCarryingAmount"}]
["/*",null,{"$f":"'823180 - Nota. Activos Intang.'!$D$47","v":"Depreciación y amortización acumuladas"},{"$f":"'823180 - Nota. Activos Intang.'!$C$47","v":"co-svsp-core_2017-12-31:AccumulatedDepreciationAndAmortisation"}]
["/*",null,{"$f":"'823180 - Nota. Activos Intang.'!$D$48","v":"Deterioro de valor acumulado"},{"$f":"'823180 - Nota. Activos Intang.'!$C$48","v":"co-svsp-core_2017-12-31:AccumulatedImpairment"}]
["/*",null,{"$f":"'823180 - Nota. Activos Intang.'!$D$49","v":"Conciliación de cambios en activos intangibles distintos de la plusvalía [resumen]"},{"$f":"'823180 - Nota. Activos Intang.'!$C$49","v":"ifrs-full:ReconciliationOfChangesInIntangibleAssetsOtherThanGoodwillAbstract"}]
["/*",null,{"$f":"'823180 - Nota. Activos Intang.'!$D$50","v":"Activos intangibles distintos de la plusvalía"},{"$f":"'823180 - Nota. Activos Intang.'!$C$50","v":"co-svsp-core_2017-12-31:IntangibleAssetsOtherThanGoodwillBeginningOfPeriod"}]
["/*",null,{"$f":"'823180 - Nota. Activos Intang.'!$D$51","v":"Incrementos distintos de los procedentes de combinaciones de negocios, activos intangibles distintos de la plusvalía"},{"$f":"'823180 - Nota. Activos Intang.'!$C$51","v":"ifrs-full:AdditionsOtherThanThroughBusinessCombinationsIntangibleAssetsOtherThanGoodwill"}]
["/*",null,{"$f":"'823180 - Nota. Activos Intang.'!$D$52","v":"Adquisiciones realizadas mediante combinaciones de negocios, activos intangibles distintos a la plusvalía"},{"$f":"'823180 - Nota. Activos Intang.'!$C$52","v":"ifrs-full:AcquisitionsThroughBusinessCombinationsIntangibleAssetsOtherThanGoodwill"}]
["/*",null,{"$f":"'823180 - Nota. Activos Intang.'!$D$53","v":"Amortización, activos intangibles distintos de la plusvalía"},{"$f":"'823180 - Nota. Activos Intang.'!$C$53","v":"ifrs-full:AmortisationIntangibleAssetsOtherThanGoodwill"}]
["/*",null,{"$f":"'823180 - Nota. Activos Intang.'!$D$54","v":"Pérdidas por deterioro de valor reconocidas en el resultado del periodo, activos intangibles distintos de la plusvalía"},{"$f":"'823180 - Nota. Activos Intang.'!$C$54","v":"ifrs-full:ImpairmentLossRecognisedInProfitOrLossIntangibleAssetsOtherThanGoodwill"}]
["/*",null,{"$f":"'823180 - Nota. Activos Intang.'!$D$55","v":"Reversión de pérdidas por deterioro de valor reconocidas en el resultado del periodo, activos intangibles distintos de la plusvalía"},{"$f":"'823180 - Nota. Activos Intang.'!$C$55","v":"ifrs-full:ReversalOfImpairmentLossRecognisedInProfitOrLossIntangibleAssetsOtherThanGoodwill"}]
["/*",null,{"$f":"'823180 - Nota. Activos Intang.'!$D$56","v":"Incrementos (disminuciones) por transferencias y otros cambios, activos intangibles distintos de la plusvalía [resumen]"},{"$f":"'823180 - Nota. Activos Intang.'!$C$56","v":"ifrs-full:IncreaseDecreaseThroughTransfersAndOtherChangesIntangibleAssetsOtherThanGoodwillAbstract"}]
["/*",null,{"$f":"'823180 - Nota. Activos Intang.'!$D$57","v":"Incrementos (disminuciones) por transferencias, activos intangibles distintas de la plusvalía"},{"$f":"'823180 - Nota. Activos Intang.'!$C$57","v":"ifrs-full:IncreaseDecreaseThroughTransfersIntangibleAssetsOtherThanGoodwill"}]
["/*",null,{"$f":"'823180 - Nota. Activos Intang.'!$D$58","v":"Incrementos (disminuciones) por otros cambios, activos intangibles distintos de la plusvalía"},{"$f":"'823180 - Nota. Activos Intang.'!$C$58","v":"ifrs-full:IncreaseDecreaseThroughOtherChangesIntangibleAssetsOtherThanGoodwill"}]
["",null,{"$f":"'823180 - Nota. Activos Intang.'!$D$59","v":"Incremento (disminución) por transferencias y otros cambios, activos intangibles distintos de la plusvalía"},{"$f":"'823180 - Nota. Activos Intang.'!$C$59","v":"ifrs-full:IncreaseDecreaseThroughTransfersAndOtherChangesIntangibleAssetsOtherThanGoodwill"},0,"peso",{"$f":"'823180 - Nota. Activos Intang.'!$F$59","v":0},800001965,"http://www.xbrl.org/scheme/companyName",{"$f":"Periodos!$D$3","v":"2016-01-01"},{"$f":"Periodos!$D$4","v":"2016-12-31"},{"$f":"'823180 - Nota. Activos Intang.'!$D$42","v":"co-svsp-core_2017-12-31:ActivosIntangibles_Eje_G1"},{"$f":"'823180 - Nota. Activos Intang.'!$F$41","v":"co-svsp-core_2017-12-31:PatentesMiembro"}]
["/*",null,{"$f":"'823180 - Nota. Activos Intang.'!$D$60","v":"Disposiciones y retiros de servicio, activos intangibles distintos de la plusvalía [resumen]"},{"$f":"'823180 - Nota. Activos Intang.'!$C$60","v":"ifrs-full:DisposalsAndRetirementsIntangibleAssetsOtherThanGoodwillAbstract"}]
["/*",null,{"$f":"'823180 - Nota. Activos Intang.'!$D$61","v":"Disposiciones, activos intangibles distintos de la plusvalía"},{"$f":"'823180 - Nota. Activos Intang.'!$C$61","v":"ifrs-full:DisposalsIntangibleAssetsOtherThanGoodwill"}]
["/*",null,{"$f":"'823180 - Nota. Activos Intang.'!$D$62","v":"Retiros de servicio, activos intangibles distintos de la plusvalía"},{"$f":"'823180 - Nota. Activos Intang.'!$C$62","v":"ifrs-full:RetirementsIntangibleAssetsOtherThanGoodwill"}]
[{"$f":"IF(G7649=\"\",\"/*\",\"\")","v":""},null,{"$f":"'823180 - Nota. Activos Intang.'!$D$63","v":"Disposiciones y retiros de servicio, activos intangibles distintos de la plusvalía"},{"$f":"'823180 - Nota. Activos Intang.'!$C$63","v":"ifrs-full:DisposalsAndRetirementsIntangibleAssetsOtherThanGoodwill"},0,"peso",{"$f":"'823180 - Nota. Activos Intang.'!$F$63","v":0},800001965,"http://www.xbrl.org/scheme/companyName",{"$f":"Periodos!$D$3","v":"2016-01-01"},{"$f":"Periodos!$D$4","v":"2016-12-31"},{"$f":"'823180 - Nota. Activos Intang.'!$D$42","v":"co-svsp-core_2017-12-31:ActivosIntangibles_Eje_G1"},{"$f":"'823180 - Nota. Activos Intang.'!$F$41","v":"co-svsp-core_2017-12-31:PatentesMiembro"}]
["/*",null,{"$f":"'823180 - Nota. Activos Intang.'!$D$64","v":"Disminuciones por clasificar como mantenidos para la venta, activos intangibles distintos de la plusvalía"},{"$f":"'823180 - Nota. Activos Intang.'!$C$64","v":"ifrs-full:DecreaseThroughClassifiedAsHeldForSaleIntangibleAssetsOtherThanGoodwill"}]
["",null,{"$f":"'823180 - Nota. Activos Intang.'!$D$65","v":"Incremento (disminución) en activos intangibles distintos de la plusvalía"},{"$f":"'823180 - Nota. Activos Intang.'!$C$65","v":"ifrs-full:ChangesInIntangibleAssetsOtherThanGoodwill"},0,"peso",{"$f":"'823180 - Nota. Activos Intang.'!$F$65","v":0},800001965,"http://www.xbrl.org/scheme/companyName",{"$f":"Periodos!$D$3","v":"2016-01-01"},{"$f":"Periodos!$D$4","v":"2016-12-31"},{"$f":"'823180 - Nota. Activos Intang.'!$D$42","v":"co-svsp-core_2017-12-31:ActivosIntangibles_Eje_G1"},{"$f":"'823180 - Nota. Activos Intang.'!$F$41","v":"co-svsp-core_2017-12-31:PatentesMiembro"}]
["",null,{"$f":"'823180 - Nota. Activos Intang.'!$D$66","v":"Activos intangibles distintos de la plusvalía"},{"$f":"'823180 - Nota. Activos Intang.'!$C$66","v":"co-svsp-core_2017-12-31:IntangibleAssetsOtherThanGoodwillEndOfPeriod"},0,"peso",{"$f":"'823180 - Nota. Activos Intang.'!$F$66","v":0},800001965,"http://www.xbrl.org/scheme/companyName",{"$f":"Periodos!$D$3","v":"2016-01-01"},{"$f":"Periodos!$D$4","v":"2016-12-31"},{"$f":"'823180 - Nota. Activos Intang.'!$D$42","v":"co-svsp-core_2017-12-31:ActivosIntangibles_Eje_G1"},{"$f":"'823180 - Nota. Activos Intang.'!$F$41","v":"co-svsp-core_2017-12-31:PatentesMiembro"}]
["/*",null,"--03--"]
["/*",null,{"$f":"'823180 - Nota. Activos Intang.'!$D$43","v":"Información a revelar detallada sobre activos intangibles [partidas de los estados financieros]"},{"$f":"'823180 - Nota. Activos Intang.'!$C$43","v":"ifrs-full:DisclosureOfIntangibleAssetsLineItems"}]
["/*",null,{"$f":"'823180 - Nota. Activos Intang.'!$D$44","v":"Método de amortización, activos intangibles distintos de la plusvalía"},{"$f":"'823180 - Nota. Activos Intang.'!$C$44","v":"ifrs-full:AmortisationMethodIntangibleAssetsOtherThanGoodwill"}]
["/*",null,{"$f":"'823180 - Nota. Activos Intang.'!$D$45","v":"Vidas útiles o tasas de amortización, activos intangibles distintos de la plusvalía"},{"$f":"'823180 - Nota. Activos Intang.'!$C$45","v":"ifrs-full:UsefulLivesOrAmortisationRatesIntangibleAssetsOtherThanGoodwill"}]
["/*",null,{"$f":"'823180 - Nota. Activos Intang.'!$D$46","v":"Importe en libros en términos brutos"},{"$f":"'823180 - Nota. Activos Intang.'!$C$46","v":"co-svsp-core_2017-12-31:GrossCarryingAmount"}]
["/*",null,{"$f":"'823180 - Nota. Activos Intang.'!$D$47","v":"Depreciación y amortización acumuladas"},{"$f":"'823180 - Nota. Activos Intang.'!$C$47","v":"co-svsp-core_2017-12-31:AccumulatedDepreciationAndAmortisation"}]
["/*",null,{"$f":"'823180 - Nota. Activos Intang.'!$D$48","v":"Deterioro de valor acumulado"},{"$f":"'823180 - Nota. Activos Intang.'!$C$48","v":"co-svsp-core_2017-12-31:AccumulatedImpairment"}]
["/*",null,{"$f":"'823180 - Nota. Activos Intang.'!$D$49","v":"Conciliación de cambios en activos intangibles distintos de la plusvalía [resumen]"},{"$f":"'823180 - Nota. Activos Intang.'!$C$49","v":"ifrs-full:ReconciliationOfChangesInIntangibleAssetsOtherThanGoodwillAbstract"}]
["/*",null,{"$f":"'823180 - Nota. Activos Intang.'!$D$50","v":"Activos intangibles distintos de la plusvalía"},{"$f":"'823180 - Nota. Activos Intang.'!$C$50","v":"co-svsp-core_2017-12-31:IntangibleAssetsOtherThanGoodwillBeginningOfPeriod"}]
["/*",null,{"$f":"'823180 - Nota. Activos Intang.'!$D$51","v":"Incrementos distintos de los procedentes de combinaciones de negocios, activos intangibles distintos de la plusvalía"},{"$f":"'823180 - Nota. Activos Intang.'!$C$51","v":"ifrs-full:AdditionsOtherThanThroughBusinessCombinationsIntangibleAssetsOtherThanGoodwill"}]
["/*",null,{"$f":"'823180 - Nota. Activos Intang.'!$D$52","v":"Adquisiciones realizadas mediante combinaciones de negocios, activos intangibles distintos a la plusvalía"},{"$f":"'823180 - Nota. Activos Intang.'!$C$52","v":"ifrs-full:AcquisitionsThroughBusinessCombinationsIntangibleAssetsOtherThanGoodwill"}]
["/*",null,{"$f":"'823180 - Nota. Activos Intang.'!$D$53","v":"Amortización, activos intangibles distintos de la plusvalía"},{"$f":"'823180 - Nota. Activos Intang.'!$C$53","v":"ifrs-full:AmortisationIntangibleAssetsOtherThanGoodwill"}]
["/*",null,{"$f":"'823180 - Nota. Activos Intang.'!$D$54","v":"Pérdidas por deterioro de valor reconocidas en el resultado del periodo, activos intangibles distintos de la plusvalía"},{"$f":"'823180 - Nota. Activos Intang.'!$C$54","v":"ifrs-full:ImpairmentLossRecognisedInProfitOrLossIntangibleAssetsOtherThanGoodwill"}]
["/*",null,{"$f":"'823180 - Nota. Activos Intang.'!$D$55","v":"Reversión de pérdidas por deterioro de valor reconocidas en el resultado del periodo, activos intangibles distintos de la plusvalía"},{"$f":"'823180 - Nota. Activos Intang.'!$C$55","v":"ifrs-full:ReversalOfImpairmentLossRecognisedInProfitOrLossIntangibleAssetsOtherThanGoodwill"}]
["/*",null,{"$f":"'823180 - Nota. Activos Intang.'!$D$56","v":"Incrementos (disminuciones) por transferencias y otros cambios, activos intangibles distintos de la plusvalía [resumen]"},{"$f":"'823180 - Nota. Activos Intang.'!$C$56","v":"ifrs-full:IncreaseDecreaseThroughTransfersAndOtherChangesIntangibleAssetsOtherThanGoodwillAbstract"}]
["/*",null,{"$f":"'823180 - Nota. Activos Intang.'!$D$57","v":"Incrementos (disminuciones) por transferencias, activos intangibles distintas de la plusvalía"},{"$f":"'823180 - Nota. Activos Intang.'!$C$57","v":"ifrs-full:IncreaseDecreaseThroughTransfersIntangibleAssetsOtherThanGoodwill"}]
["/*",null,{"$f":"'823180 - Nota. Activos Intang.'!$D$58","v":"Incrementos (disminuciones) por otros cambios, activos intangibles distintos de la plusvalía"},{"$f":"'823180 - Nota. Activos Intang.'!$C$58","v":"ifrs-full:IncreaseDecreaseThroughOtherChangesIntangibleAssetsOtherThanGoodwill"}]
["",null,{"$f":"'823180 - Nota. Activos Intang.'!$D$59","v":"Incremento (disminución) por transferencias y otros cambios, activos intangibles distintos de la plusvalía"},{"$f":"'823180 - Nota. Activos Intang.'!$C$59","v":"ifrs-full:IncreaseDecreaseThroughTransfersAndOtherChangesIntangibleAssetsOtherThanGoodwill"},0,"peso",{"$f":"'823180 - Nota. Activos Intang.'!$G$59","v":0},800001965,"http://www.xbrl.org/scheme/companyName",{"$f":"Periodos!$D$3","v":"2016-01-01"},{"$f":"Periodos!$D$4","v":"2016-12-31"},{"$f":"'823180 - Nota. Activos Intang.'!$D$42","v":"co-svsp-core_2017-12-31:ActivosIntangibles_Eje_G1"},{"$f":"'823180 - Nota. Activos Intang.'!$G$41","v":"ifrs-full:ComputerSoftwareMember"}]
["/*",null,{"$f":"'823180 - Nota. Activos Intang.'!$D$60","v":"Disposiciones y retiros de servicio, activos intangibles distintos de la plusvalía [resumen]"},{"$f":"'823180 - Nota. Activos Intang.'!$C$60","v":"ifrs-full:DisposalsAndRetirementsIntangibleAssetsOtherThanGoodwillAbstract"}]
["/*",null,{"$f":"'823180 - Nota. Activos Intang.'!$D$61","v":"Disposiciones, activos intangibles distintos de la plusvalía"},{"$f":"'823180 - Nota. Activos Intang.'!$C$61","v":"ifrs-full:DisposalsIntangibleAssetsOtherThanGoodwill"}]
["/*",null,{"$f":"'823180 - Nota. Activos Intang.'!$D$62","v":"Retiros de servicio, activos intangibles distintos de la plusvalía"},{"$f":"'823180 - Nota. Activos Intang.'!$C$62","v":"ifrs-full:RetirementsIntangibleAssetsOtherThanGoodwill"}]
["",null,{"$f":"'823180 - Nota. Activos Intang.'!$D$63","v":"Disposiciones y retiros de servicio, activos intangibles distintos de la plusvalía"},{"$f":"'823180 - Nota. Activos Intang.'!$C$63","v":"ifrs-full:DisposalsAndRetirementsIntangibleAssetsOtherThanGoodwill"},0,"peso",{"$f":"'823180 - Nota. Activos Intang.'!$G$63","v":0},800001965,"http://www.xbrl.org/scheme/companyName",{"$f":"Periodos!$D$3","v":"2016-01-01"},{"$f":"Periodos!$D$4","v":"2016-12-31"},{"$f":"'823180 - Nota. Activos Intang.'!$D$42","v":"co-svsp-core_2017-12-31:ActivosIntangibles_Eje_G1"},{"$f":"'823180 - Nota. Activos Intang.'!$G$41","v":"ifrs-full:ComputerSoftwareMember"}]
["/*",null,{"$f":"'823180 - Nota. Activos Intang.'!$D$64","v":"Disminuciones por clasificar como mantenidos para la venta, activos intangibles distintos de la plusvalía"},{"$f":"'823180 - Nota. Activos Intang.'!$C$64","v":"ifrs-full:DecreaseThroughClassifiedAsHeldForSaleIntangibleAssetsOtherThanGoodwill"}]
["",null,{"$f":"'823180 - Nota. Activos Intang.'!$D$65","v":"Incremento (disminución) en activos intangibles distintos de la plusvalía"},{"$f":"'823180 - Nota. Activos Intang.'!$C$65","v":"ifrs-full:ChangesInIntangibleAssetsOtherThanGoodwill"},0,"peso",{"$f":"'823180 - Nota. Activos Intang.'!$G$65","v":0},800001965,"http://www.xbrl.org/scheme/companyName",{"$f":"Periodos!$D$3","v":"2016-01-01"},{"$f":"Periodos!$D$4","v":"2016-12-31"},{"$f":"'823180 - Nota. Activos Intang.'!$D$42","v":"co-svsp-core_2017-12-31:ActivosIntangibles_Eje_G1"},{"$f":"'823180 - Nota. Activos Intang.'!$G$41","v":"ifrs-full:ComputerSoftwareMember"}]
["",null,{"$f":"'823180 - Nota. Activos Intang.'!$D$66","v":"Activos intangibles distintos de la plusvalía"},{"$f":"'823180 - Nota. Activos Intang.'!$C$66","v":"co-svsp-core_2017-12-31:IntangibleAssetsOtherThanGoodwillEndOfPeriod"},0,"peso",{"$f":"'823180 - Nota. Activos Intang.'!$G$66","v":0},800001965,"http://www.xbrl.org/scheme/companyName",{"$f":"Periodos!$D$3","v":"2016-01-01"},{"$f":"Periodos!$D$4","v":"2016-12-31"},{"$f":"'823180 - Nota. Activos Intang.'!$D$42","v":"co-svsp-core_2017-12-31:ActivosIntangibles_Eje_G1"},{"$f":"'823180 - Nota. Activos Intang.'!$G$41","v":"ifrs-full:ComputerSoftwareMember"}]
["/*",null,"--04--"]
["/*",null,{"$f":"'823180 - Nota. Activos Intang.'!$D$43","v":"Información a revelar detallada sobre activos intangibles [partidas de los estados financieros]"},{"$f":"'823180 - Nota. Activos Intang.'!$C$43","v":"ifrs-full:DisclosureOfIntangibleAssetsLineItems"}]
["/*",null,{"$f":"'823180 - Nota. Activos Intang.'!$D$44","v":"Método de amortización, activos intangibles distintos de la plusvalía"},{"$f":"'823180 - Nota. Activos Intang.'!$C$44","v":"ifrs-full:AmortisationMethodIntangibleAssetsOtherThanGoodwill"}]
["/*",null,{"$f":"'823180 - Nota. Activos Intang.'!$D$45","v":"Vidas útiles o tasas de amortización, activos intangibles distintos de la plusvalía"},{"$f":"'823180 - Nota. Activos Intang.'!$C$45","v":"ifrs-full:UsefulLivesOrAmortisationRatesIntangibleAssetsOtherThanGoodwill"}]
["/*",null,{"$f":"'823180 - Nota. Activos Intang.'!$D$46","v":"Importe en libros en términos brutos"},{"$f":"'823180 - Nota. Activos Intang.'!$C$46","v":"co-svsp-core_2017-12-31:GrossCarryingAmount"}]
["/*",null,{"$f":"'823180 - Nota. Activos Intang.'!$D$47","v":"Depreciación y amortización acumuladas"},{"$f":"'823180 - Nota. Activos Intang.'!$C$47","v":"co-svsp-core_2017-12-31:AccumulatedDepreciationAndAmortisation"}]
["/*",null,{"$f":"'823180 - Nota. Activos Intang.'!$D$48","v":"Deterioro de valor acumulado"},{"$f":"'823180 - Nota. Activos Intang.'!$C$48","v":"co-svsp-core_2017-12-31:AccumulatedImpairment"}]
["/*",null,{"$f":"'823180 - Nota. Activos Intang.'!$D$49","v":"Conciliación de cambios en activos intangibles distintos de la plusvalía [resumen]"},{"$f":"'823180 - Nota. Activos Intang.'!$C$49","v":"ifrs-full:ReconciliationOfChangesInIntangibleAssetsOtherThanGoodwillAbstract"}]
["/*",null,{"$f":"'823180 - Nota. Activos Intang.'!$D$50","v":"Activos intangibles distintos de la plusvalía"},{"$f":"'823180 - Nota. Activos Intang.'!$C$50","v":"co-svsp-core_2017-12-31:IntangibleAssetsOtherThanGoodwillBeginningOfPeriod"}]
["/*",null,{"$f":"'823180 - Nota. Activos Intang.'!$D$51","v":"Incrementos distintos de los procedentes de combinaciones de negocios, activos intangibles distintos de la plusvalía"},{"$f":"'823180 - Nota. Activos Intang.'!$C$51","v":"ifrs-full:AdditionsOtherThanThroughBusinessCombinationsIntangibleAssetsOtherThanGoodwill"}]
["/*",null,{"$f":"'823180 - Nota. Activos Intang.'!$D$52","v":"Adquisiciones realizadas mediante combinaciones de negocios, activos intangibles distintos a la plusvalía"},{"$f":"'823180 - Nota. Activos Intang.'!$C$52","v":"ifrs-full:AcquisitionsThroughBusinessCombinationsIntangibleAssetsOtherThanGoodwill"}]
["/*",null,{"$f":"'823180 - Nota. Activos Intang.'!$D$53","v":"Amortización, activos intangibles distintos de la plusvalía"},{"$f":"'823180 - Nota. Activos Intang.'!$C$53","v":"ifrs-full:AmortisationIntangibleAssetsOtherThanGoodwill"}]
["/*",null,{"$f":"'823180 - Nota. Activos Intang.'!$D$54","v":"Pérdidas por deterioro de valor reconocidas en el resultado del periodo, activos intangibles distintos de la plusvalía"},{"$f":"'823180 - Nota. Activos Intang.'!$C$54","v":"ifrs-full:ImpairmentLossRecognisedInProfitOrLossIntangibleAssetsOtherThanGoodwill"}]
["/*",null,{"$f":"'823180 - Nota. Activos Intang.'!$D$55","v":"Reversión de pérdidas por deterioro de valor reconocidas en el resultado del periodo, activos intangibles distintos de la plusvalía"},{"$f":"'823180 - Nota. Activos Intang.'!$C$55","v":"ifrs-full:ReversalOfImpairmentLossRecognisedInProfitOrLossIntangibleAssetsOtherThanGoodwill"}]
["/*",null,{"$f":"'823180 - Nota. Activos Intang.'!$D$56","v":"Incrementos (disminuciones) por transferencias y otros cambios, activos intangibles distintos de la plusvalía [resumen]"},{"$f":"'823180 - Nota. Activos Intang.'!$C$56","v":"ifrs-full:IncreaseDecreaseThroughTransfersAndOtherChangesIntangibleAssetsOtherThanGoodwillAbstract"}]
["/*",null,{"$f":"'823180 - Nota. Activos Intang.'!$D$57","v":"Incrementos (disminuciones) por transferencias, activos intangibles distintas de la plusvalía"},{"$f":"'823180 - Nota. Activos Intang.'!$C$57","v":"ifrs-full:IncreaseDecreaseThroughTransfersIntangibleAssetsOtherThanGoodwill"}]
["/*",null,{"$f":"'823180 - Nota. Activos Intang.'!$D$58","v":"Incrementos (disminuciones) por otros cambios, activos intangibles distintos de la plusvalía"},{"$f":"'823180 - Nota. Activos Intang.'!$C$58","v":"ifrs-full:IncreaseDecreaseThroughOtherChangesIntangibleAssetsOtherThanGoodwill"}]
["",null,{"$f":"'823180 - Nota. Activos Intang.'!$D$59","v":"Incremento (disminución) por transferencias y otros cambios, activos intangibles distintos de la plusvalía"},{"$f":"'823180 - Nota. Activos Intang.'!$C$59","v":"ifrs-full:IncreaseDecreaseThroughTransfersAndOtherChangesIntangibleAssetsOtherThanGoodwill"},0,"peso",{"$f":"'823180 - Nota. Activos Intang.'!$H$59","v":0},800001965,"http://www.xbrl.org/scheme/companyName",{"$f":"Periodos!$D$3","v":"2016-01-01"},{"$f":"Periodos!$D$4","v":"2016-12-31"},{"$f":"'823180 - Nota. Activos Intang.'!$D$42","v":"co-svsp-core_2017-12-31:ActivosIntangibles_Eje_G1"},{"$f":"'823180 - Nota. Activos Intang.'!$H$41","v":"ifrs-full:LicencesAndFranchisesMember"}]
["/*",null,{"$f":"'823180 - Nota. Activos Intang.'!$D$60","v":"Disposiciones y retiros de servicio, activos intangibles distintos de la plusvalía [resumen]"},{"$f":"'823180 - Nota. Activos Intang.'!$C$60","v":"ifrs-full:DisposalsAndRetirementsIntangibleAssetsOtherThanGoodwillAbstract"}]
["/*",null,{"$f":"'823180 - Nota. Activos Intang.'!$D$61","v":"Disposiciones, activos intangibles distintos de la plusvalía"},{"$f":"'823180 - Nota. Activos Intang.'!$C$61","v":"ifrs-full:DisposalsIntangibleAssetsOtherThanGoodwill"}]
["/*",null,{"$f":"'823180 - Nota. Activos Intang.'!$D$62","v":"Retiros de servicio, activos intangibles distintos de la plusvalía"},{"$f":"'823180 - Nota. Activos Intang.'!$C$62","v":"ifrs-full:RetirementsIntangibleAssetsOtherThanGoodwill"}]
["",null,{"$f":"'823180 - Nota. Activos Intang.'!$D$63","v":"Disposiciones y retiros de servicio, activos intangibles distintos de la plusvalía"},{"$f":"'823180 - Nota. Activos Intang.'!$C$63","v":"ifrs-full:DisposalsAndRetirementsIntangibleAssetsOtherThanGoodwill"},0,"peso",{"$f":"'823180 - Nota. Activos Intang.'!$H$63","v":0},800001965,"http://www.xbrl.org/scheme/companyName",{"$f":"Periodos!$D$3","v":"2016-01-01"},{"$f":"Periodos!$D$4","v":"2016-12-31"},{"$f":"'823180 - Nota. Activos Intang.'!$D$42","v":"co-svsp-core_2017-12-31:ActivosIntangibles_Eje_G1"},{"$f":"'823180 - Nota. Activos Intang.'!$H$41","v":"ifrs-full:LicencesAndFranchisesMember"}]
["/*",null,{"$f":"'823180 - Nota. Activos Intang.'!$D$64","v":"Disminuciones por clasificar como mantenidos para la venta, activos intangibles distintos de la plusvalía"},{"$f":"'823180 - Nota. Activos Intang.'!$C$64","v":"ifrs-full:DecreaseThroughClassifiedAsHeldForSaleIntangibleAssetsOtherThanGoodwill"}]
["",null,{"$f":"'823180 - Nota. Activos Intang.'!$D$65","v":"Incremento (disminución) en activos intangibles distintos de la plusvalía"},{"$f":"'823180 - Nota. Activos Intang.'!$C$65","v":"ifrs-full:ChangesInIntangibleAssetsOtherThanGoodwill"},0,"peso",{"$f":"'823180 - Nota. Activos Intang.'!$H$65","v":0},800001965,"http://www.xbrl.org/scheme/companyName",{"$f":"Periodos!$D$3","v":"2016-01-01"},{"$f":"Periodos!$D$4","v":"2016-12-31"},{"$f":"'823180 - Nota. Activos Intang.'!$D$42","v":"co-svsp-core_2017-12-31:ActivosIntangibles_Eje_G1"},{"$f":"'823180 - Nota. Activos Intang.'!$H$41","v":"ifrs-full:LicencesAndFranchisesMember"}]
["",null,{"$f":"'823180 - Nota. Activos Intang.'!$D$66","v":"Activos intangibles distintos de la plusvalía"},{"$f":"'823180 - Nota. Activos Intang.'!$C$66","v":"co-svsp-core_2017-12-31:IntangibleAssetsOtherThanGoodwillEndOfPeriod"},0,"peso",{"$f":"'823180 - Nota. Activos Intang.'!$H$66","v":0},800001965,"http://www.xbrl.org/scheme/companyName",{"$f":"Periodos!$D$3","v":"2016-01-01"},{"$f":"Periodos!$D$4","v":"2016-12-31"},{"$f":"'823180 - Nota. Activos Intang.'!$D$42","v":"co-svsp-core_2017-12-31:ActivosIntangibles_Eje_G1"},{"$f":"'823180 - Nota. Activos Intang.'!$H$41","v":"ifrs-full:LicencesAndFranchisesMember"}]
["/*",null,"--05--"]
["/*",null,{"$f":"'823180 - Nota. Activos Intang.'!$D$43","v":"Información a revelar detallada sobre activos intangibles [partidas de los estados financieros]"},{"$f":"'823180 - Nota. Activos Intang.'!$C$43","v":"ifrs-full:DisclosureOfIntangibleAssetsLineItems"}]
["/*",null,{"$f":"'823180 - Nota. Activos Intang.'!$D$44","v":"Método de amortización, activos intangibles distintos de la plusvalía"},{"$f":"'823180 - Nota. Activos Intang.'!$C$44","v":"ifrs-full:AmortisationMethodIntangibleAssetsOtherThanGoodwill"}]
["/*",null,{"$f":"'823180 - Nota. Activos Intang.'!$D$45","v":"Vidas útiles o tasas de amortización, activos intangibles distintos de la plusvalía"},{"$f":"'823180 - Nota. Activos Intang.'!$C$45","v":"ifrs-full:UsefulLivesOrAmortisationRatesIntangibleAssetsOtherThanGoodwill"}]
["/*",null,{"$f":"'823180 - Nota. Activos Intang.'!$D$46","v":"Importe en libros en términos brutos"},{"$f":"'823180 - Nota. Activos Intang.'!$C$46","v":"co-svsp-core_2017-12-31:GrossCarryingAmount"}]
["/*",null,{"$f":"'823180 - Nota. Activos Intang.'!$D$47","v":"Depreciación y amortización acumuladas"},{"$f":"'823180 - Nota. Activos Intang.'!$C$47","v":"co-svsp-core_2017-12-31:AccumulatedDepreciationAndAmortisation"}]
["/*",null,{"$f":"'823180 - Nota. Activos Intang.'!$D$48","v":"Deterioro de valor acumulado"},{"$f":"'823180 - Nota. Activos Intang.'!$C$48","v":"co-svsp-core_2017-12-31:AccumulatedImpairment"}]
["/*",null,{"$f":"'823180 - Nota. Activos Intang.'!$D$49","v":"Conciliación de cambios en activos intangibles distintos de la plusvalía [resumen]"},{"$f":"'823180 - Nota. Activos Intang.'!$C$49","v":"ifrs-full:ReconciliationOfChangesInIntangibleAssetsOtherThanGoodwillAbstract"}]
["/*",null,{"$f":"'823180 - Nota. Activos Intang.'!$D$50","v":"Activos intangibles distintos de la plusvalía"},{"$f":"'823180 - Nota. Activos Intang.'!$C$50","v":"co-svsp-core_2017-12-31:IntangibleAssetsOtherThanGoodwillBeginningOfPeriod"}]
["/*",null,{"$f":"'823180 - Nota. Activos Intang.'!$D$51","v":"Incrementos distintos de los procedentes de combinaciones de negocios, activos intangibles distintos de la plusvalía"},{"$f":"'823180 - Nota. Activos Intang.'!$C$51","v":"ifrs-full:AdditionsOtherThanThroughBusinessCombinationsIntangibleAssetsOtherThanGoodwill"}]
[{"$f":"IF(G7713=\"\",\"/*\",\"\")","v":"/*"},null,{"$f":"'823180 - Nota. Activos Intang.'!$D$52","v":"Adquisiciones realizadas mediante combinaciones de negocios, activos intangibles distintos a la plusvalía"},{"$f":"'823180 - Nota. Activos Intang.'!$C$52","v":"ifrs-full:AcquisitionsThroughBusinessCombinationsIntangibleAssetsOtherThanGoodwill"}]
["/*",null,{"$f":"'823180 - Nota. Activos Intang.'!$D$53","v":"Amortización, activos intangibles distintos de la plusvalía"},{"$f":"'823180 - Nota. Activos Intang.'!$C$53","v":"ifrs-full:AmortisationIntangibleAssetsOtherThanGoodwill"}]
["/*",null,{"$f":"'823180 - Nota. Activos Intang.'!$D$54","v":"Pérdidas por deterioro de valor reconocidas en el resultado del periodo, activos intangibles distintos de la plusvalía"},{"$f":"'823180 - Nota. Activos Intang.'!$C$54","v":"ifrs-full:ImpairmentLossRecognisedInProfitOrLossIntangibleAssetsOtherThanGoodwill"}]
["/*",null,{"$f":"'823180 - Nota. Activos Intang.'!$D$55","v":"Reversión de pérdidas por deterioro de valor reconocidas en el resultado del periodo, activos intangibles distintos de la plusvalía"},{"$f":"'823180 - Nota. Activos Intang.'!$C$55","v":"ifrs-full:ReversalOfImpairmentLossRecognisedInProfitOrLossIntangibleAssetsOtherThanGoodwill"}]
["/*",null,{"$f":"'823180 - Nota. Activos Intang.'!$D$56","v":"Incrementos (disminuciones) por transferencias y otros cambios, activos intangibles distintos de la plusvalía [resumen]"},{"$f":"'823180 - Nota. Activos Intang.'!$C$56","v":"ifrs-full:IncreaseDecreaseThroughTransfersAndOtherChangesIntangibleAssetsOtherThanGoodwillAbstract"}]
["/*",null,{"$f":"'823180 - Nota. Activos Intang.'!$D$57","v":"Incrementos (disminuciones) por transferencias, activos intangibles distintas de la plusvalía"},{"$f":"'823180 - Nota. Activos Intang.'!$C$57","v":"ifrs-full:IncreaseDecreaseThroughTransfersIntangibleAssetsOtherThanGoodwill"}]
["/*",null,{"$f":"'823180 - Nota. Activos Intang.'!$D$58","v":"Incrementos (disminuciones) por otros cambios, activos intangibles distintos de la plusvalía"},{"$f":"'823180 - Nota. Activos Intang.'!$C$58","v":"ifrs-full:IncreaseDecreaseThroughOtherChangesIntangibleAssetsOtherThanGoodwill"}]
["",null,{"$f":"'823180 - Nota. Activos Intang.'!$D$59","v":"Incremento (disminución) por transferencias y otros cambios, activos intangibles distintos de la plusvalía"},{"$f":"'823180 - Nota. Activos Intang.'!$C$59","v":"ifrs-full:IncreaseDecreaseThroughTransfersAndOtherChangesIntangibleAssetsOtherThanGoodwill"},0,"peso",{"$f":"'823180 - Nota. Activos Intang.'!$I$59","v":0},800001965,"http://www.xbrl.org/scheme/companyName",{"$f":"Periodos!$D$3","v":"2016-01-01"},{"$f":"Periodos!$D$4","v":"2016-12-31"},{"$f":"'823180 - Nota. Activos Intang.'!$D$42","v":"co-svsp-core_2017-12-31:ActivosIntangibles_Eje_G1"},{"$f":"'823180 - Nota. Activos Intang.'!$I$41","v":"co-svsp-core_2017-12-31:DerechosMiembro"}]
["/*",null,{"$f":"'823180 - Nota. Activos Intang.'!$D$60","v":"Disposiciones y retiros de servicio, activos intangibles distintos de la plusvalía [resumen]"},{"$f":"'823180 - Nota. Activos Intang.'!$C$60","v":"ifrs-full:DisposalsAndRetirementsIntangibleAssetsOtherThanGoodwillAbstract"}]
["/*",null,{"$f":"'823180 - Nota. Activos Intang.'!$D$61","v":"Disposiciones, activos intangibles distintos de la plusvalía"},{"$f":"'823180 - Nota. Activos Intang.'!$C$61","v":"ifrs-full:DisposalsIntangibleAssetsOtherThanGoodwill"}]
["/*",null,{"$f":"'823180 - Nota. Activos Intang.'!$D$62","v":"Retiros de servicio, activos intangibles distintos de la plusvalía"},{"$f":"'823180 - Nota. Activos Intang.'!$C$62","v":"ifrs-full:RetirementsIntangibleAssetsOtherThanGoodwill"}]
["",null,{"$f":"'823180 - Nota. Activos Intang.'!$D$63","v":"Disposiciones y retiros de servicio, activos intangibles distintos de la plusvalía"},{"$f":"'823180 - Nota. Activos Intang.'!$C$63","v":"ifrs-full:DisposalsAndRetirementsIntangibleAssetsOtherThanGoodwill"},0,"peso",{"$f":"'823180 - Nota. Activos Intang.'!$I$63","v":0},800001965,"http://www.xbrl.org/scheme/companyName",{"$f":"Periodos!$D$3","v":"2016-01-01"},{"$f":"Periodos!$D$4","v":"2016-12-31"},{"$f":"'823180 - Nota. Activos Intang.'!$D$42","v":"co-svsp-core_2017-12-31:ActivosIntangibles_Eje_G1"},{"$f":"'823180 - Nota. Activos Intang.'!$I$41","v":"co-svsp-core_2017-12-31:DerechosMiembro"}]
["/*",null,{"$f":"'823180 - Nota. Activos Intang.'!$D$64","v":"Disminuciones por clasificar como mantenidos para la venta, activos intangibles distintos de la plusvalía"},{"$f":"'823180 - Nota. Activos Intang.'!$C$64","v":"ifrs-full:DecreaseThroughClassifiedAsHeldForSaleIntangibleAssetsOtherThanGoodwill"}]
["",null,{"$f":"'823180 - Nota. Activos Intang.'!$D$65","v":"Incremento (disminución) en activos intangibles distintos de la plusvalía"},{"$f":"'823180 - Nota. Activos Intang.'!$C$65","v":"ifrs-full:ChangesInIntangibleAssetsOtherThanGoodwill"},0,"peso",{"$f":"'823180 - Nota. Activos Intang.'!$I$65","v":0},800001965,"http://www.xbrl.org/scheme/companyName",{"$f":"Periodos!$D$3","v":"2016-01-01"},{"$f":"Periodos!$D$4","v":"2016-12-31"},{"$f":"'823180 - Nota. Activos Intang.'!$D$42","v":"co-svsp-core_2017-12-31:ActivosIntangibles_Eje_G1"},{"$f":"'823180 - Nota. Activos Intang.'!$I$41","v":"co-svsp-core_2017-12-31:DerechosMiembro"}]
["",null,{"$f":"'823180 - Nota. Activos Intang.'!$D$66","v":"Activos intangibles distintos de la plusvalía"},{"$f":"'823180 - Nota. Activos Intang.'!$C$66","v":"co-svsp-core_2017-12-31:IntangibleAssetsOtherThanGoodwillEndOfPeriod"},0,"peso",{"$f":"'823180 - Nota. Activos Intang.'!$I$66","v":0},800001965,"http://www.xbrl.org/scheme/companyName",{"$f":"Periodos!$D$3","v":"2016-01-01"},{"$f":"Periodos!$D$4","v":"2016-12-31"},{"$f":"'823180 - Nota. Activos Intang.'!$D$42","v":"co-svsp-core_2017-12-31:ActivosIntangibles_Eje_G1"},{"$f":"'823180 - Nota. Activos Intang.'!$I$41","v":"co-svsp-core_2017-12-31:DerechosMiembro"}]
["/*",null,"--06--"]
["/*",null,{"$f":"'823180 - Nota. Activos Intang.'!$D$43","v":"Información a revelar detallada sobre activos intangibles [partidas de los estados financieros]"},{"$f":"'823180 - Nota. Activos Intang.'!$C$43","v":"ifrs-full:DisclosureOfIntangibleAssetsLineItems"}]
["/*",null,{"$f":"'823180 - Nota. Activos Intang.'!$D$44","v":"Método de amortización, activos intangibles distintos de la plusvalía"},{"$f":"'823180 - Nota. Activos Intang.'!$C$44","v":"ifrs-full:AmortisationMethodIntangibleAssetsOtherThanGoodwill"}]
["/*",null,{"$f":"'823180 - Nota. Activos Intang.'!$D$45","v":"Vidas útiles o tasas de amortización, activos intangibles distintos de la plusvalía"},{"$f":"'823180 - Nota. Activos Intang.'!$C$45","v":"ifrs-full:UsefulLivesOrAmortisationRatesIntangibleAssetsOtherThanGoodwill"}]
["/*",null,{"$f":"'823180 - Nota. Activos Intang.'!$D$46","v":"Importe en libros en términos brutos"},{"$f":"'823180 - Nota. Activos Intang.'!$C$46","v":"co-svsp-core_2017-12-31:GrossCarryingAmount"}]
["/*",null,{"$f":"'823180 - Nota. Activos Intang.'!$D$47","v":"Depreciación y amortización acumuladas"},{"$f":"'823180 - Nota. Activos Intang.'!$C$47","v":"co-svsp-core_2017-12-31:AccumulatedDepreciationAndAmortisation"}]
["/*",null,{"$f":"'823180 - Nota. Activos Intang.'!$D$48","v":"Deterioro de valor acumulado"},{"$f":"'823180 - Nota. Activos Intang.'!$C$48","v":"co-svsp-core_2017-12-31:AccumulatedImpairment"}]
["/*",null,{"$f":"'823180 - Nota. Activos Intang.'!$D$49","v":"Conciliación de cambios en activos intangibles distintos de la plusvalía [resumen]"},{"$f":"'823180 - Nota. Activos Intang.'!$C$49","v":"ifrs-full:ReconciliationOfChangesInIntangibleAssetsOtherThanGoodwillAbstract"}]
["/*",null,{"$f":"'823180 - Nota. Activos Intang.'!$D$50","v":"Activos intangibles distintos de la plusvalía"},{"$f":"'823180 - Nota. Activos Intang.'!$C$50","v":"co-svsp-core_2017-12-31:IntangibleAssetsOtherThanGoodwillBeginningOfPeriod"}]
["/*",null,{"$f":"'823180 - Nota. Activos Intang.'!$D$51","v":"Incrementos distintos de los procedentes de combinaciones de negocios, activos intangibles distintos de la plusvalía"},{"$f":"'823180 - Nota. Activos Intang.'!$C$51","v":"ifrs-full:AdditionsOtherThanThroughBusinessCombinationsIntangibleAssetsOtherThanGoodwill"}]
["/*",null,{"$f":"'823180 - Nota. Activos Intang.'!$D$52","v":"Adquisiciones realizadas mediante combinaciones de negocios, activos intangibles distintos a la plusvalía"},{"$f":"'823180 - Nota. Activos Intang.'!$C$52","v":"ifrs-full:AcquisitionsThroughBusinessCombinationsIntangibleAssetsOtherThanGoodwill"}]
["/*",null,{"$f":"'823180 - Nota. Activos Intang.'!$D$53","v":"Amortización, activos intangibles distintos de la plusvalía"},{"$f":"'823180 - Nota. Activos Intang.'!$C$53","v":"ifrs-full:AmortisationIntangibleAssetsOtherThanGoodwill"}]
["/*",null,{"$f":"'823180 - Nota. Activos Intang.'!$D$54","v":"Pérdidas por deterioro de valor reconocidas en el resultado del periodo, activos intangibles distintos de la plusvalía"},{"$f":"'823180 - Nota. Activos Intang.'!$C$54","v":"ifrs-full:ImpairmentLossRecognisedInProfitOrLossIntangibleAssetsOtherThanGoodwill"}]
["/*",null,{"$f":"'823180 - Nota. Activos Intang.'!$D$55","v":"Reversión de pérdidas por deterioro de valor reconocidas en el resultado del periodo, activos intangibles distintos de la plusvalía"},{"$f":"'823180 - Nota. Activos Intang.'!$C$55","v":"ifrs-full:ReversalOfImpairmentLossRecognisedInProfitOrLossIntangibleAssetsOtherThanGoodwill"}]
["/*",null,{"$f":"'823180 - Nota. Activos Intang.'!$D$56","v":"Incrementos (disminuciones) por transferencias y otros cambios, activos intangibles distintos de la plusvalía [resumen]"},{"$f":"'823180 - Nota. Activos Intang.'!$C$56","v":"ifrs-full:IncreaseDecreaseThroughTransfersAndOtherChangesIntangibleAssetsOtherThanGoodwillAbstract"}]
["/*",null,{"$f":"'823180 - Nota. Activos Intang.'!$D$57","v":"Incrementos (disminuciones) por transferencias, activos intangibles distintas de la plusvalía"},{"$f":"'823180 - Nota. Activos Intang.'!$C$57","v":"ifrs-full:IncreaseDecreaseThroughTransfersIntangibleAssetsOtherThanGoodwill"}]
["/*",null,{"$f":"'823180 - Nota. Activos Intang.'!$D$58","v":"Incrementos (disminuciones) por otros cambios, activos intangibles distintos de la plusvalía"},{"$f":"'823180 - Nota. Activos Intang.'!$C$58","v":"ifrs-full:IncreaseDecreaseThroughOtherChangesIntangibleAssetsOtherThanGoodwill"}]
["",null,{"$f":"'823180 - Nota. Activos Intang.'!$D$59","v":"Incremento (disminución) por transferencias y otros cambios, activos intangibles distintos de la plusvalía"},{"$f":"'823180 - Nota. Activos Intang.'!$C$59","v":"ifrs-full:IncreaseDecreaseThroughTransfersAndOtherChangesIntangibleAssetsOtherThanGoodwill"},0,"peso",{"$f":"'823180 - Nota. Activos Intang.'!$J$59","v":0},800001965,"http://www.xbrl.org/scheme/companyName",{"$f":"Periodos!$D$3","v":"2016-01-01"},{"$f":"Periodos!$D$4","v":"2016-12-31"},{"$f":"'823180 - Nota. Activos Intang.'!$D$42","v":"co-svsp-core_2017-12-31:ActivosIntangibles_Eje_G1"},{"$f":"'823180 - Nota. Activos Intang.'!$J$41","v":"co-svsp-core_2017-12-31:KnowhowMiembro"}]
["/*",null,{"$f":"'823180 - Nota. Activos Intang.'!$D$60","v":"Disposiciones y retiros de servicio, activos intangibles distintos de la plusvalía [resumen]"},{"$f":"'823180 - Nota. Activos Intang.'!$C$60","v":"ifrs-full:DisposalsAndRetirementsIntangibleAssetsOtherThanGoodwillAbstract"}]
["/*",null,{"$f":"'823180 - Nota. Activos Intang.'!$D$61","v":"Disposiciones, activos intangibles distintos de la plusvalía"},{"$f":"'823180 - Nota. Activos Intang.'!$C$61","v":"ifrs-full:DisposalsIntangibleAssetsOtherThanGoodwill"}]
["/*",null,{"$f":"'823180 - Nota. Activos Intang.'!$D$62","v":"Retiros de servicio, activos intangibles distintos de la plusvalía"},{"$f":"'823180 - Nota. Activos Intang.'!$C$62","v":"ifrs-full:RetirementsIntangibleAssetsOtherThanGoodwill"}]
["",null,{"$f":"'823180 - Nota. Activos Intang.'!$D$63","v":"Disposiciones y retiros de servicio, activos intangibles distintos de la plusvalía"},{"$f":"'823180 - Nota. Activos Intang.'!$C$63","v":"ifrs-full:DisposalsAndRetirementsIntangibleAssetsOtherThanGoodwill"},0,"peso",{"$f":"'823180 - Nota. Activos Intang.'!$J$63","v":0},800001965,"http://www.xbrl.org/scheme/companyName",{"$f":"Periodos!$D$3","v":"2016-01-01"},{"$f":"Periodos!$D$4","v":"2016-12-31"},{"$f":"'823180 - Nota. Activos Intang.'!$D$42","v":"co-svsp-core_2017-12-31:ActivosIntangibles_Eje_G1"},{"$f":"'823180 - Nota. Activos Intang.'!$J$41","v":"co-svsp-core_2017-12-31:KnowhowMiembro"}]
["/*",null,{"$f":"'823180 - Nota. Activos Intang.'!$D$64","v":"Disminuciones por clasificar como mantenidos para la venta, activos intangibles distintos de la plusvalía"},{"$f":"'823180 - Nota. Activos Intang.'!$C$64","v":"ifrs-full:DecreaseThroughClassifiedAsHeldForSaleIntangibleAssetsOtherThanGoodwill"}]
["",null,{"$f":"'823180 - Nota. Activos Intang.'!$D$65","v":"Incremento (disminución) en activos intangibles distintos de la plusvalía"},{"$f":"'823180 - Nota. Activos Intang.'!$C$65","v":"ifrs-full:ChangesInIntangibleAssetsOtherThanGoodwill"},0,"peso",{"$f":"'823180 - Nota. Activos Intang.'!$J$65","v":0},800001965,"http://www.xbrl.org/scheme/companyName",{"$f":"Periodos!$D$3","v":"2016-01-01"},{"$f":"Periodos!$D$4","v":"2016-12-31"},{"$f":"'823180 - Nota. Activos Intang.'!$D$42","v":"co-svsp-core_2017-12-31:ActivosIntangibles_Eje_G1"},{"$f":"'823180 - Nota. Activos Intang.'!$J$41","v":"co-svsp-core_2017-12-31:KnowhowMiembro"}]
["",null,{"$f":"'823180 - Nota. Activos Intang.'!$D$66","v":"Activos intangibles distintos de la plusvalía"},{"$f":"'823180 - Nota. Activos Intang.'!$C$66","v":"co-svsp-core_2017-12-31:IntangibleAssetsOtherThanGoodwillEndOfPeriod"},0,"peso",{"$f":"'823180 - Nota. Activos Intang.'!$J$66","v":0},800001965,"http://www.xbrl.org/scheme/companyName",{"$f":"Periodos!$D$3","v":"2016-01-01"},{"$f":"Periodos!$D$4","v":"2016-12-31"},{"$f":"'823180 - Nota. Activos Intang.'!$D$42","v":"co-svsp-core_2017-12-31:ActivosIntangibles_Eje_G1"},{"$f":"'823180 - Nota. Activos Intang.'!$J$41","v":"co-svsp-core_2017-12-31:KnowhowMiembro"}]
["/*",null,"--07--"]
["/*",null,{"$f":"'823180 - Nota. Activos Intang.'!$D$43","v":"Información a revelar detallada sobre activos intangibles [partidas de los estados financieros]"},{"$f":"'823180 - Nota. Activos Intang.'!$C$43","v":"ifrs-full:DisclosureOfIntangibleAssetsLineItems"}]
["/*",null,{"$f":"'823180 - Nota. Activos Intang.'!$D$44","v":"Método de amortización, activos intangibles distintos de la plusvalía"},{"$f":"'823180 - Nota. Activos Intang.'!$C$44","v":"ifrs-full:AmortisationMethodIntangibleAssetsOtherThanGoodwill"}]
["/*",null,{"$f":"'823180 - Nota. Activos Intang.'!$D$45","v":"Vidas útiles o tasas de amortización, activos intangibles distintos de la plusvalía"},{"$f":"'823180 - Nota. Activos Intang.'!$C$45","v":"ifrs-full:UsefulLivesOrAmortisationRatesIntangibleAssetsOtherThanGoodwill"}]
["/*",null,{"$f":"'823180 - Nota. Activos Intang.'!$D$46","v":"Importe en libros en términos brutos"},{"$f":"'823180 - Nota. Activos Intang.'!$C$46","v":"co-svsp-core_2017-12-31:GrossCarryingAmount"}]
["/*",null,{"$f":"'823180 - Nota. Activos Intang.'!$D$47","v":"Depreciación y amortización acumuladas"},{"$f":"'823180 - Nota. Activos Intang.'!$C$47","v":"co-svsp-core_2017-12-31:AccumulatedDepreciationAndAmortisation"}]
["/*",null,{"$f":"'823180 - Nota. Activos Intang.'!$D$48","v":"Deterioro de valor acumulado"},{"$f":"'823180 - Nota. Activos Intang.'!$C$48","v":"co-svsp-core_2017-12-31:AccumulatedImpairment"}]
["/*",null,{"$f":"'823180 - Nota. Activos Intang.'!$D$49","v":"Conciliación de cambios en activos intangibles distintos de la plusvalía [resumen]"},{"$f":"'823180 - Nota. Activos Intang.'!$C$49","v":"ifrs-full:ReconciliationOfChangesInIntangibleAssetsOtherThanGoodwillAbstract"}]
["/*",null,{"$f":"'823180 - Nota. Activos Intang.'!$D$50","v":"Activos intangibles distintos de la plusvalía"},{"$f":"'823180 - Nota. Activos Intang.'!$C$50","v":"co-svsp-core_2017-12-31:IntangibleAssetsOtherThanGoodwillBeginningOfPeriod"}]
["/*",null,{"$f":"'823180 - Nota. Activos Intang.'!$D$51","v":"Incrementos distintos de los procedentes de combinaciones de negocios, activos intangibles distintos de la plusvalía"},{"$f":"'823180 - Nota. Activos Intang.'!$C$51","v":"ifrs-full:AdditionsOtherThanThroughBusinessCombinationsIntangibleAssetsOtherThanGoodwill"}]
["/*",null,{"$f":"'823180 - Nota. Activos Intang.'!$D$52","v":"Adquisiciones realizadas mediante combinaciones de negocios, activos intangibles distintos a la plusvalía"},{"$f":"'823180 - Nota. Activos Intang.'!$C$52","v":"ifrs-full:AcquisitionsThroughBusinessCombinationsIntangibleAssetsOtherThanGoodwill"}]
["/*",null,{"$f":"'823180 - Nota. Activos Intang.'!$D$53","v":"Amortización, activos intangibles distintos de la plusvalía"},{"$f":"'823180 - Nota. Activos Intang.'!$C$53","v":"ifrs-full:AmortisationIntangibleAssetsOtherThanGoodwill"}]
["/*",null,{"$f":"'823180 - Nota. Activos Intang.'!$D$54","v":"Pérdidas por deterioro de valor reconocidas en el resultado del periodo, activos intangibles distintos de la plusvalía"},{"$f":"'823180 - Nota. Activos Intang.'!$C$54","v":"ifrs-full:ImpairmentLossRecognisedInProfitOrLossIntangibleAssetsOtherThanGoodwill"}]
["/*",null,{"$f":"'823180 - Nota. Activos Intang.'!$D$55","v":"Reversión de pérdidas por deterioro de valor reconocidas en el resultado del periodo, activos intangibles distintos de la plusvalía"},{"$f":"'823180 - Nota. Activos Intang.'!$C$55","v":"ifrs-full:ReversalOfImpairmentLossRecognisedInProfitOrLossIntangibleAssetsOtherThanGoodwill"}]
["/*",null,{"$f":"'823180 - Nota. Activos Intang.'!$D$56","v":"Incrementos (disminuciones) por transferencias y otros cambios, activos intangibles distintos de la plusvalía [resumen]"},{"$f":"'823180 - Nota. Activos Intang.'!$C$56","v":"ifrs-full:IncreaseDecreaseThroughTransfersAndOtherChangesIntangibleAssetsOtherThanGoodwillAbstract"}]
["/*",null,{"$f":"'823180 - Nota. Activos Intang.'!$D$57","v":"Incrementos (disminuciones) por transferencias, activos intangibles distintas de la plusvalía"},{"$f":"'823180 - Nota. Activos Intang.'!$C$57","v":"ifrs-full:IncreaseDecreaseThroughTransfersIntangibleAssetsOtherThanGoodwill"}]
["/*",null,{"$f":"'823180 - Nota. Activos Intang.'!$D$58","v":"Incrementos (disminuciones) por otros cambios, activos intangibles distintos de la plusvalía"},{"$f":"'823180 - Nota. Activos Intang.'!$C$58","v":"ifrs-full:IncreaseDecreaseThroughOtherChangesIntangibleAssetsOtherThanGoodwill"}]
["",null,{"$f":"'823180 - Nota. Activos Intang.'!$D$59","v":"Incremento (disminución) por transferencias y otros cambios, activos intangibles distintos de la plusvalía"},{"$f":"'823180 - Nota. Activos Intang.'!$C$59","v":"ifrs-full:IncreaseDecreaseThroughTransfersAndOtherChangesIntangibleAssetsOtherThanGoodwill"},0,"peso",{"$f":"'823180 - Nota. Activos Intang.'!$K$59","v":0},800001965,"http://www.xbrl.org/scheme/companyName",{"$f":"Periodos!$D$3","v":"2016-01-01"},{"$f":"Periodos!$D$4","v":"2016-12-31"},{"$f":"'823180 - Nota. Activos Intang.'!$D$42","v":"co-svsp-core_2017-12-31:ActivosIntangibles_Eje_G1"},{"$f":"'823180 - Nota. Activos Intang.'!$K$41","v":"ifrs-full:IntangibleExplorationAndEvaluationAssetsMember"}]
["/*",null,{"$f":"'823180 - Nota. Activos Intang.'!$D$60","v":"Disposiciones y retiros de servicio, activos intangibles distintos de la plusvalía [resumen]"},{"$f":"'823180 - Nota. Activos Intang.'!$C$60","v":"ifrs-full:DisposalsAndRetirementsIntangibleAssetsOtherThanGoodwillAbstract"}]
["/*",null,{"$f":"'823180 - Nota. Activos Intang.'!$D$61","v":"Disposiciones, activos intangibles distintos de la plusvalía"},{"$f":"'823180 - Nota. Activos Intang.'!$C$61","v":"ifrs-full:DisposalsIntangibleAssetsOtherThanGoodwill"}]
["/*",null,{"$f":"'823180 - Nota. Activos Intang.'!$D$62","v":"Retiros de servicio, activos intangibles distintos de la plusvalía"},{"$f":"'823180 - Nota. Activos Intang.'!$C$62","v":"ifrs-full:RetirementsIntangibleAssetsOtherThanGoodwill"}]
["",null,{"$f":"'823180 - Nota. Activos Intang.'!$D$63","v":"Disposiciones y retiros de servicio, activos intangibles distintos de la plusvalía"},{"$f":"'823180 - Nota. Activos Intang.'!$C$63","v":"ifrs-full:DisposalsAndRetirementsIntangibleAssetsOtherThanGoodwill"},0,"peso",{"$f":"'823180 - Nota. Activos Intang.'!$K$63","v":0},800001965,"http://www.xbrl.org/scheme/companyName",{"$f":"Periodos!$D$3","v":"2016-01-01"},{"$f":"Periodos!$D$4","v":"2016-12-31"},{"$f":"'823180 - Nota. Activos Intang.'!$D$42","v":"co-svsp-core_2017-12-31:ActivosIntangibles_Eje_G1"},{"$f":"'823180 - Nota. Activos Intang.'!$K$41","v":"ifrs-full:IntangibleExplorationAndEvaluationAssetsMember"}]
["/*",null,{"$f":"'823180 - Nota. Activos Intang.'!$D$64","v":"Disminuciones por clasificar como mantenidos para la venta, activos intangibles distintos de la plusvalía"},{"$f":"'823180 - Nota. Activos Intang.'!$C$64","v":"ifrs-full:DecreaseThroughClassifiedAsHeldForSaleIntangibleAssetsOtherThanGoodwill"}]
["",null,{"$f":"'823180 - Nota. Activos Intang.'!$D$65","v":"Incremento (disminución) en activos intangibles distintos de la plusvalía"},{"$f":"'823180 - Nota. Activos Intang.'!$C$65","v":"ifrs-full:ChangesInIntangibleAssetsOtherThanGoodwill"},0,"peso",{"$f":"'823180 - Nota. Activos Intang.'!$K$65","v":0},800001965,"http://www.xbrl.org/scheme/companyName",{"$f":"Periodos!$D$3","v":"2016-01-01"},{"$f":"Periodos!$D$4","v":"2016-12-31"},{"$f":"'823180 - Nota. Activos Intang.'!$D$42","v":"co-svsp-core_2017-12-31:ActivosIntangibles_Eje_G1"},{"$f":"'823180 - Nota. Activos Intang.'!$K$41","v":"ifrs-full:IntangibleExplorationAndEvaluationAssetsMember"}]
[{"$f":"IF(G7777=\"\",\"/*\",\"\")","v":""},null,{"$f":"'823180 - Nota. Activos Intang.'!$D$66","v":"Activos intangibles distintos de la plusvalía"},{"$f":"'823180 - Nota. Activos Intang.'!$C$66","v":"co-svsp-core_2017-12-31:IntangibleAssetsOtherThanGoodwillEndOfPeriod"},0,"peso",{"$f":"'823180 - Nota. Activos Intang.'!$K$66","v":0},800001965,"http://www.xbrl.org/scheme/companyName",{"$f":"Periodos!$D$3","v":"2016-01-01"},{"$f":"Periodos!$D$4","v":"2016-12-31"},{"$f":"'823180 - Nota. Activos Intang.'!$D$42","v":"co-svsp-core_2017-12-31:ActivosIntangibles_Eje_G1"},{"$f":"'823180 - Nota. Activos Intang.'!$K$41","v":"ifrs-full:IntangibleExplorationAndEvaluationAssetsMember"}]
["/*",null,"--08--"]
["/*",null,{"$f":"'823180 - Nota. Activos Intang.'!$D$43","v":"Información a revelar detallada sobre activos intangibles [partidas de los estados financieros]"},{"$f":"'823180 - Nota. Activos Intang.'!$C$43","v":"ifrs-full:DisclosureOfIntangibleAssetsLineItems"}]
["/*",null,{"$f":"'823180 - Nota. Activos Intang.'!$D$44","v":"Método de amortización, activos intangibles distintos de la plusvalía"},{"$f":"'823180 - Nota. Activos Intang.'!$C$44","v":"ifrs-full:AmortisationMethodIntangibleAssetsOtherThanGoodwill"}]
["/*",null,{"$f":"'823180 - Nota. Activos Intang.'!$D$45","v":"Vidas útiles o tasas de amortización, activos intangibles distintos de la plusvalía"},{"$f":"'823180 - Nota. Activos Intang.'!$C$45","v":"ifrs-full:UsefulLivesOrAmortisationRatesIntangibleAssetsOtherThanGoodwill"}]
["/*",null,{"$f":"'823180 - Nota. Activos Intang.'!$D$46","v":"Importe en libros en términos brutos"},{"$f":"'823180 - Nota. Activos Intang.'!$C$46","v":"co-svsp-core_2017-12-31:GrossCarryingAmount"}]
["/*",null,{"$f":"'823180 - Nota. Activos Intang.'!$D$47","v":"Depreciación y amortización acumuladas"},{"$f":"'823180 - Nota. Activos Intang.'!$C$47","v":"co-svsp-core_2017-12-31:AccumulatedDepreciationAndAmortisation"}]
["/*",null,{"$f":"'823180 - Nota. Activos Intang.'!$D$48","v":"Deterioro de valor acumulado"},{"$f":"'823180 - Nota. Activos Intang.'!$C$48","v":"co-svsp-core_2017-12-31:AccumulatedImpairment"}]
["/*",null,{"$f":"'823180 - Nota. Activos Intang.'!$D$49","v":"Conciliación de cambios en activos intangibles distintos de la plusvalía [resumen]"},{"$f":"'823180 - Nota. Activos Intang.'!$C$49","v":"ifrs-full:ReconciliationOfChangesInIntangibleAssetsOtherThanGoodwillAbstract"}]
["/*",null,{"$f":"'823180 - Nota. Activos Intang.'!$D$50","v":"Activos intangibles distintos de la plusvalía"},{"$f":"'823180 - Nota. Activos Intang.'!$C$50","v":"co-svsp-core_2017-12-31:IntangibleAssetsOtherThanGoodwillBeginningOfPeriod"}]
["/*",null,{"$f":"'823180 - Nota. Activos Intang.'!$D$51","v":"Incrementos distintos de los procedentes de combinaciones de negocios, activos intangibles distintos de la plusvalía"},{"$f":"'823180 - Nota. Activos Intang.'!$C$51","v":"ifrs-full:AdditionsOtherThanThroughBusinessCombinationsIntangibleAssetsOtherThanGoodwill"}]
["/*",null,{"$f":"'823180 - Nota. Activos Intang.'!$D$52","v":"Adquisiciones realizadas mediante combinaciones de negocios, activos intangibles distintos a la plusvalía"},{"$f":"'823180 - Nota. Activos Intang.'!$C$52","v":"ifrs-full:AcquisitionsThroughBusinessCombinationsIntangibleAssetsOtherThanGoodwill"}]
["/*",null,{"$f":"'823180 - Nota. Activos Intang.'!$D$53","v":"Amortización, activos intangibles distintos de la plusvalía"},{"$f":"'823180 - Nota. Activos Intang.'!$C$53","v":"ifrs-full:AmortisationIntangibleAssetsOtherThanGoodwill"}]
["/*",null,{"$f":"'823180 - Nota. Activos Intang.'!$D$54","v":"Pérdidas por deterioro de valor reconocidas en el resultado del periodo, activos intangibles distintos de la plusvalía"},{"$f":"'823180 - Nota. Activos Intang.'!$C$54","v":"ifrs-full:ImpairmentLossRecognisedInProfitOrLossIntangibleAssetsOtherThanGoodwill"}]
["/*",null,{"$f":"'823180 - Nota. Activos Intang.'!$D$55","v":"Reversión de pérdidas por deterioro de valor reconocidas en el resultado del periodo, activos intangibles distintos de la plusvalía"},{"$f":"'823180 - Nota. Activos Intang.'!$C$55","v":"ifrs-full:ReversalOfImpairmentLossRecognisedInProfitOrLossIntangibleAssetsOtherThanGoodwill"}]
["/*",null,{"$f":"'823180 - Nota. Activos Intang.'!$D$56","v":"Incrementos (disminuciones) por transferencias y otros cambios, activos intangibles distintos de la plusvalía [resumen]"},{"$f":"'823180 - Nota. Activos Intang.'!$C$56","v":"ifrs-full:IncreaseDecreaseThroughTransfersAndOtherChangesIntangibleAssetsOtherThanGoodwillAbstract"}]
["/*",null,{"$f":"'823180 - Nota. Activos Intang.'!$D$57","v":"Incrementos (disminuciones) por transferencias, activos intangibles distintas de la plusvalía"},{"$f":"'823180 - Nota. Activos Intang.'!$C$57","v":"ifrs-full:IncreaseDecreaseThroughTransfersIntangibleAssetsOtherThanGoodwill"}]
["/*",null,{"$f":"'823180 - Nota. Activos Intang.'!$D$58","v":"Incrementos (disminuciones) por otros cambios, activos intangibles distintos de la plusvalía"},{"$f":"'823180 - Nota. Activos Intang.'!$C$58","v":"ifrs-full:IncreaseDecreaseThroughOtherChangesIntangibleAssetsOtherThanGoodwill"}]
["",null,{"$f":"'823180 - Nota. Activos Intang.'!$D$59","v":"Incremento (disminución) por transferencias y otros cambios, activos intangibles distintos de la plusvalía"},{"$f":"'823180 - Nota. Activos Intang.'!$C$59","v":"ifrs-full:IncreaseDecreaseThroughTransfersAndOtherChangesIntangibleAssetsOtherThanGoodwill"},0,"peso",{"$f":"'823180 - Nota. Activos Intang.'!$L$59","v":0},800001965,"http://www.xbrl.org/scheme/companyName",{"$f":"Periodos!$D$3","v":"2016-01-01"},{"$f":"Periodos!$D$4","v":"2016-12-31"},{"$f":"'823180 - Nota. Activos Intang.'!$D$42","v":"co-svsp-core_2017-12-31:ActivosIntangibles_Eje_G1"},{"$f":"'823180 - Nota. Activos Intang.'!$L$41","v":"co-svsp-core_2017-12-31:ServiceConcessionArrangementsClassifiedAsIntangibleAssetsMember"}]
["/*",null,{"$f":"'823180 - Nota. Activos Intang.'!$D$60","v":"Disposiciones y retiros de servicio, activos intangibles distintos de la plusvalía [resumen]"},{"$f":"'823180 - Nota. Activos Intang.'!$C$60","v":"ifrs-full:DisposalsAndRetirementsIntangibleAssetsOtherThanGoodwillAbstract"}]
["/*",null,{"$f":"'823180 - Nota. Activos Intang.'!$D$61","v":"Disposiciones, activos intangibles distintos de la plusvalía"},{"$f":"'823180 - Nota. Activos Intang.'!$C$61","v":"ifrs-full:DisposalsIntangibleAssetsOtherThanGoodwill"}]
["/*",null,{"$f":"'823180 - Nota. Activos Intang.'!$D$62","v":"Retiros de servicio, activos intangibles distintos de la plusvalía"},{"$f":"'823180 - Nota. Activos Intang.'!$C$62","v":"ifrs-full:RetirementsIntangibleAssetsOtherThanGoodwill"}]
["",null,{"$f":"'823180 - Nota. Activos Intang.'!$D$63","v":"Disposiciones y retiros de servicio, activos intangibles distintos de la plusvalía"},{"$f":"'823180 - Nota. Activos Intang.'!$C$63","v":"ifrs-full:DisposalsAndRetirementsIntangibleAssetsOtherThanGoodwill"},0,"peso",{"$f":"'823180 - Nota. Activos Intang.'!$L$63","v":0},800001965,"http://www.xbrl.org/scheme/companyName",{"$f":"Periodos!$D$3","v":"2016-01-01"},{"$f":"Periodos!$D$4","v":"2016-12-31"},{"$f":"'823180 - Nota. Activos Intang.'!$D$42","v":"co-svsp-core_2017-12-31:ActivosIntangibles_Eje_G1"},{"$f":"'823180 - Nota. Activos Intang.'!$L$41","v":"co-svsp-core_2017-12-31:ServiceConcessionArrangementsClassifiedAsIntangibleAssetsMember"}]
["/*",null,{"$f":"'823180 - Nota. Activos Intang.'!$D$64","v":"Disminuciones por clasificar como mantenidos para la venta, activos intangibles distintos de la plusvalía"},{"$f":"'823180 - Nota. Activos Intang.'!$C$64","v":"ifrs-full:DecreaseThroughClassifiedAsHeldForSaleIntangibleAssetsOtherThanGoodwill"}]
["",null,{"$f":"'823180 - Nota. Activos Intang.'!$D$65","v":"Incremento (disminución) en activos intangibles distintos de la plusvalía"},{"$f":"'823180 - Nota. Activos Intang.'!$C$65","v":"ifrs-full:ChangesInIntangibleAssetsOtherThanGoodwill"},0,"peso",{"$f":"'823180 - Nota. Activos Intang.'!$L$65","v":0},800001965,"http://www.xbrl.org/scheme/companyName",{"$f":"Periodos!$D$3","v":"2016-01-01"},{"$f":"Periodos!$D$4","v":"2016-12-31"},{"$f":"'823180 - Nota. Activos Intang.'!$D$42","v":"co-svsp-core_2017-12-31:ActivosIntangibles_Eje_G1"},{"$f":"'823180 - Nota. Activos Intang.'!$L$41","v":"co-svsp-core_2017-12-31:ServiceConcessionArrangementsClassifiedAsIntangibleAssetsMember"}]
["",null,{"$f":"'823180 - Nota. Activos Intang.'!$D$66","v":"Activos intangibles distintos de la plusvalía"},{"$f":"'823180 - Nota. Activos Intang.'!$C$66","v":"co-svsp-core_2017-12-31:IntangibleAssetsOtherThanGoodwillEndOfPeriod"},0,"peso",{"$f":"'823180 - Nota. Activos Intang.'!$L$66","v":0},800001965,"http://www.xbrl.org/scheme/companyName",{"$f":"Periodos!$D$3","v":"2016-01-01"},{"$f":"Periodos!$D$4","v":"2016-12-31"},{"$f":"'823180 - Nota. Activos Intang.'!$D$42","v":"co-svsp-core_2017-12-31:ActivosIntangibles_Eje_G1"},{"$f":"'823180 - Nota. Activos Intang.'!$L$41","v":"co-svsp-core_2017-12-31:ServiceConcessionArrangementsClassifiedAsIntangibleAssetsMember"}]
["/*",null,"--09--"]
["/*",null,{"$f":"'823180 - Nota. Activos Intang.'!$D$43","v":"Información a revelar detallada sobre activos intangibles [partidas de los estados financieros]"},{"$f":"'823180 - Nota. Activos Intang.'!$C$43","v":"ifrs-full:DisclosureOfIntangibleAssetsLineItems"}]
["/*",null,{"$f":"'823180 - Nota. Activos Intang.'!$D$44","v":"Método de amortización, activos intangibles distintos de la plusvalía"},{"$f":"'823180 - Nota. Activos Intang.'!$C$44","v":"ifrs-full:AmortisationMethodIntangibleAssetsOtherThanGoodwill"}]
["/*",null,{"$f":"'823180 - Nota. Activos Intang.'!$D$45","v":"Vidas útiles o tasas de amortización, activos intangibles distintos de la plusvalía"},{"$f":"'823180 - Nota. Activos Intang.'!$C$45","v":"ifrs-full:UsefulLivesOrAmortisationRatesIntangibleAssetsOtherThanGoodwill"}]
["/*",null,{"$f":"'823180 - Nota. Activos Intang.'!$D$46","v":"Importe en libros en términos brutos"},{"$f":"'823180 - Nota. Activos Intang.'!$C$46","v":"co-svsp-core_2017-12-31:GrossCarryingAmount"}]
["/*",null,{"$f":"'823180 - Nota. Activos Intang.'!$D$47","v":"Depreciación y amortización acumuladas"},{"$f":"'823180 - Nota. Activos Intang.'!$C$47","v":"co-svsp-core_2017-12-31:AccumulatedDepreciationAndAmortisation"}]
["/*",null,{"$f":"'823180 - Nota. Activos Intang.'!$D$48","v":"Deterioro de valor acumulado"},{"$f":"'823180 - Nota. Activos Intang.'!$C$48","v":"co-svsp-core_2017-12-31:AccumulatedImpairment"}]
["/*",null,{"$f":"'823180 - Nota. Activos Intang.'!$D$49","v":"Conciliación de cambios en activos intangibles distintos de la plusvalía [resumen]"},{"$f":"'823180 - Nota. Activos Intang.'!$C$49","v":"ifrs-full:ReconciliationOfChangesInIntangibleAssetsOtherThanGoodwillAbstract"}]
["/*",null,{"$f":"'823180 - Nota. Activos Intang.'!$D$50","v":"Activos intangibles distintos de la plusvalía"},{"$f":"'823180 - Nota. Activos Intang.'!$C$50","v":"co-svsp-core_2017-12-31:IntangibleAssetsOtherThanGoodwillBeginningOfPeriod"}]
["/*",null,{"$f":"'823180 - Nota. Activos Intang.'!$D$51","v":"Incrementos distintos de los procedentes de combinaciones de negocios, activos intangibles distintos de la plusvalía"},{"$f":"'823180 - Nota. Activos Intang.'!$C$51","v":"ifrs-full:AdditionsOtherThanThroughBusinessCombinationsIntangibleAssetsOtherThanGoodwill"}]
["/*",null,{"$f":"'823180 - Nota. Activos Intang.'!$D$52","v":"Adquisiciones realizadas mediante combinaciones de negocios, activos intangibles distintos a la plusvalía"},{"$f":"'823180 - Nota. Activos Intang.'!$C$52","v":"ifrs-full:AcquisitionsThroughBusinessCombinationsIntangibleAssetsOtherThanGoodwill"}]
["/*",null,{"$f":"'823180 - Nota. Activos Intang.'!$D$53","v":"Amortización, activos intangibles distintos de la plusvalía"},{"$f":"'823180 - Nota. Activos Intang.'!$C$53","v":"ifrs-full:AmortisationIntangibleAssetsOtherThanGoodwill"}]
["/*",null,{"$f":"'823180 - Nota. Activos Intang.'!$D$54","v":"Pérdidas por deterioro de valor reconocidas en el resultado del periodo, activos intangibles distintos de la plusvalía"},{"$f":"'823180 - Nota. Activos Intang.'!$C$54","v":"ifrs-full:ImpairmentLossRecognisedInProfitOrLossIntangibleAssetsOtherThanGoodwill"}]
["/*",null,{"$f":"'823180 - Nota. Activos Intang.'!$D$55","v":"Reversión de pérdidas por deterioro de valor reconocidas en el resultado del periodo, activos intangibles distintos de la plusvalía"},{"$f":"'823180 - Nota. Activos Intang.'!$C$55","v":"ifrs-full:ReversalOfImpairmentLossRecognisedInProfitOrLossIntangibleAssetsOtherThanGoodwill"}]
["/*",null,{"$f":"'823180 - Nota. Activos Intang.'!$D$56","v":"Incrementos (disminuciones) por transferencias y otros cambios, activos intangibles distintos de la plusvalía [resumen]"},{"$f":"'823180 - Nota. Activos Intang.'!$C$56","v":"ifrs-full:IncreaseDecreaseThroughTransfersAndOtherChangesIntangibleAssetsOtherThanGoodwillAbstract"}]
["/*",null,{"$f":"'823180 - Nota. Activos Intang.'!$D$57","v":"Incrementos (disminuciones) por transferencias, activos intangibles distintas de la plusvalía"},{"$f":"'823180 - Nota. Activos Intang.'!$C$57","v":"ifrs-full:IncreaseDecreaseThroughTransfersIntangibleAssetsOtherThanGoodwill"}]
["/*",null,{"$f":"'823180 - Nota. Activos Intang.'!$D$58","v":"Incrementos (disminuciones) por otros cambios, activos intangibles distintos de la plusvalía"},{"$f":"'823180 - Nota. Activos Intang.'!$C$58","v":"ifrs-full:IncreaseDecreaseThroughOtherChangesIntangibleAssetsOtherThanGoodwill"}]
["",null,{"$f":"'823180 - Nota. Activos Intang.'!$D$59","v":"Incremento (disminución) por transferencias y otros cambios, activos intangibles distintos de la plusvalía"},{"$f":"'823180 - Nota. Activos Intang.'!$C$59","v":"ifrs-full:IncreaseDecreaseThroughTransfersAndOtherChangesIntangibleAssetsOtherThanGoodwill"},0,"peso",{"$f":"'823180 - Nota. Activos Intang.'!$M$59","v":0},800001965,"http://www.xbrl.org/scheme/companyName",{"$f":"Periodos!$D$3","v":"2016-01-01"},{"$f":"Periodos!$D$4","v":"2016-12-31"},{"$f":"'823180 - Nota. Activos Intang.'!$D$42","v":"co-svsp-core_2017-12-31:ActivosIntangibles_Eje_G1"},{"$f":"'823180 - Nota. Activos Intang.'!$M$41","v":"ifrs-full:OtherIntangibleAssetsMember"}]
["/*",null,{"$f":"'823180 - Nota. Activos Intang.'!$D$60","v":"Disposiciones y retiros de servicio, activos intangibles distintos de la plusvalía [resumen]"},{"$f":"'823180 - Nota. Activos Intang.'!$C$60","v":"ifrs-full:DisposalsAndRetirementsIntangibleAssetsOtherThanGoodwillAbstract"}]
["/*",null,{"$f":"'823180 - Nota. Activos Intang.'!$D$61","v":"Disposiciones, activos intangibles distintos de la plusvalía"},{"$f":"'823180 - Nota. Activos Intang.'!$C$61","v":"ifrs-full:DisposalsIntangibleAssetsOtherThanGoodwill"}]
["/*",null,{"$f":"'823180 - Nota. Activos Intang.'!$D$62","v":"Retiros de servicio, activos intangibles distintos de la plusvalía"},{"$f":"'823180 - Nota. Activos Intang.'!$C$62","v":"ifrs-full:RetirementsIntangibleAssetsOtherThanGoodwill"}]
["",null,{"$f":"'823180 - Nota. Activos Intang.'!$D$63","v":"Disposiciones y retiros de servicio, activos intangibles distintos de la plusvalía"},{"$f":"'823180 - Nota. Activos Intang.'!$C$63","v":"ifrs-full:DisposalsAndRetirementsIntangibleAssetsOtherThanGoodwill"},0,"peso",{"$f":"'823180 - Nota. Activos Intang.'!$M$63","v":0},800001965,"http://www.xbrl.org/scheme/companyName",{"$f":"Periodos!$D$3","v":"2016-01-01"},{"$f":"Periodos!$D$4","v":"2016-12-31"},{"$f":"'823180 - Nota. Activos Intang.'!$D$42","v":"co-svsp-core_2017-12-31:ActivosIntangibles_Eje_G1"},{"$f":"'823180 - Nota. Activos Intang.'!$M$41","v":"ifrs-full:OtherIntangibleAssetsMember"}]
["/*",null,{"$f":"'823180 - Nota. Activos Intang.'!$D$64","v":"Disminuciones por clasificar como mantenidos para la venta, activos intangibles distintos de la plusvalía"},{"$f":"'823180 - Nota. Activos Intang.'!$C$64","v":"ifrs-full:DecreaseThroughClassifiedAsHeldForSaleIntangibleAssetsOtherThanGoodwill"}]
["",null,{"$f":"'823180 - Nota. Activos Intang.'!$D$65","v":"Incremento (disminución) en activos intangibles distintos de la plusvalía"},{"$f":"'823180 - Nota. Activos Intang.'!$C$65","v":"ifrs-full:ChangesInIntangibleAssetsOtherThanGoodwill"},0,"peso",{"$f":"'823180 - Nota. Activos Intang.'!$M$65","v":0},800001965,"http://www.xbrl.org/scheme/companyName",{"$f":"Periodos!$D$3","v":"2016-01-01"},{"$f":"Periodos!$D$4","v":"2016-12-31"},{"$f":"'823180 - Nota. Activos Intang.'!$D$42","v":"co-svsp-core_2017-12-31:ActivosIntangibles_Eje_G1"},{"$f":"'823180 - Nota. Activos Intang.'!$M$41","v":"ifrs-full:OtherIntangibleAssetsMember"}]
["",null,{"$f":"'823180 - Nota. Activos Intang.'!$D$66","v":"Activos intangibles distintos de la plusvalía"},{"$f":"'823180 - Nota. Activos Intang.'!$C$66","v":"co-svsp-core_2017-12-31:IntangibleAssetsOtherThanGoodwillEndOfPeriod"},0,"peso",{"$f":"'823180 - Nota. Activos Intang.'!$M$66","v":0},800001965,"http://www.xbrl.org/scheme/companyName",{"$f":"Periodos!$D$3","v":"2016-01-01"},{"$f":"Periodos!$D$4","v":"2016-12-31"},{"$f":"'823180 - Nota. Activos Intang.'!$D$42","v":"co-svsp-core_2017-12-31:ActivosIntangibles_Eje_G1"},{"$f":"'823180 - Nota. Activos Intang.'!$M$41","v":"ifrs-full:OtherIntangibleAssetsMember"}]
["/*",null,"--10--"]
["/*",null,{"$f":"'823180 - Nota. Activos Intang.'!$D$43","v":"Información a revelar detallada sobre activos intangibles [partidas de los estados financieros]"},{"$f":"'823180 - Nota. Activos Intang.'!$C$43","v":"ifrs-full:DisclosureOfIntangibleAssetsLineItems"}]
["/*",null,{"$f":"'823180 - Nota. Activos Intang.'!$D$44","v":"Método de amortización, activos intangibles distintos de la plusvalía"},{"$f":"'823180 - Nota. Activos Intang.'!$C$44","v":"ifrs-full:AmortisationMethodIntangibleAssetsOtherThanGoodwill"}]
["/*",null,{"$f":"'823180 - Nota. Activos Intang.'!$D$45","v":"Vidas útiles o tasas de amortización, activos intangibles distintos de la plusvalía"},{"$f":"'823180 - Nota. Activos Intang.'!$C$45","v":"ifrs-full:UsefulLivesOrAmortisationRatesIntangibleAssetsOtherThanGoodwill"}]
["",null,{"$f":"'823180 - Nota. Activos Intang.'!$D$46","v":"Importe en libros en términos brutos"},{"$f":"'823180 - Nota. Activos Intang.'!$C$46","v":"co-svsp-core_2017-12-31:GrossCarryingAmount"},0,"peso",{"$f":"'823180 - Nota. Activos Intang.'!$N$46","v":0},800001965,"http://www.xbrl.org/scheme/companyName",{"$f":"Periodos!$D$3","v":"2016-01-01"},{"$f":"Periodos!$D$4","v":"2016-12-31"},{"$f":"'823180 - Nota. Activos Intang.'!$D$42","v":"co-svsp-core_2017-12-31:ActivosIntangibles_Eje_G1"},{"$f":"'823180 - Nota. Activos Intang.'!$N$41","v":"ifrs-full:IntangibleAssetsOtherThanGoodwillMember"}]
["",null,{"$f":"'823180 - Nota. Activos Intang.'!$D$47","v":"Depreciación y amortización acumuladas"},{"$f":"'823180 - Nota. Activos Intang.'!$C$47","v":"co-svsp-core_2017-12-31:AccumulatedDepreciationAndAmortisation"},0,"peso",{"$f":"'823180 - Nota. Activos Intang.'!$N$47","v":0},800001965,"http://www.xbrl.org/scheme/companyName",{"$f":"Periodos!$D$3","v":"2016-01-01"},{"$f":"Periodos!$D$4","v":"2016-12-31"},{"$f":"'823180 - Nota. Activos Intang.'!$D$42","v":"co-svsp-core_2017-12-31:ActivosIntangibles_Eje_G1"},{"$f":"'823180 - Nota. Activos Intang.'!$N$41","v":"ifrs-full:IntangibleAssetsOtherThanGoodwillMember"}]
["",null,{"$f":"'823180 - Nota. Activos Intang.'!$D$48","v":"Deterioro de valor acumulado"},{"$f":"'823180 - Nota. Activos Intang.'!$C$48","v":"co-svsp-core_2017-12-31:AccumulatedImpairment"},0,"peso",{"$f":"'823180 - Nota. Activos Intang.'!$N$48","v":0},800001965,"http://www.xbrl.org/scheme/companyName",{"$f":"Periodos!$D$3","v":"2016-01-01"},{"$f":"Periodos!$D$4","v":"2016-12-31"},{"$f":"'823180 - Nota. Activos Intang.'!$D$42","v":"co-svsp-core_2017-12-31:ActivosIntangibles_Eje_G1"},{"$f":"'823180 - Nota. Activos Intang.'!$N$41","v":"ifrs-full:IntangibleAssetsOtherThanGoodwillMember"}]
["/*",null,{"$f":"'823180 - Nota. Activos Intang.'!$D$49","v":"Conciliación de cambios en activos intangibles distintos de la plusvalía [resumen]"},{"$f":"'823180 - Nota. Activos Intang.'!$C$49","v":"ifrs-full:ReconciliationOfChangesInIntangibleAssetsOtherThanGoodwillAbstract"}]
["",null,{"$f":"'823180 - Nota. Activos Intang.'!$D$50","v":"Activos intangibles distintos de la plusvalía"},{"$f":"'823180 - Nota. Activos Intang.'!$C$50","v":"co-svsp-core_2017-12-31:IntangibleAssetsOtherThanGoodwillBeginningOfPeriod"},0,"peso",{"$f":"'823180 - Nota. Activos Intang.'!$N$50","v":0},800001965,"http://www.xbrl.org/scheme/companyName",{"$f":"Periodos!$D$3","v":"2016-01-01"},{"$f":"Periodos!$D$4","v":"2016-12-31"},{"$f":"'823180 - Nota. Activos Intang.'!$D$42","v":"co-svsp-core_2017-12-31:ActivosIntangibles_Eje_G1"},{"$f":"'823180 - Nota. Activos Intang.'!$N$41","v":"ifrs-full:IntangibleAssetsOtherThanGoodwillMember"}]
["",null,{"$f":"'823180 - Nota. Activos Intang.'!$D$51","v":"Incrementos distintos de los procedentes de combinaciones de negocios, activos intangibles distintos de la plusvalía"},{"$f":"'823180 - Nota. Activos Intang.'!$C$51","v":"ifrs-full:AdditionsOtherThanThroughBusinessCombinationsIntangibleAssetsOtherThanGoodwill"},0,"peso",{"$f":"'823180 - Nota. Activos Intang.'!$N$51","v":0},800001965,"http://www.xbrl.org/scheme/companyName",{"$f":"Periodos!$D$3","v":"2016-01-01"},{"$f":"Periodos!$D$4","v":"2016-12-31"},{"$f":"'823180 - Nota. Activos Intang.'!$D$42","v":"co-svsp-core_2017-12-31:ActivosIntangibles_Eje_G1"},{"$f":"'823180 - Nota. Activos Intang.'!$N$41","v":"ifrs-full:IntangibleAssetsOtherThanGoodwillMember"}]
["",null,{"$f":"'823180 - Nota. Activos Intang.'!$D$52","v":"Adquisiciones realizadas mediante combinaciones de negocios, activos intangibles distintos a la plusvalía"},{"$f":"'823180 - Nota. Activos Intang.'!$C$52","v":"ifrs-full:AcquisitionsThroughBusinessCombinationsIntangibleAssetsOtherThanGoodwill"},0,"peso",{"$f":"'823180 - Nota. Activos Intang.'!$N$52","v":0},800001965,"http://www.xbrl.org/scheme/companyName",{"$f":"Periodos!$D$3","v":"2016-01-01"},{"$f":"Periodos!$D$4","v":"2016-12-31"},{"$f":"'823180 - Nota. Activos Intang.'!$D$42","v":"co-svsp-core_2017-12-31:ActivosIntangibles_Eje_G1"},{"$f":"'823180 - Nota. Activos Intang.'!$N$41","v":"ifrs-full:IntangibleAssetsOtherThanGoodwillMember"}]
["",null,{"$f":"'823180 - Nota. Activos Intang.'!$D$53","v":"Amortización, activos intangibles distintos de la plusvalía"},{"$f":"'823180 - Nota. Activos Intang.'!$C$53","v":"ifrs-full:AmortisationIntangibleAssetsOtherThanGoodwill"},0,"peso",{"$f":"'823180 - Nota. Activos Intang.'!$N$53","v":0},800001965,"http://www.xbrl.org/scheme/companyName",{"$f":"Periodos!$D$3","v":"2016-01-01"},{"$f":"Periodos!$D$4","v":"2016-12-31"},{"$f":"'823180 - Nota. Activos Intang.'!$D$42","v":"co-svsp-core_2017-12-31:ActivosIntangibles_Eje_G1"},{"$f":"'823180 - Nota. Activos Intang.'!$N$41","v":"ifrs-full:IntangibleAssetsOtherThanGoodwillMember"}]
["",null,{"$f":"'823180 - Nota. Activos Intang.'!$D$54","v":"Pérdidas por deterioro de valor reconocidas en el resultado del periodo, activos intangibles distintos de la plusvalía"},{"$f":"'823180 - Nota. Activos Intang.'!$C$54","v":"ifrs-full:ImpairmentLossRecognisedInProfitOrLossIntangibleAssetsOtherThanGoodwill"},0,"peso",{"$f":"'823180 - Nota. Activos Intang.'!$N$54","v":0},800001965,"http://www.xbrl.org/scheme/companyName",{"$f":"Periodos!$D$3","v":"2016-01-01"},{"$f":"Periodos!$D$4","v":"2016-12-31"},{"$f":"'823180 - Nota. Activos Intang.'!$D$42","v":"co-svsp-core_2017-12-31:ActivosIntangibles_Eje_G1"},{"$f":"'823180 - Nota. Activos Intang.'!$N$41","v":"ifrs-full:IntangibleAssetsOtherThanGoodwillMember"}]
[{"$f":"IF(G7841=\"\",\"/*\",\"\")","v":""},null,{"$f":"'823180 - Nota. Activos Intang.'!$D$55","v":"Reversión de pérdidas por deterioro de valor reconocidas en el resultado del periodo, activos intangibles distintos de la plusvalía"},{"$f":"'823180 - Nota. Activos Intang.'!$C$55","v":"ifrs-full:ReversalOfImpairmentLossRecognisedInProfitOrLossIntangibleAssetsOtherThanGoodwill"},0,"peso",{"$f":"'823180 - Nota. Activos Intang.'!$N$55","v":0},800001965,"http://www.xbrl.org/scheme/companyName",{"$f":"Periodos!$D$3","v":"2016-01-01"},{"$f":"Periodos!$D$4","v":"2016-12-31"},{"$f":"'823180 - Nota. Activos Intang.'!$D$42","v":"co-svsp-core_2017-12-31:ActivosIntangibles_Eje_G1"},{"$f":"'823180 - Nota. Activos Intang.'!$N$41","v":"ifrs-full:IntangibleAssetsOtherThanGoodwillMember"}]
["/*",null,{"$f":"'823180 - Nota. Activos Intang.'!$D$56","v":"Incrementos (disminuciones) por transferencias y otros cambios, activos intangibles distintos de la plusvalía [resumen]"},{"$f":"'823180 - Nota. Activos Intang.'!$C$56","v":"ifrs-full:IncreaseDecreaseThroughTransfersAndOtherChangesIntangibleAssetsOtherThanGoodwillAbstract"}]
["",null,{"$f":"'823180 - Nota. Activos Intang.'!$D$57","v":"Incrementos (disminuciones) por transferencias, activos intangibles distintas de la plusvalía"},{"$f":"'823180 - Nota. Activos Intang.'!$C$57","v":"ifrs-full:IncreaseDecreaseThroughTransfersIntangibleAssetsOtherThanGoodwill"},0,"peso",{"$f":"'823180 - Nota. Activos Intang.'!$N$57","v":0},800001965,"http://www.xbrl.org/scheme/companyName",{"$f":"Periodos!$D$3","v":"2016-01-01"},{"$f":"Periodos!$D$4","v":"2016-12-31"},{"$f":"'823180 - Nota. Activos Intang.'!$D$42","v":"co-svsp-core_2017-12-31:ActivosIntangibles_Eje_G1"},{"$f":"'823180 - Nota. Activos Intang.'!$N$41","v":"ifrs-full:IntangibleAssetsOtherThanGoodwillMember"}]
["",null,{"$f":"'823180 - Nota. Activos Intang.'!$D$58","v":"Incrementos (disminuciones) por otros cambios, activos intangibles distintos de la plusvalía"},{"$f":"'823180 - Nota. Activos Intang.'!$C$58","v":"ifrs-full:IncreaseDecreaseThroughOtherChangesIntangibleAssetsOtherThanGoodwill"},0,"peso",{"$f":"'823180 - Nota. Activos Intang.'!$N$58","v":0},800001965,"http://www.xbrl.org/scheme/companyName",{"$f":"Periodos!$D$3","v":"2016-01-01"},{"$f":"Periodos!$D$4","v":"2016-12-31"},{"$f":"'823180 - Nota. Activos Intang.'!$D$42","v":"co-svsp-core_2017-12-31:ActivosIntangibles_Eje_G1"},{"$f":"'823180 - Nota. Activos Intang.'!$N$41","v":"ifrs-full:IntangibleAssetsOtherThanGoodwillMember"}]
["",null,{"$f":"'823180 - Nota. Activos Intang.'!$D$59","v":"Incremento (disminución) por transferencias y otros cambios, activos intangibles distintos de la plusvalía"},{"$f":"'823180 - Nota. Activos Intang.'!$C$59","v":"ifrs-full:IncreaseDecreaseThroughTransfersAndOtherChangesIntangibleAssetsOtherThanGoodwill"},0,"peso",{"$f":"'823180 - Nota. Activos Intang.'!$N$59","v":0},800001965,"http://www.xbrl.org/scheme/companyName",{"$f":"Periodos!$D$3","v":"2016-01-01"},{"$f":"Periodos!$D$4","v":"2016-12-31"},{"$f":"'823180 - Nota. Activos Intang.'!$D$42","v":"co-svsp-core_2017-12-31:ActivosIntangibles_Eje_G1"},{"$f":"'823180 - Nota. Activos Intang.'!$N$41","v":"ifrs-full:IntangibleAssetsOtherThanGoodwillMember"}]
["/*",null,{"$f":"'823180 - Nota. Activos Intang.'!$D$60","v":"Disposiciones y retiros de servicio, activos intangibles distintos de la plusvalía [resumen]"},{"$f":"'823180 - Nota. Activos Intang.'!$C$60","v":"ifrs-full:DisposalsAndRetirementsIntangibleAssetsOtherThanGoodwillAbstract"}]
["",null,{"$f":"'823180 - Nota. Activos Intang.'!$D$61","v":"Disposiciones, activos intangibles distintos de la plusvalía"},{"$f":"'823180 - Nota. Activos Intang.'!$C$61","v":"ifrs-full:DisposalsIntangibleAssetsOtherThanGoodwill"},0,"peso",{"$f":"'823180 - Nota. Activos Intang.'!$N$61","v":0},800001965,"http://www.xbrl.org/scheme/companyName",{"$f":"Periodos!$D$3","v":"2016-01-01"},{"$f":"Periodos!$D$4","v":"2016-12-31"},{"$f":"'823180 - Nota. Activos Intang.'!$D$42","v":"co-svsp-core_2017-12-31:ActivosIntangibles_Eje_G1"},{"$f":"'823180 - Nota. Activos Intang.'!$N$41","v":"ifrs-full:IntangibleAssetsOtherThanGoodwillMember"}]
["",null,{"$f":"'823180 - Nota. Activos Intang.'!$D$62","v":"Retiros de servicio, activos intangibles distintos de la plusvalía"},{"$f":"'823180 - Nota. Activos Intang.'!$C$62","v":"ifrs-full:RetirementsIntangibleAssetsOtherThanGoodwill"},0,"peso",{"$f":"'823180 - Nota. Activos Intang.'!$N$62","v":0},800001965,"http://www.xbrl.org/scheme/companyName",{"$f":"Periodos!$D$3","v":"2016-01-01"},{"$f":"Periodos!$D$4","v":"2016-12-31"},{"$f":"'823180 - Nota. Activos Intang.'!$D$42","v":"co-svsp-core_2017-12-31:ActivosIntangibles_Eje_G1"},{"$f":"'823180 - Nota. Activos Intang.'!$N$41","v":"ifrs-full:IntangibleAssetsOtherThanGoodwillMember"}]
["",null,{"$f":"'823180 - Nota. Activos Intang.'!$D$63","v":"Disposiciones y retiros de servicio, activos intangibles distintos de la plusvalía"},{"$f":"'823180 - Nota. Activos Intang.'!$C$63","v":"ifrs-full:DisposalsAndRetirementsIntangibleAssetsOtherThanGoodwill"},0,"peso",{"$f":"'823180 - Nota. Activos Intang.'!$N$63","v":0},800001965,"http://www.xbrl.org/scheme/companyName",{"$f":"Periodos!$D$3","v":"2016-01-01"},{"$f":"Periodos!$D$4","v":"2016-12-31"},{"$f":"'823180 - Nota. Activos Intang.'!$D$42","v":"co-svsp-core_2017-12-31:ActivosIntangibles_Eje_G1"},{"$f":"'823180 - Nota. Activos Intang.'!$N$41","v":"ifrs-full:IntangibleAssetsOtherThanGoodwillMember"}]
["",null,{"$f":"'823180 - Nota. Activos Intang.'!$D$64","v":"Disminuciones por clasificar como mantenidos para la venta, activos intangibles distintos de la plusvalía"},{"$f":"'823180 - Nota. Activos Intang.'!$C$64","v":"ifrs-full:DecreaseThroughClassifiedAsHeldForSaleIntangibleAssetsOtherThanGoodwill"},0,"peso",{"$f":"'823180 - Nota. Activos Intang.'!$N$64","v":0},800001965,"http://www.xbrl.org/scheme/companyName",{"$f":"Periodos!$D$3","v":"2016-01-01"},{"$f":"Periodos!$D$4","v":"2016-12-31"},{"$f":"'823180 - Nota. Activos Intang.'!$D$42","v":"co-svsp-core_2017-12-31:ActivosIntangibles_Eje_G1"},{"$f":"'823180 - Nota. Activos Intang.'!$N$41","v":"ifrs-full:IntangibleAssetsOtherThanGoodwillMember"}]
["",null,{"$f":"'823180 - Nota. Activos Intang.'!$D$65","v":"Incremento (disminución) en activos intangibles distintos de la plusvalía"},{"$f":"'823180 - Nota. Activos Intang.'!$C$65","v":"ifrs-full:ChangesInIntangibleAssetsOtherThanGoodwill"},0,"peso",{"$f":"'823180 - Nota. Activos Intang.'!$N$65","v":0},800001965,"http://www.xbrl.org/scheme/companyName",{"$f":"Periodos!$D$3","v":"2016-01-01"},{"$f":"Periodos!$D$4","v":"2016-12-31"},{"$f":"'823180 - Nota. Activos Intang.'!$D$42","v":"co-svsp-core_2017-12-31:ActivosIntangibles_Eje_G1"},{"$f":"'823180 - Nota. Activos Intang.'!$N$41","v":"ifrs-full:IntangibleAssetsOtherThanGoodwillMember"}]
["",null,{"$f":"'823180 - Nota. Activos Intang.'!$D$66","v":"Activos intangibles distintos de la plusvalía"},{"$f":"'823180 - Nota. Activos Intang.'!$C$66","v":"co-svsp-core_2017-12-31:IntangibleAssetsOtherThanGoodwillEndOfPeriod"},0,"peso",{"$f":"'823180 - Nota. Activos Intang.'!$N$66","v":0},800001965,"http://www.xbrl.org/scheme/companyName",{"$f":"Periodos!$D$3","v":"2016-01-01"},{"$f":"Periodos!$D$4","v":"2016-12-31"},{"$f":"'823180 - Nota. Activos Intang.'!$D$42","v":"co-svsp-core_2017-12-31:ActivosIntangibles_Eje_G1"},{"$f":"'823180 - Nota. Activos Intang.'!$N$41","v":"ifrs-full:IntangibleAssetsOtherThanGoodwillMember"}]
["/*"]
["/*",null,"828000 - Nota. Cuentas x pagar"]
["/*",null,"--01--"]
["/*",null,{"$f":"'828000 - Nota. Cuentas x pagar'!$D$12","v":"Cuentas comerciales por pagar, otras cuentas por pagar y otros pasivos financieros items"},{"$f":"'828000 - Nota. Cuentas x pagar'!$C$12","v":"co-svsp-core_2017-12-31:CxP_Cuentas_comerciales_por_pagar_otras_cuentas_por_pagar_y_otros_pasivos_financieros_items"}]
["/*",null,{"$f":"'828000 - Nota. Cuentas x pagar'!$D$13","v":"Cuentas comerciales por pagar"},{"$f":"'828000 - Nota. Cuentas x pagar'!$C$13","v":"co-svsp-core_2017-12-31:CxP_Cuentas_por_pagar_comerciales"}]
["/*",null,{"$f":"'828000 - Nota. Cuentas x pagar'!$D$14","v":"Otras cuentas por pagar"},{"$f":"'828000 - Nota. Cuentas x pagar'!$C$14","v":"co-svsp-core_2017-12-31:CxP_Otras_cuentas_por_pagar"}]
["",null,{"$f":"'828000 - Nota. Cuentas x pagar'!$D$15","v":"Total cuentas comerciales por pagar y otras cuentas por pagar"},{"$f":"'828000 - Nota. Cuentas x pagar'!$C$15","v":"co-svsp-core_2017-12-31:CxP_Total_cuentas_comerciales_por_pagar_y_otras_cuentas_por_pagar"},0,"peso",{"$f":"'828000 - Nota. Cuentas x pagar'!$E$15","v":0},800001965,"http://www.xbrl.org/scheme/companyName",null,{"$f":"Periodos!$C$4","v":"2017-12-31"},{"$f":"'828000 - Nota. Cuentas x pagar'!$D$11","v":"co-svsp-core_2017-12-31:CuentasXPagar_Eje"},{"$f":"'828000 - Nota. Cuentas x pagar'!$E$10","v":"co-svsp-core_2017-12-31:Nacionales_corrientes_CxP_Miembro"}]
["/*",null,{"$f":"'828000 - Nota. Cuentas x pagar'!$D$16","v":"Otros Pasivos financieros"},{"$f":"'828000 - Nota. Cuentas x pagar'!$C$16","v":"co-svsp-core_2017-12-31:CxP_Otros_Pasivos_financieros"}]
["",null,{"$f":"'828000 - Nota. Cuentas x pagar'!$D$17","v":"Total cuentas comerciales por pagar, otras cuentas por pagar y otros pasivos financieros"},{"$f":"'828000 - Nota. Cuentas x pagar'!$C$17","v":"co-svsp-core_2017-12-31:CxP_Total_cuentas_comerciales_por_pagar_otras_cuentas_por_pagar_y_otros_pasivos_financieros"},0,"peso",{"$f":"'828000 - Nota. Cuentas x pagar'!$E$17","v":0},800001965,"http://www.xbrl.org/scheme/companyName",null,{"$f":"Periodos!$C$4","v":"2017-12-31"},{"$f":"'828000 - Nota. Cuentas x pagar'!$D$11","v":"co-svsp-core_2017-12-31:CuentasXPagar_Eje"},{"$f":"'828000 - Nota. Cuentas x pagar'!$E$10","v":"co-svsp-core_2017-12-31:Nacionales_corrientes_CxP_Miembro"}]
["/*",null,"--02--"]
["/*",null,{"$f":"'828000 - Nota. Cuentas x pagar'!$D$12","v":"Cuentas comerciales por pagar, otras cuentas por pagar y otros pasivos financieros items"},{"$f":"'828000 - Nota. Cuentas x pagar'!$C$12","v":"co-svsp-core_2017-12-31:CxP_Cuentas_comerciales_por_pagar_otras_cuentas_por_pagar_y_otros_pasivos_financieros_items"}]
["/*",null,{"$f":"'828000 - Nota. Cuentas x pagar'!$D$13","v":"Cuentas comerciales por pagar"},{"$f":"'828000 - Nota. Cuentas x pagar'!$C$13","v":"co-svsp-core_2017-12-31:CxP_Cuentas_por_pagar_comerciales"}]
["/*",null,{"$f":"'828000 - Nota. Cuentas x pagar'!$D$14","v":"Otras cuentas por pagar"},{"$f":"'828000 - Nota. Cuentas x pagar'!$C$14","v":"co-svsp-core_2017-12-31:CxP_Otras_cuentas_por_pagar"}]
["",null,{"$f":"'828000 - Nota. Cuentas x pagar'!$D$15","v":"Total cuentas comerciales por pagar y otras cuentas por pagar"},{"$f":"'828000 - Nota. Cuentas x pagar'!$C$15","v":"co-svsp-core_2017-12-31:CxP_Total_cuentas_comerciales_por_pagar_y_otras_cuentas_por_pagar"},0,"peso",{"$f":"'828000 - Nota. Cuentas x pagar'!$F$15","v":0},800001965,"http://www.xbrl.org/scheme/companyName",null,{"$f":"Periodos!$C$4","v":"2017-12-31"},{"$f":"'828000 - Nota. Cuentas x pagar'!$D$11","v":"co-svsp-core_2017-12-31:CuentasXPagar_Eje"},{"$f":"'828000 - Nota. Cuentas x pagar'!$F$10","v":"co-svsp-core_2017-12-31:En_el_exterior_corrientes_CxP_Miembro"}]
["/*",null,{"$f":"'828000 - Nota. Cuentas x pagar'!$D$16","v":"Otros Pasivos financieros"},{"$f":"'828000 - Nota. Cuentas x pagar'!$C$16","v":"co-svsp-core_2017-12-31:CxP_Otros_Pasivos_financieros"}]
["",null,{"$f":"'828000 - Nota. Cuentas x pagar'!$D$17","v":"Total cuentas comerciales por pagar, otras cuentas por pagar y otros pasivos financieros"},{"$f":"'828000 - Nota. Cuentas x pagar'!$C$17","v":"co-svsp-core_2017-12-31:CxP_Total_cuentas_comerciales_por_pagar_otras_cuentas_por_pagar_y_otros_pasivos_financieros"},0,"peso",{"$f":"'828000 - Nota. Cuentas x pagar'!$F$17","v":0},800001965,"http://www.xbrl.org/scheme/companyName",null,{"$f":"Periodos!$C$4","v":"2017-12-31"},{"$f":"'828000 - Nota. Cuentas x pagar'!$D$11","v":"co-svsp-core_2017-12-31:CuentasXPagar_Eje"},{"$f":"'828000 - Nota. Cuentas x pagar'!$F$10","v":"co-svsp-core_2017-12-31:En_el_exterior_corrientes_CxP_Miembro"}]
["/*",null,"--03--"]
["/*",null,{"$f":"'828000 - Nota. Cuentas x pagar'!$D$12","v":"Cuentas comerciales por pagar, otras cuentas por pagar y otros pasivos financieros items"},{"$f":"'828000 - Nota. Cuentas x pagar'!$C$12","v":"co-svsp-core_2017-12-31:CxP_Cuentas_comerciales_por_pagar_otras_cuentas_por_pagar_y_otros_pasivos_financieros_items"}]
["/*",null,{"$f":"'828000 - Nota. Cuentas x pagar'!$D$13","v":"Cuentas comerciales por pagar"},{"$f":"'828000 - Nota. Cuentas x pagar'!$C$13","v":"co-svsp-core_2017-12-31:CxP_Cuentas_por_pagar_comerciales"}]
["/*",null,{"$f":"'828000 - Nota. Cuentas x pagar'!$D$14","v":"Otras cuentas por pagar"},{"$f":"'828000 - Nota. Cuentas x pagar'!$C$14","v":"co-svsp-core_2017-12-31:CxP_Otras_cuentas_por_pagar"}]
["",null,{"$f":"'828000 - Nota. Cuentas x pagar'!$D$15","v":"Total cuentas comerciales por pagar y otras cuentas por pagar"},{"$f":"'828000 - Nota. Cuentas x pagar'!$C$15","v":"co-svsp-core_2017-12-31:CxP_Total_cuentas_comerciales_por_pagar_y_otras_cuentas_por_pagar"},0,"peso",{"$f":"'828000 - Nota. Cuentas x pagar'!$G$15","v":0},800001965,"http://www.xbrl.org/scheme/companyName",null,{"$f":"Periodos!$C$4","v":"2017-12-31"},{"$f":"'828000 - Nota. Cuentas x pagar'!$D$11","v":"co-svsp-core_2017-12-31:CuentasXPagar_Eje"},{"$f":"'828000 - Nota. Cuentas x pagar'!$G$10","v":"co-svsp-core_2017-12-31:Nacionales_no_corrientes_CxP_Miembro"}]
["/*",null,{"$f":"'828000 - Nota. Cuentas x pagar'!$D$16","v":"Otros Pasivos financieros"},{"$f":"'828000 - Nota. Cuentas x pagar'!$C$16","v":"co-svsp-core_2017-12-31:CxP_Otros_Pasivos_financieros"}]
["",null,{"$f":"'828000 - Nota. Cuentas x pagar'!$D$17","v":"Total cuentas comerciales por pagar, otras cuentas por pagar y otros pasivos financieros"},{"$f":"'828000 - Nota. Cuentas x pagar'!$C$17","v":"co-svsp-core_2017-12-31:CxP_Total_cuentas_comerciales_por_pagar_otras_cuentas_por_pagar_y_otros_pasivos_financieros"},0,"peso",{"$f":"'828000 - Nota. Cuentas x pagar'!$G$17","v":0},800001965,"http://www.xbrl.org/scheme/companyName",null,{"$f":"Periodos!$C$4","v":"2017-12-31"},{"$f":"'828000 - Nota. Cuentas x pagar'!$D$11","v":"co-svsp-core_2017-12-31:CuentasXPagar_Eje"},{"$f":"'828000 - Nota. Cuentas x pagar'!$G$10","v":"co-svsp-core_2017-12-31:Nacionales_no_corrientes_CxP_Miembro"}]
["/*",null,"--04--"]
["/*",null,{"$f":"'828000 - Nota. Cuentas x pagar'!$D$12","v":"Cuentas comerciales por pagar, otras cuentas por pagar y otros pasivos financieros items"},{"$f":"'828000 - Nota. Cuentas x pagar'!$C$12","v":"co-svsp-core_2017-12-31:CxP_Cuentas_comerciales_por_pagar_otras_cuentas_por_pagar_y_otros_pasivos_financieros_items"}]
["/*",null,{"$f":"'828000 - Nota. Cuentas x pagar'!$D$13","v":"Cuentas comerciales por pagar"},{"$f":"'828000 - Nota. Cuentas x pagar'!$C$13","v":"co-svsp-core_2017-12-31:CxP_Cuentas_por_pagar_comerciales"}]
["/*",null,{"$f":"'828000 - Nota. Cuentas x pagar'!$D$14","v":"Otras cuentas por pagar"},{"$f":"'828000 - Nota. Cuentas x pagar'!$C$14","v":"co-svsp-core_2017-12-31:CxP_Otras_cuentas_por_pagar"}]
["",null,{"$f":"'828000 - Nota. Cuentas x pagar'!$D$15","v":"Total cuentas comerciales por pagar y otras cuentas por pagar"},{"$f":"'828000 - Nota. Cuentas x pagar'!$C$15","v":"co-svsp-core_2017-12-31:CxP_Total_cuentas_comerciales_por_pagar_y_otras_cuentas_por_pagar"},0,"peso",{"$f":"'828000 - Nota. Cuentas x pagar'!$H$15","v":0},800001965,"http://www.xbrl.org/scheme/companyName",null,{"$f":"Periodos!$C$4","v":"2017-12-31"},{"$f":"'828000 - Nota. Cuentas x pagar'!$D$11","v":"co-svsp-core_2017-12-31:CuentasXPagar_Eje"},{"$f":"'828000 - Nota. Cuentas x pagar'!$H$10","v":"co-svsp-core_2017-12-31:En_el_exterior_no_corrientes_CxP_Miembro"}]
["/*",null,{"$f":"'828000 - Nota. Cuentas x pagar'!$D$16","v":"Otros Pasivos financieros"},{"$f":"'828000 - Nota. Cuentas x pagar'!$C$16","v":"co-svsp-core_2017-12-31:CxP_Otros_Pasivos_financieros"}]
["",null,{"$f":"'828000 - Nota. Cuentas x pagar'!$D$17","v":"Total cuentas comerciales por pagar, otras cuentas por pagar y otros pasivos financieros"},{"$f":"'828000 - Nota. Cuentas x pagar'!$C$17","v":"co-svsp-core_2017-12-31:CxP_Total_cuentas_comerciales_por_pagar_otras_cuentas_por_pagar_y_otros_pasivos_financieros"},0,"peso",{"$f":"'828000 - Nota. Cuentas x pagar'!$H$17","v":0},800001965,"http://www.xbrl.org/scheme/companyName",null,{"$f":"Periodos!$C$4","v":"2017-12-31"},{"$f":"'828000 - Nota. Cuentas x pagar'!$D$11","v":"co-svsp-core_2017-12-31:CuentasXPagar_Eje"},{"$f":"'828000 - Nota. Cuentas x pagar'!$H$10","v":"co-svsp-core_2017-12-31:En_el_exterior_no_corrientes_CxP_Miembro"}]
["/*",null,"--05--"]
["/*",null,{"$f":"'828000 - Nota. Cuentas x pagar'!$D$12","v":"Cuentas comerciales por pagar, otras cuentas por pagar y otros pasivos financieros items"},{"$f":"'828000 - Nota. Cuentas x pagar'!$C$12","v":"co-svsp-core_2017-12-31:CxP_Cuentas_comerciales_por_pagar_otras_cuentas_por_pagar_y_otros_pasivos_financieros_items"}]
["",null,{"$f":"'828000 - Nota. Cuentas x pagar'!$D$13","v":"Cuentas comerciales por pagar"},{"$f":"'828000 - Nota. Cuentas x pagar'!$C$13","v":"co-svsp-core_2017-12-31:CxP_Cuentas_por_pagar_comerciales"},0,"peso",{"$f":"'828000 - Nota. Cuentas x pagar'!$I$13","v":0},800001965,"http://www.xbrl.org/scheme/companyName",null,{"$f":"Periodos!$C$4","v":"2017-12-31"},{"$f":"'828000 - Nota. Cuentas x pagar'!$D$11","v":"co-svsp-core_2017-12-31:CuentasXPagar_Eje"},{"$f":"'828000 - Nota. Cuentas x pagar'!$I$10","v":"co-svsp-core_2017-12-31:Total_Saldo_del_ejercicio_CxP_Miembro"}]
["",null,{"$f":"'828000 - Nota. Cuentas x pagar'!$D$14","v":"Otras cuentas por pagar"},{"$f":"'828000 - Nota. Cuentas x pagar'!$C$14","v":"co-svsp-core_2017-12-31:CxP_Otras_cuentas_por_pagar"},0,"peso",{"$f":"'828000 - Nota. Cuentas x pagar'!$I$14","v":0},800001965,"http://www.xbrl.org/scheme/companyName",null,{"$f":"Periodos!$C$4","v":"2017-12-31"},{"$f":"'828000 - Nota. Cuentas x pagar'!$D$11","v":"co-svsp-core_2017-12-31:CuentasXPagar_Eje"},{"$f":"'828000 - Nota. Cuentas x pagar'!$I$10","v":"co-svsp-core_2017-12-31:Total_Saldo_del_ejercicio_CxP_Miembro"}]
["",null,{"$f":"'828000 - Nota. Cuentas x pagar'!$D$15","v":"Total cuentas comerciales por pagar y otras cuentas por pagar"},{"$f":"'828000 - Nota. Cuentas x pagar'!$C$15","v":"co-svsp-core_2017-12-31:CxP_Total_cuentas_comerciales_por_pagar_y_otras_cuentas_por_pagar"},0,"peso",{"$f":"'828000 - Nota. Cuentas x pagar'!$I$15","v":0},800001965,"http://www.xbrl.org/scheme/companyName",null,{"$f":"Periodos!$C$4","v":"2017-12-31"},{"$f":"'828000 - Nota. Cuentas x pagar'!$D$11","v":"co-svsp-core_2017-12-31:CuentasXPagar_Eje"},{"$f":"'828000 - Nota. Cuentas x pagar'!$I$10","v":"co-svsp-core_2017-12-31:Total_Saldo_del_ejercicio_CxP_Miembro"}]
["",null,{"$f":"'828000 - Nota. Cuentas x pagar'!$D$16","v":"Otros Pasivos financieros"},{"$f":"'828000 - Nota. Cuentas x pagar'!$C$16","v":"co-svsp-core_2017-12-31:CxP_Otros_Pasivos_financieros"},0,"peso",{"$f":"'828000 - Nota. Cuentas x pagar'!$I$16","v":0},800001965,"http://www.xbrl.org/scheme/companyName",null,{"$f":"Periodos!$C$4","v":"2017-12-31"},{"$f":"'828000 - Nota. Cuentas x pagar'!$D$11","v":"co-svsp-core_2017-12-31:CuentasXPagar_Eje"},{"$f":"'828000 - Nota. Cuentas x pagar'!$I$10","v":"co-svsp-core_2017-12-31:Total_Saldo_del_ejercicio_CxP_Miembro"}]
["",null,{"$f":"'828000 - Nota. Cuentas x pagar'!$D$17","v":"Total cuentas comerciales por pagar, otras cuentas por pagar y otros pasivos financieros"},{"$f":"'828000 - Nota. Cuentas x pagar'!$C$17","v":"co-svsp-core_2017-12-31:CxP_Total_cuentas_comerciales_por_pagar_otras_cuentas_por_pagar_y_otros_pasivos_financieros"},0,"peso",{"$f":"'828000 - Nota. Cuentas x pagar'!$I$17","v":0},800001965,"http://www.xbrl.org/scheme/companyName",null,{"$f":"Periodos!$C$4","v":"2017-12-31"},{"$f":"'828000 - Nota. Cuentas x pagar'!$D$11","v":"co-svsp-core_2017-12-31:CuentasXPagar_Eje"},{"$f":"'828000 - Nota. Cuentas x pagar'!$I$10","v":"co-svsp-core_2017-12-31:Total_Saldo_del_ejercicio_CxP_Miembro"}]
["/*",null,"--06--"]
["/*",null,{"$f":"'828000 - Nota. Cuentas x pagar'!$D$12","v":"Cuentas comerciales por pagar, otras cuentas por pagar y otros pasivos financieros items"},{"$f":"'828000 - Nota. Cuentas x pagar'!$C$12","v":"co-svsp-core_2017-12-31:CxP_Cuentas_comerciales_por_pagar_otras_cuentas_por_pagar_y_otros_pasivos_financieros_items"}]
["/*",null,{"$f":"'828000 - Nota. Cuentas x pagar'!$D$13","v":"Cuentas comerciales por pagar"},{"$f":"'828000 - Nota. Cuentas x pagar'!$C$13","v":"co-svsp-core_2017-12-31:CxP_Cuentas_por_pagar_comerciales"}]
["/*",null,{"$f":"'828000 - Nota. Cuentas x pagar'!$D$14","v":"Otras cuentas por pagar"},{"$f":"'828000 - Nota. Cuentas x pagar'!$C$14","v":"co-svsp-core_2017-12-31:CxP_Otras_cuentas_por_pagar"}]
["",null,{"$f":"'828000 - Nota. Cuentas x pagar'!$D$15","v":"Total cuentas comerciales por pagar y otras cuentas por pagar"},{"$f":"'828000 - Nota. Cuentas x pagar'!$C$15","v":"co-svsp-core_2017-12-31:CxP_Total_cuentas_comerciales_por_pagar_y_otras_cuentas_por_pagar"},0,"peso",{"$f":"'828000 - Nota. Cuentas x pagar'!$J$15","v":0},800001965,"http://www.xbrl.org/scheme/companyName",null,{"$f":"Periodos!$C$4","v":"2017-12-31"},{"$f":"'828000 - Nota. Cuentas x pagar'!$D$11","v":"co-svsp-core_2017-12-31:CuentasXPagar_Eje"},{"$f":"'828000 - Nota. Cuentas x pagar'!$J$10","v":"co-svsp-core_2017-12-31:Numero_de_obligaciones_vencidas_CxP_Miembro"}]
["/*",null,{"$f":"'828000 - Nota. Cuentas x pagar'!$D$16","v":"Otros Pasivos financieros"},{"$f":"'828000 - Nota. Cuentas x pagar'!$C$16","v":"co-svsp-core_2017-12-31:CxP_Otros_Pasivos_financieros"}]
["",null,{"$f":"'828000 - Nota. Cuentas x pagar'!$D$17","v":"Total cuentas comerciales por pagar, otras cuentas por pagar y otros pasivos financieros"},{"$f":"'828000 - Nota. Cuentas x pagar'!$C$17","v":"co-svsp-core_2017-12-31:CxP_Total_cuentas_comerciales_por_pagar_otras_cuentas_por_pagar_y_otros_pasivos_financieros"},0,"peso",{"$f":"'828000 - Nota. Cuentas x pagar'!$J$17","v":0},800001965,"http://www.xbrl.org/scheme/companyName",null,{"$f":"Periodos!$C$4","v":"2017-12-31"},{"$f":"'828000 - Nota. Cuentas x pagar'!$D$11","v":"co-svsp-core_2017-12-31:CuentasXPagar_Eje"},{"$f":"'828000 - Nota. Cuentas x pagar'!$J$10","v":"co-svsp-core_2017-12-31:Numero_de_obligaciones_vencidas_CxP_Miembro"}]
["/*",null,"--07--"]
["/*",null,{"$f":"'828000 - Nota. Cuentas x pagar'!$D$12","v":"Cuentas comerciales por pagar, otras cuentas por pagar y otros pasivos financieros items"},{"$f":"'828000 - Nota. Cuentas x pagar'!$C$12","v":"co-svsp-core_2017-12-31:CxP_Cuentas_comerciales_por_pagar_otras_cuentas_por_pagar_y_otros_pasivos_financieros_items"}]
["/*",null,{"$f":"'828000 - Nota. Cuentas x pagar'!$D$13","v":"Cuentas comerciales por pagar"},{"$f":"'828000 - Nota. Cuentas x pagar'!$C$13","v":"co-svsp-core_2017-12-31:CxP_Cuentas_por_pagar_comerciales"}]
["/*",null,{"$f":"'828000 - Nota. Cuentas x pagar'!$D$14","v":"Otras cuentas por pagar"},{"$f":"'828000 - Nota. Cuentas x pagar'!$C$14","v":"co-svsp-core_2017-12-31:CxP_Otras_cuentas_por_pagar"}]
["",null,{"$f":"'828000 - Nota. Cuentas x pagar'!$D$15","v":"Total cuentas comerciales por pagar y otras cuentas por pagar"},{"$f":"'828000 - Nota. Cuentas x pagar'!$C$15","v":"co-svsp-core_2017-12-31:CxP_Total_cuentas_comerciales_por_pagar_y_otras_cuentas_por_pagar"},0,"peso",{"$f":"'828000 - Nota. Cuentas x pagar'!$K$15","v":0},800001965,"http://www.xbrl.org/scheme/companyName",null,{"$f":"Periodos!$C$4","v":"2017-12-31"},{"$f":"'828000 - Nota. Cuentas x pagar'!$D$11","v":"co-svsp-core_2017-12-31:CuentasXPagar_Eje"},{"$f":"'828000 - Nota. Cuentas x pagar'!$K$10","v":"co-svsp-core_2017-12-31:CxP_Vencidas_1_a_90_dias_Miembro"}]
["/*",null,{"$f":"'828000 - Nota. Cuentas x pagar'!$D$16","v":"Otros Pasivos financieros"},{"$f":"'828000 - Nota. Cuentas x pagar'!$C$16","v":"co-svsp-core_2017-12-31:CxP_Otros_Pasivos_financieros"}]
["",null,{"$f":"'828000 - Nota. Cuentas x pagar'!$D$17","v":"Total cuentas comerciales por pagar, otras cuentas por pagar y otros pasivos financieros"},{"$f":"'828000 - Nota. Cuentas x pagar'!$C$17","v":"co-svsp-core_2017-12-31:CxP_Total_cuentas_comerciales_por_pagar_otras_cuentas_por_pagar_y_otros_pasivos_financieros"},0,"peso",{"$f":"'828000 - Nota. Cuentas x pagar'!$K$17","v":0},800001965,"http://www.xbrl.org/scheme/companyName",null,{"$f":"Periodos!$C$4","v":"2017-12-31"},{"$f":"'828000 - Nota. Cuentas x pagar'!$D$11","v":"co-svsp-core_2017-12-31:CuentasXPagar_Eje"},{"$f":"'828000 - Nota. Cuentas x pagar'!$K$10","v":"co-svsp-core_2017-12-31:CxP_Vencidas_1_a_90_dias_Miembro"}]
["/*",null,"--08--"]
[{"$f":"IF(G7905=\"\",\"/*\",\"\")","v":"/*"},null,{"$f":"'828000 - Nota. Cuentas x pagar'!$D$12","v":"Cuentas comerciales por pagar, otras cuentas por pagar y otros pasivos financieros items"},{"$f":"'828000 - Nota. Cuentas x pagar'!$C$12","v":"co-svsp-core_2017-12-31:CxP_Cuentas_comerciales_por_pagar_otras_cuentas_por_pagar_y_otros_pasivos_financieros_items"}]
["/*",null,{"$f":"'828000 - Nota. Cuentas x pagar'!$D$13","v":"Cuentas comerciales por pagar"},{"$f":"'828000 - Nota. Cuentas x pagar'!$C$13","v":"co-svsp-core_2017-12-31:CxP_Cuentas_por_pagar_comerciales"}]
["/*",null,{"$f":"'828000 - Nota. Cuentas x pagar'!$D$14","v":"Otras cuentas por pagar"},{"$f":"'828000 - Nota. Cuentas x pagar'!$C$14","v":"co-svsp-core_2017-12-31:CxP_Otras_cuentas_por_pagar"}]
["",null,{"$f":"'828000 - Nota. Cuentas x pagar'!$D$15","v":"Total cuentas comerciales por pagar y otras cuentas por pagar"},{"$f":"'828000 - Nota. Cuentas x pagar'!$C$15","v":"co-svsp-core_2017-12-31:CxP_Total_cuentas_comerciales_por_pagar_y_otras_cuentas_por_pagar"},0,"peso",{"$f":"'828000 - Nota. Cuentas x pagar'!$L$15","v":0},800001965,"http://www.xbrl.org/scheme/companyName",null,{"$f":"Periodos!$C$4","v":"2017-12-31"},{"$f":"'828000 - Nota. Cuentas x pagar'!$D$11","v":"co-svsp-core_2017-12-31:CuentasXPagar_Eje"},{"$f":"'828000 - Nota. Cuentas x pagar'!$L$10","v":"co-svsp-core_2017-12-31:CxP_Vencidas_91_a_180_dias_Miembro"}]
["/*",null,{"$f":"'828000 - Nota. Cuentas x pagar'!$D$16","v":"Otros Pasivos financieros"},{"$f":"'828000 - Nota. Cuentas x pagar'!$C$16","v":"co-svsp-core_2017-12-31:CxP_Otros_Pasivos_financieros"}]
["",null,{"$f":"'828000 - Nota. Cuentas x pagar'!$D$17","v":"Total cuentas comerciales por pagar, otras cuentas por pagar y otros pasivos financieros"},{"$f":"'828000 - Nota. Cuentas x pagar'!$C$17","v":"co-svsp-core_2017-12-31:CxP_Total_cuentas_comerciales_por_pagar_otras_cuentas_por_pagar_y_otros_pasivos_financieros"},0,"peso",{"$f":"'828000 - Nota. Cuentas x pagar'!$L$17","v":0},800001965,"http://www.xbrl.org/scheme/companyName",null,{"$f":"Periodos!$C$4","v":"2017-12-31"},{"$f":"'828000 - Nota. Cuentas x pagar'!$D$11","v":"co-svsp-core_2017-12-31:CuentasXPagar_Eje"},{"$f":"'828000 - Nota. Cuentas x pagar'!$L$10","v":"co-svsp-core_2017-12-31:CxP_Vencidas_91_a_180_dias_Miembro"}]
["/*",null,"--09--"]
["/*",null,{"$f":"'828000 - Nota. Cuentas x pagar'!$D$12","v":"Cuentas comerciales por pagar, otras cuentas por pagar y otros pasivos financieros items"},{"$f":"'828000 - Nota. Cuentas x pagar'!$C$12","v":"co-svsp-core_2017-12-31:CxP_Cuentas_comerciales_por_pagar_otras_cuentas_por_pagar_y_otros_pasivos_financieros_items"}]
["/*",null,{"$f":"'828000 - Nota. Cuentas x pagar'!$D$13","v":"Cuentas comerciales por pagar"},{"$f":"'828000 - Nota. Cuentas x pagar'!$C$13","v":"co-svsp-core_2017-12-31:CxP_Cuentas_por_pagar_comerciales"}]
["/*",null,{"$f":"'828000 - Nota. Cuentas x pagar'!$D$14","v":"Otras cuentas por pagar"},{"$f":"'828000 - Nota. Cuentas x pagar'!$C$14","v":"co-svsp-core_2017-12-31:CxP_Otras_cuentas_por_pagar"}]
["",null,{"$f":"'828000 - Nota. Cuentas x pagar'!$D$15","v":"Total cuentas comerciales por pagar y otras cuentas por pagar"},{"$f":"'828000 - Nota. Cuentas x pagar'!$C$15","v":"co-svsp-core_2017-12-31:CxP_Total_cuentas_comerciales_por_pagar_y_otras_cuentas_por_pagar"},0,"peso",{"$f":"'828000 - Nota. Cuentas x pagar'!$M$15","v":0},800001965,"http://www.xbrl.org/scheme/companyName",null,{"$f":"Periodos!$C$4","v":"2017-12-31"},{"$f":"'828000 - Nota. Cuentas x pagar'!$D$11","v":"co-svsp-core_2017-12-31:CuentasXPagar_Eje"},{"$f":"'828000 - Nota. Cuentas x pagar'!$M$10","v":"co-svsp-core_2017-12-31:CxP_Vencidas_181_a_360_dias_Miembro"}]
["/*",null,{"$f":"'828000 - Nota. Cuentas x pagar'!$D$16","v":"Otros Pasivos financieros"},{"$f":"'828000 - Nota. Cuentas x pagar'!$C$16","v":"co-svsp-core_2017-12-31:CxP_Otros_Pasivos_financieros"}]
["",null,{"$f":"'828000 - Nota. Cuentas x pagar'!$D$17","v":"Total cuentas comerciales por pagar, otras cuentas por pagar y otros pasivos financieros"},{"$f":"'828000 - Nota. Cuentas x pagar'!$C$17","v":"co-svsp-core_2017-12-31:CxP_Total_cuentas_comerciales_por_pagar_otras_cuentas_por_pagar_y_otros_pasivos_financieros"},0,"peso",{"$f":"'828000 - Nota. Cuentas x pagar'!$M$17","v":0},800001965,"http://www.xbrl.org/scheme/companyName",null,{"$f":"Periodos!$C$4","v":"2017-12-31"},{"$f":"'828000 - Nota. Cuentas x pagar'!$D$11","v":"co-svsp-core_2017-12-31:CuentasXPagar_Eje"},{"$f":"'828000 - Nota. Cuentas x pagar'!$M$10","v":"co-svsp-core_2017-12-31:CxP_Vencidas_181_a_360_dias_Miembro"}]
["/*",null,"--10--"]
["/*",null,{"$f":"'828000 - Nota. Cuentas x pagar'!$D$12","v":"Cuentas comerciales por pagar, otras cuentas por pagar y otros pasivos financieros items"},{"$f":"'828000 - Nota. Cuentas x pagar'!$C$12","v":"co-svsp-core_2017-12-31:CxP_Cuentas_comerciales_por_pagar_otras_cuentas_por_pagar_y_otros_pasivos_financieros_items"}]
["/*",null,{"$f":"'828000 - Nota. Cuentas x pagar'!$D$13","v":"Cuentas comerciales por pagar"},{"$f":"'828000 - Nota. Cuentas x pagar'!$C$13","v":"co-svsp-core_2017-12-31:CxP_Cuentas_por_pagar_comerciales"}]
["/*",null,{"$f":"'828000 - Nota. Cuentas x pagar'!$D$14","v":"Otras cuentas por pagar"},{"$f":"'828000 - Nota. Cuentas x pagar'!$C$14","v":"co-svsp-core_2017-12-31:CxP_Otras_cuentas_por_pagar"}]
["",null,{"$f":"'828000 - Nota. Cuentas x pagar'!$D$15","v":"Total cuentas comerciales por pagar y otras cuentas por pagar"},{"$f":"'828000 - Nota. Cuentas x pagar'!$C$15","v":"co-svsp-core_2017-12-31:CxP_Total_cuentas_comerciales_por_pagar_y_otras_cuentas_por_pagar"},0,"peso",{"$f":"'828000 - Nota. Cuentas x pagar'!$N$15","v":0},800001965,"http://www.xbrl.org/scheme/companyName",null,{"$f":"Periodos!$C$4","v":"2017-12-31"},{"$f":"'828000 - Nota. Cuentas x pagar'!$D$11","v":"co-svsp-core_2017-12-31:CuentasXPagar_Eje"},{"$f":"'828000 - Nota. Cuentas x pagar'!$N$10","v":"co-svsp-core_2017-12-31:CxP_Vencidas_mas_de_360_dias_Miembro"}]
["/*",null,{"$f":"'828000 - Nota. Cuentas x pagar'!$D$16","v":"Otros Pasivos financieros"},{"$f":"'828000 - Nota. Cuentas x pagar'!$C$16","v":"co-svsp-core_2017-12-31:CxP_Otros_Pasivos_financieros"}]
["",null,{"$f":"'828000 - Nota. Cuentas x pagar'!$D$17","v":"Total cuentas comerciales por pagar, otras cuentas por pagar y otros pasivos financieros"},{"$f":"'828000 - Nota. Cuentas x pagar'!$C$17","v":"co-svsp-core_2017-12-31:CxP_Total_cuentas_comerciales_por_pagar_otras_cuentas_por_pagar_y_otros_pasivos_financieros"},0,"peso",{"$f":"'828000 - Nota. Cuentas x pagar'!$N$17","v":0},800001965,"http://www.xbrl.org/scheme/companyName",null,{"$f":"Periodos!$C$4","v":"2017-12-31"},{"$f":"'828000 - Nota. Cuentas x pagar'!$D$11","v":"co-svsp-core_2017-12-31:CuentasXPagar_Eje"},{"$f":"'828000 - Nota. Cuentas x pagar'!$N$10","v":"co-svsp-core_2017-12-31:CxP_Vencidas_mas_de_360_dias_Miembro"}]
["/*",null,"--11--"]
["/*",null,{"$f":"'828000 - Nota. Cuentas x pagar'!$D$12","v":"Cuentas comerciales por pagar, otras cuentas por pagar y otros pasivos financieros items"},{"$f":"'828000 - Nota. Cuentas x pagar'!$C$12","v":"co-svsp-core_2017-12-31:CxP_Cuentas_comerciales_por_pagar_otras_cuentas_por_pagar_y_otros_pasivos_financieros_items"}]
["",null,{"$f":"'828000 - Nota. Cuentas x pagar'!$D$13","v":"Cuentas comerciales por pagar"},{"$f":"'828000 - Nota. Cuentas x pagar'!$C$13","v":"co-svsp-core_2017-12-31:CxP_Cuentas_por_pagar_comerciales"},0,"peso",{"$f":"'828000 - Nota. Cuentas x pagar'!$O$13","v":0},800001965,"http://www.xbrl.org/scheme/companyName",null,{"$f":"Periodos!$C$4","v":"2017-12-31"},{"$f":"'828000 - Nota. Cuentas x pagar'!$D$11","v":"co-svsp-core_2017-12-31:CuentasXPagar_Eje"},{"$f":"'828000 - Nota. Cuentas x pagar'!$O$10","v":"co-svsp-core_2017-12-31:Obligaciones_vencidas_CxP_Miembro"}]
["",null,{"$f":"'828000 - Nota. Cuentas x pagar'!$D$14","v":"Otras cuentas por pagar"},{"$f":"'828000 - Nota. Cuentas x pagar'!$C$14","v":"co-svsp-core_2017-12-31:CxP_Otras_cuentas_por_pagar"},0,"peso",{"$f":"'828000 - Nota. Cuentas x pagar'!$O$14","v":0},800001965,"http://www.xbrl.org/scheme/companyName",null,{"$f":"Periodos!$C$4","v":"2017-12-31"},{"$f":"'828000 - Nota. Cuentas x pagar'!$D$11","v":"co-svsp-core_2017-12-31:CuentasXPagar_Eje"},{"$f":"'828000 - Nota. Cuentas x pagar'!$O$10","v":"co-svsp-core_2017-12-31:Obligaciones_vencidas_CxP_Miembro"}]
["",null,{"$f":"'828000 - Nota. Cuentas x pagar'!$D$15","v":"Total cuentas comerciales por pagar y otras cuentas por pagar"},{"$f":"'828000 - Nota. Cuentas x pagar'!$C$15","v":"co-svsp-core_2017-12-31:CxP_Total_cuentas_comerciales_por_pagar_y_otras_cuentas_por_pagar"},0,"peso",{"$f":"'828000 - Nota. Cuentas x pagar'!$O$15","v":0},800001965,"http://www.xbrl.org/scheme/companyName",null,{"$f":"Periodos!$C$4","v":"2017-12-31"},{"$f":"'828000 - Nota. Cuentas x pagar'!$D$11","v":"co-svsp-core_2017-12-31:CuentasXPagar_Eje"},{"$f":"'828000 - Nota. Cuentas x pagar'!$O$10","v":"co-svsp-core_2017-12-31:Obligaciones_vencidas_CxP_Miembro"}]
["",null,{"$f":"'828000 - Nota. Cuentas x pagar'!$D$16","v":"Otros Pasivos financieros"},{"$f":"'828000 - Nota. Cuentas x pagar'!$C$16","v":"co-svsp-core_2017-12-31:CxP_Otros_Pasivos_financieros"},0,"peso",{"$f":"'828000 - Nota. Cuentas x pagar'!$O$16","v":0},800001965,"http://www.xbrl.org/scheme/companyName",null,{"$f":"Periodos!$C$4","v":"2017-12-31"},{"$f":"'828000 - Nota. Cuentas x pagar'!$D$11","v":"co-svsp-core_2017-12-31:CuentasXPagar_Eje"},{"$f":"'828000 - Nota. Cuentas x pagar'!$O$10","v":"co-svsp-core_2017-12-31:Obligaciones_vencidas_CxP_Miembro"}]
["",null,{"$f":"'828000 - Nota. Cuentas x pagar'!$D$17","v":"Total cuentas comerciales por pagar, otras cuentas por pagar y otros pasivos financieros"},{"$f":"'828000 - Nota. Cuentas x pagar'!$C$17","v":"co-svsp-core_2017-12-31:CxP_Total_cuentas_comerciales_por_pagar_otras_cuentas_por_pagar_y_otros_pasivos_financieros"},0,"peso",{"$f":"'828000 - Nota. Cuentas x pagar'!$O$17","v":0},800001965,"http://www.xbrl.org/scheme/companyName",null,{"$f":"Periodos!$C$4","v":"2017-12-31"},{"$f":"'828000 - Nota. Cuentas x pagar'!$D$11","v":"co-svsp-core_2017-12-31:CuentasXPagar_Eje"},{"$f":"'828000 - Nota. Cuentas x pagar'!$O$10","v":"co-svsp-core_2017-12-31:Obligaciones_vencidas_CxP_Miembro"}]
["/*"]
["/*",null,"828000 - Nota. Cuentas x pagar"]
["/*",null,"--01--"]
["/*",null,{"$f":"'828000 - Nota. Cuentas x pagar'!$D$25","v":"Cuentas comerciales por pagar, otras cuentas por pagar y otros pasivos financieros items"},{"$f":"'828000 - Nota. Cuentas x pagar'!$C$25","v":"co-svsp-core_2017-12-31:CxP_Cuentas_comerciales_por_pagar_otras_cuentas_por_pagar_y_otros_pasivos_financieros_items"}]
["/*",null,{"$f":"'828000 - Nota. Cuentas x pagar'!$D$26","v":"Cuentas comerciales por pagar"},{"$f":"'828000 - Nota. Cuentas x pagar'!$C$26","v":"co-svsp-core_2017-12-31:CxP_Cuentas_por_pagar_comerciales"}]
["/*",null,{"$f":"'828000 - Nota. Cuentas x pagar'!$D$27","v":"Otras cuentas por pagar"},{"$f":"'828000 - Nota. Cuentas x pagar'!$C$27","v":"co-svsp-core_2017-12-31:CxP_Otras_cuentas_por_pagar"}]
["",null,{"$f":"'828000 - Nota. Cuentas x pagar'!$D$28","v":"Total cuentas comerciales por pagar y otras cuentas por pagar"},{"$f":"'828000 - Nota. Cuentas x pagar'!$C$28","v":"co-svsp-core_2017-12-31:CxP_Total_cuentas_comerciales_por_pagar_y_otras_cuentas_por_pagar"},0,"peso",{"$f":"'828000 - Nota. Cuentas x pagar'!$E$28","v":0},800001965,"http://www.xbrl.org/scheme/companyName",null,{"$f":"Periodos!$D$4","v":"2016-12-31"},{"$f":"'828000 - Nota. Cuentas x pagar'!$D$24","v":"co-svsp-core_2017-12-31:CuentasXPagar_Eje"},{"$f":"'828000 - Nota. Cuentas x pagar'!$E$23","v":"co-svsp-core_2017-12-31:Nacionales_corrientes_CxP_Miembro"}]
["/*",null,{"$f":"'828000 - Nota. Cuentas x pagar'!$D$29","v":"Otros Pasivos financieros"},{"$f":"'828000 - Nota. Cuentas x pagar'!$C$29","v":"co-svsp-core_2017-12-31:CxP_Otros_Pasivos_financieros"}]
["",null,{"$f":"'828000 - Nota. Cuentas x pagar'!$D$30","v":"Total cuentas comerciales por pagar, otras cuentas por pagar y otros pasivos financieros"},{"$f":"'828000 - Nota. Cuentas x pagar'!$C$30","v":"co-svsp-core_2017-12-31:CxP_Total_cuentas_comerciales_por_pagar_otras_cuentas_por_pagar_y_otros_pasivos_financieros"},0,"peso",{"$f":"'828000 - Nota. Cuentas x pagar'!$E$30","v":0},800001965,"http://www.xbrl.org/scheme/companyName",null,{"$f":"Periodos!$D$4","v":"2016-12-31"},{"$f":"'828000 - Nota. Cuentas x pagar'!$D$24","v":"co-svsp-core_2017-12-31:CuentasXPagar_Eje"},{"$f":"'828000 - Nota. Cuentas x pagar'!$E$23","v":"co-svsp-core_2017-12-31:Nacionales_corrientes_CxP_Miembro"}]
["/*",null,"--02--"]
["/*",null,{"$f":"'828000 - Nota. Cuentas x pagar'!$D$25","v":"Cuentas comerciales por pagar, otras cuentas por pagar y otros pasivos financieros items"},{"$f":"'828000 - Nota. Cuentas x pagar'!$C$25","v":"co-svsp-core_2017-12-31:CxP_Cuentas_comerciales_por_pagar_otras_cuentas_por_pagar_y_otros_pasivos_financieros_items"}]
["/*",null,{"$f":"'828000 - Nota. Cuentas x pagar'!$D$26","v":"Cuentas comerciales por pagar"},{"$f":"'828000 - Nota. Cuentas x pagar'!$C$26","v":"co-svsp-core_2017-12-31:CxP_Cuentas_por_pagar_comerciales"}]
["/*",null,{"$f":"'828000 - Nota. Cuentas x pagar'!$D$27","v":"Otras cuentas por pagar"},{"$f":"'828000 - Nota. Cuentas x pagar'!$C$27","v":"co-svsp-core_2017-12-31:CxP_Otras_cuentas_por_pagar"}]
["",null,{"$f":"'828000 - Nota. Cuentas x pagar'!$D$28","v":"Total cuentas comerciales por pagar y otras cuentas por pagar"},{"$f":"'828000 - Nota. Cuentas x pagar'!$C$28","v":"co-svsp-core_2017-12-31:CxP_Total_cuentas_comerciales_por_pagar_y_otras_cuentas_por_pagar"},0,"peso",{"$f":"'828000 - Nota. Cuentas x pagar'!$F$28","v":0},800001965,"http://www.xbrl.org/scheme/companyName",null,{"$f":"Periodos!$D$4","v":"2016-12-31"},{"$f":"'828000 - Nota. Cuentas x pagar'!$D$24","v":"co-svsp-core_2017-12-31:CuentasXPagar_Eje"},{"$f":"'828000 - Nota. Cuentas x pagar'!$F$23","v":"co-svsp-core_2017-12-31:En_el_exterior_corrientes_CxP_Miembro"}]
["/*",null,{"$f":"'828000 - Nota. Cuentas x pagar'!$D$29","v":"Otros Pasivos financieros"},{"$f":"'828000 - Nota. Cuentas x pagar'!$C$29","v":"co-svsp-core_2017-12-31:CxP_Otros_Pasivos_financieros"}]
["",null,{"$f":"'828000 - Nota. Cuentas x pagar'!$D$30","v":"Total cuentas comerciales por pagar, otras cuentas por pagar y otros pasivos financieros"},{"$f":"'828000 - Nota. Cuentas x pagar'!$C$30","v":"co-svsp-core_2017-12-31:CxP_Total_cuentas_comerciales_por_pagar_otras_cuentas_por_pagar_y_otros_pasivos_financieros"},0,"peso",{"$f":"'828000 - Nota. Cuentas x pagar'!$F$30","v":0},800001965,"http://www.xbrl.org/scheme/companyName",null,{"$f":"Periodos!$D$4","v":"2016-12-31"},{"$f":"'828000 - Nota. Cuentas x pagar'!$D$24","v":"co-svsp-core_2017-12-31:CuentasXPagar_Eje"},{"$f":"'828000 - Nota. Cuentas x pagar'!$F$23","v":"co-svsp-core_2017-12-31:En_el_exterior_corrientes_CxP_Miembro"}]
["/*",null,"--03--"]
["/*",null,{"$f":"'828000 - Nota. Cuentas x pagar'!$D$25","v":"Cuentas comerciales por pagar, otras cuentas por pagar y otros pasivos financieros items"},{"$f":"'828000 - Nota. Cuentas x pagar'!$C$25","v":"co-svsp-core_2017-12-31:CxP_Cuentas_comerciales_por_pagar_otras_cuentas_por_pagar_y_otros_pasivos_financieros_items"}]
["/*",null,{"$f":"'828000 - Nota. Cuentas x pagar'!$D$26","v":"Cuentas comerciales por pagar"},{"$f":"'828000 - Nota. Cuentas x pagar'!$C$26","v":"co-svsp-core_2017-12-31:CxP_Cuentas_por_pagar_comerciales"}]
["/*",null,{"$f":"'828000 - Nota. Cuentas x pagar'!$D$27","v":"Otras cuentas por pagar"},{"$f":"'828000 - Nota. Cuentas x pagar'!$C$27","v":"co-svsp-core_2017-12-31:CxP_Otras_cuentas_por_pagar"}]
["",null,{"$f":"'828000 - Nota. Cuentas x pagar'!$D$28","v":"Total cuentas comerciales por pagar y otras cuentas por pagar"},{"$f":"'828000 - Nota. Cuentas x pagar'!$C$28","v":"co-svsp-core_2017-12-31:CxP_Total_cuentas_comerciales_por_pagar_y_otras_cuentas_por_pagar"},0,"peso",{"$f":"'828000 - Nota. Cuentas x pagar'!$G$28","v":0},800001965,"http://www.xbrl.org/scheme/companyName",null,{"$f":"Periodos!$D$4","v":"2016-12-31"},{"$f":"'828000 - Nota. Cuentas x pagar'!$D$24","v":"co-svsp-core_2017-12-31:CuentasXPagar_Eje"},{"$f":"'828000 - Nota. Cuentas x pagar'!$G$23","v":"co-svsp-core_2017-12-31:Nacionales_no_corrientes_CxP_Miembro"}]
["/*",null,{"$f":"'828000 - Nota. Cuentas x pagar'!$D$29","v":"Otros Pasivos financieros"},{"$f":"'828000 - Nota. Cuentas x pagar'!$C$29","v":"co-svsp-core_2017-12-31:CxP_Otros_Pasivos_financieros"}]
["",null,{"$f":"'828000 - Nota. Cuentas x pagar'!$D$30","v":"Total cuentas comerciales por pagar, otras cuentas por pagar y otros pasivos financieros"},{"$f":"'828000 - Nota. Cuentas x pagar'!$C$30","v":"co-svsp-core_2017-12-31:CxP_Total_cuentas_comerciales_por_pagar_otras_cuentas_por_pagar_y_otros_pasivos_financieros"},0,"peso",{"$f":"'828000 - Nota. Cuentas x pagar'!$G$30","v":0},800001965,"http://www.xbrl.org/scheme/companyName",null,{"$f":"Periodos!$D$4","v":"2016-12-31"},{"$f":"'828000 - Nota. Cuentas x pagar'!$D$24","v":"co-svsp-core_2017-12-31:CuentasXPagar_Eje"},{"$f":"'828000 - Nota. Cuentas x pagar'!$G$23","v":"co-svsp-core_2017-12-31:Nacionales_no_corrientes_CxP_Miembro"}]
["/*",null,"--04--"]
["/*",null,{"$f":"'828000 - Nota. Cuentas x pagar'!$D$25","v":"Cuentas comerciales por pagar, otras cuentas por pagar y otros pasivos financieros items"},{"$f":"'828000 - Nota. Cuentas x pagar'!$C$25","v":"co-svsp-core_2017-12-31:CxP_Cuentas_comerciales_por_pagar_otras_cuentas_por_pagar_y_otros_pasivos_financieros_items"}]
["/*",null,{"$f":"'828000 - Nota. Cuentas x pagar'!$D$26","v":"Cuentas comerciales por pagar"},{"$f":"'828000 - Nota. Cuentas x pagar'!$C$26","v":"co-svsp-core_2017-12-31:CxP_Cuentas_por_pagar_comerciales"}]
["/*",null,{"$f":"'828000 - Nota. Cuentas x pagar'!$D$27","v":"Otras cuentas por pagar"},{"$f":"'828000 - Nota. Cuentas x pagar'!$C$27","v":"co-svsp-core_2017-12-31:CxP_Otras_cuentas_por_pagar"}]
["",null,{"$f":"'828000 - Nota. Cuentas x pagar'!$D$28","v":"Total cuentas comerciales por pagar y otras cuentas por pagar"},{"$f":"'828000 - Nota. Cuentas x pagar'!$C$28","v":"co-svsp-core_2017-12-31:CxP_Total_cuentas_comerciales_por_pagar_y_otras_cuentas_por_pagar"},0,"peso",{"$f":"'828000 - Nota. Cuentas x pagar'!$H$28","v":0},800001965,"http://www.xbrl.org/scheme/companyName",null,{"$f":"Periodos!$D$4","v":"2016-12-31"},{"$f":"'828000 - Nota. Cuentas x pagar'!$D$24","v":"co-svsp-core_2017-12-31:CuentasXPagar_Eje"},{"$f":"'828000 - Nota. Cuentas x pagar'!$H$23","v":"co-svsp-core_2017-12-31:En_el_exterior_no_corrientes_CxP_Miembro"}]
["/*",null,{"$f":"'828000 - Nota. Cuentas x pagar'!$D$29","v":"Otros Pasivos financieros"},{"$f":"'828000 - Nota. Cuentas x pagar'!$C$29","v":"co-svsp-core_2017-12-31:CxP_Otros_Pasivos_financieros"}]
["",null,{"$f":"'828000 - Nota. Cuentas x pagar'!$D$30","v":"Total cuentas comerciales por pagar, otras cuentas por pagar y otros pasivos financieros"},{"$f":"'828000 - Nota. Cuentas x pagar'!$C$30","v":"co-svsp-core_2017-12-31:CxP_Total_cuentas_comerciales_por_pagar_otras_cuentas_por_pagar_y_otros_pasivos_financieros"},0,"peso",{"$f":"'828000 - Nota. Cuentas x pagar'!$H$30","v":0},800001965,"http://www.xbrl.org/scheme/companyName",null,{"$f":"Periodos!$D$4","v":"2016-12-31"},{"$f":"'828000 - Nota. Cuentas x pagar'!$D$24","v":"co-svsp-core_2017-12-31:CuentasXPagar_Eje"},{"$f":"'828000 - Nota. Cuentas x pagar'!$H$23","v":"co-svsp-core_2017-12-31:En_el_exterior_no_corrientes_CxP_Miembro"}]
["/*",null,"--05--"]
["/*",null,{"$f":"'828000 - Nota. Cuentas x pagar'!$D$25","v":"Cuentas comerciales por pagar, otras cuentas por pagar y otros pasivos financieros items"},{"$f":"'828000 - Nota. Cuentas x pagar'!$C$25","v":"co-svsp-core_2017-12-31:CxP_Cuentas_comerciales_por_pagar_otras_cuentas_por_pagar_y_otros_pasivos_financieros_items"}]
["",null,{"$f":"'828000 - Nota. Cuentas x pagar'!$D$26","v":"Cuentas comerciales por pagar"},{"$f":"'828000 - Nota. Cuentas x pagar'!$C$26","v":"co-svsp-core_2017-12-31:CxP_Cuentas_por_pagar_comerciales"},0,"peso",{"$f":"'828000 - Nota. Cuentas x pagar'!$I$26","v":0},800001965,"http://www.xbrl.org/scheme/companyName",null,{"$f":"Periodos!$D$4","v":"2016-12-31"},{"$f":"'828000 - Nota. Cuentas x pagar'!$D$24","v":"co-svsp-core_2017-12-31:CuentasXPagar_Eje"},{"$f":"'828000 - Nota. Cuentas x pagar'!$I$23","v":"co-svsp-core_2017-12-31:Total_Saldo_del_ejercicio_CxP_Miembro"}]
["",null,{"$f":"'828000 - Nota. Cuentas x pagar'!$D$27","v":"Otras cuentas por pagar"},{"$f":"'828000 - Nota. Cuentas x pagar'!$C$27","v":"co-svsp-core_2017-12-31:CxP_Otras_cuentas_por_pagar"},0,"peso",{"$f":"'828000 - Nota. Cuentas x pagar'!$I$27","v":0},800001965,"http://www.xbrl.org/scheme/companyName",null,{"$f":"Periodos!$D$4","v":"2016-12-31"},{"$f":"'828000 - Nota. Cuentas x pagar'!$D$24","v":"co-svsp-core_2017-12-31:CuentasXPagar_Eje"},{"$f":"'828000 - Nota. Cuentas x pagar'!$I$23","v":"co-svsp-core_2017-12-31:Total_Saldo_del_ejercicio_CxP_Miembro"}]
["",null,{"$f":"'828000 - Nota. Cuentas x pagar'!$D$28","v":"Total cuentas comerciales por pagar y otras cuentas por pagar"},{"$f":"'828000 - Nota. Cuentas x pagar'!$C$28","v":"co-svsp-core_2017-12-31:CxP_Total_cuentas_comerciales_por_pagar_y_otras_cuentas_por_pagar"},0,"peso",{"$f":"'828000 - Nota. Cuentas x pagar'!$I$28","v":0},800001965,"http://www.xbrl.org/scheme/companyName",null,{"$f":"Periodos!$D$4","v":"2016-12-31"},{"$f":"'828000 - Nota. Cuentas x pagar'!$D$24","v":"co-svsp-core_2017-12-31:CuentasXPagar_Eje"},{"$f":"'828000 - Nota. Cuentas x pagar'!$I$23","v":"co-svsp-core_2017-12-31:Total_Saldo_del_ejercicio_CxP_Miembro"}]
["",null,{"$f":"'828000 - Nota. Cuentas x pagar'!$D$29","v":"Otros Pasivos financieros"},{"$f":"'828000 - Nota. Cuentas x pagar'!$C$29","v":"co-svsp-core_2017-12-31:CxP_Otros_Pasivos_financieros"},0,"peso",{"$f":"'828000 - Nota. Cuentas x pagar'!$I$29","v":0},800001965,"http://www.xbrl.org/scheme/companyName",null,{"$f":"Periodos!$D$4","v":"2016-12-31"},{"$f":"'828000 - Nota. Cuentas x pagar'!$D$24","v":"co-svsp-core_2017-12-31:CuentasXPagar_Eje"},{"$f":"'828000 - Nota. Cuentas x pagar'!$I$23","v":"co-svsp-core_2017-12-31:Total_Saldo_del_ejercicio_CxP_Miembro"}]
["",null,{"$f":"'828000 - Nota. Cuentas x pagar'!$D$30","v":"Total cuentas comerciales por pagar, otras cuentas por pagar y otros pasivos financieros"},{"$f":"'828000 - Nota. Cuentas x pagar'!$C$30","v":"co-svsp-core_2017-12-31:CxP_Total_cuentas_comerciales_por_pagar_otras_cuentas_por_pagar_y_otros_pasivos_financieros"},0,"peso",{"$f":"'828000 - Nota. Cuentas x pagar'!$I$30","v":0},800001965,"http://www.xbrl.org/scheme/companyName",null,{"$f":"Periodos!$D$4","v":"2016-12-31"},{"$f":"'828000 - Nota. Cuentas x pagar'!$D$24","v":"co-svsp-core_2017-12-31:CuentasXPagar_Eje"},{"$f":"'828000 - Nota. Cuentas x pagar'!$I$23","v":"co-svsp-core_2017-12-31:Total_Saldo_del_ejercicio_CxP_Miembro"}]
[{"$f":"IF(G7969=\"\",\"/*\",\"\")","v":"/*"},null,"--06--"]
["/*",null,{"$f":"'828000 - Nota. Cuentas x pagar'!$D$25","v":"Cuentas comerciales por pagar, otras cuentas por pagar y otros pasivos financieros items"},{"$f":"'828000 - Nota. Cuentas x pagar'!$C$25","v":"co-svsp-core_2017-12-31:CxP_Cuentas_comerciales_por_pagar_otras_cuentas_por_pagar_y_otros_pasivos_financieros_items"}]
["/*",null,{"$f":"'828000 - Nota. Cuentas x pagar'!$D$26","v":"Cuentas comerciales por pagar"},{"$f":"'828000 - Nota. Cuentas x pagar'!$C$26","v":"co-svsp-core_2017-12-31:CxP_Cuentas_por_pagar_comerciales"}]
["/*",null,{"$f":"'828000 - Nota. Cuentas x pagar'!$D$27","v":"Otras cuentas por pagar"},{"$f":"'828000 - Nota. Cuentas x pagar'!$C$27","v":"co-svsp-core_2017-12-31:CxP_Otras_cuentas_por_pagar"}]
["",null,{"$f":"'828000 - Nota. Cuentas x pagar'!$D$28","v":"Total cuentas comerciales por pagar y otras cuentas por pagar"},{"$f":"'828000 - Nota. Cuentas x pagar'!$C$28","v":"co-svsp-core_2017-12-31:CxP_Total_cuentas_comerciales_por_pagar_y_otras_cuentas_por_pagar"},0,"peso",{"$f":"'828000 - Nota. Cuentas x pagar'!$J$28","v":0},800001965,"http://www.xbrl.org/scheme/companyName",null,{"$f":"Periodos!$D$4","v":"2016-12-31"},{"$f":"'828000 - Nota. Cuentas x pagar'!$D$24","v":"co-svsp-core_2017-12-31:CuentasXPagar_Eje"},{"$f":"'828000 - Nota. Cuentas x pagar'!$J$23","v":"co-svsp-core_2017-12-31:Numero_de_obligaciones_vencidas_CxP_Miembro"}]
["/*",null,{"$f":"'828000 - Nota. Cuentas x pagar'!$D$29","v":"Otros Pasivos financieros"},{"$f":"'828000 - Nota. Cuentas x pagar'!$C$29","v":"co-svsp-core_2017-12-31:CxP_Otros_Pasivos_financieros"}]
["",null,{"$f":"'828000 - Nota. Cuentas x pagar'!$D$30","v":"Total cuentas comerciales por pagar, otras cuentas por pagar y otros pasivos financieros"},{"$f":"'828000 - Nota. Cuentas x pagar'!$C$30","v":"co-svsp-core_2017-12-31:CxP_Total_cuentas_comerciales_por_pagar_otras_cuentas_por_pagar_y_otros_pasivos_financieros"},0,"peso",{"$f":"'828000 - Nota. Cuentas x pagar'!$J$30","v":0},800001965,"http://www.xbrl.org/scheme/companyName",null,{"$f":"Periodos!$D$4","v":"2016-12-31"},{"$f":"'828000 - Nota. Cuentas x pagar'!$D$24","v":"co-svsp-core_2017-12-31:CuentasXPagar_Eje"},{"$f":"'828000 - Nota. Cuentas x pagar'!$J$23","v":"co-svsp-core_2017-12-31:Numero_de_obligaciones_vencidas_CxP_Miembro"}]
["/*",null,"--07--"]
["/*",null,{"$f":"'828000 - Nota. Cuentas x pagar'!$D$25","v":"Cuentas comerciales por pagar, otras cuentas por pagar y otros pasivos financieros items"},{"$f":"'828000 - Nota. Cuentas x pagar'!$C$25","v":"co-svsp-core_2017-12-31:CxP_Cuentas_comerciales_por_pagar_otras_cuentas_por_pagar_y_otros_pasivos_financieros_items"}]
["/*",null,{"$f":"'828000 - Nota. Cuentas x pagar'!$D$26","v":"Cuentas comerciales por pagar"},{"$f":"'828000 - Nota. Cuentas x pagar'!$C$26","v":"co-svsp-core_2017-12-31:CxP_Cuentas_por_pagar_comerciales"}]
["/*",null,{"$f":"'828000 - Nota. Cuentas x pagar'!$D$27","v":"Otras cuentas por pagar"},{"$f":"'828000 - Nota. Cuentas x pagar'!$C$27","v":"co-svsp-core_2017-12-31:CxP_Otras_cuentas_por_pagar"}]
["",null,{"$f":"'828000 - Nota. Cuentas x pagar'!$D$28","v":"Total cuentas comerciales por pagar y otras cuentas por pagar"},{"$f":"'828000 - Nota. Cuentas x pagar'!$C$28","v":"co-svsp-core_2017-12-31:CxP_Total_cuentas_comerciales_por_pagar_y_otras_cuentas_por_pagar"},0,"peso",{"$f":"'828000 - Nota. Cuentas x pagar'!$K$28","v":0},800001965,"http://www.xbrl.org/scheme/companyName",null,{"$f":"Periodos!$D$4","v":"2016-12-31"},{"$f":"'828000 - Nota. Cuentas x pagar'!$D$24","v":"co-svsp-core_2017-12-31:CuentasXPagar_Eje"},{"$f":"'828000 - Nota. Cuentas x pagar'!$K$23","v":"co-svsp-core_2017-12-31:CxP_Vencidas_1_a_90_dias_Miembro"}]
["/*",null,{"$f":"'828000 - Nota. Cuentas x pagar'!$D$29","v":"Otros Pasivos financieros"},{"$f":"'828000 - Nota. Cuentas x pagar'!$C$29","v":"co-svsp-core_2017-12-31:CxP_Otros_Pasivos_financieros"}]
["",null,{"$f":"'828000 - Nota. Cuentas x pagar'!$D$30","v":"Total cuentas comerciales por pagar, otras cuentas por pagar y otros pasivos financieros"},{"$f":"'828000 - Nota. Cuentas x pagar'!$C$30","v":"co-svsp-core_2017-12-31:CxP_Total_cuentas_comerciales_por_pagar_otras_cuentas_por_pagar_y_otros_pasivos_financieros"},0,"peso",{"$f":"'828000 - Nota. Cuentas x pagar'!$K$30","v":0},800001965,"http://www.xbrl.org/scheme/companyName",null,{"$f":"Periodos!$D$4","v":"2016-12-31"},{"$f":"'828000 - Nota. Cuentas x pagar'!$D$24","v":"co-svsp-core_2017-12-31:CuentasXPagar_Eje"},{"$f":"'828000 - Nota. Cuentas x pagar'!$K$23","v":"co-svsp-core_2017-12-31:CxP_Vencidas_1_a_90_dias_Miembro"}]
["/*",null,"--08--"]
["/*",null,{"$f":"'828000 - Nota. Cuentas x pagar'!$D$25","v":"Cuentas comerciales por pagar, otras cuentas por pagar y otros pasivos financieros items"},{"$f":"'828000 - Nota. Cuentas x pagar'!$C$25","v":"co-svsp-core_2017-12-31:CxP_Cuentas_comerciales_por_pagar_otras_cuentas_por_pagar_y_otros_pasivos_financieros_items"}]
["/*",null,{"$f":"'828000 - Nota. Cuentas x pagar'!$D$26","v":"Cuentas comerciales por pagar"},{"$f":"'828000 - Nota. Cuentas x pagar'!$C$26","v":"co-svsp-core_2017-12-31:CxP_Cuentas_por_pagar_comerciales"}]
["/*",null,{"$f":"'828000 - Nota. Cuentas x pagar'!$D$27","v":"Otras cuentas por pagar"},{"$f":"'828000 - Nota. Cuentas x pagar'!$C$27","v":"co-svsp-core_2017-12-31:CxP_Otras_cuentas_por_pagar"}]
["",null,{"$f":"'828000 - Nota. Cuentas x pagar'!$D$28","v":"Total cuentas comerciales por pagar y otras cuentas por pagar"},{"$f":"'828000 - Nota. Cuentas x pagar'!$C$28","v":"co-svsp-core_2017-12-31:CxP_Total_cuentas_comerciales_por_pagar_y_otras_cuentas_por_pagar"},0,"peso",{"$f":"'828000 - Nota. Cuentas x pagar'!$L$28","v":0},800001965,"http://www.xbrl.org/scheme/companyName",null,{"$f":"Periodos!$D$4","v":"2016-12-31"},{"$f":"'828000 - Nota. Cuentas x pagar'!$D$24","v":"co-svsp-core_2017-12-31:CuentasXPagar_Eje"},{"$f":"'828000 - Nota. Cuentas x pagar'!$L$23","v":"co-svsp-core_2017-12-31:CxP_Vencidas_91_a_180_dias_Miembro"}]
["/*",null,{"$f":"'828000 - Nota. Cuentas x pagar'!$D$29","v":"Otros Pasivos financieros"},{"$f":"'828000 - Nota. Cuentas x pagar'!$C$29","v":"co-svsp-core_2017-12-31:CxP_Otros_Pasivos_financieros"}]
["",null,{"$f":"'828000 - Nota. Cuentas x pagar'!$D$30","v":"Total cuentas comerciales por pagar, otras cuentas por pagar y otros pasivos financieros"},{"$f":"'828000 - Nota. Cuentas x pagar'!$C$30","v":"co-svsp-core_2017-12-31:CxP_Total_cuentas_comerciales_por_pagar_otras_cuentas_por_pagar_y_otros_pasivos_financieros"},0,"peso",{"$f":"'828000 - Nota. Cuentas x pagar'!$L$30","v":0},800001965,"http://www.xbrl.org/scheme/companyName",null,{"$f":"Periodos!$D$4","v":"2016-12-31"},{"$f":"'828000 - Nota. Cuentas x pagar'!$D$24","v":"co-svsp-core_2017-12-31:CuentasXPagar_Eje"},{"$f":"'828000 - Nota. Cuentas x pagar'!$L$23","v":"co-svsp-core_2017-12-31:CxP_Vencidas_91_a_180_dias_Miembro"}]
["/*",null,"--09--"]
["/*",null,{"$f":"'828000 - Nota. Cuentas x pagar'!$D$25","v":"Cuentas comerciales por pagar, otras cuentas por pagar y otros pasivos financieros items"},{"$f":"'828000 - Nota. Cuentas x pagar'!$C$25","v":"co-svsp-core_2017-12-31:CxP_Cuentas_comerciales_por_pagar_otras_cuentas_por_pagar_y_otros_pasivos_financieros_items"}]
["/*",null,{"$f":"'828000 - Nota. Cuentas x pagar'!$D$26","v":"Cuentas comerciales por pagar"},{"$f":"'828000 - Nota. Cuentas x pagar'!$C$26","v":"co-svsp-core_2017-12-31:CxP_Cuentas_por_pagar_comerciales"}]
["/*",null,{"$f":"'828000 - Nota. Cuentas x pagar'!$D$27","v":"Otras cuentas por pagar"},{"$f":"'828000 - Nota. Cuentas x pagar'!$C$27","v":"co-svsp-core_2017-12-31:CxP_Otras_cuentas_por_pagar"}]
["",null,{"$f":"'828000 - Nota. Cuentas x pagar'!$D$28","v":"Total cuentas comerciales por pagar y otras cuentas por pagar"},{"$f":"'828000 - Nota. Cuentas x pagar'!$C$28","v":"co-svsp-core_2017-12-31:CxP_Total_cuentas_comerciales_por_pagar_y_otras_cuentas_por_pagar"},0,"peso",{"$f":"'828000 - Nota. Cuentas x pagar'!$M$28","v":0},800001965,"http://www.xbrl.org/scheme/companyName",null,{"$f":"Periodos!$D$4","v":"2016-12-31"},{"$f":"'828000 - Nota. Cuentas x pagar'!$D$24","v":"co-svsp-core_2017-12-31:CuentasXPagar_Eje"},{"$f":"'828000 - Nota. Cuentas x pagar'!$M$23","v":"co-svsp-core_2017-12-31:CxP_Vencidas_181_a_360_dias_Miembro"}]
["/*",null,{"$f":"'828000 - Nota. Cuentas x pagar'!$D$29","v":"Otros Pasivos financieros"},{"$f":"'828000 - Nota. Cuentas x pagar'!$C$29","v":"co-svsp-core_2017-12-31:CxP_Otros_Pasivos_financieros"}]
["",null,{"$f":"'828000 - Nota. Cuentas x pagar'!$D$30","v":"Total cuentas comerciales por pagar, otras cuentas por pagar y otros pasivos financieros"},{"$f":"'828000 - Nota. Cuentas x pagar'!$C$30","v":"co-svsp-core_2017-12-31:CxP_Total_cuentas_comerciales_por_pagar_otras_cuentas_por_pagar_y_otros_pasivos_financieros"},0,"peso",{"$f":"'828000 - Nota. Cuentas x pagar'!$M$30","v":0},800001965,"http://www.xbrl.org/scheme/companyName",null,{"$f":"Periodos!$D$4","v":"2016-12-31"},{"$f":"'828000 - Nota. Cuentas x pagar'!$D$24","v":"co-svsp-core_2017-12-31:CuentasXPagar_Eje"},{"$f":"'828000 - Nota. Cuentas x pagar'!$M$23","v":"co-svsp-core_2017-12-31:CxP_Vencidas_181_a_360_dias_Miembro"}]
["/*",null,"--10--"]
["/*",null,{"$f":"'828000 - Nota. Cuentas x pagar'!$D$25","v":"Cuentas comerciales por pagar, otras cuentas por pagar y otros pasivos financieros items"},{"$f":"'828000 - Nota. Cuentas x pagar'!$C$25","v":"co-svsp-core_2017-12-31:CxP_Cuentas_comerciales_por_pagar_otras_cuentas_por_pagar_y_otros_pasivos_financieros_items"}]
["/*",null,{"$f":"'828000 - Nota. Cuentas x pagar'!$D$26","v":"Cuentas comerciales por pagar"},{"$f":"'828000 - Nota. Cuentas x pagar'!$C$26","v":"co-svsp-core_2017-12-31:CxP_Cuentas_por_pagar_comerciales"}]
["/*",null,{"$f":"'828000 - Nota. Cuentas x pagar'!$D$27","v":"Otras cuentas por pagar"},{"$f":"'828000 - Nota. Cuentas x pagar'!$C$27","v":"co-svsp-core_2017-12-31:CxP_Otras_cuentas_por_pagar"}]
["",null,{"$f":"'828000 - Nota. Cuentas x pagar'!$D$28","v":"Total cuentas comerciales por pagar y otras cuentas por pagar"},{"$f":"'828000 - Nota. Cuentas x pagar'!$C$28","v":"co-svsp-core_2017-12-31:CxP_Total_cuentas_comerciales_por_pagar_y_otras_cuentas_por_pagar"},0,"peso",{"$f":"'828000 - Nota. Cuentas x pagar'!$N$28","v":0},800001965,"http://www.xbrl.org/scheme/companyName",null,{"$f":"Periodos!$D$4","v":"2016-12-31"},{"$f":"'828000 - Nota. Cuentas x pagar'!$D$24","v":"co-svsp-core_2017-12-31:CuentasXPagar_Eje"},{"$f":"'828000 - Nota. Cuentas x pagar'!$N$23","v":"co-svsp-core_2017-12-31:CxP_Vencidas_mas_de_360_dias_Miembro"}]
["/*",null,{"$f":"'828000 - Nota. Cuentas x pagar'!$D$29","v":"Otros Pasivos financieros"},{"$f":"'828000 - Nota. Cuentas x pagar'!$C$29","v":"co-svsp-core_2017-12-31:CxP_Otros_Pasivos_financieros"}]
["",null,{"$f":"'828000 - Nota. Cuentas x pagar'!$D$30","v":"Total cuentas comerciales por pagar, otras cuentas por pagar y otros pasivos financieros"},{"$f":"'828000 - Nota. Cuentas x pagar'!$C$30","v":"co-svsp-core_2017-12-31:CxP_Total_cuentas_comerciales_por_pagar_otras_cuentas_por_pagar_y_otros_pasivos_financieros"},0,"peso",{"$f":"'828000 - Nota. Cuentas x pagar'!$N$30","v":0},800001965,"http://www.xbrl.org/scheme/companyName",null,{"$f":"Periodos!$D$4","v":"2016-12-31"},{"$f":"'828000 - Nota. Cuentas x pagar'!$D$24","v":"co-svsp-core_2017-12-31:CuentasXPagar_Eje"},{"$f":"'828000 - Nota. Cuentas x pagar'!$N$23","v":"co-svsp-core_2017-12-31:CxP_Vencidas_mas_de_360_dias_Miembro"}]
["/*",null,"--11--"]
["/*",null,{"$f":"'828000 - Nota. Cuentas x pagar'!$D$25","v":"Cuentas comerciales por pagar, otras cuentas por pagar y otros pasivos financieros items"},{"$f":"'828000 - Nota. Cuentas x pagar'!$C$25","v":"co-svsp-core_2017-12-31:CxP_Cuentas_comerciales_por_pagar_otras_cuentas_por_pagar_y_otros_pasivos_financieros_items"}]
["",null,{"$f":"'828000 - Nota. Cuentas x pagar'!$D$26","v":"Cuentas comerciales por pagar"},{"$f":"'828000 - Nota. Cuentas x pagar'!$C$26","v":"co-svsp-core_2017-12-31:CxP_Cuentas_por_pagar_comerciales"},0,"peso",{"$f":"'828000 - Nota. Cuentas x pagar'!$O$26","v":0},800001965,"http://www.xbrl.org/scheme/companyName",null,{"$f":"Periodos!$D$4","v":"2016-12-31"},{"$f":"'828000 - Nota. Cuentas x pagar'!$D$24","v":"co-svsp-core_2017-12-31:CuentasXPagar_Eje"},{"$f":"'828000 - Nota. Cuentas x pagar'!$O$23","v":"co-svsp-core_2017-12-31:Obligaciones_vencidas_CxP_Miembro"}]
["",null,{"$f":"'828000 - Nota. Cuentas x pagar'!$D$27","v":"Otras cuentas por pagar"},{"$f":"'828000 - Nota. Cuentas x pagar'!$C$27","v":"co-svsp-core_2017-12-31:CxP_Otras_cuentas_por_pagar"},0,"peso",{"$f":"'828000 - Nota. Cuentas x pagar'!$O$27","v":0},800001965,"http://www.xbrl.org/scheme/companyName",null,{"$f":"Periodos!$D$4","v":"2016-12-31"},{"$f":"'828000 - Nota. Cuentas x pagar'!$D$24","v":"co-svsp-core_2017-12-31:CuentasXPagar_Eje"},{"$f":"'828000 - Nota. Cuentas x pagar'!$O$23","v":"co-svsp-core_2017-12-31:Obligaciones_vencidas_CxP_Miembro"}]
["",null,{"$f":"'828000 - Nota. Cuentas x pagar'!$D$28","v":"Total cuentas comerciales por pagar y otras cuentas por pagar"},{"$f":"'828000 - Nota. Cuentas x pagar'!$C$28","v":"co-svsp-core_2017-12-31:CxP_Total_cuentas_comerciales_por_pagar_y_otras_cuentas_por_pagar"},0,"peso",{"$f":"'828000 - Nota. Cuentas x pagar'!$O$28","v":0},800001965,"http://www.xbrl.org/scheme/companyName",null,{"$f":"Periodos!$D$4","v":"2016-12-31"},{"$f":"'828000 - Nota. Cuentas x pagar'!$D$24","v":"co-svsp-core_2017-12-31:CuentasXPagar_Eje"},{"$f":"'828000 - Nota. Cuentas x pagar'!$O$23","v":"co-svsp-core_2017-12-31:Obligaciones_vencidas_CxP_Miembro"}]
["",null,{"$f":"'828000 - Nota. Cuentas x pagar'!$D$29","v":"Otros Pasivos financieros"},{"$f":"'828000 - Nota. Cuentas x pagar'!$C$29","v":"co-svsp-core_2017-12-31:CxP_Otros_Pasivos_financieros"},0,"peso",{"$f":"'828000 - Nota. Cuentas x pagar'!$O$29","v":0},800001965,"http://www.xbrl.org/scheme/companyName",null,{"$f":"Periodos!$D$4","v":"2016-12-31"},{"$f":"'828000 - Nota. Cuentas x pagar'!$D$24","v":"co-svsp-core_2017-12-31:CuentasXPagar_Eje"},{"$f":"'828000 - Nota. Cuentas x pagar'!$O$23","v":"co-svsp-core_2017-12-31:Obligaciones_vencidas_CxP_Miembro"}]
["",null,{"$f":"'828000 - Nota. Cuentas x pagar'!$D$30","v":"Total cuentas comerciales por pagar, otras cuentas por pagar y otros pasivos financieros"},{"$f":"'828000 - Nota. Cuentas x pagar'!$C$30","v":"co-svsp-core_2017-12-31:CxP_Total_cuentas_comerciales_por_pagar_otras_cuentas_por_pagar_y_otros_pasivos_financieros"},0,"peso",{"$f":"'828000 - Nota. Cuentas x pagar'!$O$30","v":0},800001965,"http://www.xbrl.org/scheme/companyName",null,{"$f":"Periodos!$D$4","v":"2016-12-31"},{"$f":"'828000 - Nota. Cuentas x pagar'!$D$24","v":"co-svsp-core_2017-12-31:CuentasXPagar_Eje"},{"$f":"'828000 - Nota. Cuentas x pagar'!$O$23","v":"co-svsp-core_2017-12-31:Obligaciones_vencidas_CxP_Miembro"}]